{"text_format":"1","workbook":"xlsx","n_sheets":38,"sheets":["แบบสรุปสายส่ง","CalendarCheck","Branches","ใส่ข้อมูล","WEB_Template","1","2","3","4","5","6","7","8","9","10","11","12","13","14","15","16","17","18","19","20","21","22","23","24","25","26","27","28","29","30","31","รอบวิ่ง","Problems & Solutions"],"not_rendered":{"charts":0,"images":2,"macros":1,"external_links":0,"defined_names":169,"comments":33,"pivot_tables":0},"unopened":[],"bounds":{"document_bytes":16777216,"sheet_cells":100000,"rows_first":2000,"rows_last":500,"rows_between":2000,"halvings":0,"cell_chars":16384,"cell_head_chars":4096},"cells_cut":0,"cells_raw":0,"read":"whole","date_system":"1900"}

{"sheet":"แบบสรุปสายส่ง","index":0,"n_rows":11,"n_cols":4,"rows_kept":11,"cut":false,"hidden":true,"merged":[[10,1,10,2],[4,1,4,2],[6,1,6,2],[8,1,8,2],[3,1,3,3]]}
[]
[]
[]
[null,{"$f":"\"รายงาน  \"& ใส่ข้อมูล!#REF!&\"-\"&ใส่ข้อมูล!#REF!","v":{"$error":"#REF!"}}]
[null,"รวมยอดขาย ",null,{"$f":"ใส่ข้อมูล!K37","v":0}]
[]
[null,"รวมยอดหักรายคน",null,{"$f":"ใส่ข้อมูล!M37","v":0}]
[]
[null,"รวมจำนวนร้าน",null,{"$f":"ใส่ข้อมูล!N37","v":0}]
[]
[null,"รวมจำนวนกิโลเมตร",null,{"$f":"ใส่ข้อมูล!O37","v":0}]

{"sheet":"CalendarCheck","index":1,"n_rows":27,"n_cols":19,"rows_kept":27,"cut":false,"hidden":true,"merged":[[1,1,1,2],[1,6,1,7],[3,10,3,11],[3,13,3,16]]}
[]
[null,null,null,{"$f":"YEAR(NOW())","v":2025},"ประจำเดือน","กันยายน",{"$f":"\"พุทธศักราช \"&YEAR(NOW())+543","v":"พุทธศักราช 2568"},null,{"$f":"INDEX(Last_day_of_month,MATCH(F2,Months_TH,0),5)","v":30}]
[null,null,null,null,null,null,null,null,{"$f":"VLOOKUP(INDEX(Last_day_of_month,MATCH(F2,Months_TH,0),6),Weekday,2,0)","v":"จันทร์"}]
[null,"อาทิตย์ : Sun","จันทร์ : Mon","อังคาร : Tue","พุธ : Wed","พฤหัสบดี : Thu","ศุกร์ : Fri","เสาร์ : Sat",{"$f":"INDEX(Weekday_Th,VLOOKUP(MATCH(F2,Months_TH,0),Last_day_of_month,6,0))","v":"จันทร์"},null,"Days",null,null,"::: Last day of month :::",null,null,null,"Last Day","1st WeekDay"]
[null,{"$f":"IF($I$3=\"อาทิตย์\",1,\"\")","v":""},{"$f":"IF($I$3=\"จันทร์\",1,IF(B5=\"\",\"\",B5+1))","v":1},{"$f":"IF($I$3=\"อังคาร\",1,IF(C5=\"\",\"\",C5+1))","v":2},{"$f":"IF($I$3=\"พุธ\",1,IF(D5=\"\",\"\",D5+1))","v":3},{"$f":"IF($I$3=\"พฤหัสบดี\",1,IF(E5=\"\",\"\",E5+1))","v":4},{"$f":"IF($I$3=\"ศุกร์\",1,IF(F5=\"\",\"\",F5+1))","v":5},{"$f":"IF($I$3=\"เสาร์\",1,IF(G5=\"\",\"\",G5+1))","v":6},null,null,1,"อาทิตย์",null,1,"มกราคม","January",{"$f":"DATE(YEAR(TODAY()),$N5,1)","v":"2025-01-01"},{"$f":"DAY(EOMONTH(Q5,0))","v":31},{"$f":"WEEKDAY(Q5)","v":4}]
[null,null,null,null,null,null,null,null,null,null,2,"จันทร์",null,2,"กุมภาพันธ์","February",{"$f":"DATE(YEAR(TODAY()),$N6,1)","v":"2025-02-01"},28,{"$f":"WEEKDAY(Q6)","v":7}]
[null,null,null,null,null,null,null,null,null,null,3,"อังคาร",null,3,"มีนาคม","March","2025-03-01",31,7]
[null,{"$f":"IFERROR(IF(IF(H5<$I$2,H5+1,H5-$I$2-1)<1,\"\",IF(H5<$I$2,H5+1,H5-$I$2-1)),\"\")","v":7},{"$f":"IFERROR(IF(IF(B8<$I$2,B8+1,B8-$I$2-1)<1,\"\",IF(B8<$I$2,B8+1,B8-$I$2-1)),\"\")","v":8},9,10,11,12,13,null,null,4,"พุธ",null,4,"เมษายน","April","2025-04-01",30,3]
[null,null,null,null,null,null,null,null,null,null,5,"พฤหัสบดี",null,5,"พฤษภาคม","May","2025-05-01",31,5]
[null,null,null,null,null,null,null,null,null,null,6,"ศุกร์",null,6,"มิถุนายน","June","2025-06-01",30,1]
[null,{"$f":"IFERROR(IF(IF(H8<$I$2,H8+1,H8-$I$2-1)<1,\"\",IF(H8<$I$2,H8+1,H8-$I$2-1)),\"\")","v":14},{"$f":"IFERROR(IF(IF(B11<$I$2,B11+1,B11-$I$2-1)<1,\"\",IF(B11<$I$2,B11+1,B11-$I$2-1)),\"\")","v":15},16,17,18,19,20,null,null,7,"เสาร์",null,7,"กรกฎาคม","July","2025-07-01",31,3]
[null,null,null,null,null,null,null,null,null,null,null,null,null,8,"สิงหาคม","August","2025-08-01",31,6]
[null,null,null,null,null,null,null,null,null,null,null,null,null,9,"กันยายน","September","2025-09-01",30,2]
[null,{"$f":"IFERROR(IF(IF(H11<$I$2,H11+1,H11-$I$2-1)<1,\"\",IF(H11<$I$2,H11+1,H11-$I$2-1)),\"\")","v":21},{"$f":"IFERROR(IF(IF(B14<$I$2,B14+1,B14-$I$2-1)<1,\"\",IF(B14<$I$2,B14+1,B14-$I$2-1)),\"\")","v":22},23,24,25,26,27,null,null,null,null,null,10,"ตุลาคม","October","2025-10-01",31,4]
[null,null,null,null,null,null,null,null,null,null,null,null,null,11,"พฤศจิกายน","November","2025-11-01",30,7]
[null,null,null,null,null,null,null,null,null,null,null,null,null,12,"ธันวาคม","December","2025-12-01",31,2]
[null,{"$f":"IFERROR(IF(IF(H14<$I$2,H14+1,H14-$I$2-1)<1,\"\",IF(H14<$I$2,H14+1,H14-$I$2-1)),\"\")","v":28},{"$f":"IFERROR(IF(IF(B17<$I$2,B17+1,B17-$I$2-1)<1,\"\",IF(B17<$I$2,B17+1,B17-$I$2-1)),\"\")","v":29},30,"","","",""]
[]
[]
[null,{"$f":"IFERROR(IF(IF(H17<$I$2,H17+1,H17-$I$2-1)<1,\"\",IF(H17<$I$2,H17+1,H17-$I$2-1)),\"\")","v":""},{"$f":"IFERROR(IF(IF(B20<$I$2,B20+1,B20-$I$2-1)<1,\"\",IF(B20<$I$2,B20+1,B20-$I$2-1)),\"\")","v":""}]
[]
[]
[]
[null,"* สามารถใช้ Sheet ของวันที่ 2 เป็นแม่แบบสำหรับ Sheet 3-31 ได้เลย คัดลอกแผ่นงานแล้วเปลี่ยนชื่อได้เลย"]
[]
[]
[null,2,{"$f":"CHOOSE(WEEKDAY(B27),\"อาทิตย์\",\"จันทร์\",\"อังคาร\",\"พุธ\",\"พฤหัสบดี\",\"ศุกร์\",\"เสาร์\")","v":"จันทร์"},{"$f":"MATCH(C27,Weekday_Th,0)","v":2}]

{"sheet":"Branches","index":2,"n_rows":34,"n_cols":10,"rows_kept":34,"cut":false,"hidden":true,"merged":[[3,1,3,7]]}
[]
[null,"Branches","https://docs.google.com/spreadsheets/d/1I3ev80bppMdCSDw2pa7WeDeY4CGlOrJw25FuykTCmRo/export?format=csv&gid=0"]
[]
[null,"Branches >> Refresh to Update",null,null,null,null,null,null,null,"Sales Van List"]
[null,"ID","Code","Thai_Name","Address","Manager","Route","GoogleForm",null,"Route"]
[null,"03","KB","กบินทร์บุรี","262-263 ต.เมืองเก่า อ.กบินทร์บุรี จ.ปราจีนบุรี 25240","นายเจร ดวงอุประ","10","https://forms.gle/n6EdPJesFkVY6HAJ6",null,{"$f":"TEXT(ROWS($6:6),\"00\")","v":"01"}]
[null,"04","KR","โคราช","1216 ถ.มหาวิทยาลัย1 ต.หนองจะบก อ.เมือง จ.นครราชสีมา 30000","นายศักดิ์ศิริมงคล พลมุข","12","https://forms.gle/denrtnPPWxx5n3u77",null,{"$f":"TEXT(ROWS($6:7),\"00\")","v":"02"}]
[null,"05","NP","นครปฐม","156/3 ม.6 ต.คลองใหม่ อ.สามพราน จ.นครปฐม 7311","นายษานุ บุญทูล","15","https://forms.gle/SSDHeag84rztM3z98",null,{"$f":"TEXT(ROWS($6:8),\"00\")","v":"03"}]
[null,"06","KK","ขอนแก่น","670/94 มบ.พัฒนาสแควร์ ซ.กลางเมือง ถ.กลางเมือง ต.ในเมือง อ.เมือง จ.ขอนแก่น 40000","นายจักรพันธ์ บุตรเหลี้ยม","10","https://forms.gle/C2Z1QkEHQggJj5tR9",null,{"$f":"TEXT(ROWS($6:9),\"00\")","v":"04"}]
[null,"07","AY","อยุธยา","27/16-17 ม.2 ต.ธนู อ.อุทัย จ.พระนครศรีอยุธยา 13000","นายวรชาติ จันทร์ช่วง","10","https://forms.gle/7HMo1kXU3Tvz6Cuu6",null,{"$f":"TEXT(ROWS($6:10),\"00\")","v":"05"}]
[null,"08","BK","กรุงเทพฯ","2/11-12 ถ.รามคำแหง แขวงมีนบุรี เขตมีนบุรี กรุงเทพฯ 10510","นายเกียรติศักดิ์ เมืองทรัพย์","10","https://forms.gle/zExPSYF36REGMQFV8",null,{"$f":"TEXT(ROWS($6:11),\"00\")","v":"06"}]
[null,"09","RY","ระยอง","115/1 ม.8 ต.ชากบก อ.บ้านค่าย จ.ระยอง 21120","นายเกรียงศักดิ์ ภักดี","11","https://forms.gle/HyV6xzTucooGhTYh8",null,{"$f":"TEXT(ROWS($6:12),\"00\")","v":"07"}]
[null,"10","SK","สมุทรปราการ","155/6 ม.1 ต.บางพลีน้อย อ.บางบ่อ จ.สมุทรปราการ 10560","นายภูริวัจน์ จันทร์กลับ","8","https://forms.gle/PKLaknUgDrEtF9rd8",null,{"$f":"TEXT(ROWS($6:13),\"00\")","v":"08"}]
[null,"12","PY","พัทยา","167/7 ม.8 ต.หนองปลาไหล อ.บางละมุง จ.ชลบุรี 20150","นายฤทธิชัย   ยอดกุล","9","https://forms.gle/LVvhXLEveYhpF6MZ6",null,{"$f":"TEXT(ROWS($6:14),\"00\")","v":"09"}]
[null,"13","SR","สุรินทร์","606 ม.19 ต.นอกเมือง อ.เมือง จ.สุรินทร์ 32000","นายวิชิต  ผดุงสุข","7","https://forms.gle/BdMrBRDzCxvvPrPXA",null,{"$f":"TEXT(ROWS($6:15),\"00\")","v":"10"}]
[null,"14","CB","จันทบุรี","90/92-93 ม.2 ต.ท่าช้าง อ.เมือง จ.จันทบุรี 22000","นายพิพัฒน์ จันทร์ทอง","8","https://forms.gle/kP7wmoaMufR8RTRdA",null,{"$f":"TEXT(ROWS($6:16),\"00\")","v":"11"}]
[null,"15","UB","อุบลราชธานี","144 ม.8 ต.แสนสุข อ.วารินชำราบ จ.อุบลฯ 34190","นายบริพัฒน์ สมบุญเปล่ง","9","https://forms.gle/Si89qhTTbayNh3Bv5",null,{"$f":"TEXT(ROWS($6:17),\"00\")","v":"12"}]
[null,"16","KL","คลองหลวง","220 ซอย รังสิต-นครนายก 37 ต.ประชาธิปัตย์ อ.ธัญบุรี จ.ปทุมธานี 12130","นายสุกัน ลำประเสริฐ","7","https://forms.gle/cECV1pjqkZANj35WA",null,{"$f":"TEXT(ROWS($6:18),\"00\")","v":"13"}]
[null,"17","LA","ร้อยเอ็ด","141/6-7 ถ.ปัทมานนท์ ต.ในเมือง อ.เมือง จ.ร้อยเอ็ด 45000","นายศุภกร  ไตรสุทธิ","10","https://forms.gle/hDH3HunBC7vyE5iy7",null,{"$f":"TEXT(ROWS($6:19),\"00\")","v":"14"}]
[null,"18","SN","สกลนคร","191/1-2 ถ.สกลนคร-นาแก ต.ดงมะไฟ อ.เมือง จ.สกลนคร 47000","นายจีรศักดิ์  สาระจันทร์","14","https://forms.gle/H9UKSQtc9iFU4Wf49",null,{"$f":"TEXT(ROWS($6:20),\"00\")","v":"15"}]
[null,"19","UD","อุดรธานี","9/8 ถ.รอบเมือง ต.หมากแข้ง อ.เมือง จ.อุดรธานี 41000","นายมนธิมา  ผาจวง","13","https://forms.gle/2uf1RzpeF6b9NhcU9"]
[null,"20","PC","ปากช่อง","34 , 36 ถ.ธนะรัชต์ ต.ปากช่อง อ.ปากช่อง จ.นครราชสีมา 30130","นายภาคิน สุขมาก","8","https://forms.gle/c1FmVZjyuiVv6YTDA"]
[null,"21","BR","บุรีรัมย์","302/53-54 ต.เสม็ด อ.เมืองบุรีรัมย์ จ.บุรีรัมย์ 31000","นายสุริยา กุลมอญ","10","https://forms.gle/u7VpQxQo3Yu4ENn1A"]
[null,"22","LB","ลพบุรี","เลขที่ 144/4 หมู่ 4 ต.ท่าวุ้ง อ.ท่าวุ้ง จ.ลพบุรี 15150","นายสิรภพ บุญยัง","8","https://forms.gle/mg32u83JRJ7CWhgX7"]
[null,"23","NS","นครสวรรค์","117 ถ.ถนนพรหมนิมิต ต.วัดไทร อ.เมือง จ.นครสวรรค์ 60000","นายมานพ สุ่มนิ่ม","10","https://forms.gle/VBATNYEDgnWNq9bR9"]
[null,"24","CY","ชัยภูมิ","144/15-16 ถนนชัยภูมิ-สีคิ้ว หนองนาแซง อำเภอเมือง จ.ชัยภูมิ","นายศุภชัย  ศรีทองเขียว","8","https://forms.gle/V72X93NPaWhYmJNV9"]
[null,"25","RB","ราษฎร์บูรณะ","6 ซอยราษฎร์บูรณะ 4 แขวงบางปะกอก เขตราษฎร์บูรณะ กรุงเทพมหานคร 10140","นายศุกกิจ กุลพานิช","8","https://forms.gle/pAqtBXviptTttMEZ6"]
[null,"26","LE","เลย","340 ม.10 ต.วังสะพุง อ.วังสะพุง จ.เลย 42130","นางสาวเยาวลักษณ์ มหามาตร์","8","https://forms.gle/AFjNZnXhQYpfVbkx5"]
[null,"27","PL","พิษณุโลก","บ้านเลขที 8888/94 ม.7 ต.สมอแข อ.เมือง จ.พิษณุโลก 65000","นายวีรเมธ ธนภูมิแก้ว","11","https://forms.gle/HGWB7kVB6BU6A62H9"]
[null,"28","PN","เพชรบูรณ์","164 หมู่ 10 ต.ชอนไพร อ.เมืองเพชรบูรณ์ จ.เพชรบูรณ์ 67000","นายบัญชา พิมพา","6","https://forms.gle/jsgM8sFR5BK8v9EG6"]
[null,"29","SG","ศรีสะเกษ","294 ต.หนองครก อ.เมือง จ.ศรีสะเกษ 33000","นายอรรคพล มุ่งรวยกลาง","8","https://forms.gle/KGwMMkBVk9CjRqB17"]
[null,"31","KS","กาฬสินธุ์","429/3 หมู่ 4 ต.สมเด็จ อ.สมเด็จ จ.กาฬสินธุ์ 46150","นายจักรพงศ์ ปรีเลี่ยม","6","https://forms.gle/voJ2qKQssa4NSwc96"]
[null,"32","YT","ยโสธร","254 ถ.วารีราชเดช ต.น้ำคำใหญ่ อ.เมือง จ.ยโสธร 35000","นายจำลอง ก้อนคำบา","8","https://forms.gle/ScVYwBqLfwuYSzWUA"]
[null,"33","PK","พนัสนิคม","601/75-6 หมู่ 4 ต.ท่าบุญมี อ.เกาะจันทร์ จ.ชลบุรี 20240","นายอ๊อด วงพันธ์","5","https://forms.gle/bEyKcLQMKyaFEeGo9"]

{"sheet":"ใส่ข้อมูล","index":3,"n_rows":53,"n_cols":37,"rows_kept":53,"cut":false,"hidden":false,"merged":[[17,31,17,35],[12,17,13,18],[12,19,13,19],[36,1,36,5],[6,19,7,19],[8,17,9,18],[8,19,9,19],[10,17,11,18],[10,19,11,19],[2,23,2,24],[1,1,1,3],[2,1,2,3],[5,17,5,18],[6,17,7,18],[2,17,2,18]]}
[]
[null,"::: Daily Sales Report :::",null,null,"ประจำเดือน","พฤษภาคม",2568,null,null,null,null,null,null,null,null,null,null,null,null,null,null,{"$f":"INDEX(month_index,MATCH(F2,Months_TH,0))","v":5},null,"https://docs.google.com/spreadsheets/d/1I3ev80bppMdCSDw2pa7WeDeY4CGlOrJw25FuykTCmRo/export?format=csv&gid=885289288"]
[null,{"$f":"IF(E3=\"\",\"กรุณาเลือกสาขา-สายส่ง >>>\",\"::: ประจำสาขา \"&VLOOKUP(E3,Branches,2,0)&\" :::\")","v":"::: ประจำสาขา กบินทร์บุรี :::"},null,null,"KB","สายส่ง","01",null,null,null,null,null,null,null,null,null,null,"All_Sheets",null,null,null,{"$f":"TEXT(DATE($G$2-543,SL_Month,1),\"[$-107041E]dddd\")","v":"พฤหัสบดี"},null,":: Products List :: >> Refresh to Update",null,null,"Price_List :","2025-01-01","2025-01-01","2025-01-01",null,":: Report Criteria Parameter ::","ROW_Start","ROW_End","ROW_Total","Last_Column"]
[null,null,null,null,null,null,null,null,null,null,null,null,null,null,null,null,null,null,null,null,null,{"$f":"INDEX(Last_day_of_month,MATCH(F2,Months_TH,0),5)","v":31}]
[null,"วันที่","เขตการขาย","ชื่อพนักงานขาย","ผช. พนักงานขาย","พนักงาน (เสริม)","จำนวนพนักงาน","บิลใหญ่","บิลเล็ก","VAT","ยอดขาย","ยอดขาด/เกิน","ยอดหัก/คน","ร้าน","กิโลเมตร","Weekday",null,null,null,null,null,null,null,"PivotName","ProductName","Waste_Option","Case_Price","Update_Price1","Update_Price2","Update_Price3",null,"ROW_Store Range",{"$f":"MATCH(\"No\",'1'!$A:$A,0)+3","v":10},{"$f":"MATCH(\"รวมของขาย*\",'1'!$A:$A,0)-1","v":79},{"$f":"AH5+3","v":82},{"$f":"MATCH(\"รวมยอดขาย\",'1'!$7:$7,0)","v":154}]
[null,1,null,null,null,null,{"$f":"IF(COUNTA(D6:F6)=0,\"-\",COUNTA(D6:F6))","v":"-"},{"$f":"IFERROR(INDIRECT(\"'\"&$B6&\"'!\"&\"DE$1\"),\"-\")","v":0},{"$f":"IFERROR(INDIRECT(\"'\"&$B6&\"'!\"&\"DE$2\"),\"-\")","v":0},{"$f":"IFERROR(INDIRECT(\"'\"&$B6&\"'!\"&\"DE$3\"),\"-\")","v":0},{"$f":"IFERROR(INDIRECT(\"'\"&$B6&\"'!\"&\"DE$147\"),\"-\")","v":0},{"$f":"IFERROR(INDIRECT(\"'\"&$B6&\"'!\"&\"DE$149\"),\"-\")","v":0},{"$f":"IFERROR(L6/G6,\"-\")","v":"-"},{"$f":"IFERROR(INDIRECT(\"'\"&$B6&\"'!\"&\"DG$2\"),\"-\")","v":0},{"$f":"IFERROR(INDIRECT(\"'\"&$B6&\"'!\"&\"DE$150\"),\"-\")","v":0},{"$f":"IFERROR(VLOOKUP(WEEKDAY(DATE($G$2-543,$V$2,$B6),1),Weekday,2,0),\"\")","v":"พฤหัสบดี"},null,"รายงาน ณ เวลานี้",null,null,null,null,null,"01-ขนมปังหมูหยองน้ำสลัด","ขนมปังหมูหยองน้ำสลัด","YES",20,20,20,20,null,"ROW_Summary Range",{"$f":"MATCH(\"ราคา\",'1'!$A:$A,0)+1","v":88},{"$f":"MATCH(\"เลขที่ไมล์*\",'1'!$A:$A,0)-2","v":135},{"$f":"AH6+1","v":136},"-"]
[null,2,null,null,null,null,"-",0,0,0,0,0,"-",0,0,{"$f":"IFERROR(VLOOKUP(WEEKDAY(DATE($G$2-543,$V$2,$B7),1),Weekday,2,0),\"\")","v":"ศุกร์"},null,"รวมยอดขาย ",null,{"$f":"K37","v":0},null,null,null,"02-ขนมปังหมูหยองน้ำพริกเผา","ขนมปังหมูหยองน้ำพริกเผา","YES",20,20,20,20,null,"CustNo",{"$f":"ADDRESS(T1_StartRow,MATCH(\"*\"&AF7&\"*\",'1'!$7:$7,))&\":\"&ADDRESS(T1_EndRow,MATCH(\"*\"&AF7&\"*\",'1'!$7:$7,))","v":"$B$10:$B$79"}]
[null,3,null,null,null,null,"-",0,0,0,0,0,"-",0,0,"เสาร์",null,null,null,null,"Baht",null,null,"03-ขนมปังไก่หยองน้ำสลัด","ขนมปังไก่หยองน้ำสลัด","YES",20,20,20,20,null,"Invoice",{"$f":"ADDRESS(T1_StartRow,MATCH(\"*\"&AF8&\"*\",'1'!$7:$7,))&\":\"&ADDRESS(T1_EndRow,MATCH(\"*\"&AF8&\"*\",'1'!$7:$7,))","v":"$F$10:$F$79"}]
[null,4,null,null,null,null,"-",0,0,0,0,0,"-",0,0,"อาทิตย์",null,"รวมยอดหักรายคน",null,{"$f":"M37","v":0},null,null,null,"04-ขนมปังไส้ครีมสลัด","ขนมปังไส้ครีมสลัด","YES",15,15,15,15,null,"เงินเชื่อ",{"$f":"ADDRESS(T1_StartRow,MATCH(AF9,'1'!$8:$8,))&\":\"&ADDRESS(T1_EndRow,MATCH(AF9,'1'!$8:$8,))","v":"$EU$10:$EU$79"}]
[null,5,null,null,null,null,"-",0,0,0,0,0,"-",0,0,"จันทร์",null,null,null,null,"บาท/คน",null,null,"05-ขนมปังเนยสด","ขนมปังเนยสด","YES",15,15,15,15,null,"เงินสด",{"$f":"ADDRESS(T1_StartRow,MATCH(AF10,'1'!$8:$8,))&\":\"&ADDRESS(T1_EndRow,MATCH(AF10,'1'!$8:$8,))","v":"$EV$10:$EV$79"}]
[null,6,null,null,null,null,"-",0,0,0,0,0,"-",0,0,"อังคาร",null,"รวมจำนวนบิล",null,{"$f":"N37","v":0},null,null,null,"06-ขนมปังไส้สังขยาเล็ก","ขนมปังไส้สังขยาเล็ก","YES",10,10,10,10,null,"รวมยอดขาย",{"$f":"ADDRESS(T1_StartRow,MATCH(AF11,'1'!$7:$7,))&\":\"&ADDRESS(T1_EndRow,MATCH(AF11,'1'!$7:$7,))","v":"$EX$10:$EX$79"}]
[null,7,null,null,null,null,"-",0,0,0,0,0,"-",0,0,"พุธ",null,null,null,null,"ใบ",null,null,"07-ขนมปังไส้เผือก","ขนมปังไส้เผือก","YES",10,10,10,10,null,"รวม",{"$f":"ADDRESS(T2_StartRow,MATCH(AF12,'1'!$87:$87,))&\":\"&ADDRESS(T2_EndRow,MATCH(AF12,'1'!$87:$87,))","v":"$K$88:$K$135"}]
[null,8,null,null,null,null,"-",0,0,0,0,0,"-",0,0,"พฤหัสบดี",null,"รวมจำนวนกิโลเมตร",null,{"$f":"O37","v":0},null,null,null,"08-ขนมปังไส้ถั่วแดง","ขนมปังไส้ถั่วแดง","YES",10,10,10,10,null,"TotalDeduct",{"$f":"ADDRESS(ROW('1'!AP98),COLUMN('1'!AP98),1)","v":"$AP$98"}]
[null,9,null,null,null,null,"-",0,0,0,0,0,"-",0,0,"ศุกร์",null,null,null,null,"Km.",null,null,"09-ขนมปังไส้ถั่วดำ","ขนมปังไส้ถั่วดำ","YES",10,10,10,10]
[null,10,null,null,null,null,"-",0,0,0,0,0,"-",0,0,"เสาร์",null,null,null,null,null,null,null,"10-ขนมปังไส้มันม่วง","ขนมปังไส้มันม่วง","YES",10,10,10,10]
[null,11,null,null,null,null,"-",0,0,0,0,0,"-",0,0,"อาทิตย์",null,null,null,null,null,null,null,"11-เค้กกล้วยหอม","เค้กกล้วยหอม","YES",15,15,15,15]
[null,12,null,null,null,null,"-",0,0,0,0,0,"-",0,0,"จันทร์",null,null,null,null,null,null,null,"12-เค้กบัตเตอร์","เค้กบัตเตอร์","YES",15,15,15,15]
[null,13,null,null,null,null,"-",0,0,0,0,0,"-",0,0,"อังคาร",null,null,null,null,null,null,null,"13-ขนมปังโรลถั่วแดง","ขนมปังโรลถั่วแดง","YES",15,15,15,15,null,"Accounting Invoice Code"]
[null,14,null,null,null,null,"-",0,0,0,0,0,"-",0,0,"พุธ",null,null,null,null,null,null,null,"14-ขนมปังไส้สังขยาใหญ่","ขนมปังไส้สังขยาใหญ่","YES",15,15,15,15]
[null,15,null,null,null,null,"-",0,0,0,0,0,"-",0,0,"พฤหัสบดี",null,null,null,null,null,null,null,"15-ขนมปังชนิดแผ่น(480กรัม)","ขนมปังชนิดแผ่น(480กรัม)","YES",42,42,42,42,null,"INVOICE","DocType","Cust_Code","ACC_Code","Descriptions"]
[null,16,null,null,null,null,"-",0,0,0,0,0,"-",0,0,"ศุกร์",null,null,null,null,null,null,null,"16-โมจิไส้ถั่ว","โมจิไส้ถั่ว","YES",12,12,12,12,null,"IVXXXXXXXXXX","VAT","CA,JT",40,"1) บิลใหญ่สด(40)","IVBBRRXXXXXX"]
[null,17,null,null,null,null,"-",0,0,0,0,0,"-",0,0,"เสาร์",null,null,null,null,null,null,null,"17-โมจิไส้เผือก","โมจิไส้เผือก","YES",12,12,12,12,null,"XX-XXXXXXXXX","NVAT","CA",41,"2) บิลเล็กสด(41)","YY-BBRRXXXXX"]
[null,18,null,null,null,null,"-",0,0,0,0,0,"-",0,0,"อาทิตย์",null,null,null,null,null,null,null,"18-โมจิไส้ถั่วไข่เค็ม","โมจิไส้ถั่วไข่เค็ม","YES",15,15,15,15,null,"ICXXXXXXXXXX","VAT","CR",42,"3) บิลใหญ่เชื่อ(42)"]
[null,19,null,null,null,null,"-",0,0,0,0,0,"-",0,0,"จันทร์",null,null,null,null,null,null,null,"19-ขนมปังพิซซ่า","ขนมปังพิซซ่า","YES",20,20,20,20,null,"XXXXXXCXXXXX","NVAT","BB",43,"4) บิลเล็กเชื่อ(43)"]
[null,20,null,null,null,null,"-",0,0,0,0,0,"-",0,0,"อังคาร",null,null,null,null,null,null,null,"20-ขนมปังพิซซ่าปูอัดแฮม","ขนมปังพิซซ่าปูอัดแฮม","YES",20,20,20,20]
[null,21,null,null,null,null,"-",0,0,0,0,0,"-",0,0,"พุธ",null,null,null,null,null,null,null,"21-ขนมปังไส้กรอก","ขนมปังไส้กรอก","YES",20,20,20,20,null,"Accounting Code"]
[null,22,null,null,null,null,"-",0,0,0,0,0,"-",0,0,"พฤหัสบดี",null,null,null,null,null,null,null,"22-ขนมก้านบัว","ขนมก้านบัว","NO",15,15,15,15,null,"ACC"]
[null,23,null,null,null,null,"-",0,0,0,0,0,"-",0,0,"ศุกร์",null,null,null,null,null,null,null,"23-พายสับปะรด","พายสับปะรด","YES",20,20,20,20,null,"CR_HO - เครดิต สนญ."]
[null,24,null,null,null,null,"-",0,0,0,0,0,"-",0,0,"เสาร์",null,null,null,null,null,null,null,"24-พายไส้มะพร้าว","พายไส้มะพร้าว","YES",20,20,20,20,null,"CA - เงินสด"]
[null,25,null,null,null,null,"-",0,0,0,0,0,"-",0,0,"อาทิตย์",null,null,null,null,null,null,null,"25-ขนมปังโรลมันเทศ","ขนมปังโรลมันเทศ","YES",15,15,15,15,null,"BB - เครดิตระยะสั้น"]
[null,26,null,null,null,null,"-",0,0,0,0,0,"-",0,0,"จันทร์",null,null,null,null,null,null,null,"26-ขนมปังไส้ครีมสลัดน้ำพริกเผา","ขนมปังไส้ครีมสลัดน้ำพริกเผา","YES",15,15,15,15,null,"CR - เครดิตสาขา"]
[null,27,null,null,null,null,"-",0,0,0,0,0,"-",0,0,"อังคาร",null,null,null,null,null,null,null,"27-ขนมปังไส้สังขยาไข่","ขนมปังไส้สังขยาไข่","YES",20,20,20,20]
[null,28,null,null,null,null,"-",0,0,0,0,0,"-",0,0,"พุธ",null,null,null,null,null,null,null,"28-ขนมปังไส้สังขยามะพร้าว","ขนมปังไส้สังขยามะพร้าว","YES",20,20,20,20]
[null,{"$f":"IFERROR(IF(IF(B33<$V$4,B33+1,B33-$V$4-1)<1,\"\",IF(B33<$V$4,B33+1,B33-$V$4-1)),\"\")","v":29},null,null,null,null,"-",0,0,0,0,0,"-",0,0,{"$f":"IFERROR(VLOOKUP(WEEKDAY(DATE($G$2-543,$V$2,$B34),1),Weekday,2,0),\"\")","v":"พฤหัสบดี"},null,null,null,null,null,null,null,"29-ขนมปังไส้ครีมชาไทย","ขนมปังไส้ครีมชาไทย","YES",10,10,10,10]
[null,{"$f":"IFERROR(IF(IF(B34<$V$4,B34+1,B34-$V$4-1)<1,\"\",IF(B34<$V$4,B34+1,B34-$V$4-1)),\"\")","v":30},null,null,null,null,"-",0,0,0,0,0,"-",0,0,{"$f":"IFERROR(VLOOKUP(WEEKDAY(DATE($G$2-543,$V$2,$B35),1),Weekday,2,0),\"\")","v":"ศุกร์"},null,null,null,null,null,null,null,"30-ขนมปังโรลมันม่วง","ขนมปังโรลมันม่วง","YES",15,15,15,15]
[null,{"$f":"IFERROR(IF(IF(B35<$V$4,B35+1,B35-$V$4-1)<1,\"\",IF(B35<$V$4,B35+1,B35-$V$4-1)),\"\")","v":31},null,null,null,null,"-",0,0,0,0,0,"-",0,0,{"$f":"IFERROR(VLOOKUP(WEEKDAY(DATE($G$2-543,$V$2,$B36),1),Weekday,2,0),\"\")","v":"เสาร์"},null,null,null,null,null,null,null,"31-ขนมปังโรลช็อกโกแลต","ขนมปังโรลช็อกโกแลต","YES",15,15,15,15]
[null,"ผลรวม",null,null,null,null,{"$f":"SUM(G6:G36)","v":0},0,0,0,0,0,0,0,0,null,null,null,null,null,null,null,null,"32-ขนมปังชนิดแผ่น(155กรัม)","ขนมปังชนิดแผ่น(155กรัม)","YES",16,16,16,16]
[null,null,null,null,null,null,null,null,null,null,null,null,null,null,null,null,null,null,null,null,null,null,null,"33-ขนมปังโรลเผือก","ขนมปังโรลเผือก","YES",15,15,15,15]
[null,null,null,null,null,null,null,null,null,null,null,null,null,null,null,null,null,null,null,null,null,null,null,"34-ขนมปังไก่หยองน้ำสลัด Mini","ขนมปังไก่หยองน้ำสลัด Mini","YES",15,15,15,15]
[null,null,null,null,null,null,null,null,null,null,null,null,null,null,null,null,null,null,null,null,null,null,null,"35-ขนมปังไส้ช็อกโกแลต","ขนมปังไส้ช็อกโกแลต","YES",10,10,10,10]
[null,null,null,null,null,null,null,null,null,null,null,null,null,null,null,null,null,null,null,null,null,null,null,"36-ขนมปังไส้ครีมสังขยาไข่","ขนมปังไส้ครีมสังขยาไข่","YES",10,10,10,10]
[null,null,null,null,null,null,null,null,null,null,null,null,null,null,null,null,null,null,null,null,null,null,null,"37-ขนมปังพิซซ่าฮาวายเอี้ยน","ขนมปังพิซซ่าฮาวายเอี้ยน","YES",20,20,20,20]
[null,null,null,null,null,null,null,null,null,null,null,null,null,null,null,null,null,null,null,null,null,null,null,"38-ครัวซองต์หมูหยองน้ำสลัด","ครัวซองต์หมูหยองน้ำสลัด","YES",20,20,20,20]
[null,null,null,null,null,null,null,null,null,null,null,null,null,null,null,null,null,null,null,null,null,null,null,"39-แพนเบรดไส้เผือก","แพนเบรดไส้เผือก","YES",15,15,15,15]
[null,null,null,null,null,null,null,null,null,null,null,null,null,null,null,null,null,null,null,null,null,null,null,"40-แพนเบรดไส้ถั่วแดง","แพนเบรดไส้ถั่วแดง","YES",15,15,15,15]
[null,null,null,null,null,null,null,null,null,null,null,null,null,null,null,null,null,null,null,null,null,null,null,"41-ขนมปังกรอบเนยน้ำตาล(30กรัม)","ขนมปังกรอบเนยน้ำตาล(30กรัม)","NO",12,12,12,12]
[null,null,null,null,null,null,null,null,null,null,null,null,null,null,null,null,null,null,null,null,null,null,null,"42-ขนมปังชนิดแผ่นโฮลวีต","ขนมปังชนิดแผ่นโฮลวีต","YES",18,18,18,18]
[null,null,null,null,null,null,null,null,null,null,null,null,null,null,null,null,null,null,null,null,null,null,null,"43-เค้กโรลใบเตย","เค้กโรลใบเตย","YES",12,12,12,12]
[null,null,null,null,null,null,null,null,null,null,null,null,null,null,null,null,null,null,null,null,null,null,null,"44-ขนมโมจิไส้ถั่วดำ","ขนมโมจิไส้ถั่วดำ","YES",12,12,12,12]
[null,null,null,null,null,null,null,null,null,null,null,null,null,null,null,null,null,null,null,null,null,null,null,"45-ครัวซองต์ไส้กรอกชีส","ครัวซองต์ไส้กรอกชีส","YES",25,25,25,25]
[null,null,null,null,null,null,null,null,null,null,null,null,null,null,null,null,null,null,null,null,null,null,null,"46-ขนมเปี๊ยะไส้ถั่ว","ขนมเปี๊ยะไส้ถั่ว","YES",12,12,12,12]
[null,null,null,null,null,null,null,null,null,null,null,null,null,null,null,null,null,null,null,null,null,null,null,"47-ขนมเปี๊ยะไส้ฟัก","ขนมเปี๊ยะไส้ฟัก","YES",12,12,12,12]
[null,null,null,null,null,null,null,null,null,null,null,null,null,null,null,null,null,null,null,null,null,null,null,"48-มังกี้เค้ก","มังกี้เค้ก","YES",12,12,12,12]

{"sheet":"WEB_Template","index":4,"n_rows":70,"n_cols":45,"rows_kept":70,"cut":false,"hidden":true,"merged":[[1,31,2,31]]}
["ห้ามมีการแก้ไขหัวข้อและแถว",null,null,null,"SheetName :",5,null,"Web_FileName:",{"$f":"\"WEB_\"&$E$4","v":"WEB_KB01-250505"},null,"BPU_FileName:",{"$f":"\"BPU_\"&$E$4","v":"BPU_KB01-250505"}]
["Index","date","branch","van","ID_Head","n_sale","n_driver","n_spare","Mileage","Miles","FuelExpenses","Liters","CostOfGoods","CostWaste","Sales_Area","Big_bill","Small_bill","Qty_Debit","C_Debit","Credit_MajorBill","Credit_MinorBill","Qty_Credit","C_Credit","Cash","Sales_Target","Go_to_shop","PC_Waste","Weight","TimeIn","TimeOut","TimeOut2","ID_Detail","list","summit","Take","leftover","PDA_Balance","PDA_waste","Chk_waste","Transferinto","Transferout","Defective","Sell","Sell_PDA","Fine"]
["สูตรกรอง","ข้อความ*","สาขา*","สายวิ่ง*","สาขาสายวิ่งวันที่*","พนง.ขาย","พนง.ขับรถ","พนง.เสริม","ไมล์เข้า","ไมล์ออก","เติมน้ำมันบาท","จำนวนลิตร","ต้นทุนสาขา","ต้นทุนของเสีย","เขตการขาย","บิลใหญ่สด","บิลเล็กสด","จำนวนบิลสด","บิลยกเลิกสด","บิลใหญ่เชื่อ","บิลเล็กเชื่อ","จำนวนบิลเชื่อ","บิลยกเลิกเชื่อ","ยอดขาย","เป้ายอดขาย","เข้าร้าน","%ของเสีย","น้ำหนักของเสีย กก.","เวลาเปิดบิล","เวลาปิดบิล","เวลากลับ",null,"รายการ","ยกมา","เบิก","เหลือ","เหลือPDA","เสียPDA","เสียจริง","โอนเข้า","โอนออก","ชำรุด","ขาย","ขายจากPDA","ปรับ บ."]
[0,{"$f":"IF($A4=\"\",\"\",TEXT(DATE(BE_YEAR-543,SL_Month,SheetName),\"[$-41E]yyyy-mm-dd\"))","v":"2025-05-05"},{"$f":"IF($A4=\"\",\"\",SL_Branch)","v":"KB"},{"$f":"IF($A4=\"\",\"\",SL_Route)","v":"01"},{"$f":"SL_Branch&SL_Route&\"-\"&TEXT(DATE(BE_YEAR-543,SL_Month,SheetName),\"[$-41E]yymmdd\")","v":"KB01-250505"},{"$f":"\"\"&INDEX(OFFSET(Sale_Region,,1),SheetName)","v":""},{"$f":"\"\"&INDEX(OFFSET(Sale_Region,,2),SheetName)","v":""},{"$f":"\"\"&INDEX(OFFSET(Sale_Region,,3),SheetName)","v":""},{"$f":"Mileage_Start","v":0},{"$f":"Mileage_End","v":0},{"$f":"FuelExpenses","v":0},{"$f":"Liters","v":0},{"$f":"CostOfGoods","v":0},{"$f":"CostWaste","v":0},{"$f":"\"\"&INDEX(OFFSET(Sale_Region,,),SheetName)","v":""},{"$f":"Bill_Major","v":0},{"$f":"Bill_Minor","v":0},{"$f":"SUM(ISNUMBER(OFFSET((INDIRECT(SheetName&\"!\"&Cust_Rng)),,-1))*((LEFT(TrimINVRng,2)=\"IV\")+(MID(TrimINVRng,3,1)=\"-\")))","v":0},{"$f":"SUM((INDIRECT(SheetName&\"!\"&Cust_Rng)=\"บิลยกเลิก\")*((LEFT(TrimINVRng,2)=\"IV\")+(MID(TrimINVRng,3,1)=\"-\")))","v":0},{"$f":"Cr_MajorBill","v":0},{"$f":"Cr_MinorBill","v":0},{"$f":"SUM(ISNUMBER(OFFSET((INDIRECT(SheetName&\"!\"&Cust_Rng)),,-1))*((LEFT(TrimINVRng,2)=\"IC\")+(MID(TrimINVRng,7,1)=\"C\")))","v":0},{"$f":"SUM((INDIRECT(SheetName&\"!\"&Cust_Rng)=\"บิลยกเลิก\")*((LEFT(TrimINVRng,2)=\"IC\")+(MID(TrimINVRng,7,1)=\"C\")))","v":0},{"$f":"Cash","v":0},{"$f":"Sales_Target","v":0},{"$f":"Store_Qty","v":0},{"$f":"Pc_Waste","v":0},{"$f":"Weight","v":0},{"$f":"TimeIn","v":"00:00"},{"$f":"TimeOut","v":"00:00"},{"$f":"TimeArrive","v":"00:00"},null,null,{"$f":"IF($A5=\"\",\"\",SUM(AH5:AH70))","v":0},{"$f":"IF($A5=\"\",\"\",SUM(AI5:AI70))","v":0},{"$f":"IF($A5=\"\",\"\",SUM(AJ5:AJ70))","v":0},0,0,0,0,0,0,0,0,{"$f":"IF($A5=\"\",\"\",TotalDeduct)","v":0}]
[{"$f":"IF(ROWS($5:5)>ROWS(Web_Data),\"\",ROWS($5:5))","v":1},{"$f":"IF($A5=\"\",\"\",TEXT(DATE(BE_YEAR-543,SL_Month,SheetName),\"[$-41E]yyyy-mm-dd\"))","v":"2025-05-05"},"KB","01",null,null,null,null,null,null,null,null,null,null,null,null,null,null,null,null,null,null,null,null,null,null,null,null,null,null,null,{"$f":"IF($A5=\"\",\"\",SL_Branch&SL_Route&\"-\"&TEXT(DATE(BE_YEAR-543,SL_Month,SheetName),\"[$-41E]yymmdd\"))","v":"KB01-250505"},{"$f":"IF($A5=\"\",\"\",IF(INDEX(Web_Data,$A5,COLUMN(A$1))=0,\"\",INDEX(Web_Data,$A5,COLUMN(A$1))))","v":"01-ขนมปังหมูหยองน้ำสลัด"},{"$f":"IF($A5=\"\",\"\",IF(INDEX(Web_Data,$A5,COLUMN(B$1))=0,\"\",INDEX(Web_Data,$A5,COLUMN(B$1))))","v":""},{"$f":"IF($A5=\"\",\"\",IF(INDEX(Web_Data,$A5,COLUMN(C$1))=0,\"\",INDEX(Web_Data,$A5,COLUMN(C$1))))","v":""},{"$f":"IF($A5=\"\",\"\",IF(INDEX(Web_Data,$A5,COLUMN(D$1))=0,\"\",INDEX(Web_Data,$A5,COLUMN(D$1))))","v":""},{"$f":"IF($A5=\"\",\"\",IF(INDEX(Web_Data,$A5,COLUMN(E$1))=0,\"\",INDEX(Web_Data,$A5,COLUMN(E$1))))","v":""},{"$f":"IF($A5=\"\",\"\",IF(INDEX(Web_Data,$A5,COLUMN(F$1))=0,\"\",INDEX(Web_Data,$A5,COLUMN(F$1))))","v":""},{"$f":"IF($A5=\"\",\"\",IF(INDEX(Web_Data,$A5,COLUMN(G$1))=0,\"\",INDEX(Web_Data,$A5,COLUMN(G$1))))","v":""},{"$f":"IF($A5=\"\",\"\",IF(INDEX(Web_Data,$A5,COLUMN(H$1))=0,\"\",INDEX(Web_Data,$A5,COLUMN(H$1))))","v":""},{"$f":"IF($A5=\"\",\"\",IF(INDEX(Web_Data,$A5,COLUMN(I$1))=0,\"\",INDEX(Web_Data,$A5,COLUMN(I$1))))","v":""},{"$f":"IF($A5=\"\",\"\",IF(INDEX(Web_Data,$A5,COLUMN(J$1))=0,\"\",INDEX(Web_Data,$A5,COLUMN(J$1))))","v":""},{"$f":"IF($A5=\"\",\"\",IF(INDEX(Web_Data,$A5,COLUMN(K$1))=0,\"\",INDEX(Web_Data,$A5,COLUMN(K$1))))","v":""},{"$f":"IF($A5=\"\",\"\",IF(INDEX(Web_Data,$A5,COLUMN(L$1))=0,\"\",INDEX(Web_Data,$A5,COLUMN(L$1))))","v":""},{"$f":"IF($A5=\"\",\"\",IF(INDEX(Web_Data,$A5,COLUMN(M$1))=0,\"\",INDEX(Web_Data,$A5,COLUMN(M$1))))","v":""}]
[{"$f":"IF(ROWS($5:6)>ROWS(Web_Data),\"\",ROWS($5:6))","v":2},"2025-05-05","KB","01",null,null,null,null,null,null,null,null,null,null,null,null,null,null,null,null,null,null,null,null,null,null,null,null,null,null,null,"KB01-250505",{"$f":"IF($A6=\"\",\"\",IF(INDEX(Web_Data,$A6,COLUMN(A$1))=0,\"\",INDEX(Web_Data,$A6,COLUMN(A$1))))","v":"02-ขนมปังหมูหยองน้ำพริกเผา"},{"$f":"IF($A6=\"\",\"\",IF(INDEX(Web_Data,$A6,COLUMN(B$1))=0,\"\",INDEX(Web_Data,$A6,COLUMN(B$1))))","v":""},{"$f":"IF($A6=\"\",\"\",IF(INDEX(Web_Data,$A6,COLUMN(C$1))=0,\"\",INDEX(Web_Data,$A6,COLUMN(C$1))))","v":""},{"$f":"IF($A6=\"\",\"\",IF(INDEX(Web_Data,$A6,COLUMN(D$1))=0,\"\",INDEX(Web_Data,$A6,COLUMN(D$1))))","v":""},{"$f":"IF($A6=\"\",\"\",IF(INDEX(Web_Data,$A6,COLUMN(E$1))=0,\"\",INDEX(Web_Data,$A6,COLUMN(E$1))))","v":""},{"$f":"IF($A6=\"\",\"\",IF(INDEX(Web_Data,$A6,COLUMN(F$1))=0,\"\",INDEX(Web_Data,$A6,COLUMN(F$1))))","v":""},{"$f":"IF($A6=\"\",\"\",IF(INDEX(Web_Data,$A6,COLUMN(G$1))=0,\"\",INDEX(Web_Data,$A6,COLUMN(G$1))))","v":""},{"$f":"IF($A6=\"\",\"\",IF(INDEX(Web_Data,$A6,COLUMN(H$1))=0,\"\",INDEX(Web_Data,$A6,COLUMN(H$1))))","v":""},{"$f":"IF($A6=\"\",\"\",IF(INDEX(Web_Data,$A6,COLUMN(I$1))=0,\"\",INDEX(Web_Data,$A6,COLUMN(I$1))))","v":""},{"$f":"IF($A6=\"\",\"\",IF(INDEX(Web_Data,$A6,COLUMN(J$1))=0,\"\",INDEX(Web_Data,$A6,COLUMN(J$1))))","v":""},{"$f":"IF($A6=\"\",\"\",IF(INDEX(Web_Data,$A6,COLUMN(K$1))=0,\"\",INDEX(Web_Data,$A6,COLUMN(K$1))))","v":""},{"$f":"IF($A6=\"\",\"\",IF(INDEX(Web_Data,$A6,COLUMN(L$1))=0,\"\",INDEX(Web_Data,$A6,COLUMN(L$1))))","v":""},{"$f":"IF($A6=\"\",\"\",IF(INDEX(Web_Data,$A6,COLUMN(M$1))=0,\"\",INDEX(Web_Data,$A6,COLUMN(M$1))))","v":""}]
[{"$f":"IF(ROWS($5:7)>ROWS(Web_Data),\"\",ROWS($5:7))","v":3},"2025-05-05","KB","01",null,null,null,null,null,null,null,null,null,null,null,null,null,null,null,null,null,null,null,null,null,null,null,null,null,null,null,"KB01-250505",{"$f":"IF($A7=\"\",\"\",IF(INDEX(Web_Data,$A7,COLUMN(A$1))=0,\"\",INDEX(Web_Data,$A7,COLUMN(A$1))))","v":"03-ขนมปังไก่หยองน้ำสลัด"},{"$f":"IF($A7=\"\",\"\",IF(INDEX(Web_Data,$A7,COLUMN(B$1))=0,\"\",INDEX(Web_Data,$A7,COLUMN(B$1))))","v":""},{"$f":"IF($A7=\"\",\"\",IF(INDEX(Web_Data,$A7,COLUMN(C$1))=0,\"\",INDEX(Web_Data,$A7,COLUMN(C$1))))","v":""},{"$f":"IF($A7=\"\",\"\",IF(INDEX(Web_Data,$A7,COLUMN(D$1))=0,\"\",INDEX(Web_Data,$A7,COLUMN(D$1))))","v":""},{"$f":"IF($A7=\"\",\"\",IF(INDEX(Web_Data,$A7,COLUMN(E$1))=0,\"\",INDEX(Web_Data,$A7,COLUMN(E$1))))","v":""},{"$f":"IF($A7=\"\",\"\",IF(INDEX(Web_Data,$A7,COLUMN(F$1))=0,\"\",INDEX(Web_Data,$A7,COLUMN(F$1))))","v":""},{"$f":"IF($A7=\"\",\"\",IF(INDEX(Web_Data,$A7,COLUMN(G$1))=0,\"\",INDEX(Web_Data,$A7,COLUMN(G$1))))","v":""},{"$f":"IF($A7=\"\",\"\",IF(INDEX(Web_Data,$A7,COLUMN(H$1))=0,\"\",INDEX(Web_Data,$A7,COLUMN(H$1))))","v":""},{"$f":"IF($A7=\"\",\"\",IF(INDEX(Web_Data,$A7,COLUMN(I$1))=0,\"\",INDEX(Web_Data,$A7,COLUMN(I$1))))","v":""},{"$f":"IF($A7=\"\",\"\",IF(INDEX(Web_Data,$A7,COLUMN(J$1))=0,\"\",INDEX(Web_Data,$A7,COLUMN(J$1))))","v":""},{"$f":"IF($A7=\"\",\"\",IF(INDEX(Web_Data,$A7,COLUMN(K$1))=0,\"\",INDEX(Web_Data,$A7,COLUMN(K$1))))","v":""},{"$f":"IF($A7=\"\",\"\",IF(INDEX(Web_Data,$A7,COLUMN(L$1))=0,\"\",INDEX(Web_Data,$A7,COLUMN(L$1))))","v":""},{"$f":"IF($A7=\"\",\"\",IF(INDEX(Web_Data,$A7,COLUMN(M$1))=0,\"\",INDEX(Web_Data,$A7,COLUMN(M$1))))","v":""}]
[{"$f":"IF(ROWS($5:8)>ROWS(Web_Data),\"\",ROWS($5:8))","v":4},"2025-05-05","KB","01",null,null,null,null,null,null,null,null,null,null,null,null,null,null,null,null,null,null,null,null,null,null,null,null,null,null,null,"KB01-250505",{"$f":"IF($A8=\"\",\"\",IF(INDEX(Web_Data,$A8,COLUMN(A$1))=0,\"\",INDEX(Web_Data,$A8,COLUMN(A$1))))","v":"04-ขนมปังไส้ครีมสลัด"},{"$f":"IF($A8=\"\",\"\",IF(INDEX(Web_Data,$A8,COLUMN(B$1))=0,\"\",INDEX(Web_Data,$A8,COLUMN(B$1))))","v":""},{"$f":"IF($A8=\"\",\"\",IF(INDEX(Web_Data,$A8,COLUMN(C$1))=0,\"\",INDEX(Web_Data,$A8,COLUMN(C$1))))","v":""},{"$f":"IF($A8=\"\",\"\",IF(INDEX(Web_Data,$A8,COLUMN(D$1))=0,\"\",INDEX(Web_Data,$A8,COLUMN(D$1))))","v":""},{"$f":"IF($A8=\"\",\"\",IF(INDEX(Web_Data,$A8,COLUMN(E$1))=0,\"\",INDEX(Web_Data,$A8,COLUMN(E$1))))","v":""},{"$f":"IF($A8=\"\",\"\",IF(INDEX(Web_Data,$A8,COLUMN(F$1))=0,\"\",INDEX(Web_Data,$A8,COLUMN(F$1))))","v":""},{"$f":"IF($A8=\"\",\"\",IF(INDEX(Web_Data,$A8,COLUMN(G$1))=0,\"\",INDEX(Web_Data,$A8,COLUMN(G$1))))","v":""},{"$f":"IF($A8=\"\",\"\",IF(INDEX(Web_Data,$A8,COLUMN(H$1))=0,\"\",INDEX(Web_Data,$A8,COLUMN(H$1))))","v":""},{"$f":"IF($A8=\"\",\"\",IF(INDEX(Web_Data,$A8,COLUMN(I$1))=0,\"\",INDEX(Web_Data,$A8,COLUMN(I$1))))","v":""},{"$f":"IF($A8=\"\",\"\",IF(INDEX(Web_Data,$A8,COLUMN(J$1))=0,\"\",INDEX(Web_Data,$A8,COLUMN(J$1))))","v":""},{"$f":"IF($A8=\"\",\"\",IF(INDEX(Web_Data,$A8,COLUMN(K$1))=0,\"\",INDEX(Web_Data,$A8,COLUMN(K$1))))","v":""},{"$f":"IF($A8=\"\",\"\",IF(INDEX(Web_Data,$A8,COLUMN(L$1))=0,\"\",INDEX(Web_Data,$A8,COLUMN(L$1))))","v":""},{"$f":"IF($A8=\"\",\"\",IF(INDEX(Web_Data,$A8,COLUMN(M$1))=0,\"\",INDEX(Web_Data,$A8,COLUMN(M$1))))","v":""}]
[{"$f":"IF(ROWS($5:9)>ROWS(Web_Data),\"\",ROWS($5:9))","v":5},"2025-05-05","KB","01",null,null,null,null,null,null,null,null,null,null,null,null,null,null,null,null,null,null,null,null,null,null,null,null,null,null,null,"KB01-250505",{"$f":"IF($A9=\"\",\"\",IF(INDEX(Web_Data,$A9,COLUMN(A$1))=0,\"\",INDEX(Web_Data,$A9,COLUMN(A$1))))","v":"05-ขนมปังเนยสด"},{"$f":"IF($A9=\"\",\"\",IF(INDEX(Web_Data,$A9,COLUMN(B$1))=0,\"\",INDEX(Web_Data,$A9,COLUMN(B$1))))","v":""},{"$f":"IF($A9=\"\",\"\",IF(INDEX(Web_Data,$A9,COLUMN(C$1))=0,\"\",INDEX(Web_Data,$A9,COLUMN(C$1))))","v":""},{"$f":"IF($A9=\"\",\"\",IF(INDEX(Web_Data,$A9,COLUMN(D$1))=0,\"\",INDEX(Web_Data,$A9,COLUMN(D$1))))","v":""},{"$f":"IF($A9=\"\",\"\",IF(INDEX(Web_Data,$A9,COLUMN(E$1))=0,\"\",INDEX(Web_Data,$A9,COLUMN(E$1))))","v":""},{"$f":"IF($A9=\"\",\"\",IF(INDEX(Web_Data,$A9,COLUMN(F$1))=0,\"\",INDEX(Web_Data,$A9,COLUMN(F$1))))","v":""},{"$f":"IF($A9=\"\",\"\",IF(INDEX(Web_Data,$A9,COLUMN(G$1))=0,\"\",INDEX(Web_Data,$A9,COLUMN(G$1))))","v":""},{"$f":"IF($A9=\"\",\"\",IF(INDEX(Web_Data,$A9,COLUMN(H$1))=0,\"\",INDEX(Web_Data,$A9,COLUMN(H$1))))","v":""},{"$f":"IF($A9=\"\",\"\",IF(INDEX(Web_Data,$A9,COLUMN(I$1))=0,\"\",INDEX(Web_Data,$A9,COLUMN(I$1))))","v":""},{"$f":"IF($A9=\"\",\"\",IF(INDEX(Web_Data,$A9,COLUMN(J$1))=0,\"\",INDEX(Web_Data,$A9,COLUMN(J$1))))","v":""},{"$f":"IF($A9=\"\",\"\",IF(INDEX(Web_Data,$A9,COLUMN(K$1))=0,\"\",INDEX(Web_Data,$A9,COLUMN(K$1))))","v":""},{"$f":"IF($A9=\"\",\"\",IF(INDEX(Web_Data,$A9,COLUMN(L$1))=0,\"\",INDEX(Web_Data,$A9,COLUMN(L$1))))","v":""},{"$f":"IF($A9=\"\",\"\",IF(INDEX(Web_Data,$A9,COLUMN(M$1))=0,\"\",INDEX(Web_Data,$A9,COLUMN(M$1))))","v":""}]
[{"$f":"IF(ROWS($5:10)>ROWS(Web_Data),\"\",ROWS($5:10))","v":6},"2025-05-05","KB","01",null,null,null,null,null,null,null,null,null,null,null,null,null,null,null,null,null,null,null,null,null,null,null,null,null,null,null,"KB01-250505",{"$f":"IF($A10=\"\",\"\",IF(INDEX(Web_Data,$A10,COLUMN(A$1))=0,\"\",INDEX(Web_Data,$A10,COLUMN(A$1))))","v":"06-ขนมปังไส้สังขยาเล็ก"},{"$f":"IF($A10=\"\",\"\",IF(INDEX(Web_Data,$A10,COLUMN(B$1))=0,\"\",INDEX(Web_Data,$A10,COLUMN(B$1))))","v":""},{"$f":"IF($A10=\"\",\"\",IF(INDEX(Web_Data,$A10,COLUMN(C$1))=0,\"\",INDEX(Web_Data,$A10,COLUMN(C$1))))","v":""},{"$f":"IF($A10=\"\",\"\",IF(INDEX(Web_Data,$A10,COLUMN(D$1))=0,\"\",INDEX(Web_Data,$A10,COLUMN(D$1))))","v":""},{"$f":"IF($A10=\"\",\"\",IF(INDEX(Web_Data,$A10,COLUMN(E$1))=0,\"\",INDEX(Web_Data,$A10,COLUMN(E$1))))","v":""},{"$f":"IF($A10=\"\",\"\",IF(INDEX(Web_Data,$A10,COLUMN(F$1))=0,\"\",INDEX(Web_Data,$A10,COLUMN(F$1))))","v":""},{"$f":"IF($A10=\"\",\"\",IF(INDEX(Web_Data,$A10,COLUMN(G$1))=0,\"\",INDEX(Web_Data,$A10,COLUMN(G$1))))","v":""},{"$f":"IF($A10=\"\",\"\",IF(INDEX(Web_Data,$A10,COLUMN(H$1))=0,\"\",INDEX(Web_Data,$A10,COLUMN(H$1))))","v":""},{"$f":"IF($A10=\"\",\"\",IF(INDEX(Web_Data,$A10,COLUMN(I$1))=0,\"\",INDEX(Web_Data,$A10,COLUMN(I$1))))","v":""},{"$f":"IF($A10=\"\",\"\",IF(INDEX(Web_Data,$A10,COLUMN(J$1))=0,\"\",INDEX(Web_Data,$A10,COLUMN(J$1))))","v":""},{"$f":"IF($A10=\"\",\"\",IF(INDEX(Web_Data,$A10,COLUMN(K$1))=0,\"\",INDEX(Web_Data,$A10,COLUMN(K$1))))","v":""},{"$f":"IF($A10=\"\",\"\",IF(INDEX(Web_Data,$A10,COLUMN(L$1))=0,\"\",INDEX(Web_Data,$A10,COLUMN(L$1))))","v":""},{"$f":"IF($A10=\"\",\"\",IF(INDEX(Web_Data,$A10,COLUMN(M$1))=0,\"\",INDEX(Web_Data,$A10,COLUMN(M$1))))","v":""}]
[{"$f":"IF(ROWS($5:11)>ROWS(Web_Data),\"\",ROWS($5:11))","v":7},"2025-05-05","KB","01",null,null,null,null,null,null,null,null,null,null,null,null,null,null,null,null,null,null,null,null,null,null,null,null,null,null,null,"KB01-250505",{"$f":"IF($A11=\"\",\"\",IF(INDEX(Web_Data,$A11,COLUMN(A$1))=0,\"\",INDEX(Web_Data,$A11,COLUMN(A$1))))","v":"07-ขนมปังไส้เผือก"},{"$f":"IF($A11=\"\",\"\",IF(INDEX(Web_Data,$A11,COLUMN(B$1))=0,\"\",INDEX(Web_Data,$A11,COLUMN(B$1))))","v":""},{"$f":"IF($A11=\"\",\"\",IF(INDEX(Web_Data,$A11,COLUMN(C$1))=0,\"\",INDEX(Web_Data,$A11,COLUMN(C$1))))","v":""},{"$f":"IF($A11=\"\",\"\",IF(INDEX(Web_Data,$A11,COLUMN(D$1))=0,\"\",INDEX(Web_Data,$A11,COLUMN(D$1))))","v":""},{"$f":"IF($A11=\"\",\"\",IF(INDEX(Web_Data,$A11,COLUMN(E$1))=0,\"\",INDEX(Web_Data,$A11,COLUMN(E$1))))","v":""},{"$f":"IF($A11=\"\",\"\",IF(INDEX(Web_Data,$A11,COLUMN(F$1))=0,\"\",INDEX(Web_Data,$A11,COLUMN(F$1))))","v":""},{"$f":"IF($A11=\"\",\"\",IF(INDEX(Web_Data,$A11,COLUMN(G$1))=0,\"\",INDEX(Web_Data,$A11,COLUMN(G$1))))","v":""},{"$f":"IF($A11=\"\",\"\",IF(INDEX(Web_Data,$A11,COLUMN(H$1))=0,\"\",INDEX(Web_Data,$A11,COLUMN(H$1))))","v":""},{"$f":"IF($A11=\"\",\"\",IF(INDEX(Web_Data,$A11,COLUMN(I$1))=0,\"\",INDEX(Web_Data,$A11,COLUMN(I$1))))","v":""},{"$f":"IF($A11=\"\",\"\",IF(INDEX(Web_Data,$A11,COLUMN(J$1))=0,\"\",INDEX(Web_Data,$A11,COLUMN(J$1))))","v":""},{"$f":"IF($A11=\"\",\"\",IF(INDEX(Web_Data,$A11,COLUMN(K$1))=0,\"\",INDEX(Web_Data,$A11,COLUMN(K$1))))","v":""},{"$f":"IF($A11=\"\",\"\",IF(INDEX(Web_Data,$A11,COLUMN(L$1))=0,\"\",INDEX(Web_Data,$A11,COLUMN(L$1))))","v":""},{"$f":"IF($A11=\"\",\"\",IF(INDEX(Web_Data,$A11,COLUMN(M$1))=0,\"\",INDEX(Web_Data,$A11,COLUMN(M$1))))","v":""}]
[{"$f":"IF(ROWS($5:12)>ROWS(Web_Data),\"\",ROWS($5:12))","v":8},"2025-05-05","KB","01",null,null,null,null,null,null,null,null,null,null,null,null,null,null,null,null,null,null,null,null,null,null,null,null,null,null,null,"KB01-250505",{"$f":"IF($A12=\"\",\"\",IF(INDEX(Web_Data,$A12,COLUMN(A$1))=0,\"\",INDEX(Web_Data,$A12,COLUMN(A$1))))","v":"08-ขนมปังไส้ถั่วแดง"},{"$f":"IF($A12=\"\",\"\",IF(INDEX(Web_Data,$A12,COLUMN(B$1))=0,\"\",INDEX(Web_Data,$A12,COLUMN(B$1))))","v":""},{"$f":"IF($A12=\"\",\"\",IF(INDEX(Web_Data,$A12,COLUMN(C$1))=0,\"\",INDEX(Web_Data,$A12,COLUMN(C$1))))","v":""},{"$f":"IF($A12=\"\",\"\",IF(INDEX(Web_Data,$A12,COLUMN(D$1))=0,\"\",INDEX(Web_Data,$A12,COLUMN(D$1))))","v":""},{"$f":"IF($A12=\"\",\"\",IF(INDEX(Web_Data,$A12,COLUMN(E$1))=0,\"\",INDEX(Web_Data,$A12,COLUMN(E$1))))","v":""},{"$f":"IF($A12=\"\",\"\",IF(INDEX(Web_Data,$A12,COLUMN(F$1))=0,\"\",INDEX(Web_Data,$A12,COLUMN(F$1))))","v":""},{"$f":"IF($A12=\"\",\"\",IF(INDEX(Web_Data,$A12,COLUMN(G$1))=0,\"\",INDEX(Web_Data,$A12,COLUMN(G$1))))","v":""},{"$f":"IF($A12=\"\",\"\",IF(INDEX(Web_Data,$A12,COLUMN(H$1))=0,\"\",INDEX(Web_Data,$A12,COLUMN(H$1))))","v":""},{"$f":"IF($A12=\"\",\"\",IF(INDEX(Web_Data,$A12,COLUMN(I$1))=0,\"\",INDEX(Web_Data,$A12,COLUMN(I$1))))","v":""},{"$f":"IF($A12=\"\",\"\",IF(INDEX(Web_Data,$A12,COLUMN(J$1))=0,\"\",INDEX(Web_Data,$A12,COLUMN(J$1))))","v":""},{"$f":"IF($A12=\"\",\"\",IF(INDEX(Web_Data,$A12,COLUMN(K$1))=0,\"\",INDEX(Web_Data,$A12,COLUMN(K$1))))","v":""},{"$f":"IF($A12=\"\",\"\",IF(INDEX(Web_Data,$A12,COLUMN(L$1))=0,\"\",INDEX(Web_Data,$A12,COLUMN(L$1))))","v":""},{"$f":"IF($A12=\"\",\"\",IF(INDEX(Web_Data,$A12,COLUMN(M$1))=0,\"\",INDEX(Web_Data,$A12,COLUMN(M$1))))","v":""}]
[{"$f":"IF(ROWS($5:13)>ROWS(Web_Data),\"\",ROWS($5:13))","v":9},"2025-05-05","KB","01",null,null,null,null,null,null,null,null,null,null,null,null,null,null,null,null,null,null,null,null,null,null,null,null,null,null,null,"KB01-250505",{"$f":"IF($A13=\"\",\"\",IF(INDEX(Web_Data,$A13,COLUMN(A$1))=0,\"\",INDEX(Web_Data,$A13,COLUMN(A$1))))","v":"09-ขนมปังไส้ถั่วดำ"},{"$f":"IF($A13=\"\",\"\",IF(INDEX(Web_Data,$A13,COLUMN(B$1))=0,\"\",INDEX(Web_Data,$A13,COLUMN(B$1))))","v":""},{"$f":"IF($A13=\"\",\"\",IF(INDEX(Web_Data,$A13,COLUMN(C$1))=0,\"\",INDEX(Web_Data,$A13,COLUMN(C$1))))","v":""},{"$f":"IF($A13=\"\",\"\",IF(INDEX(Web_Data,$A13,COLUMN(D$1))=0,\"\",INDEX(Web_Data,$A13,COLUMN(D$1))))","v":""},{"$f":"IF($A13=\"\",\"\",IF(INDEX(Web_Data,$A13,COLUMN(E$1))=0,\"\",INDEX(Web_Data,$A13,COLUMN(E$1))))","v":""},{"$f":"IF($A13=\"\",\"\",IF(INDEX(Web_Data,$A13,COLUMN(F$1))=0,\"\",INDEX(Web_Data,$A13,COLUMN(F$1))))","v":""},{"$f":"IF($A13=\"\",\"\",IF(INDEX(Web_Data,$A13,COLUMN(G$1))=0,\"\",INDEX(Web_Data,$A13,COLUMN(G$1))))","v":""},{"$f":"IF($A13=\"\",\"\",IF(INDEX(Web_Data,$A13,COLUMN(H$1))=0,\"\",INDEX(Web_Data,$A13,COLUMN(H$1))))","v":""},{"$f":"IF($A13=\"\",\"\",IF(INDEX(Web_Data,$A13,COLUMN(I$1))=0,\"\",INDEX(Web_Data,$A13,COLUMN(I$1))))","v":""},{"$f":"IF($A13=\"\",\"\",IF(INDEX(Web_Data,$A13,COLUMN(J$1))=0,\"\",INDEX(Web_Data,$A13,COLUMN(J$1))))","v":""},{"$f":"IF($A13=\"\",\"\",IF(INDEX(Web_Data,$A13,COLUMN(K$1))=0,\"\",INDEX(Web_Data,$A13,COLUMN(K$1))))","v":""},{"$f":"IF($A13=\"\",\"\",IF(INDEX(Web_Data,$A13,COLUMN(L$1))=0,\"\",INDEX(Web_Data,$A13,COLUMN(L$1))))","v":""},{"$f":"IF($A13=\"\",\"\",IF(INDEX(Web_Data,$A13,COLUMN(M$1))=0,\"\",INDEX(Web_Data,$A13,COLUMN(M$1))))","v":""}]
[{"$f":"IF(ROWS($5:14)>ROWS(Web_Data),\"\",ROWS($5:14))","v":10},"2025-05-05","KB","01",null,null,null,null,null,null,null,null,null,null,null,null,null,null,null,null,null,null,null,null,null,null,null,null,null,null,null,"KB01-250505",{"$f":"IF($A14=\"\",\"\",IF(INDEX(Web_Data,$A14,COLUMN(A$1))=0,\"\",INDEX(Web_Data,$A14,COLUMN(A$1))))","v":"10-ขนมปังไส้มันม่วง"},{"$f":"IF($A14=\"\",\"\",IF(INDEX(Web_Data,$A14,COLUMN(B$1))=0,\"\",INDEX(Web_Data,$A14,COLUMN(B$1))))","v":""},{"$f":"IF($A14=\"\",\"\",IF(INDEX(Web_Data,$A14,COLUMN(C$1))=0,\"\",INDEX(Web_Data,$A14,COLUMN(C$1))))","v":""},{"$f":"IF($A14=\"\",\"\",IF(INDEX(Web_Data,$A14,COLUMN(D$1))=0,\"\",INDEX(Web_Data,$A14,COLUMN(D$1))))","v":""},{"$f":"IF($A14=\"\",\"\",IF(INDEX(Web_Data,$A14,COLUMN(E$1))=0,\"\",INDEX(Web_Data,$A14,COLUMN(E$1))))","v":""},{"$f":"IF($A14=\"\",\"\",IF(INDEX(Web_Data,$A14,COLUMN(F$1))=0,\"\",INDEX(Web_Data,$A14,COLUMN(F$1))))","v":""},{"$f":"IF($A14=\"\",\"\",IF(INDEX(Web_Data,$A14,COLUMN(G$1))=0,\"\",INDEX(Web_Data,$A14,COLUMN(G$1))))","v":""},{"$f":"IF($A14=\"\",\"\",IF(INDEX(Web_Data,$A14,COLUMN(H$1))=0,\"\",INDEX(Web_Data,$A14,COLUMN(H$1))))","v":""},{"$f":"IF($A14=\"\",\"\",IF(INDEX(Web_Data,$A14,COLUMN(I$1))=0,\"\",INDEX(Web_Data,$A14,COLUMN(I$1))))","v":""},{"$f":"IF($A14=\"\",\"\",IF(INDEX(Web_Data,$A14,COLUMN(J$1))=0,\"\",INDEX(Web_Data,$A14,COLUMN(J$1))))","v":""},{"$f":"IF($A14=\"\",\"\",IF(INDEX(Web_Data,$A14,COLUMN(K$1))=0,\"\",INDEX(Web_Data,$A14,COLUMN(K$1))))","v":""},{"$f":"IF($A14=\"\",\"\",IF(INDEX(Web_Data,$A14,COLUMN(L$1))=0,\"\",INDEX(Web_Data,$A14,COLUMN(L$1))))","v":""},{"$f":"IF($A14=\"\",\"\",IF(INDEX(Web_Data,$A14,COLUMN(M$1))=0,\"\",INDEX(Web_Data,$A14,COLUMN(M$1))))","v":""}]
[{"$f":"IF(ROWS($5:15)>ROWS(Web_Data),\"\",ROWS($5:15))","v":11},"2025-05-05","KB","01",null,null,null,null,null,null,null,null,null,null,null,null,null,null,null,null,null,null,null,null,null,null,null,null,null,null,null,"KB01-250505",{"$f":"IF($A15=\"\",\"\",IF(INDEX(Web_Data,$A15,COLUMN(A$1))=0,\"\",INDEX(Web_Data,$A15,COLUMN(A$1))))","v":"11-เค้กกล้วยหอม"},{"$f":"IF($A15=\"\",\"\",IF(INDEX(Web_Data,$A15,COLUMN(B$1))=0,\"\",INDEX(Web_Data,$A15,COLUMN(B$1))))","v":""},{"$f":"IF($A15=\"\",\"\",IF(INDEX(Web_Data,$A15,COLUMN(C$1))=0,\"\",INDEX(Web_Data,$A15,COLUMN(C$1))))","v":""},{"$f":"IF($A15=\"\",\"\",IF(INDEX(Web_Data,$A15,COLUMN(D$1))=0,\"\",INDEX(Web_Data,$A15,COLUMN(D$1))))","v":""},{"$f":"IF($A15=\"\",\"\",IF(INDEX(Web_Data,$A15,COLUMN(E$1))=0,\"\",INDEX(Web_Data,$A15,COLUMN(E$1))))","v":""},{"$f":"IF($A15=\"\",\"\",IF(INDEX(Web_Data,$A15,COLUMN(F$1))=0,\"\",INDEX(Web_Data,$A15,COLUMN(F$1))))","v":""},{"$f":"IF($A15=\"\",\"\",IF(INDEX(Web_Data,$A15,COLUMN(G$1))=0,\"\",INDEX(Web_Data,$A15,COLUMN(G$1))))","v":""},{"$f":"IF($A15=\"\",\"\",IF(INDEX(Web_Data,$A15,COLUMN(H$1))=0,\"\",INDEX(Web_Data,$A15,COLUMN(H$1))))","v":""},{"$f":"IF($A15=\"\",\"\",IF(INDEX(Web_Data,$A15,COLUMN(I$1))=0,\"\",INDEX(Web_Data,$A15,COLUMN(I$1))))","v":""},{"$f":"IF($A15=\"\",\"\",IF(INDEX(Web_Data,$A15,COLUMN(J$1))=0,\"\",INDEX(Web_Data,$A15,COLUMN(J$1))))","v":""},{"$f":"IF($A15=\"\",\"\",IF(INDEX(Web_Data,$A15,COLUMN(K$1))=0,\"\",INDEX(Web_Data,$A15,COLUMN(K$1))))","v":""},{"$f":"IF($A15=\"\",\"\",IF(INDEX(Web_Data,$A15,COLUMN(L$1))=0,\"\",INDEX(Web_Data,$A15,COLUMN(L$1))))","v":""},{"$f":"IF($A15=\"\",\"\",IF(INDEX(Web_Data,$A15,COLUMN(M$1))=0,\"\",INDEX(Web_Data,$A15,COLUMN(M$1))))","v":""}]
[{"$f":"IF(ROWS($5:16)>ROWS(Web_Data),\"\",ROWS($5:16))","v":12},"2025-05-05","KB","01",null,null,null,null,null,null,null,null,null,null,null,null,null,null,null,null,null,null,null,null,null,null,null,null,null,null,null,"KB01-250505",{"$f":"IF($A16=\"\",\"\",IF(INDEX(Web_Data,$A16,COLUMN(A$1))=0,\"\",INDEX(Web_Data,$A16,COLUMN(A$1))))","v":"12-เค้กบัตเตอร์"},{"$f":"IF($A16=\"\",\"\",IF(INDEX(Web_Data,$A16,COLUMN(B$1))=0,\"\",INDEX(Web_Data,$A16,COLUMN(B$1))))","v":""},{"$f":"IF($A16=\"\",\"\",IF(INDEX(Web_Data,$A16,COLUMN(C$1))=0,\"\",INDEX(Web_Data,$A16,COLUMN(C$1))))","v":""},{"$f":"IF($A16=\"\",\"\",IF(INDEX(Web_Data,$A16,COLUMN(D$1))=0,\"\",INDEX(Web_Data,$A16,COLUMN(D$1))))","v":""},{"$f":"IF($A16=\"\",\"\",IF(INDEX(Web_Data,$A16,COLUMN(E$1))=0,\"\",INDEX(Web_Data,$A16,COLUMN(E$1))))","v":""},{"$f":"IF($A16=\"\",\"\",IF(INDEX(Web_Data,$A16,COLUMN(F$1))=0,\"\",INDEX(Web_Data,$A16,COLUMN(F$1))))","v":""},{"$f":"IF($A16=\"\",\"\",IF(INDEX(Web_Data,$A16,COLUMN(G$1))=0,\"\",INDEX(Web_Data,$A16,COLUMN(G$1))))","v":""},{"$f":"IF($A16=\"\",\"\",IF(INDEX(Web_Data,$A16,COLUMN(H$1))=0,\"\",INDEX(Web_Data,$A16,COLUMN(H$1))))","v":""},{"$f":"IF($A16=\"\",\"\",IF(INDEX(Web_Data,$A16,COLUMN(I$1))=0,\"\",INDEX(Web_Data,$A16,COLUMN(I$1))))","v":""},{"$f":"IF($A16=\"\",\"\",IF(INDEX(Web_Data,$A16,COLUMN(J$1))=0,\"\",INDEX(Web_Data,$A16,COLUMN(J$1))))","v":""},{"$f":"IF($A16=\"\",\"\",IF(INDEX(Web_Data,$A16,COLUMN(K$1))=0,\"\",INDEX(Web_Data,$A16,COLUMN(K$1))))","v":""},{"$f":"IF($A16=\"\",\"\",IF(INDEX(Web_Data,$A16,COLUMN(L$1))=0,\"\",INDEX(Web_Data,$A16,COLUMN(L$1))))","v":""},{"$f":"IF($A16=\"\",\"\",IF(INDEX(Web_Data,$A16,COLUMN(M$1))=0,\"\",INDEX(Web_Data,$A16,COLUMN(M$1))))","v":""}]
[{"$f":"IF(ROWS($5:17)>ROWS(Web_Data),\"\",ROWS($5:17))","v":13},"2025-05-05","KB","01",null,null,null,null,null,null,null,null,null,null,null,null,null,null,null,null,null,null,null,null,null,null,null,null,null,null,null,"KB01-250505",{"$f":"IF($A17=\"\",\"\",IF(INDEX(Web_Data,$A17,COLUMN(A$1))=0,\"\",INDEX(Web_Data,$A17,COLUMN(A$1))))","v":"13-ขนมปังโรลถั่วแดง"},{"$f":"IF($A17=\"\",\"\",IF(INDEX(Web_Data,$A17,COLUMN(B$1))=0,\"\",INDEX(Web_Data,$A17,COLUMN(B$1))))","v":""},{"$f":"IF($A17=\"\",\"\",IF(INDEX(Web_Data,$A17,COLUMN(C$1))=0,\"\",INDEX(Web_Data,$A17,COLUMN(C$1))))","v":""},{"$f":"IF($A17=\"\",\"\",IF(INDEX(Web_Data,$A17,COLUMN(D$1))=0,\"\",INDEX(Web_Data,$A17,COLUMN(D$1))))","v":""},{"$f":"IF($A17=\"\",\"\",IF(INDEX(Web_Data,$A17,COLUMN(E$1))=0,\"\",INDEX(Web_Data,$A17,COLUMN(E$1))))","v":""},{"$f":"IF($A17=\"\",\"\",IF(INDEX(Web_Data,$A17,COLUMN(F$1))=0,\"\",INDEX(Web_Data,$A17,COLUMN(F$1))))","v":""},{"$f":"IF($A17=\"\",\"\",IF(INDEX(Web_Data,$A17,COLUMN(G$1))=0,\"\",INDEX(Web_Data,$A17,COLUMN(G$1))))","v":""},{"$f":"IF($A17=\"\",\"\",IF(INDEX(Web_Data,$A17,COLUMN(H$1))=0,\"\",INDEX(Web_Data,$A17,COLUMN(H$1))))","v":""},{"$f":"IF($A17=\"\",\"\",IF(INDEX(Web_Data,$A17,COLUMN(I$1))=0,\"\",INDEX(Web_Data,$A17,COLUMN(I$1))))","v":""},{"$f":"IF($A17=\"\",\"\",IF(INDEX(Web_Data,$A17,COLUMN(J$1))=0,\"\",INDEX(Web_Data,$A17,COLUMN(J$1))))","v":""},{"$f":"IF($A17=\"\",\"\",IF(INDEX(Web_Data,$A17,COLUMN(K$1))=0,\"\",INDEX(Web_Data,$A17,COLUMN(K$1))))","v":""},{"$f":"IF($A17=\"\",\"\",IF(INDEX(Web_Data,$A17,COLUMN(L$1))=0,\"\",INDEX(Web_Data,$A17,COLUMN(L$1))))","v":""},{"$f":"IF($A17=\"\",\"\",IF(INDEX(Web_Data,$A17,COLUMN(M$1))=0,\"\",INDEX(Web_Data,$A17,COLUMN(M$1))))","v":""}]
[{"$f":"IF(ROWS($5:18)>ROWS(Web_Data),\"\",ROWS($5:18))","v":14},"2025-05-05","KB","01",null,null,null,null,null,null,null,null,null,null,null,null,null,null,null,null,null,null,null,null,null,null,null,null,null,null,null,"KB01-250505",{"$f":"IF($A18=\"\",\"\",IF(INDEX(Web_Data,$A18,COLUMN(A$1))=0,\"\",INDEX(Web_Data,$A18,COLUMN(A$1))))","v":"14-ขนมปังไส้สังขยาใหญ่"},{"$f":"IF($A18=\"\",\"\",IF(INDEX(Web_Data,$A18,COLUMN(B$1))=0,\"\",INDEX(Web_Data,$A18,COLUMN(B$1))))","v":""},{"$f":"IF($A18=\"\",\"\",IF(INDEX(Web_Data,$A18,COLUMN(C$1))=0,\"\",INDEX(Web_Data,$A18,COLUMN(C$1))))","v":""},{"$f":"IF($A18=\"\",\"\",IF(INDEX(Web_Data,$A18,COLUMN(D$1))=0,\"\",INDEX(Web_Data,$A18,COLUMN(D$1))))","v":""},{"$f":"IF($A18=\"\",\"\",IF(INDEX(Web_Data,$A18,COLUMN(E$1))=0,\"\",INDEX(Web_Data,$A18,COLUMN(E$1))))","v":""},{"$f":"IF($A18=\"\",\"\",IF(INDEX(Web_Data,$A18,COLUMN(F$1))=0,\"\",INDEX(Web_Data,$A18,COLUMN(F$1))))","v":""},{"$f":"IF($A18=\"\",\"\",IF(INDEX(Web_Data,$A18,COLUMN(G$1))=0,\"\",INDEX(Web_Data,$A18,COLUMN(G$1))))","v":""},{"$f":"IF($A18=\"\",\"\",IF(INDEX(Web_Data,$A18,COLUMN(H$1))=0,\"\",INDEX(Web_Data,$A18,COLUMN(H$1))))","v":""},{"$f":"IF($A18=\"\",\"\",IF(INDEX(Web_Data,$A18,COLUMN(I$1))=0,\"\",INDEX(Web_Data,$A18,COLUMN(I$1))))","v":""},{"$f":"IF($A18=\"\",\"\",IF(INDEX(Web_Data,$A18,COLUMN(J$1))=0,\"\",INDEX(Web_Data,$A18,COLUMN(J$1))))","v":""},{"$f":"IF($A18=\"\",\"\",IF(INDEX(Web_Data,$A18,COLUMN(K$1))=0,\"\",INDEX(Web_Data,$A18,COLUMN(K$1))))","v":""},{"$f":"IF($A18=\"\",\"\",IF(INDEX(Web_Data,$A18,COLUMN(L$1))=0,\"\",INDEX(Web_Data,$A18,COLUMN(L$1))))","v":""},{"$f":"IF($A18=\"\",\"\",IF(INDEX(Web_Data,$A18,COLUMN(M$1))=0,\"\",INDEX(Web_Data,$A18,COLUMN(M$1))))","v":""}]
[{"$f":"IF(ROWS($5:19)>ROWS(Web_Data),\"\",ROWS($5:19))","v":15},"2025-05-05","KB","01",null,null,null,null,null,null,null,null,null,null,null,null,null,null,null,null,null,null,null,null,null,null,null,null,null,null,null,"KB01-250505",{"$f":"IF($A19=\"\",\"\",IF(INDEX(Web_Data,$A19,COLUMN(A$1))=0,\"\",INDEX(Web_Data,$A19,COLUMN(A$1))))","v":"15-ขนมปังชนิดแผ่น(480กรัม)"},{"$f":"IF($A19=\"\",\"\",IF(INDEX(Web_Data,$A19,COLUMN(B$1))=0,\"\",INDEX(Web_Data,$A19,COLUMN(B$1))))","v":""},{"$f":"IF($A19=\"\",\"\",IF(INDEX(Web_Data,$A19,COLUMN(C$1))=0,\"\",INDEX(Web_Data,$A19,COLUMN(C$1))))","v":""},{"$f":"IF($A19=\"\",\"\",IF(INDEX(Web_Data,$A19,COLUMN(D$1))=0,\"\",INDEX(Web_Data,$A19,COLUMN(D$1))))","v":""},{"$f":"IF($A19=\"\",\"\",IF(INDEX(Web_Data,$A19,COLUMN(E$1))=0,\"\",INDEX(Web_Data,$A19,COLUMN(E$1))))","v":""},{"$f":"IF($A19=\"\",\"\",IF(INDEX(Web_Data,$A19,COLUMN(F$1))=0,\"\",INDEX(Web_Data,$A19,COLUMN(F$1))))","v":""},{"$f":"IF($A19=\"\",\"\",IF(INDEX(Web_Data,$A19,COLUMN(G$1))=0,\"\",INDEX(Web_Data,$A19,COLUMN(G$1))))","v":""},{"$f":"IF($A19=\"\",\"\",IF(INDEX(Web_Data,$A19,COLUMN(H$1))=0,\"\",INDEX(Web_Data,$A19,COLUMN(H$1))))","v":""},{"$f":"IF($A19=\"\",\"\",IF(INDEX(Web_Data,$A19,COLUMN(I$1))=0,\"\",INDEX(Web_Data,$A19,COLUMN(I$1))))","v":""},{"$f":"IF($A19=\"\",\"\",IF(INDEX(Web_Data,$A19,COLUMN(J$1))=0,\"\",INDEX(Web_Data,$A19,COLUMN(J$1))))","v":""},{"$f":"IF($A19=\"\",\"\",IF(INDEX(Web_Data,$A19,COLUMN(K$1))=0,\"\",INDEX(Web_Data,$A19,COLUMN(K$1))))","v":""},{"$f":"IF($A19=\"\",\"\",IF(INDEX(Web_Data,$A19,COLUMN(L$1))=0,\"\",INDEX(Web_Data,$A19,COLUMN(L$1))))","v":""},{"$f":"IF($A19=\"\",\"\",IF(INDEX(Web_Data,$A19,COLUMN(M$1))=0,\"\",INDEX(Web_Data,$A19,COLUMN(M$1))))","v":""}]
[{"$f":"IF(ROWS($5:20)>ROWS(Web_Data),\"\",ROWS($5:20))","v":16},"2025-05-05","KB","01",null,null,null,null,null,null,null,null,null,null,null,null,null,null,null,null,null,null,null,null,null,null,null,null,null,null,null,"KB01-250505",{"$f":"IF($A20=\"\",\"\",IF(INDEX(Web_Data,$A20,COLUMN(A$1))=0,\"\",INDEX(Web_Data,$A20,COLUMN(A$1))))","v":"16-โมจิไส้ถั่ว"},{"$f":"IF($A20=\"\",\"\",IF(INDEX(Web_Data,$A20,COLUMN(B$1))=0,\"\",INDEX(Web_Data,$A20,COLUMN(B$1))))","v":""},{"$f":"IF($A20=\"\",\"\",IF(INDEX(Web_Data,$A20,COLUMN(C$1))=0,\"\",INDEX(Web_Data,$A20,COLUMN(C$1))))","v":""},{"$f":"IF($A20=\"\",\"\",IF(INDEX(Web_Data,$A20,COLUMN(D$1))=0,\"\",INDEX(Web_Data,$A20,COLUMN(D$1))))","v":""},{"$f":"IF($A20=\"\",\"\",IF(INDEX(Web_Data,$A20,COLUMN(E$1))=0,\"\",INDEX(Web_Data,$A20,COLUMN(E$1))))","v":""},{"$f":"IF($A20=\"\",\"\",IF(INDEX(Web_Data,$A20,COLUMN(F$1))=0,\"\",INDEX(Web_Data,$A20,COLUMN(F$1))))","v":""},{"$f":"IF($A20=\"\",\"\",IF(INDEX(Web_Data,$A20,COLUMN(G$1))=0,\"\",INDEX(Web_Data,$A20,COLUMN(G$1))))","v":""},{"$f":"IF($A20=\"\",\"\",IF(INDEX(Web_Data,$A20,COLUMN(H$1))=0,\"\",INDEX(Web_Data,$A20,COLUMN(H$1))))","v":""},{"$f":"IF($A20=\"\",\"\",IF(INDEX(Web_Data,$A20,COLUMN(I$1))=0,\"\",INDEX(Web_Data,$A20,COLUMN(I$1))))","v":""},{"$f":"IF($A20=\"\",\"\",IF(INDEX(Web_Data,$A20,COLUMN(J$1))=0,\"\",INDEX(Web_Data,$A20,COLUMN(J$1))))","v":""},{"$f":"IF($A20=\"\",\"\",IF(INDEX(Web_Data,$A20,COLUMN(K$1))=0,\"\",INDEX(Web_Data,$A20,COLUMN(K$1))))","v":""},{"$f":"IF($A20=\"\",\"\",IF(INDEX(Web_Data,$A20,COLUMN(L$1))=0,\"\",INDEX(Web_Data,$A20,COLUMN(L$1))))","v":""},{"$f":"IF($A20=\"\",\"\",IF(INDEX(Web_Data,$A20,COLUMN(M$1))=0,\"\",INDEX(Web_Data,$A20,COLUMN(M$1))))","v":""}]
[{"$f":"IF(ROWS($5:21)>ROWS(Web_Data),\"\",ROWS($5:21))","v":17},"2025-05-05","KB","01",null,null,null,null,null,null,null,null,null,null,null,null,null,null,null,null,null,null,null,null,null,null,null,null,null,null,null,"KB01-250505",{"$f":"IF($A21=\"\",\"\",IF(INDEX(Web_Data,$A21,COLUMN(A$1))=0,\"\",INDEX(Web_Data,$A21,COLUMN(A$1))))","v":"17-โมจิไส้เผือก"},{"$f":"IF($A21=\"\",\"\",IF(INDEX(Web_Data,$A21,COLUMN(B$1))=0,\"\",INDEX(Web_Data,$A21,COLUMN(B$1))))","v":""},{"$f":"IF($A21=\"\",\"\",IF(INDEX(Web_Data,$A21,COLUMN(C$1))=0,\"\",INDEX(Web_Data,$A21,COLUMN(C$1))))","v":""},{"$f":"IF($A21=\"\",\"\",IF(INDEX(Web_Data,$A21,COLUMN(D$1))=0,\"\",INDEX(Web_Data,$A21,COLUMN(D$1))))","v":""},{"$f":"IF($A21=\"\",\"\",IF(INDEX(Web_Data,$A21,COLUMN(E$1))=0,\"\",INDEX(Web_Data,$A21,COLUMN(E$1))))","v":""},{"$f":"IF($A21=\"\",\"\",IF(INDEX(Web_Data,$A21,COLUMN(F$1))=0,\"\",INDEX(Web_Data,$A21,COLUMN(F$1))))","v":""},{"$f":"IF($A21=\"\",\"\",IF(INDEX(Web_Data,$A21,COLUMN(G$1))=0,\"\",INDEX(Web_Data,$A21,COLUMN(G$1))))","v":""},{"$f":"IF($A21=\"\",\"\",IF(INDEX(Web_Data,$A21,COLUMN(H$1))=0,\"\",INDEX(Web_Data,$A21,COLUMN(H$1))))","v":""},{"$f":"IF($A21=\"\",\"\",IF(INDEX(Web_Data,$A21,COLUMN(I$1))=0,\"\",INDEX(Web_Data,$A21,COLUMN(I$1))))","v":""},{"$f":"IF($A21=\"\",\"\",IF(INDEX(Web_Data,$A21,COLUMN(J$1))=0,\"\",INDEX(Web_Data,$A21,COLUMN(J$1))))","v":""},{"$f":"IF($A21=\"\",\"\",IF(INDEX(Web_Data,$A21,COLUMN(K$1))=0,\"\",INDEX(Web_Data,$A21,COLUMN(K$1))))","v":""},{"$f":"IF($A21=\"\",\"\",IF(INDEX(Web_Data,$A21,COLUMN(L$1))=0,\"\",INDEX(Web_Data,$A21,COLUMN(L$1))))","v":""},{"$f":"IF($A21=\"\",\"\",IF(INDEX(Web_Data,$A21,COLUMN(M$1))=0,\"\",INDEX(Web_Data,$A21,COLUMN(M$1))))","v":""}]
[{"$f":"IF(ROWS($5:22)>ROWS(Web_Data),\"\",ROWS($5:22))","v":18},"2025-05-05","KB","01",null,null,null,null,null,null,null,null,null,null,null,null,null,null,null,null,null,null,null,null,null,null,null,null,null,null,null,"KB01-250505",{"$f":"IF($A22=\"\",\"\",IF(INDEX(Web_Data,$A22,COLUMN(A$1))=0,\"\",INDEX(Web_Data,$A22,COLUMN(A$1))))","v":"18-โมจิไส้ถั่วไข่เค็ม"},{"$f":"IF($A22=\"\",\"\",IF(INDEX(Web_Data,$A22,COLUMN(B$1))=0,\"\",INDEX(Web_Data,$A22,COLUMN(B$1))))","v":""},{"$f":"IF($A22=\"\",\"\",IF(INDEX(Web_Data,$A22,COLUMN(C$1))=0,\"\",INDEX(Web_Data,$A22,COLUMN(C$1))))","v":""},{"$f":"IF($A22=\"\",\"\",IF(INDEX(Web_Data,$A22,COLUMN(D$1))=0,\"\",INDEX(Web_Data,$A22,COLUMN(D$1))))","v":""},{"$f":"IF($A22=\"\",\"\",IF(INDEX(Web_Data,$A22,COLUMN(E$1))=0,\"\",INDEX(Web_Data,$A22,COLUMN(E$1))))","v":""},{"$f":"IF($A22=\"\",\"\",IF(INDEX(Web_Data,$A22,COLUMN(F$1))=0,\"\",INDEX(Web_Data,$A22,COLUMN(F$1))))","v":""},{"$f":"IF($A22=\"\",\"\",IF(INDEX(Web_Data,$A22,COLUMN(G$1))=0,\"\",INDEX(Web_Data,$A22,COLUMN(G$1))))","v":""},{"$f":"IF($A22=\"\",\"\",IF(INDEX(Web_Data,$A22,COLUMN(H$1))=0,\"\",INDEX(Web_Data,$A22,COLUMN(H$1))))","v":""},{"$f":"IF($A22=\"\",\"\",IF(INDEX(Web_Data,$A22,COLUMN(I$1))=0,\"\",INDEX(Web_Data,$A22,COLUMN(I$1))))","v":""},{"$f":"IF($A22=\"\",\"\",IF(INDEX(Web_Data,$A22,COLUMN(J$1))=0,\"\",INDEX(Web_Data,$A22,COLUMN(J$1))))","v":""},{"$f":"IF($A22=\"\",\"\",IF(INDEX(Web_Data,$A22,COLUMN(K$1))=0,\"\",INDEX(Web_Data,$A22,COLUMN(K$1))))","v":""},{"$f":"IF($A22=\"\",\"\",IF(INDEX(Web_Data,$A22,COLUMN(L$1))=0,\"\",INDEX(Web_Data,$A22,COLUMN(L$1))))","v":""},{"$f":"IF($A22=\"\",\"\",IF(INDEX(Web_Data,$A22,COLUMN(M$1))=0,\"\",INDEX(Web_Data,$A22,COLUMN(M$1))))","v":""}]
[{"$f":"IF(ROWS($5:23)>ROWS(Web_Data),\"\",ROWS($5:23))","v":19},"2025-05-05","KB","01",null,null,null,null,null,null,null,null,null,null,null,null,null,null,null,null,null,null,null,null,null,null,null,null,null,null,null,"KB01-250505",{"$f":"IF($A23=\"\",\"\",IF(INDEX(Web_Data,$A23,COLUMN(A$1))=0,\"\",INDEX(Web_Data,$A23,COLUMN(A$1))))","v":"19-ขนมปังพิซซ่า"},{"$f":"IF($A23=\"\",\"\",IF(INDEX(Web_Data,$A23,COLUMN(B$1))=0,\"\",INDEX(Web_Data,$A23,COLUMN(B$1))))","v":""},{"$f":"IF($A23=\"\",\"\",IF(INDEX(Web_Data,$A23,COLUMN(C$1))=0,\"\",INDEX(Web_Data,$A23,COLUMN(C$1))))","v":""},{"$f":"IF($A23=\"\",\"\",IF(INDEX(Web_Data,$A23,COLUMN(D$1))=0,\"\",INDEX(Web_Data,$A23,COLUMN(D$1))))","v":""},{"$f":"IF($A23=\"\",\"\",IF(INDEX(Web_Data,$A23,COLUMN(E$1))=0,\"\",INDEX(Web_Data,$A23,COLUMN(E$1))))","v":""},{"$f":"IF($A23=\"\",\"\",IF(INDEX(Web_Data,$A23,COLUMN(F$1))=0,\"\",INDEX(Web_Data,$A23,COLUMN(F$1))))","v":""},{"$f":"IF($A23=\"\",\"\",IF(INDEX(Web_Data,$A23,COLUMN(G$1))=0,\"\",INDEX(Web_Data,$A23,COLUMN(G$1))))","v":""},{"$f":"IF($A23=\"\",\"\",IF(INDEX(Web_Data,$A23,COLUMN(H$1))=0,\"\",INDEX(Web_Data,$A23,COLUMN(H$1))))","v":""},{"$f":"IF($A23=\"\",\"\",IF(INDEX(Web_Data,$A23,COLUMN(I$1))=0,\"\",INDEX(Web_Data,$A23,COLUMN(I$1))))","v":""},{"$f":"IF($A23=\"\",\"\",IF(INDEX(Web_Data,$A23,COLUMN(J$1))=0,\"\",INDEX(Web_Data,$A23,COLUMN(J$1))))","v":""},{"$f":"IF($A23=\"\",\"\",IF(INDEX(Web_Data,$A23,COLUMN(K$1))=0,\"\",INDEX(Web_Data,$A23,COLUMN(K$1))))","v":""},{"$f":"IF($A23=\"\",\"\",IF(INDEX(Web_Data,$A23,COLUMN(L$1))=0,\"\",INDEX(Web_Data,$A23,COLUMN(L$1))))","v":""},{"$f":"IF($A23=\"\",\"\",IF(INDEX(Web_Data,$A23,COLUMN(M$1))=0,\"\",INDEX(Web_Data,$A23,COLUMN(M$1))))","v":""}]
[{"$f":"IF(ROWS($5:24)>ROWS(Web_Data),\"\",ROWS($5:24))","v":20},"2025-05-05","KB","01",null,null,null,null,null,null,null,null,null,null,null,null,null,null,null,null,null,null,null,null,null,null,null,null,null,null,null,"KB01-250505",{"$f":"IF($A24=\"\",\"\",IF(INDEX(Web_Data,$A24,COLUMN(A$1))=0,\"\",INDEX(Web_Data,$A24,COLUMN(A$1))))","v":"20-ขนมปังพิซซ่าปูอัดแฮม"},{"$f":"IF($A24=\"\",\"\",IF(INDEX(Web_Data,$A24,COLUMN(B$1))=0,\"\",INDEX(Web_Data,$A24,COLUMN(B$1))))","v":""},{"$f":"IF($A24=\"\",\"\",IF(INDEX(Web_Data,$A24,COLUMN(C$1))=0,\"\",INDEX(Web_Data,$A24,COLUMN(C$1))))","v":""},{"$f":"IF($A24=\"\",\"\",IF(INDEX(Web_Data,$A24,COLUMN(D$1))=0,\"\",INDEX(Web_Data,$A24,COLUMN(D$1))))","v":""},{"$f":"IF($A24=\"\",\"\",IF(INDEX(Web_Data,$A24,COLUMN(E$1))=0,\"\",INDEX(Web_Data,$A24,COLUMN(E$1))))","v":""},{"$f":"IF($A24=\"\",\"\",IF(INDEX(Web_Data,$A24,COLUMN(F$1))=0,\"\",INDEX(Web_Data,$A24,COLUMN(F$1))))","v":""},{"$f":"IF($A24=\"\",\"\",IF(INDEX(Web_Data,$A24,COLUMN(G$1))=0,\"\",INDEX(Web_Data,$A24,COLUMN(G$1))))","v":""},{"$f":"IF($A24=\"\",\"\",IF(INDEX(Web_Data,$A24,COLUMN(H$1))=0,\"\",INDEX(Web_Data,$A24,COLUMN(H$1))))","v":""},{"$f":"IF($A24=\"\",\"\",IF(INDEX(Web_Data,$A24,COLUMN(I$1))=0,\"\",INDEX(Web_Data,$A24,COLUMN(I$1))))","v":""},{"$f":"IF($A24=\"\",\"\",IF(INDEX(Web_Data,$A24,COLUMN(J$1))=0,\"\",INDEX(Web_Data,$A24,COLUMN(J$1))))","v":""},{"$f":"IF($A24=\"\",\"\",IF(INDEX(Web_Data,$A24,COLUMN(K$1))=0,\"\",INDEX(Web_Data,$A24,COLUMN(K$1))))","v":""},{"$f":"IF($A24=\"\",\"\",IF(INDEX(Web_Data,$A24,COLUMN(L$1))=0,\"\",INDEX(Web_Data,$A24,COLUMN(L$1))))","v":""},{"$f":"IF($A24=\"\",\"\",IF(INDEX(Web_Data,$A24,COLUMN(M$1))=0,\"\",INDEX(Web_Data,$A24,COLUMN(M$1))))","v":""}]
[{"$f":"IF(ROWS($5:25)>ROWS(Web_Data),\"\",ROWS($5:25))","v":21},"2025-05-05","KB","01",null,null,null,null,null,null,null,null,null,null,null,null,null,null,null,null,null,null,null,null,null,null,null,null,null,null,null,"KB01-250505",{"$f":"IF($A25=\"\",\"\",IF(INDEX(Web_Data,$A25,COLUMN(A$1))=0,\"\",INDEX(Web_Data,$A25,COLUMN(A$1))))","v":"21-ขนมปังไส้กรอก"},{"$f":"IF($A25=\"\",\"\",IF(INDEX(Web_Data,$A25,COLUMN(B$1))=0,\"\",INDEX(Web_Data,$A25,COLUMN(B$1))))","v":""},{"$f":"IF($A25=\"\",\"\",IF(INDEX(Web_Data,$A25,COLUMN(C$1))=0,\"\",INDEX(Web_Data,$A25,COLUMN(C$1))))","v":""},{"$f":"IF($A25=\"\",\"\",IF(INDEX(Web_Data,$A25,COLUMN(D$1))=0,\"\",INDEX(Web_Data,$A25,COLUMN(D$1))))","v":""},{"$f":"IF($A25=\"\",\"\",IF(INDEX(Web_Data,$A25,COLUMN(E$1))=0,\"\",INDEX(Web_Data,$A25,COLUMN(E$1))))","v":""},{"$f":"IF($A25=\"\",\"\",IF(INDEX(Web_Data,$A25,COLUMN(F$1))=0,\"\",INDEX(Web_Data,$A25,COLUMN(F$1))))","v":""},{"$f":"IF($A25=\"\",\"\",IF(INDEX(Web_Data,$A25,COLUMN(G$1))=0,\"\",INDEX(Web_Data,$A25,COLUMN(G$1))))","v":""},{"$f":"IF($A25=\"\",\"\",IF(INDEX(Web_Data,$A25,COLUMN(H$1))=0,\"\",INDEX(Web_Data,$A25,COLUMN(H$1))))","v":""},{"$f":"IF($A25=\"\",\"\",IF(INDEX(Web_Data,$A25,COLUMN(I$1))=0,\"\",INDEX(Web_Data,$A25,COLUMN(I$1))))","v":""},{"$f":"IF($A25=\"\",\"\",IF(INDEX(Web_Data,$A25,COLUMN(J$1))=0,\"\",INDEX(Web_Data,$A25,COLUMN(J$1))))","v":""},{"$f":"IF($A25=\"\",\"\",IF(INDEX(Web_Data,$A25,COLUMN(K$1))=0,\"\",INDEX(Web_Data,$A25,COLUMN(K$1))))","v":""},{"$f":"IF($A25=\"\",\"\",IF(INDEX(Web_Data,$A25,COLUMN(L$1))=0,\"\",INDEX(Web_Data,$A25,COLUMN(L$1))))","v":""},{"$f":"IF($A25=\"\",\"\",IF(INDEX(Web_Data,$A25,COLUMN(M$1))=0,\"\",INDEX(Web_Data,$A25,COLUMN(M$1))))","v":""}]
[{"$f":"IF(ROWS($5:26)>ROWS(Web_Data),\"\",ROWS($5:26))","v":22},"2025-05-05","KB","01",null,null,null,null,null,null,null,null,null,null,null,null,null,null,null,null,null,null,null,null,null,null,null,null,null,null,null,"KB01-250505",{"$f":"IF($A26=\"\",\"\",IF(INDEX(Web_Data,$A26,COLUMN(A$1))=0,\"\",INDEX(Web_Data,$A26,COLUMN(A$1))))","v":"22-ขนมก้านบัว"},{"$f":"IF($A26=\"\",\"\",IF(INDEX(Web_Data,$A26,COLUMN(B$1))=0,\"\",INDEX(Web_Data,$A26,COLUMN(B$1))))","v":""},{"$f":"IF($A26=\"\",\"\",IF(INDEX(Web_Data,$A26,COLUMN(C$1))=0,\"\",INDEX(Web_Data,$A26,COLUMN(C$1))))","v":""},{"$f":"IF($A26=\"\",\"\",IF(INDEX(Web_Data,$A26,COLUMN(D$1))=0,\"\",INDEX(Web_Data,$A26,COLUMN(D$1))))","v":""},{"$f":"IF($A26=\"\",\"\",IF(INDEX(Web_Data,$A26,COLUMN(E$1))=0,\"\",INDEX(Web_Data,$A26,COLUMN(E$1))))","v":""},{"$f":"IF($A26=\"\",\"\",IF(INDEX(Web_Data,$A26,COLUMN(F$1))=0,\"\",INDEX(Web_Data,$A26,COLUMN(F$1))))","v":""},{"$f":"IF($A26=\"\",\"\",IF(INDEX(Web_Data,$A26,COLUMN(G$1))=0,\"\",INDEX(Web_Data,$A26,COLUMN(G$1))))","v":""},{"$f":"IF($A26=\"\",\"\",IF(INDEX(Web_Data,$A26,COLUMN(H$1))=0,\"\",INDEX(Web_Data,$A26,COLUMN(H$1))))","v":""},{"$f":"IF($A26=\"\",\"\",IF(INDEX(Web_Data,$A26,COLUMN(I$1))=0,\"\",INDEX(Web_Data,$A26,COLUMN(I$1))))","v":""},{"$f":"IF($A26=\"\",\"\",IF(INDEX(Web_Data,$A26,COLUMN(J$1))=0,\"\",INDEX(Web_Data,$A26,COLUMN(J$1))))","v":""},{"$f":"IF($A26=\"\",\"\",IF(INDEX(Web_Data,$A26,COLUMN(K$1))=0,\"\",INDEX(Web_Data,$A26,COLUMN(K$1))))","v":""},{"$f":"IF($A26=\"\",\"\",IF(INDEX(Web_Data,$A26,COLUMN(L$1))=0,\"\",INDEX(Web_Data,$A26,COLUMN(L$1))))","v":""},{"$f":"IF($A26=\"\",\"\",IF(INDEX(Web_Data,$A26,COLUMN(M$1))=0,\"\",INDEX(Web_Data,$A26,COLUMN(M$1))))","v":""}]
[{"$f":"IF(ROWS($5:27)>ROWS(Web_Data),\"\",ROWS($5:27))","v":23},"2025-05-05","KB","01",null,null,null,null,null,null,null,null,null,null,null,null,null,null,null,null,null,null,null,null,null,null,null,null,null,null,null,"KB01-250505",{"$f":"IF($A27=\"\",\"\",IF(INDEX(Web_Data,$A27,COLUMN(A$1))=0,\"\",INDEX(Web_Data,$A27,COLUMN(A$1))))","v":"23-พายสับปะรด"},{"$f":"IF($A27=\"\",\"\",IF(INDEX(Web_Data,$A27,COLUMN(B$1))=0,\"\",INDEX(Web_Data,$A27,COLUMN(B$1))))","v":""},{"$f":"IF($A27=\"\",\"\",IF(INDEX(Web_Data,$A27,COLUMN(C$1))=0,\"\",INDEX(Web_Data,$A27,COLUMN(C$1))))","v":""},{"$f":"IF($A27=\"\",\"\",IF(INDEX(Web_Data,$A27,COLUMN(D$1))=0,\"\",INDEX(Web_Data,$A27,COLUMN(D$1))))","v":""},{"$f":"IF($A27=\"\",\"\",IF(INDEX(Web_Data,$A27,COLUMN(E$1))=0,\"\",INDEX(Web_Data,$A27,COLUMN(E$1))))","v":""},{"$f":"IF($A27=\"\",\"\",IF(INDEX(Web_Data,$A27,COLUMN(F$1))=0,\"\",INDEX(Web_Data,$A27,COLUMN(F$1))))","v":""},{"$f":"IF($A27=\"\",\"\",IF(INDEX(Web_Data,$A27,COLUMN(G$1))=0,\"\",INDEX(Web_Data,$A27,COLUMN(G$1))))","v":""},{"$f":"IF($A27=\"\",\"\",IF(INDEX(Web_Data,$A27,COLUMN(H$1))=0,\"\",INDEX(Web_Data,$A27,COLUMN(H$1))))","v":""},{"$f":"IF($A27=\"\",\"\",IF(INDEX(Web_Data,$A27,COLUMN(I$1))=0,\"\",INDEX(Web_Data,$A27,COLUMN(I$1))))","v":""},{"$f":"IF($A27=\"\",\"\",IF(INDEX(Web_Data,$A27,COLUMN(J$1))=0,\"\",INDEX(Web_Data,$A27,COLUMN(J$1))))","v":""},{"$f":"IF($A27=\"\",\"\",IF(INDEX(Web_Data,$A27,COLUMN(K$1))=0,\"\",INDEX(Web_Data,$A27,COLUMN(K$1))))","v":""},{"$f":"IF($A27=\"\",\"\",IF(INDEX(Web_Data,$A27,COLUMN(L$1))=0,\"\",INDEX(Web_Data,$A27,COLUMN(L$1))))","v":""},{"$f":"IF($A27=\"\",\"\",IF(INDEX(Web_Data,$A27,COLUMN(M$1))=0,\"\",INDEX(Web_Data,$A27,COLUMN(M$1))))","v":""}]
[{"$f":"IF(ROWS($5:28)>ROWS(Web_Data),\"\",ROWS($5:28))","v":24},"2025-05-05","KB","01",null,null,null,null,null,null,null,null,null,null,null,null,null,null,null,null,null,null,null,null,null,null,null,null,null,null,null,"KB01-250505",{"$f":"IF($A28=\"\",\"\",IF(INDEX(Web_Data,$A28,COLUMN(A$1))=0,\"\",INDEX(Web_Data,$A28,COLUMN(A$1))))","v":"24-พายไส้มะพร้าว"},{"$f":"IF($A28=\"\",\"\",IF(INDEX(Web_Data,$A28,COLUMN(B$1))=0,\"\",INDEX(Web_Data,$A28,COLUMN(B$1))))","v":""},{"$f":"IF($A28=\"\",\"\",IF(INDEX(Web_Data,$A28,COLUMN(C$1))=0,\"\",INDEX(Web_Data,$A28,COLUMN(C$1))))","v":""},{"$f":"IF($A28=\"\",\"\",IF(INDEX(Web_Data,$A28,COLUMN(D$1))=0,\"\",INDEX(Web_Data,$A28,COLUMN(D$1))))","v":""},{"$f":"IF($A28=\"\",\"\",IF(INDEX(Web_Data,$A28,COLUMN(E$1))=0,\"\",INDEX(Web_Data,$A28,COLUMN(E$1))))","v":""},{"$f":"IF($A28=\"\",\"\",IF(INDEX(Web_Data,$A28,COLUMN(F$1))=0,\"\",INDEX(Web_Data,$A28,COLUMN(F$1))))","v":""},{"$f":"IF($A28=\"\",\"\",IF(INDEX(Web_Data,$A28,COLUMN(G$1))=0,\"\",INDEX(Web_Data,$A28,COLUMN(G$1))))","v":""},{"$f":"IF($A28=\"\",\"\",IF(INDEX(Web_Data,$A28,COLUMN(H$1))=0,\"\",INDEX(Web_Data,$A28,COLUMN(H$1))))","v":""},{"$f":"IF($A28=\"\",\"\",IF(INDEX(Web_Data,$A28,COLUMN(I$1))=0,\"\",INDEX(Web_Data,$A28,COLUMN(I$1))))","v":""},{"$f":"IF($A28=\"\",\"\",IF(INDEX(Web_Data,$A28,COLUMN(J$1))=0,\"\",INDEX(Web_Data,$A28,COLUMN(J$1))))","v":""},{"$f":"IF($A28=\"\",\"\",IF(INDEX(Web_Data,$A28,COLUMN(K$1))=0,\"\",INDEX(Web_Data,$A28,COLUMN(K$1))))","v":""},{"$f":"IF($A28=\"\",\"\",IF(INDEX(Web_Data,$A28,COLUMN(L$1))=0,\"\",INDEX(Web_Data,$A28,COLUMN(L$1))))","v":""},{"$f":"IF($A28=\"\",\"\",IF(INDEX(Web_Data,$A28,COLUMN(M$1))=0,\"\",INDEX(Web_Data,$A28,COLUMN(M$1))))","v":""}]
[{"$f":"IF(ROWS($5:29)>ROWS(Web_Data),\"\",ROWS($5:29))","v":25},"2025-05-05","KB","01",null,null,null,null,null,null,null,null,null,null,null,null,null,null,null,null,null,null,null,null,null,null,null,null,null,null,null,"KB01-250505",{"$f":"IF($A29=\"\",\"\",IF(INDEX(Web_Data,$A29,COLUMN(A$1))=0,\"\",INDEX(Web_Data,$A29,COLUMN(A$1))))","v":"25-ขนมปังโรลมันเทศ"},{"$f":"IF($A29=\"\",\"\",IF(INDEX(Web_Data,$A29,COLUMN(B$1))=0,\"\",INDEX(Web_Data,$A29,COLUMN(B$1))))","v":""},{"$f":"IF($A29=\"\",\"\",IF(INDEX(Web_Data,$A29,COLUMN(C$1))=0,\"\",INDEX(Web_Data,$A29,COLUMN(C$1))))","v":""},{"$f":"IF($A29=\"\",\"\",IF(INDEX(Web_Data,$A29,COLUMN(D$1))=0,\"\",INDEX(Web_Data,$A29,COLUMN(D$1))))","v":""},{"$f":"IF($A29=\"\",\"\",IF(INDEX(Web_Data,$A29,COLUMN(E$1))=0,\"\",INDEX(Web_Data,$A29,COLUMN(E$1))))","v":""},{"$f":"IF($A29=\"\",\"\",IF(INDEX(Web_Data,$A29,COLUMN(F$1))=0,\"\",INDEX(Web_Data,$A29,COLUMN(F$1))))","v":""},{"$f":"IF($A29=\"\",\"\",IF(INDEX(Web_Data,$A29,COLUMN(G$1))=0,\"\",INDEX(Web_Data,$A29,COLUMN(G$1))))","v":""},{"$f":"IF($A29=\"\",\"\",IF(INDEX(Web_Data,$A29,COLUMN(H$1))=0,\"\",INDEX(Web_Data,$A29,COLUMN(H$1))))","v":""},{"$f":"IF($A29=\"\",\"\",IF(INDEX(Web_Data,$A29,COLUMN(I$1))=0,\"\",INDEX(Web_Data,$A29,COLUMN(I$1))))","v":""},{"$f":"IF($A29=\"\",\"\",IF(INDEX(Web_Data,$A29,COLUMN(J$1))=0,\"\",INDEX(Web_Data,$A29,COLUMN(J$1))))","v":""},{"$f":"IF($A29=\"\",\"\",IF(INDEX(Web_Data,$A29,COLUMN(K$1))=0,\"\",INDEX(Web_Data,$A29,COLUMN(K$1))))","v":""},{"$f":"IF($A29=\"\",\"\",IF(INDEX(Web_Data,$A29,COLUMN(L$1))=0,\"\",INDEX(Web_Data,$A29,COLUMN(L$1))))","v":""},{"$f":"IF($A29=\"\",\"\",IF(INDEX(Web_Data,$A29,COLUMN(M$1))=0,\"\",INDEX(Web_Data,$A29,COLUMN(M$1))))","v":""}]
[{"$f":"IF(ROWS($5:30)>ROWS(Web_Data),\"\",ROWS($5:30))","v":26},"2025-05-05","KB","01",null,null,null,null,null,null,null,null,null,null,null,null,null,null,null,null,null,null,null,null,null,null,null,null,null,null,null,"KB01-250505",{"$f":"IF($A30=\"\",\"\",IF(INDEX(Web_Data,$A30,COLUMN(A$1))=0,\"\",INDEX(Web_Data,$A30,COLUMN(A$1))))","v":"26-ขนมปังไส้ครีมสลัดน้ำพริกเผา"},{"$f":"IF($A30=\"\",\"\",IF(INDEX(Web_Data,$A30,COLUMN(B$1))=0,\"\",INDEX(Web_Data,$A30,COLUMN(B$1))))","v":""},{"$f":"IF($A30=\"\",\"\",IF(INDEX(Web_Data,$A30,COLUMN(C$1))=0,\"\",INDEX(Web_Data,$A30,COLUMN(C$1))))","v":""},{"$f":"IF($A30=\"\",\"\",IF(INDEX(Web_Data,$A30,COLUMN(D$1))=0,\"\",INDEX(Web_Data,$A30,COLUMN(D$1))))","v":""},{"$f":"IF($A30=\"\",\"\",IF(INDEX(Web_Data,$A30,COLUMN(E$1))=0,\"\",INDEX(Web_Data,$A30,COLUMN(E$1))))","v":""},{"$f":"IF($A30=\"\",\"\",IF(INDEX(Web_Data,$A30,COLUMN(F$1))=0,\"\",INDEX(Web_Data,$A30,COLUMN(F$1))))","v":""},{"$f":"IF($A30=\"\",\"\",IF(INDEX(Web_Data,$A30,COLUMN(G$1))=0,\"\",INDEX(Web_Data,$A30,COLUMN(G$1))))","v":""},{"$f":"IF($A30=\"\",\"\",IF(INDEX(Web_Data,$A30,COLUMN(H$1))=0,\"\",INDEX(Web_Data,$A30,COLUMN(H$1))))","v":""},{"$f":"IF($A30=\"\",\"\",IF(INDEX(Web_Data,$A30,COLUMN(I$1))=0,\"\",INDEX(Web_Data,$A30,COLUMN(I$1))))","v":""},{"$f":"IF($A30=\"\",\"\",IF(INDEX(Web_Data,$A30,COLUMN(J$1))=0,\"\",INDEX(Web_Data,$A30,COLUMN(J$1))))","v":""},{"$f":"IF($A30=\"\",\"\",IF(INDEX(Web_Data,$A30,COLUMN(K$1))=0,\"\",INDEX(Web_Data,$A30,COLUMN(K$1))))","v":""},{"$f":"IF($A30=\"\",\"\",IF(INDEX(Web_Data,$A30,COLUMN(L$1))=0,\"\",INDEX(Web_Data,$A30,COLUMN(L$1))))","v":""},{"$f":"IF($A30=\"\",\"\",IF(INDEX(Web_Data,$A30,COLUMN(M$1))=0,\"\",INDEX(Web_Data,$A30,COLUMN(M$1))))","v":""}]
[{"$f":"IF(ROWS($5:31)>ROWS(Web_Data),\"\",ROWS($5:31))","v":27},"2025-05-05","KB","01",null,null,null,null,null,null,null,null,null,null,null,null,null,null,null,null,null,null,null,null,null,null,null,null,null,null,null,"KB01-250505",{"$f":"IF($A31=\"\",\"\",IF(INDEX(Web_Data,$A31,COLUMN(A$1))=0,\"\",INDEX(Web_Data,$A31,COLUMN(A$1))))","v":"27-ขนมปังไส้สังขยาไข่"},{"$f":"IF($A31=\"\",\"\",IF(INDEX(Web_Data,$A31,COLUMN(B$1))=0,\"\",INDEX(Web_Data,$A31,COLUMN(B$1))))","v":""},{"$f":"IF($A31=\"\",\"\",IF(INDEX(Web_Data,$A31,COLUMN(C$1))=0,\"\",INDEX(Web_Data,$A31,COLUMN(C$1))))","v":""},{"$f":"IF($A31=\"\",\"\",IF(INDEX(Web_Data,$A31,COLUMN(D$1))=0,\"\",INDEX(Web_Data,$A31,COLUMN(D$1))))","v":""},{"$f":"IF($A31=\"\",\"\",IF(INDEX(Web_Data,$A31,COLUMN(E$1))=0,\"\",INDEX(Web_Data,$A31,COLUMN(E$1))))","v":""},{"$f":"IF($A31=\"\",\"\",IF(INDEX(Web_Data,$A31,COLUMN(F$1))=0,\"\",INDEX(Web_Data,$A31,COLUMN(F$1))))","v":""},{"$f":"IF($A31=\"\",\"\",IF(INDEX(Web_Data,$A31,COLUMN(G$1))=0,\"\",INDEX(Web_Data,$A31,COLUMN(G$1))))","v":""},{"$f":"IF($A31=\"\",\"\",IF(INDEX(Web_Data,$A31,COLUMN(H$1))=0,\"\",INDEX(Web_Data,$A31,COLUMN(H$1))))","v":""},{"$f":"IF($A31=\"\",\"\",IF(INDEX(Web_Data,$A31,COLUMN(I$1))=0,\"\",INDEX(Web_Data,$A31,COLUMN(I$1))))","v":""},{"$f":"IF($A31=\"\",\"\",IF(INDEX(Web_Data,$A31,COLUMN(J$1))=0,\"\",INDEX(Web_Data,$A31,COLUMN(J$1))))","v":""},{"$f":"IF($A31=\"\",\"\",IF(INDEX(Web_Data,$A31,COLUMN(K$1))=0,\"\",INDEX(Web_Data,$A31,COLUMN(K$1))))","v":""},{"$f":"IF($A31=\"\",\"\",IF(INDEX(Web_Data,$A31,COLUMN(L$1))=0,\"\",INDEX(Web_Data,$A31,COLUMN(L$1))))","v":""},{"$f":"IF($A31=\"\",\"\",IF(INDEX(Web_Data,$A31,COLUMN(M$1))=0,\"\",INDEX(Web_Data,$A31,COLUMN(M$1))))","v":""}]
[{"$f":"IF(ROWS($5:32)>ROWS(Web_Data),\"\",ROWS($5:32))","v":28},"2025-05-05","KB","01",null,null,null,null,null,null,null,null,null,null,null,null,null,null,null,null,null,null,null,null,null,null,null,null,null,null,null,"KB01-250505",{"$f":"IF($A32=\"\",\"\",IF(INDEX(Web_Data,$A32,COLUMN(A$1))=0,\"\",INDEX(Web_Data,$A32,COLUMN(A$1))))","v":"28-ขนมปังไส้สังขยามะพร้าว"},{"$f":"IF($A32=\"\",\"\",IF(INDEX(Web_Data,$A32,COLUMN(B$1))=0,\"\",INDEX(Web_Data,$A32,COLUMN(B$1))))","v":""},{"$f":"IF($A32=\"\",\"\",IF(INDEX(Web_Data,$A32,COLUMN(C$1))=0,\"\",INDEX(Web_Data,$A32,COLUMN(C$1))))","v":""},{"$f":"IF($A32=\"\",\"\",IF(INDEX(Web_Data,$A32,COLUMN(D$1))=0,\"\",INDEX(Web_Data,$A32,COLUMN(D$1))))","v":""},{"$f":"IF($A32=\"\",\"\",IF(INDEX(Web_Data,$A32,COLUMN(E$1))=0,\"\",INDEX(Web_Data,$A32,COLUMN(E$1))))","v":""},{"$f":"IF($A32=\"\",\"\",IF(INDEX(Web_Data,$A32,COLUMN(F$1))=0,\"\",INDEX(Web_Data,$A32,COLUMN(F$1))))","v":""},{"$f":"IF($A32=\"\",\"\",IF(INDEX(Web_Data,$A32,COLUMN(G$1))=0,\"\",INDEX(Web_Data,$A32,COLUMN(G$1))))","v":""},{"$f":"IF($A32=\"\",\"\",IF(INDEX(Web_Data,$A32,COLUMN(H$1))=0,\"\",INDEX(Web_Data,$A32,COLUMN(H$1))))","v":""},{"$f":"IF($A32=\"\",\"\",IF(INDEX(Web_Data,$A32,COLUMN(I$1))=0,\"\",INDEX(Web_Data,$A32,COLUMN(I$1))))","v":""},{"$f":"IF($A32=\"\",\"\",IF(INDEX(Web_Data,$A32,COLUMN(J$1))=0,\"\",INDEX(Web_Data,$A32,COLUMN(J$1))))","v":""},{"$f":"IF($A32=\"\",\"\",IF(INDEX(Web_Data,$A32,COLUMN(K$1))=0,\"\",INDEX(Web_Data,$A32,COLUMN(K$1))))","v":""},{"$f":"IF($A32=\"\",\"\",IF(INDEX(Web_Data,$A32,COLUMN(L$1))=0,\"\",INDEX(Web_Data,$A32,COLUMN(L$1))))","v":""},{"$f":"IF($A32=\"\",\"\",IF(INDEX(Web_Data,$A32,COLUMN(M$1))=0,\"\",INDEX(Web_Data,$A32,COLUMN(M$1))))","v":""}]
[{"$f":"IF(ROWS($5:33)>ROWS(Web_Data),\"\",ROWS($5:33))","v":29},"2025-05-05","KB","01",null,null,null,null,null,null,null,null,null,null,null,null,null,null,null,null,null,null,null,null,null,null,null,null,null,null,null,"KB01-250505",{"$f":"IF($A33=\"\",\"\",IF(INDEX(Web_Data,$A33,COLUMN(A$1))=0,\"\",INDEX(Web_Data,$A33,COLUMN(A$1))))","v":"29-ขนมปังไส้ครีมชาไทย"},{"$f":"IF($A33=\"\",\"\",IF(INDEX(Web_Data,$A33,COLUMN(B$1))=0,\"\",INDEX(Web_Data,$A33,COLUMN(B$1))))","v":""},{"$f":"IF($A33=\"\",\"\",IF(INDEX(Web_Data,$A33,COLUMN(C$1))=0,\"\",INDEX(Web_Data,$A33,COLUMN(C$1))))","v":""},{"$f":"IF($A33=\"\",\"\",IF(INDEX(Web_Data,$A33,COLUMN(D$1))=0,\"\",INDEX(Web_Data,$A33,COLUMN(D$1))))","v":""},{"$f":"IF($A33=\"\",\"\",IF(INDEX(Web_Data,$A33,COLUMN(E$1))=0,\"\",INDEX(Web_Data,$A33,COLUMN(E$1))))","v":""},{"$f":"IF($A33=\"\",\"\",IF(INDEX(Web_Data,$A33,COLUMN(F$1))=0,\"\",INDEX(Web_Data,$A33,COLUMN(F$1))))","v":""},{"$f":"IF($A33=\"\",\"\",IF(INDEX(Web_Data,$A33,COLUMN(G$1))=0,\"\",INDEX(Web_Data,$A33,COLUMN(G$1))))","v":""},{"$f":"IF($A33=\"\",\"\",IF(INDEX(Web_Data,$A33,COLUMN(H$1))=0,\"\",INDEX(Web_Data,$A33,COLUMN(H$1))))","v":""},{"$f":"IF($A33=\"\",\"\",IF(INDEX(Web_Data,$A33,COLUMN(I$1))=0,\"\",INDEX(Web_Data,$A33,COLUMN(I$1))))","v":""},{"$f":"IF($A33=\"\",\"\",IF(INDEX(Web_Data,$A33,COLUMN(J$1))=0,\"\",INDEX(Web_Data,$A33,COLUMN(J$1))))","v":""},{"$f":"IF($A33=\"\",\"\",IF(INDEX(Web_Data,$A33,COLUMN(K$1))=0,\"\",INDEX(Web_Data,$A33,COLUMN(K$1))))","v":""},{"$f":"IF($A33=\"\",\"\",IF(INDEX(Web_Data,$A33,COLUMN(L$1))=0,\"\",INDEX(Web_Data,$A33,COLUMN(L$1))))","v":""},{"$f":"IF($A33=\"\",\"\",IF(INDEX(Web_Data,$A33,COLUMN(M$1))=0,\"\",INDEX(Web_Data,$A33,COLUMN(M$1))))","v":""}]
[{"$f":"IF(ROWS($5:34)>ROWS(Web_Data),\"\",ROWS($5:34))","v":30},"2025-05-05","KB","01",null,null,null,null,null,null,null,null,null,null,null,null,null,null,null,null,null,null,null,null,null,null,null,null,null,null,null,"KB01-250505",{"$f":"IF($A34=\"\",\"\",IF(INDEX(Web_Data,$A34,COLUMN(A$1))=0,\"\",INDEX(Web_Data,$A34,COLUMN(A$1))))","v":"30-ขนมปังโรลมันม่วง"},{"$f":"IF($A34=\"\",\"\",IF(INDEX(Web_Data,$A34,COLUMN(B$1))=0,\"\",INDEX(Web_Data,$A34,COLUMN(B$1))))","v":""},{"$f":"IF($A34=\"\",\"\",IF(INDEX(Web_Data,$A34,COLUMN(C$1))=0,\"\",INDEX(Web_Data,$A34,COLUMN(C$1))))","v":""},{"$f":"IF($A34=\"\",\"\",IF(INDEX(Web_Data,$A34,COLUMN(D$1))=0,\"\",INDEX(Web_Data,$A34,COLUMN(D$1))))","v":""},{"$f":"IF($A34=\"\",\"\",IF(INDEX(Web_Data,$A34,COLUMN(E$1))=0,\"\",INDEX(Web_Data,$A34,COLUMN(E$1))))","v":""},{"$f":"IF($A34=\"\",\"\",IF(INDEX(Web_Data,$A34,COLUMN(F$1))=0,\"\",INDEX(Web_Data,$A34,COLUMN(F$1))))","v":""},{"$f":"IF($A34=\"\",\"\",IF(INDEX(Web_Data,$A34,COLUMN(G$1))=0,\"\",INDEX(Web_Data,$A34,COLUMN(G$1))))","v":""},{"$f":"IF($A34=\"\",\"\",IF(INDEX(Web_Data,$A34,COLUMN(H$1))=0,\"\",INDEX(Web_Data,$A34,COLUMN(H$1))))","v":""},{"$f":"IF($A34=\"\",\"\",IF(INDEX(Web_Data,$A34,COLUMN(I$1))=0,\"\",INDEX(Web_Data,$A34,COLUMN(I$1))))","v":""},{"$f":"IF($A34=\"\",\"\",IF(INDEX(Web_Data,$A34,COLUMN(J$1))=0,\"\",INDEX(Web_Data,$A34,COLUMN(J$1))))","v":""},{"$f":"IF($A34=\"\",\"\",IF(INDEX(Web_Data,$A34,COLUMN(K$1))=0,\"\",INDEX(Web_Data,$A34,COLUMN(K$1))))","v":""},{"$f":"IF($A34=\"\",\"\",IF(INDEX(Web_Data,$A34,COLUMN(L$1))=0,\"\",INDEX(Web_Data,$A34,COLUMN(L$1))))","v":""},{"$f":"IF($A34=\"\",\"\",IF(INDEX(Web_Data,$A34,COLUMN(M$1))=0,\"\",INDEX(Web_Data,$A34,COLUMN(M$1))))","v":""}]
[{"$f":"IF(ROWS($5:35)>ROWS(Web_Data),\"\",ROWS($5:35))","v":31},"2025-05-05","KB","01",null,null,null,null,null,null,null,null,null,null,null,null,null,null,null,null,null,null,null,null,null,null,null,null,null,null,null,"KB01-250505",{"$f":"IF($A35=\"\",\"\",IF(INDEX(Web_Data,$A35,COLUMN(A$1))=0,\"\",INDEX(Web_Data,$A35,COLUMN(A$1))))","v":"31-ขนมปังโรลช็อกโกแลต"},{"$f":"IF($A35=\"\",\"\",IF(INDEX(Web_Data,$A35,COLUMN(B$1))=0,\"\",INDEX(Web_Data,$A35,COLUMN(B$1))))","v":""},{"$f":"IF($A35=\"\",\"\",IF(INDEX(Web_Data,$A35,COLUMN(C$1))=0,\"\",INDEX(Web_Data,$A35,COLUMN(C$1))))","v":""},{"$f":"IF($A35=\"\",\"\",IF(INDEX(Web_Data,$A35,COLUMN(D$1))=0,\"\",INDEX(Web_Data,$A35,COLUMN(D$1))))","v":""},{"$f":"IF($A35=\"\",\"\",IF(INDEX(Web_Data,$A35,COLUMN(E$1))=0,\"\",INDEX(Web_Data,$A35,COLUMN(E$1))))","v":""},{"$f":"IF($A35=\"\",\"\",IF(INDEX(Web_Data,$A35,COLUMN(F$1))=0,\"\",INDEX(Web_Data,$A35,COLUMN(F$1))))","v":""},{"$f":"IF($A35=\"\",\"\",IF(INDEX(Web_Data,$A35,COLUMN(G$1))=0,\"\",INDEX(Web_Data,$A35,COLUMN(G$1))))","v":""},{"$f":"IF($A35=\"\",\"\",IF(INDEX(Web_Data,$A35,COLUMN(H$1))=0,\"\",INDEX(Web_Data,$A35,COLUMN(H$1))))","v":""},{"$f":"IF($A35=\"\",\"\",IF(INDEX(Web_Data,$A35,COLUMN(I$1))=0,\"\",INDEX(Web_Data,$A35,COLUMN(I$1))))","v":""},{"$f":"IF($A35=\"\",\"\",IF(INDEX(Web_Data,$A35,COLUMN(J$1))=0,\"\",INDEX(Web_Data,$A35,COLUMN(J$1))))","v":""},{"$f":"IF($A35=\"\",\"\",IF(INDEX(Web_Data,$A35,COLUMN(K$1))=0,\"\",INDEX(Web_Data,$A35,COLUMN(K$1))))","v":""},{"$f":"IF($A35=\"\",\"\",IF(INDEX(Web_Data,$A35,COLUMN(L$1))=0,\"\",INDEX(Web_Data,$A35,COLUMN(L$1))))","v":""},{"$f":"IF($A35=\"\",\"\",IF(INDEX(Web_Data,$A35,COLUMN(M$1))=0,\"\",INDEX(Web_Data,$A35,COLUMN(M$1))))","v":""}]
[{"$f":"IF(ROWS($5:36)>ROWS(Web_Data),\"\",ROWS($5:36))","v":32},"2025-05-05","KB","01",null,null,null,null,null,null,null,null,null,null,null,null,null,null,null,null,null,null,null,null,null,null,null,null,null,null,null,"KB01-250505",{"$f":"IF($A36=\"\",\"\",IF(INDEX(Web_Data,$A36,COLUMN(A$1))=0,\"\",INDEX(Web_Data,$A36,COLUMN(A$1))))","v":"32-ขนมปังชนิดแผ่น(155กรัม)"},{"$f":"IF($A36=\"\",\"\",IF(INDEX(Web_Data,$A36,COLUMN(B$1))=0,\"\",INDEX(Web_Data,$A36,COLUMN(B$1))))","v":""},{"$f":"IF($A36=\"\",\"\",IF(INDEX(Web_Data,$A36,COLUMN(C$1))=0,\"\",INDEX(Web_Data,$A36,COLUMN(C$1))))","v":""},{"$f":"IF($A36=\"\",\"\",IF(INDEX(Web_Data,$A36,COLUMN(D$1))=0,\"\",INDEX(Web_Data,$A36,COLUMN(D$1))))","v":""},{"$f":"IF($A36=\"\",\"\",IF(INDEX(Web_Data,$A36,COLUMN(E$1))=0,\"\",INDEX(Web_Data,$A36,COLUMN(E$1))))","v":""},{"$f":"IF($A36=\"\",\"\",IF(INDEX(Web_Data,$A36,COLUMN(F$1))=0,\"\",INDEX(Web_Data,$A36,COLUMN(F$1))))","v":""},{"$f":"IF($A36=\"\",\"\",IF(INDEX(Web_Data,$A36,COLUMN(G$1))=0,\"\",INDEX(Web_Data,$A36,COLUMN(G$1))))","v":""},{"$f":"IF($A36=\"\",\"\",IF(INDEX(Web_Data,$A36,COLUMN(H$1))=0,\"\",INDEX(Web_Data,$A36,COLUMN(H$1))))","v":""},{"$f":"IF($A36=\"\",\"\",IF(INDEX(Web_Data,$A36,COLUMN(I$1))=0,\"\",INDEX(Web_Data,$A36,COLUMN(I$1))))","v":""},{"$f":"IF($A36=\"\",\"\",IF(INDEX(Web_Data,$A36,COLUMN(J$1))=0,\"\",INDEX(Web_Data,$A36,COLUMN(J$1))))","v":""},{"$f":"IF($A36=\"\",\"\",IF(INDEX(Web_Data,$A36,COLUMN(K$1))=0,\"\",INDEX(Web_Data,$A36,COLUMN(K$1))))","v":""},{"$f":"IF($A36=\"\",\"\",IF(INDEX(Web_Data,$A36,COLUMN(L$1))=0,\"\",INDEX(Web_Data,$A36,COLUMN(L$1))))","v":""},{"$f":"IF($A36=\"\",\"\",IF(INDEX(Web_Data,$A36,COLUMN(M$1))=0,\"\",INDEX(Web_Data,$A36,COLUMN(M$1))))","v":""}]
[{"$f":"IF(ROWS($5:37)>ROWS(Web_Data),\"\",ROWS($5:37))","v":33},"2025-05-05","KB","01",null,null,null,null,null,null,null,null,null,null,null,null,null,null,null,null,null,null,null,null,null,null,null,null,null,null,null,"KB01-250505",{"$f":"IF($A37=\"\",\"\",IF(INDEX(Web_Data,$A37,COLUMN(A$1))=0,\"\",INDEX(Web_Data,$A37,COLUMN(A$1))))","v":"33-ขนมปังโรลเผือก"},{"$f":"IF($A37=\"\",\"\",IF(INDEX(Web_Data,$A37,COLUMN(B$1))=0,\"\",INDEX(Web_Data,$A37,COLUMN(B$1))))","v":""},{"$f":"IF($A37=\"\",\"\",IF(INDEX(Web_Data,$A37,COLUMN(C$1))=0,\"\",INDEX(Web_Data,$A37,COLUMN(C$1))))","v":""},{"$f":"IF($A37=\"\",\"\",IF(INDEX(Web_Data,$A37,COLUMN(D$1))=0,\"\",INDEX(Web_Data,$A37,COLUMN(D$1))))","v":""},{"$f":"IF($A37=\"\",\"\",IF(INDEX(Web_Data,$A37,COLUMN(E$1))=0,\"\",INDEX(Web_Data,$A37,COLUMN(E$1))))","v":""},{"$f":"IF($A37=\"\",\"\",IF(INDEX(Web_Data,$A37,COLUMN(F$1))=0,\"\",INDEX(Web_Data,$A37,COLUMN(F$1))))","v":""},{"$f":"IF($A37=\"\",\"\",IF(INDEX(Web_Data,$A37,COLUMN(G$1))=0,\"\",INDEX(Web_Data,$A37,COLUMN(G$1))))","v":""},{"$f":"IF($A37=\"\",\"\",IF(INDEX(Web_Data,$A37,COLUMN(H$1))=0,\"\",INDEX(Web_Data,$A37,COLUMN(H$1))))","v":""},{"$f":"IF($A37=\"\",\"\",IF(INDEX(Web_Data,$A37,COLUMN(I$1))=0,\"\",INDEX(Web_Data,$A37,COLUMN(I$1))))","v":""},{"$f":"IF($A37=\"\",\"\",IF(INDEX(Web_Data,$A37,COLUMN(J$1))=0,\"\",INDEX(Web_Data,$A37,COLUMN(J$1))))","v":""},{"$f":"IF($A37=\"\",\"\",IF(INDEX(Web_Data,$A37,COLUMN(K$1))=0,\"\",INDEX(Web_Data,$A37,COLUMN(K$1))))","v":""},{"$f":"IF($A37=\"\",\"\",IF(INDEX(Web_Data,$A37,COLUMN(L$1))=0,\"\",INDEX(Web_Data,$A37,COLUMN(L$1))))","v":""},{"$f":"IF($A37=\"\",\"\",IF(INDEX(Web_Data,$A37,COLUMN(M$1))=0,\"\",INDEX(Web_Data,$A37,COLUMN(M$1))))","v":""}]
[{"$f":"IF(ROWS($5:38)>ROWS(Web_Data),\"\",ROWS($5:38))","v":34},"2025-05-05","KB","01",null,null,null,null,null,null,null,null,null,null,null,null,null,null,null,null,null,null,null,null,null,null,null,null,null,null,null,"KB01-250505",{"$f":"IF($A38=\"\",\"\",IF(INDEX(Web_Data,$A38,COLUMN(A$1))=0,\"\",INDEX(Web_Data,$A38,COLUMN(A$1))))","v":"34-ขนมปังไก่หยองน้ำสลัด Mini"},{"$f":"IF($A38=\"\",\"\",IF(INDEX(Web_Data,$A38,COLUMN(B$1))=0,\"\",INDEX(Web_Data,$A38,COLUMN(B$1))))","v":""},{"$f":"IF($A38=\"\",\"\",IF(INDEX(Web_Data,$A38,COLUMN(C$1))=0,\"\",INDEX(Web_Data,$A38,COLUMN(C$1))))","v":""},{"$f":"IF($A38=\"\",\"\",IF(INDEX(Web_Data,$A38,COLUMN(D$1))=0,\"\",INDEX(Web_Data,$A38,COLUMN(D$1))))","v":""},{"$f":"IF($A38=\"\",\"\",IF(INDEX(Web_Data,$A38,COLUMN(E$1))=0,\"\",INDEX(Web_Data,$A38,COLUMN(E$1))))","v":""},{"$f":"IF($A38=\"\",\"\",IF(INDEX(Web_Data,$A38,COLUMN(F$1))=0,\"\",INDEX(Web_Data,$A38,COLUMN(F$1))))","v":""},{"$f":"IF($A38=\"\",\"\",IF(INDEX(Web_Data,$A38,COLUMN(G$1))=0,\"\",INDEX(Web_Data,$A38,COLUMN(G$1))))","v":""},{"$f":"IF($A38=\"\",\"\",IF(INDEX(Web_Data,$A38,COLUMN(H$1))=0,\"\",INDEX(Web_Data,$A38,COLUMN(H$1))))","v":""},{"$f":"IF($A38=\"\",\"\",IF(INDEX(Web_Data,$A38,COLUMN(I$1))=0,\"\",INDEX(Web_Data,$A38,COLUMN(I$1))))","v":""},{"$f":"IF($A38=\"\",\"\",IF(INDEX(Web_Data,$A38,COLUMN(J$1))=0,\"\",INDEX(Web_Data,$A38,COLUMN(J$1))))","v":""},{"$f":"IF($A38=\"\",\"\",IF(INDEX(Web_Data,$A38,COLUMN(K$1))=0,\"\",INDEX(Web_Data,$A38,COLUMN(K$1))))","v":""},{"$f":"IF($A38=\"\",\"\",IF(INDEX(Web_Data,$A38,COLUMN(L$1))=0,\"\",INDEX(Web_Data,$A38,COLUMN(L$1))))","v":""},{"$f":"IF($A38=\"\",\"\",IF(INDEX(Web_Data,$A38,COLUMN(M$1))=0,\"\",INDEX(Web_Data,$A38,COLUMN(M$1))))","v":""}]
[{"$f":"IF(ROWS($5:39)>ROWS(Web_Data),\"\",ROWS($5:39))","v":35},"2025-05-05","KB","01",null,null,null,null,null,null,null,null,null,null,null,null,null,null,null,null,null,null,null,null,null,null,null,null,null,null,null,"KB01-250505",{"$f":"IF($A39=\"\",\"\",IF(INDEX(Web_Data,$A39,COLUMN(A$1))=0,\"\",INDEX(Web_Data,$A39,COLUMN(A$1))))","v":"35-ขนมปังไส้ช็อกโกแลต"},{"$f":"IF($A39=\"\",\"\",IF(INDEX(Web_Data,$A39,COLUMN(B$1))=0,\"\",INDEX(Web_Data,$A39,COLUMN(B$1))))","v":""},{"$f":"IF($A39=\"\",\"\",IF(INDEX(Web_Data,$A39,COLUMN(C$1))=0,\"\",INDEX(Web_Data,$A39,COLUMN(C$1))))","v":""},{"$f":"IF($A39=\"\",\"\",IF(INDEX(Web_Data,$A39,COLUMN(D$1))=0,\"\",INDEX(Web_Data,$A39,COLUMN(D$1))))","v":""},{"$f":"IF($A39=\"\",\"\",IF(INDEX(Web_Data,$A39,COLUMN(E$1))=0,\"\",INDEX(Web_Data,$A39,COLUMN(E$1))))","v":""},{"$f":"IF($A39=\"\",\"\",IF(INDEX(Web_Data,$A39,COLUMN(F$1))=0,\"\",INDEX(Web_Data,$A39,COLUMN(F$1))))","v":""},{"$f":"IF($A39=\"\",\"\",IF(INDEX(Web_Data,$A39,COLUMN(G$1))=0,\"\",INDEX(Web_Data,$A39,COLUMN(G$1))))","v":""},{"$f":"IF($A39=\"\",\"\",IF(INDEX(Web_Data,$A39,COLUMN(H$1))=0,\"\",INDEX(Web_Data,$A39,COLUMN(H$1))))","v":""},{"$f":"IF($A39=\"\",\"\",IF(INDEX(Web_Data,$A39,COLUMN(I$1))=0,\"\",INDEX(Web_Data,$A39,COLUMN(I$1))))","v":""},{"$f":"IF($A39=\"\",\"\",IF(INDEX(Web_Data,$A39,COLUMN(J$1))=0,\"\",INDEX(Web_Data,$A39,COLUMN(J$1))))","v":""},{"$f":"IF($A39=\"\",\"\",IF(INDEX(Web_Data,$A39,COLUMN(K$1))=0,\"\",INDEX(Web_Data,$A39,COLUMN(K$1))))","v":""},{"$f":"IF($A39=\"\",\"\",IF(INDEX(Web_Data,$A39,COLUMN(L$1))=0,\"\",INDEX(Web_Data,$A39,COLUMN(L$1))))","v":""},{"$f":"IF($A39=\"\",\"\",IF(INDEX(Web_Data,$A39,COLUMN(M$1))=0,\"\",INDEX(Web_Data,$A39,COLUMN(M$1))))","v":""}]
[{"$f":"IF(ROWS($5:40)>ROWS(Web_Data),\"\",ROWS($5:40))","v":36},"2025-05-05","KB","01",null,null,null,null,null,null,null,null,null,null,null,null,null,null,null,null,null,null,null,null,null,null,null,null,null,null,null,"KB01-250505",{"$f":"IF($A40=\"\",\"\",IF(INDEX(Web_Data,$A40,COLUMN(A$1))=0,\"\",INDEX(Web_Data,$A40,COLUMN(A$1))))","v":"36-ขนมปังไส้ครีมสังขยาไข่"},{"$f":"IF($A40=\"\",\"\",IF(INDEX(Web_Data,$A40,COLUMN(B$1))=0,\"\",INDEX(Web_Data,$A40,COLUMN(B$1))))","v":""},{"$f":"IF($A40=\"\",\"\",IF(INDEX(Web_Data,$A40,COLUMN(C$1))=0,\"\",INDEX(Web_Data,$A40,COLUMN(C$1))))","v":""},{"$f":"IF($A40=\"\",\"\",IF(INDEX(Web_Data,$A40,COLUMN(D$1))=0,\"\",INDEX(Web_Data,$A40,COLUMN(D$1))))","v":""},{"$f":"IF($A40=\"\",\"\",IF(INDEX(Web_Data,$A40,COLUMN(E$1))=0,\"\",INDEX(Web_Data,$A40,COLUMN(E$1))))","v":""},{"$f":"IF($A40=\"\",\"\",IF(INDEX(Web_Data,$A40,COLUMN(F$1))=0,\"\",INDEX(Web_Data,$A40,COLUMN(F$1))))","v":""},{"$f":"IF($A40=\"\",\"\",IF(INDEX(Web_Data,$A40,COLUMN(G$1))=0,\"\",INDEX(Web_Data,$A40,COLUMN(G$1))))","v":""},{"$f":"IF($A40=\"\",\"\",IF(INDEX(Web_Data,$A40,COLUMN(H$1))=0,\"\",INDEX(Web_Data,$A40,COLUMN(H$1))))","v":""},{"$f":"IF($A40=\"\",\"\",IF(INDEX(Web_Data,$A40,COLUMN(I$1))=0,\"\",INDEX(Web_Data,$A40,COLUMN(I$1))))","v":""},{"$f":"IF($A40=\"\",\"\",IF(INDEX(Web_Data,$A40,COLUMN(J$1))=0,\"\",INDEX(Web_Data,$A40,COLUMN(J$1))))","v":""},{"$f":"IF($A40=\"\",\"\",IF(INDEX(Web_Data,$A40,COLUMN(K$1))=0,\"\",INDEX(Web_Data,$A40,COLUMN(K$1))))","v":""},{"$f":"IF($A40=\"\",\"\",IF(INDEX(Web_Data,$A40,COLUMN(L$1))=0,\"\",INDEX(Web_Data,$A40,COLUMN(L$1))))","v":""},{"$f":"IF($A40=\"\",\"\",IF(INDEX(Web_Data,$A40,COLUMN(M$1))=0,\"\",INDEX(Web_Data,$A40,COLUMN(M$1))))","v":""}]
[{"$f":"IF(ROWS($5:41)>ROWS(Web_Data),\"\",ROWS($5:41))","v":37},"2025-05-05","KB","01",null,null,null,null,null,null,null,null,null,null,null,null,null,null,null,null,null,null,null,null,null,null,null,null,null,null,null,"KB01-250505",{"$f":"IF($A41=\"\",\"\",IF(INDEX(Web_Data,$A41,COLUMN(A$1))=0,\"\",INDEX(Web_Data,$A41,COLUMN(A$1))))","v":"37-ขนมปังพิซซ่าฮาวายเอี้ยน"},{"$f":"IF($A41=\"\",\"\",IF(INDEX(Web_Data,$A41,COLUMN(B$1))=0,\"\",INDEX(Web_Data,$A41,COLUMN(B$1))))","v":""},{"$f":"IF($A41=\"\",\"\",IF(INDEX(Web_Data,$A41,COLUMN(C$1))=0,\"\",INDEX(Web_Data,$A41,COLUMN(C$1))))","v":""},{"$f":"IF($A41=\"\",\"\",IF(INDEX(Web_Data,$A41,COLUMN(D$1))=0,\"\",INDEX(Web_Data,$A41,COLUMN(D$1))))","v":""},{"$f":"IF($A41=\"\",\"\",IF(INDEX(Web_Data,$A41,COLUMN(E$1))=0,\"\",INDEX(Web_Data,$A41,COLUMN(E$1))))","v":""},{"$f":"IF($A41=\"\",\"\",IF(INDEX(Web_Data,$A41,COLUMN(F$1))=0,\"\",INDEX(Web_Data,$A41,COLUMN(F$1))))","v":""},{"$f":"IF($A41=\"\",\"\",IF(INDEX(Web_Data,$A41,COLUMN(G$1))=0,\"\",INDEX(Web_Data,$A41,COLUMN(G$1))))","v":""},{"$f":"IF($A41=\"\",\"\",IF(INDEX(Web_Data,$A41,COLUMN(H$1))=0,\"\",INDEX(Web_Data,$A41,COLUMN(H$1))))","v":""},{"$f":"IF($A41=\"\",\"\",IF(INDEX(Web_Data,$A41,COLUMN(I$1))=0,\"\",INDEX(Web_Data,$A41,COLUMN(I$1))))","v":""},{"$f":"IF($A41=\"\",\"\",IF(INDEX(Web_Data,$A41,COLUMN(J$1))=0,\"\",INDEX(Web_Data,$A41,COLUMN(J$1))))","v":""},{"$f":"IF($A41=\"\",\"\",IF(INDEX(Web_Data,$A41,COLUMN(K$1))=0,\"\",INDEX(Web_Data,$A41,COLUMN(K$1))))","v":""},{"$f":"IF($A41=\"\",\"\",IF(INDEX(Web_Data,$A41,COLUMN(L$1))=0,\"\",INDEX(Web_Data,$A41,COLUMN(L$1))))","v":""},{"$f":"IF($A41=\"\",\"\",IF(INDEX(Web_Data,$A41,COLUMN(M$1))=0,\"\",INDEX(Web_Data,$A41,COLUMN(M$1))))","v":""}]
[{"$f":"IF(ROWS($5:42)>ROWS(Web_Data),\"\",ROWS($5:42))","v":38},"2025-05-05","KB","01",null,null,null,null,null,null,null,null,null,null,null,null,null,null,null,null,null,null,null,null,null,null,null,null,null,null,null,"KB01-250505",{"$f":"IF($A42=\"\",\"\",IF(INDEX(Web_Data,$A42,COLUMN(A$1))=0,\"\",INDEX(Web_Data,$A42,COLUMN(A$1))))","v":"38-ครัวซองต์หมูหยองน้ำสลัด"},{"$f":"IF($A42=\"\",\"\",IF(INDEX(Web_Data,$A42,COLUMN(B$1))=0,\"\",INDEX(Web_Data,$A42,COLUMN(B$1))))","v":""},{"$f":"IF($A42=\"\",\"\",IF(INDEX(Web_Data,$A42,COLUMN(C$1))=0,\"\",INDEX(Web_Data,$A42,COLUMN(C$1))))","v":""},{"$f":"IF($A42=\"\",\"\",IF(INDEX(Web_Data,$A42,COLUMN(D$1))=0,\"\",INDEX(Web_Data,$A42,COLUMN(D$1))))","v":""},{"$f":"IF($A42=\"\",\"\",IF(INDEX(Web_Data,$A42,COLUMN(E$1))=0,\"\",INDEX(Web_Data,$A42,COLUMN(E$1))))","v":""},{"$f":"IF($A42=\"\",\"\",IF(INDEX(Web_Data,$A42,COLUMN(F$1))=0,\"\",INDEX(Web_Data,$A42,COLUMN(F$1))))","v":""},{"$f":"IF($A42=\"\",\"\",IF(INDEX(Web_Data,$A42,COLUMN(G$1))=0,\"\",INDEX(Web_Data,$A42,COLUMN(G$1))))","v":""},{"$f":"IF($A42=\"\",\"\",IF(INDEX(Web_Data,$A42,COLUMN(H$1))=0,\"\",INDEX(Web_Data,$A42,COLUMN(H$1))))","v":""},{"$f":"IF($A42=\"\",\"\",IF(INDEX(Web_Data,$A42,COLUMN(I$1))=0,\"\",INDEX(Web_Data,$A42,COLUMN(I$1))))","v":""},{"$f":"IF($A42=\"\",\"\",IF(INDEX(Web_Data,$A42,COLUMN(J$1))=0,\"\",INDEX(Web_Data,$A42,COLUMN(J$1))))","v":""},{"$f":"IF($A42=\"\",\"\",IF(INDEX(Web_Data,$A42,COLUMN(K$1))=0,\"\",INDEX(Web_Data,$A42,COLUMN(K$1))))","v":""},{"$f":"IF($A42=\"\",\"\",IF(INDEX(Web_Data,$A42,COLUMN(L$1))=0,\"\",INDEX(Web_Data,$A42,COLUMN(L$1))))","v":""},{"$f":"IF($A42=\"\",\"\",IF(INDEX(Web_Data,$A42,COLUMN(M$1))=0,\"\",INDEX(Web_Data,$A42,COLUMN(M$1))))","v":""}]
[{"$f":"IF(ROWS($5:43)>ROWS(Web_Data),\"\",ROWS($5:43))","v":39},"2025-05-05","KB","01",null,null,null,null,null,null,null,null,null,null,null,null,null,null,null,null,null,null,null,null,null,null,null,null,null,null,null,"KB01-250505",{"$f":"IF($A43=\"\",\"\",IF(INDEX(Web_Data,$A43,COLUMN(A$1))=0,\"\",INDEX(Web_Data,$A43,COLUMN(A$1))))","v":"39-แพนเบรดไส้เผือก"},{"$f":"IF($A43=\"\",\"\",IF(INDEX(Web_Data,$A43,COLUMN(B$1))=0,\"\",INDEX(Web_Data,$A43,COLUMN(B$1))))","v":""},{"$f":"IF($A43=\"\",\"\",IF(INDEX(Web_Data,$A43,COLUMN(C$1))=0,\"\",INDEX(Web_Data,$A43,COLUMN(C$1))))","v":""},{"$f":"IF($A43=\"\",\"\",IF(INDEX(Web_Data,$A43,COLUMN(D$1))=0,\"\",INDEX(Web_Data,$A43,COLUMN(D$1))))","v":""},{"$f":"IF($A43=\"\",\"\",IF(INDEX(Web_Data,$A43,COLUMN(E$1))=0,\"\",INDEX(Web_Data,$A43,COLUMN(E$1))))","v":""},{"$f":"IF($A43=\"\",\"\",IF(INDEX(Web_Data,$A43,COLUMN(F$1))=0,\"\",INDEX(Web_Data,$A43,COLUMN(F$1))))","v":""},{"$f":"IF($A43=\"\",\"\",IF(INDEX(Web_Data,$A43,COLUMN(G$1))=0,\"\",INDEX(Web_Data,$A43,COLUMN(G$1))))","v":""},{"$f":"IF($A43=\"\",\"\",IF(INDEX(Web_Data,$A43,COLUMN(H$1))=0,\"\",INDEX(Web_Data,$A43,COLUMN(H$1))))","v":""},{"$f":"IF($A43=\"\",\"\",IF(INDEX(Web_Data,$A43,COLUMN(I$1))=0,\"\",INDEX(Web_Data,$A43,COLUMN(I$1))))","v":""},{"$f":"IF($A43=\"\",\"\",IF(INDEX(Web_Data,$A43,COLUMN(J$1))=0,\"\",INDEX(Web_Data,$A43,COLUMN(J$1))))","v":""},{"$f":"IF($A43=\"\",\"\",IF(INDEX(Web_Data,$A43,COLUMN(K$1))=0,\"\",INDEX(Web_Data,$A43,COLUMN(K$1))))","v":""},{"$f":"IF($A43=\"\",\"\",IF(INDEX(Web_Data,$A43,COLUMN(L$1))=0,\"\",INDEX(Web_Data,$A43,COLUMN(L$1))))","v":""},{"$f":"IF($A43=\"\",\"\",IF(INDEX(Web_Data,$A43,COLUMN(M$1))=0,\"\",INDEX(Web_Data,$A43,COLUMN(M$1))))","v":""}]
[{"$f":"IF(ROWS($5:44)>ROWS(Web_Data),\"\",ROWS($5:44))","v":40},"2025-05-05","KB","01",null,null,null,null,null,null,null,null,null,null,null,null,null,null,null,null,null,null,null,null,null,null,null,null,null,null,null,"KB01-250505",{"$f":"IF($A44=\"\",\"\",IF(INDEX(Web_Data,$A44,COLUMN(A$1))=0,\"\",INDEX(Web_Data,$A44,COLUMN(A$1))))","v":"40-แพนเบรดไส้ถั่วแดง"},{"$f":"IF($A44=\"\",\"\",IF(INDEX(Web_Data,$A44,COLUMN(B$1))=0,\"\",INDEX(Web_Data,$A44,COLUMN(B$1))))","v":""},{"$f":"IF($A44=\"\",\"\",IF(INDEX(Web_Data,$A44,COLUMN(C$1))=0,\"\",INDEX(Web_Data,$A44,COLUMN(C$1))))","v":""},{"$f":"IF($A44=\"\",\"\",IF(INDEX(Web_Data,$A44,COLUMN(D$1))=0,\"\",INDEX(Web_Data,$A44,COLUMN(D$1))))","v":""},{"$f":"IF($A44=\"\",\"\",IF(INDEX(Web_Data,$A44,COLUMN(E$1))=0,\"\",INDEX(Web_Data,$A44,COLUMN(E$1))))","v":""},{"$f":"IF($A44=\"\",\"\",IF(INDEX(Web_Data,$A44,COLUMN(F$1))=0,\"\",INDEX(Web_Data,$A44,COLUMN(F$1))))","v":""},{"$f":"IF($A44=\"\",\"\",IF(INDEX(Web_Data,$A44,COLUMN(G$1))=0,\"\",INDEX(Web_Data,$A44,COLUMN(G$1))))","v":""},{"$f":"IF($A44=\"\",\"\",IF(INDEX(Web_Data,$A44,COLUMN(H$1))=0,\"\",INDEX(Web_Data,$A44,COLUMN(H$1))))","v":""},{"$f":"IF($A44=\"\",\"\",IF(INDEX(Web_Data,$A44,COLUMN(I$1))=0,\"\",INDEX(Web_Data,$A44,COLUMN(I$1))))","v":""},{"$f":"IF($A44=\"\",\"\",IF(INDEX(Web_Data,$A44,COLUMN(J$1))=0,\"\",INDEX(Web_Data,$A44,COLUMN(J$1))))","v":""},{"$f":"IF($A44=\"\",\"\",IF(INDEX(Web_Data,$A44,COLUMN(K$1))=0,\"\",INDEX(Web_Data,$A44,COLUMN(K$1))))","v":""},{"$f":"IF($A44=\"\",\"\",IF(INDEX(Web_Data,$A44,COLUMN(L$1))=0,\"\",INDEX(Web_Data,$A44,COLUMN(L$1))))","v":""},{"$f":"IF($A44=\"\",\"\",IF(INDEX(Web_Data,$A44,COLUMN(M$1))=0,\"\",INDEX(Web_Data,$A44,COLUMN(M$1))))","v":""}]
[{"$f":"IF(ROWS($5:45)>ROWS(Web_Data),\"\",ROWS($5:45))","v":41},"2025-05-05","KB","01",null,null,null,null,null,null,null,null,null,null,null,null,null,null,null,null,null,null,null,null,null,null,null,null,null,null,null,"KB01-250505",{"$f":"IF($A45=\"\",\"\",IF(INDEX(Web_Data,$A45,COLUMN(A$1))=0,\"\",INDEX(Web_Data,$A45,COLUMN(A$1))))","v":"41-ขนมปังกรอบเนยน้ำตาล(30กรัม)"},{"$f":"IF($A45=\"\",\"\",IF(INDEX(Web_Data,$A45,COLUMN(B$1))=0,\"\",INDEX(Web_Data,$A45,COLUMN(B$1))))","v":""},{"$f":"IF($A45=\"\",\"\",IF(INDEX(Web_Data,$A45,COLUMN(C$1))=0,\"\",INDEX(Web_Data,$A45,COLUMN(C$1))))","v":""},{"$f":"IF($A45=\"\",\"\",IF(INDEX(Web_Data,$A45,COLUMN(D$1))=0,\"\",INDEX(Web_Data,$A45,COLUMN(D$1))))","v":""},{"$f":"IF($A45=\"\",\"\",IF(INDEX(Web_Data,$A45,COLUMN(E$1))=0,\"\",INDEX(Web_Data,$A45,COLUMN(E$1))))","v":""},{"$f":"IF($A45=\"\",\"\",IF(INDEX(Web_Data,$A45,COLUMN(F$1))=0,\"\",INDEX(Web_Data,$A45,COLUMN(F$1))))","v":""},{"$f":"IF($A45=\"\",\"\",IF(INDEX(Web_Data,$A45,COLUMN(G$1))=0,\"\",INDEX(Web_Data,$A45,COLUMN(G$1))))","v":""},{"$f":"IF($A45=\"\",\"\",IF(INDEX(Web_Data,$A45,COLUMN(H$1))=0,\"\",INDEX(Web_Data,$A45,COLUMN(H$1))))","v":""},{"$f":"IF($A45=\"\",\"\",IF(INDEX(Web_Data,$A45,COLUMN(I$1))=0,\"\",INDEX(Web_Data,$A45,COLUMN(I$1))))","v":""},{"$f":"IF($A45=\"\",\"\",IF(INDEX(Web_Data,$A45,COLUMN(J$1))=0,\"\",INDEX(Web_Data,$A45,COLUMN(J$1))))","v":""},{"$f":"IF($A45=\"\",\"\",IF(INDEX(Web_Data,$A45,COLUMN(K$1))=0,\"\",INDEX(Web_Data,$A45,COLUMN(K$1))))","v":""},{"$f":"IF($A45=\"\",\"\",IF(INDEX(Web_Data,$A45,COLUMN(L$1))=0,\"\",INDEX(Web_Data,$A45,COLUMN(L$1))))","v":""},{"$f":"IF($A45=\"\",\"\",IF(INDEX(Web_Data,$A45,COLUMN(M$1))=0,\"\",INDEX(Web_Data,$A45,COLUMN(M$1))))","v":""}]
[{"$f":"IF(ROWS($5:46)>ROWS(Web_Data),\"\",ROWS($5:46))","v":42},"2025-05-05","KB","01",null,null,null,null,null,null,null,null,null,null,null,null,null,null,null,null,null,null,null,null,null,null,null,null,null,null,null,"KB01-250505",{"$f":"IF($A46=\"\",\"\",IF(INDEX(Web_Data,$A46,COLUMN(A$1))=0,\"\",INDEX(Web_Data,$A46,COLUMN(A$1))))","v":"42-ขนมปังชนิดแผ่นโฮลวีต"},{"$f":"IF($A46=\"\",\"\",IF(INDEX(Web_Data,$A46,COLUMN(B$1))=0,\"\",INDEX(Web_Data,$A46,COLUMN(B$1))))","v":""},{"$f":"IF($A46=\"\",\"\",IF(INDEX(Web_Data,$A46,COLUMN(C$1))=0,\"\",INDEX(Web_Data,$A46,COLUMN(C$1))))","v":""},{"$f":"IF($A46=\"\",\"\",IF(INDEX(Web_Data,$A46,COLUMN(D$1))=0,\"\",INDEX(Web_Data,$A46,COLUMN(D$1))))","v":""},{"$f":"IF($A46=\"\",\"\",IF(INDEX(Web_Data,$A46,COLUMN(E$1))=0,\"\",INDEX(Web_Data,$A46,COLUMN(E$1))))","v":""},{"$f":"IF($A46=\"\",\"\",IF(INDEX(Web_Data,$A46,COLUMN(F$1))=0,\"\",INDEX(Web_Data,$A46,COLUMN(F$1))))","v":""},{"$f":"IF($A46=\"\",\"\",IF(INDEX(Web_Data,$A46,COLUMN(G$1))=0,\"\",INDEX(Web_Data,$A46,COLUMN(G$1))))","v":""},{"$f":"IF($A46=\"\",\"\",IF(INDEX(Web_Data,$A46,COLUMN(H$1))=0,\"\",INDEX(Web_Data,$A46,COLUMN(H$1))))","v":""},{"$f":"IF($A46=\"\",\"\",IF(INDEX(Web_Data,$A46,COLUMN(I$1))=0,\"\",INDEX(Web_Data,$A46,COLUMN(I$1))))","v":""},{"$f":"IF($A46=\"\",\"\",IF(INDEX(Web_Data,$A46,COLUMN(J$1))=0,\"\",INDEX(Web_Data,$A46,COLUMN(J$1))))","v":""},{"$f":"IF($A46=\"\",\"\",IF(INDEX(Web_Data,$A46,COLUMN(K$1))=0,\"\",INDEX(Web_Data,$A46,COLUMN(K$1))))","v":""},{"$f":"IF($A46=\"\",\"\",IF(INDEX(Web_Data,$A46,COLUMN(L$1))=0,\"\",INDEX(Web_Data,$A46,COLUMN(L$1))))","v":""},{"$f":"IF($A46=\"\",\"\",IF(INDEX(Web_Data,$A46,COLUMN(M$1))=0,\"\",INDEX(Web_Data,$A46,COLUMN(M$1))))","v":""}]
[{"$f":"IF(ROWS($5:47)>ROWS(Web_Data),\"\",ROWS($5:47))","v":43},"2025-05-05","KB","01",null,null,null,null,null,null,null,null,null,null,null,null,null,null,null,null,null,null,null,null,null,null,null,null,null,null,null,"KB01-250505",{"$f":"IF($A47=\"\",\"\",IF(INDEX(Web_Data,$A47,COLUMN(A$1))=0,\"\",INDEX(Web_Data,$A47,COLUMN(A$1))))","v":"43-เค้กโรลใบเตย"},{"$f":"IF($A47=\"\",\"\",IF(INDEX(Web_Data,$A47,COLUMN(B$1))=0,\"\",INDEX(Web_Data,$A47,COLUMN(B$1))))","v":""},{"$f":"IF($A47=\"\",\"\",IF(INDEX(Web_Data,$A47,COLUMN(C$1))=0,\"\",INDEX(Web_Data,$A47,COLUMN(C$1))))","v":""},{"$f":"IF($A47=\"\",\"\",IF(INDEX(Web_Data,$A47,COLUMN(D$1))=0,\"\",INDEX(Web_Data,$A47,COLUMN(D$1))))","v":""},{"$f":"IF($A47=\"\",\"\",IF(INDEX(Web_Data,$A47,COLUMN(E$1))=0,\"\",INDEX(Web_Data,$A47,COLUMN(E$1))))","v":""},{"$f":"IF($A47=\"\",\"\",IF(INDEX(Web_Data,$A47,COLUMN(F$1))=0,\"\",INDEX(Web_Data,$A47,COLUMN(F$1))))","v":""},{"$f":"IF($A47=\"\",\"\",IF(INDEX(Web_Data,$A47,COLUMN(G$1))=0,\"\",INDEX(Web_Data,$A47,COLUMN(G$1))))","v":""},{"$f":"IF($A47=\"\",\"\",IF(INDEX(Web_Data,$A47,COLUMN(H$1))=0,\"\",INDEX(Web_Data,$A47,COLUMN(H$1))))","v":""},{"$f":"IF($A47=\"\",\"\",IF(INDEX(Web_Data,$A47,COLUMN(I$1))=0,\"\",INDEX(Web_Data,$A47,COLUMN(I$1))))","v":""},{"$f":"IF($A47=\"\",\"\",IF(INDEX(Web_Data,$A47,COLUMN(J$1))=0,\"\",INDEX(Web_Data,$A47,COLUMN(J$1))))","v":""},{"$f":"IF($A47=\"\",\"\",IF(INDEX(Web_Data,$A47,COLUMN(K$1))=0,\"\",INDEX(Web_Data,$A47,COLUMN(K$1))))","v":""},{"$f":"IF($A47=\"\",\"\",IF(INDEX(Web_Data,$A47,COLUMN(L$1))=0,\"\",INDEX(Web_Data,$A47,COLUMN(L$1))))","v":""},{"$f":"IF($A47=\"\",\"\",IF(INDEX(Web_Data,$A47,COLUMN(M$1))=0,\"\",INDEX(Web_Data,$A47,COLUMN(M$1))))","v":""}]
[{"$f":"IF(ROWS($5:48)>ROWS(Web_Data),\"\",ROWS($5:48))","v":44},"2025-05-05","KB","01",null,null,null,null,null,null,null,null,null,null,null,null,null,null,null,null,null,null,null,null,null,null,null,null,null,null,null,"KB01-250505",{"$f":"IF($A48=\"\",\"\",IF(INDEX(Web_Data,$A48,COLUMN(A$1))=0,\"\",INDEX(Web_Data,$A48,COLUMN(A$1))))","v":"44-ขนมโมจิไส้ถั่วดำ"},{"$f":"IF($A48=\"\",\"\",IF(INDEX(Web_Data,$A48,COLUMN(B$1))=0,\"\",INDEX(Web_Data,$A48,COLUMN(B$1))))","v":""},{"$f":"IF($A48=\"\",\"\",IF(INDEX(Web_Data,$A48,COLUMN(C$1))=0,\"\",INDEX(Web_Data,$A48,COLUMN(C$1))))","v":""},{"$f":"IF($A48=\"\",\"\",IF(INDEX(Web_Data,$A48,COLUMN(D$1))=0,\"\",INDEX(Web_Data,$A48,COLUMN(D$1))))","v":""},{"$f":"IF($A48=\"\",\"\",IF(INDEX(Web_Data,$A48,COLUMN(E$1))=0,\"\",INDEX(Web_Data,$A48,COLUMN(E$1))))","v":""},{"$f":"IF($A48=\"\",\"\",IF(INDEX(Web_Data,$A48,COLUMN(F$1))=0,\"\",INDEX(Web_Data,$A48,COLUMN(F$1))))","v":""},{"$f":"IF($A48=\"\",\"\",IF(INDEX(Web_Data,$A48,COLUMN(G$1))=0,\"\",INDEX(Web_Data,$A48,COLUMN(G$1))))","v":""},{"$f":"IF($A48=\"\",\"\",IF(INDEX(Web_Data,$A48,COLUMN(H$1))=0,\"\",INDEX(Web_Data,$A48,COLUMN(H$1))))","v":""},{"$f":"IF($A48=\"\",\"\",IF(INDEX(Web_Data,$A48,COLUMN(I$1))=0,\"\",INDEX(Web_Data,$A48,COLUMN(I$1))))","v":""},{"$f":"IF($A48=\"\",\"\",IF(INDEX(Web_Data,$A48,COLUMN(J$1))=0,\"\",INDEX(Web_Data,$A48,COLUMN(J$1))))","v":""},{"$f":"IF($A48=\"\",\"\",IF(INDEX(Web_Data,$A48,COLUMN(K$1))=0,\"\",INDEX(Web_Data,$A48,COLUMN(K$1))))","v":""},{"$f":"IF($A48=\"\",\"\",IF(INDEX(Web_Data,$A48,COLUMN(L$1))=0,\"\",INDEX(Web_Data,$A48,COLUMN(L$1))))","v":""},{"$f":"IF($A48=\"\",\"\",IF(INDEX(Web_Data,$A48,COLUMN(M$1))=0,\"\",INDEX(Web_Data,$A48,COLUMN(M$1))))","v":""}]
[{"$f":"IF(ROWS($5:49)>ROWS(Web_Data),\"\",ROWS($5:49))","v":45},"2025-05-05","KB","01",null,null,null,null,null,null,null,null,null,null,null,null,null,null,null,null,null,null,null,null,null,null,null,null,null,null,null,"KB01-250505",{"$f":"IF($A49=\"\",\"\",IF(INDEX(Web_Data,$A49,COLUMN(A$1))=0,\"\",INDEX(Web_Data,$A49,COLUMN(A$1))))","v":"45-ครัวซองต์ไส้กรอกชีส"},{"$f":"IF($A49=\"\",\"\",IF(INDEX(Web_Data,$A49,COLUMN(B$1))=0,\"\",INDEX(Web_Data,$A49,COLUMN(B$1))))","v":""},{"$f":"IF($A49=\"\",\"\",IF(INDEX(Web_Data,$A49,COLUMN(C$1))=0,\"\",INDEX(Web_Data,$A49,COLUMN(C$1))))","v":""},{"$f":"IF($A49=\"\",\"\",IF(INDEX(Web_Data,$A49,COLUMN(D$1))=0,\"\",INDEX(Web_Data,$A49,COLUMN(D$1))))","v":""},{"$f":"IF($A49=\"\",\"\",IF(INDEX(Web_Data,$A49,COLUMN(E$1))=0,\"\",INDEX(Web_Data,$A49,COLUMN(E$1))))","v":""},{"$f":"IF($A49=\"\",\"\",IF(INDEX(Web_Data,$A49,COLUMN(F$1))=0,\"\",INDEX(Web_Data,$A49,COLUMN(F$1))))","v":""},{"$f":"IF($A49=\"\",\"\",IF(INDEX(Web_Data,$A49,COLUMN(G$1))=0,\"\",INDEX(Web_Data,$A49,COLUMN(G$1))))","v":""},{"$f":"IF($A49=\"\",\"\",IF(INDEX(Web_Data,$A49,COLUMN(H$1))=0,\"\",INDEX(Web_Data,$A49,COLUMN(H$1))))","v":""},{"$f":"IF($A49=\"\",\"\",IF(INDEX(Web_Data,$A49,COLUMN(I$1))=0,\"\",INDEX(Web_Data,$A49,COLUMN(I$1))))","v":""},{"$f":"IF($A49=\"\",\"\",IF(INDEX(Web_Data,$A49,COLUMN(J$1))=0,\"\",INDEX(Web_Data,$A49,COLUMN(J$1))))","v":""},{"$f":"IF($A49=\"\",\"\",IF(INDEX(Web_Data,$A49,COLUMN(K$1))=0,\"\",INDEX(Web_Data,$A49,COLUMN(K$1))))","v":""},{"$f":"IF($A49=\"\",\"\",IF(INDEX(Web_Data,$A49,COLUMN(L$1))=0,\"\",INDEX(Web_Data,$A49,COLUMN(L$1))))","v":""},{"$f":"IF($A49=\"\",\"\",IF(INDEX(Web_Data,$A49,COLUMN(M$1))=0,\"\",INDEX(Web_Data,$A49,COLUMN(M$1))))","v":""}]
[{"$f":"IF(ROWS($5:50)>ROWS(Web_Data),\"\",ROWS($5:50))","v":46},"2025-05-05","KB","01",null,null,null,null,null,null,null,null,null,null,null,null,null,null,null,null,null,null,null,null,null,null,null,null,null,null,null,"KB01-250505",{"$f":"IF($A50=\"\",\"\",IF(INDEX(Web_Data,$A50,COLUMN(A$1))=0,\"\",INDEX(Web_Data,$A50,COLUMN(A$1))))","v":"46-ขนมเปี๊ยะไส้ถั่ว"},{"$f":"IF($A50=\"\",\"\",IF(INDEX(Web_Data,$A50,COLUMN(B$1))=0,\"\",INDEX(Web_Data,$A50,COLUMN(B$1))))","v":""},{"$f":"IF($A50=\"\",\"\",IF(INDEX(Web_Data,$A50,COLUMN(C$1))=0,\"\",INDEX(Web_Data,$A50,COLUMN(C$1))))","v":""},{"$f":"IF($A50=\"\",\"\",IF(INDEX(Web_Data,$A50,COLUMN(D$1))=0,\"\",INDEX(Web_Data,$A50,COLUMN(D$1))))","v":""},{"$f":"IF($A50=\"\",\"\",IF(INDEX(Web_Data,$A50,COLUMN(E$1))=0,\"\",INDEX(Web_Data,$A50,COLUMN(E$1))))","v":""},{"$f":"IF($A50=\"\",\"\",IF(INDEX(Web_Data,$A50,COLUMN(F$1))=0,\"\",INDEX(Web_Data,$A50,COLUMN(F$1))))","v":""},{"$f":"IF($A50=\"\",\"\",IF(INDEX(Web_Data,$A50,COLUMN(G$1))=0,\"\",INDEX(Web_Data,$A50,COLUMN(G$1))))","v":""},{"$f":"IF($A50=\"\",\"\",IF(INDEX(Web_Data,$A50,COLUMN(H$1))=0,\"\",INDEX(Web_Data,$A50,COLUMN(H$1))))","v":""},{"$f":"IF($A50=\"\",\"\",IF(INDEX(Web_Data,$A50,COLUMN(I$1))=0,\"\",INDEX(Web_Data,$A50,COLUMN(I$1))))","v":""},{"$f":"IF($A50=\"\",\"\",IF(INDEX(Web_Data,$A50,COLUMN(J$1))=0,\"\",INDEX(Web_Data,$A50,COLUMN(J$1))))","v":""},{"$f":"IF($A50=\"\",\"\",IF(INDEX(Web_Data,$A50,COLUMN(K$1))=0,\"\",INDEX(Web_Data,$A50,COLUMN(K$1))))","v":""},{"$f":"IF($A50=\"\",\"\",IF(INDEX(Web_Data,$A50,COLUMN(L$1))=0,\"\",INDEX(Web_Data,$A50,COLUMN(L$1))))","v":""},{"$f":"IF($A50=\"\",\"\",IF(INDEX(Web_Data,$A50,COLUMN(M$1))=0,\"\",INDEX(Web_Data,$A50,COLUMN(M$1))))","v":""}]
[{"$f":"IF(ROWS($5:51)>ROWS(Web_Data),\"\",ROWS($5:51))","v":47},"2025-05-05","KB","01",null,null,null,null,null,null,null,null,null,null,null,null,null,null,null,null,null,null,null,null,null,null,null,null,null,null,null,"KB01-250505",{"$f":"IF($A51=\"\",\"\",IF(INDEX(Web_Data,$A51,COLUMN(A$1))=0,\"\",INDEX(Web_Data,$A51,COLUMN(A$1))))","v":"47-ขนมเปี๊ยะไส้ฟัก"},{"$f":"IF($A51=\"\",\"\",IF(INDEX(Web_Data,$A51,COLUMN(B$1))=0,\"\",INDEX(Web_Data,$A51,COLUMN(B$1))))","v":""},{"$f":"IF($A51=\"\",\"\",IF(INDEX(Web_Data,$A51,COLUMN(C$1))=0,\"\",INDEX(Web_Data,$A51,COLUMN(C$1))))","v":""},{"$f":"IF($A51=\"\",\"\",IF(INDEX(Web_Data,$A51,COLUMN(D$1))=0,\"\",INDEX(Web_Data,$A51,COLUMN(D$1))))","v":""},{"$f":"IF($A51=\"\",\"\",IF(INDEX(Web_Data,$A51,COLUMN(E$1))=0,\"\",INDEX(Web_Data,$A51,COLUMN(E$1))))","v":""},{"$f":"IF($A51=\"\",\"\",IF(INDEX(Web_Data,$A51,COLUMN(F$1))=0,\"\",INDEX(Web_Data,$A51,COLUMN(F$1))))","v":""},{"$f":"IF($A51=\"\",\"\",IF(INDEX(Web_Data,$A51,COLUMN(G$1))=0,\"\",INDEX(Web_Data,$A51,COLUMN(G$1))))","v":""},{"$f":"IF($A51=\"\",\"\",IF(INDEX(Web_Data,$A51,COLUMN(H$1))=0,\"\",INDEX(Web_Data,$A51,COLUMN(H$1))))","v":""},{"$f":"IF($A51=\"\",\"\",IF(INDEX(Web_Data,$A51,COLUMN(I$1))=0,\"\",INDEX(Web_Data,$A51,COLUMN(I$1))))","v":""},{"$f":"IF($A51=\"\",\"\",IF(INDEX(Web_Data,$A51,COLUMN(J$1))=0,\"\",INDEX(Web_Data,$A51,COLUMN(J$1))))","v":""},{"$f":"IF($A51=\"\",\"\",IF(INDEX(Web_Data,$A51,COLUMN(K$1))=0,\"\",INDEX(Web_Data,$A51,COLUMN(K$1))))","v":""},{"$f":"IF($A51=\"\",\"\",IF(INDEX(Web_Data,$A51,COLUMN(L$1))=0,\"\",INDEX(Web_Data,$A51,COLUMN(L$1))))","v":""},{"$f":"IF($A51=\"\",\"\",IF(INDEX(Web_Data,$A51,COLUMN(M$1))=0,\"\",INDEX(Web_Data,$A51,COLUMN(M$1))))","v":""}]
[{"$f":"IF(ROWS($5:52)>ROWS(Web_Data),\"\",ROWS($5:52))","v":48},"2025-05-05","KB","01",null,null,null,null,null,null,null,null,null,null,null,null,null,null,null,null,null,null,null,null,null,null,null,null,null,null,null,"KB01-250505",{"$f":"IF($A52=\"\",\"\",IF(INDEX(Web_Data,$A52,COLUMN(A$1))=0,\"\",INDEX(Web_Data,$A52,COLUMN(A$1))))","v":"48-มังกี้เค้ก"},{"$f":"IF($A52=\"\",\"\",IF(INDEX(Web_Data,$A52,COLUMN(B$1))=0,\"\",INDEX(Web_Data,$A52,COLUMN(B$1))))","v":""},{"$f":"IF($A52=\"\",\"\",IF(INDEX(Web_Data,$A52,COLUMN(C$1))=0,\"\",INDEX(Web_Data,$A52,COLUMN(C$1))))","v":""},{"$f":"IF($A52=\"\",\"\",IF(INDEX(Web_Data,$A52,COLUMN(D$1))=0,\"\",INDEX(Web_Data,$A52,COLUMN(D$1))))","v":""},{"$f":"IF($A52=\"\",\"\",IF(INDEX(Web_Data,$A52,COLUMN(E$1))=0,\"\",INDEX(Web_Data,$A52,COLUMN(E$1))))","v":""},{"$f":"IF($A52=\"\",\"\",IF(INDEX(Web_Data,$A52,COLUMN(F$1))=0,\"\",INDEX(Web_Data,$A52,COLUMN(F$1))))","v":""},{"$f":"IF($A52=\"\",\"\",IF(INDEX(Web_Data,$A52,COLUMN(G$1))=0,\"\",INDEX(Web_Data,$A52,COLUMN(G$1))))","v":""},{"$f":"IF($A52=\"\",\"\",IF(INDEX(Web_Data,$A52,COLUMN(H$1))=0,\"\",INDEX(Web_Data,$A52,COLUMN(H$1))))","v":""},{"$f":"IF($A52=\"\",\"\",IF(INDEX(Web_Data,$A52,COLUMN(I$1))=0,\"\",INDEX(Web_Data,$A52,COLUMN(I$1))))","v":""},{"$f":"IF($A52=\"\",\"\",IF(INDEX(Web_Data,$A52,COLUMN(J$1))=0,\"\",INDEX(Web_Data,$A52,COLUMN(J$1))))","v":""},{"$f":"IF($A52=\"\",\"\",IF(INDEX(Web_Data,$A52,COLUMN(K$1))=0,\"\",INDEX(Web_Data,$A52,COLUMN(K$1))))","v":""},{"$f":"IF($A52=\"\",\"\",IF(INDEX(Web_Data,$A52,COLUMN(L$1))=0,\"\",INDEX(Web_Data,$A52,COLUMN(L$1))))","v":""},{"$f":"IF($A52=\"\",\"\",IF(INDEX(Web_Data,$A52,COLUMN(M$1))=0,\"\",INDEX(Web_Data,$A52,COLUMN(M$1))))","v":""}]
[{"$f":"IF(ROWS($5:53)>ROWS(Web_Data),\"\",ROWS($5:53))","v":""},"","","",null,null,null,null,null,null,null,null,null,null,null,null,null,null,null,null,null,null,null,null,null,null,null,null,null,null,null,"",{"$f":"IF($A53=\"\",\"\",IF(INDEX(Web_Data,$A53,COLUMN(A$1))=0,\"\",INDEX(Web_Data,$A53,COLUMN(A$1))))","v":""},{"$f":"IF($A53=\"\",\"\",IF(INDEX(Web_Data,$A53,COLUMN(B$1))=0,\"\",INDEX(Web_Data,$A53,COLUMN(B$1))))","v":""},{"$f":"IF($A53=\"\",\"\",IF(INDEX(Web_Data,$A53,COLUMN(C$1))=0,\"\",INDEX(Web_Data,$A53,COLUMN(C$1))))","v":""},{"$f":"IF($A53=\"\",\"\",IF(INDEX(Web_Data,$A53,COLUMN(D$1))=0,\"\",INDEX(Web_Data,$A53,COLUMN(D$1))))","v":""},{"$f":"IF($A53=\"\",\"\",IF(INDEX(Web_Data,$A53,COLUMN(E$1))=0,\"\",INDEX(Web_Data,$A53,COLUMN(E$1))))","v":""},{"$f":"IF($A53=\"\",\"\",IF(INDEX(Web_Data,$A53,COLUMN(F$1))=0,\"\",INDEX(Web_Data,$A53,COLUMN(F$1))))","v":""},{"$f":"IF($A53=\"\",\"\",IF(INDEX(Web_Data,$A53,COLUMN(G$1))=0,\"\",INDEX(Web_Data,$A53,COLUMN(G$1))))","v":""},{"$f":"IF($A53=\"\",\"\",IF(INDEX(Web_Data,$A53,COLUMN(H$1))=0,\"\",INDEX(Web_Data,$A53,COLUMN(H$1))))","v":""},{"$f":"IF($A53=\"\",\"\",IF(INDEX(Web_Data,$A53,COLUMN(I$1))=0,\"\",INDEX(Web_Data,$A53,COLUMN(I$1))))","v":""},{"$f":"IF($A53=\"\",\"\",IF(INDEX(Web_Data,$A53,COLUMN(J$1))=0,\"\",INDEX(Web_Data,$A53,COLUMN(J$1))))","v":""},{"$f":"IF($A53=\"\",\"\",IF(INDEX(Web_Data,$A53,COLUMN(K$1))=0,\"\",INDEX(Web_Data,$A53,COLUMN(K$1))))","v":""},{"$f":"IF($A53=\"\",\"\",IF(INDEX(Web_Data,$A53,COLUMN(L$1))=0,\"\",INDEX(Web_Data,$A53,COLUMN(L$1))))","v":""},{"$f":"IF($A53=\"\",\"\",IF(INDEX(Web_Data,$A53,COLUMN(M$1))=0,\"\",INDEX(Web_Data,$A53,COLUMN(M$1))))","v":""}]
[{"$f":"IF(ROWS($5:54)>ROWS(Web_Data),\"\",ROWS($5:54))","v":""},"","","",null,null,null,null,null,null,null,null,null,null,null,null,null,null,null,null,null,null,null,null,null,null,null,null,null,null,null,"",{"$f":"IF($A54=\"\",\"\",IF(INDEX(Web_Data,$A54,COLUMN(A$1))=0,\"\",INDEX(Web_Data,$A54,COLUMN(A$1))))","v":""},{"$f":"IF($A54=\"\",\"\",IF(INDEX(Web_Data,$A54,COLUMN(B$1))=0,\"\",INDEX(Web_Data,$A54,COLUMN(B$1))))","v":""},{"$f":"IF($A54=\"\",\"\",IF(INDEX(Web_Data,$A54,COLUMN(C$1))=0,\"\",INDEX(Web_Data,$A54,COLUMN(C$1))))","v":""},{"$f":"IF($A54=\"\",\"\",IF(INDEX(Web_Data,$A54,COLUMN(D$1))=0,\"\",INDEX(Web_Data,$A54,COLUMN(D$1))))","v":""},{"$f":"IF($A54=\"\",\"\",IF(INDEX(Web_Data,$A54,COLUMN(E$1))=0,\"\",INDEX(Web_Data,$A54,COLUMN(E$1))))","v":""},{"$f":"IF($A54=\"\",\"\",IF(INDEX(Web_Data,$A54,COLUMN(F$1))=0,\"\",INDEX(Web_Data,$A54,COLUMN(F$1))))","v":""},{"$f":"IF($A54=\"\",\"\",IF(INDEX(Web_Data,$A54,COLUMN(G$1))=0,\"\",INDEX(Web_Data,$A54,COLUMN(G$1))))","v":""},{"$f":"IF($A54=\"\",\"\",IF(INDEX(Web_Data,$A54,COLUMN(H$1))=0,\"\",INDEX(Web_Data,$A54,COLUMN(H$1))))","v":""},{"$f":"IF($A54=\"\",\"\",IF(INDEX(Web_Data,$A54,COLUMN(I$1))=0,\"\",INDEX(Web_Data,$A54,COLUMN(I$1))))","v":""},{"$f":"IF($A54=\"\",\"\",IF(INDEX(Web_Data,$A54,COLUMN(J$1))=0,\"\",INDEX(Web_Data,$A54,COLUMN(J$1))))","v":""},{"$f":"IF($A54=\"\",\"\",IF(INDEX(Web_Data,$A54,COLUMN(K$1))=0,\"\",INDEX(Web_Data,$A54,COLUMN(K$1))))","v":""},{"$f":"IF($A54=\"\",\"\",IF(INDEX(Web_Data,$A54,COLUMN(L$1))=0,\"\",INDEX(Web_Data,$A54,COLUMN(L$1))))","v":""},{"$f":"IF($A54=\"\",\"\",IF(INDEX(Web_Data,$A54,COLUMN(M$1))=0,\"\",INDEX(Web_Data,$A54,COLUMN(M$1))))","v":""}]
[{"$f":"IF(ROWS($5:55)>ROWS(Web_Data),\"\",ROWS($5:55))","v":""},"","","",null,null,null,null,null,null,null,null,null,null,null,null,null,null,null,null,null,null,null,null,null,null,null,null,null,null,null,"",{"$f":"IF($A55=\"\",\"\",IF(INDEX(Web_Data,$A55,COLUMN(A$1))=0,\"\",INDEX(Web_Data,$A55,COLUMN(A$1))))","v":""},{"$f":"IF($A55=\"\",\"\",IF(INDEX(Web_Data,$A55,COLUMN(B$1))=0,\"\",INDEX(Web_Data,$A55,COLUMN(B$1))))","v":""},{"$f":"IF($A55=\"\",\"\",IF(INDEX(Web_Data,$A55,COLUMN(C$1))=0,\"\",INDEX(Web_Data,$A55,COLUMN(C$1))))","v":""},{"$f":"IF($A55=\"\",\"\",IF(INDEX(Web_Data,$A55,COLUMN(D$1))=0,\"\",INDEX(Web_Data,$A55,COLUMN(D$1))))","v":""},{"$f":"IF($A55=\"\",\"\",IF(INDEX(Web_Data,$A55,COLUMN(E$1))=0,\"\",INDEX(Web_Data,$A55,COLUMN(E$1))))","v":""},{"$f":"IF($A55=\"\",\"\",IF(INDEX(Web_Data,$A55,COLUMN(F$1))=0,\"\",INDEX(Web_Data,$A55,COLUMN(F$1))))","v":""},{"$f":"IF($A55=\"\",\"\",IF(INDEX(Web_Data,$A55,COLUMN(G$1))=0,\"\",INDEX(Web_Data,$A55,COLUMN(G$1))))","v":""},{"$f":"IF($A55=\"\",\"\",IF(INDEX(Web_Data,$A55,COLUMN(H$1))=0,\"\",INDEX(Web_Data,$A55,COLUMN(H$1))))","v":""},{"$f":"IF($A55=\"\",\"\",IF(INDEX(Web_Data,$A55,COLUMN(I$1))=0,\"\",INDEX(Web_Data,$A55,COLUMN(I$1))))","v":""},{"$f":"IF($A55=\"\",\"\",IF(INDEX(Web_Data,$A55,COLUMN(J$1))=0,\"\",INDEX(Web_Data,$A55,COLUMN(J$1))))","v":""},{"$f":"IF($A55=\"\",\"\",IF(INDEX(Web_Data,$A55,COLUMN(K$1))=0,\"\",INDEX(Web_Data,$A55,COLUMN(K$1))))","v":""},{"$f":"IF($A55=\"\",\"\",IF(INDEX(Web_Data,$A55,COLUMN(L$1))=0,\"\",INDEX(Web_Data,$A55,COLUMN(L$1))))","v":""},{"$f":"IF($A55=\"\",\"\",IF(INDEX(Web_Data,$A55,COLUMN(M$1))=0,\"\",INDEX(Web_Data,$A55,COLUMN(M$1))))","v":""}]
[{"$f":"IF(ROWS($5:56)>ROWS(Web_Data),\"\",ROWS($5:56))","v":""},"","","",null,null,null,null,null,null,null,null,null,null,null,null,null,null,null,null,null,null,null,null,null,null,null,null,null,null,null,"",{"$f":"IF($A56=\"\",\"\",IF(INDEX(Web_Data,$A56,COLUMN(A$1))=0,\"\",INDEX(Web_Data,$A56,COLUMN(A$1))))","v":""},{"$f":"IF($A56=\"\",\"\",IF(INDEX(Web_Data,$A56,COLUMN(B$1))=0,\"\",INDEX(Web_Data,$A56,COLUMN(B$1))))","v":""},{"$f":"IF($A56=\"\",\"\",IF(INDEX(Web_Data,$A56,COLUMN(C$1))=0,\"\",INDEX(Web_Data,$A56,COLUMN(C$1))))","v":""},{"$f":"IF($A56=\"\",\"\",IF(INDEX(Web_Data,$A56,COLUMN(D$1))=0,\"\",INDEX(Web_Data,$A56,COLUMN(D$1))))","v":""},{"$f":"IF($A56=\"\",\"\",IF(INDEX(Web_Data,$A56,COLUMN(E$1))=0,\"\",INDEX(Web_Data,$A56,COLUMN(E$1))))","v":""},{"$f":"IF($A56=\"\",\"\",IF(INDEX(Web_Data,$A56,COLUMN(F$1))=0,\"\",INDEX(Web_Data,$A56,COLUMN(F$1))))","v":""},{"$f":"IF($A56=\"\",\"\",IF(INDEX(Web_Data,$A56,COLUMN(G$1))=0,\"\",INDEX(Web_Data,$A56,COLUMN(G$1))))","v":""},{"$f":"IF($A56=\"\",\"\",IF(INDEX(Web_Data,$A56,COLUMN(H$1))=0,\"\",INDEX(Web_Data,$A56,COLUMN(H$1))))","v":""},{"$f":"IF($A56=\"\",\"\",IF(INDEX(Web_Data,$A56,COLUMN(I$1))=0,\"\",INDEX(Web_Data,$A56,COLUMN(I$1))))","v":""},{"$f":"IF($A56=\"\",\"\",IF(INDEX(Web_Data,$A56,COLUMN(J$1))=0,\"\",INDEX(Web_Data,$A56,COLUMN(J$1))))","v":""},{"$f":"IF($A56=\"\",\"\",IF(INDEX(Web_Data,$A56,COLUMN(K$1))=0,\"\",INDEX(Web_Data,$A56,COLUMN(K$1))))","v":""},{"$f":"IF($A56=\"\",\"\",IF(INDEX(Web_Data,$A56,COLUMN(L$1))=0,\"\",INDEX(Web_Data,$A56,COLUMN(L$1))))","v":""},{"$f":"IF($A56=\"\",\"\",IF(INDEX(Web_Data,$A56,COLUMN(M$1))=0,\"\",INDEX(Web_Data,$A56,COLUMN(M$1))))","v":""}]
[{"$f":"IF(ROWS($5:57)>ROWS(Web_Data),\"\",ROWS($5:57))","v":""},"","","",null,null,null,null,null,null,null,null,null,null,null,null,null,null,null,null,null,null,null,null,null,null,null,null,null,null,null,"",{"$f":"IF($A57=\"\",\"\",IF(INDEX(Web_Data,$A57,COLUMN(A$1))=0,\"\",INDEX(Web_Data,$A57,COLUMN(A$1))))","v":""},{"$f":"IF($A57=\"\",\"\",IF(INDEX(Web_Data,$A57,COLUMN(B$1))=0,\"\",INDEX(Web_Data,$A57,COLUMN(B$1))))","v":""},{"$f":"IF($A57=\"\",\"\",IF(INDEX(Web_Data,$A57,COLUMN(C$1))=0,\"\",INDEX(Web_Data,$A57,COLUMN(C$1))))","v":""},{"$f":"IF($A57=\"\",\"\",IF(INDEX(Web_Data,$A57,COLUMN(D$1))=0,\"\",INDEX(Web_Data,$A57,COLUMN(D$1))))","v":""},{"$f":"IF($A57=\"\",\"\",IF(INDEX(Web_Data,$A57,COLUMN(E$1))=0,\"\",INDEX(Web_Data,$A57,COLUMN(E$1))))","v":""},{"$f":"IF($A57=\"\",\"\",IF(INDEX(Web_Data,$A57,COLUMN(F$1))=0,\"\",INDEX(Web_Data,$A57,COLUMN(F$1))))","v":""},{"$f":"IF($A57=\"\",\"\",IF(INDEX(Web_Data,$A57,COLUMN(G$1))=0,\"\",INDEX(Web_Data,$A57,COLUMN(G$1))))","v":""},{"$f":"IF($A57=\"\",\"\",IF(INDEX(Web_Data,$A57,COLUMN(H$1))=0,\"\",INDEX(Web_Data,$A57,COLUMN(H$1))))","v":""},{"$f":"IF($A57=\"\",\"\",IF(INDEX(Web_Data,$A57,COLUMN(I$1))=0,\"\",INDEX(Web_Data,$A57,COLUMN(I$1))))","v":""},{"$f":"IF($A57=\"\",\"\",IF(INDEX(Web_Data,$A57,COLUMN(J$1))=0,\"\",INDEX(Web_Data,$A57,COLUMN(J$1))))","v":""},{"$f":"IF($A57=\"\",\"\",IF(INDEX(Web_Data,$A57,COLUMN(K$1))=0,\"\",INDEX(Web_Data,$A57,COLUMN(K$1))))","v":""},{"$f":"IF($A57=\"\",\"\",IF(INDEX(Web_Data,$A57,COLUMN(L$1))=0,\"\",INDEX(Web_Data,$A57,COLUMN(L$1))))","v":""},{"$f":"IF($A57=\"\",\"\",IF(INDEX(Web_Data,$A57,COLUMN(M$1))=0,\"\",INDEX(Web_Data,$A57,COLUMN(M$1))))","v":""}]
[{"$f":"IF(ROWS($5:58)>ROWS(Web_Data),\"\",ROWS($5:58))","v":""},"","","",null,null,null,null,null,null,null,null,null,null,null,null,null,null,null,null,null,null,null,null,null,null,null,null,null,null,null,"",{"$f":"IF($A58=\"\",\"\",IF(INDEX(Web_Data,$A58,COLUMN(A$1))=0,\"\",INDEX(Web_Data,$A58,COLUMN(A$1))))","v":""},{"$f":"IF($A58=\"\",\"\",IF(INDEX(Web_Data,$A58,COLUMN(B$1))=0,\"\",INDEX(Web_Data,$A58,COLUMN(B$1))))","v":""},{"$f":"IF($A58=\"\",\"\",IF(INDEX(Web_Data,$A58,COLUMN(C$1))=0,\"\",INDEX(Web_Data,$A58,COLUMN(C$1))))","v":""},{"$f":"IF($A58=\"\",\"\",IF(INDEX(Web_Data,$A58,COLUMN(D$1))=0,\"\",INDEX(Web_Data,$A58,COLUMN(D$1))))","v":""},{"$f":"IF($A58=\"\",\"\",IF(INDEX(Web_Data,$A58,COLUMN(E$1))=0,\"\",INDEX(Web_Data,$A58,COLUMN(E$1))))","v":""},{"$f":"IF($A58=\"\",\"\",IF(INDEX(Web_Data,$A58,COLUMN(F$1))=0,\"\",INDEX(Web_Data,$A58,COLUMN(F$1))))","v":""},{"$f":"IF($A58=\"\",\"\",IF(INDEX(Web_Data,$A58,COLUMN(G$1))=0,\"\",INDEX(Web_Data,$A58,COLUMN(G$1))))","v":""},{"$f":"IF($A58=\"\",\"\",IF(INDEX(Web_Data,$A58,COLUMN(H$1))=0,\"\",INDEX(Web_Data,$A58,COLUMN(H$1))))","v":""},{"$f":"IF($A58=\"\",\"\",IF(INDEX(Web_Data,$A58,COLUMN(I$1))=0,\"\",INDEX(Web_Data,$A58,COLUMN(I$1))))","v":""},{"$f":"IF($A58=\"\",\"\",IF(INDEX(Web_Data,$A58,COLUMN(J$1))=0,\"\",INDEX(Web_Data,$A58,COLUMN(J$1))))","v":""},{"$f":"IF($A58=\"\",\"\",IF(INDEX(Web_Data,$A58,COLUMN(K$1))=0,\"\",INDEX(Web_Data,$A58,COLUMN(K$1))))","v":""},{"$f":"IF($A58=\"\",\"\",IF(INDEX(Web_Data,$A58,COLUMN(L$1))=0,\"\",INDEX(Web_Data,$A58,COLUMN(L$1))))","v":""},{"$f":"IF($A58=\"\",\"\",IF(INDEX(Web_Data,$A58,COLUMN(M$1))=0,\"\",INDEX(Web_Data,$A58,COLUMN(M$1))))","v":""}]
[{"$f":"IF(ROWS($5:59)>ROWS(Web_Data),\"\",ROWS($5:59))","v":""},"","","",null,null,null,null,null,null,null,null,null,null,null,null,null,null,null,null,null,null,null,null,null,null,null,null,null,null,null,"",{"$f":"IF($A59=\"\",\"\",IF(INDEX(Web_Data,$A59,COLUMN(A$1))=0,\"\",INDEX(Web_Data,$A59,COLUMN(A$1))))","v":""},{"$f":"IF($A59=\"\",\"\",IF(INDEX(Web_Data,$A59,COLUMN(B$1))=0,\"\",INDEX(Web_Data,$A59,COLUMN(B$1))))","v":""},{"$f":"IF($A59=\"\",\"\",IF(INDEX(Web_Data,$A59,COLUMN(C$1))=0,\"\",INDEX(Web_Data,$A59,COLUMN(C$1))))","v":""},{"$f":"IF($A59=\"\",\"\",IF(INDEX(Web_Data,$A59,COLUMN(D$1))=0,\"\",INDEX(Web_Data,$A59,COLUMN(D$1))))","v":""},{"$f":"IF($A59=\"\",\"\",IF(INDEX(Web_Data,$A59,COLUMN(E$1))=0,\"\",INDEX(Web_Data,$A59,COLUMN(E$1))))","v":""},{"$f":"IF($A59=\"\",\"\",IF(INDEX(Web_Data,$A59,COLUMN(F$1))=0,\"\",INDEX(Web_Data,$A59,COLUMN(F$1))))","v":""},{"$f":"IF($A59=\"\",\"\",IF(INDEX(Web_Data,$A59,COLUMN(G$1))=0,\"\",INDEX(Web_Data,$A59,COLUMN(G$1))))","v":""},{"$f":"IF($A59=\"\",\"\",IF(INDEX(Web_Data,$A59,COLUMN(H$1))=0,\"\",INDEX(Web_Data,$A59,COLUMN(H$1))))","v":""},{"$f":"IF($A59=\"\",\"\",IF(INDEX(Web_Data,$A59,COLUMN(I$1))=0,\"\",INDEX(Web_Data,$A59,COLUMN(I$1))))","v":""},{"$f":"IF($A59=\"\",\"\",IF(INDEX(Web_Data,$A59,COLUMN(J$1))=0,\"\",INDEX(Web_Data,$A59,COLUMN(J$1))))","v":""},{"$f":"IF($A59=\"\",\"\",IF(INDEX(Web_Data,$A59,COLUMN(K$1))=0,\"\",INDEX(Web_Data,$A59,COLUMN(K$1))))","v":""},{"$f":"IF($A59=\"\",\"\",IF(INDEX(Web_Data,$A59,COLUMN(L$1))=0,\"\",INDEX(Web_Data,$A59,COLUMN(L$1))))","v":""},{"$f":"IF($A59=\"\",\"\",IF(INDEX(Web_Data,$A59,COLUMN(M$1))=0,\"\",INDEX(Web_Data,$A59,COLUMN(M$1))))","v":""}]
[{"$f":"IF(ROWS($5:60)>ROWS(Web_Data),\"\",ROWS($5:60))","v":""},"","","",null,null,null,null,null,null,null,null,null,null,null,null,null,null,null,null,null,null,null,null,null,null,null,null,null,null,null,"",{"$f":"IF($A60=\"\",\"\",IF(INDEX(Web_Data,$A60,COLUMN(A$1))=0,\"\",INDEX(Web_Data,$A60,COLUMN(A$1))))","v":""},{"$f":"IF($A60=\"\",\"\",IF(INDEX(Web_Data,$A60,COLUMN(B$1))=0,\"\",INDEX(Web_Data,$A60,COLUMN(B$1))))","v":""},{"$f":"IF($A60=\"\",\"\",IF(INDEX(Web_Data,$A60,COLUMN(C$1))=0,\"\",INDEX(Web_Data,$A60,COLUMN(C$1))))","v":""},{"$f":"IF($A60=\"\",\"\",IF(INDEX(Web_Data,$A60,COLUMN(D$1))=0,\"\",INDEX(Web_Data,$A60,COLUMN(D$1))))","v":""},{"$f":"IF($A60=\"\",\"\",IF(INDEX(Web_Data,$A60,COLUMN(E$1))=0,\"\",INDEX(Web_Data,$A60,COLUMN(E$1))))","v":""},{"$f":"IF($A60=\"\",\"\",IF(INDEX(Web_Data,$A60,COLUMN(F$1))=0,\"\",INDEX(Web_Data,$A60,COLUMN(F$1))))","v":""},{"$f":"IF($A60=\"\",\"\",IF(INDEX(Web_Data,$A60,COLUMN(G$1))=0,\"\",INDEX(Web_Data,$A60,COLUMN(G$1))))","v":""},{"$f":"IF($A60=\"\",\"\",IF(INDEX(Web_Data,$A60,COLUMN(H$1))=0,\"\",INDEX(Web_Data,$A60,COLUMN(H$1))))","v":""},{"$f":"IF($A60=\"\",\"\",IF(INDEX(Web_Data,$A60,COLUMN(I$1))=0,\"\",INDEX(Web_Data,$A60,COLUMN(I$1))))","v":""},{"$f":"IF($A60=\"\",\"\",IF(INDEX(Web_Data,$A60,COLUMN(J$1))=0,\"\",INDEX(Web_Data,$A60,COLUMN(J$1))))","v":""},{"$f":"IF($A60=\"\",\"\",IF(INDEX(Web_Data,$A60,COLUMN(K$1))=0,\"\",INDEX(Web_Data,$A60,COLUMN(K$1))))","v":""},{"$f":"IF($A60=\"\",\"\",IF(INDEX(Web_Data,$A60,COLUMN(L$1))=0,\"\",INDEX(Web_Data,$A60,COLUMN(L$1))))","v":""},{"$f":"IF($A60=\"\",\"\",IF(INDEX(Web_Data,$A60,COLUMN(M$1))=0,\"\",INDEX(Web_Data,$A60,COLUMN(M$1))))","v":""}]
[{"$f":"IF(ROWS($5:61)>ROWS(Web_Data),\"\",ROWS($5:61))","v":""},"","","",null,null,null,null,null,null,null,null,null,null,null,null,null,null,null,null,null,null,null,null,null,null,null,null,null,null,null,"",{"$f":"IF($A61=\"\",\"\",IF(INDEX(Web_Data,$A61,COLUMN(A$1))=0,\"\",INDEX(Web_Data,$A61,COLUMN(A$1))))","v":""},{"$f":"IF($A61=\"\",\"\",IF(INDEX(Web_Data,$A61,COLUMN(B$1))=0,\"\",INDEX(Web_Data,$A61,COLUMN(B$1))))","v":""},{"$f":"IF($A61=\"\",\"\",IF(INDEX(Web_Data,$A61,COLUMN(C$1))=0,\"\",INDEX(Web_Data,$A61,COLUMN(C$1))))","v":""},{"$f":"IF($A61=\"\",\"\",IF(INDEX(Web_Data,$A61,COLUMN(D$1))=0,\"\",INDEX(Web_Data,$A61,COLUMN(D$1))))","v":""},{"$f":"IF($A61=\"\",\"\",IF(INDEX(Web_Data,$A61,COLUMN(E$1))=0,\"\",INDEX(Web_Data,$A61,COLUMN(E$1))))","v":""},{"$f":"IF($A61=\"\",\"\",IF(INDEX(Web_Data,$A61,COLUMN(F$1))=0,\"\",INDEX(Web_Data,$A61,COLUMN(F$1))))","v":""},{"$f":"IF($A61=\"\",\"\",IF(INDEX(Web_Data,$A61,COLUMN(G$1))=0,\"\",INDEX(Web_Data,$A61,COLUMN(G$1))))","v":""},{"$f":"IF($A61=\"\",\"\",IF(INDEX(Web_Data,$A61,COLUMN(H$1))=0,\"\",INDEX(Web_Data,$A61,COLUMN(H$1))))","v":""},{"$f":"IF($A61=\"\",\"\",IF(INDEX(Web_Data,$A61,COLUMN(I$1))=0,\"\",INDEX(Web_Data,$A61,COLUMN(I$1))))","v":""},{"$f":"IF($A61=\"\",\"\",IF(INDEX(Web_Data,$A61,COLUMN(J$1))=0,\"\",INDEX(Web_Data,$A61,COLUMN(J$1))))","v":""},{"$f":"IF($A61=\"\",\"\",IF(INDEX(Web_Data,$A61,COLUMN(K$1))=0,\"\",INDEX(Web_Data,$A61,COLUMN(K$1))))","v":""},{"$f":"IF($A61=\"\",\"\",IF(INDEX(Web_Data,$A61,COLUMN(L$1))=0,\"\",INDEX(Web_Data,$A61,COLUMN(L$1))))","v":""},{"$f":"IF($A61=\"\",\"\",IF(INDEX(Web_Data,$A61,COLUMN(M$1))=0,\"\",INDEX(Web_Data,$A61,COLUMN(M$1))))","v":""}]
[{"$f":"IF(ROWS($5:62)>ROWS(Web_Data),\"\",ROWS($5:62))","v":""},"","","",null,null,null,null,null,null,null,null,null,null,null,null,null,null,null,null,null,null,null,null,null,null,null,null,null,null,null,"",{"$f":"IF($A62=\"\",\"\",IF(INDEX(Web_Data,$A62,COLUMN(A$1))=0,\"\",INDEX(Web_Data,$A62,COLUMN(A$1))))","v":""},{"$f":"IF($A62=\"\",\"\",IF(INDEX(Web_Data,$A62,COLUMN(B$1))=0,\"\",INDEX(Web_Data,$A62,COLUMN(B$1))))","v":""},{"$f":"IF($A62=\"\",\"\",IF(INDEX(Web_Data,$A62,COLUMN(C$1))=0,\"\",INDEX(Web_Data,$A62,COLUMN(C$1))))","v":""},{"$f":"IF($A62=\"\",\"\",IF(INDEX(Web_Data,$A62,COLUMN(D$1))=0,\"\",INDEX(Web_Data,$A62,COLUMN(D$1))))","v":""},{"$f":"IF($A62=\"\",\"\",IF(INDEX(Web_Data,$A62,COLUMN(E$1))=0,\"\",INDEX(Web_Data,$A62,COLUMN(E$1))))","v":""},{"$f":"IF($A62=\"\",\"\",IF(INDEX(Web_Data,$A62,COLUMN(F$1))=0,\"\",INDEX(Web_Data,$A62,COLUMN(F$1))))","v":""},{"$f":"IF($A62=\"\",\"\",IF(INDEX(Web_Data,$A62,COLUMN(G$1))=0,\"\",INDEX(Web_Data,$A62,COLUMN(G$1))))","v":""},{"$f":"IF($A62=\"\",\"\",IF(INDEX(Web_Data,$A62,COLUMN(H$1))=0,\"\",INDEX(Web_Data,$A62,COLUMN(H$1))))","v":""},{"$f":"IF($A62=\"\",\"\",IF(INDEX(Web_Data,$A62,COLUMN(I$1))=0,\"\",INDEX(Web_Data,$A62,COLUMN(I$1))))","v":""},{"$f":"IF($A62=\"\",\"\",IF(INDEX(Web_Data,$A62,COLUMN(J$1))=0,\"\",INDEX(Web_Data,$A62,COLUMN(J$1))))","v":""},{"$f":"IF($A62=\"\",\"\",IF(INDEX(Web_Data,$A62,COLUMN(K$1))=0,\"\",INDEX(Web_Data,$A62,COLUMN(K$1))))","v":""},{"$f":"IF($A62=\"\",\"\",IF(INDEX(Web_Data,$A62,COLUMN(L$1))=0,\"\",INDEX(Web_Data,$A62,COLUMN(L$1))))","v":""},{"$f":"IF($A62=\"\",\"\",IF(INDEX(Web_Data,$A62,COLUMN(M$1))=0,\"\",INDEX(Web_Data,$A62,COLUMN(M$1))))","v":""}]
[{"$f":"IF(ROWS($5:63)>ROWS(Web_Data),\"\",ROWS($5:63))","v":""},"","","",null,null,null,null,null,null,null,null,null,null,null,null,null,null,null,null,null,null,null,null,null,null,null,null,null,null,null,"",{"$f":"IF($A63=\"\",\"\",IF(INDEX(Web_Data,$A63,COLUMN(A$1))=0,\"\",INDEX(Web_Data,$A63,COLUMN(A$1))))","v":""},{"$f":"IF($A63=\"\",\"\",IF(INDEX(Web_Data,$A63,COLUMN(B$1))=0,\"\",INDEX(Web_Data,$A63,COLUMN(B$1))))","v":""},{"$f":"IF($A63=\"\",\"\",IF(INDEX(Web_Data,$A63,COLUMN(C$1))=0,\"\",INDEX(Web_Data,$A63,COLUMN(C$1))))","v":""},{"$f":"IF($A63=\"\",\"\",IF(INDEX(Web_Data,$A63,COLUMN(D$1))=0,\"\",INDEX(Web_Data,$A63,COLUMN(D$1))))","v":""},{"$f":"IF($A63=\"\",\"\",IF(INDEX(Web_Data,$A63,COLUMN(E$1))=0,\"\",INDEX(Web_Data,$A63,COLUMN(E$1))))","v":""},{"$f":"IF($A63=\"\",\"\",IF(INDEX(Web_Data,$A63,COLUMN(F$1))=0,\"\",INDEX(Web_Data,$A63,COLUMN(F$1))))","v":""},{"$f":"IF($A63=\"\",\"\",IF(INDEX(Web_Data,$A63,COLUMN(G$1))=0,\"\",INDEX(Web_Data,$A63,COLUMN(G$1))))","v":""},{"$f":"IF($A63=\"\",\"\",IF(INDEX(Web_Data,$A63,COLUMN(H$1))=0,\"\",INDEX(Web_Data,$A63,COLUMN(H$1))))","v":""},{"$f":"IF($A63=\"\",\"\",IF(INDEX(Web_Data,$A63,COLUMN(I$1))=0,\"\",INDEX(Web_Data,$A63,COLUMN(I$1))))","v":""},{"$f":"IF($A63=\"\",\"\",IF(INDEX(Web_Data,$A63,COLUMN(J$1))=0,\"\",INDEX(Web_Data,$A63,COLUMN(J$1))))","v":""},{"$f":"IF($A63=\"\",\"\",IF(INDEX(Web_Data,$A63,COLUMN(K$1))=0,\"\",INDEX(Web_Data,$A63,COLUMN(K$1))))","v":""},{"$f":"IF($A63=\"\",\"\",IF(INDEX(Web_Data,$A63,COLUMN(L$1))=0,\"\",INDEX(Web_Data,$A63,COLUMN(L$1))))","v":""},{"$f":"IF($A63=\"\",\"\",IF(INDEX(Web_Data,$A63,COLUMN(M$1))=0,\"\",INDEX(Web_Data,$A63,COLUMN(M$1))))","v":""}]
[{"$f":"IF(ROWS($5:64)>ROWS(Web_Data),\"\",ROWS($5:64))","v":""},"","","",null,null,null,null,null,null,null,null,null,null,null,null,null,null,null,null,null,null,null,null,null,null,null,null,null,null,null,"",{"$f":"IF($A64=\"\",\"\",IF(INDEX(Web_Data,$A64,COLUMN(A$1))=0,\"\",INDEX(Web_Data,$A64,COLUMN(A$1))))","v":""},{"$f":"IF($A64=\"\",\"\",IF(INDEX(Web_Data,$A64,COLUMN(B$1))=0,\"\",INDEX(Web_Data,$A64,COLUMN(B$1))))","v":""},{"$f":"IF($A64=\"\",\"\",IF(INDEX(Web_Data,$A64,COLUMN(C$1))=0,\"\",INDEX(Web_Data,$A64,COLUMN(C$1))))","v":""},{"$f":"IF($A64=\"\",\"\",IF(INDEX(Web_Data,$A64,COLUMN(D$1))=0,\"\",INDEX(Web_Data,$A64,COLUMN(D$1))))","v":""},{"$f":"IF($A64=\"\",\"\",IF(INDEX(Web_Data,$A64,COLUMN(E$1))=0,\"\",INDEX(Web_Data,$A64,COLUMN(E$1))))","v":""},{"$f":"IF($A64=\"\",\"\",IF(INDEX(Web_Data,$A64,COLUMN(F$1))=0,\"\",INDEX(Web_Data,$A64,COLUMN(F$1))))","v":""},{"$f":"IF($A64=\"\",\"\",IF(INDEX(Web_Data,$A64,COLUMN(G$1))=0,\"\",INDEX(Web_Data,$A64,COLUMN(G$1))))","v":""},{"$f":"IF($A64=\"\",\"\",IF(INDEX(Web_Data,$A64,COLUMN(H$1))=0,\"\",INDEX(Web_Data,$A64,COLUMN(H$1))))","v":""},{"$f":"IF($A64=\"\",\"\",IF(INDEX(Web_Data,$A64,COLUMN(I$1))=0,\"\",INDEX(Web_Data,$A64,COLUMN(I$1))))","v":""},{"$f":"IF($A64=\"\",\"\",IF(INDEX(Web_Data,$A64,COLUMN(J$1))=0,\"\",INDEX(Web_Data,$A64,COLUMN(J$1))))","v":""},{"$f":"IF($A64=\"\",\"\",IF(INDEX(Web_Data,$A64,COLUMN(K$1))=0,\"\",INDEX(Web_Data,$A64,COLUMN(K$1))))","v":""},{"$f":"IF($A64=\"\",\"\",IF(INDEX(Web_Data,$A64,COLUMN(L$1))=0,\"\",INDEX(Web_Data,$A64,COLUMN(L$1))))","v":""},{"$f":"IF($A64=\"\",\"\",IF(INDEX(Web_Data,$A64,COLUMN(M$1))=0,\"\",INDEX(Web_Data,$A64,COLUMN(M$1))))","v":""}]
[{"$f":"IF(ROWS($5:65)>ROWS(Web_Data),\"\",ROWS($5:65))","v":""},"","","",null,null,null,null,null,null,null,null,null,null,null,null,null,null,null,null,null,null,null,null,null,null,null,null,null,null,null,"",{"$f":"IF($A65=\"\",\"\",IF(INDEX(Web_Data,$A65,COLUMN(A$1))=0,\"\",INDEX(Web_Data,$A65,COLUMN(A$1))))","v":""},{"$f":"IF($A65=\"\",\"\",IF(INDEX(Web_Data,$A65,COLUMN(B$1))=0,\"\",INDEX(Web_Data,$A65,COLUMN(B$1))))","v":""},{"$f":"IF($A65=\"\",\"\",IF(INDEX(Web_Data,$A65,COLUMN(C$1))=0,\"\",INDEX(Web_Data,$A65,COLUMN(C$1))))","v":""},{"$f":"IF($A65=\"\",\"\",IF(INDEX(Web_Data,$A65,COLUMN(D$1))=0,\"\",INDEX(Web_Data,$A65,COLUMN(D$1))))","v":""},{"$f":"IF($A65=\"\",\"\",IF(INDEX(Web_Data,$A65,COLUMN(E$1))=0,\"\",INDEX(Web_Data,$A65,COLUMN(E$1))))","v":""},{"$f":"IF($A65=\"\",\"\",IF(INDEX(Web_Data,$A65,COLUMN(F$1))=0,\"\",INDEX(Web_Data,$A65,COLUMN(F$1))))","v":""},{"$f":"IF($A65=\"\",\"\",IF(INDEX(Web_Data,$A65,COLUMN(G$1))=0,\"\",INDEX(Web_Data,$A65,COLUMN(G$1))))","v":""},{"$f":"IF($A65=\"\",\"\",IF(INDEX(Web_Data,$A65,COLUMN(H$1))=0,\"\",INDEX(Web_Data,$A65,COLUMN(H$1))))","v":""},{"$f":"IF($A65=\"\",\"\",IF(INDEX(Web_Data,$A65,COLUMN(I$1))=0,\"\",INDEX(Web_Data,$A65,COLUMN(I$1))))","v":""},{"$f":"IF($A65=\"\",\"\",IF(INDEX(Web_Data,$A65,COLUMN(J$1))=0,\"\",INDEX(Web_Data,$A65,COLUMN(J$1))))","v":""},{"$f":"IF($A65=\"\",\"\",IF(INDEX(Web_Data,$A65,COLUMN(K$1))=0,\"\",INDEX(Web_Data,$A65,COLUMN(K$1))))","v":""},{"$f":"IF($A65=\"\",\"\",IF(INDEX(Web_Data,$A65,COLUMN(L$1))=0,\"\",INDEX(Web_Data,$A65,COLUMN(L$1))))","v":""},{"$f":"IF($A65=\"\",\"\",IF(INDEX(Web_Data,$A65,COLUMN(M$1))=0,\"\",INDEX(Web_Data,$A65,COLUMN(M$1))))","v":""}]
[{"$f":"IF(ROWS($5:66)>ROWS(Web_Data),\"\",ROWS($5:66))","v":""},"","","",null,null,null,null,null,null,null,null,null,null,null,null,null,null,null,null,null,null,null,null,null,null,null,null,null,null,null,"",{"$f":"IF($A66=\"\",\"\",IF(INDEX(Web_Data,$A66,COLUMN(A$1))=0,\"\",INDEX(Web_Data,$A66,COLUMN(A$1))))","v":""},{"$f":"IF($A66=\"\",\"\",IF(INDEX(Web_Data,$A66,COLUMN(B$1))=0,\"\",INDEX(Web_Data,$A66,COLUMN(B$1))))","v":""},{"$f":"IF($A66=\"\",\"\",IF(INDEX(Web_Data,$A66,COLUMN(C$1))=0,\"\",INDEX(Web_Data,$A66,COLUMN(C$1))))","v":""},{"$f":"IF($A66=\"\",\"\",IF(INDEX(Web_Data,$A66,COLUMN(D$1))=0,\"\",INDEX(Web_Data,$A66,COLUMN(D$1))))","v":""},{"$f":"IF($A66=\"\",\"\",IF(INDEX(Web_Data,$A66,COLUMN(E$1))=0,\"\",INDEX(Web_Data,$A66,COLUMN(E$1))))","v":""},{"$f":"IF($A66=\"\",\"\",IF(INDEX(Web_Data,$A66,COLUMN(F$1))=0,\"\",INDEX(Web_Data,$A66,COLUMN(F$1))))","v":""},{"$f":"IF($A66=\"\",\"\",IF(INDEX(Web_Data,$A66,COLUMN(G$1))=0,\"\",INDEX(Web_Data,$A66,COLUMN(G$1))))","v":""},{"$f":"IF($A66=\"\",\"\",IF(INDEX(Web_Data,$A66,COLUMN(H$1))=0,\"\",INDEX(Web_Data,$A66,COLUMN(H$1))))","v":""},{"$f":"IF($A66=\"\",\"\",IF(INDEX(Web_Data,$A66,COLUMN(I$1))=0,\"\",INDEX(Web_Data,$A66,COLUMN(I$1))))","v":""},{"$f":"IF($A66=\"\",\"\",IF(INDEX(Web_Data,$A66,COLUMN(J$1))=0,\"\",INDEX(Web_Data,$A66,COLUMN(J$1))))","v":""},{"$f":"IF($A66=\"\",\"\",IF(INDEX(Web_Data,$A66,COLUMN(K$1))=0,\"\",INDEX(Web_Data,$A66,COLUMN(K$1))))","v":""},{"$f":"IF($A66=\"\",\"\",IF(INDEX(Web_Data,$A66,COLUMN(L$1))=0,\"\",INDEX(Web_Data,$A66,COLUMN(L$1))))","v":""},{"$f":"IF($A66=\"\",\"\",IF(INDEX(Web_Data,$A66,COLUMN(M$1))=0,\"\",INDEX(Web_Data,$A66,COLUMN(M$1))))","v":""}]
[{"$f":"IF(ROWS($5:67)>ROWS(Web_Data),\"\",ROWS($5:67))","v":""},"","","",null,null,null,null,null,null,null,null,null,null,null,null,null,null,null,null,null,null,null,null,null,null,null,null,null,null,null,"",{"$f":"IF($A67=\"\",\"\",IF(INDEX(Web_Data,$A67,COLUMN(A$1))=0,\"\",INDEX(Web_Data,$A67,COLUMN(A$1))))","v":""},{"$f":"IF($A67=\"\",\"\",IF(INDEX(Web_Data,$A67,COLUMN(B$1))=0,\"\",INDEX(Web_Data,$A67,COLUMN(B$1))))","v":""},{"$f":"IF($A67=\"\",\"\",IF(INDEX(Web_Data,$A67,COLUMN(C$1))=0,\"\",INDEX(Web_Data,$A67,COLUMN(C$1))))","v":""},{"$f":"IF($A67=\"\",\"\",IF(INDEX(Web_Data,$A67,COLUMN(D$1))=0,\"\",INDEX(Web_Data,$A67,COLUMN(D$1))))","v":""},{"$f":"IF($A67=\"\",\"\",IF(INDEX(Web_Data,$A67,COLUMN(E$1))=0,\"\",INDEX(Web_Data,$A67,COLUMN(E$1))))","v":""},{"$f":"IF($A67=\"\",\"\",IF(INDEX(Web_Data,$A67,COLUMN(F$1))=0,\"\",INDEX(Web_Data,$A67,COLUMN(F$1))))","v":""},{"$f":"IF($A67=\"\",\"\",IF(INDEX(Web_Data,$A67,COLUMN(G$1))=0,\"\",INDEX(Web_Data,$A67,COLUMN(G$1))))","v":""},{"$f":"IF($A67=\"\",\"\",IF(INDEX(Web_Data,$A67,COLUMN(H$1))=0,\"\",INDEX(Web_Data,$A67,COLUMN(H$1))))","v":""},{"$f":"IF($A67=\"\",\"\",IF(INDEX(Web_Data,$A67,COLUMN(I$1))=0,\"\",INDEX(Web_Data,$A67,COLUMN(I$1))))","v":""},{"$f":"IF($A67=\"\",\"\",IF(INDEX(Web_Data,$A67,COLUMN(J$1))=0,\"\",INDEX(Web_Data,$A67,COLUMN(J$1))))","v":""},{"$f":"IF($A67=\"\",\"\",IF(INDEX(Web_Data,$A67,COLUMN(K$1))=0,\"\",INDEX(Web_Data,$A67,COLUMN(K$1))))","v":""},{"$f":"IF($A67=\"\",\"\",IF(INDEX(Web_Data,$A67,COLUMN(L$1))=0,\"\",INDEX(Web_Data,$A67,COLUMN(L$1))))","v":""},{"$f":"IF($A67=\"\",\"\",IF(INDEX(Web_Data,$A67,COLUMN(M$1))=0,\"\",INDEX(Web_Data,$A67,COLUMN(M$1))))","v":""}]
[{"$f":"IF(ROWS($5:68)>ROWS(Web_Data),\"\",ROWS($5:68))","v":""},"",{"$f":"IF($A68=\"\",\"\",SL_Branch)","v":""},{"$f":"IF($A68=\"\",\"\",SL_Route)","v":""},null,null,null,null,null,null,null,null,null,null,null,null,null,null,null,null,null,null,null,null,null,null,null,null,null,null,null,"",{"$f":"IF($A68=\"\",\"\",IF(INDEX(Web_Data,$A68,COLUMN(A$1))=0,\"\",INDEX(Web_Data,$A68,COLUMN(A$1))))","v":""},{"$f":"IF($A68=\"\",\"\",IF(INDEX(Web_Data,$A68,COLUMN(B$1))=0,\"\",INDEX(Web_Data,$A68,COLUMN(B$1))))","v":""},{"$f":"IF($A68=\"\",\"\",IF(INDEX(Web_Data,$A68,COLUMN(C$1))=0,\"\",INDEX(Web_Data,$A68,COLUMN(C$1))))","v":""},{"$f":"IF($A68=\"\",\"\",IF(INDEX(Web_Data,$A68,COLUMN(D$1))=0,\"\",INDEX(Web_Data,$A68,COLUMN(D$1))))","v":""},{"$f":"IF($A68=\"\",\"\",IF(INDEX(Web_Data,$A68,COLUMN(E$1))=0,\"\",INDEX(Web_Data,$A68,COLUMN(E$1))))","v":""},{"$f":"IF($A68=\"\",\"\",IF(INDEX(Web_Data,$A68,COLUMN(F$1))=0,\"\",INDEX(Web_Data,$A68,COLUMN(F$1))))","v":""},{"$f":"IF($A68=\"\",\"\",IF(INDEX(Web_Data,$A68,COLUMN(G$1))=0,\"\",INDEX(Web_Data,$A68,COLUMN(G$1))))","v":""},{"$f":"IF($A68=\"\",\"\",IF(INDEX(Web_Data,$A68,COLUMN(H$1))=0,\"\",INDEX(Web_Data,$A68,COLUMN(H$1))))","v":""},{"$f":"IF($A68=\"\",\"\",IF(INDEX(Web_Data,$A68,COLUMN(I$1))=0,\"\",INDEX(Web_Data,$A68,COLUMN(I$1))))","v":""},{"$f":"IF($A68=\"\",\"\",IF(INDEX(Web_Data,$A68,COLUMN(J$1))=0,\"\",INDEX(Web_Data,$A68,COLUMN(J$1))))","v":""},{"$f":"IF($A68=\"\",\"\",IF(INDEX(Web_Data,$A68,COLUMN(K$1))=0,\"\",INDEX(Web_Data,$A68,COLUMN(K$1))))","v":""},{"$f":"IF($A68=\"\",\"\",IF(INDEX(Web_Data,$A68,COLUMN(L$1))=0,\"\",INDEX(Web_Data,$A68,COLUMN(L$1))))","v":""},{"$f":"IF($A68=\"\",\"\",IF(INDEX(Web_Data,$A68,COLUMN(M$1))=0,\"\",INDEX(Web_Data,$A68,COLUMN(M$1))))","v":""}]
[{"$f":"IF(ROWS($5:69)>ROWS(Web_Data),\"\",ROWS($5:69))","v":""},{"$f":"IF($A69=\"\",\"\",TEXT(DATE(BE_YEAR-543,SL_Month,SheetName),\"[$-41E]yyyy-mm-dd\"))","v":""},"","",null,null,null,null,null,null,null,null,null,null,null,null,null,null,null,null,null,null,null,null,null,null,null,null,null,null,null,{"$f":"IF($A69=\"\",\"\",SL_Branch&SL_Route&\"-\"&TEXT(DATE(BE_YEAR-543,SL_Month,SheetName),\"[$-41E]yymmdd\"))","v":""},{"$f":"IF($A69=\"\",\"\",IF(INDEX(Web_Data,$A69,COLUMN(A$1))=0,\"\",INDEX(Web_Data,$A69,COLUMN(A$1))))","v":""},{"$f":"IF($A69=\"\",\"\",IF(INDEX(Web_Data,$A69,COLUMN(B$1))=0,\"\",INDEX(Web_Data,$A69,COLUMN(B$1))))","v":""},{"$f":"IF($A69=\"\",\"\",IF(INDEX(Web_Data,$A69,COLUMN(C$1))=0,\"\",INDEX(Web_Data,$A69,COLUMN(C$1))))","v":""},{"$f":"IF($A69=\"\",\"\",IF(INDEX(Web_Data,$A69,COLUMN(D$1))=0,\"\",INDEX(Web_Data,$A69,COLUMN(D$1))))","v":""},{"$f":"IF($A69=\"\",\"\",IF(INDEX(Web_Data,$A69,COLUMN(E$1))=0,\"\",INDEX(Web_Data,$A69,COLUMN(E$1))))","v":""},{"$f":"IF($A69=\"\",\"\",IF(INDEX(Web_Data,$A69,COLUMN(F$1))=0,\"\",INDEX(Web_Data,$A69,COLUMN(F$1))))","v":""},{"$f":"IF($A69=\"\",\"\",IF(INDEX(Web_Data,$A69,COLUMN(G$1))=0,\"\",INDEX(Web_Data,$A69,COLUMN(G$1))))","v":""},{"$f":"IF($A69=\"\",\"\",IF(INDEX(Web_Data,$A69,COLUMN(H$1))=0,\"\",INDEX(Web_Data,$A69,COLUMN(H$1))))","v":""},{"$f":"IF($A69=\"\",\"\",IF(INDEX(Web_Data,$A69,COLUMN(I$1))=0,\"\",INDEX(Web_Data,$A69,COLUMN(I$1))))","v":""},{"$f":"IF($A69=\"\",\"\",IF(INDEX(Web_Data,$A69,COLUMN(J$1))=0,\"\",INDEX(Web_Data,$A69,COLUMN(J$1))))","v":""},{"$f":"IF($A69=\"\",\"\",IF(INDEX(Web_Data,$A69,COLUMN(K$1))=0,\"\",INDEX(Web_Data,$A69,COLUMN(K$1))))","v":""},{"$f":"IF($A69=\"\",\"\",IF(INDEX(Web_Data,$A69,COLUMN(L$1))=0,\"\",INDEX(Web_Data,$A69,COLUMN(L$1))))","v":""},{"$f":"IF($A69=\"\",\"\",IF(INDEX(Web_Data,$A69,COLUMN(M$1))=0,\"\",INDEX(Web_Data,$A69,COLUMN(M$1))))","v":""}]
[{"$f":"IF(ROWS($5:70)>ROWS(Web_Data),\"\",ROWS($5:70))","v":""},"","","",null,null,null,null,null,null,null,null,null,null,null,null,null,null,null,null,null,null,null,null,null,null,null,null,null,null,null,"",{"$f":"IF($A70=\"\",\"\",IF(INDEX(Web_Data,$A70,COLUMN(A$1))=0,\"\",INDEX(Web_Data,$A70,COLUMN(A$1))))","v":""},{"$f":"IF($A70=\"\",\"\",IF(INDEX(Web_Data,$A70,COLUMN(B$1))=0,\"\",INDEX(Web_Data,$A70,COLUMN(B$1))))","v":""},{"$f":"IF($A70=\"\",\"\",IF(INDEX(Web_Data,$A70,COLUMN(C$1))=0,\"\",INDEX(Web_Data,$A70,COLUMN(C$1))))","v":""},{"$f":"IF($A70=\"\",\"\",IF(INDEX(Web_Data,$A70,COLUMN(D$1))=0,\"\",INDEX(Web_Data,$A70,COLUMN(D$1))))","v":""},{"$f":"IF($A70=\"\",\"\",IF(INDEX(Web_Data,$A70,COLUMN(E$1))=0,\"\",INDEX(Web_Data,$A70,COLUMN(E$1))))","v":""},{"$f":"IF($A70=\"\",\"\",IF(INDEX(Web_Data,$A70,COLUMN(F$1))=0,\"\",INDEX(Web_Data,$A70,COLUMN(F$1))))","v":""},{"$f":"IF($A70=\"\",\"\",IF(INDEX(Web_Data,$A70,COLUMN(G$1))=0,\"\",INDEX(Web_Data,$A70,COLUMN(G$1))))","v":""},{"$f":"IF($A70=\"\",\"\",IF(INDEX(Web_Data,$A70,COLUMN(H$1))=0,\"\",INDEX(Web_Data,$A70,COLUMN(H$1))))","v":""},{"$f":"IF($A70=\"\",\"\",IF(INDEX(Web_Data,$A70,COLUMN(I$1))=0,\"\",INDEX(Web_Data,$A70,COLUMN(I$1))))","v":""},{"$f":"IF($A70=\"\",\"\",IF(INDEX(Web_Data,$A70,COLUMN(J$1))=0,\"\",INDEX(Web_Data,$A70,COLUMN(J$1))))","v":""},{"$f":"IF($A70=\"\",\"\",IF(INDEX(Web_Data,$A70,COLUMN(K$1))=0,\"\",INDEX(Web_Data,$A70,COLUMN(K$1))))","v":""},{"$f":"IF($A70=\"\",\"\",IF(INDEX(Web_Data,$A70,COLUMN(L$1))=0,\"\",INDEX(Web_Data,$A70,COLUMN(L$1))))","v":""},{"$f":"IF($A70=\"\",\"\",IF(INDEX(Web_Data,$A70,COLUMN(M$1))=0,\"\",INDEX(Web_Data,$A70,COLUMN(M$1))))","v":""}]

{"sheet":"1","index":5,"n_rows":142,"n_cols":154,"rows_kept":142,"cut":false,"hidden":false,"merged":[[83,126,83,127],[83,129,83,130],[129,10,129,11],[129,12,129,13],[129,14,129,15],[129,16,129,17],[129,20,129,21],[127,22,127,23],[126,24,126,25],[127,24,127,25],[96,14,96,15],[96,16,96,17],[96,20,96,21],[96,22,96,23],[128,22,128,23],[128,24,128,25],[128,33,128,36],[125,10,125,11],[126,10,126,11],[127,10,127,11],[119,24,119,25],[6,63,6,65],[6,66,6,68],[7,84,7,86],[7,87,7,89],[7,63,7,65],[6,72,6,74],[129,22,129,23],[129,24,129,25],[128,10,128,11],[8,63,8,65],[7,90,7,92],[8,105,8,107],[8,108,8,110],[8,120,8,122],[8,75,8,77],[8,78,8,80],[8,81,8,83],[8,84,8,86],[8,96,8,98],[8,72,8,74],[6,132,6,134],[7,132,7,134],[8,132,8,134],[80,132,80,133],[82,132,82,133],[6,135,6,137],[7,135,7,137],[8,135,8,137],[80,135,80,136],[82,135,82,136],[82,126,82,127],[82,129,82,130],[6,126,6,128],[83,132,83,133],[120,14,120,15],[121,14,121,15],[106,20,106,21],[103,14,103,15],[103,16,103,17],[6,102,6,104],[6,105,6,107],[6,108,6,110],[6,111,6,113],[6,114,6,116],[7,75,7,77],[7,78,7,80],[7,81,7,83],[7,120,7,122],[6,75,6,77],[6,78,6,80],[6,81,6,83],[6,84,6,86],[6,87,6,89],[8,93,8,95],[6,129,6,131],[7,126,7,128],[7,129,7,131],[8,126,8,128],[8,129,8,131],[80,126,80,127],[80,129,80,130],[6,90,6,92],[6,93,6,95],[6,96,6,98],[6,123,6,125],[80,117,80,118],[80,123,80,124],[6,99,6,101],[6,120,6,122],[6,117,6,119],[8,102,8,104],[8,15,8,17],[8,18,8,20],[8,21,8,23],[8,24,8,26],[8,27,8,29],[8,30,8,32],[8,123,8,125],[7,123,7,125],[7,72,7,74],[7,117,7,119],[8,117,8,119],[7,93,7,95],[7,96,7,98],[7,99,7,101],[7,102,7,104],[7,105,7,107],[7,108,7,110],[7,111,7,113],[7,114,7,116],[8,111,8,113],[8,114,8,116],[8,99,8,101],[8,87,8,89],[8,90,8,92],[8,54,8,56],[8,33,8,35],[8,36,8,38],[8,39,8,41],[8,42,8,44],[8,45,8,47],[7,6,7,8],[7,9,7,11],[7,12,7,14],[7,15,7,17],[7,18,7,20],[7,21,7,23],[7,24,7,26],[7,27,7,29],[7,30,7,32],[7,33,7,35],[7,36,7,38],[7,39,7,41],[7,42,7,44],[7,45,7,47],[7,48,7,50],[7,51,7,53],[8,48,8,50],[8,51,8,53],[120,24,120,25],[121,24,121,25],[125,22,125,23],[125,24,125,25],[113,16,113,17],[114,16,114,17],[117,16,117,17],[118,16,118,17],[119,16,119,17],[120,16,120,17],[121,16,121,17],[119,20,119,21],[119,22,119,23],[120,22,120,23],[121,22,121,23],[120,20,120,21],[121,20,121,21],[122,20,122,21],[117,20,117,21],[117,22,117,23],[118,20,118,21],[118,22,118,23],[113,20,113,21],[126,22,126,23],[127,12,127,13],[80,60,80,61],[80,48,80,49],[80,54,80,55],[80,30,80,31],[102,24,102,25],[102,33,102,36],[97,38,97,40],[89,33,89,36],[90,33,90,36],[91,33,91,36],[83,36,83,37],[88,24,88,25],[100,33,100,36],[98,33,98,36],[99,33,99,36],[92,33,92,36],[80,36,80,37],[94,20,94,21],[94,22,94,23],[126,12,126,13],[113,24,113,25],[114,24,114,25],[90,14,90,15],[90,16,90,17],[107,10,107,11],[107,12,107,13],[80,66,80,67],[82,66,82,67],[103,22,103,23],[103,24,103,25],[80,24,80,25],[80,42,80,43],[102,22,102,23],[103,20,103,21],[107,14,107,15],[107,16,107,17],[107,20,107,21],[105,20,105,21],[92,16,92,17],[95,16,95,17],[95,20,95,21],[97,20,97,21],[89,24,89,25],[106,24,106,25],[88,22,88,23],[107,22,107,23],[115,33,115,36],[116,33,116,36],[111,33,111,36],[115,24,115,25],[116,24,116,25],[104,10,104,11],[104,12,104,13],[106,22,106,23],[105,22,105,23],[112,22,112,23],[110,22,110,23],[108,22,108,23],[111,22,111,23],[115,12,115,13],[116,14,116,15],[116,16,116,17],[104,33,104,36],[106,33,106,36],[107,33,107,36],[108,33,108,36],[109,33,109,36],[105,33,105,36],[110,33,110,36],[112,33,112,36],[112,16,112,17],[112,20,112,21],[109,20,109,21],[108,16,108,17],[108,20,108,21],[110,20,110,21],[123,10,123,11],[117,33,117,36],[118,33,118,36],[122,33,122,36],[113,33,113,36],[114,33,114,36],[109,24,109,25],[113,22,113,23],[114,20,114,21],[114,22,114,23],[115,20,115,21],[115,22,115,23],[116,20,116,21],[116,22,116,23],[108,24,108,25],[109,12,109,13],[124,10,124,11],[123,12,123,13],[124,12,124,13],[123,14,123,15],[124,14,124,15],[123,16,123,17],[124,16,124,17],[123,20,123,21],[124,20,124,21],[135,33,135,36],[119,33,119,36],[120,33,120,36],[121,33,121,36],[122,16,122,17],[123,22,123,23],[125,33,125,36],[125,12,125,13],[128,12,128,13],[125,14,125,15],[128,14,128,15],[125,16,125,17],[128,16,128,17],[125,20,125,21],[128,20,128,21],[126,33,126,36],[127,33,127,36],[126,14,126,15],[127,14,127,15],[126,16,126,17],[127,16,127,17],[126,20,126,21],[127,20,127,21],[135,20,135,21],[129,33,129,36],[6,153,8,153],[6,152,8,152],[6,150,6,151],[7,151,8,151],[7,150,8,150],[81,150,82,153],[6,69,6,71],[7,66,7,68],[7,69,7,71],[8,66,8,68],[8,69,8,71],[83,45,83,46],[83,51,83,52],[83,57,83,58],[6,33,6,35],[6,36,6,38],[6,51,6,53],[83,150,83,153],[83,66,83,67],[83,63,83,64],[6,54,6,56],[6,48,6,50],[6,39,6,41],[2,46,2,48],[3,46,3,48],[0,30,0,33],[6,21,6,23],[6,24,6,26],[6,27,6,29],[6,30,6,32],[6,42,6,44],[86,10,86,11],[86,12,86,13],[86,14,86,15],[86,16,86,17],[86,20,86,21],[86,22,86,23],[83,48,83,49],[83,42,83,43],[86,33,86,36],[83,30,83,31],[83,18,83,19],[83,24,83,25],[83,9,83,10],[83,15,83,16],[83,21,83,22],[83,27,83,28],[2,41,2,44],[3,41,3,44],[3,26,3,29],[3,34,3,37],[0,34,0,35],[3,30,3,33],[3,38,3,40],[0,36,0,37],[2,38,2,40],[2,34,2,37],[0,38,0,40],[0,41,0,44],[3,57,3,60],[4,57,4,60],[0,0,0,12],[2,2,2,3],[4,35,4,36],[2,22,2,25],[0,14,0,16],[0,57,0,60],[2,57,2,60],[4,14,4,16],[4,17,4,19],[2,26,2,29],[2,49,2,51],[3,14,3,16],[2,17,2,19],[3,17,3,19],[2,14,2,16],[0,17,0,23],[2,54,2,56],[3,54,3,56],[4,54,4,56],[0,54,0,56],[0,46,0,48],[2,30,2,33],[87,16,87,17],[80,9,80,10],[80,15,80,16],[89,10,89,11],[89,12,89,13],[89,16,89,17],[6,45,6,47],[3,49,3,51],[4,49,4,51],[4,22,4,25],[3,22,3,25],[4,46,4,48],[4,38,4,40],[4,41,4,44],[4,32,4,34],[4,26,4,29],[4,30,4,31],[6,18,6,20],[83,39,83,40],[82,30,82,31],[82,12,82,13],[82,18,82,19],[82,48,82,49],[80,18,80,19],[3,0,3,1],[2,0,2,1],[83,0,83,5],[81,0,81,2],[82,0,82,2],[82,3,82,4],[81,3,81,5],[79,0,79,5],[2,6,2,12],[3,4,3,5],[3,6,3,12],[4,0,4,1],[3,2,3,3],[2,4,2,5],[80,0,80,5],[4,2,4,3],[4,4,4,5],[4,6,4,12],[6,4,8,4],[6,6,6,8],[6,9,6,11],[6,12,6,14],[82,6,82,7],[82,9,82,10],[97,10,97,11],[97,12,97,13],[8,6,8,8],[92,10,92,11],[92,12,92,13],[83,6,83,7],[83,12,83,13],[80,12,80,13],[6,0,8,0],[6,1,8,1],[6,2,8,2],[80,6,80,7],[90,10,90,11],[90,12,90,13],[8,9,8,11],[8,12,8,14],[92,14,92,15],[88,10,88,11],[88,12,88,13],[82,15,82,16],[88,16,88,17],[6,15,6,17],[88,14,88,15],[87,10,87,11],[109,22,109,23],[91,16,91,17],[91,20,91,21],[91,22,91,23],[93,16,93,17],[93,20,93,21],[95,22,95,23],[92,22,92,23],[97,22,97,23],[98,22,98,23],[94,16,94,17],[99,16,99,17],[109,16,109,17],[99,20,99,21],[99,22,99,23],[101,20,101,21],[101,22,101,23],[100,20,100,21],[100,22,100,23],[102,16,102,17],[102,20,102,21],[101,16,101,17],[100,16,100,17],[97,16,97,17],[94,10,94,11],[94,12,94,13],[94,14,94,15],[95,10,95,11],[95,12,95,13],[95,14,95,15],[104,14,104,15],[105,14,105,15],[89,20,89,21],[104,20,104,21],[91,10,91,11],[101,12,101,13],[101,14,101,15],[100,10,100,11],[100,12,100,13],[100,14,100,15],[99,10,99,11],[97,14,97,15],[96,10,96,11],[96,12,96,13],[98,10,98,11],[98,12,98,13],[98,14,98,15],[98,16,98,17],[119,10,119,11],[120,10,120,11],[121,10,121,11],[119,12,119,13],[106,16,106,17],[105,16,105,17],[103,10,103,11],[103,12,103,13],[109,10,109,11],[105,10,105,11],[105,12,105,13],[109,14,109,15],[108,10,108,11],[108,12,108,13],[108,14,108,15],[110,16,110,17],[110,12,110,13],[110,14,110,15],[139,3,139,4],[140,3,140,4],[135,18,135,19],[138,3,138,4],[136,3,136,4],[137,3,137,4],[136,0,136,2],[137,0,137,2],[138,0,138,2],[139,0,139,2],[140,0,140,2],[141,0,141,2],[135,0,135,2],[141,3,141,4],[137,6,137,7],[111,12,111,13],[122,10,122,11],[122,12,122,13],[122,14,122,15],[101,10,101,11],[102,10,102,11],[102,12,102,13],[102,14,102,15],[110,10,110,11],[118,10,118,11],[112,12,112,13],[117,12,117,13],[118,12,118,13],[113,10,113,11],[113,12,113,13],[113,14,113,15],[114,10,114,11],[114,12,114,13],[114,14,114,15],[115,10,115,11],[112,14,112,15],[117,14,117,15],[118,14,118,15],[104,16,104,17],[120,12,120,13],[121,12,121,13],[119,14,119,15],[115,14,115,15],[115,16,115,17],[116,10,116,11],[116,12,116,13],[6,3,8,3],[135,22,135,23],[135,24,135,25],[137,18,137,21],[135,10,135,11],[135,12,135,13],[135,14,135,15],[135,16,135,17],[111,10,111,11],[111,14,111,15],[111,16,111,17],[111,20,111,21],[111,24,111,25],[112,24,112,25],[117,24,117,25],[87,20,87,21],[98,20,98,21],[92,20,92,21],[110,24,110,25],[107,24,107,25],[90,20,90,21],[90,22,90,23],[6,57,6,59],[6,60,6,62],[7,60,7,62],[7,54,7,56],[7,57,7,59],[8,57,8,59],[8,60,8,62],[99,24,99,25],[101,24,101,25],[100,24,100,25],[91,24,91,25],[88,33,88,36],[82,36,82,37],[87,33,87,36],[82,27,82,28],[82,33,82,34],[82,39,82,40],[86,24,86,25],[87,24,87,25],[83,60,83,61],[83,54,83,55],[82,60,82,61],[82,24,82,25],[82,42,82,43],[80,120,80,121],[80,108,80,109],[80,57,80,58],[80,63,80,64],[80,69,80,70],[80,75,80,76],[80,78,80,79],[80,81,80,82],[80,84,80,85],[80,87,80,88],[80,90,80,91],[80,93,80,94],[80,111,80,112],[80,114,80,115],[80,96,80,97],[80,99,80,100],[80,102,80,103],[80,105,80,106],[80,21,80,22],[80,27,80,28],[80,33,80,34],[80,39,80,40],[80,45,80,46],[80,51,80,52],[83,87,83,88],[83,90,83,91],[83,78,83,79],[83,81,83,82],[83,84,83,85],[82,75,82,76],[82,69,82,70],[82,51,82,52],[82,57,82,58],[82,63,82,64],[82,78,82,79],[82,81,82,82],[82,84,82,85],[82,72,82,73],[80,72,80,73],[82,21,82,22],[82,54,82,55],[82,45,82,46],[82,117,82,118],[82,120,82,121],[83,120,83,121],[82,123,82,124],[124,22,124,23],[123,24,123,25],[124,24,124,25],[123,33,123,36],[124,33,124,36],[96,24,96,25],[94,24,94,25],[92,24,92,25],[95,24,95,25],[103,33,103,36],[118,24,118,25],[122,24,122,25],[98,24,98,25],[93,22,93,23],[93,24,93,25],[96,33,96,36],[101,33,101,36],[97,33,97,36],[97,24,97,25],[93,33,93,36],[82,93,82,94],[82,87,82,88],[82,90,82,91],[82,99,82,100],[82,102,82,103],[82,105,82,106],[82,108,82,109],[82,111,82,112],[82,114,82,115],[82,96,82,97],[106,12,106,13],[106,14,106,15],[83,99,83,100],[83,102,83,103],[83,105,83,106],[83,108,83,109],[83,111,83,112],[83,114,83,115],[83,93,83,94],[83,96,83,97],[90,24,90,25],[104,24,104,25],[93,14,93,15],[99,12,99,13],[99,14,99,15],[91,14,91,15],[104,22,104,23],[91,12,91,13],[89,22,89,23],[87,22,87,23],[88,20,88,21],[89,14,89,15],[87,12,87,13],[87,14,87,15],[83,135,83,136],[130,10,130,11],[130,12,130,13],[130,14,130,15],[130,16,130,17],[130,20,130,21],[130,22,130,23],[130,24,130,25],[130,33,130,36],[83,75,83,76],[83,72,83,73],[83,117,83,118],[83,123,83,124],[83,69,83,70],[83,33,83,34],[94,33,94,36],[122,22,122,23],[105,24,105,25],[95,33,95,36],[93,10,93,11],[93,12,93,13],[112,10,112,11],[117,10,117,11],[106,10,106,11],[6,138,6,140],[6,141,6,143],[6,147,6,149],[7,138,7,140],[7,141,7,143],[7,147,7,149],[8,138,8,140],[8,141,8,143],[8,147,8,149],[6,144,6,146],[7,144,7,146],[8,144,8,146],[80,138,80,139],[80,141,80,142],[80,147,80,148],[82,138,82,139],[82,141,82,142],[82,147,82,148],[83,138,83,139],[83,141,83,142],[83,147,83,148],[80,144,80,145],[82,144,82,145],[83,144,83,145],[131,10,131,11],[132,10,132,11],[134,10,134,11],[131,12,131,13],[132,12,132,13],[134,12,134,13],[131,14,131,15],[132,14,132,15],[134,14,134,15],[133,10,133,11],[133,12,133,13],[133,14,133,15],[131,24,131,25],[132,24,132,25],[134,24,134,25],[131,33,131,36],[132,33,132,36],[134,33,134,36],[131,16,131,17],[132,16,132,17],[134,16,134,17],[131,20,131,21],[132,20,132,21],[134,20,134,21],[131,22,131,23],[132,22,132,23],[134,22,134,23],[133,16,133,17],[133,20,133,21],[133,22,133,23],[133,24,133,25],[133,33,133,36]]}
[":::: รายงานการขายประจำวัน (Sale Daily Report)  ::::",null,null,null,null,null,null,null,null,null,null,null,null,null,"Print Date : ",null,null,{"$f":"NOW()","v":"2025-04-24T22:39:10.210"},null,null,null,null,null,null,null,null,null,null,null,null,"จำนวนร้าน :",null,null,null,{"$f":"MAX($A$10:$A$79)","v":0},null,"ร้าน",null,"เป้ายอดขาย :",null,null,null,null,null,null,null,{"$f":"C3","v":45778},null,null,{"$f":"LEFT('Problems & Solutions'!$B$2,FIND(\"|\",'Problems & Solutions'!$B$2))&\" วันที่\"&TEXT($C$3,\"[$-107041E] d mmmm yyyy;@\")","v":"ขั้นตอนการตรวจรีพอร์ตขาย | วันที่ 1 พฤษภาคม 2568"},null,null,null,null,"เวลากลับ :"]
[]
["วันที่ :",null,{"$f":"DATE(ใส่ข้อมูล!G2-543,ใส่ข้อมูล!V2,ActiveSheetName)","v":"2025-05-01"},null,"พนักงานขาย",null,{"$f":"INDEX(OFFSET(Sale_Region,,1),ActiveSheetName)","v":0},null,null,null,null,null,null,null,"รวมยอดเบิก :",null,null,{"$f":"E136","v":0},null,null,"ชิ้น",null,"ใหญ่สด(40)",null,null,null,{"$f":"Cash_Major_Bill","v":0},null,null,null,"ใหญ่เชื่อ(42)",null,null,null,{"$f":"Credit_Major_Bill","v":0},null,null,null,"บิลใหญ่ :",null,null,{"$f":"AA3+AI3","v":0},null,null,null,null,"เติมน้ำมัน :",null,null,null,null,null,"บาท",null,"ไมล์ออก :",null,null,null,null,null,null,"Km"]
["เขตการขาย :",null,{"$f":"INDEX(Sale_Region,ActiveSheetName)","v":0},null,"ผช.ขาย",null,{"$f":"INDEX(OFFSET(Sale_Region,,2),ActiveSheetName)","v":0},null,null,null,null,null,null,null,"ของเหลือ :",null,null,{"$f":"F136","v":0},null,null,"ชิ้น",null,"เล็กสด(41)",null,null,null,{"$f":"Cash_Minor_Bill","v":0},null,null,null,"เล็กเชื่อ(43)",null,null,null,{"$f":"Credit_Minor_Bill","v":0},null,null,null,"บิลเล็ก :",null,null,{"$f":"AA4+AI4","v":0},null,null,null,null,"จำนวนลิตร :",null,null,null,null,null,"ลิตร",null,"ไมล์เข้า :",null,null,null,null,null,null,"Km"]
["สายส่ง :",null,{"$f":"\"Sale \"&ใส่ข้อมูล!E3&\"-\"&ใส่ข้อมูล!G3","v":"Sale KB-01"},null,"พนักงานเสริม",null,{"$f":"INDEX(OFFSET(Sale_Region,,3),ActiveSheetName)","v":0},null,null,null,null,null,null,null,"ของเสีย :",null,null,{"$f":"G136","v":0},null,null,"ชิ้น",null,"น้ำหนักของเสีย",null,null,null,null,null,null,null,"Kg.",null,"%ของเสีย",null,null,{"$f":"IF(Order_Cal=0,0,ROUND(Waste_Cal*100/Order_Cal,2))","v":0},null,"%","VAT :",null,null,{"$f":"EW81","v":0},null,null,null,null,"ต้นทุนสาขา :",null,null,{"$f":"SUMPRODUCT((($A$88:$A$135)-($A$88:$A$135)*0.45)*(($E$88:$E$135)-($G$88:$G$135)))","v":0},null,null,"บาท",null,"ระยะทาง :",null,null,{"$f":"IF(OR($BF$4=0,$BF$3=0),0,$BF$4-$BF$3)","v":0},null,null,null,"Km"]
[]
["No","รหัสร้าน (CustNo)","ชื่อร้าน (Store Name)","เวลาเข้าร้าน","ระยะเวลาระหว่างร้าน","บิล(Invoice)",{"$f":"INDEX(INDIRECT(\"dProduct[ProductName]\"),ROUNDUP(COLUMNS($G:G)/3,0))","v":"ขนมปังหมูหยองน้ำสลัด"},null,null,{"$f":"INDEX(INDIRECT(\"dProduct[ProductName]\"),ROUNDUP(COLUMNS($G:J)/3,0))","v":"ขนมปังหมูหยองน้ำพริกเผา"},null,null,{"$f":"INDEX(INDIRECT(\"dProduct[ProductName]\"),ROUNDUP(COLUMNS($G:M)/3,0))","v":"ขนมปังไก่หยองน้ำสลัด"},null,null,{"$f":"INDEX(INDIRECT(\"dProduct[ProductName]\"),ROUNDUP(COLUMNS($G:P)/3,0))","v":"ขนมปังไส้ครีมสลัด"},null,null,{"$f":"INDEX(INDIRECT(\"dProduct[ProductName]\"),ROUNDUP(COLUMNS($G:S)/3,0))","v":"ขนมปังเนยสด"},null,null,{"$f":"INDEX(INDIRECT(\"dProduct[ProductName]\"),ROUNDUP(COLUMNS($G:V)/3,0))","v":"ขนมปังไส้สังขยาเล็ก"},null,null,{"$f":"INDEX(INDIRECT(\"dProduct[ProductName]\"),ROUNDUP(COLUMNS($G:Y)/3,0))","v":"ขนมปังไส้เผือก"},null,null,{"$f":"INDEX(INDIRECT(\"dProduct[ProductName]\"),ROUNDUP(COLUMNS($G:AB)/3,0))","v":"ขนมปังไส้ถั่วแดง"},null,null,{"$f":"INDEX(INDIRECT(\"dProduct[ProductName]\"),ROUNDUP(COLUMNS($G:AE)/3,0))","v":"ขนมปังไส้ถั่วดำ"},null,null,{"$f":"INDEX(INDIRECT(\"dProduct[ProductName]\"),ROUNDUP(COLUMNS($G:AH)/3,0))","v":"ขนมปังไส้มันม่วง"},null,null,{"$f":"INDEX(INDIRECT(\"dProduct[ProductName]\"),ROUNDUP(COLUMNS($G:AK)/3,0))","v":"เค้กกล้วยหอม"},null,null,{"$f":"INDEX(INDIRECT(\"dProduct[ProductName]\"),ROUNDUP(COLUMNS($G:AN)/3,0))","v":"เค้กบัตเตอร์"},null,null,{"$f":"INDEX(INDIRECT(\"dProduct[ProductName]\"),ROUNDUP(COLUMNS($G:AQ)/3,0))","v":"ขนมปังโรลถั่วแดง"},null,null,{"$f":"INDEX(INDIRECT(\"dProduct[ProductName]\"),ROUNDUP(COLUMNS($G:AT)/3,0))","v":"ขนมปังไส้สังขยาใหญ่"},null,null,{"$f":"INDEX(INDIRECT(\"dProduct[ProductName]\"),ROUNDUP(COLUMNS($G:AW)/3,0))","v":"ขนมปังชนิดแผ่น(480กรัม)"},null,null,{"$f":"INDEX(INDIRECT(\"dProduct[ProductName]\"),ROUNDUP(COLUMNS($G:AZ)/3,0))","v":"โมจิไส้ถั่ว"},null,null,{"$f":"INDEX(INDIRECT(\"dProduct[ProductName]\"),ROUNDUP(COLUMNS($G:BC)/3,0))","v":"โมจิไส้เผือก"},null,null,{"$f":"INDEX(INDIRECT(\"dProduct[ProductName]\"),ROUNDUP(COLUMNS($G:BF)/3,0))","v":"โมจิไส้ถั่วไข่เค็ม"},null,null,{"$f":"INDEX(INDIRECT(\"dProduct[ProductName]\"),ROUNDUP(COLUMNS($G:BI)/3,0))","v":"ขนมปังพิซซ่า"},null,null,{"$f":"INDEX(INDIRECT(\"dProduct[ProductName]\"),ROUNDUP(COLUMNS($G:BL)/3,0))","v":"ขนมปังพิซซ่าปูอัดแฮม"},null,null,{"$f":"INDEX(INDIRECT(\"dProduct[ProductName]\"),ROUNDUP(COLUMNS($G:BO)/3,0))","v":"ขนมปังไส้กรอก"},null,null,{"$f":"INDEX(INDIRECT(\"dProduct[ProductName]\"),ROUNDUP(COLUMNS($G:BR)/3,0))","v":"ขนมก้านบัว"},null,null,{"$f":"INDEX(INDIRECT(\"dProduct[ProductName]\"),ROUNDUP(COLUMNS($G:BU)/3,0))","v":"พายสับปะรด"},null,null,{"$f":"INDEX(INDIRECT(\"dProduct[ProductName]\"),ROUNDUP(COLUMNS($G:BX)/3,0))","v":"พายไส้มะพร้าว"},null,null,{"$f":"INDEX(INDIRECT(\"dProduct[ProductName]\"),ROUNDUP(COLUMNS($G:CA)/3,0))","v":"ขนมปังโรลมันเทศ"},null,null,{"$f":"INDEX(INDIRECT(\"dProduct[ProductName]\"),ROUNDUP(COLUMNS($G:CD)/3,0))","v":"ขนมปังไส้ครีมสลัดน้ำพริกเผา"},null,null,{"$f":"INDEX(INDIRECT(\"dProduct[ProductName]\"),ROUNDUP(COLUMNS($G:CG)/3,0))","v":"ขนมปังไส้สังขยาไข่"},null,null,{"$f":"INDEX(INDIRECT(\"dProduct[ProductName]\"),ROUNDUP(COLUMNS($G:CJ)/3,0))","v":"ขนมปังไส้สังขยามะพร้าว"},null,null,{"$f":"INDEX(INDIRECT(\"dProduct[ProductName]\"),ROUNDUP(COLUMNS($G:CM)/3,0))","v":"ขนมปังไส้ครีมชาไทย"},null,null,{"$f":"INDEX(INDIRECT(\"dProduct[ProductName]\"),ROUNDUP(COLUMNS($G:CP)/3,0))","v":"ขนมปังโรลมันม่วง"},null,null,{"$f":"INDEX(INDIRECT(\"dProduct[ProductName]\"),ROUNDUP(COLUMNS($G:CS)/3,0))","v":"ขนมปังโรลช็อกโกแลต"},null,null,{"$f":"INDEX(INDIRECT(\"dProduct[ProductName]\"),ROUNDUP(COLUMNS($G:CV)/3,0))","v":"ขนมปังชนิดแผ่น(155กรัม)"},null,null,{"$f":"INDEX(INDIRECT(\"dProduct[ProductName]\"),ROUNDUP(COLUMNS($G:CY)/3,0))","v":"ขนมปังโรลเผือก"},null,null,{"$f":"INDEX(INDIRECT(\"dProduct[ProductName]\"),ROUNDUP(COLUMNS($G:DB)/3,0))","v":"ขนมปังไก่หยองน้ำสลัด Mini"},null,null,{"$f":"INDEX(INDIRECT(\"dProduct[ProductName]\"),ROUNDUP(COLUMNS($G:DE)/3,0))","v":"ขนมปังไส้ช็อกโกแลต"},null,null,{"$f":"INDEX(INDIRECT(\"dProduct[ProductName]\"),ROUNDUP(COLUMNS($G:DH)/3,0))","v":"ขนมปังไส้ครีมสังขยาไข่"},null,null,{"$f":"INDEX(INDIRECT(\"dProduct[ProductName]\"),ROUNDUP(COLUMNS($G:DK)/3,0))","v":"ขนมปังพิซซ่าฮาวายเอี้ยน"},null,null,{"$f":"INDEX(INDIRECT(\"dProduct[ProductName]\"),ROUNDUP(COLUMNS($G:DN)/3,0))","v":"ครัวซองต์หมูหยองน้ำสลัด"},null,null,{"$f":"INDEX(INDIRECT(\"dProduct[ProductName]\"),ROUNDUP(COLUMNS($G:DQ)/3,0))","v":"แพนเบรดไส้เผือก"},null,null,{"$f":"INDEX(INDIRECT(\"dProduct[ProductName]\"),ROUNDUP(COLUMNS($G:DT)/3,0))","v":"แพนเบรดไส้ถั่วแดง"},null,null,{"$f":"INDEX(INDIRECT(\"dProduct[ProductName]\"),ROUNDUP(COLUMNS($G:DW)/3,0))","v":"ขนมปังกรอบเนยน้ำตาล(30กรัม)"},null,null,{"$f":"INDEX(INDIRECT(\"dProduct[ProductName]\"),ROUNDUP(COLUMNS($G:DZ)/3,0))","v":"ขนมปังชนิดแผ่นโฮลวีต"},null,null,{"$f":"INDEX(INDIRECT(\"dProduct[ProductName]\"),ROUNDUP(COLUMNS($G:EC)/3,0))","v":"เค้กโรลใบเตย"},null,null,{"$f":"INDEX(INDIRECT(\"dProduct[ProductName]\"),ROUNDUP(COLUMNS($G:EF)/3,0))","v":"ขนมโมจิไส้ถั่วดำ"},null,null,{"$f":"INDEX(INDIRECT(\"dProduct[ProductName]\"),ROUNDUP(COLUMNS($G:EI)/3,0))","v":"ครัวซองต์ไส้กรอกชีส"},null,null,{"$f":"INDEX(INDIRECT(\"dProduct[ProductName]\"),ROUNDUP(COLUMNS($G:EL)/3,0))","v":"ขนมเปี๊ยะไส้ถั่ว"},null,null,{"$f":"INDEX(INDIRECT(\"dProduct[ProductName]\"),ROUNDUP(COLUMNS($G:EO)/3,0))","v":"ขนมเปี๊ยะไส้ฟัก"},null,null,{"$f":"INDEX(INDIRECT(\"dProduct[ProductName]\"),ROUNDUP(COLUMNS($G:ER)/3,0))","v":"มังกี้เค้ก"},null,null,"มูลค่าสินค้า",null,"ภาษี","รวมยอดขาย"]
[null,null,null,null,null,"ราคาขาย",{"$f":"IF(G$7=0,0,INDEX(Price_List,ROUNDUP(COLUMNS($G:G)/3,0)))","v":20},null,null,{"$f":"IF(J$7=0,0,INDEX(Price_List,ROUNDUP(COLUMNS($G:J)/3,0)))","v":20},null,null,{"$f":"IF(M$7=0,0,INDEX(Price_List,ROUNDUP(COLUMNS($G:M)/3,0)))","v":20},null,null,{"$f":"IF(P$7=0,0,INDEX(Price_List,ROUNDUP(COLUMNS($G:P)/3,0)))","v":15},null,null,{"$f":"IF(S$7=0,0,INDEX(Price_List,ROUNDUP(COLUMNS($G:S)/3,0)))","v":15},null,null,{"$f":"IF(V$7=0,0,INDEX(Price_List,ROUNDUP(COLUMNS($G:V)/3,0)))","v":10},null,null,{"$f":"IF(Y$7=0,0,INDEX(Price_List,ROUNDUP(COLUMNS($G:Y)/3,0)))","v":10},null,null,{"$f":"IF(AB$7=0,0,INDEX(Price_List,ROUNDUP(COLUMNS($G:AB)/3,0)))","v":10},null,null,{"$f":"IF(AE$7=0,0,INDEX(Price_List,ROUNDUP(COLUMNS($G:AE)/3,0)))","v":10},null,null,{"$f":"IF(AH$7=0,0,INDEX(Price_List,ROUNDUP(COLUMNS($G:AH)/3,0)))","v":10},null,null,{"$f":"IF(AK$7=0,0,INDEX(Price_List,ROUNDUP(COLUMNS($G:AK)/3,0)))","v":15},null,null,{"$f":"IF(AN$7=0,0,INDEX(Price_List,ROUNDUP(COLUMNS($G:AN)/3,0)))","v":15},null,null,{"$f":"IF(AQ$7=0,0,INDEX(Price_List,ROUNDUP(COLUMNS($G:AQ)/3,0)))","v":15},null,null,{"$f":"IF(AT$7=0,0,INDEX(Price_List,ROUNDUP(COLUMNS($G:AT)/3,0)))","v":15},null,null,{"$f":"IF(AW$7=0,0,INDEX(Price_List,ROUNDUP(COLUMNS($G:AW)/3,0)))","v":42},null,null,{"$f":"IF(AZ$7=0,0,INDEX(Price_List,ROUNDUP(COLUMNS($G:AZ)/3,0)))","v":12},null,null,{"$f":"IF(BC$7=0,0,INDEX(Price_List,ROUNDUP(COLUMNS($G:BC)/3,0)))","v":12},null,null,{"$f":"IF(BF$7=0,0,INDEX(Price_List,ROUNDUP(COLUMNS($G:BF)/3,0)))","v":15},null,null,{"$f":"IF(BI$7=0,0,INDEX(Price_List,ROUNDUP(COLUMNS($G:BI)/3,0)))","v":20},null,null,{"$f":"IF(BL$7=0,0,INDEX(Price_List,ROUNDUP(COLUMNS($G:BL)/3,0)))","v":20},null,null,{"$f":"IF(BO$7=0,0,INDEX(Price_List,ROUNDUP(COLUMNS($G:BO)/3,0)))","v":20},null,null,{"$f":"IF(BR$7=0,0,INDEX(Price_List,ROUNDUP(COLUMNS($G:BR)/3,0)))","v":15},null,null,{"$f":"IF(BU$7=0,0,INDEX(Price_List,ROUNDUP(COLUMNS($G:BU)/3,0)))","v":20},null,null,{"$f":"IF(BX$7=0,0,INDEX(Price_List,ROUNDUP(COLUMNS($G:BX)/3,0)))","v":20},null,null,{"$f":"IF(CA$7=0,0,INDEX(Price_List,ROUNDUP(COLUMNS($G:CA)/3,0)))","v":15},null,null,{"$f":"IF(CD$7=0,0,INDEX(Price_List,ROUNDUP(COLUMNS($G:CD)/3,0)))","v":15},null,null,{"$f":"IF(CG$7=0,0,INDEX(Price_List,ROUNDUP(COLUMNS($G:CG)/3,0)))","v":20},null,null,{"$f":"IF(CJ$7=0,0,INDEX(Price_List,ROUNDUP(COLUMNS($G:CJ)/3,0)))","v":20},null,null,{"$f":"IF(CM$7=0,0,INDEX(Price_List,ROUNDUP(COLUMNS($G:CM)/3,0)))","v":10},null,null,{"$f":"IF(CP$7=0,0,INDEX(Price_List,ROUNDUP(COLUMNS($G:CP)/3,0)))","v":15},null,null,{"$f":"IF(CS$7=0,0,INDEX(Price_List,ROUNDUP(COLUMNS($G:CS)/3,0)))","v":15},null,null,{"$f":"IF(CV$7=0,0,INDEX(Price_List,ROUNDUP(COLUMNS($G:CV)/3,0)))","v":16},null,null,{"$f":"IF(CY$7=0,0,INDEX(Price_List,ROUNDUP(COLUMNS($G:CY)/3,0)))","v":15},null,null,{"$f":"IF(DB$7=0,0,INDEX(Price_List,ROUNDUP(COLUMNS($G:DB)/3,0)))","v":15},null,null,{"$f":"IF(DE$7=0,0,INDEX(Price_List,ROUNDUP(COLUMNS($G:DE)/3,0)))","v":10},null,null,{"$f":"IF(DH$7=0,0,INDEX(Price_List,ROUNDUP(COLUMNS($G:DH)/3,0)))","v":10},null,null,{"$f":"IF(DK$7=0,0,INDEX(Price_List,ROUNDUP(COLUMNS($G:DK)/3,0)))","v":20},null,null,{"$f":"IF(DN$7=0,0,INDEX(Price_List,ROUNDUP(COLUMNS($G:DN)/3,0)))","v":20},null,null,{"$f":"IF(DQ$7=0,0,INDEX(Price_List,ROUNDUP(COLUMNS($G:DQ)/3,0)))","v":15},null,null,{"$f":"IF(DT$7=0,0,INDEX(Price_List,ROUNDUP(COLUMNS($G:DT)/3,0)))","v":15},null,null,{"$f":"IF(DW$7=0,0,INDEX(Price_List,ROUNDUP(COLUMNS($G:DW)/3,0)))","v":12},null,null,{"$f":"IF(DZ$7=0,0,INDEX(Price_List,ROUNDUP(COLUMNS($G:DZ)/3,0)))","v":18},null,null,{"$f":"IF(EC$7=0,0,INDEX(Price_List,ROUNDUP(COLUMNS($G:EC)/3,0)))","v":12},null,null,{"$f":"IF(EF$7=0,0,INDEX(Price_List,ROUNDUP(COLUMNS($G:EF)/3,0)))","v":12},null,null,{"$f":"IF(EI$7=0,0,INDEX(Price_List,ROUNDUP(COLUMNS($G:EI)/3,0)))","v":25},null,null,{"$f":"IF(EL$7=0,0,INDEX(Price_List,ROUNDUP(COLUMNS($G:EL)/3,0)))","v":12},null,null,{"$f":"IF(EO$7=0,0,INDEX(Price_List,ROUNDUP(COLUMNS($G:EO)/3,0)))","v":12},null,null,{"$f":"IF(ER$7=0,0,INDEX(Price_List,ROUNDUP(COLUMNS($G:ER)/3,0)))","v":12},null,null,"เงินเชื่อ","เงินสด"]
[null,null,null,null,null,"คงเหลือ(ตามบัญชี)",{"$f":"IF(G$7=0,0,INDEX(INDIRECT(Order_Rng),ROUNDUP(COLUMNS($G:G)/3,0)))","v":0},null,null,{"$f":"IF(J$7=0,0,INDEX(INDIRECT(Order_Rng),ROUNDUP(COLUMNS($G:J)/3,0)))","v":0},null,null,{"$f":"IF(M$7=0,0,INDEX(INDIRECT(Order_Rng),ROUNDUP(COLUMNS($G:M)/3,0)))","v":0},null,null,{"$f":"IF(P$7=0,0,INDEX(INDIRECT(Order_Rng),ROUNDUP(COLUMNS($G:P)/3,0)))","v":0},null,null,{"$f":"IF(S$7=0,0,INDEX(INDIRECT(Order_Rng),ROUNDUP(COLUMNS($G:S)/3,0)))","v":0},null,null,{"$f":"IF(V$7=0,0,INDEX(INDIRECT(Order_Rng),ROUNDUP(COLUMNS($G:V)/3,0)))","v":0},null,null,{"$f":"IF(Y$7=0,0,INDEX(INDIRECT(Order_Rng),ROUNDUP(COLUMNS($G:Y)/3,0)))","v":0},null,null,{"$f":"IF(AB$7=0,0,INDEX(INDIRECT(Order_Rng),ROUNDUP(COLUMNS($G:AB)/3,0)))","v":0},null,null,{"$f":"IF(AE$7=0,0,INDEX(INDIRECT(Order_Rng),ROUNDUP(COLUMNS($G:AE)/3,0)))","v":0},null,null,{"$f":"IF(AH$7=0,0,INDEX(INDIRECT(Order_Rng),ROUNDUP(COLUMNS($G:AH)/3,0)))","v":0},null,null,{"$f":"IF(AK$7=0,0,INDEX(INDIRECT(Order_Rng),ROUNDUP(COLUMNS($G:AK)/3,0)))","v":0},null,null,{"$f":"IF(AN$7=0,0,INDEX(INDIRECT(Order_Rng),ROUNDUP(COLUMNS($G:AN)/3,0)))","v":0},null,null,{"$f":"IF(AQ$7=0,0,INDEX(INDIRECT(Order_Rng),ROUNDUP(COLUMNS($G:AQ)/3,0)))","v":0},null,null,{"$f":"IF(AT$7=0,0,INDEX(INDIRECT(Order_Rng),ROUNDUP(COLUMNS($G:AT)/3,0)))","v":0},null,null,{"$f":"IF(AW$7=0,0,INDEX(INDIRECT(Order_Rng),ROUNDUP(COLUMNS($G:AW)/3,0)))","v":0},null,null,{"$f":"IF(AZ$7=0,0,INDEX(INDIRECT(Order_Rng),ROUNDUP(COLUMNS($G:AZ)/3,0)))","v":0},null,null,{"$f":"IF(BC$7=0,0,INDEX(INDIRECT(Order_Rng),ROUNDUP(COLUMNS($G:BC)/3,0)))","v":0},null,null,{"$f":"IF(BF$7=0,0,INDEX(INDIRECT(Order_Rng),ROUNDUP(COLUMNS($G:BF)/3,0)))","v":0},null,null,{"$f":"IF(BI$7=0,0,INDEX(INDIRECT(Order_Rng),ROUNDUP(COLUMNS($G:BI)/3,0)))","v":0},null,null,{"$f":"IF(BL$7=0,0,INDEX(INDIRECT(Order_Rng),ROUNDUP(COLUMNS($G:BL)/3,0)))","v":0},null,null,{"$f":"IF(BO$7=0,0,INDEX(INDIRECT(Order_Rng),ROUNDUP(COLUMNS($G:BO)/3,0)))","v":0},null,null,{"$f":"IF(BR$7=0,0,INDEX(INDIRECT(Order_Rng),ROUNDUP(COLUMNS($G:BR)/3,0)))","v":0},null,null,{"$f":"IF(BU$7=0,0,INDEX(INDIRECT(Order_Rng),ROUNDUP(COLUMNS($G:BU)/3,0)))","v":0},null,null,{"$f":"IF(BX$7=0,0,INDEX(INDIRECT(Order_Rng),ROUNDUP(COLUMNS($G:BX)/3,0)))","v":0},null,null,{"$f":"IF(CA$7=0,0,INDEX(INDIRECT(Order_Rng),ROUNDUP(COLUMNS($G:CA)/3,0)))","v":0},null,null,{"$f":"IF(CD$7=0,0,INDEX(INDIRECT(Order_Rng),ROUNDUP(COLUMNS($G:CD)/3,0)))","v":0},null,null,{"$f":"IF(CG$7=0,0,INDEX(INDIRECT(Order_Rng),ROUNDUP(COLUMNS($G:CG)/3,0)))","v":0},null,null,{"$f":"IF(CJ$7=0,0,INDEX(INDIRECT(Order_Rng),ROUNDUP(COLUMNS($G:CJ)/3,0)))","v":0},null,null,{"$f":"IF(CM$7=0,0,INDEX(INDIRECT(Order_Rng),ROUNDUP(COLUMNS($G:CM)/3,0)))","v":0},null,null,{"$f":"IF(CP$7=0,0,INDEX(INDIRECT(Order_Rng),ROUNDUP(COLUMNS($G:CP)/3,0)))","v":0},null,null,{"$f":"IF(CS$7=0,0,INDEX(INDIRECT(Order_Rng),ROUNDUP(COLUMNS($G:CS)/3,0)))","v":0},null,null,{"$f":"IF(CV$7=0,0,INDEX(INDIRECT(Order_Rng),ROUNDUP(COLUMNS($G:CV)/3,0)))","v":0},null,null,{"$f":"IF(CY$7=0,0,INDEX(INDIRECT(Order_Rng),ROUNDUP(COLUMNS($G:CY)/3,0)))","v":0},null,null,{"$f":"IF(DB$7=0,0,INDEX(INDIRECT(Order_Rng),ROUNDUP(COLUMNS($G:DB)/3,0)))","v":0},null,null,{"$f":"IF(DE$7=0,0,INDEX(INDIRECT(Order_Rng),ROUNDUP(COLUMNS($G:DE)/3,0)))","v":0},null,null,{"$f":"IF(DH$7=0,0,INDEX(INDIRECT(Order_Rng),ROUNDUP(COLUMNS($G:DH)/3,0)))","v":0},null,null,{"$f":"IF(DK$7=0,0,INDEX(INDIRECT(Order_Rng),ROUNDUP(COLUMNS($G:DK)/3,0)))","v":0},null,null,{"$f":"IF(DN$7=0,0,INDEX(INDIRECT(Order_Rng),ROUNDUP(COLUMNS($G:DN)/3,0)))","v":0},null,null,{"$f":"IF(DQ$7=0,0,INDEX(INDIRECT(Order_Rng),ROUNDUP(COLUMNS($G:DQ)/3,0)))","v":0},null,null,{"$f":"IF(DT$7=0,0,INDEX(INDIRECT(Order_Rng),ROUNDUP(COLUMNS($G:DT)/3,0)))","v":0},null,null,{"$f":"IF(DW$7=0,0,INDEX(INDIRECT(Order_Rng),ROUNDUP(COLUMNS($G:DW)/3,0)))","v":0},null,null,{"$f":"IF(DZ$7=0,0,INDEX(INDIRECT(Order_Rng),ROUNDUP(COLUMNS($G:DZ)/3,0)))","v":0},null,null,{"$f":"IF(EC$7=0,0,INDEX(INDIRECT(Order_Rng),ROUNDUP(COLUMNS($G:EC)/3,0)))","v":0},null,null,{"$f":"IF(EF$7=0,0,INDEX(INDIRECT(Order_Rng),ROUNDUP(COLUMNS($G:EF)/3,0)))","v":0},null,null,{"$f":"IF(EI$7=0,0,INDEX(INDIRECT(Order_Rng),ROUNDUP(COLUMNS($G:EI)/3,0)))","v":0},null,null,{"$f":"IF(EL$7=0,0,INDEX(INDIRECT(Order_Rng),ROUNDUP(COLUMNS($G:EL)/3,0)))","v":0},null,null,{"$f":"IF(EO$7=0,0,INDEX(INDIRECT(Order_Rng),ROUNDUP(COLUMNS($G:EO)/3,0)))","v":0},null,null,{"$f":"IF(ER$7=0,0,INDEX(INDIRECT(Order_Rng),ROUNDUP(COLUMNS($G:ER)/3,0)))","v":0}]
[{"$f":"IF(OR($B10=\"\",COUNTIF($B$10:$B10,$B10)>1,LEN(TRIM($B10))<>10,ISNUMBER(--MID(TRIM($B10),5,1))),\"-\",MAX(COUNT($A$9:$A9)+1))","v":"-"}]
[{"$f":"IF(OR($B11=\"\",COUNTIF($B$10:$B11,$B11)>1,LEN(TRIM($B11))<>10,ISNUMBER(--MID(TRIM($B11),5,1))),\"-\",MAX(COUNT($A$9:$A10)+1))","v":"-"},null,null,null,{"$f":"IF(D11=\"\",\"\",D11-D10)","v":""}]
[{"$f":"IF(OR($B12=\"\",COUNTIF($B$10:$B12,$B12)>1,LEN(TRIM($B12))<>10,ISNUMBER(--MID(TRIM($B12),5,1))),\"-\",MAX(COUNT($A$9:$A11)+1))","v":"-"},null,null,null,{"$f":"IF(D12=\"\",\"\",D12-D11)","v":""}]
[{"$f":"IF(OR($B13=\"\",COUNTIF($B$10:$B13,$B13)>1,LEN(TRIM($B13))<>10,ISNUMBER(--MID(TRIM($B13),5,1))),\"-\",MAX(COUNT($A$9:$A12)+1))","v":"-"},null,null,null,""]
[{"$f":"IF(OR($B14=\"\",COUNTIF($B$10:$B14,$B14)>1,LEN(TRIM($B14))<>10,ISNUMBER(--MID(TRIM($B14),5,1))),\"-\",MAX(COUNT($A$9:$A13)+1))","v":"-"},null,null,null,""]
[{"$f":"IF(OR($B15=\"\",COUNTIF($B$10:$B15,$B15)>1,LEN(TRIM($B15))<>10,ISNUMBER(--MID(TRIM($B15),5,1))),\"-\",MAX(COUNT($A$9:$A14)+1))","v":"-"},null,null,null,""]
[{"$f":"IF(OR($B16=\"\",COUNTIF($B$10:$B16,$B16)>1,LEN(TRIM($B16))<>10,ISNUMBER(--MID(TRIM($B16),5,1))),\"-\",MAX(COUNT($A$9:$A15)+1))","v":"-"},null,null,null,""]
[{"$f":"IF(OR($B17=\"\",COUNTIF($B$10:$B17,$B17)>1,LEN(TRIM($B17))<>10,ISNUMBER(--MID(TRIM($B17),5,1))),\"-\",MAX(COUNT($A$9:$A16)+1))","v":"-"},null,null,null,""]
[{"$f":"IF(OR($B18=\"\",COUNTIF($B$10:$B18,$B18)>1,LEN(TRIM($B18))<>10,ISNUMBER(--MID(TRIM($B18),5,1))),\"-\",MAX(COUNT($A$9:$A17)+1))","v":"-"},null,null,null,""]
[{"$f":"IF(OR($B19=\"\",COUNTIF($B$10:$B19,$B19)>1,LEN(TRIM($B19))<>10,ISNUMBER(--MID(TRIM($B19),5,1))),\"-\",MAX(COUNT($A$9:$A18)+1))","v":"-"},null,null,null,""]
[{"$f":"IF(OR($B20=\"\",COUNTIF($B$10:$B20,$B20)>1,LEN(TRIM($B20))<>10,ISNUMBER(--MID(TRIM($B20),5,1))),\"-\",MAX(COUNT($A$9:$A19)+1))","v":"-"},null,null,null,""]
[{"$f":"IF(OR($B21=\"\",COUNTIF($B$10:$B21,$B21)>1,LEN(TRIM($B21))<>10,ISNUMBER(--MID(TRIM($B21),5,1))),\"-\",MAX(COUNT($A$9:$A20)+1))","v":"-"},null,null,null,""]
[{"$f":"IF(OR($B22=\"\",COUNTIF($B$10:$B22,$B22)>1,LEN(TRIM($B22))<>10,ISNUMBER(--MID(TRIM($B22),5,1))),\"-\",MAX(COUNT($A$9:$A21)+1))","v":"-"},null,null,null,""]
[{"$f":"IF(OR($B23=\"\",COUNTIF($B$10:$B23,$B23)>1,LEN(TRIM($B23))<>10,ISNUMBER(--MID(TRIM($B23),5,1))),\"-\",MAX(COUNT($A$9:$A22)+1))","v":"-"},null,null,null,""]
[{"$f":"IF(OR($B24=\"\",COUNTIF($B$10:$B24,$B24)>1,LEN(TRIM($B24))<>10,ISNUMBER(--MID(TRIM($B24),5,1))),\"-\",MAX(COUNT($A$9:$A23)+1))","v":"-"},null,null,null,""]
[{"$f":"IF(OR($B25=\"\",COUNTIF($B$10:$B25,$B25)>1,LEN(TRIM($B25))<>10,ISNUMBER(--MID(TRIM($B25),5,1))),\"-\",MAX(COUNT($A$9:$A24)+1))","v":"-"},null,null,null,""]
[{"$f":"IF(OR($B26=\"\",COUNTIF($B$10:$B26,$B26)>1,LEN(TRIM($B26))<>10,ISNUMBER(--MID(TRIM($B26),5,1))),\"-\",MAX(COUNT($A$9:$A25)+1))","v":"-"},null,null,null,""]
[{"$f":"IF(OR($B27=\"\",COUNTIF($B$10:$B27,$B27)>1,LEN(TRIM($B27))<>10,ISNUMBER(--MID(TRIM($B27),5,1))),\"-\",MAX(COUNT($A$9:$A26)+1))","v":"-"},null,null,null,""]
[{"$f":"IF(OR($B28=\"\",COUNTIF($B$10:$B28,$B28)>1,LEN(TRIM($B28))<>10,ISNUMBER(--MID(TRIM($B28),5,1))),\"-\",MAX(COUNT($A$9:$A27)+1))","v":"-"},null,null,null,""]
[{"$f":"IF(OR($B29=\"\",COUNTIF($B$10:$B29,$B29)>1,LEN(TRIM($B29))<>10,ISNUMBER(--MID(TRIM($B29),5,1))),\"-\",MAX(COUNT($A$9:$A28)+1))","v":"-"},null,null,null,""]
[{"$f":"IF(OR($B30=\"\",COUNTIF($B$10:$B30,$B30)>1,LEN(TRIM($B30))<>10,ISNUMBER(--MID(TRIM($B30),5,1))),\"-\",MAX(COUNT($A$9:$A29)+1))","v":"-"},null,null,null,""]
[{"$f":"IF(OR($B31=\"\",COUNTIF($B$10:$B31,$B31)>1,LEN(TRIM($B31))<>10,ISNUMBER(--MID(TRIM($B31),5,1))),\"-\",MAX(COUNT($A$9:$A30)+1))","v":"-"},null,null,null,""]
[{"$f":"IF(OR($B32=\"\",COUNTIF($B$10:$B32,$B32)>1,LEN(TRIM($B32))<>10,ISNUMBER(--MID(TRIM($B32),5,1))),\"-\",MAX(COUNT($A$9:$A31)+1))","v":"-"},null,null,null,""]
[{"$f":"IF(OR($B33=\"\",COUNTIF($B$10:$B33,$B33)>1,LEN(TRIM($B33))<>10,ISNUMBER(--MID(TRIM($B33),5,1))),\"-\",MAX(COUNT($A$9:$A32)+1))","v":"-"},null,null,null,""]
[{"$f":"IF(OR($B34=\"\",COUNTIF($B$10:$B34,$B34)>1,LEN(TRIM($B34))<>10,ISNUMBER(--MID(TRIM($B34),5,1))),\"-\",MAX(COUNT($A$9:$A33)+1))","v":"-"},null,null,null,""]
[{"$f":"IF(OR($B35=\"\",COUNTIF($B$10:$B35,$B35)>1,LEN(TRIM($B35))<>10,ISNUMBER(--MID(TRIM($B35),5,1))),\"-\",MAX(COUNT($A$9:$A34)+1))","v":"-"},null,null,null,""]
[{"$f":"IF(OR($B36=\"\",COUNTIF($B$10:$B36,$B36)>1,LEN(TRIM($B36))<>10,ISNUMBER(--MID(TRIM($B36),5,1))),\"-\",MAX(COUNT($A$9:$A35)+1))","v":"-"},null,null,null,""]
[{"$f":"IF(OR($B37=\"\",COUNTIF($B$10:$B37,$B37)>1,LEN(TRIM($B37))<>10,ISNUMBER(--MID(TRIM($B37),5,1))),\"-\",MAX(COUNT($A$9:$A36)+1))","v":"-"},null,null,null,""]
[{"$f":"IF(OR($B38=\"\",COUNTIF($B$10:$B38,$B38)>1,LEN(TRIM($B38))<>10,ISNUMBER(--MID(TRIM($B38),5,1))),\"-\",MAX(COUNT($A$9:$A37)+1))","v":"-"},null,null,null,""]
[{"$f":"IF(OR($B39=\"\",COUNTIF($B$10:$B39,$B39)>1,LEN(TRIM($B39))<>10,ISNUMBER(--MID(TRIM($B39),5,1))),\"-\",MAX(COUNT($A$9:$A38)+1))","v":"-"},null,null,null,""]
[{"$f":"IF(OR($B40=\"\",COUNTIF($B$10:$B40,$B40)>1,LEN(TRIM($B40))<>10,ISNUMBER(--MID(TRIM($B40),5,1))),\"-\",MAX(COUNT($A$9:$A39)+1))","v":"-"},null,null,null,""]
[{"$f":"IF(OR($B41=\"\",COUNTIF($B$10:$B41,$B41)>1,LEN(TRIM($B41))<>10,ISNUMBER(--MID(TRIM($B41),5,1))),\"-\",MAX(COUNT($A$9:$A40)+1))","v":"-"},null,null,null,""]
[{"$f":"IF(OR($B42=\"\",COUNTIF($B$10:$B42,$B42)>1,LEN(TRIM($B42))<>10,ISNUMBER(--MID(TRIM($B42),5,1))),\"-\",MAX(COUNT($A$9:$A41)+1))","v":"-"},null,null,null,""]
[{"$f":"IF(OR($B43=\"\",COUNTIF($B$10:$B43,$B43)>1,LEN(TRIM($B43))<>10,ISNUMBER(--MID(TRIM($B43),5,1))),\"-\",MAX(COUNT($A$9:$A42)+1))","v":"-"},null,null,null,""]
[{"$f":"IF(OR($B44=\"\",COUNTIF($B$10:$B44,$B44)>1,LEN(TRIM($B44))<>10,ISNUMBER(--MID(TRIM($B44),5,1))),\"-\",MAX(COUNT($A$9:$A43)+1))","v":"-"},null,null,null,""]
[{"$f":"IF(OR($B45=\"\",COUNTIF($B$10:$B45,$B45)>1,LEN(TRIM($B45))<>10,ISNUMBER(--MID(TRIM($B45),5,1))),\"-\",MAX(COUNT($A$9:$A44)+1))","v":"-"},null,null,null,""]
[{"$f":"IF(OR($B46=\"\",COUNTIF($B$10:$B46,$B46)>1,LEN(TRIM($B46))<>10,ISNUMBER(--MID(TRIM($B46),5,1))),\"-\",MAX(COUNT($A$9:$A45)+1))","v":"-"},null,null,null,""]
[{"$f":"IF(OR($B47=\"\",COUNTIF($B$10:$B47,$B47)>1,LEN(TRIM($B47))<>10,ISNUMBER(--MID(TRIM($B47),5,1))),\"-\",MAX(COUNT($A$9:$A46)+1))","v":"-"},null,null,null,""]
[{"$f":"IF(OR($B48=\"\",COUNTIF($B$10:$B48,$B48)>1,LEN(TRIM($B48))<>10,ISNUMBER(--MID(TRIM($B48),5,1))),\"-\",MAX(COUNT($A$9:$A47)+1))","v":"-"},null,null,null,""]
[{"$f":"IF(OR($B49=\"\",COUNTIF($B$10:$B49,$B49)>1,LEN(TRIM($B49))<>10,ISNUMBER(--MID(TRIM($B49),5,1))),\"-\",MAX(COUNT($A$9:$A48)+1))","v":"-"},null,null,null,""]
[{"$f":"IF(OR($B50=\"\",COUNTIF($B$10:$B50,$B50)>1,LEN(TRIM($B50))<>10,ISNUMBER(--MID(TRIM($B50),5,1))),\"-\",MAX(COUNT($A$9:$A49)+1))","v":"-"},null,null,null,""]
[{"$f":"IF(OR($B51=\"\",COUNTIF($B$10:$B51,$B51)>1,LEN(TRIM($B51))<>10,ISNUMBER(--MID(TRIM($B51),5,1))),\"-\",MAX(COUNT($A$9:$A50)+1))","v":"-"},null,null,null,""]
[{"$f":"IF(OR($B52=\"\",COUNTIF($B$10:$B52,$B52)>1,LEN(TRIM($B52))<>10,ISNUMBER(--MID(TRIM($B52),5,1))),\"-\",MAX(COUNT($A$9:$A51)+1))","v":"-"},null,null,null,""]
[{"$f":"IF(OR($B53=\"\",COUNTIF($B$10:$B53,$B53)>1,LEN(TRIM($B53))<>10,ISNUMBER(--MID(TRIM($B53),5,1))),\"-\",MAX(COUNT($A$9:$A52)+1))","v":"-"},null,null,null,""]
[{"$f":"IF(OR($B54=\"\",COUNTIF($B$10:$B54,$B54)>1,LEN(TRIM($B54))<>10,ISNUMBER(--MID(TRIM($B54),5,1))),\"-\",MAX(COUNT($A$9:$A53)+1))","v":"-"},null,null,null,""]
[{"$f":"IF(OR($B55=\"\",COUNTIF($B$10:$B55,$B55)>1,LEN(TRIM($B55))<>10,ISNUMBER(--MID(TRIM($B55),5,1))),\"-\",MAX(COUNT($A$9:$A54)+1))","v":"-"},null,null,null,""]
[{"$f":"IF(OR($B56=\"\",COUNTIF($B$10:$B56,$B56)>1,LEN(TRIM($B56))<>10,ISNUMBER(--MID(TRIM($B56),5,1))),\"-\",MAX(COUNT($A$9:$A55)+1))","v":"-"},null,null,null,""]
[{"$f":"IF(OR($B57=\"\",COUNTIF($B$10:$B57,$B57)>1,LEN(TRIM($B57))<>10,ISNUMBER(--MID(TRIM($B57),5,1))),\"-\",MAX(COUNT($A$9:$A56)+1))","v":"-"},null,null,null,""]
[{"$f":"IF(OR($B58=\"\",COUNTIF($B$10:$B58,$B58)>1,LEN(TRIM($B58))<>10,ISNUMBER(--MID(TRIM($B58),5,1))),\"-\",MAX(COUNT($A$9:$A57)+1))","v":"-"},null,null,null,""]
[{"$f":"IF(OR($B59=\"\",COUNTIF($B$10:$B59,$B59)>1,LEN(TRIM($B59))<>10,ISNUMBER(--MID(TRIM($B59),5,1))),\"-\",MAX(COUNT($A$9:$A58)+1))","v":"-"},null,null,null,{"$f":"IF(D59=\"\",\"\",D59-D58)","v":""}]
[{"$f":"IF(OR($B60=\"\",COUNTIF($B$10:$B60,$B60)>1,LEN(TRIM($B60))<>10,ISNUMBER(--MID(TRIM($B60),5,1))),\"-\",MAX(COUNT($A$9:$A59)+1))","v":"-"},null,null,null,""]
[{"$f":"IF(OR($B61=\"\",COUNTIF($B$10:$B61,$B61)>1,LEN(TRIM($B61))<>10,ISNUMBER(--MID(TRIM($B61),5,1))),\"-\",MAX(COUNT($A$9:$A60)+1))","v":"-"},null,null,null,""]
[{"$f":"IF(OR($B62=\"\",COUNTIF($B$10:$B62,$B62)>1,LEN(TRIM($B62))<>10,ISNUMBER(--MID(TRIM($B62),5,1))),\"-\",MAX(COUNT($A$9:$A61)+1))","v":"-"},null,null,null,""]
[{"$f":"IF(OR($B63=\"\",COUNTIF($B$10:$B63,$B63)>1,LEN(TRIM($B63))<>10,ISNUMBER(--MID(TRIM($B63),5,1))),\"-\",MAX(COUNT($A$9:$A62)+1))","v":"-"},null,null,null,""]
[{"$f":"IF(OR($B64=\"\",COUNTIF($B$10:$B64,$B64)>1,LEN(TRIM($B64))<>10,ISNUMBER(--MID(TRIM($B64),5,1))),\"-\",MAX(COUNT($A$9:$A63)+1))","v":"-"},null,null,null,""]
[{"$f":"IF(OR($B65=\"\",COUNTIF($B$10:$B65,$B65)>1,LEN(TRIM($B65))<>10,ISNUMBER(--MID(TRIM($B65),5,1))),\"-\",MAX(COUNT($A$9:$A64)+1))","v":"-"},null,null,null,""]
[{"$f":"IF(OR($B66=\"\",COUNTIF($B$10:$B66,$B66)>1,LEN(TRIM($B66))<>10,ISNUMBER(--MID(TRIM($B66),5,1))),\"-\",MAX(COUNT($A$9:$A65)+1))","v":"-"},null,null,null,""]
[{"$f":"IF(OR($B67=\"\",COUNTIF($B$10:$B67,$B67)>1,LEN(TRIM($B67))<>10,ISNUMBER(--MID(TRIM($B67),5,1))),\"-\",MAX(COUNT($A$9:$A66)+1))","v":"-"},null,null,null,""]
[{"$f":"IF(OR($B68=\"\",COUNTIF($B$10:$B68,$B68)>1,LEN(TRIM($B68))<>10,ISNUMBER(--MID(TRIM($B68),5,1))),\"-\",MAX(COUNT($A$9:$A67)+1))","v":"-"},null,null,null,""]
[{"$f":"IF(OR($B69=\"\",COUNTIF($B$10:$B69,$B69)>1,LEN(TRIM($B69))<>10,ISNUMBER(--MID(TRIM($B69),5,1))),\"-\",MAX(COUNT($A$9:$A68)+1))","v":"-"},null,null,null,""]
[{"$f":"IF(OR($B70=\"\",COUNTIF($B$10:$B70,$B70)>1,LEN(TRIM($B70))<>10,ISNUMBER(--MID(TRIM($B70),5,1))),\"-\",MAX(COUNT($A$9:$A69)+1))","v":"-"},null,null,null,""]
[{"$f":"IF(OR($B71=\"\",COUNTIF($B$10:$B71,$B71)>1,LEN(TRIM($B71))<>10,ISNUMBER(--MID(TRIM($B71),5,1))),\"-\",MAX(COUNT($A$9:$A70)+1))","v":"-"},null,null,null,""]
[{"$f":"IF(OR($B72=\"\",COUNTIF($B$10:$B72,$B72)>1,LEN(TRIM($B72))<>10,ISNUMBER(--MID(TRIM($B72),5,1))),\"-\",MAX(COUNT($A$9:$A71)+1))","v":"-"},null,null,null,""]
[{"$f":"IF(OR($B73=\"\",COUNTIF($B$10:$B73,$B73)>1,LEN(TRIM($B73))<>10,ISNUMBER(--MID(TRIM($B73),5,1))),\"-\",MAX(COUNT($A$9:$A72)+1))","v":"-"},null,null,null,""]
[{"$f":"IF(OR($B74=\"\",COUNTIF($B$10:$B74,$B74)>1,LEN(TRIM($B74))<>10,ISNUMBER(--MID(TRIM($B74),5,1))),\"-\",MAX(COUNT($A$9:$A73)+1))","v":"-"},null,null,null,""]
[{"$f":"IF(OR($B75=\"\",COUNTIF($B$10:$B75,$B75)>1,LEN(TRIM($B75))<>10,ISNUMBER(--MID(TRIM($B75),5,1))),\"-\",MAX(COUNT($A$9:$A74)+1))","v":"-"},null,null,null,""]
[{"$f":"IF(OR($B76=\"\",COUNTIF($B$10:$B76,$B76)>1,LEN(TRIM($B76))<>10,ISNUMBER(--MID(TRIM($B76),5,1))),\"-\",MAX(COUNT($A$9:$A75)+1))","v":"-"},null,null,null,""]
[{"$f":"IF(OR($B77=\"\",COUNTIF($B$10:$B77,$B77)>1,LEN(TRIM($B77))<>10,ISNUMBER(--MID(TRIM($B77),5,1))),\"-\",MAX(COUNT($A$9:$A76)+1))","v":"-"},null,null,null,""]
[{"$f":"IF(OR($B78=\"\",COUNTIF($B$10:$B78,$B78)>1,LEN(TRIM($B78))<>10,ISNUMBER(--MID(TRIM($B78),5,1))),\"-\",MAX(COUNT($A$9:$A77)+1))","v":"-"},null,null,null,""]
[{"$f":"IF(OR($B79=\"\",COUNTIF($B$10:$B79,$B79)>1,LEN(TRIM($B79))<>10,ISNUMBER(--MID(TRIM($B79),5,1))),\"-\",MAX(COUNT($A$9:$A78)+1))","v":"-"},null,null,null,""]
["รวมของขาย|ของเสีย|เหลือบนเชลฟ์",null,null,null,null,null,{"$f":"SUM(G10:G79)","v":0},0,0,0,0,0,0,0,0,0,0,0,0,0,0,0,0,0,0,0,0,0,0,0,0,0,0,0,0,0,0,0,{"$f":"SUM(AM10:AM79)","v":0},0,0,0,0,0,0,0,0,0,0,0,0,0,0,0,0,0,0,0,0,0,0,0,0,0,0,0,0,0,0,0,0,0,0,0,0,0,0,0,0,0,0,0,0,0,0,0,0,0,0,0,0,0,0,0,0,0,0,0,0,0,0,0,0,0,0,0,0,0,0,0,0,0,0,0,0,0,0,0,0,0,0,0,0,0,0,0,0,0,0,0,0,0,0,0,0,{"$f":"SUM(EF10:EF79)","v":0},0,0,{"$f":"SUM(EI10:EI79)","v":0},0,0,0,0,0,{"$f":"SUM(EO10:EO79)","v":0},0,0,0,0,0,"รวมเงินเชื่อ","รวมเงินสด","ภาษี","รวมยอดขาย"]
["ของเหลือ",null,null,null,null,null,{"$f":"G80+H80-G9","v":0},null,null,{"$f":"J80+K80-J9","v":0},null,null,{"$f":"M80+N80-M9","v":0},null,null,{"$f":"P80+Q80-P9","v":0},null,null,{"$f":"S80+T80-S9","v":0},null,null,{"$f":"V80+W80-V9","v":0},null,null,{"$f":"Y80+Z80-Y9","v":0},null,null,{"$f":"AB80+AC80-AB9","v":0},null,null,{"$f":"AE80+AF80-AE9","v":0},null,null,{"$f":"AH80+AI80-AH9","v":0},null,null,{"$f":"AK80+AL80-AK9","v":0},null,null,{"$f":"AN80+AO80-AN9","v":0},null,null,{"$f":"AQ80+AR80-AQ9","v":0},null,null,{"$f":"AT80+AU80-AT9","v":0},null,null,{"$f":"AW80+AX80-AW9","v":0},null,null,{"$f":"AZ80+BA80-AZ9","v":0},null,null,{"$f":"BC80+BD80-BC9","v":0},null,null,{"$f":"BF80+BG80-BF9","v":0},null,null,{"$f":"BI80+BJ80-BI9","v":0},null,null,{"$f":"BL80+BM80-BL9","v":0},null,null,{"$f":"BO80+BP80-BO9","v":0},null,null,{"$f":"BR80+BS80-BR9","v":0},null,null,{"$f":"BU80+BV80-BU9","v":0},null,null,{"$f":"BX80+BY80-BX9","v":0},null,null,{"$f":"CA80+CB80-CA9","v":0},null,null,{"$f":"CD80+CE80-CD9","v":0},null,null,{"$f":"CG80+CH80-CG9","v":0},null,null,{"$f":"CJ80+CK80-CJ9","v":0},null,null,{"$f":"CM80+CN80-CM9","v":0},null,null,{"$f":"CP80+CQ80-CP9","v":0},null,null,{"$f":"CS80+CT80-CS9","v":0},null,null,{"$f":"CV80+CW80-CV9","v":0},null,null,{"$f":"CY80+CZ80-CY9","v":0},null,null,{"$f":"DB80+DC80-DB9","v":0},null,null,{"$f":"DE80+DF80-DE9","v":0},null,null,{"$f":"DH80+DI80-DH9","v":0},null,null,{"$f":"DK80+DL80-DK9","v":0},null,null,{"$f":"DN80+DO80-DN9","v":0},null,null,{"$f":"DQ80+DR80-DQ9","v":0},null,null,{"$f":"DT80+DU80-DT9","v":0},null,null,{"$f":"DW80+DX80-DW9","v":0},null,null,{"$f":"DZ80+EA80-DZ9","v":0},null,null,{"$f":"EC80+ED80-EC9","v":0},null,null,{"$f":"EF80+EG80-EF9","v":0},null,null,{"$f":"EI80+EJ80-EI9","v":0},null,null,{"$f":"EL80+EM80-EL9","v":0},null,null,{"$f":"EO80+EP80-EO9","v":0},null,null,{"$f":"ER80+ES80-ER9","v":0},null,null,{"$f":"SUM(EU10:EU79)","v":0},{"$f":"SUM(EV10:EV79)","v":0},{"$f":"SUM(EW10:EW79)","v":0},{"$f":"SUM(EX10:EX79)","v":0}]
["เฉลี่ย",null,null,"เหลือ/เสีย(จริง)",null,null,{"$f":"INDIRECT(\"F\"&ROW($G$87)+ROUNDUP(COLUMNS($G:G)/3,0))","v":0},{"$f":"INDIRECT(\"G\"&ROW($G$87)+ROUNDUP(COLUMNS($G:H)/3,0))","v":0},null,{"$f":"INDIRECT(\"F\"&ROW($G$87)+ROUNDUP(COLUMNS($G:J)/3,0))","v":0},{"$f":"INDIRECT(\"G\"&ROW($G$87)+ROUNDUP(COLUMNS($G:K)/3,0))","v":0},null,{"$f":"INDIRECT(\"F\"&ROW($G$87)+ROUNDUP(COLUMNS($G:M)/3,0))","v":0},{"$f":"INDIRECT(\"G\"&ROW($G$87)+ROUNDUP(COLUMNS($G:N)/3,0))","v":0},null,{"$f":"INDIRECT(\"F\"&ROW($G$87)+ROUNDUP(COLUMNS($G:P)/3,0))","v":0},{"$f":"INDIRECT(\"G\"&ROW($G$87)+ROUNDUP(COLUMNS($G:Q)/3,0))","v":0},null,{"$f":"INDIRECT(\"F\"&ROW($G$87)+ROUNDUP(COLUMNS($G:S)/3,0))","v":0},{"$f":"INDIRECT(\"G\"&ROW($G$87)+ROUNDUP(COLUMNS($G:T)/3,0))","v":0},null,{"$f":"INDIRECT(\"F\"&ROW($G$87)+ROUNDUP(COLUMNS($G:V)/3,0))","v":0},{"$f":"INDIRECT(\"G\"&ROW($G$87)+ROUNDUP(COLUMNS($G:W)/3,0))","v":0},null,{"$f":"INDIRECT(\"F\"&ROW($G$87)+ROUNDUP(COLUMNS($G:Y)/3,0))","v":0},{"$f":"INDIRECT(\"G\"&ROW($G$87)+ROUNDUP(COLUMNS($G:Z)/3,0))","v":0},null,{"$f":"INDIRECT(\"F\"&ROW($G$87)+ROUNDUP(COLUMNS($G:AB)/3,0))","v":0},{"$f":"INDIRECT(\"G\"&ROW($G$87)+ROUNDUP(COLUMNS($G:AC)/3,0))","v":0},null,{"$f":"INDIRECT(\"F\"&ROW($G$87)+ROUNDUP(COLUMNS($G:AE)/3,0))","v":0},{"$f":"INDIRECT(\"G\"&ROW($G$87)+ROUNDUP(COLUMNS($G:AF)/3,0))","v":0},null,{"$f":"INDIRECT(\"F\"&ROW($G$87)+ROUNDUP(COLUMNS($G:AH)/3,0))","v":0},{"$f":"INDIRECT(\"G\"&ROW($G$87)+ROUNDUP(COLUMNS($G:AI)/3,0))","v":0},null,{"$f":"INDIRECT(\"F\"&ROW($G$87)+ROUNDUP(COLUMNS($G:AK)/3,0))","v":0},{"$f":"INDIRECT(\"G\"&ROW($G$87)+ROUNDUP(COLUMNS($G:AL)/3,0))","v":0},null,{"$f":"INDIRECT(\"F\"&ROW($G$87)+ROUNDUP(COLUMNS($G:AN)/3,0))","v":0},{"$f":"INDIRECT(\"G\"&ROW($G$87)+ROUNDUP(COLUMNS($G:AO)/3,0))","v":0},null,{"$f":"INDIRECT(\"F\"&ROW($G$87)+ROUNDUP(COLUMNS($G:AQ)/3,0))","v":0},{"$f":"INDIRECT(\"G\"&ROW($G$87)+ROUNDUP(COLUMNS($G:AR)/3,0))","v":0},null,{"$f":"INDIRECT(\"F\"&ROW($G$87)+ROUNDUP(COLUMNS($G:AT)/3,0))","v":0},{"$f":"INDIRECT(\"G\"&ROW($G$87)+ROUNDUP(COLUMNS($G:AU)/3,0))","v":0},null,{"$f":"INDIRECT(\"F\"&ROW($G$87)+ROUNDUP(COLUMNS($G:AW)/3,0))","v":0},{"$f":"INDIRECT(\"G\"&ROW($G$87)+ROUNDUP(COLUMNS($G:AX)/3,0))","v":0},null,{"$f":"INDIRECT(\"F\"&ROW($G$87)+ROUNDUP(COLUMNS($G:AZ)/3,0))","v":0},{"$f":"INDIRECT(\"G\"&ROW($G$87)+ROUNDUP(COLUMNS($G:BA)/3,0))","v":0},null,{"$f":"INDIRECT(\"F\"&ROW($G$87)+ROUNDUP(COLUMNS($G:BC)/3,0))","v":0},{"$f":"INDIRECT(\"G\"&ROW($G$87)+ROUNDUP(COLUMNS($G:BD)/3,0))","v":0},null,{"$f":"INDIRECT(\"F\"&ROW($G$87)+ROUNDUP(COLUMNS($G:BF)/3,0))","v":0},{"$f":"INDIRECT(\"G\"&ROW($G$87)+ROUNDUP(COLUMNS($G:BG)/3,0))","v":0},null,{"$f":"INDIRECT(\"F\"&ROW($G$87)+ROUNDUP(COLUMNS($G:BI)/3,0))","v":0},{"$f":"INDIRECT(\"G\"&ROW($G$87)+ROUNDUP(COLUMNS($G:BJ)/3,0))","v":0},null,{"$f":"INDIRECT(\"F\"&ROW($G$87)+ROUNDUP(COLUMNS($G:BL)/3,0))","v":0},{"$f":"INDIRECT(\"G\"&ROW($G$87)+ROUNDUP(COLUMNS($G:BM)/3,0))","v":0},null,{"$f":"INDIRECT(\"F\"&ROW($G$87)+ROUNDUP(COLUMNS($G:BO)/3,0))","v":0},{"$f":"INDIRECT(\"G\"&ROW($G$87)+ROUNDUP(COLUMNS($G:BP)/3,0))","v":0},null,{"$f":"INDIRECT(\"F\"&ROW($G$87)+ROUNDUP(COLUMNS($G:BR)/3,0))","v":0},{"$f":"INDIRECT(\"G\"&ROW($G$87)+ROUNDUP(COLUMNS($G:BS)/3,0))","v":0},null,{"$f":"INDIRECT(\"F\"&ROW($G$87)+ROUNDUP(COLUMNS($G:BU)/3,0))","v":0},{"$f":"INDIRECT(\"G\"&ROW($G$87)+ROUNDUP(COLUMNS($G:BV)/3,0))","v":0},null,{"$f":"INDIRECT(\"F\"&ROW($G$87)+ROUNDUP(COLUMNS($G:BX)/3,0))","v":0},{"$f":"INDIRECT(\"G\"&ROW($G$87)+ROUNDUP(COLUMNS($G:BY)/3,0))","v":0},null,{"$f":"INDIRECT(\"F\"&ROW($G$87)+ROUNDUP(COLUMNS($G:CA)/3,0))","v":0},{"$f":"INDIRECT(\"G\"&ROW($G$87)+ROUNDUP(COLUMNS($G:CB)/3,0))","v":0},null,{"$f":"INDIRECT(\"F\"&ROW($G$87)+ROUNDUP(COLUMNS($G:CD)/3,0))","v":0},{"$f":"INDIRECT(\"G\"&ROW($G$87)+ROUNDUP(COLUMNS($G:CE)/3,0))","v":0},null,{"$f":"INDIRECT(\"F\"&ROW($G$87)+ROUNDUP(COLUMNS($G:CG)/3,0))","v":0},{"$f":"INDIRECT(\"G\"&ROW($G$87)+ROUNDUP(COLUMNS($G:CH)/3,0))","v":0},null,{"$f":"INDIRECT(\"F\"&ROW($G$87)+ROUNDUP(COLUMNS($G:CJ)/3,0))","v":0},{"$f":"INDIRECT(\"G\"&ROW($G$87)+ROUNDUP(COLUMNS($G:CK)/3,0))","v":0},null,{"$f":"INDIRECT(\"F\"&ROW($G$87)+ROUNDUP(COLUMNS($G:CM)/3,0))","v":0},{"$f":"INDIRECT(\"G\"&ROW($G$87)+ROUNDUP(COLUMNS($G:CN)/3,0))","v":0},null,{"$f":"INDIRECT(\"F\"&ROW($G$87)+ROUNDUP(COLUMNS($G:CP)/3,0))","v":0},{"$f":"INDIRECT(\"G\"&ROW($G$87)+ROUNDUP(COLUMNS($G:CQ)/3,0))","v":0},null,{"$f":"INDIRECT(\"F\"&ROW($G$87)+ROUNDUP(COLUMNS($G:CS)/3,0))","v":0},{"$f":"INDIRECT(\"G\"&ROW($G$87)+ROUNDUP(COLUMNS($G:CT)/3,0))","v":0},null,{"$f":"INDIRECT(\"F\"&ROW($G$87)+ROUNDUP(COLUMNS($G:CV)/3,0))","v":0},{"$f":"INDIRECT(\"G\"&ROW($G$87)+ROUNDUP(COLUMNS($G:CW)/3,0))","v":0},null,{"$f":"INDIRECT(\"F\"&ROW($G$87)+ROUNDUP(COLUMNS($G:CY)/3,0))","v":0},{"$f":"INDIRECT(\"G\"&ROW($G$87)+ROUNDUP(COLUMNS($G:CZ)/3,0))","v":0},null,{"$f":"INDIRECT(\"F\"&ROW($G$87)+ROUNDUP(COLUMNS($G:DB)/3,0))","v":0},{"$f":"INDIRECT(\"G\"&ROW($G$87)+ROUNDUP(COLUMNS($G:DC)/3,0))","v":0},null,{"$f":"INDIRECT(\"F\"&ROW($G$87)+ROUNDUP(COLUMNS($G:DE)/3,0))","v":0},{"$f":"INDIRECT(\"G\"&ROW($G$87)+ROUNDUP(COLUMNS($G:DF)/3,0))","v":0},null,{"$f":"INDIRECT(\"F\"&ROW($G$87)+ROUNDUP(COLUMNS($G:DH)/3,0))","v":0},{"$f":"INDIRECT(\"G\"&ROW($G$87)+ROUNDUP(COLUMNS($G:DI)/3,0))","v":0},null,{"$f":"INDIRECT(\"F\"&ROW($G$87)+ROUNDUP(COLUMNS($G:DK)/3,0))","v":0},{"$f":"INDIRECT(\"G\"&ROW($G$87)+ROUNDUP(COLUMNS($G:DL)/3,0))","v":0},null,{"$f":"INDIRECT(\"F\"&ROW($G$87)+ROUNDUP(COLUMNS($G:DN)/3,0))","v":0},{"$f":"INDIRECT(\"G\"&ROW($G$87)+ROUNDUP(COLUMNS($G:DO)/3,0))","v":0},null,{"$f":"INDIRECT(\"F\"&ROW($G$87)+ROUNDUP(COLUMNS($G:DQ)/3,0))","v":0},{"$f":"INDIRECT(\"G\"&ROW($G$87)+ROUNDUP(COLUMNS($G:DR)/3,0))","v":0},null,{"$f":"INDIRECT(\"F\"&ROW($G$87)+ROUNDUP(COLUMNS($G:DT)/3,0))","v":0},{"$f":"INDIRECT(\"G\"&ROW($G$87)+ROUNDUP(COLUMNS($G:DU)/3,0))","v":0},null,{"$f":"INDIRECT(\"F\"&ROW($G$87)+ROUNDUP(COLUMNS($G:DW)/3,0))","v":0},{"$f":"INDIRECT(\"G\"&ROW($G$87)+ROUNDUP(COLUMNS($G:DX)/3,0))","v":0},null,{"$f":"INDIRECT(\"F\"&ROW($G$87)+ROUNDUP(COLUMNS($G:DZ)/3,0))","v":0},{"$f":"INDIRECT(\"G\"&ROW($G$87)+ROUNDUP(COLUMNS($G:EA)/3,0))","v":0},null,{"$f":"INDIRECT(\"F\"&ROW($G$87)+ROUNDUP(COLUMNS($G:EC)/3,0))","v":0},{"$f":"INDIRECT(\"G\"&ROW($G$87)+ROUNDUP(COLUMNS($G:ED)/3,0))","v":0},null,{"$f":"INDIRECT(\"F\"&ROW($G$87)+ROUNDUP(COLUMNS($G:EF)/3,0))","v":0},{"$f":"INDIRECT(\"G\"&ROW($G$87)+ROUNDUP(COLUMNS($G:EG)/3,0))","v":0},null,{"$f":"INDIRECT(\"F\"&ROW($G$87)+ROUNDUP(COLUMNS($G:EI)/3,0))","v":0},{"$f":"INDIRECT(\"G\"&ROW($G$87)+ROUNDUP(COLUMNS($G:EJ)/3,0))","v":0},null,{"$f":"INDIRECT(\"F\"&ROW($G$87)+ROUNDUP(COLUMNS($G:EL)/3,0))","v":0},{"$f":"INDIRECT(\"G\"&ROW($G$87)+ROUNDUP(COLUMNS($G:EM)/3,0))","v":0},null,{"$f":"INDIRECT(\"F\"&ROW($G$87)+ROUNDUP(COLUMNS($G:EO)/3,0))","v":0},{"$f":"INDIRECT(\"G\"&ROW($G$87)+ROUNDUP(COLUMNS($G:EP)/3,0))","v":0},null,{"$f":"INDIRECT(\"F\"&ROW($G$87)+ROUNDUP(COLUMNS($G:ER)/3,0))","v":0},{"$f":"INDIRECT(\"G\"&ROW($G$87)+ROUNDUP(COLUMNS($G:ES)/3,0))","v":0},null,{"$f":"EU81+EV81","v":0}]
["เวลากลับถึงสำนักงานเช็คของเสีย",null,null,{"$f":"D139","v":"00:00:00"},null,"ผลต่าง",{"$f":"G82+H82+G80-G9","v":0},null,null,{"$f":"J82+K82+J80-J9","v":0},null,null,{"$f":"M82+N82+M80-M9","v":0},null,null,{"$f":"P82+Q82+P80-P9","v":0},null,null,{"$f":"S82+T82+S80-S9","v":0},null,null,{"$f":"V82+W82+V80-V9","v":0},null,null,{"$f":"Y82+Z82+Y80-Y9","v":0},null,null,{"$f":"AB82+AC82+AB80-AB9","v":0},null,null,{"$f":"AE82+AF82+AE80-AE9","v":0},null,null,{"$f":"AH82+AI82+AH80-AH9","v":0},null,null,{"$f":"AK82+AL82+AK80-AK9","v":0},null,null,{"$f":"AN82+AO82+AN80-AN9","v":0},null,null,{"$f":"AQ82+AR82+AQ80-AQ9","v":0},null,null,{"$f":"AT82+AU82+AT80-AT9","v":0},null,null,{"$f":"AW82+AX82+AW80-AW9","v":0},null,null,{"$f":"AZ82+BA82+AZ80-AZ9","v":0},null,null,{"$f":"BC82+BD82+BC80-BC9","v":0},null,null,{"$f":"BF82+BG82+BF80-BF9","v":0},null,null,{"$f":"BI82+BJ82+BI80-BI9","v":0},null,null,{"$f":"BL82+BM82+BL80-BL9","v":0},null,null,{"$f":"BO82+BP82+BO80-BO9","v":0},null,null,{"$f":"BR82+BS82+BR80-BR9","v":0},null,null,{"$f":"BU82+BV82+BU80-BU9","v":0},null,null,{"$f":"BX82+BY82+BX80-BX9","v":0},null,null,{"$f":"CA82+CB82+CA80-CA9","v":0},null,null,{"$f":"CD82+CE82+CD80-CD9","v":0},null,null,{"$f":"CG82+CH82+CG80-CG9","v":0},null,null,{"$f":"CJ82+CK82+CJ80-CJ9","v":0},null,null,{"$f":"CM82+CN82+CM80-CM9","v":0},null,null,{"$f":"CP82+CQ82+CP80-CP9","v":0},null,null,{"$f":"CS82+CT82+CS80-CS9","v":0},null,null,{"$f":"CV82+CW82+CV80-CV9","v":0},null,null,{"$f":"CY82+CZ82+CY80-CY9","v":0},null,null,{"$f":"DB82+DC82+DB80-DB9","v":0},null,null,{"$f":"DE82+DF82+DE80-DE9","v":0},null,null,{"$f":"DH82+DI82+DH80-DH9","v":0},null,null,{"$f":"DK82+DL82+DK80-DK9","v":0},null,null,{"$f":"DN82+DO82+DN80-DN9","v":0},null,null,{"$f":"DQ82+DR82+DQ80-DQ9","v":0},null,null,{"$f":"DT82+DU82+DT80-DT9","v":0},null,null,{"$f":"DW82+DX82+DW80-DW9","v":0},null,null,{"$f":"DZ82+EA82+DZ80-DZ9","v":0},null,null,{"$f":"EC82+ED82+EC80-EC9","v":0},null,null,{"$f":"EF82+EG82+EF80-EF9","v":0},null,null,{"$f":"EI82+EJ82+EI80-EI9","v":0},null,null,{"$f":"EL82+EM82+EL80-EL9","v":0},null,null,{"$f":"EO82+EP82+EO80-EO9","v":0},null,null,{"$f":"ER82+ES82+ER80-ER9","v":0}]
["เป็นเงิน",null,null,null,null,null,{"$f":"G8*G83","v":0},null,null,{"$f":"J8*J83","v":0},null,null,{"$f":"M8*M83","v":0},null,null,{"$f":"P8*P83","v":0},null,null,{"$f":"S8*S83","v":0},null,null,{"$f":"V8*V83","v":0},null,null,{"$f":"Y8*Y83","v":0},null,null,{"$f":"AB8*AB83","v":0},null,null,{"$f":"AE8*AE83","v":0},null,null,{"$f":"AH8*AH83","v":0},null,null,{"$f":"AK8*AK83","v":0},null,null,{"$f":"AN8*AN83","v":0},null,null,{"$f":"AQ8*AQ83","v":0},null,null,{"$f":"AT8*AT83","v":0},null,null,{"$f":"AW8*AW83","v":0},null,null,{"$f":"AZ8*AZ83","v":0},null,null,{"$f":"BC8*BC83","v":0},null,null,{"$f":"BF8*BF83","v":0},null,null,{"$f":"BI8*BI83","v":0},null,null,{"$f":"BL8*BL83","v":0},null,null,{"$f":"BO8*BO83","v":0},null,null,{"$f":"BR8*BR83","v":0},null,null,{"$f":"BU8*BU83","v":0},null,null,{"$f":"BX8*BX83","v":0},null,null,{"$f":"CA8*CA83","v":0},null,null,{"$f":"CD8*CD83","v":0},null,null,{"$f":"CG8*CG83","v":0},null,null,{"$f":"CJ8*CJ83","v":0},null,null,{"$f":"CM8*CM83","v":0},null,null,{"$f":"CP8*CP83","v":0},null,null,{"$f":"CS8*CS83","v":0},null,null,{"$f":"CV8*CV83","v":0},null,null,{"$f":"CY8*CY83","v":0},null,null,{"$f":"DB8*DB83","v":0},null,null,{"$f":"DE8*DE83","v":0},null,null,{"$f":"DH8*DH83","v":0},null,null,{"$f":"DK8*DK83","v":0},null,null,{"$f":"DN8*DN83","v":0},null,null,{"$f":"DQ8*DQ83","v":0},null,null,{"$f":"DT8*DT83","v":0},null,null,{"$f":"DW8*DW83","v":0},null,null,0,null,null,{"$f":"EC8*EC83","v":0},null,null,{"$f":"EF8*EF83","v":0},null,null,{"$f":"EI8*EI83","v":0},null,null,{"$f":"EL8*EL83","v":0},null,null,{"$f":"EO8*EO83","v":0},null,null,{"$f":"ER8*ER83","v":0},null,null,{"$f":"$AP$98","v":0}]
[null,null,null,"ผู้จัดทำ……………………………………………………………………",null,null,{"$f":"COLUMN()","v":7},null,null,null,null,null,null,null,null,null,null,null,null,null,null,null,null,"ผู้ตรวจ(ผจก.)………………………………………………………………………………."]
[null,null,"ใบจ่ายสินค้า",null,null,null,null,null,null,null,null,null,null,null,null,null,null,{"$f":"IF(ISODD(COLUMN()),MAX($F$86:Q$86)+1,\"\")","v":""}]
["ราคา","ลำดับ","รายการ","ยกมา","เบิก","เหลือ","เสีย","โอนเข้า","โอนออก","ชำรุด","รวม",null,"ขาย",null,"ขาด/เกิน",null,"บาท",null,null,null,"ขายได้",null,"ควรเบิก",null,"หมายเหตุ",null,null,null,"เสีย PDA","เสียจริง","เหลือ PDA","ผลต่าง","เหลือลูกค้า","หมายเหตุ",null,null,null,null,"Price","Quantity","Baht","Deduct"]
[{"$f":"IF(B88=\"\",0,INDEX(Price_List,ROWS($88:88)))","v":20},{"$f":"IF($C88=\"\",\"\",COUNTA($C$88:$C88))","v":1},{"$f":"IF(INDEX(INDIRECT(\"Product_List\"),ROWS($88:88))=\"\",\"\",INDEX(INDIRECT(\"Product_List\"),ROWS($88:88)))","v":"01-ขนมปังหมูหยองน้ำสลัด"},null,null,null,null,null,null,null,{"$f":"D88+E88+J88-I88+H88","v":0},null,{"$f":"INDIRECT(ADDRESS(ROW(A$80),ROW()-ROW(A$80)+(ROWS($88:88)-1)*2-1,4))","v":0},null,{"$f":"F88+G88+M88+J88-K88","v":0},null,{"$f":"O88*A88","v":0},null,null,null,{"$f":"D88+E88-F88-G88","v":0},null,{"$f":"U88*6%+U88","v":0},null,null,null,null,null,{"$f":"INDIRECT(ADDRESS(ROW(A$80),ROW()-ROW(A$80)+(ROWS($88:88)-1)*2,4))","v":0},{"$f":"$G88","v":0},null,{"$f":"$F88-$AE88","v":0},{"$f":"INDIRECT(ADDRESS(ROW(A$80),ROW()-ROW(A$80)+(ROWS($88:88)-1)*2+1,4))","v":0},null,null,null,null,null,10,{"$f":"SUMPRODUCT(($A$88:$A$135=$AM88)*(($F$88:$F$135)+($G$88:$G$135)+($M$88:$M$135)+($J$88:$J$135)-($K$88:$K$135)))","v":0},{"$f":"AM88*AN88","v":0},{"$f":"IF(AO88<0,AO88,0)","v":0}]
[{"$f":"IF(B89=\"\",0,INDEX(Price_List,ROWS($88:89)))","v":20},{"$f":"IF($C89=\"\",\"\",COUNTA($C$88:$C89))","v":2},{"$f":"IF(INDEX(INDIRECT(\"Product_List\"),ROWS($88:89))=\"\",\"\",INDEX(INDIRECT(\"Product_List\"),ROWS($88:89)))","v":"02-ขนมปังหมูหยองน้ำพริกเผา"},null,null,null,null,null,null,null,{"$f":"D89+E89+J89-I89+H89","v":0},null,{"$f":"INDIRECT(ADDRESS(ROW(A$80),ROW()-ROW(A$80)+(ROWS($88:89)-1)*2-1,4))","v":0},null,{"$f":"F89+G89+M89+J89-K89","v":0},null,{"$f":"O89*A89","v":0},null,null,null,{"$f":"D89+E89-F89-G89","v":0},null,{"$f":"U89*6%+U89","v":0},null,null,null,null,null,{"$f":"INDIRECT(ADDRESS(ROW(A$80),ROW()-ROW(A$80)+(ROWS($88:89)-1)*2,4))","v":0},{"$f":"$G89","v":0},null,{"$f":"$F89-$AE89","v":0},{"$f":"INDIRECT(ADDRESS(ROW(A$80),ROW()-ROW(A$80)+(ROWS($88:89)-1)*2+1,4))","v":0},null,null,null,null,null,12,{"$f":"SUMPRODUCT(($A$88:$A$135=$AM89)*(($F$88:$F$135)+($G$88:$G$135)+($M$88:$M$135)+($J$88:$J$135)-($K$88:$K$135)))","v":0},{"$f":"AM89*AN89","v":0},0]
[{"$f":"IF(B90=\"\",0,INDEX(Price_List,ROWS($88:90)))","v":20},{"$f":"IF($C90=\"\",\"\",COUNTA($C$88:$C90))","v":3},{"$f":"IF(INDEX(INDIRECT(\"Product_List\"),ROWS($88:90))=\"\",\"\",INDEX(INDIRECT(\"Product_List\"),ROWS($88:90)))","v":"03-ขนมปังไก่หยองน้ำสลัด"},null,null,null,null,null,null,null,0,null,{"$f":"INDIRECT(ADDRESS(ROW(A$80),ROW()-ROW(A$80)+(ROWS($88:90)-1)*2-1,4))","v":0},null,0,null,0,null,null,null,0,null,0,null,null,null,null,null,{"$f":"INDIRECT(ADDRESS(ROW(A$80),ROW()-ROW(A$80)+(ROWS($88:90)-1)*2,4))","v":0},0,null,0,{"$f":"INDIRECT(ADDRESS(ROW(A$80),ROW()-ROW(A$80)+(ROWS($88:90)-1)*2+1,4))","v":0},null,null,null,null,null,13,0,{"$f":"AM90*AN90","v":0},{"$f":"IF(AO90<0,AO90,0)","v":0}]
[{"$f":"IF(B91=\"\",0,INDEX(Price_List,ROWS($88:91)))","v":15},{"$f":"IF($C91=\"\",\"\",COUNTA($C$88:$C91))","v":4},{"$f":"IF(INDEX(INDIRECT(\"Product_List\"),ROWS($88:91))=\"\",\"\",INDEX(INDIRECT(\"Product_List\"),ROWS($88:91)))","v":"04-ขนมปังไส้ครีมสลัด"},null,null,null,null,null,null,null,0,null,{"$f":"INDIRECT(ADDRESS(ROW(A$80),ROW()-ROW(A$80)+(ROWS($88:91)-1)*2-1,4))","v":0},null,{"$f":"F91+G91+M91+J91-K91","v":0},null,0,null,null,null,0,null,0,null,null,null,null,null,{"$f":"INDIRECT(ADDRESS(ROW(A$80),ROW()-ROW(A$80)+(ROWS($88:91)-1)*2,4))","v":0},0,null,0,{"$f":"INDIRECT(ADDRESS(ROW(A$80),ROW()-ROW(A$80)+(ROWS($88:91)-1)*2+1,4))","v":0},null,null,null,null,null,15,0,0,0]
[{"$f":"IF(B92=\"\",0,INDEX(Price_List,ROWS($88:92)))","v":15},{"$f":"IF($C92=\"\",\"\",COUNTA($C$88:$C92))","v":5},{"$f":"IF(INDEX(INDIRECT(\"Product_List\"),ROWS($88:92))=\"\",\"\",INDEX(INDIRECT(\"Product_List\"),ROWS($88:92)))","v":"05-ขนมปังเนยสด"},null,null,null,null,null,null,null,0,null,{"$f":"INDIRECT(ADDRESS(ROW(A$80),ROW()-ROW(A$80)+(ROWS($88:92)-1)*2-1,4))","v":0},null,0,null,0,null,null,null,0,null,0,null,null,null,null,null,{"$f":"INDIRECT(ADDRESS(ROW(A$80),ROW()-ROW(A$80)+(ROWS($88:92)-1)*2,4))","v":0},0,null,0,{"$f":"INDIRECT(ADDRESS(ROW(A$80),ROW()-ROW(A$80)+(ROWS($88:92)-1)*2+1,4))","v":0},null,null,null,null,null,16,0,{"$f":"AM92*AN92","v":0},{"$f":"IF(AO92<0,AO92,0)","v":0}]
[{"$f":"IF(B93=\"\",0,INDEX(Price_List,ROWS($88:93)))","v":10},{"$f":"IF($C93=\"\",\"\",COUNTA($C$88:$C93))","v":6},{"$f":"IF(INDEX(INDIRECT(\"Product_List\"),ROWS($88:93))=\"\",\"\",INDEX(INDIRECT(\"Product_List\"),ROWS($88:93)))","v":"06-ขนมปังไส้สังขยาเล็ก"},null,null,null,null,null,null,null,0,null,{"$f":"INDIRECT(ADDRESS(ROW(A$80),ROW()-ROW(A$80)+(ROWS($88:93)-1)*2-1,4))","v":0},null,0,null,0,null,null,null,0,null,0,null,null,null,null,null,{"$f":"INDIRECT(ADDRESS(ROW(A$80),ROW()-ROW(A$80)+(ROWS($88:93)-1)*2,4))","v":0},0,null,0,{"$f":"INDIRECT(ADDRESS(ROW(A$80),ROW()-ROW(A$80)+(ROWS($88:93)-1)*2+1,4))","v":0},null,null,null,null,null,18,0,{"$f":"AM93*AN93","v":0},{"$f":"IF(AO93<0,AO93,0)","v":0}]
[{"$f":"IF(B94=\"\",0,INDEX(Price_List,ROWS($88:94)))","v":10},{"$f":"IF($C94=\"\",\"\",COUNTA($C$88:$C94))","v":7},{"$f":"IF(INDEX(INDIRECT(\"Product_List\"),ROWS($88:94))=\"\",\"\",INDEX(INDIRECT(\"Product_List\"),ROWS($88:94)))","v":"07-ขนมปังไส้เผือก"},null,null,null,null,null,null,null,0,null,{"$f":"INDIRECT(ADDRESS(ROW(A$80),ROW()-ROW(A$80)+(ROWS($88:94)-1)*2-1,4))","v":0},null,0,null,0,null,null,null,0,null,0,null,null,null,null,null,{"$f":"INDIRECT(ADDRESS(ROW(A$80),ROW()-ROW(A$80)+(ROWS($88:94)-1)*2,4))","v":0},0,null,0,{"$f":"INDIRECT(ADDRESS(ROW(A$80),ROW()-ROW(A$80)+(ROWS($88:94)-1)*2+1,4))","v":0},null,null,null,null,null,20,0,0,0]
[{"$f":"IF(B95=\"\",0,INDEX(Price_List,ROWS($88:95)))","v":10},{"$f":"IF($C95=\"\",\"\",COUNTA($C$88:$C95))","v":8},{"$f":"IF(INDEX(INDIRECT(\"Product_List\"),ROWS($88:95))=\"\",\"\",INDEX(INDIRECT(\"Product_List\"),ROWS($88:95)))","v":"08-ขนมปังไส้ถั่วแดง"},null,null,null,null,null,null,null,0,null,{"$f":"INDIRECT(ADDRESS(ROW(A$80),ROW()-ROW(A$80)+(ROWS($88:95)-1)*2-1,4))","v":0},null,0,null,0,null,null,null,0,null,0,null,null,null,null,null,{"$f":"INDIRECT(ADDRESS(ROW(A$80),ROW()-ROW(A$80)+(ROWS($88:95)-1)*2,4))","v":0},0,null,0,{"$f":"INDIRECT(ADDRESS(ROW(A$80),ROW()-ROW(A$80)+(ROWS($88:95)-1)*2+1,4))","v":0},null,null,null,null,null,22,0,0,0]
[{"$f":"IF(B96=\"\",0,INDEX(Price_List,ROWS($88:96)))","v":10},{"$f":"IF($C96=\"\",\"\",COUNTA($C$88:$C96))","v":9},{"$f":"IF(INDEX(INDIRECT(\"Product_List\"),ROWS($88:96))=\"\",\"\",INDEX(INDIRECT(\"Product_List\"),ROWS($88:96)))","v":"09-ขนมปังไส้ถั่วดำ"},null,null,null,null,null,null,null,0,null,{"$f":"INDIRECT(ADDRESS(ROW(A$80),ROW()-ROW(A$80)+(ROWS($88:96)-1)*2-1,4))","v":0},null,0,null,0,null,null,null,0,null,0,null,null,null,null,null,{"$f":"INDIRECT(ADDRESS(ROW(A$80),ROW()-ROW(A$80)+(ROWS($88:96)-1)*2,4))","v":0},0,null,0,{"$f":"INDIRECT(ADDRESS(ROW(A$80),ROW()-ROW(A$80)+(ROWS($88:96)-1)*2+1,4))","v":0},null,null,null,null,null,25,0,0,0]
[{"$f":"IF(B97=\"\",0,INDEX(Price_List,ROWS($88:97)))","v":10},{"$f":"IF($C97=\"\",\"\",COUNTA($C$88:$C97))","v":10},{"$f":"IF(INDEX(INDIRECT(\"Product_List\"),ROWS($88:97))=\"\",\"\",INDEX(INDIRECT(\"Product_List\"),ROWS($88:97)))","v":"10-ขนมปังไส้มันม่วง"},null,null,null,null,null,null,null,0,null,{"$f":"INDIRECT(ADDRESS(ROW(A$80),ROW()-ROW(A$80)+(ROWS($88:97)-1)*2-1,4))","v":0},null,0,null,0,null,null,null,0,null,0,null,null,null,null,null,{"$f":"INDIRECT(ADDRESS(ROW(A$80),ROW()-ROW(A$80)+(ROWS($88:97)-1)*2,4))","v":0},0,null,0,{"$f":"INDIRECT(ADDRESS(ROW(A$80),ROW()-ROW(A$80)+(ROWS($88:97)-1)*2+1,4))","v":0},null,null,null,null,null,42,0,0,0]
[{"$f":"IF(B98=\"\",0,INDEX(Price_List,ROWS($88:98)))","v":15},{"$f":"IF($C98=\"\",\"\",COUNTA($C$88:$C98))","v":11},{"$f":"IF(INDEX(INDIRECT(\"Product_List\"),ROWS($88:98))=\"\",\"\",INDEX(INDIRECT(\"Product_List\"),ROWS($88:98)))","v":"11-เค้กกล้วยหอม"},null,null,null,null,null,null,null,0,null,{"$f":"INDIRECT(ADDRESS(ROW(A$80),ROW()-ROW(A$80)+(ROWS($88:98)-1)*2-1,4))","v":0},null,0,null,0,null,null,null,0,null,0,null,null,null,null,null,{"$f":"INDIRECT(ADDRESS(ROW(A$80),ROW()-ROW(A$80)+(ROWS($88:98)-1)*2,4))","v":0},0,null,0,{"$f":"INDIRECT(ADDRESS(ROW(A$80),ROW()-ROW(A$80)+(ROWS($88:98)-1)*2+1,4))","v":0},null,null,null,null,null,"Total Deduct",null,null,{"$f":"SUM($AP$88:$AP$97)","v":0}]
[{"$f":"IF(B99=\"\",0,INDEX(Price_List,ROWS($88:99)))","v":15},{"$f":"IF($C99=\"\",\"\",COUNTA($C$88:$C99))","v":12},{"$f":"IF(INDEX(INDIRECT(\"Product_List\"),ROWS($88:99))=\"\",\"\",INDEX(INDIRECT(\"Product_List\"),ROWS($88:99)))","v":"12-เค้กบัตเตอร์"},null,null,null,null,null,null,null,0,null,{"$f":"INDIRECT(ADDRESS(ROW(A$80),ROW()-ROW(A$80)+(ROWS($88:99)-1)*2-1,4))","v":0},null,0,null,0,null,null,null,0,null,0,null,null,null,null,null,{"$f":"INDIRECT(ADDRESS(ROW(A$80),ROW()-ROW(A$80)+(ROWS($88:99)-1)*2,4))","v":0},0,null,0,{"$f":"INDIRECT(ADDRESS(ROW(A$80),ROW()-ROW(A$80)+(ROWS($88:99)-1)*2+1,4))","v":0}]
[{"$f":"IF(B100=\"\",0,INDEX(Price_List,ROWS($88:100)))","v":15},{"$f":"IF($C100=\"\",\"\",COUNTA($C$88:$C100))","v":13},{"$f":"IF(INDEX(INDIRECT(\"Product_List\"),ROWS($88:100))=\"\",\"\",INDEX(INDIRECT(\"Product_List\"),ROWS($88:100)))","v":"13-ขนมปังโรลถั่วแดง"},null,null,null,null,null,null,null,0,null,{"$f":"INDIRECT(ADDRESS(ROW(A$80),ROW()-ROW(A$80)+(ROWS($88:100)-1)*2-1,4))","v":0},null,0,null,0,null,null,null,0,null,0,null,null,null,null,null,{"$f":"INDIRECT(ADDRESS(ROW(A$80),ROW()-ROW(A$80)+(ROWS($88:100)-1)*2,4))","v":0},0,null,0,{"$f":"INDIRECT(ADDRESS(ROW(A$80),ROW()-ROW(A$80)+(ROWS($88:100)-1)*2+1,4))","v":0}]
[{"$f":"IF(B101=\"\",0,INDEX(Price_List,ROWS($88:101)))","v":15},{"$f":"IF($C101=\"\",\"\",COUNTA($C$88:$C101))","v":14},{"$f":"IF(INDEX(INDIRECT(\"Product_List\"),ROWS($88:101))=\"\",\"\",INDEX(INDIRECT(\"Product_List\"),ROWS($88:101)))","v":"14-ขนมปังไส้สังขยาใหญ่"},null,null,null,null,null,null,null,0,null,{"$f":"INDIRECT(ADDRESS(ROW(A$80),ROW()-ROW(A$80)+(ROWS($88:101)-1)*2-1,4))","v":0},null,0,null,0,null,null,null,0,null,0,null,null,null,null,null,{"$f":"INDIRECT(ADDRESS(ROW(A$80),ROW()-ROW(A$80)+(ROWS($88:101)-1)*2,4))","v":0},0,null,0,{"$f":"INDIRECT(ADDRESS(ROW(A$80),ROW()-ROW(A$80)+(ROWS($88:101)-1)*2+1,4))","v":0}]
[{"$f":"IF(B102=\"\",0,INDEX(Price_List,ROWS($88:102)))","v":42},{"$f":"IF($C102=\"\",\"\",COUNTA($C$88:$C102))","v":15},{"$f":"IF(INDEX(INDIRECT(\"Product_List\"),ROWS($88:102))=\"\",\"\",INDEX(INDIRECT(\"Product_List\"),ROWS($88:102)))","v":"15-ขนมปังชนิดแผ่น(480กรัม)"},null,null,null,null,null,null,null,0,null,{"$f":"INDIRECT(ADDRESS(ROW(A$80),ROW()-ROW(A$80)+(ROWS($88:102)-1)*2-1,4))","v":0},null,0,null,0,null,null,null,0,null,0,null,null,null,null,null,{"$f":"INDIRECT(ADDRESS(ROW(A$80),ROW()-ROW(A$80)+(ROWS($88:102)-1)*2,4))","v":0},0,null,0,{"$f":"INDIRECT(ADDRESS(ROW(A$80),ROW()-ROW(A$80)+(ROWS($88:102)-1)*2+1,4))","v":0}]
[{"$f":"IF(B103=\"\",0,INDEX(Price_List,ROWS($88:103)))","v":12},{"$f":"IF($C103=\"\",\"\",COUNTA($C$88:$C103))","v":16},{"$f":"IF(INDEX(INDIRECT(\"Product_List\"),ROWS($88:103))=\"\",\"\",INDEX(INDIRECT(\"Product_List\"),ROWS($88:103)))","v":"16-โมจิไส้ถั่ว"},null,null,null,null,null,null,null,0,null,{"$f":"INDIRECT(ADDRESS(ROW(A$80),ROW()-ROW(A$80)+(ROWS($88:103)-1)*2-1,4))","v":0},null,0,null,0,null,null,null,0,null,0,null,null,null,null,null,{"$f":"INDIRECT(ADDRESS(ROW(A$80),ROW()-ROW(A$80)+(ROWS($88:103)-1)*2,4))","v":0},0,null,0,{"$f":"INDIRECT(ADDRESS(ROW(A$80),ROW()-ROW(A$80)+(ROWS($88:103)-1)*2+1,4))","v":0}]
[{"$f":"IF(B104=\"\",0,INDEX(Price_List,ROWS($88:104)))","v":12},{"$f":"IF($C104=\"\",\"\",COUNTA($C$88:$C104))","v":17},{"$f":"IF(INDEX(INDIRECT(\"Product_List\"),ROWS($88:104))=\"\",\"\",INDEX(INDIRECT(\"Product_List\"),ROWS($88:104)))","v":"17-โมจิไส้เผือก"},null,null,null,null,null,null,null,0,null,{"$f":"INDIRECT(ADDRESS(ROW(A$80),ROW()-ROW(A$80)+(ROWS($88:104)-1)*2-1,4))","v":0},null,0,null,0,null,null,null,0,null,0,null,null,null,null,null,{"$f":"INDIRECT(ADDRESS(ROW(A$80),ROW()-ROW(A$80)+(ROWS($88:104)-1)*2,4))","v":0},0,null,0,{"$f":"INDIRECT(ADDRESS(ROW(A$80),ROW()-ROW(A$80)+(ROWS($88:104)-1)*2+1,4))","v":0}]
[{"$f":"IF(B105=\"\",0,INDEX(Price_List,ROWS($88:105)))","v":15},{"$f":"IF($C105=\"\",\"\",COUNTA($C$88:$C105))","v":18},{"$f":"IF(INDEX(INDIRECT(\"Product_List\"),ROWS($88:105))=\"\",\"\",INDEX(INDIRECT(\"Product_List\"),ROWS($88:105)))","v":"18-โมจิไส้ถั่วไข่เค็ม"},null,null,null,null,null,null,null,0,null,{"$f":"INDIRECT(ADDRESS(ROW(A$80),ROW()-ROW(A$80)+(ROWS($88:105)-1)*2-1,4))","v":0},null,0,null,0,null,null,null,0,null,0,null,null,null,null,null,{"$f":"INDIRECT(ADDRESS(ROW(A$80),ROW()-ROW(A$80)+(ROWS($88:105)-1)*2,4))","v":0},0,null,0,{"$f":"INDIRECT(ADDRESS(ROW(A$80),ROW()-ROW(A$80)+(ROWS($88:105)-1)*2+1,4))","v":0}]
[{"$f":"IF(B106=\"\",0,INDEX(Price_List,ROWS($88:106)))","v":20},{"$f":"IF($C106=\"\",\"\",COUNTA($C$88:$C106))","v":19},{"$f":"IF(INDEX(INDIRECT(\"Product_List\"),ROWS($88:106))=\"\",\"\",INDEX(INDIRECT(\"Product_List\"),ROWS($88:106)))","v":"19-ขนมปังพิซซ่า"},null,null,null,null,null,null,null,0,null,{"$f":"INDIRECT(ADDRESS(ROW(A$80),ROW()-ROW(A$80)+(ROWS($88:106)-1)*2-1,4))","v":0},null,0,null,0,null,null,null,0,null,0,null,null,null,null,null,{"$f":"INDIRECT(ADDRESS(ROW(A$80),ROW()-ROW(A$80)+(ROWS($88:106)-1)*2,4))","v":0},0,null,0,{"$f":"INDIRECT(ADDRESS(ROW(A$80),ROW()-ROW(A$80)+(ROWS($88:106)-1)*2+1,4))","v":0}]
[{"$f":"IF(B107=\"\",0,INDEX(Price_List,ROWS($88:107)))","v":20},{"$f":"IF($C107=\"\",\"\",COUNTA($C$88:$C107))","v":20},{"$f":"IF(INDEX(INDIRECT(\"Product_List\"),ROWS($88:107))=\"\",\"\",INDEX(INDIRECT(\"Product_List\"),ROWS($88:107)))","v":"20-ขนมปังพิซซ่าปูอัดแฮม"},null,null,null,null,null,null,null,0,null,{"$f":"INDIRECT(ADDRESS(ROW(A$80),ROW()-ROW(A$80)+(ROWS($88:107)-1)*2-1,4))","v":0},null,0,null,0,null,null,null,0,null,0,null,null,null,null,null,{"$f":"INDIRECT(ADDRESS(ROW(A$80),ROW()-ROW(A$80)+(ROWS($88:107)-1)*2,4))","v":0},0,null,0,{"$f":"INDIRECT(ADDRESS(ROW(A$80),ROW()-ROW(A$80)+(ROWS($88:107)-1)*2+1,4))","v":0}]
[{"$f":"IF(B108=\"\",0,INDEX(Price_List,ROWS($88:108)))","v":20},{"$f":"IF($C108=\"\",\"\",COUNTA($C$88:$C108))","v":21},{"$f":"IF(INDEX(INDIRECT(\"Product_List\"),ROWS($88:108))=\"\",\"\",INDEX(INDIRECT(\"Product_List\"),ROWS($88:108)))","v":"21-ขนมปังไส้กรอก"},null,null,null,null,null,null,null,0,null,{"$f":"INDIRECT(ADDRESS(ROW(A$80),ROW()-ROW(A$80)+(ROWS($88:108)-1)*2-1,4))","v":0},null,0,null,0,null,null,null,0,null,0,null,null,null,null,null,{"$f":"INDIRECT(ADDRESS(ROW(A$80),ROW()-ROW(A$80)+(ROWS($88:108)-1)*2,4))","v":0},0,null,0,{"$f":"INDIRECT(ADDRESS(ROW(A$80),ROW()-ROW(A$80)+(ROWS($88:108)-1)*2+1,4))","v":0}]
[{"$f":"IF(B109=\"\",0,INDEX(Price_List,ROWS($88:109)))","v":15},{"$f":"IF($C109=\"\",\"\",COUNTA($C$88:$C109))","v":22},{"$f":"IF(INDEX(INDIRECT(\"Product_List\"),ROWS($88:109))=\"\",\"\",INDEX(INDIRECT(\"Product_List\"),ROWS($88:109)))","v":"22-ขนมก้านบัว"},null,null,null,null,null,null,null,0,null,{"$f":"INDIRECT(ADDRESS(ROW(A$80),ROW()-ROW(A$80)+(ROWS($88:109)-1)*2-1,4))","v":0},null,0,null,0,null,null,null,0,null,0,null,null,null,null,null,{"$f":"INDIRECT(ADDRESS(ROW(A$80),ROW()-ROW(A$80)+(ROWS($88:109)-1)*2,4))","v":0},0,null,0,{"$f":"INDIRECT(ADDRESS(ROW(A$80),ROW()-ROW(A$80)+(ROWS($88:109)-1)*2+1,4))","v":0}]
[{"$f":"IF(B110=\"\",0,INDEX(Price_List,ROWS($88:110)))","v":20},{"$f":"IF($C110=\"\",\"\",COUNTA($C$88:$C110))","v":23},{"$f":"IF(INDEX(INDIRECT(\"Product_List\"),ROWS($88:110))=\"\",\"\",INDEX(INDIRECT(\"Product_List\"),ROWS($88:110)))","v":"23-พายสับปะรด"},null,null,null,null,null,null,null,{"$f":"D110+E110+J110-I110+H110","v":0},null,{"$f":"INDIRECT(ADDRESS(ROW(A$80),ROW()-ROW(A$80)+(ROWS($88:110)-1)*2-1,4))","v":0},null,{"$f":"F110+G110+M110+J110-K110","v":0},null,{"$f":"O110*A110","v":0},null,null,null,{"$f":"D110+E110-F110-G110","v":0},null,{"$f":"U110*6%+U110","v":0},null,null,null,null,null,{"$f":"INDIRECT(ADDRESS(ROW(A$80),ROW()-ROW(A$80)+(ROWS($88:110)-1)*2,4))","v":0},0,null,0,{"$f":"INDIRECT(ADDRESS(ROW(A$80),ROW()-ROW(A$80)+(ROWS($88:110)-1)*2+1,4))","v":0}]
[{"$f":"IF(B111=\"\",0,INDEX(Price_List,ROWS($88:111)))","v":20},{"$f":"IF($C111=\"\",\"\",COUNTA($C$88:$C111))","v":24},{"$f":"IF(INDEX(INDIRECT(\"Product_List\"),ROWS($88:111))=\"\",\"\",INDEX(INDIRECT(\"Product_List\"),ROWS($88:111)))","v":"24-พายไส้มะพร้าว"},null,null,null,null,null,null,null,0,null,{"$f":"INDIRECT(ADDRESS(ROW(A$80),ROW()-ROW(A$80)+(ROWS($88:111)-1)*2-1,4))","v":0},null,0,null,0,null,null,null,0,null,0,null,null,null,null,null,{"$f":"INDIRECT(ADDRESS(ROW(A$80),ROW()-ROW(A$80)+(ROWS($88:111)-1)*2,4))","v":0},0,null,0,{"$f":"INDIRECT(ADDRESS(ROW(A$80),ROW()-ROW(A$80)+(ROWS($88:111)-1)*2+1,4))","v":0}]
[{"$f":"IF(B112=\"\",0,INDEX(Price_List,ROWS($88:112)))","v":15},{"$f":"IF($C112=\"\",\"\",COUNTA($C$88:$C112))","v":25},{"$f":"IF(INDEX(INDIRECT(\"Product_List\"),ROWS($88:112))=\"\",\"\",INDEX(INDIRECT(\"Product_List\"),ROWS($88:112)))","v":"25-ขนมปังโรลมันเทศ"},null,null,null,null,null,null,null,{"$f":"D112+E112+J112-I112+H112","v":0},null,{"$f":"INDIRECT(ADDRESS(ROW(A$80),ROW()-ROW(A$80)+(ROWS($88:112)-1)*2-1,4))","v":0},null,{"$f":"F112+G112+M112+J112-K112","v":0},null,{"$f":"O112*A112","v":0},null,null,null,{"$f":"D112+E112-F112-G112","v":0},null,{"$f":"U112*6%+U112","v":0},null,null,null,null,null,{"$f":"INDIRECT(ADDRESS(ROW(A$80),ROW()-ROW(A$80)+(ROWS($88:112)-1)*2,4))","v":0},0,null,0,{"$f":"INDIRECT(ADDRESS(ROW(A$80),ROW()-ROW(A$80)+(ROWS($88:112)-1)*2+1,4))","v":0}]
[{"$f":"IF(B113=\"\",0,INDEX(Price_List,ROWS($88:113)))","v":15},{"$f":"IF($C113=\"\",\"\",COUNTA($C$88:$C113))","v":26},{"$f":"IF(INDEX(INDIRECT(\"Product_List\"),ROWS($88:113))=\"\",\"\",INDEX(INDIRECT(\"Product_List\"),ROWS($88:113)))","v":"26-ขนมปังไส้ครีมสลัดน้ำพริกเผา"},null,null,null,null,null,null,null,{"$f":"D113+E113+J113-I113+H113","v":0},null,{"$f":"INDIRECT(ADDRESS(ROW(A$80),ROW()-ROW(A$80)+(ROWS($88:113)-1)*2-1,4))","v":0},null,{"$f":"F113+G113+M113+J113-K113","v":0},null,{"$f":"O113*A113","v":0},null,null,null,{"$f":"D113+E113-F113-G113","v":0},null,{"$f":"U113*6%+U113","v":0},null,null,null,null,null,{"$f":"INDIRECT(ADDRESS(ROW(A$80),ROW()-ROW(A$80)+(ROWS($88:113)-1)*2,4))","v":0},0,null,0,{"$f":"INDIRECT(ADDRESS(ROW(A$80),ROW()-ROW(A$80)+(ROWS($88:113)-1)*2+1,4))","v":0}]
[{"$f":"IF(B114=\"\",0,INDEX(Price_List,ROWS($88:114)))","v":20},{"$f":"IF($C114=\"\",\"\",COUNTA($C$88:$C114))","v":27},{"$f":"IF(INDEX(INDIRECT(\"Product_List\"),ROWS($88:114))=\"\",\"\",INDEX(INDIRECT(\"Product_List\"),ROWS($88:114)))","v":"27-ขนมปังไส้สังขยาไข่"},null,null,null,null,null,null,null,0,null,{"$f":"INDIRECT(ADDRESS(ROW(A$80),ROW()-ROW(A$80)+(ROWS($88:114)-1)*2-1,4))","v":0},null,0,null,0,null,null,null,0,null,0,null,null,null,null,null,{"$f":"INDIRECT(ADDRESS(ROW(A$80),ROW()-ROW(A$80)+(ROWS($88:114)-1)*2,4))","v":0},0,null,0,{"$f":"INDIRECT(ADDRESS(ROW(A$80),ROW()-ROW(A$80)+(ROWS($88:114)-1)*2+1,4))","v":0}]
[{"$f":"IF(B115=\"\",0,INDEX(Price_List,ROWS($88:115)))","v":20},{"$f":"IF($C115=\"\",\"\",COUNTA($C$88:$C115))","v":28},{"$f":"IF(INDEX(INDIRECT(\"Product_List\"),ROWS($88:115))=\"\",\"\",INDEX(INDIRECT(\"Product_List\"),ROWS($88:115)))","v":"28-ขนมปังไส้สังขยามะพร้าว"},null,null,null,null,null,null,null,0,null,{"$f":"INDIRECT(ADDRESS(ROW(A$80),ROW()-ROW(A$80)+(ROWS($88:115)-1)*2-1,4))","v":0},null,0,null,0,null,null,null,0,null,0,null,null,null,null,null,{"$f":"INDIRECT(ADDRESS(ROW(A$80),ROW()-ROW(A$80)+(ROWS($88:115)-1)*2,4))","v":0},0,null,0,{"$f":"INDIRECT(ADDRESS(ROW(A$80),ROW()-ROW(A$80)+(ROWS($88:115)-1)*2+1,4))","v":0}]
[{"$f":"IF(B116=\"\",0,INDEX(Price_List,ROWS($88:116)))","v":10},{"$f":"IF($C116=\"\",\"\",COUNTA($C$88:$C116))","v":29},{"$f":"IF(INDEX(INDIRECT(\"Product_List\"),ROWS($88:116))=\"\",\"\",INDEX(INDIRECT(\"Product_List\"),ROWS($88:116)))","v":"29-ขนมปังไส้ครีมชาไทย"},null,null,null,null,null,null,null,0,null,{"$f":"INDIRECT(ADDRESS(ROW(A$80),ROW()-ROW(A$80)+(ROWS($88:116)-1)*2-1,4))","v":0},null,0,null,0,null,null,null,0,null,0,null,null,null,null,null,{"$f":"INDIRECT(ADDRESS(ROW(A$80),ROW()-ROW(A$80)+(ROWS($88:116)-1)*2,4))","v":0},0,null,0,{"$f":"INDIRECT(ADDRESS(ROW(A$80),ROW()-ROW(A$80)+(ROWS($88:116)-1)*2+1,4))","v":0}]
[{"$f":"IF(B117=\"\",0,INDEX(Price_List,ROWS($88:117)))","v":15},{"$f":"IF($C117=\"\",\"\",COUNTA($C$88:$C117))","v":30},{"$f":"IF(INDEX(INDIRECT(\"Product_List\"),ROWS($88:117))=\"\",\"\",INDEX(INDIRECT(\"Product_List\"),ROWS($88:117)))","v":"30-ขนมปังโรลมันม่วง"},null,null,null,null,null,null,null,0,null,{"$f":"INDIRECT(ADDRESS(ROW(A$80),ROW()-ROW(A$80)+(ROWS($88:117)-1)*2-1,4))","v":0},null,0,null,0,null,null,null,0,null,0,null,null,null,null,null,{"$f":"INDIRECT(ADDRESS(ROW(A$80),ROW()-ROW(A$80)+(ROWS($88:117)-1)*2,4))","v":0},0,null,0,{"$f":"INDIRECT(ADDRESS(ROW(A$80),ROW()-ROW(A$80)+(ROWS($88:117)-1)*2+1,4))","v":0}]
[{"$f":"IF(B118=\"\",0,INDEX(Price_List,ROWS($88:118)))","v":15},{"$f":"IF($C118=\"\",\"\",COUNTA($C$88:$C118))","v":31},{"$f":"IF(INDEX(INDIRECT(\"Product_List\"),ROWS($88:118))=\"\",\"\",INDEX(INDIRECT(\"Product_List\"),ROWS($88:118)))","v":"31-ขนมปังโรลช็อกโกแลต"},null,null,null,null,null,null,null,0,null,{"$f":"INDIRECT(ADDRESS(ROW(A$80),ROW()-ROW(A$80)+(ROWS($88:118)-1)*2-1,4))","v":0},null,0,null,0,null,null,null,0,null,0,null,null,null,null,null,{"$f":"INDIRECT(ADDRESS(ROW(A$80),ROW()-ROW(A$80)+(ROWS($88:118)-1)*2,4))","v":0},0,null,0,{"$f":"INDIRECT(ADDRESS(ROW(A$80),ROW()-ROW(A$80)+(ROWS($88:118)-1)*2+1,4))","v":0}]
[{"$f":"IF(B119=\"\",0,INDEX(Price_List,ROWS($88:119)))","v":16},{"$f":"IF($C119=\"\",\"\",COUNTA($C$88:$C119))","v":32},{"$f":"IF(INDEX(INDIRECT(\"Product_List\"),ROWS($88:119))=\"\",\"\",INDEX(INDIRECT(\"Product_List\"),ROWS($88:119)))","v":"32-ขนมปังชนิดแผ่น(155กรัม)"},null,null,null,null,null,null,null,0,null,{"$f":"INDIRECT(ADDRESS(ROW(A$80),ROW()-ROW(A$80)+(ROWS($88:119)-1)*2-1,4))","v":0},null,0,null,0,null,null,null,0,null,0,null,null,null,null,null,{"$f":"INDIRECT(ADDRESS(ROW(A$80),ROW()-ROW(A$80)+(ROWS($88:119)-1)*2,4))","v":0},0,null,0,{"$f":"INDIRECT(ADDRESS(ROW(A$80),ROW()-ROW(A$80)+(ROWS($88:119)-1)*2+1,4))","v":0}]
[{"$f":"IF(B120=\"\",0,INDEX(Price_List,ROWS($88:120)))","v":15},{"$f":"IF($C120=\"\",\"\",COUNTA($C$88:$C120))","v":33},{"$f":"IF(INDEX(INDIRECT(\"Product_List\"),ROWS($88:120))=\"\",\"\",INDEX(INDIRECT(\"Product_List\"),ROWS($88:120)))","v":"33-ขนมปังโรลเผือก"},null,null,null,null,null,null,null,{"$f":"D120+E120+J120-I120+H120","v":0},null,{"$f":"INDIRECT(ADDRESS(ROW(A$80),ROW()-ROW(A$80)+(ROWS($88:120)-1)*2-1,4))","v":0},null,{"$f":"F120+G120+M120+J120-K120","v":0},null,{"$f":"O120*A120","v":0},null,null,null,{"$f":"D120+E120-F120-G120","v":0},null,{"$f":"U120*6%+U120","v":0},null,null,null,null,null,{"$f":"INDIRECT(ADDRESS(ROW(A$80),ROW()-ROW(A$80)+(ROWS($88:120)-1)*2,4))","v":0},0,null,0,{"$f":"INDIRECT(ADDRESS(ROW(A$80),ROW()-ROW(A$80)+(ROWS($88:120)-1)*2+1,4))","v":0}]
[{"$f":"IF(B121=\"\",0,INDEX(Price_List,ROWS($88:121)))","v":15},{"$f":"IF($C121=\"\",\"\",COUNTA($C$88:$C121))","v":34},{"$f":"IF(INDEX(INDIRECT(\"Product_List\"),ROWS($88:121))=\"\",\"\",INDEX(INDIRECT(\"Product_List\"),ROWS($88:121)))","v":"34-ขนมปังไก่หยองน้ำสลัด Mini"},null,null,null,null,null,null,null,0,null,{"$f":"INDIRECT(ADDRESS(ROW(A$80),ROW()-ROW(A$80)+(ROWS($88:121)-1)*2-1,4))","v":0},null,0,null,0,null,null,null,0,null,0,null,null,null,null,null,{"$f":"INDIRECT(ADDRESS(ROW(A$80),ROW()-ROW(A$80)+(ROWS($88:121)-1)*2,4))","v":0},0,null,0,{"$f":"INDIRECT(ADDRESS(ROW(A$80),ROW()-ROW(A$80)+(ROWS($88:121)-1)*2+1,4))","v":0}]
[{"$f":"IF(B122=\"\",0,INDEX(Price_List,ROWS($88:122)))","v":10},{"$f":"IF($C122=\"\",\"\",COUNTA($C$88:$C122))","v":35},{"$f":"IF(INDEX(INDIRECT(\"Product_List\"),ROWS($88:122))=\"\",\"\",INDEX(INDIRECT(\"Product_List\"),ROWS($88:122)))","v":"35-ขนมปังไส้ช็อกโกแลต"},null,null,null,null,null,null,null,0,null,{"$f":"INDIRECT(ADDRESS(ROW(A$80),ROW()-ROW(A$80)+(ROWS($88:122)-1)*2-1,4))","v":0},null,0,null,0,null,null,null,0,null,0,null,null,null,null,null,{"$f":"INDIRECT(ADDRESS(ROW(A$80),ROW()-ROW(A$80)+(ROWS($88:122)-1)*2,4))","v":0},0,null,0,{"$f":"INDIRECT(ADDRESS(ROW(A$80),ROW()-ROW(A$80)+(ROWS($88:122)-1)*2+1,4))","v":0}]
[{"$f":"IF(B123=\"\",0,INDEX(Price_List,ROWS($88:123)))","v":10},{"$f":"IF($C123=\"\",\"\",COUNTA($C$88:$C123))","v":36},{"$f":"IF(INDEX(INDIRECT(\"Product_List\"),ROWS($88:123))=\"\",\"\",INDEX(INDIRECT(\"Product_List\"),ROWS($88:123)))","v":"36-ขนมปังไส้ครีมสังขยาไข่"},null,null,null,null,null,null,null,0,null,{"$f":"INDIRECT(ADDRESS(ROW(A$80),ROW()-ROW(A$80)+(ROWS($88:123)-1)*2-1,4))","v":0},null,0,null,0,null,null,null,0,null,0,null,null,null,null,null,{"$f":"INDIRECT(ADDRESS(ROW(A$80),ROW()-ROW(A$80)+(ROWS($88:123)-1)*2,4))","v":0},0,null,0,{"$f":"INDIRECT(ADDRESS(ROW(A$80),ROW()-ROW(A$80)+(ROWS($88:123)-1)*2+1,4))","v":0}]
[{"$f":"IF(B124=\"\",0,INDEX(Price_List,ROWS($88:124)))","v":20},{"$f":"IF($C124=\"\",\"\",COUNTA($C$88:$C124))","v":37},{"$f":"IF(INDEX(INDIRECT(\"Product_List\"),ROWS($88:124))=\"\",\"\",INDEX(INDIRECT(\"Product_List\"),ROWS($88:124)))","v":"37-ขนมปังพิซซ่าฮาวายเอี้ยน"},null,null,null,null,null,null,null,{"$f":"D124+E124+J124-I124+H124","v":0},null,{"$f":"INDIRECT(ADDRESS(ROW(A$80),ROW()-ROW(A$80)+(ROWS($88:124)-1)*2-1,4))","v":0},null,{"$f":"F124+G124+M124+J124-K124","v":0},null,{"$f":"O124*A124","v":0},null,null,null,{"$f":"D124+E124-F124-G124","v":0},null,{"$f":"U124*6%+U124","v":0},null,null,null,null,null,{"$f":"INDIRECT(ADDRESS(ROW(A$80),ROW()-ROW(A$80)+(ROWS($88:124)-1)*2,4))","v":0},0,null,0,{"$f":"INDIRECT(ADDRESS(ROW(A$80),ROW()-ROW(A$80)+(ROWS($88:124)-1)*2+1,4))","v":0}]
[{"$f":"IF(B125=\"\",0,INDEX(Price_List,ROWS($88:125)))","v":20},{"$f":"IF($C125=\"\",\"\",COUNTA($C$88:$C125))","v":38},{"$f":"IF(INDEX(INDIRECT(\"Product_List\"),ROWS($88:125))=\"\",\"\",INDEX(INDIRECT(\"Product_List\"),ROWS($88:125)))","v":"38-ครัวซองต์หมูหยองน้ำสลัด"},null,null,null,null,null,null,null,0,null,{"$f":"INDIRECT(ADDRESS(ROW(A$80),ROW()-ROW(A$80)+(ROWS($88:125)-1)*2-1,4))","v":0},null,0,null,0,null,null,null,0,null,0,null,null,null,null,null,{"$f":"INDIRECT(ADDRESS(ROW(A$80),ROW()-ROW(A$80)+(ROWS($88:125)-1)*2,4))","v":0},0,null,0,{"$f":"INDIRECT(ADDRESS(ROW(A$80),ROW()-ROW(A$80)+(ROWS($88:125)-1)*2+1,4))","v":0}]
[{"$f":"IF(B126=\"\",0,INDEX(Price_List,ROWS($88:126)))","v":15},{"$f":"IF($C126=\"\",\"\",COUNTA($C$88:$C126))","v":39},{"$f":"IF(INDEX(INDIRECT(\"Product_List\"),ROWS($88:126))=\"\",\"\",INDEX(INDIRECT(\"Product_List\"),ROWS($88:126)))","v":"39-แพนเบรดไส้เผือก"},null,null,null,null,null,null,null,{"$f":"D126+E126+J126-I126+H126","v":0},null,{"$f":"INDIRECT(ADDRESS(ROW(A$80),ROW()-ROW(A$80)+(ROWS($88:126)-1)*2-1,4))","v":0},null,{"$f":"F126+G126+M126+J126-K126","v":0},null,{"$f":"O126*A126","v":0},null,null,null,{"$f":"D126+E126-F126-G126","v":0},null,{"$f":"U126*6%+U126","v":0},null,null,null,null,null,{"$f":"INDIRECT(ADDRESS(ROW(A$80),ROW()-ROW(A$80)+(ROWS($88:126)-1)*2,4))","v":0},0,null,0,{"$f":"INDIRECT(ADDRESS(ROW(A$80),ROW()-ROW(A$80)+(ROWS($88:126)-1)*2+1,4))","v":0}]
[{"$f":"IF(B127=\"\",0,INDEX(Price_List,ROWS($88:127)))","v":15},{"$f":"IF($C127=\"\",\"\",COUNTA($C$88:$C127))","v":40},{"$f":"IF(INDEX(INDIRECT(\"Product_List\"),ROWS($88:127))=\"\",\"\",INDEX(INDIRECT(\"Product_List\"),ROWS($88:127)))","v":"40-แพนเบรดไส้ถั่วแดง"},null,null,null,null,null,null,null,{"$f":"D127+E127+J127-I127+H127","v":0},null,{"$f":"INDIRECT(ADDRESS(ROW(A$80),ROW()-ROW(A$80)+(ROWS($88:127)-1)*2-1,4))","v":0},null,{"$f":"F127+G127+M127+J127-K127","v":0},null,{"$f":"O127*A127","v":0},null,null,null,{"$f":"D127+E127-F127-G127","v":0},null,{"$f":"U127*6%+U127","v":0},null,null,null,null,null,{"$f":"INDIRECT(ADDRESS(ROW(A$80),ROW()-ROW(A$80)+(ROWS($88:127)-1)*2,4))","v":0},0,null,0,{"$f":"INDIRECT(ADDRESS(ROW(A$80),ROW()-ROW(A$80)+(ROWS($88:127)-1)*2+1,4))","v":0}]
[{"$f":"IF(B128=\"\",0,INDEX(Price_List,ROWS($88:128)))","v":12},{"$f":"IF($C128=\"\",\"\",COUNTA($C$88:$C128))","v":41},{"$f":"IF(INDEX(INDIRECT(\"Product_List\"),ROWS($88:128))=\"\",\"\",INDEX(INDIRECT(\"Product_List\"),ROWS($88:128)))","v":"41-ขนมปังกรอบเนยน้ำตาล(30กรัม)"},null,null,null,null,null,null,null,0,null,{"$f":"INDIRECT(ADDRESS(ROW(A$80),ROW()-ROW(A$80)+(ROWS($88:128)-1)*2-1,4))","v":0},null,0,null,0,null,null,null,0,null,0,null,null,null,null,null,{"$f":"INDIRECT(ADDRESS(ROW(A$80),ROW()-ROW(A$80)+(ROWS($88:128)-1)*2,4))","v":0},0,null,0,{"$f":"INDIRECT(ADDRESS(ROW(A$80),ROW()-ROW(A$80)+(ROWS($88:128)-1)*2+1,4))","v":0}]
[{"$f":"IF(B129=\"\",0,INDEX(Price_List,ROWS($88:129)))","v":18},{"$f":"IF($C129=\"\",\"\",COUNTA($C$88:$C129))","v":42},{"$f":"IF(INDEX(INDIRECT(\"Product_List\"),ROWS($88:129))=\"\",\"\",INDEX(INDIRECT(\"Product_List\"),ROWS($88:129)))","v":"42-ขนมปังชนิดแผ่นโฮลวีต"},null,null,null,null,null,null,null,0,null,{"$f":"INDIRECT(ADDRESS(ROW(A$80),ROW()-ROW(A$80)+(ROWS($88:129)-1)*2-1,4))","v":0},null,0,null,0,null,null,null,0,null,0,null,null,null,null,null,{"$f":"INDIRECT(ADDRESS(ROW(A$80),ROW()-ROW(A$80)+(ROWS($88:129)-1)*2,4))","v":0},0,null,0,{"$f":"INDIRECT(ADDRESS(ROW(A$80),ROW()-ROW(A$80)+(ROWS($88:129)-1)*2+1,4))","v":0}]
[{"$f":"IF(B130=\"\",0,INDEX(Price_List,ROWS($88:130)))","v":12},{"$f":"IF($C130=\"\",\"\",COUNTA($C$88:$C130))","v":43},{"$f":"IF(INDEX(INDIRECT(\"Product_List\"),ROWS($88:130))=\"\",\"\",INDEX(INDIRECT(\"Product_List\"),ROWS($88:130)))","v":"43-เค้กโรลใบเตย"},null,null,null,null,null,null,null,{"$f":"D130+E130+J130-I130+H130","v":0},null,{"$f":"INDIRECT(ADDRESS(ROW(A$80),ROW()-ROW(A$80)+(ROWS($88:130)-1)*2-1,4))","v":0},null,{"$f":"F130+G130+M130+J130-K130","v":0},null,{"$f":"O130*A130","v":0},null,null,null,{"$f":"D130+E130-F130-G130","v":0},null,{"$f":"U130*6%+U130","v":0},null,null,null,null,null,{"$f":"INDIRECT(ADDRESS(ROW(A$80),ROW()-ROW(A$80)+(ROWS($88:130)-1)*2,4))","v":0},0,null,0,{"$f":"INDIRECT(ADDRESS(ROW(A$80),ROW()-ROW(A$80)+(ROWS($88:130)-1)*2+1,4))","v":0}]
[{"$f":"IF(B131=\"\",0,INDEX(Price_List,ROWS($88:131)))","v":12},{"$f":"IF($C131=\"\",\"\",COUNTA($C$88:$C131))","v":44},{"$f":"IF(INDEX(INDIRECT(\"Product_List\"),ROWS($88:131))=\"\",\"\",INDEX(INDIRECT(\"Product_List\"),ROWS($88:131)))","v":"44-ขนมโมจิไส้ถั่วดำ"},null,null,null,null,null,null,null,{"$f":"D131+E131+J131-I131+H131","v":0},null,{"$f":"INDIRECT(ADDRESS(ROW(A$80),ROW()-ROW(A$80)+(ROWS($88:131)-1)*2-1,4))","v":0},null,{"$f":"F131+G131+M131+J131-K131","v":0},null,{"$f":"O131*A131","v":0},null,null,null,{"$f":"D131+E131-F131-G131","v":0},null,{"$f":"U131*6%+U131","v":0},null,null,null,null,null,{"$f":"INDIRECT(ADDRESS(ROW(A$80),ROW()-ROW(A$80)+(ROWS($88:131)-1)*2,4))","v":0},0,null,0,{"$f":"INDIRECT(ADDRESS(ROW(A$80),ROW()-ROW(A$80)+(ROWS($88:131)-1)*2+1,4))","v":0}]
[{"$f":"IF(B132=\"\",0,INDEX(Price_List,ROWS($88:132)))","v":25},{"$f":"IF($C132=\"\",\"\",COUNTA($C$88:$C132))","v":45},{"$f":"IF(INDEX(INDIRECT(\"Product_List\"),ROWS($88:132))=\"\",\"\",INDEX(INDIRECT(\"Product_List\"),ROWS($88:132)))","v":"45-ครัวซองต์ไส้กรอกชีส"},null,null,null,null,null,null,null,{"$f":"D132+E132+J132-I132+H132","v":0},null,{"$f":"INDIRECT(ADDRESS(ROW(A$80),ROW()-ROW(A$80)+(ROWS($88:132)-1)*2-1,4))","v":0},null,{"$f":"F132+G132+M132+J132-K132","v":0},null,{"$f":"O132*A132","v":0},null,null,null,{"$f":"D132+E132-F132-G132","v":0},null,{"$f":"U132*6%+U132","v":0},null,null,null,null,null,{"$f":"INDIRECT(ADDRESS(ROW(A$80),ROW()-ROW(A$80)+(ROWS($88:132)-1)*2,4))","v":0},0,null,0,{"$f":"INDIRECT(ADDRESS(ROW(A$80),ROW()-ROW(A$80)+(ROWS($88:132)-1)*2+1,4))","v":0}]
[{"$f":"IF(B133=\"\",0,INDEX(Price_List,ROWS($88:133)))","v":12},{"$f":"IF($C133=\"\",\"\",COUNTA($C$88:$C133))","v":46},{"$f":"IF(INDEX(INDIRECT(\"Product_List\"),ROWS($88:133))=\"\",\"\",INDEX(INDIRECT(\"Product_List\"),ROWS($88:133)))","v":"46-ขนมเปี๊ยะไส้ถั่ว"},null,null,null,null,null,null,null,0,null,{"$f":"INDIRECT(ADDRESS(ROW(A$80),ROW()-ROW(A$80)+(ROWS($88:133)-1)*2-1,4))","v":0},null,0,null,0,null,null,null,0,null,0,null,null,null,null,null,{"$f":"INDIRECT(ADDRESS(ROW(A$80),ROW()-ROW(A$80)+(ROWS($88:133)-1)*2,4))","v":0},0,null,0,{"$f":"INDIRECT(ADDRESS(ROW(A$80),ROW()-ROW(A$80)+(ROWS($88:133)-1)*2+1,4))","v":0}]
[{"$f":"IF(B134=\"\",0,INDEX(Price_List,ROWS($88:134)))","v":12},{"$f":"IF($C134=\"\",\"\",COUNTA($C$88:$C134))","v":47},{"$f":"IF(INDEX(INDIRECT(\"Product_List\"),ROWS($88:134))=\"\",\"\",INDEX(INDIRECT(\"Product_List\"),ROWS($88:134)))","v":"47-ขนมเปี๊ยะไส้ฟัก"},null,null,null,null,null,null,null,{"$f":"D134+E134+J134-I134+H134","v":0},null,{"$f":"INDIRECT(ADDRESS(ROW(A$80),ROW()-ROW(A$80)+(ROWS($88:134)-1)*2-1,4))","v":0},null,{"$f":"F134+G134+M134+J134-K134","v":0},null,{"$f":"O134*A134","v":0},null,null,null,{"$f":"D134+E134-F134-G134","v":0},null,{"$f":"U134*6%+U134","v":0},null,null,null,null,null,{"$f":"INDIRECT(ADDRESS(ROW(A$80),ROW()-ROW(A$80)+(ROWS($88:134)-1)*2,4))","v":0},0,null,0,{"$f":"INDIRECT(ADDRESS(ROW(A$80),ROW()-ROW(A$80)+(ROWS($88:134)-1)*2+1,4))","v":0}]
[{"$f":"IF(B135=\"\",0,INDEX(Price_List,ROWS($88:135)))","v":12},{"$f":"IF($C135=\"\",\"\",COUNTA($C$88:$C135))","v":48},{"$f":"IF(INDEX(INDIRECT(\"Product_List\"),ROWS($88:135))=\"\",\"\",INDEX(INDIRECT(\"Product_List\"),ROWS($88:135)))","v":"48-มังกี้เค้ก"},null,null,null,null,null,null,null,0,null,{"$f":"INDIRECT(ADDRESS(ROW(A$80),ROW()-ROW(A$80)+(ROWS($88:135)-1)*2-1,4))","v":0},null,0,null,0,null,null,null,0,null,0,null,null,null,null,null,{"$f":"INDIRECT(ADDRESS(ROW(A$80),ROW()-ROW(A$80)+(ROWS($88:135)-1)*2,4))","v":0},0,null,0,{"$f":"INDIRECT(ADDRESS(ROW(A$80),ROW()-ROW(A$80)+(ROWS($88:135)-1)*2+1,4))","v":0}]
["รวม",null,null,{"$f":"SUM(D$88:D$135)","v":0},0,0,0,0,0,0,0,null,{"$f":"SUM(M$88:M$135)","v":0},null,null,null,{"$f":"$AP$98","v":0},null,"บาท",null,{"$f":"SUM(U$88:U$135)","v":0},null,{"$f":"SUM(W$88:W$135)","v":0},null,null,null,null,null,{"$f":"SUM(AC$88:AC$135)","v":0},{"$f":"SUM(AD$88:AD$135)","v":0},{"$f":"SUM(AE$88:AE$135)","v":0},{"$f":"SUM(AF$88:AF$135)","v":0},{"$f":"SUM(AG$88:AG$135)","v":0}]
["เลขที่ไมล์ เวลาออกทำงาน",null,null,{"$f":"$BF$3","v":0},null,"Km","น้ำหนักของเสีย"]
["เลขที่ไมล์ เวลากลับ",null,null,{"$f":"$BF$4","v":0},null,"Km",{"$f":"$AA$5","v":0},null,"KG"]
["เวลากลับถึงสำนักงาน",null,null,{"$f":"$BF$1","v":"00:00:00"},null,"น."]
["เติมน้ำมัน",null,null,{"$f":"$AX3","v":0},null,"บาท"]
["จำนวนน้ำมัน",null,null,{"$f":"$AX4","v":0},null,"ลิตร"]
["ยอดรวมต้นทุนสาขา",null,null,{"$f":"$AX5","v":0},null,"บาท"]

{"sheet":"2","index":6,"n_rows":142,"n_cols":154,"rows_kept":142,"cut":false,"hidden":false,"merged":[[130,10,130,11],[130,12,130,13],[130,14,130,15],[130,16,130,17],[129,22,129,23],[129,24,129,25],[6,135,6,137],[7,135,7,137],[8,135,8,137],[80,135,80,136],[129,33,129,36],[129,10,129,11],[129,12,129,13],[129,14,129,15],[129,16,129,17],[129,20,129,21],[6,48,6,50],[6,51,6,53],[6,93,6,95],[6,96,6,98],[6,132,6,134],[7,132,7,134],[8,132,8,134],[80,132,80,133],[82,132,82,133],[6,126,6,128],[6,129,6,131],[7,126,7,128],[7,129,7,131],[8,126,8,128],[8,129,8,131],[80,126,80,127],[80,129,80,130],[82,126,82,127],[82,129,82,130],[119,16,119,17],[120,16,120,17],[121,16,121,17],[119,20,119,21],[119,10,119,11],[120,10,120,11],[121,10,121,11],[119,12,119,13],[120,12,120,13],[121,12,121,13],[119,14,119,15],[120,14,120,15],[121,14,121,15],[121,20,121,21],[128,14,128,15],[125,16,125,17],[128,16,128,17],[122,10,122,11],[126,10,126,11],[127,10,127,11],[126,12,126,13],[127,12,127,13],[126,14,126,15],[127,14,127,15],[126,16,126,17],[127,16,127,17],[124,10,124,11],[124,12,124,13],[124,14,124,15],[124,16,124,17],[125,10,125,11],[135,33,135,36],[102,33,102,36],[103,33,103,36],[104,33,104,36],[105,33,105,36],[106,33,106,36],[107,33,107,36],[108,33,108,36],[109,33,109,36],[110,33,110,36],[111,33,111,36],[112,33,112,36],[117,33,117,36],[118,33,118,36],[122,33,122,36],[113,33,113,36],[114,33,114,36],[115,33,115,36],[116,33,116,36],[119,33,119,36],[120,33,120,36],[121,33,121,36],[124,33,124,36],[125,33,125,36],[0,0,0,12],[0,54,0,56],[0,57,0,60],[0,14,0,16],[86,33,86,36],[87,33,87,36],[88,33,88,36],[0,17,0,23],[3,0,3,1],[3,2,3,3],[3,4,3,5],[3,6,3,12],[3,54,3,56],[3,57,3,60],[3,14,3,16],[3,17,3,19],[2,17,2,19],[2,0,2,1],[2,2,2,3],[2,4,2,5],[2,6,2,12],[2,54,2,56],[6,3,8,3],[6,4,8,4],[0,46,0,48],[0,30,0,33],[0,34,0,35],[0,36,0,37],[0,38,0,40],[0,41,0,44],[3,22,3,25],[3,26,3,29],[3,30,3,33],[3,34,3,37],[3,38,3,40],[3,41,3,44],[2,41,2,44],[2,22,2,25],[2,26,2,29],[2,30,2,33],[2,34,2,37],[2,38,2,40],[2,46,2,48],[3,46,3,48],[4,41,4,44],[4,0,4,1],[4,2,4,3],[4,4,4,5],[4,6,4,12],[4,54,4,56],[4,57,4,60],[4,30,4,31],[4,32,4,34],[4,35,4,36],[4,14,4,16],[4,17,4,19],[4,22,4,25],[4,46,4,48],[2,57,2,60],[2,14,2,16],[4,26,4,29],[4,38,4,40],[79,0,79,5],[80,0,80,5],[6,150,6,151],[6,152,8,152],[6,153,8,153],[7,150,8,150],[7,151,8,151],[6,0,8,0],[6,1,8,1],[6,2,8,2],[80,84,80,85],[6,81,6,83],[6,84,6,86],[7,84,7,86],[8,84,8,86],[2,49,2,51],[3,49,3,51],[4,49,4,51],[6,6,6,8],[7,6,7,8],[81,150,82,153],[82,0,82,2],[82,3,82,4],[82,6,82,7],[82,12,82,13],[82,18,82,19],[82,36,82,37],[82,42,82,43],[82,24,82,25],[82,30,82,31],[81,0,81,2],[81,3,81,5],[82,84,82,85],[82,78,82,79],[82,87,82,88],[82,90,82,91],[82,93,82,94],[82,96,82,97],[82,99,82,100],[82,135,82,136],[83,150,83,153],[83,48,83,49],[83,60,83,61],[83,42,83,43],[83,24,83,25],[83,84,83,85],[83,72,83,73],[83,78,83,79],[83,27,83,28],[83,30,83,31],[83,33,83,34],[83,36,83,37],[83,39,83,40],[83,45,83,46],[83,51,83,52],[83,54,83,55],[83,57,83,58],[83,63,83,64],[83,66,83,67],[83,69,83,70],[83,90,83,91],[83,93,83,94],[83,96,83,97],[83,99,83,100],[86,10,86,11],[86,12,86,13],[86,14,86,15],[86,16,86,17],[86,20,86,21],[86,22,86,23],[86,24,86,25],[83,0,83,5],[83,6,83,7],[83,12,83,13],[83,18,83,19],[88,10,88,11],[88,12,88,13],[88,14,88,15],[88,16,88,17],[88,20,88,21],[88,22,88,23],[88,24,88,25],[87,10,87,11],[87,12,87,13],[87,14,87,15],[87,16,87,17],[87,20,87,21],[87,22,87,23],[87,24,87,25],[90,10,90,11],[90,12,90,13],[90,14,90,15],[90,16,90,17],[90,20,90,21],[90,22,90,23],[90,24,90,25],[89,10,89,11],[89,12,89,13],[89,14,89,15],[89,16,89,17],[89,20,89,21],[89,22,89,23],[89,24,89,25],[92,10,92,11],[92,12,92,13],[92,14,92,15],[92,16,92,17],[92,20,92,21],[92,22,92,23],[92,24,92,25],[91,10,91,11],[91,12,91,13],[91,14,91,15],[91,16,91,17],[91,20,91,21],[91,22,91,23],[91,24,91,25],[94,10,94,11],[94,12,94,13],[94,14,94,15],[94,16,94,17],[94,20,94,21],[94,22,94,23],[94,24,94,25],[93,10,93,11],[93,12,93,13],[93,14,93,15],[93,16,93,17],[93,20,93,21],[93,22,93,23],[93,24,93,25],[96,10,96,11],[96,12,96,13],[96,14,96,15],[96,16,96,17],[96,20,96,21],[96,22,96,23],[96,24,96,25],[95,10,95,11],[95,12,95,13],[95,14,95,15],[95,16,95,17],[95,20,95,21],[95,22,95,23],[95,24,95,25],[98,10,98,11],[98,12,98,13],[98,14,98,15],[98,16,98,17],[98,20,98,21],[98,22,98,23],[98,24,98,25],[97,10,97,11],[97,12,97,13],[97,14,97,15],[97,16,97,17],[97,20,97,21],[97,22,97,23],[97,24,97,25],[100,10,100,11],[100,12,100,13],[100,14,100,15],[100,16,100,17],[100,20,100,21],[100,22,100,23],[100,24,100,25],[99,10,99,11],[99,12,99,13],[99,14,99,15],[99,16,99,17],[99,20,99,21],[99,22,99,23],[99,24,99,25],[102,10,102,11],[102,12,102,13],[102,14,102,15],[102,16,102,17],[102,20,102,21],[102,22,102,23],[102,24,102,25],[101,10,101,11],[101,12,101,13],[101,14,101,15],[101,16,101,17],[101,20,101,21],[101,22,101,23],[101,24,101,25],[104,10,104,11],[104,12,104,13],[104,14,104,15],[104,16,104,17],[104,20,104,21],[104,22,104,23],[104,24,104,25],[103,10,103,11],[103,12,103,13],[103,14,103,15],[103,16,103,17],[103,20,103,21],[103,22,103,23],[103,24,103,25],[106,12,106,13],[106,14,106,15],[106,16,106,17],[106,20,106,21],[106,22,106,23],[106,24,106,25],[105,10,105,11],[105,12,105,13],[105,14,105,15],[105,16,105,17],[105,20,105,21],[105,22,105,23],[105,24,105,25],[114,10,114,11],[113,24,113,25],[107,10,107,11],[107,12,107,13],[107,14,107,15],[107,16,107,17],[107,20,107,21],[107,22,107,23],[107,24,107,25],[135,18,135,19],[135,20,135,21],[135,22,135,23],[135,24,135,25],[139,0,139,2],[139,3,139,4],[140,0,140,2],[140,3,140,4],[111,22,111,23],[112,20,112,21],[112,22,112,23],[117,20,117,21],[117,22,117,23],[118,20,118,21],[118,22,118,23],[122,20,122,21],[122,22,122,23],[111,24,111,25],[112,24,112,25],[111,10,111,11],[112,10,112,11],[117,10,117,11],[118,10,118,11],[117,12,117,13],[109,12,109,13],[109,20,109,21],[109,22,109,23],[110,24,110,25],[109,24,109,25],[110,12,110,13],[110,14,110,15],[141,0,141,2],[141,3,141,4],[138,0,138,2],[138,3,138,4],[136,0,136,2],[136,3,136,4],[137,0,137,2],[137,3,137,4],[137,6,137,7],[137,18,137,21],[135,0,135,2],[135,10,135,11],[135,12,135,13],[135,14,135,15],[135,16,135,17],[118,14,118,15],[122,14,122,15],[111,14,111,15],[112,14,112,15],[117,14,117,15],[89,33,89,36],[90,33,90,36],[91,33,91,36],[92,33,92,36],[93,33,93,36],[94,33,94,36],[95,33,95,36],[96,33,96,36],[97,33,97,36],[98,33,98,36],[99,33,99,36],[100,33,100,36],[111,16,111,17],[112,16,112,17],[117,16,117,17],[111,20,111,21],[110,16,110,17],[110,20,110,21],[116,20,116,21],[116,22,116,23],[101,33,101,36],[116,10,116,11],[123,10,123,11],[123,12,123,13],[123,14,123,15],[123,16,123,17],[110,10,110,11],[110,22,110,23],[109,10,109,11],[109,14,109,15],[109,16,109,17],[116,12,116,13],[116,14,116,15],[116,16,116,17],[113,20,113,21],[111,12,111,13],[112,12,112,13],[114,16,114,17],[115,10,115,11],[115,12,115,13],[114,22,114,23],[113,10,113,11],[113,12,113,13],[113,14,113,15],[113,16,113,17],[115,14,115,15],[115,16,115,17],[113,22,113,23],[114,12,114,13],[8,6,8,8],[6,9,6,11],[6,12,6,14],[6,15,6,17],[6,18,6,20],[6,21,6,23],[83,9,83,10],[83,15,83,16],[83,21,83,22],[115,20,115,21],[115,22,115,23],[114,14,114,15],[114,20,114,21],[108,10,108,11],[108,12,108,13],[108,14,108,15],[108,16,108,17],[108,20,108,21],[108,22,108,23],[106,10,106,11],[6,24,6,26],[6,27,6,29],[6,30,6,32],[6,69,6,71],[6,72,6,74],[6,75,6,77],[6,78,6,80],[6,114,6,116],[6,117,6,119],[6,105,6,107],[6,108,6,110],[6,111,6,113],[6,54,6,56],[6,57,6,59],[6,60,6,62],[6,63,6,65],[6,66,6,68],[6,99,6,101],[6,102,6,104],[6,33,6,35],[6,36,6,38],[6,39,6,41],[6,42,6,44],[6,45,6,47],[6,120,6,122],[6,123,6,125],[7,9,7,11],[7,12,7,14],[7,15,7,17],[7,18,7,20],[7,21,7,23],[7,24,7,26],[7,27,7,29],[7,30,7,32],[7,33,7,35],[7,36,7,38],[7,39,7,41],[7,42,7,44],[7,45,7,47],[7,48,7,50],[7,51,7,53],[7,54,7,56],[6,87,6,89],[6,90,6,92],[7,93,7,95],[7,96,7,98],[7,99,7,101],[7,102,7,104],[7,105,7,107],[7,108,7,110],[7,111,7,113],[7,57,7,59],[7,60,7,62],[7,63,7,65],[7,66,7,68],[7,69,7,71],[7,72,7,74],[7,75,7,77],[7,78,7,80],[7,81,7,83],[7,114,7,116],[7,117,7,119],[7,120,7,122],[7,123,7,125],[8,9,8,11],[8,12,8,14],[8,15,8,17],[8,18,8,20],[8,21,8,23],[8,24,8,26],[8,27,8,29],[8,30,8,32],[8,33,8,35],[8,36,8,38],[8,39,8,41],[8,42,8,44],[8,45,8,47],[8,48,8,50],[8,51,8,53],[8,54,8,56],[7,87,7,89],[7,90,7,92],[8,93,8,95],[8,96,8,98],[8,99,8,101],[8,102,8,104],[8,105,8,107],[8,108,8,110],[8,111,8,113],[8,57,8,59],[8,60,8,62],[8,63,8,65],[8,66,8,68],[8,69,8,71],[8,72,8,74],[8,75,8,77],[8,78,8,80],[8,81,8,83],[8,114,8,116],[8,117,8,119],[8,120,8,122],[8,123,8,125],[80,6,80,7],[80,9,80,10],[80,12,80,13],[80,15,80,16],[80,18,80,19],[80,21,80,22],[80,24,80,25],[80,27,80,28],[80,30,80,31],[80,33,80,34],[80,36,80,37],[80,39,80,40],[80,42,80,43],[80,45,80,46],[80,48,80,49],[80,51,80,52],[8,87,8,89],[8,90,8,92],[80,54,80,55],[80,57,80,58],[80,99,80,100],[80,102,80,103],[80,105,80,106],[80,108,80,109],[80,111,80,112],[80,114,80,115],[80,60,80,61],[80,63,80,64],[80,66,80,67],[80,69,80,70],[80,72,80,73],[80,75,80,76],[80,81,80,82],[80,78,80,79],[80,87,80,88],[80,117,80,118],[80,120,80,121],[80,123,80,124],[82,9,82,10],[82,15,82,16],[82,21,82,22],[82,27,82,28],[82,33,82,34],[82,39,82,40],[82,45,82,46],[82,48,82,49],[82,51,82,52],[82,54,82,55],[82,57,82,58],[82,60,82,61],[82,63,82,64],[82,66,82,67],[82,69,82,70],[82,72,82,73],[82,75,82,76],[82,81,82,82],[80,90,80,91],[80,93,80,94],[80,96,80,97],[83,123,83,124],[82,120,82,121],[82,123,82,124],[82,102,82,103],[82,105,82,106],[82,108,82,109],[82,111,82,112],[82,114,82,115],[82,117,82,118],[83,117,83,118],[83,120,83,121],[83,105,83,106],[83,108,83,109],[83,111,83,112],[83,114,83,115],[108,24,108,25],[114,24,114,25],[126,22,126,23],[127,22,127,23],[128,24,128,25],[97,38,97,40],[118,24,118,25],[122,24,122,25],[119,24,119,25],[120,24,120,25],[121,24,121,25],[124,22,124,23],[124,24,124,25],[119,22,119,23],[120,22,120,23],[121,22,121,23],[126,33,126,36],[127,33,127,36],[82,147,82,148],[83,138,83,139],[83,141,83,142],[83,147,83,148],[128,22,128,23],[125,24,125,25],[128,33,128,36],[123,20,123,21],[123,22,123,23],[123,24,123,25],[123,33,123,36],[125,20,125,21],[126,24,126,25],[127,24,127,25],[124,20,124,21],[83,135,83,136],[83,129,83,130],[83,132,83,133],[83,126,83,127],[83,75,83,76],[83,81,83,82],[83,87,83,88],[83,102,83,103],[115,24,115,25],[6,147,6,149],[7,138,7,140],[7,141,7,143],[7,147,7,149],[8,138,8,140],[8,141,8,143],[8,147,8,149],[80,138,80,139],[80,141,80,142],[80,147,80,148],[134,10,134,11],[131,12,131,13],[132,12,132,13],[134,12,134,13],[131,14,131,15],[132,14,132,15],[134,14,134,15],[117,24,117,25],[128,20,128,21],[126,20,126,21],[127,20,127,21],[130,20,130,21],[130,22,130,23],[130,24,130,25],[125,22,125,23],[118,12,118,13],[122,12,122,13],[118,16,118,17],[122,16,122,17],[120,20,120,21],[128,10,128,11],[125,12,125,13],[128,12,128,13],[125,14,125,15],[134,24,134,25],[131,33,131,36],[132,33,132,36],[134,33,134,36],[131,16,131,17],[132,16,132,17],[134,16,134,17],[131,20,131,21],[132,20,132,21],[134,20,134,21],[131,22,131,23],[132,22,132,23],[134,22,134,23],[6,144,6,146],[7,144,7,146],[8,144,8,146],[80,144,80,145],[82,144,82,145],[83,144,83,145],[133,10,133,11],[133,12,133,13],[133,14,133,15],[133,16,133,17],[133,20,133,21],[133,22,133,23],[133,24,133,25],[133,33,133,36],[131,24,131,25],[132,24,132,25],[131,10,131,11],[132,10,132,11],[6,138,6,140],[6,141,6,143],[82,138,82,139],[82,141,82,142],[130,33,130,36],[116,24,116,25]]}
[":::: รายงานการขายประจำวัน (Sale Daily Report)  ::::",null,null,null,null,null,null,null,null,null,null,null,null,null,"Print Date : ",null,null,{"$f":"NOW()","v":"2025-04-24T22:39:10.180"},null,null,null,null,null,null,null,null,null,null,null,null,"จำนวนร้าน :",null,null,null,{"$f":"MAX($A$10:$A$79)","v":0},null,"ร้าน",null,"เป้ายอดขาย :",null,null,null,null,null,null,null,{"$f":"C3","v":45779},null,null,{"$f":"LEFT('Problems & Solutions'!$B$2,FIND(\"|\",'Problems & Solutions'!$B$2))&\" วันที่\"&TEXT($C$3,\"[$-107041E] d mmmm yyyy;@\")","v":"ขั้นตอนการตรวจรีพอร์ตขาย | วันที่ 2 พฤษภาคม 2568"},null,null,null,null,"เวลากลับ :"]
[]
["วันที่ :",null,{"$f":"DATE(ใส่ข้อมูล!G2-543,ใส่ข้อมูล!V2,ActiveSheetName)","v":"2025-05-02"},null,"พนักงานขาย",null,{"$f":"INDEX(OFFSET(Sale_Region,,1),ActiveSheetName)","v":0},null,null,null,null,null,null,null,"รวมยอดเบิก :",null,null,{"$f":"E136","v":0},null,null,"ชิ้น",null,"ใหญ่สด(40)",null,null,null,{"$f":"Cash_Major_Bill","v":0},null,null,null,"ใหญ่เชื่อ(42)",null,null,null,{"$f":"Credit_Major_Bill","v":0},null,null,null,"บิลใหญ่ :",null,null,{"$f":"AA3+AI3","v":0},null,null,null,null,"เติมน้ำมัน :",null,null,null,null,null,"บาท",null,"ไมล์ออก :",null,null,{"$f":"เลขไมล์ออก","v":0},null,null,null,"Km"]
["เขตการขาย :",null,{"$f":"INDEX(Sale_Region,ActiveSheetName)","v":0},null,"ผช.ขาย",null,{"$f":"INDEX(OFFSET(Sale_Region,,2),ActiveSheetName)","v":0},null,null,null,null,null,null,null,"ของเหลือ :",null,null,{"$f":"F136","v":0},null,null,"ชิ้น",null,"เล็กสด(41)",null,null,null,{"$f":"Cash_Minor_Bill","v":0},null,null,null,"เล็กเชื่อ(43)",null,null,null,{"$f":"Credit_Minor_Bill","v":0},null,null,null,"บิลเล็ก :",null,null,{"$f":"AA4+AI4","v":0},null,null,null,null,"จำนวนลิตร :",null,null,null,null,null,"ลิตร",null,"ไมล์เข้า :",null,null,null,null,null,null,"Km"]
["สายส่ง :",null,{"$f":"\"Sale \"&ใส่ข้อมูล!E3&\"-\"&ใส่ข้อมูล!G3","v":"Sale KB-01"},null,"พนักงานเสริม",null,{"$f":"INDEX(OFFSET(Sale_Region,,3),ActiveSheetName)","v":0},null,null,null,null,null,null,null,"ของเสีย :",null,null,{"$f":"G136","v":0},null,null,"ชิ้น",null,"น้ำหนักของเสีย",null,null,null,null,null,null,null,"Kg.",null,"%ของเสีย",null,null,{"$f":"IF(Order_Cal=0,0,ROUND(Waste_Cal*100/Order_Cal,2))","v":0},null,"%","VAT :",null,null,{"$f":"EW81","v":0},null,null,null,null,"ต้นทุนสาขา :",null,null,{"$f":"SUMPRODUCT((($A$88:$A$135)-($A$88:$A$135)*0.45)*(($E$88:$E$135)-($G$88:$G$135)))","v":0},null,null,"บาท",null,"ระยะทาง :",null,null,{"$f":"IF(OR($BF$4=0,$BF$3=0),0,$BF$4-$BF$3)","v":0},null,null,null,"Km"]
[]
["No","รหัสร้าน (CustNo)","ชื่อร้าน (Store Name)","เวลาเข้าร้าน","ระยะเวลาระหว่างร้าน","บิล(Invoice)",{"$f":"INDEX(INDIRECT(\"dProduct[ProductName]\"),ROUNDUP(COLUMNS($G:G)/3,0))","v":"ขนมปังหมูหยองน้ำสลัด"},null,null,{"$f":"INDEX(INDIRECT(\"dProduct[ProductName]\"),ROUNDUP(COLUMNS($G:J)/3,0))","v":"ขนมปังหมูหยองน้ำพริกเผา"},null,null,{"$f":"INDEX(INDIRECT(\"dProduct[ProductName]\"),ROUNDUP(COLUMNS($G:M)/3,0))","v":"ขนมปังไก่หยองน้ำสลัด"},null,null,{"$f":"INDEX(INDIRECT(\"dProduct[ProductName]\"),ROUNDUP(COLUMNS($G:P)/3,0))","v":"ขนมปังไส้ครีมสลัด"},null,null,{"$f":"INDEX(INDIRECT(\"dProduct[ProductName]\"),ROUNDUP(COLUMNS($G:S)/3,0))","v":"ขนมปังเนยสด"},null,null,{"$f":"INDEX(INDIRECT(\"dProduct[ProductName]\"),ROUNDUP(COLUMNS($G:V)/3,0))","v":"ขนมปังไส้สังขยาเล็ก"},null,null,{"$f":"INDEX(INDIRECT(\"dProduct[ProductName]\"),ROUNDUP(COLUMNS($G:Y)/3,0))","v":"ขนมปังไส้เผือก"},null,null,{"$f":"INDEX(INDIRECT(\"dProduct[ProductName]\"),ROUNDUP(COLUMNS($G:AB)/3,0))","v":"ขนมปังไส้ถั่วแดง"},null,null,{"$f":"INDEX(INDIRECT(\"dProduct[ProductName]\"),ROUNDUP(COLUMNS($G:AE)/3,0))","v":"ขนมปังไส้ถั่วดำ"},null,null,{"$f":"INDEX(INDIRECT(\"dProduct[ProductName]\"),ROUNDUP(COLUMNS($G:AH)/3,0))","v":"ขนมปังไส้มันม่วง"},null,null,{"$f":"INDEX(INDIRECT(\"dProduct[ProductName]\"),ROUNDUP(COLUMNS($G:AK)/3,0))","v":"เค้กกล้วยหอม"},null,null,{"$f":"INDEX(INDIRECT(\"dProduct[ProductName]\"),ROUNDUP(COLUMNS($G:AN)/3,0))","v":"เค้กบัตเตอร์"},null,null,{"$f":"INDEX(INDIRECT(\"dProduct[ProductName]\"),ROUNDUP(COLUMNS($G:AQ)/3,0))","v":"ขนมปังโรลถั่วแดง"},null,null,{"$f":"INDEX(INDIRECT(\"dProduct[ProductName]\"),ROUNDUP(COLUMNS($G:AT)/3,0))","v":"ขนมปังไส้สังขยาใหญ่"},null,null,{"$f":"INDEX(INDIRECT(\"dProduct[ProductName]\"),ROUNDUP(COLUMNS($G:AW)/3,0))","v":"ขนมปังชนิดแผ่น(480กรัม)"},null,null,{"$f":"INDEX(INDIRECT(\"dProduct[ProductName]\"),ROUNDUP(COLUMNS($G:AZ)/3,0))","v":"โมจิไส้ถั่ว"},null,null,{"$f":"INDEX(INDIRECT(\"dProduct[ProductName]\"),ROUNDUP(COLUMNS($G:BC)/3,0))","v":"โมจิไส้เผือก"},null,null,{"$f":"INDEX(INDIRECT(\"dProduct[ProductName]\"),ROUNDUP(COLUMNS($G:BF)/3,0))","v":"โมจิไส้ถั่วไข่เค็ม"},null,null,{"$f":"INDEX(INDIRECT(\"dProduct[ProductName]\"),ROUNDUP(COLUMNS($G:BI)/3,0))","v":"ขนมปังพิซซ่า"},null,null,{"$f":"INDEX(INDIRECT(\"dProduct[ProductName]\"),ROUNDUP(COLUMNS($G:BL)/3,0))","v":"ขนมปังพิซซ่าปูอัดแฮม"},null,null,{"$f":"INDEX(INDIRECT(\"dProduct[ProductName]\"),ROUNDUP(COLUMNS($G:BO)/3,0))","v":"ขนมปังไส้กรอก"},null,null,{"$f":"INDEX(INDIRECT(\"dProduct[ProductName]\"),ROUNDUP(COLUMNS($G:BR)/3,0))","v":"ขนมก้านบัว"},null,null,{"$f":"INDEX(INDIRECT(\"dProduct[ProductName]\"),ROUNDUP(COLUMNS($G:BU)/3,0))","v":"พายสับปะรด"},null,null,{"$f":"INDEX(INDIRECT(\"dProduct[ProductName]\"),ROUNDUP(COLUMNS($G:BX)/3,0))","v":"พายไส้มะพร้าว"},null,null,{"$f":"INDEX(INDIRECT(\"dProduct[ProductName]\"),ROUNDUP(COLUMNS($G:CA)/3,0))","v":"ขนมปังโรลมันเทศ"},null,null,{"$f":"INDEX(INDIRECT(\"dProduct[ProductName]\"),ROUNDUP(COLUMNS($G:CD)/3,0))","v":"ขนมปังไส้ครีมสลัดน้ำพริกเผา"},null,null,{"$f":"INDEX(INDIRECT(\"dProduct[ProductName]\"),ROUNDUP(COLUMNS($G:CG)/3,0))","v":"ขนมปังไส้สังขยาไข่"},null,null,{"$f":"INDEX(INDIRECT(\"dProduct[ProductName]\"),ROUNDUP(COLUMNS($G:CJ)/3,0))","v":"ขนมปังไส้สังขยามะพร้าว"},null,null,{"$f":"INDEX(INDIRECT(\"dProduct[ProductName]\"),ROUNDUP(COLUMNS($G:CM)/3,0))","v":"ขนมปังไส้ครีมชาไทย"},null,null,{"$f":"INDEX(INDIRECT(\"dProduct[ProductName]\"),ROUNDUP(COLUMNS($G:CP)/3,0))","v":"ขนมปังโรลมันม่วง"},null,null,{"$f":"INDEX(INDIRECT(\"dProduct[ProductName]\"),ROUNDUP(COLUMNS($G:CS)/3,0))","v":"ขนมปังโรลช็อกโกแลต"},null,null,{"$f":"INDEX(INDIRECT(\"dProduct[ProductName]\"),ROUNDUP(COLUMNS($G:CV)/3,0))","v":"ขนมปังชนิดแผ่น(155กรัม)"},null,null,{"$f":"INDEX(INDIRECT(\"dProduct[ProductName]\"),ROUNDUP(COLUMNS($G:CY)/3,0))","v":"ขนมปังโรลเผือก"},null,null,{"$f":"INDEX(INDIRECT(\"dProduct[ProductName]\"),ROUNDUP(COLUMNS($G:DB)/3,0))","v":"ขนมปังไก่หยองน้ำสลัด Mini"},null,null,{"$f":"INDEX(INDIRECT(\"dProduct[ProductName]\"),ROUNDUP(COLUMNS($G:DE)/3,0))","v":"ขนมปังไส้ช็อกโกแลต"},null,null,{"$f":"INDEX(INDIRECT(\"dProduct[ProductName]\"),ROUNDUP(COLUMNS($G:DH)/3,0))","v":"ขนมปังไส้ครีมสังขยาไข่"},null,null,{"$f":"INDEX(INDIRECT(\"dProduct[ProductName]\"),ROUNDUP(COLUMNS($G:DK)/3,0))","v":"ขนมปังพิซซ่าฮาวายเอี้ยน"},null,null,{"$f":"INDEX(INDIRECT(\"dProduct[ProductName]\"),ROUNDUP(COLUMNS($G:DN)/3,0))","v":"ครัวซองต์หมูหยองน้ำสลัด"},null,null,{"$f":"INDEX(INDIRECT(\"dProduct[ProductName]\"),ROUNDUP(COLUMNS($G:DQ)/3,0))","v":"แพนเบรดไส้เผือก"},null,null,{"$f":"INDEX(INDIRECT(\"dProduct[ProductName]\"),ROUNDUP(COLUMNS($G:DT)/3,0))","v":"แพนเบรดไส้ถั่วแดง"},null,null,{"$f":"INDEX(INDIRECT(\"dProduct[ProductName]\"),ROUNDUP(COLUMNS($G:DW)/3,0))","v":"ขนมปังกรอบเนยน้ำตาล(30กรัม)"},null,null,{"$f":"INDEX(INDIRECT(\"dProduct[ProductName]\"),ROUNDUP(COLUMNS($G:DZ)/3,0))","v":"ขนมปังชนิดแผ่นโฮลวีต"},null,null,{"$f":"INDEX(INDIRECT(\"dProduct[ProductName]\"),ROUNDUP(COLUMNS($G:EC)/3,0))","v":"เค้กโรลใบเตย"},null,null,{"$f":"INDEX(INDIRECT(\"dProduct[ProductName]\"),ROUNDUP(COLUMNS($G:EF)/3,0))","v":"ขนมโมจิไส้ถั่วดำ"},null,null,{"$f":"INDEX(INDIRECT(\"dProduct[ProductName]\"),ROUNDUP(COLUMNS($G:EI)/3,0))","v":"ครัวซองต์ไส้กรอกชีส"},null,null,{"$f":"INDEX(INDIRECT(\"dProduct[ProductName]\"),ROUNDUP(COLUMNS($G:EL)/3,0))","v":"ขนมเปี๊ยะไส้ถั่ว"},null,null,{"$f":"INDEX(INDIRECT(\"dProduct[ProductName]\"),ROUNDUP(COLUMNS($G:EO)/3,0))","v":"ขนมเปี๊ยะไส้ฟัก"},null,null,{"$f":"INDEX(INDIRECT(\"dProduct[ProductName]\"),ROUNDUP(COLUMNS($G:ER)/3,0))","v":"มังกี้เค้ก"},null,null,"มูลค่าสินค้า",null,"ภาษี","รวมยอดขาย"]
[null,null,null,null,null,"ราคาขาย",{"$f":"IF(G$7=0,0,INDEX(Price_List,ROUNDUP(COLUMNS($G:G)/3,0)))","v":20},null,null,{"$f":"IF(J$7=0,0,INDEX(Price_List,ROUNDUP(COLUMNS($G:J)/3,0)))","v":20},null,null,{"$f":"IF(M$7=0,0,INDEX(Price_List,ROUNDUP(COLUMNS($G:M)/3,0)))","v":20},null,null,{"$f":"IF(P$7=0,0,INDEX(Price_List,ROUNDUP(COLUMNS($G:P)/3,0)))","v":15},null,null,{"$f":"IF(S$7=0,0,INDEX(Price_List,ROUNDUP(COLUMNS($G:S)/3,0)))","v":15},null,null,{"$f":"IF(V$7=0,0,INDEX(Price_List,ROUNDUP(COLUMNS($G:V)/3,0)))","v":10},null,null,{"$f":"IF(Y$7=0,0,INDEX(Price_List,ROUNDUP(COLUMNS($G:Y)/3,0)))","v":10},null,null,{"$f":"IF(AB$7=0,0,INDEX(Price_List,ROUNDUP(COLUMNS($G:AB)/3,0)))","v":10},null,null,{"$f":"IF(AE$7=0,0,INDEX(Price_List,ROUNDUP(COLUMNS($G:AE)/3,0)))","v":10},null,null,{"$f":"IF(AH$7=0,0,INDEX(Price_List,ROUNDUP(COLUMNS($G:AH)/3,0)))","v":10},null,null,{"$f":"IF(AK$7=0,0,INDEX(Price_List,ROUNDUP(COLUMNS($G:AK)/3,0)))","v":15},null,null,{"$f":"IF(AN$7=0,0,INDEX(Price_List,ROUNDUP(COLUMNS($G:AN)/3,0)))","v":15},null,null,{"$f":"IF(AQ$7=0,0,INDEX(Price_List,ROUNDUP(COLUMNS($G:AQ)/3,0)))","v":15},null,null,{"$f":"IF(AT$7=0,0,INDEX(Price_List,ROUNDUP(COLUMNS($G:AT)/3,0)))","v":15},null,null,{"$f":"IF(AW$7=0,0,INDEX(Price_List,ROUNDUP(COLUMNS($G:AW)/3,0)))","v":42},null,null,{"$f":"IF(AZ$7=0,0,INDEX(Price_List,ROUNDUP(COLUMNS($G:AZ)/3,0)))","v":12},null,null,{"$f":"IF(BC$7=0,0,INDEX(Price_List,ROUNDUP(COLUMNS($G:BC)/3,0)))","v":12},null,null,{"$f":"IF(BF$7=0,0,INDEX(Price_List,ROUNDUP(COLUMNS($G:BF)/3,0)))","v":15},null,null,{"$f":"IF(BI$7=0,0,INDEX(Price_List,ROUNDUP(COLUMNS($G:BI)/3,0)))","v":20},null,null,{"$f":"IF(BL$7=0,0,INDEX(Price_List,ROUNDUP(COLUMNS($G:BL)/3,0)))","v":20},null,null,{"$f":"IF(BO$7=0,0,INDEX(Price_List,ROUNDUP(COLUMNS($G:BO)/3,0)))","v":20},null,null,{"$f":"IF(BR$7=0,0,INDEX(Price_List,ROUNDUP(COLUMNS($G:BR)/3,0)))","v":15},null,null,{"$f":"IF(BU$7=0,0,INDEX(Price_List,ROUNDUP(COLUMNS($G:BU)/3,0)))","v":20},null,null,{"$f":"IF(BX$7=0,0,INDEX(Price_List,ROUNDUP(COLUMNS($G:BX)/3,0)))","v":20},null,null,{"$f":"IF(CA$7=0,0,INDEX(Price_List,ROUNDUP(COLUMNS($G:CA)/3,0)))","v":15},null,null,{"$f":"IF(CD$7=0,0,INDEX(Price_List,ROUNDUP(COLUMNS($G:CD)/3,0)))","v":15},null,null,{"$f":"IF(CG$7=0,0,INDEX(Price_List,ROUNDUP(COLUMNS($G:CG)/3,0)))","v":20},null,null,{"$f":"IF(CJ$7=0,0,INDEX(Price_List,ROUNDUP(COLUMNS($G:CJ)/3,0)))","v":20},null,null,{"$f":"IF(CM$7=0,0,INDEX(Price_List,ROUNDUP(COLUMNS($G:CM)/3,0)))","v":10},null,null,{"$f":"IF(CP$7=0,0,INDEX(Price_List,ROUNDUP(COLUMNS($G:CP)/3,0)))","v":15},null,null,{"$f":"IF(CS$7=0,0,INDEX(Price_List,ROUNDUP(COLUMNS($G:CS)/3,0)))","v":15},null,null,{"$f":"IF(CV$7=0,0,INDEX(Price_List,ROUNDUP(COLUMNS($G:CV)/3,0)))","v":16},null,null,{"$f":"IF(CY$7=0,0,INDEX(Price_List,ROUNDUP(COLUMNS($G:CY)/3,0)))","v":15},null,null,{"$f":"IF(DB$7=0,0,INDEX(Price_List,ROUNDUP(COLUMNS($G:DB)/3,0)))","v":15},null,null,{"$f":"IF(DE$7=0,0,INDEX(Price_List,ROUNDUP(COLUMNS($G:DE)/3,0)))","v":10},null,null,{"$f":"IF(DH$7=0,0,INDEX(Price_List,ROUNDUP(COLUMNS($G:DH)/3,0)))","v":10},null,null,{"$f":"IF(DK$7=0,0,INDEX(Price_List,ROUNDUP(COLUMNS($G:DK)/3,0)))","v":20},null,null,{"$f":"IF(DN$7=0,0,INDEX(Price_List,ROUNDUP(COLUMNS($G:DN)/3,0)))","v":20},null,null,{"$f":"IF(DQ$7=0,0,INDEX(Price_List,ROUNDUP(COLUMNS($G:DQ)/3,0)))","v":15},null,null,{"$f":"IF(DT$7=0,0,INDEX(Price_List,ROUNDUP(COLUMNS($G:DT)/3,0)))","v":15},null,null,{"$f":"IF(DW$7=0,0,INDEX(Price_List,ROUNDUP(COLUMNS($G:DW)/3,0)))","v":12},null,null,{"$f":"IF(DZ$7=0,0,INDEX(Price_List,ROUNDUP(COLUMNS($G:DZ)/3,0)))","v":18},null,null,{"$f":"IF(EC$7=0,0,INDEX(Price_List,ROUNDUP(COLUMNS($G:EC)/3,0)))","v":12},null,null,{"$f":"IF(EF$7=0,0,INDEX(Price_List,ROUNDUP(COLUMNS($G:EF)/3,0)))","v":12},null,null,{"$f":"IF(EI$7=0,0,INDEX(Price_List,ROUNDUP(COLUMNS($G:EI)/3,0)))","v":25},null,null,{"$f":"IF(EL$7=0,0,INDEX(Price_List,ROUNDUP(COLUMNS($G:EL)/3,0)))","v":12},null,null,{"$f":"IF(EO$7=0,0,INDEX(Price_List,ROUNDUP(COLUMNS($G:EO)/3,0)))","v":12},null,null,{"$f":"IF(ER$7=0,0,INDEX(Price_List,ROUNDUP(COLUMNS($G:ER)/3,0)))","v":12},null,null,"เงินเชื่อ","เงินสด"]
[null,null,null,null,null,"คงเหลือ(ตามบัญชี)",{"$f":"IF(G$7=0,0,INDEX(INDIRECT(Order_Rng),ROUNDUP(COLUMNS($G:G)/3,0)))","v":0},null,null,{"$f":"IF(J$7=0,0,INDEX(INDIRECT(Order_Rng),ROUNDUP(COLUMNS($G:J)/3,0)))","v":0},null,null,{"$f":"IF(M$7=0,0,INDEX(INDIRECT(Order_Rng),ROUNDUP(COLUMNS($G:M)/3,0)))","v":0},null,null,{"$f":"IF(P$7=0,0,INDEX(INDIRECT(Order_Rng),ROUNDUP(COLUMNS($G:P)/3,0)))","v":0},null,null,{"$f":"IF(S$7=0,0,INDEX(INDIRECT(Order_Rng),ROUNDUP(COLUMNS($G:S)/3,0)))","v":0},null,null,{"$f":"IF(V$7=0,0,INDEX(INDIRECT(Order_Rng),ROUNDUP(COLUMNS($G:V)/3,0)))","v":0},null,null,{"$f":"IF(Y$7=0,0,INDEX(INDIRECT(Order_Rng),ROUNDUP(COLUMNS($G:Y)/3,0)))","v":0},null,null,{"$f":"IF(AB$7=0,0,INDEX(INDIRECT(Order_Rng),ROUNDUP(COLUMNS($G:AB)/3,0)))","v":0},null,null,{"$f":"IF(AE$7=0,0,INDEX(INDIRECT(Order_Rng),ROUNDUP(COLUMNS($G:AE)/3,0)))","v":0},null,null,{"$f":"IF(AH$7=0,0,INDEX(INDIRECT(Order_Rng),ROUNDUP(COLUMNS($G:AH)/3,0)))","v":0},null,null,{"$f":"IF(AK$7=0,0,INDEX(INDIRECT(Order_Rng),ROUNDUP(COLUMNS($G:AK)/3,0)))","v":0},null,null,{"$f":"IF(AN$7=0,0,INDEX(INDIRECT(Order_Rng),ROUNDUP(COLUMNS($G:AN)/3,0)))","v":0},null,null,{"$f":"IF(AQ$7=0,0,INDEX(INDIRECT(Order_Rng),ROUNDUP(COLUMNS($G:AQ)/3,0)))","v":0},null,null,{"$f":"IF(AT$7=0,0,INDEX(INDIRECT(Order_Rng),ROUNDUP(COLUMNS($G:AT)/3,0)))","v":0},null,null,{"$f":"IF(AW$7=0,0,INDEX(INDIRECT(Order_Rng),ROUNDUP(COLUMNS($G:AW)/3,0)))","v":0},null,null,{"$f":"IF(AZ$7=0,0,INDEX(INDIRECT(Order_Rng),ROUNDUP(COLUMNS($G:AZ)/3,0)))","v":0},null,null,{"$f":"IF(BC$7=0,0,INDEX(INDIRECT(Order_Rng),ROUNDUP(COLUMNS($G:BC)/3,0)))","v":0},null,null,{"$f":"IF(BF$7=0,0,INDEX(INDIRECT(Order_Rng),ROUNDUP(COLUMNS($G:BF)/3,0)))","v":0},null,null,{"$f":"IF(BI$7=0,0,INDEX(INDIRECT(Order_Rng),ROUNDUP(COLUMNS($G:BI)/3,0)))","v":0},null,null,{"$f":"IF(BL$7=0,0,INDEX(INDIRECT(Order_Rng),ROUNDUP(COLUMNS($G:BL)/3,0)))","v":0},null,null,{"$f":"IF(BO$7=0,0,INDEX(INDIRECT(Order_Rng),ROUNDUP(COLUMNS($G:BO)/3,0)))","v":0},null,null,{"$f":"IF(BR$7=0,0,INDEX(INDIRECT(Order_Rng),ROUNDUP(COLUMNS($G:BR)/3,0)))","v":0},null,null,{"$f":"IF(BU$7=0,0,INDEX(INDIRECT(Order_Rng),ROUNDUP(COLUMNS($G:BU)/3,0)))","v":0},null,null,{"$f":"IF(BX$7=0,0,INDEX(INDIRECT(Order_Rng),ROUNDUP(COLUMNS($G:BX)/3,0)))","v":0},null,null,{"$f":"IF(CA$7=0,0,INDEX(INDIRECT(Order_Rng),ROUNDUP(COLUMNS($G:CA)/3,0)))","v":0},null,null,{"$f":"IF(CD$7=0,0,INDEX(INDIRECT(Order_Rng),ROUNDUP(COLUMNS($G:CD)/3,0)))","v":0},null,null,{"$f":"IF(CG$7=0,0,INDEX(INDIRECT(Order_Rng),ROUNDUP(COLUMNS($G:CG)/3,0)))","v":0},null,null,{"$f":"IF(CJ$7=0,0,INDEX(INDIRECT(Order_Rng),ROUNDUP(COLUMNS($G:CJ)/3,0)))","v":0},null,null,{"$f":"IF(CM$7=0,0,INDEX(INDIRECT(Order_Rng),ROUNDUP(COLUMNS($G:CM)/3,0)))","v":0},null,null,{"$f":"IF(CP$7=0,0,INDEX(INDIRECT(Order_Rng),ROUNDUP(COLUMNS($G:CP)/3,0)))","v":0},null,null,{"$f":"IF(CS$7=0,0,INDEX(INDIRECT(Order_Rng),ROUNDUP(COLUMNS($G:CS)/3,0)))","v":0},null,null,{"$f":"IF(CV$7=0,0,INDEX(INDIRECT(Order_Rng),ROUNDUP(COLUMNS($G:CV)/3,0)))","v":0},null,null,{"$f":"IF(CY$7=0,0,INDEX(INDIRECT(Order_Rng),ROUNDUP(COLUMNS($G:CY)/3,0)))","v":0},null,null,{"$f":"IF(DB$7=0,0,INDEX(INDIRECT(Order_Rng),ROUNDUP(COLUMNS($G:DB)/3,0)))","v":0},null,null,{"$f":"IF(DE$7=0,0,INDEX(INDIRECT(Order_Rng),ROUNDUP(COLUMNS($G:DE)/3,0)))","v":0},null,null,{"$f":"IF(DH$7=0,0,INDEX(INDIRECT(Order_Rng),ROUNDUP(COLUMNS($G:DH)/3,0)))","v":0},null,null,{"$f":"IF(DK$7=0,0,INDEX(INDIRECT(Order_Rng),ROUNDUP(COLUMNS($G:DK)/3,0)))","v":0},null,null,{"$f":"IF(DN$7=0,0,INDEX(INDIRECT(Order_Rng),ROUNDUP(COLUMNS($G:DN)/3,0)))","v":0},null,null,{"$f":"IF(DQ$7=0,0,INDEX(INDIRECT(Order_Rng),ROUNDUP(COLUMNS($G:DQ)/3,0)))","v":0},null,null,{"$f":"IF(DT$7=0,0,INDEX(INDIRECT(Order_Rng),ROUNDUP(COLUMNS($G:DT)/3,0)))","v":0},null,null,{"$f":"IF(DW$7=0,0,INDEX(INDIRECT(Order_Rng),ROUNDUP(COLUMNS($G:DW)/3,0)))","v":0},null,null,{"$f":"IF(DZ$7=0,0,INDEX(INDIRECT(Order_Rng),ROUNDUP(COLUMNS($G:DZ)/3,0)))","v":0},null,null,{"$f":"IF(EC$7=0,0,INDEX(INDIRECT(Order_Rng),ROUNDUP(COLUMNS($G:EC)/3,0)))","v":0},null,null,{"$f":"IF(EF$7=0,0,INDEX(INDIRECT(Order_Rng),ROUNDUP(COLUMNS($G:EF)/3,0)))","v":0},null,null,{"$f":"IF(EI$7=0,0,INDEX(INDIRECT(Order_Rng),ROUNDUP(COLUMNS($G:EI)/3,0)))","v":0},null,null,{"$f":"IF(EL$7=0,0,INDEX(INDIRECT(Order_Rng),ROUNDUP(COLUMNS($G:EL)/3,0)))","v":0},null,null,{"$f":"IF(EO$7=0,0,INDEX(INDIRECT(Order_Rng),ROUNDUP(COLUMNS($G:EO)/3,0)))","v":0},null,null,{"$f":"IF(ER$7=0,0,INDEX(INDIRECT(Order_Rng),ROUNDUP(COLUMNS($G:ER)/3,0)))","v":0}]
[{"$f":"IF(OR($B10=\"\",COUNTIF($B$10:$B10,$B10)>1,LEN(TRIM($B10))<>10,ISNUMBER(--MID(TRIM($B10),5,1))),\"-\",MAX(COUNT($A$9:$A9)+1))","v":"-"}]
[{"$f":"IF(OR($B11=\"\",COUNTIF($B$10:$B11,$B11)>1,LEN(TRIM($B11))<>10,ISNUMBER(--MID(TRIM($B11),5,1))),\"-\",MAX(COUNT($A$9:$A10)+1))","v":"-"},null,null,null,{"$f":"IF(D11=\"\",\"\",D11-D10)","v":""}]
[{"$f":"IF(OR($B12=\"\",COUNTIF($B$10:$B12,$B12)>1,LEN(TRIM($B12))<>10,ISNUMBER(--MID(TRIM($B12),5,1))),\"-\",MAX(COUNT($A$9:$A11)+1))","v":"-"},null,null,null,{"$f":"IF(D12=\"\",\"\",D12-D11)","v":""}]
[{"$f":"IF(OR($B13=\"\",COUNTIF($B$10:$B13,$B13)>1,LEN(TRIM($B13))<>10,ISNUMBER(--MID(TRIM($B13),5,1))),\"-\",MAX(COUNT($A$9:$A12)+1))","v":"-"},null,null,null,""]
[{"$f":"IF(OR($B14=\"\",COUNTIF($B$10:$B14,$B14)>1,LEN(TRIM($B14))<>10,ISNUMBER(--MID(TRIM($B14),5,1))),\"-\",MAX(COUNT($A$9:$A13)+1))","v":"-"},null,null,null,""]
[{"$f":"IF(OR($B15=\"\",COUNTIF($B$10:$B15,$B15)>1,LEN(TRIM($B15))<>10,ISNUMBER(--MID(TRIM($B15),5,1))),\"-\",MAX(COUNT($A$9:$A14)+1))","v":"-"},null,null,null,""]
[{"$f":"IF(OR($B16=\"\",COUNTIF($B$10:$B16,$B16)>1,LEN(TRIM($B16))<>10,ISNUMBER(--MID(TRIM($B16),5,1))),\"-\",MAX(COUNT($A$9:$A15)+1))","v":"-"},null,null,null,""]
[{"$f":"IF(OR($B17=\"\",COUNTIF($B$10:$B17,$B17)>1,LEN(TRIM($B17))<>10,ISNUMBER(--MID(TRIM($B17),5,1))),\"-\",MAX(COUNT($A$9:$A16)+1))","v":"-"},null,null,null,""]
[{"$f":"IF(OR($B18=\"\",COUNTIF($B$10:$B18,$B18)>1,LEN(TRIM($B18))<>10,ISNUMBER(--MID(TRIM($B18),5,1))),\"-\",MAX(COUNT($A$9:$A17)+1))","v":"-"},null,null,null,""]
[{"$f":"IF(OR($B19=\"\",COUNTIF($B$10:$B19,$B19)>1,LEN(TRIM($B19))<>10,ISNUMBER(--MID(TRIM($B19),5,1))),\"-\",MAX(COUNT($A$9:$A18)+1))","v":"-"},null,null,null,""]
[{"$f":"IF(OR($B20=\"\",COUNTIF($B$10:$B20,$B20)>1,LEN(TRIM($B20))<>10,ISNUMBER(--MID(TRIM($B20),5,1))),\"-\",MAX(COUNT($A$9:$A19)+1))","v":"-"},null,null,null,""]
[{"$f":"IF(OR($B21=\"\",COUNTIF($B$10:$B21,$B21)>1,LEN(TRIM($B21))<>10,ISNUMBER(--MID(TRIM($B21),5,1))),\"-\",MAX(COUNT($A$9:$A20)+1))","v":"-"},null,null,null,""]
[{"$f":"IF(OR($B22=\"\",COUNTIF($B$10:$B22,$B22)>1,LEN(TRIM($B22))<>10,ISNUMBER(--MID(TRIM($B22),5,1))),\"-\",MAX(COUNT($A$9:$A21)+1))","v":"-"},null,null,null,""]
[{"$f":"IF(OR($B23=\"\",COUNTIF($B$10:$B23,$B23)>1,LEN(TRIM($B23))<>10,ISNUMBER(--MID(TRIM($B23),5,1))),\"-\",MAX(COUNT($A$9:$A22)+1))","v":"-"},null,null,null,""]
[{"$f":"IF(OR($B24=\"\",COUNTIF($B$10:$B24,$B24)>1,LEN(TRIM($B24))<>10,ISNUMBER(--MID(TRIM($B24),5,1))),\"-\",MAX(COUNT($A$9:$A23)+1))","v":"-"},null,null,null,""]
[{"$f":"IF(OR($B25=\"\",COUNTIF($B$10:$B25,$B25)>1,LEN(TRIM($B25))<>10,ISNUMBER(--MID(TRIM($B25),5,1))),\"-\",MAX(COUNT($A$9:$A24)+1))","v":"-"},null,null,null,""]
[{"$f":"IF(OR($B26=\"\",COUNTIF($B$10:$B26,$B26)>1,LEN(TRIM($B26))<>10,ISNUMBER(--MID(TRIM($B26),5,1))),\"-\",MAX(COUNT($A$9:$A25)+1))","v":"-"},null,null,null,""]
[{"$f":"IF(OR($B27=\"\",COUNTIF($B$10:$B27,$B27)>1,LEN(TRIM($B27))<>10,ISNUMBER(--MID(TRIM($B27),5,1))),\"-\",MAX(COUNT($A$9:$A26)+1))","v":"-"},null,null,null,""]
[{"$f":"IF(OR($B28=\"\",COUNTIF($B$10:$B28,$B28)>1,LEN(TRIM($B28))<>10,ISNUMBER(--MID(TRIM($B28),5,1))),\"-\",MAX(COUNT($A$9:$A27)+1))","v":"-"},null,null,null,""]
[{"$f":"IF(OR($B29=\"\",COUNTIF($B$10:$B29,$B29)>1,LEN(TRIM($B29))<>10,ISNUMBER(--MID(TRIM($B29),5,1))),\"-\",MAX(COUNT($A$9:$A28)+1))","v":"-"},null,null,null,""]
[{"$f":"IF(OR($B30=\"\",COUNTIF($B$10:$B30,$B30)>1,LEN(TRIM($B30))<>10,ISNUMBER(--MID(TRIM($B30),5,1))),\"-\",MAX(COUNT($A$9:$A29)+1))","v":"-"},null,null,null,""]
[{"$f":"IF(OR($B31=\"\",COUNTIF($B$10:$B31,$B31)>1,LEN(TRIM($B31))<>10,ISNUMBER(--MID(TRIM($B31),5,1))),\"-\",MAX(COUNT($A$9:$A30)+1))","v":"-"},null,null,null,""]
[{"$f":"IF(OR($B32=\"\",COUNTIF($B$10:$B32,$B32)>1,LEN(TRIM($B32))<>10,ISNUMBER(--MID(TRIM($B32),5,1))),\"-\",MAX(COUNT($A$9:$A31)+1))","v":"-"},null,null,null,""]
[{"$f":"IF(OR($B33=\"\",COUNTIF($B$10:$B33,$B33)>1,LEN(TRIM($B33))<>10,ISNUMBER(--MID(TRIM($B33),5,1))),\"-\",MAX(COUNT($A$9:$A32)+1))","v":"-"},null,null,null,""]
[{"$f":"IF(OR($B34=\"\",COUNTIF($B$10:$B34,$B34)>1,LEN(TRIM($B34))<>10,ISNUMBER(--MID(TRIM($B34),5,1))),\"-\",MAX(COUNT($A$9:$A33)+1))","v":"-"},null,null,null,""]
[{"$f":"IF(OR($B35=\"\",COUNTIF($B$10:$B35,$B35)>1,LEN(TRIM($B35))<>10,ISNUMBER(--MID(TRIM($B35),5,1))),\"-\",MAX(COUNT($A$9:$A34)+1))","v":"-"},null,null,null,""]
[{"$f":"IF(OR($B36=\"\",COUNTIF($B$10:$B36,$B36)>1,LEN(TRIM($B36))<>10,ISNUMBER(--MID(TRIM($B36),5,1))),\"-\",MAX(COUNT($A$9:$A35)+1))","v":"-"},null,null,null,""]
[{"$f":"IF(OR($B37=\"\",COUNTIF($B$10:$B37,$B37)>1,LEN(TRIM($B37))<>10,ISNUMBER(--MID(TRIM($B37),5,1))),\"-\",MAX(COUNT($A$9:$A36)+1))","v":"-"},null,null,null,""]
[{"$f":"IF(OR($B38=\"\",COUNTIF($B$10:$B38,$B38)>1,LEN(TRIM($B38))<>10,ISNUMBER(--MID(TRIM($B38),5,1))),\"-\",MAX(COUNT($A$9:$A37)+1))","v":"-"},null,null,null,""]
[{"$f":"IF(OR($B39=\"\",COUNTIF($B$10:$B39,$B39)>1,LEN(TRIM($B39))<>10,ISNUMBER(--MID(TRIM($B39),5,1))),\"-\",MAX(COUNT($A$9:$A38)+1))","v":"-"},null,null,null,""]
[{"$f":"IF(OR($B40=\"\",COUNTIF($B$10:$B40,$B40)>1,LEN(TRIM($B40))<>10,ISNUMBER(--MID(TRIM($B40),5,1))),\"-\",MAX(COUNT($A$9:$A39)+1))","v":"-"},null,null,null,""]
[{"$f":"IF(OR($B41=\"\",COUNTIF($B$10:$B41,$B41)>1,LEN(TRIM($B41))<>10,ISNUMBER(--MID(TRIM($B41),5,1))),\"-\",MAX(COUNT($A$9:$A40)+1))","v":"-"},null,null,null,""]
[{"$f":"IF(OR($B42=\"\",COUNTIF($B$10:$B42,$B42)>1,LEN(TRIM($B42))<>10,ISNUMBER(--MID(TRIM($B42),5,1))),\"-\",MAX(COUNT($A$9:$A41)+1))","v":"-"},null,null,null,""]
[{"$f":"IF(OR($B43=\"\",COUNTIF($B$10:$B43,$B43)>1,LEN(TRIM($B43))<>10,ISNUMBER(--MID(TRIM($B43),5,1))),\"-\",MAX(COUNT($A$9:$A42)+1))","v":"-"},null,null,null,""]
[{"$f":"IF(OR($B44=\"\",COUNTIF($B$10:$B44,$B44)>1,LEN(TRIM($B44))<>10,ISNUMBER(--MID(TRIM($B44),5,1))),\"-\",MAX(COUNT($A$9:$A43)+1))","v":"-"},null,null,null,""]
[{"$f":"IF(OR($B45=\"\",COUNTIF($B$10:$B45,$B45)>1,LEN(TRIM($B45))<>10,ISNUMBER(--MID(TRIM($B45),5,1))),\"-\",MAX(COUNT($A$9:$A44)+1))","v":"-"},null,null,null,""]
[{"$f":"IF(OR($B46=\"\",COUNTIF($B$10:$B46,$B46)>1,LEN(TRIM($B46))<>10,ISNUMBER(--MID(TRIM($B46),5,1))),\"-\",MAX(COUNT($A$9:$A45)+1))","v":"-"},null,null,null,""]
[{"$f":"IF(OR($B47=\"\",COUNTIF($B$10:$B47,$B47)>1,LEN(TRIM($B47))<>10,ISNUMBER(--MID(TRIM($B47),5,1))),\"-\",MAX(COUNT($A$9:$A46)+1))","v":"-"},null,null,null,""]
[{"$f":"IF(OR($B48=\"\",COUNTIF($B$10:$B48,$B48)>1,LEN(TRIM($B48))<>10,ISNUMBER(--MID(TRIM($B48),5,1))),\"-\",MAX(COUNT($A$9:$A47)+1))","v":"-"},null,null,null,""]
[{"$f":"IF(OR($B49=\"\",COUNTIF($B$10:$B49,$B49)>1,LEN(TRIM($B49))<>10,ISNUMBER(--MID(TRIM($B49),5,1))),\"-\",MAX(COUNT($A$9:$A48)+1))","v":"-"},null,null,null,""]
[{"$f":"IF(OR($B50=\"\",COUNTIF($B$10:$B50,$B50)>1,LEN(TRIM($B50))<>10,ISNUMBER(--MID(TRIM($B50),5,1))),\"-\",MAX(COUNT($A$9:$A49)+1))","v":"-"},null,null,null,""]
[{"$f":"IF(OR($B51=\"\",COUNTIF($B$10:$B51,$B51)>1,LEN(TRIM($B51))<>10,ISNUMBER(--MID(TRIM($B51),5,1))),\"-\",MAX(COUNT($A$9:$A50)+1))","v":"-"},null,null,null,""]
[{"$f":"IF(OR($B52=\"\",COUNTIF($B$10:$B52,$B52)>1,LEN(TRIM($B52))<>10,ISNUMBER(--MID(TRIM($B52),5,1))),\"-\",MAX(COUNT($A$9:$A51)+1))","v":"-"},null,null,null,""]
[{"$f":"IF(OR($B53=\"\",COUNTIF($B$10:$B53,$B53)>1,LEN(TRIM($B53))<>10,ISNUMBER(--MID(TRIM($B53),5,1))),\"-\",MAX(COUNT($A$9:$A52)+1))","v":"-"},null,null,null,""]
[{"$f":"IF(OR($B54=\"\",COUNTIF($B$10:$B54,$B54)>1,LEN(TRIM($B54))<>10,ISNUMBER(--MID(TRIM($B54),5,1))),\"-\",MAX(COUNT($A$9:$A53)+1))","v":"-"},null,null,null,""]
[{"$f":"IF(OR($B55=\"\",COUNTIF($B$10:$B55,$B55)>1,LEN(TRIM($B55))<>10,ISNUMBER(--MID(TRIM($B55),5,1))),\"-\",MAX(COUNT($A$9:$A54)+1))","v":"-"},null,null,null,""]
[{"$f":"IF(OR($B56=\"\",COUNTIF($B$10:$B56,$B56)>1,LEN(TRIM($B56))<>10,ISNUMBER(--MID(TRIM($B56),5,1))),\"-\",MAX(COUNT($A$9:$A55)+1))","v":"-"},null,null,null,""]
[{"$f":"IF(OR($B57=\"\",COUNTIF($B$10:$B57,$B57)>1,LEN(TRIM($B57))<>10,ISNUMBER(--MID(TRIM($B57),5,1))),\"-\",MAX(COUNT($A$9:$A56)+1))","v":"-"},null,null,null,""]
[{"$f":"IF(OR($B58=\"\",COUNTIF($B$10:$B58,$B58)>1,LEN(TRIM($B58))<>10,ISNUMBER(--MID(TRIM($B58),5,1))),\"-\",MAX(COUNT($A$9:$A57)+1))","v":"-"},null,null,null,""]
[{"$f":"IF(OR($B59=\"\",COUNTIF($B$10:$B59,$B59)>1,LEN(TRIM($B59))<>10,ISNUMBER(--MID(TRIM($B59),5,1))),\"-\",MAX(COUNT($A$9:$A58)+1))","v":"-"},null,null,null,{"$f":"IF(D59=\"\",\"\",D59-D58)","v":""}]
[{"$f":"IF(OR($B60=\"\",COUNTIF($B$10:$B60,$B60)>1,LEN(TRIM($B60))<>10,ISNUMBER(--MID(TRIM($B60),5,1))),\"-\",MAX(COUNT($A$9:$A59)+1))","v":"-"},null,null,null,""]
[{"$f":"IF(OR($B61=\"\",COUNTIF($B$10:$B61,$B61)>1,LEN(TRIM($B61))<>10,ISNUMBER(--MID(TRIM($B61),5,1))),\"-\",MAX(COUNT($A$9:$A60)+1))","v":"-"},null,null,null,""]
[{"$f":"IF(OR($B62=\"\",COUNTIF($B$10:$B62,$B62)>1,LEN(TRIM($B62))<>10,ISNUMBER(--MID(TRIM($B62),5,1))),\"-\",MAX(COUNT($A$9:$A61)+1))","v":"-"},null,null,null,""]
[{"$f":"IF(OR($B63=\"\",COUNTIF($B$10:$B63,$B63)>1,LEN(TRIM($B63))<>10,ISNUMBER(--MID(TRIM($B63),5,1))),\"-\",MAX(COUNT($A$9:$A62)+1))","v":"-"},null,null,null,""]
[{"$f":"IF(OR($B64=\"\",COUNTIF($B$10:$B64,$B64)>1,LEN(TRIM($B64))<>10,ISNUMBER(--MID(TRIM($B64),5,1))),\"-\",MAX(COUNT($A$9:$A63)+1))","v":"-"},null,null,null,""]
[{"$f":"IF(OR($B65=\"\",COUNTIF($B$10:$B65,$B65)>1,LEN(TRIM($B65))<>10,ISNUMBER(--MID(TRIM($B65),5,1))),\"-\",MAX(COUNT($A$9:$A64)+1))","v":"-"},null,null,null,""]
[{"$f":"IF(OR($B66=\"\",COUNTIF($B$10:$B66,$B66)>1,LEN(TRIM($B66))<>10,ISNUMBER(--MID(TRIM($B66),5,1))),\"-\",MAX(COUNT($A$9:$A65)+1))","v":"-"},null,null,null,""]
[{"$f":"IF(OR($B67=\"\",COUNTIF($B$10:$B67,$B67)>1,LEN(TRIM($B67))<>10,ISNUMBER(--MID(TRIM($B67),5,1))),\"-\",MAX(COUNT($A$9:$A66)+1))","v":"-"},null,null,null,""]
[{"$f":"IF(OR($B68=\"\",COUNTIF($B$10:$B68,$B68)>1,LEN(TRIM($B68))<>10,ISNUMBER(--MID(TRIM($B68),5,1))),\"-\",MAX(COUNT($A$9:$A67)+1))","v":"-"},null,null,null,""]
[{"$f":"IF(OR($B69=\"\",COUNTIF($B$10:$B69,$B69)>1,LEN(TRIM($B69))<>10,ISNUMBER(--MID(TRIM($B69),5,1))),\"-\",MAX(COUNT($A$9:$A68)+1))","v":"-"},null,null,null,""]
[{"$f":"IF(OR($B70=\"\",COUNTIF($B$10:$B70,$B70)>1,LEN(TRIM($B70))<>10,ISNUMBER(--MID(TRIM($B70),5,1))),\"-\",MAX(COUNT($A$9:$A69)+1))","v":"-"},null,null,null,""]
[{"$f":"IF(OR($B71=\"\",COUNTIF($B$10:$B71,$B71)>1,LEN(TRIM($B71))<>10,ISNUMBER(--MID(TRIM($B71),5,1))),\"-\",MAX(COUNT($A$9:$A70)+1))","v":"-"},null,null,null,""]
[{"$f":"IF(OR($B72=\"\",COUNTIF($B$10:$B72,$B72)>1,LEN(TRIM($B72))<>10,ISNUMBER(--MID(TRIM($B72),5,1))),\"-\",MAX(COUNT($A$9:$A71)+1))","v":"-"},null,null,null,""]
[{"$f":"IF(OR($B73=\"\",COUNTIF($B$10:$B73,$B73)>1,LEN(TRIM($B73))<>10,ISNUMBER(--MID(TRIM($B73),5,1))),\"-\",MAX(COUNT($A$9:$A72)+1))","v":"-"},null,null,null,""]
[{"$f":"IF(OR($B74=\"\",COUNTIF($B$10:$B74,$B74)>1,LEN(TRIM($B74))<>10,ISNUMBER(--MID(TRIM($B74),5,1))),\"-\",MAX(COUNT($A$9:$A73)+1))","v":"-"},null,null,null,""]
[{"$f":"IF(OR($B75=\"\",COUNTIF($B$10:$B75,$B75)>1,LEN(TRIM($B75))<>10,ISNUMBER(--MID(TRIM($B75),5,1))),\"-\",MAX(COUNT($A$9:$A74)+1))","v":"-"},null,null,null,""]
[{"$f":"IF(OR($B76=\"\",COUNTIF($B$10:$B76,$B76)>1,LEN(TRIM($B76))<>10,ISNUMBER(--MID(TRIM($B76),5,1))),\"-\",MAX(COUNT($A$9:$A75)+1))","v":"-"},null,null,null,""]
[{"$f":"IF(OR($B77=\"\",COUNTIF($B$10:$B77,$B77)>1,LEN(TRIM($B77))<>10,ISNUMBER(--MID(TRIM($B77),5,1))),\"-\",MAX(COUNT($A$9:$A76)+1))","v":"-"},null,null,null,""]
[{"$f":"IF(OR($B78=\"\",COUNTIF($B$10:$B78,$B78)>1,LEN(TRIM($B78))<>10,ISNUMBER(--MID(TRIM($B78),5,1))),\"-\",MAX(COUNT($A$9:$A77)+1))","v":"-"},null,null,null,""]
[{"$f":"IF(OR($B79=\"\",COUNTIF($B$10:$B79,$B79)>1,LEN(TRIM($B79))<>10,ISNUMBER(--MID(TRIM($B79),5,1))),\"-\",MAX(COUNT($A$9:$A78)+1))","v":"-"},null,null,null,""]
["รวมของขาย|ของเสีย|เหลือบนเชลฟ์",null,null,null,null,null,{"$f":"SUM(G10:G79)","v":0},0,0,{"$f":"SUM(J10:J79)","v":0},0,0,0,0,0,0,0,0,0,0,0,0,0,0,0,0,0,0,0,0,0,0,0,0,0,0,0,0,0,0,0,0,0,0,0,0,0,0,0,0,0,0,0,0,0,0,0,0,0,0,0,0,0,0,0,0,0,0,0,0,0,0,0,{"$f":"SUM(BV10:BV79)","v":0},0,0,0,0,0,0,0,0,0,0,0,0,0,0,0,0,0,0,0,0,0,0,0,0,0,0,0,0,0,0,0,0,0,0,0,0,0,0,0,0,0,0,0,0,0,0,0,0,0,0,0,0,0,0,0,0,0,0,0,0,0,{"$f":"SUM(EF10:EF79)","v":0},0,0,{"$f":"SUM(EI10:EI79)","v":0},0,0,0,0,0,{"$f":"SUM(EO10:EO79)","v":0},0,0,0,0,0,"รวมเงินเชื่อ","รวมเงินสด","ภาษี","รวมยอดขาย"]
["ของเหลือ",null,null,null,null,null,{"$f":"G80+H80-G9","v":0},null,null,{"$f":"J80+K80-J9","v":0},null,null,{"$f":"M80+N80-M9","v":0},null,null,{"$f":"P80+Q80-P9","v":0},null,null,{"$f":"S80+T80-S9","v":0},null,null,{"$f":"V80+W80-V9","v":0},null,null,{"$f":"Y80+Z80-Y9","v":0},null,null,{"$f":"AB80+AC80-AB9","v":0},null,null,{"$f":"AE80+AF80-AE9","v":0},null,null,{"$f":"AH80+AI80-AH9","v":0},null,null,{"$f":"AK80+AL80-AK9","v":0},null,null,{"$f":"AN80+AO80-AN9","v":0},null,null,{"$f":"AQ80+AR80-AQ9","v":0},null,null,{"$f":"AT80+AU80-AT9","v":0},null,null,{"$f":"AW80+AX80-AW9","v":0},null,null,{"$f":"AZ80+BA80-AZ9","v":0},null,null,{"$f":"BC80+BD80-BC9","v":0},null,null,{"$f":"BF80+BG80-BF9","v":0},null,null,{"$f":"BI80+BJ80-BI9","v":0},null,null,{"$f":"BL80+BM80-BL9","v":0},null,null,{"$f":"BO80+BP80-BO9","v":0},null,null,{"$f":"BR80+BS80-BR9","v":0},null,null,{"$f":"BU80+BV80-BU9","v":0},null,null,{"$f":"BX80+BY80-BX9","v":0},null,null,{"$f":"CA80+CB80-CA9","v":0},null,null,{"$f":"CD80+CE80-CD9","v":0},null,null,{"$f":"CG80+CH80-CG9","v":0},null,null,{"$f":"CJ80+CK80-CJ9","v":0},null,null,{"$f":"CM80+CN80-CM9","v":0},null,null,{"$f":"CP80+CQ80-CP9","v":0},null,null,{"$f":"CS80+CT80-CS9","v":0},null,null,{"$f":"CV80+CW80-CV9","v":0},null,null,{"$f":"CY80+CZ80-CY9","v":0},null,null,{"$f":"DB80+DC80-DB9","v":0},null,null,{"$f":"DE80+DF80-DE9","v":0},null,null,{"$f":"DH80+DI80-DH9","v":0},null,null,{"$f":"DK80+DL80-DK9","v":0},null,null,{"$f":"DN80+DO80-DN9","v":0},null,null,{"$f":"DQ80+DR80-DQ9","v":0},null,null,{"$f":"DT80+DU80-DT9","v":0},null,null,{"$f":"DW80+DX80-DW9","v":0},null,null,{"$f":"DZ80+EA80-DZ9","v":0},null,null,{"$f":"EC80+ED80-EC9","v":0},null,null,{"$f":"EF80+EG80-EF9","v":0},null,null,{"$f":"EI80+EJ80-EI9","v":0},null,null,{"$f":"EL80+EM80-EL9","v":0},null,null,{"$f":"EO80+EP80-EO9","v":0},null,null,{"$f":"ER80+ES80-ER9","v":0},null,null,{"$f":"SUM(EU10:EU79)","v":0},{"$f":"SUM(EV10:EV79)","v":0},{"$f":"SUM(EW10:EW79)","v":0},{"$f":"SUM(EX10:EX79)","v":0}]
["เฉลี่ย",null,null,"เหลือ/เสีย(จริง)",null,null,{"$f":"INDIRECT(\"F\"&ROW($G$87)+ROUNDUP(COLUMNS($G:G)/3,0))","v":0},{"$f":"INDIRECT(\"G\"&ROW($G$87)+ROUNDUP(COLUMNS($G:H)/3,0))","v":0},null,{"$f":"INDIRECT(\"F\"&ROW($G$87)+ROUNDUP(COLUMNS($G:J)/3,0))","v":0},{"$f":"INDIRECT(\"G\"&ROW($G$87)+ROUNDUP(COLUMNS($G:K)/3,0))","v":0},null,{"$f":"INDIRECT(\"F\"&ROW($G$87)+ROUNDUP(COLUMNS($G:M)/3,0))","v":0},{"$f":"INDIRECT(\"G\"&ROW($G$87)+ROUNDUP(COLUMNS($G:N)/3,0))","v":0},null,{"$f":"INDIRECT(\"F\"&ROW($G$87)+ROUNDUP(COLUMNS($G:P)/3,0))","v":0},{"$f":"INDIRECT(\"G\"&ROW($G$87)+ROUNDUP(COLUMNS($G:Q)/3,0))","v":0},null,{"$f":"INDIRECT(\"F\"&ROW($G$87)+ROUNDUP(COLUMNS($G:S)/3,0))","v":0},{"$f":"INDIRECT(\"G\"&ROW($G$87)+ROUNDUP(COLUMNS($G:T)/3,0))","v":0},null,{"$f":"INDIRECT(\"F\"&ROW($G$87)+ROUNDUP(COLUMNS($G:V)/3,0))","v":0},{"$f":"INDIRECT(\"G\"&ROW($G$87)+ROUNDUP(COLUMNS($G:W)/3,0))","v":0},null,{"$f":"INDIRECT(\"F\"&ROW($G$87)+ROUNDUP(COLUMNS($G:Y)/3,0))","v":0},{"$f":"INDIRECT(\"G\"&ROW($G$87)+ROUNDUP(COLUMNS($G:Z)/3,0))","v":0},null,{"$f":"INDIRECT(\"F\"&ROW($G$87)+ROUNDUP(COLUMNS($G:AB)/3,0))","v":0},{"$f":"INDIRECT(\"G\"&ROW($G$87)+ROUNDUP(COLUMNS($G:AC)/3,0))","v":0},null,{"$f":"INDIRECT(\"F\"&ROW($G$87)+ROUNDUP(COLUMNS($G:AE)/3,0))","v":0},{"$f":"INDIRECT(\"G\"&ROW($G$87)+ROUNDUP(COLUMNS($G:AF)/3,0))","v":0},null,{"$f":"INDIRECT(\"F\"&ROW($G$87)+ROUNDUP(COLUMNS($G:AH)/3,0))","v":0},{"$f":"INDIRECT(\"G\"&ROW($G$87)+ROUNDUP(COLUMNS($G:AI)/3,0))","v":0},null,{"$f":"INDIRECT(\"F\"&ROW($G$87)+ROUNDUP(COLUMNS($G:AK)/3,0))","v":0},{"$f":"INDIRECT(\"G\"&ROW($G$87)+ROUNDUP(COLUMNS($G:AL)/3,0))","v":0},null,{"$f":"INDIRECT(\"F\"&ROW($G$87)+ROUNDUP(COLUMNS($G:AN)/3,0))","v":0},{"$f":"INDIRECT(\"G\"&ROW($G$87)+ROUNDUP(COLUMNS($G:AO)/3,0))","v":0},null,{"$f":"INDIRECT(\"F\"&ROW($G$87)+ROUNDUP(COLUMNS($G:AQ)/3,0))","v":0},{"$f":"INDIRECT(\"G\"&ROW($G$87)+ROUNDUP(COLUMNS($G:AR)/3,0))","v":0},null,{"$f":"INDIRECT(\"F\"&ROW($G$87)+ROUNDUP(COLUMNS($G:AT)/3,0))","v":0},{"$f":"INDIRECT(\"G\"&ROW($G$87)+ROUNDUP(COLUMNS($G:AU)/3,0))","v":0},null,{"$f":"INDIRECT(\"F\"&ROW($G$87)+ROUNDUP(COLUMNS($G:AW)/3,0))","v":0},{"$f":"INDIRECT(\"G\"&ROW($G$87)+ROUNDUP(COLUMNS($G:AX)/3,0))","v":0},null,{"$f":"INDIRECT(\"F\"&ROW($G$87)+ROUNDUP(COLUMNS($G:AZ)/3,0))","v":0},{"$f":"INDIRECT(\"G\"&ROW($G$87)+ROUNDUP(COLUMNS($G:BA)/3,0))","v":0},null,{"$f":"INDIRECT(\"F\"&ROW($G$87)+ROUNDUP(COLUMNS($G:BC)/3,0))","v":0},{"$f":"INDIRECT(\"G\"&ROW($G$87)+ROUNDUP(COLUMNS($G:BD)/3,0))","v":0},null,{"$f":"INDIRECT(\"F\"&ROW($G$87)+ROUNDUP(COLUMNS($G:BF)/3,0))","v":0},{"$f":"INDIRECT(\"G\"&ROW($G$87)+ROUNDUP(COLUMNS($G:BG)/3,0))","v":0},null,{"$f":"INDIRECT(\"F\"&ROW($G$87)+ROUNDUP(COLUMNS($G:BI)/3,0))","v":0},{"$f":"INDIRECT(\"G\"&ROW($G$87)+ROUNDUP(COLUMNS($G:BJ)/3,0))","v":0},null,{"$f":"INDIRECT(\"F\"&ROW($G$87)+ROUNDUP(COLUMNS($G:BL)/3,0))","v":0},{"$f":"INDIRECT(\"G\"&ROW($G$87)+ROUNDUP(COLUMNS($G:BM)/3,0))","v":0},null,{"$f":"INDIRECT(\"F\"&ROW($G$87)+ROUNDUP(COLUMNS($G:BO)/3,0))","v":0},{"$f":"INDIRECT(\"G\"&ROW($G$87)+ROUNDUP(COLUMNS($G:BP)/3,0))","v":0},null,{"$f":"INDIRECT(\"F\"&ROW($G$87)+ROUNDUP(COLUMNS($G:BR)/3,0))","v":0},{"$f":"INDIRECT(\"G\"&ROW($G$87)+ROUNDUP(COLUMNS($G:BS)/3,0))","v":0},null,{"$f":"INDIRECT(\"F\"&ROW($G$87)+ROUNDUP(COLUMNS($G:BU)/3,0))","v":0},{"$f":"INDIRECT(\"G\"&ROW($G$87)+ROUNDUP(COLUMNS($G:BV)/3,0))","v":0},null,{"$f":"INDIRECT(\"F\"&ROW($G$87)+ROUNDUP(COLUMNS($G:BX)/3,0))","v":0},{"$f":"INDIRECT(\"G\"&ROW($G$87)+ROUNDUP(COLUMNS($G:BY)/3,0))","v":0},null,{"$f":"INDIRECT(\"F\"&ROW($G$87)+ROUNDUP(COLUMNS($G:CA)/3,0))","v":0},{"$f":"INDIRECT(\"G\"&ROW($G$87)+ROUNDUP(COLUMNS($G:CB)/3,0))","v":0},null,{"$f":"INDIRECT(\"F\"&ROW($G$87)+ROUNDUP(COLUMNS($G:CD)/3,0))","v":0},{"$f":"INDIRECT(\"G\"&ROW($G$87)+ROUNDUP(COLUMNS($G:CE)/3,0))","v":0},null,{"$f":"INDIRECT(\"F\"&ROW($G$87)+ROUNDUP(COLUMNS($G:CG)/3,0))","v":0},{"$f":"INDIRECT(\"G\"&ROW($G$87)+ROUNDUP(COLUMNS($G:CH)/3,0))","v":0},null,{"$f":"INDIRECT(\"F\"&ROW($G$87)+ROUNDUP(COLUMNS($G:CJ)/3,0))","v":0},{"$f":"INDIRECT(\"G\"&ROW($G$87)+ROUNDUP(COLUMNS($G:CK)/3,0))","v":0},null,{"$f":"INDIRECT(\"F\"&ROW($G$87)+ROUNDUP(COLUMNS($G:CM)/3,0))","v":0},{"$f":"INDIRECT(\"G\"&ROW($G$87)+ROUNDUP(COLUMNS($G:CN)/3,0))","v":0},null,{"$f":"INDIRECT(\"F\"&ROW($G$87)+ROUNDUP(COLUMNS($G:CP)/3,0))","v":0},{"$f":"INDIRECT(\"G\"&ROW($G$87)+ROUNDUP(COLUMNS($G:CQ)/3,0))","v":0},null,{"$f":"INDIRECT(\"F\"&ROW($G$87)+ROUNDUP(COLUMNS($G:CS)/3,0))","v":0},{"$f":"INDIRECT(\"G\"&ROW($G$87)+ROUNDUP(COLUMNS($G:CT)/3,0))","v":0},null,{"$f":"INDIRECT(\"F\"&ROW($G$87)+ROUNDUP(COLUMNS($G:CV)/3,0))","v":0},{"$f":"INDIRECT(\"G\"&ROW($G$87)+ROUNDUP(COLUMNS($G:CW)/3,0))","v":0},null,{"$f":"INDIRECT(\"F\"&ROW($G$87)+ROUNDUP(COLUMNS($G:CY)/3,0))","v":0},{"$f":"INDIRECT(\"G\"&ROW($G$87)+ROUNDUP(COLUMNS($G:CZ)/3,0))","v":0},null,{"$f":"INDIRECT(\"F\"&ROW($G$87)+ROUNDUP(COLUMNS($G:DB)/3,0))","v":0},{"$f":"INDIRECT(\"G\"&ROW($G$87)+ROUNDUP(COLUMNS($G:DC)/3,0))","v":0},null,{"$f":"INDIRECT(\"F\"&ROW($G$87)+ROUNDUP(COLUMNS($G:DE)/3,0))","v":0},{"$f":"INDIRECT(\"G\"&ROW($G$87)+ROUNDUP(COLUMNS($G:DF)/3,0))","v":0},null,{"$f":"INDIRECT(\"F\"&ROW($G$87)+ROUNDUP(COLUMNS($G:DH)/3,0))","v":0},{"$f":"INDIRECT(\"G\"&ROW($G$87)+ROUNDUP(COLUMNS($G:DI)/3,0))","v":0},null,{"$f":"INDIRECT(\"F\"&ROW($G$87)+ROUNDUP(COLUMNS($G:DK)/3,0))","v":0},{"$f":"INDIRECT(\"G\"&ROW($G$87)+ROUNDUP(COLUMNS($G:DL)/3,0))","v":0},null,{"$f":"INDIRECT(\"F\"&ROW($G$87)+ROUNDUP(COLUMNS($G:DN)/3,0))","v":0},{"$f":"INDIRECT(\"G\"&ROW($G$87)+ROUNDUP(COLUMNS($G:DO)/3,0))","v":0},null,{"$f":"INDIRECT(\"F\"&ROW($G$87)+ROUNDUP(COLUMNS($G:DQ)/3,0))","v":0},{"$f":"INDIRECT(\"G\"&ROW($G$87)+ROUNDUP(COLUMNS($G:DR)/3,0))","v":0},null,{"$f":"INDIRECT(\"F\"&ROW($G$87)+ROUNDUP(COLUMNS($G:DT)/3,0))","v":0},{"$f":"INDIRECT(\"G\"&ROW($G$87)+ROUNDUP(COLUMNS($G:DU)/3,0))","v":0},null,{"$f":"INDIRECT(\"F\"&ROW($G$87)+ROUNDUP(COLUMNS($G:DW)/3,0))","v":0},{"$f":"INDIRECT(\"G\"&ROW($G$87)+ROUNDUP(COLUMNS($G:DX)/3,0))","v":0},null,{"$f":"INDIRECT(\"F\"&ROW($G$87)+ROUNDUP(COLUMNS($G:DZ)/3,0))","v":0},{"$f":"INDIRECT(\"G\"&ROW($G$87)+ROUNDUP(COLUMNS($G:EA)/3,0))","v":0},null,{"$f":"INDIRECT(\"F\"&ROW($G$87)+ROUNDUP(COLUMNS($G:EC)/3,0))","v":0},{"$f":"INDIRECT(\"G\"&ROW($G$87)+ROUNDUP(COLUMNS($G:ED)/3,0))","v":0},null,{"$f":"INDIRECT(\"F\"&ROW($G$87)+ROUNDUP(COLUMNS($G:EF)/3,0))","v":0},{"$f":"INDIRECT(\"G\"&ROW($G$87)+ROUNDUP(COLUMNS($G:EG)/3,0))","v":0},null,{"$f":"INDIRECT(\"F\"&ROW($G$87)+ROUNDUP(COLUMNS($G:EI)/3,0))","v":0},{"$f":"INDIRECT(\"G\"&ROW($G$87)+ROUNDUP(COLUMNS($G:EJ)/3,0))","v":0},null,{"$f":"INDIRECT(\"F\"&ROW($G$87)+ROUNDUP(COLUMNS($G:EL)/3,0))","v":0},{"$f":"INDIRECT(\"G\"&ROW($G$87)+ROUNDUP(COLUMNS($G:EM)/3,0))","v":0},null,{"$f":"INDIRECT(\"F\"&ROW($G$87)+ROUNDUP(COLUMNS($G:EO)/3,0))","v":0},{"$f":"INDIRECT(\"G\"&ROW($G$87)+ROUNDUP(COLUMNS($G:EP)/3,0))","v":0},null,{"$f":"INDIRECT(\"F\"&ROW($G$87)+ROUNDUP(COLUMNS($G:ER)/3,0))","v":0},{"$f":"INDIRECT(\"G\"&ROW($G$87)+ROUNDUP(COLUMNS($G:ES)/3,0))","v":0},null,{"$f":"EU81+EV81","v":0}]
["เวลากลับถึงสำนักงานเช็คของเสีย",null,null,{"$f":"D139","v":"00:00:00"},null,"ผลต่าง",{"$f":"G82+H82+G80-G9","v":0},null,null,{"$f":"J82+K82+J80-J9","v":0},null,null,{"$f":"M82+N82+M80-M9","v":0},null,null,{"$f":"P82+Q82+P80-P9","v":0},null,null,{"$f":"S82+T82+S80-S9","v":0},null,null,{"$f":"V82+W82+V80-V9","v":0},null,null,{"$f":"Y82+Z82+Y80-Y9","v":0},null,null,{"$f":"AB82+AC82+AB80-AB9","v":0},null,null,{"$f":"AE82+AF82+AE80-AE9","v":0},null,null,{"$f":"AH82+AI82+AH80-AH9","v":0},null,null,{"$f":"AK82+AL82+AK80-AK9","v":0},null,null,{"$f":"AN82+AO82+AN80-AN9","v":0},null,null,{"$f":"AQ82+AR82+AQ80-AQ9","v":0},null,null,{"$f":"AT82+AU82+AT80-AT9","v":0},null,null,{"$f":"AW82+AX82+AW80-AW9","v":0},null,null,{"$f":"AZ82+BA82+AZ80-AZ9","v":0},null,null,{"$f":"BC82+BD82+BC80-BC9","v":0},null,null,{"$f":"BF82+BG82+BF80-BF9","v":0},null,null,{"$f":"BI82+BJ82+BI80-BI9","v":0},null,null,{"$f":"BL82+BM82+BL80-BL9","v":0},null,null,{"$f":"BO82+BP82+BO80-BO9","v":0},null,null,{"$f":"BR82+BS82+BR80-BR9","v":0},null,null,{"$f":"BU82+BV82+BU80-BU9","v":0},null,null,{"$f":"BX82+BY82+BX80-BX9","v":0},null,null,{"$f":"CA82+CB82+CA80-CA9","v":0},null,null,{"$f":"CD82+CE82+CD80-CD9","v":0},null,null,{"$f":"CG82+CH82+CG80-CG9","v":0},null,null,{"$f":"CJ82+CK82+CJ80-CJ9","v":0},null,null,{"$f":"CM82+CN82+CM80-CM9","v":0},null,null,{"$f":"CP82+CQ82+CP80-CP9","v":0},null,null,{"$f":"CS82+CT82+CS80-CS9","v":0},null,null,{"$f":"CV82+CW82+CV80-CV9","v":0},null,null,{"$f":"CY82+CZ82+CY80-CY9","v":0},null,null,{"$f":"DB82+DC82+DB80-DB9","v":0},null,null,{"$f":"DE82+DF82+DE80-DE9","v":0},null,null,{"$f":"DH82+DI82+DH80-DH9","v":0},null,null,{"$f":"DK82+DL82+DK80-DK9","v":0},null,null,{"$f":"DN82+DO82+DN80-DN9","v":0},null,null,{"$f":"DQ82+DR82+DQ80-DQ9","v":0},null,null,{"$f":"DT82+DU82+DT80-DT9","v":0},null,null,{"$f":"DW82+DX82+DW80-DW9","v":0},null,null,{"$f":"DZ82+EA82+DZ80-DZ9","v":0},null,null,{"$f":"EC82+ED82+EC80-EC9","v":0},null,null,{"$f":"EF82+EG82+EF80-EF9","v":0},null,null,{"$f":"EI82+EJ82+EI80-EI9","v":0},null,null,{"$f":"EL82+EM82+EL80-EL9","v":0},null,null,{"$f":"EO82+EP82+EO80-EO9","v":0},null,null,{"$f":"ER82+ES82+ER80-ER9","v":0}]
["เป็นเงิน",null,null,null,null,null,{"$f":"G8*G83","v":0},null,null,{"$f":"J8*J83","v":0},null,null,{"$f":"M8*M83","v":0},null,null,{"$f":"P8*P83","v":0},null,null,{"$f":"S8*S83","v":0},null,null,{"$f":"V8*V83","v":0},null,null,{"$f":"Y8*Y83","v":0},null,null,{"$f":"AB8*AB83","v":0},null,null,{"$f":"AE8*AE83","v":0},null,null,{"$f":"AH8*AH83","v":0},null,null,{"$f":"AK8*AK83","v":0},null,null,{"$f":"AN8*AN83","v":0},null,null,{"$f":"AQ8*AQ83","v":0},null,null,{"$f":"AT8*AT83","v":0},null,null,{"$f":"AW8*AW83","v":0},null,null,{"$f":"AZ8*AZ83","v":0},null,null,{"$f":"BC8*BC83","v":0},null,null,{"$f":"BF8*BF83","v":0},null,null,{"$f":"BI8*BI83","v":0},null,null,{"$f":"BL8*BL83","v":0},null,null,{"$f":"BO8*BO83","v":0},null,null,{"$f":"BR8*BR83","v":0},null,null,{"$f":"BU8*BU83","v":0},null,null,{"$f":"BX8*BX83","v":0},null,null,{"$f":"CA8*CA83","v":0},null,null,{"$f":"CD8*CD83","v":0},null,null,{"$f":"CG8*CG83","v":0},null,null,{"$f":"CJ8*CJ83","v":0},null,null,{"$f":"CM8*CM83","v":0},null,null,{"$f":"CP8*CP83","v":0},null,null,{"$f":"CS8*CS83","v":0},null,null,{"$f":"CV8*CV83","v":0},null,null,{"$f":"CY8*CY83","v":0},null,null,{"$f":"DB8*DB83","v":0},null,null,{"$f":"DE8*DE83","v":0},null,null,{"$f":"DH8*DH83","v":0},null,null,{"$f":"DK8*DK83","v":0},null,null,{"$f":"DN8*DN83","v":0},null,null,{"$f":"DQ8*DQ83","v":0},null,null,{"$f":"DT8*DT83","v":0},null,null,{"$f":"DW8*DW83","v":0},null,null,0,null,null,{"$f":"EC8*EC83","v":0},null,null,{"$f":"EF8*EF83","v":0},null,null,{"$f":"EI8*EI83","v":0},null,null,{"$f":"EL8*EL83","v":0},null,null,{"$f":"EO8*EO83","v":0},null,null,{"$f":"ER8*ER83","v":0},null,null,{"$f":"$AP$98","v":0}]
[null,null,null,"ผู้จัดทำ……………………………………………………………………",null,null,null,null,null,null,null,null,null,null,null,null,null,null,null,null,null,null,null,"ผู้ตรวจ(ผจก.)………………………………………………………………………………."]
[null,null,"ใบจ่ายสินค้า",null,null,null,null,null,null,null,null,null,null,null,null,null,null,{"$f":"IF(ISODD(COLUMN()),MAX($F$86:Q$86)+1,\"\")","v":""}]
["ราคา","ลำดับ","รายการ","ยกมา","เบิก","เหลือ","เสีย","โอนเข้า","โอนออก","ชำรุด","รวม",null,"ขาย",null,"ขาด/เกิน",null,"บาท",null,null,null,"ขายได้",null,"ควรเบิก",null,"หมายเหตุ",null,null,null,"เสีย PDA","เสียจริง","เหลือ PDA","ผลต่าง","เหลือลูกค้า","หมายเหตุ",null,null,null,null,"Price","Quantity","Baht","Deduct"]
[{"$f":"IF(B88=\"\",0,INDEX(Price_List,ROWS($88:88)))","v":20},{"$f":"IF($C88=\"\",\"\",COUNTA($C$88:$C88))","v":1},{"$f":"IF(INDEX(INDIRECT(\"Product_List\"),ROWS($88:88))=\"\",\"\",INDEX(INDIRECT(\"Product_List\"),ROWS($88:88)))","v":"01-ขนมปังหมูหยองน้ำสลัด"},{"$f":"ยอดยกมา","v":0},null,null,null,null,null,null,{"$f":"D88+E88+J88-I88+H88","v":0},null,{"$f":"INDIRECT(ADDRESS(ROW(A$80),ROW()-ROW(A$80)+(ROWS($88:88)-1)*2-1,4))","v":0},null,{"$f":"F88+G88+M88+J88-K88","v":0},null,{"$f":"O88*A88","v":0},null,null,null,{"$f":"D88+E88-F88-G88","v":0},null,{"$f":"U88*6%+U88","v":0},null,null,null,null,null,{"$f":"INDIRECT(ADDRESS(ROW(A$80),ROW()-ROW(A$80)+(ROWS($88:88)-1)*2,4))","v":0},{"$f":"$G88","v":0},null,{"$f":"$F88-$AE88","v":0},{"$f":"INDIRECT(ADDRESS(ROW(A$80),ROW()-ROW(A$80)+(ROWS($88:88)-1)*2+1,4))","v":0},null,null,null,null,null,10,{"$f":"SUMPRODUCT(($A$88:$A$135=$AM88)*(($F$88:$F$135)+($G$88:$G$135)+($M$88:$M$135)+($J$88:$J$135)-($K$88:$K$135)))","v":0},{"$f":"AM88*AN88","v":0},{"$f":"IF(AO88<0,AO88,0)","v":0}]
[{"$f":"IF(B89=\"\",0,INDEX(Price_List,ROWS($88:89)))","v":20},{"$f":"IF($C89=\"\",\"\",COUNTA($C$88:$C89))","v":2},{"$f":"IF(INDEX(INDIRECT(\"Product_List\"),ROWS($88:89))=\"\",\"\",INDEX(INDIRECT(\"Product_List\"),ROWS($88:89)))","v":"02-ขนมปังหมูหยองน้ำพริกเผา"},{"$f":"ยอดยกมา","v":0},null,null,null,null,null,null,{"$f":"D89+E89+J89-I89+H89","v":0},null,{"$f":"INDIRECT(ADDRESS(ROW(A$80),ROW()-ROW(A$80)+(ROWS($88:89)-1)*2-1,4))","v":0},null,{"$f":"F89+G89+M89+J89-K89","v":0},null,{"$f":"O89*A89","v":0},null,null,null,{"$f":"D89+E89-F89-G89","v":0},null,{"$f":"U89*6%+U89","v":0},null,null,null,null,null,{"$f":"INDIRECT(ADDRESS(ROW(A$80),ROW()-ROW(A$80)+(ROWS($88:89)-1)*2,4))","v":0},{"$f":"$G89","v":0},null,{"$f":"$F89-$AE89","v":0},{"$f":"INDIRECT(ADDRESS(ROW(A$80),ROW()-ROW(A$80)+(ROWS($88:89)-1)*2+1,4))","v":0},null,null,null,null,null,12,0,{"$f":"AM89*AN89","v":0},{"$f":"IF(AO89<0,AO89,0)","v":0}]
[{"$f":"IF(B90=\"\",0,INDEX(Price_List,ROWS($88:90)))","v":20},{"$f":"IF($C90=\"\",\"\",COUNTA($C$88:$C90))","v":3},{"$f":"IF(INDEX(INDIRECT(\"Product_List\"),ROWS($88:90))=\"\",\"\",INDEX(INDIRECT(\"Product_List\"),ROWS($88:90)))","v":"03-ขนมปังไก่หยองน้ำสลัด"},{"$f":"ยอดยกมา","v":0},null,null,null,null,null,null,0,null,{"$f":"INDIRECT(ADDRESS(ROW(A$80),ROW()-ROW(A$80)+(ROWS($88:90)-1)*2-1,4))","v":0},null,0,null,0,null,null,null,0,null,0,null,null,null,null,null,{"$f":"INDIRECT(ADDRESS(ROW(A$80),ROW()-ROW(A$80)+(ROWS($88:90)-1)*2,4))","v":0},0,null,0,{"$f":"INDIRECT(ADDRESS(ROW(A$80),ROW()-ROW(A$80)+(ROWS($88:90)-1)*2+1,4))","v":0},null,null,null,null,null,13,0,{"$f":"AM90*AN90","v":0},{"$f":"IF(AO90<0,AO90,0)","v":0}]
[{"$f":"IF(B91=\"\",0,INDEX(Price_List,ROWS($88:91)))","v":15},{"$f":"IF($C91=\"\",\"\",COUNTA($C$88:$C91))","v":4},{"$f":"IF(INDEX(INDIRECT(\"Product_List\"),ROWS($88:91))=\"\",\"\",INDEX(INDIRECT(\"Product_List\"),ROWS($88:91)))","v":"04-ขนมปังไส้ครีมสลัด"},{"$f":"ยอดยกมา","v":0},null,null,null,null,null,null,0,null,{"$f":"INDIRECT(ADDRESS(ROW(A$80),ROW()-ROW(A$80)+(ROWS($88:91)-1)*2-1,4))","v":0},null,{"$f":"F91+G91+M91+J91-K91","v":0},null,0,null,null,null,0,null,0,null,null,null,null,null,{"$f":"INDIRECT(ADDRESS(ROW(A$80),ROW()-ROW(A$80)+(ROWS($88:91)-1)*2,4))","v":0},0,null,0,{"$f":"INDIRECT(ADDRESS(ROW(A$80),ROW()-ROW(A$80)+(ROWS($88:91)-1)*2+1,4))","v":0},null,null,null,null,null,15,0,0,0]
[{"$f":"IF(B92=\"\",0,INDEX(Price_List,ROWS($88:92)))","v":15},{"$f":"IF($C92=\"\",\"\",COUNTA($C$88:$C92))","v":5},{"$f":"IF(INDEX(INDIRECT(\"Product_List\"),ROWS($88:92))=\"\",\"\",INDEX(INDIRECT(\"Product_List\"),ROWS($88:92)))","v":"05-ขนมปังเนยสด"},{"$f":"ยอดยกมา","v":0},null,null,null,null,null,null,0,null,{"$f":"INDIRECT(ADDRESS(ROW(A$80),ROW()-ROW(A$80)+(ROWS($88:92)-1)*2-1,4))","v":0},null,0,null,0,null,null,null,0,null,0,null,null,null,null,null,{"$f":"INDIRECT(ADDRESS(ROW(A$80),ROW()-ROW(A$80)+(ROWS($88:92)-1)*2,4))","v":0},0,null,0,{"$f":"INDIRECT(ADDRESS(ROW(A$80),ROW()-ROW(A$80)+(ROWS($88:92)-1)*2+1,4))","v":0},null,null,null,null,null,16,0,{"$f":"AM92*AN92","v":0},{"$f":"IF(AO92<0,AO92,0)","v":0}]
[{"$f":"IF(B93=\"\",0,INDEX(Price_List,ROWS($88:93)))","v":10},{"$f":"IF($C93=\"\",\"\",COUNTA($C$88:$C93))","v":6},{"$f":"IF(INDEX(INDIRECT(\"Product_List\"),ROWS($88:93))=\"\",\"\",INDEX(INDIRECT(\"Product_List\"),ROWS($88:93)))","v":"06-ขนมปังไส้สังขยาเล็ก"},{"$f":"ยอดยกมา","v":0},null,null,null,null,null,null,0,null,{"$f":"INDIRECT(ADDRESS(ROW(A$80),ROW()-ROW(A$80)+(ROWS($88:93)-1)*2-1,4))","v":0},null,0,null,0,null,null,null,0,null,0,null,null,null,null,null,{"$f":"INDIRECT(ADDRESS(ROW(A$80),ROW()-ROW(A$80)+(ROWS($88:93)-1)*2,4))","v":0},0,null,0,{"$f":"INDIRECT(ADDRESS(ROW(A$80),ROW()-ROW(A$80)+(ROWS($88:93)-1)*2+1,4))","v":0},null,null,null,null,null,18,0,{"$f":"AM93*AN93","v":0},{"$f":"IF(AO93<0,AO93,0)","v":0}]
[{"$f":"IF(B94=\"\",0,INDEX(Price_List,ROWS($88:94)))","v":10},{"$f":"IF($C94=\"\",\"\",COUNTA($C$88:$C94))","v":7},{"$f":"IF(INDEX(INDIRECT(\"Product_List\"),ROWS($88:94))=\"\",\"\",INDEX(INDIRECT(\"Product_List\"),ROWS($88:94)))","v":"07-ขนมปังไส้เผือก"},{"$f":"ยอดยกมา","v":0},null,null,null,null,null,null,0,null,{"$f":"INDIRECT(ADDRESS(ROW(A$80),ROW()-ROW(A$80)+(ROWS($88:94)-1)*2-1,4))","v":0},null,0,null,0,null,null,null,0,null,0,null,null,null,null,null,{"$f":"INDIRECT(ADDRESS(ROW(A$80),ROW()-ROW(A$80)+(ROWS($88:94)-1)*2,4))","v":0},0,null,0,{"$f":"INDIRECT(ADDRESS(ROW(A$80),ROW()-ROW(A$80)+(ROWS($88:94)-1)*2+1,4))","v":0},null,null,null,null,null,20,0,0,0]
[{"$f":"IF(B95=\"\",0,INDEX(Price_List,ROWS($88:95)))","v":10},{"$f":"IF($C95=\"\",\"\",COUNTA($C$88:$C95))","v":8},{"$f":"IF(INDEX(INDIRECT(\"Product_List\"),ROWS($88:95))=\"\",\"\",INDEX(INDIRECT(\"Product_List\"),ROWS($88:95)))","v":"08-ขนมปังไส้ถั่วแดง"},{"$f":"ยอดยกมา","v":0},null,null,null,null,null,null,0,null,{"$f":"INDIRECT(ADDRESS(ROW(A$80),ROW()-ROW(A$80)+(ROWS($88:95)-1)*2-1,4))","v":0},null,0,null,0,null,null,null,0,null,0,null,null,null,null,null,{"$f":"INDIRECT(ADDRESS(ROW(A$80),ROW()-ROW(A$80)+(ROWS($88:95)-1)*2,4))","v":0},0,null,0,{"$f":"INDIRECT(ADDRESS(ROW(A$80),ROW()-ROW(A$80)+(ROWS($88:95)-1)*2+1,4))","v":0},null,null,null,null,null,22,0,0,0]
[{"$f":"IF(B96=\"\",0,INDEX(Price_List,ROWS($88:96)))","v":10},{"$f":"IF($C96=\"\",\"\",COUNTA($C$88:$C96))","v":9},{"$f":"IF(INDEX(INDIRECT(\"Product_List\"),ROWS($88:96))=\"\",\"\",INDEX(INDIRECT(\"Product_List\"),ROWS($88:96)))","v":"09-ขนมปังไส้ถั่วดำ"},{"$f":"ยอดยกมา","v":0},null,null,null,null,null,null,0,null,{"$f":"INDIRECT(ADDRESS(ROW(A$80),ROW()-ROW(A$80)+(ROWS($88:96)-1)*2-1,4))","v":0},null,0,null,0,null,null,null,0,null,0,null,null,null,null,null,{"$f":"INDIRECT(ADDRESS(ROW(A$80),ROW()-ROW(A$80)+(ROWS($88:96)-1)*2,4))","v":0},0,null,0,{"$f":"INDIRECT(ADDRESS(ROW(A$80),ROW()-ROW(A$80)+(ROWS($88:96)-1)*2+1,4))","v":0},null,null,null,null,null,25,0,0,0]
[{"$f":"IF(B97=\"\",0,INDEX(Price_List,ROWS($88:97)))","v":10},{"$f":"IF($C97=\"\",\"\",COUNTA($C$88:$C97))","v":10},{"$f":"IF(INDEX(INDIRECT(\"Product_List\"),ROWS($88:97))=\"\",\"\",INDEX(INDIRECT(\"Product_List\"),ROWS($88:97)))","v":"10-ขนมปังไส้มันม่วง"},{"$f":"ยอดยกมา","v":0},null,null,null,null,null,null,0,null,{"$f":"INDIRECT(ADDRESS(ROW(A$80),ROW()-ROW(A$80)+(ROWS($88:97)-1)*2-1,4))","v":0},null,0,null,0,null,null,null,0,null,0,null,null,null,null,null,{"$f":"INDIRECT(ADDRESS(ROW(A$80),ROW()-ROW(A$80)+(ROWS($88:97)-1)*2,4))","v":0},0,null,0,{"$f":"INDIRECT(ADDRESS(ROW(A$80),ROW()-ROW(A$80)+(ROWS($88:97)-1)*2+1,4))","v":0},null,null,null,null,null,42,0,0,0]
[{"$f":"IF(B98=\"\",0,INDEX(Price_List,ROWS($88:98)))","v":15},{"$f":"IF($C98=\"\",\"\",COUNTA($C$88:$C98))","v":11},{"$f":"IF(INDEX(INDIRECT(\"Product_List\"),ROWS($88:98))=\"\",\"\",INDEX(INDIRECT(\"Product_List\"),ROWS($88:98)))","v":"11-เค้กกล้วยหอม"},{"$f":"ยอดยกมา","v":0},null,null,null,null,null,null,0,null,{"$f":"INDIRECT(ADDRESS(ROW(A$80),ROW()-ROW(A$80)+(ROWS($88:98)-1)*2-1,4))","v":0},null,0,null,0,null,null,null,0,null,0,null,null,null,null,null,{"$f":"INDIRECT(ADDRESS(ROW(A$80),ROW()-ROW(A$80)+(ROWS($88:98)-1)*2,4))","v":0},0,null,0,{"$f":"INDIRECT(ADDRESS(ROW(A$80),ROW()-ROW(A$80)+(ROWS($88:98)-1)*2+1,4))","v":0},null,null,null,null,null,"Total Deduct",null,null,{"$f":"SUM($AP$88:$AP$97)","v":0}]
[{"$f":"IF(B99=\"\",0,INDEX(Price_List,ROWS($88:99)))","v":15},{"$f":"IF($C99=\"\",\"\",COUNTA($C$88:$C99))","v":12},{"$f":"IF(INDEX(INDIRECT(\"Product_List\"),ROWS($88:99))=\"\",\"\",INDEX(INDIRECT(\"Product_List\"),ROWS($88:99)))","v":"12-เค้กบัตเตอร์"},{"$f":"ยอดยกมา","v":0},null,null,null,null,null,null,0,null,{"$f":"INDIRECT(ADDRESS(ROW(A$80),ROW()-ROW(A$80)+(ROWS($88:99)-1)*2-1,4))","v":0},null,0,null,0,null,null,null,0,null,0,null,null,null,null,null,{"$f":"INDIRECT(ADDRESS(ROW(A$80),ROW()-ROW(A$80)+(ROWS($88:99)-1)*2,4))","v":0},0,null,0,{"$f":"INDIRECT(ADDRESS(ROW(A$80),ROW()-ROW(A$80)+(ROWS($88:99)-1)*2+1,4))","v":0}]
[{"$f":"IF(B100=\"\",0,INDEX(Price_List,ROWS($88:100)))","v":15},{"$f":"IF($C100=\"\",\"\",COUNTA($C$88:$C100))","v":13},{"$f":"IF(INDEX(INDIRECT(\"Product_List\"),ROWS($88:100))=\"\",\"\",INDEX(INDIRECT(\"Product_List\"),ROWS($88:100)))","v":"13-ขนมปังโรลถั่วแดง"},{"$f":"ยอดยกมา","v":0},null,null,null,null,null,null,0,null,{"$f":"INDIRECT(ADDRESS(ROW(A$80),ROW()-ROW(A$80)+(ROWS($88:100)-1)*2-1,4))","v":0},null,0,null,0,null,null,null,0,null,0,null,null,null,null,null,{"$f":"INDIRECT(ADDRESS(ROW(A$80),ROW()-ROW(A$80)+(ROWS($88:100)-1)*2,4))","v":0},0,null,0,{"$f":"INDIRECT(ADDRESS(ROW(A$80),ROW()-ROW(A$80)+(ROWS($88:100)-1)*2+1,4))","v":0}]
[{"$f":"IF(B101=\"\",0,INDEX(Price_List,ROWS($88:101)))","v":15},{"$f":"IF($C101=\"\",\"\",COUNTA($C$88:$C101))","v":14},{"$f":"IF(INDEX(INDIRECT(\"Product_List\"),ROWS($88:101))=\"\",\"\",INDEX(INDIRECT(\"Product_List\"),ROWS($88:101)))","v":"14-ขนมปังไส้สังขยาใหญ่"},{"$f":"ยอดยกมา","v":0},null,null,null,null,null,null,0,null,{"$f":"INDIRECT(ADDRESS(ROW(A$80),ROW()-ROW(A$80)+(ROWS($88:101)-1)*2-1,4))","v":0},null,0,null,0,null,null,null,0,null,0,null,null,null,null,null,{"$f":"INDIRECT(ADDRESS(ROW(A$80),ROW()-ROW(A$80)+(ROWS($88:101)-1)*2,4))","v":0},0,null,0,{"$f":"INDIRECT(ADDRESS(ROW(A$80),ROW()-ROW(A$80)+(ROWS($88:101)-1)*2+1,4))","v":0}]
[{"$f":"IF(B102=\"\",0,INDEX(Price_List,ROWS($88:102)))","v":42},{"$f":"IF($C102=\"\",\"\",COUNTA($C$88:$C102))","v":15},{"$f":"IF(INDEX(INDIRECT(\"Product_List\"),ROWS($88:102))=\"\",\"\",INDEX(INDIRECT(\"Product_List\"),ROWS($88:102)))","v":"15-ขนมปังชนิดแผ่น(480กรัม)"},{"$f":"ยอดยกมา","v":0},null,null,null,null,null,null,0,null,{"$f":"INDIRECT(ADDRESS(ROW(A$80),ROW()-ROW(A$80)+(ROWS($88:102)-1)*2-1,4))","v":0},null,0,null,0,null,null,null,0,null,0,null,null,null,null,null,{"$f":"INDIRECT(ADDRESS(ROW(A$80),ROW()-ROW(A$80)+(ROWS($88:102)-1)*2,4))","v":0},0,null,0,{"$f":"INDIRECT(ADDRESS(ROW(A$80),ROW()-ROW(A$80)+(ROWS($88:102)-1)*2+1,4))","v":0}]
[{"$f":"IF(B103=\"\",0,INDEX(Price_List,ROWS($88:103)))","v":12},{"$f":"IF($C103=\"\",\"\",COUNTA($C$88:$C103))","v":16},{"$f":"IF(INDEX(INDIRECT(\"Product_List\"),ROWS($88:103))=\"\",\"\",INDEX(INDIRECT(\"Product_List\"),ROWS($88:103)))","v":"16-โมจิไส้ถั่ว"},{"$f":"ยอดยกมา","v":0},null,null,null,null,null,null,0,null,{"$f":"INDIRECT(ADDRESS(ROW(A$80),ROW()-ROW(A$80)+(ROWS($88:103)-1)*2-1,4))","v":0},null,0,null,0,null,null,null,0,null,0,null,null,null,null,null,{"$f":"INDIRECT(ADDRESS(ROW(A$80),ROW()-ROW(A$80)+(ROWS($88:103)-1)*2,4))","v":0},0,null,0,{"$f":"INDIRECT(ADDRESS(ROW(A$80),ROW()-ROW(A$80)+(ROWS($88:103)-1)*2+1,4))","v":0}]
[{"$f":"IF(B104=\"\",0,INDEX(Price_List,ROWS($88:104)))","v":12},{"$f":"IF($C104=\"\",\"\",COUNTA($C$88:$C104))","v":17},{"$f":"IF(INDEX(INDIRECT(\"Product_List\"),ROWS($88:104))=\"\",\"\",INDEX(INDIRECT(\"Product_List\"),ROWS($88:104)))","v":"17-โมจิไส้เผือก"},{"$f":"ยอดยกมา","v":0},null,null,null,null,null,null,0,null,{"$f":"INDIRECT(ADDRESS(ROW(A$80),ROW()-ROW(A$80)+(ROWS($88:104)-1)*2-1,4))","v":0},null,0,null,0,null,null,null,0,null,0,null,null,null,null,null,{"$f":"INDIRECT(ADDRESS(ROW(A$80),ROW()-ROW(A$80)+(ROWS($88:104)-1)*2,4))","v":0},0,null,0,{"$f":"INDIRECT(ADDRESS(ROW(A$80),ROW()-ROW(A$80)+(ROWS($88:104)-1)*2+1,4))","v":0}]
[{"$f":"IF(B105=\"\",0,INDEX(Price_List,ROWS($88:105)))","v":15},{"$f":"IF($C105=\"\",\"\",COUNTA($C$88:$C105))","v":18},{"$f":"IF(INDEX(INDIRECT(\"Product_List\"),ROWS($88:105))=\"\",\"\",INDEX(INDIRECT(\"Product_List\"),ROWS($88:105)))","v":"18-โมจิไส้ถั่วไข่เค็ม"},{"$f":"ยอดยกมา","v":0},null,null,null,null,null,null,0,null,{"$f":"INDIRECT(ADDRESS(ROW(A$80),ROW()-ROW(A$80)+(ROWS($88:105)-1)*2-1,4))","v":0},null,0,null,0,null,null,null,0,null,0,null,null,null,null,null,{"$f":"INDIRECT(ADDRESS(ROW(A$80),ROW()-ROW(A$80)+(ROWS($88:105)-1)*2,4))","v":0},0,null,0,{"$f":"INDIRECT(ADDRESS(ROW(A$80),ROW()-ROW(A$80)+(ROWS($88:105)-1)*2+1,4))","v":0}]
[{"$f":"IF(B106=\"\",0,INDEX(Price_List,ROWS($88:106)))","v":20},{"$f":"IF($C106=\"\",\"\",COUNTA($C$88:$C106))","v":19},{"$f":"IF(INDEX(INDIRECT(\"Product_List\"),ROWS($88:106))=\"\",\"\",INDEX(INDIRECT(\"Product_List\"),ROWS($88:106)))","v":"19-ขนมปังพิซซ่า"},{"$f":"ยอดยกมา","v":0},null,null,null,null,null,null,0,null,{"$f":"INDIRECT(ADDRESS(ROW(A$80),ROW()-ROW(A$80)+(ROWS($88:106)-1)*2-1,4))","v":0},null,0,null,0,null,null,null,0,null,0,null,null,null,null,null,{"$f":"INDIRECT(ADDRESS(ROW(A$80),ROW()-ROW(A$80)+(ROWS($88:106)-1)*2,4))","v":0},0,null,0,{"$f":"INDIRECT(ADDRESS(ROW(A$80),ROW()-ROW(A$80)+(ROWS($88:106)-1)*2+1,4))","v":0}]
[{"$f":"IF(B107=\"\",0,INDEX(Price_List,ROWS($88:107)))","v":20},{"$f":"IF($C107=\"\",\"\",COUNTA($C$88:$C107))","v":20},{"$f":"IF(INDEX(INDIRECT(\"Product_List\"),ROWS($88:107))=\"\",\"\",INDEX(INDIRECT(\"Product_List\"),ROWS($88:107)))","v":"20-ขนมปังพิซซ่าปูอัดแฮม"},{"$f":"ยอดยกมา","v":0},null,null,null,null,null,null,0,null,{"$f":"INDIRECT(ADDRESS(ROW(A$80),ROW()-ROW(A$80)+(ROWS($88:107)-1)*2-1,4))","v":0},null,0,null,0,null,null,null,0,null,0,null,null,null,null,null,{"$f":"INDIRECT(ADDRESS(ROW(A$80),ROW()-ROW(A$80)+(ROWS($88:107)-1)*2,4))","v":0},0,null,0,{"$f":"INDIRECT(ADDRESS(ROW(A$80),ROW()-ROW(A$80)+(ROWS($88:107)-1)*2+1,4))","v":0}]
[{"$f":"IF(B108=\"\",0,INDEX(Price_List,ROWS($88:108)))","v":20},{"$f":"IF($C108=\"\",\"\",COUNTA($C$88:$C108))","v":21},{"$f":"IF(INDEX(INDIRECT(\"Product_List\"),ROWS($88:108))=\"\",\"\",INDEX(INDIRECT(\"Product_List\"),ROWS($88:108)))","v":"21-ขนมปังไส้กรอก"},{"$f":"ยอดยกมา","v":0},null,null,null,null,null,null,0,null,{"$f":"INDIRECT(ADDRESS(ROW(A$80),ROW()-ROW(A$80)+(ROWS($88:108)-1)*2-1,4))","v":0},null,0,null,0,null,null,null,0,null,0,null,null,null,null,null,{"$f":"INDIRECT(ADDRESS(ROW(A$80),ROW()-ROW(A$80)+(ROWS($88:108)-1)*2,4))","v":0},0,null,0,{"$f":"INDIRECT(ADDRESS(ROW(A$80),ROW()-ROW(A$80)+(ROWS($88:108)-1)*2+1,4))","v":0}]
[{"$f":"IF(B109=\"\",0,INDEX(Price_List,ROWS($88:109)))","v":15},{"$f":"IF($C109=\"\",\"\",COUNTA($C$88:$C109))","v":22},{"$f":"IF(INDEX(INDIRECT(\"Product_List\"),ROWS($88:109))=\"\",\"\",INDEX(INDIRECT(\"Product_List\"),ROWS($88:109)))","v":"22-ขนมก้านบัว"},{"$f":"ยอดยกมา","v":0},null,null,null,null,null,null,0,null,{"$f":"INDIRECT(ADDRESS(ROW(A$80),ROW()-ROW(A$80)+(ROWS($88:109)-1)*2-1,4))","v":0},null,0,null,0,null,null,null,0,null,0,null,null,null,null,null,{"$f":"INDIRECT(ADDRESS(ROW(A$80),ROW()-ROW(A$80)+(ROWS($88:109)-1)*2,4))","v":0},0,null,0,{"$f":"INDIRECT(ADDRESS(ROW(A$80),ROW()-ROW(A$80)+(ROWS($88:109)-1)*2+1,4))","v":0}]
[{"$f":"IF(B110=\"\",0,INDEX(Price_List,ROWS($88:110)))","v":20},{"$f":"IF($C110=\"\",\"\",COUNTA($C$88:$C110))","v":23},{"$f":"IF(INDEX(INDIRECT(\"Product_List\"),ROWS($88:110))=\"\",\"\",INDEX(INDIRECT(\"Product_List\"),ROWS($88:110)))","v":"23-พายสับปะรด"},{"$f":"ยอดยกมา","v":0},null,null,null,null,null,null,{"$f":"D110+E110+J110-I110+H110","v":0},null,{"$f":"INDIRECT(ADDRESS(ROW(A$80),ROW()-ROW(A$80)+(ROWS($88:110)-1)*2-1,4))","v":0},null,{"$f":"F110+G110+M110+J110-K110","v":0},null,{"$f":"O110*A110","v":0},null,null,null,{"$f":"D110+E110-F110-G110","v":0},null,{"$f":"U110*6%+U110","v":0},null,null,null,null,null,{"$f":"INDIRECT(ADDRESS(ROW(A$80),ROW()-ROW(A$80)+(ROWS($88:110)-1)*2,4))","v":0},0,null,0,{"$f":"INDIRECT(ADDRESS(ROW(A$80),ROW()-ROW(A$80)+(ROWS($88:110)-1)*2+1,4))","v":0}]
[{"$f":"IF(B111=\"\",0,INDEX(Price_List,ROWS($88:111)))","v":20},{"$f":"IF($C111=\"\",\"\",COUNTA($C$88:$C111))","v":24},{"$f":"IF(INDEX(INDIRECT(\"Product_List\"),ROWS($88:111))=\"\",\"\",INDEX(INDIRECT(\"Product_List\"),ROWS($88:111)))","v":"24-พายไส้มะพร้าว"},{"$f":"ยอดยกมา","v":0},null,null,null,null,null,null,0,null,{"$f":"INDIRECT(ADDRESS(ROW(A$80),ROW()-ROW(A$80)+(ROWS($88:111)-1)*2-1,4))","v":0},null,0,null,0,null,null,null,0,null,0,null,null,null,null,null,{"$f":"INDIRECT(ADDRESS(ROW(A$80),ROW()-ROW(A$80)+(ROWS($88:111)-1)*2,4))","v":0},0,null,0,{"$f":"INDIRECT(ADDRESS(ROW(A$80),ROW()-ROW(A$80)+(ROWS($88:111)-1)*2+1,4))","v":0}]
[{"$f":"IF(B112=\"\",0,INDEX(Price_List,ROWS($88:112)))","v":15},{"$f":"IF($C112=\"\",\"\",COUNTA($C$88:$C112))","v":25},{"$f":"IF(INDEX(INDIRECT(\"Product_List\"),ROWS($88:112))=\"\",\"\",INDEX(INDIRECT(\"Product_List\"),ROWS($88:112)))","v":"25-ขนมปังโรลมันเทศ"},{"$f":"ยอดยกมา","v":0},null,null,null,null,null,null,{"$f":"D112+E112+J112-I112+H112","v":0},null,{"$f":"INDIRECT(ADDRESS(ROW(A$80),ROW()-ROW(A$80)+(ROWS($88:112)-1)*2-1,4))","v":0},null,{"$f":"F112+G112+M112+J112-K112","v":0},null,{"$f":"O112*A112","v":0},null,null,null,{"$f":"D112+E112-F112-G112","v":0},null,{"$f":"U112*6%+U112","v":0},null,null,null,null,null,{"$f":"INDIRECT(ADDRESS(ROW(A$80),ROW()-ROW(A$80)+(ROWS($88:112)-1)*2,4))","v":0},0,null,0,{"$f":"INDIRECT(ADDRESS(ROW(A$80),ROW()-ROW(A$80)+(ROWS($88:112)-1)*2+1,4))","v":0}]
[{"$f":"IF(B113=\"\",0,INDEX(Price_List,ROWS($88:113)))","v":15},{"$f":"IF($C113=\"\",\"\",COUNTA($C$88:$C113))","v":26},{"$f":"IF(INDEX(INDIRECT(\"Product_List\"),ROWS($88:113))=\"\",\"\",INDEX(INDIRECT(\"Product_List\"),ROWS($88:113)))","v":"26-ขนมปังไส้ครีมสลัดน้ำพริกเผา"},{"$f":"ยอดยกมา","v":0},null,null,null,null,null,null,{"$f":"D113+E113+J113-I113+H113","v":0},null,{"$f":"INDIRECT(ADDRESS(ROW(A$80),ROW()-ROW(A$80)+(ROWS($88:113)-1)*2-1,4))","v":0},null,{"$f":"F113+G113+M113+J113-K113","v":0},null,{"$f":"O113*A113","v":0},null,null,null,{"$f":"D113+E113-F113-G113","v":0},null,{"$f":"U113*6%+U113","v":0},null,null,null,null,null,{"$f":"INDIRECT(ADDRESS(ROW(A$80),ROW()-ROW(A$80)+(ROWS($88:113)-1)*2,4))","v":0},0,null,0,{"$f":"INDIRECT(ADDRESS(ROW(A$80),ROW()-ROW(A$80)+(ROWS($88:113)-1)*2+1,4))","v":0}]
[{"$f":"IF(B114=\"\",0,INDEX(Price_List,ROWS($88:114)))","v":20},{"$f":"IF($C114=\"\",\"\",COUNTA($C$88:$C114))","v":27},{"$f":"IF(INDEX(INDIRECT(\"Product_List\"),ROWS($88:114))=\"\",\"\",INDEX(INDIRECT(\"Product_List\"),ROWS($88:114)))","v":"27-ขนมปังไส้สังขยาไข่"},{"$f":"ยอดยกมา","v":0},null,null,null,null,null,null,0,null,{"$f":"INDIRECT(ADDRESS(ROW(A$80),ROW()-ROW(A$80)+(ROWS($88:114)-1)*2-1,4))","v":0},null,0,null,0,null,null,null,0,null,0,null,null,null,null,null,{"$f":"INDIRECT(ADDRESS(ROW(A$80),ROW()-ROW(A$80)+(ROWS($88:114)-1)*2,4))","v":0},0,null,0,{"$f":"INDIRECT(ADDRESS(ROW(A$80),ROW()-ROW(A$80)+(ROWS($88:114)-1)*2+1,4))","v":0}]
[{"$f":"IF(B115=\"\",0,INDEX(Price_List,ROWS($88:115)))","v":20},{"$f":"IF($C115=\"\",\"\",COUNTA($C$88:$C115))","v":28},{"$f":"IF(INDEX(INDIRECT(\"Product_List\"),ROWS($88:115))=\"\",\"\",INDEX(INDIRECT(\"Product_List\"),ROWS($88:115)))","v":"28-ขนมปังไส้สังขยามะพร้าว"},{"$f":"ยอดยกมา","v":0},null,null,null,null,null,null,0,null,{"$f":"INDIRECT(ADDRESS(ROW(A$80),ROW()-ROW(A$80)+(ROWS($88:115)-1)*2-1,4))","v":0},null,0,null,0,null,null,null,0,null,0,null,null,null,null,null,{"$f":"INDIRECT(ADDRESS(ROW(A$80),ROW()-ROW(A$80)+(ROWS($88:115)-1)*2,4))","v":0},0,null,0,{"$f":"INDIRECT(ADDRESS(ROW(A$80),ROW()-ROW(A$80)+(ROWS($88:115)-1)*2+1,4))","v":0}]
[{"$f":"IF(B116=\"\",0,INDEX(Price_List,ROWS($88:116)))","v":10},{"$f":"IF($C116=\"\",\"\",COUNTA($C$88:$C116))","v":29},{"$f":"IF(INDEX(INDIRECT(\"Product_List\"),ROWS($88:116))=\"\",\"\",INDEX(INDIRECT(\"Product_List\"),ROWS($88:116)))","v":"29-ขนมปังไส้ครีมชาไทย"},{"$f":"ยอดยกมา","v":0},null,null,null,null,null,null,0,null,{"$f":"INDIRECT(ADDRESS(ROW(A$80),ROW()-ROW(A$80)+(ROWS($88:116)-1)*2-1,4))","v":0},null,0,null,0,null,null,null,0,null,0,null,null,null,null,null,{"$f":"INDIRECT(ADDRESS(ROW(A$80),ROW()-ROW(A$80)+(ROWS($88:116)-1)*2,4))","v":0},0,null,0,{"$f":"INDIRECT(ADDRESS(ROW(A$80),ROW()-ROW(A$80)+(ROWS($88:116)-1)*2+1,4))","v":0}]
[{"$f":"IF(B117=\"\",0,INDEX(Price_List,ROWS($88:117)))","v":15},{"$f":"IF($C117=\"\",\"\",COUNTA($C$88:$C117))","v":30},{"$f":"IF(INDEX(INDIRECT(\"Product_List\"),ROWS($88:117))=\"\",\"\",INDEX(INDIRECT(\"Product_List\"),ROWS($88:117)))","v":"30-ขนมปังโรลมันม่วง"},{"$f":"ยอดยกมา","v":0},null,null,null,null,null,null,0,null,{"$f":"INDIRECT(ADDRESS(ROW(A$80),ROW()-ROW(A$80)+(ROWS($88:117)-1)*2-1,4))","v":0},null,0,null,0,null,null,null,0,null,0,null,null,null,null,null,{"$f":"INDIRECT(ADDRESS(ROW(A$80),ROW()-ROW(A$80)+(ROWS($88:117)-1)*2,4))","v":0},0,null,0,{"$f":"INDIRECT(ADDRESS(ROW(A$80),ROW()-ROW(A$80)+(ROWS($88:117)-1)*2+1,4))","v":0}]
[{"$f":"IF(B118=\"\",0,INDEX(Price_List,ROWS($88:118)))","v":15},{"$f":"IF($C118=\"\",\"\",COUNTA($C$88:$C118))","v":31},{"$f":"IF(INDEX(INDIRECT(\"Product_List\"),ROWS($88:118))=\"\",\"\",INDEX(INDIRECT(\"Product_List\"),ROWS($88:118)))","v":"31-ขนมปังโรลช็อกโกแลต"},{"$f":"ยอดยกมา","v":0},null,null,null,null,null,null,0,null,{"$f":"INDIRECT(ADDRESS(ROW(A$80),ROW()-ROW(A$80)+(ROWS($88:118)-1)*2-1,4))","v":0},null,0,null,0,null,null,null,0,null,0,null,null,null,null,null,{"$f":"INDIRECT(ADDRESS(ROW(A$80),ROW()-ROW(A$80)+(ROWS($88:118)-1)*2,4))","v":0},0,null,0,{"$f":"INDIRECT(ADDRESS(ROW(A$80),ROW()-ROW(A$80)+(ROWS($88:118)-1)*2+1,4))","v":0}]
[{"$f":"IF(B119=\"\",0,INDEX(Price_List,ROWS($88:119)))","v":16},{"$f":"IF($C119=\"\",\"\",COUNTA($C$88:$C119))","v":32},{"$f":"IF(INDEX(INDIRECT(\"Product_List\"),ROWS($88:119))=\"\",\"\",INDEX(INDIRECT(\"Product_List\"),ROWS($88:119)))","v":"32-ขนมปังชนิดแผ่น(155กรัม)"},{"$f":"ยอดยกมา","v":0},null,null,null,null,null,null,0,null,{"$f":"INDIRECT(ADDRESS(ROW(A$80),ROW()-ROW(A$80)+(ROWS($88:119)-1)*2-1,4))","v":0},null,0,null,0,null,null,null,0,null,0,null,null,null,null,null,{"$f":"INDIRECT(ADDRESS(ROW(A$80),ROW()-ROW(A$80)+(ROWS($88:119)-1)*2,4))","v":0},0,null,0,{"$f":"INDIRECT(ADDRESS(ROW(A$80),ROW()-ROW(A$80)+(ROWS($88:119)-1)*2+1,4))","v":0}]
[{"$f":"IF(B120=\"\",0,INDEX(Price_List,ROWS($88:120)))","v":15},{"$f":"IF($C120=\"\",\"\",COUNTA($C$88:$C120))","v":33},{"$f":"IF(INDEX(INDIRECT(\"Product_List\"),ROWS($88:120))=\"\",\"\",INDEX(INDIRECT(\"Product_List\"),ROWS($88:120)))","v":"33-ขนมปังโรลเผือก"},{"$f":"ยอดยกมา","v":0},null,null,null,null,null,null,{"$f":"D120+E120+J120-I120+H120","v":0},null,{"$f":"INDIRECT(ADDRESS(ROW(A$80),ROW()-ROW(A$80)+(ROWS($88:120)-1)*2-1,4))","v":0},null,{"$f":"F120+G120+M120+J120-K120","v":0},null,{"$f":"O120*A120","v":0},null,null,null,{"$f":"D120+E120-F120-G120","v":0},null,{"$f":"U120*6%+U120","v":0},null,null,null,null,null,{"$f":"INDIRECT(ADDRESS(ROW(A$80),ROW()-ROW(A$80)+(ROWS($88:120)-1)*2,4))","v":0},0,null,0,{"$f":"INDIRECT(ADDRESS(ROW(A$80),ROW()-ROW(A$80)+(ROWS($88:120)-1)*2+1,4))","v":0}]
[{"$f":"IF(B121=\"\",0,INDEX(Price_List,ROWS($88:121)))","v":15},{"$f":"IF($C121=\"\",\"\",COUNTA($C$88:$C121))","v":34},{"$f":"IF(INDEX(INDIRECT(\"Product_List\"),ROWS($88:121))=\"\",\"\",INDEX(INDIRECT(\"Product_List\"),ROWS($88:121)))","v":"34-ขนมปังไก่หยองน้ำสลัด Mini"},{"$f":"ยอดยกมา","v":0},null,null,null,null,null,null,0,null,{"$f":"INDIRECT(ADDRESS(ROW(A$80),ROW()-ROW(A$80)+(ROWS($88:121)-1)*2-1,4))","v":0},null,0,null,0,null,null,null,0,null,0,null,null,null,null,null,{"$f":"INDIRECT(ADDRESS(ROW(A$80),ROW()-ROW(A$80)+(ROWS($88:121)-1)*2,4))","v":0},0,null,0,{"$f":"INDIRECT(ADDRESS(ROW(A$80),ROW()-ROW(A$80)+(ROWS($88:121)-1)*2+1,4))","v":0}]
[{"$f":"IF(B122=\"\",0,INDEX(Price_List,ROWS($88:122)))","v":10},{"$f":"IF($C122=\"\",\"\",COUNTA($C$88:$C122))","v":35},{"$f":"IF(INDEX(INDIRECT(\"Product_List\"),ROWS($88:122))=\"\",\"\",INDEX(INDIRECT(\"Product_List\"),ROWS($88:122)))","v":"35-ขนมปังไส้ช็อกโกแลต"},{"$f":"ยอดยกมา","v":0},null,null,null,null,null,null,0,null,{"$f":"INDIRECT(ADDRESS(ROW(A$80),ROW()-ROW(A$80)+(ROWS($88:122)-1)*2-1,4))","v":0},null,0,null,0,null,null,null,0,null,0,null,null,null,null,null,{"$f":"INDIRECT(ADDRESS(ROW(A$80),ROW()-ROW(A$80)+(ROWS($88:122)-1)*2,4))","v":0},0,null,0,{"$f":"INDIRECT(ADDRESS(ROW(A$80),ROW()-ROW(A$80)+(ROWS($88:122)-1)*2+1,4))","v":0}]
[{"$f":"IF(B123=\"\",0,INDEX(Price_List,ROWS($88:123)))","v":10},{"$f":"IF($C123=\"\",\"\",COUNTA($C$88:$C123))","v":36},{"$f":"IF(INDEX(INDIRECT(\"Product_List\"),ROWS($88:123))=\"\",\"\",INDEX(INDIRECT(\"Product_List\"),ROWS($88:123)))","v":"36-ขนมปังไส้ครีมสังขยาไข่"},{"$f":"ยอดยกมา","v":0},null,null,null,null,null,null,0,null,{"$f":"INDIRECT(ADDRESS(ROW(A$80),ROW()-ROW(A$80)+(ROWS($88:123)-1)*2-1,4))","v":0},null,0,null,0,null,null,null,0,null,0,null,null,null,null,null,{"$f":"INDIRECT(ADDRESS(ROW(A$80),ROW()-ROW(A$80)+(ROWS($88:123)-1)*2,4))","v":0},0,null,0,{"$f":"INDIRECT(ADDRESS(ROW(A$80),ROW()-ROW(A$80)+(ROWS($88:123)-1)*2+1,4))","v":0}]
[{"$f":"IF(B124=\"\",0,INDEX(Price_List,ROWS($88:124)))","v":20},{"$f":"IF($C124=\"\",\"\",COUNTA($C$88:$C124))","v":37},{"$f":"IF(INDEX(INDIRECT(\"Product_List\"),ROWS($88:124))=\"\",\"\",INDEX(INDIRECT(\"Product_List\"),ROWS($88:124)))","v":"37-ขนมปังพิซซ่าฮาวายเอี้ยน"},{"$f":"ยอดยกมา","v":0},null,null,null,null,null,null,{"$f":"D124+E124+J124-I124+H124","v":0},null,{"$f":"INDIRECT(ADDRESS(ROW(A$80),ROW()-ROW(A$80)+(ROWS($88:124)-1)*2-1,4))","v":0},null,{"$f":"F124+G124+M124+J124-K124","v":0},null,{"$f":"O124*A124","v":0},null,null,null,{"$f":"D124+E124-F124-G124","v":0},null,{"$f":"U124*6%+U124","v":0},null,null,null,null,null,{"$f":"INDIRECT(ADDRESS(ROW(A$80),ROW()-ROW(A$80)+(ROWS($88:124)-1)*2,4))","v":0},0,null,0,{"$f":"INDIRECT(ADDRESS(ROW(A$80),ROW()-ROW(A$80)+(ROWS($88:124)-1)*2+1,4))","v":0}]
[{"$f":"IF(B125=\"\",0,INDEX(Price_List,ROWS($88:125)))","v":20},{"$f":"IF($C125=\"\",\"\",COUNTA($C$88:$C125))","v":38},{"$f":"IF(INDEX(INDIRECT(\"Product_List\"),ROWS($88:125))=\"\",\"\",INDEX(INDIRECT(\"Product_List\"),ROWS($88:125)))","v":"38-ครัวซองต์หมูหยองน้ำสลัด"},{"$f":"ยอดยกมา","v":0},null,null,null,null,null,null,0,null,{"$f":"INDIRECT(ADDRESS(ROW(A$80),ROW()-ROW(A$80)+(ROWS($88:125)-1)*2-1,4))","v":0},null,0,null,0,null,null,null,0,null,0,null,null,null,null,null,{"$f":"INDIRECT(ADDRESS(ROW(A$80),ROW()-ROW(A$80)+(ROWS($88:125)-1)*2,4))","v":0},0,null,0,{"$f":"INDIRECT(ADDRESS(ROW(A$80),ROW()-ROW(A$80)+(ROWS($88:125)-1)*2+1,4))","v":0}]
[{"$f":"IF(B126=\"\",0,INDEX(Price_List,ROWS($88:126)))","v":15},{"$f":"IF($C126=\"\",\"\",COUNTA($C$88:$C126))","v":39},{"$f":"IF(INDEX(INDIRECT(\"Product_List\"),ROWS($88:126))=\"\",\"\",INDEX(INDIRECT(\"Product_List\"),ROWS($88:126)))","v":"39-แพนเบรดไส้เผือก"},{"$f":"ยอดยกมา","v":0},null,null,null,null,null,null,{"$f":"D126+E126+J126-I126+H126","v":0},null,{"$f":"INDIRECT(ADDRESS(ROW(A$80),ROW()-ROW(A$80)+(ROWS($88:126)-1)*2-1,4))","v":0},null,{"$f":"F126+G126+M126+J126-K126","v":0},null,{"$f":"O126*A126","v":0},null,null,null,{"$f":"D126+E126-F126-G126","v":0},null,{"$f":"U126*6%+U126","v":0},null,null,null,null,null,{"$f":"INDIRECT(ADDRESS(ROW(A$80),ROW()-ROW(A$80)+(ROWS($88:126)-1)*2,4))","v":0},0,null,0,{"$f":"INDIRECT(ADDRESS(ROW(A$80),ROW()-ROW(A$80)+(ROWS($88:126)-1)*2+1,4))","v":0}]
[{"$f":"IF(B127=\"\",0,INDEX(Price_List,ROWS($88:127)))","v":15},{"$f":"IF($C127=\"\",\"\",COUNTA($C$88:$C127))","v":40},{"$f":"IF(INDEX(INDIRECT(\"Product_List\"),ROWS($88:127))=\"\",\"\",INDEX(INDIRECT(\"Product_List\"),ROWS($88:127)))","v":"40-แพนเบรดไส้ถั่วแดง"},{"$f":"ยอดยกมา","v":0},null,null,null,null,null,null,{"$f":"D127+E127+J127-I127+H127","v":0},null,{"$f":"INDIRECT(ADDRESS(ROW(A$80),ROW()-ROW(A$80)+(ROWS($88:127)-1)*2-1,4))","v":0},null,{"$f":"F127+G127+M127+J127-K127","v":0},null,{"$f":"O127*A127","v":0},null,null,null,{"$f":"D127+E127-F127-G127","v":0},null,{"$f":"U127*6%+U127","v":0},null,null,null,null,null,{"$f":"INDIRECT(ADDRESS(ROW(A$80),ROW()-ROW(A$80)+(ROWS($88:127)-1)*2,4))","v":0},0,null,0,{"$f":"INDIRECT(ADDRESS(ROW(A$80),ROW()-ROW(A$80)+(ROWS($88:127)-1)*2+1,4))","v":0}]
[{"$f":"IF(B128=\"\",0,INDEX(Price_List,ROWS($88:128)))","v":12},{"$f":"IF($C128=\"\",\"\",COUNTA($C$88:$C128))","v":41},{"$f":"IF(INDEX(INDIRECT(\"Product_List\"),ROWS($88:128))=\"\",\"\",INDEX(INDIRECT(\"Product_List\"),ROWS($88:128)))","v":"41-ขนมปังกรอบเนยน้ำตาล(30กรัม)"},{"$f":"ยอดยกมา","v":0},null,null,null,null,null,null,0,null,{"$f":"INDIRECT(ADDRESS(ROW(A$80),ROW()-ROW(A$80)+(ROWS($88:128)-1)*2-1,4))","v":0},null,0,null,0,null,null,null,0,null,0,null,null,null,null,null,{"$f":"INDIRECT(ADDRESS(ROW(A$80),ROW()-ROW(A$80)+(ROWS($88:128)-1)*2,4))","v":0},0,null,0,{"$f":"INDIRECT(ADDRESS(ROW(A$80),ROW()-ROW(A$80)+(ROWS($88:128)-1)*2+1,4))","v":0}]
[{"$f":"IF(B129=\"\",0,INDEX(Price_List,ROWS($88:129)))","v":18},{"$f":"IF($C129=\"\",\"\",COUNTA($C$88:$C129))","v":42},{"$f":"IF(INDEX(INDIRECT(\"Product_List\"),ROWS($88:129))=\"\",\"\",INDEX(INDIRECT(\"Product_List\"),ROWS($88:129)))","v":"42-ขนมปังชนิดแผ่นโฮลวีต"},{"$f":"ยอดยกมา","v":0},null,null,null,null,null,null,0,null,{"$f":"INDIRECT(ADDRESS(ROW(A$80),ROW()-ROW(A$80)+(ROWS($88:129)-1)*2-1,4))","v":0},null,0,null,0,null,null,null,0,null,0,null,null,null,null,null,{"$f":"INDIRECT(ADDRESS(ROW(A$80),ROW()-ROW(A$80)+(ROWS($88:129)-1)*2,4))","v":0},0,null,0,{"$f":"INDIRECT(ADDRESS(ROW(A$80),ROW()-ROW(A$80)+(ROWS($88:129)-1)*2+1,4))","v":0}]
[{"$f":"IF(B130=\"\",0,INDEX(Price_List,ROWS($88:130)))","v":12},{"$f":"IF($C130=\"\",\"\",COUNTA($C$88:$C130))","v":43},{"$f":"IF(INDEX(INDIRECT(\"Product_List\"),ROWS($88:130))=\"\",\"\",INDEX(INDIRECT(\"Product_List\"),ROWS($88:130)))","v":"43-เค้กโรลใบเตย"},{"$f":"ยอดยกมา","v":0},null,null,null,null,null,null,{"$f":"D130+E130+J130-I130+H130","v":0},null,{"$f":"INDIRECT(ADDRESS(ROW(A$80),ROW()-ROW(A$80)+(ROWS($88:130)-1)*2-1,4))","v":0},null,{"$f":"F130+G130+M130+J130-K130","v":0},null,{"$f":"O130*A130","v":0},null,null,null,{"$f":"D130+E130-F130-G130","v":0},null,{"$f":"U130*6%+U130","v":0},null,null,null,null,null,{"$f":"INDIRECT(ADDRESS(ROW(A$80),ROW()-ROW(A$80)+(ROWS($88:130)-1)*2,4))","v":0},0,null,0,{"$f":"INDIRECT(ADDRESS(ROW(A$80),ROW()-ROW(A$80)+(ROWS($88:130)-1)*2+1,4))","v":0}]
[{"$f":"IF(B131=\"\",0,INDEX(Price_List,ROWS($88:131)))","v":12},{"$f":"IF($C131=\"\",\"\",COUNTA($C$88:$C131))","v":44},{"$f":"IF(INDEX(INDIRECT(\"Product_List\"),ROWS($88:131))=\"\",\"\",INDEX(INDIRECT(\"Product_List\"),ROWS($88:131)))","v":"44-ขนมโมจิไส้ถั่วดำ"},{"$f":"ยอดยกมา","v":0},null,null,null,null,null,null,{"$f":"D131+E131+J131-I131+H131","v":0},null,{"$f":"INDIRECT(ADDRESS(ROW(A$80),ROW()-ROW(A$80)+(ROWS($88:131)-1)*2-1,4))","v":0},null,{"$f":"F131+G131+M131+J131-K131","v":0},null,{"$f":"O131*A131","v":0},null,null,null,{"$f":"D131+E131-F131-G131","v":0},null,{"$f":"U131*6%+U131","v":0},null,null,null,null,null,{"$f":"INDIRECT(ADDRESS(ROW(A$80),ROW()-ROW(A$80)+(ROWS($88:131)-1)*2,4))","v":0},0,null,0,{"$f":"INDIRECT(ADDRESS(ROW(A$80),ROW()-ROW(A$80)+(ROWS($88:131)-1)*2+1,4))","v":0}]
[{"$f":"IF(B132=\"\",0,INDEX(Price_List,ROWS($88:132)))","v":25},{"$f":"IF($C132=\"\",\"\",COUNTA($C$88:$C132))","v":45},{"$f":"IF(INDEX(INDIRECT(\"Product_List\"),ROWS($88:132))=\"\",\"\",INDEX(INDIRECT(\"Product_List\"),ROWS($88:132)))","v":"45-ครัวซองต์ไส้กรอกชีส"},{"$f":"ยอดยกมา","v":0},null,null,null,null,null,null,{"$f":"D132+E132+J132-I132+H132","v":0},null,{"$f":"INDIRECT(ADDRESS(ROW(A$80),ROW()-ROW(A$80)+(ROWS($88:132)-1)*2-1,4))","v":0},null,{"$f":"F132+G132+M132+J132-K132","v":0},null,{"$f":"O132*A132","v":0},null,null,null,{"$f":"D132+E132-F132-G132","v":0},null,{"$f":"U132*6%+U132","v":0},null,null,null,null,null,{"$f":"INDIRECT(ADDRESS(ROW(A$80),ROW()-ROW(A$80)+(ROWS($88:132)-1)*2,4))","v":0},0,null,0,{"$f":"INDIRECT(ADDRESS(ROW(A$80),ROW()-ROW(A$80)+(ROWS($88:132)-1)*2+1,4))","v":0}]
[{"$f":"IF(B133=\"\",0,INDEX(Price_List,ROWS($88:133)))","v":12},{"$f":"IF($C133=\"\",\"\",COUNTA($C$88:$C133))","v":46},{"$f":"IF(INDEX(INDIRECT(\"Product_List\"),ROWS($88:133))=\"\",\"\",INDEX(INDIRECT(\"Product_List\"),ROWS($88:133)))","v":"46-ขนมเปี๊ยะไส้ถั่ว"},{"$f":"ยอดยกมา","v":0},null,null,null,null,null,null,0,null,{"$f":"INDIRECT(ADDRESS(ROW(A$80),ROW()-ROW(A$80)+(ROWS($88:133)-1)*2-1,4))","v":0},null,0,null,0,null,null,null,0,null,0,null,null,null,null,null,{"$f":"INDIRECT(ADDRESS(ROW(A$80),ROW()-ROW(A$80)+(ROWS($88:133)-1)*2,4))","v":0},0,null,0,{"$f":"INDIRECT(ADDRESS(ROW(A$80),ROW()-ROW(A$80)+(ROWS($88:133)-1)*2+1,4))","v":0}]
[{"$f":"IF(B134=\"\",0,INDEX(Price_List,ROWS($88:134)))","v":12},{"$f":"IF($C134=\"\",\"\",COUNTA($C$88:$C134))","v":47},{"$f":"IF(INDEX(INDIRECT(\"Product_List\"),ROWS($88:134))=\"\",\"\",INDEX(INDIRECT(\"Product_List\"),ROWS($88:134)))","v":"47-ขนมเปี๊ยะไส้ฟัก"},{"$f":"ยอดยกมา","v":0},null,null,null,null,null,null,{"$f":"D134+E134+J134-I134+H134","v":0},null,{"$f":"INDIRECT(ADDRESS(ROW(A$80),ROW()-ROW(A$80)+(ROWS($88:134)-1)*2-1,4))","v":0},null,{"$f":"F134+G134+M134+J134-K134","v":0},null,{"$f":"O134*A134","v":0},null,null,null,{"$f":"D134+E134-F134-G134","v":0},null,{"$f":"U134*6%+U134","v":0},null,null,null,null,null,{"$f":"INDIRECT(ADDRESS(ROW(A$80),ROW()-ROW(A$80)+(ROWS($88:134)-1)*2,4))","v":0},0,null,0,{"$f":"INDIRECT(ADDRESS(ROW(A$80),ROW()-ROW(A$80)+(ROWS($88:134)-1)*2+1,4))","v":0}]
[{"$f":"IF(B135=\"\",0,INDEX(Price_List,ROWS($88:135)))","v":12},{"$f":"IF($C135=\"\",\"\",COUNTA($C$88:$C135))","v":48},{"$f":"IF(INDEX(INDIRECT(\"Product_List\"),ROWS($88:135))=\"\",\"\",INDEX(INDIRECT(\"Product_List\"),ROWS($88:135)))","v":"48-มังกี้เค้ก"},{"$f":"ยอดยกมา","v":0},null,null,null,null,null,null,0,null,{"$f":"INDIRECT(ADDRESS(ROW(A$80),ROW()-ROW(A$80)+(ROWS($88:135)-1)*2-1,4))","v":0},null,0,null,0,null,null,null,0,null,0,null,null,null,null,null,{"$f":"INDIRECT(ADDRESS(ROW(A$80),ROW()-ROW(A$80)+(ROWS($88:135)-1)*2,4))","v":0},0,null,0,{"$f":"INDIRECT(ADDRESS(ROW(A$80),ROW()-ROW(A$80)+(ROWS($88:135)-1)*2+1,4))","v":0}]
["รวม",null,null,{"$f":"SUM(D$88:D$135)","v":0},0,0,0,0,0,0,0,null,{"$f":"SUM(M$88:M$135)","v":0},null,null,null,{"$f":"$AP$98","v":0},null,"บาท",null,{"$f":"SUM(U$88:U$135)","v":0},null,{"$f":"SUM(W$88:W$135)","v":0},null,null,null,null,null,{"$f":"SUM(AC$88:AC$135)","v":0},{"$f":"SUM(AD$88:AD$135)","v":0},{"$f":"SUM(AE$88:AE$135)","v":0},{"$f":"SUM(AF$88:AF$135)","v":0},{"$f":"SUM(AG$88:AG$135)","v":0}]
["เลขที่ไมล์ เวลาออกทำงาน",null,null,{"$f":"$BF$3","v":0},null,"Km","น้ำหนักของเสีย"]
["เลขที่ไมล์ เวลากลับ",null,null,{"$f":"$BF$4","v":0},null,"Km",{"$f":"$AA$5","v":0},null,"KG"]
["เวลากลับถึงสำนักงาน",null,null,{"$f":"$BF$1","v":"00:00:00"},null,"น."]
["เติมน้ำมัน",null,null,{"$f":"$AX3","v":0},null,"บาท"]
["จำนวนน้ำมัน",null,null,{"$f":"$AX4","v":0},null,"ลิตร"]
["ยอดรวมต้นทุนสาขา",null,null,{"$f":"$AX5","v":0},null,"บาท"]

{"sheet":"3","index":7,"n_rows":142,"n_cols":154,"rows_kept":142,"cut":false,"hidden":false,"merged":[[129,10,129,11],[129,12,129,13],[129,14,129,15],[129,16,129,17],[129,20,129,21],[80,126,80,127],[128,10,128,11],[128,12,128,13],[128,14,128,15],[128,16,128,17],[128,20,128,21],[128,22,128,23],[128,24,128,25],[128,33,128,36],[125,10,125,11],[125,12,125,13],[125,14,125,15],[125,16,125,17],[125,20,125,21],[126,10,126,11],[127,10,127,11],[83,81,83,82],[83,84,83,85],[83,87,83,88],[83,90,83,91],[83,93,83,94],[83,96,83,97],[82,72,82,73],[129,22,129,23],[129,24,129,25],[129,33,129,36],[97,38,97,40],[92,24,92,25],[92,33,92,36],[90,24,90,25],[90,33,90,36],[96,33,96,36],[97,33,97,36],[88,24,88,25],[88,33,88,36],[80,132,80,133],[82,132,82,133],[6,135,6,137],[7,135,7,137],[8,135,8,137],[80,135,80,136],[82,135,82,136],[80,129,80,130],[82,126,82,127],[82,129,82,130],[6,138,6,140],[6,141,6,143],[6,147,6,149],[126,22,126,23],[127,22,127,23],[126,24,126,25],[127,24,127,25],[126,33,126,36],[127,33,127,36],[125,24,125,25],[125,33,125,36],[123,24,123,25],[123,33,123,36],[125,22,125,23],[124,22,124,23],[124,24,124,25],[124,33,124,36],[122,24,122,25],[122,33,122,36],[98,24,98,25],[98,33,98,36],[99,24,99,25],[99,33,99,36],[82,108,82,109],[139,0,139,2],[139,3,139,4],[140,0,140,2],[140,3,140,4],[141,0,141,2],[141,3,141,4],[137,0,137,2],[137,3,137,4],[137,6,137,7],[137,18,137,21],[138,0,138,2],[138,3,138,4],[135,20,135,21],[135,22,135,23],[135,24,135,25],[135,33,135,36],[136,0,136,2],[136,3,136,4],[135,0,135,2],[135,10,135,11],[135,12,135,13],[135,14,135,15],[135,16,135,17],[135,18,135,19],[126,12,126,13],[127,12,127,13],[126,14,126,15],[127,14,127,15],[126,16,126,17],[127,16,127,17],[126,20,126,21],[127,20,127,21],[124,10,124,11],[124,12,124,13],[124,14,124,15],[124,16,124,17],[124,20,124,21],[123,10,123,11],[123,12,123,13],[123,14,123,15],[123,16,123,17],[123,20,123,21],[123,22,123,23],[122,10,122,11],[122,12,122,13],[122,14,122,15],[122,16,122,17],[122,20,122,21],[122,22,122,23],[121,10,121,11],[121,12,121,13],[121,14,121,15],[121,16,121,17],[121,20,121,21],[121,22,121,23],[121,24,121,25],[121,33,121,36],[120,10,120,11],[120,12,120,13],[120,14,120,15],[120,16,120,17],[120,20,120,21],[120,22,120,23],[120,24,120,25],[120,33,120,36],[119,10,119,11],[119,12,119,13],[119,14,119,15],[119,16,119,17],[119,20,119,21],[119,22,119,23],[119,24,119,25],[119,33,119,36],[118,10,118,11],[118,12,118,13],[118,14,118,15],[118,16,118,17],[118,20,118,21],[118,22,118,23],[118,24,118,25],[118,33,118,36],[117,10,117,11],[117,12,117,13],[117,14,117,15],[117,16,117,17],[117,20,117,21],[117,22,117,23],[117,24,117,25],[117,33,117,36],[116,10,116,11],[116,12,116,13],[116,14,116,15],[116,16,116,17],[116,20,116,21],[116,22,116,23],[116,24,116,25],[116,33,116,36],[115,10,115,11],[115,12,115,13],[115,14,115,15],[115,16,115,17],[115,20,115,21],[115,22,115,23],[115,24,115,25],[115,33,115,36],[114,10,114,11],[114,12,114,13],[114,14,114,15],[114,16,114,17],[114,20,114,21],[114,22,114,23],[114,24,114,25],[114,33,114,36],[113,10,113,11],[113,12,113,13],[113,14,113,15],[113,16,113,17],[113,20,113,21],[113,22,113,23],[113,24,113,25],[113,33,113,36],[112,10,112,11],[112,12,112,13],[112,14,112,15],[112,16,112,17],[112,20,112,21],[112,22,112,23],[112,24,112,25],[112,33,112,36],[111,10,111,11],[111,12,111,13],[111,14,111,15],[111,16,111,17],[111,20,111,21],[111,22,111,23],[111,24,111,25],[111,33,111,36],[110,10,110,11],[110,12,110,13],[110,14,110,15],[110,16,110,17],[110,20,110,21],[110,22,110,23],[110,24,110,25],[110,33,110,36],[109,10,109,11],[109,12,109,13],[109,14,109,15],[109,16,109,17],[109,20,109,21],[109,22,109,23],[109,24,109,25],[109,33,109,36],[108,10,108,11],[108,12,108,13],[108,14,108,15],[108,16,108,17],[108,20,108,21],[108,22,108,23],[108,24,108,25],[108,33,108,36],[107,10,107,11],[107,12,107,13],[107,14,107,15],[107,16,107,17],[107,20,107,21],[107,22,107,23],[107,24,107,25],[107,33,107,36],[106,10,106,11],[106,12,106,13],[106,14,106,15],[106,16,106,17],[106,20,106,21],[106,22,106,23],[106,24,106,25],[106,33,106,36],[105,10,105,11],[105,12,105,13],[105,14,105,15],[105,16,105,17],[105,20,105,21],[105,22,105,23],[105,24,105,25],[105,33,105,36],[104,10,104,11],[104,12,104,13],[104,14,104,15],[104,16,104,17],[104,20,104,21],[104,22,104,23],[104,24,104,25],[104,33,104,36],[103,10,103,11],[103,12,103,13],[103,14,103,15],[103,16,103,17],[103,20,103,21],[103,22,103,23],[103,24,103,25],[103,33,103,36],[102,10,102,11],[102,12,102,13],[102,14,102,15],[102,16,102,17],[102,20,102,21],[102,22,102,23],[102,24,102,25],[102,33,102,36],[101,10,101,11],[101,12,101,13],[101,14,101,15],[101,16,101,17],[101,20,101,21],[101,22,101,23],[101,24,101,25],[101,33,101,36],[100,10,100,11],[100,12,100,13],[100,14,100,15],[100,16,100,17],[100,20,100,21],[100,22,100,23],[100,24,100,25],[100,33,100,36],[99,10,99,11],[99,12,99,13],[99,14,99,15],[99,16,99,17],[99,20,99,21],[99,22,99,23],[98,10,98,11],[98,12,98,13],[98,14,98,15],[98,16,98,17],[98,20,98,21],[98,22,98,23],[97,10,97,11],[97,12,97,13],[97,14,97,15],[97,16,97,17],[97,20,97,21],[97,22,97,23],[97,24,97,25],[96,10,96,11],[96,12,96,13],[96,14,96,15],[96,16,96,17],[96,20,96,21],[96,22,96,23],[96,24,96,25],[95,10,95,11],[95,12,95,13],[95,14,95,15],[95,16,95,17],[95,20,95,21],[95,22,95,23],[95,24,95,25],[95,33,95,36],[94,10,94,11],[94,12,94,13],[94,14,94,15],[94,16,94,17],[94,20,94,21],[94,22,94,23],[94,24,94,25],[94,33,94,36],[93,10,93,11],[93,12,93,13],[93,14,93,15],[93,16,93,17],[93,20,93,21],[93,22,93,23],[93,24,93,25],[93,33,93,36],[92,10,92,11],[92,12,92,13],[92,14,92,15],[92,16,92,17],[92,20,92,21],[92,22,92,23],[91,10,91,11],[91,12,91,13],[91,14,91,15],[91,16,91,17],[91,20,91,21],[91,22,91,23],[91,24,91,25],[91,33,91,36],[90,10,90,11],[90,12,90,13],[90,14,90,15],[90,16,90,17],[90,20,90,21],[90,22,90,23],[87,33,87,36],[86,10,86,11],[86,12,86,13],[86,14,86,15],[86,16,86,17],[86,20,86,21],[86,22,86,23],[89,10,89,11],[89,12,89,13],[89,14,89,15],[89,16,89,17],[89,20,89,21],[89,22,89,23],[89,24,89,25],[89,33,89,36],[88,10,88,11],[88,12,88,13],[88,14,88,15],[88,16,88,17],[88,20,88,21],[88,22,88,23],[86,24,86,25],[86,33,86,36],[83,150,83,153],[83,99,83,100],[83,102,83,103],[83,105,83,106],[83,108,83,109],[83,111,83,112],[83,114,83,115],[83,126,83,127],[83,129,83,130],[83,132,83,133],[83,135,83,136],[83,117,83,118],[83,120,83,121],[83,123,83,124],[82,75,82,76],[82,78,82,79],[82,81,82,82],[82,84,82,85],[82,87,82,88],[82,99,82,100],[82,102,82,103],[82,105,82,106],[82,63,82,64],[82,66,82,67],[82,69,82,70],[82,90,82,91],[82,93,82,94],[82,96,82,97],[83,0,83,5],[83,6,83,7],[83,9,83,10],[83,12,83,13],[83,15,83,16],[83,18,83,19],[83,21,83,22],[83,24,83,25],[83,54,83,55],[83,27,83,28],[82,36,82,37],[83,30,83,31],[83,33,83,34],[83,36,83,37],[82,39,82,40],[82,42,82,43],[83,45,83,46],[83,48,83,49],[83,51,83,52],[83,39,83,40],[83,42,83,43],[82,54,82,55],[82,57,82,58],[82,60,82,61],[81,0,81,2],[81,3,81,5],[81,150,82,153],[82,0,82,2],[82,3,82,4],[82,6,82,7],[82,9,82,10],[82,12,82,13],[82,15,82,16],[82,45,82,46],[82,48,82,49],[82,51,82,52],[82,18,82,19],[82,21,82,22],[82,24,82,25],[82,27,82,28],[82,30,82,31],[82,33,82,34],[82,111,82,112],[82,114,82,115],[82,117,82,118],[82,120,82,121],[82,123,82,124],[80,111,80,112],[80,114,80,115],[80,117,80,118],[80,120,80,121],[80,123,80,124],[80,93,80,94],[80,96,80,97],[80,99,80,100],[80,102,80,103],[80,105,80,106],[80,108,80,109],[80,36,80,37],[80,75,80,76],[80,78,80,79],[80,81,80,82],[80,84,80,85],[80,87,80,88],[80,90,80,91],[80,57,80,58],[80,60,80,61],[80,63,80,64],[80,66,80,67],[80,69,80,70],[80,72,80,73],[6,0,8,0],[6,1,8,1],[80,0,80,5],[80,6,80,7],[80,9,80,10],[80,12,80,13],[80,15,80,16],[80,18,80,19],[8,117,8,119],[8,54,8,56],[8,57,8,59],[8,60,8,62],[8,27,8,29],[8,30,8,32],[8,33,8,35],[8,36,8,38],[8,39,8,41],[8,42,8,44],[8,9,8,11],[8,12,8,14],[8,15,8,17],[8,18,8,20],[8,21,8,23],[8,24,8,26],[6,129,6,131],[7,126,7,128],[7,129,7,131],[8,126,8,128],[8,129,8,131],[6,126,6,128],[6,84,6,86],[6,132,6,134],[79,0,79,5],[8,99,8,101],[8,102,8,104],[8,105,8,107],[8,108,8,110],[8,111,8,113],[8,114,8,116],[8,81,8,83],[8,84,8,86],[8,87,8,89],[8,90,8,92],[8,93,8,95],[8,96,8,98],[8,63,8,65],[8,66,8,68],[8,69,8,71],[7,120,7,122],[7,123,7,125],[7,150,8,150],[7,151,8,151],[7,102,7,104],[7,105,7,107],[7,108,7,110],[7,111,7,113],[7,114,7,116],[7,117,7,119],[8,120,8,122],[8,123,8,125],[7,132,7,134],[8,132,8,134],[6,152,8,152],[6,153,8,153],[7,6,7,8],[7,9,7,11],[7,12,7,14],[7,15,7,17],[7,18,7,20],[7,21,7,23],[7,24,7,26],[7,27,7,29],[6,117,6,119],[6,120,6,122],[6,123,6,125],[6,150,6,151],[6,99,6,101],[6,102,6,104],[6,105,6,107],[6,108,6,110],[6,93,6,95],[6,96,6,98],[6,63,6,65],[6,111,6,113],[6,114,6,116],[6,81,6,83],[6,2,8,2],[6,3,8,3],[6,4,8,4],[6,6,6,8],[8,6,8,8],[6,45,6,47],[6,48,6,50],[7,48,7,50],[6,39,6,41],[6,42,6,44],[7,30,7,32],[7,33,7,35],[7,36,7,38],[7,39,7,41],[7,42,7,44],[7,45,7,47],[8,45,8,47],[8,48,8,50],[4,26,4,29],[4,30,4,31],[4,32,4,34],[4,35,4,36],[6,9,6,11],[6,12,6,14],[6,15,6,17],[6,18,6,20],[6,21,6,23],[6,24,6,26],[6,27,6,29],[6,30,6,32],[6,33,6,35],[6,36,6,38],[3,41,3,44],[3,46,3,48],[3,49,3,51],[3,54,3,56],[3,57,3,60],[4,0,4,1],[4,2,4,3],[4,4,4,5],[4,6,4,12],[4,14,4,16],[3,17,3,19],[3,22,3,25],[3,26,3,29],[3,30,3,33],[3,34,3,37],[3,38,3,40],[4,38,4,40],[4,41,4,44],[4,46,4,48],[4,49,4,51],[4,54,4,56],[4,57,4,60],[4,17,4,19],[4,22,4,25],[3,0,3,1],[3,2,3,3],[3,4,3,5],[3,6,3,12],[3,14,3,16],[2,17,2,19],[2,22,2,25],[2,26,2,29],[2,30,2,33],[0,38,0,40],[0,41,0,44],[0,46,0,48],[0,54,0,56],[0,57,0,60],[2,0,2,1],[2,2,2,3],[2,4,2,5],[2,6,2,12],[2,14,2,16],[0,0,0,12],[0,14,0,16],[0,17,0,23],[0,30,0,33],[0,34,0,35],[0,36,0,37],[2,41,2,44],[2,46,2,48],[2,49,2,51],[2,54,2,56],[2,57,2,60],[2,34,2,37],[2,38,2,40],[7,96,7,98],[7,99,7,101],[6,51,6,53],[6,60,6,62],[6,87,6,89],[6,90,6,92],[7,84,7,86],[7,87,7,89],[7,90,7,92],[7,66,7,68],[7,69,7,71],[7,72,7,74],[6,66,6,68],[7,75,7,77],[7,78,7,80],[7,81,7,83],[6,69,6,71],[6,72,6,74],[6,75,6,77],[6,78,6,80],[6,54,6,56],[6,57,6,59],[131,24,131,25],[131,10,131,11],[131,20,131,21],[7,51,7,53],[7,54,7,56],[7,57,7,59],[7,60,7,62],[7,63,7,65],[7,93,7,95],[8,72,8,74],[8,75,8,77],[8,78,8,80],[8,51,8,53],[80,39,80,40],[80,42,80,43],[80,45,80,46],[80,48,80,49],[80,51,80,52],[80,54,80,55],[80,21,80,22],[80,24,80,25],[80,27,80,28],[80,30,80,31],[80,33,80,34],[83,147,83,148],[130,22,130,23],[130,24,130,25],[130,33,130,36],[130,10,130,11],[130,12,130,13],[130,14,130,15],[130,16,130,17],[130,20,130,21],[83,63,83,64],[83,66,83,67],[83,69,83,70],[83,72,83,73],[83,75,83,76],[83,78,83,79],[83,57,83,58],[83,60,83,61],[87,10,87,11],[87,12,87,13],[87,14,87,15],[87,16,87,17],[87,20,87,21],[87,22,87,23],[87,24,87,25],[7,147,7,149],[8,138,8,140],[8,141,8,143],[8,147,8,149],[80,138,80,139],[80,141,80,142],[80,147,80,148],[82,138,82,139],[82,141,82,142],[82,147,82,148],[132,10,132,11],[134,10,134,11],[131,12,131,13],[132,12,132,13],[134,12,134,13],[131,14,131,15],[132,14,132,15],[134,14,134,15],[131,16,131,17],[132,16,132,17],[134,16,134,17],[133,10,133,11],[133,12,133,13],[133,14,133,15],[133,16,133,17],[132,20,132,21],[134,20,134,21],[131,22,131,23],[132,22,132,23],[134,22,134,23],[6,144,6,146],[7,144,7,146],[8,144,8,146],[80,144,80,145],[82,144,82,145],[83,144,83,145],[133,20,133,21],[133,22,133,23],[133,24,133,25],[133,33,133,36],[132,24,132,25],[134,24,134,25],[131,33,131,36],[132,33,132,36],[134,33,134,36],[7,138,7,140],[7,141,7,143],[83,138,83,139],[83,141,83,142]]}
[":::: รายงานการขายประจำวัน (Sale Daily Report)  ::::",null,null,null,null,null,null,null,null,null,null,null,null,null,"Print Date : ",null,null,{"$f":"NOW()","v":"2025-04-24T22:39:10.140"},null,null,null,null,null,null,null,null,null,null,null,null,"จำนวนร้าน :",null,null,null,{"$f":"MAX($A$10:$A$79)","v":0},null,"ร้าน",null,"เป้ายอดขาย :",null,null,null,null,null,null,null,{"$f":"C3","v":45780},null,null,{"$f":"LEFT('Problems & Solutions'!$B$2,FIND(\"|\",'Problems & Solutions'!$B$2))&\" วันที่\"&TEXT($C$3,\"[$-107041E] d mmmm yyyy;@\")","v":"ขั้นตอนการตรวจรีพอร์ตขาย | วันที่ 3 พฤษภาคม 2568"},null,null,null,null,"เวลากลับ :"]
[]
["วันที่ :",null,{"$f":"DATE(ใส่ข้อมูล!G2-543,ใส่ข้อมูล!V2,ActiveSheetName)","v":"2025-05-03"},null,"พนักงานขาย",null,{"$f":"INDEX(OFFSET(Sale_Region,,1),ActiveSheetName)","v":0},null,null,null,null,null,null,null,"รวมยอดเบิก :",null,null,{"$f":"E136","v":0},null,null,"ชิ้น",null,"ใหญ่สด(40)",null,null,null,{"$f":"Cash_Major_Bill","v":0},null,null,null,"ใหญ่เชื่อ(42)",null,null,null,{"$f":"Credit_Major_Bill","v":0},null,null,null,"บิลใหญ่ :",null,null,{"$f":"AA3+AI3","v":0},null,null,null,null,"เติมน้ำมัน :",null,null,null,null,null,"บาท",null,"ไมล์ออก :",null,null,{"$f":"เลขไมล์ออก","v":0},null,null,null,"Km"]
["เขตการขาย :",null,{"$f":"INDEX(Sale_Region,ActiveSheetName)","v":0},null,"ผช.ขาย",null,{"$f":"INDEX(OFFSET(Sale_Region,,2),ActiveSheetName)","v":0},null,null,null,null,null,null,null,"ของเหลือ :",null,null,{"$f":"F136","v":0},null,null,"ชิ้น",null,"เล็กสด(41)",null,null,null,{"$f":"Cash_Minor_Bill","v":0},null,null,null,"เล็กเชื่อ(43)",null,null,null,{"$f":"Credit_Minor_Bill","v":0},null,null,null,"บิลเล็ก :",null,null,{"$f":"AA4+AI4","v":0},null,null,null,null,"จำนวนลิตร :",null,null,null,null,null,"ลิตร",null,"ไมล์เข้า :",null,null,null,null,null,null,"Km"]
["สายส่ง :",null,{"$f":"\"Sale \"&ใส่ข้อมูล!E3&\"-\"&ใส่ข้อมูล!G3","v":"Sale KB-01"},null,"พนักงานเสริม",null,{"$f":"INDEX(OFFSET(Sale_Region,,3),ActiveSheetName)","v":0},null,null,null,null,null,null,null,"ของเสีย :",null,null,{"$f":"G136","v":0},null,null,"ชิ้น",null,"น้ำหนักของเสีย",null,null,null,null,null,null,null,"Kg.",null,"%ของเสีย",null,null,{"$f":"IF(Order_Cal=0,0,ROUND(Waste_Cal*100/Order_Cal,2))","v":0},null,"%","VAT :",null,null,{"$f":"EW81","v":0},null,null,null,null,"ต้นทุนสาขา :",null,null,{"$f":"SUMPRODUCT((($A$88:$A$135)-($A$88:$A$135)*0.45)*(($E$88:$E$135)-($G$88:$G$135)))","v":0},null,null,"บาท",null,"ระยะทาง :",null,null,{"$f":"IF(OR($BF$4=0,$BF$3=0),0,$BF$4-$BF$3)","v":0},null,null,null,"Km"]
[]
["No","รหัสร้าน (CustNo)","ชื่อร้าน (Store Name)","เวลาเข้าร้าน","ระยะเวลาระหว่างร้าน","บิล(Invoice)",{"$f":"INDEX(INDIRECT(\"dProduct[ProductName]\"),ROUNDUP(COLUMNS($G:G)/3,0))","v":"ขนมปังหมูหยองน้ำสลัด"},null,null,{"$f":"INDEX(INDIRECT(\"dProduct[ProductName]\"),ROUNDUP(COLUMNS($G:J)/3,0))","v":"ขนมปังหมูหยองน้ำพริกเผา"},null,null,{"$f":"INDEX(INDIRECT(\"dProduct[ProductName]\"),ROUNDUP(COLUMNS($G:M)/3,0))","v":"ขนมปังไก่หยองน้ำสลัด"},null,null,{"$f":"INDEX(INDIRECT(\"dProduct[ProductName]\"),ROUNDUP(COLUMNS($G:P)/3,0))","v":"ขนมปังไส้ครีมสลัด"},null,null,{"$f":"INDEX(INDIRECT(\"dProduct[ProductName]\"),ROUNDUP(COLUMNS($G:S)/3,0))","v":"ขนมปังเนยสด"},null,null,{"$f":"INDEX(INDIRECT(\"dProduct[ProductName]\"),ROUNDUP(COLUMNS($G:V)/3,0))","v":"ขนมปังไส้สังขยาเล็ก"},null,null,{"$f":"INDEX(INDIRECT(\"dProduct[ProductName]\"),ROUNDUP(COLUMNS($G:Y)/3,0))","v":"ขนมปังไส้เผือก"},null,null,{"$f":"INDEX(INDIRECT(\"dProduct[ProductName]\"),ROUNDUP(COLUMNS($G:AB)/3,0))","v":"ขนมปังไส้ถั่วแดง"},null,null,{"$f":"INDEX(INDIRECT(\"dProduct[ProductName]\"),ROUNDUP(COLUMNS($G:AE)/3,0))","v":"ขนมปังไส้ถั่วดำ"},null,null,{"$f":"INDEX(INDIRECT(\"dProduct[ProductName]\"),ROUNDUP(COLUMNS($G:AH)/3,0))","v":"ขนมปังไส้มันม่วง"},null,null,{"$f":"INDEX(INDIRECT(\"dProduct[ProductName]\"),ROUNDUP(COLUMNS($G:AK)/3,0))","v":"เค้กกล้วยหอม"},null,null,{"$f":"INDEX(INDIRECT(\"dProduct[ProductName]\"),ROUNDUP(COLUMNS($G:AN)/3,0))","v":"เค้กบัตเตอร์"},null,null,{"$f":"INDEX(INDIRECT(\"dProduct[ProductName]\"),ROUNDUP(COLUMNS($G:AQ)/3,0))","v":"ขนมปังโรลถั่วแดง"},null,null,{"$f":"INDEX(INDIRECT(\"dProduct[ProductName]\"),ROUNDUP(COLUMNS($G:AT)/3,0))","v":"ขนมปังไส้สังขยาใหญ่"},null,null,{"$f":"INDEX(INDIRECT(\"dProduct[ProductName]\"),ROUNDUP(COLUMNS($G:AW)/3,0))","v":"ขนมปังชนิดแผ่น(480กรัม)"},null,null,{"$f":"INDEX(INDIRECT(\"dProduct[ProductName]\"),ROUNDUP(COLUMNS($G:AZ)/3,0))","v":"โมจิไส้ถั่ว"},null,null,{"$f":"INDEX(INDIRECT(\"dProduct[ProductName]\"),ROUNDUP(COLUMNS($G:BC)/3,0))","v":"โมจิไส้เผือก"},null,null,{"$f":"INDEX(INDIRECT(\"dProduct[ProductName]\"),ROUNDUP(COLUMNS($G:BF)/3,0))","v":"โมจิไส้ถั่วไข่เค็ม"},null,null,{"$f":"INDEX(INDIRECT(\"dProduct[ProductName]\"),ROUNDUP(COLUMNS($G:BI)/3,0))","v":"ขนมปังพิซซ่า"},null,null,{"$f":"INDEX(INDIRECT(\"dProduct[ProductName]\"),ROUNDUP(COLUMNS($G:BL)/3,0))","v":"ขนมปังพิซซ่าปูอัดแฮม"},null,null,{"$f":"INDEX(INDIRECT(\"dProduct[ProductName]\"),ROUNDUP(COLUMNS($G:BO)/3,0))","v":"ขนมปังไส้กรอก"},null,null,{"$f":"INDEX(INDIRECT(\"dProduct[ProductName]\"),ROUNDUP(COLUMNS($G:BR)/3,0))","v":"ขนมก้านบัว"},null,null,{"$f":"INDEX(INDIRECT(\"dProduct[ProductName]\"),ROUNDUP(COLUMNS($G:BU)/3,0))","v":"พายสับปะรด"},null,null,{"$f":"INDEX(INDIRECT(\"dProduct[ProductName]\"),ROUNDUP(COLUMNS($G:BX)/3,0))","v":"พายไส้มะพร้าว"},null,null,{"$f":"INDEX(INDIRECT(\"dProduct[ProductName]\"),ROUNDUP(COLUMNS($G:CA)/3,0))","v":"ขนมปังโรลมันเทศ"},null,null,{"$f":"INDEX(INDIRECT(\"dProduct[ProductName]\"),ROUNDUP(COLUMNS($G:CD)/3,0))","v":"ขนมปังไส้ครีมสลัดน้ำพริกเผา"},null,null,{"$f":"INDEX(INDIRECT(\"dProduct[ProductName]\"),ROUNDUP(COLUMNS($G:CG)/3,0))","v":"ขนมปังไส้สังขยาไข่"},null,null,{"$f":"INDEX(INDIRECT(\"dProduct[ProductName]\"),ROUNDUP(COLUMNS($G:CJ)/3,0))","v":"ขนมปังไส้สังขยามะพร้าว"},null,null,{"$f":"INDEX(INDIRECT(\"dProduct[ProductName]\"),ROUNDUP(COLUMNS($G:CM)/3,0))","v":"ขนมปังไส้ครีมชาไทย"},null,null,{"$f":"INDEX(INDIRECT(\"dProduct[ProductName]\"),ROUNDUP(COLUMNS($G:CP)/3,0))","v":"ขนมปังโรลมันม่วง"},null,null,{"$f":"INDEX(INDIRECT(\"dProduct[ProductName]\"),ROUNDUP(COLUMNS($G:CS)/3,0))","v":"ขนมปังโรลช็อกโกแลต"},null,null,{"$f":"INDEX(INDIRECT(\"dProduct[ProductName]\"),ROUNDUP(COLUMNS($G:CV)/3,0))","v":"ขนมปังชนิดแผ่น(155กรัม)"},null,null,{"$f":"INDEX(INDIRECT(\"dProduct[ProductName]\"),ROUNDUP(COLUMNS($G:CY)/3,0))","v":"ขนมปังโรลเผือก"},null,null,{"$f":"INDEX(INDIRECT(\"dProduct[ProductName]\"),ROUNDUP(COLUMNS($G:DB)/3,0))","v":"ขนมปังไก่หยองน้ำสลัด Mini"},null,null,{"$f":"INDEX(INDIRECT(\"dProduct[ProductName]\"),ROUNDUP(COLUMNS($G:DE)/3,0))","v":"ขนมปังไส้ช็อกโกแลต"},null,null,{"$f":"INDEX(INDIRECT(\"dProduct[ProductName]\"),ROUNDUP(COLUMNS($G:DH)/3,0))","v":"ขนมปังไส้ครีมสังขยาไข่"},null,null,{"$f":"INDEX(INDIRECT(\"dProduct[ProductName]\"),ROUNDUP(COLUMNS($G:DK)/3,0))","v":"ขนมปังพิซซ่าฮาวายเอี้ยน"},null,null,{"$f":"INDEX(INDIRECT(\"dProduct[ProductName]\"),ROUNDUP(COLUMNS($G:DN)/3,0))","v":"ครัวซองต์หมูหยองน้ำสลัด"},null,null,{"$f":"INDEX(INDIRECT(\"dProduct[ProductName]\"),ROUNDUP(COLUMNS($G:DQ)/3,0))","v":"แพนเบรดไส้เผือก"},null,null,{"$f":"INDEX(INDIRECT(\"dProduct[ProductName]\"),ROUNDUP(COLUMNS($G:DT)/3,0))","v":"แพนเบรดไส้ถั่วแดง"},null,null,{"$f":"INDEX(INDIRECT(\"dProduct[ProductName]\"),ROUNDUP(COLUMNS($G:DW)/3,0))","v":"ขนมปังกรอบเนยน้ำตาล(30กรัม)"},null,null,{"$f":"INDEX(INDIRECT(\"dProduct[ProductName]\"),ROUNDUP(COLUMNS($G:DZ)/3,0))","v":"ขนมปังชนิดแผ่นโฮลวีต"},null,null,{"$f":"INDEX(INDIRECT(\"dProduct[ProductName]\"),ROUNDUP(COLUMNS($G:EC)/3,0))","v":"เค้กโรลใบเตย"},null,null,{"$f":"INDEX(INDIRECT(\"dProduct[ProductName]\"),ROUNDUP(COLUMNS($G:EF)/3,0))","v":"ขนมโมจิไส้ถั่วดำ"},null,null,{"$f":"INDEX(INDIRECT(\"dProduct[ProductName]\"),ROUNDUP(COLUMNS($G:EI)/3,0))","v":"ครัวซองต์ไส้กรอกชีส"},null,null,{"$f":"INDEX(INDIRECT(\"dProduct[ProductName]\"),ROUNDUP(COLUMNS($G:EL)/3,0))","v":"ขนมเปี๊ยะไส้ถั่ว"},null,null,{"$f":"INDEX(INDIRECT(\"dProduct[ProductName]\"),ROUNDUP(COLUMNS($G:EO)/3,0))","v":"ขนมเปี๊ยะไส้ฟัก"},null,null,{"$f":"INDEX(INDIRECT(\"dProduct[ProductName]\"),ROUNDUP(COLUMNS($G:ER)/3,0))","v":"มังกี้เค้ก"},null,null,"มูลค่าสินค้า",null,"ภาษี","รวมยอดขาย"]
[null,null,null,null,null,"ราคาขาย",{"$f":"IF(G$7=0,0,INDEX(Price_List,ROUNDUP(COLUMNS($G:G)/3,0)))","v":20},null,null,{"$f":"IF(J$7=0,0,INDEX(Price_List,ROUNDUP(COLUMNS($G:J)/3,0)))","v":20},null,null,{"$f":"IF(M$7=0,0,INDEX(Price_List,ROUNDUP(COLUMNS($G:M)/3,0)))","v":20},null,null,{"$f":"IF(P$7=0,0,INDEX(Price_List,ROUNDUP(COLUMNS($G:P)/3,0)))","v":15},null,null,{"$f":"IF(S$7=0,0,INDEX(Price_List,ROUNDUP(COLUMNS($G:S)/3,0)))","v":15},null,null,{"$f":"IF(V$7=0,0,INDEX(Price_List,ROUNDUP(COLUMNS($G:V)/3,0)))","v":10},null,null,{"$f":"IF(Y$7=0,0,INDEX(Price_List,ROUNDUP(COLUMNS($G:Y)/3,0)))","v":10},null,null,{"$f":"IF(AB$7=0,0,INDEX(Price_List,ROUNDUP(COLUMNS($G:AB)/3,0)))","v":10},null,null,{"$f":"IF(AE$7=0,0,INDEX(Price_List,ROUNDUP(COLUMNS($G:AE)/3,0)))","v":10},null,null,{"$f":"IF(AH$7=0,0,INDEX(Price_List,ROUNDUP(COLUMNS($G:AH)/3,0)))","v":10},null,null,{"$f":"IF(AK$7=0,0,INDEX(Price_List,ROUNDUP(COLUMNS($G:AK)/3,0)))","v":15},null,null,{"$f":"IF(AN$7=0,0,INDEX(Price_List,ROUNDUP(COLUMNS($G:AN)/3,0)))","v":15},null,null,{"$f":"IF(AQ$7=0,0,INDEX(Price_List,ROUNDUP(COLUMNS($G:AQ)/3,0)))","v":15},null,null,{"$f":"IF(AT$7=0,0,INDEX(Price_List,ROUNDUP(COLUMNS($G:AT)/3,0)))","v":15},null,null,{"$f":"IF(AW$7=0,0,INDEX(Price_List,ROUNDUP(COLUMNS($G:AW)/3,0)))","v":42},null,null,{"$f":"IF(AZ$7=0,0,INDEX(Price_List,ROUNDUP(COLUMNS($G:AZ)/3,0)))","v":12},null,null,{"$f":"IF(BC$7=0,0,INDEX(Price_List,ROUNDUP(COLUMNS($G:BC)/3,0)))","v":12},null,null,{"$f":"IF(BF$7=0,0,INDEX(Price_List,ROUNDUP(COLUMNS($G:BF)/3,0)))","v":15},null,null,{"$f":"IF(BI$7=0,0,INDEX(Price_List,ROUNDUP(COLUMNS($G:BI)/3,0)))","v":20},null,null,{"$f":"IF(BL$7=0,0,INDEX(Price_List,ROUNDUP(COLUMNS($G:BL)/3,0)))","v":20},null,null,{"$f":"IF(BO$7=0,0,INDEX(Price_List,ROUNDUP(COLUMNS($G:BO)/3,0)))","v":20},null,null,{"$f":"IF(BR$7=0,0,INDEX(Price_List,ROUNDUP(COLUMNS($G:BR)/3,0)))","v":15},null,null,{"$f":"IF(BU$7=0,0,INDEX(Price_List,ROUNDUP(COLUMNS($G:BU)/3,0)))","v":20},null,null,{"$f":"IF(BX$7=0,0,INDEX(Price_List,ROUNDUP(COLUMNS($G:BX)/3,0)))","v":20},null,null,{"$f":"IF(CA$7=0,0,INDEX(Price_List,ROUNDUP(COLUMNS($G:CA)/3,0)))","v":15},null,null,{"$f":"IF(CD$7=0,0,INDEX(Price_List,ROUNDUP(COLUMNS($G:CD)/3,0)))","v":15},null,null,{"$f":"IF(CG$7=0,0,INDEX(Price_List,ROUNDUP(COLUMNS($G:CG)/3,0)))","v":20},null,null,{"$f":"IF(CJ$7=0,0,INDEX(Price_List,ROUNDUP(COLUMNS($G:CJ)/3,0)))","v":20},null,null,{"$f":"IF(CM$7=0,0,INDEX(Price_List,ROUNDUP(COLUMNS($G:CM)/3,0)))","v":10},null,null,{"$f":"IF(CP$7=0,0,INDEX(Price_List,ROUNDUP(COLUMNS($G:CP)/3,0)))","v":15},null,null,{"$f":"IF(CS$7=0,0,INDEX(Price_List,ROUNDUP(COLUMNS($G:CS)/3,0)))","v":15},null,null,{"$f":"IF(CV$7=0,0,INDEX(Price_List,ROUNDUP(COLUMNS($G:CV)/3,0)))","v":16},null,null,{"$f":"IF(CY$7=0,0,INDEX(Price_List,ROUNDUP(COLUMNS($G:CY)/3,0)))","v":15},null,null,{"$f":"IF(DB$7=0,0,INDEX(Price_List,ROUNDUP(COLUMNS($G:DB)/3,0)))","v":15},null,null,{"$f":"IF(DE$7=0,0,INDEX(Price_List,ROUNDUP(COLUMNS($G:DE)/3,0)))","v":10},null,null,{"$f":"IF(DH$7=0,0,INDEX(Price_List,ROUNDUP(COLUMNS($G:DH)/3,0)))","v":10},null,null,{"$f":"IF(DK$7=0,0,INDEX(Price_List,ROUNDUP(COLUMNS($G:DK)/3,0)))","v":20},null,null,{"$f":"IF(DN$7=0,0,INDEX(Price_List,ROUNDUP(COLUMNS($G:DN)/3,0)))","v":20},null,null,{"$f":"IF(DQ$7=0,0,INDEX(Price_List,ROUNDUP(COLUMNS($G:DQ)/3,0)))","v":15},null,null,{"$f":"IF(DT$7=0,0,INDEX(Price_List,ROUNDUP(COLUMNS($G:DT)/3,0)))","v":15},null,null,{"$f":"IF(DW$7=0,0,INDEX(Price_List,ROUNDUP(COLUMNS($G:DW)/3,0)))","v":12},null,null,{"$f":"IF(DZ$7=0,0,INDEX(Price_List,ROUNDUP(COLUMNS($G:DZ)/3,0)))","v":18},null,null,{"$f":"IF(EC$7=0,0,INDEX(Price_List,ROUNDUP(COLUMNS($G:EC)/3,0)))","v":12},null,null,{"$f":"IF(EF$7=0,0,INDEX(Price_List,ROUNDUP(COLUMNS($G:EF)/3,0)))","v":12},null,null,{"$f":"IF(EI$7=0,0,INDEX(Price_List,ROUNDUP(COLUMNS($G:EI)/3,0)))","v":25},null,null,{"$f":"IF(EL$7=0,0,INDEX(Price_List,ROUNDUP(COLUMNS($G:EL)/3,0)))","v":12},null,null,{"$f":"IF(EO$7=0,0,INDEX(Price_List,ROUNDUP(COLUMNS($G:EO)/3,0)))","v":12},null,null,{"$f":"IF(ER$7=0,0,INDEX(Price_List,ROUNDUP(COLUMNS($G:ER)/3,0)))","v":12},null,null,"เงินเชื่อ","เงินสด"]
[null,null,null,null,null,"คงเหลือ(ตามบัญชี)",{"$f":"IF(G$7=0,0,INDEX(INDIRECT(Order_Rng),ROUNDUP(COLUMNS($G:G)/3,0)))","v":0},null,null,{"$f":"IF(J$7=0,0,INDEX(INDIRECT(Order_Rng),ROUNDUP(COLUMNS($G:J)/3,0)))","v":0},null,null,{"$f":"IF(M$7=0,0,INDEX(INDIRECT(Order_Rng),ROUNDUP(COLUMNS($G:M)/3,0)))","v":0},null,null,{"$f":"IF(P$7=0,0,INDEX(INDIRECT(Order_Rng),ROUNDUP(COLUMNS($G:P)/3,0)))","v":0},null,null,{"$f":"IF(S$7=0,0,INDEX(INDIRECT(Order_Rng),ROUNDUP(COLUMNS($G:S)/3,0)))","v":0},null,null,{"$f":"IF(V$7=0,0,INDEX(INDIRECT(Order_Rng),ROUNDUP(COLUMNS($G:V)/3,0)))","v":0},null,null,{"$f":"IF(Y$7=0,0,INDEX(INDIRECT(Order_Rng),ROUNDUP(COLUMNS($G:Y)/3,0)))","v":0},null,null,{"$f":"IF(AB$7=0,0,INDEX(INDIRECT(Order_Rng),ROUNDUP(COLUMNS($G:AB)/3,0)))","v":0},null,null,{"$f":"IF(AE$7=0,0,INDEX(INDIRECT(Order_Rng),ROUNDUP(COLUMNS($G:AE)/3,0)))","v":0},null,null,{"$f":"IF(AH$7=0,0,INDEX(INDIRECT(Order_Rng),ROUNDUP(COLUMNS($G:AH)/3,0)))","v":0},null,null,{"$f":"IF(AK$7=0,0,INDEX(INDIRECT(Order_Rng),ROUNDUP(COLUMNS($G:AK)/3,0)))","v":0},null,null,{"$f":"IF(AN$7=0,0,INDEX(INDIRECT(Order_Rng),ROUNDUP(COLUMNS($G:AN)/3,0)))","v":0},null,null,{"$f":"IF(AQ$7=0,0,INDEX(INDIRECT(Order_Rng),ROUNDUP(COLUMNS($G:AQ)/3,0)))","v":0},null,null,{"$f":"IF(AT$7=0,0,INDEX(INDIRECT(Order_Rng),ROUNDUP(COLUMNS($G:AT)/3,0)))","v":0},null,null,{"$f":"IF(AW$7=0,0,INDEX(INDIRECT(Order_Rng),ROUNDUP(COLUMNS($G:AW)/3,0)))","v":0},null,null,{"$f":"IF(AZ$7=0,0,INDEX(INDIRECT(Order_Rng),ROUNDUP(COLUMNS($G:AZ)/3,0)))","v":0},null,null,{"$f":"IF(BC$7=0,0,INDEX(INDIRECT(Order_Rng),ROUNDUP(COLUMNS($G:BC)/3,0)))","v":0},null,null,{"$f":"IF(BF$7=0,0,INDEX(INDIRECT(Order_Rng),ROUNDUP(COLUMNS($G:BF)/3,0)))","v":0},null,null,{"$f":"IF(BI$7=0,0,INDEX(INDIRECT(Order_Rng),ROUNDUP(COLUMNS($G:BI)/3,0)))","v":0},null,null,{"$f":"IF(BL$7=0,0,INDEX(INDIRECT(Order_Rng),ROUNDUP(COLUMNS($G:BL)/3,0)))","v":0},null,null,{"$f":"IF(BO$7=0,0,INDEX(INDIRECT(Order_Rng),ROUNDUP(COLUMNS($G:BO)/3,0)))","v":0},null,null,{"$f":"IF(BR$7=0,0,INDEX(INDIRECT(Order_Rng),ROUNDUP(COLUMNS($G:BR)/3,0)))","v":0},null,null,{"$f":"IF(BU$7=0,0,INDEX(INDIRECT(Order_Rng),ROUNDUP(COLUMNS($G:BU)/3,0)))","v":0},null,null,{"$f":"IF(BX$7=0,0,INDEX(INDIRECT(Order_Rng),ROUNDUP(COLUMNS($G:BX)/3,0)))","v":0},null,null,{"$f":"IF(CA$7=0,0,INDEX(INDIRECT(Order_Rng),ROUNDUP(COLUMNS($G:CA)/3,0)))","v":0},null,null,{"$f":"IF(CD$7=0,0,INDEX(INDIRECT(Order_Rng),ROUNDUP(COLUMNS($G:CD)/3,0)))","v":0},null,null,{"$f":"IF(CG$7=0,0,INDEX(INDIRECT(Order_Rng),ROUNDUP(COLUMNS($G:CG)/3,0)))","v":0},null,null,{"$f":"IF(CJ$7=0,0,INDEX(INDIRECT(Order_Rng),ROUNDUP(COLUMNS($G:CJ)/3,0)))","v":0},null,null,{"$f":"IF(CM$7=0,0,INDEX(INDIRECT(Order_Rng),ROUNDUP(COLUMNS($G:CM)/3,0)))","v":0},null,null,{"$f":"IF(CP$7=0,0,INDEX(INDIRECT(Order_Rng),ROUNDUP(COLUMNS($G:CP)/3,0)))","v":0},null,null,{"$f":"IF(CS$7=0,0,INDEX(INDIRECT(Order_Rng),ROUNDUP(COLUMNS($G:CS)/3,0)))","v":0},null,null,{"$f":"IF(CV$7=0,0,INDEX(INDIRECT(Order_Rng),ROUNDUP(COLUMNS($G:CV)/3,0)))","v":0},null,null,{"$f":"IF(CY$7=0,0,INDEX(INDIRECT(Order_Rng),ROUNDUP(COLUMNS($G:CY)/3,0)))","v":0},null,null,{"$f":"IF(DB$7=0,0,INDEX(INDIRECT(Order_Rng),ROUNDUP(COLUMNS($G:DB)/3,0)))","v":0},null,null,{"$f":"IF(DE$7=0,0,INDEX(INDIRECT(Order_Rng),ROUNDUP(COLUMNS($G:DE)/3,0)))","v":0},null,null,{"$f":"IF(DH$7=0,0,INDEX(INDIRECT(Order_Rng),ROUNDUP(COLUMNS($G:DH)/3,0)))","v":0},null,null,{"$f":"IF(DK$7=0,0,INDEX(INDIRECT(Order_Rng),ROUNDUP(COLUMNS($G:DK)/3,0)))","v":0},null,null,{"$f":"IF(DN$7=0,0,INDEX(INDIRECT(Order_Rng),ROUNDUP(COLUMNS($G:DN)/3,0)))","v":0},null,null,{"$f":"IF(DQ$7=0,0,INDEX(INDIRECT(Order_Rng),ROUNDUP(COLUMNS($G:DQ)/3,0)))","v":0},null,null,{"$f":"IF(DT$7=0,0,INDEX(INDIRECT(Order_Rng),ROUNDUP(COLUMNS($G:DT)/3,0)))","v":0},null,null,{"$f":"IF(DW$7=0,0,INDEX(INDIRECT(Order_Rng),ROUNDUP(COLUMNS($G:DW)/3,0)))","v":0},null,null,{"$f":"IF(DZ$7=0,0,INDEX(INDIRECT(Order_Rng),ROUNDUP(COLUMNS($G:DZ)/3,0)))","v":0},null,null,{"$f":"IF(EC$7=0,0,INDEX(INDIRECT(Order_Rng),ROUNDUP(COLUMNS($G:EC)/3,0)))","v":0},null,null,{"$f":"IF(EF$7=0,0,INDEX(INDIRECT(Order_Rng),ROUNDUP(COLUMNS($G:EF)/3,0)))","v":0},null,null,{"$f":"IF(EI$7=0,0,INDEX(INDIRECT(Order_Rng),ROUNDUP(COLUMNS($G:EI)/3,0)))","v":0},null,null,{"$f":"IF(EL$7=0,0,INDEX(INDIRECT(Order_Rng),ROUNDUP(COLUMNS($G:EL)/3,0)))","v":0},null,null,{"$f":"IF(EO$7=0,0,INDEX(INDIRECT(Order_Rng),ROUNDUP(COLUMNS($G:EO)/3,0)))","v":0},null,null,{"$f":"IF(ER$7=0,0,INDEX(INDIRECT(Order_Rng),ROUNDUP(COLUMNS($G:ER)/3,0)))","v":0}]
[{"$f":"IF(OR($B10=\"\",COUNTIF($B$10:$B10,$B10)>1,LEN(TRIM($B10))<>10,ISNUMBER(--MID(TRIM($B10),5,1))),\"-\",MAX(COUNT($A$9:$A9)+1))","v":"-"}]
[{"$f":"IF(OR($B11=\"\",COUNTIF($B$10:$B11,$B11)>1,LEN(TRIM($B11))<>10,ISNUMBER(--MID(TRIM($B11),5,1))),\"-\",MAX(COUNT($A$9:$A10)+1))","v":"-"},null,null,null,{"$f":"IF(D11=\"\",\"\",D11-D10)","v":""}]
[{"$f":"IF(OR($B12=\"\",COUNTIF($B$10:$B12,$B12)>1,LEN(TRIM($B12))<>10,ISNUMBER(--MID(TRIM($B12),5,1))),\"-\",MAX(COUNT($A$9:$A11)+1))","v":"-"},null,null,null,{"$f":"IF(D12=\"\",\"\",D12-D11)","v":""}]
[{"$f":"IF(OR($B13=\"\",COUNTIF($B$10:$B13,$B13)>1,LEN(TRIM($B13))<>10,ISNUMBER(--MID(TRIM($B13),5,1))),\"-\",MAX(COUNT($A$9:$A12)+1))","v":"-"},null,null,null,""]
[{"$f":"IF(OR($B14=\"\",COUNTIF($B$10:$B14,$B14)>1,LEN(TRIM($B14))<>10,ISNUMBER(--MID(TRIM($B14),5,1))),\"-\",MAX(COUNT($A$9:$A13)+1))","v":"-"},null,null,null,""]
[{"$f":"IF(OR($B15=\"\",COUNTIF($B$10:$B15,$B15)>1,LEN(TRIM($B15))<>10,ISNUMBER(--MID(TRIM($B15),5,1))),\"-\",MAX(COUNT($A$9:$A14)+1))","v":"-"},null,null,null,""]
[{"$f":"IF(OR($B16=\"\",COUNTIF($B$10:$B16,$B16)>1,LEN(TRIM($B16))<>10,ISNUMBER(--MID(TRIM($B16),5,1))),\"-\",MAX(COUNT($A$9:$A15)+1))","v":"-"},null,null,null,""]
[{"$f":"IF(OR($B17=\"\",COUNTIF($B$10:$B17,$B17)>1,LEN(TRIM($B17))<>10,ISNUMBER(--MID(TRIM($B17),5,1))),\"-\",MAX(COUNT($A$9:$A16)+1))","v":"-"},null,null,null,""]
[{"$f":"IF(OR($B18=\"\",COUNTIF($B$10:$B18,$B18)>1,LEN(TRIM($B18))<>10,ISNUMBER(--MID(TRIM($B18),5,1))),\"-\",MAX(COUNT($A$9:$A17)+1))","v":"-"},null,null,null,""]
[{"$f":"IF(OR($B19=\"\",COUNTIF($B$10:$B19,$B19)>1,LEN(TRIM($B19))<>10,ISNUMBER(--MID(TRIM($B19),5,1))),\"-\",MAX(COUNT($A$9:$A18)+1))","v":"-"},null,null,null,""]
[{"$f":"IF(OR($B20=\"\",COUNTIF($B$10:$B20,$B20)>1,LEN(TRIM($B20))<>10,ISNUMBER(--MID(TRIM($B20),5,1))),\"-\",MAX(COUNT($A$9:$A19)+1))","v":"-"},null,null,null,""]
[{"$f":"IF(OR($B21=\"\",COUNTIF($B$10:$B21,$B21)>1,LEN(TRIM($B21))<>10,ISNUMBER(--MID(TRIM($B21),5,1))),\"-\",MAX(COUNT($A$9:$A20)+1))","v":"-"},null,null,null,""]
[{"$f":"IF(OR($B22=\"\",COUNTIF($B$10:$B22,$B22)>1,LEN(TRIM($B22))<>10,ISNUMBER(--MID(TRIM($B22),5,1))),\"-\",MAX(COUNT($A$9:$A21)+1))","v":"-"},null,null,null,""]
[{"$f":"IF(OR($B23=\"\",COUNTIF($B$10:$B23,$B23)>1,LEN(TRIM($B23))<>10,ISNUMBER(--MID(TRIM($B23),5,1))),\"-\",MAX(COUNT($A$9:$A22)+1))","v":"-"},null,null,null,""]
[{"$f":"IF(OR($B24=\"\",COUNTIF($B$10:$B24,$B24)>1,LEN(TRIM($B24))<>10,ISNUMBER(--MID(TRIM($B24),5,1))),\"-\",MAX(COUNT($A$9:$A23)+1))","v":"-"},null,null,null,""]
[{"$f":"IF(OR($B25=\"\",COUNTIF($B$10:$B25,$B25)>1,LEN(TRIM($B25))<>10,ISNUMBER(--MID(TRIM($B25),5,1))),\"-\",MAX(COUNT($A$9:$A24)+1))","v":"-"},null,null,null,""]
[{"$f":"IF(OR($B26=\"\",COUNTIF($B$10:$B26,$B26)>1,LEN(TRIM($B26))<>10,ISNUMBER(--MID(TRIM($B26),5,1))),\"-\",MAX(COUNT($A$9:$A25)+1))","v":"-"},null,null,null,""]
[{"$f":"IF(OR($B27=\"\",COUNTIF($B$10:$B27,$B27)>1,LEN(TRIM($B27))<>10,ISNUMBER(--MID(TRIM($B27),5,1))),\"-\",MAX(COUNT($A$9:$A26)+1))","v":"-"},null,null,null,""]
[{"$f":"IF(OR($B28=\"\",COUNTIF($B$10:$B28,$B28)>1,LEN(TRIM($B28))<>10,ISNUMBER(--MID(TRIM($B28),5,1))),\"-\",MAX(COUNT($A$9:$A27)+1))","v":"-"},null,null,null,""]
[{"$f":"IF(OR($B29=\"\",COUNTIF($B$10:$B29,$B29)>1,LEN(TRIM($B29))<>10,ISNUMBER(--MID(TRIM($B29),5,1))),\"-\",MAX(COUNT($A$9:$A28)+1))","v":"-"},null,null,null,""]
[{"$f":"IF(OR($B30=\"\",COUNTIF($B$10:$B30,$B30)>1,LEN(TRIM($B30))<>10,ISNUMBER(--MID(TRIM($B30),5,1))),\"-\",MAX(COUNT($A$9:$A29)+1))","v":"-"},null,null,null,""]
[{"$f":"IF(OR($B31=\"\",COUNTIF($B$10:$B31,$B31)>1,LEN(TRIM($B31))<>10,ISNUMBER(--MID(TRIM($B31),5,1))),\"-\",MAX(COUNT($A$9:$A30)+1))","v":"-"},null,null,null,""]
[{"$f":"IF(OR($B32=\"\",COUNTIF($B$10:$B32,$B32)>1,LEN(TRIM($B32))<>10,ISNUMBER(--MID(TRIM($B32),5,1))),\"-\",MAX(COUNT($A$9:$A31)+1))","v":"-"},null,null,null,""]
[{"$f":"IF(OR($B33=\"\",COUNTIF($B$10:$B33,$B33)>1,LEN(TRIM($B33))<>10,ISNUMBER(--MID(TRIM($B33),5,1))),\"-\",MAX(COUNT($A$9:$A32)+1))","v":"-"},null,null,null,""]
[{"$f":"IF(OR($B34=\"\",COUNTIF($B$10:$B34,$B34)>1,LEN(TRIM($B34))<>10,ISNUMBER(--MID(TRIM($B34),5,1))),\"-\",MAX(COUNT($A$9:$A33)+1))","v":"-"},null,null,null,""]
[{"$f":"IF(OR($B35=\"\",COUNTIF($B$10:$B35,$B35)>1,LEN(TRIM($B35))<>10,ISNUMBER(--MID(TRIM($B35),5,1))),\"-\",MAX(COUNT($A$9:$A34)+1))","v":"-"},null,null,null,""]
[{"$f":"IF(OR($B36=\"\",COUNTIF($B$10:$B36,$B36)>1,LEN(TRIM($B36))<>10,ISNUMBER(--MID(TRIM($B36),5,1))),\"-\",MAX(COUNT($A$9:$A35)+1))","v":"-"},null,null,null,""]
[{"$f":"IF(OR($B37=\"\",COUNTIF($B$10:$B37,$B37)>1,LEN(TRIM($B37))<>10,ISNUMBER(--MID(TRIM($B37),5,1))),\"-\",MAX(COUNT($A$9:$A36)+1))","v":"-"},null,null,null,""]
[{"$f":"IF(OR($B38=\"\",COUNTIF($B$10:$B38,$B38)>1,LEN(TRIM($B38))<>10,ISNUMBER(--MID(TRIM($B38),5,1))),\"-\",MAX(COUNT($A$9:$A37)+1))","v":"-"},null,null,null,""]
[{"$f":"IF(OR($B39=\"\",COUNTIF($B$10:$B39,$B39)>1,LEN(TRIM($B39))<>10,ISNUMBER(--MID(TRIM($B39),5,1))),\"-\",MAX(COUNT($A$9:$A38)+1))","v":"-"},null,null,null,""]
[{"$f":"IF(OR($B40=\"\",COUNTIF($B$10:$B40,$B40)>1,LEN(TRIM($B40))<>10,ISNUMBER(--MID(TRIM($B40),5,1))),\"-\",MAX(COUNT($A$9:$A39)+1))","v":"-"},null,null,null,""]
[{"$f":"IF(OR($B41=\"\",COUNTIF($B$10:$B41,$B41)>1,LEN(TRIM($B41))<>10,ISNUMBER(--MID(TRIM($B41),5,1))),\"-\",MAX(COUNT($A$9:$A40)+1))","v":"-"},null,null,null,""]
[{"$f":"IF(OR($B42=\"\",COUNTIF($B$10:$B42,$B42)>1,LEN(TRIM($B42))<>10,ISNUMBER(--MID(TRIM($B42),5,1))),\"-\",MAX(COUNT($A$9:$A41)+1))","v":"-"},null,null,null,""]
[{"$f":"IF(OR($B43=\"\",COUNTIF($B$10:$B43,$B43)>1,LEN(TRIM($B43))<>10,ISNUMBER(--MID(TRIM($B43),5,1))),\"-\",MAX(COUNT($A$9:$A42)+1))","v":"-"},null,null,null,""]
[{"$f":"IF(OR($B44=\"\",COUNTIF($B$10:$B44,$B44)>1,LEN(TRIM($B44))<>10,ISNUMBER(--MID(TRIM($B44),5,1))),\"-\",MAX(COUNT($A$9:$A43)+1))","v":"-"},null,null,null,""]
[{"$f":"IF(OR($B45=\"\",COUNTIF($B$10:$B45,$B45)>1,LEN(TRIM($B45))<>10,ISNUMBER(--MID(TRIM($B45),5,1))),\"-\",MAX(COUNT($A$9:$A44)+1))","v":"-"},null,null,null,""]
[{"$f":"IF(OR($B46=\"\",COUNTIF($B$10:$B46,$B46)>1,LEN(TRIM($B46))<>10,ISNUMBER(--MID(TRIM($B46),5,1))),\"-\",MAX(COUNT($A$9:$A45)+1))","v":"-"},null,null,null,""]
[{"$f":"IF(OR($B47=\"\",COUNTIF($B$10:$B47,$B47)>1,LEN(TRIM($B47))<>10,ISNUMBER(--MID(TRIM($B47),5,1))),\"-\",MAX(COUNT($A$9:$A46)+1))","v":"-"},null,null,null,""]
[{"$f":"IF(OR($B48=\"\",COUNTIF($B$10:$B48,$B48)>1,LEN(TRIM($B48))<>10,ISNUMBER(--MID(TRIM($B48),5,1))),\"-\",MAX(COUNT($A$9:$A47)+1))","v":"-"},null,null,null,""]
[{"$f":"IF(OR($B49=\"\",COUNTIF($B$10:$B49,$B49)>1,LEN(TRIM($B49))<>10,ISNUMBER(--MID(TRIM($B49),5,1))),\"-\",MAX(COUNT($A$9:$A48)+1))","v":"-"},null,null,null,""]
[{"$f":"IF(OR($B50=\"\",COUNTIF($B$10:$B50,$B50)>1,LEN(TRIM($B50))<>10,ISNUMBER(--MID(TRIM($B50),5,1))),\"-\",MAX(COUNT($A$9:$A49)+1))","v":"-"},null,null,null,""]
[{"$f":"IF(OR($B51=\"\",COUNTIF($B$10:$B51,$B51)>1,LEN(TRIM($B51))<>10,ISNUMBER(--MID(TRIM($B51),5,1))),\"-\",MAX(COUNT($A$9:$A50)+1))","v":"-"},null,null,null,""]
[{"$f":"IF(OR($B52=\"\",COUNTIF($B$10:$B52,$B52)>1,LEN(TRIM($B52))<>10,ISNUMBER(--MID(TRIM($B52),5,1))),\"-\",MAX(COUNT($A$9:$A51)+1))","v":"-"},null,null,null,""]
[{"$f":"IF(OR($B53=\"\",COUNTIF($B$10:$B53,$B53)>1,LEN(TRIM($B53))<>10,ISNUMBER(--MID(TRIM($B53),5,1))),\"-\",MAX(COUNT($A$9:$A52)+1))","v":"-"},null,null,null,""]
[{"$f":"IF(OR($B54=\"\",COUNTIF($B$10:$B54,$B54)>1,LEN(TRIM($B54))<>10,ISNUMBER(--MID(TRIM($B54),5,1))),\"-\",MAX(COUNT($A$9:$A53)+1))","v":"-"},null,null,null,""]
[{"$f":"IF(OR($B55=\"\",COUNTIF($B$10:$B55,$B55)>1,LEN(TRIM($B55))<>10,ISNUMBER(--MID(TRIM($B55),5,1))),\"-\",MAX(COUNT($A$9:$A54)+1))","v":"-"},null,null,null,""]
[{"$f":"IF(OR($B56=\"\",COUNTIF($B$10:$B56,$B56)>1,LEN(TRIM($B56))<>10,ISNUMBER(--MID(TRIM($B56),5,1))),\"-\",MAX(COUNT($A$9:$A55)+1))","v":"-"},null,null,null,""]
[{"$f":"IF(OR($B57=\"\",COUNTIF($B$10:$B57,$B57)>1,LEN(TRIM($B57))<>10,ISNUMBER(--MID(TRIM($B57),5,1))),\"-\",MAX(COUNT($A$9:$A56)+1))","v":"-"},null,null,null,""]
[{"$f":"IF(OR($B58=\"\",COUNTIF($B$10:$B58,$B58)>1,LEN(TRIM($B58))<>10,ISNUMBER(--MID(TRIM($B58),5,1))),\"-\",MAX(COUNT($A$9:$A57)+1))","v":"-"},null,null,null,""]
[{"$f":"IF(OR($B59=\"\",COUNTIF($B$10:$B59,$B59)>1,LEN(TRIM($B59))<>10,ISNUMBER(--MID(TRIM($B59),5,1))),\"-\",MAX(COUNT($A$9:$A58)+1))","v":"-"},null,null,null,""]
[{"$f":"IF(OR($B60=\"\",COUNTIF($B$10:$B60,$B60)>1,LEN(TRIM($B60))<>10,ISNUMBER(--MID(TRIM($B60),5,1))),\"-\",MAX(COUNT($A$9:$A59)+1))","v":"-"},null,null,null,""]
[{"$f":"IF(OR($B61=\"\",COUNTIF($B$10:$B61,$B61)>1,LEN(TRIM($B61))<>10,ISNUMBER(--MID(TRIM($B61),5,1))),\"-\",MAX(COUNT($A$9:$A60)+1))","v":"-"},null,null,null,""]
[{"$f":"IF(OR($B62=\"\",COUNTIF($B$10:$B62,$B62)>1,LEN(TRIM($B62))<>10,ISNUMBER(--MID(TRIM($B62),5,1))),\"-\",MAX(COUNT($A$9:$A61)+1))","v":"-"},null,null,null,""]
[{"$f":"IF(OR($B63=\"\",COUNTIF($B$10:$B63,$B63)>1,LEN(TRIM($B63))<>10,ISNUMBER(--MID(TRIM($B63),5,1))),\"-\",MAX(COUNT($A$9:$A62)+1))","v":"-"},null,null,null,""]
[{"$f":"IF(OR($B64=\"\",COUNTIF($B$10:$B64,$B64)>1,LEN(TRIM($B64))<>10,ISNUMBER(--MID(TRIM($B64),5,1))),\"-\",MAX(COUNT($A$9:$A63)+1))","v":"-"},null,null,null,""]
[{"$f":"IF(OR($B65=\"\",COUNTIF($B$10:$B65,$B65)>1,LEN(TRIM($B65))<>10,ISNUMBER(--MID(TRIM($B65),5,1))),\"-\",MAX(COUNT($A$9:$A64)+1))","v":"-"},null,null,null,""]
[{"$f":"IF(OR($B66=\"\",COUNTIF($B$10:$B66,$B66)>1,LEN(TRIM($B66))<>10,ISNUMBER(--MID(TRIM($B66),5,1))),\"-\",MAX(COUNT($A$9:$A65)+1))","v":"-"},null,null,null,""]
[{"$f":"IF(OR($B67=\"\",COUNTIF($B$10:$B67,$B67)>1,LEN(TRIM($B67))<>10,ISNUMBER(--MID(TRIM($B67),5,1))),\"-\",MAX(COUNT($A$9:$A66)+1))","v":"-"},null,null,null,""]
[{"$f":"IF(OR($B68=\"\",COUNTIF($B$10:$B68,$B68)>1,LEN(TRIM($B68))<>10,ISNUMBER(--MID(TRIM($B68),5,1))),\"-\",MAX(COUNT($A$9:$A67)+1))","v":"-"},null,null,null,""]
[{"$f":"IF(OR($B69=\"\",COUNTIF($B$10:$B69,$B69)>1,LEN(TRIM($B69))<>10,ISNUMBER(--MID(TRIM($B69),5,1))),\"-\",MAX(COUNT($A$9:$A68)+1))","v":"-"},null,null,null,""]
[{"$f":"IF(OR($B70=\"\",COUNTIF($B$10:$B70,$B70)>1,LEN(TRIM($B70))<>10,ISNUMBER(--MID(TRIM($B70),5,1))),\"-\",MAX(COUNT($A$9:$A69)+1))","v":"-"},null,null,null,""]
[{"$f":"IF(OR($B71=\"\",COUNTIF($B$10:$B71,$B71)>1,LEN(TRIM($B71))<>10,ISNUMBER(--MID(TRIM($B71),5,1))),\"-\",MAX(COUNT($A$9:$A70)+1))","v":"-"},null,null,null,""]
[{"$f":"IF(OR($B72=\"\",COUNTIF($B$10:$B72,$B72)>1,LEN(TRIM($B72))<>10,ISNUMBER(--MID(TRIM($B72),5,1))),\"-\",MAX(COUNT($A$9:$A71)+1))","v":"-"},null,null,null,""]
[{"$f":"IF(OR($B73=\"\",COUNTIF($B$10:$B73,$B73)>1,LEN(TRIM($B73))<>10,ISNUMBER(--MID(TRIM($B73),5,1))),\"-\",MAX(COUNT($A$9:$A72)+1))","v":"-"},null,null,null,""]
[{"$f":"IF(OR($B74=\"\",COUNTIF($B$10:$B74,$B74)>1,LEN(TRIM($B74))<>10,ISNUMBER(--MID(TRIM($B74),5,1))),\"-\",MAX(COUNT($A$9:$A73)+1))","v":"-"},null,null,null,""]
[{"$f":"IF(OR($B75=\"\",COUNTIF($B$10:$B75,$B75)>1,LEN(TRIM($B75))<>10,ISNUMBER(--MID(TRIM($B75),5,1))),\"-\",MAX(COUNT($A$9:$A74)+1))","v":"-"},null,null,null,""]
[{"$f":"IF(OR($B76=\"\",COUNTIF($B$10:$B76,$B76)>1,LEN(TRIM($B76))<>10,ISNUMBER(--MID(TRIM($B76),5,1))),\"-\",MAX(COUNT($A$9:$A75)+1))","v":"-"},null,null,null,{"$f":"IF(D76=\"\",\"\",D76-D75)","v":""}]
[{"$f":"IF(OR($B77=\"\",COUNTIF($B$10:$B77,$B77)>1,LEN(TRIM($B77))<>10,ISNUMBER(--MID(TRIM($B77),5,1))),\"-\",MAX(COUNT($A$9:$A76)+1))","v":"-"},null,null,null,""]
[{"$f":"IF(OR($B78=\"\",COUNTIF($B$10:$B78,$B78)>1,LEN(TRIM($B78))<>10,ISNUMBER(--MID(TRIM($B78),5,1))),\"-\",MAX(COUNT($A$9:$A77)+1))","v":"-"},null,null,null,""]
[{"$f":"IF(OR($B79=\"\",COUNTIF($B$10:$B79,$B79)>1,LEN(TRIM($B79))<>10,ISNUMBER(--MID(TRIM($B79),5,1))),\"-\",MAX(COUNT($A$9:$A78)+1))","v":"-"},null,null,null,""]
["รวมของขาย|ของเสีย|เหลือบนเชลฟ์",null,null,null,null,null,{"$f":"SUM(G10:G79)","v":0},0,0,{"$f":"SUM(J10:J79)","v":0},0,0,0,0,0,0,0,0,0,0,0,0,0,0,0,0,0,0,0,0,0,0,0,0,0,0,0,0,0,0,0,0,0,0,0,0,0,0,0,0,0,0,0,0,0,0,0,0,0,0,0,0,0,0,0,0,0,0,0,0,0,0,0,{"$f":"SUM(BV10:BV79)","v":0},0,0,0,0,0,0,0,0,0,0,0,0,0,0,0,0,0,0,0,0,0,0,0,0,0,0,0,0,0,0,0,0,0,0,0,0,0,0,0,0,0,0,0,0,0,0,0,0,0,0,0,0,0,0,0,0,0,0,0,0,0,{"$f":"SUM(EF10:EF79)","v":0},0,0,{"$f":"SUM(EI10:EI79)","v":0},0,0,0,0,0,{"$f":"SUM(EO10:EO79)","v":0},0,0,0,0,0,"รวมเงินเชื่อ","รวมเงินสด","ภาษี","รวมยอดขาย"]
["ของเหลือ",null,null,null,null,null,{"$f":"G80+H80-G9","v":0},null,null,{"$f":"J80+K80-J9","v":0},null,null,{"$f":"M80+N80-M9","v":0},null,null,{"$f":"P80+Q80-P9","v":0},null,null,{"$f":"S80+T80-S9","v":0},null,null,{"$f":"V80+W80-V9","v":0},null,null,{"$f":"Y80+Z80-Y9","v":0},null,null,{"$f":"AB80+AC80-AB9","v":0},null,null,{"$f":"AE80+AF80-AE9","v":0},null,null,{"$f":"AH80+AI80-AH9","v":0},null,null,{"$f":"AK80+AL80-AK9","v":0},null,null,{"$f":"AN80+AO80-AN9","v":0},null,null,{"$f":"AQ80+AR80-AQ9","v":0},null,null,{"$f":"AT80+AU80-AT9","v":0},null,null,{"$f":"AW80+AX80-AW9","v":0},null,null,{"$f":"AZ80+BA80-AZ9","v":0},null,null,{"$f":"BC80+BD80-BC9","v":0},null,null,{"$f":"BF80+BG80-BF9","v":0},null,null,{"$f":"BI80+BJ80-BI9","v":0},null,null,{"$f":"BL80+BM80-BL9","v":0},null,null,{"$f":"BO80+BP80-BO9","v":0},null,null,{"$f":"BR80+BS80-BR9","v":0},null,null,{"$f":"BU80+BV80-BU9","v":0},null,null,{"$f":"BX80+BY80-BX9","v":0},null,null,{"$f":"CA80+CB80-CA9","v":0},null,null,{"$f":"CD80+CE80-CD9","v":0},null,null,{"$f":"CG80+CH80-CG9","v":0},null,null,{"$f":"CJ80+CK80-CJ9","v":0},null,null,{"$f":"CM80+CN80-CM9","v":0},null,null,{"$f":"CP80+CQ80-CP9","v":0},null,null,{"$f":"CS80+CT80-CS9","v":0},null,null,{"$f":"CV80+CW80-CV9","v":0},null,null,{"$f":"CY80+CZ80-CY9","v":0},null,null,{"$f":"DB80+DC80-DB9","v":0},null,null,{"$f":"DE80+DF80-DE9","v":0},null,null,{"$f":"DH80+DI80-DH9","v":0},null,null,{"$f":"DK80+DL80-DK9","v":0},null,null,{"$f":"DN80+DO80-DN9","v":0},null,null,{"$f":"DQ80+DR80-DQ9","v":0},null,null,{"$f":"DT80+DU80-DT9","v":0},null,null,{"$f":"DW80+DX80-DW9","v":0},null,null,{"$f":"DZ80+EA80-DZ9","v":0},null,null,{"$f":"EC80+ED80-EC9","v":0},null,null,{"$f":"EF80+EG80-EF9","v":0},null,null,{"$f":"EI80+EJ80-EI9","v":0},null,null,{"$f":"EL80+EM80-EL9","v":0},null,null,{"$f":"EO80+EP80-EO9","v":0},null,null,{"$f":"ER80+ES80-ER9","v":0},null,null,{"$f":"SUM(EU10:EU79)","v":0},{"$f":"SUM(EV10:EV79)","v":0},{"$f":"SUM(EW10:EW79)","v":0},{"$f":"SUM(EX10:EX79)","v":0}]
["เฉลี่ย",null,null,"เหลือ/เสีย(จริง)",null,null,{"$f":"INDIRECT(\"F\"&ROW($G$87)+ROUNDUP(COLUMNS($G:G)/3,0))","v":0},{"$f":"INDIRECT(\"G\"&ROW($G$87)+ROUNDUP(COLUMNS($G:H)/3,0))","v":0},null,{"$f":"INDIRECT(\"F\"&ROW($G$87)+ROUNDUP(COLUMNS($G:J)/3,0))","v":0},{"$f":"INDIRECT(\"G\"&ROW($G$87)+ROUNDUP(COLUMNS($G:K)/3,0))","v":0},null,{"$f":"INDIRECT(\"F\"&ROW($G$87)+ROUNDUP(COLUMNS($G:M)/3,0))","v":0},{"$f":"INDIRECT(\"G\"&ROW($G$87)+ROUNDUP(COLUMNS($G:N)/3,0))","v":0},null,{"$f":"INDIRECT(\"F\"&ROW($G$87)+ROUNDUP(COLUMNS($G:P)/3,0))","v":0},{"$f":"INDIRECT(\"G\"&ROW($G$87)+ROUNDUP(COLUMNS($G:Q)/3,0))","v":0},null,{"$f":"INDIRECT(\"F\"&ROW($G$87)+ROUNDUP(COLUMNS($G:S)/3,0))","v":0},{"$f":"INDIRECT(\"G\"&ROW($G$87)+ROUNDUP(COLUMNS($G:T)/3,0))","v":0},null,{"$f":"INDIRECT(\"F\"&ROW($G$87)+ROUNDUP(COLUMNS($G:V)/3,0))","v":0},{"$f":"INDIRECT(\"G\"&ROW($G$87)+ROUNDUP(COLUMNS($G:W)/3,0))","v":0},null,{"$f":"INDIRECT(\"F\"&ROW($G$87)+ROUNDUP(COLUMNS($G:Y)/3,0))","v":0},{"$f":"INDIRECT(\"G\"&ROW($G$87)+ROUNDUP(COLUMNS($G:Z)/3,0))","v":0},null,{"$f":"INDIRECT(\"F\"&ROW($G$87)+ROUNDUP(COLUMNS($G:AB)/3,0))","v":0},{"$f":"INDIRECT(\"G\"&ROW($G$87)+ROUNDUP(COLUMNS($G:AC)/3,0))","v":0},null,{"$f":"INDIRECT(\"F\"&ROW($G$87)+ROUNDUP(COLUMNS($G:AE)/3,0))","v":0},{"$f":"INDIRECT(\"G\"&ROW($G$87)+ROUNDUP(COLUMNS($G:AF)/3,0))","v":0},null,{"$f":"INDIRECT(\"F\"&ROW($G$87)+ROUNDUP(COLUMNS($G:AH)/3,0))","v":0},{"$f":"INDIRECT(\"G\"&ROW($G$87)+ROUNDUP(COLUMNS($G:AI)/3,0))","v":0},null,{"$f":"INDIRECT(\"F\"&ROW($G$87)+ROUNDUP(COLUMNS($G:AK)/3,0))","v":0},{"$f":"INDIRECT(\"G\"&ROW($G$87)+ROUNDUP(COLUMNS($G:AL)/3,0))","v":0},null,{"$f":"INDIRECT(\"F\"&ROW($G$87)+ROUNDUP(COLUMNS($G:AN)/3,0))","v":0},{"$f":"INDIRECT(\"G\"&ROW($G$87)+ROUNDUP(COLUMNS($G:AO)/3,0))","v":0},null,{"$f":"INDIRECT(\"F\"&ROW($G$87)+ROUNDUP(COLUMNS($G:AQ)/3,0))","v":0},{"$f":"INDIRECT(\"G\"&ROW($G$87)+ROUNDUP(COLUMNS($G:AR)/3,0))","v":0},null,{"$f":"INDIRECT(\"F\"&ROW($G$87)+ROUNDUP(COLUMNS($G:AT)/3,0))","v":0},{"$f":"INDIRECT(\"G\"&ROW($G$87)+ROUNDUP(COLUMNS($G:AU)/3,0))","v":0},null,{"$f":"INDIRECT(\"F\"&ROW($G$87)+ROUNDUP(COLUMNS($G:AW)/3,0))","v":0},{"$f":"INDIRECT(\"G\"&ROW($G$87)+ROUNDUP(COLUMNS($G:AX)/3,0))","v":0},null,{"$f":"INDIRECT(\"F\"&ROW($G$87)+ROUNDUP(COLUMNS($G:AZ)/3,0))","v":0},{"$f":"INDIRECT(\"G\"&ROW($G$87)+ROUNDUP(COLUMNS($G:BA)/3,0))","v":0},null,{"$f":"INDIRECT(\"F\"&ROW($G$87)+ROUNDUP(COLUMNS($G:BC)/3,0))","v":0},{"$f":"INDIRECT(\"G\"&ROW($G$87)+ROUNDUP(COLUMNS($G:BD)/3,0))","v":0},null,{"$f":"INDIRECT(\"F\"&ROW($G$87)+ROUNDUP(COLUMNS($G:BF)/3,0))","v":0},{"$f":"INDIRECT(\"G\"&ROW($G$87)+ROUNDUP(COLUMNS($G:BG)/3,0))","v":0},null,{"$f":"INDIRECT(\"F\"&ROW($G$87)+ROUNDUP(COLUMNS($G:BI)/3,0))","v":0},{"$f":"INDIRECT(\"G\"&ROW($G$87)+ROUNDUP(COLUMNS($G:BJ)/3,0))","v":0},null,{"$f":"INDIRECT(\"F\"&ROW($G$87)+ROUNDUP(COLUMNS($G:BL)/3,0))","v":0},{"$f":"INDIRECT(\"G\"&ROW($G$87)+ROUNDUP(COLUMNS($G:BM)/3,0))","v":0},null,{"$f":"INDIRECT(\"F\"&ROW($G$87)+ROUNDUP(COLUMNS($G:BO)/3,0))","v":0},{"$f":"INDIRECT(\"G\"&ROW($G$87)+ROUNDUP(COLUMNS($G:BP)/3,0))","v":0},null,{"$f":"INDIRECT(\"F\"&ROW($G$87)+ROUNDUP(COLUMNS($G:BR)/3,0))","v":0},{"$f":"INDIRECT(\"G\"&ROW($G$87)+ROUNDUP(COLUMNS($G:BS)/3,0))","v":0},null,{"$f":"INDIRECT(\"F\"&ROW($G$87)+ROUNDUP(COLUMNS($G:BU)/3,0))","v":0},{"$f":"INDIRECT(\"G\"&ROW($G$87)+ROUNDUP(COLUMNS($G:BV)/3,0))","v":0},null,{"$f":"INDIRECT(\"F\"&ROW($G$87)+ROUNDUP(COLUMNS($G:BX)/3,0))","v":0},{"$f":"INDIRECT(\"G\"&ROW($G$87)+ROUNDUP(COLUMNS($G:BY)/3,0))","v":0},null,{"$f":"INDIRECT(\"F\"&ROW($G$87)+ROUNDUP(COLUMNS($G:CA)/3,0))","v":0},{"$f":"INDIRECT(\"G\"&ROW($G$87)+ROUNDUP(COLUMNS($G:CB)/3,0))","v":0},null,{"$f":"INDIRECT(\"F\"&ROW($G$87)+ROUNDUP(COLUMNS($G:CD)/3,0))","v":0},{"$f":"INDIRECT(\"G\"&ROW($G$87)+ROUNDUP(COLUMNS($G:CE)/3,0))","v":0},null,{"$f":"INDIRECT(\"F\"&ROW($G$87)+ROUNDUP(COLUMNS($G:CG)/3,0))","v":0},{"$f":"INDIRECT(\"G\"&ROW($G$87)+ROUNDUP(COLUMNS($G:CH)/3,0))","v":0},null,{"$f":"INDIRECT(\"F\"&ROW($G$87)+ROUNDUP(COLUMNS($G:CJ)/3,0))","v":0},{"$f":"INDIRECT(\"G\"&ROW($G$87)+ROUNDUP(COLUMNS($G:CK)/3,0))","v":0},null,{"$f":"INDIRECT(\"F\"&ROW($G$87)+ROUNDUP(COLUMNS($G:CM)/3,0))","v":0},{"$f":"INDIRECT(\"G\"&ROW($G$87)+ROUNDUP(COLUMNS($G:CN)/3,0))","v":0},null,{"$f":"INDIRECT(\"F\"&ROW($G$87)+ROUNDUP(COLUMNS($G:CP)/3,0))","v":0},{"$f":"INDIRECT(\"G\"&ROW($G$87)+ROUNDUP(COLUMNS($G:CQ)/3,0))","v":0},null,{"$f":"INDIRECT(\"F\"&ROW($G$87)+ROUNDUP(COLUMNS($G:CS)/3,0))","v":0},{"$f":"INDIRECT(\"G\"&ROW($G$87)+ROUNDUP(COLUMNS($G:CT)/3,0))","v":0},null,{"$f":"INDIRECT(\"F\"&ROW($G$87)+ROUNDUP(COLUMNS($G:CV)/3,0))","v":0},{"$f":"INDIRECT(\"G\"&ROW($G$87)+ROUNDUP(COLUMNS($G:CW)/3,0))","v":0},null,{"$f":"INDIRECT(\"F\"&ROW($G$87)+ROUNDUP(COLUMNS($G:CY)/3,0))","v":0},{"$f":"INDIRECT(\"G\"&ROW($G$87)+ROUNDUP(COLUMNS($G:CZ)/3,0))","v":0},null,{"$f":"INDIRECT(\"F\"&ROW($G$87)+ROUNDUP(COLUMNS($G:DB)/3,0))","v":0},{"$f":"INDIRECT(\"G\"&ROW($G$87)+ROUNDUP(COLUMNS($G:DC)/3,0))","v":0},null,{"$f":"INDIRECT(\"F\"&ROW($G$87)+ROUNDUP(COLUMNS($G:DE)/3,0))","v":0},{"$f":"INDIRECT(\"G\"&ROW($G$87)+ROUNDUP(COLUMNS($G:DF)/3,0))","v":0},null,{"$f":"INDIRECT(\"F\"&ROW($G$87)+ROUNDUP(COLUMNS($G:DH)/3,0))","v":0},{"$f":"INDIRECT(\"G\"&ROW($G$87)+ROUNDUP(COLUMNS($G:DI)/3,0))","v":0},null,{"$f":"INDIRECT(\"F\"&ROW($G$87)+ROUNDUP(COLUMNS($G:DK)/3,0))","v":0},{"$f":"INDIRECT(\"G\"&ROW($G$87)+ROUNDUP(COLUMNS($G:DL)/3,0))","v":0},null,{"$f":"INDIRECT(\"F\"&ROW($G$87)+ROUNDUP(COLUMNS($G:DN)/3,0))","v":0},{"$f":"INDIRECT(\"G\"&ROW($G$87)+ROUNDUP(COLUMNS($G:DO)/3,0))","v":0},null,{"$f":"INDIRECT(\"F\"&ROW($G$87)+ROUNDUP(COLUMNS($G:DQ)/3,0))","v":0},{"$f":"INDIRECT(\"G\"&ROW($G$87)+ROUNDUP(COLUMNS($G:DR)/3,0))","v":0},null,{"$f":"INDIRECT(\"F\"&ROW($G$87)+ROUNDUP(COLUMNS($G:DT)/3,0))","v":0},{"$f":"INDIRECT(\"G\"&ROW($G$87)+ROUNDUP(COLUMNS($G:DU)/3,0))","v":0},null,{"$f":"INDIRECT(\"F\"&ROW($G$87)+ROUNDUP(COLUMNS($G:DW)/3,0))","v":0},{"$f":"INDIRECT(\"G\"&ROW($G$87)+ROUNDUP(COLUMNS($G:DX)/3,0))","v":0},null,{"$f":"INDIRECT(\"F\"&ROW($G$87)+ROUNDUP(COLUMNS($G:DZ)/3,0))","v":0},{"$f":"INDIRECT(\"G\"&ROW($G$87)+ROUNDUP(COLUMNS($G:EA)/3,0))","v":0},null,{"$f":"INDIRECT(\"F\"&ROW($G$87)+ROUNDUP(COLUMNS($G:EC)/3,0))","v":0},{"$f":"INDIRECT(\"G\"&ROW($G$87)+ROUNDUP(COLUMNS($G:ED)/3,0))","v":0},null,{"$f":"INDIRECT(\"F\"&ROW($G$87)+ROUNDUP(COLUMNS($G:EF)/3,0))","v":0},{"$f":"INDIRECT(\"G\"&ROW($G$87)+ROUNDUP(COLUMNS($G:EG)/3,0))","v":0},null,{"$f":"INDIRECT(\"F\"&ROW($G$87)+ROUNDUP(COLUMNS($G:EI)/3,0))","v":0},{"$f":"INDIRECT(\"G\"&ROW($G$87)+ROUNDUP(COLUMNS($G:EJ)/3,0))","v":0},null,{"$f":"INDIRECT(\"F\"&ROW($G$87)+ROUNDUP(COLUMNS($G:EL)/3,0))","v":0},{"$f":"INDIRECT(\"G\"&ROW($G$87)+ROUNDUP(COLUMNS($G:EM)/3,0))","v":0},null,{"$f":"INDIRECT(\"F\"&ROW($G$87)+ROUNDUP(COLUMNS($G:EO)/3,0))","v":0},{"$f":"INDIRECT(\"G\"&ROW($G$87)+ROUNDUP(COLUMNS($G:EP)/3,0))","v":0},null,{"$f":"INDIRECT(\"F\"&ROW($G$87)+ROUNDUP(COLUMNS($G:ER)/3,0))","v":0},{"$f":"INDIRECT(\"G\"&ROW($G$87)+ROUNDUP(COLUMNS($G:ES)/3,0))","v":0},null,{"$f":"EU81+EV81","v":0}]
["เวลากลับถึงสำนักงานเช็คของเสีย",null,null,{"$f":"D139","v":"00:00:00"},null,"ผลต่าง",{"$f":"G82+H82+G80-G9","v":0},null,null,{"$f":"J82+K82+J80-J9","v":0},null,null,{"$f":"M82+N82+M80-M9","v":0},null,null,{"$f":"P82+Q82+P80-P9","v":0},null,null,{"$f":"S82+T82+S80-S9","v":0},null,null,{"$f":"V82+W82+V80-V9","v":0},null,null,{"$f":"Y82+Z82+Y80-Y9","v":0},null,null,{"$f":"AB82+AC82+AB80-AB9","v":0},null,null,{"$f":"AE82+AF82+AE80-AE9","v":0},null,null,{"$f":"AH82+AI82+AH80-AH9","v":0},null,null,{"$f":"AK82+AL82+AK80-AK9","v":0},null,null,{"$f":"AN82+AO82+AN80-AN9","v":0},null,null,{"$f":"AQ82+AR82+AQ80-AQ9","v":0},null,null,{"$f":"AT82+AU82+AT80-AT9","v":0},null,null,{"$f":"AW82+AX82+AW80-AW9","v":0},null,null,{"$f":"AZ82+BA82+AZ80-AZ9","v":0},null,null,{"$f":"BC82+BD82+BC80-BC9","v":0},null,null,{"$f":"BF82+BG82+BF80-BF9","v":0},null,null,{"$f":"BI82+BJ82+BI80-BI9","v":0},null,null,{"$f":"BL82+BM82+BL80-BL9","v":0},null,null,{"$f":"BO82+BP82+BO80-BO9","v":0},null,null,{"$f":"BR82+BS82+BR80-BR9","v":0},null,null,{"$f":"BU82+BV82+BU80-BU9","v":0},null,null,{"$f":"BX82+BY82+BX80-BX9","v":0},null,null,{"$f":"CA82+CB82+CA80-CA9","v":0},null,null,{"$f":"CD82+CE82+CD80-CD9","v":0},null,null,{"$f":"CG82+CH82+CG80-CG9","v":0},null,null,{"$f":"CJ82+CK82+CJ80-CJ9","v":0},null,null,{"$f":"CM82+CN82+CM80-CM9","v":0},null,null,{"$f":"CP82+CQ82+CP80-CP9","v":0},null,null,{"$f":"CS82+CT82+CS80-CS9","v":0},null,null,{"$f":"CV82+CW82+CV80-CV9","v":0},null,null,{"$f":"CY82+CZ82+CY80-CY9","v":0},null,null,{"$f":"DB82+DC82+DB80-DB9","v":0},null,null,{"$f":"DE82+DF82+DE80-DE9","v":0},null,null,{"$f":"DH82+DI82+DH80-DH9","v":0},null,null,{"$f":"DK82+DL82+DK80-DK9","v":0},null,null,{"$f":"DN82+DO82+DN80-DN9","v":0},null,null,{"$f":"DQ82+DR82+DQ80-DQ9","v":0},null,null,{"$f":"DT82+DU82+DT80-DT9","v":0},null,null,{"$f":"DW82+DX82+DW80-DW9","v":0},null,null,{"$f":"DZ82+EA82+DZ80-DZ9","v":0},null,null,{"$f":"EC82+ED82+EC80-EC9","v":0},null,null,{"$f":"EF82+EG82+EF80-EF9","v":0},null,null,{"$f":"EI82+EJ82+EI80-EI9","v":0},null,null,{"$f":"EL82+EM82+EL80-EL9","v":0},null,null,{"$f":"EO82+EP82+EO80-EO9","v":0},null,null,{"$f":"ER82+ES82+ER80-ER9","v":0}]
["เป็นเงิน",null,null,null,null,null,{"$f":"G8*G83","v":0},null,null,{"$f":"J8*J83","v":0},null,null,{"$f":"M8*M83","v":0},null,null,{"$f":"P8*P83","v":0},null,null,{"$f":"S8*S83","v":0},null,null,{"$f":"V8*V83","v":0},null,null,{"$f":"Y8*Y83","v":0},null,null,{"$f":"AB8*AB83","v":0},null,null,{"$f":"AE8*AE83","v":0},null,null,{"$f":"AH8*AH83","v":0},null,null,{"$f":"AK8*AK83","v":0},null,null,{"$f":"AN8*AN83","v":0},null,null,{"$f":"AQ8*AQ83","v":0},null,null,{"$f":"AT8*AT83","v":0},null,null,{"$f":"AW8*AW83","v":0},null,null,{"$f":"AZ8*AZ83","v":0},null,null,{"$f":"BC8*BC83","v":0},null,null,{"$f":"BF8*BF83","v":0},null,null,{"$f":"BI8*BI83","v":0},null,null,{"$f":"BL8*BL83","v":0},null,null,{"$f":"BO8*BO83","v":0},null,null,{"$f":"BR8*BR83","v":0},null,null,{"$f":"BU8*BU83","v":0},null,null,{"$f":"BX8*BX83","v":0},null,null,{"$f":"CA8*CA83","v":0},null,null,{"$f":"CD8*CD83","v":0},null,null,{"$f":"CG8*CG83","v":0},null,null,{"$f":"CJ8*CJ83","v":0},null,null,{"$f":"CM8*CM83","v":0},null,null,{"$f":"CP8*CP83","v":0},null,null,{"$f":"CS8*CS83","v":0},null,null,{"$f":"CV8*CV83","v":0},null,null,{"$f":"CY8*CY83","v":0},null,null,{"$f":"DB8*DB83","v":0},null,null,{"$f":"DE8*DE83","v":0},null,null,{"$f":"DH8*DH83","v":0},null,null,{"$f":"DK8*DK83","v":0},null,null,{"$f":"DN8*DN83","v":0},null,null,{"$f":"DQ8*DQ83","v":0},null,null,{"$f":"DT8*DT83","v":0},null,null,{"$f":"DW8*DW83","v":0},null,null,0,null,null,{"$f":"EC8*EC83","v":0},null,null,{"$f":"EF8*EF83","v":0},null,null,{"$f":"EI8*EI83","v":0},null,null,{"$f":"EL8*EL83","v":0},null,null,{"$f":"EO8*EO83","v":0},null,null,{"$f":"ER8*ER83","v":0},null,null,{"$f":"$AP$98","v":0}]
[null,null,null,"ผู้จัดทำ……………………………………………………………………",null,null,null,null,null,null,null,null,null,null,null,null,null,null,null,null,null,null,null,"ผู้ตรวจ(ผจก.)………………………………………………………………………………."]
[null,null,"ใบจ่ายสินค้า",null,null,null,null,null,null,null,null,null,null,null,null,null,null,{"$f":"IF(ISODD(COLUMN()),MAX($F$86:Q$86)+1,\"\")","v":""}]
["ราคา","ลำดับ","รายการ","ยกมา","เบิก","เหลือ","เสีย","โอนเข้า","โอนออก","ชำรุด","รวม",null,"ขาย",null,"ขาด/เกิน",null,"บาท",null,null,null,"ขายได้",null,"ควรเบิก",null,"หมายเหตุ",null,null,null,"เสีย PDA","เสียจริง","เหลือ PDA","ผลต่าง","เหลือลูกค้า","หมายเหตุ",null,null,null,null,"Price","Quantity","Baht","Deduct"]
[{"$f":"IF(B88=\"\",0,INDEX(Price_List,ROWS($88:88)))","v":20},{"$f":"IF($C88=\"\",\"\",COUNTA($C$88:$C88))","v":1},{"$f":"IF(INDEX(INDIRECT(\"Product_List\"),ROWS($88:88))=\"\",\"\",INDEX(INDIRECT(\"Product_List\"),ROWS($88:88)))","v":"01-ขนมปังหมูหยองน้ำสลัด"},{"$f":"ยอดยกมา","v":0},null,null,null,null,null,null,{"$f":"D88+E88+J88-I88+H88","v":0},null,{"$f":"INDIRECT(ADDRESS(ROW(A$80),ROW()-ROW(A$80)+(ROWS($88:88)-1)*2-1,4))","v":0},null,{"$f":"F88+G88+M88+J88-K88","v":0},null,{"$f":"O88*A88","v":0},null,null,null,{"$f":"D88+E88-F88-G88","v":0},null,{"$f":"U88*6%+U88","v":0},null,null,null,null,null,{"$f":"INDIRECT(ADDRESS(ROW(A$80),ROW()-ROW(A$80)+(ROWS($88:88)-1)*2,4))","v":0},{"$f":"$G88","v":0},null,{"$f":"$F88-$AE88","v":0},{"$f":"INDIRECT(ADDRESS(ROW(A$80),ROW()-ROW(A$80)+(ROWS($88:88)-1)*2+1,4))","v":0},null,null,null,null,null,10,{"$f":"SUMPRODUCT(($A$88:$A$135=$AM88)*(($F$88:$F$135)+($G$88:$G$135)+($M$88:$M$135)+($J$88:$J$135)-($K$88:$K$135)))","v":0},{"$f":"AM88*AN88","v":0},{"$f":"IF(AO88<0,AO88,0)","v":0}]
[{"$f":"IF(B89=\"\",0,INDEX(Price_List,ROWS($88:89)))","v":20},{"$f":"IF($C89=\"\",\"\",COUNTA($C$88:$C89))","v":2},{"$f":"IF(INDEX(INDIRECT(\"Product_List\"),ROWS($88:89))=\"\",\"\",INDEX(INDIRECT(\"Product_List\"),ROWS($88:89)))","v":"02-ขนมปังหมูหยองน้ำพริกเผา"},{"$f":"ยอดยกมา","v":0},null,null,null,null,null,null,{"$f":"D89+E89+J89-I89+H89","v":0},null,{"$f":"INDIRECT(ADDRESS(ROW(A$80),ROW()-ROW(A$80)+(ROWS($88:89)-1)*2-1,4))","v":0},null,{"$f":"F89+G89+M89+J89-K89","v":0},null,{"$f":"O89*A89","v":0},null,null,null,{"$f":"D89+E89-F89-G89","v":0},null,{"$f":"U89*6%+U89","v":0},null,null,null,null,null,{"$f":"INDIRECT(ADDRESS(ROW(A$80),ROW()-ROW(A$80)+(ROWS($88:89)-1)*2,4))","v":0},{"$f":"$G89","v":0},null,{"$f":"$F89-$AE89","v":0},{"$f":"INDIRECT(ADDRESS(ROW(A$80),ROW()-ROW(A$80)+(ROWS($88:89)-1)*2+1,4))","v":0},null,null,null,null,null,12,0,{"$f":"AM89*AN89","v":0},{"$f":"IF(AO89<0,AO89,0)","v":0}]
[{"$f":"IF(B90=\"\",0,INDEX(Price_List,ROWS($88:90)))","v":20},{"$f":"IF($C90=\"\",\"\",COUNTA($C$88:$C90))","v":3},{"$f":"IF(INDEX(INDIRECT(\"Product_List\"),ROWS($88:90))=\"\",\"\",INDEX(INDIRECT(\"Product_List\"),ROWS($88:90)))","v":"03-ขนมปังไก่หยองน้ำสลัด"},{"$f":"ยอดยกมา","v":0},null,null,null,null,null,null,0,null,{"$f":"INDIRECT(ADDRESS(ROW(A$80),ROW()-ROW(A$80)+(ROWS($88:90)-1)*2-1,4))","v":0},null,0,null,0,null,null,null,0,null,0,null,null,null,null,null,{"$f":"INDIRECT(ADDRESS(ROW(A$80),ROW()-ROW(A$80)+(ROWS($88:90)-1)*2,4))","v":0},0,null,0,{"$f":"INDIRECT(ADDRESS(ROW(A$80),ROW()-ROW(A$80)+(ROWS($88:90)-1)*2+1,4))","v":0},null,null,null,null,null,13,0,{"$f":"AM90*AN90","v":0},{"$f":"IF(AO90<0,AO90,0)","v":0}]
[{"$f":"IF(B91=\"\",0,INDEX(Price_List,ROWS($88:91)))","v":15},{"$f":"IF($C91=\"\",\"\",COUNTA($C$88:$C91))","v":4},{"$f":"IF(INDEX(INDIRECT(\"Product_List\"),ROWS($88:91))=\"\",\"\",INDEX(INDIRECT(\"Product_List\"),ROWS($88:91)))","v":"04-ขนมปังไส้ครีมสลัด"},{"$f":"ยอดยกมา","v":0},null,null,null,null,null,null,0,null,{"$f":"INDIRECT(ADDRESS(ROW(A$80),ROW()-ROW(A$80)+(ROWS($88:91)-1)*2-1,4))","v":0},null,{"$f":"F91+G91+M91+J91-K91","v":0},null,0,null,null,null,0,null,0,null,null,null,null,null,{"$f":"INDIRECT(ADDRESS(ROW(A$80),ROW()-ROW(A$80)+(ROWS($88:91)-1)*2,4))","v":0},0,null,0,{"$f":"INDIRECT(ADDRESS(ROW(A$80),ROW()-ROW(A$80)+(ROWS($88:91)-1)*2+1,4))","v":0},null,null,null,null,null,15,0,0,0]
[{"$f":"IF(B92=\"\",0,INDEX(Price_List,ROWS($88:92)))","v":15},{"$f":"IF($C92=\"\",\"\",COUNTA($C$88:$C92))","v":5},{"$f":"IF(INDEX(INDIRECT(\"Product_List\"),ROWS($88:92))=\"\",\"\",INDEX(INDIRECT(\"Product_List\"),ROWS($88:92)))","v":"05-ขนมปังเนยสด"},{"$f":"ยอดยกมา","v":0},null,null,null,null,null,null,0,null,{"$f":"INDIRECT(ADDRESS(ROW(A$80),ROW()-ROW(A$80)+(ROWS($88:92)-1)*2-1,4))","v":0},null,0,null,0,null,null,null,0,null,0,null,null,null,null,null,{"$f":"INDIRECT(ADDRESS(ROW(A$80),ROW()-ROW(A$80)+(ROWS($88:92)-1)*2,4))","v":0},0,null,0,{"$f":"INDIRECT(ADDRESS(ROW(A$80),ROW()-ROW(A$80)+(ROWS($88:92)-1)*2+1,4))","v":0},null,null,null,null,null,16,0,0,0]
[{"$f":"IF(B93=\"\",0,INDEX(Price_List,ROWS($88:93)))","v":10},{"$f":"IF($C93=\"\",\"\",COUNTA($C$88:$C93))","v":6},{"$f":"IF(INDEX(INDIRECT(\"Product_List\"),ROWS($88:93))=\"\",\"\",INDEX(INDIRECT(\"Product_List\"),ROWS($88:93)))","v":"06-ขนมปังไส้สังขยาเล็ก"},{"$f":"ยอดยกมา","v":0},null,null,null,null,null,null,0,null,{"$f":"INDIRECT(ADDRESS(ROW(A$80),ROW()-ROW(A$80)+(ROWS($88:93)-1)*2-1,4))","v":0},null,0,null,0,null,null,null,0,null,0,null,null,null,null,null,{"$f":"INDIRECT(ADDRESS(ROW(A$80),ROW()-ROW(A$80)+(ROWS($88:93)-1)*2,4))","v":0},0,null,0,{"$f":"INDIRECT(ADDRESS(ROW(A$80),ROW()-ROW(A$80)+(ROWS($88:93)-1)*2+1,4))","v":0},null,null,null,null,null,18,0,0,0]
[{"$f":"IF(B94=\"\",0,INDEX(Price_List,ROWS($88:94)))","v":10},{"$f":"IF($C94=\"\",\"\",COUNTA($C$88:$C94))","v":7},{"$f":"IF(INDEX(INDIRECT(\"Product_List\"),ROWS($88:94))=\"\",\"\",INDEX(INDIRECT(\"Product_List\"),ROWS($88:94)))","v":"07-ขนมปังไส้เผือก"},{"$f":"ยอดยกมา","v":0},null,null,null,null,null,null,0,null,{"$f":"INDIRECT(ADDRESS(ROW(A$80),ROW()-ROW(A$80)+(ROWS($88:94)-1)*2-1,4))","v":0},null,0,null,0,null,null,null,0,null,0,null,null,null,null,null,{"$f":"INDIRECT(ADDRESS(ROW(A$80),ROW()-ROW(A$80)+(ROWS($88:94)-1)*2,4))","v":0},0,null,0,{"$f":"INDIRECT(ADDRESS(ROW(A$80),ROW()-ROW(A$80)+(ROWS($88:94)-1)*2+1,4))","v":0},null,null,null,null,null,20,0,0,0]
[{"$f":"IF(B95=\"\",0,INDEX(Price_List,ROWS($88:95)))","v":10},{"$f":"IF($C95=\"\",\"\",COUNTA($C$88:$C95))","v":8},{"$f":"IF(INDEX(INDIRECT(\"Product_List\"),ROWS($88:95))=\"\",\"\",INDEX(INDIRECT(\"Product_List\"),ROWS($88:95)))","v":"08-ขนมปังไส้ถั่วแดง"},{"$f":"ยอดยกมา","v":0},null,null,null,null,null,null,0,null,{"$f":"INDIRECT(ADDRESS(ROW(A$80),ROW()-ROW(A$80)+(ROWS($88:95)-1)*2-1,4))","v":0},null,0,null,0,null,null,null,0,null,0,null,null,null,null,null,{"$f":"INDIRECT(ADDRESS(ROW(A$80),ROW()-ROW(A$80)+(ROWS($88:95)-1)*2,4))","v":0},0,null,0,{"$f":"INDIRECT(ADDRESS(ROW(A$80),ROW()-ROW(A$80)+(ROWS($88:95)-1)*2+1,4))","v":0},null,null,null,null,null,22,0,0,0]
[{"$f":"IF(B96=\"\",0,INDEX(Price_List,ROWS($88:96)))","v":10},{"$f":"IF($C96=\"\",\"\",COUNTA($C$88:$C96))","v":9},{"$f":"IF(INDEX(INDIRECT(\"Product_List\"),ROWS($88:96))=\"\",\"\",INDEX(INDIRECT(\"Product_List\"),ROWS($88:96)))","v":"09-ขนมปังไส้ถั่วดำ"},{"$f":"ยอดยกมา","v":0},null,null,null,null,null,null,0,null,{"$f":"INDIRECT(ADDRESS(ROW(A$80),ROW()-ROW(A$80)+(ROWS($88:96)-1)*2-1,4))","v":0},null,0,null,0,null,null,null,0,null,0,null,null,null,null,null,{"$f":"INDIRECT(ADDRESS(ROW(A$80),ROW()-ROW(A$80)+(ROWS($88:96)-1)*2,4))","v":0},0,null,0,{"$f":"INDIRECT(ADDRESS(ROW(A$80),ROW()-ROW(A$80)+(ROWS($88:96)-1)*2+1,4))","v":0},null,null,null,null,null,25,0,0,0]
[{"$f":"IF(B97=\"\",0,INDEX(Price_List,ROWS($88:97)))","v":10},{"$f":"IF($C97=\"\",\"\",COUNTA($C$88:$C97))","v":10},{"$f":"IF(INDEX(INDIRECT(\"Product_List\"),ROWS($88:97))=\"\",\"\",INDEX(INDIRECT(\"Product_List\"),ROWS($88:97)))","v":"10-ขนมปังไส้มันม่วง"},{"$f":"ยอดยกมา","v":0},null,null,null,null,null,null,0,null,{"$f":"INDIRECT(ADDRESS(ROW(A$80),ROW()-ROW(A$80)+(ROWS($88:97)-1)*2-1,4))","v":0},null,0,null,0,null,null,null,0,null,0,null,null,null,null,null,{"$f":"INDIRECT(ADDRESS(ROW(A$80),ROW()-ROW(A$80)+(ROWS($88:97)-1)*2,4))","v":0},0,null,0,{"$f":"INDIRECT(ADDRESS(ROW(A$80),ROW()-ROW(A$80)+(ROWS($88:97)-1)*2+1,4))","v":0},null,null,null,null,null,42,0,0,0]
[{"$f":"IF(B98=\"\",0,INDEX(Price_List,ROWS($88:98)))","v":15},{"$f":"IF($C98=\"\",\"\",COUNTA($C$88:$C98))","v":11},{"$f":"IF(INDEX(INDIRECT(\"Product_List\"),ROWS($88:98))=\"\",\"\",INDEX(INDIRECT(\"Product_List\"),ROWS($88:98)))","v":"11-เค้กกล้วยหอม"},{"$f":"ยอดยกมา","v":0},null,null,null,null,null,null,0,null,{"$f":"INDIRECT(ADDRESS(ROW(A$80),ROW()-ROW(A$80)+(ROWS($88:98)-1)*2-1,4))","v":0},null,0,null,0,null,null,null,0,null,0,null,null,null,null,null,{"$f":"INDIRECT(ADDRESS(ROW(A$80),ROW()-ROW(A$80)+(ROWS($88:98)-1)*2,4))","v":0},0,null,0,{"$f":"INDIRECT(ADDRESS(ROW(A$80),ROW()-ROW(A$80)+(ROWS($88:98)-1)*2+1,4))","v":0},null,null,null,null,null,"Total Deduct",null,null,{"$f":"SUM($AP$88:$AP$97)","v":0}]
[{"$f":"IF(B99=\"\",0,INDEX(Price_List,ROWS($88:99)))","v":15},{"$f":"IF($C99=\"\",\"\",COUNTA($C$88:$C99))","v":12},{"$f":"IF(INDEX(INDIRECT(\"Product_List\"),ROWS($88:99))=\"\",\"\",INDEX(INDIRECT(\"Product_List\"),ROWS($88:99)))","v":"12-เค้กบัตเตอร์"},{"$f":"ยอดยกมา","v":0},null,null,null,null,null,null,0,null,{"$f":"INDIRECT(ADDRESS(ROW(A$80),ROW()-ROW(A$80)+(ROWS($88:99)-1)*2-1,4))","v":0},null,0,null,0,null,null,null,0,null,0,null,null,null,null,null,{"$f":"INDIRECT(ADDRESS(ROW(A$80),ROW()-ROW(A$80)+(ROWS($88:99)-1)*2,4))","v":0},0,null,0,{"$f":"INDIRECT(ADDRESS(ROW(A$80),ROW()-ROW(A$80)+(ROWS($88:99)-1)*2+1,4))","v":0}]
[{"$f":"IF(B100=\"\",0,INDEX(Price_List,ROWS($88:100)))","v":15},{"$f":"IF($C100=\"\",\"\",COUNTA($C$88:$C100))","v":13},{"$f":"IF(INDEX(INDIRECT(\"Product_List\"),ROWS($88:100))=\"\",\"\",INDEX(INDIRECT(\"Product_List\"),ROWS($88:100)))","v":"13-ขนมปังโรลถั่วแดง"},{"$f":"ยอดยกมา","v":0},null,null,null,null,null,null,0,null,{"$f":"INDIRECT(ADDRESS(ROW(A$80),ROW()-ROW(A$80)+(ROWS($88:100)-1)*2-1,4))","v":0},null,0,null,0,null,null,null,0,null,0,null,null,null,null,null,{"$f":"INDIRECT(ADDRESS(ROW(A$80),ROW()-ROW(A$80)+(ROWS($88:100)-1)*2,4))","v":0},0,null,0,{"$f":"INDIRECT(ADDRESS(ROW(A$80),ROW()-ROW(A$80)+(ROWS($88:100)-1)*2+1,4))","v":0}]
[{"$f":"IF(B101=\"\",0,INDEX(Price_List,ROWS($88:101)))","v":15},{"$f":"IF($C101=\"\",\"\",COUNTA($C$88:$C101))","v":14},{"$f":"IF(INDEX(INDIRECT(\"Product_List\"),ROWS($88:101))=\"\",\"\",INDEX(INDIRECT(\"Product_List\"),ROWS($88:101)))","v":"14-ขนมปังไส้สังขยาใหญ่"},{"$f":"ยอดยกมา","v":0},null,null,null,null,null,null,0,null,{"$f":"INDIRECT(ADDRESS(ROW(A$80),ROW()-ROW(A$80)+(ROWS($88:101)-1)*2-1,4))","v":0},null,0,null,0,null,null,null,0,null,0,null,null,null,null,null,{"$f":"INDIRECT(ADDRESS(ROW(A$80),ROW()-ROW(A$80)+(ROWS($88:101)-1)*2,4))","v":0},0,null,0,{"$f":"INDIRECT(ADDRESS(ROW(A$80),ROW()-ROW(A$80)+(ROWS($88:101)-1)*2+1,4))","v":0}]
[{"$f":"IF(B102=\"\",0,INDEX(Price_List,ROWS($88:102)))","v":42},{"$f":"IF($C102=\"\",\"\",COUNTA($C$88:$C102))","v":15},{"$f":"IF(INDEX(INDIRECT(\"Product_List\"),ROWS($88:102))=\"\",\"\",INDEX(INDIRECT(\"Product_List\"),ROWS($88:102)))","v":"15-ขนมปังชนิดแผ่น(480กรัม)"},{"$f":"ยอดยกมา","v":0},null,null,null,null,null,null,0,null,{"$f":"INDIRECT(ADDRESS(ROW(A$80),ROW()-ROW(A$80)+(ROWS($88:102)-1)*2-1,4))","v":0},null,0,null,0,null,null,null,0,null,0,null,null,null,null,null,{"$f":"INDIRECT(ADDRESS(ROW(A$80),ROW()-ROW(A$80)+(ROWS($88:102)-1)*2,4))","v":0},0,null,0,{"$f":"INDIRECT(ADDRESS(ROW(A$80),ROW()-ROW(A$80)+(ROWS($88:102)-1)*2+1,4))","v":0}]
[{"$f":"IF(B103=\"\",0,INDEX(Price_List,ROWS($88:103)))","v":12},{"$f":"IF($C103=\"\",\"\",COUNTA($C$88:$C103))","v":16},{"$f":"IF(INDEX(INDIRECT(\"Product_List\"),ROWS($88:103))=\"\",\"\",INDEX(INDIRECT(\"Product_List\"),ROWS($88:103)))","v":"16-โมจิไส้ถั่ว"},{"$f":"ยอดยกมา","v":0},null,null,null,null,null,null,0,null,{"$f":"INDIRECT(ADDRESS(ROW(A$80),ROW()-ROW(A$80)+(ROWS($88:103)-1)*2-1,4))","v":0},null,0,null,0,null,null,null,0,null,0,null,null,null,null,null,{"$f":"INDIRECT(ADDRESS(ROW(A$80),ROW()-ROW(A$80)+(ROWS($88:103)-1)*2,4))","v":0},0,null,0,{"$f":"INDIRECT(ADDRESS(ROW(A$80),ROW()-ROW(A$80)+(ROWS($88:103)-1)*2+1,4))","v":0}]
[{"$f":"IF(B104=\"\",0,INDEX(Price_List,ROWS($88:104)))","v":12},{"$f":"IF($C104=\"\",\"\",COUNTA($C$88:$C104))","v":17},{"$f":"IF(INDEX(INDIRECT(\"Product_List\"),ROWS($88:104))=\"\",\"\",INDEX(INDIRECT(\"Product_List\"),ROWS($88:104)))","v":"17-โมจิไส้เผือก"},{"$f":"ยอดยกมา","v":0},null,null,null,null,null,null,0,null,{"$f":"INDIRECT(ADDRESS(ROW(A$80),ROW()-ROW(A$80)+(ROWS($88:104)-1)*2-1,4))","v":0},null,0,null,0,null,null,null,0,null,0,null,null,null,null,null,{"$f":"INDIRECT(ADDRESS(ROW(A$80),ROW()-ROW(A$80)+(ROWS($88:104)-1)*2,4))","v":0},0,null,0,{"$f":"INDIRECT(ADDRESS(ROW(A$80),ROW()-ROW(A$80)+(ROWS($88:104)-1)*2+1,4))","v":0}]
[{"$f":"IF(B105=\"\",0,INDEX(Price_List,ROWS($88:105)))","v":15},{"$f":"IF($C105=\"\",\"\",COUNTA($C$88:$C105))","v":18},{"$f":"IF(INDEX(INDIRECT(\"Product_List\"),ROWS($88:105))=\"\",\"\",INDEX(INDIRECT(\"Product_List\"),ROWS($88:105)))","v":"18-โมจิไส้ถั่วไข่เค็ม"},{"$f":"ยอดยกมา","v":0},null,null,null,null,null,null,0,null,{"$f":"INDIRECT(ADDRESS(ROW(A$80),ROW()-ROW(A$80)+(ROWS($88:105)-1)*2-1,4))","v":0},null,0,null,0,null,null,null,0,null,0,null,null,null,null,null,{"$f":"INDIRECT(ADDRESS(ROW(A$80),ROW()-ROW(A$80)+(ROWS($88:105)-1)*2,4))","v":0},0,null,0,{"$f":"INDIRECT(ADDRESS(ROW(A$80),ROW()-ROW(A$80)+(ROWS($88:105)-1)*2+1,4))","v":0}]
[{"$f":"IF(B106=\"\",0,INDEX(Price_List,ROWS($88:106)))","v":20},{"$f":"IF($C106=\"\",\"\",COUNTA($C$88:$C106))","v":19},{"$f":"IF(INDEX(INDIRECT(\"Product_List\"),ROWS($88:106))=\"\",\"\",INDEX(INDIRECT(\"Product_List\"),ROWS($88:106)))","v":"19-ขนมปังพิซซ่า"},{"$f":"ยอดยกมา","v":0},null,null,null,null,null,null,0,null,{"$f":"INDIRECT(ADDRESS(ROW(A$80),ROW()-ROW(A$80)+(ROWS($88:106)-1)*2-1,4))","v":0},null,0,null,0,null,null,null,0,null,0,null,null,null,null,null,{"$f":"INDIRECT(ADDRESS(ROW(A$80),ROW()-ROW(A$80)+(ROWS($88:106)-1)*2,4))","v":0},0,null,0,{"$f":"INDIRECT(ADDRESS(ROW(A$80),ROW()-ROW(A$80)+(ROWS($88:106)-1)*2+1,4))","v":0}]
[{"$f":"IF(B107=\"\",0,INDEX(Price_List,ROWS($88:107)))","v":20},{"$f":"IF($C107=\"\",\"\",COUNTA($C$88:$C107))","v":20},{"$f":"IF(INDEX(INDIRECT(\"Product_List\"),ROWS($88:107))=\"\",\"\",INDEX(INDIRECT(\"Product_List\"),ROWS($88:107)))","v":"20-ขนมปังพิซซ่าปูอัดแฮม"},{"$f":"ยอดยกมา","v":0},null,null,null,null,null,null,0,null,{"$f":"INDIRECT(ADDRESS(ROW(A$80),ROW()-ROW(A$80)+(ROWS($88:107)-1)*2-1,4))","v":0},null,0,null,0,null,null,null,0,null,0,null,null,null,null,null,{"$f":"INDIRECT(ADDRESS(ROW(A$80),ROW()-ROW(A$80)+(ROWS($88:107)-1)*2,4))","v":0},0,null,0,{"$f":"INDIRECT(ADDRESS(ROW(A$80),ROW()-ROW(A$80)+(ROWS($88:107)-1)*2+1,4))","v":0}]
[{"$f":"IF(B108=\"\",0,INDEX(Price_List,ROWS($88:108)))","v":20},{"$f":"IF($C108=\"\",\"\",COUNTA($C$88:$C108))","v":21},{"$f":"IF(INDEX(INDIRECT(\"Product_List\"),ROWS($88:108))=\"\",\"\",INDEX(INDIRECT(\"Product_List\"),ROWS($88:108)))","v":"21-ขนมปังไส้กรอก"},{"$f":"ยอดยกมา","v":0},null,null,null,null,null,null,0,null,{"$f":"INDIRECT(ADDRESS(ROW(A$80),ROW()-ROW(A$80)+(ROWS($88:108)-1)*2-1,4))","v":0},null,0,null,0,null,null,null,0,null,0,null,null,null,null,null,{"$f":"INDIRECT(ADDRESS(ROW(A$80),ROW()-ROW(A$80)+(ROWS($88:108)-1)*2,4))","v":0},0,null,0,{"$f":"INDIRECT(ADDRESS(ROW(A$80),ROW()-ROW(A$80)+(ROWS($88:108)-1)*2+1,4))","v":0}]
[{"$f":"IF(B109=\"\",0,INDEX(Price_List,ROWS($88:109)))","v":15},{"$f":"IF($C109=\"\",\"\",COUNTA($C$88:$C109))","v":22},{"$f":"IF(INDEX(INDIRECT(\"Product_List\"),ROWS($88:109))=\"\",\"\",INDEX(INDIRECT(\"Product_List\"),ROWS($88:109)))","v":"22-ขนมก้านบัว"},{"$f":"ยอดยกมา","v":0},null,null,null,null,null,null,0,null,{"$f":"INDIRECT(ADDRESS(ROW(A$80),ROW()-ROW(A$80)+(ROWS($88:109)-1)*2-1,4))","v":0},null,0,null,0,null,null,null,0,null,0,null,null,null,null,null,{"$f":"INDIRECT(ADDRESS(ROW(A$80),ROW()-ROW(A$80)+(ROWS($88:109)-1)*2,4))","v":0},0,null,0,{"$f":"INDIRECT(ADDRESS(ROW(A$80),ROW()-ROW(A$80)+(ROWS($88:109)-1)*2+1,4))","v":0}]
[{"$f":"IF(B110=\"\",0,INDEX(Price_List,ROWS($88:110)))","v":20},{"$f":"IF($C110=\"\",\"\",COUNTA($C$88:$C110))","v":23},{"$f":"IF(INDEX(INDIRECT(\"Product_List\"),ROWS($88:110))=\"\",\"\",INDEX(INDIRECT(\"Product_List\"),ROWS($88:110)))","v":"23-พายสับปะรด"},{"$f":"ยอดยกมา","v":0},null,null,null,null,null,null,0,null,{"$f":"INDIRECT(ADDRESS(ROW(A$80),ROW()-ROW(A$80)+(ROWS($88:110)-1)*2-1,4))","v":0},null,0,null,0,null,null,null,0,null,0,null,null,null,null,null,{"$f":"INDIRECT(ADDRESS(ROW(A$80),ROW()-ROW(A$80)+(ROWS($88:110)-1)*2,4))","v":0},0,null,0,{"$f":"INDIRECT(ADDRESS(ROW(A$80),ROW()-ROW(A$80)+(ROWS($88:110)-1)*2+1,4))","v":0}]
[{"$f":"IF(B111=\"\",0,INDEX(Price_List,ROWS($88:111)))","v":20},{"$f":"IF($C111=\"\",\"\",COUNTA($C$88:$C111))","v":24},{"$f":"IF(INDEX(INDIRECT(\"Product_List\"),ROWS($88:111))=\"\",\"\",INDEX(INDIRECT(\"Product_List\"),ROWS($88:111)))","v":"24-พายไส้มะพร้าว"},{"$f":"ยอดยกมา","v":0},null,null,null,null,null,null,0,null,{"$f":"INDIRECT(ADDRESS(ROW(A$80),ROW()-ROW(A$80)+(ROWS($88:111)-1)*2-1,4))","v":0},null,0,null,0,null,null,null,0,null,0,null,null,null,null,null,{"$f":"INDIRECT(ADDRESS(ROW(A$80),ROW()-ROW(A$80)+(ROWS($88:111)-1)*2,4))","v":0},0,null,0,{"$f":"INDIRECT(ADDRESS(ROW(A$80),ROW()-ROW(A$80)+(ROWS($88:111)-1)*2+1,4))","v":0}]
[{"$f":"IF(B112=\"\",0,INDEX(Price_List,ROWS($88:112)))","v":15},{"$f":"IF($C112=\"\",\"\",COUNTA($C$88:$C112))","v":25},{"$f":"IF(INDEX(INDIRECT(\"Product_List\"),ROWS($88:112))=\"\",\"\",INDEX(INDIRECT(\"Product_List\"),ROWS($88:112)))","v":"25-ขนมปังโรลมันเทศ"},{"$f":"ยอดยกมา","v":0},null,null,null,null,null,null,0,null,{"$f":"INDIRECT(ADDRESS(ROW(A$80),ROW()-ROW(A$80)+(ROWS($88:112)-1)*2-1,4))","v":0},null,0,null,0,null,null,null,0,null,0,null,null,null,null,null,{"$f":"INDIRECT(ADDRESS(ROW(A$80),ROW()-ROW(A$80)+(ROWS($88:112)-1)*2,4))","v":0},0,null,0,{"$f":"INDIRECT(ADDRESS(ROW(A$80),ROW()-ROW(A$80)+(ROWS($88:112)-1)*2+1,4))","v":0}]
[{"$f":"IF(B113=\"\",0,INDEX(Price_List,ROWS($88:113)))","v":15},{"$f":"IF($C113=\"\",\"\",COUNTA($C$88:$C113))","v":26},{"$f":"IF(INDEX(INDIRECT(\"Product_List\"),ROWS($88:113))=\"\",\"\",INDEX(INDIRECT(\"Product_List\"),ROWS($88:113)))","v":"26-ขนมปังไส้ครีมสลัดน้ำพริกเผา"},{"$f":"ยอดยกมา","v":0},null,null,null,null,null,null,0,null,{"$f":"INDIRECT(ADDRESS(ROW(A$80),ROW()-ROW(A$80)+(ROWS($88:113)-1)*2-1,4))","v":0},null,0,null,0,null,null,null,0,null,0,null,null,null,null,null,{"$f":"INDIRECT(ADDRESS(ROW(A$80),ROW()-ROW(A$80)+(ROWS($88:113)-1)*2,4))","v":0},0,null,0,{"$f":"INDIRECT(ADDRESS(ROW(A$80),ROW()-ROW(A$80)+(ROWS($88:113)-1)*2+1,4))","v":0}]
[{"$f":"IF(B114=\"\",0,INDEX(Price_List,ROWS($88:114)))","v":20},{"$f":"IF($C114=\"\",\"\",COUNTA($C$88:$C114))","v":27},{"$f":"IF(INDEX(INDIRECT(\"Product_List\"),ROWS($88:114))=\"\",\"\",INDEX(INDIRECT(\"Product_List\"),ROWS($88:114)))","v":"27-ขนมปังไส้สังขยาไข่"},{"$f":"ยอดยกมา","v":0},null,null,null,null,null,null,0,null,{"$f":"INDIRECT(ADDRESS(ROW(A$80),ROW()-ROW(A$80)+(ROWS($88:114)-1)*2-1,4))","v":0},null,0,null,0,null,null,null,0,null,0,null,null,null,null,null,{"$f":"INDIRECT(ADDRESS(ROW(A$80),ROW()-ROW(A$80)+(ROWS($88:114)-1)*2,4))","v":0},0,null,0,{"$f":"INDIRECT(ADDRESS(ROW(A$80),ROW()-ROW(A$80)+(ROWS($88:114)-1)*2+1,4))","v":0}]
[{"$f":"IF(B115=\"\",0,INDEX(Price_List,ROWS($88:115)))","v":20},{"$f":"IF($C115=\"\",\"\",COUNTA($C$88:$C115))","v":28},{"$f":"IF(INDEX(INDIRECT(\"Product_List\"),ROWS($88:115))=\"\",\"\",INDEX(INDIRECT(\"Product_List\"),ROWS($88:115)))","v":"28-ขนมปังไส้สังขยามะพร้าว"},{"$f":"ยอดยกมา","v":0},null,null,null,null,null,null,0,null,{"$f":"INDIRECT(ADDRESS(ROW(A$80),ROW()-ROW(A$80)+(ROWS($88:115)-1)*2-1,4))","v":0},null,0,null,0,null,null,null,0,null,0,null,null,null,null,null,{"$f":"INDIRECT(ADDRESS(ROW(A$80),ROW()-ROW(A$80)+(ROWS($88:115)-1)*2,4))","v":0},0,null,0,{"$f":"INDIRECT(ADDRESS(ROW(A$80),ROW()-ROW(A$80)+(ROWS($88:115)-1)*2+1,4))","v":0}]
[{"$f":"IF(B116=\"\",0,INDEX(Price_List,ROWS($88:116)))","v":10},{"$f":"IF($C116=\"\",\"\",COUNTA($C$88:$C116))","v":29},{"$f":"IF(INDEX(INDIRECT(\"Product_List\"),ROWS($88:116))=\"\",\"\",INDEX(INDIRECT(\"Product_List\"),ROWS($88:116)))","v":"29-ขนมปังไส้ครีมชาไทย"},{"$f":"ยอดยกมา","v":0},null,null,null,null,null,null,0,null,{"$f":"INDIRECT(ADDRESS(ROW(A$80),ROW()-ROW(A$80)+(ROWS($88:116)-1)*2-1,4))","v":0},null,0,null,0,null,null,null,0,null,0,null,null,null,null,null,{"$f":"INDIRECT(ADDRESS(ROW(A$80),ROW()-ROW(A$80)+(ROWS($88:116)-1)*2,4))","v":0},0,null,0,{"$f":"INDIRECT(ADDRESS(ROW(A$80),ROW()-ROW(A$80)+(ROWS($88:116)-1)*2+1,4))","v":0}]
[{"$f":"IF(B117=\"\",0,INDEX(Price_List,ROWS($88:117)))","v":15},{"$f":"IF($C117=\"\",\"\",COUNTA($C$88:$C117))","v":30},{"$f":"IF(INDEX(INDIRECT(\"Product_List\"),ROWS($88:117))=\"\",\"\",INDEX(INDIRECT(\"Product_List\"),ROWS($88:117)))","v":"30-ขนมปังโรลมันม่วง"},{"$f":"ยอดยกมา","v":0},null,null,null,null,null,null,0,null,{"$f":"INDIRECT(ADDRESS(ROW(A$80),ROW()-ROW(A$80)+(ROWS($88:117)-1)*2-1,4))","v":0},null,0,null,0,null,null,null,0,null,0,null,null,null,null,null,{"$f":"INDIRECT(ADDRESS(ROW(A$80),ROW()-ROW(A$80)+(ROWS($88:117)-1)*2,4))","v":0},0,null,0,{"$f":"INDIRECT(ADDRESS(ROW(A$80),ROW()-ROW(A$80)+(ROWS($88:117)-1)*2+1,4))","v":0}]
[{"$f":"IF(B118=\"\",0,INDEX(Price_List,ROWS($88:118)))","v":15},{"$f":"IF($C118=\"\",\"\",COUNTA($C$88:$C118))","v":31},{"$f":"IF(INDEX(INDIRECT(\"Product_List\"),ROWS($88:118))=\"\",\"\",INDEX(INDIRECT(\"Product_List\"),ROWS($88:118)))","v":"31-ขนมปังโรลช็อกโกแลต"},{"$f":"ยอดยกมา","v":0},null,null,null,null,null,null,0,null,{"$f":"INDIRECT(ADDRESS(ROW(A$80),ROW()-ROW(A$80)+(ROWS($88:118)-1)*2-1,4))","v":0},null,0,null,0,null,null,null,0,null,0,null,null,null,null,null,{"$f":"INDIRECT(ADDRESS(ROW(A$80),ROW()-ROW(A$80)+(ROWS($88:118)-1)*2,4))","v":0},0,null,0,{"$f":"INDIRECT(ADDRESS(ROW(A$80),ROW()-ROW(A$80)+(ROWS($88:118)-1)*2+1,4))","v":0}]
[{"$f":"IF(B119=\"\",0,INDEX(Price_List,ROWS($88:119)))","v":16},{"$f":"IF($C119=\"\",\"\",COUNTA($C$88:$C119))","v":32},{"$f":"IF(INDEX(INDIRECT(\"Product_List\"),ROWS($88:119))=\"\",\"\",INDEX(INDIRECT(\"Product_List\"),ROWS($88:119)))","v":"32-ขนมปังชนิดแผ่น(155กรัม)"},{"$f":"ยอดยกมา","v":0},null,null,null,null,null,null,0,null,{"$f":"INDIRECT(ADDRESS(ROW(A$80),ROW()-ROW(A$80)+(ROWS($88:119)-1)*2-1,4))","v":0},null,0,null,0,null,null,null,0,null,0,null,null,null,null,null,{"$f":"INDIRECT(ADDRESS(ROW(A$80),ROW()-ROW(A$80)+(ROWS($88:119)-1)*2,4))","v":0},0,null,0,{"$f":"INDIRECT(ADDRESS(ROW(A$80),ROW()-ROW(A$80)+(ROWS($88:119)-1)*2+1,4))","v":0}]
[{"$f":"IF(B120=\"\",0,INDEX(Price_List,ROWS($88:120)))","v":15},{"$f":"IF($C120=\"\",\"\",COUNTA($C$88:$C120))","v":33},{"$f":"IF(INDEX(INDIRECT(\"Product_List\"),ROWS($88:120))=\"\",\"\",INDEX(INDIRECT(\"Product_List\"),ROWS($88:120)))","v":"33-ขนมปังโรลเผือก"},{"$f":"ยอดยกมา","v":0},null,null,null,null,null,null,0,null,{"$f":"INDIRECT(ADDRESS(ROW(A$80),ROW()-ROW(A$80)+(ROWS($88:120)-1)*2-1,4))","v":0},null,0,null,0,null,null,null,0,null,0,null,null,null,null,null,{"$f":"INDIRECT(ADDRESS(ROW(A$80),ROW()-ROW(A$80)+(ROWS($88:120)-1)*2,4))","v":0},0,null,0,{"$f":"INDIRECT(ADDRESS(ROW(A$80),ROW()-ROW(A$80)+(ROWS($88:120)-1)*2+1,4))","v":0}]
[{"$f":"IF(B121=\"\",0,INDEX(Price_List,ROWS($88:121)))","v":15},{"$f":"IF($C121=\"\",\"\",COUNTA($C$88:$C121))","v":34},{"$f":"IF(INDEX(INDIRECT(\"Product_List\"),ROWS($88:121))=\"\",\"\",INDEX(INDIRECT(\"Product_List\"),ROWS($88:121)))","v":"34-ขนมปังไก่หยองน้ำสลัด Mini"},{"$f":"ยอดยกมา","v":0},null,null,null,null,null,null,0,null,{"$f":"INDIRECT(ADDRESS(ROW(A$80),ROW()-ROW(A$80)+(ROWS($88:121)-1)*2-1,4))","v":0},null,0,null,0,null,null,null,0,null,0,null,null,null,null,null,{"$f":"INDIRECT(ADDRESS(ROW(A$80),ROW()-ROW(A$80)+(ROWS($88:121)-1)*2,4))","v":0},0,null,0,{"$f":"INDIRECT(ADDRESS(ROW(A$80),ROW()-ROW(A$80)+(ROWS($88:121)-1)*2+1,4))","v":0}]
[{"$f":"IF(B122=\"\",0,INDEX(Price_List,ROWS($88:122)))","v":10},{"$f":"IF($C122=\"\",\"\",COUNTA($C$88:$C122))","v":35},{"$f":"IF(INDEX(INDIRECT(\"Product_List\"),ROWS($88:122))=\"\",\"\",INDEX(INDIRECT(\"Product_List\"),ROWS($88:122)))","v":"35-ขนมปังไส้ช็อกโกแลต"},{"$f":"ยอดยกมา","v":0},null,null,null,null,null,null,0,null,{"$f":"INDIRECT(ADDRESS(ROW(A$80),ROW()-ROW(A$80)+(ROWS($88:122)-1)*2-1,4))","v":0},null,0,null,0,null,null,null,0,null,0,null,null,null,null,null,{"$f":"INDIRECT(ADDRESS(ROW(A$80),ROW()-ROW(A$80)+(ROWS($88:122)-1)*2,4))","v":0},0,null,0,{"$f":"INDIRECT(ADDRESS(ROW(A$80),ROW()-ROW(A$80)+(ROWS($88:122)-1)*2+1,4))","v":0}]
[{"$f":"IF(B123=\"\",0,INDEX(Price_List,ROWS($88:123)))","v":10},{"$f":"IF($C123=\"\",\"\",COUNTA($C$88:$C123))","v":36},{"$f":"IF(INDEX(INDIRECT(\"Product_List\"),ROWS($88:123))=\"\",\"\",INDEX(INDIRECT(\"Product_List\"),ROWS($88:123)))","v":"36-ขนมปังไส้ครีมสังขยาไข่"},{"$f":"ยอดยกมา","v":0},null,null,null,null,null,null,0,null,{"$f":"INDIRECT(ADDRESS(ROW(A$80),ROW()-ROW(A$80)+(ROWS($88:123)-1)*2-1,4))","v":0},null,0,null,0,null,null,null,0,null,0,null,null,null,null,null,{"$f":"INDIRECT(ADDRESS(ROW(A$80),ROW()-ROW(A$80)+(ROWS($88:123)-1)*2,4))","v":0},0,null,0,{"$f":"INDIRECT(ADDRESS(ROW(A$80),ROW()-ROW(A$80)+(ROWS($88:123)-1)*2+1,4))","v":0}]
[{"$f":"IF(B124=\"\",0,INDEX(Price_List,ROWS($88:124)))","v":20},{"$f":"IF($C124=\"\",\"\",COUNTA($C$88:$C124))","v":37},{"$f":"IF(INDEX(INDIRECT(\"Product_List\"),ROWS($88:124))=\"\",\"\",INDEX(INDIRECT(\"Product_List\"),ROWS($88:124)))","v":"37-ขนมปังพิซซ่าฮาวายเอี้ยน"},{"$f":"ยอดยกมา","v":0},null,null,null,null,null,null,0,null,{"$f":"INDIRECT(ADDRESS(ROW(A$80),ROW()-ROW(A$80)+(ROWS($88:124)-1)*2-1,4))","v":0},null,0,null,0,null,null,null,0,null,0,null,null,null,null,null,{"$f":"INDIRECT(ADDRESS(ROW(A$80),ROW()-ROW(A$80)+(ROWS($88:124)-1)*2,4))","v":0},0,null,0,{"$f":"INDIRECT(ADDRESS(ROW(A$80),ROW()-ROW(A$80)+(ROWS($88:124)-1)*2+1,4))","v":0}]
[{"$f":"IF(B125=\"\",0,INDEX(Price_List,ROWS($88:125)))","v":20},{"$f":"IF($C125=\"\",\"\",COUNTA($C$88:$C125))","v":38},{"$f":"IF(INDEX(INDIRECT(\"Product_List\"),ROWS($88:125))=\"\",\"\",INDEX(INDIRECT(\"Product_List\"),ROWS($88:125)))","v":"38-ครัวซองต์หมูหยองน้ำสลัด"},{"$f":"ยอดยกมา","v":0},null,null,null,null,null,null,0,null,{"$f":"INDIRECT(ADDRESS(ROW(A$80),ROW()-ROW(A$80)+(ROWS($88:125)-1)*2-1,4))","v":0},null,0,null,0,null,null,null,0,null,0,null,null,null,null,null,{"$f":"INDIRECT(ADDRESS(ROW(A$80),ROW()-ROW(A$80)+(ROWS($88:125)-1)*2,4))","v":0},0,null,0,{"$f":"INDIRECT(ADDRESS(ROW(A$80),ROW()-ROW(A$80)+(ROWS($88:125)-1)*2+1,4))","v":0}]
[{"$f":"IF(B126=\"\",0,INDEX(Price_List,ROWS($88:126)))","v":15},{"$f":"IF($C126=\"\",\"\",COUNTA($C$88:$C126))","v":39},{"$f":"IF(INDEX(INDIRECT(\"Product_List\"),ROWS($88:126))=\"\",\"\",INDEX(INDIRECT(\"Product_List\"),ROWS($88:126)))","v":"39-แพนเบรดไส้เผือก"},{"$f":"ยอดยกมา","v":0},null,null,null,null,null,null,0,null,{"$f":"INDIRECT(ADDRESS(ROW(A$80),ROW()-ROW(A$80)+(ROWS($88:126)-1)*2-1,4))","v":0},null,0,null,0,null,null,null,0,null,0,null,null,null,null,null,{"$f":"INDIRECT(ADDRESS(ROW(A$80),ROW()-ROW(A$80)+(ROWS($88:126)-1)*2,4))","v":0},0,null,0,{"$f":"INDIRECT(ADDRESS(ROW(A$80),ROW()-ROW(A$80)+(ROWS($88:126)-1)*2+1,4))","v":0}]
[{"$f":"IF(B127=\"\",0,INDEX(Price_List,ROWS($88:127)))","v":15},{"$f":"IF($C127=\"\",\"\",COUNTA($C$88:$C127))","v":40},{"$f":"IF(INDEX(INDIRECT(\"Product_List\"),ROWS($88:127))=\"\",\"\",INDEX(INDIRECT(\"Product_List\"),ROWS($88:127)))","v":"40-แพนเบรดไส้ถั่วแดง"},{"$f":"ยอดยกมา","v":0},null,null,null,null,null,null,{"$f":"D127+E127+J127-I127+H127","v":0},null,{"$f":"INDIRECT(ADDRESS(ROW(A$80),ROW()-ROW(A$80)+(ROWS($88:127)-1)*2-1,4))","v":0},null,{"$f":"F127+G127+M127+J127-K127","v":0},null,{"$f":"O127*A127","v":0},null,null,null,{"$f":"D127+E127-F127-G127","v":0},null,{"$f":"U127*6%+U127","v":0},null,null,null,null,null,{"$f":"INDIRECT(ADDRESS(ROW(A$80),ROW()-ROW(A$80)+(ROWS($88:127)-1)*2,4))","v":0},0,null,0,{"$f":"INDIRECT(ADDRESS(ROW(A$80),ROW()-ROW(A$80)+(ROWS($88:127)-1)*2+1,4))","v":0}]
[{"$f":"IF(B128=\"\",0,INDEX(Price_List,ROWS($88:128)))","v":12},{"$f":"IF($C128=\"\",\"\",COUNTA($C$88:$C128))","v":41},{"$f":"IF(INDEX(INDIRECT(\"Product_List\"),ROWS($88:128))=\"\",\"\",INDEX(INDIRECT(\"Product_List\"),ROWS($88:128)))","v":"41-ขนมปังกรอบเนยน้ำตาล(30กรัม)"},{"$f":"ยอดยกมา","v":0},null,null,null,null,null,null,0,null,{"$f":"INDIRECT(ADDRESS(ROW(A$80),ROW()-ROW(A$80)+(ROWS($88:128)-1)*2-1,4))","v":0},null,0,null,0,null,null,null,0,null,0,null,null,null,null,null,{"$f":"INDIRECT(ADDRESS(ROW(A$80),ROW()-ROW(A$80)+(ROWS($88:128)-1)*2,4))","v":0},0,null,0,{"$f":"INDIRECT(ADDRESS(ROW(A$80),ROW()-ROW(A$80)+(ROWS($88:128)-1)*2+1,4))","v":0}]
[{"$f":"IF(B129=\"\",0,INDEX(Price_List,ROWS($88:129)))","v":18},{"$f":"IF($C129=\"\",\"\",COUNTA($C$88:$C129))","v":42},{"$f":"IF(INDEX(INDIRECT(\"Product_List\"),ROWS($88:129))=\"\",\"\",INDEX(INDIRECT(\"Product_List\"),ROWS($88:129)))","v":"42-ขนมปังชนิดแผ่นโฮลวีต"},{"$f":"ยอดยกมา","v":0},null,null,null,null,null,null,0,null,{"$f":"INDIRECT(ADDRESS(ROW(A$80),ROW()-ROW(A$80)+(ROWS($88:129)-1)*2-1,4))","v":0},null,0,null,0,null,null,null,0,null,0,null,null,null,null,null,{"$f":"INDIRECT(ADDRESS(ROW(A$80),ROW()-ROW(A$80)+(ROWS($88:129)-1)*2,4))","v":0},0,null,0,{"$f":"INDIRECT(ADDRESS(ROW(A$80),ROW()-ROW(A$80)+(ROWS($88:129)-1)*2+1,4))","v":0}]
[{"$f":"IF(B130=\"\",0,INDEX(Price_List,ROWS($88:130)))","v":12},{"$f":"IF($C130=\"\",\"\",COUNTA($C$88:$C130))","v":43},{"$f":"IF(INDEX(INDIRECT(\"Product_List\"),ROWS($88:130))=\"\",\"\",INDEX(INDIRECT(\"Product_List\"),ROWS($88:130)))","v":"43-เค้กโรลใบเตย"},{"$f":"ยอดยกมา","v":0},null,null,null,null,null,null,{"$f":"D130+E130+J130-I130+H130","v":0},null,{"$f":"INDIRECT(ADDRESS(ROW(A$80),ROW()-ROW(A$80)+(ROWS($88:130)-1)*2-1,4))","v":0},null,{"$f":"F130+G130+M130+J130-K130","v":0},null,{"$f":"O130*A130","v":0},null,null,null,{"$f":"D130+E130-F130-G130","v":0},null,{"$f":"U130*6%+U130","v":0},null,null,null,null,null,{"$f":"INDIRECT(ADDRESS(ROW(A$80),ROW()-ROW(A$80)+(ROWS($88:130)-1)*2,4))","v":0},0,null,0,{"$f":"INDIRECT(ADDRESS(ROW(A$80),ROW()-ROW(A$80)+(ROWS($88:130)-1)*2+1,4))","v":0}]
[{"$f":"IF(B131=\"\",0,INDEX(Price_List,ROWS($88:131)))","v":12},{"$f":"IF($C131=\"\",\"\",COUNTA($C$88:$C131))","v":44},{"$f":"IF(INDEX(INDIRECT(\"Product_List\"),ROWS($88:131))=\"\",\"\",INDEX(INDIRECT(\"Product_List\"),ROWS($88:131)))","v":"44-ขนมโมจิไส้ถั่วดำ"},{"$f":"ยอดยกมา","v":0},null,null,null,null,null,null,{"$f":"D131+E131+J131-I131+H131","v":0},null,{"$f":"INDIRECT(ADDRESS(ROW(A$80),ROW()-ROW(A$80)+(ROWS($88:131)-1)*2-1,4))","v":0},null,{"$f":"F131+G131+M131+J131-K131","v":0},null,{"$f":"O131*A131","v":0},null,null,null,{"$f":"D131+E131-F131-G131","v":0},null,{"$f":"U131*6%+U131","v":0},null,null,null,null,null,{"$f":"INDIRECT(ADDRESS(ROW(A$80),ROW()-ROW(A$80)+(ROWS($88:131)-1)*2,4))","v":0},0,null,0,{"$f":"INDIRECT(ADDRESS(ROW(A$80),ROW()-ROW(A$80)+(ROWS($88:131)-1)*2+1,4))","v":0}]
[{"$f":"IF(B132=\"\",0,INDEX(Price_List,ROWS($88:132)))","v":25},{"$f":"IF($C132=\"\",\"\",COUNTA($C$88:$C132))","v":45},{"$f":"IF(INDEX(INDIRECT(\"Product_List\"),ROWS($88:132))=\"\",\"\",INDEX(INDIRECT(\"Product_List\"),ROWS($88:132)))","v":"45-ครัวซองต์ไส้กรอกชีส"},{"$f":"ยอดยกมา","v":0},null,null,null,null,null,null,{"$f":"D132+E132+J132-I132+H132","v":0},null,{"$f":"INDIRECT(ADDRESS(ROW(A$80),ROW()-ROW(A$80)+(ROWS($88:132)-1)*2-1,4))","v":0},null,{"$f":"F132+G132+M132+J132-K132","v":0},null,{"$f":"O132*A132","v":0},null,null,null,{"$f":"D132+E132-F132-G132","v":0},null,{"$f":"U132*6%+U132","v":0},null,null,null,null,null,{"$f":"INDIRECT(ADDRESS(ROW(A$80),ROW()-ROW(A$80)+(ROWS($88:132)-1)*2,4))","v":0},0,null,0,{"$f":"INDIRECT(ADDRESS(ROW(A$80),ROW()-ROW(A$80)+(ROWS($88:132)-1)*2+1,4))","v":0}]
[{"$f":"IF(B133=\"\",0,INDEX(Price_List,ROWS($88:133)))","v":12},{"$f":"IF($C133=\"\",\"\",COUNTA($C$88:$C133))","v":46},{"$f":"IF(INDEX(INDIRECT(\"Product_List\"),ROWS($88:133))=\"\",\"\",INDEX(INDIRECT(\"Product_List\"),ROWS($88:133)))","v":"46-ขนมเปี๊ยะไส้ถั่ว"},{"$f":"ยอดยกมา","v":0},null,null,null,null,null,null,0,null,{"$f":"INDIRECT(ADDRESS(ROW(A$80),ROW()-ROW(A$80)+(ROWS($88:133)-1)*2-1,4))","v":0},null,0,null,0,null,null,null,0,null,0,null,null,null,null,null,{"$f":"INDIRECT(ADDRESS(ROW(A$80),ROW()-ROW(A$80)+(ROWS($88:133)-1)*2,4))","v":0},0,null,0,{"$f":"INDIRECT(ADDRESS(ROW(A$80),ROW()-ROW(A$80)+(ROWS($88:133)-1)*2+1,4))","v":0}]
[{"$f":"IF(B134=\"\",0,INDEX(Price_List,ROWS($88:134)))","v":12},{"$f":"IF($C134=\"\",\"\",COUNTA($C$88:$C134))","v":47},{"$f":"IF(INDEX(INDIRECT(\"Product_List\"),ROWS($88:134))=\"\",\"\",INDEX(INDIRECT(\"Product_List\"),ROWS($88:134)))","v":"47-ขนมเปี๊ยะไส้ฟัก"},{"$f":"ยอดยกมา","v":0},null,null,null,null,null,null,{"$f":"D134+E134+J134-I134+H134","v":0},null,{"$f":"INDIRECT(ADDRESS(ROW(A$80),ROW()-ROW(A$80)+(ROWS($88:134)-1)*2-1,4))","v":0},null,{"$f":"F134+G134+M134+J134-K134","v":0},null,{"$f":"O134*A134","v":0},null,null,null,{"$f":"D134+E134-F134-G134","v":0},null,{"$f":"U134*6%+U134","v":0},null,null,null,null,null,{"$f":"INDIRECT(ADDRESS(ROW(A$80),ROW()-ROW(A$80)+(ROWS($88:134)-1)*2,4))","v":0},0,null,0,{"$f":"INDIRECT(ADDRESS(ROW(A$80),ROW()-ROW(A$80)+(ROWS($88:134)-1)*2+1,4))","v":0}]
[{"$f":"IF(B135=\"\",0,INDEX(Price_List,ROWS($88:135)))","v":12},{"$f":"IF($C135=\"\",\"\",COUNTA($C$88:$C135))","v":48},{"$f":"IF(INDEX(INDIRECT(\"Product_List\"),ROWS($88:135))=\"\",\"\",INDEX(INDIRECT(\"Product_List\"),ROWS($88:135)))","v":"48-มังกี้เค้ก"},{"$f":"ยอดยกมา","v":0},null,null,null,null,null,null,0,null,{"$f":"INDIRECT(ADDRESS(ROW(A$80),ROW()-ROW(A$80)+(ROWS($88:135)-1)*2-1,4))","v":0},null,0,null,0,null,null,null,0,null,0,null,null,null,null,null,{"$f":"INDIRECT(ADDRESS(ROW(A$80),ROW()-ROW(A$80)+(ROWS($88:135)-1)*2,4))","v":0},0,null,0,{"$f":"INDIRECT(ADDRESS(ROW(A$80),ROW()-ROW(A$80)+(ROWS($88:135)-1)*2+1,4))","v":0}]
["รวม",null,null,{"$f":"SUM(D$88:D$135)","v":0},0,0,0,0,0,0,0,null,{"$f":"SUM(M$88:M$135)","v":0},null,null,null,{"$f":"$AP$98","v":0},null,"บาท",null,{"$f":"SUM(U$88:U$135)","v":0},null,{"$f":"SUM(W$88:W$135)","v":0},null,null,null,null,null,{"$f":"SUM(AC$88:AC$135)","v":0},{"$f":"SUM(AD$88:AD$135)","v":0},{"$f":"SUM(AE$88:AE$135)","v":0},{"$f":"SUM(AF$88:AF$135)","v":0},{"$f":"SUM(AG$88:AG$135)","v":0}]
["เลขที่ไมล์ เวลาออกทำงาน",null,null,{"$f":"$BF$3","v":0},null,"Km","น้ำหนักของเสีย"]
["เลขที่ไมล์ เวลากลับ",null,null,{"$f":"$BF$4","v":0},null,"Km",{"$f":"$AA$5","v":0},null,"KG"]
["เวลากลับถึงสำนักงาน",null,null,{"$f":"$BF$1","v":"00:00:00"},null,"น."]
["เติมน้ำมัน",null,null,{"$f":"$AX3","v":0},null,"บาท"]
["จำนวนน้ำมัน",null,null,{"$f":"$AX4","v":0},null,"ลิตร"]
["ยอดรวมต้นทุนสาขา",null,null,{"$f":"$AX5","v":0},null,"บาท"]

{"sheet":"4","index":8,"n_rows":142,"n_cols":154,"rows_kept":142,"cut":false,"hidden":false,"merged":[[129,10,129,11],[129,12,129,13],[129,14,129,15],[129,16,129,17],[129,20,129,21],[80,126,80,127],[128,10,128,11],[128,12,128,13],[128,14,128,15],[128,16,128,17],[128,20,128,21],[128,22,128,23],[128,24,128,25],[128,33,128,36],[125,10,125,11],[125,12,125,13],[125,14,125,15],[125,16,125,17],[125,20,125,21],[126,10,126,11],[127,10,127,11],[83,81,83,82],[83,84,83,85],[83,87,83,88],[83,90,83,91],[83,93,83,94],[83,96,83,97],[82,72,82,73],[129,22,129,23],[129,24,129,25],[129,33,129,36],[97,38,97,40],[92,24,92,25],[92,33,92,36],[90,24,90,25],[90,33,90,36],[96,33,96,36],[97,33,97,36],[88,24,88,25],[88,33,88,36],[80,132,80,133],[82,132,82,133],[6,135,6,137],[7,135,7,137],[8,135,8,137],[80,135,80,136],[82,135,82,136],[80,129,80,130],[82,126,82,127],[82,129,82,130],[6,138,6,140],[6,141,6,143],[6,147,6,149],[126,22,126,23],[127,22,127,23],[126,24,126,25],[127,24,127,25],[126,33,126,36],[127,33,127,36],[125,24,125,25],[125,33,125,36],[123,24,123,25],[123,33,123,36],[125,22,125,23],[124,22,124,23],[124,24,124,25],[124,33,124,36],[122,24,122,25],[122,33,122,36],[98,24,98,25],[98,33,98,36],[99,24,99,25],[99,33,99,36],[82,108,82,109],[139,0,139,2],[139,3,139,4],[140,0,140,2],[140,3,140,4],[141,0,141,2],[141,3,141,4],[137,0,137,2],[137,3,137,4],[137,6,137,7],[137,18,137,21],[138,0,138,2],[138,3,138,4],[135,20,135,21],[135,22,135,23],[135,24,135,25],[135,33,135,36],[136,0,136,2],[136,3,136,4],[135,0,135,2],[135,10,135,11],[135,12,135,13],[135,14,135,15],[135,16,135,17],[135,18,135,19],[126,12,126,13],[127,12,127,13],[126,14,126,15],[127,14,127,15],[126,16,126,17],[127,16,127,17],[126,20,126,21],[127,20,127,21],[124,10,124,11],[124,12,124,13],[124,14,124,15],[124,16,124,17],[124,20,124,21],[123,10,123,11],[123,12,123,13],[123,14,123,15],[123,16,123,17],[123,20,123,21],[123,22,123,23],[122,10,122,11],[122,12,122,13],[122,14,122,15],[122,16,122,17],[122,20,122,21],[122,22,122,23],[121,10,121,11],[121,12,121,13],[121,14,121,15],[121,16,121,17],[121,20,121,21],[121,22,121,23],[121,24,121,25],[121,33,121,36],[120,10,120,11],[120,12,120,13],[120,14,120,15],[120,16,120,17],[120,20,120,21],[120,22,120,23],[120,24,120,25],[120,33,120,36],[119,10,119,11],[119,12,119,13],[119,14,119,15],[119,16,119,17],[119,20,119,21],[119,22,119,23],[119,24,119,25],[119,33,119,36],[118,10,118,11],[118,12,118,13],[118,14,118,15],[118,16,118,17],[118,20,118,21],[118,22,118,23],[118,24,118,25],[118,33,118,36],[117,10,117,11],[117,12,117,13],[117,14,117,15],[117,16,117,17],[117,20,117,21],[117,22,117,23],[117,24,117,25],[117,33,117,36],[116,10,116,11],[116,12,116,13],[116,14,116,15],[116,16,116,17],[116,20,116,21],[116,22,116,23],[116,24,116,25],[116,33,116,36],[115,10,115,11],[115,12,115,13],[115,14,115,15],[115,16,115,17],[115,20,115,21],[115,22,115,23],[115,24,115,25],[115,33,115,36],[114,10,114,11],[114,12,114,13],[114,14,114,15],[114,16,114,17],[114,20,114,21],[114,22,114,23],[114,24,114,25],[114,33,114,36],[113,10,113,11],[113,12,113,13],[113,14,113,15],[113,16,113,17],[113,20,113,21],[113,22,113,23],[113,24,113,25],[113,33,113,36],[112,10,112,11],[112,12,112,13],[112,14,112,15],[112,16,112,17],[112,20,112,21],[112,22,112,23],[112,24,112,25],[112,33,112,36],[111,10,111,11],[111,12,111,13],[111,14,111,15],[111,16,111,17],[111,20,111,21],[111,22,111,23],[111,24,111,25],[111,33,111,36],[110,10,110,11],[110,12,110,13],[110,14,110,15],[110,16,110,17],[110,20,110,21],[110,22,110,23],[110,24,110,25],[110,33,110,36],[109,10,109,11],[109,12,109,13],[109,14,109,15],[109,16,109,17],[109,20,109,21],[109,22,109,23],[109,24,109,25],[109,33,109,36],[108,10,108,11],[108,12,108,13],[108,14,108,15],[108,16,108,17],[108,20,108,21],[108,22,108,23],[108,24,108,25],[108,33,108,36],[107,10,107,11],[107,12,107,13],[107,14,107,15],[107,16,107,17],[107,20,107,21],[107,22,107,23],[107,24,107,25],[107,33,107,36],[106,10,106,11],[106,12,106,13],[106,14,106,15],[106,16,106,17],[106,20,106,21],[106,22,106,23],[106,24,106,25],[106,33,106,36],[105,10,105,11],[105,12,105,13],[105,14,105,15],[105,16,105,17],[105,20,105,21],[105,22,105,23],[105,24,105,25],[105,33,105,36],[104,10,104,11],[104,12,104,13],[104,14,104,15],[104,16,104,17],[104,20,104,21],[104,22,104,23],[104,24,104,25],[104,33,104,36],[103,10,103,11],[103,12,103,13],[103,14,103,15],[103,16,103,17],[103,20,103,21],[103,22,103,23],[103,24,103,25],[103,33,103,36],[102,10,102,11],[102,12,102,13],[102,14,102,15],[102,16,102,17],[102,20,102,21],[102,22,102,23],[102,24,102,25],[102,33,102,36],[101,10,101,11],[101,12,101,13],[101,14,101,15],[101,16,101,17],[101,20,101,21],[101,22,101,23],[101,24,101,25],[101,33,101,36],[100,10,100,11],[100,12,100,13],[100,14,100,15],[100,16,100,17],[100,20,100,21],[100,22,100,23],[100,24,100,25],[100,33,100,36],[99,10,99,11],[99,12,99,13],[99,14,99,15],[99,16,99,17],[99,20,99,21],[99,22,99,23],[98,10,98,11],[98,12,98,13],[98,14,98,15],[98,16,98,17],[98,20,98,21],[98,22,98,23],[97,10,97,11],[97,12,97,13],[97,14,97,15],[97,16,97,17],[97,20,97,21],[97,22,97,23],[97,24,97,25],[96,10,96,11],[96,12,96,13],[96,14,96,15],[96,16,96,17],[96,20,96,21],[96,22,96,23],[96,24,96,25],[95,10,95,11],[95,12,95,13],[95,14,95,15],[95,16,95,17],[95,20,95,21],[95,22,95,23],[95,24,95,25],[95,33,95,36],[94,10,94,11],[94,12,94,13],[94,14,94,15],[94,16,94,17],[94,20,94,21],[94,22,94,23],[94,24,94,25],[94,33,94,36],[93,10,93,11],[93,12,93,13],[93,14,93,15],[93,16,93,17],[93,20,93,21],[93,22,93,23],[93,24,93,25],[93,33,93,36],[92,10,92,11],[92,12,92,13],[92,14,92,15],[92,16,92,17],[92,20,92,21],[92,22,92,23],[91,10,91,11],[91,12,91,13],[91,14,91,15],[91,16,91,17],[91,20,91,21],[91,22,91,23],[91,24,91,25],[91,33,91,36],[90,10,90,11],[90,12,90,13],[90,14,90,15],[90,16,90,17],[90,20,90,21],[90,22,90,23],[87,33,87,36],[86,10,86,11],[86,12,86,13],[86,14,86,15],[86,16,86,17],[86,20,86,21],[86,22,86,23],[89,10,89,11],[89,12,89,13],[89,14,89,15],[89,16,89,17],[89,20,89,21],[89,22,89,23],[89,24,89,25],[89,33,89,36],[88,10,88,11],[88,12,88,13],[88,14,88,15],[88,16,88,17],[88,20,88,21],[88,22,88,23],[86,24,86,25],[86,33,86,36],[83,150,83,153],[83,99,83,100],[83,102,83,103],[83,105,83,106],[83,108,83,109],[83,111,83,112],[83,114,83,115],[83,126,83,127],[83,129,83,130],[83,132,83,133],[83,135,83,136],[83,117,83,118],[83,120,83,121],[83,123,83,124],[82,75,82,76],[82,78,82,79],[82,81,82,82],[82,84,82,85],[82,87,82,88],[82,99,82,100],[82,102,82,103],[82,105,82,106],[82,63,82,64],[82,66,82,67],[82,69,82,70],[82,90,82,91],[82,93,82,94],[82,96,82,97],[83,0,83,5],[83,6,83,7],[83,9,83,10],[83,12,83,13],[83,15,83,16],[83,18,83,19],[83,21,83,22],[83,24,83,25],[83,54,83,55],[83,27,83,28],[82,36,82,37],[83,30,83,31],[83,33,83,34],[83,36,83,37],[82,39,82,40],[82,42,82,43],[83,45,83,46],[83,48,83,49],[83,51,83,52],[83,39,83,40],[83,42,83,43],[82,54,82,55],[82,57,82,58],[82,60,82,61],[81,0,81,2],[81,3,81,5],[81,150,82,153],[82,0,82,2],[82,3,82,4],[82,6,82,7],[82,9,82,10],[82,12,82,13],[82,15,82,16],[82,45,82,46],[82,48,82,49],[82,51,82,52],[82,18,82,19],[82,21,82,22],[82,24,82,25],[82,27,82,28],[82,30,82,31],[82,33,82,34],[82,111,82,112],[82,114,82,115],[82,117,82,118],[82,120,82,121],[82,123,82,124],[80,111,80,112],[80,114,80,115],[80,117,80,118],[80,120,80,121],[80,123,80,124],[80,93,80,94],[80,96,80,97],[80,99,80,100],[80,102,80,103],[80,105,80,106],[80,108,80,109],[80,36,80,37],[80,75,80,76],[80,78,80,79],[80,81,80,82],[80,84,80,85],[80,87,80,88],[80,90,80,91],[80,57,80,58],[80,60,80,61],[80,63,80,64],[80,66,80,67],[80,69,80,70],[80,72,80,73],[6,0,8,0],[6,1,8,1],[80,0,80,5],[80,6,80,7],[80,9,80,10],[80,12,80,13],[80,15,80,16],[80,18,80,19],[8,117,8,119],[8,54,8,56],[8,57,8,59],[8,60,8,62],[8,27,8,29],[8,30,8,32],[8,33,8,35],[8,36,8,38],[8,39,8,41],[8,42,8,44],[8,9,8,11],[8,12,8,14],[8,15,8,17],[8,18,8,20],[8,21,8,23],[8,24,8,26],[6,129,6,131],[7,126,7,128],[7,129,7,131],[8,126,8,128],[8,129,8,131],[6,126,6,128],[6,84,6,86],[6,132,6,134],[79,0,79,5],[8,99,8,101],[8,102,8,104],[8,105,8,107],[8,108,8,110],[8,111,8,113],[8,114,8,116],[8,81,8,83],[8,84,8,86],[8,87,8,89],[8,90,8,92],[8,93,8,95],[8,96,8,98],[8,63,8,65],[8,66,8,68],[8,69,8,71],[7,120,7,122],[7,123,7,125],[7,150,8,150],[7,151,8,151],[7,102,7,104],[7,105,7,107],[7,108,7,110],[7,111,7,113],[7,114,7,116],[7,117,7,119],[8,120,8,122],[8,123,8,125],[7,132,7,134],[8,132,8,134],[6,152,8,152],[6,153,8,153],[7,6,7,8],[7,9,7,11],[7,12,7,14],[7,15,7,17],[7,18,7,20],[7,21,7,23],[7,24,7,26],[7,27,7,29],[6,117,6,119],[6,120,6,122],[6,123,6,125],[6,150,6,151],[6,99,6,101],[6,102,6,104],[6,105,6,107],[6,108,6,110],[6,93,6,95],[6,96,6,98],[6,63,6,65],[6,111,6,113],[6,114,6,116],[6,81,6,83],[6,2,8,2],[6,3,8,3],[6,4,8,4],[6,6,6,8],[8,6,8,8],[6,45,6,47],[6,48,6,50],[7,48,7,50],[6,39,6,41],[6,42,6,44],[7,30,7,32],[7,33,7,35],[7,36,7,38],[7,39,7,41],[7,42,7,44],[7,45,7,47],[8,45,8,47],[8,48,8,50],[4,26,4,29],[4,30,4,31],[4,32,4,34],[4,35,4,36],[6,9,6,11],[6,12,6,14],[6,15,6,17],[6,18,6,20],[6,21,6,23],[6,24,6,26],[6,27,6,29],[6,30,6,32],[6,33,6,35],[6,36,6,38],[3,41,3,44],[3,46,3,48],[3,49,3,51],[3,54,3,56],[3,57,3,60],[4,0,4,1],[4,2,4,3],[4,4,4,5],[4,6,4,12],[4,14,4,16],[3,17,3,19],[3,22,3,25],[3,26,3,29],[3,30,3,33],[3,34,3,37],[3,38,3,40],[4,38,4,40],[4,41,4,44],[4,46,4,48],[4,49,4,51],[4,54,4,56],[4,57,4,60],[4,17,4,19],[4,22,4,25],[3,0,3,1],[3,2,3,3],[3,4,3,5],[3,6,3,12],[3,14,3,16],[2,17,2,19],[2,22,2,25],[2,26,2,29],[2,30,2,33],[0,38,0,40],[0,41,0,44],[0,46,0,48],[0,54,0,56],[0,57,0,60],[2,0,2,1],[2,2,2,3],[2,4,2,5],[2,6,2,12],[2,14,2,16],[0,0,0,12],[0,14,0,16],[0,17,0,23],[0,30,0,33],[0,34,0,35],[0,36,0,37],[2,41,2,44],[2,46,2,48],[2,49,2,51],[2,54,2,56],[2,57,2,60],[2,34,2,37],[2,38,2,40],[7,96,7,98],[7,99,7,101],[6,51,6,53],[6,60,6,62],[6,87,6,89],[6,90,6,92],[7,84,7,86],[7,87,7,89],[7,90,7,92],[7,66,7,68],[7,69,7,71],[7,72,7,74],[6,66,6,68],[7,75,7,77],[7,78,7,80],[7,81,7,83],[6,69,6,71],[6,72,6,74],[6,75,6,77],[6,78,6,80],[6,54,6,56],[6,57,6,59],[131,24,131,25],[131,10,131,11],[131,20,131,21],[7,51,7,53],[7,54,7,56],[7,57,7,59],[7,60,7,62],[7,63,7,65],[7,93,7,95],[8,72,8,74],[8,75,8,77],[8,78,8,80],[8,51,8,53],[80,39,80,40],[80,42,80,43],[80,45,80,46],[80,48,80,49],[80,51,80,52],[80,54,80,55],[80,21,80,22],[80,24,80,25],[80,27,80,28],[80,30,80,31],[80,33,80,34],[83,147,83,148],[130,22,130,23],[130,24,130,25],[130,33,130,36],[130,10,130,11],[130,12,130,13],[130,14,130,15],[130,16,130,17],[130,20,130,21],[83,63,83,64],[83,66,83,67],[83,69,83,70],[83,72,83,73],[83,75,83,76],[83,78,83,79],[83,57,83,58],[83,60,83,61],[87,10,87,11],[87,12,87,13],[87,14,87,15],[87,16,87,17],[87,20,87,21],[87,22,87,23],[87,24,87,25],[7,147,7,149],[8,138,8,140],[8,141,8,143],[8,147,8,149],[80,138,80,139],[80,141,80,142],[80,147,80,148],[82,138,82,139],[82,141,82,142],[82,147,82,148],[132,10,132,11],[134,10,134,11],[131,12,131,13],[132,12,132,13],[134,12,134,13],[131,14,131,15],[132,14,132,15],[134,14,134,15],[131,16,131,17],[132,16,132,17],[134,16,134,17],[133,10,133,11],[133,12,133,13],[133,14,133,15],[133,16,133,17],[132,20,132,21],[134,20,134,21],[131,22,131,23],[132,22,132,23],[134,22,134,23],[6,144,6,146],[7,144,7,146],[8,144,8,146],[80,144,80,145],[82,144,82,145],[83,144,83,145],[133,20,133,21],[133,22,133,23],[133,24,133,25],[133,33,133,36],[132,24,132,25],[134,24,134,25],[131,33,131,36],[132,33,132,36],[134,33,134,36],[7,138,7,140],[7,141,7,143],[83,138,83,139],[83,141,83,142]]}
[":::: รายงานการขายประจำวัน (Sale Daily Report)  ::::",null,null,null,null,null,null,null,null,null,null,null,null,null,"Print Date : ",null,null,{"$f":"NOW()","v":"2025-04-24T22:39:10.140"},null,null,null,null,null,null,null,null,null,null,null,null,"จำนวนร้าน :",null,null,null,{"$f":"MAX($A$10:$A$79)","v":0},null,"ร้าน",null,"เป้ายอดขาย :",null,null,null,null,null,null,null,{"$f":"C3","v":45781},null,null,{"$f":"LEFT('Problems & Solutions'!$B$2,FIND(\"|\",'Problems & Solutions'!$B$2))&\" วันที่\"&TEXT($C$3,\"[$-107041E] d mmmm yyyy;@\")","v":"ขั้นตอนการตรวจรีพอร์ตขาย | วันที่ 4 พฤษภาคม 2568"},null,null,null,null,"เวลากลับ :"]
[]
["วันที่ :",null,{"$f":"DATE(ใส่ข้อมูล!G2-543,ใส่ข้อมูล!V2,ActiveSheetName)","v":"2025-05-04"},null,"พนักงานขาย",null,{"$f":"INDEX(OFFSET(Sale_Region,,1),ActiveSheetName)","v":0},null,null,null,null,null,null,null,"รวมยอดเบิก :",null,null,{"$f":"E136","v":0},null,null,"ชิ้น",null,"ใหญ่สด(40)",null,null,null,{"$f":"Cash_Major_Bill","v":0},null,null,null,"ใหญ่เชื่อ(42)",null,null,null,{"$f":"Credit_Major_Bill","v":0},null,null,null,"บิลใหญ่ :",null,null,{"$f":"AA3+AI3","v":0},null,null,null,null,"เติมน้ำมัน :",null,null,null,null,null,"บาท",null,"ไมล์ออก :",null,null,{"$f":"เลขไมล์ออก","v":0},null,null,null,"Km"]
["เขตการขาย :",null,{"$f":"INDEX(Sale_Region,ActiveSheetName)","v":0},null,"ผช.ขาย",null,{"$f":"INDEX(OFFSET(Sale_Region,,2),ActiveSheetName)","v":0},null,null,null,null,null,null,null,"ของเหลือ :",null,null,{"$f":"F136","v":0},null,null,"ชิ้น",null,"เล็กสด(41)",null,null,null,{"$f":"Cash_Minor_Bill","v":0},null,null,null,"เล็กเชื่อ(43)",null,null,null,{"$f":"Credit_Minor_Bill","v":0},null,null,null,"บิลเล็ก :",null,null,{"$f":"AA4+AI4","v":0},null,null,null,null,"จำนวนลิตร :",null,null,null,null,null,"ลิตร",null,"ไมล์เข้า :",null,null,null,null,null,null,"Km"]
["สายส่ง :",null,{"$f":"\"Sale \"&ใส่ข้อมูล!E3&\"-\"&ใส่ข้อมูล!G3","v":"Sale KB-01"},null,"พนักงานเสริม",null,{"$f":"INDEX(OFFSET(Sale_Region,,3),ActiveSheetName)","v":0},null,null,null,null,null,null,null,"ของเสีย :",null,null,{"$f":"G136","v":0},null,null,"ชิ้น",null,"น้ำหนักของเสีย",null,null,null,null,null,null,null,"Kg.",null,"%ของเสีย",null,null,{"$f":"IF(Order_Cal=0,0,ROUND(Waste_Cal*100/Order_Cal,2))","v":0},null,"%","VAT :",null,null,{"$f":"EW81","v":0},null,null,null,null,"ต้นทุนสาขา :",null,null,{"$f":"SUMPRODUCT((($A$88:$A$135)-($A$88:$A$135)*0.45)*(($E$88:$E$135)-($G$88:$G$135)))","v":0},null,null,"บาท",null,"ระยะทาง :",null,null,{"$f":"IF(OR($BF$4=0,$BF$3=0),0,$BF$4-$BF$3)","v":0},null,null,null,"Km"]
[]
["No","รหัสร้าน (CustNo)","ชื่อร้าน (Store Name)","เวลาเข้าร้าน","ระยะเวลาระหว่างร้าน","บิล(Invoice)",{"$f":"INDEX(INDIRECT(\"dProduct[ProductName]\"),ROUNDUP(COLUMNS($G:G)/3,0))","v":"ขนมปังหมูหยองน้ำสลัด"},null,null,{"$f":"INDEX(INDIRECT(\"dProduct[ProductName]\"),ROUNDUP(COLUMNS($G:J)/3,0))","v":"ขนมปังหมูหยองน้ำพริกเผา"},null,null,{"$f":"INDEX(INDIRECT(\"dProduct[ProductName]\"),ROUNDUP(COLUMNS($G:M)/3,0))","v":"ขนมปังไก่หยองน้ำสลัด"},null,null,{"$f":"INDEX(INDIRECT(\"dProduct[ProductName]\"),ROUNDUP(COLUMNS($G:P)/3,0))","v":"ขนมปังไส้ครีมสลัด"},null,null,{"$f":"INDEX(INDIRECT(\"dProduct[ProductName]\"),ROUNDUP(COLUMNS($G:S)/3,0))","v":"ขนมปังเนยสด"},null,null,{"$f":"INDEX(INDIRECT(\"dProduct[ProductName]\"),ROUNDUP(COLUMNS($G:V)/3,0))","v":"ขนมปังไส้สังขยาเล็ก"},null,null,{"$f":"INDEX(INDIRECT(\"dProduct[ProductName]\"),ROUNDUP(COLUMNS($G:Y)/3,0))","v":"ขนมปังไส้เผือก"},null,null,{"$f":"INDEX(INDIRECT(\"dProduct[ProductName]\"),ROUNDUP(COLUMNS($G:AB)/3,0))","v":"ขนมปังไส้ถั่วแดง"},null,null,{"$f":"INDEX(INDIRECT(\"dProduct[ProductName]\"),ROUNDUP(COLUMNS($G:AE)/3,0))","v":"ขนมปังไส้ถั่วดำ"},null,null,{"$f":"INDEX(INDIRECT(\"dProduct[ProductName]\"),ROUNDUP(COLUMNS($G:AH)/3,0))","v":"ขนมปังไส้มันม่วง"},null,null,{"$f":"INDEX(INDIRECT(\"dProduct[ProductName]\"),ROUNDUP(COLUMNS($G:AK)/3,0))","v":"เค้กกล้วยหอม"},null,null,{"$f":"INDEX(INDIRECT(\"dProduct[ProductName]\"),ROUNDUP(COLUMNS($G:AN)/3,0))","v":"เค้กบัตเตอร์"},null,null,{"$f":"INDEX(INDIRECT(\"dProduct[ProductName]\"),ROUNDUP(COLUMNS($G:AQ)/3,0))","v":"ขนมปังโรลถั่วแดง"},null,null,{"$f":"INDEX(INDIRECT(\"dProduct[ProductName]\"),ROUNDUP(COLUMNS($G:AT)/3,0))","v":"ขนมปังไส้สังขยาใหญ่"},null,null,{"$f":"INDEX(INDIRECT(\"dProduct[ProductName]\"),ROUNDUP(COLUMNS($G:AW)/3,0))","v":"ขนมปังชนิดแผ่น(480กรัม)"},null,null,{"$f":"INDEX(INDIRECT(\"dProduct[ProductName]\"),ROUNDUP(COLUMNS($G:AZ)/3,0))","v":"โมจิไส้ถั่ว"},null,null,{"$f":"INDEX(INDIRECT(\"dProduct[ProductName]\"),ROUNDUP(COLUMNS($G:BC)/3,0))","v":"โมจิไส้เผือก"},null,null,{"$f":"INDEX(INDIRECT(\"dProduct[ProductName]\"),ROUNDUP(COLUMNS($G:BF)/3,0))","v":"โมจิไส้ถั่วไข่เค็ม"},null,null,{"$f":"INDEX(INDIRECT(\"dProduct[ProductName]\"),ROUNDUP(COLUMNS($G:BI)/3,0))","v":"ขนมปังพิซซ่า"},null,null,{"$f":"INDEX(INDIRECT(\"dProduct[ProductName]\"),ROUNDUP(COLUMNS($G:BL)/3,0))","v":"ขนมปังพิซซ่าปูอัดแฮม"},null,null,{"$f":"INDEX(INDIRECT(\"dProduct[ProductName]\"),ROUNDUP(COLUMNS($G:BO)/3,0))","v":"ขนมปังไส้กรอก"},null,null,{"$f":"INDEX(INDIRECT(\"dProduct[ProductName]\"),ROUNDUP(COLUMNS($G:BR)/3,0))","v":"ขนมก้านบัว"},null,null,{"$f":"INDEX(INDIRECT(\"dProduct[ProductName]\"),ROUNDUP(COLUMNS($G:BU)/3,0))","v":"พายสับปะรด"},null,null,{"$f":"INDEX(INDIRECT(\"dProduct[ProductName]\"),ROUNDUP(COLUMNS($G:BX)/3,0))","v":"พายไส้มะพร้าว"},null,null,{"$f":"INDEX(INDIRECT(\"dProduct[ProductName]\"),ROUNDUP(COLUMNS($G:CA)/3,0))","v":"ขนมปังโรลมันเทศ"},null,null,{"$f":"INDEX(INDIRECT(\"dProduct[ProductName]\"),ROUNDUP(COLUMNS($G:CD)/3,0))","v":"ขนมปังไส้ครีมสลัดน้ำพริกเผา"},null,null,{"$f":"INDEX(INDIRECT(\"dProduct[ProductName]\"),ROUNDUP(COLUMNS($G:CG)/3,0))","v":"ขนมปังไส้สังขยาไข่"},null,null,{"$f":"INDEX(INDIRECT(\"dProduct[ProductName]\"),ROUNDUP(COLUMNS($G:CJ)/3,0))","v":"ขนมปังไส้สังขยามะพร้าว"},null,null,{"$f":"INDEX(INDIRECT(\"dProduct[ProductName]\"),ROUNDUP(COLUMNS($G:CM)/3,0))","v":"ขนมปังไส้ครีมชาไทย"},null,null,{"$f":"INDEX(INDIRECT(\"dProduct[ProductName]\"),ROUNDUP(COLUMNS($G:CP)/3,0))","v":"ขนมปังโรลมันม่วง"},null,null,{"$f":"INDEX(INDIRECT(\"dProduct[ProductName]\"),ROUNDUP(COLUMNS($G:CS)/3,0))","v":"ขนมปังโรลช็อกโกแลต"},null,null,{"$f":"INDEX(INDIRECT(\"dProduct[ProductName]\"),ROUNDUP(COLUMNS($G:CV)/3,0))","v":"ขนมปังชนิดแผ่น(155กรัม)"},null,null,{"$f":"INDEX(INDIRECT(\"dProduct[ProductName]\"),ROUNDUP(COLUMNS($G:CY)/3,0))","v":"ขนมปังโรลเผือก"},null,null,{"$f":"INDEX(INDIRECT(\"dProduct[ProductName]\"),ROUNDUP(COLUMNS($G:DB)/3,0))","v":"ขนมปังไก่หยองน้ำสลัด Mini"},null,null,{"$f":"INDEX(INDIRECT(\"dProduct[ProductName]\"),ROUNDUP(COLUMNS($G:DE)/3,0))","v":"ขนมปังไส้ช็อกโกแลต"},null,null,{"$f":"INDEX(INDIRECT(\"dProduct[ProductName]\"),ROUNDUP(COLUMNS($G:DH)/3,0))","v":"ขนมปังไส้ครีมสังขยาไข่"},null,null,{"$f":"INDEX(INDIRECT(\"dProduct[ProductName]\"),ROUNDUP(COLUMNS($G:DK)/3,0))","v":"ขนมปังพิซซ่าฮาวายเอี้ยน"},null,null,{"$f":"INDEX(INDIRECT(\"dProduct[ProductName]\"),ROUNDUP(COLUMNS($G:DN)/3,0))","v":"ครัวซองต์หมูหยองน้ำสลัด"},null,null,{"$f":"INDEX(INDIRECT(\"dProduct[ProductName]\"),ROUNDUP(COLUMNS($G:DQ)/3,0))","v":"แพนเบรดไส้เผือก"},null,null,{"$f":"INDEX(INDIRECT(\"dProduct[ProductName]\"),ROUNDUP(COLUMNS($G:DT)/3,0))","v":"แพนเบรดไส้ถั่วแดง"},null,null,{"$f":"INDEX(INDIRECT(\"dProduct[ProductName]\"),ROUNDUP(COLUMNS($G:DW)/3,0))","v":"ขนมปังกรอบเนยน้ำตาล(30กรัม)"},null,null,{"$f":"INDEX(INDIRECT(\"dProduct[ProductName]\"),ROUNDUP(COLUMNS($G:DZ)/3,0))","v":"ขนมปังชนิดแผ่นโฮลวีต"},null,null,{"$f":"INDEX(INDIRECT(\"dProduct[ProductName]\"),ROUNDUP(COLUMNS($G:EC)/3,0))","v":"เค้กโรลใบเตย"},null,null,{"$f":"INDEX(INDIRECT(\"dProduct[ProductName]\"),ROUNDUP(COLUMNS($G:EF)/3,0))","v":"ขนมโมจิไส้ถั่วดำ"},null,null,{"$f":"INDEX(INDIRECT(\"dProduct[ProductName]\"),ROUNDUP(COLUMNS($G:EI)/3,0))","v":"ครัวซองต์ไส้กรอกชีส"},null,null,{"$f":"INDEX(INDIRECT(\"dProduct[ProductName]\"),ROUNDUP(COLUMNS($G:EL)/3,0))","v":"ขนมเปี๊ยะไส้ถั่ว"},null,null,{"$f":"INDEX(INDIRECT(\"dProduct[ProductName]\"),ROUNDUP(COLUMNS($G:EO)/3,0))","v":"ขนมเปี๊ยะไส้ฟัก"},null,null,{"$f":"INDEX(INDIRECT(\"dProduct[ProductName]\"),ROUNDUP(COLUMNS($G:ER)/3,0))","v":"มังกี้เค้ก"},null,null,"มูลค่าสินค้า",null,"ภาษี","รวมยอดขาย"]
[null,null,null,null,null,"ราคาขาย",{"$f":"IF(G$7=0,0,INDEX(Price_List,ROUNDUP(COLUMNS($G:G)/3,0)))","v":20},null,null,{"$f":"IF(J$7=0,0,INDEX(Price_List,ROUNDUP(COLUMNS($G:J)/3,0)))","v":20},null,null,{"$f":"IF(M$7=0,0,INDEX(Price_List,ROUNDUP(COLUMNS($G:M)/3,0)))","v":20},null,null,{"$f":"IF(P$7=0,0,INDEX(Price_List,ROUNDUP(COLUMNS($G:P)/3,0)))","v":15},null,null,{"$f":"IF(S$7=0,0,INDEX(Price_List,ROUNDUP(COLUMNS($G:S)/3,0)))","v":15},null,null,{"$f":"IF(V$7=0,0,INDEX(Price_List,ROUNDUP(COLUMNS($G:V)/3,0)))","v":10},null,null,{"$f":"IF(Y$7=0,0,INDEX(Price_List,ROUNDUP(COLUMNS($G:Y)/3,0)))","v":10},null,null,{"$f":"IF(AB$7=0,0,INDEX(Price_List,ROUNDUP(COLUMNS($G:AB)/3,0)))","v":10},null,null,{"$f":"IF(AE$7=0,0,INDEX(Price_List,ROUNDUP(COLUMNS($G:AE)/3,0)))","v":10},null,null,{"$f":"IF(AH$7=0,0,INDEX(Price_List,ROUNDUP(COLUMNS($G:AH)/3,0)))","v":10},null,null,{"$f":"IF(AK$7=0,0,INDEX(Price_List,ROUNDUP(COLUMNS($G:AK)/3,0)))","v":15},null,null,{"$f":"IF(AN$7=0,0,INDEX(Price_List,ROUNDUP(COLUMNS($G:AN)/3,0)))","v":15},null,null,{"$f":"IF(AQ$7=0,0,INDEX(Price_List,ROUNDUP(COLUMNS($G:AQ)/3,0)))","v":15},null,null,{"$f":"IF(AT$7=0,0,INDEX(Price_List,ROUNDUP(COLUMNS($G:AT)/3,0)))","v":15},null,null,{"$f":"IF(AW$7=0,0,INDEX(Price_List,ROUNDUP(COLUMNS($G:AW)/3,0)))","v":42},null,null,{"$f":"IF(AZ$7=0,0,INDEX(Price_List,ROUNDUP(COLUMNS($G:AZ)/3,0)))","v":12},null,null,{"$f":"IF(BC$7=0,0,INDEX(Price_List,ROUNDUP(COLUMNS($G:BC)/3,0)))","v":12},null,null,{"$f":"IF(BF$7=0,0,INDEX(Price_List,ROUNDUP(COLUMNS($G:BF)/3,0)))","v":15},null,null,{"$f":"IF(BI$7=0,0,INDEX(Price_List,ROUNDUP(COLUMNS($G:BI)/3,0)))","v":20},null,null,{"$f":"IF(BL$7=0,0,INDEX(Price_List,ROUNDUP(COLUMNS($G:BL)/3,0)))","v":20},null,null,{"$f":"IF(BO$7=0,0,INDEX(Price_List,ROUNDUP(COLUMNS($G:BO)/3,0)))","v":20},null,null,{"$f":"IF(BR$7=0,0,INDEX(Price_List,ROUNDUP(COLUMNS($G:BR)/3,0)))","v":15},null,null,{"$f":"IF(BU$7=0,0,INDEX(Price_List,ROUNDUP(COLUMNS($G:BU)/3,0)))","v":20},null,null,{"$f":"IF(BX$7=0,0,INDEX(Price_List,ROUNDUP(COLUMNS($G:BX)/3,0)))","v":20},null,null,{"$f":"IF(CA$7=0,0,INDEX(Price_List,ROUNDUP(COLUMNS($G:CA)/3,0)))","v":15},null,null,{"$f":"IF(CD$7=0,0,INDEX(Price_List,ROUNDUP(COLUMNS($G:CD)/3,0)))","v":15},null,null,{"$f":"IF(CG$7=0,0,INDEX(Price_List,ROUNDUP(COLUMNS($G:CG)/3,0)))","v":20},null,null,{"$f":"IF(CJ$7=0,0,INDEX(Price_List,ROUNDUP(COLUMNS($G:CJ)/3,0)))","v":20},null,null,{"$f":"IF(CM$7=0,0,INDEX(Price_List,ROUNDUP(COLUMNS($G:CM)/3,0)))","v":10},null,null,{"$f":"IF(CP$7=0,0,INDEX(Price_List,ROUNDUP(COLUMNS($G:CP)/3,0)))","v":15},null,null,{"$f":"IF(CS$7=0,0,INDEX(Price_List,ROUNDUP(COLUMNS($G:CS)/3,0)))","v":15},null,null,{"$f":"IF(CV$7=0,0,INDEX(Price_List,ROUNDUP(COLUMNS($G:CV)/3,0)))","v":16},null,null,{"$f":"IF(CY$7=0,0,INDEX(Price_List,ROUNDUP(COLUMNS($G:CY)/3,0)))","v":15},null,null,{"$f":"IF(DB$7=0,0,INDEX(Price_List,ROUNDUP(COLUMNS($G:DB)/3,0)))","v":15},null,null,{"$f":"IF(DE$7=0,0,INDEX(Price_List,ROUNDUP(COLUMNS($G:DE)/3,0)))","v":10},null,null,{"$f":"IF(DH$7=0,0,INDEX(Price_List,ROUNDUP(COLUMNS($G:DH)/3,0)))","v":10},null,null,{"$f":"IF(DK$7=0,0,INDEX(Price_List,ROUNDUP(COLUMNS($G:DK)/3,0)))","v":20},null,null,{"$f":"IF(DN$7=0,0,INDEX(Price_List,ROUNDUP(COLUMNS($G:DN)/3,0)))","v":20},null,null,{"$f":"IF(DQ$7=0,0,INDEX(Price_List,ROUNDUP(COLUMNS($G:DQ)/3,0)))","v":15},null,null,{"$f":"IF(DT$7=0,0,INDEX(Price_List,ROUNDUP(COLUMNS($G:DT)/3,0)))","v":15},null,null,{"$f":"IF(DW$7=0,0,INDEX(Price_List,ROUNDUP(COLUMNS($G:DW)/3,0)))","v":12},null,null,{"$f":"IF(DZ$7=0,0,INDEX(Price_List,ROUNDUP(COLUMNS($G:DZ)/3,0)))","v":18},null,null,{"$f":"IF(EC$7=0,0,INDEX(Price_List,ROUNDUP(COLUMNS($G:EC)/3,0)))","v":12},null,null,{"$f":"IF(EF$7=0,0,INDEX(Price_List,ROUNDUP(COLUMNS($G:EF)/3,0)))","v":12},null,null,{"$f":"IF(EI$7=0,0,INDEX(Price_List,ROUNDUP(COLUMNS($G:EI)/3,0)))","v":25},null,null,{"$f":"IF(EL$7=0,0,INDEX(Price_List,ROUNDUP(COLUMNS($G:EL)/3,0)))","v":12},null,null,{"$f":"IF(EO$7=0,0,INDEX(Price_List,ROUNDUP(COLUMNS($G:EO)/3,0)))","v":12},null,null,{"$f":"IF(ER$7=0,0,INDEX(Price_List,ROUNDUP(COLUMNS($G:ER)/3,0)))","v":12},null,null,"เงินเชื่อ","เงินสด"]
[null,null,null,null,null,"คงเหลือ(ตามบัญชี)",{"$f":"IF(G$7=0,0,INDEX(INDIRECT(Order_Rng),ROUNDUP(COLUMNS($G:G)/3,0)))","v":0},null,null,{"$f":"IF(J$7=0,0,INDEX(INDIRECT(Order_Rng),ROUNDUP(COLUMNS($G:J)/3,0)))","v":0},null,null,{"$f":"IF(M$7=0,0,INDEX(INDIRECT(Order_Rng),ROUNDUP(COLUMNS($G:M)/3,0)))","v":0},null,null,{"$f":"IF(P$7=0,0,INDEX(INDIRECT(Order_Rng),ROUNDUP(COLUMNS($G:P)/3,0)))","v":0},null,null,{"$f":"IF(S$7=0,0,INDEX(INDIRECT(Order_Rng),ROUNDUP(COLUMNS($G:S)/3,0)))","v":0},null,null,{"$f":"IF(V$7=0,0,INDEX(INDIRECT(Order_Rng),ROUNDUP(COLUMNS($G:V)/3,0)))","v":0},null,null,{"$f":"IF(Y$7=0,0,INDEX(INDIRECT(Order_Rng),ROUNDUP(COLUMNS($G:Y)/3,0)))","v":0},null,null,{"$f":"IF(AB$7=0,0,INDEX(INDIRECT(Order_Rng),ROUNDUP(COLUMNS($G:AB)/3,0)))","v":0},null,null,{"$f":"IF(AE$7=0,0,INDEX(INDIRECT(Order_Rng),ROUNDUP(COLUMNS($G:AE)/3,0)))","v":0},null,null,{"$f":"IF(AH$7=0,0,INDEX(INDIRECT(Order_Rng),ROUNDUP(COLUMNS($G:AH)/3,0)))","v":0},null,null,{"$f":"IF(AK$7=0,0,INDEX(INDIRECT(Order_Rng),ROUNDUP(COLUMNS($G:AK)/3,0)))","v":0},null,null,{"$f":"IF(AN$7=0,0,INDEX(INDIRECT(Order_Rng),ROUNDUP(COLUMNS($G:AN)/3,0)))","v":0},null,null,{"$f":"IF(AQ$7=0,0,INDEX(INDIRECT(Order_Rng),ROUNDUP(COLUMNS($G:AQ)/3,0)))","v":0},null,null,{"$f":"IF(AT$7=0,0,INDEX(INDIRECT(Order_Rng),ROUNDUP(COLUMNS($G:AT)/3,0)))","v":0},null,null,{"$f":"IF(AW$7=0,0,INDEX(INDIRECT(Order_Rng),ROUNDUP(COLUMNS($G:AW)/3,0)))","v":0},null,null,{"$f":"IF(AZ$7=0,0,INDEX(INDIRECT(Order_Rng),ROUNDUP(COLUMNS($G:AZ)/3,0)))","v":0},null,null,{"$f":"IF(BC$7=0,0,INDEX(INDIRECT(Order_Rng),ROUNDUP(COLUMNS($G:BC)/3,0)))","v":0},null,null,{"$f":"IF(BF$7=0,0,INDEX(INDIRECT(Order_Rng),ROUNDUP(COLUMNS($G:BF)/3,0)))","v":0},null,null,{"$f":"IF(BI$7=0,0,INDEX(INDIRECT(Order_Rng),ROUNDUP(COLUMNS($G:BI)/3,0)))","v":0},null,null,{"$f":"IF(BL$7=0,0,INDEX(INDIRECT(Order_Rng),ROUNDUP(COLUMNS($G:BL)/3,0)))","v":0},null,null,{"$f":"IF(BO$7=0,0,INDEX(INDIRECT(Order_Rng),ROUNDUP(COLUMNS($G:BO)/3,0)))","v":0},null,null,{"$f":"IF(BR$7=0,0,INDEX(INDIRECT(Order_Rng),ROUNDUP(COLUMNS($G:BR)/3,0)))","v":0},null,null,{"$f":"IF(BU$7=0,0,INDEX(INDIRECT(Order_Rng),ROUNDUP(COLUMNS($G:BU)/3,0)))","v":0},null,null,{"$f":"IF(BX$7=0,0,INDEX(INDIRECT(Order_Rng),ROUNDUP(COLUMNS($G:BX)/3,0)))","v":0},null,null,{"$f":"IF(CA$7=0,0,INDEX(INDIRECT(Order_Rng),ROUNDUP(COLUMNS($G:CA)/3,0)))","v":0},null,null,{"$f":"IF(CD$7=0,0,INDEX(INDIRECT(Order_Rng),ROUNDUP(COLUMNS($G:CD)/3,0)))","v":0},null,null,{"$f":"IF(CG$7=0,0,INDEX(INDIRECT(Order_Rng),ROUNDUP(COLUMNS($G:CG)/3,0)))","v":0},null,null,{"$f":"IF(CJ$7=0,0,INDEX(INDIRECT(Order_Rng),ROUNDUP(COLUMNS($G:CJ)/3,0)))","v":0},null,null,{"$f":"IF(CM$7=0,0,INDEX(INDIRECT(Order_Rng),ROUNDUP(COLUMNS($G:CM)/3,0)))","v":0},null,null,{"$f":"IF(CP$7=0,0,INDEX(INDIRECT(Order_Rng),ROUNDUP(COLUMNS($G:CP)/3,0)))","v":0},null,null,{"$f":"IF(CS$7=0,0,INDEX(INDIRECT(Order_Rng),ROUNDUP(COLUMNS($G:CS)/3,0)))","v":0},null,null,{"$f":"IF(CV$7=0,0,INDEX(INDIRECT(Order_Rng),ROUNDUP(COLUMNS($G:CV)/3,0)))","v":0},null,null,{"$f":"IF(CY$7=0,0,INDEX(INDIRECT(Order_Rng),ROUNDUP(COLUMNS($G:CY)/3,0)))","v":0},null,null,{"$f":"IF(DB$7=0,0,INDEX(INDIRECT(Order_Rng),ROUNDUP(COLUMNS($G:DB)/3,0)))","v":0},null,null,{"$f":"IF(DE$7=0,0,INDEX(INDIRECT(Order_Rng),ROUNDUP(COLUMNS($G:DE)/3,0)))","v":0},null,null,{"$f":"IF(DH$7=0,0,INDEX(INDIRECT(Order_Rng),ROUNDUP(COLUMNS($G:DH)/3,0)))","v":0},null,null,{"$f":"IF(DK$7=0,0,INDEX(INDIRECT(Order_Rng),ROUNDUP(COLUMNS($G:DK)/3,0)))","v":0},null,null,{"$f":"IF(DN$7=0,0,INDEX(INDIRECT(Order_Rng),ROUNDUP(COLUMNS($G:DN)/3,0)))","v":0},null,null,{"$f":"IF(DQ$7=0,0,INDEX(INDIRECT(Order_Rng),ROUNDUP(COLUMNS($G:DQ)/3,0)))","v":0},null,null,{"$f":"IF(DT$7=0,0,INDEX(INDIRECT(Order_Rng),ROUNDUP(COLUMNS($G:DT)/3,0)))","v":0},null,null,{"$f":"IF(DW$7=0,0,INDEX(INDIRECT(Order_Rng),ROUNDUP(COLUMNS($G:DW)/3,0)))","v":0},null,null,{"$f":"IF(DZ$7=0,0,INDEX(INDIRECT(Order_Rng),ROUNDUP(COLUMNS($G:DZ)/3,0)))","v":0},null,null,{"$f":"IF(EC$7=0,0,INDEX(INDIRECT(Order_Rng),ROUNDUP(COLUMNS($G:EC)/3,0)))","v":0},null,null,{"$f":"IF(EF$7=0,0,INDEX(INDIRECT(Order_Rng),ROUNDUP(COLUMNS($G:EF)/3,0)))","v":0},null,null,{"$f":"IF(EI$7=0,0,INDEX(INDIRECT(Order_Rng),ROUNDUP(COLUMNS($G:EI)/3,0)))","v":0},null,null,{"$f":"IF(EL$7=0,0,INDEX(INDIRECT(Order_Rng),ROUNDUP(COLUMNS($G:EL)/3,0)))","v":0},null,null,{"$f":"IF(EO$7=0,0,INDEX(INDIRECT(Order_Rng),ROUNDUP(COLUMNS($G:EO)/3,0)))","v":0},null,null,{"$f":"IF(ER$7=0,0,INDEX(INDIRECT(Order_Rng),ROUNDUP(COLUMNS($G:ER)/3,0)))","v":0}]
[{"$f":"IF(OR($B10=\"\",COUNTIF($B$10:$B10,$B10)>1,LEN(TRIM($B10))<>10,ISNUMBER(--MID(TRIM($B10),5,1))),\"-\",MAX(COUNT($A$9:$A9)+1))","v":"-"}]
[{"$f":"IF(OR($B11=\"\",COUNTIF($B$10:$B11,$B11)>1,LEN(TRIM($B11))<>10,ISNUMBER(--MID(TRIM($B11),5,1))),\"-\",MAX(COUNT($A$9:$A10)+1))","v":"-"},null,null,null,{"$f":"IF(D11=\"\",\"\",D11-D10)","v":""}]
[{"$f":"IF(OR($B12=\"\",COUNTIF($B$10:$B12,$B12)>1,LEN(TRIM($B12))<>10,ISNUMBER(--MID(TRIM($B12),5,1))),\"-\",MAX(COUNT($A$9:$A11)+1))","v":"-"},null,null,null,{"$f":"IF(D12=\"\",\"\",D12-D11)","v":""}]
[{"$f":"IF(OR($B13=\"\",COUNTIF($B$10:$B13,$B13)>1,LEN(TRIM($B13))<>10,ISNUMBER(--MID(TRIM($B13),5,1))),\"-\",MAX(COUNT($A$9:$A12)+1))","v":"-"},null,null,null,""]
[{"$f":"IF(OR($B14=\"\",COUNTIF($B$10:$B14,$B14)>1,LEN(TRIM($B14))<>10,ISNUMBER(--MID(TRIM($B14),5,1))),\"-\",MAX(COUNT($A$9:$A13)+1))","v":"-"},null,null,null,""]
[{"$f":"IF(OR($B15=\"\",COUNTIF($B$10:$B15,$B15)>1,LEN(TRIM($B15))<>10,ISNUMBER(--MID(TRIM($B15),5,1))),\"-\",MAX(COUNT($A$9:$A14)+1))","v":"-"},null,null,null,""]
[{"$f":"IF(OR($B16=\"\",COUNTIF($B$10:$B16,$B16)>1,LEN(TRIM($B16))<>10,ISNUMBER(--MID(TRIM($B16),5,1))),\"-\",MAX(COUNT($A$9:$A15)+1))","v":"-"},null,null,null,""]
[{"$f":"IF(OR($B17=\"\",COUNTIF($B$10:$B17,$B17)>1,LEN(TRIM($B17))<>10,ISNUMBER(--MID(TRIM($B17),5,1))),\"-\",MAX(COUNT($A$9:$A16)+1))","v":"-"},null,null,null,""]
[{"$f":"IF(OR($B18=\"\",COUNTIF($B$10:$B18,$B18)>1,LEN(TRIM($B18))<>10,ISNUMBER(--MID(TRIM($B18),5,1))),\"-\",MAX(COUNT($A$9:$A17)+1))","v":"-"},null,null,null,""]
[{"$f":"IF(OR($B19=\"\",COUNTIF($B$10:$B19,$B19)>1,LEN(TRIM($B19))<>10,ISNUMBER(--MID(TRIM($B19),5,1))),\"-\",MAX(COUNT($A$9:$A18)+1))","v":"-"},null,null,null,""]
[{"$f":"IF(OR($B20=\"\",COUNTIF($B$10:$B20,$B20)>1,LEN(TRIM($B20))<>10,ISNUMBER(--MID(TRIM($B20),5,1))),\"-\",MAX(COUNT($A$9:$A19)+1))","v":"-"},null,null,null,""]
[{"$f":"IF(OR($B21=\"\",COUNTIF($B$10:$B21,$B21)>1,LEN(TRIM($B21))<>10,ISNUMBER(--MID(TRIM($B21),5,1))),\"-\",MAX(COUNT($A$9:$A20)+1))","v":"-"},null,null,null,""]
[{"$f":"IF(OR($B22=\"\",COUNTIF($B$10:$B22,$B22)>1,LEN(TRIM($B22))<>10,ISNUMBER(--MID(TRIM($B22),5,1))),\"-\",MAX(COUNT($A$9:$A21)+1))","v":"-"},null,null,null,""]
[{"$f":"IF(OR($B23=\"\",COUNTIF($B$10:$B23,$B23)>1,LEN(TRIM($B23))<>10,ISNUMBER(--MID(TRIM($B23),5,1))),\"-\",MAX(COUNT($A$9:$A22)+1))","v":"-"},null,null,null,""]
[{"$f":"IF(OR($B24=\"\",COUNTIF($B$10:$B24,$B24)>1,LEN(TRIM($B24))<>10,ISNUMBER(--MID(TRIM($B24),5,1))),\"-\",MAX(COUNT($A$9:$A23)+1))","v":"-"},null,null,null,""]
[{"$f":"IF(OR($B25=\"\",COUNTIF($B$10:$B25,$B25)>1,LEN(TRIM($B25))<>10,ISNUMBER(--MID(TRIM($B25),5,1))),\"-\",MAX(COUNT($A$9:$A24)+1))","v":"-"},null,null,null,""]
[{"$f":"IF(OR($B26=\"\",COUNTIF($B$10:$B26,$B26)>1,LEN(TRIM($B26))<>10,ISNUMBER(--MID(TRIM($B26),5,1))),\"-\",MAX(COUNT($A$9:$A25)+1))","v":"-"},null,null,null,""]
[{"$f":"IF(OR($B27=\"\",COUNTIF($B$10:$B27,$B27)>1,LEN(TRIM($B27))<>10,ISNUMBER(--MID(TRIM($B27),5,1))),\"-\",MAX(COUNT($A$9:$A26)+1))","v":"-"},null,null,null,""]
[{"$f":"IF(OR($B28=\"\",COUNTIF($B$10:$B28,$B28)>1,LEN(TRIM($B28))<>10,ISNUMBER(--MID(TRIM($B28),5,1))),\"-\",MAX(COUNT($A$9:$A27)+1))","v":"-"},null,null,null,""]
[{"$f":"IF(OR($B29=\"\",COUNTIF($B$10:$B29,$B29)>1,LEN(TRIM($B29))<>10,ISNUMBER(--MID(TRIM($B29),5,1))),\"-\",MAX(COUNT($A$9:$A28)+1))","v":"-"},null,null,null,""]
[{"$f":"IF(OR($B30=\"\",COUNTIF($B$10:$B30,$B30)>1,LEN(TRIM($B30))<>10,ISNUMBER(--MID(TRIM($B30),5,1))),\"-\",MAX(COUNT($A$9:$A29)+1))","v":"-"},null,null,null,""]
[{"$f":"IF(OR($B31=\"\",COUNTIF($B$10:$B31,$B31)>1,LEN(TRIM($B31))<>10,ISNUMBER(--MID(TRIM($B31),5,1))),\"-\",MAX(COUNT($A$9:$A30)+1))","v":"-"},null,null,null,""]
[{"$f":"IF(OR($B32=\"\",COUNTIF($B$10:$B32,$B32)>1,LEN(TRIM($B32))<>10,ISNUMBER(--MID(TRIM($B32),5,1))),\"-\",MAX(COUNT($A$9:$A31)+1))","v":"-"},null,null,null,""]
[{"$f":"IF(OR($B33=\"\",COUNTIF($B$10:$B33,$B33)>1,LEN(TRIM($B33))<>10,ISNUMBER(--MID(TRIM($B33),5,1))),\"-\",MAX(COUNT($A$9:$A32)+1))","v":"-"},null,null,null,""]
[{"$f":"IF(OR($B34=\"\",COUNTIF($B$10:$B34,$B34)>1,LEN(TRIM($B34))<>10,ISNUMBER(--MID(TRIM($B34),5,1))),\"-\",MAX(COUNT($A$9:$A33)+1))","v":"-"},null,null,null,""]
[{"$f":"IF(OR($B35=\"\",COUNTIF($B$10:$B35,$B35)>1,LEN(TRIM($B35))<>10,ISNUMBER(--MID(TRIM($B35),5,1))),\"-\",MAX(COUNT($A$9:$A34)+1))","v":"-"},null,null,null,""]
[{"$f":"IF(OR($B36=\"\",COUNTIF($B$10:$B36,$B36)>1,LEN(TRIM($B36))<>10,ISNUMBER(--MID(TRIM($B36),5,1))),\"-\",MAX(COUNT($A$9:$A35)+1))","v":"-"},null,null,null,""]
[{"$f":"IF(OR($B37=\"\",COUNTIF($B$10:$B37,$B37)>1,LEN(TRIM($B37))<>10,ISNUMBER(--MID(TRIM($B37),5,1))),\"-\",MAX(COUNT($A$9:$A36)+1))","v":"-"},null,null,null,""]
[{"$f":"IF(OR($B38=\"\",COUNTIF($B$10:$B38,$B38)>1,LEN(TRIM($B38))<>10,ISNUMBER(--MID(TRIM($B38),5,1))),\"-\",MAX(COUNT($A$9:$A37)+1))","v":"-"},null,null,null,""]
[{"$f":"IF(OR($B39=\"\",COUNTIF($B$10:$B39,$B39)>1,LEN(TRIM($B39))<>10,ISNUMBER(--MID(TRIM($B39),5,1))),\"-\",MAX(COUNT($A$9:$A38)+1))","v":"-"},null,null,null,""]
[{"$f":"IF(OR($B40=\"\",COUNTIF($B$10:$B40,$B40)>1,LEN(TRIM($B40))<>10,ISNUMBER(--MID(TRIM($B40),5,1))),\"-\",MAX(COUNT($A$9:$A39)+1))","v":"-"},null,null,null,""]
[{"$f":"IF(OR($B41=\"\",COUNTIF($B$10:$B41,$B41)>1,LEN(TRIM($B41))<>10,ISNUMBER(--MID(TRIM($B41),5,1))),\"-\",MAX(COUNT($A$9:$A40)+1))","v":"-"},null,null,null,""]
[{"$f":"IF(OR($B42=\"\",COUNTIF($B$10:$B42,$B42)>1,LEN(TRIM($B42))<>10,ISNUMBER(--MID(TRIM($B42),5,1))),\"-\",MAX(COUNT($A$9:$A41)+1))","v":"-"},null,null,null,""]
[{"$f":"IF(OR($B43=\"\",COUNTIF($B$10:$B43,$B43)>1,LEN(TRIM($B43))<>10,ISNUMBER(--MID(TRIM($B43),5,1))),\"-\",MAX(COUNT($A$9:$A42)+1))","v":"-"},null,null,null,""]
[{"$f":"IF(OR($B44=\"\",COUNTIF($B$10:$B44,$B44)>1,LEN(TRIM($B44))<>10,ISNUMBER(--MID(TRIM($B44),5,1))),\"-\",MAX(COUNT($A$9:$A43)+1))","v":"-"},null,null,null,""]
[{"$f":"IF(OR($B45=\"\",COUNTIF($B$10:$B45,$B45)>1,LEN(TRIM($B45))<>10,ISNUMBER(--MID(TRIM($B45),5,1))),\"-\",MAX(COUNT($A$9:$A44)+1))","v":"-"},null,null,null,""]
[{"$f":"IF(OR($B46=\"\",COUNTIF($B$10:$B46,$B46)>1,LEN(TRIM($B46))<>10,ISNUMBER(--MID(TRIM($B46),5,1))),\"-\",MAX(COUNT($A$9:$A45)+1))","v":"-"},null,null,null,""]
[{"$f":"IF(OR($B47=\"\",COUNTIF($B$10:$B47,$B47)>1,LEN(TRIM($B47))<>10,ISNUMBER(--MID(TRIM($B47),5,1))),\"-\",MAX(COUNT($A$9:$A46)+1))","v":"-"},null,null,null,""]
[{"$f":"IF(OR($B48=\"\",COUNTIF($B$10:$B48,$B48)>1,LEN(TRIM($B48))<>10,ISNUMBER(--MID(TRIM($B48),5,1))),\"-\",MAX(COUNT($A$9:$A47)+1))","v":"-"},null,null,null,""]
[{"$f":"IF(OR($B49=\"\",COUNTIF($B$10:$B49,$B49)>1,LEN(TRIM($B49))<>10,ISNUMBER(--MID(TRIM($B49),5,1))),\"-\",MAX(COUNT($A$9:$A48)+1))","v":"-"},null,null,null,""]
[{"$f":"IF(OR($B50=\"\",COUNTIF($B$10:$B50,$B50)>1,LEN(TRIM($B50))<>10,ISNUMBER(--MID(TRIM($B50),5,1))),\"-\",MAX(COUNT($A$9:$A49)+1))","v":"-"},null,null,null,""]
[{"$f":"IF(OR($B51=\"\",COUNTIF($B$10:$B51,$B51)>1,LEN(TRIM($B51))<>10,ISNUMBER(--MID(TRIM($B51),5,1))),\"-\",MAX(COUNT($A$9:$A50)+1))","v":"-"},null,null,null,""]
[{"$f":"IF(OR($B52=\"\",COUNTIF($B$10:$B52,$B52)>1,LEN(TRIM($B52))<>10,ISNUMBER(--MID(TRIM($B52),5,1))),\"-\",MAX(COUNT($A$9:$A51)+1))","v":"-"},null,null,null,""]
[{"$f":"IF(OR($B53=\"\",COUNTIF($B$10:$B53,$B53)>1,LEN(TRIM($B53))<>10,ISNUMBER(--MID(TRIM($B53),5,1))),\"-\",MAX(COUNT($A$9:$A52)+1))","v":"-"},null,null,null,""]
[{"$f":"IF(OR($B54=\"\",COUNTIF($B$10:$B54,$B54)>1,LEN(TRIM($B54))<>10,ISNUMBER(--MID(TRIM($B54),5,1))),\"-\",MAX(COUNT($A$9:$A53)+1))","v":"-"},null,null,null,""]
[{"$f":"IF(OR($B55=\"\",COUNTIF($B$10:$B55,$B55)>1,LEN(TRIM($B55))<>10,ISNUMBER(--MID(TRIM($B55),5,1))),\"-\",MAX(COUNT($A$9:$A54)+1))","v":"-"},null,null,null,""]
[{"$f":"IF(OR($B56=\"\",COUNTIF($B$10:$B56,$B56)>1,LEN(TRIM($B56))<>10,ISNUMBER(--MID(TRIM($B56),5,1))),\"-\",MAX(COUNT($A$9:$A55)+1))","v":"-"},null,null,null,""]
[{"$f":"IF(OR($B57=\"\",COUNTIF($B$10:$B57,$B57)>1,LEN(TRIM($B57))<>10,ISNUMBER(--MID(TRIM($B57),5,1))),\"-\",MAX(COUNT($A$9:$A56)+1))","v":"-"},null,null,null,""]
[{"$f":"IF(OR($B58=\"\",COUNTIF($B$10:$B58,$B58)>1,LEN(TRIM($B58))<>10,ISNUMBER(--MID(TRIM($B58),5,1))),\"-\",MAX(COUNT($A$9:$A57)+1))","v":"-"},null,null,null,""]
[{"$f":"IF(OR($B59=\"\",COUNTIF($B$10:$B59,$B59)>1,LEN(TRIM($B59))<>10,ISNUMBER(--MID(TRIM($B59),5,1))),\"-\",MAX(COUNT($A$9:$A58)+1))","v":"-"},null,null,null,""]
[{"$f":"IF(OR($B60=\"\",COUNTIF($B$10:$B60,$B60)>1,LEN(TRIM($B60))<>10,ISNUMBER(--MID(TRIM($B60),5,1))),\"-\",MAX(COUNT($A$9:$A59)+1))","v":"-"},null,null,null,""]
[{"$f":"IF(OR($B61=\"\",COUNTIF($B$10:$B61,$B61)>1,LEN(TRIM($B61))<>10,ISNUMBER(--MID(TRIM($B61),5,1))),\"-\",MAX(COUNT($A$9:$A60)+1))","v":"-"},null,null,null,""]
[{"$f":"IF(OR($B62=\"\",COUNTIF($B$10:$B62,$B62)>1,LEN(TRIM($B62))<>10,ISNUMBER(--MID(TRIM($B62),5,1))),\"-\",MAX(COUNT($A$9:$A61)+1))","v":"-"},null,null,null,""]
[{"$f":"IF(OR($B63=\"\",COUNTIF($B$10:$B63,$B63)>1,LEN(TRIM($B63))<>10,ISNUMBER(--MID(TRIM($B63),5,1))),\"-\",MAX(COUNT($A$9:$A62)+1))","v":"-"},null,null,null,""]
[{"$f":"IF(OR($B64=\"\",COUNTIF($B$10:$B64,$B64)>1,LEN(TRIM($B64))<>10,ISNUMBER(--MID(TRIM($B64),5,1))),\"-\",MAX(COUNT($A$9:$A63)+1))","v":"-"},null,null,null,""]
[{"$f":"IF(OR($B65=\"\",COUNTIF($B$10:$B65,$B65)>1,LEN(TRIM($B65))<>10,ISNUMBER(--MID(TRIM($B65),5,1))),\"-\",MAX(COUNT($A$9:$A64)+1))","v":"-"},null,null,null,""]
[{"$f":"IF(OR($B66=\"\",COUNTIF($B$10:$B66,$B66)>1,LEN(TRIM($B66))<>10,ISNUMBER(--MID(TRIM($B66),5,1))),\"-\",MAX(COUNT($A$9:$A65)+1))","v":"-"},null,null,null,""]
[{"$f":"IF(OR($B67=\"\",COUNTIF($B$10:$B67,$B67)>1,LEN(TRIM($B67))<>10,ISNUMBER(--MID(TRIM($B67),5,1))),\"-\",MAX(COUNT($A$9:$A66)+1))","v":"-"},null,null,null,""]
[{"$f":"IF(OR($B68=\"\",COUNTIF($B$10:$B68,$B68)>1,LEN(TRIM($B68))<>10,ISNUMBER(--MID(TRIM($B68),5,1))),\"-\",MAX(COUNT($A$9:$A67)+1))","v":"-"},null,null,null,""]
[{"$f":"IF(OR($B69=\"\",COUNTIF($B$10:$B69,$B69)>1,LEN(TRIM($B69))<>10,ISNUMBER(--MID(TRIM($B69),5,1))),\"-\",MAX(COUNT($A$9:$A68)+1))","v":"-"},null,null,null,""]
[{"$f":"IF(OR($B70=\"\",COUNTIF($B$10:$B70,$B70)>1,LEN(TRIM($B70))<>10,ISNUMBER(--MID(TRIM($B70),5,1))),\"-\",MAX(COUNT($A$9:$A69)+1))","v":"-"},null,null,null,""]
[{"$f":"IF(OR($B71=\"\",COUNTIF($B$10:$B71,$B71)>1,LEN(TRIM($B71))<>10,ISNUMBER(--MID(TRIM($B71),5,1))),\"-\",MAX(COUNT($A$9:$A70)+1))","v":"-"},null,null,null,""]
[{"$f":"IF(OR($B72=\"\",COUNTIF($B$10:$B72,$B72)>1,LEN(TRIM($B72))<>10,ISNUMBER(--MID(TRIM($B72),5,1))),\"-\",MAX(COUNT($A$9:$A71)+1))","v":"-"},null,null,null,""]
[{"$f":"IF(OR($B73=\"\",COUNTIF($B$10:$B73,$B73)>1,LEN(TRIM($B73))<>10,ISNUMBER(--MID(TRIM($B73),5,1))),\"-\",MAX(COUNT($A$9:$A72)+1))","v":"-"},null,null,null,""]
[{"$f":"IF(OR($B74=\"\",COUNTIF($B$10:$B74,$B74)>1,LEN(TRIM($B74))<>10,ISNUMBER(--MID(TRIM($B74),5,1))),\"-\",MAX(COUNT($A$9:$A73)+1))","v":"-"},null,null,null,""]
[{"$f":"IF(OR($B75=\"\",COUNTIF($B$10:$B75,$B75)>1,LEN(TRIM($B75))<>10,ISNUMBER(--MID(TRIM($B75),5,1))),\"-\",MAX(COUNT($A$9:$A74)+1))","v":"-"},null,null,null,""]
[{"$f":"IF(OR($B76=\"\",COUNTIF($B$10:$B76,$B76)>1,LEN(TRIM($B76))<>10,ISNUMBER(--MID(TRIM($B76),5,1))),\"-\",MAX(COUNT($A$9:$A75)+1))","v":"-"},null,null,null,{"$f":"IF(D76=\"\",\"\",D76-D75)","v":""}]
[{"$f":"IF(OR($B77=\"\",COUNTIF($B$10:$B77,$B77)>1,LEN(TRIM($B77))<>10,ISNUMBER(--MID(TRIM($B77),5,1))),\"-\",MAX(COUNT($A$9:$A76)+1))","v":"-"},null,null,null,""]
[{"$f":"IF(OR($B78=\"\",COUNTIF($B$10:$B78,$B78)>1,LEN(TRIM($B78))<>10,ISNUMBER(--MID(TRIM($B78),5,1))),\"-\",MAX(COUNT($A$9:$A77)+1))","v":"-"},null,null,null,""]
[{"$f":"IF(OR($B79=\"\",COUNTIF($B$10:$B79,$B79)>1,LEN(TRIM($B79))<>10,ISNUMBER(--MID(TRIM($B79),5,1))),\"-\",MAX(COUNT($A$9:$A78)+1))","v":"-"},null,null,null,""]
["รวมของขาย|ของเสีย|เหลือบนเชลฟ์",null,null,null,null,null,{"$f":"SUM(G10:G79)","v":0},0,0,{"$f":"SUM(J10:J79)","v":0},0,0,0,0,0,0,0,0,0,0,0,0,0,0,0,0,0,0,0,0,0,0,0,0,0,0,0,0,0,0,0,0,0,0,0,0,0,0,0,0,0,0,0,0,0,0,0,0,0,0,0,0,0,0,0,0,0,0,0,0,0,0,0,{"$f":"SUM(BV10:BV79)","v":0},0,0,0,0,0,0,0,0,0,0,0,0,0,0,0,0,0,0,0,0,0,0,0,0,0,0,0,0,0,0,0,0,0,0,0,0,0,0,0,0,0,0,0,0,0,0,0,0,0,0,0,0,0,0,0,0,0,0,0,0,0,{"$f":"SUM(EF10:EF79)","v":0},0,0,{"$f":"SUM(EI10:EI79)","v":0},0,0,0,0,0,{"$f":"SUM(EO10:EO79)","v":0},0,0,0,0,0,"รวมเงินเชื่อ","รวมเงินสด","ภาษี","รวมยอดขาย"]
["ของเหลือ",null,null,null,null,null,{"$f":"G80+H80-G9","v":0},null,null,{"$f":"J80+K80-J9","v":0},null,null,{"$f":"M80+N80-M9","v":0},null,null,{"$f":"P80+Q80-P9","v":0},null,null,{"$f":"S80+T80-S9","v":0},null,null,{"$f":"V80+W80-V9","v":0},null,null,{"$f":"Y80+Z80-Y9","v":0},null,null,{"$f":"AB80+AC80-AB9","v":0},null,null,{"$f":"AE80+AF80-AE9","v":0},null,null,{"$f":"AH80+AI80-AH9","v":0},null,null,{"$f":"AK80+AL80-AK9","v":0},null,null,{"$f":"AN80+AO80-AN9","v":0},null,null,{"$f":"AQ80+AR80-AQ9","v":0},null,null,{"$f":"AT80+AU80-AT9","v":0},null,null,{"$f":"AW80+AX80-AW9","v":0},null,null,{"$f":"AZ80+BA80-AZ9","v":0},null,null,{"$f":"BC80+BD80-BC9","v":0},null,null,{"$f":"BF80+BG80-BF9","v":0},null,null,{"$f":"BI80+BJ80-BI9","v":0},null,null,{"$f":"BL80+BM80-BL9","v":0},null,null,{"$f":"BO80+BP80-BO9","v":0},null,null,{"$f":"BR80+BS80-BR9","v":0},null,null,{"$f":"BU80+BV80-BU9","v":0},null,null,{"$f":"BX80+BY80-BX9","v":0},null,null,{"$f":"CA80+CB80-CA9","v":0},null,null,{"$f":"CD80+CE80-CD9","v":0},null,null,{"$f":"CG80+CH80-CG9","v":0},null,null,{"$f":"CJ80+CK80-CJ9","v":0},null,null,{"$f":"CM80+CN80-CM9","v":0},null,null,{"$f":"CP80+CQ80-CP9","v":0},null,null,{"$f":"CS80+CT80-CS9","v":0},null,null,{"$f":"CV80+CW80-CV9","v":0},null,null,{"$f":"CY80+CZ80-CY9","v":0},null,null,{"$f":"DB80+DC80-DB9","v":0},null,null,{"$f":"DE80+DF80-DE9","v":0},null,null,{"$f":"DH80+DI80-DH9","v":0},null,null,{"$f":"DK80+DL80-DK9","v":0},null,null,{"$f":"DN80+DO80-DN9","v":0},null,null,{"$f":"DQ80+DR80-DQ9","v":0},null,null,{"$f":"DT80+DU80-DT9","v":0},null,null,{"$f":"DW80+DX80-DW9","v":0},null,null,{"$f":"DZ80+EA80-DZ9","v":0},null,null,{"$f":"EC80+ED80-EC9","v":0},null,null,{"$f":"EF80+EG80-EF9","v":0},null,null,{"$f":"EI80+EJ80-EI9","v":0},null,null,{"$f":"EL80+EM80-EL9","v":0},null,null,{"$f":"EO80+EP80-EO9","v":0},null,null,{"$f":"ER80+ES80-ER9","v":0},null,null,{"$f":"SUM(EU10:EU79)","v":0},{"$f":"SUM(EV10:EV79)","v":0},{"$f":"SUM(EW10:EW79)","v":0},{"$f":"SUM(EX10:EX79)","v":0}]
["เฉลี่ย",null,null,"เหลือ/เสีย(จริง)",null,null,{"$f":"INDIRECT(\"F\"&ROW($G$87)+ROUNDUP(COLUMNS($G:G)/3,0))","v":0},{"$f":"INDIRECT(\"G\"&ROW($G$87)+ROUNDUP(COLUMNS($G:H)/3,0))","v":0},null,{"$f":"INDIRECT(\"F\"&ROW($G$87)+ROUNDUP(COLUMNS($G:J)/3,0))","v":0},{"$f":"INDIRECT(\"G\"&ROW($G$87)+ROUNDUP(COLUMNS($G:K)/3,0))","v":0},null,{"$f":"INDIRECT(\"F\"&ROW($G$87)+ROUNDUP(COLUMNS($G:M)/3,0))","v":0},{"$f":"INDIRECT(\"G\"&ROW($G$87)+ROUNDUP(COLUMNS($G:N)/3,0))","v":0},null,{"$f":"INDIRECT(\"F\"&ROW($G$87)+ROUNDUP(COLUMNS($G:P)/3,0))","v":0},{"$f":"INDIRECT(\"G\"&ROW($G$87)+ROUNDUP(COLUMNS($G:Q)/3,0))","v":0},null,{"$f":"INDIRECT(\"F\"&ROW($G$87)+ROUNDUP(COLUMNS($G:S)/3,0))","v":0},{"$f":"INDIRECT(\"G\"&ROW($G$87)+ROUNDUP(COLUMNS($G:T)/3,0))","v":0},null,{"$f":"INDIRECT(\"F\"&ROW($G$87)+ROUNDUP(COLUMNS($G:V)/3,0))","v":0},{"$f":"INDIRECT(\"G\"&ROW($G$87)+ROUNDUP(COLUMNS($G:W)/3,0))","v":0},null,{"$f":"INDIRECT(\"F\"&ROW($G$87)+ROUNDUP(COLUMNS($G:Y)/3,0))","v":0},{"$f":"INDIRECT(\"G\"&ROW($G$87)+ROUNDUP(COLUMNS($G:Z)/3,0))","v":0},null,{"$f":"INDIRECT(\"F\"&ROW($G$87)+ROUNDUP(COLUMNS($G:AB)/3,0))","v":0},{"$f":"INDIRECT(\"G\"&ROW($G$87)+ROUNDUP(COLUMNS($G:AC)/3,0))","v":0},null,{"$f":"INDIRECT(\"F\"&ROW($G$87)+ROUNDUP(COLUMNS($G:AE)/3,0))","v":0},{"$f":"INDIRECT(\"G\"&ROW($G$87)+ROUNDUP(COLUMNS($G:AF)/3,0))","v":0},null,{"$f":"INDIRECT(\"F\"&ROW($G$87)+ROUNDUP(COLUMNS($G:AH)/3,0))","v":0},{"$f":"INDIRECT(\"G\"&ROW($G$87)+ROUNDUP(COLUMNS($G:AI)/3,0))","v":0},null,{"$f":"INDIRECT(\"F\"&ROW($G$87)+ROUNDUP(COLUMNS($G:AK)/3,0))","v":0},{"$f":"INDIRECT(\"G\"&ROW($G$87)+ROUNDUP(COLUMNS($G:AL)/3,0))","v":0},null,{"$f":"INDIRECT(\"F\"&ROW($G$87)+ROUNDUP(COLUMNS($G:AN)/3,0))","v":0},{"$f":"INDIRECT(\"G\"&ROW($G$87)+ROUNDUP(COLUMNS($G:AO)/3,0))","v":0},null,{"$f":"INDIRECT(\"F\"&ROW($G$87)+ROUNDUP(COLUMNS($G:AQ)/3,0))","v":0},{"$f":"INDIRECT(\"G\"&ROW($G$87)+ROUNDUP(COLUMNS($G:AR)/3,0))","v":0},null,{"$f":"INDIRECT(\"F\"&ROW($G$87)+ROUNDUP(COLUMNS($G:AT)/3,0))","v":0},{"$f":"INDIRECT(\"G\"&ROW($G$87)+ROUNDUP(COLUMNS($G:AU)/3,0))","v":0},null,{"$f":"INDIRECT(\"F\"&ROW($G$87)+ROUNDUP(COLUMNS($G:AW)/3,0))","v":0},{"$f":"INDIRECT(\"G\"&ROW($G$87)+ROUNDUP(COLUMNS($G:AX)/3,0))","v":0},null,{"$f":"INDIRECT(\"F\"&ROW($G$87)+ROUNDUP(COLUMNS($G:AZ)/3,0))","v":0},{"$f":"INDIRECT(\"G\"&ROW($G$87)+ROUNDUP(COLUMNS($G:BA)/3,0))","v":0},null,{"$f":"INDIRECT(\"F\"&ROW($G$87)+ROUNDUP(COLUMNS($G:BC)/3,0))","v":0},{"$f":"INDIRECT(\"G\"&ROW($G$87)+ROUNDUP(COLUMNS($G:BD)/3,0))","v":0},null,{"$f":"INDIRECT(\"F\"&ROW($G$87)+ROUNDUP(COLUMNS($G:BF)/3,0))","v":0},{"$f":"INDIRECT(\"G\"&ROW($G$87)+ROUNDUP(COLUMNS($G:BG)/3,0))","v":0},null,{"$f":"INDIRECT(\"F\"&ROW($G$87)+ROUNDUP(COLUMNS($G:BI)/3,0))","v":0},{"$f":"INDIRECT(\"G\"&ROW($G$87)+ROUNDUP(COLUMNS($G:BJ)/3,0))","v":0},null,{"$f":"INDIRECT(\"F\"&ROW($G$87)+ROUNDUP(COLUMNS($G:BL)/3,0))","v":0},{"$f":"INDIRECT(\"G\"&ROW($G$87)+ROUNDUP(COLUMNS($G:BM)/3,0))","v":0},null,{"$f":"INDIRECT(\"F\"&ROW($G$87)+ROUNDUP(COLUMNS($G:BO)/3,0))","v":0},{"$f":"INDIRECT(\"G\"&ROW($G$87)+ROUNDUP(COLUMNS($G:BP)/3,0))","v":0},null,{"$f":"INDIRECT(\"F\"&ROW($G$87)+ROUNDUP(COLUMNS($G:BR)/3,0))","v":0},{"$f":"INDIRECT(\"G\"&ROW($G$87)+ROUNDUP(COLUMNS($G:BS)/3,0))","v":0},null,{"$f":"INDIRECT(\"F\"&ROW($G$87)+ROUNDUP(COLUMNS($G:BU)/3,0))","v":0},{"$f":"INDIRECT(\"G\"&ROW($G$87)+ROUNDUP(COLUMNS($G:BV)/3,0))","v":0},null,{"$f":"INDIRECT(\"F\"&ROW($G$87)+ROUNDUP(COLUMNS($G:BX)/3,0))","v":0},{"$f":"INDIRECT(\"G\"&ROW($G$87)+ROUNDUP(COLUMNS($G:BY)/3,0))","v":0},null,{"$f":"INDIRECT(\"F\"&ROW($G$87)+ROUNDUP(COLUMNS($G:CA)/3,0))","v":0},{"$f":"INDIRECT(\"G\"&ROW($G$87)+ROUNDUP(COLUMNS($G:CB)/3,0))","v":0},null,{"$f":"INDIRECT(\"F\"&ROW($G$87)+ROUNDUP(COLUMNS($G:CD)/3,0))","v":0},{"$f":"INDIRECT(\"G\"&ROW($G$87)+ROUNDUP(COLUMNS($G:CE)/3,0))","v":0},null,{"$f":"INDIRECT(\"F\"&ROW($G$87)+ROUNDUP(COLUMNS($G:CG)/3,0))","v":0},{"$f":"INDIRECT(\"G\"&ROW($G$87)+ROUNDUP(COLUMNS($G:CH)/3,0))","v":0},null,{"$f":"INDIRECT(\"F\"&ROW($G$87)+ROUNDUP(COLUMNS($G:CJ)/3,0))","v":0},{"$f":"INDIRECT(\"G\"&ROW($G$87)+ROUNDUP(COLUMNS($G:CK)/3,0))","v":0},null,{"$f":"INDIRECT(\"F\"&ROW($G$87)+ROUNDUP(COLUMNS($G:CM)/3,0))","v":0},{"$f":"INDIRECT(\"G\"&ROW($G$87)+ROUNDUP(COLUMNS($G:CN)/3,0))","v":0},null,{"$f":"INDIRECT(\"F\"&ROW($G$87)+ROUNDUP(COLUMNS($G:CP)/3,0))","v":0},{"$f":"INDIRECT(\"G\"&ROW($G$87)+ROUNDUP(COLUMNS($G:CQ)/3,0))","v":0},null,{"$f":"INDIRECT(\"F\"&ROW($G$87)+ROUNDUP(COLUMNS($G:CS)/3,0))","v":0},{"$f":"INDIRECT(\"G\"&ROW($G$87)+ROUNDUP(COLUMNS($G:CT)/3,0))","v":0},null,{"$f":"INDIRECT(\"F\"&ROW($G$87)+ROUNDUP(COLUMNS($G:CV)/3,0))","v":0},{"$f":"INDIRECT(\"G\"&ROW($G$87)+ROUNDUP(COLUMNS($G:CW)/3,0))","v":0},null,{"$f":"INDIRECT(\"F\"&ROW($G$87)+ROUNDUP(COLUMNS($G:CY)/3,0))","v":0},{"$f":"INDIRECT(\"G\"&ROW($G$87)+ROUNDUP(COLUMNS($G:CZ)/3,0))","v":0},null,{"$f":"INDIRECT(\"F\"&ROW($G$87)+ROUNDUP(COLUMNS($G:DB)/3,0))","v":0},{"$f":"INDIRECT(\"G\"&ROW($G$87)+ROUNDUP(COLUMNS($G:DC)/3,0))","v":0},null,{"$f":"INDIRECT(\"F\"&ROW($G$87)+ROUNDUP(COLUMNS($G:DE)/3,0))","v":0},{"$f":"INDIRECT(\"G\"&ROW($G$87)+ROUNDUP(COLUMNS($G:DF)/3,0))","v":0},null,{"$f":"INDIRECT(\"F\"&ROW($G$87)+ROUNDUP(COLUMNS($G:DH)/3,0))","v":0},{"$f":"INDIRECT(\"G\"&ROW($G$87)+ROUNDUP(COLUMNS($G:DI)/3,0))","v":0},null,{"$f":"INDIRECT(\"F\"&ROW($G$87)+ROUNDUP(COLUMNS($G:DK)/3,0))","v":0},{"$f":"INDIRECT(\"G\"&ROW($G$87)+ROUNDUP(COLUMNS($G:DL)/3,0))","v":0},null,{"$f":"INDIRECT(\"F\"&ROW($G$87)+ROUNDUP(COLUMNS($G:DN)/3,0))","v":0},{"$f":"INDIRECT(\"G\"&ROW($G$87)+ROUNDUP(COLUMNS($G:DO)/3,0))","v":0},null,{"$f":"INDIRECT(\"F\"&ROW($G$87)+ROUNDUP(COLUMNS($G:DQ)/3,0))","v":0},{"$f":"INDIRECT(\"G\"&ROW($G$87)+ROUNDUP(COLUMNS($G:DR)/3,0))","v":0},null,{"$f":"INDIRECT(\"F\"&ROW($G$87)+ROUNDUP(COLUMNS($G:DT)/3,0))","v":0},{"$f":"INDIRECT(\"G\"&ROW($G$87)+ROUNDUP(COLUMNS($G:DU)/3,0))","v":0},null,{"$f":"INDIRECT(\"F\"&ROW($G$87)+ROUNDUP(COLUMNS($G:DW)/3,0))","v":0},{"$f":"INDIRECT(\"G\"&ROW($G$87)+ROUNDUP(COLUMNS($G:DX)/3,0))","v":0},null,{"$f":"INDIRECT(\"F\"&ROW($G$87)+ROUNDUP(COLUMNS($G:DZ)/3,0))","v":0},{"$f":"INDIRECT(\"G\"&ROW($G$87)+ROUNDUP(COLUMNS($G:EA)/3,0))","v":0},null,{"$f":"INDIRECT(\"F\"&ROW($G$87)+ROUNDUP(COLUMNS($G:EC)/3,0))","v":0},{"$f":"INDIRECT(\"G\"&ROW($G$87)+ROUNDUP(COLUMNS($G:ED)/3,0))","v":0},null,{"$f":"INDIRECT(\"F\"&ROW($G$87)+ROUNDUP(COLUMNS($G:EF)/3,0))","v":0},{"$f":"INDIRECT(\"G\"&ROW($G$87)+ROUNDUP(COLUMNS($G:EG)/3,0))","v":0},null,{"$f":"INDIRECT(\"F\"&ROW($G$87)+ROUNDUP(COLUMNS($G:EI)/3,0))","v":0},{"$f":"INDIRECT(\"G\"&ROW($G$87)+ROUNDUP(COLUMNS($G:EJ)/3,0))","v":0},null,{"$f":"INDIRECT(\"F\"&ROW($G$87)+ROUNDUP(COLUMNS($G:EL)/3,0))","v":0},{"$f":"INDIRECT(\"G\"&ROW($G$87)+ROUNDUP(COLUMNS($G:EM)/3,0))","v":0},null,{"$f":"INDIRECT(\"F\"&ROW($G$87)+ROUNDUP(COLUMNS($G:EO)/3,0))","v":0},{"$f":"INDIRECT(\"G\"&ROW($G$87)+ROUNDUP(COLUMNS($G:EP)/3,0))","v":0},null,{"$f":"INDIRECT(\"F\"&ROW($G$87)+ROUNDUP(COLUMNS($G:ER)/3,0))","v":0},{"$f":"INDIRECT(\"G\"&ROW($G$87)+ROUNDUP(COLUMNS($G:ES)/3,0))","v":0},null,{"$f":"EU81+EV81","v":0}]
["เวลากลับถึงสำนักงานเช็คของเสีย",null,null,{"$f":"D139","v":"00:00:00"},null,"ผลต่าง",{"$f":"G82+H82+G80-G9","v":0},null,null,{"$f":"J82+K82+J80-J9","v":0},null,null,{"$f":"M82+N82+M80-M9","v":0},null,null,{"$f":"P82+Q82+P80-P9","v":0},null,null,{"$f":"S82+T82+S80-S9","v":0},null,null,{"$f":"V82+W82+V80-V9","v":0},null,null,{"$f":"Y82+Z82+Y80-Y9","v":0},null,null,{"$f":"AB82+AC82+AB80-AB9","v":0},null,null,{"$f":"AE82+AF82+AE80-AE9","v":0},null,null,{"$f":"AH82+AI82+AH80-AH9","v":0},null,null,{"$f":"AK82+AL82+AK80-AK9","v":0},null,null,{"$f":"AN82+AO82+AN80-AN9","v":0},null,null,{"$f":"AQ82+AR82+AQ80-AQ9","v":0},null,null,{"$f":"AT82+AU82+AT80-AT9","v":0},null,null,{"$f":"AW82+AX82+AW80-AW9","v":0},null,null,{"$f":"AZ82+BA82+AZ80-AZ9","v":0},null,null,{"$f":"BC82+BD82+BC80-BC9","v":0},null,null,{"$f":"BF82+BG82+BF80-BF9","v":0},null,null,{"$f":"BI82+BJ82+BI80-BI9","v":0},null,null,{"$f":"BL82+BM82+BL80-BL9","v":0},null,null,{"$f":"BO82+BP82+BO80-BO9","v":0},null,null,{"$f":"BR82+BS82+BR80-BR9","v":0},null,null,{"$f":"BU82+BV82+BU80-BU9","v":0},null,null,{"$f":"BX82+BY82+BX80-BX9","v":0},null,null,{"$f":"CA82+CB82+CA80-CA9","v":0},null,null,{"$f":"CD82+CE82+CD80-CD9","v":0},null,null,{"$f":"CG82+CH82+CG80-CG9","v":0},null,null,{"$f":"CJ82+CK82+CJ80-CJ9","v":0},null,null,{"$f":"CM82+CN82+CM80-CM9","v":0},null,null,{"$f":"CP82+CQ82+CP80-CP9","v":0},null,null,{"$f":"CS82+CT82+CS80-CS9","v":0},null,null,{"$f":"CV82+CW82+CV80-CV9","v":0},null,null,{"$f":"CY82+CZ82+CY80-CY9","v":0},null,null,{"$f":"DB82+DC82+DB80-DB9","v":0},null,null,{"$f":"DE82+DF82+DE80-DE9","v":0},null,null,{"$f":"DH82+DI82+DH80-DH9","v":0},null,null,{"$f":"DK82+DL82+DK80-DK9","v":0},null,null,{"$f":"DN82+DO82+DN80-DN9","v":0},null,null,{"$f":"DQ82+DR82+DQ80-DQ9","v":0},null,null,{"$f":"DT82+DU82+DT80-DT9","v":0},null,null,{"$f":"DW82+DX82+DW80-DW9","v":0},null,null,{"$f":"DZ82+EA82+DZ80-DZ9","v":0},null,null,{"$f":"EC82+ED82+EC80-EC9","v":0},null,null,{"$f":"EF82+EG82+EF80-EF9","v":0},null,null,{"$f":"EI82+EJ82+EI80-EI9","v":0},null,null,{"$f":"EL82+EM82+EL80-EL9","v":0},null,null,{"$f":"EO82+EP82+EO80-EO9","v":0},null,null,{"$f":"ER82+ES82+ER80-ER9","v":0}]
["เป็นเงิน",null,null,null,null,null,{"$f":"G8*G83","v":0},null,null,{"$f":"J8*J83","v":0},null,null,{"$f":"M8*M83","v":0},null,null,{"$f":"P8*P83","v":0},null,null,{"$f":"S8*S83","v":0},null,null,{"$f":"V8*V83","v":0},null,null,{"$f":"Y8*Y83","v":0},null,null,{"$f":"AB8*AB83","v":0},null,null,{"$f":"AE8*AE83","v":0},null,null,{"$f":"AH8*AH83","v":0},null,null,{"$f":"AK8*AK83","v":0},null,null,{"$f":"AN8*AN83","v":0},null,null,{"$f":"AQ8*AQ83","v":0},null,null,{"$f":"AT8*AT83","v":0},null,null,{"$f":"AW8*AW83","v":0},null,null,{"$f":"AZ8*AZ83","v":0},null,null,{"$f":"BC8*BC83","v":0},null,null,{"$f":"BF8*BF83","v":0},null,null,{"$f":"BI8*BI83","v":0},null,null,{"$f":"BL8*BL83","v":0},null,null,{"$f":"BO8*BO83","v":0},null,null,{"$f":"BR8*BR83","v":0},null,null,{"$f":"BU8*BU83","v":0},null,null,{"$f":"BX8*BX83","v":0},null,null,{"$f":"CA8*CA83","v":0},null,null,{"$f":"CD8*CD83","v":0},null,null,{"$f":"CG8*CG83","v":0},null,null,{"$f":"CJ8*CJ83","v":0},null,null,{"$f":"CM8*CM83","v":0},null,null,{"$f":"CP8*CP83","v":0},null,null,{"$f":"CS8*CS83","v":0},null,null,{"$f":"CV8*CV83","v":0},null,null,{"$f":"CY8*CY83","v":0},null,null,{"$f":"DB8*DB83","v":0},null,null,{"$f":"DE8*DE83","v":0},null,null,{"$f":"DH8*DH83","v":0},null,null,{"$f":"DK8*DK83","v":0},null,null,{"$f":"DN8*DN83","v":0},null,null,{"$f":"DQ8*DQ83","v":0},null,null,{"$f":"DT8*DT83","v":0},null,null,{"$f":"DW8*DW83","v":0},null,null,0,null,null,{"$f":"EC8*EC83","v":0},null,null,{"$f":"EF8*EF83","v":0},null,null,{"$f":"EI8*EI83","v":0},null,null,{"$f":"EL8*EL83","v":0},null,null,{"$f":"EO8*EO83","v":0},null,null,{"$f":"ER8*ER83","v":0},null,null,{"$f":"$AP$98","v":0}]
[null,null,null,"ผู้จัดทำ……………………………………………………………………",null,null,null,null,null,null,null,null,null,null,null,null,null,null,null,null,null,null,null,"ผู้ตรวจ(ผจก.)………………………………………………………………………………."]
[null,null,"ใบจ่ายสินค้า",null,null,null,null,null,null,null,null,null,null,null,null,null,null,{"$f":"IF(ISODD(COLUMN()),MAX($F$86:Q$86)+1,\"\")","v":""}]
["ราคา","ลำดับ","รายการ","ยกมา","เบิก","เหลือ","เสีย","โอนเข้า","โอนออก","ชำรุด","รวม",null,"ขาย",null,"ขาด/เกิน",null,"บาท",null,null,null,"ขายได้",null,"ควรเบิก",null,"หมายเหตุ",null,null,null,"เสีย PDA","เสียจริง","เหลือ PDA","ผลต่าง","เหลือลูกค้า","หมายเหตุ",null,null,null,null,"Price","Quantity","Baht","Deduct"]
[{"$f":"IF(B88=\"\",0,INDEX(Price_List,ROWS($88:88)))","v":20},{"$f":"IF($C88=\"\",\"\",COUNTA($C$88:$C88))","v":1},{"$f":"IF(INDEX(INDIRECT(\"Product_List\"),ROWS($88:88))=\"\",\"\",INDEX(INDIRECT(\"Product_List\"),ROWS($88:88)))","v":"01-ขนมปังหมูหยองน้ำสลัด"},{"$f":"ยอดยกมา","v":0},null,null,null,null,null,null,{"$f":"D88+E88+J88-I88+H88","v":0},null,{"$f":"INDIRECT(ADDRESS(ROW(A$80),ROW()-ROW(A$80)+(ROWS($88:88)-1)*2-1,4))","v":0},null,{"$f":"F88+G88+M88+J88-K88","v":0},null,{"$f":"O88*A88","v":0},null,null,null,{"$f":"D88+E88-F88-G88","v":0},null,{"$f":"U88*6%+U88","v":0},null,null,null,null,null,{"$f":"INDIRECT(ADDRESS(ROW(A$80),ROW()-ROW(A$80)+(ROWS($88:88)-1)*2,4))","v":0},{"$f":"$G88","v":0},null,{"$f":"$F88-$AE88","v":0},{"$f":"INDIRECT(ADDRESS(ROW(A$80),ROW()-ROW(A$80)+(ROWS($88:88)-1)*2+1,4))","v":0},null,null,null,null,null,10,{"$f":"SUMPRODUCT(($A$88:$A$135=$AM88)*(($F$88:$F$135)+($G$88:$G$135)+($M$88:$M$135)+($J$88:$J$135)-($K$88:$K$135)))","v":0},{"$f":"AM88*AN88","v":0},{"$f":"IF(AO88<0,AO88,0)","v":0}]
[{"$f":"IF(B89=\"\",0,INDEX(Price_List,ROWS($88:89)))","v":20},{"$f":"IF($C89=\"\",\"\",COUNTA($C$88:$C89))","v":2},{"$f":"IF(INDEX(INDIRECT(\"Product_List\"),ROWS($88:89))=\"\",\"\",INDEX(INDIRECT(\"Product_List\"),ROWS($88:89)))","v":"02-ขนมปังหมูหยองน้ำพริกเผา"},{"$f":"ยอดยกมา","v":0},null,null,null,null,null,null,{"$f":"D89+E89+J89-I89+H89","v":0},null,{"$f":"INDIRECT(ADDRESS(ROW(A$80),ROW()-ROW(A$80)+(ROWS($88:89)-1)*2-1,4))","v":0},null,{"$f":"F89+G89+M89+J89-K89","v":0},null,{"$f":"O89*A89","v":0},null,null,null,{"$f":"D89+E89-F89-G89","v":0},null,{"$f":"U89*6%+U89","v":0},null,null,null,null,null,{"$f":"INDIRECT(ADDRESS(ROW(A$80),ROW()-ROW(A$80)+(ROWS($88:89)-1)*2,4))","v":0},{"$f":"$G89","v":0},null,{"$f":"$F89-$AE89","v":0},{"$f":"INDIRECT(ADDRESS(ROW(A$80),ROW()-ROW(A$80)+(ROWS($88:89)-1)*2+1,4))","v":0},null,null,null,null,null,12,0,{"$f":"AM89*AN89","v":0},{"$f":"IF(AO89<0,AO89,0)","v":0}]
[{"$f":"IF(B90=\"\",0,INDEX(Price_List,ROWS($88:90)))","v":20},{"$f":"IF($C90=\"\",\"\",COUNTA($C$88:$C90))","v":3},{"$f":"IF(INDEX(INDIRECT(\"Product_List\"),ROWS($88:90))=\"\",\"\",INDEX(INDIRECT(\"Product_List\"),ROWS($88:90)))","v":"03-ขนมปังไก่หยองน้ำสลัด"},{"$f":"ยอดยกมา","v":0},null,null,null,null,null,null,0,null,{"$f":"INDIRECT(ADDRESS(ROW(A$80),ROW()-ROW(A$80)+(ROWS($88:90)-1)*2-1,4))","v":0},null,0,null,0,null,null,null,0,null,0,null,null,null,null,null,{"$f":"INDIRECT(ADDRESS(ROW(A$80),ROW()-ROW(A$80)+(ROWS($88:90)-1)*2,4))","v":0},0,null,0,{"$f":"INDIRECT(ADDRESS(ROW(A$80),ROW()-ROW(A$80)+(ROWS($88:90)-1)*2+1,4))","v":0},null,null,null,null,null,13,0,{"$f":"AM90*AN90","v":0},{"$f":"IF(AO90<0,AO90,0)","v":0}]
[{"$f":"IF(B91=\"\",0,INDEX(Price_List,ROWS($88:91)))","v":15},{"$f":"IF($C91=\"\",\"\",COUNTA($C$88:$C91))","v":4},{"$f":"IF(INDEX(INDIRECT(\"Product_List\"),ROWS($88:91))=\"\",\"\",INDEX(INDIRECT(\"Product_List\"),ROWS($88:91)))","v":"04-ขนมปังไส้ครีมสลัด"},{"$f":"ยอดยกมา","v":0},null,null,null,null,null,null,0,null,{"$f":"INDIRECT(ADDRESS(ROW(A$80),ROW()-ROW(A$80)+(ROWS($88:91)-1)*2-1,4))","v":0},null,{"$f":"F91+G91+M91+J91-K91","v":0},null,0,null,null,null,0,null,0,null,null,null,null,null,{"$f":"INDIRECT(ADDRESS(ROW(A$80),ROW()-ROW(A$80)+(ROWS($88:91)-1)*2,4))","v":0},0,null,0,{"$f":"INDIRECT(ADDRESS(ROW(A$80),ROW()-ROW(A$80)+(ROWS($88:91)-1)*2+1,4))","v":0},null,null,null,null,null,15,0,0,0]
[{"$f":"IF(B92=\"\",0,INDEX(Price_List,ROWS($88:92)))","v":15},{"$f":"IF($C92=\"\",\"\",COUNTA($C$88:$C92))","v":5},{"$f":"IF(INDEX(INDIRECT(\"Product_List\"),ROWS($88:92))=\"\",\"\",INDEX(INDIRECT(\"Product_List\"),ROWS($88:92)))","v":"05-ขนมปังเนยสด"},{"$f":"ยอดยกมา","v":0},null,null,null,null,null,null,0,null,{"$f":"INDIRECT(ADDRESS(ROW(A$80),ROW()-ROW(A$80)+(ROWS($88:92)-1)*2-1,4))","v":0},null,0,null,0,null,null,null,0,null,0,null,null,null,null,null,{"$f":"INDIRECT(ADDRESS(ROW(A$80),ROW()-ROW(A$80)+(ROWS($88:92)-1)*2,4))","v":0},0,null,0,{"$f":"INDIRECT(ADDRESS(ROW(A$80),ROW()-ROW(A$80)+(ROWS($88:92)-1)*2+1,4))","v":0},null,null,null,null,null,16,0,0,0]
[{"$f":"IF(B93=\"\",0,INDEX(Price_List,ROWS($88:93)))","v":10},{"$f":"IF($C93=\"\",\"\",COUNTA($C$88:$C93))","v":6},{"$f":"IF(INDEX(INDIRECT(\"Product_List\"),ROWS($88:93))=\"\",\"\",INDEX(INDIRECT(\"Product_List\"),ROWS($88:93)))","v":"06-ขนมปังไส้สังขยาเล็ก"},{"$f":"ยอดยกมา","v":0},null,null,null,null,null,null,0,null,{"$f":"INDIRECT(ADDRESS(ROW(A$80),ROW()-ROW(A$80)+(ROWS($88:93)-1)*2-1,4))","v":0},null,0,null,0,null,null,null,0,null,0,null,null,null,null,null,{"$f":"INDIRECT(ADDRESS(ROW(A$80),ROW()-ROW(A$80)+(ROWS($88:93)-1)*2,4))","v":0},0,null,0,{"$f":"INDIRECT(ADDRESS(ROW(A$80),ROW()-ROW(A$80)+(ROWS($88:93)-1)*2+1,4))","v":0},null,null,null,null,null,18,0,0,0]
[{"$f":"IF(B94=\"\",0,INDEX(Price_List,ROWS($88:94)))","v":10},{"$f":"IF($C94=\"\",\"\",COUNTA($C$88:$C94))","v":7},{"$f":"IF(INDEX(INDIRECT(\"Product_List\"),ROWS($88:94))=\"\",\"\",INDEX(INDIRECT(\"Product_List\"),ROWS($88:94)))","v":"07-ขนมปังไส้เผือก"},{"$f":"ยอดยกมา","v":0},null,null,null,null,null,null,0,null,{"$f":"INDIRECT(ADDRESS(ROW(A$80),ROW()-ROW(A$80)+(ROWS($88:94)-1)*2-1,4))","v":0},null,0,null,0,null,null,null,0,null,0,null,null,null,null,null,{"$f":"INDIRECT(ADDRESS(ROW(A$80),ROW()-ROW(A$80)+(ROWS($88:94)-1)*2,4))","v":0},0,null,0,{"$f":"INDIRECT(ADDRESS(ROW(A$80),ROW()-ROW(A$80)+(ROWS($88:94)-1)*2+1,4))","v":0},null,null,null,null,null,20,0,0,0]
[{"$f":"IF(B95=\"\",0,INDEX(Price_List,ROWS($88:95)))","v":10},{"$f":"IF($C95=\"\",\"\",COUNTA($C$88:$C95))","v":8},{"$f":"IF(INDEX(INDIRECT(\"Product_List\"),ROWS($88:95))=\"\",\"\",INDEX(INDIRECT(\"Product_List\"),ROWS($88:95)))","v":"08-ขนมปังไส้ถั่วแดง"},{"$f":"ยอดยกมา","v":0},null,null,null,null,null,null,0,null,{"$f":"INDIRECT(ADDRESS(ROW(A$80),ROW()-ROW(A$80)+(ROWS($88:95)-1)*2-1,4))","v":0},null,0,null,0,null,null,null,0,null,0,null,null,null,null,null,{"$f":"INDIRECT(ADDRESS(ROW(A$80),ROW()-ROW(A$80)+(ROWS($88:95)-1)*2,4))","v":0},0,null,0,{"$f":"INDIRECT(ADDRESS(ROW(A$80),ROW()-ROW(A$80)+(ROWS($88:95)-1)*2+1,4))","v":0},null,null,null,null,null,22,0,0,0]
[{"$f":"IF(B96=\"\",0,INDEX(Price_List,ROWS($88:96)))","v":10},{"$f":"IF($C96=\"\",\"\",COUNTA($C$88:$C96))","v":9},{"$f":"IF(INDEX(INDIRECT(\"Product_List\"),ROWS($88:96))=\"\",\"\",INDEX(INDIRECT(\"Product_List\"),ROWS($88:96)))","v":"09-ขนมปังไส้ถั่วดำ"},{"$f":"ยอดยกมา","v":0},null,null,null,null,null,null,0,null,{"$f":"INDIRECT(ADDRESS(ROW(A$80),ROW()-ROW(A$80)+(ROWS($88:96)-1)*2-1,4))","v":0},null,0,null,0,null,null,null,0,null,0,null,null,null,null,null,{"$f":"INDIRECT(ADDRESS(ROW(A$80),ROW()-ROW(A$80)+(ROWS($88:96)-1)*2,4))","v":0},0,null,0,{"$f":"INDIRECT(ADDRESS(ROW(A$80),ROW()-ROW(A$80)+(ROWS($88:96)-1)*2+1,4))","v":0},null,null,null,null,null,25,0,0,0]
[{"$f":"IF(B97=\"\",0,INDEX(Price_List,ROWS($88:97)))","v":10},{"$f":"IF($C97=\"\",\"\",COUNTA($C$88:$C97))","v":10},{"$f":"IF(INDEX(INDIRECT(\"Product_List\"),ROWS($88:97))=\"\",\"\",INDEX(INDIRECT(\"Product_List\"),ROWS($88:97)))","v":"10-ขนมปังไส้มันม่วง"},{"$f":"ยอดยกมา","v":0},null,null,null,null,null,null,0,null,{"$f":"INDIRECT(ADDRESS(ROW(A$80),ROW()-ROW(A$80)+(ROWS($88:97)-1)*2-1,4))","v":0},null,0,null,0,null,null,null,0,null,0,null,null,null,null,null,{"$f":"INDIRECT(ADDRESS(ROW(A$80),ROW()-ROW(A$80)+(ROWS($88:97)-1)*2,4))","v":0},0,null,0,{"$f":"INDIRECT(ADDRESS(ROW(A$80),ROW()-ROW(A$80)+(ROWS($88:97)-1)*2+1,4))","v":0},null,null,null,null,null,42,0,0,0]
[{"$f":"IF(B98=\"\",0,INDEX(Price_List,ROWS($88:98)))","v":15},{"$f":"IF($C98=\"\",\"\",COUNTA($C$88:$C98))","v":11},{"$f":"IF(INDEX(INDIRECT(\"Product_List\"),ROWS($88:98))=\"\",\"\",INDEX(INDIRECT(\"Product_List\"),ROWS($88:98)))","v":"11-เค้กกล้วยหอม"},{"$f":"ยอดยกมา","v":0},null,null,null,null,null,null,0,null,{"$f":"INDIRECT(ADDRESS(ROW(A$80),ROW()-ROW(A$80)+(ROWS($88:98)-1)*2-1,4))","v":0},null,0,null,0,null,null,null,0,null,0,null,null,null,null,null,{"$f":"INDIRECT(ADDRESS(ROW(A$80),ROW()-ROW(A$80)+(ROWS($88:98)-1)*2,4))","v":0},0,null,0,{"$f":"INDIRECT(ADDRESS(ROW(A$80),ROW()-ROW(A$80)+(ROWS($88:98)-1)*2+1,4))","v":0},null,null,null,null,null,"Total Deduct",null,null,{"$f":"SUM($AP$88:$AP$97)","v":0}]
[{"$f":"IF(B99=\"\",0,INDEX(Price_List,ROWS($88:99)))","v":15},{"$f":"IF($C99=\"\",\"\",COUNTA($C$88:$C99))","v":12},{"$f":"IF(INDEX(INDIRECT(\"Product_List\"),ROWS($88:99))=\"\",\"\",INDEX(INDIRECT(\"Product_List\"),ROWS($88:99)))","v":"12-เค้กบัตเตอร์"},{"$f":"ยอดยกมา","v":0},null,null,null,null,null,null,0,null,{"$f":"INDIRECT(ADDRESS(ROW(A$80),ROW()-ROW(A$80)+(ROWS($88:99)-1)*2-1,4))","v":0},null,0,null,0,null,null,null,0,null,0,null,null,null,null,null,{"$f":"INDIRECT(ADDRESS(ROW(A$80),ROW()-ROW(A$80)+(ROWS($88:99)-1)*2,4))","v":0},0,null,0,{"$f":"INDIRECT(ADDRESS(ROW(A$80),ROW()-ROW(A$80)+(ROWS($88:99)-1)*2+1,4))","v":0}]
[{"$f":"IF(B100=\"\",0,INDEX(Price_List,ROWS($88:100)))","v":15},{"$f":"IF($C100=\"\",\"\",COUNTA($C$88:$C100))","v":13},{"$f":"IF(INDEX(INDIRECT(\"Product_List\"),ROWS($88:100))=\"\",\"\",INDEX(INDIRECT(\"Product_List\"),ROWS($88:100)))","v":"13-ขนมปังโรลถั่วแดง"},{"$f":"ยอดยกมา","v":0},null,null,null,null,null,null,0,null,{"$f":"INDIRECT(ADDRESS(ROW(A$80),ROW()-ROW(A$80)+(ROWS($88:100)-1)*2-1,4))","v":0},null,0,null,0,null,null,null,0,null,0,null,null,null,null,null,{"$f":"INDIRECT(ADDRESS(ROW(A$80),ROW()-ROW(A$80)+(ROWS($88:100)-1)*2,4))","v":0},0,null,0,{"$f":"INDIRECT(ADDRESS(ROW(A$80),ROW()-ROW(A$80)+(ROWS($88:100)-1)*2+1,4))","v":0}]
[{"$f":"IF(B101=\"\",0,INDEX(Price_List,ROWS($88:101)))","v":15},{"$f":"IF($C101=\"\",\"\",COUNTA($C$88:$C101))","v":14},{"$f":"IF(INDEX(INDIRECT(\"Product_List\"),ROWS($88:101))=\"\",\"\",INDEX(INDIRECT(\"Product_List\"),ROWS($88:101)))","v":"14-ขนมปังไส้สังขยาใหญ่"},{"$f":"ยอดยกมา","v":0},null,null,null,null,null,null,0,null,{"$f":"INDIRECT(ADDRESS(ROW(A$80),ROW()-ROW(A$80)+(ROWS($88:101)-1)*2-1,4))","v":0},null,0,null,0,null,null,null,0,null,0,null,null,null,null,null,{"$f":"INDIRECT(ADDRESS(ROW(A$80),ROW()-ROW(A$80)+(ROWS($88:101)-1)*2,4))","v":0},0,null,0,{"$f":"INDIRECT(ADDRESS(ROW(A$80),ROW()-ROW(A$80)+(ROWS($88:101)-1)*2+1,4))","v":0}]
[{"$f":"IF(B102=\"\",0,INDEX(Price_List,ROWS($88:102)))","v":42},{"$f":"IF($C102=\"\",\"\",COUNTA($C$88:$C102))","v":15},{"$f":"IF(INDEX(INDIRECT(\"Product_List\"),ROWS($88:102))=\"\",\"\",INDEX(INDIRECT(\"Product_List\"),ROWS($88:102)))","v":"15-ขนมปังชนิดแผ่น(480กรัม)"},{"$f":"ยอดยกมา","v":0},null,null,null,null,null,null,0,null,{"$f":"INDIRECT(ADDRESS(ROW(A$80),ROW()-ROW(A$80)+(ROWS($88:102)-1)*2-1,4))","v":0},null,0,null,0,null,null,null,0,null,0,null,null,null,null,null,{"$f":"INDIRECT(ADDRESS(ROW(A$80),ROW()-ROW(A$80)+(ROWS($88:102)-1)*2,4))","v":0},0,null,0,{"$f":"INDIRECT(ADDRESS(ROW(A$80),ROW()-ROW(A$80)+(ROWS($88:102)-1)*2+1,4))","v":0}]
[{"$f":"IF(B103=\"\",0,INDEX(Price_List,ROWS($88:103)))","v":12},{"$f":"IF($C103=\"\",\"\",COUNTA($C$88:$C103))","v":16},{"$f":"IF(INDEX(INDIRECT(\"Product_List\"),ROWS($88:103))=\"\",\"\",INDEX(INDIRECT(\"Product_List\"),ROWS($88:103)))","v":"16-โมจิไส้ถั่ว"},{"$f":"ยอดยกมา","v":0},null,null,null,null,null,null,0,null,{"$f":"INDIRECT(ADDRESS(ROW(A$80),ROW()-ROW(A$80)+(ROWS($88:103)-1)*2-1,4))","v":0},null,0,null,0,null,null,null,0,null,0,null,null,null,null,null,{"$f":"INDIRECT(ADDRESS(ROW(A$80),ROW()-ROW(A$80)+(ROWS($88:103)-1)*2,4))","v":0},0,null,0,{"$f":"INDIRECT(ADDRESS(ROW(A$80),ROW()-ROW(A$80)+(ROWS($88:103)-1)*2+1,4))","v":0}]
[{"$f":"IF(B104=\"\",0,INDEX(Price_List,ROWS($88:104)))","v":12},{"$f":"IF($C104=\"\",\"\",COUNTA($C$88:$C104))","v":17},{"$f":"IF(INDEX(INDIRECT(\"Product_List\"),ROWS($88:104))=\"\",\"\",INDEX(INDIRECT(\"Product_List\"),ROWS($88:104)))","v":"17-โมจิไส้เผือก"},{"$f":"ยอดยกมา","v":0},null,null,null,null,null,null,0,null,{"$f":"INDIRECT(ADDRESS(ROW(A$80),ROW()-ROW(A$80)+(ROWS($88:104)-1)*2-1,4))","v":0},null,0,null,0,null,null,null,0,null,0,null,null,null,null,null,{"$f":"INDIRECT(ADDRESS(ROW(A$80),ROW()-ROW(A$80)+(ROWS($88:104)-1)*2,4))","v":0},0,null,0,{"$f":"INDIRECT(ADDRESS(ROW(A$80),ROW()-ROW(A$80)+(ROWS($88:104)-1)*2+1,4))","v":0}]
[{"$f":"IF(B105=\"\",0,INDEX(Price_List,ROWS($88:105)))","v":15},{"$f":"IF($C105=\"\",\"\",COUNTA($C$88:$C105))","v":18},{"$f":"IF(INDEX(INDIRECT(\"Product_List\"),ROWS($88:105))=\"\",\"\",INDEX(INDIRECT(\"Product_List\"),ROWS($88:105)))","v":"18-โมจิไส้ถั่วไข่เค็ม"},{"$f":"ยอดยกมา","v":0},null,null,null,null,null,null,0,null,{"$f":"INDIRECT(ADDRESS(ROW(A$80),ROW()-ROW(A$80)+(ROWS($88:105)-1)*2-1,4))","v":0},null,0,null,0,null,null,null,0,null,0,null,null,null,null,null,{"$f":"INDIRECT(ADDRESS(ROW(A$80),ROW()-ROW(A$80)+(ROWS($88:105)-1)*2,4))","v":0},0,null,0,{"$f":"INDIRECT(ADDRESS(ROW(A$80),ROW()-ROW(A$80)+(ROWS($88:105)-1)*2+1,4))","v":0}]
[{"$f":"IF(B106=\"\",0,INDEX(Price_List,ROWS($88:106)))","v":20},{"$f":"IF($C106=\"\",\"\",COUNTA($C$88:$C106))","v":19},{"$f":"IF(INDEX(INDIRECT(\"Product_List\"),ROWS($88:106))=\"\",\"\",INDEX(INDIRECT(\"Product_List\"),ROWS($88:106)))","v":"19-ขนมปังพิซซ่า"},{"$f":"ยอดยกมา","v":0},null,null,null,null,null,null,0,null,{"$f":"INDIRECT(ADDRESS(ROW(A$80),ROW()-ROW(A$80)+(ROWS($88:106)-1)*2-1,4))","v":0},null,0,null,0,null,null,null,0,null,0,null,null,null,null,null,{"$f":"INDIRECT(ADDRESS(ROW(A$80),ROW()-ROW(A$80)+(ROWS($88:106)-1)*2,4))","v":0},0,null,0,{"$f":"INDIRECT(ADDRESS(ROW(A$80),ROW()-ROW(A$80)+(ROWS($88:106)-1)*2+1,4))","v":0}]
[{"$f":"IF(B107=\"\",0,INDEX(Price_List,ROWS($88:107)))","v":20},{"$f":"IF($C107=\"\",\"\",COUNTA($C$88:$C107))","v":20},{"$f":"IF(INDEX(INDIRECT(\"Product_List\"),ROWS($88:107))=\"\",\"\",INDEX(INDIRECT(\"Product_List\"),ROWS($88:107)))","v":"20-ขนมปังพิซซ่าปูอัดแฮม"},{"$f":"ยอดยกมา","v":0},null,null,null,null,null,null,0,null,{"$f":"INDIRECT(ADDRESS(ROW(A$80),ROW()-ROW(A$80)+(ROWS($88:107)-1)*2-1,4))","v":0},null,0,null,0,null,null,null,0,null,0,null,null,null,null,null,{"$f":"INDIRECT(ADDRESS(ROW(A$80),ROW()-ROW(A$80)+(ROWS($88:107)-1)*2,4))","v":0},0,null,0,{"$f":"INDIRECT(ADDRESS(ROW(A$80),ROW()-ROW(A$80)+(ROWS($88:107)-1)*2+1,4))","v":0}]
[{"$f":"IF(B108=\"\",0,INDEX(Price_List,ROWS($88:108)))","v":20},{"$f":"IF($C108=\"\",\"\",COUNTA($C$88:$C108))","v":21},{"$f":"IF(INDEX(INDIRECT(\"Product_List\"),ROWS($88:108))=\"\",\"\",INDEX(INDIRECT(\"Product_List\"),ROWS($88:108)))","v":"21-ขนมปังไส้กรอก"},{"$f":"ยอดยกมา","v":0},null,null,null,null,null,null,0,null,{"$f":"INDIRECT(ADDRESS(ROW(A$80),ROW()-ROW(A$80)+(ROWS($88:108)-1)*2-1,4))","v":0},null,0,null,0,null,null,null,0,null,0,null,null,null,null,null,{"$f":"INDIRECT(ADDRESS(ROW(A$80),ROW()-ROW(A$80)+(ROWS($88:108)-1)*2,4))","v":0},0,null,0,{"$f":"INDIRECT(ADDRESS(ROW(A$80),ROW()-ROW(A$80)+(ROWS($88:108)-1)*2+1,4))","v":0}]
[{"$f":"IF(B109=\"\",0,INDEX(Price_List,ROWS($88:109)))","v":15},{"$f":"IF($C109=\"\",\"\",COUNTA($C$88:$C109))","v":22},{"$f":"IF(INDEX(INDIRECT(\"Product_List\"),ROWS($88:109))=\"\",\"\",INDEX(INDIRECT(\"Product_List\"),ROWS($88:109)))","v":"22-ขนมก้านบัว"},{"$f":"ยอดยกมา","v":0},null,null,null,null,null,null,0,null,{"$f":"INDIRECT(ADDRESS(ROW(A$80),ROW()-ROW(A$80)+(ROWS($88:109)-1)*2-1,4))","v":0},null,0,null,0,null,null,null,0,null,0,null,null,null,null,null,{"$f":"INDIRECT(ADDRESS(ROW(A$80),ROW()-ROW(A$80)+(ROWS($88:109)-1)*2,4))","v":0},0,null,0,{"$f":"INDIRECT(ADDRESS(ROW(A$80),ROW()-ROW(A$80)+(ROWS($88:109)-1)*2+1,4))","v":0}]
[{"$f":"IF(B110=\"\",0,INDEX(Price_List,ROWS($88:110)))","v":20},{"$f":"IF($C110=\"\",\"\",COUNTA($C$88:$C110))","v":23},{"$f":"IF(INDEX(INDIRECT(\"Product_List\"),ROWS($88:110))=\"\",\"\",INDEX(INDIRECT(\"Product_List\"),ROWS($88:110)))","v":"23-พายสับปะรด"},{"$f":"ยอดยกมา","v":0},null,null,null,null,null,null,0,null,{"$f":"INDIRECT(ADDRESS(ROW(A$80),ROW()-ROW(A$80)+(ROWS($88:110)-1)*2-1,4))","v":0},null,0,null,0,null,null,null,0,null,0,null,null,null,null,null,{"$f":"INDIRECT(ADDRESS(ROW(A$80),ROW()-ROW(A$80)+(ROWS($88:110)-1)*2,4))","v":0},0,null,0,{"$f":"INDIRECT(ADDRESS(ROW(A$80),ROW()-ROW(A$80)+(ROWS($88:110)-1)*2+1,4))","v":0}]
[{"$f":"IF(B111=\"\",0,INDEX(Price_List,ROWS($88:111)))","v":20},{"$f":"IF($C111=\"\",\"\",COUNTA($C$88:$C111))","v":24},{"$f":"IF(INDEX(INDIRECT(\"Product_List\"),ROWS($88:111))=\"\",\"\",INDEX(INDIRECT(\"Product_List\"),ROWS($88:111)))","v":"24-พายไส้มะพร้าว"},{"$f":"ยอดยกมา","v":0},null,null,null,null,null,null,0,null,{"$f":"INDIRECT(ADDRESS(ROW(A$80),ROW()-ROW(A$80)+(ROWS($88:111)-1)*2-1,4))","v":0},null,0,null,0,null,null,null,0,null,0,null,null,null,null,null,{"$f":"INDIRECT(ADDRESS(ROW(A$80),ROW()-ROW(A$80)+(ROWS($88:111)-1)*2,4))","v":0},0,null,0,{"$f":"INDIRECT(ADDRESS(ROW(A$80),ROW()-ROW(A$80)+(ROWS($88:111)-1)*2+1,4))","v":0}]
[{"$f":"IF(B112=\"\",0,INDEX(Price_List,ROWS($88:112)))","v":15},{"$f":"IF($C112=\"\",\"\",COUNTA($C$88:$C112))","v":25},{"$f":"IF(INDEX(INDIRECT(\"Product_List\"),ROWS($88:112))=\"\",\"\",INDEX(INDIRECT(\"Product_List\"),ROWS($88:112)))","v":"25-ขนมปังโรลมันเทศ"},{"$f":"ยอดยกมา","v":0},null,null,null,null,null,null,0,null,{"$f":"INDIRECT(ADDRESS(ROW(A$80),ROW()-ROW(A$80)+(ROWS($88:112)-1)*2-1,4))","v":0},null,0,null,0,null,null,null,0,null,0,null,null,null,null,null,{"$f":"INDIRECT(ADDRESS(ROW(A$80),ROW()-ROW(A$80)+(ROWS($88:112)-1)*2,4))","v":0},0,null,0,{"$f":"INDIRECT(ADDRESS(ROW(A$80),ROW()-ROW(A$80)+(ROWS($88:112)-1)*2+1,4))","v":0}]
[{"$f":"IF(B113=\"\",0,INDEX(Price_List,ROWS($88:113)))","v":15},{"$f":"IF($C113=\"\",\"\",COUNTA($C$88:$C113))","v":26},{"$f":"IF(INDEX(INDIRECT(\"Product_List\"),ROWS($88:113))=\"\",\"\",INDEX(INDIRECT(\"Product_List\"),ROWS($88:113)))","v":"26-ขนมปังไส้ครีมสลัดน้ำพริกเผา"},{"$f":"ยอดยกมา","v":0},null,null,null,null,null,null,0,null,{"$f":"INDIRECT(ADDRESS(ROW(A$80),ROW()-ROW(A$80)+(ROWS($88:113)-1)*2-1,4))","v":0},null,0,null,0,null,null,null,0,null,0,null,null,null,null,null,{"$f":"INDIRECT(ADDRESS(ROW(A$80),ROW()-ROW(A$80)+(ROWS($88:113)-1)*2,4))","v":0},0,null,0,{"$f":"INDIRECT(ADDRESS(ROW(A$80),ROW()-ROW(A$80)+(ROWS($88:113)-1)*2+1,4))","v":0}]
[{"$f":"IF(B114=\"\",0,INDEX(Price_List,ROWS($88:114)))","v":20},{"$f":"IF($C114=\"\",\"\",COUNTA($C$88:$C114))","v":27},{"$f":"IF(INDEX(INDIRECT(\"Product_List\"),ROWS($88:114))=\"\",\"\",INDEX(INDIRECT(\"Product_List\"),ROWS($88:114)))","v":"27-ขนมปังไส้สังขยาไข่"},{"$f":"ยอดยกมา","v":0},null,null,null,null,null,null,0,null,{"$f":"INDIRECT(ADDRESS(ROW(A$80),ROW()-ROW(A$80)+(ROWS($88:114)-1)*2-1,4))","v":0},null,0,null,0,null,null,null,0,null,0,null,null,null,null,null,{"$f":"INDIRECT(ADDRESS(ROW(A$80),ROW()-ROW(A$80)+(ROWS($88:114)-1)*2,4))","v":0},0,null,0,{"$f":"INDIRECT(ADDRESS(ROW(A$80),ROW()-ROW(A$80)+(ROWS($88:114)-1)*2+1,4))","v":0}]
[{"$f":"IF(B115=\"\",0,INDEX(Price_List,ROWS($88:115)))","v":20},{"$f":"IF($C115=\"\",\"\",COUNTA($C$88:$C115))","v":28},{"$f":"IF(INDEX(INDIRECT(\"Product_List\"),ROWS($88:115))=\"\",\"\",INDEX(INDIRECT(\"Product_List\"),ROWS($88:115)))","v":"28-ขนมปังไส้สังขยามะพร้าว"},{"$f":"ยอดยกมา","v":0},null,null,null,null,null,null,0,null,{"$f":"INDIRECT(ADDRESS(ROW(A$80),ROW()-ROW(A$80)+(ROWS($88:115)-1)*2-1,4))","v":0},null,0,null,0,null,null,null,0,null,0,null,null,null,null,null,{"$f":"INDIRECT(ADDRESS(ROW(A$80),ROW()-ROW(A$80)+(ROWS($88:115)-1)*2,4))","v":0},0,null,0,{"$f":"INDIRECT(ADDRESS(ROW(A$80),ROW()-ROW(A$80)+(ROWS($88:115)-1)*2+1,4))","v":0}]
[{"$f":"IF(B116=\"\",0,INDEX(Price_List,ROWS($88:116)))","v":10},{"$f":"IF($C116=\"\",\"\",COUNTA($C$88:$C116))","v":29},{"$f":"IF(INDEX(INDIRECT(\"Product_List\"),ROWS($88:116))=\"\",\"\",INDEX(INDIRECT(\"Product_List\"),ROWS($88:116)))","v":"29-ขนมปังไส้ครีมชาไทย"},{"$f":"ยอดยกมา","v":0},null,null,null,null,null,null,0,null,{"$f":"INDIRECT(ADDRESS(ROW(A$80),ROW()-ROW(A$80)+(ROWS($88:116)-1)*2-1,4))","v":0},null,0,null,0,null,null,null,0,null,0,null,null,null,null,null,{"$f":"INDIRECT(ADDRESS(ROW(A$80),ROW()-ROW(A$80)+(ROWS($88:116)-1)*2,4))","v":0},0,null,0,{"$f":"INDIRECT(ADDRESS(ROW(A$80),ROW()-ROW(A$80)+(ROWS($88:116)-1)*2+1,4))","v":0}]
[{"$f":"IF(B117=\"\",0,INDEX(Price_List,ROWS($88:117)))","v":15},{"$f":"IF($C117=\"\",\"\",COUNTA($C$88:$C117))","v":30},{"$f":"IF(INDEX(INDIRECT(\"Product_List\"),ROWS($88:117))=\"\",\"\",INDEX(INDIRECT(\"Product_List\"),ROWS($88:117)))","v":"30-ขนมปังโรลมันม่วง"},{"$f":"ยอดยกมา","v":0},null,null,null,null,null,null,0,null,{"$f":"INDIRECT(ADDRESS(ROW(A$80),ROW()-ROW(A$80)+(ROWS($88:117)-1)*2-1,4))","v":0},null,0,null,0,null,null,null,0,null,0,null,null,null,null,null,{"$f":"INDIRECT(ADDRESS(ROW(A$80),ROW()-ROW(A$80)+(ROWS($88:117)-1)*2,4))","v":0},0,null,0,{"$f":"INDIRECT(ADDRESS(ROW(A$80),ROW()-ROW(A$80)+(ROWS($88:117)-1)*2+1,4))","v":0}]
[{"$f":"IF(B118=\"\",0,INDEX(Price_List,ROWS($88:118)))","v":15},{"$f":"IF($C118=\"\",\"\",COUNTA($C$88:$C118))","v":31},{"$f":"IF(INDEX(INDIRECT(\"Product_List\"),ROWS($88:118))=\"\",\"\",INDEX(INDIRECT(\"Product_List\"),ROWS($88:118)))","v":"31-ขนมปังโรลช็อกโกแลต"},{"$f":"ยอดยกมา","v":0},null,null,null,null,null,null,0,null,{"$f":"INDIRECT(ADDRESS(ROW(A$80),ROW()-ROW(A$80)+(ROWS($88:118)-1)*2-1,4))","v":0},null,0,null,0,null,null,null,0,null,0,null,null,null,null,null,{"$f":"INDIRECT(ADDRESS(ROW(A$80),ROW()-ROW(A$80)+(ROWS($88:118)-1)*2,4))","v":0},0,null,0,{"$f":"INDIRECT(ADDRESS(ROW(A$80),ROW()-ROW(A$80)+(ROWS($88:118)-1)*2+1,4))","v":0}]
[{"$f":"IF(B119=\"\",0,INDEX(Price_List,ROWS($88:119)))","v":16},{"$f":"IF($C119=\"\",\"\",COUNTA($C$88:$C119))","v":32},{"$f":"IF(INDEX(INDIRECT(\"Product_List\"),ROWS($88:119))=\"\",\"\",INDEX(INDIRECT(\"Product_List\"),ROWS($88:119)))","v":"32-ขนมปังชนิดแผ่น(155กรัม)"},{"$f":"ยอดยกมา","v":0},null,null,null,null,null,null,0,null,{"$f":"INDIRECT(ADDRESS(ROW(A$80),ROW()-ROW(A$80)+(ROWS($88:119)-1)*2-1,4))","v":0},null,0,null,0,null,null,null,0,null,0,null,null,null,null,null,{"$f":"INDIRECT(ADDRESS(ROW(A$80),ROW()-ROW(A$80)+(ROWS($88:119)-1)*2,4))","v":0},0,null,0,{"$f":"INDIRECT(ADDRESS(ROW(A$80),ROW()-ROW(A$80)+(ROWS($88:119)-1)*2+1,4))","v":0}]
[{"$f":"IF(B120=\"\",0,INDEX(Price_List,ROWS($88:120)))","v":15},{"$f":"IF($C120=\"\",\"\",COUNTA($C$88:$C120))","v":33},{"$f":"IF(INDEX(INDIRECT(\"Product_List\"),ROWS($88:120))=\"\",\"\",INDEX(INDIRECT(\"Product_List\"),ROWS($88:120)))","v":"33-ขนมปังโรลเผือก"},{"$f":"ยอดยกมา","v":0},null,null,null,null,null,null,0,null,{"$f":"INDIRECT(ADDRESS(ROW(A$80),ROW()-ROW(A$80)+(ROWS($88:120)-1)*2-1,4))","v":0},null,0,null,0,null,null,null,0,null,0,null,null,null,null,null,{"$f":"INDIRECT(ADDRESS(ROW(A$80),ROW()-ROW(A$80)+(ROWS($88:120)-1)*2,4))","v":0},0,null,0,{"$f":"INDIRECT(ADDRESS(ROW(A$80),ROW()-ROW(A$80)+(ROWS($88:120)-1)*2+1,4))","v":0}]
[{"$f":"IF(B121=\"\",0,INDEX(Price_List,ROWS($88:121)))","v":15},{"$f":"IF($C121=\"\",\"\",COUNTA($C$88:$C121))","v":34},{"$f":"IF(INDEX(INDIRECT(\"Product_List\"),ROWS($88:121))=\"\",\"\",INDEX(INDIRECT(\"Product_List\"),ROWS($88:121)))","v":"34-ขนมปังไก่หยองน้ำสลัด Mini"},{"$f":"ยอดยกมา","v":0},null,null,null,null,null,null,0,null,{"$f":"INDIRECT(ADDRESS(ROW(A$80),ROW()-ROW(A$80)+(ROWS($88:121)-1)*2-1,4))","v":0},null,0,null,0,null,null,null,0,null,0,null,null,null,null,null,{"$f":"INDIRECT(ADDRESS(ROW(A$80),ROW()-ROW(A$80)+(ROWS($88:121)-1)*2,4))","v":0},0,null,0,{"$f":"INDIRECT(ADDRESS(ROW(A$80),ROW()-ROW(A$80)+(ROWS($88:121)-1)*2+1,4))","v":0}]
[{"$f":"IF(B122=\"\",0,INDEX(Price_List,ROWS($88:122)))","v":10},{"$f":"IF($C122=\"\",\"\",COUNTA($C$88:$C122))","v":35},{"$f":"IF(INDEX(INDIRECT(\"Product_List\"),ROWS($88:122))=\"\",\"\",INDEX(INDIRECT(\"Product_List\"),ROWS($88:122)))","v":"35-ขนมปังไส้ช็อกโกแลต"},{"$f":"ยอดยกมา","v":0},null,null,null,null,null,null,0,null,{"$f":"INDIRECT(ADDRESS(ROW(A$80),ROW()-ROW(A$80)+(ROWS($88:122)-1)*2-1,4))","v":0},null,0,null,0,null,null,null,0,null,0,null,null,null,null,null,{"$f":"INDIRECT(ADDRESS(ROW(A$80),ROW()-ROW(A$80)+(ROWS($88:122)-1)*2,4))","v":0},0,null,0,{"$f":"INDIRECT(ADDRESS(ROW(A$80),ROW()-ROW(A$80)+(ROWS($88:122)-1)*2+1,4))","v":0}]
[{"$f":"IF(B123=\"\",0,INDEX(Price_List,ROWS($88:123)))","v":10},{"$f":"IF($C123=\"\",\"\",COUNTA($C$88:$C123))","v":36},{"$f":"IF(INDEX(INDIRECT(\"Product_List\"),ROWS($88:123))=\"\",\"\",INDEX(INDIRECT(\"Product_List\"),ROWS($88:123)))","v":"36-ขนมปังไส้ครีมสังขยาไข่"},{"$f":"ยอดยกมา","v":0},null,null,null,null,null,null,0,null,{"$f":"INDIRECT(ADDRESS(ROW(A$80),ROW()-ROW(A$80)+(ROWS($88:123)-1)*2-1,4))","v":0},null,0,null,0,null,null,null,0,null,0,null,null,null,null,null,{"$f":"INDIRECT(ADDRESS(ROW(A$80),ROW()-ROW(A$80)+(ROWS($88:123)-1)*2,4))","v":0},0,null,0,{"$f":"INDIRECT(ADDRESS(ROW(A$80),ROW()-ROW(A$80)+(ROWS($88:123)-1)*2+1,4))","v":0}]
[{"$f":"IF(B124=\"\",0,INDEX(Price_List,ROWS($88:124)))","v":20},{"$f":"IF($C124=\"\",\"\",COUNTA($C$88:$C124))","v":37},{"$f":"IF(INDEX(INDIRECT(\"Product_List\"),ROWS($88:124))=\"\",\"\",INDEX(INDIRECT(\"Product_List\"),ROWS($88:124)))","v":"37-ขนมปังพิซซ่าฮาวายเอี้ยน"},{"$f":"ยอดยกมา","v":0},null,null,null,null,null,null,0,null,{"$f":"INDIRECT(ADDRESS(ROW(A$80),ROW()-ROW(A$80)+(ROWS($88:124)-1)*2-1,4))","v":0},null,0,null,0,null,null,null,0,null,0,null,null,null,null,null,{"$f":"INDIRECT(ADDRESS(ROW(A$80),ROW()-ROW(A$80)+(ROWS($88:124)-1)*2,4))","v":0},0,null,0,{"$f":"INDIRECT(ADDRESS(ROW(A$80),ROW()-ROW(A$80)+(ROWS($88:124)-1)*2+1,4))","v":0}]
[{"$f":"IF(B125=\"\",0,INDEX(Price_List,ROWS($88:125)))","v":20},{"$f":"IF($C125=\"\",\"\",COUNTA($C$88:$C125))","v":38},{"$f":"IF(INDEX(INDIRECT(\"Product_List\"),ROWS($88:125))=\"\",\"\",INDEX(INDIRECT(\"Product_List\"),ROWS($88:125)))","v":"38-ครัวซองต์หมูหยองน้ำสลัด"},{"$f":"ยอดยกมา","v":0},null,null,null,null,null,null,0,null,{"$f":"INDIRECT(ADDRESS(ROW(A$80),ROW()-ROW(A$80)+(ROWS($88:125)-1)*2-1,4))","v":0},null,0,null,0,null,null,null,0,null,0,null,null,null,null,null,{"$f":"INDIRECT(ADDRESS(ROW(A$80),ROW()-ROW(A$80)+(ROWS($88:125)-1)*2,4))","v":0},0,null,0,{"$f":"INDIRECT(ADDRESS(ROW(A$80),ROW()-ROW(A$80)+(ROWS($88:125)-1)*2+1,4))","v":0}]
[{"$f":"IF(B126=\"\",0,INDEX(Price_List,ROWS($88:126)))","v":15},{"$f":"IF($C126=\"\",\"\",COUNTA($C$88:$C126))","v":39},{"$f":"IF(INDEX(INDIRECT(\"Product_List\"),ROWS($88:126))=\"\",\"\",INDEX(INDIRECT(\"Product_List\"),ROWS($88:126)))","v":"39-แพนเบรดไส้เผือก"},{"$f":"ยอดยกมา","v":0},null,null,null,null,null,null,0,null,{"$f":"INDIRECT(ADDRESS(ROW(A$80),ROW()-ROW(A$80)+(ROWS($88:126)-1)*2-1,4))","v":0},null,0,null,0,null,null,null,0,null,0,null,null,null,null,null,{"$f":"INDIRECT(ADDRESS(ROW(A$80),ROW()-ROW(A$80)+(ROWS($88:126)-1)*2,4))","v":0},0,null,0,{"$f":"INDIRECT(ADDRESS(ROW(A$80),ROW()-ROW(A$80)+(ROWS($88:126)-1)*2+1,4))","v":0}]
[{"$f":"IF(B127=\"\",0,INDEX(Price_List,ROWS($88:127)))","v":15},{"$f":"IF($C127=\"\",\"\",COUNTA($C$88:$C127))","v":40},{"$f":"IF(INDEX(INDIRECT(\"Product_List\"),ROWS($88:127))=\"\",\"\",INDEX(INDIRECT(\"Product_List\"),ROWS($88:127)))","v":"40-แพนเบรดไส้ถั่วแดง"},{"$f":"ยอดยกมา","v":0},null,null,null,null,null,null,{"$f":"D127+E127+J127-I127+H127","v":0},null,{"$f":"INDIRECT(ADDRESS(ROW(A$80),ROW()-ROW(A$80)+(ROWS($88:127)-1)*2-1,4))","v":0},null,{"$f":"F127+G127+M127+J127-K127","v":0},null,{"$f":"O127*A127","v":0},null,null,null,{"$f":"D127+E127-F127-G127","v":0},null,{"$f":"U127*6%+U127","v":0},null,null,null,null,null,{"$f":"INDIRECT(ADDRESS(ROW(A$80),ROW()-ROW(A$80)+(ROWS($88:127)-1)*2,4))","v":0},0,null,0,{"$f":"INDIRECT(ADDRESS(ROW(A$80),ROW()-ROW(A$80)+(ROWS($88:127)-1)*2+1,4))","v":0}]
[{"$f":"IF(B128=\"\",0,INDEX(Price_List,ROWS($88:128)))","v":12},{"$f":"IF($C128=\"\",\"\",COUNTA($C$88:$C128))","v":41},{"$f":"IF(INDEX(INDIRECT(\"Product_List\"),ROWS($88:128))=\"\",\"\",INDEX(INDIRECT(\"Product_List\"),ROWS($88:128)))","v":"41-ขนมปังกรอบเนยน้ำตาล(30กรัม)"},{"$f":"ยอดยกมา","v":0},null,null,null,null,null,null,0,null,{"$f":"INDIRECT(ADDRESS(ROW(A$80),ROW()-ROW(A$80)+(ROWS($88:128)-1)*2-1,4))","v":0},null,0,null,0,null,null,null,0,null,0,null,null,null,null,null,{"$f":"INDIRECT(ADDRESS(ROW(A$80),ROW()-ROW(A$80)+(ROWS($88:128)-1)*2,4))","v":0},0,null,0,{"$f":"INDIRECT(ADDRESS(ROW(A$80),ROW()-ROW(A$80)+(ROWS($88:128)-1)*2+1,4))","v":0}]
[{"$f":"IF(B129=\"\",0,INDEX(Price_List,ROWS($88:129)))","v":18},{"$f":"IF($C129=\"\",\"\",COUNTA($C$88:$C129))","v":42},{"$f":"IF(INDEX(INDIRECT(\"Product_List\"),ROWS($88:129))=\"\",\"\",INDEX(INDIRECT(\"Product_List\"),ROWS($88:129)))","v":"42-ขนมปังชนิดแผ่นโฮลวีต"},{"$f":"ยอดยกมา","v":0},null,null,null,null,null,null,0,null,{"$f":"INDIRECT(ADDRESS(ROW(A$80),ROW()-ROW(A$80)+(ROWS($88:129)-1)*2-1,4))","v":0},null,0,null,0,null,null,null,0,null,0,null,null,null,null,null,{"$f":"INDIRECT(ADDRESS(ROW(A$80),ROW()-ROW(A$80)+(ROWS($88:129)-1)*2,4))","v":0},0,null,0,{"$f":"INDIRECT(ADDRESS(ROW(A$80),ROW()-ROW(A$80)+(ROWS($88:129)-1)*2+1,4))","v":0}]
[{"$f":"IF(B130=\"\",0,INDEX(Price_List,ROWS($88:130)))","v":12},{"$f":"IF($C130=\"\",\"\",COUNTA($C$88:$C130))","v":43},{"$f":"IF(INDEX(INDIRECT(\"Product_List\"),ROWS($88:130))=\"\",\"\",INDEX(INDIRECT(\"Product_List\"),ROWS($88:130)))","v":"43-เค้กโรลใบเตย"},{"$f":"ยอดยกมา","v":0},null,null,null,null,null,null,{"$f":"D130+E130+J130-I130+H130","v":0},null,{"$f":"INDIRECT(ADDRESS(ROW(A$80),ROW()-ROW(A$80)+(ROWS($88:130)-1)*2-1,4))","v":0},null,{"$f":"F130+G130+M130+J130-K130","v":0},null,{"$f":"O130*A130","v":0},null,null,null,{"$f":"D130+E130-F130-G130","v":0},null,{"$f":"U130*6%+U130","v":0},null,null,null,null,null,{"$f":"INDIRECT(ADDRESS(ROW(A$80),ROW()-ROW(A$80)+(ROWS($88:130)-1)*2,4))","v":0},0,null,0,{"$f":"INDIRECT(ADDRESS(ROW(A$80),ROW()-ROW(A$80)+(ROWS($88:130)-1)*2+1,4))","v":0}]
[{"$f":"IF(B131=\"\",0,INDEX(Price_List,ROWS($88:131)))","v":12},{"$f":"IF($C131=\"\",\"\",COUNTA($C$88:$C131))","v":44},{"$f":"IF(INDEX(INDIRECT(\"Product_List\"),ROWS($88:131))=\"\",\"\",INDEX(INDIRECT(\"Product_List\"),ROWS($88:131)))","v":"44-ขนมโมจิไส้ถั่วดำ"},{"$f":"ยอดยกมา","v":0},null,null,null,null,null,null,{"$f":"D131+E131+J131-I131+H131","v":0},null,{"$f":"INDIRECT(ADDRESS(ROW(A$80),ROW()-ROW(A$80)+(ROWS($88:131)-1)*2-1,4))","v":0},null,{"$f":"F131+G131+M131+J131-K131","v":0},null,{"$f":"O131*A131","v":0},null,null,null,{"$f":"D131+E131-F131-G131","v":0},null,{"$f":"U131*6%+U131","v":0},null,null,null,null,null,{"$f":"INDIRECT(ADDRESS(ROW(A$80),ROW()-ROW(A$80)+(ROWS($88:131)-1)*2,4))","v":0},0,null,0,{"$f":"INDIRECT(ADDRESS(ROW(A$80),ROW()-ROW(A$80)+(ROWS($88:131)-1)*2+1,4))","v":0}]
[{"$f":"IF(B132=\"\",0,INDEX(Price_List,ROWS($88:132)))","v":25},{"$f":"IF($C132=\"\",\"\",COUNTA($C$88:$C132))","v":45},{"$f":"IF(INDEX(INDIRECT(\"Product_List\"),ROWS($88:132))=\"\",\"\",INDEX(INDIRECT(\"Product_List\"),ROWS($88:132)))","v":"45-ครัวซองต์ไส้กรอกชีส"},{"$f":"ยอดยกมา","v":0},null,null,null,null,null,null,{"$f":"D132+E132+J132-I132+H132","v":0},null,{"$f":"INDIRECT(ADDRESS(ROW(A$80),ROW()-ROW(A$80)+(ROWS($88:132)-1)*2-1,4))","v":0},null,{"$f":"F132+G132+M132+J132-K132","v":0},null,{"$f":"O132*A132","v":0},null,null,null,{"$f":"D132+E132-F132-G132","v":0},null,{"$f":"U132*6%+U132","v":0},null,null,null,null,null,{"$f":"INDIRECT(ADDRESS(ROW(A$80),ROW()-ROW(A$80)+(ROWS($88:132)-1)*2,4))","v":0},0,null,0,{"$f":"INDIRECT(ADDRESS(ROW(A$80),ROW()-ROW(A$80)+(ROWS($88:132)-1)*2+1,4))","v":0}]
[{"$f":"IF(B133=\"\",0,INDEX(Price_List,ROWS($88:133)))","v":12},{"$f":"IF($C133=\"\",\"\",COUNTA($C$88:$C133))","v":46},{"$f":"IF(INDEX(INDIRECT(\"Product_List\"),ROWS($88:133))=\"\",\"\",INDEX(INDIRECT(\"Product_List\"),ROWS($88:133)))","v":"46-ขนมเปี๊ยะไส้ถั่ว"},{"$f":"ยอดยกมา","v":0},null,null,null,null,null,null,0,null,{"$f":"INDIRECT(ADDRESS(ROW(A$80),ROW()-ROW(A$80)+(ROWS($88:133)-1)*2-1,4))","v":0},null,0,null,0,null,null,null,0,null,0,null,null,null,null,null,{"$f":"INDIRECT(ADDRESS(ROW(A$80),ROW()-ROW(A$80)+(ROWS($88:133)-1)*2,4))","v":0},0,null,0,{"$f":"INDIRECT(ADDRESS(ROW(A$80),ROW()-ROW(A$80)+(ROWS($88:133)-1)*2+1,4))","v":0}]
[{"$f":"IF(B134=\"\",0,INDEX(Price_List,ROWS($88:134)))","v":12},{"$f":"IF($C134=\"\",\"\",COUNTA($C$88:$C134))","v":47},{"$f":"IF(INDEX(INDIRECT(\"Product_List\"),ROWS($88:134))=\"\",\"\",INDEX(INDIRECT(\"Product_List\"),ROWS($88:134)))","v":"47-ขนมเปี๊ยะไส้ฟัก"},{"$f":"ยอดยกมา","v":0},null,null,null,null,null,null,{"$f":"D134+E134+J134-I134+H134","v":0},null,{"$f":"INDIRECT(ADDRESS(ROW(A$80),ROW()-ROW(A$80)+(ROWS($88:134)-1)*2-1,4))","v":0},null,{"$f":"F134+G134+M134+J134-K134","v":0},null,{"$f":"O134*A134","v":0},null,null,null,{"$f":"D134+E134-F134-G134","v":0},null,{"$f":"U134*6%+U134","v":0},null,null,null,null,null,{"$f":"INDIRECT(ADDRESS(ROW(A$80),ROW()-ROW(A$80)+(ROWS($88:134)-1)*2,4))","v":0},0,null,0,{"$f":"INDIRECT(ADDRESS(ROW(A$80),ROW()-ROW(A$80)+(ROWS($88:134)-1)*2+1,4))","v":0}]
[{"$f":"IF(B135=\"\",0,INDEX(Price_List,ROWS($88:135)))","v":12},{"$f":"IF($C135=\"\",\"\",COUNTA($C$88:$C135))","v":48},{"$f":"IF(INDEX(INDIRECT(\"Product_List\"),ROWS($88:135))=\"\",\"\",INDEX(INDIRECT(\"Product_List\"),ROWS($88:135)))","v":"48-มังกี้เค้ก"},{"$f":"ยอดยกมา","v":0},null,null,null,null,null,null,0,null,{"$f":"INDIRECT(ADDRESS(ROW(A$80),ROW()-ROW(A$80)+(ROWS($88:135)-1)*2-1,4))","v":0},null,0,null,0,null,null,null,0,null,0,null,null,null,null,null,{"$f":"INDIRECT(ADDRESS(ROW(A$80),ROW()-ROW(A$80)+(ROWS($88:135)-1)*2,4))","v":0},0,null,0,{"$f":"INDIRECT(ADDRESS(ROW(A$80),ROW()-ROW(A$80)+(ROWS($88:135)-1)*2+1,4))","v":0}]
["รวม",null,null,{"$f":"SUM(D$88:D$135)","v":0},0,0,0,0,0,0,0,null,{"$f":"SUM(M$88:M$135)","v":0},null,null,null,{"$f":"$AP$98","v":0},null,"บาท",null,{"$f":"SUM(U$88:U$135)","v":0},null,{"$f":"SUM(W$88:W$135)","v":0},null,null,null,null,null,{"$f":"SUM(AC$88:AC$135)","v":0},{"$f":"SUM(AD$88:AD$135)","v":0},{"$f":"SUM(AE$88:AE$135)","v":0},{"$f":"SUM(AF$88:AF$135)","v":0},{"$f":"SUM(AG$88:AG$135)","v":0}]
["เลขที่ไมล์ เวลาออกทำงาน",null,null,{"$f":"$BF$3","v":0},null,"Km","น้ำหนักของเสีย"]
["เลขที่ไมล์ เวลากลับ",null,null,{"$f":"$BF$4","v":0},null,"Km",{"$f":"$AA$5","v":0},null,"KG"]
["เวลากลับถึงสำนักงาน",null,null,{"$f":"$BF$1","v":"00:00:00"},null,"น."]
["เติมน้ำมัน",null,null,{"$f":"$AX3","v":0},null,"บาท"]
["จำนวนน้ำมัน",null,null,{"$f":"$AX4","v":0},null,"ลิตร"]
["ยอดรวมต้นทุนสาขา",null,null,{"$f":"$AX5","v":0},null,"บาท"]

{"sheet":"5","index":9,"n_rows":142,"n_cols":154,"rows_kept":142,"cut":false,"hidden":false,"merged":[[129,10,129,11],[129,12,129,13],[129,14,129,15],[129,16,129,17],[129,20,129,21],[80,126,80,127],[128,10,128,11],[128,12,128,13],[128,14,128,15],[128,16,128,17],[128,20,128,21],[128,22,128,23],[128,24,128,25],[128,33,128,36],[125,10,125,11],[125,12,125,13],[125,14,125,15],[125,16,125,17],[125,20,125,21],[126,10,126,11],[127,10,127,11],[83,81,83,82],[83,84,83,85],[83,87,83,88],[83,90,83,91],[83,93,83,94],[83,96,83,97],[82,72,82,73],[129,22,129,23],[129,24,129,25],[129,33,129,36],[97,38,97,40],[92,24,92,25],[92,33,92,36],[90,24,90,25],[90,33,90,36],[96,33,96,36],[97,33,97,36],[88,24,88,25],[88,33,88,36],[80,132,80,133],[82,132,82,133],[6,135,6,137],[7,135,7,137],[8,135,8,137],[80,135,80,136],[82,135,82,136],[80,129,80,130],[82,126,82,127],[82,129,82,130],[6,138,6,140],[6,141,6,143],[6,147,6,149],[126,22,126,23],[127,22,127,23],[126,24,126,25],[127,24,127,25],[126,33,126,36],[127,33,127,36],[125,24,125,25],[125,33,125,36],[123,24,123,25],[123,33,123,36],[125,22,125,23],[124,22,124,23],[124,24,124,25],[124,33,124,36],[122,24,122,25],[122,33,122,36],[98,24,98,25],[98,33,98,36],[99,24,99,25],[99,33,99,36],[82,108,82,109],[139,0,139,2],[139,3,139,4],[140,0,140,2],[140,3,140,4],[141,0,141,2],[141,3,141,4],[137,0,137,2],[137,3,137,4],[137,6,137,7],[137,18,137,21],[138,0,138,2],[138,3,138,4],[135,20,135,21],[135,22,135,23],[135,24,135,25],[135,33,135,36],[136,0,136,2],[136,3,136,4],[135,0,135,2],[135,10,135,11],[135,12,135,13],[135,14,135,15],[135,16,135,17],[135,18,135,19],[126,12,126,13],[127,12,127,13],[126,14,126,15],[127,14,127,15],[126,16,126,17],[127,16,127,17],[126,20,126,21],[127,20,127,21],[124,10,124,11],[124,12,124,13],[124,14,124,15],[124,16,124,17],[124,20,124,21],[123,10,123,11],[123,12,123,13],[123,14,123,15],[123,16,123,17],[123,20,123,21],[123,22,123,23],[122,10,122,11],[122,12,122,13],[122,14,122,15],[122,16,122,17],[122,20,122,21],[122,22,122,23],[121,10,121,11],[121,12,121,13],[121,14,121,15],[121,16,121,17],[121,20,121,21],[121,22,121,23],[121,24,121,25],[121,33,121,36],[120,10,120,11],[120,12,120,13],[120,14,120,15],[120,16,120,17],[120,20,120,21],[120,22,120,23],[120,24,120,25],[120,33,120,36],[119,10,119,11],[119,12,119,13],[119,14,119,15],[119,16,119,17],[119,20,119,21],[119,22,119,23],[119,24,119,25],[119,33,119,36],[118,10,118,11],[118,12,118,13],[118,14,118,15],[118,16,118,17],[118,20,118,21],[118,22,118,23],[118,24,118,25],[118,33,118,36],[117,10,117,11],[117,12,117,13],[117,14,117,15],[117,16,117,17],[117,20,117,21],[117,22,117,23],[117,24,117,25],[117,33,117,36],[116,10,116,11],[116,12,116,13],[116,14,116,15],[116,16,116,17],[116,20,116,21],[116,22,116,23],[116,24,116,25],[116,33,116,36],[115,10,115,11],[115,12,115,13],[115,14,115,15],[115,16,115,17],[115,20,115,21],[115,22,115,23],[115,24,115,25],[115,33,115,36],[114,10,114,11],[114,12,114,13],[114,14,114,15],[114,16,114,17],[114,20,114,21],[114,22,114,23],[114,24,114,25],[114,33,114,36],[113,10,113,11],[113,12,113,13],[113,14,113,15],[113,16,113,17],[113,20,113,21],[113,22,113,23],[113,24,113,25],[113,33,113,36],[112,10,112,11],[112,12,112,13],[112,14,112,15],[112,16,112,17],[112,20,112,21],[112,22,112,23],[112,24,112,25],[112,33,112,36],[111,10,111,11],[111,12,111,13],[111,14,111,15],[111,16,111,17],[111,20,111,21],[111,22,111,23],[111,24,111,25],[111,33,111,36],[110,10,110,11],[110,12,110,13],[110,14,110,15],[110,16,110,17],[110,20,110,21],[110,22,110,23],[110,24,110,25],[110,33,110,36],[109,10,109,11],[109,12,109,13],[109,14,109,15],[109,16,109,17],[109,20,109,21],[109,22,109,23],[109,24,109,25],[109,33,109,36],[108,10,108,11],[108,12,108,13],[108,14,108,15],[108,16,108,17],[108,20,108,21],[108,22,108,23],[108,24,108,25],[108,33,108,36],[107,10,107,11],[107,12,107,13],[107,14,107,15],[107,16,107,17],[107,20,107,21],[107,22,107,23],[107,24,107,25],[107,33,107,36],[106,10,106,11],[106,12,106,13],[106,14,106,15],[106,16,106,17],[106,20,106,21],[106,22,106,23],[106,24,106,25],[106,33,106,36],[105,10,105,11],[105,12,105,13],[105,14,105,15],[105,16,105,17],[105,20,105,21],[105,22,105,23],[105,24,105,25],[105,33,105,36],[104,10,104,11],[104,12,104,13],[104,14,104,15],[104,16,104,17],[104,20,104,21],[104,22,104,23],[104,24,104,25],[104,33,104,36],[103,10,103,11],[103,12,103,13],[103,14,103,15],[103,16,103,17],[103,20,103,21],[103,22,103,23],[103,24,103,25],[103,33,103,36],[102,10,102,11],[102,12,102,13],[102,14,102,15],[102,16,102,17],[102,20,102,21],[102,22,102,23],[102,24,102,25],[102,33,102,36],[101,10,101,11],[101,12,101,13],[101,14,101,15],[101,16,101,17],[101,20,101,21],[101,22,101,23],[101,24,101,25],[101,33,101,36],[100,10,100,11],[100,12,100,13],[100,14,100,15],[100,16,100,17],[100,20,100,21],[100,22,100,23],[100,24,100,25],[100,33,100,36],[99,10,99,11],[99,12,99,13],[99,14,99,15],[99,16,99,17],[99,20,99,21],[99,22,99,23],[98,10,98,11],[98,12,98,13],[98,14,98,15],[98,16,98,17],[98,20,98,21],[98,22,98,23],[97,10,97,11],[97,12,97,13],[97,14,97,15],[97,16,97,17],[97,20,97,21],[97,22,97,23],[97,24,97,25],[96,10,96,11],[96,12,96,13],[96,14,96,15],[96,16,96,17],[96,20,96,21],[96,22,96,23],[96,24,96,25],[95,10,95,11],[95,12,95,13],[95,14,95,15],[95,16,95,17],[95,20,95,21],[95,22,95,23],[95,24,95,25],[95,33,95,36],[94,10,94,11],[94,12,94,13],[94,14,94,15],[94,16,94,17],[94,20,94,21],[94,22,94,23],[94,24,94,25],[94,33,94,36],[93,10,93,11],[93,12,93,13],[93,14,93,15],[93,16,93,17],[93,20,93,21],[93,22,93,23],[93,24,93,25],[93,33,93,36],[92,10,92,11],[92,12,92,13],[92,14,92,15],[92,16,92,17],[92,20,92,21],[92,22,92,23],[91,10,91,11],[91,12,91,13],[91,14,91,15],[91,16,91,17],[91,20,91,21],[91,22,91,23],[91,24,91,25],[91,33,91,36],[90,10,90,11],[90,12,90,13],[90,14,90,15],[90,16,90,17],[90,20,90,21],[90,22,90,23],[87,33,87,36],[86,10,86,11],[86,12,86,13],[86,14,86,15],[86,16,86,17],[86,20,86,21],[86,22,86,23],[89,10,89,11],[89,12,89,13],[89,14,89,15],[89,16,89,17],[89,20,89,21],[89,22,89,23],[89,24,89,25],[89,33,89,36],[88,10,88,11],[88,12,88,13],[88,14,88,15],[88,16,88,17],[88,20,88,21],[88,22,88,23],[86,24,86,25],[86,33,86,36],[83,150,83,153],[83,99,83,100],[83,102,83,103],[83,105,83,106],[83,108,83,109],[83,111,83,112],[83,114,83,115],[83,126,83,127],[83,129,83,130],[83,132,83,133],[83,135,83,136],[83,117,83,118],[83,120,83,121],[83,123,83,124],[82,75,82,76],[82,78,82,79],[82,81,82,82],[82,84,82,85],[82,87,82,88],[82,99,82,100],[82,102,82,103],[82,105,82,106],[82,63,82,64],[82,66,82,67],[82,69,82,70],[82,90,82,91],[82,93,82,94],[82,96,82,97],[83,0,83,5],[83,6,83,7],[83,9,83,10],[83,12,83,13],[83,15,83,16],[83,18,83,19],[83,21,83,22],[83,24,83,25],[83,54,83,55],[83,27,83,28],[82,36,82,37],[83,30,83,31],[83,33,83,34],[83,36,83,37],[82,39,82,40],[82,42,82,43],[83,45,83,46],[83,48,83,49],[83,51,83,52],[83,39,83,40],[83,42,83,43],[82,54,82,55],[82,57,82,58],[82,60,82,61],[81,0,81,2],[81,3,81,5],[81,150,82,153],[82,0,82,2],[82,3,82,4],[82,6,82,7],[82,9,82,10],[82,12,82,13],[82,15,82,16],[82,45,82,46],[82,48,82,49],[82,51,82,52],[82,18,82,19],[82,21,82,22],[82,24,82,25],[82,27,82,28],[82,30,82,31],[82,33,82,34],[82,111,82,112],[82,114,82,115],[82,117,82,118],[82,120,82,121],[82,123,82,124],[80,111,80,112],[80,114,80,115],[80,117,80,118],[80,120,80,121],[80,123,80,124],[80,93,80,94],[80,96,80,97],[80,99,80,100],[80,102,80,103],[80,105,80,106],[80,108,80,109],[80,36,80,37],[80,75,80,76],[80,78,80,79],[80,81,80,82],[80,84,80,85],[80,87,80,88],[80,90,80,91],[80,57,80,58],[80,60,80,61],[80,63,80,64],[80,66,80,67],[80,69,80,70],[80,72,80,73],[6,0,8,0],[6,1,8,1],[80,0,80,5],[80,6,80,7],[80,9,80,10],[80,12,80,13],[80,15,80,16],[80,18,80,19],[8,117,8,119],[8,54,8,56],[8,57,8,59],[8,60,8,62],[8,27,8,29],[8,30,8,32],[8,33,8,35],[8,36,8,38],[8,39,8,41],[8,42,8,44],[8,9,8,11],[8,12,8,14],[8,15,8,17],[8,18,8,20],[8,21,8,23],[8,24,8,26],[6,129,6,131],[7,126,7,128],[7,129,7,131],[8,126,8,128],[8,129,8,131],[6,126,6,128],[6,84,6,86],[6,132,6,134],[79,0,79,5],[8,99,8,101],[8,102,8,104],[8,105,8,107],[8,108,8,110],[8,111,8,113],[8,114,8,116],[8,81,8,83],[8,84,8,86],[8,87,8,89],[8,90,8,92],[8,93,8,95],[8,96,8,98],[8,63,8,65],[8,66,8,68],[8,69,8,71],[7,120,7,122],[7,123,7,125],[7,150,8,150],[7,151,8,151],[7,102,7,104],[7,105,7,107],[7,108,7,110],[7,111,7,113],[7,114,7,116],[7,117,7,119],[8,120,8,122],[8,123,8,125],[7,132,7,134],[8,132,8,134],[6,152,8,152],[6,153,8,153],[7,6,7,8],[7,9,7,11],[7,12,7,14],[7,15,7,17],[7,18,7,20],[7,21,7,23],[7,24,7,26],[7,27,7,29],[6,117,6,119],[6,120,6,122],[6,123,6,125],[6,150,6,151],[6,99,6,101],[6,102,6,104],[6,105,6,107],[6,108,6,110],[6,93,6,95],[6,96,6,98],[6,63,6,65],[6,111,6,113],[6,114,6,116],[6,81,6,83],[6,2,8,2],[6,3,8,3],[6,4,8,4],[6,6,6,8],[8,6,8,8],[6,45,6,47],[6,48,6,50],[7,48,7,50],[6,39,6,41],[6,42,6,44],[7,30,7,32],[7,33,7,35],[7,36,7,38],[7,39,7,41],[7,42,7,44],[7,45,7,47],[8,45,8,47],[8,48,8,50],[4,26,4,29],[4,30,4,31],[4,32,4,34],[4,35,4,36],[6,9,6,11],[6,12,6,14],[6,15,6,17],[6,18,6,20],[6,21,6,23],[6,24,6,26],[6,27,6,29],[6,30,6,32],[6,33,6,35],[6,36,6,38],[3,41,3,44],[3,46,3,48],[3,49,3,51],[3,54,3,56],[3,57,3,60],[4,0,4,1],[4,2,4,3],[4,4,4,5],[4,6,4,12],[4,14,4,16],[3,17,3,19],[3,22,3,25],[3,26,3,29],[3,30,3,33],[3,34,3,37],[3,38,3,40],[4,38,4,40],[4,41,4,44],[4,46,4,48],[4,49,4,51],[4,54,4,56],[4,57,4,60],[4,17,4,19],[4,22,4,25],[3,0,3,1],[3,2,3,3],[3,4,3,5],[3,6,3,12],[3,14,3,16],[2,17,2,19],[2,22,2,25],[2,26,2,29],[2,30,2,33],[0,38,0,40],[0,41,0,44],[0,46,0,48],[0,54,0,56],[0,57,0,60],[2,0,2,1],[2,2,2,3],[2,4,2,5],[2,6,2,12],[2,14,2,16],[0,0,0,12],[0,14,0,16],[0,17,0,23],[0,30,0,33],[0,34,0,35],[0,36,0,37],[2,41,2,44],[2,46,2,48],[2,49,2,51],[2,54,2,56],[2,57,2,60],[2,34,2,37],[2,38,2,40],[7,96,7,98],[7,99,7,101],[6,51,6,53],[6,60,6,62],[6,87,6,89],[6,90,6,92],[7,84,7,86],[7,87,7,89],[7,90,7,92],[7,66,7,68],[7,69,7,71],[7,72,7,74],[6,66,6,68],[7,75,7,77],[7,78,7,80],[7,81,7,83],[6,69,6,71],[6,72,6,74],[6,75,6,77],[6,78,6,80],[6,54,6,56],[6,57,6,59],[131,24,131,25],[131,10,131,11],[131,20,131,21],[7,51,7,53],[7,54,7,56],[7,57,7,59],[7,60,7,62],[7,63,7,65],[7,93,7,95],[8,72,8,74],[8,75,8,77],[8,78,8,80],[8,51,8,53],[80,39,80,40],[80,42,80,43],[80,45,80,46],[80,48,80,49],[80,51,80,52],[80,54,80,55],[80,21,80,22],[80,24,80,25],[80,27,80,28],[80,30,80,31],[80,33,80,34],[83,147,83,148],[130,22,130,23],[130,24,130,25],[130,33,130,36],[130,10,130,11],[130,12,130,13],[130,14,130,15],[130,16,130,17],[130,20,130,21],[83,63,83,64],[83,66,83,67],[83,69,83,70],[83,72,83,73],[83,75,83,76],[83,78,83,79],[83,57,83,58],[83,60,83,61],[87,10,87,11],[87,12,87,13],[87,14,87,15],[87,16,87,17],[87,20,87,21],[87,22,87,23],[87,24,87,25],[7,147,7,149],[8,138,8,140],[8,141,8,143],[8,147,8,149],[80,138,80,139],[80,141,80,142],[80,147,80,148],[82,138,82,139],[82,141,82,142],[82,147,82,148],[132,10,132,11],[134,10,134,11],[131,12,131,13],[132,12,132,13],[134,12,134,13],[131,14,131,15],[132,14,132,15],[134,14,134,15],[131,16,131,17],[132,16,132,17],[134,16,134,17],[133,10,133,11],[133,12,133,13],[133,14,133,15],[133,16,133,17],[132,20,132,21],[134,20,134,21],[131,22,131,23],[132,22,132,23],[134,22,134,23],[6,144,6,146],[7,144,7,146],[8,144,8,146],[80,144,80,145],[82,144,82,145],[83,144,83,145],[133,20,133,21],[133,22,133,23],[133,24,133,25],[133,33,133,36],[132,24,132,25],[134,24,134,25],[131,33,131,36],[132,33,132,36],[134,33,134,36],[7,138,7,140],[7,141,7,143],[83,138,83,139],[83,141,83,142]]}
[":::: รายงานการขายประจำวัน (Sale Daily Report)  ::::",null,null,null,null,null,null,null,null,null,null,null,null,null,"Print Date : ",null,null,{"$f":"NOW()","v":"2025-04-24T22:39:10.140"},null,null,null,null,null,null,null,null,null,null,null,null,"จำนวนร้าน :",null,null,null,{"$f":"MAX($A$10:$A$79)","v":0},null,"ร้าน",null,"เป้ายอดขาย :",null,null,null,null,null,null,null,{"$f":"C3","v":45782},null,null,{"$f":"LEFT('Problems & Solutions'!$B$2,FIND(\"|\",'Problems & Solutions'!$B$2))&\" วันที่\"&TEXT($C$3,\"[$-107041E] d mmmm yyyy;@\")","v":"ขั้นตอนการตรวจรีพอร์ตขาย | วันที่ 5 พฤษภาคม 2568"},null,null,null,null,"เวลากลับ :"]
[]
["วันที่ :",null,{"$f":"DATE(ใส่ข้อมูล!G2-543,ใส่ข้อมูล!V2,ActiveSheetName)","v":"2025-05-05"},null,"พนักงานขาย",null,{"$f":"INDEX(OFFSET(Sale_Region,,1),ActiveSheetName)","v":0},null,null,null,null,null,null,null,"รวมยอดเบิก :",null,null,{"$f":"E136","v":0},null,null,"ชิ้น",null,"ใหญ่สด(40)",null,null,null,{"$f":"Cash_Major_Bill","v":0},null,null,null,"ใหญ่เชื่อ(42)",null,null,null,{"$f":"Credit_Major_Bill","v":0},null,null,null,"บิลใหญ่ :",null,null,{"$f":"AA3+AI3","v":0},null,null,null,null,"เติมน้ำมัน :",null,null,null,null,null,"บาท",null,"ไมล์ออก :",null,null,{"$f":"เลขไมล์ออก","v":0},null,null,null,"Km"]
["เขตการขาย :",null,{"$f":"INDEX(Sale_Region,ActiveSheetName)","v":0},null,"ผช.ขาย",null,{"$f":"INDEX(OFFSET(Sale_Region,,2),ActiveSheetName)","v":0},null,null,null,null,null,null,null,"ของเหลือ :",null,null,{"$f":"F136","v":0},null,null,"ชิ้น",null,"เล็กสด(41)",null,null,null,{"$f":"Cash_Minor_Bill","v":0},null,null,null,"เล็กเชื่อ(43)",null,null,null,{"$f":"Credit_Minor_Bill","v":0},null,null,null,"บิลเล็ก :",null,null,{"$f":"AA4+AI4","v":0},null,null,null,null,"จำนวนลิตร :",null,null,null,null,null,"ลิตร",null,"ไมล์เข้า :",null,null,null,null,null,null,"Km"]
["สายส่ง :",null,{"$f":"\"Sale \"&ใส่ข้อมูล!E3&\"-\"&ใส่ข้อมูล!G3","v":"Sale KB-01"},null,"พนักงานเสริม",null,{"$f":"INDEX(OFFSET(Sale_Region,,3),ActiveSheetName)","v":0},null,null,null,null,null,null,null,"ของเสีย :",null,null,{"$f":"G136","v":0},null,null,"ชิ้น",null,"น้ำหนักของเสีย",null,null,null,null,null,null,null,"Kg.",null,"%ของเสีย",null,null,{"$f":"IF(Order_Cal=0,0,ROUND(Waste_Cal*100/Order_Cal,2))","v":0},null,"%","VAT :",null,null,{"$f":"EW81","v":0},null,null,null,null,"ต้นทุนสาขา :",null,null,{"$f":"SUMPRODUCT((($A$88:$A$135)-($A$88:$A$135)*0.45)*(($E$88:$E$135)-($G$88:$G$135)))","v":0},null,null,"บาท",null,"ระยะทาง :",null,null,{"$f":"IF(OR($BF$4=0,$BF$3=0),0,$BF$4-$BF$3)","v":0},null,null,null,"Km"]
[]
["No","รหัสร้าน (CustNo)","ชื่อร้าน (Store Name)","เวลาเข้าร้าน","ระยะเวลาระหว่างร้าน","บิล(Invoice)",{"$f":"INDEX(INDIRECT(\"dProduct[ProductName]\"),ROUNDUP(COLUMNS($G:G)/3,0))","v":"ขนมปังหมูหยองน้ำสลัด"},null,null,{"$f":"INDEX(INDIRECT(\"dProduct[ProductName]\"),ROUNDUP(COLUMNS($G:J)/3,0))","v":"ขนมปังหมูหยองน้ำพริกเผา"},null,null,{"$f":"INDEX(INDIRECT(\"dProduct[ProductName]\"),ROUNDUP(COLUMNS($G:M)/3,0))","v":"ขนมปังไก่หยองน้ำสลัด"},null,null,{"$f":"INDEX(INDIRECT(\"dProduct[ProductName]\"),ROUNDUP(COLUMNS($G:P)/3,0))","v":"ขนมปังไส้ครีมสลัด"},null,null,{"$f":"INDEX(INDIRECT(\"dProduct[ProductName]\"),ROUNDUP(COLUMNS($G:S)/3,0))","v":"ขนมปังเนยสด"},null,null,{"$f":"INDEX(INDIRECT(\"dProduct[ProductName]\"),ROUNDUP(COLUMNS($G:V)/3,0))","v":"ขนมปังไส้สังขยาเล็ก"},null,null,{"$f":"INDEX(INDIRECT(\"dProduct[ProductName]\"),ROUNDUP(COLUMNS($G:Y)/3,0))","v":"ขนมปังไส้เผือก"},null,null,{"$f":"INDEX(INDIRECT(\"dProduct[ProductName]\"),ROUNDUP(COLUMNS($G:AB)/3,0))","v":"ขนมปังไส้ถั่วแดง"},null,null,{"$f":"INDEX(INDIRECT(\"dProduct[ProductName]\"),ROUNDUP(COLUMNS($G:AE)/3,0))","v":"ขนมปังไส้ถั่วดำ"},null,null,{"$f":"INDEX(INDIRECT(\"dProduct[ProductName]\"),ROUNDUP(COLUMNS($G:AH)/3,0))","v":"ขนมปังไส้มันม่วง"},null,null,{"$f":"INDEX(INDIRECT(\"dProduct[ProductName]\"),ROUNDUP(COLUMNS($G:AK)/3,0))","v":"เค้กกล้วยหอม"},null,null,{"$f":"INDEX(INDIRECT(\"dProduct[ProductName]\"),ROUNDUP(COLUMNS($G:AN)/3,0))","v":"เค้กบัตเตอร์"},null,null,{"$f":"INDEX(INDIRECT(\"dProduct[ProductName]\"),ROUNDUP(COLUMNS($G:AQ)/3,0))","v":"ขนมปังโรลถั่วแดง"},null,null,{"$f":"INDEX(INDIRECT(\"dProduct[ProductName]\"),ROUNDUP(COLUMNS($G:AT)/3,0))","v":"ขนมปังไส้สังขยาใหญ่"},null,null,{"$f":"INDEX(INDIRECT(\"dProduct[ProductName]\"),ROUNDUP(COLUMNS($G:AW)/3,0))","v":"ขนมปังชนิดแผ่น(480กรัม)"},null,null,{"$f":"INDEX(INDIRECT(\"dProduct[ProductName]\"),ROUNDUP(COLUMNS($G:AZ)/3,0))","v":"โมจิไส้ถั่ว"},null,null,{"$f":"INDEX(INDIRECT(\"dProduct[ProductName]\"),ROUNDUP(COLUMNS($G:BC)/3,0))","v":"โมจิไส้เผือก"},null,null,{"$f":"INDEX(INDIRECT(\"dProduct[ProductName]\"),ROUNDUP(COLUMNS($G:BF)/3,0))","v":"โมจิไส้ถั่วไข่เค็ม"},null,null,{"$f":"INDEX(INDIRECT(\"dProduct[ProductName]\"),ROUNDUP(COLUMNS($G:BI)/3,0))","v":"ขนมปังพิซซ่า"},null,null,{"$f":"INDEX(INDIRECT(\"dProduct[ProductName]\"),ROUNDUP(COLUMNS($G:BL)/3,0))","v":"ขนมปังพิซซ่าปูอัดแฮม"},null,null,{"$f":"INDEX(INDIRECT(\"dProduct[ProductName]\"),ROUNDUP(COLUMNS($G:BO)/3,0))","v":"ขนมปังไส้กรอก"},null,null,{"$f":"INDEX(INDIRECT(\"dProduct[ProductName]\"),ROUNDUP(COLUMNS($G:BR)/3,0))","v":"ขนมก้านบัว"},null,null,{"$f":"INDEX(INDIRECT(\"dProduct[ProductName]\"),ROUNDUP(COLUMNS($G:BU)/3,0))","v":"พายสับปะรด"},null,null,{"$f":"INDEX(INDIRECT(\"dProduct[ProductName]\"),ROUNDUP(COLUMNS($G:BX)/3,0))","v":"พายไส้มะพร้าว"},null,null,{"$f":"INDEX(INDIRECT(\"dProduct[ProductName]\"),ROUNDUP(COLUMNS($G:CA)/3,0))","v":"ขนมปังโรลมันเทศ"},null,null,{"$f":"INDEX(INDIRECT(\"dProduct[ProductName]\"),ROUNDUP(COLUMNS($G:CD)/3,0))","v":"ขนมปังไส้ครีมสลัดน้ำพริกเผา"},null,null,{"$f":"INDEX(INDIRECT(\"dProduct[ProductName]\"),ROUNDUP(COLUMNS($G:CG)/3,0))","v":"ขนมปังไส้สังขยาไข่"},null,null,{"$f":"INDEX(INDIRECT(\"dProduct[ProductName]\"),ROUNDUP(COLUMNS($G:CJ)/3,0))","v":"ขนมปังไส้สังขยามะพร้าว"},null,null,{"$f":"INDEX(INDIRECT(\"dProduct[ProductName]\"),ROUNDUP(COLUMNS($G:CM)/3,0))","v":"ขนมปังไส้ครีมชาไทย"},null,null,{"$f":"INDEX(INDIRECT(\"dProduct[ProductName]\"),ROUNDUP(COLUMNS($G:CP)/3,0))","v":"ขนมปังโรลมันม่วง"},null,null,{"$f":"INDEX(INDIRECT(\"dProduct[ProductName]\"),ROUNDUP(COLUMNS($G:CS)/3,0))","v":"ขนมปังโรลช็อกโกแลต"},null,null,{"$f":"INDEX(INDIRECT(\"dProduct[ProductName]\"),ROUNDUP(COLUMNS($G:CV)/3,0))","v":"ขนมปังชนิดแผ่น(155กรัม)"},null,null,{"$f":"INDEX(INDIRECT(\"dProduct[ProductName]\"),ROUNDUP(COLUMNS($G:CY)/3,0))","v":"ขนมปังโรลเผือก"},null,null,{"$f":"INDEX(INDIRECT(\"dProduct[ProductName]\"),ROUNDUP(COLUMNS($G:DB)/3,0))","v":"ขนมปังไก่หยองน้ำสลัด Mini"},null,null,{"$f":"INDEX(INDIRECT(\"dProduct[ProductName]\"),ROUNDUP(COLUMNS($G:DE)/3,0))","v":"ขนมปังไส้ช็อกโกแลต"},null,null,{"$f":"INDEX(INDIRECT(\"dProduct[ProductName]\"),ROUNDUP(COLUMNS($G:DH)/3,0))","v":"ขนมปังไส้ครีมสังขยาไข่"},null,null,{"$f":"INDEX(INDIRECT(\"dProduct[ProductName]\"),ROUNDUP(COLUMNS($G:DK)/3,0))","v":"ขนมปังพิซซ่าฮาวายเอี้ยน"},null,null,{"$f":"INDEX(INDIRECT(\"dProduct[ProductName]\"),ROUNDUP(COLUMNS($G:DN)/3,0))","v":"ครัวซองต์หมูหยองน้ำสลัด"},null,null,{"$f":"INDEX(INDIRECT(\"dProduct[ProductName]\"),ROUNDUP(COLUMNS($G:DQ)/3,0))","v":"แพนเบรดไส้เผือก"},null,null,{"$f":"INDEX(INDIRECT(\"dProduct[ProductName]\"),ROUNDUP(COLUMNS($G:DT)/3,0))","v":"แพนเบรดไส้ถั่วแดง"},null,null,{"$f":"INDEX(INDIRECT(\"dProduct[ProductName]\"),ROUNDUP(COLUMNS($G:DW)/3,0))","v":"ขนมปังกรอบเนยน้ำตาล(30กรัม)"},null,null,{"$f":"INDEX(INDIRECT(\"dProduct[ProductName]\"),ROUNDUP(COLUMNS($G:DZ)/3,0))","v":"ขนมปังชนิดแผ่นโฮลวีต"},null,null,{"$f":"INDEX(INDIRECT(\"dProduct[ProductName]\"),ROUNDUP(COLUMNS($G:EC)/3,0))","v":"เค้กโรลใบเตย"},null,null,{"$f":"INDEX(INDIRECT(\"dProduct[ProductName]\"),ROUNDUP(COLUMNS($G:EF)/3,0))","v":"ขนมโมจิไส้ถั่วดำ"},null,null,{"$f":"INDEX(INDIRECT(\"dProduct[ProductName]\"),ROUNDUP(COLUMNS($G:EI)/3,0))","v":"ครัวซองต์ไส้กรอกชีส"},null,null,{"$f":"INDEX(INDIRECT(\"dProduct[ProductName]\"),ROUNDUP(COLUMNS($G:EL)/3,0))","v":"ขนมเปี๊ยะไส้ถั่ว"},null,null,{"$f":"INDEX(INDIRECT(\"dProduct[ProductName]\"),ROUNDUP(COLUMNS($G:EO)/3,0))","v":"ขนมเปี๊ยะไส้ฟัก"},null,null,{"$f":"INDEX(INDIRECT(\"dProduct[ProductName]\"),ROUNDUP(COLUMNS($G:ER)/3,0))","v":"มังกี้เค้ก"},null,null,"มูลค่าสินค้า",null,"ภาษี","รวมยอดขาย"]
[null,null,null,null,null,"ราคาขาย",{"$f":"IF(G$7=0,0,INDEX(Price_List,ROUNDUP(COLUMNS($G:G)/3,0)))","v":20},null,null,{"$f":"IF(J$7=0,0,INDEX(Price_List,ROUNDUP(COLUMNS($G:J)/3,0)))","v":20},null,null,{"$f":"IF(M$7=0,0,INDEX(Price_List,ROUNDUP(COLUMNS($G:M)/3,0)))","v":20},null,null,{"$f":"IF(P$7=0,0,INDEX(Price_List,ROUNDUP(COLUMNS($G:P)/3,0)))","v":15},null,null,{"$f":"IF(S$7=0,0,INDEX(Price_List,ROUNDUP(COLUMNS($G:S)/3,0)))","v":15},null,null,{"$f":"IF(V$7=0,0,INDEX(Price_List,ROUNDUP(COLUMNS($G:V)/3,0)))","v":10},null,null,{"$f":"IF(Y$7=0,0,INDEX(Price_List,ROUNDUP(COLUMNS($G:Y)/3,0)))","v":10},null,null,{"$f":"IF(AB$7=0,0,INDEX(Price_List,ROUNDUP(COLUMNS($G:AB)/3,0)))","v":10},null,null,{"$f":"IF(AE$7=0,0,INDEX(Price_List,ROUNDUP(COLUMNS($G:AE)/3,0)))","v":10},null,null,{"$f":"IF(AH$7=0,0,INDEX(Price_List,ROUNDUP(COLUMNS($G:AH)/3,0)))","v":10},null,null,{"$f":"IF(AK$7=0,0,INDEX(Price_List,ROUNDUP(COLUMNS($G:AK)/3,0)))","v":15},null,null,{"$f":"IF(AN$7=0,0,INDEX(Price_List,ROUNDUP(COLUMNS($G:AN)/3,0)))","v":15},null,null,{"$f":"IF(AQ$7=0,0,INDEX(Price_List,ROUNDUP(COLUMNS($G:AQ)/3,0)))","v":15},null,null,{"$f":"IF(AT$7=0,0,INDEX(Price_List,ROUNDUP(COLUMNS($G:AT)/3,0)))","v":15},null,null,{"$f":"IF(AW$7=0,0,INDEX(Price_List,ROUNDUP(COLUMNS($G:AW)/3,0)))","v":42},null,null,{"$f":"IF(AZ$7=0,0,INDEX(Price_List,ROUNDUP(COLUMNS($G:AZ)/3,0)))","v":12},null,null,{"$f":"IF(BC$7=0,0,INDEX(Price_List,ROUNDUP(COLUMNS($G:BC)/3,0)))","v":12},null,null,{"$f":"IF(BF$7=0,0,INDEX(Price_List,ROUNDUP(COLUMNS($G:BF)/3,0)))","v":15},null,null,{"$f":"IF(BI$7=0,0,INDEX(Price_List,ROUNDUP(COLUMNS($G:BI)/3,0)))","v":20},null,null,{"$f":"IF(BL$7=0,0,INDEX(Price_List,ROUNDUP(COLUMNS($G:BL)/3,0)))","v":20},null,null,{"$f":"IF(BO$7=0,0,INDEX(Price_List,ROUNDUP(COLUMNS($G:BO)/3,0)))","v":20},null,null,{"$f":"IF(BR$7=0,0,INDEX(Price_List,ROUNDUP(COLUMNS($G:BR)/3,0)))","v":15},null,null,{"$f":"IF(BU$7=0,0,INDEX(Price_List,ROUNDUP(COLUMNS($G:BU)/3,0)))","v":20},null,null,{"$f":"IF(BX$7=0,0,INDEX(Price_List,ROUNDUP(COLUMNS($G:BX)/3,0)))","v":20},null,null,{"$f":"IF(CA$7=0,0,INDEX(Price_List,ROUNDUP(COLUMNS($G:CA)/3,0)))","v":15},null,null,{"$f":"IF(CD$7=0,0,INDEX(Price_List,ROUNDUP(COLUMNS($G:CD)/3,0)))","v":15},null,null,{"$f":"IF(CG$7=0,0,INDEX(Price_List,ROUNDUP(COLUMNS($G:CG)/3,0)))","v":20},null,null,{"$f":"IF(CJ$7=0,0,INDEX(Price_List,ROUNDUP(COLUMNS($G:CJ)/3,0)))","v":20},null,null,{"$f":"IF(CM$7=0,0,INDEX(Price_List,ROUNDUP(COLUMNS($G:CM)/3,0)))","v":10},null,null,{"$f":"IF(CP$7=0,0,INDEX(Price_List,ROUNDUP(COLUMNS($G:CP)/3,0)))","v":15},null,null,{"$f":"IF(CS$7=0,0,INDEX(Price_List,ROUNDUP(COLUMNS($G:CS)/3,0)))","v":15},null,null,{"$f":"IF(CV$7=0,0,INDEX(Price_List,ROUNDUP(COLUMNS($G:CV)/3,0)))","v":16},null,null,{"$f":"IF(CY$7=0,0,INDEX(Price_List,ROUNDUP(COLUMNS($G:CY)/3,0)))","v":15},null,null,{"$f":"IF(DB$7=0,0,INDEX(Price_List,ROUNDUP(COLUMNS($G:DB)/3,0)))","v":15},null,null,{"$f":"IF(DE$7=0,0,INDEX(Price_List,ROUNDUP(COLUMNS($G:DE)/3,0)))","v":10},null,null,{"$f":"IF(DH$7=0,0,INDEX(Price_List,ROUNDUP(COLUMNS($G:DH)/3,0)))","v":10},null,null,{"$f":"IF(DK$7=0,0,INDEX(Price_List,ROUNDUP(COLUMNS($G:DK)/3,0)))","v":20},null,null,{"$f":"IF(DN$7=0,0,INDEX(Price_List,ROUNDUP(COLUMNS($G:DN)/3,0)))","v":20},null,null,{"$f":"IF(DQ$7=0,0,INDEX(Price_List,ROUNDUP(COLUMNS($G:DQ)/3,0)))","v":15},null,null,{"$f":"IF(DT$7=0,0,INDEX(Price_List,ROUNDUP(COLUMNS($G:DT)/3,0)))","v":15},null,null,{"$f":"IF(DW$7=0,0,INDEX(Price_List,ROUNDUP(COLUMNS($G:DW)/3,0)))","v":12},null,null,{"$f":"IF(DZ$7=0,0,INDEX(Price_List,ROUNDUP(COLUMNS($G:DZ)/3,0)))","v":18},null,null,{"$f":"IF(EC$7=0,0,INDEX(Price_List,ROUNDUP(COLUMNS($G:EC)/3,0)))","v":12},null,null,{"$f":"IF(EF$7=0,0,INDEX(Price_List,ROUNDUP(COLUMNS($G:EF)/3,0)))","v":12},null,null,{"$f":"IF(EI$7=0,0,INDEX(Price_List,ROUNDUP(COLUMNS($G:EI)/3,0)))","v":25},null,null,{"$f":"IF(EL$7=0,0,INDEX(Price_List,ROUNDUP(COLUMNS($G:EL)/3,0)))","v":12},null,null,{"$f":"IF(EO$7=0,0,INDEX(Price_List,ROUNDUP(COLUMNS($G:EO)/3,0)))","v":12},null,null,{"$f":"IF(ER$7=0,0,INDEX(Price_List,ROUNDUP(COLUMNS($G:ER)/3,0)))","v":12},null,null,"เงินเชื่อ","เงินสด"]
[null,null,null,null,null,"คงเหลือ(ตามบัญชี)",{"$f":"IF(G$7=0,0,INDEX(INDIRECT(Order_Rng),ROUNDUP(COLUMNS($G:G)/3,0)))","v":0},null,null,{"$f":"IF(J$7=0,0,INDEX(INDIRECT(Order_Rng),ROUNDUP(COLUMNS($G:J)/3,0)))","v":0},null,null,{"$f":"IF(M$7=0,0,INDEX(INDIRECT(Order_Rng),ROUNDUP(COLUMNS($G:M)/3,0)))","v":0},null,null,{"$f":"IF(P$7=0,0,INDEX(INDIRECT(Order_Rng),ROUNDUP(COLUMNS($G:P)/3,0)))","v":0},null,null,{"$f":"IF(S$7=0,0,INDEX(INDIRECT(Order_Rng),ROUNDUP(COLUMNS($G:S)/3,0)))","v":0},null,null,{"$f":"IF(V$7=0,0,INDEX(INDIRECT(Order_Rng),ROUNDUP(COLUMNS($G:V)/3,0)))","v":0},null,null,{"$f":"IF(Y$7=0,0,INDEX(INDIRECT(Order_Rng),ROUNDUP(COLUMNS($G:Y)/3,0)))","v":0},null,null,{"$f":"IF(AB$7=0,0,INDEX(INDIRECT(Order_Rng),ROUNDUP(COLUMNS($G:AB)/3,0)))","v":0},null,null,{"$f":"IF(AE$7=0,0,INDEX(INDIRECT(Order_Rng),ROUNDUP(COLUMNS($G:AE)/3,0)))","v":0},null,null,{"$f":"IF(AH$7=0,0,INDEX(INDIRECT(Order_Rng),ROUNDUP(COLUMNS($G:AH)/3,0)))","v":0},null,null,{"$f":"IF(AK$7=0,0,INDEX(INDIRECT(Order_Rng),ROUNDUP(COLUMNS($G:AK)/3,0)))","v":0},null,null,{"$f":"IF(AN$7=0,0,INDEX(INDIRECT(Order_Rng),ROUNDUP(COLUMNS($G:AN)/3,0)))","v":0},null,null,{"$f":"IF(AQ$7=0,0,INDEX(INDIRECT(Order_Rng),ROUNDUP(COLUMNS($G:AQ)/3,0)))","v":0},null,null,{"$f":"IF(AT$7=0,0,INDEX(INDIRECT(Order_Rng),ROUNDUP(COLUMNS($G:AT)/3,0)))","v":0},null,null,{"$f":"IF(AW$7=0,0,INDEX(INDIRECT(Order_Rng),ROUNDUP(COLUMNS($G:AW)/3,0)))","v":0},null,null,{"$f":"IF(AZ$7=0,0,INDEX(INDIRECT(Order_Rng),ROUNDUP(COLUMNS($G:AZ)/3,0)))","v":0},null,null,{"$f":"IF(BC$7=0,0,INDEX(INDIRECT(Order_Rng),ROUNDUP(COLUMNS($G:BC)/3,0)))","v":0},null,null,{"$f":"IF(BF$7=0,0,INDEX(INDIRECT(Order_Rng),ROUNDUP(COLUMNS($G:BF)/3,0)))","v":0},null,null,{"$f":"IF(BI$7=0,0,INDEX(INDIRECT(Order_Rng),ROUNDUP(COLUMNS($G:BI)/3,0)))","v":0},null,null,{"$f":"IF(BL$7=0,0,INDEX(INDIRECT(Order_Rng),ROUNDUP(COLUMNS($G:BL)/3,0)))","v":0},null,null,{"$f":"IF(BO$7=0,0,INDEX(INDIRECT(Order_Rng),ROUNDUP(COLUMNS($G:BO)/3,0)))","v":0},null,null,{"$f":"IF(BR$7=0,0,INDEX(INDIRECT(Order_Rng),ROUNDUP(COLUMNS($G:BR)/3,0)))","v":0},null,null,{"$f":"IF(BU$7=0,0,INDEX(INDIRECT(Order_Rng),ROUNDUP(COLUMNS($G:BU)/3,0)))","v":0},null,null,{"$f":"IF(BX$7=0,0,INDEX(INDIRECT(Order_Rng),ROUNDUP(COLUMNS($G:BX)/3,0)))","v":0},null,null,{"$f":"IF(CA$7=0,0,INDEX(INDIRECT(Order_Rng),ROUNDUP(COLUMNS($G:CA)/3,0)))","v":0},null,null,{"$f":"IF(CD$7=0,0,INDEX(INDIRECT(Order_Rng),ROUNDUP(COLUMNS($G:CD)/3,0)))","v":0},null,null,{"$f":"IF(CG$7=0,0,INDEX(INDIRECT(Order_Rng),ROUNDUP(COLUMNS($G:CG)/3,0)))","v":0},null,null,{"$f":"IF(CJ$7=0,0,INDEX(INDIRECT(Order_Rng),ROUNDUP(COLUMNS($G:CJ)/3,0)))","v":0},null,null,{"$f":"IF(CM$7=0,0,INDEX(INDIRECT(Order_Rng),ROUNDUP(COLUMNS($G:CM)/3,0)))","v":0},null,null,{"$f":"IF(CP$7=0,0,INDEX(INDIRECT(Order_Rng),ROUNDUP(COLUMNS($G:CP)/3,0)))","v":0},null,null,{"$f":"IF(CS$7=0,0,INDEX(INDIRECT(Order_Rng),ROUNDUP(COLUMNS($G:CS)/3,0)))","v":0},null,null,{"$f":"IF(CV$7=0,0,INDEX(INDIRECT(Order_Rng),ROUNDUP(COLUMNS($G:CV)/3,0)))","v":0},null,null,{"$f":"IF(CY$7=0,0,INDEX(INDIRECT(Order_Rng),ROUNDUP(COLUMNS($G:CY)/3,0)))","v":0},null,null,{"$f":"IF(DB$7=0,0,INDEX(INDIRECT(Order_Rng),ROUNDUP(COLUMNS($G:DB)/3,0)))","v":0},null,null,{"$f":"IF(DE$7=0,0,INDEX(INDIRECT(Order_Rng),ROUNDUP(COLUMNS($G:DE)/3,0)))","v":0},null,null,{"$f":"IF(DH$7=0,0,INDEX(INDIRECT(Order_Rng),ROUNDUP(COLUMNS($G:DH)/3,0)))","v":0},null,null,{"$f":"IF(DK$7=0,0,INDEX(INDIRECT(Order_Rng),ROUNDUP(COLUMNS($G:DK)/3,0)))","v":0},null,null,{"$f":"IF(DN$7=0,0,INDEX(INDIRECT(Order_Rng),ROUNDUP(COLUMNS($G:DN)/3,0)))","v":0},null,null,{"$f":"IF(DQ$7=0,0,INDEX(INDIRECT(Order_Rng),ROUNDUP(COLUMNS($G:DQ)/3,0)))","v":0},null,null,{"$f":"IF(DT$7=0,0,INDEX(INDIRECT(Order_Rng),ROUNDUP(COLUMNS($G:DT)/3,0)))","v":0},null,null,{"$f":"IF(DW$7=0,0,INDEX(INDIRECT(Order_Rng),ROUNDUP(COLUMNS($G:DW)/3,0)))","v":0},null,null,{"$f":"IF(DZ$7=0,0,INDEX(INDIRECT(Order_Rng),ROUNDUP(COLUMNS($G:DZ)/3,0)))","v":0},null,null,{"$f":"IF(EC$7=0,0,INDEX(INDIRECT(Order_Rng),ROUNDUP(COLUMNS($G:EC)/3,0)))","v":0},null,null,{"$f":"IF(EF$7=0,0,INDEX(INDIRECT(Order_Rng),ROUNDUP(COLUMNS($G:EF)/3,0)))","v":0},null,null,{"$f":"IF(EI$7=0,0,INDEX(INDIRECT(Order_Rng),ROUNDUP(COLUMNS($G:EI)/3,0)))","v":0},null,null,{"$f":"IF(EL$7=0,0,INDEX(INDIRECT(Order_Rng),ROUNDUP(COLUMNS($G:EL)/3,0)))","v":0},null,null,{"$f":"IF(EO$7=0,0,INDEX(INDIRECT(Order_Rng),ROUNDUP(COLUMNS($G:EO)/3,0)))","v":0},null,null,{"$f":"IF(ER$7=0,0,INDEX(INDIRECT(Order_Rng),ROUNDUP(COLUMNS($G:ER)/3,0)))","v":0}]
[{"$f":"IF(OR($B10=\"\",COUNTIF($B$10:$B10,$B10)>1,LEN(TRIM($B10))<>10,ISNUMBER(--MID(TRIM($B10),5,1))),\"-\",MAX(COUNT($A$9:$A9)+1))","v":"-"}]
[{"$f":"IF(OR($B11=\"\",COUNTIF($B$10:$B11,$B11)>1,LEN(TRIM($B11))<>10,ISNUMBER(--MID(TRIM($B11),5,1))),\"-\",MAX(COUNT($A$9:$A10)+1))","v":"-"},null,null,null,{"$f":"IF(D11=\"\",\"\",D11-D10)","v":""}]
[{"$f":"IF(OR($B12=\"\",COUNTIF($B$10:$B12,$B12)>1,LEN(TRIM($B12))<>10,ISNUMBER(--MID(TRIM($B12),5,1))),\"-\",MAX(COUNT($A$9:$A11)+1))","v":"-"},null,null,null,{"$f":"IF(D12=\"\",\"\",D12-D11)","v":""}]
[{"$f":"IF(OR($B13=\"\",COUNTIF($B$10:$B13,$B13)>1,LEN(TRIM($B13))<>10,ISNUMBER(--MID(TRIM($B13),5,1))),\"-\",MAX(COUNT($A$9:$A12)+1))","v":"-"},null,null,null,""]
[{"$f":"IF(OR($B14=\"\",COUNTIF($B$10:$B14,$B14)>1,LEN(TRIM($B14))<>10,ISNUMBER(--MID(TRIM($B14),5,1))),\"-\",MAX(COUNT($A$9:$A13)+1))","v":"-"},null,null,null,""]
[{"$f":"IF(OR($B15=\"\",COUNTIF($B$10:$B15,$B15)>1,LEN(TRIM($B15))<>10,ISNUMBER(--MID(TRIM($B15),5,1))),\"-\",MAX(COUNT($A$9:$A14)+1))","v":"-"},null,null,null,""]
[{"$f":"IF(OR($B16=\"\",COUNTIF($B$10:$B16,$B16)>1,LEN(TRIM($B16))<>10,ISNUMBER(--MID(TRIM($B16),5,1))),\"-\",MAX(COUNT($A$9:$A15)+1))","v":"-"},null,null,null,""]
[{"$f":"IF(OR($B17=\"\",COUNTIF($B$10:$B17,$B17)>1,LEN(TRIM($B17))<>10,ISNUMBER(--MID(TRIM($B17),5,1))),\"-\",MAX(COUNT($A$9:$A16)+1))","v":"-"},null,null,null,""]
[{"$f":"IF(OR($B18=\"\",COUNTIF($B$10:$B18,$B18)>1,LEN(TRIM($B18))<>10,ISNUMBER(--MID(TRIM($B18),5,1))),\"-\",MAX(COUNT($A$9:$A17)+1))","v":"-"},null,null,null,""]
[{"$f":"IF(OR($B19=\"\",COUNTIF($B$10:$B19,$B19)>1,LEN(TRIM($B19))<>10,ISNUMBER(--MID(TRIM($B19),5,1))),\"-\",MAX(COUNT($A$9:$A18)+1))","v":"-"},null,null,null,""]
[{"$f":"IF(OR($B20=\"\",COUNTIF($B$10:$B20,$B20)>1,LEN(TRIM($B20))<>10,ISNUMBER(--MID(TRIM($B20),5,1))),\"-\",MAX(COUNT($A$9:$A19)+1))","v":"-"},null,null,null,""]
[{"$f":"IF(OR($B21=\"\",COUNTIF($B$10:$B21,$B21)>1,LEN(TRIM($B21))<>10,ISNUMBER(--MID(TRIM($B21),5,1))),\"-\",MAX(COUNT($A$9:$A20)+1))","v":"-"},null,null,null,""]
[{"$f":"IF(OR($B22=\"\",COUNTIF($B$10:$B22,$B22)>1,LEN(TRIM($B22))<>10,ISNUMBER(--MID(TRIM($B22),5,1))),\"-\",MAX(COUNT($A$9:$A21)+1))","v":"-"},null,null,null,""]
[{"$f":"IF(OR($B23=\"\",COUNTIF($B$10:$B23,$B23)>1,LEN(TRIM($B23))<>10,ISNUMBER(--MID(TRIM($B23),5,1))),\"-\",MAX(COUNT($A$9:$A22)+1))","v":"-"},null,null,null,""]
[{"$f":"IF(OR($B24=\"\",COUNTIF($B$10:$B24,$B24)>1,LEN(TRIM($B24))<>10,ISNUMBER(--MID(TRIM($B24),5,1))),\"-\",MAX(COUNT($A$9:$A23)+1))","v":"-"},null,null,null,""]
[{"$f":"IF(OR($B25=\"\",COUNTIF($B$10:$B25,$B25)>1,LEN(TRIM($B25))<>10,ISNUMBER(--MID(TRIM($B25),5,1))),\"-\",MAX(COUNT($A$9:$A24)+1))","v":"-"},null,null,null,""]
[{"$f":"IF(OR($B26=\"\",COUNTIF($B$10:$B26,$B26)>1,LEN(TRIM($B26))<>10,ISNUMBER(--MID(TRIM($B26),5,1))),\"-\",MAX(COUNT($A$9:$A25)+1))","v":"-"},null,null,null,""]
[{"$f":"IF(OR($B27=\"\",COUNTIF($B$10:$B27,$B27)>1,LEN(TRIM($B27))<>10,ISNUMBER(--MID(TRIM($B27),5,1))),\"-\",MAX(COUNT($A$9:$A26)+1))","v":"-"},null,null,null,""]
[{"$f":"IF(OR($B28=\"\",COUNTIF($B$10:$B28,$B28)>1,LEN(TRIM($B28))<>10,ISNUMBER(--MID(TRIM($B28),5,1))),\"-\",MAX(COUNT($A$9:$A27)+1))","v":"-"},null,null,null,""]
[{"$f":"IF(OR($B29=\"\",COUNTIF($B$10:$B29,$B29)>1,LEN(TRIM($B29))<>10,ISNUMBER(--MID(TRIM($B29),5,1))),\"-\",MAX(COUNT($A$9:$A28)+1))","v":"-"},null,null,null,""]
[{"$f":"IF(OR($B30=\"\",COUNTIF($B$10:$B30,$B30)>1,LEN(TRIM($B30))<>10,ISNUMBER(--MID(TRIM($B30),5,1))),\"-\",MAX(COUNT($A$9:$A29)+1))","v":"-"},null,null,null,""]
[{"$f":"IF(OR($B31=\"\",COUNTIF($B$10:$B31,$B31)>1,LEN(TRIM($B31))<>10,ISNUMBER(--MID(TRIM($B31),5,1))),\"-\",MAX(COUNT($A$9:$A30)+1))","v":"-"},null,null,null,""]
[{"$f":"IF(OR($B32=\"\",COUNTIF($B$10:$B32,$B32)>1,LEN(TRIM($B32))<>10,ISNUMBER(--MID(TRIM($B32),5,1))),\"-\",MAX(COUNT($A$9:$A31)+1))","v":"-"},null,null,null,""]
[{"$f":"IF(OR($B33=\"\",COUNTIF($B$10:$B33,$B33)>1,LEN(TRIM($B33))<>10,ISNUMBER(--MID(TRIM($B33),5,1))),\"-\",MAX(COUNT($A$9:$A32)+1))","v":"-"},null,null,null,""]
[{"$f":"IF(OR($B34=\"\",COUNTIF($B$10:$B34,$B34)>1,LEN(TRIM($B34))<>10,ISNUMBER(--MID(TRIM($B34),5,1))),\"-\",MAX(COUNT($A$9:$A33)+1))","v":"-"},null,null,null,""]
[{"$f":"IF(OR($B35=\"\",COUNTIF($B$10:$B35,$B35)>1,LEN(TRIM($B35))<>10,ISNUMBER(--MID(TRIM($B35),5,1))),\"-\",MAX(COUNT($A$9:$A34)+1))","v":"-"},null,null,null,""]
[{"$f":"IF(OR($B36=\"\",COUNTIF($B$10:$B36,$B36)>1,LEN(TRIM($B36))<>10,ISNUMBER(--MID(TRIM($B36),5,1))),\"-\",MAX(COUNT($A$9:$A35)+1))","v":"-"},null,null,null,""]
[{"$f":"IF(OR($B37=\"\",COUNTIF($B$10:$B37,$B37)>1,LEN(TRIM($B37))<>10,ISNUMBER(--MID(TRIM($B37),5,1))),\"-\",MAX(COUNT($A$9:$A36)+1))","v":"-"},null,null,null,""]
[{"$f":"IF(OR($B38=\"\",COUNTIF($B$10:$B38,$B38)>1,LEN(TRIM($B38))<>10,ISNUMBER(--MID(TRIM($B38),5,1))),\"-\",MAX(COUNT($A$9:$A37)+1))","v":"-"},null,null,null,""]
[{"$f":"IF(OR($B39=\"\",COUNTIF($B$10:$B39,$B39)>1,LEN(TRIM($B39))<>10,ISNUMBER(--MID(TRIM($B39),5,1))),\"-\",MAX(COUNT($A$9:$A38)+1))","v":"-"},null,null,null,""]
[{"$f":"IF(OR($B40=\"\",COUNTIF($B$10:$B40,$B40)>1,LEN(TRIM($B40))<>10,ISNUMBER(--MID(TRIM($B40),5,1))),\"-\",MAX(COUNT($A$9:$A39)+1))","v":"-"},null,null,null,""]
[{"$f":"IF(OR($B41=\"\",COUNTIF($B$10:$B41,$B41)>1,LEN(TRIM($B41))<>10,ISNUMBER(--MID(TRIM($B41),5,1))),\"-\",MAX(COUNT($A$9:$A40)+1))","v":"-"},null,null,null,""]
[{"$f":"IF(OR($B42=\"\",COUNTIF($B$10:$B42,$B42)>1,LEN(TRIM($B42))<>10,ISNUMBER(--MID(TRIM($B42),5,1))),\"-\",MAX(COUNT($A$9:$A41)+1))","v":"-"},null,null,null,""]
[{"$f":"IF(OR($B43=\"\",COUNTIF($B$10:$B43,$B43)>1,LEN(TRIM($B43))<>10,ISNUMBER(--MID(TRIM($B43),5,1))),\"-\",MAX(COUNT($A$9:$A42)+1))","v":"-"},null,null,null,""]
[{"$f":"IF(OR($B44=\"\",COUNTIF($B$10:$B44,$B44)>1,LEN(TRIM($B44))<>10,ISNUMBER(--MID(TRIM($B44),5,1))),\"-\",MAX(COUNT($A$9:$A43)+1))","v":"-"},null,null,null,""]
[{"$f":"IF(OR($B45=\"\",COUNTIF($B$10:$B45,$B45)>1,LEN(TRIM($B45))<>10,ISNUMBER(--MID(TRIM($B45),5,1))),\"-\",MAX(COUNT($A$9:$A44)+1))","v":"-"},null,null,null,""]
[{"$f":"IF(OR($B46=\"\",COUNTIF($B$10:$B46,$B46)>1,LEN(TRIM($B46))<>10,ISNUMBER(--MID(TRIM($B46),5,1))),\"-\",MAX(COUNT($A$9:$A45)+1))","v":"-"},null,null,null,""]
[{"$f":"IF(OR($B47=\"\",COUNTIF($B$10:$B47,$B47)>1,LEN(TRIM($B47))<>10,ISNUMBER(--MID(TRIM($B47),5,1))),\"-\",MAX(COUNT($A$9:$A46)+1))","v":"-"},null,null,null,""]
[{"$f":"IF(OR($B48=\"\",COUNTIF($B$10:$B48,$B48)>1,LEN(TRIM($B48))<>10,ISNUMBER(--MID(TRIM($B48),5,1))),\"-\",MAX(COUNT($A$9:$A47)+1))","v":"-"},null,null,null,""]
[{"$f":"IF(OR($B49=\"\",COUNTIF($B$10:$B49,$B49)>1,LEN(TRIM($B49))<>10,ISNUMBER(--MID(TRIM($B49),5,1))),\"-\",MAX(COUNT($A$9:$A48)+1))","v":"-"},null,null,null,""]
[{"$f":"IF(OR($B50=\"\",COUNTIF($B$10:$B50,$B50)>1,LEN(TRIM($B50))<>10,ISNUMBER(--MID(TRIM($B50),5,1))),\"-\",MAX(COUNT($A$9:$A49)+1))","v":"-"},null,null,null,""]
[{"$f":"IF(OR($B51=\"\",COUNTIF($B$10:$B51,$B51)>1,LEN(TRIM($B51))<>10,ISNUMBER(--MID(TRIM($B51),5,1))),\"-\",MAX(COUNT($A$9:$A50)+1))","v":"-"},null,null,null,""]
[{"$f":"IF(OR($B52=\"\",COUNTIF($B$10:$B52,$B52)>1,LEN(TRIM($B52))<>10,ISNUMBER(--MID(TRIM($B52),5,1))),\"-\",MAX(COUNT($A$9:$A51)+1))","v":"-"},null,null,null,""]
[{"$f":"IF(OR($B53=\"\",COUNTIF($B$10:$B53,$B53)>1,LEN(TRIM($B53))<>10,ISNUMBER(--MID(TRIM($B53),5,1))),\"-\",MAX(COUNT($A$9:$A52)+1))","v":"-"},null,null,null,""]
[{"$f":"IF(OR($B54=\"\",COUNTIF($B$10:$B54,$B54)>1,LEN(TRIM($B54))<>10,ISNUMBER(--MID(TRIM($B54),5,1))),\"-\",MAX(COUNT($A$9:$A53)+1))","v":"-"},null,null,null,""]
[{"$f":"IF(OR($B55=\"\",COUNTIF($B$10:$B55,$B55)>1,LEN(TRIM($B55))<>10,ISNUMBER(--MID(TRIM($B55),5,1))),\"-\",MAX(COUNT($A$9:$A54)+1))","v":"-"},null,null,null,""]
[{"$f":"IF(OR($B56=\"\",COUNTIF($B$10:$B56,$B56)>1,LEN(TRIM($B56))<>10,ISNUMBER(--MID(TRIM($B56),5,1))),\"-\",MAX(COUNT($A$9:$A55)+1))","v":"-"},null,null,null,""]
[{"$f":"IF(OR($B57=\"\",COUNTIF($B$10:$B57,$B57)>1,LEN(TRIM($B57))<>10,ISNUMBER(--MID(TRIM($B57),5,1))),\"-\",MAX(COUNT($A$9:$A56)+1))","v":"-"},null,null,null,""]
[{"$f":"IF(OR($B58=\"\",COUNTIF($B$10:$B58,$B58)>1,LEN(TRIM($B58))<>10,ISNUMBER(--MID(TRIM($B58),5,1))),\"-\",MAX(COUNT($A$9:$A57)+1))","v":"-"},null,null,null,""]
[{"$f":"IF(OR($B59=\"\",COUNTIF($B$10:$B59,$B59)>1,LEN(TRIM($B59))<>10,ISNUMBER(--MID(TRIM($B59),5,1))),\"-\",MAX(COUNT($A$9:$A58)+1))","v":"-"},null,null,null,""]
[{"$f":"IF(OR($B60=\"\",COUNTIF($B$10:$B60,$B60)>1,LEN(TRIM($B60))<>10,ISNUMBER(--MID(TRIM($B60),5,1))),\"-\",MAX(COUNT($A$9:$A59)+1))","v":"-"},null,null,null,""]
[{"$f":"IF(OR($B61=\"\",COUNTIF($B$10:$B61,$B61)>1,LEN(TRIM($B61))<>10,ISNUMBER(--MID(TRIM($B61),5,1))),\"-\",MAX(COUNT($A$9:$A60)+1))","v":"-"},null,null,null,""]
[{"$f":"IF(OR($B62=\"\",COUNTIF($B$10:$B62,$B62)>1,LEN(TRIM($B62))<>10,ISNUMBER(--MID(TRIM($B62),5,1))),\"-\",MAX(COUNT($A$9:$A61)+1))","v":"-"},null,null,null,""]
[{"$f":"IF(OR($B63=\"\",COUNTIF($B$10:$B63,$B63)>1,LEN(TRIM($B63))<>10,ISNUMBER(--MID(TRIM($B63),5,1))),\"-\",MAX(COUNT($A$9:$A62)+1))","v":"-"},null,null,null,""]
[{"$f":"IF(OR($B64=\"\",COUNTIF($B$10:$B64,$B64)>1,LEN(TRIM($B64))<>10,ISNUMBER(--MID(TRIM($B64),5,1))),\"-\",MAX(COUNT($A$9:$A63)+1))","v":"-"},null,null,null,""]
[{"$f":"IF(OR($B65=\"\",COUNTIF($B$10:$B65,$B65)>1,LEN(TRIM($B65))<>10,ISNUMBER(--MID(TRIM($B65),5,1))),\"-\",MAX(COUNT($A$9:$A64)+1))","v":"-"},null,null,null,""]
[{"$f":"IF(OR($B66=\"\",COUNTIF($B$10:$B66,$B66)>1,LEN(TRIM($B66))<>10,ISNUMBER(--MID(TRIM($B66),5,1))),\"-\",MAX(COUNT($A$9:$A65)+1))","v":"-"},null,null,null,""]
[{"$f":"IF(OR($B67=\"\",COUNTIF($B$10:$B67,$B67)>1,LEN(TRIM($B67))<>10,ISNUMBER(--MID(TRIM($B67),5,1))),\"-\",MAX(COUNT($A$9:$A66)+1))","v":"-"},null,null,null,""]
[{"$f":"IF(OR($B68=\"\",COUNTIF($B$10:$B68,$B68)>1,LEN(TRIM($B68))<>10,ISNUMBER(--MID(TRIM($B68),5,1))),\"-\",MAX(COUNT($A$9:$A67)+1))","v":"-"},null,null,null,""]
[{"$f":"IF(OR($B69=\"\",COUNTIF($B$10:$B69,$B69)>1,LEN(TRIM($B69))<>10,ISNUMBER(--MID(TRIM($B69),5,1))),\"-\",MAX(COUNT($A$9:$A68)+1))","v":"-"},null,null,null,""]
[{"$f":"IF(OR($B70=\"\",COUNTIF($B$10:$B70,$B70)>1,LEN(TRIM($B70))<>10,ISNUMBER(--MID(TRIM($B70),5,1))),\"-\",MAX(COUNT($A$9:$A69)+1))","v":"-"},null,null,null,""]
[{"$f":"IF(OR($B71=\"\",COUNTIF($B$10:$B71,$B71)>1,LEN(TRIM($B71))<>10,ISNUMBER(--MID(TRIM($B71),5,1))),\"-\",MAX(COUNT($A$9:$A70)+1))","v":"-"},null,null,null,""]
[{"$f":"IF(OR($B72=\"\",COUNTIF($B$10:$B72,$B72)>1,LEN(TRIM($B72))<>10,ISNUMBER(--MID(TRIM($B72),5,1))),\"-\",MAX(COUNT($A$9:$A71)+1))","v":"-"},null,null,null,""]
[{"$f":"IF(OR($B73=\"\",COUNTIF($B$10:$B73,$B73)>1,LEN(TRIM($B73))<>10,ISNUMBER(--MID(TRIM($B73),5,1))),\"-\",MAX(COUNT($A$9:$A72)+1))","v":"-"},null,null,null,""]
[{"$f":"IF(OR($B74=\"\",COUNTIF($B$10:$B74,$B74)>1,LEN(TRIM($B74))<>10,ISNUMBER(--MID(TRIM($B74),5,1))),\"-\",MAX(COUNT($A$9:$A73)+1))","v":"-"},null,null,null,""]
[{"$f":"IF(OR($B75=\"\",COUNTIF($B$10:$B75,$B75)>1,LEN(TRIM($B75))<>10,ISNUMBER(--MID(TRIM($B75),5,1))),\"-\",MAX(COUNT($A$9:$A74)+1))","v":"-"},null,null,null,""]
[{"$f":"IF(OR($B76=\"\",COUNTIF($B$10:$B76,$B76)>1,LEN(TRIM($B76))<>10,ISNUMBER(--MID(TRIM($B76),5,1))),\"-\",MAX(COUNT($A$9:$A75)+1))","v":"-"},null,null,null,{"$f":"IF(D76=\"\",\"\",D76-D75)","v":""}]
[{"$f":"IF(OR($B77=\"\",COUNTIF($B$10:$B77,$B77)>1,LEN(TRIM($B77))<>10,ISNUMBER(--MID(TRIM($B77),5,1))),\"-\",MAX(COUNT($A$9:$A76)+1))","v":"-"},null,null,null,""]
[{"$f":"IF(OR($B78=\"\",COUNTIF($B$10:$B78,$B78)>1,LEN(TRIM($B78))<>10,ISNUMBER(--MID(TRIM($B78),5,1))),\"-\",MAX(COUNT($A$9:$A77)+1))","v":"-"},null,null,null,""]
[{"$f":"IF(OR($B79=\"\",COUNTIF($B$10:$B79,$B79)>1,LEN(TRIM($B79))<>10,ISNUMBER(--MID(TRIM($B79),5,1))),\"-\",MAX(COUNT($A$9:$A78)+1))","v":"-"},null,null,null,""]
["รวมของขาย|ของเสีย|เหลือบนเชลฟ์",null,null,null,null,null,{"$f":"SUM(G10:G79)","v":0},0,0,{"$f":"SUM(J10:J79)","v":0},0,0,0,0,0,0,0,0,0,0,0,0,0,0,0,0,0,0,0,0,0,0,0,0,0,0,0,0,0,0,0,0,0,0,0,0,0,0,0,0,0,0,0,0,0,0,0,0,0,0,0,0,0,0,0,0,0,0,0,0,0,0,0,{"$f":"SUM(BV10:BV79)","v":0},0,0,0,0,0,0,0,0,0,0,0,0,0,0,0,0,0,0,0,0,0,0,0,0,0,0,0,0,0,0,0,0,0,0,0,0,0,0,0,0,0,0,0,0,0,0,0,0,0,0,0,0,0,0,0,0,0,0,0,0,0,{"$f":"SUM(EF10:EF79)","v":0},0,0,{"$f":"SUM(EI10:EI79)","v":0},0,0,0,0,0,{"$f":"SUM(EO10:EO79)","v":0},0,0,0,0,0,"รวมเงินเชื่อ","รวมเงินสด","ภาษี","รวมยอดขาย"]
["ของเหลือ",null,null,null,null,null,{"$f":"G80+H80-G9","v":0},null,null,{"$f":"J80+K80-J9","v":0},null,null,{"$f":"M80+N80-M9","v":0},null,null,{"$f":"P80+Q80-P9","v":0},null,null,{"$f":"S80+T80-S9","v":0},null,null,{"$f":"V80+W80-V9","v":0},null,null,{"$f":"Y80+Z80-Y9","v":0},null,null,{"$f":"AB80+AC80-AB9","v":0},null,null,{"$f":"AE80+AF80-AE9","v":0},null,null,{"$f":"AH80+AI80-AH9","v":0},null,null,{"$f":"AK80+AL80-AK9","v":0},null,null,{"$f":"AN80+AO80-AN9","v":0},null,null,{"$f":"AQ80+AR80-AQ9","v":0},null,null,{"$f":"AT80+AU80-AT9","v":0},null,null,{"$f":"AW80+AX80-AW9","v":0},null,null,{"$f":"AZ80+BA80-AZ9","v":0},null,null,{"$f":"BC80+BD80-BC9","v":0},null,null,{"$f":"BF80+BG80-BF9","v":0},null,null,{"$f":"BI80+BJ80-BI9","v":0},null,null,{"$f":"BL80+BM80-BL9","v":0},null,null,{"$f":"BO80+BP80-BO9","v":0},null,null,{"$f":"BR80+BS80-BR9","v":0},null,null,{"$f":"BU80+BV80-BU9","v":0},null,null,{"$f":"BX80+BY80-BX9","v":0},null,null,{"$f":"CA80+CB80-CA9","v":0},null,null,{"$f":"CD80+CE80-CD9","v":0},null,null,{"$f":"CG80+CH80-CG9","v":0},null,null,{"$f":"CJ80+CK80-CJ9","v":0},null,null,{"$f":"CM80+CN80-CM9","v":0},null,null,{"$f":"CP80+CQ80-CP9","v":0},null,null,{"$f":"CS80+CT80-CS9","v":0},null,null,{"$f":"CV80+CW80-CV9","v":0},null,null,{"$f":"CY80+CZ80-CY9","v":0},null,null,{"$f":"DB80+DC80-DB9","v":0},null,null,{"$f":"DE80+DF80-DE9","v":0},null,null,{"$f":"DH80+DI80-DH9","v":0},null,null,{"$f":"DK80+DL80-DK9","v":0},null,null,{"$f":"DN80+DO80-DN9","v":0},null,null,{"$f":"DQ80+DR80-DQ9","v":0},null,null,{"$f":"DT80+DU80-DT9","v":0},null,null,{"$f":"DW80+DX80-DW9","v":0},null,null,{"$f":"DZ80+EA80-DZ9","v":0},null,null,{"$f":"EC80+ED80-EC9","v":0},null,null,{"$f":"EF80+EG80-EF9","v":0},null,null,{"$f":"EI80+EJ80-EI9","v":0},null,null,{"$f":"EL80+EM80-EL9","v":0},null,null,{"$f":"EO80+EP80-EO9","v":0},null,null,{"$f":"ER80+ES80-ER9","v":0},null,null,{"$f":"SUM(EU10:EU79)","v":0},{"$f":"SUM(EV10:EV79)","v":0},{"$f":"SUM(EW10:EW79)","v":0},{"$f":"SUM(EX10:EX79)","v":0}]
["เฉลี่ย",null,null,"เหลือ/เสีย(จริง)",null,null,{"$f":"INDIRECT(\"F\"&ROW($G$87)+ROUNDUP(COLUMNS($G:G)/3,0))","v":0},{"$f":"INDIRECT(\"G\"&ROW($G$87)+ROUNDUP(COLUMNS($G:H)/3,0))","v":0},null,{"$f":"INDIRECT(\"F\"&ROW($G$87)+ROUNDUP(COLUMNS($G:J)/3,0))","v":0},{"$f":"INDIRECT(\"G\"&ROW($G$87)+ROUNDUP(COLUMNS($G:K)/3,0))","v":0},null,{"$f":"INDIRECT(\"F\"&ROW($G$87)+ROUNDUP(COLUMNS($G:M)/3,0))","v":0},{"$f":"INDIRECT(\"G\"&ROW($G$87)+ROUNDUP(COLUMNS($G:N)/3,0))","v":0},null,{"$f":"INDIRECT(\"F\"&ROW($G$87)+ROUNDUP(COLUMNS($G:P)/3,0))","v":0},{"$f":"INDIRECT(\"G\"&ROW($G$87)+ROUNDUP(COLUMNS($G:Q)/3,0))","v":0},null,{"$f":"INDIRECT(\"F\"&ROW($G$87)+ROUNDUP(COLUMNS($G:S)/3,0))","v":0},{"$f":"INDIRECT(\"G\"&ROW($G$87)+ROUNDUP(COLUMNS($G:T)/3,0))","v":0},null,{"$f":"INDIRECT(\"F\"&ROW($G$87)+ROUNDUP(COLUMNS($G:V)/3,0))","v":0},{"$f":"INDIRECT(\"G\"&ROW($G$87)+ROUNDUP(COLUMNS($G:W)/3,0))","v":0},null,{"$f":"INDIRECT(\"F\"&ROW($G$87)+ROUNDUP(COLUMNS($G:Y)/3,0))","v":0},{"$f":"INDIRECT(\"G\"&ROW($G$87)+ROUNDUP(COLUMNS($G:Z)/3,0))","v":0},null,{"$f":"INDIRECT(\"F\"&ROW($G$87)+ROUNDUP(COLUMNS($G:AB)/3,0))","v":0},{"$f":"INDIRECT(\"G\"&ROW($G$87)+ROUNDUP(COLUMNS($G:AC)/3,0))","v":0},null,{"$f":"INDIRECT(\"F\"&ROW($G$87)+ROUNDUP(COLUMNS($G:AE)/3,0))","v":0},{"$f":"INDIRECT(\"G\"&ROW($G$87)+ROUNDUP(COLUMNS($G:AF)/3,0))","v":0},null,{"$f":"INDIRECT(\"F\"&ROW($G$87)+ROUNDUP(COLUMNS($G:AH)/3,0))","v":0},{"$f":"INDIRECT(\"G\"&ROW($G$87)+ROUNDUP(COLUMNS($G:AI)/3,0))","v":0},null,{"$f":"INDIRECT(\"F\"&ROW($G$87)+ROUNDUP(COLUMNS($G:AK)/3,0))","v":0},{"$f":"INDIRECT(\"G\"&ROW($G$87)+ROUNDUP(COLUMNS($G:AL)/3,0))","v":0},null,{"$f":"INDIRECT(\"F\"&ROW($G$87)+ROUNDUP(COLUMNS($G:AN)/3,0))","v":0},{"$f":"INDIRECT(\"G\"&ROW($G$87)+ROUNDUP(COLUMNS($G:AO)/3,0))","v":0},null,{"$f":"INDIRECT(\"F\"&ROW($G$87)+ROUNDUP(COLUMNS($G:AQ)/3,0))","v":0},{"$f":"INDIRECT(\"G\"&ROW($G$87)+ROUNDUP(COLUMNS($G:AR)/3,0))","v":0},null,{"$f":"INDIRECT(\"F\"&ROW($G$87)+ROUNDUP(COLUMNS($G:AT)/3,0))","v":0},{"$f":"INDIRECT(\"G\"&ROW($G$87)+ROUNDUP(COLUMNS($G:AU)/3,0))","v":0},null,{"$f":"INDIRECT(\"F\"&ROW($G$87)+ROUNDUP(COLUMNS($G:AW)/3,0))","v":0},{"$f":"INDIRECT(\"G\"&ROW($G$87)+ROUNDUP(COLUMNS($G:AX)/3,0))","v":0},null,{"$f":"INDIRECT(\"F\"&ROW($G$87)+ROUNDUP(COLUMNS($G:AZ)/3,0))","v":0},{"$f":"INDIRECT(\"G\"&ROW($G$87)+ROUNDUP(COLUMNS($G:BA)/3,0))","v":0},null,{"$f":"INDIRECT(\"F\"&ROW($G$87)+ROUNDUP(COLUMNS($G:BC)/3,0))","v":0},{"$f":"INDIRECT(\"G\"&ROW($G$87)+ROUNDUP(COLUMNS($G:BD)/3,0))","v":0},null,{"$f":"INDIRECT(\"F\"&ROW($G$87)+ROUNDUP(COLUMNS($G:BF)/3,0))","v":0},{"$f":"INDIRECT(\"G\"&ROW($G$87)+ROUNDUP(COLUMNS($G:BG)/3,0))","v":0},null,{"$f":"INDIRECT(\"F\"&ROW($G$87)+ROUNDUP(COLUMNS($G:BI)/3,0))","v":0},{"$f":"INDIRECT(\"G\"&ROW($G$87)+ROUNDUP(COLUMNS($G:BJ)/3,0))","v":0},null,{"$f":"INDIRECT(\"F\"&ROW($G$87)+ROUNDUP(COLUMNS($G:BL)/3,0))","v":0},{"$f":"INDIRECT(\"G\"&ROW($G$87)+ROUNDUP(COLUMNS($G:BM)/3,0))","v":0},null,{"$f":"INDIRECT(\"F\"&ROW($G$87)+ROUNDUP(COLUMNS($G:BO)/3,0))","v":0},{"$f":"INDIRECT(\"G\"&ROW($G$87)+ROUNDUP(COLUMNS($G:BP)/3,0))","v":0},null,{"$f":"INDIRECT(\"F\"&ROW($G$87)+ROUNDUP(COLUMNS($G:BR)/3,0))","v":0},{"$f":"INDIRECT(\"G\"&ROW($G$87)+ROUNDUP(COLUMNS($G:BS)/3,0))","v":0},null,{"$f":"INDIRECT(\"F\"&ROW($G$87)+ROUNDUP(COLUMNS($G:BU)/3,0))","v":0},{"$f":"INDIRECT(\"G\"&ROW($G$87)+ROUNDUP(COLUMNS($G:BV)/3,0))","v":0},null,{"$f":"INDIRECT(\"F\"&ROW($G$87)+ROUNDUP(COLUMNS($G:BX)/3,0))","v":0},{"$f":"INDIRECT(\"G\"&ROW($G$87)+ROUNDUP(COLUMNS($G:BY)/3,0))","v":0},null,{"$f":"INDIRECT(\"F\"&ROW($G$87)+ROUNDUP(COLUMNS($G:CA)/3,0))","v":0},{"$f":"INDIRECT(\"G\"&ROW($G$87)+ROUNDUP(COLUMNS($G:CB)/3,0))","v":0},null,{"$f":"INDIRECT(\"F\"&ROW($G$87)+ROUNDUP(COLUMNS($G:CD)/3,0))","v":0},{"$f":"INDIRECT(\"G\"&ROW($G$87)+ROUNDUP(COLUMNS($G:CE)/3,0))","v":0},null,{"$f":"INDIRECT(\"F\"&ROW($G$87)+ROUNDUP(COLUMNS($G:CG)/3,0))","v":0},{"$f":"INDIRECT(\"G\"&ROW($G$87)+ROUNDUP(COLUMNS($G:CH)/3,0))","v":0},null,{"$f":"INDIRECT(\"F\"&ROW($G$87)+ROUNDUP(COLUMNS($G:CJ)/3,0))","v":0},{"$f":"INDIRECT(\"G\"&ROW($G$87)+ROUNDUP(COLUMNS($G:CK)/3,0))","v":0},null,{"$f":"INDIRECT(\"F\"&ROW($G$87)+ROUNDUP(COLUMNS($G:CM)/3,0))","v":0},{"$f":"INDIRECT(\"G\"&ROW($G$87)+ROUNDUP(COLUMNS($G:CN)/3,0))","v":0},null,{"$f":"INDIRECT(\"F\"&ROW($G$87)+ROUNDUP(COLUMNS($G:CP)/3,0))","v":0},{"$f":"INDIRECT(\"G\"&ROW($G$87)+ROUNDUP(COLUMNS($G:CQ)/3,0))","v":0},null,{"$f":"INDIRECT(\"F\"&ROW($G$87)+ROUNDUP(COLUMNS($G:CS)/3,0))","v":0},{"$f":"INDIRECT(\"G\"&ROW($G$87)+ROUNDUP(COLUMNS($G:CT)/3,0))","v":0},null,{"$f":"INDIRECT(\"F\"&ROW($G$87)+ROUNDUP(COLUMNS($G:CV)/3,0))","v":0},{"$f":"INDIRECT(\"G\"&ROW($G$87)+ROUNDUP(COLUMNS($G:CW)/3,0))","v":0},null,{"$f":"INDIRECT(\"F\"&ROW($G$87)+ROUNDUP(COLUMNS($G:CY)/3,0))","v":0},{"$f":"INDIRECT(\"G\"&ROW($G$87)+ROUNDUP(COLUMNS($G:CZ)/3,0))","v":0},null,{"$f":"INDIRECT(\"F\"&ROW($G$87)+ROUNDUP(COLUMNS($G:DB)/3,0))","v":0},{"$f":"INDIRECT(\"G\"&ROW($G$87)+ROUNDUP(COLUMNS($G:DC)/3,0))","v":0},null,{"$f":"INDIRECT(\"F\"&ROW($G$87)+ROUNDUP(COLUMNS($G:DE)/3,0))","v":0},{"$f":"INDIRECT(\"G\"&ROW($G$87)+ROUNDUP(COLUMNS($G:DF)/3,0))","v":0},null,{"$f":"INDIRECT(\"F\"&ROW($G$87)+ROUNDUP(COLUMNS($G:DH)/3,0))","v":0},{"$f":"INDIRECT(\"G\"&ROW($G$87)+ROUNDUP(COLUMNS($G:DI)/3,0))","v":0},null,{"$f":"INDIRECT(\"F\"&ROW($G$87)+ROUNDUP(COLUMNS($G:DK)/3,0))","v":0},{"$f":"INDIRECT(\"G\"&ROW($G$87)+ROUNDUP(COLUMNS($G:DL)/3,0))","v":0},null,{"$f":"INDIRECT(\"F\"&ROW($G$87)+ROUNDUP(COLUMNS($G:DN)/3,0))","v":0},{"$f":"INDIRECT(\"G\"&ROW($G$87)+ROUNDUP(COLUMNS($G:DO)/3,0))","v":0},null,{"$f":"INDIRECT(\"F\"&ROW($G$87)+ROUNDUP(COLUMNS($G:DQ)/3,0))","v":0},{"$f":"INDIRECT(\"G\"&ROW($G$87)+ROUNDUP(COLUMNS($G:DR)/3,0))","v":0},null,{"$f":"INDIRECT(\"F\"&ROW($G$87)+ROUNDUP(COLUMNS($G:DT)/3,0))","v":0},{"$f":"INDIRECT(\"G\"&ROW($G$87)+ROUNDUP(COLUMNS($G:DU)/3,0))","v":0},null,{"$f":"INDIRECT(\"F\"&ROW($G$87)+ROUNDUP(COLUMNS($G:DW)/3,0))","v":0},{"$f":"INDIRECT(\"G\"&ROW($G$87)+ROUNDUP(COLUMNS($G:DX)/3,0))","v":0},null,{"$f":"INDIRECT(\"F\"&ROW($G$87)+ROUNDUP(COLUMNS($G:DZ)/3,0))","v":0},{"$f":"INDIRECT(\"G\"&ROW($G$87)+ROUNDUP(COLUMNS($G:EA)/3,0))","v":0},null,{"$f":"INDIRECT(\"F\"&ROW($G$87)+ROUNDUP(COLUMNS($G:EC)/3,0))","v":0},{"$f":"INDIRECT(\"G\"&ROW($G$87)+ROUNDUP(COLUMNS($G:ED)/3,0))","v":0},null,{"$f":"INDIRECT(\"F\"&ROW($G$87)+ROUNDUP(COLUMNS($G:EF)/3,0))","v":0},{"$f":"INDIRECT(\"G\"&ROW($G$87)+ROUNDUP(COLUMNS($G:EG)/3,0))","v":0},null,{"$f":"INDIRECT(\"F\"&ROW($G$87)+ROUNDUP(COLUMNS($G:EI)/3,0))","v":0},{"$f":"INDIRECT(\"G\"&ROW($G$87)+ROUNDUP(COLUMNS($G:EJ)/3,0))","v":0},null,{"$f":"INDIRECT(\"F\"&ROW($G$87)+ROUNDUP(COLUMNS($G:EL)/3,0))","v":0},{"$f":"INDIRECT(\"G\"&ROW($G$87)+ROUNDUP(COLUMNS($G:EM)/3,0))","v":0},null,{"$f":"INDIRECT(\"F\"&ROW($G$87)+ROUNDUP(COLUMNS($G:EO)/3,0))","v":0},{"$f":"INDIRECT(\"G\"&ROW($G$87)+ROUNDUP(COLUMNS($G:EP)/3,0))","v":0},null,{"$f":"INDIRECT(\"F\"&ROW($G$87)+ROUNDUP(COLUMNS($G:ER)/3,0))","v":0},{"$f":"INDIRECT(\"G\"&ROW($G$87)+ROUNDUP(COLUMNS($G:ES)/3,0))","v":0},null,{"$f":"EU81+EV81","v":0}]
["เวลากลับถึงสำนักงานเช็คของเสีย",null,null,{"$f":"D139","v":"00:00:00"},null,"ผลต่าง",{"$f":"G82+H82+G80-G9","v":0},null,null,{"$f":"J82+K82+J80-J9","v":0},null,null,{"$f":"M82+N82+M80-M9","v":0},null,null,{"$f":"P82+Q82+P80-P9","v":0},null,null,{"$f":"S82+T82+S80-S9","v":0},null,null,{"$f":"V82+W82+V80-V9","v":0},null,null,{"$f":"Y82+Z82+Y80-Y9","v":0},null,null,{"$f":"AB82+AC82+AB80-AB9","v":0},null,null,{"$f":"AE82+AF82+AE80-AE9","v":0},null,null,{"$f":"AH82+AI82+AH80-AH9","v":0},null,null,{"$f":"AK82+AL82+AK80-AK9","v":0},null,null,{"$f":"AN82+AO82+AN80-AN9","v":0},null,null,{"$f":"AQ82+AR82+AQ80-AQ9","v":0},null,null,{"$f":"AT82+AU82+AT80-AT9","v":0},null,null,{"$f":"AW82+AX82+AW80-AW9","v":0},null,null,{"$f":"AZ82+BA82+AZ80-AZ9","v":0},null,null,{"$f":"BC82+BD82+BC80-BC9","v":0},null,null,{"$f":"BF82+BG82+BF80-BF9","v":0},null,null,{"$f":"BI82+BJ82+BI80-BI9","v":0},null,null,{"$f":"BL82+BM82+BL80-BL9","v":0},null,null,{"$f":"BO82+BP82+BO80-BO9","v":0},null,null,{"$f":"BR82+BS82+BR80-BR9","v":0},null,null,{"$f":"BU82+BV82+BU80-BU9","v":0},null,null,{"$f":"BX82+BY82+BX80-BX9","v":0},null,null,{"$f":"CA82+CB82+CA80-CA9","v":0},null,null,{"$f":"CD82+CE82+CD80-CD9","v":0},null,null,{"$f":"CG82+CH82+CG80-CG9","v":0},null,null,{"$f":"CJ82+CK82+CJ80-CJ9","v":0},null,null,{"$f":"CM82+CN82+CM80-CM9","v":0},null,null,{"$f":"CP82+CQ82+CP80-CP9","v":0},null,null,{"$f":"CS82+CT82+CS80-CS9","v":0},null,null,{"$f":"CV82+CW82+CV80-CV9","v":0},null,null,{"$f":"CY82+CZ82+CY80-CY9","v":0},null,null,{"$f":"DB82+DC82+DB80-DB9","v":0},null,null,{"$f":"DE82+DF82+DE80-DE9","v":0},null,null,{"$f":"DH82+DI82+DH80-DH9","v":0},null,null,{"$f":"DK82+DL82+DK80-DK9","v":0},null,null,{"$f":"DN82+DO82+DN80-DN9","v":0},null,null,{"$f":"DQ82+DR82+DQ80-DQ9","v":0},null,null,{"$f":"DT82+DU82+DT80-DT9","v":0},null,null,{"$f":"DW82+DX82+DW80-DW9","v":0},null,null,{"$f":"DZ82+EA82+DZ80-DZ9","v":0},null,null,{"$f":"EC82+ED82+EC80-EC9","v":0},null,null,{"$f":"EF82+EG82+EF80-EF9","v":0},null,null,{"$f":"EI82+EJ82+EI80-EI9","v":0},null,null,{"$f":"EL82+EM82+EL80-EL9","v":0},null,null,{"$f":"EO82+EP82+EO80-EO9","v":0},null,null,{"$f":"ER82+ES82+ER80-ER9","v":0}]
["เป็นเงิน",null,null,null,null,null,{"$f":"G8*G83","v":0},null,null,{"$f":"J8*J83","v":0},null,null,{"$f":"M8*M83","v":0},null,null,{"$f":"P8*P83","v":0},null,null,{"$f":"S8*S83","v":0},null,null,{"$f":"V8*V83","v":0},null,null,{"$f":"Y8*Y83","v":0},null,null,{"$f":"AB8*AB83","v":0},null,null,{"$f":"AE8*AE83","v":0},null,null,{"$f":"AH8*AH83","v":0},null,null,{"$f":"AK8*AK83","v":0},null,null,{"$f":"AN8*AN83","v":0},null,null,{"$f":"AQ8*AQ83","v":0},null,null,{"$f":"AT8*AT83","v":0},null,null,{"$f":"AW8*AW83","v":0},null,null,{"$f":"AZ8*AZ83","v":0},null,null,{"$f":"BC8*BC83","v":0},null,null,{"$f":"BF8*BF83","v":0},null,null,{"$f":"BI8*BI83","v":0},null,null,{"$f":"BL8*BL83","v":0},null,null,{"$f":"BO8*BO83","v":0},null,null,{"$f":"BR8*BR83","v":0},null,null,{"$f":"BU8*BU83","v":0},null,null,{"$f":"BX8*BX83","v":0},null,null,{"$f":"CA8*CA83","v":0},null,null,{"$f":"CD8*CD83","v":0},null,null,{"$f":"CG8*CG83","v":0},null,null,{"$f":"CJ8*CJ83","v":0},null,null,{"$f":"CM8*CM83","v":0},null,null,{"$f":"CP8*CP83","v":0},null,null,{"$f":"CS8*CS83","v":0},null,null,{"$f":"CV8*CV83","v":0},null,null,{"$f":"CY8*CY83","v":0},null,null,{"$f":"DB8*DB83","v":0},null,null,{"$f":"DE8*DE83","v":0},null,null,{"$f":"DH8*DH83","v":0},null,null,{"$f":"DK8*DK83","v":0},null,null,{"$f":"DN8*DN83","v":0},null,null,{"$f":"DQ8*DQ83","v":0},null,null,{"$f":"DT8*DT83","v":0},null,null,{"$f":"DW8*DW83","v":0},null,null,0,null,null,{"$f":"EC8*EC83","v":0},null,null,{"$f":"EF8*EF83","v":0},null,null,{"$f":"EI8*EI83","v":0},null,null,{"$f":"EL8*EL83","v":0},null,null,{"$f":"EO8*EO83","v":0},null,null,{"$f":"ER8*ER83","v":0},null,null,{"$f":"$AP$98","v":0}]
[null,null,null,"ผู้จัดทำ……………………………………………………………………",null,null,null,null,null,null,null,null,null,null,null,null,null,null,null,null,null,null,null,"ผู้ตรวจ(ผจก.)………………………………………………………………………………."]
[null,null,"ใบจ่ายสินค้า",null,null,null,null,null,null,null,null,null,null,null,null,null,null,{"$f":"IF(ISODD(COLUMN()),MAX($F$86:Q$86)+1,\"\")","v":""}]
["ราคา","ลำดับ","รายการ","ยกมา","เบิก","เหลือ","เสีย","โอนเข้า","โอนออก","ชำรุด","รวม",null,"ขาย",null,"ขาด/เกิน",null,"บาท",null,null,null,"ขายได้",null,"ควรเบิก",null,"หมายเหตุ",null,null,null,"เสีย PDA","เสียจริง","เหลือ PDA","ผลต่าง","เหลือลูกค้า","หมายเหตุ",null,null,null,null,"Price","Quantity","Baht","Deduct"]
[{"$f":"IF(B88=\"\",0,INDEX(Price_List,ROWS($88:88)))","v":20},{"$f":"IF($C88=\"\",\"\",COUNTA($C$88:$C88))","v":1},{"$f":"IF(INDEX(INDIRECT(\"Product_List\"),ROWS($88:88))=\"\",\"\",INDEX(INDIRECT(\"Product_List\"),ROWS($88:88)))","v":"01-ขนมปังหมูหยองน้ำสลัด"},{"$f":"ยอดยกมา","v":0},null,null,null,null,null,null,{"$f":"D88+E88+J88-I88+H88","v":0},null,{"$f":"INDIRECT(ADDRESS(ROW(A$80),ROW()-ROW(A$80)+(ROWS($88:88)-1)*2-1,4))","v":0},null,{"$f":"F88+G88+M88+J88-K88","v":0},null,{"$f":"O88*A88","v":0},null,null,null,{"$f":"D88+E88-F88-G88","v":0},null,{"$f":"U88*6%+U88","v":0},null,null,null,null,null,{"$f":"INDIRECT(ADDRESS(ROW(A$80),ROW()-ROW(A$80)+(ROWS($88:88)-1)*2,4))","v":0},{"$f":"$G88","v":0},null,{"$f":"$F88-$AE88","v":0},{"$f":"INDIRECT(ADDRESS(ROW(A$80),ROW()-ROW(A$80)+(ROWS($88:88)-1)*2+1,4))","v":0},null,null,null,null,null,10,{"$f":"SUMPRODUCT(($A$88:$A$135=$AM88)*(($F$88:$F$135)+($G$88:$G$135)+($M$88:$M$135)+($J$88:$J$135)-($K$88:$K$135)))","v":0},{"$f":"AM88*AN88","v":0},{"$f":"IF(AO88<0,AO88,0)","v":0}]
[{"$f":"IF(B89=\"\",0,INDEX(Price_List,ROWS($88:89)))","v":20},{"$f":"IF($C89=\"\",\"\",COUNTA($C$88:$C89))","v":2},{"$f":"IF(INDEX(INDIRECT(\"Product_List\"),ROWS($88:89))=\"\",\"\",INDEX(INDIRECT(\"Product_List\"),ROWS($88:89)))","v":"02-ขนมปังหมูหยองน้ำพริกเผา"},{"$f":"ยอดยกมา","v":0},null,null,null,null,null,null,{"$f":"D89+E89+J89-I89+H89","v":0},null,{"$f":"INDIRECT(ADDRESS(ROW(A$80),ROW()-ROW(A$80)+(ROWS($88:89)-1)*2-1,4))","v":0},null,{"$f":"F89+G89+M89+J89-K89","v":0},null,{"$f":"O89*A89","v":0},null,null,null,{"$f":"D89+E89-F89-G89","v":0},null,{"$f":"U89*6%+U89","v":0},null,null,null,null,null,{"$f":"INDIRECT(ADDRESS(ROW(A$80),ROW()-ROW(A$80)+(ROWS($88:89)-1)*2,4))","v":0},{"$f":"$G89","v":0},null,{"$f":"$F89-$AE89","v":0},{"$f":"INDIRECT(ADDRESS(ROW(A$80),ROW()-ROW(A$80)+(ROWS($88:89)-1)*2+1,4))","v":0},null,null,null,null,null,12,0,{"$f":"AM89*AN89","v":0},{"$f":"IF(AO89<0,AO89,0)","v":0}]
[{"$f":"IF(B90=\"\",0,INDEX(Price_List,ROWS($88:90)))","v":20},{"$f":"IF($C90=\"\",\"\",COUNTA($C$88:$C90))","v":3},{"$f":"IF(INDEX(INDIRECT(\"Product_List\"),ROWS($88:90))=\"\",\"\",INDEX(INDIRECT(\"Product_List\"),ROWS($88:90)))","v":"03-ขนมปังไก่หยองน้ำสลัด"},{"$f":"ยอดยกมา","v":0},null,null,null,null,null,null,0,null,{"$f":"INDIRECT(ADDRESS(ROW(A$80),ROW()-ROW(A$80)+(ROWS($88:90)-1)*2-1,4))","v":0},null,0,null,0,null,null,null,0,null,0,null,null,null,null,null,{"$f":"INDIRECT(ADDRESS(ROW(A$80),ROW()-ROW(A$80)+(ROWS($88:90)-1)*2,4))","v":0},0,null,0,{"$f":"INDIRECT(ADDRESS(ROW(A$80),ROW()-ROW(A$80)+(ROWS($88:90)-1)*2+1,4))","v":0},null,null,null,null,null,13,0,{"$f":"AM90*AN90","v":0},{"$f":"IF(AO90<0,AO90,0)","v":0}]
[{"$f":"IF(B91=\"\",0,INDEX(Price_List,ROWS($88:91)))","v":15},{"$f":"IF($C91=\"\",\"\",COUNTA($C$88:$C91))","v":4},{"$f":"IF(INDEX(INDIRECT(\"Product_List\"),ROWS($88:91))=\"\",\"\",INDEX(INDIRECT(\"Product_List\"),ROWS($88:91)))","v":"04-ขนมปังไส้ครีมสลัด"},{"$f":"ยอดยกมา","v":0},null,null,null,null,null,null,0,null,{"$f":"INDIRECT(ADDRESS(ROW(A$80),ROW()-ROW(A$80)+(ROWS($88:91)-1)*2-1,4))","v":0},null,{"$f":"F91+G91+M91+J91-K91","v":0},null,0,null,null,null,0,null,0,null,null,null,null,null,{"$f":"INDIRECT(ADDRESS(ROW(A$80),ROW()-ROW(A$80)+(ROWS($88:91)-1)*2,4))","v":0},0,null,0,{"$f":"INDIRECT(ADDRESS(ROW(A$80),ROW()-ROW(A$80)+(ROWS($88:91)-1)*2+1,4))","v":0},null,null,null,null,null,15,0,0,0]
[{"$f":"IF(B92=\"\",0,INDEX(Price_List,ROWS($88:92)))","v":15},{"$f":"IF($C92=\"\",\"\",COUNTA($C$88:$C92))","v":5},{"$f":"IF(INDEX(INDIRECT(\"Product_List\"),ROWS($88:92))=\"\",\"\",INDEX(INDIRECT(\"Product_List\"),ROWS($88:92)))","v":"05-ขนมปังเนยสด"},{"$f":"ยอดยกมา","v":0},null,null,null,null,null,null,0,null,{"$f":"INDIRECT(ADDRESS(ROW(A$80),ROW()-ROW(A$80)+(ROWS($88:92)-1)*2-1,4))","v":0},null,0,null,0,null,null,null,0,null,0,null,null,null,null,null,{"$f":"INDIRECT(ADDRESS(ROW(A$80),ROW()-ROW(A$80)+(ROWS($88:92)-1)*2,4))","v":0},0,null,0,{"$f":"INDIRECT(ADDRESS(ROW(A$80),ROW()-ROW(A$80)+(ROWS($88:92)-1)*2+1,4))","v":0},null,null,null,null,null,16,0,0,0]
[{"$f":"IF(B93=\"\",0,INDEX(Price_List,ROWS($88:93)))","v":10},{"$f":"IF($C93=\"\",\"\",COUNTA($C$88:$C93))","v":6},{"$f":"IF(INDEX(INDIRECT(\"Product_List\"),ROWS($88:93))=\"\",\"\",INDEX(INDIRECT(\"Product_List\"),ROWS($88:93)))","v":"06-ขนมปังไส้สังขยาเล็ก"},{"$f":"ยอดยกมา","v":0},null,null,null,null,null,null,0,null,{"$f":"INDIRECT(ADDRESS(ROW(A$80),ROW()-ROW(A$80)+(ROWS($88:93)-1)*2-1,4))","v":0},null,0,null,0,null,null,null,0,null,0,null,null,null,null,null,{"$f":"INDIRECT(ADDRESS(ROW(A$80),ROW()-ROW(A$80)+(ROWS($88:93)-1)*2,4))","v":0},0,null,0,{"$f":"INDIRECT(ADDRESS(ROW(A$80),ROW()-ROW(A$80)+(ROWS($88:93)-1)*2+1,4))","v":0},null,null,null,null,null,18,0,0,0]
[{"$f":"IF(B94=\"\",0,INDEX(Price_List,ROWS($88:94)))","v":10},{"$f":"IF($C94=\"\",\"\",COUNTA($C$88:$C94))","v":7},{"$f":"IF(INDEX(INDIRECT(\"Product_List\"),ROWS($88:94))=\"\",\"\",INDEX(INDIRECT(\"Product_List\"),ROWS($88:94)))","v":"07-ขนมปังไส้เผือก"},{"$f":"ยอดยกมา","v":0},null,null,null,null,null,null,0,null,{"$f":"INDIRECT(ADDRESS(ROW(A$80),ROW()-ROW(A$80)+(ROWS($88:94)-1)*2-1,4))","v":0},null,0,null,0,null,null,null,0,null,0,null,null,null,null,null,{"$f":"INDIRECT(ADDRESS(ROW(A$80),ROW()-ROW(A$80)+(ROWS($88:94)-1)*2,4))","v":0},0,null,0,{"$f":"INDIRECT(ADDRESS(ROW(A$80),ROW()-ROW(A$80)+(ROWS($88:94)-1)*2+1,4))","v":0},null,null,null,null,null,20,0,0,0]
[{"$f":"IF(B95=\"\",0,INDEX(Price_List,ROWS($88:95)))","v":10},{"$f":"IF($C95=\"\",\"\",COUNTA($C$88:$C95))","v":8},{"$f":"IF(INDEX(INDIRECT(\"Product_List\"),ROWS($88:95))=\"\",\"\",INDEX(INDIRECT(\"Product_List\"),ROWS($88:95)))","v":"08-ขนมปังไส้ถั่วแดง"},{"$f":"ยอดยกมา","v":0},null,null,null,null,null,null,0,null,{"$f":"INDIRECT(ADDRESS(ROW(A$80),ROW()-ROW(A$80)+(ROWS($88:95)-1)*2-1,4))","v":0},null,0,null,0,null,null,null,0,null,0,null,null,null,null,null,{"$f":"INDIRECT(ADDRESS(ROW(A$80),ROW()-ROW(A$80)+(ROWS($88:95)-1)*2,4))","v":0},0,null,0,{"$f":"INDIRECT(ADDRESS(ROW(A$80),ROW()-ROW(A$80)+(ROWS($88:95)-1)*2+1,4))","v":0},null,null,null,null,null,22,0,0,0]
[{"$f":"IF(B96=\"\",0,INDEX(Price_List,ROWS($88:96)))","v":10},{"$f":"IF($C96=\"\",\"\",COUNTA($C$88:$C96))","v":9},{"$f":"IF(INDEX(INDIRECT(\"Product_List\"),ROWS($88:96))=\"\",\"\",INDEX(INDIRECT(\"Product_List\"),ROWS($88:96)))","v":"09-ขนมปังไส้ถั่วดำ"},{"$f":"ยอดยกมา","v":0},null,null,null,null,null,null,0,null,{"$f":"INDIRECT(ADDRESS(ROW(A$80),ROW()-ROW(A$80)+(ROWS($88:96)-1)*2-1,4))","v":0},null,0,null,0,null,null,null,0,null,0,null,null,null,null,null,{"$f":"INDIRECT(ADDRESS(ROW(A$80),ROW()-ROW(A$80)+(ROWS($88:96)-1)*2,4))","v":0},0,null,0,{"$f":"INDIRECT(ADDRESS(ROW(A$80),ROW()-ROW(A$80)+(ROWS($88:96)-1)*2+1,4))","v":0},null,null,null,null,null,25,0,0,0]
[{"$f":"IF(B97=\"\",0,INDEX(Price_List,ROWS($88:97)))","v":10},{"$f":"IF($C97=\"\",\"\",COUNTA($C$88:$C97))","v":10},{"$f":"IF(INDEX(INDIRECT(\"Product_List\"),ROWS($88:97))=\"\",\"\",INDEX(INDIRECT(\"Product_List\"),ROWS($88:97)))","v":"10-ขนมปังไส้มันม่วง"},{"$f":"ยอดยกมา","v":0},null,null,null,null,null,null,0,null,{"$f":"INDIRECT(ADDRESS(ROW(A$80),ROW()-ROW(A$80)+(ROWS($88:97)-1)*2-1,4))","v":0},null,0,null,0,null,null,null,0,null,0,null,null,null,null,null,{"$f":"INDIRECT(ADDRESS(ROW(A$80),ROW()-ROW(A$80)+(ROWS($88:97)-1)*2,4))","v":0},0,null,0,{"$f":"INDIRECT(ADDRESS(ROW(A$80),ROW()-ROW(A$80)+(ROWS($88:97)-1)*2+1,4))","v":0},null,null,null,null,null,42,0,0,0]
[{"$f":"IF(B98=\"\",0,INDEX(Price_List,ROWS($88:98)))","v":15},{"$f":"IF($C98=\"\",\"\",COUNTA($C$88:$C98))","v":11},{"$f":"IF(INDEX(INDIRECT(\"Product_List\"),ROWS($88:98))=\"\",\"\",INDEX(INDIRECT(\"Product_List\"),ROWS($88:98)))","v":"11-เค้กกล้วยหอม"},{"$f":"ยอดยกมา","v":0},null,null,null,null,null,null,0,null,{"$f":"INDIRECT(ADDRESS(ROW(A$80),ROW()-ROW(A$80)+(ROWS($88:98)-1)*2-1,4))","v":0},null,0,null,0,null,null,null,0,null,0,null,null,null,null,null,{"$f":"INDIRECT(ADDRESS(ROW(A$80),ROW()-ROW(A$80)+(ROWS($88:98)-1)*2,4))","v":0},0,null,0,{"$f":"INDIRECT(ADDRESS(ROW(A$80),ROW()-ROW(A$80)+(ROWS($88:98)-1)*2+1,4))","v":0},null,null,null,null,null,"Total Deduct",null,null,{"$f":"SUM($AP$88:$AP$97)","v":0}]
[{"$f":"IF(B99=\"\",0,INDEX(Price_List,ROWS($88:99)))","v":15},{"$f":"IF($C99=\"\",\"\",COUNTA($C$88:$C99))","v":12},{"$f":"IF(INDEX(INDIRECT(\"Product_List\"),ROWS($88:99))=\"\",\"\",INDEX(INDIRECT(\"Product_List\"),ROWS($88:99)))","v":"12-เค้กบัตเตอร์"},{"$f":"ยอดยกมา","v":0},null,null,null,null,null,null,0,null,{"$f":"INDIRECT(ADDRESS(ROW(A$80),ROW()-ROW(A$80)+(ROWS($88:99)-1)*2-1,4))","v":0},null,0,null,0,null,null,null,0,null,0,null,null,null,null,null,{"$f":"INDIRECT(ADDRESS(ROW(A$80),ROW()-ROW(A$80)+(ROWS($88:99)-1)*2,4))","v":0},0,null,0,{"$f":"INDIRECT(ADDRESS(ROW(A$80),ROW()-ROW(A$80)+(ROWS($88:99)-1)*2+1,4))","v":0}]
[{"$f":"IF(B100=\"\",0,INDEX(Price_List,ROWS($88:100)))","v":15},{"$f":"IF($C100=\"\",\"\",COUNTA($C$88:$C100))","v":13},{"$f":"IF(INDEX(INDIRECT(\"Product_List\"),ROWS($88:100))=\"\",\"\",INDEX(INDIRECT(\"Product_List\"),ROWS($88:100)))","v":"13-ขนมปังโรลถั่วแดง"},{"$f":"ยอดยกมา","v":0},null,null,null,null,null,null,0,null,{"$f":"INDIRECT(ADDRESS(ROW(A$80),ROW()-ROW(A$80)+(ROWS($88:100)-1)*2-1,4))","v":0},null,0,null,0,null,null,null,0,null,0,null,null,null,null,null,{"$f":"INDIRECT(ADDRESS(ROW(A$80),ROW()-ROW(A$80)+(ROWS($88:100)-1)*2,4))","v":0},0,null,0,{"$f":"INDIRECT(ADDRESS(ROW(A$80),ROW()-ROW(A$80)+(ROWS($88:100)-1)*2+1,4))","v":0}]
[{"$f":"IF(B101=\"\",0,INDEX(Price_List,ROWS($88:101)))","v":15},{"$f":"IF($C101=\"\",\"\",COUNTA($C$88:$C101))","v":14},{"$f":"IF(INDEX(INDIRECT(\"Product_List\"),ROWS($88:101))=\"\",\"\",INDEX(INDIRECT(\"Product_List\"),ROWS($88:101)))","v":"14-ขนมปังไส้สังขยาใหญ่"},{"$f":"ยอดยกมา","v":0},null,null,null,null,null,null,0,null,{"$f":"INDIRECT(ADDRESS(ROW(A$80),ROW()-ROW(A$80)+(ROWS($88:101)-1)*2-1,4))","v":0},null,0,null,0,null,null,null,0,null,0,null,null,null,null,null,{"$f":"INDIRECT(ADDRESS(ROW(A$80),ROW()-ROW(A$80)+(ROWS($88:101)-1)*2,4))","v":0},0,null,0,{"$f":"INDIRECT(ADDRESS(ROW(A$80),ROW()-ROW(A$80)+(ROWS($88:101)-1)*2+1,4))","v":0}]
[{"$f":"IF(B102=\"\",0,INDEX(Price_List,ROWS($88:102)))","v":42},{"$f":"IF($C102=\"\",\"\",COUNTA($C$88:$C102))","v":15},{"$f":"IF(INDEX(INDIRECT(\"Product_List\"),ROWS($88:102))=\"\",\"\",INDEX(INDIRECT(\"Product_List\"),ROWS($88:102)))","v":"15-ขนมปังชนิดแผ่น(480กรัม)"},{"$f":"ยอดยกมา","v":0},null,null,null,null,null,null,0,null,{"$f":"INDIRECT(ADDRESS(ROW(A$80),ROW()-ROW(A$80)+(ROWS($88:102)-1)*2-1,4))","v":0},null,0,null,0,null,null,null,0,null,0,null,null,null,null,null,{"$f":"INDIRECT(ADDRESS(ROW(A$80),ROW()-ROW(A$80)+(ROWS($88:102)-1)*2,4))","v":0},0,null,0,{"$f":"INDIRECT(ADDRESS(ROW(A$80),ROW()-ROW(A$80)+(ROWS($88:102)-1)*2+1,4))","v":0}]
[{"$f":"IF(B103=\"\",0,INDEX(Price_List,ROWS($88:103)))","v":12},{"$f":"IF($C103=\"\",\"\",COUNTA($C$88:$C103))","v":16},{"$f":"IF(INDEX(INDIRECT(\"Product_List\"),ROWS($88:103))=\"\",\"\",INDEX(INDIRECT(\"Product_List\"),ROWS($88:103)))","v":"16-โมจิไส้ถั่ว"},{"$f":"ยอดยกมา","v":0},null,null,null,null,null,null,0,null,{"$f":"INDIRECT(ADDRESS(ROW(A$80),ROW()-ROW(A$80)+(ROWS($88:103)-1)*2-1,4))","v":0},null,0,null,0,null,null,null,0,null,0,null,null,null,null,null,{"$f":"INDIRECT(ADDRESS(ROW(A$80),ROW()-ROW(A$80)+(ROWS($88:103)-1)*2,4))","v":0},0,null,0,{"$f":"INDIRECT(ADDRESS(ROW(A$80),ROW()-ROW(A$80)+(ROWS($88:103)-1)*2+1,4))","v":0}]
[{"$f":"IF(B104=\"\",0,INDEX(Price_List,ROWS($88:104)))","v":12},{"$f":"IF($C104=\"\",\"\",COUNTA($C$88:$C104))","v":17},{"$f":"IF(INDEX(INDIRECT(\"Product_List\"),ROWS($88:104))=\"\",\"\",INDEX(INDIRECT(\"Product_List\"),ROWS($88:104)))","v":"17-โมจิไส้เผือก"},{"$f":"ยอดยกมา","v":0},null,null,null,null,null,null,0,null,{"$f":"INDIRECT(ADDRESS(ROW(A$80),ROW()-ROW(A$80)+(ROWS($88:104)-1)*2-1,4))","v":0},null,0,null,0,null,null,null,0,null,0,null,null,null,null,null,{"$f":"INDIRECT(ADDRESS(ROW(A$80),ROW()-ROW(A$80)+(ROWS($88:104)-1)*2,4))","v":0},0,null,0,{"$f":"INDIRECT(ADDRESS(ROW(A$80),ROW()-ROW(A$80)+(ROWS($88:104)-1)*2+1,4))","v":0}]
[{"$f":"IF(B105=\"\",0,INDEX(Price_List,ROWS($88:105)))","v":15},{"$f":"IF($C105=\"\",\"\",COUNTA($C$88:$C105))","v":18},{"$f":"IF(INDEX(INDIRECT(\"Product_List\"),ROWS($88:105))=\"\",\"\",INDEX(INDIRECT(\"Product_List\"),ROWS($88:105)))","v":"18-โมจิไส้ถั่วไข่เค็ม"},{"$f":"ยอดยกมา","v":0},null,null,null,null,null,null,0,null,{"$f":"INDIRECT(ADDRESS(ROW(A$80),ROW()-ROW(A$80)+(ROWS($88:105)-1)*2-1,4))","v":0},null,0,null,0,null,null,null,0,null,0,null,null,null,null,null,{"$f":"INDIRECT(ADDRESS(ROW(A$80),ROW()-ROW(A$80)+(ROWS($88:105)-1)*2,4))","v":0},0,null,0,{"$f":"INDIRECT(ADDRESS(ROW(A$80),ROW()-ROW(A$80)+(ROWS($88:105)-1)*2+1,4))","v":0}]
[{"$f":"IF(B106=\"\",0,INDEX(Price_List,ROWS($88:106)))","v":20},{"$f":"IF($C106=\"\",\"\",COUNTA($C$88:$C106))","v":19},{"$f":"IF(INDEX(INDIRECT(\"Product_List\"),ROWS($88:106))=\"\",\"\",INDEX(INDIRECT(\"Product_List\"),ROWS($88:106)))","v":"19-ขนมปังพิซซ่า"},{"$f":"ยอดยกมา","v":0},null,null,null,null,null,null,0,null,{"$f":"INDIRECT(ADDRESS(ROW(A$80),ROW()-ROW(A$80)+(ROWS($88:106)-1)*2-1,4))","v":0},null,0,null,0,null,null,null,0,null,0,null,null,null,null,null,{"$f":"INDIRECT(ADDRESS(ROW(A$80),ROW()-ROW(A$80)+(ROWS($88:106)-1)*2,4))","v":0},0,null,0,{"$f":"INDIRECT(ADDRESS(ROW(A$80),ROW()-ROW(A$80)+(ROWS($88:106)-1)*2+1,4))","v":0}]
[{"$f":"IF(B107=\"\",0,INDEX(Price_List,ROWS($88:107)))","v":20},{"$f":"IF($C107=\"\",\"\",COUNTA($C$88:$C107))","v":20},{"$f":"IF(INDEX(INDIRECT(\"Product_List\"),ROWS($88:107))=\"\",\"\",INDEX(INDIRECT(\"Product_List\"),ROWS($88:107)))","v":"20-ขนมปังพิซซ่าปูอัดแฮม"},{"$f":"ยอดยกมา","v":0},null,null,null,null,null,null,0,null,{"$f":"INDIRECT(ADDRESS(ROW(A$80),ROW()-ROW(A$80)+(ROWS($88:107)-1)*2-1,4))","v":0},null,0,null,0,null,null,null,0,null,0,null,null,null,null,null,{"$f":"INDIRECT(ADDRESS(ROW(A$80),ROW()-ROW(A$80)+(ROWS($88:107)-1)*2,4))","v":0},0,null,0,{"$f":"INDIRECT(ADDRESS(ROW(A$80),ROW()-ROW(A$80)+(ROWS($88:107)-1)*2+1,4))","v":0}]
[{"$f":"IF(B108=\"\",0,INDEX(Price_List,ROWS($88:108)))","v":20},{"$f":"IF($C108=\"\",\"\",COUNTA($C$88:$C108))","v":21},{"$f":"IF(INDEX(INDIRECT(\"Product_List\"),ROWS($88:108))=\"\",\"\",INDEX(INDIRECT(\"Product_List\"),ROWS($88:108)))","v":"21-ขนมปังไส้กรอก"},{"$f":"ยอดยกมา","v":0},null,null,null,null,null,null,0,null,{"$f":"INDIRECT(ADDRESS(ROW(A$80),ROW()-ROW(A$80)+(ROWS($88:108)-1)*2-1,4))","v":0},null,0,null,0,null,null,null,0,null,0,null,null,null,null,null,{"$f":"INDIRECT(ADDRESS(ROW(A$80),ROW()-ROW(A$80)+(ROWS($88:108)-1)*2,4))","v":0},0,null,0,{"$f":"INDIRECT(ADDRESS(ROW(A$80),ROW()-ROW(A$80)+(ROWS($88:108)-1)*2+1,4))","v":0}]
[{"$f":"IF(B109=\"\",0,INDEX(Price_List,ROWS($88:109)))","v":15},{"$f":"IF($C109=\"\",\"\",COUNTA($C$88:$C109))","v":22},{"$f":"IF(INDEX(INDIRECT(\"Product_List\"),ROWS($88:109))=\"\",\"\",INDEX(INDIRECT(\"Product_List\"),ROWS($88:109)))","v":"22-ขนมก้านบัว"},{"$f":"ยอดยกมา","v":0},null,null,null,null,null,null,0,null,{"$f":"INDIRECT(ADDRESS(ROW(A$80),ROW()-ROW(A$80)+(ROWS($88:109)-1)*2-1,4))","v":0},null,0,null,0,null,null,null,0,null,0,null,null,null,null,null,{"$f":"INDIRECT(ADDRESS(ROW(A$80),ROW()-ROW(A$80)+(ROWS($88:109)-1)*2,4))","v":0},0,null,0,{"$f":"INDIRECT(ADDRESS(ROW(A$80),ROW()-ROW(A$80)+(ROWS($88:109)-1)*2+1,4))","v":0}]
[{"$f":"IF(B110=\"\",0,INDEX(Price_List,ROWS($88:110)))","v":20},{"$f":"IF($C110=\"\",\"\",COUNTA($C$88:$C110))","v":23},{"$f":"IF(INDEX(INDIRECT(\"Product_List\"),ROWS($88:110))=\"\",\"\",INDEX(INDIRECT(\"Product_List\"),ROWS($88:110)))","v":"23-พายสับปะรด"},{"$f":"ยอดยกมา","v":0},null,null,null,null,null,null,0,null,{"$f":"INDIRECT(ADDRESS(ROW(A$80),ROW()-ROW(A$80)+(ROWS($88:110)-1)*2-1,4))","v":0},null,0,null,0,null,null,null,0,null,0,null,null,null,null,null,{"$f":"INDIRECT(ADDRESS(ROW(A$80),ROW()-ROW(A$80)+(ROWS($88:110)-1)*2,4))","v":0},0,null,0,{"$f":"INDIRECT(ADDRESS(ROW(A$80),ROW()-ROW(A$80)+(ROWS($88:110)-1)*2+1,4))","v":0}]
[{"$f":"IF(B111=\"\",0,INDEX(Price_List,ROWS($88:111)))","v":20},{"$f":"IF($C111=\"\",\"\",COUNTA($C$88:$C111))","v":24},{"$f":"IF(INDEX(INDIRECT(\"Product_List\"),ROWS($88:111))=\"\",\"\",INDEX(INDIRECT(\"Product_List\"),ROWS($88:111)))","v":"24-พายไส้มะพร้าว"},{"$f":"ยอดยกมา","v":0},null,null,null,null,null,null,0,null,{"$f":"INDIRECT(ADDRESS(ROW(A$80),ROW()-ROW(A$80)+(ROWS($88:111)-1)*2-1,4))","v":0},null,0,null,0,null,null,null,0,null,0,null,null,null,null,null,{"$f":"INDIRECT(ADDRESS(ROW(A$80),ROW()-ROW(A$80)+(ROWS($88:111)-1)*2,4))","v":0},0,null,0,{"$f":"INDIRECT(ADDRESS(ROW(A$80),ROW()-ROW(A$80)+(ROWS($88:111)-1)*2+1,4))","v":0}]
[{"$f":"IF(B112=\"\",0,INDEX(Price_List,ROWS($88:112)))","v":15},{"$f":"IF($C112=\"\",\"\",COUNTA($C$88:$C112))","v":25},{"$f":"IF(INDEX(INDIRECT(\"Product_List\"),ROWS($88:112))=\"\",\"\",INDEX(INDIRECT(\"Product_List\"),ROWS($88:112)))","v":"25-ขนมปังโรลมันเทศ"},{"$f":"ยอดยกมา","v":0},null,null,null,null,null,null,0,null,{"$f":"INDIRECT(ADDRESS(ROW(A$80),ROW()-ROW(A$80)+(ROWS($88:112)-1)*2-1,4))","v":0},null,0,null,0,null,null,null,0,null,0,null,null,null,null,null,{"$f":"INDIRECT(ADDRESS(ROW(A$80),ROW()-ROW(A$80)+(ROWS($88:112)-1)*2,4))","v":0},0,null,0,{"$f":"INDIRECT(ADDRESS(ROW(A$80),ROW()-ROW(A$80)+(ROWS($88:112)-1)*2+1,4))","v":0}]
[{"$f":"IF(B113=\"\",0,INDEX(Price_List,ROWS($88:113)))","v":15},{"$f":"IF($C113=\"\",\"\",COUNTA($C$88:$C113))","v":26},{"$f":"IF(INDEX(INDIRECT(\"Product_List\"),ROWS($88:113))=\"\",\"\",INDEX(INDIRECT(\"Product_List\"),ROWS($88:113)))","v":"26-ขนมปังไส้ครีมสลัดน้ำพริกเผา"},{"$f":"ยอดยกมา","v":0},null,null,null,null,null,null,0,null,{"$f":"INDIRECT(ADDRESS(ROW(A$80),ROW()-ROW(A$80)+(ROWS($88:113)-1)*2-1,4))","v":0},null,0,null,0,null,null,null,0,null,0,null,null,null,null,null,{"$f":"INDIRECT(ADDRESS(ROW(A$80),ROW()-ROW(A$80)+(ROWS($88:113)-1)*2,4))","v":0},0,null,0,{"$f":"INDIRECT(ADDRESS(ROW(A$80),ROW()-ROW(A$80)+(ROWS($88:113)-1)*2+1,4))","v":0}]
[{"$f":"IF(B114=\"\",0,INDEX(Price_List,ROWS($88:114)))","v":20},{"$f":"IF($C114=\"\",\"\",COUNTA($C$88:$C114))","v":27},{"$f":"IF(INDEX(INDIRECT(\"Product_List\"),ROWS($88:114))=\"\",\"\",INDEX(INDIRECT(\"Product_List\"),ROWS($88:114)))","v":"27-ขนมปังไส้สังขยาไข่"},{"$f":"ยอดยกมา","v":0},null,null,null,null,null,null,0,null,{"$f":"INDIRECT(ADDRESS(ROW(A$80),ROW()-ROW(A$80)+(ROWS($88:114)-1)*2-1,4))","v":0},null,0,null,0,null,null,null,0,null,0,null,null,null,null,null,{"$f":"INDIRECT(ADDRESS(ROW(A$80),ROW()-ROW(A$80)+(ROWS($88:114)-1)*2,4))","v":0},0,null,0,{"$f":"INDIRECT(ADDRESS(ROW(A$80),ROW()-ROW(A$80)+(ROWS($88:114)-1)*2+1,4))","v":0}]
[{"$f":"IF(B115=\"\",0,INDEX(Price_List,ROWS($88:115)))","v":20},{"$f":"IF($C115=\"\",\"\",COUNTA($C$88:$C115))","v":28},{"$f":"IF(INDEX(INDIRECT(\"Product_List\"),ROWS($88:115))=\"\",\"\",INDEX(INDIRECT(\"Product_List\"),ROWS($88:115)))","v":"28-ขนมปังไส้สังขยามะพร้าว"},{"$f":"ยอดยกมา","v":0},null,null,null,null,null,null,0,null,{"$f":"INDIRECT(ADDRESS(ROW(A$80),ROW()-ROW(A$80)+(ROWS($88:115)-1)*2-1,4))","v":0},null,0,null,0,null,null,null,0,null,0,null,null,null,null,null,{"$f":"INDIRECT(ADDRESS(ROW(A$80),ROW()-ROW(A$80)+(ROWS($88:115)-1)*2,4))","v":0},0,null,0,{"$f":"INDIRECT(ADDRESS(ROW(A$80),ROW()-ROW(A$80)+(ROWS($88:115)-1)*2+1,4))","v":0}]
[{"$f":"IF(B116=\"\",0,INDEX(Price_List,ROWS($88:116)))","v":10},{"$f":"IF($C116=\"\",\"\",COUNTA($C$88:$C116))","v":29},{"$f":"IF(INDEX(INDIRECT(\"Product_List\"),ROWS($88:116))=\"\",\"\",INDEX(INDIRECT(\"Product_List\"),ROWS($88:116)))","v":"29-ขนมปังไส้ครีมชาไทย"},{"$f":"ยอดยกมา","v":0},null,null,null,null,null,null,0,null,{"$f":"INDIRECT(ADDRESS(ROW(A$80),ROW()-ROW(A$80)+(ROWS($88:116)-1)*2-1,4))","v":0},null,0,null,0,null,null,null,0,null,0,null,null,null,null,null,{"$f":"INDIRECT(ADDRESS(ROW(A$80),ROW()-ROW(A$80)+(ROWS($88:116)-1)*2,4))","v":0},0,null,0,{"$f":"INDIRECT(ADDRESS(ROW(A$80),ROW()-ROW(A$80)+(ROWS($88:116)-1)*2+1,4))","v":0}]
[{"$f":"IF(B117=\"\",0,INDEX(Price_List,ROWS($88:117)))","v":15},{"$f":"IF($C117=\"\",\"\",COUNTA($C$88:$C117))","v":30},{"$f":"IF(INDEX(INDIRECT(\"Product_List\"),ROWS($88:117))=\"\",\"\",INDEX(INDIRECT(\"Product_List\"),ROWS($88:117)))","v":"30-ขนมปังโรลมันม่วง"},{"$f":"ยอดยกมา","v":0},null,null,null,null,null,null,0,null,{"$f":"INDIRECT(ADDRESS(ROW(A$80),ROW()-ROW(A$80)+(ROWS($88:117)-1)*2-1,4))","v":0},null,0,null,0,null,null,null,0,null,0,null,null,null,null,null,{"$f":"INDIRECT(ADDRESS(ROW(A$80),ROW()-ROW(A$80)+(ROWS($88:117)-1)*2,4))","v":0},0,null,0,{"$f":"INDIRECT(ADDRESS(ROW(A$80),ROW()-ROW(A$80)+(ROWS($88:117)-1)*2+1,4))","v":0}]
[{"$f":"IF(B118=\"\",0,INDEX(Price_List,ROWS($88:118)))","v":15},{"$f":"IF($C118=\"\",\"\",COUNTA($C$88:$C118))","v":31},{"$f":"IF(INDEX(INDIRECT(\"Product_List\"),ROWS($88:118))=\"\",\"\",INDEX(INDIRECT(\"Product_List\"),ROWS($88:118)))","v":"31-ขนมปังโรลช็อกโกแลต"},{"$f":"ยอดยกมา","v":0},null,null,null,null,null,null,0,null,{"$f":"INDIRECT(ADDRESS(ROW(A$80),ROW()-ROW(A$80)+(ROWS($88:118)-1)*2-1,4))","v":0},null,0,null,0,null,null,null,0,null,0,null,null,null,null,null,{"$f":"INDIRECT(ADDRESS(ROW(A$80),ROW()-ROW(A$80)+(ROWS($88:118)-1)*2,4))","v":0},0,null,0,{"$f":"INDIRECT(ADDRESS(ROW(A$80),ROW()-ROW(A$80)+(ROWS($88:118)-1)*2+1,4))","v":0}]
[{"$f":"IF(B119=\"\",0,INDEX(Price_List,ROWS($88:119)))","v":16},{"$f":"IF($C119=\"\",\"\",COUNTA($C$88:$C119))","v":32},{"$f":"IF(INDEX(INDIRECT(\"Product_List\"),ROWS($88:119))=\"\",\"\",INDEX(INDIRECT(\"Product_List\"),ROWS($88:119)))","v":"32-ขนมปังชนิดแผ่น(155กรัม)"},{"$f":"ยอดยกมา","v":0},null,null,null,null,null,null,0,null,{"$f":"INDIRECT(ADDRESS(ROW(A$80),ROW()-ROW(A$80)+(ROWS($88:119)-1)*2-1,4))","v":0},null,0,null,0,null,null,null,0,null,0,null,null,null,null,null,{"$f":"INDIRECT(ADDRESS(ROW(A$80),ROW()-ROW(A$80)+(ROWS($88:119)-1)*2,4))","v":0},0,null,0,{"$f":"INDIRECT(ADDRESS(ROW(A$80),ROW()-ROW(A$80)+(ROWS($88:119)-1)*2+1,4))","v":0}]
[{"$f":"IF(B120=\"\",0,INDEX(Price_List,ROWS($88:120)))","v":15},{"$f":"IF($C120=\"\",\"\",COUNTA($C$88:$C120))","v":33},{"$f":"IF(INDEX(INDIRECT(\"Product_List\"),ROWS($88:120))=\"\",\"\",INDEX(INDIRECT(\"Product_List\"),ROWS($88:120)))","v":"33-ขนมปังโรลเผือก"},{"$f":"ยอดยกมา","v":0},null,null,null,null,null,null,0,null,{"$f":"INDIRECT(ADDRESS(ROW(A$80),ROW()-ROW(A$80)+(ROWS($88:120)-1)*2-1,4))","v":0},null,0,null,0,null,null,null,0,null,0,null,null,null,null,null,{"$f":"INDIRECT(ADDRESS(ROW(A$80),ROW()-ROW(A$80)+(ROWS($88:120)-1)*2,4))","v":0},0,null,0,{"$f":"INDIRECT(ADDRESS(ROW(A$80),ROW()-ROW(A$80)+(ROWS($88:120)-1)*2+1,4))","v":0}]
[{"$f":"IF(B121=\"\",0,INDEX(Price_List,ROWS($88:121)))","v":15},{"$f":"IF($C121=\"\",\"\",COUNTA($C$88:$C121))","v":34},{"$f":"IF(INDEX(INDIRECT(\"Product_List\"),ROWS($88:121))=\"\",\"\",INDEX(INDIRECT(\"Product_List\"),ROWS($88:121)))","v":"34-ขนมปังไก่หยองน้ำสลัด Mini"},{"$f":"ยอดยกมา","v":0},null,null,null,null,null,null,0,null,{"$f":"INDIRECT(ADDRESS(ROW(A$80),ROW()-ROW(A$80)+(ROWS($88:121)-1)*2-1,4))","v":0},null,0,null,0,null,null,null,0,null,0,null,null,null,null,null,{"$f":"INDIRECT(ADDRESS(ROW(A$80),ROW()-ROW(A$80)+(ROWS($88:121)-1)*2,4))","v":0},0,null,0,{"$f":"INDIRECT(ADDRESS(ROW(A$80),ROW()-ROW(A$80)+(ROWS($88:121)-1)*2+1,4))","v":0}]
[{"$f":"IF(B122=\"\",0,INDEX(Price_List,ROWS($88:122)))","v":10},{"$f":"IF($C122=\"\",\"\",COUNTA($C$88:$C122))","v":35},{"$f":"IF(INDEX(INDIRECT(\"Product_List\"),ROWS($88:122))=\"\",\"\",INDEX(INDIRECT(\"Product_List\"),ROWS($88:122)))","v":"35-ขนมปังไส้ช็อกโกแลต"},{"$f":"ยอดยกมา","v":0},null,null,null,null,null,null,0,null,{"$f":"INDIRECT(ADDRESS(ROW(A$80),ROW()-ROW(A$80)+(ROWS($88:122)-1)*2-1,4))","v":0},null,0,null,0,null,null,null,0,null,0,null,null,null,null,null,{"$f":"INDIRECT(ADDRESS(ROW(A$80),ROW()-ROW(A$80)+(ROWS($88:122)-1)*2,4))","v":0},0,null,0,{"$f":"INDIRECT(ADDRESS(ROW(A$80),ROW()-ROW(A$80)+(ROWS($88:122)-1)*2+1,4))","v":0}]
[{"$f":"IF(B123=\"\",0,INDEX(Price_List,ROWS($88:123)))","v":10},{"$f":"IF($C123=\"\",\"\",COUNTA($C$88:$C123))","v":36},{"$f":"IF(INDEX(INDIRECT(\"Product_List\"),ROWS($88:123))=\"\",\"\",INDEX(INDIRECT(\"Product_List\"),ROWS($88:123)))","v":"36-ขนมปังไส้ครีมสังขยาไข่"},{"$f":"ยอดยกมา","v":0},null,null,null,null,null,null,0,null,{"$f":"INDIRECT(ADDRESS(ROW(A$80),ROW()-ROW(A$80)+(ROWS($88:123)-1)*2-1,4))","v":0},null,0,null,0,null,null,null,0,null,0,null,null,null,null,null,{"$f":"INDIRECT(ADDRESS(ROW(A$80),ROW()-ROW(A$80)+(ROWS($88:123)-1)*2,4))","v":0},0,null,0,{"$f":"INDIRECT(ADDRESS(ROW(A$80),ROW()-ROW(A$80)+(ROWS($88:123)-1)*2+1,4))","v":0}]
[{"$f":"IF(B124=\"\",0,INDEX(Price_List,ROWS($88:124)))","v":20},{"$f":"IF($C124=\"\",\"\",COUNTA($C$88:$C124))","v":37},{"$f":"IF(INDEX(INDIRECT(\"Product_List\"),ROWS($88:124))=\"\",\"\",INDEX(INDIRECT(\"Product_List\"),ROWS($88:124)))","v":"37-ขนมปังพิซซ่าฮาวายเอี้ยน"},{"$f":"ยอดยกมา","v":0},null,null,null,null,null,null,0,null,{"$f":"INDIRECT(ADDRESS(ROW(A$80),ROW()-ROW(A$80)+(ROWS($88:124)-1)*2-1,4))","v":0},null,0,null,0,null,null,null,0,null,0,null,null,null,null,null,{"$f":"INDIRECT(ADDRESS(ROW(A$80),ROW()-ROW(A$80)+(ROWS($88:124)-1)*2,4))","v":0},0,null,0,{"$f":"INDIRECT(ADDRESS(ROW(A$80),ROW()-ROW(A$80)+(ROWS($88:124)-1)*2+1,4))","v":0}]
[{"$f":"IF(B125=\"\",0,INDEX(Price_List,ROWS($88:125)))","v":20},{"$f":"IF($C125=\"\",\"\",COUNTA($C$88:$C125))","v":38},{"$f":"IF(INDEX(INDIRECT(\"Product_List\"),ROWS($88:125))=\"\",\"\",INDEX(INDIRECT(\"Product_List\"),ROWS($88:125)))","v":"38-ครัวซองต์หมูหยองน้ำสลัด"},{"$f":"ยอดยกมา","v":0},null,null,null,null,null,null,0,null,{"$f":"INDIRECT(ADDRESS(ROW(A$80),ROW()-ROW(A$80)+(ROWS($88:125)-1)*2-1,4))","v":0},null,0,null,0,null,null,null,0,null,0,null,null,null,null,null,{"$f":"INDIRECT(ADDRESS(ROW(A$80),ROW()-ROW(A$80)+(ROWS($88:125)-1)*2,4))","v":0},0,null,0,{"$f":"INDIRECT(ADDRESS(ROW(A$80),ROW()-ROW(A$80)+(ROWS($88:125)-1)*2+1,4))","v":0}]
[{"$f":"IF(B126=\"\",0,INDEX(Price_List,ROWS($88:126)))","v":15},{"$f":"IF($C126=\"\",\"\",COUNTA($C$88:$C126))","v":39},{"$f":"IF(INDEX(INDIRECT(\"Product_List\"),ROWS($88:126))=\"\",\"\",INDEX(INDIRECT(\"Product_List\"),ROWS($88:126)))","v":"39-แพนเบรดไส้เผือก"},{"$f":"ยอดยกมา","v":0},null,null,null,null,null,null,0,null,{"$f":"INDIRECT(ADDRESS(ROW(A$80),ROW()-ROW(A$80)+(ROWS($88:126)-1)*2-1,4))","v":0},null,0,null,0,null,null,null,0,null,0,null,null,null,null,null,{"$f":"INDIRECT(ADDRESS(ROW(A$80),ROW()-ROW(A$80)+(ROWS($88:126)-1)*2,4))","v":0},0,null,0,{"$f":"INDIRECT(ADDRESS(ROW(A$80),ROW()-ROW(A$80)+(ROWS($88:126)-1)*2+1,4))","v":0}]
[{"$f":"IF(B127=\"\",0,INDEX(Price_List,ROWS($88:127)))","v":15},{"$f":"IF($C127=\"\",\"\",COUNTA($C$88:$C127))","v":40},{"$f":"IF(INDEX(INDIRECT(\"Product_List\"),ROWS($88:127))=\"\",\"\",INDEX(INDIRECT(\"Product_List\"),ROWS($88:127)))","v":"40-แพนเบรดไส้ถั่วแดง"},{"$f":"ยอดยกมา","v":0},null,null,null,null,null,null,{"$f":"D127+E127+J127-I127+H127","v":0},null,{"$f":"INDIRECT(ADDRESS(ROW(A$80),ROW()-ROW(A$80)+(ROWS($88:127)-1)*2-1,4))","v":0},null,{"$f":"F127+G127+M127+J127-K127","v":0},null,{"$f":"O127*A127","v":0},null,null,null,{"$f":"D127+E127-F127-G127","v":0},null,{"$f":"U127*6%+U127","v":0},null,null,null,null,null,{"$f":"INDIRECT(ADDRESS(ROW(A$80),ROW()-ROW(A$80)+(ROWS($88:127)-1)*2,4))","v":0},0,null,0,{"$f":"INDIRECT(ADDRESS(ROW(A$80),ROW()-ROW(A$80)+(ROWS($88:127)-1)*2+1,4))","v":0}]
[{"$f":"IF(B128=\"\",0,INDEX(Price_List,ROWS($88:128)))","v":12},{"$f":"IF($C128=\"\",\"\",COUNTA($C$88:$C128))","v":41},{"$f":"IF(INDEX(INDIRECT(\"Product_List\"),ROWS($88:128))=\"\",\"\",INDEX(INDIRECT(\"Product_List\"),ROWS($88:128)))","v":"41-ขนมปังกรอบเนยน้ำตาล(30กรัม)"},{"$f":"ยอดยกมา","v":0},null,null,null,null,null,null,0,null,{"$f":"INDIRECT(ADDRESS(ROW(A$80),ROW()-ROW(A$80)+(ROWS($88:128)-1)*2-1,4))","v":0},null,0,null,0,null,null,null,0,null,0,null,null,null,null,null,{"$f":"INDIRECT(ADDRESS(ROW(A$80),ROW()-ROW(A$80)+(ROWS($88:128)-1)*2,4))","v":0},0,null,0,{"$f":"INDIRECT(ADDRESS(ROW(A$80),ROW()-ROW(A$80)+(ROWS($88:128)-1)*2+1,4))","v":0}]
[{"$f":"IF(B129=\"\",0,INDEX(Price_List,ROWS($88:129)))","v":18},{"$f":"IF($C129=\"\",\"\",COUNTA($C$88:$C129))","v":42},{"$f":"IF(INDEX(INDIRECT(\"Product_List\"),ROWS($88:129))=\"\",\"\",INDEX(INDIRECT(\"Product_List\"),ROWS($88:129)))","v":"42-ขนมปังชนิดแผ่นโฮลวีต"},{"$f":"ยอดยกมา","v":0},null,null,null,null,null,null,0,null,{"$f":"INDIRECT(ADDRESS(ROW(A$80),ROW()-ROW(A$80)+(ROWS($88:129)-1)*2-1,4))","v":0},null,0,null,0,null,null,null,0,null,0,null,null,null,null,null,{"$f":"INDIRECT(ADDRESS(ROW(A$80),ROW()-ROW(A$80)+(ROWS($88:129)-1)*2,4))","v":0},0,null,0,{"$f":"INDIRECT(ADDRESS(ROW(A$80),ROW()-ROW(A$80)+(ROWS($88:129)-1)*2+1,4))","v":0}]
[{"$f":"IF(B130=\"\",0,INDEX(Price_List,ROWS($88:130)))","v":12},{"$f":"IF($C130=\"\",\"\",COUNTA($C$88:$C130))","v":43},{"$f":"IF(INDEX(INDIRECT(\"Product_List\"),ROWS($88:130))=\"\",\"\",INDEX(INDIRECT(\"Product_List\"),ROWS($88:130)))","v":"43-เค้กโรลใบเตย"},{"$f":"ยอดยกมา","v":0},null,null,null,null,null,null,{"$f":"D130+E130+J130-I130+H130","v":0},null,{"$f":"INDIRECT(ADDRESS(ROW(A$80),ROW()-ROW(A$80)+(ROWS($88:130)-1)*2-1,4))","v":0},null,{"$f":"F130+G130+M130+J130-K130","v":0},null,{"$f":"O130*A130","v":0},null,null,null,{"$f":"D130+E130-F130-G130","v":0},null,{"$f":"U130*6%+U130","v":0},null,null,null,null,null,{"$f":"INDIRECT(ADDRESS(ROW(A$80),ROW()-ROW(A$80)+(ROWS($88:130)-1)*2,4))","v":0},0,null,0,{"$f":"INDIRECT(ADDRESS(ROW(A$80),ROW()-ROW(A$80)+(ROWS($88:130)-1)*2+1,4))","v":0}]
[{"$f":"IF(B131=\"\",0,INDEX(Price_List,ROWS($88:131)))","v":12},{"$f":"IF($C131=\"\",\"\",COUNTA($C$88:$C131))","v":44},{"$f":"IF(INDEX(INDIRECT(\"Product_List\"),ROWS($88:131))=\"\",\"\",INDEX(INDIRECT(\"Product_List\"),ROWS($88:131)))","v":"44-ขนมโมจิไส้ถั่วดำ"},{"$f":"ยอดยกมา","v":0},null,null,null,null,null,null,{"$f":"D131+E131+J131-I131+H131","v":0},null,{"$f":"INDIRECT(ADDRESS(ROW(A$80),ROW()-ROW(A$80)+(ROWS($88:131)-1)*2-1,4))","v":0},null,{"$f":"F131+G131+M131+J131-K131","v":0},null,{"$f":"O131*A131","v":0},null,null,null,{"$f":"D131+E131-F131-G131","v":0},null,{"$f":"U131*6%+U131","v":0},null,null,null,null,null,{"$f":"INDIRECT(ADDRESS(ROW(A$80),ROW()-ROW(A$80)+(ROWS($88:131)-1)*2,4))","v":0},0,null,0,{"$f":"INDIRECT(ADDRESS(ROW(A$80),ROW()-ROW(A$80)+(ROWS($88:131)-1)*2+1,4))","v":0}]
[{"$f":"IF(B132=\"\",0,INDEX(Price_List,ROWS($88:132)))","v":25},{"$f":"IF($C132=\"\",\"\",COUNTA($C$88:$C132))","v":45},{"$f":"IF(INDEX(INDIRECT(\"Product_List\"),ROWS($88:132))=\"\",\"\",INDEX(INDIRECT(\"Product_List\"),ROWS($88:132)))","v":"45-ครัวซองต์ไส้กรอกชีส"},{"$f":"ยอดยกมา","v":0},null,null,null,null,null,null,{"$f":"D132+E132+J132-I132+H132","v":0},null,{"$f":"INDIRECT(ADDRESS(ROW(A$80),ROW()-ROW(A$80)+(ROWS($88:132)-1)*2-1,4))","v":0},null,{"$f":"F132+G132+M132+J132-K132","v":0},null,{"$f":"O132*A132","v":0},null,null,null,{"$f":"D132+E132-F132-G132","v":0},null,{"$f":"U132*6%+U132","v":0},null,null,null,null,null,{"$f":"INDIRECT(ADDRESS(ROW(A$80),ROW()-ROW(A$80)+(ROWS($88:132)-1)*2,4))","v":0},0,null,0,{"$f":"INDIRECT(ADDRESS(ROW(A$80),ROW()-ROW(A$80)+(ROWS($88:132)-1)*2+1,4))","v":0}]
[{"$f":"IF(B133=\"\",0,INDEX(Price_List,ROWS($88:133)))","v":12},{"$f":"IF($C133=\"\",\"\",COUNTA($C$88:$C133))","v":46},{"$f":"IF(INDEX(INDIRECT(\"Product_List\"),ROWS($88:133))=\"\",\"\",INDEX(INDIRECT(\"Product_List\"),ROWS($88:133)))","v":"46-ขนมเปี๊ยะไส้ถั่ว"},{"$f":"ยอดยกมา","v":0},null,null,null,null,null,null,0,null,{"$f":"INDIRECT(ADDRESS(ROW(A$80),ROW()-ROW(A$80)+(ROWS($88:133)-1)*2-1,4))","v":0},null,0,null,0,null,null,null,0,null,0,null,null,null,null,null,{"$f":"INDIRECT(ADDRESS(ROW(A$80),ROW()-ROW(A$80)+(ROWS($88:133)-1)*2,4))","v":0},0,null,0,{"$f":"INDIRECT(ADDRESS(ROW(A$80),ROW()-ROW(A$80)+(ROWS($88:133)-1)*2+1,4))","v":0}]
[{"$f":"IF(B134=\"\",0,INDEX(Price_List,ROWS($88:134)))","v":12},{"$f":"IF($C134=\"\",\"\",COUNTA($C$88:$C134))","v":47},{"$f":"IF(INDEX(INDIRECT(\"Product_List\"),ROWS($88:134))=\"\",\"\",INDEX(INDIRECT(\"Product_List\"),ROWS($88:134)))","v":"47-ขนมเปี๊ยะไส้ฟัก"},{"$f":"ยอดยกมา","v":0},null,null,null,null,null,null,{"$f":"D134+E134+J134-I134+H134","v":0},null,{"$f":"INDIRECT(ADDRESS(ROW(A$80),ROW()-ROW(A$80)+(ROWS($88:134)-1)*2-1,4))","v":0},null,{"$f":"F134+G134+M134+J134-K134","v":0},null,{"$f":"O134*A134","v":0},null,null,null,{"$f":"D134+E134-F134-G134","v":0},null,{"$f":"U134*6%+U134","v":0},null,null,null,null,null,{"$f":"INDIRECT(ADDRESS(ROW(A$80),ROW()-ROW(A$80)+(ROWS($88:134)-1)*2,4))","v":0},0,null,0,{"$f":"INDIRECT(ADDRESS(ROW(A$80),ROW()-ROW(A$80)+(ROWS($88:134)-1)*2+1,4))","v":0}]
[{"$f":"IF(B135=\"\",0,INDEX(Price_List,ROWS($88:135)))","v":12},{"$f":"IF($C135=\"\",\"\",COUNTA($C$88:$C135))","v":48},{"$f":"IF(INDEX(INDIRECT(\"Product_List\"),ROWS($88:135))=\"\",\"\",INDEX(INDIRECT(\"Product_List\"),ROWS($88:135)))","v":"48-มังกี้เค้ก"},{"$f":"ยอดยกมา","v":0},null,null,null,null,null,null,0,null,{"$f":"INDIRECT(ADDRESS(ROW(A$80),ROW()-ROW(A$80)+(ROWS($88:135)-1)*2-1,4))","v":0},null,0,null,0,null,null,null,0,null,0,null,null,null,null,null,{"$f":"INDIRECT(ADDRESS(ROW(A$80),ROW()-ROW(A$80)+(ROWS($88:135)-1)*2,4))","v":0},0,null,0,{"$f":"INDIRECT(ADDRESS(ROW(A$80),ROW()-ROW(A$80)+(ROWS($88:135)-1)*2+1,4))","v":0}]
["รวม",null,null,{"$f":"SUM(D$88:D$135)","v":0},0,0,0,0,0,0,0,null,{"$f":"SUM(M$88:M$135)","v":0},null,null,null,{"$f":"$AP$98","v":0},null,"บาท",null,{"$f":"SUM(U$88:U$135)","v":0},null,{"$f":"SUM(W$88:W$135)","v":0},null,null,null,null,null,{"$f":"SUM(AC$88:AC$135)","v":0},{"$f":"SUM(AD$88:AD$135)","v":0},{"$f":"SUM(AE$88:AE$135)","v":0},{"$f":"SUM(AF$88:AF$135)","v":0},{"$f":"SUM(AG$88:AG$135)","v":0}]
["เลขที่ไมล์ เวลาออกทำงาน",null,null,{"$f":"$BF$3","v":0},null,"Km","น้ำหนักของเสีย"]
["เลขที่ไมล์ เวลากลับ",null,null,{"$f":"$BF$4","v":0},null,"Km",{"$f":"$AA$5","v":0},null,"KG"]
["เวลากลับถึงสำนักงาน",null,null,{"$f":"$BF$1","v":"00:00:00"},null,"น."]
["เติมน้ำมัน",null,null,{"$f":"$AX3","v":0},null,"บาท"]
["จำนวนน้ำมัน",null,null,{"$f":"$AX4","v":0},null,"ลิตร"]
["ยอดรวมต้นทุนสาขา",null,null,{"$f":"$AX5","v":0},null,"บาท"]

{"sheet":"6","index":10,"n_rows":142,"n_cols":154,"rows_kept":142,"cut":false,"hidden":false,"merged":[[129,10,129,11],[129,12,129,13],[129,14,129,15],[129,16,129,17],[129,20,129,21],[80,126,80,127],[128,10,128,11],[128,12,128,13],[128,14,128,15],[128,16,128,17],[128,20,128,21],[128,22,128,23],[128,24,128,25],[128,33,128,36],[125,10,125,11],[125,12,125,13],[125,14,125,15],[125,16,125,17],[125,20,125,21],[126,10,126,11],[127,10,127,11],[83,81,83,82],[83,84,83,85],[83,87,83,88],[83,90,83,91],[83,93,83,94],[83,96,83,97],[82,72,82,73],[129,22,129,23],[129,24,129,25],[129,33,129,36],[97,38,97,40],[92,24,92,25],[92,33,92,36],[90,24,90,25],[90,33,90,36],[96,33,96,36],[97,33,97,36],[88,24,88,25],[88,33,88,36],[80,132,80,133],[82,132,82,133],[6,135,6,137],[7,135,7,137],[8,135,8,137],[80,135,80,136],[82,135,82,136],[80,129,80,130],[82,126,82,127],[82,129,82,130],[6,138,6,140],[6,141,6,143],[6,147,6,149],[126,22,126,23],[127,22,127,23],[126,24,126,25],[127,24,127,25],[126,33,126,36],[127,33,127,36],[125,24,125,25],[125,33,125,36],[123,24,123,25],[123,33,123,36],[125,22,125,23],[124,22,124,23],[124,24,124,25],[124,33,124,36],[122,24,122,25],[122,33,122,36],[98,24,98,25],[98,33,98,36],[99,24,99,25],[99,33,99,36],[82,108,82,109],[139,0,139,2],[139,3,139,4],[140,0,140,2],[140,3,140,4],[141,0,141,2],[141,3,141,4],[137,0,137,2],[137,3,137,4],[137,6,137,7],[137,18,137,21],[138,0,138,2],[138,3,138,4],[135,20,135,21],[135,22,135,23],[135,24,135,25],[135,33,135,36],[136,0,136,2],[136,3,136,4],[135,0,135,2],[135,10,135,11],[135,12,135,13],[135,14,135,15],[135,16,135,17],[135,18,135,19],[126,12,126,13],[127,12,127,13],[126,14,126,15],[127,14,127,15],[126,16,126,17],[127,16,127,17],[126,20,126,21],[127,20,127,21],[124,10,124,11],[124,12,124,13],[124,14,124,15],[124,16,124,17],[124,20,124,21],[123,10,123,11],[123,12,123,13],[123,14,123,15],[123,16,123,17],[123,20,123,21],[123,22,123,23],[122,10,122,11],[122,12,122,13],[122,14,122,15],[122,16,122,17],[122,20,122,21],[122,22,122,23],[121,10,121,11],[121,12,121,13],[121,14,121,15],[121,16,121,17],[121,20,121,21],[121,22,121,23],[121,24,121,25],[121,33,121,36],[120,10,120,11],[120,12,120,13],[120,14,120,15],[120,16,120,17],[120,20,120,21],[120,22,120,23],[120,24,120,25],[120,33,120,36],[119,10,119,11],[119,12,119,13],[119,14,119,15],[119,16,119,17],[119,20,119,21],[119,22,119,23],[119,24,119,25],[119,33,119,36],[118,10,118,11],[118,12,118,13],[118,14,118,15],[118,16,118,17],[118,20,118,21],[118,22,118,23],[118,24,118,25],[118,33,118,36],[117,10,117,11],[117,12,117,13],[117,14,117,15],[117,16,117,17],[117,20,117,21],[117,22,117,23],[117,24,117,25],[117,33,117,36],[116,10,116,11],[116,12,116,13],[116,14,116,15],[116,16,116,17],[116,20,116,21],[116,22,116,23],[116,24,116,25],[116,33,116,36],[115,10,115,11],[115,12,115,13],[115,14,115,15],[115,16,115,17],[115,20,115,21],[115,22,115,23],[115,24,115,25],[115,33,115,36],[114,10,114,11],[114,12,114,13],[114,14,114,15],[114,16,114,17],[114,20,114,21],[114,22,114,23],[114,24,114,25],[114,33,114,36],[113,10,113,11],[113,12,113,13],[113,14,113,15],[113,16,113,17],[113,20,113,21],[113,22,113,23],[113,24,113,25],[113,33,113,36],[112,10,112,11],[112,12,112,13],[112,14,112,15],[112,16,112,17],[112,20,112,21],[112,22,112,23],[112,24,112,25],[112,33,112,36],[111,10,111,11],[111,12,111,13],[111,14,111,15],[111,16,111,17],[111,20,111,21],[111,22,111,23],[111,24,111,25],[111,33,111,36],[110,10,110,11],[110,12,110,13],[110,14,110,15],[110,16,110,17],[110,20,110,21],[110,22,110,23],[110,24,110,25],[110,33,110,36],[109,10,109,11],[109,12,109,13],[109,14,109,15],[109,16,109,17],[109,20,109,21],[109,22,109,23],[109,24,109,25],[109,33,109,36],[108,10,108,11],[108,12,108,13],[108,14,108,15],[108,16,108,17],[108,20,108,21],[108,22,108,23],[108,24,108,25],[108,33,108,36],[107,10,107,11],[107,12,107,13],[107,14,107,15],[107,16,107,17],[107,20,107,21],[107,22,107,23],[107,24,107,25],[107,33,107,36],[106,10,106,11],[106,12,106,13],[106,14,106,15],[106,16,106,17],[106,20,106,21],[106,22,106,23],[106,24,106,25],[106,33,106,36],[105,10,105,11],[105,12,105,13],[105,14,105,15],[105,16,105,17],[105,20,105,21],[105,22,105,23],[105,24,105,25],[105,33,105,36],[104,10,104,11],[104,12,104,13],[104,14,104,15],[104,16,104,17],[104,20,104,21],[104,22,104,23],[104,24,104,25],[104,33,104,36],[103,10,103,11],[103,12,103,13],[103,14,103,15],[103,16,103,17],[103,20,103,21],[103,22,103,23],[103,24,103,25],[103,33,103,36],[102,10,102,11],[102,12,102,13],[102,14,102,15],[102,16,102,17],[102,20,102,21],[102,22,102,23],[102,24,102,25],[102,33,102,36],[101,10,101,11],[101,12,101,13],[101,14,101,15],[101,16,101,17],[101,20,101,21],[101,22,101,23],[101,24,101,25],[101,33,101,36],[100,10,100,11],[100,12,100,13],[100,14,100,15],[100,16,100,17],[100,20,100,21],[100,22,100,23],[100,24,100,25],[100,33,100,36],[99,10,99,11],[99,12,99,13],[99,14,99,15],[99,16,99,17],[99,20,99,21],[99,22,99,23],[98,10,98,11],[98,12,98,13],[98,14,98,15],[98,16,98,17],[98,20,98,21],[98,22,98,23],[97,10,97,11],[97,12,97,13],[97,14,97,15],[97,16,97,17],[97,20,97,21],[97,22,97,23],[97,24,97,25],[96,10,96,11],[96,12,96,13],[96,14,96,15],[96,16,96,17],[96,20,96,21],[96,22,96,23],[96,24,96,25],[95,10,95,11],[95,12,95,13],[95,14,95,15],[95,16,95,17],[95,20,95,21],[95,22,95,23],[95,24,95,25],[95,33,95,36],[94,10,94,11],[94,12,94,13],[94,14,94,15],[94,16,94,17],[94,20,94,21],[94,22,94,23],[94,24,94,25],[94,33,94,36],[93,10,93,11],[93,12,93,13],[93,14,93,15],[93,16,93,17],[93,20,93,21],[93,22,93,23],[93,24,93,25],[93,33,93,36],[92,10,92,11],[92,12,92,13],[92,14,92,15],[92,16,92,17],[92,20,92,21],[92,22,92,23],[91,10,91,11],[91,12,91,13],[91,14,91,15],[91,16,91,17],[91,20,91,21],[91,22,91,23],[91,24,91,25],[91,33,91,36],[90,10,90,11],[90,12,90,13],[90,14,90,15],[90,16,90,17],[90,20,90,21],[90,22,90,23],[87,33,87,36],[86,10,86,11],[86,12,86,13],[86,14,86,15],[86,16,86,17],[86,20,86,21],[86,22,86,23],[89,10,89,11],[89,12,89,13],[89,14,89,15],[89,16,89,17],[89,20,89,21],[89,22,89,23],[89,24,89,25],[89,33,89,36],[88,10,88,11],[88,12,88,13],[88,14,88,15],[88,16,88,17],[88,20,88,21],[88,22,88,23],[86,24,86,25],[86,33,86,36],[83,150,83,153],[83,99,83,100],[83,102,83,103],[83,105,83,106],[83,108,83,109],[83,111,83,112],[83,114,83,115],[83,126,83,127],[83,129,83,130],[83,132,83,133],[83,135,83,136],[83,117,83,118],[83,120,83,121],[83,123,83,124],[82,75,82,76],[82,78,82,79],[82,81,82,82],[82,84,82,85],[82,87,82,88],[82,99,82,100],[82,102,82,103],[82,105,82,106],[82,63,82,64],[82,66,82,67],[82,69,82,70],[82,90,82,91],[82,93,82,94],[82,96,82,97],[83,0,83,5],[83,6,83,7],[83,9,83,10],[83,12,83,13],[83,15,83,16],[83,18,83,19],[83,21,83,22],[83,24,83,25],[83,54,83,55],[83,27,83,28],[82,36,82,37],[83,30,83,31],[83,33,83,34],[83,36,83,37],[82,39,82,40],[82,42,82,43],[83,45,83,46],[83,48,83,49],[83,51,83,52],[83,39,83,40],[83,42,83,43],[82,54,82,55],[82,57,82,58],[82,60,82,61],[81,0,81,2],[81,3,81,5],[81,150,82,153],[82,0,82,2],[82,3,82,4],[82,6,82,7],[82,9,82,10],[82,12,82,13],[82,15,82,16],[82,45,82,46],[82,48,82,49],[82,51,82,52],[82,18,82,19],[82,21,82,22],[82,24,82,25],[82,27,82,28],[82,30,82,31],[82,33,82,34],[82,111,82,112],[82,114,82,115],[82,117,82,118],[82,120,82,121],[82,123,82,124],[80,111,80,112],[80,114,80,115],[80,117,80,118],[80,120,80,121],[80,123,80,124],[80,93,80,94],[80,96,80,97],[80,99,80,100],[80,102,80,103],[80,105,80,106],[80,108,80,109],[80,36,80,37],[80,75,80,76],[80,78,80,79],[80,81,80,82],[80,84,80,85],[80,87,80,88],[80,90,80,91],[80,57,80,58],[80,60,80,61],[80,63,80,64],[80,66,80,67],[80,69,80,70],[80,72,80,73],[6,0,8,0],[6,1,8,1],[80,0,80,5],[80,6,80,7],[80,9,80,10],[80,12,80,13],[80,15,80,16],[80,18,80,19],[8,117,8,119],[8,54,8,56],[8,57,8,59],[8,60,8,62],[8,27,8,29],[8,30,8,32],[8,33,8,35],[8,36,8,38],[8,39,8,41],[8,42,8,44],[8,9,8,11],[8,12,8,14],[8,15,8,17],[8,18,8,20],[8,21,8,23],[8,24,8,26],[6,129,6,131],[7,126,7,128],[7,129,7,131],[8,126,8,128],[8,129,8,131],[6,126,6,128],[6,84,6,86],[6,132,6,134],[79,0,79,5],[8,99,8,101],[8,102,8,104],[8,105,8,107],[8,108,8,110],[8,111,8,113],[8,114,8,116],[8,81,8,83],[8,84,8,86],[8,87,8,89],[8,90,8,92],[8,93,8,95],[8,96,8,98],[8,63,8,65],[8,66,8,68],[8,69,8,71],[7,120,7,122],[7,123,7,125],[7,150,8,150],[7,151,8,151],[7,102,7,104],[7,105,7,107],[7,108,7,110],[7,111,7,113],[7,114,7,116],[7,117,7,119],[8,120,8,122],[8,123,8,125],[7,132,7,134],[8,132,8,134],[6,152,8,152],[6,153,8,153],[7,6,7,8],[7,9,7,11],[7,12,7,14],[7,15,7,17],[7,18,7,20],[7,21,7,23],[7,24,7,26],[7,27,7,29],[6,117,6,119],[6,120,6,122],[6,123,6,125],[6,150,6,151],[6,99,6,101],[6,102,6,104],[6,105,6,107],[6,108,6,110],[6,93,6,95],[6,96,6,98],[6,63,6,65],[6,111,6,113],[6,114,6,116],[6,81,6,83],[6,2,8,2],[6,3,8,3],[6,4,8,4],[6,6,6,8],[8,6,8,8],[6,45,6,47],[6,48,6,50],[7,48,7,50],[6,39,6,41],[6,42,6,44],[7,30,7,32],[7,33,7,35],[7,36,7,38],[7,39,7,41],[7,42,7,44],[7,45,7,47],[8,45,8,47],[8,48,8,50],[4,26,4,29],[4,30,4,31],[4,32,4,34],[4,35,4,36],[6,9,6,11],[6,12,6,14],[6,15,6,17],[6,18,6,20],[6,21,6,23],[6,24,6,26],[6,27,6,29],[6,30,6,32],[6,33,6,35],[6,36,6,38],[3,41,3,44],[3,46,3,48],[3,49,3,51],[3,54,3,56],[3,57,3,60],[4,0,4,1],[4,2,4,3],[4,4,4,5],[4,6,4,12],[4,14,4,16],[3,17,3,19],[3,22,3,25],[3,26,3,29],[3,30,3,33],[3,34,3,37],[3,38,3,40],[4,38,4,40],[4,41,4,44],[4,46,4,48],[4,49,4,51],[4,54,4,56],[4,57,4,60],[4,17,4,19],[4,22,4,25],[3,0,3,1],[3,2,3,3],[3,4,3,5],[3,6,3,12],[3,14,3,16],[2,17,2,19],[2,22,2,25],[2,26,2,29],[2,30,2,33],[0,38,0,40],[0,41,0,44],[0,46,0,48],[0,54,0,56],[0,57,0,60],[2,0,2,1],[2,2,2,3],[2,4,2,5],[2,6,2,12],[2,14,2,16],[0,0,0,12],[0,14,0,16],[0,17,0,23],[0,30,0,33],[0,34,0,35],[0,36,0,37],[2,41,2,44],[2,46,2,48],[2,49,2,51],[2,54,2,56],[2,57,2,60],[2,34,2,37],[2,38,2,40],[7,96,7,98],[7,99,7,101],[6,51,6,53],[6,60,6,62],[6,87,6,89],[6,90,6,92],[7,84,7,86],[7,87,7,89],[7,90,7,92],[7,66,7,68],[7,69,7,71],[7,72,7,74],[6,66,6,68],[7,75,7,77],[7,78,7,80],[7,81,7,83],[6,69,6,71],[6,72,6,74],[6,75,6,77],[6,78,6,80],[6,54,6,56],[6,57,6,59],[131,24,131,25],[131,10,131,11],[131,20,131,21],[7,51,7,53],[7,54,7,56],[7,57,7,59],[7,60,7,62],[7,63,7,65],[7,93,7,95],[8,72,8,74],[8,75,8,77],[8,78,8,80],[8,51,8,53],[80,39,80,40],[80,42,80,43],[80,45,80,46],[80,48,80,49],[80,51,80,52],[80,54,80,55],[80,21,80,22],[80,24,80,25],[80,27,80,28],[80,30,80,31],[80,33,80,34],[83,147,83,148],[130,22,130,23],[130,24,130,25],[130,33,130,36],[130,10,130,11],[130,12,130,13],[130,14,130,15],[130,16,130,17],[130,20,130,21],[83,63,83,64],[83,66,83,67],[83,69,83,70],[83,72,83,73],[83,75,83,76],[83,78,83,79],[83,57,83,58],[83,60,83,61],[87,10,87,11],[87,12,87,13],[87,14,87,15],[87,16,87,17],[87,20,87,21],[87,22,87,23],[87,24,87,25],[7,147,7,149],[8,138,8,140],[8,141,8,143],[8,147,8,149],[80,138,80,139],[80,141,80,142],[80,147,80,148],[82,138,82,139],[82,141,82,142],[82,147,82,148],[132,10,132,11],[134,10,134,11],[131,12,131,13],[132,12,132,13],[134,12,134,13],[131,14,131,15],[132,14,132,15],[134,14,134,15],[131,16,131,17],[132,16,132,17],[134,16,134,17],[133,10,133,11],[133,12,133,13],[133,14,133,15],[133,16,133,17],[132,20,132,21],[134,20,134,21],[131,22,131,23],[132,22,132,23],[134,22,134,23],[6,144,6,146],[7,144,7,146],[8,144,8,146],[80,144,80,145],[82,144,82,145],[83,144,83,145],[133,20,133,21],[133,22,133,23],[133,24,133,25],[133,33,133,36],[132,24,132,25],[134,24,134,25],[131,33,131,36],[132,33,132,36],[134,33,134,36],[7,138,7,140],[7,141,7,143],[83,138,83,139],[83,141,83,142]]}
[":::: รายงานการขายประจำวัน (Sale Daily Report)  ::::",null,null,null,null,null,null,null,null,null,null,null,null,null,"Print Date : ",null,null,{"$f":"NOW()","v":"2025-04-24T22:39:10.140"},null,null,null,null,null,null,null,null,null,null,null,null,"จำนวนร้าน :",null,null,null,{"$f":"MAX($A$10:$A$79)","v":0},null,"ร้าน",null,"เป้ายอดขาย :",null,null,null,null,null,null,null,{"$f":"C3","v":45783},null,null,{"$f":"LEFT('Problems & Solutions'!$B$2,FIND(\"|\",'Problems & Solutions'!$B$2))&\" วันที่\"&TEXT($C$3,\"[$-107041E] d mmmm yyyy;@\")","v":"ขั้นตอนการตรวจรีพอร์ตขาย | วันที่ 6 พฤษภาคม 2568"},null,null,null,null,"เวลากลับ :"]
[]
["วันที่ :",null,{"$f":"DATE(ใส่ข้อมูล!G2-543,ใส่ข้อมูล!V2,ActiveSheetName)","v":"2025-05-06"},null,"พนักงานขาย",null,{"$f":"INDEX(OFFSET(Sale_Region,,1),ActiveSheetName)","v":0},null,null,null,null,null,null,null,"รวมยอดเบิก :",null,null,{"$f":"E136","v":0},null,null,"ชิ้น",null,"ใหญ่สด(40)",null,null,null,{"$f":"Cash_Major_Bill","v":0},null,null,null,"ใหญ่เชื่อ(42)",null,null,null,{"$f":"Credit_Major_Bill","v":0},null,null,null,"บิลใหญ่ :",null,null,{"$f":"AA3+AI3","v":0},null,null,null,null,"เติมน้ำมัน :",null,null,null,null,null,"บาท",null,"ไมล์ออก :",null,null,{"$f":"เลขไมล์ออก","v":0},null,null,null,"Km"]
["เขตการขาย :",null,{"$f":"INDEX(Sale_Region,ActiveSheetName)","v":0},null,"ผช.ขาย",null,{"$f":"INDEX(OFFSET(Sale_Region,,2),ActiveSheetName)","v":0},null,null,null,null,null,null,null,"ของเหลือ :",null,null,{"$f":"F136","v":0},null,null,"ชิ้น",null,"เล็กสด(41)",null,null,null,{"$f":"Cash_Minor_Bill","v":0},null,null,null,"เล็กเชื่อ(43)",null,null,null,{"$f":"Credit_Minor_Bill","v":0},null,null,null,"บิลเล็ก :",null,null,{"$f":"AA4+AI4","v":0},null,null,null,null,"จำนวนลิตร :",null,null,null,null,null,"ลิตร",null,"ไมล์เข้า :",null,null,null,null,null,null,"Km"]
["สายส่ง :",null,{"$f":"\"Sale \"&ใส่ข้อมูล!E3&\"-\"&ใส่ข้อมูล!G3","v":"Sale KB-01"},null,"พนักงานเสริม",null,{"$f":"INDEX(OFFSET(Sale_Region,,3),ActiveSheetName)","v":0},null,null,null,null,null,null,null,"ของเสีย :",null,null,{"$f":"G136","v":0},null,null,"ชิ้น",null,"น้ำหนักของเสีย",null,null,null,null,null,null,null,"Kg.",null,"%ของเสีย",null,null,{"$f":"IF(Order_Cal=0,0,ROUND(Waste_Cal*100/Order_Cal,2))","v":0},null,"%","VAT :",null,null,{"$f":"EW81","v":0},null,null,null,null,"ต้นทุนสาขา :",null,null,{"$f":"SUMPRODUCT((($A$88:$A$135)-($A$88:$A$135)*0.45)*(($E$88:$E$135)-($G$88:$G$135)))","v":0},null,null,"บาท",null,"ระยะทาง :",null,null,{"$f":"IF(OR($BF$4=0,$BF$3=0),0,$BF$4-$BF$3)","v":0},null,null,null,"Km"]
[]
["No","รหัสร้าน (CustNo)","ชื่อร้าน (Store Name)","เวลาเข้าร้าน","ระยะเวลาระหว่างร้าน","บิล(Invoice)",{"$f":"INDEX(INDIRECT(\"dProduct[ProductName]\"),ROUNDUP(COLUMNS($G:G)/3,0))","v":"ขนมปังหมูหยองน้ำสลัด"},null,null,{"$f":"INDEX(INDIRECT(\"dProduct[ProductName]\"),ROUNDUP(COLUMNS($G:J)/3,0))","v":"ขนมปังหมูหยองน้ำพริกเผา"},null,null,{"$f":"INDEX(INDIRECT(\"dProduct[ProductName]\"),ROUNDUP(COLUMNS($G:M)/3,0))","v":"ขนมปังไก่หยองน้ำสลัด"},null,null,{"$f":"INDEX(INDIRECT(\"dProduct[ProductName]\"),ROUNDUP(COLUMNS($G:P)/3,0))","v":"ขนมปังไส้ครีมสลัด"},null,null,{"$f":"INDEX(INDIRECT(\"dProduct[ProductName]\"),ROUNDUP(COLUMNS($G:S)/3,0))","v":"ขนมปังเนยสด"},null,null,{"$f":"INDEX(INDIRECT(\"dProduct[ProductName]\"),ROUNDUP(COLUMNS($G:V)/3,0))","v":"ขนมปังไส้สังขยาเล็ก"},null,null,{"$f":"INDEX(INDIRECT(\"dProduct[ProductName]\"),ROUNDUP(COLUMNS($G:Y)/3,0))","v":"ขนมปังไส้เผือก"},null,null,{"$f":"INDEX(INDIRECT(\"dProduct[ProductName]\"),ROUNDUP(COLUMNS($G:AB)/3,0))","v":"ขนมปังไส้ถั่วแดง"},null,null,{"$f":"INDEX(INDIRECT(\"dProduct[ProductName]\"),ROUNDUP(COLUMNS($G:AE)/3,0))","v":"ขนมปังไส้ถั่วดำ"},null,null,{"$f":"INDEX(INDIRECT(\"dProduct[ProductName]\"),ROUNDUP(COLUMNS($G:AH)/3,0))","v":"ขนมปังไส้มันม่วง"},null,null,{"$f":"INDEX(INDIRECT(\"dProduct[ProductName]\"),ROUNDUP(COLUMNS($G:AK)/3,0))","v":"เค้กกล้วยหอม"},null,null,{"$f":"INDEX(INDIRECT(\"dProduct[ProductName]\"),ROUNDUP(COLUMNS($G:AN)/3,0))","v":"เค้กบัตเตอร์"},null,null,{"$f":"INDEX(INDIRECT(\"dProduct[ProductName]\"),ROUNDUP(COLUMNS($G:AQ)/3,0))","v":"ขนมปังโรลถั่วแดง"},null,null,{"$f":"INDEX(INDIRECT(\"dProduct[ProductName]\"),ROUNDUP(COLUMNS($G:AT)/3,0))","v":"ขนมปังไส้สังขยาใหญ่"},null,null,{"$f":"INDEX(INDIRECT(\"dProduct[ProductName]\"),ROUNDUP(COLUMNS($G:AW)/3,0))","v":"ขนมปังชนิดแผ่น(480กรัม)"},null,null,{"$f":"INDEX(INDIRECT(\"dProduct[ProductName]\"),ROUNDUP(COLUMNS($G:AZ)/3,0))","v":"โมจิไส้ถั่ว"},null,null,{"$f":"INDEX(INDIRECT(\"dProduct[ProductName]\"),ROUNDUP(COLUMNS($G:BC)/3,0))","v":"โมจิไส้เผือก"},null,null,{"$f":"INDEX(INDIRECT(\"dProduct[ProductName]\"),ROUNDUP(COLUMNS($G:BF)/3,0))","v":"โมจิไส้ถั่วไข่เค็ม"},null,null,{"$f":"INDEX(INDIRECT(\"dProduct[ProductName]\"),ROUNDUP(COLUMNS($G:BI)/3,0))","v":"ขนมปังพิซซ่า"},null,null,{"$f":"INDEX(INDIRECT(\"dProduct[ProductName]\"),ROUNDUP(COLUMNS($G:BL)/3,0))","v":"ขนมปังพิซซ่าปูอัดแฮม"},null,null,{"$f":"INDEX(INDIRECT(\"dProduct[ProductName]\"),ROUNDUP(COLUMNS($G:BO)/3,0))","v":"ขนมปังไส้กรอก"},null,null,{"$f":"INDEX(INDIRECT(\"dProduct[ProductName]\"),ROUNDUP(COLUMNS($G:BR)/3,0))","v":"ขนมก้านบัว"},null,null,{"$f":"INDEX(INDIRECT(\"dProduct[ProductName]\"),ROUNDUP(COLUMNS($G:BU)/3,0))","v":"พายสับปะรด"},null,null,{"$f":"INDEX(INDIRECT(\"dProduct[ProductName]\"),ROUNDUP(COLUMNS($G:BX)/3,0))","v":"พายไส้มะพร้าว"},null,null,{"$f":"INDEX(INDIRECT(\"dProduct[ProductName]\"),ROUNDUP(COLUMNS($G:CA)/3,0))","v":"ขนมปังโรลมันเทศ"},null,null,{"$f":"INDEX(INDIRECT(\"dProduct[ProductName]\"),ROUNDUP(COLUMNS($G:CD)/3,0))","v":"ขนมปังไส้ครีมสลัดน้ำพริกเผา"},null,null,{"$f":"INDEX(INDIRECT(\"dProduct[ProductName]\"),ROUNDUP(COLUMNS($G:CG)/3,0))","v":"ขนมปังไส้สังขยาไข่"},null,null,{"$f":"INDEX(INDIRECT(\"dProduct[ProductName]\"),ROUNDUP(COLUMNS($G:CJ)/3,0))","v":"ขนมปังไส้สังขยามะพร้าว"},null,null,{"$f":"INDEX(INDIRECT(\"dProduct[ProductName]\"),ROUNDUP(COLUMNS($G:CM)/3,0))","v":"ขนมปังไส้ครีมชาไทย"},null,null,{"$f":"INDEX(INDIRECT(\"dProduct[ProductName]\"),ROUNDUP(COLUMNS($G:CP)/3,0))","v":"ขนมปังโรลมันม่วง"},null,null,{"$f":"INDEX(INDIRECT(\"dProduct[ProductName]\"),ROUNDUP(COLUMNS($G:CS)/3,0))","v":"ขนมปังโรลช็อกโกแลต"},null,null,{"$f":"INDEX(INDIRECT(\"dProduct[ProductName]\"),ROUNDUP(COLUMNS($G:CV)/3,0))","v":"ขนมปังชนิดแผ่น(155กรัม)"},null,null,{"$f":"INDEX(INDIRECT(\"dProduct[ProductName]\"),ROUNDUP(COLUMNS($G:CY)/3,0))","v":"ขนมปังโรลเผือก"},null,null,{"$f":"INDEX(INDIRECT(\"dProduct[ProductName]\"),ROUNDUP(COLUMNS($G:DB)/3,0))","v":"ขนมปังไก่หยองน้ำสลัด Mini"},null,null,{"$f":"INDEX(INDIRECT(\"dProduct[ProductName]\"),ROUNDUP(COLUMNS($G:DE)/3,0))","v":"ขนมปังไส้ช็อกโกแลต"},null,null,{"$f":"INDEX(INDIRECT(\"dProduct[ProductName]\"),ROUNDUP(COLUMNS($G:DH)/3,0))","v":"ขนมปังไส้ครีมสังขยาไข่"},null,null,{"$f":"INDEX(INDIRECT(\"dProduct[ProductName]\"),ROUNDUP(COLUMNS($G:DK)/3,0))","v":"ขนมปังพิซซ่าฮาวายเอี้ยน"},null,null,{"$f":"INDEX(INDIRECT(\"dProduct[ProductName]\"),ROUNDUP(COLUMNS($G:DN)/3,0))","v":"ครัวซองต์หมูหยองน้ำสลัด"},null,null,{"$f":"INDEX(INDIRECT(\"dProduct[ProductName]\"),ROUNDUP(COLUMNS($G:DQ)/3,0))","v":"แพนเบรดไส้เผือก"},null,null,{"$f":"INDEX(INDIRECT(\"dProduct[ProductName]\"),ROUNDUP(COLUMNS($G:DT)/3,0))","v":"แพนเบรดไส้ถั่วแดง"},null,null,{"$f":"INDEX(INDIRECT(\"dProduct[ProductName]\"),ROUNDUP(COLUMNS($G:DW)/3,0))","v":"ขนมปังกรอบเนยน้ำตาล(30กรัม)"},null,null,{"$f":"INDEX(INDIRECT(\"dProduct[ProductName]\"),ROUNDUP(COLUMNS($G:DZ)/3,0))","v":"ขนมปังชนิดแผ่นโฮลวีต"},null,null,{"$f":"INDEX(INDIRECT(\"dProduct[ProductName]\"),ROUNDUP(COLUMNS($G:EC)/3,0))","v":"เค้กโรลใบเตย"},null,null,{"$f":"INDEX(INDIRECT(\"dProduct[ProductName]\"),ROUNDUP(COLUMNS($G:EF)/3,0))","v":"ขนมโมจิไส้ถั่วดำ"},null,null,{"$f":"INDEX(INDIRECT(\"dProduct[ProductName]\"),ROUNDUP(COLUMNS($G:EI)/3,0))","v":"ครัวซองต์ไส้กรอกชีส"},null,null,{"$f":"INDEX(INDIRECT(\"dProduct[ProductName]\"),ROUNDUP(COLUMNS($G:EL)/3,0))","v":"ขนมเปี๊ยะไส้ถั่ว"},null,null,{"$f":"INDEX(INDIRECT(\"dProduct[ProductName]\"),ROUNDUP(COLUMNS($G:EO)/3,0))","v":"ขนมเปี๊ยะไส้ฟัก"},null,null,{"$f":"INDEX(INDIRECT(\"dProduct[ProductName]\"),ROUNDUP(COLUMNS($G:ER)/3,0))","v":"มังกี้เค้ก"},null,null,"มูลค่าสินค้า",null,"ภาษี","รวมยอดขาย"]
[null,null,null,null,null,"ราคาขาย",{"$f":"IF(G$7=0,0,INDEX(Price_List,ROUNDUP(COLUMNS($G:G)/3,0)))","v":20},null,null,{"$f":"IF(J$7=0,0,INDEX(Price_List,ROUNDUP(COLUMNS($G:J)/3,0)))","v":20},null,null,{"$f":"IF(M$7=0,0,INDEX(Price_List,ROUNDUP(COLUMNS($G:M)/3,0)))","v":20},null,null,{"$f":"IF(P$7=0,0,INDEX(Price_List,ROUNDUP(COLUMNS($G:P)/3,0)))","v":15},null,null,{"$f":"IF(S$7=0,0,INDEX(Price_List,ROUNDUP(COLUMNS($G:S)/3,0)))","v":15},null,null,{"$f":"IF(V$7=0,0,INDEX(Price_List,ROUNDUP(COLUMNS($G:V)/3,0)))","v":10},null,null,{"$f":"IF(Y$7=0,0,INDEX(Price_List,ROUNDUP(COLUMNS($G:Y)/3,0)))","v":10},null,null,{"$f":"IF(AB$7=0,0,INDEX(Price_List,ROUNDUP(COLUMNS($G:AB)/3,0)))","v":10},null,null,{"$f":"IF(AE$7=0,0,INDEX(Price_List,ROUNDUP(COLUMNS($G:AE)/3,0)))","v":10},null,null,{"$f":"IF(AH$7=0,0,INDEX(Price_List,ROUNDUP(COLUMNS($G:AH)/3,0)))","v":10},null,null,{"$f":"IF(AK$7=0,0,INDEX(Price_List,ROUNDUP(COLUMNS($G:AK)/3,0)))","v":15},null,null,{"$f":"IF(AN$7=0,0,INDEX(Price_List,ROUNDUP(COLUMNS($G:AN)/3,0)))","v":15},null,null,{"$f":"IF(AQ$7=0,0,INDEX(Price_List,ROUNDUP(COLUMNS($G:AQ)/3,0)))","v":15},null,null,{"$f":"IF(AT$7=0,0,INDEX(Price_List,ROUNDUP(COLUMNS($G:AT)/3,0)))","v":15},null,null,{"$f":"IF(AW$7=0,0,INDEX(Price_List,ROUNDUP(COLUMNS($G:AW)/3,0)))","v":42},null,null,{"$f":"IF(AZ$7=0,0,INDEX(Price_List,ROUNDUP(COLUMNS($G:AZ)/3,0)))","v":12},null,null,{"$f":"IF(BC$7=0,0,INDEX(Price_List,ROUNDUP(COLUMNS($G:BC)/3,0)))","v":12},null,null,{"$f":"IF(BF$7=0,0,INDEX(Price_List,ROUNDUP(COLUMNS($G:BF)/3,0)))","v":15},null,null,{"$f":"IF(BI$7=0,0,INDEX(Price_List,ROUNDUP(COLUMNS($G:BI)/3,0)))","v":20},null,null,{"$f":"IF(BL$7=0,0,INDEX(Price_List,ROUNDUP(COLUMNS($G:BL)/3,0)))","v":20},null,null,{"$f":"IF(BO$7=0,0,INDEX(Price_List,ROUNDUP(COLUMNS($G:BO)/3,0)))","v":20},null,null,{"$f":"IF(BR$7=0,0,INDEX(Price_List,ROUNDUP(COLUMNS($G:BR)/3,0)))","v":15},null,null,{"$f":"IF(BU$7=0,0,INDEX(Price_List,ROUNDUP(COLUMNS($G:BU)/3,0)))","v":20},null,null,{"$f":"IF(BX$7=0,0,INDEX(Price_List,ROUNDUP(COLUMNS($G:BX)/3,0)))","v":20},null,null,{"$f":"IF(CA$7=0,0,INDEX(Price_List,ROUNDUP(COLUMNS($G:CA)/3,0)))","v":15},null,null,{"$f":"IF(CD$7=0,0,INDEX(Price_List,ROUNDUP(COLUMNS($G:CD)/3,0)))","v":15},null,null,{"$f":"IF(CG$7=0,0,INDEX(Price_List,ROUNDUP(COLUMNS($G:CG)/3,0)))","v":20},null,null,{"$f":"IF(CJ$7=0,0,INDEX(Price_List,ROUNDUP(COLUMNS($G:CJ)/3,0)))","v":20},null,null,{"$f":"IF(CM$7=0,0,INDEX(Price_List,ROUNDUP(COLUMNS($G:CM)/3,0)))","v":10},null,null,{"$f":"IF(CP$7=0,0,INDEX(Price_List,ROUNDUP(COLUMNS($G:CP)/3,0)))","v":15},null,null,{"$f":"IF(CS$7=0,0,INDEX(Price_List,ROUNDUP(COLUMNS($G:CS)/3,0)))","v":15},null,null,{"$f":"IF(CV$7=0,0,INDEX(Price_List,ROUNDUP(COLUMNS($G:CV)/3,0)))","v":16},null,null,{"$f":"IF(CY$7=0,0,INDEX(Price_List,ROUNDUP(COLUMNS($G:CY)/3,0)))","v":15},null,null,{"$f":"IF(DB$7=0,0,INDEX(Price_List,ROUNDUP(COLUMNS($G:DB)/3,0)))","v":15},null,null,{"$f":"IF(DE$7=0,0,INDEX(Price_List,ROUNDUP(COLUMNS($G:DE)/3,0)))","v":10},null,null,{"$f":"IF(DH$7=0,0,INDEX(Price_List,ROUNDUP(COLUMNS($G:DH)/3,0)))","v":10},null,null,{"$f":"IF(DK$7=0,0,INDEX(Price_List,ROUNDUP(COLUMNS($G:DK)/3,0)))","v":20},null,null,{"$f":"IF(DN$7=0,0,INDEX(Price_List,ROUNDUP(COLUMNS($G:DN)/3,0)))","v":20},null,null,{"$f":"IF(DQ$7=0,0,INDEX(Price_List,ROUNDUP(COLUMNS($G:DQ)/3,0)))","v":15},null,null,{"$f":"IF(DT$7=0,0,INDEX(Price_List,ROUNDUP(COLUMNS($G:DT)/3,0)))","v":15},null,null,{"$f":"IF(DW$7=0,0,INDEX(Price_List,ROUNDUP(COLUMNS($G:DW)/3,0)))","v":12},null,null,{"$f":"IF(DZ$7=0,0,INDEX(Price_List,ROUNDUP(COLUMNS($G:DZ)/3,0)))","v":18},null,null,{"$f":"IF(EC$7=0,0,INDEX(Price_List,ROUNDUP(COLUMNS($G:EC)/3,0)))","v":12},null,null,{"$f":"IF(EF$7=0,0,INDEX(Price_List,ROUNDUP(COLUMNS($G:EF)/3,0)))","v":12},null,null,{"$f":"IF(EI$7=0,0,INDEX(Price_List,ROUNDUP(COLUMNS($G:EI)/3,0)))","v":25},null,null,{"$f":"IF(EL$7=0,0,INDEX(Price_List,ROUNDUP(COLUMNS($G:EL)/3,0)))","v":12},null,null,{"$f":"IF(EO$7=0,0,INDEX(Price_List,ROUNDUP(COLUMNS($G:EO)/3,0)))","v":12},null,null,{"$f":"IF(ER$7=0,0,INDEX(Price_List,ROUNDUP(COLUMNS($G:ER)/3,0)))","v":12},null,null,"เงินเชื่อ","เงินสด"]
[null,null,null,null,null,"คงเหลือ(ตามบัญชี)",{"$f":"IF(G$7=0,0,INDEX(INDIRECT(Order_Rng),ROUNDUP(COLUMNS($G:G)/3,0)))","v":0},null,null,{"$f":"IF(J$7=0,0,INDEX(INDIRECT(Order_Rng),ROUNDUP(COLUMNS($G:J)/3,0)))","v":0},null,null,{"$f":"IF(M$7=0,0,INDEX(INDIRECT(Order_Rng),ROUNDUP(COLUMNS($G:M)/3,0)))","v":0},null,null,{"$f":"IF(P$7=0,0,INDEX(INDIRECT(Order_Rng),ROUNDUP(COLUMNS($G:P)/3,0)))","v":0},null,null,{"$f":"IF(S$7=0,0,INDEX(INDIRECT(Order_Rng),ROUNDUP(COLUMNS($G:S)/3,0)))","v":0},null,null,{"$f":"IF(V$7=0,0,INDEX(INDIRECT(Order_Rng),ROUNDUP(COLUMNS($G:V)/3,0)))","v":0},null,null,{"$f":"IF(Y$7=0,0,INDEX(INDIRECT(Order_Rng),ROUNDUP(COLUMNS($G:Y)/3,0)))","v":0},null,null,{"$f":"IF(AB$7=0,0,INDEX(INDIRECT(Order_Rng),ROUNDUP(COLUMNS($G:AB)/3,0)))","v":0},null,null,{"$f":"IF(AE$7=0,0,INDEX(INDIRECT(Order_Rng),ROUNDUP(COLUMNS($G:AE)/3,0)))","v":0},null,null,{"$f":"IF(AH$7=0,0,INDEX(INDIRECT(Order_Rng),ROUNDUP(COLUMNS($G:AH)/3,0)))","v":0},null,null,{"$f":"IF(AK$7=0,0,INDEX(INDIRECT(Order_Rng),ROUNDUP(COLUMNS($G:AK)/3,0)))","v":0},null,null,{"$f":"IF(AN$7=0,0,INDEX(INDIRECT(Order_Rng),ROUNDUP(COLUMNS($G:AN)/3,0)))","v":0},null,null,{"$f":"IF(AQ$7=0,0,INDEX(INDIRECT(Order_Rng),ROUNDUP(COLUMNS($G:AQ)/3,0)))","v":0},null,null,{"$f":"IF(AT$7=0,0,INDEX(INDIRECT(Order_Rng),ROUNDUP(COLUMNS($G:AT)/3,0)))","v":0},null,null,{"$f":"IF(AW$7=0,0,INDEX(INDIRECT(Order_Rng),ROUNDUP(COLUMNS($G:AW)/3,0)))","v":0},null,null,{"$f":"IF(AZ$7=0,0,INDEX(INDIRECT(Order_Rng),ROUNDUP(COLUMNS($G:AZ)/3,0)))","v":0},null,null,{"$f":"IF(BC$7=0,0,INDEX(INDIRECT(Order_Rng),ROUNDUP(COLUMNS($G:BC)/3,0)))","v":0},null,null,{"$f":"IF(BF$7=0,0,INDEX(INDIRECT(Order_Rng),ROUNDUP(COLUMNS($G:BF)/3,0)))","v":0},null,null,{"$f":"IF(BI$7=0,0,INDEX(INDIRECT(Order_Rng),ROUNDUP(COLUMNS($G:BI)/3,0)))","v":0},null,null,{"$f":"IF(BL$7=0,0,INDEX(INDIRECT(Order_Rng),ROUNDUP(COLUMNS($G:BL)/3,0)))","v":0},null,null,{"$f":"IF(BO$7=0,0,INDEX(INDIRECT(Order_Rng),ROUNDUP(COLUMNS($G:BO)/3,0)))","v":0},null,null,{"$f":"IF(BR$7=0,0,INDEX(INDIRECT(Order_Rng),ROUNDUP(COLUMNS($G:BR)/3,0)))","v":0},null,null,{"$f":"IF(BU$7=0,0,INDEX(INDIRECT(Order_Rng),ROUNDUP(COLUMNS($G:BU)/3,0)))","v":0},null,null,{"$f":"IF(BX$7=0,0,INDEX(INDIRECT(Order_Rng),ROUNDUP(COLUMNS($G:BX)/3,0)))","v":0},null,null,{"$f":"IF(CA$7=0,0,INDEX(INDIRECT(Order_Rng),ROUNDUP(COLUMNS($G:CA)/3,0)))","v":0},null,null,{"$f":"IF(CD$7=0,0,INDEX(INDIRECT(Order_Rng),ROUNDUP(COLUMNS($G:CD)/3,0)))","v":0},null,null,{"$f":"IF(CG$7=0,0,INDEX(INDIRECT(Order_Rng),ROUNDUP(COLUMNS($G:CG)/3,0)))","v":0},null,null,{"$f":"IF(CJ$7=0,0,INDEX(INDIRECT(Order_Rng),ROUNDUP(COLUMNS($G:CJ)/3,0)))","v":0},null,null,{"$f":"IF(CM$7=0,0,INDEX(INDIRECT(Order_Rng),ROUNDUP(COLUMNS($G:CM)/3,0)))","v":0},null,null,{"$f":"IF(CP$7=0,0,INDEX(INDIRECT(Order_Rng),ROUNDUP(COLUMNS($G:CP)/3,0)))","v":0},null,null,{"$f":"IF(CS$7=0,0,INDEX(INDIRECT(Order_Rng),ROUNDUP(COLUMNS($G:CS)/3,0)))","v":0},null,null,{"$f":"IF(CV$7=0,0,INDEX(INDIRECT(Order_Rng),ROUNDUP(COLUMNS($G:CV)/3,0)))","v":0},null,null,{"$f":"IF(CY$7=0,0,INDEX(INDIRECT(Order_Rng),ROUNDUP(COLUMNS($G:CY)/3,0)))","v":0},null,null,{"$f":"IF(DB$7=0,0,INDEX(INDIRECT(Order_Rng),ROUNDUP(COLUMNS($G:DB)/3,0)))","v":0},null,null,{"$f":"IF(DE$7=0,0,INDEX(INDIRECT(Order_Rng),ROUNDUP(COLUMNS($G:DE)/3,0)))","v":0},null,null,{"$f":"IF(DH$7=0,0,INDEX(INDIRECT(Order_Rng),ROUNDUP(COLUMNS($G:DH)/3,0)))","v":0},null,null,{"$f":"IF(DK$7=0,0,INDEX(INDIRECT(Order_Rng),ROUNDUP(COLUMNS($G:DK)/3,0)))","v":0},null,null,{"$f":"IF(DN$7=0,0,INDEX(INDIRECT(Order_Rng),ROUNDUP(COLUMNS($G:DN)/3,0)))","v":0},null,null,{"$f":"IF(DQ$7=0,0,INDEX(INDIRECT(Order_Rng),ROUNDUP(COLUMNS($G:DQ)/3,0)))","v":0},null,null,{"$f":"IF(DT$7=0,0,INDEX(INDIRECT(Order_Rng),ROUNDUP(COLUMNS($G:DT)/3,0)))","v":0},null,null,{"$f":"IF(DW$7=0,0,INDEX(INDIRECT(Order_Rng),ROUNDUP(COLUMNS($G:DW)/3,0)))","v":0},null,null,{"$f":"IF(DZ$7=0,0,INDEX(INDIRECT(Order_Rng),ROUNDUP(COLUMNS($G:DZ)/3,0)))","v":0},null,null,{"$f":"IF(EC$7=0,0,INDEX(INDIRECT(Order_Rng),ROUNDUP(COLUMNS($G:EC)/3,0)))","v":0},null,null,{"$f":"IF(EF$7=0,0,INDEX(INDIRECT(Order_Rng),ROUNDUP(COLUMNS($G:EF)/3,0)))","v":0},null,null,{"$f":"IF(EI$7=0,0,INDEX(INDIRECT(Order_Rng),ROUNDUP(COLUMNS($G:EI)/3,0)))","v":0},null,null,{"$f":"IF(EL$7=0,0,INDEX(INDIRECT(Order_Rng),ROUNDUP(COLUMNS($G:EL)/3,0)))","v":0},null,null,{"$f":"IF(EO$7=0,0,INDEX(INDIRECT(Order_Rng),ROUNDUP(COLUMNS($G:EO)/3,0)))","v":0},null,null,{"$f":"IF(ER$7=0,0,INDEX(INDIRECT(Order_Rng),ROUNDUP(COLUMNS($G:ER)/3,0)))","v":0}]
[{"$f":"IF(OR($B10=\"\",COUNTIF($B$10:$B10,$B10)>1,LEN(TRIM($B10))<>10,ISNUMBER(--MID(TRIM($B10),5,1))),\"-\",MAX(COUNT($A$9:$A9)+1))","v":"-"}]
[{"$f":"IF(OR($B11=\"\",COUNTIF($B$10:$B11,$B11)>1,LEN(TRIM($B11))<>10,ISNUMBER(--MID(TRIM($B11),5,1))),\"-\",MAX(COUNT($A$9:$A10)+1))","v":"-"},null,null,null,{"$f":"IF(D11=\"\",\"\",D11-D10)","v":""}]
[{"$f":"IF(OR($B12=\"\",COUNTIF($B$10:$B12,$B12)>1,LEN(TRIM($B12))<>10,ISNUMBER(--MID(TRIM($B12),5,1))),\"-\",MAX(COUNT($A$9:$A11)+1))","v":"-"},null,null,null,{"$f":"IF(D12=\"\",\"\",D12-D11)","v":""}]
[{"$f":"IF(OR($B13=\"\",COUNTIF($B$10:$B13,$B13)>1,LEN(TRIM($B13))<>10,ISNUMBER(--MID(TRIM($B13),5,1))),\"-\",MAX(COUNT($A$9:$A12)+1))","v":"-"},null,null,null,""]
[{"$f":"IF(OR($B14=\"\",COUNTIF($B$10:$B14,$B14)>1,LEN(TRIM($B14))<>10,ISNUMBER(--MID(TRIM($B14),5,1))),\"-\",MAX(COUNT($A$9:$A13)+1))","v":"-"},null,null,null,""]
[{"$f":"IF(OR($B15=\"\",COUNTIF($B$10:$B15,$B15)>1,LEN(TRIM($B15))<>10,ISNUMBER(--MID(TRIM($B15),5,1))),\"-\",MAX(COUNT($A$9:$A14)+1))","v":"-"},null,null,null,""]
[{"$f":"IF(OR($B16=\"\",COUNTIF($B$10:$B16,$B16)>1,LEN(TRIM($B16))<>10,ISNUMBER(--MID(TRIM($B16),5,1))),\"-\",MAX(COUNT($A$9:$A15)+1))","v":"-"},null,null,null,""]
[{"$f":"IF(OR($B17=\"\",COUNTIF($B$10:$B17,$B17)>1,LEN(TRIM($B17))<>10,ISNUMBER(--MID(TRIM($B17),5,1))),\"-\",MAX(COUNT($A$9:$A16)+1))","v":"-"},null,null,null,""]
[{"$f":"IF(OR($B18=\"\",COUNTIF($B$10:$B18,$B18)>1,LEN(TRIM($B18))<>10,ISNUMBER(--MID(TRIM($B18),5,1))),\"-\",MAX(COUNT($A$9:$A17)+1))","v":"-"},null,null,null,""]
[{"$f":"IF(OR($B19=\"\",COUNTIF($B$10:$B19,$B19)>1,LEN(TRIM($B19))<>10,ISNUMBER(--MID(TRIM($B19),5,1))),\"-\",MAX(COUNT($A$9:$A18)+1))","v":"-"},null,null,null,""]
[{"$f":"IF(OR($B20=\"\",COUNTIF($B$10:$B20,$B20)>1,LEN(TRIM($B20))<>10,ISNUMBER(--MID(TRIM($B20),5,1))),\"-\",MAX(COUNT($A$9:$A19)+1))","v":"-"},null,null,null,""]
[{"$f":"IF(OR($B21=\"\",COUNTIF($B$10:$B21,$B21)>1,LEN(TRIM($B21))<>10,ISNUMBER(--MID(TRIM($B21),5,1))),\"-\",MAX(COUNT($A$9:$A20)+1))","v":"-"},null,null,null,""]
[{"$f":"IF(OR($B22=\"\",COUNTIF($B$10:$B22,$B22)>1,LEN(TRIM($B22))<>10,ISNUMBER(--MID(TRIM($B22),5,1))),\"-\",MAX(COUNT($A$9:$A21)+1))","v":"-"},null,null,null,""]
[{"$f":"IF(OR($B23=\"\",COUNTIF($B$10:$B23,$B23)>1,LEN(TRIM($B23))<>10,ISNUMBER(--MID(TRIM($B23),5,1))),\"-\",MAX(COUNT($A$9:$A22)+1))","v":"-"},null,null,null,""]
[{"$f":"IF(OR($B24=\"\",COUNTIF($B$10:$B24,$B24)>1,LEN(TRIM($B24))<>10,ISNUMBER(--MID(TRIM($B24),5,1))),\"-\",MAX(COUNT($A$9:$A23)+1))","v":"-"},null,null,null,""]
[{"$f":"IF(OR($B25=\"\",COUNTIF($B$10:$B25,$B25)>1,LEN(TRIM($B25))<>10,ISNUMBER(--MID(TRIM($B25),5,1))),\"-\",MAX(COUNT($A$9:$A24)+1))","v":"-"},null,null,null,""]
[{"$f":"IF(OR($B26=\"\",COUNTIF($B$10:$B26,$B26)>1,LEN(TRIM($B26))<>10,ISNUMBER(--MID(TRIM($B26),5,1))),\"-\",MAX(COUNT($A$9:$A25)+1))","v":"-"},null,null,null,""]
[{"$f":"IF(OR($B27=\"\",COUNTIF($B$10:$B27,$B27)>1,LEN(TRIM($B27))<>10,ISNUMBER(--MID(TRIM($B27),5,1))),\"-\",MAX(COUNT($A$9:$A26)+1))","v":"-"},null,null,null,""]
[{"$f":"IF(OR($B28=\"\",COUNTIF($B$10:$B28,$B28)>1,LEN(TRIM($B28))<>10,ISNUMBER(--MID(TRIM($B28),5,1))),\"-\",MAX(COUNT($A$9:$A27)+1))","v":"-"},null,null,null,""]
[{"$f":"IF(OR($B29=\"\",COUNTIF($B$10:$B29,$B29)>1,LEN(TRIM($B29))<>10,ISNUMBER(--MID(TRIM($B29),5,1))),\"-\",MAX(COUNT($A$9:$A28)+1))","v":"-"},null,null,null,""]
[{"$f":"IF(OR($B30=\"\",COUNTIF($B$10:$B30,$B30)>1,LEN(TRIM($B30))<>10,ISNUMBER(--MID(TRIM($B30),5,1))),\"-\",MAX(COUNT($A$9:$A29)+1))","v":"-"},null,null,null,""]
[{"$f":"IF(OR($B31=\"\",COUNTIF($B$10:$B31,$B31)>1,LEN(TRIM($B31))<>10,ISNUMBER(--MID(TRIM($B31),5,1))),\"-\",MAX(COUNT($A$9:$A30)+1))","v":"-"},null,null,null,""]
[{"$f":"IF(OR($B32=\"\",COUNTIF($B$10:$B32,$B32)>1,LEN(TRIM($B32))<>10,ISNUMBER(--MID(TRIM($B32),5,1))),\"-\",MAX(COUNT($A$9:$A31)+1))","v":"-"},null,null,null,""]
[{"$f":"IF(OR($B33=\"\",COUNTIF($B$10:$B33,$B33)>1,LEN(TRIM($B33))<>10,ISNUMBER(--MID(TRIM($B33),5,1))),\"-\",MAX(COUNT($A$9:$A32)+1))","v":"-"},null,null,null,""]
[{"$f":"IF(OR($B34=\"\",COUNTIF($B$10:$B34,$B34)>1,LEN(TRIM($B34))<>10,ISNUMBER(--MID(TRIM($B34),5,1))),\"-\",MAX(COUNT($A$9:$A33)+1))","v":"-"},null,null,null,""]
[{"$f":"IF(OR($B35=\"\",COUNTIF($B$10:$B35,$B35)>1,LEN(TRIM($B35))<>10,ISNUMBER(--MID(TRIM($B35),5,1))),\"-\",MAX(COUNT($A$9:$A34)+1))","v":"-"},null,null,null,""]
[{"$f":"IF(OR($B36=\"\",COUNTIF($B$10:$B36,$B36)>1,LEN(TRIM($B36))<>10,ISNUMBER(--MID(TRIM($B36),5,1))),\"-\",MAX(COUNT($A$9:$A35)+1))","v":"-"},null,null,null,""]
[{"$f":"IF(OR($B37=\"\",COUNTIF($B$10:$B37,$B37)>1,LEN(TRIM($B37))<>10,ISNUMBER(--MID(TRIM($B37),5,1))),\"-\",MAX(COUNT($A$9:$A36)+1))","v":"-"},null,null,null,""]
[{"$f":"IF(OR($B38=\"\",COUNTIF($B$10:$B38,$B38)>1,LEN(TRIM($B38))<>10,ISNUMBER(--MID(TRIM($B38),5,1))),\"-\",MAX(COUNT($A$9:$A37)+1))","v":"-"},null,null,null,""]
[{"$f":"IF(OR($B39=\"\",COUNTIF($B$10:$B39,$B39)>1,LEN(TRIM($B39))<>10,ISNUMBER(--MID(TRIM($B39),5,1))),\"-\",MAX(COUNT($A$9:$A38)+1))","v":"-"},null,null,null,""]
[{"$f":"IF(OR($B40=\"\",COUNTIF($B$10:$B40,$B40)>1,LEN(TRIM($B40))<>10,ISNUMBER(--MID(TRIM($B40),5,1))),\"-\",MAX(COUNT($A$9:$A39)+1))","v":"-"},null,null,null,""]
[{"$f":"IF(OR($B41=\"\",COUNTIF($B$10:$B41,$B41)>1,LEN(TRIM($B41))<>10,ISNUMBER(--MID(TRIM($B41),5,1))),\"-\",MAX(COUNT($A$9:$A40)+1))","v":"-"},null,null,null,""]
[{"$f":"IF(OR($B42=\"\",COUNTIF($B$10:$B42,$B42)>1,LEN(TRIM($B42))<>10,ISNUMBER(--MID(TRIM($B42),5,1))),\"-\",MAX(COUNT($A$9:$A41)+1))","v":"-"},null,null,null,""]
[{"$f":"IF(OR($B43=\"\",COUNTIF($B$10:$B43,$B43)>1,LEN(TRIM($B43))<>10,ISNUMBER(--MID(TRIM($B43),5,1))),\"-\",MAX(COUNT($A$9:$A42)+1))","v":"-"},null,null,null,""]
[{"$f":"IF(OR($B44=\"\",COUNTIF($B$10:$B44,$B44)>1,LEN(TRIM($B44))<>10,ISNUMBER(--MID(TRIM($B44),5,1))),\"-\",MAX(COUNT($A$9:$A43)+1))","v":"-"},null,null,null,""]
[{"$f":"IF(OR($B45=\"\",COUNTIF($B$10:$B45,$B45)>1,LEN(TRIM($B45))<>10,ISNUMBER(--MID(TRIM($B45),5,1))),\"-\",MAX(COUNT($A$9:$A44)+1))","v":"-"},null,null,null,""]
[{"$f":"IF(OR($B46=\"\",COUNTIF($B$10:$B46,$B46)>1,LEN(TRIM($B46))<>10,ISNUMBER(--MID(TRIM($B46),5,1))),\"-\",MAX(COUNT($A$9:$A45)+1))","v":"-"},null,null,null,""]
[{"$f":"IF(OR($B47=\"\",COUNTIF($B$10:$B47,$B47)>1,LEN(TRIM($B47))<>10,ISNUMBER(--MID(TRIM($B47),5,1))),\"-\",MAX(COUNT($A$9:$A46)+1))","v":"-"},null,null,null,""]
[{"$f":"IF(OR($B48=\"\",COUNTIF($B$10:$B48,$B48)>1,LEN(TRIM($B48))<>10,ISNUMBER(--MID(TRIM($B48),5,1))),\"-\",MAX(COUNT($A$9:$A47)+1))","v":"-"},null,null,null,""]
[{"$f":"IF(OR($B49=\"\",COUNTIF($B$10:$B49,$B49)>1,LEN(TRIM($B49))<>10,ISNUMBER(--MID(TRIM($B49),5,1))),\"-\",MAX(COUNT($A$9:$A48)+1))","v":"-"},null,null,null,""]
[{"$f":"IF(OR($B50=\"\",COUNTIF($B$10:$B50,$B50)>1,LEN(TRIM($B50))<>10,ISNUMBER(--MID(TRIM($B50),5,1))),\"-\",MAX(COUNT($A$9:$A49)+1))","v":"-"},null,null,null,""]
[{"$f":"IF(OR($B51=\"\",COUNTIF($B$10:$B51,$B51)>1,LEN(TRIM($B51))<>10,ISNUMBER(--MID(TRIM($B51),5,1))),\"-\",MAX(COUNT($A$9:$A50)+1))","v":"-"},null,null,null,""]
[{"$f":"IF(OR($B52=\"\",COUNTIF($B$10:$B52,$B52)>1,LEN(TRIM($B52))<>10,ISNUMBER(--MID(TRIM($B52),5,1))),\"-\",MAX(COUNT($A$9:$A51)+1))","v":"-"},null,null,null,""]
[{"$f":"IF(OR($B53=\"\",COUNTIF($B$10:$B53,$B53)>1,LEN(TRIM($B53))<>10,ISNUMBER(--MID(TRIM($B53),5,1))),\"-\",MAX(COUNT($A$9:$A52)+1))","v":"-"},null,null,null,""]
[{"$f":"IF(OR($B54=\"\",COUNTIF($B$10:$B54,$B54)>1,LEN(TRIM($B54))<>10,ISNUMBER(--MID(TRIM($B54),5,1))),\"-\",MAX(COUNT($A$9:$A53)+1))","v":"-"},null,null,null,""]
[{"$f":"IF(OR($B55=\"\",COUNTIF($B$10:$B55,$B55)>1,LEN(TRIM($B55))<>10,ISNUMBER(--MID(TRIM($B55),5,1))),\"-\",MAX(COUNT($A$9:$A54)+1))","v":"-"},null,null,null,""]
[{"$f":"IF(OR($B56=\"\",COUNTIF($B$10:$B56,$B56)>1,LEN(TRIM($B56))<>10,ISNUMBER(--MID(TRIM($B56),5,1))),\"-\",MAX(COUNT($A$9:$A55)+1))","v":"-"},null,null,null,""]
[{"$f":"IF(OR($B57=\"\",COUNTIF($B$10:$B57,$B57)>1,LEN(TRIM($B57))<>10,ISNUMBER(--MID(TRIM($B57),5,1))),\"-\",MAX(COUNT($A$9:$A56)+1))","v":"-"},null,null,null,""]
[{"$f":"IF(OR($B58=\"\",COUNTIF($B$10:$B58,$B58)>1,LEN(TRIM($B58))<>10,ISNUMBER(--MID(TRIM($B58),5,1))),\"-\",MAX(COUNT($A$9:$A57)+1))","v":"-"},null,null,null,""]
[{"$f":"IF(OR($B59=\"\",COUNTIF($B$10:$B59,$B59)>1,LEN(TRIM($B59))<>10,ISNUMBER(--MID(TRIM($B59),5,1))),\"-\",MAX(COUNT($A$9:$A58)+1))","v":"-"},null,null,null,""]
[{"$f":"IF(OR($B60=\"\",COUNTIF($B$10:$B60,$B60)>1,LEN(TRIM($B60))<>10,ISNUMBER(--MID(TRIM($B60),5,1))),\"-\",MAX(COUNT($A$9:$A59)+1))","v":"-"},null,null,null,""]
[{"$f":"IF(OR($B61=\"\",COUNTIF($B$10:$B61,$B61)>1,LEN(TRIM($B61))<>10,ISNUMBER(--MID(TRIM($B61),5,1))),\"-\",MAX(COUNT($A$9:$A60)+1))","v":"-"},null,null,null,""]
[{"$f":"IF(OR($B62=\"\",COUNTIF($B$10:$B62,$B62)>1,LEN(TRIM($B62))<>10,ISNUMBER(--MID(TRIM($B62),5,1))),\"-\",MAX(COUNT($A$9:$A61)+1))","v":"-"},null,null,null,""]
[{"$f":"IF(OR($B63=\"\",COUNTIF($B$10:$B63,$B63)>1,LEN(TRIM($B63))<>10,ISNUMBER(--MID(TRIM($B63),5,1))),\"-\",MAX(COUNT($A$9:$A62)+1))","v":"-"},null,null,null,""]
[{"$f":"IF(OR($B64=\"\",COUNTIF($B$10:$B64,$B64)>1,LEN(TRIM($B64))<>10,ISNUMBER(--MID(TRIM($B64),5,1))),\"-\",MAX(COUNT($A$9:$A63)+1))","v":"-"},null,null,null,""]
[{"$f":"IF(OR($B65=\"\",COUNTIF($B$10:$B65,$B65)>1,LEN(TRIM($B65))<>10,ISNUMBER(--MID(TRIM($B65),5,1))),\"-\",MAX(COUNT($A$9:$A64)+1))","v":"-"},null,null,null,""]
[{"$f":"IF(OR($B66=\"\",COUNTIF($B$10:$B66,$B66)>1,LEN(TRIM($B66))<>10,ISNUMBER(--MID(TRIM($B66),5,1))),\"-\",MAX(COUNT($A$9:$A65)+1))","v":"-"},null,null,null,""]
[{"$f":"IF(OR($B67=\"\",COUNTIF($B$10:$B67,$B67)>1,LEN(TRIM($B67))<>10,ISNUMBER(--MID(TRIM($B67),5,1))),\"-\",MAX(COUNT($A$9:$A66)+1))","v":"-"},null,null,null,""]
[{"$f":"IF(OR($B68=\"\",COUNTIF($B$10:$B68,$B68)>1,LEN(TRIM($B68))<>10,ISNUMBER(--MID(TRIM($B68),5,1))),\"-\",MAX(COUNT($A$9:$A67)+1))","v":"-"},null,null,null,""]
[{"$f":"IF(OR($B69=\"\",COUNTIF($B$10:$B69,$B69)>1,LEN(TRIM($B69))<>10,ISNUMBER(--MID(TRIM($B69),5,1))),\"-\",MAX(COUNT($A$9:$A68)+1))","v":"-"},null,null,null,""]
[{"$f":"IF(OR($B70=\"\",COUNTIF($B$10:$B70,$B70)>1,LEN(TRIM($B70))<>10,ISNUMBER(--MID(TRIM($B70),5,1))),\"-\",MAX(COUNT($A$9:$A69)+1))","v":"-"},null,null,null,""]
[{"$f":"IF(OR($B71=\"\",COUNTIF($B$10:$B71,$B71)>1,LEN(TRIM($B71))<>10,ISNUMBER(--MID(TRIM($B71),5,1))),\"-\",MAX(COUNT($A$9:$A70)+1))","v":"-"},null,null,null,""]
[{"$f":"IF(OR($B72=\"\",COUNTIF($B$10:$B72,$B72)>1,LEN(TRIM($B72))<>10,ISNUMBER(--MID(TRIM($B72),5,1))),\"-\",MAX(COUNT($A$9:$A71)+1))","v":"-"},null,null,null,""]
[{"$f":"IF(OR($B73=\"\",COUNTIF($B$10:$B73,$B73)>1,LEN(TRIM($B73))<>10,ISNUMBER(--MID(TRIM($B73),5,1))),\"-\",MAX(COUNT($A$9:$A72)+1))","v":"-"},null,null,null,""]
[{"$f":"IF(OR($B74=\"\",COUNTIF($B$10:$B74,$B74)>1,LEN(TRIM($B74))<>10,ISNUMBER(--MID(TRIM($B74),5,1))),\"-\",MAX(COUNT($A$9:$A73)+1))","v":"-"},null,null,null,""]
[{"$f":"IF(OR($B75=\"\",COUNTIF($B$10:$B75,$B75)>1,LEN(TRIM($B75))<>10,ISNUMBER(--MID(TRIM($B75),5,1))),\"-\",MAX(COUNT($A$9:$A74)+1))","v":"-"},null,null,null,""]
[{"$f":"IF(OR($B76=\"\",COUNTIF($B$10:$B76,$B76)>1,LEN(TRIM($B76))<>10,ISNUMBER(--MID(TRIM($B76),5,1))),\"-\",MAX(COUNT($A$9:$A75)+1))","v":"-"},null,null,null,{"$f":"IF(D76=\"\",\"\",D76-D75)","v":""}]
[{"$f":"IF(OR($B77=\"\",COUNTIF($B$10:$B77,$B77)>1,LEN(TRIM($B77))<>10,ISNUMBER(--MID(TRIM($B77),5,1))),\"-\",MAX(COUNT($A$9:$A76)+1))","v":"-"},null,null,null,""]
[{"$f":"IF(OR($B78=\"\",COUNTIF($B$10:$B78,$B78)>1,LEN(TRIM($B78))<>10,ISNUMBER(--MID(TRIM($B78),5,1))),\"-\",MAX(COUNT($A$9:$A77)+1))","v":"-"},null,null,null,""]
[{"$f":"IF(OR($B79=\"\",COUNTIF($B$10:$B79,$B79)>1,LEN(TRIM($B79))<>10,ISNUMBER(--MID(TRIM($B79),5,1))),\"-\",MAX(COUNT($A$9:$A78)+1))","v":"-"},null,null,null,""]
["รวมของขาย|ของเสีย|เหลือบนเชลฟ์",null,null,null,null,null,{"$f":"SUM(G10:G79)","v":0},0,0,{"$f":"SUM(J10:J79)","v":0},0,0,0,0,0,0,0,0,0,0,0,0,0,0,0,0,0,0,0,0,0,0,0,0,0,0,0,0,0,0,0,0,0,0,0,0,0,0,0,0,0,0,0,0,0,0,0,0,0,0,0,0,0,0,0,0,0,0,0,0,0,0,0,{"$f":"SUM(BV10:BV79)","v":0},0,0,0,0,0,0,0,0,0,0,0,0,0,0,0,0,0,0,0,0,0,0,0,0,0,0,0,0,0,0,0,0,0,0,0,0,0,0,0,0,0,0,0,0,0,0,0,0,0,0,0,0,0,0,0,0,0,0,0,0,0,{"$f":"SUM(EF10:EF79)","v":0},0,0,{"$f":"SUM(EI10:EI79)","v":0},0,0,0,0,0,{"$f":"SUM(EO10:EO79)","v":0},0,0,0,0,0,"รวมเงินเชื่อ","รวมเงินสด","ภาษี","รวมยอดขาย"]
["ของเหลือ",null,null,null,null,null,{"$f":"G80+H80-G9","v":0},null,null,{"$f":"J80+K80-J9","v":0},null,null,{"$f":"M80+N80-M9","v":0},null,null,{"$f":"P80+Q80-P9","v":0},null,null,{"$f":"S80+T80-S9","v":0},null,null,{"$f":"V80+W80-V9","v":0},null,null,{"$f":"Y80+Z80-Y9","v":0},null,null,{"$f":"AB80+AC80-AB9","v":0},null,null,{"$f":"AE80+AF80-AE9","v":0},null,null,{"$f":"AH80+AI80-AH9","v":0},null,null,{"$f":"AK80+AL80-AK9","v":0},null,null,{"$f":"AN80+AO80-AN9","v":0},null,null,{"$f":"AQ80+AR80-AQ9","v":0},null,null,{"$f":"AT80+AU80-AT9","v":0},null,null,{"$f":"AW80+AX80-AW9","v":0},null,null,{"$f":"AZ80+BA80-AZ9","v":0},null,null,{"$f":"BC80+BD80-BC9","v":0},null,null,{"$f":"BF80+BG80-BF9","v":0},null,null,{"$f":"BI80+BJ80-BI9","v":0},null,null,{"$f":"BL80+BM80-BL9","v":0},null,null,{"$f":"BO80+BP80-BO9","v":0},null,null,{"$f":"BR80+BS80-BR9","v":0},null,null,{"$f":"BU80+BV80-BU9","v":0},null,null,{"$f":"BX80+BY80-BX9","v":0},null,null,{"$f":"CA80+CB80-CA9","v":0},null,null,{"$f":"CD80+CE80-CD9","v":0},null,null,{"$f":"CG80+CH80-CG9","v":0},null,null,{"$f":"CJ80+CK80-CJ9","v":0},null,null,{"$f":"CM80+CN80-CM9","v":0},null,null,{"$f":"CP80+CQ80-CP9","v":0},null,null,{"$f":"CS80+CT80-CS9","v":0},null,null,{"$f":"CV80+CW80-CV9","v":0},null,null,{"$f":"CY80+CZ80-CY9","v":0},null,null,{"$f":"DB80+DC80-DB9","v":0},null,null,{"$f":"DE80+DF80-DE9","v":0},null,null,{"$f":"DH80+DI80-DH9","v":0},null,null,{"$f":"DK80+DL80-DK9","v":0},null,null,{"$f":"DN80+DO80-DN9","v":0},null,null,{"$f":"DQ80+DR80-DQ9","v":0},null,null,{"$f":"DT80+DU80-DT9","v":0},null,null,{"$f":"DW80+DX80-DW9","v":0},null,null,{"$f":"DZ80+EA80-DZ9","v":0},null,null,{"$f":"EC80+ED80-EC9","v":0},null,null,{"$f":"EF80+EG80-EF9","v":0},null,null,{"$f":"EI80+EJ80-EI9","v":0},null,null,{"$f":"EL80+EM80-EL9","v":0},null,null,{"$f":"EO80+EP80-EO9","v":0},null,null,{"$f":"ER80+ES80-ER9","v":0},null,null,{"$f":"SUM(EU10:EU79)","v":0},{"$f":"SUM(EV10:EV79)","v":0},{"$f":"SUM(EW10:EW79)","v":0},{"$f":"SUM(EX10:EX79)","v":0}]
["เฉลี่ย",null,null,"เหลือ/เสีย(จริง)",null,null,{"$f":"INDIRECT(\"F\"&ROW($G$87)+ROUNDUP(COLUMNS($G:G)/3,0))","v":0},{"$f":"INDIRECT(\"G\"&ROW($G$87)+ROUNDUP(COLUMNS($G:H)/3,0))","v":0},null,{"$f":"INDIRECT(\"F\"&ROW($G$87)+ROUNDUP(COLUMNS($G:J)/3,0))","v":0},{"$f":"INDIRECT(\"G\"&ROW($G$87)+ROUNDUP(COLUMNS($G:K)/3,0))","v":0},null,{"$f":"INDIRECT(\"F\"&ROW($G$87)+ROUNDUP(COLUMNS($G:M)/3,0))","v":0},{"$f":"INDIRECT(\"G\"&ROW($G$87)+ROUNDUP(COLUMNS($G:N)/3,0))","v":0},null,{"$f":"INDIRECT(\"F\"&ROW($G$87)+ROUNDUP(COLUMNS($G:P)/3,0))","v":0},{"$f":"INDIRECT(\"G\"&ROW($G$87)+ROUNDUP(COLUMNS($G:Q)/3,0))","v":0},null,{"$f":"INDIRECT(\"F\"&ROW($G$87)+ROUNDUP(COLUMNS($G:S)/3,0))","v":0},{"$f":"INDIRECT(\"G\"&ROW($G$87)+ROUNDUP(COLUMNS($G:T)/3,0))","v":0},null,{"$f":"INDIRECT(\"F\"&ROW($G$87)+ROUNDUP(COLUMNS($G:V)/3,0))","v":0},{"$f":"INDIRECT(\"G\"&ROW($G$87)+ROUNDUP(COLUMNS($G:W)/3,0))","v":0},null,{"$f":"INDIRECT(\"F\"&ROW($G$87)+ROUNDUP(COLUMNS($G:Y)/3,0))","v":0},{"$f":"INDIRECT(\"G\"&ROW($G$87)+ROUNDUP(COLUMNS($G:Z)/3,0))","v":0},null,{"$f":"INDIRECT(\"F\"&ROW($G$87)+ROUNDUP(COLUMNS($G:AB)/3,0))","v":0},{"$f":"INDIRECT(\"G\"&ROW($G$87)+ROUNDUP(COLUMNS($G:AC)/3,0))","v":0},null,{"$f":"INDIRECT(\"F\"&ROW($G$87)+ROUNDUP(COLUMNS($G:AE)/3,0))","v":0},{"$f":"INDIRECT(\"G\"&ROW($G$87)+ROUNDUP(COLUMNS($G:AF)/3,0))","v":0},null,{"$f":"INDIRECT(\"F\"&ROW($G$87)+ROUNDUP(COLUMNS($G:AH)/3,0))","v":0},{"$f":"INDIRECT(\"G\"&ROW($G$87)+ROUNDUP(COLUMNS($G:AI)/3,0))","v":0},null,{"$f":"INDIRECT(\"F\"&ROW($G$87)+ROUNDUP(COLUMNS($G:AK)/3,0))","v":0},{"$f":"INDIRECT(\"G\"&ROW($G$87)+ROUNDUP(COLUMNS($G:AL)/3,0))","v":0},null,{"$f":"INDIRECT(\"F\"&ROW($G$87)+ROUNDUP(COLUMNS($G:AN)/3,0))","v":0},{"$f":"INDIRECT(\"G\"&ROW($G$87)+ROUNDUP(COLUMNS($G:AO)/3,0))","v":0},null,{"$f":"INDIRECT(\"F\"&ROW($G$87)+ROUNDUP(COLUMNS($G:AQ)/3,0))","v":0},{"$f":"INDIRECT(\"G\"&ROW($G$87)+ROUNDUP(COLUMNS($G:AR)/3,0))","v":0},null,{"$f":"INDIRECT(\"F\"&ROW($G$87)+ROUNDUP(COLUMNS($G:AT)/3,0))","v":0},{"$f":"INDIRECT(\"G\"&ROW($G$87)+ROUNDUP(COLUMNS($G:AU)/3,0))","v":0},null,{"$f":"INDIRECT(\"F\"&ROW($G$87)+ROUNDUP(COLUMNS($G:AW)/3,0))","v":0},{"$f":"INDIRECT(\"G\"&ROW($G$87)+ROUNDUP(COLUMNS($G:AX)/3,0))","v":0},null,{"$f":"INDIRECT(\"F\"&ROW($G$87)+ROUNDUP(COLUMNS($G:AZ)/3,0))","v":0},{"$f":"INDIRECT(\"G\"&ROW($G$87)+ROUNDUP(COLUMNS($G:BA)/3,0))","v":0},null,{"$f":"INDIRECT(\"F\"&ROW($G$87)+ROUNDUP(COLUMNS($G:BC)/3,0))","v":0},{"$f":"INDIRECT(\"G\"&ROW($G$87)+ROUNDUP(COLUMNS($G:BD)/3,0))","v":0},null,{"$f":"INDIRECT(\"F\"&ROW($G$87)+ROUNDUP(COLUMNS($G:BF)/3,0))","v":0},{"$f":"INDIRECT(\"G\"&ROW($G$87)+ROUNDUP(COLUMNS($G:BG)/3,0))","v":0},null,{"$f":"INDIRECT(\"F\"&ROW($G$87)+ROUNDUP(COLUMNS($G:BI)/3,0))","v":0},{"$f":"INDIRECT(\"G\"&ROW($G$87)+ROUNDUP(COLUMNS($G:BJ)/3,0))","v":0},null,{"$f":"INDIRECT(\"F\"&ROW($G$87)+ROUNDUP(COLUMNS($G:BL)/3,0))","v":0},{"$f":"INDIRECT(\"G\"&ROW($G$87)+ROUNDUP(COLUMNS($G:BM)/3,0))","v":0},null,{"$f":"INDIRECT(\"F\"&ROW($G$87)+ROUNDUP(COLUMNS($G:BO)/3,0))","v":0},{"$f":"INDIRECT(\"G\"&ROW($G$87)+ROUNDUP(COLUMNS($G:BP)/3,0))","v":0},null,{"$f":"INDIRECT(\"F\"&ROW($G$87)+ROUNDUP(COLUMNS($G:BR)/3,0))","v":0},{"$f":"INDIRECT(\"G\"&ROW($G$87)+ROUNDUP(COLUMNS($G:BS)/3,0))","v":0},null,{"$f":"INDIRECT(\"F\"&ROW($G$87)+ROUNDUP(COLUMNS($G:BU)/3,0))","v":0},{"$f":"INDIRECT(\"G\"&ROW($G$87)+ROUNDUP(COLUMNS($G:BV)/3,0))","v":0},null,{"$f":"INDIRECT(\"F\"&ROW($G$87)+ROUNDUP(COLUMNS($G:BX)/3,0))","v":0},{"$f":"INDIRECT(\"G\"&ROW($G$87)+ROUNDUP(COLUMNS($G:BY)/3,0))","v":0},null,{"$f":"INDIRECT(\"F\"&ROW($G$87)+ROUNDUP(COLUMNS($G:CA)/3,0))","v":0},{"$f":"INDIRECT(\"G\"&ROW($G$87)+ROUNDUP(COLUMNS($G:CB)/3,0))","v":0},null,{"$f":"INDIRECT(\"F\"&ROW($G$87)+ROUNDUP(COLUMNS($G:CD)/3,0))","v":0},{"$f":"INDIRECT(\"G\"&ROW($G$87)+ROUNDUP(COLUMNS($G:CE)/3,0))","v":0},null,{"$f":"INDIRECT(\"F\"&ROW($G$87)+ROUNDUP(COLUMNS($G:CG)/3,0))","v":0},{"$f":"INDIRECT(\"G\"&ROW($G$87)+ROUNDUP(COLUMNS($G:CH)/3,0))","v":0},null,{"$f":"INDIRECT(\"F\"&ROW($G$87)+ROUNDUP(COLUMNS($G:CJ)/3,0))","v":0},{"$f":"INDIRECT(\"G\"&ROW($G$87)+ROUNDUP(COLUMNS($G:CK)/3,0))","v":0},null,{"$f":"INDIRECT(\"F\"&ROW($G$87)+ROUNDUP(COLUMNS($G:CM)/3,0))","v":0},{"$f":"INDIRECT(\"G\"&ROW($G$87)+ROUNDUP(COLUMNS($G:CN)/3,0))","v":0},null,{"$f":"INDIRECT(\"F\"&ROW($G$87)+ROUNDUP(COLUMNS($G:CP)/3,0))","v":0},{"$f":"INDIRECT(\"G\"&ROW($G$87)+ROUNDUP(COLUMNS($G:CQ)/3,0))","v":0},null,{"$f":"INDIRECT(\"F\"&ROW($G$87)+ROUNDUP(COLUMNS($G:CS)/3,0))","v":0},{"$f":"INDIRECT(\"G\"&ROW($G$87)+ROUNDUP(COLUMNS($G:CT)/3,0))","v":0},null,{"$f":"INDIRECT(\"F\"&ROW($G$87)+ROUNDUP(COLUMNS($G:CV)/3,0))","v":0},{"$f":"INDIRECT(\"G\"&ROW($G$87)+ROUNDUP(COLUMNS($G:CW)/3,0))","v":0},null,{"$f":"INDIRECT(\"F\"&ROW($G$87)+ROUNDUP(COLUMNS($G:CY)/3,0))","v":0},{"$f":"INDIRECT(\"G\"&ROW($G$87)+ROUNDUP(COLUMNS($G:CZ)/3,0))","v":0},null,{"$f":"INDIRECT(\"F\"&ROW($G$87)+ROUNDUP(COLUMNS($G:DB)/3,0))","v":0},{"$f":"INDIRECT(\"G\"&ROW($G$87)+ROUNDUP(COLUMNS($G:DC)/3,0))","v":0},null,{"$f":"INDIRECT(\"F\"&ROW($G$87)+ROUNDUP(COLUMNS($G:DE)/3,0))","v":0},{"$f":"INDIRECT(\"G\"&ROW($G$87)+ROUNDUP(COLUMNS($G:DF)/3,0))","v":0},null,{"$f":"INDIRECT(\"F\"&ROW($G$87)+ROUNDUP(COLUMNS($G:DH)/3,0))","v":0},{"$f":"INDIRECT(\"G\"&ROW($G$87)+ROUNDUP(COLUMNS($G:DI)/3,0))","v":0},null,{"$f":"INDIRECT(\"F\"&ROW($G$87)+ROUNDUP(COLUMNS($G:DK)/3,0))","v":0},{"$f":"INDIRECT(\"G\"&ROW($G$87)+ROUNDUP(COLUMNS($G:DL)/3,0))","v":0},null,{"$f":"INDIRECT(\"F\"&ROW($G$87)+ROUNDUP(COLUMNS($G:DN)/3,0))","v":0},{"$f":"INDIRECT(\"G\"&ROW($G$87)+ROUNDUP(COLUMNS($G:DO)/3,0))","v":0},null,{"$f":"INDIRECT(\"F\"&ROW($G$87)+ROUNDUP(COLUMNS($G:DQ)/3,0))","v":0},{"$f":"INDIRECT(\"G\"&ROW($G$87)+ROUNDUP(COLUMNS($G:DR)/3,0))","v":0},null,{"$f":"INDIRECT(\"F\"&ROW($G$87)+ROUNDUP(COLUMNS($G:DT)/3,0))","v":0},{"$f":"INDIRECT(\"G\"&ROW($G$87)+ROUNDUP(COLUMNS($G:DU)/3,0))","v":0},null,{"$f":"INDIRECT(\"F\"&ROW($G$87)+ROUNDUP(COLUMNS($G:DW)/3,0))","v":0},{"$f":"INDIRECT(\"G\"&ROW($G$87)+ROUNDUP(COLUMNS($G:DX)/3,0))","v":0},null,{"$f":"INDIRECT(\"F\"&ROW($G$87)+ROUNDUP(COLUMNS($G:DZ)/3,0))","v":0},{"$f":"INDIRECT(\"G\"&ROW($G$87)+ROUNDUP(COLUMNS($G:EA)/3,0))","v":0},null,{"$f":"INDIRECT(\"F\"&ROW($G$87)+ROUNDUP(COLUMNS($G:EC)/3,0))","v":0},{"$f":"INDIRECT(\"G\"&ROW($G$87)+ROUNDUP(COLUMNS($G:ED)/3,0))","v":0},null,{"$f":"INDIRECT(\"F\"&ROW($G$87)+ROUNDUP(COLUMNS($G:EF)/3,0))","v":0},{"$f":"INDIRECT(\"G\"&ROW($G$87)+ROUNDUP(COLUMNS($G:EG)/3,0))","v":0},null,{"$f":"INDIRECT(\"F\"&ROW($G$87)+ROUNDUP(COLUMNS($G:EI)/3,0))","v":0},{"$f":"INDIRECT(\"G\"&ROW($G$87)+ROUNDUP(COLUMNS($G:EJ)/3,0))","v":0},null,{"$f":"INDIRECT(\"F\"&ROW($G$87)+ROUNDUP(COLUMNS($G:EL)/3,0))","v":0},{"$f":"INDIRECT(\"G\"&ROW($G$87)+ROUNDUP(COLUMNS($G:EM)/3,0))","v":0},null,{"$f":"INDIRECT(\"F\"&ROW($G$87)+ROUNDUP(COLUMNS($G:EO)/3,0))","v":0},{"$f":"INDIRECT(\"G\"&ROW($G$87)+ROUNDUP(COLUMNS($G:EP)/3,0))","v":0},null,{"$f":"INDIRECT(\"F\"&ROW($G$87)+ROUNDUP(COLUMNS($G:ER)/3,0))","v":0},{"$f":"INDIRECT(\"G\"&ROW($G$87)+ROUNDUP(COLUMNS($G:ES)/3,0))","v":0},null,{"$f":"EU81+EV81","v":0}]
["เวลากลับถึงสำนักงานเช็คของเสีย",null,null,{"$f":"D139","v":"00:00:00"},null,"ผลต่าง",{"$f":"G82+H82+G80-G9","v":0},null,null,{"$f":"J82+K82+J80-J9","v":0},null,null,{"$f":"M82+N82+M80-M9","v":0},null,null,{"$f":"P82+Q82+P80-P9","v":0},null,null,{"$f":"S82+T82+S80-S9","v":0},null,null,{"$f":"V82+W82+V80-V9","v":0},null,null,{"$f":"Y82+Z82+Y80-Y9","v":0},null,null,{"$f":"AB82+AC82+AB80-AB9","v":0},null,null,{"$f":"AE82+AF82+AE80-AE9","v":0},null,null,{"$f":"AH82+AI82+AH80-AH9","v":0},null,null,{"$f":"AK82+AL82+AK80-AK9","v":0},null,null,{"$f":"AN82+AO82+AN80-AN9","v":0},null,null,{"$f":"AQ82+AR82+AQ80-AQ9","v":0},null,null,{"$f":"AT82+AU82+AT80-AT9","v":0},null,null,{"$f":"AW82+AX82+AW80-AW9","v":0},null,null,{"$f":"AZ82+BA82+AZ80-AZ9","v":0},null,null,{"$f":"BC82+BD82+BC80-BC9","v":0},null,null,{"$f":"BF82+BG82+BF80-BF9","v":0},null,null,{"$f":"BI82+BJ82+BI80-BI9","v":0},null,null,{"$f":"BL82+BM82+BL80-BL9","v":0},null,null,{"$f":"BO82+BP82+BO80-BO9","v":0},null,null,{"$f":"BR82+BS82+BR80-BR9","v":0},null,null,{"$f":"BU82+BV82+BU80-BU9","v":0},null,null,{"$f":"BX82+BY82+BX80-BX9","v":0},null,null,{"$f":"CA82+CB82+CA80-CA9","v":0},null,null,{"$f":"CD82+CE82+CD80-CD9","v":0},null,null,{"$f":"CG82+CH82+CG80-CG9","v":0},null,null,{"$f":"CJ82+CK82+CJ80-CJ9","v":0},null,null,{"$f":"CM82+CN82+CM80-CM9","v":0},null,null,{"$f":"CP82+CQ82+CP80-CP9","v":0},null,null,{"$f":"CS82+CT82+CS80-CS9","v":0},null,null,{"$f":"CV82+CW82+CV80-CV9","v":0},null,null,{"$f":"CY82+CZ82+CY80-CY9","v":0},null,null,{"$f":"DB82+DC82+DB80-DB9","v":0},null,null,{"$f":"DE82+DF82+DE80-DE9","v":0},null,null,{"$f":"DH82+DI82+DH80-DH9","v":0},null,null,{"$f":"DK82+DL82+DK80-DK9","v":0},null,null,{"$f":"DN82+DO82+DN80-DN9","v":0},null,null,{"$f":"DQ82+DR82+DQ80-DQ9","v":0},null,null,{"$f":"DT82+DU82+DT80-DT9","v":0},null,null,{"$f":"DW82+DX82+DW80-DW9","v":0},null,null,{"$f":"DZ82+EA82+DZ80-DZ9","v":0},null,null,{"$f":"EC82+ED82+EC80-EC9","v":0},null,null,{"$f":"EF82+EG82+EF80-EF9","v":0},null,null,{"$f":"EI82+EJ82+EI80-EI9","v":0},null,null,{"$f":"EL82+EM82+EL80-EL9","v":0},null,null,{"$f":"EO82+EP82+EO80-EO9","v":0},null,null,{"$f":"ER82+ES82+ER80-ER9","v":0}]
["เป็นเงิน",null,null,null,null,null,{"$f":"G8*G83","v":0},null,null,{"$f":"J8*J83","v":0},null,null,{"$f":"M8*M83","v":0},null,null,{"$f":"P8*P83","v":0},null,null,{"$f":"S8*S83","v":0},null,null,{"$f":"V8*V83","v":0},null,null,{"$f":"Y8*Y83","v":0},null,null,{"$f":"AB8*AB83","v":0},null,null,{"$f":"AE8*AE83","v":0},null,null,{"$f":"AH8*AH83","v":0},null,null,{"$f":"AK8*AK83","v":0},null,null,{"$f":"AN8*AN83","v":0},null,null,{"$f":"AQ8*AQ83","v":0},null,null,{"$f":"AT8*AT83","v":0},null,null,{"$f":"AW8*AW83","v":0},null,null,{"$f":"AZ8*AZ83","v":0},null,null,{"$f":"BC8*BC83","v":0},null,null,{"$f":"BF8*BF83","v":0},null,null,{"$f":"BI8*BI83","v":0},null,null,{"$f":"BL8*BL83","v":0},null,null,{"$f":"BO8*BO83","v":0},null,null,{"$f":"BR8*BR83","v":0},null,null,{"$f":"BU8*BU83","v":0},null,null,{"$f":"BX8*BX83","v":0},null,null,{"$f":"CA8*CA83","v":0},null,null,{"$f":"CD8*CD83","v":0},null,null,{"$f":"CG8*CG83","v":0},null,null,{"$f":"CJ8*CJ83","v":0},null,null,{"$f":"CM8*CM83","v":0},null,null,{"$f":"CP8*CP83","v":0},null,null,{"$f":"CS8*CS83","v":0},null,null,{"$f":"CV8*CV83","v":0},null,null,{"$f":"CY8*CY83","v":0},null,null,{"$f":"DB8*DB83","v":0},null,null,{"$f":"DE8*DE83","v":0},null,null,{"$f":"DH8*DH83","v":0},null,null,{"$f":"DK8*DK83","v":0},null,null,{"$f":"DN8*DN83","v":0},null,null,{"$f":"DQ8*DQ83","v":0},null,null,{"$f":"DT8*DT83","v":0},null,null,{"$f":"DW8*DW83","v":0},null,null,0,null,null,{"$f":"EC8*EC83","v":0},null,null,{"$f":"EF8*EF83","v":0},null,null,{"$f":"EI8*EI83","v":0},null,null,{"$f":"EL8*EL83","v":0},null,null,{"$f":"EO8*EO83","v":0},null,null,{"$f":"ER8*ER83","v":0},null,null,{"$f":"$AP$98","v":0}]
[null,null,null,"ผู้จัดทำ……………………………………………………………………",null,null,null,null,null,null,null,null,null,null,null,null,null,null,null,null,null,null,null,"ผู้ตรวจ(ผจก.)………………………………………………………………………………."]
[null,null,"ใบจ่ายสินค้า",null,null,null,null,null,null,null,null,null,null,null,null,null,null,{"$f":"IF(ISODD(COLUMN()),MAX($F$86:Q$86)+1,\"\")","v":""}]
["ราคา","ลำดับ","รายการ","ยกมา","เบิก","เหลือ","เสีย","โอนเข้า","โอนออก","ชำรุด","รวม",null,"ขาย",null,"ขาด/เกิน",null,"บาท",null,null,null,"ขายได้",null,"ควรเบิก",null,"หมายเหตุ",null,null,null,"เสีย PDA","เสียจริง","เหลือ PDA","ผลต่าง","เหลือลูกค้า","หมายเหตุ",null,null,null,null,"Price","Quantity","Baht","Deduct"]
[{"$f":"IF(B88=\"\",0,INDEX(Price_List,ROWS($88:88)))","v":20},{"$f":"IF($C88=\"\",\"\",COUNTA($C$88:$C88))","v":1},{"$f":"IF(INDEX(INDIRECT(\"Product_List\"),ROWS($88:88))=\"\",\"\",INDEX(INDIRECT(\"Product_List\"),ROWS($88:88)))","v":"01-ขนมปังหมูหยองน้ำสลัด"},{"$f":"ยอดยกมา","v":0},null,null,null,null,null,null,{"$f":"D88+E88+J88-I88+H88","v":0},null,{"$f":"INDIRECT(ADDRESS(ROW(A$80),ROW()-ROW(A$80)+(ROWS($88:88)-1)*2-1,4))","v":0},null,{"$f":"F88+G88+M88+J88-K88","v":0},null,{"$f":"O88*A88","v":0},null,null,null,{"$f":"D88+E88-F88-G88","v":0},null,{"$f":"U88*6%+U88","v":0},null,null,null,null,null,{"$f":"INDIRECT(ADDRESS(ROW(A$80),ROW()-ROW(A$80)+(ROWS($88:88)-1)*2,4))","v":0},{"$f":"$G88","v":0},null,{"$f":"$F88-$AE88","v":0},{"$f":"INDIRECT(ADDRESS(ROW(A$80),ROW()-ROW(A$80)+(ROWS($88:88)-1)*2+1,4))","v":0},null,null,null,null,null,10,{"$f":"SUMPRODUCT(($A$88:$A$135=$AM88)*(($F$88:$F$135)+($G$88:$G$135)+($M$88:$M$135)+($J$88:$J$135)-($K$88:$K$135)))","v":0},{"$f":"AM88*AN88","v":0},{"$f":"IF(AO88<0,AO88,0)","v":0}]
[{"$f":"IF(B89=\"\",0,INDEX(Price_List,ROWS($88:89)))","v":20},{"$f":"IF($C89=\"\",\"\",COUNTA($C$88:$C89))","v":2},{"$f":"IF(INDEX(INDIRECT(\"Product_List\"),ROWS($88:89))=\"\",\"\",INDEX(INDIRECT(\"Product_List\"),ROWS($88:89)))","v":"02-ขนมปังหมูหยองน้ำพริกเผา"},{"$f":"ยอดยกมา","v":0},null,null,null,null,null,null,{"$f":"D89+E89+J89-I89+H89","v":0},null,{"$f":"INDIRECT(ADDRESS(ROW(A$80),ROW()-ROW(A$80)+(ROWS($88:89)-1)*2-1,4))","v":0},null,{"$f":"F89+G89+M89+J89-K89","v":0},null,{"$f":"O89*A89","v":0},null,null,null,{"$f":"D89+E89-F89-G89","v":0},null,{"$f":"U89*6%+U89","v":0},null,null,null,null,null,{"$f":"INDIRECT(ADDRESS(ROW(A$80),ROW()-ROW(A$80)+(ROWS($88:89)-1)*2,4))","v":0},{"$f":"$G89","v":0},null,{"$f":"$F89-$AE89","v":0},{"$f":"INDIRECT(ADDRESS(ROW(A$80),ROW()-ROW(A$80)+(ROWS($88:89)-1)*2+1,4))","v":0},null,null,null,null,null,12,0,{"$f":"AM89*AN89","v":0},{"$f":"IF(AO89<0,AO89,0)","v":0}]
[{"$f":"IF(B90=\"\",0,INDEX(Price_List,ROWS($88:90)))","v":20},{"$f":"IF($C90=\"\",\"\",COUNTA($C$88:$C90))","v":3},{"$f":"IF(INDEX(INDIRECT(\"Product_List\"),ROWS($88:90))=\"\",\"\",INDEX(INDIRECT(\"Product_List\"),ROWS($88:90)))","v":"03-ขนมปังไก่หยองน้ำสลัด"},{"$f":"ยอดยกมา","v":0},null,null,null,null,null,null,0,null,{"$f":"INDIRECT(ADDRESS(ROW(A$80),ROW()-ROW(A$80)+(ROWS($88:90)-1)*2-1,4))","v":0},null,0,null,0,null,null,null,0,null,0,null,null,null,null,null,{"$f":"INDIRECT(ADDRESS(ROW(A$80),ROW()-ROW(A$80)+(ROWS($88:90)-1)*2,4))","v":0},0,null,0,{"$f":"INDIRECT(ADDRESS(ROW(A$80),ROW()-ROW(A$80)+(ROWS($88:90)-1)*2+1,4))","v":0},null,null,null,null,null,13,0,{"$f":"AM90*AN90","v":0},{"$f":"IF(AO90<0,AO90,0)","v":0}]
[{"$f":"IF(B91=\"\",0,INDEX(Price_List,ROWS($88:91)))","v":15},{"$f":"IF($C91=\"\",\"\",COUNTA($C$88:$C91))","v":4},{"$f":"IF(INDEX(INDIRECT(\"Product_List\"),ROWS($88:91))=\"\",\"\",INDEX(INDIRECT(\"Product_List\"),ROWS($88:91)))","v":"04-ขนมปังไส้ครีมสลัด"},{"$f":"ยอดยกมา","v":0},null,null,null,null,null,null,0,null,{"$f":"INDIRECT(ADDRESS(ROW(A$80),ROW()-ROW(A$80)+(ROWS($88:91)-1)*2-1,4))","v":0},null,{"$f":"F91+G91+M91+J91-K91","v":0},null,0,null,null,null,0,null,0,null,null,null,null,null,{"$f":"INDIRECT(ADDRESS(ROW(A$80),ROW()-ROW(A$80)+(ROWS($88:91)-1)*2,4))","v":0},0,null,0,{"$f":"INDIRECT(ADDRESS(ROW(A$80),ROW()-ROW(A$80)+(ROWS($88:91)-1)*2+1,4))","v":0},null,null,null,null,null,15,0,0,0]
[{"$f":"IF(B92=\"\",0,INDEX(Price_List,ROWS($88:92)))","v":15},{"$f":"IF($C92=\"\",\"\",COUNTA($C$88:$C92))","v":5},{"$f":"IF(INDEX(INDIRECT(\"Product_List\"),ROWS($88:92))=\"\",\"\",INDEX(INDIRECT(\"Product_List\"),ROWS($88:92)))","v":"05-ขนมปังเนยสด"},{"$f":"ยอดยกมา","v":0},null,null,null,null,null,null,0,null,{"$f":"INDIRECT(ADDRESS(ROW(A$80),ROW()-ROW(A$80)+(ROWS($88:92)-1)*2-1,4))","v":0},null,0,null,0,null,null,null,0,null,0,null,null,null,null,null,{"$f":"INDIRECT(ADDRESS(ROW(A$80),ROW()-ROW(A$80)+(ROWS($88:92)-1)*2,4))","v":0},0,null,0,{"$f":"INDIRECT(ADDRESS(ROW(A$80),ROW()-ROW(A$80)+(ROWS($88:92)-1)*2+1,4))","v":0},null,null,null,null,null,16,0,0,0]
[{"$f":"IF(B93=\"\",0,INDEX(Price_List,ROWS($88:93)))","v":10},{"$f":"IF($C93=\"\",\"\",COUNTA($C$88:$C93))","v":6},{"$f":"IF(INDEX(INDIRECT(\"Product_List\"),ROWS($88:93))=\"\",\"\",INDEX(INDIRECT(\"Product_List\"),ROWS($88:93)))","v":"06-ขนมปังไส้สังขยาเล็ก"},{"$f":"ยอดยกมา","v":0},null,null,null,null,null,null,0,null,{"$f":"INDIRECT(ADDRESS(ROW(A$80),ROW()-ROW(A$80)+(ROWS($88:93)-1)*2-1,4))","v":0},null,0,null,0,null,null,null,0,null,0,null,null,null,null,null,{"$f":"INDIRECT(ADDRESS(ROW(A$80),ROW()-ROW(A$80)+(ROWS($88:93)-1)*2,4))","v":0},0,null,0,{"$f":"INDIRECT(ADDRESS(ROW(A$80),ROW()-ROW(A$80)+(ROWS($88:93)-1)*2+1,4))","v":0},null,null,null,null,null,18,0,0,0]
[{"$f":"IF(B94=\"\",0,INDEX(Price_List,ROWS($88:94)))","v":10},{"$f":"IF($C94=\"\",\"\",COUNTA($C$88:$C94))","v":7},{"$f":"IF(INDEX(INDIRECT(\"Product_List\"),ROWS($88:94))=\"\",\"\",INDEX(INDIRECT(\"Product_List\"),ROWS($88:94)))","v":"07-ขนมปังไส้เผือก"},{"$f":"ยอดยกมา","v":0},null,null,null,null,null,null,0,null,{"$f":"INDIRECT(ADDRESS(ROW(A$80),ROW()-ROW(A$80)+(ROWS($88:94)-1)*2-1,4))","v":0},null,0,null,0,null,null,null,0,null,0,null,null,null,null,null,{"$f":"INDIRECT(ADDRESS(ROW(A$80),ROW()-ROW(A$80)+(ROWS($88:94)-1)*2,4))","v":0},0,null,0,{"$f":"INDIRECT(ADDRESS(ROW(A$80),ROW()-ROW(A$80)+(ROWS($88:94)-1)*2+1,4))","v":0},null,null,null,null,null,20,0,0,0]
[{"$f":"IF(B95=\"\",0,INDEX(Price_List,ROWS($88:95)))","v":10},{"$f":"IF($C95=\"\",\"\",COUNTA($C$88:$C95))","v":8},{"$f":"IF(INDEX(INDIRECT(\"Product_List\"),ROWS($88:95))=\"\",\"\",INDEX(INDIRECT(\"Product_List\"),ROWS($88:95)))","v":"08-ขนมปังไส้ถั่วแดง"},{"$f":"ยอดยกมา","v":0},null,null,null,null,null,null,0,null,{"$f":"INDIRECT(ADDRESS(ROW(A$80),ROW()-ROW(A$80)+(ROWS($88:95)-1)*2-1,4))","v":0},null,0,null,0,null,null,null,0,null,0,null,null,null,null,null,{"$f":"INDIRECT(ADDRESS(ROW(A$80),ROW()-ROW(A$80)+(ROWS($88:95)-1)*2,4))","v":0},0,null,0,{"$f":"INDIRECT(ADDRESS(ROW(A$80),ROW()-ROW(A$80)+(ROWS($88:95)-1)*2+1,4))","v":0},null,null,null,null,null,22,0,0,0]
[{"$f":"IF(B96=\"\",0,INDEX(Price_List,ROWS($88:96)))","v":10},{"$f":"IF($C96=\"\",\"\",COUNTA($C$88:$C96))","v":9},{"$f":"IF(INDEX(INDIRECT(\"Product_List\"),ROWS($88:96))=\"\",\"\",INDEX(INDIRECT(\"Product_List\"),ROWS($88:96)))","v":"09-ขนมปังไส้ถั่วดำ"},{"$f":"ยอดยกมา","v":0},null,null,null,null,null,null,0,null,{"$f":"INDIRECT(ADDRESS(ROW(A$80),ROW()-ROW(A$80)+(ROWS($88:96)-1)*2-1,4))","v":0},null,0,null,0,null,null,null,0,null,0,null,null,null,null,null,{"$f":"INDIRECT(ADDRESS(ROW(A$80),ROW()-ROW(A$80)+(ROWS($88:96)-1)*2,4))","v":0},0,null,0,{"$f":"INDIRECT(ADDRESS(ROW(A$80),ROW()-ROW(A$80)+(ROWS($88:96)-1)*2+1,4))","v":0},null,null,null,null,null,25,0,0,0]
[{"$f":"IF(B97=\"\",0,INDEX(Price_List,ROWS($88:97)))","v":10},{"$f":"IF($C97=\"\",\"\",COUNTA($C$88:$C97))","v":10},{"$f":"IF(INDEX(INDIRECT(\"Product_List\"),ROWS($88:97))=\"\",\"\",INDEX(INDIRECT(\"Product_List\"),ROWS($88:97)))","v":"10-ขนมปังไส้มันม่วง"},{"$f":"ยอดยกมา","v":0},null,null,null,null,null,null,0,null,{"$f":"INDIRECT(ADDRESS(ROW(A$80),ROW()-ROW(A$80)+(ROWS($88:97)-1)*2-1,4))","v":0},null,0,null,0,null,null,null,0,null,0,null,null,null,null,null,{"$f":"INDIRECT(ADDRESS(ROW(A$80),ROW()-ROW(A$80)+(ROWS($88:97)-1)*2,4))","v":0},0,null,0,{"$f":"INDIRECT(ADDRESS(ROW(A$80),ROW()-ROW(A$80)+(ROWS($88:97)-1)*2+1,4))","v":0},null,null,null,null,null,42,0,0,0]
[{"$f":"IF(B98=\"\",0,INDEX(Price_List,ROWS($88:98)))","v":15},{"$f":"IF($C98=\"\",\"\",COUNTA($C$88:$C98))","v":11},{"$f":"IF(INDEX(INDIRECT(\"Product_List\"),ROWS($88:98))=\"\",\"\",INDEX(INDIRECT(\"Product_List\"),ROWS($88:98)))","v":"11-เค้กกล้วยหอม"},{"$f":"ยอดยกมา","v":0},null,null,null,null,null,null,0,null,{"$f":"INDIRECT(ADDRESS(ROW(A$80),ROW()-ROW(A$80)+(ROWS($88:98)-1)*2-1,4))","v":0},null,0,null,0,null,null,null,0,null,0,null,null,null,null,null,{"$f":"INDIRECT(ADDRESS(ROW(A$80),ROW()-ROW(A$80)+(ROWS($88:98)-1)*2,4))","v":0},0,null,0,{"$f":"INDIRECT(ADDRESS(ROW(A$80),ROW()-ROW(A$80)+(ROWS($88:98)-1)*2+1,4))","v":0},null,null,null,null,null,"Total Deduct",null,null,{"$f":"SUM($AP$88:$AP$97)","v":0}]
[{"$f":"IF(B99=\"\",0,INDEX(Price_List,ROWS($88:99)))","v":15},{"$f":"IF($C99=\"\",\"\",COUNTA($C$88:$C99))","v":12},{"$f":"IF(INDEX(INDIRECT(\"Product_List\"),ROWS($88:99))=\"\",\"\",INDEX(INDIRECT(\"Product_List\"),ROWS($88:99)))","v":"12-เค้กบัตเตอร์"},{"$f":"ยอดยกมา","v":0},null,null,null,null,null,null,0,null,{"$f":"INDIRECT(ADDRESS(ROW(A$80),ROW()-ROW(A$80)+(ROWS($88:99)-1)*2-1,4))","v":0},null,0,null,0,null,null,null,0,null,0,null,null,null,null,null,{"$f":"INDIRECT(ADDRESS(ROW(A$80),ROW()-ROW(A$80)+(ROWS($88:99)-1)*2,4))","v":0},0,null,0,{"$f":"INDIRECT(ADDRESS(ROW(A$80),ROW()-ROW(A$80)+(ROWS($88:99)-1)*2+1,4))","v":0}]
[{"$f":"IF(B100=\"\",0,INDEX(Price_List,ROWS($88:100)))","v":15},{"$f":"IF($C100=\"\",\"\",COUNTA($C$88:$C100))","v":13},{"$f":"IF(INDEX(INDIRECT(\"Product_List\"),ROWS($88:100))=\"\",\"\",INDEX(INDIRECT(\"Product_List\"),ROWS($88:100)))","v":"13-ขนมปังโรลถั่วแดง"},{"$f":"ยอดยกมา","v":0},null,null,null,null,null,null,0,null,{"$f":"INDIRECT(ADDRESS(ROW(A$80),ROW()-ROW(A$80)+(ROWS($88:100)-1)*2-1,4))","v":0},null,0,null,0,null,null,null,0,null,0,null,null,null,null,null,{"$f":"INDIRECT(ADDRESS(ROW(A$80),ROW()-ROW(A$80)+(ROWS($88:100)-1)*2,4))","v":0},0,null,0,{"$f":"INDIRECT(ADDRESS(ROW(A$80),ROW()-ROW(A$80)+(ROWS($88:100)-1)*2+1,4))","v":0}]
[{"$f":"IF(B101=\"\",0,INDEX(Price_List,ROWS($88:101)))","v":15},{"$f":"IF($C101=\"\",\"\",COUNTA($C$88:$C101))","v":14},{"$f":"IF(INDEX(INDIRECT(\"Product_List\"),ROWS($88:101))=\"\",\"\",INDEX(INDIRECT(\"Product_List\"),ROWS($88:101)))","v":"14-ขนมปังไส้สังขยาใหญ่"},{"$f":"ยอดยกมา","v":0},null,null,null,null,null,null,0,null,{"$f":"INDIRECT(ADDRESS(ROW(A$80),ROW()-ROW(A$80)+(ROWS($88:101)-1)*2-1,4))","v":0},null,0,null,0,null,null,null,0,null,0,null,null,null,null,null,{"$f":"INDIRECT(ADDRESS(ROW(A$80),ROW()-ROW(A$80)+(ROWS($88:101)-1)*2,4))","v":0},0,null,0,{"$f":"INDIRECT(ADDRESS(ROW(A$80),ROW()-ROW(A$80)+(ROWS($88:101)-1)*2+1,4))","v":0}]
[{"$f":"IF(B102=\"\",0,INDEX(Price_List,ROWS($88:102)))","v":42},{"$f":"IF($C102=\"\",\"\",COUNTA($C$88:$C102))","v":15},{"$f":"IF(INDEX(INDIRECT(\"Product_List\"),ROWS($88:102))=\"\",\"\",INDEX(INDIRECT(\"Product_List\"),ROWS($88:102)))","v":"15-ขนมปังชนิดแผ่น(480กรัม)"},{"$f":"ยอดยกมา","v":0},null,null,null,null,null,null,0,null,{"$f":"INDIRECT(ADDRESS(ROW(A$80),ROW()-ROW(A$80)+(ROWS($88:102)-1)*2-1,4))","v":0},null,0,null,0,null,null,null,0,null,0,null,null,null,null,null,{"$f":"INDIRECT(ADDRESS(ROW(A$80),ROW()-ROW(A$80)+(ROWS($88:102)-1)*2,4))","v":0},0,null,0,{"$f":"INDIRECT(ADDRESS(ROW(A$80),ROW()-ROW(A$80)+(ROWS($88:102)-1)*2+1,4))","v":0}]
[{"$f":"IF(B103=\"\",0,INDEX(Price_List,ROWS($88:103)))","v":12},{"$f":"IF($C103=\"\",\"\",COUNTA($C$88:$C103))","v":16},{"$f":"IF(INDEX(INDIRECT(\"Product_List\"),ROWS($88:103))=\"\",\"\",INDEX(INDIRECT(\"Product_List\"),ROWS($88:103)))","v":"16-โมจิไส้ถั่ว"},{"$f":"ยอดยกมา","v":0},null,null,null,null,null,null,0,null,{"$f":"INDIRECT(ADDRESS(ROW(A$80),ROW()-ROW(A$80)+(ROWS($88:103)-1)*2-1,4))","v":0},null,0,null,0,null,null,null,0,null,0,null,null,null,null,null,{"$f":"INDIRECT(ADDRESS(ROW(A$80),ROW()-ROW(A$80)+(ROWS($88:103)-1)*2,4))","v":0},0,null,0,{"$f":"INDIRECT(ADDRESS(ROW(A$80),ROW()-ROW(A$80)+(ROWS($88:103)-1)*2+1,4))","v":0}]
[{"$f":"IF(B104=\"\",0,INDEX(Price_List,ROWS($88:104)))","v":12},{"$f":"IF($C104=\"\",\"\",COUNTA($C$88:$C104))","v":17},{"$f":"IF(INDEX(INDIRECT(\"Product_List\"),ROWS($88:104))=\"\",\"\",INDEX(INDIRECT(\"Product_List\"),ROWS($88:104)))","v":"17-โมจิไส้เผือก"},{"$f":"ยอดยกมา","v":0},null,null,null,null,null,null,0,null,{"$f":"INDIRECT(ADDRESS(ROW(A$80),ROW()-ROW(A$80)+(ROWS($88:104)-1)*2-1,4))","v":0},null,0,null,0,null,null,null,0,null,0,null,null,null,null,null,{"$f":"INDIRECT(ADDRESS(ROW(A$80),ROW()-ROW(A$80)+(ROWS($88:104)-1)*2,4))","v":0},0,null,0,{"$f":"INDIRECT(ADDRESS(ROW(A$80),ROW()-ROW(A$80)+(ROWS($88:104)-1)*2+1,4))","v":0}]
[{"$f":"IF(B105=\"\",0,INDEX(Price_List,ROWS($88:105)))","v":15},{"$f":"IF($C105=\"\",\"\",COUNTA($C$88:$C105))","v":18},{"$f":"IF(INDEX(INDIRECT(\"Product_List\"),ROWS($88:105))=\"\",\"\",INDEX(INDIRECT(\"Product_List\"),ROWS($88:105)))","v":"18-โมจิไส้ถั่วไข่เค็ม"},{"$f":"ยอดยกมา","v":0},null,null,null,null,null,null,0,null,{"$f":"INDIRECT(ADDRESS(ROW(A$80),ROW()-ROW(A$80)+(ROWS($88:105)-1)*2-1,4))","v":0},null,0,null,0,null,null,null,0,null,0,null,null,null,null,null,{"$f":"INDIRECT(ADDRESS(ROW(A$80),ROW()-ROW(A$80)+(ROWS($88:105)-1)*2,4))","v":0},0,null,0,{"$f":"INDIRECT(ADDRESS(ROW(A$80),ROW()-ROW(A$80)+(ROWS($88:105)-1)*2+1,4))","v":0}]
[{"$f":"IF(B106=\"\",0,INDEX(Price_List,ROWS($88:106)))","v":20},{"$f":"IF($C106=\"\",\"\",COUNTA($C$88:$C106))","v":19},{"$f":"IF(INDEX(INDIRECT(\"Product_List\"),ROWS($88:106))=\"\",\"\",INDEX(INDIRECT(\"Product_List\"),ROWS($88:106)))","v":"19-ขนมปังพิซซ่า"},{"$f":"ยอดยกมา","v":0},null,null,null,null,null,null,0,null,{"$f":"INDIRECT(ADDRESS(ROW(A$80),ROW()-ROW(A$80)+(ROWS($88:106)-1)*2-1,4))","v":0},null,0,null,0,null,null,null,0,null,0,null,null,null,null,null,{"$f":"INDIRECT(ADDRESS(ROW(A$80),ROW()-ROW(A$80)+(ROWS($88:106)-1)*2,4))","v":0},0,null,0,{"$f":"INDIRECT(ADDRESS(ROW(A$80),ROW()-ROW(A$80)+(ROWS($88:106)-1)*2+1,4))","v":0}]
[{"$f":"IF(B107=\"\",0,INDEX(Price_List,ROWS($88:107)))","v":20},{"$f":"IF($C107=\"\",\"\",COUNTA($C$88:$C107))","v":20},{"$f":"IF(INDEX(INDIRECT(\"Product_List\"),ROWS($88:107))=\"\",\"\",INDEX(INDIRECT(\"Product_List\"),ROWS($88:107)))","v":"20-ขนมปังพิซซ่าปูอัดแฮม"},{"$f":"ยอดยกมา","v":0},null,null,null,null,null,null,0,null,{"$f":"INDIRECT(ADDRESS(ROW(A$80),ROW()-ROW(A$80)+(ROWS($88:107)-1)*2-1,4))","v":0},null,0,null,0,null,null,null,0,null,0,null,null,null,null,null,{"$f":"INDIRECT(ADDRESS(ROW(A$80),ROW()-ROW(A$80)+(ROWS($88:107)-1)*2,4))","v":0},0,null,0,{"$f":"INDIRECT(ADDRESS(ROW(A$80),ROW()-ROW(A$80)+(ROWS($88:107)-1)*2+1,4))","v":0}]
[{"$f":"IF(B108=\"\",0,INDEX(Price_List,ROWS($88:108)))","v":20},{"$f":"IF($C108=\"\",\"\",COUNTA($C$88:$C108))","v":21},{"$f":"IF(INDEX(INDIRECT(\"Product_List\"),ROWS($88:108))=\"\",\"\",INDEX(INDIRECT(\"Product_List\"),ROWS($88:108)))","v":"21-ขนมปังไส้กรอก"},{"$f":"ยอดยกมา","v":0},null,null,null,null,null,null,0,null,{"$f":"INDIRECT(ADDRESS(ROW(A$80),ROW()-ROW(A$80)+(ROWS($88:108)-1)*2-1,4))","v":0},null,0,null,0,null,null,null,0,null,0,null,null,null,null,null,{"$f":"INDIRECT(ADDRESS(ROW(A$80),ROW()-ROW(A$80)+(ROWS($88:108)-1)*2,4))","v":0},0,null,0,{"$f":"INDIRECT(ADDRESS(ROW(A$80),ROW()-ROW(A$80)+(ROWS($88:108)-1)*2+1,4))","v":0}]
[{"$f":"IF(B109=\"\",0,INDEX(Price_List,ROWS($88:109)))","v":15},{"$f":"IF($C109=\"\",\"\",COUNTA($C$88:$C109))","v":22},{"$f":"IF(INDEX(INDIRECT(\"Product_List\"),ROWS($88:109))=\"\",\"\",INDEX(INDIRECT(\"Product_List\"),ROWS($88:109)))","v":"22-ขนมก้านบัว"},{"$f":"ยอดยกมา","v":0},null,null,null,null,null,null,0,null,{"$f":"INDIRECT(ADDRESS(ROW(A$80),ROW()-ROW(A$80)+(ROWS($88:109)-1)*2-1,4))","v":0},null,0,null,0,null,null,null,0,null,0,null,null,null,null,null,{"$f":"INDIRECT(ADDRESS(ROW(A$80),ROW()-ROW(A$80)+(ROWS($88:109)-1)*2,4))","v":0},0,null,0,{"$f":"INDIRECT(ADDRESS(ROW(A$80),ROW()-ROW(A$80)+(ROWS($88:109)-1)*2+1,4))","v":0}]
[{"$f":"IF(B110=\"\",0,INDEX(Price_List,ROWS($88:110)))","v":20},{"$f":"IF($C110=\"\",\"\",COUNTA($C$88:$C110))","v":23},{"$f":"IF(INDEX(INDIRECT(\"Product_List\"),ROWS($88:110))=\"\",\"\",INDEX(INDIRECT(\"Product_List\"),ROWS($88:110)))","v":"23-พายสับปะรด"},{"$f":"ยอดยกมา","v":0},null,null,null,null,null,null,0,null,{"$f":"INDIRECT(ADDRESS(ROW(A$80),ROW()-ROW(A$80)+(ROWS($88:110)-1)*2-1,4))","v":0},null,0,null,0,null,null,null,0,null,0,null,null,null,null,null,{"$f":"INDIRECT(ADDRESS(ROW(A$80),ROW()-ROW(A$80)+(ROWS($88:110)-1)*2,4))","v":0},0,null,0,{"$f":"INDIRECT(ADDRESS(ROW(A$80),ROW()-ROW(A$80)+(ROWS($88:110)-1)*2+1,4))","v":0}]
[{"$f":"IF(B111=\"\",0,INDEX(Price_List,ROWS($88:111)))","v":20},{"$f":"IF($C111=\"\",\"\",COUNTA($C$88:$C111))","v":24},{"$f":"IF(INDEX(INDIRECT(\"Product_List\"),ROWS($88:111))=\"\",\"\",INDEX(INDIRECT(\"Product_List\"),ROWS($88:111)))","v":"24-พายไส้มะพร้าว"},{"$f":"ยอดยกมา","v":0},null,null,null,null,null,null,0,null,{"$f":"INDIRECT(ADDRESS(ROW(A$80),ROW()-ROW(A$80)+(ROWS($88:111)-1)*2-1,4))","v":0},null,0,null,0,null,null,null,0,null,0,null,null,null,null,null,{"$f":"INDIRECT(ADDRESS(ROW(A$80),ROW()-ROW(A$80)+(ROWS($88:111)-1)*2,4))","v":0},0,null,0,{"$f":"INDIRECT(ADDRESS(ROW(A$80),ROW()-ROW(A$80)+(ROWS($88:111)-1)*2+1,4))","v":0}]
[{"$f":"IF(B112=\"\",0,INDEX(Price_List,ROWS($88:112)))","v":15},{"$f":"IF($C112=\"\",\"\",COUNTA($C$88:$C112))","v":25},{"$f":"IF(INDEX(INDIRECT(\"Product_List\"),ROWS($88:112))=\"\",\"\",INDEX(INDIRECT(\"Product_List\"),ROWS($88:112)))","v":"25-ขนมปังโรลมันเทศ"},{"$f":"ยอดยกมา","v":0},null,null,null,null,null,null,0,null,{"$f":"INDIRECT(ADDRESS(ROW(A$80),ROW()-ROW(A$80)+(ROWS($88:112)-1)*2-1,4))","v":0},null,0,null,0,null,null,null,0,null,0,null,null,null,null,null,{"$f":"INDIRECT(ADDRESS(ROW(A$80),ROW()-ROW(A$80)+(ROWS($88:112)-1)*2,4))","v":0},0,null,0,{"$f":"INDIRECT(ADDRESS(ROW(A$80),ROW()-ROW(A$80)+(ROWS($88:112)-1)*2+1,4))","v":0}]
[{"$f":"IF(B113=\"\",0,INDEX(Price_List,ROWS($88:113)))","v":15},{"$f":"IF($C113=\"\",\"\",COUNTA($C$88:$C113))","v":26},{"$f":"IF(INDEX(INDIRECT(\"Product_List\"),ROWS($88:113))=\"\",\"\",INDEX(INDIRECT(\"Product_List\"),ROWS($88:113)))","v":"26-ขนมปังไส้ครีมสลัดน้ำพริกเผา"},{"$f":"ยอดยกมา","v":0},null,null,null,null,null,null,0,null,{"$f":"INDIRECT(ADDRESS(ROW(A$80),ROW()-ROW(A$80)+(ROWS($88:113)-1)*2-1,4))","v":0},null,0,null,0,null,null,null,0,null,0,null,null,null,null,null,{"$f":"INDIRECT(ADDRESS(ROW(A$80),ROW()-ROW(A$80)+(ROWS($88:113)-1)*2,4))","v":0},0,null,0,{"$f":"INDIRECT(ADDRESS(ROW(A$80),ROW()-ROW(A$80)+(ROWS($88:113)-1)*2+1,4))","v":0}]
[{"$f":"IF(B114=\"\",0,INDEX(Price_List,ROWS($88:114)))","v":20},{"$f":"IF($C114=\"\",\"\",COUNTA($C$88:$C114))","v":27},{"$f":"IF(INDEX(INDIRECT(\"Product_List\"),ROWS($88:114))=\"\",\"\",INDEX(INDIRECT(\"Product_List\"),ROWS($88:114)))","v":"27-ขนมปังไส้สังขยาไข่"},{"$f":"ยอดยกมา","v":0},null,null,null,null,null,null,0,null,{"$f":"INDIRECT(ADDRESS(ROW(A$80),ROW()-ROW(A$80)+(ROWS($88:114)-1)*2-1,4))","v":0},null,0,null,0,null,null,null,0,null,0,null,null,null,null,null,{"$f":"INDIRECT(ADDRESS(ROW(A$80),ROW()-ROW(A$80)+(ROWS($88:114)-1)*2,4))","v":0},0,null,0,{"$f":"INDIRECT(ADDRESS(ROW(A$80),ROW()-ROW(A$80)+(ROWS($88:114)-1)*2+1,4))","v":0}]
[{"$f":"IF(B115=\"\",0,INDEX(Price_List,ROWS($88:115)))","v":20},{"$f":"IF($C115=\"\",\"\",COUNTA($C$88:$C115))","v":28},{"$f":"IF(INDEX(INDIRECT(\"Product_List\"),ROWS($88:115))=\"\",\"\",INDEX(INDIRECT(\"Product_List\"),ROWS($88:115)))","v":"28-ขนมปังไส้สังขยามะพร้าว"},{"$f":"ยอดยกมา","v":0},null,null,null,null,null,null,0,null,{"$f":"INDIRECT(ADDRESS(ROW(A$80),ROW()-ROW(A$80)+(ROWS($88:115)-1)*2-1,4))","v":0},null,0,null,0,null,null,null,0,null,0,null,null,null,null,null,{"$f":"INDIRECT(ADDRESS(ROW(A$80),ROW()-ROW(A$80)+(ROWS($88:115)-1)*2,4))","v":0},0,null,0,{"$f":"INDIRECT(ADDRESS(ROW(A$80),ROW()-ROW(A$80)+(ROWS($88:115)-1)*2+1,4))","v":0}]
[{"$f":"IF(B116=\"\",0,INDEX(Price_List,ROWS($88:116)))","v":10},{"$f":"IF($C116=\"\",\"\",COUNTA($C$88:$C116))","v":29},{"$f":"IF(INDEX(INDIRECT(\"Product_List\"),ROWS($88:116))=\"\",\"\",INDEX(INDIRECT(\"Product_List\"),ROWS($88:116)))","v":"29-ขนมปังไส้ครีมชาไทย"},{"$f":"ยอดยกมา","v":0},null,null,null,null,null,null,0,null,{"$f":"INDIRECT(ADDRESS(ROW(A$80),ROW()-ROW(A$80)+(ROWS($88:116)-1)*2-1,4))","v":0},null,0,null,0,null,null,null,0,null,0,null,null,null,null,null,{"$f":"INDIRECT(ADDRESS(ROW(A$80),ROW()-ROW(A$80)+(ROWS($88:116)-1)*2,4))","v":0},0,null,0,{"$f":"INDIRECT(ADDRESS(ROW(A$80),ROW()-ROW(A$80)+(ROWS($88:116)-1)*2+1,4))","v":0}]
[{"$f":"IF(B117=\"\",0,INDEX(Price_List,ROWS($88:117)))","v":15},{"$f":"IF($C117=\"\",\"\",COUNTA($C$88:$C117))","v":30},{"$f":"IF(INDEX(INDIRECT(\"Product_List\"),ROWS($88:117))=\"\",\"\",INDEX(INDIRECT(\"Product_List\"),ROWS($88:117)))","v":"30-ขนมปังโรลมันม่วง"},{"$f":"ยอดยกมา","v":0},null,null,null,null,null,null,0,null,{"$f":"INDIRECT(ADDRESS(ROW(A$80),ROW()-ROW(A$80)+(ROWS($88:117)-1)*2-1,4))","v":0},null,0,null,0,null,null,null,0,null,0,null,null,null,null,null,{"$f":"INDIRECT(ADDRESS(ROW(A$80),ROW()-ROW(A$80)+(ROWS($88:117)-1)*2,4))","v":0},0,null,0,{"$f":"INDIRECT(ADDRESS(ROW(A$80),ROW()-ROW(A$80)+(ROWS($88:117)-1)*2+1,4))","v":0}]
[{"$f":"IF(B118=\"\",0,INDEX(Price_List,ROWS($88:118)))","v":15},{"$f":"IF($C118=\"\",\"\",COUNTA($C$88:$C118))","v":31},{"$f":"IF(INDEX(INDIRECT(\"Product_List\"),ROWS($88:118))=\"\",\"\",INDEX(INDIRECT(\"Product_List\"),ROWS($88:118)))","v":"31-ขนมปังโรลช็อกโกแลต"},{"$f":"ยอดยกมา","v":0},null,null,null,null,null,null,0,null,{"$f":"INDIRECT(ADDRESS(ROW(A$80),ROW()-ROW(A$80)+(ROWS($88:118)-1)*2-1,4))","v":0},null,0,null,0,null,null,null,0,null,0,null,null,null,null,null,{"$f":"INDIRECT(ADDRESS(ROW(A$80),ROW()-ROW(A$80)+(ROWS($88:118)-1)*2,4))","v":0},0,null,0,{"$f":"INDIRECT(ADDRESS(ROW(A$80),ROW()-ROW(A$80)+(ROWS($88:118)-1)*2+1,4))","v":0}]
[{"$f":"IF(B119=\"\",0,INDEX(Price_List,ROWS($88:119)))","v":16},{"$f":"IF($C119=\"\",\"\",COUNTA($C$88:$C119))","v":32},{"$f":"IF(INDEX(INDIRECT(\"Product_List\"),ROWS($88:119))=\"\",\"\",INDEX(INDIRECT(\"Product_List\"),ROWS($88:119)))","v":"32-ขนมปังชนิดแผ่น(155กรัม)"},{"$f":"ยอดยกมา","v":0},null,null,null,null,null,null,0,null,{"$f":"INDIRECT(ADDRESS(ROW(A$80),ROW()-ROW(A$80)+(ROWS($88:119)-1)*2-1,4))","v":0},null,0,null,0,null,null,null,0,null,0,null,null,null,null,null,{"$f":"INDIRECT(ADDRESS(ROW(A$80),ROW()-ROW(A$80)+(ROWS($88:119)-1)*2,4))","v":0},0,null,0,{"$f":"INDIRECT(ADDRESS(ROW(A$80),ROW()-ROW(A$80)+(ROWS($88:119)-1)*2+1,4))","v":0}]
[{"$f":"IF(B120=\"\",0,INDEX(Price_List,ROWS($88:120)))","v":15},{"$f":"IF($C120=\"\",\"\",COUNTA($C$88:$C120))","v":33},{"$f":"IF(INDEX(INDIRECT(\"Product_List\"),ROWS($88:120))=\"\",\"\",INDEX(INDIRECT(\"Product_List\"),ROWS($88:120)))","v":"33-ขนมปังโรลเผือก"},{"$f":"ยอดยกมา","v":0},null,null,null,null,null,null,0,null,{"$f":"INDIRECT(ADDRESS(ROW(A$80),ROW()-ROW(A$80)+(ROWS($88:120)-1)*2-1,4))","v":0},null,0,null,0,null,null,null,0,null,0,null,null,null,null,null,{"$f":"INDIRECT(ADDRESS(ROW(A$80),ROW()-ROW(A$80)+(ROWS($88:120)-1)*2,4))","v":0},0,null,0,{"$f":"INDIRECT(ADDRESS(ROW(A$80),ROW()-ROW(A$80)+(ROWS($88:120)-1)*2+1,4))","v":0}]
[{"$f":"IF(B121=\"\",0,INDEX(Price_List,ROWS($88:121)))","v":15},{"$f":"IF($C121=\"\",\"\",COUNTA($C$88:$C121))","v":34},{"$f":"IF(INDEX(INDIRECT(\"Product_List\"),ROWS($88:121))=\"\",\"\",INDEX(INDIRECT(\"Product_List\"),ROWS($88:121)))","v":"34-ขนมปังไก่หยองน้ำสลัด Mini"},{"$f":"ยอดยกมา","v":0},null,null,null,null,null,null,0,null,{"$f":"INDIRECT(ADDRESS(ROW(A$80),ROW()-ROW(A$80)+(ROWS($88:121)-1)*2-1,4))","v":0},null,0,null,0,null,null,null,0,null,0,null,null,null,null,null,{"$f":"INDIRECT(ADDRESS(ROW(A$80),ROW()-ROW(A$80)+(ROWS($88:121)-1)*2,4))","v":0},0,null,0,{"$f":"INDIRECT(ADDRESS(ROW(A$80),ROW()-ROW(A$80)+(ROWS($88:121)-1)*2+1,4))","v":0}]
[{"$f":"IF(B122=\"\",0,INDEX(Price_List,ROWS($88:122)))","v":10},{"$f":"IF($C122=\"\",\"\",COUNTA($C$88:$C122))","v":35},{"$f":"IF(INDEX(INDIRECT(\"Product_List\"),ROWS($88:122))=\"\",\"\",INDEX(INDIRECT(\"Product_List\"),ROWS($88:122)))","v":"35-ขนมปังไส้ช็อกโกแลต"},{"$f":"ยอดยกมา","v":0},null,null,null,null,null,null,0,null,{"$f":"INDIRECT(ADDRESS(ROW(A$80),ROW()-ROW(A$80)+(ROWS($88:122)-1)*2-1,4))","v":0},null,0,null,0,null,null,null,0,null,0,null,null,null,null,null,{"$f":"INDIRECT(ADDRESS(ROW(A$80),ROW()-ROW(A$80)+(ROWS($88:122)-1)*2,4))","v":0},0,null,0,{"$f":"INDIRECT(ADDRESS(ROW(A$80),ROW()-ROW(A$80)+(ROWS($88:122)-1)*2+1,4))","v":0}]
[{"$f":"IF(B123=\"\",0,INDEX(Price_List,ROWS($88:123)))","v":10},{"$f":"IF($C123=\"\",\"\",COUNTA($C$88:$C123))","v":36},{"$f":"IF(INDEX(INDIRECT(\"Product_List\"),ROWS($88:123))=\"\",\"\",INDEX(INDIRECT(\"Product_List\"),ROWS($88:123)))","v":"36-ขนมปังไส้ครีมสังขยาไข่"},{"$f":"ยอดยกมา","v":0},null,null,null,null,null,null,0,null,{"$f":"INDIRECT(ADDRESS(ROW(A$80),ROW()-ROW(A$80)+(ROWS($88:123)-1)*2-1,4))","v":0},null,0,null,0,null,null,null,0,null,0,null,null,null,null,null,{"$f":"INDIRECT(ADDRESS(ROW(A$80),ROW()-ROW(A$80)+(ROWS($88:123)-1)*2,4))","v":0},0,null,0,{"$f":"INDIRECT(ADDRESS(ROW(A$80),ROW()-ROW(A$80)+(ROWS($88:123)-1)*2+1,4))","v":0}]
[{"$f":"IF(B124=\"\",0,INDEX(Price_List,ROWS($88:124)))","v":20},{"$f":"IF($C124=\"\",\"\",COUNTA($C$88:$C124))","v":37},{"$f":"IF(INDEX(INDIRECT(\"Product_List\"),ROWS($88:124))=\"\",\"\",INDEX(INDIRECT(\"Product_List\"),ROWS($88:124)))","v":"37-ขนมปังพิซซ่าฮาวายเอี้ยน"},{"$f":"ยอดยกมา","v":0},null,null,null,null,null,null,0,null,{"$f":"INDIRECT(ADDRESS(ROW(A$80),ROW()-ROW(A$80)+(ROWS($88:124)-1)*2-1,4))","v":0},null,0,null,0,null,null,null,0,null,0,null,null,null,null,null,{"$f":"INDIRECT(ADDRESS(ROW(A$80),ROW()-ROW(A$80)+(ROWS($88:124)-1)*2,4))","v":0},0,null,0,{"$f":"INDIRECT(ADDRESS(ROW(A$80),ROW()-ROW(A$80)+(ROWS($88:124)-1)*2+1,4))","v":0}]
[{"$f":"IF(B125=\"\",0,INDEX(Price_List,ROWS($88:125)))","v":20},{"$f":"IF($C125=\"\",\"\",COUNTA($C$88:$C125))","v":38},{"$f":"IF(INDEX(INDIRECT(\"Product_List\"),ROWS($88:125))=\"\",\"\",INDEX(INDIRECT(\"Product_List\"),ROWS($88:125)))","v":"38-ครัวซองต์หมูหยองน้ำสลัด"},{"$f":"ยอดยกมา","v":0},null,null,null,null,null,null,0,null,{"$f":"INDIRECT(ADDRESS(ROW(A$80),ROW()-ROW(A$80)+(ROWS($88:125)-1)*2-1,4))","v":0},null,0,null,0,null,null,null,0,null,0,null,null,null,null,null,{"$f":"INDIRECT(ADDRESS(ROW(A$80),ROW()-ROW(A$80)+(ROWS($88:125)-1)*2,4))","v":0},0,null,0,{"$f":"INDIRECT(ADDRESS(ROW(A$80),ROW()-ROW(A$80)+(ROWS($88:125)-1)*2+1,4))","v":0}]
[{"$f":"IF(B126=\"\",0,INDEX(Price_List,ROWS($88:126)))","v":15},{"$f":"IF($C126=\"\",\"\",COUNTA($C$88:$C126))","v":39},{"$f":"IF(INDEX(INDIRECT(\"Product_List\"),ROWS($88:126))=\"\",\"\",INDEX(INDIRECT(\"Product_List\"),ROWS($88:126)))","v":"39-แพนเบรดไส้เผือก"},{"$f":"ยอดยกมา","v":0},null,null,null,null,null,null,0,null,{"$f":"INDIRECT(ADDRESS(ROW(A$80),ROW()-ROW(A$80)+(ROWS($88:126)-1)*2-1,4))","v":0},null,0,null,0,null,null,null,0,null,0,null,null,null,null,null,{"$f":"INDIRECT(ADDRESS(ROW(A$80),ROW()-ROW(A$80)+(ROWS($88:126)-1)*2,4))","v":0},0,null,0,{"$f":"INDIRECT(ADDRESS(ROW(A$80),ROW()-ROW(A$80)+(ROWS($88:126)-1)*2+1,4))","v":0}]
[{"$f":"IF(B127=\"\",0,INDEX(Price_List,ROWS($88:127)))","v":15},{"$f":"IF($C127=\"\",\"\",COUNTA($C$88:$C127))","v":40},{"$f":"IF(INDEX(INDIRECT(\"Product_List\"),ROWS($88:127))=\"\",\"\",INDEX(INDIRECT(\"Product_List\"),ROWS($88:127)))","v":"40-แพนเบรดไส้ถั่วแดง"},{"$f":"ยอดยกมา","v":0},null,null,null,null,null,null,{"$f":"D127+E127+J127-I127+H127","v":0},null,{"$f":"INDIRECT(ADDRESS(ROW(A$80),ROW()-ROW(A$80)+(ROWS($88:127)-1)*2-1,4))","v":0},null,{"$f":"F127+G127+M127+J127-K127","v":0},null,{"$f":"O127*A127","v":0},null,null,null,{"$f":"D127+E127-F127-G127","v":0},null,{"$f":"U127*6%+U127","v":0},null,null,null,null,null,{"$f":"INDIRECT(ADDRESS(ROW(A$80),ROW()-ROW(A$80)+(ROWS($88:127)-1)*2,4))","v":0},0,null,0,{"$f":"INDIRECT(ADDRESS(ROW(A$80),ROW()-ROW(A$80)+(ROWS($88:127)-1)*2+1,4))","v":0}]
[{"$f":"IF(B128=\"\",0,INDEX(Price_List,ROWS($88:128)))","v":12},{"$f":"IF($C128=\"\",\"\",COUNTA($C$88:$C128))","v":41},{"$f":"IF(INDEX(INDIRECT(\"Product_List\"),ROWS($88:128))=\"\",\"\",INDEX(INDIRECT(\"Product_List\"),ROWS($88:128)))","v":"41-ขนมปังกรอบเนยน้ำตาล(30กรัม)"},{"$f":"ยอดยกมา","v":0},null,null,null,null,null,null,0,null,{"$f":"INDIRECT(ADDRESS(ROW(A$80),ROW()-ROW(A$80)+(ROWS($88:128)-1)*2-1,4))","v":0},null,0,null,0,null,null,null,0,null,0,null,null,null,null,null,{"$f":"INDIRECT(ADDRESS(ROW(A$80),ROW()-ROW(A$80)+(ROWS($88:128)-1)*2,4))","v":0},0,null,0,{"$f":"INDIRECT(ADDRESS(ROW(A$80),ROW()-ROW(A$80)+(ROWS($88:128)-1)*2+1,4))","v":0}]
[{"$f":"IF(B129=\"\",0,INDEX(Price_List,ROWS($88:129)))","v":18},{"$f":"IF($C129=\"\",\"\",COUNTA($C$88:$C129))","v":42},{"$f":"IF(INDEX(INDIRECT(\"Product_List\"),ROWS($88:129))=\"\",\"\",INDEX(INDIRECT(\"Product_List\"),ROWS($88:129)))","v":"42-ขนมปังชนิดแผ่นโฮลวีต"},{"$f":"ยอดยกมา","v":0},null,null,null,null,null,null,0,null,{"$f":"INDIRECT(ADDRESS(ROW(A$80),ROW()-ROW(A$80)+(ROWS($88:129)-1)*2-1,4))","v":0},null,0,null,0,null,null,null,0,null,0,null,null,null,null,null,{"$f":"INDIRECT(ADDRESS(ROW(A$80),ROW()-ROW(A$80)+(ROWS($88:129)-1)*2,4))","v":0},0,null,0,{"$f":"INDIRECT(ADDRESS(ROW(A$80),ROW()-ROW(A$80)+(ROWS($88:129)-1)*2+1,4))","v":0}]
[{"$f":"IF(B130=\"\",0,INDEX(Price_List,ROWS($88:130)))","v":12},{"$f":"IF($C130=\"\",\"\",COUNTA($C$88:$C130))","v":43},{"$f":"IF(INDEX(INDIRECT(\"Product_List\"),ROWS($88:130))=\"\",\"\",INDEX(INDIRECT(\"Product_List\"),ROWS($88:130)))","v":"43-เค้กโรลใบเตย"},{"$f":"ยอดยกมา","v":0},null,null,null,null,null,null,{"$f":"D130+E130+J130-I130+H130","v":0},null,{"$f":"INDIRECT(ADDRESS(ROW(A$80),ROW()-ROW(A$80)+(ROWS($88:130)-1)*2-1,4))","v":0},null,{"$f":"F130+G130+M130+J130-K130","v":0},null,{"$f":"O130*A130","v":0},null,null,null,{"$f":"D130+E130-F130-G130","v":0},null,{"$f":"U130*6%+U130","v":0},null,null,null,null,null,{"$f":"INDIRECT(ADDRESS(ROW(A$80),ROW()-ROW(A$80)+(ROWS($88:130)-1)*2,4))","v":0},0,null,0,{"$f":"INDIRECT(ADDRESS(ROW(A$80),ROW()-ROW(A$80)+(ROWS($88:130)-1)*2+1,4))","v":0}]
[{"$f":"IF(B131=\"\",0,INDEX(Price_List,ROWS($88:131)))","v":12},{"$f":"IF($C131=\"\",\"\",COUNTA($C$88:$C131))","v":44},{"$f":"IF(INDEX(INDIRECT(\"Product_List\"),ROWS($88:131))=\"\",\"\",INDEX(INDIRECT(\"Product_List\"),ROWS($88:131)))","v":"44-ขนมโมจิไส้ถั่วดำ"},{"$f":"ยอดยกมา","v":0},null,null,null,null,null,null,{"$f":"D131+E131+J131-I131+H131","v":0},null,{"$f":"INDIRECT(ADDRESS(ROW(A$80),ROW()-ROW(A$80)+(ROWS($88:131)-1)*2-1,4))","v":0},null,{"$f":"F131+G131+M131+J131-K131","v":0},null,{"$f":"O131*A131","v":0},null,null,null,{"$f":"D131+E131-F131-G131","v":0},null,{"$f":"U131*6%+U131","v":0},null,null,null,null,null,{"$f":"INDIRECT(ADDRESS(ROW(A$80),ROW()-ROW(A$80)+(ROWS($88:131)-1)*2,4))","v":0},0,null,0,{"$f":"INDIRECT(ADDRESS(ROW(A$80),ROW()-ROW(A$80)+(ROWS($88:131)-1)*2+1,4))","v":0}]
[{"$f":"IF(B132=\"\",0,INDEX(Price_List,ROWS($88:132)))","v":25},{"$f":"IF($C132=\"\",\"\",COUNTA($C$88:$C132))","v":45},{"$f":"IF(INDEX(INDIRECT(\"Product_List\"),ROWS($88:132))=\"\",\"\",INDEX(INDIRECT(\"Product_List\"),ROWS($88:132)))","v":"45-ครัวซองต์ไส้กรอกชีส"},{"$f":"ยอดยกมา","v":0},null,null,null,null,null,null,{"$f":"D132+E132+J132-I132+H132","v":0},null,{"$f":"INDIRECT(ADDRESS(ROW(A$80),ROW()-ROW(A$80)+(ROWS($88:132)-1)*2-1,4))","v":0},null,{"$f":"F132+G132+M132+J132-K132","v":0},null,{"$f":"O132*A132","v":0},null,null,null,{"$f":"D132+E132-F132-G132","v":0},null,{"$f":"U132*6%+U132","v":0},null,null,null,null,null,{"$f":"INDIRECT(ADDRESS(ROW(A$80),ROW()-ROW(A$80)+(ROWS($88:132)-1)*2,4))","v":0},0,null,0,{"$f":"INDIRECT(ADDRESS(ROW(A$80),ROW()-ROW(A$80)+(ROWS($88:132)-1)*2+1,4))","v":0}]
[{"$f":"IF(B133=\"\",0,INDEX(Price_List,ROWS($88:133)))","v":12},{"$f":"IF($C133=\"\",\"\",COUNTA($C$88:$C133))","v":46},{"$f":"IF(INDEX(INDIRECT(\"Product_List\"),ROWS($88:133))=\"\",\"\",INDEX(INDIRECT(\"Product_List\"),ROWS($88:133)))","v":"46-ขนมเปี๊ยะไส้ถั่ว"},{"$f":"ยอดยกมา","v":0},null,null,null,null,null,null,0,null,{"$f":"INDIRECT(ADDRESS(ROW(A$80),ROW()-ROW(A$80)+(ROWS($88:133)-1)*2-1,4))","v":0},null,0,null,0,null,null,null,0,null,0,null,null,null,null,null,{"$f":"INDIRECT(ADDRESS(ROW(A$80),ROW()-ROW(A$80)+(ROWS($88:133)-1)*2,4))","v":0},0,null,0,{"$f":"INDIRECT(ADDRESS(ROW(A$80),ROW()-ROW(A$80)+(ROWS($88:133)-1)*2+1,4))","v":0}]
[{"$f":"IF(B134=\"\",0,INDEX(Price_List,ROWS($88:134)))","v":12},{"$f":"IF($C134=\"\",\"\",COUNTA($C$88:$C134))","v":47},{"$f":"IF(INDEX(INDIRECT(\"Product_List\"),ROWS($88:134))=\"\",\"\",INDEX(INDIRECT(\"Product_List\"),ROWS($88:134)))","v":"47-ขนมเปี๊ยะไส้ฟัก"},{"$f":"ยอดยกมา","v":0},null,null,null,null,null,null,{"$f":"D134+E134+J134-I134+H134","v":0},null,{"$f":"INDIRECT(ADDRESS(ROW(A$80),ROW()-ROW(A$80)+(ROWS($88:134)-1)*2-1,4))","v":0},null,{"$f":"F134+G134+M134+J134-K134","v":0},null,{"$f":"O134*A134","v":0},null,null,null,{"$f":"D134+E134-F134-G134","v":0},null,{"$f":"U134*6%+U134","v":0},null,null,null,null,null,{"$f":"INDIRECT(ADDRESS(ROW(A$80),ROW()-ROW(A$80)+(ROWS($88:134)-1)*2,4))","v":0},0,null,0,{"$f":"INDIRECT(ADDRESS(ROW(A$80),ROW()-ROW(A$80)+(ROWS($88:134)-1)*2+1,4))","v":0}]
[{"$f":"IF(B135=\"\",0,INDEX(Price_List,ROWS($88:135)))","v":12},{"$f":"IF($C135=\"\",\"\",COUNTA($C$88:$C135))","v":48},{"$f":"IF(INDEX(INDIRECT(\"Product_List\"),ROWS($88:135))=\"\",\"\",INDEX(INDIRECT(\"Product_List\"),ROWS($88:135)))","v":"48-มังกี้เค้ก"},{"$f":"ยอดยกมา","v":0},null,null,null,null,null,null,0,null,{"$f":"INDIRECT(ADDRESS(ROW(A$80),ROW()-ROW(A$80)+(ROWS($88:135)-1)*2-1,4))","v":0},null,0,null,0,null,null,null,0,null,0,null,null,null,null,null,{"$f":"INDIRECT(ADDRESS(ROW(A$80),ROW()-ROW(A$80)+(ROWS($88:135)-1)*2,4))","v":0},0,null,0,{"$f":"INDIRECT(ADDRESS(ROW(A$80),ROW()-ROW(A$80)+(ROWS($88:135)-1)*2+1,4))","v":0}]
["รวม",null,null,{"$f":"SUM(D$88:D$135)","v":0},0,0,0,0,0,0,0,null,{"$f":"SUM(M$88:M$135)","v":0},null,null,null,{"$f":"$AP$98","v":0},null,"บาท",null,{"$f":"SUM(U$88:U$135)","v":0},null,{"$f":"SUM(W$88:W$135)","v":0},null,null,null,null,null,{"$f":"SUM(AC$88:AC$135)","v":0},{"$f":"SUM(AD$88:AD$135)","v":0},{"$f":"SUM(AE$88:AE$135)","v":0},{"$f":"SUM(AF$88:AF$135)","v":0},{"$f":"SUM(AG$88:AG$135)","v":0}]
["เลขที่ไมล์ เวลาออกทำงาน",null,null,{"$f":"$BF$3","v":0},null,"Km","น้ำหนักของเสีย"]
["เลขที่ไมล์ เวลากลับ",null,null,{"$f":"$BF$4","v":0},null,"Km",{"$f":"$AA$5","v":0},null,"KG"]
["เวลากลับถึงสำนักงาน",null,null,{"$f":"$BF$1","v":"00:00:00"},null,"น."]
["เติมน้ำมัน",null,null,{"$f":"$AX3","v":0},null,"บาท"]
["จำนวนน้ำมัน",null,null,{"$f":"$AX4","v":0},null,"ลิตร"]
["ยอดรวมต้นทุนสาขา",null,null,{"$f":"$AX5","v":0},null,"บาท"]

{"sheet":"7","index":11,"n_rows":142,"n_cols":154,"rows_kept":142,"cut":false,"hidden":false,"merged":[[129,10,129,11],[129,12,129,13],[129,14,129,15],[129,16,129,17],[129,20,129,21],[80,126,80,127],[128,10,128,11],[128,12,128,13],[128,14,128,15],[128,16,128,17],[128,20,128,21],[128,22,128,23],[128,24,128,25],[128,33,128,36],[125,10,125,11],[125,12,125,13],[125,14,125,15],[125,16,125,17],[125,20,125,21],[126,10,126,11],[127,10,127,11],[83,81,83,82],[83,84,83,85],[83,87,83,88],[83,90,83,91],[83,93,83,94],[83,96,83,97],[82,72,82,73],[129,22,129,23],[129,24,129,25],[129,33,129,36],[97,38,97,40],[92,24,92,25],[92,33,92,36],[90,24,90,25],[90,33,90,36],[96,33,96,36],[97,33,97,36],[88,24,88,25],[88,33,88,36],[80,132,80,133],[82,132,82,133],[6,135,6,137],[7,135,7,137],[8,135,8,137],[80,135,80,136],[82,135,82,136],[80,129,80,130],[82,126,82,127],[82,129,82,130],[6,138,6,140],[6,141,6,143],[6,147,6,149],[126,22,126,23],[127,22,127,23],[126,24,126,25],[127,24,127,25],[126,33,126,36],[127,33,127,36],[125,24,125,25],[125,33,125,36],[123,24,123,25],[123,33,123,36],[125,22,125,23],[124,22,124,23],[124,24,124,25],[124,33,124,36],[122,24,122,25],[122,33,122,36],[98,24,98,25],[98,33,98,36],[99,24,99,25],[99,33,99,36],[82,108,82,109],[139,0,139,2],[139,3,139,4],[140,0,140,2],[140,3,140,4],[141,0,141,2],[141,3,141,4],[137,0,137,2],[137,3,137,4],[137,6,137,7],[137,18,137,21],[138,0,138,2],[138,3,138,4],[135,20,135,21],[135,22,135,23],[135,24,135,25],[135,33,135,36],[136,0,136,2],[136,3,136,4],[135,0,135,2],[135,10,135,11],[135,12,135,13],[135,14,135,15],[135,16,135,17],[135,18,135,19],[126,12,126,13],[127,12,127,13],[126,14,126,15],[127,14,127,15],[126,16,126,17],[127,16,127,17],[126,20,126,21],[127,20,127,21],[124,10,124,11],[124,12,124,13],[124,14,124,15],[124,16,124,17],[124,20,124,21],[123,10,123,11],[123,12,123,13],[123,14,123,15],[123,16,123,17],[123,20,123,21],[123,22,123,23],[122,10,122,11],[122,12,122,13],[122,14,122,15],[122,16,122,17],[122,20,122,21],[122,22,122,23],[121,10,121,11],[121,12,121,13],[121,14,121,15],[121,16,121,17],[121,20,121,21],[121,22,121,23],[121,24,121,25],[121,33,121,36],[120,10,120,11],[120,12,120,13],[120,14,120,15],[120,16,120,17],[120,20,120,21],[120,22,120,23],[120,24,120,25],[120,33,120,36],[119,10,119,11],[119,12,119,13],[119,14,119,15],[119,16,119,17],[119,20,119,21],[119,22,119,23],[119,24,119,25],[119,33,119,36],[118,10,118,11],[118,12,118,13],[118,14,118,15],[118,16,118,17],[118,20,118,21],[118,22,118,23],[118,24,118,25],[118,33,118,36],[117,10,117,11],[117,12,117,13],[117,14,117,15],[117,16,117,17],[117,20,117,21],[117,22,117,23],[117,24,117,25],[117,33,117,36],[116,10,116,11],[116,12,116,13],[116,14,116,15],[116,16,116,17],[116,20,116,21],[116,22,116,23],[116,24,116,25],[116,33,116,36],[115,10,115,11],[115,12,115,13],[115,14,115,15],[115,16,115,17],[115,20,115,21],[115,22,115,23],[115,24,115,25],[115,33,115,36],[114,10,114,11],[114,12,114,13],[114,14,114,15],[114,16,114,17],[114,20,114,21],[114,22,114,23],[114,24,114,25],[114,33,114,36],[113,10,113,11],[113,12,113,13],[113,14,113,15],[113,16,113,17],[113,20,113,21],[113,22,113,23],[113,24,113,25],[113,33,113,36],[112,10,112,11],[112,12,112,13],[112,14,112,15],[112,16,112,17],[112,20,112,21],[112,22,112,23],[112,24,112,25],[112,33,112,36],[111,10,111,11],[111,12,111,13],[111,14,111,15],[111,16,111,17],[111,20,111,21],[111,22,111,23],[111,24,111,25],[111,33,111,36],[110,10,110,11],[110,12,110,13],[110,14,110,15],[110,16,110,17],[110,20,110,21],[110,22,110,23],[110,24,110,25],[110,33,110,36],[109,10,109,11],[109,12,109,13],[109,14,109,15],[109,16,109,17],[109,20,109,21],[109,22,109,23],[109,24,109,25],[109,33,109,36],[108,10,108,11],[108,12,108,13],[108,14,108,15],[108,16,108,17],[108,20,108,21],[108,22,108,23],[108,24,108,25],[108,33,108,36],[107,10,107,11],[107,12,107,13],[107,14,107,15],[107,16,107,17],[107,20,107,21],[107,22,107,23],[107,24,107,25],[107,33,107,36],[106,10,106,11],[106,12,106,13],[106,14,106,15],[106,16,106,17],[106,20,106,21],[106,22,106,23],[106,24,106,25],[106,33,106,36],[105,10,105,11],[105,12,105,13],[105,14,105,15],[105,16,105,17],[105,20,105,21],[105,22,105,23],[105,24,105,25],[105,33,105,36],[104,10,104,11],[104,12,104,13],[104,14,104,15],[104,16,104,17],[104,20,104,21],[104,22,104,23],[104,24,104,25],[104,33,104,36],[103,10,103,11],[103,12,103,13],[103,14,103,15],[103,16,103,17],[103,20,103,21],[103,22,103,23],[103,24,103,25],[103,33,103,36],[102,10,102,11],[102,12,102,13],[102,14,102,15],[102,16,102,17],[102,20,102,21],[102,22,102,23],[102,24,102,25],[102,33,102,36],[101,10,101,11],[101,12,101,13],[101,14,101,15],[101,16,101,17],[101,20,101,21],[101,22,101,23],[101,24,101,25],[101,33,101,36],[100,10,100,11],[100,12,100,13],[100,14,100,15],[100,16,100,17],[100,20,100,21],[100,22,100,23],[100,24,100,25],[100,33,100,36],[99,10,99,11],[99,12,99,13],[99,14,99,15],[99,16,99,17],[99,20,99,21],[99,22,99,23],[98,10,98,11],[98,12,98,13],[98,14,98,15],[98,16,98,17],[98,20,98,21],[98,22,98,23],[97,10,97,11],[97,12,97,13],[97,14,97,15],[97,16,97,17],[97,20,97,21],[97,22,97,23],[97,24,97,25],[96,10,96,11],[96,12,96,13],[96,14,96,15],[96,16,96,17],[96,20,96,21],[96,22,96,23],[96,24,96,25],[95,10,95,11],[95,12,95,13],[95,14,95,15],[95,16,95,17],[95,20,95,21],[95,22,95,23],[95,24,95,25],[95,33,95,36],[94,10,94,11],[94,12,94,13],[94,14,94,15],[94,16,94,17],[94,20,94,21],[94,22,94,23],[94,24,94,25],[94,33,94,36],[93,10,93,11],[93,12,93,13],[93,14,93,15],[93,16,93,17],[93,20,93,21],[93,22,93,23],[93,24,93,25],[93,33,93,36],[92,10,92,11],[92,12,92,13],[92,14,92,15],[92,16,92,17],[92,20,92,21],[92,22,92,23],[91,10,91,11],[91,12,91,13],[91,14,91,15],[91,16,91,17],[91,20,91,21],[91,22,91,23],[91,24,91,25],[91,33,91,36],[90,10,90,11],[90,12,90,13],[90,14,90,15],[90,16,90,17],[90,20,90,21],[90,22,90,23],[87,33,87,36],[86,10,86,11],[86,12,86,13],[86,14,86,15],[86,16,86,17],[86,20,86,21],[86,22,86,23],[89,10,89,11],[89,12,89,13],[89,14,89,15],[89,16,89,17],[89,20,89,21],[89,22,89,23],[89,24,89,25],[89,33,89,36],[88,10,88,11],[88,12,88,13],[88,14,88,15],[88,16,88,17],[88,20,88,21],[88,22,88,23],[86,24,86,25],[86,33,86,36],[83,150,83,153],[83,99,83,100],[83,102,83,103],[83,105,83,106],[83,108,83,109],[83,111,83,112],[83,114,83,115],[83,126,83,127],[83,129,83,130],[83,132,83,133],[83,135,83,136],[83,117,83,118],[83,120,83,121],[83,123,83,124],[82,75,82,76],[82,78,82,79],[82,81,82,82],[82,84,82,85],[82,87,82,88],[82,99,82,100],[82,102,82,103],[82,105,82,106],[82,63,82,64],[82,66,82,67],[82,69,82,70],[82,90,82,91],[82,93,82,94],[82,96,82,97],[83,0,83,5],[83,6,83,7],[83,9,83,10],[83,12,83,13],[83,15,83,16],[83,18,83,19],[83,21,83,22],[83,24,83,25],[83,54,83,55],[83,27,83,28],[82,36,82,37],[83,30,83,31],[83,33,83,34],[83,36,83,37],[82,39,82,40],[82,42,82,43],[83,45,83,46],[83,48,83,49],[83,51,83,52],[83,39,83,40],[83,42,83,43],[82,54,82,55],[82,57,82,58],[82,60,82,61],[81,0,81,2],[81,3,81,5],[81,150,82,153],[82,0,82,2],[82,3,82,4],[82,6,82,7],[82,9,82,10],[82,12,82,13],[82,15,82,16],[82,45,82,46],[82,48,82,49],[82,51,82,52],[82,18,82,19],[82,21,82,22],[82,24,82,25],[82,27,82,28],[82,30,82,31],[82,33,82,34],[82,111,82,112],[82,114,82,115],[82,117,82,118],[82,120,82,121],[82,123,82,124],[80,111,80,112],[80,114,80,115],[80,117,80,118],[80,120,80,121],[80,123,80,124],[80,93,80,94],[80,96,80,97],[80,99,80,100],[80,102,80,103],[80,105,80,106],[80,108,80,109],[80,36,80,37],[80,75,80,76],[80,78,80,79],[80,81,80,82],[80,84,80,85],[80,87,80,88],[80,90,80,91],[80,57,80,58],[80,60,80,61],[80,63,80,64],[80,66,80,67],[80,69,80,70],[80,72,80,73],[6,0,8,0],[6,1,8,1],[80,0,80,5],[80,6,80,7],[80,9,80,10],[80,12,80,13],[80,15,80,16],[80,18,80,19],[8,117,8,119],[8,54,8,56],[8,57,8,59],[8,60,8,62],[8,27,8,29],[8,30,8,32],[8,33,8,35],[8,36,8,38],[8,39,8,41],[8,42,8,44],[8,9,8,11],[8,12,8,14],[8,15,8,17],[8,18,8,20],[8,21,8,23],[8,24,8,26],[6,129,6,131],[7,126,7,128],[7,129,7,131],[8,126,8,128],[8,129,8,131],[6,126,6,128],[6,84,6,86],[6,132,6,134],[79,0,79,5],[8,99,8,101],[8,102,8,104],[8,105,8,107],[8,108,8,110],[8,111,8,113],[8,114,8,116],[8,81,8,83],[8,84,8,86],[8,87,8,89],[8,90,8,92],[8,93,8,95],[8,96,8,98],[8,63,8,65],[8,66,8,68],[8,69,8,71],[7,120,7,122],[7,123,7,125],[7,150,8,150],[7,151,8,151],[7,102,7,104],[7,105,7,107],[7,108,7,110],[7,111,7,113],[7,114,7,116],[7,117,7,119],[8,120,8,122],[8,123,8,125],[7,132,7,134],[8,132,8,134],[6,152,8,152],[6,153,8,153],[7,6,7,8],[7,9,7,11],[7,12,7,14],[7,15,7,17],[7,18,7,20],[7,21,7,23],[7,24,7,26],[7,27,7,29],[6,117,6,119],[6,120,6,122],[6,123,6,125],[6,150,6,151],[6,99,6,101],[6,102,6,104],[6,105,6,107],[6,108,6,110],[6,93,6,95],[6,96,6,98],[6,63,6,65],[6,111,6,113],[6,114,6,116],[6,81,6,83],[6,2,8,2],[6,3,8,3],[6,4,8,4],[6,6,6,8],[8,6,8,8],[6,45,6,47],[6,48,6,50],[7,48,7,50],[6,39,6,41],[6,42,6,44],[7,30,7,32],[7,33,7,35],[7,36,7,38],[7,39,7,41],[7,42,7,44],[7,45,7,47],[8,45,8,47],[8,48,8,50],[4,26,4,29],[4,30,4,31],[4,32,4,34],[4,35,4,36],[6,9,6,11],[6,12,6,14],[6,15,6,17],[6,18,6,20],[6,21,6,23],[6,24,6,26],[6,27,6,29],[6,30,6,32],[6,33,6,35],[6,36,6,38],[3,41,3,44],[3,46,3,48],[3,49,3,51],[3,54,3,56],[3,57,3,60],[4,0,4,1],[4,2,4,3],[4,4,4,5],[4,6,4,12],[4,14,4,16],[3,17,3,19],[3,22,3,25],[3,26,3,29],[3,30,3,33],[3,34,3,37],[3,38,3,40],[4,38,4,40],[4,41,4,44],[4,46,4,48],[4,49,4,51],[4,54,4,56],[4,57,4,60],[4,17,4,19],[4,22,4,25],[3,0,3,1],[3,2,3,3],[3,4,3,5],[3,6,3,12],[3,14,3,16],[2,17,2,19],[2,22,2,25],[2,26,2,29],[2,30,2,33],[0,38,0,40],[0,41,0,44],[0,46,0,48],[0,54,0,56],[0,57,0,60],[2,0,2,1],[2,2,2,3],[2,4,2,5],[2,6,2,12],[2,14,2,16],[0,0,0,12],[0,14,0,16],[0,17,0,23],[0,30,0,33],[0,34,0,35],[0,36,0,37],[2,41,2,44],[2,46,2,48],[2,49,2,51],[2,54,2,56],[2,57,2,60],[2,34,2,37],[2,38,2,40],[7,96,7,98],[7,99,7,101],[6,51,6,53],[6,60,6,62],[6,87,6,89],[6,90,6,92],[7,84,7,86],[7,87,7,89],[7,90,7,92],[7,66,7,68],[7,69,7,71],[7,72,7,74],[6,66,6,68],[7,75,7,77],[7,78,7,80],[7,81,7,83],[6,69,6,71],[6,72,6,74],[6,75,6,77],[6,78,6,80],[6,54,6,56],[6,57,6,59],[131,24,131,25],[131,10,131,11],[131,20,131,21],[7,51,7,53],[7,54,7,56],[7,57,7,59],[7,60,7,62],[7,63,7,65],[7,93,7,95],[8,72,8,74],[8,75,8,77],[8,78,8,80],[8,51,8,53],[80,39,80,40],[80,42,80,43],[80,45,80,46],[80,48,80,49],[80,51,80,52],[80,54,80,55],[80,21,80,22],[80,24,80,25],[80,27,80,28],[80,30,80,31],[80,33,80,34],[83,147,83,148],[130,22,130,23],[130,24,130,25],[130,33,130,36],[130,10,130,11],[130,12,130,13],[130,14,130,15],[130,16,130,17],[130,20,130,21],[83,63,83,64],[83,66,83,67],[83,69,83,70],[83,72,83,73],[83,75,83,76],[83,78,83,79],[83,57,83,58],[83,60,83,61],[87,10,87,11],[87,12,87,13],[87,14,87,15],[87,16,87,17],[87,20,87,21],[87,22,87,23],[87,24,87,25],[7,147,7,149],[8,138,8,140],[8,141,8,143],[8,147,8,149],[80,138,80,139],[80,141,80,142],[80,147,80,148],[82,138,82,139],[82,141,82,142],[82,147,82,148],[132,10,132,11],[134,10,134,11],[131,12,131,13],[132,12,132,13],[134,12,134,13],[131,14,131,15],[132,14,132,15],[134,14,134,15],[131,16,131,17],[132,16,132,17],[134,16,134,17],[133,10,133,11],[133,12,133,13],[133,14,133,15],[133,16,133,17],[132,20,132,21],[134,20,134,21],[131,22,131,23],[132,22,132,23],[134,22,134,23],[6,144,6,146],[7,144,7,146],[8,144,8,146],[80,144,80,145],[82,144,82,145],[83,144,83,145],[133,20,133,21],[133,22,133,23],[133,24,133,25],[133,33,133,36],[132,24,132,25],[134,24,134,25],[131,33,131,36],[132,33,132,36],[134,33,134,36],[7,138,7,140],[7,141,7,143],[83,138,83,139],[83,141,83,142]]}
[":::: รายงานการขายประจำวัน (Sale Daily Report)  ::::",null,null,null,null,null,null,null,null,null,null,null,null,null,"Print Date : ",null,null,{"$f":"NOW()","v":"2025-04-24T22:39:10.140"},null,null,null,null,null,null,null,null,null,null,null,null,"จำนวนร้าน :",null,null,null,{"$f":"MAX($A$10:$A$79)","v":0},null,"ร้าน",null,"เป้ายอดขาย :",null,null,null,null,null,null,null,{"$f":"C3","v":45784},null,null,{"$f":"LEFT('Problems & Solutions'!$B$2,FIND(\"|\",'Problems & Solutions'!$B$2))&\" วันที่\"&TEXT($C$3,\"[$-107041E] d mmmm yyyy;@\")","v":"ขั้นตอนการตรวจรีพอร์ตขาย | วันที่ 7 พฤษภาคม 2568"},null,null,null,null,"เวลากลับ :"]
[]
["วันที่ :",null,{"$f":"DATE(ใส่ข้อมูล!G2-543,ใส่ข้อมูล!V2,ActiveSheetName)","v":"2025-05-07"},null,"พนักงานขาย",null,{"$f":"INDEX(OFFSET(Sale_Region,,1),ActiveSheetName)","v":0},null,null,null,null,null,null,null,"รวมยอดเบิก :",null,null,{"$f":"E136","v":0},null,null,"ชิ้น",null,"ใหญ่สด(40)",null,null,null,{"$f":"Cash_Major_Bill","v":0},null,null,null,"ใหญ่เชื่อ(42)",null,null,null,{"$f":"Credit_Major_Bill","v":0},null,null,null,"บิลใหญ่ :",null,null,{"$f":"AA3+AI3","v":0},null,null,null,null,"เติมน้ำมัน :",null,null,null,null,null,"บาท",null,"ไมล์ออก :",null,null,{"$f":"เลขไมล์ออก","v":0},null,null,null,"Km"]
["เขตการขาย :",null,{"$f":"INDEX(Sale_Region,ActiveSheetName)","v":0},null,"ผช.ขาย",null,{"$f":"INDEX(OFFSET(Sale_Region,,2),ActiveSheetName)","v":0},null,null,null,null,null,null,null,"ของเหลือ :",null,null,{"$f":"F136","v":0},null,null,"ชิ้น",null,"เล็กสด(41)",null,null,null,{"$f":"Cash_Minor_Bill","v":0},null,null,null,"เล็กเชื่อ(43)",null,null,null,{"$f":"Credit_Minor_Bill","v":0},null,null,null,"บิลเล็ก :",null,null,{"$f":"AA4+AI4","v":0},null,null,null,null,"จำนวนลิตร :",null,null,null,null,null,"ลิตร",null,"ไมล์เข้า :",null,null,null,null,null,null,"Km"]
["สายส่ง :",null,{"$f":"\"Sale \"&ใส่ข้อมูล!E3&\"-\"&ใส่ข้อมูล!G3","v":"Sale KB-01"},null,"พนักงานเสริม",null,{"$f":"INDEX(OFFSET(Sale_Region,,3),ActiveSheetName)","v":0},null,null,null,null,null,null,null,"ของเสีย :",null,null,{"$f":"G136","v":0},null,null,"ชิ้น",null,"น้ำหนักของเสีย",null,null,null,null,null,null,null,"Kg.",null,"%ของเสีย",null,null,{"$f":"IF(Order_Cal=0,0,ROUND(Waste_Cal*100/Order_Cal,2))","v":0},null,"%","VAT :",null,null,{"$f":"EW81","v":0},null,null,null,null,"ต้นทุนสาขา :",null,null,{"$f":"SUMPRODUCT((($A$88:$A$135)-($A$88:$A$135)*0.45)*(($E$88:$E$135)-($G$88:$G$135)))","v":0},null,null,"บาท",null,"ระยะทาง :",null,null,{"$f":"IF(OR($BF$4=0,$BF$3=0),0,$BF$4-$BF$3)","v":0},null,null,null,"Km"]
[]
["No","รหัสร้าน (CustNo)","ชื่อร้าน (Store Name)","เวลาเข้าร้าน","ระยะเวลาระหว่างร้าน","บิล(Invoice)",{"$f":"INDEX(INDIRECT(\"dProduct[ProductName]\"),ROUNDUP(COLUMNS($G:G)/3,0))","v":"ขนมปังหมูหยองน้ำสลัด"},null,null,{"$f":"INDEX(INDIRECT(\"dProduct[ProductName]\"),ROUNDUP(COLUMNS($G:J)/3,0))","v":"ขนมปังหมูหยองน้ำพริกเผา"},null,null,{"$f":"INDEX(INDIRECT(\"dProduct[ProductName]\"),ROUNDUP(COLUMNS($G:M)/3,0))","v":"ขนมปังไก่หยองน้ำสลัด"},null,null,{"$f":"INDEX(INDIRECT(\"dProduct[ProductName]\"),ROUNDUP(COLUMNS($G:P)/3,0))","v":"ขนมปังไส้ครีมสลัด"},null,null,{"$f":"INDEX(INDIRECT(\"dProduct[ProductName]\"),ROUNDUP(COLUMNS($G:S)/3,0))","v":"ขนมปังเนยสด"},null,null,{"$f":"INDEX(INDIRECT(\"dProduct[ProductName]\"),ROUNDUP(COLUMNS($G:V)/3,0))","v":"ขนมปังไส้สังขยาเล็ก"},null,null,{"$f":"INDEX(INDIRECT(\"dProduct[ProductName]\"),ROUNDUP(COLUMNS($G:Y)/3,0))","v":"ขนมปังไส้เผือก"},null,null,{"$f":"INDEX(INDIRECT(\"dProduct[ProductName]\"),ROUNDUP(COLUMNS($G:AB)/3,0))","v":"ขนมปังไส้ถั่วแดง"},null,null,{"$f":"INDEX(INDIRECT(\"dProduct[ProductName]\"),ROUNDUP(COLUMNS($G:AE)/3,0))","v":"ขนมปังไส้ถั่วดำ"},null,null,{"$f":"INDEX(INDIRECT(\"dProduct[ProductName]\"),ROUNDUP(COLUMNS($G:AH)/3,0))","v":"ขนมปังไส้มันม่วง"},null,null,{"$f":"INDEX(INDIRECT(\"dProduct[ProductName]\"),ROUNDUP(COLUMNS($G:AK)/3,0))","v":"เค้กกล้วยหอม"},null,null,{"$f":"INDEX(INDIRECT(\"dProduct[ProductName]\"),ROUNDUP(COLUMNS($G:AN)/3,0))","v":"เค้กบัตเตอร์"},null,null,{"$f":"INDEX(INDIRECT(\"dProduct[ProductName]\"),ROUNDUP(COLUMNS($G:AQ)/3,0))","v":"ขนมปังโรลถั่วแดง"},null,null,{"$f":"INDEX(INDIRECT(\"dProduct[ProductName]\"),ROUNDUP(COLUMNS($G:AT)/3,0))","v":"ขนมปังไส้สังขยาใหญ่"},null,null,{"$f":"INDEX(INDIRECT(\"dProduct[ProductName]\"),ROUNDUP(COLUMNS($G:AW)/3,0))","v":"ขนมปังชนิดแผ่น(480กรัม)"},null,null,{"$f":"INDEX(INDIRECT(\"dProduct[ProductName]\"),ROUNDUP(COLUMNS($G:AZ)/3,0))","v":"โมจิไส้ถั่ว"},null,null,{"$f":"INDEX(INDIRECT(\"dProduct[ProductName]\"),ROUNDUP(COLUMNS($G:BC)/3,0))","v":"โมจิไส้เผือก"},null,null,{"$f":"INDEX(INDIRECT(\"dProduct[ProductName]\"),ROUNDUP(COLUMNS($G:BF)/3,0))","v":"โมจิไส้ถั่วไข่เค็ม"},null,null,{"$f":"INDEX(INDIRECT(\"dProduct[ProductName]\"),ROUNDUP(COLUMNS($G:BI)/3,0))","v":"ขนมปังพิซซ่า"},null,null,{"$f":"INDEX(INDIRECT(\"dProduct[ProductName]\"),ROUNDUP(COLUMNS($G:BL)/3,0))","v":"ขนมปังพิซซ่าปูอัดแฮม"},null,null,{"$f":"INDEX(INDIRECT(\"dProduct[ProductName]\"),ROUNDUP(COLUMNS($G:BO)/3,0))","v":"ขนมปังไส้กรอก"},null,null,{"$f":"INDEX(INDIRECT(\"dProduct[ProductName]\"),ROUNDUP(COLUMNS($G:BR)/3,0))","v":"ขนมก้านบัว"},null,null,{"$f":"INDEX(INDIRECT(\"dProduct[ProductName]\"),ROUNDUP(COLUMNS($G:BU)/3,0))","v":"พายสับปะรด"},null,null,{"$f":"INDEX(INDIRECT(\"dProduct[ProductName]\"),ROUNDUP(COLUMNS($G:BX)/3,0))","v":"พายไส้มะพร้าว"},null,null,{"$f":"INDEX(INDIRECT(\"dProduct[ProductName]\"),ROUNDUP(COLUMNS($G:CA)/3,0))","v":"ขนมปังโรลมันเทศ"},null,null,{"$f":"INDEX(INDIRECT(\"dProduct[ProductName]\"),ROUNDUP(COLUMNS($G:CD)/3,0))","v":"ขนมปังไส้ครีมสลัดน้ำพริกเผา"},null,null,{"$f":"INDEX(INDIRECT(\"dProduct[ProductName]\"),ROUNDUP(COLUMNS($G:CG)/3,0))","v":"ขนมปังไส้สังขยาไข่"},null,null,{"$f":"INDEX(INDIRECT(\"dProduct[ProductName]\"),ROUNDUP(COLUMNS($G:CJ)/3,0))","v":"ขนมปังไส้สังขยามะพร้าว"},null,null,{"$f":"INDEX(INDIRECT(\"dProduct[ProductName]\"),ROUNDUP(COLUMNS($G:CM)/3,0))","v":"ขนมปังไส้ครีมชาไทย"},null,null,{"$f":"INDEX(INDIRECT(\"dProduct[ProductName]\"),ROUNDUP(COLUMNS($G:CP)/3,0))","v":"ขนมปังโรลมันม่วง"},null,null,{"$f":"INDEX(INDIRECT(\"dProduct[ProductName]\"),ROUNDUP(COLUMNS($G:CS)/3,0))","v":"ขนมปังโรลช็อกโกแลต"},null,null,{"$f":"INDEX(INDIRECT(\"dProduct[ProductName]\"),ROUNDUP(COLUMNS($G:CV)/3,0))","v":"ขนมปังชนิดแผ่น(155กรัม)"},null,null,{"$f":"INDEX(INDIRECT(\"dProduct[ProductName]\"),ROUNDUP(COLUMNS($G:CY)/3,0))","v":"ขนมปังโรลเผือก"},null,null,{"$f":"INDEX(INDIRECT(\"dProduct[ProductName]\"),ROUNDUP(COLUMNS($G:DB)/3,0))","v":"ขนมปังไก่หยองน้ำสลัด Mini"},null,null,{"$f":"INDEX(INDIRECT(\"dProduct[ProductName]\"),ROUNDUP(COLUMNS($G:DE)/3,0))","v":"ขนมปังไส้ช็อกโกแลต"},null,null,{"$f":"INDEX(INDIRECT(\"dProduct[ProductName]\"),ROUNDUP(COLUMNS($G:DH)/3,0))","v":"ขนมปังไส้ครีมสังขยาไข่"},null,null,{"$f":"INDEX(INDIRECT(\"dProduct[ProductName]\"),ROUNDUP(COLUMNS($G:DK)/3,0))","v":"ขนมปังพิซซ่าฮาวายเอี้ยน"},null,null,{"$f":"INDEX(INDIRECT(\"dProduct[ProductName]\"),ROUNDUP(COLUMNS($G:DN)/3,0))","v":"ครัวซองต์หมูหยองน้ำสลัด"},null,null,{"$f":"INDEX(INDIRECT(\"dProduct[ProductName]\"),ROUNDUP(COLUMNS($G:DQ)/3,0))","v":"แพนเบรดไส้เผือก"},null,null,{"$f":"INDEX(INDIRECT(\"dProduct[ProductName]\"),ROUNDUP(COLUMNS($G:DT)/3,0))","v":"แพนเบรดไส้ถั่วแดง"},null,null,{"$f":"INDEX(INDIRECT(\"dProduct[ProductName]\"),ROUNDUP(COLUMNS($G:DW)/3,0))","v":"ขนมปังกรอบเนยน้ำตาล(30กรัม)"},null,null,{"$f":"INDEX(INDIRECT(\"dProduct[ProductName]\"),ROUNDUP(COLUMNS($G:DZ)/3,0))","v":"ขนมปังชนิดแผ่นโฮลวีต"},null,null,{"$f":"INDEX(INDIRECT(\"dProduct[ProductName]\"),ROUNDUP(COLUMNS($G:EC)/3,0))","v":"เค้กโรลใบเตย"},null,null,{"$f":"INDEX(INDIRECT(\"dProduct[ProductName]\"),ROUNDUP(COLUMNS($G:EF)/3,0))","v":"ขนมโมจิไส้ถั่วดำ"},null,null,{"$f":"INDEX(INDIRECT(\"dProduct[ProductName]\"),ROUNDUP(COLUMNS($G:EI)/3,0))","v":"ครัวซองต์ไส้กรอกชีส"},null,null,{"$f":"INDEX(INDIRECT(\"dProduct[ProductName]\"),ROUNDUP(COLUMNS($G:EL)/3,0))","v":"ขนมเปี๊ยะไส้ถั่ว"},null,null,{"$f":"INDEX(INDIRECT(\"dProduct[ProductName]\"),ROUNDUP(COLUMNS($G:EO)/3,0))","v":"ขนมเปี๊ยะไส้ฟัก"},null,null,{"$f":"INDEX(INDIRECT(\"dProduct[ProductName]\"),ROUNDUP(COLUMNS($G:ER)/3,0))","v":"มังกี้เค้ก"},null,null,"มูลค่าสินค้า",null,"ภาษี","รวมยอดขาย"]
[null,null,null,null,null,"ราคาขาย",{"$f":"IF(G$7=0,0,INDEX(Price_List,ROUNDUP(COLUMNS($G:G)/3,0)))","v":20},null,null,{"$f":"IF(J$7=0,0,INDEX(Price_List,ROUNDUP(COLUMNS($G:J)/3,0)))","v":20},null,null,{"$f":"IF(M$7=0,0,INDEX(Price_List,ROUNDUP(COLUMNS($G:M)/3,0)))","v":20},null,null,{"$f":"IF(P$7=0,0,INDEX(Price_List,ROUNDUP(COLUMNS($G:P)/3,0)))","v":15},null,null,{"$f":"IF(S$7=0,0,INDEX(Price_List,ROUNDUP(COLUMNS($G:S)/3,0)))","v":15},null,null,{"$f":"IF(V$7=0,0,INDEX(Price_List,ROUNDUP(COLUMNS($G:V)/3,0)))","v":10},null,null,{"$f":"IF(Y$7=0,0,INDEX(Price_List,ROUNDUP(COLUMNS($G:Y)/3,0)))","v":10},null,null,{"$f":"IF(AB$7=0,0,INDEX(Price_List,ROUNDUP(COLUMNS($G:AB)/3,0)))","v":10},null,null,{"$f":"IF(AE$7=0,0,INDEX(Price_List,ROUNDUP(COLUMNS($G:AE)/3,0)))","v":10},null,null,{"$f":"IF(AH$7=0,0,INDEX(Price_List,ROUNDUP(COLUMNS($G:AH)/3,0)))","v":10},null,null,{"$f":"IF(AK$7=0,0,INDEX(Price_List,ROUNDUP(COLUMNS($G:AK)/3,0)))","v":15},null,null,{"$f":"IF(AN$7=0,0,INDEX(Price_List,ROUNDUP(COLUMNS($G:AN)/3,0)))","v":15},null,null,{"$f":"IF(AQ$7=0,0,INDEX(Price_List,ROUNDUP(COLUMNS($G:AQ)/3,0)))","v":15},null,null,{"$f":"IF(AT$7=0,0,INDEX(Price_List,ROUNDUP(COLUMNS($G:AT)/3,0)))","v":15},null,null,{"$f":"IF(AW$7=0,0,INDEX(Price_List,ROUNDUP(COLUMNS($G:AW)/3,0)))","v":42},null,null,{"$f":"IF(AZ$7=0,0,INDEX(Price_List,ROUNDUP(COLUMNS($G:AZ)/3,0)))","v":12},null,null,{"$f":"IF(BC$7=0,0,INDEX(Price_List,ROUNDUP(COLUMNS($G:BC)/3,0)))","v":12},null,null,{"$f":"IF(BF$7=0,0,INDEX(Price_List,ROUNDUP(COLUMNS($G:BF)/3,0)))","v":15},null,null,{"$f":"IF(BI$7=0,0,INDEX(Price_List,ROUNDUP(COLUMNS($G:BI)/3,0)))","v":20},null,null,{"$f":"IF(BL$7=0,0,INDEX(Price_List,ROUNDUP(COLUMNS($G:BL)/3,0)))","v":20},null,null,{"$f":"IF(BO$7=0,0,INDEX(Price_List,ROUNDUP(COLUMNS($G:BO)/3,0)))","v":20},null,null,{"$f":"IF(BR$7=0,0,INDEX(Price_List,ROUNDUP(COLUMNS($G:BR)/3,0)))","v":15},null,null,{"$f":"IF(BU$7=0,0,INDEX(Price_List,ROUNDUP(COLUMNS($G:BU)/3,0)))","v":20},null,null,{"$f":"IF(BX$7=0,0,INDEX(Price_List,ROUNDUP(COLUMNS($G:BX)/3,0)))","v":20},null,null,{"$f":"IF(CA$7=0,0,INDEX(Price_List,ROUNDUP(COLUMNS($G:CA)/3,0)))","v":15},null,null,{"$f":"IF(CD$7=0,0,INDEX(Price_List,ROUNDUP(COLUMNS($G:CD)/3,0)))","v":15},null,null,{"$f":"IF(CG$7=0,0,INDEX(Price_List,ROUNDUP(COLUMNS($G:CG)/3,0)))","v":20},null,null,{"$f":"IF(CJ$7=0,0,INDEX(Price_List,ROUNDUP(COLUMNS($G:CJ)/3,0)))","v":20},null,null,{"$f":"IF(CM$7=0,0,INDEX(Price_List,ROUNDUP(COLUMNS($G:CM)/3,0)))","v":10},null,null,{"$f":"IF(CP$7=0,0,INDEX(Price_List,ROUNDUP(COLUMNS($G:CP)/3,0)))","v":15},null,null,{"$f":"IF(CS$7=0,0,INDEX(Price_List,ROUNDUP(COLUMNS($G:CS)/3,0)))","v":15},null,null,{"$f":"IF(CV$7=0,0,INDEX(Price_List,ROUNDUP(COLUMNS($G:CV)/3,0)))","v":16},null,null,{"$f":"IF(CY$7=0,0,INDEX(Price_List,ROUNDUP(COLUMNS($G:CY)/3,0)))","v":15},null,null,{"$f":"IF(DB$7=0,0,INDEX(Price_List,ROUNDUP(COLUMNS($G:DB)/3,0)))","v":15},null,null,{"$f":"IF(DE$7=0,0,INDEX(Price_List,ROUNDUP(COLUMNS($G:DE)/3,0)))","v":10},null,null,{"$f":"IF(DH$7=0,0,INDEX(Price_List,ROUNDUP(COLUMNS($G:DH)/3,0)))","v":10},null,null,{"$f":"IF(DK$7=0,0,INDEX(Price_List,ROUNDUP(COLUMNS($G:DK)/3,0)))","v":20},null,null,{"$f":"IF(DN$7=0,0,INDEX(Price_List,ROUNDUP(COLUMNS($G:DN)/3,0)))","v":20},null,null,{"$f":"IF(DQ$7=0,0,INDEX(Price_List,ROUNDUP(COLUMNS($G:DQ)/3,0)))","v":15},null,null,{"$f":"IF(DT$7=0,0,INDEX(Price_List,ROUNDUP(COLUMNS($G:DT)/3,0)))","v":15},null,null,{"$f":"IF(DW$7=0,0,INDEX(Price_List,ROUNDUP(COLUMNS($G:DW)/3,0)))","v":12},null,null,{"$f":"IF(DZ$7=0,0,INDEX(Price_List,ROUNDUP(COLUMNS($G:DZ)/3,0)))","v":18},null,null,{"$f":"IF(EC$7=0,0,INDEX(Price_List,ROUNDUP(COLUMNS($G:EC)/3,0)))","v":12},null,null,{"$f":"IF(EF$7=0,0,INDEX(Price_List,ROUNDUP(COLUMNS($G:EF)/3,0)))","v":12},null,null,{"$f":"IF(EI$7=0,0,INDEX(Price_List,ROUNDUP(COLUMNS($G:EI)/3,0)))","v":25},null,null,{"$f":"IF(EL$7=0,0,INDEX(Price_List,ROUNDUP(COLUMNS($G:EL)/3,0)))","v":12},null,null,{"$f":"IF(EO$7=0,0,INDEX(Price_List,ROUNDUP(COLUMNS($G:EO)/3,0)))","v":12},null,null,{"$f":"IF(ER$7=0,0,INDEX(Price_List,ROUNDUP(COLUMNS($G:ER)/3,0)))","v":12},null,null,"เงินเชื่อ","เงินสด"]
[null,null,null,null,null,"คงเหลือ(ตามบัญชี)",{"$f":"IF(G$7=0,0,INDEX(INDIRECT(Order_Rng),ROUNDUP(COLUMNS($G:G)/3,0)))","v":0},null,null,{"$f":"IF(J$7=0,0,INDEX(INDIRECT(Order_Rng),ROUNDUP(COLUMNS($G:J)/3,0)))","v":0},null,null,{"$f":"IF(M$7=0,0,INDEX(INDIRECT(Order_Rng),ROUNDUP(COLUMNS($G:M)/3,0)))","v":0},null,null,{"$f":"IF(P$7=0,0,INDEX(INDIRECT(Order_Rng),ROUNDUP(COLUMNS($G:P)/3,0)))","v":0},null,null,{"$f":"IF(S$7=0,0,INDEX(INDIRECT(Order_Rng),ROUNDUP(COLUMNS($G:S)/3,0)))","v":0},null,null,{"$f":"IF(V$7=0,0,INDEX(INDIRECT(Order_Rng),ROUNDUP(COLUMNS($G:V)/3,0)))","v":0},null,null,{"$f":"IF(Y$7=0,0,INDEX(INDIRECT(Order_Rng),ROUNDUP(COLUMNS($G:Y)/3,0)))","v":0},null,null,{"$f":"IF(AB$7=0,0,INDEX(INDIRECT(Order_Rng),ROUNDUP(COLUMNS($G:AB)/3,0)))","v":0},null,null,{"$f":"IF(AE$7=0,0,INDEX(INDIRECT(Order_Rng),ROUNDUP(COLUMNS($G:AE)/3,0)))","v":0},null,null,{"$f":"IF(AH$7=0,0,INDEX(INDIRECT(Order_Rng),ROUNDUP(COLUMNS($G:AH)/3,0)))","v":0},null,null,{"$f":"IF(AK$7=0,0,INDEX(INDIRECT(Order_Rng),ROUNDUP(COLUMNS($G:AK)/3,0)))","v":0},null,null,{"$f":"IF(AN$7=0,0,INDEX(INDIRECT(Order_Rng),ROUNDUP(COLUMNS($G:AN)/3,0)))","v":0},null,null,{"$f":"IF(AQ$7=0,0,INDEX(INDIRECT(Order_Rng),ROUNDUP(COLUMNS($G:AQ)/3,0)))","v":0},null,null,{"$f":"IF(AT$7=0,0,INDEX(INDIRECT(Order_Rng),ROUNDUP(COLUMNS($G:AT)/3,0)))","v":0},null,null,{"$f":"IF(AW$7=0,0,INDEX(INDIRECT(Order_Rng),ROUNDUP(COLUMNS($G:AW)/3,0)))","v":0},null,null,{"$f":"IF(AZ$7=0,0,INDEX(INDIRECT(Order_Rng),ROUNDUP(COLUMNS($G:AZ)/3,0)))","v":0},null,null,{"$f":"IF(BC$7=0,0,INDEX(INDIRECT(Order_Rng),ROUNDUP(COLUMNS($G:BC)/3,0)))","v":0},null,null,{"$f":"IF(BF$7=0,0,INDEX(INDIRECT(Order_Rng),ROUNDUP(COLUMNS($G:BF)/3,0)))","v":0},null,null,{"$f":"IF(BI$7=0,0,INDEX(INDIRECT(Order_Rng),ROUNDUP(COLUMNS($G:BI)/3,0)))","v":0},null,null,{"$f":"IF(BL$7=0,0,INDEX(INDIRECT(Order_Rng),ROUNDUP(COLUMNS($G:BL)/3,0)))","v":0},null,null,{"$f":"IF(BO$7=0,0,INDEX(INDIRECT(Order_Rng),ROUNDUP(COLUMNS($G:BO)/3,0)))","v":0},null,null,{"$f":"IF(BR$7=0,0,INDEX(INDIRECT(Order_Rng),ROUNDUP(COLUMNS($G:BR)/3,0)))","v":0},null,null,{"$f":"IF(BU$7=0,0,INDEX(INDIRECT(Order_Rng),ROUNDUP(COLUMNS($G:BU)/3,0)))","v":0},null,null,{"$f":"IF(BX$7=0,0,INDEX(INDIRECT(Order_Rng),ROUNDUP(COLUMNS($G:BX)/3,0)))","v":0},null,null,{"$f":"IF(CA$7=0,0,INDEX(INDIRECT(Order_Rng),ROUNDUP(COLUMNS($G:CA)/3,0)))","v":0},null,null,{"$f":"IF(CD$7=0,0,INDEX(INDIRECT(Order_Rng),ROUNDUP(COLUMNS($G:CD)/3,0)))","v":0},null,null,{"$f":"IF(CG$7=0,0,INDEX(INDIRECT(Order_Rng),ROUNDUP(COLUMNS($G:CG)/3,0)))","v":0},null,null,{"$f":"IF(CJ$7=0,0,INDEX(INDIRECT(Order_Rng),ROUNDUP(COLUMNS($G:CJ)/3,0)))","v":0},null,null,{"$f":"IF(CM$7=0,0,INDEX(INDIRECT(Order_Rng),ROUNDUP(COLUMNS($G:CM)/3,0)))","v":0},null,null,{"$f":"IF(CP$7=0,0,INDEX(INDIRECT(Order_Rng),ROUNDUP(COLUMNS($G:CP)/3,0)))","v":0},null,null,{"$f":"IF(CS$7=0,0,INDEX(INDIRECT(Order_Rng),ROUNDUP(COLUMNS($G:CS)/3,0)))","v":0},null,null,{"$f":"IF(CV$7=0,0,INDEX(INDIRECT(Order_Rng),ROUNDUP(COLUMNS($G:CV)/3,0)))","v":0},null,null,{"$f":"IF(CY$7=0,0,INDEX(INDIRECT(Order_Rng),ROUNDUP(COLUMNS($G:CY)/3,0)))","v":0},null,null,{"$f":"IF(DB$7=0,0,INDEX(INDIRECT(Order_Rng),ROUNDUP(COLUMNS($G:DB)/3,0)))","v":0},null,null,{"$f":"IF(DE$7=0,0,INDEX(INDIRECT(Order_Rng),ROUNDUP(COLUMNS($G:DE)/3,0)))","v":0},null,null,{"$f":"IF(DH$7=0,0,INDEX(INDIRECT(Order_Rng),ROUNDUP(COLUMNS($G:DH)/3,0)))","v":0},null,null,{"$f":"IF(DK$7=0,0,INDEX(INDIRECT(Order_Rng),ROUNDUP(COLUMNS($G:DK)/3,0)))","v":0},null,null,{"$f":"IF(DN$7=0,0,INDEX(INDIRECT(Order_Rng),ROUNDUP(COLUMNS($G:DN)/3,0)))","v":0},null,null,{"$f":"IF(DQ$7=0,0,INDEX(INDIRECT(Order_Rng),ROUNDUP(COLUMNS($G:DQ)/3,0)))","v":0},null,null,{"$f":"IF(DT$7=0,0,INDEX(INDIRECT(Order_Rng),ROUNDUP(COLUMNS($G:DT)/3,0)))","v":0},null,null,{"$f":"IF(DW$7=0,0,INDEX(INDIRECT(Order_Rng),ROUNDUP(COLUMNS($G:DW)/3,0)))","v":0},null,null,{"$f":"IF(DZ$7=0,0,INDEX(INDIRECT(Order_Rng),ROUNDUP(COLUMNS($G:DZ)/3,0)))","v":0},null,null,{"$f":"IF(EC$7=0,0,INDEX(INDIRECT(Order_Rng),ROUNDUP(COLUMNS($G:EC)/3,0)))","v":0},null,null,{"$f":"IF(EF$7=0,0,INDEX(INDIRECT(Order_Rng),ROUNDUP(COLUMNS($G:EF)/3,0)))","v":0},null,null,{"$f":"IF(EI$7=0,0,INDEX(INDIRECT(Order_Rng),ROUNDUP(COLUMNS($G:EI)/3,0)))","v":0},null,null,{"$f":"IF(EL$7=0,0,INDEX(INDIRECT(Order_Rng),ROUNDUP(COLUMNS($G:EL)/3,0)))","v":0},null,null,{"$f":"IF(EO$7=0,0,INDEX(INDIRECT(Order_Rng),ROUNDUP(COLUMNS($G:EO)/3,0)))","v":0},null,null,{"$f":"IF(ER$7=0,0,INDEX(INDIRECT(Order_Rng),ROUNDUP(COLUMNS($G:ER)/3,0)))","v":0}]
[{"$f":"IF(OR($B10=\"\",COUNTIF($B$10:$B10,$B10)>1,LEN(TRIM($B10))<>10,ISNUMBER(--MID(TRIM($B10),5,1))),\"-\",MAX(COUNT($A$9:$A9)+1))","v":"-"}]
[{"$f":"IF(OR($B11=\"\",COUNTIF($B$10:$B11,$B11)>1,LEN(TRIM($B11))<>10,ISNUMBER(--MID(TRIM($B11),5,1))),\"-\",MAX(COUNT($A$9:$A10)+1))","v":"-"},null,null,null,{"$f":"IF(D11=\"\",\"\",D11-D10)","v":""}]
[{"$f":"IF(OR($B12=\"\",COUNTIF($B$10:$B12,$B12)>1,LEN(TRIM($B12))<>10,ISNUMBER(--MID(TRIM($B12),5,1))),\"-\",MAX(COUNT($A$9:$A11)+1))","v":"-"},null,null,null,{"$f":"IF(D12=\"\",\"\",D12-D11)","v":""}]
[{"$f":"IF(OR($B13=\"\",COUNTIF($B$10:$B13,$B13)>1,LEN(TRIM($B13))<>10,ISNUMBER(--MID(TRIM($B13),5,1))),\"-\",MAX(COUNT($A$9:$A12)+1))","v":"-"},null,null,null,""]
[{"$f":"IF(OR($B14=\"\",COUNTIF($B$10:$B14,$B14)>1,LEN(TRIM($B14))<>10,ISNUMBER(--MID(TRIM($B14),5,1))),\"-\",MAX(COUNT($A$9:$A13)+1))","v":"-"},null,null,null,""]
[{"$f":"IF(OR($B15=\"\",COUNTIF($B$10:$B15,$B15)>1,LEN(TRIM($B15))<>10,ISNUMBER(--MID(TRIM($B15),5,1))),\"-\",MAX(COUNT($A$9:$A14)+1))","v":"-"},null,null,null,""]
[{"$f":"IF(OR($B16=\"\",COUNTIF($B$10:$B16,$B16)>1,LEN(TRIM($B16))<>10,ISNUMBER(--MID(TRIM($B16),5,1))),\"-\",MAX(COUNT($A$9:$A15)+1))","v":"-"},null,null,null,""]
[{"$f":"IF(OR($B17=\"\",COUNTIF($B$10:$B17,$B17)>1,LEN(TRIM($B17))<>10,ISNUMBER(--MID(TRIM($B17),5,1))),\"-\",MAX(COUNT($A$9:$A16)+1))","v":"-"},null,null,null,""]
[{"$f":"IF(OR($B18=\"\",COUNTIF($B$10:$B18,$B18)>1,LEN(TRIM($B18))<>10,ISNUMBER(--MID(TRIM($B18),5,1))),\"-\",MAX(COUNT($A$9:$A17)+1))","v":"-"},null,null,null,""]
[{"$f":"IF(OR($B19=\"\",COUNTIF($B$10:$B19,$B19)>1,LEN(TRIM($B19))<>10,ISNUMBER(--MID(TRIM($B19),5,1))),\"-\",MAX(COUNT($A$9:$A18)+1))","v":"-"},null,null,null,""]
[{"$f":"IF(OR($B20=\"\",COUNTIF($B$10:$B20,$B20)>1,LEN(TRIM($B20))<>10,ISNUMBER(--MID(TRIM($B20),5,1))),\"-\",MAX(COUNT($A$9:$A19)+1))","v":"-"},null,null,null,""]
[{"$f":"IF(OR($B21=\"\",COUNTIF($B$10:$B21,$B21)>1,LEN(TRIM($B21))<>10,ISNUMBER(--MID(TRIM($B21),5,1))),\"-\",MAX(COUNT($A$9:$A20)+1))","v":"-"},null,null,null,""]
[{"$f":"IF(OR($B22=\"\",COUNTIF($B$10:$B22,$B22)>1,LEN(TRIM($B22))<>10,ISNUMBER(--MID(TRIM($B22),5,1))),\"-\",MAX(COUNT($A$9:$A21)+1))","v":"-"},null,null,null,""]
[{"$f":"IF(OR($B23=\"\",COUNTIF($B$10:$B23,$B23)>1,LEN(TRIM($B23))<>10,ISNUMBER(--MID(TRIM($B23),5,1))),\"-\",MAX(COUNT($A$9:$A22)+1))","v":"-"},null,null,null,""]
[{"$f":"IF(OR($B24=\"\",COUNTIF($B$10:$B24,$B24)>1,LEN(TRIM($B24))<>10,ISNUMBER(--MID(TRIM($B24),5,1))),\"-\",MAX(COUNT($A$9:$A23)+1))","v":"-"},null,null,null,""]
[{"$f":"IF(OR($B25=\"\",COUNTIF($B$10:$B25,$B25)>1,LEN(TRIM($B25))<>10,ISNUMBER(--MID(TRIM($B25),5,1))),\"-\",MAX(COUNT($A$9:$A24)+1))","v":"-"},null,null,null,""]
[{"$f":"IF(OR($B26=\"\",COUNTIF($B$10:$B26,$B26)>1,LEN(TRIM($B26))<>10,ISNUMBER(--MID(TRIM($B26),5,1))),\"-\",MAX(COUNT($A$9:$A25)+1))","v":"-"},null,null,null,""]
[{"$f":"IF(OR($B27=\"\",COUNTIF($B$10:$B27,$B27)>1,LEN(TRIM($B27))<>10,ISNUMBER(--MID(TRIM($B27),5,1))),\"-\",MAX(COUNT($A$9:$A26)+1))","v":"-"},null,null,null,""]
[{"$f":"IF(OR($B28=\"\",COUNTIF($B$10:$B28,$B28)>1,LEN(TRIM($B28))<>10,ISNUMBER(--MID(TRIM($B28),5,1))),\"-\",MAX(COUNT($A$9:$A27)+1))","v":"-"},null,null,null,""]
[{"$f":"IF(OR($B29=\"\",COUNTIF($B$10:$B29,$B29)>1,LEN(TRIM($B29))<>10,ISNUMBER(--MID(TRIM($B29),5,1))),\"-\",MAX(COUNT($A$9:$A28)+1))","v":"-"},null,null,null,""]
[{"$f":"IF(OR($B30=\"\",COUNTIF($B$10:$B30,$B30)>1,LEN(TRIM($B30))<>10,ISNUMBER(--MID(TRIM($B30),5,1))),\"-\",MAX(COUNT($A$9:$A29)+1))","v":"-"},null,null,null,""]
[{"$f":"IF(OR($B31=\"\",COUNTIF($B$10:$B31,$B31)>1,LEN(TRIM($B31))<>10,ISNUMBER(--MID(TRIM($B31),5,1))),\"-\",MAX(COUNT($A$9:$A30)+1))","v":"-"},null,null,null,""]
[{"$f":"IF(OR($B32=\"\",COUNTIF($B$10:$B32,$B32)>1,LEN(TRIM($B32))<>10,ISNUMBER(--MID(TRIM($B32),5,1))),\"-\",MAX(COUNT($A$9:$A31)+1))","v":"-"},null,null,null,""]
[{"$f":"IF(OR($B33=\"\",COUNTIF($B$10:$B33,$B33)>1,LEN(TRIM($B33))<>10,ISNUMBER(--MID(TRIM($B33),5,1))),\"-\",MAX(COUNT($A$9:$A32)+1))","v":"-"},null,null,null,""]
[{"$f":"IF(OR($B34=\"\",COUNTIF($B$10:$B34,$B34)>1,LEN(TRIM($B34))<>10,ISNUMBER(--MID(TRIM($B34),5,1))),\"-\",MAX(COUNT($A$9:$A33)+1))","v":"-"},null,null,null,""]
[{"$f":"IF(OR($B35=\"\",COUNTIF($B$10:$B35,$B35)>1,LEN(TRIM($B35))<>10,ISNUMBER(--MID(TRIM($B35),5,1))),\"-\",MAX(COUNT($A$9:$A34)+1))","v":"-"},null,null,null,""]
[{"$f":"IF(OR($B36=\"\",COUNTIF($B$10:$B36,$B36)>1,LEN(TRIM($B36))<>10,ISNUMBER(--MID(TRIM($B36),5,1))),\"-\",MAX(COUNT($A$9:$A35)+1))","v":"-"},null,null,null,""]
[{"$f":"IF(OR($B37=\"\",COUNTIF($B$10:$B37,$B37)>1,LEN(TRIM($B37))<>10,ISNUMBER(--MID(TRIM($B37),5,1))),\"-\",MAX(COUNT($A$9:$A36)+1))","v":"-"},null,null,null,""]
[{"$f":"IF(OR($B38=\"\",COUNTIF($B$10:$B38,$B38)>1,LEN(TRIM($B38))<>10,ISNUMBER(--MID(TRIM($B38),5,1))),\"-\",MAX(COUNT($A$9:$A37)+1))","v":"-"},null,null,null,""]
[{"$f":"IF(OR($B39=\"\",COUNTIF($B$10:$B39,$B39)>1,LEN(TRIM($B39))<>10,ISNUMBER(--MID(TRIM($B39),5,1))),\"-\",MAX(COUNT($A$9:$A38)+1))","v":"-"},null,null,null,""]
[{"$f":"IF(OR($B40=\"\",COUNTIF($B$10:$B40,$B40)>1,LEN(TRIM($B40))<>10,ISNUMBER(--MID(TRIM($B40),5,1))),\"-\",MAX(COUNT($A$9:$A39)+1))","v":"-"},null,null,null,""]
[{"$f":"IF(OR($B41=\"\",COUNTIF($B$10:$B41,$B41)>1,LEN(TRIM($B41))<>10,ISNUMBER(--MID(TRIM($B41),5,1))),\"-\",MAX(COUNT($A$9:$A40)+1))","v":"-"},null,null,null,""]
[{"$f":"IF(OR($B42=\"\",COUNTIF($B$10:$B42,$B42)>1,LEN(TRIM($B42))<>10,ISNUMBER(--MID(TRIM($B42),5,1))),\"-\",MAX(COUNT($A$9:$A41)+1))","v":"-"},null,null,null,""]
[{"$f":"IF(OR($B43=\"\",COUNTIF($B$10:$B43,$B43)>1,LEN(TRIM($B43))<>10,ISNUMBER(--MID(TRIM($B43),5,1))),\"-\",MAX(COUNT($A$9:$A42)+1))","v":"-"},null,null,null,""]
[{"$f":"IF(OR($B44=\"\",COUNTIF($B$10:$B44,$B44)>1,LEN(TRIM($B44))<>10,ISNUMBER(--MID(TRIM($B44),5,1))),\"-\",MAX(COUNT($A$9:$A43)+1))","v":"-"},null,null,null,""]
[{"$f":"IF(OR($B45=\"\",COUNTIF($B$10:$B45,$B45)>1,LEN(TRIM($B45))<>10,ISNUMBER(--MID(TRIM($B45),5,1))),\"-\",MAX(COUNT($A$9:$A44)+1))","v":"-"},null,null,null,""]
[{"$f":"IF(OR($B46=\"\",COUNTIF($B$10:$B46,$B46)>1,LEN(TRIM($B46))<>10,ISNUMBER(--MID(TRIM($B46),5,1))),\"-\",MAX(COUNT($A$9:$A45)+1))","v":"-"},null,null,null,""]
[{"$f":"IF(OR($B47=\"\",COUNTIF($B$10:$B47,$B47)>1,LEN(TRIM($B47))<>10,ISNUMBER(--MID(TRIM($B47),5,1))),\"-\",MAX(COUNT($A$9:$A46)+1))","v":"-"},null,null,null,""]
[{"$f":"IF(OR($B48=\"\",COUNTIF($B$10:$B48,$B48)>1,LEN(TRIM($B48))<>10,ISNUMBER(--MID(TRIM($B48),5,1))),\"-\",MAX(COUNT($A$9:$A47)+1))","v":"-"},null,null,null,""]
[{"$f":"IF(OR($B49=\"\",COUNTIF($B$10:$B49,$B49)>1,LEN(TRIM($B49))<>10,ISNUMBER(--MID(TRIM($B49),5,1))),\"-\",MAX(COUNT($A$9:$A48)+1))","v":"-"},null,null,null,""]
[{"$f":"IF(OR($B50=\"\",COUNTIF($B$10:$B50,$B50)>1,LEN(TRIM($B50))<>10,ISNUMBER(--MID(TRIM($B50),5,1))),\"-\",MAX(COUNT($A$9:$A49)+1))","v":"-"},null,null,null,""]
[{"$f":"IF(OR($B51=\"\",COUNTIF($B$10:$B51,$B51)>1,LEN(TRIM($B51))<>10,ISNUMBER(--MID(TRIM($B51),5,1))),\"-\",MAX(COUNT($A$9:$A50)+1))","v":"-"},null,null,null,""]
[{"$f":"IF(OR($B52=\"\",COUNTIF($B$10:$B52,$B52)>1,LEN(TRIM($B52))<>10,ISNUMBER(--MID(TRIM($B52),5,1))),\"-\",MAX(COUNT($A$9:$A51)+1))","v":"-"},null,null,null,""]
[{"$f":"IF(OR($B53=\"\",COUNTIF($B$10:$B53,$B53)>1,LEN(TRIM($B53))<>10,ISNUMBER(--MID(TRIM($B53),5,1))),\"-\",MAX(COUNT($A$9:$A52)+1))","v":"-"},null,null,null,""]
[{"$f":"IF(OR($B54=\"\",COUNTIF($B$10:$B54,$B54)>1,LEN(TRIM($B54))<>10,ISNUMBER(--MID(TRIM($B54),5,1))),\"-\",MAX(COUNT($A$9:$A53)+1))","v":"-"},null,null,null,""]
[{"$f":"IF(OR($B55=\"\",COUNTIF($B$10:$B55,$B55)>1,LEN(TRIM($B55))<>10,ISNUMBER(--MID(TRIM($B55),5,1))),\"-\",MAX(COUNT($A$9:$A54)+1))","v":"-"},null,null,null,""]
[{"$f":"IF(OR($B56=\"\",COUNTIF($B$10:$B56,$B56)>1,LEN(TRIM($B56))<>10,ISNUMBER(--MID(TRIM($B56),5,1))),\"-\",MAX(COUNT($A$9:$A55)+1))","v":"-"},null,null,null,""]
[{"$f":"IF(OR($B57=\"\",COUNTIF($B$10:$B57,$B57)>1,LEN(TRIM($B57))<>10,ISNUMBER(--MID(TRIM($B57),5,1))),\"-\",MAX(COUNT($A$9:$A56)+1))","v":"-"},null,null,null,""]
[{"$f":"IF(OR($B58=\"\",COUNTIF($B$10:$B58,$B58)>1,LEN(TRIM($B58))<>10,ISNUMBER(--MID(TRIM($B58),5,1))),\"-\",MAX(COUNT($A$9:$A57)+1))","v":"-"},null,null,null,""]
[{"$f":"IF(OR($B59=\"\",COUNTIF($B$10:$B59,$B59)>1,LEN(TRIM($B59))<>10,ISNUMBER(--MID(TRIM($B59),5,1))),\"-\",MAX(COUNT($A$9:$A58)+1))","v":"-"},null,null,null,""]
[{"$f":"IF(OR($B60=\"\",COUNTIF($B$10:$B60,$B60)>1,LEN(TRIM($B60))<>10,ISNUMBER(--MID(TRIM($B60),5,1))),\"-\",MAX(COUNT($A$9:$A59)+1))","v":"-"},null,null,null,""]
[{"$f":"IF(OR($B61=\"\",COUNTIF($B$10:$B61,$B61)>1,LEN(TRIM($B61))<>10,ISNUMBER(--MID(TRIM($B61),5,1))),\"-\",MAX(COUNT($A$9:$A60)+1))","v":"-"},null,null,null,""]
[{"$f":"IF(OR($B62=\"\",COUNTIF($B$10:$B62,$B62)>1,LEN(TRIM($B62))<>10,ISNUMBER(--MID(TRIM($B62),5,1))),\"-\",MAX(COUNT($A$9:$A61)+1))","v":"-"},null,null,null,""]
[{"$f":"IF(OR($B63=\"\",COUNTIF($B$10:$B63,$B63)>1,LEN(TRIM($B63))<>10,ISNUMBER(--MID(TRIM($B63),5,1))),\"-\",MAX(COUNT($A$9:$A62)+1))","v":"-"},null,null,null,""]
[{"$f":"IF(OR($B64=\"\",COUNTIF($B$10:$B64,$B64)>1,LEN(TRIM($B64))<>10,ISNUMBER(--MID(TRIM($B64),5,1))),\"-\",MAX(COUNT($A$9:$A63)+1))","v":"-"},null,null,null,""]
[{"$f":"IF(OR($B65=\"\",COUNTIF($B$10:$B65,$B65)>1,LEN(TRIM($B65))<>10,ISNUMBER(--MID(TRIM($B65),5,1))),\"-\",MAX(COUNT($A$9:$A64)+1))","v":"-"},null,null,null,""]
[{"$f":"IF(OR($B66=\"\",COUNTIF($B$10:$B66,$B66)>1,LEN(TRIM($B66))<>10,ISNUMBER(--MID(TRIM($B66),5,1))),\"-\",MAX(COUNT($A$9:$A65)+1))","v":"-"},null,null,null,""]
[{"$f":"IF(OR($B67=\"\",COUNTIF($B$10:$B67,$B67)>1,LEN(TRIM($B67))<>10,ISNUMBER(--MID(TRIM($B67),5,1))),\"-\",MAX(COUNT($A$9:$A66)+1))","v":"-"},null,null,null,""]
[{"$f":"IF(OR($B68=\"\",COUNTIF($B$10:$B68,$B68)>1,LEN(TRIM($B68))<>10,ISNUMBER(--MID(TRIM($B68),5,1))),\"-\",MAX(COUNT($A$9:$A67)+1))","v":"-"},null,null,null,""]
[{"$f":"IF(OR($B69=\"\",COUNTIF($B$10:$B69,$B69)>1,LEN(TRIM($B69))<>10,ISNUMBER(--MID(TRIM($B69),5,1))),\"-\",MAX(COUNT($A$9:$A68)+1))","v":"-"},null,null,null,""]
[{"$f":"IF(OR($B70=\"\",COUNTIF($B$10:$B70,$B70)>1,LEN(TRIM($B70))<>10,ISNUMBER(--MID(TRIM($B70),5,1))),\"-\",MAX(COUNT($A$9:$A69)+1))","v":"-"},null,null,null,""]
[{"$f":"IF(OR($B71=\"\",COUNTIF($B$10:$B71,$B71)>1,LEN(TRIM($B71))<>10,ISNUMBER(--MID(TRIM($B71),5,1))),\"-\",MAX(COUNT($A$9:$A70)+1))","v":"-"},null,null,null,""]
[{"$f":"IF(OR($B72=\"\",COUNTIF($B$10:$B72,$B72)>1,LEN(TRIM($B72))<>10,ISNUMBER(--MID(TRIM($B72),5,1))),\"-\",MAX(COUNT($A$9:$A71)+1))","v":"-"},null,null,null,""]
[{"$f":"IF(OR($B73=\"\",COUNTIF($B$10:$B73,$B73)>1,LEN(TRIM($B73))<>10,ISNUMBER(--MID(TRIM($B73),5,1))),\"-\",MAX(COUNT($A$9:$A72)+1))","v":"-"},null,null,null,""]
[{"$f":"IF(OR($B74=\"\",COUNTIF($B$10:$B74,$B74)>1,LEN(TRIM($B74))<>10,ISNUMBER(--MID(TRIM($B74),5,1))),\"-\",MAX(COUNT($A$9:$A73)+1))","v":"-"},null,null,null,""]
[{"$f":"IF(OR($B75=\"\",COUNTIF($B$10:$B75,$B75)>1,LEN(TRIM($B75))<>10,ISNUMBER(--MID(TRIM($B75),5,1))),\"-\",MAX(COUNT($A$9:$A74)+1))","v":"-"},null,null,null,""]
[{"$f":"IF(OR($B76=\"\",COUNTIF($B$10:$B76,$B76)>1,LEN(TRIM($B76))<>10,ISNUMBER(--MID(TRIM($B76),5,1))),\"-\",MAX(COUNT($A$9:$A75)+1))","v":"-"},null,null,null,{"$f":"IF(D76=\"\",\"\",D76-D75)","v":""}]
[{"$f":"IF(OR($B77=\"\",COUNTIF($B$10:$B77,$B77)>1,LEN(TRIM($B77))<>10,ISNUMBER(--MID(TRIM($B77),5,1))),\"-\",MAX(COUNT($A$9:$A76)+1))","v":"-"},null,null,null,""]
[{"$f":"IF(OR($B78=\"\",COUNTIF($B$10:$B78,$B78)>1,LEN(TRIM($B78))<>10,ISNUMBER(--MID(TRIM($B78),5,1))),\"-\",MAX(COUNT($A$9:$A77)+1))","v":"-"},null,null,null,""]
[{"$f":"IF(OR($B79=\"\",COUNTIF($B$10:$B79,$B79)>1,LEN(TRIM($B79))<>10,ISNUMBER(--MID(TRIM($B79),5,1))),\"-\",MAX(COUNT($A$9:$A78)+1))","v":"-"},null,null,null,""]
["รวมของขาย|ของเสีย|เหลือบนเชลฟ์",null,null,null,null,null,{"$f":"SUM(G10:G79)","v":0},0,0,{"$f":"SUM(J10:J79)","v":0},0,0,0,0,0,0,0,0,0,0,0,0,0,0,0,0,0,0,0,0,0,0,0,0,0,0,0,0,0,0,0,0,0,0,0,0,0,0,0,0,0,0,0,0,0,0,0,0,0,0,0,0,0,0,0,0,0,0,0,0,0,0,0,{"$f":"SUM(BV10:BV79)","v":0},0,0,0,0,0,0,0,0,0,0,0,0,0,0,0,0,0,0,0,0,0,0,0,0,0,0,0,0,0,0,0,0,0,0,0,0,0,0,0,0,0,0,0,0,0,0,0,0,0,0,0,0,0,0,0,0,0,0,0,0,0,{"$f":"SUM(EF10:EF79)","v":0},0,0,{"$f":"SUM(EI10:EI79)","v":0},0,0,0,0,0,{"$f":"SUM(EO10:EO79)","v":0},0,0,0,0,0,"รวมเงินเชื่อ","รวมเงินสด","ภาษี","รวมยอดขาย"]
["ของเหลือ",null,null,null,null,null,{"$f":"G80+H80-G9","v":0},null,null,{"$f":"J80+K80-J9","v":0},null,null,{"$f":"M80+N80-M9","v":0},null,null,{"$f":"P80+Q80-P9","v":0},null,null,{"$f":"S80+T80-S9","v":0},null,null,{"$f":"V80+W80-V9","v":0},null,null,{"$f":"Y80+Z80-Y9","v":0},null,null,{"$f":"AB80+AC80-AB9","v":0},null,null,{"$f":"AE80+AF80-AE9","v":0},null,null,{"$f":"AH80+AI80-AH9","v":0},null,null,{"$f":"AK80+AL80-AK9","v":0},null,null,{"$f":"AN80+AO80-AN9","v":0},null,null,{"$f":"AQ80+AR80-AQ9","v":0},null,null,{"$f":"AT80+AU80-AT9","v":0},null,null,{"$f":"AW80+AX80-AW9","v":0},null,null,{"$f":"AZ80+BA80-AZ9","v":0},null,null,{"$f":"BC80+BD80-BC9","v":0},null,null,{"$f":"BF80+BG80-BF9","v":0},null,null,{"$f":"BI80+BJ80-BI9","v":0},null,null,{"$f":"BL80+BM80-BL9","v":0},null,null,{"$f":"BO80+BP80-BO9","v":0},null,null,{"$f":"BR80+BS80-BR9","v":0},null,null,{"$f":"BU80+BV80-BU9","v":0},null,null,{"$f":"BX80+BY80-BX9","v":0},null,null,{"$f":"CA80+CB80-CA9","v":0},null,null,{"$f":"CD80+CE80-CD9","v":0},null,null,{"$f":"CG80+CH80-CG9","v":0},null,null,{"$f":"CJ80+CK80-CJ9","v":0},null,null,{"$f":"CM80+CN80-CM9","v":0},null,null,{"$f":"CP80+CQ80-CP9","v":0},null,null,{"$f":"CS80+CT80-CS9","v":0},null,null,{"$f":"CV80+CW80-CV9","v":0},null,null,{"$f":"CY80+CZ80-CY9","v":0},null,null,{"$f":"DB80+DC80-DB9","v":0},null,null,{"$f":"DE80+DF80-DE9","v":0},null,null,{"$f":"DH80+DI80-DH9","v":0},null,null,{"$f":"DK80+DL80-DK9","v":0},null,null,{"$f":"DN80+DO80-DN9","v":0},null,null,{"$f":"DQ80+DR80-DQ9","v":0},null,null,{"$f":"DT80+DU80-DT9","v":0},null,null,{"$f":"DW80+DX80-DW9","v":0},null,null,{"$f":"DZ80+EA80-DZ9","v":0},null,null,{"$f":"EC80+ED80-EC9","v":0},null,null,{"$f":"EF80+EG80-EF9","v":0},null,null,{"$f":"EI80+EJ80-EI9","v":0},null,null,{"$f":"EL80+EM80-EL9","v":0},null,null,{"$f":"EO80+EP80-EO9","v":0},null,null,{"$f":"ER80+ES80-ER9","v":0},null,null,{"$f":"SUM(EU10:EU79)","v":0},{"$f":"SUM(EV10:EV79)","v":0},{"$f":"SUM(EW10:EW79)","v":0},{"$f":"SUM(EX10:EX79)","v":0}]
["เฉลี่ย",null,null,"เหลือ/เสีย(จริง)",null,null,{"$f":"INDIRECT(\"F\"&ROW($G$87)+ROUNDUP(COLUMNS($G:G)/3,0))","v":0},{"$f":"INDIRECT(\"G\"&ROW($G$87)+ROUNDUP(COLUMNS($G:H)/3,0))","v":0},null,{"$f":"INDIRECT(\"F\"&ROW($G$87)+ROUNDUP(COLUMNS($G:J)/3,0))","v":0},{"$f":"INDIRECT(\"G\"&ROW($G$87)+ROUNDUP(COLUMNS($G:K)/3,0))","v":0},null,{"$f":"INDIRECT(\"F\"&ROW($G$87)+ROUNDUP(COLUMNS($G:M)/3,0))","v":0},{"$f":"INDIRECT(\"G\"&ROW($G$87)+ROUNDUP(COLUMNS($G:N)/3,0))","v":0},null,{"$f":"INDIRECT(\"F\"&ROW($G$87)+ROUNDUP(COLUMNS($G:P)/3,0))","v":0},{"$f":"INDIRECT(\"G\"&ROW($G$87)+ROUNDUP(COLUMNS($G:Q)/3,0))","v":0},null,{"$f":"INDIRECT(\"F\"&ROW($G$87)+ROUNDUP(COLUMNS($G:S)/3,0))","v":0},{"$f":"INDIRECT(\"G\"&ROW($G$87)+ROUNDUP(COLUMNS($G:T)/3,0))","v":0},null,{"$f":"INDIRECT(\"F\"&ROW($G$87)+ROUNDUP(COLUMNS($G:V)/3,0))","v":0},{"$f":"INDIRECT(\"G\"&ROW($G$87)+ROUNDUP(COLUMNS($G:W)/3,0))","v":0},null,{"$f":"INDIRECT(\"F\"&ROW($G$87)+ROUNDUP(COLUMNS($G:Y)/3,0))","v":0},{"$f":"INDIRECT(\"G\"&ROW($G$87)+ROUNDUP(COLUMNS($G:Z)/3,0))","v":0},null,{"$f":"INDIRECT(\"F\"&ROW($G$87)+ROUNDUP(COLUMNS($G:AB)/3,0))","v":0},{"$f":"INDIRECT(\"G\"&ROW($G$87)+ROUNDUP(COLUMNS($G:AC)/3,0))","v":0},null,{"$f":"INDIRECT(\"F\"&ROW($G$87)+ROUNDUP(COLUMNS($G:AE)/3,0))","v":0},{"$f":"INDIRECT(\"G\"&ROW($G$87)+ROUNDUP(COLUMNS($G:AF)/3,0))","v":0},null,{"$f":"INDIRECT(\"F\"&ROW($G$87)+ROUNDUP(COLUMNS($G:AH)/3,0))","v":0},{"$f":"INDIRECT(\"G\"&ROW($G$87)+ROUNDUP(COLUMNS($G:AI)/3,0))","v":0},null,{"$f":"INDIRECT(\"F\"&ROW($G$87)+ROUNDUP(COLUMNS($G:AK)/3,0))","v":0},{"$f":"INDIRECT(\"G\"&ROW($G$87)+ROUNDUP(COLUMNS($G:AL)/3,0))","v":0},null,{"$f":"INDIRECT(\"F\"&ROW($G$87)+ROUNDUP(COLUMNS($G:AN)/3,0))","v":0},{"$f":"INDIRECT(\"G\"&ROW($G$87)+ROUNDUP(COLUMNS($G:AO)/3,0))","v":0},null,{"$f":"INDIRECT(\"F\"&ROW($G$87)+ROUNDUP(COLUMNS($G:AQ)/3,0))","v":0},{"$f":"INDIRECT(\"G\"&ROW($G$87)+ROUNDUP(COLUMNS($G:AR)/3,0))","v":0},null,{"$f":"INDIRECT(\"F\"&ROW($G$87)+ROUNDUP(COLUMNS($G:AT)/3,0))","v":0},{"$f":"INDIRECT(\"G\"&ROW($G$87)+ROUNDUP(COLUMNS($G:AU)/3,0))","v":0},null,{"$f":"INDIRECT(\"F\"&ROW($G$87)+ROUNDUP(COLUMNS($G:AW)/3,0))","v":0},{"$f":"INDIRECT(\"G\"&ROW($G$87)+ROUNDUP(COLUMNS($G:AX)/3,0))","v":0},null,{"$f":"INDIRECT(\"F\"&ROW($G$87)+ROUNDUP(COLUMNS($G:AZ)/3,0))","v":0},{"$f":"INDIRECT(\"G\"&ROW($G$87)+ROUNDUP(COLUMNS($G:BA)/3,0))","v":0},null,{"$f":"INDIRECT(\"F\"&ROW($G$87)+ROUNDUP(COLUMNS($G:BC)/3,0))","v":0},{"$f":"INDIRECT(\"G\"&ROW($G$87)+ROUNDUP(COLUMNS($G:BD)/3,0))","v":0},null,{"$f":"INDIRECT(\"F\"&ROW($G$87)+ROUNDUP(COLUMNS($G:BF)/3,0))","v":0},{"$f":"INDIRECT(\"G\"&ROW($G$87)+ROUNDUP(COLUMNS($G:BG)/3,0))","v":0},null,{"$f":"INDIRECT(\"F\"&ROW($G$87)+ROUNDUP(COLUMNS($G:BI)/3,0))","v":0},{"$f":"INDIRECT(\"G\"&ROW($G$87)+ROUNDUP(COLUMNS($G:BJ)/3,0))","v":0},null,{"$f":"INDIRECT(\"F\"&ROW($G$87)+ROUNDUP(COLUMNS($G:BL)/3,0))","v":0},{"$f":"INDIRECT(\"G\"&ROW($G$87)+ROUNDUP(COLUMNS($G:BM)/3,0))","v":0},null,{"$f":"INDIRECT(\"F\"&ROW($G$87)+ROUNDUP(COLUMNS($G:BO)/3,0))","v":0},{"$f":"INDIRECT(\"G\"&ROW($G$87)+ROUNDUP(COLUMNS($G:BP)/3,0))","v":0},null,{"$f":"INDIRECT(\"F\"&ROW($G$87)+ROUNDUP(COLUMNS($G:BR)/3,0))","v":0},{"$f":"INDIRECT(\"G\"&ROW($G$87)+ROUNDUP(COLUMNS($G:BS)/3,0))","v":0},null,{"$f":"INDIRECT(\"F\"&ROW($G$87)+ROUNDUP(COLUMNS($G:BU)/3,0))","v":0},{"$f":"INDIRECT(\"G\"&ROW($G$87)+ROUNDUP(COLUMNS($G:BV)/3,0))","v":0},null,{"$f":"INDIRECT(\"F\"&ROW($G$87)+ROUNDUP(COLUMNS($G:BX)/3,0))","v":0},{"$f":"INDIRECT(\"G\"&ROW($G$87)+ROUNDUP(COLUMNS($G:BY)/3,0))","v":0},null,{"$f":"INDIRECT(\"F\"&ROW($G$87)+ROUNDUP(COLUMNS($G:CA)/3,0))","v":0},{"$f":"INDIRECT(\"G\"&ROW($G$87)+ROUNDUP(COLUMNS($G:CB)/3,0))","v":0},null,{"$f":"INDIRECT(\"F\"&ROW($G$87)+ROUNDUP(COLUMNS($G:CD)/3,0))","v":0},{"$f":"INDIRECT(\"G\"&ROW($G$87)+ROUNDUP(COLUMNS($G:CE)/3,0))","v":0},null,{"$f":"INDIRECT(\"F\"&ROW($G$87)+ROUNDUP(COLUMNS($G:CG)/3,0))","v":0},{"$f":"INDIRECT(\"G\"&ROW($G$87)+ROUNDUP(COLUMNS($G:CH)/3,0))","v":0},null,{"$f":"INDIRECT(\"F\"&ROW($G$87)+ROUNDUP(COLUMNS($G:CJ)/3,0))","v":0},{"$f":"INDIRECT(\"G\"&ROW($G$87)+ROUNDUP(COLUMNS($G:CK)/3,0))","v":0},null,{"$f":"INDIRECT(\"F\"&ROW($G$87)+ROUNDUP(COLUMNS($G:CM)/3,0))","v":0},{"$f":"INDIRECT(\"G\"&ROW($G$87)+ROUNDUP(COLUMNS($G:CN)/3,0))","v":0},null,{"$f":"INDIRECT(\"F\"&ROW($G$87)+ROUNDUP(COLUMNS($G:CP)/3,0))","v":0},{"$f":"INDIRECT(\"G\"&ROW($G$87)+ROUNDUP(COLUMNS($G:CQ)/3,0))","v":0},null,{"$f":"INDIRECT(\"F\"&ROW($G$87)+ROUNDUP(COLUMNS($G:CS)/3,0))","v":0},{"$f":"INDIRECT(\"G\"&ROW($G$87)+ROUNDUP(COLUMNS($G:CT)/3,0))","v":0},null,{"$f":"INDIRECT(\"F\"&ROW($G$87)+ROUNDUP(COLUMNS($G:CV)/3,0))","v":0},{"$f":"INDIRECT(\"G\"&ROW($G$87)+ROUNDUP(COLUMNS($G:CW)/3,0))","v":0},null,{"$f":"INDIRECT(\"F\"&ROW($G$87)+ROUNDUP(COLUMNS($G:CY)/3,0))","v":0},{"$f":"INDIRECT(\"G\"&ROW($G$87)+ROUNDUP(COLUMNS($G:CZ)/3,0))","v":0},null,{"$f":"INDIRECT(\"F\"&ROW($G$87)+ROUNDUP(COLUMNS($G:DB)/3,0))","v":0},{"$f":"INDIRECT(\"G\"&ROW($G$87)+ROUNDUP(COLUMNS($G:DC)/3,0))","v":0},null,{"$f":"INDIRECT(\"F\"&ROW($G$87)+ROUNDUP(COLUMNS($G:DE)/3,0))","v":0},{"$f":"INDIRECT(\"G\"&ROW($G$87)+ROUNDUP(COLUMNS($G:DF)/3,0))","v":0},null,{"$f":"INDIRECT(\"F\"&ROW($G$87)+ROUNDUP(COLUMNS($G:DH)/3,0))","v":0},{"$f":"INDIRECT(\"G\"&ROW($G$87)+ROUNDUP(COLUMNS($G:DI)/3,0))","v":0},null,{"$f":"INDIRECT(\"F\"&ROW($G$87)+ROUNDUP(COLUMNS($G:DK)/3,0))","v":0},{"$f":"INDIRECT(\"G\"&ROW($G$87)+ROUNDUP(COLUMNS($G:DL)/3,0))","v":0},null,{"$f":"INDIRECT(\"F\"&ROW($G$87)+ROUNDUP(COLUMNS($G:DN)/3,0))","v":0},{"$f":"INDIRECT(\"G\"&ROW($G$87)+ROUNDUP(COLUMNS($G:DO)/3,0))","v":0},null,{"$f":"INDIRECT(\"F\"&ROW($G$87)+ROUNDUP(COLUMNS($G:DQ)/3,0))","v":0},{"$f":"INDIRECT(\"G\"&ROW($G$87)+ROUNDUP(COLUMNS($G:DR)/3,0))","v":0},null,{"$f":"INDIRECT(\"F\"&ROW($G$87)+ROUNDUP(COLUMNS($G:DT)/3,0))","v":0},{"$f":"INDIRECT(\"G\"&ROW($G$87)+ROUNDUP(COLUMNS($G:DU)/3,0))","v":0},null,{"$f":"INDIRECT(\"F\"&ROW($G$87)+ROUNDUP(COLUMNS($G:DW)/3,0))","v":0},{"$f":"INDIRECT(\"G\"&ROW($G$87)+ROUNDUP(COLUMNS($G:DX)/3,0))","v":0},null,{"$f":"INDIRECT(\"F\"&ROW($G$87)+ROUNDUP(COLUMNS($G:DZ)/3,0))","v":0},{"$f":"INDIRECT(\"G\"&ROW($G$87)+ROUNDUP(COLUMNS($G:EA)/3,0))","v":0},null,{"$f":"INDIRECT(\"F\"&ROW($G$87)+ROUNDUP(COLUMNS($G:EC)/3,0))","v":0},{"$f":"INDIRECT(\"G\"&ROW($G$87)+ROUNDUP(COLUMNS($G:ED)/3,0))","v":0},null,{"$f":"INDIRECT(\"F\"&ROW($G$87)+ROUNDUP(COLUMNS($G:EF)/3,0))","v":0},{"$f":"INDIRECT(\"G\"&ROW($G$87)+ROUNDUP(COLUMNS($G:EG)/3,0))","v":0},null,{"$f":"INDIRECT(\"F\"&ROW($G$87)+ROUNDUP(COLUMNS($G:EI)/3,0))","v":0},{"$f":"INDIRECT(\"G\"&ROW($G$87)+ROUNDUP(COLUMNS($G:EJ)/3,0))","v":0},null,{"$f":"INDIRECT(\"F\"&ROW($G$87)+ROUNDUP(COLUMNS($G:EL)/3,0))","v":0},{"$f":"INDIRECT(\"G\"&ROW($G$87)+ROUNDUP(COLUMNS($G:EM)/3,0))","v":0},null,{"$f":"INDIRECT(\"F\"&ROW($G$87)+ROUNDUP(COLUMNS($G:EO)/3,0))","v":0},{"$f":"INDIRECT(\"G\"&ROW($G$87)+ROUNDUP(COLUMNS($G:EP)/3,0))","v":0},null,{"$f":"INDIRECT(\"F\"&ROW($G$87)+ROUNDUP(COLUMNS($G:ER)/3,0))","v":0},{"$f":"INDIRECT(\"G\"&ROW($G$87)+ROUNDUP(COLUMNS($G:ES)/3,0))","v":0},null,{"$f":"EU81+EV81","v":0}]
["เวลากลับถึงสำนักงานเช็คของเสีย",null,null,{"$f":"D139","v":"00:00:00"},null,"ผลต่าง",{"$f":"G82+H82+G80-G9","v":0},null,null,{"$f":"J82+K82+J80-J9","v":0},null,null,{"$f":"M82+N82+M80-M9","v":0},null,null,{"$f":"P82+Q82+P80-P9","v":0},null,null,{"$f":"S82+T82+S80-S9","v":0},null,null,{"$f":"V82+W82+V80-V9","v":0},null,null,{"$f":"Y82+Z82+Y80-Y9","v":0},null,null,{"$f":"AB82+AC82+AB80-AB9","v":0},null,null,{"$f":"AE82+AF82+AE80-AE9","v":0},null,null,{"$f":"AH82+AI82+AH80-AH9","v":0},null,null,{"$f":"AK82+AL82+AK80-AK9","v":0},null,null,{"$f":"AN82+AO82+AN80-AN9","v":0},null,null,{"$f":"AQ82+AR82+AQ80-AQ9","v":0},null,null,{"$f":"AT82+AU82+AT80-AT9","v":0},null,null,{"$f":"AW82+AX82+AW80-AW9","v":0},null,null,{"$f":"AZ82+BA82+AZ80-AZ9","v":0},null,null,{"$f":"BC82+BD82+BC80-BC9","v":0},null,null,{"$f":"BF82+BG82+BF80-BF9","v":0},null,null,{"$f":"BI82+BJ82+BI80-BI9","v":0},null,null,{"$f":"BL82+BM82+BL80-BL9","v":0},null,null,{"$f":"BO82+BP82+BO80-BO9","v":0},null,null,{"$f":"BR82+BS82+BR80-BR9","v":0},null,null,{"$f":"BU82+BV82+BU80-BU9","v":0},null,null,{"$f":"BX82+BY82+BX80-BX9","v":0},null,null,{"$f":"CA82+CB82+CA80-CA9","v":0},null,null,{"$f":"CD82+CE82+CD80-CD9","v":0},null,null,{"$f":"CG82+CH82+CG80-CG9","v":0},null,null,{"$f":"CJ82+CK82+CJ80-CJ9","v":0},null,null,{"$f":"CM82+CN82+CM80-CM9","v":0},null,null,{"$f":"CP82+CQ82+CP80-CP9","v":0},null,null,{"$f":"CS82+CT82+CS80-CS9","v":0},null,null,{"$f":"CV82+CW82+CV80-CV9","v":0},null,null,{"$f":"CY82+CZ82+CY80-CY9","v":0},null,null,{"$f":"DB82+DC82+DB80-DB9","v":0},null,null,{"$f":"DE82+DF82+DE80-DE9","v":0},null,null,{"$f":"DH82+DI82+DH80-DH9","v":0},null,null,{"$f":"DK82+DL82+DK80-DK9","v":0},null,null,{"$f":"DN82+DO82+DN80-DN9","v":0},null,null,{"$f":"DQ82+DR82+DQ80-DQ9","v":0},null,null,{"$f":"DT82+DU82+DT80-DT9","v":0},null,null,{"$f":"DW82+DX82+DW80-DW9","v":0},null,null,{"$f":"DZ82+EA82+DZ80-DZ9","v":0},null,null,{"$f":"EC82+ED82+EC80-EC9","v":0},null,null,{"$f":"EF82+EG82+EF80-EF9","v":0},null,null,{"$f":"EI82+EJ82+EI80-EI9","v":0},null,null,{"$f":"EL82+EM82+EL80-EL9","v":0},null,null,{"$f":"EO82+EP82+EO80-EO9","v":0},null,null,{"$f":"ER82+ES82+ER80-ER9","v":0}]
["เป็นเงิน",null,null,null,null,null,{"$f":"G8*G83","v":0},null,null,{"$f":"J8*J83","v":0},null,null,{"$f":"M8*M83","v":0},null,null,{"$f":"P8*P83","v":0},null,null,{"$f":"S8*S83","v":0},null,null,{"$f":"V8*V83","v":0},null,null,{"$f":"Y8*Y83","v":0},null,null,{"$f":"AB8*AB83","v":0},null,null,{"$f":"AE8*AE83","v":0},null,null,{"$f":"AH8*AH83","v":0},null,null,{"$f":"AK8*AK83","v":0},null,null,{"$f":"AN8*AN83","v":0},null,null,{"$f":"AQ8*AQ83","v":0},null,null,{"$f":"AT8*AT83","v":0},null,null,{"$f":"AW8*AW83","v":0},null,null,{"$f":"AZ8*AZ83","v":0},null,null,{"$f":"BC8*BC83","v":0},null,null,{"$f":"BF8*BF83","v":0},null,null,{"$f":"BI8*BI83","v":0},null,null,{"$f":"BL8*BL83","v":0},null,null,{"$f":"BO8*BO83","v":0},null,null,{"$f":"BR8*BR83","v":0},null,null,{"$f":"BU8*BU83","v":0},null,null,{"$f":"BX8*BX83","v":0},null,null,{"$f":"CA8*CA83","v":0},null,null,{"$f":"CD8*CD83","v":0},null,null,{"$f":"CG8*CG83","v":0},null,null,{"$f":"CJ8*CJ83","v":0},null,null,{"$f":"CM8*CM83","v":0},null,null,{"$f":"CP8*CP83","v":0},null,null,{"$f":"CS8*CS83","v":0},null,null,{"$f":"CV8*CV83","v":0},null,null,{"$f":"CY8*CY83","v":0},null,null,{"$f":"DB8*DB83","v":0},null,null,{"$f":"DE8*DE83","v":0},null,null,{"$f":"DH8*DH83","v":0},null,null,{"$f":"DK8*DK83","v":0},null,null,{"$f":"DN8*DN83","v":0},null,null,{"$f":"DQ8*DQ83","v":0},null,null,{"$f":"DT8*DT83","v":0},null,null,{"$f":"DW8*DW83","v":0},null,null,0,null,null,{"$f":"EC8*EC83","v":0},null,null,{"$f":"EF8*EF83","v":0},null,null,{"$f":"EI8*EI83","v":0},null,null,{"$f":"EL8*EL83","v":0},null,null,{"$f":"EO8*EO83","v":0},null,null,{"$f":"ER8*ER83","v":0},null,null,{"$f":"$AP$98","v":0}]
[null,null,null,"ผู้จัดทำ……………………………………………………………………",null,null,null,null,null,null,null,null,null,null,null,null,null,null,null,null,null,null,null,"ผู้ตรวจ(ผจก.)………………………………………………………………………………."]
[null,null,"ใบจ่ายสินค้า",null,null,null,null,null,null,null,null,null,null,null,null,null,null,{"$f":"IF(ISODD(COLUMN()),MAX($F$86:Q$86)+1,\"\")","v":""}]
["ราคา","ลำดับ","รายการ","ยกมา","เบิก","เหลือ","เสีย","โอนเข้า","โอนออก","ชำรุด","รวม",null,"ขาย",null,"ขาด/เกิน",null,"บาท",null,null,null,"ขายได้",null,"ควรเบิก",null,"หมายเหตุ",null,null,null,"เสีย PDA","เสียจริง","เหลือ PDA","ผลต่าง","เหลือลูกค้า","หมายเหตุ",null,null,null,null,"Price","Quantity","Baht","Deduct"]
[{"$f":"IF(B88=\"\",0,INDEX(Price_List,ROWS($88:88)))","v":20},{"$f":"IF($C88=\"\",\"\",COUNTA($C$88:$C88))","v":1},{"$f":"IF(INDEX(INDIRECT(\"Product_List\"),ROWS($88:88))=\"\",\"\",INDEX(INDIRECT(\"Product_List\"),ROWS($88:88)))","v":"01-ขนมปังหมูหยองน้ำสลัด"},{"$f":"ยอดยกมา","v":0},null,null,null,null,null,null,{"$f":"D88+E88+J88-I88+H88","v":0},null,{"$f":"INDIRECT(ADDRESS(ROW(A$80),ROW()-ROW(A$80)+(ROWS($88:88)-1)*2-1,4))","v":0},null,{"$f":"F88+G88+M88+J88-K88","v":0},null,{"$f":"O88*A88","v":0},null,null,null,{"$f":"D88+E88-F88-G88","v":0},null,{"$f":"U88*6%+U88","v":0},null,null,null,null,null,{"$f":"INDIRECT(ADDRESS(ROW(A$80),ROW()-ROW(A$80)+(ROWS($88:88)-1)*2,4))","v":0},{"$f":"$G88","v":0},null,{"$f":"$F88-$AE88","v":0},{"$f":"INDIRECT(ADDRESS(ROW(A$80),ROW()-ROW(A$80)+(ROWS($88:88)-1)*2+1,4))","v":0},null,null,null,null,null,10,{"$f":"SUMPRODUCT(($A$88:$A$135=$AM88)*(($F$88:$F$135)+($G$88:$G$135)+($M$88:$M$135)+($J$88:$J$135)-($K$88:$K$135)))","v":0},{"$f":"AM88*AN88","v":0},{"$f":"IF(AO88<0,AO88,0)","v":0}]
[{"$f":"IF(B89=\"\",0,INDEX(Price_List,ROWS($88:89)))","v":20},{"$f":"IF($C89=\"\",\"\",COUNTA($C$88:$C89))","v":2},{"$f":"IF(INDEX(INDIRECT(\"Product_List\"),ROWS($88:89))=\"\",\"\",INDEX(INDIRECT(\"Product_List\"),ROWS($88:89)))","v":"02-ขนมปังหมูหยองน้ำพริกเผา"},{"$f":"ยอดยกมา","v":0},null,null,null,null,null,null,{"$f":"D89+E89+J89-I89+H89","v":0},null,{"$f":"INDIRECT(ADDRESS(ROW(A$80),ROW()-ROW(A$80)+(ROWS($88:89)-1)*2-1,4))","v":0},null,{"$f":"F89+G89+M89+J89-K89","v":0},null,{"$f":"O89*A89","v":0},null,null,null,{"$f":"D89+E89-F89-G89","v":0},null,{"$f":"U89*6%+U89","v":0},null,null,null,null,null,{"$f":"INDIRECT(ADDRESS(ROW(A$80),ROW()-ROW(A$80)+(ROWS($88:89)-1)*2,4))","v":0},{"$f":"$G89","v":0},null,{"$f":"$F89-$AE89","v":0},{"$f":"INDIRECT(ADDRESS(ROW(A$80),ROW()-ROW(A$80)+(ROWS($88:89)-1)*2+1,4))","v":0},null,null,null,null,null,12,0,{"$f":"AM89*AN89","v":0},{"$f":"IF(AO89<0,AO89,0)","v":0}]
[{"$f":"IF(B90=\"\",0,INDEX(Price_List,ROWS($88:90)))","v":20},{"$f":"IF($C90=\"\",\"\",COUNTA($C$88:$C90))","v":3},{"$f":"IF(INDEX(INDIRECT(\"Product_List\"),ROWS($88:90))=\"\",\"\",INDEX(INDIRECT(\"Product_List\"),ROWS($88:90)))","v":"03-ขนมปังไก่หยองน้ำสลัด"},{"$f":"ยอดยกมา","v":0},null,null,null,null,null,null,0,null,{"$f":"INDIRECT(ADDRESS(ROW(A$80),ROW()-ROW(A$80)+(ROWS($88:90)-1)*2-1,4))","v":0},null,0,null,0,null,null,null,0,null,0,null,null,null,null,null,{"$f":"INDIRECT(ADDRESS(ROW(A$80),ROW()-ROW(A$80)+(ROWS($88:90)-1)*2,4))","v":0},0,null,0,{"$f":"INDIRECT(ADDRESS(ROW(A$80),ROW()-ROW(A$80)+(ROWS($88:90)-1)*2+1,4))","v":0},null,null,null,null,null,13,0,{"$f":"AM90*AN90","v":0},{"$f":"IF(AO90<0,AO90,0)","v":0}]
[{"$f":"IF(B91=\"\",0,INDEX(Price_List,ROWS($88:91)))","v":15},{"$f":"IF($C91=\"\",\"\",COUNTA($C$88:$C91))","v":4},{"$f":"IF(INDEX(INDIRECT(\"Product_List\"),ROWS($88:91))=\"\",\"\",INDEX(INDIRECT(\"Product_List\"),ROWS($88:91)))","v":"04-ขนมปังไส้ครีมสลัด"},{"$f":"ยอดยกมา","v":0},null,null,null,null,null,null,0,null,{"$f":"INDIRECT(ADDRESS(ROW(A$80),ROW()-ROW(A$80)+(ROWS($88:91)-1)*2-1,4))","v":0},null,{"$f":"F91+G91+M91+J91-K91","v":0},null,0,null,null,null,0,null,0,null,null,null,null,null,{"$f":"INDIRECT(ADDRESS(ROW(A$80),ROW()-ROW(A$80)+(ROWS($88:91)-1)*2,4))","v":0},0,null,0,{"$f":"INDIRECT(ADDRESS(ROW(A$80),ROW()-ROW(A$80)+(ROWS($88:91)-1)*2+1,4))","v":0},null,null,null,null,null,15,0,0,0]
[{"$f":"IF(B92=\"\",0,INDEX(Price_List,ROWS($88:92)))","v":15},{"$f":"IF($C92=\"\",\"\",COUNTA($C$88:$C92))","v":5},{"$f":"IF(INDEX(INDIRECT(\"Product_List\"),ROWS($88:92))=\"\",\"\",INDEX(INDIRECT(\"Product_List\"),ROWS($88:92)))","v":"05-ขนมปังเนยสด"},{"$f":"ยอดยกมา","v":0},null,null,null,null,null,null,0,null,{"$f":"INDIRECT(ADDRESS(ROW(A$80),ROW()-ROW(A$80)+(ROWS($88:92)-1)*2-1,4))","v":0},null,0,null,0,null,null,null,0,null,0,null,null,null,null,null,{"$f":"INDIRECT(ADDRESS(ROW(A$80),ROW()-ROW(A$80)+(ROWS($88:92)-1)*2,4))","v":0},0,null,0,{"$f":"INDIRECT(ADDRESS(ROW(A$80),ROW()-ROW(A$80)+(ROWS($88:92)-1)*2+1,4))","v":0},null,null,null,null,null,16,0,0,0]
[{"$f":"IF(B93=\"\",0,INDEX(Price_List,ROWS($88:93)))","v":10},{"$f":"IF($C93=\"\",\"\",COUNTA($C$88:$C93))","v":6},{"$f":"IF(INDEX(INDIRECT(\"Product_List\"),ROWS($88:93))=\"\",\"\",INDEX(INDIRECT(\"Product_List\"),ROWS($88:93)))","v":"06-ขนมปังไส้สังขยาเล็ก"},{"$f":"ยอดยกมา","v":0},null,null,null,null,null,null,0,null,{"$f":"INDIRECT(ADDRESS(ROW(A$80),ROW()-ROW(A$80)+(ROWS($88:93)-1)*2-1,4))","v":0},null,0,null,0,null,null,null,0,null,0,null,null,null,null,null,{"$f":"INDIRECT(ADDRESS(ROW(A$80),ROW()-ROW(A$80)+(ROWS($88:93)-1)*2,4))","v":0},0,null,0,{"$f":"INDIRECT(ADDRESS(ROW(A$80),ROW()-ROW(A$80)+(ROWS($88:93)-1)*2+1,4))","v":0},null,null,null,null,null,18,0,0,0]
[{"$f":"IF(B94=\"\",0,INDEX(Price_List,ROWS($88:94)))","v":10},{"$f":"IF($C94=\"\",\"\",COUNTA($C$88:$C94))","v":7},{"$f":"IF(INDEX(INDIRECT(\"Product_List\"),ROWS($88:94))=\"\",\"\",INDEX(INDIRECT(\"Product_List\"),ROWS($88:94)))","v":"07-ขนมปังไส้เผือก"},{"$f":"ยอดยกมา","v":0},null,null,null,null,null,null,0,null,{"$f":"INDIRECT(ADDRESS(ROW(A$80),ROW()-ROW(A$80)+(ROWS($88:94)-1)*2-1,4))","v":0},null,0,null,0,null,null,null,0,null,0,null,null,null,null,null,{"$f":"INDIRECT(ADDRESS(ROW(A$80),ROW()-ROW(A$80)+(ROWS($88:94)-1)*2,4))","v":0},0,null,0,{"$f":"INDIRECT(ADDRESS(ROW(A$80),ROW()-ROW(A$80)+(ROWS($88:94)-1)*2+1,4))","v":0},null,null,null,null,null,20,0,0,0]
[{"$f":"IF(B95=\"\",0,INDEX(Price_List,ROWS($88:95)))","v":10},{"$f":"IF($C95=\"\",\"\",COUNTA($C$88:$C95))","v":8},{"$f":"IF(INDEX(INDIRECT(\"Product_List\"),ROWS($88:95))=\"\",\"\",INDEX(INDIRECT(\"Product_List\"),ROWS($88:95)))","v":"08-ขนมปังไส้ถั่วแดง"},{"$f":"ยอดยกมา","v":0},null,null,null,null,null,null,0,null,{"$f":"INDIRECT(ADDRESS(ROW(A$80),ROW()-ROW(A$80)+(ROWS($88:95)-1)*2-1,4))","v":0},null,0,null,0,null,null,null,0,null,0,null,null,null,null,null,{"$f":"INDIRECT(ADDRESS(ROW(A$80),ROW()-ROW(A$80)+(ROWS($88:95)-1)*2,4))","v":0},0,null,0,{"$f":"INDIRECT(ADDRESS(ROW(A$80),ROW()-ROW(A$80)+(ROWS($88:95)-1)*2+1,4))","v":0},null,null,null,null,null,22,0,0,0]
[{"$f":"IF(B96=\"\",0,INDEX(Price_List,ROWS($88:96)))","v":10},{"$f":"IF($C96=\"\",\"\",COUNTA($C$88:$C96))","v":9},{"$f":"IF(INDEX(INDIRECT(\"Product_List\"),ROWS($88:96))=\"\",\"\",INDEX(INDIRECT(\"Product_List\"),ROWS($88:96)))","v":"09-ขนมปังไส้ถั่วดำ"},{"$f":"ยอดยกมา","v":0},null,null,null,null,null,null,0,null,{"$f":"INDIRECT(ADDRESS(ROW(A$80),ROW()-ROW(A$80)+(ROWS($88:96)-1)*2-1,4))","v":0},null,0,null,0,null,null,null,0,null,0,null,null,null,null,null,{"$f":"INDIRECT(ADDRESS(ROW(A$80),ROW()-ROW(A$80)+(ROWS($88:96)-1)*2,4))","v":0},0,null,0,{"$f":"INDIRECT(ADDRESS(ROW(A$80),ROW()-ROW(A$80)+(ROWS($88:96)-1)*2+1,4))","v":0},null,null,null,null,null,25,0,0,0]
[{"$f":"IF(B97=\"\",0,INDEX(Price_List,ROWS($88:97)))","v":10},{"$f":"IF($C97=\"\",\"\",COUNTA($C$88:$C97))","v":10},{"$f":"IF(INDEX(INDIRECT(\"Product_List\"),ROWS($88:97))=\"\",\"\",INDEX(INDIRECT(\"Product_List\"),ROWS($88:97)))","v":"10-ขนมปังไส้มันม่วง"},{"$f":"ยอดยกมา","v":0},null,null,null,null,null,null,0,null,{"$f":"INDIRECT(ADDRESS(ROW(A$80),ROW()-ROW(A$80)+(ROWS($88:97)-1)*2-1,4))","v":0},null,0,null,0,null,null,null,0,null,0,null,null,null,null,null,{"$f":"INDIRECT(ADDRESS(ROW(A$80),ROW()-ROW(A$80)+(ROWS($88:97)-1)*2,4))","v":0},0,null,0,{"$f":"INDIRECT(ADDRESS(ROW(A$80),ROW()-ROW(A$80)+(ROWS($88:97)-1)*2+1,4))","v":0},null,null,null,null,null,42,0,0,0]
[{"$f":"IF(B98=\"\",0,INDEX(Price_List,ROWS($88:98)))","v":15},{"$f":"IF($C98=\"\",\"\",COUNTA($C$88:$C98))","v":11},{"$f":"IF(INDEX(INDIRECT(\"Product_List\"),ROWS($88:98))=\"\",\"\",INDEX(INDIRECT(\"Product_List\"),ROWS($88:98)))","v":"11-เค้กกล้วยหอม"},{"$f":"ยอดยกมา","v":0},null,null,null,null,null,null,0,null,{"$f":"INDIRECT(ADDRESS(ROW(A$80),ROW()-ROW(A$80)+(ROWS($88:98)-1)*2-1,4))","v":0},null,0,null,0,null,null,null,0,null,0,null,null,null,null,null,{"$f":"INDIRECT(ADDRESS(ROW(A$80),ROW()-ROW(A$80)+(ROWS($88:98)-1)*2,4))","v":0},0,null,0,{"$f":"INDIRECT(ADDRESS(ROW(A$80),ROW()-ROW(A$80)+(ROWS($88:98)-1)*2+1,4))","v":0},null,null,null,null,null,"Total Deduct",null,null,{"$f":"SUM($AP$88:$AP$97)","v":0}]
[{"$f":"IF(B99=\"\",0,INDEX(Price_List,ROWS($88:99)))","v":15},{"$f":"IF($C99=\"\",\"\",COUNTA($C$88:$C99))","v":12},{"$f":"IF(INDEX(INDIRECT(\"Product_List\"),ROWS($88:99))=\"\",\"\",INDEX(INDIRECT(\"Product_List\"),ROWS($88:99)))","v":"12-เค้กบัตเตอร์"},{"$f":"ยอดยกมา","v":0},null,null,null,null,null,null,0,null,{"$f":"INDIRECT(ADDRESS(ROW(A$80),ROW()-ROW(A$80)+(ROWS($88:99)-1)*2-1,4))","v":0},null,0,null,0,null,null,null,0,null,0,null,null,null,null,null,{"$f":"INDIRECT(ADDRESS(ROW(A$80),ROW()-ROW(A$80)+(ROWS($88:99)-1)*2,4))","v":0},0,null,0,{"$f":"INDIRECT(ADDRESS(ROW(A$80),ROW()-ROW(A$80)+(ROWS($88:99)-1)*2+1,4))","v":0}]
[{"$f":"IF(B100=\"\",0,INDEX(Price_List,ROWS($88:100)))","v":15},{"$f":"IF($C100=\"\",\"\",COUNTA($C$88:$C100))","v":13},{"$f":"IF(INDEX(INDIRECT(\"Product_List\"),ROWS($88:100))=\"\",\"\",INDEX(INDIRECT(\"Product_List\"),ROWS($88:100)))","v":"13-ขนมปังโรลถั่วแดง"},{"$f":"ยอดยกมา","v":0},null,null,null,null,null,null,0,null,{"$f":"INDIRECT(ADDRESS(ROW(A$80),ROW()-ROW(A$80)+(ROWS($88:100)-1)*2-1,4))","v":0},null,0,null,0,null,null,null,0,null,0,null,null,null,null,null,{"$f":"INDIRECT(ADDRESS(ROW(A$80),ROW()-ROW(A$80)+(ROWS($88:100)-1)*2,4))","v":0},0,null,0,{"$f":"INDIRECT(ADDRESS(ROW(A$80),ROW()-ROW(A$80)+(ROWS($88:100)-1)*2+1,4))","v":0}]
[{"$f":"IF(B101=\"\",0,INDEX(Price_List,ROWS($88:101)))","v":15},{"$f":"IF($C101=\"\",\"\",COUNTA($C$88:$C101))","v":14},{"$f":"IF(INDEX(INDIRECT(\"Product_List\"),ROWS($88:101))=\"\",\"\",INDEX(INDIRECT(\"Product_List\"),ROWS($88:101)))","v":"14-ขนมปังไส้สังขยาใหญ่"},{"$f":"ยอดยกมา","v":0},null,null,null,null,null,null,0,null,{"$f":"INDIRECT(ADDRESS(ROW(A$80),ROW()-ROW(A$80)+(ROWS($88:101)-1)*2-1,4))","v":0},null,0,null,0,null,null,null,0,null,0,null,null,null,null,null,{"$f":"INDIRECT(ADDRESS(ROW(A$80),ROW()-ROW(A$80)+(ROWS($88:101)-1)*2,4))","v":0},0,null,0,{"$f":"INDIRECT(ADDRESS(ROW(A$80),ROW()-ROW(A$80)+(ROWS($88:101)-1)*2+1,4))","v":0}]
[{"$f":"IF(B102=\"\",0,INDEX(Price_List,ROWS($88:102)))","v":42},{"$f":"IF($C102=\"\",\"\",COUNTA($C$88:$C102))","v":15},{"$f":"IF(INDEX(INDIRECT(\"Product_List\"),ROWS($88:102))=\"\",\"\",INDEX(INDIRECT(\"Product_List\"),ROWS($88:102)))","v":"15-ขนมปังชนิดแผ่น(480กรัม)"},{"$f":"ยอดยกมา","v":0},null,null,null,null,null,null,0,null,{"$f":"INDIRECT(ADDRESS(ROW(A$80),ROW()-ROW(A$80)+(ROWS($88:102)-1)*2-1,4))","v":0},null,0,null,0,null,null,null,0,null,0,null,null,null,null,null,{"$f":"INDIRECT(ADDRESS(ROW(A$80),ROW()-ROW(A$80)+(ROWS($88:102)-1)*2,4))","v":0},0,null,0,{"$f":"INDIRECT(ADDRESS(ROW(A$80),ROW()-ROW(A$80)+(ROWS($88:102)-1)*2+1,4))","v":0}]
[{"$f":"IF(B103=\"\",0,INDEX(Price_List,ROWS($88:103)))","v":12},{"$f":"IF($C103=\"\",\"\",COUNTA($C$88:$C103))","v":16},{"$f":"IF(INDEX(INDIRECT(\"Product_List\"),ROWS($88:103))=\"\",\"\",INDEX(INDIRECT(\"Product_List\"),ROWS($88:103)))","v":"16-โมจิไส้ถั่ว"},{"$f":"ยอดยกมา","v":0},null,null,null,null,null,null,0,null,{"$f":"INDIRECT(ADDRESS(ROW(A$80),ROW()-ROW(A$80)+(ROWS($88:103)-1)*2-1,4))","v":0},null,0,null,0,null,null,null,0,null,0,null,null,null,null,null,{"$f":"INDIRECT(ADDRESS(ROW(A$80),ROW()-ROW(A$80)+(ROWS($88:103)-1)*2,4))","v":0},0,null,0,{"$f":"INDIRECT(ADDRESS(ROW(A$80),ROW()-ROW(A$80)+(ROWS($88:103)-1)*2+1,4))","v":0}]
[{"$f":"IF(B104=\"\",0,INDEX(Price_List,ROWS($88:104)))","v":12},{"$f":"IF($C104=\"\",\"\",COUNTA($C$88:$C104))","v":17},{"$f":"IF(INDEX(INDIRECT(\"Product_List\"),ROWS($88:104))=\"\",\"\",INDEX(INDIRECT(\"Product_List\"),ROWS($88:104)))","v":"17-โมจิไส้เผือก"},{"$f":"ยอดยกมา","v":0},null,null,null,null,null,null,0,null,{"$f":"INDIRECT(ADDRESS(ROW(A$80),ROW()-ROW(A$80)+(ROWS($88:104)-1)*2-1,4))","v":0},null,0,null,0,null,null,null,0,null,0,null,null,null,null,null,{"$f":"INDIRECT(ADDRESS(ROW(A$80),ROW()-ROW(A$80)+(ROWS($88:104)-1)*2,4))","v":0},0,null,0,{"$f":"INDIRECT(ADDRESS(ROW(A$80),ROW()-ROW(A$80)+(ROWS($88:104)-1)*2+1,4))","v":0}]
[{"$f":"IF(B105=\"\",0,INDEX(Price_List,ROWS($88:105)))","v":15},{"$f":"IF($C105=\"\",\"\",COUNTA($C$88:$C105))","v":18},{"$f":"IF(INDEX(INDIRECT(\"Product_List\"),ROWS($88:105))=\"\",\"\",INDEX(INDIRECT(\"Product_List\"),ROWS($88:105)))","v":"18-โมจิไส้ถั่วไข่เค็ม"},{"$f":"ยอดยกมา","v":0},null,null,null,null,null,null,0,null,{"$f":"INDIRECT(ADDRESS(ROW(A$80),ROW()-ROW(A$80)+(ROWS($88:105)-1)*2-1,4))","v":0},null,0,null,0,null,null,null,0,null,0,null,null,null,null,null,{"$f":"INDIRECT(ADDRESS(ROW(A$80),ROW()-ROW(A$80)+(ROWS($88:105)-1)*2,4))","v":0},0,null,0,{"$f":"INDIRECT(ADDRESS(ROW(A$80),ROW()-ROW(A$80)+(ROWS($88:105)-1)*2+1,4))","v":0}]
[{"$f":"IF(B106=\"\",0,INDEX(Price_List,ROWS($88:106)))","v":20},{"$f":"IF($C106=\"\",\"\",COUNTA($C$88:$C106))","v":19},{"$f":"IF(INDEX(INDIRECT(\"Product_List\"),ROWS($88:106))=\"\",\"\",INDEX(INDIRECT(\"Product_List\"),ROWS($88:106)))","v":"19-ขนมปังพิซซ่า"},{"$f":"ยอดยกมา","v":0},null,null,null,null,null,null,0,null,{"$f":"INDIRECT(ADDRESS(ROW(A$80),ROW()-ROW(A$80)+(ROWS($88:106)-1)*2-1,4))","v":0},null,0,null,0,null,null,null,0,null,0,null,null,null,null,null,{"$f":"INDIRECT(ADDRESS(ROW(A$80),ROW()-ROW(A$80)+(ROWS($88:106)-1)*2,4))","v":0},0,null,0,{"$f":"INDIRECT(ADDRESS(ROW(A$80),ROW()-ROW(A$80)+(ROWS($88:106)-1)*2+1,4))","v":0}]
[{"$f":"IF(B107=\"\",0,INDEX(Price_List,ROWS($88:107)))","v":20},{"$f":"IF($C107=\"\",\"\",COUNTA($C$88:$C107))","v":20},{"$f":"IF(INDEX(INDIRECT(\"Product_List\"),ROWS($88:107))=\"\",\"\",INDEX(INDIRECT(\"Product_List\"),ROWS($88:107)))","v":"20-ขนมปังพิซซ่าปูอัดแฮม"},{"$f":"ยอดยกมา","v":0},null,null,null,null,null,null,0,null,{"$f":"INDIRECT(ADDRESS(ROW(A$80),ROW()-ROW(A$80)+(ROWS($88:107)-1)*2-1,4))","v":0},null,0,null,0,null,null,null,0,null,0,null,null,null,null,null,{"$f":"INDIRECT(ADDRESS(ROW(A$80),ROW()-ROW(A$80)+(ROWS($88:107)-1)*2,4))","v":0},0,null,0,{"$f":"INDIRECT(ADDRESS(ROW(A$80),ROW()-ROW(A$80)+(ROWS($88:107)-1)*2+1,4))","v":0}]
[{"$f":"IF(B108=\"\",0,INDEX(Price_List,ROWS($88:108)))","v":20},{"$f":"IF($C108=\"\",\"\",COUNTA($C$88:$C108))","v":21},{"$f":"IF(INDEX(INDIRECT(\"Product_List\"),ROWS($88:108))=\"\",\"\",INDEX(INDIRECT(\"Product_List\"),ROWS($88:108)))","v":"21-ขนมปังไส้กรอก"},{"$f":"ยอดยกมา","v":0},null,null,null,null,null,null,0,null,{"$f":"INDIRECT(ADDRESS(ROW(A$80),ROW()-ROW(A$80)+(ROWS($88:108)-1)*2-1,4))","v":0},null,0,null,0,null,null,null,0,null,0,null,null,null,null,null,{"$f":"INDIRECT(ADDRESS(ROW(A$80),ROW()-ROW(A$80)+(ROWS($88:108)-1)*2,4))","v":0},0,null,0,{"$f":"INDIRECT(ADDRESS(ROW(A$80),ROW()-ROW(A$80)+(ROWS($88:108)-1)*2+1,4))","v":0}]
[{"$f":"IF(B109=\"\",0,INDEX(Price_List,ROWS($88:109)))","v":15},{"$f":"IF($C109=\"\",\"\",COUNTA($C$88:$C109))","v":22},{"$f":"IF(INDEX(INDIRECT(\"Product_List\"),ROWS($88:109))=\"\",\"\",INDEX(INDIRECT(\"Product_List\"),ROWS($88:109)))","v":"22-ขนมก้านบัว"},{"$f":"ยอดยกมา","v":0},null,null,null,null,null,null,0,null,{"$f":"INDIRECT(ADDRESS(ROW(A$80),ROW()-ROW(A$80)+(ROWS($88:109)-1)*2-1,4))","v":0},null,0,null,0,null,null,null,0,null,0,null,null,null,null,null,{"$f":"INDIRECT(ADDRESS(ROW(A$80),ROW()-ROW(A$80)+(ROWS($88:109)-1)*2,4))","v":0},0,null,0,{"$f":"INDIRECT(ADDRESS(ROW(A$80),ROW()-ROW(A$80)+(ROWS($88:109)-1)*2+1,4))","v":0}]
[{"$f":"IF(B110=\"\",0,INDEX(Price_List,ROWS($88:110)))","v":20},{"$f":"IF($C110=\"\",\"\",COUNTA($C$88:$C110))","v":23},{"$f":"IF(INDEX(INDIRECT(\"Product_List\"),ROWS($88:110))=\"\",\"\",INDEX(INDIRECT(\"Product_List\"),ROWS($88:110)))","v":"23-พายสับปะรด"},{"$f":"ยอดยกมา","v":0},null,null,null,null,null,null,0,null,{"$f":"INDIRECT(ADDRESS(ROW(A$80),ROW()-ROW(A$80)+(ROWS($88:110)-1)*2-1,4))","v":0},null,0,null,0,null,null,null,0,null,0,null,null,null,null,null,{"$f":"INDIRECT(ADDRESS(ROW(A$80),ROW()-ROW(A$80)+(ROWS($88:110)-1)*2,4))","v":0},0,null,0,{"$f":"INDIRECT(ADDRESS(ROW(A$80),ROW()-ROW(A$80)+(ROWS($88:110)-1)*2+1,4))","v":0}]
[{"$f":"IF(B111=\"\",0,INDEX(Price_List,ROWS($88:111)))","v":20},{"$f":"IF($C111=\"\",\"\",COUNTA($C$88:$C111))","v":24},{"$f":"IF(INDEX(INDIRECT(\"Product_List\"),ROWS($88:111))=\"\",\"\",INDEX(INDIRECT(\"Product_List\"),ROWS($88:111)))","v":"24-พายไส้มะพร้าว"},{"$f":"ยอดยกมา","v":0},null,null,null,null,null,null,0,null,{"$f":"INDIRECT(ADDRESS(ROW(A$80),ROW()-ROW(A$80)+(ROWS($88:111)-1)*2-1,4))","v":0},null,0,null,0,null,null,null,0,null,0,null,null,null,null,null,{"$f":"INDIRECT(ADDRESS(ROW(A$80),ROW()-ROW(A$80)+(ROWS($88:111)-1)*2,4))","v":0},0,null,0,{"$f":"INDIRECT(ADDRESS(ROW(A$80),ROW()-ROW(A$80)+(ROWS($88:111)-1)*2+1,4))","v":0}]
[{"$f":"IF(B112=\"\",0,INDEX(Price_List,ROWS($88:112)))","v":15},{"$f":"IF($C112=\"\",\"\",COUNTA($C$88:$C112))","v":25},{"$f":"IF(INDEX(INDIRECT(\"Product_List\"),ROWS($88:112))=\"\",\"\",INDEX(INDIRECT(\"Product_List\"),ROWS($88:112)))","v":"25-ขนมปังโรลมันเทศ"},{"$f":"ยอดยกมา","v":0},null,null,null,null,null,null,0,null,{"$f":"INDIRECT(ADDRESS(ROW(A$80),ROW()-ROW(A$80)+(ROWS($88:112)-1)*2-1,4))","v":0},null,0,null,0,null,null,null,0,null,0,null,null,null,null,null,{"$f":"INDIRECT(ADDRESS(ROW(A$80),ROW()-ROW(A$80)+(ROWS($88:112)-1)*2,4))","v":0},0,null,0,{"$f":"INDIRECT(ADDRESS(ROW(A$80),ROW()-ROW(A$80)+(ROWS($88:112)-1)*2+1,4))","v":0}]
[{"$f":"IF(B113=\"\",0,INDEX(Price_List,ROWS($88:113)))","v":15},{"$f":"IF($C113=\"\",\"\",COUNTA($C$88:$C113))","v":26},{"$f":"IF(INDEX(INDIRECT(\"Product_List\"),ROWS($88:113))=\"\",\"\",INDEX(INDIRECT(\"Product_List\"),ROWS($88:113)))","v":"26-ขนมปังไส้ครีมสลัดน้ำพริกเผา"},{"$f":"ยอดยกมา","v":0},null,null,null,null,null,null,0,null,{"$f":"INDIRECT(ADDRESS(ROW(A$80),ROW()-ROW(A$80)+(ROWS($88:113)-1)*2-1,4))","v":0},null,0,null,0,null,null,null,0,null,0,null,null,null,null,null,{"$f":"INDIRECT(ADDRESS(ROW(A$80),ROW()-ROW(A$80)+(ROWS($88:113)-1)*2,4))","v":0},0,null,0,{"$f":"INDIRECT(ADDRESS(ROW(A$80),ROW()-ROW(A$80)+(ROWS($88:113)-1)*2+1,4))","v":0}]
[{"$f":"IF(B114=\"\",0,INDEX(Price_List,ROWS($88:114)))","v":20},{"$f":"IF($C114=\"\",\"\",COUNTA($C$88:$C114))","v":27},{"$f":"IF(INDEX(INDIRECT(\"Product_List\"),ROWS($88:114))=\"\",\"\",INDEX(INDIRECT(\"Product_List\"),ROWS($88:114)))","v":"27-ขนมปังไส้สังขยาไข่"},{"$f":"ยอดยกมา","v":0},null,null,null,null,null,null,0,null,{"$f":"INDIRECT(ADDRESS(ROW(A$80),ROW()-ROW(A$80)+(ROWS($88:114)-1)*2-1,4))","v":0},null,0,null,0,null,null,null,0,null,0,null,null,null,null,null,{"$f":"INDIRECT(ADDRESS(ROW(A$80),ROW()-ROW(A$80)+(ROWS($88:114)-1)*2,4))","v":0},0,null,0,{"$f":"INDIRECT(ADDRESS(ROW(A$80),ROW()-ROW(A$80)+(ROWS($88:114)-1)*2+1,4))","v":0}]
[{"$f":"IF(B115=\"\",0,INDEX(Price_List,ROWS($88:115)))","v":20},{"$f":"IF($C115=\"\",\"\",COUNTA($C$88:$C115))","v":28},{"$f":"IF(INDEX(INDIRECT(\"Product_List\"),ROWS($88:115))=\"\",\"\",INDEX(INDIRECT(\"Product_List\"),ROWS($88:115)))","v":"28-ขนมปังไส้สังขยามะพร้าว"},{"$f":"ยอดยกมา","v":0},null,null,null,null,null,null,0,null,{"$f":"INDIRECT(ADDRESS(ROW(A$80),ROW()-ROW(A$80)+(ROWS($88:115)-1)*2-1,4))","v":0},null,0,null,0,null,null,null,0,null,0,null,null,null,null,null,{"$f":"INDIRECT(ADDRESS(ROW(A$80),ROW()-ROW(A$80)+(ROWS($88:115)-1)*2,4))","v":0},0,null,0,{"$f":"INDIRECT(ADDRESS(ROW(A$80),ROW()-ROW(A$80)+(ROWS($88:115)-1)*2+1,4))","v":0}]
[{"$f":"IF(B116=\"\",0,INDEX(Price_List,ROWS($88:116)))","v":10},{"$f":"IF($C116=\"\",\"\",COUNTA($C$88:$C116))","v":29},{"$f":"IF(INDEX(INDIRECT(\"Product_List\"),ROWS($88:116))=\"\",\"\",INDEX(INDIRECT(\"Product_List\"),ROWS($88:116)))","v":"29-ขนมปังไส้ครีมชาไทย"},{"$f":"ยอดยกมา","v":0},null,null,null,null,null,null,0,null,{"$f":"INDIRECT(ADDRESS(ROW(A$80),ROW()-ROW(A$80)+(ROWS($88:116)-1)*2-1,4))","v":0},null,0,null,0,null,null,null,0,null,0,null,null,null,null,null,{"$f":"INDIRECT(ADDRESS(ROW(A$80),ROW()-ROW(A$80)+(ROWS($88:116)-1)*2,4))","v":0},0,null,0,{"$f":"INDIRECT(ADDRESS(ROW(A$80),ROW()-ROW(A$80)+(ROWS($88:116)-1)*2+1,4))","v":0}]
[{"$f":"IF(B117=\"\",0,INDEX(Price_List,ROWS($88:117)))","v":15},{"$f":"IF($C117=\"\",\"\",COUNTA($C$88:$C117))","v":30},{"$f":"IF(INDEX(INDIRECT(\"Product_List\"),ROWS($88:117))=\"\",\"\",INDEX(INDIRECT(\"Product_List\"),ROWS($88:117)))","v":"30-ขนมปังโรลมันม่วง"},{"$f":"ยอดยกมา","v":0},null,null,null,null,null,null,0,null,{"$f":"INDIRECT(ADDRESS(ROW(A$80),ROW()-ROW(A$80)+(ROWS($88:117)-1)*2-1,4))","v":0},null,0,null,0,null,null,null,0,null,0,null,null,null,null,null,{"$f":"INDIRECT(ADDRESS(ROW(A$80),ROW()-ROW(A$80)+(ROWS($88:117)-1)*2,4))","v":0},0,null,0,{"$f":"INDIRECT(ADDRESS(ROW(A$80),ROW()-ROW(A$80)+(ROWS($88:117)-1)*2+1,4))","v":0}]
[{"$f":"IF(B118=\"\",0,INDEX(Price_List,ROWS($88:118)))","v":15},{"$f":"IF($C118=\"\",\"\",COUNTA($C$88:$C118))","v":31},{"$f":"IF(INDEX(INDIRECT(\"Product_List\"),ROWS($88:118))=\"\",\"\",INDEX(INDIRECT(\"Product_List\"),ROWS($88:118)))","v":"31-ขนมปังโรลช็อกโกแลต"},{"$f":"ยอดยกมา","v":0},null,null,null,null,null,null,0,null,{"$f":"INDIRECT(ADDRESS(ROW(A$80),ROW()-ROW(A$80)+(ROWS($88:118)-1)*2-1,4))","v":0},null,0,null,0,null,null,null,0,null,0,null,null,null,null,null,{"$f":"INDIRECT(ADDRESS(ROW(A$80),ROW()-ROW(A$80)+(ROWS($88:118)-1)*2,4))","v":0},0,null,0,{"$f":"INDIRECT(ADDRESS(ROW(A$80),ROW()-ROW(A$80)+(ROWS($88:118)-1)*2+1,4))","v":0}]
[{"$f":"IF(B119=\"\",0,INDEX(Price_List,ROWS($88:119)))","v":16},{"$f":"IF($C119=\"\",\"\",COUNTA($C$88:$C119))","v":32},{"$f":"IF(INDEX(INDIRECT(\"Product_List\"),ROWS($88:119))=\"\",\"\",INDEX(INDIRECT(\"Product_List\"),ROWS($88:119)))","v":"32-ขนมปังชนิดแผ่น(155กรัม)"},{"$f":"ยอดยกมา","v":0},null,null,null,null,null,null,0,null,{"$f":"INDIRECT(ADDRESS(ROW(A$80),ROW()-ROW(A$80)+(ROWS($88:119)-1)*2-1,4))","v":0},null,0,null,0,null,null,null,0,null,0,null,null,null,null,null,{"$f":"INDIRECT(ADDRESS(ROW(A$80),ROW()-ROW(A$80)+(ROWS($88:119)-1)*2,4))","v":0},0,null,0,{"$f":"INDIRECT(ADDRESS(ROW(A$80),ROW()-ROW(A$80)+(ROWS($88:119)-1)*2+1,4))","v":0}]
[{"$f":"IF(B120=\"\",0,INDEX(Price_List,ROWS($88:120)))","v":15},{"$f":"IF($C120=\"\",\"\",COUNTA($C$88:$C120))","v":33},{"$f":"IF(INDEX(INDIRECT(\"Product_List\"),ROWS($88:120))=\"\",\"\",INDEX(INDIRECT(\"Product_List\"),ROWS($88:120)))","v":"33-ขนมปังโรลเผือก"},{"$f":"ยอดยกมา","v":0},null,null,null,null,null,null,0,null,{"$f":"INDIRECT(ADDRESS(ROW(A$80),ROW()-ROW(A$80)+(ROWS($88:120)-1)*2-1,4))","v":0},null,0,null,0,null,null,null,0,null,0,null,null,null,null,null,{"$f":"INDIRECT(ADDRESS(ROW(A$80),ROW()-ROW(A$80)+(ROWS($88:120)-1)*2,4))","v":0},0,null,0,{"$f":"INDIRECT(ADDRESS(ROW(A$80),ROW()-ROW(A$80)+(ROWS($88:120)-1)*2+1,4))","v":0}]
[{"$f":"IF(B121=\"\",0,INDEX(Price_List,ROWS($88:121)))","v":15},{"$f":"IF($C121=\"\",\"\",COUNTA($C$88:$C121))","v":34},{"$f":"IF(INDEX(INDIRECT(\"Product_List\"),ROWS($88:121))=\"\",\"\",INDEX(INDIRECT(\"Product_List\"),ROWS($88:121)))","v":"34-ขนมปังไก่หยองน้ำสลัด Mini"},{"$f":"ยอดยกมา","v":0},null,null,null,null,null,null,0,null,{"$f":"INDIRECT(ADDRESS(ROW(A$80),ROW()-ROW(A$80)+(ROWS($88:121)-1)*2-1,4))","v":0},null,0,null,0,null,null,null,0,null,0,null,null,null,null,null,{"$f":"INDIRECT(ADDRESS(ROW(A$80),ROW()-ROW(A$80)+(ROWS($88:121)-1)*2,4))","v":0},0,null,0,{"$f":"INDIRECT(ADDRESS(ROW(A$80),ROW()-ROW(A$80)+(ROWS($88:121)-1)*2+1,4))","v":0}]
[{"$f":"IF(B122=\"\",0,INDEX(Price_List,ROWS($88:122)))","v":10},{"$f":"IF($C122=\"\",\"\",COUNTA($C$88:$C122))","v":35},{"$f":"IF(INDEX(INDIRECT(\"Product_List\"),ROWS($88:122))=\"\",\"\",INDEX(INDIRECT(\"Product_List\"),ROWS($88:122)))","v":"35-ขนมปังไส้ช็อกโกแลต"},{"$f":"ยอดยกมา","v":0},null,null,null,null,null,null,0,null,{"$f":"INDIRECT(ADDRESS(ROW(A$80),ROW()-ROW(A$80)+(ROWS($88:122)-1)*2-1,4))","v":0},null,0,null,0,null,null,null,0,null,0,null,null,null,null,null,{"$f":"INDIRECT(ADDRESS(ROW(A$80),ROW()-ROW(A$80)+(ROWS($88:122)-1)*2,4))","v":0},0,null,0,{"$f":"INDIRECT(ADDRESS(ROW(A$80),ROW()-ROW(A$80)+(ROWS($88:122)-1)*2+1,4))","v":0}]
[{"$f":"IF(B123=\"\",0,INDEX(Price_List,ROWS($88:123)))","v":10},{"$f":"IF($C123=\"\",\"\",COUNTA($C$88:$C123))","v":36},{"$f":"IF(INDEX(INDIRECT(\"Product_List\"),ROWS($88:123))=\"\",\"\",INDEX(INDIRECT(\"Product_List\"),ROWS($88:123)))","v":"36-ขนมปังไส้ครีมสังขยาไข่"},{"$f":"ยอดยกมา","v":0},null,null,null,null,null,null,0,null,{"$f":"INDIRECT(ADDRESS(ROW(A$80),ROW()-ROW(A$80)+(ROWS($88:123)-1)*2-1,4))","v":0},null,0,null,0,null,null,null,0,null,0,null,null,null,null,null,{"$f":"INDIRECT(ADDRESS(ROW(A$80),ROW()-ROW(A$80)+(ROWS($88:123)-1)*2,4))","v":0},0,null,0,{"$f":"INDIRECT(ADDRESS(ROW(A$80),ROW()-ROW(A$80)+(ROWS($88:123)-1)*2+1,4))","v":0}]
[{"$f":"IF(B124=\"\",0,INDEX(Price_List,ROWS($88:124)))","v":20},{"$f":"IF($C124=\"\",\"\",COUNTA($C$88:$C124))","v":37},{"$f":"IF(INDEX(INDIRECT(\"Product_List\"),ROWS($88:124))=\"\",\"\",INDEX(INDIRECT(\"Product_List\"),ROWS($88:124)))","v":"37-ขนมปังพิซซ่าฮาวายเอี้ยน"},{"$f":"ยอดยกมา","v":0},null,null,null,null,null,null,0,null,{"$f":"INDIRECT(ADDRESS(ROW(A$80),ROW()-ROW(A$80)+(ROWS($88:124)-1)*2-1,4))","v":0},null,0,null,0,null,null,null,0,null,0,null,null,null,null,null,{"$f":"INDIRECT(ADDRESS(ROW(A$80),ROW()-ROW(A$80)+(ROWS($88:124)-1)*2,4))","v":0},0,null,0,{"$f":"INDIRECT(ADDRESS(ROW(A$80),ROW()-ROW(A$80)+(ROWS($88:124)-1)*2+1,4))","v":0}]
[{"$f":"IF(B125=\"\",0,INDEX(Price_List,ROWS($88:125)))","v":20},{"$f":"IF($C125=\"\",\"\",COUNTA($C$88:$C125))","v":38},{"$f":"IF(INDEX(INDIRECT(\"Product_List\"),ROWS($88:125))=\"\",\"\",INDEX(INDIRECT(\"Product_List\"),ROWS($88:125)))","v":"38-ครัวซองต์หมูหยองน้ำสลัด"},{"$f":"ยอดยกมา","v":0},null,null,null,null,null,null,0,null,{"$f":"INDIRECT(ADDRESS(ROW(A$80),ROW()-ROW(A$80)+(ROWS($88:125)-1)*2-1,4))","v":0},null,0,null,0,null,null,null,0,null,0,null,null,null,null,null,{"$f":"INDIRECT(ADDRESS(ROW(A$80),ROW()-ROW(A$80)+(ROWS($88:125)-1)*2,4))","v":0},0,null,0,{"$f":"INDIRECT(ADDRESS(ROW(A$80),ROW()-ROW(A$80)+(ROWS($88:125)-1)*2+1,4))","v":0}]
[{"$f":"IF(B126=\"\",0,INDEX(Price_List,ROWS($88:126)))","v":15},{"$f":"IF($C126=\"\",\"\",COUNTA($C$88:$C126))","v":39},{"$f":"IF(INDEX(INDIRECT(\"Product_List\"),ROWS($88:126))=\"\",\"\",INDEX(INDIRECT(\"Product_List\"),ROWS($88:126)))","v":"39-แพนเบรดไส้เผือก"},{"$f":"ยอดยกมา","v":0},null,null,null,null,null,null,0,null,{"$f":"INDIRECT(ADDRESS(ROW(A$80),ROW()-ROW(A$80)+(ROWS($88:126)-1)*2-1,4))","v":0},null,0,null,0,null,null,null,0,null,0,null,null,null,null,null,{"$f":"INDIRECT(ADDRESS(ROW(A$80),ROW()-ROW(A$80)+(ROWS($88:126)-1)*2,4))","v":0},0,null,0,{"$f":"INDIRECT(ADDRESS(ROW(A$80),ROW()-ROW(A$80)+(ROWS($88:126)-1)*2+1,4))","v":0}]
[{"$f":"IF(B127=\"\",0,INDEX(Price_List,ROWS($88:127)))","v":15},{"$f":"IF($C127=\"\",\"\",COUNTA($C$88:$C127))","v":40},{"$f":"IF(INDEX(INDIRECT(\"Product_List\"),ROWS($88:127))=\"\",\"\",INDEX(INDIRECT(\"Product_List\"),ROWS($88:127)))","v":"40-แพนเบรดไส้ถั่วแดง"},{"$f":"ยอดยกมา","v":0},null,null,null,null,null,null,{"$f":"D127+E127+J127-I127+H127","v":0},null,{"$f":"INDIRECT(ADDRESS(ROW(A$80),ROW()-ROW(A$80)+(ROWS($88:127)-1)*2-1,4))","v":0},null,{"$f":"F127+G127+M127+J127-K127","v":0},null,{"$f":"O127*A127","v":0},null,null,null,{"$f":"D127+E127-F127-G127","v":0},null,{"$f":"U127*6%+U127","v":0},null,null,null,null,null,{"$f":"INDIRECT(ADDRESS(ROW(A$80),ROW()-ROW(A$80)+(ROWS($88:127)-1)*2,4))","v":0},0,null,0,{"$f":"INDIRECT(ADDRESS(ROW(A$80),ROW()-ROW(A$80)+(ROWS($88:127)-1)*2+1,4))","v":0}]
[{"$f":"IF(B128=\"\",0,INDEX(Price_List,ROWS($88:128)))","v":12},{"$f":"IF($C128=\"\",\"\",COUNTA($C$88:$C128))","v":41},{"$f":"IF(INDEX(INDIRECT(\"Product_List\"),ROWS($88:128))=\"\",\"\",INDEX(INDIRECT(\"Product_List\"),ROWS($88:128)))","v":"41-ขนมปังกรอบเนยน้ำตาล(30กรัม)"},{"$f":"ยอดยกมา","v":0},null,null,null,null,null,null,0,null,{"$f":"INDIRECT(ADDRESS(ROW(A$80),ROW()-ROW(A$80)+(ROWS($88:128)-1)*2-1,4))","v":0},null,0,null,0,null,null,null,0,null,0,null,null,null,null,null,{"$f":"INDIRECT(ADDRESS(ROW(A$80),ROW()-ROW(A$80)+(ROWS($88:128)-1)*2,4))","v":0},0,null,0,{"$f":"INDIRECT(ADDRESS(ROW(A$80),ROW()-ROW(A$80)+(ROWS($88:128)-1)*2+1,4))","v":0}]
[{"$f":"IF(B129=\"\",0,INDEX(Price_List,ROWS($88:129)))","v":18},{"$f":"IF($C129=\"\",\"\",COUNTA($C$88:$C129))","v":42},{"$f":"IF(INDEX(INDIRECT(\"Product_List\"),ROWS($88:129))=\"\",\"\",INDEX(INDIRECT(\"Product_List\"),ROWS($88:129)))","v":"42-ขนมปังชนิดแผ่นโฮลวีต"},{"$f":"ยอดยกมา","v":0},null,null,null,null,null,null,0,null,{"$f":"INDIRECT(ADDRESS(ROW(A$80),ROW()-ROW(A$80)+(ROWS($88:129)-1)*2-1,4))","v":0},null,0,null,0,null,null,null,0,null,0,null,null,null,null,null,{"$f":"INDIRECT(ADDRESS(ROW(A$80),ROW()-ROW(A$80)+(ROWS($88:129)-1)*2,4))","v":0},0,null,0,{"$f":"INDIRECT(ADDRESS(ROW(A$80),ROW()-ROW(A$80)+(ROWS($88:129)-1)*2+1,4))","v":0}]
[{"$f":"IF(B130=\"\",0,INDEX(Price_List,ROWS($88:130)))","v":12},{"$f":"IF($C130=\"\",\"\",COUNTA($C$88:$C130))","v":43},{"$f":"IF(INDEX(INDIRECT(\"Product_List\"),ROWS($88:130))=\"\",\"\",INDEX(INDIRECT(\"Product_List\"),ROWS($88:130)))","v":"43-เค้กโรลใบเตย"},{"$f":"ยอดยกมา","v":0},null,null,null,null,null,null,{"$f":"D130+E130+J130-I130+H130","v":0},null,{"$f":"INDIRECT(ADDRESS(ROW(A$80),ROW()-ROW(A$80)+(ROWS($88:130)-1)*2-1,4))","v":0},null,{"$f":"F130+G130+M130+J130-K130","v":0},null,{"$f":"O130*A130","v":0},null,null,null,{"$f":"D130+E130-F130-G130","v":0},null,{"$f":"U130*6%+U130","v":0},null,null,null,null,null,{"$f":"INDIRECT(ADDRESS(ROW(A$80),ROW()-ROW(A$80)+(ROWS($88:130)-1)*2,4))","v":0},0,null,0,{"$f":"INDIRECT(ADDRESS(ROW(A$80),ROW()-ROW(A$80)+(ROWS($88:130)-1)*2+1,4))","v":0}]
[{"$f":"IF(B131=\"\",0,INDEX(Price_List,ROWS($88:131)))","v":12},{"$f":"IF($C131=\"\",\"\",COUNTA($C$88:$C131))","v":44},{"$f":"IF(INDEX(INDIRECT(\"Product_List\"),ROWS($88:131))=\"\",\"\",INDEX(INDIRECT(\"Product_List\"),ROWS($88:131)))","v":"44-ขนมโมจิไส้ถั่วดำ"},{"$f":"ยอดยกมา","v":0},null,null,null,null,null,null,{"$f":"D131+E131+J131-I131+H131","v":0},null,{"$f":"INDIRECT(ADDRESS(ROW(A$80),ROW()-ROW(A$80)+(ROWS($88:131)-1)*2-1,4))","v":0},null,{"$f":"F131+G131+M131+J131-K131","v":0},null,{"$f":"O131*A131","v":0},null,null,null,{"$f":"D131+E131-F131-G131","v":0},null,{"$f":"U131*6%+U131","v":0},null,null,null,null,null,{"$f":"INDIRECT(ADDRESS(ROW(A$80),ROW()-ROW(A$80)+(ROWS($88:131)-1)*2,4))","v":0},0,null,0,{"$f":"INDIRECT(ADDRESS(ROW(A$80),ROW()-ROW(A$80)+(ROWS($88:131)-1)*2+1,4))","v":0}]
[{"$f":"IF(B132=\"\",0,INDEX(Price_List,ROWS($88:132)))","v":25},{"$f":"IF($C132=\"\",\"\",COUNTA($C$88:$C132))","v":45},{"$f":"IF(INDEX(INDIRECT(\"Product_List\"),ROWS($88:132))=\"\",\"\",INDEX(INDIRECT(\"Product_List\"),ROWS($88:132)))","v":"45-ครัวซองต์ไส้กรอกชีส"},{"$f":"ยอดยกมา","v":0},null,null,null,null,null,null,{"$f":"D132+E132+J132-I132+H132","v":0},null,{"$f":"INDIRECT(ADDRESS(ROW(A$80),ROW()-ROW(A$80)+(ROWS($88:132)-1)*2-1,4))","v":0},null,{"$f":"F132+G132+M132+J132-K132","v":0},null,{"$f":"O132*A132","v":0},null,null,null,{"$f":"D132+E132-F132-G132","v":0},null,{"$f":"U132*6%+U132","v":0},null,null,null,null,null,{"$f":"INDIRECT(ADDRESS(ROW(A$80),ROW()-ROW(A$80)+(ROWS($88:132)-1)*2,4))","v":0},0,null,0,{"$f":"INDIRECT(ADDRESS(ROW(A$80),ROW()-ROW(A$80)+(ROWS($88:132)-1)*2+1,4))","v":0}]
[{"$f":"IF(B133=\"\",0,INDEX(Price_List,ROWS($88:133)))","v":12},{"$f":"IF($C133=\"\",\"\",COUNTA($C$88:$C133))","v":46},{"$f":"IF(INDEX(INDIRECT(\"Product_List\"),ROWS($88:133))=\"\",\"\",INDEX(INDIRECT(\"Product_List\"),ROWS($88:133)))","v":"46-ขนมเปี๊ยะไส้ถั่ว"},{"$f":"ยอดยกมา","v":0},null,null,null,null,null,null,0,null,{"$f":"INDIRECT(ADDRESS(ROW(A$80),ROW()-ROW(A$80)+(ROWS($88:133)-1)*2-1,4))","v":0},null,0,null,0,null,null,null,0,null,0,null,null,null,null,null,{"$f":"INDIRECT(ADDRESS(ROW(A$80),ROW()-ROW(A$80)+(ROWS($88:133)-1)*2,4))","v":0},0,null,0,{"$f":"INDIRECT(ADDRESS(ROW(A$80),ROW()-ROW(A$80)+(ROWS($88:133)-1)*2+1,4))","v":0}]
[{"$f":"IF(B134=\"\",0,INDEX(Price_List,ROWS($88:134)))","v":12},{"$f":"IF($C134=\"\",\"\",COUNTA($C$88:$C134))","v":47},{"$f":"IF(INDEX(INDIRECT(\"Product_List\"),ROWS($88:134))=\"\",\"\",INDEX(INDIRECT(\"Product_List\"),ROWS($88:134)))","v":"47-ขนมเปี๊ยะไส้ฟัก"},{"$f":"ยอดยกมา","v":0},null,null,null,null,null,null,{"$f":"D134+E134+J134-I134+H134","v":0},null,{"$f":"INDIRECT(ADDRESS(ROW(A$80),ROW()-ROW(A$80)+(ROWS($88:134)-1)*2-1,4))","v":0},null,{"$f":"F134+G134+M134+J134-K134","v":0},null,{"$f":"O134*A134","v":0},null,null,null,{"$f":"D134+E134-F134-G134","v":0},null,{"$f":"U134*6%+U134","v":0},null,null,null,null,null,{"$f":"INDIRECT(ADDRESS(ROW(A$80),ROW()-ROW(A$80)+(ROWS($88:134)-1)*2,4))","v":0},0,null,0,{"$f":"INDIRECT(ADDRESS(ROW(A$80),ROW()-ROW(A$80)+(ROWS($88:134)-1)*2+1,4))","v":0}]
[{"$f":"IF(B135=\"\",0,INDEX(Price_List,ROWS($88:135)))","v":12},{"$f":"IF($C135=\"\",\"\",COUNTA($C$88:$C135))","v":48},{"$f":"IF(INDEX(INDIRECT(\"Product_List\"),ROWS($88:135))=\"\",\"\",INDEX(INDIRECT(\"Product_List\"),ROWS($88:135)))","v":"48-มังกี้เค้ก"},{"$f":"ยอดยกมา","v":0},null,null,null,null,null,null,0,null,{"$f":"INDIRECT(ADDRESS(ROW(A$80),ROW()-ROW(A$80)+(ROWS($88:135)-1)*2-1,4))","v":0},null,0,null,0,null,null,null,0,null,0,null,null,null,null,null,{"$f":"INDIRECT(ADDRESS(ROW(A$80),ROW()-ROW(A$80)+(ROWS($88:135)-1)*2,4))","v":0},0,null,0,{"$f":"INDIRECT(ADDRESS(ROW(A$80),ROW()-ROW(A$80)+(ROWS($88:135)-1)*2+1,4))","v":0}]
["รวม",null,null,{"$f":"SUM(D$88:D$135)","v":0},0,0,0,0,0,0,0,null,{"$f":"SUM(M$88:M$135)","v":0},null,null,null,{"$f":"$AP$98","v":0},null,"บาท",null,{"$f":"SUM(U$88:U$135)","v":0},null,{"$f":"SUM(W$88:W$135)","v":0},null,null,null,null,null,{"$f":"SUM(AC$88:AC$135)","v":0},{"$f":"SUM(AD$88:AD$135)","v":0},{"$f":"SUM(AE$88:AE$135)","v":0},{"$f":"SUM(AF$88:AF$135)","v":0},{"$f":"SUM(AG$88:AG$135)","v":0}]
["เลขที่ไมล์ เวลาออกทำงาน",null,null,{"$f":"$BF$3","v":0},null,"Km","น้ำหนักของเสีย"]
["เลขที่ไมล์ เวลากลับ",null,null,{"$f":"$BF$4","v":0},null,"Km",{"$f":"$AA$5","v":0},null,"KG"]
["เวลากลับถึงสำนักงาน",null,null,{"$f":"$BF$1","v":"00:00:00"},null,"น."]
["เติมน้ำมัน",null,null,{"$f":"$AX3","v":0},null,"บาท"]
["จำนวนน้ำมัน",null,null,{"$f":"$AX4","v":0},null,"ลิตร"]
["ยอดรวมต้นทุนสาขา",null,null,{"$f":"$AX5","v":0},null,"บาท"]

{"sheet":"8","index":12,"n_rows":142,"n_cols":154,"rows_kept":142,"cut":false,"hidden":false,"merged":[[129,10,129,11],[129,12,129,13],[129,14,129,15],[129,16,129,17],[129,20,129,21],[80,126,80,127],[128,10,128,11],[128,12,128,13],[128,14,128,15],[128,16,128,17],[128,20,128,21],[128,22,128,23],[128,24,128,25],[128,33,128,36],[125,10,125,11],[125,12,125,13],[125,14,125,15],[125,16,125,17],[125,20,125,21],[126,10,126,11],[127,10,127,11],[83,81,83,82],[83,84,83,85],[83,87,83,88],[83,90,83,91],[83,93,83,94],[83,96,83,97],[82,72,82,73],[129,22,129,23],[129,24,129,25],[129,33,129,36],[97,38,97,40],[92,24,92,25],[92,33,92,36],[90,24,90,25],[90,33,90,36],[96,33,96,36],[97,33,97,36],[88,24,88,25],[88,33,88,36],[80,132,80,133],[82,132,82,133],[6,135,6,137],[7,135,7,137],[8,135,8,137],[80,135,80,136],[82,135,82,136],[80,129,80,130],[82,126,82,127],[82,129,82,130],[6,138,6,140],[6,141,6,143],[6,147,6,149],[126,22,126,23],[127,22,127,23],[126,24,126,25],[127,24,127,25],[126,33,126,36],[127,33,127,36],[125,24,125,25],[125,33,125,36],[123,24,123,25],[123,33,123,36],[125,22,125,23],[124,22,124,23],[124,24,124,25],[124,33,124,36],[122,24,122,25],[122,33,122,36],[98,24,98,25],[98,33,98,36],[99,24,99,25],[99,33,99,36],[82,108,82,109],[139,0,139,2],[139,3,139,4],[140,0,140,2],[140,3,140,4],[141,0,141,2],[141,3,141,4],[137,0,137,2],[137,3,137,4],[137,6,137,7],[137,18,137,21],[138,0,138,2],[138,3,138,4],[135,20,135,21],[135,22,135,23],[135,24,135,25],[135,33,135,36],[136,0,136,2],[136,3,136,4],[135,0,135,2],[135,10,135,11],[135,12,135,13],[135,14,135,15],[135,16,135,17],[135,18,135,19],[126,12,126,13],[127,12,127,13],[126,14,126,15],[127,14,127,15],[126,16,126,17],[127,16,127,17],[126,20,126,21],[127,20,127,21],[124,10,124,11],[124,12,124,13],[124,14,124,15],[124,16,124,17],[124,20,124,21],[123,10,123,11],[123,12,123,13],[123,14,123,15],[123,16,123,17],[123,20,123,21],[123,22,123,23],[122,10,122,11],[122,12,122,13],[122,14,122,15],[122,16,122,17],[122,20,122,21],[122,22,122,23],[121,10,121,11],[121,12,121,13],[121,14,121,15],[121,16,121,17],[121,20,121,21],[121,22,121,23],[121,24,121,25],[121,33,121,36],[120,10,120,11],[120,12,120,13],[120,14,120,15],[120,16,120,17],[120,20,120,21],[120,22,120,23],[120,24,120,25],[120,33,120,36],[119,10,119,11],[119,12,119,13],[119,14,119,15],[119,16,119,17],[119,20,119,21],[119,22,119,23],[119,24,119,25],[119,33,119,36],[118,10,118,11],[118,12,118,13],[118,14,118,15],[118,16,118,17],[118,20,118,21],[118,22,118,23],[118,24,118,25],[118,33,118,36],[117,10,117,11],[117,12,117,13],[117,14,117,15],[117,16,117,17],[117,20,117,21],[117,22,117,23],[117,24,117,25],[117,33,117,36],[116,10,116,11],[116,12,116,13],[116,14,116,15],[116,16,116,17],[116,20,116,21],[116,22,116,23],[116,24,116,25],[116,33,116,36],[115,10,115,11],[115,12,115,13],[115,14,115,15],[115,16,115,17],[115,20,115,21],[115,22,115,23],[115,24,115,25],[115,33,115,36],[114,10,114,11],[114,12,114,13],[114,14,114,15],[114,16,114,17],[114,20,114,21],[114,22,114,23],[114,24,114,25],[114,33,114,36],[113,10,113,11],[113,12,113,13],[113,14,113,15],[113,16,113,17],[113,20,113,21],[113,22,113,23],[113,24,113,25],[113,33,113,36],[112,10,112,11],[112,12,112,13],[112,14,112,15],[112,16,112,17],[112,20,112,21],[112,22,112,23],[112,24,112,25],[112,33,112,36],[111,10,111,11],[111,12,111,13],[111,14,111,15],[111,16,111,17],[111,20,111,21],[111,22,111,23],[111,24,111,25],[111,33,111,36],[110,10,110,11],[110,12,110,13],[110,14,110,15],[110,16,110,17],[110,20,110,21],[110,22,110,23],[110,24,110,25],[110,33,110,36],[109,10,109,11],[109,12,109,13],[109,14,109,15],[109,16,109,17],[109,20,109,21],[109,22,109,23],[109,24,109,25],[109,33,109,36],[108,10,108,11],[108,12,108,13],[108,14,108,15],[108,16,108,17],[108,20,108,21],[108,22,108,23],[108,24,108,25],[108,33,108,36],[107,10,107,11],[107,12,107,13],[107,14,107,15],[107,16,107,17],[107,20,107,21],[107,22,107,23],[107,24,107,25],[107,33,107,36],[106,10,106,11],[106,12,106,13],[106,14,106,15],[106,16,106,17],[106,20,106,21],[106,22,106,23],[106,24,106,25],[106,33,106,36],[105,10,105,11],[105,12,105,13],[105,14,105,15],[105,16,105,17],[105,20,105,21],[105,22,105,23],[105,24,105,25],[105,33,105,36],[104,10,104,11],[104,12,104,13],[104,14,104,15],[104,16,104,17],[104,20,104,21],[104,22,104,23],[104,24,104,25],[104,33,104,36],[103,10,103,11],[103,12,103,13],[103,14,103,15],[103,16,103,17],[103,20,103,21],[103,22,103,23],[103,24,103,25],[103,33,103,36],[102,10,102,11],[102,12,102,13],[102,14,102,15],[102,16,102,17],[102,20,102,21],[102,22,102,23],[102,24,102,25],[102,33,102,36],[101,10,101,11],[101,12,101,13],[101,14,101,15],[101,16,101,17],[101,20,101,21],[101,22,101,23],[101,24,101,25],[101,33,101,36],[100,10,100,11],[100,12,100,13],[100,14,100,15],[100,16,100,17],[100,20,100,21],[100,22,100,23],[100,24,100,25],[100,33,100,36],[99,10,99,11],[99,12,99,13],[99,14,99,15],[99,16,99,17],[99,20,99,21],[99,22,99,23],[98,10,98,11],[98,12,98,13],[98,14,98,15],[98,16,98,17],[98,20,98,21],[98,22,98,23],[97,10,97,11],[97,12,97,13],[97,14,97,15],[97,16,97,17],[97,20,97,21],[97,22,97,23],[97,24,97,25],[96,10,96,11],[96,12,96,13],[96,14,96,15],[96,16,96,17],[96,20,96,21],[96,22,96,23],[96,24,96,25],[95,10,95,11],[95,12,95,13],[95,14,95,15],[95,16,95,17],[95,20,95,21],[95,22,95,23],[95,24,95,25],[95,33,95,36],[94,10,94,11],[94,12,94,13],[94,14,94,15],[94,16,94,17],[94,20,94,21],[94,22,94,23],[94,24,94,25],[94,33,94,36],[93,10,93,11],[93,12,93,13],[93,14,93,15],[93,16,93,17],[93,20,93,21],[93,22,93,23],[93,24,93,25],[93,33,93,36],[92,10,92,11],[92,12,92,13],[92,14,92,15],[92,16,92,17],[92,20,92,21],[92,22,92,23],[91,10,91,11],[91,12,91,13],[91,14,91,15],[91,16,91,17],[91,20,91,21],[91,22,91,23],[91,24,91,25],[91,33,91,36],[90,10,90,11],[90,12,90,13],[90,14,90,15],[90,16,90,17],[90,20,90,21],[90,22,90,23],[87,33,87,36],[86,10,86,11],[86,12,86,13],[86,14,86,15],[86,16,86,17],[86,20,86,21],[86,22,86,23],[89,10,89,11],[89,12,89,13],[89,14,89,15],[89,16,89,17],[89,20,89,21],[89,22,89,23],[89,24,89,25],[89,33,89,36],[88,10,88,11],[88,12,88,13],[88,14,88,15],[88,16,88,17],[88,20,88,21],[88,22,88,23],[86,24,86,25],[86,33,86,36],[83,150,83,153],[83,99,83,100],[83,102,83,103],[83,105,83,106],[83,108,83,109],[83,111,83,112],[83,114,83,115],[83,126,83,127],[83,129,83,130],[83,132,83,133],[83,135,83,136],[83,117,83,118],[83,120,83,121],[83,123,83,124],[82,75,82,76],[82,78,82,79],[82,81,82,82],[82,84,82,85],[82,87,82,88],[82,99,82,100],[82,102,82,103],[82,105,82,106],[82,63,82,64],[82,66,82,67],[82,69,82,70],[82,90,82,91],[82,93,82,94],[82,96,82,97],[83,0,83,5],[83,6,83,7],[83,9,83,10],[83,12,83,13],[83,15,83,16],[83,18,83,19],[83,21,83,22],[83,24,83,25],[83,54,83,55],[83,27,83,28],[82,36,82,37],[83,30,83,31],[83,33,83,34],[83,36,83,37],[82,39,82,40],[82,42,82,43],[83,45,83,46],[83,48,83,49],[83,51,83,52],[83,39,83,40],[83,42,83,43],[82,54,82,55],[82,57,82,58],[82,60,82,61],[81,0,81,2],[81,3,81,5],[81,150,82,153],[82,0,82,2],[82,3,82,4],[82,6,82,7],[82,9,82,10],[82,12,82,13],[82,15,82,16],[82,45,82,46],[82,48,82,49],[82,51,82,52],[82,18,82,19],[82,21,82,22],[82,24,82,25],[82,27,82,28],[82,30,82,31],[82,33,82,34],[82,111,82,112],[82,114,82,115],[82,117,82,118],[82,120,82,121],[82,123,82,124],[80,111,80,112],[80,114,80,115],[80,117,80,118],[80,120,80,121],[80,123,80,124],[80,93,80,94],[80,96,80,97],[80,99,80,100],[80,102,80,103],[80,105,80,106],[80,108,80,109],[80,36,80,37],[80,75,80,76],[80,78,80,79],[80,81,80,82],[80,84,80,85],[80,87,80,88],[80,90,80,91],[80,57,80,58],[80,60,80,61],[80,63,80,64],[80,66,80,67],[80,69,80,70],[80,72,80,73],[6,0,8,0],[6,1,8,1],[80,0,80,5],[80,6,80,7],[80,9,80,10],[80,12,80,13],[80,15,80,16],[80,18,80,19],[8,117,8,119],[8,54,8,56],[8,57,8,59],[8,60,8,62],[8,27,8,29],[8,30,8,32],[8,33,8,35],[8,36,8,38],[8,39,8,41],[8,42,8,44],[8,9,8,11],[8,12,8,14],[8,15,8,17],[8,18,8,20],[8,21,8,23],[8,24,8,26],[6,129,6,131],[7,126,7,128],[7,129,7,131],[8,126,8,128],[8,129,8,131],[6,126,6,128],[6,84,6,86],[6,132,6,134],[79,0,79,5],[8,99,8,101],[8,102,8,104],[8,105,8,107],[8,108,8,110],[8,111,8,113],[8,114,8,116],[8,81,8,83],[8,84,8,86],[8,87,8,89],[8,90,8,92],[8,93,8,95],[8,96,8,98],[8,63,8,65],[8,66,8,68],[8,69,8,71],[7,120,7,122],[7,123,7,125],[7,150,8,150],[7,151,8,151],[7,102,7,104],[7,105,7,107],[7,108,7,110],[7,111,7,113],[7,114,7,116],[7,117,7,119],[8,120,8,122],[8,123,8,125],[7,132,7,134],[8,132,8,134],[6,152,8,152],[6,153,8,153],[7,6,7,8],[7,9,7,11],[7,12,7,14],[7,15,7,17],[7,18,7,20],[7,21,7,23],[7,24,7,26],[7,27,7,29],[6,117,6,119],[6,120,6,122],[6,123,6,125],[6,150,6,151],[6,99,6,101],[6,102,6,104],[6,105,6,107],[6,108,6,110],[6,93,6,95],[6,96,6,98],[6,63,6,65],[6,111,6,113],[6,114,6,116],[6,81,6,83],[6,2,8,2],[6,3,8,3],[6,4,8,4],[6,6,6,8],[8,6,8,8],[6,45,6,47],[6,48,6,50],[7,48,7,50],[6,39,6,41],[6,42,6,44],[7,30,7,32],[7,33,7,35],[7,36,7,38],[7,39,7,41],[7,42,7,44],[7,45,7,47],[8,45,8,47],[8,48,8,50],[4,26,4,29],[4,30,4,31],[4,32,4,34],[4,35,4,36],[6,9,6,11],[6,12,6,14],[6,15,6,17],[6,18,6,20],[6,21,6,23],[6,24,6,26],[6,27,6,29],[6,30,6,32],[6,33,6,35],[6,36,6,38],[3,41,3,44],[3,46,3,48],[3,49,3,51],[3,54,3,56],[3,57,3,60],[4,0,4,1],[4,2,4,3],[4,4,4,5],[4,6,4,12],[4,14,4,16],[3,17,3,19],[3,22,3,25],[3,26,3,29],[3,30,3,33],[3,34,3,37],[3,38,3,40],[4,38,4,40],[4,41,4,44],[4,46,4,48],[4,49,4,51],[4,54,4,56],[4,57,4,60],[4,17,4,19],[4,22,4,25],[3,0,3,1],[3,2,3,3],[3,4,3,5],[3,6,3,12],[3,14,3,16],[2,17,2,19],[2,22,2,25],[2,26,2,29],[2,30,2,33],[0,38,0,40],[0,41,0,44],[0,46,0,48],[0,54,0,56],[0,57,0,60],[2,0,2,1],[2,2,2,3],[2,4,2,5],[2,6,2,12],[2,14,2,16],[0,0,0,12],[0,14,0,16],[0,17,0,23],[0,30,0,33],[0,34,0,35],[0,36,0,37],[2,41,2,44],[2,46,2,48],[2,49,2,51],[2,54,2,56],[2,57,2,60],[2,34,2,37],[2,38,2,40],[7,96,7,98],[7,99,7,101],[6,51,6,53],[6,60,6,62],[6,87,6,89],[6,90,6,92],[7,84,7,86],[7,87,7,89],[7,90,7,92],[7,66,7,68],[7,69,7,71],[7,72,7,74],[6,66,6,68],[7,75,7,77],[7,78,7,80],[7,81,7,83],[6,69,6,71],[6,72,6,74],[6,75,6,77],[6,78,6,80],[6,54,6,56],[6,57,6,59],[131,24,131,25],[131,10,131,11],[131,20,131,21],[7,51,7,53],[7,54,7,56],[7,57,7,59],[7,60,7,62],[7,63,7,65],[7,93,7,95],[8,72,8,74],[8,75,8,77],[8,78,8,80],[8,51,8,53],[80,39,80,40],[80,42,80,43],[80,45,80,46],[80,48,80,49],[80,51,80,52],[80,54,80,55],[80,21,80,22],[80,24,80,25],[80,27,80,28],[80,30,80,31],[80,33,80,34],[83,147,83,148],[130,22,130,23],[130,24,130,25],[130,33,130,36],[130,10,130,11],[130,12,130,13],[130,14,130,15],[130,16,130,17],[130,20,130,21],[83,63,83,64],[83,66,83,67],[83,69,83,70],[83,72,83,73],[83,75,83,76],[83,78,83,79],[83,57,83,58],[83,60,83,61],[87,10,87,11],[87,12,87,13],[87,14,87,15],[87,16,87,17],[87,20,87,21],[87,22,87,23],[87,24,87,25],[7,147,7,149],[8,138,8,140],[8,141,8,143],[8,147,8,149],[80,138,80,139],[80,141,80,142],[80,147,80,148],[82,138,82,139],[82,141,82,142],[82,147,82,148],[132,10,132,11],[134,10,134,11],[131,12,131,13],[132,12,132,13],[134,12,134,13],[131,14,131,15],[132,14,132,15],[134,14,134,15],[131,16,131,17],[132,16,132,17],[134,16,134,17],[133,10,133,11],[133,12,133,13],[133,14,133,15],[133,16,133,17],[132,20,132,21],[134,20,134,21],[131,22,131,23],[132,22,132,23],[134,22,134,23],[6,144,6,146],[7,144,7,146],[8,144,8,146],[80,144,80,145],[82,144,82,145],[83,144,83,145],[133,20,133,21],[133,22,133,23],[133,24,133,25],[133,33,133,36],[132,24,132,25],[134,24,134,25],[131,33,131,36],[132,33,132,36],[134,33,134,36],[7,138,7,140],[7,141,7,143],[83,138,83,139],[83,141,83,142]]}
[":::: รายงานการขายประจำวัน (Sale Daily Report)  ::::",null,null,null,null,null,null,null,null,null,null,null,null,null,"Print Date : ",null,null,{"$f":"NOW()","v":"2025-04-24T22:39:10.140"},null,null,null,null,null,null,null,null,null,null,null,null,"จำนวนร้าน :",null,null,null,{"$f":"MAX($A$10:$A$79)","v":0},null,"ร้าน",null,"เป้ายอดขาย :",null,null,null,null,null,null,null,{"$f":"C3","v":45785},null,null,{"$f":"LEFT('Problems & Solutions'!$B$2,FIND(\"|\",'Problems & Solutions'!$B$2))&\" วันที่\"&TEXT($C$3,\"[$-107041E] d mmmm yyyy;@\")","v":"ขั้นตอนการตรวจรีพอร์ตขาย | วันที่ 8 พฤษภาคม 2568"},null,null,null,null,"เวลากลับ :"]
[]
["วันที่ :",null,{"$f":"DATE(ใส่ข้อมูล!G2-543,ใส่ข้อมูล!V2,ActiveSheetName)","v":"2025-05-08"},null,"พนักงานขาย",null,{"$f":"INDEX(OFFSET(Sale_Region,,1),ActiveSheetName)","v":0},null,null,null,null,null,null,null,"รวมยอดเบิก :",null,null,{"$f":"E136","v":0},null,null,"ชิ้น",null,"ใหญ่สด(40)",null,null,null,{"$f":"Cash_Major_Bill","v":0},null,null,null,"ใหญ่เชื่อ(42)",null,null,null,{"$f":"Credit_Major_Bill","v":0},null,null,null,"บิลใหญ่ :",null,null,{"$f":"AA3+AI3","v":0},null,null,null,null,"เติมน้ำมัน :",null,null,null,null,null,"บาท",null,"ไมล์ออก :",null,null,{"$f":"เลขไมล์ออก","v":0},null,null,null,"Km"]
["เขตการขาย :",null,{"$f":"INDEX(Sale_Region,ActiveSheetName)","v":0},null,"ผช.ขาย",null,{"$f":"INDEX(OFFSET(Sale_Region,,2),ActiveSheetName)","v":0},null,null,null,null,null,null,null,"ของเหลือ :",null,null,{"$f":"F136","v":0},null,null,"ชิ้น",null,"เล็กสด(41)",null,null,null,{"$f":"Cash_Minor_Bill","v":0},null,null,null,"เล็กเชื่อ(43)",null,null,null,{"$f":"Credit_Minor_Bill","v":0},null,null,null,"บิลเล็ก :",null,null,{"$f":"AA4+AI4","v":0},null,null,null,null,"จำนวนลิตร :",null,null,null,null,null,"ลิตร",null,"ไมล์เข้า :",null,null,null,null,null,null,"Km"]
["สายส่ง :",null,{"$f":"\"Sale \"&ใส่ข้อมูล!E3&\"-\"&ใส่ข้อมูล!G3","v":"Sale KB-01"},null,"พนักงานเสริม",null,{"$f":"INDEX(OFFSET(Sale_Region,,3),ActiveSheetName)","v":0},null,null,null,null,null,null,null,"ของเสีย :",null,null,{"$f":"G136","v":0},null,null,"ชิ้น",null,"น้ำหนักของเสีย",null,null,null,null,null,null,null,"Kg.",null,"%ของเสีย",null,null,{"$f":"IF(Order_Cal=0,0,ROUND(Waste_Cal*100/Order_Cal,2))","v":0},null,"%","VAT :",null,null,{"$f":"EW81","v":0},null,null,null,null,"ต้นทุนสาขา :",null,null,{"$f":"SUMPRODUCT((($A$88:$A$135)-($A$88:$A$135)*0.45)*(($E$88:$E$135)-($G$88:$G$135)))","v":0},null,null,"บาท",null,"ระยะทาง :",null,null,{"$f":"IF(OR($BF$4=0,$BF$3=0),0,$BF$4-$BF$3)","v":0},null,null,null,"Km"]
[]
["No","รหัสร้าน (CustNo)","ชื่อร้าน (Store Name)","เวลาเข้าร้าน","ระยะเวลาระหว่างร้าน","บิล(Invoice)",{"$f":"INDEX(INDIRECT(\"dProduct[ProductName]\"),ROUNDUP(COLUMNS($G:G)/3,0))","v":"ขนมปังหมูหยองน้ำสลัด"},null,null,{"$f":"INDEX(INDIRECT(\"dProduct[ProductName]\"),ROUNDUP(COLUMNS($G:J)/3,0))","v":"ขนมปังหมูหยองน้ำพริกเผา"},null,null,{"$f":"INDEX(INDIRECT(\"dProduct[ProductName]\"),ROUNDUP(COLUMNS($G:M)/3,0))","v":"ขนมปังไก่หยองน้ำสลัด"},null,null,{"$f":"INDEX(INDIRECT(\"dProduct[ProductName]\"),ROUNDUP(COLUMNS($G:P)/3,0))","v":"ขนมปังไส้ครีมสลัด"},null,null,{"$f":"INDEX(INDIRECT(\"dProduct[ProductName]\"),ROUNDUP(COLUMNS($G:S)/3,0))","v":"ขนมปังเนยสด"},null,null,{"$f":"INDEX(INDIRECT(\"dProduct[ProductName]\"),ROUNDUP(COLUMNS($G:V)/3,0))","v":"ขนมปังไส้สังขยาเล็ก"},null,null,{"$f":"INDEX(INDIRECT(\"dProduct[ProductName]\"),ROUNDUP(COLUMNS($G:Y)/3,0))","v":"ขนมปังไส้เผือก"},null,null,{"$f":"INDEX(INDIRECT(\"dProduct[ProductName]\"),ROUNDUP(COLUMNS($G:AB)/3,0))","v":"ขนมปังไส้ถั่วแดง"},null,null,{"$f":"INDEX(INDIRECT(\"dProduct[ProductName]\"),ROUNDUP(COLUMNS($G:AE)/3,0))","v":"ขนมปังไส้ถั่วดำ"},null,null,{"$f":"INDEX(INDIRECT(\"dProduct[ProductName]\"),ROUNDUP(COLUMNS($G:AH)/3,0))","v":"ขนมปังไส้มันม่วง"},null,null,{"$f":"INDEX(INDIRECT(\"dProduct[ProductName]\"),ROUNDUP(COLUMNS($G:AK)/3,0))","v":"เค้กกล้วยหอม"},null,null,{"$f":"INDEX(INDIRECT(\"dProduct[ProductName]\"),ROUNDUP(COLUMNS($G:AN)/3,0))","v":"เค้กบัตเตอร์"},null,null,{"$f":"INDEX(INDIRECT(\"dProduct[ProductName]\"),ROUNDUP(COLUMNS($G:AQ)/3,0))","v":"ขนมปังโรลถั่วแดง"},null,null,{"$f":"INDEX(INDIRECT(\"dProduct[ProductName]\"),ROUNDUP(COLUMNS($G:AT)/3,0))","v":"ขนมปังไส้สังขยาใหญ่"},null,null,{"$f":"INDEX(INDIRECT(\"dProduct[ProductName]\"),ROUNDUP(COLUMNS($G:AW)/3,0))","v":"ขนมปังชนิดแผ่น(480กรัม)"},null,null,{"$f":"INDEX(INDIRECT(\"dProduct[ProductName]\"),ROUNDUP(COLUMNS($G:AZ)/3,0))","v":"โมจิไส้ถั่ว"},null,null,{"$f":"INDEX(INDIRECT(\"dProduct[ProductName]\"),ROUNDUP(COLUMNS($G:BC)/3,0))","v":"โมจิไส้เผือก"},null,null,{"$f":"INDEX(INDIRECT(\"dProduct[ProductName]\"),ROUNDUP(COLUMNS($G:BF)/3,0))","v":"โมจิไส้ถั่วไข่เค็ม"},null,null,{"$f":"INDEX(INDIRECT(\"dProduct[ProductName]\"),ROUNDUP(COLUMNS($G:BI)/3,0))","v":"ขนมปังพิซซ่า"},null,null,{"$f":"INDEX(INDIRECT(\"dProduct[ProductName]\"),ROUNDUP(COLUMNS($G:BL)/3,0))","v":"ขนมปังพิซซ่าปูอัดแฮม"},null,null,{"$f":"INDEX(INDIRECT(\"dProduct[ProductName]\"),ROUNDUP(COLUMNS($G:BO)/3,0))","v":"ขนมปังไส้กรอก"},null,null,{"$f":"INDEX(INDIRECT(\"dProduct[ProductName]\"),ROUNDUP(COLUMNS($G:BR)/3,0))","v":"ขนมก้านบัว"},null,null,{"$f":"INDEX(INDIRECT(\"dProduct[ProductName]\"),ROUNDUP(COLUMNS($G:BU)/3,0))","v":"พายสับปะรด"},null,null,{"$f":"INDEX(INDIRECT(\"dProduct[ProductName]\"),ROUNDUP(COLUMNS($G:BX)/3,0))","v":"พายไส้มะพร้าว"},null,null,{"$f":"INDEX(INDIRECT(\"dProduct[ProductName]\"),ROUNDUP(COLUMNS($G:CA)/3,0))","v":"ขนมปังโรลมันเทศ"},null,null,{"$f":"INDEX(INDIRECT(\"dProduct[ProductName]\"),ROUNDUP(COLUMNS($G:CD)/3,0))","v":"ขนมปังไส้ครีมสลัดน้ำพริกเผา"},null,null,{"$f":"INDEX(INDIRECT(\"dProduct[ProductName]\"),ROUNDUP(COLUMNS($G:CG)/3,0))","v":"ขนมปังไส้สังขยาไข่"},null,null,{"$f":"INDEX(INDIRECT(\"dProduct[ProductName]\"),ROUNDUP(COLUMNS($G:CJ)/3,0))","v":"ขนมปังไส้สังขยามะพร้าว"},null,null,{"$f":"INDEX(INDIRECT(\"dProduct[ProductName]\"),ROUNDUP(COLUMNS($G:CM)/3,0))","v":"ขนมปังไส้ครีมชาไทย"},null,null,{"$f":"INDEX(INDIRECT(\"dProduct[ProductName]\"),ROUNDUP(COLUMNS($G:CP)/3,0))","v":"ขนมปังโรลมันม่วง"},null,null,{"$f":"INDEX(INDIRECT(\"dProduct[ProductName]\"),ROUNDUP(COLUMNS($G:CS)/3,0))","v":"ขนมปังโรลช็อกโกแลต"},null,null,{"$f":"INDEX(INDIRECT(\"dProduct[ProductName]\"),ROUNDUP(COLUMNS($G:CV)/3,0))","v":"ขนมปังชนิดแผ่น(155กรัม)"},null,null,{"$f":"INDEX(INDIRECT(\"dProduct[ProductName]\"),ROUNDUP(COLUMNS($G:CY)/3,0))","v":"ขนมปังโรลเผือก"},null,null,{"$f":"INDEX(INDIRECT(\"dProduct[ProductName]\"),ROUNDUP(COLUMNS($G:DB)/3,0))","v":"ขนมปังไก่หยองน้ำสลัด Mini"},null,null,{"$f":"INDEX(INDIRECT(\"dProduct[ProductName]\"),ROUNDUP(COLUMNS($G:DE)/3,0))","v":"ขนมปังไส้ช็อกโกแลต"},null,null,{"$f":"INDEX(INDIRECT(\"dProduct[ProductName]\"),ROUNDUP(COLUMNS($G:DH)/3,0))","v":"ขนมปังไส้ครีมสังขยาไข่"},null,null,{"$f":"INDEX(INDIRECT(\"dProduct[ProductName]\"),ROUNDUP(COLUMNS($G:DK)/3,0))","v":"ขนมปังพิซซ่าฮาวายเอี้ยน"},null,null,{"$f":"INDEX(INDIRECT(\"dProduct[ProductName]\"),ROUNDUP(COLUMNS($G:DN)/3,0))","v":"ครัวซองต์หมูหยองน้ำสลัด"},null,null,{"$f":"INDEX(INDIRECT(\"dProduct[ProductName]\"),ROUNDUP(COLUMNS($G:DQ)/3,0))","v":"แพนเบรดไส้เผือก"},null,null,{"$f":"INDEX(INDIRECT(\"dProduct[ProductName]\"),ROUNDUP(COLUMNS($G:DT)/3,0))","v":"แพนเบรดไส้ถั่วแดง"},null,null,{"$f":"INDEX(INDIRECT(\"dProduct[ProductName]\"),ROUNDUP(COLUMNS($G:DW)/3,0))","v":"ขนมปังกรอบเนยน้ำตาล(30กรัม)"},null,null,{"$f":"INDEX(INDIRECT(\"dProduct[ProductName]\"),ROUNDUP(COLUMNS($G:DZ)/3,0))","v":"ขนมปังชนิดแผ่นโฮลวีต"},null,null,{"$f":"INDEX(INDIRECT(\"dProduct[ProductName]\"),ROUNDUP(COLUMNS($G:EC)/3,0))","v":"เค้กโรลใบเตย"},null,null,{"$f":"INDEX(INDIRECT(\"dProduct[ProductName]\"),ROUNDUP(COLUMNS($G:EF)/3,0))","v":"ขนมโมจิไส้ถั่วดำ"},null,null,{"$f":"INDEX(INDIRECT(\"dProduct[ProductName]\"),ROUNDUP(COLUMNS($G:EI)/3,0))","v":"ครัวซองต์ไส้กรอกชีส"},null,null,{"$f":"INDEX(INDIRECT(\"dProduct[ProductName]\"),ROUNDUP(COLUMNS($G:EL)/3,0))","v":"ขนมเปี๊ยะไส้ถั่ว"},null,null,{"$f":"INDEX(INDIRECT(\"dProduct[ProductName]\"),ROUNDUP(COLUMNS($G:EO)/3,0))","v":"ขนมเปี๊ยะไส้ฟัก"},null,null,{"$f":"INDEX(INDIRECT(\"dProduct[ProductName]\"),ROUNDUP(COLUMNS($G:ER)/3,0))","v":"มังกี้เค้ก"},null,null,"มูลค่าสินค้า",null,"ภาษี","รวมยอดขาย"]
[null,null,null,null,null,"ราคาขาย",{"$f":"IF(G$7=0,0,INDEX(Price_List,ROUNDUP(COLUMNS($G:G)/3,0)))","v":20},null,null,{"$f":"IF(J$7=0,0,INDEX(Price_List,ROUNDUP(COLUMNS($G:J)/3,0)))","v":20},null,null,{"$f":"IF(M$7=0,0,INDEX(Price_List,ROUNDUP(COLUMNS($G:M)/3,0)))","v":20},null,null,{"$f":"IF(P$7=0,0,INDEX(Price_List,ROUNDUP(COLUMNS($G:P)/3,0)))","v":15},null,null,{"$f":"IF(S$7=0,0,INDEX(Price_List,ROUNDUP(COLUMNS($G:S)/3,0)))","v":15},null,null,{"$f":"IF(V$7=0,0,INDEX(Price_List,ROUNDUP(COLUMNS($G:V)/3,0)))","v":10},null,null,{"$f":"IF(Y$7=0,0,INDEX(Price_List,ROUNDUP(COLUMNS($G:Y)/3,0)))","v":10},null,null,{"$f":"IF(AB$7=0,0,INDEX(Price_List,ROUNDUP(COLUMNS($G:AB)/3,0)))","v":10},null,null,{"$f":"IF(AE$7=0,0,INDEX(Price_List,ROUNDUP(COLUMNS($G:AE)/3,0)))","v":10},null,null,{"$f":"IF(AH$7=0,0,INDEX(Price_List,ROUNDUP(COLUMNS($G:AH)/3,0)))","v":10},null,null,{"$f":"IF(AK$7=0,0,INDEX(Price_List,ROUNDUP(COLUMNS($G:AK)/3,0)))","v":15},null,null,{"$f":"IF(AN$7=0,0,INDEX(Price_List,ROUNDUP(COLUMNS($G:AN)/3,0)))","v":15},null,null,{"$f":"IF(AQ$7=0,0,INDEX(Price_List,ROUNDUP(COLUMNS($G:AQ)/3,0)))","v":15},null,null,{"$f":"IF(AT$7=0,0,INDEX(Price_List,ROUNDUP(COLUMNS($G:AT)/3,0)))","v":15},null,null,{"$f":"IF(AW$7=0,0,INDEX(Price_List,ROUNDUP(COLUMNS($G:AW)/3,0)))","v":42},null,null,{"$f":"IF(AZ$7=0,0,INDEX(Price_List,ROUNDUP(COLUMNS($G:AZ)/3,0)))","v":12},null,null,{"$f":"IF(BC$7=0,0,INDEX(Price_List,ROUNDUP(COLUMNS($G:BC)/3,0)))","v":12},null,null,{"$f":"IF(BF$7=0,0,INDEX(Price_List,ROUNDUP(COLUMNS($G:BF)/3,0)))","v":15},null,null,{"$f":"IF(BI$7=0,0,INDEX(Price_List,ROUNDUP(COLUMNS($G:BI)/3,0)))","v":20},null,null,{"$f":"IF(BL$7=0,0,INDEX(Price_List,ROUNDUP(COLUMNS($G:BL)/3,0)))","v":20},null,null,{"$f":"IF(BO$7=0,0,INDEX(Price_List,ROUNDUP(COLUMNS($G:BO)/3,0)))","v":20},null,null,{"$f":"IF(BR$7=0,0,INDEX(Price_List,ROUNDUP(COLUMNS($G:BR)/3,0)))","v":15},null,null,{"$f":"IF(BU$7=0,0,INDEX(Price_List,ROUNDUP(COLUMNS($G:BU)/3,0)))","v":20},null,null,{"$f":"IF(BX$7=0,0,INDEX(Price_List,ROUNDUP(COLUMNS($G:BX)/3,0)))","v":20},null,null,{"$f":"IF(CA$7=0,0,INDEX(Price_List,ROUNDUP(COLUMNS($G:CA)/3,0)))","v":15},null,null,{"$f":"IF(CD$7=0,0,INDEX(Price_List,ROUNDUP(COLUMNS($G:CD)/3,0)))","v":15},null,null,{"$f":"IF(CG$7=0,0,INDEX(Price_List,ROUNDUP(COLUMNS($G:CG)/3,0)))","v":20},null,null,{"$f":"IF(CJ$7=0,0,INDEX(Price_List,ROUNDUP(COLUMNS($G:CJ)/3,0)))","v":20},null,null,{"$f":"IF(CM$7=0,0,INDEX(Price_List,ROUNDUP(COLUMNS($G:CM)/3,0)))","v":10},null,null,{"$f":"IF(CP$7=0,0,INDEX(Price_List,ROUNDUP(COLUMNS($G:CP)/3,0)))","v":15},null,null,{"$f":"IF(CS$7=0,0,INDEX(Price_List,ROUNDUP(COLUMNS($G:CS)/3,0)))","v":15},null,null,{"$f":"IF(CV$7=0,0,INDEX(Price_List,ROUNDUP(COLUMNS($G:CV)/3,0)))","v":16},null,null,{"$f":"IF(CY$7=0,0,INDEX(Price_List,ROUNDUP(COLUMNS($G:CY)/3,0)))","v":15},null,null,{"$f":"IF(DB$7=0,0,INDEX(Price_List,ROUNDUP(COLUMNS($G:DB)/3,0)))","v":15},null,null,{"$f":"IF(DE$7=0,0,INDEX(Price_List,ROUNDUP(COLUMNS($G:DE)/3,0)))","v":10},null,null,{"$f":"IF(DH$7=0,0,INDEX(Price_List,ROUNDUP(COLUMNS($G:DH)/3,0)))","v":10},null,null,{"$f":"IF(DK$7=0,0,INDEX(Price_List,ROUNDUP(COLUMNS($G:DK)/3,0)))","v":20},null,null,{"$f":"IF(DN$7=0,0,INDEX(Price_List,ROUNDUP(COLUMNS($G:DN)/3,0)))","v":20},null,null,{"$f":"IF(DQ$7=0,0,INDEX(Price_List,ROUNDUP(COLUMNS($G:DQ)/3,0)))","v":15},null,null,{"$f":"IF(DT$7=0,0,INDEX(Price_List,ROUNDUP(COLUMNS($G:DT)/3,0)))","v":15},null,null,{"$f":"IF(DW$7=0,0,INDEX(Price_List,ROUNDUP(COLUMNS($G:DW)/3,0)))","v":12},null,null,{"$f":"IF(DZ$7=0,0,INDEX(Price_List,ROUNDUP(COLUMNS($G:DZ)/3,0)))","v":18},null,null,{"$f":"IF(EC$7=0,0,INDEX(Price_List,ROUNDUP(COLUMNS($G:EC)/3,0)))","v":12},null,null,{"$f":"IF(EF$7=0,0,INDEX(Price_List,ROUNDUP(COLUMNS($G:EF)/3,0)))","v":12},null,null,{"$f":"IF(EI$7=0,0,INDEX(Price_List,ROUNDUP(COLUMNS($G:EI)/3,0)))","v":25},null,null,{"$f":"IF(EL$7=0,0,INDEX(Price_List,ROUNDUP(COLUMNS($G:EL)/3,0)))","v":12},null,null,{"$f":"IF(EO$7=0,0,INDEX(Price_List,ROUNDUP(COLUMNS($G:EO)/3,0)))","v":12},null,null,{"$f":"IF(ER$7=0,0,INDEX(Price_List,ROUNDUP(COLUMNS($G:ER)/3,0)))","v":12},null,null,"เงินเชื่อ","เงินสด"]
[null,null,null,null,null,"คงเหลือ(ตามบัญชี)",{"$f":"IF(G$7=0,0,INDEX(INDIRECT(Order_Rng),ROUNDUP(COLUMNS($G:G)/3,0)))","v":0},null,null,{"$f":"IF(J$7=0,0,INDEX(INDIRECT(Order_Rng),ROUNDUP(COLUMNS($G:J)/3,0)))","v":0},null,null,{"$f":"IF(M$7=0,0,INDEX(INDIRECT(Order_Rng),ROUNDUP(COLUMNS($G:M)/3,0)))","v":0},null,null,{"$f":"IF(P$7=0,0,INDEX(INDIRECT(Order_Rng),ROUNDUP(COLUMNS($G:P)/3,0)))","v":0},null,null,{"$f":"IF(S$7=0,0,INDEX(INDIRECT(Order_Rng),ROUNDUP(COLUMNS($G:S)/3,0)))","v":0},null,null,{"$f":"IF(V$7=0,0,INDEX(INDIRECT(Order_Rng),ROUNDUP(COLUMNS($G:V)/3,0)))","v":0},null,null,{"$f":"IF(Y$7=0,0,INDEX(INDIRECT(Order_Rng),ROUNDUP(COLUMNS($G:Y)/3,0)))","v":0},null,null,{"$f":"IF(AB$7=0,0,INDEX(INDIRECT(Order_Rng),ROUNDUP(COLUMNS($G:AB)/3,0)))","v":0},null,null,{"$f":"IF(AE$7=0,0,INDEX(INDIRECT(Order_Rng),ROUNDUP(COLUMNS($G:AE)/3,0)))","v":0},null,null,{"$f":"IF(AH$7=0,0,INDEX(INDIRECT(Order_Rng),ROUNDUP(COLUMNS($G:AH)/3,0)))","v":0},null,null,{"$f":"IF(AK$7=0,0,INDEX(INDIRECT(Order_Rng),ROUNDUP(COLUMNS($G:AK)/3,0)))","v":0},null,null,{"$f":"IF(AN$7=0,0,INDEX(INDIRECT(Order_Rng),ROUNDUP(COLUMNS($G:AN)/3,0)))","v":0},null,null,{"$f":"IF(AQ$7=0,0,INDEX(INDIRECT(Order_Rng),ROUNDUP(COLUMNS($G:AQ)/3,0)))","v":0},null,null,{"$f":"IF(AT$7=0,0,INDEX(INDIRECT(Order_Rng),ROUNDUP(COLUMNS($G:AT)/3,0)))","v":0},null,null,{"$f":"IF(AW$7=0,0,INDEX(INDIRECT(Order_Rng),ROUNDUP(COLUMNS($G:AW)/3,0)))","v":0},null,null,{"$f":"IF(AZ$7=0,0,INDEX(INDIRECT(Order_Rng),ROUNDUP(COLUMNS($G:AZ)/3,0)))","v":0},null,null,{"$f":"IF(BC$7=0,0,INDEX(INDIRECT(Order_Rng),ROUNDUP(COLUMNS($G:BC)/3,0)))","v":0},null,null,{"$f":"IF(BF$7=0,0,INDEX(INDIRECT(Order_Rng),ROUNDUP(COLUMNS($G:BF)/3,0)))","v":0},null,null,{"$f":"IF(BI$7=0,0,INDEX(INDIRECT(Order_Rng),ROUNDUP(COLUMNS($G:BI)/3,0)))","v":0},null,null,{"$f":"IF(BL$7=0,0,INDEX(INDIRECT(Order_Rng),ROUNDUP(COLUMNS($G:BL)/3,0)))","v":0},null,null,{"$f":"IF(BO$7=0,0,INDEX(INDIRECT(Order_Rng),ROUNDUP(COLUMNS($G:BO)/3,0)))","v":0},null,null,{"$f":"IF(BR$7=0,0,INDEX(INDIRECT(Order_Rng),ROUNDUP(COLUMNS($G:BR)/3,0)))","v":0},null,null,{"$f":"IF(BU$7=0,0,INDEX(INDIRECT(Order_Rng),ROUNDUP(COLUMNS($G:BU)/3,0)))","v":0},null,null,{"$f":"IF(BX$7=0,0,INDEX(INDIRECT(Order_Rng),ROUNDUP(COLUMNS($G:BX)/3,0)))","v":0},null,null,{"$f":"IF(CA$7=0,0,INDEX(INDIRECT(Order_Rng),ROUNDUP(COLUMNS($G:CA)/3,0)))","v":0},null,null,{"$f":"IF(CD$7=0,0,INDEX(INDIRECT(Order_Rng),ROUNDUP(COLUMNS($G:CD)/3,0)))","v":0},null,null,{"$f":"IF(CG$7=0,0,INDEX(INDIRECT(Order_Rng),ROUNDUP(COLUMNS($G:CG)/3,0)))","v":0},null,null,{"$f":"IF(CJ$7=0,0,INDEX(INDIRECT(Order_Rng),ROUNDUP(COLUMNS($G:CJ)/3,0)))","v":0},null,null,{"$f":"IF(CM$7=0,0,INDEX(INDIRECT(Order_Rng),ROUNDUP(COLUMNS($G:CM)/3,0)))","v":0},null,null,{"$f":"IF(CP$7=0,0,INDEX(INDIRECT(Order_Rng),ROUNDUP(COLUMNS($G:CP)/3,0)))","v":0},null,null,{"$f":"IF(CS$7=0,0,INDEX(INDIRECT(Order_Rng),ROUNDUP(COLUMNS($G:CS)/3,0)))","v":0},null,null,{"$f":"IF(CV$7=0,0,INDEX(INDIRECT(Order_Rng),ROUNDUP(COLUMNS($G:CV)/3,0)))","v":0},null,null,{"$f":"IF(CY$7=0,0,INDEX(INDIRECT(Order_Rng),ROUNDUP(COLUMNS($G:CY)/3,0)))","v":0},null,null,{"$f":"IF(DB$7=0,0,INDEX(INDIRECT(Order_Rng),ROUNDUP(COLUMNS($G:DB)/3,0)))","v":0},null,null,{"$f":"IF(DE$7=0,0,INDEX(INDIRECT(Order_Rng),ROUNDUP(COLUMNS($G:DE)/3,0)))","v":0},null,null,{"$f":"IF(DH$7=0,0,INDEX(INDIRECT(Order_Rng),ROUNDUP(COLUMNS($G:DH)/3,0)))","v":0},null,null,{"$f":"IF(DK$7=0,0,INDEX(INDIRECT(Order_Rng),ROUNDUP(COLUMNS($G:DK)/3,0)))","v":0},null,null,{"$f":"IF(DN$7=0,0,INDEX(INDIRECT(Order_Rng),ROUNDUP(COLUMNS($G:DN)/3,0)))","v":0},null,null,{"$f":"IF(DQ$7=0,0,INDEX(INDIRECT(Order_Rng),ROUNDUP(COLUMNS($G:DQ)/3,0)))","v":0},null,null,{"$f":"IF(DT$7=0,0,INDEX(INDIRECT(Order_Rng),ROUNDUP(COLUMNS($G:DT)/3,0)))","v":0},null,null,{"$f":"IF(DW$7=0,0,INDEX(INDIRECT(Order_Rng),ROUNDUP(COLUMNS($G:DW)/3,0)))","v":0},null,null,{"$f":"IF(DZ$7=0,0,INDEX(INDIRECT(Order_Rng),ROUNDUP(COLUMNS($G:DZ)/3,0)))","v":0},null,null,{"$f":"IF(EC$7=0,0,INDEX(INDIRECT(Order_Rng),ROUNDUP(COLUMNS($G:EC)/3,0)))","v":0},null,null,{"$f":"IF(EF$7=0,0,INDEX(INDIRECT(Order_Rng),ROUNDUP(COLUMNS($G:EF)/3,0)))","v":0},null,null,{"$f":"IF(EI$7=0,0,INDEX(INDIRECT(Order_Rng),ROUNDUP(COLUMNS($G:EI)/3,0)))","v":0},null,null,{"$f":"IF(EL$7=0,0,INDEX(INDIRECT(Order_Rng),ROUNDUP(COLUMNS($G:EL)/3,0)))","v":0},null,null,{"$f":"IF(EO$7=0,0,INDEX(INDIRECT(Order_Rng),ROUNDUP(COLUMNS($G:EO)/3,0)))","v":0},null,null,{"$f":"IF(ER$7=0,0,INDEX(INDIRECT(Order_Rng),ROUNDUP(COLUMNS($G:ER)/3,0)))","v":0}]
[{"$f":"IF(OR($B10=\"\",COUNTIF($B$10:$B10,$B10)>1,LEN(TRIM($B10))<>10,ISNUMBER(--MID(TRIM($B10),5,1))),\"-\",MAX(COUNT($A$9:$A9)+1))","v":"-"}]
[{"$f":"IF(OR($B11=\"\",COUNTIF($B$10:$B11,$B11)>1,LEN(TRIM($B11))<>10,ISNUMBER(--MID(TRIM($B11),5,1))),\"-\",MAX(COUNT($A$9:$A10)+1))","v":"-"},null,null,null,{"$f":"IF(D11=\"\",\"\",D11-D10)","v":""}]
[{"$f":"IF(OR($B12=\"\",COUNTIF($B$10:$B12,$B12)>1,LEN(TRIM($B12))<>10,ISNUMBER(--MID(TRIM($B12),5,1))),\"-\",MAX(COUNT($A$9:$A11)+1))","v":"-"},null,null,null,{"$f":"IF(D12=\"\",\"\",D12-D11)","v":""}]
[{"$f":"IF(OR($B13=\"\",COUNTIF($B$10:$B13,$B13)>1,LEN(TRIM($B13))<>10,ISNUMBER(--MID(TRIM($B13),5,1))),\"-\",MAX(COUNT($A$9:$A12)+1))","v":"-"},null,null,null,""]
[{"$f":"IF(OR($B14=\"\",COUNTIF($B$10:$B14,$B14)>1,LEN(TRIM($B14))<>10,ISNUMBER(--MID(TRIM($B14),5,1))),\"-\",MAX(COUNT($A$9:$A13)+1))","v":"-"},null,null,null,""]
[{"$f":"IF(OR($B15=\"\",COUNTIF($B$10:$B15,$B15)>1,LEN(TRIM($B15))<>10,ISNUMBER(--MID(TRIM($B15),5,1))),\"-\",MAX(COUNT($A$9:$A14)+1))","v":"-"},null,null,null,""]
[{"$f":"IF(OR($B16=\"\",COUNTIF($B$10:$B16,$B16)>1,LEN(TRIM($B16))<>10,ISNUMBER(--MID(TRIM($B16),5,1))),\"-\",MAX(COUNT($A$9:$A15)+1))","v":"-"},null,null,null,""]
[{"$f":"IF(OR($B17=\"\",COUNTIF($B$10:$B17,$B17)>1,LEN(TRIM($B17))<>10,ISNUMBER(--MID(TRIM($B17),5,1))),\"-\",MAX(COUNT($A$9:$A16)+1))","v":"-"},null,null,null,""]
[{"$f":"IF(OR($B18=\"\",COUNTIF($B$10:$B18,$B18)>1,LEN(TRIM($B18))<>10,ISNUMBER(--MID(TRIM($B18),5,1))),\"-\",MAX(COUNT($A$9:$A17)+1))","v":"-"},null,null,null,""]
[{"$f":"IF(OR($B19=\"\",COUNTIF($B$10:$B19,$B19)>1,LEN(TRIM($B19))<>10,ISNUMBER(--MID(TRIM($B19),5,1))),\"-\",MAX(COUNT($A$9:$A18)+1))","v":"-"},null,null,null,""]
[{"$f":"IF(OR($B20=\"\",COUNTIF($B$10:$B20,$B20)>1,LEN(TRIM($B20))<>10,ISNUMBER(--MID(TRIM($B20),5,1))),\"-\",MAX(COUNT($A$9:$A19)+1))","v":"-"},null,null,null,""]
[{"$f":"IF(OR($B21=\"\",COUNTIF($B$10:$B21,$B21)>1,LEN(TRIM($B21))<>10,ISNUMBER(--MID(TRIM($B21),5,1))),\"-\",MAX(COUNT($A$9:$A20)+1))","v":"-"},null,null,null,""]
[{"$f":"IF(OR($B22=\"\",COUNTIF($B$10:$B22,$B22)>1,LEN(TRIM($B22))<>10,ISNUMBER(--MID(TRIM($B22),5,1))),\"-\",MAX(COUNT($A$9:$A21)+1))","v":"-"},null,null,null,""]
[{"$f":"IF(OR($B23=\"\",COUNTIF($B$10:$B23,$B23)>1,LEN(TRIM($B23))<>10,ISNUMBER(--MID(TRIM($B23),5,1))),\"-\",MAX(COUNT($A$9:$A22)+1))","v":"-"},null,null,null,""]
[{"$f":"IF(OR($B24=\"\",COUNTIF($B$10:$B24,$B24)>1,LEN(TRIM($B24))<>10,ISNUMBER(--MID(TRIM($B24),5,1))),\"-\",MAX(COUNT($A$9:$A23)+1))","v":"-"},null,null,null,""]
[{"$f":"IF(OR($B25=\"\",COUNTIF($B$10:$B25,$B25)>1,LEN(TRIM($B25))<>10,ISNUMBER(--MID(TRIM($B25),5,1))),\"-\",MAX(COUNT($A$9:$A24)+1))","v":"-"},null,null,null,""]
[{"$f":"IF(OR($B26=\"\",COUNTIF($B$10:$B26,$B26)>1,LEN(TRIM($B26))<>10,ISNUMBER(--MID(TRIM($B26),5,1))),\"-\",MAX(COUNT($A$9:$A25)+1))","v":"-"},null,null,null,""]
[{"$f":"IF(OR($B27=\"\",COUNTIF($B$10:$B27,$B27)>1,LEN(TRIM($B27))<>10,ISNUMBER(--MID(TRIM($B27),5,1))),\"-\",MAX(COUNT($A$9:$A26)+1))","v":"-"},null,null,null,""]
[{"$f":"IF(OR($B28=\"\",COUNTIF($B$10:$B28,$B28)>1,LEN(TRIM($B28))<>10,ISNUMBER(--MID(TRIM($B28),5,1))),\"-\",MAX(COUNT($A$9:$A27)+1))","v":"-"},null,null,null,""]
[{"$f":"IF(OR($B29=\"\",COUNTIF($B$10:$B29,$B29)>1,LEN(TRIM($B29))<>10,ISNUMBER(--MID(TRIM($B29),5,1))),\"-\",MAX(COUNT($A$9:$A28)+1))","v":"-"},null,null,null,""]
[{"$f":"IF(OR($B30=\"\",COUNTIF($B$10:$B30,$B30)>1,LEN(TRIM($B30))<>10,ISNUMBER(--MID(TRIM($B30),5,1))),\"-\",MAX(COUNT($A$9:$A29)+1))","v":"-"},null,null,null,""]
[{"$f":"IF(OR($B31=\"\",COUNTIF($B$10:$B31,$B31)>1,LEN(TRIM($B31))<>10,ISNUMBER(--MID(TRIM($B31),5,1))),\"-\",MAX(COUNT($A$9:$A30)+1))","v":"-"},null,null,null,""]
[{"$f":"IF(OR($B32=\"\",COUNTIF($B$10:$B32,$B32)>1,LEN(TRIM($B32))<>10,ISNUMBER(--MID(TRIM($B32),5,1))),\"-\",MAX(COUNT($A$9:$A31)+1))","v":"-"},null,null,null,""]
[{"$f":"IF(OR($B33=\"\",COUNTIF($B$10:$B33,$B33)>1,LEN(TRIM($B33))<>10,ISNUMBER(--MID(TRIM($B33),5,1))),\"-\",MAX(COUNT($A$9:$A32)+1))","v":"-"},null,null,null,""]
[{"$f":"IF(OR($B34=\"\",COUNTIF($B$10:$B34,$B34)>1,LEN(TRIM($B34))<>10,ISNUMBER(--MID(TRIM($B34),5,1))),\"-\",MAX(COUNT($A$9:$A33)+1))","v":"-"},null,null,null,""]
[{"$f":"IF(OR($B35=\"\",COUNTIF($B$10:$B35,$B35)>1,LEN(TRIM($B35))<>10,ISNUMBER(--MID(TRIM($B35),5,1))),\"-\",MAX(COUNT($A$9:$A34)+1))","v":"-"},null,null,null,""]
[{"$f":"IF(OR($B36=\"\",COUNTIF($B$10:$B36,$B36)>1,LEN(TRIM($B36))<>10,ISNUMBER(--MID(TRIM($B36),5,1))),\"-\",MAX(COUNT($A$9:$A35)+1))","v":"-"},null,null,null,""]
[{"$f":"IF(OR($B37=\"\",COUNTIF($B$10:$B37,$B37)>1,LEN(TRIM($B37))<>10,ISNUMBER(--MID(TRIM($B37),5,1))),\"-\",MAX(COUNT($A$9:$A36)+1))","v":"-"},null,null,null,""]
[{"$f":"IF(OR($B38=\"\",COUNTIF($B$10:$B38,$B38)>1,LEN(TRIM($B38))<>10,ISNUMBER(--MID(TRIM($B38),5,1))),\"-\",MAX(COUNT($A$9:$A37)+1))","v":"-"},null,null,null,""]
[{"$f":"IF(OR($B39=\"\",COUNTIF($B$10:$B39,$B39)>1,LEN(TRIM($B39))<>10,ISNUMBER(--MID(TRIM($B39),5,1))),\"-\",MAX(COUNT($A$9:$A38)+1))","v":"-"},null,null,null,""]
[{"$f":"IF(OR($B40=\"\",COUNTIF($B$10:$B40,$B40)>1,LEN(TRIM($B40))<>10,ISNUMBER(--MID(TRIM($B40),5,1))),\"-\",MAX(COUNT($A$9:$A39)+1))","v":"-"},null,null,null,""]
[{"$f":"IF(OR($B41=\"\",COUNTIF($B$10:$B41,$B41)>1,LEN(TRIM($B41))<>10,ISNUMBER(--MID(TRIM($B41),5,1))),\"-\",MAX(COUNT($A$9:$A40)+1))","v":"-"},null,null,null,""]
[{"$f":"IF(OR($B42=\"\",COUNTIF($B$10:$B42,$B42)>1,LEN(TRIM($B42))<>10,ISNUMBER(--MID(TRIM($B42),5,1))),\"-\",MAX(COUNT($A$9:$A41)+1))","v":"-"},null,null,null,""]
[{"$f":"IF(OR($B43=\"\",COUNTIF($B$10:$B43,$B43)>1,LEN(TRIM($B43))<>10,ISNUMBER(--MID(TRIM($B43),5,1))),\"-\",MAX(COUNT($A$9:$A42)+1))","v":"-"},null,null,null,""]
[{"$f":"IF(OR($B44=\"\",COUNTIF($B$10:$B44,$B44)>1,LEN(TRIM($B44))<>10,ISNUMBER(--MID(TRIM($B44),5,1))),\"-\",MAX(COUNT($A$9:$A43)+1))","v":"-"},null,null,null,""]
[{"$f":"IF(OR($B45=\"\",COUNTIF($B$10:$B45,$B45)>1,LEN(TRIM($B45))<>10,ISNUMBER(--MID(TRIM($B45),5,1))),\"-\",MAX(COUNT($A$9:$A44)+1))","v":"-"},null,null,null,""]
[{"$f":"IF(OR($B46=\"\",COUNTIF($B$10:$B46,$B46)>1,LEN(TRIM($B46))<>10,ISNUMBER(--MID(TRIM($B46),5,1))),\"-\",MAX(COUNT($A$9:$A45)+1))","v":"-"},null,null,null,""]
[{"$f":"IF(OR($B47=\"\",COUNTIF($B$10:$B47,$B47)>1,LEN(TRIM($B47))<>10,ISNUMBER(--MID(TRIM($B47),5,1))),\"-\",MAX(COUNT($A$9:$A46)+1))","v":"-"},null,null,null,""]
[{"$f":"IF(OR($B48=\"\",COUNTIF($B$10:$B48,$B48)>1,LEN(TRIM($B48))<>10,ISNUMBER(--MID(TRIM($B48),5,1))),\"-\",MAX(COUNT($A$9:$A47)+1))","v":"-"},null,null,null,""]
[{"$f":"IF(OR($B49=\"\",COUNTIF($B$10:$B49,$B49)>1,LEN(TRIM($B49))<>10,ISNUMBER(--MID(TRIM($B49),5,1))),\"-\",MAX(COUNT($A$9:$A48)+1))","v":"-"},null,null,null,""]
[{"$f":"IF(OR($B50=\"\",COUNTIF($B$10:$B50,$B50)>1,LEN(TRIM($B50))<>10,ISNUMBER(--MID(TRIM($B50),5,1))),\"-\",MAX(COUNT($A$9:$A49)+1))","v":"-"},null,null,null,""]
[{"$f":"IF(OR($B51=\"\",COUNTIF($B$10:$B51,$B51)>1,LEN(TRIM($B51))<>10,ISNUMBER(--MID(TRIM($B51),5,1))),\"-\",MAX(COUNT($A$9:$A50)+1))","v":"-"},null,null,null,""]
[{"$f":"IF(OR($B52=\"\",COUNTIF($B$10:$B52,$B52)>1,LEN(TRIM($B52))<>10,ISNUMBER(--MID(TRIM($B52),5,1))),\"-\",MAX(COUNT($A$9:$A51)+1))","v":"-"},null,null,null,""]
[{"$f":"IF(OR($B53=\"\",COUNTIF($B$10:$B53,$B53)>1,LEN(TRIM($B53))<>10,ISNUMBER(--MID(TRIM($B53),5,1))),\"-\",MAX(COUNT($A$9:$A52)+1))","v":"-"},null,null,null,""]
[{"$f":"IF(OR($B54=\"\",COUNTIF($B$10:$B54,$B54)>1,LEN(TRIM($B54))<>10,ISNUMBER(--MID(TRIM($B54),5,1))),\"-\",MAX(COUNT($A$9:$A53)+1))","v":"-"},null,null,null,""]
[{"$f":"IF(OR($B55=\"\",COUNTIF($B$10:$B55,$B55)>1,LEN(TRIM($B55))<>10,ISNUMBER(--MID(TRIM($B55),5,1))),\"-\",MAX(COUNT($A$9:$A54)+1))","v":"-"},null,null,null,""]
[{"$f":"IF(OR($B56=\"\",COUNTIF($B$10:$B56,$B56)>1,LEN(TRIM($B56))<>10,ISNUMBER(--MID(TRIM($B56),5,1))),\"-\",MAX(COUNT($A$9:$A55)+1))","v":"-"},null,null,null,""]
[{"$f":"IF(OR($B57=\"\",COUNTIF($B$10:$B57,$B57)>1,LEN(TRIM($B57))<>10,ISNUMBER(--MID(TRIM($B57),5,1))),\"-\",MAX(COUNT($A$9:$A56)+1))","v":"-"},null,null,null,""]
[{"$f":"IF(OR($B58=\"\",COUNTIF($B$10:$B58,$B58)>1,LEN(TRIM($B58))<>10,ISNUMBER(--MID(TRIM($B58),5,1))),\"-\",MAX(COUNT($A$9:$A57)+1))","v":"-"},null,null,null,""]
[{"$f":"IF(OR($B59=\"\",COUNTIF($B$10:$B59,$B59)>1,LEN(TRIM($B59))<>10,ISNUMBER(--MID(TRIM($B59),5,1))),\"-\",MAX(COUNT($A$9:$A58)+1))","v":"-"},null,null,null,""]
[{"$f":"IF(OR($B60=\"\",COUNTIF($B$10:$B60,$B60)>1,LEN(TRIM($B60))<>10,ISNUMBER(--MID(TRIM($B60),5,1))),\"-\",MAX(COUNT($A$9:$A59)+1))","v":"-"},null,null,null,""]
[{"$f":"IF(OR($B61=\"\",COUNTIF($B$10:$B61,$B61)>1,LEN(TRIM($B61))<>10,ISNUMBER(--MID(TRIM($B61),5,1))),\"-\",MAX(COUNT($A$9:$A60)+1))","v":"-"},null,null,null,""]
[{"$f":"IF(OR($B62=\"\",COUNTIF($B$10:$B62,$B62)>1,LEN(TRIM($B62))<>10,ISNUMBER(--MID(TRIM($B62),5,1))),\"-\",MAX(COUNT($A$9:$A61)+1))","v":"-"},null,null,null,""]
[{"$f":"IF(OR($B63=\"\",COUNTIF($B$10:$B63,$B63)>1,LEN(TRIM($B63))<>10,ISNUMBER(--MID(TRIM($B63),5,1))),\"-\",MAX(COUNT($A$9:$A62)+1))","v":"-"},null,null,null,""]
[{"$f":"IF(OR($B64=\"\",COUNTIF($B$10:$B64,$B64)>1,LEN(TRIM($B64))<>10,ISNUMBER(--MID(TRIM($B64),5,1))),\"-\",MAX(COUNT($A$9:$A63)+1))","v":"-"},null,null,null,""]
[{"$f":"IF(OR($B65=\"\",COUNTIF($B$10:$B65,$B65)>1,LEN(TRIM($B65))<>10,ISNUMBER(--MID(TRIM($B65),5,1))),\"-\",MAX(COUNT($A$9:$A64)+1))","v":"-"},null,null,null,""]
[{"$f":"IF(OR($B66=\"\",COUNTIF($B$10:$B66,$B66)>1,LEN(TRIM($B66))<>10,ISNUMBER(--MID(TRIM($B66),5,1))),\"-\",MAX(COUNT($A$9:$A65)+1))","v":"-"},null,null,null,""]
[{"$f":"IF(OR($B67=\"\",COUNTIF($B$10:$B67,$B67)>1,LEN(TRIM($B67))<>10,ISNUMBER(--MID(TRIM($B67),5,1))),\"-\",MAX(COUNT($A$9:$A66)+1))","v":"-"},null,null,null,""]
[{"$f":"IF(OR($B68=\"\",COUNTIF($B$10:$B68,$B68)>1,LEN(TRIM($B68))<>10,ISNUMBER(--MID(TRIM($B68),5,1))),\"-\",MAX(COUNT($A$9:$A67)+1))","v":"-"},null,null,null,""]
[{"$f":"IF(OR($B69=\"\",COUNTIF($B$10:$B69,$B69)>1,LEN(TRIM($B69))<>10,ISNUMBER(--MID(TRIM($B69),5,1))),\"-\",MAX(COUNT($A$9:$A68)+1))","v":"-"},null,null,null,""]
[{"$f":"IF(OR($B70=\"\",COUNTIF($B$10:$B70,$B70)>1,LEN(TRIM($B70))<>10,ISNUMBER(--MID(TRIM($B70),5,1))),\"-\",MAX(COUNT($A$9:$A69)+1))","v":"-"},null,null,null,""]
[{"$f":"IF(OR($B71=\"\",COUNTIF($B$10:$B71,$B71)>1,LEN(TRIM($B71))<>10,ISNUMBER(--MID(TRIM($B71),5,1))),\"-\",MAX(COUNT($A$9:$A70)+1))","v":"-"},null,null,null,""]
[{"$f":"IF(OR($B72=\"\",COUNTIF($B$10:$B72,$B72)>1,LEN(TRIM($B72))<>10,ISNUMBER(--MID(TRIM($B72),5,1))),\"-\",MAX(COUNT($A$9:$A71)+1))","v":"-"},null,null,null,""]
[{"$f":"IF(OR($B73=\"\",COUNTIF($B$10:$B73,$B73)>1,LEN(TRIM($B73))<>10,ISNUMBER(--MID(TRIM($B73),5,1))),\"-\",MAX(COUNT($A$9:$A72)+1))","v":"-"},null,null,null,""]
[{"$f":"IF(OR($B74=\"\",COUNTIF($B$10:$B74,$B74)>1,LEN(TRIM($B74))<>10,ISNUMBER(--MID(TRIM($B74),5,1))),\"-\",MAX(COUNT($A$9:$A73)+1))","v":"-"},null,null,null,""]
[{"$f":"IF(OR($B75=\"\",COUNTIF($B$10:$B75,$B75)>1,LEN(TRIM($B75))<>10,ISNUMBER(--MID(TRIM($B75),5,1))),\"-\",MAX(COUNT($A$9:$A74)+1))","v":"-"},null,null,null,""]
[{"$f":"IF(OR($B76=\"\",COUNTIF($B$10:$B76,$B76)>1,LEN(TRIM($B76))<>10,ISNUMBER(--MID(TRIM($B76),5,1))),\"-\",MAX(COUNT($A$9:$A75)+1))","v":"-"},null,null,null,{"$f":"IF(D76=\"\",\"\",D76-D75)","v":""}]
[{"$f":"IF(OR($B77=\"\",COUNTIF($B$10:$B77,$B77)>1,LEN(TRIM($B77))<>10,ISNUMBER(--MID(TRIM($B77),5,1))),\"-\",MAX(COUNT($A$9:$A76)+1))","v":"-"},null,null,null,""]
[{"$f":"IF(OR($B78=\"\",COUNTIF($B$10:$B78,$B78)>1,LEN(TRIM($B78))<>10,ISNUMBER(--MID(TRIM($B78),5,1))),\"-\",MAX(COUNT($A$9:$A77)+1))","v":"-"},null,null,null,""]
[{"$f":"IF(OR($B79=\"\",COUNTIF($B$10:$B79,$B79)>1,LEN(TRIM($B79))<>10,ISNUMBER(--MID(TRIM($B79),5,1))),\"-\",MAX(COUNT($A$9:$A78)+1))","v":"-"},null,null,null,""]
["รวมของขาย|ของเสีย|เหลือบนเชลฟ์",null,null,null,null,null,{"$f":"SUM(G10:G79)","v":0},0,0,{"$f":"SUM(J10:J79)","v":0},0,0,0,0,0,0,0,0,0,0,0,0,0,0,0,0,0,0,0,0,0,0,0,0,0,0,0,0,0,0,0,0,0,0,0,0,0,0,0,0,0,0,0,0,0,0,0,0,0,0,0,0,0,0,0,0,0,0,0,0,0,0,0,{"$f":"SUM(BV10:BV79)","v":0},0,0,0,0,0,0,0,0,0,0,0,0,0,0,0,0,0,0,0,0,0,0,0,0,0,0,0,0,0,0,0,0,0,0,0,0,0,0,0,0,0,0,0,0,0,0,0,0,0,0,0,0,0,0,0,0,0,0,0,0,0,{"$f":"SUM(EF10:EF79)","v":0},0,0,{"$f":"SUM(EI10:EI79)","v":0},0,0,0,0,0,{"$f":"SUM(EO10:EO79)","v":0},0,0,0,0,0,"รวมเงินเชื่อ","รวมเงินสด","ภาษี","รวมยอดขาย"]
["ของเหลือ",null,null,null,null,null,{"$f":"G80+H80-G9","v":0},null,null,{"$f":"J80+K80-J9","v":0},null,null,{"$f":"M80+N80-M9","v":0},null,null,{"$f":"P80+Q80-P9","v":0},null,null,{"$f":"S80+T80-S9","v":0},null,null,{"$f":"V80+W80-V9","v":0},null,null,{"$f":"Y80+Z80-Y9","v":0},null,null,{"$f":"AB80+AC80-AB9","v":0},null,null,{"$f":"AE80+AF80-AE9","v":0},null,null,{"$f":"AH80+AI80-AH9","v":0},null,null,{"$f":"AK80+AL80-AK9","v":0},null,null,{"$f":"AN80+AO80-AN9","v":0},null,null,{"$f":"AQ80+AR80-AQ9","v":0},null,null,{"$f":"AT80+AU80-AT9","v":0},null,null,{"$f":"AW80+AX80-AW9","v":0},null,null,{"$f":"AZ80+BA80-AZ9","v":0},null,null,{"$f":"BC80+BD80-BC9","v":0},null,null,{"$f":"BF80+BG80-BF9","v":0},null,null,{"$f":"BI80+BJ80-BI9","v":0},null,null,{"$f":"BL80+BM80-BL9","v":0},null,null,{"$f":"BO80+BP80-BO9","v":0},null,null,{"$f":"BR80+BS80-BR9","v":0},null,null,{"$f":"BU80+BV80-BU9","v":0},null,null,{"$f":"BX80+BY80-BX9","v":0},null,null,{"$f":"CA80+CB80-CA9","v":0},null,null,{"$f":"CD80+CE80-CD9","v":0},null,null,{"$f":"CG80+CH80-CG9","v":0},null,null,{"$f":"CJ80+CK80-CJ9","v":0},null,null,{"$f":"CM80+CN80-CM9","v":0},null,null,{"$f":"CP80+CQ80-CP9","v":0},null,null,{"$f":"CS80+CT80-CS9","v":0},null,null,{"$f":"CV80+CW80-CV9","v":0},null,null,{"$f":"CY80+CZ80-CY9","v":0},null,null,{"$f":"DB80+DC80-DB9","v":0},null,null,{"$f":"DE80+DF80-DE9","v":0},null,null,{"$f":"DH80+DI80-DH9","v":0},null,null,{"$f":"DK80+DL80-DK9","v":0},null,null,{"$f":"DN80+DO80-DN9","v":0},null,null,{"$f":"DQ80+DR80-DQ9","v":0},null,null,{"$f":"DT80+DU80-DT9","v":0},null,null,{"$f":"DW80+DX80-DW9","v":0},null,null,{"$f":"DZ80+EA80-DZ9","v":0},null,null,{"$f":"EC80+ED80-EC9","v":0},null,null,{"$f":"EF80+EG80-EF9","v":0},null,null,{"$f":"EI80+EJ80-EI9","v":0},null,null,{"$f":"EL80+EM80-EL9","v":0},null,null,{"$f":"EO80+EP80-EO9","v":0},null,null,{"$f":"ER80+ES80-ER9","v":0},null,null,{"$f":"SUM(EU10:EU79)","v":0},{"$f":"SUM(EV10:EV79)","v":0},{"$f":"SUM(EW10:EW79)","v":0},{"$f":"SUM(EX10:EX79)","v":0}]
["เฉลี่ย",null,null,"เหลือ/เสีย(จริง)",null,null,{"$f":"INDIRECT(\"F\"&ROW($G$87)+ROUNDUP(COLUMNS($G:G)/3,0))","v":0},{"$f":"INDIRECT(\"G\"&ROW($G$87)+ROUNDUP(COLUMNS($G:H)/3,0))","v":0},null,{"$f":"INDIRECT(\"F\"&ROW($G$87)+ROUNDUP(COLUMNS($G:J)/3,0))","v":0},{"$f":"INDIRECT(\"G\"&ROW($G$87)+ROUNDUP(COLUMNS($G:K)/3,0))","v":0},null,{"$f":"INDIRECT(\"F\"&ROW($G$87)+ROUNDUP(COLUMNS($G:M)/3,0))","v":0},{"$f":"INDIRECT(\"G\"&ROW($G$87)+ROUNDUP(COLUMNS($G:N)/3,0))","v":0},null,{"$f":"INDIRECT(\"F\"&ROW($G$87)+ROUNDUP(COLUMNS($G:P)/3,0))","v":0},{"$f":"INDIRECT(\"G\"&ROW($G$87)+ROUNDUP(COLUMNS($G:Q)/3,0))","v":0},null,{"$f":"INDIRECT(\"F\"&ROW($G$87)+ROUNDUP(COLUMNS($G:S)/3,0))","v":0},{"$f":"INDIRECT(\"G\"&ROW($G$87)+ROUNDUP(COLUMNS($G:T)/3,0))","v":0},null,{"$f":"INDIRECT(\"F\"&ROW($G$87)+ROUNDUP(COLUMNS($G:V)/3,0))","v":0},{"$f":"INDIRECT(\"G\"&ROW($G$87)+ROUNDUP(COLUMNS($G:W)/3,0))","v":0},null,{"$f":"INDIRECT(\"F\"&ROW($G$87)+ROUNDUP(COLUMNS($G:Y)/3,0))","v":0},{"$f":"INDIRECT(\"G\"&ROW($G$87)+ROUNDUP(COLUMNS($G:Z)/3,0))","v":0},null,{"$f":"INDIRECT(\"F\"&ROW($G$87)+ROUNDUP(COLUMNS($G:AB)/3,0))","v":0},{"$f":"INDIRECT(\"G\"&ROW($G$87)+ROUNDUP(COLUMNS($G:AC)/3,0))","v":0},null,{"$f":"INDIRECT(\"F\"&ROW($G$87)+ROUNDUP(COLUMNS($G:AE)/3,0))","v":0},{"$f":"INDIRECT(\"G\"&ROW($G$87)+ROUNDUP(COLUMNS($G:AF)/3,0))","v":0},null,{"$f":"INDIRECT(\"F\"&ROW($G$87)+ROUNDUP(COLUMNS($G:AH)/3,0))","v":0},{"$f":"INDIRECT(\"G\"&ROW($G$87)+ROUNDUP(COLUMNS($G:AI)/3,0))","v":0},null,{"$f":"INDIRECT(\"F\"&ROW($G$87)+ROUNDUP(COLUMNS($G:AK)/3,0))","v":0},{"$f":"INDIRECT(\"G\"&ROW($G$87)+ROUNDUP(COLUMNS($G:AL)/3,0))","v":0},null,{"$f":"INDIRECT(\"F\"&ROW($G$87)+ROUNDUP(COLUMNS($G:AN)/3,0))","v":0},{"$f":"INDIRECT(\"G\"&ROW($G$87)+ROUNDUP(COLUMNS($G:AO)/3,0))","v":0},null,{"$f":"INDIRECT(\"F\"&ROW($G$87)+ROUNDUP(COLUMNS($G:AQ)/3,0))","v":0},{"$f":"INDIRECT(\"G\"&ROW($G$87)+ROUNDUP(COLUMNS($G:AR)/3,0))","v":0},null,{"$f":"INDIRECT(\"F\"&ROW($G$87)+ROUNDUP(COLUMNS($G:AT)/3,0))","v":0},{"$f":"INDIRECT(\"G\"&ROW($G$87)+ROUNDUP(COLUMNS($G:AU)/3,0))","v":0},null,{"$f":"INDIRECT(\"F\"&ROW($G$87)+ROUNDUP(COLUMNS($G:AW)/3,0))","v":0},{"$f":"INDIRECT(\"G\"&ROW($G$87)+ROUNDUP(COLUMNS($G:AX)/3,0))","v":0},null,{"$f":"INDIRECT(\"F\"&ROW($G$87)+ROUNDUP(COLUMNS($G:AZ)/3,0))","v":0},{"$f":"INDIRECT(\"G\"&ROW($G$87)+ROUNDUP(COLUMNS($G:BA)/3,0))","v":0},null,{"$f":"INDIRECT(\"F\"&ROW($G$87)+ROUNDUP(COLUMNS($G:BC)/3,0))","v":0},{"$f":"INDIRECT(\"G\"&ROW($G$87)+ROUNDUP(COLUMNS($G:BD)/3,0))","v":0},null,{"$f":"INDIRECT(\"F\"&ROW($G$87)+ROUNDUP(COLUMNS($G:BF)/3,0))","v":0},{"$f":"INDIRECT(\"G\"&ROW($G$87)+ROUNDUP(COLUMNS($G:BG)/3,0))","v":0},null,{"$f":"INDIRECT(\"F\"&ROW($G$87)+ROUNDUP(COLUMNS($G:BI)/3,0))","v":0},{"$f":"INDIRECT(\"G\"&ROW($G$87)+ROUNDUP(COLUMNS($G:BJ)/3,0))","v":0},null,{"$f":"INDIRECT(\"F\"&ROW($G$87)+ROUNDUP(COLUMNS($G:BL)/3,0))","v":0},{"$f":"INDIRECT(\"G\"&ROW($G$87)+ROUNDUP(COLUMNS($G:BM)/3,0))","v":0},null,{"$f":"INDIRECT(\"F\"&ROW($G$87)+ROUNDUP(COLUMNS($G:BO)/3,0))","v":0},{"$f":"INDIRECT(\"G\"&ROW($G$87)+ROUNDUP(COLUMNS($G:BP)/3,0))","v":0},null,{"$f":"INDIRECT(\"F\"&ROW($G$87)+ROUNDUP(COLUMNS($G:BR)/3,0))","v":0},{"$f":"INDIRECT(\"G\"&ROW($G$87)+ROUNDUP(COLUMNS($G:BS)/3,0))","v":0},null,{"$f":"INDIRECT(\"F\"&ROW($G$87)+ROUNDUP(COLUMNS($G:BU)/3,0))","v":0},{"$f":"INDIRECT(\"G\"&ROW($G$87)+ROUNDUP(COLUMNS($G:BV)/3,0))","v":0},null,{"$f":"INDIRECT(\"F\"&ROW($G$87)+ROUNDUP(COLUMNS($G:BX)/3,0))","v":0},{"$f":"INDIRECT(\"G\"&ROW($G$87)+ROUNDUP(COLUMNS($G:BY)/3,0))","v":0},null,{"$f":"INDIRECT(\"F\"&ROW($G$87)+ROUNDUP(COLUMNS($G:CA)/3,0))","v":0},{"$f":"INDIRECT(\"G\"&ROW($G$87)+ROUNDUP(COLUMNS($G:CB)/3,0))","v":0},null,{"$f":"INDIRECT(\"F\"&ROW($G$87)+ROUNDUP(COLUMNS($G:CD)/3,0))","v":0},{"$f":"INDIRECT(\"G\"&ROW($G$87)+ROUNDUP(COLUMNS($G:CE)/3,0))","v":0},null,{"$f":"INDIRECT(\"F\"&ROW($G$87)+ROUNDUP(COLUMNS($G:CG)/3,0))","v":0},{"$f":"INDIRECT(\"G\"&ROW($G$87)+ROUNDUP(COLUMNS($G:CH)/3,0))","v":0},null,{"$f":"INDIRECT(\"F\"&ROW($G$87)+ROUNDUP(COLUMNS($G:CJ)/3,0))","v":0},{"$f":"INDIRECT(\"G\"&ROW($G$87)+ROUNDUP(COLUMNS($G:CK)/3,0))","v":0},null,{"$f":"INDIRECT(\"F\"&ROW($G$87)+ROUNDUP(COLUMNS($G:CM)/3,0))","v":0},{"$f":"INDIRECT(\"G\"&ROW($G$87)+ROUNDUP(COLUMNS($G:CN)/3,0))","v":0},null,{"$f":"INDIRECT(\"F\"&ROW($G$87)+ROUNDUP(COLUMNS($G:CP)/3,0))","v":0},{"$f":"INDIRECT(\"G\"&ROW($G$87)+ROUNDUP(COLUMNS($G:CQ)/3,0))","v":0},null,{"$f":"INDIRECT(\"F\"&ROW($G$87)+ROUNDUP(COLUMNS($G:CS)/3,0))","v":0},{"$f":"INDIRECT(\"G\"&ROW($G$87)+ROUNDUP(COLUMNS($G:CT)/3,0))","v":0},null,{"$f":"INDIRECT(\"F\"&ROW($G$87)+ROUNDUP(COLUMNS($G:CV)/3,0))","v":0},{"$f":"INDIRECT(\"G\"&ROW($G$87)+ROUNDUP(COLUMNS($G:CW)/3,0))","v":0},null,{"$f":"INDIRECT(\"F\"&ROW($G$87)+ROUNDUP(COLUMNS($G:CY)/3,0))","v":0},{"$f":"INDIRECT(\"G\"&ROW($G$87)+ROUNDUP(COLUMNS($G:CZ)/3,0))","v":0},null,{"$f":"INDIRECT(\"F\"&ROW($G$87)+ROUNDUP(COLUMNS($G:DB)/3,0))","v":0},{"$f":"INDIRECT(\"G\"&ROW($G$87)+ROUNDUP(COLUMNS($G:DC)/3,0))","v":0},null,{"$f":"INDIRECT(\"F\"&ROW($G$87)+ROUNDUP(COLUMNS($G:DE)/3,0))","v":0},{"$f":"INDIRECT(\"G\"&ROW($G$87)+ROUNDUP(COLUMNS($G:DF)/3,0))","v":0},null,{"$f":"INDIRECT(\"F\"&ROW($G$87)+ROUNDUP(COLUMNS($G:DH)/3,0))","v":0},{"$f":"INDIRECT(\"G\"&ROW($G$87)+ROUNDUP(COLUMNS($G:DI)/3,0))","v":0},null,{"$f":"INDIRECT(\"F\"&ROW($G$87)+ROUNDUP(COLUMNS($G:DK)/3,0))","v":0},{"$f":"INDIRECT(\"G\"&ROW($G$87)+ROUNDUP(COLUMNS($G:DL)/3,0))","v":0},null,{"$f":"INDIRECT(\"F\"&ROW($G$87)+ROUNDUP(COLUMNS($G:DN)/3,0))","v":0},{"$f":"INDIRECT(\"G\"&ROW($G$87)+ROUNDUP(COLUMNS($G:DO)/3,0))","v":0},null,{"$f":"INDIRECT(\"F\"&ROW($G$87)+ROUNDUP(COLUMNS($G:DQ)/3,0))","v":0},{"$f":"INDIRECT(\"G\"&ROW($G$87)+ROUNDUP(COLUMNS($G:DR)/3,0))","v":0},null,{"$f":"INDIRECT(\"F\"&ROW($G$87)+ROUNDUP(COLUMNS($G:DT)/3,0))","v":0},{"$f":"INDIRECT(\"G\"&ROW($G$87)+ROUNDUP(COLUMNS($G:DU)/3,0))","v":0},null,{"$f":"INDIRECT(\"F\"&ROW($G$87)+ROUNDUP(COLUMNS($G:DW)/3,0))","v":0},{"$f":"INDIRECT(\"G\"&ROW($G$87)+ROUNDUP(COLUMNS($G:DX)/3,0))","v":0},null,{"$f":"INDIRECT(\"F\"&ROW($G$87)+ROUNDUP(COLUMNS($G:DZ)/3,0))","v":0},{"$f":"INDIRECT(\"G\"&ROW($G$87)+ROUNDUP(COLUMNS($G:EA)/3,0))","v":0},null,{"$f":"INDIRECT(\"F\"&ROW($G$87)+ROUNDUP(COLUMNS($G:EC)/3,0))","v":0},{"$f":"INDIRECT(\"G\"&ROW($G$87)+ROUNDUP(COLUMNS($G:ED)/3,0))","v":0},null,{"$f":"INDIRECT(\"F\"&ROW($G$87)+ROUNDUP(COLUMNS($G:EF)/3,0))","v":0},{"$f":"INDIRECT(\"G\"&ROW($G$87)+ROUNDUP(COLUMNS($G:EG)/3,0))","v":0},null,{"$f":"INDIRECT(\"F\"&ROW($G$87)+ROUNDUP(COLUMNS($G:EI)/3,0))","v":0},{"$f":"INDIRECT(\"G\"&ROW($G$87)+ROUNDUP(COLUMNS($G:EJ)/3,0))","v":0},null,{"$f":"INDIRECT(\"F\"&ROW($G$87)+ROUNDUP(COLUMNS($G:EL)/3,0))","v":0},{"$f":"INDIRECT(\"G\"&ROW($G$87)+ROUNDUP(COLUMNS($G:EM)/3,0))","v":0},null,{"$f":"INDIRECT(\"F\"&ROW($G$87)+ROUNDUP(COLUMNS($G:EO)/3,0))","v":0},{"$f":"INDIRECT(\"G\"&ROW($G$87)+ROUNDUP(COLUMNS($G:EP)/3,0))","v":0},null,{"$f":"INDIRECT(\"F\"&ROW($G$87)+ROUNDUP(COLUMNS($G:ER)/3,0))","v":0},{"$f":"INDIRECT(\"G\"&ROW($G$87)+ROUNDUP(COLUMNS($G:ES)/3,0))","v":0},null,{"$f":"EU81+EV81","v":0}]
["เวลากลับถึงสำนักงานเช็คของเสีย",null,null,{"$f":"D139","v":"00:00:00"},null,"ผลต่าง",{"$f":"G82+H82+G80-G9","v":0},null,null,{"$f":"J82+K82+J80-J9","v":0},null,null,{"$f":"M82+N82+M80-M9","v":0},null,null,{"$f":"P82+Q82+P80-P9","v":0},null,null,{"$f":"S82+T82+S80-S9","v":0},null,null,{"$f":"V82+W82+V80-V9","v":0},null,null,{"$f":"Y82+Z82+Y80-Y9","v":0},null,null,{"$f":"AB82+AC82+AB80-AB9","v":0},null,null,{"$f":"AE82+AF82+AE80-AE9","v":0},null,null,{"$f":"AH82+AI82+AH80-AH9","v":0},null,null,{"$f":"AK82+AL82+AK80-AK9","v":0},null,null,{"$f":"AN82+AO82+AN80-AN9","v":0},null,null,{"$f":"AQ82+AR82+AQ80-AQ9","v":0},null,null,{"$f":"AT82+AU82+AT80-AT9","v":0},null,null,{"$f":"AW82+AX82+AW80-AW9","v":0},null,null,{"$f":"AZ82+BA82+AZ80-AZ9","v":0},null,null,{"$f":"BC82+BD82+BC80-BC9","v":0},null,null,{"$f":"BF82+BG82+BF80-BF9","v":0},null,null,{"$f":"BI82+BJ82+BI80-BI9","v":0},null,null,{"$f":"BL82+BM82+BL80-BL9","v":0},null,null,{"$f":"BO82+BP82+BO80-BO9","v":0},null,null,{"$f":"BR82+BS82+BR80-BR9","v":0},null,null,{"$f":"BU82+BV82+BU80-BU9","v":0},null,null,{"$f":"BX82+BY82+BX80-BX9","v":0},null,null,{"$f":"CA82+CB82+CA80-CA9","v":0},null,null,{"$f":"CD82+CE82+CD80-CD9","v":0},null,null,{"$f":"CG82+CH82+CG80-CG9","v":0},null,null,{"$f":"CJ82+CK82+CJ80-CJ9","v":0},null,null,{"$f":"CM82+CN82+CM80-CM9","v":0},null,null,{"$f":"CP82+CQ82+CP80-CP9","v":0},null,null,{"$f":"CS82+CT82+CS80-CS9","v":0},null,null,{"$f":"CV82+CW82+CV80-CV9","v":0},null,null,{"$f":"CY82+CZ82+CY80-CY9","v":0},null,null,{"$f":"DB82+DC82+DB80-DB9","v":0},null,null,{"$f":"DE82+DF82+DE80-DE9","v":0},null,null,{"$f":"DH82+DI82+DH80-DH9","v":0},null,null,{"$f":"DK82+DL82+DK80-DK9","v":0},null,null,{"$f":"DN82+DO82+DN80-DN9","v":0},null,null,{"$f":"DQ82+DR82+DQ80-DQ9","v":0},null,null,{"$f":"DT82+DU82+DT80-DT9","v":0},null,null,{"$f":"DW82+DX82+DW80-DW9","v":0},null,null,{"$f":"DZ82+EA82+DZ80-DZ9","v":0},null,null,{"$f":"EC82+ED82+EC80-EC9","v":0},null,null,{"$f":"EF82+EG82+EF80-EF9","v":0},null,null,{"$f":"EI82+EJ82+EI80-EI9","v":0},null,null,{"$f":"EL82+EM82+EL80-EL9","v":0},null,null,{"$f":"EO82+EP82+EO80-EO9","v":0},null,null,{"$f":"ER82+ES82+ER80-ER9","v":0}]
["เป็นเงิน",null,null,null,null,null,{"$f":"G8*G83","v":0},null,null,{"$f":"J8*J83","v":0},null,null,{"$f":"M8*M83","v":0},null,null,{"$f":"P8*P83","v":0},null,null,{"$f":"S8*S83","v":0},null,null,{"$f":"V8*V83","v":0},null,null,{"$f":"Y8*Y83","v":0},null,null,{"$f":"AB8*AB83","v":0},null,null,{"$f":"AE8*AE83","v":0},null,null,{"$f":"AH8*AH83","v":0},null,null,{"$f":"AK8*AK83","v":0},null,null,{"$f":"AN8*AN83","v":0},null,null,{"$f":"AQ8*AQ83","v":0},null,null,{"$f":"AT8*AT83","v":0},null,null,{"$f":"AW8*AW83","v":0},null,null,{"$f":"AZ8*AZ83","v":0},null,null,{"$f":"BC8*BC83","v":0},null,null,{"$f":"BF8*BF83","v":0},null,null,{"$f":"BI8*BI83","v":0},null,null,{"$f":"BL8*BL83","v":0},null,null,{"$f":"BO8*BO83","v":0},null,null,{"$f":"BR8*BR83","v":0},null,null,{"$f":"BU8*BU83","v":0},null,null,{"$f":"BX8*BX83","v":0},null,null,{"$f":"CA8*CA83","v":0},null,null,{"$f":"CD8*CD83","v":0},null,null,{"$f":"CG8*CG83","v":0},null,null,{"$f":"CJ8*CJ83","v":0},null,null,{"$f":"CM8*CM83","v":0},null,null,{"$f":"CP8*CP83","v":0},null,null,{"$f":"CS8*CS83","v":0},null,null,{"$f":"CV8*CV83","v":0},null,null,{"$f":"CY8*CY83","v":0},null,null,{"$f":"DB8*DB83","v":0},null,null,{"$f":"DE8*DE83","v":0},null,null,{"$f":"DH8*DH83","v":0},null,null,{"$f":"DK8*DK83","v":0},null,null,{"$f":"DN8*DN83","v":0},null,null,{"$f":"DQ8*DQ83","v":0},null,null,{"$f":"DT8*DT83","v":0},null,null,{"$f":"DW8*DW83","v":0},null,null,0,null,null,{"$f":"EC8*EC83","v":0},null,null,{"$f":"EF8*EF83","v":0},null,null,{"$f":"EI8*EI83","v":0},null,null,{"$f":"EL8*EL83","v":0},null,null,{"$f":"EO8*EO83","v":0},null,null,{"$f":"ER8*ER83","v":0},null,null,{"$f":"$AP$98","v":0}]
[null,null,null,"ผู้จัดทำ……………………………………………………………………",null,null,null,null,null,null,null,null,null,null,null,null,null,null,null,null,null,null,null,"ผู้ตรวจ(ผจก.)………………………………………………………………………………."]
[null,null,"ใบจ่ายสินค้า",null,null,null,null,null,null,null,null,null,null,null,null,null,null,{"$f":"IF(ISODD(COLUMN()),MAX($F$86:Q$86)+1,\"\")","v":""}]
["ราคา","ลำดับ","รายการ","ยกมา","เบิก","เหลือ","เสีย","โอนเข้า","โอนออก","ชำรุด","รวม",null,"ขาย",null,"ขาด/เกิน",null,"บาท",null,null,null,"ขายได้",null,"ควรเบิก",null,"หมายเหตุ",null,null,null,"เสีย PDA","เสียจริง","เหลือ PDA","ผลต่าง","เหลือลูกค้า","หมายเหตุ",null,null,null,null,"Price","Quantity","Baht","Deduct"]
[{"$f":"IF(B88=\"\",0,INDEX(Price_List,ROWS($88:88)))","v":20},{"$f":"IF($C88=\"\",\"\",COUNTA($C$88:$C88))","v":1},{"$f":"IF(INDEX(INDIRECT(\"Product_List\"),ROWS($88:88))=\"\",\"\",INDEX(INDIRECT(\"Product_List\"),ROWS($88:88)))","v":"01-ขนมปังหมูหยองน้ำสลัด"},{"$f":"ยอดยกมา","v":0},null,null,null,null,null,null,{"$f":"D88+E88+J88-I88+H88","v":0},null,{"$f":"INDIRECT(ADDRESS(ROW(A$80),ROW()-ROW(A$80)+(ROWS($88:88)-1)*2-1,4))","v":0},null,{"$f":"F88+G88+M88+J88-K88","v":0},null,{"$f":"O88*A88","v":0},null,null,null,{"$f":"D88+E88-F88-G88","v":0},null,{"$f":"U88*6%+U88","v":0},null,null,null,null,null,{"$f":"INDIRECT(ADDRESS(ROW(A$80),ROW()-ROW(A$80)+(ROWS($88:88)-1)*2,4))","v":0},{"$f":"$G88","v":0},null,{"$f":"$F88-$AE88","v":0},{"$f":"INDIRECT(ADDRESS(ROW(A$80),ROW()-ROW(A$80)+(ROWS($88:88)-1)*2+1,4))","v":0},null,null,null,null,null,10,{"$f":"SUMPRODUCT(($A$88:$A$135=$AM88)*(($F$88:$F$135)+($G$88:$G$135)+($M$88:$M$135)+($J$88:$J$135)-($K$88:$K$135)))","v":0},{"$f":"AM88*AN88","v":0},{"$f":"IF(AO88<0,AO88,0)","v":0}]
[{"$f":"IF(B89=\"\",0,INDEX(Price_List,ROWS($88:89)))","v":20},{"$f":"IF($C89=\"\",\"\",COUNTA($C$88:$C89))","v":2},{"$f":"IF(INDEX(INDIRECT(\"Product_List\"),ROWS($88:89))=\"\",\"\",INDEX(INDIRECT(\"Product_List\"),ROWS($88:89)))","v":"02-ขนมปังหมูหยองน้ำพริกเผา"},{"$f":"ยอดยกมา","v":0},null,null,null,null,null,null,{"$f":"D89+E89+J89-I89+H89","v":0},null,{"$f":"INDIRECT(ADDRESS(ROW(A$80),ROW()-ROW(A$80)+(ROWS($88:89)-1)*2-1,4))","v":0},null,{"$f":"F89+G89+M89+J89-K89","v":0},null,{"$f":"O89*A89","v":0},null,null,null,{"$f":"D89+E89-F89-G89","v":0},null,{"$f":"U89*6%+U89","v":0},null,null,null,null,null,{"$f":"INDIRECT(ADDRESS(ROW(A$80),ROW()-ROW(A$80)+(ROWS($88:89)-1)*2,4))","v":0},{"$f":"$G89","v":0},null,{"$f":"$F89-$AE89","v":0},{"$f":"INDIRECT(ADDRESS(ROW(A$80),ROW()-ROW(A$80)+(ROWS($88:89)-1)*2+1,4))","v":0},null,null,null,null,null,12,0,{"$f":"AM89*AN89","v":0},{"$f":"IF(AO89<0,AO89,0)","v":0}]
[{"$f":"IF(B90=\"\",0,INDEX(Price_List,ROWS($88:90)))","v":20},{"$f":"IF($C90=\"\",\"\",COUNTA($C$88:$C90))","v":3},{"$f":"IF(INDEX(INDIRECT(\"Product_List\"),ROWS($88:90))=\"\",\"\",INDEX(INDIRECT(\"Product_List\"),ROWS($88:90)))","v":"03-ขนมปังไก่หยองน้ำสลัด"},{"$f":"ยอดยกมา","v":0},null,null,null,null,null,null,0,null,{"$f":"INDIRECT(ADDRESS(ROW(A$80),ROW()-ROW(A$80)+(ROWS($88:90)-1)*2-1,4))","v":0},null,0,null,0,null,null,null,0,null,0,null,null,null,null,null,{"$f":"INDIRECT(ADDRESS(ROW(A$80),ROW()-ROW(A$80)+(ROWS($88:90)-1)*2,4))","v":0},0,null,0,{"$f":"INDIRECT(ADDRESS(ROW(A$80),ROW()-ROW(A$80)+(ROWS($88:90)-1)*2+1,4))","v":0},null,null,null,null,null,13,0,{"$f":"AM90*AN90","v":0},{"$f":"IF(AO90<0,AO90,0)","v":0}]
[{"$f":"IF(B91=\"\",0,INDEX(Price_List,ROWS($88:91)))","v":15},{"$f":"IF($C91=\"\",\"\",COUNTA($C$88:$C91))","v":4},{"$f":"IF(INDEX(INDIRECT(\"Product_List\"),ROWS($88:91))=\"\",\"\",INDEX(INDIRECT(\"Product_List\"),ROWS($88:91)))","v":"04-ขนมปังไส้ครีมสลัด"},{"$f":"ยอดยกมา","v":0},null,null,null,null,null,null,0,null,{"$f":"INDIRECT(ADDRESS(ROW(A$80),ROW()-ROW(A$80)+(ROWS($88:91)-1)*2-1,4))","v":0},null,{"$f":"F91+G91+M91+J91-K91","v":0},null,0,null,null,null,0,null,0,null,null,null,null,null,{"$f":"INDIRECT(ADDRESS(ROW(A$80),ROW()-ROW(A$80)+(ROWS($88:91)-1)*2,4))","v":0},0,null,0,{"$f":"INDIRECT(ADDRESS(ROW(A$80),ROW()-ROW(A$80)+(ROWS($88:91)-1)*2+1,4))","v":0},null,null,null,null,null,15,0,0,0]
[{"$f":"IF(B92=\"\",0,INDEX(Price_List,ROWS($88:92)))","v":15},{"$f":"IF($C92=\"\",\"\",COUNTA($C$88:$C92))","v":5},{"$f":"IF(INDEX(INDIRECT(\"Product_List\"),ROWS($88:92))=\"\",\"\",INDEX(INDIRECT(\"Product_List\"),ROWS($88:92)))","v":"05-ขนมปังเนยสด"},{"$f":"ยอดยกมา","v":0},null,null,null,null,null,null,0,null,{"$f":"INDIRECT(ADDRESS(ROW(A$80),ROW()-ROW(A$80)+(ROWS($88:92)-1)*2-1,4))","v":0},null,0,null,0,null,null,null,0,null,0,null,null,null,null,null,{"$f":"INDIRECT(ADDRESS(ROW(A$80),ROW()-ROW(A$80)+(ROWS($88:92)-1)*2,4))","v":0},0,null,0,{"$f":"INDIRECT(ADDRESS(ROW(A$80),ROW()-ROW(A$80)+(ROWS($88:92)-1)*2+1,4))","v":0},null,null,null,null,null,16,0,0,0]
[{"$f":"IF(B93=\"\",0,INDEX(Price_List,ROWS($88:93)))","v":10},{"$f":"IF($C93=\"\",\"\",COUNTA($C$88:$C93))","v":6},{"$f":"IF(INDEX(INDIRECT(\"Product_List\"),ROWS($88:93))=\"\",\"\",INDEX(INDIRECT(\"Product_List\"),ROWS($88:93)))","v":"06-ขนมปังไส้สังขยาเล็ก"},{"$f":"ยอดยกมา","v":0},null,null,null,null,null,null,0,null,{"$f":"INDIRECT(ADDRESS(ROW(A$80),ROW()-ROW(A$80)+(ROWS($88:93)-1)*2-1,4))","v":0},null,0,null,0,null,null,null,0,null,0,null,null,null,null,null,{"$f":"INDIRECT(ADDRESS(ROW(A$80),ROW()-ROW(A$80)+(ROWS($88:93)-1)*2,4))","v":0},0,null,0,{"$f":"INDIRECT(ADDRESS(ROW(A$80),ROW()-ROW(A$80)+(ROWS($88:93)-1)*2+1,4))","v":0},null,null,null,null,null,18,0,0,0]
[{"$f":"IF(B94=\"\",0,INDEX(Price_List,ROWS($88:94)))","v":10},{"$f":"IF($C94=\"\",\"\",COUNTA($C$88:$C94))","v":7},{"$f":"IF(INDEX(INDIRECT(\"Product_List\"),ROWS($88:94))=\"\",\"\",INDEX(INDIRECT(\"Product_List\"),ROWS($88:94)))","v":"07-ขนมปังไส้เผือก"},{"$f":"ยอดยกมา","v":0},null,null,null,null,null,null,0,null,{"$f":"INDIRECT(ADDRESS(ROW(A$80),ROW()-ROW(A$80)+(ROWS($88:94)-1)*2-1,4))","v":0},null,0,null,0,null,null,null,0,null,0,null,null,null,null,null,{"$f":"INDIRECT(ADDRESS(ROW(A$80),ROW()-ROW(A$80)+(ROWS($88:94)-1)*2,4))","v":0},0,null,0,{"$f":"INDIRECT(ADDRESS(ROW(A$80),ROW()-ROW(A$80)+(ROWS($88:94)-1)*2+1,4))","v":0},null,null,null,null,null,20,0,0,0]
[{"$f":"IF(B95=\"\",0,INDEX(Price_List,ROWS($88:95)))","v":10},{"$f":"IF($C95=\"\",\"\",COUNTA($C$88:$C95))","v":8},{"$f":"IF(INDEX(INDIRECT(\"Product_List\"),ROWS($88:95))=\"\",\"\",INDEX(INDIRECT(\"Product_List\"),ROWS($88:95)))","v":"08-ขนมปังไส้ถั่วแดง"},{"$f":"ยอดยกมา","v":0},null,null,null,null,null,null,0,null,{"$f":"INDIRECT(ADDRESS(ROW(A$80),ROW()-ROW(A$80)+(ROWS($88:95)-1)*2-1,4))","v":0},null,0,null,0,null,null,null,0,null,0,null,null,null,null,null,{"$f":"INDIRECT(ADDRESS(ROW(A$80),ROW()-ROW(A$80)+(ROWS($88:95)-1)*2,4))","v":0},0,null,0,{"$f":"INDIRECT(ADDRESS(ROW(A$80),ROW()-ROW(A$80)+(ROWS($88:95)-1)*2+1,4))","v":0},null,null,null,null,null,22,0,0,0]
[{"$f":"IF(B96=\"\",0,INDEX(Price_List,ROWS($88:96)))","v":10},{"$f":"IF($C96=\"\",\"\",COUNTA($C$88:$C96))","v":9},{"$f":"IF(INDEX(INDIRECT(\"Product_List\"),ROWS($88:96))=\"\",\"\",INDEX(INDIRECT(\"Product_List\"),ROWS($88:96)))","v":"09-ขนมปังไส้ถั่วดำ"},{"$f":"ยอดยกมา","v":0},null,null,null,null,null,null,0,null,{"$f":"INDIRECT(ADDRESS(ROW(A$80),ROW()-ROW(A$80)+(ROWS($88:96)-1)*2-1,4))","v":0},null,0,null,0,null,null,null,0,null,0,null,null,null,null,null,{"$f":"INDIRECT(ADDRESS(ROW(A$80),ROW()-ROW(A$80)+(ROWS($88:96)-1)*2,4))","v":0},0,null,0,{"$f":"INDIRECT(ADDRESS(ROW(A$80),ROW()-ROW(A$80)+(ROWS($88:96)-1)*2+1,4))","v":0},null,null,null,null,null,25,0,0,0]
[{"$f":"IF(B97=\"\",0,INDEX(Price_List,ROWS($88:97)))","v":10},{"$f":"IF($C97=\"\",\"\",COUNTA($C$88:$C97))","v":10},{"$f":"IF(INDEX(INDIRECT(\"Product_List\"),ROWS($88:97))=\"\",\"\",INDEX(INDIRECT(\"Product_List\"),ROWS($88:97)))","v":"10-ขนมปังไส้มันม่วง"},{"$f":"ยอดยกมา","v":0},null,null,null,null,null,null,0,null,{"$f":"INDIRECT(ADDRESS(ROW(A$80),ROW()-ROW(A$80)+(ROWS($88:97)-1)*2-1,4))","v":0},null,0,null,0,null,null,null,0,null,0,null,null,null,null,null,{"$f":"INDIRECT(ADDRESS(ROW(A$80),ROW()-ROW(A$80)+(ROWS($88:97)-1)*2,4))","v":0},0,null,0,{"$f":"INDIRECT(ADDRESS(ROW(A$80),ROW()-ROW(A$80)+(ROWS($88:97)-1)*2+1,4))","v":0},null,null,null,null,null,42,0,0,0]
[{"$f":"IF(B98=\"\",0,INDEX(Price_List,ROWS($88:98)))","v":15},{"$f":"IF($C98=\"\",\"\",COUNTA($C$88:$C98))","v":11},{"$f":"IF(INDEX(INDIRECT(\"Product_List\"),ROWS($88:98))=\"\",\"\",INDEX(INDIRECT(\"Product_List\"),ROWS($88:98)))","v":"11-เค้กกล้วยหอม"},{"$f":"ยอดยกมา","v":0},null,null,null,null,null,null,0,null,{"$f":"INDIRECT(ADDRESS(ROW(A$80),ROW()-ROW(A$80)+(ROWS($88:98)-1)*2-1,4))","v":0},null,0,null,0,null,null,null,0,null,0,null,null,null,null,null,{"$f":"INDIRECT(ADDRESS(ROW(A$80),ROW()-ROW(A$80)+(ROWS($88:98)-1)*2,4))","v":0},0,null,0,{"$f":"INDIRECT(ADDRESS(ROW(A$80),ROW()-ROW(A$80)+(ROWS($88:98)-1)*2+1,4))","v":0},null,null,null,null,null,"Total Deduct",null,null,{"$f":"SUM($AP$88:$AP$97)","v":0}]
[{"$f":"IF(B99=\"\",0,INDEX(Price_List,ROWS($88:99)))","v":15},{"$f":"IF($C99=\"\",\"\",COUNTA($C$88:$C99))","v":12},{"$f":"IF(INDEX(INDIRECT(\"Product_List\"),ROWS($88:99))=\"\",\"\",INDEX(INDIRECT(\"Product_List\"),ROWS($88:99)))","v":"12-เค้กบัตเตอร์"},{"$f":"ยอดยกมา","v":0},null,null,null,null,null,null,0,null,{"$f":"INDIRECT(ADDRESS(ROW(A$80),ROW()-ROW(A$80)+(ROWS($88:99)-1)*2-1,4))","v":0},null,0,null,0,null,null,null,0,null,0,null,null,null,null,null,{"$f":"INDIRECT(ADDRESS(ROW(A$80),ROW()-ROW(A$80)+(ROWS($88:99)-1)*2,4))","v":0},0,null,0,{"$f":"INDIRECT(ADDRESS(ROW(A$80),ROW()-ROW(A$80)+(ROWS($88:99)-1)*2+1,4))","v":0}]
[{"$f":"IF(B100=\"\",0,INDEX(Price_List,ROWS($88:100)))","v":15},{"$f":"IF($C100=\"\",\"\",COUNTA($C$88:$C100))","v":13},{"$f":"IF(INDEX(INDIRECT(\"Product_List\"),ROWS($88:100))=\"\",\"\",INDEX(INDIRECT(\"Product_List\"),ROWS($88:100)))","v":"13-ขนมปังโรลถั่วแดง"},{"$f":"ยอดยกมา","v":0},null,null,null,null,null,null,0,null,{"$f":"INDIRECT(ADDRESS(ROW(A$80),ROW()-ROW(A$80)+(ROWS($88:100)-1)*2-1,4))","v":0},null,0,null,0,null,null,null,0,null,0,null,null,null,null,null,{"$f":"INDIRECT(ADDRESS(ROW(A$80),ROW()-ROW(A$80)+(ROWS($88:100)-1)*2,4))","v":0},0,null,0,{"$f":"INDIRECT(ADDRESS(ROW(A$80),ROW()-ROW(A$80)+(ROWS($88:100)-1)*2+1,4))","v":0}]
[{"$f":"IF(B101=\"\",0,INDEX(Price_List,ROWS($88:101)))","v":15},{"$f":"IF($C101=\"\",\"\",COUNTA($C$88:$C101))","v":14},{"$f":"IF(INDEX(INDIRECT(\"Product_List\"),ROWS($88:101))=\"\",\"\",INDEX(INDIRECT(\"Product_List\"),ROWS($88:101)))","v":"14-ขนมปังไส้สังขยาใหญ่"},{"$f":"ยอดยกมา","v":0},null,null,null,null,null,null,0,null,{"$f":"INDIRECT(ADDRESS(ROW(A$80),ROW()-ROW(A$80)+(ROWS($88:101)-1)*2-1,4))","v":0},null,0,null,0,null,null,null,0,null,0,null,null,null,null,null,{"$f":"INDIRECT(ADDRESS(ROW(A$80),ROW()-ROW(A$80)+(ROWS($88:101)-1)*2,4))","v":0},0,null,0,{"$f":"INDIRECT(ADDRESS(ROW(A$80),ROW()-ROW(A$80)+(ROWS($88:101)-1)*2+1,4))","v":0}]
[{"$f":"IF(B102=\"\",0,INDEX(Price_List,ROWS($88:102)))","v":42},{"$f":"IF($C102=\"\",\"\",COUNTA($C$88:$C102))","v":15},{"$f":"IF(INDEX(INDIRECT(\"Product_List\"),ROWS($88:102))=\"\",\"\",INDEX(INDIRECT(\"Product_List\"),ROWS($88:102)))","v":"15-ขนมปังชนิดแผ่น(480กรัม)"},{"$f":"ยอดยกมา","v":0},null,null,null,null,null,null,0,null,{"$f":"INDIRECT(ADDRESS(ROW(A$80),ROW()-ROW(A$80)+(ROWS($88:102)-1)*2-1,4))","v":0},null,0,null,0,null,null,null,0,null,0,null,null,null,null,null,{"$f":"INDIRECT(ADDRESS(ROW(A$80),ROW()-ROW(A$80)+(ROWS($88:102)-1)*2,4))","v":0},0,null,0,{"$f":"INDIRECT(ADDRESS(ROW(A$80),ROW()-ROW(A$80)+(ROWS($88:102)-1)*2+1,4))","v":0}]
[{"$f":"IF(B103=\"\",0,INDEX(Price_List,ROWS($88:103)))","v":12},{"$f":"IF($C103=\"\",\"\",COUNTA($C$88:$C103))","v":16},{"$f":"IF(INDEX(INDIRECT(\"Product_List\"),ROWS($88:103))=\"\",\"\",INDEX(INDIRECT(\"Product_List\"),ROWS($88:103)))","v":"16-โมจิไส้ถั่ว"},{"$f":"ยอดยกมา","v":0},null,null,null,null,null,null,0,null,{"$f":"INDIRECT(ADDRESS(ROW(A$80),ROW()-ROW(A$80)+(ROWS($88:103)-1)*2-1,4))","v":0},null,0,null,0,null,null,null,0,null,0,null,null,null,null,null,{"$f":"INDIRECT(ADDRESS(ROW(A$80),ROW()-ROW(A$80)+(ROWS($88:103)-1)*2,4))","v":0},0,null,0,{"$f":"INDIRECT(ADDRESS(ROW(A$80),ROW()-ROW(A$80)+(ROWS($88:103)-1)*2+1,4))","v":0}]
[{"$f":"IF(B104=\"\",0,INDEX(Price_List,ROWS($88:104)))","v":12},{"$f":"IF($C104=\"\",\"\",COUNTA($C$88:$C104))","v":17},{"$f":"IF(INDEX(INDIRECT(\"Product_List\"),ROWS($88:104))=\"\",\"\",INDEX(INDIRECT(\"Product_List\"),ROWS($88:104)))","v":"17-โมจิไส้เผือก"},{"$f":"ยอดยกมา","v":0},null,null,null,null,null,null,0,null,{"$f":"INDIRECT(ADDRESS(ROW(A$80),ROW()-ROW(A$80)+(ROWS($88:104)-1)*2-1,4))","v":0},null,0,null,0,null,null,null,0,null,0,null,null,null,null,null,{"$f":"INDIRECT(ADDRESS(ROW(A$80),ROW()-ROW(A$80)+(ROWS($88:104)-1)*2,4))","v":0},0,null,0,{"$f":"INDIRECT(ADDRESS(ROW(A$80),ROW()-ROW(A$80)+(ROWS($88:104)-1)*2+1,4))","v":0}]
[{"$f":"IF(B105=\"\",0,INDEX(Price_List,ROWS($88:105)))","v":15},{"$f":"IF($C105=\"\",\"\",COUNTA($C$88:$C105))","v":18},{"$f":"IF(INDEX(INDIRECT(\"Product_List\"),ROWS($88:105))=\"\",\"\",INDEX(INDIRECT(\"Product_List\"),ROWS($88:105)))","v":"18-โมจิไส้ถั่วไข่เค็ม"},{"$f":"ยอดยกมา","v":0},null,null,null,null,null,null,0,null,{"$f":"INDIRECT(ADDRESS(ROW(A$80),ROW()-ROW(A$80)+(ROWS($88:105)-1)*2-1,4))","v":0},null,0,null,0,null,null,null,0,null,0,null,null,null,null,null,{"$f":"INDIRECT(ADDRESS(ROW(A$80),ROW()-ROW(A$80)+(ROWS($88:105)-1)*2,4))","v":0},0,null,0,{"$f":"INDIRECT(ADDRESS(ROW(A$80),ROW()-ROW(A$80)+(ROWS($88:105)-1)*2+1,4))","v":0}]
[{"$f":"IF(B106=\"\",0,INDEX(Price_List,ROWS($88:106)))","v":20},{"$f":"IF($C106=\"\",\"\",COUNTA($C$88:$C106))","v":19},{"$f":"IF(INDEX(INDIRECT(\"Product_List\"),ROWS($88:106))=\"\",\"\",INDEX(INDIRECT(\"Product_List\"),ROWS($88:106)))","v":"19-ขนมปังพิซซ่า"},{"$f":"ยอดยกมา","v":0},null,null,null,null,null,null,0,null,{"$f":"INDIRECT(ADDRESS(ROW(A$80),ROW()-ROW(A$80)+(ROWS($88:106)-1)*2-1,4))","v":0},null,0,null,0,null,null,null,0,null,0,null,null,null,null,null,{"$f":"INDIRECT(ADDRESS(ROW(A$80),ROW()-ROW(A$80)+(ROWS($88:106)-1)*2,4))","v":0},0,null,0,{"$f":"INDIRECT(ADDRESS(ROW(A$80),ROW()-ROW(A$80)+(ROWS($88:106)-1)*2+1,4))","v":0}]
[{"$f":"IF(B107=\"\",0,INDEX(Price_List,ROWS($88:107)))","v":20},{"$f":"IF($C107=\"\",\"\",COUNTA($C$88:$C107))","v":20},{"$f":"IF(INDEX(INDIRECT(\"Product_List\"),ROWS($88:107))=\"\",\"\",INDEX(INDIRECT(\"Product_List\"),ROWS($88:107)))","v":"20-ขนมปังพิซซ่าปูอัดแฮม"},{"$f":"ยอดยกมา","v":0},null,null,null,null,null,null,0,null,{"$f":"INDIRECT(ADDRESS(ROW(A$80),ROW()-ROW(A$80)+(ROWS($88:107)-1)*2-1,4))","v":0},null,0,null,0,null,null,null,0,null,0,null,null,null,null,null,{"$f":"INDIRECT(ADDRESS(ROW(A$80),ROW()-ROW(A$80)+(ROWS($88:107)-1)*2,4))","v":0},0,null,0,{"$f":"INDIRECT(ADDRESS(ROW(A$80),ROW()-ROW(A$80)+(ROWS($88:107)-1)*2+1,4))","v":0}]
[{"$f":"IF(B108=\"\",0,INDEX(Price_List,ROWS($88:108)))","v":20},{"$f":"IF($C108=\"\",\"\",COUNTA($C$88:$C108))","v":21},{"$f":"IF(INDEX(INDIRECT(\"Product_List\"),ROWS($88:108))=\"\",\"\",INDEX(INDIRECT(\"Product_List\"),ROWS($88:108)))","v":"21-ขนมปังไส้กรอก"},{"$f":"ยอดยกมา","v":0},null,null,null,null,null,null,0,null,{"$f":"INDIRECT(ADDRESS(ROW(A$80),ROW()-ROW(A$80)+(ROWS($88:108)-1)*2-1,4))","v":0},null,0,null,0,null,null,null,0,null,0,null,null,null,null,null,{"$f":"INDIRECT(ADDRESS(ROW(A$80),ROW()-ROW(A$80)+(ROWS($88:108)-1)*2,4))","v":0},0,null,0,{"$f":"INDIRECT(ADDRESS(ROW(A$80),ROW()-ROW(A$80)+(ROWS($88:108)-1)*2+1,4))","v":0}]
[{"$f":"IF(B109=\"\",0,INDEX(Price_List,ROWS($88:109)))","v":15},{"$f":"IF($C109=\"\",\"\",COUNTA($C$88:$C109))","v":22},{"$f":"IF(INDEX(INDIRECT(\"Product_List\"),ROWS($88:109))=\"\",\"\",INDEX(INDIRECT(\"Product_List\"),ROWS($88:109)))","v":"22-ขนมก้านบัว"},{"$f":"ยอดยกมา","v":0},null,null,null,null,null,null,0,null,{"$f":"INDIRECT(ADDRESS(ROW(A$80),ROW()-ROW(A$80)+(ROWS($88:109)-1)*2-1,4))","v":0},null,0,null,0,null,null,null,0,null,0,null,null,null,null,null,{"$f":"INDIRECT(ADDRESS(ROW(A$80),ROW()-ROW(A$80)+(ROWS($88:109)-1)*2,4))","v":0},0,null,0,{"$f":"INDIRECT(ADDRESS(ROW(A$80),ROW()-ROW(A$80)+(ROWS($88:109)-1)*2+1,4))","v":0}]
[{"$f":"IF(B110=\"\",0,INDEX(Price_List,ROWS($88:110)))","v":20},{"$f":"IF($C110=\"\",\"\",COUNTA($C$88:$C110))","v":23},{"$f":"IF(INDEX(INDIRECT(\"Product_List\"),ROWS($88:110))=\"\",\"\",INDEX(INDIRECT(\"Product_List\"),ROWS($88:110)))","v":"23-พายสับปะรด"},{"$f":"ยอดยกมา","v":0},null,null,null,null,null,null,0,null,{"$f":"INDIRECT(ADDRESS(ROW(A$80),ROW()-ROW(A$80)+(ROWS($88:110)-1)*2-1,4))","v":0},null,0,null,0,null,null,null,0,null,0,null,null,null,null,null,{"$f":"INDIRECT(ADDRESS(ROW(A$80),ROW()-ROW(A$80)+(ROWS($88:110)-1)*2,4))","v":0},0,null,0,{"$f":"INDIRECT(ADDRESS(ROW(A$80),ROW()-ROW(A$80)+(ROWS($88:110)-1)*2+1,4))","v":0}]
[{"$f":"IF(B111=\"\",0,INDEX(Price_List,ROWS($88:111)))","v":20},{"$f":"IF($C111=\"\",\"\",COUNTA($C$88:$C111))","v":24},{"$f":"IF(INDEX(INDIRECT(\"Product_List\"),ROWS($88:111))=\"\",\"\",INDEX(INDIRECT(\"Product_List\"),ROWS($88:111)))","v":"24-พายไส้มะพร้าว"},{"$f":"ยอดยกมา","v":0},null,null,null,null,null,null,0,null,{"$f":"INDIRECT(ADDRESS(ROW(A$80),ROW()-ROW(A$80)+(ROWS($88:111)-1)*2-1,4))","v":0},null,0,null,0,null,null,null,0,null,0,null,null,null,null,null,{"$f":"INDIRECT(ADDRESS(ROW(A$80),ROW()-ROW(A$80)+(ROWS($88:111)-1)*2,4))","v":0},0,null,0,{"$f":"INDIRECT(ADDRESS(ROW(A$80),ROW()-ROW(A$80)+(ROWS($88:111)-1)*2+1,4))","v":0}]
[{"$f":"IF(B112=\"\",0,INDEX(Price_List,ROWS($88:112)))","v":15},{"$f":"IF($C112=\"\",\"\",COUNTA($C$88:$C112))","v":25},{"$f":"IF(INDEX(INDIRECT(\"Product_List\"),ROWS($88:112))=\"\",\"\",INDEX(INDIRECT(\"Product_List\"),ROWS($88:112)))","v":"25-ขนมปังโรลมันเทศ"},{"$f":"ยอดยกมา","v":0},null,null,null,null,null,null,0,null,{"$f":"INDIRECT(ADDRESS(ROW(A$80),ROW()-ROW(A$80)+(ROWS($88:112)-1)*2-1,4))","v":0},null,0,null,0,null,null,null,0,null,0,null,null,null,null,null,{"$f":"INDIRECT(ADDRESS(ROW(A$80),ROW()-ROW(A$80)+(ROWS($88:112)-1)*2,4))","v":0},0,null,0,{"$f":"INDIRECT(ADDRESS(ROW(A$80),ROW()-ROW(A$80)+(ROWS($88:112)-1)*2+1,4))","v":0}]
[{"$f":"IF(B113=\"\",0,INDEX(Price_List,ROWS($88:113)))","v":15},{"$f":"IF($C113=\"\",\"\",COUNTA($C$88:$C113))","v":26},{"$f":"IF(INDEX(INDIRECT(\"Product_List\"),ROWS($88:113))=\"\",\"\",INDEX(INDIRECT(\"Product_List\"),ROWS($88:113)))","v":"26-ขนมปังไส้ครีมสลัดน้ำพริกเผา"},{"$f":"ยอดยกมา","v":0},null,null,null,null,null,null,0,null,{"$f":"INDIRECT(ADDRESS(ROW(A$80),ROW()-ROW(A$80)+(ROWS($88:113)-1)*2-1,4))","v":0},null,0,null,0,null,null,null,0,null,0,null,null,null,null,null,{"$f":"INDIRECT(ADDRESS(ROW(A$80),ROW()-ROW(A$80)+(ROWS($88:113)-1)*2,4))","v":0},0,null,0,{"$f":"INDIRECT(ADDRESS(ROW(A$80),ROW()-ROW(A$80)+(ROWS($88:113)-1)*2+1,4))","v":0}]
[{"$f":"IF(B114=\"\",0,INDEX(Price_List,ROWS($88:114)))","v":20},{"$f":"IF($C114=\"\",\"\",COUNTA($C$88:$C114))","v":27},{"$f":"IF(INDEX(INDIRECT(\"Product_List\"),ROWS($88:114))=\"\",\"\",INDEX(INDIRECT(\"Product_List\"),ROWS($88:114)))","v":"27-ขนมปังไส้สังขยาไข่"},{"$f":"ยอดยกมา","v":0},null,null,null,null,null,null,0,null,{"$f":"INDIRECT(ADDRESS(ROW(A$80),ROW()-ROW(A$80)+(ROWS($88:114)-1)*2-1,4))","v":0},null,0,null,0,null,null,null,0,null,0,null,null,null,null,null,{"$f":"INDIRECT(ADDRESS(ROW(A$80),ROW()-ROW(A$80)+(ROWS($88:114)-1)*2,4))","v":0},0,null,0,{"$f":"INDIRECT(ADDRESS(ROW(A$80),ROW()-ROW(A$80)+(ROWS($88:114)-1)*2+1,4))","v":0}]
[{"$f":"IF(B115=\"\",0,INDEX(Price_List,ROWS($88:115)))","v":20},{"$f":"IF($C115=\"\",\"\",COUNTA($C$88:$C115))","v":28},{"$f":"IF(INDEX(INDIRECT(\"Product_List\"),ROWS($88:115))=\"\",\"\",INDEX(INDIRECT(\"Product_List\"),ROWS($88:115)))","v":"28-ขนมปังไส้สังขยามะพร้าว"},{"$f":"ยอดยกมา","v":0},null,null,null,null,null,null,0,null,{"$f":"INDIRECT(ADDRESS(ROW(A$80),ROW()-ROW(A$80)+(ROWS($88:115)-1)*2-1,4))","v":0},null,0,null,0,null,null,null,0,null,0,null,null,null,null,null,{"$f":"INDIRECT(ADDRESS(ROW(A$80),ROW()-ROW(A$80)+(ROWS($88:115)-1)*2,4))","v":0},0,null,0,{"$f":"INDIRECT(ADDRESS(ROW(A$80),ROW()-ROW(A$80)+(ROWS($88:115)-1)*2+1,4))","v":0}]
[{"$f":"IF(B116=\"\",0,INDEX(Price_List,ROWS($88:116)))","v":10},{"$f":"IF($C116=\"\",\"\",COUNTA($C$88:$C116))","v":29},{"$f":"IF(INDEX(INDIRECT(\"Product_List\"),ROWS($88:116))=\"\",\"\",INDEX(INDIRECT(\"Product_List\"),ROWS($88:116)))","v":"29-ขนมปังไส้ครีมชาไทย"},{"$f":"ยอดยกมา","v":0},null,null,null,null,null,null,0,null,{"$f":"INDIRECT(ADDRESS(ROW(A$80),ROW()-ROW(A$80)+(ROWS($88:116)-1)*2-1,4))","v":0},null,0,null,0,null,null,null,0,null,0,null,null,null,null,null,{"$f":"INDIRECT(ADDRESS(ROW(A$80),ROW()-ROW(A$80)+(ROWS($88:116)-1)*2,4))","v":0},0,null,0,{"$f":"INDIRECT(ADDRESS(ROW(A$80),ROW()-ROW(A$80)+(ROWS($88:116)-1)*2+1,4))","v":0}]
[{"$f":"IF(B117=\"\",0,INDEX(Price_List,ROWS($88:117)))","v":15},{"$f":"IF($C117=\"\",\"\",COUNTA($C$88:$C117))","v":30},{"$f":"IF(INDEX(INDIRECT(\"Product_List\"),ROWS($88:117))=\"\",\"\",INDEX(INDIRECT(\"Product_List\"),ROWS($88:117)))","v":"30-ขนมปังโรลมันม่วง"},{"$f":"ยอดยกมา","v":0},null,null,null,null,null,null,0,null,{"$f":"INDIRECT(ADDRESS(ROW(A$80),ROW()-ROW(A$80)+(ROWS($88:117)-1)*2-1,4))","v":0},null,0,null,0,null,null,null,0,null,0,null,null,null,null,null,{"$f":"INDIRECT(ADDRESS(ROW(A$80),ROW()-ROW(A$80)+(ROWS($88:117)-1)*2,4))","v":0},0,null,0,{"$f":"INDIRECT(ADDRESS(ROW(A$80),ROW()-ROW(A$80)+(ROWS($88:117)-1)*2+1,4))","v":0}]
[{"$f":"IF(B118=\"\",0,INDEX(Price_List,ROWS($88:118)))","v":15},{"$f":"IF($C118=\"\",\"\",COUNTA($C$88:$C118))","v":31},{"$f":"IF(INDEX(INDIRECT(\"Product_List\"),ROWS($88:118))=\"\",\"\",INDEX(INDIRECT(\"Product_List\"),ROWS($88:118)))","v":"31-ขนมปังโรลช็อกโกแลต"},{"$f":"ยอดยกมา","v":0},null,null,null,null,null,null,0,null,{"$f":"INDIRECT(ADDRESS(ROW(A$80),ROW()-ROW(A$80)+(ROWS($88:118)-1)*2-1,4))","v":0},null,0,null,0,null,null,null,0,null,0,null,null,null,null,null,{"$f":"INDIRECT(ADDRESS(ROW(A$80),ROW()-ROW(A$80)+(ROWS($88:118)-1)*2,4))","v":0},0,null,0,{"$f":"INDIRECT(ADDRESS(ROW(A$80),ROW()-ROW(A$80)+(ROWS($88:118)-1)*2+1,4))","v":0}]
[{"$f":"IF(B119=\"\",0,INDEX(Price_List,ROWS($88:119)))","v":16},{"$f":"IF($C119=\"\",\"\",COUNTA($C$88:$C119))","v":32},{"$f":"IF(INDEX(INDIRECT(\"Product_List\"),ROWS($88:119))=\"\",\"\",INDEX(INDIRECT(\"Product_List\"),ROWS($88:119)))","v":"32-ขนมปังชนิดแผ่น(155กรัม)"},{"$f":"ยอดยกมา","v":0},null,null,null,null,null,null,0,null,{"$f":"INDIRECT(ADDRESS(ROW(A$80),ROW()-ROW(A$80)+(ROWS($88:119)-1)*2-1,4))","v":0},null,0,null,0,null,null,null,0,null,0,null,null,null,null,null,{"$f":"INDIRECT(ADDRESS(ROW(A$80),ROW()-ROW(A$80)+(ROWS($88:119)-1)*2,4))","v":0},0,null,0,{"$f":"INDIRECT(ADDRESS(ROW(A$80),ROW()-ROW(A$80)+(ROWS($88:119)-1)*2+1,4))","v":0}]
[{"$f":"IF(B120=\"\",0,INDEX(Price_List,ROWS($88:120)))","v":15},{"$f":"IF($C120=\"\",\"\",COUNTA($C$88:$C120))","v":33},{"$f":"IF(INDEX(INDIRECT(\"Product_List\"),ROWS($88:120))=\"\",\"\",INDEX(INDIRECT(\"Product_List\"),ROWS($88:120)))","v":"33-ขนมปังโรลเผือก"},{"$f":"ยอดยกมา","v":0},null,null,null,null,null,null,0,null,{"$f":"INDIRECT(ADDRESS(ROW(A$80),ROW()-ROW(A$80)+(ROWS($88:120)-1)*2-1,4))","v":0},null,0,null,0,null,null,null,0,null,0,null,null,null,null,null,{"$f":"INDIRECT(ADDRESS(ROW(A$80),ROW()-ROW(A$80)+(ROWS($88:120)-1)*2,4))","v":0},0,null,0,{"$f":"INDIRECT(ADDRESS(ROW(A$80),ROW()-ROW(A$80)+(ROWS($88:120)-1)*2+1,4))","v":0}]
[{"$f":"IF(B121=\"\",0,INDEX(Price_List,ROWS($88:121)))","v":15},{"$f":"IF($C121=\"\",\"\",COUNTA($C$88:$C121))","v":34},{"$f":"IF(INDEX(INDIRECT(\"Product_List\"),ROWS($88:121))=\"\",\"\",INDEX(INDIRECT(\"Product_List\"),ROWS($88:121)))","v":"34-ขนมปังไก่หยองน้ำสลัด Mini"},{"$f":"ยอดยกมา","v":0},null,null,null,null,null,null,0,null,{"$f":"INDIRECT(ADDRESS(ROW(A$80),ROW()-ROW(A$80)+(ROWS($88:121)-1)*2-1,4))","v":0},null,0,null,0,null,null,null,0,null,0,null,null,null,null,null,{"$f":"INDIRECT(ADDRESS(ROW(A$80),ROW()-ROW(A$80)+(ROWS($88:121)-1)*2,4))","v":0},0,null,0,{"$f":"INDIRECT(ADDRESS(ROW(A$80),ROW()-ROW(A$80)+(ROWS($88:121)-1)*2+1,4))","v":0}]
[{"$f":"IF(B122=\"\",0,INDEX(Price_List,ROWS($88:122)))","v":10},{"$f":"IF($C122=\"\",\"\",COUNTA($C$88:$C122))","v":35},{"$f":"IF(INDEX(INDIRECT(\"Product_List\"),ROWS($88:122))=\"\",\"\",INDEX(INDIRECT(\"Product_List\"),ROWS($88:122)))","v":"35-ขนมปังไส้ช็อกโกแลต"},{"$f":"ยอดยกมา","v":0},null,null,null,null,null,null,0,null,{"$f":"INDIRECT(ADDRESS(ROW(A$80),ROW()-ROW(A$80)+(ROWS($88:122)-1)*2-1,4))","v":0},null,0,null,0,null,null,null,0,null,0,null,null,null,null,null,{"$f":"INDIRECT(ADDRESS(ROW(A$80),ROW()-ROW(A$80)+(ROWS($88:122)-1)*2,4))","v":0},0,null,0,{"$f":"INDIRECT(ADDRESS(ROW(A$80),ROW()-ROW(A$80)+(ROWS($88:122)-1)*2+1,4))","v":0}]
[{"$f":"IF(B123=\"\",0,INDEX(Price_List,ROWS($88:123)))","v":10},{"$f":"IF($C123=\"\",\"\",COUNTA($C$88:$C123))","v":36},{"$f":"IF(INDEX(INDIRECT(\"Product_List\"),ROWS($88:123))=\"\",\"\",INDEX(INDIRECT(\"Product_List\"),ROWS($88:123)))","v":"36-ขนมปังไส้ครีมสังขยาไข่"},{"$f":"ยอดยกมา","v":0},null,null,null,null,null,null,0,null,{"$f":"INDIRECT(ADDRESS(ROW(A$80),ROW()-ROW(A$80)+(ROWS($88:123)-1)*2-1,4))","v":0},null,0,null,0,null,null,null,0,null,0,null,null,null,null,null,{"$f":"INDIRECT(ADDRESS(ROW(A$80),ROW()-ROW(A$80)+(ROWS($88:123)-1)*2,4))","v":0},0,null,0,{"$f":"INDIRECT(ADDRESS(ROW(A$80),ROW()-ROW(A$80)+(ROWS($88:123)-1)*2+1,4))","v":0}]
[{"$f":"IF(B124=\"\",0,INDEX(Price_List,ROWS($88:124)))","v":20},{"$f":"IF($C124=\"\",\"\",COUNTA($C$88:$C124))","v":37},{"$f":"IF(INDEX(INDIRECT(\"Product_List\"),ROWS($88:124))=\"\",\"\",INDEX(INDIRECT(\"Product_List\"),ROWS($88:124)))","v":"37-ขนมปังพิซซ่าฮาวายเอี้ยน"},{"$f":"ยอดยกมา","v":0},null,null,null,null,null,null,0,null,{"$f":"INDIRECT(ADDRESS(ROW(A$80),ROW()-ROW(A$80)+(ROWS($88:124)-1)*2-1,4))","v":0},null,0,null,0,null,null,null,0,null,0,null,null,null,null,null,{"$f":"INDIRECT(ADDRESS(ROW(A$80),ROW()-ROW(A$80)+(ROWS($88:124)-1)*2,4))","v":0},0,null,0,{"$f":"INDIRECT(ADDRESS(ROW(A$80),ROW()-ROW(A$80)+(ROWS($88:124)-1)*2+1,4))","v":0}]
[{"$f":"IF(B125=\"\",0,INDEX(Price_List,ROWS($88:125)))","v":20},{"$f":"IF($C125=\"\",\"\",COUNTA($C$88:$C125))","v":38},{"$f":"IF(INDEX(INDIRECT(\"Product_List\"),ROWS($88:125))=\"\",\"\",INDEX(INDIRECT(\"Product_List\"),ROWS($88:125)))","v":"38-ครัวซองต์หมูหยองน้ำสลัด"},{"$f":"ยอดยกมา","v":0},null,null,null,null,null,null,0,null,{"$f":"INDIRECT(ADDRESS(ROW(A$80),ROW()-ROW(A$80)+(ROWS($88:125)-1)*2-1,4))","v":0},null,0,null,0,null,null,null,0,null,0,null,null,null,null,null,{"$f":"INDIRECT(ADDRESS(ROW(A$80),ROW()-ROW(A$80)+(ROWS($88:125)-1)*2,4))","v":0},0,null,0,{"$f":"INDIRECT(ADDRESS(ROW(A$80),ROW()-ROW(A$80)+(ROWS($88:125)-1)*2+1,4))","v":0}]
[{"$f":"IF(B126=\"\",0,INDEX(Price_List,ROWS($88:126)))","v":15},{"$f":"IF($C126=\"\",\"\",COUNTA($C$88:$C126))","v":39},{"$f":"IF(INDEX(INDIRECT(\"Product_List\"),ROWS($88:126))=\"\",\"\",INDEX(INDIRECT(\"Product_List\"),ROWS($88:126)))","v":"39-แพนเบรดไส้เผือก"},{"$f":"ยอดยกมา","v":0},null,null,null,null,null,null,0,null,{"$f":"INDIRECT(ADDRESS(ROW(A$80),ROW()-ROW(A$80)+(ROWS($88:126)-1)*2-1,4))","v":0},null,0,null,0,null,null,null,0,null,0,null,null,null,null,null,{"$f":"INDIRECT(ADDRESS(ROW(A$80),ROW()-ROW(A$80)+(ROWS($88:126)-1)*2,4))","v":0},0,null,0,{"$f":"INDIRECT(ADDRESS(ROW(A$80),ROW()-ROW(A$80)+(ROWS($88:126)-1)*2+1,4))","v":0}]
[{"$f":"IF(B127=\"\",0,INDEX(Price_List,ROWS($88:127)))","v":15},{"$f":"IF($C127=\"\",\"\",COUNTA($C$88:$C127))","v":40},{"$f":"IF(INDEX(INDIRECT(\"Product_List\"),ROWS($88:127))=\"\",\"\",INDEX(INDIRECT(\"Product_List\"),ROWS($88:127)))","v":"40-แพนเบรดไส้ถั่วแดง"},{"$f":"ยอดยกมา","v":0},null,null,null,null,null,null,{"$f":"D127+E127+J127-I127+H127","v":0},null,{"$f":"INDIRECT(ADDRESS(ROW(A$80),ROW()-ROW(A$80)+(ROWS($88:127)-1)*2-1,4))","v":0},null,{"$f":"F127+G127+M127+J127-K127","v":0},null,{"$f":"O127*A127","v":0},null,null,null,{"$f":"D127+E127-F127-G127","v":0},null,{"$f":"U127*6%+U127","v":0},null,null,null,null,null,{"$f":"INDIRECT(ADDRESS(ROW(A$80),ROW()-ROW(A$80)+(ROWS($88:127)-1)*2,4))","v":0},0,null,0,{"$f":"INDIRECT(ADDRESS(ROW(A$80),ROW()-ROW(A$80)+(ROWS($88:127)-1)*2+1,4))","v":0}]
[{"$f":"IF(B128=\"\",0,INDEX(Price_List,ROWS($88:128)))","v":12},{"$f":"IF($C128=\"\",\"\",COUNTA($C$88:$C128))","v":41},{"$f":"IF(INDEX(INDIRECT(\"Product_List\"),ROWS($88:128))=\"\",\"\",INDEX(INDIRECT(\"Product_List\"),ROWS($88:128)))","v":"41-ขนมปังกรอบเนยน้ำตาล(30กรัม)"},{"$f":"ยอดยกมา","v":0},null,null,null,null,null,null,0,null,{"$f":"INDIRECT(ADDRESS(ROW(A$80),ROW()-ROW(A$80)+(ROWS($88:128)-1)*2-1,4))","v":0},null,0,null,0,null,null,null,0,null,0,null,null,null,null,null,{"$f":"INDIRECT(ADDRESS(ROW(A$80),ROW()-ROW(A$80)+(ROWS($88:128)-1)*2,4))","v":0},0,null,0,{"$f":"INDIRECT(ADDRESS(ROW(A$80),ROW()-ROW(A$80)+(ROWS($88:128)-1)*2+1,4))","v":0}]
[{"$f":"IF(B129=\"\",0,INDEX(Price_List,ROWS($88:129)))","v":18},{"$f":"IF($C129=\"\",\"\",COUNTA($C$88:$C129))","v":42},{"$f":"IF(INDEX(INDIRECT(\"Product_List\"),ROWS($88:129))=\"\",\"\",INDEX(INDIRECT(\"Product_List\"),ROWS($88:129)))","v":"42-ขนมปังชนิดแผ่นโฮลวีต"},{"$f":"ยอดยกมา","v":0},null,null,null,null,null,null,0,null,{"$f":"INDIRECT(ADDRESS(ROW(A$80),ROW()-ROW(A$80)+(ROWS($88:129)-1)*2-1,4))","v":0},null,0,null,0,null,null,null,0,null,0,null,null,null,null,null,{"$f":"INDIRECT(ADDRESS(ROW(A$80),ROW()-ROW(A$80)+(ROWS($88:129)-1)*2,4))","v":0},0,null,0,{"$f":"INDIRECT(ADDRESS(ROW(A$80),ROW()-ROW(A$80)+(ROWS($88:129)-1)*2+1,4))","v":0}]
[{"$f":"IF(B130=\"\",0,INDEX(Price_List,ROWS($88:130)))","v":12},{"$f":"IF($C130=\"\",\"\",COUNTA($C$88:$C130))","v":43},{"$f":"IF(INDEX(INDIRECT(\"Product_List\"),ROWS($88:130))=\"\",\"\",INDEX(INDIRECT(\"Product_List\"),ROWS($88:130)))","v":"43-เค้กโรลใบเตย"},{"$f":"ยอดยกมา","v":0},null,null,null,null,null,null,{"$f":"D130+E130+J130-I130+H130","v":0},null,{"$f":"INDIRECT(ADDRESS(ROW(A$80),ROW()-ROW(A$80)+(ROWS($88:130)-1)*2-1,4))","v":0},null,{"$f":"F130+G130+M130+J130-K130","v":0},null,{"$f":"O130*A130","v":0},null,null,null,{"$f":"D130+E130-F130-G130","v":0},null,{"$f":"U130*6%+U130","v":0},null,null,null,null,null,{"$f":"INDIRECT(ADDRESS(ROW(A$80),ROW()-ROW(A$80)+(ROWS($88:130)-1)*2,4))","v":0},0,null,0,{"$f":"INDIRECT(ADDRESS(ROW(A$80),ROW()-ROW(A$80)+(ROWS($88:130)-1)*2+1,4))","v":0}]
[{"$f":"IF(B131=\"\",0,INDEX(Price_List,ROWS($88:131)))","v":12},{"$f":"IF($C131=\"\",\"\",COUNTA($C$88:$C131))","v":44},{"$f":"IF(INDEX(INDIRECT(\"Product_List\"),ROWS($88:131))=\"\",\"\",INDEX(INDIRECT(\"Product_List\"),ROWS($88:131)))","v":"44-ขนมโมจิไส้ถั่วดำ"},{"$f":"ยอดยกมา","v":0},null,null,null,null,null,null,{"$f":"D131+E131+J131-I131+H131","v":0},null,{"$f":"INDIRECT(ADDRESS(ROW(A$80),ROW()-ROW(A$80)+(ROWS($88:131)-1)*2-1,4))","v":0},null,{"$f":"F131+G131+M131+J131-K131","v":0},null,{"$f":"O131*A131","v":0},null,null,null,{"$f":"D131+E131-F131-G131","v":0},null,{"$f":"U131*6%+U131","v":0},null,null,null,null,null,{"$f":"INDIRECT(ADDRESS(ROW(A$80),ROW()-ROW(A$80)+(ROWS($88:131)-1)*2,4))","v":0},0,null,0,{"$f":"INDIRECT(ADDRESS(ROW(A$80),ROW()-ROW(A$80)+(ROWS($88:131)-1)*2+1,4))","v":0}]
[{"$f":"IF(B132=\"\",0,INDEX(Price_List,ROWS($88:132)))","v":25},{"$f":"IF($C132=\"\",\"\",COUNTA($C$88:$C132))","v":45},{"$f":"IF(INDEX(INDIRECT(\"Product_List\"),ROWS($88:132))=\"\",\"\",INDEX(INDIRECT(\"Product_List\"),ROWS($88:132)))","v":"45-ครัวซองต์ไส้กรอกชีส"},{"$f":"ยอดยกมา","v":0},null,null,null,null,null,null,{"$f":"D132+E132+J132-I132+H132","v":0},null,{"$f":"INDIRECT(ADDRESS(ROW(A$80),ROW()-ROW(A$80)+(ROWS($88:132)-1)*2-1,4))","v":0},null,{"$f":"F132+G132+M132+J132-K132","v":0},null,{"$f":"O132*A132","v":0},null,null,null,{"$f":"D132+E132-F132-G132","v":0},null,{"$f":"U132*6%+U132","v":0},null,null,null,null,null,{"$f":"INDIRECT(ADDRESS(ROW(A$80),ROW()-ROW(A$80)+(ROWS($88:132)-1)*2,4))","v":0},0,null,0,{"$f":"INDIRECT(ADDRESS(ROW(A$80),ROW()-ROW(A$80)+(ROWS($88:132)-1)*2+1,4))","v":0}]
[{"$f":"IF(B133=\"\",0,INDEX(Price_List,ROWS($88:133)))","v":12},{"$f":"IF($C133=\"\",\"\",COUNTA($C$88:$C133))","v":46},{"$f":"IF(INDEX(INDIRECT(\"Product_List\"),ROWS($88:133))=\"\",\"\",INDEX(INDIRECT(\"Product_List\"),ROWS($88:133)))","v":"46-ขนมเปี๊ยะไส้ถั่ว"},{"$f":"ยอดยกมา","v":0},null,null,null,null,null,null,0,null,{"$f":"INDIRECT(ADDRESS(ROW(A$80),ROW()-ROW(A$80)+(ROWS($88:133)-1)*2-1,4))","v":0},null,0,null,0,null,null,null,0,null,0,null,null,null,null,null,{"$f":"INDIRECT(ADDRESS(ROW(A$80),ROW()-ROW(A$80)+(ROWS($88:133)-1)*2,4))","v":0},0,null,0,{"$f":"INDIRECT(ADDRESS(ROW(A$80),ROW()-ROW(A$80)+(ROWS($88:133)-1)*2+1,4))","v":0}]
[{"$f":"IF(B134=\"\",0,INDEX(Price_List,ROWS($88:134)))","v":12},{"$f":"IF($C134=\"\",\"\",COUNTA($C$88:$C134))","v":47},{"$f":"IF(INDEX(INDIRECT(\"Product_List\"),ROWS($88:134))=\"\",\"\",INDEX(INDIRECT(\"Product_List\"),ROWS($88:134)))","v":"47-ขนมเปี๊ยะไส้ฟัก"},{"$f":"ยอดยกมา","v":0},null,null,null,null,null,null,{"$f":"D134+E134+J134-I134+H134","v":0},null,{"$f":"INDIRECT(ADDRESS(ROW(A$80),ROW()-ROW(A$80)+(ROWS($88:134)-1)*2-1,4))","v":0},null,{"$f":"F134+G134+M134+J134-K134","v":0},null,{"$f":"O134*A134","v":0},null,null,null,{"$f":"D134+E134-F134-G134","v":0},null,{"$f":"U134*6%+U134","v":0},null,null,null,null,null,{"$f":"INDIRECT(ADDRESS(ROW(A$80),ROW()-ROW(A$80)+(ROWS($88:134)-1)*2,4))","v":0},0,null,0,{"$f":"INDIRECT(ADDRESS(ROW(A$80),ROW()-ROW(A$80)+(ROWS($88:134)-1)*2+1,4))","v":0}]
[{"$f":"IF(B135=\"\",0,INDEX(Price_List,ROWS($88:135)))","v":12},{"$f":"IF($C135=\"\",\"\",COUNTA($C$88:$C135))","v":48},{"$f":"IF(INDEX(INDIRECT(\"Product_List\"),ROWS($88:135))=\"\",\"\",INDEX(INDIRECT(\"Product_List\"),ROWS($88:135)))","v":"48-มังกี้เค้ก"},{"$f":"ยอดยกมา","v":0},null,null,null,null,null,null,0,null,{"$f":"INDIRECT(ADDRESS(ROW(A$80),ROW()-ROW(A$80)+(ROWS($88:135)-1)*2-1,4))","v":0},null,0,null,0,null,null,null,0,null,0,null,null,null,null,null,{"$f":"INDIRECT(ADDRESS(ROW(A$80),ROW()-ROW(A$80)+(ROWS($88:135)-1)*2,4))","v":0},0,null,0,{"$f":"INDIRECT(ADDRESS(ROW(A$80),ROW()-ROW(A$80)+(ROWS($88:135)-1)*2+1,4))","v":0}]
["รวม",null,null,{"$f":"SUM(D$88:D$135)","v":0},0,0,0,0,0,0,0,null,{"$f":"SUM(M$88:M$135)","v":0},null,null,null,{"$f":"$AP$98","v":0},null,"บาท",null,{"$f":"SUM(U$88:U$135)","v":0},null,{"$f":"SUM(W$88:W$135)","v":0},null,null,null,null,null,{"$f":"SUM(AC$88:AC$135)","v":0},{"$f":"SUM(AD$88:AD$135)","v":0},{"$f":"SUM(AE$88:AE$135)","v":0},{"$f":"SUM(AF$88:AF$135)","v":0},{"$f":"SUM(AG$88:AG$135)","v":0}]
["เลขที่ไมล์ เวลาออกทำงาน",null,null,{"$f":"$BF$3","v":0},null,"Km","น้ำหนักของเสีย"]
["เลขที่ไมล์ เวลากลับ",null,null,{"$f":"$BF$4","v":0},null,"Km",{"$f":"$AA$5","v":0},null,"KG"]
["เวลากลับถึงสำนักงาน",null,null,{"$f":"$BF$1","v":"00:00:00"},null,"น."]
["เติมน้ำมัน",null,null,{"$f":"$AX3","v":0},null,"บาท"]
["จำนวนน้ำมัน",null,null,{"$f":"$AX4","v":0},null,"ลิตร"]
["ยอดรวมต้นทุนสาขา",null,null,{"$f":"$AX5","v":0},null,"บาท"]

{"sheet":"9","index":13,"n_rows":142,"n_cols":154,"rows_kept":142,"cut":false,"hidden":false,"merged":[[129,10,129,11],[129,12,129,13],[129,14,129,15],[129,16,129,17],[129,20,129,21],[80,126,80,127],[128,10,128,11],[128,12,128,13],[128,14,128,15],[128,16,128,17],[128,20,128,21],[128,22,128,23],[128,24,128,25],[128,33,128,36],[125,10,125,11],[125,12,125,13],[125,14,125,15],[125,16,125,17],[125,20,125,21],[126,10,126,11],[127,10,127,11],[83,81,83,82],[83,84,83,85],[83,87,83,88],[83,90,83,91],[83,93,83,94],[83,96,83,97],[82,72,82,73],[129,22,129,23],[129,24,129,25],[129,33,129,36],[97,38,97,40],[92,24,92,25],[92,33,92,36],[90,24,90,25],[90,33,90,36],[96,33,96,36],[97,33,97,36],[88,24,88,25],[88,33,88,36],[80,132,80,133],[82,132,82,133],[6,135,6,137],[7,135,7,137],[8,135,8,137],[80,135,80,136],[82,135,82,136],[80,129,80,130],[82,126,82,127],[82,129,82,130],[6,138,6,140],[6,141,6,143],[6,147,6,149],[126,22,126,23],[127,22,127,23],[126,24,126,25],[127,24,127,25],[126,33,126,36],[127,33,127,36],[125,24,125,25],[125,33,125,36],[123,24,123,25],[123,33,123,36],[125,22,125,23],[124,22,124,23],[124,24,124,25],[124,33,124,36],[122,24,122,25],[122,33,122,36],[98,24,98,25],[98,33,98,36],[99,24,99,25],[99,33,99,36],[82,108,82,109],[139,0,139,2],[139,3,139,4],[140,0,140,2],[140,3,140,4],[141,0,141,2],[141,3,141,4],[137,0,137,2],[137,3,137,4],[137,6,137,7],[137,18,137,21],[138,0,138,2],[138,3,138,4],[135,20,135,21],[135,22,135,23],[135,24,135,25],[135,33,135,36],[136,0,136,2],[136,3,136,4],[135,0,135,2],[135,10,135,11],[135,12,135,13],[135,14,135,15],[135,16,135,17],[135,18,135,19],[126,12,126,13],[127,12,127,13],[126,14,126,15],[127,14,127,15],[126,16,126,17],[127,16,127,17],[126,20,126,21],[127,20,127,21],[124,10,124,11],[124,12,124,13],[124,14,124,15],[124,16,124,17],[124,20,124,21],[123,10,123,11],[123,12,123,13],[123,14,123,15],[123,16,123,17],[123,20,123,21],[123,22,123,23],[122,10,122,11],[122,12,122,13],[122,14,122,15],[122,16,122,17],[122,20,122,21],[122,22,122,23],[121,10,121,11],[121,12,121,13],[121,14,121,15],[121,16,121,17],[121,20,121,21],[121,22,121,23],[121,24,121,25],[121,33,121,36],[120,10,120,11],[120,12,120,13],[120,14,120,15],[120,16,120,17],[120,20,120,21],[120,22,120,23],[120,24,120,25],[120,33,120,36],[119,10,119,11],[119,12,119,13],[119,14,119,15],[119,16,119,17],[119,20,119,21],[119,22,119,23],[119,24,119,25],[119,33,119,36],[118,10,118,11],[118,12,118,13],[118,14,118,15],[118,16,118,17],[118,20,118,21],[118,22,118,23],[118,24,118,25],[118,33,118,36],[117,10,117,11],[117,12,117,13],[117,14,117,15],[117,16,117,17],[117,20,117,21],[117,22,117,23],[117,24,117,25],[117,33,117,36],[116,10,116,11],[116,12,116,13],[116,14,116,15],[116,16,116,17],[116,20,116,21],[116,22,116,23],[116,24,116,25],[116,33,116,36],[115,10,115,11],[115,12,115,13],[115,14,115,15],[115,16,115,17],[115,20,115,21],[115,22,115,23],[115,24,115,25],[115,33,115,36],[114,10,114,11],[114,12,114,13],[114,14,114,15],[114,16,114,17],[114,20,114,21],[114,22,114,23],[114,24,114,25],[114,33,114,36],[113,10,113,11],[113,12,113,13],[113,14,113,15],[113,16,113,17],[113,20,113,21],[113,22,113,23],[113,24,113,25],[113,33,113,36],[112,10,112,11],[112,12,112,13],[112,14,112,15],[112,16,112,17],[112,20,112,21],[112,22,112,23],[112,24,112,25],[112,33,112,36],[111,10,111,11],[111,12,111,13],[111,14,111,15],[111,16,111,17],[111,20,111,21],[111,22,111,23],[111,24,111,25],[111,33,111,36],[110,10,110,11],[110,12,110,13],[110,14,110,15],[110,16,110,17],[110,20,110,21],[110,22,110,23],[110,24,110,25],[110,33,110,36],[109,10,109,11],[109,12,109,13],[109,14,109,15],[109,16,109,17],[109,20,109,21],[109,22,109,23],[109,24,109,25],[109,33,109,36],[108,10,108,11],[108,12,108,13],[108,14,108,15],[108,16,108,17],[108,20,108,21],[108,22,108,23],[108,24,108,25],[108,33,108,36],[107,10,107,11],[107,12,107,13],[107,14,107,15],[107,16,107,17],[107,20,107,21],[107,22,107,23],[107,24,107,25],[107,33,107,36],[106,10,106,11],[106,12,106,13],[106,14,106,15],[106,16,106,17],[106,20,106,21],[106,22,106,23],[106,24,106,25],[106,33,106,36],[105,10,105,11],[105,12,105,13],[105,14,105,15],[105,16,105,17],[105,20,105,21],[105,22,105,23],[105,24,105,25],[105,33,105,36],[104,10,104,11],[104,12,104,13],[104,14,104,15],[104,16,104,17],[104,20,104,21],[104,22,104,23],[104,24,104,25],[104,33,104,36],[103,10,103,11],[103,12,103,13],[103,14,103,15],[103,16,103,17],[103,20,103,21],[103,22,103,23],[103,24,103,25],[103,33,103,36],[102,10,102,11],[102,12,102,13],[102,14,102,15],[102,16,102,17],[102,20,102,21],[102,22,102,23],[102,24,102,25],[102,33,102,36],[101,10,101,11],[101,12,101,13],[101,14,101,15],[101,16,101,17],[101,20,101,21],[101,22,101,23],[101,24,101,25],[101,33,101,36],[100,10,100,11],[100,12,100,13],[100,14,100,15],[100,16,100,17],[100,20,100,21],[100,22,100,23],[100,24,100,25],[100,33,100,36],[99,10,99,11],[99,12,99,13],[99,14,99,15],[99,16,99,17],[99,20,99,21],[99,22,99,23],[98,10,98,11],[98,12,98,13],[98,14,98,15],[98,16,98,17],[98,20,98,21],[98,22,98,23],[97,10,97,11],[97,12,97,13],[97,14,97,15],[97,16,97,17],[97,20,97,21],[97,22,97,23],[97,24,97,25],[96,10,96,11],[96,12,96,13],[96,14,96,15],[96,16,96,17],[96,20,96,21],[96,22,96,23],[96,24,96,25],[95,10,95,11],[95,12,95,13],[95,14,95,15],[95,16,95,17],[95,20,95,21],[95,22,95,23],[95,24,95,25],[95,33,95,36],[94,10,94,11],[94,12,94,13],[94,14,94,15],[94,16,94,17],[94,20,94,21],[94,22,94,23],[94,24,94,25],[94,33,94,36],[93,10,93,11],[93,12,93,13],[93,14,93,15],[93,16,93,17],[93,20,93,21],[93,22,93,23],[93,24,93,25],[93,33,93,36],[92,10,92,11],[92,12,92,13],[92,14,92,15],[92,16,92,17],[92,20,92,21],[92,22,92,23],[91,10,91,11],[91,12,91,13],[91,14,91,15],[91,16,91,17],[91,20,91,21],[91,22,91,23],[91,24,91,25],[91,33,91,36],[90,10,90,11],[90,12,90,13],[90,14,90,15],[90,16,90,17],[90,20,90,21],[90,22,90,23],[87,33,87,36],[86,10,86,11],[86,12,86,13],[86,14,86,15],[86,16,86,17],[86,20,86,21],[86,22,86,23],[89,10,89,11],[89,12,89,13],[89,14,89,15],[89,16,89,17],[89,20,89,21],[89,22,89,23],[89,24,89,25],[89,33,89,36],[88,10,88,11],[88,12,88,13],[88,14,88,15],[88,16,88,17],[88,20,88,21],[88,22,88,23],[86,24,86,25],[86,33,86,36],[83,150,83,153],[83,99,83,100],[83,102,83,103],[83,105,83,106],[83,108,83,109],[83,111,83,112],[83,114,83,115],[83,126,83,127],[83,129,83,130],[83,132,83,133],[83,135,83,136],[83,117,83,118],[83,120,83,121],[83,123,83,124],[82,75,82,76],[82,78,82,79],[82,81,82,82],[82,84,82,85],[82,87,82,88],[82,99,82,100],[82,102,82,103],[82,105,82,106],[82,63,82,64],[82,66,82,67],[82,69,82,70],[82,90,82,91],[82,93,82,94],[82,96,82,97],[83,0,83,5],[83,6,83,7],[83,9,83,10],[83,12,83,13],[83,15,83,16],[83,18,83,19],[83,21,83,22],[83,24,83,25],[83,54,83,55],[83,27,83,28],[82,36,82,37],[83,30,83,31],[83,33,83,34],[83,36,83,37],[82,39,82,40],[82,42,82,43],[83,45,83,46],[83,48,83,49],[83,51,83,52],[83,39,83,40],[83,42,83,43],[82,54,82,55],[82,57,82,58],[82,60,82,61],[81,0,81,2],[81,3,81,5],[81,150,82,153],[82,0,82,2],[82,3,82,4],[82,6,82,7],[82,9,82,10],[82,12,82,13],[82,15,82,16],[82,45,82,46],[82,48,82,49],[82,51,82,52],[82,18,82,19],[82,21,82,22],[82,24,82,25],[82,27,82,28],[82,30,82,31],[82,33,82,34],[82,111,82,112],[82,114,82,115],[82,117,82,118],[82,120,82,121],[82,123,82,124],[80,111,80,112],[80,114,80,115],[80,117,80,118],[80,120,80,121],[80,123,80,124],[80,93,80,94],[80,96,80,97],[80,99,80,100],[80,102,80,103],[80,105,80,106],[80,108,80,109],[80,36,80,37],[80,75,80,76],[80,78,80,79],[80,81,80,82],[80,84,80,85],[80,87,80,88],[80,90,80,91],[80,57,80,58],[80,60,80,61],[80,63,80,64],[80,66,80,67],[80,69,80,70],[80,72,80,73],[6,0,8,0],[6,1,8,1],[80,0,80,5],[80,6,80,7],[80,9,80,10],[80,12,80,13],[80,15,80,16],[80,18,80,19],[8,117,8,119],[8,54,8,56],[8,57,8,59],[8,60,8,62],[8,27,8,29],[8,30,8,32],[8,33,8,35],[8,36,8,38],[8,39,8,41],[8,42,8,44],[8,9,8,11],[8,12,8,14],[8,15,8,17],[8,18,8,20],[8,21,8,23],[8,24,8,26],[6,129,6,131],[7,126,7,128],[7,129,7,131],[8,126,8,128],[8,129,8,131],[6,126,6,128],[6,84,6,86],[6,132,6,134],[79,0,79,5],[8,99,8,101],[8,102,8,104],[8,105,8,107],[8,108,8,110],[8,111,8,113],[8,114,8,116],[8,81,8,83],[8,84,8,86],[8,87,8,89],[8,90,8,92],[8,93,8,95],[8,96,8,98],[8,63,8,65],[8,66,8,68],[8,69,8,71],[7,120,7,122],[7,123,7,125],[7,150,8,150],[7,151,8,151],[7,102,7,104],[7,105,7,107],[7,108,7,110],[7,111,7,113],[7,114,7,116],[7,117,7,119],[8,120,8,122],[8,123,8,125],[7,132,7,134],[8,132,8,134],[6,152,8,152],[6,153,8,153],[7,6,7,8],[7,9,7,11],[7,12,7,14],[7,15,7,17],[7,18,7,20],[7,21,7,23],[7,24,7,26],[7,27,7,29],[6,117,6,119],[6,120,6,122],[6,123,6,125],[6,150,6,151],[6,99,6,101],[6,102,6,104],[6,105,6,107],[6,108,6,110],[6,93,6,95],[6,96,6,98],[6,63,6,65],[6,111,6,113],[6,114,6,116],[6,81,6,83],[6,2,8,2],[6,3,8,3],[6,4,8,4],[6,6,6,8],[8,6,8,8],[6,45,6,47],[6,48,6,50],[7,48,7,50],[6,39,6,41],[6,42,6,44],[7,30,7,32],[7,33,7,35],[7,36,7,38],[7,39,7,41],[7,42,7,44],[7,45,7,47],[8,45,8,47],[8,48,8,50],[4,26,4,29],[4,30,4,31],[4,32,4,34],[4,35,4,36],[6,9,6,11],[6,12,6,14],[6,15,6,17],[6,18,6,20],[6,21,6,23],[6,24,6,26],[6,27,6,29],[6,30,6,32],[6,33,6,35],[6,36,6,38],[3,41,3,44],[3,46,3,48],[3,49,3,51],[3,54,3,56],[3,57,3,60],[4,0,4,1],[4,2,4,3],[4,4,4,5],[4,6,4,12],[4,14,4,16],[3,17,3,19],[3,22,3,25],[3,26,3,29],[3,30,3,33],[3,34,3,37],[3,38,3,40],[4,38,4,40],[4,41,4,44],[4,46,4,48],[4,49,4,51],[4,54,4,56],[4,57,4,60],[4,17,4,19],[4,22,4,25],[3,0,3,1],[3,2,3,3],[3,4,3,5],[3,6,3,12],[3,14,3,16],[2,17,2,19],[2,22,2,25],[2,26,2,29],[2,30,2,33],[0,38,0,40],[0,41,0,44],[0,46,0,48],[0,54,0,56],[0,57,0,60],[2,0,2,1],[2,2,2,3],[2,4,2,5],[2,6,2,12],[2,14,2,16],[0,0,0,12],[0,14,0,16],[0,17,0,23],[0,30,0,33],[0,34,0,35],[0,36,0,37],[2,41,2,44],[2,46,2,48],[2,49,2,51],[2,54,2,56],[2,57,2,60],[2,34,2,37],[2,38,2,40],[7,96,7,98],[7,99,7,101],[6,51,6,53],[6,60,6,62],[6,87,6,89],[6,90,6,92],[7,84,7,86],[7,87,7,89],[7,90,7,92],[7,66,7,68],[7,69,7,71],[7,72,7,74],[6,66,6,68],[7,75,7,77],[7,78,7,80],[7,81,7,83],[6,69,6,71],[6,72,6,74],[6,75,6,77],[6,78,6,80],[6,54,6,56],[6,57,6,59],[131,24,131,25],[131,10,131,11],[131,20,131,21],[7,51,7,53],[7,54,7,56],[7,57,7,59],[7,60,7,62],[7,63,7,65],[7,93,7,95],[8,72,8,74],[8,75,8,77],[8,78,8,80],[8,51,8,53],[80,39,80,40],[80,42,80,43],[80,45,80,46],[80,48,80,49],[80,51,80,52],[80,54,80,55],[80,21,80,22],[80,24,80,25],[80,27,80,28],[80,30,80,31],[80,33,80,34],[83,147,83,148],[130,22,130,23],[130,24,130,25],[130,33,130,36],[130,10,130,11],[130,12,130,13],[130,14,130,15],[130,16,130,17],[130,20,130,21],[83,63,83,64],[83,66,83,67],[83,69,83,70],[83,72,83,73],[83,75,83,76],[83,78,83,79],[83,57,83,58],[83,60,83,61],[87,10,87,11],[87,12,87,13],[87,14,87,15],[87,16,87,17],[87,20,87,21],[87,22,87,23],[87,24,87,25],[7,147,7,149],[8,138,8,140],[8,141,8,143],[8,147,8,149],[80,138,80,139],[80,141,80,142],[80,147,80,148],[82,138,82,139],[82,141,82,142],[82,147,82,148],[132,10,132,11],[134,10,134,11],[131,12,131,13],[132,12,132,13],[134,12,134,13],[131,14,131,15],[132,14,132,15],[134,14,134,15],[131,16,131,17],[132,16,132,17],[134,16,134,17],[133,10,133,11],[133,12,133,13],[133,14,133,15],[133,16,133,17],[132,20,132,21],[134,20,134,21],[131,22,131,23],[132,22,132,23],[134,22,134,23],[6,144,6,146],[7,144,7,146],[8,144,8,146],[80,144,80,145],[82,144,82,145],[83,144,83,145],[133,20,133,21],[133,22,133,23],[133,24,133,25],[133,33,133,36],[132,24,132,25],[134,24,134,25],[131,33,131,36],[132,33,132,36],[134,33,134,36],[7,138,7,140],[7,141,7,143],[83,138,83,139],[83,141,83,142]]}
[":::: รายงานการขายประจำวัน (Sale Daily Report)  ::::",null,null,null,null,null,null,null,null,null,null,null,null,null,"Print Date : ",null,null,{"$f":"NOW()","v":"2025-04-24T22:39:10.140"},null,null,null,null,null,null,null,null,null,null,null,null,"จำนวนร้าน :",null,null,null,{"$f":"MAX($A$10:$A$79)","v":0},null,"ร้าน",null,"เป้ายอดขาย :",null,null,null,null,null,null,null,{"$f":"C3","v":45786},null,null,{"$f":"LEFT('Problems & Solutions'!$B$2,FIND(\"|\",'Problems & Solutions'!$B$2))&\" วันที่\"&TEXT($C$3,\"[$-107041E] d mmmm yyyy;@\")","v":"ขั้นตอนการตรวจรีพอร์ตขาย | วันที่ 9 พฤษภาคม 2568"},null,null,null,null,"เวลากลับ :"]
[]
["วันที่ :",null,{"$f":"DATE(ใส่ข้อมูล!G2-543,ใส่ข้อมูล!V2,ActiveSheetName)","v":"2025-05-09"},null,"พนักงานขาย",null,{"$f":"INDEX(OFFSET(Sale_Region,,1),ActiveSheetName)","v":0},null,null,null,null,null,null,null,"รวมยอดเบิก :",null,null,{"$f":"E136","v":0},null,null,"ชิ้น",null,"ใหญ่สด(40)",null,null,null,{"$f":"Cash_Major_Bill","v":0},null,null,null,"ใหญ่เชื่อ(42)",null,null,null,{"$f":"Credit_Major_Bill","v":0},null,null,null,"บิลใหญ่ :",null,null,{"$f":"AA3+AI3","v":0},null,null,null,null,"เติมน้ำมัน :",null,null,null,null,null,"บาท",null,"ไมล์ออก :",null,null,{"$f":"เลขไมล์ออก","v":0},null,null,null,"Km"]
["เขตการขาย :",null,{"$f":"INDEX(Sale_Region,ActiveSheetName)","v":0},null,"ผช.ขาย",null,{"$f":"INDEX(OFFSET(Sale_Region,,2),ActiveSheetName)","v":0},null,null,null,null,null,null,null,"ของเหลือ :",null,null,{"$f":"F136","v":0},null,null,"ชิ้น",null,"เล็กสด(41)",null,null,null,{"$f":"Cash_Minor_Bill","v":0},null,null,null,"เล็กเชื่อ(43)",null,null,null,{"$f":"Credit_Minor_Bill","v":0},null,null,null,"บิลเล็ก :",null,null,{"$f":"AA4+AI4","v":0},null,null,null,null,"จำนวนลิตร :",null,null,null,null,null,"ลิตร",null,"ไมล์เข้า :",null,null,null,null,null,null,"Km"]
["สายส่ง :",null,{"$f":"\"Sale \"&ใส่ข้อมูล!E3&\"-\"&ใส่ข้อมูล!G3","v":"Sale KB-01"},null,"พนักงานเสริม",null,{"$f":"INDEX(OFFSET(Sale_Region,,3),ActiveSheetName)","v":0},null,null,null,null,null,null,null,"ของเสีย :",null,null,{"$f":"G136","v":0},null,null,"ชิ้น",null,"น้ำหนักของเสีย",null,null,null,null,null,null,null,"Kg.",null,"%ของเสีย",null,null,{"$f":"IF(Order_Cal=0,0,ROUND(Waste_Cal*100/Order_Cal,2))","v":0},null,"%","VAT :",null,null,{"$f":"EW81","v":0},null,null,null,null,"ต้นทุนสาขา :",null,null,{"$f":"SUMPRODUCT((($A$88:$A$135)-($A$88:$A$135)*0.45)*(($E$88:$E$135)-($G$88:$G$135)))","v":0},null,null,"บาท",null,"ระยะทาง :",null,null,{"$f":"IF(OR($BF$4=0,$BF$3=0),0,$BF$4-$BF$3)","v":0},null,null,null,"Km"]
[]
["No","รหัสร้าน (CustNo)","ชื่อร้าน (Store Name)","เวลาเข้าร้าน","ระยะเวลาระหว่างร้าน","บิล(Invoice)",{"$f":"INDEX(INDIRECT(\"dProduct[ProductName]\"),ROUNDUP(COLUMNS($G:G)/3,0))","v":"ขนมปังหมูหยองน้ำสลัด"},null,null,{"$f":"INDEX(INDIRECT(\"dProduct[ProductName]\"),ROUNDUP(COLUMNS($G:J)/3,0))","v":"ขนมปังหมูหยองน้ำพริกเผา"},null,null,{"$f":"INDEX(INDIRECT(\"dProduct[ProductName]\"),ROUNDUP(COLUMNS($G:M)/3,0))","v":"ขนมปังไก่หยองน้ำสลัด"},null,null,{"$f":"INDEX(INDIRECT(\"dProduct[ProductName]\"),ROUNDUP(COLUMNS($G:P)/3,0))","v":"ขนมปังไส้ครีมสลัด"},null,null,{"$f":"INDEX(INDIRECT(\"dProduct[ProductName]\"),ROUNDUP(COLUMNS($G:S)/3,0))","v":"ขนมปังเนยสด"},null,null,{"$f":"INDEX(INDIRECT(\"dProduct[ProductName]\"),ROUNDUP(COLUMNS($G:V)/3,0))","v":"ขนมปังไส้สังขยาเล็ก"},null,null,{"$f":"INDEX(INDIRECT(\"dProduct[ProductName]\"),ROUNDUP(COLUMNS($G:Y)/3,0))","v":"ขนมปังไส้เผือก"},null,null,{"$f":"INDEX(INDIRECT(\"dProduct[ProductName]\"),ROUNDUP(COLUMNS($G:AB)/3,0))","v":"ขนมปังไส้ถั่วแดง"},null,null,{"$f":"INDEX(INDIRECT(\"dProduct[ProductName]\"),ROUNDUP(COLUMNS($G:AE)/3,0))","v":"ขนมปังไส้ถั่วดำ"},null,null,{"$f":"INDEX(INDIRECT(\"dProduct[ProductName]\"),ROUNDUP(COLUMNS($G:AH)/3,0))","v":"ขนมปังไส้มันม่วง"},null,null,{"$f":"INDEX(INDIRECT(\"dProduct[ProductName]\"),ROUNDUP(COLUMNS($G:AK)/3,0))","v":"เค้กกล้วยหอม"},null,null,{"$f":"INDEX(INDIRECT(\"dProduct[ProductName]\"),ROUNDUP(COLUMNS($G:AN)/3,0))","v":"เค้กบัตเตอร์"},null,null,{"$f":"INDEX(INDIRECT(\"dProduct[ProductName]\"),ROUNDUP(COLUMNS($G:AQ)/3,0))","v":"ขนมปังโรลถั่วแดง"},null,null,{"$f":"INDEX(INDIRECT(\"dProduct[ProductName]\"),ROUNDUP(COLUMNS($G:AT)/3,0))","v":"ขนมปังไส้สังขยาใหญ่"},null,null,{"$f":"INDEX(INDIRECT(\"dProduct[ProductName]\"),ROUNDUP(COLUMNS($G:AW)/3,0))","v":"ขนมปังชนิดแผ่น(480กรัม)"},null,null,{"$f":"INDEX(INDIRECT(\"dProduct[ProductName]\"),ROUNDUP(COLUMNS($G:AZ)/3,0))","v":"โมจิไส้ถั่ว"},null,null,{"$f":"INDEX(INDIRECT(\"dProduct[ProductName]\"),ROUNDUP(COLUMNS($G:BC)/3,0))","v":"โมจิไส้เผือก"},null,null,{"$f":"INDEX(INDIRECT(\"dProduct[ProductName]\"),ROUNDUP(COLUMNS($G:BF)/3,0))","v":"โมจิไส้ถั่วไข่เค็ม"},null,null,{"$f":"INDEX(INDIRECT(\"dProduct[ProductName]\"),ROUNDUP(COLUMNS($G:BI)/3,0))","v":"ขนมปังพิซซ่า"},null,null,{"$f":"INDEX(INDIRECT(\"dProduct[ProductName]\"),ROUNDUP(COLUMNS($G:BL)/3,0))","v":"ขนมปังพิซซ่าปูอัดแฮม"},null,null,{"$f":"INDEX(INDIRECT(\"dProduct[ProductName]\"),ROUNDUP(COLUMNS($G:BO)/3,0))","v":"ขนมปังไส้กรอก"},null,null,{"$f":"INDEX(INDIRECT(\"dProduct[ProductName]\"),ROUNDUP(COLUMNS($G:BR)/3,0))","v":"ขนมก้านบัว"},null,null,{"$f":"INDEX(INDIRECT(\"dProduct[ProductName]\"),ROUNDUP(COLUMNS($G:BU)/3,0))","v":"พายสับปะรด"},null,null,{"$f":"INDEX(INDIRECT(\"dProduct[ProductName]\"),ROUNDUP(COLUMNS($G:BX)/3,0))","v":"พายไส้มะพร้าว"},null,null,{"$f":"INDEX(INDIRECT(\"dProduct[ProductName]\"),ROUNDUP(COLUMNS($G:CA)/3,0))","v":"ขนมปังโรลมันเทศ"},null,null,{"$f":"INDEX(INDIRECT(\"dProduct[ProductName]\"),ROUNDUP(COLUMNS($G:CD)/3,0))","v":"ขนมปังไส้ครีมสลัดน้ำพริกเผา"},null,null,{"$f":"INDEX(INDIRECT(\"dProduct[ProductName]\"),ROUNDUP(COLUMNS($G:CG)/3,0))","v":"ขนมปังไส้สังขยาไข่"},null,null,{"$f":"INDEX(INDIRECT(\"dProduct[ProductName]\"),ROUNDUP(COLUMNS($G:CJ)/3,0))","v":"ขนมปังไส้สังขยามะพร้าว"},null,null,{"$f":"INDEX(INDIRECT(\"dProduct[ProductName]\"),ROUNDUP(COLUMNS($G:CM)/3,0))","v":"ขนมปังไส้ครีมชาไทย"},null,null,{"$f":"INDEX(INDIRECT(\"dProduct[ProductName]\"),ROUNDUP(COLUMNS($G:CP)/3,0))","v":"ขนมปังโรลมันม่วง"},null,null,{"$f":"INDEX(INDIRECT(\"dProduct[ProductName]\"),ROUNDUP(COLUMNS($G:CS)/3,0))","v":"ขนมปังโรลช็อกโกแลต"},null,null,{"$f":"INDEX(INDIRECT(\"dProduct[ProductName]\"),ROUNDUP(COLUMNS($G:CV)/3,0))","v":"ขนมปังชนิดแผ่น(155กรัม)"},null,null,{"$f":"INDEX(INDIRECT(\"dProduct[ProductName]\"),ROUNDUP(COLUMNS($G:CY)/3,0))","v":"ขนมปังโรลเผือก"},null,null,{"$f":"INDEX(INDIRECT(\"dProduct[ProductName]\"),ROUNDUP(COLUMNS($G:DB)/3,0))","v":"ขนมปังไก่หยองน้ำสลัด Mini"},null,null,{"$f":"INDEX(INDIRECT(\"dProduct[ProductName]\"),ROUNDUP(COLUMNS($G:DE)/3,0))","v":"ขนมปังไส้ช็อกโกแลต"},null,null,{"$f":"INDEX(INDIRECT(\"dProduct[ProductName]\"),ROUNDUP(COLUMNS($G:DH)/3,0))","v":"ขนมปังไส้ครีมสังขยาไข่"},null,null,{"$f":"INDEX(INDIRECT(\"dProduct[ProductName]\"),ROUNDUP(COLUMNS($G:DK)/3,0))","v":"ขนมปังพิซซ่าฮาวายเอี้ยน"},null,null,{"$f":"INDEX(INDIRECT(\"dProduct[ProductName]\"),ROUNDUP(COLUMNS($G:DN)/3,0))","v":"ครัวซองต์หมูหยองน้ำสลัด"},null,null,{"$f":"INDEX(INDIRECT(\"dProduct[ProductName]\"),ROUNDUP(COLUMNS($G:DQ)/3,0))","v":"แพนเบรดไส้เผือก"},null,null,{"$f":"INDEX(INDIRECT(\"dProduct[ProductName]\"),ROUNDUP(COLUMNS($G:DT)/3,0))","v":"แพนเบรดไส้ถั่วแดง"},null,null,{"$f":"INDEX(INDIRECT(\"dProduct[ProductName]\"),ROUNDUP(COLUMNS($G:DW)/3,0))","v":"ขนมปังกรอบเนยน้ำตาล(30กรัม)"},null,null,{"$f":"INDEX(INDIRECT(\"dProduct[ProductName]\"),ROUNDUP(COLUMNS($G:DZ)/3,0))","v":"ขนมปังชนิดแผ่นโฮลวีต"},null,null,{"$f":"INDEX(INDIRECT(\"dProduct[ProductName]\"),ROUNDUP(COLUMNS($G:EC)/3,0))","v":"เค้กโรลใบเตย"},null,null,{"$f":"INDEX(INDIRECT(\"dProduct[ProductName]\"),ROUNDUP(COLUMNS($G:EF)/3,0))","v":"ขนมโมจิไส้ถั่วดำ"},null,null,{"$f":"INDEX(INDIRECT(\"dProduct[ProductName]\"),ROUNDUP(COLUMNS($G:EI)/3,0))","v":"ครัวซองต์ไส้กรอกชีส"},null,null,{"$f":"INDEX(INDIRECT(\"dProduct[ProductName]\"),ROUNDUP(COLUMNS($G:EL)/3,0))","v":"ขนมเปี๊ยะไส้ถั่ว"},null,null,{"$f":"INDEX(INDIRECT(\"dProduct[ProductName]\"),ROUNDUP(COLUMNS($G:EO)/3,0))","v":"ขนมเปี๊ยะไส้ฟัก"},null,null,{"$f":"INDEX(INDIRECT(\"dProduct[ProductName]\"),ROUNDUP(COLUMNS($G:ER)/3,0))","v":"มังกี้เค้ก"},null,null,"มูลค่าสินค้า",null,"ภาษี","รวมยอดขาย"]
[null,null,null,null,null,"ราคาขาย",{"$f":"IF(G$7=0,0,INDEX(Price_List,ROUNDUP(COLUMNS($G:G)/3,0)))","v":20},null,null,{"$f":"IF(J$7=0,0,INDEX(Price_List,ROUNDUP(COLUMNS($G:J)/3,0)))","v":20},null,null,{"$f":"IF(M$7=0,0,INDEX(Price_List,ROUNDUP(COLUMNS($G:M)/3,0)))","v":20},null,null,{"$f":"IF(P$7=0,0,INDEX(Price_List,ROUNDUP(COLUMNS($G:P)/3,0)))","v":15},null,null,{"$f":"IF(S$7=0,0,INDEX(Price_List,ROUNDUP(COLUMNS($G:S)/3,0)))","v":15},null,null,{"$f":"IF(V$7=0,0,INDEX(Price_List,ROUNDUP(COLUMNS($G:V)/3,0)))","v":10},null,null,{"$f":"IF(Y$7=0,0,INDEX(Price_List,ROUNDUP(COLUMNS($G:Y)/3,0)))","v":10},null,null,{"$f":"IF(AB$7=0,0,INDEX(Price_List,ROUNDUP(COLUMNS($G:AB)/3,0)))","v":10},null,null,{"$f":"IF(AE$7=0,0,INDEX(Price_List,ROUNDUP(COLUMNS($G:AE)/3,0)))","v":10},null,null,{"$f":"IF(AH$7=0,0,INDEX(Price_List,ROUNDUP(COLUMNS($G:AH)/3,0)))","v":10},null,null,{"$f":"IF(AK$7=0,0,INDEX(Price_List,ROUNDUP(COLUMNS($G:AK)/3,0)))","v":15},null,null,{"$f":"IF(AN$7=0,0,INDEX(Price_List,ROUNDUP(COLUMNS($G:AN)/3,0)))","v":15},null,null,{"$f":"IF(AQ$7=0,0,INDEX(Price_List,ROUNDUP(COLUMNS($G:AQ)/3,0)))","v":15},null,null,{"$f":"IF(AT$7=0,0,INDEX(Price_List,ROUNDUP(COLUMNS($G:AT)/3,0)))","v":15},null,null,{"$f":"IF(AW$7=0,0,INDEX(Price_List,ROUNDUP(COLUMNS($G:AW)/3,0)))","v":42},null,null,{"$f":"IF(AZ$7=0,0,INDEX(Price_List,ROUNDUP(COLUMNS($G:AZ)/3,0)))","v":12},null,null,{"$f":"IF(BC$7=0,0,INDEX(Price_List,ROUNDUP(COLUMNS($G:BC)/3,0)))","v":12},null,null,{"$f":"IF(BF$7=0,0,INDEX(Price_List,ROUNDUP(COLUMNS($G:BF)/3,0)))","v":15},null,null,{"$f":"IF(BI$7=0,0,INDEX(Price_List,ROUNDUP(COLUMNS($G:BI)/3,0)))","v":20},null,null,{"$f":"IF(BL$7=0,0,INDEX(Price_List,ROUNDUP(COLUMNS($G:BL)/3,0)))","v":20},null,null,{"$f":"IF(BO$7=0,0,INDEX(Price_List,ROUNDUP(COLUMNS($G:BO)/3,0)))","v":20},null,null,{"$f":"IF(BR$7=0,0,INDEX(Price_List,ROUNDUP(COLUMNS($G:BR)/3,0)))","v":15},null,null,{"$f":"IF(BU$7=0,0,INDEX(Price_List,ROUNDUP(COLUMNS($G:BU)/3,0)))","v":20},null,null,{"$f":"IF(BX$7=0,0,INDEX(Price_List,ROUNDUP(COLUMNS($G:BX)/3,0)))","v":20},null,null,{"$f":"IF(CA$7=0,0,INDEX(Price_List,ROUNDUP(COLUMNS($G:CA)/3,0)))","v":15},null,null,{"$f":"IF(CD$7=0,0,INDEX(Price_List,ROUNDUP(COLUMNS($G:CD)/3,0)))","v":15},null,null,{"$f":"IF(CG$7=0,0,INDEX(Price_List,ROUNDUP(COLUMNS($G:CG)/3,0)))","v":20},null,null,{"$f":"IF(CJ$7=0,0,INDEX(Price_List,ROUNDUP(COLUMNS($G:CJ)/3,0)))","v":20},null,null,{"$f":"IF(CM$7=0,0,INDEX(Price_List,ROUNDUP(COLUMNS($G:CM)/3,0)))","v":10},null,null,{"$f":"IF(CP$7=0,0,INDEX(Price_List,ROUNDUP(COLUMNS($G:CP)/3,0)))","v":15},null,null,{"$f":"IF(CS$7=0,0,INDEX(Price_List,ROUNDUP(COLUMNS($G:CS)/3,0)))","v":15},null,null,{"$f":"IF(CV$7=0,0,INDEX(Price_List,ROUNDUP(COLUMNS($G:CV)/3,0)))","v":16},null,null,{"$f":"IF(CY$7=0,0,INDEX(Price_List,ROUNDUP(COLUMNS($G:CY)/3,0)))","v":15},null,null,{"$f":"IF(DB$7=0,0,INDEX(Price_List,ROUNDUP(COLUMNS($G:DB)/3,0)))","v":15},null,null,{"$f":"IF(DE$7=0,0,INDEX(Price_List,ROUNDUP(COLUMNS($G:DE)/3,0)))","v":10},null,null,{"$f":"IF(DH$7=0,0,INDEX(Price_List,ROUNDUP(COLUMNS($G:DH)/3,0)))","v":10},null,null,{"$f":"IF(DK$7=0,0,INDEX(Price_List,ROUNDUP(COLUMNS($G:DK)/3,0)))","v":20},null,null,{"$f":"IF(DN$7=0,0,INDEX(Price_List,ROUNDUP(COLUMNS($G:DN)/3,0)))","v":20},null,null,{"$f":"IF(DQ$7=0,0,INDEX(Price_List,ROUNDUP(COLUMNS($G:DQ)/3,0)))","v":15},null,null,{"$f":"IF(DT$7=0,0,INDEX(Price_List,ROUNDUP(COLUMNS($G:DT)/3,0)))","v":15},null,null,{"$f":"IF(DW$7=0,0,INDEX(Price_List,ROUNDUP(COLUMNS($G:DW)/3,0)))","v":12},null,null,{"$f":"IF(DZ$7=0,0,INDEX(Price_List,ROUNDUP(COLUMNS($G:DZ)/3,0)))","v":18},null,null,{"$f":"IF(EC$7=0,0,INDEX(Price_List,ROUNDUP(COLUMNS($G:EC)/3,0)))","v":12},null,null,{"$f":"IF(EF$7=0,0,INDEX(Price_List,ROUNDUP(COLUMNS($G:EF)/3,0)))","v":12},null,null,{"$f":"IF(EI$7=0,0,INDEX(Price_List,ROUNDUP(COLUMNS($G:EI)/3,0)))","v":25},null,null,{"$f":"IF(EL$7=0,0,INDEX(Price_List,ROUNDUP(COLUMNS($G:EL)/3,0)))","v":12},null,null,{"$f":"IF(EO$7=0,0,INDEX(Price_List,ROUNDUP(COLUMNS($G:EO)/3,0)))","v":12},null,null,{"$f":"IF(ER$7=0,0,INDEX(Price_List,ROUNDUP(COLUMNS($G:ER)/3,0)))","v":12},null,null,"เงินเชื่อ","เงินสด"]
[null,null,null,null,null,"คงเหลือ(ตามบัญชี)",{"$f":"IF(G$7=0,0,INDEX(INDIRECT(Order_Rng),ROUNDUP(COLUMNS($G:G)/3,0)))","v":0},null,null,{"$f":"IF(J$7=0,0,INDEX(INDIRECT(Order_Rng),ROUNDUP(COLUMNS($G:J)/3,0)))","v":0},null,null,{"$f":"IF(M$7=0,0,INDEX(INDIRECT(Order_Rng),ROUNDUP(COLUMNS($G:M)/3,0)))","v":0},null,null,{"$f":"IF(P$7=0,0,INDEX(INDIRECT(Order_Rng),ROUNDUP(COLUMNS($G:P)/3,0)))","v":0},null,null,{"$f":"IF(S$7=0,0,INDEX(INDIRECT(Order_Rng),ROUNDUP(COLUMNS($G:S)/3,0)))","v":0},null,null,{"$f":"IF(V$7=0,0,INDEX(INDIRECT(Order_Rng),ROUNDUP(COLUMNS($G:V)/3,0)))","v":0},null,null,{"$f":"IF(Y$7=0,0,INDEX(INDIRECT(Order_Rng),ROUNDUP(COLUMNS($G:Y)/3,0)))","v":0},null,null,{"$f":"IF(AB$7=0,0,INDEX(INDIRECT(Order_Rng),ROUNDUP(COLUMNS($G:AB)/3,0)))","v":0},null,null,{"$f":"IF(AE$7=0,0,INDEX(INDIRECT(Order_Rng),ROUNDUP(COLUMNS($G:AE)/3,0)))","v":0},null,null,{"$f":"IF(AH$7=0,0,INDEX(INDIRECT(Order_Rng),ROUNDUP(COLUMNS($G:AH)/3,0)))","v":0},null,null,{"$f":"IF(AK$7=0,0,INDEX(INDIRECT(Order_Rng),ROUNDUP(COLUMNS($G:AK)/3,0)))","v":0},null,null,{"$f":"IF(AN$7=0,0,INDEX(INDIRECT(Order_Rng),ROUNDUP(COLUMNS($G:AN)/3,0)))","v":0},null,null,{"$f":"IF(AQ$7=0,0,INDEX(INDIRECT(Order_Rng),ROUNDUP(COLUMNS($G:AQ)/3,0)))","v":0},null,null,{"$f":"IF(AT$7=0,0,INDEX(INDIRECT(Order_Rng),ROUNDUP(COLUMNS($G:AT)/3,0)))","v":0},null,null,{"$f":"IF(AW$7=0,0,INDEX(INDIRECT(Order_Rng),ROUNDUP(COLUMNS($G:AW)/3,0)))","v":0},null,null,{"$f":"IF(AZ$7=0,0,INDEX(INDIRECT(Order_Rng),ROUNDUP(COLUMNS($G:AZ)/3,0)))","v":0},null,null,{"$f":"IF(BC$7=0,0,INDEX(INDIRECT(Order_Rng),ROUNDUP(COLUMNS($G:BC)/3,0)))","v":0},null,null,{"$f":"IF(BF$7=0,0,INDEX(INDIRECT(Order_Rng),ROUNDUP(COLUMNS($G:BF)/3,0)))","v":0},null,null,{"$f":"IF(BI$7=0,0,INDEX(INDIRECT(Order_Rng),ROUNDUP(COLUMNS($G:BI)/3,0)))","v":0},null,null,{"$f":"IF(BL$7=0,0,INDEX(INDIRECT(Order_Rng),ROUNDUP(COLUMNS($G:BL)/3,0)))","v":0},null,null,{"$f":"IF(BO$7=0,0,INDEX(INDIRECT(Order_Rng),ROUNDUP(COLUMNS($G:BO)/3,0)))","v":0},null,null,{"$f":"IF(BR$7=0,0,INDEX(INDIRECT(Order_Rng),ROUNDUP(COLUMNS($G:BR)/3,0)))","v":0},null,null,{"$f":"IF(BU$7=0,0,INDEX(INDIRECT(Order_Rng),ROUNDUP(COLUMNS($G:BU)/3,0)))","v":0},null,null,{"$f":"IF(BX$7=0,0,INDEX(INDIRECT(Order_Rng),ROUNDUP(COLUMNS($G:BX)/3,0)))","v":0},null,null,{"$f":"IF(CA$7=0,0,INDEX(INDIRECT(Order_Rng),ROUNDUP(COLUMNS($G:CA)/3,0)))","v":0},null,null,{"$f":"IF(CD$7=0,0,INDEX(INDIRECT(Order_Rng),ROUNDUP(COLUMNS($G:CD)/3,0)))","v":0},null,null,{"$f":"IF(CG$7=0,0,INDEX(INDIRECT(Order_Rng),ROUNDUP(COLUMNS($G:CG)/3,0)))","v":0},null,null,{"$f":"IF(CJ$7=0,0,INDEX(INDIRECT(Order_Rng),ROUNDUP(COLUMNS($G:CJ)/3,0)))","v":0},null,null,{"$f":"IF(CM$7=0,0,INDEX(INDIRECT(Order_Rng),ROUNDUP(COLUMNS($G:CM)/3,0)))","v":0},null,null,{"$f":"IF(CP$7=0,0,INDEX(INDIRECT(Order_Rng),ROUNDUP(COLUMNS($G:CP)/3,0)))","v":0},null,null,{"$f":"IF(CS$7=0,0,INDEX(INDIRECT(Order_Rng),ROUNDUP(COLUMNS($G:CS)/3,0)))","v":0},null,null,{"$f":"IF(CV$7=0,0,INDEX(INDIRECT(Order_Rng),ROUNDUP(COLUMNS($G:CV)/3,0)))","v":0},null,null,{"$f":"IF(CY$7=0,0,INDEX(INDIRECT(Order_Rng),ROUNDUP(COLUMNS($G:CY)/3,0)))","v":0},null,null,{"$f":"IF(DB$7=0,0,INDEX(INDIRECT(Order_Rng),ROUNDUP(COLUMNS($G:DB)/3,0)))","v":0},null,null,{"$f":"IF(DE$7=0,0,INDEX(INDIRECT(Order_Rng),ROUNDUP(COLUMNS($G:DE)/3,0)))","v":0},null,null,{"$f":"IF(DH$7=0,0,INDEX(INDIRECT(Order_Rng),ROUNDUP(COLUMNS($G:DH)/3,0)))","v":0},null,null,{"$f":"IF(DK$7=0,0,INDEX(INDIRECT(Order_Rng),ROUNDUP(COLUMNS($G:DK)/3,0)))","v":0},null,null,{"$f":"IF(DN$7=0,0,INDEX(INDIRECT(Order_Rng),ROUNDUP(COLUMNS($G:DN)/3,0)))","v":0},null,null,{"$f":"IF(DQ$7=0,0,INDEX(INDIRECT(Order_Rng),ROUNDUP(COLUMNS($G:DQ)/3,0)))","v":0},null,null,{"$f":"IF(DT$7=0,0,INDEX(INDIRECT(Order_Rng),ROUNDUP(COLUMNS($G:DT)/3,0)))","v":0},null,null,{"$f":"IF(DW$7=0,0,INDEX(INDIRECT(Order_Rng),ROUNDUP(COLUMNS($G:DW)/3,0)))","v":0},null,null,{"$f":"IF(DZ$7=0,0,INDEX(INDIRECT(Order_Rng),ROUNDUP(COLUMNS($G:DZ)/3,0)))","v":0},null,null,{"$f":"IF(EC$7=0,0,INDEX(INDIRECT(Order_Rng),ROUNDUP(COLUMNS($G:EC)/3,0)))","v":0},null,null,{"$f":"IF(EF$7=0,0,INDEX(INDIRECT(Order_Rng),ROUNDUP(COLUMNS($G:EF)/3,0)))","v":0},null,null,{"$f":"IF(EI$7=0,0,INDEX(INDIRECT(Order_Rng),ROUNDUP(COLUMNS($G:EI)/3,0)))","v":0},null,null,{"$f":"IF(EL$7=0,0,INDEX(INDIRECT(Order_Rng),ROUNDUP(COLUMNS($G:EL)/3,0)))","v":0},null,null,{"$f":"IF(EO$7=0,0,INDEX(INDIRECT(Order_Rng),ROUNDUP(COLUMNS($G:EO)/3,0)))","v":0},null,null,{"$f":"IF(ER$7=0,0,INDEX(INDIRECT(Order_Rng),ROUNDUP(COLUMNS($G:ER)/3,0)))","v":0}]
[{"$f":"IF(OR($B10=\"\",COUNTIF($B$10:$B10,$B10)>1,LEN(TRIM($B10))<>10,ISNUMBER(--MID(TRIM($B10),5,1))),\"-\",MAX(COUNT($A$9:$A9)+1))","v":"-"}]
[{"$f":"IF(OR($B11=\"\",COUNTIF($B$10:$B11,$B11)>1,LEN(TRIM($B11))<>10,ISNUMBER(--MID(TRIM($B11),5,1))),\"-\",MAX(COUNT($A$9:$A10)+1))","v":"-"},null,null,null,{"$f":"IF(D11=\"\",\"\",D11-D10)","v":""}]
[{"$f":"IF(OR($B12=\"\",COUNTIF($B$10:$B12,$B12)>1,LEN(TRIM($B12))<>10,ISNUMBER(--MID(TRIM($B12),5,1))),\"-\",MAX(COUNT($A$9:$A11)+1))","v":"-"},null,null,null,{"$f":"IF(D12=\"\",\"\",D12-D11)","v":""}]
[{"$f":"IF(OR($B13=\"\",COUNTIF($B$10:$B13,$B13)>1,LEN(TRIM($B13))<>10,ISNUMBER(--MID(TRIM($B13),5,1))),\"-\",MAX(COUNT($A$9:$A12)+1))","v":"-"},null,null,null,""]
[{"$f":"IF(OR($B14=\"\",COUNTIF($B$10:$B14,$B14)>1,LEN(TRIM($B14))<>10,ISNUMBER(--MID(TRIM($B14),5,1))),\"-\",MAX(COUNT($A$9:$A13)+1))","v":"-"},null,null,null,""]
[{"$f":"IF(OR($B15=\"\",COUNTIF($B$10:$B15,$B15)>1,LEN(TRIM($B15))<>10,ISNUMBER(--MID(TRIM($B15),5,1))),\"-\",MAX(COUNT($A$9:$A14)+1))","v":"-"},null,null,null,""]
[{"$f":"IF(OR($B16=\"\",COUNTIF($B$10:$B16,$B16)>1,LEN(TRIM($B16))<>10,ISNUMBER(--MID(TRIM($B16),5,1))),\"-\",MAX(COUNT($A$9:$A15)+1))","v":"-"},null,null,null,""]
[{"$f":"IF(OR($B17=\"\",COUNTIF($B$10:$B17,$B17)>1,LEN(TRIM($B17))<>10,ISNUMBER(--MID(TRIM($B17),5,1))),\"-\",MAX(COUNT($A$9:$A16)+1))","v":"-"},null,null,null,""]
[{"$f":"IF(OR($B18=\"\",COUNTIF($B$10:$B18,$B18)>1,LEN(TRIM($B18))<>10,ISNUMBER(--MID(TRIM($B18),5,1))),\"-\",MAX(COUNT($A$9:$A17)+1))","v":"-"},null,null,null,""]
[{"$f":"IF(OR($B19=\"\",COUNTIF($B$10:$B19,$B19)>1,LEN(TRIM($B19))<>10,ISNUMBER(--MID(TRIM($B19),5,1))),\"-\",MAX(COUNT($A$9:$A18)+1))","v":"-"},null,null,null,""]
[{"$f":"IF(OR($B20=\"\",COUNTIF($B$10:$B20,$B20)>1,LEN(TRIM($B20))<>10,ISNUMBER(--MID(TRIM($B20),5,1))),\"-\",MAX(COUNT($A$9:$A19)+1))","v":"-"},null,null,null,""]
[{"$f":"IF(OR($B21=\"\",COUNTIF($B$10:$B21,$B21)>1,LEN(TRIM($B21))<>10,ISNUMBER(--MID(TRIM($B21),5,1))),\"-\",MAX(COUNT($A$9:$A20)+1))","v":"-"},null,null,null,""]
[{"$f":"IF(OR($B22=\"\",COUNTIF($B$10:$B22,$B22)>1,LEN(TRIM($B22))<>10,ISNUMBER(--MID(TRIM($B22),5,1))),\"-\",MAX(COUNT($A$9:$A21)+1))","v":"-"},null,null,null,""]
[{"$f":"IF(OR($B23=\"\",COUNTIF($B$10:$B23,$B23)>1,LEN(TRIM($B23))<>10,ISNUMBER(--MID(TRIM($B23),5,1))),\"-\",MAX(COUNT($A$9:$A22)+1))","v":"-"},null,null,null,""]
[{"$f":"IF(OR($B24=\"\",COUNTIF($B$10:$B24,$B24)>1,LEN(TRIM($B24))<>10,ISNUMBER(--MID(TRIM($B24),5,1))),\"-\",MAX(COUNT($A$9:$A23)+1))","v":"-"},null,null,null,""]
[{"$f":"IF(OR($B25=\"\",COUNTIF($B$10:$B25,$B25)>1,LEN(TRIM($B25))<>10,ISNUMBER(--MID(TRIM($B25),5,1))),\"-\",MAX(COUNT($A$9:$A24)+1))","v":"-"},null,null,null,""]
[{"$f":"IF(OR($B26=\"\",COUNTIF($B$10:$B26,$B26)>1,LEN(TRIM($B26))<>10,ISNUMBER(--MID(TRIM($B26),5,1))),\"-\",MAX(COUNT($A$9:$A25)+1))","v":"-"},null,null,null,""]
[{"$f":"IF(OR($B27=\"\",COUNTIF($B$10:$B27,$B27)>1,LEN(TRIM($B27))<>10,ISNUMBER(--MID(TRIM($B27),5,1))),\"-\",MAX(COUNT($A$9:$A26)+1))","v":"-"},null,null,null,""]
[{"$f":"IF(OR($B28=\"\",COUNTIF($B$10:$B28,$B28)>1,LEN(TRIM($B28))<>10,ISNUMBER(--MID(TRIM($B28),5,1))),\"-\",MAX(COUNT($A$9:$A27)+1))","v":"-"},null,null,null,""]
[{"$f":"IF(OR($B29=\"\",COUNTIF($B$10:$B29,$B29)>1,LEN(TRIM($B29))<>10,ISNUMBER(--MID(TRIM($B29),5,1))),\"-\",MAX(COUNT($A$9:$A28)+1))","v":"-"},null,null,null,""]
[{"$f":"IF(OR($B30=\"\",COUNTIF($B$10:$B30,$B30)>1,LEN(TRIM($B30))<>10,ISNUMBER(--MID(TRIM($B30),5,1))),\"-\",MAX(COUNT($A$9:$A29)+1))","v":"-"},null,null,null,""]
[{"$f":"IF(OR($B31=\"\",COUNTIF($B$10:$B31,$B31)>1,LEN(TRIM($B31))<>10,ISNUMBER(--MID(TRIM($B31),5,1))),\"-\",MAX(COUNT($A$9:$A30)+1))","v":"-"},null,null,null,""]
[{"$f":"IF(OR($B32=\"\",COUNTIF($B$10:$B32,$B32)>1,LEN(TRIM($B32))<>10,ISNUMBER(--MID(TRIM($B32),5,1))),\"-\",MAX(COUNT($A$9:$A31)+1))","v":"-"},null,null,null,""]
[{"$f":"IF(OR($B33=\"\",COUNTIF($B$10:$B33,$B33)>1,LEN(TRIM($B33))<>10,ISNUMBER(--MID(TRIM($B33),5,1))),\"-\",MAX(COUNT($A$9:$A32)+1))","v":"-"},null,null,null,""]
[{"$f":"IF(OR($B34=\"\",COUNTIF($B$10:$B34,$B34)>1,LEN(TRIM($B34))<>10,ISNUMBER(--MID(TRIM($B34),5,1))),\"-\",MAX(COUNT($A$9:$A33)+1))","v":"-"},null,null,null,""]
[{"$f":"IF(OR($B35=\"\",COUNTIF($B$10:$B35,$B35)>1,LEN(TRIM($B35))<>10,ISNUMBER(--MID(TRIM($B35),5,1))),\"-\",MAX(COUNT($A$9:$A34)+1))","v":"-"},null,null,null,""]
[{"$f":"IF(OR($B36=\"\",COUNTIF($B$10:$B36,$B36)>1,LEN(TRIM($B36))<>10,ISNUMBER(--MID(TRIM($B36),5,1))),\"-\",MAX(COUNT($A$9:$A35)+1))","v":"-"},null,null,null,""]
[{"$f":"IF(OR($B37=\"\",COUNTIF($B$10:$B37,$B37)>1,LEN(TRIM($B37))<>10,ISNUMBER(--MID(TRIM($B37),5,1))),\"-\",MAX(COUNT($A$9:$A36)+1))","v":"-"},null,null,null,""]
[{"$f":"IF(OR($B38=\"\",COUNTIF($B$10:$B38,$B38)>1,LEN(TRIM($B38))<>10,ISNUMBER(--MID(TRIM($B38),5,1))),\"-\",MAX(COUNT($A$9:$A37)+1))","v":"-"},null,null,null,""]
[{"$f":"IF(OR($B39=\"\",COUNTIF($B$10:$B39,$B39)>1,LEN(TRIM($B39))<>10,ISNUMBER(--MID(TRIM($B39),5,1))),\"-\",MAX(COUNT($A$9:$A38)+1))","v":"-"},null,null,null,""]
[{"$f":"IF(OR($B40=\"\",COUNTIF($B$10:$B40,$B40)>1,LEN(TRIM($B40))<>10,ISNUMBER(--MID(TRIM($B40),5,1))),\"-\",MAX(COUNT($A$9:$A39)+1))","v":"-"},null,null,null,""]
[{"$f":"IF(OR($B41=\"\",COUNTIF($B$10:$B41,$B41)>1,LEN(TRIM($B41))<>10,ISNUMBER(--MID(TRIM($B41),5,1))),\"-\",MAX(COUNT($A$9:$A40)+1))","v":"-"},null,null,null,""]
[{"$f":"IF(OR($B42=\"\",COUNTIF($B$10:$B42,$B42)>1,LEN(TRIM($B42))<>10,ISNUMBER(--MID(TRIM($B42),5,1))),\"-\",MAX(COUNT($A$9:$A41)+1))","v":"-"},null,null,null,""]
[{"$f":"IF(OR($B43=\"\",COUNTIF($B$10:$B43,$B43)>1,LEN(TRIM($B43))<>10,ISNUMBER(--MID(TRIM($B43),5,1))),\"-\",MAX(COUNT($A$9:$A42)+1))","v":"-"},null,null,null,""]
[{"$f":"IF(OR($B44=\"\",COUNTIF($B$10:$B44,$B44)>1,LEN(TRIM($B44))<>10,ISNUMBER(--MID(TRIM($B44),5,1))),\"-\",MAX(COUNT($A$9:$A43)+1))","v":"-"},null,null,null,""]
[{"$f":"IF(OR($B45=\"\",COUNTIF($B$10:$B45,$B45)>1,LEN(TRIM($B45))<>10,ISNUMBER(--MID(TRIM($B45),5,1))),\"-\",MAX(COUNT($A$9:$A44)+1))","v":"-"},null,null,null,""]
[{"$f":"IF(OR($B46=\"\",COUNTIF($B$10:$B46,$B46)>1,LEN(TRIM($B46))<>10,ISNUMBER(--MID(TRIM($B46),5,1))),\"-\",MAX(COUNT($A$9:$A45)+1))","v":"-"},null,null,null,""]
[{"$f":"IF(OR($B47=\"\",COUNTIF($B$10:$B47,$B47)>1,LEN(TRIM($B47))<>10,ISNUMBER(--MID(TRIM($B47),5,1))),\"-\",MAX(COUNT($A$9:$A46)+1))","v":"-"},null,null,null,""]
[{"$f":"IF(OR($B48=\"\",COUNTIF($B$10:$B48,$B48)>1,LEN(TRIM($B48))<>10,ISNUMBER(--MID(TRIM($B48),5,1))),\"-\",MAX(COUNT($A$9:$A47)+1))","v":"-"},null,null,null,""]
[{"$f":"IF(OR($B49=\"\",COUNTIF($B$10:$B49,$B49)>1,LEN(TRIM($B49))<>10,ISNUMBER(--MID(TRIM($B49),5,1))),\"-\",MAX(COUNT($A$9:$A48)+1))","v":"-"},null,null,null,""]
[{"$f":"IF(OR($B50=\"\",COUNTIF($B$10:$B50,$B50)>1,LEN(TRIM($B50))<>10,ISNUMBER(--MID(TRIM($B50),5,1))),\"-\",MAX(COUNT($A$9:$A49)+1))","v":"-"},null,null,null,""]
[{"$f":"IF(OR($B51=\"\",COUNTIF($B$10:$B51,$B51)>1,LEN(TRIM($B51))<>10,ISNUMBER(--MID(TRIM($B51),5,1))),\"-\",MAX(COUNT($A$9:$A50)+1))","v":"-"},null,null,null,""]
[{"$f":"IF(OR($B52=\"\",COUNTIF($B$10:$B52,$B52)>1,LEN(TRIM($B52))<>10,ISNUMBER(--MID(TRIM($B52),5,1))),\"-\",MAX(COUNT($A$9:$A51)+1))","v":"-"},null,null,null,""]
[{"$f":"IF(OR($B53=\"\",COUNTIF($B$10:$B53,$B53)>1,LEN(TRIM($B53))<>10,ISNUMBER(--MID(TRIM($B53),5,1))),\"-\",MAX(COUNT($A$9:$A52)+1))","v":"-"},null,null,null,""]
[{"$f":"IF(OR($B54=\"\",COUNTIF($B$10:$B54,$B54)>1,LEN(TRIM($B54))<>10,ISNUMBER(--MID(TRIM($B54),5,1))),\"-\",MAX(COUNT($A$9:$A53)+1))","v":"-"},null,null,null,""]
[{"$f":"IF(OR($B55=\"\",COUNTIF($B$10:$B55,$B55)>1,LEN(TRIM($B55))<>10,ISNUMBER(--MID(TRIM($B55),5,1))),\"-\",MAX(COUNT($A$9:$A54)+1))","v":"-"},null,null,null,""]
[{"$f":"IF(OR($B56=\"\",COUNTIF($B$10:$B56,$B56)>1,LEN(TRIM($B56))<>10,ISNUMBER(--MID(TRIM($B56),5,1))),\"-\",MAX(COUNT($A$9:$A55)+1))","v":"-"},null,null,null,""]
[{"$f":"IF(OR($B57=\"\",COUNTIF($B$10:$B57,$B57)>1,LEN(TRIM($B57))<>10,ISNUMBER(--MID(TRIM($B57),5,1))),\"-\",MAX(COUNT($A$9:$A56)+1))","v":"-"},null,null,null,""]
[{"$f":"IF(OR($B58=\"\",COUNTIF($B$10:$B58,$B58)>1,LEN(TRIM($B58))<>10,ISNUMBER(--MID(TRIM($B58),5,1))),\"-\",MAX(COUNT($A$9:$A57)+1))","v":"-"},null,null,null,""]
[{"$f":"IF(OR($B59=\"\",COUNTIF($B$10:$B59,$B59)>1,LEN(TRIM($B59))<>10,ISNUMBER(--MID(TRIM($B59),5,1))),\"-\",MAX(COUNT($A$9:$A58)+1))","v":"-"},null,null,null,""]
[{"$f":"IF(OR($B60=\"\",COUNTIF($B$10:$B60,$B60)>1,LEN(TRIM($B60))<>10,ISNUMBER(--MID(TRIM($B60),5,1))),\"-\",MAX(COUNT($A$9:$A59)+1))","v":"-"},null,null,null,""]
[{"$f":"IF(OR($B61=\"\",COUNTIF($B$10:$B61,$B61)>1,LEN(TRIM($B61))<>10,ISNUMBER(--MID(TRIM($B61),5,1))),\"-\",MAX(COUNT($A$9:$A60)+1))","v":"-"},null,null,null,""]
[{"$f":"IF(OR($B62=\"\",COUNTIF($B$10:$B62,$B62)>1,LEN(TRIM($B62))<>10,ISNUMBER(--MID(TRIM($B62),5,1))),\"-\",MAX(COUNT($A$9:$A61)+1))","v":"-"},null,null,null,""]
[{"$f":"IF(OR($B63=\"\",COUNTIF($B$10:$B63,$B63)>1,LEN(TRIM($B63))<>10,ISNUMBER(--MID(TRIM($B63),5,1))),\"-\",MAX(COUNT($A$9:$A62)+1))","v":"-"},null,null,null,""]
[{"$f":"IF(OR($B64=\"\",COUNTIF($B$10:$B64,$B64)>1,LEN(TRIM($B64))<>10,ISNUMBER(--MID(TRIM($B64),5,1))),\"-\",MAX(COUNT($A$9:$A63)+1))","v":"-"},null,null,null,""]
[{"$f":"IF(OR($B65=\"\",COUNTIF($B$10:$B65,$B65)>1,LEN(TRIM($B65))<>10,ISNUMBER(--MID(TRIM($B65),5,1))),\"-\",MAX(COUNT($A$9:$A64)+1))","v":"-"},null,null,null,""]
[{"$f":"IF(OR($B66=\"\",COUNTIF($B$10:$B66,$B66)>1,LEN(TRIM($B66))<>10,ISNUMBER(--MID(TRIM($B66),5,1))),\"-\",MAX(COUNT($A$9:$A65)+1))","v":"-"},null,null,null,""]
[{"$f":"IF(OR($B67=\"\",COUNTIF($B$10:$B67,$B67)>1,LEN(TRIM($B67))<>10,ISNUMBER(--MID(TRIM($B67),5,1))),\"-\",MAX(COUNT($A$9:$A66)+1))","v":"-"},null,null,null,""]
[{"$f":"IF(OR($B68=\"\",COUNTIF($B$10:$B68,$B68)>1,LEN(TRIM($B68))<>10,ISNUMBER(--MID(TRIM($B68),5,1))),\"-\",MAX(COUNT($A$9:$A67)+1))","v":"-"},null,null,null,""]
[{"$f":"IF(OR($B69=\"\",COUNTIF($B$10:$B69,$B69)>1,LEN(TRIM($B69))<>10,ISNUMBER(--MID(TRIM($B69),5,1))),\"-\",MAX(COUNT($A$9:$A68)+1))","v":"-"},null,null,null,""]
[{"$f":"IF(OR($B70=\"\",COUNTIF($B$10:$B70,$B70)>1,LEN(TRIM($B70))<>10,ISNUMBER(--MID(TRIM($B70),5,1))),\"-\",MAX(COUNT($A$9:$A69)+1))","v":"-"},null,null,null,""]
[{"$f":"IF(OR($B71=\"\",COUNTIF($B$10:$B71,$B71)>1,LEN(TRIM($B71))<>10,ISNUMBER(--MID(TRIM($B71),5,1))),\"-\",MAX(COUNT($A$9:$A70)+1))","v":"-"},null,null,null,""]
[{"$f":"IF(OR($B72=\"\",COUNTIF($B$10:$B72,$B72)>1,LEN(TRIM($B72))<>10,ISNUMBER(--MID(TRIM($B72),5,1))),\"-\",MAX(COUNT($A$9:$A71)+1))","v":"-"},null,null,null,""]
[{"$f":"IF(OR($B73=\"\",COUNTIF($B$10:$B73,$B73)>1,LEN(TRIM($B73))<>10,ISNUMBER(--MID(TRIM($B73),5,1))),\"-\",MAX(COUNT($A$9:$A72)+1))","v":"-"},null,null,null,""]
[{"$f":"IF(OR($B74=\"\",COUNTIF($B$10:$B74,$B74)>1,LEN(TRIM($B74))<>10,ISNUMBER(--MID(TRIM($B74),5,1))),\"-\",MAX(COUNT($A$9:$A73)+1))","v":"-"},null,null,null,""]
[{"$f":"IF(OR($B75=\"\",COUNTIF($B$10:$B75,$B75)>1,LEN(TRIM($B75))<>10,ISNUMBER(--MID(TRIM($B75),5,1))),\"-\",MAX(COUNT($A$9:$A74)+1))","v":"-"},null,null,null,""]
[{"$f":"IF(OR($B76=\"\",COUNTIF($B$10:$B76,$B76)>1,LEN(TRIM($B76))<>10,ISNUMBER(--MID(TRIM($B76),5,1))),\"-\",MAX(COUNT($A$9:$A75)+1))","v":"-"},null,null,null,{"$f":"IF(D76=\"\",\"\",D76-D75)","v":""}]
[{"$f":"IF(OR($B77=\"\",COUNTIF($B$10:$B77,$B77)>1,LEN(TRIM($B77))<>10,ISNUMBER(--MID(TRIM($B77),5,1))),\"-\",MAX(COUNT($A$9:$A76)+1))","v":"-"},null,null,null,""]
[{"$f":"IF(OR($B78=\"\",COUNTIF($B$10:$B78,$B78)>1,LEN(TRIM($B78))<>10,ISNUMBER(--MID(TRIM($B78),5,1))),\"-\",MAX(COUNT($A$9:$A77)+1))","v":"-"},null,null,null,""]
[{"$f":"IF(OR($B79=\"\",COUNTIF($B$10:$B79,$B79)>1,LEN(TRIM($B79))<>10,ISNUMBER(--MID(TRIM($B79),5,1))),\"-\",MAX(COUNT($A$9:$A78)+1))","v":"-"},null,null,null,""]
["รวมของขาย|ของเสีย|เหลือบนเชลฟ์",null,null,null,null,null,{"$f":"SUM(G10:G79)","v":0},0,0,{"$f":"SUM(J10:J79)","v":0},0,0,0,0,0,0,0,0,0,0,0,0,0,0,0,0,0,0,0,0,0,0,0,0,0,0,0,0,0,0,0,0,0,0,0,0,0,0,0,0,0,0,0,0,0,0,0,0,0,0,0,0,0,0,0,0,0,0,0,0,0,0,0,{"$f":"SUM(BV10:BV79)","v":0},0,0,0,0,0,0,0,0,0,0,0,0,0,0,0,0,0,0,0,0,0,0,0,0,0,0,0,0,0,0,0,0,0,0,0,0,0,0,0,0,0,0,0,0,0,0,0,0,0,0,0,0,0,0,0,0,0,0,0,0,0,{"$f":"SUM(EF10:EF79)","v":0},0,0,{"$f":"SUM(EI10:EI79)","v":0},0,0,0,0,0,{"$f":"SUM(EO10:EO79)","v":0},0,0,0,0,0,"รวมเงินเชื่อ","รวมเงินสด","ภาษี","รวมยอดขาย"]
["ของเหลือ",null,null,null,null,null,{"$f":"G80+H80-G9","v":0},null,null,{"$f":"J80+K80-J9","v":0},null,null,{"$f":"M80+N80-M9","v":0},null,null,{"$f":"P80+Q80-P9","v":0},null,null,{"$f":"S80+T80-S9","v":0},null,null,{"$f":"V80+W80-V9","v":0},null,null,{"$f":"Y80+Z80-Y9","v":0},null,null,{"$f":"AB80+AC80-AB9","v":0},null,null,{"$f":"AE80+AF80-AE9","v":0},null,null,{"$f":"AH80+AI80-AH9","v":0},null,null,{"$f":"AK80+AL80-AK9","v":0},null,null,{"$f":"AN80+AO80-AN9","v":0},null,null,{"$f":"AQ80+AR80-AQ9","v":0},null,null,{"$f":"AT80+AU80-AT9","v":0},null,null,{"$f":"AW80+AX80-AW9","v":0},null,null,{"$f":"AZ80+BA80-AZ9","v":0},null,null,{"$f":"BC80+BD80-BC9","v":0},null,null,{"$f":"BF80+BG80-BF9","v":0},null,null,{"$f":"BI80+BJ80-BI9","v":0},null,null,{"$f":"BL80+BM80-BL9","v":0},null,null,{"$f":"BO80+BP80-BO9","v":0},null,null,{"$f":"BR80+BS80-BR9","v":0},null,null,{"$f":"BU80+BV80-BU9","v":0},null,null,{"$f":"BX80+BY80-BX9","v":0},null,null,{"$f":"CA80+CB80-CA9","v":0},null,null,{"$f":"CD80+CE80-CD9","v":0},null,null,{"$f":"CG80+CH80-CG9","v":0},null,null,{"$f":"CJ80+CK80-CJ9","v":0},null,null,{"$f":"CM80+CN80-CM9","v":0},null,null,{"$f":"CP80+CQ80-CP9","v":0},null,null,{"$f":"CS80+CT80-CS9","v":0},null,null,{"$f":"CV80+CW80-CV9","v":0},null,null,{"$f":"CY80+CZ80-CY9","v":0},null,null,{"$f":"DB80+DC80-DB9","v":0},null,null,{"$f":"DE80+DF80-DE9","v":0},null,null,{"$f":"DH80+DI80-DH9","v":0},null,null,{"$f":"DK80+DL80-DK9","v":0},null,null,{"$f":"DN80+DO80-DN9","v":0},null,null,{"$f":"DQ80+DR80-DQ9","v":0},null,null,{"$f":"DT80+DU80-DT9","v":0},null,null,{"$f":"DW80+DX80-DW9","v":0},null,null,{"$f":"DZ80+EA80-DZ9","v":0},null,null,{"$f":"EC80+ED80-EC9","v":0},null,null,{"$f":"EF80+EG80-EF9","v":0},null,null,{"$f":"EI80+EJ80-EI9","v":0},null,null,{"$f":"EL80+EM80-EL9","v":0},null,null,{"$f":"EO80+EP80-EO9","v":0},null,null,{"$f":"ER80+ES80-ER9","v":0},null,null,{"$f":"SUM(EU10:EU79)","v":0},{"$f":"SUM(EV10:EV79)","v":0},{"$f":"SUM(EW10:EW79)","v":0},{"$f":"SUM(EX10:EX79)","v":0}]
["เฉลี่ย",null,null,"เหลือ/เสีย(จริง)",null,null,{"$f":"INDIRECT(\"F\"&ROW($G$87)+ROUNDUP(COLUMNS($G:G)/3,0))","v":0},{"$f":"INDIRECT(\"G\"&ROW($G$87)+ROUNDUP(COLUMNS($G:H)/3,0))","v":0},null,{"$f":"INDIRECT(\"F\"&ROW($G$87)+ROUNDUP(COLUMNS($G:J)/3,0))","v":0},{"$f":"INDIRECT(\"G\"&ROW($G$87)+ROUNDUP(COLUMNS($G:K)/3,0))","v":0},null,{"$f":"INDIRECT(\"F\"&ROW($G$87)+ROUNDUP(COLUMNS($G:M)/3,0))","v":0},{"$f":"INDIRECT(\"G\"&ROW($G$87)+ROUNDUP(COLUMNS($G:N)/3,0))","v":0},null,{"$f":"INDIRECT(\"F\"&ROW($G$87)+ROUNDUP(COLUMNS($G:P)/3,0))","v":0},{"$f":"INDIRECT(\"G\"&ROW($G$87)+ROUNDUP(COLUMNS($G:Q)/3,0))","v":0},null,{"$f":"INDIRECT(\"F\"&ROW($G$87)+ROUNDUP(COLUMNS($G:S)/3,0))","v":0},{"$f":"INDIRECT(\"G\"&ROW($G$87)+ROUNDUP(COLUMNS($G:T)/3,0))","v":0},null,{"$f":"INDIRECT(\"F\"&ROW($G$87)+ROUNDUP(COLUMNS($G:V)/3,0))","v":0},{"$f":"INDIRECT(\"G\"&ROW($G$87)+ROUNDUP(COLUMNS($G:W)/3,0))","v":0},null,{"$f":"INDIRECT(\"F\"&ROW($G$87)+ROUNDUP(COLUMNS($G:Y)/3,0))","v":0},{"$f":"INDIRECT(\"G\"&ROW($G$87)+ROUNDUP(COLUMNS($G:Z)/3,0))","v":0},null,{"$f":"INDIRECT(\"F\"&ROW($G$87)+ROUNDUP(COLUMNS($G:AB)/3,0))","v":0},{"$f":"INDIRECT(\"G\"&ROW($G$87)+ROUNDUP(COLUMNS($G:AC)/3,0))","v":0},null,{"$f":"INDIRECT(\"F\"&ROW($G$87)+ROUNDUP(COLUMNS($G:AE)/3,0))","v":0},{"$f":"INDIRECT(\"G\"&ROW($G$87)+ROUNDUP(COLUMNS($G:AF)/3,0))","v":0},null,{"$f":"INDIRECT(\"F\"&ROW($G$87)+ROUNDUP(COLUMNS($G:AH)/3,0))","v":0},{"$f":"INDIRECT(\"G\"&ROW($G$87)+ROUNDUP(COLUMNS($G:AI)/3,0))","v":0},null,{"$f":"INDIRECT(\"F\"&ROW($G$87)+ROUNDUP(COLUMNS($G:AK)/3,0))","v":0},{"$f":"INDIRECT(\"G\"&ROW($G$87)+ROUNDUP(COLUMNS($G:AL)/3,0))","v":0},null,{"$f":"INDIRECT(\"F\"&ROW($G$87)+ROUNDUP(COLUMNS($G:AN)/3,0))","v":0},{"$f":"INDIRECT(\"G\"&ROW($G$87)+ROUNDUP(COLUMNS($G:AO)/3,0))","v":0},null,{"$f":"INDIRECT(\"F\"&ROW($G$87)+ROUNDUP(COLUMNS($G:AQ)/3,0))","v":0},{"$f":"INDIRECT(\"G\"&ROW($G$87)+ROUNDUP(COLUMNS($G:AR)/3,0))","v":0},null,{"$f":"INDIRECT(\"F\"&ROW($G$87)+ROUNDUP(COLUMNS($G:AT)/3,0))","v":0},{"$f":"INDIRECT(\"G\"&ROW($G$87)+ROUNDUP(COLUMNS($G:AU)/3,0))","v":0},null,{"$f":"INDIRECT(\"F\"&ROW($G$87)+ROUNDUP(COLUMNS($G:AW)/3,0))","v":0},{"$f":"INDIRECT(\"G\"&ROW($G$87)+ROUNDUP(COLUMNS($G:AX)/3,0))","v":0},null,{"$f":"INDIRECT(\"F\"&ROW($G$87)+ROUNDUP(COLUMNS($G:AZ)/3,0))","v":0},{"$f":"INDIRECT(\"G\"&ROW($G$87)+ROUNDUP(COLUMNS($G:BA)/3,0))","v":0},null,{"$f":"INDIRECT(\"F\"&ROW($G$87)+ROUNDUP(COLUMNS($G:BC)/3,0))","v":0},{"$f":"INDIRECT(\"G\"&ROW($G$87)+ROUNDUP(COLUMNS($G:BD)/3,0))","v":0},null,{"$f":"INDIRECT(\"F\"&ROW($G$87)+ROUNDUP(COLUMNS($G:BF)/3,0))","v":0},{"$f":"INDIRECT(\"G\"&ROW($G$87)+ROUNDUP(COLUMNS($G:BG)/3,0))","v":0},null,{"$f":"INDIRECT(\"F\"&ROW($G$87)+ROUNDUP(COLUMNS($G:BI)/3,0))","v":0},{"$f":"INDIRECT(\"G\"&ROW($G$87)+ROUNDUP(COLUMNS($G:BJ)/3,0))","v":0},null,{"$f":"INDIRECT(\"F\"&ROW($G$87)+ROUNDUP(COLUMNS($G:BL)/3,0))","v":0},{"$f":"INDIRECT(\"G\"&ROW($G$87)+ROUNDUP(COLUMNS($G:BM)/3,0))","v":0},null,{"$f":"INDIRECT(\"F\"&ROW($G$87)+ROUNDUP(COLUMNS($G:BO)/3,0))","v":0},{"$f":"INDIRECT(\"G\"&ROW($G$87)+ROUNDUP(COLUMNS($G:BP)/3,0))","v":0},null,{"$f":"INDIRECT(\"F\"&ROW($G$87)+ROUNDUP(COLUMNS($G:BR)/3,0))","v":0},{"$f":"INDIRECT(\"G\"&ROW($G$87)+ROUNDUP(COLUMNS($G:BS)/3,0))","v":0},null,{"$f":"INDIRECT(\"F\"&ROW($G$87)+ROUNDUP(COLUMNS($G:BU)/3,0))","v":0},{"$f":"INDIRECT(\"G\"&ROW($G$87)+ROUNDUP(COLUMNS($G:BV)/3,0))","v":0},null,{"$f":"INDIRECT(\"F\"&ROW($G$87)+ROUNDUP(COLUMNS($G:BX)/3,0))","v":0},{"$f":"INDIRECT(\"G\"&ROW($G$87)+ROUNDUP(COLUMNS($G:BY)/3,0))","v":0},null,{"$f":"INDIRECT(\"F\"&ROW($G$87)+ROUNDUP(COLUMNS($G:CA)/3,0))","v":0},{"$f":"INDIRECT(\"G\"&ROW($G$87)+ROUNDUP(COLUMNS($G:CB)/3,0))","v":0},null,{"$f":"INDIRECT(\"F\"&ROW($G$87)+ROUNDUP(COLUMNS($G:CD)/3,0))","v":0},{"$f":"INDIRECT(\"G\"&ROW($G$87)+ROUNDUP(COLUMNS($G:CE)/3,0))","v":0},null,{"$f":"INDIRECT(\"F\"&ROW($G$87)+ROUNDUP(COLUMNS($G:CG)/3,0))","v":0},{"$f":"INDIRECT(\"G\"&ROW($G$87)+ROUNDUP(COLUMNS($G:CH)/3,0))","v":0},null,{"$f":"INDIRECT(\"F\"&ROW($G$87)+ROUNDUP(COLUMNS($G:CJ)/3,0))","v":0},{"$f":"INDIRECT(\"G\"&ROW($G$87)+ROUNDUP(COLUMNS($G:CK)/3,0))","v":0},null,{"$f":"INDIRECT(\"F\"&ROW($G$87)+ROUNDUP(COLUMNS($G:CM)/3,0))","v":0},{"$f":"INDIRECT(\"G\"&ROW($G$87)+ROUNDUP(COLUMNS($G:CN)/3,0))","v":0},null,{"$f":"INDIRECT(\"F\"&ROW($G$87)+ROUNDUP(COLUMNS($G:CP)/3,0))","v":0},{"$f":"INDIRECT(\"G\"&ROW($G$87)+ROUNDUP(COLUMNS($G:CQ)/3,0))","v":0},null,{"$f":"INDIRECT(\"F\"&ROW($G$87)+ROUNDUP(COLUMNS($G:CS)/3,0))","v":0},{"$f":"INDIRECT(\"G\"&ROW($G$87)+ROUNDUP(COLUMNS($G:CT)/3,0))","v":0},null,{"$f":"INDIRECT(\"F\"&ROW($G$87)+ROUNDUP(COLUMNS($G:CV)/3,0))","v":0},{"$f":"INDIRECT(\"G\"&ROW($G$87)+ROUNDUP(COLUMNS($G:CW)/3,0))","v":0},null,{"$f":"INDIRECT(\"F\"&ROW($G$87)+ROUNDUP(COLUMNS($G:CY)/3,0))","v":0},{"$f":"INDIRECT(\"G\"&ROW($G$87)+ROUNDUP(COLUMNS($G:CZ)/3,0))","v":0},null,{"$f":"INDIRECT(\"F\"&ROW($G$87)+ROUNDUP(COLUMNS($G:DB)/3,0))","v":0},{"$f":"INDIRECT(\"G\"&ROW($G$87)+ROUNDUP(COLUMNS($G:DC)/3,0))","v":0},null,{"$f":"INDIRECT(\"F\"&ROW($G$87)+ROUNDUP(COLUMNS($G:DE)/3,0))","v":0},{"$f":"INDIRECT(\"G\"&ROW($G$87)+ROUNDUP(COLUMNS($G:DF)/3,0))","v":0},null,{"$f":"INDIRECT(\"F\"&ROW($G$87)+ROUNDUP(COLUMNS($G:DH)/3,0))","v":0},{"$f":"INDIRECT(\"G\"&ROW($G$87)+ROUNDUP(COLUMNS($G:DI)/3,0))","v":0},null,{"$f":"INDIRECT(\"F\"&ROW($G$87)+ROUNDUP(COLUMNS($G:DK)/3,0))","v":0},{"$f":"INDIRECT(\"G\"&ROW($G$87)+ROUNDUP(COLUMNS($G:DL)/3,0))","v":0},null,{"$f":"INDIRECT(\"F\"&ROW($G$87)+ROUNDUP(COLUMNS($G:DN)/3,0))","v":0},{"$f":"INDIRECT(\"G\"&ROW($G$87)+ROUNDUP(COLUMNS($G:DO)/3,0))","v":0},null,{"$f":"INDIRECT(\"F\"&ROW($G$87)+ROUNDUP(COLUMNS($G:DQ)/3,0))","v":0},{"$f":"INDIRECT(\"G\"&ROW($G$87)+ROUNDUP(COLUMNS($G:DR)/3,0))","v":0},null,{"$f":"INDIRECT(\"F\"&ROW($G$87)+ROUNDUP(COLUMNS($G:DT)/3,0))","v":0},{"$f":"INDIRECT(\"G\"&ROW($G$87)+ROUNDUP(COLUMNS($G:DU)/3,0))","v":0},null,{"$f":"INDIRECT(\"F\"&ROW($G$87)+ROUNDUP(COLUMNS($G:DW)/3,0))","v":0},{"$f":"INDIRECT(\"G\"&ROW($G$87)+ROUNDUP(COLUMNS($G:DX)/3,0))","v":0},null,{"$f":"INDIRECT(\"F\"&ROW($G$87)+ROUNDUP(COLUMNS($G:DZ)/3,0))","v":0},{"$f":"INDIRECT(\"G\"&ROW($G$87)+ROUNDUP(COLUMNS($G:EA)/3,0))","v":0},null,{"$f":"INDIRECT(\"F\"&ROW($G$87)+ROUNDUP(COLUMNS($G:EC)/3,0))","v":0},{"$f":"INDIRECT(\"G\"&ROW($G$87)+ROUNDUP(COLUMNS($G:ED)/3,0))","v":0},null,{"$f":"INDIRECT(\"F\"&ROW($G$87)+ROUNDUP(COLUMNS($G:EF)/3,0))","v":0},{"$f":"INDIRECT(\"G\"&ROW($G$87)+ROUNDUP(COLUMNS($G:EG)/3,0))","v":0},null,{"$f":"INDIRECT(\"F\"&ROW($G$87)+ROUNDUP(COLUMNS($G:EI)/3,0))","v":0},{"$f":"INDIRECT(\"G\"&ROW($G$87)+ROUNDUP(COLUMNS($G:EJ)/3,0))","v":0},null,{"$f":"INDIRECT(\"F\"&ROW($G$87)+ROUNDUP(COLUMNS($G:EL)/3,0))","v":0},{"$f":"INDIRECT(\"G\"&ROW($G$87)+ROUNDUP(COLUMNS($G:EM)/3,0))","v":0},null,{"$f":"INDIRECT(\"F\"&ROW($G$87)+ROUNDUP(COLUMNS($G:EO)/3,0))","v":0},{"$f":"INDIRECT(\"G\"&ROW($G$87)+ROUNDUP(COLUMNS($G:EP)/3,0))","v":0},null,{"$f":"INDIRECT(\"F\"&ROW($G$87)+ROUNDUP(COLUMNS($G:ER)/3,0))","v":0},{"$f":"INDIRECT(\"G\"&ROW($G$87)+ROUNDUP(COLUMNS($G:ES)/3,0))","v":0},null,{"$f":"EU81+EV81","v":0}]
["เวลากลับถึงสำนักงานเช็คของเสีย",null,null,{"$f":"D139","v":"00:00:00"},null,"ผลต่าง",{"$f":"G82+H82+G80-G9","v":0},null,null,{"$f":"J82+K82+J80-J9","v":0},null,null,{"$f":"M82+N82+M80-M9","v":0},null,null,{"$f":"P82+Q82+P80-P9","v":0},null,null,{"$f":"S82+T82+S80-S9","v":0},null,null,{"$f":"V82+W82+V80-V9","v":0},null,null,{"$f":"Y82+Z82+Y80-Y9","v":0},null,null,{"$f":"AB82+AC82+AB80-AB9","v":0},null,null,{"$f":"AE82+AF82+AE80-AE9","v":0},null,null,{"$f":"AH82+AI82+AH80-AH9","v":0},null,null,{"$f":"AK82+AL82+AK80-AK9","v":0},null,null,{"$f":"AN82+AO82+AN80-AN9","v":0},null,null,{"$f":"AQ82+AR82+AQ80-AQ9","v":0},null,null,{"$f":"AT82+AU82+AT80-AT9","v":0},null,null,{"$f":"AW82+AX82+AW80-AW9","v":0},null,null,{"$f":"AZ82+BA82+AZ80-AZ9","v":0},null,null,{"$f":"BC82+BD82+BC80-BC9","v":0},null,null,{"$f":"BF82+BG82+BF80-BF9","v":0},null,null,{"$f":"BI82+BJ82+BI80-BI9","v":0},null,null,{"$f":"BL82+BM82+BL80-BL9","v":0},null,null,{"$f":"BO82+BP82+BO80-BO9","v":0},null,null,{"$f":"BR82+BS82+BR80-BR9","v":0},null,null,{"$f":"BU82+BV82+BU80-BU9","v":0},null,null,{"$f":"BX82+BY82+BX80-BX9","v":0},null,null,{"$f":"CA82+CB82+CA80-CA9","v":0},null,null,{"$f":"CD82+CE82+CD80-CD9","v":0},null,null,{"$f":"CG82+CH82+CG80-CG9","v":0},null,null,{"$f":"CJ82+CK82+CJ80-CJ9","v":0},null,null,{"$f":"CM82+CN82+CM80-CM9","v":0},null,null,{"$f":"CP82+CQ82+CP80-CP9","v":0},null,null,{"$f":"CS82+CT82+CS80-CS9","v":0},null,null,{"$f":"CV82+CW82+CV80-CV9","v":0},null,null,{"$f":"CY82+CZ82+CY80-CY9","v":0},null,null,{"$f":"DB82+DC82+DB80-DB9","v":0},null,null,{"$f":"DE82+DF82+DE80-DE9","v":0},null,null,{"$f":"DH82+DI82+DH80-DH9","v":0},null,null,{"$f":"DK82+DL82+DK80-DK9","v":0},null,null,{"$f":"DN82+DO82+DN80-DN9","v":0},null,null,{"$f":"DQ82+DR82+DQ80-DQ9","v":0},null,null,{"$f":"DT82+DU82+DT80-DT9","v":0},null,null,{"$f":"DW82+DX82+DW80-DW9","v":0},null,null,{"$f":"DZ82+EA82+DZ80-DZ9","v":0},null,null,{"$f":"EC82+ED82+EC80-EC9","v":0},null,null,{"$f":"EF82+EG82+EF80-EF9","v":0},null,null,{"$f":"EI82+EJ82+EI80-EI9","v":0},null,null,{"$f":"EL82+EM82+EL80-EL9","v":0},null,null,{"$f":"EO82+EP82+EO80-EO9","v":0},null,null,{"$f":"ER82+ES82+ER80-ER9","v":0}]
["เป็นเงิน",null,null,null,null,null,{"$f":"G8*G83","v":0},null,null,{"$f":"J8*J83","v":0},null,null,{"$f":"M8*M83","v":0},null,null,{"$f":"P8*P83","v":0},null,null,{"$f":"S8*S83","v":0},null,null,{"$f":"V8*V83","v":0},null,null,{"$f":"Y8*Y83","v":0},null,null,{"$f":"AB8*AB83","v":0},null,null,{"$f":"AE8*AE83","v":0},null,null,{"$f":"AH8*AH83","v":0},null,null,{"$f":"AK8*AK83","v":0},null,null,{"$f":"AN8*AN83","v":0},null,null,{"$f":"AQ8*AQ83","v":0},null,null,{"$f":"AT8*AT83","v":0},null,null,{"$f":"AW8*AW83","v":0},null,null,{"$f":"AZ8*AZ83","v":0},null,null,{"$f":"BC8*BC83","v":0},null,null,{"$f":"BF8*BF83","v":0},null,null,{"$f":"BI8*BI83","v":0},null,null,{"$f":"BL8*BL83","v":0},null,null,{"$f":"BO8*BO83","v":0},null,null,{"$f":"BR8*BR83","v":0},null,null,{"$f":"BU8*BU83","v":0},null,null,{"$f":"BX8*BX83","v":0},null,null,{"$f":"CA8*CA83","v":0},null,null,{"$f":"CD8*CD83","v":0},null,null,{"$f":"CG8*CG83","v":0},null,null,{"$f":"CJ8*CJ83","v":0},null,null,{"$f":"CM8*CM83","v":0},null,null,{"$f":"CP8*CP83","v":0},null,null,{"$f":"CS8*CS83","v":0},null,null,{"$f":"CV8*CV83","v":0},null,null,{"$f":"CY8*CY83","v":0},null,null,{"$f":"DB8*DB83","v":0},null,null,{"$f":"DE8*DE83","v":0},null,null,{"$f":"DH8*DH83","v":0},null,null,{"$f":"DK8*DK83","v":0},null,null,{"$f":"DN8*DN83","v":0},null,null,{"$f":"DQ8*DQ83","v":0},null,null,{"$f":"DT8*DT83","v":0},null,null,{"$f":"DW8*DW83","v":0},null,null,0,null,null,{"$f":"EC8*EC83","v":0},null,null,{"$f":"EF8*EF83","v":0},null,null,{"$f":"EI8*EI83","v":0},null,null,{"$f":"EL8*EL83","v":0},null,null,{"$f":"EO8*EO83","v":0},null,null,{"$f":"ER8*ER83","v":0},null,null,{"$f":"$AP$98","v":0}]
[null,null,null,"ผู้จัดทำ……………………………………………………………………",null,null,null,null,null,null,null,null,null,null,null,null,null,null,null,null,null,null,null,"ผู้ตรวจ(ผจก.)………………………………………………………………………………."]
[null,null,"ใบจ่ายสินค้า",null,null,null,null,null,null,null,null,null,null,null,null,null,null,{"$f":"IF(ISODD(COLUMN()),MAX($F$86:Q$86)+1,\"\")","v":""}]
["ราคา","ลำดับ","รายการ","ยกมา","เบิก","เหลือ","เสีย","โอนเข้า","โอนออก","ชำรุด","รวม",null,"ขาย",null,"ขาด/เกิน",null,"บาท",null,null,null,"ขายได้",null,"ควรเบิก",null,"หมายเหตุ",null,null,null,"เสีย PDA","เสียจริง","เหลือ PDA","ผลต่าง","เหลือลูกค้า","หมายเหตุ",null,null,null,null,"Price","Quantity","Baht","Deduct"]
[{"$f":"IF(B88=\"\",0,INDEX(Price_List,ROWS($88:88)))","v":20},{"$f":"IF($C88=\"\",\"\",COUNTA($C$88:$C88))","v":1},{"$f":"IF(INDEX(INDIRECT(\"Product_List\"),ROWS($88:88))=\"\",\"\",INDEX(INDIRECT(\"Product_List\"),ROWS($88:88)))","v":"01-ขนมปังหมูหยองน้ำสลัด"},{"$f":"ยอดยกมา","v":0},null,null,null,null,null,null,{"$f":"D88+E88+J88-I88+H88","v":0},null,{"$f":"INDIRECT(ADDRESS(ROW(A$80),ROW()-ROW(A$80)+(ROWS($88:88)-1)*2-1,4))","v":0},null,{"$f":"F88+G88+M88+J88-K88","v":0},null,{"$f":"O88*A88","v":0},null,null,null,{"$f":"D88+E88-F88-G88","v":0},null,{"$f":"U88*6%+U88","v":0},null,null,null,null,null,{"$f":"INDIRECT(ADDRESS(ROW(A$80),ROW()-ROW(A$80)+(ROWS($88:88)-1)*2,4))","v":0},{"$f":"$G88","v":0},null,{"$f":"$F88-$AE88","v":0},{"$f":"INDIRECT(ADDRESS(ROW(A$80),ROW()-ROW(A$80)+(ROWS($88:88)-1)*2+1,4))","v":0},null,null,null,null,null,10,{"$f":"SUMPRODUCT(($A$88:$A$135=$AM88)*(($F$88:$F$135)+($G$88:$G$135)+($M$88:$M$135)+($J$88:$J$135)-($K$88:$K$135)))","v":0},{"$f":"AM88*AN88","v":0},{"$f":"IF(AO88<0,AO88,0)","v":0}]
[{"$f":"IF(B89=\"\",0,INDEX(Price_List,ROWS($88:89)))","v":20},{"$f":"IF($C89=\"\",\"\",COUNTA($C$88:$C89))","v":2},{"$f":"IF(INDEX(INDIRECT(\"Product_List\"),ROWS($88:89))=\"\",\"\",INDEX(INDIRECT(\"Product_List\"),ROWS($88:89)))","v":"02-ขนมปังหมูหยองน้ำพริกเผา"},{"$f":"ยอดยกมา","v":0},null,null,null,null,null,null,{"$f":"D89+E89+J89-I89+H89","v":0},null,{"$f":"INDIRECT(ADDRESS(ROW(A$80),ROW()-ROW(A$80)+(ROWS($88:89)-1)*2-1,4))","v":0},null,{"$f":"F89+G89+M89+J89-K89","v":0},null,{"$f":"O89*A89","v":0},null,null,null,{"$f":"D89+E89-F89-G89","v":0},null,{"$f":"U89*6%+U89","v":0},null,null,null,null,null,{"$f":"INDIRECT(ADDRESS(ROW(A$80),ROW()-ROW(A$80)+(ROWS($88:89)-1)*2,4))","v":0},{"$f":"$G89","v":0},null,{"$f":"$F89-$AE89","v":0},{"$f":"INDIRECT(ADDRESS(ROW(A$80),ROW()-ROW(A$80)+(ROWS($88:89)-1)*2+1,4))","v":0},null,null,null,null,null,12,0,{"$f":"AM89*AN89","v":0},{"$f":"IF(AO89<0,AO89,0)","v":0}]
[{"$f":"IF(B90=\"\",0,INDEX(Price_List,ROWS($88:90)))","v":20},{"$f":"IF($C90=\"\",\"\",COUNTA($C$88:$C90))","v":3},{"$f":"IF(INDEX(INDIRECT(\"Product_List\"),ROWS($88:90))=\"\",\"\",INDEX(INDIRECT(\"Product_List\"),ROWS($88:90)))","v":"03-ขนมปังไก่หยองน้ำสลัด"},{"$f":"ยอดยกมา","v":0},null,null,null,null,null,null,0,null,{"$f":"INDIRECT(ADDRESS(ROW(A$80),ROW()-ROW(A$80)+(ROWS($88:90)-1)*2-1,4))","v":0},null,0,null,0,null,null,null,0,null,0,null,null,null,null,null,{"$f":"INDIRECT(ADDRESS(ROW(A$80),ROW()-ROW(A$80)+(ROWS($88:90)-1)*2,4))","v":0},0,null,0,{"$f":"INDIRECT(ADDRESS(ROW(A$80),ROW()-ROW(A$80)+(ROWS($88:90)-1)*2+1,4))","v":0},null,null,null,null,null,13,0,{"$f":"AM90*AN90","v":0},{"$f":"IF(AO90<0,AO90,0)","v":0}]
[{"$f":"IF(B91=\"\",0,INDEX(Price_List,ROWS($88:91)))","v":15},{"$f":"IF($C91=\"\",\"\",COUNTA($C$88:$C91))","v":4},{"$f":"IF(INDEX(INDIRECT(\"Product_List\"),ROWS($88:91))=\"\",\"\",INDEX(INDIRECT(\"Product_List\"),ROWS($88:91)))","v":"04-ขนมปังไส้ครีมสลัด"},{"$f":"ยอดยกมา","v":0},null,null,null,null,null,null,0,null,{"$f":"INDIRECT(ADDRESS(ROW(A$80),ROW()-ROW(A$80)+(ROWS($88:91)-1)*2-1,4))","v":0},null,{"$f":"F91+G91+M91+J91-K91","v":0},null,0,null,null,null,0,null,0,null,null,null,null,null,{"$f":"INDIRECT(ADDRESS(ROW(A$80),ROW()-ROW(A$80)+(ROWS($88:91)-1)*2,4))","v":0},0,null,0,{"$f":"INDIRECT(ADDRESS(ROW(A$80),ROW()-ROW(A$80)+(ROWS($88:91)-1)*2+1,4))","v":0},null,null,null,null,null,15,0,0,0]
[{"$f":"IF(B92=\"\",0,INDEX(Price_List,ROWS($88:92)))","v":15},{"$f":"IF($C92=\"\",\"\",COUNTA($C$88:$C92))","v":5},{"$f":"IF(INDEX(INDIRECT(\"Product_List\"),ROWS($88:92))=\"\",\"\",INDEX(INDIRECT(\"Product_List\"),ROWS($88:92)))","v":"05-ขนมปังเนยสด"},{"$f":"ยอดยกมา","v":0},null,null,null,null,null,null,0,null,{"$f":"INDIRECT(ADDRESS(ROW(A$80),ROW()-ROW(A$80)+(ROWS($88:92)-1)*2-1,4))","v":0},null,0,null,0,null,null,null,0,null,0,null,null,null,null,null,{"$f":"INDIRECT(ADDRESS(ROW(A$80),ROW()-ROW(A$80)+(ROWS($88:92)-1)*2,4))","v":0},0,null,0,{"$f":"INDIRECT(ADDRESS(ROW(A$80),ROW()-ROW(A$80)+(ROWS($88:92)-1)*2+1,4))","v":0},null,null,null,null,null,16,0,0,0]
[{"$f":"IF(B93=\"\",0,INDEX(Price_List,ROWS($88:93)))","v":10},{"$f":"IF($C93=\"\",\"\",COUNTA($C$88:$C93))","v":6},{"$f":"IF(INDEX(INDIRECT(\"Product_List\"),ROWS($88:93))=\"\",\"\",INDEX(INDIRECT(\"Product_List\"),ROWS($88:93)))","v":"06-ขนมปังไส้สังขยาเล็ก"},{"$f":"ยอดยกมา","v":0},null,null,null,null,null,null,0,null,{"$f":"INDIRECT(ADDRESS(ROW(A$80),ROW()-ROW(A$80)+(ROWS($88:93)-1)*2-1,4))","v":0},null,0,null,0,null,null,null,0,null,0,null,null,null,null,null,{"$f":"INDIRECT(ADDRESS(ROW(A$80),ROW()-ROW(A$80)+(ROWS($88:93)-1)*2,4))","v":0},0,null,0,{"$f":"INDIRECT(ADDRESS(ROW(A$80),ROW()-ROW(A$80)+(ROWS($88:93)-1)*2+1,4))","v":0},null,null,null,null,null,18,0,0,0]
[{"$f":"IF(B94=\"\",0,INDEX(Price_List,ROWS($88:94)))","v":10},{"$f":"IF($C94=\"\",\"\",COUNTA($C$88:$C94))","v":7},{"$f":"IF(INDEX(INDIRECT(\"Product_List\"),ROWS($88:94))=\"\",\"\",INDEX(INDIRECT(\"Product_List\"),ROWS($88:94)))","v":"07-ขนมปังไส้เผือก"},{"$f":"ยอดยกมา","v":0},null,null,null,null,null,null,0,null,{"$f":"INDIRECT(ADDRESS(ROW(A$80),ROW()-ROW(A$80)+(ROWS($88:94)-1)*2-1,4))","v":0},null,0,null,0,null,null,null,0,null,0,null,null,null,null,null,{"$f":"INDIRECT(ADDRESS(ROW(A$80),ROW()-ROW(A$80)+(ROWS($88:94)-1)*2,4))","v":0},0,null,0,{"$f":"INDIRECT(ADDRESS(ROW(A$80),ROW()-ROW(A$80)+(ROWS($88:94)-1)*2+1,4))","v":0},null,null,null,null,null,20,0,0,0]
[{"$f":"IF(B95=\"\",0,INDEX(Price_List,ROWS($88:95)))","v":10},{"$f":"IF($C95=\"\",\"\",COUNTA($C$88:$C95))","v":8},{"$f":"IF(INDEX(INDIRECT(\"Product_List\"),ROWS($88:95))=\"\",\"\",INDEX(INDIRECT(\"Product_List\"),ROWS($88:95)))","v":"08-ขนมปังไส้ถั่วแดง"},{"$f":"ยอดยกมา","v":0},null,null,null,null,null,null,0,null,{"$f":"INDIRECT(ADDRESS(ROW(A$80),ROW()-ROW(A$80)+(ROWS($88:95)-1)*2-1,4))","v":0},null,0,null,0,null,null,null,0,null,0,null,null,null,null,null,{"$f":"INDIRECT(ADDRESS(ROW(A$80),ROW()-ROW(A$80)+(ROWS($88:95)-1)*2,4))","v":0},0,null,0,{"$f":"INDIRECT(ADDRESS(ROW(A$80),ROW()-ROW(A$80)+(ROWS($88:95)-1)*2+1,4))","v":0},null,null,null,null,null,22,0,0,0]
[{"$f":"IF(B96=\"\",0,INDEX(Price_List,ROWS($88:96)))","v":10},{"$f":"IF($C96=\"\",\"\",COUNTA($C$88:$C96))","v":9},{"$f":"IF(INDEX(INDIRECT(\"Product_List\"),ROWS($88:96))=\"\",\"\",INDEX(INDIRECT(\"Product_List\"),ROWS($88:96)))","v":"09-ขนมปังไส้ถั่วดำ"},{"$f":"ยอดยกมา","v":0},null,null,null,null,null,null,0,null,{"$f":"INDIRECT(ADDRESS(ROW(A$80),ROW()-ROW(A$80)+(ROWS($88:96)-1)*2-1,4))","v":0},null,0,null,0,null,null,null,0,null,0,null,null,null,null,null,{"$f":"INDIRECT(ADDRESS(ROW(A$80),ROW()-ROW(A$80)+(ROWS($88:96)-1)*2,4))","v":0},0,null,0,{"$f":"INDIRECT(ADDRESS(ROW(A$80),ROW()-ROW(A$80)+(ROWS($88:96)-1)*2+1,4))","v":0},null,null,null,null,null,25,0,0,0]
[{"$f":"IF(B97=\"\",0,INDEX(Price_List,ROWS($88:97)))","v":10},{"$f":"IF($C97=\"\",\"\",COUNTA($C$88:$C97))","v":10},{"$f":"IF(INDEX(INDIRECT(\"Product_List\"),ROWS($88:97))=\"\",\"\",INDEX(INDIRECT(\"Product_List\"),ROWS($88:97)))","v":"10-ขนมปังไส้มันม่วง"},{"$f":"ยอดยกมา","v":0},null,null,null,null,null,null,0,null,{"$f":"INDIRECT(ADDRESS(ROW(A$80),ROW()-ROW(A$80)+(ROWS($88:97)-1)*2-1,4))","v":0},null,0,null,0,null,null,null,0,null,0,null,null,null,null,null,{"$f":"INDIRECT(ADDRESS(ROW(A$80),ROW()-ROW(A$80)+(ROWS($88:97)-1)*2,4))","v":0},0,null,0,{"$f":"INDIRECT(ADDRESS(ROW(A$80),ROW()-ROW(A$80)+(ROWS($88:97)-1)*2+1,4))","v":0},null,null,null,null,null,42,0,0,0]
[{"$f":"IF(B98=\"\",0,INDEX(Price_List,ROWS($88:98)))","v":15},{"$f":"IF($C98=\"\",\"\",COUNTA($C$88:$C98))","v":11},{"$f":"IF(INDEX(INDIRECT(\"Product_List\"),ROWS($88:98))=\"\",\"\",INDEX(INDIRECT(\"Product_List\"),ROWS($88:98)))","v":"11-เค้กกล้วยหอม"},{"$f":"ยอดยกมา","v":0},null,null,null,null,null,null,0,null,{"$f":"INDIRECT(ADDRESS(ROW(A$80),ROW()-ROW(A$80)+(ROWS($88:98)-1)*2-1,4))","v":0},null,0,null,0,null,null,null,0,null,0,null,null,null,null,null,{"$f":"INDIRECT(ADDRESS(ROW(A$80),ROW()-ROW(A$80)+(ROWS($88:98)-1)*2,4))","v":0},0,null,0,{"$f":"INDIRECT(ADDRESS(ROW(A$80),ROW()-ROW(A$80)+(ROWS($88:98)-1)*2+1,4))","v":0},null,null,null,null,null,"Total Deduct",null,null,{"$f":"SUM($AP$88:$AP$97)","v":0}]
[{"$f":"IF(B99=\"\",0,INDEX(Price_List,ROWS($88:99)))","v":15},{"$f":"IF($C99=\"\",\"\",COUNTA($C$88:$C99))","v":12},{"$f":"IF(INDEX(INDIRECT(\"Product_List\"),ROWS($88:99))=\"\",\"\",INDEX(INDIRECT(\"Product_List\"),ROWS($88:99)))","v":"12-เค้กบัตเตอร์"},{"$f":"ยอดยกมา","v":0},null,null,null,null,null,null,0,null,{"$f":"INDIRECT(ADDRESS(ROW(A$80),ROW()-ROW(A$80)+(ROWS($88:99)-1)*2-1,4))","v":0},null,0,null,0,null,null,null,0,null,0,null,null,null,null,null,{"$f":"INDIRECT(ADDRESS(ROW(A$80),ROW()-ROW(A$80)+(ROWS($88:99)-1)*2,4))","v":0},0,null,0,{"$f":"INDIRECT(ADDRESS(ROW(A$80),ROW()-ROW(A$80)+(ROWS($88:99)-1)*2+1,4))","v":0}]
[{"$f":"IF(B100=\"\",0,INDEX(Price_List,ROWS($88:100)))","v":15},{"$f":"IF($C100=\"\",\"\",COUNTA($C$88:$C100))","v":13},{"$f":"IF(INDEX(INDIRECT(\"Product_List\"),ROWS($88:100))=\"\",\"\",INDEX(INDIRECT(\"Product_List\"),ROWS($88:100)))","v":"13-ขนมปังโรลถั่วแดง"},{"$f":"ยอดยกมา","v":0},null,null,null,null,null,null,0,null,{"$f":"INDIRECT(ADDRESS(ROW(A$80),ROW()-ROW(A$80)+(ROWS($88:100)-1)*2-1,4))","v":0},null,0,null,0,null,null,null,0,null,0,null,null,null,null,null,{"$f":"INDIRECT(ADDRESS(ROW(A$80),ROW()-ROW(A$80)+(ROWS($88:100)-1)*2,4))","v":0},0,null,0,{"$f":"INDIRECT(ADDRESS(ROW(A$80),ROW()-ROW(A$80)+(ROWS($88:100)-1)*2+1,4))","v":0}]
[{"$f":"IF(B101=\"\",0,INDEX(Price_List,ROWS($88:101)))","v":15},{"$f":"IF($C101=\"\",\"\",COUNTA($C$88:$C101))","v":14},{"$f":"IF(INDEX(INDIRECT(\"Product_List\"),ROWS($88:101))=\"\",\"\",INDEX(INDIRECT(\"Product_List\"),ROWS($88:101)))","v":"14-ขนมปังไส้สังขยาใหญ่"},{"$f":"ยอดยกมา","v":0},null,null,null,null,null,null,0,null,{"$f":"INDIRECT(ADDRESS(ROW(A$80),ROW()-ROW(A$80)+(ROWS($88:101)-1)*2-1,4))","v":0},null,0,null,0,null,null,null,0,null,0,null,null,null,null,null,{"$f":"INDIRECT(ADDRESS(ROW(A$80),ROW()-ROW(A$80)+(ROWS($88:101)-1)*2,4))","v":0},0,null,0,{"$f":"INDIRECT(ADDRESS(ROW(A$80),ROW()-ROW(A$80)+(ROWS($88:101)-1)*2+1,4))","v":0}]
[{"$f":"IF(B102=\"\",0,INDEX(Price_List,ROWS($88:102)))","v":42},{"$f":"IF($C102=\"\",\"\",COUNTA($C$88:$C102))","v":15},{"$f":"IF(INDEX(INDIRECT(\"Product_List\"),ROWS($88:102))=\"\",\"\",INDEX(INDIRECT(\"Product_List\"),ROWS($88:102)))","v":"15-ขนมปังชนิดแผ่น(480กรัม)"},{"$f":"ยอดยกมา","v":0},null,null,null,null,null,null,0,null,{"$f":"INDIRECT(ADDRESS(ROW(A$80),ROW()-ROW(A$80)+(ROWS($88:102)-1)*2-1,4))","v":0},null,0,null,0,null,null,null,0,null,0,null,null,null,null,null,{"$f":"INDIRECT(ADDRESS(ROW(A$80),ROW()-ROW(A$80)+(ROWS($88:102)-1)*2,4))","v":0},0,null,0,{"$f":"INDIRECT(ADDRESS(ROW(A$80),ROW()-ROW(A$80)+(ROWS($88:102)-1)*2+1,4))","v":0}]
[{"$f":"IF(B103=\"\",0,INDEX(Price_List,ROWS($88:103)))","v":12},{"$f":"IF($C103=\"\",\"\",COUNTA($C$88:$C103))","v":16},{"$f":"IF(INDEX(INDIRECT(\"Product_List\"),ROWS($88:103))=\"\",\"\",INDEX(INDIRECT(\"Product_List\"),ROWS($88:103)))","v":"16-โมจิไส้ถั่ว"},{"$f":"ยอดยกมา","v":0},null,null,null,null,null,null,0,null,{"$f":"INDIRECT(ADDRESS(ROW(A$80),ROW()-ROW(A$80)+(ROWS($88:103)-1)*2-1,4))","v":0},null,0,null,0,null,null,null,0,null,0,null,null,null,null,null,{"$f":"INDIRECT(ADDRESS(ROW(A$80),ROW()-ROW(A$80)+(ROWS($88:103)-1)*2,4))","v":0},0,null,0,{"$f":"INDIRECT(ADDRESS(ROW(A$80),ROW()-ROW(A$80)+(ROWS($88:103)-1)*2+1,4))","v":0}]
[{"$f":"IF(B104=\"\",0,INDEX(Price_List,ROWS($88:104)))","v":12},{"$f":"IF($C104=\"\",\"\",COUNTA($C$88:$C104))","v":17},{"$f":"IF(INDEX(INDIRECT(\"Product_List\"),ROWS($88:104))=\"\",\"\",INDEX(INDIRECT(\"Product_List\"),ROWS($88:104)))","v":"17-โมจิไส้เผือก"},{"$f":"ยอดยกมา","v":0},null,null,null,null,null,null,0,null,{"$f":"INDIRECT(ADDRESS(ROW(A$80),ROW()-ROW(A$80)+(ROWS($88:104)-1)*2-1,4))","v":0},null,0,null,0,null,null,null,0,null,0,null,null,null,null,null,{"$f":"INDIRECT(ADDRESS(ROW(A$80),ROW()-ROW(A$80)+(ROWS($88:104)-1)*2,4))","v":0},0,null,0,{"$f":"INDIRECT(ADDRESS(ROW(A$80),ROW()-ROW(A$80)+(ROWS($88:104)-1)*2+1,4))","v":0}]
[{"$f":"IF(B105=\"\",0,INDEX(Price_List,ROWS($88:105)))","v":15},{"$f":"IF($C105=\"\",\"\",COUNTA($C$88:$C105))","v":18},{"$f":"IF(INDEX(INDIRECT(\"Product_List\"),ROWS($88:105))=\"\",\"\",INDEX(INDIRECT(\"Product_List\"),ROWS($88:105)))","v":"18-โมจิไส้ถั่วไข่เค็ม"},{"$f":"ยอดยกมา","v":0},null,null,null,null,null,null,0,null,{"$f":"INDIRECT(ADDRESS(ROW(A$80),ROW()-ROW(A$80)+(ROWS($88:105)-1)*2-1,4))","v":0},null,0,null,0,null,null,null,0,null,0,null,null,null,null,null,{"$f":"INDIRECT(ADDRESS(ROW(A$80),ROW()-ROW(A$80)+(ROWS($88:105)-1)*2,4))","v":0},0,null,0,{"$f":"INDIRECT(ADDRESS(ROW(A$80),ROW()-ROW(A$80)+(ROWS($88:105)-1)*2+1,4))","v":0}]
[{"$f":"IF(B106=\"\",0,INDEX(Price_List,ROWS($88:106)))","v":20},{"$f":"IF($C106=\"\",\"\",COUNTA($C$88:$C106))","v":19},{"$f":"IF(INDEX(INDIRECT(\"Product_List\"),ROWS($88:106))=\"\",\"\",INDEX(INDIRECT(\"Product_List\"),ROWS($88:106)))","v":"19-ขนมปังพิซซ่า"},{"$f":"ยอดยกมา","v":0},null,null,null,null,null,null,0,null,{"$f":"INDIRECT(ADDRESS(ROW(A$80),ROW()-ROW(A$80)+(ROWS($88:106)-1)*2-1,4))","v":0},null,0,null,0,null,null,null,0,null,0,null,null,null,null,null,{"$f":"INDIRECT(ADDRESS(ROW(A$80),ROW()-ROW(A$80)+(ROWS($88:106)-1)*2,4))","v":0},0,null,0,{"$f":"INDIRECT(ADDRESS(ROW(A$80),ROW()-ROW(A$80)+(ROWS($88:106)-1)*2+1,4))","v":0}]
[{"$f":"IF(B107=\"\",0,INDEX(Price_List,ROWS($88:107)))","v":20},{"$f":"IF($C107=\"\",\"\",COUNTA($C$88:$C107))","v":20},{"$f":"IF(INDEX(INDIRECT(\"Product_List\"),ROWS($88:107))=\"\",\"\",INDEX(INDIRECT(\"Product_List\"),ROWS($88:107)))","v":"20-ขนมปังพิซซ่าปูอัดแฮม"},{"$f":"ยอดยกมา","v":0},null,null,null,null,null,null,0,null,{"$f":"INDIRECT(ADDRESS(ROW(A$80),ROW()-ROW(A$80)+(ROWS($88:107)-1)*2-1,4))","v":0},null,0,null,0,null,null,null,0,null,0,null,null,null,null,null,{"$f":"INDIRECT(ADDRESS(ROW(A$80),ROW()-ROW(A$80)+(ROWS($88:107)-1)*2,4))","v":0},0,null,0,{"$f":"INDIRECT(ADDRESS(ROW(A$80),ROW()-ROW(A$80)+(ROWS($88:107)-1)*2+1,4))","v":0}]
[{"$f":"IF(B108=\"\",0,INDEX(Price_List,ROWS($88:108)))","v":20},{"$f":"IF($C108=\"\",\"\",COUNTA($C$88:$C108))","v":21},{"$f":"IF(INDEX(INDIRECT(\"Product_List\"),ROWS($88:108))=\"\",\"\",INDEX(INDIRECT(\"Product_List\"),ROWS($88:108)))","v":"21-ขนมปังไส้กรอก"},{"$f":"ยอดยกมา","v":0},null,null,null,null,null,null,0,null,{"$f":"INDIRECT(ADDRESS(ROW(A$80),ROW()-ROW(A$80)+(ROWS($88:108)-1)*2-1,4))","v":0},null,0,null,0,null,null,null,0,null,0,null,null,null,null,null,{"$f":"INDIRECT(ADDRESS(ROW(A$80),ROW()-ROW(A$80)+(ROWS($88:108)-1)*2,4))","v":0},0,null,0,{"$f":"INDIRECT(ADDRESS(ROW(A$80),ROW()-ROW(A$80)+(ROWS($88:108)-1)*2+1,4))","v":0}]
[{"$f":"IF(B109=\"\",0,INDEX(Price_List,ROWS($88:109)))","v":15},{"$f":"IF($C109=\"\",\"\",COUNTA($C$88:$C109))","v":22},{"$f":"IF(INDEX(INDIRECT(\"Product_List\"),ROWS($88:109))=\"\",\"\",INDEX(INDIRECT(\"Product_List\"),ROWS($88:109)))","v":"22-ขนมก้านบัว"},{"$f":"ยอดยกมา","v":0},null,null,null,null,null,null,0,null,{"$f":"INDIRECT(ADDRESS(ROW(A$80),ROW()-ROW(A$80)+(ROWS($88:109)-1)*2-1,4))","v":0},null,0,null,0,null,null,null,0,null,0,null,null,null,null,null,{"$f":"INDIRECT(ADDRESS(ROW(A$80),ROW()-ROW(A$80)+(ROWS($88:109)-1)*2,4))","v":0},0,null,0,{"$f":"INDIRECT(ADDRESS(ROW(A$80),ROW()-ROW(A$80)+(ROWS($88:109)-1)*2+1,4))","v":0}]
[{"$f":"IF(B110=\"\",0,INDEX(Price_List,ROWS($88:110)))","v":20},{"$f":"IF($C110=\"\",\"\",COUNTA($C$88:$C110))","v":23},{"$f":"IF(INDEX(INDIRECT(\"Product_List\"),ROWS($88:110))=\"\",\"\",INDEX(INDIRECT(\"Product_List\"),ROWS($88:110)))","v":"23-พายสับปะรด"},{"$f":"ยอดยกมา","v":0},null,null,null,null,null,null,0,null,{"$f":"INDIRECT(ADDRESS(ROW(A$80),ROW()-ROW(A$80)+(ROWS($88:110)-1)*2-1,4))","v":0},null,0,null,0,null,null,null,0,null,0,null,null,null,null,null,{"$f":"INDIRECT(ADDRESS(ROW(A$80),ROW()-ROW(A$80)+(ROWS($88:110)-1)*2,4))","v":0},0,null,0,{"$f":"INDIRECT(ADDRESS(ROW(A$80),ROW()-ROW(A$80)+(ROWS($88:110)-1)*2+1,4))","v":0}]
[{"$f":"IF(B111=\"\",0,INDEX(Price_List,ROWS($88:111)))","v":20},{"$f":"IF($C111=\"\",\"\",COUNTA($C$88:$C111))","v":24},{"$f":"IF(INDEX(INDIRECT(\"Product_List\"),ROWS($88:111))=\"\",\"\",INDEX(INDIRECT(\"Product_List\"),ROWS($88:111)))","v":"24-พายไส้มะพร้าว"},{"$f":"ยอดยกมา","v":0},null,null,null,null,null,null,0,null,{"$f":"INDIRECT(ADDRESS(ROW(A$80),ROW()-ROW(A$80)+(ROWS($88:111)-1)*2-1,4))","v":0},null,0,null,0,null,null,null,0,null,0,null,null,null,null,null,{"$f":"INDIRECT(ADDRESS(ROW(A$80),ROW()-ROW(A$80)+(ROWS($88:111)-1)*2,4))","v":0},0,null,0,{"$f":"INDIRECT(ADDRESS(ROW(A$80),ROW()-ROW(A$80)+(ROWS($88:111)-1)*2+1,4))","v":0}]
[{"$f":"IF(B112=\"\",0,INDEX(Price_List,ROWS($88:112)))","v":15},{"$f":"IF($C112=\"\",\"\",COUNTA($C$88:$C112))","v":25},{"$f":"IF(INDEX(INDIRECT(\"Product_List\"),ROWS($88:112))=\"\",\"\",INDEX(INDIRECT(\"Product_List\"),ROWS($88:112)))","v":"25-ขนมปังโรลมันเทศ"},{"$f":"ยอดยกมา","v":0},null,null,null,null,null,null,0,null,{"$f":"INDIRECT(ADDRESS(ROW(A$80),ROW()-ROW(A$80)+(ROWS($88:112)-1)*2-1,4))","v":0},null,0,null,0,null,null,null,0,null,0,null,null,null,null,null,{"$f":"INDIRECT(ADDRESS(ROW(A$80),ROW()-ROW(A$80)+(ROWS($88:112)-1)*2,4))","v":0},0,null,0,{"$f":"INDIRECT(ADDRESS(ROW(A$80),ROW()-ROW(A$80)+(ROWS($88:112)-1)*2+1,4))","v":0}]
[{"$f":"IF(B113=\"\",0,INDEX(Price_List,ROWS($88:113)))","v":15},{"$f":"IF($C113=\"\",\"\",COUNTA($C$88:$C113))","v":26},{"$f":"IF(INDEX(INDIRECT(\"Product_List\"),ROWS($88:113))=\"\",\"\",INDEX(INDIRECT(\"Product_List\"),ROWS($88:113)))","v":"26-ขนมปังไส้ครีมสลัดน้ำพริกเผา"},{"$f":"ยอดยกมา","v":0},null,null,null,null,null,null,0,null,{"$f":"INDIRECT(ADDRESS(ROW(A$80),ROW()-ROW(A$80)+(ROWS($88:113)-1)*2-1,4))","v":0},null,0,null,0,null,null,null,0,null,0,null,null,null,null,null,{"$f":"INDIRECT(ADDRESS(ROW(A$80),ROW()-ROW(A$80)+(ROWS($88:113)-1)*2,4))","v":0},0,null,0,{"$f":"INDIRECT(ADDRESS(ROW(A$80),ROW()-ROW(A$80)+(ROWS($88:113)-1)*2+1,4))","v":0}]
[{"$f":"IF(B114=\"\",0,INDEX(Price_List,ROWS($88:114)))","v":20},{"$f":"IF($C114=\"\",\"\",COUNTA($C$88:$C114))","v":27},{"$f":"IF(INDEX(INDIRECT(\"Product_List\"),ROWS($88:114))=\"\",\"\",INDEX(INDIRECT(\"Product_List\"),ROWS($88:114)))","v":"27-ขนมปังไส้สังขยาไข่"},{"$f":"ยอดยกมา","v":0},null,null,null,null,null,null,0,null,{"$f":"INDIRECT(ADDRESS(ROW(A$80),ROW()-ROW(A$80)+(ROWS($88:114)-1)*2-1,4))","v":0},null,0,null,0,null,null,null,0,null,0,null,null,null,null,null,{"$f":"INDIRECT(ADDRESS(ROW(A$80),ROW()-ROW(A$80)+(ROWS($88:114)-1)*2,4))","v":0},0,null,0,{"$f":"INDIRECT(ADDRESS(ROW(A$80),ROW()-ROW(A$80)+(ROWS($88:114)-1)*2+1,4))","v":0}]
[{"$f":"IF(B115=\"\",0,INDEX(Price_List,ROWS($88:115)))","v":20},{"$f":"IF($C115=\"\",\"\",COUNTA($C$88:$C115))","v":28},{"$f":"IF(INDEX(INDIRECT(\"Product_List\"),ROWS($88:115))=\"\",\"\",INDEX(INDIRECT(\"Product_List\"),ROWS($88:115)))","v":"28-ขนมปังไส้สังขยามะพร้าว"},{"$f":"ยอดยกมา","v":0},null,null,null,null,null,null,0,null,{"$f":"INDIRECT(ADDRESS(ROW(A$80),ROW()-ROW(A$80)+(ROWS($88:115)-1)*2-1,4))","v":0},null,0,null,0,null,null,null,0,null,0,null,null,null,null,null,{"$f":"INDIRECT(ADDRESS(ROW(A$80),ROW()-ROW(A$80)+(ROWS($88:115)-1)*2,4))","v":0},0,null,0,{"$f":"INDIRECT(ADDRESS(ROW(A$80),ROW()-ROW(A$80)+(ROWS($88:115)-1)*2+1,4))","v":0}]
[{"$f":"IF(B116=\"\",0,INDEX(Price_List,ROWS($88:116)))","v":10},{"$f":"IF($C116=\"\",\"\",COUNTA($C$88:$C116))","v":29},{"$f":"IF(INDEX(INDIRECT(\"Product_List\"),ROWS($88:116))=\"\",\"\",INDEX(INDIRECT(\"Product_List\"),ROWS($88:116)))","v":"29-ขนมปังไส้ครีมชาไทย"},{"$f":"ยอดยกมา","v":0},null,null,null,null,null,null,0,null,{"$f":"INDIRECT(ADDRESS(ROW(A$80),ROW()-ROW(A$80)+(ROWS($88:116)-1)*2-1,4))","v":0},null,0,null,0,null,null,null,0,null,0,null,null,null,null,null,{"$f":"INDIRECT(ADDRESS(ROW(A$80),ROW()-ROW(A$80)+(ROWS($88:116)-1)*2,4))","v":0},0,null,0,{"$f":"INDIRECT(ADDRESS(ROW(A$80),ROW()-ROW(A$80)+(ROWS($88:116)-1)*2+1,4))","v":0}]
[{"$f":"IF(B117=\"\",0,INDEX(Price_List,ROWS($88:117)))","v":15},{"$f":"IF($C117=\"\",\"\",COUNTA($C$88:$C117))","v":30},{"$f":"IF(INDEX(INDIRECT(\"Product_List\"),ROWS($88:117))=\"\",\"\",INDEX(INDIRECT(\"Product_List\"),ROWS($88:117)))","v":"30-ขนมปังโรลมันม่วง"},{"$f":"ยอดยกมา","v":0},null,null,null,null,null,null,0,null,{"$f":"INDIRECT(ADDRESS(ROW(A$80),ROW()-ROW(A$80)+(ROWS($88:117)-1)*2-1,4))","v":0},null,0,null,0,null,null,null,0,null,0,null,null,null,null,null,{"$f":"INDIRECT(ADDRESS(ROW(A$80),ROW()-ROW(A$80)+(ROWS($88:117)-1)*2,4))","v":0},0,null,0,{"$f":"INDIRECT(ADDRESS(ROW(A$80),ROW()-ROW(A$80)+(ROWS($88:117)-1)*2+1,4))","v":0}]
[{"$f":"IF(B118=\"\",0,INDEX(Price_List,ROWS($88:118)))","v":15},{"$f":"IF($C118=\"\",\"\",COUNTA($C$88:$C118))","v":31},{"$f":"IF(INDEX(INDIRECT(\"Product_List\"),ROWS($88:118))=\"\",\"\",INDEX(INDIRECT(\"Product_List\"),ROWS($88:118)))","v":"31-ขนมปังโรลช็อกโกแลต"},{"$f":"ยอดยกมา","v":0},null,null,null,null,null,null,0,null,{"$f":"INDIRECT(ADDRESS(ROW(A$80),ROW()-ROW(A$80)+(ROWS($88:118)-1)*2-1,4))","v":0},null,0,null,0,null,null,null,0,null,0,null,null,null,null,null,{"$f":"INDIRECT(ADDRESS(ROW(A$80),ROW()-ROW(A$80)+(ROWS($88:118)-1)*2,4))","v":0},0,null,0,{"$f":"INDIRECT(ADDRESS(ROW(A$80),ROW()-ROW(A$80)+(ROWS($88:118)-1)*2+1,4))","v":0}]
[{"$f":"IF(B119=\"\",0,INDEX(Price_List,ROWS($88:119)))","v":16},{"$f":"IF($C119=\"\",\"\",COUNTA($C$88:$C119))","v":32},{"$f":"IF(INDEX(INDIRECT(\"Product_List\"),ROWS($88:119))=\"\",\"\",INDEX(INDIRECT(\"Product_List\"),ROWS($88:119)))","v":"32-ขนมปังชนิดแผ่น(155กรัม)"},{"$f":"ยอดยกมา","v":0},null,null,null,null,null,null,0,null,{"$f":"INDIRECT(ADDRESS(ROW(A$80),ROW()-ROW(A$80)+(ROWS($88:119)-1)*2-1,4))","v":0},null,0,null,0,null,null,null,0,null,0,null,null,null,null,null,{"$f":"INDIRECT(ADDRESS(ROW(A$80),ROW()-ROW(A$80)+(ROWS($88:119)-1)*2,4))","v":0},0,null,0,{"$f":"INDIRECT(ADDRESS(ROW(A$80),ROW()-ROW(A$80)+(ROWS($88:119)-1)*2+1,4))","v":0}]
[{"$f":"IF(B120=\"\",0,INDEX(Price_List,ROWS($88:120)))","v":15},{"$f":"IF($C120=\"\",\"\",COUNTA($C$88:$C120))","v":33},{"$f":"IF(INDEX(INDIRECT(\"Product_List\"),ROWS($88:120))=\"\",\"\",INDEX(INDIRECT(\"Product_List\"),ROWS($88:120)))","v":"33-ขนมปังโรลเผือก"},{"$f":"ยอดยกมา","v":0},null,null,null,null,null,null,0,null,{"$f":"INDIRECT(ADDRESS(ROW(A$80),ROW()-ROW(A$80)+(ROWS($88:120)-1)*2-1,4))","v":0},null,0,null,0,null,null,null,0,null,0,null,null,null,null,null,{"$f":"INDIRECT(ADDRESS(ROW(A$80),ROW()-ROW(A$80)+(ROWS($88:120)-1)*2,4))","v":0},0,null,0,{"$f":"INDIRECT(ADDRESS(ROW(A$80),ROW()-ROW(A$80)+(ROWS($88:120)-1)*2+1,4))","v":0}]
[{"$f":"IF(B121=\"\",0,INDEX(Price_List,ROWS($88:121)))","v":15},{"$f":"IF($C121=\"\",\"\",COUNTA($C$88:$C121))","v":34},{"$f":"IF(INDEX(INDIRECT(\"Product_List\"),ROWS($88:121))=\"\",\"\",INDEX(INDIRECT(\"Product_List\"),ROWS($88:121)))","v":"34-ขนมปังไก่หยองน้ำสลัด Mini"},{"$f":"ยอดยกมา","v":0},null,null,null,null,null,null,0,null,{"$f":"INDIRECT(ADDRESS(ROW(A$80),ROW()-ROW(A$80)+(ROWS($88:121)-1)*2-1,4))","v":0},null,0,null,0,null,null,null,0,null,0,null,null,null,null,null,{"$f":"INDIRECT(ADDRESS(ROW(A$80),ROW()-ROW(A$80)+(ROWS($88:121)-1)*2,4))","v":0},0,null,0,{"$f":"INDIRECT(ADDRESS(ROW(A$80),ROW()-ROW(A$80)+(ROWS($88:121)-1)*2+1,4))","v":0}]
[{"$f":"IF(B122=\"\",0,INDEX(Price_List,ROWS($88:122)))","v":10},{"$f":"IF($C122=\"\",\"\",COUNTA($C$88:$C122))","v":35},{"$f":"IF(INDEX(INDIRECT(\"Product_List\"),ROWS($88:122))=\"\",\"\",INDEX(INDIRECT(\"Product_List\"),ROWS($88:122)))","v":"35-ขนมปังไส้ช็อกโกแลต"},{"$f":"ยอดยกมา","v":0},null,null,null,null,null,null,0,null,{"$f":"INDIRECT(ADDRESS(ROW(A$80),ROW()-ROW(A$80)+(ROWS($88:122)-1)*2-1,4))","v":0},null,0,null,0,null,null,null,0,null,0,null,null,null,null,null,{"$f":"INDIRECT(ADDRESS(ROW(A$80),ROW()-ROW(A$80)+(ROWS($88:122)-1)*2,4))","v":0},0,null,0,{"$f":"INDIRECT(ADDRESS(ROW(A$80),ROW()-ROW(A$80)+(ROWS($88:122)-1)*2+1,4))","v":0}]
[{"$f":"IF(B123=\"\",0,INDEX(Price_List,ROWS($88:123)))","v":10},{"$f":"IF($C123=\"\",\"\",COUNTA($C$88:$C123))","v":36},{"$f":"IF(INDEX(INDIRECT(\"Product_List\"),ROWS($88:123))=\"\",\"\",INDEX(INDIRECT(\"Product_List\"),ROWS($88:123)))","v":"36-ขนมปังไส้ครีมสังขยาไข่"},{"$f":"ยอดยกมา","v":0},null,null,null,null,null,null,0,null,{"$f":"INDIRECT(ADDRESS(ROW(A$80),ROW()-ROW(A$80)+(ROWS($88:123)-1)*2-1,4))","v":0},null,0,null,0,null,null,null,0,null,0,null,null,null,null,null,{"$f":"INDIRECT(ADDRESS(ROW(A$80),ROW()-ROW(A$80)+(ROWS($88:123)-1)*2,4))","v":0},0,null,0,{"$f":"INDIRECT(ADDRESS(ROW(A$80),ROW()-ROW(A$80)+(ROWS($88:123)-1)*2+1,4))","v":0}]
[{"$f":"IF(B124=\"\",0,INDEX(Price_List,ROWS($88:124)))","v":20},{"$f":"IF($C124=\"\",\"\",COUNTA($C$88:$C124))","v":37},{"$f":"IF(INDEX(INDIRECT(\"Product_List\"),ROWS($88:124))=\"\",\"\",INDEX(INDIRECT(\"Product_List\"),ROWS($88:124)))","v":"37-ขนมปังพิซซ่าฮาวายเอี้ยน"},{"$f":"ยอดยกมา","v":0},null,null,null,null,null,null,0,null,{"$f":"INDIRECT(ADDRESS(ROW(A$80),ROW()-ROW(A$80)+(ROWS($88:124)-1)*2-1,4))","v":0},null,0,null,0,null,null,null,0,null,0,null,null,null,null,null,{"$f":"INDIRECT(ADDRESS(ROW(A$80),ROW()-ROW(A$80)+(ROWS($88:124)-1)*2,4))","v":0},0,null,0,{"$f":"INDIRECT(ADDRESS(ROW(A$80),ROW()-ROW(A$80)+(ROWS($88:124)-1)*2+1,4))","v":0}]
[{"$f":"IF(B125=\"\",0,INDEX(Price_List,ROWS($88:125)))","v":20},{"$f":"IF($C125=\"\",\"\",COUNTA($C$88:$C125))","v":38},{"$f":"IF(INDEX(INDIRECT(\"Product_List\"),ROWS($88:125))=\"\",\"\",INDEX(INDIRECT(\"Product_List\"),ROWS($88:125)))","v":"38-ครัวซองต์หมูหยองน้ำสลัด"},{"$f":"ยอดยกมา","v":0},null,null,null,null,null,null,0,null,{"$f":"INDIRECT(ADDRESS(ROW(A$80),ROW()-ROW(A$80)+(ROWS($88:125)-1)*2-1,4))","v":0},null,0,null,0,null,null,null,0,null,0,null,null,null,null,null,{"$f":"INDIRECT(ADDRESS(ROW(A$80),ROW()-ROW(A$80)+(ROWS($88:125)-1)*2,4))","v":0},0,null,0,{"$f":"INDIRECT(ADDRESS(ROW(A$80),ROW()-ROW(A$80)+(ROWS($88:125)-1)*2+1,4))","v":0}]
[{"$f":"IF(B126=\"\",0,INDEX(Price_List,ROWS($88:126)))","v":15},{"$f":"IF($C126=\"\",\"\",COUNTA($C$88:$C126))","v":39},{"$f":"IF(INDEX(INDIRECT(\"Product_List\"),ROWS($88:126))=\"\",\"\",INDEX(INDIRECT(\"Product_List\"),ROWS($88:126)))","v":"39-แพนเบรดไส้เผือก"},{"$f":"ยอดยกมา","v":0},null,null,null,null,null,null,0,null,{"$f":"INDIRECT(ADDRESS(ROW(A$80),ROW()-ROW(A$80)+(ROWS($88:126)-1)*2-1,4))","v":0},null,0,null,0,null,null,null,0,null,0,null,null,null,null,null,{"$f":"INDIRECT(ADDRESS(ROW(A$80),ROW()-ROW(A$80)+(ROWS($88:126)-1)*2,4))","v":0},0,null,0,{"$f":"INDIRECT(ADDRESS(ROW(A$80),ROW()-ROW(A$80)+(ROWS($88:126)-1)*2+1,4))","v":0}]
[{"$f":"IF(B127=\"\",0,INDEX(Price_List,ROWS($88:127)))","v":15},{"$f":"IF($C127=\"\",\"\",COUNTA($C$88:$C127))","v":40},{"$f":"IF(INDEX(INDIRECT(\"Product_List\"),ROWS($88:127))=\"\",\"\",INDEX(INDIRECT(\"Product_List\"),ROWS($88:127)))","v":"40-แพนเบรดไส้ถั่วแดง"},{"$f":"ยอดยกมา","v":0},null,null,null,null,null,null,{"$f":"D127+E127+J127-I127+H127","v":0},null,{"$f":"INDIRECT(ADDRESS(ROW(A$80),ROW()-ROW(A$80)+(ROWS($88:127)-1)*2-1,4))","v":0},null,{"$f":"F127+G127+M127+J127-K127","v":0},null,{"$f":"O127*A127","v":0},null,null,null,{"$f":"D127+E127-F127-G127","v":0},null,{"$f":"U127*6%+U127","v":0},null,null,null,null,null,{"$f":"INDIRECT(ADDRESS(ROW(A$80),ROW()-ROW(A$80)+(ROWS($88:127)-1)*2,4))","v":0},0,null,0,{"$f":"INDIRECT(ADDRESS(ROW(A$80),ROW()-ROW(A$80)+(ROWS($88:127)-1)*2+1,4))","v":0}]
[{"$f":"IF(B128=\"\",0,INDEX(Price_List,ROWS($88:128)))","v":12},{"$f":"IF($C128=\"\",\"\",COUNTA($C$88:$C128))","v":41},{"$f":"IF(INDEX(INDIRECT(\"Product_List\"),ROWS($88:128))=\"\",\"\",INDEX(INDIRECT(\"Product_List\"),ROWS($88:128)))","v":"41-ขนมปังกรอบเนยน้ำตาล(30กรัม)"},{"$f":"ยอดยกมา","v":0},null,null,null,null,null,null,0,null,{"$f":"INDIRECT(ADDRESS(ROW(A$80),ROW()-ROW(A$80)+(ROWS($88:128)-1)*2-1,4))","v":0},null,0,null,0,null,null,null,0,null,0,null,null,null,null,null,{"$f":"INDIRECT(ADDRESS(ROW(A$80),ROW()-ROW(A$80)+(ROWS($88:128)-1)*2,4))","v":0},0,null,0,{"$f":"INDIRECT(ADDRESS(ROW(A$80),ROW()-ROW(A$80)+(ROWS($88:128)-1)*2+1,4))","v":0}]
[{"$f":"IF(B129=\"\",0,INDEX(Price_List,ROWS($88:129)))","v":18},{"$f":"IF($C129=\"\",\"\",COUNTA($C$88:$C129))","v":42},{"$f":"IF(INDEX(INDIRECT(\"Product_List\"),ROWS($88:129))=\"\",\"\",INDEX(INDIRECT(\"Product_List\"),ROWS($88:129)))","v":"42-ขนมปังชนิดแผ่นโฮลวีต"},{"$f":"ยอดยกมา","v":0},null,null,null,null,null,null,0,null,{"$f":"INDIRECT(ADDRESS(ROW(A$80),ROW()-ROW(A$80)+(ROWS($88:129)-1)*2-1,4))","v":0},null,0,null,0,null,null,null,0,null,0,null,null,null,null,null,{"$f":"INDIRECT(ADDRESS(ROW(A$80),ROW()-ROW(A$80)+(ROWS($88:129)-1)*2,4))","v":0},0,null,0,{"$f":"INDIRECT(ADDRESS(ROW(A$80),ROW()-ROW(A$80)+(ROWS($88:129)-1)*2+1,4))","v":0}]
[{"$f":"IF(B130=\"\",0,INDEX(Price_List,ROWS($88:130)))","v":12},{"$f":"IF($C130=\"\",\"\",COUNTA($C$88:$C130))","v":43},{"$f":"IF(INDEX(INDIRECT(\"Product_List\"),ROWS($88:130))=\"\",\"\",INDEX(INDIRECT(\"Product_List\"),ROWS($88:130)))","v":"43-เค้กโรลใบเตย"},{"$f":"ยอดยกมา","v":0},null,null,null,null,null,null,{"$f":"D130+E130+J130-I130+H130","v":0},null,{"$f":"INDIRECT(ADDRESS(ROW(A$80),ROW()-ROW(A$80)+(ROWS($88:130)-1)*2-1,4))","v":0},null,{"$f":"F130+G130+M130+J130-K130","v":0},null,{"$f":"O130*A130","v":0},null,null,null,{"$f":"D130+E130-F130-G130","v":0},null,{"$f":"U130*6%+U130","v":0},null,null,null,null,null,{"$f":"INDIRECT(ADDRESS(ROW(A$80),ROW()-ROW(A$80)+(ROWS($88:130)-1)*2,4))","v":0},0,null,0,{"$f":"INDIRECT(ADDRESS(ROW(A$80),ROW()-ROW(A$80)+(ROWS($88:130)-1)*2+1,4))","v":0}]
[{"$f":"IF(B131=\"\",0,INDEX(Price_List,ROWS($88:131)))","v":12},{"$f":"IF($C131=\"\",\"\",COUNTA($C$88:$C131))","v":44},{"$f":"IF(INDEX(INDIRECT(\"Product_List\"),ROWS($88:131))=\"\",\"\",INDEX(INDIRECT(\"Product_List\"),ROWS($88:131)))","v":"44-ขนมโมจิไส้ถั่วดำ"},{"$f":"ยอดยกมา","v":0},null,null,null,null,null,null,{"$f":"D131+E131+J131-I131+H131","v":0},null,{"$f":"INDIRECT(ADDRESS(ROW(A$80),ROW()-ROW(A$80)+(ROWS($88:131)-1)*2-1,4))","v":0},null,{"$f":"F131+G131+M131+J131-K131","v":0},null,{"$f":"O131*A131","v":0},null,null,null,{"$f":"D131+E131-F131-G131","v":0},null,{"$f":"U131*6%+U131","v":0},null,null,null,null,null,{"$f":"INDIRECT(ADDRESS(ROW(A$80),ROW()-ROW(A$80)+(ROWS($88:131)-1)*2,4))","v":0},0,null,0,{"$f":"INDIRECT(ADDRESS(ROW(A$80),ROW()-ROW(A$80)+(ROWS($88:131)-1)*2+1,4))","v":0}]
[{"$f":"IF(B132=\"\",0,INDEX(Price_List,ROWS($88:132)))","v":25},{"$f":"IF($C132=\"\",\"\",COUNTA($C$88:$C132))","v":45},{"$f":"IF(INDEX(INDIRECT(\"Product_List\"),ROWS($88:132))=\"\",\"\",INDEX(INDIRECT(\"Product_List\"),ROWS($88:132)))","v":"45-ครัวซองต์ไส้กรอกชีส"},{"$f":"ยอดยกมา","v":0},null,null,null,null,null,null,{"$f":"D132+E132+J132-I132+H132","v":0},null,{"$f":"INDIRECT(ADDRESS(ROW(A$80),ROW()-ROW(A$80)+(ROWS($88:132)-1)*2-1,4))","v":0},null,{"$f":"F132+G132+M132+J132-K132","v":0},null,{"$f":"O132*A132","v":0},null,null,null,{"$f":"D132+E132-F132-G132","v":0},null,{"$f":"U132*6%+U132","v":0},null,null,null,null,null,{"$f":"INDIRECT(ADDRESS(ROW(A$80),ROW()-ROW(A$80)+(ROWS($88:132)-1)*2,4))","v":0},0,null,0,{"$f":"INDIRECT(ADDRESS(ROW(A$80),ROW()-ROW(A$80)+(ROWS($88:132)-1)*2+1,4))","v":0}]
[{"$f":"IF(B133=\"\",0,INDEX(Price_List,ROWS($88:133)))","v":12},{"$f":"IF($C133=\"\",\"\",COUNTA($C$88:$C133))","v":46},{"$f":"IF(INDEX(INDIRECT(\"Product_List\"),ROWS($88:133))=\"\",\"\",INDEX(INDIRECT(\"Product_List\"),ROWS($88:133)))","v":"46-ขนมเปี๊ยะไส้ถั่ว"},{"$f":"ยอดยกมา","v":0},null,null,null,null,null,null,0,null,{"$f":"INDIRECT(ADDRESS(ROW(A$80),ROW()-ROW(A$80)+(ROWS($88:133)-1)*2-1,4))","v":0},null,0,null,0,null,null,null,0,null,0,null,null,null,null,null,{"$f":"INDIRECT(ADDRESS(ROW(A$80),ROW()-ROW(A$80)+(ROWS($88:133)-1)*2,4))","v":0},0,null,0,{"$f":"INDIRECT(ADDRESS(ROW(A$80),ROW()-ROW(A$80)+(ROWS($88:133)-1)*2+1,4))","v":0}]
[{"$f":"IF(B134=\"\",0,INDEX(Price_List,ROWS($88:134)))","v":12},{"$f":"IF($C134=\"\",\"\",COUNTA($C$88:$C134))","v":47},{"$f":"IF(INDEX(INDIRECT(\"Product_List\"),ROWS($88:134))=\"\",\"\",INDEX(INDIRECT(\"Product_List\"),ROWS($88:134)))","v":"47-ขนมเปี๊ยะไส้ฟัก"},{"$f":"ยอดยกมา","v":0},null,null,null,null,null,null,{"$f":"D134+E134+J134-I134+H134","v":0},null,{"$f":"INDIRECT(ADDRESS(ROW(A$80),ROW()-ROW(A$80)+(ROWS($88:134)-1)*2-1,4))","v":0},null,{"$f":"F134+G134+M134+J134-K134","v":0},null,{"$f":"O134*A134","v":0},null,null,null,{"$f":"D134+E134-F134-G134","v":0},null,{"$f":"U134*6%+U134","v":0},null,null,null,null,null,{"$f":"INDIRECT(ADDRESS(ROW(A$80),ROW()-ROW(A$80)+(ROWS($88:134)-1)*2,4))","v":0},0,null,0,{"$f":"INDIRECT(ADDRESS(ROW(A$80),ROW()-ROW(A$80)+(ROWS($88:134)-1)*2+1,4))","v":0}]
[{"$f":"IF(B135=\"\",0,INDEX(Price_List,ROWS($88:135)))","v":12},{"$f":"IF($C135=\"\",\"\",COUNTA($C$88:$C135))","v":48},{"$f":"IF(INDEX(INDIRECT(\"Product_List\"),ROWS($88:135))=\"\",\"\",INDEX(INDIRECT(\"Product_List\"),ROWS($88:135)))","v":"48-มังกี้เค้ก"},{"$f":"ยอดยกมา","v":0},null,null,null,null,null,null,0,null,{"$f":"INDIRECT(ADDRESS(ROW(A$80),ROW()-ROW(A$80)+(ROWS($88:135)-1)*2-1,4))","v":0},null,0,null,0,null,null,null,0,null,0,null,null,null,null,null,{"$f":"INDIRECT(ADDRESS(ROW(A$80),ROW()-ROW(A$80)+(ROWS($88:135)-1)*2,4))","v":0},0,null,0,{"$f":"INDIRECT(ADDRESS(ROW(A$80),ROW()-ROW(A$80)+(ROWS($88:135)-1)*2+1,4))","v":0}]
["รวม",null,null,{"$f":"SUM(D$88:D$135)","v":0},0,0,0,0,0,0,0,null,{"$f":"SUM(M$88:M$135)","v":0},null,null,null,{"$f":"$AP$98","v":0},null,"บาท",null,{"$f":"SUM(U$88:U$135)","v":0},null,{"$f":"SUM(W$88:W$135)","v":0},null,null,null,null,null,{"$f":"SUM(AC$88:AC$135)","v":0},{"$f":"SUM(AD$88:AD$135)","v":0},{"$f":"SUM(AE$88:AE$135)","v":0},{"$f":"SUM(AF$88:AF$135)","v":0},{"$f":"SUM(AG$88:AG$135)","v":0}]
["เลขที่ไมล์ เวลาออกทำงาน",null,null,{"$f":"$BF$3","v":0},null,"Km","น้ำหนักของเสีย"]
["เลขที่ไมล์ เวลากลับ",null,null,{"$f":"$BF$4","v":0},null,"Km",{"$f":"$AA$5","v":0},null,"KG"]
["เวลากลับถึงสำนักงาน",null,null,{"$f":"$BF$1","v":"00:00:00"},null,"น."]
["เติมน้ำมัน",null,null,{"$f":"$AX3","v":0},null,"บาท"]
["จำนวนน้ำมัน",null,null,{"$f":"$AX4","v":0},null,"ลิตร"]
["ยอดรวมต้นทุนสาขา",null,null,{"$f":"$AX5","v":0},null,"บาท"]

{"sheet":"10","index":14,"n_rows":142,"n_cols":154,"rows_kept":142,"cut":false,"hidden":false,"merged":[[129,10,129,11],[129,12,129,13],[129,14,129,15],[129,16,129,17],[129,20,129,21],[80,126,80,127],[128,10,128,11],[128,12,128,13],[128,14,128,15],[128,16,128,17],[128,20,128,21],[128,22,128,23],[128,24,128,25],[128,33,128,36],[125,10,125,11],[125,12,125,13],[125,14,125,15],[125,16,125,17],[125,20,125,21],[126,10,126,11],[127,10,127,11],[83,81,83,82],[83,84,83,85],[83,87,83,88],[83,90,83,91],[83,93,83,94],[83,96,83,97],[82,72,82,73],[129,22,129,23],[129,24,129,25],[129,33,129,36],[97,38,97,40],[92,24,92,25],[92,33,92,36],[90,24,90,25],[90,33,90,36],[96,33,96,36],[97,33,97,36],[88,24,88,25],[88,33,88,36],[80,132,80,133],[82,132,82,133],[6,135,6,137],[7,135,7,137],[8,135,8,137],[80,135,80,136],[82,135,82,136],[80,129,80,130],[82,126,82,127],[82,129,82,130],[6,138,6,140],[6,141,6,143],[6,147,6,149],[126,22,126,23],[127,22,127,23],[126,24,126,25],[127,24,127,25],[126,33,126,36],[127,33,127,36],[125,24,125,25],[125,33,125,36],[123,24,123,25],[123,33,123,36],[125,22,125,23],[124,22,124,23],[124,24,124,25],[124,33,124,36],[122,24,122,25],[122,33,122,36],[98,24,98,25],[98,33,98,36],[99,24,99,25],[99,33,99,36],[82,108,82,109],[139,0,139,2],[139,3,139,4],[140,0,140,2],[140,3,140,4],[141,0,141,2],[141,3,141,4],[137,0,137,2],[137,3,137,4],[137,6,137,7],[137,18,137,21],[138,0,138,2],[138,3,138,4],[135,20,135,21],[135,22,135,23],[135,24,135,25],[135,33,135,36],[136,0,136,2],[136,3,136,4],[135,0,135,2],[135,10,135,11],[135,12,135,13],[135,14,135,15],[135,16,135,17],[135,18,135,19],[126,12,126,13],[127,12,127,13],[126,14,126,15],[127,14,127,15],[126,16,126,17],[127,16,127,17],[126,20,126,21],[127,20,127,21],[124,10,124,11],[124,12,124,13],[124,14,124,15],[124,16,124,17],[124,20,124,21],[123,10,123,11],[123,12,123,13],[123,14,123,15],[123,16,123,17],[123,20,123,21],[123,22,123,23],[122,10,122,11],[122,12,122,13],[122,14,122,15],[122,16,122,17],[122,20,122,21],[122,22,122,23],[121,10,121,11],[121,12,121,13],[121,14,121,15],[121,16,121,17],[121,20,121,21],[121,22,121,23],[121,24,121,25],[121,33,121,36],[120,10,120,11],[120,12,120,13],[120,14,120,15],[120,16,120,17],[120,20,120,21],[120,22,120,23],[120,24,120,25],[120,33,120,36],[119,10,119,11],[119,12,119,13],[119,14,119,15],[119,16,119,17],[119,20,119,21],[119,22,119,23],[119,24,119,25],[119,33,119,36],[118,10,118,11],[118,12,118,13],[118,14,118,15],[118,16,118,17],[118,20,118,21],[118,22,118,23],[118,24,118,25],[118,33,118,36],[117,10,117,11],[117,12,117,13],[117,14,117,15],[117,16,117,17],[117,20,117,21],[117,22,117,23],[117,24,117,25],[117,33,117,36],[116,10,116,11],[116,12,116,13],[116,14,116,15],[116,16,116,17],[116,20,116,21],[116,22,116,23],[116,24,116,25],[116,33,116,36],[115,10,115,11],[115,12,115,13],[115,14,115,15],[115,16,115,17],[115,20,115,21],[115,22,115,23],[115,24,115,25],[115,33,115,36],[114,10,114,11],[114,12,114,13],[114,14,114,15],[114,16,114,17],[114,20,114,21],[114,22,114,23],[114,24,114,25],[114,33,114,36],[113,10,113,11],[113,12,113,13],[113,14,113,15],[113,16,113,17],[113,20,113,21],[113,22,113,23],[113,24,113,25],[113,33,113,36],[112,10,112,11],[112,12,112,13],[112,14,112,15],[112,16,112,17],[112,20,112,21],[112,22,112,23],[112,24,112,25],[112,33,112,36],[111,10,111,11],[111,12,111,13],[111,14,111,15],[111,16,111,17],[111,20,111,21],[111,22,111,23],[111,24,111,25],[111,33,111,36],[110,10,110,11],[110,12,110,13],[110,14,110,15],[110,16,110,17],[110,20,110,21],[110,22,110,23],[110,24,110,25],[110,33,110,36],[109,10,109,11],[109,12,109,13],[109,14,109,15],[109,16,109,17],[109,20,109,21],[109,22,109,23],[109,24,109,25],[109,33,109,36],[108,10,108,11],[108,12,108,13],[108,14,108,15],[108,16,108,17],[108,20,108,21],[108,22,108,23],[108,24,108,25],[108,33,108,36],[107,10,107,11],[107,12,107,13],[107,14,107,15],[107,16,107,17],[107,20,107,21],[107,22,107,23],[107,24,107,25],[107,33,107,36],[106,10,106,11],[106,12,106,13],[106,14,106,15],[106,16,106,17],[106,20,106,21],[106,22,106,23],[106,24,106,25],[106,33,106,36],[105,10,105,11],[105,12,105,13],[105,14,105,15],[105,16,105,17],[105,20,105,21],[105,22,105,23],[105,24,105,25],[105,33,105,36],[104,10,104,11],[104,12,104,13],[104,14,104,15],[104,16,104,17],[104,20,104,21],[104,22,104,23],[104,24,104,25],[104,33,104,36],[103,10,103,11],[103,12,103,13],[103,14,103,15],[103,16,103,17],[103,20,103,21],[103,22,103,23],[103,24,103,25],[103,33,103,36],[102,10,102,11],[102,12,102,13],[102,14,102,15],[102,16,102,17],[102,20,102,21],[102,22,102,23],[102,24,102,25],[102,33,102,36],[101,10,101,11],[101,12,101,13],[101,14,101,15],[101,16,101,17],[101,20,101,21],[101,22,101,23],[101,24,101,25],[101,33,101,36],[100,10,100,11],[100,12,100,13],[100,14,100,15],[100,16,100,17],[100,20,100,21],[100,22,100,23],[100,24,100,25],[100,33,100,36],[99,10,99,11],[99,12,99,13],[99,14,99,15],[99,16,99,17],[99,20,99,21],[99,22,99,23],[98,10,98,11],[98,12,98,13],[98,14,98,15],[98,16,98,17],[98,20,98,21],[98,22,98,23],[97,10,97,11],[97,12,97,13],[97,14,97,15],[97,16,97,17],[97,20,97,21],[97,22,97,23],[97,24,97,25],[96,10,96,11],[96,12,96,13],[96,14,96,15],[96,16,96,17],[96,20,96,21],[96,22,96,23],[96,24,96,25],[95,10,95,11],[95,12,95,13],[95,14,95,15],[95,16,95,17],[95,20,95,21],[95,22,95,23],[95,24,95,25],[95,33,95,36],[94,10,94,11],[94,12,94,13],[94,14,94,15],[94,16,94,17],[94,20,94,21],[94,22,94,23],[94,24,94,25],[94,33,94,36],[93,10,93,11],[93,12,93,13],[93,14,93,15],[93,16,93,17],[93,20,93,21],[93,22,93,23],[93,24,93,25],[93,33,93,36],[92,10,92,11],[92,12,92,13],[92,14,92,15],[92,16,92,17],[92,20,92,21],[92,22,92,23],[91,10,91,11],[91,12,91,13],[91,14,91,15],[91,16,91,17],[91,20,91,21],[91,22,91,23],[91,24,91,25],[91,33,91,36],[90,10,90,11],[90,12,90,13],[90,14,90,15],[90,16,90,17],[90,20,90,21],[90,22,90,23],[87,33,87,36],[86,10,86,11],[86,12,86,13],[86,14,86,15],[86,16,86,17],[86,20,86,21],[86,22,86,23],[89,10,89,11],[89,12,89,13],[89,14,89,15],[89,16,89,17],[89,20,89,21],[89,22,89,23],[89,24,89,25],[89,33,89,36],[88,10,88,11],[88,12,88,13],[88,14,88,15],[88,16,88,17],[88,20,88,21],[88,22,88,23],[86,24,86,25],[86,33,86,36],[83,150,83,153],[83,99,83,100],[83,102,83,103],[83,105,83,106],[83,108,83,109],[83,111,83,112],[83,114,83,115],[83,126,83,127],[83,129,83,130],[83,132,83,133],[83,135,83,136],[83,117,83,118],[83,120,83,121],[83,123,83,124],[82,75,82,76],[82,78,82,79],[82,81,82,82],[82,84,82,85],[82,87,82,88],[82,99,82,100],[82,102,82,103],[82,105,82,106],[82,63,82,64],[82,66,82,67],[82,69,82,70],[82,90,82,91],[82,93,82,94],[82,96,82,97],[83,0,83,5],[83,6,83,7],[83,9,83,10],[83,12,83,13],[83,15,83,16],[83,18,83,19],[83,21,83,22],[83,24,83,25],[83,54,83,55],[83,27,83,28],[82,36,82,37],[83,30,83,31],[83,33,83,34],[83,36,83,37],[82,39,82,40],[82,42,82,43],[83,45,83,46],[83,48,83,49],[83,51,83,52],[83,39,83,40],[83,42,83,43],[82,54,82,55],[82,57,82,58],[82,60,82,61],[81,0,81,2],[81,3,81,5],[81,150,82,153],[82,0,82,2],[82,3,82,4],[82,6,82,7],[82,9,82,10],[82,12,82,13],[82,15,82,16],[82,45,82,46],[82,48,82,49],[82,51,82,52],[82,18,82,19],[82,21,82,22],[82,24,82,25],[82,27,82,28],[82,30,82,31],[82,33,82,34],[82,111,82,112],[82,114,82,115],[82,117,82,118],[82,120,82,121],[82,123,82,124],[80,111,80,112],[80,114,80,115],[80,117,80,118],[80,120,80,121],[80,123,80,124],[80,93,80,94],[80,96,80,97],[80,99,80,100],[80,102,80,103],[80,105,80,106],[80,108,80,109],[80,36,80,37],[80,75,80,76],[80,78,80,79],[80,81,80,82],[80,84,80,85],[80,87,80,88],[80,90,80,91],[80,57,80,58],[80,60,80,61],[80,63,80,64],[80,66,80,67],[80,69,80,70],[80,72,80,73],[6,0,8,0],[6,1,8,1],[80,0,80,5],[80,6,80,7],[80,9,80,10],[80,12,80,13],[80,15,80,16],[80,18,80,19],[8,117,8,119],[8,54,8,56],[8,57,8,59],[8,60,8,62],[8,27,8,29],[8,30,8,32],[8,33,8,35],[8,36,8,38],[8,39,8,41],[8,42,8,44],[8,9,8,11],[8,12,8,14],[8,15,8,17],[8,18,8,20],[8,21,8,23],[8,24,8,26],[6,129,6,131],[7,126,7,128],[7,129,7,131],[8,126,8,128],[8,129,8,131],[6,126,6,128],[6,84,6,86],[6,132,6,134],[79,0,79,5],[8,99,8,101],[8,102,8,104],[8,105,8,107],[8,108,8,110],[8,111,8,113],[8,114,8,116],[8,81,8,83],[8,84,8,86],[8,87,8,89],[8,90,8,92],[8,93,8,95],[8,96,8,98],[8,63,8,65],[8,66,8,68],[8,69,8,71],[7,120,7,122],[7,123,7,125],[7,150,8,150],[7,151,8,151],[7,102,7,104],[7,105,7,107],[7,108,7,110],[7,111,7,113],[7,114,7,116],[7,117,7,119],[8,120,8,122],[8,123,8,125],[7,132,7,134],[8,132,8,134],[6,152,8,152],[6,153,8,153],[7,6,7,8],[7,9,7,11],[7,12,7,14],[7,15,7,17],[7,18,7,20],[7,21,7,23],[7,24,7,26],[7,27,7,29],[6,117,6,119],[6,120,6,122],[6,123,6,125],[6,150,6,151],[6,99,6,101],[6,102,6,104],[6,105,6,107],[6,108,6,110],[6,93,6,95],[6,96,6,98],[6,63,6,65],[6,111,6,113],[6,114,6,116],[6,81,6,83],[6,2,8,2],[6,3,8,3],[6,4,8,4],[6,6,6,8],[8,6,8,8],[6,45,6,47],[6,48,6,50],[7,48,7,50],[6,39,6,41],[6,42,6,44],[7,30,7,32],[7,33,7,35],[7,36,7,38],[7,39,7,41],[7,42,7,44],[7,45,7,47],[8,45,8,47],[8,48,8,50],[4,26,4,29],[4,30,4,31],[4,32,4,34],[4,35,4,36],[6,9,6,11],[6,12,6,14],[6,15,6,17],[6,18,6,20],[6,21,6,23],[6,24,6,26],[6,27,6,29],[6,30,6,32],[6,33,6,35],[6,36,6,38],[3,41,3,44],[3,46,3,48],[3,49,3,51],[3,54,3,56],[3,57,3,60],[4,0,4,1],[4,2,4,3],[4,4,4,5],[4,6,4,12],[4,14,4,16],[3,17,3,19],[3,22,3,25],[3,26,3,29],[3,30,3,33],[3,34,3,37],[3,38,3,40],[4,38,4,40],[4,41,4,44],[4,46,4,48],[4,49,4,51],[4,54,4,56],[4,57,4,60],[4,17,4,19],[4,22,4,25],[3,0,3,1],[3,2,3,3],[3,4,3,5],[3,6,3,12],[3,14,3,16],[2,17,2,19],[2,22,2,25],[2,26,2,29],[2,30,2,33],[0,38,0,40],[0,41,0,44],[0,46,0,48],[0,54,0,56],[0,57,0,60],[2,0,2,1],[2,2,2,3],[2,4,2,5],[2,6,2,12],[2,14,2,16],[0,0,0,12],[0,14,0,16],[0,17,0,23],[0,30,0,33],[0,34,0,35],[0,36,0,37],[2,41,2,44],[2,46,2,48],[2,49,2,51],[2,54,2,56],[2,57,2,60],[2,34,2,37],[2,38,2,40],[7,96,7,98],[7,99,7,101],[6,51,6,53],[6,60,6,62],[6,87,6,89],[6,90,6,92],[7,84,7,86],[7,87,7,89],[7,90,7,92],[7,66,7,68],[7,69,7,71],[7,72,7,74],[6,66,6,68],[7,75,7,77],[7,78,7,80],[7,81,7,83],[6,69,6,71],[6,72,6,74],[6,75,6,77],[6,78,6,80],[6,54,6,56],[6,57,6,59],[131,24,131,25],[131,10,131,11],[131,20,131,21],[7,51,7,53],[7,54,7,56],[7,57,7,59],[7,60,7,62],[7,63,7,65],[7,93,7,95],[8,72,8,74],[8,75,8,77],[8,78,8,80],[8,51,8,53],[80,39,80,40],[80,42,80,43],[80,45,80,46],[80,48,80,49],[80,51,80,52],[80,54,80,55],[80,21,80,22],[80,24,80,25],[80,27,80,28],[80,30,80,31],[80,33,80,34],[83,147,83,148],[130,22,130,23],[130,24,130,25],[130,33,130,36],[130,10,130,11],[130,12,130,13],[130,14,130,15],[130,16,130,17],[130,20,130,21],[83,63,83,64],[83,66,83,67],[83,69,83,70],[83,72,83,73],[83,75,83,76],[83,78,83,79],[83,57,83,58],[83,60,83,61],[87,10,87,11],[87,12,87,13],[87,14,87,15],[87,16,87,17],[87,20,87,21],[87,22,87,23],[87,24,87,25],[7,147,7,149],[8,138,8,140],[8,141,8,143],[8,147,8,149],[80,138,80,139],[80,141,80,142],[80,147,80,148],[82,138,82,139],[82,141,82,142],[82,147,82,148],[132,10,132,11],[134,10,134,11],[131,12,131,13],[132,12,132,13],[134,12,134,13],[131,14,131,15],[132,14,132,15],[134,14,134,15],[131,16,131,17],[132,16,132,17],[134,16,134,17],[133,10,133,11],[133,12,133,13],[133,14,133,15],[133,16,133,17],[132,20,132,21],[134,20,134,21],[131,22,131,23],[132,22,132,23],[134,22,134,23],[6,144,6,146],[7,144,7,146],[8,144,8,146],[80,144,80,145],[82,144,82,145],[83,144,83,145],[133,20,133,21],[133,22,133,23],[133,24,133,25],[133,33,133,36],[132,24,132,25],[134,24,134,25],[131,33,131,36],[132,33,132,36],[134,33,134,36],[7,138,7,140],[7,141,7,143],[83,138,83,139],[83,141,83,142]]}
[":::: รายงานการขายประจำวัน (Sale Daily Report)  ::::",null,null,null,null,null,null,null,null,null,null,null,null,null,"Print Date : ",null,null,{"$f":"NOW()","v":"2025-04-24T22:39:10.140"},null,null,null,null,null,null,null,null,null,null,null,null,"จำนวนร้าน :",null,null,null,{"$f":"MAX($A$10:$A$79)","v":0},null,"ร้าน",null,"เป้ายอดขาย :",null,null,null,null,null,null,null,{"$f":"C3","v":45787},null,null,{"$f":"LEFT('Problems & Solutions'!$B$2,FIND(\"|\",'Problems & Solutions'!$B$2))&\" วันที่\"&TEXT($C$3,\"[$-107041E] d mmmm yyyy;@\")","v":"ขั้นตอนการตรวจรีพอร์ตขาย | วันที่ 10 พฤษภาคม 2568"},null,null,null,null,"เวลากลับ :"]
[]
["วันที่ :",null,{"$f":"DATE(ใส่ข้อมูล!G2-543,ใส่ข้อมูล!V2,ActiveSheetName)","v":"2025-05-10"},null,"พนักงานขาย",null,{"$f":"INDEX(OFFSET(Sale_Region,,1),ActiveSheetName)","v":0},null,null,null,null,null,null,null,"รวมยอดเบิก :",null,null,{"$f":"E136","v":0},null,null,"ชิ้น",null,"ใหญ่สด(40)",null,null,null,{"$f":"Cash_Major_Bill","v":0},null,null,null,"ใหญ่เชื่อ(42)",null,null,null,{"$f":"Credit_Major_Bill","v":0},null,null,null,"บิลใหญ่ :",null,null,{"$f":"AA3+AI3","v":0},null,null,null,null,"เติมน้ำมัน :",null,null,null,null,null,"บาท",null,"ไมล์ออก :",null,null,{"$f":"เลขไมล์ออก","v":0},null,null,null,"Km"]
["เขตการขาย :",null,{"$f":"INDEX(Sale_Region,ActiveSheetName)","v":0},null,"ผช.ขาย",null,{"$f":"INDEX(OFFSET(Sale_Region,,2),ActiveSheetName)","v":0},null,null,null,null,null,null,null,"ของเหลือ :",null,null,{"$f":"F136","v":0},null,null,"ชิ้น",null,"เล็กสด(41)",null,null,null,{"$f":"Cash_Minor_Bill","v":0},null,null,null,"เล็กเชื่อ(43)",null,null,null,{"$f":"Credit_Minor_Bill","v":0},null,null,null,"บิลเล็ก :",null,null,{"$f":"AA4+AI4","v":0},null,null,null,null,"จำนวนลิตร :",null,null,null,null,null,"ลิตร",null,"ไมล์เข้า :",null,null,null,null,null,null,"Km"]
["สายส่ง :",null,{"$f":"\"Sale \"&ใส่ข้อมูล!E3&\"-\"&ใส่ข้อมูล!G3","v":"Sale KB-01"},null,"พนักงานเสริม",null,{"$f":"INDEX(OFFSET(Sale_Region,,3),ActiveSheetName)","v":0},null,null,null,null,null,null,null,"ของเสีย :",null,null,{"$f":"G136","v":0},null,null,"ชิ้น",null,"น้ำหนักของเสีย",null,null,null,null,null,null,null,"Kg.",null,"%ของเสีย",null,null,{"$f":"IF(Order_Cal=0,0,ROUND(Waste_Cal*100/Order_Cal,2))","v":0},null,"%","VAT :",null,null,{"$f":"EW81","v":0},null,null,null,null,"ต้นทุนสาขา :",null,null,{"$f":"SUMPRODUCT((($A$88:$A$135)-($A$88:$A$135)*0.45)*(($E$88:$E$135)-($G$88:$G$135)))","v":0},null,null,"บาท",null,"ระยะทาง :",null,null,{"$f":"IF(OR($BF$4=0,$BF$3=0),0,$BF$4-$BF$3)","v":0},null,null,null,"Km"]
[]
["No","รหัสร้าน (CustNo)","ชื่อร้าน (Store Name)","เวลาเข้าร้าน","ระยะเวลาระหว่างร้าน","บิล(Invoice)",{"$f":"INDEX(INDIRECT(\"dProduct[ProductName]\"),ROUNDUP(COLUMNS($G:G)/3,0))","v":"ขนมปังหมูหยองน้ำสลัด"},null,null,{"$f":"INDEX(INDIRECT(\"dProduct[ProductName]\"),ROUNDUP(COLUMNS($G:J)/3,0))","v":"ขนมปังหมูหยองน้ำพริกเผา"},null,null,{"$f":"INDEX(INDIRECT(\"dProduct[ProductName]\"),ROUNDUP(COLUMNS($G:M)/3,0))","v":"ขนมปังไก่หยองน้ำสลัด"},null,null,{"$f":"INDEX(INDIRECT(\"dProduct[ProductName]\"),ROUNDUP(COLUMNS($G:P)/3,0))","v":"ขนมปังไส้ครีมสลัด"},null,null,{"$f":"INDEX(INDIRECT(\"dProduct[ProductName]\"),ROUNDUP(COLUMNS($G:S)/3,0))","v":"ขนมปังเนยสด"},null,null,{"$f":"INDEX(INDIRECT(\"dProduct[ProductName]\"),ROUNDUP(COLUMNS($G:V)/3,0))","v":"ขนมปังไส้สังขยาเล็ก"},null,null,{"$f":"INDEX(INDIRECT(\"dProduct[ProductName]\"),ROUNDUP(COLUMNS($G:Y)/3,0))","v":"ขนมปังไส้เผือก"},null,null,{"$f":"INDEX(INDIRECT(\"dProduct[ProductName]\"),ROUNDUP(COLUMNS($G:AB)/3,0))","v":"ขนมปังไส้ถั่วแดง"},null,null,{"$f":"INDEX(INDIRECT(\"dProduct[ProductName]\"),ROUNDUP(COLUMNS($G:AE)/3,0))","v":"ขนมปังไส้ถั่วดำ"},null,null,{"$f":"INDEX(INDIRECT(\"dProduct[ProductName]\"),ROUNDUP(COLUMNS($G:AH)/3,0))","v":"ขนมปังไส้มันม่วง"},null,null,{"$f":"INDEX(INDIRECT(\"dProduct[ProductName]\"),ROUNDUP(COLUMNS($G:AK)/3,0))","v":"เค้กกล้วยหอม"},null,null,{"$f":"INDEX(INDIRECT(\"dProduct[ProductName]\"),ROUNDUP(COLUMNS($G:AN)/3,0))","v":"เค้กบัตเตอร์"},null,null,{"$f":"INDEX(INDIRECT(\"dProduct[ProductName]\"),ROUNDUP(COLUMNS($G:AQ)/3,0))","v":"ขนมปังโรลถั่วแดง"},null,null,{"$f":"INDEX(INDIRECT(\"dProduct[ProductName]\"),ROUNDUP(COLUMNS($G:AT)/3,0))","v":"ขนมปังไส้สังขยาใหญ่"},null,null,{"$f":"INDEX(INDIRECT(\"dProduct[ProductName]\"),ROUNDUP(COLUMNS($G:AW)/3,0))","v":"ขนมปังชนิดแผ่น(480กรัม)"},null,null,{"$f":"INDEX(INDIRECT(\"dProduct[ProductName]\"),ROUNDUP(COLUMNS($G:AZ)/3,0))","v":"โมจิไส้ถั่ว"},null,null,{"$f":"INDEX(INDIRECT(\"dProduct[ProductName]\"),ROUNDUP(COLUMNS($G:BC)/3,0))","v":"โมจิไส้เผือก"},null,null,{"$f":"INDEX(INDIRECT(\"dProduct[ProductName]\"),ROUNDUP(COLUMNS($G:BF)/3,0))","v":"โมจิไส้ถั่วไข่เค็ม"},null,null,{"$f":"INDEX(INDIRECT(\"dProduct[ProductName]\"),ROUNDUP(COLUMNS($G:BI)/3,0))","v":"ขนมปังพิซซ่า"},null,null,{"$f":"INDEX(INDIRECT(\"dProduct[ProductName]\"),ROUNDUP(COLUMNS($G:BL)/3,0))","v":"ขนมปังพิซซ่าปูอัดแฮม"},null,null,{"$f":"INDEX(INDIRECT(\"dProduct[ProductName]\"),ROUNDUP(COLUMNS($G:BO)/3,0))","v":"ขนมปังไส้กรอก"},null,null,{"$f":"INDEX(INDIRECT(\"dProduct[ProductName]\"),ROUNDUP(COLUMNS($G:BR)/3,0))","v":"ขนมก้านบัว"},null,null,{"$f":"INDEX(INDIRECT(\"dProduct[ProductName]\"),ROUNDUP(COLUMNS($G:BU)/3,0))","v":"พายสับปะรด"},null,null,{"$f":"INDEX(INDIRECT(\"dProduct[ProductName]\"),ROUNDUP(COLUMNS($G:BX)/3,0))","v":"พายไส้มะพร้าว"},null,null,{"$f":"INDEX(INDIRECT(\"dProduct[ProductName]\"),ROUNDUP(COLUMNS($G:CA)/3,0))","v":"ขนมปังโรลมันเทศ"},null,null,{"$f":"INDEX(INDIRECT(\"dProduct[ProductName]\"),ROUNDUP(COLUMNS($G:CD)/3,0))","v":"ขนมปังไส้ครีมสลัดน้ำพริกเผา"},null,null,{"$f":"INDEX(INDIRECT(\"dProduct[ProductName]\"),ROUNDUP(COLUMNS($G:CG)/3,0))","v":"ขนมปังไส้สังขยาไข่"},null,null,{"$f":"INDEX(INDIRECT(\"dProduct[ProductName]\"),ROUNDUP(COLUMNS($G:CJ)/3,0))","v":"ขนมปังไส้สังขยามะพร้าว"},null,null,{"$f":"INDEX(INDIRECT(\"dProduct[ProductName]\"),ROUNDUP(COLUMNS($G:CM)/3,0))","v":"ขนมปังไส้ครีมชาไทย"},null,null,{"$f":"INDEX(INDIRECT(\"dProduct[ProductName]\"),ROUNDUP(COLUMNS($G:CP)/3,0))","v":"ขนมปังโรลมันม่วง"},null,null,{"$f":"INDEX(INDIRECT(\"dProduct[ProductName]\"),ROUNDUP(COLUMNS($G:CS)/3,0))","v":"ขนมปังโรลช็อกโกแลต"},null,null,{"$f":"INDEX(INDIRECT(\"dProduct[ProductName]\"),ROUNDUP(COLUMNS($G:CV)/3,0))","v":"ขนมปังชนิดแผ่น(155กรัม)"},null,null,{"$f":"INDEX(INDIRECT(\"dProduct[ProductName]\"),ROUNDUP(COLUMNS($G:CY)/3,0))","v":"ขนมปังโรลเผือก"},null,null,{"$f":"INDEX(INDIRECT(\"dProduct[ProductName]\"),ROUNDUP(COLUMNS($G:DB)/3,0))","v":"ขนมปังไก่หยองน้ำสลัด Mini"},null,null,{"$f":"INDEX(INDIRECT(\"dProduct[ProductName]\"),ROUNDUP(COLUMNS($G:DE)/3,0))","v":"ขนมปังไส้ช็อกโกแลต"},null,null,{"$f":"INDEX(INDIRECT(\"dProduct[ProductName]\"),ROUNDUP(COLUMNS($G:DH)/3,0))","v":"ขนมปังไส้ครีมสังขยาไข่"},null,null,{"$f":"INDEX(INDIRECT(\"dProduct[ProductName]\"),ROUNDUP(COLUMNS($G:DK)/3,0))","v":"ขนมปังพิซซ่าฮาวายเอี้ยน"},null,null,{"$f":"INDEX(INDIRECT(\"dProduct[ProductName]\"),ROUNDUP(COLUMNS($G:DN)/3,0))","v":"ครัวซองต์หมูหยองน้ำสลัด"},null,null,{"$f":"INDEX(INDIRECT(\"dProduct[ProductName]\"),ROUNDUP(COLUMNS($G:DQ)/3,0))","v":"แพนเบรดไส้เผือก"},null,null,{"$f":"INDEX(INDIRECT(\"dProduct[ProductName]\"),ROUNDUP(COLUMNS($G:DT)/3,0))","v":"แพนเบรดไส้ถั่วแดง"},null,null,{"$f":"INDEX(INDIRECT(\"dProduct[ProductName]\"),ROUNDUP(COLUMNS($G:DW)/3,0))","v":"ขนมปังกรอบเนยน้ำตาล(30กรัม)"},null,null,{"$f":"INDEX(INDIRECT(\"dProduct[ProductName]\"),ROUNDUP(COLUMNS($G:DZ)/3,0))","v":"ขนมปังชนิดแผ่นโฮลวีต"},null,null,{"$f":"INDEX(INDIRECT(\"dProduct[ProductName]\"),ROUNDUP(COLUMNS($G:EC)/3,0))","v":"เค้กโรลใบเตย"},null,null,{"$f":"INDEX(INDIRECT(\"dProduct[ProductName]\"),ROUNDUP(COLUMNS($G:EF)/3,0))","v":"ขนมโมจิไส้ถั่วดำ"},null,null,{"$f":"INDEX(INDIRECT(\"dProduct[ProductName]\"),ROUNDUP(COLUMNS($G:EI)/3,0))","v":"ครัวซองต์ไส้กรอกชีส"},null,null,{"$f":"INDEX(INDIRECT(\"dProduct[ProductName]\"),ROUNDUP(COLUMNS($G:EL)/3,0))","v":"ขนมเปี๊ยะไส้ถั่ว"},null,null,{"$f":"INDEX(INDIRECT(\"dProduct[ProductName]\"),ROUNDUP(COLUMNS($G:EO)/3,0))","v":"ขนมเปี๊ยะไส้ฟัก"},null,null,{"$f":"INDEX(INDIRECT(\"dProduct[ProductName]\"),ROUNDUP(COLUMNS($G:ER)/3,0))","v":"มังกี้เค้ก"},null,null,"มูลค่าสินค้า",null,"ภาษี","รวมยอดขาย"]
[null,null,null,null,null,"ราคาขาย",{"$f":"IF(G$7=0,0,INDEX(Price_List,ROUNDUP(COLUMNS($G:G)/3,0)))","v":20},null,null,{"$f":"IF(J$7=0,0,INDEX(Price_List,ROUNDUP(COLUMNS($G:J)/3,0)))","v":20},null,null,{"$f":"IF(M$7=0,0,INDEX(Price_List,ROUNDUP(COLUMNS($G:M)/3,0)))","v":20},null,null,{"$f":"IF(P$7=0,0,INDEX(Price_List,ROUNDUP(COLUMNS($G:P)/3,0)))","v":15},null,null,{"$f":"IF(S$7=0,0,INDEX(Price_List,ROUNDUP(COLUMNS($G:S)/3,0)))","v":15},null,null,{"$f":"IF(V$7=0,0,INDEX(Price_List,ROUNDUP(COLUMNS($G:V)/3,0)))","v":10},null,null,{"$f":"IF(Y$7=0,0,INDEX(Price_List,ROUNDUP(COLUMNS($G:Y)/3,0)))","v":10},null,null,{"$f":"IF(AB$7=0,0,INDEX(Price_List,ROUNDUP(COLUMNS($G:AB)/3,0)))","v":10},null,null,{"$f":"IF(AE$7=0,0,INDEX(Price_List,ROUNDUP(COLUMNS($G:AE)/3,0)))","v":10},null,null,{"$f":"IF(AH$7=0,0,INDEX(Price_List,ROUNDUP(COLUMNS($G:AH)/3,0)))","v":10},null,null,{"$f":"IF(AK$7=0,0,INDEX(Price_List,ROUNDUP(COLUMNS($G:AK)/3,0)))","v":15},null,null,{"$f":"IF(AN$7=0,0,INDEX(Price_List,ROUNDUP(COLUMNS($G:AN)/3,0)))","v":15},null,null,{"$f":"IF(AQ$7=0,0,INDEX(Price_List,ROUNDUP(COLUMNS($G:AQ)/3,0)))","v":15},null,null,{"$f":"IF(AT$7=0,0,INDEX(Price_List,ROUNDUP(COLUMNS($G:AT)/3,0)))","v":15},null,null,{"$f":"IF(AW$7=0,0,INDEX(Price_List,ROUNDUP(COLUMNS($G:AW)/3,0)))","v":42},null,null,{"$f":"IF(AZ$7=0,0,INDEX(Price_List,ROUNDUP(COLUMNS($G:AZ)/3,0)))","v":12},null,null,{"$f":"IF(BC$7=0,0,INDEX(Price_List,ROUNDUP(COLUMNS($G:BC)/3,0)))","v":12},null,null,{"$f":"IF(BF$7=0,0,INDEX(Price_List,ROUNDUP(COLUMNS($G:BF)/3,0)))","v":15},null,null,{"$f":"IF(BI$7=0,0,INDEX(Price_List,ROUNDUP(COLUMNS($G:BI)/3,0)))","v":20},null,null,{"$f":"IF(BL$7=0,0,INDEX(Price_List,ROUNDUP(COLUMNS($G:BL)/3,0)))","v":20},null,null,{"$f":"IF(BO$7=0,0,INDEX(Price_List,ROUNDUP(COLUMNS($G:BO)/3,0)))","v":20},null,null,{"$f":"IF(BR$7=0,0,INDEX(Price_List,ROUNDUP(COLUMNS($G:BR)/3,0)))","v":15},null,null,{"$f":"IF(BU$7=0,0,INDEX(Price_List,ROUNDUP(COLUMNS($G:BU)/3,0)))","v":20},null,null,{"$f":"IF(BX$7=0,0,INDEX(Price_List,ROUNDUP(COLUMNS($G:BX)/3,0)))","v":20},null,null,{"$f":"IF(CA$7=0,0,INDEX(Price_List,ROUNDUP(COLUMNS($G:CA)/3,0)))","v":15},null,null,{"$f":"IF(CD$7=0,0,INDEX(Price_List,ROUNDUP(COLUMNS($G:CD)/3,0)))","v":15},null,null,{"$f":"IF(CG$7=0,0,INDEX(Price_List,ROUNDUP(COLUMNS($G:CG)/3,0)))","v":20},null,null,{"$f":"IF(CJ$7=0,0,INDEX(Price_List,ROUNDUP(COLUMNS($G:CJ)/3,0)))","v":20},null,null,{"$f":"IF(CM$7=0,0,INDEX(Price_List,ROUNDUP(COLUMNS($G:CM)/3,0)))","v":10},null,null,{"$f":"IF(CP$7=0,0,INDEX(Price_List,ROUNDUP(COLUMNS($G:CP)/3,0)))","v":15},null,null,{"$f":"IF(CS$7=0,0,INDEX(Price_List,ROUNDUP(COLUMNS($G:CS)/3,0)))","v":15},null,null,{"$f":"IF(CV$7=0,0,INDEX(Price_List,ROUNDUP(COLUMNS($G:CV)/3,0)))","v":16},null,null,{"$f":"IF(CY$7=0,0,INDEX(Price_List,ROUNDUP(COLUMNS($G:CY)/3,0)))","v":15},null,null,{"$f":"IF(DB$7=0,0,INDEX(Price_List,ROUNDUP(COLUMNS($G:DB)/3,0)))","v":15},null,null,{"$f":"IF(DE$7=0,0,INDEX(Price_List,ROUNDUP(COLUMNS($G:DE)/3,0)))","v":10},null,null,{"$f":"IF(DH$7=0,0,INDEX(Price_List,ROUNDUP(COLUMNS($G:DH)/3,0)))","v":10},null,null,{"$f":"IF(DK$7=0,0,INDEX(Price_List,ROUNDUP(COLUMNS($G:DK)/3,0)))","v":20},null,null,{"$f":"IF(DN$7=0,0,INDEX(Price_List,ROUNDUP(COLUMNS($G:DN)/3,0)))","v":20},null,null,{"$f":"IF(DQ$7=0,0,INDEX(Price_List,ROUNDUP(COLUMNS($G:DQ)/3,0)))","v":15},null,null,{"$f":"IF(DT$7=0,0,INDEX(Price_List,ROUNDUP(COLUMNS($G:DT)/3,0)))","v":15},null,null,{"$f":"IF(DW$7=0,0,INDEX(Price_List,ROUNDUP(COLUMNS($G:DW)/3,0)))","v":12},null,null,{"$f":"IF(DZ$7=0,0,INDEX(Price_List,ROUNDUP(COLUMNS($G:DZ)/3,0)))","v":18},null,null,{"$f":"IF(EC$7=0,0,INDEX(Price_List,ROUNDUP(COLUMNS($G:EC)/3,0)))","v":12},null,null,{"$f":"IF(EF$7=0,0,INDEX(Price_List,ROUNDUP(COLUMNS($G:EF)/3,0)))","v":12},null,null,{"$f":"IF(EI$7=0,0,INDEX(Price_List,ROUNDUP(COLUMNS($G:EI)/3,0)))","v":25},null,null,{"$f":"IF(EL$7=0,0,INDEX(Price_List,ROUNDUP(COLUMNS($G:EL)/3,0)))","v":12},null,null,{"$f":"IF(EO$7=0,0,INDEX(Price_List,ROUNDUP(COLUMNS($G:EO)/3,0)))","v":12},null,null,{"$f":"IF(ER$7=0,0,INDEX(Price_List,ROUNDUP(COLUMNS($G:ER)/3,0)))","v":12},null,null,"เงินเชื่อ","เงินสด"]
[null,null,null,null,null,"คงเหลือ(ตามบัญชี)",{"$f":"IF(G$7=0,0,INDEX(INDIRECT(Order_Rng),ROUNDUP(COLUMNS($G:G)/3,0)))","v":0},null,null,{"$f":"IF(J$7=0,0,INDEX(INDIRECT(Order_Rng),ROUNDUP(COLUMNS($G:J)/3,0)))","v":0},null,null,{"$f":"IF(M$7=0,0,INDEX(INDIRECT(Order_Rng),ROUNDUP(COLUMNS($G:M)/3,0)))","v":0},null,null,{"$f":"IF(P$7=0,0,INDEX(INDIRECT(Order_Rng),ROUNDUP(COLUMNS($G:P)/3,0)))","v":0},null,null,{"$f":"IF(S$7=0,0,INDEX(INDIRECT(Order_Rng),ROUNDUP(COLUMNS($G:S)/3,0)))","v":0},null,null,{"$f":"IF(V$7=0,0,INDEX(INDIRECT(Order_Rng),ROUNDUP(COLUMNS($G:V)/3,0)))","v":0},null,null,{"$f":"IF(Y$7=0,0,INDEX(INDIRECT(Order_Rng),ROUNDUP(COLUMNS($G:Y)/3,0)))","v":0},null,null,{"$f":"IF(AB$7=0,0,INDEX(INDIRECT(Order_Rng),ROUNDUP(COLUMNS($G:AB)/3,0)))","v":0},null,null,{"$f":"IF(AE$7=0,0,INDEX(INDIRECT(Order_Rng),ROUNDUP(COLUMNS($G:AE)/3,0)))","v":0},null,null,{"$f":"IF(AH$7=0,0,INDEX(INDIRECT(Order_Rng),ROUNDUP(COLUMNS($G:AH)/3,0)))","v":0},null,null,{"$f":"IF(AK$7=0,0,INDEX(INDIRECT(Order_Rng),ROUNDUP(COLUMNS($G:AK)/3,0)))","v":0},null,null,{"$f":"IF(AN$7=0,0,INDEX(INDIRECT(Order_Rng),ROUNDUP(COLUMNS($G:AN)/3,0)))","v":0},null,null,{"$f":"IF(AQ$7=0,0,INDEX(INDIRECT(Order_Rng),ROUNDUP(COLUMNS($G:AQ)/3,0)))","v":0},null,null,{"$f":"IF(AT$7=0,0,INDEX(INDIRECT(Order_Rng),ROUNDUP(COLUMNS($G:AT)/3,0)))","v":0},null,null,{"$f":"IF(AW$7=0,0,INDEX(INDIRECT(Order_Rng),ROUNDUP(COLUMNS($G:AW)/3,0)))","v":0},null,null,{"$f":"IF(AZ$7=0,0,INDEX(INDIRECT(Order_Rng),ROUNDUP(COLUMNS($G:AZ)/3,0)))","v":0},null,null,{"$f":"IF(BC$7=0,0,INDEX(INDIRECT(Order_Rng),ROUNDUP(COLUMNS($G:BC)/3,0)))","v":0},null,null,{"$f":"IF(BF$7=0,0,INDEX(INDIRECT(Order_Rng),ROUNDUP(COLUMNS($G:BF)/3,0)))","v":0},null,null,{"$f":"IF(BI$7=0,0,INDEX(INDIRECT(Order_Rng),ROUNDUP(COLUMNS($G:BI)/3,0)))","v":0},null,null,{"$f":"IF(BL$7=0,0,INDEX(INDIRECT(Order_Rng),ROUNDUP(COLUMNS($G:BL)/3,0)))","v":0},null,null,{"$f":"IF(BO$7=0,0,INDEX(INDIRECT(Order_Rng),ROUNDUP(COLUMNS($G:BO)/3,0)))","v":0},null,null,{"$f":"IF(BR$7=0,0,INDEX(INDIRECT(Order_Rng),ROUNDUP(COLUMNS($G:BR)/3,0)))","v":0},null,null,{"$f":"IF(BU$7=0,0,INDEX(INDIRECT(Order_Rng),ROUNDUP(COLUMNS($G:BU)/3,0)))","v":0},null,null,{"$f":"IF(BX$7=0,0,INDEX(INDIRECT(Order_Rng),ROUNDUP(COLUMNS($G:BX)/3,0)))","v":0},null,null,{"$f":"IF(CA$7=0,0,INDEX(INDIRECT(Order_Rng),ROUNDUP(COLUMNS($G:CA)/3,0)))","v":0},null,null,{"$f":"IF(CD$7=0,0,INDEX(INDIRECT(Order_Rng),ROUNDUP(COLUMNS($G:CD)/3,0)))","v":0},null,null,{"$f":"IF(CG$7=0,0,INDEX(INDIRECT(Order_Rng),ROUNDUP(COLUMNS($G:CG)/3,0)))","v":0},null,null,{"$f":"IF(CJ$7=0,0,INDEX(INDIRECT(Order_Rng),ROUNDUP(COLUMNS($G:CJ)/3,0)))","v":0},null,null,{"$f":"IF(CM$7=0,0,INDEX(INDIRECT(Order_Rng),ROUNDUP(COLUMNS($G:CM)/3,0)))","v":0},null,null,{"$f":"IF(CP$7=0,0,INDEX(INDIRECT(Order_Rng),ROUNDUP(COLUMNS($G:CP)/3,0)))","v":0},null,null,{"$f":"IF(CS$7=0,0,INDEX(INDIRECT(Order_Rng),ROUNDUP(COLUMNS($G:CS)/3,0)))","v":0},null,null,{"$f":"IF(CV$7=0,0,INDEX(INDIRECT(Order_Rng),ROUNDUP(COLUMNS($G:CV)/3,0)))","v":0},null,null,{"$f":"IF(CY$7=0,0,INDEX(INDIRECT(Order_Rng),ROUNDUP(COLUMNS($G:CY)/3,0)))","v":0},null,null,{"$f":"IF(DB$7=0,0,INDEX(INDIRECT(Order_Rng),ROUNDUP(COLUMNS($G:DB)/3,0)))","v":0},null,null,{"$f":"IF(DE$7=0,0,INDEX(INDIRECT(Order_Rng),ROUNDUP(COLUMNS($G:DE)/3,0)))","v":0},null,null,{"$f":"IF(DH$7=0,0,INDEX(INDIRECT(Order_Rng),ROUNDUP(COLUMNS($G:DH)/3,0)))","v":0},null,null,{"$f":"IF(DK$7=0,0,INDEX(INDIRECT(Order_Rng),ROUNDUP(COLUMNS($G:DK)/3,0)))","v":0},null,null,{"$f":"IF(DN$7=0,0,INDEX(INDIRECT(Order_Rng),ROUNDUP(COLUMNS($G:DN)/3,0)))","v":0},null,null,{"$f":"IF(DQ$7=0,0,INDEX(INDIRECT(Order_Rng),ROUNDUP(COLUMNS($G:DQ)/3,0)))","v":0},null,null,{"$f":"IF(DT$7=0,0,INDEX(INDIRECT(Order_Rng),ROUNDUP(COLUMNS($G:DT)/3,0)))","v":0},null,null,{"$f":"IF(DW$7=0,0,INDEX(INDIRECT(Order_Rng),ROUNDUP(COLUMNS($G:DW)/3,0)))","v":0},null,null,{"$f":"IF(DZ$7=0,0,INDEX(INDIRECT(Order_Rng),ROUNDUP(COLUMNS($G:DZ)/3,0)))","v":0},null,null,{"$f":"IF(EC$7=0,0,INDEX(INDIRECT(Order_Rng),ROUNDUP(COLUMNS($G:EC)/3,0)))","v":0},null,null,{"$f":"IF(EF$7=0,0,INDEX(INDIRECT(Order_Rng),ROUNDUP(COLUMNS($G:EF)/3,0)))","v":0},null,null,{"$f":"IF(EI$7=0,0,INDEX(INDIRECT(Order_Rng),ROUNDUP(COLUMNS($G:EI)/3,0)))","v":0},null,null,{"$f":"IF(EL$7=0,0,INDEX(INDIRECT(Order_Rng),ROUNDUP(COLUMNS($G:EL)/3,0)))","v":0},null,null,{"$f":"IF(EO$7=0,0,INDEX(INDIRECT(Order_Rng),ROUNDUP(COLUMNS($G:EO)/3,0)))","v":0},null,null,{"$f":"IF(ER$7=0,0,INDEX(INDIRECT(Order_Rng),ROUNDUP(COLUMNS($G:ER)/3,0)))","v":0}]
[{"$f":"IF(OR($B10=\"\",COUNTIF($B$10:$B10,$B10)>1,LEN(TRIM($B10))<>10,ISNUMBER(--MID(TRIM($B10),5,1))),\"-\",MAX(COUNT($A$9:$A9)+1))","v":"-"}]
[{"$f":"IF(OR($B11=\"\",COUNTIF($B$10:$B11,$B11)>1,LEN(TRIM($B11))<>10,ISNUMBER(--MID(TRIM($B11),5,1))),\"-\",MAX(COUNT($A$9:$A10)+1))","v":"-"},null,null,null,{"$f":"IF(D11=\"\",\"\",D11-D10)","v":""}]
[{"$f":"IF(OR($B12=\"\",COUNTIF($B$10:$B12,$B12)>1,LEN(TRIM($B12))<>10,ISNUMBER(--MID(TRIM($B12),5,1))),\"-\",MAX(COUNT($A$9:$A11)+1))","v":"-"},null,null,null,{"$f":"IF(D12=\"\",\"\",D12-D11)","v":""}]
[{"$f":"IF(OR($B13=\"\",COUNTIF($B$10:$B13,$B13)>1,LEN(TRIM($B13))<>10,ISNUMBER(--MID(TRIM($B13),5,1))),\"-\",MAX(COUNT($A$9:$A12)+1))","v":"-"},null,null,null,""]
[{"$f":"IF(OR($B14=\"\",COUNTIF($B$10:$B14,$B14)>1,LEN(TRIM($B14))<>10,ISNUMBER(--MID(TRIM($B14),5,1))),\"-\",MAX(COUNT($A$9:$A13)+1))","v":"-"},null,null,null,""]
[{"$f":"IF(OR($B15=\"\",COUNTIF($B$10:$B15,$B15)>1,LEN(TRIM($B15))<>10,ISNUMBER(--MID(TRIM($B15),5,1))),\"-\",MAX(COUNT($A$9:$A14)+1))","v":"-"},null,null,null,""]
[{"$f":"IF(OR($B16=\"\",COUNTIF($B$10:$B16,$B16)>1,LEN(TRIM($B16))<>10,ISNUMBER(--MID(TRIM($B16),5,1))),\"-\",MAX(COUNT($A$9:$A15)+1))","v":"-"},null,null,null,""]
[{"$f":"IF(OR($B17=\"\",COUNTIF($B$10:$B17,$B17)>1,LEN(TRIM($B17))<>10,ISNUMBER(--MID(TRIM($B17),5,1))),\"-\",MAX(COUNT($A$9:$A16)+1))","v":"-"},null,null,null,""]
[{"$f":"IF(OR($B18=\"\",COUNTIF($B$10:$B18,$B18)>1,LEN(TRIM($B18))<>10,ISNUMBER(--MID(TRIM($B18),5,1))),\"-\",MAX(COUNT($A$9:$A17)+1))","v":"-"},null,null,null,""]
[{"$f":"IF(OR($B19=\"\",COUNTIF($B$10:$B19,$B19)>1,LEN(TRIM($B19))<>10,ISNUMBER(--MID(TRIM($B19),5,1))),\"-\",MAX(COUNT($A$9:$A18)+1))","v":"-"},null,null,null,""]
[{"$f":"IF(OR($B20=\"\",COUNTIF($B$10:$B20,$B20)>1,LEN(TRIM($B20))<>10,ISNUMBER(--MID(TRIM($B20),5,1))),\"-\",MAX(COUNT($A$9:$A19)+1))","v":"-"},null,null,null,""]
[{"$f":"IF(OR($B21=\"\",COUNTIF($B$10:$B21,$B21)>1,LEN(TRIM($B21))<>10,ISNUMBER(--MID(TRIM($B21),5,1))),\"-\",MAX(COUNT($A$9:$A20)+1))","v":"-"},null,null,null,""]
[{"$f":"IF(OR($B22=\"\",COUNTIF($B$10:$B22,$B22)>1,LEN(TRIM($B22))<>10,ISNUMBER(--MID(TRIM($B22),5,1))),\"-\",MAX(COUNT($A$9:$A21)+1))","v":"-"},null,null,null,""]
[{"$f":"IF(OR($B23=\"\",COUNTIF($B$10:$B23,$B23)>1,LEN(TRIM($B23))<>10,ISNUMBER(--MID(TRIM($B23),5,1))),\"-\",MAX(COUNT($A$9:$A22)+1))","v":"-"},null,null,null,""]
[{"$f":"IF(OR($B24=\"\",COUNTIF($B$10:$B24,$B24)>1,LEN(TRIM($B24))<>10,ISNUMBER(--MID(TRIM($B24),5,1))),\"-\",MAX(COUNT($A$9:$A23)+1))","v":"-"},null,null,null,""]
[{"$f":"IF(OR($B25=\"\",COUNTIF($B$10:$B25,$B25)>1,LEN(TRIM($B25))<>10,ISNUMBER(--MID(TRIM($B25),5,1))),\"-\",MAX(COUNT($A$9:$A24)+1))","v":"-"},null,null,null,""]
[{"$f":"IF(OR($B26=\"\",COUNTIF($B$10:$B26,$B26)>1,LEN(TRIM($B26))<>10,ISNUMBER(--MID(TRIM($B26),5,1))),\"-\",MAX(COUNT($A$9:$A25)+1))","v":"-"},null,null,null,""]
[{"$f":"IF(OR($B27=\"\",COUNTIF($B$10:$B27,$B27)>1,LEN(TRIM($B27))<>10,ISNUMBER(--MID(TRIM($B27),5,1))),\"-\",MAX(COUNT($A$9:$A26)+1))","v":"-"},null,null,null,""]
[{"$f":"IF(OR($B28=\"\",COUNTIF($B$10:$B28,$B28)>1,LEN(TRIM($B28))<>10,ISNUMBER(--MID(TRIM($B28),5,1))),\"-\",MAX(COUNT($A$9:$A27)+1))","v":"-"},null,null,null,""]
[{"$f":"IF(OR($B29=\"\",COUNTIF($B$10:$B29,$B29)>1,LEN(TRIM($B29))<>10,ISNUMBER(--MID(TRIM($B29),5,1))),\"-\",MAX(COUNT($A$9:$A28)+1))","v":"-"},null,null,null,""]
[{"$f":"IF(OR($B30=\"\",COUNTIF($B$10:$B30,$B30)>1,LEN(TRIM($B30))<>10,ISNUMBER(--MID(TRIM($B30),5,1))),\"-\",MAX(COUNT($A$9:$A29)+1))","v":"-"},null,null,null,""]
[{"$f":"IF(OR($B31=\"\",COUNTIF($B$10:$B31,$B31)>1,LEN(TRIM($B31))<>10,ISNUMBER(--MID(TRIM($B31),5,1))),\"-\",MAX(COUNT($A$9:$A30)+1))","v":"-"},null,null,null,""]
[{"$f":"IF(OR($B32=\"\",COUNTIF($B$10:$B32,$B32)>1,LEN(TRIM($B32))<>10,ISNUMBER(--MID(TRIM($B32),5,1))),\"-\",MAX(COUNT($A$9:$A31)+1))","v":"-"},null,null,null,""]
[{"$f":"IF(OR($B33=\"\",COUNTIF($B$10:$B33,$B33)>1,LEN(TRIM($B33))<>10,ISNUMBER(--MID(TRIM($B33),5,1))),\"-\",MAX(COUNT($A$9:$A32)+1))","v":"-"},null,null,null,""]
[{"$f":"IF(OR($B34=\"\",COUNTIF($B$10:$B34,$B34)>1,LEN(TRIM($B34))<>10,ISNUMBER(--MID(TRIM($B34),5,1))),\"-\",MAX(COUNT($A$9:$A33)+1))","v":"-"},null,null,null,""]
[{"$f":"IF(OR($B35=\"\",COUNTIF($B$10:$B35,$B35)>1,LEN(TRIM($B35))<>10,ISNUMBER(--MID(TRIM($B35),5,1))),\"-\",MAX(COUNT($A$9:$A34)+1))","v":"-"},null,null,null,""]
[{"$f":"IF(OR($B36=\"\",COUNTIF($B$10:$B36,$B36)>1,LEN(TRIM($B36))<>10,ISNUMBER(--MID(TRIM($B36),5,1))),\"-\",MAX(COUNT($A$9:$A35)+1))","v":"-"},null,null,null,""]
[{"$f":"IF(OR($B37=\"\",COUNTIF($B$10:$B37,$B37)>1,LEN(TRIM($B37))<>10,ISNUMBER(--MID(TRIM($B37),5,1))),\"-\",MAX(COUNT($A$9:$A36)+1))","v":"-"},null,null,null,""]
[{"$f":"IF(OR($B38=\"\",COUNTIF($B$10:$B38,$B38)>1,LEN(TRIM($B38))<>10,ISNUMBER(--MID(TRIM($B38),5,1))),\"-\",MAX(COUNT($A$9:$A37)+1))","v":"-"},null,null,null,""]
[{"$f":"IF(OR($B39=\"\",COUNTIF($B$10:$B39,$B39)>1,LEN(TRIM($B39))<>10,ISNUMBER(--MID(TRIM($B39),5,1))),\"-\",MAX(COUNT($A$9:$A38)+1))","v":"-"},null,null,null,""]
[{"$f":"IF(OR($B40=\"\",COUNTIF($B$10:$B40,$B40)>1,LEN(TRIM($B40))<>10,ISNUMBER(--MID(TRIM($B40),5,1))),\"-\",MAX(COUNT($A$9:$A39)+1))","v":"-"},null,null,null,""]
[{"$f":"IF(OR($B41=\"\",COUNTIF($B$10:$B41,$B41)>1,LEN(TRIM($B41))<>10,ISNUMBER(--MID(TRIM($B41),5,1))),\"-\",MAX(COUNT($A$9:$A40)+1))","v":"-"},null,null,null,""]
[{"$f":"IF(OR($B42=\"\",COUNTIF($B$10:$B42,$B42)>1,LEN(TRIM($B42))<>10,ISNUMBER(--MID(TRIM($B42),5,1))),\"-\",MAX(COUNT($A$9:$A41)+1))","v":"-"},null,null,null,""]
[{"$f":"IF(OR($B43=\"\",COUNTIF($B$10:$B43,$B43)>1,LEN(TRIM($B43))<>10,ISNUMBER(--MID(TRIM($B43),5,1))),\"-\",MAX(COUNT($A$9:$A42)+1))","v":"-"},null,null,null,""]
[{"$f":"IF(OR($B44=\"\",COUNTIF($B$10:$B44,$B44)>1,LEN(TRIM($B44))<>10,ISNUMBER(--MID(TRIM($B44),5,1))),\"-\",MAX(COUNT($A$9:$A43)+1))","v":"-"},null,null,null,""]
[{"$f":"IF(OR($B45=\"\",COUNTIF($B$10:$B45,$B45)>1,LEN(TRIM($B45))<>10,ISNUMBER(--MID(TRIM($B45),5,1))),\"-\",MAX(COUNT($A$9:$A44)+1))","v":"-"},null,null,null,""]
[{"$f":"IF(OR($B46=\"\",COUNTIF($B$10:$B46,$B46)>1,LEN(TRIM($B46))<>10,ISNUMBER(--MID(TRIM($B46),5,1))),\"-\",MAX(COUNT($A$9:$A45)+1))","v":"-"},null,null,null,""]
[{"$f":"IF(OR($B47=\"\",COUNTIF($B$10:$B47,$B47)>1,LEN(TRIM($B47))<>10,ISNUMBER(--MID(TRIM($B47),5,1))),\"-\",MAX(COUNT($A$9:$A46)+1))","v":"-"},null,null,null,""]
[{"$f":"IF(OR($B48=\"\",COUNTIF($B$10:$B48,$B48)>1,LEN(TRIM($B48))<>10,ISNUMBER(--MID(TRIM($B48),5,1))),\"-\",MAX(COUNT($A$9:$A47)+1))","v":"-"},null,null,null,""]
[{"$f":"IF(OR($B49=\"\",COUNTIF($B$10:$B49,$B49)>1,LEN(TRIM($B49))<>10,ISNUMBER(--MID(TRIM($B49),5,1))),\"-\",MAX(COUNT($A$9:$A48)+1))","v":"-"},null,null,null,""]
[{"$f":"IF(OR($B50=\"\",COUNTIF($B$10:$B50,$B50)>1,LEN(TRIM($B50))<>10,ISNUMBER(--MID(TRIM($B50),5,1))),\"-\",MAX(COUNT($A$9:$A49)+1))","v":"-"},null,null,null,""]
[{"$f":"IF(OR($B51=\"\",COUNTIF($B$10:$B51,$B51)>1,LEN(TRIM($B51))<>10,ISNUMBER(--MID(TRIM($B51),5,1))),\"-\",MAX(COUNT($A$9:$A50)+1))","v":"-"},null,null,null,""]
[{"$f":"IF(OR($B52=\"\",COUNTIF($B$10:$B52,$B52)>1,LEN(TRIM($B52))<>10,ISNUMBER(--MID(TRIM($B52),5,1))),\"-\",MAX(COUNT($A$9:$A51)+1))","v":"-"},null,null,null,""]
[{"$f":"IF(OR($B53=\"\",COUNTIF($B$10:$B53,$B53)>1,LEN(TRIM($B53))<>10,ISNUMBER(--MID(TRIM($B53),5,1))),\"-\",MAX(COUNT($A$9:$A52)+1))","v":"-"},null,null,null,""]
[{"$f":"IF(OR($B54=\"\",COUNTIF($B$10:$B54,$B54)>1,LEN(TRIM($B54))<>10,ISNUMBER(--MID(TRIM($B54),5,1))),\"-\",MAX(COUNT($A$9:$A53)+1))","v":"-"},null,null,null,""]
[{"$f":"IF(OR($B55=\"\",COUNTIF($B$10:$B55,$B55)>1,LEN(TRIM($B55))<>10,ISNUMBER(--MID(TRIM($B55),5,1))),\"-\",MAX(COUNT($A$9:$A54)+1))","v":"-"},null,null,null,""]
[{"$f":"IF(OR($B56=\"\",COUNTIF($B$10:$B56,$B56)>1,LEN(TRIM($B56))<>10,ISNUMBER(--MID(TRIM($B56),5,1))),\"-\",MAX(COUNT($A$9:$A55)+1))","v":"-"},null,null,null,""]
[{"$f":"IF(OR($B57=\"\",COUNTIF($B$10:$B57,$B57)>1,LEN(TRIM($B57))<>10,ISNUMBER(--MID(TRIM($B57),5,1))),\"-\",MAX(COUNT($A$9:$A56)+1))","v":"-"},null,null,null,""]
[{"$f":"IF(OR($B58=\"\",COUNTIF($B$10:$B58,$B58)>1,LEN(TRIM($B58))<>10,ISNUMBER(--MID(TRIM($B58),5,1))),\"-\",MAX(COUNT($A$9:$A57)+1))","v":"-"},null,null,null,""]
[{"$f":"IF(OR($B59=\"\",COUNTIF($B$10:$B59,$B59)>1,LEN(TRIM($B59))<>10,ISNUMBER(--MID(TRIM($B59),5,1))),\"-\",MAX(COUNT($A$9:$A58)+1))","v":"-"},null,null,null,""]
[{"$f":"IF(OR($B60=\"\",COUNTIF($B$10:$B60,$B60)>1,LEN(TRIM($B60))<>10,ISNUMBER(--MID(TRIM($B60),5,1))),\"-\",MAX(COUNT($A$9:$A59)+1))","v":"-"},null,null,null,""]
[{"$f":"IF(OR($B61=\"\",COUNTIF($B$10:$B61,$B61)>1,LEN(TRIM($B61))<>10,ISNUMBER(--MID(TRIM($B61),5,1))),\"-\",MAX(COUNT($A$9:$A60)+1))","v":"-"},null,null,null,""]
[{"$f":"IF(OR($B62=\"\",COUNTIF($B$10:$B62,$B62)>1,LEN(TRIM($B62))<>10,ISNUMBER(--MID(TRIM($B62),5,1))),\"-\",MAX(COUNT($A$9:$A61)+1))","v":"-"},null,null,null,""]
[{"$f":"IF(OR($B63=\"\",COUNTIF($B$10:$B63,$B63)>1,LEN(TRIM($B63))<>10,ISNUMBER(--MID(TRIM($B63),5,1))),\"-\",MAX(COUNT($A$9:$A62)+1))","v":"-"},null,null,null,""]
[{"$f":"IF(OR($B64=\"\",COUNTIF($B$10:$B64,$B64)>1,LEN(TRIM($B64))<>10,ISNUMBER(--MID(TRIM($B64),5,1))),\"-\",MAX(COUNT($A$9:$A63)+1))","v":"-"},null,null,null,""]
[{"$f":"IF(OR($B65=\"\",COUNTIF($B$10:$B65,$B65)>1,LEN(TRIM($B65))<>10,ISNUMBER(--MID(TRIM($B65),5,1))),\"-\",MAX(COUNT($A$9:$A64)+1))","v":"-"},null,null,null,""]
[{"$f":"IF(OR($B66=\"\",COUNTIF($B$10:$B66,$B66)>1,LEN(TRIM($B66))<>10,ISNUMBER(--MID(TRIM($B66),5,1))),\"-\",MAX(COUNT($A$9:$A65)+1))","v":"-"},null,null,null,""]
[{"$f":"IF(OR($B67=\"\",COUNTIF($B$10:$B67,$B67)>1,LEN(TRIM($B67))<>10,ISNUMBER(--MID(TRIM($B67),5,1))),\"-\",MAX(COUNT($A$9:$A66)+1))","v":"-"},null,null,null,""]
[{"$f":"IF(OR($B68=\"\",COUNTIF($B$10:$B68,$B68)>1,LEN(TRIM($B68))<>10,ISNUMBER(--MID(TRIM($B68),5,1))),\"-\",MAX(COUNT($A$9:$A67)+1))","v":"-"},null,null,null,""]
[{"$f":"IF(OR($B69=\"\",COUNTIF($B$10:$B69,$B69)>1,LEN(TRIM($B69))<>10,ISNUMBER(--MID(TRIM($B69),5,1))),\"-\",MAX(COUNT($A$9:$A68)+1))","v":"-"},null,null,null,""]
[{"$f":"IF(OR($B70=\"\",COUNTIF($B$10:$B70,$B70)>1,LEN(TRIM($B70))<>10,ISNUMBER(--MID(TRIM($B70),5,1))),\"-\",MAX(COUNT($A$9:$A69)+1))","v":"-"},null,null,null,""]
[{"$f":"IF(OR($B71=\"\",COUNTIF($B$10:$B71,$B71)>1,LEN(TRIM($B71))<>10,ISNUMBER(--MID(TRIM($B71),5,1))),\"-\",MAX(COUNT($A$9:$A70)+1))","v":"-"},null,null,null,""]
[{"$f":"IF(OR($B72=\"\",COUNTIF($B$10:$B72,$B72)>1,LEN(TRIM($B72))<>10,ISNUMBER(--MID(TRIM($B72),5,1))),\"-\",MAX(COUNT($A$9:$A71)+1))","v":"-"},null,null,null,""]
[{"$f":"IF(OR($B73=\"\",COUNTIF($B$10:$B73,$B73)>1,LEN(TRIM($B73))<>10,ISNUMBER(--MID(TRIM($B73),5,1))),\"-\",MAX(COUNT($A$9:$A72)+1))","v":"-"},null,null,null,""]
[{"$f":"IF(OR($B74=\"\",COUNTIF($B$10:$B74,$B74)>1,LEN(TRIM($B74))<>10,ISNUMBER(--MID(TRIM($B74),5,1))),\"-\",MAX(COUNT($A$9:$A73)+1))","v":"-"},null,null,null,""]
[{"$f":"IF(OR($B75=\"\",COUNTIF($B$10:$B75,$B75)>1,LEN(TRIM($B75))<>10,ISNUMBER(--MID(TRIM($B75),5,1))),\"-\",MAX(COUNT($A$9:$A74)+1))","v":"-"},null,null,null,""]
[{"$f":"IF(OR($B76=\"\",COUNTIF($B$10:$B76,$B76)>1,LEN(TRIM($B76))<>10,ISNUMBER(--MID(TRIM($B76),5,1))),\"-\",MAX(COUNT($A$9:$A75)+1))","v":"-"},null,null,null,{"$f":"IF(D76=\"\",\"\",D76-D75)","v":""}]
[{"$f":"IF(OR($B77=\"\",COUNTIF($B$10:$B77,$B77)>1,LEN(TRIM($B77))<>10,ISNUMBER(--MID(TRIM($B77),5,1))),\"-\",MAX(COUNT($A$9:$A76)+1))","v":"-"},null,null,null,""]
[{"$f":"IF(OR($B78=\"\",COUNTIF($B$10:$B78,$B78)>1,LEN(TRIM($B78))<>10,ISNUMBER(--MID(TRIM($B78),5,1))),\"-\",MAX(COUNT($A$9:$A77)+1))","v":"-"},null,null,null,""]
[{"$f":"IF(OR($B79=\"\",COUNTIF($B$10:$B79,$B79)>1,LEN(TRIM($B79))<>10,ISNUMBER(--MID(TRIM($B79),5,1))),\"-\",MAX(COUNT($A$9:$A78)+1))","v":"-"},null,null,null,""]
["รวมของขาย|ของเสีย|เหลือบนเชลฟ์",null,null,null,null,null,{"$f":"SUM(G10:G79)","v":0},0,0,{"$f":"SUM(J10:J79)","v":0},0,0,0,0,0,0,0,0,0,0,0,0,0,0,0,0,0,0,0,0,0,0,0,0,0,0,0,0,0,0,0,0,0,0,0,0,0,0,0,0,0,0,0,0,0,0,0,0,0,0,0,0,0,0,0,0,0,0,0,0,0,0,0,{"$f":"SUM(BV10:BV79)","v":0},0,0,0,0,0,0,0,0,0,0,0,0,0,0,0,0,0,0,0,0,0,0,0,0,0,0,0,0,0,0,0,0,0,0,0,0,0,0,0,0,0,0,0,0,0,0,0,0,0,0,0,0,0,0,0,0,0,0,0,0,0,{"$f":"SUM(EF10:EF79)","v":0},0,0,{"$f":"SUM(EI10:EI79)","v":0},0,0,0,0,0,{"$f":"SUM(EO10:EO79)","v":0},0,0,0,0,0,"รวมเงินเชื่อ","รวมเงินสด","ภาษี","รวมยอดขาย"]
["ของเหลือ",null,null,null,null,null,{"$f":"G80+H80-G9","v":0},null,null,{"$f":"J80+K80-J9","v":0},null,null,{"$f":"M80+N80-M9","v":0},null,null,{"$f":"P80+Q80-P9","v":0},null,null,{"$f":"S80+T80-S9","v":0},null,null,{"$f":"V80+W80-V9","v":0},null,null,{"$f":"Y80+Z80-Y9","v":0},null,null,{"$f":"AB80+AC80-AB9","v":0},null,null,{"$f":"AE80+AF80-AE9","v":0},null,null,{"$f":"AH80+AI80-AH9","v":0},null,null,{"$f":"AK80+AL80-AK9","v":0},null,null,{"$f":"AN80+AO80-AN9","v":0},null,null,{"$f":"AQ80+AR80-AQ9","v":0},null,null,{"$f":"AT80+AU80-AT9","v":0},null,null,{"$f":"AW80+AX80-AW9","v":0},null,null,{"$f":"AZ80+BA80-AZ9","v":0},null,null,{"$f":"BC80+BD80-BC9","v":0},null,null,{"$f":"BF80+BG80-BF9","v":0},null,null,{"$f":"BI80+BJ80-BI9","v":0},null,null,{"$f":"BL80+BM80-BL9","v":0},null,null,{"$f":"BO80+BP80-BO9","v":0},null,null,{"$f":"BR80+BS80-BR9","v":0},null,null,{"$f":"BU80+BV80-BU9","v":0},null,null,{"$f":"BX80+BY80-BX9","v":0},null,null,{"$f":"CA80+CB80-CA9","v":0},null,null,{"$f":"CD80+CE80-CD9","v":0},null,null,{"$f":"CG80+CH80-CG9","v":0},null,null,{"$f":"CJ80+CK80-CJ9","v":0},null,null,{"$f":"CM80+CN80-CM9","v":0},null,null,{"$f":"CP80+CQ80-CP9","v":0},null,null,{"$f":"CS80+CT80-CS9","v":0},null,null,{"$f":"CV80+CW80-CV9","v":0},null,null,{"$f":"CY80+CZ80-CY9","v":0},null,null,{"$f":"DB80+DC80-DB9","v":0},null,null,{"$f":"DE80+DF80-DE9","v":0},null,null,{"$f":"DH80+DI80-DH9","v":0},null,null,{"$f":"DK80+DL80-DK9","v":0},null,null,{"$f":"DN80+DO80-DN9","v":0},null,null,{"$f":"DQ80+DR80-DQ9","v":0},null,null,{"$f":"DT80+DU80-DT9","v":0},null,null,{"$f":"DW80+DX80-DW9","v":0},null,null,{"$f":"DZ80+EA80-DZ9","v":0},null,null,{"$f":"EC80+ED80-EC9","v":0},null,null,{"$f":"EF80+EG80-EF9","v":0},null,null,{"$f":"EI80+EJ80-EI9","v":0},null,null,{"$f":"EL80+EM80-EL9","v":0},null,null,{"$f":"EO80+EP80-EO9","v":0},null,null,{"$f":"ER80+ES80-ER9","v":0},null,null,{"$f":"SUM(EU10:EU79)","v":0},{"$f":"SUM(EV10:EV79)","v":0},{"$f":"SUM(EW10:EW79)","v":0},{"$f":"SUM(EX10:EX79)","v":0}]
["เฉลี่ย",null,null,"เหลือ/เสีย(จริง)",null,null,{"$f":"INDIRECT(\"F\"&ROW($G$87)+ROUNDUP(COLUMNS($G:G)/3,0))","v":0},{"$f":"INDIRECT(\"G\"&ROW($G$87)+ROUNDUP(COLUMNS($G:H)/3,0))","v":0},null,{"$f":"INDIRECT(\"F\"&ROW($G$87)+ROUNDUP(COLUMNS($G:J)/3,0))","v":0},{"$f":"INDIRECT(\"G\"&ROW($G$87)+ROUNDUP(COLUMNS($G:K)/3,0))","v":0},null,{"$f":"INDIRECT(\"F\"&ROW($G$87)+ROUNDUP(COLUMNS($G:M)/3,0))","v":0},{"$f":"INDIRECT(\"G\"&ROW($G$87)+ROUNDUP(COLUMNS($G:N)/3,0))","v":0},null,{"$f":"INDIRECT(\"F\"&ROW($G$87)+ROUNDUP(COLUMNS($G:P)/3,0))","v":0},{"$f":"INDIRECT(\"G\"&ROW($G$87)+ROUNDUP(COLUMNS($G:Q)/3,0))","v":0},null,{"$f":"INDIRECT(\"F\"&ROW($G$87)+ROUNDUP(COLUMNS($G:S)/3,0))","v":0},{"$f":"INDIRECT(\"G\"&ROW($G$87)+ROUNDUP(COLUMNS($G:T)/3,0))","v":0},null,{"$f":"INDIRECT(\"F\"&ROW($G$87)+ROUNDUP(COLUMNS($G:V)/3,0))","v":0},{"$f":"INDIRECT(\"G\"&ROW($G$87)+ROUNDUP(COLUMNS($G:W)/3,0))","v":0},null,{"$f":"INDIRECT(\"F\"&ROW($G$87)+ROUNDUP(COLUMNS($G:Y)/3,0))","v":0},{"$f":"INDIRECT(\"G\"&ROW($G$87)+ROUNDUP(COLUMNS($G:Z)/3,0))","v":0},null,{"$f":"INDIRECT(\"F\"&ROW($G$87)+ROUNDUP(COLUMNS($G:AB)/3,0))","v":0},{"$f":"INDIRECT(\"G\"&ROW($G$87)+ROUNDUP(COLUMNS($G:AC)/3,0))","v":0},null,{"$f":"INDIRECT(\"F\"&ROW($G$87)+ROUNDUP(COLUMNS($G:AE)/3,0))","v":0},{"$f":"INDIRECT(\"G\"&ROW($G$87)+ROUNDUP(COLUMNS($G:AF)/3,0))","v":0},null,{"$f":"INDIRECT(\"F\"&ROW($G$87)+ROUNDUP(COLUMNS($G:AH)/3,0))","v":0},{"$f":"INDIRECT(\"G\"&ROW($G$87)+ROUNDUP(COLUMNS($G:AI)/3,0))","v":0},null,{"$f":"INDIRECT(\"F\"&ROW($G$87)+ROUNDUP(COLUMNS($G:AK)/3,0))","v":0},{"$f":"INDIRECT(\"G\"&ROW($G$87)+ROUNDUP(COLUMNS($G:AL)/3,0))","v":0},null,{"$f":"INDIRECT(\"F\"&ROW($G$87)+ROUNDUP(COLUMNS($G:AN)/3,0))","v":0},{"$f":"INDIRECT(\"G\"&ROW($G$87)+ROUNDUP(COLUMNS($G:AO)/3,0))","v":0},null,{"$f":"INDIRECT(\"F\"&ROW($G$87)+ROUNDUP(COLUMNS($G:AQ)/3,0))","v":0},{"$f":"INDIRECT(\"G\"&ROW($G$87)+ROUNDUP(COLUMNS($G:AR)/3,0))","v":0},null,{"$f":"INDIRECT(\"F\"&ROW($G$87)+ROUNDUP(COLUMNS($G:AT)/3,0))","v":0},{"$f":"INDIRECT(\"G\"&ROW($G$87)+ROUNDUP(COLUMNS($G:AU)/3,0))","v":0},null,{"$f":"INDIRECT(\"F\"&ROW($G$87)+ROUNDUP(COLUMNS($G:AW)/3,0))","v":0},{"$f":"INDIRECT(\"G\"&ROW($G$87)+ROUNDUP(COLUMNS($G:AX)/3,0))","v":0},null,{"$f":"INDIRECT(\"F\"&ROW($G$87)+ROUNDUP(COLUMNS($G:AZ)/3,0))","v":0},{"$f":"INDIRECT(\"G\"&ROW($G$87)+ROUNDUP(COLUMNS($G:BA)/3,0))","v":0},null,{"$f":"INDIRECT(\"F\"&ROW($G$87)+ROUNDUP(COLUMNS($G:BC)/3,0))","v":0},{"$f":"INDIRECT(\"G\"&ROW($G$87)+ROUNDUP(COLUMNS($G:BD)/3,0))","v":0},null,{"$f":"INDIRECT(\"F\"&ROW($G$87)+ROUNDUP(COLUMNS($G:BF)/3,0))","v":0},{"$f":"INDIRECT(\"G\"&ROW($G$87)+ROUNDUP(COLUMNS($G:BG)/3,0))","v":0},null,{"$f":"INDIRECT(\"F\"&ROW($G$87)+ROUNDUP(COLUMNS($G:BI)/3,0))","v":0},{"$f":"INDIRECT(\"G\"&ROW($G$87)+ROUNDUP(COLUMNS($G:BJ)/3,0))","v":0},null,{"$f":"INDIRECT(\"F\"&ROW($G$87)+ROUNDUP(COLUMNS($G:BL)/3,0))","v":0},{"$f":"INDIRECT(\"G\"&ROW($G$87)+ROUNDUP(COLUMNS($G:BM)/3,0))","v":0},null,{"$f":"INDIRECT(\"F\"&ROW($G$87)+ROUNDUP(COLUMNS($G:BO)/3,0))","v":0},{"$f":"INDIRECT(\"G\"&ROW($G$87)+ROUNDUP(COLUMNS($G:BP)/3,0))","v":0},null,{"$f":"INDIRECT(\"F\"&ROW($G$87)+ROUNDUP(COLUMNS($G:BR)/3,0))","v":0},{"$f":"INDIRECT(\"G\"&ROW($G$87)+ROUNDUP(COLUMNS($G:BS)/3,0))","v":0},null,{"$f":"INDIRECT(\"F\"&ROW($G$87)+ROUNDUP(COLUMNS($G:BU)/3,0))","v":0},{"$f":"INDIRECT(\"G\"&ROW($G$87)+ROUNDUP(COLUMNS($G:BV)/3,0))","v":0},null,{"$f":"INDIRECT(\"F\"&ROW($G$87)+ROUNDUP(COLUMNS($G:BX)/3,0))","v":0},{"$f":"INDIRECT(\"G\"&ROW($G$87)+ROUNDUP(COLUMNS($G:BY)/3,0))","v":0},null,{"$f":"INDIRECT(\"F\"&ROW($G$87)+ROUNDUP(COLUMNS($G:CA)/3,0))","v":0},{"$f":"INDIRECT(\"G\"&ROW($G$87)+ROUNDUP(COLUMNS($G:CB)/3,0))","v":0},null,{"$f":"INDIRECT(\"F\"&ROW($G$87)+ROUNDUP(COLUMNS($G:CD)/3,0))","v":0},{"$f":"INDIRECT(\"G\"&ROW($G$87)+ROUNDUP(COLUMNS($G:CE)/3,0))","v":0},null,{"$f":"INDIRECT(\"F\"&ROW($G$87)+ROUNDUP(COLUMNS($G:CG)/3,0))","v":0},{"$f":"INDIRECT(\"G\"&ROW($G$87)+ROUNDUP(COLUMNS($G:CH)/3,0))","v":0},null,{"$f":"INDIRECT(\"F\"&ROW($G$87)+ROUNDUP(COLUMNS($G:CJ)/3,0))","v":0},{"$f":"INDIRECT(\"G\"&ROW($G$87)+ROUNDUP(COLUMNS($G:CK)/3,0))","v":0},null,{"$f":"INDIRECT(\"F\"&ROW($G$87)+ROUNDUP(COLUMNS($G:CM)/3,0))","v":0},{"$f":"INDIRECT(\"G\"&ROW($G$87)+ROUNDUP(COLUMNS($G:CN)/3,0))","v":0},null,{"$f":"INDIRECT(\"F\"&ROW($G$87)+ROUNDUP(COLUMNS($G:CP)/3,0))","v":0},{"$f":"INDIRECT(\"G\"&ROW($G$87)+ROUNDUP(COLUMNS($G:CQ)/3,0))","v":0},null,{"$f":"INDIRECT(\"F\"&ROW($G$87)+ROUNDUP(COLUMNS($G:CS)/3,0))","v":0},{"$f":"INDIRECT(\"G\"&ROW($G$87)+ROUNDUP(COLUMNS($G:CT)/3,0))","v":0},null,{"$f":"INDIRECT(\"F\"&ROW($G$87)+ROUNDUP(COLUMNS($G:CV)/3,0))","v":0},{"$f":"INDIRECT(\"G\"&ROW($G$87)+ROUNDUP(COLUMNS($G:CW)/3,0))","v":0},null,{"$f":"INDIRECT(\"F\"&ROW($G$87)+ROUNDUP(COLUMNS($G:CY)/3,0))","v":0},{"$f":"INDIRECT(\"G\"&ROW($G$87)+ROUNDUP(COLUMNS($G:CZ)/3,0))","v":0},null,{"$f":"INDIRECT(\"F\"&ROW($G$87)+ROUNDUP(COLUMNS($G:DB)/3,0))","v":0},{"$f":"INDIRECT(\"G\"&ROW($G$87)+ROUNDUP(COLUMNS($G:DC)/3,0))","v":0},null,{"$f":"INDIRECT(\"F\"&ROW($G$87)+ROUNDUP(COLUMNS($G:DE)/3,0))","v":0},{"$f":"INDIRECT(\"G\"&ROW($G$87)+ROUNDUP(COLUMNS($G:DF)/3,0))","v":0},null,{"$f":"INDIRECT(\"F\"&ROW($G$87)+ROUNDUP(COLUMNS($G:DH)/3,0))","v":0},{"$f":"INDIRECT(\"G\"&ROW($G$87)+ROUNDUP(COLUMNS($G:DI)/3,0))","v":0},null,{"$f":"INDIRECT(\"F\"&ROW($G$87)+ROUNDUP(COLUMNS($G:DK)/3,0))","v":0},{"$f":"INDIRECT(\"G\"&ROW($G$87)+ROUNDUP(COLUMNS($G:DL)/3,0))","v":0},null,{"$f":"INDIRECT(\"F\"&ROW($G$87)+ROUNDUP(COLUMNS($G:DN)/3,0))","v":0},{"$f":"INDIRECT(\"G\"&ROW($G$87)+ROUNDUP(COLUMNS($G:DO)/3,0))","v":0},null,{"$f":"INDIRECT(\"F\"&ROW($G$87)+ROUNDUP(COLUMNS($G:DQ)/3,0))","v":0},{"$f":"INDIRECT(\"G\"&ROW($G$87)+ROUNDUP(COLUMNS($G:DR)/3,0))","v":0},null,{"$f":"INDIRECT(\"F\"&ROW($G$87)+ROUNDUP(COLUMNS($G:DT)/3,0))","v":0},{"$f":"INDIRECT(\"G\"&ROW($G$87)+ROUNDUP(COLUMNS($G:DU)/3,0))","v":0},null,{"$f":"INDIRECT(\"F\"&ROW($G$87)+ROUNDUP(COLUMNS($G:DW)/3,0))","v":0},{"$f":"INDIRECT(\"G\"&ROW($G$87)+ROUNDUP(COLUMNS($G:DX)/3,0))","v":0},null,{"$f":"INDIRECT(\"F\"&ROW($G$87)+ROUNDUP(COLUMNS($G:DZ)/3,0))","v":0},{"$f":"INDIRECT(\"G\"&ROW($G$87)+ROUNDUP(COLUMNS($G:EA)/3,0))","v":0},null,{"$f":"INDIRECT(\"F\"&ROW($G$87)+ROUNDUP(COLUMNS($G:EC)/3,0))","v":0},{"$f":"INDIRECT(\"G\"&ROW($G$87)+ROUNDUP(COLUMNS($G:ED)/3,0))","v":0},null,{"$f":"INDIRECT(\"F\"&ROW($G$87)+ROUNDUP(COLUMNS($G:EF)/3,0))","v":0},{"$f":"INDIRECT(\"G\"&ROW($G$87)+ROUNDUP(COLUMNS($G:EG)/3,0))","v":0},null,{"$f":"INDIRECT(\"F\"&ROW($G$87)+ROUNDUP(COLUMNS($G:EI)/3,0))","v":0},{"$f":"INDIRECT(\"G\"&ROW($G$87)+ROUNDUP(COLUMNS($G:EJ)/3,0))","v":0},null,{"$f":"INDIRECT(\"F\"&ROW($G$87)+ROUNDUP(COLUMNS($G:EL)/3,0))","v":0},{"$f":"INDIRECT(\"G\"&ROW($G$87)+ROUNDUP(COLUMNS($G:EM)/3,0))","v":0},null,{"$f":"INDIRECT(\"F\"&ROW($G$87)+ROUNDUP(COLUMNS($G:EO)/3,0))","v":0},{"$f":"INDIRECT(\"G\"&ROW($G$87)+ROUNDUP(COLUMNS($G:EP)/3,0))","v":0},null,{"$f":"INDIRECT(\"F\"&ROW($G$87)+ROUNDUP(COLUMNS($G:ER)/3,0))","v":0},{"$f":"INDIRECT(\"G\"&ROW($G$87)+ROUNDUP(COLUMNS($G:ES)/3,0))","v":0},null,{"$f":"EU81+EV81","v":0}]
["เวลากลับถึงสำนักงานเช็คของเสีย",null,null,{"$f":"D139","v":"00:00:00"},null,"ผลต่าง",{"$f":"G82+H82+G80-G9","v":0},null,null,{"$f":"J82+K82+J80-J9","v":0},null,null,{"$f":"M82+N82+M80-M9","v":0},null,null,{"$f":"P82+Q82+P80-P9","v":0},null,null,{"$f":"S82+T82+S80-S9","v":0},null,null,{"$f":"V82+W82+V80-V9","v":0},null,null,{"$f":"Y82+Z82+Y80-Y9","v":0},null,null,{"$f":"AB82+AC82+AB80-AB9","v":0},null,null,{"$f":"AE82+AF82+AE80-AE9","v":0},null,null,{"$f":"AH82+AI82+AH80-AH9","v":0},null,null,{"$f":"AK82+AL82+AK80-AK9","v":0},null,null,{"$f":"AN82+AO82+AN80-AN9","v":0},null,null,{"$f":"AQ82+AR82+AQ80-AQ9","v":0},null,null,{"$f":"AT82+AU82+AT80-AT9","v":0},null,null,{"$f":"AW82+AX82+AW80-AW9","v":0},null,null,{"$f":"AZ82+BA82+AZ80-AZ9","v":0},null,null,{"$f":"BC82+BD82+BC80-BC9","v":0},null,null,{"$f":"BF82+BG82+BF80-BF9","v":0},null,null,{"$f":"BI82+BJ82+BI80-BI9","v":0},null,null,{"$f":"BL82+BM82+BL80-BL9","v":0},null,null,{"$f":"BO82+BP82+BO80-BO9","v":0},null,null,{"$f":"BR82+BS82+BR80-BR9","v":0},null,null,{"$f":"BU82+BV82+BU80-BU9","v":0},null,null,{"$f":"BX82+BY82+BX80-BX9","v":0},null,null,{"$f":"CA82+CB82+CA80-CA9","v":0},null,null,{"$f":"CD82+CE82+CD80-CD9","v":0},null,null,{"$f":"CG82+CH82+CG80-CG9","v":0},null,null,{"$f":"CJ82+CK82+CJ80-CJ9","v":0},null,null,{"$f":"CM82+CN82+CM80-CM9","v":0},null,null,{"$f":"CP82+CQ82+CP80-CP9","v":0},null,null,{"$f":"CS82+CT82+CS80-CS9","v":0},null,null,{"$f":"CV82+CW82+CV80-CV9","v":0},null,null,{"$f":"CY82+CZ82+CY80-CY9","v":0},null,null,{"$f":"DB82+DC82+DB80-DB9","v":0},null,null,{"$f":"DE82+DF82+DE80-DE9","v":0},null,null,{"$f":"DH82+DI82+DH80-DH9","v":0},null,null,{"$f":"DK82+DL82+DK80-DK9","v":0},null,null,{"$f":"DN82+DO82+DN80-DN9","v":0},null,null,{"$f":"DQ82+DR82+DQ80-DQ9","v":0},null,null,{"$f":"DT82+DU82+DT80-DT9","v":0},null,null,{"$f":"DW82+DX82+DW80-DW9","v":0},null,null,{"$f":"DZ82+EA82+DZ80-DZ9","v":0},null,null,{"$f":"EC82+ED82+EC80-EC9","v":0},null,null,{"$f":"EF82+EG82+EF80-EF9","v":0},null,null,{"$f":"EI82+EJ82+EI80-EI9","v":0},null,null,{"$f":"EL82+EM82+EL80-EL9","v":0},null,null,{"$f":"EO82+EP82+EO80-EO9","v":0},null,null,{"$f":"ER82+ES82+ER80-ER9","v":0}]
["เป็นเงิน",null,null,null,null,null,{"$f":"G8*G83","v":0},null,null,{"$f":"J8*J83","v":0},null,null,{"$f":"M8*M83","v":0},null,null,{"$f":"P8*P83","v":0},null,null,{"$f":"S8*S83","v":0},null,null,{"$f":"V8*V83","v":0},null,null,{"$f":"Y8*Y83","v":0},null,null,{"$f":"AB8*AB83","v":0},null,null,{"$f":"AE8*AE83","v":0},null,null,{"$f":"AH8*AH83","v":0},null,null,{"$f":"AK8*AK83","v":0},null,null,{"$f":"AN8*AN83","v":0},null,null,{"$f":"AQ8*AQ83","v":0},null,null,{"$f":"AT8*AT83","v":0},null,null,{"$f":"AW8*AW83","v":0},null,null,{"$f":"AZ8*AZ83","v":0},null,null,{"$f":"BC8*BC83","v":0},null,null,{"$f":"BF8*BF83","v":0},null,null,{"$f":"BI8*BI83","v":0},null,null,{"$f":"BL8*BL83","v":0},null,null,{"$f":"BO8*BO83","v":0},null,null,{"$f":"BR8*BR83","v":0},null,null,{"$f":"BU8*BU83","v":0},null,null,{"$f":"BX8*BX83","v":0},null,null,{"$f":"CA8*CA83","v":0},null,null,{"$f":"CD8*CD83","v":0},null,null,{"$f":"CG8*CG83","v":0},null,null,{"$f":"CJ8*CJ83","v":0},null,null,{"$f":"CM8*CM83","v":0},null,null,{"$f":"CP8*CP83","v":0},null,null,{"$f":"CS8*CS83","v":0},null,null,{"$f":"CV8*CV83","v":0},null,null,{"$f":"CY8*CY83","v":0},null,null,{"$f":"DB8*DB83","v":0},null,null,{"$f":"DE8*DE83","v":0},null,null,{"$f":"DH8*DH83","v":0},null,null,{"$f":"DK8*DK83","v":0},null,null,{"$f":"DN8*DN83","v":0},null,null,{"$f":"DQ8*DQ83","v":0},null,null,{"$f":"DT8*DT83","v":0},null,null,{"$f":"DW8*DW83","v":0},null,null,0,null,null,{"$f":"EC8*EC83","v":0},null,null,{"$f":"EF8*EF83","v":0},null,null,{"$f":"EI8*EI83","v":0},null,null,{"$f":"EL8*EL83","v":0},null,null,{"$f":"EO8*EO83","v":0},null,null,{"$f":"ER8*ER83","v":0},null,null,{"$f":"$AP$98","v":0}]
[null,null,null,"ผู้จัดทำ……………………………………………………………………",null,null,null,null,null,null,null,null,null,null,null,null,null,null,null,null,null,null,null,"ผู้ตรวจ(ผจก.)………………………………………………………………………………."]
[null,null,"ใบจ่ายสินค้า",null,null,null,null,null,null,null,null,null,null,null,null,null,null,{"$f":"IF(ISODD(COLUMN()),MAX($F$86:Q$86)+1,\"\")","v":""}]
["ราคา","ลำดับ","รายการ","ยกมา","เบิก","เหลือ","เสีย","โอนเข้า","โอนออก","ชำรุด","รวม",null,"ขาย",null,"ขาด/เกิน",null,"บาท",null,null,null,"ขายได้",null,"ควรเบิก",null,"หมายเหตุ",null,null,null,"เสีย PDA","เสียจริง","เหลือ PDA","ผลต่าง","เหลือลูกค้า","หมายเหตุ",null,null,null,null,"Price","Quantity","Baht","Deduct"]
[{"$f":"IF(B88=\"\",0,INDEX(Price_List,ROWS($88:88)))","v":20},{"$f":"IF($C88=\"\",\"\",COUNTA($C$88:$C88))","v":1},{"$f":"IF(INDEX(INDIRECT(\"Product_List\"),ROWS($88:88))=\"\",\"\",INDEX(INDIRECT(\"Product_List\"),ROWS($88:88)))","v":"01-ขนมปังหมูหยองน้ำสลัด"},{"$f":"ยอดยกมา","v":0},null,null,null,null,null,null,{"$f":"D88+E88+J88-I88+H88","v":0},null,{"$f":"INDIRECT(ADDRESS(ROW(A$80),ROW()-ROW(A$80)+(ROWS($88:88)-1)*2-1,4))","v":0},null,{"$f":"F88+G88+M88+J88-K88","v":0},null,{"$f":"O88*A88","v":0},null,null,null,{"$f":"D88+E88-F88-G88","v":0},null,{"$f":"U88*6%+U88","v":0},null,null,null,null,null,{"$f":"INDIRECT(ADDRESS(ROW(A$80),ROW()-ROW(A$80)+(ROWS($88:88)-1)*2,4))","v":0},{"$f":"$G88","v":0},null,{"$f":"$F88-$AE88","v":0},{"$f":"INDIRECT(ADDRESS(ROW(A$80),ROW()-ROW(A$80)+(ROWS($88:88)-1)*2+1,4))","v":0},null,null,null,null,null,10,{"$f":"SUMPRODUCT(($A$88:$A$135=$AM88)*(($F$88:$F$135)+($G$88:$G$135)+($M$88:$M$135)+($J$88:$J$135)-($K$88:$K$135)))","v":0},{"$f":"AM88*AN88","v":0},{"$f":"IF(AO88<0,AO88,0)","v":0}]
[{"$f":"IF(B89=\"\",0,INDEX(Price_List,ROWS($88:89)))","v":20},{"$f":"IF($C89=\"\",\"\",COUNTA($C$88:$C89))","v":2},{"$f":"IF(INDEX(INDIRECT(\"Product_List\"),ROWS($88:89))=\"\",\"\",INDEX(INDIRECT(\"Product_List\"),ROWS($88:89)))","v":"02-ขนมปังหมูหยองน้ำพริกเผา"},{"$f":"ยอดยกมา","v":0},null,null,null,null,null,null,{"$f":"D89+E89+J89-I89+H89","v":0},null,{"$f":"INDIRECT(ADDRESS(ROW(A$80),ROW()-ROW(A$80)+(ROWS($88:89)-1)*2-1,4))","v":0},null,{"$f":"F89+G89+M89+J89-K89","v":0},null,{"$f":"O89*A89","v":0},null,null,null,{"$f":"D89+E89-F89-G89","v":0},null,{"$f":"U89*6%+U89","v":0},null,null,null,null,null,{"$f":"INDIRECT(ADDRESS(ROW(A$80),ROW()-ROW(A$80)+(ROWS($88:89)-1)*2,4))","v":0},{"$f":"$G89","v":0},null,{"$f":"$F89-$AE89","v":0},{"$f":"INDIRECT(ADDRESS(ROW(A$80),ROW()-ROW(A$80)+(ROWS($88:89)-1)*2+1,4))","v":0},null,null,null,null,null,12,0,{"$f":"AM89*AN89","v":0},{"$f":"IF(AO89<0,AO89,0)","v":0}]
[{"$f":"IF(B90=\"\",0,INDEX(Price_List,ROWS($88:90)))","v":20},{"$f":"IF($C90=\"\",\"\",COUNTA($C$88:$C90))","v":3},{"$f":"IF(INDEX(INDIRECT(\"Product_List\"),ROWS($88:90))=\"\",\"\",INDEX(INDIRECT(\"Product_List\"),ROWS($88:90)))","v":"03-ขนมปังไก่หยองน้ำสลัด"},{"$f":"ยอดยกมา","v":0},null,null,null,null,null,null,0,null,{"$f":"INDIRECT(ADDRESS(ROW(A$80),ROW()-ROW(A$80)+(ROWS($88:90)-1)*2-1,4))","v":0},null,0,null,0,null,null,null,0,null,0,null,null,null,null,null,{"$f":"INDIRECT(ADDRESS(ROW(A$80),ROW()-ROW(A$80)+(ROWS($88:90)-1)*2,4))","v":0},0,null,0,{"$f":"INDIRECT(ADDRESS(ROW(A$80),ROW()-ROW(A$80)+(ROWS($88:90)-1)*2+1,4))","v":0},null,null,null,null,null,13,0,{"$f":"AM90*AN90","v":0},{"$f":"IF(AO90<0,AO90,0)","v":0}]
[{"$f":"IF(B91=\"\",0,INDEX(Price_List,ROWS($88:91)))","v":15},{"$f":"IF($C91=\"\",\"\",COUNTA($C$88:$C91))","v":4},{"$f":"IF(INDEX(INDIRECT(\"Product_List\"),ROWS($88:91))=\"\",\"\",INDEX(INDIRECT(\"Product_List\"),ROWS($88:91)))","v":"04-ขนมปังไส้ครีมสลัด"},{"$f":"ยอดยกมา","v":0},null,null,null,null,null,null,0,null,{"$f":"INDIRECT(ADDRESS(ROW(A$80),ROW()-ROW(A$80)+(ROWS($88:91)-1)*2-1,4))","v":0},null,{"$f":"F91+G91+M91+J91-K91","v":0},null,0,null,null,null,0,null,0,null,null,null,null,null,{"$f":"INDIRECT(ADDRESS(ROW(A$80),ROW()-ROW(A$80)+(ROWS($88:91)-1)*2,4))","v":0},0,null,0,{"$f":"INDIRECT(ADDRESS(ROW(A$80),ROW()-ROW(A$80)+(ROWS($88:91)-1)*2+1,4))","v":0},null,null,null,null,null,15,0,0,0]
[{"$f":"IF(B92=\"\",0,INDEX(Price_List,ROWS($88:92)))","v":15},{"$f":"IF($C92=\"\",\"\",COUNTA($C$88:$C92))","v":5},{"$f":"IF(INDEX(INDIRECT(\"Product_List\"),ROWS($88:92))=\"\",\"\",INDEX(INDIRECT(\"Product_List\"),ROWS($88:92)))","v":"05-ขนมปังเนยสด"},{"$f":"ยอดยกมา","v":0},null,null,null,null,null,null,0,null,{"$f":"INDIRECT(ADDRESS(ROW(A$80),ROW()-ROW(A$80)+(ROWS($88:92)-1)*2-1,4))","v":0},null,0,null,0,null,null,null,0,null,0,null,null,null,null,null,{"$f":"INDIRECT(ADDRESS(ROW(A$80),ROW()-ROW(A$80)+(ROWS($88:92)-1)*2,4))","v":0},0,null,0,{"$f":"INDIRECT(ADDRESS(ROW(A$80),ROW()-ROW(A$80)+(ROWS($88:92)-1)*2+1,4))","v":0},null,null,null,null,null,16,0,0,0]
[{"$f":"IF(B93=\"\",0,INDEX(Price_List,ROWS($88:93)))","v":10},{"$f":"IF($C93=\"\",\"\",COUNTA($C$88:$C93))","v":6},{"$f":"IF(INDEX(INDIRECT(\"Product_List\"),ROWS($88:93))=\"\",\"\",INDEX(INDIRECT(\"Product_List\"),ROWS($88:93)))","v":"06-ขนมปังไส้สังขยาเล็ก"},{"$f":"ยอดยกมา","v":0},null,null,null,null,null,null,0,null,{"$f":"INDIRECT(ADDRESS(ROW(A$80),ROW()-ROW(A$80)+(ROWS($88:93)-1)*2-1,4))","v":0},null,0,null,0,null,null,null,0,null,0,null,null,null,null,null,{"$f":"INDIRECT(ADDRESS(ROW(A$80),ROW()-ROW(A$80)+(ROWS($88:93)-1)*2,4))","v":0},0,null,0,{"$f":"INDIRECT(ADDRESS(ROW(A$80),ROW()-ROW(A$80)+(ROWS($88:93)-1)*2+1,4))","v":0},null,null,null,null,null,18,0,0,0]
[{"$f":"IF(B94=\"\",0,INDEX(Price_List,ROWS($88:94)))","v":10},{"$f":"IF($C94=\"\",\"\",COUNTA($C$88:$C94))","v":7},{"$f":"IF(INDEX(INDIRECT(\"Product_List\"),ROWS($88:94))=\"\",\"\",INDEX(INDIRECT(\"Product_List\"),ROWS($88:94)))","v":"07-ขนมปังไส้เผือก"},{"$f":"ยอดยกมา","v":0},null,null,null,null,null,null,0,null,{"$f":"INDIRECT(ADDRESS(ROW(A$80),ROW()-ROW(A$80)+(ROWS($88:94)-1)*2-1,4))","v":0},null,0,null,0,null,null,null,0,null,0,null,null,null,null,null,{"$f":"INDIRECT(ADDRESS(ROW(A$80),ROW()-ROW(A$80)+(ROWS($88:94)-1)*2,4))","v":0},0,null,0,{"$f":"INDIRECT(ADDRESS(ROW(A$80),ROW()-ROW(A$80)+(ROWS($88:94)-1)*2+1,4))","v":0},null,null,null,null,null,20,0,0,0]
[{"$f":"IF(B95=\"\",0,INDEX(Price_List,ROWS($88:95)))","v":10},{"$f":"IF($C95=\"\",\"\",COUNTA($C$88:$C95))","v":8},{"$f":"IF(INDEX(INDIRECT(\"Product_List\"),ROWS($88:95))=\"\",\"\",INDEX(INDIRECT(\"Product_List\"),ROWS($88:95)))","v":"08-ขนมปังไส้ถั่วแดง"},{"$f":"ยอดยกมา","v":0},null,null,null,null,null,null,0,null,{"$f":"INDIRECT(ADDRESS(ROW(A$80),ROW()-ROW(A$80)+(ROWS($88:95)-1)*2-1,4))","v":0},null,0,null,0,null,null,null,0,null,0,null,null,null,null,null,{"$f":"INDIRECT(ADDRESS(ROW(A$80),ROW()-ROW(A$80)+(ROWS($88:95)-1)*2,4))","v":0},0,null,0,{"$f":"INDIRECT(ADDRESS(ROW(A$80),ROW()-ROW(A$80)+(ROWS($88:95)-1)*2+1,4))","v":0},null,null,null,null,null,22,0,0,0]
[{"$f":"IF(B96=\"\",0,INDEX(Price_List,ROWS($88:96)))","v":10},{"$f":"IF($C96=\"\",\"\",COUNTA($C$88:$C96))","v":9},{"$f":"IF(INDEX(INDIRECT(\"Product_List\"),ROWS($88:96))=\"\",\"\",INDEX(INDIRECT(\"Product_List\"),ROWS($88:96)))","v":"09-ขนมปังไส้ถั่วดำ"},{"$f":"ยอดยกมา","v":0},null,null,null,null,null,null,0,null,{"$f":"INDIRECT(ADDRESS(ROW(A$80),ROW()-ROW(A$80)+(ROWS($88:96)-1)*2-1,4))","v":0},null,0,null,0,null,null,null,0,null,0,null,null,null,null,null,{"$f":"INDIRECT(ADDRESS(ROW(A$80),ROW()-ROW(A$80)+(ROWS($88:96)-1)*2,4))","v":0},0,null,0,{"$f":"INDIRECT(ADDRESS(ROW(A$80),ROW()-ROW(A$80)+(ROWS($88:96)-1)*2+1,4))","v":0},null,null,null,null,null,25,0,0,0]
[{"$f":"IF(B97=\"\",0,INDEX(Price_List,ROWS($88:97)))","v":10},{"$f":"IF($C97=\"\",\"\",COUNTA($C$88:$C97))","v":10},{"$f":"IF(INDEX(INDIRECT(\"Product_List\"),ROWS($88:97))=\"\",\"\",INDEX(INDIRECT(\"Product_List\"),ROWS($88:97)))","v":"10-ขนมปังไส้มันม่วง"},{"$f":"ยอดยกมา","v":0},null,null,null,null,null,null,0,null,{"$f":"INDIRECT(ADDRESS(ROW(A$80),ROW()-ROW(A$80)+(ROWS($88:97)-1)*2-1,4))","v":0},null,0,null,0,null,null,null,0,null,0,null,null,null,null,null,{"$f":"INDIRECT(ADDRESS(ROW(A$80),ROW()-ROW(A$80)+(ROWS($88:97)-1)*2,4))","v":0},0,null,0,{"$f":"INDIRECT(ADDRESS(ROW(A$80),ROW()-ROW(A$80)+(ROWS($88:97)-1)*2+1,4))","v":0},null,null,null,null,null,42,0,0,0]
[{"$f":"IF(B98=\"\",0,INDEX(Price_List,ROWS($88:98)))","v":15},{"$f":"IF($C98=\"\",\"\",COUNTA($C$88:$C98))","v":11},{"$f":"IF(INDEX(INDIRECT(\"Product_List\"),ROWS($88:98))=\"\",\"\",INDEX(INDIRECT(\"Product_List\"),ROWS($88:98)))","v":"11-เค้กกล้วยหอม"},{"$f":"ยอดยกมา","v":0},null,null,null,null,null,null,0,null,{"$f":"INDIRECT(ADDRESS(ROW(A$80),ROW()-ROW(A$80)+(ROWS($88:98)-1)*2-1,4))","v":0},null,0,null,0,null,null,null,0,null,0,null,null,null,null,null,{"$f":"INDIRECT(ADDRESS(ROW(A$80),ROW()-ROW(A$80)+(ROWS($88:98)-1)*2,4))","v":0},0,null,0,{"$f":"INDIRECT(ADDRESS(ROW(A$80),ROW()-ROW(A$80)+(ROWS($88:98)-1)*2+1,4))","v":0},null,null,null,null,null,"Total Deduct",null,null,{"$f":"SUM($AP$88:$AP$97)","v":0}]
[{"$f":"IF(B99=\"\",0,INDEX(Price_List,ROWS($88:99)))","v":15},{"$f":"IF($C99=\"\",\"\",COUNTA($C$88:$C99))","v":12},{"$f":"IF(INDEX(INDIRECT(\"Product_List\"),ROWS($88:99))=\"\",\"\",INDEX(INDIRECT(\"Product_List\"),ROWS($88:99)))","v":"12-เค้กบัตเตอร์"},{"$f":"ยอดยกมา","v":0},null,null,null,null,null,null,0,null,{"$f":"INDIRECT(ADDRESS(ROW(A$80),ROW()-ROW(A$80)+(ROWS($88:99)-1)*2-1,4))","v":0},null,0,null,0,null,null,null,0,null,0,null,null,null,null,null,{"$f":"INDIRECT(ADDRESS(ROW(A$80),ROW()-ROW(A$80)+(ROWS($88:99)-1)*2,4))","v":0},0,null,0,{"$f":"INDIRECT(ADDRESS(ROW(A$80),ROW()-ROW(A$80)+(ROWS($88:99)-1)*2+1,4))","v":0}]
[{"$f":"IF(B100=\"\",0,INDEX(Price_List,ROWS($88:100)))","v":15},{"$f":"IF($C100=\"\",\"\",COUNTA($C$88:$C100))","v":13},{"$f":"IF(INDEX(INDIRECT(\"Product_List\"),ROWS($88:100))=\"\",\"\",INDEX(INDIRECT(\"Product_List\"),ROWS($88:100)))","v":"13-ขนมปังโรลถั่วแดง"},{"$f":"ยอดยกมา","v":0},null,null,null,null,null,null,0,null,{"$f":"INDIRECT(ADDRESS(ROW(A$80),ROW()-ROW(A$80)+(ROWS($88:100)-1)*2-1,4))","v":0},null,0,null,0,null,null,null,0,null,0,null,null,null,null,null,{"$f":"INDIRECT(ADDRESS(ROW(A$80),ROW()-ROW(A$80)+(ROWS($88:100)-1)*2,4))","v":0},0,null,0,{"$f":"INDIRECT(ADDRESS(ROW(A$80),ROW()-ROW(A$80)+(ROWS($88:100)-1)*2+1,4))","v":0}]
[{"$f":"IF(B101=\"\",0,INDEX(Price_List,ROWS($88:101)))","v":15},{"$f":"IF($C101=\"\",\"\",COUNTA($C$88:$C101))","v":14},{"$f":"IF(INDEX(INDIRECT(\"Product_List\"),ROWS($88:101))=\"\",\"\",INDEX(INDIRECT(\"Product_List\"),ROWS($88:101)))","v":"14-ขนมปังไส้สังขยาใหญ่"},{"$f":"ยอดยกมา","v":0},null,null,null,null,null,null,0,null,{"$f":"INDIRECT(ADDRESS(ROW(A$80),ROW()-ROW(A$80)+(ROWS($88:101)-1)*2-1,4))","v":0},null,0,null,0,null,null,null,0,null,0,null,null,null,null,null,{"$f":"INDIRECT(ADDRESS(ROW(A$80),ROW()-ROW(A$80)+(ROWS($88:101)-1)*2,4))","v":0},0,null,0,{"$f":"INDIRECT(ADDRESS(ROW(A$80),ROW()-ROW(A$80)+(ROWS($88:101)-1)*2+1,4))","v":0}]
[{"$f":"IF(B102=\"\",0,INDEX(Price_List,ROWS($88:102)))","v":42},{"$f":"IF($C102=\"\",\"\",COUNTA($C$88:$C102))","v":15},{"$f":"IF(INDEX(INDIRECT(\"Product_List\"),ROWS($88:102))=\"\",\"\",INDEX(INDIRECT(\"Product_List\"),ROWS($88:102)))","v":"15-ขนมปังชนิดแผ่น(480กรัม)"},{"$f":"ยอดยกมา","v":0},null,null,null,null,null,null,0,null,{"$f":"INDIRECT(ADDRESS(ROW(A$80),ROW()-ROW(A$80)+(ROWS($88:102)-1)*2-1,4))","v":0},null,0,null,0,null,null,null,0,null,0,null,null,null,null,null,{"$f":"INDIRECT(ADDRESS(ROW(A$80),ROW()-ROW(A$80)+(ROWS($88:102)-1)*2,4))","v":0},0,null,0,{"$f":"INDIRECT(ADDRESS(ROW(A$80),ROW()-ROW(A$80)+(ROWS($88:102)-1)*2+1,4))","v":0}]
[{"$f":"IF(B103=\"\",0,INDEX(Price_List,ROWS($88:103)))","v":12},{"$f":"IF($C103=\"\",\"\",COUNTA($C$88:$C103))","v":16},{"$f":"IF(INDEX(INDIRECT(\"Product_List\"),ROWS($88:103))=\"\",\"\",INDEX(INDIRECT(\"Product_List\"),ROWS($88:103)))","v":"16-โมจิไส้ถั่ว"},{"$f":"ยอดยกมา","v":0},null,null,null,null,null,null,0,null,{"$f":"INDIRECT(ADDRESS(ROW(A$80),ROW()-ROW(A$80)+(ROWS($88:103)-1)*2-1,4))","v":0},null,0,null,0,null,null,null,0,null,0,null,null,null,null,null,{"$f":"INDIRECT(ADDRESS(ROW(A$80),ROW()-ROW(A$80)+(ROWS($88:103)-1)*2,4))","v":0},0,null,0,{"$f":"INDIRECT(ADDRESS(ROW(A$80),ROW()-ROW(A$80)+(ROWS($88:103)-1)*2+1,4))","v":0}]
[{"$f":"IF(B104=\"\",0,INDEX(Price_List,ROWS($88:104)))","v":12},{"$f":"IF($C104=\"\",\"\",COUNTA($C$88:$C104))","v":17},{"$f":"IF(INDEX(INDIRECT(\"Product_List\"),ROWS($88:104))=\"\",\"\",INDEX(INDIRECT(\"Product_List\"),ROWS($88:104)))","v":"17-โมจิไส้เผือก"},{"$f":"ยอดยกมา","v":0},null,null,null,null,null,null,0,null,{"$f":"INDIRECT(ADDRESS(ROW(A$80),ROW()-ROW(A$80)+(ROWS($88:104)-1)*2-1,4))","v":0},null,0,null,0,null,null,null,0,null,0,null,null,null,null,null,{"$f":"INDIRECT(ADDRESS(ROW(A$80),ROW()-ROW(A$80)+(ROWS($88:104)-1)*2,4))","v":0},0,null,0,{"$f":"INDIRECT(ADDRESS(ROW(A$80),ROW()-ROW(A$80)+(ROWS($88:104)-1)*2+1,4))","v":0}]
[{"$f":"IF(B105=\"\",0,INDEX(Price_List,ROWS($88:105)))","v":15},{"$f":"IF($C105=\"\",\"\",COUNTA($C$88:$C105))","v":18},{"$f":"IF(INDEX(INDIRECT(\"Product_List\"),ROWS($88:105))=\"\",\"\",INDEX(INDIRECT(\"Product_List\"),ROWS($88:105)))","v":"18-โมจิไส้ถั่วไข่เค็ม"},{"$f":"ยอดยกมา","v":0},null,null,null,null,null,null,0,null,{"$f":"INDIRECT(ADDRESS(ROW(A$80),ROW()-ROW(A$80)+(ROWS($88:105)-1)*2-1,4))","v":0},null,0,null,0,null,null,null,0,null,0,null,null,null,null,null,{"$f":"INDIRECT(ADDRESS(ROW(A$80),ROW()-ROW(A$80)+(ROWS($88:105)-1)*2,4))","v":0},0,null,0,{"$f":"INDIRECT(ADDRESS(ROW(A$80),ROW()-ROW(A$80)+(ROWS($88:105)-1)*2+1,4))","v":0}]
[{"$f":"IF(B106=\"\",0,INDEX(Price_List,ROWS($88:106)))","v":20},{"$f":"IF($C106=\"\",\"\",COUNTA($C$88:$C106))","v":19},{"$f":"IF(INDEX(INDIRECT(\"Product_List\"),ROWS($88:106))=\"\",\"\",INDEX(INDIRECT(\"Product_List\"),ROWS($88:106)))","v":"19-ขนมปังพิซซ่า"},{"$f":"ยอดยกมา","v":0},null,null,null,null,null,null,0,null,{"$f":"INDIRECT(ADDRESS(ROW(A$80),ROW()-ROW(A$80)+(ROWS($88:106)-1)*2-1,4))","v":0},null,0,null,0,null,null,null,0,null,0,null,null,null,null,null,{"$f":"INDIRECT(ADDRESS(ROW(A$80),ROW()-ROW(A$80)+(ROWS($88:106)-1)*2,4))","v":0},0,null,0,{"$f":"INDIRECT(ADDRESS(ROW(A$80),ROW()-ROW(A$80)+(ROWS($88:106)-1)*2+1,4))","v":0}]
[{"$f":"IF(B107=\"\",0,INDEX(Price_List,ROWS($88:107)))","v":20},{"$f":"IF($C107=\"\",\"\",COUNTA($C$88:$C107))","v":20},{"$f":"IF(INDEX(INDIRECT(\"Product_List\"),ROWS($88:107))=\"\",\"\",INDEX(INDIRECT(\"Product_List\"),ROWS($88:107)))","v":"20-ขนมปังพิซซ่าปูอัดแฮม"},{"$f":"ยอดยกมา","v":0},null,null,null,null,null,null,0,null,{"$f":"INDIRECT(ADDRESS(ROW(A$80),ROW()-ROW(A$80)+(ROWS($88:107)-1)*2-1,4))","v":0},null,0,null,0,null,null,null,0,null,0,null,null,null,null,null,{"$f":"INDIRECT(ADDRESS(ROW(A$80),ROW()-ROW(A$80)+(ROWS($88:107)-1)*2,4))","v":0},0,null,0,{"$f":"INDIRECT(ADDRESS(ROW(A$80),ROW()-ROW(A$80)+(ROWS($88:107)-1)*2+1,4))","v":0}]
[{"$f":"IF(B108=\"\",0,INDEX(Price_List,ROWS($88:108)))","v":20},{"$f":"IF($C108=\"\",\"\",COUNTA($C$88:$C108))","v":21},{"$f":"IF(INDEX(INDIRECT(\"Product_List\"),ROWS($88:108))=\"\",\"\",INDEX(INDIRECT(\"Product_List\"),ROWS($88:108)))","v":"21-ขนมปังไส้กรอก"},{"$f":"ยอดยกมา","v":0},null,null,null,null,null,null,0,null,{"$f":"INDIRECT(ADDRESS(ROW(A$80),ROW()-ROW(A$80)+(ROWS($88:108)-1)*2-1,4))","v":0},null,0,null,0,null,null,null,0,null,0,null,null,null,null,null,{"$f":"INDIRECT(ADDRESS(ROW(A$80),ROW()-ROW(A$80)+(ROWS($88:108)-1)*2,4))","v":0},0,null,0,{"$f":"INDIRECT(ADDRESS(ROW(A$80),ROW()-ROW(A$80)+(ROWS($88:108)-1)*2+1,4))","v":0}]
[{"$f":"IF(B109=\"\",0,INDEX(Price_List,ROWS($88:109)))","v":15},{"$f":"IF($C109=\"\",\"\",COUNTA($C$88:$C109))","v":22},{"$f":"IF(INDEX(INDIRECT(\"Product_List\"),ROWS($88:109))=\"\",\"\",INDEX(INDIRECT(\"Product_List\"),ROWS($88:109)))","v":"22-ขนมก้านบัว"},{"$f":"ยอดยกมา","v":0},null,null,null,null,null,null,0,null,{"$f":"INDIRECT(ADDRESS(ROW(A$80),ROW()-ROW(A$80)+(ROWS($88:109)-1)*2-1,4))","v":0},null,0,null,0,null,null,null,0,null,0,null,null,null,null,null,{"$f":"INDIRECT(ADDRESS(ROW(A$80),ROW()-ROW(A$80)+(ROWS($88:109)-1)*2,4))","v":0},0,null,0,{"$f":"INDIRECT(ADDRESS(ROW(A$80),ROW()-ROW(A$80)+(ROWS($88:109)-1)*2+1,4))","v":0}]
[{"$f":"IF(B110=\"\",0,INDEX(Price_List,ROWS($88:110)))","v":20},{"$f":"IF($C110=\"\",\"\",COUNTA($C$88:$C110))","v":23},{"$f":"IF(INDEX(INDIRECT(\"Product_List\"),ROWS($88:110))=\"\",\"\",INDEX(INDIRECT(\"Product_List\"),ROWS($88:110)))","v":"23-พายสับปะรด"},{"$f":"ยอดยกมา","v":0},null,null,null,null,null,null,0,null,{"$f":"INDIRECT(ADDRESS(ROW(A$80),ROW()-ROW(A$80)+(ROWS($88:110)-1)*2-1,4))","v":0},null,0,null,0,null,null,null,0,null,0,null,null,null,null,null,{"$f":"INDIRECT(ADDRESS(ROW(A$80),ROW()-ROW(A$80)+(ROWS($88:110)-1)*2,4))","v":0},0,null,0,{"$f":"INDIRECT(ADDRESS(ROW(A$80),ROW()-ROW(A$80)+(ROWS($88:110)-1)*2+1,4))","v":0}]
[{"$f":"IF(B111=\"\",0,INDEX(Price_List,ROWS($88:111)))","v":20},{"$f":"IF($C111=\"\",\"\",COUNTA($C$88:$C111))","v":24},{"$f":"IF(INDEX(INDIRECT(\"Product_List\"),ROWS($88:111))=\"\",\"\",INDEX(INDIRECT(\"Product_List\"),ROWS($88:111)))","v":"24-พายไส้มะพร้าว"},{"$f":"ยอดยกมา","v":0},null,null,null,null,null,null,0,null,{"$f":"INDIRECT(ADDRESS(ROW(A$80),ROW()-ROW(A$80)+(ROWS($88:111)-1)*2-1,4))","v":0},null,0,null,0,null,null,null,0,null,0,null,null,null,null,null,{"$f":"INDIRECT(ADDRESS(ROW(A$80),ROW()-ROW(A$80)+(ROWS($88:111)-1)*2,4))","v":0},0,null,0,{"$f":"INDIRECT(ADDRESS(ROW(A$80),ROW()-ROW(A$80)+(ROWS($88:111)-1)*2+1,4))","v":0}]
[{"$f":"IF(B112=\"\",0,INDEX(Price_List,ROWS($88:112)))","v":15},{"$f":"IF($C112=\"\",\"\",COUNTA($C$88:$C112))","v":25},{"$f":"IF(INDEX(INDIRECT(\"Product_List\"),ROWS($88:112))=\"\",\"\",INDEX(INDIRECT(\"Product_List\"),ROWS($88:112)))","v":"25-ขนมปังโรลมันเทศ"},{"$f":"ยอดยกมา","v":0},null,null,null,null,null,null,0,null,{"$f":"INDIRECT(ADDRESS(ROW(A$80),ROW()-ROW(A$80)+(ROWS($88:112)-1)*2-1,4))","v":0},null,0,null,0,null,null,null,0,null,0,null,null,null,null,null,{"$f":"INDIRECT(ADDRESS(ROW(A$80),ROW()-ROW(A$80)+(ROWS($88:112)-1)*2,4))","v":0},0,null,0,{"$f":"INDIRECT(ADDRESS(ROW(A$80),ROW()-ROW(A$80)+(ROWS($88:112)-1)*2+1,4))","v":0}]
[{"$f":"IF(B113=\"\",0,INDEX(Price_List,ROWS($88:113)))","v":15},{"$f":"IF($C113=\"\",\"\",COUNTA($C$88:$C113))","v":26},{"$f":"IF(INDEX(INDIRECT(\"Product_List\"),ROWS($88:113))=\"\",\"\",INDEX(INDIRECT(\"Product_List\"),ROWS($88:113)))","v":"26-ขนมปังไส้ครีมสลัดน้ำพริกเผา"},{"$f":"ยอดยกมา","v":0},null,null,null,null,null,null,0,null,{"$f":"INDIRECT(ADDRESS(ROW(A$80),ROW()-ROW(A$80)+(ROWS($88:113)-1)*2-1,4))","v":0},null,0,null,0,null,null,null,0,null,0,null,null,null,null,null,{"$f":"INDIRECT(ADDRESS(ROW(A$80),ROW()-ROW(A$80)+(ROWS($88:113)-1)*2,4))","v":0},0,null,0,{"$f":"INDIRECT(ADDRESS(ROW(A$80),ROW()-ROW(A$80)+(ROWS($88:113)-1)*2+1,4))","v":0}]
[{"$f":"IF(B114=\"\",0,INDEX(Price_List,ROWS($88:114)))","v":20},{"$f":"IF($C114=\"\",\"\",COUNTA($C$88:$C114))","v":27},{"$f":"IF(INDEX(INDIRECT(\"Product_List\"),ROWS($88:114))=\"\",\"\",INDEX(INDIRECT(\"Product_List\"),ROWS($88:114)))","v":"27-ขนมปังไส้สังขยาไข่"},{"$f":"ยอดยกมา","v":0},null,null,null,null,null,null,0,null,{"$f":"INDIRECT(ADDRESS(ROW(A$80),ROW()-ROW(A$80)+(ROWS($88:114)-1)*2-1,4))","v":0},null,0,null,0,null,null,null,0,null,0,null,null,null,null,null,{"$f":"INDIRECT(ADDRESS(ROW(A$80),ROW()-ROW(A$80)+(ROWS($88:114)-1)*2,4))","v":0},0,null,0,{"$f":"INDIRECT(ADDRESS(ROW(A$80),ROW()-ROW(A$80)+(ROWS($88:114)-1)*2+1,4))","v":0}]
[{"$f":"IF(B115=\"\",0,INDEX(Price_List,ROWS($88:115)))","v":20},{"$f":"IF($C115=\"\",\"\",COUNTA($C$88:$C115))","v":28},{"$f":"IF(INDEX(INDIRECT(\"Product_List\"),ROWS($88:115))=\"\",\"\",INDEX(INDIRECT(\"Product_List\"),ROWS($88:115)))","v":"28-ขนมปังไส้สังขยามะพร้าว"},{"$f":"ยอดยกมา","v":0},null,null,null,null,null,null,0,null,{"$f":"INDIRECT(ADDRESS(ROW(A$80),ROW()-ROW(A$80)+(ROWS($88:115)-1)*2-1,4))","v":0},null,0,null,0,null,null,null,0,null,0,null,null,null,null,null,{"$f":"INDIRECT(ADDRESS(ROW(A$80),ROW()-ROW(A$80)+(ROWS($88:115)-1)*2,4))","v":0},0,null,0,{"$f":"INDIRECT(ADDRESS(ROW(A$80),ROW()-ROW(A$80)+(ROWS($88:115)-1)*2+1,4))","v":0}]
[{"$f":"IF(B116=\"\",0,INDEX(Price_List,ROWS($88:116)))","v":10},{"$f":"IF($C116=\"\",\"\",COUNTA($C$88:$C116))","v":29},{"$f":"IF(INDEX(INDIRECT(\"Product_List\"),ROWS($88:116))=\"\",\"\",INDEX(INDIRECT(\"Product_List\"),ROWS($88:116)))","v":"29-ขนมปังไส้ครีมชาไทย"},{"$f":"ยอดยกมา","v":0},null,null,null,null,null,null,0,null,{"$f":"INDIRECT(ADDRESS(ROW(A$80),ROW()-ROW(A$80)+(ROWS($88:116)-1)*2-1,4))","v":0},null,0,null,0,null,null,null,0,null,0,null,null,null,null,null,{"$f":"INDIRECT(ADDRESS(ROW(A$80),ROW()-ROW(A$80)+(ROWS($88:116)-1)*2,4))","v":0},0,null,0,{"$f":"INDIRECT(ADDRESS(ROW(A$80),ROW()-ROW(A$80)+(ROWS($88:116)-1)*2+1,4))","v":0}]
[{"$f":"IF(B117=\"\",0,INDEX(Price_List,ROWS($88:117)))","v":15},{"$f":"IF($C117=\"\",\"\",COUNTA($C$88:$C117))","v":30},{"$f":"IF(INDEX(INDIRECT(\"Product_List\"),ROWS($88:117))=\"\",\"\",INDEX(INDIRECT(\"Product_List\"),ROWS($88:117)))","v":"30-ขนมปังโรลมันม่วง"},{"$f":"ยอดยกมา","v":0},null,null,null,null,null,null,0,null,{"$f":"INDIRECT(ADDRESS(ROW(A$80),ROW()-ROW(A$80)+(ROWS($88:117)-1)*2-1,4))","v":0},null,0,null,0,null,null,null,0,null,0,null,null,null,null,null,{"$f":"INDIRECT(ADDRESS(ROW(A$80),ROW()-ROW(A$80)+(ROWS($88:117)-1)*2,4))","v":0},0,null,0,{"$f":"INDIRECT(ADDRESS(ROW(A$80),ROW()-ROW(A$80)+(ROWS($88:117)-1)*2+1,4))","v":0}]
[{"$f":"IF(B118=\"\",0,INDEX(Price_List,ROWS($88:118)))","v":15},{"$f":"IF($C118=\"\",\"\",COUNTA($C$88:$C118))","v":31},{"$f":"IF(INDEX(INDIRECT(\"Product_List\"),ROWS($88:118))=\"\",\"\",INDEX(INDIRECT(\"Product_List\"),ROWS($88:118)))","v":"31-ขนมปังโรลช็อกโกแลต"},{"$f":"ยอดยกมา","v":0},null,null,null,null,null,null,0,null,{"$f":"INDIRECT(ADDRESS(ROW(A$80),ROW()-ROW(A$80)+(ROWS($88:118)-1)*2-1,4))","v":0},null,0,null,0,null,null,null,0,null,0,null,null,null,null,null,{"$f":"INDIRECT(ADDRESS(ROW(A$80),ROW()-ROW(A$80)+(ROWS($88:118)-1)*2,4))","v":0},0,null,0,{"$f":"INDIRECT(ADDRESS(ROW(A$80),ROW()-ROW(A$80)+(ROWS($88:118)-1)*2+1,4))","v":0}]
[{"$f":"IF(B119=\"\",0,INDEX(Price_List,ROWS($88:119)))","v":16},{"$f":"IF($C119=\"\",\"\",COUNTA($C$88:$C119))","v":32},{"$f":"IF(INDEX(INDIRECT(\"Product_List\"),ROWS($88:119))=\"\",\"\",INDEX(INDIRECT(\"Product_List\"),ROWS($88:119)))","v":"32-ขนมปังชนิดแผ่น(155กรัม)"},{"$f":"ยอดยกมา","v":0},null,null,null,null,null,null,0,null,{"$f":"INDIRECT(ADDRESS(ROW(A$80),ROW()-ROW(A$80)+(ROWS($88:119)-1)*2-1,4))","v":0},null,0,null,0,null,null,null,0,null,0,null,null,null,null,null,{"$f":"INDIRECT(ADDRESS(ROW(A$80),ROW()-ROW(A$80)+(ROWS($88:119)-1)*2,4))","v":0},0,null,0,{"$f":"INDIRECT(ADDRESS(ROW(A$80),ROW()-ROW(A$80)+(ROWS($88:119)-1)*2+1,4))","v":0}]
[{"$f":"IF(B120=\"\",0,INDEX(Price_List,ROWS($88:120)))","v":15},{"$f":"IF($C120=\"\",\"\",COUNTA($C$88:$C120))","v":33},{"$f":"IF(INDEX(INDIRECT(\"Product_List\"),ROWS($88:120))=\"\",\"\",INDEX(INDIRECT(\"Product_List\"),ROWS($88:120)))","v":"33-ขนมปังโรลเผือก"},{"$f":"ยอดยกมา","v":0},null,null,null,null,null,null,0,null,{"$f":"INDIRECT(ADDRESS(ROW(A$80),ROW()-ROW(A$80)+(ROWS($88:120)-1)*2-1,4))","v":0},null,0,null,0,null,null,null,0,null,0,null,null,null,null,null,{"$f":"INDIRECT(ADDRESS(ROW(A$80),ROW()-ROW(A$80)+(ROWS($88:120)-1)*2,4))","v":0},0,null,0,{"$f":"INDIRECT(ADDRESS(ROW(A$80),ROW()-ROW(A$80)+(ROWS($88:120)-1)*2+1,4))","v":0}]
[{"$f":"IF(B121=\"\",0,INDEX(Price_List,ROWS($88:121)))","v":15},{"$f":"IF($C121=\"\",\"\",COUNTA($C$88:$C121))","v":34},{"$f":"IF(INDEX(INDIRECT(\"Product_List\"),ROWS($88:121))=\"\",\"\",INDEX(INDIRECT(\"Product_List\"),ROWS($88:121)))","v":"34-ขนมปังไก่หยองน้ำสลัด Mini"},{"$f":"ยอดยกมา","v":0},null,null,null,null,null,null,0,null,{"$f":"INDIRECT(ADDRESS(ROW(A$80),ROW()-ROW(A$80)+(ROWS($88:121)-1)*2-1,4))","v":0},null,0,null,0,null,null,null,0,null,0,null,null,null,null,null,{"$f":"INDIRECT(ADDRESS(ROW(A$80),ROW()-ROW(A$80)+(ROWS($88:121)-1)*2,4))","v":0},0,null,0,{"$f":"INDIRECT(ADDRESS(ROW(A$80),ROW()-ROW(A$80)+(ROWS($88:121)-1)*2+1,4))","v":0}]
[{"$f":"IF(B122=\"\",0,INDEX(Price_List,ROWS($88:122)))","v":10},{"$f":"IF($C122=\"\",\"\",COUNTA($C$88:$C122))","v":35},{"$f":"IF(INDEX(INDIRECT(\"Product_List\"),ROWS($88:122))=\"\",\"\",INDEX(INDIRECT(\"Product_List\"),ROWS($88:122)))","v":"35-ขนมปังไส้ช็อกโกแลต"},{"$f":"ยอดยกมา","v":0},null,null,null,null,null,null,0,null,{"$f":"INDIRECT(ADDRESS(ROW(A$80),ROW()-ROW(A$80)+(ROWS($88:122)-1)*2-1,4))","v":0},null,0,null,0,null,null,null,0,null,0,null,null,null,null,null,{"$f":"INDIRECT(ADDRESS(ROW(A$80),ROW()-ROW(A$80)+(ROWS($88:122)-1)*2,4))","v":0},0,null,0,{"$f":"INDIRECT(ADDRESS(ROW(A$80),ROW()-ROW(A$80)+(ROWS($88:122)-1)*2+1,4))","v":0}]
[{"$f":"IF(B123=\"\",0,INDEX(Price_List,ROWS($88:123)))","v":10},{"$f":"IF($C123=\"\",\"\",COUNTA($C$88:$C123))","v":36},{"$f":"IF(INDEX(INDIRECT(\"Product_List\"),ROWS($88:123))=\"\",\"\",INDEX(INDIRECT(\"Product_List\"),ROWS($88:123)))","v":"36-ขนมปังไส้ครีมสังขยาไข่"},{"$f":"ยอดยกมา","v":0},null,null,null,null,null,null,0,null,{"$f":"INDIRECT(ADDRESS(ROW(A$80),ROW()-ROW(A$80)+(ROWS($88:123)-1)*2-1,4))","v":0},null,0,null,0,null,null,null,0,null,0,null,null,null,null,null,{"$f":"INDIRECT(ADDRESS(ROW(A$80),ROW()-ROW(A$80)+(ROWS($88:123)-1)*2,4))","v":0},0,null,0,{"$f":"INDIRECT(ADDRESS(ROW(A$80),ROW()-ROW(A$80)+(ROWS($88:123)-1)*2+1,4))","v":0}]
[{"$f":"IF(B124=\"\",0,INDEX(Price_List,ROWS($88:124)))","v":20},{"$f":"IF($C124=\"\",\"\",COUNTA($C$88:$C124))","v":37},{"$f":"IF(INDEX(INDIRECT(\"Product_List\"),ROWS($88:124))=\"\",\"\",INDEX(INDIRECT(\"Product_List\"),ROWS($88:124)))","v":"37-ขนมปังพิซซ่าฮาวายเอี้ยน"},{"$f":"ยอดยกมา","v":0},null,null,null,null,null,null,0,null,{"$f":"INDIRECT(ADDRESS(ROW(A$80),ROW()-ROW(A$80)+(ROWS($88:124)-1)*2-1,4))","v":0},null,0,null,0,null,null,null,0,null,0,null,null,null,null,null,{"$f":"INDIRECT(ADDRESS(ROW(A$80),ROW()-ROW(A$80)+(ROWS($88:124)-1)*2,4))","v":0},0,null,0,{"$f":"INDIRECT(ADDRESS(ROW(A$80),ROW()-ROW(A$80)+(ROWS($88:124)-1)*2+1,4))","v":0}]
[{"$f":"IF(B125=\"\",0,INDEX(Price_List,ROWS($88:125)))","v":20},{"$f":"IF($C125=\"\",\"\",COUNTA($C$88:$C125))","v":38},{"$f":"IF(INDEX(INDIRECT(\"Product_List\"),ROWS($88:125))=\"\",\"\",INDEX(INDIRECT(\"Product_List\"),ROWS($88:125)))","v":"38-ครัวซองต์หมูหยองน้ำสลัด"},{"$f":"ยอดยกมา","v":0},null,null,null,null,null,null,0,null,{"$f":"INDIRECT(ADDRESS(ROW(A$80),ROW()-ROW(A$80)+(ROWS($88:125)-1)*2-1,4))","v":0},null,0,null,0,null,null,null,0,null,0,null,null,null,null,null,{"$f":"INDIRECT(ADDRESS(ROW(A$80),ROW()-ROW(A$80)+(ROWS($88:125)-1)*2,4))","v":0},0,null,0,{"$f":"INDIRECT(ADDRESS(ROW(A$80),ROW()-ROW(A$80)+(ROWS($88:125)-1)*2+1,4))","v":0}]
[{"$f":"IF(B126=\"\",0,INDEX(Price_List,ROWS($88:126)))","v":15},{"$f":"IF($C126=\"\",\"\",COUNTA($C$88:$C126))","v":39},{"$f":"IF(INDEX(INDIRECT(\"Product_List\"),ROWS($88:126))=\"\",\"\",INDEX(INDIRECT(\"Product_List\"),ROWS($88:126)))","v":"39-แพนเบรดไส้เผือก"},{"$f":"ยอดยกมา","v":0},null,null,null,null,null,null,0,null,{"$f":"INDIRECT(ADDRESS(ROW(A$80),ROW()-ROW(A$80)+(ROWS($88:126)-1)*2-1,4))","v":0},null,0,null,0,null,null,null,0,null,0,null,null,null,null,null,{"$f":"INDIRECT(ADDRESS(ROW(A$80),ROW()-ROW(A$80)+(ROWS($88:126)-1)*2,4))","v":0},0,null,0,{"$f":"INDIRECT(ADDRESS(ROW(A$80),ROW()-ROW(A$80)+(ROWS($88:126)-1)*2+1,4))","v":0}]
[{"$f":"IF(B127=\"\",0,INDEX(Price_List,ROWS($88:127)))","v":15},{"$f":"IF($C127=\"\",\"\",COUNTA($C$88:$C127))","v":40},{"$f":"IF(INDEX(INDIRECT(\"Product_List\"),ROWS($88:127))=\"\",\"\",INDEX(INDIRECT(\"Product_List\"),ROWS($88:127)))","v":"40-แพนเบรดไส้ถั่วแดง"},{"$f":"ยอดยกมา","v":0},null,null,null,null,null,null,{"$f":"D127+E127+J127-I127+H127","v":0},null,{"$f":"INDIRECT(ADDRESS(ROW(A$80),ROW()-ROW(A$80)+(ROWS($88:127)-1)*2-1,4))","v":0},null,{"$f":"F127+G127+M127+J127-K127","v":0},null,{"$f":"O127*A127","v":0},null,null,null,{"$f":"D127+E127-F127-G127","v":0},null,{"$f":"U127*6%+U127","v":0},null,null,null,null,null,{"$f":"INDIRECT(ADDRESS(ROW(A$80),ROW()-ROW(A$80)+(ROWS($88:127)-1)*2,4))","v":0},0,null,0,{"$f":"INDIRECT(ADDRESS(ROW(A$80),ROW()-ROW(A$80)+(ROWS($88:127)-1)*2+1,4))","v":0}]
[{"$f":"IF(B128=\"\",0,INDEX(Price_List,ROWS($88:128)))","v":12},{"$f":"IF($C128=\"\",\"\",COUNTA($C$88:$C128))","v":41},{"$f":"IF(INDEX(INDIRECT(\"Product_List\"),ROWS($88:128))=\"\",\"\",INDEX(INDIRECT(\"Product_List\"),ROWS($88:128)))","v":"41-ขนมปังกรอบเนยน้ำตาล(30กรัม)"},{"$f":"ยอดยกมา","v":0},null,null,null,null,null,null,0,null,{"$f":"INDIRECT(ADDRESS(ROW(A$80),ROW()-ROW(A$80)+(ROWS($88:128)-1)*2-1,4))","v":0},null,0,null,0,null,null,null,0,null,0,null,null,null,null,null,{"$f":"INDIRECT(ADDRESS(ROW(A$80),ROW()-ROW(A$80)+(ROWS($88:128)-1)*2,4))","v":0},0,null,0,{"$f":"INDIRECT(ADDRESS(ROW(A$80),ROW()-ROW(A$80)+(ROWS($88:128)-1)*2+1,4))","v":0}]
[{"$f":"IF(B129=\"\",0,INDEX(Price_List,ROWS($88:129)))","v":18},{"$f":"IF($C129=\"\",\"\",COUNTA($C$88:$C129))","v":42},{"$f":"IF(INDEX(INDIRECT(\"Product_List\"),ROWS($88:129))=\"\",\"\",INDEX(INDIRECT(\"Product_List\"),ROWS($88:129)))","v":"42-ขนมปังชนิดแผ่นโฮลวีต"},{"$f":"ยอดยกมา","v":0},null,null,null,null,null,null,0,null,{"$f":"INDIRECT(ADDRESS(ROW(A$80),ROW()-ROW(A$80)+(ROWS($88:129)-1)*2-1,4))","v":0},null,0,null,0,null,null,null,0,null,0,null,null,null,null,null,{"$f":"INDIRECT(ADDRESS(ROW(A$80),ROW()-ROW(A$80)+(ROWS($88:129)-1)*2,4))","v":0},0,null,0,{"$f":"INDIRECT(ADDRESS(ROW(A$80),ROW()-ROW(A$80)+(ROWS($88:129)-1)*2+1,4))","v":0}]
[{"$f":"IF(B130=\"\",0,INDEX(Price_List,ROWS($88:130)))","v":12},{"$f":"IF($C130=\"\",\"\",COUNTA($C$88:$C130))","v":43},{"$f":"IF(INDEX(INDIRECT(\"Product_List\"),ROWS($88:130))=\"\",\"\",INDEX(INDIRECT(\"Product_List\"),ROWS($88:130)))","v":"43-เค้กโรลใบเตย"},{"$f":"ยอดยกมา","v":0},null,null,null,null,null,null,{"$f":"D130+E130+J130-I130+H130","v":0},null,{"$f":"INDIRECT(ADDRESS(ROW(A$80),ROW()-ROW(A$80)+(ROWS($88:130)-1)*2-1,4))","v":0},null,{"$f":"F130+G130+M130+J130-K130","v":0},null,{"$f":"O130*A130","v":0},null,null,null,{"$f":"D130+E130-F130-G130","v":0},null,{"$f":"U130*6%+U130","v":0},null,null,null,null,null,{"$f":"INDIRECT(ADDRESS(ROW(A$80),ROW()-ROW(A$80)+(ROWS($88:130)-1)*2,4))","v":0},0,null,0,{"$f":"INDIRECT(ADDRESS(ROW(A$80),ROW()-ROW(A$80)+(ROWS($88:130)-1)*2+1,4))","v":0}]
[{"$f":"IF(B131=\"\",0,INDEX(Price_List,ROWS($88:131)))","v":12},{"$f":"IF($C131=\"\",\"\",COUNTA($C$88:$C131))","v":44},{"$f":"IF(INDEX(INDIRECT(\"Product_List\"),ROWS($88:131))=\"\",\"\",INDEX(INDIRECT(\"Product_List\"),ROWS($88:131)))","v":"44-ขนมโมจิไส้ถั่วดำ"},{"$f":"ยอดยกมา","v":0},null,null,null,null,null,null,{"$f":"D131+E131+J131-I131+H131","v":0},null,{"$f":"INDIRECT(ADDRESS(ROW(A$80),ROW()-ROW(A$80)+(ROWS($88:131)-1)*2-1,4))","v":0},null,{"$f":"F131+G131+M131+J131-K131","v":0},null,{"$f":"O131*A131","v":0},null,null,null,{"$f":"D131+E131-F131-G131","v":0},null,{"$f":"U131*6%+U131","v":0},null,null,null,null,null,{"$f":"INDIRECT(ADDRESS(ROW(A$80),ROW()-ROW(A$80)+(ROWS($88:131)-1)*2,4))","v":0},0,null,0,{"$f":"INDIRECT(ADDRESS(ROW(A$80),ROW()-ROW(A$80)+(ROWS($88:131)-1)*2+1,4))","v":0}]
[{"$f":"IF(B132=\"\",0,INDEX(Price_List,ROWS($88:132)))","v":25},{"$f":"IF($C132=\"\",\"\",COUNTA($C$88:$C132))","v":45},{"$f":"IF(INDEX(INDIRECT(\"Product_List\"),ROWS($88:132))=\"\",\"\",INDEX(INDIRECT(\"Product_List\"),ROWS($88:132)))","v":"45-ครัวซองต์ไส้กรอกชีส"},{"$f":"ยอดยกมา","v":0},null,null,null,null,null,null,{"$f":"D132+E132+J132-I132+H132","v":0},null,{"$f":"INDIRECT(ADDRESS(ROW(A$80),ROW()-ROW(A$80)+(ROWS($88:132)-1)*2-1,4))","v":0},null,{"$f":"F132+G132+M132+J132-K132","v":0},null,{"$f":"O132*A132","v":0},null,null,null,{"$f":"D132+E132-F132-G132","v":0},null,{"$f":"U132*6%+U132","v":0},null,null,null,null,null,{"$f":"INDIRECT(ADDRESS(ROW(A$80),ROW()-ROW(A$80)+(ROWS($88:132)-1)*2,4))","v":0},0,null,0,{"$f":"INDIRECT(ADDRESS(ROW(A$80),ROW()-ROW(A$80)+(ROWS($88:132)-1)*2+1,4))","v":0}]
[{"$f":"IF(B133=\"\",0,INDEX(Price_List,ROWS($88:133)))","v":12},{"$f":"IF($C133=\"\",\"\",COUNTA($C$88:$C133))","v":46},{"$f":"IF(INDEX(INDIRECT(\"Product_List\"),ROWS($88:133))=\"\",\"\",INDEX(INDIRECT(\"Product_List\"),ROWS($88:133)))","v":"46-ขนมเปี๊ยะไส้ถั่ว"},{"$f":"ยอดยกมา","v":0},null,null,null,null,null,null,0,null,{"$f":"INDIRECT(ADDRESS(ROW(A$80),ROW()-ROW(A$80)+(ROWS($88:133)-1)*2-1,4))","v":0},null,0,null,0,null,null,null,0,null,0,null,null,null,null,null,{"$f":"INDIRECT(ADDRESS(ROW(A$80),ROW()-ROW(A$80)+(ROWS($88:133)-1)*2,4))","v":0},0,null,0,{"$f":"INDIRECT(ADDRESS(ROW(A$80),ROW()-ROW(A$80)+(ROWS($88:133)-1)*2+1,4))","v":0}]
[{"$f":"IF(B134=\"\",0,INDEX(Price_List,ROWS($88:134)))","v":12},{"$f":"IF($C134=\"\",\"\",COUNTA($C$88:$C134))","v":47},{"$f":"IF(INDEX(INDIRECT(\"Product_List\"),ROWS($88:134))=\"\",\"\",INDEX(INDIRECT(\"Product_List\"),ROWS($88:134)))","v":"47-ขนมเปี๊ยะไส้ฟัก"},{"$f":"ยอดยกมา","v":0},null,null,null,null,null,null,{"$f":"D134+E134+J134-I134+H134","v":0},null,{"$f":"INDIRECT(ADDRESS(ROW(A$80),ROW()-ROW(A$80)+(ROWS($88:134)-1)*2-1,4))","v":0},null,{"$f":"F134+G134+M134+J134-K134","v":0},null,{"$f":"O134*A134","v":0},null,null,null,{"$f":"D134+E134-F134-G134","v":0},null,{"$f":"U134*6%+U134","v":0},null,null,null,null,null,{"$f":"INDIRECT(ADDRESS(ROW(A$80),ROW()-ROW(A$80)+(ROWS($88:134)-1)*2,4))","v":0},0,null,0,{"$f":"INDIRECT(ADDRESS(ROW(A$80),ROW()-ROW(A$80)+(ROWS($88:134)-1)*2+1,4))","v":0}]
[{"$f":"IF(B135=\"\",0,INDEX(Price_List,ROWS($88:135)))","v":12},{"$f":"IF($C135=\"\",\"\",COUNTA($C$88:$C135))","v":48},{"$f":"IF(INDEX(INDIRECT(\"Product_List\"),ROWS($88:135))=\"\",\"\",INDEX(INDIRECT(\"Product_List\"),ROWS($88:135)))","v":"48-มังกี้เค้ก"},{"$f":"ยอดยกมา","v":0},null,null,null,null,null,null,0,null,{"$f":"INDIRECT(ADDRESS(ROW(A$80),ROW()-ROW(A$80)+(ROWS($88:135)-1)*2-1,4))","v":0},null,0,null,0,null,null,null,0,null,0,null,null,null,null,null,{"$f":"INDIRECT(ADDRESS(ROW(A$80),ROW()-ROW(A$80)+(ROWS($88:135)-1)*2,4))","v":0},0,null,0,{"$f":"INDIRECT(ADDRESS(ROW(A$80),ROW()-ROW(A$80)+(ROWS($88:135)-1)*2+1,4))","v":0}]
["รวม",null,null,{"$f":"SUM(D$88:D$135)","v":0},0,0,0,0,0,0,0,null,{"$f":"SUM(M$88:M$135)","v":0},null,null,null,{"$f":"$AP$98","v":0},null,"บาท",null,{"$f":"SUM(U$88:U$135)","v":0},null,{"$f":"SUM(W$88:W$135)","v":0},null,null,null,null,null,{"$f":"SUM(AC$88:AC$135)","v":0},{"$f":"SUM(AD$88:AD$135)","v":0},{"$f":"SUM(AE$88:AE$135)","v":0},{"$f":"SUM(AF$88:AF$135)","v":0},{"$f":"SUM(AG$88:AG$135)","v":0}]
["เลขที่ไมล์ เวลาออกทำงาน",null,null,{"$f":"$BF$3","v":0},null,"Km","น้ำหนักของเสีย"]
["เลขที่ไมล์ เวลากลับ",null,null,{"$f":"$BF$4","v":0},null,"Km",{"$f":"$AA$5","v":0},null,"KG"]
["เวลากลับถึงสำนักงาน",null,null,{"$f":"$BF$1","v":"00:00:00"},null,"น."]
["เติมน้ำมัน",null,null,{"$f":"$AX3","v":0},null,"บาท"]
["จำนวนน้ำมัน",null,null,{"$f":"$AX4","v":0},null,"ลิตร"]
["ยอดรวมต้นทุนสาขา",null,null,{"$f":"$AX5","v":0},null,"บาท"]

{"sheet":"11","index":15,"n_rows":142,"n_cols":154,"rows_kept":142,"cut":false,"hidden":false,"merged":[[129,10,129,11],[129,12,129,13],[129,14,129,15],[129,16,129,17],[129,20,129,21],[80,126,80,127],[128,10,128,11],[128,12,128,13],[128,14,128,15],[128,16,128,17],[128,20,128,21],[128,22,128,23],[128,24,128,25],[128,33,128,36],[125,10,125,11],[125,12,125,13],[125,14,125,15],[125,16,125,17],[125,20,125,21],[126,10,126,11],[127,10,127,11],[83,81,83,82],[83,84,83,85],[83,87,83,88],[83,90,83,91],[83,93,83,94],[83,96,83,97],[82,72,82,73],[129,22,129,23],[129,24,129,25],[129,33,129,36],[97,38,97,40],[92,24,92,25],[92,33,92,36],[90,24,90,25],[90,33,90,36],[96,33,96,36],[97,33,97,36],[88,24,88,25],[88,33,88,36],[80,132,80,133],[82,132,82,133],[6,135,6,137],[7,135,7,137],[8,135,8,137],[80,135,80,136],[82,135,82,136],[80,129,80,130],[82,126,82,127],[82,129,82,130],[6,138,6,140],[6,141,6,143],[6,147,6,149],[126,22,126,23],[127,22,127,23],[126,24,126,25],[127,24,127,25],[126,33,126,36],[127,33,127,36],[125,24,125,25],[125,33,125,36],[123,24,123,25],[123,33,123,36],[125,22,125,23],[124,22,124,23],[124,24,124,25],[124,33,124,36],[122,24,122,25],[122,33,122,36],[98,24,98,25],[98,33,98,36],[99,24,99,25],[99,33,99,36],[82,108,82,109],[139,0,139,2],[139,3,139,4],[140,0,140,2],[140,3,140,4],[141,0,141,2],[141,3,141,4],[137,0,137,2],[137,3,137,4],[137,6,137,7],[137,18,137,21],[138,0,138,2],[138,3,138,4],[135,20,135,21],[135,22,135,23],[135,24,135,25],[135,33,135,36],[136,0,136,2],[136,3,136,4],[135,0,135,2],[135,10,135,11],[135,12,135,13],[135,14,135,15],[135,16,135,17],[135,18,135,19],[126,12,126,13],[127,12,127,13],[126,14,126,15],[127,14,127,15],[126,16,126,17],[127,16,127,17],[126,20,126,21],[127,20,127,21],[124,10,124,11],[124,12,124,13],[124,14,124,15],[124,16,124,17],[124,20,124,21],[123,10,123,11],[123,12,123,13],[123,14,123,15],[123,16,123,17],[123,20,123,21],[123,22,123,23],[122,10,122,11],[122,12,122,13],[122,14,122,15],[122,16,122,17],[122,20,122,21],[122,22,122,23],[121,10,121,11],[121,12,121,13],[121,14,121,15],[121,16,121,17],[121,20,121,21],[121,22,121,23],[121,24,121,25],[121,33,121,36],[120,10,120,11],[120,12,120,13],[120,14,120,15],[120,16,120,17],[120,20,120,21],[120,22,120,23],[120,24,120,25],[120,33,120,36],[119,10,119,11],[119,12,119,13],[119,14,119,15],[119,16,119,17],[119,20,119,21],[119,22,119,23],[119,24,119,25],[119,33,119,36],[118,10,118,11],[118,12,118,13],[118,14,118,15],[118,16,118,17],[118,20,118,21],[118,22,118,23],[118,24,118,25],[118,33,118,36],[117,10,117,11],[117,12,117,13],[117,14,117,15],[117,16,117,17],[117,20,117,21],[117,22,117,23],[117,24,117,25],[117,33,117,36],[116,10,116,11],[116,12,116,13],[116,14,116,15],[116,16,116,17],[116,20,116,21],[116,22,116,23],[116,24,116,25],[116,33,116,36],[115,10,115,11],[115,12,115,13],[115,14,115,15],[115,16,115,17],[115,20,115,21],[115,22,115,23],[115,24,115,25],[115,33,115,36],[114,10,114,11],[114,12,114,13],[114,14,114,15],[114,16,114,17],[114,20,114,21],[114,22,114,23],[114,24,114,25],[114,33,114,36],[113,10,113,11],[113,12,113,13],[113,14,113,15],[113,16,113,17],[113,20,113,21],[113,22,113,23],[113,24,113,25],[113,33,113,36],[112,10,112,11],[112,12,112,13],[112,14,112,15],[112,16,112,17],[112,20,112,21],[112,22,112,23],[112,24,112,25],[112,33,112,36],[111,10,111,11],[111,12,111,13],[111,14,111,15],[111,16,111,17],[111,20,111,21],[111,22,111,23],[111,24,111,25],[111,33,111,36],[110,10,110,11],[110,12,110,13],[110,14,110,15],[110,16,110,17],[110,20,110,21],[110,22,110,23],[110,24,110,25],[110,33,110,36],[109,10,109,11],[109,12,109,13],[109,14,109,15],[109,16,109,17],[109,20,109,21],[109,22,109,23],[109,24,109,25],[109,33,109,36],[108,10,108,11],[108,12,108,13],[108,14,108,15],[108,16,108,17],[108,20,108,21],[108,22,108,23],[108,24,108,25],[108,33,108,36],[107,10,107,11],[107,12,107,13],[107,14,107,15],[107,16,107,17],[107,20,107,21],[107,22,107,23],[107,24,107,25],[107,33,107,36],[106,10,106,11],[106,12,106,13],[106,14,106,15],[106,16,106,17],[106,20,106,21],[106,22,106,23],[106,24,106,25],[106,33,106,36],[105,10,105,11],[105,12,105,13],[105,14,105,15],[105,16,105,17],[105,20,105,21],[105,22,105,23],[105,24,105,25],[105,33,105,36],[104,10,104,11],[104,12,104,13],[104,14,104,15],[104,16,104,17],[104,20,104,21],[104,22,104,23],[104,24,104,25],[104,33,104,36],[103,10,103,11],[103,12,103,13],[103,14,103,15],[103,16,103,17],[103,20,103,21],[103,22,103,23],[103,24,103,25],[103,33,103,36],[102,10,102,11],[102,12,102,13],[102,14,102,15],[102,16,102,17],[102,20,102,21],[102,22,102,23],[102,24,102,25],[102,33,102,36],[101,10,101,11],[101,12,101,13],[101,14,101,15],[101,16,101,17],[101,20,101,21],[101,22,101,23],[101,24,101,25],[101,33,101,36],[100,10,100,11],[100,12,100,13],[100,14,100,15],[100,16,100,17],[100,20,100,21],[100,22,100,23],[100,24,100,25],[100,33,100,36],[99,10,99,11],[99,12,99,13],[99,14,99,15],[99,16,99,17],[99,20,99,21],[99,22,99,23],[98,10,98,11],[98,12,98,13],[98,14,98,15],[98,16,98,17],[98,20,98,21],[98,22,98,23],[97,10,97,11],[97,12,97,13],[97,14,97,15],[97,16,97,17],[97,20,97,21],[97,22,97,23],[97,24,97,25],[96,10,96,11],[96,12,96,13],[96,14,96,15],[96,16,96,17],[96,20,96,21],[96,22,96,23],[96,24,96,25],[95,10,95,11],[95,12,95,13],[95,14,95,15],[95,16,95,17],[95,20,95,21],[95,22,95,23],[95,24,95,25],[95,33,95,36],[94,10,94,11],[94,12,94,13],[94,14,94,15],[94,16,94,17],[94,20,94,21],[94,22,94,23],[94,24,94,25],[94,33,94,36],[93,10,93,11],[93,12,93,13],[93,14,93,15],[93,16,93,17],[93,20,93,21],[93,22,93,23],[93,24,93,25],[93,33,93,36],[92,10,92,11],[92,12,92,13],[92,14,92,15],[92,16,92,17],[92,20,92,21],[92,22,92,23],[91,10,91,11],[91,12,91,13],[91,14,91,15],[91,16,91,17],[91,20,91,21],[91,22,91,23],[91,24,91,25],[91,33,91,36],[90,10,90,11],[90,12,90,13],[90,14,90,15],[90,16,90,17],[90,20,90,21],[90,22,90,23],[87,33,87,36],[86,10,86,11],[86,12,86,13],[86,14,86,15],[86,16,86,17],[86,20,86,21],[86,22,86,23],[89,10,89,11],[89,12,89,13],[89,14,89,15],[89,16,89,17],[89,20,89,21],[89,22,89,23],[89,24,89,25],[89,33,89,36],[88,10,88,11],[88,12,88,13],[88,14,88,15],[88,16,88,17],[88,20,88,21],[88,22,88,23],[86,24,86,25],[86,33,86,36],[83,150,83,153],[83,99,83,100],[83,102,83,103],[83,105,83,106],[83,108,83,109],[83,111,83,112],[83,114,83,115],[83,126,83,127],[83,129,83,130],[83,132,83,133],[83,135,83,136],[83,117,83,118],[83,120,83,121],[83,123,83,124],[82,75,82,76],[82,78,82,79],[82,81,82,82],[82,84,82,85],[82,87,82,88],[82,99,82,100],[82,102,82,103],[82,105,82,106],[82,63,82,64],[82,66,82,67],[82,69,82,70],[82,90,82,91],[82,93,82,94],[82,96,82,97],[83,0,83,5],[83,6,83,7],[83,9,83,10],[83,12,83,13],[83,15,83,16],[83,18,83,19],[83,21,83,22],[83,24,83,25],[83,54,83,55],[83,27,83,28],[82,36,82,37],[83,30,83,31],[83,33,83,34],[83,36,83,37],[82,39,82,40],[82,42,82,43],[83,45,83,46],[83,48,83,49],[83,51,83,52],[83,39,83,40],[83,42,83,43],[82,54,82,55],[82,57,82,58],[82,60,82,61],[81,0,81,2],[81,3,81,5],[81,150,82,153],[82,0,82,2],[82,3,82,4],[82,6,82,7],[82,9,82,10],[82,12,82,13],[82,15,82,16],[82,45,82,46],[82,48,82,49],[82,51,82,52],[82,18,82,19],[82,21,82,22],[82,24,82,25],[82,27,82,28],[82,30,82,31],[82,33,82,34],[82,111,82,112],[82,114,82,115],[82,117,82,118],[82,120,82,121],[82,123,82,124],[80,111,80,112],[80,114,80,115],[80,117,80,118],[80,120,80,121],[80,123,80,124],[80,93,80,94],[80,96,80,97],[80,99,80,100],[80,102,80,103],[80,105,80,106],[80,108,80,109],[80,36,80,37],[80,75,80,76],[80,78,80,79],[80,81,80,82],[80,84,80,85],[80,87,80,88],[80,90,80,91],[80,57,80,58],[80,60,80,61],[80,63,80,64],[80,66,80,67],[80,69,80,70],[80,72,80,73],[6,0,8,0],[6,1,8,1],[80,0,80,5],[80,6,80,7],[80,9,80,10],[80,12,80,13],[80,15,80,16],[80,18,80,19],[8,117,8,119],[8,54,8,56],[8,57,8,59],[8,60,8,62],[8,27,8,29],[8,30,8,32],[8,33,8,35],[8,36,8,38],[8,39,8,41],[8,42,8,44],[8,9,8,11],[8,12,8,14],[8,15,8,17],[8,18,8,20],[8,21,8,23],[8,24,8,26],[6,129,6,131],[7,126,7,128],[7,129,7,131],[8,126,8,128],[8,129,8,131],[6,126,6,128],[6,84,6,86],[6,132,6,134],[79,0,79,5],[8,99,8,101],[8,102,8,104],[8,105,8,107],[8,108,8,110],[8,111,8,113],[8,114,8,116],[8,81,8,83],[8,84,8,86],[8,87,8,89],[8,90,8,92],[8,93,8,95],[8,96,8,98],[8,63,8,65],[8,66,8,68],[8,69,8,71],[7,120,7,122],[7,123,7,125],[7,150,8,150],[7,151,8,151],[7,102,7,104],[7,105,7,107],[7,108,7,110],[7,111,7,113],[7,114,7,116],[7,117,7,119],[8,120,8,122],[8,123,8,125],[7,132,7,134],[8,132,8,134],[6,152,8,152],[6,153,8,153],[7,6,7,8],[7,9,7,11],[7,12,7,14],[7,15,7,17],[7,18,7,20],[7,21,7,23],[7,24,7,26],[7,27,7,29],[6,117,6,119],[6,120,6,122],[6,123,6,125],[6,150,6,151],[6,99,6,101],[6,102,6,104],[6,105,6,107],[6,108,6,110],[6,93,6,95],[6,96,6,98],[6,63,6,65],[6,111,6,113],[6,114,6,116],[6,81,6,83],[6,2,8,2],[6,3,8,3],[6,4,8,4],[6,6,6,8],[8,6,8,8],[6,45,6,47],[6,48,6,50],[7,48,7,50],[6,39,6,41],[6,42,6,44],[7,30,7,32],[7,33,7,35],[7,36,7,38],[7,39,7,41],[7,42,7,44],[7,45,7,47],[8,45,8,47],[8,48,8,50],[4,26,4,29],[4,30,4,31],[4,32,4,34],[4,35,4,36],[6,9,6,11],[6,12,6,14],[6,15,6,17],[6,18,6,20],[6,21,6,23],[6,24,6,26],[6,27,6,29],[6,30,6,32],[6,33,6,35],[6,36,6,38],[3,41,3,44],[3,46,3,48],[3,49,3,51],[3,54,3,56],[3,57,3,60],[4,0,4,1],[4,2,4,3],[4,4,4,5],[4,6,4,12],[4,14,4,16],[3,17,3,19],[3,22,3,25],[3,26,3,29],[3,30,3,33],[3,34,3,37],[3,38,3,40],[4,38,4,40],[4,41,4,44],[4,46,4,48],[4,49,4,51],[4,54,4,56],[4,57,4,60],[4,17,4,19],[4,22,4,25],[3,0,3,1],[3,2,3,3],[3,4,3,5],[3,6,3,12],[3,14,3,16],[2,17,2,19],[2,22,2,25],[2,26,2,29],[2,30,2,33],[0,38,0,40],[0,41,0,44],[0,46,0,48],[0,54,0,56],[0,57,0,60],[2,0,2,1],[2,2,2,3],[2,4,2,5],[2,6,2,12],[2,14,2,16],[0,0,0,12],[0,14,0,16],[0,17,0,23],[0,30,0,33],[0,34,0,35],[0,36,0,37],[2,41,2,44],[2,46,2,48],[2,49,2,51],[2,54,2,56],[2,57,2,60],[2,34,2,37],[2,38,2,40],[7,96,7,98],[7,99,7,101],[6,51,6,53],[6,60,6,62],[6,87,6,89],[6,90,6,92],[7,84,7,86],[7,87,7,89],[7,90,7,92],[7,66,7,68],[7,69,7,71],[7,72,7,74],[6,66,6,68],[7,75,7,77],[7,78,7,80],[7,81,7,83],[6,69,6,71],[6,72,6,74],[6,75,6,77],[6,78,6,80],[6,54,6,56],[6,57,6,59],[131,24,131,25],[131,10,131,11],[131,20,131,21],[7,51,7,53],[7,54,7,56],[7,57,7,59],[7,60,7,62],[7,63,7,65],[7,93,7,95],[8,72,8,74],[8,75,8,77],[8,78,8,80],[8,51,8,53],[80,39,80,40],[80,42,80,43],[80,45,80,46],[80,48,80,49],[80,51,80,52],[80,54,80,55],[80,21,80,22],[80,24,80,25],[80,27,80,28],[80,30,80,31],[80,33,80,34],[83,147,83,148],[130,22,130,23],[130,24,130,25],[130,33,130,36],[130,10,130,11],[130,12,130,13],[130,14,130,15],[130,16,130,17],[130,20,130,21],[83,63,83,64],[83,66,83,67],[83,69,83,70],[83,72,83,73],[83,75,83,76],[83,78,83,79],[83,57,83,58],[83,60,83,61],[87,10,87,11],[87,12,87,13],[87,14,87,15],[87,16,87,17],[87,20,87,21],[87,22,87,23],[87,24,87,25],[7,147,7,149],[8,138,8,140],[8,141,8,143],[8,147,8,149],[80,138,80,139],[80,141,80,142],[80,147,80,148],[82,138,82,139],[82,141,82,142],[82,147,82,148],[132,10,132,11],[134,10,134,11],[131,12,131,13],[132,12,132,13],[134,12,134,13],[131,14,131,15],[132,14,132,15],[134,14,134,15],[131,16,131,17],[132,16,132,17],[134,16,134,17],[133,10,133,11],[133,12,133,13],[133,14,133,15],[133,16,133,17],[132,20,132,21],[134,20,134,21],[131,22,131,23],[132,22,132,23],[134,22,134,23],[6,144,6,146],[7,144,7,146],[8,144,8,146],[80,144,80,145],[82,144,82,145],[83,144,83,145],[133,20,133,21],[133,22,133,23],[133,24,133,25],[133,33,133,36],[132,24,132,25],[134,24,134,25],[131,33,131,36],[132,33,132,36],[134,33,134,36],[7,138,7,140],[7,141,7,143],[83,138,83,139],[83,141,83,142]]}
[":::: รายงานการขายประจำวัน (Sale Daily Report)  ::::",null,null,null,null,null,null,null,null,null,null,null,null,null,"Print Date : ",null,null,{"$f":"NOW()","v":"2025-04-24T22:39:10.140"},null,null,null,null,null,null,null,null,null,null,null,null,"จำนวนร้าน :",null,null,null,{"$f":"MAX($A$10:$A$79)","v":0},null,"ร้าน",null,"เป้ายอดขาย :",null,null,null,null,null,null,null,{"$f":"C3","v":45788},null,null,{"$f":"LEFT('Problems & Solutions'!$B$2,FIND(\"|\",'Problems & Solutions'!$B$2))&\" วันที่\"&TEXT($C$3,\"[$-107041E] d mmmm yyyy;@\")","v":"ขั้นตอนการตรวจรีพอร์ตขาย | วันที่ 11 พฤษภาคม 2568"},null,null,null,null,"เวลากลับ :"]
[]
["วันที่ :",null,{"$f":"DATE(ใส่ข้อมูล!G2-543,ใส่ข้อมูล!V2,ActiveSheetName)","v":"2025-05-11"},null,"พนักงานขาย",null,{"$f":"INDEX(OFFSET(Sale_Region,,1),ActiveSheetName)","v":0},null,null,null,null,null,null,null,"รวมยอดเบิก :",null,null,{"$f":"E136","v":0},null,null,"ชิ้น",null,"ใหญ่สด(40)",null,null,null,{"$f":"Cash_Major_Bill","v":0},null,null,null,"ใหญ่เชื่อ(42)",null,null,null,{"$f":"Credit_Major_Bill","v":0},null,null,null,"บิลใหญ่ :",null,null,{"$f":"AA3+AI3","v":0},null,null,null,null,"เติมน้ำมัน :",null,null,null,null,null,"บาท",null,"ไมล์ออก :",null,null,{"$f":"เลขไมล์ออก","v":0},null,null,null,"Km"]
["เขตการขาย :",null,{"$f":"INDEX(Sale_Region,ActiveSheetName)","v":0},null,"ผช.ขาย",null,{"$f":"INDEX(OFFSET(Sale_Region,,2),ActiveSheetName)","v":0},null,null,null,null,null,null,null,"ของเหลือ :",null,null,{"$f":"F136","v":0},null,null,"ชิ้น",null,"เล็กสด(41)",null,null,null,{"$f":"Cash_Minor_Bill","v":0},null,null,null,"เล็กเชื่อ(43)",null,null,null,{"$f":"Credit_Minor_Bill","v":0},null,null,null,"บิลเล็ก :",null,null,{"$f":"AA4+AI4","v":0},null,null,null,null,"จำนวนลิตร :",null,null,null,null,null,"ลิตร",null,"ไมล์เข้า :",null,null,null,null,null,null,"Km"]
["สายส่ง :",null,{"$f":"\"Sale \"&ใส่ข้อมูล!E3&\"-\"&ใส่ข้อมูล!G3","v":"Sale KB-01"},null,"พนักงานเสริม",null,{"$f":"INDEX(OFFSET(Sale_Region,,3),ActiveSheetName)","v":0},null,null,null,null,null,null,null,"ของเสีย :",null,null,{"$f":"G136","v":0},null,null,"ชิ้น",null,"น้ำหนักของเสีย",null,null,null,null,null,null,null,"Kg.",null,"%ของเสีย",null,null,{"$f":"IF(Order_Cal=0,0,ROUND(Waste_Cal*100/Order_Cal,2))","v":0},null,"%","VAT :",null,null,{"$f":"EW81","v":0},null,null,null,null,"ต้นทุนสาขา :",null,null,{"$f":"SUMPRODUCT((($A$88:$A$135)-($A$88:$A$135)*0.45)*(($E$88:$E$135)-($G$88:$G$135)))","v":0},null,null,"บาท",null,"ระยะทาง :",null,null,{"$f":"IF(OR($BF$4=0,$BF$3=0),0,$BF$4-$BF$3)","v":0},null,null,null,"Km"]
[]
["No","รหัสร้าน (CustNo)","ชื่อร้าน (Store Name)","เวลาเข้าร้าน","ระยะเวลาระหว่างร้าน","บิล(Invoice)",{"$f":"INDEX(INDIRECT(\"dProduct[ProductName]\"),ROUNDUP(COLUMNS($G:G)/3,0))","v":"ขนมปังหมูหยองน้ำสลัด"},null,null,{"$f":"INDEX(INDIRECT(\"dProduct[ProductName]\"),ROUNDUP(COLUMNS($G:J)/3,0))","v":"ขนมปังหมูหยองน้ำพริกเผา"},null,null,{"$f":"INDEX(INDIRECT(\"dProduct[ProductName]\"),ROUNDUP(COLUMNS($G:M)/3,0))","v":"ขนมปังไก่หยองน้ำสลัด"},null,null,{"$f":"INDEX(INDIRECT(\"dProduct[ProductName]\"),ROUNDUP(COLUMNS($G:P)/3,0))","v":"ขนมปังไส้ครีมสลัด"},null,null,{"$f":"INDEX(INDIRECT(\"dProduct[ProductName]\"),ROUNDUP(COLUMNS($G:S)/3,0))","v":"ขนมปังเนยสด"},null,null,{"$f":"INDEX(INDIRECT(\"dProduct[ProductName]\"),ROUNDUP(COLUMNS($G:V)/3,0))","v":"ขนมปังไส้สังขยาเล็ก"},null,null,{"$f":"INDEX(INDIRECT(\"dProduct[ProductName]\"),ROUNDUP(COLUMNS($G:Y)/3,0))","v":"ขนมปังไส้เผือก"},null,null,{"$f":"INDEX(INDIRECT(\"dProduct[ProductName]\"),ROUNDUP(COLUMNS($G:AB)/3,0))","v":"ขนมปังไส้ถั่วแดง"},null,null,{"$f":"INDEX(INDIRECT(\"dProduct[ProductName]\"),ROUNDUP(COLUMNS($G:AE)/3,0))","v":"ขนมปังไส้ถั่วดำ"},null,null,{"$f":"INDEX(INDIRECT(\"dProduct[ProductName]\"),ROUNDUP(COLUMNS($G:AH)/3,0))","v":"ขนมปังไส้มันม่วง"},null,null,{"$f":"INDEX(INDIRECT(\"dProduct[ProductName]\"),ROUNDUP(COLUMNS($G:AK)/3,0))","v":"เค้กกล้วยหอม"},null,null,{"$f":"INDEX(INDIRECT(\"dProduct[ProductName]\"),ROUNDUP(COLUMNS($G:AN)/3,0))","v":"เค้กบัตเตอร์"},null,null,{"$f":"INDEX(INDIRECT(\"dProduct[ProductName]\"),ROUNDUP(COLUMNS($G:AQ)/3,0))","v":"ขนมปังโรลถั่วแดง"},null,null,{"$f":"INDEX(INDIRECT(\"dProduct[ProductName]\"),ROUNDUP(COLUMNS($G:AT)/3,0))","v":"ขนมปังไส้สังขยาใหญ่"},null,null,{"$f":"INDEX(INDIRECT(\"dProduct[ProductName]\"),ROUNDUP(COLUMNS($G:AW)/3,0))","v":"ขนมปังชนิดแผ่น(480กรัม)"},null,null,{"$f":"INDEX(INDIRECT(\"dProduct[ProductName]\"),ROUNDUP(COLUMNS($G:AZ)/3,0))","v":"โมจิไส้ถั่ว"},null,null,{"$f":"INDEX(INDIRECT(\"dProduct[ProductName]\"),ROUNDUP(COLUMNS($G:BC)/3,0))","v":"โมจิไส้เผือก"},null,null,{"$f":"INDEX(INDIRECT(\"dProduct[ProductName]\"),ROUNDUP(COLUMNS($G:BF)/3,0))","v":"โมจิไส้ถั่วไข่เค็ม"},null,null,{"$f":"INDEX(INDIRECT(\"dProduct[ProductName]\"),ROUNDUP(COLUMNS($G:BI)/3,0))","v":"ขนมปังพิซซ่า"},null,null,{"$f":"INDEX(INDIRECT(\"dProduct[ProductName]\"),ROUNDUP(COLUMNS($G:BL)/3,0))","v":"ขนมปังพิซซ่าปูอัดแฮม"},null,null,{"$f":"INDEX(INDIRECT(\"dProduct[ProductName]\"),ROUNDUP(COLUMNS($G:BO)/3,0))","v":"ขนมปังไส้กรอก"},null,null,{"$f":"INDEX(INDIRECT(\"dProduct[ProductName]\"),ROUNDUP(COLUMNS($G:BR)/3,0))","v":"ขนมก้านบัว"},null,null,{"$f":"INDEX(INDIRECT(\"dProduct[ProductName]\"),ROUNDUP(COLUMNS($G:BU)/3,0))","v":"พายสับปะรด"},null,null,{"$f":"INDEX(INDIRECT(\"dProduct[ProductName]\"),ROUNDUP(COLUMNS($G:BX)/3,0))","v":"พายไส้มะพร้าว"},null,null,{"$f":"INDEX(INDIRECT(\"dProduct[ProductName]\"),ROUNDUP(COLUMNS($G:CA)/3,0))","v":"ขนมปังโรลมันเทศ"},null,null,{"$f":"INDEX(INDIRECT(\"dProduct[ProductName]\"),ROUNDUP(COLUMNS($G:CD)/3,0))","v":"ขนมปังไส้ครีมสลัดน้ำพริกเผา"},null,null,{"$f":"INDEX(INDIRECT(\"dProduct[ProductName]\"),ROUNDUP(COLUMNS($G:CG)/3,0))","v":"ขนมปังไส้สังขยาไข่"},null,null,{"$f":"INDEX(INDIRECT(\"dProduct[ProductName]\"),ROUNDUP(COLUMNS($G:CJ)/3,0))","v":"ขนมปังไส้สังขยามะพร้าว"},null,null,{"$f":"INDEX(INDIRECT(\"dProduct[ProductName]\"),ROUNDUP(COLUMNS($G:CM)/3,0))","v":"ขนมปังไส้ครีมชาไทย"},null,null,{"$f":"INDEX(INDIRECT(\"dProduct[ProductName]\"),ROUNDUP(COLUMNS($G:CP)/3,0))","v":"ขนมปังโรลมันม่วง"},null,null,{"$f":"INDEX(INDIRECT(\"dProduct[ProductName]\"),ROUNDUP(COLUMNS($G:CS)/3,0))","v":"ขนมปังโรลช็อกโกแลต"},null,null,{"$f":"INDEX(INDIRECT(\"dProduct[ProductName]\"),ROUNDUP(COLUMNS($G:CV)/3,0))","v":"ขนมปังชนิดแผ่น(155กรัม)"},null,null,{"$f":"INDEX(INDIRECT(\"dProduct[ProductName]\"),ROUNDUP(COLUMNS($G:CY)/3,0))","v":"ขนมปังโรลเผือก"},null,null,{"$f":"INDEX(INDIRECT(\"dProduct[ProductName]\"),ROUNDUP(COLUMNS($G:DB)/3,0))","v":"ขนมปังไก่หยองน้ำสลัด Mini"},null,null,{"$f":"INDEX(INDIRECT(\"dProduct[ProductName]\"),ROUNDUP(COLUMNS($G:DE)/3,0))","v":"ขนมปังไส้ช็อกโกแลต"},null,null,{"$f":"INDEX(INDIRECT(\"dProduct[ProductName]\"),ROUNDUP(COLUMNS($G:DH)/3,0))","v":"ขนมปังไส้ครีมสังขยาไข่"},null,null,{"$f":"INDEX(INDIRECT(\"dProduct[ProductName]\"),ROUNDUP(COLUMNS($G:DK)/3,0))","v":"ขนมปังพิซซ่าฮาวายเอี้ยน"},null,null,{"$f":"INDEX(INDIRECT(\"dProduct[ProductName]\"),ROUNDUP(COLUMNS($G:DN)/3,0))","v":"ครัวซองต์หมูหยองน้ำสลัด"},null,null,{"$f":"INDEX(INDIRECT(\"dProduct[ProductName]\"),ROUNDUP(COLUMNS($G:DQ)/3,0))","v":"แพนเบรดไส้เผือก"},null,null,{"$f":"INDEX(INDIRECT(\"dProduct[ProductName]\"),ROUNDUP(COLUMNS($G:DT)/3,0))","v":"แพนเบรดไส้ถั่วแดง"},null,null,{"$f":"INDEX(INDIRECT(\"dProduct[ProductName]\"),ROUNDUP(COLUMNS($G:DW)/3,0))","v":"ขนมปังกรอบเนยน้ำตาล(30กรัม)"},null,null,{"$f":"INDEX(INDIRECT(\"dProduct[ProductName]\"),ROUNDUP(COLUMNS($G:DZ)/3,0))","v":"ขนมปังชนิดแผ่นโฮลวีต"},null,null,{"$f":"INDEX(INDIRECT(\"dProduct[ProductName]\"),ROUNDUP(COLUMNS($G:EC)/3,0))","v":"เค้กโรลใบเตย"},null,null,{"$f":"INDEX(INDIRECT(\"dProduct[ProductName]\"),ROUNDUP(COLUMNS($G:EF)/3,0))","v":"ขนมโมจิไส้ถั่วดำ"},null,null,{"$f":"INDEX(INDIRECT(\"dProduct[ProductName]\"),ROUNDUP(COLUMNS($G:EI)/3,0))","v":"ครัวซองต์ไส้กรอกชีส"},null,null,{"$f":"INDEX(INDIRECT(\"dProduct[ProductName]\"),ROUNDUP(COLUMNS($G:EL)/3,0))","v":"ขนมเปี๊ยะไส้ถั่ว"},null,null,{"$f":"INDEX(INDIRECT(\"dProduct[ProductName]\"),ROUNDUP(COLUMNS($G:EO)/3,0))","v":"ขนมเปี๊ยะไส้ฟัก"},null,null,{"$f":"INDEX(INDIRECT(\"dProduct[ProductName]\"),ROUNDUP(COLUMNS($G:ER)/3,0))","v":"มังกี้เค้ก"},null,null,"มูลค่าสินค้า",null,"ภาษี","รวมยอดขาย"]
[null,null,null,null,null,"ราคาขาย",{"$f":"IF(G$7=0,0,INDEX(Price_List,ROUNDUP(COLUMNS($G:G)/3,0)))","v":20},null,null,{"$f":"IF(J$7=0,0,INDEX(Price_List,ROUNDUP(COLUMNS($G:J)/3,0)))","v":20},null,null,{"$f":"IF(M$7=0,0,INDEX(Price_List,ROUNDUP(COLUMNS($G:M)/3,0)))","v":20},null,null,{"$f":"IF(P$7=0,0,INDEX(Price_List,ROUNDUP(COLUMNS($G:P)/3,0)))","v":15},null,null,{"$f":"IF(S$7=0,0,INDEX(Price_List,ROUNDUP(COLUMNS($G:S)/3,0)))","v":15},null,null,{"$f":"IF(V$7=0,0,INDEX(Price_List,ROUNDUP(COLUMNS($G:V)/3,0)))","v":10},null,null,{"$f":"IF(Y$7=0,0,INDEX(Price_List,ROUNDUP(COLUMNS($G:Y)/3,0)))","v":10},null,null,{"$f":"IF(AB$7=0,0,INDEX(Price_List,ROUNDUP(COLUMNS($G:AB)/3,0)))","v":10},null,null,{"$f":"IF(AE$7=0,0,INDEX(Price_List,ROUNDUP(COLUMNS($G:AE)/3,0)))","v":10},null,null,{"$f":"IF(AH$7=0,0,INDEX(Price_List,ROUNDUP(COLUMNS($G:AH)/3,0)))","v":10},null,null,{"$f":"IF(AK$7=0,0,INDEX(Price_List,ROUNDUP(COLUMNS($G:AK)/3,0)))","v":15},null,null,{"$f":"IF(AN$7=0,0,INDEX(Price_List,ROUNDUP(COLUMNS($G:AN)/3,0)))","v":15},null,null,{"$f":"IF(AQ$7=0,0,INDEX(Price_List,ROUNDUP(COLUMNS($G:AQ)/3,0)))","v":15},null,null,{"$f":"IF(AT$7=0,0,INDEX(Price_List,ROUNDUP(COLUMNS($G:AT)/3,0)))","v":15},null,null,{"$f":"IF(AW$7=0,0,INDEX(Price_List,ROUNDUP(COLUMNS($G:AW)/3,0)))","v":42},null,null,{"$f":"IF(AZ$7=0,0,INDEX(Price_List,ROUNDUP(COLUMNS($G:AZ)/3,0)))","v":12},null,null,{"$f":"IF(BC$7=0,0,INDEX(Price_List,ROUNDUP(COLUMNS($G:BC)/3,0)))","v":12},null,null,{"$f":"IF(BF$7=0,0,INDEX(Price_List,ROUNDUP(COLUMNS($G:BF)/3,0)))","v":15},null,null,{"$f":"IF(BI$7=0,0,INDEX(Price_List,ROUNDUP(COLUMNS($G:BI)/3,0)))","v":20},null,null,{"$f":"IF(BL$7=0,0,INDEX(Price_List,ROUNDUP(COLUMNS($G:BL)/3,0)))","v":20},null,null,{"$f":"IF(BO$7=0,0,INDEX(Price_List,ROUNDUP(COLUMNS($G:BO)/3,0)))","v":20},null,null,{"$f":"IF(BR$7=0,0,INDEX(Price_List,ROUNDUP(COLUMNS($G:BR)/3,0)))","v":15},null,null,{"$f":"IF(BU$7=0,0,INDEX(Price_List,ROUNDUP(COLUMNS($G:BU)/3,0)))","v":20},null,null,{"$f":"IF(BX$7=0,0,INDEX(Price_List,ROUNDUP(COLUMNS($G:BX)/3,0)))","v":20},null,null,{"$f":"IF(CA$7=0,0,INDEX(Price_List,ROUNDUP(COLUMNS($G:CA)/3,0)))","v":15},null,null,{"$f":"IF(CD$7=0,0,INDEX(Price_List,ROUNDUP(COLUMNS($G:CD)/3,0)))","v":15},null,null,{"$f":"IF(CG$7=0,0,INDEX(Price_List,ROUNDUP(COLUMNS($G:CG)/3,0)))","v":20},null,null,{"$f":"IF(CJ$7=0,0,INDEX(Price_List,ROUNDUP(COLUMNS($G:CJ)/3,0)))","v":20},null,null,{"$f":"IF(CM$7=0,0,INDEX(Price_List,ROUNDUP(COLUMNS($G:CM)/3,0)))","v":10},null,null,{"$f":"IF(CP$7=0,0,INDEX(Price_List,ROUNDUP(COLUMNS($G:CP)/3,0)))","v":15},null,null,{"$f":"IF(CS$7=0,0,INDEX(Price_List,ROUNDUP(COLUMNS($G:CS)/3,0)))","v":15},null,null,{"$f":"IF(CV$7=0,0,INDEX(Price_List,ROUNDUP(COLUMNS($G:CV)/3,0)))","v":16},null,null,{"$f":"IF(CY$7=0,0,INDEX(Price_List,ROUNDUP(COLUMNS($G:CY)/3,0)))","v":15},null,null,{"$f":"IF(DB$7=0,0,INDEX(Price_List,ROUNDUP(COLUMNS($G:DB)/3,0)))","v":15},null,null,{"$f":"IF(DE$7=0,0,INDEX(Price_List,ROUNDUP(COLUMNS($G:DE)/3,0)))","v":10},null,null,{"$f":"IF(DH$7=0,0,INDEX(Price_List,ROUNDUP(COLUMNS($G:DH)/3,0)))","v":10},null,null,{"$f":"IF(DK$7=0,0,INDEX(Price_List,ROUNDUP(COLUMNS($G:DK)/3,0)))","v":20},null,null,{"$f":"IF(DN$7=0,0,INDEX(Price_List,ROUNDUP(COLUMNS($G:DN)/3,0)))","v":20},null,null,{"$f":"IF(DQ$7=0,0,INDEX(Price_List,ROUNDUP(COLUMNS($G:DQ)/3,0)))","v":15},null,null,{"$f":"IF(DT$7=0,0,INDEX(Price_List,ROUNDUP(COLUMNS($G:DT)/3,0)))","v":15},null,null,{"$f":"IF(DW$7=0,0,INDEX(Price_List,ROUNDUP(COLUMNS($G:DW)/3,0)))","v":12},null,null,{"$f":"IF(DZ$7=0,0,INDEX(Price_List,ROUNDUP(COLUMNS($G:DZ)/3,0)))","v":18},null,null,{"$f":"IF(EC$7=0,0,INDEX(Price_List,ROUNDUP(COLUMNS($G:EC)/3,0)))","v":12},null,null,{"$f":"IF(EF$7=0,0,INDEX(Price_List,ROUNDUP(COLUMNS($G:EF)/3,0)))","v":12},null,null,{"$f":"IF(EI$7=0,0,INDEX(Price_List,ROUNDUP(COLUMNS($G:EI)/3,0)))","v":25},null,null,{"$f":"IF(EL$7=0,0,INDEX(Price_List,ROUNDUP(COLUMNS($G:EL)/3,0)))","v":12},null,null,{"$f":"IF(EO$7=0,0,INDEX(Price_List,ROUNDUP(COLUMNS($G:EO)/3,0)))","v":12},null,null,{"$f":"IF(ER$7=0,0,INDEX(Price_List,ROUNDUP(COLUMNS($G:ER)/3,0)))","v":12},null,null,"เงินเชื่อ","เงินสด"]
[null,null,null,null,null,"คงเหลือ(ตามบัญชี)",{"$f":"IF(G$7=0,0,INDEX(INDIRECT(Order_Rng),ROUNDUP(COLUMNS($G:G)/3,0)))","v":0},null,null,{"$f":"IF(J$7=0,0,INDEX(INDIRECT(Order_Rng),ROUNDUP(COLUMNS($G:J)/3,0)))","v":0},null,null,{"$f":"IF(M$7=0,0,INDEX(INDIRECT(Order_Rng),ROUNDUP(COLUMNS($G:M)/3,0)))","v":0},null,null,{"$f":"IF(P$7=0,0,INDEX(INDIRECT(Order_Rng),ROUNDUP(COLUMNS($G:P)/3,0)))","v":0},null,null,{"$f":"IF(S$7=0,0,INDEX(INDIRECT(Order_Rng),ROUNDUP(COLUMNS($G:S)/3,0)))","v":0},null,null,{"$f":"IF(V$7=0,0,INDEX(INDIRECT(Order_Rng),ROUNDUP(COLUMNS($G:V)/3,0)))","v":0},null,null,{"$f":"IF(Y$7=0,0,INDEX(INDIRECT(Order_Rng),ROUNDUP(COLUMNS($G:Y)/3,0)))","v":0},null,null,{"$f":"IF(AB$7=0,0,INDEX(INDIRECT(Order_Rng),ROUNDUP(COLUMNS($G:AB)/3,0)))","v":0},null,null,{"$f":"IF(AE$7=0,0,INDEX(INDIRECT(Order_Rng),ROUNDUP(COLUMNS($G:AE)/3,0)))","v":0},null,null,{"$f":"IF(AH$7=0,0,INDEX(INDIRECT(Order_Rng),ROUNDUP(COLUMNS($G:AH)/3,0)))","v":0},null,null,{"$f":"IF(AK$7=0,0,INDEX(INDIRECT(Order_Rng),ROUNDUP(COLUMNS($G:AK)/3,0)))","v":0},null,null,{"$f":"IF(AN$7=0,0,INDEX(INDIRECT(Order_Rng),ROUNDUP(COLUMNS($G:AN)/3,0)))","v":0},null,null,{"$f":"IF(AQ$7=0,0,INDEX(INDIRECT(Order_Rng),ROUNDUP(COLUMNS($G:AQ)/3,0)))","v":0},null,null,{"$f":"IF(AT$7=0,0,INDEX(INDIRECT(Order_Rng),ROUNDUP(COLUMNS($G:AT)/3,0)))","v":0},null,null,{"$f":"IF(AW$7=0,0,INDEX(INDIRECT(Order_Rng),ROUNDUP(COLUMNS($G:AW)/3,0)))","v":0},null,null,{"$f":"IF(AZ$7=0,0,INDEX(INDIRECT(Order_Rng),ROUNDUP(COLUMNS($G:AZ)/3,0)))","v":0},null,null,{"$f":"IF(BC$7=0,0,INDEX(INDIRECT(Order_Rng),ROUNDUP(COLUMNS($G:BC)/3,0)))","v":0},null,null,{"$f":"IF(BF$7=0,0,INDEX(INDIRECT(Order_Rng),ROUNDUP(COLUMNS($G:BF)/3,0)))","v":0},null,null,{"$f":"IF(BI$7=0,0,INDEX(INDIRECT(Order_Rng),ROUNDUP(COLUMNS($G:BI)/3,0)))","v":0},null,null,{"$f":"IF(BL$7=0,0,INDEX(INDIRECT(Order_Rng),ROUNDUP(COLUMNS($G:BL)/3,0)))","v":0},null,null,{"$f":"IF(BO$7=0,0,INDEX(INDIRECT(Order_Rng),ROUNDUP(COLUMNS($G:BO)/3,0)))","v":0},null,null,{"$f":"IF(BR$7=0,0,INDEX(INDIRECT(Order_Rng),ROUNDUP(COLUMNS($G:BR)/3,0)))","v":0},null,null,{"$f":"IF(BU$7=0,0,INDEX(INDIRECT(Order_Rng),ROUNDUP(COLUMNS($G:BU)/3,0)))","v":0},null,null,{"$f":"IF(BX$7=0,0,INDEX(INDIRECT(Order_Rng),ROUNDUP(COLUMNS($G:BX)/3,0)))","v":0},null,null,{"$f":"IF(CA$7=0,0,INDEX(INDIRECT(Order_Rng),ROUNDUP(COLUMNS($G:CA)/3,0)))","v":0},null,null,{"$f":"IF(CD$7=0,0,INDEX(INDIRECT(Order_Rng),ROUNDUP(COLUMNS($G:CD)/3,0)))","v":0},null,null,{"$f":"IF(CG$7=0,0,INDEX(INDIRECT(Order_Rng),ROUNDUP(COLUMNS($G:CG)/3,0)))","v":0},null,null,{"$f":"IF(CJ$7=0,0,INDEX(INDIRECT(Order_Rng),ROUNDUP(COLUMNS($G:CJ)/3,0)))","v":0},null,null,{"$f":"IF(CM$7=0,0,INDEX(INDIRECT(Order_Rng),ROUNDUP(COLUMNS($G:CM)/3,0)))","v":0},null,null,{"$f":"IF(CP$7=0,0,INDEX(INDIRECT(Order_Rng),ROUNDUP(COLUMNS($G:CP)/3,0)))","v":0},null,null,{"$f":"IF(CS$7=0,0,INDEX(INDIRECT(Order_Rng),ROUNDUP(COLUMNS($G:CS)/3,0)))","v":0},null,null,{"$f":"IF(CV$7=0,0,INDEX(INDIRECT(Order_Rng),ROUNDUP(COLUMNS($G:CV)/3,0)))","v":0},null,null,{"$f":"IF(CY$7=0,0,INDEX(INDIRECT(Order_Rng),ROUNDUP(COLUMNS($G:CY)/3,0)))","v":0},null,null,{"$f":"IF(DB$7=0,0,INDEX(INDIRECT(Order_Rng),ROUNDUP(COLUMNS($G:DB)/3,0)))","v":0},null,null,{"$f":"IF(DE$7=0,0,INDEX(INDIRECT(Order_Rng),ROUNDUP(COLUMNS($G:DE)/3,0)))","v":0},null,null,{"$f":"IF(DH$7=0,0,INDEX(INDIRECT(Order_Rng),ROUNDUP(COLUMNS($G:DH)/3,0)))","v":0},null,null,{"$f":"IF(DK$7=0,0,INDEX(INDIRECT(Order_Rng),ROUNDUP(COLUMNS($G:DK)/3,0)))","v":0},null,null,{"$f":"IF(DN$7=0,0,INDEX(INDIRECT(Order_Rng),ROUNDUP(COLUMNS($G:DN)/3,0)))","v":0},null,null,{"$f":"IF(DQ$7=0,0,INDEX(INDIRECT(Order_Rng),ROUNDUP(COLUMNS($G:DQ)/3,0)))","v":0},null,null,{"$f":"IF(DT$7=0,0,INDEX(INDIRECT(Order_Rng),ROUNDUP(COLUMNS($G:DT)/3,0)))","v":0},null,null,{"$f":"IF(DW$7=0,0,INDEX(INDIRECT(Order_Rng),ROUNDUP(COLUMNS($G:DW)/3,0)))","v":0},null,null,{"$f":"IF(DZ$7=0,0,INDEX(INDIRECT(Order_Rng),ROUNDUP(COLUMNS($G:DZ)/3,0)))","v":0},null,null,{"$f":"IF(EC$7=0,0,INDEX(INDIRECT(Order_Rng),ROUNDUP(COLUMNS($G:EC)/3,0)))","v":0},null,null,{"$f":"IF(EF$7=0,0,INDEX(INDIRECT(Order_Rng),ROUNDUP(COLUMNS($G:EF)/3,0)))","v":0},null,null,{"$f":"IF(EI$7=0,0,INDEX(INDIRECT(Order_Rng),ROUNDUP(COLUMNS($G:EI)/3,0)))","v":0},null,null,{"$f":"IF(EL$7=0,0,INDEX(INDIRECT(Order_Rng),ROUNDUP(COLUMNS($G:EL)/3,0)))","v":0},null,null,{"$f":"IF(EO$7=0,0,INDEX(INDIRECT(Order_Rng),ROUNDUP(COLUMNS($G:EO)/3,0)))","v":0},null,null,{"$f":"IF(ER$7=0,0,INDEX(INDIRECT(Order_Rng),ROUNDUP(COLUMNS($G:ER)/3,0)))","v":0}]
[{"$f":"IF(OR($B10=\"\",COUNTIF($B$10:$B10,$B10)>1,LEN(TRIM($B10))<>10,ISNUMBER(--MID(TRIM($B10),5,1))),\"-\",MAX(COUNT($A$9:$A9)+1))","v":"-"}]
[{"$f":"IF(OR($B11=\"\",COUNTIF($B$10:$B11,$B11)>1,LEN(TRIM($B11))<>10,ISNUMBER(--MID(TRIM($B11),5,1))),\"-\",MAX(COUNT($A$9:$A10)+1))","v":"-"},null,null,null,{"$f":"IF(D11=\"\",\"\",D11-D10)","v":""}]
[{"$f":"IF(OR($B12=\"\",COUNTIF($B$10:$B12,$B12)>1,LEN(TRIM($B12))<>10,ISNUMBER(--MID(TRIM($B12),5,1))),\"-\",MAX(COUNT($A$9:$A11)+1))","v":"-"},null,null,null,{"$f":"IF(D12=\"\",\"\",D12-D11)","v":""}]
[{"$f":"IF(OR($B13=\"\",COUNTIF($B$10:$B13,$B13)>1,LEN(TRIM($B13))<>10,ISNUMBER(--MID(TRIM($B13),5,1))),\"-\",MAX(COUNT($A$9:$A12)+1))","v":"-"},null,null,null,""]
[{"$f":"IF(OR($B14=\"\",COUNTIF($B$10:$B14,$B14)>1,LEN(TRIM($B14))<>10,ISNUMBER(--MID(TRIM($B14),5,1))),\"-\",MAX(COUNT($A$9:$A13)+1))","v":"-"},null,null,null,""]
[{"$f":"IF(OR($B15=\"\",COUNTIF($B$10:$B15,$B15)>1,LEN(TRIM($B15))<>10,ISNUMBER(--MID(TRIM($B15),5,1))),\"-\",MAX(COUNT($A$9:$A14)+1))","v":"-"},null,null,null,""]
[{"$f":"IF(OR($B16=\"\",COUNTIF($B$10:$B16,$B16)>1,LEN(TRIM($B16))<>10,ISNUMBER(--MID(TRIM($B16),5,1))),\"-\",MAX(COUNT($A$9:$A15)+1))","v":"-"},null,null,null,""]
[{"$f":"IF(OR($B17=\"\",COUNTIF($B$10:$B17,$B17)>1,LEN(TRIM($B17))<>10,ISNUMBER(--MID(TRIM($B17),5,1))),\"-\",MAX(COUNT($A$9:$A16)+1))","v":"-"},null,null,null,""]
[{"$f":"IF(OR($B18=\"\",COUNTIF($B$10:$B18,$B18)>1,LEN(TRIM($B18))<>10,ISNUMBER(--MID(TRIM($B18),5,1))),\"-\",MAX(COUNT($A$9:$A17)+1))","v":"-"},null,null,null,""]
[{"$f":"IF(OR($B19=\"\",COUNTIF($B$10:$B19,$B19)>1,LEN(TRIM($B19))<>10,ISNUMBER(--MID(TRIM($B19),5,1))),\"-\",MAX(COUNT($A$9:$A18)+1))","v":"-"},null,null,null,""]
[{"$f":"IF(OR($B20=\"\",COUNTIF($B$10:$B20,$B20)>1,LEN(TRIM($B20))<>10,ISNUMBER(--MID(TRIM($B20),5,1))),\"-\",MAX(COUNT($A$9:$A19)+1))","v":"-"},null,null,null,""]
[{"$f":"IF(OR($B21=\"\",COUNTIF($B$10:$B21,$B21)>1,LEN(TRIM($B21))<>10,ISNUMBER(--MID(TRIM($B21),5,1))),\"-\",MAX(COUNT($A$9:$A20)+1))","v":"-"},null,null,null,""]
[{"$f":"IF(OR($B22=\"\",COUNTIF($B$10:$B22,$B22)>1,LEN(TRIM($B22))<>10,ISNUMBER(--MID(TRIM($B22),5,1))),\"-\",MAX(COUNT($A$9:$A21)+1))","v":"-"},null,null,null,""]
[{"$f":"IF(OR($B23=\"\",COUNTIF($B$10:$B23,$B23)>1,LEN(TRIM($B23))<>10,ISNUMBER(--MID(TRIM($B23),5,1))),\"-\",MAX(COUNT($A$9:$A22)+1))","v":"-"},null,null,null,""]
[{"$f":"IF(OR($B24=\"\",COUNTIF($B$10:$B24,$B24)>1,LEN(TRIM($B24))<>10,ISNUMBER(--MID(TRIM($B24),5,1))),\"-\",MAX(COUNT($A$9:$A23)+1))","v":"-"},null,null,null,""]
[{"$f":"IF(OR($B25=\"\",COUNTIF($B$10:$B25,$B25)>1,LEN(TRIM($B25))<>10,ISNUMBER(--MID(TRIM($B25),5,1))),\"-\",MAX(COUNT($A$9:$A24)+1))","v":"-"},null,null,null,""]
[{"$f":"IF(OR($B26=\"\",COUNTIF($B$10:$B26,$B26)>1,LEN(TRIM($B26))<>10,ISNUMBER(--MID(TRIM($B26),5,1))),\"-\",MAX(COUNT($A$9:$A25)+1))","v":"-"},null,null,null,""]
[{"$f":"IF(OR($B27=\"\",COUNTIF($B$10:$B27,$B27)>1,LEN(TRIM($B27))<>10,ISNUMBER(--MID(TRIM($B27),5,1))),\"-\",MAX(COUNT($A$9:$A26)+1))","v":"-"},null,null,null,""]
[{"$f":"IF(OR($B28=\"\",COUNTIF($B$10:$B28,$B28)>1,LEN(TRIM($B28))<>10,ISNUMBER(--MID(TRIM($B28),5,1))),\"-\",MAX(COUNT($A$9:$A27)+1))","v":"-"},null,null,null,""]
[{"$f":"IF(OR($B29=\"\",COUNTIF($B$10:$B29,$B29)>1,LEN(TRIM($B29))<>10,ISNUMBER(--MID(TRIM($B29),5,1))),\"-\",MAX(COUNT($A$9:$A28)+1))","v":"-"},null,null,null,""]
[{"$f":"IF(OR($B30=\"\",COUNTIF($B$10:$B30,$B30)>1,LEN(TRIM($B30))<>10,ISNUMBER(--MID(TRIM($B30),5,1))),\"-\",MAX(COUNT($A$9:$A29)+1))","v":"-"},null,null,null,""]
[{"$f":"IF(OR($B31=\"\",COUNTIF($B$10:$B31,$B31)>1,LEN(TRIM($B31))<>10,ISNUMBER(--MID(TRIM($B31),5,1))),\"-\",MAX(COUNT($A$9:$A30)+1))","v":"-"},null,null,null,""]
[{"$f":"IF(OR($B32=\"\",COUNTIF($B$10:$B32,$B32)>1,LEN(TRIM($B32))<>10,ISNUMBER(--MID(TRIM($B32),5,1))),\"-\",MAX(COUNT($A$9:$A31)+1))","v":"-"},null,null,null,""]
[{"$f":"IF(OR($B33=\"\",COUNTIF($B$10:$B33,$B33)>1,LEN(TRIM($B33))<>10,ISNUMBER(--MID(TRIM($B33),5,1))),\"-\",MAX(COUNT($A$9:$A32)+1))","v":"-"},null,null,null,""]
[{"$f":"IF(OR($B34=\"\",COUNTIF($B$10:$B34,$B34)>1,LEN(TRIM($B34))<>10,ISNUMBER(--MID(TRIM($B34),5,1))),\"-\",MAX(COUNT($A$9:$A33)+1))","v":"-"},null,null,null,""]
[{"$f":"IF(OR($B35=\"\",COUNTIF($B$10:$B35,$B35)>1,LEN(TRIM($B35))<>10,ISNUMBER(--MID(TRIM($B35),5,1))),\"-\",MAX(COUNT($A$9:$A34)+1))","v":"-"},null,null,null,""]
[{"$f":"IF(OR($B36=\"\",COUNTIF($B$10:$B36,$B36)>1,LEN(TRIM($B36))<>10,ISNUMBER(--MID(TRIM($B36),5,1))),\"-\",MAX(COUNT($A$9:$A35)+1))","v":"-"},null,null,null,""]
[{"$f":"IF(OR($B37=\"\",COUNTIF($B$10:$B37,$B37)>1,LEN(TRIM($B37))<>10,ISNUMBER(--MID(TRIM($B37),5,1))),\"-\",MAX(COUNT($A$9:$A36)+1))","v":"-"},null,null,null,""]
[{"$f":"IF(OR($B38=\"\",COUNTIF($B$10:$B38,$B38)>1,LEN(TRIM($B38))<>10,ISNUMBER(--MID(TRIM($B38),5,1))),\"-\",MAX(COUNT($A$9:$A37)+1))","v":"-"},null,null,null,""]
[{"$f":"IF(OR($B39=\"\",COUNTIF($B$10:$B39,$B39)>1,LEN(TRIM($B39))<>10,ISNUMBER(--MID(TRIM($B39),5,1))),\"-\",MAX(COUNT($A$9:$A38)+1))","v":"-"},null,null,null,""]
[{"$f":"IF(OR($B40=\"\",COUNTIF($B$10:$B40,$B40)>1,LEN(TRIM($B40))<>10,ISNUMBER(--MID(TRIM($B40),5,1))),\"-\",MAX(COUNT($A$9:$A39)+1))","v":"-"},null,null,null,""]
[{"$f":"IF(OR($B41=\"\",COUNTIF($B$10:$B41,$B41)>1,LEN(TRIM($B41))<>10,ISNUMBER(--MID(TRIM($B41),5,1))),\"-\",MAX(COUNT($A$9:$A40)+1))","v":"-"},null,null,null,""]
[{"$f":"IF(OR($B42=\"\",COUNTIF($B$10:$B42,$B42)>1,LEN(TRIM($B42))<>10,ISNUMBER(--MID(TRIM($B42),5,1))),\"-\",MAX(COUNT($A$9:$A41)+1))","v":"-"},null,null,null,""]
[{"$f":"IF(OR($B43=\"\",COUNTIF($B$10:$B43,$B43)>1,LEN(TRIM($B43))<>10,ISNUMBER(--MID(TRIM($B43),5,1))),\"-\",MAX(COUNT($A$9:$A42)+1))","v":"-"},null,null,null,""]
[{"$f":"IF(OR($B44=\"\",COUNTIF($B$10:$B44,$B44)>1,LEN(TRIM($B44))<>10,ISNUMBER(--MID(TRIM($B44),5,1))),\"-\",MAX(COUNT($A$9:$A43)+1))","v":"-"},null,null,null,""]
[{"$f":"IF(OR($B45=\"\",COUNTIF($B$10:$B45,$B45)>1,LEN(TRIM($B45))<>10,ISNUMBER(--MID(TRIM($B45),5,1))),\"-\",MAX(COUNT($A$9:$A44)+1))","v":"-"},null,null,null,""]
[{"$f":"IF(OR($B46=\"\",COUNTIF($B$10:$B46,$B46)>1,LEN(TRIM($B46))<>10,ISNUMBER(--MID(TRIM($B46),5,1))),\"-\",MAX(COUNT($A$9:$A45)+1))","v":"-"},null,null,null,""]
[{"$f":"IF(OR($B47=\"\",COUNTIF($B$10:$B47,$B47)>1,LEN(TRIM($B47))<>10,ISNUMBER(--MID(TRIM($B47),5,1))),\"-\",MAX(COUNT($A$9:$A46)+1))","v":"-"},null,null,null,""]
[{"$f":"IF(OR($B48=\"\",COUNTIF($B$10:$B48,$B48)>1,LEN(TRIM($B48))<>10,ISNUMBER(--MID(TRIM($B48),5,1))),\"-\",MAX(COUNT($A$9:$A47)+1))","v":"-"},null,null,null,""]
[{"$f":"IF(OR($B49=\"\",COUNTIF($B$10:$B49,$B49)>1,LEN(TRIM($B49))<>10,ISNUMBER(--MID(TRIM($B49),5,1))),\"-\",MAX(COUNT($A$9:$A48)+1))","v":"-"},null,null,null,""]
[{"$f":"IF(OR($B50=\"\",COUNTIF($B$10:$B50,$B50)>1,LEN(TRIM($B50))<>10,ISNUMBER(--MID(TRIM($B50),5,1))),\"-\",MAX(COUNT($A$9:$A49)+1))","v":"-"},null,null,null,""]
[{"$f":"IF(OR($B51=\"\",COUNTIF($B$10:$B51,$B51)>1,LEN(TRIM($B51))<>10,ISNUMBER(--MID(TRIM($B51),5,1))),\"-\",MAX(COUNT($A$9:$A50)+1))","v":"-"},null,null,null,""]
[{"$f":"IF(OR($B52=\"\",COUNTIF($B$10:$B52,$B52)>1,LEN(TRIM($B52))<>10,ISNUMBER(--MID(TRIM($B52),5,1))),\"-\",MAX(COUNT($A$9:$A51)+1))","v":"-"},null,null,null,""]
[{"$f":"IF(OR($B53=\"\",COUNTIF($B$10:$B53,$B53)>1,LEN(TRIM($B53))<>10,ISNUMBER(--MID(TRIM($B53),5,1))),\"-\",MAX(COUNT($A$9:$A52)+1))","v":"-"},null,null,null,""]
[{"$f":"IF(OR($B54=\"\",COUNTIF($B$10:$B54,$B54)>1,LEN(TRIM($B54))<>10,ISNUMBER(--MID(TRIM($B54),5,1))),\"-\",MAX(COUNT($A$9:$A53)+1))","v":"-"},null,null,null,""]
[{"$f":"IF(OR($B55=\"\",COUNTIF($B$10:$B55,$B55)>1,LEN(TRIM($B55))<>10,ISNUMBER(--MID(TRIM($B55),5,1))),\"-\",MAX(COUNT($A$9:$A54)+1))","v":"-"},null,null,null,""]
[{"$f":"IF(OR($B56=\"\",COUNTIF($B$10:$B56,$B56)>1,LEN(TRIM($B56))<>10,ISNUMBER(--MID(TRIM($B56),5,1))),\"-\",MAX(COUNT($A$9:$A55)+1))","v":"-"},null,null,null,""]
[{"$f":"IF(OR($B57=\"\",COUNTIF($B$10:$B57,$B57)>1,LEN(TRIM($B57))<>10,ISNUMBER(--MID(TRIM($B57),5,1))),\"-\",MAX(COUNT($A$9:$A56)+1))","v":"-"},null,null,null,""]
[{"$f":"IF(OR($B58=\"\",COUNTIF($B$10:$B58,$B58)>1,LEN(TRIM($B58))<>10,ISNUMBER(--MID(TRIM($B58),5,1))),\"-\",MAX(COUNT($A$9:$A57)+1))","v":"-"},null,null,null,""]
[{"$f":"IF(OR($B59=\"\",COUNTIF($B$10:$B59,$B59)>1,LEN(TRIM($B59))<>10,ISNUMBER(--MID(TRIM($B59),5,1))),\"-\",MAX(COUNT($A$9:$A58)+1))","v":"-"},null,null,null,""]
[{"$f":"IF(OR($B60=\"\",COUNTIF($B$10:$B60,$B60)>1,LEN(TRIM($B60))<>10,ISNUMBER(--MID(TRIM($B60),5,1))),\"-\",MAX(COUNT($A$9:$A59)+1))","v":"-"},null,null,null,""]
[{"$f":"IF(OR($B61=\"\",COUNTIF($B$10:$B61,$B61)>1,LEN(TRIM($B61))<>10,ISNUMBER(--MID(TRIM($B61),5,1))),\"-\",MAX(COUNT($A$9:$A60)+1))","v":"-"},null,null,null,""]
[{"$f":"IF(OR($B62=\"\",COUNTIF($B$10:$B62,$B62)>1,LEN(TRIM($B62))<>10,ISNUMBER(--MID(TRIM($B62),5,1))),\"-\",MAX(COUNT($A$9:$A61)+1))","v":"-"},null,null,null,""]
[{"$f":"IF(OR($B63=\"\",COUNTIF($B$10:$B63,$B63)>1,LEN(TRIM($B63))<>10,ISNUMBER(--MID(TRIM($B63),5,1))),\"-\",MAX(COUNT($A$9:$A62)+1))","v":"-"},null,null,null,""]
[{"$f":"IF(OR($B64=\"\",COUNTIF($B$10:$B64,$B64)>1,LEN(TRIM($B64))<>10,ISNUMBER(--MID(TRIM($B64),5,1))),\"-\",MAX(COUNT($A$9:$A63)+1))","v":"-"},null,null,null,""]
[{"$f":"IF(OR($B65=\"\",COUNTIF($B$10:$B65,$B65)>1,LEN(TRIM($B65))<>10,ISNUMBER(--MID(TRIM($B65),5,1))),\"-\",MAX(COUNT($A$9:$A64)+1))","v":"-"},null,null,null,""]
[{"$f":"IF(OR($B66=\"\",COUNTIF($B$10:$B66,$B66)>1,LEN(TRIM($B66))<>10,ISNUMBER(--MID(TRIM($B66),5,1))),\"-\",MAX(COUNT($A$9:$A65)+1))","v":"-"},null,null,null,""]
[{"$f":"IF(OR($B67=\"\",COUNTIF($B$10:$B67,$B67)>1,LEN(TRIM($B67))<>10,ISNUMBER(--MID(TRIM($B67),5,1))),\"-\",MAX(COUNT($A$9:$A66)+1))","v":"-"},null,null,null,""]
[{"$f":"IF(OR($B68=\"\",COUNTIF($B$10:$B68,$B68)>1,LEN(TRIM($B68))<>10,ISNUMBER(--MID(TRIM($B68),5,1))),\"-\",MAX(COUNT($A$9:$A67)+1))","v":"-"},null,null,null,""]
[{"$f":"IF(OR($B69=\"\",COUNTIF($B$10:$B69,$B69)>1,LEN(TRIM($B69))<>10,ISNUMBER(--MID(TRIM($B69),5,1))),\"-\",MAX(COUNT($A$9:$A68)+1))","v":"-"},null,null,null,""]
[{"$f":"IF(OR($B70=\"\",COUNTIF($B$10:$B70,$B70)>1,LEN(TRIM($B70))<>10,ISNUMBER(--MID(TRIM($B70),5,1))),\"-\",MAX(COUNT($A$9:$A69)+1))","v":"-"},null,null,null,""]
[{"$f":"IF(OR($B71=\"\",COUNTIF($B$10:$B71,$B71)>1,LEN(TRIM($B71))<>10,ISNUMBER(--MID(TRIM($B71),5,1))),\"-\",MAX(COUNT($A$9:$A70)+1))","v":"-"},null,null,null,""]
[{"$f":"IF(OR($B72=\"\",COUNTIF($B$10:$B72,$B72)>1,LEN(TRIM($B72))<>10,ISNUMBER(--MID(TRIM($B72),5,1))),\"-\",MAX(COUNT($A$9:$A71)+1))","v":"-"},null,null,null,""]
[{"$f":"IF(OR($B73=\"\",COUNTIF($B$10:$B73,$B73)>1,LEN(TRIM($B73))<>10,ISNUMBER(--MID(TRIM($B73),5,1))),\"-\",MAX(COUNT($A$9:$A72)+1))","v":"-"},null,null,null,""]
[{"$f":"IF(OR($B74=\"\",COUNTIF($B$10:$B74,$B74)>1,LEN(TRIM($B74))<>10,ISNUMBER(--MID(TRIM($B74),5,1))),\"-\",MAX(COUNT($A$9:$A73)+1))","v":"-"},null,null,null,""]
[{"$f":"IF(OR($B75=\"\",COUNTIF($B$10:$B75,$B75)>1,LEN(TRIM($B75))<>10,ISNUMBER(--MID(TRIM($B75),5,1))),\"-\",MAX(COUNT($A$9:$A74)+1))","v":"-"},null,null,null,""]
[{"$f":"IF(OR($B76=\"\",COUNTIF($B$10:$B76,$B76)>1,LEN(TRIM($B76))<>10,ISNUMBER(--MID(TRIM($B76),5,1))),\"-\",MAX(COUNT($A$9:$A75)+1))","v":"-"},null,null,null,{"$f":"IF(D76=\"\",\"\",D76-D75)","v":""}]
[{"$f":"IF(OR($B77=\"\",COUNTIF($B$10:$B77,$B77)>1,LEN(TRIM($B77))<>10,ISNUMBER(--MID(TRIM($B77),5,1))),\"-\",MAX(COUNT($A$9:$A76)+1))","v":"-"},null,null,null,""]
[{"$f":"IF(OR($B78=\"\",COUNTIF($B$10:$B78,$B78)>1,LEN(TRIM($B78))<>10,ISNUMBER(--MID(TRIM($B78),5,1))),\"-\",MAX(COUNT($A$9:$A77)+1))","v":"-"},null,null,null,""]
[{"$f":"IF(OR($B79=\"\",COUNTIF($B$10:$B79,$B79)>1,LEN(TRIM($B79))<>10,ISNUMBER(--MID(TRIM($B79),5,1))),\"-\",MAX(COUNT($A$9:$A78)+1))","v":"-"},null,null,null,""]
["รวมของขาย|ของเสีย|เหลือบนเชลฟ์",null,null,null,null,null,{"$f":"SUM(G10:G79)","v":0},0,0,{"$f":"SUM(J10:J79)","v":0},0,0,0,0,0,0,0,0,0,0,0,0,0,0,0,0,0,0,0,0,0,0,0,0,0,0,0,0,0,0,0,0,0,0,0,0,0,0,0,0,0,0,0,0,0,0,0,0,0,0,0,0,0,0,0,0,0,0,0,0,0,0,0,{"$f":"SUM(BV10:BV79)","v":0},0,0,0,0,0,0,0,0,0,0,0,0,0,0,0,0,0,0,0,0,0,0,0,0,0,0,0,0,0,0,0,0,0,0,0,0,0,0,0,0,0,0,0,0,0,0,0,0,0,0,0,0,0,0,0,0,0,0,0,0,0,{"$f":"SUM(EF10:EF79)","v":0},0,0,{"$f":"SUM(EI10:EI79)","v":0},0,0,0,0,0,{"$f":"SUM(EO10:EO79)","v":0},0,0,0,0,0,"รวมเงินเชื่อ","รวมเงินสด","ภาษี","รวมยอดขาย"]
["ของเหลือ",null,null,null,null,null,{"$f":"G80+H80-G9","v":0},null,null,{"$f":"J80+K80-J9","v":0},null,null,{"$f":"M80+N80-M9","v":0},null,null,{"$f":"P80+Q80-P9","v":0},null,null,{"$f":"S80+T80-S9","v":0},null,null,{"$f":"V80+W80-V9","v":0},null,null,{"$f":"Y80+Z80-Y9","v":0},null,null,{"$f":"AB80+AC80-AB9","v":0},null,null,{"$f":"AE80+AF80-AE9","v":0},null,null,{"$f":"AH80+AI80-AH9","v":0},null,null,{"$f":"AK80+AL80-AK9","v":0},null,null,{"$f":"AN80+AO80-AN9","v":0},null,null,{"$f":"AQ80+AR80-AQ9","v":0},null,null,{"$f":"AT80+AU80-AT9","v":0},null,null,{"$f":"AW80+AX80-AW9","v":0},null,null,{"$f":"AZ80+BA80-AZ9","v":0},null,null,{"$f":"BC80+BD80-BC9","v":0},null,null,{"$f":"BF80+BG80-BF9","v":0},null,null,{"$f":"BI80+BJ80-BI9","v":0},null,null,{"$f":"BL80+BM80-BL9","v":0},null,null,{"$f":"BO80+BP80-BO9","v":0},null,null,{"$f":"BR80+BS80-BR9","v":0},null,null,{"$f":"BU80+BV80-BU9","v":0},null,null,{"$f":"BX80+BY80-BX9","v":0},null,null,{"$f":"CA80+CB80-CA9","v":0},null,null,{"$f":"CD80+CE80-CD9","v":0},null,null,{"$f":"CG80+CH80-CG9","v":0},null,null,{"$f":"CJ80+CK80-CJ9","v":0},null,null,{"$f":"CM80+CN80-CM9","v":0},null,null,{"$f":"CP80+CQ80-CP9","v":0},null,null,{"$f":"CS80+CT80-CS9","v":0},null,null,{"$f":"CV80+CW80-CV9","v":0},null,null,{"$f":"CY80+CZ80-CY9","v":0},null,null,{"$f":"DB80+DC80-DB9","v":0},null,null,{"$f":"DE80+DF80-DE9","v":0},null,null,{"$f":"DH80+DI80-DH9","v":0},null,null,{"$f":"DK80+DL80-DK9","v":0},null,null,{"$f":"DN80+DO80-DN9","v":0},null,null,{"$f":"DQ80+DR80-DQ9","v":0},null,null,{"$f":"DT80+DU80-DT9","v":0},null,null,{"$f":"DW80+DX80-DW9","v":0},null,null,{"$f":"DZ80+EA80-DZ9","v":0},null,null,{"$f":"EC80+ED80-EC9","v":0},null,null,{"$f":"EF80+EG80-EF9","v":0},null,null,{"$f":"EI80+EJ80-EI9","v":0},null,null,{"$f":"EL80+EM80-EL9","v":0},null,null,{"$f":"EO80+EP80-EO9","v":0},null,null,{"$f":"ER80+ES80-ER9","v":0},null,null,{"$f":"SUM(EU10:EU79)","v":0},{"$f":"SUM(EV10:EV79)","v":0},{"$f":"SUM(EW10:EW79)","v":0},{"$f":"SUM(EX10:EX79)","v":0}]
["เฉลี่ย",null,null,"เหลือ/เสีย(จริง)",null,null,{"$f":"INDIRECT(\"F\"&ROW($G$87)+ROUNDUP(COLUMNS($G:G)/3,0))","v":0},{"$f":"INDIRECT(\"G\"&ROW($G$87)+ROUNDUP(COLUMNS($G:H)/3,0))","v":0},null,{"$f":"INDIRECT(\"F\"&ROW($G$87)+ROUNDUP(COLUMNS($G:J)/3,0))","v":0},{"$f":"INDIRECT(\"G\"&ROW($G$87)+ROUNDUP(COLUMNS($G:K)/3,0))","v":0},null,{"$f":"INDIRECT(\"F\"&ROW($G$87)+ROUNDUP(COLUMNS($G:M)/3,0))","v":0},{"$f":"INDIRECT(\"G\"&ROW($G$87)+ROUNDUP(COLUMNS($G:N)/3,0))","v":0},null,{"$f":"INDIRECT(\"F\"&ROW($G$87)+ROUNDUP(COLUMNS($G:P)/3,0))","v":0},{"$f":"INDIRECT(\"G\"&ROW($G$87)+ROUNDUP(COLUMNS($G:Q)/3,0))","v":0},null,{"$f":"INDIRECT(\"F\"&ROW($G$87)+ROUNDUP(COLUMNS($G:S)/3,0))","v":0},{"$f":"INDIRECT(\"G\"&ROW($G$87)+ROUNDUP(COLUMNS($G:T)/3,0))","v":0},null,{"$f":"INDIRECT(\"F\"&ROW($G$87)+ROUNDUP(COLUMNS($G:V)/3,0))","v":0},{"$f":"INDIRECT(\"G\"&ROW($G$87)+ROUNDUP(COLUMNS($G:W)/3,0))","v":0},null,{"$f":"INDIRECT(\"F\"&ROW($G$87)+ROUNDUP(COLUMNS($G:Y)/3,0))","v":0},{"$f":"INDIRECT(\"G\"&ROW($G$87)+ROUNDUP(COLUMNS($G:Z)/3,0))","v":0},null,{"$f":"INDIRECT(\"F\"&ROW($G$87)+ROUNDUP(COLUMNS($G:AB)/3,0))","v":0},{"$f":"INDIRECT(\"G\"&ROW($G$87)+ROUNDUP(COLUMNS($G:AC)/3,0))","v":0},null,{"$f":"INDIRECT(\"F\"&ROW($G$87)+ROUNDUP(COLUMNS($G:AE)/3,0))","v":0},{"$f":"INDIRECT(\"G\"&ROW($G$87)+ROUNDUP(COLUMNS($G:AF)/3,0))","v":0},null,{"$f":"INDIRECT(\"F\"&ROW($G$87)+ROUNDUP(COLUMNS($G:AH)/3,0))","v":0},{"$f":"INDIRECT(\"G\"&ROW($G$87)+ROUNDUP(COLUMNS($G:AI)/3,0))","v":0},null,{"$f":"INDIRECT(\"F\"&ROW($G$87)+ROUNDUP(COLUMNS($G:AK)/3,0))","v":0},{"$f":"INDIRECT(\"G\"&ROW($G$87)+ROUNDUP(COLUMNS($G:AL)/3,0))","v":0},null,{"$f":"INDIRECT(\"F\"&ROW($G$87)+ROUNDUP(COLUMNS($G:AN)/3,0))","v":0},{"$f":"INDIRECT(\"G\"&ROW($G$87)+ROUNDUP(COLUMNS($G:AO)/3,0))","v":0},null,{"$f":"INDIRECT(\"F\"&ROW($G$87)+ROUNDUP(COLUMNS($G:AQ)/3,0))","v":0},{"$f":"INDIRECT(\"G\"&ROW($G$87)+ROUNDUP(COLUMNS($G:AR)/3,0))","v":0},null,{"$f":"INDIRECT(\"F\"&ROW($G$87)+ROUNDUP(COLUMNS($G:AT)/3,0))","v":0},{"$f":"INDIRECT(\"G\"&ROW($G$87)+ROUNDUP(COLUMNS($G:AU)/3,0))","v":0},null,{"$f":"INDIRECT(\"F\"&ROW($G$87)+ROUNDUP(COLUMNS($G:AW)/3,0))","v":0},{"$f":"INDIRECT(\"G\"&ROW($G$87)+ROUNDUP(COLUMNS($G:AX)/3,0))","v":0},null,{"$f":"INDIRECT(\"F\"&ROW($G$87)+ROUNDUP(COLUMNS($G:AZ)/3,0))","v":0},{"$f":"INDIRECT(\"G\"&ROW($G$87)+ROUNDUP(COLUMNS($G:BA)/3,0))","v":0},null,{"$f":"INDIRECT(\"F\"&ROW($G$87)+ROUNDUP(COLUMNS($G:BC)/3,0))","v":0},{"$f":"INDIRECT(\"G\"&ROW($G$87)+ROUNDUP(COLUMNS($G:BD)/3,0))","v":0},null,{"$f":"INDIRECT(\"F\"&ROW($G$87)+ROUNDUP(COLUMNS($G:BF)/3,0))","v":0},{"$f":"INDIRECT(\"G\"&ROW($G$87)+ROUNDUP(COLUMNS($G:BG)/3,0))","v":0},null,{"$f":"INDIRECT(\"F\"&ROW($G$87)+ROUNDUP(COLUMNS($G:BI)/3,0))","v":0},{"$f":"INDIRECT(\"G\"&ROW($G$87)+ROUNDUP(COLUMNS($G:BJ)/3,0))","v":0},null,{"$f":"INDIRECT(\"F\"&ROW($G$87)+ROUNDUP(COLUMNS($G:BL)/3,0))","v":0},{"$f":"INDIRECT(\"G\"&ROW($G$87)+ROUNDUP(COLUMNS($G:BM)/3,0))","v":0},null,{"$f":"INDIRECT(\"F\"&ROW($G$87)+ROUNDUP(COLUMNS($G:BO)/3,0))","v":0},{"$f":"INDIRECT(\"G\"&ROW($G$87)+ROUNDUP(COLUMNS($G:BP)/3,0))","v":0},null,{"$f":"INDIRECT(\"F\"&ROW($G$87)+ROUNDUP(COLUMNS($G:BR)/3,0))","v":0},{"$f":"INDIRECT(\"G\"&ROW($G$87)+ROUNDUP(COLUMNS($G:BS)/3,0))","v":0},null,{"$f":"INDIRECT(\"F\"&ROW($G$87)+ROUNDUP(COLUMNS($G:BU)/3,0))","v":0},{"$f":"INDIRECT(\"G\"&ROW($G$87)+ROUNDUP(COLUMNS($G:BV)/3,0))","v":0},null,{"$f":"INDIRECT(\"F\"&ROW($G$87)+ROUNDUP(COLUMNS($G:BX)/3,0))","v":0},{"$f":"INDIRECT(\"G\"&ROW($G$87)+ROUNDUP(COLUMNS($G:BY)/3,0))","v":0},null,{"$f":"INDIRECT(\"F\"&ROW($G$87)+ROUNDUP(COLUMNS($G:CA)/3,0))","v":0},{"$f":"INDIRECT(\"G\"&ROW($G$87)+ROUNDUP(COLUMNS($G:CB)/3,0))","v":0},null,{"$f":"INDIRECT(\"F\"&ROW($G$87)+ROUNDUP(COLUMNS($G:CD)/3,0))","v":0},{"$f":"INDIRECT(\"G\"&ROW($G$87)+ROUNDUP(COLUMNS($G:CE)/3,0))","v":0},null,{"$f":"INDIRECT(\"F\"&ROW($G$87)+ROUNDUP(COLUMNS($G:CG)/3,0))","v":0},{"$f":"INDIRECT(\"G\"&ROW($G$87)+ROUNDUP(COLUMNS($G:CH)/3,0))","v":0},null,{"$f":"INDIRECT(\"F\"&ROW($G$87)+ROUNDUP(COLUMNS($G:CJ)/3,0))","v":0},{"$f":"INDIRECT(\"G\"&ROW($G$87)+ROUNDUP(COLUMNS($G:CK)/3,0))","v":0},null,{"$f":"INDIRECT(\"F\"&ROW($G$87)+ROUNDUP(COLUMNS($G:CM)/3,0))","v":0},{"$f":"INDIRECT(\"G\"&ROW($G$87)+ROUNDUP(COLUMNS($G:CN)/3,0))","v":0},null,{"$f":"INDIRECT(\"F\"&ROW($G$87)+ROUNDUP(COLUMNS($G:CP)/3,0))","v":0},{"$f":"INDIRECT(\"G\"&ROW($G$87)+ROUNDUP(COLUMNS($G:CQ)/3,0))","v":0},null,{"$f":"INDIRECT(\"F\"&ROW($G$87)+ROUNDUP(COLUMNS($G:CS)/3,0))","v":0},{"$f":"INDIRECT(\"G\"&ROW($G$87)+ROUNDUP(COLUMNS($G:CT)/3,0))","v":0},null,{"$f":"INDIRECT(\"F\"&ROW($G$87)+ROUNDUP(COLUMNS($G:CV)/3,0))","v":0},{"$f":"INDIRECT(\"G\"&ROW($G$87)+ROUNDUP(COLUMNS($G:CW)/3,0))","v":0},null,{"$f":"INDIRECT(\"F\"&ROW($G$87)+ROUNDUP(COLUMNS($G:CY)/3,0))","v":0},{"$f":"INDIRECT(\"G\"&ROW($G$87)+ROUNDUP(COLUMNS($G:CZ)/3,0))","v":0},null,{"$f":"INDIRECT(\"F\"&ROW($G$87)+ROUNDUP(COLUMNS($G:DB)/3,0))","v":0},{"$f":"INDIRECT(\"G\"&ROW($G$87)+ROUNDUP(COLUMNS($G:DC)/3,0))","v":0},null,{"$f":"INDIRECT(\"F\"&ROW($G$87)+ROUNDUP(COLUMNS($G:DE)/3,0))","v":0},{"$f":"INDIRECT(\"G\"&ROW($G$87)+ROUNDUP(COLUMNS($G:DF)/3,0))","v":0},null,{"$f":"INDIRECT(\"F\"&ROW($G$87)+ROUNDUP(COLUMNS($G:DH)/3,0))","v":0},{"$f":"INDIRECT(\"G\"&ROW($G$87)+ROUNDUP(COLUMNS($G:DI)/3,0))","v":0},null,{"$f":"INDIRECT(\"F\"&ROW($G$87)+ROUNDUP(COLUMNS($G:DK)/3,0))","v":0},{"$f":"INDIRECT(\"G\"&ROW($G$87)+ROUNDUP(COLUMNS($G:DL)/3,0))","v":0},null,{"$f":"INDIRECT(\"F\"&ROW($G$87)+ROUNDUP(COLUMNS($G:DN)/3,0))","v":0},{"$f":"INDIRECT(\"G\"&ROW($G$87)+ROUNDUP(COLUMNS($G:DO)/3,0))","v":0},null,{"$f":"INDIRECT(\"F\"&ROW($G$87)+ROUNDUP(COLUMNS($G:DQ)/3,0))","v":0},{"$f":"INDIRECT(\"G\"&ROW($G$87)+ROUNDUP(COLUMNS($G:DR)/3,0))","v":0},null,{"$f":"INDIRECT(\"F\"&ROW($G$87)+ROUNDUP(COLUMNS($G:DT)/3,0))","v":0},{"$f":"INDIRECT(\"G\"&ROW($G$87)+ROUNDUP(COLUMNS($G:DU)/3,0))","v":0},null,{"$f":"INDIRECT(\"F\"&ROW($G$87)+ROUNDUP(COLUMNS($G:DW)/3,0))","v":0},{"$f":"INDIRECT(\"G\"&ROW($G$87)+ROUNDUP(COLUMNS($G:DX)/3,0))","v":0},null,{"$f":"INDIRECT(\"F\"&ROW($G$87)+ROUNDUP(COLUMNS($G:DZ)/3,0))","v":0},{"$f":"INDIRECT(\"G\"&ROW($G$87)+ROUNDUP(COLUMNS($G:EA)/3,0))","v":0},null,{"$f":"INDIRECT(\"F\"&ROW($G$87)+ROUNDUP(COLUMNS($G:EC)/3,0))","v":0},{"$f":"INDIRECT(\"G\"&ROW($G$87)+ROUNDUP(COLUMNS($G:ED)/3,0))","v":0},null,{"$f":"INDIRECT(\"F\"&ROW($G$87)+ROUNDUP(COLUMNS($G:EF)/3,0))","v":0},{"$f":"INDIRECT(\"G\"&ROW($G$87)+ROUNDUP(COLUMNS($G:EG)/3,0))","v":0},null,{"$f":"INDIRECT(\"F\"&ROW($G$87)+ROUNDUP(COLUMNS($G:EI)/3,0))","v":0},{"$f":"INDIRECT(\"G\"&ROW($G$87)+ROUNDUP(COLUMNS($G:EJ)/3,0))","v":0},null,{"$f":"INDIRECT(\"F\"&ROW($G$87)+ROUNDUP(COLUMNS($G:EL)/3,0))","v":0},{"$f":"INDIRECT(\"G\"&ROW($G$87)+ROUNDUP(COLUMNS($G:EM)/3,0))","v":0},null,{"$f":"INDIRECT(\"F\"&ROW($G$87)+ROUNDUP(COLUMNS($G:EO)/3,0))","v":0},{"$f":"INDIRECT(\"G\"&ROW($G$87)+ROUNDUP(COLUMNS($G:EP)/3,0))","v":0},null,{"$f":"INDIRECT(\"F\"&ROW($G$87)+ROUNDUP(COLUMNS($G:ER)/3,0))","v":0},{"$f":"INDIRECT(\"G\"&ROW($G$87)+ROUNDUP(COLUMNS($G:ES)/3,0))","v":0},null,{"$f":"EU81+EV81","v":0}]
["เวลากลับถึงสำนักงานเช็คของเสีย",null,null,{"$f":"D139","v":"00:00:00"},null,"ผลต่าง",{"$f":"G82+H82+G80-G9","v":0},null,null,{"$f":"J82+K82+J80-J9","v":0},null,null,{"$f":"M82+N82+M80-M9","v":0},null,null,{"$f":"P82+Q82+P80-P9","v":0},null,null,{"$f":"S82+T82+S80-S9","v":0},null,null,{"$f":"V82+W82+V80-V9","v":0},null,null,{"$f":"Y82+Z82+Y80-Y9","v":0},null,null,{"$f":"AB82+AC82+AB80-AB9","v":0},null,null,{"$f":"AE82+AF82+AE80-AE9","v":0},null,null,{"$f":"AH82+AI82+AH80-AH9","v":0},null,null,{"$f":"AK82+AL82+AK80-AK9","v":0},null,null,{"$f":"AN82+AO82+AN80-AN9","v":0},null,null,{"$f":"AQ82+AR82+AQ80-AQ9","v":0},null,null,{"$f":"AT82+AU82+AT80-AT9","v":0},null,null,{"$f":"AW82+AX82+AW80-AW9","v":0},null,null,{"$f":"AZ82+BA82+AZ80-AZ9","v":0},null,null,{"$f":"BC82+BD82+BC80-BC9","v":0},null,null,{"$f":"BF82+BG82+BF80-BF9","v":0},null,null,{"$f":"BI82+BJ82+BI80-BI9","v":0},null,null,{"$f":"BL82+BM82+BL80-BL9","v":0},null,null,{"$f":"BO82+BP82+BO80-BO9","v":0},null,null,{"$f":"BR82+BS82+BR80-BR9","v":0},null,null,{"$f":"BU82+BV82+BU80-BU9","v":0},null,null,{"$f":"BX82+BY82+BX80-BX9","v":0},null,null,{"$f":"CA82+CB82+CA80-CA9","v":0},null,null,{"$f":"CD82+CE82+CD80-CD9","v":0},null,null,{"$f":"CG82+CH82+CG80-CG9","v":0},null,null,{"$f":"CJ82+CK82+CJ80-CJ9","v":0},null,null,{"$f":"CM82+CN82+CM80-CM9","v":0},null,null,{"$f":"CP82+CQ82+CP80-CP9","v":0},null,null,{"$f":"CS82+CT82+CS80-CS9","v":0},null,null,{"$f":"CV82+CW82+CV80-CV9","v":0},null,null,{"$f":"CY82+CZ82+CY80-CY9","v":0},null,null,{"$f":"DB82+DC82+DB80-DB9","v":0},null,null,{"$f":"DE82+DF82+DE80-DE9","v":0},null,null,{"$f":"DH82+DI82+DH80-DH9","v":0},null,null,{"$f":"DK82+DL82+DK80-DK9","v":0},null,null,{"$f":"DN82+DO82+DN80-DN9","v":0},null,null,{"$f":"DQ82+DR82+DQ80-DQ9","v":0},null,null,{"$f":"DT82+DU82+DT80-DT9","v":0},null,null,{"$f":"DW82+DX82+DW80-DW9","v":0},null,null,{"$f":"DZ82+EA82+DZ80-DZ9","v":0},null,null,{"$f":"EC82+ED82+EC80-EC9","v":0},null,null,{"$f":"EF82+EG82+EF80-EF9","v":0},null,null,{"$f":"EI82+EJ82+EI80-EI9","v":0},null,null,{"$f":"EL82+EM82+EL80-EL9","v":0},null,null,{"$f":"EO82+EP82+EO80-EO9","v":0},null,null,{"$f":"ER82+ES82+ER80-ER9","v":0}]
["เป็นเงิน",null,null,null,null,null,{"$f":"G8*G83","v":0},null,null,{"$f":"J8*J83","v":0},null,null,{"$f":"M8*M83","v":0},null,null,{"$f":"P8*P83","v":0},null,null,{"$f":"S8*S83","v":0},null,null,{"$f":"V8*V83","v":0},null,null,{"$f":"Y8*Y83","v":0},null,null,{"$f":"AB8*AB83","v":0},null,null,{"$f":"AE8*AE83","v":0},null,null,{"$f":"AH8*AH83","v":0},null,null,{"$f":"AK8*AK83","v":0},null,null,{"$f":"AN8*AN83","v":0},null,null,{"$f":"AQ8*AQ83","v":0},null,null,{"$f":"AT8*AT83","v":0},null,null,{"$f":"AW8*AW83","v":0},null,null,{"$f":"AZ8*AZ83","v":0},null,null,{"$f":"BC8*BC83","v":0},null,null,{"$f":"BF8*BF83","v":0},null,null,{"$f":"BI8*BI83","v":0},null,null,{"$f":"BL8*BL83","v":0},null,null,{"$f":"BO8*BO83","v":0},null,null,{"$f":"BR8*BR83","v":0},null,null,{"$f":"BU8*BU83","v":0},null,null,{"$f":"BX8*BX83","v":0},null,null,{"$f":"CA8*CA83","v":0},null,null,{"$f":"CD8*CD83","v":0},null,null,{"$f":"CG8*CG83","v":0},null,null,{"$f":"CJ8*CJ83","v":0},null,null,{"$f":"CM8*CM83","v":0},null,null,{"$f":"CP8*CP83","v":0},null,null,{"$f":"CS8*CS83","v":0},null,null,{"$f":"CV8*CV83","v":0},null,null,{"$f":"CY8*CY83","v":0},null,null,{"$f":"DB8*DB83","v":0},null,null,{"$f":"DE8*DE83","v":0},null,null,{"$f":"DH8*DH83","v":0},null,null,{"$f":"DK8*DK83","v":0},null,null,{"$f":"DN8*DN83","v":0},null,null,{"$f":"DQ8*DQ83","v":0},null,null,{"$f":"DT8*DT83","v":0},null,null,{"$f":"DW8*DW83","v":0},null,null,0,null,null,{"$f":"EC8*EC83","v":0},null,null,{"$f":"EF8*EF83","v":0},null,null,{"$f":"EI8*EI83","v":0},null,null,{"$f":"EL8*EL83","v":0},null,null,{"$f":"EO8*EO83","v":0},null,null,{"$f":"ER8*ER83","v":0},null,null,{"$f":"$AP$98","v":0}]
[null,null,null,"ผู้จัดทำ……………………………………………………………………",null,null,null,null,null,null,null,null,null,null,null,null,null,null,null,null,null,null,null,"ผู้ตรวจ(ผจก.)………………………………………………………………………………."]
[null,null,"ใบจ่ายสินค้า",null,null,null,null,null,null,null,null,null,null,null,null,null,null,{"$f":"IF(ISODD(COLUMN()),MAX($F$86:Q$86)+1,\"\")","v":""}]
["ราคา","ลำดับ","รายการ","ยกมา","เบิก","เหลือ","เสีย","โอนเข้า","โอนออก","ชำรุด","รวม",null,"ขาย",null,"ขาด/เกิน",null,"บาท",null,null,null,"ขายได้",null,"ควรเบิก",null,"หมายเหตุ",null,null,null,"เสีย PDA","เสียจริง","เหลือ PDA","ผลต่าง","เหลือลูกค้า","หมายเหตุ",null,null,null,null,"Price","Quantity","Baht","Deduct"]
[{"$f":"IF(B88=\"\",0,INDEX(Price_List,ROWS($88:88)))","v":20},{"$f":"IF($C88=\"\",\"\",COUNTA($C$88:$C88))","v":1},{"$f":"IF(INDEX(INDIRECT(\"Product_List\"),ROWS($88:88))=\"\",\"\",INDEX(INDIRECT(\"Product_List\"),ROWS($88:88)))","v":"01-ขนมปังหมูหยองน้ำสลัด"},{"$f":"ยอดยกมา","v":0},null,null,null,null,null,null,{"$f":"D88+E88+J88-I88+H88","v":0},null,{"$f":"INDIRECT(ADDRESS(ROW(A$80),ROW()-ROW(A$80)+(ROWS($88:88)-1)*2-1,4))","v":0},null,{"$f":"F88+G88+M88+J88-K88","v":0},null,{"$f":"O88*A88","v":0},null,null,null,{"$f":"D88+E88-F88-G88","v":0},null,{"$f":"U88*6%+U88","v":0},null,null,null,null,null,{"$f":"INDIRECT(ADDRESS(ROW(A$80),ROW()-ROW(A$80)+(ROWS($88:88)-1)*2,4))","v":0},{"$f":"$G88","v":0},null,{"$f":"$F88-$AE88","v":0},{"$f":"INDIRECT(ADDRESS(ROW(A$80),ROW()-ROW(A$80)+(ROWS($88:88)-1)*2+1,4))","v":0},null,null,null,null,null,10,{"$f":"SUMPRODUCT(($A$88:$A$135=$AM88)*(($F$88:$F$135)+($G$88:$G$135)+($M$88:$M$135)+($J$88:$J$135)-($K$88:$K$135)))","v":0},{"$f":"AM88*AN88","v":0},{"$f":"IF(AO88<0,AO88,0)","v":0}]
[{"$f":"IF(B89=\"\",0,INDEX(Price_List,ROWS($88:89)))","v":20},{"$f":"IF($C89=\"\",\"\",COUNTA($C$88:$C89))","v":2},{"$f":"IF(INDEX(INDIRECT(\"Product_List\"),ROWS($88:89))=\"\",\"\",INDEX(INDIRECT(\"Product_List\"),ROWS($88:89)))","v":"02-ขนมปังหมูหยองน้ำพริกเผา"},{"$f":"ยอดยกมา","v":0},null,null,null,null,null,null,{"$f":"D89+E89+J89-I89+H89","v":0},null,{"$f":"INDIRECT(ADDRESS(ROW(A$80),ROW()-ROW(A$80)+(ROWS($88:89)-1)*2-1,4))","v":0},null,{"$f":"F89+G89+M89+J89-K89","v":0},null,{"$f":"O89*A89","v":0},null,null,null,{"$f":"D89+E89-F89-G89","v":0},null,{"$f":"U89*6%+U89","v":0},null,null,null,null,null,{"$f":"INDIRECT(ADDRESS(ROW(A$80),ROW()-ROW(A$80)+(ROWS($88:89)-1)*2,4))","v":0},{"$f":"$G89","v":0},null,{"$f":"$F89-$AE89","v":0},{"$f":"INDIRECT(ADDRESS(ROW(A$80),ROW()-ROW(A$80)+(ROWS($88:89)-1)*2+1,4))","v":0},null,null,null,null,null,12,0,{"$f":"AM89*AN89","v":0},{"$f":"IF(AO89<0,AO89,0)","v":0}]
[{"$f":"IF(B90=\"\",0,INDEX(Price_List,ROWS($88:90)))","v":20},{"$f":"IF($C90=\"\",\"\",COUNTA($C$88:$C90))","v":3},{"$f":"IF(INDEX(INDIRECT(\"Product_List\"),ROWS($88:90))=\"\",\"\",INDEX(INDIRECT(\"Product_List\"),ROWS($88:90)))","v":"03-ขนมปังไก่หยองน้ำสลัด"},{"$f":"ยอดยกมา","v":0},null,null,null,null,null,null,0,null,{"$f":"INDIRECT(ADDRESS(ROW(A$80),ROW()-ROW(A$80)+(ROWS($88:90)-1)*2-1,4))","v":0},null,0,null,0,null,null,null,0,null,0,null,null,null,null,null,{"$f":"INDIRECT(ADDRESS(ROW(A$80),ROW()-ROW(A$80)+(ROWS($88:90)-1)*2,4))","v":0},0,null,0,{"$f":"INDIRECT(ADDRESS(ROW(A$80),ROW()-ROW(A$80)+(ROWS($88:90)-1)*2+1,4))","v":0},null,null,null,null,null,13,0,{"$f":"AM90*AN90","v":0},{"$f":"IF(AO90<0,AO90,0)","v":0}]
[{"$f":"IF(B91=\"\",0,INDEX(Price_List,ROWS($88:91)))","v":15},{"$f":"IF($C91=\"\",\"\",COUNTA($C$88:$C91))","v":4},{"$f":"IF(INDEX(INDIRECT(\"Product_List\"),ROWS($88:91))=\"\",\"\",INDEX(INDIRECT(\"Product_List\"),ROWS($88:91)))","v":"04-ขนมปังไส้ครีมสลัด"},{"$f":"ยอดยกมา","v":0},null,null,null,null,null,null,0,null,{"$f":"INDIRECT(ADDRESS(ROW(A$80),ROW()-ROW(A$80)+(ROWS($88:91)-1)*2-1,4))","v":0},null,{"$f":"F91+G91+M91+J91-K91","v":0},null,0,null,null,null,0,null,0,null,null,null,null,null,{"$f":"INDIRECT(ADDRESS(ROW(A$80),ROW()-ROW(A$80)+(ROWS($88:91)-1)*2,4))","v":0},0,null,0,{"$f":"INDIRECT(ADDRESS(ROW(A$80),ROW()-ROW(A$80)+(ROWS($88:91)-1)*2+1,4))","v":0},null,null,null,null,null,15,0,0,0]
[{"$f":"IF(B92=\"\",0,INDEX(Price_List,ROWS($88:92)))","v":15},{"$f":"IF($C92=\"\",\"\",COUNTA($C$88:$C92))","v":5},{"$f":"IF(INDEX(INDIRECT(\"Product_List\"),ROWS($88:92))=\"\",\"\",INDEX(INDIRECT(\"Product_List\"),ROWS($88:92)))","v":"05-ขนมปังเนยสด"},{"$f":"ยอดยกมา","v":0},null,null,null,null,null,null,0,null,{"$f":"INDIRECT(ADDRESS(ROW(A$80),ROW()-ROW(A$80)+(ROWS($88:92)-1)*2-1,4))","v":0},null,0,null,0,null,null,null,0,null,0,null,null,null,null,null,{"$f":"INDIRECT(ADDRESS(ROW(A$80),ROW()-ROW(A$80)+(ROWS($88:92)-1)*2,4))","v":0},0,null,0,{"$f":"INDIRECT(ADDRESS(ROW(A$80),ROW()-ROW(A$80)+(ROWS($88:92)-1)*2+1,4))","v":0},null,null,null,null,null,16,0,0,0]
[{"$f":"IF(B93=\"\",0,INDEX(Price_List,ROWS($88:93)))","v":10},{"$f":"IF($C93=\"\",\"\",COUNTA($C$88:$C93))","v":6},{"$f":"IF(INDEX(INDIRECT(\"Product_List\"),ROWS($88:93))=\"\",\"\",INDEX(INDIRECT(\"Product_List\"),ROWS($88:93)))","v":"06-ขนมปังไส้สังขยาเล็ก"},{"$f":"ยอดยกมา","v":0},null,null,null,null,null,null,0,null,{"$f":"INDIRECT(ADDRESS(ROW(A$80),ROW()-ROW(A$80)+(ROWS($88:93)-1)*2-1,4))","v":0},null,0,null,0,null,null,null,0,null,0,null,null,null,null,null,{"$f":"INDIRECT(ADDRESS(ROW(A$80),ROW()-ROW(A$80)+(ROWS($88:93)-1)*2,4))","v":0},0,null,0,{"$f":"INDIRECT(ADDRESS(ROW(A$80),ROW()-ROW(A$80)+(ROWS($88:93)-1)*2+1,4))","v":0},null,null,null,null,null,18,0,0,0]
[{"$f":"IF(B94=\"\",0,INDEX(Price_List,ROWS($88:94)))","v":10},{"$f":"IF($C94=\"\",\"\",COUNTA($C$88:$C94))","v":7},{"$f":"IF(INDEX(INDIRECT(\"Product_List\"),ROWS($88:94))=\"\",\"\",INDEX(INDIRECT(\"Product_List\"),ROWS($88:94)))","v":"07-ขนมปังไส้เผือก"},{"$f":"ยอดยกมา","v":0},null,null,null,null,null,null,0,null,{"$f":"INDIRECT(ADDRESS(ROW(A$80),ROW()-ROW(A$80)+(ROWS($88:94)-1)*2-1,4))","v":0},null,0,null,0,null,null,null,0,null,0,null,null,null,null,null,{"$f":"INDIRECT(ADDRESS(ROW(A$80),ROW()-ROW(A$80)+(ROWS($88:94)-1)*2,4))","v":0},0,null,0,{"$f":"INDIRECT(ADDRESS(ROW(A$80),ROW()-ROW(A$80)+(ROWS($88:94)-1)*2+1,4))","v":0},null,null,null,null,null,20,0,0,0]
[{"$f":"IF(B95=\"\",0,INDEX(Price_List,ROWS($88:95)))","v":10},{"$f":"IF($C95=\"\",\"\",COUNTA($C$88:$C95))","v":8},{"$f":"IF(INDEX(INDIRECT(\"Product_List\"),ROWS($88:95))=\"\",\"\",INDEX(INDIRECT(\"Product_List\"),ROWS($88:95)))","v":"08-ขนมปังไส้ถั่วแดง"},{"$f":"ยอดยกมา","v":0},null,null,null,null,null,null,0,null,{"$f":"INDIRECT(ADDRESS(ROW(A$80),ROW()-ROW(A$80)+(ROWS($88:95)-1)*2-1,4))","v":0},null,0,null,0,null,null,null,0,null,0,null,null,null,null,null,{"$f":"INDIRECT(ADDRESS(ROW(A$80),ROW()-ROW(A$80)+(ROWS($88:95)-1)*2,4))","v":0},0,null,0,{"$f":"INDIRECT(ADDRESS(ROW(A$80),ROW()-ROW(A$80)+(ROWS($88:95)-1)*2+1,4))","v":0},null,null,null,null,null,22,0,0,0]
[{"$f":"IF(B96=\"\",0,INDEX(Price_List,ROWS($88:96)))","v":10},{"$f":"IF($C96=\"\",\"\",COUNTA($C$88:$C96))","v":9},{"$f":"IF(INDEX(INDIRECT(\"Product_List\"),ROWS($88:96))=\"\",\"\",INDEX(INDIRECT(\"Product_List\"),ROWS($88:96)))","v":"09-ขนมปังไส้ถั่วดำ"},{"$f":"ยอดยกมา","v":0},null,null,null,null,null,null,0,null,{"$f":"INDIRECT(ADDRESS(ROW(A$80),ROW()-ROW(A$80)+(ROWS($88:96)-1)*2-1,4))","v":0},null,0,null,0,null,null,null,0,null,0,null,null,null,null,null,{"$f":"INDIRECT(ADDRESS(ROW(A$80),ROW()-ROW(A$80)+(ROWS($88:96)-1)*2,4))","v":0},0,null,0,{"$f":"INDIRECT(ADDRESS(ROW(A$80),ROW()-ROW(A$80)+(ROWS($88:96)-1)*2+1,4))","v":0},null,null,null,null,null,25,0,0,0]
[{"$f":"IF(B97=\"\",0,INDEX(Price_List,ROWS($88:97)))","v":10},{"$f":"IF($C97=\"\",\"\",COUNTA($C$88:$C97))","v":10},{"$f":"IF(INDEX(INDIRECT(\"Product_List\"),ROWS($88:97))=\"\",\"\",INDEX(INDIRECT(\"Product_List\"),ROWS($88:97)))","v":"10-ขนมปังไส้มันม่วง"},{"$f":"ยอดยกมา","v":0},null,null,null,null,null,null,0,null,{"$f":"INDIRECT(ADDRESS(ROW(A$80),ROW()-ROW(A$80)+(ROWS($88:97)-1)*2-1,4))","v":0},null,0,null,0,null,null,null,0,null,0,null,null,null,null,null,{"$f":"INDIRECT(ADDRESS(ROW(A$80),ROW()-ROW(A$80)+(ROWS($88:97)-1)*2,4))","v":0},0,null,0,{"$f":"INDIRECT(ADDRESS(ROW(A$80),ROW()-ROW(A$80)+(ROWS($88:97)-1)*2+1,4))","v":0},null,null,null,null,null,42,0,0,0]
[{"$f":"IF(B98=\"\",0,INDEX(Price_List,ROWS($88:98)))","v":15},{"$f":"IF($C98=\"\",\"\",COUNTA($C$88:$C98))","v":11},{"$f":"IF(INDEX(INDIRECT(\"Product_List\"),ROWS($88:98))=\"\",\"\",INDEX(INDIRECT(\"Product_List\"),ROWS($88:98)))","v":"11-เค้กกล้วยหอม"},{"$f":"ยอดยกมา","v":0},null,null,null,null,null,null,0,null,{"$f":"INDIRECT(ADDRESS(ROW(A$80),ROW()-ROW(A$80)+(ROWS($88:98)-1)*2-1,4))","v":0},null,0,null,0,null,null,null,0,null,0,null,null,null,null,null,{"$f":"INDIRECT(ADDRESS(ROW(A$80),ROW()-ROW(A$80)+(ROWS($88:98)-1)*2,4))","v":0},0,null,0,{"$f":"INDIRECT(ADDRESS(ROW(A$80),ROW()-ROW(A$80)+(ROWS($88:98)-1)*2+1,4))","v":0},null,null,null,null,null,"Total Deduct",null,null,{"$f":"SUM($AP$88:$AP$97)","v":0}]
[{"$f":"IF(B99=\"\",0,INDEX(Price_List,ROWS($88:99)))","v":15},{"$f":"IF($C99=\"\",\"\",COUNTA($C$88:$C99))","v":12},{"$f":"IF(INDEX(INDIRECT(\"Product_List\"),ROWS($88:99))=\"\",\"\",INDEX(INDIRECT(\"Product_List\"),ROWS($88:99)))","v":"12-เค้กบัตเตอร์"},{"$f":"ยอดยกมา","v":0},null,null,null,null,null,null,0,null,{"$f":"INDIRECT(ADDRESS(ROW(A$80),ROW()-ROW(A$80)+(ROWS($88:99)-1)*2-1,4))","v":0},null,0,null,0,null,null,null,0,null,0,null,null,null,null,null,{"$f":"INDIRECT(ADDRESS(ROW(A$80),ROW()-ROW(A$80)+(ROWS($88:99)-1)*2,4))","v":0},0,null,0,{"$f":"INDIRECT(ADDRESS(ROW(A$80),ROW()-ROW(A$80)+(ROWS($88:99)-1)*2+1,4))","v":0}]
[{"$f":"IF(B100=\"\",0,INDEX(Price_List,ROWS($88:100)))","v":15},{"$f":"IF($C100=\"\",\"\",COUNTA($C$88:$C100))","v":13},{"$f":"IF(INDEX(INDIRECT(\"Product_List\"),ROWS($88:100))=\"\",\"\",INDEX(INDIRECT(\"Product_List\"),ROWS($88:100)))","v":"13-ขนมปังโรลถั่วแดง"},{"$f":"ยอดยกมา","v":0},null,null,null,null,null,null,0,null,{"$f":"INDIRECT(ADDRESS(ROW(A$80),ROW()-ROW(A$80)+(ROWS($88:100)-1)*2-1,4))","v":0},null,0,null,0,null,null,null,0,null,0,null,null,null,null,null,{"$f":"INDIRECT(ADDRESS(ROW(A$80),ROW()-ROW(A$80)+(ROWS($88:100)-1)*2,4))","v":0},0,null,0,{"$f":"INDIRECT(ADDRESS(ROW(A$80),ROW()-ROW(A$80)+(ROWS($88:100)-1)*2+1,4))","v":0}]
[{"$f":"IF(B101=\"\",0,INDEX(Price_List,ROWS($88:101)))","v":15},{"$f":"IF($C101=\"\",\"\",COUNTA($C$88:$C101))","v":14},{"$f":"IF(INDEX(INDIRECT(\"Product_List\"),ROWS($88:101))=\"\",\"\",INDEX(INDIRECT(\"Product_List\"),ROWS($88:101)))","v":"14-ขนมปังไส้สังขยาใหญ่"},{"$f":"ยอดยกมา","v":0},null,null,null,null,null,null,0,null,{"$f":"INDIRECT(ADDRESS(ROW(A$80),ROW()-ROW(A$80)+(ROWS($88:101)-1)*2-1,4))","v":0},null,0,null,0,null,null,null,0,null,0,null,null,null,null,null,{"$f":"INDIRECT(ADDRESS(ROW(A$80),ROW()-ROW(A$80)+(ROWS($88:101)-1)*2,4))","v":0},0,null,0,{"$f":"INDIRECT(ADDRESS(ROW(A$80),ROW()-ROW(A$80)+(ROWS($88:101)-1)*2+1,4))","v":0}]
[{"$f":"IF(B102=\"\",0,INDEX(Price_List,ROWS($88:102)))","v":42},{"$f":"IF($C102=\"\",\"\",COUNTA($C$88:$C102))","v":15},{"$f":"IF(INDEX(INDIRECT(\"Product_List\"),ROWS($88:102))=\"\",\"\",INDEX(INDIRECT(\"Product_List\"),ROWS($88:102)))","v":"15-ขนมปังชนิดแผ่น(480กรัม)"},{"$f":"ยอดยกมา","v":0},null,null,null,null,null,null,0,null,{"$f":"INDIRECT(ADDRESS(ROW(A$80),ROW()-ROW(A$80)+(ROWS($88:102)-1)*2-1,4))","v":0},null,0,null,0,null,null,null,0,null,0,null,null,null,null,null,{"$f":"INDIRECT(ADDRESS(ROW(A$80),ROW()-ROW(A$80)+(ROWS($88:102)-1)*2,4))","v":0},0,null,0,{"$f":"INDIRECT(ADDRESS(ROW(A$80),ROW()-ROW(A$80)+(ROWS($88:102)-1)*2+1,4))","v":0}]
[{"$f":"IF(B103=\"\",0,INDEX(Price_List,ROWS($88:103)))","v":12},{"$f":"IF($C103=\"\",\"\",COUNTA($C$88:$C103))","v":16},{"$f":"IF(INDEX(INDIRECT(\"Product_List\"),ROWS($88:103))=\"\",\"\",INDEX(INDIRECT(\"Product_List\"),ROWS($88:103)))","v":"16-โมจิไส้ถั่ว"},{"$f":"ยอดยกมา","v":0},null,null,null,null,null,null,0,null,{"$f":"INDIRECT(ADDRESS(ROW(A$80),ROW()-ROW(A$80)+(ROWS($88:103)-1)*2-1,4))","v":0},null,0,null,0,null,null,null,0,null,0,null,null,null,null,null,{"$f":"INDIRECT(ADDRESS(ROW(A$80),ROW()-ROW(A$80)+(ROWS($88:103)-1)*2,4))","v":0},0,null,0,{"$f":"INDIRECT(ADDRESS(ROW(A$80),ROW()-ROW(A$80)+(ROWS($88:103)-1)*2+1,4))","v":0}]
[{"$f":"IF(B104=\"\",0,INDEX(Price_List,ROWS($88:104)))","v":12},{"$f":"IF($C104=\"\",\"\",COUNTA($C$88:$C104))","v":17},{"$f":"IF(INDEX(INDIRECT(\"Product_List\"),ROWS($88:104))=\"\",\"\",INDEX(INDIRECT(\"Product_List\"),ROWS($88:104)))","v":"17-โมจิไส้เผือก"},{"$f":"ยอดยกมา","v":0},null,null,null,null,null,null,0,null,{"$f":"INDIRECT(ADDRESS(ROW(A$80),ROW()-ROW(A$80)+(ROWS($88:104)-1)*2-1,4))","v":0},null,0,null,0,null,null,null,0,null,0,null,null,null,null,null,{"$f":"INDIRECT(ADDRESS(ROW(A$80),ROW()-ROW(A$80)+(ROWS($88:104)-1)*2,4))","v":0},0,null,0,{"$f":"INDIRECT(ADDRESS(ROW(A$80),ROW()-ROW(A$80)+(ROWS($88:104)-1)*2+1,4))","v":0}]
[{"$f":"IF(B105=\"\",0,INDEX(Price_List,ROWS($88:105)))","v":15},{"$f":"IF($C105=\"\",\"\",COUNTA($C$88:$C105))","v":18},{"$f":"IF(INDEX(INDIRECT(\"Product_List\"),ROWS($88:105))=\"\",\"\",INDEX(INDIRECT(\"Product_List\"),ROWS($88:105)))","v":"18-โมจิไส้ถั่วไข่เค็ม"},{"$f":"ยอดยกมา","v":0},null,null,null,null,null,null,0,null,{"$f":"INDIRECT(ADDRESS(ROW(A$80),ROW()-ROW(A$80)+(ROWS($88:105)-1)*2-1,4))","v":0},null,0,null,0,null,null,null,0,null,0,null,null,null,null,null,{"$f":"INDIRECT(ADDRESS(ROW(A$80),ROW()-ROW(A$80)+(ROWS($88:105)-1)*2,4))","v":0},0,null,0,{"$f":"INDIRECT(ADDRESS(ROW(A$80),ROW()-ROW(A$80)+(ROWS($88:105)-1)*2+1,4))","v":0}]
[{"$f":"IF(B106=\"\",0,INDEX(Price_List,ROWS($88:106)))","v":20},{"$f":"IF($C106=\"\",\"\",COUNTA($C$88:$C106))","v":19},{"$f":"IF(INDEX(INDIRECT(\"Product_List\"),ROWS($88:106))=\"\",\"\",INDEX(INDIRECT(\"Product_List\"),ROWS($88:106)))","v":"19-ขนมปังพิซซ่า"},{"$f":"ยอดยกมา","v":0},null,null,null,null,null,null,0,null,{"$f":"INDIRECT(ADDRESS(ROW(A$80),ROW()-ROW(A$80)+(ROWS($88:106)-1)*2-1,4))","v":0},null,0,null,0,null,null,null,0,null,0,null,null,null,null,null,{"$f":"INDIRECT(ADDRESS(ROW(A$80),ROW()-ROW(A$80)+(ROWS($88:106)-1)*2,4))","v":0},0,null,0,{"$f":"INDIRECT(ADDRESS(ROW(A$80),ROW()-ROW(A$80)+(ROWS($88:106)-1)*2+1,4))","v":0}]
[{"$f":"IF(B107=\"\",0,INDEX(Price_List,ROWS($88:107)))","v":20},{"$f":"IF($C107=\"\",\"\",COUNTA($C$88:$C107))","v":20},{"$f":"IF(INDEX(INDIRECT(\"Product_List\"),ROWS($88:107))=\"\",\"\",INDEX(INDIRECT(\"Product_List\"),ROWS($88:107)))","v":"20-ขนมปังพิซซ่าปูอัดแฮม"},{"$f":"ยอดยกมา","v":0},null,null,null,null,null,null,0,null,{"$f":"INDIRECT(ADDRESS(ROW(A$80),ROW()-ROW(A$80)+(ROWS($88:107)-1)*2-1,4))","v":0},null,0,null,0,null,null,null,0,null,0,null,null,null,null,null,{"$f":"INDIRECT(ADDRESS(ROW(A$80),ROW()-ROW(A$80)+(ROWS($88:107)-1)*2,4))","v":0},0,null,0,{"$f":"INDIRECT(ADDRESS(ROW(A$80),ROW()-ROW(A$80)+(ROWS($88:107)-1)*2+1,4))","v":0}]
[{"$f":"IF(B108=\"\",0,INDEX(Price_List,ROWS($88:108)))","v":20},{"$f":"IF($C108=\"\",\"\",COUNTA($C$88:$C108))","v":21},{"$f":"IF(INDEX(INDIRECT(\"Product_List\"),ROWS($88:108))=\"\",\"\",INDEX(INDIRECT(\"Product_List\"),ROWS($88:108)))","v":"21-ขนมปังไส้กรอก"},{"$f":"ยอดยกมา","v":0},null,null,null,null,null,null,0,null,{"$f":"INDIRECT(ADDRESS(ROW(A$80),ROW()-ROW(A$80)+(ROWS($88:108)-1)*2-1,4))","v":0},null,0,null,0,null,null,null,0,null,0,null,null,null,null,null,{"$f":"INDIRECT(ADDRESS(ROW(A$80),ROW()-ROW(A$80)+(ROWS($88:108)-1)*2,4))","v":0},0,null,0,{"$f":"INDIRECT(ADDRESS(ROW(A$80),ROW()-ROW(A$80)+(ROWS($88:108)-1)*2+1,4))","v":0}]
[{"$f":"IF(B109=\"\",0,INDEX(Price_List,ROWS($88:109)))","v":15},{"$f":"IF($C109=\"\",\"\",COUNTA($C$88:$C109))","v":22},{"$f":"IF(INDEX(INDIRECT(\"Product_List\"),ROWS($88:109))=\"\",\"\",INDEX(INDIRECT(\"Product_List\"),ROWS($88:109)))","v":"22-ขนมก้านบัว"},{"$f":"ยอดยกมา","v":0},null,null,null,null,null,null,0,null,{"$f":"INDIRECT(ADDRESS(ROW(A$80),ROW()-ROW(A$80)+(ROWS($88:109)-1)*2-1,4))","v":0},null,0,null,0,null,null,null,0,null,0,null,null,null,null,null,{"$f":"INDIRECT(ADDRESS(ROW(A$80),ROW()-ROW(A$80)+(ROWS($88:109)-1)*2,4))","v":0},0,null,0,{"$f":"INDIRECT(ADDRESS(ROW(A$80),ROW()-ROW(A$80)+(ROWS($88:109)-1)*2+1,4))","v":0}]
[{"$f":"IF(B110=\"\",0,INDEX(Price_List,ROWS($88:110)))","v":20},{"$f":"IF($C110=\"\",\"\",COUNTA($C$88:$C110))","v":23},{"$f":"IF(INDEX(INDIRECT(\"Product_List\"),ROWS($88:110))=\"\",\"\",INDEX(INDIRECT(\"Product_List\"),ROWS($88:110)))","v":"23-พายสับปะรด"},{"$f":"ยอดยกมา","v":0},null,null,null,null,null,null,0,null,{"$f":"INDIRECT(ADDRESS(ROW(A$80),ROW()-ROW(A$80)+(ROWS($88:110)-1)*2-1,4))","v":0},null,0,null,0,null,null,null,0,null,0,null,null,null,null,null,{"$f":"INDIRECT(ADDRESS(ROW(A$80),ROW()-ROW(A$80)+(ROWS($88:110)-1)*2,4))","v":0},0,null,0,{"$f":"INDIRECT(ADDRESS(ROW(A$80),ROW()-ROW(A$80)+(ROWS($88:110)-1)*2+1,4))","v":0}]
[{"$f":"IF(B111=\"\",0,INDEX(Price_List,ROWS($88:111)))","v":20},{"$f":"IF($C111=\"\",\"\",COUNTA($C$88:$C111))","v":24},{"$f":"IF(INDEX(INDIRECT(\"Product_List\"),ROWS($88:111))=\"\",\"\",INDEX(INDIRECT(\"Product_List\"),ROWS($88:111)))","v":"24-พายไส้มะพร้าว"},{"$f":"ยอดยกมา","v":0},null,null,null,null,null,null,0,null,{"$f":"INDIRECT(ADDRESS(ROW(A$80),ROW()-ROW(A$80)+(ROWS($88:111)-1)*2-1,4))","v":0},null,0,null,0,null,null,null,0,null,0,null,null,null,null,null,{"$f":"INDIRECT(ADDRESS(ROW(A$80),ROW()-ROW(A$80)+(ROWS($88:111)-1)*2,4))","v":0},0,null,0,{"$f":"INDIRECT(ADDRESS(ROW(A$80),ROW()-ROW(A$80)+(ROWS($88:111)-1)*2+1,4))","v":0}]
[{"$f":"IF(B112=\"\",0,INDEX(Price_List,ROWS($88:112)))","v":15},{"$f":"IF($C112=\"\",\"\",COUNTA($C$88:$C112))","v":25},{"$f":"IF(INDEX(INDIRECT(\"Product_List\"),ROWS($88:112))=\"\",\"\",INDEX(INDIRECT(\"Product_List\"),ROWS($88:112)))","v":"25-ขนมปังโรลมันเทศ"},{"$f":"ยอดยกมา","v":0},null,null,null,null,null,null,0,null,{"$f":"INDIRECT(ADDRESS(ROW(A$80),ROW()-ROW(A$80)+(ROWS($88:112)-1)*2-1,4))","v":0},null,0,null,0,null,null,null,0,null,0,null,null,null,null,null,{"$f":"INDIRECT(ADDRESS(ROW(A$80),ROW()-ROW(A$80)+(ROWS($88:112)-1)*2,4))","v":0},0,null,0,{"$f":"INDIRECT(ADDRESS(ROW(A$80),ROW()-ROW(A$80)+(ROWS($88:112)-1)*2+1,4))","v":0}]
[{"$f":"IF(B113=\"\",0,INDEX(Price_List,ROWS($88:113)))","v":15},{"$f":"IF($C113=\"\",\"\",COUNTA($C$88:$C113))","v":26},{"$f":"IF(INDEX(INDIRECT(\"Product_List\"),ROWS($88:113))=\"\",\"\",INDEX(INDIRECT(\"Product_List\"),ROWS($88:113)))","v":"26-ขนมปังไส้ครีมสลัดน้ำพริกเผา"},{"$f":"ยอดยกมา","v":0},null,null,null,null,null,null,0,null,{"$f":"INDIRECT(ADDRESS(ROW(A$80),ROW()-ROW(A$80)+(ROWS($88:113)-1)*2-1,4))","v":0},null,0,null,0,null,null,null,0,null,0,null,null,null,null,null,{"$f":"INDIRECT(ADDRESS(ROW(A$80),ROW()-ROW(A$80)+(ROWS($88:113)-1)*2,4))","v":0},0,null,0,{"$f":"INDIRECT(ADDRESS(ROW(A$80),ROW()-ROW(A$80)+(ROWS($88:113)-1)*2+1,4))","v":0}]
[{"$f":"IF(B114=\"\",0,INDEX(Price_List,ROWS($88:114)))","v":20},{"$f":"IF($C114=\"\",\"\",COUNTA($C$88:$C114))","v":27},{"$f":"IF(INDEX(INDIRECT(\"Product_List\"),ROWS($88:114))=\"\",\"\",INDEX(INDIRECT(\"Product_List\"),ROWS($88:114)))","v":"27-ขนมปังไส้สังขยาไข่"},{"$f":"ยอดยกมา","v":0},null,null,null,null,null,null,0,null,{"$f":"INDIRECT(ADDRESS(ROW(A$80),ROW()-ROW(A$80)+(ROWS($88:114)-1)*2-1,4))","v":0},null,0,null,0,null,null,null,0,null,0,null,null,null,null,null,{"$f":"INDIRECT(ADDRESS(ROW(A$80),ROW()-ROW(A$80)+(ROWS($88:114)-1)*2,4))","v":0},0,null,0,{"$f":"INDIRECT(ADDRESS(ROW(A$80),ROW()-ROW(A$80)+(ROWS($88:114)-1)*2+1,4))","v":0}]
[{"$f":"IF(B115=\"\",0,INDEX(Price_List,ROWS($88:115)))","v":20},{"$f":"IF($C115=\"\",\"\",COUNTA($C$88:$C115))","v":28},{"$f":"IF(INDEX(INDIRECT(\"Product_List\"),ROWS($88:115))=\"\",\"\",INDEX(INDIRECT(\"Product_List\"),ROWS($88:115)))","v":"28-ขนมปังไส้สังขยามะพร้าว"},{"$f":"ยอดยกมา","v":0},null,null,null,null,null,null,0,null,{"$f":"INDIRECT(ADDRESS(ROW(A$80),ROW()-ROW(A$80)+(ROWS($88:115)-1)*2-1,4))","v":0},null,0,null,0,null,null,null,0,null,0,null,null,null,null,null,{"$f":"INDIRECT(ADDRESS(ROW(A$80),ROW()-ROW(A$80)+(ROWS($88:115)-1)*2,4))","v":0},0,null,0,{"$f":"INDIRECT(ADDRESS(ROW(A$80),ROW()-ROW(A$80)+(ROWS($88:115)-1)*2+1,4))","v":0}]
[{"$f":"IF(B116=\"\",0,INDEX(Price_List,ROWS($88:116)))","v":10},{"$f":"IF($C116=\"\",\"\",COUNTA($C$88:$C116))","v":29},{"$f":"IF(INDEX(INDIRECT(\"Product_List\"),ROWS($88:116))=\"\",\"\",INDEX(INDIRECT(\"Product_List\"),ROWS($88:116)))","v":"29-ขนมปังไส้ครีมชาไทย"},{"$f":"ยอดยกมา","v":0},null,null,null,null,null,null,0,null,{"$f":"INDIRECT(ADDRESS(ROW(A$80),ROW()-ROW(A$80)+(ROWS($88:116)-1)*2-1,4))","v":0},null,0,null,0,null,null,null,0,null,0,null,null,null,null,null,{"$f":"INDIRECT(ADDRESS(ROW(A$80),ROW()-ROW(A$80)+(ROWS($88:116)-1)*2,4))","v":0},0,null,0,{"$f":"INDIRECT(ADDRESS(ROW(A$80),ROW()-ROW(A$80)+(ROWS($88:116)-1)*2+1,4))","v":0}]
[{"$f":"IF(B117=\"\",0,INDEX(Price_List,ROWS($88:117)))","v":15},{"$f":"IF($C117=\"\",\"\",COUNTA($C$88:$C117))","v":30},{"$f":"IF(INDEX(INDIRECT(\"Product_List\"),ROWS($88:117))=\"\",\"\",INDEX(INDIRECT(\"Product_List\"),ROWS($88:117)))","v":"30-ขนมปังโรลมันม่วง"},{"$f":"ยอดยกมา","v":0},null,null,null,null,null,null,0,null,{"$f":"INDIRECT(ADDRESS(ROW(A$80),ROW()-ROW(A$80)+(ROWS($88:117)-1)*2-1,4))","v":0},null,0,null,0,null,null,null,0,null,0,null,null,null,null,null,{"$f":"INDIRECT(ADDRESS(ROW(A$80),ROW()-ROW(A$80)+(ROWS($88:117)-1)*2,4))","v":0},0,null,0,{"$f":"INDIRECT(ADDRESS(ROW(A$80),ROW()-ROW(A$80)+(ROWS($88:117)-1)*2+1,4))","v":0}]
[{"$f":"IF(B118=\"\",0,INDEX(Price_List,ROWS($88:118)))","v":15},{"$f":"IF($C118=\"\",\"\",COUNTA($C$88:$C118))","v":31},{"$f":"IF(INDEX(INDIRECT(\"Product_List\"),ROWS($88:118))=\"\",\"\",INDEX(INDIRECT(\"Product_List\"),ROWS($88:118)))","v":"31-ขนมปังโรลช็อกโกแลต"},{"$f":"ยอดยกมา","v":0},null,null,null,null,null,null,0,null,{"$f":"INDIRECT(ADDRESS(ROW(A$80),ROW()-ROW(A$80)+(ROWS($88:118)-1)*2-1,4))","v":0},null,0,null,0,null,null,null,0,null,0,null,null,null,null,null,{"$f":"INDIRECT(ADDRESS(ROW(A$80),ROW()-ROW(A$80)+(ROWS($88:118)-1)*2,4))","v":0},0,null,0,{"$f":"INDIRECT(ADDRESS(ROW(A$80),ROW()-ROW(A$80)+(ROWS($88:118)-1)*2+1,4))","v":0}]
[{"$f":"IF(B119=\"\",0,INDEX(Price_List,ROWS($88:119)))","v":16},{"$f":"IF($C119=\"\",\"\",COUNTA($C$88:$C119))","v":32},{"$f":"IF(INDEX(INDIRECT(\"Product_List\"),ROWS($88:119))=\"\",\"\",INDEX(INDIRECT(\"Product_List\"),ROWS($88:119)))","v":"32-ขนมปังชนิดแผ่น(155กรัม)"},{"$f":"ยอดยกมา","v":0},null,null,null,null,null,null,0,null,{"$f":"INDIRECT(ADDRESS(ROW(A$80),ROW()-ROW(A$80)+(ROWS($88:119)-1)*2-1,4))","v":0},null,0,null,0,null,null,null,0,null,0,null,null,null,null,null,{"$f":"INDIRECT(ADDRESS(ROW(A$80),ROW()-ROW(A$80)+(ROWS($88:119)-1)*2,4))","v":0},0,null,0,{"$f":"INDIRECT(ADDRESS(ROW(A$80),ROW()-ROW(A$80)+(ROWS($88:119)-1)*2+1,4))","v":0}]
[{"$f":"IF(B120=\"\",0,INDEX(Price_List,ROWS($88:120)))","v":15},{"$f":"IF($C120=\"\",\"\",COUNTA($C$88:$C120))","v":33},{"$f":"IF(INDEX(INDIRECT(\"Product_List\"),ROWS($88:120))=\"\",\"\",INDEX(INDIRECT(\"Product_List\"),ROWS($88:120)))","v":"33-ขนมปังโรลเผือก"},{"$f":"ยอดยกมา","v":0},null,null,null,null,null,null,0,null,{"$f":"INDIRECT(ADDRESS(ROW(A$80),ROW()-ROW(A$80)+(ROWS($88:120)-1)*2-1,4))","v":0},null,0,null,0,null,null,null,0,null,0,null,null,null,null,null,{"$f":"INDIRECT(ADDRESS(ROW(A$80),ROW()-ROW(A$80)+(ROWS($88:120)-1)*2,4))","v":0},0,null,0,{"$f":"INDIRECT(ADDRESS(ROW(A$80),ROW()-ROW(A$80)+(ROWS($88:120)-1)*2+1,4))","v":0}]
[{"$f":"IF(B121=\"\",0,INDEX(Price_List,ROWS($88:121)))","v":15},{"$f":"IF($C121=\"\",\"\",COUNTA($C$88:$C121))","v":34},{"$f":"IF(INDEX(INDIRECT(\"Product_List\"),ROWS($88:121))=\"\",\"\",INDEX(INDIRECT(\"Product_List\"),ROWS($88:121)))","v":"34-ขนมปังไก่หยองน้ำสลัด Mini"},{"$f":"ยอดยกมา","v":0},null,null,null,null,null,null,0,null,{"$f":"INDIRECT(ADDRESS(ROW(A$80),ROW()-ROW(A$80)+(ROWS($88:121)-1)*2-1,4))","v":0},null,0,null,0,null,null,null,0,null,0,null,null,null,null,null,{"$f":"INDIRECT(ADDRESS(ROW(A$80),ROW()-ROW(A$80)+(ROWS($88:121)-1)*2,4))","v":0},0,null,0,{"$f":"INDIRECT(ADDRESS(ROW(A$80),ROW()-ROW(A$80)+(ROWS($88:121)-1)*2+1,4))","v":0}]
[{"$f":"IF(B122=\"\",0,INDEX(Price_List,ROWS($88:122)))","v":10},{"$f":"IF($C122=\"\",\"\",COUNTA($C$88:$C122))","v":35},{"$f":"IF(INDEX(INDIRECT(\"Product_List\"),ROWS($88:122))=\"\",\"\",INDEX(INDIRECT(\"Product_List\"),ROWS($88:122)))","v":"35-ขนมปังไส้ช็อกโกแลต"},{"$f":"ยอดยกมา","v":0},null,null,null,null,null,null,0,null,{"$f":"INDIRECT(ADDRESS(ROW(A$80),ROW()-ROW(A$80)+(ROWS($88:122)-1)*2-1,4))","v":0},null,0,null,0,null,null,null,0,null,0,null,null,null,null,null,{"$f":"INDIRECT(ADDRESS(ROW(A$80),ROW()-ROW(A$80)+(ROWS($88:122)-1)*2,4))","v":0},0,null,0,{"$f":"INDIRECT(ADDRESS(ROW(A$80),ROW()-ROW(A$80)+(ROWS($88:122)-1)*2+1,4))","v":0}]
[{"$f":"IF(B123=\"\",0,INDEX(Price_List,ROWS($88:123)))","v":10},{"$f":"IF($C123=\"\",\"\",COUNTA($C$88:$C123))","v":36},{"$f":"IF(INDEX(INDIRECT(\"Product_List\"),ROWS($88:123))=\"\",\"\",INDEX(INDIRECT(\"Product_List\"),ROWS($88:123)))","v":"36-ขนมปังไส้ครีมสังขยาไข่"},{"$f":"ยอดยกมา","v":0},null,null,null,null,null,null,0,null,{"$f":"INDIRECT(ADDRESS(ROW(A$80),ROW()-ROW(A$80)+(ROWS($88:123)-1)*2-1,4))","v":0},null,0,null,0,null,null,null,0,null,0,null,null,null,null,null,{"$f":"INDIRECT(ADDRESS(ROW(A$80),ROW()-ROW(A$80)+(ROWS($88:123)-1)*2,4))","v":0},0,null,0,{"$f":"INDIRECT(ADDRESS(ROW(A$80),ROW()-ROW(A$80)+(ROWS($88:123)-1)*2+1,4))","v":0}]
[{"$f":"IF(B124=\"\",0,INDEX(Price_List,ROWS($88:124)))","v":20},{"$f":"IF($C124=\"\",\"\",COUNTA($C$88:$C124))","v":37},{"$f":"IF(INDEX(INDIRECT(\"Product_List\"),ROWS($88:124))=\"\",\"\",INDEX(INDIRECT(\"Product_List\"),ROWS($88:124)))","v":"37-ขนมปังพิซซ่าฮาวายเอี้ยน"},{"$f":"ยอดยกมา","v":0},null,null,null,null,null,null,0,null,{"$f":"INDIRECT(ADDRESS(ROW(A$80),ROW()-ROW(A$80)+(ROWS($88:124)-1)*2-1,4))","v":0},null,0,null,0,null,null,null,0,null,0,null,null,null,null,null,{"$f":"INDIRECT(ADDRESS(ROW(A$80),ROW()-ROW(A$80)+(ROWS($88:124)-1)*2,4))","v":0},0,null,0,{"$f":"INDIRECT(ADDRESS(ROW(A$80),ROW()-ROW(A$80)+(ROWS($88:124)-1)*2+1,4))","v":0}]
[{"$f":"IF(B125=\"\",0,INDEX(Price_List,ROWS($88:125)))","v":20},{"$f":"IF($C125=\"\",\"\",COUNTA($C$88:$C125))","v":38},{"$f":"IF(INDEX(INDIRECT(\"Product_List\"),ROWS($88:125))=\"\",\"\",INDEX(INDIRECT(\"Product_List\"),ROWS($88:125)))","v":"38-ครัวซองต์หมูหยองน้ำสลัด"},{"$f":"ยอดยกมา","v":0},null,null,null,null,null,null,0,null,{"$f":"INDIRECT(ADDRESS(ROW(A$80),ROW()-ROW(A$80)+(ROWS($88:125)-1)*2-1,4))","v":0},null,0,null,0,null,null,null,0,null,0,null,null,null,null,null,{"$f":"INDIRECT(ADDRESS(ROW(A$80),ROW()-ROW(A$80)+(ROWS($88:125)-1)*2,4))","v":0},0,null,0,{"$f":"INDIRECT(ADDRESS(ROW(A$80),ROW()-ROW(A$80)+(ROWS($88:125)-1)*2+1,4))","v":0}]
[{"$f":"IF(B126=\"\",0,INDEX(Price_List,ROWS($88:126)))","v":15},{"$f":"IF($C126=\"\",\"\",COUNTA($C$88:$C126))","v":39},{"$f":"IF(INDEX(INDIRECT(\"Product_List\"),ROWS($88:126))=\"\",\"\",INDEX(INDIRECT(\"Product_List\"),ROWS($88:126)))","v":"39-แพนเบรดไส้เผือก"},{"$f":"ยอดยกมา","v":0},null,null,null,null,null,null,0,null,{"$f":"INDIRECT(ADDRESS(ROW(A$80),ROW()-ROW(A$80)+(ROWS($88:126)-1)*2-1,4))","v":0},null,0,null,0,null,null,null,0,null,0,null,null,null,null,null,{"$f":"INDIRECT(ADDRESS(ROW(A$80),ROW()-ROW(A$80)+(ROWS($88:126)-1)*2,4))","v":0},0,null,0,{"$f":"INDIRECT(ADDRESS(ROW(A$80),ROW()-ROW(A$80)+(ROWS($88:126)-1)*2+1,4))","v":0}]
[{"$f":"IF(B127=\"\",0,INDEX(Price_List,ROWS($88:127)))","v":15},{"$f":"IF($C127=\"\",\"\",COUNTA($C$88:$C127))","v":40},{"$f":"IF(INDEX(INDIRECT(\"Product_List\"),ROWS($88:127))=\"\",\"\",INDEX(INDIRECT(\"Product_List\"),ROWS($88:127)))","v":"40-แพนเบรดไส้ถั่วแดง"},{"$f":"ยอดยกมา","v":0},null,null,null,null,null,null,{"$f":"D127+E127+J127-I127+H127","v":0},null,{"$f":"INDIRECT(ADDRESS(ROW(A$80),ROW()-ROW(A$80)+(ROWS($88:127)-1)*2-1,4))","v":0},null,{"$f":"F127+G127+M127+J127-K127","v":0},null,{"$f":"O127*A127","v":0},null,null,null,{"$f":"D127+E127-F127-G127","v":0},null,{"$f":"U127*6%+U127","v":0},null,null,null,null,null,{"$f":"INDIRECT(ADDRESS(ROW(A$80),ROW()-ROW(A$80)+(ROWS($88:127)-1)*2,4))","v":0},0,null,0,{"$f":"INDIRECT(ADDRESS(ROW(A$80),ROW()-ROW(A$80)+(ROWS($88:127)-1)*2+1,4))","v":0}]
[{"$f":"IF(B128=\"\",0,INDEX(Price_List,ROWS($88:128)))","v":12},{"$f":"IF($C128=\"\",\"\",COUNTA($C$88:$C128))","v":41},{"$f":"IF(INDEX(INDIRECT(\"Product_List\"),ROWS($88:128))=\"\",\"\",INDEX(INDIRECT(\"Product_List\"),ROWS($88:128)))","v":"41-ขนมปังกรอบเนยน้ำตาล(30กรัม)"},{"$f":"ยอดยกมา","v":0},null,null,null,null,null,null,0,null,{"$f":"INDIRECT(ADDRESS(ROW(A$80),ROW()-ROW(A$80)+(ROWS($88:128)-1)*2-1,4))","v":0},null,0,null,0,null,null,null,0,null,0,null,null,null,null,null,{"$f":"INDIRECT(ADDRESS(ROW(A$80),ROW()-ROW(A$80)+(ROWS($88:128)-1)*2,4))","v":0},0,null,0,{"$f":"INDIRECT(ADDRESS(ROW(A$80),ROW()-ROW(A$80)+(ROWS($88:128)-1)*2+1,4))","v":0}]
[{"$f":"IF(B129=\"\",0,INDEX(Price_List,ROWS($88:129)))","v":18},{"$f":"IF($C129=\"\",\"\",COUNTA($C$88:$C129))","v":42},{"$f":"IF(INDEX(INDIRECT(\"Product_List\"),ROWS($88:129))=\"\",\"\",INDEX(INDIRECT(\"Product_List\"),ROWS($88:129)))","v":"42-ขนมปังชนิดแผ่นโฮลวีต"},{"$f":"ยอดยกมา","v":0},null,null,null,null,null,null,0,null,{"$f":"INDIRECT(ADDRESS(ROW(A$80),ROW()-ROW(A$80)+(ROWS($88:129)-1)*2-1,4))","v":0},null,0,null,0,null,null,null,0,null,0,null,null,null,null,null,{"$f":"INDIRECT(ADDRESS(ROW(A$80),ROW()-ROW(A$80)+(ROWS($88:129)-1)*2,4))","v":0},0,null,0,{"$f":"INDIRECT(ADDRESS(ROW(A$80),ROW()-ROW(A$80)+(ROWS($88:129)-1)*2+1,4))","v":0}]
[{"$f":"IF(B130=\"\",0,INDEX(Price_List,ROWS($88:130)))","v":12},{"$f":"IF($C130=\"\",\"\",COUNTA($C$88:$C130))","v":43},{"$f":"IF(INDEX(INDIRECT(\"Product_List\"),ROWS($88:130))=\"\",\"\",INDEX(INDIRECT(\"Product_List\"),ROWS($88:130)))","v":"43-เค้กโรลใบเตย"},{"$f":"ยอดยกมา","v":0},null,null,null,null,null,null,{"$f":"D130+E130+J130-I130+H130","v":0},null,{"$f":"INDIRECT(ADDRESS(ROW(A$80),ROW()-ROW(A$80)+(ROWS($88:130)-1)*2-1,4))","v":0},null,{"$f":"F130+G130+M130+J130-K130","v":0},null,{"$f":"O130*A130","v":0},null,null,null,{"$f":"D130+E130-F130-G130","v":0},null,{"$f":"U130*6%+U130","v":0},null,null,null,null,null,{"$f":"INDIRECT(ADDRESS(ROW(A$80),ROW()-ROW(A$80)+(ROWS($88:130)-1)*2,4))","v":0},0,null,0,{"$f":"INDIRECT(ADDRESS(ROW(A$80),ROW()-ROW(A$80)+(ROWS($88:130)-1)*2+1,4))","v":0}]
[{"$f":"IF(B131=\"\",0,INDEX(Price_List,ROWS($88:131)))","v":12},{"$f":"IF($C131=\"\",\"\",COUNTA($C$88:$C131))","v":44},{"$f":"IF(INDEX(INDIRECT(\"Product_List\"),ROWS($88:131))=\"\",\"\",INDEX(INDIRECT(\"Product_List\"),ROWS($88:131)))","v":"44-ขนมโมจิไส้ถั่วดำ"},{"$f":"ยอดยกมา","v":0},null,null,null,null,null,null,{"$f":"D131+E131+J131-I131+H131","v":0},null,{"$f":"INDIRECT(ADDRESS(ROW(A$80),ROW()-ROW(A$80)+(ROWS($88:131)-1)*2-1,4))","v":0},null,{"$f":"F131+G131+M131+J131-K131","v":0},null,{"$f":"O131*A131","v":0},null,null,null,{"$f":"D131+E131-F131-G131","v":0},null,{"$f":"U131*6%+U131","v":0},null,null,null,null,null,{"$f":"INDIRECT(ADDRESS(ROW(A$80),ROW()-ROW(A$80)+(ROWS($88:131)-1)*2,4))","v":0},0,null,0,{"$f":"INDIRECT(ADDRESS(ROW(A$80),ROW()-ROW(A$80)+(ROWS($88:131)-1)*2+1,4))","v":0}]
[{"$f":"IF(B132=\"\",0,INDEX(Price_List,ROWS($88:132)))","v":25},{"$f":"IF($C132=\"\",\"\",COUNTA($C$88:$C132))","v":45},{"$f":"IF(INDEX(INDIRECT(\"Product_List\"),ROWS($88:132))=\"\",\"\",INDEX(INDIRECT(\"Product_List\"),ROWS($88:132)))","v":"45-ครัวซองต์ไส้กรอกชีส"},{"$f":"ยอดยกมา","v":0},null,null,null,null,null,null,{"$f":"D132+E132+J132-I132+H132","v":0},null,{"$f":"INDIRECT(ADDRESS(ROW(A$80),ROW()-ROW(A$80)+(ROWS($88:132)-1)*2-1,4))","v":0},null,{"$f":"F132+G132+M132+J132-K132","v":0},null,{"$f":"O132*A132","v":0},null,null,null,{"$f":"D132+E132-F132-G132","v":0},null,{"$f":"U132*6%+U132","v":0},null,null,null,null,null,{"$f":"INDIRECT(ADDRESS(ROW(A$80),ROW()-ROW(A$80)+(ROWS($88:132)-1)*2,4))","v":0},0,null,0,{"$f":"INDIRECT(ADDRESS(ROW(A$80),ROW()-ROW(A$80)+(ROWS($88:132)-1)*2+1,4))","v":0}]
[{"$f":"IF(B133=\"\",0,INDEX(Price_List,ROWS($88:133)))","v":12},{"$f":"IF($C133=\"\",\"\",COUNTA($C$88:$C133))","v":46},{"$f":"IF(INDEX(INDIRECT(\"Product_List\"),ROWS($88:133))=\"\",\"\",INDEX(INDIRECT(\"Product_List\"),ROWS($88:133)))","v":"46-ขนมเปี๊ยะไส้ถั่ว"},{"$f":"ยอดยกมา","v":0},null,null,null,null,null,null,0,null,{"$f":"INDIRECT(ADDRESS(ROW(A$80),ROW()-ROW(A$80)+(ROWS($88:133)-1)*2-1,4))","v":0},null,0,null,0,null,null,null,0,null,0,null,null,null,null,null,{"$f":"INDIRECT(ADDRESS(ROW(A$80),ROW()-ROW(A$80)+(ROWS($88:133)-1)*2,4))","v":0},0,null,0,{"$f":"INDIRECT(ADDRESS(ROW(A$80),ROW()-ROW(A$80)+(ROWS($88:133)-1)*2+1,4))","v":0}]
[{"$f":"IF(B134=\"\",0,INDEX(Price_List,ROWS($88:134)))","v":12},{"$f":"IF($C134=\"\",\"\",COUNTA($C$88:$C134))","v":47},{"$f":"IF(INDEX(INDIRECT(\"Product_List\"),ROWS($88:134))=\"\",\"\",INDEX(INDIRECT(\"Product_List\"),ROWS($88:134)))","v":"47-ขนมเปี๊ยะไส้ฟัก"},{"$f":"ยอดยกมา","v":0},null,null,null,null,null,null,{"$f":"D134+E134+J134-I134+H134","v":0},null,{"$f":"INDIRECT(ADDRESS(ROW(A$80),ROW()-ROW(A$80)+(ROWS($88:134)-1)*2-1,4))","v":0},null,{"$f":"F134+G134+M134+J134-K134","v":0},null,{"$f":"O134*A134","v":0},null,null,null,{"$f":"D134+E134-F134-G134","v":0},null,{"$f":"U134*6%+U134","v":0},null,null,null,null,null,{"$f":"INDIRECT(ADDRESS(ROW(A$80),ROW()-ROW(A$80)+(ROWS($88:134)-1)*2,4))","v":0},0,null,0,{"$f":"INDIRECT(ADDRESS(ROW(A$80),ROW()-ROW(A$80)+(ROWS($88:134)-1)*2+1,4))","v":0}]
[{"$f":"IF(B135=\"\",0,INDEX(Price_List,ROWS($88:135)))","v":12},{"$f":"IF($C135=\"\",\"\",COUNTA($C$88:$C135))","v":48},{"$f":"IF(INDEX(INDIRECT(\"Product_List\"),ROWS($88:135))=\"\",\"\",INDEX(INDIRECT(\"Product_List\"),ROWS($88:135)))","v":"48-มังกี้เค้ก"},{"$f":"ยอดยกมา","v":0},null,null,null,null,null,null,0,null,{"$f":"INDIRECT(ADDRESS(ROW(A$80),ROW()-ROW(A$80)+(ROWS($88:135)-1)*2-1,4))","v":0},null,0,null,0,null,null,null,0,null,0,null,null,null,null,null,{"$f":"INDIRECT(ADDRESS(ROW(A$80),ROW()-ROW(A$80)+(ROWS($88:135)-1)*2,4))","v":0},0,null,0,{"$f":"INDIRECT(ADDRESS(ROW(A$80),ROW()-ROW(A$80)+(ROWS($88:135)-1)*2+1,4))","v":0}]
["รวม",null,null,{"$f":"SUM(D$88:D$135)","v":0},0,0,0,0,0,0,0,null,{"$f":"SUM(M$88:M$135)","v":0},null,null,null,{"$f":"$AP$98","v":0},null,"บาท",null,{"$f":"SUM(U$88:U$135)","v":0},null,{"$f":"SUM(W$88:W$135)","v":0},null,null,null,null,null,{"$f":"SUM(AC$88:AC$135)","v":0},{"$f":"SUM(AD$88:AD$135)","v":0},{"$f":"SUM(AE$88:AE$135)","v":0},{"$f":"SUM(AF$88:AF$135)","v":0},{"$f":"SUM(AG$88:AG$135)","v":0}]
["เลขที่ไมล์ เวลาออกทำงาน",null,null,{"$f":"$BF$3","v":0},null,"Km","น้ำหนักของเสีย"]
["เลขที่ไมล์ เวลากลับ",null,null,{"$f":"$BF$4","v":0},null,"Km",{"$f":"$AA$5","v":0},null,"KG"]
["เวลากลับถึงสำนักงาน",null,null,{"$f":"$BF$1","v":"00:00:00"},null,"น."]
["เติมน้ำมัน",null,null,{"$f":"$AX3","v":0},null,"บาท"]
["จำนวนน้ำมัน",null,null,{"$f":"$AX4","v":0},null,"ลิตร"]
["ยอดรวมต้นทุนสาขา",null,null,{"$f":"$AX5","v":0},null,"บาท"]

{"sheet":"12","index":16,"n_rows":142,"n_cols":154,"rows_kept":142,"cut":false,"hidden":false,"merged":[[129,10,129,11],[129,12,129,13],[129,14,129,15],[129,16,129,17],[129,20,129,21],[80,126,80,127],[128,10,128,11],[128,12,128,13],[128,14,128,15],[128,16,128,17],[128,20,128,21],[128,22,128,23],[128,24,128,25],[128,33,128,36],[125,10,125,11],[125,12,125,13],[125,14,125,15],[125,16,125,17],[125,20,125,21],[126,10,126,11],[127,10,127,11],[83,81,83,82],[83,84,83,85],[83,87,83,88],[83,90,83,91],[83,93,83,94],[83,96,83,97],[82,72,82,73],[129,22,129,23],[129,24,129,25],[129,33,129,36],[97,38,97,40],[92,24,92,25],[92,33,92,36],[90,24,90,25],[90,33,90,36],[96,33,96,36],[97,33,97,36],[88,24,88,25],[88,33,88,36],[80,132,80,133],[82,132,82,133],[6,135,6,137],[7,135,7,137],[8,135,8,137],[80,135,80,136],[82,135,82,136],[80,129,80,130],[82,126,82,127],[82,129,82,130],[6,138,6,140],[6,141,6,143],[6,147,6,149],[126,22,126,23],[127,22,127,23],[126,24,126,25],[127,24,127,25],[126,33,126,36],[127,33,127,36],[125,24,125,25],[125,33,125,36],[123,24,123,25],[123,33,123,36],[125,22,125,23],[124,22,124,23],[124,24,124,25],[124,33,124,36],[122,24,122,25],[122,33,122,36],[98,24,98,25],[98,33,98,36],[99,24,99,25],[99,33,99,36],[82,108,82,109],[139,0,139,2],[139,3,139,4],[140,0,140,2],[140,3,140,4],[141,0,141,2],[141,3,141,4],[137,0,137,2],[137,3,137,4],[137,6,137,7],[137,18,137,21],[138,0,138,2],[138,3,138,4],[135,20,135,21],[135,22,135,23],[135,24,135,25],[135,33,135,36],[136,0,136,2],[136,3,136,4],[135,0,135,2],[135,10,135,11],[135,12,135,13],[135,14,135,15],[135,16,135,17],[135,18,135,19],[126,12,126,13],[127,12,127,13],[126,14,126,15],[127,14,127,15],[126,16,126,17],[127,16,127,17],[126,20,126,21],[127,20,127,21],[124,10,124,11],[124,12,124,13],[124,14,124,15],[124,16,124,17],[124,20,124,21],[123,10,123,11],[123,12,123,13],[123,14,123,15],[123,16,123,17],[123,20,123,21],[123,22,123,23],[122,10,122,11],[122,12,122,13],[122,14,122,15],[122,16,122,17],[122,20,122,21],[122,22,122,23],[121,10,121,11],[121,12,121,13],[121,14,121,15],[121,16,121,17],[121,20,121,21],[121,22,121,23],[121,24,121,25],[121,33,121,36],[120,10,120,11],[120,12,120,13],[120,14,120,15],[120,16,120,17],[120,20,120,21],[120,22,120,23],[120,24,120,25],[120,33,120,36],[119,10,119,11],[119,12,119,13],[119,14,119,15],[119,16,119,17],[119,20,119,21],[119,22,119,23],[119,24,119,25],[119,33,119,36],[118,10,118,11],[118,12,118,13],[118,14,118,15],[118,16,118,17],[118,20,118,21],[118,22,118,23],[118,24,118,25],[118,33,118,36],[117,10,117,11],[117,12,117,13],[117,14,117,15],[117,16,117,17],[117,20,117,21],[117,22,117,23],[117,24,117,25],[117,33,117,36],[116,10,116,11],[116,12,116,13],[116,14,116,15],[116,16,116,17],[116,20,116,21],[116,22,116,23],[116,24,116,25],[116,33,116,36],[115,10,115,11],[115,12,115,13],[115,14,115,15],[115,16,115,17],[115,20,115,21],[115,22,115,23],[115,24,115,25],[115,33,115,36],[114,10,114,11],[114,12,114,13],[114,14,114,15],[114,16,114,17],[114,20,114,21],[114,22,114,23],[114,24,114,25],[114,33,114,36],[113,10,113,11],[113,12,113,13],[113,14,113,15],[113,16,113,17],[113,20,113,21],[113,22,113,23],[113,24,113,25],[113,33,113,36],[112,10,112,11],[112,12,112,13],[112,14,112,15],[112,16,112,17],[112,20,112,21],[112,22,112,23],[112,24,112,25],[112,33,112,36],[111,10,111,11],[111,12,111,13],[111,14,111,15],[111,16,111,17],[111,20,111,21],[111,22,111,23],[111,24,111,25],[111,33,111,36],[110,10,110,11],[110,12,110,13],[110,14,110,15],[110,16,110,17],[110,20,110,21],[110,22,110,23],[110,24,110,25],[110,33,110,36],[109,10,109,11],[109,12,109,13],[109,14,109,15],[109,16,109,17],[109,20,109,21],[109,22,109,23],[109,24,109,25],[109,33,109,36],[108,10,108,11],[108,12,108,13],[108,14,108,15],[108,16,108,17],[108,20,108,21],[108,22,108,23],[108,24,108,25],[108,33,108,36],[107,10,107,11],[107,12,107,13],[107,14,107,15],[107,16,107,17],[107,20,107,21],[107,22,107,23],[107,24,107,25],[107,33,107,36],[106,10,106,11],[106,12,106,13],[106,14,106,15],[106,16,106,17],[106,20,106,21],[106,22,106,23],[106,24,106,25],[106,33,106,36],[105,10,105,11],[105,12,105,13],[105,14,105,15],[105,16,105,17],[105,20,105,21],[105,22,105,23],[105,24,105,25],[105,33,105,36],[104,10,104,11],[104,12,104,13],[104,14,104,15],[104,16,104,17],[104,20,104,21],[104,22,104,23],[104,24,104,25],[104,33,104,36],[103,10,103,11],[103,12,103,13],[103,14,103,15],[103,16,103,17],[103,20,103,21],[103,22,103,23],[103,24,103,25],[103,33,103,36],[102,10,102,11],[102,12,102,13],[102,14,102,15],[102,16,102,17],[102,20,102,21],[102,22,102,23],[102,24,102,25],[102,33,102,36],[101,10,101,11],[101,12,101,13],[101,14,101,15],[101,16,101,17],[101,20,101,21],[101,22,101,23],[101,24,101,25],[101,33,101,36],[100,10,100,11],[100,12,100,13],[100,14,100,15],[100,16,100,17],[100,20,100,21],[100,22,100,23],[100,24,100,25],[100,33,100,36],[99,10,99,11],[99,12,99,13],[99,14,99,15],[99,16,99,17],[99,20,99,21],[99,22,99,23],[98,10,98,11],[98,12,98,13],[98,14,98,15],[98,16,98,17],[98,20,98,21],[98,22,98,23],[97,10,97,11],[97,12,97,13],[97,14,97,15],[97,16,97,17],[97,20,97,21],[97,22,97,23],[97,24,97,25],[96,10,96,11],[96,12,96,13],[96,14,96,15],[96,16,96,17],[96,20,96,21],[96,22,96,23],[96,24,96,25],[95,10,95,11],[95,12,95,13],[95,14,95,15],[95,16,95,17],[95,20,95,21],[95,22,95,23],[95,24,95,25],[95,33,95,36],[94,10,94,11],[94,12,94,13],[94,14,94,15],[94,16,94,17],[94,20,94,21],[94,22,94,23],[94,24,94,25],[94,33,94,36],[93,10,93,11],[93,12,93,13],[93,14,93,15],[93,16,93,17],[93,20,93,21],[93,22,93,23],[93,24,93,25],[93,33,93,36],[92,10,92,11],[92,12,92,13],[92,14,92,15],[92,16,92,17],[92,20,92,21],[92,22,92,23],[91,10,91,11],[91,12,91,13],[91,14,91,15],[91,16,91,17],[91,20,91,21],[91,22,91,23],[91,24,91,25],[91,33,91,36],[90,10,90,11],[90,12,90,13],[90,14,90,15],[90,16,90,17],[90,20,90,21],[90,22,90,23],[87,33,87,36],[86,10,86,11],[86,12,86,13],[86,14,86,15],[86,16,86,17],[86,20,86,21],[86,22,86,23],[89,10,89,11],[89,12,89,13],[89,14,89,15],[89,16,89,17],[89,20,89,21],[89,22,89,23],[89,24,89,25],[89,33,89,36],[88,10,88,11],[88,12,88,13],[88,14,88,15],[88,16,88,17],[88,20,88,21],[88,22,88,23],[86,24,86,25],[86,33,86,36],[83,150,83,153],[83,99,83,100],[83,102,83,103],[83,105,83,106],[83,108,83,109],[83,111,83,112],[83,114,83,115],[83,126,83,127],[83,129,83,130],[83,132,83,133],[83,135,83,136],[83,117,83,118],[83,120,83,121],[83,123,83,124],[82,75,82,76],[82,78,82,79],[82,81,82,82],[82,84,82,85],[82,87,82,88],[82,99,82,100],[82,102,82,103],[82,105,82,106],[82,63,82,64],[82,66,82,67],[82,69,82,70],[82,90,82,91],[82,93,82,94],[82,96,82,97],[83,0,83,5],[83,6,83,7],[83,9,83,10],[83,12,83,13],[83,15,83,16],[83,18,83,19],[83,21,83,22],[83,24,83,25],[83,54,83,55],[83,27,83,28],[82,36,82,37],[83,30,83,31],[83,33,83,34],[83,36,83,37],[82,39,82,40],[82,42,82,43],[83,45,83,46],[83,48,83,49],[83,51,83,52],[83,39,83,40],[83,42,83,43],[82,54,82,55],[82,57,82,58],[82,60,82,61],[81,0,81,2],[81,3,81,5],[81,150,82,153],[82,0,82,2],[82,3,82,4],[82,6,82,7],[82,9,82,10],[82,12,82,13],[82,15,82,16],[82,45,82,46],[82,48,82,49],[82,51,82,52],[82,18,82,19],[82,21,82,22],[82,24,82,25],[82,27,82,28],[82,30,82,31],[82,33,82,34],[82,111,82,112],[82,114,82,115],[82,117,82,118],[82,120,82,121],[82,123,82,124],[80,111,80,112],[80,114,80,115],[80,117,80,118],[80,120,80,121],[80,123,80,124],[80,93,80,94],[80,96,80,97],[80,99,80,100],[80,102,80,103],[80,105,80,106],[80,108,80,109],[80,36,80,37],[80,75,80,76],[80,78,80,79],[80,81,80,82],[80,84,80,85],[80,87,80,88],[80,90,80,91],[80,57,80,58],[80,60,80,61],[80,63,80,64],[80,66,80,67],[80,69,80,70],[80,72,80,73],[6,0,8,0],[6,1,8,1],[80,0,80,5],[80,6,80,7],[80,9,80,10],[80,12,80,13],[80,15,80,16],[80,18,80,19],[8,117,8,119],[8,54,8,56],[8,57,8,59],[8,60,8,62],[8,27,8,29],[8,30,8,32],[8,33,8,35],[8,36,8,38],[8,39,8,41],[8,42,8,44],[8,9,8,11],[8,12,8,14],[8,15,8,17],[8,18,8,20],[8,21,8,23],[8,24,8,26],[6,129,6,131],[7,126,7,128],[7,129,7,131],[8,126,8,128],[8,129,8,131],[6,126,6,128],[6,84,6,86],[6,132,6,134],[79,0,79,5],[8,99,8,101],[8,102,8,104],[8,105,8,107],[8,108,8,110],[8,111,8,113],[8,114,8,116],[8,81,8,83],[8,84,8,86],[8,87,8,89],[8,90,8,92],[8,93,8,95],[8,96,8,98],[8,63,8,65],[8,66,8,68],[8,69,8,71],[7,120,7,122],[7,123,7,125],[7,150,8,150],[7,151,8,151],[7,102,7,104],[7,105,7,107],[7,108,7,110],[7,111,7,113],[7,114,7,116],[7,117,7,119],[8,120,8,122],[8,123,8,125],[7,132,7,134],[8,132,8,134],[6,152,8,152],[6,153,8,153],[7,6,7,8],[7,9,7,11],[7,12,7,14],[7,15,7,17],[7,18,7,20],[7,21,7,23],[7,24,7,26],[7,27,7,29],[6,117,6,119],[6,120,6,122],[6,123,6,125],[6,150,6,151],[6,99,6,101],[6,102,6,104],[6,105,6,107],[6,108,6,110],[6,93,6,95],[6,96,6,98],[6,63,6,65],[6,111,6,113],[6,114,6,116],[6,81,6,83],[6,2,8,2],[6,3,8,3],[6,4,8,4],[6,6,6,8],[8,6,8,8],[6,45,6,47],[6,48,6,50],[7,48,7,50],[6,39,6,41],[6,42,6,44],[7,30,7,32],[7,33,7,35],[7,36,7,38],[7,39,7,41],[7,42,7,44],[7,45,7,47],[8,45,8,47],[8,48,8,50],[4,26,4,29],[4,30,4,31],[4,32,4,34],[4,35,4,36],[6,9,6,11],[6,12,6,14],[6,15,6,17],[6,18,6,20],[6,21,6,23],[6,24,6,26],[6,27,6,29],[6,30,6,32],[6,33,6,35],[6,36,6,38],[3,41,3,44],[3,46,3,48],[3,49,3,51],[3,54,3,56],[3,57,3,60],[4,0,4,1],[4,2,4,3],[4,4,4,5],[4,6,4,12],[4,14,4,16],[3,17,3,19],[3,22,3,25],[3,26,3,29],[3,30,3,33],[3,34,3,37],[3,38,3,40],[4,38,4,40],[4,41,4,44],[4,46,4,48],[4,49,4,51],[4,54,4,56],[4,57,4,60],[4,17,4,19],[4,22,4,25],[3,0,3,1],[3,2,3,3],[3,4,3,5],[3,6,3,12],[3,14,3,16],[2,17,2,19],[2,22,2,25],[2,26,2,29],[2,30,2,33],[0,38,0,40],[0,41,0,44],[0,46,0,48],[0,54,0,56],[0,57,0,60],[2,0,2,1],[2,2,2,3],[2,4,2,5],[2,6,2,12],[2,14,2,16],[0,0,0,12],[0,14,0,16],[0,17,0,23],[0,30,0,33],[0,34,0,35],[0,36,0,37],[2,41,2,44],[2,46,2,48],[2,49,2,51],[2,54,2,56],[2,57,2,60],[2,34,2,37],[2,38,2,40],[7,96,7,98],[7,99,7,101],[6,51,6,53],[6,60,6,62],[6,87,6,89],[6,90,6,92],[7,84,7,86],[7,87,7,89],[7,90,7,92],[7,66,7,68],[7,69,7,71],[7,72,7,74],[6,66,6,68],[7,75,7,77],[7,78,7,80],[7,81,7,83],[6,69,6,71],[6,72,6,74],[6,75,6,77],[6,78,6,80],[6,54,6,56],[6,57,6,59],[131,24,131,25],[131,10,131,11],[131,20,131,21],[7,51,7,53],[7,54,7,56],[7,57,7,59],[7,60,7,62],[7,63,7,65],[7,93,7,95],[8,72,8,74],[8,75,8,77],[8,78,8,80],[8,51,8,53],[80,39,80,40],[80,42,80,43],[80,45,80,46],[80,48,80,49],[80,51,80,52],[80,54,80,55],[80,21,80,22],[80,24,80,25],[80,27,80,28],[80,30,80,31],[80,33,80,34],[83,147,83,148],[130,22,130,23],[130,24,130,25],[130,33,130,36],[130,10,130,11],[130,12,130,13],[130,14,130,15],[130,16,130,17],[130,20,130,21],[83,63,83,64],[83,66,83,67],[83,69,83,70],[83,72,83,73],[83,75,83,76],[83,78,83,79],[83,57,83,58],[83,60,83,61],[87,10,87,11],[87,12,87,13],[87,14,87,15],[87,16,87,17],[87,20,87,21],[87,22,87,23],[87,24,87,25],[7,147,7,149],[8,138,8,140],[8,141,8,143],[8,147,8,149],[80,138,80,139],[80,141,80,142],[80,147,80,148],[82,138,82,139],[82,141,82,142],[82,147,82,148],[132,10,132,11],[134,10,134,11],[131,12,131,13],[132,12,132,13],[134,12,134,13],[131,14,131,15],[132,14,132,15],[134,14,134,15],[131,16,131,17],[132,16,132,17],[134,16,134,17],[133,10,133,11],[133,12,133,13],[133,14,133,15],[133,16,133,17],[132,20,132,21],[134,20,134,21],[131,22,131,23],[132,22,132,23],[134,22,134,23],[6,144,6,146],[7,144,7,146],[8,144,8,146],[80,144,80,145],[82,144,82,145],[83,144,83,145],[133,20,133,21],[133,22,133,23],[133,24,133,25],[133,33,133,36],[132,24,132,25],[134,24,134,25],[131,33,131,36],[132,33,132,36],[134,33,134,36],[7,138,7,140],[7,141,7,143],[83,138,83,139],[83,141,83,142]]}
[":::: รายงานการขายประจำวัน (Sale Daily Report)  ::::",null,null,null,null,null,null,null,null,null,null,null,null,null,"Print Date : ",null,null,{"$f":"NOW()","v":"2025-04-24T22:39:10.140"},null,null,null,null,null,null,null,null,null,null,null,null,"จำนวนร้าน :",null,null,null,{"$f":"MAX($A$10:$A$79)","v":0},null,"ร้าน",null,"เป้ายอดขาย :",null,null,null,null,null,null,null,{"$f":"C3","v":45789},null,null,{"$f":"LEFT('Problems & Solutions'!$B$2,FIND(\"|\",'Problems & Solutions'!$B$2))&\" วันที่\"&TEXT($C$3,\"[$-107041E] d mmmm yyyy;@\")","v":"ขั้นตอนการตรวจรีพอร์ตขาย | วันที่ 12 พฤษภาคม 2568"},null,null,null,null,"เวลากลับ :"]
[]
["วันที่ :",null,{"$f":"DATE(ใส่ข้อมูล!G2-543,ใส่ข้อมูล!V2,ActiveSheetName)","v":"2025-05-12"},null,"พนักงานขาย",null,{"$f":"INDEX(OFFSET(Sale_Region,,1),ActiveSheetName)","v":0},null,null,null,null,null,null,null,"รวมยอดเบิก :",null,null,{"$f":"E136","v":0},null,null,"ชิ้น",null,"ใหญ่สด(40)",null,null,null,{"$f":"Cash_Major_Bill","v":0},null,null,null,"ใหญ่เชื่อ(42)",null,null,null,{"$f":"Credit_Major_Bill","v":0},null,null,null,"บิลใหญ่ :",null,null,{"$f":"AA3+AI3","v":0},null,null,null,null,"เติมน้ำมัน :",null,null,null,null,null,"บาท",null,"ไมล์ออก :",null,null,{"$f":"เลขไมล์ออก","v":0},null,null,null,"Km"]
["เขตการขาย :",null,{"$f":"INDEX(Sale_Region,ActiveSheetName)","v":0},null,"ผช.ขาย",null,{"$f":"INDEX(OFFSET(Sale_Region,,2),ActiveSheetName)","v":0},null,null,null,null,null,null,null,"ของเหลือ :",null,null,{"$f":"F136","v":0},null,null,"ชิ้น",null,"เล็กสด(41)",null,null,null,{"$f":"Cash_Minor_Bill","v":0},null,null,null,"เล็กเชื่อ(43)",null,null,null,{"$f":"Credit_Minor_Bill","v":0},null,null,null,"บิลเล็ก :",null,null,{"$f":"AA4+AI4","v":0},null,null,null,null,"จำนวนลิตร :",null,null,null,null,null,"ลิตร",null,"ไมล์เข้า :",null,null,null,null,null,null,"Km"]
["สายส่ง :",null,{"$f":"\"Sale \"&ใส่ข้อมูล!E3&\"-\"&ใส่ข้อมูล!G3","v":"Sale KB-01"},null,"พนักงานเสริม",null,{"$f":"INDEX(OFFSET(Sale_Region,,3),ActiveSheetName)","v":0},null,null,null,null,null,null,null,"ของเสีย :",null,null,{"$f":"G136","v":0},null,null,"ชิ้น",null,"น้ำหนักของเสีย",null,null,null,null,null,null,null,"Kg.",null,"%ของเสีย",null,null,{"$f":"IF(Order_Cal=0,0,ROUND(Waste_Cal*100/Order_Cal,2))","v":0},null,"%","VAT :",null,null,{"$f":"EW81","v":0},null,null,null,null,"ต้นทุนสาขา :",null,null,{"$f":"SUMPRODUCT((($A$88:$A$135)-($A$88:$A$135)*0.45)*(($E$88:$E$135)-($G$88:$G$135)))","v":0},null,null,"บาท",null,"ระยะทาง :",null,null,{"$f":"IF(OR($BF$4=0,$BF$3=0),0,$BF$4-$BF$3)","v":0},null,null,null,"Km"]
[]
["No","รหัสร้าน (CustNo)","ชื่อร้าน (Store Name)","เวลาเข้าร้าน","ระยะเวลาระหว่างร้าน","บิล(Invoice)",{"$f":"INDEX(INDIRECT(\"dProduct[ProductName]\"),ROUNDUP(COLUMNS($G:G)/3,0))","v":"ขนมปังหมูหยองน้ำสลัด"},null,null,{"$f":"INDEX(INDIRECT(\"dProduct[ProductName]\"),ROUNDUP(COLUMNS($G:J)/3,0))","v":"ขนมปังหมูหยองน้ำพริกเผา"},null,null,{"$f":"INDEX(INDIRECT(\"dProduct[ProductName]\"),ROUNDUP(COLUMNS($G:M)/3,0))","v":"ขนมปังไก่หยองน้ำสลัด"},null,null,{"$f":"INDEX(INDIRECT(\"dProduct[ProductName]\"),ROUNDUP(COLUMNS($G:P)/3,0))","v":"ขนมปังไส้ครีมสลัด"},null,null,{"$f":"INDEX(INDIRECT(\"dProduct[ProductName]\"),ROUNDUP(COLUMNS($G:S)/3,0))","v":"ขนมปังเนยสด"},null,null,{"$f":"INDEX(INDIRECT(\"dProduct[ProductName]\"),ROUNDUP(COLUMNS($G:V)/3,0))","v":"ขนมปังไส้สังขยาเล็ก"},null,null,{"$f":"INDEX(INDIRECT(\"dProduct[ProductName]\"),ROUNDUP(COLUMNS($G:Y)/3,0))","v":"ขนมปังไส้เผือก"},null,null,{"$f":"INDEX(INDIRECT(\"dProduct[ProductName]\"),ROUNDUP(COLUMNS($G:AB)/3,0))","v":"ขนมปังไส้ถั่วแดง"},null,null,{"$f":"INDEX(INDIRECT(\"dProduct[ProductName]\"),ROUNDUP(COLUMNS($G:AE)/3,0))","v":"ขนมปังไส้ถั่วดำ"},null,null,{"$f":"INDEX(INDIRECT(\"dProduct[ProductName]\"),ROUNDUP(COLUMNS($G:AH)/3,0))","v":"ขนมปังไส้มันม่วง"},null,null,{"$f":"INDEX(INDIRECT(\"dProduct[ProductName]\"),ROUNDUP(COLUMNS($G:AK)/3,0))","v":"เค้กกล้วยหอม"},null,null,{"$f":"INDEX(INDIRECT(\"dProduct[ProductName]\"),ROUNDUP(COLUMNS($G:AN)/3,0))","v":"เค้กบัตเตอร์"},null,null,{"$f":"INDEX(INDIRECT(\"dProduct[ProductName]\"),ROUNDUP(COLUMNS($G:AQ)/3,0))","v":"ขนมปังโรลถั่วแดง"},null,null,{"$f":"INDEX(INDIRECT(\"dProduct[ProductName]\"),ROUNDUP(COLUMNS($G:AT)/3,0))","v":"ขนมปังไส้สังขยาใหญ่"},null,null,{"$f":"INDEX(INDIRECT(\"dProduct[ProductName]\"),ROUNDUP(COLUMNS($G:AW)/3,0))","v":"ขนมปังชนิดแผ่น(480กรัม)"},null,null,{"$f":"INDEX(INDIRECT(\"dProduct[ProductName]\"),ROUNDUP(COLUMNS($G:AZ)/3,0))","v":"โมจิไส้ถั่ว"},null,null,{"$f":"INDEX(INDIRECT(\"dProduct[ProductName]\"),ROUNDUP(COLUMNS($G:BC)/3,0))","v":"โมจิไส้เผือก"},null,null,{"$f":"INDEX(INDIRECT(\"dProduct[ProductName]\"),ROUNDUP(COLUMNS($G:BF)/3,0))","v":"โมจิไส้ถั่วไข่เค็ม"},null,null,{"$f":"INDEX(INDIRECT(\"dProduct[ProductName]\"),ROUNDUP(COLUMNS($G:BI)/3,0))","v":"ขนมปังพิซซ่า"},null,null,{"$f":"INDEX(INDIRECT(\"dProduct[ProductName]\"),ROUNDUP(COLUMNS($G:BL)/3,0))","v":"ขนมปังพิซซ่าปูอัดแฮม"},null,null,{"$f":"INDEX(INDIRECT(\"dProduct[ProductName]\"),ROUNDUP(COLUMNS($G:BO)/3,0))","v":"ขนมปังไส้กรอก"},null,null,{"$f":"INDEX(INDIRECT(\"dProduct[ProductName]\"),ROUNDUP(COLUMNS($G:BR)/3,0))","v":"ขนมก้านบัว"},null,null,{"$f":"INDEX(INDIRECT(\"dProduct[ProductName]\"),ROUNDUP(COLUMNS($G:BU)/3,0))","v":"พายสับปะรด"},null,null,{"$f":"INDEX(INDIRECT(\"dProduct[ProductName]\"),ROUNDUP(COLUMNS($G:BX)/3,0))","v":"พายไส้มะพร้าว"},null,null,{"$f":"INDEX(INDIRECT(\"dProduct[ProductName]\"),ROUNDUP(COLUMNS($G:CA)/3,0))","v":"ขนมปังโรลมันเทศ"},null,null,{"$f":"INDEX(INDIRECT(\"dProduct[ProductName]\"),ROUNDUP(COLUMNS($G:CD)/3,0))","v":"ขนมปังไส้ครีมสลัดน้ำพริกเผา"},null,null,{"$f":"INDEX(INDIRECT(\"dProduct[ProductName]\"),ROUNDUP(COLUMNS($G:CG)/3,0))","v":"ขนมปังไส้สังขยาไข่"},null,null,{"$f":"INDEX(INDIRECT(\"dProduct[ProductName]\"),ROUNDUP(COLUMNS($G:CJ)/3,0))","v":"ขนมปังไส้สังขยามะพร้าว"},null,null,{"$f":"INDEX(INDIRECT(\"dProduct[ProductName]\"),ROUNDUP(COLUMNS($G:CM)/3,0))","v":"ขนมปังไส้ครีมชาไทย"},null,null,{"$f":"INDEX(INDIRECT(\"dProduct[ProductName]\"),ROUNDUP(COLUMNS($G:CP)/3,0))","v":"ขนมปังโรลมันม่วง"},null,null,{"$f":"INDEX(INDIRECT(\"dProduct[ProductName]\"),ROUNDUP(COLUMNS($G:CS)/3,0))","v":"ขนมปังโรลช็อกโกแลต"},null,null,{"$f":"INDEX(INDIRECT(\"dProduct[ProductName]\"),ROUNDUP(COLUMNS($G:CV)/3,0))","v":"ขนมปังชนิดแผ่น(155กรัม)"},null,null,{"$f":"INDEX(INDIRECT(\"dProduct[ProductName]\"),ROUNDUP(COLUMNS($G:CY)/3,0))","v":"ขนมปังโรลเผือก"},null,null,{"$f":"INDEX(INDIRECT(\"dProduct[ProductName]\"),ROUNDUP(COLUMNS($G:DB)/3,0))","v":"ขนมปังไก่หยองน้ำสลัด Mini"},null,null,{"$f":"INDEX(INDIRECT(\"dProduct[ProductName]\"),ROUNDUP(COLUMNS($G:DE)/3,0))","v":"ขนมปังไส้ช็อกโกแลต"},null,null,{"$f":"INDEX(INDIRECT(\"dProduct[ProductName]\"),ROUNDUP(COLUMNS($G:DH)/3,0))","v":"ขนมปังไส้ครีมสังขยาไข่"},null,null,{"$f":"INDEX(INDIRECT(\"dProduct[ProductName]\"),ROUNDUP(COLUMNS($G:DK)/3,0))","v":"ขนมปังพิซซ่าฮาวายเอี้ยน"},null,null,{"$f":"INDEX(INDIRECT(\"dProduct[ProductName]\"),ROUNDUP(COLUMNS($G:DN)/3,0))","v":"ครัวซองต์หมูหยองน้ำสลัด"},null,null,{"$f":"INDEX(INDIRECT(\"dProduct[ProductName]\"),ROUNDUP(COLUMNS($G:DQ)/3,0))","v":"แพนเบรดไส้เผือก"},null,null,{"$f":"INDEX(INDIRECT(\"dProduct[ProductName]\"),ROUNDUP(COLUMNS($G:DT)/3,0))","v":"แพนเบรดไส้ถั่วแดง"},null,null,{"$f":"INDEX(INDIRECT(\"dProduct[ProductName]\"),ROUNDUP(COLUMNS($G:DW)/3,0))","v":"ขนมปังกรอบเนยน้ำตาล(30กรัม)"},null,null,{"$f":"INDEX(INDIRECT(\"dProduct[ProductName]\"),ROUNDUP(COLUMNS($G:DZ)/3,0))","v":"ขนมปังชนิดแผ่นโฮลวีต"},null,null,{"$f":"INDEX(INDIRECT(\"dProduct[ProductName]\"),ROUNDUP(COLUMNS($G:EC)/3,0))","v":"เค้กโรลใบเตย"},null,null,{"$f":"INDEX(INDIRECT(\"dProduct[ProductName]\"),ROUNDUP(COLUMNS($G:EF)/3,0))","v":"ขนมโมจิไส้ถั่วดำ"},null,null,{"$f":"INDEX(INDIRECT(\"dProduct[ProductName]\"),ROUNDUP(COLUMNS($G:EI)/3,0))","v":"ครัวซองต์ไส้กรอกชีส"},null,null,{"$f":"INDEX(INDIRECT(\"dProduct[ProductName]\"),ROUNDUP(COLUMNS($G:EL)/3,0))","v":"ขนมเปี๊ยะไส้ถั่ว"},null,null,{"$f":"INDEX(INDIRECT(\"dProduct[ProductName]\"),ROUNDUP(COLUMNS($G:EO)/3,0))","v":"ขนมเปี๊ยะไส้ฟัก"},null,null,{"$f":"INDEX(INDIRECT(\"dProduct[ProductName]\"),ROUNDUP(COLUMNS($G:ER)/3,0))","v":"มังกี้เค้ก"},null,null,"มูลค่าสินค้า",null,"ภาษี","รวมยอดขาย"]
[null,null,null,null,null,"ราคาขาย",{"$f":"IF(G$7=0,0,INDEX(Price_List,ROUNDUP(COLUMNS($G:G)/3,0)))","v":20},null,null,{"$f":"IF(J$7=0,0,INDEX(Price_List,ROUNDUP(COLUMNS($G:J)/3,0)))","v":20},null,null,{"$f":"IF(M$7=0,0,INDEX(Price_List,ROUNDUP(COLUMNS($G:M)/3,0)))","v":20},null,null,{"$f":"IF(P$7=0,0,INDEX(Price_List,ROUNDUP(COLUMNS($G:P)/3,0)))","v":15},null,null,{"$f":"IF(S$7=0,0,INDEX(Price_List,ROUNDUP(COLUMNS($G:S)/3,0)))","v":15},null,null,{"$f":"IF(V$7=0,0,INDEX(Price_List,ROUNDUP(COLUMNS($G:V)/3,0)))","v":10},null,null,{"$f":"IF(Y$7=0,0,INDEX(Price_List,ROUNDUP(COLUMNS($G:Y)/3,0)))","v":10},null,null,{"$f":"IF(AB$7=0,0,INDEX(Price_List,ROUNDUP(COLUMNS($G:AB)/3,0)))","v":10},null,null,{"$f":"IF(AE$7=0,0,INDEX(Price_List,ROUNDUP(COLUMNS($G:AE)/3,0)))","v":10},null,null,{"$f":"IF(AH$7=0,0,INDEX(Price_List,ROUNDUP(COLUMNS($G:AH)/3,0)))","v":10},null,null,{"$f":"IF(AK$7=0,0,INDEX(Price_List,ROUNDUP(COLUMNS($G:AK)/3,0)))","v":15},null,null,{"$f":"IF(AN$7=0,0,INDEX(Price_List,ROUNDUP(COLUMNS($G:AN)/3,0)))","v":15},null,null,{"$f":"IF(AQ$7=0,0,INDEX(Price_List,ROUNDUP(COLUMNS($G:AQ)/3,0)))","v":15},null,null,{"$f":"IF(AT$7=0,0,INDEX(Price_List,ROUNDUP(COLUMNS($G:AT)/3,0)))","v":15},null,null,{"$f":"IF(AW$7=0,0,INDEX(Price_List,ROUNDUP(COLUMNS($G:AW)/3,0)))","v":42},null,null,{"$f":"IF(AZ$7=0,0,INDEX(Price_List,ROUNDUP(COLUMNS($G:AZ)/3,0)))","v":12},null,null,{"$f":"IF(BC$7=0,0,INDEX(Price_List,ROUNDUP(COLUMNS($G:BC)/3,0)))","v":12},null,null,{"$f":"IF(BF$7=0,0,INDEX(Price_List,ROUNDUP(COLUMNS($G:BF)/3,0)))","v":15},null,null,{"$f":"IF(BI$7=0,0,INDEX(Price_List,ROUNDUP(COLUMNS($G:BI)/3,0)))","v":20},null,null,{"$f":"IF(BL$7=0,0,INDEX(Price_List,ROUNDUP(COLUMNS($G:BL)/3,0)))","v":20},null,null,{"$f":"IF(BO$7=0,0,INDEX(Price_List,ROUNDUP(COLUMNS($G:BO)/3,0)))","v":20},null,null,{"$f":"IF(BR$7=0,0,INDEX(Price_List,ROUNDUP(COLUMNS($G:BR)/3,0)))","v":15},null,null,{"$f":"IF(BU$7=0,0,INDEX(Price_List,ROUNDUP(COLUMNS($G:BU)/3,0)))","v":20},null,null,{"$f":"IF(BX$7=0,0,INDEX(Price_List,ROUNDUP(COLUMNS($G:BX)/3,0)))","v":20},null,null,{"$f":"IF(CA$7=0,0,INDEX(Price_List,ROUNDUP(COLUMNS($G:CA)/3,0)))","v":15},null,null,{"$f":"IF(CD$7=0,0,INDEX(Price_List,ROUNDUP(COLUMNS($G:CD)/3,0)))","v":15},null,null,{"$f":"IF(CG$7=0,0,INDEX(Price_List,ROUNDUP(COLUMNS($G:CG)/3,0)))","v":20},null,null,{"$f":"IF(CJ$7=0,0,INDEX(Price_List,ROUNDUP(COLUMNS($G:CJ)/3,0)))","v":20},null,null,{"$f":"IF(CM$7=0,0,INDEX(Price_List,ROUNDUP(COLUMNS($G:CM)/3,0)))","v":10},null,null,{"$f":"IF(CP$7=0,0,INDEX(Price_List,ROUNDUP(COLUMNS($G:CP)/3,0)))","v":15},null,null,{"$f":"IF(CS$7=0,0,INDEX(Price_List,ROUNDUP(COLUMNS($G:CS)/3,0)))","v":15},null,null,{"$f":"IF(CV$7=0,0,INDEX(Price_List,ROUNDUP(COLUMNS($G:CV)/3,0)))","v":16},null,null,{"$f":"IF(CY$7=0,0,INDEX(Price_List,ROUNDUP(COLUMNS($G:CY)/3,0)))","v":15},null,null,{"$f":"IF(DB$7=0,0,INDEX(Price_List,ROUNDUP(COLUMNS($G:DB)/3,0)))","v":15},null,null,{"$f":"IF(DE$7=0,0,INDEX(Price_List,ROUNDUP(COLUMNS($G:DE)/3,0)))","v":10},null,null,{"$f":"IF(DH$7=0,0,INDEX(Price_List,ROUNDUP(COLUMNS($G:DH)/3,0)))","v":10},null,null,{"$f":"IF(DK$7=0,0,INDEX(Price_List,ROUNDUP(COLUMNS($G:DK)/3,0)))","v":20},null,null,{"$f":"IF(DN$7=0,0,INDEX(Price_List,ROUNDUP(COLUMNS($G:DN)/3,0)))","v":20},null,null,{"$f":"IF(DQ$7=0,0,INDEX(Price_List,ROUNDUP(COLUMNS($G:DQ)/3,0)))","v":15},null,null,{"$f":"IF(DT$7=0,0,INDEX(Price_List,ROUNDUP(COLUMNS($G:DT)/3,0)))","v":15},null,null,{"$f":"IF(DW$7=0,0,INDEX(Price_List,ROUNDUP(COLUMNS($G:DW)/3,0)))","v":12},null,null,{"$f":"IF(DZ$7=0,0,INDEX(Price_List,ROUNDUP(COLUMNS($G:DZ)/3,0)))","v":18},null,null,{"$f":"IF(EC$7=0,0,INDEX(Price_List,ROUNDUP(COLUMNS($G:EC)/3,0)))","v":12},null,null,{"$f":"IF(EF$7=0,0,INDEX(Price_List,ROUNDUP(COLUMNS($G:EF)/3,0)))","v":12},null,null,{"$f":"IF(EI$7=0,0,INDEX(Price_List,ROUNDUP(COLUMNS($G:EI)/3,0)))","v":25},null,null,{"$f":"IF(EL$7=0,0,INDEX(Price_List,ROUNDUP(COLUMNS($G:EL)/3,0)))","v":12},null,null,{"$f":"IF(EO$7=0,0,INDEX(Price_List,ROUNDUP(COLUMNS($G:EO)/3,0)))","v":12},null,null,{"$f":"IF(ER$7=0,0,INDEX(Price_List,ROUNDUP(COLUMNS($G:ER)/3,0)))","v":12},null,null,"เงินเชื่อ","เงินสด"]
[null,null,null,null,null,"คงเหลือ(ตามบัญชี)",{"$f":"IF(G$7=0,0,INDEX(INDIRECT(Order_Rng),ROUNDUP(COLUMNS($G:G)/3,0)))","v":0},null,null,{"$f":"IF(J$7=0,0,INDEX(INDIRECT(Order_Rng),ROUNDUP(COLUMNS($G:J)/3,0)))","v":0},null,null,{"$f":"IF(M$7=0,0,INDEX(INDIRECT(Order_Rng),ROUNDUP(COLUMNS($G:M)/3,0)))","v":0},null,null,{"$f":"IF(P$7=0,0,INDEX(INDIRECT(Order_Rng),ROUNDUP(COLUMNS($G:P)/3,0)))","v":0},null,null,{"$f":"IF(S$7=0,0,INDEX(INDIRECT(Order_Rng),ROUNDUP(COLUMNS($G:S)/3,0)))","v":0},null,null,{"$f":"IF(V$7=0,0,INDEX(INDIRECT(Order_Rng),ROUNDUP(COLUMNS($G:V)/3,0)))","v":0},null,null,{"$f":"IF(Y$7=0,0,INDEX(INDIRECT(Order_Rng),ROUNDUP(COLUMNS($G:Y)/3,0)))","v":0},null,null,{"$f":"IF(AB$7=0,0,INDEX(INDIRECT(Order_Rng),ROUNDUP(COLUMNS($G:AB)/3,0)))","v":0},null,null,{"$f":"IF(AE$7=0,0,INDEX(INDIRECT(Order_Rng),ROUNDUP(COLUMNS($G:AE)/3,0)))","v":0},null,null,{"$f":"IF(AH$7=0,0,INDEX(INDIRECT(Order_Rng),ROUNDUP(COLUMNS($G:AH)/3,0)))","v":0},null,null,{"$f":"IF(AK$7=0,0,INDEX(INDIRECT(Order_Rng),ROUNDUP(COLUMNS($G:AK)/3,0)))","v":0},null,null,{"$f":"IF(AN$7=0,0,INDEX(INDIRECT(Order_Rng),ROUNDUP(COLUMNS($G:AN)/3,0)))","v":0},null,null,{"$f":"IF(AQ$7=0,0,INDEX(INDIRECT(Order_Rng),ROUNDUP(COLUMNS($G:AQ)/3,0)))","v":0},null,null,{"$f":"IF(AT$7=0,0,INDEX(INDIRECT(Order_Rng),ROUNDUP(COLUMNS($G:AT)/3,0)))","v":0},null,null,{"$f":"IF(AW$7=0,0,INDEX(INDIRECT(Order_Rng),ROUNDUP(COLUMNS($G:AW)/3,0)))","v":0},null,null,{"$f":"IF(AZ$7=0,0,INDEX(INDIRECT(Order_Rng),ROUNDUP(COLUMNS($G:AZ)/3,0)))","v":0},null,null,{"$f":"IF(BC$7=0,0,INDEX(INDIRECT(Order_Rng),ROUNDUP(COLUMNS($G:BC)/3,0)))","v":0},null,null,{"$f":"IF(BF$7=0,0,INDEX(INDIRECT(Order_Rng),ROUNDUP(COLUMNS($G:BF)/3,0)))","v":0},null,null,{"$f":"IF(BI$7=0,0,INDEX(INDIRECT(Order_Rng),ROUNDUP(COLUMNS($G:BI)/3,0)))","v":0},null,null,{"$f":"IF(BL$7=0,0,INDEX(INDIRECT(Order_Rng),ROUNDUP(COLUMNS($G:BL)/3,0)))","v":0},null,null,{"$f":"IF(BO$7=0,0,INDEX(INDIRECT(Order_Rng),ROUNDUP(COLUMNS($G:BO)/3,0)))","v":0},null,null,{"$f":"IF(BR$7=0,0,INDEX(INDIRECT(Order_Rng),ROUNDUP(COLUMNS($G:BR)/3,0)))","v":0},null,null,{"$f":"IF(BU$7=0,0,INDEX(INDIRECT(Order_Rng),ROUNDUP(COLUMNS($G:BU)/3,0)))","v":0},null,null,{"$f":"IF(BX$7=0,0,INDEX(INDIRECT(Order_Rng),ROUNDUP(COLUMNS($G:BX)/3,0)))","v":0},null,null,{"$f":"IF(CA$7=0,0,INDEX(INDIRECT(Order_Rng),ROUNDUP(COLUMNS($G:CA)/3,0)))","v":0},null,null,{"$f":"IF(CD$7=0,0,INDEX(INDIRECT(Order_Rng),ROUNDUP(COLUMNS($G:CD)/3,0)))","v":0},null,null,{"$f":"IF(CG$7=0,0,INDEX(INDIRECT(Order_Rng),ROUNDUP(COLUMNS($G:CG)/3,0)))","v":0},null,null,{"$f":"IF(CJ$7=0,0,INDEX(INDIRECT(Order_Rng),ROUNDUP(COLUMNS($G:CJ)/3,0)))","v":0},null,null,{"$f":"IF(CM$7=0,0,INDEX(INDIRECT(Order_Rng),ROUNDUP(COLUMNS($G:CM)/3,0)))","v":0},null,null,{"$f":"IF(CP$7=0,0,INDEX(INDIRECT(Order_Rng),ROUNDUP(COLUMNS($G:CP)/3,0)))","v":0},null,null,{"$f":"IF(CS$7=0,0,INDEX(INDIRECT(Order_Rng),ROUNDUP(COLUMNS($G:CS)/3,0)))","v":0},null,null,{"$f":"IF(CV$7=0,0,INDEX(INDIRECT(Order_Rng),ROUNDUP(COLUMNS($G:CV)/3,0)))","v":0},null,null,{"$f":"IF(CY$7=0,0,INDEX(INDIRECT(Order_Rng),ROUNDUP(COLUMNS($G:CY)/3,0)))","v":0},null,null,{"$f":"IF(DB$7=0,0,INDEX(INDIRECT(Order_Rng),ROUNDUP(COLUMNS($G:DB)/3,0)))","v":0},null,null,{"$f":"IF(DE$7=0,0,INDEX(INDIRECT(Order_Rng),ROUNDUP(COLUMNS($G:DE)/3,0)))","v":0},null,null,{"$f":"IF(DH$7=0,0,INDEX(INDIRECT(Order_Rng),ROUNDUP(COLUMNS($G:DH)/3,0)))","v":0},null,null,{"$f":"IF(DK$7=0,0,INDEX(INDIRECT(Order_Rng),ROUNDUP(COLUMNS($G:DK)/3,0)))","v":0},null,null,{"$f":"IF(DN$7=0,0,INDEX(INDIRECT(Order_Rng),ROUNDUP(COLUMNS($G:DN)/3,0)))","v":0},null,null,{"$f":"IF(DQ$7=0,0,INDEX(INDIRECT(Order_Rng),ROUNDUP(COLUMNS($G:DQ)/3,0)))","v":0},null,null,{"$f":"IF(DT$7=0,0,INDEX(INDIRECT(Order_Rng),ROUNDUP(COLUMNS($G:DT)/3,0)))","v":0},null,null,{"$f":"IF(DW$7=0,0,INDEX(INDIRECT(Order_Rng),ROUNDUP(COLUMNS($G:DW)/3,0)))","v":0},null,null,{"$f":"IF(DZ$7=0,0,INDEX(INDIRECT(Order_Rng),ROUNDUP(COLUMNS($G:DZ)/3,0)))","v":0},null,null,{"$f":"IF(EC$7=0,0,INDEX(INDIRECT(Order_Rng),ROUNDUP(COLUMNS($G:EC)/3,0)))","v":0},null,null,{"$f":"IF(EF$7=0,0,INDEX(INDIRECT(Order_Rng),ROUNDUP(COLUMNS($G:EF)/3,0)))","v":0},null,null,{"$f":"IF(EI$7=0,0,INDEX(INDIRECT(Order_Rng),ROUNDUP(COLUMNS($G:EI)/3,0)))","v":0},null,null,{"$f":"IF(EL$7=0,0,INDEX(INDIRECT(Order_Rng),ROUNDUP(COLUMNS($G:EL)/3,0)))","v":0},null,null,{"$f":"IF(EO$7=0,0,INDEX(INDIRECT(Order_Rng),ROUNDUP(COLUMNS($G:EO)/3,0)))","v":0},null,null,{"$f":"IF(ER$7=0,0,INDEX(INDIRECT(Order_Rng),ROUNDUP(COLUMNS($G:ER)/3,0)))","v":0}]
[{"$f":"IF(OR($B10=\"\",COUNTIF($B$10:$B10,$B10)>1,LEN(TRIM($B10))<>10,ISNUMBER(--MID(TRIM($B10),5,1))),\"-\",MAX(COUNT($A$9:$A9)+1))","v":"-"}]
[{"$f":"IF(OR($B11=\"\",COUNTIF($B$10:$B11,$B11)>1,LEN(TRIM($B11))<>10,ISNUMBER(--MID(TRIM($B11),5,1))),\"-\",MAX(COUNT($A$9:$A10)+1))","v":"-"},null,null,null,{"$f":"IF(D11=\"\",\"\",D11-D10)","v":""}]
[{"$f":"IF(OR($B12=\"\",COUNTIF($B$10:$B12,$B12)>1,LEN(TRIM($B12))<>10,ISNUMBER(--MID(TRIM($B12),5,1))),\"-\",MAX(COUNT($A$9:$A11)+1))","v":"-"},null,null,null,{"$f":"IF(D12=\"\",\"\",D12-D11)","v":""}]
[{"$f":"IF(OR($B13=\"\",COUNTIF($B$10:$B13,$B13)>1,LEN(TRIM($B13))<>10,ISNUMBER(--MID(TRIM($B13),5,1))),\"-\",MAX(COUNT($A$9:$A12)+1))","v":"-"},null,null,null,""]
[{"$f":"IF(OR($B14=\"\",COUNTIF($B$10:$B14,$B14)>1,LEN(TRIM($B14))<>10,ISNUMBER(--MID(TRIM($B14),5,1))),\"-\",MAX(COUNT($A$9:$A13)+1))","v":"-"},null,null,null,""]
[{"$f":"IF(OR($B15=\"\",COUNTIF($B$10:$B15,$B15)>1,LEN(TRIM($B15))<>10,ISNUMBER(--MID(TRIM($B15),5,1))),\"-\",MAX(COUNT($A$9:$A14)+1))","v":"-"},null,null,null,""]
[{"$f":"IF(OR($B16=\"\",COUNTIF($B$10:$B16,$B16)>1,LEN(TRIM($B16))<>10,ISNUMBER(--MID(TRIM($B16),5,1))),\"-\",MAX(COUNT($A$9:$A15)+1))","v":"-"},null,null,null,""]
[{"$f":"IF(OR($B17=\"\",COUNTIF($B$10:$B17,$B17)>1,LEN(TRIM($B17))<>10,ISNUMBER(--MID(TRIM($B17),5,1))),\"-\",MAX(COUNT($A$9:$A16)+1))","v":"-"},null,null,null,""]
[{"$f":"IF(OR($B18=\"\",COUNTIF($B$10:$B18,$B18)>1,LEN(TRIM($B18))<>10,ISNUMBER(--MID(TRIM($B18),5,1))),\"-\",MAX(COUNT($A$9:$A17)+1))","v":"-"},null,null,null,""]
[{"$f":"IF(OR($B19=\"\",COUNTIF($B$10:$B19,$B19)>1,LEN(TRIM($B19))<>10,ISNUMBER(--MID(TRIM($B19),5,1))),\"-\",MAX(COUNT($A$9:$A18)+1))","v":"-"},null,null,null,""]
[{"$f":"IF(OR($B20=\"\",COUNTIF($B$10:$B20,$B20)>1,LEN(TRIM($B20))<>10,ISNUMBER(--MID(TRIM($B20),5,1))),\"-\",MAX(COUNT($A$9:$A19)+1))","v":"-"},null,null,null,""]
[{"$f":"IF(OR($B21=\"\",COUNTIF($B$10:$B21,$B21)>1,LEN(TRIM($B21))<>10,ISNUMBER(--MID(TRIM($B21),5,1))),\"-\",MAX(COUNT($A$9:$A20)+1))","v":"-"},null,null,null,""]
[{"$f":"IF(OR($B22=\"\",COUNTIF($B$10:$B22,$B22)>1,LEN(TRIM($B22))<>10,ISNUMBER(--MID(TRIM($B22),5,1))),\"-\",MAX(COUNT($A$9:$A21)+1))","v":"-"},null,null,null,""]
[{"$f":"IF(OR($B23=\"\",COUNTIF($B$10:$B23,$B23)>1,LEN(TRIM($B23))<>10,ISNUMBER(--MID(TRIM($B23),5,1))),\"-\",MAX(COUNT($A$9:$A22)+1))","v":"-"},null,null,null,""]
[{"$f":"IF(OR($B24=\"\",COUNTIF($B$10:$B24,$B24)>1,LEN(TRIM($B24))<>10,ISNUMBER(--MID(TRIM($B24),5,1))),\"-\",MAX(COUNT($A$9:$A23)+1))","v":"-"},null,null,null,""]
[{"$f":"IF(OR($B25=\"\",COUNTIF($B$10:$B25,$B25)>1,LEN(TRIM($B25))<>10,ISNUMBER(--MID(TRIM($B25),5,1))),\"-\",MAX(COUNT($A$9:$A24)+1))","v":"-"},null,null,null,""]
[{"$f":"IF(OR($B26=\"\",COUNTIF($B$10:$B26,$B26)>1,LEN(TRIM($B26))<>10,ISNUMBER(--MID(TRIM($B26),5,1))),\"-\",MAX(COUNT($A$9:$A25)+1))","v":"-"},null,null,null,""]
[{"$f":"IF(OR($B27=\"\",COUNTIF($B$10:$B27,$B27)>1,LEN(TRIM($B27))<>10,ISNUMBER(--MID(TRIM($B27),5,1))),\"-\",MAX(COUNT($A$9:$A26)+1))","v":"-"},null,null,null,""]
[{"$f":"IF(OR($B28=\"\",COUNTIF($B$10:$B28,$B28)>1,LEN(TRIM($B28))<>10,ISNUMBER(--MID(TRIM($B28),5,1))),\"-\",MAX(COUNT($A$9:$A27)+1))","v":"-"},null,null,null,""]
[{"$f":"IF(OR($B29=\"\",COUNTIF($B$10:$B29,$B29)>1,LEN(TRIM($B29))<>10,ISNUMBER(--MID(TRIM($B29),5,1))),\"-\",MAX(COUNT($A$9:$A28)+1))","v":"-"},null,null,null,""]
[{"$f":"IF(OR($B30=\"\",COUNTIF($B$10:$B30,$B30)>1,LEN(TRIM($B30))<>10,ISNUMBER(--MID(TRIM($B30),5,1))),\"-\",MAX(COUNT($A$9:$A29)+1))","v":"-"},null,null,null,""]
[{"$f":"IF(OR($B31=\"\",COUNTIF($B$10:$B31,$B31)>1,LEN(TRIM($B31))<>10,ISNUMBER(--MID(TRIM($B31),5,1))),\"-\",MAX(COUNT($A$9:$A30)+1))","v":"-"},null,null,null,""]
[{"$f":"IF(OR($B32=\"\",COUNTIF($B$10:$B32,$B32)>1,LEN(TRIM($B32))<>10,ISNUMBER(--MID(TRIM($B32),5,1))),\"-\",MAX(COUNT($A$9:$A31)+1))","v":"-"},null,null,null,""]
[{"$f":"IF(OR($B33=\"\",COUNTIF($B$10:$B33,$B33)>1,LEN(TRIM($B33))<>10,ISNUMBER(--MID(TRIM($B33),5,1))),\"-\",MAX(COUNT($A$9:$A32)+1))","v":"-"},null,null,null,""]
[{"$f":"IF(OR($B34=\"\",COUNTIF($B$10:$B34,$B34)>1,LEN(TRIM($B34))<>10,ISNUMBER(--MID(TRIM($B34),5,1))),\"-\",MAX(COUNT($A$9:$A33)+1))","v":"-"},null,null,null,""]
[{"$f":"IF(OR($B35=\"\",COUNTIF($B$10:$B35,$B35)>1,LEN(TRIM($B35))<>10,ISNUMBER(--MID(TRIM($B35),5,1))),\"-\",MAX(COUNT($A$9:$A34)+1))","v":"-"},null,null,null,""]
[{"$f":"IF(OR($B36=\"\",COUNTIF($B$10:$B36,$B36)>1,LEN(TRIM($B36))<>10,ISNUMBER(--MID(TRIM($B36),5,1))),\"-\",MAX(COUNT($A$9:$A35)+1))","v":"-"},null,null,null,""]
[{"$f":"IF(OR($B37=\"\",COUNTIF($B$10:$B37,$B37)>1,LEN(TRIM($B37))<>10,ISNUMBER(--MID(TRIM($B37),5,1))),\"-\",MAX(COUNT($A$9:$A36)+1))","v":"-"},null,null,null,""]
[{"$f":"IF(OR($B38=\"\",COUNTIF($B$10:$B38,$B38)>1,LEN(TRIM($B38))<>10,ISNUMBER(--MID(TRIM($B38),5,1))),\"-\",MAX(COUNT($A$9:$A37)+1))","v":"-"},null,null,null,""]
[{"$f":"IF(OR($B39=\"\",COUNTIF($B$10:$B39,$B39)>1,LEN(TRIM($B39))<>10,ISNUMBER(--MID(TRIM($B39),5,1))),\"-\",MAX(COUNT($A$9:$A38)+1))","v":"-"},null,null,null,""]
[{"$f":"IF(OR($B40=\"\",COUNTIF($B$10:$B40,$B40)>1,LEN(TRIM($B40))<>10,ISNUMBER(--MID(TRIM($B40),5,1))),\"-\",MAX(COUNT($A$9:$A39)+1))","v":"-"},null,null,null,""]
[{"$f":"IF(OR($B41=\"\",COUNTIF($B$10:$B41,$B41)>1,LEN(TRIM($B41))<>10,ISNUMBER(--MID(TRIM($B41),5,1))),\"-\",MAX(COUNT($A$9:$A40)+1))","v":"-"},null,null,null,""]
[{"$f":"IF(OR($B42=\"\",COUNTIF($B$10:$B42,$B42)>1,LEN(TRIM($B42))<>10,ISNUMBER(--MID(TRIM($B42),5,1))),\"-\",MAX(COUNT($A$9:$A41)+1))","v":"-"},null,null,null,""]
[{"$f":"IF(OR($B43=\"\",COUNTIF($B$10:$B43,$B43)>1,LEN(TRIM($B43))<>10,ISNUMBER(--MID(TRIM($B43),5,1))),\"-\",MAX(COUNT($A$9:$A42)+1))","v":"-"},null,null,null,""]
[{"$f":"IF(OR($B44=\"\",COUNTIF($B$10:$B44,$B44)>1,LEN(TRIM($B44))<>10,ISNUMBER(--MID(TRIM($B44),5,1))),\"-\",MAX(COUNT($A$9:$A43)+1))","v":"-"},null,null,null,""]
[{"$f":"IF(OR($B45=\"\",COUNTIF($B$10:$B45,$B45)>1,LEN(TRIM($B45))<>10,ISNUMBER(--MID(TRIM($B45),5,1))),\"-\",MAX(COUNT($A$9:$A44)+1))","v":"-"},null,null,null,""]
[{"$f":"IF(OR($B46=\"\",COUNTIF($B$10:$B46,$B46)>1,LEN(TRIM($B46))<>10,ISNUMBER(--MID(TRIM($B46),5,1))),\"-\",MAX(COUNT($A$9:$A45)+1))","v":"-"},null,null,null,""]
[{"$f":"IF(OR($B47=\"\",COUNTIF($B$10:$B47,$B47)>1,LEN(TRIM($B47))<>10,ISNUMBER(--MID(TRIM($B47),5,1))),\"-\",MAX(COUNT($A$9:$A46)+1))","v":"-"},null,null,null,""]
[{"$f":"IF(OR($B48=\"\",COUNTIF($B$10:$B48,$B48)>1,LEN(TRIM($B48))<>10,ISNUMBER(--MID(TRIM($B48),5,1))),\"-\",MAX(COUNT($A$9:$A47)+1))","v":"-"},null,null,null,""]
[{"$f":"IF(OR($B49=\"\",COUNTIF($B$10:$B49,$B49)>1,LEN(TRIM($B49))<>10,ISNUMBER(--MID(TRIM($B49),5,1))),\"-\",MAX(COUNT($A$9:$A48)+1))","v":"-"},null,null,null,""]
[{"$f":"IF(OR($B50=\"\",COUNTIF($B$10:$B50,$B50)>1,LEN(TRIM($B50))<>10,ISNUMBER(--MID(TRIM($B50),5,1))),\"-\",MAX(COUNT($A$9:$A49)+1))","v":"-"},null,null,null,""]
[{"$f":"IF(OR($B51=\"\",COUNTIF($B$10:$B51,$B51)>1,LEN(TRIM($B51))<>10,ISNUMBER(--MID(TRIM($B51),5,1))),\"-\",MAX(COUNT($A$9:$A50)+1))","v":"-"},null,null,null,""]
[{"$f":"IF(OR($B52=\"\",COUNTIF($B$10:$B52,$B52)>1,LEN(TRIM($B52))<>10,ISNUMBER(--MID(TRIM($B52),5,1))),\"-\",MAX(COUNT($A$9:$A51)+1))","v":"-"},null,null,null,""]
[{"$f":"IF(OR($B53=\"\",COUNTIF($B$10:$B53,$B53)>1,LEN(TRIM($B53))<>10,ISNUMBER(--MID(TRIM($B53),5,1))),\"-\",MAX(COUNT($A$9:$A52)+1))","v":"-"},null,null,null,""]
[{"$f":"IF(OR($B54=\"\",COUNTIF($B$10:$B54,$B54)>1,LEN(TRIM($B54))<>10,ISNUMBER(--MID(TRIM($B54),5,1))),\"-\",MAX(COUNT($A$9:$A53)+1))","v":"-"},null,null,null,""]
[{"$f":"IF(OR($B55=\"\",COUNTIF($B$10:$B55,$B55)>1,LEN(TRIM($B55))<>10,ISNUMBER(--MID(TRIM($B55),5,1))),\"-\",MAX(COUNT($A$9:$A54)+1))","v":"-"},null,null,null,""]
[{"$f":"IF(OR($B56=\"\",COUNTIF($B$10:$B56,$B56)>1,LEN(TRIM($B56))<>10,ISNUMBER(--MID(TRIM($B56),5,1))),\"-\",MAX(COUNT($A$9:$A55)+1))","v":"-"},null,null,null,""]
[{"$f":"IF(OR($B57=\"\",COUNTIF($B$10:$B57,$B57)>1,LEN(TRIM($B57))<>10,ISNUMBER(--MID(TRIM($B57),5,1))),\"-\",MAX(COUNT($A$9:$A56)+1))","v":"-"},null,null,null,""]
[{"$f":"IF(OR($B58=\"\",COUNTIF($B$10:$B58,$B58)>1,LEN(TRIM($B58))<>10,ISNUMBER(--MID(TRIM($B58),5,1))),\"-\",MAX(COUNT($A$9:$A57)+1))","v":"-"},null,null,null,""]
[{"$f":"IF(OR($B59=\"\",COUNTIF($B$10:$B59,$B59)>1,LEN(TRIM($B59))<>10,ISNUMBER(--MID(TRIM($B59),5,1))),\"-\",MAX(COUNT($A$9:$A58)+1))","v":"-"},null,null,null,""]
[{"$f":"IF(OR($B60=\"\",COUNTIF($B$10:$B60,$B60)>1,LEN(TRIM($B60))<>10,ISNUMBER(--MID(TRIM($B60),5,1))),\"-\",MAX(COUNT($A$9:$A59)+1))","v":"-"},null,null,null,""]
[{"$f":"IF(OR($B61=\"\",COUNTIF($B$10:$B61,$B61)>1,LEN(TRIM($B61))<>10,ISNUMBER(--MID(TRIM($B61),5,1))),\"-\",MAX(COUNT($A$9:$A60)+1))","v":"-"},null,null,null,""]
[{"$f":"IF(OR($B62=\"\",COUNTIF($B$10:$B62,$B62)>1,LEN(TRIM($B62))<>10,ISNUMBER(--MID(TRIM($B62),5,1))),\"-\",MAX(COUNT($A$9:$A61)+1))","v":"-"},null,null,null,""]
[{"$f":"IF(OR($B63=\"\",COUNTIF($B$10:$B63,$B63)>1,LEN(TRIM($B63))<>10,ISNUMBER(--MID(TRIM($B63),5,1))),\"-\",MAX(COUNT($A$9:$A62)+1))","v":"-"},null,null,null,""]
[{"$f":"IF(OR($B64=\"\",COUNTIF($B$10:$B64,$B64)>1,LEN(TRIM($B64))<>10,ISNUMBER(--MID(TRIM($B64),5,1))),\"-\",MAX(COUNT($A$9:$A63)+1))","v":"-"},null,null,null,""]
[{"$f":"IF(OR($B65=\"\",COUNTIF($B$10:$B65,$B65)>1,LEN(TRIM($B65))<>10,ISNUMBER(--MID(TRIM($B65),5,1))),\"-\",MAX(COUNT($A$9:$A64)+1))","v":"-"},null,null,null,""]
[{"$f":"IF(OR($B66=\"\",COUNTIF($B$10:$B66,$B66)>1,LEN(TRIM($B66))<>10,ISNUMBER(--MID(TRIM($B66),5,1))),\"-\",MAX(COUNT($A$9:$A65)+1))","v":"-"},null,null,null,""]
[{"$f":"IF(OR($B67=\"\",COUNTIF($B$10:$B67,$B67)>1,LEN(TRIM($B67))<>10,ISNUMBER(--MID(TRIM($B67),5,1))),\"-\",MAX(COUNT($A$9:$A66)+1))","v":"-"},null,null,null,""]
[{"$f":"IF(OR($B68=\"\",COUNTIF($B$10:$B68,$B68)>1,LEN(TRIM($B68))<>10,ISNUMBER(--MID(TRIM($B68),5,1))),\"-\",MAX(COUNT($A$9:$A67)+1))","v":"-"},null,null,null,""]
[{"$f":"IF(OR($B69=\"\",COUNTIF($B$10:$B69,$B69)>1,LEN(TRIM($B69))<>10,ISNUMBER(--MID(TRIM($B69),5,1))),\"-\",MAX(COUNT($A$9:$A68)+1))","v":"-"},null,null,null,""]
[{"$f":"IF(OR($B70=\"\",COUNTIF($B$10:$B70,$B70)>1,LEN(TRIM($B70))<>10,ISNUMBER(--MID(TRIM($B70),5,1))),\"-\",MAX(COUNT($A$9:$A69)+1))","v":"-"},null,null,null,""]
[{"$f":"IF(OR($B71=\"\",COUNTIF($B$10:$B71,$B71)>1,LEN(TRIM($B71))<>10,ISNUMBER(--MID(TRIM($B71),5,1))),\"-\",MAX(COUNT($A$9:$A70)+1))","v":"-"},null,null,null,""]
[{"$f":"IF(OR($B72=\"\",COUNTIF($B$10:$B72,$B72)>1,LEN(TRIM($B72))<>10,ISNUMBER(--MID(TRIM($B72),5,1))),\"-\",MAX(COUNT($A$9:$A71)+1))","v":"-"},null,null,null,""]
[{"$f":"IF(OR($B73=\"\",COUNTIF($B$10:$B73,$B73)>1,LEN(TRIM($B73))<>10,ISNUMBER(--MID(TRIM($B73),5,1))),\"-\",MAX(COUNT($A$9:$A72)+1))","v":"-"},null,null,null,""]
[{"$f":"IF(OR($B74=\"\",COUNTIF($B$10:$B74,$B74)>1,LEN(TRIM($B74))<>10,ISNUMBER(--MID(TRIM($B74),5,1))),\"-\",MAX(COUNT($A$9:$A73)+1))","v":"-"},null,null,null,""]
[{"$f":"IF(OR($B75=\"\",COUNTIF($B$10:$B75,$B75)>1,LEN(TRIM($B75))<>10,ISNUMBER(--MID(TRIM($B75),5,1))),\"-\",MAX(COUNT($A$9:$A74)+1))","v":"-"},null,null,null,""]
[{"$f":"IF(OR($B76=\"\",COUNTIF($B$10:$B76,$B76)>1,LEN(TRIM($B76))<>10,ISNUMBER(--MID(TRIM($B76),5,1))),\"-\",MAX(COUNT($A$9:$A75)+1))","v":"-"},null,null,null,{"$f":"IF(D76=\"\",\"\",D76-D75)","v":""}]
[{"$f":"IF(OR($B77=\"\",COUNTIF($B$10:$B77,$B77)>1,LEN(TRIM($B77))<>10,ISNUMBER(--MID(TRIM($B77),5,1))),\"-\",MAX(COUNT($A$9:$A76)+1))","v":"-"},null,null,null,""]
[{"$f":"IF(OR($B78=\"\",COUNTIF($B$10:$B78,$B78)>1,LEN(TRIM($B78))<>10,ISNUMBER(--MID(TRIM($B78),5,1))),\"-\",MAX(COUNT($A$9:$A77)+1))","v":"-"},null,null,null,""]
[{"$f":"IF(OR($B79=\"\",COUNTIF($B$10:$B79,$B79)>1,LEN(TRIM($B79))<>10,ISNUMBER(--MID(TRIM($B79),5,1))),\"-\",MAX(COUNT($A$9:$A78)+1))","v":"-"},null,null,null,""]
["รวมของขาย|ของเสีย|เหลือบนเชลฟ์",null,null,null,null,null,{"$f":"SUM(G10:G79)","v":0},0,0,{"$f":"SUM(J10:J79)","v":0},0,0,0,0,0,0,0,0,0,0,0,0,0,0,0,0,0,0,0,0,0,0,0,0,0,0,0,0,0,0,0,0,0,0,0,0,0,0,0,0,0,0,0,0,0,0,0,0,0,0,0,0,0,0,0,0,0,0,0,0,0,0,0,{"$f":"SUM(BV10:BV79)","v":0},0,0,0,0,0,0,0,0,0,0,0,0,0,0,0,0,0,0,0,0,0,0,0,0,0,0,0,0,0,0,0,0,0,0,0,0,0,0,0,0,0,0,0,0,0,0,0,0,0,0,0,0,0,0,0,0,0,0,0,0,0,{"$f":"SUM(EF10:EF79)","v":0},0,0,{"$f":"SUM(EI10:EI79)","v":0},0,0,0,0,0,{"$f":"SUM(EO10:EO79)","v":0},0,0,0,0,0,"รวมเงินเชื่อ","รวมเงินสด","ภาษี","รวมยอดขาย"]
["ของเหลือ",null,null,null,null,null,{"$f":"G80+H80-G9","v":0},null,null,{"$f":"J80+K80-J9","v":0},null,null,{"$f":"M80+N80-M9","v":0},null,null,{"$f":"P80+Q80-P9","v":0},null,null,{"$f":"S80+T80-S9","v":0},null,null,{"$f":"V80+W80-V9","v":0},null,null,{"$f":"Y80+Z80-Y9","v":0},null,null,{"$f":"AB80+AC80-AB9","v":0},null,null,{"$f":"AE80+AF80-AE9","v":0},null,null,{"$f":"AH80+AI80-AH9","v":0},null,null,{"$f":"AK80+AL80-AK9","v":0},null,null,{"$f":"AN80+AO80-AN9","v":0},null,null,{"$f":"AQ80+AR80-AQ9","v":0},null,null,{"$f":"AT80+AU80-AT9","v":0},null,null,{"$f":"AW80+AX80-AW9","v":0},null,null,{"$f":"AZ80+BA80-AZ9","v":0},null,null,{"$f":"BC80+BD80-BC9","v":0},null,null,{"$f":"BF80+BG80-BF9","v":0},null,null,{"$f":"BI80+BJ80-BI9","v":0},null,null,{"$f":"BL80+BM80-BL9","v":0},null,null,{"$f":"BO80+BP80-BO9","v":0},null,null,{"$f":"BR80+BS80-BR9","v":0},null,null,{"$f":"BU80+BV80-BU9","v":0},null,null,{"$f":"BX80+BY80-BX9","v":0},null,null,{"$f":"CA80+CB80-CA9","v":0},null,null,{"$f":"CD80+CE80-CD9","v":0},null,null,{"$f":"CG80+CH80-CG9","v":0},null,null,{"$f":"CJ80+CK80-CJ9","v":0},null,null,{"$f":"CM80+CN80-CM9","v":0},null,null,{"$f":"CP80+CQ80-CP9","v":0},null,null,{"$f":"CS80+CT80-CS9","v":0},null,null,{"$f":"CV80+CW80-CV9","v":0},null,null,{"$f":"CY80+CZ80-CY9","v":0},null,null,{"$f":"DB80+DC80-DB9","v":0},null,null,{"$f":"DE80+DF80-DE9","v":0},null,null,{"$f":"DH80+DI80-DH9","v":0},null,null,{"$f":"DK80+DL80-DK9","v":0},null,null,{"$f":"DN80+DO80-DN9","v":0},null,null,{"$f":"DQ80+DR80-DQ9","v":0},null,null,{"$f":"DT80+DU80-DT9","v":0},null,null,{"$f":"DW80+DX80-DW9","v":0},null,null,{"$f":"DZ80+EA80-DZ9","v":0},null,null,{"$f":"EC80+ED80-EC9","v":0},null,null,{"$f":"EF80+EG80-EF9","v":0},null,null,{"$f":"EI80+EJ80-EI9","v":0},null,null,{"$f":"EL80+EM80-EL9","v":0},null,null,{"$f":"EO80+EP80-EO9","v":0},null,null,{"$f":"ER80+ES80-ER9","v":0},null,null,{"$f":"SUM(EU10:EU79)","v":0},{"$f":"SUM(EV10:EV79)","v":0},{"$f":"SUM(EW10:EW79)","v":0},{"$f":"SUM(EX10:EX79)","v":0}]
["เฉลี่ย",null,null,"เหลือ/เสีย(จริง)",null,null,{"$f":"INDIRECT(\"F\"&ROW($G$87)+ROUNDUP(COLUMNS($G:G)/3,0))","v":0},{"$f":"INDIRECT(\"G\"&ROW($G$87)+ROUNDUP(COLUMNS($G:H)/3,0))","v":0},null,{"$f":"INDIRECT(\"F\"&ROW($G$87)+ROUNDUP(COLUMNS($G:J)/3,0))","v":0},{"$f":"INDIRECT(\"G\"&ROW($G$87)+ROUNDUP(COLUMNS($G:K)/3,0))","v":0},null,{"$f":"INDIRECT(\"F\"&ROW($G$87)+ROUNDUP(COLUMNS($G:M)/3,0))","v":0},{"$f":"INDIRECT(\"G\"&ROW($G$87)+ROUNDUP(COLUMNS($G:N)/3,0))","v":0},null,{"$f":"INDIRECT(\"F\"&ROW($G$87)+ROUNDUP(COLUMNS($G:P)/3,0))","v":0},{"$f":"INDIRECT(\"G\"&ROW($G$87)+ROUNDUP(COLUMNS($G:Q)/3,0))","v":0},null,{"$f":"INDIRECT(\"F\"&ROW($G$87)+ROUNDUP(COLUMNS($G:S)/3,0))","v":0},{"$f":"INDIRECT(\"G\"&ROW($G$87)+ROUNDUP(COLUMNS($G:T)/3,0))","v":0},null,{"$f":"INDIRECT(\"F\"&ROW($G$87)+ROUNDUP(COLUMNS($G:V)/3,0))","v":0},{"$f":"INDIRECT(\"G\"&ROW($G$87)+ROUNDUP(COLUMNS($G:W)/3,0))","v":0},null,{"$f":"INDIRECT(\"F\"&ROW($G$87)+ROUNDUP(COLUMNS($G:Y)/3,0))","v":0},{"$f":"INDIRECT(\"G\"&ROW($G$87)+ROUNDUP(COLUMNS($G:Z)/3,0))","v":0},null,{"$f":"INDIRECT(\"F\"&ROW($G$87)+ROUNDUP(COLUMNS($G:AB)/3,0))","v":0},{"$f":"INDIRECT(\"G\"&ROW($G$87)+ROUNDUP(COLUMNS($G:AC)/3,0))","v":0},null,{"$f":"INDIRECT(\"F\"&ROW($G$87)+ROUNDUP(COLUMNS($G:AE)/3,0))","v":0},{"$f":"INDIRECT(\"G\"&ROW($G$87)+ROUNDUP(COLUMNS($G:AF)/3,0))","v":0},null,{"$f":"INDIRECT(\"F\"&ROW($G$87)+ROUNDUP(COLUMNS($G:AH)/3,0))","v":0},{"$f":"INDIRECT(\"G\"&ROW($G$87)+ROUNDUP(COLUMNS($G:AI)/3,0))","v":0},null,{"$f":"INDIRECT(\"F\"&ROW($G$87)+ROUNDUP(COLUMNS($G:AK)/3,0))","v":0},{"$f":"INDIRECT(\"G\"&ROW($G$87)+ROUNDUP(COLUMNS($G:AL)/3,0))","v":0},null,{"$f":"INDIRECT(\"F\"&ROW($G$87)+ROUNDUP(COLUMNS($G:AN)/3,0))","v":0},{"$f":"INDIRECT(\"G\"&ROW($G$87)+ROUNDUP(COLUMNS($G:AO)/3,0))","v":0},null,{"$f":"INDIRECT(\"F\"&ROW($G$87)+ROUNDUP(COLUMNS($G:AQ)/3,0))","v":0},{"$f":"INDIRECT(\"G\"&ROW($G$87)+ROUNDUP(COLUMNS($G:AR)/3,0))","v":0},null,{"$f":"INDIRECT(\"F\"&ROW($G$87)+ROUNDUP(COLUMNS($G:AT)/3,0))","v":0},{"$f":"INDIRECT(\"G\"&ROW($G$87)+ROUNDUP(COLUMNS($G:AU)/3,0))","v":0},null,{"$f":"INDIRECT(\"F\"&ROW($G$87)+ROUNDUP(COLUMNS($G:AW)/3,0))","v":0},{"$f":"INDIRECT(\"G\"&ROW($G$87)+ROUNDUP(COLUMNS($G:AX)/3,0))","v":0},null,{"$f":"INDIRECT(\"F\"&ROW($G$87)+ROUNDUP(COLUMNS($G:AZ)/3,0))","v":0},{"$f":"INDIRECT(\"G\"&ROW($G$87)+ROUNDUP(COLUMNS($G:BA)/3,0))","v":0},null,{"$f":"INDIRECT(\"F\"&ROW($G$87)+ROUNDUP(COLUMNS($G:BC)/3,0))","v":0},{"$f":"INDIRECT(\"G\"&ROW($G$87)+ROUNDUP(COLUMNS($G:BD)/3,0))","v":0},null,{"$f":"INDIRECT(\"F\"&ROW($G$87)+ROUNDUP(COLUMNS($G:BF)/3,0))","v":0},{"$f":"INDIRECT(\"G\"&ROW($G$87)+ROUNDUP(COLUMNS($G:BG)/3,0))","v":0},null,{"$f":"INDIRECT(\"F\"&ROW($G$87)+ROUNDUP(COLUMNS($G:BI)/3,0))","v":0},{"$f":"INDIRECT(\"G\"&ROW($G$87)+ROUNDUP(COLUMNS($G:BJ)/3,0))","v":0},null,{"$f":"INDIRECT(\"F\"&ROW($G$87)+ROUNDUP(COLUMNS($G:BL)/3,0))","v":0},{"$f":"INDIRECT(\"G\"&ROW($G$87)+ROUNDUP(COLUMNS($G:BM)/3,0))","v":0},null,{"$f":"INDIRECT(\"F\"&ROW($G$87)+ROUNDUP(COLUMNS($G:BO)/3,0))","v":0},{"$f":"INDIRECT(\"G\"&ROW($G$87)+ROUNDUP(COLUMNS($G:BP)/3,0))","v":0},null,{"$f":"INDIRECT(\"F\"&ROW($G$87)+ROUNDUP(COLUMNS($G:BR)/3,0))","v":0},{"$f":"INDIRECT(\"G\"&ROW($G$87)+ROUNDUP(COLUMNS($G:BS)/3,0))","v":0},null,{"$f":"INDIRECT(\"F\"&ROW($G$87)+ROUNDUP(COLUMNS($G:BU)/3,0))","v":0},{"$f":"INDIRECT(\"G\"&ROW($G$87)+ROUNDUP(COLUMNS($G:BV)/3,0))","v":0},null,{"$f":"INDIRECT(\"F\"&ROW($G$87)+ROUNDUP(COLUMNS($G:BX)/3,0))","v":0},{"$f":"INDIRECT(\"G\"&ROW($G$87)+ROUNDUP(COLUMNS($G:BY)/3,0))","v":0},null,{"$f":"INDIRECT(\"F\"&ROW($G$87)+ROUNDUP(COLUMNS($G:CA)/3,0))","v":0},{"$f":"INDIRECT(\"G\"&ROW($G$87)+ROUNDUP(COLUMNS($G:CB)/3,0))","v":0},null,{"$f":"INDIRECT(\"F\"&ROW($G$87)+ROUNDUP(COLUMNS($G:CD)/3,0))","v":0},{"$f":"INDIRECT(\"G\"&ROW($G$87)+ROUNDUP(COLUMNS($G:CE)/3,0))","v":0},null,{"$f":"INDIRECT(\"F\"&ROW($G$87)+ROUNDUP(COLUMNS($G:CG)/3,0))","v":0},{"$f":"INDIRECT(\"G\"&ROW($G$87)+ROUNDUP(COLUMNS($G:CH)/3,0))","v":0},null,{"$f":"INDIRECT(\"F\"&ROW($G$87)+ROUNDUP(COLUMNS($G:CJ)/3,0))","v":0},{"$f":"INDIRECT(\"G\"&ROW($G$87)+ROUNDUP(COLUMNS($G:CK)/3,0))","v":0},null,{"$f":"INDIRECT(\"F\"&ROW($G$87)+ROUNDUP(COLUMNS($G:CM)/3,0))","v":0},{"$f":"INDIRECT(\"G\"&ROW($G$87)+ROUNDUP(COLUMNS($G:CN)/3,0))","v":0},null,{"$f":"INDIRECT(\"F\"&ROW($G$87)+ROUNDUP(COLUMNS($G:CP)/3,0))","v":0},{"$f":"INDIRECT(\"G\"&ROW($G$87)+ROUNDUP(COLUMNS($G:CQ)/3,0))","v":0},null,{"$f":"INDIRECT(\"F\"&ROW($G$87)+ROUNDUP(COLUMNS($G:CS)/3,0))","v":0},{"$f":"INDIRECT(\"G\"&ROW($G$87)+ROUNDUP(COLUMNS($G:CT)/3,0))","v":0},null,{"$f":"INDIRECT(\"F\"&ROW($G$87)+ROUNDUP(COLUMNS($G:CV)/3,0))","v":0},{"$f":"INDIRECT(\"G\"&ROW($G$87)+ROUNDUP(COLUMNS($G:CW)/3,0))","v":0},null,{"$f":"INDIRECT(\"F\"&ROW($G$87)+ROUNDUP(COLUMNS($G:CY)/3,0))","v":0},{"$f":"INDIRECT(\"G\"&ROW($G$87)+ROUNDUP(COLUMNS($G:CZ)/3,0))","v":0},null,{"$f":"INDIRECT(\"F\"&ROW($G$87)+ROUNDUP(COLUMNS($G:DB)/3,0))","v":0},{"$f":"INDIRECT(\"G\"&ROW($G$87)+ROUNDUP(COLUMNS($G:DC)/3,0))","v":0},null,{"$f":"INDIRECT(\"F\"&ROW($G$87)+ROUNDUP(COLUMNS($G:DE)/3,0))","v":0},{"$f":"INDIRECT(\"G\"&ROW($G$87)+ROUNDUP(COLUMNS($G:DF)/3,0))","v":0},null,{"$f":"INDIRECT(\"F\"&ROW($G$87)+ROUNDUP(COLUMNS($G:DH)/3,0))","v":0},{"$f":"INDIRECT(\"G\"&ROW($G$87)+ROUNDUP(COLUMNS($G:DI)/3,0))","v":0},null,{"$f":"INDIRECT(\"F\"&ROW($G$87)+ROUNDUP(COLUMNS($G:DK)/3,0))","v":0},{"$f":"INDIRECT(\"G\"&ROW($G$87)+ROUNDUP(COLUMNS($G:DL)/3,0))","v":0},null,{"$f":"INDIRECT(\"F\"&ROW($G$87)+ROUNDUP(COLUMNS($G:DN)/3,0))","v":0},{"$f":"INDIRECT(\"G\"&ROW($G$87)+ROUNDUP(COLUMNS($G:DO)/3,0))","v":0},null,{"$f":"INDIRECT(\"F\"&ROW($G$87)+ROUNDUP(COLUMNS($G:DQ)/3,0))","v":0},{"$f":"INDIRECT(\"G\"&ROW($G$87)+ROUNDUP(COLUMNS($G:DR)/3,0))","v":0},null,{"$f":"INDIRECT(\"F\"&ROW($G$87)+ROUNDUP(COLUMNS($G:DT)/3,0))","v":0},{"$f":"INDIRECT(\"G\"&ROW($G$87)+ROUNDUP(COLUMNS($G:DU)/3,0))","v":0},null,{"$f":"INDIRECT(\"F\"&ROW($G$87)+ROUNDUP(COLUMNS($G:DW)/3,0))","v":0},{"$f":"INDIRECT(\"G\"&ROW($G$87)+ROUNDUP(COLUMNS($G:DX)/3,0))","v":0},null,{"$f":"INDIRECT(\"F\"&ROW($G$87)+ROUNDUP(COLUMNS($G:DZ)/3,0))","v":0},{"$f":"INDIRECT(\"G\"&ROW($G$87)+ROUNDUP(COLUMNS($G:EA)/3,0))","v":0},null,{"$f":"INDIRECT(\"F\"&ROW($G$87)+ROUNDUP(COLUMNS($G:EC)/3,0))","v":0},{"$f":"INDIRECT(\"G\"&ROW($G$87)+ROUNDUP(COLUMNS($G:ED)/3,0))","v":0},null,{"$f":"INDIRECT(\"F\"&ROW($G$87)+ROUNDUP(COLUMNS($G:EF)/3,0))","v":0},{"$f":"INDIRECT(\"G\"&ROW($G$87)+ROUNDUP(COLUMNS($G:EG)/3,0))","v":0},null,{"$f":"INDIRECT(\"F\"&ROW($G$87)+ROUNDUP(COLUMNS($G:EI)/3,0))","v":0},{"$f":"INDIRECT(\"G\"&ROW($G$87)+ROUNDUP(COLUMNS($G:EJ)/3,0))","v":0},null,{"$f":"INDIRECT(\"F\"&ROW($G$87)+ROUNDUP(COLUMNS($G:EL)/3,0))","v":0},{"$f":"INDIRECT(\"G\"&ROW($G$87)+ROUNDUP(COLUMNS($G:EM)/3,0))","v":0},null,{"$f":"INDIRECT(\"F\"&ROW($G$87)+ROUNDUP(COLUMNS($G:EO)/3,0))","v":0},{"$f":"INDIRECT(\"G\"&ROW($G$87)+ROUNDUP(COLUMNS($G:EP)/3,0))","v":0},null,{"$f":"INDIRECT(\"F\"&ROW($G$87)+ROUNDUP(COLUMNS($G:ER)/3,0))","v":0},{"$f":"INDIRECT(\"G\"&ROW($G$87)+ROUNDUP(COLUMNS($G:ES)/3,0))","v":0},null,{"$f":"EU81+EV81","v":0}]
["เวลากลับถึงสำนักงานเช็คของเสีย",null,null,{"$f":"D139","v":"00:00:00"},null,"ผลต่าง",{"$f":"G82+H82+G80-G9","v":0},null,null,{"$f":"J82+K82+J80-J9","v":0},null,null,{"$f":"M82+N82+M80-M9","v":0},null,null,{"$f":"P82+Q82+P80-P9","v":0},null,null,{"$f":"S82+T82+S80-S9","v":0},null,null,{"$f":"V82+W82+V80-V9","v":0},null,null,{"$f":"Y82+Z82+Y80-Y9","v":0},null,null,{"$f":"AB82+AC82+AB80-AB9","v":0},null,null,{"$f":"AE82+AF82+AE80-AE9","v":0},null,null,{"$f":"AH82+AI82+AH80-AH9","v":0},null,null,{"$f":"AK82+AL82+AK80-AK9","v":0},null,null,{"$f":"AN82+AO82+AN80-AN9","v":0},null,null,{"$f":"AQ82+AR82+AQ80-AQ9","v":0},null,null,{"$f":"AT82+AU82+AT80-AT9","v":0},null,null,{"$f":"AW82+AX82+AW80-AW9","v":0},null,null,{"$f":"AZ82+BA82+AZ80-AZ9","v":0},null,null,{"$f":"BC82+BD82+BC80-BC9","v":0},null,null,{"$f":"BF82+BG82+BF80-BF9","v":0},null,null,{"$f":"BI82+BJ82+BI80-BI9","v":0},null,null,{"$f":"BL82+BM82+BL80-BL9","v":0},null,null,{"$f":"BO82+BP82+BO80-BO9","v":0},null,null,{"$f":"BR82+BS82+BR80-BR9","v":0},null,null,{"$f":"BU82+BV82+BU80-BU9","v":0},null,null,{"$f":"BX82+BY82+BX80-BX9","v":0},null,null,{"$f":"CA82+CB82+CA80-CA9","v":0},null,null,{"$f":"CD82+CE82+CD80-CD9","v":0},null,null,{"$f":"CG82+CH82+CG80-CG9","v":0},null,null,{"$f":"CJ82+CK82+CJ80-CJ9","v":0},null,null,{"$f":"CM82+CN82+CM80-CM9","v":0},null,null,{"$f":"CP82+CQ82+CP80-CP9","v":0},null,null,{"$f":"CS82+CT82+CS80-CS9","v":0},null,null,{"$f":"CV82+CW82+CV80-CV9","v":0},null,null,{"$f":"CY82+CZ82+CY80-CY9","v":0},null,null,{"$f":"DB82+DC82+DB80-DB9","v":0},null,null,{"$f":"DE82+DF82+DE80-DE9","v":0},null,null,{"$f":"DH82+DI82+DH80-DH9","v":0},null,null,{"$f":"DK82+DL82+DK80-DK9","v":0},null,null,{"$f":"DN82+DO82+DN80-DN9","v":0},null,null,{"$f":"DQ82+DR82+DQ80-DQ9","v":0},null,null,{"$f":"DT82+DU82+DT80-DT9","v":0},null,null,{"$f":"DW82+DX82+DW80-DW9","v":0},null,null,{"$f":"DZ82+EA82+DZ80-DZ9","v":0},null,null,{"$f":"EC82+ED82+EC80-EC9","v":0},null,null,{"$f":"EF82+EG82+EF80-EF9","v":0},null,null,{"$f":"EI82+EJ82+EI80-EI9","v":0},null,null,{"$f":"EL82+EM82+EL80-EL9","v":0},null,null,{"$f":"EO82+EP82+EO80-EO9","v":0},null,null,{"$f":"ER82+ES82+ER80-ER9","v":0}]
["เป็นเงิน",null,null,null,null,null,{"$f":"G8*G83","v":0},null,null,{"$f":"J8*J83","v":0},null,null,{"$f":"M8*M83","v":0},null,null,{"$f":"P8*P83","v":0},null,null,{"$f":"S8*S83","v":0},null,null,{"$f":"V8*V83","v":0},null,null,{"$f":"Y8*Y83","v":0},null,null,{"$f":"AB8*AB83","v":0},null,null,{"$f":"AE8*AE83","v":0},null,null,{"$f":"AH8*AH83","v":0},null,null,{"$f":"AK8*AK83","v":0},null,null,{"$f":"AN8*AN83","v":0},null,null,{"$f":"AQ8*AQ83","v":0},null,null,{"$f":"AT8*AT83","v":0},null,null,{"$f":"AW8*AW83","v":0},null,null,{"$f":"AZ8*AZ83","v":0},null,null,{"$f":"BC8*BC83","v":0},null,null,{"$f":"BF8*BF83","v":0},null,null,{"$f":"BI8*BI83","v":0},null,null,{"$f":"BL8*BL83","v":0},null,null,{"$f":"BO8*BO83","v":0},null,null,{"$f":"BR8*BR83","v":0},null,null,{"$f":"BU8*BU83","v":0},null,null,{"$f":"BX8*BX83","v":0},null,null,{"$f":"CA8*CA83","v":0},null,null,{"$f":"CD8*CD83","v":0},null,null,{"$f":"CG8*CG83","v":0},null,null,{"$f":"CJ8*CJ83","v":0},null,null,{"$f":"CM8*CM83","v":0},null,null,{"$f":"CP8*CP83","v":0},null,null,{"$f":"CS8*CS83","v":0},null,null,{"$f":"CV8*CV83","v":0},null,null,{"$f":"CY8*CY83","v":0},null,null,{"$f":"DB8*DB83","v":0},null,null,{"$f":"DE8*DE83","v":0},null,null,{"$f":"DH8*DH83","v":0},null,null,{"$f":"DK8*DK83","v":0},null,null,{"$f":"DN8*DN83","v":0},null,null,{"$f":"DQ8*DQ83","v":0},null,null,{"$f":"DT8*DT83","v":0},null,null,{"$f":"DW8*DW83","v":0},null,null,0,null,null,{"$f":"EC8*EC83","v":0},null,null,{"$f":"EF8*EF83","v":0},null,null,{"$f":"EI8*EI83","v":0},null,null,{"$f":"EL8*EL83","v":0},null,null,{"$f":"EO8*EO83","v":0},null,null,{"$f":"ER8*ER83","v":0},null,null,{"$f":"$AP$98","v":0}]
[null,null,null,"ผู้จัดทำ……………………………………………………………………",null,null,null,null,null,null,null,null,null,null,null,null,null,null,null,null,null,null,null,"ผู้ตรวจ(ผจก.)………………………………………………………………………………."]
[null,null,"ใบจ่ายสินค้า",null,null,null,null,null,null,null,null,null,null,null,null,null,null,{"$f":"IF(ISODD(COLUMN()),MAX($F$86:Q$86)+1,\"\")","v":""}]
["ราคา","ลำดับ","รายการ","ยกมา","เบิก","เหลือ","เสีย","โอนเข้า","โอนออก","ชำรุด","รวม",null,"ขาย",null,"ขาด/เกิน",null,"บาท",null,null,null,"ขายได้",null,"ควรเบิก",null,"หมายเหตุ",null,null,null,"เสีย PDA","เสียจริง","เหลือ PDA","ผลต่าง","เหลือลูกค้า","หมายเหตุ",null,null,null,null,"Price","Quantity","Baht","Deduct"]
[{"$f":"IF(B88=\"\",0,INDEX(Price_List,ROWS($88:88)))","v":20},{"$f":"IF($C88=\"\",\"\",COUNTA($C$88:$C88))","v":1},{"$f":"IF(INDEX(INDIRECT(\"Product_List\"),ROWS($88:88))=\"\",\"\",INDEX(INDIRECT(\"Product_List\"),ROWS($88:88)))","v":"01-ขนมปังหมูหยองน้ำสลัด"},{"$f":"ยอดยกมา","v":0},null,null,null,null,null,null,{"$f":"D88+E88+J88-I88+H88","v":0},null,{"$f":"INDIRECT(ADDRESS(ROW(A$80),ROW()-ROW(A$80)+(ROWS($88:88)-1)*2-1,4))","v":0},null,{"$f":"F88+G88+M88+J88-K88","v":0},null,{"$f":"O88*A88","v":0},null,null,null,{"$f":"D88+E88-F88-G88","v":0},null,{"$f":"U88*6%+U88","v":0},null,null,null,null,null,{"$f":"INDIRECT(ADDRESS(ROW(A$80),ROW()-ROW(A$80)+(ROWS($88:88)-1)*2,4))","v":0},{"$f":"$G88","v":0},null,{"$f":"$F88-$AE88","v":0},{"$f":"INDIRECT(ADDRESS(ROW(A$80),ROW()-ROW(A$80)+(ROWS($88:88)-1)*2+1,4))","v":0},null,null,null,null,null,10,{"$f":"SUMPRODUCT(($A$88:$A$135=$AM88)*(($F$88:$F$135)+($G$88:$G$135)+($M$88:$M$135)+($J$88:$J$135)-($K$88:$K$135)))","v":0},{"$f":"AM88*AN88","v":0},{"$f":"IF(AO88<0,AO88,0)","v":0}]
[{"$f":"IF(B89=\"\",0,INDEX(Price_List,ROWS($88:89)))","v":20},{"$f":"IF($C89=\"\",\"\",COUNTA($C$88:$C89))","v":2},{"$f":"IF(INDEX(INDIRECT(\"Product_List\"),ROWS($88:89))=\"\",\"\",INDEX(INDIRECT(\"Product_List\"),ROWS($88:89)))","v":"02-ขนมปังหมูหยองน้ำพริกเผา"},{"$f":"ยอดยกมา","v":0},null,null,null,null,null,null,{"$f":"D89+E89+J89-I89+H89","v":0},null,{"$f":"INDIRECT(ADDRESS(ROW(A$80),ROW()-ROW(A$80)+(ROWS($88:89)-1)*2-1,4))","v":0},null,{"$f":"F89+G89+M89+J89-K89","v":0},null,{"$f":"O89*A89","v":0},null,null,null,{"$f":"D89+E89-F89-G89","v":0},null,{"$f":"U89*6%+U89","v":0},null,null,null,null,null,{"$f":"INDIRECT(ADDRESS(ROW(A$80),ROW()-ROW(A$80)+(ROWS($88:89)-1)*2,4))","v":0},{"$f":"$G89","v":0},null,{"$f":"$F89-$AE89","v":0},{"$f":"INDIRECT(ADDRESS(ROW(A$80),ROW()-ROW(A$80)+(ROWS($88:89)-1)*2+1,4))","v":0},null,null,null,null,null,12,0,{"$f":"AM89*AN89","v":0},{"$f":"IF(AO89<0,AO89,0)","v":0}]
[{"$f":"IF(B90=\"\",0,INDEX(Price_List,ROWS($88:90)))","v":20},{"$f":"IF($C90=\"\",\"\",COUNTA($C$88:$C90))","v":3},{"$f":"IF(INDEX(INDIRECT(\"Product_List\"),ROWS($88:90))=\"\",\"\",INDEX(INDIRECT(\"Product_List\"),ROWS($88:90)))","v":"03-ขนมปังไก่หยองน้ำสลัด"},{"$f":"ยอดยกมา","v":0},null,null,null,null,null,null,0,null,{"$f":"INDIRECT(ADDRESS(ROW(A$80),ROW()-ROW(A$80)+(ROWS($88:90)-1)*2-1,4))","v":0},null,0,null,0,null,null,null,0,null,0,null,null,null,null,null,{"$f":"INDIRECT(ADDRESS(ROW(A$80),ROW()-ROW(A$80)+(ROWS($88:90)-1)*2,4))","v":0},0,null,0,{"$f":"INDIRECT(ADDRESS(ROW(A$80),ROW()-ROW(A$80)+(ROWS($88:90)-1)*2+1,4))","v":0},null,null,null,null,null,13,0,{"$f":"AM90*AN90","v":0},{"$f":"IF(AO90<0,AO90,0)","v":0}]
[{"$f":"IF(B91=\"\",0,INDEX(Price_List,ROWS($88:91)))","v":15},{"$f":"IF($C91=\"\",\"\",COUNTA($C$88:$C91))","v":4},{"$f":"IF(INDEX(INDIRECT(\"Product_List\"),ROWS($88:91))=\"\",\"\",INDEX(INDIRECT(\"Product_List\"),ROWS($88:91)))","v":"04-ขนมปังไส้ครีมสลัด"},{"$f":"ยอดยกมา","v":0},null,null,null,null,null,null,0,null,{"$f":"INDIRECT(ADDRESS(ROW(A$80),ROW()-ROW(A$80)+(ROWS($88:91)-1)*2-1,4))","v":0},null,{"$f":"F91+G91+M91+J91-K91","v":0},null,0,null,null,null,0,null,0,null,null,null,null,null,{"$f":"INDIRECT(ADDRESS(ROW(A$80),ROW()-ROW(A$80)+(ROWS($88:91)-1)*2,4))","v":0},0,null,0,{"$f":"INDIRECT(ADDRESS(ROW(A$80),ROW()-ROW(A$80)+(ROWS($88:91)-1)*2+1,4))","v":0},null,null,null,null,null,15,0,0,0]
[{"$f":"IF(B92=\"\",0,INDEX(Price_List,ROWS($88:92)))","v":15},{"$f":"IF($C92=\"\",\"\",COUNTA($C$88:$C92))","v":5},{"$f":"IF(INDEX(INDIRECT(\"Product_List\"),ROWS($88:92))=\"\",\"\",INDEX(INDIRECT(\"Product_List\"),ROWS($88:92)))","v":"05-ขนมปังเนยสด"},{"$f":"ยอดยกมา","v":0},null,null,null,null,null,null,0,null,{"$f":"INDIRECT(ADDRESS(ROW(A$80),ROW()-ROW(A$80)+(ROWS($88:92)-1)*2-1,4))","v":0},null,0,null,0,null,null,null,0,null,0,null,null,null,null,null,{"$f":"INDIRECT(ADDRESS(ROW(A$80),ROW()-ROW(A$80)+(ROWS($88:92)-1)*2,4))","v":0},0,null,0,{"$f":"INDIRECT(ADDRESS(ROW(A$80),ROW()-ROW(A$80)+(ROWS($88:92)-1)*2+1,4))","v":0},null,null,null,null,null,16,0,0,0]
[{"$f":"IF(B93=\"\",0,INDEX(Price_List,ROWS($88:93)))","v":10},{"$f":"IF($C93=\"\",\"\",COUNTA($C$88:$C93))","v":6},{"$f":"IF(INDEX(INDIRECT(\"Product_List\"),ROWS($88:93))=\"\",\"\",INDEX(INDIRECT(\"Product_List\"),ROWS($88:93)))","v":"06-ขนมปังไส้สังขยาเล็ก"},{"$f":"ยอดยกมา","v":0},null,null,null,null,null,null,0,null,{"$f":"INDIRECT(ADDRESS(ROW(A$80),ROW()-ROW(A$80)+(ROWS($88:93)-1)*2-1,4))","v":0},null,0,null,0,null,null,null,0,null,0,null,null,null,null,null,{"$f":"INDIRECT(ADDRESS(ROW(A$80),ROW()-ROW(A$80)+(ROWS($88:93)-1)*2,4))","v":0},0,null,0,{"$f":"INDIRECT(ADDRESS(ROW(A$80),ROW()-ROW(A$80)+(ROWS($88:93)-1)*2+1,4))","v":0},null,null,null,null,null,18,0,0,0]
[{"$f":"IF(B94=\"\",0,INDEX(Price_List,ROWS($88:94)))","v":10},{"$f":"IF($C94=\"\",\"\",COUNTA($C$88:$C94))","v":7},{"$f":"IF(INDEX(INDIRECT(\"Product_List\"),ROWS($88:94))=\"\",\"\",INDEX(INDIRECT(\"Product_List\"),ROWS($88:94)))","v":"07-ขนมปังไส้เผือก"},{"$f":"ยอดยกมา","v":0},null,null,null,null,null,null,0,null,{"$f":"INDIRECT(ADDRESS(ROW(A$80),ROW()-ROW(A$80)+(ROWS($88:94)-1)*2-1,4))","v":0},null,0,null,0,null,null,null,0,null,0,null,null,null,null,null,{"$f":"INDIRECT(ADDRESS(ROW(A$80),ROW()-ROW(A$80)+(ROWS($88:94)-1)*2,4))","v":0},0,null,0,{"$f":"INDIRECT(ADDRESS(ROW(A$80),ROW()-ROW(A$80)+(ROWS($88:94)-1)*2+1,4))","v":0},null,null,null,null,null,20,0,0,0]
[{"$f":"IF(B95=\"\",0,INDEX(Price_List,ROWS($88:95)))","v":10},{"$f":"IF($C95=\"\",\"\",COUNTA($C$88:$C95))","v":8},{"$f":"IF(INDEX(INDIRECT(\"Product_List\"),ROWS($88:95))=\"\",\"\",INDEX(INDIRECT(\"Product_List\"),ROWS($88:95)))","v":"08-ขนมปังไส้ถั่วแดง"},{"$f":"ยอดยกมา","v":0},null,null,null,null,null,null,0,null,{"$f":"INDIRECT(ADDRESS(ROW(A$80),ROW()-ROW(A$80)+(ROWS($88:95)-1)*2-1,4))","v":0},null,0,null,0,null,null,null,0,null,0,null,null,null,null,null,{"$f":"INDIRECT(ADDRESS(ROW(A$80),ROW()-ROW(A$80)+(ROWS($88:95)-1)*2,4))","v":0},0,null,0,{"$f":"INDIRECT(ADDRESS(ROW(A$80),ROW()-ROW(A$80)+(ROWS($88:95)-1)*2+1,4))","v":0},null,null,null,null,null,22,0,0,0]
[{"$f":"IF(B96=\"\",0,INDEX(Price_List,ROWS($88:96)))","v":10},{"$f":"IF($C96=\"\",\"\",COUNTA($C$88:$C96))","v":9},{"$f":"IF(INDEX(INDIRECT(\"Product_List\"),ROWS($88:96))=\"\",\"\",INDEX(INDIRECT(\"Product_List\"),ROWS($88:96)))","v":"09-ขนมปังไส้ถั่วดำ"},{"$f":"ยอดยกมา","v":0},null,null,null,null,null,null,0,null,{"$f":"INDIRECT(ADDRESS(ROW(A$80),ROW()-ROW(A$80)+(ROWS($88:96)-1)*2-1,4))","v":0},null,0,null,0,null,null,null,0,null,0,null,null,null,null,null,{"$f":"INDIRECT(ADDRESS(ROW(A$80),ROW()-ROW(A$80)+(ROWS($88:96)-1)*2,4))","v":0},0,null,0,{"$f":"INDIRECT(ADDRESS(ROW(A$80),ROW()-ROW(A$80)+(ROWS($88:96)-1)*2+1,4))","v":0},null,null,null,null,null,25,0,0,0]
[{"$f":"IF(B97=\"\",0,INDEX(Price_List,ROWS($88:97)))","v":10},{"$f":"IF($C97=\"\",\"\",COUNTA($C$88:$C97))","v":10},{"$f":"IF(INDEX(INDIRECT(\"Product_List\"),ROWS($88:97))=\"\",\"\",INDEX(INDIRECT(\"Product_List\"),ROWS($88:97)))","v":"10-ขนมปังไส้มันม่วง"},{"$f":"ยอดยกมา","v":0},null,null,null,null,null,null,0,null,{"$f":"INDIRECT(ADDRESS(ROW(A$80),ROW()-ROW(A$80)+(ROWS($88:97)-1)*2-1,4))","v":0},null,0,null,0,null,null,null,0,null,0,null,null,null,null,null,{"$f":"INDIRECT(ADDRESS(ROW(A$80),ROW()-ROW(A$80)+(ROWS($88:97)-1)*2,4))","v":0},0,null,0,{"$f":"INDIRECT(ADDRESS(ROW(A$80),ROW()-ROW(A$80)+(ROWS($88:97)-1)*2+1,4))","v":0},null,null,null,null,null,42,0,0,0]
[{"$f":"IF(B98=\"\",0,INDEX(Price_List,ROWS($88:98)))","v":15},{"$f":"IF($C98=\"\",\"\",COUNTA($C$88:$C98))","v":11},{"$f":"IF(INDEX(INDIRECT(\"Product_List\"),ROWS($88:98))=\"\",\"\",INDEX(INDIRECT(\"Product_List\"),ROWS($88:98)))","v":"11-เค้กกล้วยหอม"},{"$f":"ยอดยกมา","v":0},null,null,null,null,null,null,0,null,{"$f":"INDIRECT(ADDRESS(ROW(A$80),ROW()-ROW(A$80)+(ROWS($88:98)-1)*2-1,4))","v":0},null,0,null,0,null,null,null,0,null,0,null,null,null,null,null,{"$f":"INDIRECT(ADDRESS(ROW(A$80),ROW()-ROW(A$80)+(ROWS($88:98)-1)*2,4))","v":0},0,null,0,{"$f":"INDIRECT(ADDRESS(ROW(A$80),ROW()-ROW(A$80)+(ROWS($88:98)-1)*2+1,4))","v":0},null,null,null,null,null,"Total Deduct",null,null,{"$f":"SUM($AP$88:$AP$97)","v":0}]
[{"$f":"IF(B99=\"\",0,INDEX(Price_List,ROWS($88:99)))","v":15},{"$f":"IF($C99=\"\",\"\",COUNTA($C$88:$C99))","v":12},{"$f":"IF(INDEX(INDIRECT(\"Product_List\"),ROWS($88:99))=\"\",\"\",INDEX(INDIRECT(\"Product_List\"),ROWS($88:99)))","v":"12-เค้กบัตเตอร์"},{"$f":"ยอดยกมา","v":0},null,null,null,null,null,null,0,null,{"$f":"INDIRECT(ADDRESS(ROW(A$80),ROW()-ROW(A$80)+(ROWS($88:99)-1)*2-1,4))","v":0},null,0,null,0,null,null,null,0,null,0,null,null,null,null,null,{"$f":"INDIRECT(ADDRESS(ROW(A$80),ROW()-ROW(A$80)+(ROWS($88:99)-1)*2,4))","v":0},0,null,0,{"$f":"INDIRECT(ADDRESS(ROW(A$80),ROW()-ROW(A$80)+(ROWS($88:99)-1)*2+1,4))","v":0}]
[{"$f":"IF(B100=\"\",0,INDEX(Price_List,ROWS($88:100)))","v":15},{"$f":"IF($C100=\"\",\"\",COUNTA($C$88:$C100))","v":13},{"$f":"IF(INDEX(INDIRECT(\"Product_List\"),ROWS($88:100))=\"\",\"\",INDEX(INDIRECT(\"Product_List\"),ROWS($88:100)))","v":"13-ขนมปังโรลถั่วแดง"},{"$f":"ยอดยกมา","v":0},null,null,null,null,null,null,0,null,{"$f":"INDIRECT(ADDRESS(ROW(A$80),ROW()-ROW(A$80)+(ROWS($88:100)-1)*2-1,4))","v":0},null,0,null,0,null,null,null,0,null,0,null,null,null,null,null,{"$f":"INDIRECT(ADDRESS(ROW(A$80),ROW()-ROW(A$80)+(ROWS($88:100)-1)*2,4))","v":0},0,null,0,{"$f":"INDIRECT(ADDRESS(ROW(A$80),ROW()-ROW(A$80)+(ROWS($88:100)-1)*2+1,4))","v":0}]
[{"$f":"IF(B101=\"\",0,INDEX(Price_List,ROWS($88:101)))","v":15},{"$f":"IF($C101=\"\",\"\",COUNTA($C$88:$C101))","v":14},{"$f":"IF(INDEX(INDIRECT(\"Product_List\"),ROWS($88:101))=\"\",\"\",INDEX(INDIRECT(\"Product_List\"),ROWS($88:101)))","v":"14-ขนมปังไส้สังขยาใหญ่"},{"$f":"ยอดยกมา","v":0},null,null,null,null,null,null,0,null,{"$f":"INDIRECT(ADDRESS(ROW(A$80),ROW()-ROW(A$80)+(ROWS($88:101)-1)*2-1,4))","v":0},null,0,null,0,null,null,null,0,null,0,null,null,null,null,null,{"$f":"INDIRECT(ADDRESS(ROW(A$80),ROW()-ROW(A$80)+(ROWS($88:101)-1)*2,4))","v":0},0,null,0,{"$f":"INDIRECT(ADDRESS(ROW(A$80),ROW()-ROW(A$80)+(ROWS($88:101)-1)*2+1,4))","v":0}]
[{"$f":"IF(B102=\"\",0,INDEX(Price_List,ROWS($88:102)))","v":42},{"$f":"IF($C102=\"\",\"\",COUNTA($C$88:$C102))","v":15},{"$f":"IF(INDEX(INDIRECT(\"Product_List\"),ROWS($88:102))=\"\",\"\",INDEX(INDIRECT(\"Product_List\"),ROWS($88:102)))","v":"15-ขนมปังชนิดแผ่น(480กรัม)"},{"$f":"ยอดยกมา","v":0},null,null,null,null,null,null,0,null,{"$f":"INDIRECT(ADDRESS(ROW(A$80),ROW()-ROW(A$80)+(ROWS($88:102)-1)*2-1,4))","v":0},null,0,null,0,null,null,null,0,null,0,null,null,null,null,null,{"$f":"INDIRECT(ADDRESS(ROW(A$80),ROW()-ROW(A$80)+(ROWS($88:102)-1)*2,4))","v":0},0,null,0,{"$f":"INDIRECT(ADDRESS(ROW(A$80),ROW()-ROW(A$80)+(ROWS($88:102)-1)*2+1,4))","v":0}]
[{"$f":"IF(B103=\"\",0,INDEX(Price_List,ROWS($88:103)))","v":12},{"$f":"IF($C103=\"\",\"\",COUNTA($C$88:$C103))","v":16},{"$f":"IF(INDEX(INDIRECT(\"Product_List\"),ROWS($88:103))=\"\",\"\",INDEX(INDIRECT(\"Product_List\"),ROWS($88:103)))","v":"16-โมจิไส้ถั่ว"},{"$f":"ยอดยกมา","v":0},null,null,null,null,null,null,0,null,{"$f":"INDIRECT(ADDRESS(ROW(A$80),ROW()-ROW(A$80)+(ROWS($88:103)-1)*2-1,4))","v":0},null,0,null,0,null,null,null,0,null,0,null,null,null,null,null,{"$f":"INDIRECT(ADDRESS(ROW(A$80),ROW()-ROW(A$80)+(ROWS($88:103)-1)*2,4))","v":0},0,null,0,{"$f":"INDIRECT(ADDRESS(ROW(A$80),ROW()-ROW(A$80)+(ROWS($88:103)-1)*2+1,4))","v":0}]
[{"$f":"IF(B104=\"\",0,INDEX(Price_List,ROWS($88:104)))","v":12},{"$f":"IF($C104=\"\",\"\",COUNTA($C$88:$C104))","v":17},{"$f":"IF(INDEX(INDIRECT(\"Product_List\"),ROWS($88:104))=\"\",\"\",INDEX(INDIRECT(\"Product_List\"),ROWS($88:104)))","v":"17-โมจิไส้เผือก"},{"$f":"ยอดยกมา","v":0},null,null,null,null,null,null,0,null,{"$f":"INDIRECT(ADDRESS(ROW(A$80),ROW()-ROW(A$80)+(ROWS($88:104)-1)*2-1,4))","v":0},null,0,null,0,null,null,null,0,null,0,null,null,null,null,null,{"$f":"INDIRECT(ADDRESS(ROW(A$80),ROW()-ROW(A$80)+(ROWS($88:104)-1)*2,4))","v":0},0,null,0,{"$f":"INDIRECT(ADDRESS(ROW(A$80),ROW()-ROW(A$80)+(ROWS($88:104)-1)*2+1,4))","v":0}]
[{"$f":"IF(B105=\"\",0,INDEX(Price_List,ROWS($88:105)))","v":15},{"$f":"IF($C105=\"\",\"\",COUNTA($C$88:$C105))","v":18},{"$f":"IF(INDEX(INDIRECT(\"Product_List\"),ROWS($88:105))=\"\",\"\",INDEX(INDIRECT(\"Product_List\"),ROWS($88:105)))","v":"18-โมจิไส้ถั่วไข่เค็ม"},{"$f":"ยอดยกมา","v":0},null,null,null,null,null,null,0,null,{"$f":"INDIRECT(ADDRESS(ROW(A$80),ROW()-ROW(A$80)+(ROWS($88:105)-1)*2-1,4))","v":0},null,0,null,0,null,null,null,0,null,0,null,null,null,null,null,{"$f":"INDIRECT(ADDRESS(ROW(A$80),ROW()-ROW(A$80)+(ROWS($88:105)-1)*2,4))","v":0},0,null,0,{"$f":"INDIRECT(ADDRESS(ROW(A$80),ROW()-ROW(A$80)+(ROWS($88:105)-1)*2+1,4))","v":0}]
[{"$f":"IF(B106=\"\",0,INDEX(Price_List,ROWS($88:106)))","v":20},{"$f":"IF($C106=\"\",\"\",COUNTA($C$88:$C106))","v":19},{"$f":"IF(INDEX(INDIRECT(\"Product_List\"),ROWS($88:106))=\"\",\"\",INDEX(INDIRECT(\"Product_List\"),ROWS($88:106)))","v":"19-ขนมปังพิซซ่า"},{"$f":"ยอดยกมา","v":0},null,null,null,null,null,null,0,null,{"$f":"INDIRECT(ADDRESS(ROW(A$80),ROW()-ROW(A$80)+(ROWS($88:106)-1)*2-1,4))","v":0},null,0,null,0,null,null,null,0,null,0,null,null,null,null,null,{"$f":"INDIRECT(ADDRESS(ROW(A$80),ROW()-ROW(A$80)+(ROWS($88:106)-1)*2,4))","v":0},0,null,0,{"$f":"INDIRECT(ADDRESS(ROW(A$80),ROW()-ROW(A$80)+(ROWS($88:106)-1)*2+1,4))","v":0}]
[{"$f":"IF(B107=\"\",0,INDEX(Price_List,ROWS($88:107)))","v":20},{"$f":"IF($C107=\"\",\"\",COUNTA($C$88:$C107))","v":20},{"$f":"IF(INDEX(INDIRECT(\"Product_List\"),ROWS($88:107))=\"\",\"\",INDEX(INDIRECT(\"Product_List\"),ROWS($88:107)))","v":"20-ขนมปังพิซซ่าปูอัดแฮม"},{"$f":"ยอดยกมา","v":0},null,null,null,null,null,null,0,null,{"$f":"INDIRECT(ADDRESS(ROW(A$80),ROW()-ROW(A$80)+(ROWS($88:107)-1)*2-1,4))","v":0},null,0,null,0,null,null,null,0,null,0,null,null,null,null,null,{"$f":"INDIRECT(ADDRESS(ROW(A$80),ROW()-ROW(A$80)+(ROWS($88:107)-1)*2,4))","v":0},0,null,0,{"$f":"INDIRECT(ADDRESS(ROW(A$80),ROW()-ROW(A$80)+(ROWS($88:107)-1)*2+1,4))","v":0}]
[{"$f":"IF(B108=\"\",0,INDEX(Price_List,ROWS($88:108)))","v":20},{"$f":"IF($C108=\"\",\"\",COUNTA($C$88:$C108))","v":21},{"$f":"IF(INDEX(INDIRECT(\"Product_List\"),ROWS($88:108))=\"\",\"\",INDEX(INDIRECT(\"Product_List\"),ROWS($88:108)))","v":"21-ขนมปังไส้กรอก"},{"$f":"ยอดยกมา","v":0},null,null,null,null,null,null,0,null,{"$f":"INDIRECT(ADDRESS(ROW(A$80),ROW()-ROW(A$80)+(ROWS($88:108)-1)*2-1,4))","v":0},null,0,null,0,null,null,null,0,null,0,null,null,null,null,null,{"$f":"INDIRECT(ADDRESS(ROW(A$80),ROW()-ROW(A$80)+(ROWS($88:108)-1)*2,4))","v":0},0,null,0,{"$f":"INDIRECT(ADDRESS(ROW(A$80),ROW()-ROW(A$80)+(ROWS($88:108)-1)*2+1,4))","v":0}]
[{"$f":"IF(B109=\"\",0,INDEX(Price_List,ROWS($88:109)))","v":15},{"$f":"IF($C109=\"\",\"\",COUNTA($C$88:$C109))","v":22},{"$f":"IF(INDEX(INDIRECT(\"Product_List\"),ROWS($88:109))=\"\",\"\",INDEX(INDIRECT(\"Product_List\"),ROWS($88:109)))","v":"22-ขนมก้านบัว"},{"$f":"ยอดยกมา","v":0},null,null,null,null,null,null,0,null,{"$f":"INDIRECT(ADDRESS(ROW(A$80),ROW()-ROW(A$80)+(ROWS($88:109)-1)*2-1,4))","v":0},null,0,null,0,null,null,null,0,null,0,null,null,null,null,null,{"$f":"INDIRECT(ADDRESS(ROW(A$80),ROW()-ROW(A$80)+(ROWS($88:109)-1)*2,4))","v":0},0,null,0,{"$f":"INDIRECT(ADDRESS(ROW(A$80),ROW()-ROW(A$80)+(ROWS($88:109)-1)*2+1,4))","v":0}]
[{"$f":"IF(B110=\"\",0,INDEX(Price_List,ROWS($88:110)))","v":20},{"$f":"IF($C110=\"\",\"\",COUNTA($C$88:$C110))","v":23},{"$f":"IF(INDEX(INDIRECT(\"Product_List\"),ROWS($88:110))=\"\",\"\",INDEX(INDIRECT(\"Product_List\"),ROWS($88:110)))","v":"23-พายสับปะรด"},{"$f":"ยอดยกมา","v":0},null,null,null,null,null,null,0,null,{"$f":"INDIRECT(ADDRESS(ROW(A$80),ROW()-ROW(A$80)+(ROWS($88:110)-1)*2-1,4))","v":0},null,0,null,0,null,null,null,0,null,0,null,null,null,null,null,{"$f":"INDIRECT(ADDRESS(ROW(A$80),ROW()-ROW(A$80)+(ROWS($88:110)-1)*2,4))","v":0},0,null,0,{"$f":"INDIRECT(ADDRESS(ROW(A$80),ROW()-ROW(A$80)+(ROWS($88:110)-1)*2+1,4))","v":0}]
[{"$f":"IF(B111=\"\",0,INDEX(Price_List,ROWS($88:111)))","v":20},{"$f":"IF($C111=\"\",\"\",COUNTA($C$88:$C111))","v":24},{"$f":"IF(INDEX(INDIRECT(\"Product_List\"),ROWS($88:111))=\"\",\"\",INDEX(INDIRECT(\"Product_List\"),ROWS($88:111)))","v":"24-พายไส้มะพร้าว"},{"$f":"ยอดยกมา","v":0},null,null,null,null,null,null,0,null,{"$f":"INDIRECT(ADDRESS(ROW(A$80),ROW()-ROW(A$80)+(ROWS($88:111)-1)*2-1,4))","v":0},null,0,null,0,null,null,null,0,null,0,null,null,null,null,null,{"$f":"INDIRECT(ADDRESS(ROW(A$80),ROW()-ROW(A$80)+(ROWS($88:111)-1)*2,4))","v":0},0,null,0,{"$f":"INDIRECT(ADDRESS(ROW(A$80),ROW()-ROW(A$80)+(ROWS($88:111)-1)*2+1,4))","v":0}]
[{"$f":"IF(B112=\"\",0,INDEX(Price_List,ROWS($88:112)))","v":15},{"$f":"IF($C112=\"\",\"\",COUNTA($C$88:$C112))","v":25},{"$f":"IF(INDEX(INDIRECT(\"Product_List\"),ROWS($88:112))=\"\",\"\",INDEX(INDIRECT(\"Product_List\"),ROWS($88:112)))","v":"25-ขนมปังโรลมันเทศ"},{"$f":"ยอดยกมา","v":0},null,null,null,null,null,null,0,null,{"$f":"INDIRECT(ADDRESS(ROW(A$80),ROW()-ROW(A$80)+(ROWS($88:112)-1)*2-1,4))","v":0},null,0,null,0,null,null,null,0,null,0,null,null,null,null,null,{"$f":"INDIRECT(ADDRESS(ROW(A$80),ROW()-ROW(A$80)+(ROWS($88:112)-1)*2,4))","v":0},0,null,0,{"$f":"INDIRECT(ADDRESS(ROW(A$80),ROW()-ROW(A$80)+(ROWS($88:112)-1)*2+1,4))","v":0}]
[{"$f":"IF(B113=\"\",0,INDEX(Price_List,ROWS($88:113)))","v":15},{"$f":"IF($C113=\"\",\"\",COUNTA($C$88:$C113))","v":26},{"$f":"IF(INDEX(INDIRECT(\"Product_List\"),ROWS($88:113))=\"\",\"\",INDEX(INDIRECT(\"Product_List\"),ROWS($88:113)))","v":"26-ขนมปังไส้ครีมสลัดน้ำพริกเผา"},{"$f":"ยอดยกมา","v":0},null,null,null,null,null,null,0,null,{"$f":"INDIRECT(ADDRESS(ROW(A$80),ROW()-ROW(A$80)+(ROWS($88:113)-1)*2-1,4))","v":0},null,0,null,0,null,null,null,0,null,0,null,null,null,null,null,{"$f":"INDIRECT(ADDRESS(ROW(A$80),ROW()-ROW(A$80)+(ROWS($88:113)-1)*2,4))","v":0},0,null,0,{"$f":"INDIRECT(ADDRESS(ROW(A$80),ROW()-ROW(A$80)+(ROWS($88:113)-1)*2+1,4))","v":0}]
[{"$f":"IF(B114=\"\",0,INDEX(Price_List,ROWS($88:114)))","v":20},{"$f":"IF($C114=\"\",\"\",COUNTA($C$88:$C114))","v":27},{"$f":"IF(INDEX(INDIRECT(\"Product_List\"),ROWS($88:114))=\"\",\"\",INDEX(INDIRECT(\"Product_List\"),ROWS($88:114)))","v":"27-ขนมปังไส้สังขยาไข่"},{"$f":"ยอดยกมา","v":0},null,null,null,null,null,null,0,null,{"$f":"INDIRECT(ADDRESS(ROW(A$80),ROW()-ROW(A$80)+(ROWS($88:114)-1)*2-1,4))","v":0},null,0,null,0,null,null,null,0,null,0,null,null,null,null,null,{"$f":"INDIRECT(ADDRESS(ROW(A$80),ROW()-ROW(A$80)+(ROWS($88:114)-1)*2,4))","v":0},0,null,0,{"$f":"INDIRECT(ADDRESS(ROW(A$80),ROW()-ROW(A$80)+(ROWS($88:114)-1)*2+1,4))","v":0}]
[{"$f":"IF(B115=\"\",0,INDEX(Price_List,ROWS($88:115)))","v":20},{"$f":"IF($C115=\"\",\"\",COUNTA($C$88:$C115))","v":28},{"$f":"IF(INDEX(INDIRECT(\"Product_List\"),ROWS($88:115))=\"\",\"\",INDEX(INDIRECT(\"Product_List\"),ROWS($88:115)))","v":"28-ขนมปังไส้สังขยามะพร้าว"},{"$f":"ยอดยกมา","v":0},null,null,null,null,null,null,0,null,{"$f":"INDIRECT(ADDRESS(ROW(A$80),ROW()-ROW(A$80)+(ROWS($88:115)-1)*2-1,4))","v":0},null,0,null,0,null,null,null,0,null,0,null,null,null,null,null,{"$f":"INDIRECT(ADDRESS(ROW(A$80),ROW()-ROW(A$80)+(ROWS($88:115)-1)*2,4))","v":0},0,null,0,{"$f":"INDIRECT(ADDRESS(ROW(A$80),ROW()-ROW(A$80)+(ROWS($88:115)-1)*2+1,4))","v":0}]
[{"$f":"IF(B116=\"\",0,INDEX(Price_List,ROWS($88:116)))","v":10},{"$f":"IF($C116=\"\",\"\",COUNTA($C$88:$C116))","v":29},{"$f":"IF(INDEX(INDIRECT(\"Product_List\"),ROWS($88:116))=\"\",\"\",INDEX(INDIRECT(\"Product_List\"),ROWS($88:116)))","v":"29-ขนมปังไส้ครีมชาไทย"},{"$f":"ยอดยกมา","v":0},null,null,null,null,null,null,0,null,{"$f":"INDIRECT(ADDRESS(ROW(A$80),ROW()-ROW(A$80)+(ROWS($88:116)-1)*2-1,4))","v":0},null,0,null,0,null,null,null,0,null,0,null,null,null,null,null,{"$f":"INDIRECT(ADDRESS(ROW(A$80),ROW()-ROW(A$80)+(ROWS($88:116)-1)*2,4))","v":0},0,null,0,{"$f":"INDIRECT(ADDRESS(ROW(A$80),ROW()-ROW(A$80)+(ROWS($88:116)-1)*2+1,4))","v":0}]
[{"$f":"IF(B117=\"\",0,INDEX(Price_List,ROWS($88:117)))","v":15},{"$f":"IF($C117=\"\",\"\",COUNTA($C$88:$C117))","v":30},{"$f":"IF(INDEX(INDIRECT(\"Product_List\"),ROWS($88:117))=\"\",\"\",INDEX(INDIRECT(\"Product_List\"),ROWS($88:117)))","v":"30-ขนมปังโรลมันม่วง"},{"$f":"ยอดยกมา","v":0},null,null,null,null,null,null,0,null,{"$f":"INDIRECT(ADDRESS(ROW(A$80),ROW()-ROW(A$80)+(ROWS($88:117)-1)*2-1,4))","v":0},null,0,null,0,null,null,null,0,null,0,null,null,null,null,null,{"$f":"INDIRECT(ADDRESS(ROW(A$80),ROW()-ROW(A$80)+(ROWS($88:117)-1)*2,4))","v":0},0,null,0,{"$f":"INDIRECT(ADDRESS(ROW(A$80),ROW()-ROW(A$80)+(ROWS($88:117)-1)*2+1,4))","v":0}]
[{"$f":"IF(B118=\"\",0,INDEX(Price_List,ROWS($88:118)))","v":15},{"$f":"IF($C118=\"\",\"\",COUNTA($C$88:$C118))","v":31},{"$f":"IF(INDEX(INDIRECT(\"Product_List\"),ROWS($88:118))=\"\",\"\",INDEX(INDIRECT(\"Product_List\"),ROWS($88:118)))","v":"31-ขนมปังโรลช็อกโกแลต"},{"$f":"ยอดยกมา","v":0},null,null,null,null,null,null,0,null,{"$f":"INDIRECT(ADDRESS(ROW(A$80),ROW()-ROW(A$80)+(ROWS($88:118)-1)*2-1,4))","v":0},null,0,null,0,null,null,null,0,null,0,null,null,null,null,null,{"$f":"INDIRECT(ADDRESS(ROW(A$80),ROW()-ROW(A$80)+(ROWS($88:118)-1)*2,4))","v":0},0,null,0,{"$f":"INDIRECT(ADDRESS(ROW(A$80),ROW()-ROW(A$80)+(ROWS($88:118)-1)*2+1,4))","v":0}]
[{"$f":"IF(B119=\"\",0,INDEX(Price_List,ROWS($88:119)))","v":16},{"$f":"IF($C119=\"\",\"\",COUNTA($C$88:$C119))","v":32},{"$f":"IF(INDEX(INDIRECT(\"Product_List\"),ROWS($88:119))=\"\",\"\",INDEX(INDIRECT(\"Product_List\"),ROWS($88:119)))","v":"32-ขนมปังชนิดแผ่น(155กรัม)"},{"$f":"ยอดยกมา","v":0},null,null,null,null,null,null,0,null,{"$f":"INDIRECT(ADDRESS(ROW(A$80),ROW()-ROW(A$80)+(ROWS($88:119)-1)*2-1,4))","v":0},null,0,null,0,null,null,null,0,null,0,null,null,null,null,null,{"$f":"INDIRECT(ADDRESS(ROW(A$80),ROW()-ROW(A$80)+(ROWS($88:119)-1)*2,4))","v":0},0,null,0,{"$f":"INDIRECT(ADDRESS(ROW(A$80),ROW()-ROW(A$80)+(ROWS($88:119)-1)*2+1,4))","v":0}]
[{"$f":"IF(B120=\"\",0,INDEX(Price_List,ROWS($88:120)))","v":15},{"$f":"IF($C120=\"\",\"\",COUNTA($C$88:$C120))","v":33},{"$f":"IF(INDEX(INDIRECT(\"Product_List\"),ROWS($88:120))=\"\",\"\",INDEX(INDIRECT(\"Product_List\"),ROWS($88:120)))","v":"33-ขนมปังโรลเผือก"},{"$f":"ยอดยกมา","v":0},null,null,null,null,null,null,0,null,{"$f":"INDIRECT(ADDRESS(ROW(A$80),ROW()-ROW(A$80)+(ROWS($88:120)-1)*2-1,4))","v":0},null,0,null,0,null,null,null,0,null,0,null,null,null,null,null,{"$f":"INDIRECT(ADDRESS(ROW(A$80),ROW()-ROW(A$80)+(ROWS($88:120)-1)*2,4))","v":0},0,null,0,{"$f":"INDIRECT(ADDRESS(ROW(A$80),ROW()-ROW(A$80)+(ROWS($88:120)-1)*2+1,4))","v":0}]
[{"$f":"IF(B121=\"\",0,INDEX(Price_List,ROWS($88:121)))","v":15},{"$f":"IF($C121=\"\",\"\",COUNTA($C$88:$C121))","v":34},{"$f":"IF(INDEX(INDIRECT(\"Product_List\"),ROWS($88:121))=\"\",\"\",INDEX(INDIRECT(\"Product_List\"),ROWS($88:121)))","v":"34-ขนมปังไก่หยองน้ำสลัด Mini"},{"$f":"ยอดยกมา","v":0},null,null,null,null,null,null,0,null,{"$f":"INDIRECT(ADDRESS(ROW(A$80),ROW()-ROW(A$80)+(ROWS($88:121)-1)*2-1,4))","v":0},null,0,null,0,null,null,null,0,null,0,null,null,null,null,null,{"$f":"INDIRECT(ADDRESS(ROW(A$80),ROW()-ROW(A$80)+(ROWS($88:121)-1)*2,4))","v":0},0,null,0,{"$f":"INDIRECT(ADDRESS(ROW(A$80),ROW()-ROW(A$80)+(ROWS($88:121)-1)*2+1,4))","v":0}]
[{"$f":"IF(B122=\"\",0,INDEX(Price_List,ROWS($88:122)))","v":10},{"$f":"IF($C122=\"\",\"\",COUNTA($C$88:$C122))","v":35},{"$f":"IF(INDEX(INDIRECT(\"Product_List\"),ROWS($88:122))=\"\",\"\",INDEX(INDIRECT(\"Product_List\"),ROWS($88:122)))","v":"35-ขนมปังไส้ช็อกโกแลต"},{"$f":"ยอดยกมา","v":0},null,null,null,null,null,null,0,null,{"$f":"INDIRECT(ADDRESS(ROW(A$80),ROW()-ROW(A$80)+(ROWS($88:122)-1)*2-1,4))","v":0},null,0,null,0,null,null,null,0,null,0,null,null,null,null,null,{"$f":"INDIRECT(ADDRESS(ROW(A$80),ROW()-ROW(A$80)+(ROWS($88:122)-1)*2,4))","v":0},0,null,0,{"$f":"INDIRECT(ADDRESS(ROW(A$80),ROW()-ROW(A$80)+(ROWS($88:122)-1)*2+1,4))","v":0}]
[{"$f":"IF(B123=\"\",0,INDEX(Price_List,ROWS($88:123)))","v":10},{"$f":"IF($C123=\"\",\"\",COUNTA($C$88:$C123))","v":36},{"$f":"IF(INDEX(INDIRECT(\"Product_List\"),ROWS($88:123))=\"\",\"\",INDEX(INDIRECT(\"Product_List\"),ROWS($88:123)))","v":"36-ขนมปังไส้ครีมสังขยาไข่"},{"$f":"ยอดยกมา","v":0},null,null,null,null,null,null,0,null,{"$f":"INDIRECT(ADDRESS(ROW(A$80),ROW()-ROW(A$80)+(ROWS($88:123)-1)*2-1,4))","v":0},null,0,null,0,null,null,null,0,null,0,null,null,null,null,null,{"$f":"INDIRECT(ADDRESS(ROW(A$80),ROW()-ROW(A$80)+(ROWS($88:123)-1)*2,4))","v":0},0,null,0,{"$f":"INDIRECT(ADDRESS(ROW(A$80),ROW()-ROW(A$80)+(ROWS($88:123)-1)*2+1,4))","v":0}]
[{"$f":"IF(B124=\"\",0,INDEX(Price_List,ROWS($88:124)))","v":20},{"$f":"IF($C124=\"\",\"\",COUNTA($C$88:$C124))","v":37},{"$f":"IF(INDEX(INDIRECT(\"Product_List\"),ROWS($88:124))=\"\",\"\",INDEX(INDIRECT(\"Product_List\"),ROWS($88:124)))","v":"37-ขนมปังพิซซ่าฮาวายเอี้ยน"},{"$f":"ยอดยกมา","v":0},null,null,null,null,null,null,0,null,{"$f":"INDIRECT(ADDRESS(ROW(A$80),ROW()-ROW(A$80)+(ROWS($88:124)-1)*2-1,4))","v":0},null,0,null,0,null,null,null,0,null,0,null,null,null,null,null,{"$f":"INDIRECT(ADDRESS(ROW(A$80),ROW()-ROW(A$80)+(ROWS($88:124)-1)*2,4))","v":0},0,null,0,{"$f":"INDIRECT(ADDRESS(ROW(A$80),ROW()-ROW(A$80)+(ROWS($88:124)-1)*2+1,4))","v":0}]
[{"$f":"IF(B125=\"\",0,INDEX(Price_List,ROWS($88:125)))","v":20},{"$f":"IF($C125=\"\",\"\",COUNTA($C$88:$C125))","v":38},{"$f":"IF(INDEX(INDIRECT(\"Product_List\"),ROWS($88:125))=\"\",\"\",INDEX(INDIRECT(\"Product_List\"),ROWS($88:125)))","v":"38-ครัวซองต์หมูหยองน้ำสลัด"},{"$f":"ยอดยกมา","v":0},null,null,null,null,null,null,0,null,{"$f":"INDIRECT(ADDRESS(ROW(A$80),ROW()-ROW(A$80)+(ROWS($88:125)-1)*2-1,4))","v":0},null,0,null,0,null,null,null,0,null,0,null,null,null,null,null,{"$f":"INDIRECT(ADDRESS(ROW(A$80),ROW()-ROW(A$80)+(ROWS($88:125)-1)*2,4))","v":0},0,null,0,{"$f":"INDIRECT(ADDRESS(ROW(A$80),ROW()-ROW(A$80)+(ROWS($88:125)-1)*2+1,4))","v":0}]
[{"$f":"IF(B126=\"\",0,INDEX(Price_List,ROWS($88:126)))","v":15},{"$f":"IF($C126=\"\",\"\",COUNTA($C$88:$C126))","v":39},{"$f":"IF(INDEX(INDIRECT(\"Product_List\"),ROWS($88:126))=\"\",\"\",INDEX(INDIRECT(\"Product_List\"),ROWS($88:126)))","v":"39-แพนเบรดไส้เผือก"},{"$f":"ยอดยกมา","v":0},null,null,null,null,null,null,0,null,{"$f":"INDIRECT(ADDRESS(ROW(A$80),ROW()-ROW(A$80)+(ROWS($88:126)-1)*2-1,4))","v":0},null,0,null,0,null,null,null,0,null,0,null,null,null,null,null,{"$f":"INDIRECT(ADDRESS(ROW(A$80),ROW()-ROW(A$80)+(ROWS($88:126)-1)*2,4))","v":0},0,null,0,{"$f":"INDIRECT(ADDRESS(ROW(A$80),ROW()-ROW(A$80)+(ROWS($88:126)-1)*2+1,4))","v":0}]
[{"$f":"IF(B127=\"\",0,INDEX(Price_List,ROWS($88:127)))","v":15},{"$f":"IF($C127=\"\",\"\",COUNTA($C$88:$C127))","v":40},{"$f":"IF(INDEX(INDIRECT(\"Product_List\"),ROWS($88:127))=\"\",\"\",INDEX(INDIRECT(\"Product_List\"),ROWS($88:127)))","v":"40-แพนเบรดไส้ถั่วแดง"},{"$f":"ยอดยกมา","v":0},null,null,null,null,null,null,{"$f":"D127+E127+J127-I127+H127","v":0},null,{"$f":"INDIRECT(ADDRESS(ROW(A$80),ROW()-ROW(A$80)+(ROWS($88:127)-1)*2-1,4))","v":0},null,{"$f":"F127+G127+M127+J127-K127","v":0},null,{"$f":"O127*A127","v":0},null,null,null,{"$f":"D127+E127-F127-G127","v":0},null,{"$f":"U127*6%+U127","v":0},null,null,null,null,null,{"$f":"INDIRECT(ADDRESS(ROW(A$80),ROW()-ROW(A$80)+(ROWS($88:127)-1)*2,4))","v":0},0,null,0,{"$f":"INDIRECT(ADDRESS(ROW(A$80),ROW()-ROW(A$80)+(ROWS($88:127)-1)*2+1,4))","v":0}]
[{"$f":"IF(B128=\"\",0,INDEX(Price_List,ROWS($88:128)))","v":12},{"$f":"IF($C128=\"\",\"\",COUNTA($C$88:$C128))","v":41},{"$f":"IF(INDEX(INDIRECT(\"Product_List\"),ROWS($88:128))=\"\",\"\",INDEX(INDIRECT(\"Product_List\"),ROWS($88:128)))","v":"41-ขนมปังกรอบเนยน้ำตาล(30กรัม)"},{"$f":"ยอดยกมา","v":0},null,null,null,null,null,null,0,null,{"$f":"INDIRECT(ADDRESS(ROW(A$80),ROW()-ROW(A$80)+(ROWS($88:128)-1)*2-1,4))","v":0},null,0,null,0,null,null,null,0,null,0,null,null,null,null,null,{"$f":"INDIRECT(ADDRESS(ROW(A$80),ROW()-ROW(A$80)+(ROWS($88:128)-1)*2,4))","v":0},0,null,0,{"$f":"INDIRECT(ADDRESS(ROW(A$80),ROW()-ROW(A$80)+(ROWS($88:128)-1)*2+1,4))","v":0}]
[{"$f":"IF(B129=\"\",0,INDEX(Price_List,ROWS($88:129)))","v":18},{"$f":"IF($C129=\"\",\"\",COUNTA($C$88:$C129))","v":42},{"$f":"IF(INDEX(INDIRECT(\"Product_List\"),ROWS($88:129))=\"\",\"\",INDEX(INDIRECT(\"Product_List\"),ROWS($88:129)))","v":"42-ขนมปังชนิดแผ่นโฮลวีต"},{"$f":"ยอดยกมา","v":0},null,null,null,null,null,null,0,null,{"$f":"INDIRECT(ADDRESS(ROW(A$80),ROW()-ROW(A$80)+(ROWS($88:129)-1)*2-1,4))","v":0},null,0,null,0,null,null,null,0,null,0,null,null,null,null,null,{"$f":"INDIRECT(ADDRESS(ROW(A$80),ROW()-ROW(A$80)+(ROWS($88:129)-1)*2,4))","v":0},0,null,0,{"$f":"INDIRECT(ADDRESS(ROW(A$80),ROW()-ROW(A$80)+(ROWS($88:129)-1)*2+1,4))","v":0}]
[{"$f":"IF(B130=\"\",0,INDEX(Price_List,ROWS($88:130)))","v":12},{"$f":"IF($C130=\"\",\"\",COUNTA($C$88:$C130))","v":43},{"$f":"IF(INDEX(INDIRECT(\"Product_List\"),ROWS($88:130))=\"\",\"\",INDEX(INDIRECT(\"Product_List\"),ROWS($88:130)))","v":"43-เค้กโรลใบเตย"},{"$f":"ยอดยกมา","v":0},null,null,null,null,null,null,{"$f":"D130+E130+J130-I130+H130","v":0},null,{"$f":"INDIRECT(ADDRESS(ROW(A$80),ROW()-ROW(A$80)+(ROWS($88:130)-1)*2-1,4))","v":0},null,{"$f":"F130+G130+M130+J130-K130","v":0},null,{"$f":"O130*A130","v":0},null,null,null,{"$f":"D130+E130-F130-G130","v":0},null,{"$f":"U130*6%+U130","v":0},null,null,null,null,null,{"$f":"INDIRECT(ADDRESS(ROW(A$80),ROW()-ROW(A$80)+(ROWS($88:130)-1)*2,4))","v":0},0,null,0,{"$f":"INDIRECT(ADDRESS(ROW(A$80),ROW()-ROW(A$80)+(ROWS($88:130)-1)*2+1,4))","v":0}]
[{"$f":"IF(B131=\"\",0,INDEX(Price_List,ROWS($88:131)))","v":12},{"$f":"IF($C131=\"\",\"\",COUNTA($C$88:$C131))","v":44},{"$f":"IF(INDEX(INDIRECT(\"Product_List\"),ROWS($88:131))=\"\",\"\",INDEX(INDIRECT(\"Product_List\"),ROWS($88:131)))","v":"44-ขนมโมจิไส้ถั่วดำ"},{"$f":"ยอดยกมา","v":0},null,null,null,null,null,null,{"$f":"D131+E131+J131-I131+H131","v":0},null,{"$f":"INDIRECT(ADDRESS(ROW(A$80),ROW()-ROW(A$80)+(ROWS($88:131)-1)*2-1,4))","v":0},null,{"$f":"F131+G131+M131+J131-K131","v":0},null,{"$f":"O131*A131","v":0},null,null,null,{"$f":"D131+E131-F131-G131","v":0},null,{"$f":"U131*6%+U131","v":0},null,null,null,null,null,{"$f":"INDIRECT(ADDRESS(ROW(A$80),ROW()-ROW(A$80)+(ROWS($88:131)-1)*2,4))","v":0},0,null,0,{"$f":"INDIRECT(ADDRESS(ROW(A$80),ROW()-ROW(A$80)+(ROWS($88:131)-1)*2+1,4))","v":0}]
[{"$f":"IF(B132=\"\",0,INDEX(Price_List,ROWS($88:132)))","v":25},{"$f":"IF($C132=\"\",\"\",COUNTA($C$88:$C132))","v":45},{"$f":"IF(INDEX(INDIRECT(\"Product_List\"),ROWS($88:132))=\"\",\"\",INDEX(INDIRECT(\"Product_List\"),ROWS($88:132)))","v":"45-ครัวซองต์ไส้กรอกชีส"},{"$f":"ยอดยกมา","v":0},null,null,null,null,null,null,{"$f":"D132+E132+J132-I132+H132","v":0},null,{"$f":"INDIRECT(ADDRESS(ROW(A$80),ROW()-ROW(A$80)+(ROWS($88:132)-1)*2-1,4))","v":0},null,{"$f":"F132+G132+M132+J132-K132","v":0},null,{"$f":"O132*A132","v":0},null,null,null,{"$f":"D132+E132-F132-G132","v":0},null,{"$f":"U132*6%+U132","v":0},null,null,null,null,null,{"$f":"INDIRECT(ADDRESS(ROW(A$80),ROW()-ROW(A$80)+(ROWS($88:132)-1)*2,4))","v":0},0,null,0,{"$f":"INDIRECT(ADDRESS(ROW(A$80),ROW()-ROW(A$80)+(ROWS($88:132)-1)*2+1,4))","v":0}]
[{"$f":"IF(B133=\"\",0,INDEX(Price_List,ROWS($88:133)))","v":12},{"$f":"IF($C133=\"\",\"\",COUNTA($C$88:$C133))","v":46},{"$f":"IF(INDEX(INDIRECT(\"Product_List\"),ROWS($88:133))=\"\",\"\",INDEX(INDIRECT(\"Product_List\"),ROWS($88:133)))","v":"46-ขนมเปี๊ยะไส้ถั่ว"},{"$f":"ยอดยกมา","v":0},null,null,null,null,null,null,0,null,{"$f":"INDIRECT(ADDRESS(ROW(A$80),ROW()-ROW(A$80)+(ROWS($88:133)-1)*2-1,4))","v":0},null,0,null,0,null,null,null,0,null,0,null,null,null,null,null,{"$f":"INDIRECT(ADDRESS(ROW(A$80),ROW()-ROW(A$80)+(ROWS($88:133)-1)*2,4))","v":0},0,null,0,{"$f":"INDIRECT(ADDRESS(ROW(A$80),ROW()-ROW(A$80)+(ROWS($88:133)-1)*2+1,4))","v":0}]
[{"$f":"IF(B134=\"\",0,INDEX(Price_List,ROWS($88:134)))","v":12},{"$f":"IF($C134=\"\",\"\",COUNTA($C$88:$C134))","v":47},{"$f":"IF(INDEX(INDIRECT(\"Product_List\"),ROWS($88:134))=\"\",\"\",INDEX(INDIRECT(\"Product_List\"),ROWS($88:134)))","v":"47-ขนมเปี๊ยะไส้ฟัก"},{"$f":"ยอดยกมา","v":0},null,null,null,null,null,null,{"$f":"D134+E134+J134-I134+H134","v":0},null,{"$f":"INDIRECT(ADDRESS(ROW(A$80),ROW()-ROW(A$80)+(ROWS($88:134)-1)*2-1,4))","v":0},null,{"$f":"F134+G134+M134+J134-K134","v":0},null,{"$f":"O134*A134","v":0},null,null,null,{"$f":"D134+E134-F134-G134","v":0},null,{"$f":"U134*6%+U134","v":0},null,null,null,null,null,{"$f":"INDIRECT(ADDRESS(ROW(A$80),ROW()-ROW(A$80)+(ROWS($88:134)-1)*2,4))","v":0},0,null,0,{"$f":"INDIRECT(ADDRESS(ROW(A$80),ROW()-ROW(A$80)+(ROWS($88:134)-1)*2+1,4))","v":0}]
[{"$f":"IF(B135=\"\",0,INDEX(Price_List,ROWS($88:135)))","v":12},{"$f":"IF($C135=\"\",\"\",COUNTA($C$88:$C135))","v":48},{"$f":"IF(INDEX(INDIRECT(\"Product_List\"),ROWS($88:135))=\"\",\"\",INDEX(INDIRECT(\"Product_List\"),ROWS($88:135)))","v":"48-มังกี้เค้ก"},{"$f":"ยอดยกมา","v":0},null,null,null,null,null,null,0,null,{"$f":"INDIRECT(ADDRESS(ROW(A$80),ROW()-ROW(A$80)+(ROWS($88:135)-1)*2-1,4))","v":0},null,0,null,0,null,null,null,0,null,0,null,null,null,null,null,{"$f":"INDIRECT(ADDRESS(ROW(A$80),ROW()-ROW(A$80)+(ROWS($88:135)-1)*2,4))","v":0},0,null,0,{"$f":"INDIRECT(ADDRESS(ROW(A$80),ROW()-ROW(A$80)+(ROWS($88:135)-1)*2+1,4))","v":0}]
["รวม",null,null,{"$f":"SUM(D$88:D$135)","v":0},0,0,0,0,0,0,0,null,{"$f":"SUM(M$88:M$135)","v":0},null,null,null,{"$f":"$AP$98","v":0},null,"บาท",null,{"$f":"SUM(U$88:U$135)","v":0},null,{"$f":"SUM(W$88:W$135)","v":0},null,null,null,null,null,{"$f":"SUM(AC$88:AC$135)","v":0},{"$f":"SUM(AD$88:AD$135)","v":0},{"$f":"SUM(AE$88:AE$135)","v":0},{"$f":"SUM(AF$88:AF$135)","v":0},{"$f":"SUM(AG$88:AG$135)","v":0}]
["เลขที่ไมล์ เวลาออกทำงาน",null,null,{"$f":"$BF$3","v":0},null,"Km","น้ำหนักของเสีย"]
["เลขที่ไมล์ เวลากลับ",null,null,{"$f":"$BF$4","v":0},null,"Km",{"$f":"$AA$5","v":0},null,"KG"]
["เวลากลับถึงสำนักงาน",null,null,{"$f":"$BF$1","v":"00:00:00"},null,"น."]
["เติมน้ำมัน",null,null,{"$f":"$AX3","v":0},null,"บาท"]
["จำนวนน้ำมัน",null,null,{"$f":"$AX4","v":0},null,"ลิตร"]
["ยอดรวมต้นทุนสาขา",null,null,{"$f":"$AX5","v":0},null,"บาท"]

{"sheet":"13","index":17,"n_rows":142,"n_cols":154,"rows_kept":142,"cut":false,"hidden":false,"merged":[[83,132,83,133],[129,10,129,11],[129,12,129,13],[129,14,129,15],[129,16,129,17],[127,10,127,11],[127,12,127,13],[127,14,127,15],[127,16,127,17],[127,20,127,21],[127,22,127,23],[127,24,127,25],[127,33,127,36],[126,10,126,11],[126,12,126,13],[126,14,126,15],[126,16,126,17],[128,10,128,11],[128,12,128,13],[129,24,129,25],[125,10,125,11],[125,12,125,13],[125,14,125,15],[125,16,125,17],[7,132,7,134],[8,132,8,134],[80,132,80,133],[82,132,82,133],[7,135,7,137],[8,135,8,137],[80,135,80,136],[82,135,82,136],[7,138,7,140],[7,141,7,143],[7,147,7,149],[8,138,8,140],[141,0,141,2],[141,3,141,4],[138,0,138,2],[138,3,138,4],[139,0,139,2],[139,3,139,4],[140,0,140,2],[140,3,140,4],[135,24,135,25],[135,33,135,36],[136,0,136,2],[136,3,136,4],[137,0,137,2],[137,3,137,4],[137,6,137,7],[137,18,137,21],[135,0,135,2],[135,10,135,11],[135,12,135,13],[135,14,135,15],[135,16,135,17],[135,18,135,19],[135,20,135,21],[135,22,135,23],[128,14,128,15],[128,16,128,17],[128,20,128,21],[128,22,128,23],[129,20,129,21],[129,22,129,23],[131,16,131,17],[132,16,132,17],[134,16,134,17],[131,20,131,21],[132,20,132,21],[134,20,134,21],[131,22,131,23],[132,22,132,23],[134,22,134,23],[131,24,131,25],[132,24,132,25],[134,24,134,25],[129,33,129,36],[128,24,128,25],[128,33,128,36],[126,20,126,21],[126,22,126,23],[124,24,124,25],[124,33,124,36],[125,20,125,21],[125,22,125,23],[125,24,125,25],[125,33,125,36],[124,10,124,11],[124,12,124,13],[124,14,124,15],[124,16,124,17],[124,20,124,21],[124,22,124,23],[126,24,126,25],[126,33,126,36],[122,24,122,25],[122,33,122,36],[123,10,123,11],[123,12,123,13],[123,14,123,15],[123,16,123,17],[123,20,123,21],[123,22,123,23],[123,24,123,25],[123,33,123,36],[122,10,122,11],[122,12,122,13],[122,14,122,15],[122,16,122,17],[122,20,122,21],[122,22,122,23],[120,24,120,25],[120,33,120,36],[121,10,121,11],[121,12,121,13],[121,14,121,15],[121,16,121,17],[121,20,121,21],[121,22,121,23],[121,24,121,25],[121,33,121,36],[120,10,120,11],[120,12,120,13],[120,14,120,15],[120,16,120,17],[120,20,120,21],[120,22,120,23],[118,24,118,25],[118,33,118,36],[119,10,119,11],[119,12,119,13],[119,14,119,15],[119,16,119,17],[119,20,119,21],[119,22,119,23],[119,24,119,25],[119,33,119,36],[118,10,118,11],[118,12,118,13],[118,14,118,15],[118,16,118,17],[118,20,118,21],[118,22,118,23],[116,24,116,25],[116,33,116,36],[117,10,117,11],[117,12,117,13],[117,14,117,15],[117,16,117,17],[117,20,117,21],[117,22,117,23],[117,24,117,25],[117,33,117,36],[116,10,116,11],[116,12,116,13],[116,14,116,15],[116,16,116,17],[116,20,116,21],[116,22,116,23],[114,24,114,25],[114,33,114,36],[115,10,115,11],[115,12,115,13],[115,14,115,15],[115,16,115,17],[115,20,115,21],[115,22,115,23],[115,24,115,25],[115,33,115,36],[114,10,114,11],[114,12,114,13],[114,14,114,15],[114,16,114,17],[114,20,114,21],[114,22,114,23],[112,24,112,25],[112,33,112,36],[113,10,113,11],[113,12,113,13],[113,14,113,15],[113,16,113,17],[113,20,113,21],[113,22,113,23],[113,24,113,25],[113,33,113,36],[112,10,112,11],[112,12,112,13],[112,14,112,15],[112,16,112,17],[112,20,112,21],[112,22,112,23],[110,24,110,25],[110,33,110,36],[111,10,111,11],[111,12,111,13],[111,14,111,15],[111,16,111,17],[111,20,111,21],[111,22,111,23],[111,24,111,25],[111,33,111,36],[110,10,110,11],[110,12,110,13],[110,14,110,15],[110,16,110,17],[110,20,110,21],[110,22,110,23],[108,24,108,25],[108,33,108,36],[109,10,109,11],[109,12,109,13],[109,14,109,15],[109,16,109,17],[109,20,109,21],[109,22,109,23],[109,24,109,25],[109,33,109,36],[108,10,108,11],[108,12,108,13],[108,14,108,15],[108,16,108,17],[108,20,108,21],[108,22,108,23],[106,24,106,25],[106,33,106,36],[107,10,107,11],[107,12,107,13],[107,14,107,15],[107,16,107,17],[107,20,107,21],[107,22,107,23],[107,24,107,25],[107,33,107,36],[106,10,106,11],[106,12,106,13],[106,14,106,15],[106,16,106,17],[106,20,106,21],[106,22,106,23],[104,24,104,25],[104,33,104,36],[105,10,105,11],[105,12,105,13],[105,14,105,15],[105,16,105,17],[105,20,105,21],[105,22,105,23],[105,24,105,25],[105,33,105,36],[104,10,104,11],[104,12,104,13],[104,14,104,15],[104,16,104,17],[104,20,104,21],[104,22,104,23],[102,24,102,25],[102,33,102,36],[103,10,103,11],[103,12,103,13],[103,14,103,15],[103,16,103,17],[103,20,103,21],[103,22,103,23],[103,24,103,25],[103,33,103,36],[102,10,102,11],[102,12,102,13],[102,14,102,15],[102,16,102,17],[102,20,102,21],[102,22,102,23],[101,10,101,11],[101,12,101,13],[101,14,101,15],[101,16,101,17],[101,20,101,21],[101,22,101,23],[101,24,101,25],[101,33,101,36],[100,10,100,11],[100,12,100,13],[100,14,100,15],[100,16,100,17],[100,20,100,21],[100,22,100,23],[99,10,99,11],[99,12,99,13],[99,14,99,15],[99,16,99,17],[99,20,99,21],[99,22,99,23],[99,24,99,25],[99,33,99,36],[100,24,100,25],[100,33,100,36],[97,24,97,25],[97,33,97,36],[97,38,97,40],[98,10,98,11],[98,12,98,13],[98,14,98,15],[98,16,98,17],[98,20,98,21],[98,22,98,23],[98,24,98,25],[97,10,97,11],[97,12,97,13],[97,14,97,15],[97,16,97,17],[97,20,97,21],[97,22,97,23],[98,33,98,36],[95,24,95,25],[95,33,95,36],[96,10,96,11],[96,12,96,13],[96,14,96,15],[96,16,96,17],[96,20,96,21],[96,22,96,23],[96,24,96,25],[96,33,96,36],[95,10,95,11],[95,12,95,13],[95,14,95,15],[95,16,95,17],[95,20,95,21],[95,22,95,23],[93,24,93,25],[93,33,93,36],[94,10,94,11],[94,12,94,13],[94,14,94,15],[94,16,94,17],[94,20,94,21],[94,22,94,23],[94,24,94,25],[94,33,94,36],[93,10,93,11],[93,12,93,13],[93,14,93,15],[93,16,93,17],[93,20,93,21],[93,22,93,23],[91,24,91,25],[91,33,91,36],[92,10,92,11],[92,12,92,13],[92,14,92,15],[92,16,92,17],[92,20,92,21],[92,22,92,23],[92,24,92,25],[92,33,92,36],[91,10,91,11],[91,12,91,13],[91,14,91,15],[91,16,91,17],[91,20,91,21],[91,22,91,23],[86,22,86,23],[86,24,86,25],[88,20,88,21],[88,22,88,23],[88,24,88,25],[88,33,88,36],[89,24,89,25],[89,33,89,36],[90,10,90,11],[90,12,90,13],[90,14,90,15],[90,16,90,17],[90,20,90,21],[90,22,90,23],[90,24,90,25],[90,33,90,36],[89,10,89,11],[89,12,89,13],[89,14,89,15],[89,16,89,17],[89,20,89,21],[89,22,89,23],[83,36,83,37],[83,39,83,40],[83,42,83,43],[83,45,83,46],[83,48,83,49],[83,51,83,52],[83,150,83,153],[86,10,86,11],[86,12,86,13],[86,14,86,15],[86,16,86,17],[86,20,86,21],[83,108,83,109],[83,111,83,112],[83,114,83,115],[83,117,83,118],[83,120,83,121],[83,123,83,124],[83,90,83,91],[83,93,83,94],[83,96,83,97],[83,99,83,100],[83,102,83,103],[83,105,83,106],[82,39,82,40],[82,42,82,43],[82,45,82,46],[82,48,82,49],[83,84,83,85],[83,87,83,88],[83,54,83,55],[83,57,83,58],[83,60,83,61],[83,63,83,64],[83,66,83,67],[83,69,83,70],[83,72,83,73],[83,75,83,76],[83,78,83,79],[83,81,83,82],[83,0,83,5],[83,6,83,7],[83,9,83,10],[83,12,83,13],[83,15,83,16],[82,105,82,106],[82,108,82,109],[82,111,82,112],[82,114,82,115],[82,87,82,88],[82,90,82,91],[82,93,82,94],[82,96,82,97],[82,99,82,100],[82,102,82,103],[82,69,82,70],[82,72,82,73],[82,75,82,76],[82,78,82,79],[82,81,82,82],[82,84,82,85],[82,51,82,52],[82,54,82,55],[82,57,82,58],[82,15,82,16],[82,18,82,19],[82,21,82,22],[82,24,82,25],[82,27,82,28],[82,30,82,31],[81,0,81,2],[81,3,81,5],[81,150,82,153],[82,0,82,2],[82,3,82,4],[82,6,82,7],[82,9,82,10],[82,12,82,13],[82,123,82,124],[82,126,82,127],[82,129,82,130],[82,117,82,118],[82,120,82,121],[82,60,82,61],[82,63,82,64],[82,66,82,67],[82,33,82,34],[82,36,82,37],[80,114,80,115],[80,117,80,118],[80,120,80,121],[80,123,80,124],[80,126,80,127],[80,129,80,130],[80,96,80,97],[80,99,80,100],[80,102,80,103],[80,105,80,106],[80,108,80,109],[80,111,80,112],[80,78,80,79],[80,81,80,82],[80,87,80,88],[80,90,80,91],[80,93,80,94],[80,60,80,61],[80,63,80,64],[80,66,80,67],[80,69,80,70],[80,72,80,73],[80,75,80,76],[80,84,80,85],[79,0,79,5],[80,0,80,5],[80,6,80,7],[80,9,80,10],[80,12,80,13],[80,15,80,16],[80,18,80,19],[80,21,80,22],[8,114,8,116],[8,78,8,80],[8,81,8,83],[8,87,8,89],[8,90,8,92],[8,93,8,95],[8,60,8,62],[8,63,8,65],[8,66,8,68],[8,69,8,71],[8,72,8,74],[8,75,8,77],[8,54,8,56],[8,57,8,59],[8,24,8,26],[8,27,8,29],[8,120,8,122],[8,123,8,125],[8,126,8,128],[8,129,8,131],[8,96,8,98],[8,99,8,101],[8,102,8,104],[8,105,8,107],[8,108,8,110],[8,111,8,113],[8,33,8,35],[8,36,8,38],[8,39,8,41],[8,84,8,86],[7,150,8,150],[7,151,8,151],[8,6,8,8],[8,9,8,11],[8,12,8,14],[8,15,8,17],[8,18,8,20],[8,21,8,23],[7,114,7,116],[7,117,7,119],[7,120,7,122],[7,123,7,125],[7,126,7,128],[7,129,7,131],[7,96,7,98],[7,99,7,101],[7,102,7,104],[7,105,7,107],[7,108,7,110],[8,117,8,119],[7,87,7,89],[7,90,7,92],[7,93,7,95],[7,60,7,62],[7,63,7,65],[7,66,7,68],[7,69,7,71],[7,72,7,74],[7,75,7,77],[7,54,7,56],[7,57,7,59],[7,24,7,26],[7,27,7,29],[7,30,7,32],[7,33,7,35],[7,36,7,38],[7,39,7,41],[7,84,7,86],[6,150,6,151],[6,152,8,152],[6,153,8,153],[7,6,7,8],[7,9,7,11],[7,12,7,14],[7,15,7,17],[7,18,7,20],[7,21,7,23],[6,117,6,119],[6,120,6,122],[6,123,6,125],[6,126,6,128],[6,129,6,131],[6,99,6,101],[6,102,6,104],[6,105,6,107],[6,108,6,110],[6,111,6,113],[6,54,6,56],[6,57,6,59],[7,111,7,113],[7,78,7,80],[7,81,7,83],[6,0,8,0],[6,1,8,1],[6,2,8,2],[6,3,8,3],[6,4,8,4],[6,6,6,8],[6,45,6,47],[6,48,6,50],[6,51,6,53],[7,42,7,44],[7,45,7,47],[7,48,7,50],[7,51,7,53],[8,42,8,44],[8,45,8,47],[8,48,8,50],[8,51,8,53],[6,27,6,29],[6,30,6,32],[6,33,6,35],[6,36,6,38],[6,39,6,41],[6,42,6,44],[8,30,8,32],[4,26,4,29],[4,30,4,31],[4,32,4,34],[4,35,4,36],[6,9,6,11],[6,12,6,14],[6,15,6,17],[6,18,6,20],[6,21,6,23],[6,24,6,26],[3,41,3,44],[3,46,3,48],[3,49,3,51],[3,54,3,56],[3,57,3,60],[4,0,4,1],[4,2,4,3],[4,4,4,5],[4,6,4,12],[4,14,4,16],[3,17,3,19],[3,22,3,25],[3,26,3,29],[3,30,3,33],[3,34,3,37],[3,38,3,40],[4,38,4,40],[4,41,4,44],[4,46,4,48],[4,49,4,51],[4,54,4,56],[4,57,4,60],[4,17,4,19],[4,22,4,25],[2,38,2,40],[3,0,3,1],[3,2,3,3],[3,4,3,5],[3,6,3,12],[3,14,3,16],[2,17,2,19],[2,22,2,25],[2,26,2,29],[2,30,2,33],[80,36,80,37],[80,39,80,40],[0,38,0,40],[0,41,0,44],[0,46,0,48],[0,54,0,56],[0,57,0,60],[2,0,2,1],[2,2,2,3],[2,4,2,5],[2,6,2,12],[2,14,2,16],[0,0,0,12],[0,14,0,16],[0,17,0,23],[0,30,0,33],[0,34,0,35],[0,36,0,37],[2,41,2,44],[2,46,2,48],[2,49,2,51],[2,54,2,56],[2,57,2,60],[2,34,2,37],[6,141,6,143],[6,147,6,149],[83,18,83,19],[83,21,83,22],[83,24,83,25],[83,27,83,28],[83,30,83,31],[83,33,83,34],[83,126,83,127],[83,129,83,130],[8,141,8,143],[8,147,8,149],[80,138,80,139],[80,141,80,142],[80,147,80,148],[82,138,82,139],[82,141,82,142],[82,147,82,148],[6,60,6,62],[6,87,6,89],[6,90,6,92],[6,93,6,95],[6,96,6,98],[6,63,6,65],[88,12,88,13],[88,14,88,15],[88,16,88,17],[6,114,6,116],[6,81,6,83],[6,84,6,86],[6,132,6,134],[6,135,6,137],[6,138,6,140],[6,66,6,68],[6,69,6,71],[6,72,6,74],[6,75,6,77],[6,78,6,80],[80,42,80,43],[80,45,80,46],[80,48,80,49],[80,51,80,52],[80,54,80,55],[80,57,80,58],[80,24,80,25],[80,27,80,28],[80,30,80,31],[80,33,80,34],[83,147,83,148],[131,33,131,36],[132,33,132,36],[134,33,134,36],[131,10,131,11],[132,10,132,11],[134,10,134,11],[131,12,131,13],[132,12,132,13],[134,12,134,13],[131,14,131,15],[132,14,132,15],[134,14,134,15],[86,33,86,36],[87,10,87,11],[87,12,87,13],[87,14,87,15],[87,16,87,17],[87,20,87,21],[87,22,87,23],[83,135,83,136],[130,10,130,11],[130,12,130,13],[130,14,130,15],[6,144,6,146],[7,144,7,146],[8,144,8,146],[80,144,80,145],[82,144,82,145],[83,144,83,145],[133,10,133,11],[133,12,133,13],[133,14,133,15],[133,16,133,17],[133,20,133,21],[133,22,133,23],[133,24,133,25],[133,33,133,36],[83,138,83,139],[83,141,83,142],[130,16,130,17],[130,20,130,21],[130,22,130,23],[130,24,130,25],[130,33,130,36],[87,24,87,25],[87,33,87,36],[88,10,88,11]]}
[":::: รายงานการขายประจำวัน (Sale Daily Report)  ::::",null,null,null,null,null,null,null,null,null,null,null,null,null,"Print Date : ",null,null,{"$f":"NOW()","v":"2025-04-24T22:39:10.130"},null,null,null,null,null,null,null,null,null,null,null,null,"จำนวนร้าน :",null,null,null,{"$f":"MAX($A$10:$A$79)","v":0},null,"ร้าน",null,"เป้ายอดขาย :",null,null,null,null,null,null,null,{"$f":"C3","v":45790},null,null,{"$f":"LEFT('Problems & Solutions'!$B$2,FIND(\"|\",'Problems & Solutions'!$B$2))&\" วันที่\"&TEXT($C$3,\"[$-107041E] d mmmm yyyy;@\")","v":"ขั้นตอนการตรวจรีพอร์ตขาย | วันที่ 13 พฤษภาคม 2568"},null,null,null,null,"เวลากลับ :"]
[]
["วันที่ :",null,{"$f":"DATE(ใส่ข้อมูล!G2-543,ใส่ข้อมูล!V2,ActiveSheetName)","v":"2025-05-13"},null,"พนักงานขาย",null,{"$f":"INDEX(OFFSET(Sale_Region,,1),ActiveSheetName)","v":0},null,null,null,null,null,null,null,"รวมยอดเบิก :",null,null,{"$f":"E136","v":0},null,null,"ชิ้น",null,"ใหญ่สด(40)",null,null,null,{"$f":"Cash_Major_Bill","v":0},null,null,null,"ใหญ่เชื่อ(42)",null,null,null,{"$f":"Credit_Major_Bill","v":0},null,null,null,"บิลใหญ่ :",null,null,{"$f":"AA3+AI3","v":0},null,null,null,null,"เติมน้ำมัน :",null,null,null,null,null,"บาท",null,"ไมล์ออก :",null,null,{"$f":"เลขไมล์ออก","v":0},null,null,null,"Km"]
["เขตการขาย :",null,{"$f":"INDEX(Sale_Region,ActiveSheetName)","v":0},null,"ผช.ขาย",null,{"$f":"INDEX(OFFSET(Sale_Region,,2),ActiveSheetName)","v":0},null,null,null,null,null,null,null,"ของเหลือ :",null,null,{"$f":"F136","v":0},null,null,"ชิ้น",null,"เล็กสด(41)",null,null,null,{"$f":"Cash_Minor_Bill","v":0},null,null,null,"เล็กเชื่อ(43)",null,null,null,{"$f":"Credit_Minor_Bill","v":0},null,null,null,"บิลเล็ก :",null,null,{"$f":"AA4+AI4","v":0},null,null,null,null,"จำนวนลิตร :",null,null,null,null,null,"ลิตร",null,"ไมล์เข้า :",null,null,null,null,null,null,"Km"]
["สายส่ง :",null,{"$f":"\"Sale \"&ใส่ข้อมูล!E3&\"-\"&ใส่ข้อมูล!G3","v":"Sale KB-01"},null,"พนักงานเสริม",null,{"$f":"INDEX(OFFSET(Sale_Region,,3),ActiveSheetName)","v":0},null,null,null,null,null,null,null,"ของเสีย :",null,null,{"$f":"G136","v":0},null,null,"ชิ้น",null,"น้ำหนักของเสีย",null,null,null,null,null,null,null,"Kg.",null,"%ของเสีย",null,null,{"$f":"IF(Order_Cal=0,0,ROUND(Waste_Cal*100/Order_Cal,2))","v":0},null,"%","VAT :",null,null,{"$f":"EW81","v":0},null,null,null,null,"ต้นทุนสาขา :",null,null,{"$f":"SUMPRODUCT((($A$88:$A$135)-($A$88:$A$135)*0.45)*(($E$88:$E$135)-($G$88:$G$135)))","v":0},null,null,"บาท",null,"ระยะทาง :",null,null,{"$f":"IF(OR($BF$4=0,$BF$3=0),0,$BF$4-$BF$3)","v":0},null,null,null,"Km"]
[]
["No","รหัสร้าน (CustNo)","ชื่อร้าน (Store Name)","เวลาเข้าร้าน","ระยะเวลาระหว่างร้าน","บิล(Invoice)",{"$f":"INDEX(INDIRECT(\"dProduct[ProductName]\"),ROUNDUP(COLUMNS($G:G)/3,0))","v":"ขนมปังหมูหยองน้ำสลัด"},null,null,{"$f":"INDEX(INDIRECT(\"dProduct[ProductName]\"),ROUNDUP(COLUMNS($G:J)/3,0))","v":"ขนมปังหมูหยองน้ำพริกเผา"},null,null,{"$f":"INDEX(INDIRECT(\"dProduct[ProductName]\"),ROUNDUP(COLUMNS($G:M)/3,0))","v":"ขนมปังไก่หยองน้ำสลัด"},null,null,{"$f":"INDEX(INDIRECT(\"dProduct[ProductName]\"),ROUNDUP(COLUMNS($G:P)/3,0))","v":"ขนมปังไส้ครีมสลัด"},null,null,{"$f":"INDEX(INDIRECT(\"dProduct[ProductName]\"),ROUNDUP(COLUMNS($G:S)/3,0))","v":"ขนมปังเนยสด"},null,null,{"$f":"INDEX(INDIRECT(\"dProduct[ProductName]\"),ROUNDUP(COLUMNS($G:V)/3,0))","v":"ขนมปังไส้สังขยาเล็ก"},null,null,{"$f":"INDEX(INDIRECT(\"dProduct[ProductName]\"),ROUNDUP(COLUMNS($G:Y)/3,0))","v":"ขนมปังไส้เผือก"},null,null,{"$f":"INDEX(INDIRECT(\"dProduct[ProductName]\"),ROUNDUP(COLUMNS($G:AB)/3,0))","v":"ขนมปังไส้ถั่วแดง"},null,null,{"$f":"INDEX(INDIRECT(\"dProduct[ProductName]\"),ROUNDUP(COLUMNS($G:AE)/3,0))","v":"ขนมปังไส้ถั่วดำ"},null,null,{"$f":"INDEX(INDIRECT(\"dProduct[ProductName]\"),ROUNDUP(COLUMNS($G:AH)/3,0))","v":"ขนมปังไส้มันม่วง"},null,null,{"$f":"INDEX(INDIRECT(\"dProduct[ProductName]\"),ROUNDUP(COLUMNS($G:AK)/3,0))","v":"เค้กกล้วยหอม"},null,null,{"$f":"INDEX(INDIRECT(\"dProduct[ProductName]\"),ROUNDUP(COLUMNS($G:AN)/3,0))","v":"เค้กบัตเตอร์"},null,null,{"$f":"INDEX(INDIRECT(\"dProduct[ProductName]\"),ROUNDUP(COLUMNS($G:AQ)/3,0))","v":"ขนมปังโรลถั่วแดง"},null,null,{"$f":"INDEX(INDIRECT(\"dProduct[ProductName]\"),ROUNDUP(COLUMNS($G:AT)/3,0))","v":"ขนมปังไส้สังขยาใหญ่"},null,null,{"$f":"INDEX(INDIRECT(\"dProduct[ProductName]\"),ROUNDUP(COLUMNS($G:AW)/3,0))","v":"ขนมปังชนิดแผ่น(480กรัม)"},null,null,{"$f":"INDEX(INDIRECT(\"dProduct[ProductName]\"),ROUNDUP(COLUMNS($G:AZ)/3,0))","v":"โมจิไส้ถั่ว"},null,null,{"$f":"INDEX(INDIRECT(\"dProduct[ProductName]\"),ROUNDUP(COLUMNS($G:BC)/3,0))","v":"โมจิไส้เผือก"},null,null,{"$f":"INDEX(INDIRECT(\"dProduct[ProductName]\"),ROUNDUP(COLUMNS($G:BF)/3,0))","v":"โมจิไส้ถั่วไข่เค็ม"},null,null,{"$f":"INDEX(INDIRECT(\"dProduct[ProductName]\"),ROUNDUP(COLUMNS($G:BI)/3,0))","v":"ขนมปังพิซซ่า"},null,null,{"$f":"INDEX(INDIRECT(\"dProduct[ProductName]\"),ROUNDUP(COLUMNS($G:BL)/3,0))","v":"ขนมปังพิซซ่าปูอัดแฮม"},null,null,{"$f":"INDEX(INDIRECT(\"dProduct[ProductName]\"),ROUNDUP(COLUMNS($G:BO)/3,0))","v":"ขนมปังไส้กรอก"},null,null,{"$f":"INDEX(INDIRECT(\"dProduct[ProductName]\"),ROUNDUP(COLUMNS($G:BR)/3,0))","v":"ขนมก้านบัว"},null,null,{"$f":"INDEX(INDIRECT(\"dProduct[ProductName]\"),ROUNDUP(COLUMNS($G:BU)/3,0))","v":"พายสับปะรด"},null,null,{"$f":"INDEX(INDIRECT(\"dProduct[ProductName]\"),ROUNDUP(COLUMNS($G:BX)/3,0))","v":"พายไส้มะพร้าว"},null,null,{"$f":"INDEX(INDIRECT(\"dProduct[ProductName]\"),ROUNDUP(COLUMNS($G:CA)/3,0))","v":"ขนมปังโรลมันเทศ"},null,null,{"$f":"INDEX(INDIRECT(\"dProduct[ProductName]\"),ROUNDUP(COLUMNS($G:CD)/3,0))","v":"ขนมปังไส้ครีมสลัดน้ำพริกเผา"},null,null,{"$f":"INDEX(INDIRECT(\"dProduct[ProductName]\"),ROUNDUP(COLUMNS($G:CG)/3,0))","v":"ขนมปังไส้สังขยาไข่"},null,null,{"$f":"INDEX(INDIRECT(\"dProduct[ProductName]\"),ROUNDUP(COLUMNS($G:CJ)/3,0))","v":"ขนมปังไส้สังขยามะพร้าว"},null,null,{"$f":"INDEX(INDIRECT(\"dProduct[ProductName]\"),ROUNDUP(COLUMNS($G:CM)/3,0))","v":"ขนมปังไส้ครีมชาไทย"},null,null,{"$f":"INDEX(INDIRECT(\"dProduct[ProductName]\"),ROUNDUP(COLUMNS($G:CP)/3,0))","v":"ขนมปังโรลมันม่วง"},null,null,{"$f":"INDEX(INDIRECT(\"dProduct[ProductName]\"),ROUNDUP(COLUMNS($G:CS)/3,0))","v":"ขนมปังโรลช็อกโกแลต"},null,null,{"$f":"INDEX(INDIRECT(\"dProduct[ProductName]\"),ROUNDUP(COLUMNS($G:CV)/3,0))","v":"ขนมปังชนิดแผ่น(155กรัม)"},null,null,{"$f":"INDEX(INDIRECT(\"dProduct[ProductName]\"),ROUNDUP(COLUMNS($G:CY)/3,0))","v":"ขนมปังโรลเผือก"},null,null,{"$f":"INDEX(INDIRECT(\"dProduct[ProductName]\"),ROUNDUP(COLUMNS($G:DB)/3,0))","v":"ขนมปังไก่หยองน้ำสลัด Mini"},null,null,{"$f":"INDEX(INDIRECT(\"dProduct[ProductName]\"),ROUNDUP(COLUMNS($G:DE)/3,0))","v":"ขนมปังไส้ช็อกโกแลต"},null,null,{"$f":"INDEX(INDIRECT(\"dProduct[ProductName]\"),ROUNDUP(COLUMNS($G:DH)/3,0))","v":"ขนมปังไส้ครีมสังขยาไข่"},null,null,{"$f":"INDEX(INDIRECT(\"dProduct[ProductName]\"),ROUNDUP(COLUMNS($G:DK)/3,0))","v":"ขนมปังพิซซ่าฮาวายเอี้ยน"},null,null,{"$f":"INDEX(INDIRECT(\"dProduct[ProductName]\"),ROUNDUP(COLUMNS($G:DN)/3,0))","v":"ครัวซองต์หมูหยองน้ำสลัด"},null,null,{"$f":"INDEX(INDIRECT(\"dProduct[ProductName]\"),ROUNDUP(COLUMNS($G:DQ)/3,0))","v":"แพนเบรดไส้เผือก"},null,null,{"$f":"INDEX(INDIRECT(\"dProduct[ProductName]\"),ROUNDUP(COLUMNS($G:DT)/3,0))","v":"แพนเบรดไส้ถั่วแดง"},null,null,{"$f":"INDEX(INDIRECT(\"dProduct[ProductName]\"),ROUNDUP(COLUMNS($G:DW)/3,0))","v":"ขนมปังกรอบเนยน้ำตาล(30กรัม)"},null,null,{"$f":"INDEX(INDIRECT(\"dProduct[ProductName]\"),ROUNDUP(COLUMNS($G:DZ)/3,0))","v":"ขนมปังชนิดแผ่นโฮลวีต"},null,null,{"$f":"INDEX(INDIRECT(\"dProduct[ProductName]\"),ROUNDUP(COLUMNS($G:EC)/3,0))","v":"เค้กโรลใบเตย"},null,null,{"$f":"INDEX(INDIRECT(\"dProduct[ProductName]\"),ROUNDUP(COLUMNS($G:EF)/3,0))","v":"ขนมโมจิไส้ถั่วดำ"},null,null,{"$f":"INDEX(INDIRECT(\"dProduct[ProductName]\"),ROUNDUP(COLUMNS($G:EI)/3,0))","v":"ครัวซองต์ไส้กรอกชีส"},null,null,{"$f":"INDEX(INDIRECT(\"dProduct[ProductName]\"),ROUNDUP(COLUMNS($G:EL)/3,0))","v":"ขนมเปี๊ยะไส้ถั่ว"},null,null,{"$f":"INDEX(INDIRECT(\"dProduct[ProductName]\"),ROUNDUP(COLUMNS($G:EO)/3,0))","v":"ขนมเปี๊ยะไส้ฟัก"},null,null,{"$f":"INDEX(INDIRECT(\"dProduct[ProductName]\"),ROUNDUP(COLUMNS($G:ER)/3,0))","v":"มังกี้เค้ก"},null,null,"มูลค่าสินค้า",null,"ภาษี","รวมยอดขาย"]
[null,null,null,null,null,"ราคาขาย",{"$f":"IF(G$7=0,0,INDEX(Price_List,ROUNDUP(COLUMNS($G:G)/3,0)))","v":20},null,null,{"$f":"IF(J$7=0,0,INDEX(Price_List,ROUNDUP(COLUMNS($G:J)/3,0)))","v":20},null,null,{"$f":"IF(M$7=0,0,INDEX(Price_List,ROUNDUP(COLUMNS($G:M)/3,0)))","v":20},null,null,{"$f":"IF(P$7=0,0,INDEX(Price_List,ROUNDUP(COLUMNS($G:P)/3,0)))","v":15},null,null,{"$f":"IF(S$7=0,0,INDEX(Price_List,ROUNDUP(COLUMNS($G:S)/3,0)))","v":15},null,null,{"$f":"IF(V$7=0,0,INDEX(Price_List,ROUNDUP(COLUMNS($G:V)/3,0)))","v":10},null,null,{"$f":"IF(Y$7=0,0,INDEX(Price_List,ROUNDUP(COLUMNS($G:Y)/3,0)))","v":10},null,null,{"$f":"IF(AB$7=0,0,INDEX(Price_List,ROUNDUP(COLUMNS($G:AB)/3,0)))","v":10},null,null,{"$f":"IF(AE$7=0,0,INDEX(Price_List,ROUNDUP(COLUMNS($G:AE)/3,0)))","v":10},null,null,{"$f":"IF(AH$7=0,0,INDEX(Price_List,ROUNDUP(COLUMNS($G:AH)/3,0)))","v":10},null,null,{"$f":"IF(AK$7=0,0,INDEX(Price_List,ROUNDUP(COLUMNS($G:AK)/3,0)))","v":15},null,null,{"$f":"IF(AN$7=0,0,INDEX(Price_List,ROUNDUP(COLUMNS($G:AN)/3,0)))","v":15},null,null,{"$f":"IF(AQ$7=0,0,INDEX(Price_List,ROUNDUP(COLUMNS($G:AQ)/3,0)))","v":15},null,null,{"$f":"IF(AT$7=0,0,INDEX(Price_List,ROUNDUP(COLUMNS($G:AT)/3,0)))","v":15},null,null,{"$f":"IF(AW$7=0,0,INDEX(Price_List,ROUNDUP(COLUMNS($G:AW)/3,0)))","v":42},null,null,{"$f":"IF(AZ$7=0,0,INDEX(Price_List,ROUNDUP(COLUMNS($G:AZ)/3,0)))","v":12},null,null,{"$f":"IF(BC$7=0,0,INDEX(Price_List,ROUNDUP(COLUMNS($G:BC)/3,0)))","v":12},null,null,{"$f":"IF(BF$7=0,0,INDEX(Price_List,ROUNDUP(COLUMNS($G:BF)/3,0)))","v":15},null,null,{"$f":"IF(BI$7=0,0,INDEX(Price_List,ROUNDUP(COLUMNS($G:BI)/3,0)))","v":20},null,null,{"$f":"IF(BL$7=0,0,INDEX(Price_List,ROUNDUP(COLUMNS($G:BL)/3,0)))","v":20},null,null,{"$f":"IF(BO$7=0,0,INDEX(Price_List,ROUNDUP(COLUMNS($G:BO)/3,0)))","v":20},null,null,{"$f":"IF(BR$7=0,0,INDEX(Price_List,ROUNDUP(COLUMNS($G:BR)/3,0)))","v":15},null,null,{"$f":"IF(BU$7=0,0,INDEX(Price_List,ROUNDUP(COLUMNS($G:BU)/3,0)))","v":20},null,null,{"$f":"IF(BX$7=0,0,INDEX(Price_List,ROUNDUP(COLUMNS($G:BX)/3,0)))","v":20},null,null,{"$f":"IF(CA$7=0,0,INDEX(Price_List,ROUNDUP(COLUMNS($G:CA)/3,0)))","v":15},null,null,{"$f":"IF(CD$7=0,0,INDEX(Price_List,ROUNDUP(COLUMNS($G:CD)/3,0)))","v":15},null,null,{"$f":"IF(CG$7=0,0,INDEX(Price_List,ROUNDUP(COLUMNS($G:CG)/3,0)))","v":20},null,null,{"$f":"IF(CJ$7=0,0,INDEX(Price_List,ROUNDUP(COLUMNS($G:CJ)/3,0)))","v":20},null,null,{"$f":"IF(CM$7=0,0,INDEX(Price_List,ROUNDUP(COLUMNS($G:CM)/3,0)))","v":10},null,null,{"$f":"IF(CP$7=0,0,INDEX(Price_List,ROUNDUP(COLUMNS($G:CP)/3,0)))","v":15},null,null,{"$f":"IF(CS$7=0,0,INDEX(Price_List,ROUNDUP(COLUMNS($G:CS)/3,0)))","v":15},null,null,{"$f":"IF(CV$7=0,0,INDEX(Price_List,ROUNDUP(COLUMNS($G:CV)/3,0)))","v":16},null,null,{"$f":"IF(CY$7=0,0,INDEX(Price_List,ROUNDUP(COLUMNS($G:CY)/3,0)))","v":15},null,null,{"$f":"IF(DB$7=0,0,INDEX(Price_List,ROUNDUP(COLUMNS($G:DB)/3,0)))","v":15},null,null,{"$f":"IF(DE$7=0,0,INDEX(Price_List,ROUNDUP(COLUMNS($G:DE)/3,0)))","v":10},null,null,{"$f":"IF(DH$7=0,0,INDEX(Price_List,ROUNDUP(COLUMNS($G:DH)/3,0)))","v":10},null,null,{"$f":"IF(DK$7=0,0,INDEX(Price_List,ROUNDUP(COLUMNS($G:DK)/3,0)))","v":20},null,null,{"$f":"IF(DN$7=0,0,INDEX(Price_List,ROUNDUP(COLUMNS($G:DN)/3,0)))","v":20},null,null,{"$f":"IF(DQ$7=0,0,INDEX(Price_List,ROUNDUP(COLUMNS($G:DQ)/3,0)))","v":15},null,null,{"$f":"IF(DT$7=0,0,INDEX(Price_List,ROUNDUP(COLUMNS($G:DT)/3,0)))","v":15},null,null,{"$f":"IF(DW$7=0,0,INDEX(Price_List,ROUNDUP(COLUMNS($G:DW)/3,0)))","v":12},null,null,{"$f":"IF(DZ$7=0,0,INDEX(Price_List,ROUNDUP(COLUMNS($G:DZ)/3,0)))","v":18},null,null,{"$f":"IF(EC$7=0,0,INDEX(Price_List,ROUNDUP(COLUMNS($G:EC)/3,0)))","v":12},null,null,{"$f":"IF(EF$7=0,0,INDEX(Price_List,ROUNDUP(COLUMNS($G:EF)/3,0)))","v":12},null,null,{"$f":"IF(EI$7=0,0,INDEX(Price_List,ROUNDUP(COLUMNS($G:EI)/3,0)))","v":25},null,null,{"$f":"IF(EL$7=0,0,INDEX(Price_List,ROUNDUP(COLUMNS($G:EL)/3,0)))","v":12},null,null,{"$f":"IF(EO$7=0,0,INDEX(Price_List,ROUNDUP(COLUMNS($G:EO)/3,0)))","v":12},null,null,{"$f":"IF(ER$7=0,0,INDEX(Price_List,ROUNDUP(COLUMNS($G:ER)/3,0)))","v":12},null,null,"เงินเชื่อ","เงินสด"]
[null,null,null,null,null,"คงเหลือ(ตามบัญชี)",{"$f":"IF(G$7=0,0,INDEX(INDIRECT(Order_Rng),ROUNDUP(COLUMNS($G:G)/3,0)))","v":0},null,null,{"$f":"IF(J$7=0,0,INDEX(INDIRECT(Order_Rng),ROUNDUP(COLUMNS($G:J)/3,0)))","v":0},null,null,{"$f":"IF(M$7=0,0,INDEX(INDIRECT(Order_Rng),ROUNDUP(COLUMNS($G:M)/3,0)))","v":0},null,null,{"$f":"IF(P$7=0,0,INDEX(INDIRECT(Order_Rng),ROUNDUP(COLUMNS($G:P)/3,0)))","v":0},null,null,{"$f":"IF(S$7=0,0,INDEX(INDIRECT(Order_Rng),ROUNDUP(COLUMNS($G:S)/3,0)))","v":0},null,null,{"$f":"IF(V$7=0,0,INDEX(INDIRECT(Order_Rng),ROUNDUP(COLUMNS($G:V)/3,0)))","v":0},null,null,{"$f":"IF(Y$7=0,0,INDEX(INDIRECT(Order_Rng),ROUNDUP(COLUMNS($G:Y)/3,0)))","v":0},null,null,{"$f":"IF(AB$7=0,0,INDEX(INDIRECT(Order_Rng),ROUNDUP(COLUMNS($G:AB)/3,0)))","v":0},null,null,{"$f":"IF(AE$7=0,0,INDEX(INDIRECT(Order_Rng),ROUNDUP(COLUMNS($G:AE)/3,0)))","v":0},null,null,{"$f":"IF(AH$7=0,0,INDEX(INDIRECT(Order_Rng),ROUNDUP(COLUMNS($G:AH)/3,0)))","v":0},null,null,{"$f":"IF(AK$7=0,0,INDEX(INDIRECT(Order_Rng),ROUNDUP(COLUMNS($G:AK)/3,0)))","v":0},null,null,{"$f":"IF(AN$7=0,0,INDEX(INDIRECT(Order_Rng),ROUNDUP(COLUMNS($G:AN)/3,0)))","v":0},null,null,{"$f":"IF(AQ$7=0,0,INDEX(INDIRECT(Order_Rng),ROUNDUP(COLUMNS($G:AQ)/3,0)))","v":0},null,null,{"$f":"IF(AT$7=0,0,INDEX(INDIRECT(Order_Rng),ROUNDUP(COLUMNS($G:AT)/3,0)))","v":0},null,null,{"$f":"IF(AW$7=0,0,INDEX(INDIRECT(Order_Rng),ROUNDUP(COLUMNS($G:AW)/3,0)))","v":0},null,null,{"$f":"IF(AZ$7=0,0,INDEX(INDIRECT(Order_Rng),ROUNDUP(COLUMNS($G:AZ)/3,0)))","v":0},null,null,{"$f":"IF(BC$7=0,0,INDEX(INDIRECT(Order_Rng),ROUNDUP(COLUMNS($G:BC)/3,0)))","v":0},null,null,{"$f":"IF(BF$7=0,0,INDEX(INDIRECT(Order_Rng),ROUNDUP(COLUMNS($G:BF)/3,0)))","v":0},null,null,{"$f":"IF(BI$7=0,0,INDEX(INDIRECT(Order_Rng),ROUNDUP(COLUMNS($G:BI)/3,0)))","v":0},null,null,{"$f":"IF(BL$7=0,0,INDEX(INDIRECT(Order_Rng),ROUNDUP(COLUMNS($G:BL)/3,0)))","v":0},null,null,{"$f":"IF(BO$7=0,0,INDEX(INDIRECT(Order_Rng),ROUNDUP(COLUMNS($G:BO)/3,0)))","v":0},null,null,{"$f":"IF(BR$7=0,0,INDEX(INDIRECT(Order_Rng),ROUNDUP(COLUMNS($G:BR)/3,0)))","v":0},null,null,{"$f":"IF(BU$7=0,0,INDEX(INDIRECT(Order_Rng),ROUNDUP(COLUMNS($G:BU)/3,0)))","v":0},null,null,{"$f":"IF(BX$7=0,0,INDEX(INDIRECT(Order_Rng),ROUNDUP(COLUMNS($G:BX)/3,0)))","v":0},null,null,{"$f":"IF(CA$7=0,0,INDEX(INDIRECT(Order_Rng),ROUNDUP(COLUMNS($G:CA)/3,0)))","v":0},null,null,{"$f":"IF(CD$7=0,0,INDEX(INDIRECT(Order_Rng),ROUNDUP(COLUMNS($G:CD)/3,0)))","v":0},null,null,{"$f":"IF(CG$7=0,0,INDEX(INDIRECT(Order_Rng),ROUNDUP(COLUMNS($G:CG)/3,0)))","v":0},null,null,{"$f":"IF(CJ$7=0,0,INDEX(INDIRECT(Order_Rng),ROUNDUP(COLUMNS($G:CJ)/3,0)))","v":0},null,null,{"$f":"IF(CM$7=0,0,INDEX(INDIRECT(Order_Rng),ROUNDUP(COLUMNS($G:CM)/3,0)))","v":0},null,null,{"$f":"IF(CP$7=0,0,INDEX(INDIRECT(Order_Rng),ROUNDUP(COLUMNS($G:CP)/3,0)))","v":0},null,null,{"$f":"IF(CS$7=0,0,INDEX(INDIRECT(Order_Rng),ROUNDUP(COLUMNS($G:CS)/3,0)))","v":0},null,null,{"$f":"IF(CV$7=0,0,INDEX(INDIRECT(Order_Rng),ROUNDUP(COLUMNS($G:CV)/3,0)))","v":0},null,null,{"$f":"IF(CY$7=0,0,INDEX(INDIRECT(Order_Rng),ROUNDUP(COLUMNS($G:CY)/3,0)))","v":0},null,null,{"$f":"IF(DB$7=0,0,INDEX(INDIRECT(Order_Rng),ROUNDUP(COLUMNS($G:DB)/3,0)))","v":0},null,null,{"$f":"IF(DE$7=0,0,INDEX(INDIRECT(Order_Rng),ROUNDUP(COLUMNS($G:DE)/3,0)))","v":0},null,null,{"$f":"IF(DH$7=0,0,INDEX(INDIRECT(Order_Rng),ROUNDUP(COLUMNS($G:DH)/3,0)))","v":0},null,null,{"$f":"IF(DK$7=0,0,INDEX(INDIRECT(Order_Rng),ROUNDUP(COLUMNS($G:DK)/3,0)))","v":0},null,null,{"$f":"IF(DN$7=0,0,INDEX(INDIRECT(Order_Rng),ROUNDUP(COLUMNS($G:DN)/3,0)))","v":0},null,null,{"$f":"IF(DQ$7=0,0,INDEX(INDIRECT(Order_Rng),ROUNDUP(COLUMNS($G:DQ)/3,0)))","v":0},null,null,{"$f":"IF(DT$7=0,0,INDEX(INDIRECT(Order_Rng),ROUNDUP(COLUMNS($G:DT)/3,0)))","v":0},null,null,{"$f":"IF(DW$7=0,0,INDEX(INDIRECT(Order_Rng),ROUNDUP(COLUMNS($G:DW)/3,0)))","v":0},null,null,{"$f":"IF(DZ$7=0,0,INDEX(INDIRECT(Order_Rng),ROUNDUP(COLUMNS($G:DZ)/3,0)))","v":0},null,null,{"$f":"IF(EC$7=0,0,INDEX(INDIRECT(Order_Rng),ROUNDUP(COLUMNS($G:EC)/3,0)))","v":0},null,null,{"$f":"IF(EF$7=0,0,INDEX(INDIRECT(Order_Rng),ROUNDUP(COLUMNS($G:EF)/3,0)))","v":0},null,null,{"$f":"IF(EI$7=0,0,INDEX(INDIRECT(Order_Rng),ROUNDUP(COLUMNS($G:EI)/3,0)))","v":0},null,null,{"$f":"IF(EL$7=0,0,INDEX(INDIRECT(Order_Rng),ROUNDUP(COLUMNS($G:EL)/3,0)))","v":0},null,null,{"$f":"IF(EO$7=0,0,INDEX(INDIRECT(Order_Rng),ROUNDUP(COLUMNS($G:EO)/3,0)))","v":0},null,null,{"$f":"IF(ER$7=0,0,INDEX(INDIRECT(Order_Rng),ROUNDUP(COLUMNS($G:ER)/3,0)))","v":0}]
[{"$f":"IF(OR($B10=\"\",COUNTIF($B$10:$B10,$B10)>1,LEN(TRIM($B10))<>10,ISNUMBER(--MID(TRIM($B10),5,1))),\"-\",MAX(COUNT($A$9:$A9)+1))","v":"-"}]
[{"$f":"IF(OR($B11=\"\",COUNTIF($B$10:$B11,$B11)>1,LEN(TRIM($B11))<>10,ISNUMBER(--MID(TRIM($B11),5,1))),\"-\",MAX(COUNT($A$9:$A10)+1))","v":"-"},null,null,null,{"$f":"IF(D11=\"\",\"\",D11-D10)","v":""}]
[{"$f":"IF(OR($B12=\"\",COUNTIF($B$10:$B12,$B12)>1,LEN(TRIM($B12))<>10,ISNUMBER(--MID(TRIM($B12),5,1))),\"-\",MAX(COUNT($A$9:$A11)+1))","v":"-"},null,null,null,{"$f":"IF(D12=\"\",\"\",D12-D11)","v":""}]
[{"$f":"IF(OR($B13=\"\",COUNTIF($B$10:$B13,$B13)>1,LEN(TRIM($B13))<>10,ISNUMBER(--MID(TRIM($B13),5,1))),\"-\",MAX(COUNT($A$9:$A12)+1))","v":"-"},null,null,null,""]
[{"$f":"IF(OR($B14=\"\",COUNTIF($B$10:$B14,$B14)>1,LEN(TRIM($B14))<>10,ISNUMBER(--MID(TRIM($B14),5,1))),\"-\",MAX(COUNT($A$9:$A13)+1))","v":"-"},null,null,null,""]
[{"$f":"IF(OR($B15=\"\",COUNTIF($B$10:$B15,$B15)>1,LEN(TRIM($B15))<>10,ISNUMBER(--MID(TRIM($B15),5,1))),\"-\",MAX(COUNT($A$9:$A14)+1))","v":"-"},null,null,null,""]
[{"$f":"IF(OR($B16=\"\",COUNTIF($B$10:$B16,$B16)>1,LEN(TRIM($B16))<>10,ISNUMBER(--MID(TRIM($B16),5,1))),\"-\",MAX(COUNT($A$9:$A15)+1))","v":"-"},null,null,null,""]
[{"$f":"IF(OR($B17=\"\",COUNTIF($B$10:$B17,$B17)>1,LEN(TRIM($B17))<>10,ISNUMBER(--MID(TRIM($B17),5,1))),\"-\",MAX(COUNT($A$9:$A16)+1))","v":"-"},null,null,null,""]
[{"$f":"IF(OR($B18=\"\",COUNTIF($B$10:$B18,$B18)>1,LEN(TRIM($B18))<>10,ISNUMBER(--MID(TRIM($B18),5,1))),\"-\",MAX(COUNT($A$9:$A17)+1))","v":"-"},null,null,null,""]
[{"$f":"IF(OR($B19=\"\",COUNTIF($B$10:$B19,$B19)>1,LEN(TRIM($B19))<>10,ISNUMBER(--MID(TRIM($B19),5,1))),\"-\",MAX(COUNT($A$9:$A18)+1))","v":"-"},null,null,null,""]
[{"$f":"IF(OR($B20=\"\",COUNTIF($B$10:$B20,$B20)>1,LEN(TRIM($B20))<>10,ISNUMBER(--MID(TRIM($B20),5,1))),\"-\",MAX(COUNT($A$9:$A19)+1))","v":"-"},null,null,null,""]
[{"$f":"IF(OR($B21=\"\",COUNTIF($B$10:$B21,$B21)>1,LEN(TRIM($B21))<>10,ISNUMBER(--MID(TRIM($B21),5,1))),\"-\",MAX(COUNT($A$9:$A20)+1))","v":"-"},null,null,null,""]
[{"$f":"IF(OR($B22=\"\",COUNTIF($B$10:$B22,$B22)>1,LEN(TRIM($B22))<>10,ISNUMBER(--MID(TRIM($B22),5,1))),\"-\",MAX(COUNT($A$9:$A21)+1))","v":"-"},null,null,null,""]
[{"$f":"IF(OR($B23=\"\",COUNTIF($B$10:$B23,$B23)>1,LEN(TRIM($B23))<>10,ISNUMBER(--MID(TRIM($B23),5,1))),\"-\",MAX(COUNT($A$9:$A22)+1))","v":"-"},null,null,null,""]
[{"$f":"IF(OR($B24=\"\",COUNTIF($B$10:$B24,$B24)>1,LEN(TRIM($B24))<>10,ISNUMBER(--MID(TRIM($B24),5,1))),\"-\",MAX(COUNT($A$9:$A23)+1))","v":"-"},null,null,null,""]
[{"$f":"IF(OR($B25=\"\",COUNTIF($B$10:$B25,$B25)>1,LEN(TRIM($B25))<>10,ISNUMBER(--MID(TRIM($B25),5,1))),\"-\",MAX(COUNT($A$9:$A24)+1))","v":"-"},null,null,null,""]
[{"$f":"IF(OR($B26=\"\",COUNTIF($B$10:$B26,$B26)>1,LEN(TRIM($B26))<>10,ISNUMBER(--MID(TRIM($B26),5,1))),\"-\",MAX(COUNT($A$9:$A25)+1))","v":"-"},null,null,null,""]
[{"$f":"IF(OR($B27=\"\",COUNTIF($B$10:$B27,$B27)>1,LEN(TRIM($B27))<>10,ISNUMBER(--MID(TRIM($B27),5,1))),\"-\",MAX(COUNT($A$9:$A26)+1))","v":"-"},null,null,null,""]
[{"$f":"IF(OR($B28=\"\",COUNTIF($B$10:$B28,$B28)>1,LEN(TRIM($B28))<>10,ISNUMBER(--MID(TRIM($B28),5,1))),\"-\",MAX(COUNT($A$9:$A27)+1))","v":"-"},null,null,null,""]
[{"$f":"IF(OR($B29=\"\",COUNTIF($B$10:$B29,$B29)>1,LEN(TRIM($B29))<>10,ISNUMBER(--MID(TRIM($B29),5,1))),\"-\",MAX(COUNT($A$9:$A28)+1))","v":"-"},null,null,null,""]
[{"$f":"IF(OR($B30=\"\",COUNTIF($B$10:$B30,$B30)>1,LEN(TRIM($B30))<>10,ISNUMBER(--MID(TRIM($B30),5,1))),\"-\",MAX(COUNT($A$9:$A29)+1))","v":"-"},null,null,null,""]
[{"$f":"IF(OR($B31=\"\",COUNTIF($B$10:$B31,$B31)>1,LEN(TRIM($B31))<>10,ISNUMBER(--MID(TRIM($B31),5,1))),\"-\",MAX(COUNT($A$9:$A30)+1))","v":"-"},null,null,null,""]
[{"$f":"IF(OR($B32=\"\",COUNTIF($B$10:$B32,$B32)>1,LEN(TRIM($B32))<>10,ISNUMBER(--MID(TRIM($B32),5,1))),\"-\",MAX(COUNT($A$9:$A31)+1))","v":"-"},null,null,null,""]
[{"$f":"IF(OR($B33=\"\",COUNTIF($B$10:$B33,$B33)>1,LEN(TRIM($B33))<>10,ISNUMBER(--MID(TRIM($B33),5,1))),\"-\",MAX(COUNT($A$9:$A32)+1))","v":"-"},null,null,null,""]
[{"$f":"IF(OR($B34=\"\",COUNTIF($B$10:$B34,$B34)>1,LEN(TRIM($B34))<>10,ISNUMBER(--MID(TRIM($B34),5,1))),\"-\",MAX(COUNT($A$9:$A33)+1))","v":"-"},null,null,null,""]
[{"$f":"IF(OR($B35=\"\",COUNTIF($B$10:$B35,$B35)>1,LEN(TRIM($B35))<>10,ISNUMBER(--MID(TRIM($B35),5,1))),\"-\",MAX(COUNT($A$9:$A34)+1))","v":"-"},null,null,null,""]
[{"$f":"IF(OR($B36=\"\",COUNTIF($B$10:$B36,$B36)>1,LEN(TRIM($B36))<>10,ISNUMBER(--MID(TRIM($B36),5,1))),\"-\",MAX(COUNT($A$9:$A35)+1))","v":"-"},null,null,null,""]
[{"$f":"IF(OR($B37=\"\",COUNTIF($B$10:$B37,$B37)>1,LEN(TRIM($B37))<>10,ISNUMBER(--MID(TRIM($B37),5,1))),\"-\",MAX(COUNT($A$9:$A36)+1))","v":"-"},null,null,null,""]
[{"$f":"IF(OR($B38=\"\",COUNTIF($B$10:$B38,$B38)>1,LEN(TRIM($B38))<>10,ISNUMBER(--MID(TRIM($B38),5,1))),\"-\",MAX(COUNT($A$9:$A37)+1))","v":"-"},null,null,null,""]
[{"$f":"IF(OR($B39=\"\",COUNTIF($B$10:$B39,$B39)>1,LEN(TRIM($B39))<>10,ISNUMBER(--MID(TRIM($B39),5,1))),\"-\",MAX(COUNT($A$9:$A38)+1))","v":"-"},null,null,null,""]
[{"$f":"IF(OR($B40=\"\",COUNTIF($B$10:$B40,$B40)>1,LEN(TRIM($B40))<>10,ISNUMBER(--MID(TRIM($B40),5,1))),\"-\",MAX(COUNT($A$9:$A39)+1))","v":"-"},null,null,null,""]
[{"$f":"IF(OR($B41=\"\",COUNTIF($B$10:$B41,$B41)>1,LEN(TRIM($B41))<>10,ISNUMBER(--MID(TRIM($B41),5,1))),\"-\",MAX(COUNT($A$9:$A40)+1))","v":"-"},null,null,null,""]
[{"$f":"IF(OR($B42=\"\",COUNTIF($B$10:$B42,$B42)>1,LEN(TRIM($B42))<>10,ISNUMBER(--MID(TRIM($B42),5,1))),\"-\",MAX(COUNT($A$9:$A41)+1))","v":"-"},null,null,null,""]
[{"$f":"IF(OR($B43=\"\",COUNTIF($B$10:$B43,$B43)>1,LEN(TRIM($B43))<>10,ISNUMBER(--MID(TRIM($B43),5,1))),\"-\",MAX(COUNT($A$9:$A42)+1))","v":"-"},null,null,null,""]
[{"$f":"IF(OR($B44=\"\",COUNTIF($B$10:$B44,$B44)>1,LEN(TRIM($B44))<>10,ISNUMBER(--MID(TRIM($B44),5,1))),\"-\",MAX(COUNT($A$9:$A43)+1))","v":"-"},null,null,null,""]
[{"$f":"IF(OR($B45=\"\",COUNTIF($B$10:$B45,$B45)>1,LEN(TRIM($B45))<>10,ISNUMBER(--MID(TRIM($B45),5,1))),\"-\",MAX(COUNT($A$9:$A44)+1))","v":"-"},null,null,null,""]
[{"$f":"IF(OR($B46=\"\",COUNTIF($B$10:$B46,$B46)>1,LEN(TRIM($B46))<>10,ISNUMBER(--MID(TRIM($B46),5,1))),\"-\",MAX(COUNT($A$9:$A45)+1))","v":"-"},null,null,null,""]
[{"$f":"IF(OR($B47=\"\",COUNTIF($B$10:$B47,$B47)>1,LEN(TRIM($B47))<>10,ISNUMBER(--MID(TRIM($B47),5,1))),\"-\",MAX(COUNT($A$9:$A46)+1))","v":"-"},null,null,null,""]
[{"$f":"IF(OR($B48=\"\",COUNTIF($B$10:$B48,$B48)>1,LEN(TRIM($B48))<>10,ISNUMBER(--MID(TRIM($B48),5,1))),\"-\",MAX(COUNT($A$9:$A47)+1))","v":"-"},null,null,null,""]
[{"$f":"IF(OR($B49=\"\",COUNTIF($B$10:$B49,$B49)>1,LEN(TRIM($B49))<>10,ISNUMBER(--MID(TRIM($B49),5,1))),\"-\",MAX(COUNT($A$9:$A48)+1))","v":"-"},null,null,null,""]
[{"$f":"IF(OR($B50=\"\",COUNTIF($B$10:$B50,$B50)>1,LEN(TRIM($B50))<>10,ISNUMBER(--MID(TRIM($B50),5,1))),\"-\",MAX(COUNT($A$9:$A49)+1))","v":"-"},null,null,null,""]
[{"$f":"IF(OR($B51=\"\",COUNTIF($B$10:$B51,$B51)>1,LEN(TRIM($B51))<>10,ISNUMBER(--MID(TRIM($B51),5,1))),\"-\",MAX(COUNT($A$9:$A50)+1))","v":"-"},null,null,null,""]
[{"$f":"IF(OR($B52=\"\",COUNTIF($B$10:$B52,$B52)>1,LEN(TRIM($B52))<>10,ISNUMBER(--MID(TRIM($B52),5,1))),\"-\",MAX(COUNT($A$9:$A51)+1))","v":"-"},null,null,null,""]
[{"$f":"IF(OR($B53=\"\",COUNTIF($B$10:$B53,$B53)>1,LEN(TRIM($B53))<>10,ISNUMBER(--MID(TRIM($B53),5,1))),\"-\",MAX(COUNT($A$9:$A52)+1))","v":"-"},null,null,null,""]
[{"$f":"IF(OR($B54=\"\",COUNTIF($B$10:$B54,$B54)>1,LEN(TRIM($B54))<>10,ISNUMBER(--MID(TRIM($B54),5,1))),\"-\",MAX(COUNT($A$9:$A53)+1))","v":"-"},null,null,null,""]
[{"$f":"IF(OR($B55=\"\",COUNTIF($B$10:$B55,$B55)>1,LEN(TRIM($B55))<>10,ISNUMBER(--MID(TRIM($B55),5,1))),\"-\",MAX(COUNT($A$9:$A54)+1))","v":"-"},null,null,null,""]
[{"$f":"IF(OR($B56=\"\",COUNTIF($B$10:$B56,$B56)>1,LEN(TRIM($B56))<>10,ISNUMBER(--MID(TRIM($B56),5,1))),\"-\",MAX(COUNT($A$9:$A55)+1))","v":"-"},null,null,null,""]
[{"$f":"IF(OR($B57=\"\",COUNTIF($B$10:$B57,$B57)>1,LEN(TRIM($B57))<>10,ISNUMBER(--MID(TRIM($B57),5,1))),\"-\",MAX(COUNT($A$9:$A56)+1))","v":"-"},null,null,null,""]
[{"$f":"IF(OR($B58=\"\",COUNTIF($B$10:$B58,$B58)>1,LEN(TRIM($B58))<>10,ISNUMBER(--MID(TRIM($B58),5,1))),\"-\",MAX(COUNT($A$9:$A57)+1))","v":"-"},null,null,null,""]
[{"$f":"IF(OR($B59=\"\",COUNTIF($B$10:$B59,$B59)>1,LEN(TRIM($B59))<>10,ISNUMBER(--MID(TRIM($B59),5,1))),\"-\",MAX(COUNT($A$9:$A58)+1))","v":"-"},null,null,null,""]
[{"$f":"IF(OR($B60=\"\",COUNTIF($B$10:$B60,$B60)>1,LEN(TRIM($B60))<>10,ISNUMBER(--MID(TRIM($B60),5,1))),\"-\",MAX(COUNT($A$9:$A59)+1))","v":"-"},null,null,null,""]
[{"$f":"IF(OR($B61=\"\",COUNTIF($B$10:$B61,$B61)>1,LEN(TRIM($B61))<>10,ISNUMBER(--MID(TRIM($B61),5,1))),\"-\",MAX(COUNT($A$9:$A60)+1))","v":"-"},null,null,null,""]
[{"$f":"IF(OR($B62=\"\",COUNTIF($B$10:$B62,$B62)>1,LEN(TRIM($B62))<>10,ISNUMBER(--MID(TRIM($B62),5,1))),\"-\",MAX(COUNT($A$9:$A61)+1))","v":"-"},null,null,null,""]
[{"$f":"IF(OR($B63=\"\",COUNTIF($B$10:$B63,$B63)>1,LEN(TRIM($B63))<>10,ISNUMBER(--MID(TRIM($B63),5,1))),\"-\",MAX(COUNT($A$9:$A62)+1))","v":"-"},null,null,null,""]
[{"$f":"IF(OR($B64=\"\",COUNTIF($B$10:$B64,$B64)>1,LEN(TRIM($B64))<>10,ISNUMBER(--MID(TRIM($B64),5,1))),\"-\",MAX(COUNT($A$9:$A63)+1))","v":"-"},null,null,null,""]
[{"$f":"IF(OR($B65=\"\",COUNTIF($B$10:$B65,$B65)>1,LEN(TRIM($B65))<>10,ISNUMBER(--MID(TRIM($B65),5,1))),\"-\",MAX(COUNT($A$9:$A64)+1))","v":"-"},null,null,null,""]
[{"$f":"IF(OR($B66=\"\",COUNTIF($B$10:$B66,$B66)>1,LEN(TRIM($B66))<>10,ISNUMBER(--MID(TRIM($B66),5,1))),\"-\",MAX(COUNT($A$9:$A65)+1))","v":"-"},null,null,null,""]
[{"$f":"IF(OR($B67=\"\",COUNTIF($B$10:$B67,$B67)>1,LEN(TRIM($B67))<>10,ISNUMBER(--MID(TRIM($B67),5,1))),\"-\",MAX(COUNT($A$9:$A66)+1))","v":"-"},null,null,null,""]
[{"$f":"IF(OR($B68=\"\",COUNTIF($B$10:$B68,$B68)>1,LEN(TRIM($B68))<>10,ISNUMBER(--MID(TRIM($B68),5,1))),\"-\",MAX(COUNT($A$9:$A67)+1))","v":"-"},null,null,null,""]
[{"$f":"IF(OR($B69=\"\",COUNTIF($B$10:$B69,$B69)>1,LEN(TRIM($B69))<>10,ISNUMBER(--MID(TRIM($B69),5,1))),\"-\",MAX(COUNT($A$9:$A68)+1))","v":"-"},null,null,null,""]
[{"$f":"IF(OR($B70=\"\",COUNTIF($B$10:$B70,$B70)>1,LEN(TRIM($B70))<>10,ISNUMBER(--MID(TRIM($B70),5,1))),\"-\",MAX(COUNT($A$9:$A69)+1))","v":"-"},null,null,null,""]
[{"$f":"IF(OR($B71=\"\",COUNTIF($B$10:$B71,$B71)>1,LEN(TRIM($B71))<>10,ISNUMBER(--MID(TRIM($B71),5,1))),\"-\",MAX(COUNT($A$9:$A70)+1))","v":"-"},null,null,null,""]
[{"$f":"IF(OR($B72=\"\",COUNTIF($B$10:$B72,$B72)>1,LEN(TRIM($B72))<>10,ISNUMBER(--MID(TRIM($B72),5,1))),\"-\",MAX(COUNT($A$9:$A71)+1))","v":"-"},null,null,null,""]
[{"$f":"IF(OR($B73=\"\",COUNTIF($B$10:$B73,$B73)>1,LEN(TRIM($B73))<>10,ISNUMBER(--MID(TRIM($B73),5,1))),\"-\",MAX(COUNT($A$9:$A72)+1))","v":"-"},null,null,null,""]
[{"$f":"IF(OR($B74=\"\",COUNTIF($B$10:$B74,$B74)>1,LEN(TRIM($B74))<>10,ISNUMBER(--MID(TRIM($B74),5,1))),\"-\",MAX(COUNT($A$9:$A73)+1))","v":"-"},null,null,null,""]
[{"$f":"IF(OR($B75=\"\",COUNTIF($B$10:$B75,$B75)>1,LEN(TRIM($B75))<>10,ISNUMBER(--MID(TRIM($B75),5,1))),\"-\",MAX(COUNT($A$9:$A74)+1))","v":"-"},null,null,null,""]
[{"$f":"IF(OR($B76=\"\",COUNTIF($B$10:$B76,$B76)>1,LEN(TRIM($B76))<>10,ISNUMBER(--MID(TRIM($B76),5,1))),\"-\",MAX(COUNT($A$9:$A75)+1))","v":"-"},null,null,null,{"$f":"IF(D76=\"\",\"\",D76-D75)","v":""}]
[{"$f":"IF(OR($B77=\"\",COUNTIF($B$10:$B77,$B77)>1,LEN(TRIM($B77))<>10,ISNUMBER(--MID(TRIM($B77),5,1))),\"-\",MAX(COUNT($A$9:$A76)+1))","v":"-"},null,null,null,""]
[{"$f":"IF(OR($B78=\"\",COUNTIF($B$10:$B78,$B78)>1,LEN(TRIM($B78))<>10,ISNUMBER(--MID(TRIM($B78),5,1))),\"-\",MAX(COUNT($A$9:$A77)+1))","v":"-"},null,null,null,""]
[{"$f":"IF(OR($B79=\"\",COUNTIF($B$10:$B79,$B79)>1,LEN(TRIM($B79))<>10,ISNUMBER(--MID(TRIM($B79),5,1))),\"-\",MAX(COUNT($A$9:$A78)+1))","v":"-"},null,null,null,""]
["รวมของขาย|ของเสีย|เหลือบนเชลฟ์",null,null,null,null,null,{"$f":"SUM(G10:G79)","v":0},0,0,{"$f":"SUM(J10:J79)","v":0},0,0,0,0,0,0,0,0,0,0,0,0,0,0,0,0,0,0,0,0,0,0,0,0,0,0,0,0,0,0,0,0,0,0,0,0,0,0,0,0,0,0,0,0,0,0,0,0,0,0,0,0,0,0,0,0,0,0,0,0,0,0,0,{"$f":"SUM(BV10:BV79)","v":0},0,0,0,0,0,0,0,0,0,0,0,0,0,0,0,0,0,0,0,0,0,0,0,0,0,0,0,0,0,0,0,0,0,0,0,0,0,0,0,0,0,0,0,0,0,0,0,0,0,0,0,0,0,0,0,0,0,0,0,0,0,{"$f":"SUM(EF10:EF79)","v":0},0,0,{"$f":"SUM(EI10:EI79)","v":0},0,0,0,0,0,{"$f":"SUM(EO10:EO79)","v":0},0,0,0,0,0,"รวมเงินเชื่อ","รวมเงินสด","ภาษี","รวมยอดขาย"]
["ของเหลือ",null,null,null,null,null,{"$f":"G80+H80-G9","v":0},null,null,{"$f":"J80+K80-J9","v":0},null,null,{"$f":"M80+N80-M9","v":0},null,null,{"$f":"P80+Q80-P9","v":0},null,null,{"$f":"S80+T80-S9","v":0},null,null,{"$f":"V80+W80-V9","v":0},null,null,{"$f":"Y80+Z80-Y9","v":0},null,null,{"$f":"AB80+AC80-AB9","v":0},null,null,{"$f":"AE80+AF80-AE9","v":0},null,null,{"$f":"AH80+AI80-AH9","v":0},null,null,{"$f":"AK80+AL80-AK9","v":0},null,null,{"$f":"AN80+AO80-AN9","v":0},null,null,{"$f":"AQ80+AR80-AQ9","v":0},null,null,{"$f":"AT80+AU80-AT9","v":0},null,null,{"$f":"AW80+AX80-AW9","v":0},null,null,{"$f":"AZ80+BA80-AZ9","v":0},null,null,{"$f":"BC80+BD80-BC9","v":0},null,null,{"$f":"BF80+BG80-BF9","v":0},null,null,{"$f":"BI80+BJ80-BI9","v":0},null,null,{"$f":"BL80+BM80-BL9","v":0},null,null,{"$f":"BO80+BP80-BO9","v":0},null,null,{"$f":"BR80+BS80-BR9","v":0},null,null,{"$f":"BU80+BV80-BU9","v":0},null,null,{"$f":"BX80+BY80-BX9","v":0},null,null,{"$f":"CA80+CB80-CA9","v":0},null,null,{"$f":"CD80+CE80-CD9","v":0},null,null,{"$f":"CG80+CH80-CG9","v":0},null,null,{"$f":"CJ80+CK80-CJ9","v":0},null,null,{"$f":"CM80+CN80-CM9","v":0},null,null,{"$f":"CP80+CQ80-CP9","v":0},null,null,{"$f":"CS80+CT80-CS9","v":0},null,null,{"$f":"CV80+CW80-CV9","v":0},null,null,{"$f":"CY80+CZ80-CY9","v":0},null,null,{"$f":"DB80+DC80-DB9","v":0},null,null,{"$f":"DE80+DF80-DE9","v":0},null,null,{"$f":"DH80+DI80-DH9","v":0},null,null,{"$f":"DK80+DL80-DK9","v":0},null,null,{"$f":"DN80+DO80-DN9","v":0},null,null,{"$f":"DQ80+DR80-DQ9","v":0},null,null,{"$f":"DT80+DU80-DT9","v":0},null,null,{"$f":"DW80+DX80-DW9","v":0},null,null,{"$f":"DZ80+EA80-DZ9","v":0},null,null,{"$f":"EC80+ED80-EC9","v":0},null,null,{"$f":"EF80+EG80-EF9","v":0},null,null,{"$f":"EI80+EJ80-EI9","v":0},null,null,{"$f":"EL80+EM80-EL9","v":0},null,null,{"$f":"EO80+EP80-EO9","v":0},null,null,{"$f":"ER80+ES80-ER9","v":0},null,null,{"$f":"SUM(EU10:EU79)","v":0},{"$f":"SUM(EV10:EV79)","v":0},{"$f":"SUM(EW10:EW79)","v":0},{"$f":"SUM(EX10:EX79)","v":0}]
["เฉลี่ย",null,null,"เหลือ/เสีย(จริง)",null,null,{"$f":"INDIRECT(\"F\"&ROW($G$87)+ROUNDUP(COLUMNS($G:G)/3,0))","v":0},{"$f":"INDIRECT(\"G\"&ROW($G$87)+ROUNDUP(COLUMNS($G:H)/3,0))","v":0},null,{"$f":"INDIRECT(\"F\"&ROW($G$87)+ROUNDUP(COLUMNS($G:J)/3,0))","v":0},{"$f":"INDIRECT(\"G\"&ROW($G$87)+ROUNDUP(COLUMNS($G:K)/3,0))","v":0},null,{"$f":"INDIRECT(\"F\"&ROW($G$87)+ROUNDUP(COLUMNS($G:M)/3,0))","v":0},{"$f":"INDIRECT(\"G\"&ROW($G$87)+ROUNDUP(COLUMNS($G:N)/3,0))","v":0},null,{"$f":"INDIRECT(\"F\"&ROW($G$87)+ROUNDUP(COLUMNS($G:P)/3,0))","v":0},{"$f":"INDIRECT(\"G\"&ROW($G$87)+ROUNDUP(COLUMNS($G:Q)/3,0))","v":0},null,{"$f":"INDIRECT(\"F\"&ROW($G$87)+ROUNDUP(COLUMNS($G:S)/3,0))","v":0},{"$f":"INDIRECT(\"G\"&ROW($G$87)+ROUNDUP(COLUMNS($G:T)/3,0))","v":0},null,{"$f":"INDIRECT(\"F\"&ROW($G$87)+ROUNDUP(COLUMNS($G:V)/3,0))","v":0},{"$f":"INDIRECT(\"G\"&ROW($G$87)+ROUNDUP(COLUMNS($G:W)/3,0))","v":0},null,{"$f":"INDIRECT(\"F\"&ROW($G$87)+ROUNDUP(COLUMNS($G:Y)/3,0))","v":0},{"$f":"INDIRECT(\"G\"&ROW($G$87)+ROUNDUP(COLUMNS($G:Z)/3,0))","v":0},null,{"$f":"INDIRECT(\"F\"&ROW($G$87)+ROUNDUP(COLUMNS($G:AB)/3,0))","v":0},{"$f":"INDIRECT(\"G\"&ROW($G$87)+ROUNDUP(COLUMNS($G:AC)/3,0))","v":0},null,{"$f":"INDIRECT(\"F\"&ROW($G$87)+ROUNDUP(COLUMNS($G:AE)/3,0))","v":0},{"$f":"INDIRECT(\"G\"&ROW($G$87)+ROUNDUP(COLUMNS($G:AF)/3,0))","v":0},null,{"$f":"INDIRECT(\"F\"&ROW($G$87)+ROUNDUP(COLUMNS($G:AH)/3,0))","v":0},{"$f":"INDIRECT(\"G\"&ROW($G$87)+ROUNDUP(COLUMNS($G:AI)/3,0))","v":0},null,{"$f":"INDIRECT(\"F\"&ROW($G$87)+ROUNDUP(COLUMNS($G:AK)/3,0))","v":0},{"$f":"INDIRECT(\"G\"&ROW($G$87)+ROUNDUP(COLUMNS($G:AL)/3,0))","v":0},null,{"$f":"INDIRECT(\"F\"&ROW($G$87)+ROUNDUP(COLUMNS($G:AN)/3,0))","v":0},{"$f":"INDIRECT(\"G\"&ROW($G$87)+ROUNDUP(COLUMNS($G:AO)/3,0))","v":0},null,{"$f":"INDIRECT(\"F\"&ROW($G$87)+ROUNDUP(COLUMNS($G:AQ)/3,0))","v":0},{"$f":"INDIRECT(\"G\"&ROW($G$87)+ROUNDUP(COLUMNS($G:AR)/3,0))","v":0},null,{"$f":"INDIRECT(\"F\"&ROW($G$87)+ROUNDUP(COLUMNS($G:AT)/3,0))","v":0},{"$f":"INDIRECT(\"G\"&ROW($G$87)+ROUNDUP(COLUMNS($G:AU)/3,0))","v":0},null,{"$f":"INDIRECT(\"F\"&ROW($G$87)+ROUNDUP(COLUMNS($G:AW)/3,0))","v":0},{"$f":"INDIRECT(\"G\"&ROW($G$87)+ROUNDUP(COLUMNS($G:AX)/3,0))","v":0},null,{"$f":"INDIRECT(\"F\"&ROW($G$87)+ROUNDUP(COLUMNS($G:AZ)/3,0))","v":0},{"$f":"INDIRECT(\"G\"&ROW($G$87)+ROUNDUP(COLUMNS($G:BA)/3,0))","v":0},null,{"$f":"INDIRECT(\"F\"&ROW($G$87)+ROUNDUP(COLUMNS($G:BC)/3,0))","v":0},{"$f":"INDIRECT(\"G\"&ROW($G$87)+ROUNDUP(COLUMNS($G:BD)/3,0))","v":0},null,{"$f":"INDIRECT(\"F\"&ROW($G$87)+ROUNDUP(COLUMNS($G:BF)/3,0))","v":0},{"$f":"INDIRECT(\"G\"&ROW($G$87)+ROUNDUP(COLUMNS($G:BG)/3,0))","v":0},null,{"$f":"INDIRECT(\"F\"&ROW($G$87)+ROUNDUP(COLUMNS($G:BI)/3,0))","v":0},{"$f":"INDIRECT(\"G\"&ROW($G$87)+ROUNDUP(COLUMNS($G:BJ)/3,0))","v":0},null,{"$f":"INDIRECT(\"F\"&ROW($G$87)+ROUNDUP(COLUMNS($G:BL)/3,0))","v":0},{"$f":"INDIRECT(\"G\"&ROW($G$87)+ROUNDUP(COLUMNS($G:BM)/3,0))","v":0},null,{"$f":"INDIRECT(\"F\"&ROW($G$87)+ROUNDUP(COLUMNS($G:BO)/3,0))","v":0},{"$f":"INDIRECT(\"G\"&ROW($G$87)+ROUNDUP(COLUMNS($G:BP)/3,0))","v":0},null,{"$f":"INDIRECT(\"F\"&ROW($G$87)+ROUNDUP(COLUMNS($G:BR)/3,0))","v":0},{"$f":"INDIRECT(\"G\"&ROW($G$87)+ROUNDUP(COLUMNS($G:BS)/3,0))","v":0},null,{"$f":"INDIRECT(\"F\"&ROW($G$87)+ROUNDUP(COLUMNS($G:BU)/3,0))","v":0},{"$f":"INDIRECT(\"G\"&ROW($G$87)+ROUNDUP(COLUMNS($G:BV)/3,0))","v":0},null,{"$f":"INDIRECT(\"F\"&ROW($G$87)+ROUNDUP(COLUMNS($G:BX)/3,0))","v":0},{"$f":"INDIRECT(\"G\"&ROW($G$87)+ROUNDUP(COLUMNS($G:BY)/3,0))","v":0},null,{"$f":"INDIRECT(\"F\"&ROW($G$87)+ROUNDUP(COLUMNS($G:CA)/3,0))","v":0},{"$f":"INDIRECT(\"G\"&ROW($G$87)+ROUNDUP(COLUMNS($G:CB)/3,0))","v":0},null,{"$f":"INDIRECT(\"F\"&ROW($G$87)+ROUNDUP(COLUMNS($G:CD)/3,0))","v":0},{"$f":"INDIRECT(\"G\"&ROW($G$87)+ROUNDUP(COLUMNS($G:CE)/3,0))","v":0},null,{"$f":"INDIRECT(\"F\"&ROW($G$87)+ROUNDUP(COLUMNS($G:CG)/3,0))","v":0},{"$f":"INDIRECT(\"G\"&ROW($G$87)+ROUNDUP(COLUMNS($G:CH)/3,0))","v":0},null,{"$f":"INDIRECT(\"F\"&ROW($G$87)+ROUNDUP(COLUMNS($G:CJ)/3,0))","v":0},{"$f":"INDIRECT(\"G\"&ROW($G$87)+ROUNDUP(COLUMNS($G:CK)/3,0))","v":0},null,{"$f":"INDIRECT(\"F\"&ROW($G$87)+ROUNDUP(COLUMNS($G:CM)/3,0))","v":0},{"$f":"INDIRECT(\"G\"&ROW($G$87)+ROUNDUP(COLUMNS($G:CN)/3,0))","v":0},null,{"$f":"INDIRECT(\"F\"&ROW($G$87)+ROUNDUP(COLUMNS($G:CP)/3,0))","v":0},{"$f":"INDIRECT(\"G\"&ROW($G$87)+ROUNDUP(COLUMNS($G:CQ)/3,0))","v":0},null,{"$f":"INDIRECT(\"F\"&ROW($G$87)+ROUNDUP(COLUMNS($G:CS)/3,0))","v":0},{"$f":"INDIRECT(\"G\"&ROW($G$87)+ROUNDUP(COLUMNS($G:CT)/3,0))","v":0},null,{"$f":"INDIRECT(\"F\"&ROW($G$87)+ROUNDUP(COLUMNS($G:CV)/3,0))","v":0},{"$f":"INDIRECT(\"G\"&ROW($G$87)+ROUNDUP(COLUMNS($G:CW)/3,0))","v":0},null,{"$f":"INDIRECT(\"F\"&ROW($G$87)+ROUNDUP(COLUMNS($G:CY)/3,0))","v":0},{"$f":"INDIRECT(\"G\"&ROW($G$87)+ROUNDUP(COLUMNS($G:CZ)/3,0))","v":0},null,{"$f":"INDIRECT(\"F\"&ROW($G$87)+ROUNDUP(COLUMNS($G:DB)/3,0))","v":0},{"$f":"INDIRECT(\"G\"&ROW($G$87)+ROUNDUP(COLUMNS($G:DC)/3,0))","v":0},null,{"$f":"INDIRECT(\"F\"&ROW($G$87)+ROUNDUP(COLUMNS($G:DE)/3,0))","v":0},{"$f":"INDIRECT(\"G\"&ROW($G$87)+ROUNDUP(COLUMNS($G:DF)/3,0))","v":0},null,{"$f":"INDIRECT(\"F\"&ROW($G$87)+ROUNDUP(COLUMNS($G:DH)/3,0))","v":0},{"$f":"INDIRECT(\"G\"&ROW($G$87)+ROUNDUP(COLUMNS($G:DI)/3,0))","v":0},null,{"$f":"INDIRECT(\"F\"&ROW($G$87)+ROUNDUP(COLUMNS($G:DK)/3,0))","v":0},{"$f":"INDIRECT(\"G\"&ROW($G$87)+ROUNDUP(COLUMNS($G:DL)/3,0))","v":0},null,{"$f":"INDIRECT(\"F\"&ROW($G$87)+ROUNDUP(COLUMNS($G:DN)/3,0))","v":0},{"$f":"INDIRECT(\"G\"&ROW($G$87)+ROUNDUP(COLUMNS($G:DO)/3,0))","v":0},null,{"$f":"INDIRECT(\"F\"&ROW($G$87)+ROUNDUP(COLUMNS($G:DQ)/3,0))","v":0},{"$f":"INDIRECT(\"G\"&ROW($G$87)+ROUNDUP(COLUMNS($G:DR)/3,0))","v":0},null,{"$f":"INDIRECT(\"F\"&ROW($G$87)+ROUNDUP(COLUMNS($G:DT)/3,0))","v":0},{"$f":"INDIRECT(\"G\"&ROW($G$87)+ROUNDUP(COLUMNS($G:DU)/3,0))","v":0},null,{"$f":"INDIRECT(\"F\"&ROW($G$87)+ROUNDUP(COLUMNS($G:DW)/3,0))","v":0},{"$f":"INDIRECT(\"G\"&ROW($G$87)+ROUNDUP(COLUMNS($G:DX)/3,0))","v":0},null,{"$f":"INDIRECT(\"F\"&ROW($G$87)+ROUNDUP(COLUMNS($G:DZ)/3,0))","v":0},{"$f":"INDIRECT(\"G\"&ROW($G$87)+ROUNDUP(COLUMNS($G:EA)/3,0))","v":0},null,{"$f":"INDIRECT(\"F\"&ROW($G$87)+ROUNDUP(COLUMNS($G:EC)/3,0))","v":0},{"$f":"INDIRECT(\"G\"&ROW($G$87)+ROUNDUP(COLUMNS($G:ED)/3,0))","v":0},null,{"$f":"INDIRECT(\"F\"&ROW($G$87)+ROUNDUP(COLUMNS($G:EF)/3,0))","v":0},{"$f":"INDIRECT(\"G\"&ROW($G$87)+ROUNDUP(COLUMNS($G:EG)/3,0))","v":0},null,{"$f":"INDIRECT(\"F\"&ROW($G$87)+ROUNDUP(COLUMNS($G:EI)/3,0))","v":0},{"$f":"INDIRECT(\"G\"&ROW($G$87)+ROUNDUP(COLUMNS($G:EJ)/3,0))","v":0},null,{"$f":"INDIRECT(\"F\"&ROW($G$87)+ROUNDUP(COLUMNS($G:EL)/3,0))","v":0},{"$f":"INDIRECT(\"G\"&ROW($G$87)+ROUNDUP(COLUMNS($G:EM)/3,0))","v":0},null,{"$f":"INDIRECT(\"F\"&ROW($G$87)+ROUNDUP(COLUMNS($G:EO)/3,0))","v":0},{"$f":"INDIRECT(\"G\"&ROW($G$87)+ROUNDUP(COLUMNS($G:EP)/3,0))","v":0},null,{"$f":"INDIRECT(\"F\"&ROW($G$87)+ROUNDUP(COLUMNS($G:ER)/3,0))","v":0},{"$f":"INDIRECT(\"G\"&ROW($G$87)+ROUNDUP(COLUMNS($G:ES)/3,0))","v":0},null,{"$f":"EU81+EV81","v":0}]
["เวลากลับถึงสำนักงานเช็คของเสีย",null,null,{"$f":"D139","v":"00:00:00"},null,"ผลต่าง",{"$f":"G82+H82+G80-G9","v":0},null,null,{"$f":"J82+K82+J80-J9","v":0},null,null,{"$f":"M82+N82+M80-M9","v":0},null,null,{"$f":"P82+Q82+P80-P9","v":0},null,null,{"$f":"S82+T82+S80-S9","v":0},null,null,{"$f":"V82+W82+V80-V9","v":0},null,null,{"$f":"Y82+Z82+Y80-Y9","v":0},null,null,{"$f":"AB82+AC82+AB80-AB9","v":0},null,null,{"$f":"AE82+AF82+AE80-AE9","v":0},null,null,{"$f":"AH82+AI82+AH80-AH9","v":0},null,null,{"$f":"AK82+AL82+AK80-AK9","v":0},null,null,{"$f":"AN82+AO82+AN80-AN9","v":0},null,null,{"$f":"AQ82+AR82+AQ80-AQ9","v":0},null,null,{"$f":"AT82+AU82+AT80-AT9","v":0},null,null,{"$f":"AW82+AX82+AW80-AW9","v":0},null,null,{"$f":"AZ82+BA82+AZ80-AZ9","v":0},null,null,{"$f":"BC82+BD82+BC80-BC9","v":0},null,null,{"$f":"BF82+BG82+BF80-BF9","v":0},null,null,{"$f":"BI82+BJ82+BI80-BI9","v":0},null,null,{"$f":"BL82+BM82+BL80-BL9","v":0},null,null,{"$f":"BO82+BP82+BO80-BO9","v":0},null,null,{"$f":"BR82+BS82+BR80-BR9","v":0},null,null,{"$f":"BU82+BV82+BU80-BU9","v":0},null,null,{"$f":"BX82+BY82+BX80-BX9","v":0},null,null,{"$f":"CA82+CB82+CA80-CA9","v":0},null,null,{"$f":"CD82+CE82+CD80-CD9","v":0},null,null,{"$f":"CG82+CH82+CG80-CG9","v":0},null,null,{"$f":"CJ82+CK82+CJ80-CJ9","v":0},null,null,{"$f":"CM82+CN82+CM80-CM9","v":0},null,null,{"$f":"CP82+CQ82+CP80-CP9","v":0},null,null,{"$f":"CS82+CT82+CS80-CS9","v":0},null,null,{"$f":"CV82+CW82+CV80-CV9","v":0},null,null,{"$f":"CY82+CZ82+CY80-CY9","v":0},null,null,{"$f":"DB82+DC82+DB80-DB9","v":0},null,null,{"$f":"DE82+DF82+DE80-DE9","v":0},null,null,{"$f":"DH82+DI82+DH80-DH9","v":0},null,null,{"$f":"DK82+DL82+DK80-DK9","v":0},null,null,{"$f":"DN82+DO82+DN80-DN9","v":0},null,null,{"$f":"DQ82+DR82+DQ80-DQ9","v":0},null,null,{"$f":"DT82+DU82+DT80-DT9","v":0},null,null,{"$f":"DW82+DX82+DW80-DW9","v":0},null,null,{"$f":"DZ82+EA82+DZ80-DZ9","v":0},null,null,{"$f":"EC82+ED82+EC80-EC9","v":0},null,null,{"$f":"EF82+EG82+EF80-EF9","v":0},null,null,{"$f":"EI82+EJ82+EI80-EI9","v":0},null,null,{"$f":"EL82+EM82+EL80-EL9","v":0},null,null,{"$f":"EO82+EP82+EO80-EO9","v":0},null,null,{"$f":"ER82+ES82+ER80-ER9","v":0}]
["เป็นเงิน",null,null,null,null,null,{"$f":"G8*G83","v":0},null,null,{"$f":"J8*J83","v":0},null,null,{"$f":"M8*M83","v":0},null,null,{"$f":"P8*P83","v":0},null,null,{"$f":"S8*S83","v":0},null,null,{"$f":"V8*V83","v":0},null,null,{"$f":"Y8*Y83","v":0},null,null,{"$f":"AB8*AB83","v":0},null,null,{"$f":"AE8*AE83","v":0},null,null,{"$f":"AH8*AH83","v":0},null,null,{"$f":"AK8*AK83","v":0},null,null,{"$f":"AN8*AN83","v":0},null,null,{"$f":"AQ8*AQ83","v":0},null,null,{"$f":"AT8*AT83","v":0},null,null,{"$f":"AW8*AW83","v":0},null,null,{"$f":"AZ8*AZ83","v":0},null,null,{"$f":"BC8*BC83","v":0},null,null,{"$f":"BF8*BF83","v":0},null,null,{"$f":"BI8*BI83","v":0},null,null,{"$f":"BL8*BL83","v":0},null,null,{"$f":"BO8*BO83","v":0},null,null,{"$f":"BR8*BR83","v":0},null,null,{"$f":"BU8*BU83","v":0},null,null,{"$f":"BX8*BX83","v":0},null,null,{"$f":"CA8*CA83","v":0},null,null,{"$f":"CD8*CD83","v":0},null,null,{"$f":"CG8*CG83","v":0},null,null,{"$f":"CJ8*CJ83","v":0},null,null,{"$f":"CM8*CM83","v":0},null,null,{"$f":"CP8*CP83","v":0},null,null,{"$f":"CS8*CS83","v":0},null,null,{"$f":"CV8*CV83","v":0},null,null,{"$f":"CY8*CY83","v":0},null,null,{"$f":"DB8*DB83","v":0},null,null,{"$f":"DE8*DE83","v":0},null,null,{"$f":"DH8*DH83","v":0},null,null,{"$f":"DK8*DK83","v":0},null,null,{"$f":"DN8*DN83","v":0},null,null,{"$f":"DQ8*DQ83","v":0},null,null,{"$f":"DT8*DT83","v":0},null,null,{"$f":"DW8*DW83","v":0},null,null,0,null,null,{"$f":"EC8*EC83","v":0},null,null,{"$f":"EF8*EF83","v":0},null,null,{"$f":"EI8*EI83","v":0},null,null,{"$f":"EL8*EL83","v":0},null,null,{"$f":"EO8*EO83","v":0},null,null,{"$f":"ER8*ER83","v":0},null,null,{"$f":"$AP$98","v":0}]
[null,null,null,"ผู้จัดทำ……………………………………………………………………",null,null,null,null,null,null,null,null,null,null,null,null,null,null,null,null,null,null,null,"ผู้ตรวจ(ผจก.)………………………………………………………………………………."]
[null,null,"ใบจ่ายสินค้า",null,null,null,null,null,null,null,null,null,null,null,null,null,null,{"$f":"IF(ISODD(COLUMN()),MAX($F$86:Q$86)+1,\"\")","v":""}]
["ราคา","ลำดับ","รายการ","ยกมา","เบิก","เหลือ","เสีย","โอนเข้า","โอนออก","ชำรุด","รวม",null,"ขาย",null,"ขาด/เกิน",null,"บาท",null,null,null,"ขายได้",null,"ควรเบิก",null,"หมายเหตุ",null,null,null,"เสีย PDA","เสียจริง","เหลือ PDA","ผลต่าง","เหลือลูกค้า","หมายเหตุ",null,null,null,null,"Price","Quantity","Baht","Deduct"]
[{"$f":"IF(B88=\"\",0,INDEX(Price_List,ROWS($88:88)))","v":20},{"$f":"IF($C88=\"\",\"\",COUNTA($C$88:$C88))","v":1},{"$f":"IF(INDEX(INDIRECT(\"Product_List\"),ROWS($88:88))=\"\",\"\",INDEX(INDIRECT(\"Product_List\"),ROWS($88:88)))","v":"01-ขนมปังหมูหยองน้ำสลัด"},{"$f":"ยอดยกมา","v":0},null,null,null,null,null,null,{"$f":"D88+E88+J88-I88+H88","v":0},null,{"$f":"INDIRECT(ADDRESS(ROW(A$80),ROW()-ROW(A$80)+(ROWS($88:88)-1)*2-1,4))","v":0},null,{"$f":"F88+G88+M88+J88-K88","v":0},null,{"$f":"O88*A88","v":0},null,null,null,{"$f":"D88+E88-F88-G88","v":0},null,{"$f":"U88*6%+U88","v":0},null,null,null,null,null,{"$f":"INDIRECT(ADDRESS(ROW(A$80),ROW()-ROW(A$80)+(ROWS($88:88)-1)*2,4))","v":0},{"$f":"$G88","v":0},null,{"$f":"$F88-$AE88","v":0},{"$f":"INDIRECT(ADDRESS(ROW(A$80),ROW()-ROW(A$80)+(ROWS($88:88)-1)*2+1,4))","v":0},null,null,null,null,null,10,{"$f":"SUMPRODUCT(($A$88:$A$135=$AM88)*(($F$88:$F$135)+($G$88:$G$135)+($M$88:$M$135)+($J$88:$J$135)-($K$88:$K$135)))","v":0},{"$f":"AM88*AN88","v":0},{"$f":"IF(AO88<0,AO88,0)","v":0}]
[{"$f":"IF(B89=\"\",0,INDEX(Price_List,ROWS($88:89)))","v":20},{"$f":"IF($C89=\"\",\"\",COUNTA($C$88:$C89))","v":2},{"$f":"IF(INDEX(INDIRECT(\"Product_List\"),ROWS($88:89))=\"\",\"\",INDEX(INDIRECT(\"Product_List\"),ROWS($88:89)))","v":"02-ขนมปังหมูหยองน้ำพริกเผา"},{"$f":"ยอดยกมา","v":0},null,null,null,null,null,null,{"$f":"D89+E89+J89-I89+H89","v":0},null,{"$f":"INDIRECT(ADDRESS(ROW(A$80),ROW()-ROW(A$80)+(ROWS($88:89)-1)*2-1,4))","v":0},null,{"$f":"F89+G89+M89+J89-K89","v":0},null,{"$f":"O89*A89","v":0},null,null,null,{"$f":"D89+E89-F89-G89","v":0},null,{"$f":"U89*6%+U89","v":0},null,null,null,null,null,{"$f":"INDIRECT(ADDRESS(ROW(A$80),ROW()-ROW(A$80)+(ROWS($88:89)-1)*2,4))","v":0},{"$f":"$G89","v":0},null,{"$f":"$F89-$AE89","v":0},{"$f":"INDIRECT(ADDRESS(ROW(A$80),ROW()-ROW(A$80)+(ROWS($88:89)-1)*2+1,4))","v":0},null,null,null,null,null,12,0,{"$f":"AM89*AN89","v":0},{"$f":"IF(AO89<0,AO89,0)","v":0}]
[{"$f":"IF(B90=\"\",0,INDEX(Price_List,ROWS($88:90)))","v":20},{"$f":"IF($C90=\"\",\"\",COUNTA($C$88:$C90))","v":3},{"$f":"IF(INDEX(INDIRECT(\"Product_List\"),ROWS($88:90))=\"\",\"\",INDEX(INDIRECT(\"Product_List\"),ROWS($88:90)))","v":"03-ขนมปังไก่หยองน้ำสลัด"},{"$f":"ยอดยกมา","v":0},null,null,null,null,null,null,0,null,{"$f":"INDIRECT(ADDRESS(ROW(A$80),ROW()-ROW(A$80)+(ROWS($88:90)-1)*2-1,4))","v":0},null,0,null,0,null,null,null,0,null,0,null,null,null,null,null,{"$f":"INDIRECT(ADDRESS(ROW(A$80),ROW()-ROW(A$80)+(ROWS($88:90)-1)*2,4))","v":0},0,null,0,{"$f":"INDIRECT(ADDRESS(ROW(A$80),ROW()-ROW(A$80)+(ROWS($88:90)-1)*2+1,4))","v":0},null,null,null,null,null,13,0,0,0]
[{"$f":"IF(B91=\"\",0,INDEX(Price_List,ROWS($88:91)))","v":15},{"$f":"IF($C91=\"\",\"\",COUNTA($C$88:$C91))","v":4},{"$f":"IF(INDEX(INDIRECT(\"Product_List\"),ROWS($88:91))=\"\",\"\",INDEX(INDIRECT(\"Product_List\"),ROWS($88:91)))","v":"04-ขนมปังไส้ครีมสลัด"},{"$f":"ยอดยกมา","v":0},null,null,null,null,null,null,0,null,{"$f":"INDIRECT(ADDRESS(ROW(A$80),ROW()-ROW(A$80)+(ROWS($88:91)-1)*2-1,4))","v":0},null,{"$f":"F91+G91+M91+J91-K91","v":0},null,0,null,null,null,0,null,0,null,null,null,null,null,{"$f":"INDIRECT(ADDRESS(ROW(A$80),ROW()-ROW(A$80)+(ROWS($88:91)-1)*2,4))","v":0},0,null,0,{"$f":"INDIRECT(ADDRESS(ROW(A$80),ROW()-ROW(A$80)+(ROWS($88:91)-1)*2+1,4))","v":0},null,null,null,null,null,15,0,0,0]
[{"$f":"IF(B92=\"\",0,INDEX(Price_List,ROWS($88:92)))","v":15},{"$f":"IF($C92=\"\",\"\",COUNTA($C$88:$C92))","v":5},{"$f":"IF(INDEX(INDIRECT(\"Product_List\"),ROWS($88:92))=\"\",\"\",INDEX(INDIRECT(\"Product_List\"),ROWS($88:92)))","v":"05-ขนมปังเนยสด"},{"$f":"ยอดยกมา","v":0},null,null,null,null,null,null,0,null,{"$f":"INDIRECT(ADDRESS(ROW(A$80),ROW()-ROW(A$80)+(ROWS($88:92)-1)*2-1,4))","v":0},null,0,null,0,null,null,null,0,null,0,null,null,null,null,null,{"$f":"INDIRECT(ADDRESS(ROW(A$80),ROW()-ROW(A$80)+(ROWS($88:92)-1)*2,4))","v":0},0,null,0,{"$f":"INDIRECT(ADDRESS(ROW(A$80),ROW()-ROW(A$80)+(ROWS($88:92)-1)*2+1,4))","v":0},null,null,null,null,null,16,0,0,0]
[{"$f":"IF(B93=\"\",0,INDEX(Price_List,ROWS($88:93)))","v":10},{"$f":"IF($C93=\"\",\"\",COUNTA($C$88:$C93))","v":6},{"$f":"IF(INDEX(INDIRECT(\"Product_List\"),ROWS($88:93))=\"\",\"\",INDEX(INDIRECT(\"Product_List\"),ROWS($88:93)))","v":"06-ขนมปังไส้สังขยาเล็ก"},{"$f":"ยอดยกมา","v":0},null,null,null,null,null,null,0,null,{"$f":"INDIRECT(ADDRESS(ROW(A$80),ROW()-ROW(A$80)+(ROWS($88:93)-1)*2-1,4))","v":0},null,0,null,0,null,null,null,0,null,0,null,null,null,null,null,{"$f":"INDIRECT(ADDRESS(ROW(A$80),ROW()-ROW(A$80)+(ROWS($88:93)-1)*2,4))","v":0},0,null,0,{"$f":"INDIRECT(ADDRESS(ROW(A$80),ROW()-ROW(A$80)+(ROWS($88:93)-1)*2+1,4))","v":0},null,null,null,null,null,18,0,0,0]
[{"$f":"IF(B94=\"\",0,INDEX(Price_List,ROWS($88:94)))","v":10},{"$f":"IF($C94=\"\",\"\",COUNTA($C$88:$C94))","v":7},{"$f":"IF(INDEX(INDIRECT(\"Product_List\"),ROWS($88:94))=\"\",\"\",INDEX(INDIRECT(\"Product_List\"),ROWS($88:94)))","v":"07-ขนมปังไส้เผือก"},{"$f":"ยอดยกมา","v":0},null,null,null,null,null,null,0,null,{"$f":"INDIRECT(ADDRESS(ROW(A$80),ROW()-ROW(A$80)+(ROWS($88:94)-1)*2-1,4))","v":0},null,0,null,0,null,null,null,0,null,0,null,null,null,null,null,{"$f":"INDIRECT(ADDRESS(ROW(A$80),ROW()-ROW(A$80)+(ROWS($88:94)-1)*2,4))","v":0},0,null,0,{"$f":"INDIRECT(ADDRESS(ROW(A$80),ROW()-ROW(A$80)+(ROWS($88:94)-1)*2+1,4))","v":0},null,null,null,null,null,20,0,0,0]
[{"$f":"IF(B95=\"\",0,INDEX(Price_List,ROWS($88:95)))","v":10},{"$f":"IF($C95=\"\",\"\",COUNTA($C$88:$C95))","v":8},{"$f":"IF(INDEX(INDIRECT(\"Product_List\"),ROWS($88:95))=\"\",\"\",INDEX(INDIRECT(\"Product_List\"),ROWS($88:95)))","v":"08-ขนมปังไส้ถั่วแดง"},{"$f":"ยอดยกมา","v":0},null,null,null,null,null,null,0,null,{"$f":"INDIRECT(ADDRESS(ROW(A$80),ROW()-ROW(A$80)+(ROWS($88:95)-1)*2-1,4))","v":0},null,0,null,0,null,null,null,0,null,0,null,null,null,null,null,{"$f":"INDIRECT(ADDRESS(ROW(A$80),ROW()-ROW(A$80)+(ROWS($88:95)-1)*2,4))","v":0},0,null,0,{"$f":"INDIRECT(ADDRESS(ROW(A$80),ROW()-ROW(A$80)+(ROWS($88:95)-1)*2+1,4))","v":0},null,null,null,null,null,22,0,0,0]
[{"$f":"IF(B96=\"\",0,INDEX(Price_List,ROWS($88:96)))","v":10},{"$f":"IF($C96=\"\",\"\",COUNTA($C$88:$C96))","v":9},{"$f":"IF(INDEX(INDIRECT(\"Product_List\"),ROWS($88:96))=\"\",\"\",INDEX(INDIRECT(\"Product_List\"),ROWS($88:96)))","v":"09-ขนมปังไส้ถั่วดำ"},{"$f":"ยอดยกมา","v":0},null,null,null,null,null,null,0,null,{"$f":"INDIRECT(ADDRESS(ROW(A$80),ROW()-ROW(A$80)+(ROWS($88:96)-1)*2-1,4))","v":0},null,0,null,0,null,null,null,0,null,0,null,null,null,null,null,{"$f":"INDIRECT(ADDRESS(ROW(A$80),ROW()-ROW(A$80)+(ROWS($88:96)-1)*2,4))","v":0},0,null,0,{"$f":"INDIRECT(ADDRESS(ROW(A$80),ROW()-ROW(A$80)+(ROWS($88:96)-1)*2+1,4))","v":0},null,null,null,null,null,25,0,0,0]
[{"$f":"IF(B97=\"\",0,INDEX(Price_List,ROWS($88:97)))","v":10},{"$f":"IF($C97=\"\",\"\",COUNTA($C$88:$C97))","v":10},{"$f":"IF(INDEX(INDIRECT(\"Product_List\"),ROWS($88:97))=\"\",\"\",INDEX(INDIRECT(\"Product_List\"),ROWS($88:97)))","v":"10-ขนมปังไส้มันม่วง"},{"$f":"ยอดยกมา","v":0},null,null,null,null,null,null,0,null,{"$f":"INDIRECT(ADDRESS(ROW(A$80),ROW()-ROW(A$80)+(ROWS($88:97)-1)*2-1,4))","v":0},null,0,null,0,null,null,null,0,null,0,null,null,null,null,null,{"$f":"INDIRECT(ADDRESS(ROW(A$80),ROW()-ROW(A$80)+(ROWS($88:97)-1)*2,4))","v":0},0,null,0,{"$f":"INDIRECT(ADDRESS(ROW(A$80),ROW()-ROW(A$80)+(ROWS($88:97)-1)*2+1,4))","v":0},null,null,null,null,null,42,0,0,0]
[{"$f":"IF(B98=\"\",0,INDEX(Price_List,ROWS($88:98)))","v":15},{"$f":"IF($C98=\"\",\"\",COUNTA($C$88:$C98))","v":11},{"$f":"IF(INDEX(INDIRECT(\"Product_List\"),ROWS($88:98))=\"\",\"\",INDEX(INDIRECT(\"Product_List\"),ROWS($88:98)))","v":"11-เค้กกล้วยหอม"},{"$f":"ยอดยกมา","v":0},null,null,null,null,null,null,0,null,{"$f":"INDIRECT(ADDRESS(ROW(A$80),ROW()-ROW(A$80)+(ROWS($88:98)-1)*2-1,4))","v":0},null,0,null,0,null,null,null,0,null,0,null,null,null,null,null,{"$f":"INDIRECT(ADDRESS(ROW(A$80),ROW()-ROW(A$80)+(ROWS($88:98)-1)*2,4))","v":0},0,null,0,{"$f":"INDIRECT(ADDRESS(ROW(A$80),ROW()-ROW(A$80)+(ROWS($88:98)-1)*2+1,4))","v":0},null,null,null,null,null,"Total Deduct",null,null,{"$f":"SUM($AP$88:$AP$97)","v":0}]
[{"$f":"IF(B99=\"\",0,INDEX(Price_List,ROWS($88:99)))","v":15},{"$f":"IF($C99=\"\",\"\",COUNTA($C$88:$C99))","v":12},{"$f":"IF(INDEX(INDIRECT(\"Product_List\"),ROWS($88:99))=\"\",\"\",INDEX(INDIRECT(\"Product_List\"),ROWS($88:99)))","v":"12-เค้กบัตเตอร์"},{"$f":"ยอดยกมา","v":0},null,null,null,null,null,null,0,null,{"$f":"INDIRECT(ADDRESS(ROW(A$80),ROW()-ROW(A$80)+(ROWS($88:99)-1)*2-1,4))","v":0},null,0,null,0,null,null,null,0,null,0,null,null,null,null,null,{"$f":"INDIRECT(ADDRESS(ROW(A$80),ROW()-ROW(A$80)+(ROWS($88:99)-1)*2,4))","v":0},0,null,0,{"$f":"INDIRECT(ADDRESS(ROW(A$80),ROW()-ROW(A$80)+(ROWS($88:99)-1)*2+1,4))","v":0}]
[{"$f":"IF(B100=\"\",0,INDEX(Price_List,ROWS($88:100)))","v":15},{"$f":"IF($C100=\"\",\"\",COUNTA($C$88:$C100))","v":13},{"$f":"IF(INDEX(INDIRECT(\"Product_List\"),ROWS($88:100))=\"\",\"\",INDEX(INDIRECT(\"Product_List\"),ROWS($88:100)))","v":"13-ขนมปังโรลถั่วแดง"},{"$f":"ยอดยกมา","v":0},null,null,null,null,null,null,0,null,{"$f":"INDIRECT(ADDRESS(ROW(A$80),ROW()-ROW(A$80)+(ROWS($88:100)-1)*2-1,4))","v":0},null,0,null,0,null,null,null,0,null,0,null,null,null,null,null,{"$f":"INDIRECT(ADDRESS(ROW(A$80),ROW()-ROW(A$80)+(ROWS($88:100)-1)*2,4))","v":0},0,null,0,{"$f":"INDIRECT(ADDRESS(ROW(A$80),ROW()-ROW(A$80)+(ROWS($88:100)-1)*2+1,4))","v":0}]
[{"$f":"IF(B101=\"\",0,INDEX(Price_List,ROWS($88:101)))","v":15},{"$f":"IF($C101=\"\",\"\",COUNTA($C$88:$C101))","v":14},{"$f":"IF(INDEX(INDIRECT(\"Product_List\"),ROWS($88:101))=\"\",\"\",INDEX(INDIRECT(\"Product_List\"),ROWS($88:101)))","v":"14-ขนมปังไส้สังขยาใหญ่"},{"$f":"ยอดยกมา","v":0},null,null,null,null,null,null,0,null,{"$f":"INDIRECT(ADDRESS(ROW(A$80),ROW()-ROW(A$80)+(ROWS($88:101)-1)*2-1,4))","v":0},null,0,null,0,null,null,null,0,null,0,null,null,null,null,null,{"$f":"INDIRECT(ADDRESS(ROW(A$80),ROW()-ROW(A$80)+(ROWS($88:101)-1)*2,4))","v":0},0,null,0,{"$f":"INDIRECT(ADDRESS(ROW(A$80),ROW()-ROW(A$80)+(ROWS($88:101)-1)*2+1,4))","v":0}]
[{"$f":"IF(B102=\"\",0,INDEX(Price_List,ROWS($88:102)))","v":42},{"$f":"IF($C102=\"\",\"\",COUNTA($C$88:$C102))","v":15},{"$f":"IF(INDEX(INDIRECT(\"Product_List\"),ROWS($88:102))=\"\",\"\",INDEX(INDIRECT(\"Product_List\"),ROWS($88:102)))","v":"15-ขนมปังชนิดแผ่น(480กรัม)"},{"$f":"ยอดยกมา","v":0},null,null,null,null,null,null,0,null,{"$f":"INDIRECT(ADDRESS(ROW(A$80),ROW()-ROW(A$80)+(ROWS($88:102)-1)*2-1,4))","v":0},null,0,null,0,null,null,null,0,null,0,null,null,null,null,null,{"$f":"INDIRECT(ADDRESS(ROW(A$80),ROW()-ROW(A$80)+(ROWS($88:102)-1)*2,4))","v":0},0,null,0,{"$f":"INDIRECT(ADDRESS(ROW(A$80),ROW()-ROW(A$80)+(ROWS($88:102)-1)*2+1,4))","v":0}]
[{"$f":"IF(B103=\"\",0,INDEX(Price_List,ROWS($88:103)))","v":12},{"$f":"IF($C103=\"\",\"\",COUNTA($C$88:$C103))","v":16},{"$f":"IF(INDEX(INDIRECT(\"Product_List\"),ROWS($88:103))=\"\",\"\",INDEX(INDIRECT(\"Product_List\"),ROWS($88:103)))","v":"16-โมจิไส้ถั่ว"},{"$f":"ยอดยกมา","v":0},null,null,null,null,null,null,0,null,{"$f":"INDIRECT(ADDRESS(ROW(A$80),ROW()-ROW(A$80)+(ROWS($88:103)-1)*2-1,4))","v":0},null,0,null,0,null,null,null,0,null,0,null,null,null,null,null,{"$f":"INDIRECT(ADDRESS(ROW(A$80),ROW()-ROW(A$80)+(ROWS($88:103)-1)*2,4))","v":0},0,null,0,{"$f":"INDIRECT(ADDRESS(ROW(A$80),ROW()-ROW(A$80)+(ROWS($88:103)-1)*2+1,4))","v":0}]
[{"$f":"IF(B104=\"\",0,INDEX(Price_List,ROWS($88:104)))","v":12},{"$f":"IF($C104=\"\",\"\",COUNTA($C$88:$C104))","v":17},{"$f":"IF(INDEX(INDIRECT(\"Product_List\"),ROWS($88:104))=\"\",\"\",INDEX(INDIRECT(\"Product_List\"),ROWS($88:104)))","v":"17-โมจิไส้เผือก"},{"$f":"ยอดยกมา","v":0},null,null,null,null,null,null,0,null,{"$f":"INDIRECT(ADDRESS(ROW(A$80),ROW()-ROW(A$80)+(ROWS($88:104)-1)*2-1,4))","v":0},null,0,null,0,null,null,null,0,null,0,null,null,null,null,null,{"$f":"INDIRECT(ADDRESS(ROW(A$80),ROW()-ROW(A$80)+(ROWS($88:104)-1)*2,4))","v":0},0,null,0,{"$f":"INDIRECT(ADDRESS(ROW(A$80),ROW()-ROW(A$80)+(ROWS($88:104)-1)*2+1,4))","v":0}]
[{"$f":"IF(B105=\"\",0,INDEX(Price_List,ROWS($88:105)))","v":15},{"$f":"IF($C105=\"\",\"\",COUNTA($C$88:$C105))","v":18},{"$f":"IF(INDEX(INDIRECT(\"Product_List\"),ROWS($88:105))=\"\",\"\",INDEX(INDIRECT(\"Product_List\"),ROWS($88:105)))","v":"18-โมจิไส้ถั่วไข่เค็ม"},{"$f":"ยอดยกมา","v":0},null,null,null,null,null,null,0,null,{"$f":"INDIRECT(ADDRESS(ROW(A$80),ROW()-ROW(A$80)+(ROWS($88:105)-1)*2-1,4))","v":0},null,0,null,0,null,null,null,0,null,0,null,null,null,null,null,{"$f":"INDIRECT(ADDRESS(ROW(A$80),ROW()-ROW(A$80)+(ROWS($88:105)-1)*2,4))","v":0},0,null,0,{"$f":"INDIRECT(ADDRESS(ROW(A$80),ROW()-ROW(A$80)+(ROWS($88:105)-1)*2+1,4))","v":0}]
[{"$f":"IF(B106=\"\",0,INDEX(Price_List,ROWS($88:106)))","v":20},{"$f":"IF($C106=\"\",\"\",COUNTA($C$88:$C106))","v":19},{"$f":"IF(INDEX(INDIRECT(\"Product_List\"),ROWS($88:106))=\"\",\"\",INDEX(INDIRECT(\"Product_List\"),ROWS($88:106)))","v":"19-ขนมปังพิซซ่า"},{"$f":"ยอดยกมา","v":0},null,null,null,null,null,null,0,null,{"$f":"INDIRECT(ADDRESS(ROW(A$80),ROW()-ROW(A$80)+(ROWS($88:106)-1)*2-1,4))","v":0},null,0,null,0,null,null,null,0,null,0,null,null,null,null,null,{"$f":"INDIRECT(ADDRESS(ROW(A$80),ROW()-ROW(A$80)+(ROWS($88:106)-1)*2,4))","v":0},0,null,0,{"$f":"INDIRECT(ADDRESS(ROW(A$80),ROW()-ROW(A$80)+(ROWS($88:106)-1)*2+1,4))","v":0}]
[{"$f":"IF(B107=\"\",0,INDEX(Price_List,ROWS($88:107)))","v":20},{"$f":"IF($C107=\"\",\"\",COUNTA($C$88:$C107))","v":20},{"$f":"IF(INDEX(INDIRECT(\"Product_List\"),ROWS($88:107))=\"\",\"\",INDEX(INDIRECT(\"Product_List\"),ROWS($88:107)))","v":"20-ขนมปังพิซซ่าปูอัดแฮม"},{"$f":"ยอดยกมา","v":0},null,null,null,null,null,null,0,null,{"$f":"INDIRECT(ADDRESS(ROW(A$80),ROW()-ROW(A$80)+(ROWS($88:107)-1)*2-1,4))","v":0},null,0,null,0,null,null,null,0,null,0,null,null,null,null,null,{"$f":"INDIRECT(ADDRESS(ROW(A$80),ROW()-ROW(A$80)+(ROWS($88:107)-1)*2,4))","v":0},0,null,0,{"$f":"INDIRECT(ADDRESS(ROW(A$80),ROW()-ROW(A$80)+(ROWS($88:107)-1)*2+1,4))","v":0}]
[{"$f":"IF(B108=\"\",0,INDEX(Price_List,ROWS($88:108)))","v":20},{"$f":"IF($C108=\"\",\"\",COUNTA($C$88:$C108))","v":21},{"$f":"IF(INDEX(INDIRECT(\"Product_List\"),ROWS($88:108))=\"\",\"\",INDEX(INDIRECT(\"Product_List\"),ROWS($88:108)))","v":"21-ขนมปังไส้กรอก"},{"$f":"ยอดยกมา","v":0},null,null,null,null,null,null,0,null,{"$f":"INDIRECT(ADDRESS(ROW(A$80),ROW()-ROW(A$80)+(ROWS($88:108)-1)*2-1,4))","v":0},null,0,null,0,null,null,null,0,null,0,null,null,null,null,null,{"$f":"INDIRECT(ADDRESS(ROW(A$80),ROW()-ROW(A$80)+(ROWS($88:108)-1)*2,4))","v":0},0,null,0,{"$f":"INDIRECT(ADDRESS(ROW(A$80),ROW()-ROW(A$80)+(ROWS($88:108)-1)*2+1,4))","v":0}]
[{"$f":"IF(B109=\"\",0,INDEX(Price_List,ROWS($88:109)))","v":15},{"$f":"IF($C109=\"\",\"\",COUNTA($C$88:$C109))","v":22},{"$f":"IF(INDEX(INDIRECT(\"Product_List\"),ROWS($88:109))=\"\",\"\",INDEX(INDIRECT(\"Product_List\"),ROWS($88:109)))","v":"22-ขนมก้านบัว"},{"$f":"ยอดยกมา","v":0},null,null,null,null,null,null,0,null,{"$f":"INDIRECT(ADDRESS(ROW(A$80),ROW()-ROW(A$80)+(ROWS($88:109)-1)*2-1,4))","v":0},null,0,null,0,null,null,null,0,null,0,null,null,null,null,null,{"$f":"INDIRECT(ADDRESS(ROW(A$80),ROW()-ROW(A$80)+(ROWS($88:109)-1)*2,4))","v":0},0,null,0,{"$f":"INDIRECT(ADDRESS(ROW(A$80),ROW()-ROW(A$80)+(ROWS($88:109)-1)*2+1,4))","v":0}]
[{"$f":"IF(B110=\"\",0,INDEX(Price_List,ROWS($88:110)))","v":20},{"$f":"IF($C110=\"\",\"\",COUNTA($C$88:$C110))","v":23},{"$f":"IF(INDEX(INDIRECT(\"Product_List\"),ROWS($88:110))=\"\",\"\",INDEX(INDIRECT(\"Product_List\"),ROWS($88:110)))","v":"23-พายสับปะรด"},{"$f":"ยอดยกมา","v":0},null,null,null,null,null,null,0,null,{"$f":"INDIRECT(ADDRESS(ROW(A$80),ROW()-ROW(A$80)+(ROWS($88:110)-1)*2-1,4))","v":0},null,0,null,0,null,null,null,0,null,0,null,null,null,null,null,{"$f":"INDIRECT(ADDRESS(ROW(A$80),ROW()-ROW(A$80)+(ROWS($88:110)-1)*2,4))","v":0},0,null,0,{"$f":"INDIRECT(ADDRESS(ROW(A$80),ROW()-ROW(A$80)+(ROWS($88:110)-1)*2+1,4))","v":0}]
[{"$f":"IF(B111=\"\",0,INDEX(Price_List,ROWS($88:111)))","v":20},{"$f":"IF($C111=\"\",\"\",COUNTA($C$88:$C111))","v":24},{"$f":"IF(INDEX(INDIRECT(\"Product_List\"),ROWS($88:111))=\"\",\"\",INDEX(INDIRECT(\"Product_List\"),ROWS($88:111)))","v":"24-พายไส้มะพร้าว"},{"$f":"ยอดยกมา","v":0},null,null,null,null,null,null,0,null,{"$f":"INDIRECT(ADDRESS(ROW(A$80),ROW()-ROW(A$80)+(ROWS($88:111)-1)*2-1,4))","v":0},null,0,null,0,null,null,null,0,null,0,null,null,null,null,null,{"$f":"INDIRECT(ADDRESS(ROW(A$80),ROW()-ROW(A$80)+(ROWS($88:111)-1)*2,4))","v":0},0,null,0,{"$f":"INDIRECT(ADDRESS(ROW(A$80),ROW()-ROW(A$80)+(ROWS($88:111)-1)*2+1,4))","v":0}]
[{"$f":"IF(B112=\"\",0,INDEX(Price_List,ROWS($88:112)))","v":15},{"$f":"IF($C112=\"\",\"\",COUNTA($C$88:$C112))","v":25},{"$f":"IF(INDEX(INDIRECT(\"Product_List\"),ROWS($88:112))=\"\",\"\",INDEX(INDIRECT(\"Product_List\"),ROWS($88:112)))","v":"25-ขนมปังโรลมันเทศ"},{"$f":"ยอดยกมา","v":0},null,null,null,null,null,null,0,null,{"$f":"INDIRECT(ADDRESS(ROW(A$80),ROW()-ROW(A$80)+(ROWS($88:112)-1)*2-1,4))","v":0},null,0,null,0,null,null,null,0,null,0,null,null,null,null,null,{"$f":"INDIRECT(ADDRESS(ROW(A$80),ROW()-ROW(A$80)+(ROWS($88:112)-1)*2,4))","v":0},0,null,0,{"$f":"INDIRECT(ADDRESS(ROW(A$80),ROW()-ROW(A$80)+(ROWS($88:112)-1)*2+1,4))","v":0}]
[{"$f":"IF(B113=\"\",0,INDEX(Price_List,ROWS($88:113)))","v":15},{"$f":"IF($C113=\"\",\"\",COUNTA($C$88:$C113))","v":26},{"$f":"IF(INDEX(INDIRECT(\"Product_List\"),ROWS($88:113))=\"\",\"\",INDEX(INDIRECT(\"Product_List\"),ROWS($88:113)))","v":"26-ขนมปังไส้ครีมสลัดน้ำพริกเผา"},{"$f":"ยอดยกมา","v":0},null,null,null,null,null,null,0,null,{"$f":"INDIRECT(ADDRESS(ROW(A$80),ROW()-ROW(A$80)+(ROWS($88:113)-1)*2-1,4))","v":0},null,0,null,0,null,null,null,0,null,0,null,null,null,null,null,{"$f":"INDIRECT(ADDRESS(ROW(A$80),ROW()-ROW(A$80)+(ROWS($88:113)-1)*2,4))","v":0},0,null,0,{"$f":"INDIRECT(ADDRESS(ROW(A$80),ROW()-ROW(A$80)+(ROWS($88:113)-1)*2+1,4))","v":0}]
[{"$f":"IF(B114=\"\",0,INDEX(Price_List,ROWS($88:114)))","v":20},{"$f":"IF($C114=\"\",\"\",COUNTA($C$88:$C114))","v":27},{"$f":"IF(INDEX(INDIRECT(\"Product_List\"),ROWS($88:114))=\"\",\"\",INDEX(INDIRECT(\"Product_List\"),ROWS($88:114)))","v":"27-ขนมปังไส้สังขยาไข่"},{"$f":"ยอดยกมา","v":0},null,null,null,null,null,null,0,null,{"$f":"INDIRECT(ADDRESS(ROW(A$80),ROW()-ROW(A$80)+(ROWS($88:114)-1)*2-1,4))","v":0},null,0,null,0,null,null,null,0,null,0,null,null,null,null,null,{"$f":"INDIRECT(ADDRESS(ROW(A$80),ROW()-ROW(A$80)+(ROWS($88:114)-1)*2,4))","v":0},0,null,0,{"$f":"INDIRECT(ADDRESS(ROW(A$80),ROW()-ROW(A$80)+(ROWS($88:114)-1)*2+1,4))","v":0}]
[{"$f":"IF(B115=\"\",0,INDEX(Price_List,ROWS($88:115)))","v":20},{"$f":"IF($C115=\"\",\"\",COUNTA($C$88:$C115))","v":28},{"$f":"IF(INDEX(INDIRECT(\"Product_List\"),ROWS($88:115))=\"\",\"\",INDEX(INDIRECT(\"Product_List\"),ROWS($88:115)))","v":"28-ขนมปังไส้สังขยามะพร้าว"},{"$f":"ยอดยกมา","v":0},null,null,null,null,null,null,0,null,{"$f":"INDIRECT(ADDRESS(ROW(A$80),ROW()-ROW(A$80)+(ROWS($88:115)-1)*2-1,4))","v":0},null,0,null,0,null,null,null,0,null,0,null,null,null,null,null,{"$f":"INDIRECT(ADDRESS(ROW(A$80),ROW()-ROW(A$80)+(ROWS($88:115)-1)*2,4))","v":0},0,null,0,{"$f":"INDIRECT(ADDRESS(ROW(A$80),ROW()-ROW(A$80)+(ROWS($88:115)-1)*2+1,4))","v":0}]
[{"$f":"IF(B116=\"\",0,INDEX(Price_List,ROWS($88:116)))","v":10},{"$f":"IF($C116=\"\",\"\",COUNTA($C$88:$C116))","v":29},{"$f":"IF(INDEX(INDIRECT(\"Product_List\"),ROWS($88:116))=\"\",\"\",INDEX(INDIRECT(\"Product_List\"),ROWS($88:116)))","v":"29-ขนมปังไส้ครีมชาไทย"},{"$f":"ยอดยกมา","v":0},null,null,null,null,null,null,0,null,{"$f":"INDIRECT(ADDRESS(ROW(A$80),ROW()-ROW(A$80)+(ROWS($88:116)-1)*2-1,4))","v":0},null,0,null,0,null,null,null,0,null,0,null,null,null,null,null,{"$f":"INDIRECT(ADDRESS(ROW(A$80),ROW()-ROW(A$80)+(ROWS($88:116)-1)*2,4))","v":0},0,null,0,{"$f":"INDIRECT(ADDRESS(ROW(A$80),ROW()-ROW(A$80)+(ROWS($88:116)-1)*2+1,4))","v":0}]
[{"$f":"IF(B117=\"\",0,INDEX(Price_List,ROWS($88:117)))","v":15},{"$f":"IF($C117=\"\",\"\",COUNTA($C$88:$C117))","v":30},{"$f":"IF(INDEX(INDIRECT(\"Product_List\"),ROWS($88:117))=\"\",\"\",INDEX(INDIRECT(\"Product_List\"),ROWS($88:117)))","v":"30-ขนมปังโรลมันม่วง"},{"$f":"ยอดยกมา","v":0},null,null,null,null,null,null,0,null,{"$f":"INDIRECT(ADDRESS(ROW(A$80),ROW()-ROW(A$80)+(ROWS($88:117)-1)*2-1,4))","v":0},null,0,null,0,null,null,null,0,null,0,null,null,null,null,null,{"$f":"INDIRECT(ADDRESS(ROW(A$80),ROW()-ROW(A$80)+(ROWS($88:117)-1)*2,4))","v":0},0,null,0,{"$f":"INDIRECT(ADDRESS(ROW(A$80),ROW()-ROW(A$80)+(ROWS($88:117)-1)*2+1,4))","v":0}]
[{"$f":"IF(B118=\"\",0,INDEX(Price_List,ROWS($88:118)))","v":15},{"$f":"IF($C118=\"\",\"\",COUNTA($C$88:$C118))","v":31},{"$f":"IF(INDEX(INDIRECT(\"Product_List\"),ROWS($88:118))=\"\",\"\",INDEX(INDIRECT(\"Product_List\"),ROWS($88:118)))","v":"31-ขนมปังโรลช็อกโกแลต"},{"$f":"ยอดยกมา","v":0},null,null,null,null,null,null,0,null,{"$f":"INDIRECT(ADDRESS(ROW(A$80),ROW()-ROW(A$80)+(ROWS($88:118)-1)*2-1,4))","v":0},null,0,null,0,null,null,null,0,null,0,null,null,null,null,null,{"$f":"INDIRECT(ADDRESS(ROW(A$80),ROW()-ROW(A$80)+(ROWS($88:118)-1)*2,4))","v":0},0,null,0,{"$f":"INDIRECT(ADDRESS(ROW(A$80),ROW()-ROW(A$80)+(ROWS($88:118)-1)*2+1,4))","v":0}]
[{"$f":"IF(B119=\"\",0,INDEX(Price_List,ROWS($88:119)))","v":16},{"$f":"IF($C119=\"\",\"\",COUNTA($C$88:$C119))","v":32},{"$f":"IF(INDEX(INDIRECT(\"Product_List\"),ROWS($88:119))=\"\",\"\",INDEX(INDIRECT(\"Product_List\"),ROWS($88:119)))","v":"32-ขนมปังชนิดแผ่น(155กรัม)"},{"$f":"ยอดยกมา","v":0},null,null,null,null,null,null,0,null,{"$f":"INDIRECT(ADDRESS(ROW(A$80),ROW()-ROW(A$80)+(ROWS($88:119)-1)*2-1,4))","v":0},null,0,null,0,null,null,null,0,null,0,null,null,null,null,null,{"$f":"INDIRECT(ADDRESS(ROW(A$80),ROW()-ROW(A$80)+(ROWS($88:119)-1)*2,4))","v":0},0,null,0,{"$f":"INDIRECT(ADDRESS(ROW(A$80),ROW()-ROW(A$80)+(ROWS($88:119)-1)*2+1,4))","v":0}]
[{"$f":"IF(B120=\"\",0,INDEX(Price_List,ROWS($88:120)))","v":15},{"$f":"IF($C120=\"\",\"\",COUNTA($C$88:$C120))","v":33},{"$f":"IF(INDEX(INDIRECT(\"Product_List\"),ROWS($88:120))=\"\",\"\",INDEX(INDIRECT(\"Product_List\"),ROWS($88:120)))","v":"33-ขนมปังโรลเผือก"},{"$f":"ยอดยกมา","v":0},null,null,null,null,null,null,0,null,{"$f":"INDIRECT(ADDRESS(ROW(A$80),ROW()-ROW(A$80)+(ROWS($88:120)-1)*2-1,4))","v":0},null,0,null,0,null,null,null,0,null,0,null,null,null,null,null,{"$f":"INDIRECT(ADDRESS(ROW(A$80),ROW()-ROW(A$80)+(ROWS($88:120)-1)*2,4))","v":0},0,null,0,{"$f":"INDIRECT(ADDRESS(ROW(A$80),ROW()-ROW(A$80)+(ROWS($88:120)-1)*2+1,4))","v":0}]
[{"$f":"IF(B121=\"\",0,INDEX(Price_List,ROWS($88:121)))","v":15},{"$f":"IF($C121=\"\",\"\",COUNTA($C$88:$C121))","v":34},{"$f":"IF(INDEX(INDIRECT(\"Product_List\"),ROWS($88:121))=\"\",\"\",INDEX(INDIRECT(\"Product_List\"),ROWS($88:121)))","v":"34-ขนมปังไก่หยองน้ำสลัด Mini"},{"$f":"ยอดยกมา","v":0},null,null,null,null,null,null,0,null,{"$f":"INDIRECT(ADDRESS(ROW(A$80),ROW()-ROW(A$80)+(ROWS($88:121)-1)*2-1,4))","v":0},null,0,null,0,null,null,null,0,null,0,null,null,null,null,null,{"$f":"INDIRECT(ADDRESS(ROW(A$80),ROW()-ROW(A$80)+(ROWS($88:121)-1)*2,4))","v":0},0,null,0,{"$f":"INDIRECT(ADDRESS(ROW(A$80),ROW()-ROW(A$80)+(ROWS($88:121)-1)*2+1,4))","v":0}]
[{"$f":"IF(B122=\"\",0,INDEX(Price_List,ROWS($88:122)))","v":10},{"$f":"IF($C122=\"\",\"\",COUNTA($C$88:$C122))","v":35},{"$f":"IF(INDEX(INDIRECT(\"Product_List\"),ROWS($88:122))=\"\",\"\",INDEX(INDIRECT(\"Product_List\"),ROWS($88:122)))","v":"35-ขนมปังไส้ช็อกโกแลต"},{"$f":"ยอดยกมา","v":0},null,null,null,null,null,null,0,null,{"$f":"INDIRECT(ADDRESS(ROW(A$80),ROW()-ROW(A$80)+(ROWS($88:122)-1)*2-1,4))","v":0},null,0,null,0,null,null,null,0,null,0,null,null,null,null,null,{"$f":"INDIRECT(ADDRESS(ROW(A$80),ROW()-ROW(A$80)+(ROWS($88:122)-1)*2,4))","v":0},0,null,0,{"$f":"INDIRECT(ADDRESS(ROW(A$80),ROW()-ROW(A$80)+(ROWS($88:122)-1)*2+1,4))","v":0}]
[{"$f":"IF(B123=\"\",0,INDEX(Price_List,ROWS($88:123)))","v":10},{"$f":"IF($C123=\"\",\"\",COUNTA($C$88:$C123))","v":36},{"$f":"IF(INDEX(INDIRECT(\"Product_List\"),ROWS($88:123))=\"\",\"\",INDEX(INDIRECT(\"Product_List\"),ROWS($88:123)))","v":"36-ขนมปังไส้ครีมสังขยาไข่"},{"$f":"ยอดยกมา","v":0},null,null,null,null,null,null,0,null,{"$f":"INDIRECT(ADDRESS(ROW(A$80),ROW()-ROW(A$80)+(ROWS($88:123)-1)*2-1,4))","v":0},null,0,null,0,null,null,null,0,null,0,null,null,null,null,null,{"$f":"INDIRECT(ADDRESS(ROW(A$80),ROW()-ROW(A$80)+(ROWS($88:123)-1)*2,4))","v":0},0,null,0,{"$f":"INDIRECT(ADDRESS(ROW(A$80),ROW()-ROW(A$80)+(ROWS($88:123)-1)*2+1,4))","v":0}]
[{"$f":"IF(B124=\"\",0,INDEX(Price_List,ROWS($88:124)))","v":20},{"$f":"IF($C124=\"\",\"\",COUNTA($C$88:$C124))","v":37},{"$f":"IF(INDEX(INDIRECT(\"Product_List\"),ROWS($88:124))=\"\",\"\",INDEX(INDIRECT(\"Product_List\"),ROWS($88:124)))","v":"37-ขนมปังพิซซ่าฮาวายเอี้ยน"},{"$f":"ยอดยกมา","v":0},null,null,null,null,null,null,0,null,{"$f":"INDIRECT(ADDRESS(ROW(A$80),ROW()-ROW(A$80)+(ROWS($88:124)-1)*2-1,4))","v":0},null,0,null,0,null,null,null,0,null,0,null,null,null,null,null,{"$f":"INDIRECT(ADDRESS(ROW(A$80),ROW()-ROW(A$80)+(ROWS($88:124)-1)*2,4))","v":0},0,null,0,{"$f":"INDIRECT(ADDRESS(ROW(A$80),ROW()-ROW(A$80)+(ROWS($88:124)-1)*2+1,4))","v":0}]
[{"$f":"IF(B125=\"\",0,INDEX(Price_List,ROWS($88:125)))","v":20},{"$f":"IF($C125=\"\",\"\",COUNTA($C$88:$C125))","v":38},{"$f":"IF(INDEX(INDIRECT(\"Product_List\"),ROWS($88:125))=\"\",\"\",INDEX(INDIRECT(\"Product_List\"),ROWS($88:125)))","v":"38-ครัวซองต์หมูหยองน้ำสลัด"},{"$f":"ยอดยกมา","v":0},null,null,null,null,null,null,0,null,{"$f":"INDIRECT(ADDRESS(ROW(A$80),ROW()-ROW(A$80)+(ROWS($88:125)-1)*2-1,4))","v":0},null,0,null,0,null,null,null,0,null,0,null,null,null,null,null,{"$f":"INDIRECT(ADDRESS(ROW(A$80),ROW()-ROW(A$80)+(ROWS($88:125)-1)*2,4))","v":0},0,null,0,{"$f":"INDIRECT(ADDRESS(ROW(A$80),ROW()-ROW(A$80)+(ROWS($88:125)-1)*2+1,4))","v":0}]
[{"$f":"IF(B126=\"\",0,INDEX(Price_List,ROWS($88:126)))","v":15},{"$f":"IF($C126=\"\",\"\",COUNTA($C$88:$C126))","v":39},{"$f":"IF(INDEX(INDIRECT(\"Product_List\"),ROWS($88:126))=\"\",\"\",INDEX(INDIRECT(\"Product_List\"),ROWS($88:126)))","v":"39-แพนเบรดไส้เผือก"},{"$f":"ยอดยกมา","v":0},null,null,null,null,null,null,0,null,{"$f":"INDIRECT(ADDRESS(ROW(A$80),ROW()-ROW(A$80)+(ROWS($88:126)-1)*2-1,4))","v":0},null,0,null,0,null,null,null,0,null,0,null,null,null,null,null,{"$f":"INDIRECT(ADDRESS(ROW(A$80),ROW()-ROW(A$80)+(ROWS($88:126)-1)*2,4))","v":0},0,null,0,{"$f":"INDIRECT(ADDRESS(ROW(A$80),ROW()-ROW(A$80)+(ROWS($88:126)-1)*2+1,4))","v":0}]
[{"$f":"IF(B127=\"\",0,INDEX(Price_List,ROWS($88:127)))","v":15},{"$f":"IF($C127=\"\",\"\",COUNTA($C$88:$C127))","v":40},{"$f":"IF(INDEX(INDIRECT(\"Product_List\"),ROWS($88:127))=\"\",\"\",INDEX(INDIRECT(\"Product_List\"),ROWS($88:127)))","v":"40-แพนเบรดไส้ถั่วแดง"},{"$f":"ยอดยกมา","v":0},null,null,null,null,null,null,0,null,{"$f":"INDIRECT(ADDRESS(ROW(A$80),ROW()-ROW(A$80)+(ROWS($88:127)-1)*2-1,4))","v":0},null,0,null,0,null,null,null,0,null,0,null,null,null,null,null,{"$f":"INDIRECT(ADDRESS(ROW(A$80),ROW()-ROW(A$80)+(ROWS($88:127)-1)*2,4))","v":0},0,null,0,{"$f":"INDIRECT(ADDRESS(ROW(A$80),ROW()-ROW(A$80)+(ROWS($88:127)-1)*2+1,4))","v":0}]
[{"$f":"IF(B128=\"\",0,INDEX(Price_List,ROWS($88:128)))","v":12},{"$f":"IF($C128=\"\",\"\",COUNTA($C$88:$C128))","v":41},{"$f":"IF(INDEX(INDIRECT(\"Product_List\"),ROWS($88:128))=\"\",\"\",INDEX(INDIRECT(\"Product_List\"),ROWS($88:128)))","v":"41-ขนมปังกรอบเนยน้ำตาล(30กรัม)"},{"$f":"ยอดยกมา","v":0},null,null,null,null,null,null,0,null,{"$f":"INDIRECT(ADDRESS(ROW(A$80),ROW()-ROW(A$80)+(ROWS($88:128)-1)*2-1,4))","v":0},null,0,null,0,null,null,null,0,null,0,null,null,null,null,null,{"$f":"INDIRECT(ADDRESS(ROW(A$80),ROW()-ROW(A$80)+(ROWS($88:128)-1)*2,4))","v":0},0,null,0,{"$f":"INDIRECT(ADDRESS(ROW(A$80),ROW()-ROW(A$80)+(ROWS($88:128)-1)*2+1,4))","v":0}]
[{"$f":"IF(B129=\"\",0,INDEX(Price_List,ROWS($88:129)))","v":18},{"$f":"IF($C129=\"\",\"\",COUNTA($C$88:$C129))","v":42},{"$f":"IF(INDEX(INDIRECT(\"Product_List\"),ROWS($88:129))=\"\",\"\",INDEX(INDIRECT(\"Product_List\"),ROWS($88:129)))","v":"42-ขนมปังชนิดแผ่นโฮลวีต"},{"$f":"ยอดยกมา","v":0},null,null,null,null,null,null,0,null,{"$f":"INDIRECT(ADDRESS(ROW(A$80),ROW()-ROW(A$80)+(ROWS($88:129)-1)*2-1,4))","v":0},null,0,null,0,null,null,null,0,null,0,null,null,null,null,null,{"$f":"INDIRECT(ADDRESS(ROW(A$80),ROW()-ROW(A$80)+(ROWS($88:129)-1)*2,4))","v":0},0,null,0,{"$f":"INDIRECT(ADDRESS(ROW(A$80),ROW()-ROW(A$80)+(ROWS($88:129)-1)*2+1,4))","v":0}]
[{"$f":"IF(B130=\"\",0,INDEX(Price_List,ROWS($88:130)))","v":12},{"$f":"IF($C130=\"\",\"\",COUNTA($C$88:$C130))","v":43},{"$f":"IF(INDEX(INDIRECT(\"Product_List\"),ROWS($88:130))=\"\",\"\",INDEX(INDIRECT(\"Product_List\"),ROWS($88:130)))","v":"43-เค้กโรลใบเตย"},{"$f":"ยอดยกมา","v":0},null,null,null,null,null,null,{"$f":"D130+E130+J130-I130+H130","v":0},null,{"$f":"INDIRECT(ADDRESS(ROW(A$80),ROW()-ROW(A$80)+(ROWS($88:130)-1)*2-1,4))","v":0},null,{"$f":"F130+G130+M130+J130-K130","v":0},null,{"$f":"O130*A130","v":0},null,null,null,{"$f":"D130+E130-F130-G130","v":0},null,{"$f":"U130*6%+U130","v":0},null,null,null,null,null,{"$f":"INDIRECT(ADDRESS(ROW(A$80),ROW()-ROW(A$80)+(ROWS($88:130)-1)*2,4))","v":0},0,null,0,{"$f":"INDIRECT(ADDRESS(ROW(A$80),ROW()-ROW(A$80)+(ROWS($88:130)-1)*2+1,4))","v":0}]
[{"$f":"IF(B131=\"\",0,INDEX(Price_List,ROWS($88:131)))","v":12},{"$f":"IF($C131=\"\",\"\",COUNTA($C$88:$C131))","v":44},{"$f":"IF(INDEX(INDIRECT(\"Product_List\"),ROWS($88:131))=\"\",\"\",INDEX(INDIRECT(\"Product_List\"),ROWS($88:131)))","v":"44-ขนมโมจิไส้ถั่วดำ"},{"$f":"ยอดยกมา","v":0},null,null,null,null,null,null,{"$f":"D131+E131+J131-I131+H131","v":0},null,{"$f":"INDIRECT(ADDRESS(ROW(A$80),ROW()-ROW(A$80)+(ROWS($88:131)-1)*2-1,4))","v":0},null,{"$f":"F131+G131+M131+J131-K131","v":0},null,{"$f":"O131*A131","v":0},null,null,null,{"$f":"D131+E131-F131-G131","v":0},null,{"$f":"U131*6%+U131","v":0},null,null,null,null,null,{"$f":"INDIRECT(ADDRESS(ROW(A$80),ROW()-ROW(A$80)+(ROWS($88:131)-1)*2,4))","v":0},0,null,0,{"$f":"INDIRECT(ADDRESS(ROW(A$80),ROW()-ROW(A$80)+(ROWS($88:131)-1)*2+1,4))","v":0}]
[{"$f":"IF(B132=\"\",0,INDEX(Price_List,ROWS($88:132)))","v":25},{"$f":"IF($C132=\"\",\"\",COUNTA($C$88:$C132))","v":45},{"$f":"IF(INDEX(INDIRECT(\"Product_List\"),ROWS($88:132))=\"\",\"\",INDEX(INDIRECT(\"Product_List\"),ROWS($88:132)))","v":"45-ครัวซองต์ไส้กรอกชีส"},{"$f":"ยอดยกมา","v":0},null,null,null,null,null,null,{"$f":"D132+E132+J132-I132+H132","v":0},null,{"$f":"INDIRECT(ADDRESS(ROW(A$80),ROW()-ROW(A$80)+(ROWS($88:132)-1)*2-1,4))","v":0},null,{"$f":"F132+G132+M132+J132-K132","v":0},null,{"$f":"O132*A132","v":0},null,null,null,{"$f":"D132+E132-F132-G132","v":0},null,{"$f":"U132*6%+U132","v":0},null,null,null,null,null,{"$f":"INDIRECT(ADDRESS(ROW(A$80),ROW()-ROW(A$80)+(ROWS($88:132)-1)*2,4))","v":0},0,null,0,{"$f":"INDIRECT(ADDRESS(ROW(A$80),ROW()-ROW(A$80)+(ROWS($88:132)-1)*2+1,4))","v":0}]
[{"$f":"IF(B133=\"\",0,INDEX(Price_List,ROWS($88:133)))","v":12},{"$f":"IF($C133=\"\",\"\",COUNTA($C$88:$C133))","v":46},{"$f":"IF(INDEX(INDIRECT(\"Product_List\"),ROWS($88:133))=\"\",\"\",INDEX(INDIRECT(\"Product_List\"),ROWS($88:133)))","v":"46-ขนมเปี๊ยะไส้ถั่ว"},{"$f":"ยอดยกมา","v":0},null,null,null,null,null,null,0,null,{"$f":"INDIRECT(ADDRESS(ROW(A$80),ROW()-ROW(A$80)+(ROWS($88:133)-1)*2-1,4))","v":0},null,0,null,0,null,null,null,0,null,0,null,null,null,null,null,{"$f":"INDIRECT(ADDRESS(ROW(A$80),ROW()-ROW(A$80)+(ROWS($88:133)-1)*2,4))","v":0},0,null,0,{"$f":"INDIRECT(ADDRESS(ROW(A$80),ROW()-ROW(A$80)+(ROWS($88:133)-1)*2+1,4))","v":0}]
[{"$f":"IF(B134=\"\",0,INDEX(Price_List,ROWS($88:134)))","v":12},{"$f":"IF($C134=\"\",\"\",COUNTA($C$88:$C134))","v":47},{"$f":"IF(INDEX(INDIRECT(\"Product_List\"),ROWS($88:134))=\"\",\"\",INDEX(INDIRECT(\"Product_List\"),ROWS($88:134)))","v":"47-ขนมเปี๊ยะไส้ฟัก"},{"$f":"ยอดยกมา","v":0},null,null,null,null,null,null,{"$f":"D134+E134+J134-I134+H134","v":0},null,{"$f":"INDIRECT(ADDRESS(ROW(A$80),ROW()-ROW(A$80)+(ROWS($88:134)-1)*2-1,4))","v":0},null,{"$f":"F134+G134+M134+J134-K134","v":0},null,{"$f":"O134*A134","v":0},null,null,null,{"$f":"D134+E134-F134-G134","v":0},null,{"$f":"U134*6%+U134","v":0},null,null,null,null,null,{"$f":"INDIRECT(ADDRESS(ROW(A$80),ROW()-ROW(A$80)+(ROWS($88:134)-1)*2,4))","v":0},0,null,0,{"$f":"INDIRECT(ADDRESS(ROW(A$80),ROW()-ROW(A$80)+(ROWS($88:134)-1)*2+1,4))","v":0}]
[{"$f":"IF(B135=\"\",0,INDEX(Price_List,ROWS($88:135)))","v":12},{"$f":"IF($C135=\"\",\"\",COUNTA($C$88:$C135))","v":48},{"$f":"IF(INDEX(INDIRECT(\"Product_List\"),ROWS($88:135))=\"\",\"\",INDEX(INDIRECT(\"Product_List\"),ROWS($88:135)))","v":"48-มังกี้เค้ก"},{"$f":"ยอดยกมา","v":0},null,null,null,null,null,null,0,null,{"$f":"INDIRECT(ADDRESS(ROW(A$80),ROW()-ROW(A$80)+(ROWS($88:135)-1)*2-1,4))","v":0},null,0,null,0,null,null,null,0,null,0,null,null,null,null,null,{"$f":"INDIRECT(ADDRESS(ROW(A$80),ROW()-ROW(A$80)+(ROWS($88:135)-1)*2,4))","v":0},0,null,0,{"$f":"INDIRECT(ADDRESS(ROW(A$80),ROW()-ROW(A$80)+(ROWS($88:135)-1)*2+1,4))","v":0}]
["รวม",null,null,{"$f":"SUM(D$88:D$135)","v":0},0,0,0,0,0,0,0,null,{"$f":"SUM(M$88:M$135)","v":0},null,null,null,{"$f":"$AP$98","v":0},null,"บาท",null,{"$f":"SUM(U$88:U$135)","v":0},null,{"$f":"SUM(W$88:W$135)","v":0},null,null,null,null,null,{"$f":"SUM(AC$88:AC$135)","v":0},{"$f":"SUM(AD$88:AD$135)","v":0},{"$f":"SUM(AE$88:AE$135)","v":0},{"$f":"SUM(AF$88:AF$135)","v":0},{"$f":"SUM(AG$88:AG$135)","v":0}]
["เลขที่ไมล์ เวลาออกทำงาน",null,null,{"$f":"$BF$3","v":0},null,"Km","น้ำหนักของเสีย"]
["เลขที่ไมล์ เวลากลับ",null,null,{"$f":"$BF$4","v":0},null,"Km",{"$f":"$AA$5","v":0},null,"KG"]
["เวลากลับถึงสำนักงาน",null,null,{"$f":"$BF$1","v":"00:00:00"},null,"น."]
["เติมน้ำมัน",null,null,{"$f":"$AX3","v":0},null,"บาท"]
["จำนวนน้ำมัน",null,null,{"$f":"$AX4","v":0},null,"ลิตร"]
["ยอดรวมต้นทุนสาขา",null,null,{"$f":"$AX5","v":0},null,"บาท"]

{"sheet":"14","index":18,"n_rows":142,"n_cols":154,"rows_kept":142,"cut":false,"hidden":false,"merged":[[83,132,83,133],[129,10,129,11],[129,12,129,13],[129,14,129,15],[129,16,129,17],[127,10,127,11],[127,12,127,13],[127,14,127,15],[127,16,127,17],[127,20,127,21],[127,22,127,23],[127,24,127,25],[127,33,127,36],[126,10,126,11],[126,12,126,13],[126,14,126,15],[126,16,126,17],[128,10,128,11],[128,12,128,13],[129,24,129,25],[125,10,125,11],[125,12,125,13],[125,14,125,15],[125,16,125,17],[7,132,7,134],[8,132,8,134],[80,132,80,133],[82,132,82,133],[7,135,7,137],[8,135,8,137],[80,135,80,136],[82,135,82,136],[7,138,7,140],[7,141,7,143],[7,147,7,149],[8,138,8,140],[141,0,141,2],[141,3,141,4],[138,0,138,2],[138,3,138,4],[139,0,139,2],[139,3,139,4],[140,0,140,2],[140,3,140,4],[135,24,135,25],[135,33,135,36],[136,0,136,2],[136,3,136,4],[137,0,137,2],[137,3,137,4],[137,6,137,7],[137,18,137,21],[135,0,135,2],[135,10,135,11],[135,12,135,13],[135,14,135,15],[135,16,135,17],[135,18,135,19],[135,20,135,21],[135,22,135,23],[128,14,128,15],[128,16,128,17],[128,20,128,21],[128,22,128,23],[129,20,129,21],[129,22,129,23],[131,16,131,17],[132,16,132,17],[134,16,134,17],[131,20,131,21],[132,20,132,21],[134,20,134,21],[131,22,131,23],[132,22,132,23],[134,22,134,23],[131,24,131,25],[132,24,132,25],[134,24,134,25],[129,33,129,36],[128,24,128,25],[128,33,128,36],[126,20,126,21],[126,22,126,23],[124,24,124,25],[124,33,124,36],[125,20,125,21],[125,22,125,23],[125,24,125,25],[125,33,125,36],[124,10,124,11],[124,12,124,13],[124,14,124,15],[124,16,124,17],[124,20,124,21],[124,22,124,23],[126,24,126,25],[126,33,126,36],[122,24,122,25],[122,33,122,36],[123,10,123,11],[123,12,123,13],[123,14,123,15],[123,16,123,17],[123,20,123,21],[123,22,123,23],[123,24,123,25],[123,33,123,36],[122,10,122,11],[122,12,122,13],[122,14,122,15],[122,16,122,17],[122,20,122,21],[122,22,122,23],[120,24,120,25],[120,33,120,36],[121,10,121,11],[121,12,121,13],[121,14,121,15],[121,16,121,17],[121,20,121,21],[121,22,121,23],[121,24,121,25],[121,33,121,36],[120,10,120,11],[120,12,120,13],[120,14,120,15],[120,16,120,17],[120,20,120,21],[120,22,120,23],[118,24,118,25],[118,33,118,36],[119,10,119,11],[119,12,119,13],[119,14,119,15],[119,16,119,17],[119,20,119,21],[119,22,119,23],[119,24,119,25],[119,33,119,36],[118,10,118,11],[118,12,118,13],[118,14,118,15],[118,16,118,17],[118,20,118,21],[118,22,118,23],[116,24,116,25],[116,33,116,36],[117,10,117,11],[117,12,117,13],[117,14,117,15],[117,16,117,17],[117,20,117,21],[117,22,117,23],[117,24,117,25],[117,33,117,36],[116,10,116,11],[116,12,116,13],[116,14,116,15],[116,16,116,17],[116,20,116,21],[116,22,116,23],[114,24,114,25],[114,33,114,36],[115,10,115,11],[115,12,115,13],[115,14,115,15],[115,16,115,17],[115,20,115,21],[115,22,115,23],[115,24,115,25],[115,33,115,36],[114,10,114,11],[114,12,114,13],[114,14,114,15],[114,16,114,17],[114,20,114,21],[114,22,114,23],[112,24,112,25],[112,33,112,36],[113,10,113,11],[113,12,113,13],[113,14,113,15],[113,16,113,17],[113,20,113,21],[113,22,113,23],[113,24,113,25],[113,33,113,36],[112,10,112,11],[112,12,112,13],[112,14,112,15],[112,16,112,17],[112,20,112,21],[112,22,112,23],[110,24,110,25],[110,33,110,36],[111,10,111,11],[111,12,111,13],[111,14,111,15],[111,16,111,17],[111,20,111,21],[111,22,111,23],[111,24,111,25],[111,33,111,36],[110,10,110,11],[110,12,110,13],[110,14,110,15],[110,16,110,17],[110,20,110,21],[110,22,110,23],[108,24,108,25],[108,33,108,36],[109,10,109,11],[109,12,109,13],[109,14,109,15],[109,16,109,17],[109,20,109,21],[109,22,109,23],[109,24,109,25],[109,33,109,36],[108,10,108,11],[108,12,108,13],[108,14,108,15],[108,16,108,17],[108,20,108,21],[108,22,108,23],[106,24,106,25],[106,33,106,36],[107,10,107,11],[107,12,107,13],[107,14,107,15],[107,16,107,17],[107,20,107,21],[107,22,107,23],[107,24,107,25],[107,33,107,36],[106,10,106,11],[106,12,106,13],[106,14,106,15],[106,16,106,17],[106,20,106,21],[106,22,106,23],[104,24,104,25],[104,33,104,36],[105,10,105,11],[105,12,105,13],[105,14,105,15],[105,16,105,17],[105,20,105,21],[105,22,105,23],[105,24,105,25],[105,33,105,36],[104,10,104,11],[104,12,104,13],[104,14,104,15],[104,16,104,17],[104,20,104,21],[104,22,104,23],[102,24,102,25],[102,33,102,36],[103,10,103,11],[103,12,103,13],[103,14,103,15],[103,16,103,17],[103,20,103,21],[103,22,103,23],[103,24,103,25],[103,33,103,36],[102,10,102,11],[102,12,102,13],[102,14,102,15],[102,16,102,17],[102,20,102,21],[102,22,102,23],[101,10,101,11],[101,12,101,13],[101,14,101,15],[101,16,101,17],[101,20,101,21],[101,22,101,23],[101,24,101,25],[101,33,101,36],[100,10,100,11],[100,12,100,13],[100,14,100,15],[100,16,100,17],[100,20,100,21],[100,22,100,23],[99,10,99,11],[99,12,99,13],[99,14,99,15],[99,16,99,17],[99,20,99,21],[99,22,99,23],[99,24,99,25],[99,33,99,36],[100,24,100,25],[100,33,100,36],[97,24,97,25],[97,33,97,36],[97,38,97,40],[98,10,98,11],[98,12,98,13],[98,14,98,15],[98,16,98,17],[98,20,98,21],[98,22,98,23],[98,24,98,25],[97,10,97,11],[97,12,97,13],[97,14,97,15],[97,16,97,17],[97,20,97,21],[97,22,97,23],[98,33,98,36],[95,24,95,25],[95,33,95,36],[96,10,96,11],[96,12,96,13],[96,14,96,15],[96,16,96,17],[96,20,96,21],[96,22,96,23],[96,24,96,25],[96,33,96,36],[95,10,95,11],[95,12,95,13],[95,14,95,15],[95,16,95,17],[95,20,95,21],[95,22,95,23],[93,24,93,25],[93,33,93,36],[94,10,94,11],[94,12,94,13],[94,14,94,15],[94,16,94,17],[94,20,94,21],[94,22,94,23],[94,24,94,25],[94,33,94,36],[93,10,93,11],[93,12,93,13],[93,14,93,15],[93,16,93,17],[93,20,93,21],[93,22,93,23],[91,24,91,25],[91,33,91,36],[92,10,92,11],[92,12,92,13],[92,14,92,15],[92,16,92,17],[92,20,92,21],[92,22,92,23],[92,24,92,25],[92,33,92,36],[91,10,91,11],[91,12,91,13],[91,14,91,15],[91,16,91,17],[91,20,91,21],[91,22,91,23],[86,22,86,23],[86,24,86,25],[88,20,88,21],[88,22,88,23],[88,24,88,25],[88,33,88,36],[89,24,89,25],[89,33,89,36],[90,10,90,11],[90,12,90,13],[90,14,90,15],[90,16,90,17],[90,20,90,21],[90,22,90,23],[90,24,90,25],[90,33,90,36],[89,10,89,11],[89,12,89,13],[89,14,89,15],[89,16,89,17],[89,20,89,21],[89,22,89,23],[83,36,83,37],[83,39,83,40],[83,42,83,43],[83,45,83,46],[83,48,83,49],[83,51,83,52],[83,150,83,153],[86,10,86,11],[86,12,86,13],[86,14,86,15],[86,16,86,17],[86,20,86,21],[83,108,83,109],[83,111,83,112],[83,114,83,115],[83,117,83,118],[83,120,83,121],[83,123,83,124],[83,90,83,91],[83,93,83,94],[83,96,83,97],[83,99,83,100],[83,102,83,103],[83,105,83,106],[82,39,82,40],[82,42,82,43],[82,45,82,46],[82,48,82,49],[83,84,83,85],[83,87,83,88],[83,54,83,55],[83,57,83,58],[83,60,83,61],[83,63,83,64],[83,66,83,67],[83,69,83,70],[83,72,83,73],[83,75,83,76],[83,78,83,79],[83,81,83,82],[83,0,83,5],[83,6,83,7],[83,9,83,10],[83,12,83,13],[83,15,83,16],[82,105,82,106],[82,108,82,109],[82,111,82,112],[82,114,82,115],[82,87,82,88],[82,90,82,91],[82,93,82,94],[82,96,82,97],[82,99,82,100],[82,102,82,103],[82,69,82,70],[82,72,82,73],[82,75,82,76],[82,78,82,79],[82,81,82,82],[82,84,82,85],[82,51,82,52],[82,54,82,55],[82,57,82,58],[82,15,82,16],[82,18,82,19],[82,21,82,22],[82,24,82,25],[82,27,82,28],[82,30,82,31],[81,0,81,2],[81,3,81,5],[81,150,82,153],[82,0,82,2],[82,3,82,4],[82,6,82,7],[82,9,82,10],[82,12,82,13],[82,123,82,124],[82,126,82,127],[82,129,82,130],[82,117,82,118],[82,120,82,121],[82,60,82,61],[82,63,82,64],[82,66,82,67],[82,33,82,34],[82,36,82,37],[80,114,80,115],[80,117,80,118],[80,120,80,121],[80,123,80,124],[80,126,80,127],[80,129,80,130],[80,96,80,97],[80,99,80,100],[80,102,80,103],[80,105,80,106],[80,108,80,109],[80,111,80,112],[80,78,80,79],[80,81,80,82],[80,87,80,88],[80,90,80,91],[80,93,80,94],[80,60,80,61],[80,63,80,64],[80,66,80,67],[80,69,80,70],[80,72,80,73],[80,75,80,76],[80,84,80,85],[79,0,79,5],[80,0,80,5],[80,6,80,7],[80,9,80,10],[80,12,80,13],[80,15,80,16],[80,18,80,19],[80,21,80,22],[8,114,8,116],[8,78,8,80],[8,81,8,83],[8,87,8,89],[8,90,8,92],[8,93,8,95],[8,60,8,62],[8,63,8,65],[8,66,8,68],[8,69,8,71],[8,72,8,74],[8,75,8,77],[8,54,8,56],[8,57,8,59],[8,24,8,26],[8,27,8,29],[8,120,8,122],[8,123,8,125],[8,126,8,128],[8,129,8,131],[8,96,8,98],[8,99,8,101],[8,102,8,104],[8,105,8,107],[8,108,8,110],[8,111,8,113],[8,33,8,35],[8,36,8,38],[8,39,8,41],[8,84,8,86],[7,150,8,150],[7,151,8,151],[8,6,8,8],[8,9,8,11],[8,12,8,14],[8,15,8,17],[8,18,8,20],[8,21,8,23],[7,114,7,116],[7,117,7,119],[7,120,7,122],[7,123,7,125],[7,126,7,128],[7,129,7,131],[7,96,7,98],[7,99,7,101],[7,102,7,104],[7,105,7,107],[7,108,7,110],[8,117,8,119],[7,87,7,89],[7,90,7,92],[7,93,7,95],[7,60,7,62],[7,63,7,65],[7,66,7,68],[7,69,7,71],[7,72,7,74],[7,75,7,77],[7,54,7,56],[7,57,7,59],[7,24,7,26],[7,27,7,29],[7,30,7,32],[7,33,7,35],[7,36,7,38],[7,39,7,41],[7,84,7,86],[6,150,6,151],[6,152,8,152],[6,153,8,153],[7,6,7,8],[7,9,7,11],[7,12,7,14],[7,15,7,17],[7,18,7,20],[7,21,7,23],[6,117,6,119],[6,120,6,122],[6,123,6,125],[6,126,6,128],[6,129,6,131],[6,99,6,101],[6,102,6,104],[6,105,6,107],[6,108,6,110],[6,111,6,113],[6,54,6,56],[6,57,6,59],[7,111,7,113],[7,78,7,80],[7,81,7,83],[6,0,8,0],[6,1,8,1],[6,2,8,2],[6,3,8,3],[6,4,8,4],[6,6,6,8],[6,45,6,47],[6,48,6,50],[6,51,6,53],[7,42,7,44],[7,45,7,47],[7,48,7,50],[7,51,7,53],[8,42,8,44],[8,45,8,47],[8,48,8,50],[8,51,8,53],[6,27,6,29],[6,30,6,32],[6,33,6,35],[6,36,6,38],[6,39,6,41],[6,42,6,44],[8,30,8,32],[4,26,4,29],[4,30,4,31],[4,32,4,34],[4,35,4,36],[6,9,6,11],[6,12,6,14],[6,15,6,17],[6,18,6,20],[6,21,6,23],[6,24,6,26],[3,41,3,44],[3,46,3,48],[3,49,3,51],[3,54,3,56],[3,57,3,60],[4,0,4,1],[4,2,4,3],[4,4,4,5],[4,6,4,12],[4,14,4,16],[3,17,3,19],[3,22,3,25],[3,26,3,29],[3,30,3,33],[3,34,3,37],[3,38,3,40],[4,38,4,40],[4,41,4,44],[4,46,4,48],[4,49,4,51],[4,54,4,56],[4,57,4,60],[4,17,4,19],[4,22,4,25],[2,38,2,40],[3,0,3,1],[3,2,3,3],[3,4,3,5],[3,6,3,12],[3,14,3,16],[2,17,2,19],[2,22,2,25],[2,26,2,29],[2,30,2,33],[80,36,80,37],[80,39,80,40],[0,38,0,40],[0,41,0,44],[0,46,0,48],[0,54,0,56],[0,57,0,60],[2,0,2,1],[2,2,2,3],[2,4,2,5],[2,6,2,12],[2,14,2,16],[0,0,0,12],[0,14,0,16],[0,17,0,23],[0,30,0,33],[0,34,0,35],[0,36,0,37],[2,41,2,44],[2,46,2,48],[2,49,2,51],[2,54,2,56],[2,57,2,60],[2,34,2,37],[6,141,6,143],[6,147,6,149],[83,18,83,19],[83,21,83,22],[83,24,83,25],[83,27,83,28],[83,30,83,31],[83,33,83,34],[83,126,83,127],[83,129,83,130],[8,141,8,143],[8,147,8,149],[80,138,80,139],[80,141,80,142],[80,147,80,148],[82,138,82,139],[82,141,82,142],[82,147,82,148],[6,60,6,62],[6,87,6,89],[6,90,6,92],[6,93,6,95],[6,96,6,98],[6,63,6,65],[88,12,88,13],[88,14,88,15],[88,16,88,17],[6,114,6,116],[6,81,6,83],[6,84,6,86],[6,132,6,134],[6,135,6,137],[6,138,6,140],[6,66,6,68],[6,69,6,71],[6,72,6,74],[6,75,6,77],[6,78,6,80],[80,42,80,43],[80,45,80,46],[80,48,80,49],[80,51,80,52],[80,54,80,55],[80,57,80,58],[80,24,80,25],[80,27,80,28],[80,30,80,31],[80,33,80,34],[83,147,83,148],[131,33,131,36],[132,33,132,36],[134,33,134,36],[131,10,131,11],[132,10,132,11],[134,10,134,11],[131,12,131,13],[132,12,132,13],[134,12,134,13],[131,14,131,15],[132,14,132,15],[134,14,134,15],[86,33,86,36],[87,10,87,11],[87,12,87,13],[87,14,87,15],[87,16,87,17],[87,20,87,21],[87,22,87,23],[83,135,83,136],[130,10,130,11],[130,12,130,13],[130,14,130,15],[6,144,6,146],[7,144,7,146],[8,144,8,146],[80,144,80,145],[82,144,82,145],[83,144,83,145],[133,10,133,11],[133,12,133,13],[133,14,133,15],[133,16,133,17],[133,20,133,21],[133,22,133,23],[133,24,133,25],[133,33,133,36],[83,138,83,139],[83,141,83,142],[130,16,130,17],[130,20,130,21],[130,22,130,23],[130,24,130,25],[130,33,130,36],[87,24,87,25],[87,33,87,36],[88,10,88,11]]}
[":::: รายงานการขายประจำวัน (Sale Daily Report)  ::::",null,null,null,null,null,null,null,null,null,null,null,null,null,"Print Date : ",null,null,{"$f":"NOW()","v":"2025-04-24T22:39:10.130"},null,null,null,null,null,null,null,null,null,null,null,null,"จำนวนร้าน :",null,null,null,{"$f":"MAX($A$10:$A$79)","v":0},null,"ร้าน",null,"เป้ายอดขาย :",null,null,null,null,null,null,null,{"$f":"C3","v":45791},null,null,{"$f":"LEFT('Problems & Solutions'!$B$2,FIND(\"|\",'Problems & Solutions'!$B$2))&\" วันที่\"&TEXT($C$3,\"[$-107041E] d mmmm yyyy;@\")","v":"ขั้นตอนการตรวจรีพอร์ตขาย | วันที่ 14 พฤษภาคม 2568"},null,null,null,null,"เวลากลับ :"]
[]
["วันที่ :",null,{"$f":"DATE(ใส่ข้อมูล!G2-543,ใส่ข้อมูล!V2,ActiveSheetName)","v":"2025-05-14"},null,"พนักงานขาย",null,{"$f":"INDEX(OFFSET(Sale_Region,,1),ActiveSheetName)","v":0},null,null,null,null,null,null,null,"รวมยอดเบิก :",null,null,{"$f":"E136","v":0},null,null,"ชิ้น",null,"ใหญ่สด(40)",null,null,null,{"$f":"Cash_Major_Bill","v":0},null,null,null,"ใหญ่เชื่อ(42)",null,null,null,{"$f":"Credit_Major_Bill","v":0},null,null,null,"บิลใหญ่ :",null,null,{"$f":"AA3+AI3","v":0},null,null,null,null,"เติมน้ำมัน :",null,null,null,null,null,"บาท",null,"ไมล์ออก :",null,null,{"$f":"เลขไมล์ออก","v":0},null,null,null,"Km"]
["เขตการขาย :",null,{"$f":"INDEX(Sale_Region,ActiveSheetName)","v":0},null,"ผช.ขาย",null,{"$f":"INDEX(OFFSET(Sale_Region,,2),ActiveSheetName)","v":0},null,null,null,null,null,null,null,"ของเหลือ :",null,null,{"$f":"F136","v":0},null,null,"ชิ้น",null,"เล็กสด(41)",null,null,null,{"$f":"Cash_Minor_Bill","v":0},null,null,null,"เล็กเชื่อ(43)",null,null,null,{"$f":"Credit_Minor_Bill","v":0},null,null,null,"บิลเล็ก :",null,null,{"$f":"AA4+AI4","v":0},null,null,null,null,"จำนวนลิตร :",null,null,null,null,null,"ลิตร",null,"ไมล์เข้า :",null,null,null,null,null,null,"Km"]
["สายส่ง :",null,{"$f":"\"Sale \"&ใส่ข้อมูล!E3&\"-\"&ใส่ข้อมูล!G3","v":"Sale KB-01"},null,"พนักงานเสริม",null,{"$f":"INDEX(OFFSET(Sale_Region,,3),ActiveSheetName)","v":0},null,null,null,null,null,null,null,"ของเสีย :",null,null,{"$f":"G136","v":0},null,null,"ชิ้น",null,"น้ำหนักของเสีย",null,null,null,null,null,null,null,"Kg.",null,"%ของเสีย",null,null,{"$f":"IF(Order_Cal=0,0,ROUND(Waste_Cal*100/Order_Cal,2))","v":0},null,"%","VAT :",null,null,{"$f":"EW81","v":0},null,null,null,null,"ต้นทุนสาขา :",null,null,{"$f":"SUMPRODUCT((($A$88:$A$135)-($A$88:$A$135)*0.45)*(($E$88:$E$135)-($G$88:$G$135)))","v":0},null,null,"บาท",null,"ระยะทาง :",null,null,{"$f":"IF(OR($BF$4=0,$BF$3=0),0,$BF$4-$BF$3)","v":0},null,null,null,"Km"]
[]
["No","รหัสร้าน (CustNo)","ชื่อร้าน (Store Name)","เวลาเข้าร้าน","ระยะเวลาระหว่างร้าน","บิล(Invoice)",{"$f":"INDEX(INDIRECT(\"dProduct[ProductName]\"),ROUNDUP(COLUMNS($G:G)/3,0))","v":"ขนมปังหมูหยองน้ำสลัด"},null,null,{"$f":"INDEX(INDIRECT(\"dProduct[ProductName]\"),ROUNDUP(COLUMNS($G:J)/3,0))","v":"ขนมปังหมูหยองน้ำพริกเผา"},null,null,{"$f":"INDEX(INDIRECT(\"dProduct[ProductName]\"),ROUNDUP(COLUMNS($G:M)/3,0))","v":"ขนมปังไก่หยองน้ำสลัด"},null,null,{"$f":"INDEX(INDIRECT(\"dProduct[ProductName]\"),ROUNDUP(COLUMNS($G:P)/3,0))","v":"ขนมปังไส้ครีมสลัด"},null,null,{"$f":"INDEX(INDIRECT(\"dProduct[ProductName]\"),ROUNDUP(COLUMNS($G:S)/3,0))","v":"ขนมปังเนยสด"},null,null,{"$f":"INDEX(INDIRECT(\"dProduct[ProductName]\"),ROUNDUP(COLUMNS($G:V)/3,0))","v":"ขนมปังไส้สังขยาเล็ก"},null,null,{"$f":"INDEX(INDIRECT(\"dProduct[ProductName]\"),ROUNDUP(COLUMNS($G:Y)/3,0))","v":"ขนมปังไส้เผือก"},null,null,{"$f":"INDEX(INDIRECT(\"dProduct[ProductName]\"),ROUNDUP(COLUMNS($G:AB)/3,0))","v":"ขนมปังไส้ถั่วแดง"},null,null,{"$f":"INDEX(INDIRECT(\"dProduct[ProductName]\"),ROUNDUP(COLUMNS($G:AE)/3,0))","v":"ขนมปังไส้ถั่วดำ"},null,null,{"$f":"INDEX(INDIRECT(\"dProduct[ProductName]\"),ROUNDUP(COLUMNS($G:AH)/3,0))","v":"ขนมปังไส้มันม่วง"},null,null,{"$f":"INDEX(INDIRECT(\"dProduct[ProductName]\"),ROUNDUP(COLUMNS($G:AK)/3,0))","v":"เค้กกล้วยหอม"},null,null,{"$f":"INDEX(INDIRECT(\"dProduct[ProductName]\"),ROUNDUP(COLUMNS($G:AN)/3,0))","v":"เค้กบัตเตอร์"},null,null,{"$f":"INDEX(INDIRECT(\"dProduct[ProductName]\"),ROUNDUP(COLUMNS($G:AQ)/3,0))","v":"ขนมปังโรลถั่วแดง"},null,null,{"$f":"INDEX(INDIRECT(\"dProduct[ProductName]\"),ROUNDUP(COLUMNS($G:AT)/3,0))","v":"ขนมปังไส้สังขยาใหญ่"},null,null,{"$f":"INDEX(INDIRECT(\"dProduct[ProductName]\"),ROUNDUP(COLUMNS($G:AW)/3,0))","v":"ขนมปังชนิดแผ่น(480กรัม)"},null,null,{"$f":"INDEX(INDIRECT(\"dProduct[ProductName]\"),ROUNDUP(COLUMNS($G:AZ)/3,0))","v":"โมจิไส้ถั่ว"},null,null,{"$f":"INDEX(INDIRECT(\"dProduct[ProductName]\"),ROUNDUP(COLUMNS($G:BC)/3,0))","v":"โมจิไส้เผือก"},null,null,{"$f":"INDEX(INDIRECT(\"dProduct[ProductName]\"),ROUNDUP(COLUMNS($G:BF)/3,0))","v":"โมจิไส้ถั่วไข่เค็ม"},null,null,{"$f":"INDEX(INDIRECT(\"dProduct[ProductName]\"),ROUNDUP(COLUMNS($G:BI)/3,0))","v":"ขนมปังพิซซ่า"},null,null,{"$f":"INDEX(INDIRECT(\"dProduct[ProductName]\"),ROUNDUP(COLUMNS($G:BL)/3,0))","v":"ขนมปังพิซซ่าปูอัดแฮม"},null,null,{"$f":"INDEX(INDIRECT(\"dProduct[ProductName]\"),ROUNDUP(COLUMNS($G:BO)/3,0))","v":"ขนมปังไส้กรอก"},null,null,{"$f":"INDEX(INDIRECT(\"dProduct[ProductName]\"),ROUNDUP(COLUMNS($G:BR)/3,0))","v":"ขนมก้านบัว"},null,null,{"$f":"INDEX(INDIRECT(\"dProduct[ProductName]\"),ROUNDUP(COLUMNS($G:BU)/3,0))","v":"พายสับปะรด"},null,null,{"$f":"INDEX(INDIRECT(\"dProduct[ProductName]\"),ROUNDUP(COLUMNS($G:BX)/3,0))","v":"พายไส้มะพร้าว"},null,null,{"$f":"INDEX(INDIRECT(\"dProduct[ProductName]\"),ROUNDUP(COLUMNS($G:CA)/3,0))","v":"ขนมปังโรลมันเทศ"},null,null,{"$f":"INDEX(INDIRECT(\"dProduct[ProductName]\"),ROUNDUP(COLUMNS($G:CD)/3,0))","v":"ขนมปังไส้ครีมสลัดน้ำพริกเผา"},null,null,{"$f":"INDEX(INDIRECT(\"dProduct[ProductName]\"),ROUNDUP(COLUMNS($G:CG)/3,0))","v":"ขนมปังไส้สังขยาไข่"},null,null,{"$f":"INDEX(INDIRECT(\"dProduct[ProductName]\"),ROUNDUP(COLUMNS($G:CJ)/3,0))","v":"ขนมปังไส้สังขยามะพร้าว"},null,null,{"$f":"INDEX(INDIRECT(\"dProduct[ProductName]\"),ROUNDUP(COLUMNS($G:CM)/3,0))","v":"ขนมปังไส้ครีมชาไทย"},null,null,{"$f":"INDEX(INDIRECT(\"dProduct[ProductName]\"),ROUNDUP(COLUMNS($G:CP)/3,0))","v":"ขนมปังโรลมันม่วง"},null,null,{"$f":"INDEX(INDIRECT(\"dProduct[ProductName]\"),ROUNDUP(COLUMNS($G:CS)/3,0))","v":"ขนมปังโรลช็อกโกแลต"},null,null,{"$f":"INDEX(INDIRECT(\"dProduct[ProductName]\"),ROUNDUP(COLUMNS($G:CV)/3,0))","v":"ขนมปังชนิดแผ่น(155กรัม)"},null,null,{"$f":"INDEX(INDIRECT(\"dProduct[ProductName]\"),ROUNDUP(COLUMNS($G:CY)/3,0))","v":"ขนมปังโรลเผือก"},null,null,{"$f":"INDEX(INDIRECT(\"dProduct[ProductName]\"),ROUNDUP(COLUMNS($G:DB)/3,0))","v":"ขนมปังไก่หยองน้ำสลัด Mini"},null,null,{"$f":"INDEX(INDIRECT(\"dProduct[ProductName]\"),ROUNDUP(COLUMNS($G:DE)/3,0))","v":"ขนมปังไส้ช็อกโกแลต"},null,null,{"$f":"INDEX(INDIRECT(\"dProduct[ProductName]\"),ROUNDUP(COLUMNS($G:DH)/3,0))","v":"ขนมปังไส้ครีมสังขยาไข่"},null,null,{"$f":"INDEX(INDIRECT(\"dProduct[ProductName]\"),ROUNDUP(COLUMNS($G:DK)/3,0))","v":"ขนมปังพิซซ่าฮาวายเอี้ยน"},null,null,{"$f":"INDEX(INDIRECT(\"dProduct[ProductName]\"),ROUNDUP(COLUMNS($G:DN)/3,0))","v":"ครัวซองต์หมูหยองน้ำสลัด"},null,null,{"$f":"INDEX(INDIRECT(\"dProduct[ProductName]\"),ROUNDUP(COLUMNS($G:DQ)/3,0))","v":"แพนเบรดไส้เผือก"},null,null,{"$f":"INDEX(INDIRECT(\"dProduct[ProductName]\"),ROUNDUP(COLUMNS($G:DT)/3,0))","v":"แพนเบรดไส้ถั่วแดง"},null,null,{"$f":"INDEX(INDIRECT(\"dProduct[ProductName]\"),ROUNDUP(COLUMNS($G:DW)/3,0))","v":"ขนมปังกรอบเนยน้ำตาล(30กรัม)"},null,null,{"$f":"INDEX(INDIRECT(\"dProduct[ProductName]\"),ROUNDUP(COLUMNS($G:DZ)/3,0))","v":"ขนมปังชนิดแผ่นโฮลวีต"},null,null,{"$f":"INDEX(INDIRECT(\"dProduct[ProductName]\"),ROUNDUP(COLUMNS($G:EC)/3,0))","v":"เค้กโรลใบเตย"},null,null,{"$f":"INDEX(INDIRECT(\"dProduct[ProductName]\"),ROUNDUP(COLUMNS($G:EF)/3,0))","v":"ขนมโมจิไส้ถั่วดำ"},null,null,{"$f":"INDEX(INDIRECT(\"dProduct[ProductName]\"),ROUNDUP(COLUMNS($G:EI)/3,0))","v":"ครัวซองต์ไส้กรอกชีส"},null,null,{"$f":"INDEX(INDIRECT(\"dProduct[ProductName]\"),ROUNDUP(COLUMNS($G:EL)/3,0))","v":"ขนมเปี๊ยะไส้ถั่ว"},null,null,{"$f":"INDEX(INDIRECT(\"dProduct[ProductName]\"),ROUNDUP(COLUMNS($G:EO)/3,0))","v":"ขนมเปี๊ยะไส้ฟัก"},null,null,{"$f":"INDEX(INDIRECT(\"dProduct[ProductName]\"),ROUNDUP(COLUMNS($G:ER)/3,0))","v":"มังกี้เค้ก"},null,null,"มูลค่าสินค้า",null,"ภาษี","รวมยอดขาย"]
[null,null,null,null,null,"ราคาขาย",{"$f":"IF(G$7=0,0,INDEX(Price_List,ROUNDUP(COLUMNS($G:G)/3,0)))","v":20},null,null,{"$f":"IF(J$7=0,0,INDEX(Price_List,ROUNDUP(COLUMNS($G:J)/3,0)))","v":20},null,null,{"$f":"IF(M$7=0,0,INDEX(Price_List,ROUNDUP(COLUMNS($G:M)/3,0)))","v":20},null,null,{"$f":"IF(P$7=0,0,INDEX(Price_List,ROUNDUP(COLUMNS($G:P)/3,0)))","v":15},null,null,{"$f":"IF(S$7=0,0,INDEX(Price_List,ROUNDUP(COLUMNS($G:S)/3,0)))","v":15},null,null,{"$f":"IF(V$7=0,0,INDEX(Price_List,ROUNDUP(COLUMNS($G:V)/3,0)))","v":10},null,null,{"$f":"IF(Y$7=0,0,INDEX(Price_List,ROUNDUP(COLUMNS($G:Y)/3,0)))","v":10},null,null,{"$f":"IF(AB$7=0,0,INDEX(Price_List,ROUNDUP(COLUMNS($G:AB)/3,0)))","v":10},null,null,{"$f":"IF(AE$7=0,0,INDEX(Price_List,ROUNDUP(COLUMNS($G:AE)/3,0)))","v":10},null,null,{"$f":"IF(AH$7=0,0,INDEX(Price_List,ROUNDUP(COLUMNS($G:AH)/3,0)))","v":10},null,null,{"$f":"IF(AK$7=0,0,INDEX(Price_List,ROUNDUP(COLUMNS($G:AK)/3,0)))","v":15},null,null,{"$f":"IF(AN$7=0,0,INDEX(Price_List,ROUNDUP(COLUMNS($G:AN)/3,0)))","v":15},null,null,{"$f":"IF(AQ$7=0,0,INDEX(Price_List,ROUNDUP(COLUMNS($G:AQ)/3,0)))","v":15},null,null,{"$f":"IF(AT$7=0,0,INDEX(Price_List,ROUNDUP(COLUMNS($G:AT)/3,0)))","v":15},null,null,{"$f":"IF(AW$7=0,0,INDEX(Price_List,ROUNDUP(COLUMNS($G:AW)/3,0)))","v":42},null,null,{"$f":"IF(AZ$7=0,0,INDEX(Price_List,ROUNDUP(COLUMNS($G:AZ)/3,0)))","v":12},null,null,{"$f":"IF(BC$7=0,0,INDEX(Price_List,ROUNDUP(COLUMNS($G:BC)/3,0)))","v":12},null,null,{"$f":"IF(BF$7=0,0,INDEX(Price_List,ROUNDUP(COLUMNS($G:BF)/3,0)))","v":15},null,null,{"$f":"IF(BI$7=0,0,INDEX(Price_List,ROUNDUP(COLUMNS($G:BI)/3,0)))","v":20},null,null,{"$f":"IF(BL$7=0,0,INDEX(Price_List,ROUNDUP(COLUMNS($G:BL)/3,0)))","v":20},null,null,{"$f":"IF(BO$7=0,0,INDEX(Price_List,ROUNDUP(COLUMNS($G:BO)/3,0)))","v":20},null,null,{"$f":"IF(BR$7=0,0,INDEX(Price_List,ROUNDUP(COLUMNS($G:BR)/3,0)))","v":15},null,null,{"$f":"IF(BU$7=0,0,INDEX(Price_List,ROUNDUP(COLUMNS($G:BU)/3,0)))","v":20},null,null,{"$f":"IF(BX$7=0,0,INDEX(Price_List,ROUNDUP(COLUMNS($G:BX)/3,0)))","v":20},null,null,{"$f":"IF(CA$7=0,0,INDEX(Price_List,ROUNDUP(COLUMNS($G:CA)/3,0)))","v":15},null,null,{"$f":"IF(CD$7=0,0,INDEX(Price_List,ROUNDUP(COLUMNS($G:CD)/3,0)))","v":15},null,null,{"$f":"IF(CG$7=0,0,INDEX(Price_List,ROUNDUP(COLUMNS($G:CG)/3,0)))","v":20},null,null,{"$f":"IF(CJ$7=0,0,INDEX(Price_List,ROUNDUP(COLUMNS($G:CJ)/3,0)))","v":20},null,null,{"$f":"IF(CM$7=0,0,INDEX(Price_List,ROUNDUP(COLUMNS($G:CM)/3,0)))","v":10},null,null,{"$f":"IF(CP$7=0,0,INDEX(Price_List,ROUNDUP(COLUMNS($G:CP)/3,0)))","v":15},null,null,{"$f":"IF(CS$7=0,0,INDEX(Price_List,ROUNDUP(COLUMNS($G:CS)/3,0)))","v":15},null,null,{"$f":"IF(CV$7=0,0,INDEX(Price_List,ROUNDUP(COLUMNS($G:CV)/3,0)))","v":16},null,null,{"$f":"IF(CY$7=0,0,INDEX(Price_List,ROUNDUP(COLUMNS($G:CY)/3,0)))","v":15},null,null,{"$f":"IF(DB$7=0,0,INDEX(Price_List,ROUNDUP(COLUMNS($G:DB)/3,0)))","v":15},null,null,{"$f":"IF(DE$7=0,0,INDEX(Price_List,ROUNDUP(COLUMNS($G:DE)/3,0)))","v":10},null,null,{"$f":"IF(DH$7=0,0,INDEX(Price_List,ROUNDUP(COLUMNS($G:DH)/3,0)))","v":10},null,null,{"$f":"IF(DK$7=0,0,INDEX(Price_List,ROUNDUP(COLUMNS($G:DK)/3,0)))","v":20},null,null,{"$f":"IF(DN$7=0,0,INDEX(Price_List,ROUNDUP(COLUMNS($G:DN)/3,0)))","v":20},null,null,{"$f":"IF(DQ$7=0,0,INDEX(Price_List,ROUNDUP(COLUMNS($G:DQ)/3,0)))","v":15},null,null,{"$f":"IF(DT$7=0,0,INDEX(Price_List,ROUNDUP(COLUMNS($G:DT)/3,0)))","v":15},null,null,{"$f":"IF(DW$7=0,0,INDEX(Price_List,ROUNDUP(COLUMNS($G:DW)/3,0)))","v":12},null,null,{"$f":"IF(DZ$7=0,0,INDEX(Price_List,ROUNDUP(COLUMNS($G:DZ)/3,0)))","v":18},null,null,{"$f":"IF(EC$7=0,0,INDEX(Price_List,ROUNDUP(COLUMNS($G:EC)/3,0)))","v":12},null,null,{"$f":"IF(EF$7=0,0,INDEX(Price_List,ROUNDUP(COLUMNS($G:EF)/3,0)))","v":12},null,null,{"$f":"IF(EI$7=0,0,INDEX(Price_List,ROUNDUP(COLUMNS($G:EI)/3,0)))","v":25},null,null,{"$f":"IF(EL$7=0,0,INDEX(Price_List,ROUNDUP(COLUMNS($G:EL)/3,0)))","v":12},null,null,{"$f":"IF(EO$7=0,0,INDEX(Price_List,ROUNDUP(COLUMNS($G:EO)/3,0)))","v":12},null,null,{"$f":"IF(ER$7=0,0,INDEX(Price_List,ROUNDUP(COLUMNS($G:ER)/3,0)))","v":12},null,null,"เงินเชื่อ","เงินสด"]
[null,null,null,null,null,"คงเหลือ(ตามบัญชี)",{"$f":"IF(G$7=0,0,INDEX(INDIRECT(Order_Rng),ROUNDUP(COLUMNS($G:G)/3,0)))","v":0},null,null,{"$f":"IF(J$7=0,0,INDEX(INDIRECT(Order_Rng),ROUNDUP(COLUMNS($G:J)/3,0)))","v":0},null,null,{"$f":"IF(M$7=0,0,INDEX(INDIRECT(Order_Rng),ROUNDUP(COLUMNS($G:M)/3,0)))","v":0},null,null,{"$f":"IF(P$7=0,0,INDEX(INDIRECT(Order_Rng),ROUNDUP(COLUMNS($G:P)/3,0)))","v":0},null,null,{"$f":"IF(S$7=0,0,INDEX(INDIRECT(Order_Rng),ROUNDUP(COLUMNS($G:S)/3,0)))","v":0},null,null,{"$f":"IF(V$7=0,0,INDEX(INDIRECT(Order_Rng),ROUNDUP(COLUMNS($G:V)/3,0)))","v":0},null,null,{"$f":"IF(Y$7=0,0,INDEX(INDIRECT(Order_Rng),ROUNDUP(COLUMNS($G:Y)/3,0)))","v":0},null,null,{"$f":"IF(AB$7=0,0,INDEX(INDIRECT(Order_Rng),ROUNDUP(COLUMNS($G:AB)/3,0)))","v":0},null,null,{"$f":"IF(AE$7=0,0,INDEX(INDIRECT(Order_Rng),ROUNDUP(COLUMNS($G:AE)/3,0)))","v":0},null,null,{"$f":"IF(AH$7=0,0,INDEX(INDIRECT(Order_Rng),ROUNDUP(COLUMNS($G:AH)/3,0)))","v":0},null,null,{"$f":"IF(AK$7=0,0,INDEX(INDIRECT(Order_Rng),ROUNDUP(COLUMNS($G:AK)/3,0)))","v":0},null,null,{"$f":"IF(AN$7=0,0,INDEX(INDIRECT(Order_Rng),ROUNDUP(COLUMNS($G:AN)/3,0)))","v":0},null,null,{"$f":"IF(AQ$7=0,0,INDEX(INDIRECT(Order_Rng),ROUNDUP(COLUMNS($G:AQ)/3,0)))","v":0},null,null,{"$f":"IF(AT$7=0,0,INDEX(INDIRECT(Order_Rng),ROUNDUP(COLUMNS($G:AT)/3,0)))","v":0},null,null,{"$f":"IF(AW$7=0,0,INDEX(INDIRECT(Order_Rng),ROUNDUP(COLUMNS($G:AW)/3,0)))","v":0},null,null,{"$f":"IF(AZ$7=0,0,INDEX(INDIRECT(Order_Rng),ROUNDUP(COLUMNS($G:AZ)/3,0)))","v":0},null,null,{"$f":"IF(BC$7=0,0,INDEX(INDIRECT(Order_Rng),ROUNDUP(COLUMNS($G:BC)/3,0)))","v":0},null,null,{"$f":"IF(BF$7=0,0,INDEX(INDIRECT(Order_Rng),ROUNDUP(COLUMNS($G:BF)/3,0)))","v":0},null,null,{"$f":"IF(BI$7=0,0,INDEX(INDIRECT(Order_Rng),ROUNDUP(COLUMNS($G:BI)/3,0)))","v":0},null,null,{"$f":"IF(BL$7=0,0,INDEX(INDIRECT(Order_Rng),ROUNDUP(COLUMNS($G:BL)/3,0)))","v":0},null,null,{"$f":"IF(BO$7=0,0,INDEX(INDIRECT(Order_Rng),ROUNDUP(COLUMNS($G:BO)/3,0)))","v":0},null,null,{"$f":"IF(BR$7=0,0,INDEX(INDIRECT(Order_Rng),ROUNDUP(COLUMNS($G:BR)/3,0)))","v":0},null,null,{"$f":"IF(BU$7=0,0,INDEX(INDIRECT(Order_Rng),ROUNDUP(COLUMNS($G:BU)/3,0)))","v":0},null,null,{"$f":"IF(BX$7=0,0,INDEX(INDIRECT(Order_Rng),ROUNDUP(COLUMNS($G:BX)/3,0)))","v":0},null,null,{"$f":"IF(CA$7=0,0,INDEX(INDIRECT(Order_Rng),ROUNDUP(COLUMNS($G:CA)/3,0)))","v":0},null,null,{"$f":"IF(CD$7=0,0,INDEX(INDIRECT(Order_Rng),ROUNDUP(COLUMNS($G:CD)/3,0)))","v":0},null,null,{"$f":"IF(CG$7=0,0,INDEX(INDIRECT(Order_Rng),ROUNDUP(COLUMNS($G:CG)/3,0)))","v":0},null,null,{"$f":"IF(CJ$7=0,0,INDEX(INDIRECT(Order_Rng),ROUNDUP(COLUMNS($G:CJ)/3,0)))","v":0},null,null,{"$f":"IF(CM$7=0,0,INDEX(INDIRECT(Order_Rng),ROUNDUP(COLUMNS($G:CM)/3,0)))","v":0},null,null,{"$f":"IF(CP$7=0,0,INDEX(INDIRECT(Order_Rng),ROUNDUP(COLUMNS($G:CP)/3,0)))","v":0},null,null,{"$f":"IF(CS$7=0,0,INDEX(INDIRECT(Order_Rng),ROUNDUP(COLUMNS($G:CS)/3,0)))","v":0},null,null,{"$f":"IF(CV$7=0,0,INDEX(INDIRECT(Order_Rng),ROUNDUP(COLUMNS($G:CV)/3,0)))","v":0},null,null,{"$f":"IF(CY$7=0,0,INDEX(INDIRECT(Order_Rng),ROUNDUP(COLUMNS($G:CY)/3,0)))","v":0},null,null,{"$f":"IF(DB$7=0,0,INDEX(INDIRECT(Order_Rng),ROUNDUP(COLUMNS($G:DB)/3,0)))","v":0},null,null,{"$f":"IF(DE$7=0,0,INDEX(INDIRECT(Order_Rng),ROUNDUP(COLUMNS($G:DE)/3,0)))","v":0},null,null,{"$f":"IF(DH$7=0,0,INDEX(INDIRECT(Order_Rng),ROUNDUP(COLUMNS($G:DH)/3,0)))","v":0},null,null,{"$f":"IF(DK$7=0,0,INDEX(INDIRECT(Order_Rng),ROUNDUP(COLUMNS($G:DK)/3,0)))","v":0},null,null,{"$f":"IF(DN$7=0,0,INDEX(INDIRECT(Order_Rng),ROUNDUP(COLUMNS($G:DN)/3,0)))","v":0},null,null,{"$f":"IF(DQ$7=0,0,INDEX(INDIRECT(Order_Rng),ROUNDUP(COLUMNS($G:DQ)/3,0)))","v":0},null,null,{"$f":"IF(DT$7=0,0,INDEX(INDIRECT(Order_Rng),ROUNDUP(COLUMNS($G:DT)/3,0)))","v":0},null,null,{"$f":"IF(DW$7=0,0,INDEX(INDIRECT(Order_Rng),ROUNDUP(COLUMNS($G:DW)/3,0)))","v":0},null,null,{"$f":"IF(DZ$7=0,0,INDEX(INDIRECT(Order_Rng),ROUNDUP(COLUMNS($G:DZ)/3,0)))","v":0},null,null,{"$f":"IF(EC$7=0,0,INDEX(INDIRECT(Order_Rng),ROUNDUP(COLUMNS($G:EC)/3,0)))","v":0},null,null,{"$f":"IF(EF$7=0,0,INDEX(INDIRECT(Order_Rng),ROUNDUP(COLUMNS($G:EF)/3,0)))","v":0},null,null,{"$f":"IF(EI$7=0,0,INDEX(INDIRECT(Order_Rng),ROUNDUP(COLUMNS($G:EI)/3,0)))","v":0},null,null,{"$f":"IF(EL$7=0,0,INDEX(INDIRECT(Order_Rng),ROUNDUP(COLUMNS($G:EL)/3,0)))","v":0},null,null,{"$f":"IF(EO$7=0,0,INDEX(INDIRECT(Order_Rng),ROUNDUP(COLUMNS($G:EO)/3,0)))","v":0},null,null,{"$f":"IF(ER$7=0,0,INDEX(INDIRECT(Order_Rng),ROUNDUP(COLUMNS($G:ER)/3,0)))","v":0}]
[{"$f":"IF(OR($B10=\"\",COUNTIF($B$10:$B10,$B10)>1,LEN(TRIM($B10))<>10,ISNUMBER(--MID(TRIM($B10),5,1))),\"-\",MAX(COUNT($A$9:$A9)+1))","v":"-"}]
[{"$f":"IF(OR($B11=\"\",COUNTIF($B$10:$B11,$B11)>1,LEN(TRIM($B11))<>10,ISNUMBER(--MID(TRIM($B11),5,1))),\"-\",MAX(COUNT($A$9:$A10)+1))","v":"-"},null,null,null,{"$f":"IF(D11=\"\",\"\",D11-D10)","v":""}]
[{"$f":"IF(OR($B12=\"\",COUNTIF($B$10:$B12,$B12)>1,LEN(TRIM($B12))<>10,ISNUMBER(--MID(TRIM($B12),5,1))),\"-\",MAX(COUNT($A$9:$A11)+1))","v":"-"},null,null,null,{"$f":"IF(D12=\"\",\"\",D12-D11)","v":""}]
[{"$f":"IF(OR($B13=\"\",COUNTIF($B$10:$B13,$B13)>1,LEN(TRIM($B13))<>10,ISNUMBER(--MID(TRIM($B13),5,1))),\"-\",MAX(COUNT($A$9:$A12)+1))","v":"-"},null,null,null,""]
[{"$f":"IF(OR($B14=\"\",COUNTIF($B$10:$B14,$B14)>1,LEN(TRIM($B14))<>10,ISNUMBER(--MID(TRIM($B14),5,1))),\"-\",MAX(COUNT($A$9:$A13)+1))","v":"-"},null,null,null,""]
[{"$f":"IF(OR($B15=\"\",COUNTIF($B$10:$B15,$B15)>1,LEN(TRIM($B15))<>10,ISNUMBER(--MID(TRIM($B15),5,1))),\"-\",MAX(COUNT($A$9:$A14)+1))","v":"-"},null,null,null,""]
[{"$f":"IF(OR($B16=\"\",COUNTIF($B$10:$B16,$B16)>1,LEN(TRIM($B16))<>10,ISNUMBER(--MID(TRIM($B16),5,1))),\"-\",MAX(COUNT($A$9:$A15)+1))","v":"-"},null,null,null,""]
[{"$f":"IF(OR($B17=\"\",COUNTIF($B$10:$B17,$B17)>1,LEN(TRIM($B17))<>10,ISNUMBER(--MID(TRIM($B17),5,1))),\"-\",MAX(COUNT($A$9:$A16)+1))","v":"-"},null,null,null,""]
[{"$f":"IF(OR($B18=\"\",COUNTIF($B$10:$B18,$B18)>1,LEN(TRIM($B18))<>10,ISNUMBER(--MID(TRIM($B18),5,1))),\"-\",MAX(COUNT($A$9:$A17)+1))","v":"-"},null,null,null,""]
[{"$f":"IF(OR($B19=\"\",COUNTIF($B$10:$B19,$B19)>1,LEN(TRIM($B19))<>10,ISNUMBER(--MID(TRIM($B19),5,1))),\"-\",MAX(COUNT($A$9:$A18)+1))","v":"-"},null,null,null,""]
[{"$f":"IF(OR($B20=\"\",COUNTIF($B$10:$B20,$B20)>1,LEN(TRIM($B20))<>10,ISNUMBER(--MID(TRIM($B20),5,1))),\"-\",MAX(COUNT($A$9:$A19)+1))","v":"-"},null,null,null,""]
[{"$f":"IF(OR($B21=\"\",COUNTIF($B$10:$B21,$B21)>1,LEN(TRIM($B21))<>10,ISNUMBER(--MID(TRIM($B21),5,1))),\"-\",MAX(COUNT($A$9:$A20)+1))","v":"-"},null,null,null,""]
[{"$f":"IF(OR($B22=\"\",COUNTIF($B$10:$B22,$B22)>1,LEN(TRIM($B22))<>10,ISNUMBER(--MID(TRIM($B22),5,1))),\"-\",MAX(COUNT($A$9:$A21)+1))","v":"-"},null,null,null,""]
[{"$f":"IF(OR($B23=\"\",COUNTIF($B$10:$B23,$B23)>1,LEN(TRIM($B23))<>10,ISNUMBER(--MID(TRIM($B23),5,1))),\"-\",MAX(COUNT($A$9:$A22)+1))","v":"-"},null,null,null,""]
[{"$f":"IF(OR($B24=\"\",COUNTIF($B$10:$B24,$B24)>1,LEN(TRIM($B24))<>10,ISNUMBER(--MID(TRIM($B24),5,1))),\"-\",MAX(COUNT($A$9:$A23)+1))","v":"-"},null,null,null,""]
[{"$f":"IF(OR($B25=\"\",COUNTIF($B$10:$B25,$B25)>1,LEN(TRIM($B25))<>10,ISNUMBER(--MID(TRIM($B25),5,1))),\"-\",MAX(COUNT($A$9:$A24)+1))","v":"-"},null,null,null,""]
[{"$f":"IF(OR($B26=\"\",COUNTIF($B$10:$B26,$B26)>1,LEN(TRIM($B26))<>10,ISNUMBER(--MID(TRIM($B26),5,1))),\"-\",MAX(COUNT($A$9:$A25)+1))","v":"-"},null,null,null,""]
[{"$f":"IF(OR($B27=\"\",COUNTIF($B$10:$B27,$B27)>1,LEN(TRIM($B27))<>10,ISNUMBER(--MID(TRIM($B27),5,1))),\"-\",MAX(COUNT($A$9:$A26)+1))","v":"-"},null,null,null,""]
[{"$f":"IF(OR($B28=\"\",COUNTIF($B$10:$B28,$B28)>1,LEN(TRIM($B28))<>10,ISNUMBER(--MID(TRIM($B28),5,1))),\"-\",MAX(COUNT($A$9:$A27)+1))","v":"-"},null,null,null,""]
[{"$f":"IF(OR($B29=\"\",COUNTIF($B$10:$B29,$B29)>1,LEN(TRIM($B29))<>10,ISNUMBER(--MID(TRIM($B29),5,1))),\"-\",MAX(COUNT($A$9:$A28)+1))","v":"-"},null,null,null,""]
[{"$f":"IF(OR($B30=\"\",COUNTIF($B$10:$B30,$B30)>1,LEN(TRIM($B30))<>10,ISNUMBER(--MID(TRIM($B30),5,1))),\"-\",MAX(COUNT($A$9:$A29)+1))","v":"-"},null,null,null,""]
[{"$f":"IF(OR($B31=\"\",COUNTIF($B$10:$B31,$B31)>1,LEN(TRIM($B31))<>10,ISNUMBER(--MID(TRIM($B31),5,1))),\"-\",MAX(COUNT($A$9:$A30)+1))","v":"-"},null,null,null,""]
[{"$f":"IF(OR($B32=\"\",COUNTIF($B$10:$B32,$B32)>1,LEN(TRIM($B32))<>10,ISNUMBER(--MID(TRIM($B32),5,1))),\"-\",MAX(COUNT($A$9:$A31)+1))","v":"-"},null,null,null,""]
[{"$f":"IF(OR($B33=\"\",COUNTIF($B$10:$B33,$B33)>1,LEN(TRIM($B33))<>10,ISNUMBER(--MID(TRIM($B33),5,1))),\"-\",MAX(COUNT($A$9:$A32)+1))","v":"-"},null,null,null,""]
[{"$f":"IF(OR($B34=\"\",COUNTIF($B$10:$B34,$B34)>1,LEN(TRIM($B34))<>10,ISNUMBER(--MID(TRIM($B34),5,1))),\"-\",MAX(COUNT($A$9:$A33)+1))","v":"-"},null,null,null,""]
[{"$f":"IF(OR($B35=\"\",COUNTIF($B$10:$B35,$B35)>1,LEN(TRIM($B35))<>10,ISNUMBER(--MID(TRIM($B35),5,1))),\"-\",MAX(COUNT($A$9:$A34)+1))","v":"-"},null,null,null,""]
[{"$f":"IF(OR($B36=\"\",COUNTIF($B$10:$B36,$B36)>1,LEN(TRIM($B36))<>10,ISNUMBER(--MID(TRIM($B36),5,1))),\"-\",MAX(COUNT($A$9:$A35)+1))","v":"-"},null,null,null,""]
[{"$f":"IF(OR($B37=\"\",COUNTIF($B$10:$B37,$B37)>1,LEN(TRIM($B37))<>10,ISNUMBER(--MID(TRIM($B37),5,1))),\"-\",MAX(COUNT($A$9:$A36)+1))","v":"-"},null,null,null,""]
[{"$f":"IF(OR($B38=\"\",COUNTIF($B$10:$B38,$B38)>1,LEN(TRIM($B38))<>10,ISNUMBER(--MID(TRIM($B38),5,1))),\"-\",MAX(COUNT($A$9:$A37)+1))","v":"-"},null,null,null,""]
[{"$f":"IF(OR($B39=\"\",COUNTIF($B$10:$B39,$B39)>1,LEN(TRIM($B39))<>10,ISNUMBER(--MID(TRIM($B39),5,1))),\"-\",MAX(COUNT($A$9:$A38)+1))","v":"-"},null,null,null,""]
[{"$f":"IF(OR($B40=\"\",COUNTIF($B$10:$B40,$B40)>1,LEN(TRIM($B40))<>10,ISNUMBER(--MID(TRIM($B40),5,1))),\"-\",MAX(COUNT($A$9:$A39)+1))","v":"-"},null,null,null,""]
[{"$f":"IF(OR($B41=\"\",COUNTIF($B$10:$B41,$B41)>1,LEN(TRIM($B41))<>10,ISNUMBER(--MID(TRIM($B41),5,1))),\"-\",MAX(COUNT($A$9:$A40)+1))","v":"-"},null,null,null,""]
[{"$f":"IF(OR($B42=\"\",COUNTIF($B$10:$B42,$B42)>1,LEN(TRIM($B42))<>10,ISNUMBER(--MID(TRIM($B42),5,1))),\"-\",MAX(COUNT($A$9:$A41)+1))","v":"-"},null,null,null,""]
[{"$f":"IF(OR($B43=\"\",COUNTIF($B$10:$B43,$B43)>1,LEN(TRIM($B43))<>10,ISNUMBER(--MID(TRIM($B43),5,1))),\"-\",MAX(COUNT($A$9:$A42)+1))","v":"-"},null,null,null,""]
[{"$f":"IF(OR($B44=\"\",COUNTIF($B$10:$B44,$B44)>1,LEN(TRIM($B44))<>10,ISNUMBER(--MID(TRIM($B44),5,1))),\"-\",MAX(COUNT($A$9:$A43)+1))","v":"-"},null,null,null,""]
[{"$f":"IF(OR($B45=\"\",COUNTIF($B$10:$B45,$B45)>1,LEN(TRIM($B45))<>10,ISNUMBER(--MID(TRIM($B45),5,1))),\"-\",MAX(COUNT($A$9:$A44)+1))","v":"-"},null,null,null,""]
[{"$f":"IF(OR($B46=\"\",COUNTIF($B$10:$B46,$B46)>1,LEN(TRIM($B46))<>10,ISNUMBER(--MID(TRIM($B46),5,1))),\"-\",MAX(COUNT($A$9:$A45)+1))","v":"-"},null,null,null,""]
[{"$f":"IF(OR($B47=\"\",COUNTIF($B$10:$B47,$B47)>1,LEN(TRIM($B47))<>10,ISNUMBER(--MID(TRIM($B47),5,1))),\"-\",MAX(COUNT($A$9:$A46)+1))","v":"-"},null,null,null,""]
[{"$f":"IF(OR($B48=\"\",COUNTIF($B$10:$B48,$B48)>1,LEN(TRIM($B48))<>10,ISNUMBER(--MID(TRIM($B48),5,1))),\"-\",MAX(COUNT($A$9:$A47)+1))","v":"-"},null,null,null,""]
[{"$f":"IF(OR($B49=\"\",COUNTIF($B$10:$B49,$B49)>1,LEN(TRIM($B49))<>10,ISNUMBER(--MID(TRIM($B49),5,1))),\"-\",MAX(COUNT($A$9:$A48)+1))","v":"-"},null,null,null,""]
[{"$f":"IF(OR($B50=\"\",COUNTIF($B$10:$B50,$B50)>1,LEN(TRIM($B50))<>10,ISNUMBER(--MID(TRIM($B50),5,1))),\"-\",MAX(COUNT($A$9:$A49)+1))","v":"-"},null,null,null,""]
[{"$f":"IF(OR($B51=\"\",COUNTIF($B$10:$B51,$B51)>1,LEN(TRIM($B51))<>10,ISNUMBER(--MID(TRIM($B51),5,1))),\"-\",MAX(COUNT($A$9:$A50)+1))","v":"-"},null,null,null,""]
[{"$f":"IF(OR($B52=\"\",COUNTIF($B$10:$B52,$B52)>1,LEN(TRIM($B52))<>10,ISNUMBER(--MID(TRIM($B52),5,1))),\"-\",MAX(COUNT($A$9:$A51)+1))","v":"-"},null,null,null,""]
[{"$f":"IF(OR($B53=\"\",COUNTIF($B$10:$B53,$B53)>1,LEN(TRIM($B53))<>10,ISNUMBER(--MID(TRIM($B53),5,1))),\"-\",MAX(COUNT($A$9:$A52)+1))","v":"-"},null,null,null,""]
[{"$f":"IF(OR($B54=\"\",COUNTIF($B$10:$B54,$B54)>1,LEN(TRIM($B54))<>10,ISNUMBER(--MID(TRIM($B54),5,1))),\"-\",MAX(COUNT($A$9:$A53)+1))","v":"-"},null,null,null,""]
[{"$f":"IF(OR($B55=\"\",COUNTIF($B$10:$B55,$B55)>1,LEN(TRIM($B55))<>10,ISNUMBER(--MID(TRIM($B55),5,1))),\"-\",MAX(COUNT($A$9:$A54)+1))","v":"-"},null,null,null,""]
[{"$f":"IF(OR($B56=\"\",COUNTIF($B$10:$B56,$B56)>1,LEN(TRIM($B56))<>10,ISNUMBER(--MID(TRIM($B56),5,1))),\"-\",MAX(COUNT($A$9:$A55)+1))","v":"-"},null,null,null,""]
[{"$f":"IF(OR($B57=\"\",COUNTIF($B$10:$B57,$B57)>1,LEN(TRIM($B57))<>10,ISNUMBER(--MID(TRIM($B57),5,1))),\"-\",MAX(COUNT($A$9:$A56)+1))","v":"-"},null,null,null,""]
[{"$f":"IF(OR($B58=\"\",COUNTIF($B$10:$B58,$B58)>1,LEN(TRIM($B58))<>10,ISNUMBER(--MID(TRIM($B58),5,1))),\"-\",MAX(COUNT($A$9:$A57)+1))","v":"-"},null,null,null,""]
[{"$f":"IF(OR($B59=\"\",COUNTIF($B$10:$B59,$B59)>1,LEN(TRIM($B59))<>10,ISNUMBER(--MID(TRIM($B59),5,1))),\"-\",MAX(COUNT($A$9:$A58)+1))","v":"-"},null,null,null,""]
[{"$f":"IF(OR($B60=\"\",COUNTIF($B$10:$B60,$B60)>1,LEN(TRIM($B60))<>10,ISNUMBER(--MID(TRIM($B60),5,1))),\"-\",MAX(COUNT($A$9:$A59)+1))","v":"-"},null,null,null,""]
[{"$f":"IF(OR($B61=\"\",COUNTIF($B$10:$B61,$B61)>1,LEN(TRIM($B61))<>10,ISNUMBER(--MID(TRIM($B61),5,1))),\"-\",MAX(COUNT($A$9:$A60)+1))","v":"-"},null,null,null,""]
[{"$f":"IF(OR($B62=\"\",COUNTIF($B$10:$B62,$B62)>1,LEN(TRIM($B62))<>10,ISNUMBER(--MID(TRIM($B62),5,1))),\"-\",MAX(COUNT($A$9:$A61)+1))","v":"-"},null,null,null,""]
[{"$f":"IF(OR($B63=\"\",COUNTIF($B$10:$B63,$B63)>1,LEN(TRIM($B63))<>10,ISNUMBER(--MID(TRIM($B63),5,1))),\"-\",MAX(COUNT($A$9:$A62)+1))","v":"-"},null,null,null,""]
[{"$f":"IF(OR($B64=\"\",COUNTIF($B$10:$B64,$B64)>1,LEN(TRIM($B64))<>10,ISNUMBER(--MID(TRIM($B64),5,1))),\"-\",MAX(COUNT($A$9:$A63)+1))","v":"-"},null,null,null,""]
[{"$f":"IF(OR($B65=\"\",COUNTIF($B$10:$B65,$B65)>1,LEN(TRIM($B65))<>10,ISNUMBER(--MID(TRIM($B65),5,1))),\"-\",MAX(COUNT($A$9:$A64)+1))","v":"-"},null,null,null,""]
[{"$f":"IF(OR($B66=\"\",COUNTIF($B$10:$B66,$B66)>1,LEN(TRIM($B66))<>10,ISNUMBER(--MID(TRIM($B66),5,1))),\"-\",MAX(COUNT($A$9:$A65)+1))","v":"-"},null,null,null,""]
[{"$f":"IF(OR($B67=\"\",COUNTIF($B$10:$B67,$B67)>1,LEN(TRIM($B67))<>10,ISNUMBER(--MID(TRIM($B67),5,1))),\"-\",MAX(COUNT($A$9:$A66)+1))","v":"-"},null,null,null,""]
[{"$f":"IF(OR($B68=\"\",COUNTIF($B$10:$B68,$B68)>1,LEN(TRIM($B68))<>10,ISNUMBER(--MID(TRIM($B68),5,1))),\"-\",MAX(COUNT($A$9:$A67)+1))","v":"-"},null,null,null,""]
[{"$f":"IF(OR($B69=\"\",COUNTIF($B$10:$B69,$B69)>1,LEN(TRIM($B69))<>10,ISNUMBER(--MID(TRIM($B69),5,1))),\"-\",MAX(COUNT($A$9:$A68)+1))","v":"-"},null,null,null,""]
[{"$f":"IF(OR($B70=\"\",COUNTIF($B$10:$B70,$B70)>1,LEN(TRIM($B70))<>10,ISNUMBER(--MID(TRIM($B70),5,1))),\"-\",MAX(COUNT($A$9:$A69)+1))","v":"-"},null,null,null,""]
[{"$f":"IF(OR($B71=\"\",COUNTIF($B$10:$B71,$B71)>1,LEN(TRIM($B71))<>10,ISNUMBER(--MID(TRIM($B71),5,1))),\"-\",MAX(COUNT($A$9:$A70)+1))","v":"-"},null,null,null,""]
[{"$f":"IF(OR($B72=\"\",COUNTIF($B$10:$B72,$B72)>1,LEN(TRIM($B72))<>10,ISNUMBER(--MID(TRIM($B72),5,1))),\"-\",MAX(COUNT($A$9:$A71)+1))","v":"-"},null,null,null,""]
[{"$f":"IF(OR($B73=\"\",COUNTIF($B$10:$B73,$B73)>1,LEN(TRIM($B73))<>10,ISNUMBER(--MID(TRIM($B73),5,1))),\"-\",MAX(COUNT($A$9:$A72)+1))","v":"-"},null,null,null,""]
[{"$f":"IF(OR($B74=\"\",COUNTIF($B$10:$B74,$B74)>1,LEN(TRIM($B74))<>10,ISNUMBER(--MID(TRIM($B74),5,1))),\"-\",MAX(COUNT($A$9:$A73)+1))","v":"-"},null,null,null,""]
[{"$f":"IF(OR($B75=\"\",COUNTIF($B$10:$B75,$B75)>1,LEN(TRIM($B75))<>10,ISNUMBER(--MID(TRIM($B75),5,1))),\"-\",MAX(COUNT($A$9:$A74)+1))","v":"-"},null,null,null,""]
[{"$f":"IF(OR($B76=\"\",COUNTIF($B$10:$B76,$B76)>1,LEN(TRIM($B76))<>10,ISNUMBER(--MID(TRIM($B76),5,1))),\"-\",MAX(COUNT($A$9:$A75)+1))","v":"-"},null,null,null,{"$f":"IF(D76=\"\",\"\",D76-D75)","v":""}]
[{"$f":"IF(OR($B77=\"\",COUNTIF($B$10:$B77,$B77)>1,LEN(TRIM($B77))<>10,ISNUMBER(--MID(TRIM($B77),5,1))),\"-\",MAX(COUNT($A$9:$A76)+1))","v":"-"},null,null,null,""]
[{"$f":"IF(OR($B78=\"\",COUNTIF($B$10:$B78,$B78)>1,LEN(TRIM($B78))<>10,ISNUMBER(--MID(TRIM($B78),5,1))),\"-\",MAX(COUNT($A$9:$A77)+1))","v":"-"},null,null,null,""]
[{"$f":"IF(OR($B79=\"\",COUNTIF($B$10:$B79,$B79)>1,LEN(TRIM($B79))<>10,ISNUMBER(--MID(TRIM($B79),5,1))),\"-\",MAX(COUNT($A$9:$A78)+1))","v":"-"},null,null,null,""]
["รวมของขาย|ของเสีย|เหลือบนเชลฟ์",null,null,null,null,null,{"$f":"SUM(G10:G79)","v":0},0,0,{"$f":"SUM(J10:J79)","v":0},0,0,0,0,0,0,0,0,0,0,0,0,0,0,0,0,0,0,0,0,0,0,0,0,0,0,0,0,0,0,0,0,0,0,0,0,0,0,0,0,0,0,0,0,0,0,0,0,0,0,0,0,0,0,0,0,0,0,0,0,0,0,0,{"$f":"SUM(BV10:BV79)","v":0},0,0,0,0,0,0,0,0,0,0,0,0,0,0,0,0,0,0,0,0,0,0,0,0,0,0,0,0,0,0,0,0,0,0,0,0,0,0,0,0,0,0,0,0,0,0,0,0,0,0,0,0,0,0,0,0,0,0,0,0,0,{"$f":"SUM(EF10:EF79)","v":0},0,0,{"$f":"SUM(EI10:EI79)","v":0},0,0,0,0,0,{"$f":"SUM(EO10:EO79)","v":0},0,0,0,0,0,"รวมเงินเชื่อ","รวมเงินสด","ภาษี","รวมยอดขาย"]
["ของเหลือ",null,null,null,null,null,{"$f":"G80+H80-G9","v":0},null,null,{"$f":"J80+K80-J9","v":0},null,null,{"$f":"M80+N80-M9","v":0},null,null,{"$f":"P80+Q80-P9","v":0},null,null,{"$f":"S80+T80-S9","v":0},null,null,{"$f":"V80+W80-V9","v":0},null,null,{"$f":"Y80+Z80-Y9","v":0},null,null,{"$f":"AB80+AC80-AB9","v":0},null,null,{"$f":"AE80+AF80-AE9","v":0},null,null,{"$f":"AH80+AI80-AH9","v":0},null,null,{"$f":"AK80+AL80-AK9","v":0},null,null,{"$f":"AN80+AO80-AN9","v":0},null,null,{"$f":"AQ80+AR80-AQ9","v":0},null,null,{"$f":"AT80+AU80-AT9","v":0},null,null,{"$f":"AW80+AX80-AW9","v":0},null,null,{"$f":"AZ80+BA80-AZ9","v":0},null,null,{"$f":"BC80+BD80-BC9","v":0},null,null,{"$f":"BF80+BG80-BF9","v":0},null,null,{"$f":"BI80+BJ80-BI9","v":0},null,null,{"$f":"BL80+BM80-BL9","v":0},null,null,{"$f":"BO80+BP80-BO9","v":0},null,null,{"$f":"BR80+BS80-BR9","v":0},null,null,{"$f":"BU80+BV80-BU9","v":0},null,null,{"$f":"BX80+BY80-BX9","v":0},null,null,{"$f":"CA80+CB80-CA9","v":0},null,null,{"$f":"CD80+CE80-CD9","v":0},null,null,{"$f":"CG80+CH80-CG9","v":0},null,null,{"$f":"CJ80+CK80-CJ9","v":0},null,null,{"$f":"CM80+CN80-CM9","v":0},null,null,{"$f":"CP80+CQ80-CP9","v":0},null,null,{"$f":"CS80+CT80-CS9","v":0},null,null,{"$f":"CV80+CW80-CV9","v":0},null,null,{"$f":"CY80+CZ80-CY9","v":0},null,null,{"$f":"DB80+DC80-DB9","v":0},null,null,{"$f":"DE80+DF80-DE9","v":0},null,null,{"$f":"DH80+DI80-DH9","v":0},null,null,{"$f":"DK80+DL80-DK9","v":0},null,null,{"$f":"DN80+DO80-DN9","v":0},null,null,{"$f":"DQ80+DR80-DQ9","v":0},null,null,{"$f":"DT80+DU80-DT9","v":0},null,null,{"$f":"DW80+DX80-DW9","v":0},null,null,{"$f":"DZ80+EA80-DZ9","v":0},null,null,{"$f":"EC80+ED80-EC9","v":0},null,null,{"$f":"EF80+EG80-EF9","v":0},null,null,{"$f":"EI80+EJ80-EI9","v":0},null,null,{"$f":"EL80+EM80-EL9","v":0},null,null,{"$f":"EO80+EP80-EO9","v":0},null,null,{"$f":"ER80+ES80-ER9","v":0},null,null,{"$f":"SUM(EU10:EU79)","v":0},{"$f":"SUM(EV10:EV79)","v":0},{"$f":"SUM(EW10:EW79)","v":0},{"$f":"SUM(EX10:EX79)","v":0}]
["เฉลี่ย",null,null,"เหลือ/เสีย(จริง)",null,null,{"$f":"INDIRECT(\"F\"&ROW($G$87)+ROUNDUP(COLUMNS($G:G)/3,0))","v":0},{"$f":"INDIRECT(\"G\"&ROW($G$87)+ROUNDUP(COLUMNS($G:H)/3,0))","v":0},null,{"$f":"INDIRECT(\"F\"&ROW($G$87)+ROUNDUP(COLUMNS($G:J)/3,0))","v":0},{"$f":"INDIRECT(\"G\"&ROW($G$87)+ROUNDUP(COLUMNS($G:K)/3,0))","v":0},null,{"$f":"INDIRECT(\"F\"&ROW($G$87)+ROUNDUP(COLUMNS($G:M)/3,0))","v":0},{"$f":"INDIRECT(\"G\"&ROW($G$87)+ROUNDUP(COLUMNS($G:N)/3,0))","v":0},null,{"$f":"INDIRECT(\"F\"&ROW($G$87)+ROUNDUP(COLUMNS($G:P)/3,0))","v":0},{"$f":"INDIRECT(\"G\"&ROW($G$87)+ROUNDUP(COLUMNS($G:Q)/3,0))","v":0},null,{"$f":"INDIRECT(\"F\"&ROW($G$87)+ROUNDUP(COLUMNS($G:S)/3,0))","v":0},{"$f":"INDIRECT(\"G\"&ROW($G$87)+ROUNDUP(COLUMNS($G:T)/3,0))","v":0},null,{"$f":"INDIRECT(\"F\"&ROW($G$87)+ROUNDUP(COLUMNS($G:V)/3,0))","v":0},{"$f":"INDIRECT(\"G\"&ROW($G$87)+ROUNDUP(COLUMNS($G:W)/3,0))","v":0},null,{"$f":"INDIRECT(\"F\"&ROW($G$87)+ROUNDUP(COLUMNS($G:Y)/3,0))","v":0},{"$f":"INDIRECT(\"G\"&ROW($G$87)+ROUNDUP(COLUMNS($G:Z)/3,0))","v":0},null,{"$f":"INDIRECT(\"F\"&ROW($G$87)+ROUNDUP(COLUMNS($G:AB)/3,0))","v":0},{"$f":"INDIRECT(\"G\"&ROW($G$87)+ROUNDUP(COLUMNS($G:AC)/3,0))","v":0},null,{"$f":"INDIRECT(\"F\"&ROW($G$87)+ROUNDUP(COLUMNS($G:AE)/3,0))","v":0},{"$f":"INDIRECT(\"G\"&ROW($G$87)+ROUNDUP(COLUMNS($G:AF)/3,0))","v":0},null,{"$f":"INDIRECT(\"F\"&ROW($G$87)+ROUNDUP(COLUMNS($G:AH)/3,0))","v":0},{"$f":"INDIRECT(\"G\"&ROW($G$87)+ROUNDUP(COLUMNS($G:AI)/3,0))","v":0},null,{"$f":"INDIRECT(\"F\"&ROW($G$87)+ROUNDUP(COLUMNS($G:AK)/3,0))","v":0},{"$f":"INDIRECT(\"G\"&ROW($G$87)+ROUNDUP(COLUMNS($G:AL)/3,0))","v":0},null,{"$f":"INDIRECT(\"F\"&ROW($G$87)+ROUNDUP(COLUMNS($G:AN)/3,0))","v":0},{"$f":"INDIRECT(\"G\"&ROW($G$87)+ROUNDUP(COLUMNS($G:AO)/3,0))","v":0},null,{"$f":"INDIRECT(\"F\"&ROW($G$87)+ROUNDUP(COLUMNS($G:AQ)/3,0))","v":0},{"$f":"INDIRECT(\"G\"&ROW($G$87)+ROUNDUP(COLUMNS($G:AR)/3,0))","v":0},null,{"$f":"INDIRECT(\"F\"&ROW($G$87)+ROUNDUP(COLUMNS($G:AT)/3,0))","v":0},{"$f":"INDIRECT(\"G\"&ROW($G$87)+ROUNDUP(COLUMNS($G:AU)/3,0))","v":0},null,{"$f":"INDIRECT(\"F\"&ROW($G$87)+ROUNDUP(COLUMNS($G:AW)/3,0))","v":0},{"$f":"INDIRECT(\"G\"&ROW($G$87)+ROUNDUP(COLUMNS($G:AX)/3,0))","v":0},null,{"$f":"INDIRECT(\"F\"&ROW($G$87)+ROUNDUP(COLUMNS($G:AZ)/3,0))","v":0},{"$f":"INDIRECT(\"G\"&ROW($G$87)+ROUNDUP(COLUMNS($G:BA)/3,0))","v":0},null,{"$f":"INDIRECT(\"F\"&ROW($G$87)+ROUNDUP(COLUMNS($G:BC)/3,0))","v":0},{"$f":"INDIRECT(\"G\"&ROW($G$87)+ROUNDUP(COLUMNS($G:BD)/3,0))","v":0},null,{"$f":"INDIRECT(\"F\"&ROW($G$87)+ROUNDUP(COLUMNS($G:BF)/3,0))","v":0},{"$f":"INDIRECT(\"G\"&ROW($G$87)+ROUNDUP(COLUMNS($G:BG)/3,0))","v":0},null,{"$f":"INDIRECT(\"F\"&ROW($G$87)+ROUNDUP(COLUMNS($G:BI)/3,0))","v":0},{"$f":"INDIRECT(\"G\"&ROW($G$87)+ROUNDUP(COLUMNS($G:BJ)/3,0))","v":0},null,{"$f":"INDIRECT(\"F\"&ROW($G$87)+ROUNDUP(COLUMNS($G:BL)/3,0))","v":0},{"$f":"INDIRECT(\"G\"&ROW($G$87)+ROUNDUP(COLUMNS($G:BM)/3,0))","v":0},null,{"$f":"INDIRECT(\"F\"&ROW($G$87)+ROUNDUP(COLUMNS($G:BO)/3,0))","v":0},{"$f":"INDIRECT(\"G\"&ROW($G$87)+ROUNDUP(COLUMNS($G:BP)/3,0))","v":0},null,{"$f":"INDIRECT(\"F\"&ROW($G$87)+ROUNDUP(COLUMNS($G:BR)/3,0))","v":0},{"$f":"INDIRECT(\"G\"&ROW($G$87)+ROUNDUP(COLUMNS($G:BS)/3,0))","v":0},null,{"$f":"INDIRECT(\"F\"&ROW($G$87)+ROUNDUP(COLUMNS($G:BU)/3,0))","v":0},{"$f":"INDIRECT(\"G\"&ROW($G$87)+ROUNDUP(COLUMNS($G:BV)/3,0))","v":0},null,{"$f":"INDIRECT(\"F\"&ROW($G$87)+ROUNDUP(COLUMNS($G:BX)/3,0))","v":0},{"$f":"INDIRECT(\"G\"&ROW($G$87)+ROUNDUP(COLUMNS($G:BY)/3,0))","v":0},null,{"$f":"INDIRECT(\"F\"&ROW($G$87)+ROUNDUP(COLUMNS($G:CA)/3,0))","v":0},{"$f":"INDIRECT(\"G\"&ROW($G$87)+ROUNDUP(COLUMNS($G:CB)/3,0))","v":0},null,{"$f":"INDIRECT(\"F\"&ROW($G$87)+ROUNDUP(COLUMNS($G:CD)/3,0))","v":0},{"$f":"INDIRECT(\"G\"&ROW($G$87)+ROUNDUP(COLUMNS($G:CE)/3,0))","v":0},null,{"$f":"INDIRECT(\"F\"&ROW($G$87)+ROUNDUP(COLUMNS($G:CG)/3,0))","v":0},{"$f":"INDIRECT(\"G\"&ROW($G$87)+ROUNDUP(COLUMNS($G:CH)/3,0))","v":0},null,{"$f":"INDIRECT(\"F\"&ROW($G$87)+ROUNDUP(COLUMNS($G:CJ)/3,0))","v":0},{"$f":"INDIRECT(\"G\"&ROW($G$87)+ROUNDUP(COLUMNS($G:CK)/3,0))","v":0},null,{"$f":"INDIRECT(\"F\"&ROW($G$87)+ROUNDUP(COLUMNS($G:CM)/3,0))","v":0},{"$f":"INDIRECT(\"G\"&ROW($G$87)+ROUNDUP(COLUMNS($G:CN)/3,0))","v":0},null,{"$f":"INDIRECT(\"F\"&ROW($G$87)+ROUNDUP(COLUMNS($G:CP)/3,0))","v":0},{"$f":"INDIRECT(\"G\"&ROW($G$87)+ROUNDUP(COLUMNS($G:CQ)/3,0))","v":0},null,{"$f":"INDIRECT(\"F\"&ROW($G$87)+ROUNDUP(COLUMNS($G:CS)/3,0))","v":0},{"$f":"INDIRECT(\"G\"&ROW($G$87)+ROUNDUP(COLUMNS($G:CT)/3,0))","v":0},null,{"$f":"INDIRECT(\"F\"&ROW($G$87)+ROUNDUP(COLUMNS($G:CV)/3,0))","v":0},{"$f":"INDIRECT(\"G\"&ROW($G$87)+ROUNDUP(COLUMNS($G:CW)/3,0))","v":0},null,{"$f":"INDIRECT(\"F\"&ROW($G$87)+ROUNDUP(COLUMNS($G:CY)/3,0))","v":0},{"$f":"INDIRECT(\"G\"&ROW($G$87)+ROUNDUP(COLUMNS($G:CZ)/3,0))","v":0},null,{"$f":"INDIRECT(\"F\"&ROW($G$87)+ROUNDUP(COLUMNS($G:DB)/3,0))","v":0},{"$f":"INDIRECT(\"G\"&ROW($G$87)+ROUNDUP(COLUMNS($G:DC)/3,0))","v":0},null,{"$f":"INDIRECT(\"F\"&ROW($G$87)+ROUNDUP(COLUMNS($G:DE)/3,0))","v":0},{"$f":"INDIRECT(\"G\"&ROW($G$87)+ROUNDUP(COLUMNS($G:DF)/3,0))","v":0},null,{"$f":"INDIRECT(\"F\"&ROW($G$87)+ROUNDUP(COLUMNS($G:DH)/3,0))","v":0},{"$f":"INDIRECT(\"G\"&ROW($G$87)+ROUNDUP(COLUMNS($G:DI)/3,0))","v":0},null,{"$f":"INDIRECT(\"F\"&ROW($G$87)+ROUNDUP(COLUMNS($G:DK)/3,0))","v":0},{"$f":"INDIRECT(\"G\"&ROW($G$87)+ROUNDUP(COLUMNS($G:DL)/3,0))","v":0},null,{"$f":"INDIRECT(\"F\"&ROW($G$87)+ROUNDUP(COLUMNS($G:DN)/3,0))","v":0},{"$f":"INDIRECT(\"G\"&ROW($G$87)+ROUNDUP(COLUMNS($G:DO)/3,0))","v":0},null,{"$f":"INDIRECT(\"F\"&ROW($G$87)+ROUNDUP(COLUMNS($G:DQ)/3,0))","v":0},{"$f":"INDIRECT(\"G\"&ROW($G$87)+ROUNDUP(COLUMNS($G:DR)/3,0))","v":0},null,{"$f":"INDIRECT(\"F\"&ROW($G$87)+ROUNDUP(COLUMNS($G:DT)/3,0))","v":0},{"$f":"INDIRECT(\"G\"&ROW($G$87)+ROUNDUP(COLUMNS($G:DU)/3,0))","v":0},null,{"$f":"INDIRECT(\"F\"&ROW($G$87)+ROUNDUP(COLUMNS($G:DW)/3,0))","v":0},{"$f":"INDIRECT(\"G\"&ROW($G$87)+ROUNDUP(COLUMNS($G:DX)/3,0))","v":0},null,{"$f":"INDIRECT(\"F\"&ROW($G$87)+ROUNDUP(COLUMNS($G:DZ)/3,0))","v":0},{"$f":"INDIRECT(\"G\"&ROW($G$87)+ROUNDUP(COLUMNS($G:EA)/3,0))","v":0},null,{"$f":"INDIRECT(\"F\"&ROW($G$87)+ROUNDUP(COLUMNS($G:EC)/3,0))","v":0},{"$f":"INDIRECT(\"G\"&ROW($G$87)+ROUNDUP(COLUMNS($G:ED)/3,0))","v":0},null,{"$f":"INDIRECT(\"F\"&ROW($G$87)+ROUNDUP(COLUMNS($G:EF)/3,0))","v":0},{"$f":"INDIRECT(\"G\"&ROW($G$87)+ROUNDUP(COLUMNS($G:EG)/3,0))","v":0},null,{"$f":"INDIRECT(\"F\"&ROW($G$87)+ROUNDUP(COLUMNS($G:EI)/3,0))","v":0},{"$f":"INDIRECT(\"G\"&ROW($G$87)+ROUNDUP(COLUMNS($G:EJ)/3,0))","v":0},null,{"$f":"INDIRECT(\"F\"&ROW($G$87)+ROUNDUP(COLUMNS($G:EL)/3,0))","v":0},{"$f":"INDIRECT(\"G\"&ROW($G$87)+ROUNDUP(COLUMNS($G:EM)/3,0))","v":0},null,{"$f":"INDIRECT(\"F\"&ROW($G$87)+ROUNDUP(COLUMNS($G:EO)/3,0))","v":0},{"$f":"INDIRECT(\"G\"&ROW($G$87)+ROUNDUP(COLUMNS($G:EP)/3,0))","v":0},null,{"$f":"INDIRECT(\"F\"&ROW($G$87)+ROUNDUP(COLUMNS($G:ER)/3,0))","v":0},{"$f":"INDIRECT(\"G\"&ROW($G$87)+ROUNDUP(COLUMNS($G:ES)/3,0))","v":0},null,{"$f":"EU81+EV81","v":0}]
["เวลากลับถึงสำนักงานเช็คของเสีย",null,null,{"$f":"D139","v":"00:00:00"},null,"ผลต่าง",{"$f":"G82+H82+G80-G9","v":0},null,null,{"$f":"J82+K82+J80-J9","v":0},null,null,{"$f":"M82+N82+M80-M9","v":0},null,null,{"$f":"P82+Q82+P80-P9","v":0},null,null,{"$f":"S82+T82+S80-S9","v":0},null,null,{"$f":"V82+W82+V80-V9","v":0},null,null,{"$f":"Y82+Z82+Y80-Y9","v":0},null,null,{"$f":"AB82+AC82+AB80-AB9","v":0},null,null,{"$f":"AE82+AF82+AE80-AE9","v":0},null,null,{"$f":"AH82+AI82+AH80-AH9","v":0},null,null,{"$f":"AK82+AL82+AK80-AK9","v":0},null,null,{"$f":"AN82+AO82+AN80-AN9","v":0},null,null,{"$f":"AQ82+AR82+AQ80-AQ9","v":0},null,null,{"$f":"AT82+AU82+AT80-AT9","v":0},null,null,{"$f":"AW82+AX82+AW80-AW9","v":0},null,null,{"$f":"AZ82+BA82+AZ80-AZ9","v":0},null,null,{"$f":"BC82+BD82+BC80-BC9","v":0},null,null,{"$f":"BF82+BG82+BF80-BF9","v":0},null,null,{"$f":"BI82+BJ82+BI80-BI9","v":0},null,null,{"$f":"BL82+BM82+BL80-BL9","v":0},null,null,{"$f":"BO82+BP82+BO80-BO9","v":0},null,null,{"$f":"BR82+BS82+BR80-BR9","v":0},null,null,{"$f":"BU82+BV82+BU80-BU9","v":0},null,null,{"$f":"BX82+BY82+BX80-BX9","v":0},null,null,{"$f":"CA82+CB82+CA80-CA9","v":0},null,null,{"$f":"CD82+CE82+CD80-CD9","v":0},null,null,{"$f":"CG82+CH82+CG80-CG9","v":0},null,null,{"$f":"CJ82+CK82+CJ80-CJ9","v":0},null,null,{"$f":"CM82+CN82+CM80-CM9","v":0},null,null,{"$f":"CP82+CQ82+CP80-CP9","v":0},null,null,{"$f":"CS82+CT82+CS80-CS9","v":0},null,null,{"$f":"CV82+CW82+CV80-CV9","v":0},null,null,{"$f":"CY82+CZ82+CY80-CY9","v":0},null,null,{"$f":"DB82+DC82+DB80-DB9","v":0},null,null,{"$f":"DE82+DF82+DE80-DE9","v":0},null,null,{"$f":"DH82+DI82+DH80-DH9","v":0},null,null,{"$f":"DK82+DL82+DK80-DK9","v":0},null,null,{"$f":"DN82+DO82+DN80-DN9","v":0},null,null,{"$f":"DQ82+DR82+DQ80-DQ9","v":0},null,null,{"$f":"DT82+DU82+DT80-DT9","v":0},null,null,{"$f":"DW82+DX82+DW80-DW9","v":0},null,null,{"$f":"DZ82+EA82+DZ80-DZ9","v":0},null,null,{"$f":"EC82+ED82+EC80-EC9","v":0},null,null,{"$f":"EF82+EG82+EF80-EF9","v":0},null,null,{"$f":"EI82+EJ82+EI80-EI9","v":0},null,null,{"$f":"EL82+EM82+EL80-EL9","v":0},null,null,{"$f":"EO82+EP82+EO80-EO9","v":0},null,null,{"$f":"ER82+ES82+ER80-ER9","v":0}]
["เป็นเงิน",null,null,null,null,null,{"$f":"G8*G83","v":0},null,null,{"$f":"J8*J83","v":0},null,null,{"$f":"M8*M83","v":0},null,null,{"$f":"P8*P83","v":0},null,null,{"$f":"S8*S83","v":0},null,null,{"$f":"V8*V83","v":0},null,null,{"$f":"Y8*Y83","v":0},null,null,{"$f":"AB8*AB83","v":0},null,null,{"$f":"AE8*AE83","v":0},null,null,{"$f":"AH8*AH83","v":0},null,null,{"$f":"AK8*AK83","v":0},null,null,{"$f":"AN8*AN83","v":0},null,null,{"$f":"AQ8*AQ83","v":0},null,null,{"$f":"AT8*AT83","v":0},null,null,{"$f":"AW8*AW83","v":0},null,null,{"$f":"AZ8*AZ83","v":0},null,null,{"$f":"BC8*BC83","v":0},null,null,{"$f":"BF8*BF83","v":0},null,null,{"$f":"BI8*BI83","v":0},null,null,{"$f":"BL8*BL83","v":0},null,null,{"$f":"BO8*BO83","v":0},null,null,{"$f":"BR8*BR83","v":0},null,null,{"$f":"BU8*BU83","v":0},null,null,{"$f":"BX8*BX83","v":0},null,null,{"$f":"CA8*CA83","v":0},null,null,{"$f":"CD8*CD83","v":0},null,null,{"$f":"CG8*CG83","v":0},null,null,{"$f":"CJ8*CJ83","v":0},null,null,{"$f":"CM8*CM83","v":0},null,null,{"$f":"CP8*CP83","v":0},null,null,{"$f":"CS8*CS83","v":0},null,null,{"$f":"CV8*CV83","v":0},null,null,{"$f":"CY8*CY83","v":0},null,null,{"$f":"DB8*DB83","v":0},null,null,{"$f":"DE8*DE83","v":0},null,null,{"$f":"DH8*DH83","v":0},null,null,{"$f":"DK8*DK83","v":0},null,null,{"$f":"DN8*DN83","v":0},null,null,{"$f":"DQ8*DQ83","v":0},null,null,{"$f":"DT8*DT83","v":0},null,null,{"$f":"DW8*DW83","v":0},null,null,0,null,null,{"$f":"EC8*EC83","v":0},null,null,{"$f":"EF8*EF83","v":0},null,null,{"$f":"EI8*EI83","v":0},null,null,{"$f":"EL8*EL83","v":0},null,null,{"$f":"EO8*EO83","v":0},null,null,{"$f":"ER8*ER83","v":0},null,null,{"$f":"$AP$98","v":0}]
[null,null,null,"ผู้จัดทำ……………………………………………………………………",null,null,null,null,null,null,null,null,null,null,null,null,null,null,null,null,null,null,null,"ผู้ตรวจ(ผจก.)………………………………………………………………………………."]
[null,null,"ใบจ่ายสินค้า",null,null,null,null,null,null,null,null,null,null,null,null,null,null,{"$f":"IF(ISODD(COLUMN()),MAX($F$86:Q$86)+1,\"\")","v":""}]
["ราคา","ลำดับ","รายการ","ยกมา","เบิก","เหลือ","เสีย","โอนเข้า","โอนออก","ชำรุด","รวม",null,"ขาย",null,"ขาด/เกิน",null,"บาท",null,null,null,"ขายได้",null,"ควรเบิก",null,"หมายเหตุ",null,null,null,"เสีย PDA","เสียจริง","เหลือ PDA","ผลต่าง","เหลือลูกค้า","หมายเหตุ",null,null,null,null,"Price","Quantity","Baht","Deduct"]
[{"$f":"IF(B88=\"\",0,INDEX(Price_List,ROWS($88:88)))","v":20},{"$f":"IF($C88=\"\",\"\",COUNTA($C$88:$C88))","v":1},{"$f":"IF(INDEX(INDIRECT(\"Product_List\"),ROWS($88:88))=\"\",\"\",INDEX(INDIRECT(\"Product_List\"),ROWS($88:88)))","v":"01-ขนมปังหมูหยองน้ำสลัด"},{"$f":"ยอดยกมา","v":0},null,null,null,null,null,null,{"$f":"D88+E88+J88-I88+H88","v":0},null,{"$f":"INDIRECT(ADDRESS(ROW(A$80),ROW()-ROW(A$80)+(ROWS($88:88)-1)*2-1,4))","v":0},null,{"$f":"F88+G88+M88+J88-K88","v":0},null,{"$f":"O88*A88","v":0},null,null,null,{"$f":"D88+E88-F88-G88","v":0},null,{"$f":"U88*6%+U88","v":0},null,null,null,null,null,{"$f":"INDIRECT(ADDRESS(ROW(A$80),ROW()-ROW(A$80)+(ROWS($88:88)-1)*2,4))","v":0},{"$f":"$G88","v":0},null,{"$f":"$F88-$AE88","v":0},{"$f":"INDIRECT(ADDRESS(ROW(A$80),ROW()-ROW(A$80)+(ROWS($88:88)-1)*2+1,4))","v":0},null,null,null,null,null,10,{"$f":"SUMPRODUCT(($A$88:$A$135=$AM88)*(($F$88:$F$135)+($G$88:$G$135)+($M$88:$M$135)+($J$88:$J$135)-($K$88:$K$135)))","v":0},{"$f":"AM88*AN88","v":0},{"$f":"IF(AO88<0,AO88,0)","v":0}]
[{"$f":"IF(B89=\"\",0,INDEX(Price_List,ROWS($88:89)))","v":20},{"$f":"IF($C89=\"\",\"\",COUNTA($C$88:$C89))","v":2},{"$f":"IF(INDEX(INDIRECT(\"Product_List\"),ROWS($88:89))=\"\",\"\",INDEX(INDIRECT(\"Product_List\"),ROWS($88:89)))","v":"02-ขนมปังหมูหยองน้ำพริกเผา"},{"$f":"ยอดยกมา","v":0},null,null,null,null,null,null,{"$f":"D89+E89+J89-I89+H89","v":0},null,{"$f":"INDIRECT(ADDRESS(ROW(A$80),ROW()-ROW(A$80)+(ROWS($88:89)-1)*2-1,4))","v":0},null,{"$f":"F89+G89+M89+J89-K89","v":0},null,{"$f":"O89*A89","v":0},null,null,null,{"$f":"D89+E89-F89-G89","v":0},null,{"$f":"U89*6%+U89","v":0},null,null,null,null,null,{"$f":"INDIRECT(ADDRESS(ROW(A$80),ROW()-ROW(A$80)+(ROWS($88:89)-1)*2,4))","v":0},{"$f":"$G89","v":0},null,{"$f":"$F89-$AE89","v":0},{"$f":"INDIRECT(ADDRESS(ROW(A$80),ROW()-ROW(A$80)+(ROWS($88:89)-1)*2+1,4))","v":0},null,null,null,null,null,12,0,{"$f":"AM89*AN89","v":0},{"$f":"IF(AO89<0,AO89,0)","v":0}]
[{"$f":"IF(B90=\"\",0,INDEX(Price_List,ROWS($88:90)))","v":20},{"$f":"IF($C90=\"\",\"\",COUNTA($C$88:$C90))","v":3},{"$f":"IF(INDEX(INDIRECT(\"Product_List\"),ROWS($88:90))=\"\",\"\",INDEX(INDIRECT(\"Product_List\"),ROWS($88:90)))","v":"03-ขนมปังไก่หยองน้ำสลัด"},{"$f":"ยอดยกมา","v":0},null,null,null,null,null,null,0,null,{"$f":"INDIRECT(ADDRESS(ROW(A$80),ROW()-ROW(A$80)+(ROWS($88:90)-1)*2-1,4))","v":0},null,0,null,0,null,null,null,0,null,0,null,null,null,null,null,{"$f":"INDIRECT(ADDRESS(ROW(A$80),ROW()-ROW(A$80)+(ROWS($88:90)-1)*2,4))","v":0},0,null,0,{"$f":"INDIRECT(ADDRESS(ROW(A$80),ROW()-ROW(A$80)+(ROWS($88:90)-1)*2+1,4))","v":0},null,null,null,null,null,13,0,0,0]
[{"$f":"IF(B91=\"\",0,INDEX(Price_List,ROWS($88:91)))","v":15},{"$f":"IF($C91=\"\",\"\",COUNTA($C$88:$C91))","v":4},{"$f":"IF(INDEX(INDIRECT(\"Product_List\"),ROWS($88:91))=\"\",\"\",INDEX(INDIRECT(\"Product_List\"),ROWS($88:91)))","v":"04-ขนมปังไส้ครีมสลัด"},{"$f":"ยอดยกมา","v":0},null,null,null,null,null,null,0,null,{"$f":"INDIRECT(ADDRESS(ROW(A$80),ROW()-ROW(A$80)+(ROWS($88:91)-1)*2-1,4))","v":0},null,{"$f":"F91+G91+M91+J91-K91","v":0},null,0,null,null,null,0,null,0,null,null,null,null,null,{"$f":"INDIRECT(ADDRESS(ROW(A$80),ROW()-ROW(A$80)+(ROWS($88:91)-1)*2,4))","v":0},0,null,0,{"$f":"INDIRECT(ADDRESS(ROW(A$80),ROW()-ROW(A$80)+(ROWS($88:91)-1)*2+1,4))","v":0},null,null,null,null,null,15,0,0,0]
[{"$f":"IF(B92=\"\",0,INDEX(Price_List,ROWS($88:92)))","v":15},{"$f":"IF($C92=\"\",\"\",COUNTA($C$88:$C92))","v":5},{"$f":"IF(INDEX(INDIRECT(\"Product_List\"),ROWS($88:92))=\"\",\"\",INDEX(INDIRECT(\"Product_List\"),ROWS($88:92)))","v":"05-ขนมปังเนยสด"},{"$f":"ยอดยกมา","v":0},null,null,null,null,null,null,0,null,{"$f":"INDIRECT(ADDRESS(ROW(A$80),ROW()-ROW(A$80)+(ROWS($88:92)-1)*2-1,4))","v":0},null,0,null,0,null,null,null,0,null,0,null,null,null,null,null,{"$f":"INDIRECT(ADDRESS(ROW(A$80),ROW()-ROW(A$80)+(ROWS($88:92)-1)*2,4))","v":0},0,null,0,{"$f":"INDIRECT(ADDRESS(ROW(A$80),ROW()-ROW(A$80)+(ROWS($88:92)-1)*2+1,4))","v":0},null,null,null,null,null,16,0,0,0]
[{"$f":"IF(B93=\"\",0,INDEX(Price_List,ROWS($88:93)))","v":10},{"$f":"IF($C93=\"\",\"\",COUNTA($C$88:$C93))","v":6},{"$f":"IF(INDEX(INDIRECT(\"Product_List\"),ROWS($88:93))=\"\",\"\",INDEX(INDIRECT(\"Product_List\"),ROWS($88:93)))","v":"06-ขนมปังไส้สังขยาเล็ก"},{"$f":"ยอดยกมา","v":0},null,null,null,null,null,null,0,null,{"$f":"INDIRECT(ADDRESS(ROW(A$80),ROW()-ROW(A$80)+(ROWS($88:93)-1)*2-1,4))","v":0},null,0,null,0,null,null,null,0,null,0,null,null,null,null,null,{"$f":"INDIRECT(ADDRESS(ROW(A$80),ROW()-ROW(A$80)+(ROWS($88:93)-1)*2,4))","v":0},0,null,0,{"$f":"INDIRECT(ADDRESS(ROW(A$80),ROW()-ROW(A$80)+(ROWS($88:93)-1)*2+1,4))","v":0},null,null,null,null,null,18,0,0,0]
[{"$f":"IF(B94=\"\",0,INDEX(Price_List,ROWS($88:94)))","v":10},{"$f":"IF($C94=\"\",\"\",COUNTA($C$88:$C94))","v":7},{"$f":"IF(INDEX(INDIRECT(\"Product_List\"),ROWS($88:94))=\"\",\"\",INDEX(INDIRECT(\"Product_List\"),ROWS($88:94)))","v":"07-ขนมปังไส้เผือก"},{"$f":"ยอดยกมา","v":0},null,null,null,null,null,null,0,null,{"$f":"INDIRECT(ADDRESS(ROW(A$80),ROW()-ROW(A$80)+(ROWS($88:94)-1)*2-1,4))","v":0},null,0,null,0,null,null,null,0,null,0,null,null,null,null,null,{"$f":"INDIRECT(ADDRESS(ROW(A$80),ROW()-ROW(A$80)+(ROWS($88:94)-1)*2,4))","v":0},0,null,0,{"$f":"INDIRECT(ADDRESS(ROW(A$80),ROW()-ROW(A$80)+(ROWS($88:94)-1)*2+1,4))","v":0},null,null,null,null,null,20,0,0,0]
[{"$f":"IF(B95=\"\",0,INDEX(Price_List,ROWS($88:95)))","v":10},{"$f":"IF($C95=\"\",\"\",COUNTA($C$88:$C95))","v":8},{"$f":"IF(INDEX(INDIRECT(\"Product_List\"),ROWS($88:95))=\"\",\"\",INDEX(INDIRECT(\"Product_List\"),ROWS($88:95)))","v":"08-ขนมปังไส้ถั่วแดง"},{"$f":"ยอดยกมา","v":0},null,null,null,null,null,null,0,null,{"$f":"INDIRECT(ADDRESS(ROW(A$80),ROW()-ROW(A$80)+(ROWS($88:95)-1)*2-1,4))","v":0},null,0,null,0,null,null,null,0,null,0,null,null,null,null,null,{"$f":"INDIRECT(ADDRESS(ROW(A$80),ROW()-ROW(A$80)+(ROWS($88:95)-1)*2,4))","v":0},0,null,0,{"$f":"INDIRECT(ADDRESS(ROW(A$80),ROW()-ROW(A$80)+(ROWS($88:95)-1)*2+1,4))","v":0},null,null,null,null,null,22,0,0,0]
[{"$f":"IF(B96=\"\",0,INDEX(Price_List,ROWS($88:96)))","v":10},{"$f":"IF($C96=\"\",\"\",COUNTA($C$88:$C96))","v":9},{"$f":"IF(INDEX(INDIRECT(\"Product_List\"),ROWS($88:96))=\"\",\"\",INDEX(INDIRECT(\"Product_List\"),ROWS($88:96)))","v":"09-ขนมปังไส้ถั่วดำ"},{"$f":"ยอดยกมา","v":0},null,null,null,null,null,null,0,null,{"$f":"INDIRECT(ADDRESS(ROW(A$80),ROW()-ROW(A$80)+(ROWS($88:96)-1)*2-1,4))","v":0},null,0,null,0,null,null,null,0,null,0,null,null,null,null,null,{"$f":"INDIRECT(ADDRESS(ROW(A$80),ROW()-ROW(A$80)+(ROWS($88:96)-1)*2,4))","v":0},0,null,0,{"$f":"INDIRECT(ADDRESS(ROW(A$80),ROW()-ROW(A$80)+(ROWS($88:96)-1)*2+1,4))","v":0},null,null,null,null,null,25,0,0,0]
[{"$f":"IF(B97=\"\",0,INDEX(Price_List,ROWS($88:97)))","v":10},{"$f":"IF($C97=\"\",\"\",COUNTA($C$88:$C97))","v":10},{"$f":"IF(INDEX(INDIRECT(\"Product_List\"),ROWS($88:97))=\"\",\"\",INDEX(INDIRECT(\"Product_List\"),ROWS($88:97)))","v":"10-ขนมปังไส้มันม่วง"},{"$f":"ยอดยกมา","v":0},null,null,null,null,null,null,0,null,{"$f":"INDIRECT(ADDRESS(ROW(A$80),ROW()-ROW(A$80)+(ROWS($88:97)-1)*2-1,4))","v":0},null,0,null,0,null,null,null,0,null,0,null,null,null,null,null,{"$f":"INDIRECT(ADDRESS(ROW(A$80),ROW()-ROW(A$80)+(ROWS($88:97)-1)*2,4))","v":0},0,null,0,{"$f":"INDIRECT(ADDRESS(ROW(A$80),ROW()-ROW(A$80)+(ROWS($88:97)-1)*2+1,4))","v":0},null,null,null,null,null,42,0,0,0]
[{"$f":"IF(B98=\"\",0,INDEX(Price_List,ROWS($88:98)))","v":15},{"$f":"IF($C98=\"\",\"\",COUNTA($C$88:$C98))","v":11},{"$f":"IF(INDEX(INDIRECT(\"Product_List\"),ROWS($88:98))=\"\",\"\",INDEX(INDIRECT(\"Product_List\"),ROWS($88:98)))","v":"11-เค้กกล้วยหอม"},{"$f":"ยอดยกมา","v":0},null,null,null,null,null,null,0,null,{"$f":"INDIRECT(ADDRESS(ROW(A$80),ROW()-ROW(A$80)+(ROWS($88:98)-1)*2-1,4))","v":0},null,0,null,0,null,null,null,0,null,0,null,null,null,null,null,{"$f":"INDIRECT(ADDRESS(ROW(A$80),ROW()-ROW(A$80)+(ROWS($88:98)-1)*2,4))","v":0},0,null,0,{"$f":"INDIRECT(ADDRESS(ROW(A$80),ROW()-ROW(A$80)+(ROWS($88:98)-1)*2+1,4))","v":0},null,null,null,null,null,"Total Deduct",null,null,{"$f":"SUM($AP$88:$AP$97)","v":0}]
[{"$f":"IF(B99=\"\",0,INDEX(Price_List,ROWS($88:99)))","v":15},{"$f":"IF($C99=\"\",\"\",COUNTA($C$88:$C99))","v":12},{"$f":"IF(INDEX(INDIRECT(\"Product_List\"),ROWS($88:99))=\"\",\"\",INDEX(INDIRECT(\"Product_List\"),ROWS($88:99)))","v":"12-เค้กบัตเตอร์"},{"$f":"ยอดยกมา","v":0},null,null,null,null,null,null,0,null,{"$f":"INDIRECT(ADDRESS(ROW(A$80),ROW()-ROW(A$80)+(ROWS($88:99)-1)*2-1,4))","v":0},null,0,null,0,null,null,null,0,null,0,null,null,null,null,null,{"$f":"INDIRECT(ADDRESS(ROW(A$80),ROW()-ROW(A$80)+(ROWS($88:99)-1)*2,4))","v":0},0,null,0,{"$f":"INDIRECT(ADDRESS(ROW(A$80),ROW()-ROW(A$80)+(ROWS($88:99)-1)*2+1,4))","v":0}]
[{"$f":"IF(B100=\"\",0,INDEX(Price_List,ROWS($88:100)))","v":15},{"$f":"IF($C100=\"\",\"\",COUNTA($C$88:$C100))","v":13},{"$f":"IF(INDEX(INDIRECT(\"Product_List\"),ROWS($88:100))=\"\",\"\",INDEX(INDIRECT(\"Product_List\"),ROWS($88:100)))","v":"13-ขนมปังโรลถั่วแดง"},{"$f":"ยอดยกมา","v":0},null,null,null,null,null,null,0,null,{"$f":"INDIRECT(ADDRESS(ROW(A$80),ROW()-ROW(A$80)+(ROWS($88:100)-1)*2-1,4))","v":0},null,0,null,0,null,null,null,0,null,0,null,null,null,null,null,{"$f":"INDIRECT(ADDRESS(ROW(A$80),ROW()-ROW(A$80)+(ROWS($88:100)-1)*2,4))","v":0},0,null,0,{"$f":"INDIRECT(ADDRESS(ROW(A$80),ROW()-ROW(A$80)+(ROWS($88:100)-1)*2+1,4))","v":0}]
[{"$f":"IF(B101=\"\",0,INDEX(Price_List,ROWS($88:101)))","v":15},{"$f":"IF($C101=\"\",\"\",COUNTA($C$88:$C101))","v":14},{"$f":"IF(INDEX(INDIRECT(\"Product_List\"),ROWS($88:101))=\"\",\"\",INDEX(INDIRECT(\"Product_List\"),ROWS($88:101)))","v":"14-ขนมปังไส้สังขยาใหญ่"},{"$f":"ยอดยกมา","v":0},null,null,null,null,null,null,0,null,{"$f":"INDIRECT(ADDRESS(ROW(A$80),ROW()-ROW(A$80)+(ROWS($88:101)-1)*2-1,4))","v":0},null,0,null,0,null,null,null,0,null,0,null,null,null,null,null,{"$f":"INDIRECT(ADDRESS(ROW(A$80),ROW()-ROW(A$80)+(ROWS($88:101)-1)*2,4))","v":0},0,null,0,{"$f":"INDIRECT(ADDRESS(ROW(A$80),ROW()-ROW(A$80)+(ROWS($88:101)-1)*2+1,4))","v":0}]
[{"$f":"IF(B102=\"\",0,INDEX(Price_List,ROWS($88:102)))","v":42},{"$f":"IF($C102=\"\",\"\",COUNTA($C$88:$C102))","v":15},{"$f":"IF(INDEX(INDIRECT(\"Product_List\"),ROWS($88:102))=\"\",\"\",INDEX(INDIRECT(\"Product_List\"),ROWS($88:102)))","v":"15-ขนมปังชนิดแผ่น(480กรัม)"},{"$f":"ยอดยกมา","v":0},null,null,null,null,null,null,0,null,{"$f":"INDIRECT(ADDRESS(ROW(A$80),ROW()-ROW(A$80)+(ROWS($88:102)-1)*2-1,4))","v":0},null,0,null,0,null,null,null,0,null,0,null,null,null,null,null,{"$f":"INDIRECT(ADDRESS(ROW(A$80),ROW()-ROW(A$80)+(ROWS($88:102)-1)*2,4))","v":0},0,null,0,{"$f":"INDIRECT(ADDRESS(ROW(A$80),ROW()-ROW(A$80)+(ROWS($88:102)-1)*2+1,4))","v":0}]
[{"$f":"IF(B103=\"\",0,INDEX(Price_List,ROWS($88:103)))","v":12},{"$f":"IF($C103=\"\",\"\",COUNTA($C$88:$C103))","v":16},{"$f":"IF(INDEX(INDIRECT(\"Product_List\"),ROWS($88:103))=\"\",\"\",INDEX(INDIRECT(\"Product_List\"),ROWS($88:103)))","v":"16-โมจิไส้ถั่ว"},{"$f":"ยอดยกมา","v":0},null,null,null,null,null,null,0,null,{"$f":"INDIRECT(ADDRESS(ROW(A$80),ROW()-ROW(A$80)+(ROWS($88:103)-1)*2-1,4))","v":0},null,0,null,0,null,null,null,0,null,0,null,null,null,null,null,{"$f":"INDIRECT(ADDRESS(ROW(A$80),ROW()-ROW(A$80)+(ROWS($88:103)-1)*2,4))","v":0},0,null,0,{"$f":"INDIRECT(ADDRESS(ROW(A$80),ROW()-ROW(A$80)+(ROWS($88:103)-1)*2+1,4))","v":0}]
[{"$f":"IF(B104=\"\",0,INDEX(Price_List,ROWS($88:104)))","v":12},{"$f":"IF($C104=\"\",\"\",COUNTA($C$88:$C104))","v":17},{"$f":"IF(INDEX(INDIRECT(\"Product_List\"),ROWS($88:104))=\"\",\"\",INDEX(INDIRECT(\"Product_List\"),ROWS($88:104)))","v":"17-โมจิไส้เผือก"},{"$f":"ยอดยกมา","v":0},null,null,null,null,null,null,0,null,{"$f":"INDIRECT(ADDRESS(ROW(A$80),ROW()-ROW(A$80)+(ROWS($88:104)-1)*2-1,4))","v":0},null,0,null,0,null,null,null,0,null,0,null,null,null,null,null,{"$f":"INDIRECT(ADDRESS(ROW(A$80),ROW()-ROW(A$80)+(ROWS($88:104)-1)*2,4))","v":0},0,null,0,{"$f":"INDIRECT(ADDRESS(ROW(A$80),ROW()-ROW(A$80)+(ROWS($88:104)-1)*2+1,4))","v":0}]
[{"$f":"IF(B105=\"\",0,INDEX(Price_List,ROWS($88:105)))","v":15},{"$f":"IF($C105=\"\",\"\",COUNTA($C$88:$C105))","v":18},{"$f":"IF(INDEX(INDIRECT(\"Product_List\"),ROWS($88:105))=\"\",\"\",INDEX(INDIRECT(\"Product_List\"),ROWS($88:105)))","v":"18-โมจิไส้ถั่วไข่เค็ม"},{"$f":"ยอดยกมา","v":0},null,null,null,null,null,null,0,null,{"$f":"INDIRECT(ADDRESS(ROW(A$80),ROW()-ROW(A$80)+(ROWS($88:105)-1)*2-1,4))","v":0},null,0,null,0,null,null,null,0,null,0,null,null,null,null,null,{"$f":"INDIRECT(ADDRESS(ROW(A$80),ROW()-ROW(A$80)+(ROWS($88:105)-1)*2,4))","v":0},0,null,0,{"$f":"INDIRECT(ADDRESS(ROW(A$80),ROW()-ROW(A$80)+(ROWS($88:105)-1)*2+1,4))","v":0}]
[{"$f":"IF(B106=\"\",0,INDEX(Price_List,ROWS($88:106)))","v":20},{"$f":"IF($C106=\"\",\"\",COUNTA($C$88:$C106))","v":19},{"$f":"IF(INDEX(INDIRECT(\"Product_List\"),ROWS($88:106))=\"\",\"\",INDEX(INDIRECT(\"Product_List\"),ROWS($88:106)))","v":"19-ขนมปังพิซซ่า"},{"$f":"ยอดยกมา","v":0},null,null,null,null,null,null,0,null,{"$f":"INDIRECT(ADDRESS(ROW(A$80),ROW()-ROW(A$80)+(ROWS($88:106)-1)*2-1,4))","v":0},null,0,null,0,null,null,null,0,null,0,null,null,null,null,null,{"$f":"INDIRECT(ADDRESS(ROW(A$80),ROW()-ROW(A$80)+(ROWS($88:106)-1)*2,4))","v":0},0,null,0,{"$f":"INDIRECT(ADDRESS(ROW(A$80),ROW()-ROW(A$80)+(ROWS($88:106)-1)*2+1,4))","v":0}]
[{"$f":"IF(B107=\"\",0,INDEX(Price_List,ROWS($88:107)))","v":20},{"$f":"IF($C107=\"\",\"\",COUNTA($C$88:$C107))","v":20},{"$f":"IF(INDEX(INDIRECT(\"Product_List\"),ROWS($88:107))=\"\",\"\",INDEX(INDIRECT(\"Product_List\"),ROWS($88:107)))","v":"20-ขนมปังพิซซ่าปูอัดแฮม"},{"$f":"ยอดยกมา","v":0},null,null,null,null,null,null,0,null,{"$f":"INDIRECT(ADDRESS(ROW(A$80),ROW()-ROW(A$80)+(ROWS($88:107)-1)*2-1,4))","v":0},null,0,null,0,null,null,null,0,null,0,null,null,null,null,null,{"$f":"INDIRECT(ADDRESS(ROW(A$80),ROW()-ROW(A$80)+(ROWS($88:107)-1)*2,4))","v":0},0,null,0,{"$f":"INDIRECT(ADDRESS(ROW(A$80),ROW()-ROW(A$80)+(ROWS($88:107)-1)*2+1,4))","v":0}]
[{"$f":"IF(B108=\"\",0,INDEX(Price_List,ROWS($88:108)))","v":20},{"$f":"IF($C108=\"\",\"\",COUNTA($C$88:$C108))","v":21},{"$f":"IF(INDEX(INDIRECT(\"Product_List\"),ROWS($88:108))=\"\",\"\",INDEX(INDIRECT(\"Product_List\"),ROWS($88:108)))","v":"21-ขนมปังไส้กรอก"},{"$f":"ยอดยกมา","v":0},null,null,null,null,null,null,0,null,{"$f":"INDIRECT(ADDRESS(ROW(A$80),ROW()-ROW(A$80)+(ROWS($88:108)-1)*2-1,4))","v":0},null,0,null,0,null,null,null,0,null,0,null,null,null,null,null,{"$f":"INDIRECT(ADDRESS(ROW(A$80),ROW()-ROW(A$80)+(ROWS($88:108)-1)*2,4))","v":0},0,null,0,{"$f":"INDIRECT(ADDRESS(ROW(A$80),ROW()-ROW(A$80)+(ROWS($88:108)-1)*2+1,4))","v":0}]
[{"$f":"IF(B109=\"\",0,INDEX(Price_List,ROWS($88:109)))","v":15},{"$f":"IF($C109=\"\",\"\",COUNTA($C$88:$C109))","v":22},{"$f":"IF(INDEX(INDIRECT(\"Product_List\"),ROWS($88:109))=\"\",\"\",INDEX(INDIRECT(\"Product_List\"),ROWS($88:109)))","v":"22-ขนมก้านบัว"},{"$f":"ยอดยกมา","v":0},null,null,null,null,null,null,0,null,{"$f":"INDIRECT(ADDRESS(ROW(A$80),ROW()-ROW(A$80)+(ROWS($88:109)-1)*2-1,4))","v":0},null,0,null,0,null,null,null,0,null,0,null,null,null,null,null,{"$f":"INDIRECT(ADDRESS(ROW(A$80),ROW()-ROW(A$80)+(ROWS($88:109)-1)*2,4))","v":0},0,null,0,{"$f":"INDIRECT(ADDRESS(ROW(A$80),ROW()-ROW(A$80)+(ROWS($88:109)-1)*2+1,4))","v":0}]
[{"$f":"IF(B110=\"\",0,INDEX(Price_List,ROWS($88:110)))","v":20},{"$f":"IF($C110=\"\",\"\",COUNTA($C$88:$C110))","v":23},{"$f":"IF(INDEX(INDIRECT(\"Product_List\"),ROWS($88:110))=\"\",\"\",INDEX(INDIRECT(\"Product_List\"),ROWS($88:110)))","v":"23-พายสับปะรด"},{"$f":"ยอดยกมา","v":0},null,null,null,null,null,null,0,null,{"$f":"INDIRECT(ADDRESS(ROW(A$80),ROW()-ROW(A$80)+(ROWS($88:110)-1)*2-1,4))","v":0},null,0,null,0,null,null,null,0,null,0,null,null,null,null,null,{"$f":"INDIRECT(ADDRESS(ROW(A$80),ROW()-ROW(A$80)+(ROWS($88:110)-1)*2,4))","v":0},0,null,0,{"$f":"INDIRECT(ADDRESS(ROW(A$80),ROW()-ROW(A$80)+(ROWS($88:110)-1)*2+1,4))","v":0}]
[{"$f":"IF(B111=\"\",0,INDEX(Price_List,ROWS($88:111)))","v":20},{"$f":"IF($C111=\"\",\"\",COUNTA($C$88:$C111))","v":24},{"$f":"IF(INDEX(INDIRECT(\"Product_List\"),ROWS($88:111))=\"\",\"\",INDEX(INDIRECT(\"Product_List\"),ROWS($88:111)))","v":"24-พายไส้มะพร้าว"},{"$f":"ยอดยกมา","v":0},null,null,null,null,null,null,0,null,{"$f":"INDIRECT(ADDRESS(ROW(A$80),ROW()-ROW(A$80)+(ROWS($88:111)-1)*2-1,4))","v":0},null,0,null,0,null,null,null,0,null,0,null,null,null,null,null,{"$f":"INDIRECT(ADDRESS(ROW(A$80),ROW()-ROW(A$80)+(ROWS($88:111)-1)*2,4))","v":0},0,null,0,{"$f":"INDIRECT(ADDRESS(ROW(A$80),ROW()-ROW(A$80)+(ROWS($88:111)-1)*2+1,4))","v":0}]
[{"$f":"IF(B112=\"\",0,INDEX(Price_List,ROWS($88:112)))","v":15},{"$f":"IF($C112=\"\",\"\",COUNTA($C$88:$C112))","v":25},{"$f":"IF(INDEX(INDIRECT(\"Product_List\"),ROWS($88:112))=\"\",\"\",INDEX(INDIRECT(\"Product_List\"),ROWS($88:112)))","v":"25-ขนมปังโรลมันเทศ"},{"$f":"ยอดยกมา","v":0},null,null,null,null,null,null,0,null,{"$f":"INDIRECT(ADDRESS(ROW(A$80),ROW()-ROW(A$80)+(ROWS($88:112)-1)*2-1,4))","v":0},null,0,null,0,null,null,null,0,null,0,null,null,null,null,null,{"$f":"INDIRECT(ADDRESS(ROW(A$80),ROW()-ROW(A$80)+(ROWS($88:112)-1)*2,4))","v":0},0,null,0,{"$f":"INDIRECT(ADDRESS(ROW(A$80),ROW()-ROW(A$80)+(ROWS($88:112)-1)*2+1,4))","v":0}]
[{"$f":"IF(B113=\"\",0,INDEX(Price_List,ROWS($88:113)))","v":15},{"$f":"IF($C113=\"\",\"\",COUNTA($C$88:$C113))","v":26},{"$f":"IF(INDEX(INDIRECT(\"Product_List\"),ROWS($88:113))=\"\",\"\",INDEX(INDIRECT(\"Product_List\"),ROWS($88:113)))","v":"26-ขนมปังไส้ครีมสลัดน้ำพริกเผา"},{"$f":"ยอดยกมา","v":0},null,null,null,null,null,null,0,null,{"$f":"INDIRECT(ADDRESS(ROW(A$80),ROW()-ROW(A$80)+(ROWS($88:113)-1)*2-1,4))","v":0},null,0,null,0,null,null,null,0,null,0,null,null,null,null,null,{"$f":"INDIRECT(ADDRESS(ROW(A$80),ROW()-ROW(A$80)+(ROWS($88:113)-1)*2,4))","v":0},0,null,0,{"$f":"INDIRECT(ADDRESS(ROW(A$80),ROW()-ROW(A$80)+(ROWS($88:113)-1)*2+1,4))","v":0}]
[{"$f":"IF(B114=\"\",0,INDEX(Price_List,ROWS($88:114)))","v":20},{"$f":"IF($C114=\"\",\"\",COUNTA($C$88:$C114))","v":27},{"$f":"IF(INDEX(INDIRECT(\"Product_List\"),ROWS($88:114))=\"\",\"\",INDEX(INDIRECT(\"Product_List\"),ROWS($88:114)))","v":"27-ขนมปังไส้สังขยาไข่"},{"$f":"ยอดยกมา","v":0},null,null,null,null,null,null,0,null,{"$f":"INDIRECT(ADDRESS(ROW(A$80),ROW()-ROW(A$80)+(ROWS($88:114)-1)*2-1,4))","v":0},null,0,null,0,null,null,null,0,null,0,null,null,null,null,null,{"$f":"INDIRECT(ADDRESS(ROW(A$80),ROW()-ROW(A$80)+(ROWS($88:114)-1)*2,4))","v":0},0,null,0,{"$f":"INDIRECT(ADDRESS(ROW(A$80),ROW()-ROW(A$80)+(ROWS($88:114)-1)*2+1,4))","v":0}]
[{"$f":"IF(B115=\"\",0,INDEX(Price_List,ROWS($88:115)))","v":20},{"$f":"IF($C115=\"\",\"\",COUNTA($C$88:$C115))","v":28},{"$f":"IF(INDEX(INDIRECT(\"Product_List\"),ROWS($88:115))=\"\",\"\",INDEX(INDIRECT(\"Product_List\"),ROWS($88:115)))","v":"28-ขนมปังไส้สังขยามะพร้าว"},{"$f":"ยอดยกมา","v":0},null,null,null,null,null,null,0,null,{"$f":"INDIRECT(ADDRESS(ROW(A$80),ROW()-ROW(A$80)+(ROWS($88:115)-1)*2-1,4))","v":0},null,0,null,0,null,null,null,0,null,0,null,null,null,null,null,{"$f":"INDIRECT(ADDRESS(ROW(A$80),ROW()-ROW(A$80)+(ROWS($88:115)-1)*2,4))","v":0},0,null,0,{"$f":"INDIRECT(ADDRESS(ROW(A$80),ROW()-ROW(A$80)+(ROWS($88:115)-1)*2+1,4))","v":0}]
[{"$f":"IF(B116=\"\",0,INDEX(Price_List,ROWS($88:116)))","v":10},{"$f":"IF($C116=\"\",\"\",COUNTA($C$88:$C116))","v":29},{"$f":"IF(INDEX(INDIRECT(\"Product_List\"),ROWS($88:116))=\"\",\"\",INDEX(INDIRECT(\"Product_List\"),ROWS($88:116)))","v":"29-ขนมปังไส้ครีมชาไทย"},{"$f":"ยอดยกมา","v":0},null,null,null,null,null,null,0,null,{"$f":"INDIRECT(ADDRESS(ROW(A$80),ROW()-ROW(A$80)+(ROWS($88:116)-1)*2-1,4))","v":0},null,0,null,0,null,null,null,0,null,0,null,null,null,null,null,{"$f":"INDIRECT(ADDRESS(ROW(A$80),ROW()-ROW(A$80)+(ROWS($88:116)-1)*2,4))","v":0},0,null,0,{"$f":"INDIRECT(ADDRESS(ROW(A$80),ROW()-ROW(A$80)+(ROWS($88:116)-1)*2+1,4))","v":0}]
[{"$f":"IF(B117=\"\",0,INDEX(Price_List,ROWS($88:117)))","v":15},{"$f":"IF($C117=\"\",\"\",COUNTA($C$88:$C117))","v":30},{"$f":"IF(INDEX(INDIRECT(\"Product_List\"),ROWS($88:117))=\"\",\"\",INDEX(INDIRECT(\"Product_List\"),ROWS($88:117)))","v":"30-ขนมปังโรลมันม่วง"},{"$f":"ยอดยกมา","v":0},null,null,null,null,null,null,0,null,{"$f":"INDIRECT(ADDRESS(ROW(A$80),ROW()-ROW(A$80)+(ROWS($88:117)-1)*2-1,4))","v":0},null,0,null,0,null,null,null,0,null,0,null,null,null,null,null,{"$f":"INDIRECT(ADDRESS(ROW(A$80),ROW()-ROW(A$80)+(ROWS($88:117)-1)*2,4))","v":0},0,null,0,{"$f":"INDIRECT(ADDRESS(ROW(A$80),ROW()-ROW(A$80)+(ROWS($88:117)-1)*2+1,4))","v":0}]
[{"$f":"IF(B118=\"\",0,INDEX(Price_List,ROWS($88:118)))","v":15},{"$f":"IF($C118=\"\",\"\",COUNTA($C$88:$C118))","v":31},{"$f":"IF(INDEX(INDIRECT(\"Product_List\"),ROWS($88:118))=\"\",\"\",INDEX(INDIRECT(\"Product_List\"),ROWS($88:118)))","v":"31-ขนมปังโรลช็อกโกแลต"},{"$f":"ยอดยกมา","v":0},null,null,null,null,null,null,0,null,{"$f":"INDIRECT(ADDRESS(ROW(A$80),ROW()-ROW(A$80)+(ROWS($88:118)-1)*2-1,4))","v":0},null,0,null,0,null,null,null,0,null,0,null,null,null,null,null,{"$f":"INDIRECT(ADDRESS(ROW(A$80),ROW()-ROW(A$80)+(ROWS($88:118)-1)*2,4))","v":0},0,null,0,{"$f":"INDIRECT(ADDRESS(ROW(A$80),ROW()-ROW(A$80)+(ROWS($88:118)-1)*2+1,4))","v":0}]
[{"$f":"IF(B119=\"\",0,INDEX(Price_List,ROWS($88:119)))","v":16},{"$f":"IF($C119=\"\",\"\",COUNTA($C$88:$C119))","v":32},{"$f":"IF(INDEX(INDIRECT(\"Product_List\"),ROWS($88:119))=\"\",\"\",INDEX(INDIRECT(\"Product_List\"),ROWS($88:119)))","v":"32-ขนมปังชนิดแผ่น(155กรัม)"},{"$f":"ยอดยกมา","v":0},null,null,null,null,null,null,0,null,{"$f":"INDIRECT(ADDRESS(ROW(A$80),ROW()-ROW(A$80)+(ROWS($88:119)-1)*2-1,4))","v":0},null,0,null,0,null,null,null,0,null,0,null,null,null,null,null,{"$f":"INDIRECT(ADDRESS(ROW(A$80),ROW()-ROW(A$80)+(ROWS($88:119)-1)*2,4))","v":0},0,null,0,{"$f":"INDIRECT(ADDRESS(ROW(A$80),ROW()-ROW(A$80)+(ROWS($88:119)-1)*2+1,4))","v":0}]
[{"$f":"IF(B120=\"\",0,INDEX(Price_List,ROWS($88:120)))","v":15},{"$f":"IF($C120=\"\",\"\",COUNTA($C$88:$C120))","v":33},{"$f":"IF(INDEX(INDIRECT(\"Product_List\"),ROWS($88:120))=\"\",\"\",INDEX(INDIRECT(\"Product_List\"),ROWS($88:120)))","v":"33-ขนมปังโรลเผือก"},{"$f":"ยอดยกมา","v":0},null,null,null,null,null,null,0,null,{"$f":"INDIRECT(ADDRESS(ROW(A$80),ROW()-ROW(A$80)+(ROWS($88:120)-1)*2-1,4))","v":0},null,0,null,0,null,null,null,0,null,0,null,null,null,null,null,{"$f":"INDIRECT(ADDRESS(ROW(A$80),ROW()-ROW(A$80)+(ROWS($88:120)-1)*2,4))","v":0},0,null,0,{"$f":"INDIRECT(ADDRESS(ROW(A$80),ROW()-ROW(A$80)+(ROWS($88:120)-1)*2+1,4))","v":0}]
[{"$f":"IF(B121=\"\",0,INDEX(Price_List,ROWS($88:121)))","v":15},{"$f":"IF($C121=\"\",\"\",COUNTA($C$88:$C121))","v":34},{"$f":"IF(INDEX(INDIRECT(\"Product_List\"),ROWS($88:121))=\"\",\"\",INDEX(INDIRECT(\"Product_List\"),ROWS($88:121)))","v":"34-ขนมปังไก่หยองน้ำสลัด Mini"},{"$f":"ยอดยกมา","v":0},null,null,null,null,null,null,0,null,{"$f":"INDIRECT(ADDRESS(ROW(A$80),ROW()-ROW(A$80)+(ROWS($88:121)-1)*2-1,4))","v":0},null,0,null,0,null,null,null,0,null,0,null,null,null,null,null,{"$f":"INDIRECT(ADDRESS(ROW(A$80),ROW()-ROW(A$80)+(ROWS($88:121)-1)*2,4))","v":0},0,null,0,{"$f":"INDIRECT(ADDRESS(ROW(A$80),ROW()-ROW(A$80)+(ROWS($88:121)-1)*2+1,4))","v":0}]
[{"$f":"IF(B122=\"\",0,INDEX(Price_List,ROWS($88:122)))","v":10},{"$f":"IF($C122=\"\",\"\",COUNTA($C$88:$C122))","v":35},{"$f":"IF(INDEX(INDIRECT(\"Product_List\"),ROWS($88:122))=\"\",\"\",INDEX(INDIRECT(\"Product_List\"),ROWS($88:122)))","v":"35-ขนมปังไส้ช็อกโกแลต"},{"$f":"ยอดยกมา","v":0},null,null,null,null,null,null,0,null,{"$f":"INDIRECT(ADDRESS(ROW(A$80),ROW()-ROW(A$80)+(ROWS($88:122)-1)*2-1,4))","v":0},null,0,null,0,null,null,null,0,null,0,null,null,null,null,null,{"$f":"INDIRECT(ADDRESS(ROW(A$80),ROW()-ROW(A$80)+(ROWS($88:122)-1)*2,4))","v":0},0,null,0,{"$f":"INDIRECT(ADDRESS(ROW(A$80),ROW()-ROW(A$80)+(ROWS($88:122)-1)*2+1,4))","v":0}]
[{"$f":"IF(B123=\"\",0,INDEX(Price_List,ROWS($88:123)))","v":10},{"$f":"IF($C123=\"\",\"\",COUNTA($C$88:$C123))","v":36},{"$f":"IF(INDEX(INDIRECT(\"Product_List\"),ROWS($88:123))=\"\",\"\",INDEX(INDIRECT(\"Product_List\"),ROWS($88:123)))","v":"36-ขนมปังไส้ครีมสังขยาไข่"},{"$f":"ยอดยกมา","v":0},null,null,null,null,null,null,0,null,{"$f":"INDIRECT(ADDRESS(ROW(A$80),ROW()-ROW(A$80)+(ROWS($88:123)-1)*2-1,4))","v":0},null,0,null,0,null,null,null,0,null,0,null,null,null,null,null,{"$f":"INDIRECT(ADDRESS(ROW(A$80),ROW()-ROW(A$80)+(ROWS($88:123)-1)*2,4))","v":0},0,null,0,{"$f":"INDIRECT(ADDRESS(ROW(A$80),ROW()-ROW(A$80)+(ROWS($88:123)-1)*2+1,4))","v":0}]
[{"$f":"IF(B124=\"\",0,INDEX(Price_List,ROWS($88:124)))","v":20},{"$f":"IF($C124=\"\",\"\",COUNTA($C$88:$C124))","v":37},{"$f":"IF(INDEX(INDIRECT(\"Product_List\"),ROWS($88:124))=\"\",\"\",INDEX(INDIRECT(\"Product_List\"),ROWS($88:124)))","v":"37-ขนมปังพิซซ่าฮาวายเอี้ยน"},{"$f":"ยอดยกมา","v":0},null,null,null,null,null,null,0,null,{"$f":"INDIRECT(ADDRESS(ROW(A$80),ROW()-ROW(A$80)+(ROWS($88:124)-1)*2-1,4))","v":0},null,0,null,0,null,null,null,0,null,0,null,null,null,null,null,{"$f":"INDIRECT(ADDRESS(ROW(A$80),ROW()-ROW(A$80)+(ROWS($88:124)-1)*2,4))","v":0},0,null,0,{"$f":"INDIRECT(ADDRESS(ROW(A$80),ROW()-ROW(A$80)+(ROWS($88:124)-1)*2+1,4))","v":0}]
[{"$f":"IF(B125=\"\",0,INDEX(Price_List,ROWS($88:125)))","v":20},{"$f":"IF($C125=\"\",\"\",COUNTA($C$88:$C125))","v":38},{"$f":"IF(INDEX(INDIRECT(\"Product_List\"),ROWS($88:125))=\"\",\"\",INDEX(INDIRECT(\"Product_List\"),ROWS($88:125)))","v":"38-ครัวซองต์หมูหยองน้ำสลัด"},{"$f":"ยอดยกมา","v":0},null,null,null,null,null,null,0,null,{"$f":"INDIRECT(ADDRESS(ROW(A$80),ROW()-ROW(A$80)+(ROWS($88:125)-1)*2-1,4))","v":0},null,0,null,0,null,null,null,0,null,0,null,null,null,null,null,{"$f":"INDIRECT(ADDRESS(ROW(A$80),ROW()-ROW(A$80)+(ROWS($88:125)-1)*2,4))","v":0},0,null,0,{"$f":"INDIRECT(ADDRESS(ROW(A$80),ROW()-ROW(A$80)+(ROWS($88:125)-1)*2+1,4))","v":0}]
[{"$f":"IF(B126=\"\",0,INDEX(Price_List,ROWS($88:126)))","v":15},{"$f":"IF($C126=\"\",\"\",COUNTA($C$88:$C126))","v":39},{"$f":"IF(INDEX(INDIRECT(\"Product_List\"),ROWS($88:126))=\"\",\"\",INDEX(INDIRECT(\"Product_List\"),ROWS($88:126)))","v":"39-แพนเบรดไส้เผือก"},{"$f":"ยอดยกมา","v":0},null,null,null,null,null,null,0,null,{"$f":"INDIRECT(ADDRESS(ROW(A$80),ROW()-ROW(A$80)+(ROWS($88:126)-1)*2-1,4))","v":0},null,0,null,0,null,null,null,0,null,0,null,null,null,null,null,{"$f":"INDIRECT(ADDRESS(ROW(A$80),ROW()-ROW(A$80)+(ROWS($88:126)-1)*2,4))","v":0},0,null,0,{"$f":"INDIRECT(ADDRESS(ROW(A$80),ROW()-ROW(A$80)+(ROWS($88:126)-1)*2+1,4))","v":0}]
[{"$f":"IF(B127=\"\",0,INDEX(Price_List,ROWS($88:127)))","v":15},{"$f":"IF($C127=\"\",\"\",COUNTA($C$88:$C127))","v":40},{"$f":"IF(INDEX(INDIRECT(\"Product_List\"),ROWS($88:127))=\"\",\"\",INDEX(INDIRECT(\"Product_List\"),ROWS($88:127)))","v":"40-แพนเบรดไส้ถั่วแดง"},{"$f":"ยอดยกมา","v":0},null,null,null,null,null,null,0,null,{"$f":"INDIRECT(ADDRESS(ROW(A$80),ROW()-ROW(A$80)+(ROWS($88:127)-1)*2-1,4))","v":0},null,0,null,0,null,null,null,0,null,0,null,null,null,null,null,{"$f":"INDIRECT(ADDRESS(ROW(A$80),ROW()-ROW(A$80)+(ROWS($88:127)-1)*2,4))","v":0},0,null,0,{"$f":"INDIRECT(ADDRESS(ROW(A$80),ROW()-ROW(A$80)+(ROWS($88:127)-1)*2+1,4))","v":0}]
[{"$f":"IF(B128=\"\",0,INDEX(Price_List,ROWS($88:128)))","v":12},{"$f":"IF($C128=\"\",\"\",COUNTA($C$88:$C128))","v":41},{"$f":"IF(INDEX(INDIRECT(\"Product_List\"),ROWS($88:128))=\"\",\"\",INDEX(INDIRECT(\"Product_List\"),ROWS($88:128)))","v":"41-ขนมปังกรอบเนยน้ำตาล(30กรัม)"},{"$f":"ยอดยกมา","v":0},null,null,null,null,null,null,0,null,{"$f":"INDIRECT(ADDRESS(ROW(A$80),ROW()-ROW(A$80)+(ROWS($88:128)-1)*2-1,4))","v":0},null,0,null,0,null,null,null,0,null,0,null,null,null,null,null,{"$f":"INDIRECT(ADDRESS(ROW(A$80),ROW()-ROW(A$80)+(ROWS($88:128)-1)*2,4))","v":0},0,null,0,{"$f":"INDIRECT(ADDRESS(ROW(A$80),ROW()-ROW(A$80)+(ROWS($88:128)-1)*2+1,4))","v":0}]
[{"$f":"IF(B129=\"\",0,INDEX(Price_List,ROWS($88:129)))","v":18},{"$f":"IF($C129=\"\",\"\",COUNTA($C$88:$C129))","v":42},{"$f":"IF(INDEX(INDIRECT(\"Product_List\"),ROWS($88:129))=\"\",\"\",INDEX(INDIRECT(\"Product_List\"),ROWS($88:129)))","v":"42-ขนมปังชนิดแผ่นโฮลวีต"},{"$f":"ยอดยกมา","v":0},null,null,null,null,null,null,0,null,{"$f":"INDIRECT(ADDRESS(ROW(A$80),ROW()-ROW(A$80)+(ROWS($88:129)-1)*2-1,4))","v":0},null,0,null,0,null,null,null,0,null,0,null,null,null,null,null,{"$f":"INDIRECT(ADDRESS(ROW(A$80),ROW()-ROW(A$80)+(ROWS($88:129)-1)*2,4))","v":0},0,null,0,{"$f":"INDIRECT(ADDRESS(ROW(A$80),ROW()-ROW(A$80)+(ROWS($88:129)-1)*2+1,4))","v":0}]
[{"$f":"IF(B130=\"\",0,INDEX(Price_List,ROWS($88:130)))","v":12},{"$f":"IF($C130=\"\",\"\",COUNTA($C$88:$C130))","v":43},{"$f":"IF(INDEX(INDIRECT(\"Product_List\"),ROWS($88:130))=\"\",\"\",INDEX(INDIRECT(\"Product_List\"),ROWS($88:130)))","v":"43-เค้กโรลใบเตย"},{"$f":"ยอดยกมา","v":0},null,null,null,null,null,null,{"$f":"D130+E130+J130-I130+H130","v":0},null,{"$f":"INDIRECT(ADDRESS(ROW(A$80),ROW()-ROW(A$80)+(ROWS($88:130)-1)*2-1,4))","v":0},null,{"$f":"F130+G130+M130+J130-K130","v":0},null,{"$f":"O130*A130","v":0},null,null,null,{"$f":"D130+E130-F130-G130","v":0},null,{"$f":"U130*6%+U130","v":0},null,null,null,null,null,{"$f":"INDIRECT(ADDRESS(ROW(A$80),ROW()-ROW(A$80)+(ROWS($88:130)-1)*2,4))","v":0},0,null,0,{"$f":"INDIRECT(ADDRESS(ROW(A$80),ROW()-ROW(A$80)+(ROWS($88:130)-1)*2+1,4))","v":0}]
[{"$f":"IF(B131=\"\",0,INDEX(Price_List,ROWS($88:131)))","v":12},{"$f":"IF($C131=\"\",\"\",COUNTA($C$88:$C131))","v":44},{"$f":"IF(INDEX(INDIRECT(\"Product_List\"),ROWS($88:131))=\"\",\"\",INDEX(INDIRECT(\"Product_List\"),ROWS($88:131)))","v":"44-ขนมโมจิไส้ถั่วดำ"},{"$f":"ยอดยกมา","v":0},null,null,null,null,null,null,{"$f":"D131+E131+J131-I131+H131","v":0},null,{"$f":"INDIRECT(ADDRESS(ROW(A$80),ROW()-ROW(A$80)+(ROWS($88:131)-1)*2-1,4))","v":0},null,{"$f":"F131+G131+M131+J131-K131","v":0},null,{"$f":"O131*A131","v":0},null,null,null,{"$f":"D131+E131-F131-G131","v":0},null,{"$f":"U131*6%+U131","v":0},null,null,null,null,null,{"$f":"INDIRECT(ADDRESS(ROW(A$80),ROW()-ROW(A$80)+(ROWS($88:131)-1)*2,4))","v":0},0,null,0,{"$f":"INDIRECT(ADDRESS(ROW(A$80),ROW()-ROW(A$80)+(ROWS($88:131)-1)*2+1,4))","v":0}]
[{"$f":"IF(B132=\"\",0,INDEX(Price_List,ROWS($88:132)))","v":25},{"$f":"IF($C132=\"\",\"\",COUNTA($C$88:$C132))","v":45},{"$f":"IF(INDEX(INDIRECT(\"Product_List\"),ROWS($88:132))=\"\",\"\",INDEX(INDIRECT(\"Product_List\"),ROWS($88:132)))","v":"45-ครัวซองต์ไส้กรอกชีส"},{"$f":"ยอดยกมา","v":0},null,null,null,null,null,null,{"$f":"D132+E132+J132-I132+H132","v":0},null,{"$f":"INDIRECT(ADDRESS(ROW(A$80),ROW()-ROW(A$80)+(ROWS($88:132)-1)*2-1,4))","v":0},null,{"$f":"F132+G132+M132+J132-K132","v":0},null,{"$f":"O132*A132","v":0},null,null,null,{"$f":"D132+E132-F132-G132","v":0},null,{"$f":"U132*6%+U132","v":0},null,null,null,null,null,{"$f":"INDIRECT(ADDRESS(ROW(A$80),ROW()-ROW(A$80)+(ROWS($88:132)-1)*2,4))","v":0},0,null,0,{"$f":"INDIRECT(ADDRESS(ROW(A$80),ROW()-ROW(A$80)+(ROWS($88:132)-1)*2+1,4))","v":0}]
[{"$f":"IF(B133=\"\",0,INDEX(Price_List,ROWS($88:133)))","v":12},{"$f":"IF($C133=\"\",\"\",COUNTA($C$88:$C133))","v":46},{"$f":"IF(INDEX(INDIRECT(\"Product_List\"),ROWS($88:133))=\"\",\"\",INDEX(INDIRECT(\"Product_List\"),ROWS($88:133)))","v":"46-ขนมเปี๊ยะไส้ถั่ว"},{"$f":"ยอดยกมา","v":0},null,null,null,null,null,null,0,null,{"$f":"INDIRECT(ADDRESS(ROW(A$80),ROW()-ROW(A$80)+(ROWS($88:133)-1)*2-1,4))","v":0},null,0,null,0,null,null,null,0,null,0,null,null,null,null,null,{"$f":"INDIRECT(ADDRESS(ROW(A$80),ROW()-ROW(A$80)+(ROWS($88:133)-1)*2,4))","v":0},0,null,0,{"$f":"INDIRECT(ADDRESS(ROW(A$80),ROW()-ROW(A$80)+(ROWS($88:133)-1)*2+1,4))","v":0}]
[{"$f":"IF(B134=\"\",0,INDEX(Price_List,ROWS($88:134)))","v":12},{"$f":"IF($C134=\"\",\"\",COUNTA($C$88:$C134))","v":47},{"$f":"IF(INDEX(INDIRECT(\"Product_List\"),ROWS($88:134))=\"\",\"\",INDEX(INDIRECT(\"Product_List\"),ROWS($88:134)))","v":"47-ขนมเปี๊ยะไส้ฟัก"},{"$f":"ยอดยกมา","v":0},null,null,null,null,null,null,{"$f":"D134+E134+J134-I134+H134","v":0},null,{"$f":"INDIRECT(ADDRESS(ROW(A$80),ROW()-ROW(A$80)+(ROWS($88:134)-1)*2-1,4))","v":0},null,{"$f":"F134+G134+M134+J134-K134","v":0},null,{"$f":"O134*A134","v":0},null,null,null,{"$f":"D134+E134-F134-G134","v":0},null,{"$f":"U134*6%+U134","v":0},null,null,null,null,null,{"$f":"INDIRECT(ADDRESS(ROW(A$80),ROW()-ROW(A$80)+(ROWS($88:134)-1)*2,4))","v":0},0,null,0,{"$f":"INDIRECT(ADDRESS(ROW(A$80),ROW()-ROW(A$80)+(ROWS($88:134)-1)*2+1,4))","v":0}]
[{"$f":"IF(B135=\"\",0,INDEX(Price_List,ROWS($88:135)))","v":12},{"$f":"IF($C135=\"\",\"\",COUNTA($C$88:$C135))","v":48},{"$f":"IF(INDEX(INDIRECT(\"Product_List\"),ROWS($88:135))=\"\",\"\",INDEX(INDIRECT(\"Product_List\"),ROWS($88:135)))","v":"48-มังกี้เค้ก"},{"$f":"ยอดยกมา","v":0},null,null,null,null,null,null,0,null,{"$f":"INDIRECT(ADDRESS(ROW(A$80),ROW()-ROW(A$80)+(ROWS($88:135)-1)*2-1,4))","v":0},null,0,null,0,null,null,null,0,null,0,null,null,null,null,null,{"$f":"INDIRECT(ADDRESS(ROW(A$80),ROW()-ROW(A$80)+(ROWS($88:135)-1)*2,4))","v":0},0,null,0,{"$f":"INDIRECT(ADDRESS(ROW(A$80),ROW()-ROW(A$80)+(ROWS($88:135)-1)*2+1,4))","v":0}]
["รวม",null,null,{"$f":"SUM(D$88:D$135)","v":0},0,0,0,0,0,0,0,null,{"$f":"SUM(M$88:M$135)","v":0},null,null,null,{"$f":"$AP$98","v":0},null,"บาท",null,{"$f":"SUM(U$88:U$135)","v":0},null,{"$f":"SUM(W$88:W$135)","v":0},null,null,null,null,null,{"$f":"SUM(AC$88:AC$135)","v":0},{"$f":"SUM(AD$88:AD$135)","v":0},{"$f":"SUM(AE$88:AE$135)","v":0},{"$f":"SUM(AF$88:AF$135)","v":0},{"$f":"SUM(AG$88:AG$135)","v":0}]
["เลขที่ไมล์ เวลาออกทำงาน",null,null,{"$f":"$BF$3","v":0},null,"Km","น้ำหนักของเสีย"]
["เลขที่ไมล์ เวลากลับ",null,null,{"$f":"$BF$4","v":0},null,"Km",{"$f":"$AA$5","v":0},null,"KG"]
["เวลากลับถึงสำนักงาน",null,null,{"$f":"$BF$1","v":"00:00:00"},null,"น."]
["เติมน้ำมัน",null,null,{"$f":"$AX3","v":0},null,"บาท"]
["จำนวนน้ำมัน",null,null,{"$f":"$AX4","v":0},null,"ลิตร"]
["ยอดรวมต้นทุนสาขา",null,null,{"$f":"$AX5","v":0},null,"บาท"]

{"sheet":"15","index":19,"n_rows":142,"n_cols":154,"rows_kept":142,"cut":false,"hidden":false,"merged":[[83,132,83,133],[129,10,129,11],[129,12,129,13],[129,14,129,15],[129,16,129,17],[127,10,127,11],[127,12,127,13],[127,14,127,15],[127,16,127,17],[127,20,127,21],[127,22,127,23],[127,24,127,25],[127,33,127,36],[126,10,126,11],[126,12,126,13],[126,14,126,15],[126,16,126,17],[128,10,128,11],[128,12,128,13],[129,24,129,25],[125,10,125,11],[125,12,125,13],[125,14,125,15],[125,16,125,17],[7,132,7,134],[8,132,8,134],[80,132,80,133],[82,132,82,133],[7,135,7,137],[8,135,8,137],[80,135,80,136],[82,135,82,136],[7,138,7,140],[7,141,7,143],[7,147,7,149],[8,138,8,140],[141,0,141,2],[141,3,141,4],[138,0,138,2],[138,3,138,4],[139,0,139,2],[139,3,139,4],[140,0,140,2],[140,3,140,4],[135,24,135,25],[135,33,135,36],[136,0,136,2],[136,3,136,4],[137,0,137,2],[137,3,137,4],[137,6,137,7],[137,18,137,21],[135,0,135,2],[135,10,135,11],[135,12,135,13],[135,14,135,15],[135,16,135,17],[135,18,135,19],[135,20,135,21],[135,22,135,23],[128,14,128,15],[128,16,128,17],[128,20,128,21],[128,22,128,23],[129,20,129,21],[129,22,129,23],[131,16,131,17],[132,16,132,17],[134,16,134,17],[131,20,131,21],[132,20,132,21],[134,20,134,21],[131,22,131,23],[132,22,132,23],[134,22,134,23],[131,24,131,25],[132,24,132,25],[134,24,134,25],[129,33,129,36],[128,24,128,25],[128,33,128,36],[126,20,126,21],[126,22,126,23],[124,24,124,25],[124,33,124,36],[125,20,125,21],[125,22,125,23],[125,24,125,25],[125,33,125,36],[124,10,124,11],[124,12,124,13],[124,14,124,15],[124,16,124,17],[124,20,124,21],[124,22,124,23],[126,24,126,25],[126,33,126,36],[122,24,122,25],[122,33,122,36],[123,10,123,11],[123,12,123,13],[123,14,123,15],[123,16,123,17],[123,20,123,21],[123,22,123,23],[123,24,123,25],[123,33,123,36],[122,10,122,11],[122,12,122,13],[122,14,122,15],[122,16,122,17],[122,20,122,21],[122,22,122,23],[120,24,120,25],[120,33,120,36],[121,10,121,11],[121,12,121,13],[121,14,121,15],[121,16,121,17],[121,20,121,21],[121,22,121,23],[121,24,121,25],[121,33,121,36],[120,10,120,11],[120,12,120,13],[120,14,120,15],[120,16,120,17],[120,20,120,21],[120,22,120,23],[118,24,118,25],[118,33,118,36],[119,10,119,11],[119,12,119,13],[119,14,119,15],[119,16,119,17],[119,20,119,21],[119,22,119,23],[119,24,119,25],[119,33,119,36],[118,10,118,11],[118,12,118,13],[118,14,118,15],[118,16,118,17],[118,20,118,21],[118,22,118,23],[116,24,116,25],[116,33,116,36],[117,10,117,11],[117,12,117,13],[117,14,117,15],[117,16,117,17],[117,20,117,21],[117,22,117,23],[117,24,117,25],[117,33,117,36],[116,10,116,11],[116,12,116,13],[116,14,116,15],[116,16,116,17],[116,20,116,21],[116,22,116,23],[114,24,114,25],[114,33,114,36],[115,10,115,11],[115,12,115,13],[115,14,115,15],[115,16,115,17],[115,20,115,21],[115,22,115,23],[115,24,115,25],[115,33,115,36],[114,10,114,11],[114,12,114,13],[114,14,114,15],[114,16,114,17],[114,20,114,21],[114,22,114,23],[112,24,112,25],[112,33,112,36],[113,10,113,11],[113,12,113,13],[113,14,113,15],[113,16,113,17],[113,20,113,21],[113,22,113,23],[113,24,113,25],[113,33,113,36],[112,10,112,11],[112,12,112,13],[112,14,112,15],[112,16,112,17],[112,20,112,21],[112,22,112,23],[110,24,110,25],[110,33,110,36],[111,10,111,11],[111,12,111,13],[111,14,111,15],[111,16,111,17],[111,20,111,21],[111,22,111,23],[111,24,111,25],[111,33,111,36],[110,10,110,11],[110,12,110,13],[110,14,110,15],[110,16,110,17],[110,20,110,21],[110,22,110,23],[108,24,108,25],[108,33,108,36],[109,10,109,11],[109,12,109,13],[109,14,109,15],[109,16,109,17],[109,20,109,21],[109,22,109,23],[109,24,109,25],[109,33,109,36],[108,10,108,11],[108,12,108,13],[108,14,108,15],[108,16,108,17],[108,20,108,21],[108,22,108,23],[106,24,106,25],[106,33,106,36],[107,10,107,11],[107,12,107,13],[107,14,107,15],[107,16,107,17],[107,20,107,21],[107,22,107,23],[107,24,107,25],[107,33,107,36],[106,10,106,11],[106,12,106,13],[106,14,106,15],[106,16,106,17],[106,20,106,21],[106,22,106,23],[104,24,104,25],[104,33,104,36],[105,10,105,11],[105,12,105,13],[105,14,105,15],[105,16,105,17],[105,20,105,21],[105,22,105,23],[105,24,105,25],[105,33,105,36],[104,10,104,11],[104,12,104,13],[104,14,104,15],[104,16,104,17],[104,20,104,21],[104,22,104,23],[102,24,102,25],[102,33,102,36],[103,10,103,11],[103,12,103,13],[103,14,103,15],[103,16,103,17],[103,20,103,21],[103,22,103,23],[103,24,103,25],[103,33,103,36],[102,10,102,11],[102,12,102,13],[102,14,102,15],[102,16,102,17],[102,20,102,21],[102,22,102,23],[101,10,101,11],[101,12,101,13],[101,14,101,15],[101,16,101,17],[101,20,101,21],[101,22,101,23],[101,24,101,25],[101,33,101,36],[100,10,100,11],[100,12,100,13],[100,14,100,15],[100,16,100,17],[100,20,100,21],[100,22,100,23],[99,10,99,11],[99,12,99,13],[99,14,99,15],[99,16,99,17],[99,20,99,21],[99,22,99,23],[99,24,99,25],[99,33,99,36],[100,24,100,25],[100,33,100,36],[97,24,97,25],[97,33,97,36],[97,38,97,40],[98,10,98,11],[98,12,98,13],[98,14,98,15],[98,16,98,17],[98,20,98,21],[98,22,98,23],[98,24,98,25],[97,10,97,11],[97,12,97,13],[97,14,97,15],[97,16,97,17],[97,20,97,21],[97,22,97,23],[98,33,98,36],[95,24,95,25],[95,33,95,36],[96,10,96,11],[96,12,96,13],[96,14,96,15],[96,16,96,17],[96,20,96,21],[96,22,96,23],[96,24,96,25],[96,33,96,36],[95,10,95,11],[95,12,95,13],[95,14,95,15],[95,16,95,17],[95,20,95,21],[95,22,95,23],[93,24,93,25],[93,33,93,36],[94,10,94,11],[94,12,94,13],[94,14,94,15],[94,16,94,17],[94,20,94,21],[94,22,94,23],[94,24,94,25],[94,33,94,36],[93,10,93,11],[93,12,93,13],[93,14,93,15],[93,16,93,17],[93,20,93,21],[93,22,93,23],[91,24,91,25],[91,33,91,36],[92,10,92,11],[92,12,92,13],[92,14,92,15],[92,16,92,17],[92,20,92,21],[92,22,92,23],[92,24,92,25],[92,33,92,36],[91,10,91,11],[91,12,91,13],[91,14,91,15],[91,16,91,17],[91,20,91,21],[91,22,91,23],[86,22,86,23],[86,24,86,25],[88,20,88,21],[88,22,88,23],[88,24,88,25],[88,33,88,36],[89,24,89,25],[89,33,89,36],[90,10,90,11],[90,12,90,13],[90,14,90,15],[90,16,90,17],[90,20,90,21],[90,22,90,23],[90,24,90,25],[90,33,90,36],[89,10,89,11],[89,12,89,13],[89,14,89,15],[89,16,89,17],[89,20,89,21],[89,22,89,23],[83,36,83,37],[83,39,83,40],[83,42,83,43],[83,45,83,46],[83,48,83,49],[83,51,83,52],[83,150,83,153],[86,10,86,11],[86,12,86,13],[86,14,86,15],[86,16,86,17],[86,20,86,21],[83,108,83,109],[83,111,83,112],[83,114,83,115],[83,117,83,118],[83,120,83,121],[83,123,83,124],[83,90,83,91],[83,93,83,94],[83,96,83,97],[83,99,83,100],[83,102,83,103],[83,105,83,106],[82,39,82,40],[82,42,82,43],[82,45,82,46],[82,48,82,49],[83,84,83,85],[83,87,83,88],[83,54,83,55],[83,57,83,58],[83,60,83,61],[83,63,83,64],[83,66,83,67],[83,69,83,70],[83,72,83,73],[83,75,83,76],[83,78,83,79],[83,81,83,82],[83,0,83,5],[83,6,83,7],[83,9,83,10],[83,12,83,13],[83,15,83,16],[82,105,82,106],[82,108,82,109],[82,111,82,112],[82,114,82,115],[82,87,82,88],[82,90,82,91],[82,93,82,94],[82,96,82,97],[82,99,82,100],[82,102,82,103],[82,69,82,70],[82,72,82,73],[82,75,82,76],[82,78,82,79],[82,81,82,82],[82,84,82,85],[82,51,82,52],[82,54,82,55],[82,57,82,58],[82,15,82,16],[82,18,82,19],[82,21,82,22],[82,24,82,25],[82,27,82,28],[82,30,82,31],[81,0,81,2],[81,3,81,5],[81,150,82,153],[82,0,82,2],[82,3,82,4],[82,6,82,7],[82,9,82,10],[82,12,82,13],[82,123,82,124],[82,126,82,127],[82,129,82,130],[82,117,82,118],[82,120,82,121],[82,60,82,61],[82,63,82,64],[82,66,82,67],[82,33,82,34],[82,36,82,37],[80,114,80,115],[80,117,80,118],[80,120,80,121],[80,123,80,124],[80,126,80,127],[80,129,80,130],[80,96,80,97],[80,99,80,100],[80,102,80,103],[80,105,80,106],[80,108,80,109],[80,111,80,112],[80,78,80,79],[80,81,80,82],[80,87,80,88],[80,90,80,91],[80,93,80,94],[80,60,80,61],[80,63,80,64],[80,66,80,67],[80,69,80,70],[80,72,80,73],[80,75,80,76],[80,84,80,85],[79,0,79,5],[80,0,80,5],[80,6,80,7],[80,9,80,10],[80,12,80,13],[80,15,80,16],[80,18,80,19],[80,21,80,22],[8,114,8,116],[8,78,8,80],[8,81,8,83],[8,87,8,89],[8,90,8,92],[8,93,8,95],[8,60,8,62],[8,63,8,65],[8,66,8,68],[8,69,8,71],[8,72,8,74],[8,75,8,77],[8,54,8,56],[8,57,8,59],[8,24,8,26],[8,27,8,29],[8,120,8,122],[8,123,8,125],[8,126,8,128],[8,129,8,131],[8,96,8,98],[8,99,8,101],[8,102,8,104],[8,105,8,107],[8,108,8,110],[8,111,8,113],[8,33,8,35],[8,36,8,38],[8,39,8,41],[8,84,8,86],[7,150,8,150],[7,151,8,151],[8,6,8,8],[8,9,8,11],[8,12,8,14],[8,15,8,17],[8,18,8,20],[8,21,8,23],[7,114,7,116],[7,117,7,119],[7,120,7,122],[7,123,7,125],[7,126,7,128],[7,129,7,131],[7,96,7,98],[7,99,7,101],[7,102,7,104],[7,105,7,107],[7,108,7,110],[8,117,8,119],[7,87,7,89],[7,90,7,92],[7,93,7,95],[7,60,7,62],[7,63,7,65],[7,66,7,68],[7,69,7,71],[7,72,7,74],[7,75,7,77],[7,54,7,56],[7,57,7,59],[7,24,7,26],[7,27,7,29],[7,30,7,32],[7,33,7,35],[7,36,7,38],[7,39,7,41],[7,84,7,86],[6,150,6,151],[6,152,8,152],[6,153,8,153],[7,6,7,8],[7,9,7,11],[7,12,7,14],[7,15,7,17],[7,18,7,20],[7,21,7,23],[6,117,6,119],[6,120,6,122],[6,123,6,125],[6,126,6,128],[6,129,6,131],[6,99,6,101],[6,102,6,104],[6,105,6,107],[6,108,6,110],[6,111,6,113],[6,54,6,56],[6,57,6,59],[7,111,7,113],[7,78,7,80],[7,81,7,83],[6,0,8,0],[6,1,8,1],[6,2,8,2],[6,3,8,3],[6,4,8,4],[6,6,6,8],[6,45,6,47],[6,48,6,50],[6,51,6,53],[7,42,7,44],[7,45,7,47],[7,48,7,50],[7,51,7,53],[8,42,8,44],[8,45,8,47],[8,48,8,50],[8,51,8,53],[6,27,6,29],[6,30,6,32],[6,33,6,35],[6,36,6,38],[6,39,6,41],[6,42,6,44],[8,30,8,32],[4,26,4,29],[4,30,4,31],[4,32,4,34],[4,35,4,36],[6,9,6,11],[6,12,6,14],[6,15,6,17],[6,18,6,20],[6,21,6,23],[6,24,6,26],[3,41,3,44],[3,46,3,48],[3,49,3,51],[3,54,3,56],[3,57,3,60],[4,0,4,1],[4,2,4,3],[4,4,4,5],[4,6,4,12],[4,14,4,16],[3,17,3,19],[3,22,3,25],[3,26,3,29],[3,30,3,33],[3,34,3,37],[3,38,3,40],[4,38,4,40],[4,41,4,44],[4,46,4,48],[4,49,4,51],[4,54,4,56],[4,57,4,60],[4,17,4,19],[4,22,4,25],[2,38,2,40],[3,0,3,1],[3,2,3,3],[3,4,3,5],[3,6,3,12],[3,14,3,16],[2,17,2,19],[2,22,2,25],[2,26,2,29],[2,30,2,33],[80,36,80,37],[80,39,80,40],[0,38,0,40],[0,41,0,44],[0,46,0,48],[0,54,0,56],[0,57,0,60],[2,0,2,1],[2,2,2,3],[2,4,2,5],[2,6,2,12],[2,14,2,16],[0,0,0,12],[0,14,0,16],[0,17,0,23],[0,30,0,33],[0,34,0,35],[0,36,0,37],[2,41,2,44],[2,46,2,48],[2,49,2,51],[2,54,2,56],[2,57,2,60],[2,34,2,37],[6,141,6,143],[6,147,6,149],[83,18,83,19],[83,21,83,22],[83,24,83,25],[83,27,83,28],[83,30,83,31],[83,33,83,34],[83,126,83,127],[83,129,83,130],[8,141,8,143],[8,147,8,149],[80,138,80,139],[80,141,80,142],[80,147,80,148],[82,138,82,139],[82,141,82,142],[82,147,82,148],[6,60,6,62],[6,87,6,89],[6,90,6,92],[6,93,6,95],[6,96,6,98],[6,63,6,65],[88,12,88,13],[88,14,88,15],[88,16,88,17],[6,114,6,116],[6,81,6,83],[6,84,6,86],[6,132,6,134],[6,135,6,137],[6,138,6,140],[6,66,6,68],[6,69,6,71],[6,72,6,74],[6,75,6,77],[6,78,6,80],[80,42,80,43],[80,45,80,46],[80,48,80,49],[80,51,80,52],[80,54,80,55],[80,57,80,58],[80,24,80,25],[80,27,80,28],[80,30,80,31],[80,33,80,34],[83,147,83,148],[131,33,131,36],[132,33,132,36],[134,33,134,36],[131,10,131,11],[132,10,132,11],[134,10,134,11],[131,12,131,13],[132,12,132,13],[134,12,134,13],[131,14,131,15],[132,14,132,15],[134,14,134,15],[86,33,86,36],[87,10,87,11],[87,12,87,13],[87,14,87,15],[87,16,87,17],[87,20,87,21],[87,22,87,23],[83,135,83,136],[130,10,130,11],[130,12,130,13],[130,14,130,15],[6,144,6,146],[7,144,7,146],[8,144,8,146],[80,144,80,145],[82,144,82,145],[83,144,83,145],[133,10,133,11],[133,12,133,13],[133,14,133,15],[133,16,133,17],[133,20,133,21],[133,22,133,23],[133,24,133,25],[133,33,133,36],[83,138,83,139],[83,141,83,142],[130,16,130,17],[130,20,130,21],[130,22,130,23],[130,24,130,25],[130,33,130,36],[87,24,87,25],[87,33,87,36],[88,10,88,11]]}
[":::: รายงานการขายประจำวัน (Sale Daily Report)  ::::",null,null,null,null,null,null,null,null,null,null,null,null,null,"Print Date : ",null,null,{"$f":"NOW()","v":"2025-04-24T22:39:10.130"},null,null,null,null,null,null,null,null,null,null,null,null,"จำนวนร้าน :",null,null,null,{"$f":"MAX($A$10:$A$79)","v":0},null,"ร้าน",null,"เป้ายอดขาย :",null,null,null,null,null,null,null,{"$f":"C3","v":45792},null,null,{"$f":"LEFT('Problems & Solutions'!$B$2,FIND(\"|\",'Problems & Solutions'!$B$2))&\" วันที่\"&TEXT($C$3,\"[$-107041E] d mmmm yyyy;@\")","v":"ขั้นตอนการตรวจรีพอร์ตขาย | วันที่ 15 พฤษภาคม 2568"},null,null,null,null,"เวลากลับ :"]
[]
["วันที่ :",null,{"$f":"DATE(ใส่ข้อมูล!G2-543,ใส่ข้อมูล!V2,ActiveSheetName)","v":"2025-05-15"},null,"พนักงานขาย",null,{"$f":"INDEX(OFFSET(Sale_Region,,1),ActiveSheetName)","v":0},null,null,null,null,null,null,null,"รวมยอดเบิก :",null,null,{"$f":"E136","v":0},null,null,"ชิ้น",null,"ใหญ่สด(40)",null,null,null,{"$f":"Cash_Major_Bill","v":0},null,null,null,"ใหญ่เชื่อ(42)",null,null,null,{"$f":"Credit_Major_Bill","v":0},null,null,null,"บิลใหญ่ :",null,null,{"$f":"AA3+AI3","v":0},null,null,null,null,"เติมน้ำมัน :",null,null,null,null,null,"บาท",null,"ไมล์ออก :",null,null,{"$f":"เลขไมล์ออก","v":0},null,null,null,"Km"]
["เขตการขาย :",null,{"$f":"INDEX(Sale_Region,ActiveSheetName)","v":0},null,"ผช.ขาย",null,{"$f":"INDEX(OFFSET(Sale_Region,,2),ActiveSheetName)","v":0},null,null,null,null,null,null,null,"ของเหลือ :",null,null,{"$f":"F136","v":0},null,null,"ชิ้น",null,"เล็กสด(41)",null,null,null,{"$f":"Cash_Minor_Bill","v":0},null,null,null,"เล็กเชื่อ(43)",null,null,null,{"$f":"Credit_Minor_Bill","v":0},null,null,null,"บิลเล็ก :",null,null,{"$f":"AA4+AI4","v":0},null,null,null,null,"จำนวนลิตร :",null,null,null,null,null,"ลิตร",null,"ไมล์เข้า :",null,null,null,null,null,null,"Km"]
["สายส่ง :",null,{"$f":"\"Sale \"&ใส่ข้อมูล!E3&\"-\"&ใส่ข้อมูล!G3","v":"Sale KB-01"},null,"พนักงานเสริม",null,{"$f":"INDEX(OFFSET(Sale_Region,,3),ActiveSheetName)","v":0},null,null,null,null,null,null,null,"ของเสีย :",null,null,{"$f":"G136","v":0},null,null,"ชิ้น",null,"น้ำหนักของเสีย",null,null,null,null,null,null,null,"Kg.",null,"%ของเสีย",null,null,{"$f":"IF(Order_Cal=0,0,ROUND(Waste_Cal*100/Order_Cal,2))","v":0},null,"%","VAT :",null,null,{"$f":"EW81","v":0},null,null,null,null,"ต้นทุนสาขา :",null,null,{"$f":"SUMPRODUCT((($A$88:$A$135)-($A$88:$A$135)*0.45)*(($E$88:$E$135)-($G$88:$G$135)))","v":0},null,null,"บาท",null,"ระยะทาง :",null,null,{"$f":"IF(OR($BF$4=0,$BF$3=0),0,$BF$4-$BF$3)","v":0},null,null,null,"Km"]
[]
["No","รหัสร้าน (CustNo)","ชื่อร้าน (Store Name)","เวลาเข้าร้าน","ระยะเวลาระหว่างร้าน","บิล(Invoice)",{"$f":"INDEX(INDIRECT(\"dProduct[ProductName]\"),ROUNDUP(COLUMNS($G:G)/3,0))","v":"ขนมปังหมูหยองน้ำสลัด"},null,null,{"$f":"INDEX(INDIRECT(\"dProduct[ProductName]\"),ROUNDUP(COLUMNS($G:J)/3,0))","v":"ขนมปังหมูหยองน้ำพริกเผา"},null,null,{"$f":"INDEX(INDIRECT(\"dProduct[ProductName]\"),ROUNDUP(COLUMNS($G:M)/3,0))","v":"ขนมปังไก่หยองน้ำสลัด"},null,null,{"$f":"INDEX(INDIRECT(\"dProduct[ProductName]\"),ROUNDUP(COLUMNS($G:P)/3,0))","v":"ขนมปังไส้ครีมสลัด"},null,null,{"$f":"INDEX(INDIRECT(\"dProduct[ProductName]\"),ROUNDUP(COLUMNS($G:S)/3,0))","v":"ขนมปังเนยสด"},null,null,{"$f":"INDEX(INDIRECT(\"dProduct[ProductName]\"),ROUNDUP(COLUMNS($G:V)/3,0))","v":"ขนมปังไส้สังขยาเล็ก"},null,null,{"$f":"INDEX(INDIRECT(\"dProduct[ProductName]\"),ROUNDUP(COLUMNS($G:Y)/3,0))","v":"ขนมปังไส้เผือก"},null,null,{"$f":"INDEX(INDIRECT(\"dProduct[ProductName]\"),ROUNDUP(COLUMNS($G:AB)/3,0))","v":"ขนมปังไส้ถั่วแดง"},null,null,{"$f":"INDEX(INDIRECT(\"dProduct[ProductName]\"),ROUNDUP(COLUMNS($G:AE)/3,0))","v":"ขนมปังไส้ถั่วดำ"},null,null,{"$f":"INDEX(INDIRECT(\"dProduct[ProductName]\"),ROUNDUP(COLUMNS($G:AH)/3,0))","v":"ขนมปังไส้มันม่วง"},null,null,{"$f":"INDEX(INDIRECT(\"dProduct[ProductName]\"),ROUNDUP(COLUMNS($G:AK)/3,0))","v":"เค้กกล้วยหอม"},null,null,{"$f":"INDEX(INDIRECT(\"dProduct[ProductName]\"),ROUNDUP(COLUMNS($G:AN)/3,0))","v":"เค้กบัตเตอร์"},null,null,{"$f":"INDEX(INDIRECT(\"dProduct[ProductName]\"),ROUNDUP(COLUMNS($G:AQ)/3,0))","v":"ขนมปังโรลถั่วแดง"},null,null,{"$f":"INDEX(INDIRECT(\"dProduct[ProductName]\"),ROUNDUP(COLUMNS($G:AT)/3,0))","v":"ขนมปังไส้สังขยาใหญ่"},null,null,{"$f":"INDEX(INDIRECT(\"dProduct[ProductName]\"),ROUNDUP(COLUMNS($G:AW)/3,0))","v":"ขนมปังชนิดแผ่น(480กรัม)"},null,null,{"$f":"INDEX(INDIRECT(\"dProduct[ProductName]\"),ROUNDUP(COLUMNS($G:AZ)/3,0))","v":"โมจิไส้ถั่ว"},null,null,{"$f":"INDEX(INDIRECT(\"dProduct[ProductName]\"),ROUNDUP(COLUMNS($G:BC)/3,0))","v":"โมจิไส้เผือก"},null,null,{"$f":"INDEX(INDIRECT(\"dProduct[ProductName]\"),ROUNDUP(COLUMNS($G:BF)/3,0))","v":"โมจิไส้ถั่วไข่เค็ม"},null,null,{"$f":"INDEX(INDIRECT(\"dProduct[ProductName]\"),ROUNDUP(COLUMNS($G:BI)/3,0))","v":"ขนมปังพิซซ่า"},null,null,{"$f":"INDEX(INDIRECT(\"dProduct[ProductName]\"),ROUNDUP(COLUMNS($G:BL)/3,0))","v":"ขนมปังพิซซ่าปูอัดแฮม"},null,null,{"$f":"INDEX(INDIRECT(\"dProduct[ProductName]\"),ROUNDUP(COLUMNS($G:BO)/3,0))","v":"ขนมปังไส้กรอก"},null,null,{"$f":"INDEX(INDIRECT(\"dProduct[ProductName]\"),ROUNDUP(COLUMNS($G:BR)/3,0))","v":"ขนมก้านบัว"},null,null,{"$f":"INDEX(INDIRECT(\"dProduct[ProductName]\"),ROUNDUP(COLUMNS($G:BU)/3,0))","v":"พายสับปะรด"},null,null,{"$f":"INDEX(INDIRECT(\"dProduct[ProductName]\"),ROUNDUP(COLUMNS($G:BX)/3,0))","v":"พายไส้มะพร้าว"},null,null,{"$f":"INDEX(INDIRECT(\"dProduct[ProductName]\"),ROUNDUP(COLUMNS($G:CA)/3,0))","v":"ขนมปังโรลมันเทศ"},null,null,{"$f":"INDEX(INDIRECT(\"dProduct[ProductName]\"),ROUNDUP(COLUMNS($G:CD)/3,0))","v":"ขนมปังไส้ครีมสลัดน้ำพริกเผา"},null,null,{"$f":"INDEX(INDIRECT(\"dProduct[ProductName]\"),ROUNDUP(COLUMNS($G:CG)/3,0))","v":"ขนมปังไส้สังขยาไข่"},null,null,{"$f":"INDEX(INDIRECT(\"dProduct[ProductName]\"),ROUNDUP(COLUMNS($G:CJ)/3,0))","v":"ขนมปังไส้สังขยามะพร้าว"},null,null,{"$f":"INDEX(INDIRECT(\"dProduct[ProductName]\"),ROUNDUP(COLUMNS($G:CM)/3,0))","v":"ขนมปังไส้ครีมชาไทย"},null,null,{"$f":"INDEX(INDIRECT(\"dProduct[ProductName]\"),ROUNDUP(COLUMNS($G:CP)/3,0))","v":"ขนมปังโรลมันม่วง"},null,null,{"$f":"INDEX(INDIRECT(\"dProduct[ProductName]\"),ROUNDUP(COLUMNS($G:CS)/3,0))","v":"ขนมปังโรลช็อกโกแลต"},null,null,{"$f":"INDEX(INDIRECT(\"dProduct[ProductName]\"),ROUNDUP(COLUMNS($G:CV)/3,0))","v":"ขนมปังชนิดแผ่น(155กรัม)"},null,null,{"$f":"INDEX(INDIRECT(\"dProduct[ProductName]\"),ROUNDUP(COLUMNS($G:CY)/3,0))","v":"ขนมปังโรลเผือก"},null,null,{"$f":"INDEX(INDIRECT(\"dProduct[ProductName]\"),ROUNDUP(COLUMNS($G:DB)/3,0))","v":"ขนมปังไก่หยองน้ำสลัด Mini"},null,null,{"$f":"INDEX(INDIRECT(\"dProduct[ProductName]\"),ROUNDUP(COLUMNS($G:DE)/3,0))","v":"ขนมปังไส้ช็อกโกแลต"},null,null,{"$f":"INDEX(INDIRECT(\"dProduct[ProductName]\"),ROUNDUP(COLUMNS($G:DH)/3,0))","v":"ขนมปังไส้ครีมสังขยาไข่"},null,null,{"$f":"INDEX(INDIRECT(\"dProduct[ProductName]\"),ROUNDUP(COLUMNS($G:DK)/3,0))","v":"ขนมปังพิซซ่าฮาวายเอี้ยน"},null,null,{"$f":"INDEX(INDIRECT(\"dProduct[ProductName]\"),ROUNDUP(COLUMNS($G:DN)/3,0))","v":"ครัวซองต์หมูหยองน้ำสลัด"},null,null,{"$f":"INDEX(INDIRECT(\"dProduct[ProductName]\"),ROUNDUP(COLUMNS($G:DQ)/3,0))","v":"แพนเบรดไส้เผือก"},null,null,{"$f":"INDEX(INDIRECT(\"dProduct[ProductName]\"),ROUNDUP(COLUMNS($G:DT)/3,0))","v":"แพนเบรดไส้ถั่วแดง"},null,null,{"$f":"INDEX(INDIRECT(\"dProduct[ProductName]\"),ROUNDUP(COLUMNS($G:DW)/3,0))","v":"ขนมปังกรอบเนยน้ำตาล(30กรัม)"},null,null,{"$f":"INDEX(INDIRECT(\"dProduct[ProductName]\"),ROUNDUP(COLUMNS($G:DZ)/3,0))","v":"ขนมปังชนิดแผ่นโฮลวีต"},null,null,{"$f":"INDEX(INDIRECT(\"dProduct[ProductName]\"),ROUNDUP(COLUMNS($G:EC)/3,0))","v":"เค้กโรลใบเตย"},null,null,{"$f":"INDEX(INDIRECT(\"dProduct[ProductName]\"),ROUNDUP(COLUMNS($G:EF)/3,0))","v":"ขนมโมจิไส้ถั่วดำ"},null,null,{"$f":"INDEX(INDIRECT(\"dProduct[ProductName]\"),ROUNDUP(COLUMNS($G:EI)/3,0))","v":"ครัวซองต์ไส้กรอกชีส"},null,null,{"$f":"INDEX(INDIRECT(\"dProduct[ProductName]\"),ROUNDUP(COLUMNS($G:EL)/3,0))","v":"ขนมเปี๊ยะไส้ถั่ว"},null,null,{"$f":"INDEX(INDIRECT(\"dProduct[ProductName]\"),ROUNDUP(COLUMNS($G:EO)/3,0))","v":"ขนมเปี๊ยะไส้ฟัก"},null,null,{"$f":"INDEX(INDIRECT(\"dProduct[ProductName]\"),ROUNDUP(COLUMNS($G:ER)/3,0))","v":"มังกี้เค้ก"},null,null,"มูลค่าสินค้า",null,"ภาษี","รวมยอดขาย"]
[null,null,null,null,null,"ราคาขาย",{"$f":"IF(G$7=0,0,INDEX(Price_List,ROUNDUP(COLUMNS($G:G)/3,0)))","v":20},null,null,{"$f":"IF(J$7=0,0,INDEX(Price_List,ROUNDUP(COLUMNS($G:J)/3,0)))","v":20},null,null,{"$f":"IF(M$7=0,0,INDEX(Price_List,ROUNDUP(COLUMNS($G:M)/3,0)))","v":20},null,null,{"$f":"IF(P$7=0,0,INDEX(Price_List,ROUNDUP(COLUMNS($G:P)/3,0)))","v":15},null,null,{"$f":"IF(S$7=0,0,INDEX(Price_List,ROUNDUP(COLUMNS($G:S)/3,0)))","v":15},null,null,{"$f":"IF(V$7=0,0,INDEX(Price_List,ROUNDUP(COLUMNS($G:V)/3,0)))","v":10},null,null,{"$f":"IF(Y$7=0,0,INDEX(Price_List,ROUNDUP(COLUMNS($G:Y)/3,0)))","v":10},null,null,{"$f":"IF(AB$7=0,0,INDEX(Price_List,ROUNDUP(COLUMNS($G:AB)/3,0)))","v":10},null,null,{"$f":"IF(AE$7=0,0,INDEX(Price_List,ROUNDUP(COLUMNS($G:AE)/3,0)))","v":10},null,null,{"$f":"IF(AH$7=0,0,INDEX(Price_List,ROUNDUP(COLUMNS($G:AH)/3,0)))","v":10},null,null,{"$f":"IF(AK$7=0,0,INDEX(Price_List,ROUNDUP(COLUMNS($G:AK)/3,0)))","v":15},null,null,{"$f":"IF(AN$7=0,0,INDEX(Price_List,ROUNDUP(COLUMNS($G:AN)/3,0)))","v":15},null,null,{"$f":"IF(AQ$7=0,0,INDEX(Price_List,ROUNDUP(COLUMNS($G:AQ)/3,0)))","v":15},null,null,{"$f":"IF(AT$7=0,0,INDEX(Price_List,ROUNDUP(COLUMNS($G:AT)/3,0)))","v":15},null,null,{"$f":"IF(AW$7=0,0,INDEX(Price_List,ROUNDUP(COLUMNS($G:AW)/3,0)))","v":42},null,null,{"$f":"IF(AZ$7=0,0,INDEX(Price_List,ROUNDUP(COLUMNS($G:AZ)/3,0)))","v":12},null,null,{"$f":"IF(BC$7=0,0,INDEX(Price_List,ROUNDUP(COLUMNS($G:BC)/3,0)))","v":12},null,null,{"$f":"IF(BF$7=0,0,INDEX(Price_List,ROUNDUP(COLUMNS($G:BF)/3,0)))","v":15},null,null,{"$f":"IF(BI$7=0,0,INDEX(Price_List,ROUNDUP(COLUMNS($G:BI)/3,0)))","v":20},null,null,{"$f":"IF(BL$7=0,0,INDEX(Price_List,ROUNDUP(COLUMNS($G:BL)/3,0)))","v":20},null,null,{"$f":"IF(BO$7=0,0,INDEX(Price_List,ROUNDUP(COLUMNS($G:BO)/3,0)))","v":20},null,null,{"$f":"IF(BR$7=0,0,INDEX(Price_List,ROUNDUP(COLUMNS($G:BR)/3,0)))","v":15},null,null,{"$f":"IF(BU$7=0,0,INDEX(Price_List,ROUNDUP(COLUMNS($G:BU)/3,0)))","v":20},null,null,{"$f":"IF(BX$7=0,0,INDEX(Price_List,ROUNDUP(COLUMNS($G:BX)/3,0)))","v":20},null,null,{"$f":"IF(CA$7=0,0,INDEX(Price_List,ROUNDUP(COLUMNS($G:CA)/3,0)))","v":15},null,null,{"$f":"IF(CD$7=0,0,INDEX(Price_List,ROUNDUP(COLUMNS($G:CD)/3,0)))","v":15},null,null,{"$f":"IF(CG$7=0,0,INDEX(Price_List,ROUNDUP(COLUMNS($G:CG)/3,0)))","v":20},null,null,{"$f":"IF(CJ$7=0,0,INDEX(Price_List,ROUNDUP(COLUMNS($G:CJ)/3,0)))","v":20},null,null,{"$f":"IF(CM$7=0,0,INDEX(Price_List,ROUNDUP(COLUMNS($G:CM)/3,0)))","v":10},null,null,{"$f":"IF(CP$7=0,0,INDEX(Price_List,ROUNDUP(COLUMNS($G:CP)/3,0)))","v":15},null,null,{"$f":"IF(CS$7=0,0,INDEX(Price_List,ROUNDUP(COLUMNS($G:CS)/3,0)))","v":15},null,null,{"$f":"IF(CV$7=0,0,INDEX(Price_List,ROUNDUP(COLUMNS($G:CV)/3,0)))","v":16},null,null,{"$f":"IF(CY$7=0,0,INDEX(Price_List,ROUNDUP(COLUMNS($G:CY)/3,0)))","v":15},null,null,{"$f":"IF(DB$7=0,0,INDEX(Price_List,ROUNDUP(COLUMNS($G:DB)/3,0)))","v":15},null,null,{"$f":"IF(DE$7=0,0,INDEX(Price_List,ROUNDUP(COLUMNS($G:DE)/3,0)))","v":10},null,null,{"$f":"IF(DH$7=0,0,INDEX(Price_List,ROUNDUP(COLUMNS($G:DH)/3,0)))","v":10},null,null,{"$f":"IF(DK$7=0,0,INDEX(Price_List,ROUNDUP(COLUMNS($G:DK)/3,0)))","v":20},null,null,{"$f":"IF(DN$7=0,0,INDEX(Price_List,ROUNDUP(COLUMNS($G:DN)/3,0)))","v":20},null,null,{"$f":"IF(DQ$7=0,0,INDEX(Price_List,ROUNDUP(COLUMNS($G:DQ)/3,0)))","v":15},null,null,{"$f":"IF(DT$7=0,0,INDEX(Price_List,ROUNDUP(COLUMNS($G:DT)/3,0)))","v":15},null,null,{"$f":"IF(DW$7=0,0,INDEX(Price_List,ROUNDUP(COLUMNS($G:DW)/3,0)))","v":12},null,null,{"$f":"IF(DZ$7=0,0,INDEX(Price_List,ROUNDUP(COLUMNS($G:DZ)/3,0)))","v":18},null,null,{"$f":"IF(EC$7=0,0,INDEX(Price_List,ROUNDUP(COLUMNS($G:EC)/3,0)))","v":12},null,null,{"$f":"IF(EF$7=0,0,INDEX(Price_List,ROUNDUP(COLUMNS($G:EF)/3,0)))","v":12},null,null,{"$f":"IF(EI$7=0,0,INDEX(Price_List,ROUNDUP(COLUMNS($G:EI)/3,0)))","v":25},null,null,{"$f":"IF(EL$7=0,0,INDEX(Price_List,ROUNDUP(COLUMNS($G:EL)/3,0)))","v":12},null,null,{"$f":"IF(EO$7=0,0,INDEX(Price_List,ROUNDUP(COLUMNS($G:EO)/3,0)))","v":12},null,null,{"$f":"IF(ER$7=0,0,INDEX(Price_List,ROUNDUP(COLUMNS($G:ER)/3,0)))","v":12},null,null,"เงินเชื่อ","เงินสด"]
[null,null,null,null,null,"คงเหลือ(ตามบัญชี)",{"$f":"IF(G$7=0,0,INDEX(INDIRECT(Order_Rng),ROUNDUP(COLUMNS($G:G)/3,0)))","v":0},null,null,{"$f":"IF(J$7=0,0,INDEX(INDIRECT(Order_Rng),ROUNDUP(COLUMNS($G:J)/3,0)))","v":0},null,null,{"$f":"IF(M$7=0,0,INDEX(INDIRECT(Order_Rng),ROUNDUP(COLUMNS($G:M)/3,0)))","v":0},null,null,{"$f":"IF(P$7=0,0,INDEX(INDIRECT(Order_Rng),ROUNDUP(COLUMNS($G:P)/3,0)))","v":0},null,null,{"$f":"IF(S$7=0,0,INDEX(INDIRECT(Order_Rng),ROUNDUP(COLUMNS($G:S)/3,0)))","v":0},null,null,{"$f":"IF(V$7=0,0,INDEX(INDIRECT(Order_Rng),ROUNDUP(COLUMNS($G:V)/3,0)))","v":0},null,null,{"$f":"IF(Y$7=0,0,INDEX(INDIRECT(Order_Rng),ROUNDUP(COLUMNS($G:Y)/3,0)))","v":0},null,null,{"$f":"IF(AB$7=0,0,INDEX(INDIRECT(Order_Rng),ROUNDUP(COLUMNS($G:AB)/3,0)))","v":0},null,null,{"$f":"IF(AE$7=0,0,INDEX(INDIRECT(Order_Rng),ROUNDUP(COLUMNS($G:AE)/3,0)))","v":0},null,null,{"$f":"IF(AH$7=0,0,INDEX(INDIRECT(Order_Rng),ROUNDUP(COLUMNS($G:AH)/3,0)))","v":0},null,null,{"$f":"IF(AK$7=0,0,INDEX(INDIRECT(Order_Rng),ROUNDUP(COLUMNS($G:AK)/3,0)))","v":0},null,null,{"$f":"IF(AN$7=0,0,INDEX(INDIRECT(Order_Rng),ROUNDUP(COLUMNS($G:AN)/3,0)))","v":0},null,null,{"$f":"IF(AQ$7=0,0,INDEX(INDIRECT(Order_Rng),ROUNDUP(COLUMNS($G:AQ)/3,0)))","v":0},null,null,{"$f":"IF(AT$7=0,0,INDEX(INDIRECT(Order_Rng),ROUNDUP(COLUMNS($G:AT)/3,0)))","v":0},null,null,{"$f":"IF(AW$7=0,0,INDEX(INDIRECT(Order_Rng),ROUNDUP(COLUMNS($G:AW)/3,0)))","v":0},null,null,{"$f":"IF(AZ$7=0,0,INDEX(INDIRECT(Order_Rng),ROUNDUP(COLUMNS($G:AZ)/3,0)))","v":0},null,null,{"$f":"IF(BC$7=0,0,INDEX(INDIRECT(Order_Rng),ROUNDUP(COLUMNS($G:BC)/3,0)))","v":0},null,null,{"$f":"IF(BF$7=0,0,INDEX(INDIRECT(Order_Rng),ROUNDUP(COLUMNS($G:BF)/3,0)))","v":0},null,null,{"$f":"IF(BI$7=0,0,INDEX(INDIRECT(Order_Rng),ROUNDUP(COLUMNS($G:BI)/3,0)))","v":0},null,null,{"$f":"IF(BL$7=0,0,INDEX(INDIRECT(Order_Rng),ROUNDUP(COLUMNS($G:BL)/3,0)))","v":0},null,null,{"$f":"IF(BO$7=0,0,INDEX(INDIRECT(Order_Rng),ROUNDUP(COLUMNS($G:BO)/3,0)))","v":0},null,null,{"$f":"IF(BR$7=0,0,INDEX(INDIRECT(Order_Rng),ROUNDUP(COLUMNS($G:BR)/3,0)))","v":0},null,null,{"$f":"IF(BU$7=0,0,INDEX(INDIRECT(Order_Rng),ROUNDUP(COLUMNS($G:BU)/3,0)))","v":0},null,null,{"$f":"IF(BX$7=0,0,INDEX(INDIRECT(Order_Rng),ROUNDUP(COLUMNS($G:BX)/3,0)))","v":0},null,null,{"$f":"IF(CA$7=0,0,INDEX(INDIRECT(Order_Rng),ROUNDUP(COLUMNS($G:CA)/3,0)))","v":0},null,null,{"$f":"IF(CD$7=0,0,INDEX(INDIRECT(Order_Rng),ROUNDUP(COLUMNS($G:CD)/3,0)))","v":0},null,null,{"$f":"IF(CG$7=0,0,INDEX(INDIRECT(Order_Rng),ROUNDUP(COLUMNS($G:CG)/3,0)))","v":0},null,null,{"$f":"IF(CJ$7=0,0,INDEX(INDIRECT(Order_Rng),ROUNDUP(COLUMNS($G:CJ)/3,0)))","v":0},null,null,{"$f":"IF(CM$7=0,0,INDEX(INDIRECT(Order_Rng),ROUNDUP(COLUMNS($G:CM)/3,0)))","v":0},null,null,{"$f":"IF(CP$7=0,0,INDEX(INDIRECT(Order_Rng),ROUNDUP(COLUMNS($G:CP)/3,0)))","v":0},null,null,{"$f":"IF(CS$7=0,0,INDEX(INDIRECT(Order_Rng),ROUNDUP(COLUMNS($G:CS)/3,0)))","v":0},null,null,{"$f":"IF(CV$7=0,0,INDEX(INDIRECT(Order_Rng),ROUNDUP(COLUMNS($G:CV)/3,0)))","v":0},null,null,{"$f":"IF(CY$7=0,0,INDEX(INDIRECT(Order_Rng),ROUNDUP(COLUMNS($G:CY)/3,0)))","v":0},null,null,{"$f":"IF(DB$7=0,0,INDEX(INDIRECT(Order_Rng),ROUNDUP(COLUMNS($G:DB)/3,0)))","v":0},null,null,{"$f":"IF(DE$7=0,0,INDEX(INDIRECT(Order_Rng),ROUNDUP(COLUMNS($G:DE)/3,0)))","v":0},null,null,{"$f":"IF(DH$7=0,0,INDEX(INDIRECT(Order_Rng),ROUNDUP(COLUMNS($G:DH)/3,0)))","v":0},null,null,{"$f":"IF(DK$7=0,0,INDEX(INDIRECT(Order_Rng),ROUNDUP(COLUMNS($G:DK)/3,0)))","v":0},null,null,{"$f":"IF(DN$7=0,0,INDEX(INDIRECT(Order_Rng),ROUNDUP(COLUMNS($G:DN)/3,0)))","v":0},null,null,{"$f":"IF(DQ$7=0,0,INDEX(INDIRECT(Order_Rng),ROUNDUP(COLUMNS($G:DQ)/3,0)))","v":0},null,null,{"$f":"IF(DT$7=0,0,INDEX(INDIRECT(Order_Rng),ROUNDUP(COLUMNS($G:DT)/3,0)))","v":0},null,null,{"$f":"IF(DW$7=0,0,INDEX(INDIRECT(Order_Rng),ROUNDUP(COLUMNS($G:DW)/3,0)))","v":0},null,null,{"$f":"IF(DZ$7=0,0,INDEX(INDIRECT(Order_Rng),ROUNDUP(COLUMNS($G:DZ)/3,0)))","v":0},null,null,{"$f":"IF(EC$7=0,0,INDEX(INDIRECT(Order_Rng),ROUNDUP(COLUMNS($G:EC)/3,0)))","v":0},null,null,{"$f":"IF(EF$7=0,0,INDEX(INDIRECT(Order_Rng),ROUNDUP(COLUMNS($G:EF)/3,0)))","v":0},null,null,{"$f":"IF(EI$7=0,0,INDEX(INDIRECT(Order_Rng),ROUNDUP(COLUMNS($G:EI)/3,0)))","v":0},null,null,{"$f":"IF(EL$7=0,0,INDEX(INDIRECT(Order_Rng),ROUNDUP(COLUMNS($G:EL)/3,0)))","v":0},null,null,{"$f":"IF(EO$7=0,0,INDEX(INDIRECT(Order_Rng),ROUNDUP(COLUMNS($G:EO)/3,0)))","v":0},null,null,{"$f":"IF(ER$7=0,0,INDEX(INDIRECT(Order_Rng),ROUNDUP(COLUMNS($G:ER)/3,0)))","v":0}]
[{"$f":"IF(OR($B10=\"\",COUNTIF($B$10:$B10,$B10)>1,LEN(TRIM($B10))<>10,ISNUMBER(--MID(TRIM($B10),5,1))),\"-\",MAX(COUNT($A$9:$A9)+1))","v":"-"}]
[{"$f":"IF(OR($B11=\"\",COUNTIF($B$10:$B11,$B11)>1,LEN(TRIM($B11))<>10,ISNUMBER(--MID(TRIM($B11),5,1))),\"-\",MAX(COUNT($A$9:$A10)+1))","v":"-"},null,null,null,{"$f":"IF(D11=\"\",\"\",D11-D10)","v":""}]
[{"$f":"IF(OR($B12=\"\",COUNTIF($B$10:$B12,$B12)>1,LEN(TRIM($B12))<>10,ISNUMBER(--MID(TRIM($B12),5,1))),\"-\",MAX(COUNT($A$9:$A11)+1))","v":"-"},null,null,null,{"$f":"IF(D12=\"\",\"\",D12-D11)","v":""}]
[{"$f":"IF(OR($B13=\"\",COUNTIF($B$10:$B13,$B13)>1,LEN(TRIM($B13))<>10,ISNUMBER(--MID(TRIM($B13),5,1))),\"-\",MAX(COUNT($A$9:$A12)+1))","v":"-"},null,null,null,""]
[{"$f":"IF(OR($B14=\"\",COUNTIF($B$10:$B14,$B14)>1,LEN(TRIM($B14))<>10,ISNUMBER(--MID(TRIM($B14),5,1))),\"-\",MAX(COUNT($A$9:$A13)+1))","v":"-"},null,null,null,""]
[{"$f":"IF(OR($B15=\"\",COUNTIF($B$10:$B15,$B15)>1,LEN(TRIM($B15))<>10,ISNUMBER(--MID(TRIM($B15),5,1))),\"-\",MAX(COUNT($A$9:$A14)+1))","v":"-"},null,null,null,""]
[{"$f":"IF(OR($B16=\"\",COUNTIF($B$10:$B16,$B16)>1,LEN(TRIM($B16))<>10,ISNUMBER(--MID(TRIM($B16),5,1))),\"-\",MAX(COUNT($A$9:$A15)+1))","v":"-"},null,null,null,""]
[{"$f":"IF(OR($B17=\"\",COUNTIF($B$10:$B17,$B17)>1,LEN(TRIM($B17))<>10,ISNUMBER(--MID(TRIM($B17),5,1))),\"-\",MAX(COUNT($A$9:$A16)+1))","v":"-"},null,null,null,""]
[{"$f":"IF(OR($B18=\"\",COUNTIF($B$10:$B18,$B18)>1,LEN(TRIM($B18))<>10,ISNUMBER(--MID(TRIM($B18),5,1))),\"-\",MAX(COUNT($A$9:$A17)+1))","v":"-"},null,null,null,""]
[{"$f":"IF(OR($B19=\"\",COUNTIF($B$10:$B19,$B19)>1,LEN(TRIM($B19))<>10,ISNUMBER(--MID(TRIM($B19),5,1))),\"-\",MAX(COUNT($A$9:$A18)+1))","v":"-"},null,null,null,""]
[{"$f":"IF(OR($B20=\"\",COUNTIF($B$10:$B20,$B20)>1,LEN(TRIM($B20))<>10,ISNUMBER(--MID(TRIM($B20),5,1))),\"-\",MAX(COUNT($A$9:$A19)+1))","v":"-"},null,null,null,""]
[{"$f":"IF(OR($B21=\"\",COUNTIF($B$10:$B21,$B21)>1,LEN(TRIM($B21))<>10,ISNUMBER(--MID(TRIM($B21),5,1))),\"-\",MAX(COUNT($A$9:$A20)+1))","v":"-"},null,null,null,""]
[{"$f":"IF(OR($B22=\"\",COUNTIF($B$10:$B22,$B22)>1,LEN(TRIM($B22))<>10,ISNUMBER(--MID(TRIM($B22),5,1))),\"-\",MAX(COUNT($A$9:$A21)+1))","v":"-"},null,null,null,""]
[{"$f":"IF(OR($B23=\"\",COUNTIF($B$10:$B23,$B23)>1,LEN(TRIM($B23))<>10,ISNUMBER(--MID(TRIM($B23),5,1))),\"-\",MAX(COUNT($A$9:$A22)+1))","v":"-"},null,null,null,""]
[{"$f":"IF(OR($B24=\"\",COUNTIF($B$10:$B24,$B24)>1,LEN(TRIM($B24))<>10,ISNUMBER(--MID(TRIM($B24),5,1))),\"-\",MAX(COUNT($A$9:$A23)+1))","v":"-"},null,null,null,""]
[{"$f":"IF(OR($B25=\"\",COUNTIF($B$10:$B25,$B25)>1,LEN(TRIM($B25))<>10,ISNUMBER(--MID(TRIM($B25),5,1))),\"-\",MAX(COUNT($A$9:$A24)+1))","v":"-"},null,null,null,""]
[{"$f":"IF(OR($B26=\"\",COUNTIF($B$10:$B26,$B26)>1,LEN(TRIM($B26))<>10,ISNUMBER(--MID(TRIM($B26),5,1))),\"-\",MAX(COUNT($A$9:$A25)+1))","v":"-"},null,null,null,""]
[{"$f":"IF(OR($B27=\"\",COUNTIF($B$10:$B27,$B27)>1,LEN(TRIM($B27))<>10,ISNUMBER(--MID(TRIM($B27),5,1))),\"-\",MAX(COUNT($A$9:$A26)+1))","v":"-"},null,null,null,""]
[{"$f":"IF(OR($B28=\"\",COUNTIF($B$10:$B28,$B28)>1,LEN(TRIM($B28))<>10,ISNUMBER(--MID(TRIM($B28),5,1))),\"-\",MAX(COUNT($A$9:$A27)+1))","v":"-"},null,null,null,""]
[{"$f":"IF(OR($B29=\"\",COUNTIF($B$10:$B29,$B29)>1,LEN(TRIM($B29))<>10,ISNUMBER(--MID(TRIM($B29),5,1))),\"-\",MAX(COUNT($A$9:$A28)+1))","v":"-"},null,null,null,""]
[{"$f":"IF(OR($B30=\"\",COUNTIF($B$10:$B30,$B30)>1,LEN(TRIM($B30))<>10,ISNUMBER(--MID(TRIM($B30),5,1))),\"-\",MAX(COUNT($A$9:$A29)+1))","v":"-"},null,null,null,""]
[{"$f":"IF(OR($B31=\"\",COUNTIF($B$10:$B31,$B31)>1,LEN(TRIM($B31))<>10,ISNUMBER(--MID(TRIM($B31),5,1))),\"-\",MAX(COUNT($A$9:$A30)+1))","v":"-"},null,null,null,""]
[{"$f":"IF(OR($B32=\"\",COUNTIF($B$10:$B32,$B32)>1,LEN(TRIM($B32))<>10,ISNUMBER(--MID(TRIM($B32),5,1))),\"-\",MAX(COUNT($A$9:$A31)+1))","v":"-"},null,null,null,""]
[{"$f":"IF(OR($B33=\"\",COUNTIF($B$10:$B33,$B33)>1,LEN(TRIM($B33))<>10,ISNUMBER(--MID(TRIM($B33),5,1))),\"-\",MAX(COUNT($A$9:$A32)+1))","v":"-"},null,null,null,""]
[{"$f":"IF(OR($B34=\"\",COUNTIF($B$10:$B34,$B34)>1,LEN(TRIM($B34))<>10,ISNUMBER(--MID(TRIM($B34),5,1))),\"-\",MAX(COUNT($A$9:$A33)+1))","v":"-"},null,null,null,""]
[{"$f":"IF(OR($B35=\"\",COUNTIF($B$10:$B35,$B35)>1,LEN(TRIM($B35))<>10,ISNUMBER(--MID(TRIM($B35),5,1))),\"-\",MAX(COUNT($A$9:$A34)+1))","v":"-"},null,null,null,""]
[{"$f":"IF(OR($B36=\"\",COUNTIF($B$10:$B36,$B36)>1,LEN(TRIM($B36))<>10,ISNUMBER(--MID(TRIM($B36),5,1))),\"-\",MAX(COUNT($A$9:$A35)+1))","v":"-"},null,null,null,""]
[{"$f":"IF(OR($B37=\"\",COUNTIF($B$10:$B37,$B37)>1,LEN(TRIM($B37))<>10,ISNUMBER(--MID(TRIM($B37),5,1))),\"-\",MAX(COUNT($A$9:$A36)+1))","v":"-"},null,null,null,""]
[{"$f":"IF(OR($B38=\"\",COUNTIF($B$10:$B38,$B38)>1,LEN(TRIM($B38))<>10,ISNUMBER(--MID(TRIM($B38),5,1))),\"-\",MAX(COUNT($A$9:$A37)+1))","v":"-"},null,null,null,""]
[{"$f":"IF(OR($B39=\"\",COUNTIF($B$10:$B39,$B39)>1,LEN(TRIM($B39))<>10,ISNUMBER(--MID(TRIM($B39),5,1))),\"-\",MAX(COUNT($A$9:$A38)+1))","v":"-"},null,null,null,""]
[{"$f":"IF(OR($B40=\"\",COUNTIF($B$10:$B40,$B40)>1,LEN(TRIM($B40))<>10,ISNUMBER(--MID(TRIM($B40),5,1))),\"-\",MAX(COUNT($A$9:$A39)+1))","v":"-"},null,null,null,""]
[{"$f":"IF(OR($B41=\"\",COUNTIF($B$10:$B41,$B41)>1,LEN(TRIM($B41))<>10,ISNUMBER(--MID(TRIM($B41),5,1))),\"-\",MAX(COUNT($A$9:$A40)+1))","v":"-"},null,null,null,""]
[{"$f":"IF(OR($B42=\"\",COUNTIF($B$10:$B42,$B42)>1,LEN(TRIM($B42))<>10,ISNUMBER(--MID(TRIM($B42),5,1))),\"-\",MAX(COUNT($A$9:$A41)+1))","v":"-"},null,null,null,""]
[{"$f":"IF(OR($B43=\"\",COUNTIF($B$10:$B43,$B43)>1,LEN(TRIM($B43))<>10,ISNUMBER(--MID(TRIM($B43),5,1))),\"-\",MAX(COUNT($A$9:$A42)+1))","v":"-"},null,null,null,""]
[{"$f":"IF(OR($B44=\"\",COUNTIF($B$10:$B44,$B44)>1,LEN(TRIM($B44))<>10,ISNUMBER(--MID(TRIM($B44),5,1))),\"-\",MAX(COUNT($A$9:$A43)+1))","v":"-"},null,null,null,""]
[{"$f":"IF(OR($B45=\"\",COUNTIF($B$10:$B45,$B45)>1,LEN(TRIM($B45))<>10,ISNUMBER(--MID(TRIM($B45),5,1))),\"-\",MAX(COUNT($A$9:$A44)+1))","v":"-"},null,null,null,""]
[{"$f":"IF(OR($B46=\"\",COUNTIF($B$10:$B46,$B46)>1,LEN(TRIM($B46))<>10,ISNUMBER(--MID(TRIM($B46),5,1))),\"-\",MAX(COUNT($A$9:$A45)+1))","v":"-"},null,null,null,""]
[{"$f":"IF(OR($B47=\"\",COUNTIF($B$10:$B47,$B47)>1,LEN(TRIM($B47))<>10,ISNUMBER(--MID(TRIM($B47),5,1))),\"-\",MAX(COUNT($A$9:$A46)+1))","v":"-"},null,null,null,""]
[{"$f":"IF(OR($B48=\"\",COUNTIF($B$10:$B48,$B48)>1,LEN(TRIM($B48))<>10,ISNUMBER(--MID(TRIM($B48),5,1))),\"-\",MAX(COUNT($A$9:$A47)+1))","v":"-"},null,null,null,""]
[{"$f":"IF(OR($B49=\"\",COUNTIF($B$10:$B49,$B49)>1,LEN(TRIM($B49))<>10,ISNUMBER(--MID(TRIM($B49),5,1))),\"-\",MAX(COUNT($A$9:$A48)+1))","v":"-"},null,null,null,""]
[{"$f":"IF(OR($B50=\"\",COUNTIF($B$10:$B50,$B50)>1,LEN(TRIM($B50))<>10,ISNUMBER(--MID(TRIM($B50),5,1))),\"-\",MAX(COUNT($A$9:$A49)+1))","v":"-"},null,null,null,""]
[{"$f":"IF(OR($B51=\"\",COUNTIF($B$10:$B51,$B51)>1,LEN(TRIM($B51))<>10,ISNUMBER(--MID(TRIM($B51),5,1))),\"-\",MAX(COUNT($A$9:$A50)+1))","v":"-"},null,null,null,""]
[{"$f":"IF(OR($B52=\"\",COUNTIF($B$10:$B52,$B52)>1,LEN(TRIM($B52))<>10,ISNUMBER(--MID(TRIM($B52),5,1))),\"-\",MAX(COUNT($A$9:$A51)+1))","v":"-"},null,null,null,""]
[{"$f":"IF(OR($B53=\"\",COUNTIF($B$10:$B53,$B53)>1,LEN(TRIM($B53))<>10,ISNUMBER(--MID(TRIM($B53),5,1))),\"-\",MAX(COUNT($A$9:$A52)+1))","v":"-"},null,null,null,""]
[{"$f":"IF(OR($B54=\"\",COUNTIF($B$10:$B54,$B54)>1,LEN(TRIM($B54))<>10,ISNUMBER(--MID(TRIM($B54),5,1))),\"-\",MAX(COUNT($A$9:$A53)+1))","v":"-"},null,null,null,""]
[{"$f":"IF(OR($B55=\"\",COUNTIF($B$10:$B55,$B55)>1,LEN(TRIM($B55))<>10,ISNUMBER(--MID(TRIM($B55),5,1))),\"-\",MAX(COUNT($A$9:$A54)+1))","v":"-"},null,null,null,""]
[{"$f":"IF(OR($B56=\"\",COUNTIF($B$10:$B56,$B56)>1,LEN(TRIM($B56))<>10,ISNUMBER(--MID(TRIM($B56),5,1))),\"-\",MAX(COUNT($A$9:$A55)+1))","v":"-"},null,null,null,""]
[{"$f":"IF(OR($B57=\"\",COUNTIF($B$10:$B57,$B57)>1,LEN(TRIM($B57))<>10,ISNUMBER(--MID(TRIM($B57),5,1))),\"-\",MAX(COUNT($A$9:$A56)+1))","v":"-"},null,null,null,""]
[{"$f":"IF(OR($B58=\"\",COUNTIF($B$10:$B58,$B58)>1,LEN(TRIM($B58))<>10,ISNUMBER(--MID(TRIM($B58),5,1))),\"-\",MAX(COUNT($A$9:$A57)+1))","v":"-"},null,null,null,""]
[{"$f":"IF(OR($B59=\"\",COUNTIF($B$10:$B59,$B59)>1,LEN(TRIM($B59))<>10,ISNUMBER(--MID(TRIM($B59),5,1))),\"-\",MAX(COUNT($A$9:$A58)+1))","v":"-"},null,null,null,""]
[{"$f":"IF(OR($B60=\"\",COUNTIF($B$10:$B60,$B60)>1,LEN(TRIM($B60))<>10,ISNUMBER(--MID(TRIM($B60),5,1))),\"-\",MAX(COUNT($A$9:$A59)+1))","v":"-"},null,null,null,""]
[{"$f":"IF(OR($B61=\"\",COUNTIF($B$10:$B61,$B61)>1,LEN(TRIM($B61))<>10,ISNUMBER(--MID(TRIM($B61),5,1))),\"-\",MAX(COUNT($A$9:$A60)+1))","v":"-"},null,null,null,""]
[{"$f":"IF(OR($B62=\"\",COUNTIF($B$10:$B62,$B62)>1,LEN(TRIM($B62))<>10,ISNUMBER(--MID(TRIM($B62),5,1))),\"-\",MAX(COUNT($A$9:$A61)+1))","v":"-"},null,null,null,""]
[{"$f":"IF(OR($B63=\"\",COUNTIF($B$10:$B63,$B63)>1,LEN(TRIM($B63))<>10,ISNUMBER(--MID(TRIM($B63),5,1))),\"-\",MAX(COUNT($A$9:$A62)+1))","v":"-"},null,null,null,""]
[{"$f":"IF(OR($B64=\"\",COUNTIF($B$10:$B64,$B64)>1,LEN(TRIM($B64))<>10,ISNUMBER(--MID(TRIM($B64),5,1))),\"-\",MAX(COUNT($A$9:$A63)+1))","v":"-"},null,null,null,""]
[{"$f":"IF(OR($B65=\"\",COUNTIF($B$10:$B65,$B65)>1,LEN(TRIM($B65))<>10,ISNUMBER(--MID(TRIM($B65),5,1))),\"-\",MAX(COUNT($A$9:$A64)+1))","v":"-"},null,null,null,""]
[{"$f":"IF(OR($B66=\"\",COUNTIF($B$10:$B66,$B66)>1,LEN(TRIM($B66))<>10,ISNUMBER(--MID(TRIM($B66),5,1))),\"-\",MAX(COUNT($A$9:$A65)+1))","v":"-"},null,null,null,""]
[{"$f":"IF(OR($B67=\"\",COUNTIF($B$10:$B67,$B67)>1,LEN(TRIM($B67))<>10,ISNUMBER(--MID(TRIM($B67),5,1))),\"-\",MAX(COUNT($A$9:$A66)+1))","v":"-"},null,null,null,""]
[{"$f":"IF(OR($B68=\"\",COUNTIF($B$10:$B68,$B68)>1,LEN(TRIM($B68))<>10,ISNUMBER(--MID(TRIM($B68),5,1))),\"-\",MAX(COUNT($A$9:$A67)+1))","v":"-"},null,null,null,""]
[{"$f":"IF(OR($B69=\"\",COUNTIF($B$10:$B69,$B69)>1,LEN(TRIM($B69))<>10,ISNUMBER(--MID(TRIM($B69),5,1))),\"-\",MAX(COUNT($A$9:$A68)+1))","v":"-"},null,null,null,""]
[{"$f":"IF(OR($B70=\"\",COUNTIF($B$10:$B70,$B70)>1,LEN(TRIM($B70))<>10,ISNUMBER(--MID(TRIM($B70),5,1))),\"-\",MAX(COUNT($A$9:$A69)+1))","v":"-"},null,null,null,""]
[{"$f":"IF(OR($B71=\"\",COUNTIF($B$10:$B71,$B71)>1,LEN(TRIM($B71))<>10,ISNUMBER(--MID(TRIM($B71),5,1))),\"-\",MAX(COUNT($A$9:$A70)+1))","v":"-"},null,null,null,""]
[{"$f":"IF(OR($B72=\"\",COUNTIF($B$10:$B72,$B72)>1,LEN(TRIM($B72))<>10,ISNUMBER(--MID(TRIM($B72),5,1))),\"-\",MAX(COUNT($A$9:$A71)+1))","v":"-"},null,null,null,""]
[{"$f":"IF(OR($B73=\"\",COUNTIF($B$10:$B73,$B73)>1,LEN(TRIM($B73))<>10,ISNUMBER(--MID(TRIM($B73),5,1))),\"-\",MAX(COUNT($A$9:$A72)+1))","v":"-"},null,null,null,""]
[{"$f":"IF(OR($B74=\"\",COUNTIF($B$10:$B74,$B74)>1,LEN(TRIM($B74))<>10,ISNUMBER(--MID(TRIM($B74),5,1))),\"-\",MAX(COUNT($A$9:$A73)+1))","v":"-"},null,null,null,""]
[{"$f":"IF(OR($B75=\"\",COUNTIF($B$10:$B75,$B75)>1,LEN(TRIM($B75))<>10,ISNUMBER(--MID(TRIM($B75),5,1))),\"-\",MAX(COUNT($A$9:$A74)+1))","v":"-"},null,null,null,""]
[{"$f":"IF(OR($B76=\"\",COUNTIF($B$10:$B76,$B76)>1,LEN(TRIM($B76))<>10,ISNUMBER(--MID(TRIM($B76),5,1))),\"-\",MAX(COUNT($A$9:$A75)+1))","v":"-"},null,null,null,{"$f":"IF(D76=\"\",\"\",D76-D75)","v":""}]
[{"$f":"IF(OR($B77=\"\",COUNTIF($B$10:$B77,$B77)>1,LEN(TRIM($B77))<>10,ISNUMBER(--MID(TRIM($B77),5,1))),\"-\",MAX(COUNT($A$9:$A76)+1))","v":"-"},null,null,null,""]
[{"$f":"IF(OR($B78=\"\",COUNTIF($B$10:$B78,$B78)>1,LEN(TRIM($B78))<>10,ISNUMBER(--MID(TRIM($B78),5,1))),\"-\",MAX(COUNT($A$9:$A77)+1))","v":"-"},null,null,null,""]
[{"$f":"IF(OR($B79=\"\",COUNTIF($B$10:$B79,$B79)>1,LEN(TRIM($B79))<>10,ISNUMBER(--MID(TRIM($B79),5,1))),\"-\",MAX(COUNT($A$9:$A78)+1))","v":"-"},null,null,null,""]
["รวมของขาย|ของเสีย|เหลือบนเชลฟ์",null,null,null,null,null,{"$f":"SUM(G10:G79)","v":0},0,0,{"$f":"SUM(J10:J79)","v":0},0,0,0,0,0,0,0,0,0,0,0,0,0,0,0,0,0,0,0,0,0,0,0,0,0,0,0,0,0,0,0,0,0,0,0,0,0,0,0,0,0,0,0,0,0,0,0,0,0,0,0,0,0,0,0,0,0,0,0,0,0,0,0,{"$f":"SUM(BV10:BV79)","v":0},0,0,0,0,0,0,0,0,0,0,0,0,0,0,0,0,0,0,0,0,0,0,0,0,0,0,0,0,0,0,0,0,0,0,0,0,0,0,0,0,0,0,0,0,0,0,0,0,0,0,0,0,0,0,0,0,0,0,0,0,0,{"$f":"SUM(EF10:EF79)","v":0},0,0,{"$f":"SUM(EI10:EI79)","v":0},0,0,0,0,0,{"$f":"SUM(EO10:EO79)","v":0},0,0,0,0,0,"รวมเงินเชื่อ","รวมเงินสด","ภาษี","รวมยอดขาย"]
["ของเหลือ",null,null,null,null,null,{"$f":"G80+H80-G9","v":0},null,null,{"$f":"J80+K80-J9","v":0},null,null,{"$f":"M80+N80-M9","v":0},null,null,{"$f":"P80+Q80-P9","v":0},null,null,{"$f":"S80+T80-S9","v":0},null,null,{"$f":"V80+W80-V9","v":0},null,null,{"$f":"Y80+Z80-Y9","v":0},null,null,{"$f":"AB80+AC80-AB9","v":0},null,null,{"$f":"AE80+AF80-AE9","v":0},null,null,{"$f":"AH80+AI80-AH9","v":0},null,null,{"$f":"AK80+AL80-AK9","v":0},null,null,{"$f":"AN80+AO80-AN9","v":0},null,null,{"$f":"AQ80+AR80-AQ9","v":0},null,null,{"$f":"AT80+AU80-AT9","v":0},null,null,{"$f":"AW80+AX80-AW9","v":0},null,null,{"$f":"AZ80+BA80-AZ9","v":0},null,null,{"$f":"BC80+BD80-BC9","v":0},null,null,{"$f":"BF80+BG80-BF9","v":0},null,null,{"$f":"BI80+BJ80-BI9","v":0},null,null,{"$f":"BL80+BM80-BL9","v":0},null,null,{"$f":"BO80+BP80-BO9","v":0},null,null,{"$f":"BR80+BS80-BR9","v":0},null,null,{"$f":"BU80+BV80-BU9","v":0},null,null,{"$f":"BX80+BY80-BX9","v":0},null,null,{"$f":"CA80+CB80-CA9","v":0},null,null,{"$f":"CD80+CE80-CD9","v":0},null,null,{"$f":"CG80+CH80-CG9","v":0},null,null,{"$f":"CJ80+CK80-CJ9","v":0},null,null,{"$f":"CM80+CN80-CM9","v":0},null,null,{"$f":"CP80+CQ80-CP9","v":0},null,null,{"$f":"CS80+CT80-CS9","v":0},null,null,{"$f":"CV80+CW80-CV9","v":0},null,null,{"$f":"CY80+CZ80-CY9","v":0},null,null,{"$f":"DB80+DC80-DB9","v":0},null,null,{"$f":"DE80+DF80-DE9","v":0},null,null,{"$f":"DH80+DI80-DH9","v":0},null,null,{"$f":"DK80+DL80-DK9","v":0},null,null,{"$f":"DN80+DO80-DN9","v":0},null,null,{"$f":"DQ80+DR80-DQ9","v":0},null,null,{"$f":"DT80+DU80-DT9","v":0},null,null,{"$f":"DW80+DX80-DW9","v":0},null,null,{"$f":"DZ80+EA80-DZ9","v":0},null,null,{"$f":"EC80+ED80-EC9","v":0},null,null,{"$f":"EF80+EG80-EF9","v":0},null,null,{"$f":"EI80+EJ80-EI9","v":0},null,null,{"$f":"EL80+EM80-EL9","v":0},null,null,{"$f":"EO80+EP80-EO9","v":0},null,null,{"$f":"ER80+ES80-ER9","v":0},null,null,{"$f":"SUM(EU10:EU79)","v":0},{"$f":"SUM(EV10:EV79)","v":0},{"$f":"SUM(EW10:EW79)","v":0},{"$f":"SUM(EX10:EX79)","v":0}]
["เฉลี่ย",null,null,"เหลือ/เสีย(จริง)",null,null,{"$f":"INDIRECT(\"F\"&ROW($G$87)+ROUNDUP(COLUMNS($G:G)/3,0))","v":0},{"$f":"INDIRECT(\"G\"&ROW($G$87)+ROUNDUP(COLUMNS($G:H)/3,0))","v":0},null,{"$f":"INDIRECT(\"F\"&ROW($G$87)+ROUNDUP(COLUMNS($G:J)/3,0))","v":0},{"$f":"INDIRECT(\"G\"&ROW($G$87)+ROUNDUP(COLUMNS($G:K)/3,0))","v":0},null,{"$f":"INDIRECT(\"F\"&ROW($G$87)+ROUNDUP(COLUMNS($G:M)/3,0))","v":0},{"$f":"INDIRECT(\"G\"&ROW($G$87)+ROUNDUP(COLUMNS($G:N)/3,0))","v":0},null,{"$f":"INDIRECT(\"F\"&ROW($G$87)+ROUNDUP(COLUMNS($G:P)/3,0))","v":0},{"$f":"INDIRECT(\"G\"&ROW($G$87)+ROUNDUP(COLUMNS($G:Q)/3,0))","v":0},null,{"$f":"INDIRECT(\"F\"&ROW($G$87)+ROUNDUP(COLUMNS($G:S)/3,0))","v":0},{"$f":"INDIRECT(\"G\"&ROW($G$87)+ROUNDUP(COLUMNS($G:T)/3,0))","v":0},null,{"$f":"INDIRECT(\"F\"&ROW($G$87)+ROUNDUP(COLUMNS($G:V)/3,0))","v":0},{"$f":"INDIRECT(\"G\"&ROW($G$87)+ROUNDUP(COLUMNS($G:W)/3,0))","v":0},null,{"$f":"INDIRECT(\"F\"&ROW($G$87)+ROUNDUP(COLUMNS($G:Y)/3,0))","v":0},{"$f":"INDIRECT(\"G\"&ROW($G$87)+ROUNDUP(COLUMNS($G:Z)/3,0))","v":0},null,{"$f":"INDIRECT(\"F\"&ROW($G$87)+ROUNDUP(COLUMNS($G:AB)/3,0))","v":0},{"$f":"INDIRECT(\"G\"&ROW($G$87)+ROUNDUP(COLUMNS($G:AC)/3,0))","v":0},null,{"$f":"INDIRECT(\"F\"&ROW($G$87)+ROUNDUP(COLUMNS($G:AE)/3,0))","v":0},{"$f":"INDIRECT(\"G\"&ROW($G$87)+ROUNDUP(COLUMNS($G:AF)/3,0))","v":0},null,{"$f":"INDIRECT(\"F\"&ROW($G$87)+ROUNDUP(COLUMNS($G:AH)/3,0))","v":0},{"$f":"INDIRECT(\"G\"&ROW($G$87)+ROUNDUP(COLUMNS($G:AI)/3,0))","v":0},null,{"$f":"INDIRECT(\"F\"&ROW($G$87)+ROUNDUP(COLUMNS($G:AK)/3,0))","v":0},{"$f":"INDIRECT(\"G\"&ROW($G$87)+ROUNDUP(COLUMNS($G:AL)/3,0))","v":0},null,{"$f":"INDIRECT(\"F\"&ROW($G$87)+ROUNDUP(COLUMNS($G:AN)/3,0))","v":0},{"$f":"INDIRECT(\"G\"&ROW($G$87)+ROUNDUP(COLUMNS($G:AO)/3,0))","v":0},null,{"$f":"INDIRECT(\"F\"&ROW($G$87)+ROUNDUP(COLUMNS($G:AQ)/3,0))","v":0},{"$f":"INDIRECT(\"G\"&ROW($G$87)+ROUNDUP(COLUMNS($G:AR)/3,0))","v":0},null,{"$f":"INDIRECT(\"F\"&ROW($G$87)+ROUNDUP(COLUMNS($G:AT)/3,0))","v":0},{"$f":"INDIRECT(\"G\"&ROW($G$87)+ROUNDUP(COLUMNS($G:AU)/3,0))","v":0},null,{"$f":"INDIRECT(\"F\"&ROW($G$87)+ROUNDUP(COLUMNS($G:AW)/3,0))","v":0},{"$f":"INDIRECT(\"G\"&ROW($G$87)+ROUNDUP(COLUMNS($G:AX)/3,0))","v":0},null,{"$f":"INDIRECT(\"F\"&ROW($G$87)+ROUNDUP(COLUMNS($G:AZ)/3,0))","v":0},{"$f":"INDIRECT(\"G\"&ROW($G$87)+ROUNDUP(COLUMNS($G:BA)/3,0))","v":0},null,{"$f":"INDIRECT(\"F\"&ROW($G$87)+ROUNDUP(COLUMNS($G:BC)/3,0))","v":0},{"$f":"INDIRECT(\"G\"&ROW($G$87)+ROUNDUP(COLUMNS($G:BD)/3,0))","v":0},null,{"$f":"INDIRECT(\"F\"&ROW($G$87)+ROUNDUP(COLUMNS($G:BF)/3,0))","v":0},{"$f":"INDIRECT(\"G\"&ROW($G$87)+ROUNDUP(COLUMNS($G:BG)/3,0))","v":0},null,{"$f":"INDIRECT(\"F\"&ROW($G$87)+ROUNDUP(COLUMNS($G:BI)/3,0))","v":0},{"$f":"INDIRECT(\"G\"&ROW($G$87)+ROUNDUP(COLUMNS($G:BJ)/3,0))","v":0},null,{"$f":"INDIRECT(\"F\"&ROW($G$87)+ROUNDUP(COLUMNS($G:BL)/3,0))","v":0},{"$f":"INDIRECT(\"G\"&ROW($G$87)+ROUNDUP(COLUMNS($G:BM)/3,0))","v":0},null,{"$f":"INDIRECT(\"F\"&ROW($G$87)+ROUNDUP(COLUMNS($G:BO)/3,0))","v":0},{"$f":"INDIRECT(\"G\"&ROW($G$87)+ROUNDUP(COLUMNS($G:BP)/3,0))","v":0},null,{"$f":"INDIRECT(\"F\"&ROW($G$87)+ROUNDUP(COLUMNS($G:BR)/3,0))","v":0},{"$f":"INDIRECT(\"G\"&ROW($G$87)+ROUNDUP(COLUMNS($G:BS)/3,0))","v":0},null,{"$f":"INDIRECT(\"F\"&ROW($G$87)+ROUNDUP(COLUMNS($G:BU)/3,0))","v":0},{"$f":"INDIRECT(\"G\"&ROW($G$87)+ROUNDUP(COLUMNS($G:BV)/3,0))","v":0},null,{"$f":"INDIRECT(\"F\"&ROW($G$87)+ROUNDUP(COLUMNS($G:BX)/3,0))","v":0},{"$f":"INDIRECT(\"G\"&ROW($G$87)+ROUNDUP(COLUMNS($G:BY)/3,0))","v":0},null,{"$f":"INDIRECT(\"F\"&ROW($G$87)+ROUNDUP(COLUMNS($G:CA)/3,0))","v":0},{"$f":"INDIRECT(\"G\"&ROW($G$87)+ROUNDUP(COLUMNS($G:CB)/3,0))","v":0},null,{"$f":"INDIRECT(\"F\"&ROW($G$87)+ROUNDUP(COLUMNS($G:CD)/3,0))","v":0},{"$f":"INDIRECT(\"G\"&ROW($G$87)+ROUNDUP(COLUMNS($G:CE)/3,0))","v":0},null,{"$f":"INDIRECT(\"F\"&ROW($G$87)+ROUNDUP(COLUMNS($G:CG)/3,0))","v":0},{"$f":"INDIRECT(\"G\"&ROW($G$87)+ROUNDUP(COLUMNS($G:CH)/3,0))","v":0},null,{"$f":"INDIRECT(\"F\"&ROW($G$87)+ROUNDUP(COLUMNS($G:CJ)/3,0))","v":0},{"$f":"INDIRECT(\"G\"&ROW($G$87)+ROUNDUP(COLUMNS($G:CK)/3,0))","v":0},null,{"$f":"INDIRECT(\"F\"&ROW($G$87)+ROUNDUP(COLUMNS($G:CM)/3,0))","v":0},{"$f":"INDIRECT(\"G\"&ROW($G$87)+ROUNDUP(COLUMNS($G:CN)/3,0))","v":0},null,{"$f":"INDIRECT(\"F\"&ROW($G$87)+ROUNDUP(COLUMNS($G:CP)/3,0))","v":0},{"$f":"INDIRECT(\"G\"&ROW($G$87)+ROUNDUP(COLUMNS($G:CQ)/3,0))","v":0},null,{"$f":"INDIRECT(\"F\"&ROW($G$87)+ROUNDUP(COLUMNS($G:CS)/3,0))","v":0},{"$f":"INDIRECT(\"G\"&ROW($G$87)+ROUNDUP(COLUMNS($G:CT)/3,0))","v":0},null,{"$f":"INDIRECT(\"F\"&ROW($G$87)+ROUNDUP(COLUMNS($G:CV)/3,0))","v":0},{"$f":"INDIRECT(\"G\"&ROW($G$87)+ROUNDUP(COLUMNS($G:CW)/3,0))","v":0},null,{"$f":"INDIRECT(\"F\"&ROW($G$87)+ROUNDUP(COLUMNS($G:CY)/3,0))","v":0},{"$f":"INDIRECT(\"G\"&ROW($G$87)+ROUNDUP(COLUMNS($G:CZ)/3,0))","v":0},null,{"$f":"INDIRECT(\"F\"&ROW($G$87)+ROUNDUP(COLUMNS($G:DB)/3,0))","v":0},{"$f":"INDIRECT(\"G\"&ROW($G$87)+ROUNDUP(COLUMNS($G:DC)/3,0))","v":0},null,{"$f":"INDIRECT(\"F\"&ROW($G$87)+ROUNDUP(COLUMNS($G:DE)/3,0))","v":0},{"$f":"INDIRECT(\"G\"&ROW($G$87)+ROUNDUP(COLUMNS($G:DF)/3,0))","v":0},null,{"$f":"INDIRECT(\"F\"&ROW($G$87)+ROUNDUP(COLUMNS($G:DH)/3,0))","v":0},{"$f":"INDIRECT(\"G\"&ROW($G$87)+ROUNDUP(COLUMNS($G:DI)/3,0))","v":0},null,{"$f":"INDIRECT(\"F\"&ROW($G$87)+ROUNDUP(COLUMNS($G:DK)/3,0))","v":0},{"$f":"INDIRECT(\"G\"&ROW($G$87)+ROUNDUP(COLUMNS($G:DL)/3,0))","v":0},null,{"$f":"INDIRECT(\"F\"&ROW($G$87)+ROUNDUP(COLUMNS($G:DN)/3,0))","v":0},{"$f":"INDIRECT(\"G\"&ROW($G$87)+ROUNDUP(COLUMNS($G:DO)/3,0))","v":0},null,{"$f":"INDIRECT(\"F\"&ROW($G$87)+ROUNDUP(COLUMNS($G:DQ)/3,0))","v":0},{"$f":"INDIRECT(\"G\"&ROW($G$87)+ROUNDUP(COLUMNS($G:DR)/3,0))","v":0},null,{"$f":"INDIRECT(\"F\"&ROW($G$87)+ROUNDUP(COLUMNS($G:DT)/3,0))","v":0},{"$f":"INDIRECT(\"G\"&ROW($G$87)+ROUNDUP(COLUMNS($G:DU)/3,0))","v":0},null,{"$f":"INDIRECT(\"F\"&ROW($G$87)+ROUNDUP(COLUMNS($G:DW)/3,0))","v":0},{"$f":"INDIRECT(\"G\"&ROW($G$87)+ROUNDUP(COLUMNS($G:DX)/3,0))","v":0},null,{"$f":"INDIRECT(\"F\"&ROW($G$87)+ROUNDUP(COLUMNS($G:DZ)/3,0))","v":0},{"$f":"INDIRECT(\"G\"&ROW($G$87)+ROUNDUP(COLUMNS($G:EA)/3,0))","v":0},null,{"$f":"INDIRECT(\"F\"&ROW($G$87)+ROUNDUP(COLUMNS($G:EC)/3,0))","v":0},{"$f":"INDIRECT(\"G\"&ROW($G$87)+ROUNDUP(COLUMNS($G:ED)/3,0))","v":0},null,{"$f":"INDIRECT(\"F\"&ROW($G$87)+ROUNDUP(COLUMNS($G:EF)/3,0))","v":0},{"$f":"INDIRECT(\"G\"&ROW($G$87)+ROUNDUP(COLUMNS($G:EG)/3,0))","v":0},null,{"$f":"INDIRECT(\"F\"&ROW($G$87)+ROUNDUP(COLUMNS($G:EI)/3,0))","v":0},{"$f":"INDIRECT(\"G\"&ROW($G$87)+ROUNDUP(COLUMNS($G:EJ)/3,0))","v":0},null,{"$f":"INDIRECT(\"F\"&ROW($G$87)+ROUNDUP(COLUMNS($G:EL)/3,0))","v":0},{"$f":"INDIRECT(\"G\"&ROW($G$87)+ROUNDUP(COLUMNS($G:EM)/3,0))","v":0},null,{"$f":"INDIRECT(\"F\"&ROW($G$87)+ROUNDUP(COLUMNS($G:EO)/3,0))","v":0},{"$f":"INDIRECT(\"G\"&ROW($G$87)+ROUNDUP(COLUMNS($G:EP)/3,0))","v":0},null,{"$f":"INDIRECT(\"F\"&ROW($G$87)+ROUNDUP(COLUMNS($G:ER)/3,0))","v":0},{"$f":"INDIRECT(\"G\"&ROW($G$87)+ROUNDUP(COLUMNS($G:ES)/3,0))","v":0},null,{"$f":"EU81+EV81","v":0}]
["เวลากลับถึงสำนักงานเช็คของเสีย",null,null,{"$f":"D139","v":"00:00:00"},null,"ผลต่าง",{"$f":"G82+H82+G80-G9","v":0},null,null,{"$f":"J82+K82+J80-J9","v":0},null,null,{"$f":"M82+N82+M80-M9","v":0},null,null,{"$f":"P82+Q82+P80-P9","v":0},null,null,{"$f":"S82+T82+S80-S9","v":0},null,null,{"$f":"V82+W82+V80-V9","v":0},null,null,{"$f":"Y82+Z82+Y80-Y9","v":0},null,null,{"$f":"AB82+AC82+AB80-AB9","v":0},null,null,{"$f":"AE82+AF82+AE80-AE9","v":0},null,null,{"$f":"AH82+AI82+AH80-AH9","v":0},null,null,{"$f":"AK82+AL82+AK80-AK9","v":0},null,null,{"$f":"AN82+AO82+AN80-AN9","v":0},null,null,{"$f":"AQ82+AR82+AQ80-AQ9","v":0},null,null,{"$f":"AT82+AU82+AT80-AT9","v":0},null,null,{"$f":"AW82+AX82+AW80-AW9","v":0},null,null,{"$f":"AZ82+BA82+AZ80-AZ9","v":0},null,null,{"$f":"BC82+BD82+BC80-BC9","v":0},null,null,{"$f":"BF82+BG82+BF80-BF9","v":0},null,null,{"$f":"BI82+BJ82+BI80-BI9","v":0},null,null,{"$f":"BL82+BM82+BL80-BL9","v":0},null,null,{"$f":"BO82+BP82+BO80-BO9","v":0},null,null,{"$f":"BR82+BS82+BR80-BR9","v":0},null,null,{"$f":"BU82+BV82+BU80-BU9","v":0},null,null,{"$f":"BX82+BY82+BX80-BX9","v":0},null,null,{"$f":"CA82+CB82+CA80-CA9","v":0},null,null,{"$f":"CD82+CE82+CD80-CD9","v":0},null,null,{"$f":"CG82+CH82+CG80-CG9","v":0},null,null,{"$f":"CJ82+CK82+CJ80-CJ9","v":0},null,null,{"$f":"CM82+CN82+CM80-CM9","v":0},null,null,{"$f":"CP82+CQ82+CP80-CP9","v":0},null,null,{"$f":"CS82+CT82+CS80-CS9","v":0},null,null,{"$f":"CV82+CW82+CV80-CV9","v":0},null,null,{"$f":"CY82+CZ82+CY80-CY9","v":0},null,null,{"$f":"DB82+DC82+DB80-DB9","v":0},null,null,{"$f":"DE82+DF82+DE80-DE9","v":0},null,null,{"$f":"DH82+DI82+DH80-DH9","v":0},null,null,{"$f":"DK82+DL82+DK80-DK9","v":0},null,null,{"$f":"DN82+DO82+DN80-DN9","v":0},null,null,{"$f":"DQ82+DR82+DQ80-DQ9","v":0},null,null,{"$f":"DT82+DU82+DT80-DT9","v":0},null,null,{"$f":"DW82+DX82+DW80-DW9","v":0},null,null,{"$f":"DZ82+EA82+DZ80-DZ9","v":0},null,null,{"$f":"EC82+ED82+EC80-EC9","v":0},null,null,{"$f":"EF82+EG82+EF80-EF9","v":0},null,null,{"$f":"EI82+EJ82+EI80-EI9","v":0},null,null,{"$f":"EL82+EM82+EL80-EL9","v":0},null,null,{"$f":"EO82+EP82+EO80-EO9","v":0},null,null,{"$f":"ER82+ES82+ER80-ER9","v":0}]
["เป็นเงิน",null,null,null,null,null,{"$f":"G8*G83","v":0},null,null,{"$f":"J8*J83","v":0},null,null,{"$f":"M8*M83","v":0},null,null,{"$f":"P8*P83","v":0},null,null,{"$f":"S8*S83","v":0},null,null,{"$f":"V8*V83","v":0},null,null,{"$f":"Y8*Y83","v":0},null,null,{"$f":"AB8*AB83","v":0},null,null,{"$f":"AE8*AE83","v":0},null,null,{"$f":"AH8*AH83","v":0},null,null,{"$f":"AK8*AK83","v":0},null,null,{"$f":"AN8*AN83","v":0},null,null,{"$f":"AQ8*AQ83","v":0},null,null,{"$f":"AT8*AT83","v":0},null,null,{"$f":"AW8*AW83","v":0},null,null,{"$f":"AZ8*AZ83","v":0},null,null,{"$f":"BC8*BC83","v":0},null,null,{"$f":"BF8*BF83","v":0},null,null,{"$f":"BI8*BI83","v":0},null,null,{"$f":"BL8*BL83","v":0},null,null,{"$f":"BO8*BO83","v":0},null,null,{"$f":"BR8*BR83","v":0},null,null,{"$f":"BU8*BU83","v":0},null,null,{"$f":"BX8*BX83","v":0},null,null,{"$f":"CA8*CA83","v":0},null,null,{"$f":"CD8*CD83","v":0},null,null,{"$f":"CG8*CG83","v":0},null,null,{"$f":"CJ8*CJ83","v":0},null,null,{"$f":"CM8*CM83","v":0},null,null,{"$f":"CP8*CP83","v":0},null,null,{"$f":"CS8*CS83","v":0},null,null,{"$f":"CV8*CV83","v":0},null,null,{"$f":"CY8*CY83","v":0},null,null,{"$f":"DB8*DB83","v":0},null,null,{"$f":"DE8*DE83","v":0},null,null,{"$f":"DH8*DH83","v":0},null,null,{"$f":"DK8*DK83","v":0},null,null,{"$f":"DN8*DN83","v":0},null,null,{"$f":"DQ8*DQ83","v":0},null,null,{"$f":"DT8*DT83","v":0},null,null,{"$f":"DW8*DW83","v":0},null,null,0,null,null,{"$f":"EC8*EC83","v":0},null,null,{"$f":"EF8*EF83","v":0},null,null,{"$f":"EI8*EI83","v":0},null,null,{"$f":"EL8*EL83","v":0},null,null,{"$f":"EO8*EO83","v":0},null,null,{"$f":"ER8*ER83","v":0},null,null,{"$f":"$AP$98","v":0}]
[null,null,null,"ผู้จัดทำ……………………………………………………………………",null,null,null,null,null,null,null,null,null,null,null,null,null,null,null,null,null,null,null,"ผู้ตรวจ(ผจก.)………………………………………………………………………………."]
[null,null,"ใบจ่ายสินค้า",null,null,null,null,null,null,null,null,null,null,null,null,null,null,{"$f":"IF(ISODD(COLUMN()),MAX($F$86:Q$86)+1,\"\")","v":""}]
["ราคา","ลำดับ","รายการ","ยกมา","เบิก","เหลือ","เสีย","โอนเข้า","โอนออก","ชำรุด","รวม",null,"ขาย",null,"ขาด/เกิน",null,"บาท",null,null,null,"ขายได้",null,"ควรเบิก",null,"หมายเหตุ",null,null,null,"เสีย PDA","เสียจริง","เหลือ PDA","ผลต่าง","เหลือลูกค้า","หมายเหตุ",null,null,null,null,"Price","Quantity","Baht","Deduct"]
[{"$f":"IF(B88=\"\",0,INDEX(Price_List,ROWS($88:88)))","v":20},{"$f":"IF($C88=\"\",\"\",COUNTA($C$88:$C88))","v":1},{"$f":"IF(INDEX(INDIRECT(\"Product_List\"),ROWS($88:88))=\"\",\"\",INDEX(INDIRECT(\"Product_List\"),ROWS($88:88)))","v":"01-ขนมปังหมูหยองน้ำสลัด"},{"$f":"ยอดยกมา","v":0},null,null,null,null,null,null,{"$f":"D88+E88+J88-I88+H88","v":0},null,{"$f":"INDIRECT(ADDRESS(ROW(A$80),ROW()-ROW(A$80)+(ROWS($88:88)-1)*2-1,4))","v":0},null,{"$f":"F88+G88+M88+J88-K88","v":0},null,{"$f":"O88*A88","v":0},null,null,null,{"$f":"D88+E88-F88-G88","v":0},null,{"$f":"U88*6%+U88","v":0},null,null,null,null,null,{"$f":"INDIRECT(ADDRESS(ROW(A$80),ROW()-ROW(A$80)+(ROWS($88:88)-1)*2,4))","v":0},{"$f":"$G88","v":0},null,{"$f":"$F88-$AE88","v":0},{"$f":"INDIRECT(ADDRESS(ROW(A$80),ROW()-ROW(A$80)+(ROWS($88:88)-1)*2+1,4))","v":0},null,null,null,null,null,10,{"$f":"SUMPRODUCT(($A$88:$A$135=$AM88)*(($F$88:$F$135)+($G$88:$G$135)+($M$88:$M$135)+($J$88:$J$135)-($K$88:$K$135)))","v":0},{"$f":"AM88*AN88","v":0},{"$f":"IF(AO88<0,AO88,0)","v":0}]
[{"$f":"IF(B89=\"\",0,INDEX(Price_List,ROWS($88:89)))","v":20},{"$f":"IF($C89=\"\",\"\",COUNTA($C$88:$C89))","v":2},{"$f":"IF(INDEX(INDIRECT(\"Product_List\"),ROWS($88:89))=\"\",\"\",INDEX(INDIRECT(\"Product_List\"),ROWS($88:89)))","v":"02-ขนมปังหมูหยองน้ำพริกเผา"},{"$f":"ยอดยกมา","v":0},null,null,null,null,null,null,{"$f":"D89+E89+J89-I89+H89","v":0},null,{"$f":"INDIRECT(ADDRESS(ROW(A$80),ROW()-ROW(A$80)+(ROWS($88:89)-1)*2-1,4))","v":0},null,{"$f":"F89+G89+M89+J89-K89","v":0},null,{"$f":"O89*A89","v":0},null,null,null,{"$f":"D89+E89-F89-G89","v":0},null,{"$f":"U89*6%+U89","v":0},null,null,null,null,null,{"$f":"INDIRECT(ADDRESS(ROW(A$80),ROW()-ROW(A$80)+(ROWS($88:89)-1)*2,4))","v":0},{"$f":"$G89","v":0},null,{"$f":"$F89-$AE89","v":0},{"$f":"INDIRECT(ADDRESS(ROW(A$80),ROW()-ROW(A$80)+(ROWS($88:89)-1)*2+1,4))","v":0},null,null,null,null,null,12,0,{"$f":"AM89*AN89","v":0},{"$f":"IF(AO89<0,AO89,0)","v":0}]
[{"$f":"IF(B90=\"\",0,INDEX(Price_List,ROWS($88:90)))","v":20},{"$f":"IF($C90=\"\",\"\",COUNTA($C$88:$C90))","v":3},{"$f":"IF(INDEX(INDIRECT(\"Product_List\"),ROWS($88:90))=\"\",\"\",INDEX(INDIRECT(\"Product_List\"),ROWS($88:90)))","v":"03-ขนมปังไก่หยองน้ำสลัด"},{"$f":"ยอดยกมา","v":0},null,null,null,null,null,null,0,null,{"$f":"INDIRECT(ADDRESS(ROW(A$80),ROW()-ROW(A$80)+(ROWS($88:90)-1)*2-1,4))","v":0},null,0,null,0,null,null,null,0,null,0,null,null,null,null,null,{"$f":"INDIRECT(ADDRESS(ROW(A$80),ROW()-ROW(A$80)+(ROWS($88:90)-1)*2,4))","v":0},0,null,0,{"$f":"INDIRECT(ADDRESS(ROW(A$80),ROW()-ROW(A$80)+(ROWS($88:90)-1)*2+1,4))","v":0},null,null,null,null,null,13,0,0,0]
[{"$f":"IF(B91=\"\",0,INDEX(Price_List,ROWS($88:91)))","v":15},{"$f":"IF($C91=\"\",\"\",COUNTA($C$88:$C91))","v":4},{"$f":"IF(INDEX(INDIRECT(\"Product_List\"),ROWS($88:91))=\"\",\"\",INDEX(INDIRECT(\"Product_List\"),ROWS($88:91)))","v":"04-ขนมปังไส้ครีมสลัด"},{"$f":"ยอดยกมา","v":0},null,null,null,null,null,null,0,null,{"$f":"INDIRECT(ADDRESS(ROW(A$80),ROW()-ROW(A$80)+(ROWS($88:91)-1)*2-1,4))","v":0},null,{"$f":"F91+G91+M91+J91-K91","v":0},null,0,null,null,null,0,null,0,null,null,null,null,null,{"$f":"INDIRECT(ADDRESS(ROW(A$80),ROW()-ROW(A$80)+(ROWS($88:91)-1)*2,4))","v":0},0,null,0,{"$f":"INDIRECT(ADDRESS(ROW(A$80),ROW()-ROW(A$80)+(ROWS($88:91)-1)*2+1,4))","v":0},null,null,null,null,null,15,0,0,0]
[{"$f":"IF(B92=\"\",0,INDEX(Price_List,ROWS($88:92)))","v":15},{"$f":"IF($C92=\"\",\"\",COUNTA($C$88:$C92))","v":5},{"$f":"IF(INDEX(INDIRECT(\"Product_List\"),ROWS($88:92))=\"\",\"\",INDEX(INDIRECT(\"Product_List\"),ROWS($88:92)))","v":"05-ขนมปังเนยสด"},{"$f":"ยอดยกมา","v":0},null,null,null,null,null,null,0,null,{"$f":"INDIRECT(ADDRESS(ROW(A$80),ROW()-ROW(A$80)+(ROWS($88:92)-1)*2-1,4))","v":0},null,0,null,0,null,null,null,0,null,0,null,null,null,null,null,{"$f":"INDIRECT(ADDRESS(ROW(A$80),ROW()-ROW(A$80)+(ROWS($88:92)-1)*2,4))","v":0},0,null,0,{"$f":"INDIRECT(ADDRESS(ROW(A$80),ROW()-ROW(A$80)+(ROWS($88:92)-1)*2+1,4))","v":0},null,null,null,null,null,16,0,0,0]
[{"$f":"IF(B93=\"\",0,INDEX(Price_List,ROWS($88:93)))","v":10},{"$f":"IF($C93=\"\",\"\",COUNTA($C$88:$C93))","v":6},{"$f":"IF(INDEX(INDIRECT(\"Product_List\"),ROWS($88:93))=\"\",\"\",INDEX(INDIRECT(\"Product_List\"),ROWS($88:93)))","v":"06-ขนมปังไส้สังขยาเล็ก"},{"$f":"ยอดยกมา","v":0},null,null,null,null,null,null,0,null,{"$f":"INDIRECT(ADDRESS(ROW(A$80),ROW()-ROW(A$80)+(ROWS($88:93)-1)*2-1,4))","v":0},null,0,null,0,null,null,null,0,null,0,null,null,null,null,null,{"$f":"INDIRECT(ADDRESS(ROW(A$80),ROW()-ROW(A$80)+(ROWS($88:93)-1)*2,4))","v":0},0,null,0,{"$f":"INDIRECT(ADDRESS(ROW(A$80),ROW()-ROW(A$80)+(ROWS($88:93)-1)*2+1,4))","v":0},null,null,null,null,null,18,0,0,0]
[{"$f":"IF(B94=\"\",0,INDEX(Price_List,ROWS($88:94)))","v":10},{"$f":"IF($C94=\"\",\"\",COUNTA($C$88:$C94))","v":7},{"$f":"IF(INDEX(INDIRECT(\"Product_List\"),ROWS($88:94))=\"\",\"\",INDEX(INDIRECT(\"Product_List\"),ROWS($88:94)))","v":"07-ขนมปังไส้เผือก"},{"$f":"ยอดยกมา","v":0},null,null,null,null,null,null,0,null,{"$f":"INDIRECT(ADDRESS(ROW(A$80),ROW()-ROW(A$80)+(ROWS($88:94)-1)*2-1,4))","v":0},null,0,null,0,null,null,null,0,null,0,null,null,null,null,null,{"$f":"INDIRECT(ADDRESS(ROW(A$80),ROW()-ROW(A$80)+(ROWS($88:94)-1)*2,4))","v":0},0,null,0,{"$f":"INDIRECT(ADDRESS(ROW(A$80),ROW()-ROW(A$80)+(ROWS($88:94)-1)*2+1,4))","v":0},null,null,null,null,null,20,0,0,0]
[{"$f":"IF(B95=\"\",0,INDEX(Price_List,ROWS($88:95)))","v":10},{"$f":"IF($C95=\"\",\"\",COUNTA($C$88:$C95))","v":8},{"$f":"IF(INDEX(INDIRECT(\"Product_List\"),ROWS($88:95))=\"\",\"\",INDEX(INDIRECT(\"Product_List\"),ROWS($88:95)))","v":"08-ขนมปังไส้ถั่วแดง"},{"$f":"ยอดยกมา","v":0},null,null,null,null,null,null,0,null,{"$f":"INDIRECT(ADDRESS(ROW(A$80),ROW()-ROW(A$80)+(ROWS($88:95)-1)*2-1,4))","v":0},null,0,null,0,null,null,null,0,null,0,null,null,null,null,null,{"$f":"INDIRECT(ADDRESS(ROW(A$80),ROW()-ROW(A$80)+(ROWS($88:95)-1)*2,4))","v":0},0,null,0,{"$f":"INDIRECT(ADDRESS(ROW(A$80),ROW()-ROW(A$80)+(ROWS($88:95)-1)*2+1,4))","v":0},null,null,null,null,null,22,0,0,0]
[{"$f":"IF(B96=\"\",0,INDEX(Price_List,ROWS($88:96)))","v":10},{"$f":"IF($C96=\"\",\"\",COUNTA($C$88:$C96))","v":9},{"$f":"IF(INDEX(INDIRECT(\"Product_List\"),ROWS($88:96))=\"\",\"\",INDEX(INDIRECT(\"Product_List\"),ROWS($88:96)))","v":"09-ขนมปังไส้ถั่วดำ"},{"$f":"ยอดยกมา","v":0},null,null,null,null,null,null,0,null,{"$f":"INDIRECT(ADDRESS(ROW(A$80),ROW()-ROW(A$80)+(ROWS($88:96)-1)*2-1,4))","v":0},null,0,null,0,null,null,null,0,null,0,null,null,null,null,null,{"$f":"INDIRECT(ADDRESS(ROW(A$80),ROW()-ROW(A$80)+(ROWS($88:96)-1)*2,4))","v":0},0,null,0,{"$f":"INDIRECT(ADDRESS(ROW(A$80),ROW()-ROW(A$80)+(ROWS($88:96)-1)*2+1,4))","v":0},null,null,null,null,null,25,0,0,0]
[{"$f":"IF(B97=\"\",0,INDEX(Price_List,ROWS($88:97)))","v":10},{"$f":"IF($C97=\"\",\"\",COUNTA($C$88:$C97))","v":10},{"$f":"IF(INDEX(INDIRECT(\"Product_List\"),ROWS($88:97))=\"\",\"\",INDEX(INDIRECT(\"Product_List\"),ROWS($88:97)))","v":"10-ขนมปังไส้มันม่วง"},{"$f":"ยอดยกมา","v":0},null,null,null,null,null,null,0,null,{"$f":"INDIRECT(ADDRESS(ROW(A$80),ROW()-ROW(A$80)+(ROWS($88:97)-1)*2-1,4))","v":0},null,0,null,0,null,null,null,0,null,0,null,null,null,null,null,{"$f":"INDIRECT(ADDRESS(ROW(A$80),ROW()-ROW(A$80)+(ROWS($88:97)-1)*2,4))","v":0},0,null,0,{"$f":"INDIRECT(ADDRESS(ROW(A$80),ROW()-ROW(A$80)+(ROWS($88:97)-1)*2+1,4))","v":0},null,null,null,null,null,42,0,0,0]
[{"$f":"IF(B98=\"\",0,INDEX(Price_List,ROWS($88:98)))","v":15},{"$f":"IF($C98=\"\",\"\",COUNTA($C$88:$C98))","v":11},{"$f":"IF(INDEX(INDIRECT(\"Product_List\"),ROWS($88:98))=\"\",\"\",INDEX(INDIRECT(\"Product_List\"),ROWS($88:98)))","v":"11-เค้กกล้วยหอม"},{"$f":"ยอดยกมา","v":0},null,null,null,null,null,null,0,null,{"$f":"INDIRECT(ADDRESS(ROW(A$80),ROW()-ROW(A$80)+(ROWS($88:98)-1)*2-1,4))","v":0},null,0,null,0,null,null,null,0,null,0,null,null,null,null,null,{"$f":"INDIRECT(ADDRESS(ROW(A$80),ROW()-ROW(A$80)+(ROWS($88:98)-1)*2,4))","v":0},0,null,0,{"$f":"INDIRECT(ADDRESS(ROW(A$80),ROW()-ROW(A$80)+(ROWS($88:98)-1)*2+1,4))","v":0},null,null,null,null,null,"Total Deduct",null,null,{"$f":"SUM($AP$88:$AP$97)","v":0}]
[{"$f":"IF(B99=\"\",0,INDEX(Price_List,ROWS($88:99)))","v":15},{"$f":"IF($C99=\"\",\"\",COUNTA($C$88:$C99))","v":12},{"$f":"IF(INDEX(INDIRECT(\"Product_List\"),ROWS($88:99))=\"\",\"\",INDEX(INDIRECT(\"Product_List\"),ROWS($88:99)))","v":"12-เค้กบัตเตอร์"},{"$f":"ยอดยกมา","v":0},null,null,null,null,null,null,0,null,{"$f":"INDIRECT(ADDRESS(ROW(A$80),ROW()-ROW(A$80)+(ROWS($88:99)-1)*2-1,4))","v":0},null,0,null,0,null,null,null,0,null,0,null,null,null,null,null,{"$f":"INDIRECT(ADDRESS(ROW(A$80),ROW()-ROW(A$80)+(ROWS($88:99)-1)*2,4))","v":0},0,null,0,{"$f":"INDIRECT(ADDRESS(ROW(A$80),ROW()-ROW(A$80)+(ROWS($88:99)-1)*2+1,4))","v":0}]
[{"$f":"IF(B100=\"\",0,INDEX(Price_List,ROWS($88:100)))","v":15},{"$f":"IF($C100=\"\",\"\",COUNTA($C$88:$C100))","v":13},{"$f":"IF(INDEX(INDIRECT(\"Product_List\"),ROWS($88:100))=\"\",\"\",INDEX(INDIRECT(\"Product_List\"),ROWS($88:100)))","v":"13-ขนมปังโรลถั่วแดง"},{"$f":"ยอดยกมา","v":0},null,null,null,null,null,null,0,null,{"$f":"INDIRECT(ADDRESS(ROW(A$80),ROW()-ROW(A$80)+(ROWS($88:100)-1)*2-1,4))","v":0},null,0,null,0,null,null,null,0,null,0,null,null,null,null,null,{"$f":"INDIRECT(ADDRESS(ROW(A$80),ROW()-ROW(A$80)+(ROWS($88:100)-1)*2,4))","v":0},0,null,0,{"$f":"INDIRECT(ADDRESS(ROW(A$80),ROW()-ROW(A$80)+(ROWS($88:100)-1)*2+1,4))","v":0}]
[{"$f":"IF(B101=\"\",0,INDEX(Price_List,ROWS($88:101)))","v":15},{"$f":"IF($C101=\"\",\"\",COUNTA($C$88:$C101))","v":14},{"$f":"IF(INDEX(INDIRECT(\"Product_List\"),ROWS($88:101))=\"\",\"\",INDEX(INDIRECT(\"Product_List\"),ROWS($88:101)))","v":"14-ขนมปังไส้สังขยาใหญ่"},{"$f":"ยอดยกมา","v":0},null,null,null,null,null,null,0,null,{"$f":"INDIRECT(ADDRESS(ROW(A$80),ROW()-ROW(A$80)+(ROWS($88:101)-1)*2-1,4))","v":0},null,0,null,0,null,null,null,0,null,0,null,null,null,null,null,{"$f":"INDIRECT(ADDRESS(ROW(A$80),ROW()-ROW(A$80)+(ROWS($88:101)-1)*2,4))","v":0},0,null,0,{"$f":"INDIRECT(ADDRESS(ROW(A$80),ROW()-ROW(A$80)+(ROWS($88:101)-1)*2+1,4))","v":0}]
[{"$f":"IF(B102=\"\",0,INDEX(Price_List,ROWS($88:102)))","v":42},{"$f":"IF($C102=\"\",\"\",COUNTA($C$88:$C102))","v":15},{"$f":"IF(INDEX(INDIRECT(\"Product_List\"),ROWS($88:102))=\"\",\"\",INDEX(INDIRECT(\"Product_List\"),ROWS($88:102)))","v":"15-ขนมปังชนิดแผ่น(480กรัม)"},{"$f":"ยอดยกมา","v":0},null,null,null,null,null,null,0,null,{"$f":"INDIRECT(ADDRESS(ROW(A$80),ROW()-ROW(A$80)+(ROWS($88:102)-1)*2-1,4))","v":0},null,0,null,0,null,null,null,0,null,0,null,null,null,null,null,{"$f":"INDIRECT(ADDRESS(ROW(A$80),ROW()-ROW(A$80)+(ROWS($88:102)-1)*2,4))","v":0},0,null,0,{"$f":"INDIRECT(ADDRESS(ROW(A$80),ROW()-ROW(A$80)+(ROWS($88:102)-1)*2+1,4))","v":0}]
[{"$f":"IF(B103=\"\",0,INDEX(Price_List,ROWS($88:103)))","v":12},{"$f":"IF($C103=\"\",\"\",COUNTA($C$88:$C103))","v":16},{"$f":"IF(INDEX(INDIRECT(\"Product_List\"),ROWS($88:103))=\"\",\"\",INDEX(INDIRECT(\"Product_List\"),ROWS($88:103)))","v":"16-โมจิไส้ถั่ว"},{"$f":"ยอดยกมา","v":0},null,null,null,null,null,null,0,null,{"$f":"INDIRECT(ADDRESS(ROW(A$80),ROW()-ROW(A$80)+(ROWS($88:103)-1)*2-1,4))","v":0},null,0,null,0,null,null,null,0,null,0,null,null,null,null,null,{"$f":"INDIRECT(ADDRESS(ROW(A$80),ROW()-ROW(A$80)+(ROWS($88:103)-1)*2,4))","v":0},0,null,0,{"$f":"INDIRECT(ADDRESS(ROW(A$80),ROW()-ROW(A$80)+(ROWS($88:103)-1)*2+1,4))","v":0}]
[{"$f":"IF(B104=\"\",0,INDEX(Price_List,ROWS($88:104)))","v":12},{"$f":"IF($C104=\"\",\"\",COUNTA($C$88:$C104))","v":17},{"$f":"IF(INDEX(INDIRECT(\"Product_List\"),ROWS($88:104))=\"\",\"\",INDEX(INDIRECT(\"Product_List\"),ROWS($88:104)))","v":"17-โมจิไส้เผือก"},{"$f":"ยอดยกมา","v":0},null,null,null,null,null,null,0,null,{"$f":"INDIRECT(ADDRESS(ROW(A$80),ROW()-ROW(A$80)+(ROWS($88:104)-1)*2-1,4))","v":0},null,0,null,0,null,null,null,0,null,0,null,null,null,null,null,{"$f":"INDIRECT(ADDRESS(ROW(A$80),ROW()-ROW(A$80)+(ROWS($88:104)-1)*2,4))","v":0},0,null,0,{"$f":"INDIRECT(ADDRESS(ROW(A$80),ROW()-ROW(A$80)+(ROWS($88:104)-1)*2+1,4))","v":0}]
[{"$f":"IF(B105=\"\",0,INDEX(Price_List,ROWS($88:105)))","v":15},{"$f":"IF($C105=\"\",\"\",COUNTA($C$88:$C105))","v":18},{"$f":"IF(INDEX(INDIRECT(\"Product_List\"),ROWS($88:105))=\"\",\"\",INDEX(INDIRECT(\"Product_List\"),ROWS($88:105)))","v":"18-โมจิไส้ถั่วไข่เค็ม"},{"$f":"ยอดยกมา","v":0},null,null,null,null,null,null,0,null,{"$f":"INDIRECT(ADDRESS(ROW(A$80),ROW()-ROW(A$80)+(ROWS($88:105)-1)*2-1,4))","v":0},null,0,null,0,null,null,null,0,null,0,null,null,null,null,null,{"$f":"INDIRECT(ADDRESS(ROW(A$80),ROW()-ROW(A$80)+(ROWS($88:105)-1)*2,4))","v":0},0,null,0,{"$f":"INDIRECT(ADDRESS(ROW(A$80),ROW()-ROW(A$80)+(ROWS($88:105)-1)*2+1,4))","v":0}]
[{"$f":"IF(B106=\"\",0,INDEX(Price_List,ROWS($88:106)))","v":20},{"$f":"IF($C106=\"\",\"\",COUNTA($C$88:$C106))","v":19},{"$f":"IF(INDEX(INDIRECT(\"Product_List\"),ROWS($88:106))=\"\",\"\",INDEX(INDIRECT(\"Product_List\"),ROWS($88:106)))","v":"19-ขนมปังพิซซ่า"},{"$f":"ยอดยกมา","v":0},null,null,null,null,null,null,0,null,{"$f":"INDIRECT(ADDRESS(ROW(A$80),ROW()-ROW(A$80)+(ROWS($88:106)-1)*2-1,4))","v":0},null,0,null,0,null,null,null,0,null,0,null,null,null,null,null,{"$f":"INDIRECT(ADDRESS(ROW(A$80),ROW()-ROW(A$80)+(ROWS($88:106)-1)*2,4))","v":0},0,null,0,{"$f":"INDIRECT(ADDRESS(ROW(A$80),ROW()-ROW(A$80)+(ROWS($88:106)-1)*2+1,4))","v":0}]
[{"$f":"IF(B107=\"\",0,INDEX(Price_List,ROWS($88:107)))","v":20},{"$f":"IF($C107=\"\",\"\",COUNTA($C$88:$C107))","v":20},{"$f":"IF(INDEX(INDIRECT(\"Product_List\"),ROWS($88:107))=\"\",\"\",INDEX(INDIRECT(\"Product_List\"),ROWS($88:107)))","v":"20-ขนมปังพิซซ่าปูอัดแฮม"},{"$f":"ยอดยกมา","v":0},null,null,null,null,null,null,0,null,{"$f":"INDIRECT(ADDRESS(ROW(A$80),ROW()-ROW(A$80)+(ROWS($88:107)-1)*2-1,4))","v":0},null,0,null,0,null,null,null,0,null,0,null,null,null,null,null,{"$f":"INDIRECT(ADDRESS(ROW(A$80),ROW()-ROW(A$80)+(ROWS($88:107)-1)*2,4))","v":0},0,null,0,{"$f":"INDIRECT(ADDRESS(ROW(A$80),ROW()-ROW(A$80)+(ROWS($88:107)-1)*2+1,4))","v":0}]
[{"$f":"IF(B108=\"\",0,INDEX(Price_List,ROWS($88:108)))","v":20},{"$f":"IF($C108=\"\",\"\",COUNTA($C$88:$C108))","v":21},{"$f":"IF(INDEX(INDIRECT(\"Product_List\"),ROWS($88:108))=\"\",\"\",INDEX(INDIRECT(\"Product_List\"),ROWS($88:108)))","v":"21-ขนมปังไส้กรอก"},{"$f":"ยอดยกมา","v":0},null,null,null,null,null,null,0,null,{"$f":"INDIRECT(ADDRESS(ROW(A$80),ROW()-ROW(A$80)+(ROWS($88:108)-1)*2-1,4))","v":0},null,0,null,0,null,null,null,0,null,0,null,null,null,null,null,{"$f":"INDIRECT(ADDRESS(ROW(A$80),ROW()-ROW(A$80)+(ROWS($88:108)-1)*2,4))","v":0},0,null,0,{"$f":"INDIRECT(ADDRESS(ROW(A$80),ROW()-ROW(A$80)+(ROWS($88:108)-1)*2+1,4))","v":0}]
[{"$f":"IF(B109=\"\",0,INDEX(Price_List,ROWS($88:109)))","v":15},{"$f":"IF($C109=\"\",\"\",COUNTA($C$88:$C109))","v":22},{"$f":"IF(INDEX(INDIRECT(\"Product_List\"),ROWS($88:109))=\"\",\"\",INDEX(INDIRECT(\"Product_List\"),ROWS($88:109)))","v":"22-ขนมก้านบัว"},{"$f":"ยอดยกมา","v":0},null,null,null,null,null,null,0,null,{"$f":"INDIRECT(ADDRESS(ROW(A$80),ROW()-ROW(A$80)+(ROWS($88:109)-1)*2-1,4))","v":0},null,0,null,0,null,null,null,0,null,0,null,null,null,null,null,{"$f":"INDIRECT(ADDRESS(ROW(A$80),ROW()-ROW(A$80)+(ROWS($88:109)-1)*2,4))","v":0},0,null,0,{"$f":"INDIRECT(ADDRESS(ROW(A$80),ROW()-ROW(A$80)+(ROWS($88:109)-1)*2+1,4))","v":0}]
[{"$f":"IF(B110=\"\",0,INDEX(Price_List,ROWS($88:110)))","v":20},{"$f":"IF($C110=\"\",\"\",COUNTA($C$88:$C110))","v":23},{"$f":"IF(INDEX(INDIRECT(\"Product_List\"),ROWS($88:110))=\"\",\"\",INDEX(INDIRECT(\"Product_List\"),ROWS($88:110)))","v":"23-พายสับปะรด"},{"$f":"ยอดยกมา","v":0},null,null,null,null,null,null,0,null,{"$f":"INDIRECT(ADDRESS(ROW(A$80),ROW()-ROW(A$80)+(ROWS($88:110)-1)*2-1,4))","v":0},null,0,null,0,null,null,null,0,null,0,null,null,null,null,null,{"$f":"INDIRECT(ADDRESS(ROW(A$80),ROW()-ROW(A$80)+(ROWS($88:110)-1)*2,4))","v":0},0,null,0,{"$f":"INDIRECT(ADDRESS(ROW(A$80),ROW()-ROW(A$80)+(ROWS($88:110)-1)*2+1,4))","v":0}]
[{"$f":"IF(B111=\"\",0,INDEX(Price_List,ROWS($88:111)))","v":20},{"$f":"IF($C111=\"\",\"\",COUNTA($C$88:$C111))","v":24},{"$f":"IF(INDEX(INDIRECT(\"Product_List\"),ROWS($88:111))=\"\",\"\",INDEX(INDIRECT(\"Product_List\"),ROWS($88:111)))","v":"24-พายไส้มะพร้าว"},{"$f":"ยอดยกมา","v":0},null,null,null,null,null,null,0,null,{"$f":"INDIRECT(ADDRESS(ROW(A$80),ROW()-ROW(A$80)+(ROWS($88:111)-1)*2-1,4))","v":0},null,0,null,0,null,null,null,0,null,0,null,null,null,null,null,{"$f":"INDIRECT(ADDRESS(ROW(A$80),ROW()-ROW(A$80)+(ROWS($88:111)-1)*2,4))","v":0},0,null,0,{"$f":"INDIRECT(ADDRESS(ROW(A$80),ROW()-ROW(A$80)+(ROWS($88:111)-1)*2+1,4))","v":0}]
[{"$f":"IF(B112=\"\",0,INDEX(Price_List,ROWS($88:112)))","v":15},{"$f":"IF($C112=\"\",\"\",COUNTA($C$88:$C112))","v":25},{"$f":"IF(INDEX(INDIRECT(\"Product_List\"),ROWS($88:112))=\"\",\"\",INDEX(INDIRECT(\"Product_List\"),ROWS($88:112)))","v":"25-ขนมปังโรลมันเทศ"},{"$f":"ยอดยกมา","v":0},null,null,null,null,null,null,0,null,{"$f":"INDIRECT(ADDRESS(ROW(A$80),ROW()-ROW(A$80)+(ROWS($88:112)-1)*2-1,4))","v":0},null,0,null,0,null,null,null,0,null,0,null,null,null,null,null,{"$f":"INDIRECT(ADDRESS(ROW(A$80),ROW()-ROW(A$80)+(ROWS($88:112)-1)*2,4))","v":0},0,null,0,{"$f":"INDIRECT(ADDRESS(ROW(A$80),ROW()-ROW(A$80)+(ROWS($88:112)-1)*2+1,4))","v":0}]
[{"$f":"IF(B113=\"\",0,INDEX(Price_List,ROWS($88:113)))","v":15},{"$f":"IF($C113=\"\",\"\",COUNTA($C$88:$C113))","v":26},{"$f":"IF(INDEX(INDIRECT(\"Product_List\"),ROWS($88:113))=\"\",\"\",INDEX(INDIRECT(\"Product_List\"),ROWS($88:113)))","v":"26-ขนมปังไส้ครีมสลัดน้ำพริกเผา"},{"$f":"ยอดยกมา","v":0},null,null,null,null,null,null,0,null,{"$f":"INDIRECT(ADDRESS(ROW(A$80),ROW()-ROW(A$80)+(ROWS($88:113)-1)*2-1,4))","v":0},null,0,null,0,null,null,null,0,null,0,null,null,null,null,null,{"$f":"INDIRECT(ADDRESS(ROW(A$80),ROW()-ROW(A$80)+(ROWS($88:113)-1)*2,4))","v":0},0,null,0,{"$f":"INDIRECT(ADDRESS(ROW(A$80),ROW()-ROW(A$80)+(ROWS($88:113)-1)*2+1,4))","v":0}]
[{"$f":"IF(B114=\"\",0,INDEX(Price_List,ROWS($88:114)))","v":20},{"$f":"IF($C114=\"\",\"\",COUNTA($C$88:$C114))","v":27},{"$f":"IF(INDEX(INDIRECT(\"Product_List\"),ROWS($88:114))=\"\",\"\",INDEX(INDIRECT(\"Product_List\"),ROWS($88:114)))","v":"27-ขนมปังไส้สังขยาไข่"},{"$f":"ยอดยกมา","v":0},null,null,null,null,null,null,0,null,{"$f":"INDIRECT(ADDRESS(ROW(A$80),ROW()-ROW(A$80)+(ROWS($88:114)-1)*2-1,4))","v":0},null,0,null,0,null,null,null,0,null,0,null,null,null,null,null,{"$f":"INDIRECT(ADDRESS(ROW(A$80),ROW()-ROW(A$80)+(ROWS($88:114)-1)*2,4))","v":0},0,null,0,{"$f":"INDIRECT(ADDRESS(ROW(A$80),ROW()-ROW(A$80)+(ROWS($88:114)-1)*2+1,4))","v":0}]
[{"$f":"IF(B115=\"\",0,INDEX(Price_List,ROWS($88:115)))","v":20},{"$f":"IF($C115=\"\",\"\",COUNTA($C$88:$C115))","v":28},{"$f":"IF(INDEX(INDIRECT(\"Product_List\"),ROWS($88:115))=\"\",\"\",INDEX(INDIRECT(\"Product_List\"),ROWS($88:115)))","v":"28-ขนมปังไส้สังขยามะพร้าว"},{"$f":"ยอดยกมา","v":0},null,null,null,null,null,null,0,null,{"$f":"INDIRECT(ADDRESS(ROW(A$80),ROW()-ROW(A$80)+(ROWS($88:115)-1)*2-1,4))","v":0},null,0,null,0,null,null,null,0,null,0,null,null,null,null,null,{"$f":"INDIRECT(ADDRESS(ROW(A$80),ROW()-ROW(A$80)+(ROWS($88:115)-1)*2,4))","v":0},0,null,0,{"$f":"INDIRECT(ADDRESS(ROW(A$80),ROW()-ROW(A$80)+(ROWS($88:115)-1)*2+1,4))","v":0}]
[{"$f":"IF(B116=\"\",0,INDEX(Price_List,ROWS($88:116)))","v":10},{"$f":"IF($C116=\"\",\"\",COUNTA($C$88:$C116))","v":29},{"$f":"IF(INDEX(INDIRECT(\"Product_List\"),ROWS($88:116))=\"\",\"\",INDEX(INDIRECT(\"Product_List\"),ROWS($88:116)))","v":"29-ขนมปังไส้ครีมชาไทย"},{"$f":"ยอดยกมา","v":0},null,null,null,null,null,null,0,null,{"$f":"INDIRECT(ADDRESS(ROW(A$80),ROW()-ROW(A$80)+(ROWS($88:116)-1)*2-1,4))","v":0},null,0,null,0,null,null,null,0,null,0,null,null,null,null,null,{"$f":"INDIRECT(ADDRESS(ROW(A$80),ROW()-ROW(A$80)+(ROWS($88:116)-1)*2,4))","v":0},0,null,0,{"$f":"INDIRECT(ADDRESS(ROW(A$80),ROW()-ROW(A$80)+(ROWS($88:116)-1)*2+1,4))","v":0}]
[{"$f":"IF(B117=\"\",0,INDEX(Price_List,ROWS($88:117)))","v":15},{"$f":"IF($C117=\"\",\"\",COUNTA($C$88:$C117))","v":30},{"$f":"IF(INDEX(INDIRECT(\"Product_List\"),ROWS($88:117))=\"\",\"\",INDEX(INDIRECT(\"Product_List\"),ROWS($88:117)))","v":"30-ขนมปังโรลมันม่วง"},{"$f":"ยอดยกมา","v":0},null,null,null,null,null,null,0,null,{"$f":"INDIRECT(ADDRESS(ROW(A$80),ROW()-ROW(A$80)+(ROWS($88:117)-1)*2-1,4))","v":0},null,0,null,0,null,null,null,0,null,0,null,null,null,null,null,{"$f":"INDIRECT(ADDRESS(ROW(A$80),ROW()-ROW(A$80)+(ROWS($88:117)-1)*2,4))","v":0},0,null,0,{"$f":"INDIRECT(ADDRESS(ROW(A$80),ROW()-ROW(A$80)+(ROWS($88:117)-1)*2+1,4))","v":0}]
[{"$f":"IF(B118=\"\",0,INDEX(Price_List,ROWS($88:118)))","v":15},{"$f":"IF($C118=\"\",\"\",COUNTA($C$88:$C118))","v":31},{"$f":"IF(INDEX(INDIRECT(\"Product_List\"),ROWS($88:118))=\"\",\"\",INDEX(INDIRECT(\"Product_List\"),ROWS($88:118)))","v":"31-ขนมปังโรลช็อกโกแลต"},{"$f":"ยอดยกมา","v":0},null,null,null,null,null,null,0,null,{"$f":"INDIRECT(ADDRESS(ROW(A$80),ROW()-ROW(A$80)+(ROWS($88:118)-1)*2-1,4))","v":0},null,0,null,0,null,null,null,0,null,0,null,null,null,null,null,{"$f":"INDIRECT(ADDRESS(ROW(A$80),ROW()-ROW(A$80)+(ROWS($88:118)-1)*2,4))","v":0},0,null,0,{"$f":"INDIRECT(ADDRESS(ROW(A$80),ROW()-ROW(A$80)+(ROWS($88:118)-1)*2+1,4))","v":0}]
[{"$f":"IF(B119=\"\",0,INDEX(Price_List,ROWS($88:119)))","v":16},{"$f":"IF($C119=\"\",\"\",COUNTA($C$88:$C119))","v":32},{"$f":"IF(INDEX(INDIRECT(\"Product_List\"),ROWS($88:119))=\"\",\"\",INDEX(INDIRECT(\"Product_List\"),ROWS($88:119)))","v":"32-ขนมปังชนิดแผ่น(155กรัม)"},{"$f":"ยอดยกมา","v":0},null,null,null,null,null,null,0,null,{"$f":"INDIRECT(ADDRESS(ROW(A$80),ROW()-ROW(A$80)+(ROWS($88:119)-1)*2-1,4))","v":0},null,0,null,0,null,null,null,0,null,0,null,null,null,null,null,{"$f":"INDIRECT(ADDRESS(ROW(A$80),ROW()-ROW(A$80)+(ROWS($88:119)-1)*2,4))","v":0},0,null,0,{"$f":"INDIRECT(ADDRESS(ROW(A$80),ROW()-ROW(A$80)+(ROWS($88:119)-1)*2+1,4))","v":0}]
[{"$f":"IF(B120=\"\",0,INDEX(Price_List,ROWS($88:120)))","v":15},{"$f":"IF($C120=\"\",\"\",COUNTA($C$88:$C120))","v":33},{"$f":"IF(INDEX(INDIRECT(\"Product_List\"),ROWS($88:120))=\"\",\"\",INDEX(INDIRECT(\"Product_List\"),ROWS($88:120)))","v":"33-ขนมปังโรลเผือก"},{"$f":"ยอดยกมา","v":0},null,null,null,null,null,null,0,null,{"$f":"INDIRECT(ADDRESS(ROW(A$80),ROW()-ROW(A$80)+(ROWS($88:120)-1)*2-1,4))","v":0},null,0,null,0,null,null,null,0,null,0,null,null,null,null,null,{"$f":"INDIRECT(ADDRESS(ROW(A$80),ROW()-ROW(A$80)+(ROWS($88:120)-1)*2,4))","v":0},0,null,0,{"$f":"INDIRECT(ADDRESS(ROW(A$80),ROW()-ROW(A$80)+(ROWS($88:120)-1)*2+1,4))","v":0}]
[{"$f":"IF(B121=\"\",0,INDEX(Price_List,ROWS($88:121)))","v":15},{"$f":"IF($C121=\"\",\"\",COUNTA($C$88:$C121))","v":34},{"$f":"IF(INDEX(INDIRECT(\"Product_List\"),ROWS($88:121))=\"\",\"\",INDEX(INDIRECT(\"Product_List\"),ROWS($88:121)))","v":"34-ขนมปังไก่หยองน้ำสลัด Mini"},{"$f":"ยอดยกมา","v":0},null,null,null,null,null,null,0,null,{"$f":"INDIRECT(ADDRESS(ROW(A$80),ROW()-ROW(A$80)+(ROWS($88:121)-1)*2-1,4))","v":0},null,0,null,0,null,null,null,0,null,0,null,null,null,null,null,{"$f":"INDIRECT(ADDRESS(ROW(A$80),ROW()-ROW(A$80)+(ROWS($88:121)-1)*2,4))","v":0},0,null,0,{"$f":"INDIRECT(ADDRESS(ROW(A$80),ROW()-ROW(A$80)+(ROWS($88:121)-1)*2+1,4))","v":0}]
[{"$f":"IF(B122=\"\",0,INDEX(Price_List,ROWS($88:122)))","v":10},{"$f":"IF($C122=\"\",\"\",COUNTA($C$88:$C122))","v":35},{"$f":"IF(INDEX(INDIRECT(\"Product_List\"),ROWS($88:122))=\"\",\"\",INDEX(INDIRECT(\"Product_List\"),ROWS($88:122)))","v":"35-ขนมปังไส้ช็อกโกแลต"},{"$f":"ยอดยกมา","v":0},null,null,null,null,null,null,0,null,{"$f":"INDIRECT(ADDRESS(ROW(A$80),ROW()-ROW(A$80)+(ROWS($88:122)-1)*2-1,4))","v":0},null,0,null,0,null,null,null,0,null,0,null,null,null,null,null,{"$f":"INDIRECT(ADDRESS(ROW(A$80),ROW()-ROW(A$80)+(ROWS($88:122)-1)*2,4))","v":0},0,null,0,{"$f":"INDIRECT(ADDRESS(ROW(A$80),ROW()-ROW(A$80)+(ROWS($88:122)-1)*2+1,4))","v":0}]
[{"$f":"IF(B123=\"\",0,INDEX(Price_List,ROWS($88:123)))","v":10},{"$f":"IF($C123=\"\",\"\",COUNTA($C$88:$C123))","v":36},{"$f":"IF(INDEX(INDIRECT(\"Product_List\"),ROWS($88:123))=\"\",\"\",INDEX(INDIRECT(\"Product_List\"),ROWS($88:123)))","v":"36-ขนมปังไส้ครีมสังขยาไข่"},{"$f":"ยอดยกมา","v":0},null,null,null,null,null,null,0,null,{"$f":"INDIRECT(ADDRESS(ROW(A$80),ROW()-ROW(A$80)+(ROWS($88:123)-1)*2-1,4))","v":0},null,0,null,0,null,null,null,0,null,0,null,null,null,null,null,{"$f":"INDIRECT(ADDRESS(ROW(A$80),ROW()-ROW(A$80)+(ROWS($88:123)-1)*2,4))","v":0},0,null,0,{"$f":"INDIRECT(ADDRESS(ROW(A$80),ROW()-ROW(A$80)+(ROWS($88:123)-1)*2+1,4))","v":0}]
[{"$f":"IF(B124=\"\",0,INDEX(Price_List,ROWS($88:124)))","v":20},{"$f":"IF($C124=\"\",\"\",COUNTA($C$88:$C124))","v":37},{"$f":"IF(INDEX(INDIRECT(\"Product_List\"),ROWS($88:124))=\"\",\"\",INDEX(INDIRECT(\"Product_List\"),ROWS($88:124)))","v":"37-ขนมปังพิซซ่าฮาวายเอี้ยน"},{"$f":"ยอดยกมา","v":0},null,null,null,null,null,null,0,null,{"$f":"INDIRECT(ADDRESS(ROW(A$80),ROW()-ROW(A$80)+(ROWS($88:124)-1)*2-1,4))","v":0},null,0,null,0,null,null,null,0,null,0,null,null,null,null,null,{"$f":"INDIRECT(ADDRESS(ROW(A$80),ROW()-ROW(A$80)+(ROWS($88:124)-1)*2,4))","v":0},0,null,0,{"$f":"INDIRECT(ADDRESS(ROW(A$80),ROW()-ROW(A$80)+(ROWS($88:124)-1)*2+1,4))","v":0}]
[{"$f":"IF(B125=\"\",0,INDEX(Price_List,ROWS($88:125)))","v":20},{"$f":"IF($C125=\"\",\"\",COUNTA($C$88:$C125))","v":38},{"$f":"IF(INDEX(INDIRECT(\"Product_List\"),ROWS($88:125))=\"\",\"\",INDEX(INDIRECT(\"Product_List\"),ROWS($88:125)))","v":"38-ครัวซองต์หมูหยองน้ำสลัด"},{"$f":"ยอดยกมา","v":0},null,null,null,null,null,null,0,null,{"$f":"INDIRECT(ADDRESS(ROW(A$80),ROW()-ROW(A$80)+(ROWS($88:125)-1)*2-1,4))","v":0},null,0,null,0,null,null,null,0,null,0,null,null,null,null,null,{"$f":"INDIRECT(ADDRESS(ROW(A$80),ROW()-ROW(A$80)+(ROWS($88:125)-1)*2,4))","v":0},0,null,0,{"$f":"INDIRECT(ADDRESS(ROW(A$80),ROW()-ROW(A$80)+(ROWS($88:125)-1)*2+1,4))","v":0}]
[{"$f":"IF(B126=\"\",0,INDEX(Price_List,ROWS($88:126)))","v":15},{"$f":"IF($C126=\"\",\"\",COUNTA($C$88:$C126))","v":39},{"$f":"IF(INDEX(INDIRECT(\"Product_List\"),ROWS($88:126))=\"\",\"\",INDEX(INDIRECT(\"Product_List\"),ROWS($88:126)))","v":"39-แพนเบรดไส้เผือก"},{"$f":"ยอดยกมา","v":0},null,null,null,null,null,null,0,null,{"$f":"INDIRECT(ADDRESS(ROW(A$80),ROW()-ROW(A$80)+(ROWS($88:126)-1)*2-1,4))","v":0},null,0,null,0,null,null,null,0,null,0,null,null,null,null,null,{"$f":"INDIRECT(ADDRESS(ROW(A$80),ROW()-ROW(A$80)+(ROWS($88:126)-1)*2,4))","v":0},0,null,0,{"$f":"INDIRECT(ADDRESS(ROW(A$80),ROW()-ROW(A$80)+(ROWS($88:126)-1)*2+1,4))","v":0}]
[{"$f":"IF(B127=\"\",0,INDEX(Price_List,ROWS($88:127)))","v":15},{"$f":"IF($C127=\"\",\"\",COUNTA($C$88:$C127))","v":40},{"$f":"IF(INDEX(INDIRECT(\"Product_List\"),ROWS($88:127))=\"\",\"\",INDEX(INDIRECT(\"Product_List\"),ROWS($88:127)))","v":"40-แพนเบรดไส้ถั่วแดง"},{"$f":"ยอดยกมา","v":0},null,null,null,null,null,null,0,null,{"$f":"INDIRECT(ADDRESS(ROW(A$80),ROW()-ROW(A$80)+(ROWS($88:127)-1)*2-1,4))","v":0},null,0,null,0,null,null,null,0,null,0,null,null,null,null,null,{"$f":"INDIRECT(ADDRESS(ROW(A$80),ROW()-ROW(A$80)+(ROWS($88:127)-1)*2,4))","v":0},0,null,0,{"$f":"INDIRECT(ADDRESS(ROW(A$80),ROW()-ROW(A$80)+(ROWS($88:127)-1)*2+1,4))","v":0}]
[{"$f":"IF(B128=\"\",0,INDEX(Price_List,ROWS($88:128)))","v":12},{"$f":"IF($C128=\"\",\"\",COUNTA($C$88:$C128))","v":41},{"$f":"IF(INDEX(INDIRECT(\"Product_List\"),ROWS($88:128))=\"\",\"\",INDEX(INDIRECT(\"Product_List\"),ROWS($88:128)))","v":"41-ขนมปังกรอบเนยน้ำตาล(30กรัม)"},{"$f":"ยอดยกมา","v":0},null,null,null,null,null,null,0,null,{"$f":"INDIRECT(ADDRESS(ROW(A$80),ROW()-ROW(A$80)+(ROWS($88:128)-1)*2-1,4))","v":0},null,0,null,0,null,null,null,0,null,0,null,null,null,null,null,{"$f":"INDIRECT(ADDRESS(ROW(A$80),ROW()-ROW(A$80)+(ROWS($88:128)-1)*2,4))","v":0},0,null,0,{"$f":"INDIRECT(ADDRESS(ROW(A$80),ROW()-ROW(A$80)+(ROWS($88:128)-1)*2+1,4))","v":0}]
[{"$f":"IF(B129=\"\",0,INDEX(Price_List,ROWS($88:129)))","v":18},{"$f":"IF($C129=\"\",\"\",COUNTA($C$88:$C129))","v":42},{"$f":"IF(INDEX(INDIRECT(\"Product_List\"),ROWS($88:129))=\"\",\"\",INDEX(INDIRECT(\"Product_List\"),ROWS($88:129)))","v":"42-ขนมปังชนิดแผ่นโฮลวีต"},{"$f":"ยอดยกมา","v":0},null,null,null,null,null,null,0,null,{"$f":"INDIRECT(ADDRESS(ROW(A$80),ROW()-ROW(A$80)+(ROWS($88:129)-1)*2-1,4))","v":0},null,0,null,0,null,null,null,0,null,0,null,null,null,null,null,{"$f":"INDIRECT(ADDRESS(ROW(A$80),ROW()-ROW(A$80)+(ROWS($88:129)-1)*2,4))","v":0},0,null,0,{"$f":"INDIRECT(ADDRESS(ROW(A$80),ROW()-ROW(A$80)+(ROWS($88:129)-1)*2+1,4))","v":0}]
[{"$f":"IF(B130=\"\",0,INDEX(Price_List,ROWS($88:130)))","v":12},{"$f":"IF($C130=\"\",\"\",COUNTA($C$88:$C130))","v":43},{"$f":"IF(INDEX(INDIRECT(\"Product_List\"),ROWS($88:130))=\"\",\"\",INDEX(INDIRECT(\"Product_List\"),ROWS($88:130)))","v":"43-เค้กโรลใบเตย"},{"$f":"ยอดยกมา","v":0},null,null,null,null,null,null,{"$f":"D130+E130+J130-I130+H130","v":0},null,{"$f":"INDIRECT(ADDRESS(ROW(A$80),ROW()-ROW(A$80)+(ROWS($88:130)-1)*2-1,4))","v":0},null,{"$f":"F130+G130+M130+J130-K130","v":0},null,{"$f":"O130*A130","v":0},null,null,null,{"$f":"D130+E130-F130-G130","v":0},null,{"$f":"U130*6%+U130","v":0},null,null,null,null,null,{"$f":"INDIRECT(ADDRESS(ROW(A$80),ROW()-ROW(A$80)+(ROWS($88:130)-1)*2,4))","v":0},0,null,0,{"$f":"INDIRECT(ADDRESS(ROW(A$80),ROW()-ROW(A$80)+(ROWS($88:130)-1)*2+1,4))","v":0}]
[{"$f":"IF(B131=\"\",0,INDEX(Price_List,ROWS($88:131)))","v":12},{"$f":"IF($C131=\"\",\"\",COUNTA($C$88:$C131))","v":44},{"$f":"IF(INDEX(INDIRECT(\"Product_List\"),ROWS($88:131))=\"\",\"\",INDEX(INDIRECT(\"Product_List\"),ROWS($88:131)))","v":"44-ขนมโมจิไส้ถั่วดำ"},{"$f":"ยอดยกมา","v":0},null,null,null,null,null,null,{"$f":"D131+E131+J131-I131+H131","v":0},null,{"$f":"INDIRECT(ADDRESS(ROW(A$80),ROW()-ROW(A$80)+(ROWS($88:131)-1)*2-1,4))","v":0},null,{"$f":"F131+G131+M131+J131-K131","v":0},null,{"$f":"O131*A131","v":0},null,null,null,{"$f":"D131+E131-F131-G131","v":0},null,{"$f":"U131*6%+U131","v":0},null,null,null,null,null,{"$f":"INDIRECT(ADDRESS(ROW(A$80),ROW()-ROW(A$80)+(ROWS($88:131)-1)*2,4))","v":0},0,null,0,{"$f":"INDIRECT(ADDRESS(ROW(A$80),ROW()-ROW(A$80)+(ROWS($88:131)-1)*2+1,4))","v":0}]
[{"$f":"IF(B132=\"\",0,INDEX(Price_List,ROWS($88:132)))","v":25},{"$f":"IF($C132=\"\",\"\",COUNTA($C$88:$C132))","v":45},{"$f":"IF(INDEX(INDIRECT(\"Product_List\"),ROWS($88:132))=\"\",\"\",INDEX(INDIRECT(\"Product_List\"),ROWS($88:132)))","v":"45-ครัวซองต์ไส้กรอกชีส"},{"$f":"ยอดยกมา","v":0},null,null,null,null,null,null,{"$f":"D132+E132+J132-I132+H132","v":0},null,{"$f":"INDIRECT(ADDRESS(ROW(A$80),ROW()-ROW(A$80)+(ROWS($88:132)-1)*2-1,4))","v":0},null,{"$f":"F132+G132+M132+J132-K132","v":0},null,{"$f":"O132*A132","v":0},null,null,null,{"$f":"D132+E132-F132-G132","v":0},null,{"$f":"U132*6%+U132","v":0},null,null,null,null,null,{"$f":"INDIRECT(ADDRESS(ROW(A$80),ROW()-ROW(A$80)+(ROWS($88:132)-1)*2,4))","v":0},0,null,0,{"$f":"INDIRECT(ADDRESS(ROW(A$80),ROW()-ROW(A$80)+(ROWS($88:132)-1)*2+1,4))","v":0}]
[{"$f":"IF(B133=\"\",0,INDEX(Price_List,ROWS($88:133)))","v":12},{"$f":"IF($C133=\"\",\"\",COUNTA($C$88:$C133))","v":46},{"$f":"IF(INDEX(INDIRECT(\"Product_List\"),ROWS($88:133))=\"\",\"\",INDEX(INDIRECT(\"Product_List\"),ROWS($88:133)))","v":"46-ขนมเปี๊ยะไส้ถั่ว"},{"$f":"ยอดยกมา","v":0},null,null,null,null,null,null,0,null,{"$f":"INDIRECT(ADDRESS(ROW(A$80),ROW()-ROW(A$80)+(ROWS($88:133)-1)*2-1,4))","v":0},null,0,null,0,null,null,null,0,null,0,null,null,null,null,null,{"$f":"INDIRECT(ADDRESS(ROW(A$80),ROW()-ROW(A$80)+(ROWS($88:133)-1)*2,4))","v":0},0,null,0,{"$f":"INDIRECT(ADDRESS(ROW(A$80),ROW()-ROW(A$80)+(ROWS($88:133)-1)*2+1,4))","v":0}]
[{"$f":"IF(B134=\"\",0,INDEX(Price_List,ROWS($88:134)))","v":12},{"$f":"IF($C134=\"\",\"\",COUNTA($C$88:$C134))","v":47},{"$f":"IF(INDEX(INDIRECT(\"Product_List\"),ROWS($88:134))=\"\",\"\",INDEX(INDIRECT(\"Product_List\"),ROWS($88:134)))","v":"47-ขนมเปี๊ยะไส้ฟัก"},{"$f":"ยอดยกมา","v":0},null,null,null,null,null,null,{"$f":"D134+E134+J134-I134+H134","v":0},null,{"$f":"INDIRECT(ADDRESS(ROW(A$80),ROW()-ROW(A$80)+(ROWS($88:134)-1)*2-1,4))","v":0},null,{"$f":"F134+G134+M134+J134-K134","v":0},null,{"$f":"O134*A134","v":0},null,null,null,{"$f":"D134+E134-F134-G134","v":0},null,{"$f":"U134*6%+U134","v":0},null,null,null,null,null,{"$f":"INDIRECT(ADDRESS(ROW(A$80),ROW()-ROW(A$80)+(ROWS($88:134)-1)*2,4))","v":0},0,null,0,{"$f":"INDIRECT(ADDRESS(ROW(A$80),ROW()-ROW(A$80)+(ROWS($88:134)-1)*2+1,4))","v":0}]
[{"$f":"IF(B135=\"\",0,INDEX(Price_List,ROWS($88:135)))","v":12},{"$f":"IF($C135=\"\",\"\",COUNTA($C$88:$C135))","v":48},{"$f":"IF(INDEX(INDIRECT(\"Product_List\"),ROWS($88:135))=\"\",\"\",INDEX(INDIRECT(\"Product_List\"),ROWS($88:135)))","v":"48-มังกี้เค้ก"},{"$f":"ยอดยกมา","v":0},null,null,null,null,null,null,0,null,{"$f":"INDIRECT(ADDRESS(ROW(A$80),ROW()-ROW(A$80)+(ROWS($88:135)-1)*2-1,4))","v":0},null,0,null,0,null,null,null,0,null,0,null,null,null,null,null,{"$f":"INDIRECT(ADDRESS(ROW(A$80),ROW()-ROW(A$80)+(ROWS($88:135)-1)*2,4))","v":0},0,null,0,{"$f":"INDIRECT(ADDRESS(ROW(A$80),ROW()-ROW(A$80)+(ROWS($88:135)-1)*2+1,4))","v":0}]
["รวม",null,null,{"$f":"SUM(D$88:D$135)","v":0},0,0,0,0,0,0,0,null,{"$f":"SUM(M$88:M$135)","v":0},null,null,null,{"$f":"$AP$98","v":0},null,"บาท",null,{"$f":"SUM(U$88:U$135)","v":0},null,{"$f":"SUM(W$88:W$135)","v":0},null,null,null,null,null,{"$f":"SUM(AC$88:AC$135)","v":0},{"$f":"SUM(AD$88:AD$135)","v":0},{"$f":"SUM(AE$88:AE$135)","v":0},{"$f":"SUM(AF$88:AF$135)","v":0},{"$f":"SUM(AG$88:AG$135)","v":0}]
["เลขที่ไมล์ เวลาออกทำงาน",null,null,{"$f":"$BF$3","v":0},null,"Km","น้ำหนักของเสีย"]
["เลขที่ไมล์ เวลากลับ",null,null,{"$f":"$BF$4","v":0},null,"Km",{"$f":"$AA$5","v":0},null,"KG"]
["เวลากลับถึงสำนักงาน",null,null,{"$f":"$BF$1","v":"00:00:00"},null,"น."]
["เติมน้ำมัน",null,null,{"$f":"$AX3","v":0},null,"บาท"]
["จำนวนน้ำมัน",null,null,{"$f":"$AX4","v":0},null,"ลิตร"]
["ยอดรวมต้นทุนสาขา",null,null,{"$f":"$AX5","v":0},null,"บาท"]

{"sheet":"16","index":20,"n_rows":142,"n_cols":154,"rows_kept":142,"cut":false,"hidden":false,"merged":[[83,132,83,133],[129,10,129,11],[129,12,129,13],[129,14,129,15],[129,16,129,17],[127,10,127,11],[127,12,127,13],[127,14,127,15],[127,16,127,17],[127,20,127,21],[127,22,127,23],[127,24,127,25],[127,33,127,36],[126,10,126,11],[126,12,126,13],[126,14,126,15],[126,16,126,17],[128,10,128,11],[128,12,128,13],[129,24,129,25],[125,10,125,11],[125,12,125,13],[125,14,125,15],[125,16,125,17],[7,132,7,134],[8,132,8,134],[80,132,80,133],[82,132,82,133],[7,135,7,137],[8,135,8,137],[80,135,80,136],[82,135,82,136],[7,138,7,140],[7,141,7,143],[7,147,7,149],[8,138,8,140],[141,0,141,2],[141,3,141,4],[138,0,138,2],[138,3,138,4],[139,0,139,2],[139,3,139,4],[140,0,140,2],[140,3,140,4],[135,24,135,25],[135,33,135,36],[136,0,136,2],[136,3,136,4],[137,0,137,2],[137,3,137,4],[137,6,137,7],[137,18,137,21],[135,0,135,2],[135,10,135,11],[135,12,135,13],[135,14,135,15],[135,16,135,17],[135,18,135,19],[135,20,135,21],[135,22,135,23],[128,14,128,15],[128,16,128,17],[128,20,128,21],[128,22,128,23],[129,20,129,21],[129,22,129,23],[131,16,131,17],[132,16,132,17],[134,16,134,17],[131,20,131,21],[132,20,132,21],[134,20,134,21],[131,22,131,23],[132,22,132,23],[134,22,134,23],[131,24,131,25],[132,24,132,25],[134,24,134,25],[129,33,129,36],[128,24,128,25],[128,33,128,36],[126,20,126,21],[126,22,126,23],[124,24,124,25],[124,33,124,36],[125,20,125,21],[125,22,125,23],[125,24,125,25],[125,33,125,36],[124,10,124,11],[124,12,124,13],[124,14,124,15],[124,16,124,17],[124,20,124,21],[124,22,124,23],[126,24,126,25],[126,33,126,36],[122,24,122,25],[122,33,122,36],[123,10,123,11],[123,12,123,13],[123,14,123,15],[123,16,123,17],[123,20,123,21],[123,22,123,23],[123,24,123,25],[123,33,123,36],[122,10,122,11],[122,12,122,13],[122,14,122,15],[122,16,122,17],[122,20,122,21],[122,22,122,23],[120,24,120,25],[120,33,120,36],[121,10,121,11],[121,12,121,13],[121,14,121,15],[121,16,121,17],[121,20,121,21],[121,22,121,23],[121,24,121,25],[121,33,121,36],[120,10,120,11],[120,12,120,13],[120,14,120,15],[120,16,120,17],[120,20,120,21],[120,22,120,23],[118,24,118,25],[118,33,118,36],[119,10,119,11],[119,12,119,13],[119,14,119,15],[119,16,119,17],[119,20,119,21],[119,22,119,23],[119,24,119,25],[119,33,119,36],[118,10,118,11],[118,12,118,13],[118,14,118,15],[118,16,118,17],[118,20,118,21],[118,22,118,23],[116,24,116,25],[116,33,116,36],[117,10,117,11],[117,12,117,13],[117,14,117,15],[117,16,117,17],[117,20,117,21],[117,22,117,23],[117,24,117,25],[117,33,117,36],[116,10,116,11],[116,12,116,13],[116,14,116,15],[116,16,116,17],[116,20,116,21],[116,22,116,23],[114,24,114,25],[114,33,114,36],[115,10,115,11],[115,12,115,13],[115,14,115,15],[115,16,115,17],[115,20,115,21],[115,22,115,23],[115,24,115,25],[115,33,115,36],[114,10,114,11],[114,12,114,13],[114,14,114,15],[114,16,114,17],[114,20,114,21],[114,22,114,23],[112,24,112,25],[112,33,112,36],[113,10,113,11],[113,12,113,13],[113,14,113,15],[113,16,113,17],[113,20,113,21],[113,22,113,23],[113,24,113,25],[113,33,113,36],[112,10,112,11],[112,12,112,13],[112,14,112,15],[112,16,112,17],[112,20,112,21],[112,22,112,23],[110,24,110,25],[110,33,110,36],[111,10,111,11],[111,12,111,13],[111,14,111,15],[111,16,111,17],[111,20,111,21],[111,22,111,23],[111,24,111,25],[111,33,111,36],[110,10,110,11],[110,12,110,13],[110,14,110,15],[110,16,110,17],[110,20,110,21],[110,22,110,23],[108,24,108,25],[108,33,108,36],[109,10,109,11],[109,12,109,13],[109,14,109,15],[109,16,109,17],[109,20,109,21],[109,22,109,23],[109,24,109,25],[109,33,109,36],[108,10,108,11],[108,12,108,13],[108,14,108,15],[108,16,108,17],[108,20,108,21],[108,22,108,23],[106,24,106,25],[106,33,106,36],[107,10,107,11],[107,12,107,13],[107,14,107,15],[107,16,107,17],[107,20,107,21],[107,22,107,23],[107,24,107,25],[107,33,107,36],[106,10,106,11],[106,12,106,13],[106,14,106,15],[106,16,106,17],[106,20,106,21],[106,22,106,23],[104,24,104,25],[104,33,104,36],[105,10,105,11],[105,12,105,13],[105,14,105,15],[105,16,105,17],[105,20,105,21],[105,22,105,23],[105,24,105,25],[105,33,105,36],[104,10,104,11],[104,12,104,13],[104,14,104,15],[104,16,104,17],[104,20,104,21],[104,22,104,23],[102,24,102,25],[102,33,102,36],[103,10,103,11],[103,12,103,13],[103,14,103,15],[103,16,103,17],[103,20,103,21],[103,22,103,23],[103,24,103,25],[103,33,103,36],[102,10,102,11],[102,12,102,13],[102,14,102,15],[102,16,102,17],[102,20,102,21],[102,22,102,23],[101,10,101,11],[101,12,101,13],[101,14,101,15],[101,16,101,17],[101,20,101,21],[101,22,101,23],[101,24,101,25],[101,33,101,36],[100,10,100,11],[100,12,100,13],[100,14,100,15],[100,16,100,17],[100,20,100,21],[100,22,100,23],[99,10,99,11],[99,12,99,13],[99,14,99,15],[99,16,99,17],[99,20,99,21],[99,22,99,23],[99,24,99,25],[99,33,99,36],[100,24,100,25],[100,33,100,36],[97,24,97,25],[97,33,97,36],[97,38,97,40],[98,10,98,11],[98,12,98,13],[98,14,98,15],[98,16,98,17],[98,20,98,21],[98,22,98,23],[98,24,98,25],[97,10,97,11],[97,12,97,13],[97,14,97,15],[97,16,97,17],[97,20,97,21],[97,22,97,23],[98,33,98,36],[95,24,95,25],[95,33,95,36],[96,10,96,11],[96,12,96,13],[96,14,96,15],[96,16,96,17],[96,20,96,21],[96,22,96,23],[96,24,96,25],[96,33,96,36],[95,10,95,11],[95,12,95,13],[95,14,95,15],[95,16,95,17],[95,20,95,21],[95,22,95,23],[93,24,93,25],[93,33,93,36],[94,10,94,11],[94,12,94,13],[94,14,94,15],[94,16,94,17],[94,20,94,21],[94,22,94,23],[94,24,94,25],[94,33,94,36],[93,10,93,11],[93,12,93,13],[93,14,93,15],[93,16,93,17],[93,20,93,21],[93,22,93,23],[91,24,91,25],[91,33,91,36],[92,10,92,11],[92,12,92,13],[92,14,92,15],[92,16,92,17],[92,20,92,21],[92,22,92,23],[92,24,92,25],[92,33,92,36],[91,10,91,11],[91,12,91,13],[91,14,91,15],[91,16,91,17],[91,20,91,21],[91,22,91,23],[86,22,86,23],[86,24,86,25],[88,20,88,21],[88,22,88,23],[88,24,88,25],[88,33,88,36],[89,24,89,25],[89,33,89,36],[90,10,90,11],[90,12,90,13],[90,14,90,15],[90,16,90,17],[90,20,90,21],[90,22,90,23],[90,24,90,25],[90,33,90,36],[89,10,89,11],[89,12,89,13],[89,14,89,15],[89,16,89,17],[89,20,89,21],[89,22,89,23],[83,36,83,37],[83,39,83,40],[83,42,83,43],[83,45,83,46],[83,48,83,49],[83,51,83,52],[83,150,83,153],[86,10,86,11],[86,12,86,13],[86,14,86,15],[86,16,86,17],[86,20,86,21],[83,108,83,109],[83,111,83,112],[83,114,83,115],[83,117,83,118],[83,120,83,121],[83,123,83,124],[83,90,83,91],[83,93,83,94],[83,96,83,97],[83,99,83,100],[83,102,83,103],[83,105,83,106],[82,39,82,40],[82,42,82,43],[82,45,82,46],[82,48,82,49],[83,84,83,85],[83,87,83,88],[83,54,83,55],[83,57,83,58],[83,60,83,61],[83,63,83,64],[83,66,83,67],[83,69,83,70],[83,72,83,73],[83,75,83,76],[83,78,83,79],[83,81,83,82],[83,0,83,5],[83,6,83,7],[83,9,83,10],[83,12,83,13],[83,15,83,16],[82,105,82,106],[82,108,82,109],[82,111,82,112],[82,114,82,115],[82,87,82,88],[82,90,82,91],[82,93,82,94],[82,96,82,97],[82,99,82,100],[82,102,82,103],[82,69,82,70],[82,72,82,73],[82,75,82,76],[82,78,82,79],[82,81,82,82],[82,84,82,85],[82,51,82,52],[82,54,82,55],[82,57,82,58],[82,15,82,16],[82,18,82,19],[82,21,82,22],[82,24,82,25],[82,27,82,28],[82,30,82,31],[81,0,81,2],[81,3,81,5],[81,150,82,153],[82,0,82,2],[82,3,82,4],[82,6,82,7],[82,9,82,10],[82,12,82,13],[82,123,82,124],[82,126,82,127],[82,129,82,130],[82,117,82,118],[82,120,82,121],[82,60,82,61],[82,63,82,64],[82,66,82,67],[82,33,82,34],[82,36,82,37],[80,114,80,115],[80,117,80,118],[80,120,80,121],[80,123,80,124],[80,126,80,127],[80,129,80,130],[80,96,80,97],[80,99,80,100],[80,102,80,103],[80,105,80,106],[80,108,80,109],[80,111,80,112],[80,78,80,79],[80,81,80,82],[80,87,80,88],[80,90,80,91],[80,93,80,94],[80,60,80,61],[80,63,80,64],[80,66,80,67],[80,69,80,70],[80,72,80,73],[80,75,80,76],[80,84,80,85],[79,0,79,5],[80,0,80,5],[80,6,80,7],[80,9,80,10],[80,12,80,13],[80,15,80,16],[80,18,80,19],[80,21,80,22],[8,114,8,116],[8,78,8,80],[8,81,8,83],[8,87,8,89],[8,90,8,92],[8,93,8,95],[8,60,8,62],[8,63,8,65],[8,66,8,68],[8,69,8,71],[8,72,8,74],[8,75,8,77],[8,54,8,56],[8,57,8,59],[8,24,8,26],[8,27,8,29],[8,120,8,122],[8,123,8,125],[8,126,8,128],[8,129,8,131],[8,96,8,98],[8,99,8,101],[8,102,8,104],[8,105,8,107],[8,108,8,110],[8,111,8,113],[8,33,8,35],[8,36,8,38],[8,39,8,41],[8,84,8,86],[7,150,8,150],[7,151,8,151],[8,6,8,8],[8,9,8,11],[8,12,8,14],[8,15,8,17],[8,18,8,20],[8,21,8,23],[7,114,7,116],[7,117,7,119],[7,120,7,122],[7,123,7,125],[7,126,7,128],[7,129,7,131],[7,96,7,98],[7,99,7,101],[7,102,7,104],[7,105,7,107],[7,108,7,110],[8,117,8,119],[7,87,7,89],[7,90,7,92],[7,93,7,95],[7,60,7,62],[7,63,7,65],[7,66,7,68],[7,69,7,71],[7,72,7,74],[7,75,7,77],[7,54,7,56],[7,57,7,59],[7,24,7,26],[7,27,7,29],[7,30,7,32],[7,33,7,35],[7,36,7,38],[7,39,7,41],[7,84,7,86],[6,150,6,151],[6,152,8,152],[6,153,8,153],[7,6,7,8],[7,9,7,11],[7,12,7,14],[7,15,7,17],[7,18,7,20],[7,21,7,23],[6,117,6,119],[6,120,6,122],[6,123,6,125],[6,126,6,128],[6,129,6,131],[6,99,6,101],[6,102,6,104],[6,105,6,107],[6,108,6,110],[6,111,6,113],[6,54,6,56],[6,57,6,59],[7,111,7,113],[7,78,7,80],[7,81,7,83],[6,0,8,0],[6,1,8,1],[6,2,8,2],[6,3,8,3],[6,4,8,4],[6,6,6,8],[6,45,6,47],[6,48,6,50],[6,51,6,53],[7,42,7,44],[7,45,7,47],[7,48,7,50],[7,51,7,53],[8,42,8,44],[8,45,8,47],[8,48,8,50],[8,51,8,53],[6,27,6,29],[6,30,6,32],[6,33,6,35],[6,36,6,38],[6,39,6,41],[6,42,6,44],[8,30,8,32],[4,26,4,29],[4,30,4,31],[4,32,4,34],[4,35,4,36],[6,9,6,11],[6,12,6,14],[6,15,6,17],[6,18,6,20],[6,21,6,23],[6,24,6,26],[3,41,3,44],[3,46,3,48],[3,49,3,51],[3,54,3,56],[3,57,3,60],[4,0,4,1],[4,2,4,3],[4,4,4,5],[4,6,4,12],[4,14,4,16],[3,17,3,19],[3,22,3,25],[3,26,3,29],[3,30,3,33],[3,34,3,37],[3,38,3,40],[4,38,4,40],[4,41,4,44],[4,46,4,48],[4,49,4,51],[4,54,4,56],[4,57,4,60],[4,17,4,19],[4,22,4,25],[2,38,2,40],[3,0,3,1],[3,2,3,3],[3,4,3,5],[3,6,3,12],[3,14,3,16],[2,17,2,19],[2,22,2,25],[2,26,2,29],[2,30,2,33],[80,36,80,37],[80,39,80,40],[0,38,0,40],[0,41,0,44],[0,46,0,48],[0,54,0,56],[0,57,0,60],[2,0,2,1],[2,2,2,3],[2,4,2,5],[2,6,2,12],[2,14,2,16],[0,0,0,12],[0,14,0,16],[0,17,0,23],[0,30,0,33],[0,34,0,35],[0,36,0,37],[2,41,2,44],[2,46,2,48],[2,49,2,51],[2,54,2,56],[2,57,2,60],[2,34,2,37],[6,141,6,143],[6,147,6,149],[83,18,83,19],[83,21,83,22],[83,24,83,25],[83,27,83,28],[83,30,83,31],[83,33,83,34],[83,126,83,127],[83,129,83,130],[8,141,8,143],[8,147,8,149],[80,138,80,139],[80,141,80,142],[80,147,80,148],[82,138,82,139],[82,141,82,142],[82,147,82,148],[6,60,6,62],[6,87,6,89],[6,90,6,92],[6,93,6,95],[6,96,6,98],[6,63,6,65],[88,12,88,13],[88,14,88,15],[88,16,88,17],[6,114,6,116],[6,81,6,83],[6,84,6,86],[6,132,6,134],[6,135,6,137],[6,138,6,140],[6,66,6,68],[6,69,6,71],[6,72,6,74],[6,75,6,77],[6,78,6,80],[80,42,80,43],[80,45,80,46],[80,48,80,49],[80,51,80,52],[80,54,80,55],[80,57,80,58],[80,24,80,25],[80,27,80,28],[80,30,80,31],[80,33,80,34],[83,147,83,148],[131,33,131,36],[132,33,132,36],[134,33,134,36],[131,10,131,11],[132,10,132,11],[134,10,134,11],[131,12,131,13],[132,12,132,13],[134,12,134,13],[131,14,131,15],[132,14,132,15],[134,14,134,15],[86,33,86,36],[87,10,87,11],[87,12,87,13],[87,14,87,15],[87,16,87,17],[87,20,87,21],[87,22,87,23],[83,135,83,136],[130,10,130,11],[130,12,130,13],[130,14,130,15],[6,144,6,146],[7,144,7,146],[8,144,8,146],[80,144,80,145],[82,144,82,145],[83,144,83,145],[133,10,133,11],[133,12,133,13],[133,14,133,15],[133,16,133,17],[133,20,133,21],[133,22,133,23],[133,24,133,25],[133,33,133,36],[83,138,83,139],[83,141,83,142],[130,16,130,17],[130,20,130,21],[130,22,130,23],[130,24,130,25],[130,33,130,36],[87,24,87,25],[87,33,87,36],[88,10,88,11]]}
[":::: รายงานการขายประจำวัน (Sale Daily Report)  ::::",null,null,null,null,null,null,null,null,null,null,null,null,null,"Print Date : ",null,null,{"$f":"NOW()","v":"2025-04-24T22:39:10.130"},null,null,null,null,null,null,null,null,null,null,null,null,"จำนวนร้าน :",null,null,null,{"$f":"MAX($A$10:$A$79)","v":0},null,"ร้าน",null,"เป้ายอดขาย :",null,null,null,null,null,null,null,{"$f":"C3","v":45793},null,null,{"$f":"LEFT('Problems & Solutions'!$B$2,FIND(\"|\",'Problems & Solutions'!$B$2))&\" วันที่\"&TEXT($C$3,\"[$-107041E] d mmmm yyyy;@\")","v":"ขั้นตอนการตรวจรีพอร์ตขาย | วันที่ 16 พฤษภาคม 2568"},null,null,null,null,"เวลากลับ :"]
[]
["วันที่ :",null,{"$f":"DATE(ใส่ข้อมูล!G2-543,ใส่ข้อมูล!V2,ActiveSheetName)","v":"2025-05-16"},null,"พนักงานขาย",null,{"$f":"INDEX(OFFSET(Sale_Region,,1),ActiveSheetName)","v":0},null,null,null,null,null,null,null,"รวมยอดเบิก :",null,null,{"$f":"E136","v":0},null,null,"ชิ้น",null,"ใหญ่สด(40)",null,null,null,{"$f":"Cash_Major_Bill","v":0},null,null,null,"ใหญ่เชื่อ(42)",null,null,null,{"$f":"Credit_Major_Bill","v":0},null,null,null,"บิลใหญ่ :",null,null,{"$f":"AA3+AI3","v":0},null,null,null,null,"เติมน้ำมัน :",null,null,null,null,null,"บาท",null,"ไมล์ออก :",null,null,{"$f":"เลขไมล์ออก","v":0},null,null,null,"Km"]
["เขตการขาย :",null,{"$f":"INDEX(Sale_Region,ActiveSheetName)","v":0},null,"ผช.ขาย",null,{"$f":"INDEX(OFFSET(Sale_Region,,2),ActiveSheetName)","v":0},null,null,null,null,null,null,null,"ของเหลือ :",null,null,{"$f":"F136","v":0},null,null,"ชิ้น",null,"เล็กสด(41)",null,null,null,{"$f":"Cash_Minor_Bill","v":0},null,null,null,"เล็กเชื่อ(43)",null,null,null,{"$f":"Credit_Minor_Bill","v":0},null,null,null,"บิลเล็ก :",null,null,{"$f":"AA4+AI4","v":0},null,null,null,null,"จำนวนลิตร :",null,null,null,null,null,"ลิตร",null,"ไมล์เข้า :",null,null,null,null,null,null,"Km"]
["สายส่ง :",null,{"$f":"\"Sale \"&ใส่ข้อมูล!E3&\"-\"&ใส่ข้อมูล!G3","v":"Sale KB-01"},null,"พนักงานเสริม",null,{"$f":"INDEX(OFFSET(Sale_Region,,3),ActiveSheetName)","v":0},null,null,null,null,null,null,null,"ของเสีย :",null,null,{"$f":"G136","v":0},null,null,"ชิ้น",null,"น้ำหนักของเสีย",null,null,null,null,null,null,null,"Kg.",null,"%ของเสีย",null,null,{"$f":"IF(Order_Cal=0,0,ROUND(Waste_Cal*100/Order_Cal,2))","v":0},null,"%","VAT :",null,null,{"$f":"EW81","v":0},null,null,null,null,"ต้นทุนสาขา :",null,null,{"$f":"SUMPRODUCT((($A$88:$A$135)-($A$88:$A$135)*0.45)*(($E$88:$E$135)-($G$88:$G$135)))","v":0},null,null,"บาท",null,"ระยะทาง :",null,null,{"$f":"IF(OR($BF$4=0,$BF$3=0),0,$BF$4-$BF$3)","v":0},null,null,null,"Km"]
[]
["No","รหัสร้าน (CustNo)","ชื่อร้าน (Store Name)","เวลาเข้าร้าน","ระยะเวลาระหว่างร้าน","บิล(Invoice)",{"$f":"INDEX(INDIRECT(\"dProduct[ProductName]\"),ROUNDUP(COLUMNS($G:G)/3,0))","v":"ขนมปังหมูหยองน้ำสลัด"},null,null,{"$f":"INDEX(INDIRECT(\"dProduct[ProductName]\"),ROUNDUP(COLUMNS($G:J)/3,0))","v":"ขนมปังหมูหยองน้ำพริกเผา"},null,null,{"$f":"INDEX(INDIRECT(\"dProduct[ProductName]\"),ROUNDUP(COLUMNS($G:M)/3,0))","v":"ขนมปังไก่หยองน้ำสลัด"},null,null,{"$f":"INDEX(INDIRECT(\"dProduct[ProductName]\"),ROUNDUP(COLUMNS($G:P)/3,0))","v":"ขนมปังไส้ครีมสลัด"},null,null,{"$f":"INDEX(INDIRECT(\"dProduct[ProductName]\"),ROUNDUP(COLUMNS($G:S)/3,0))","v":"ขนมปังเนยสด"},null,null,{"$f":"INDEX(INDIRECT(\"dProduct[ProductName]\"),ROUNDUP(COLUMNS($G:V)/3,0))","v":"ขนมปังไส้สังขยาเล็ก"},null,null,{"$f":"INDEX(INDIRECT(\"dProduct[ProductName]\"),ROUNDUP(COLUMNS($G:Y)/3,0))","v":"ขนมปังไส้เผือก"},null,null,{"$f":"INDEX(INDIRECT(\"dProduct[ProductName]\"),ROUNDUP(COLUMNS($G:AB)/3,0))","v":"ขนมปังไส้ถั่วแดง"},null,null,{"$f":"INDEX(INDIRECT(\"dProduct[ProductName]\"),ROUNDUP(COLUMNS($G:AE)/3,0))","v":"ขนมปังไส้ถั่วดำ"},null,null,{"$f":"INDEX(INDIRECT(\"dProduct[ProductName]\"),ROUNDUP(COLUMNS($G:AH)/3,0))","v":"ขนมปังไส้มันม่วง"},null,null,{"$f":"INDEX(INDIRECT(\"dProduct[ProductName]\"),ROUNDUP(COLUMNS($G:AK)/3,0))","v":"เค้กกล้วยหอม"},null,null,{"$f":"INDEX(INDIRECT(\"dProduct[ProductName]\"),ROUNDUP(COLUMNS($G:AN)/3,0))","v":"เค้กบัตเตอร์"},null,null,{"$f":"INDEX(INDIRECT(\"dProduct[ProductName]\"),ROUNDUP(COLUMNS($G:AQ)/3,0))","v":"ขนมปังโรลถั่วแดง"},null,null,{"$f":"INDEX(INDIRECT(\"dProduct[ProductName]\"),ROUNDUP(COLUMNS($G:AT)/3,0))","v":"ขนมปังไส้สังขยาใหญ่"},null,null,{"$f":"INDEX(INDIRECT(\"dProduct[ProductName]\"),ROUNDUP(COLUMNS($G:AW)/3,0))","v":"ขนมปังชนิดแผ่น(480กรัม)"},null,null,{"$f":"INDEX(INDIRECT(\"dProduct[ProductName]\"),ROUNDUP(COLUMNS($G:AZ)/3,0))","v":"โมจิไส้ถั่ว"},null,null,{"$f":"INDEX(INDIRECT(\"dProduct[ProductName]\"),ROUNDUP(COLUMNS($G:BC)/3,0))","v":"โมจิไส้เผือก"},null,null,{"$f":"INDEX(INDIRECT(\"dProduct[ProductName]\"),ROUNDUP(COLUMNS($G:BF)/3,0))","v":"โมจิไส้ถั่วไข่เค็ม"},null,null,{"$f":"INDEX(INDIRECT(\"dProduct[ProductName]\"),ROUNDUP(COLUMNS($G:BI)/3,0))","v":"ขนมปังพิซซ่า"},null,null,{"$f":"INDEX(INDIRECT(\"dProduct[ProductName]\"),ROUNDUP(COLUMNS($G:BL)/3,0))","v":"ขนมปังพิซซ่าปูอัดแฮม"},null,null,{"$f":"INDEX(INDIRECT(\"dProduct[ProductName]\"),ROUNDUP(COLUMNS($G:BO)/3,0))","v":"ขนมปังไส้กรอก"},null,null,{"$f":"INDEX(INDIRECT(\"dProduct[ProductName]\"),ROUNDUP(COLUMNS($G:BR)/3,0))","v":"ขนมก้านบัว"},null,null,{"$f":"INDEX(INDIRECT(\"dProduct[ProductName]\"),ROUNDUP(COLUMNS($G:BU)/3,0))","v":"พายสับปะรด"},null,null,{"$f":"INDEX(INDIRECT(\"dProduct[ProductName]\"),ROUNDUP(COLUMNS($G:BX)/3,0))","v":"พายไส้มะพร้าว"},null,null,{"$f":"INDEX(INDIRECT(\"dProduct[ProductName]\"),ROUNDUP(COLUMNS($G:CA)/3,0))","v":"ขนมปังโรลมันเทศ"},null,null,{"$f":"INDEX(INDIRECT(\"dProduct[ProductName]\"),ROUNDUP(COLUMNS($G:CD)/3,0))","v":"ขนมปังไส้ครีมสลัดน้ำพริกเผา"},null,null,{"$f":"INDEX(INDIRECT(\"dProduct[ProductName]\"),ROUNDUP(COLUMNS($G:CG)/3,0))","v":"ขนมปังไส้สังขยาไข่"},null,null,{"$f":"INDEX(INDIRECT(\"dProduct[ProductName]\"),ROUNDUP(COLUMNS($G:CJ)/3,0))","v":"ขนมปังไส้สังขยามะพร้าว"},null,null,{"$f":"INDEX(INDIRECT(\"dProduct[ProductName]\"),ROUNDUP(COLUMNS($G:CM)/3,0))","v":"ขนมปังไส้ครีมชาไทย"},null,null,{"$f":"INDEX(INDIRECT(\"dProduct[ProductName]\"),ROUNDUP(COLUMNS($G:CP)/3,0))","v":"ขนมปังโรลมันม่วง"},null,null,{"$f":"INDEX(INDIRECT(\"dProduct[ProductName]\"),ROUNDUP(COLUMNS($G:CS)/3,0))","v":"ขนมปังโรลช็อกโกแลต"},null,null,{"$f":"INDEX(INDIRECT(\"dProduct[ProductName]\"),ROUNDUP(COLUMNS($G:CV)/3,0))","v":"ขนมปังชนิดแผ่น(155กรัม)"},null,null,{"$f":"INDEX(INDIRECT(\"dProduct[ProductName]\"),ROUNDUP(COLUMNS($G:CY)/3,0))","v":"ขนมปังโรลเผือก"},null,null,{"$f":"INDEX(INDIRECT(\"dProduct[ProductName]\"),ROUNDUP(COLUMNS($G:DB)/3,0))","v":"ขนมปังไก่หยองน้ำสลัด Mini"},null,null,{"$f":"INDEX(INDIRECT(\"dProduct[ProductName]\"),ROUNDUP(COLUMNS($G:DE)/3,0))","v":"ขนมปังไส้ช็อกโกแลต"},null,null,{"$f":"INDEX(INDIRECT(\"dProduct[ProductName]\"),ROUNDUP(COLUMNS($G:DH)/3,0))","v":"ขนมปังไส้ครีมสังขยาไข่"},null,null,{"$f":"INDEX(INDIRECT(\"dProduct[ProductName]\"),ROUNDUP(COLUMNS($G:DK)/3,0))","v":"ขนมปังพิซซ่าฮาวายเอี้ยน"},null,null,{"$f":"INDEX(INDIRECT(\"dProduct[ProductName]\"),ROUNDUP(COLUMNS($G:DN)/3,0))","v":"ครัวซองต์หมูหยองน้ำสลัด"},null,null,{"$f":"INDEX(INDIRECT(\"dProduct[ProductName]\"),ROUNDUP(COLUMNS($G:DQ)/3,0))","v":"แพนเบรดไส้เผือก"},null,null,{"$f":"INDEX(INDIRECT(\"dProduct[ProductName]\"),ROUNDUP(COLUMNS($G:DT)/3,0))","v":"แพนเบรดไส้ถั่วแดง"},null,null,{"$f":"INDEX(INDIRECT(\"dProduct[ProductName]\"),ROUNDUP(COLUMNS($G:DW)/3,0))","v":"ขนมปังกรอบเนยน้ำตาล(30กรัม)"},null,null,{"$f":"INDEX(INDIRECT(\"dProduct[ProductName]\"),ROUNDUP(COLUMNS($G:DZ)/3,0))","v":"ขนมปังชนิดแผ่นโฮลวีต"},null,null,{"$f":"INDEX(INDIRECT(\"dProduct[ProductName]\"),ROUNDUP(COLUMNS($G:EC)/3,0))","v":"เค้กโรลใบเตย"},null,null,{"$f":"INDEX(INDIRECT(\"dProduct[ProductName]\"),ROUNDUP(COLUMNS($G:EF)/3,0))","v":"ขนมโมจิไส้ถั่วดำ"},null,null,{"$f":"INDEX(INDIRECT(\"dProduct[ProductName]\"),ROUNDUP(COLUMNS($G:EI)/3,0))","v":"ครัวซองต์ไส้กรอกชีส"},null,null,{"$f":"INDEX(INDIRECT(\"dProduct[ProductName]\"),ROUNDUP(COLUMNS($G:EL)/3,0))","v":"ขนมเปี๊ยะไส้ถั่ว"},null,null,{"$f":"INDEX(INDIRECT(\"dProduct[ProductName]\"),ROUNDUP(COLUMNS($G:EO)/3,0))","v":"ขนมเปี๊ยะไส้ฟัก"},null,null,{"$f":"INDEX(INDIRECT(\"dProduct[ProductName]\"),ROUNDUP(COLUMNS($G:ER)/3,0))","v":"มังกี้เค้ก"},null,null,"มูลค่าสินค้า",null,"ภาษี","รวมยอดขาย"]
[null,null,null,null,null,"ราคาขาย",{"$f":"IF(G$7=0,0,INDEX(Price_List,ROUNDUP(COLUMNS($G:G)/3,0)))","v":20},null,null,{"$f":"IF(J$7=0,0,INDEX(Price_List,ROUNDUP(COLUMNS($G:J)/3,0)))","v":20},null,null,{"$f":"IF(M$7=0,0,INDEX(Price_List,ROUNDUP(COLUMNS($G:M)/3,0)))","v":20},null,null,{"$f":"IF(P$7=0,0,INDEX(Price_List,ROUNDUP(COLUMNS($G:P)/3,0)))","v":15},null,null,{"$f":"IF(S$7=0,0,INDEX(Price_List,ROUNDUP(COLUMNS($G:S)/3,0)))","v":15},null,null,{"$f":"IF(V$7=0,0,INDEX(Price_List,ROUNDUP(COLUMNS($G:V)/3,0)))","v":10},null,null,{"$f":"IF(Y$7=0,0,INDEX(Price_List,ROUNDUP(COLUMNS($G:Y)/3,0)))","v":10},null,null,{"$f":"IF(AB$7=0,0,INDEX(Price_List,ROUNDUP(COLUMNS($G:AB)/3,0)))","v":10},null,null,{"$f":"IF(AE$7=0,0,INDEX(Price_List,ROUNDUP(COLUMNS($G:AE)/3,0)))","v":10},null,null,{"$f":"IF(AH$7=0,0,INDEX(Price_List,ROUNDUP(COLUMNS($G:AH)/3,0)))","v":10},null,null,{"$f":"IF(AK$7=0,0,INDEX(Price_List,ROUNDUP(COLUMNS($G:AK)/3,0)))","v":15},null,null,{"$f":"IF(AN$7=0,0,INDEX(Price_List,ROUNDUP(COLUMNS($G:AN)/3,0)))","v":15},null,null,{"$f":"IF(AQ$7=0,0,INDEX(Price_List,ROUNDUP(COLUMNS($G:AQ)/3,0)))","v":15},null,null,{"$f":"IF(AT$7=0,0,INDEX(Price_List,ROUNDUP(COLUMNS($G:AT)/3,0)))","v":15},null,null,{"$f":"IF(AW$7=0,0,INDEX(Price_List,ROUNDUP(COLUMNS($G:AW)/3,0)))","v":42},null,null,{"$f":"IF(AZ$7=0,0,INDEX(Price_List,ROUNDUP(COLUMNS($G:AZ)/3,0)))","v":12},null,null,{"$f":"IF(BC$7=0,0,INDEX(Price_List,ROUNDUP(COLUMNS($G:BC)/3,0)))","v":12},null,null,{"$f":"IF(BF$7=0,0,INDEX(Price_List,ROUNDUP(COLUMNS($G:BF)/3,0)))","v":15},null,null,{"$f":"IF(BI$7=0,0,INDEX(Price_List,ROUNDUP(COLUMNS($G:BI)/3,0)))","v":20},null,null,{"$f":"IF(BL$7=0,0,INDEX(Price_List,ROUNDUP(COLUMNS($G:BL)/3,0)))","v":20},null,null,{"$f":"IF(BO$7=0,0,INDEX(Price_List,ROUNDUP(COLUMNS($G:BO)/3,0)))","v":20},null,null,{"$f":"IF(BR$7=0,0,INDEX(Price_List,ROUNDUP(COLUMNS($G:BR)/3,0)))","v":15},null,null,{"$f":"IF(BU$7=0,0,INDEX(Price_List,ROUNDUP(COLUMNS($G:BU)/3,0)))","v":20},null,null,{"$f":"IF(BX$7=0,0,INDEX(Price_List,ROUNDUP(COLUMNS($G:BX)/3,0)))","v":20},null,null,{"$f":"IF(CA$7=0,0,INDEX(Price_List,ROUNDUP(COLUMNS($G:CA)/3,0)))","v":15},null,null,{"$f":"IF(CD$7=0,0,INDEX(Price_List,ROUNDUP(COLUMNS($G:CD)/3,0)))","v":15},null,null,{"$f":"IF(CG$7=0,0,INDEX(Price_List,ROUNDUP(COLUMNS($G:CG)/3,0)))","v":20},null,null,{"$f":"IF(CJ$7=0,0,INDEX(Price_List,ROUNDUP(COLUMNS($G:CJ)/3,0)))","v":20},null,null,{"$f":"IF(CM$7=0,0,INDEX(Price_List,ROUNDUP(COLUMNS($G:CM)/3,0)))","v":10},null,null,{"$f":"IF(CP$7=0,0,INDEX(Price_List,ROUNDUP(COLUMNS($G:CP)/3,0)))","v":15},null,null,{"$f":"IF(CS$7=0,0,INDEX(Price_List,ROUNDUP(COLUMNS($G:CS)/3,0)))","v":15},null,null,{"$f":"IF(CV$7=0,0,INDEX(Price_List,ROUNDUP(COLUMNS($G:CV)/3,0)))","v":16},null,null,{"$f":"IF(CY$7=0,0,INDEX(Price_List,ROUNDUP(COLUMNS($G:CY)/3,0)))","v":15},null,null,{"$f":"IF(DB$7=0,0,INDEX(Price_List,ROUNDUP(COLUMNS($G:DB)/3,0)))","v":15},null,null,{"$f":"IF(DE$7=0,0,INDEX(Price_List,ROUNDUP(COLUMNS($G:DE)/3,0)))","v":10},null,null,{"$f":"IF(DH$7=0,0,INDEX(Price_List,ROUNDUP(COLUMNS($G:DH)/3,0)))","v":10},null,null,{"$f":"IF(DK$7=0,0,INDEX(Price_List,ROUNDUP(COLUMNS($G:DK)/3,0)))","v":20},null,null,{"$f":"IF(DN$7=0,0,INDEX(Price_List,ROUNDUP(COLUMNS($G:DN)/3,0)))","v":20},null,null,{"$f":"IF(DQ$7=0,0,INDEX(Price_List,ROUNDUP(COLUMNS($G:DQ)/3,0)))","v":15},null,null,{"$f":"IF(DT$7=0,0,INDEX(Price_List,ROUNDUP(COLUMNS($G:DT)/3,0)))","v":15},null,null,{"$f":"IF(DW$7=0,0,INDEX(Price_List,ROUNDUP(COLUMNS($G:DW)/3,0)))","v":12},null,null,{"$f":"IF(DZ$7=0,0,INDEX(Price_List,ROUNDUP(COLUMNS($G:DZ)/3,0)))","v":18},null,null,{"$f":"IF(EC$7=0,0,INDEX(Price_List,ROUNDUP(COLUMNS($G:EC)/3,0)))","v":12},null,null,{"$f":"IF(EF$7=0,0,INDEX(Price_List,ROUNDUP(COLUMNS($G:EF)/3,0)))","v":12},null,null,{"$f":"IF(EI$7=0,0,INDEX(Price_List,ROUNDUP(COLUMNS($G:EI)/3,0)))","v":25},null,null,{"$f":"IF(EL$7=0,0,INDEX(Price_List,ROUNDUP(COLUMNS($G:EL)/3,0)))","v":12},null,null,{"$f":"IF(EO$7=0,0,INDEX(Price_List,ROUNDUP(COLUMNS($G:EO)/3,0)))","v":12},null,null,{"$f":"IF(ER$7=0,0,INDEX(Price_List,ROUNDUP(COLUMNS($G:ER)/3,0)))","v":12},null,null,"เงินเชื่อ","เงินสด"]
[null,null,null,null,null,"คงเหลือ(ตามบัญชี)",{"$f":"IF(G$7=0,0,INDEX(INDIRECT(Order_Rng),ROUNDUP(COLUMNS($G:G)/3,0)))","v":0},null,null,{"$f":"IF(J$7=0,0,INDEX(INDIRECT(Order_Rng),ROUNDUP(COLUMNS($G:J)/3,0)))","v":0},null,null,{"$f":"IF(M$7=0,0,INDEX(INDIRECT(Order_Rng),ROUNDUP(COLUMNS($G:M)/3,0)))","v":0},null,null,{"$f":"IF(P$7=0,0,INDEX(INDIRECT(Order_Rng),ROUNDUP(COLUMNS($G:P)/3,0)))","v":0},null,null,{"$f":"IF(S$7=0,0,INDEX(INDIRECT(Order_Rng),ROUNDUP(COLUMNS($G:S)/3,0)))","v":0},null,null,{"$f":"IF(V$7=0,0,INDEX(INDIRECT(Order_Rng),ROUNDUP(COLUMNS($G:V)/3,0)))","v":0},null,null,{"$f":"IF(Y$7=0,0,INDEX(INDIRECT(Order_Rng),ROUNDUP(COLUMNS($G:Y)/3,0)))","v":0},null,null,{"$f":"IF(AB$7=0,0,INDEX(INDIRECT(Order_Rng),ROUNDUP(COLUMNS($G:AB)/3,0)))","v":0},null,null,{"$f":"IF(AE$7=0,0,INDEX(INDIRECT(Order_Rng),ROUNDUP(COLUMNS($G:AE)/3,0)))","v":0},null,null,{"$f":"IF(AH$7=0,0,INDEX(INDIRECT(Order_Rng),ROUNDUP(COLUMNS($G:AH)/3,0)))","v":0},null,null,{"$f":"IF(AK$7=0,0,INDEX(INDIRECT(Order_Rng),ROUNDUP(COLUMNS($G:AK)/3,0)))","v":0},null,null,{"$f":"IF(AN$7=0,0,INDEX(INDIRECT(Order_Rng),ROUNDUP(COLUMNS($G:AN)/3,0)))","v":0},null,null,{"$f":"IF(AQ$7=0,0,INDEX(INDIRECT(Order_Rng),ROUNDUP(COLUMNS($G:AQ)/3,0)))","v":0},null,null,{"$f":"IF(AT$7=0,0,INDEX(INDIRECT(Order_Rng),ROUNDUP(COLUMNS($G:AT)/3,0)))","v":0},null,null,{"$f":"IF(AW$7=0,0,INDEX(INDIRECT(Order_Rng),ROUNDUP(COLUMNS($G:AW)/3,0)))","v":0},null,null,{"$f":"IF(AZ$7=0,0,INDEX(INDIRECT(Order_Rng),ROUNDUP(COLUMNS($G:AZ)/3,0)))","v":0},null,null,{"$f":"IF(BC$7=0,0,INDEX(INDIRECT(Order_Rng),ROUNDUP(COLUMNS($G:BC)/3,0)))","v":0},null,null,{"$f":"IF(BF$7=0,0,INDEX(INDIRECT(Order_Rng),ROUNDUP(COLUMNS($G:BF)/3,0)))","v":0},null,null,{"$f":"IF(BI$7=0,0,INDEX(INDIRECT(Order_Rng),ROUNDUP(COLUMNS($G:BI)/3,0)))","v":0},null,null,{"$f":"IF(BL$7=0,0,INDEX(INDIRECT(Order_Rng),ROUNDUP(COLUMNS($G:BL)/3,0)))","v":0},null,null,{"$f":"IF(BO$7=0,0,INDEX(INDIRECT(Order_Rng),ROUNDUP(COLUMNS($G:BO)/3,0)))","v":0},null,null,{"$f":"IF(BR$7=0,0,INDEX(INDIRECT(Order_Rng),ROUNDUP(COLUMNS($G:BR)/3,0)))","v":0},null,null,{"$f":"IF(BU$7=0,0,INDEX(INDIRECT(Order_Rng),ROUNDUP(COLUMNS($G:BU)/3,0)))","v":0},null,null,{"$f":"IF(BX$7=0,0,INDEX(INDIRECT(Order_Rng),ROUNDUP(COLUMNS($G:BX)/3,0)))","v":0},null,null,{"$f":"IF(CA$7=0,0,INDEX(INDIRECT(Order_Rng),ROUNDUP(COLUMNS($G:CA)/3,0)))","v":0},null,null,{"$f":"IF(CD$7=0,0,INDEX(INDIRECT(Order_Rng),ROUNDUP(COLUMNS($G:CD)/3,0)))","v":0},null,null,{"$f":"IF(CG$7=0,0,INDEX(INDIRECT(Order_Rng),ROUNDUP(COLUMNS($G:CG)/3,0)))","v":0},null,null,{"$f":"IF(CJ$7=0,0,INDEX(INDIRECT(Order_Rng),ROUNDUP(COLUMNS($G:CJ)/3,0)))","v":0},null,null,{"$f":"IF(CM$7=0,0,INDEX(INDIRECT(Order_Rng),ROUNDUP(COLUMNS($G:CM)/3,0)))","v":0},null,null,{"$f":"IF(CP$7=0,0,INDEX(INDIRECT(Order_Rng),ROUNDUP(COLUMNS($G:CP)/3,0)))","v":0},null,null,{"$f":"IF(CS$7=0,0,INDEX(INDIRECT(Order_Rng),ROUNDUP(COLUMNS($G:CS)/3,0)))","v":0},null,null,{"$f":"IF(CV$7=0,0,INDEX(INDIRECT(Order_Rng),ROUNDUP(COLUMNS($G:CV)/3,0)))","v":0},null,null,{"$f":"IF(CY$7=0,0,INDEX(INDIRECT(Order_Rng),ROUNDUP(COLUMNS($G:CY)/3,0)))","v":0},null,null,{"$f":"IF(DB$7=0,0,INDEX(INDIRECT(Order_Rng),ROUNDUP(COLUMNS($G:DB)/3,0)))","v":0},null,null,{"$f":"IF(DE$7=0,0,INDEX(INDIRECT(Order_Rng),ROUNDUP(COLUMNS($G:DE)/3,0)))","v":0},null,null,{"$f":"IF(DH$7=0,0,INDEX(INDIRECT(Order_Rng),ROUNDUP(COLUMNS($G:DH)/3,0)))","v":0},null,null,{"$f":"IF(DK$7=0,0,INDEX(INDIRECT(Order_Rng),ROUNDUP(COLUMNS($G:DK)/3,0)))","v":0},null,null,{"$f":"IF(DN$7=0,0,INDEX(INDIRECT(Order_Rng),ROUNDUP(COLUMNS($G:DN)/3,0)))","v":0},null,null,{"$f":"IF(DQ$7=0,0,INDEX(INDIRECT(Order_Rng),ROUNDUP(COLUMNS($G:DQ)/3,0)))","v":0},null,null,{"$f":"IF(DT$7=0,0,INDEX(INDIRECT(Order_Rng),ROUNDUP(COLUMNS($G:DT)/3,0)))","v":0},null,null,{"$f":"IF(DW$7=0,0,INDEX(INDIRECT(Order_Rng),ROUNDUP(COLUMNS($G:DW)/3,0)))","v":0},null,null,{"$f":"IF(DZ$7=0,0,INDEX(INDIRECT(Order_Rng),ROUNDUP(COLUMNS($G:DZ)/3,0)))","v":0},null,null,{"$f":"IF(EC$7=0,0,INDEX(INDIRECT(Order_Rng),ROUNDUP(COLUMNS($G:EC)/3,0)))","v":0},null,null,{"$f":"IF(EF$7=0,0,INDEX(INDIRECT(Order_Rng),ROUNDUP(COLUMNS($G:EF)/3,0)))","v":0},null,null,{"$f":"IF(EI$7=0,0,INDEX(INDIRECT(Order_Rng),ROUNDUP(COLUMNS($G:EI)/3,0)))","v":0},null,null,{"$f":"IF(EL$7=0,0,INDEX(INDIRECT(Order_Rng),ROUNDUP(COLUMNS($G:EL)/3,0)))","v":0},null,null,{"$f":"IF(EO$7=0,0,INDEX(INDIRECT(Order_Rng),ROUNDUP(COLUMNS($G:EO)/3,0)))","v":0},null,null,{"$f":"IF(ER$7=0,0,INDEX(INDIRECT(Order_Rng),ROUNDUP(COLUMNS($G:ER)/3,0)))","v":0}]
[{"$f":"IF(OR($B10=\"\",COUNTIF($B$10:$B10,$B10)>1,LEN(TRIM($B10))<>10,ISNUMBER(--MID(TRIM($B10),5,1))),\"-\",MAX(COUNT($A$9:$A9)+1))","v":"-"}]
[{"$f":"IF(OR($B11=\"\",COUNTIF($B$10:$B11,$B11)>1,LEN(TRIM($B11))<>10,ISNUMBER(--MID(TRIM($B11),5,1))),\"-\",MAX(COUNT($A$9:$A10)+1))","v":"-"},null,null,null,{"$f":"IF(D11=\"\",\"\",D11-D10)","v":""}]
[{"$f":"IF(OR($B12=\"\",COUNTIF($B$10:$B12,$B12)>1,LEN(TRIM($B12))<>10,ISNUMBER(--MID(TRIM($B12),5,1))),\"-\",MAX(COUNT($A$9:$A11)+1))","v":"-"},null,null,null,{"$f":"IF(D12=\"\",\"\",D12-D11)","v":""}]
[{"$f":"IF(OR($B13=\"\",COUNTIF($B$10:$B13,$B13)>1,LEN(TRIM($B13))<>10,ISNUMBER(--MID(TRIM($B13),5,1))),\"-\",MAX(COUNT($A$9:$A12)+1))","v":"-"},null,null,null,""]
[{"$f":"IF(OR($B14=\"\",COUNTIF($B$10:$B14,$B14)>1,LEN(TRIM($B14))<>10,ISNUMBER(--MID(TRIM($B14),5,1))),\"-\",MAX(COUNT($A$9:$A13)+1))","v":"-"},null,null,null,""]
[{"$f":"IF(OR($B15=\"\",COUNTIF($B$10:$B15,$B15)>1,LEN(TRIM($B15))<>10,ISNUMBER(--MID(TRIM($B15),5,1))),\"-\",MAX(COUNT($A$9:$A14)+1))","v":"-"},null,null,null,""]
[{"$f":"IF(OR($B16=\"\",COUNTIF($B$10:$B16,$B16)>1,LEN(TRIM($B16))<>10,ISNUMBER(--MID(TRIM($B16),5,1))),\"-\",MAX(COUNT($A$9:$A15)+1))","v":"-"},null,null,null,""]
[{"$f":"IF(OR($B17=\"\",COUNTIF($B$10:$B17,$B17)>1,LEN(TRIM($B17))<>10,ISNUMBER(--MID(TRIM($B17),5,1))),\"-\",MAX(COUNT($A$9:$A16)+1))","v":"-"},null,null,null,""]
[{"$f":"IF(OR($B18=\"\",COUNTIF($B$10:$B18,$B18)>1,LEN(TRIM($B18))<>10,ISNUMBER(--MID(TRIM($B18),5,1))),\"-\",MAX(COUNT($A$9:$A17)+1))","v":"-"},null,null,null,""]
[{"$f":"IF(OR($B19=\"\",COUNTIF($B$10:$B19,$B19)>1,LEN(TRIM($B19))<>10,ISNUMBER(--MID(TRIM($B19),5,1))),\"-\",MAX(COUNT($A$9:$A18)+1))","v":"-"},null,null,null,""]
[{"$f":"IF(OR($B20=\"\",COUNTIF($B$10:$B20,$B20)>1,LEN(TRIM($B20))<>10,ISNUMBER(--MID(TRIM($B20),5,1))),\"-\",MAX(COUNT($A$9:$A19)+1))","v":"-"},null,null,null,""]
[{"$f":"IF(OR($B21=\"\",COUNTIF($B$10:$B21,$B21)>1,LEN(TRIM($B21))<>10,ISNUMBER(--MID(TRIM($B21),5,1))),\"-\",MAX(COUNT($A$9:$A20)+1))","v":"-"},null,null,null,""]
[{"$f":"IF(OR($B22=\"\",COUNTIF($B$10:$B22,$B22)>1,LEN(TRIM($B22))<>10,ISNUMBER(--MID(TRIM($B22),5,1))),\"-\",MAX(COUNT($A$9:$A21)+1))","v":"-"},null,null,null,""]
[{"$f":"IF(OR($B23=\"\",COUNTIF($B$10:$B23,$B23)>1,LEN(TRIM($B23))<>10,ISNUMBER(--MID(TRIM($B23),5,1))),\"-\",MAX(COUNT($A$9:$A22)+1))","v":"-"},null,null,null,""]
[{"$f":"IF(OR($B24=\"\",COUNTIF($B$10:$B24,$B24)>1,LEN(TRIM($B24))<>10,ISNUMBER(--MID(TRIM($B24),5,1))),\"-\",MAX(COUNT($A$9:$A23)+1))","v":"-"},null,null,null,""]
[{"$f":"IF(OR($B25=\"\",COUNTIF($B$10:$B25,$B25)>1,LEN(TRIM($B25))<>10,ISNUMBER(--MID(TRIM($B25),5,1))),\"-\",MAX(COUNT($A$9:$A24)+1))","v":"-"},null,null,null,""]
[{"$f":"IF(OR($B26=\"\",COUNTIF($B$10:$B26,$B26)>1,LEN(TRIM($B26))<>10,ISNUMBER(--MID(TRIM($B26),5,1))),\"-\",MAX(COUNT($A$9:$A25)+1))","v":"-"},null,null,null,""]
[{"$f":"IF(OR($B27=\"\",COUNTIF($B$10:$B27,$B27)>1,LEN(TRIM($B27))<>10,ISNUMBER(--MID(TRIM($B27),5,1))),\"-\",MAX(COUNT($A$9:$A26)+1))","v":"-"},null,null,null,""]
[{"$f":"IF(OR($B28=\"\",COUNTIF($B$10:$B28,$B28)>1,LEN(TRIM($B28))<>10,ISNUMBER(--MID(TRIM($B28),5,1))),\"-\",MAX(COUNT($A$9:$A27)+1))","v":"-"},null,null,null,""]
[{"$f":"IF(OR($B29=\"\",COUNTIF($B$10:$B29,$B29)>1,LEN(TRIM($B29))<>10,ISNUMBER(--MID(TRIM($B29),5,1))),\"-\",MAX(COUNT($A$9:$A28)+1))","v":"-"},null,null,null,""]
[{"$f":"IF(OR($B30=\"\",COUNTIF($B$10:$B30,$B30)>1,LEN(TRIM($B30))<>10,ISNUMBER(--MID(TRIM($B30),5,1))),\"-\",MAX(COUNT($A$9:$A29)+1))","v":"-"},null,null,null,""]
[{"$f":"IF(OR($B31=\"\",COUNTIF($B$10:$B31,$B31)>1,LEN(TRIM($B31))<>10,ISNUMBER(--MID(TRIM($B31),5,1))),\"-\",MAX(COUNT($A$9:$A30)+1))","v":"-"},null,null,null,""]
[{"$f":"IF(OR($B32=\"\",COUNTIF($B$10:$B32,$B32)>1,LEN(TRIM($B32))<>10,ISNUMBER(--MID(TRIM($B32),5,1))),\"-\",MAX(COUNT($A$9:$A31)+1))","v":"-"},null,null,null,""]
[{"$f":"IF(OR($B33=\"\",COUNTIF($B$10:$B33,$B33)>1,LEN(TRIM($B33))<>10,ISNUMBER(--MID(TRIM($B33),5,1))),\"-\",MAX(COUNT($A$9:$A32)+1))","v":"-"},null,null,null,""]
[{"$f":"IF(OR($B34=\"\",COUNTIF($B$10:$B34,$B34)>1,LEN(TRIM($B34))<>10,ISNUMBER(--MID(TRIM($B34),5,1))),\"-\",MAX(COUNT($A$9:$A33)+1))","v":"-"},null,null,null,""]
[{"$f":"IF(OR($B35=\"\",COUNTIF($B$10:$B35,$B35)>1,LEN(TRIM($B35))<>10,ISNUMBER(--MID(TRIM($B35),5,1))),\"-\",MAX(COUNT($A$9:$A34)+1))","v":"-"},null,null,null,""]
[{"$f":"IF(OR($B36=\"\",COUNTIF($B$10:$B36,$B36)>1,LEN(TRIM($B36))<>10,ISNUMBER(--MID(TRIM($B36),5,1))),\"-\",MAX(COUNT($A$9:$A35)+1))","v":"-"},null,null,null,""]
[{"$f":"IF(OR($B37=\"\",COUNTIF($B$10:$B37,$B37)>1,LEN(TRIM($B37))<>10,ISNUMBER(--MID(TRIM($B37),5,1))),\"-\",MAX(COUNT($A$9:$A36)+1))","v":"-"},null,null,null,""]
[{"$f":"IF(OR($B38=\"\",COUNTIF($B$10:$B38,$B38)>1,LEN(TRIM($B38))<>10,ISNUMBER(--MID(TRIM($B38),5,1))),\"-\",MAX(COUNT($A$9:$A37)+1))","v":"-"},null,null,null,""]
[{"$f":"IF(OR($B39=\"\",COUNTIF($B$10:$B39,$B39)>1,LEN(TRIM($B39))<>10,ISNUMBER(--MID(TRIM($B39),5,1))),\"-\",MAX(COUNT($A$9:$A38)+1))","v":"-"},null,null,null,""]
[{"$f":"IF(OR($B40=\"\",COUNTIF($B$10:$B40,$B40)>1,LEN(TRIM($B40))<>10,ISNUMBER(--MID(TRIM($B40),5,1))),\"-\",MAX(COUNT($A$9:$A39)+1))","v":"-"},null,null,null,""]
[{"$f":"IF(OR($B41=\"\",COUNTIF($B$10:$B41,$B41)>1,LEN(TRIM($B41))<>10,ISNUMBER(--MID(TRIM($B41),5,1))),\"-\",MAX(COUNT($A$9:$A40)+1))","v":"-"},null,null,null,""]
[{"$f":"IF(OR($B42=\"\",COUNTIF($B$10:$B42,$B42)>1,LEN(TRIM($B42))<>10,ISNUMBER(--MID(TRIM($B42),5,1))),\"-\",MAX(COUNT($A$9:$A41)+1))","v":"-"},null,null,null,""]
[{"$f":"IF(OR($B43=\"\",COUNTIF($B$10:$B43,$B43)>1,LEN(TRIM($B43))<>10,ISNUMBER(--MID(TRIM($B43),5,1))),\"-\",MAX(COUNT($A$9:$A42)+1))","v":"-"},null,null,null,""]
[{"$f":"IF(OR($B44=\"\",COUNTIF($B$10:$B44,$B44)>1,LEN(TRIM($B44))<>10,ISNUMBER(--MID(TRIM($B44),5,1))),\"-\",MAX(COUNT($A$9:$A43)+1))","v":"-"},null,null,null,""]
[{"$f":"IF(OR($B45=\"\",COUNTIF($B$10:$B45,$B45)>1,LEN(TRIM($B45))<>10,ISNUMBER(--MID(TRIM($B45),5,1))),\"-\",MAX(COUNT($A$9:$A44)+1))","v":"-"},null,null,null,""]
[{"$f":"IF(OR($B46=\"\",COUNTIF($B$10:$B46,$B46)>1,LEN(TRIM($B46))<>10,ISNUMBER(--MID(TRIM($B46),5,1))),\"-\",MAX(COUNT($A$9:$A45)+1))","v":"-"},null,null,null,""]
[{"$f":"IF(OR($B47=\"\",COUNTIF($B$10:$B47,$B47)>1,LEN(TRIM($B47))<>10,ISNUMBER(--MID(TRIM($B47),5,1))),\"-\",MAX(COUNT($A$9:$A46)+1))","v":"-"},null,null,null,""]
[{"$f":"IF(OR($B48=\"\",COUNTIF($B$10:$B48,$B48)>1,LEN(TRIM($B48))<>10,ISNUMBER(--MID(TRIM($B48),5,1))),\"-\",MAX(COUNT($A$9:$A47)+1))","v":"-"},null,null,null,""]
[{"$f":"IF(OR($B49=\"\",COUNTIF($B$10:$B49,$B49)>1,LEN(TRIM($B49))<>10,ISNUMBER(--MID(TRIM($B49),5,1))),\"-\",MAX(COUNT($A$9:$A48)+1))","v":"-"},null,null,null,""]
[{"$f":"IF(OR($B50=\"\",COUNTIF($B$10:$B50,$B50)>1,LEN(TRIM($B50))<>10,ISNUMBER(--MID(TRIM($B50),5,1))),\"-\",MAX(COUNT($A$9:$A49)+1))","v":"-"},null,null,null,""]
[{"$f":"IF(OR($B51=\"\",COUNTIF($B$10:$B51,$B51)>1,LEN(TRIM($B51))<>10,ISNUMBER(--MID(TRIM($B51),5,1))),\"-\",MAX(COUNT($A$9:$A50)+1))","v":"-"},null,null,null,""]
[{"$f":"IF(OR($B52=\"\",COUNTIF($B$10:$B52,$B52)>1,LEN(TRIM($B52))<>10,ISNUMBER(--MID(TRIM($B52),5,1))),\"-\",MAX(COUNT($A$9:$A51)+1))","v":"-"},null,null,null,""]
[{"$f":"IF(OR($B53=\"\",COUNTIF($B$10:$B53,$B53)>1,LEN(TRIM($B53))<>10,ISNUMBER(--MID(TRIM($B53),5,1))),\"-\",MAX(COUNT($A$9:$A52)+1))","v":"-"},null,null,null,""]
[{"$f":"IF(OR($B54=\"\",COUNTIF($B$10:$B54,$B54)>1,LEN(TRIM($B54))<>10,ISNUMBER(--MID(TRIM($B54),5,1))),\"-\",MAX(COUNT($A$9:$A53)+1))","v":"-"},null,null,null,""]
[{"$f":"IF(OR($B55=\"\",COUNTIF($B$10:$B55,$B55)>1,LEN(TRIM($B55))<>10,ISNUMBER(--MID(TRIM($B55),5,1))),\"-\",MAX(COUNT($A$9:$A54)+1))","v":"-"},null,null,null,""]
[{"$f":"IF(OR($B56=\"\",COUNTIF($B$10:$B56,$B56)>1,LEN(TRIM($B56))<>10,ISNUMBER(--MID(TRIM($B56),5,1))),\"-\",MAX(COUNT($A$9:$A55)+1))","v":"-"},null,null,null,""]
[{"$f":"IF(OR($B57=\"\",COUNTIF($B$10:$B57,$B57)>1,LEN(TRIM($B57))<>10,ISNUMBER(--MID(TRIM($B57),5,1))),\"-\",MAX(COUNT($A$9:$A56)+1))","v":"-"},null,null,null,""]
[{"$f":"IF(OR($B58=\"\",COUNTIF($B$10:$B58,$B58)>1,LEN(TRIM($B58))<>10,ISNUMBER(--MID(TRIM($B58),5,1))),\"-\",MAX(COUNT($A$9:$A57)+1))","v":"-"},null,null,null,""]
[{"$f":"IF(OR($B59=\"\",COUNTIF($B$10:$B59,$B59)>1,LEN(TRIM($B59))<>10,ISNUMBER(--MID(TRIM($B59),5,1))),\"-\",MAX(COUNT($A$9:$A58)+1))","v":"-"},null,null,null,""]
[{"$f":"IF(OR($B60=\"\",COUNTIF($B$10:$B60,$B60)>1,LEN(TRIM($B60))<>10,ISNUMBER(--MID(TRIM($B60),5,1))),\"-\",MAX(COUNT($A$9:$A59)+1))","v":"-"},null,null,null,""]
[{"$f":"IF(OR($B61=\"\",COUNTIF($B$10:$B61,$B61)>1,LEN(TRIM($B61))<>10,ISNUMBER(--MID(TRIM($B61),5,1))),\"-\",MAX(COUNT($A$9:$A60)+1))","v":"-"},null,null,null,""]
[{"$f":"IF(OR($B62=\"\",COUNTIF($B$10:$B62,$B62)>1,LEN(TRIM($B62))<>10,ISNUMBER(--MID(TRIM($B62),5,1))),\"-\",MAX(COUNT($A$9:$A61)+1))","v":"-"},null,null,null,""]
[{"$f":"IF(OR($B63=\"\",COUNTIF($B$10:$B63,$B63)>1,LEN(TRIM($B63))<>10,ISNUMBER(--MID(TRIM($B63),5,1))),\"-\",MAX(COUNT($A$9:$A62)+1))","v":"-"},null,null,null,""]
[{"$f":"IF(OR($B64=\"\",COUNTIF($B$10:$B64,$B64)>1,LEN(TRIM($B64))<>10,ISNUMBER(--MID(TRIM($B64),5,1))),\"-\",MAX(COUNT($A$9:$A63)+1))","v":"-"},null,null,null,""]
[{"$f":"IF(OR($B65=\"\",COUNTIF($B$10:$B65,$B65)>1,LEN(TRIM($B65))<>10,ISNUMBER(--MID(TRIM($B65),5,1))),\"-\",MAX(COUNT($A$9:$A64)+1))","v":"-"},null,null,null,""]
[{"$f":"IF(OR($B66=\"\",COUNTIF($B$10:$B66,$B66)>1,LEN(TRIM($B66))<>10,ISNUMBER(--MID(TRIM($B66),5,1))),\"-\",MAX(COUNT($A$9:$A65)+1))","v":"-"},null,null,null,""]
[{"$f":"IF(OR($B67=\"\",COUNTIF($B$10:$B67,$B67)>1,LEN(TRIM($B67))<>10,ISNUMBER(--MID(TRIM($B67),5,1))),\"-\",MAX(COUNT($A$9:$A66)+1))","v":"-"},null,null,null,""]
[{"$f":"IF(OR($B68=\"\",COUNTIF($B$10:$B68,$B68)>1,LEN(TRIM($B68))<>10,ISNUMBER(--MID(TRIM($B68),5,1))),\"-\",MAX(COUNT($A$9:$A67)+1))","v":"-"},null,null,null,""]
[{"$f":"IF(OR($B69=\"\",COUNTIF($B$10:$B69,$B69)>1,LEN(TRIM($B69))<>10,ISNUMBER(--MID(TRIM($B69),5,1))),\"-\",MAX(COUNT($A$9:$A68)+1))","v":"-"},null,null,null,""]
[{"$f":"IF(OR($B70=\"\",COUNTIF($B$10:$B70,$B70)>1,LEN(TRIM($B70))<>10,ISNUMBER(--MID(TRIM($B70),5,1))),\"-\",MAX(COUNT($A$9:$A69)+1))","v":"-"},null,null,null,""]
[{"$f":"IF(OR($B71=\"\",COUNTIF($B$10:$B71,$B71)>1,LEN(TRIM($B71))<>10,ISNUMBER(--MID(TRIM($B71),5,1))),\"-\",MAX(COUNT($A$9:$A70)+1))","v":"-"},null,null,null,""]
[{"$f":"IF(OR($B72=\"\",COUNTIF($B$10:$B72,$B72)>1,LEN(TRIM($B72))<>10,ISNUMBER(--MID(TRIM($B72),5,1))),\"-\",MAX(COUNT($A$9:$A71)+1))","v":"-"},null,null,null,""]
[{"$f":"IF(OR($B73=\"\",COUNTIF($B$10:$B73,$B73)>1,LEN(TRIM($B73))<>10,ISNUMBER(--MID(TRIM($B73),5,1))),\"-\",MAX(COUNT($A$9:$A72)+1))","v":"-"},null,null,null,""]
[{"$f":"IF(OR($B74=\"\",COUNTIF($B$10:$B74,$B74)>1,LEN(TRIM($B74))<>10,ISNUMBER(--MID(TRIM($B74),5,1))),\"-\",MAX(COUNT($A$9:$A73)+1))","v":"-"},null,null,null,""]
[{"$f":"IF(OR($B75=\"\",COUNTIF($B$10:$B75,$B75)>1,LEN(TRIM($B75))<>10,ISNUMBER(--MID(TRIM($B75),5,1))),\"-\",MAX(COUNT($A$9:$A74)+1))","v":"-"},null,null,null,""]
[{"$f":"IF(OR($B76=\"\",COUNTIF($B$10:$B76,$B76)>1,LEN(TRIM($B76))<>10,ISNUMBER(--MID(TRIM($B76),5,1))),\"-\",MAX(COUNT($A$9:$A75)+1))","v":"-"},null,null,null,{"$f":"IF(D76=\"\",\"\",D76-D75)","v":""}]
[{"$f":"IF(OR($B77=\"\",COUNTIF($B$10:$B77,$B77)>1,LEN(TRIM($B77))<>10,ISNUMBER(--MID(TRIM($B77),5,1))),\"-\",MAX(COUNT($A$9:$A76)+1))","v":"-"},null,null,null,""]
[{"$f":"IF(OR($B78=\"\",COUNTIF($B$10:$B78,$B78)>1,LEN(TRIM($B78))<>10,ISNUMBER(--MID(TRIM($B78),5,1))),\"-\",MAX(COUNT($A$9:$A77)+1))","v":"-"},null,null,null,""]
[{"$f":"IF(OR($B79=\"\",COUNTIF($B$10:$B79,$B79)>1,LEN(TRIM($B79))<>10,ISNUMBER(--MID(TRIM($B79),5,1))),\"-\",MAX(COUNT($A$9:$A78)+1))","v":"-"},null,null,null,""]
["รวมของขาย|ของเสีย|เหลือบนเชลฟ์",null,null,null,null,null,{"$f":"SUM(G10:G79)","v":0},0,0,{"$f":"SUM(J10:J79)","v":0},0,0,0,0,0,0,0,0,0,0,0,0,0,0,0,0,0,0,0,0,0,0,0,0,0,0,0,0,0,0,0,0,0,0,0,0,0,0,0,0,0,0,0,0,0,0,0,0,0,0,0,0,0,0,0,0,0,0,0,0,0,0,0,{"$f":"SUM(BV10:BV79)","v":0},0,0,0,0,0,0,0,0,0,0,0,0,0,0,0,0,0,0,0,0,0,0,0,0,0,0,0,0,0,0,0,0,0,0,0,0,0,0,0,0,0,0,0,0,0,0,0,0,0,0,0,0,0,0,0,0,0,0,0,0,0,{"$f":"SUM(EF10:EF79)","v":0},0,0,{"$f":"SUM(EI10:EI79)","v":0},0,0,0,0,0,{"$f":"SUM(EO10:EO79)","v":0},0,0,0,0,0,"รวมเงินเชื่อ","รวมเงินสด","ภาษี","รวมยอดขาย"]
["ของเหลือ",null,null,null,null,null,{"$f":"G80+H80-G9","v":0},null,null,{"$f":"J80+K80-J9","v":0},null,null,{"$f":"M80+N80-M9","v":0},null,null,{"$f":"P80+Q80-P9","v":0},null,null,{"$f":"S80+T80-S9","v":0},null,null,{"$f":"V80+W80-V9","v":0},null,null,{"$f":"Y80+Z80-Y9","v":0},null,null,{"$f":"AB80+AC80-AB9","v":0},null,null,{"$f":"AE80+AF80-AE9","v":0},null,null,{"$f":"AH80+AI80-AH9","v":0},null,null,{"$f":"AK80+AL80-AK9","v":0},null,null,{"$f":"AN80+AO80-AN9","v":0},null,null,{"$f":"AQ80+AR80-AQ9","v":0},null,null,{"$f":"AT80+AU80-AT9","v":0},null,null,{"$f":"AW80+AX80-AW9","v":0},null,null,{"$f":"AZ80+BA80-AZ9","v":0},null,null,{"$f":"BC80+BD80-BC9","v":0},null,null,{"$f":"BF80+BG80-BF9","v":0},null,null,{"$f":"BI80+BJ80-BI9","v":0},null,null,{"$f":"BL80+BM80-BL9","v":0},null,null,{"$f":"BO80+BP80-BO9","v":0},null,null,{"$f":"BR80+BS80-BR9","v":0},null,null,{"$f":"BU80+BV80-BU9","v":0},null,null,{"$f":"BX80+BY80-BX9","v":0},null,null,{"$f":"CA80+CB80-CA9","v":0},null,null,{"$f":"CD80+CE80-CD9","v":0},null,null,{"$f":"CG80+CH80-CG9","v":0},null,null,{"$f":"CJ80+CK80-CJ9","v":0},null,null,{"$f":"CM80+CN80-CM9","v":0},null,null,{"$f":"CP80+CQ80-CP9","v":0},null,null,{"$f":"CS80+CT80-CS9","v":0},null,null,{"$f":"CV80+CW80-CV9","v":0},null,null,{"$f":"CY80+CZ80-CY9","v":0},null,null,{"$f":"DB80+DC80-DB9","v":0},null,null,{"$f":"DE80+DF80-DE9","v":0},null,null,{"$f":"DH80+DI80-DH9","v":0},null,null,{"$f":"DK80+DL80-DK9","v":0},null,null,{"$f":"DN80+DO80-DN9","v":0},null,null,{"$f":"DQ80+DR80-DQ9","v":0},null,null,{"$f":"DT80+DU80-DT9","v":0},null,null,{"$f":"DW80+DX80-DW9","v":0},null,null,{"$f":"DZ80+EA80-DZ9","v":0},null,null,{"$f":"EC80+ED80-EC9","v":0},null,null,{"$f":"EF80+EG80-EF9","v":0},null,null,{"$f":"EI80+EJ80-EI9","v":0},null,null,{"$f":"EL80+EM80-EL9","v":0},null,null,{"$f":"EO80+EP80-EO9","v":0},null,null,{"$f":"ER80+ES80-ER9","v":0},null,null,{"$f":"SUM(EU10:EU79)","v":0},{"$f":"SUM(EV10:EV79)","v":0},{"$f":"SUM(EW10:EW79)","v":0},{"$f":"SUM(EX10:EX79)","v":0}]
["เฉลี่ย",null,null,"เหลือ/เสีย(จริง)",null,null,{"$f":"INDIRECT(\"F\"&ROW($G$87)+ROUNDUP(COLUMNS($G:G)/3,0))","v":0},{"$f":"INDIRECT(\"G\"&ROW($G$87)+ROUNDUP(COLUMNS($G:H)/3,0))","v":0},null,{"$f":"INDIRECT(\"F\"&ROW($G$87)+ROUNDUP(COLUMNS($G:J)/3,0))","v":0},{"$f":"INDIRECT(\"G\"&ROW($G$87)+ROUNDUP(COLUMNS($G:K)/3,0))","v":0},null,{"$f":"INDIRECT(\"F\"&ROW($G$87)+ROUNDUP(COLUMNS($G:M)/3,0))","v":0},{"$f":"INDIRECT(\"G\"&ROW($G$87)+ROUNDUP(COLUMNS($G:N)/3,0))","v":0},null,{"$f":"INDIRECT(\"F\"&ROW($G$87)+ROUNDUP(COLUMNS($G:P)/3,0))","v":0},{"$f":"INDIRECT(\"G\"&ROW($G$87)+ROUNDUP(COLUMNS($G:Q)/3,0))","v":0},null,{"$f":"INDIRECT(\"F\"&ROW($G$87)+ROUNDUP(COLUMNS($G:S)/3,0))","v":0},{"$f":"INDIRECT(\"G\"&ROW($G$87)+ROUNDUP(COLUMNS($G:T)/3,0))","v":0},null,{"$f":"INDIRECT(\"F\"&ROW($G$87)+ROUNDUP(COLUMNS($G:V)/3,0))","v":0},{"$f":"INDIRECT(\"G\"&ROW($G$87)+ROUNDUP(COLUMNS($G:W)/3,0))","v":0},null,{"$f":"INDIRECT(\"F\"&ROW($G$87)+ROUNDUP(COLUMNS($G:Y)/3,0))","v":0},{"$f":"INDIRECT(\"G\"&ROW($G$87)+ROUNDUP(COLUMNS($G:Z)/3,0))","v":0},null,{"$f":"INDIRECT(\"F\"&ROW($G$87)+ROUNDUP(COLUMNS($G:AB)/3,0))","v":0},{"$f":"INDIRECT(\"G\"&ROW($G$87)+ROUNDUP(COLUMNS($G:AC)/3,0))","v":0},null,{"$f":"INDIRECT(\"F\"&ROW($G$87)+ROUNDUP(COLUMNS($G:AE)/3,0))","v":0},{"$f":"INDIRECT(\"G\"&ROW($G$87)+ROUNDUP(COLUMNS($G:AF)/3,0))","v":0},null,{"$f":"INDIRECT(\"F\"&ROW($G$87)+ROUNDUP(COLUMNS($G:AH)/3,0))","v":0},{"$f":"INDIRECT(\"G\"&ROW($G$87)+ROUNDUP(COLUMNS($G:AI)/3,0))","v":0},null,{"$f":"INDIRECT(\"F\"&ROW($G$87)+ROUNDUP(COLUMNS($G:AK)/3,0))","v":0},{"$f":"INDIRECT(\"G\"&ROW($G$87)+ROUNDUP(COLUMNS($G:AL)/3,0))","v":0},null,{"$f":"INDIRECT(\"F\"&ROW($G$87)+ROUNDUP(COLUMNS($G:AN)/3,0))","v":0},{"$f":"INDIRECT(\"G\"&ROW($G$87)+ROUNDUP(COLUMNS($G:AO)/3,0))","v":0},null,{"$f":"INDIRECT(\"F\"&ROW($G$87)+ROUNDUP(COLUMNS($G:AQ)/3,0))","v":0},{"$f":"INDIRECT(\"G\"&ROW($G$87)+ROUNDUP(COLUMNS($G:AR)/3,0))","v":0},null,{"$f":"INDIRECT(\"F\"&ROW($G$87)+ROUNDUP(COLUMNS($G:AT)/3,0))","v":0},{"$f":"INDIRECT(\"G\"&ROW($G$87)+ROUNDUP(COLUMNS($G:AU)/3,0))","v":0},null,{"$f":"INDIRECT(\"F\"&ROW($G$87)+ROUNDUP(COLUMNS($G:AW)/3,0))","v":0},{"$f":"INDIRECT(\"G\"&ROW($G$87)+ROUNDUP(COLUMNS($G:AX)/3,0))","v":0},null,{"$f":"INDIRECT(\"F\"&ROW($G$87)+ROUNDUP(COLUMNS($G:AZ)/3,0))","v":0},{"$f":"INDIRECT(\"G\"&ROW($G$87)+ROUNDUP(COLUMNS($G:BA)/3,0))","v":0},null,{"$f":"INDIRECT(\"F\"&ROW($G$87)+ROUNDUP(COLUMNS($G:BC)/3,0))","v":0},{"$f":"INDIRECT(\"G\"&ROW($G$87)+ROUNDUP(COLUMNS($G:BD)/3,0))","v":0},null,{"$f":"INDIRECT(\"F\"&ROW($G$87)+ROUNDUP(COLUMNS($G:BF)/3,0))","v":0},{"$f":"INDIRECT(\"G\"&ROW($G$87)+ROUNDUP(COLUMNS($G:BG)/3,0))","v":0},null,{"$f":"INDIRECT(\"F\"&ROW($G$87)+ROUNDUP(COLUMNS($G:BI)/3,0))","v":0},{"$f":"INDIRECT(\"G\"&ROW($G$87)+ROUNDUP(COLUMNS($G:BJ)/3,0))","v":0},null,{"$f":"INDIRECT(\"F\"&ROW($G$87)+ROUNDUP(COLUMNS($G:BL)/3,0))","v":0},{"$f":"INDIRECT(\"G\"&ROW($G$87)+ROUNDUP(COLUMNS($G:BM)/3,0))","v":0},null,{"$f":"INDIRECT(\"F\"&ROW($G$87)+ROUNDUP(COLUMNS($G:BO)/3,0))","v":0},{"$f":"INDIRECT(\"G\"&ROW($G$87)+ROUNDUP(COLUMNS($G:BP)/3,0))","v":0},null,{"$f":"INDIRECT(\"F\"&ROW($G$87)+ROUNDUP(COLUMNS($G:BR)/3,0))","v":0},{"$f":"INDIRECT(\"G\"&ROW($G$87)+ROUNDUP(COLUMNS($G:BS)/3,0))","v":0},null,{"$f":"INDIRECT(\"F\"&ROW($G$87)+ROUNDUP(COLUMNS($G:BU)/3,0))","v":0},{"$f":"INDIRECT(\"G\"&ROW($G$87)+ROUNDUP(COLUMNS($G:BV)/3,0))","v":0},null,{"$f":"INDIRECT(\"F\"&ROW($G$87)+ROUNDUP(COLUMNS($G:BX)/3,0))","v":0},{"$f":"INDIRECT(\"G\"&ROW($G$87)+ROUNDUP(COLUMNS($G:BY)/3,0))","v":0},null,{"$f":"INDIRECT(\"F\"&ROW($G$87)+ROUNDUP(COLUMNS($G:CA)/3,0))","v":0},{"$f":"INDIRECT(\"G\"&ROW($G$87)+ROUNDUP(COLUMNS($G:CB)/3,0))","v":0},null,{"$f":"INDIRECT(\"F\"&ROW($G$87)+ROUNDUP(COLUMNS($G:CD)/3,0))","v":0},{"$f":"INDIRECT(\"G\"&ROW($G$87)+ROUNDUP(COLUMNS($G:CE)/3,0))","v":0},null,{"$f":"INDIRECT(\"F\"&ROW($G$87)+ROUNDUP(COLUMNS($G:CG)/3,0))","v":0},{"$f":"INDIRECT(\"G\"&ROW($G$87)+ROUNDUP(COLUMNS($G:CH)/3,0))","v":0},null,{"$f":"INDIRECT(\"F\"&ROW($G$87)+ROUNDUP(COLUMNS($G:CJ)/3,0))","v":0},{"$f":"INDIRECT(\"G\"&ROW($G$87)+ROUNDUP(COLUMNS($G:CK)/3,0))","v":0},null,{"$f":"INDIRECT(\"F\"&ROW($G$87)+ROUNDUP(COLUMNS($G:CM)/3,0))","v":0},{"$f":"INDIRECT(\"G\"&ROW($G$87)+ROUNDUP(COLUMNS($G:CN)/3,0))","v":0},null,{"$f":"INDIRECT(\"F\"&ROW($G$87)+ROUNDUP(COLUMNS($G:CP)/3,0))","v":0},{"$f":"INDIRECT(\"G\"&ROW($G$87)+ROUNDUP(COLUMNS($G:CQ)/3,0))","v":0},null,{"$f":"INDIRECT(\"F\"&ROW($G$87)+ROUNDUP(COLUMNS($G:CS)/3,0))","v":0},{"$f":"INDIRECT(\"G\"&ROW($G$87)+ROUNDUP(COLUMNS($G:CT)/3,0))","v":0},null,{"$f":"INDIRECT(\"F\"&ROW($G$87)+ROUNDUP(COLUMNS($G:CV)/3,0))","v":0},{"$f":"INDIRECT(\"G\"&ROW($G$87)+ROUNDUP(COLUMNS($G:CW)/3,0))","v":0},null,{"$f":"INDIRECT(\"F\"&ROW($G$87)+ROUNDUP(COLUMNS($G:CY)/3,0))","v":0},{"$f":"INDIRECT(\"G\"&ROW($G$87)+ROUNDUP(COLUMNS($G:CZ)/3,0))","v":0},null,{"$f":"INDIRECT(\"F\"&ROW($G$87)+ROUNDUP(COLUMNS($G:DB)/3,0))","v":0},{"$f":"INDIRECT(\"G\"&ROW($G$87)+ROUNDUP(COLUMNS($G:DC)/3,0))","v":0},null,{"$f":"INDIRECT(\"F\"&ROW($G$87)+ROUNDUP(COLUMNS($G:DE)/3,0))","v":0},{"$f":"INDIRECT(\"G\"&ROW($G$87)+ROUNDUP(COLUMNS($G:DF)/3,0))","v":0},null,{"$f":"INDIRECT(\"F\"&ROW($G$87)+ROUNDUP(COLUMNS($G:DH)/3,0))","v":0},{"$f":"INDIRECT(\"G\"&ROW($G$87)+ROUNDUP(COLUMNS($G:DI)/3,0))","v":0},null,{"$f":"INDIRECT(\"F\"&ROW($G$87)+ROUNDUP(COLUMNS($G:DK)/3,0))","v":0},{"$f":"INDIRECT(\"G\"&ROW($G$87)+ROUNDUP(COLUMNS($G:DL)/3,0))","v":0},null,{"$f":"INDIRECT(\"F\"&ROW($G$87)+ROUNDUP(COLUMNS($G:DN)/3,0))","v":0},{"$f":"INDIRECT(\"G\"&ROW($G$87)+ROUNDUP(COLUMNS($G:DO)/3,0))","v":0},null,{"$f":"INDIRECT(\"F\"&ROW($G$87)+ROUNDUP(COLUMNS($G:DQ)/3,0))","v":0},{"$f":"INDIRECT(\"G\"&ROW($G$87)+ROUNDUP(COLUMNS($G:DR)/3,0))","v":0},null,{"$f":"INDIRECT(\"F\"&ROW($G$87)+ROUNDUP(COLUMNS($G:DT)/3,0))","v":0},{"$f":"INDIRECT(\"G\"&ROW($G$87)+ROUNDUP(COLUMNS($G:DU)/3,0))","v":0},null,{"$f":"INDIRECT(\"F\"&ROW($G$87)+ROUNDUP(COLUMNS($G:DW)/3,0))","v":0},{"$f":"INDIRECT(\"G\"&ROW($G$87)+ROUNDUP(COLUMNS($G:DX)/3,0))","v":0},null,{"$f":"INDIRECT(\"F\"&ROW($G$87)+ROUNDUP(COLUMNS($G:DZ)/3,0))","v":0},{"$f":"INDIRECT(\"G\"&ROW($G$87)+ROUNDUP(COLUMNS($G:EA)/3,0))","v":0},null,{"$f":"INDIRECT(\"F\"&ROW($G$87)+ROUNDUP(COLUMNS($G:EC)/3,0))","v":0},{"$f":"INDIRECT(\"G\"&ROW($G$87)+ROUNDUP(COLUMNS($G:ED)/3,0))","v":0},null,{"$f":"INDIRECT(\"F\"&ROW($G$87)+ROUNDUP(COLUMNS($G:EF)/3,0))","v":0},{"$f":"INDIRECT(\"G\"&ROW($G$87)+ROUNDUP(COLUMNS($G:EG)/3,0))","v":0},null,{"$f":"INDIRECT(\"F\"&ROW($G$87)+ROUNDUP(COLUMNS($G:EI)/3,0))","v":0},{"$f":"INDIRECT(\"G\"&ROW($G$87)+ROUNDUP(COLUMNS($G:EJ)/3,0))","v":0},null,{"$f":"INDIRECT(\"F\"&ROW($G$87)+ROUNDUP(COLUMNS($G:EL)/3,0))","v":0},{"$f":"INDIRECT(\"G\"&ROW($G$87)+ROUNDUP(COLUMNS($G:EM)/3,0))","v":0},null,{"$f":"INDIRECT(\"F\"&ROW($G$87)+ROUNDUP(COLUMNS($G:EO)/3,0))","v":0},{"$f":"INDIRECT(\"G\"&ROW($G$87)+ROUNDUP(COLUMNS($G:EP)/3,0))","v":0},null,{"$f":"INDIRECT(\"F\"&ROW($G$87)+ROUNDUP(COLUMNS($G:ER)/3,0))","v":0},{"$f":"INDIRECT(\"G\"&ROW($G$87)+ROUNDUP(COLUMNS($G:ES)/3,0))","v":0},null,{"$f":"EU81+EV81","v":0}]
["เวลากลับถึงสำนักงานเช็คของเสีย",null,null,{"$f":"D139","v":"00:00:00"},null,"ผลต่าง",{"$f":"G82+H82+G80-G9","v":0},null,null,{"$f":"J82+K82+J80-J9","v":0},null,null,{"$f":"M82+N82+M80-M9","v":0},null,null,{"$f":"P82+Q82+P80-P9","v":0},null,null,{"$f":"S82+T82+S80-S9","v":0},null,null,{"$f":"V82+W82+V80-V9","v":0},null,null,{"$f":"Y82+Z82+Y80-Y9","v":0},null,null,{"$f":"AB82+AC82+AB80-AB9","v":0},null,null,{"$f":"AE82+AF82+AE80-AE9","v":0},null,null,{"$f":"AH82+AI82+AH80-AH9","v":0},null,null,{"$f":"AK82+AL82+AK80-AK9","v":0},null,null,{"$f":"AN82+AO82+AN80-AN9","v":0},null,null,{"$f":"AQ82+AR82+AQ80-AQ9","v":0},null,null,{"$f":"AT82+AU82+AT80-AT9","v":0},null,null,{"$f":"AW82+AX82+AW80-AW9","v":0},null,null,{"$f":"AZ82+BA82+AZ80-AZ9","v":0},null,null,{"$f":"BC82+BD82+BC80-BC9","v":0},null,null,{"$f":"BF82+BG82+BF80-BF9","v":0},null,null,{"$f":"BI82+BJ82+BI80-BI9","v":0},null,null,{"$f":"BL82+BM82+BL80-BL9","v":0},null,null,{"$f":"BO82+BP82+BO80-BO9","v":0},null,null,{"$f":"BR82+BS82+BR80-BR9","v":0},null,null,{"$f":"BU82+BV82+BU80-BU9","v":0},null,null,{"$f":"BX82+BY82+BX80-BX9","v":0},null,null,{"$f":"CA82+CB82+CA80-CA9","v":0},null,null,{"$f":"CD82+CE82+CD80-CD9","v":0},null,null,{"$f":"CG82+CH82+CG80-CG9","v":0},null,null,{"$f":"CJ82+CK82+CJ80-CJ9","v":0},null,null,{"$f":"CM82+CN82+CM80-CM9","v":0},null,null,{"$f":"CP82+CQ82+CP80-CP9","v":0},null,null,{"$f":"CS82+CT82+CS80-CS9","v":0},null,null,{"$f":"CV82+CW82+CV80-CV9","v":0},null,null,{"$f":"CY82+CZ82+CY80-CY9","v":0},null,null,{"$f":"DB82+DC82+DB80-DB9","v":0},null,null,{"$f":"DE82+DF82+DE80-DE9","v":0},null,null,{"$f":"DH82+DI82+DH80-DH9","v":0},null,null,{"$f":"DK82+DL82+DK80-DK9","v":0},null,null,{"$f":"DN82+DO82+DN80-DN9","v":0},null,null,{"$f":"DQ82+DR82+DQ80-DQ9","v":0},null,null,{"$f":"DT82+DU82+DT80-DT9","v":0},null,null,{"$f":"DW82+DX82+DW80-DW9","v":0},null,null,{"$f":"DZ82+EA82+DZ80-DZ9","v":0},null,null,{"$f":"EC82+ED82+EC80-EC9","v":0},null,null,{"$f":"EF82+EG82+EF80-EF9","v":0},null,null,{"$f":"EI82+EJ82+EI80-EI9","v":0},null,null,{"$f":"EL82+EM82+EL80-EL9","v":0},null,null,{"$f":"EO82+EP82+EO80-EO9","v":0},null,null,{"$f":"ER82+ES82+ER80-ER9","v":0}]
["เป็นเงิน",null,null,null,null,null,{"$f":"G8*G83","v":0},null,null,{"$f":"J8*J83","v":0},null,null,{"$f":"M8*M83","v":0},null,null,{"$f":"P8*P83","v":0},null,null,{"$f":"S8*S83","v":0},null,null,{"$f":"V8*V83","v":0},null,null,{"$f":"Y8*Y83","v":0},null,null,{"$f":"AB8*AB83","v":0},null,null,{"$f":"AE8*AE83","v":0},null,null,{"$f":"AH8*AH83","v":0},null,null,{"$f":"AK8*AK83","v":0},null,null,{"$f":"AN8*AN83","v":0},null,null,{"$f":"AQ8*AQ83","v":0},null,null,{"$f":"AT8*AT83","v":0},null,null,{"$f":"AW8*AW83","v":0},null,null,{"$f":"AZ8*AZ83","v":0},null,null,{"$f":"BC8*BC83","v":0},null,null,{"$f":"BF8*BF83","v":0},null,null,{"$f":"BI8*BI83","v":0},null,null,{"$f":"BL8*BL83","v":0},null,null,{"$f":"BO8*BO83","v":0},null,null,{"$f":"BR8*BR83","v":0},null,null,{"$f":"BU8*BU83","v":0},null,null,{"$f":"BX8*BX83","v":0},null,null,{"$f":"CA8*CA83","v":0},null,null,{"$f":"CD8*CD83","v":0},null,null,{"$f":"CG8*CG83","v":0},null,null,{"$f":"CJ8*CJ83","v":0},null,null,{"$f":"CM8*CM83","v":0},null,null,{"$f":"CP8*CP83","v":0},null,null,{"$f":"CS8*CS83","v":0},null,null,{"$f":"CV8*CV83","v":0},null,null,{"$f":"CY8*CY83","v":0},null,null,{"$f":"DB8*DB83","v":0},null,null,{"$f":"DE8*DE83","v":0},null,null,{"$f":"DH8*DH83","v":0},null,null,{"$f":"DK8*DK83","v":0},null,null,{"$f":"DN8*DN83","v":0},null,null,{"$f":"DQ8*DQ83","v":0},null,null,{"$f":"DT8*DT83","v":0},null,null,{"$f":"DW8*DW83","v":0},null,null,0,null,null,{"$f":"EC8*EC83","v":0},null,null,{"$f":"EF8*EF83","v":0},null,null,{"$f":"EI8*EI83","v":0},null,null,{"$f":"EL8*EL83","v":0},null,null,{"$f":"EO8*EO83","v":0},null,null,{"$f":"ER8*ER83","v":0},null,null,{"$f":"$AP$98","v":0}]
[null,null,null,"ผู้จัดทำ……………………………………………………………………",null,null,null,null,null,null,null,null,null,null,null,null,null,null,null,null,null,null,null,"ผู้ตรวจ(ผจก.)………………………………………………………………………………."]
[null,null,"ใบจ่ายสินค้า",null,null,null,null,null,null,null,null,null,null,null,null,null,null,{"$f":"IF(ISODD(COLUMN()),MAX($F$86:Q$86)+1,\"\")","v":""}]
["ราคา","ลำดับ","รายการ","ยกมา","เบิก","เหลือ","เสีย","โอนเข้า","โอนออก","ชำรุด","รวม",null,"ขาย",null,"ขาด/เกิน",null,"บาท",null,null,null,"ขายได้",null,"ควรเบิก",null,"หมายเหตุ",null,null,null,"เสีย PDA","เสียจริง","เหลือ PDA","ผลต่าง","เหลือลูกค้า","หมายเหตุ",null,null,null,null,"Price","Quantity","Baht","Deduct"]
[{"$f":"IF(B88=\"\",0,INDEX(Price_List,ROWS($88:88)))","v":20},{"$f":"IF($C88=\"\",\"\",COUNTA($C$88:$C88))","v":1},{"$f":"IF(INDEX(INDIRECT(\"Product_List\"),ROWS($88:88))=\"\",\"\",INDEX(INDIRECT(\"Product_List\"),ROWS($88:88)))","v":"01-ขนมปังหมูหยองน้ำสลัด"},{"$f":"ยอดยกมา","v":0},null,null,null,null,null,null,{"$f":"D88+E88+J88-I88+H88","v":0},null,{"$f":"INDIRECT(ADDRESS(ROW(A$80),ROW()-ROW(A$80)+(ROWS($88:88)-1)*2-1,4))","v":0},null,{"$f":"F88+G88+M88+J88-K88","v":0},null,{"$f":"O88*A88","v":0},null,null,null,{"$f":"D88+E88-F88-G88","v":0},null,{"$f":"U88*6%+U88","v":0},null,null,null,null,null,{"$f":"INDIRECT(ADDRESS(ROW(A$80),ROW()-ROW(A$80)+(ROWS($88:88)-1)*2,4))","v":0},{"$f":"$G88","v":0},null,{"$f":"$F88-$AE88","v":0},{"$f":"INDIRECT(ADDRESS(ROW(A$80),ROW()-ROW(A$80)+(ROWS($88:88)-1)*2+1,4))","v":0},null,null,null,null,null,10,{"$f":"SUMPRODUCT(($A$88:$A$135=$AM88)*(($F$88:$F$135)+($G$88:$G$135)+($M$88:$M$135)+($J$88:$J$135)-($K$88:$K$135)))","v":0},{"$f":"AM88*AN88","v":0},{"$f":"IF(AO88<0,AO88,0)","v":0}]
[{"$f":"IF(B89=\"\",0,INDEX(Price_List,ROWS($88:89)))","v":20},{"$f":"IF($C89=\"\",\"\",COUNTA($C$88:$C89))","v":2},{"$f":"IF(INDEX(INDIRECT(\"Product_List\"),ROWS($88:89))=\"\",\"\",INDEX(INDIRECT(\"Product_List\"),ROWS($88:89)))","v":"02-ขนมปังหมูหยองน้ำพริกเผา"},{"$f":"ยอดยกมา","v":0},null,null,null,null,null,null,{"$f":"D89+E89+J89-I89+H89","v":0},null,{"$f":"INDIRECT(ADDRESS(ROW(A$80),ROW()-ROW(A$80)+(ROWS($88:89)-1)*2-1,4))","v":0},null,{"$f":"F89+G89+M89+J89-K89","v":0},null,{"$f":"O89*A89","v":0},null,null,null,{"$f":"D89+E89-F89-G89","v":0},null,{"$f":"U89*6%+U89","v":0},null,null,null,null,null,{"$f":"INDIRECT(ADDRESS(ROW(A$80),ROW()-ROW(A$80)+(ROWS($88:89)-1)*2,4))","v":0},{"$f":"$G89","v":0},null,{"$f":"$F89-$AE89","v":0},{"$f":"INDIRECT(ADDRESS(ROW(A$80),ROW()-ROW(A$80)+(ROWS($88:89)-1)*2+1,4))","v":0},null,null,null,null,null,12,0,{"$f":"AM89*AN89","v":0},{"$f":"IF(AO89<0,AO89,0)","v":0}]
[{"$f":"IF(B90=\"\",0,INDEX(Price_List,ROWS($88:90)))","v":20},{"$f":"IF($C90=\"\",\"\",COUNTA($C$88:$C90))","v":3},{"$f":"IF(INDEX(INDIRECT(\"Product_List\"),ROWS($88:90))=\"\",\"\",INDEX(INDIRECT(\"Product_List\"),ROWS($88:90)))","v":"03-ขนมปังไก่หยองน้ำสลัด"},{"$f":"ยอดยกมา","v":0},null,null,null,null,null,null,0,null,{"$f":"INDIRECT(ADDRESS(ROW(A$80),ROW()-ROW(A$80)+(ROWS($88:90)-1)*2-1,4))","v":0},null,0,null,0,null,null,null,0,null,0,null,null,null,null,null,{"$f":"INDIRECT(ADDRESS(ROW(A$80),ROW()-ROW(A$80)+(ROWS($88:90)-1)*2,4))","v":0},0,null,0,{"$f":"INDIRECT(ADDRESS(ROW(A$80),ROW()-ROW(A$80)+(ROWS($88:90)-1)*2+1,4))","v":0},null,null,null,null,null,13,0,0,0]
[{"$f":"IF(B91=\"\",0,INDEX(Price_List,ROWS($88:91)))","v":15},{"$f":"IF($C91=\"\",\"\",COUNTA($C$88:$C91))","v":4},{"$f":"IF(INDEX(INDIRECT(\"Product_List\"),ROWS($88:91))=\"\",\"\",INDEX(INDIRECT(\"Product_List\"),ROWS($88:91)))","v":"04-ขนมปังไส้ครีมสลัด"},{"$f":"ยอดยกมา","v":0},null,null,null,null,null,null,0,null,{"$f":"INDIRECT(ADDRESS(ROW(A$80),ROW()-ROW(A$80)+(ROWS($88:91)-1)*2-1,4))","v":0},null,{"$f":"F91+G91+M91+J91-K91","v":0},null,0,null,null,null,0,null,0,null,null,null,null,null,{"$f":"INDIRECT(ADDRESS(ROW(A$80),ROW()-ROW(A$80)+(ROWS($88:91)-1)*2,4))","v":0},0,null,0,{"$f":"INDIRECT(ADDRESS(ROW(A$80),ROW()-ROW(A$80)+(ROWS($88:91)-1)*2+1,4))","v":0},null,null,null,null,null,15,0,0,0]
[{"$f":"IF(B92=\"\",0,INDEX(Price_List,ROWS($88:92)))","v":15},{"$f":"IF($C92=\"\",\"\",COUNTA($C$88:$C92))","v":5},{"$f":"IF(INDEX(INDIRECT(\"Product_List\"),ROWS($88:92))=\"\",\"\",INDEX(INDIRECT(\"Product_List\"),ROWS($88:92)))","v":"05-ขนมปังเนยสด"},{"$f":"ยอดยกมา","v":0},null,null,null,null,null,null,0,null,{"$f":"INDIRECT(ADDRESS(ROW(A$80),ROW()-ROW(A$80)+(ROWS($88:92)-1)*2-1,4))","v":0},null,0,null,0,null,null,null,0,null,0,null,null,null,null,null,{"$f":"INDIRECT(ADDRESS(ROW(A$80),ROW()-ROW(A$80)+(ROWS($88:92)-1)*2,4))","v":0},0,null,0,{"$f":"INDIRECT(ADDRESS(ROW(A$80),ROW()-ROW(A$80)+(ROWS($88:92)-1)*2+1,4))","v":0},null,null,null,null,null,16,0,0,0]
[{"$f":"IF(B93=\"\",0,INDEX(Price_List,ROWS($88:93)))","v":10},{"$f":"IF($C93=\"\",\"\",COUNTA($C$88:$C93))","v":6},{"$f":"IF(INDEX(INDIRECT(\"Product_List\"),ROWS($88:93))=\"\",\"\",INDEX(INDIRECT(\"Product_List\"),ROWS($88:93)))","v":"06-ขนมปังไส้สังขยาเล็ก"},{"$f":"ยอดยกมา","v":0},null,null,null,null,null,null,0,null,{"$f":"INDIRECT(ADDRESS(ROW(A$80),ROW()-ROW(A$80)+(ROWS($88:93)-1)*2-1,4))","v":0},null,0,null,0,null,null,null,0,null,0,null,null,null,null,null,{"$f":"INDIRECT(ADDRESS(ROW(A$80),ROW()-ROW(A$80)+(ROWS($88:93)-1)*2,4))","v":0},0,null,0,{"$f":"INDIRECT(ADDRESS(ROW(A$80),ROW()-ROW(A$80)+(ROWS($88:93)-1)*2+1,4))","v":0},null,null,null,null,null,18,0,0,0]
[{"$f":"IF(B94=\"\",0,INDEX(Price_List,ROWS($88:94)))","v":10},{"$f":"IF($C94=\"\",\"\",COUNTA($C$88:$C94))","v":7},{"$f":"IF(INDEX(INDIRECT(\"Product_List\"),ROWS($88:94))=\"\",\"\",INDEX(INDIRECT(\"Product_List\"),ROWS($88:94)))","v":"07-ขนมปังไส้เผือก"},{"$f":"ยอดยกมา","v":0},null,null,null,null,null,null,0,null,{"$f":"INDIRECT(ADDRESS(ROW(A$80),ROW()-ROW(A$80)+(ROWS($88:94)-1)*2-1,4))","v":0},null,0,null,0,null,null,null,0,null,0,null,null,null,null,null,{"$f":"INDIRECT(ADDRESS(ROW(A$80),ROW()-ROW(A$80)+(ROWS($88:94)-1)*2,4))","v":0},0,null,0,{"$f":"INDIRECT(ADDRESS(ROW(A$80),ROW()-ROW(A$80)+(ROWS($88:94)-1)*2+1,4))","v":0},null,null,null,null,null,20,0,0,0]
[{"$f":"IF(B95=\"\",0,INDEX(Price_List,ROWS($88:95)))","v":10},{"$f":"IF($C95=\"\",\"\",COUNTA($C$88:$C95))","v":8},{"$f":"IF(INDEX(INDIRECT(\"Product_List\"),ROWS($88:95))=\"\",\"\",INDEX(INDIRECT(\"Product_List\"),ROWS($88:95)))","v":"08-ขนมปังไส้ถั่วแดง"},{"$f":"ยอดยกมา","v":0},null,null,null,null,null,null,0,null,{"$f":"INDIRECT(ADDRESS(ROW(A$80),ROW()-ROW(A$80)+(ROWS($88:95)-1)*2-1,4))","v":0},null,0,null,0,null,null,null,0,null,0,null,null,null,null,null,{"$f":"INDIRECT(ADDRESS(ROW(A$80),ROW()-ROW(A$80)+(ROWS($88:95)-1)*2,4))","v":0},0,null,0,{"$f":"INDIRECT(ADDRESS(ROW(A$80),ROW()-ROW(A$80)+(ROWS($88:95)-1)*2+1,4))","v":0},null,null,null,null,null,22,0,0,0]
[{"$f":"IF(B96=\"\",0,INDEX(Price_List,ROWS($88:96)))","v":10},{"$f":"IF($C96=\"\",\"\",COUNTA($C$88:$C96))","v":9},{"$f":"IF(INDEX(INDIRECT(\"Product_List\"),ROWS($88:96))=\"\",\"\",INDEX(INDIRECT(\"Product_List\"),ROWS($88:96)))","v":"09-ขนมปังไส้ถั่วดำ"},{"$f":"ยอดยกมา","v":0},null,null,null,null,null,null,0,null,{"$f":"INDIRECT(ADDRESS(ROW(A$80),ROW()-ROW(A$80)+(ROWS($88:96)-1)*2-1,4))","v":0},null,0,null,0,null,null,null,0,null,0,null,null,null,null,null,{"$f":"INDIRECT(ADDRESS(ROW(A$80),ROW()-ROW(A$80)+(ROWS($88:96)-1)*2,4))","v":0},0,null,0,{"$f":"INDIRECT(ADDRESS(ROW(A$80),ROW()-ROW(A$80)+(ROWS($88:96)-1)*2+1,4))","v":0},null,null,null,null,null,25,0,0,0]
[{"$f":"IF(B97=\"\",0,INDEX(Price_List,ROWS($88:97)))","v":10},{"$f":"IF($C97=\"\",\"\",COUNTA($C$88:$C97))","v":10},{"$f":"IF(INDEX(INDIRECT(\"Product_List\"),ROWS($88:97))=\"\",\"\",INDEX(INDIRECT(\"Product_List\"),ROWS($88:97)))","v":"10-ขนมปังไส้มันม่วง"},{"$f":"ยอดยกมา","v":0},null,null,null,null,null,null,0,null,{"$f":"INDIRECT(ADDRESS(ROW(A$80),ROW()-ROW(A$80)+(ROWS($88:97)-1)*2-1,4))","v":0},null,0,null,0,null,null,null,0,null,0,null,null,null,null,null,{"$f":"INDIRECT(ADDRESS(ROW(A$80),ROW()-ROW(A$80)+(ROWS($88:97)-1)*2,4))","v":0},0,null,0,{"$f":"INDIRECT(ADDRESS(ROW(A$80),ROW()-ROW(A$80)+(ROWS($88:97)-1)*2+1,4))","v":0},null,null,null,null,null,42,0,0,0]
[{"$f":"IF(B98=\"\",0,INDEX(Price_List,ROWS($88:98)))","v":15},{"$f":"IF($C98=\"\",\"\",COUNTA($C$88:$C98))","v":11},{"$f":"IF(INDEX(INDIRECT(\"Product_List\"),ROWS($88:98))=\"\",\"\",INDEX(INDIRECT(\"Product_List\"),ROWS($88:98)))","v":"11-เค้กกล้วยหอม"},{"$f":"ยอดยกมา","v":0},null,null,null,null,null,null,0,null,{"$f":"INDIRECT(ADDRESS(ROW(A$80),ROW()-ROW(A$80)+(ROWS($88:98)-1)*2-1,4))","v":0},null,0,null,0,null,null,null,0,null,0,null,null,null,null,null,{"$f":"INDIRECT(ADDRESS(ROW(A$80),ROW()-ROW(A$80)+(ROWS($88:98)-1)*2,4))","v":0},0,null,0,{"$f":"INDIRECT(ADDRESS(ROW(A$80),ROW()-ROW(A$80)+(ROWS($88:98)-1)*2+1,4))","v":0},null,null,null,null,null,"Total Deduct",null,null,{"$f":"SUM($AP$88:$AP$97)","v":0}]
[{"$f":"IF(B99=\"\",0,INDEX(Price_List,ROWS($88:99)))","v":15},{"$f":"IF($C99=\"\",\"\",COUNTA($C$88:$C99))","v":12},{"$f":"IF(INDEX(INDIRECT(\"Product_List\"),ROWS($88:99))=\"\",\"\",INDEX(INDIRECT(\"Product_List\"),ROWS($88:99)))","v":"12-เค้กบัตเตอร์"},{"$f":"ยอดยกมา","v":0},null,null,null,null,null,null,0,null,{"$f":"INDIRECT(ADDRESS(ROW(A$80),ROW()-ROW(A$80)+(ROWS($88:99)-1)*2-1,4))","v":0},null,0,null,0,null,null,null,0,null,0,null,null,null,null,null,{"$f":"INDIRECT(ADDRESS(ROW(A$80),ROW()-ROW(A$80)+(ROWS($88:99)-1)*2,4))","v":0},0,null,0,{"$f":"INDIRECT(ADDRESS(ROW(A$80),ROW()-ROW(A$80)+(ROWS($88:99)-1)*2+1,4))","v":0}]
[{"$f":"IF(B100=\"\",0,INDEX(Price_List,ROWS($88:100)))","v":15},{"$f":"IF($C100=\"\",\"\",COUNTA($C$88:$C100))","v":13},{"$f":"IF(INDEX(INDIRECT(\"Product_List\"),ROWS($88:100))=\"\",\"\",INDEX(INDIRECT(\"Product_List\"),ROWS($88:100)))","v":"13-ขนมปังโรลถั่วแดง"},{"$f":"ยอดยกมา","v":0},null,null,null,null,null,null,0,null,{"$f":"INDIRECT(ADDRESS(ROW(A$80),ROW()-ROW(A$80)+(ROWS($88:100)-1)*2-1,4))","v":0},null,0,null,0,null,null,null,0,null,0,null,null,null,null,null,{"$f":"INDIRECT(ADDRESS(ROW(A$80),ROW()-ROW(A$80)+(ROWS($88:100)-1)*2,4))","v":0},0,null,0,{"$f":"INDIRECT(ADDRESS(ROW(A$80),ROW()-ROW(A$80)+(ROWS($88:100)-1)*2+1,4))","v":0}]
[{"$f":"IF(B101=\"\",0,INDEX(Price_List,ROWS($88:101)))","v":15},{"$f":"IF($C101=\"\",\"\",COUNTA($C$88:$C101))","v":14},{"$f":"IF(INDEX(INDIRECT(\"Product_List\"),ROWS($88:101))=\"\",\"\",INDEX(INDIRECT(\"Product_List\"),ROWS($88:101)))","v":"14-ขนมปังไส้สังขยาใหญ่"},{"$f":"ยอดยกมา","v":0},null,null,null,null,null,null,0,null,{"$f":"INDIRECT(ADDRESS(ROW(A$80),ROW()-ROW(A$80)+(ROWS($88:101)-1)*2-1,4))","v":0},null,0,null,0,null,null,null,0,null,0,null,null,null,null,null,{"$f":"INDIRECT(ADDRESS(ROW(A$80),ROW()-ROW(A$80)+(ROWS($88:101)-1)*2,4))","v":0},0,null,0,{"$f":"INDIRECT(ADDRESS(ROW(A$80),ROW()-ROW(A$80)+(ROWS($88:101)-1)*2+1,4))","v":0}]
[{"$f":"IF(B102=\"\",0,INDEX(Price_List,ROWS($88:102)))","v":42},{"$f":"IF($C102=\"\",\"\",COUNTA($C$88:$C102))","v":15},{"$f":"IF(INDEX(INDIRECT(\"Product_List\"),ROWS($88:102))=\"\",\"\",INDEX(INDIRECT(\"Product_List\"),ROWS($88:102)))","v":"15-ขนมปังชนิดแผ่น(480กรัม)"},{"$f":"ยอดยกมา","v":0},null,null,null,null,null,null,0,null,{"$f":"INDIRECT(ADDRESS(ROW(A$80),ROW()-ROW(A$80)+(ROWS($88:102)-1)*2-1,4))","v":0},null,0,null,0,null,null,null,0,null,0,null,null,null,null,null,{"$f":"INDIRECT(ADDRESS(ROW(A$80),ROW()-ROW(A$80)+(ROWS($88:102)-1)*2,4))","v":0},0,null,0,{"$f":"INDIRECT(ADDRESS(ROW(A$80),ROW()-ROW(A$80)+(ROWS($88:102)-1)*2+1,4))","v":0}]
[{"$f":"IF(B103=\"\",0,INDEX(Price_List,ROWS($88:103)))","v":12},{"$f":"IF($C103=\"\",\"\",COUNTA($C$88:$C103))","v":16},{"$f":"IF(INDEX(INDIRECT(\"Product_List\"),ROWS($88:103))=\"\",\"\",INDEX(INDIRECT(\"Product_List\"),ROWS($88:103)))","v":"16-โมจิไส้ถั่ว"},{"$f":"ยอดยกมา","v":0},null,null,null,null,null,null,0,null,{"$f":"INDIRECT(ADDRESS(ROW(A$80),ROW()-ROW(A$80)+(ROWS($88:103)-1)*2-1,4))","v":0},null,0,null,0,null,null,null,0,null,0,null,null,null,null,null,{"$f":"INDIRECT(ADDRESS(ROW(A$80),ROW()-ROW(A$80)+(ROWS($88:103)-1)*2,4))","v":0},0,null,0,{"$f":"INDIRECT(ADDRESS(ROW(A$80),ROW()-ROW(A$80)+(ROWS($88:103)-1)*2+1,4))","v":0}]
[{"$f":"IF(B104=\"\",0,INDEX(Price_List,ROWS($88:104)))","v":12},{"$f":"IF($C104=\"\",\"\",COUNTA($C$88:$C104))","v":17},{"$f":"IF(INDEX(INDIRECT(\"Product_List\"),ROWS($88:104))=\"\",\"\",INDEX(INDIRECT(\"Product_List\"),ROWS($88:104)))","v":"17-โมจิไส้เผือก"},{"$f":"ยอดยกมา","v":0},null,null,null,null,null,null,0,null,{"$f":"INDIRECT(ADDRESS(ROW(A$80),ROW()-ROW(A$80)+(ROWS($88:104)-1)*2-1,4))","v":0},null,0,null,0,null,null,null,0,null,0,null,null,null,null,null,{"$f":"INDIRECT(ADDRESS(ROW(A$80),ROW()-ROW(A$80)+(ROWS($88:104)-1)*2,4))","v":0},0,null,0,{"$f":"INDIRECT(ADDRESS(ROW(A$80),ROW()-ROW(A$80)+(ROWS($88:104)-1)*2+1,4))","v":0}]
[{"$f":"IF(B105=\"\",0,INDEX(Price_List,ROWS($88:105)))","v":15},{"$f":"IF($C105=\"\",\"\",COUNTA($C$88:$C105))","v":18},{"$f":"IF(INDEX(INDIRECT(\"Product_List\"),ROWS($88:105))=\"\",\"\",INDEX(INDIRECT(\"Product_List\"),ROWS($88:105)))","v":"18-โมจิไส้ถั่วไข่เค็ม"},{"$f":"ยอดยกมา","v":0},null,null,null,null,null,null,0,null,{"$f":"INDIRECT(ADDRESS(ROW(A$80),ROW()-ROW(A$80)+(ROWS($88:105)-1)*2-1,4))","v":0},null,0,null,0,null,null,null,0,null,0,null,null,null,null,null,{"$f":"INDIRECT(ADDRESS(ROW(A$80),ROW()-ROW(A$80)+(ROWS($88:105)-1)*2,4))","v":0},0,null,0,{"$f":"INDIRECT(ADDRESS(ROW(A$80),ROW()-ROW(A$80)+(ROWS($88:105)-1)*2+1,4))","v":0}]
[{"$f":"IF(B106=\"\",0,INDEX(Price_List,ROWS($88:106)))","v":20},{"$f":"IF($C106=\"\",\"\",COUNTA($C$88:$C106))","v":19},{"$f":"IF(INDEX(INDIRECT(\"Product_List\"),ROWS($88:106))=\"\",\"\",INDEX(INDIRECT(\"Product_List\"),ROWS($88:106)))","v":"19-ขนมปังพิซซ่า"},{"$f":"ยอดยกมา","v":0},null,null,null,null,null,null,0,null,{"$f":"INDIRECT(ADDRESS(ROW(A$80),ROW()-ROW(A$80)+(ROWS($88:106)-1)*2-1,4))","v":0},null,0,null,0,null,null,null,0,null,0,null,null,null,null,null,{"$f":"INDIRECT(ADDRESS(ROW(A$80),ROW()-ROW(A$80)+(ROWS($88:106)-1)*2,4))","v":0},0,null,0,{"$f":"INDIRECT(ADDRESS(ROW(A$80),ROW()-ROW(A$80)+(ROWS($88:106)-1)*2+1,4))","v":0}]
[{"$f":"IF(B107=\"\",0,INDEX(Price_List,ROWS($88:107)))","v":20},{"$f":"IF($C107=\"\",\"\",COUNTA($C$88:$C107))","v":20},{"$f":"IF(INDEX(INDIRECT(\"Product_List\"),ROWS($88:107))=\"\",\"\",INDEX(INDIRECT(\"Product_List\"),ROWS($88:107)))","v":"20-ขนมปังพิซซ่าปูอัดแฮม"},{"$f":"ยอดยกมา","v":0},null,null,null,null,null,null,0,null,{"$f":"INDIRECT(ADDRESS(ROW(A$80),ROW()-ROW(A$80)+(ROWS($88:107)-1)*2-1,4))","v":0},null,0,null,0,null,null,null,0,null,0,null,null,null,null,null,{"$f":"INDIRECT(ADDRESS(ROW(A$80),ROW()-ROW(A$80)+(ROWS($88:107)-1)*2,4))","v":0},0,null,0,{"$f":"INDIRECT(ADDRESS(ROW(A$80),ROW()-ROW(A$80)+(ROWS($88:107)-1)*2+1,4))","v":0}]
[{"$f":"IF(B108=\"\",0,INDEX(Price_List,ROWS($88:108)))","v":20},{"$f":"IF($C108=\"\",\"\",COUNTA($C$88:$C108))","v":21},{"$f":"IF(INDEX(INDIRECT(\"Product_List\"),ROWS($88:108))=\"\",\"\",INDEX(INDIRECT(\"Product_List\"),ROWS($88:108)))","v":"21-ขนมปังไส้กรอก"},{"$f":"ยอดยกมา","v":0},null,null,null,null,null,null,0,null,{"$f":"INDIRECT(ADDRESS(ROW(A$80),ROW()-ROW(A$80)+(ROWS($88:108)-1)*2-1,4))","v":0},null,0,null,0,null,null,null,0,null,0,null,null,null,null,null,{"$f":"INDIRECT(ADDRESS(ROW(A$80),ROW()-ROW(A$80)+(ROWS($88:108)-1)*2,4))","v":0},0,null,0,{"$f":"INDIRECT(ADDRESS(ROW(A$80),ROW()-ROW(A$80)+(ROWS($88:108)-1)*2+1,4))","v":0}]
[{"$f":"IF(B109=\"\",0,INDEX(Price_List,ROWS($88:109)))","v":15},{"$f":"IF($C109=\"\",\"\",COUNTA($C$88:$C109))","v":22},{"$f":"IF(INDEX(INDIRECT(\"Product_List\"),ROWS($88:109))=\"\",\"\",INDEX(INDIRECT(\"Product_List\"),ROWS($88:109)))","v":"22-ขนมก้านบัว"},{"$f":"ยอดยกมา","v":0},null,null,null,null,null,null,0,null,{"$f":"INDIRECT(ADDRESS(ROW(A$80),ROW()-ROW(A$80)+(ROWS($88:109)-1)*2-1,4))","v":0},null,0,null,0,null,null,null,0,null,0,null,null,null,null,null,{"$f":"INDIRECT(ADDRESS(ROW(A$80),ROW()-ROW(A$80)+(ROWS($88:109)-1)*2,4))","v":0},0,null,0,{"$f":"INDIRECT(ADDRESS(ROW(A$80),ROW()-ROW(A$80)+(ROWS($88:109)-1)*2+1,4))","v":0}]
[{"$f":"IF(B110=\"\",0,INDEX(Price_List,ROWS($88:110)))","v":20},{"$f":"IF($C110=\"\",\"\",COUNTA($C$88:$C110))","v":23},{"$f":"IF(INDEX(INDIRECT(\"Product_List\"),ROWS($88:110))=\"\",\"\",INDEX(INDIRECT(\"Product_List\"),ROWS($88:110)))","v":"23-พายสับปะรด"},{"$f":"ยอดยกมา","v":0},null,null,null,null,null,null,0,null,{"$f":"INDIRECT(ADDRESS(ROW(A$80),ROW()-ROW(A$80)+(ROWS($88:110)-1)*2-1,4))","v":0},null,0,null,0,null,null,null,0,null,0,null,null,null,null,null,{"$f":"INDIRECT(ADDRESS(ROW(A$80),ROW()-ROW(A$80)+(ROWS($88:110)-1)*2,4))","v":0},0,null,0,{"$f":"INDIRECT(ADDRESS(ROW(A$80),ROW()-ROW(A$80)+(ROWS($88:110)-1)*2+1,4))","v":0}]
[{"$f":"IF(B111=\"\",0,INDEX(Price_List,ROWS($88:111)))","v":20},{"$f":"IF($C111=\"\",\"\",COUNTA($C$88:$C111))","v":24},{"$f":"IF(INDEX(INDIRECT(\"Product_List\"),ROWS($88:111))=\"\",\"\",INDEX(INDIRECT(\"Product_List\"),ROWS($88:111)))","v":"24-พายไส้มะพร้าว"},{"$f":"ยอดยกมา","v":0},null,null,null,null,null,null,0,null,{"$f":"INDIRECT(ADDRESS(ROW(A$80),ROW()-ROW(A$80)+(ROWS($88:111)-1)*2-1,4))","v":0},null,0,null,0,null,null,null,0,null,0,null,null,null,null,null,{"$f":"INDIRECT(ADDRESS(ROW(A$80),ROW()-ROW(A$80)+(ROWS($88:111)-1)*2,4))","v":0},0,null,0,{"$f":"INDIRECT(ADDRESS(ROW(A$80),ROW()-ROW(A$80)+(ROWS($88:111)-1)*2+1,4))","v":0}]
[{"$f":"IF(B112=\"\",0,INDEX(Price_List,ROWS($88:112)))","v":15},{"$f":"IF($C112=\"\",\"\",COUNTA($C$88:$C112))","v":25},{"$f":"IF(INDEX(INDIRECT(\"Product_List\"),ROWS($88:112))=\"\",\"\",INDEX(INDIRECT(\"Product_List\"),ROWS($88:112)))","v":"25-ขนมปังโรลมันเทศ"},{"$f":"ยอดยกมา","v":0},null,null,null,null,null,null,0,null,{"$f":"INDIRECT(ADDRESS(ROW(A$80),ROW()-ROW(A$80)+(ROWS($88:112)-1)*2-1,4))","v":0},null,0,null,0,null,null,null,0,null,0,null,null,null,null,null,{"$f":"INDIRECT(ADDRESS(ROW(A$80),ROW()-ROW(A$80)+(ROWS($88:112)-1)*2,4))","v":0},0,null,0,{"$f":"INDIRECT(ADDRESS(ROW(A$80),ROW()-ROW(A$80)+(ROWS($88:112)-1)*2+1,4))","v":0}]
[{"$f":"IF(B113=\"\",0,INDEX(Price_List,ROWS($88:113)))","v":15},{"$f":"IF($C113=\"\",\"\",COUNTA($C$88:$C113))","v":26},{"$f":"IF(INDEX(INDIRECT(\"Product_List\"),ROWS($88:113))=\"\",\"\",INDEX(INDIRECT(\"Product_List\"),ROWS($88:113)))","v":"26-ขนมปังไส้ครีมสลัดน้ำพริกเผา"},{"$f":"ยอดยกมา","v":0},null,null,null,null,null,null,0,null,{"$f":"INDIRECT(ADDRESS(ROW(A$80),ROW()-ROW(A$80)+(ROWS($88:113)-1)*2-1,4))","v":0},null,0,null,0,null,null,null,0,null,0,null,null,null,null,null,{"$f":"INDIRECT(ADDRESS(ROW(A$80),ROW()-ROW(A$80)+(ROWS($88:113)-1)*2,4))","v":0},0,null,0,{"$f":"INDIRECT(ADDRESS(ROW(A$80),ROW()-ROW(A$80)+(ROWS($88:113)-1)*2+1,4))","v":0}]
[{"$f":"IF(B114=\"\",0,INDEX(Price_List,ROWS($88:114)))","v":20},{"$f":"IF($C114=\"\",\"\",COUNTA($C$88:$C114))","v":27},{"$f":"IF(INDEX(INDIRECT(\"Product_List\"),ROWS($88:114))=\"\",\"\",INDEX(INDIRECT(\"Product_List\"),ROWS($88:114)))","v":"27-ขนมปังไส้สังขยาไข่"},{"$f":"ยอดยกมา","v":0},null,null,null,null,null,null,0,null,{"$f":"INDIRECT(ADDRESS(ROW(A$80),ROW()-ROW(A$80)+(ROWS($88:114)-1)*2-1,4))","v":0},null,0,null,0,null,null,null,0,null,0,null,null,null,null,null,{"$f":"INDIRECT(ADDRESS(ROW(A$80),ROW()-ROW(A$80)+(ROWS($88:114)-1)*2,4))","v":0},0,null,0,{"$f":"INDIRECT(ADDRESS(ROW(A$80),ROW()-ROW(A$80)+(ROWS($88:114)-1)*2+1,4))","v":0}]
[{"$f":"IF(B115=\"\",0,INDEX(Price_List,ROWS($88:115)))","v":20},{"$f":"IF($C115=\"\",\"\",COUNTA($C$88:$C115))","v":28},{"$f":"IF(INDEX(INDIRECT(\"Product_List\"),ROWS($88:115))=\"\",\"\",INDEX(INDIRECT(\"Product_List\"),ROWS($88:115)))","v":"28-ขนมปังไส้สังขยามะพร้าว"},{"$f":"ยอดยกมา","v":0},null,null,null,null,null,null,0,null,{"$f":"INDIRECT(ADDRESS(ROW(A$80),ROW()-ROW(A$80)+(ROWS($88:115)-1)*2-1,4))","v":0},null,0,null,0,null,null,null,0,null,0,null,null,null,null,null,{"$f":"INDIRECT(ADDRESS(ROW(A$80),ROW()-ROW(A$80)+(ROWS($88:115)-1)*2,4))","v":0},0,null,0,{"$f":"INDIRECT(ADDRESS(ROW(A$80),ROW()-ROW(A$80)+(ROWS($88:115)-1)*2+1,4))","v":0}]
[{"$f":"IF(B116=\"\",0,INDEX(Price_List,ROWS($88:116)))","v":10},{"$f":"IF($C116=\"\",\"\",COUNTA($C$88:$C116))","v":29},{"$f":"IF(INDEX(INDIRECT(\"Product_List\"),ROWS($88:116))=\"\",\"\",INDEX(INDIRECT(\"Product_List\"),ROWS($88:116)))","v":"29-ขนมปังไส้ครีมชาไทย"},{"$f":"ยอดยกมา","v":0},null,null,null,null,null,null,0,null,{"$f":"INDIRECT(ADDRESS(ROW(A$80),ROW()-ROW(A$80)+(ROWS($88:116)-1)*2-1,4))","v":0},null,0,null,0,null,null,null,0,null,0,null,null,null,null,null,{"$f":"INDIRECT(ADDRESS(ROW(A$80),ROW()-ROW(A$80)+(ROWS($88:116)-1)*2,4))","v":0},0,null,0,{"$f":"INDIRECT(ADDRESS(ROW(A$80),ROW()-ROW(A$80)+(ROWS($88:116)-1)*2+1,4))","v":0}]
[{"$f":"IF(B117=\"\",0,INDEX(Price_List,ROWS($88:117)))","v":15},{"$f":"IF($C117=\"\",\"\",COUNTA($C$88:$C117))","v":30},{"$f":"IF(INDEX(INDIRECT(\"Product_List\"),ROWS($88:117))=\"\",\"\",INDEX(INDIRECT(\"Product_List\"),ROWS($88:117)))","v":"30-ขนมปังโรลมันม่วง"},{"$f":"ยอดยกมา","v":0},null,null,null,null,null,null,0,null,{"$f":"INDIRECT(ADDRESS(ROW(A$80),ROW()-ROW(A$80)+(ROWS($88:117)-1)*2-1,4))","v":0},null,0,null,0,null,null,null,0,null,0,null,null,null,null,null,{"$f":"INDIRECT(ADDRESS(ROW(A$80),ROW()-ROW(A$80)+(ROWS($88:117)-1)*2,4))","v":0},0,null,0,{"$f":"INDIRECT(ADDRESS(ROW(A$80),ROW()-ROW(A$80)+(ROWS($88:117)-1)*2+1,4))","v":0}]
[{"$f":"IF(B118=\"\",0,INDEX(Price_List,ROWS($88:118)))","v":15},{"$f":"IF($C118=\"\",\"\",COUNTA($C$88:$C118))","v":31},{"$f":"IF(INDEX(INDIRECT(\"Product_List\"),ROWS($88:118))=\"\",\"\",INDEX(INDIRECT(\"Product_List\"),ROWS($88:118)))","v":"31-ขนมปังโรลช็อกโกแลต"},{"$f":"ยอดยกมา","v":0},null,null,null,null,null,null,0,null,{"$f":"INDIRECT(ADDRESS(ROW(A$80),ROW()-ROW(A$80)+(ROWS($88:118)-1)*2-1,4))","v":0},null,0,null,0,null,null,null,0,null,0,null,null,null,null,null,{"$f":"INDIRECT(ADDRESS(ROW(A$80),ROW()-ROW(A$80)+(ROWS($88:118)-1)*2,4))","v":0},0,null,0,{"$f":"INDIRECT(ADDRESS(ROW(A$80),ROW()-ROW(A$80)+(ROWS($88:118)-1)*2+1,4))","v":0}]
[{"$f":"IF(B119=\"\",0,INDEX(Price_List,ROWS($88:119)))","v":16},{"$f":"IF($C119=\"\",\"\",COUNTA($C$88:$C119))","v":32},{"$f":"IF(INDEX(INDIRECT(\"Product_List\"),ROWS($88:119))=\"\",\"\",INDEX(INDIRECT(\"Product_List\"),ROWS($88:119)))","v":"32-ขนมปังชนิดแผ่น(155กรัม)"},{"$f":"ยอดยกมา","v":0},null,null,null,null,null,null,0,null,{"$f":"INDIRECT(ADDRESS(ROW(A$80),ROW()-ROW(A$80)+(ROWS($88:119)-1)*2-1,4))","v":0},null,0,null,0,null,null,null,0,null,0,null,null,null,null,null,{"$f":"INDIRECT(ADDRESS(ROW(A$80),ROW()-ROW(A$80)+(ROWS($88:119)-1)*2,4))","v":0},0,null,0,{"$f":"INDIRECT(ADDRESS(ROW(A$80),ROW()-ROW(A$80)+(ROWS($88:119)-1)*2+1,4))","v":0}]
[{"$f":"IF(B120=\"\",0,INDEX(Price_List,ROWS($88:120)))","v":15},{"$f":"IF($C120=\"\",\"\",COUNTA($C$88:$C120))","v":33},{"$f":"IF(INDEX(INDIRECT(\"Product_List\"),ROWS($88:120))=\"\",\"\",INDEX(INDIRECT(\"Product_List\"),ROWS($88:120)))","v":"33-ขนมปังโรลเผือก"},{"$f":"ยอดยกมา","v":0},null,null,null,null,null,null,0,null,{"$f":"INDIRECT(ADDRESS(ROW(A$80),ROW()-ROW(A$80)+(ROWS($88:120)-1)*2-1,4))","v":0},null,0,null,0,null,null,null,0,null,0,null,null,null,null,null,{"$f":"INDIRECT(ADDRESS(ROW(A$80),ROW()-ROW(A$80)+(ROWS($88:120)-1)*2,4))","v":0},0,null,0,{"$f":"INDIRECT(ADDRESS(ROW(A$80),ROW()-ROW(A$80)+(ROWS($88:120)-1)*2+1,4))","v":0}]
[{"$f":"IF(B121=\"\",0,INDEX(Price_List,ROWS($88:121)))","v":15},{"$f":"IF($C121=\"\",\"\",COUNTA($C$88:$C121))","v":34},{"$f":"IF(INDEX(INDIRECT(\"Product_List\"),ROWS($88:121))=\"\",\"\",INDEX(INDIRECT(\"Product_List\"),ROWS($88:121)))","v":"34-ขนมปังไก่หยองน้ำสลัด Mini"},{"$f":"ยอดยกมา","v":0},null,null,null,null,null,null,0,null,{"$f":"INDIRECT(ADDRESS(ROW(A$80),ROW()-ROW(A$80)+(ROWS($88:121)-1)*2-1,4))","v":0},null,0,null,0,null,null,null,0,null,0,null,null,null,null,null,{"$f":"INDIRECT(ADDRESS(ROW(A$80),ROW()-ROW(A$80)+(ROWS($88:121)-1)*2,4))","v":0},0,null,0,{"$f":"INDIRECT(ADDRESS(ROW(A$80),ROW()-ROW(A$80)+(ROWS($88:121)-1)*2+1,4))","v":0}]
[{"$f":"IF(B122=\"\",0,INDEX(Price_List,ROWS($88:122)))","v":10},{"$f":"IF($C122=\"\",\"\",COUNTA($C$88:$C122))","v":35},{"$f":"IF(INDEX(INDIRECT(\"Product_List\"),ROWS($88:122))=\"\",\"\",INDEX(INDIRECT(\"Product_List\"),ROWS($88:122)))","v":"35-ขนมปังไส้ช็อกโกแลต"},{"$f":"ยอดยกมา","v":0},null,null,null,null,null,null,0,null,{"$f":"INDIRECT(ADDRESS(ROW(A$80),ROW()-ROW(A$80)+(ROWS($88:122)-1)*2-1,4))","v":0},null,0,null,0,null,null,null,0,null,0,null,null,null,null,null,{"$f":"INDIRECT(ADDRESS(ROW(A$80),ROW()-ROW(A$80)+(ROWS($88:122)-1)*2,4))","v":0},0,null,0,{"$f":"INDIRECT(ADDRESS(ROW(A$80),ROW()-ROW(A$80)+(ROWS($88:122)-1)*2+1,4))","v":0}]
[{"$f":"IF(B123=\"\",0,INDEX(Price_List,ROWS($88:123)))","v":10},{"$f":"IF($C123=\"\",\"\",COUNTA($C$88:$C123))","v":36},{"$f":"IF(INDEX(INDIRECT(\"Product_List\"),ROWS($88:123))=\"\",\"\",INDEX(INDIRECT(\"Product_List\"),ROWS($88:123)))","v":"36-ขนมปังไส้ครีมสังขยาไข่"},{"$f":"ยอดยกมา","v":0},null,null,null,null,null,null,0,null,{"$f":"INDIRECT(ADDRESS(ROW(A$80),ROW()-ROW(A$80)+(ROWS($88:123)-1)*2-1,4))","v":0},null,0,null,0,null,null,null,0,null,0,null,null,null,null,null,{"$f":"INDIRECT(ADDRESS(ROW(A$80),ROW()-ROW(A$80)+(ROWS($88:123)-1)*2,4))","v":0},0,null,0,{"$f":"INDIRECT(ADDRESS(ROW(A$80),ROW()-ROW(A$80)+(ROWS($88:123)-1)*2+1,4))","v":0}]
[{"$f":"IF(B124=\"\",0,INDEX(Price_List,ROWS($88:124)))","v":20},{"$f":"IF($C124=\"\",\"\",COUNTA($C$88:$C124))","v":37},{"$f":"IF(INDEX(INDIRECT(\"Product_List\"),ROWS($88:124))=\"\",\"\",INDEX(INDIRECT(\"Product_List\"),ROWS($88:124)))","v":"37-ขนมปังพิซซ่าฮาวายเอี้ยน"},{"$f":"ยอดยกมา","v":0},null,null,null,null,null,null,0,null,{"$f":"INDIRECT(ADDRESS(ROW(A$80),ROW()-ROW(A$80)+(ROWS($88:124)-1)*2-1,4))","v":0},null,0,null,0,null,null,null,0,null,0,null,null,null,null,null,{"$f":"INDIRECT(ADDRESS(ROW(A$80),ROW()-ROW(A$80)+(ROWS($88:124)-1)*2,4))","v":0},0,null,0,{"$f":"INDIRECT(ADDRESS(ROW(A$80),ROW()-ROW(A$80)+(ROWS($88:124)-1)*2+1,4))","v":0}]
[{"$f":"IF(B125=\"\",0,INDEX(Price_List,ROWS($88:125)))","v":20},{"$f":"IF($C125=\"\",\"\",COUNTA($C$88:$C125))","v":38},{"$f":"IF(INDEX(INDIRECT(\"Product_List\"),ROWS($88:125))=\"\",\"\",INDEX(INDIRECT(\"Product_List\"),ROWS($88:125)))","v":"38-ครัวซองต์หมูหยองน้ำสลัด"},{"$f":"ยอดยกมา","v":0},null,null,null,null,null,null,0,null,{"$f":"INDIRECT(ADDRESS(ROW(A$80),ROW()-ROW(A$80)+(ROWS($88:125)-1)*2-1,4))","v":0},null,0,null,0,null,null,null,0,null,0,null,null,null,null,null,{"$f":"INDIRECT(ADDRESS(ROW(A$80),ROW()-ROW(A$80)+(ROWS($88:125)-1)*2,4))","v":0},0,null,0,{"$f":"INDIRECT(ADDRESS(ROW(A$80),ROW()-ROW(A$80)+(ROWS($88:125)-1)*2+1,4))","v":0}]
[{"$f":"IF(B126=\"\",0,INDEX(Price_List,ROWS($88:126)))","v":15},{"$f":"IF($C126=\"\",\"\",COUNTA($C$88:$C126))","v":39},{"$f":"IF(INDEX(INDIRECT(\"Product_List\"),ROWS($88:126))=\"\",\"\",INDEX(INDIRECT(\"Product_List\"),ROWS($88:126)))","v":"39-แพนเบรดไส้เผือก"},{"$f":"ยอดยกมา","v":0},null,null,null,null,null,null,0,null,{"$f":"INDIRECT(ADDRESS(ROW(A$80),ROW()-ROW(A$80)+(ROWS($88:126)-1)*2-1,4))","v":0},null,0,null,0,null,null,null,0,null,0,null,null,null,null,null,{"$f":"INDIRECT(ADDRESS(ROW(A$80),ROW()-ROW(A$80)+(ROWS($88:126)-1)*2,4))","v":0},0,null,0,{"$f":"INDIRECT(ADDRESS(ROW(A$80),ROW()-ROW(A$80)+(ROWS($88:126)-1)*2+1,4))","v":0}]
[{"$f":"IF(B127=\"\",0,INDEX(Price_List,ROWS($88:127)))","v":15},{"$f":"IF($C127=\"\",\"\",COUNTA($C$88:$C127))","v":40},{"$f":"IF(INDEX(INDIRECT(\"Product_List\"),ROWS($88:127))=\"\",\"\",INDEX(INDIRECT(\"Product_List\"),ROWS($88:127)))","v":"40-แพนเบรดไส้ถั่วแดง"},{"$f":"ยอดยกมา","v":0},null,null,null,null,null,null,0,null,{"$f":"INDIRECT(ADDRESS(ROW(A$80),ROW()-ROW(A$80)+(ROWS($88:127)-1)*2-1,4))","v":0},null,0,null,0,null,null,null,0,null,0,null,null,null,null,null,{"$f":"INDIRECT(ADDRESS(ROW(A$80),ROW()-ROW(A$80)+(ROWS($88:127)-1)*2,4))","v":0},0,null,0,{"$f":"INDIRECT(ADDRESS(ROW(A$80),ROW()-ROW(A$80)+(ROWS($88:127)-1)*2+1,4))","v":0}]
[{"$f":"IF(B128=\"\",0,INDEX(Price_List,ROWS($88:128)))","v":12},{"$f":"IF($C128=\"\",\"\",COUNTA($C$88:$C128))","v":41},{"$f":"IF(INDEX(INDIRECT(\"Product_List\"),ROWS($88:128))=\"\",\"\",INDEX(INDIRECT(\"Product_List\"),ROWS($88:128)))","v":"41-ขนมปังกรอบเนยน้ำตาล(30กรัม)"},{"$f":"ยอดยกมา","v":0},null,null,null,null,null,null,0,null,{"$f":"INDIRECT(ADDRESS(ROW(A$80),ROW()-ROW(A$80)+(ROWS($88:128)-1)*2-1,4))","v":0},null,0,null,0,null,null,null,0,null,0,null,null,null,null,null,{"$f":"INDIRECT(ADDRESS(ROW(A$80),ROW()-ROW(A$80)+(ROWS($88:128)-1)*2,4))","v":0},0,null,0,{"$f":"INDIRECT(ADDRESS(ROW(A$80),ROW()-ROW(A$80)+(ROWS($88:128)-1)*2+1,4))","v":0}]
[{"$f":"IF(B129=\"\",0,INDEX(Price_List,ROWS($88:129)))","v":18},{"$f":"IF($C129=\"\",\"\",COUNTA($C$88:$C129))","v":42},{"$f":"IF(INDEX(INDIRECT(\"Product_List\"),ROWS($88:129))=\"\",\"\",INDEX(INDIRECT(\"Product_List\"),ROWS($88:129)))","v":"42-ขนมปังชนิดแผ่นโฮลวีต"},{"$f":"ยอดยกมา","v":0},null,null,null,null,null,null,0,null,{"$f":"INDIRECT(ADDRESS(ROW(A$80),ROW()-ROW(A$80)+(ROWS($88:129)-1)*2-1,4))","v":0},null,0,null,0,null,null,null,0,null,0,null,null,null,null,null,{"$f":"INDIRECT(ADDRESS(ROW(A$80),ROW()-ROW(A$80)+(ROWS($88:129)-1)*2,4))","v":0},0,null,0,{"$f":"INDIRECT(ADDRESS(ROW(A$80),ROW()-ROW(A$80)+(ROWS($88:129)-1)*2+1,4))","v":0}]
[{"$f":"IF(B130=\"\",0,INDEX(Price_List,ROWS($88:130)))","v":12},{"$f":"IF($C130=\"\",\"\",COUNTA($C$88:$C130))","v":43},{"$f":"IF(INDEX(INDIRECT(\"Product_List\"),ROWS($88:130))=\"\",\"\",INDEX(INDIRECT(\"Product_List\"),ROWS($88:130)))","v":"43-เค้กโรลใบเตย"},{"$f":"ยอดยกมา","v":0},null,null,null,null,null,null,{"$f":"D130+E130+J130-I130+H130","v":0},null,{"$f":"INDIRECT(ADDRESS(ROW(A$80),ROW()-ROW(A$80)+(ROWS($88:130)-1)*2-1,4))","v":0},null,{"$f":"F130+G130+M130+J130-K130","v":0},null,{"$f":"O130*A130","v":0},null,null,null,{"$f":"D130+E130-F130-G130","v":0},null,{"$f":"U130*6%+U130","v":0},null,null,null,null,null,{"$f":"INDIRECT(ADDRESS(ROW(A$80),ROW()-ROW(A$80)+(ROWS($88:130)-1)*2,4))","v":0},0,null,0,{"$f":"INDIRECT(ADDRESS(ROW(A$80),ROW()-ROW(A$80)+(ROWS($88:130)-1)*2+1,4))","v":0}]
[{"$f":"IF(B131=\"\",0,INDEX(Price_List,ROWS($88:131)))","v":12},{"$f":"IF($C131=\"\",\"\",COUNTA($C$88:$C131))","v":44},{"$f":"IF(INDEX(INDIRECT(\"Product_List\"),ROWS($88:131))=\"\",\"\",INDEX(INDIRECT(\"Product_List\"),ROWS($88:131)))","v":"44-ขนมโมจิไส้ถั่วดำ"},{"$f":"ยอดยกมา","v":0},null,null,null,null,null,null,{"$f":"D131+E131+J131-I131+H131","v":0},null,{"$f":"INDIRECT(ADDRESS(ROW(A$80),ROW()-ROW(A$80)+(ROWS($88:131)-1)*2-1,4))","v":0},null,{"$f":"F131+G131+M131+J131-K131","v":0},null,{"$f":"O131*A131","v":0},null,null,null,{"$f":"D131+E131-F131-G131","v":0},null,{"$f":"U131*6%+U131","v":0},null,null,null,null,null,{"$f":"INDIRECT(ADDRESS(ROW(A$80),ROW()-ROW(A$80)+(ROWS($88:131)-1)*2,4))","v":0},0,null,0,{"$f":"INDIRECT(ADDRESS(ROW(A$80),ROW()-ROW(A$80)+(ROWS($88:131)-1)*2+1,4))","v":0}]
[{"$f":"IF(B132=\"\",0,INDEX(Price_List,ROWS($88:132)))","v":25},{"$f":"IF($C132=\"\",\"\",COUNTA($C$88:$C132))","v":45},{"$f":"IF(INDEX(INDIRECT(\"Product_List\"),ROWS($88:132))=\"\",\"\",INDEX(INDIRECT(\"Product_List\"),ROWS($88:132)))","v":"45-ครัวซองต์ไส้กรอกชีส"},{"$f":"ยอดยกมา","v":0},null,null,null,null,null,null,{"$f":"D132+E132+J132-I132+H132","v":0},null,{"$f":"INDIRECT(ADDRESS(ROW(A$80),ROW()-ROW(A$80)+(ROWS($88:132)-1)*2-1,4))","v":0},null,{"$f":"F132+G132+M132+J132-K132","v":0},null,{"$f":"O132*A132","v":0},null,null,null,{"$f":"D132+E132-F132-G132","v":0},null,{"$f":"U132*6%+U132","v":0},null,null,null,null,null,{"$f":"INDIRECT(ADDRESS(ROW(A$80),ROW()-ROW(A$80)+(ROWS($88:132)-1)*2,4))","v":0},0,null,0,{"$f":"INDIRECT(ADDRESS(ROW(A$80),ROW()-ROW(A$80)+(ROWS($88:132)-1)*2+1,4))","v":0}]
[{"$f":"IF(B133=\"\",0,INDEX(Price_List,ROWS($88:133)))","v":12},{"$f":"IF($C133=\"\",\"\",COUNTA($C$88:$C133))","v":46},{"$f":"IF(INDEX(INDIRECT(\"Product_List\"),ROWS($88:133))=\"\",\"\",INDEX(INDIRECT(\"Product_List\"),ROWS($88:133)))","v":"46-ขนมเปี๊ยะไส้ถั่ว"},{"$f":"ยอดยกมา","v":0},null,null,null,null,null,null,0,null,{"$f":"INDIRECT(ADDRESS(ROW(A$80),ROW()-ROW(A$80)+(ROWS($88:133)-1)*2-1,4))","v":0},null,0,null,0,null,null,null,0,null,0,null,null,null,null,null,{"$f":"INDIRECT(ADDRESS(ROW(A$80),ROW()-ROW(A$80)+(ROWS($88:133)-1)*2,4))","v":0},0,null,0,{"$f":"INDIRECT(ADDRESS(ROW(A$80),ROW()-ROW(A$80)+(ROWS($88:133)-1)*2+1,4))","v":0}]
[{"$f":"IF(B134=\"\",0,INDEX(Price_List,ROWS($88:134)))","v":12},{"$f":"IF($C134=\"\",\"\",COUNTA($C$88:$C134))","v":47},{"$f":"IF(INDEX(INDIRECT(\"Product_List\"),ROWS($88:134))=\"\",\"\",INDEX(INDIRECT(\"Product_List\"),ROWS($88:134)))","v":"47-ขนมเปี๊ยะไส้ฟัก"},{"$f":"ยอดยกมา","v":0},null,null,null,null,null,null,{"$f":"D134+E134+J134-I134+H134","v":0},null,{"$f":"INDIRECT(ADDRESS(ROW(A$80),ROW()-ROW(A$80)+(ROWS($88:134)-1)*2-1,4))","v":0},null,{"$f":"F134+G134+M134+J134-K134","v":0},null,{"$f":"O134*A134","v":0},null,null,null,{"$f":"D134+E134-F134-G134","v":0},null,{"$f":"U134*6%+U134","v":0},null,null,null,null,null,{"$f":"INDIRECT(ADDRESS(ROW(A$80),ROW()-ROW(A$80)+(ROWS($88:134)-1)*2,4))","v":0},0,null,0,{"$f":"INDIRECT(ADDRESS(ROW(A$80),ROW()-ROW(A$80)+(ROWS($88:134)-1)*2+1,4))","v":0}]
[{"$f":"IF(B135=\"\",0,INDEX(Price_List,ROWS($88:135)))","v":12},{"$f":"IF($C135=\"\",\"\",COUNTA($C$88:$C135))","v":48},{"$f":"IF(INDEX(INDIRECT(\"Product_List\"),ROWS($88:135))=\"\",\"\",INDEX(INDIRECT(\"Product_List\"),ROWS($88:135)))","v":"48-มังกี้เค้ก"},{"$f":"ยอดยกมา","v":0},null,null,null,null,null,null,0,null,{"$f":"INDIRECT(ADDRESS(ROW(A$80),ROW()-ROW(A$80)+(ROWS($88:135)-1)*2-1,4))","v":0},null,0,null,0,null,null,null,0,null,0,null,null,null,null,null,{"$f":"INDIRECT(ADDRESS(ROW(A$80),ROW()-ROW(A$80)+(ROWS($88:135)-1)*2,4))","v":0},0,null,0,{"$f":"INDIRECT(ADDRESS(ROW(A$80),ROW()-ROW(A$80)+(ROWS($88:135)-1)*2+1,4))","v":0}]
["รวม",null,null,{"$f":"SUM(D$88:D$135)","v":0},0,0,0,0,0,0,0,null,{"$f":"SUM(M$88:M$135)","v":0},null,null,null,{"$f":"$AP$98","v":0},null,"บาท",null,{"$f":"SUM(U$88:U$135)","v":0},null,{"$f":"SUM(W$88:W$135)","v":0},null,null,null,null,null,{"$f":"SUM(AC$88:AC$135)","v":0},{"$f":"SUM(AD$88:AD$135)","v":0},{"$f":"SUM(AE$88:AE$135)","v":0},{"$f":"SUM(AF$88:AF$135)","v":0},{"$f":"SUM(AG$88:AG$135)","v":0}]
["เลขที่ไมล์ เวลาออกทำงาน",null,null,{"$f":"$BF$3","v":0},null,"Km","น้ำหนักของเสีย"]
["เลขที่ไมล์ เวลากลับ",null,null,{"$f":"$BF$4","v":0},null,"Km",{"$f":"$AA$5","v":0},null,"KG"]
["เวลากลับถึงสำนักงาน",null,null,{"$f":"$BF$1","v":"00:00:00"},null,"น."]
["เติมน้ำมัน",null,null,{"$f":"$AX3","v":0},null,"บาท"]
["จำนวนน้ำมัน",null,null,{"$f":"$AX4","v":0},null,"ลิตร"]
["ยอดรวมต้นทุนสาขา",null,null,{"$f":"$AX5","v":0},null,"บาท"]

{"sheet":"17","index":21,"n_rows":142,"n_cols":154,"rows_kept":142,"cut":false,"hidden":false,"merged":[[83,132,83,133],[129,10,129,11],[129,12,129,13],[129,14,129,15],[129,16,129,17],[127,10,127,11],[127,12,127,13],[127,14,127,15],[127,16,127,17],[127,20,127,21],[127,22,127,23],[127,24,127,25],[127,33,127,36],[126,10,126,11],[126,12,126,13],[126,14,126,15],[126,16,126,17],[128,10,128,11],[128,12,128,13],[129,24,129,25],[125,10,125,11],[125,12,125,13],[125,14,125,15],[125,16,125,17],[7,132,7,134],[8,132,8,134],[80,132,80,133],[82,132,82,133],[7,135,7,137],[8,135,8,137],[80,135,80,136],[82,135,82,136],[7,138,7,140],[7,141,7,143],[7,147,7,149],[8,138,8,140],[141,0,141,2],[141,3,141,4],[138,0,138,2],[138,3,138,4],[139,0,139,2],[139,3,139,4],[140,0,140,2],[140,3,140,4],[135,24,135,25],[135,33,135,36],[136,0,136,2],[136,3,136,4],[137,0,137,2],[137,3,137,4],[137,6,137,7],[137,18,137,21],[135,0,135,2],[135,10,135,11],[135,12,135,13],[135,14,135,15],[135,16,135,17],[135,18,135,19],[135,20,135,21],[135,22,135,23],[128,14,128,15],[128,16,128,17],[128,20,128,21],[128,22,128,23],[129,20,129,21],[129,22,129,23],[131,16,131,17],[132,16,132,17],[134,16,134,17],[131,20,131,21],[132,20,132,21],[134,20,134,21],[131,22,131,23],[132,22,132,23],[134,22,134,23],[131,24,131,25],[132,24,132,25],[134,24,134,25],[129,33,129,36],[128,24,128,25],[128,33,128,36],[126,20,126,21],[126,22,126,23],[124,24,124,25],[124,33,124,36],[125,20,125,21],[125,22,125,23],[125,24,125,25],[125,33,125,36],[124,10,124,11],[124,12,124,13],[124,14,124,15],[124,16,124,17],[124,20,124,21],[124,22,124,23],[126,24,126,25],[126,33,126,36],[122,24,122,25],[122,33,122,36],[123,10,123,11],[123,12,123,13],[123,14,123,15],[123,16,123,17],[123,20,123,21],[123,22,123,23],[123,24,123,25],[123,33,123,36],[122,10,122,11],[122,12,122,13],[122,14,122,15],[122,16,122,17],[122,20,122,21],[122,22,122,23],[120,24,120,25],[120,33,120,36],[121,10,121,11],[121,12,121,13],[121,14,121,15],[121,16,121,17],[121,20,121,21],[121,22,121,23],[121,24,121,25],[121,33,121,36],[120,10,120,11],[120,12,120,13],[120,14,120,15],[120,16,120,17],[120,20,120,21],[120,22,120,23],[118,24,118,25],[118,33,118,36],[119,10,119,11],[119,12,119,13],[119,14,119,15],[119,16,119,17],[119,20,119,21],[119,22,119,23],[119,24,119,25],[119,33,119,36],[118,10,118,11],[118,12,118,13],[118,14,118,15],[118,16,118,17],[118,20,118,21],[118,22,118,23],[116,24,116,25],[116,33,116,36],[117,10,117,11],[117,12,117,13],[117,14,117,15],[117,16,117,17],[117,20,117,21],[117,22,117,23],[117,24,117,25],[117,33,117,36],[116,10,116,11],[116,12,116,13],[116,14,116,15],[116,16,116,17],[116,20,116,21],[116,22,116,23],[114,24,114,25],[114,33,114,36],[115,10,115,11],[115,12,115,13],[115,14,115,15],[115,16,115,17],[115,20,115,21],[115,22,115,23],[115,24,115,25],[115,33,115,36],[114,10,114,11],[114,12,114,13],[114,14,114,15],[114,16,114,17],[114,20,114,21],[114,22,114,23],[112,24,112,25],[112,33,112,36],[113,10,113,11],[113,12,113,13],[113,14,113,15],[113,16,113,17],[113,20,113,21],[113,22,113,23],[113,24,113,25],[113,33,113,36],[112,10,112,11],[112,12,112,13],[112,14,112,15],[112,16,112,17],[112,20,112,21],[112,22,112,23],[110,24,110,25],[110,33,110,36],[111,10,111,11],[111,12,111,13],[111,14,111,15],[111,16,111,17],[111,20,111,21],[111,22,111,23],[111,24,111,25],[111,33,111,36],[110,10,110,11],[110,12,110,13],[110,14,110,15],[110,16,110,17],[110,20,110,21],[110,22,110,23],[108,24,108,25],[108,33,108,36],[109,10,109,11],[109,12,109,13],[109,14,109,15],[109,16,109,17],[109,20,109,21],[109,22,109,23],[109,24,109,25],[109,33,109,36],[108,10,108,11],[108,12,108,13],[108,14,108,15],[108,16,108,17],[108,20,108,21],[108,22,108,23],[106,24,106,25],[106,33,106,36],[107,10,107,11],[107,12,107,13],[107,14,107,15],[107,16,107,17],[107,20,107,21],[107,22,107,23],[107,24,107,25],[107,33,107,36],[106,10,106,11],[106,12,106,13],[106,14,106,15],[106,16,106,17],[106,20,106,21],[106,22,106,23],[104,24,104,25],[104,33,104,36],[105,10,105,11],[105,12,105,13],[105,14,105,15],[105,16,105,17],[105,20,105,21],[105,22,105,23],[105,24,105,25],[105,33,105,36],[104,10,104,11],[104,12,104,13],[104,14,104,15],[104,16,104,17],[104,20,104,21],[104,22,104,23],[102,24,102,25],[102,33,102,36],[103,10,103,11],[103,12,103,13],[103,14,103,15],[103,16,103,17],[103,20,103,21],[103,22,103,23],[103,24,103,25],[103,33,103,36],[102,10,102,11],[102,12,102,13],[102,14,102,15],[102,16,102,17],[102,20,102,21],[102,22,102,23],[101,10,101,11],[101,12,101,13],[101,14,101,15],[101,16,101,17],[101,20,101,21],[101,22,101,23],[101,24,101,25],[101,33,101,36],[100,10,100,11],[100,12,100,13],[100,14,100,15],[100,16,100,17],[100,20,100,21],[100,22,100,23],[99,10,99,11],[99,12,99,13],[99,14,99,15],[99,16,99,17],[99,20,99,21],[99,22,99,23],[99,24,99,25],[99,33,99,36],[100,24,100,25],[100,33,100,36],[97,24,97,25],[97,33,97,36],[97,38,97,40],[98,10,98,11],[98,12,98,13],[98,14,98,15],[98,16,98,17],[98,20,98,21],[98,22,98,23],[98,24,98,25],[97,10,97,11],[97,12,97,13],[97,14,97,15],[97,16,97,17],[97,20,97,21],[97,22,97,23],[98,33,98,36],[95,24,95,25],[95,33,95,36],[96,10,96,11],[96,12,96,13],[96,14,96,15],[96,16,96,17],[96,20,96,21],[96,22,96,23],[96,24,96,25],[96,33,96,36],[95,10,95,11],[95,12,95,13],[95,14,95,15],[95,16,95,17],[95,20,95,21],[95,22,95,23],[93,24,93,25],[93,33,93,36],[94,10,94,11],[94,12,94,13],[94,14,94,15],[94,16,94,17],[94,20,94,21],[94,22,94,23],[94,24,94,25],[94,33,94,36],[93,10,93,11],[93,12,93,13],[93,14,93,15],[93,16,93,17],[93,20,93,21],[93,22,93,23],[91,24,91,25],[91,33,91,36],[92,10,92,11],[92,12,92,13],[92,14,92,15],[92,16,92,17],[92,20,92,21],[92,22,92,23],[92,24,92,25],[92,33,92,36],[91,10,91,11],[91,12,91,13],[91,14,91,15],[91,16,91,17],[91,20,91,21],[91,22,91,23],[86,22,86,23],[86,24,86,25],[88,20,88,21],[88,22,88,23],[88,24,88,25],[88,33,88,36],[89,24,89,25],[89,33,89,36],[90,10,90,11],[90,12,90,13],[90,14,90,15],[90,16,90,17],[90,20,90,21],[90,22,90,23],[90,24,90,25],[90,33,90,36],[89,10,89,11],[89,12,89,13],[89,14,89,15],[89,16,89,17],[89,20,89,21],[89,22,89,23],[83,36,83,37],[83,39,83,40],[83,42,83,43],[83,45,83,46],[83,48,83,49],[83,51,83,52],[83,150,83,153],[86,10,86,11],[86,12,86,13],[86,14,86,15],[86,16,86,17],[86,20,86,21],[83,108,83,109],[83,111,83,112],[83,114,83,115],[83,117,83,118],[83,120,83,121],[83,123,83,124],[83,90,83,91],[83,93,83,94],[83,96,83,97],[83,99,83,100],[83,102,83,103],[83,105,83,106],[82,39,82,40],[82,42,82,43],[82,45,82,46],[82,48,82,49],[83,84,83,85],[83,87,83,88],[83,54,83,55],[83,57,83,58],[83,60,83,61],[83,63,83,64],[83,66,83,67],[83,69,83,70],[83,72,83,73],[83,75,83,76],[83,78,83,79],[83,81,83,82],[83,0,83,5],[83,6,83,7],[83,9,83,10],[83,12,83,13],[83,15,83,16],[82,105,82,106],[82,108,82,109],[82,111,82,112],[82,114,82,115],[82,87,82,88],[82,90,82,91],[82,93,82,94],[82,96,82,97],[82,99,82,100],[82,102,82,103],[82,69,82,70],[82,72,82,73],[82,75,82,76],[82,78,82,79],[82,81,82,82],[82,84,82,85],[82,51,82,52],[82,54,82,55],[82,57,82,58],[82,15,82,16],[82,18,82,19],[82,21,82,22],[82,24,82,25],[82,27,82,28],[82,30,82,31],[81,0,81,2],[81,3,81,5],[81,150,82,153],[82,0,82,2],[82,3,82,4],[82,6,82,7],[82,9,82,10],[82,12,82,13],[82,123,82,124],[82,126,82,127],[82,129,82,130],[82,117,82,118],[82,120,82,121],[82,60,82,61],[82,63,82,64],[82,66,82,67],[82,33,82,34],[82,36,82,37],[80,114,80,115],[80,117,80,118],[80,120,80,121],[80,123,80,124],[80,126,80,127],[80,129,80,130],[80,96,80,97],[80,99,80,100],[80,102,80,103],[80,105,80,106],[80,108,80,109],[80,111,80,112],[80,78,80,79],[80,81,80,82],[80,87,80,88],[80,90,80,91],[80,93,80,94],[80,60,80,61],[80,63,80,64],[80,66,80,67],[80,69,80,70],[80,72,80,73],[80,75,80,76],[80,84,80,85],[79,0,79,5],[80,0,80,5],[80,6,80,7],[80,9,80,10],[80,12,80,13],[80,15,80,16],[80,18,80,19],[80,21,80,22],[8,114,8,116],[8,78,8,80],[8,81,8,83],[8,87,8,89],[8,90,8,92],[8,93,8,95],[8,60,8,62],[8,63,8,65],[8,66,8,68],[8,69,8,71],[8,72,8,74],[8,75,8,77],[8,54,8,56],[8,57,8,59],[8,24,8,26],[8,27,8,29],[8,120,8,122],[8,123,8,125],[8,126,8,128],[8,129,8,131],[8,96,8,98],[8,99,8,101],[8,102,8,104],[8,105,8,107],[8,108,8,110],[8,111,8,113],[8,33,8,35],[8,36,8,38],[8,39,8,41],[8,84,8,86],[7,150,8,150],[7,151,8,151],[8,6,8,8],[8,9,8,11],[8,12,8,14],[8,15,8,17],[8,18,8,20],[8,21,8,23],[7,114,7,116],[7,117,7,119],[7,120,7,122],[7,123,7,125],[7,126,7,128],[7,129,7,131],[7,96,7,98],[7,99,7,101],[7,102,7,104],[7,105,7,107],[7,108,7,110],[8,117,8,119],[7,87,7,89],[7,90,7,92],[7,93,7,95],[7,60,7,62],[7,63,7,65],[7,66,7,68],[7,69,7,71],[7,72,7,74],[7,75,7,77],[7,54,7,56],[7,57,7,59],[7,24,7,26],[7,27,7,29],[7,30,7,32],[7,33,7,35],[7,36,7,38],[7,39,7,41],[7,84,7,86],[6,150,6,151],[6,152,8,152],[6,153,8,153],[7,6,7,8],[7,9,7,11],[7,12,7,14],[7,15,7,17],[7,18,7,20],[7,21,7,23],[6,117,6,119],[6,120,6,122],[6,123,6,125],[6,126,6,128],[6,129,6,131],[6,99,6,101],[6,102,6,104],[6,105,6,107],[6,108,6,110],[6,111,6,113],[6,54,6,56],[6,57,6,59],[7,111,7,113],[7,78,7,80],[7,81,7,83],[6,0,8,0],[6,1,8,1],[6,2,8,2],[6,3,8,3],[6,4,8,4],[6,6,6,8],[6,45,6,47],[6,48,6,50],[6,51,6,53],[7,42,7,44],[7,45,7,47],[7,48,7,50],[7,51,7,53],[8,42,8,44],[8,45,8,47],[8,48,8,50],[8,51,8,53],[6,27,6,29],[6,30,6,32],[6,33,6,35],[6,36,6,38],[6,39,6,41],[6,42,6,44],[8,30,8,32],[4,26,4,29],[4,30,4,31],[4,32,4,34],[4,35,4,36],[6,9,6,11],[6,12,6,14],[6,15,6,17],[6,18,6,20],[6,21,6,23],[6,24,6,26],[3,41,3,44],[3,46,3,48],[3,49,3,51],[3,54,3,56],[3,57,3,60],[4,0,4,1],[4,2,4,3],[4,4,4,5],[4,6,4,12],[4,14,4,16],[3,17,3,19],[3,22,3,25],[3,26,3,29],[3,30,3,33],[3,34,3,37],[3,38,3,40],[4,38,4,40],[4,41,4,44],[4,46,4,48],[4,49,4,51],[4,54,4,56],[4,57,4,60],[4,17,4,19],[4,22,4,25],[2,38,2,40],[3,0,3,1],[3,2,3,3],[3,4,3,5],[3,6,3,12],[3,14,3,16],[2,17,2,19],[2,22,2,25],[2,26,2,29],[2,30,2,33],[80,36,80,37],[80,39,80,40],[0,38,0,40],[0,41,0,44],[0,46,0,48],[0,54,0,56],[0,57,0,60],[2,0,2,1],[2,2,2,3],[2,4,2,5],[2,6,2,12],[2,14,2,16],[0,0,0,12],[0,14,0,16],[0,17,0,23],[0,30,0,33],[0,34,0,35],[0,36,0,37],[2,41,2,44],[2,46,2,48],[2,49,2,51],[2,54,2,56],[2,57,2,60],[2,34,2,37],[6,141,6,143],[6,147,6,149],[83,18,83,19],[83,21,83,22],[83,24,83,25],[83,27,83,28],[83,30,83,31],[83,33,83,34],[83,126,83,127],[83,129,83,130],[8,141,8,143],[8,147,8,149],[80,138,80,139],[80,141,80,142],[80,147,80,148],[82,138,82,139],[82,141,82,142],[82,147,82,148],[6,60,6,62],[6,87,6,89],[6,90,6,92],[6,93,6,95],[6,96,6,98],[6,63,6,65],[88,12,88,13],[88,14,88,15],[88,16,88,17],[6,114,6,116],[6,81,6,83],[6,84,6,86],[6,132,6,134],[6,135,6,137],[6,138,6,140],[6,66,6,68],[6,69,6,71],[6,72,6,74],[6,75,6,77],[6,78,6,80],[80,42,80,43],[80,45,80,46],[80,48,80,49],[80,51,80,52],[80,54,80,55],[80,57,80,58],[80,24,80,25],[80,27,80,28],[80,30,80,31],[80,33,80,34],[83,147,83,148],[131,33,131,36],[132,33,132,36],[134,33,134,36],[131,10,131,11],[132,10,132,11],[134,10,134,11],[131,12,131,13],[132,12,132,13],[134,12,134,13],[131,14,131,15],[132,14,132,15],[134,14,134,15],[86,33,86,36],[87,10,87,11],[87,12,87,13],[87,14,87,15],[87,16,87,17],[87,20,87,21],[87,22,87,23],[83,135,83,136],[130,10,130,11],[130,12,130,13],[130,14,130,15],[6,144,6,146],[7,144,7,146],[8,144,8,146],[80,144,80,145],[82,144,82,145],[83,144,83,145],[133,10,133,11],[133,12,133,13],[133,14,133,15],[133,16,133,17],[133,20,133,21],[133,22,133,23],[133,24,133,25],[133,33,133,36],[83,138,83,139],[83,141,83,142],[130,16,130,17],[130,20,130,21],[130,22,130,23],[130,24,130,25],[130,33,130,36],[87,24,87,25],[87,33,87,36],[88,10,88,11]]}
[":::: รายงานการขายประจำวัน (Sale Daily Report)  ::::",null,null,null,null,null,null,null,null,null,null,null,null,null,"Print Date : ",null,null,{"$f":"NOW()","v":"2025-04-24T22:39:10.130"},null,null,null,null,null,null,null,null,null,null,null,null,"จำนวนร้าน :",null,null,null,{"$f":"MAX($A$10:$A$79)","v":0},null,"ร้าน",null,"เป้ายอดขาย :",null,null,null,null,null,null,null,{"$f":"C3","v":45794},null,null,{"$f":"LEFT('Problems & Solutions'!$B$2,FIND(\"|\",'Problems & Solutions'!$B$2))&\" วันที่\"&TEXT($C$3,\"[$-107041E] d mmmm yyyy;@\")","v":"ขั้นตอนการตรวจรีพอร์ตขาย | วันที่ 17 พฤษภาคม 2568"},null,null,null,null,"เวลากลับ :"]
[]
["วันที่ :",null,{"$f":"DATE(ใส่ข้อมูล!G2-543,ใส่ข้อมูล!V2,ActiveSheetName)","v":"2025-05-17"},null,"พนักงานขาย",null,{"$f":"INDEX(OFFSET(Sale_Region,,1),ActiveSheetName)","v":0},null,null,null,null,null,null,null,"รวมยอดเบิก :",null,null,{"$f":"E136","v":0},null,null,"ชิ้น",null,"ใหญ่สด(40)",null,null,null,{"$f":"Cash_Major_Bill","v":0},null,null,null,"ใหญ่เชื่อ(42)",null,null,null,{"$f":"Credit_Major_Bill","v":0},null,null,null,"บิลใหญ่ :",null,null,{"$f":"AA3+AI3","v":0},null,null,null,null,"เติมน้ำมัน :",null,null,null,null,null,"บาท",null,"ไมล์ออก :",null,null,{"$f":"เลขไมล์ออก","v":0},null,null,null,"Km"]
["เขตการขาย :",null,{"$f":"INDEX(Sale_Region,ActiveSheetName)","v":0},null,"ผช.ขาย",null,{"$f":"INDEX(OFFSET(Sale_Region,,2),ActiveSheetName)","v":0},null,null,null,null,null,null,null,"ของเหลือ :",null,null,{"$f":"F136","v":0},null,null,"ชิ้น",null,"เล็กสด(41)",null,null,null,{"$f":"Cash_Minor_Bill","v":0},null,null,null,"เล็กเชื่อ(43)",null,null,null,{"$f":"Credit_Minor_Bill","v":0},null,null,null,"บิลเล็ก :",null,null,{"$f":"AA4+AI4","v":0},null,null,null,null,"จำนวนลิตร :",null,null,null,null,null,"ลิตร",null,"ไมล์เข้า :",null,null,null,null,null,null,"Km"]
["สายส่ง :",null,{"$f":"\"Sale \"&ใส่ข้อมูล!E3&\"-\"&ใส่ข้อมูล!G3","v":"Sale KB-01"},null,"พนักงานเสริม",null,{"$f":"INDEX(OFFSET(Sale_Region,,3),ActiveSheetName)","v":0},null,null,null,null,null,null,null,"ของเสีย :",null,null,{"$f":"G136","v":0},null,null,"ชิ้น",null,"น้ำหนักของเสีย",null,null,null,null,null,null,null,"Kg.",null,"%ของเสีย",null,null,{"$f":"IF(Order_Cal=0,0,ROUND(Waste_Cal*100/Order_Cal,2))","v":0},null,"%","VAT :",null,null,{"$f":"EW81","v":0},null,null,null,null,"ต้นทุนสาขา :",null,null,{"$f":"SUMPRODUCT((($A$88:$A$135)-($A$88:$A$135)*0.45)*(($E$88:$E$135)-($G$88:$G$135)))","v":0},null,null,"บาท",null,"ระยะทาง :",null,null,{"$f":"IF(OR($BF$4=0,$BF$3=0),0,$BF$4-$BF$3)","v":0},null,null,null,"Km"]
[]
["No","รหัสร้าน (CustNo)","ชื่อร้าน (Store Name)","เวลาเข้าร้าน","ระยะเวลาระหว่างร้าน","บิล(Invoice)",{"$f":"INDEX(INDIRECT(\"dProduct[ProductName]\"),ROUNDUP(COLUMNS($G:G)/3,0))","v":"ขนมปังหมูหยองน้ำสลัด"},null,null,{"$f":"INDEX(INDIRECT(\"dProduct[ProductName]\"),ROUNDUP(COLUMNS($G:J)/3,0))","v":"ขนมปังหมูหยองน้ำพริกเผา"},null,null,{"$f":"INDEX(INDIRECT(\"dProduct[ProductName]\"),ROUNDUP(COLUMNS($G:M)/3,0))","v":"ขนมปังไก่หยองน้ำสลัด"},null,null,{"$f":"INDEX(INDIRECT(\"dProduct[ProductName]\"),ROUNDUP(COLUMNS($G:P)/3,0))","v":"ขนมปังไส้ครีมสลัด"},null,null,{"$f":"INDEX(INDIRECT(\"dProduct[ProductName]\"),ROUNDUP(COLUMNS($G:S)/3,0))","v":"ขนมปังเนยสด"},null,null,{"$f":"INDEX(INDIRECT(\"dProduct[ProductName]\"),ROUNDUP(COLUMNS($G:V)/3,0))","v":"ขนมปังไส้สังขยาเล็ก"},null,null,{"$f":"INDEX(INDIRECT(\"dProduct[ProductName]\"),ROUNDUP(COLUMNS($G:Y)/3,0))","v":"ขนมปังไส้เผือก"},null,null,{"$f":"INDEX(INDIRECT(\"dProduct[ProductName]\"),ROUNDUP(COLUMNS($G:AB)/3,0))","v":"ขนมปังไส้ถั่วแดง"},null,null,{"$f":"INDEX(INDIRECT(\"dProduct[ProductName]\"),ROUNDUP(COLUMNS($G:AE)/3,0))","v":"ขนมปังไส้ถั่วดำ"},null,null,{"$f":"INDEX(INDIRECT(\"dProduct[ProductName]\"),ROUNDUP(COLUMNS($G:AH)/3,0))","v":"ขนมปังไส้มันม่วง"},null,null,{"$f":"INDEX(INDIRECT(\"dProduct[ProductName]\"),ROUNDUP(COLUMNS($G:AK)/3,0))","v":"เค้กกล้วยหอม"},null,null,{"$f":"INDEX(INDIRECT(\"dProduct[ProductName]\"),ROUNDUP(COLUMNS($G:AN)/3,0))","v":"เค้กบัตเตอร์"},null,null,{"$f":"INDEX(INDIRECT(\"dProduct[ProductName]\"),ROUNDUP(COLUMNS($G:AQ)/3,0))","v":"ขนมปังโรลถั่วแดง"},null,null,{"$f":"INDEX(INDIRECT(\"dProduct[ProductName]\"),ROUNDUP(COLUMNS($G:AT)/3,0))","v":"ขนมปังไส้สังขยาใหญ่"},null,null,{"$f":"INDEX(INDIRECT(\"dProduct[ProductName]\"),ROUNDUP(COLUMNS($G:AW)/3,0))","v":"ขนมปังชนิดแผ่น(480กรัม)"},null,null,{"$f":"INDEX(INDIRECT(\"dProduct[ProductName]\"),ROUNDUP(COLUMNS($G:AZ)/3,0))","v":"โมจิไส้ถั่ว"},null,null,{"$f":"INDEX(INDIRECT(\"dProduct[ProductName]\"),ROUNDUP(COLUMNS($G:BC)/3,0))","v":"โมจิไส้เผือก"},null,null,{"$f":"INDEX(INDIRECT(\"dProduct[ProductName]\"),ROUNDUP(COLUMNS($G:BF)/3,0))","v":"โมจิไส้ถั่วไข่เค็ม"},null,null,{"$f":"INDEX(INDIRECT(\"dProduct[ProductName]\"),ROUNDUP(COLUMNS($G:BI)/3,0))","v":"ขนมปังพิซซ่า"},null,null,{"$f":"INDEX(INDIRECT(\"dProduct[ProductName]\"),ROUNDUP(COLUMNS($G:BL)/3,0))","v":"ขนมปังพิซซ่าปูอัดแฮม"},null,null,{"$f":"INDEX(INDIRECT(\"dProduct[ProductName]\"),ROUNDUP(COLUMNS($G:BO)/3,0))","v":"ขนมปังไส้กรอก"},null,null,{"$f":"INDEX(INDIRECT(\"dProduct[ProductName]\"),ROUNDUP(COLUMNS($G:BR)/3,0))","v":"ขนมก้านบัว"},null,null,{"$f":"INDEX(INDIRECT(\"dProduct[ProductName]\"),ROUNDUP(COLUMNS($G:BU)/3,0))","v":"พายสับปะรด"},null,null,{"$f":"INDEX(INDIRECT(\"dProduct[ProductName]\"),ROUNDUP(COLUMNS($G:BX)/3,0))","v":"พายไส้มะพร้าว"},null,null,{"$f":"INDEX(INDIRECT(\"dProduct[ProductName]\"),ROUNDUP(COLUMNS($G:CA)/3,0))","v":"ขนมปังโรลมันเทศ"},null,null,{"$f":"INDEX(INDIRECT(\"dProduct[ProductName]\"),ROUNDUP(COLUMNS($G:CD)/3,0))","v":"ขนมปังไส้ครีมสลัดน้ำพริกเผา"},null,null,{"$f":"INDEX(INDIRECT(\"dProduct[ProductName]\"),ROUNDUP(COLUMNS($G:CG)/3,0))","v":"ขนมปังไส้สังขยาไข่"},null,null,{"$f":"INDEX(INDIRECT(\"dProduct[ProductName]\"),ROUNDUP(COLUMNS($G:CJ)/3,0))","v":"ขนมปังไส้สังขยามะพร้าว"},null,null,{"$f":"INDEX(INDIRECT(\"dProduct[ProductName]\"),ROUNDUP(COLUMNS($G:CM)/3,0))","v":"ขนมปังไส้ครีมชาไทย"},null,null,{"$f":"INDEX(INDIRECT(\"dProduct[ProductName]\"),ROUNDUP(COLUMNS($G:CP)/3,0))","v":"ขนมปังโรลมันม่วง"},null,null,{"$f":"INDEX(INDIRECT(\"dProduct[ProductName]\"),ROUNDUP(COLUMNS($G:CS)/3,0))","v":"ขนมปังโรลช็อกโกแลต"},null,null,{"$f":"INDEX(INDIRECT(\"dProduct[ProductName]\"),ROUNDUP(COLUMNS($G:CV)/3,0))","v":"ขนมปังชนิดแผ่น(155กรัม)"},null,null,{"$f":"INDEX(INDIRECT(\"dProduct[ProductName]\"),ROUNDUP(COLUMNS($G:CY)/3,0))","v":"ขนมปังโรลเผือก"},null,null,{"$f":"INDEX(INDIRECT(\"dProduct[ProductName]\"),ROUNDUP(COLUMNS($G:DB)/3,0))","v":"ขนมปังไก่หยองน้ำสลัด Mini"},null,null,{"$f":"INDEX(INDIRECT(\"dProduct[ProductName]\"),ROUNDUP(COLUMNS($G:DE)/3,0))","v":"ขนมปังไส้ช็อกโกแลต"},null,null,{"$f":"INDEX(INDIRECT(\"dProduct[ProductName]\"),ROUNDUP(COLUMNS($G:DH)/3,0))","v":"ขนมปังไส้ครีมสังขยาไข่"},null,null,{"$f":"INDEX(INDIRECT(\"dProduct[ProductName]\"),ROUNDUP(COLUMNS($G:DK)/3,0))","v":"ขนมปังพิซซ่าฮาวายเอี้ยน"},null,null,{"$f":"INDEX(INDIRECT(\"dProduct[ProductName]\"),ROUNDUP(COLUMNS($G:DN)/3,0))","v":"ครัวซองต์หมูหยองน้ำสลัด"},null,null,{"$f":"INDEX(INDIRECT(\"dProduct[ProductName]\"),ROUNDUP(COLUMNS($G:DQ)/3,0))","v":"แพนเบรดไส้เผือก"},null,null,{"$f":"INDEX(INDIRECT(\"dProduct[ProductName]\"),ROUNDUP(COLUMNS($G:DT)/3,0))","v":"แพนเบรดไส้ถั่วแดง"},null,null,{"$f":"INDEX(INDIRECT(\"dProduct[ProductName]\"),ROUNDUP(COLUMNS($G:DW)/3,0))","v":"ขนมปังกรอบเนยน้ำตาล(30กรัม)"},null,null,{"$f":"INDEX(INDIRECT(\"dProduct[ProductName]\"),ROUNDUP(COLUMNS($G:DZ)/3,0))","v":"ขนมปังชนิดแผ่นโฮลวีต"},null,null,{"$f":"INDEX(INDIRECT(\"dProduct[ProductName]\"),ROUNDUP(COLUMNS($G:EC)/3,0))","v":"เค้กโรลใบเตย"},null,null,{"$f":"INDEX(INDIRECT(\"dProduct[ProductName]\"),ROUNDUP(COLUMNS($G:EF)/3,0))","v":"ขนมโมจิไส้ถั่วดำ"},null,null,{"$f":"INDEX(INDIRECT(\"dProduct[ProductName]\"),ROUNDUP(COLUMNS($G:EI)/3,0))","v":"ครัวซองต์ไส้กรอกชีส"},null,null,{"$f":"INDEX(INDIRECT(\"dProduct[ProductName]\"),ROUNDUP(COLUMNS($G:EL)/3,0))","v":"ขนมเปี๊ยะไส้ถั่ว"},null,null,{"$f":"INDEX(INDIRECT(\"dProduct[ProductName]\"),ROUNDUP(COLUMNS($G:EO)/3,0))","v":"ขนมเปี๊ยะไส้ฟัก"},null,null,{"$f":"INDEX(INDIRECT(\"dProduct[ProductName]\"),ROUNDUP(COLUMNS($G:ER)/3,0))","v":"มังกี้เค้ก"},null,null,"มูลค่าสินค้า",null,"ภาษี","รวมยอดขาย"]
[null,null,null,null,null,"ราคาขาย",{"$f":"IF(G$7=0,0,INDEX(Price_List,ROUNDUP(COLUMNS($G:G)/3,0)))","v":20},null,null,{"$f":"IF(J$7=0,0,INDEX(Price_List,ROUNDUP(COLUMNS($G:J)/3,0)))","v":20},null,null,{"$f":"IF(M$7=0,0,INDEX(Price_List,ROUNDUP(COLUMNS($G:M)/3,0)))","v":20},null,null,{"$f":"IF(P$7=0,0,INDEX(Price_List,ROUNDUP(COLUMNS($G:P)/3,0)))","v":15},null,null,{"$f":"IF(S$7=0,0,INDEX(Price_List,ROUNDUP(COLUMNS($G:S)/3,0)))","v":15},null,null,{"$f":"IF(V$7=0,0,INDEX(Price_List,ROUNDUP(COLUMNS($G:V)/3,0)))","v":10},null,null,{"$f":"IF(Y$7=0,0,INDEX(Price_List,ROUNDUP(COLUMNS($G:Y)/3,0)))","v":10},null,null,{"$f":"IF(AB$7=0,0,INDEX(Price_List,ROUNDUP(COLUMNS($G:AB)/3,0)))","v":10},null,null,{"$f":"IF(AE$7=0,0,INDEX(Price_List,ROUNDUP(COLUMNS($G:AE)/3,0)))","v":10},null,null,{"$f":"IF(AH$7=0,0,INDEX(Price_List,ROUNDUP(COLUMNS($G:AH)/3,0)))","v":10},null,null,{"$f":"IF(AK$7=0,0,INDEX(Price_List,ROUNDUP(COLUMNS($G:AK)/3,0)))","v":15},null,null,{"$f":"IF(AN$7=0,0,INDEX(Price_List,ROUNDUP(COLUMNS($G:AN)/3,0)))","v":15},null,null,{"$f":"IF(AQ$7=0,0,INDEX(Price_List,ROUNDUP(COLUMNS($G:AQ)/3,0)))","v":15},null,null,{"$f":"IF(AT$7=0,0,INDEX(Price_List,ROUNDUP(COLUMNS($G:AT)/3,0)))","v":15},null,null,{"$f":"IF(AW$7=0,0,INDEX(Price_List,ROUNDUP(COLUMNS($G:AW)/3,0)))","v":42},null,null,{"$f":"IF(AZ$7=0,0,INDEX(Price_List,ROUNDUP(COLUMNS($G:AZ)/3,0)))","v":12},null,null,{"$f":"IF(BC$7=0,0,INDEX(Price_List,ROUNDUP(COLUMNS($G:BC)/3,0)))","v":12},null,null,{"$f":"IF(BF$7=0,0,INDEX(Price_List,ROUNDUP(COLUMNS($G:BF)/3,0)))","v":15},null,null,{"$f":"IF(BI$7=0,0,INDEX(Price_List,ROUNDUP(COLUMNS($G:BI)/3,0)))","v":20},null,null,{"$f":"IF(BL$7=0,0,INDEX(Price_List,ROUNDUP(COLUMNS($G:BL)/3,0)))","v":20},null,null,{"$f":"IF(BO$7=0,0,INDEX(Price_List,ROUNDUP(COLUMNS($G:BO)/3,0)))","v":20},null,null,{"$f":"IF(BR$7=0,0,INDEX(Price_List,ROUNDUP(COLUMNS($G:BR)/3,0)))","v":15},null,null,{"$f":"IF(BU$7=0,0,INDEX(Price_List,ROUNDUP(COLUMNS($G:BU)/3,0)))","v":20},null,null,{"$f":"IF(BX$7=0,0,INDEX(Price_List,ROUNDUP(COLUMNS($G:BX)/3,0)))","v":20},null,null,{"$f":"IF(CA$7=0,0,INDEX(Price_List,ROUNDUP(COLUMNS($G:CA)/3,0)))","v":15},null,null,{"$f":"IF(CD$7=0,0,INDEX(Price_List,ROUNDUP(COLUMNS($G:CD)/3,0)))","v":15},null,null,{"$f":"IF(CG$7=0,0,INDEX(Price_List,ROUNDUP(COLUMNS($G:CG)/3,0)))","v":20},null,null,{"$f":"IF(CJ$7=0,0,INDEX(Price_List,ROUNDUP(COLUMNS($G:CJ)/3,0)))","v":20},null,null,{"$f":"IF(CM$7=0,0,INDEX(Price_List,ROUNDUP(COLUMNS($G:CM)/3,0)))","v":10},null,null,{"$f":"IF(CP$7=0,0,INDEX(Price_List,ROUNDUP(COLUMNS($G:CP)/3,0)))","v":15},null,null,{"$f":"IF(CS$7=0,0,INDEX(Price_List,ROUNDUP(COLUMNS($G:CS)/3,0)))","v":15},null,null,{"$f":"IF(CV$7=0,0,INDEX(Price_List,ROUNDUP(COLUMNS($G:CV)/3,0)))","v":16},null,null,{"$f":"IF(CY$7=0,0,INDEX(Price_List,ROUNDUP(COLUMNS($G:CY)/3,0)))","v":15},null,null,{"$f":"IF(DB$7=0,0,INDEX(Price_List,ROUNDUP(COLUMNS($G:DB)/3,0)))","v":15},null,null,{"$f":"IF(DE$7=0,0,INDEX(Price_List,ROUNDUP(COLUMNS($G:DE)/3,0)))","v":10},null,null,{"$f":"IF(DH$7=0,0,INDEX(Price_List,ROUNDUP(COLUMNS($G:DH)/3,0)))","v":10},null,null,{"$f":"IF(DK$7=0,0,INDEX(Price_List,ROUNDUP(COLUMNS($G:DK)/3,0)))","v":20},null,null,{"$f":"IF(DN$7=0,0,INDEX(Price_List,ROUNDUP(COLUMNS($G:DN)/3,0)))","v":20},null,null,{"$f":"IF(DQ$7=0,0,INDEX(Price_List,ROUNDUP(COLUMNS($G:DQ)/3,0)))","v":15},null,null,{"$f":"IF(DT$7=0,0,INDEX(Price_List,ROUNDUP(COLUMNS($G:DT)/3,0)))","v":15},null,null,{"$f":"IF(DW$7=0,0,INDEX(Price_List,ROUNDUP(COLUMNS($G:DW)/3,0)))","v":12},null,null,{"$f":"IF(DZ$7=0,0,INDEX(Price_List,ROUNDUP(COLUMNS($G:DZ)/3,0)))","v":18},null,null,{"$f":"IF(EC$7=0,0,INDEX(Price_List,ROUNDUP(COLUMNS($G:EC)/3,0)))","v":12},null,null,{"$f":"IF(EF$7=0,0,INDEX(Price_List,ROUNDUP(COLUMNS($G:EF)/3,0)))","v":12},null,null,{"$f":"IF(EI$7=0,0,INDEX(Price_List,ROUNDUP(COLUMNS($G:EI)/3,0)))","v":25},null,null,{"$f":"IF(EL$7=0,0,INDEX(Price_List,ROUNDUP(COLUMNS($G:EL)/3,0)))","v":12},null,null,{"$f":"IF(EO$7=0,0,INDEX(Price_List,ROUNDUP(COLUMNS($G:EO)/3,0)))","v":12},null,null,{"$f":"IF(ER$7=0,0,INDEX(Price_List,ROUNDUP(COLUMNS($G:ER)/3,0)))","v":12},null,null,"เงินเชื่อ","เงินสด"]
[null,null,null,null,null,"คงเหลือ(ตามบัญชี)",{"$f":"IF(G$7=0,0,INDEX(INDIRECT(Order_Rng),ROUNDUP(COLUMNS($G:G)/3,0)))","v":0},null,null,{"$f":"IF(J$7=0,0,INDEX(INDIRECT(Order_Rng),ROUNDUP(COLUMNS($G:J)/3,0)))","v":0},null,null,{"$f":"IF(M$7=0,0,INDEX(INDIRECT(Order_Rng),ROUNDUP(COLUMNS($G:M)/3,0)))","v":0},null,null,{"$f":"IF(P$7=0,0,INDEX(INDIRECT(Order_Rng),ROUNDUP(COLUMNS($G:P)/3,0)))","v":0},null,null,{"$f":"IF(S$7=0,0,INDEX(INDIRECT(Order_Rng),ROUNDUP(COLUMNS($G:S)/3,0)))","v":0},null,null,{"$f":"IF(V$7=0,0,INDEX(INDIRECT(Order_Rng),ROUNDUP(COLUMNS($G:V)/3,0)))","v":0},null,null,{"$f":"IF(Y$7=0,0,INDEX(INDIRECT(Order_Rng),ROUNDUP(COLUMNS($G:Y)/3,0)))","v":0},null,null,{"$f":"IF(AB$7=0,0,INDEX(INDIRECT(Order_Rng),ROUNDUP(COLUMNS($G:AB)/3,0)))","v":0},null,null,{"$f":"IF(AE$7=0,0,INDEX(INDIRECT(Order_Rng),ROUNDUP(COLUMNS($G:AE)/3,0)))","v":0},null,null,{"$f":"IF(AH$7=0,0,INDEX(INDIRECT(Order_Rng),ROUNDUP(COLUMNS($G:AH)/3,0)))","v":0},null,null,{"$f":"IF(AK$7=0,0,INDEX(INDIRECT(Order_Rng),ROUNDUP(COLUMNS($G:AK)/3,0)))","v":0},null,null,{"$f":"IF(AN$7=0,0,INDEX(INDIRECT(Order_Rng),ROUNDUP(COLUMNS($G:AN)/3,0)))","v":0},null,null,{"$f":"IF(AQ$7=0,0,INDEX(INDIRECT(Order_Rng),ROUNDUP(COLUMNS($G:AQ)/3,0)))","v":0},null,null,{"$f":"IF(AT$7=0,0,INDEX(INDIRECT(Order_Rng),ROUNDUP(COLUMNS($G:AT)/3,0)))","v":0},null,null,{"$f":"IF(AW$7=0,0,INDEX(INDIRECT(Order_Rng),ROUNDUP(COLUMNS($G:AW)/3,0)))","v":0},null,null,{"$f":"IF(AZ$7=0,0,INDEX(INDIRECT(Order_Rng),ROUNDUP(COLUMNS($G:AZ)/3,0)))","v":0},null,null,{"$f":"IF(BC$7=0,0,INDEX(INDIRECT(Order_Rng),ROUNDUP(COLUMNS($G:BC)/3,0)))","v":0},null,null,{"$f":"IF(BF$7=0,0,INDEX(INDIRECT(Order_Rng),ROUNDUP(COLUMNS($G:BF)/3,0)))","v":0},null,null,{"$f":"IF(BI$7=0,0,INDEX(INDIRECT(Order_Rng),ROUNDUP(COLUMNS($G:BI)/3,0)))","v":0},null,null,{"$f":"IF(BL$7=0,0,INDEX(INDIRECT(Order_Rng),ROUNDUP(COLUMNS($G:BL)/3,0)))","v":0},null,null,{"$f":"IF(BO$7=0,0,INDEX(INDIRECT(Order_Rng),ROUNDUP(COLUMNS($G:BO)/3,0)))","v":0},null,null,{"$f":"IF(BR$7=0,0,INDEX(INDIRECT(Order_Rng),ROUNDUP(COLUMNS($G:BR)/3,0)))","v":0},null,null,{"$f":"IF(BU$7=0,0,INDEX(INDIRECT(Order_Rng),ROUNDUP(COLUMNS($G:BU)/3,0)))","v":0},null,null,{"$f":"IF(BX$7=0,0,INDEX(INDIRECT(Order_Rng),ROUNDUP(COLUMNS($G:BX)/3,0)))","v":0},null,null,{"$f":"IF(CA$7=0,0,INDEX(INDIRECT(Order_Rng),ROUNDUP(COLUMNS($G:CA)/3,0)))","v":0},null,null,{"$f":"IF(CD$7=0,0,INDEX(INDIRECT(Order_Rng),ROUNDUP(COLUMNS($G:CD)/3,0)))","v":0},null,null,{"$f":"IF(CG$7=0,0,INDEX(INDIRECT(Order_Rng),ROUNDUP(COLUMNS($G:CG)/3,0)))","v":0},null,null,{"$f":"IF(CJ$7=0,0,INDEX(INDIRECT(Order_Rng),ROUNDUP(COLUMNS($G:CJ)/3,0)))","v":0},null,null,{"$f":"IF(CM$7=0,0,INDEX(INDIRECT(Order_Rng),ROUNDUP(COLUMNS($G:CM)/3,0)))","v":0},null,null,{"$f":"IF(CP$7=0,0,INDEX(INDIRECT(Order_Rng),ROUNDUP(COLUMNS($G:CP)/3,0)))","v":0},null,null,{"$f":"IF(CS$7=0,0,INDEX(INDIRECT(Order_Rng),ROUNDUP(COLUMNS($G:CS)/3,0)))","v":0},null,null,{"$f":"IF(CV$7=0,0,INDEX(INDIRECT(Order_Rng),ROUNDUP(COLUMNS($G:CV)/3,0)))","v":0},null,null,{"$f":"IF(CY$7=0,0,INDEX(INDIRECT(Order_Rng),ROUNDUP(COLUMNS($G:CY)/3,0)))","v":0},null,null,{"$f":"IF(DB$7=0,0,INDEX(INDIRECT(Order_Rng),ROUNDUP(COLUMNS($G:DB)/3,0)))","v":0},null,null,{"$f":"IF(DE$7=0,0,INDEX(INDIRECT(Order_Rng),ROUNDUP(COLUMNS($G:DE)/3,0)))","v":0},null,null,{"$f":"IF(DH$7=0,0,INDEX(INDIRECT(Order_Rng),ROUNDUP(COLUMNS($G:DH)/3,0)))","v":0},null,null,{"$f":"IF(DK$7=0,0,INDEX(INDIRECT(Order_Rng),ROUNDUP(COLUMNS($G:DK)/3,0)))","v":0},null,null,{"$f":"IF(DN$7=0,0,INDEX(INDIRECT(Order_Rng),ROUNDUP(COLUMNS($G:DN)/3,0)))","v":0},null,null,{"$f":"IF(DQ$7=0,0,INDEX(INDIRECT(Order_Rng),ROUNDUP(COLUMNS($G:DQ)/3,0)))","v":0},null,null,{"$f":"IF(DT$7=0,0,INDEX(INDIRECT(Order_Rng),ROUNDUP(COLUMNS($G:DT)/3,0)))","v":0},null,null,{"$f":"IF(DW$7=0,0,INDEX(INDIRECT(Order_Rng),ROUNDUP(COLUMNS($G:DW)/3,0)))","v":0},null,null,{"$f":"IF(DZ$7=0,0,INDEX(INDIRECT(Order_Rng),ROUNDUP(COLUMNS($G:DZ)/3,0)))","v":0},null,null,{"$f":"IF(EC$7=0,0,INDEX(INDIRECT(Order_Rng),ROUNDUP(COLUMNS($G:EC)/3,0)))","v":0},null,null,{"$f":"IF(EF$7=0,0,INDEX(INDIRECT(Order_Rng),ROUNDUP(COLUMNS($G:EF)/3,0)))","v":0},null,null,{"$f":"IF(EI$7=0,0,INDEX(INDIRECT(Order_Rng),ROUNDUP(COLUMNS($G:EI)/3,0)))","v":0},null,null,{"$f":"IF(EL$7=0,0,INDEX(INDIRECT(Order_Rng),ROUNDUP(COLUMNS($G:EL)/3,0)))","v":0},null,null,{"$f":"IF(EO$7=0,0,INDEX(INDIRECT(Order_Rng),ROUNDUP(COLUMNS($G:EO)/3,0)))","v":0},null,null,{"$f":"IF(ER$7=0,0,INDEX(INDIRECT(Order_Rng),ROUNDUP(COLUMNS($G:ER)/3,0)))","v":0}]
[{"$f":"IF(OR($B10=\"\",COUNTIF($B$10:$B10,$B10)>1,LEN(TRIM($B10))<>10,ISNUMBER(--MID(TRIM($B10),5,1))),\"-\",MAX(COUNT($A$9:$A9)+1))","v":"-"}]
[{"$f":"IF(OR($B11=\"\",COUNTIF($B$10:$B11,$B11)>1,LEN(TRIM($B11))<>10,ISNUMBER(--MID(TRIM($B11),5,1))),\"-\",MAX(COUNT($A$9:$A10)+1))","v":"-"},null,null,null,{"$f":"IF(D11=\"\",\"\",D11-D10)","v":""}]
[{"$f":"IF(OR($B12=\"\",COUNTIF($B$10:$B12,$B12)>1,LEN(TRIM($B12))<>10,ISNUMBER(--MID(TRIM($B12),5,1))),\"-\",MAX(COUNT($A$9:$A11)+1))","v":"-"},null,null,null,{"$f":"IF(D12=\"\",\"\",D12-D11)","v":""}]
[{"$f":"IF(OR($B13=\"\",COUNTIF($B$10:$B13,$B13)>1,LEN(TRIM($B13))<>10,ISNUMBER(--MID(TRIM($B13),5,1))),\"-\",MAX(COUNT($A$9:$A12)+1))","v":"-"},null,null,null,""]
[{"$f":"IF(OR($B14=\"\",COUNTIF($B$10:$B14,$B14)>1,LEN(TRIM($B14))<>10,ISNUMBER(--MID(TRIM($B14),5,1))),\"-\",MAX(COUNT($A$9:$A13)+1))","v":"-"},null,null,null,""]
[{"$f":"IF(OR($B15=\"\",COUNTIF($B$10:$B15,$B15)>1,LEN(TRIM($B15))<>10,ISNUMBER(--MID(TRIM($B15),5,1))),\"-\",MAX(COUNT($A$9:$A14)+1))","v":"-"},null,null,null,""]
[{"$f":"IF(OR($B16=\"\",COUNTIF($B$10:$B16,$B16)>1,LEN(TRIM($B16))<>10,ISNUMBER(--MID(TRIM($B16),5,1))),\"-\",MAX(COUNT($A$9:$A15)+1))","v":"-"},null,null,null,""]
[{"$f":"IF(OR($B17=\"\",COUNTIF($B$10:$B17,$B17)>1,LEN(TRIM($B17))<>10,ISNUMBER(--MID(TRIM($B17),5,1))),\"-\",MAX(COUNT($A$9:$A16)+1))","v":"-"},null,null,null,""]
[{"$f":"IF(OR($B18=\"\",COUNTIF($B$10:$B18,$B18)>1,LEN(TRIM($B18))<>10,ISNUMBER(--MID(TRIM($B18),5,1))),\"-\",MAX(COUNT($A$9:$A17)+1))","v":"-"},null,null,null,""]
[{"$f":"IF(OR($B19=\"\",COUNTIF($B$10:$B19,$B19)>1,LEN(TRIM($B19))<>10,ISNUMBER(--MID(TRIM($B19),5,1))),\"-\",MAX(COUNT($A$9:$A18)+1))","v":"-"},null,null,null,""]
[{"$f":"IF(OR($B20=\"\",COUNTIF($B$10:$B20,$B20)>1,LEN(TRIM($B20))<>10,ISNUMBER(--MID(TRIM($B20),5,1))),\"-\",MAX(COUNT($A$9:$A19)+1))","v":"-"},null,null,null,""]
[{"$f":"IF(OR($B21=\"\",COUNTIF($B$10:$B21,$B21)>1,LEN(TRIM($B21))<>10,ISNUMBER(--MID(TRIM($B21),5,1))),\"-\",MAX(COUNT($A$9:$A20)+1))","v":"-"},null,null,null,""]
[{"$f":"IF(OR($B22=\"\",COUNTIF($B$10:$B22,$B22)>1,LEN(TRIM($B22))<>10,ISNUMBER(--MID(TRIM($B22),5,1))),\"-\",MAX(COUNT($A$9:$A21)+1))","v":"-"},null,null,null,""]
[{"$f":"IF(OR($B23=\"\",COUNTIF($B$10:$B23,$B23)>1,LEN(TRIM($B23))<>10,ISNUMBER(--MID(TRIM($B23),5,1))),\"-\",MAX(COUNT($A$9:$A22)+1))","v":"-"},null,null,null,""]
[{"$f":"IF(OR($B24=\"\",COUNTIF($B$10:$B24,$B24)>1,LEN(TRIM($B24))<>10,ISNUMBER(--MID(TRIM($B24),5,1))),\"-\",MAX(COUNT($A$9:$A23)+1))","v":"-"},null,null,null,""]
[{"$f":"IF(OR($B25=\"\",COUNTIF($B$10:$B25,$B25)>1,LEN(TRIM($B25))<>10,ISNUMBER(--MID(TRIM($B25),5,1))),\"-\",MAX(COUNT($A$9:$A24)+1))","v":"-"},null,null,null,""]
[{"$f":"IF(OR($B26=\"\",COUNTIF($B$10:$B26,$B26)>1,LEN(TRIM($B26))<>10,ISNUMBER(--MID(TRIM($B26),5,1))),\"-\",MAX(COUNT($A$9:$A25)+1))","v":"-"},null,null,null,""]
[{"$f":"IF(OR($B27=\"\",COUNTIF($B$10:$B27,$B27)>1,LEN(TRIM($B27))<>10,ISNUMBER(--MID(TRIM($B27),5,1))),\"-\",MAX(COUNT($A$9:$A26)+1))","v":"-"},null,null,null,""]
[{"$f":"IF(OR($B28=\"\",COUNTIF($B$10:$B28,$B28)>1,LEN(TRIM($B28))<>10,ISNUMBER(--MID(TRIM($B28),5,1))),\"-\",MAX(COUNT($A$9:$A27)+1))","v":"-"},null,null,null,""]
[{"$f":"IF(OR($B29=\"\",COUNTIF($B$10:$B29,$B29)>1,LEN(TRIM($B29))<>10,ISNUMBER(--MID(TRIM($B29),5,1))),\"-\",MAX(COUNT($A$9:$A28)+1))","v":"-"},null,null,null,""]
[{"$f":"IF(OR($B30=\"\",COUNTIF($B$10:$B30,$B30)>1,LEN(TRIM($B30))<>10,ISNUMBER(--MID(TRIM($B30),5,1))),\"-\",MAX(COUNT($A$9:$A29)+1))","v":"-"},null,null,null,""]
[{"$f":"IF(OR($B31=\"\",COUNTIF($B$10:$B31,$B31)>1,LEN(TRIM($B31))<>10,ISNUMBER(--MID(TRIM($B31),5,1))),\"-\",MAX(COUNT($A$9:$A30)+1))","v":"-"},null,null,null,""]
[{"$f":"IF(OR($B32=\"\",COUNTIF($B$10:$B32,$B32)>1,LEN(TRIM($B32))<>10,ISNUMBER(--MID(TRIM($B32),5,1))),\"-\",MAX(COUNT($A$9:$A31)+1))","v":"-"},null,null,null,""]
[{"$f":"IF(OR($B33=\"\",COUNTIF($B$10:$B33,$B33)>1,LEN(TRIM($B33))<>10,ISNUMBER(--MID(TRIM($B33),5,1))),\"-\",MAX(COUNT($A$9:$A32)+1))","v":"-"},null,null,null,""]
[{"$f":"IF(OR($B34=\"\",COUNTIF($B$10:$B34,$B34)>1,LEN(TRIM($B34))<>10,ISNUMBER(--MID(TRIM($B34),5,1))),\"-\",MAX(COUNT($A$9:$A33)+1))","v":"-"},null,null,null,""]
[{"$f":"IF(OR($B35=\"\",COUNTIF($B$10:$B35,$B35)>1,LEN(TRIM($B35))<>10,ISNUMBER(--MID(TRIM($B35),5,1))),\"-\",MAX(COUNT($A$9:$A34)+1))","v":"-"},null,null,null,""]
[{"$f":"IF(OR($B36=\"\",COUNTIF($B$10:$B36,$B36)>1,LEN(TRIM($B36))<>10,ISNUMBER(--MID(TRIM($B36),5,1))),\"-\",MAX(COUNT($A$9:$A35)+1))","v":"-"},null,null,null,""]
[{"$f":"IF(OR($B37=\"\",COUNTIF($B$10:$B37,$B37)>1,LEN(TRIM($B37))<>10,ISNUMBER(--MID(TRIM($B37),5,1))),\"-\",MAX(COUNT($A$9:$A36)+1))","v":"-"},null,null,null,""]
[{"$f":"IF(OR($B38=\"\",COUNTIF($B$10:$B38,$B38)>1,LEN(TRIM($B38))<>10,ISNUMBER(--MID(TRIM($B38),5,1))),\"-\",MAX(COUNT($A$9:$A37)+1))","v":"-"},null,null,null,""]
[{"$f":"IF(OR($B39=\"\",COUNTIF($B$10:$B39,$B39)>1,LEN(TRIM($B39))<>10,ISNUMBER(--MID(TRIM($B39),5,1))),\"-\",MAX(COUNT($A$9:$A38)+1))","v":"-"},null,null,null,""]
[{"$f":"IF(OR($B40=\"\",COUNTIF($B$10:$B40,$B40)>1,LEN(TRIM($B40))<>10,ISNUMBER(--MID(TRIM($B40),5,1))),\"-\",MAX(COUNT($A$9:$A39)+1))","v":"-"},null,null,null,""]
[{"$f":"IF(OR($B41=\"\",COUNTIF($B$10:$B41,$B41)>1,LEN(TRIM($B41))<>10,ISNUMBER(--MID(TRIM($B41),5,1))),\"-\",MAX(COUNT($A$9:$A40)+1))","v":"-"},null,null,null,""]
[{"$f":"IF(OR($B42=\"\",COUNTIF($B$10:$B42,$B42)>1,LEN(TRIM($B42))<>10,ISNUMBER(--MID(TRIM($B42),5,1))),\"-\",MAX(COUNT($A$9:$A41)+1))","v":"-"},null,null,null,""]
[{"$f":"IF(OR($B43=\"\",COUNTIF($B$10:$B43,$B43)>1,LEN(TRIM($B43))<>10,ISNUMBER(--MID(TRIM($B43),5,1))),\"-\",MAX(COUNT($A$9:$A42)+1))","v":"-"},null,null,null,""]
[{"$f":"IF(OR($B44=\"\",COUNTIF($B$10:$B44,$B44)>1,LEN(TRIM($B44))<>10,ISNUMBER(--MID(TRIM($B44),5,1))),\"-\",MAX(COUNT($A$9:$A43)+1))","v":"-"},null,null,null,""]
[{"$f":"IF(OR($B45=\"\",COUNTIF($B$10:$B45,$B45)>1,LEN(TRIM($B45))<>10,ISNUMBER(--MID(TRIM($B45),5,1))),\"-\",MAX(COUNT($A$9:$A44)+1))","v":"-"},null,null,null,""]
[{"$f":"IF(OR($B46=\"\",COUNTIF($B$10:$B46,$B46)>1,LEN(TRIM($B46))<>10,ISNUMBER(--MID(TRIM($B46),5,1))),\"-\",MAX(COUNT($A$9:$A45)+1))","v":"-"},null,null,null,""]
[{"$f":"IF(OR($B47=\"\",COUNTIF($B$10:$B47,$B47)>1,LEN(TRIM($B47))<>10,ISNUMBER(--MID(TRIM($B47),5,1))),\"-\",MAX(COUNT($A$9:$A46)+1))","v":"-"},null,null,null,""]
[{"$f":"IF(OR($B48=\"\",COUNTIF($B$10:$B48,$B48)>1,LEN(TRIM($B48))<>10,ISNUMBER(--MID(TRIM($B48),5,1))),\"-\",MAX(COUNT($A$9:$A47)+1))","v":"-"},null,null,null,""]
[{"$f":"IF(OR($B49=\"\",COUNTIF($B$10:$B49,$B49)>1,LEN(TRIM($B49))<>10,ISNUMBER(--MID(TRIM($B49),5,1))),\"-\",MAX(COUNT($A$9:$A48)+1))","v":"-"},null,null,null,""]
[{"$f":"IF(OR($B50=\"\",COUNTIF($B$10:$B50,$B50)>1,LEN(TRIM($B50))<>10,ISNUMBER(--MID(TRIM($B50),5,1))),\"-\",MAX(COUNT($A$9:$A49)+1))","v":"-"},null,null,null,""]
[{"$f":"IF(OR($B51=\"\",COUNTIF($B$10:$B51,$B51)>1,LEN(TRIM($B51))<>10,ISNUMBER(--MID(TRIM($B51),5,1))),\"-\",MAX(COUNT($A$9:$A50)+1))","v":"-"},null,null,null,""]
[{"$f":"IF(OR($B52=\"\",COUNTIF($B$10:$B52,$B52)>1,LEN(TRIM($B52))<>10,ISNUMBER(--MID(TRIM($B52),5,1))),\"-\",MAX(COUNT($A$9:$A51)+1))","v":"-"},null,null,null,""]
[{"$f":"IF(OR($B53=\"\",COUNTIF($B$10:$B53,$B53)>1,LEN(TRIM($B53))<>10,ISNUMBER(--MID(TRIM($B53),5,1))),\"-\",MAX(COUNT($A$9:$A52)+1))","v":"-"},null,null,null,""]
[{"$f":"IF(OR($B54=\"\",COUNTIF($B$10:$B54,$B54)>1,LEN(TRIM($B54))<>10,ISNUMBER(--MID(TRIM($B54),5,1))),\"-\",MAX(COUNT($A$9:$A53)+1))","v":"-"},null,null,null,""]
[{"$f":"IF(OR($B55=\"\",COUNTIF($B$10:$B55,$B55)>1,LEN(TRIM($B55))<>10,ISNUMBER(--MID(TRIM($B55),5,1))),\"-\",MAX(COUNT($A$9:$A54)+1))","v":"-"},null,null,null,""]
[{"$f":"IF(OR($B56=\"\",COUNTIF($B$10:$B56,$B56)>1,LEN(TRIM($B56))<>10,ISNUMBER(--MID(TRIM($B56),5,1))),\"-\",MAX(COUNT($A$9:$A55)+1))","v":"-"},null,null,null,""]
[{"$f":"IF(OR($B57=\"\",COUNTIF($B$10:$B57,$B57)>1,LEN(TRIM($B57))<>10,ISNUMBER(--MID(TRIM($B57),5,1))),\"-\",MAX(COUNT($A$9:$A56)+1))","v":"-"},null,null,null,""]
[{"$f":"IF(OR($B58=\"\",COUNTIF($B$10:$B58,$B58)>1,LEN(TRIM($B58))<>10,ISNUMBER(--MID(TRIM($B58),5,1))),\"-\",MAX(COUNT($A$9:$A57)+1))","v":"-"},null,null,null,""]
[{"$f":"IF(OR($B59=\"\",COUNTIF($B$10:$B59,$B59)>1,LEN(TRIM($B59))<>10,ISNUMBER(--MID(TRIM($B59),5,1))),\"-\",MAX(COUNT($A$9:$A58)+1))","v":"-"},null,null,null,""]
[{"$f":"IF(OR($B60=\"\",COUNTIF($B$10:$B60,$B60)>1,LEN(TRIM($B60))<>10,ISNUMBER(--MID(TRIM($B60),5,1))),\"-\",MAX(COUNT($A$9:$A59)+1))","v":"-"},null,null,null,""]
[{"$f":"IF(OR($B61=\"\",COUNTIF($B$10:$B61,$B61)>1,LEN(TRIM($B61))<>10,ISNUMBER(--MID(TRIM($B61),5,1))),\"-\",MAX(COUNT($A$9:$A60)+1))","v":"-"},null,null,null,""]
[{"$f":"IF(OR($B62=\"\",COUNTIF($B$10:$B62,$B62)>1,LEN(TRIM($B62))<>10,ISNUMBER(--MID(TRIM($B62),5,1))),\"-\",MAX(COUNT($A$9:$A61)+1))","v":"-"},null,null,null,""]
[{"$f":"IF(OR($B63=\"\",COUNTIF($B$10:$B63,$B63)>1,LEN(TRIM($B63))<>10,ISNUMBER(--MID(TRIM($B63),5,1))),\"-\",MAX(COUNT($A$9:$A62)+1))","v":"-"},null,null,null,""]
[{"$f":"IF(OR($B64=\"\",COUNTIF($B$10:$B64,$B64)>1,LEN(TRIM($B64))<>10,ISNUMBER(--MID(TRIM($B64),5,1))),\"-\",MAX(COUNT($A$9:$A63)+1))","v":"-"},null,null,null,""]
[{"$f":"IF(OR($B65=\"\",COUNTIF($B$10:$B65,$B65)>1,LEN(TRIM($B65))<>10,ISNUMBER(--MID(TRIM($B65),5,1))),\"-\",MAX(COUNT($A$9:$A64)+1))","v":"-"},null,null,null,""]
[{"$f":"IF(OR($B66=\"\",COUNTIF($B$10:$B66,$B66)>1,LEN(TRIM($B66))<>10,ISNUMBER(--MID(TRIM($B66),5,1))),\"-\",MAX(COUNT($A$9:$A65)+1))","v":"-"},null,null,null,""]
[{"$f":"IF(OR($B67=\"\",COUNTIF($B$10:$B67,$B67)>1,LEN(TRIM($B67))<>10,ISNUMBER(--MID(TRIM($B67),5,1))),\"-\",MAX(COUNT($A$9:$A66)+1))","v":"-"},null,null,null,""]
[{"$f":"IF(OR($B68=\"\",COUNTIF($B$10:$B68,$B68)>1,LEN(TRIM($B68))<>10,ISNUMBER(--MID(TRIM($B68),5,1))),\"-\",MAX(COUNT($A$9:$A67)+1))","v":"-"},null,null,null,""]
[{"$f":"IF(OR($B69=\"\",COUNTIF($B$10:$B69,$B69)>1,LEN(TRIM($B69))<>10,ISNUMBER(--MID(TRIM($B69),5,1))),\"-\",MAX(COUNT($A$9:$A68)+1))","v":"-"},null,null,null,""]
[{"$f":"IF(OR($B70=\"\",COUNTIF($B$10:$B70,$B70)>1,LEN(TRIM($B70))<>10,ISNUMBER(--MID(TRIM($B70),5,1))),\"-\",MAX(COUNT($A$9:$A69)+1))","v":"-"},null,null,null,""]
[{"$f":"IF(OR($B71=\"\",COUNTIF($B$10:$B71,$B71)>1,LEN(TRIM($B71))<>10,ISNUMBER(--MID(TRIM($B71),5,1))),\"-\",MAX(COUNT($A$9:$A70)+1))","v":"-"},null,null,null,""]
[{"$f":"IF(OR($B72=\"\",COUNTIF($B$10:$B72,$B72)>1,LEN(TRIM($B72))<>10,ISNUMBER(--MID(TRIM($B72),5,1))),\"-\",MAX(COUNT($A$9:$A71)+1))","v":"-"},null,null,null,""]
[{"$f":"IF(OR($B73=\"\",COUNTIF($B$10:$B73,$B73)>1,LEN(TRIM($B73))<>10,ISNUMBER(--MID(TRIM($B73),5,1))),\"-\",MAX(COUNT($A$9:$A72)+1))","v":"-"},null,null,null,""]
[{"$f":"IF(OR($B74=\"\",COUNTIF($B$10:$B74,$B74)>1,LEN(TRIM($B74))<>10,ISNUMBER(--MID(TRIM($B74),5,1))),\"-\",MAX(COUNT($A$9:$A73)+1))","v":"-"},null,null,null,""]
[{"$f":"IF(OR($B75=\"\",COUNTIF($B$10:$B75,$B75)>1,LEN(TRIM($B75))<>10,ISNUMBER(--MID(TRIM($B75),5,1))),\"-\",MAX(COUNT($A$9:$A74)+1))","v":"-"},null,null,null,""]
[{"$f":"IF(OR($B76=\"\",COUNTIF($B$10:$B76,$B76)>1,LEN(TRIM($B76))<>10,ISNUMBER(--MID(TRIM($B76),5,1))),\"-\",MAX(COUNT($A$9:$A75)+1))","v":"-"},null,null,null,{"$f":"IF(D76=\"\",\"\",D76-D75)","v":""}]
[{"$f":"IF(OR($B77=\"\",COUNTIF($B$10:$B77,$B77)>1,LEN(TRIM($B77))<>10,ISNUMBER(--MID(TRIM($B77),5,1))),\"-\",MAX(COUNT($A$9:$A76)+1))","v":"-"},null,null,null,""]
[{"$f":"IF(OR($B78=\"\",COUNTIF($B$10:$B78,$B78)>1,LEN(TRIM($B78))<>10,ISNUMBER(--MID(TRIM($B78),5,1))),\"-\",MAX(COUNT($A$9:$A77)+1))","v":"-"},null,null,null,""]
[{"$f":"IF(OR($B79=\"\",COUNTIF($B$10:$B79,$B79)>1,LEN(TRIM($B79))<>10,ISNUMBER(--MID(TRIM($B79),5,1))),\"-\",MAX(COUNT($A$9:$A78)+1))","v":"-"},null,null,null,""]
["รวมของขาย|ของเสีย|เหลือบนเชลฟ์",null,null,null,null,null,{"$f":"SUM(G10:G79)","v":0},0,0,{"$f":"SUM(J10:J79)","v":0},0,0,0,0,0,0,0,0,0,0,0,0,0,0,0,0,0,0,0,0,0,0,0,0,0,0,0,0,0,0,0,0,0,0,0,0,0,0,0,0,0,0,0,0,0,0,0,0,0,0,0,0,0,0,0,0,0,0,0,0,0,0,0,{"$f":"SUM(BV10:BV79)","v":0},0,0,0,0,0,0,0,0,0,0,0,0,0,0,0,0,0,0,0,0,0,0,0,0,0,0,0,0,0,0,0,0,0,0,0,0,0,0,0,0,0,0,0,0,0,0,0,0,0,0,0,0,0,0,0,0,0,0,0,0,0,{"$f":"SUM(EF10:EF79)","v":0},0,0,{"$f":"SUM(EI10:EI79)","v":0},0,0,0,0,0,{"$f":"SUM(EO10:EO79)","v":0},0,0,0,0,0,"รวมเงินเชื่อ","รวมเงินสด","ภาษี","รวมยอดขาย"]
["ของเหลือ",null,null,null,null,null,{"$f":"G80+H80-G9","v":0},null,null,{"$f":"J80+K80-J9","v":0},null,null,{"$f":"M80+N80-M9","v":0},null,null,{"$f":"P80+Q80-P9","v":0},null,null,{"$f":"S80+T80-S9","v":0},null,null,{"$f":"V80+W80-V9","v":0},null,null,{"$f":"Y80+Z80-Y9","v":0},null,null,{"$f":"AB80+AC80-AB9","v":0},null,null,{"$f":"AE80+AF80-AE9","v":0},null,null,{"$f":"AH80+AI80-AH9","v":0},null,null,{"$f":"AK80+AL80-AK9","v":0},null,null,{"$f":"AN80+AO80-AN9","v":0},null,null,{"$f":"AQ80+AR80-AQ9","v":0},null,null,{"$f":"AT80+AU80-AT9","v":0},null,null,{"$f":"AW80+AX80-AW9","v":0},null,null,{"$f":"AZ80+BA80-AZ9","v":0},null,null,{"$f":"BC80+BD80-BC9","v":0},null,null,{"$f":"BF80+BG80-BF9","v":0},null,null,{"$f":"BI80+BJ80-BI9","v":0},null,null,{"$f":"BL80+BM80-BL9","v":0},null,null,{"$f":"BO80+BP80-BO9","v":0},null,null,{"$f":"BR80+BS80-BR9","v":0},null,null,{"$f":"BU80+BV80-BU9","v":0},null,null,{"$f":"BX80+BY80-BX9","v":0},null,null,{"$f":"CA80+CB80-CA9","v":0},null,null,{"$f":"CD80+CE80-CD9","v":0},null,null,{"$f":"CG80+CH80-CG9","v":0},null,null,{"$f":"CJ80+CK80-CJ9","v":0},null,null,{"$f":"CM80+CN80-CM9","v":0},null,null,{"$f":"CP80+CQ80-CP9","v":0},null,null,{"$f":"CS80+CT80-CS9","v":0},null,null,{"$f":"CV80+CW80-CV9","v":0},null,null,{"$f":"CY80+CZ80-CY9","v":0},null,null,{"$f":"DB80+DC80-DB9","v":0},null,null,{"$f":"DE80+DF80-DE9","v":0},null,null,{"$f":"DH80+DI80-DH9","v":0},null,null,{"$f":"DK80+DL80-DK9","v":0},null,null,{"$f":"DN80+DO80-DN9","v":0},null,null,{"$f":"DQ80+DR80-DQ9","v":0},null,null,{"$f":"DT80+DU80-DT9","v":0},null,null,{"$f":"DW80+DX80-DW9","v":0},null,null,{"$f":"DZ80+EA80-DZ9","v":0},null,null,{"$f":"EC80+ED80-EC9","v":0},null,null,{"$f":"EF80+EG80-EF9","v":0},null,null,{"$f":"EI80+EJ80-EI9","v":0},null,null,{"$f":"EL80+EM80-EL9","v":0},null,null,{"$f":"EO80+EP80-EO9","v":0},null,null,{"$f":"ER80+ES80-ER9","v":0},null,null,{"$f":"SUM(EU10:EU79)","v":0},{"$f":"SUM(EV10:EV79)","v":0},{"$f":"SUM(EW10:EW79)","v":0},{"$f":"SUM(EX10:EX79)","v":0}]
["เฉลี่ย",null,null,"เหลือ/เสีย(จริง)",null,null,{"$f":"INDIRECT(\"F\"&ROW($G$87)+ROUNDUP(COLUMNS($G:G)/3,0))","v":0},{"$f":"INDIRECT(\"G\"&ROW($G$87)+ROUNDUP(COLUMNS($G:H)/3,0))","v":0},null,{"$f":"INDIRECT(\"F\"&ROW($G$87)+ROUNDUP(COLUMNS($G:J)/3,0))","v":0},{"$f":"INDIRECT(\"G\"&ROW($G$87)+ROUNDUP(COLUMNS($G:K)/3,0))","v":0},null,{"$f":"INDIRECT(\"F\"&ROW($G$87)+ROUNDUP(COLUMNS($G:M)/3,0))","v":0},{"$f":"INDIRECT(\"G\"&ROW($G$87)+ROUNDUP(COLUMNS($G:N)/3,0))","v":0},null,{"$f":"INDIRECT(\"F\"&ROW($G$87)+ROUNDUP(COLUMNS($G:P)/3,0))","v":0},{"$f":"INDIRECT(\"G\"&ROW($G$87)+ROUNDUP(COLUMNS($G:Q)/3,0))","v":0},null,{"$f":"INDIRECT(\"F\"&ROW($G$87)+ROUNDUP(COLUMNS($G:S)/3,0))","v":0},{"$f":"INDIRECT(\"G\"&ROW($G$87)+ROUNDUP(COLUMNS($G:T)/3,0))","v":0},null,{"$f":"INDIRECT(\"F\"&ROW($G$87)+ROUNDUP(COLUMNS($G:V)/3,0))","v":0},{"$f":"INDIRECT(\"G\"&ROW($G$87)+ROUNDUP(COLUMNS($G:W)/3,0))","v":0},null,{"$f":"INDIRECT(\"F\"&ROW($G$87)+ROUNDUP(COLUMNS($G:Y)/3,0))","v":0},{"$f":"INDIRECT(\"G\"&ROW($G$87)+ROUNDUP(COLUMNS($G:Z)/3,0))","v":0},null,{"$f":"INDIRECT(\"F\"&ROW($G$87)+ROUNDUP(COLUMNS($G:AB)/3,0))","v":0},{"$f":"INDIRECT(\"G\"&ROW($G$87)+ROUNDUP(COLUMNS($G:AC)/3,0))","v":0},null,{"$f":"INDIRECT(\"F\"&ROW($G$87)+ROUNDUP(COLUMNS($G:AE)/3,0))","v":0},{"$f":"INDIRECT(\"G\"&ROW($G$87)+ROUNDUP(COLUMNS($G:AF)/3,0))","v":0},null,{"$f":"INDIRECT(\"F\"&ROW($G$87)+ROUNDUP(COLUMNS($G:AH)/3,0))","v":0},{"$f":"INDIRECT(\"G\"&ROW($G$87)+ROUNDUP(COLUMNS($G:AI)/3,0))","v":0},null,{"$f":"INDIRECT(\"F\"&ROW($G$87)+ROUNDUP(COLUMNS($G:AK)/3,0))","v":0},{"$f":"INDIRECT(\"G\"&ROW($G$87)+ROUNDUP(COLUMNS($G:AL)/3,0))","v":0},null,{"$f":"INDIRECT(\"F\"&ROW($G$87)+ROUNDUP(COLUMNS($G:AN)/3,0))","v":0},{"$f":"INDIRECT(\"G\"&ROW($G$87)+ROUNDUP(COLUMNS($G:AO)/3,0))","v":0},null,{"$f":"INDIRECT(\"F\"&ROW($G$87)+ROUNDUP(COLUMNS($G:AQ)/3,0))","v":0},{"$f":"INDIRECT(\"G\"&ROW($G$87)+ROUNDUP(COLUMNS($G:AR)/3,0))","v":0},null,{"$f":"INDIRECT(\"F\"&ROW($G$87)+ROUNDUP(COLUMNS($G:AT)/3,0))","v":0},{"$f":"INDIRECT(\"G\"&ROW($G$87)+ROUNDUP(COLUMNS($G:AU)/3,0))","v":0},null,{"$f":"INDIRECT(\"F\"&ROW($G$87)+ROUNDUP(COLUMNS($G:AW)/3,0))","v":0},{"$f":"INDIRECT(\"G\"&ROW($G$87)+ROUNDUP(COLUMNS($G:AX)/3,0))","v":0},null,{"$f":"INDIRECT(\"F\"&ROW($G$87)+ROUNDUP(COLUMNS($G:AZ)/3,0))","v":0},{"$f":"INDIRECT(\"G\"&ROW($G$87)+ROUNDUP(COLUMNS($G:BA)/3,0))","v":0},null,{"$f":"INDIRECT(\"F\"&ROW($G$87)+ROUNDUP(COLUMNS($G:BC)/3,0))","v":0},{"$f":"INDIRECT(\"G\"&ROW($G$87)+ROUNDUP(COLUMNS($G:BD)/3,0))","v":0},null,{"$f":"INDIRECT(\"F\"&ROW($G$87)+ROUNDUP(COLUMNS($G:BF)/3,0))","v":0},{"$f":"INDIRECT(\"G\"&ROW($G$87)+ROUNDUP(COLUMNS($G:BG)/3,0))","v":0},null,{"$f":"INDIRECT(\"F\"&ROW($G$87)+ROUNDUP(COLUMNS($G:BI)/3,0))","v":0},{"$f":"INDIRECT(\"G\"&ROW($G$87)+ROUNDUP(COLUMNS($G:BJ)/3,0))","v":0},null,{"$f":"INDIRECT(\"F\"&ROW($G$87)+ROUNDUP(COLUMNS($G:BL)/3,0))","v":0},{"$f":"INDIRECT(\"G\"&ROW($G$87)+ROUNDUP(COLUMNS($G:BM)/3,0))","v":0},null,{"$f":"INDIRECT(\"F\"&ROW($G$87)+ROUNDUP(COLUMNS($G:BO)/3,0))","v":0},{"$f":"INDIRECT(\"G\"&ROW($G$87)+ROUNDUP(COLUMNS($G:BP)/3,0))","v":0},null,{"$f":"INDIRECT(\"F\"&ROW($G$87)+ROUNDUP(COLUMNS($G:BR)/3,0))","v":0},{"$f":"INDIRECT(\"G\"&ROW($G$87)+ROUNDUP(COLUMNS($G:BS)/3,0))","v":0},null,{"$f":"INDIRECT(\"F\"&ROW($G$87)+ROUNDUP(COLUMNS($G:BU)/3,0))","v":0},{"$f":"INDIRECT(\"G\"&ROW($G$87)+ROUNDUP(COLUMNS($G:BV)/3,0))","v":0},null,{"$f":"INDIRECT(\"F\"&ROW($G$87)+ROUNDUP(COLUMNS($G:BX)/3,0))","v":0},{"$f":"INDIRECT(\"G\"&ROW($G$87)+ROUNDUP(COLUMNS($G:BY)/3,0))","v":0},null,{"$f":"INDIRECT(\"F\"&ROW($G$87)+ROUNDUP(COLUMNS($G:CA)/3,0))","v":0},{"$f":"INDIRECT(\"G\"&ROW($G$87)+ROUNDUP(COLUMNS($G:CB)/3,0))","v":0},null,{"$f":"INDIRECT(\"F\"&ROW($G$87)+ROUNDUP(COLUMNS($G:CD)/3,0))","v":0},{"$f":"INDIRECT(\"G\"&ROW($G$87)+ROUNDUP(COLUMNS($G:CE)/3,0))","v":0},null,{"$f":"INDIRECT(\"F\"&ROW($G$87)+ROUNDUP(COLUMNS($G:CG)/3,0))","v":0},{"$f":"INDIRECT(\"G\"&ROW($G$87)+ROUNDUP(COLUMNS($G:CH)/3,0))","v":0},null,{"$f":"INDIRECT(\"F\"&ROW($G$87)+ROUNDUP(COLUMNS($G:CJ)/3,0))","v":0},{"$f":"INDIRECT(\"G\"&ROW($G$87)+ROUNDUP(COLUMNS($G:CK)/3,0))","v":0},null,{"$f":"INDIRECT(\"F\"&ROW($G$87)+ROUNDUP(COLUMNS($G:CM)/3,0))","v":0},{"$f":"INDIRECT(\"G\"&ROW($G$87)+ROUNDUP(COLUMNS($G:CN)/3,0))","v":0},null,{"$f":"INDIRECT(\"F\"&ROW($G$87)+ROUNDUP(COLUMNS($G:CP)/3,0))","v":0},{"$f":"INDIRECT(\"G\"&ROW($G$87)+ROUNDUP(COLUMNS($G:CQ)/3,0))","v":0},null,{"$f":"INDIRECT(\"F\"&ROW($G$87)+ROUNDUP(COLUMNS($G:CS)/3,0))","v":0},{"$f":"INDIRECT(\"G\"&ROW($G$87)+ROUNDUP(COLUMNS($G:CT)/3,0))","v":0},null,{"$f":"INDIRECT(\"F\"&ROW($G$87)+ROUNDUP(COLUMNS($G:CV)/3,0))","v":0},{"$f":"INDIRECT(\"G\"&ROW($G$87)+ROUNDUP(COLUMNS($G:CW)/3,0))","v":0},null,{"$f":"INDIRECT(\"F\"&ROW($G$87)+ROUNDUP(COLUMNS($G:CY)/3,0))","v":0},{"$f":"INDIRECT(\"G\"&ROW($G$87)+ROUNDUP(COLUMNS($G:CZ)/3,0))","v":0},null,{"$f":"INDIRECT(\"F\"&ROW($G$87)+ROUNDUP(COLUMNS($G:DB)/3,0))","v":0},{"$f":"INDIRECT(\"G\"&ROW($G$87)+ROUNDUP(COLUMNS($G:DC)/3,0))","v":0},null,{"$f":"INDIRECT(\"F\"&ROW($G$87)+ROUNDUP(COLUMNS($G:DE)/3,0))","v":0},{"$f":"INDIRECT(\"G\"&ROW($G$87)+ROUNDUP(COLUMNS($G:DF)/3,0))","v":0},null,{"$f":"INDIRECT(\"F\"&ROW($G$87)+ROUNDUP(COLUMNS($G:DH)/3,0))","v":0},{"$f":"INDIRECT(\"G\"&ROW($G$87)+ROUNDUP(COLUMNS($G:DI)/3,0))","v":0},null,{"$f":"INDIRECT(\"F\"&ROW($G$87)+ROUNDUP(COLUMNS($G:DK)/3,0))","v":0},{"$f":"INDIRECT(\"G\"&ROW($G$87)+ROUNDUP(COLUMNS($G:DL)/3,0))","v":0},null,{"$f":"INDIRECT(\"F\"&ROW($G$87)+ROUNDUP(COLUMNS($G:DN)/3,0))","v":0},{"$f":"INDIRECT(\"G\"&ROW($G$87)+ROUNDUP(COLUMNS($G:DO)/3,0))","v":0},null,{"$f":"INDIRECT(\"F\"&ROW($G$87)+ROUNDUP(COLUMNS($G:DQ)/3,0))","v":0},{"$f":"INDIRECT(\"G\"&ROW($G$87)+ROUNDUP(COLUMNS($G:DR)/3,0))","v":0},null,{"$f":"INDIRECT(\"F\"&ROW($G$87)+ROUNDUP(COLUMNS($G:DT)/3,0))","v":0},{"$f":"INDIRECT(\"G\"&ROW($G$87)+ROUNDUP(COLUMNS($G:DU)/3,0))","v":0},null,{"$f":"INDIRECT(\"F\"&ROW($G$87)+ROUNDUP(COLUMNS($G:DW)/3,0))","v":0},{"$f":"INDIRECT(\"G\"&ROW($G$87)+ROUNDUP(COLUMNS($G:DX)/3,0))","v":0},null,{"$f":"INDIRECT(\"F\"&ROW($G$87)+ROUNDUP(COLUMNS($G:DZ)/3,0))","v":0},{"$f":"INDIRECT(\"G\"&ROW($G$87)+ROUNDUP(COLUMNS($G:EA)/3,0))","v":0},null,{"$f":"INDIRECT(\"F\"&ROW($G$87)+ROUNDUP(COLUMNS($G:EC)/3,0))","v":0},{"$f":"INDIRECT(\"G\"&ROW($G$87)+ROUNDUP(COLUMNS($G:ED)/3,0))","v":0},null,{"$f":"INDIRECT(\"F\"&ROW($G$87)+ROUNDUP(COLUMNS($G:EF)/3,0))","v":0},{"$f":"INDIRECT(\"G\"&ROW($G$87)+ROUNDUP(COLUMNS($G:EG)/3,0))","v":0},null,{"$f":"INDIRECT(\"F\"&ROW($G$87)+ROUNDUP(COLUMNS($G:EI)/3,0))","v":0},{"$f":"INDIRECT(\"G\"&ROW($G$87)+ROUNDUP(COLUMNS($G:EJ)/3,0))","v":0},null,{"$f":"INDIRECT(\"F\"&ROW($G$87)+ROUNDUP(COLUMNS($G:EL)/3,0))","v":0},{"$f":"INDIRECT(\"G\"&ROW($G$87)+ROUNDUP(COLUMNS($G:EM)/3,0))","v":0},null,{"$f":"INDIRECT(\"F\"&ROW($G$87)+ROUNDUP(COLUMNS($G:EO)/3,0))","v":0},{"$f":"INDIRECT(\"G\"&ROW($G$87)+ROUNDUP(COLUMNS($G:EP)/3,0))","v":0},null,{"$f":"INDIRECT(\"F\"&ROW($G$87)+ROUNDUP(COLUMNS($G:ER)/3,0))","v":0},{"$f":"INDIRECT(\"G\"&ROW($G$87)+ROUNDUP(COLUMNS($G:ES)/3,0))","v":0},null,{"$f":"EU81+EV81","v":0}]
["เวลากลับถึงสำนักงานเช็คของเสีย",null,null,{"$f":"D139","v":"00:00:00"},null,"ผลต่าง",{"$f":"G82+H82+G80-G9","v":0},null,null,{"$f":"J82+K82+J80-J9","v":0},null,null,{"$f":"M82+N82+M80-M9","v":0},null,null,{"$f":"P82+Q82+P80-P9","v":0},null,null,{"$f":"S82+T82+S80-S9","v":0},null,null,{"$f":"V82+W82+V80-V9","v":0},null,null,{"$f":"Y82+Z82+Y80-Y9","v":0},null,null,{"$f":"AB82+AC82+AB80-AB9","v":0},null,null,{"$f":"AE82+AF82+AE80-AE9","v":0},null,null,{"$f":"AH82+AI82+AH80-AH9","v":0},null,null,{"$f":"AK82+AL82+AK80-AK9","v":0},null,null,{"$f":"AN82+AO82+AN80-AN9","v":0},null,null,{"$f":"AQ82+AR82+AQ80-AQ9","v":0},null,null,{"$f":"AT82+AU82+AT80-AT9","v":0},null,null,{"$f":"AW82+AX82+AW80-AW9","v":0},null,null,{"$f":"AZ82+BA82+AZ80-AZ9","v":0},null,null,{"$f":"BC82+BD82+BC80-BC9","v":0},null,null,{"$f":"BF82+BG82+BF80-BF9","v":0},null,null,{"$f":"BI82+BJ82+BI80-BI9","v":0},null,null,{"$f":"BL82+BM82+BL80-BL9","v":0},null,null,{"$f":"BO82+BP82+BO80-BO9","v":0},null,null,{"$f":"BR82+BS82+BR80-BR9","v":0},null,null,{"$f":"BU82+BV82+BU80-BU9","v":0},null,null,{"$f":"BX82+BY82+BX80-BX9","v":0},null,null,{"$f":"CA82+CB82+CA80-CA9","v":0},null,null,{"$f":"CD82+CE82+CD80-CD9","v":0},null,null,{"$f":"CG82+CH82+CG80-CG9","v":0},null,null,{"$f":"CJ82+CK82+CJ80-CJ9","v":0},null,null,{"$f":"CM82+CN82+CM80-CM9","v":0},null,null,{"$f":"CP82+CQ82+CP80-CP9","v":0},null,null,{"$f":"CS82+CT82+CS80-CS9","v":0},null,null,{"$f":"CV82+CW82+CV80-CV9","v":0},null,null,{"$f":"CY82+CZ82+CY80-CY9","v":0},null,null,{"$f":"DB82+DC82+DB80-DB9","v":0},null,null,{"$f":"DE82+DF82+DE80-DE9","v":0},null,null,{"$f":"DH82+DI82+DH80-DH9","v":0},null,null,{"$f":"DK82+DL82+DK80-DK9","v":0},null,null,{"$f":"DN82+DO82+DN80-DN9","v":0},null,null,{"$f":"DQ82+DR82+DQ80-DQ9","v":0},null,null,{"$f":"DT82+DU82+DT80-DT9","v":0},null,null,{"$f":"DW82+DX82+DW80-DW9","v":0},null,null,{"$f":"DZ82+EA82+DZ80-DZ9","v":0},null,null,{"$f":"EC82+ED82+EC80-EC9","v":0},null,null,{"$f":"EF82+EG82+EF80-EF9","v":0},null,null,{"$f":"EI82+EJ82+EI80-EI9","v":0},null,null,{"$f":"EL82+EM82+EL80-EL9","v":0},null,null,{"$f":"EO82+EP82+EO80-EO9","v":0},null,null,{"$f":"ER82+ES82+ER80-ER9","v":0}]
["เป็นเงิน",null,null,null,null,null,{"$f":"G8*G83","v":0},null,null,{"$f":"J8*J83","v":0},null,null,{"$f":"M8*M83","v":0},null,null,{"$f":"P8*P83","v":0},null,null,{"$f":"S8*S83","v":0},null,null,{"$f":"V8*V83","v":0},null,null,{"$f":"Y8*Y83","v":0},null,null,{"$f":"AB8*AB83","v":0},null,null,{"$f":"AE8*AE83","v":0},null,null,{"$f":"AH8*AH83","v":0},null,null,{"$f":"AK8*AK83","v":0},null,null,{"$f":"AN8*AN83","v":0},null,null,{"$f":"AQ8*AQ83","v":0},null,null,{"$f":"AT8*AT83","v":0},null,null,{"$f":"AW8*AW83","v":0},null,null,{"$f":"AZ8*AZ83","v":0},null,null,{"$f":"BC8*BC83","v":0},null,null,{"$f":"BF8*BF83","v":0},null,null,{"$f":"BI8*BI83","v":0},null,null,{"$f":"BL8*BL83","v":0},null,null,{"$f":"BO8*BO83","v":0},null,null,{"$f":"BR8*BR83","v":0},null,null,{"$f":"BU8*BU83","v":0},null,null,{"$f":"BX8*BX83","v":0},null,null,{"$f":"CA8*CA83","v":0},null,null,{"$f":"CD8*CD83","v":0},null,null,{"$f":"CG8*CG83","v":0},null,null,{"$f":"CJ8*CJ83","v":0},null,null,{"$f":"CM8*CM83","v":0},null,null,{"$f":"CP8*CP83","v":0},null,null,{"$f":"CS8*CS83","v":0},null,null,{"$f":"CV8*CV83","v":0},null,null,{"$f":"CY8*CY83","v":0},null,null,{"$f":"DB8*DB83","v":0},null,null,{"$f":"DE8*DE83","v":0},null,null,{"$f":"DH8*DH83","v":0},null,null,{"$f":"DK8*DK83","v":0},null,null,{"$f":"DN8*DN83","v":0},null,null,{"$f":"DQ8*DQ83","v":0},null,null,{"$f":"DT8*DT83","v":0},null,null,{"$f":"DW8*DW83","v":0},null,null,0,null,null,{"$f":"EC8*EC83","v":0},null,null,{"$f":"EF8*EF83","v":0},null,null,{"$f":"EI8*EI83","v":0},null,null,{"$f":"EL8*EL83","v":0},null,null,{"$f":"EO8*EO83","v":0},null,null,{"$f":"ER8*ER83","v":0},null,null,{"$f":"$AP$98","v":0}]
[null,null,null,"ผู้จัดทำ……………………………………………………………………",null,null,null,null,null,null,null,null,null,null,null,null,null,null,null,null,null,null,null,"ผู้ตรวจ(ผจก.)………………………………………………………………………………."]
[null,null,"ใบจ่ายสินค้า",null,null,null,null,null,null,null,null,null,null,null,null,null,null,{"$f":"IF(ISODD(COLUMN()),MAX($F$86:Q$86)+1,\"\")","v":""}]
["ราคา","ลำดับ","รายการ","ยกมา","เบิก","เหลือ","เสีย","โอนเข้า","โอนออก","ชำรุด","รวม",null,"ขาย",null,"ขาด/เกิน",null,"บาท",null,null,null,"ขายได้",null,"ควรเบิก",null,"หมายเหตุ",null,null,null,"เสีย PDA","เสียจริง","เหลือ PDA","ผลต่าง","เหลือลูกค้า","หมายเหตุ",null,null,null,null,"Price","Quantity","Baht","Deduct"]
[{"$f":"IF(B88=\"\",0,INDEX(Price_List,ROWS($88:88)))","v":20},{"$f":"IF($C88=\"\",\"\",COUNTA($C$88:$C88))","v":1},{"$f":"IF(INDEX(INDIRECT(\"Product_List\"),ROWS($88:88))=\"\",\"\",INDEX(INDIRECT(\"Product_List\"),ROWS($88:88)))","v":"01-ขนมปังหมูหยองน้ำสลัด"},{"$f":"ยอดยกมา","v":0},null,null,null,null,null,null,{"$f":"D88+E88+J88-I88+H88","v":0},null,{"$f":"INDIRECT(ADDRESS(ROW(A$80),ROW()-ROW(A$80)+(ROWS($88:88)-1)*2-1,4))","v":0},null,{"$f":"F88+G88+M88+J88-K88","v":0},null,{"$f":"O88*A88","v":0},null,null,null,{"$f":"D88+E88-F88-G88","v":0},null,{"$f":"U88*6%+U88","v":0},null,null,null,null,null,{"$f":"INDIRECT(ADDRESS(ROW(A$80),ROW()-ROW(A$80)+(ROWS($88:88)-1)*2,4))","v":0},{"$f":"$G88","v":0},null,{"$f":"$F88-$AE88","v":0},{"$f":"INDIRECT(ADDRESS(ROW(A$80),ROW()-ROW(A$80)+(ROWS($88:88)-1)*2+1,4))","v":0},null,null,null,null,null,10,{"$f":"SUMPRODUCT(($A$88:$A$135=$AM88)*(($F$88:$F$135)+($G$88:$G$135)+($M$88:$M$135)+($J$88:$J$135)-($K$88:$K$135)))","v":0},{"$f":"AM88*AN88","v":0},{"$f":"IF(AO88<0,AO88,0)","v":0}]
[{"$f":"IF(B89=\"\",0,INDEX(Price_List,ROWS($88:89)))","v":20},{"$f":"IF($C89=\"\",\"\",COUNTA($C$88:$C89))","v":2},{"$f":"IF(INDEX(INDIRECT(\"Product_List\"),ROWS($88:89))=\"\",\"\",INDEX(INDIRECT(\"Product_List\"),ROWS($88:89)))","v":"02-ขนมปังหมูหยองน้ำพริกเผา"},{"$f":"ยอดยกมา","v":0},null,null,null,null,null,null,{"$f":"D89+E89+J89-I89+H89","v":0},null,{"$f":"INDIRECT(ADDRESS(ROW(A$80),ROW()-ROW(A$80)+(ROWS($88:89)-1)*2-1,4))","v":0},null,{"$f":"F89+G89+M89+J89-K89","v":0},null,{"$f":"O89*A89","v":0},null,null,null,{"$f":"D89+E89-F89-G89","v":0},null,{"$f":"U89*6%+U89","v":0},null,null,null,null,null,{"$f":"INDIRECT(ADDRESS(ROW(A$80),ROW()-ROW(A$80)+(ROWS($88:89)-1)*2,4))","v":0},{"$f":"$G89","v":0},null,{"$f":"$F89-$AE89","v":0},{"$f":"INDIRECT(ADDRESS(ROW(A$80),ROW()-ROW(A$80)+(ROWS($88:89)-1)*2+1,4))","v":0},null,null,null,null,null,12,0,{"$f":"AM89*AN89","v":0},{"$f":"IF(AO89<0,AO89,0)","v":0}]
[{"$f":"IF(B90=\"\",0,INDEX(Price_List,ROWS($88:90)))","v":20},{"$f":"IF($C90=\"\",\"\",COUNTA($C$88:$C90))","v":3},{"$f":"IF(INDEX(INDIRECT(\"Product_List\"),ROWS($88:90))=\"\",\"\",INDEX(INDIRECT(\"Product_List\"),ROWS($88:90)))","v":"03-ขนมปังไก่หยองน้ำสลัด"},{"$f":"ยอดยกมา","v":0},null,null,null,null,null,null,0,null,{"$f":"INDIRECT(ADDRESS(ROW(A$80),ROW()-ROW(A$80)+(ROWS($88:90)-1)*2-1,4))","v":0},null,0,null,0,null,null,null,0,null,0,null,null,null,null,null,{"$f":"INDIRECT(ADDRESS(ROW(A$80),ROW()-ROW(A$80)+(ROWS($88:90)-1)*2,4))","v":0},0,null,0,{"$f":"INDIRECT(ADDRESS(ROW(A$80),ROW()-ROW(A$80)+(ROWS($88:90)-1)*2+1,4))","v":0},null,null,null,null,null,13,0,0,0]
[{"$f":"IF(B91=\"\",0,INDEX(Price_List,ROWS($88:91)))","v":15},{"$f":"IF($C91=\"\",\"\",COUNTA($C$88:$C91))","v":4},{"$f":"IF(INDEX(INDIRECT(\"Product_List\"),ROWS($88:91))=\"\",\"\",INDEX(INDIRECT(\"Product_List\"),ROWS($88:91)))","v":"04-ขนมปังไส้ครีมสลัด"},{"$f":"ยอดยกมา","v":0},null,null,null,null,null,null,0,null,{"$f":"INDIRECT(ADDRESS(ROW(A$80),ROW()-ROW(A$80)+(ROWS($88:91)-1)*2-1,4))","v":0},null,{"$f":"F91+G91+M91+J91-K91","v":0},null,0,null,null,null,0,null,0,null,null,null,null,null,{"$f":"INDIRECT(ADDRESS(ROW(A$80),ROW()-ROW(A$80)+(ROWS($88:91)-1)*2,4))","v":0},0,null,0,{"$f":"INDIRECT(ADDRESS(ROW(A$80),ROW()-ROW(A$80)+(ROWS($88:91)-1)*2+1,4))","v":0},null,null,null,null,null,15,0,0,0]
[{"$f":"IF(B92=\"\",0,INDEX(Price_List,ROWS($88:92)))","v":15},{"$f":"IF($C92=\"\",\"\",COUNTA($C$88:$C92))","v":5},{"$f":"IF(INDEX(INDIRECT(\"Product_List\"),ROWS($88:92))=\"\",\"\",INDEX(INDIRECT(\"Product_List\"),ROWS($88:92)))","v":"05-ขนมปังเนยสด"},{"$f":"ยอดยกมา","v":0},null,null,null,null,null,null,0,null,{"$f":"INDIRECT(ADDRESS(ROW(A$80),ROW()-ROW(A$80)+(ROWS($88:92)-1)*2-1,4))","v":0},null,0,null,0,null,null,null,0,null,0,null,null,null,null,null,{"$f":"INDIRECT(ADDRESS(ROW(A$80),ROW()-ROW(A$80)+(ROWS($88:92)-1)*2,4))","v":0},0,null,0,{"$f":"INDIRECT(ADDRESS(ROW(A$80),ROW()-ROW(A$80)+(ROWS($88:92)-1)*2+1,4))","v":0},null,null,null,null,null,16,0,0,0]
[{"$f":"IF(B93=\"\",0,INDEX(Price_List,ROWS($88:93)))","v":10},{"$f":"IF($C93=\"\",\"\",COUNTA($C$88:$C93))","v":6},{"$f":"IF(INDEX(INDIRECT(\"Product_List\"),ROWS($88:93))=\"\",\"\",INDEX(INDIRECT(\"Product_List\"),ROWS($88:93)))","v":"06-ขนมปังไส้สังขยาเล็ก"},{"$f":"ยอดยกมา","v":0},null,null,null,null,null,null,0,null,{"$f":"INDIRECT(ADDRESS(ROW(A$80),ROW()-ROW(A$80)+(ROWS($88:93)-1)*2-1,4))","v":0},null,0,null,0,null,null,null,0,null,0,null,null,null,null,null,{"$f":"INDIRECT(ADDRESS(ROW(A$80),ROW()-ROW(A$80)+(ROWS($88:93)-1)*2,4))","v":0},0,null,0,{"$f":"INDIRECT(ADDRESS(ROW(A$80),ROW()-ROW(A$80)+(ROWS($88:93)-1)*2+1,4))","v":0},null,null,null,null,null,18,0,0,0]
[{"$f":"IF(B94=\"\",0,INDEX(Price_List,ROWS($88:94)))","v":10},{"$f":"IF($C94=\"\",\"\",COUNTA($C$88:$C94))","v":7},{"$f":"IF(INDEX(INDIRECT(\"Product_List\"),ROWS($88:94))=\"\",\"\",INDEX(INDIRECT(\"Product_List\"),ROWS($88:94)))","v":"07-ขนมปังไส้เผือก"},{"$f":"ยอดยกมา","v":0},null,null,null,null,null,null,0,null,{"$f":"INDIRECT(ADDRESS(ROW(A$80),ROW()-ROW(A$80)+(ROWS($88:94)-1)*2-1,4))","v":0},null,0,null,0,null,null,null,0,null,0,null,null,null,null,null,{"$f":"INDIRECT(ADDRESS(ROW(A$80),ROW()-ROW(A$80)+(ROWS($88:94)-1)*2,4))","v":0},0,null,0,{"$f":"INDIRECT(ADDRESS(ROW(A$80),ROW()-ROW(A$80)+(ROWS($88:94)-1)*2+1,4))","v":0},null,null,null,null,null,20,0,0,0]
[{"$f":"IF(B95=\"\",0,INDEX(Price_List,ROWS($88:95)))","v":10},{"$f":"IF($C95=\"\",\"\",COUNTA($C$88:$C95))","v":8},{"$f":"IF(INDEX(INDIRECT(\"Product_List\"),ROWS($88:95))=\"\",\"\",INDEX(INDIRECT(\"Product_List\"),ROWS($88:95)))","v":"08-ขนมปังไส้ถั่วแดง"},{"$f":"ยอดยกมา","v":0},null,null,null,null,null,null,0,null,{"$f":"INDIRECT(ADDRESS(ROW(A$80),ROW()-ROW(A$80)+(ROWS($88:95)-1)*2-1,4))","v":0},null,0,null,0,null,null,null,0,null,0,null,null,null,null,null,{"$f":"INDIRECT(ADDRESS(ROW(A$80),ROW()-ROW(A$80)+(ROWS($88:95)-1)*2,4))","v":0},0,null,0,{"$f":"INDIRECT(ADDRESS(ROW(A$80),ROW()-ROW(A$80)+(ROWS($88:95)-1)*2+1,4))","v":0},null,null,null,null,null,22,0,0,0]
[{"$f":"IF(B96=\"\",0,INDEX(Price_List,ROWS($88:96)))","v":10},{"$f":"IF($C96=\"\",\"\",COUNTA($C$88:$C96))","v":9},{"$f":"IF(INDEX(INDIRECT(\"Product_List\"),ROWS($88:96))=\"\",\"\",INDEX(INDIRECT(\"Product_List\"),ROWS($88:96)))","v":"09-ขนมปังไส้ถั่วดำ"},{"$f":"ยอดยกมา","v":0},null,null,null,null,null,null,0,null,{"$f":"INDIRECT(ADDRESS(ROW(A$80),ROW()-ROW(A$80)+(ROWS($88:96)-1)*2-1,4))","v":0},null,0,null,0,null,null,null,0,null,0,null,null,null,null,null,{"$f":"INDIRECT(ADDRESS(ROW(A$80),ROW()-ROW(A$80)+(ROWS($88:96)-1)*2,4))","v":0},0,null,0,{"$f":"INDIRECT(ADDRESS(ROW(A$80),ROW()-ROW(A$80)+(ROWS($88:96)-1)*2+1,4))","v":0},null,null,null,null,null,25,0,0,0]
[{"$f":"IF(B97=\"\",0,INDEX(Price_List,ROWS($88:97)))","v":10},{"$f":"IF($C97=\"\",\"\",COUNTA($C$88:$C97))","v":10},{"$f":"IF(INDEX(INDIRECT(\"Product_List\"),ROWS($88:97))=\"\",\"\",INDEX(INDIRECT(\"Product_List\"),ROWS($88:97)))","v":"10-ขนมปังไส้มันม่วง"},{"$f":"ยอดยกมา","v":0},null,null,null,null,null,null,0,null,{"$f":"INDIRECT(ADDRESS(ROW(A$80),ROW()-ROW(A$80)+(ROWS($88:97)-1)*2-1,4))","v":0},null,0,null,0,null,null,null,0,null,0,null,null,null,null,null,{"$f":"INDIRECT(ADDRESS(ROW(A$80),ROW()-ROW(A$80)+(ROWS($88:97)-1)*2,4))","v":0},0,null,0,{"$f":"INDIRECT(ADDRESS(ROW(A$80),ROW()-ROW(A$80)+(ROWS($88:97)-1)*2+1,4))","v":0},null,null,null,null,null,42,0,0,0]
[{"$f":"IF(B98=\"\",0,INDEX(Price_List,ROWS($88:98)))","v":15},{"$f":"IF($C98=\"\",\"\",COUNTA($C$88:$C98))","v":11},{"$f":"IF(INDEX(INDIRECT(\"Product_List\"),ROWS($88:98))=\"\",\"\",INDEX(INDIRECT(\"Product_List\"),ROWS($88:98)))","v":"11-เค้กกล้วยหอม"},{"$f":"ยอดยกมา","v":0},null,null,null,null,null,null,0,null,{"$f":"INDIRECT(ADDRESS(ROW(A$80),ROW()-ROW(A$80)+(ROWS($88:98)-1)*2-1,4))","v":0},null,0,null,0,null,null,null,0,null,0,null,null,null,null,null,{"$f":"INDIRECT(ADDRESS(ROW(A$80),ROW()-ROW(A$80)+(ROWS($88:98)-1)*2,4))","v":0},0,null,0,{"$f":"INDIRECT(ADDRESS(ROW(A$80),ROW()-ROW(A$80)+(ROWS($88:98)-1)*2+1,4))","v":0},null,null,null,null,null,"Total Deduct",null,null,{"$f":"SUM($AP$88:$AP$97)","v":0}]
[{"$f":"IF(B99=\"\",0,INDEX(Price_List,ROWS($88:99)))","v":15},{"$f":"IF($C99=\"\",\"\",COUNTA($C$88:$C99))","v":12},{"$f":"IF(INDEX(INDIRECT(\"Product_List\"),ROWS($88:99))=\"\",\"\",INDEX(INDIRECT(\"Product_List\"),ROWS($88:99)))","v":"12-เค้กบัตเตอร์"},{"$f":"ยอดยกมา","v":0},null,null,null,null,null,null,0,null,{"$f":"INDIRECT(ADDRESS(ROW(A$80),ROW()-ROW(A$80)+(ROWS($88:99)-1)*2-1,4))","v":0},null,0,null,0,null,null,null,0,null,0,null,null,null,null,null,{"$f":"INDIRECT(ADDRESS(ROW(A$80),ROW()-ROW(A$80)+(ROWS($88:99)-1)*2,4))","v":0},0,null,0,{"$f":"INDIRECT(ADDRESS(ROW(A$80),ROW()-ROW(A$80)+(ROWS($88:99)-1)*2+1,4))","v":0}]
[{"$f":"IF(B100=\"\",0,INDEX(Price_List,ROWS($88:100)))","v":15},{"$f":"IF($C100=\"\",\"\",COUNTA($C$88:$C100))","v":13},{"$f":"IF(INDEX(INDIRECT(\"Product_List\"),ROWS($88:100))=\"\",\"\",INDEX(INDIRECT(\"Product_List\"),ROWS($88:100)))","v":"13-ขนมปังโรลถั่วแดง"},{"$f":"ยอดยกมา","v":0},null,null,null,null,null,null,0,null,{"$f":"INDIRECT(ADDRESS(ROW(A$80),ROW()-ROW(A$80)+(ROWS($88:100)-1)*2-1,4))","v":0},null,0,null,0,null,null,null,0,null,0,null,null,null,null,null,{"$f":"INDIRECT(ADDRESS(ROW(A$80),ROW()-ROW(A$80)+(ROWS($88:100)-1)*2,4))","v":0},0,null,0,{"$f":"INDIRECT(ADDRESS(ROW(A$80),ROW()-ROW(A$80)+(ROWS($88:100)-1)*2+1,4))","v":0}]
[{"$f":"IF(B101=\"\",0,INDEX(Price_List,ROWS($88:101)))","v":15},{"$f":"IF($C101=\"\",\"\",COUNTA($C$88:$C101))","v":14},{"$f":"IF(INDEX(INDIRECT(\"Product_List\"),ROWS($88:101))=\"\",\"\",INDEX(INDIRECT(\"Product_List\"),ROWS($88:101)))","v":"14-ขนมปังไส้สังขยาใหญ่"},{"$f":"ยอดยกมา","v":0},null,null,null,null,null,null,0,null,{"$f":"INDIRECT(ADDRESS(ROW(A$80),ROW()-ROW(A$80)+(ROWS($88:101)-1)*2-1,4))","v":0},null,0,null,0,null,null,null,0,null,0,null,null,null,null,null,{"$f":"INDIRECT(ADDRESS(ROW(A$80),ROW()-ROW(A$80)+(ROWS($88:101)-1)*2,4))","v":0},0,null,0,{"$f":"INDIRECT(ADDRESS(ROW(A$80),ROW()-ROW(A$80)+(ROWS($88:101)-1)*2+1,4))","v":0}]
[{"$f":"IF(B102=\"\",0,INDEX(Price_List,ROWS($88:102)))","v":42},{"$f":"IF($C102=\"\",\"\",COUNTA($C$88:$C102))","v":15},{"$f":"IF(INDEX(INDIRECT(\"Product_List\"),ROWS($88:102))=\"\",\"\",INDEX(INDIRECT(\"Product_List\"),ROWS($88:102)))","v":"15-ขนมปังชนิดแผ่น(480กรัม)"},{"$f":"ยอดยกมา","v":0},null,null,null,null,null,null,0,null,{"$f":"INDIRECT(ADDRESS(ROW(A$80),ROW()-ROW(A$80)+(ROWS($88:102)-1)*2-1,4))","v":0},null,0,null,0,null,null,null,0,null,0,null,null,null,null,null,{"$f":"INDIRECT(ADDRESS(ROW(A$80),ROW()-ROW(A$80)+(ROWS($88:102)-1)*2,4))","v":0},0,null,0,{"$f":"INDIRECT(ADDRESS(ROW(A$80),ROW()-ROW(A$80)+(ROWS($88:102)-1)*2+1,4))","v":0}]
[{"$f":"IF(B103=\"\",0,INDEX(Price_List,ROWS($88:103)))","v":12},{"$f":"IF($C103=\"\",\"\",COUNTA($C$88:$C103))","v":16},{"$f":"IF(INDEX(INDIRECT(\"Product_List\"),ROWS($88:103))=\"\",\"\",INDEX(INDIRECT(\"Product_List\"),ROWS($88:103)))","v":"16-โมจิไส้ถั่ว"},{"$f":"ยอดยกมา","v":0},null,null,null,null,null,null,0,null,{"$f":"INDIRECT(ADDRESS(ROW(A$80),ROW()-ROW(A$80)+(ROWS($88:103)-1)*2-1,4))","v":0},null,0,null,0,null,null,null,0,null,0,null,null,null,null,null,{"$f":"INDIRECT(ADDRESS(ROW(A$80),ROW()-ROW(A$80)+(ROWS($88:103)-1)*2,4))","v":0},0,null,0,{"$f":"INDIRECT(ADDRESS(ROW(A$80),ROW()-ROW(A$80)+(ROWS($88:103)-1)*2+1,4))","v":0}]
[{"$f":"IF(B104=\"\",0,INDEX(Price_List,ROWS($88:104)))","v":12},{"$f":"IF($C104=\"\",\"\",COUNTA($C$88:$C104))","v":17},{"$f":"IF(INDEX(INDIRECT(\"Product_List\"),ROWS($88:104))=\"\",\"\",INDEX(INDIRECT(\"Product_List\"),ROWS($88:104)))","v":"17-โมจิไส้เผือก"},{"$f":"ยอดยกมา","v":0},null,null,null,null,null,null,0,null,{"$f":"INDIRECT(ADDRESS(ROW(A$80),ROW()-ROW(A$80)+(ROWS($88:104)-1)*2-1,4))","v":0},null,0,null,0,null,null,null,0,null,0,null,null,null,null,null,{"$f":"INDIRECT(ADDRESS(ROW(A$80),ROW()-ROW(A$80)+(ROWS($88:104)-1)*2,4))","v":0},0,null,0,{"$f":"INDIRECT(ADDRESS(ROW(A$80),ROW()-ROW(A$80)+(ROWS($88:104)-1)*2+1,4))","v":0}]
[{"$f":"IF(B105=\"\",0,INDEX(Price_List,ROWS($88:105)))","v":15},{"$f":"IF($C105=\"\",\"\",COUNTA($C$88:$C105))","v":18},{"$f":"IF(INDEX(INDIRECT(\"Product_List\"),ROWS($88:105))=\"\",\"\",INDEX(INDIRECT(\"Product_List\"),ROWS($88:105)))","v":"18-โมจิไส้ถั่วไข่เค็ม"},{"$f":"ยอดยกมา","v":0},null,null,null,null,null,null,0,null,{"$f":"INDIRECT(ADDRESS(ROW(A$80),ROW()-ROW(A$80)+(ROWS($88:105)-1)*2-1,4))","v":0},null,0,null,0,null,null,null,0,null,0,null,null,null,null,null,{"$f":"INDIRECT(ADDRESS(ROW(A$80),ROW()-ROW(A$80)+(ROWS($88:105)-1)*2,4))","v":0},0,null,0,{"$f":"INDIRECT(ADDRESS(ROW(A$80),ROW()-ROW(A$80)+(ROWS($88:105)-1)*2+1,4))","v":0}]
[{"$f":"IF(B106=\"\",0,INDEX(Price_List,ROWS($88:106)))","v":20},{"$f":"IF($C106=\"\",\"\",COUNTA($C$88:$C106))","v":19},{"$f":"IF(INDEX(INDIRECT(\"Product_List\"),ROWS($88:106))=\"\",\"\",INDEX(INDIRECT(\"Product_List\"),ROWS($88:106)))","v":"19-ขนมปังพิซซ่า"},{"$f":"ยอดยกมา","v":0},null,null,null,null,null,null,0,null,{"$f":"INDIRECT(ADDRESS(ROW(A$80),ROW()-ROW(A$80)+(ROWS($88:106)-1)*2-1,4))","v":0},null,0,null,0,null,null,null,0,null,0,null,null,null,null,null,{"$f":"INDIRECT(ADDRESS(ROW(A$80),ROW()-ROW(A$80)+(ROWS($88:106)-1)*2,4))","v":0},0,null,0,{"$f":"INDIRECT(ADDRESS(ROW(A$80),ROW()-ROW(A$80)+(ROWS($88:106)-1)*2+1,4))","v":0}]
[{"$f":"IF(B107=\"\",0,INDEX(Price_List,ROWS($88:107)))","v":20},{"$f":"IF($C107=\"\",\"\",COUNTA($C$88:$C107))","v":20},{"$f":"IF(INDEX(INDIRECT(\"Product_List\"),ROWS($88:107))=\"\",\"\",INDEX(INDIRECT(\"Product_List\"),ROWS($88:107)))","v":"20-ขนมปังพิซซ่าปูอัดแฮม"},{"$f":"ยอดยกมา","v":0},null,null,null,null,null,null,0,null,{"$f":"INDIRECT(ADDRESS(ROW(A$80),ROW()-ROW(A$80)+(ROWS($88:107)-1)*2-1,4))","v":0},null,0,null,0,null,null,null,0,null,0,null,null,null,null,null,{"$f":"INDIRECT(ADDRESS(ROW(A$80),ROW()-ROW(A$80)+(ROWS($88:107)-1)*2,4))","v":0},0,null,0,{"$f":"INDIRECT(ADDRESS(ROW(A$80),ROW()-ROW(A$80)+(ROWS($88:107)-1)*2+1,4))","v":0}]
[{"$f":"IF(B108=\"\",0,INDEX(Price_List,ROWS($88:108)))","v":20},{"$f":"IF($C108=\"\",\"\",COUNTA($C$88:$C108))","v":21},{"$f":"IF(INDEX(INDIRECT(\"Product_List\"),ROWS($88:108))=\"\",\"\",INDEX(INDIRECT(\"Product_List\"),ROWS($88:108)))","v":"21-ขนมปังไส้กรอก"},{"$f":"ยอดยกมา","v":0},null,null,null,null,null,null,0,null,{"$f":"INDIRECT(ADDRESS(ROW(A$80),ROW()-ROW(A$80)+(ROWS($88:108)-1)*2-1,4))","v":0},null,0,null,0,null,null,null,0,null,0,null,null,null,null,null,{"$f":"INDIRECT(ADDRESS(ROW(A$80),ROW()-ROW(A$80)+(ROWS($88:108)-1)*2,4))","v":0},0,null,0,{"$f":"INDIRECT(ADDRESS(ROW(A$80),ROW()-ROW(A$80)+(ROWS($88:108)-1)*2+1,4))","v":0}]
[{"$f":"IF(B109=\"\",0,INDEX(Price_List,ROWS($88:109)))","v":15},{"$f":"IF($C109=\"\",\"\",COUNTA($C$88:$C109))","v":22},{"$f":"IF(INDEX(INDIRECT(\"Product_List\"),ROWS($88:109))=\"\",\"\",INDEX(INDIRECT(\"Product_List\"),ROWS($88:109)))","v":"22-ขนมก้านบัว"},{"$f":"ยอดยกมา","v":0},null,null,null,null,null,null,0,null,{"$f":"INDIRECT(ADDRESS(ROW(A$80),ROW()-ROW(A$80)+(ROWS($88:109)-1)*2-1,4))","v":0},null,0,null,0,null,null,null,0,null,0,null,null,null,null,null,{"$f":"INDIRECT(ADDRESS(ROW(A$80),ROW()-ROW(A$80)+(ROWS($88:109)-1)*2,4))","v":0},0,null,0,{"$f":"INDIRECT(ADDRESS(ROW(A$80),ROW()-ROW(A$80)+(ROWS($88:109)-1)*2+1,4))","v":0}]
[{"$f":"IF(B110=\"\",0,INDEX(Price_List,ROWS($88:110)))","v":20},{"$f":"IF($C110=\"\",\"\",COUNTA($C$88:$C110))","v":23},{"$f":"IF(INDEX(INDIRECT(\"Product_List\"),ROWS($88:110))=\"\",\"\",INDEX(INDIRECT(\"Product_List\"),ROWS($88:110)))","v":"23-พายสับปะรด"},{"$f":"ยอดยกมา","v":0},null,null,null,null,null,null,0,null,{"$f":"INDIRECT(ADDRESS(ROW(A$80),ROW()-ROW(A$80)+(ROWS($88:110)-1)*2-1,4))","v":0},null,0,null,0,null,null,null,0,null,0,null,null,null,null,null,{"$f":"INDIRECT(ADDRESS(ROW(A$80),ROW()-ROW(A$80)+(ROWS($88:110)-1)*2,4))","v":0},0,null,0,{"$f":"INDIRECT(ADDRESS(ROW(A$80),ROW()-ROW(A$80)+(ROWS($88:110)-1)*2+1,4))","v":0}]
[{"$f":"IF(B111=\"\",0,INDEX(Price_List,ROWS($88:111)))","v":20},{"$f":"IF($C111=\"\",\"\",COUNTA($C$88:$C111))","v":24},{"$f":"IF(INDEX(INDIRECT(\"Product_List\"),ROWS($88:111))=\"\",\"\",INDEX(INDIRECT(\"Product_List\"),ROWS($88:111)))","v":"24-พายไส้มะพร้าว"},{"$f":"ยอดยกมา","v":0},null,null,null,null,null,null,0,null,{"$f":"INDIRECT(ADDRESS(ROW(A$80),ROW()-ROW(A$80)+(ROWS($88:111)-1)*2-1,4))","v":0},null,0,null,0,null,null,null,0,null,0,null,null,null,null,null,{"$f":"INDIRECT(ADDRESS(ROW(A$80),ROW()-ROW(A$80)+(ROWS($88:111)-1)*2,4))","v":0},0,null,0,{"$f":"INDIRECT(ADDRESS(ROW(A$80),ROW()-ROW(A$80)+(ROWS($88:111)-1)*2+1,4))","v":0}]
[{"$f":"IF(B112=\"\",0,INDEX(Price_List,ROWS($88:112)))","v":15},{"$f":"IF($C112=\"\",\"\",COUNTA($C$88:$C112))","v":25},{"$f":"IF(INDEX(INDIRECT(\"Product_List\"),ROWS($88:112))=\"\",\"\",INDEX(INDIRECT(\"Product_List\"),ROWS($88:112)))","v":"25-ขนมปังโรลมันเทศ"},{"$f":"ยอดยกมา","v":0},null,null,null,null,null,null,0,null,{"$f":"INDIRECT(ADDRESS(ROW(A$80),ROW()-ROW(A$80)+(ROWS($88:112)-1)*2-1,4))","v":0},null,0,null,0,null,null,null,0,null,0,null,null,null,null,null,{"$f":"INDIRECT(ADDRESS(ROW(A$80),ROW()-ROW(A$80)+(ROWS($88:112)-1)*2,4))","v":0},0,null,0,{"$f":"INDIRECT(ADDRESS(ROW(A$80),ROW()-ROW(A$80)+(ROWS($88:112)-1)*2+1,4))","v":0}]
[{"$f":"IF(B113=\"\",0,INDEX(Price_List,ROWS($88:113)))","v":15},{"$f":"IF($C113=\"\",\"\",COUNTA($C$88:$C113))","v":26},{"$f":"IF(INDEX(INDIRECT(\"Product_List\"),ROWS($88:113))=\"\",\"\",INDEX(INDIRECT(\"Product_List\"),ROWS($88:113)))","v":"26-ขนมปังไส้ครีมสลัดน้ำพริกเผา"},{"$f":"ยอดยกมา","v":0},null,null,null,null,null,null,0,null,{"$f":"INDIRECT(ADDRESS(ROW(A$80),ROW()-ROW(A$80)+(ROWS($88:113)-1)*2-1,4))","v":0},null,0,null,0,null,null,null,0,null,0,null,null,null,null,null,{"$f":"INDIRECT(ADDRESS(ROW(A$80),ROW()-ROW(A$80)+(ROWS($88:113)-1)*2,4))","v":0},0,null,0,{"$f":"INDIRECT(ADDRESS(ROW(A$80),ROW()-ROW(A$80)+(ROWS($88:113)-1)*2+1,4))","v":0}]
[{"$f":"IF(B114=\"\",0,INDEX(Price_List,ROWS($88:114)))","v":20},{"$f":"IF($C114=\"\",\"\",COUNTA($C$88:$C114))","v":27},{"$f":"IF(INDEX(INDIRECT(\"Product_List\"),ROWS($88:114))=\"\",\"\",INDEX(INDIRECT(\"Product_List\"),ROWS($88:114)))","v":"27-ขนมปังไส้สังขยาไข่"},{"$f":"ยอดยกมา","v":0},null,null,null,null,null,null,0,null,{"$f":"INDIRECT(ADDRESS(ROW(A$80),ROW()-ROW(A$80)+(ROWS($88:114)-1)*2-1,4))","v":0},null,0,null,0,null,null,null,0,null,0,null,null,null,null,null,{"$f":"INDIRECT(ADDRESS(ROW(A$80),ROW()-ROW(A$80)+(ROWS($88:114)-1)*2,4))","v":0},0,null,0,{"$f":"INDIRECT(ADDRESS(ROW(A$80),ROW()-ROW(A$80)+(ROWS($88:114)-1)*2+1,4))","v":0}]
[{"$f":"IF(B115=\"\",0,INDEX(Price_List,ROWS($88:115)))","v":20},{"$f":"IF($C115=\"\",\"\",COUNTA($C$88:$C115))","v":28},{"$f":"IF(INDEX(INDIRECT(\"Product_List\"),ROWS($88:115))=\"\",\"\",INDEX(INDIRECT(\"Product_List\"),ROWS($88:115)))","v":"28-ขนมปังไส้สังขยามะพร้าว"},{"$f":"ยอดยกมา","v":0},null,null,null,null,null,null,0,null,{"$f":"INDIRECT(ADDRESS(ROW(A$80),ROW()-ROW(A$80)+(ROWS($88:115)-1)*2-1,4))","v":0},null,0,null,0,null,null,null,0,null,0,null,null,null,null,null,{"$f":"INDIRECT(ADDRESS(ROW(A$80),ROW()-ROW(A$80)+(ROWS($88:115)-1)*2,4))","v":0},0,null,0,{"$f":"INDIRECT(ADDRESS(ROW(A$80),ROW()-ROW(A$80)+(ROWS($88:115)-1)*2+1,4))","v":0}]
[{"$f":"IF(B116=\"\",0,INDEX(Price_List,ROWS($88:116)))","v":10},{"$f":"IF($C116=\"\",\"\",COUNTA($C$88:$C116))","v":29},{"$f":"IF(INDEX(INDIRECT(\"Product_List\"),ROWS($88:116))=\"\",\"\",INDEX(INDIRECT(\"Product_List\"),ROWS($88:116)))","v":"29-ขนมปังไส้ครีมชาไทย"},{"$f":"ยอดยกมา","v":0},null,null,null,null,null,null,0,null,{"$f":"INDIRECT(ADDRESS(ROW(A$80),ROW()-ROW(A$80)+(ROWS($88:116)-1)*2-1,4))","v":0},null,0,null,0,null,null,null,0,null,0,null,null,null,null,null,{"$f":"INDIRECT(ADDRESS(ROW(A$80),ROW()-ROW(A$80)+(ROWS($88:116)-1)*2,4))","v":0},0,null,0,{"$f":"INDIRECT(ADDRESS(ROW(A$80),ROW()-ROW(A$80)+(ROWS($88:116)-1)*2+1,4))","v":0}]
[{"$f":"IF(B117=\"\",0,INDEX(Price_List,ROWS($88:117)))","v":15},{"$f":"IF($C117=\"\",\"\",COUNTA($C$88:$C117))","v":30},{"$f":"IF(INDEX(INDIRECT(\"Product_List\"),ROWS($88:117))=\"\",\"\",INDEX(INDIRECT(\"Product_List\"),ROWS($88:117)))","v":"30-ขนมปังโรลมันม่วง"},{"$f":"ยอดยกมา","v":0},null,null,null,null,null,null,0,null,{"$f":"INDIRECT(ADDRESS(ROW(A$80),ROW()-ROW(A$80)+(ROWS($88:117)-1)*2-1,4))","v":0},null,0,null,0,null,null,null,0,null,0,null,null,null,null,null,{"$f":"INDIRECT(ADDRESS(ROW(A$80),ROW()-ROW(A$80)+(ROWS($88:117)-1)*2,4))","v":0},0,null,0,{"$f":"INDIRECT(ADDRESS(ROW(A$80),ROW()-ROW(A$80)+(ROWS($88:117)-1)*2+1,4))","v":0}]
[{"$f":"IF(B118=\"\",0,INDEX(Price_List,ROWS($88:118)))","v":15},{"$f":"IF($C118=\"\",\"\",COUNTA($C$88:$C118))","v":31},{"$f":"IF(INDEX(INDIRECT(\"Product_List\"),ROWS($88:118))=\"\",\"\",INDEX(INDIRECT(\"Product_List\"),ROWS($88:118)))","v":"31-ขนมปังโรลช็อกโกแลต"},{"$f":"ยอดยกมา","v":0},null,null,null,null,null,null,0,null,{"$f":"INDIRECT(ADDRESS(ROW(A$80),ROW()-ROW(A$80)+(ROWS($88:118)-1)*2-1,4))","v":0},null,0,null,0,null,null,null,0,null,0,null,null,null,null,null,{"$f":"INDIRECT(ADDRESS(ROW(A$80),ROW()-ROW(A$80)+(ROWS($88:118)-1)*2,4))","v":0},0,null,0,{"$f":"INDIRECT(ADDRESS(ROW(A$80),ROW()-ROW(A$80)+(ROWS($88:118)-1)*2+1,4))","v":0}]
[{"$f":"IF(B119=\"\",0,INDEX(Price_List,ROWS($88:119)))","v":16},{"$f":"IF($C119=\"\",\"\",COUNTA($C$88:$C119))","v":32},{"$f":"IF(INDEX(INDIRECT(\"Product_List\"),ROWS($88:119))=\"\",\"\",INDEX(INDIRECT(\"Product_List\"),ROWS($88:119)))","v":"32-ขนมปังชนิดแผ่น(155กรัม)"},{"$f":"ยอดยกมา","v":0},null,null,null,null,null,null,0,null,{"$f":"INDIRECT(ADDRESS(ROW(A$80),ROW()-ROW(A$80)+(ROWS($88:119)-1)*2-1,4))","v":0},null,0,null,0,null,null,null,0,null,0,null,null,null,null,null,{"$f":"INDIRECT(ADDRESS(ROW(A$80),ROW()-ROW(A$80)+(ROWS($88:119)-1)*2,4))","v":0},0,null,0,{"$f":"INDIRECT(ADDRESS(ROW(A$80),ROW()-ROW(A$80)+(ROWS($88:119)-1)*2+1,4))","v":0}]
[{"$f":"IF(B120=\"\",0,INDEX(Price_List,ROWS($88:120)))","v":15},{"$f":"IF($C120=\"\",\"\",COUNTA($C$88:$C120))","v":33},{"$f":"IF(INDEX(INDIRECT(\"Product_List\"),ROWS($88:120))=\"\",\"\",INDEX(INDIRECT(\"Product_List\"),ROWS($88:120)))","v":"33-ขนมปังโรลเผือก"},{"$f":"ยอดยกมา","v":0},null,null,null,null,null,null,0,null,{"$f":"INDIRECT(ADDRESS(ROW(A$80),ROW()-ROW(A$80)+(ROWS($88:120)-1)*2-1,4))","v":0},null,0,null,0,null,null,null,0,null,0,null,null,null,null,null,{"$f":"INDIRECT(ADDRESS(ROW(A$80),ROW()-ROW(A$80)+(ROWS($88:120)-1)*2,4))","v":0},0,null,0,{"$f":"INDIRECT(ADDRESS(ROW(A$80),ROW()-ROW(A$80)+(ROWS($88:120)-1)*2+1,4))","v":0}]
[{"$f":"IF(B121=\"\",0,INDEX(Price_List,ROWS($88:121)))","v":15},{"$f":"IF($C121=\"\",\"\",COUNTA($C$88:$C121))","v":34},{"$f":"IF(INDEX(INDIRECT(\"Product_List\"),ROWS($88:121))=\"\",\"\",INDEX(INDIRECT(\"Product_List\"),ROWS($88:121)))","v":"34-ขนมปังไก่หยองน้ำสลัด Mini"},{"$f":"ยอดยกมา","v":0},null,null,null,null,null,null,0,null,{"$f":"INDIRECT(ADDRESS(ROW(A$80),ROW()-ROW(A$80)+(ROWS($88:121)-1)*2-1,4))","v":0},null,0,null,0,null,null,null,0,null,0,null,null,null,null,null,{"$f":"INDIRECT(ADDRESS(ROW(A$80),ROW()-ROW(A$80)+(ROWS($88:121)-1)*2,4))","v":0},0,null,0,{"$f":"INDIRECT(ADDRESS(ROW(A$80),ROW()-ROW(A$80)+(ROWS($88:121)-1)*2+1,4))","v":0}]
[{"$f":"IF(B122=\"\",0,INDEX(Price_List,ROWS($88:122)))","v":10},{"$f":"IF($C122=\"\",\"\",COUNTA($C$88:$C122))","v":35},{"$f":"IF(INDEX(INDIRECT(\"Product_List\"),ROWS($88:122))=\"\",\"\",INDEX(INDIRECT(\"Product_List\"),ROWS($88:122)))","v":"35-ขนมปังไส้ช็อกโกแลต"},{"$f":"ยอดยกมา","v":0},null,null,null,null,null,null,0,null,{"$f":"INDIRECT(ADDRESS(ROW(A$80),ROW()-ROW(A$80)+(ROWS($88:122)-1)*2-1,4))","v":0},null,0,null,0,null,null,null,0,null,0,null,null,null,null,null,{"$f":"INDIRECT(ADDRESS(ROW(A$80),ROW()-ROW(A$80)+(ROWS($88:122)-1)*2,4))","v":0},0,null,0,{"$f":"INDIRECT(ADDRESS(ROW(A$80),ROW()-ROW(A$80)+(ROWS($88:122)-1)*2+1,4))","v":0}]
[{"$f":"IF(B123=\"\",0,INDEX(Price_List,ROWS($88:123)))","v":10},{"$f":"IF($C123=\"\",\"\",COUNTA($C$88:$C123))","v":36},{"$f":"IF(INDEX(INDIRECT(\"Product_List\"),ROWS($88:123))=\"\",\"\",INDEX(INDIRECT(\"Product_List\"),ROWS($88:123)))","v":"36-ขนมปังไส้ครีมสังขยาไข่"},{"$f":"ยอดยกมา","v":0},null,null,null,null,null,null,0,null,{"$f":"INDIRECT(ADDRESS(ROW(A$80),ROW()-ROW(A$80)+(ROWS($88:123)-1)*2-1,4))","v":0},null,0,null,0,null,null,null,0,null,0,null,null,null,null,null,{"$f":"INDIRECT(ADDRESS(ROW(A$80),ROW()-ROW(A$80)+(ROWS($88:123)-1)*2,4))","v":0},0,null,0,{"$f":"INDIRECT(ADDRESS(ROW(A$80),ROW()-ROW(A$80)+(ROWS($88:123)-1)*2+1,4))","v":0}]
[{"$f":"IF(B124=\"\",0,INDEX(Price_List,ROWS($88:124)))","v":20},{"$f":"IF($C124=\"\",\"\",COUNTA($C$88:$C124))","v":37},{"$f":"IF(INDEX(INDIRECT(\"Product_List\"),ROWS($88:124))=\"\",\"\",INDEX(INDIRECT(\"Product_List\"),ROWS($88:124)))","v":"37-ขนมปังพิซซ่าฮาวายเอี้ยน"},{"$f":"ยอดยกมา","v":0},null,null,null,null,null,null,0,null,{"$f":"INDIRECT(ADDRESS(ROW(A$80),ROW()-ROW(A$80)+(ROWS($88:124)-1)*2-1,4))","v":0},null,0,null,0,null,null,null,0,null,0,null,null,null,null,null,{"$f":"INDIRECT(ADDRESS(ROW(A$80),ROW()-ROW(A$80)+(ROWS($88:124)-1)*2,4))","v":0},0,null,0,{"$f":"INDIRECT(ADDRESS(ROW(A$80),ROW()-ROW(A$80)+(ROWS($88:124)-1)*2+1,4))","v":0}]
[{"$f":"IF(B125=\"\",0,INDEX(Price_List,ROWS($88:125)))","v":20},{"$f":"IF($C125=\"\",\"\",COUNTA($C$88:$C125))","v":38},{"$f":"IF(INDEX(INDIRECT(\"Product_List\"),ROWS($88:125))=\"\",\"\",INDEX(INDIRECT(\"Product_List\"),ROWS($88:125)))","v":"38-ครัวซองต์หมูหยองน้ำสลัด"},{"$f":"ยอดยกมา","v":0},null,null,null,null,null,null,0,null,{"$f":"INDIRECT(ADDRESS(ROW(A$80),ROW()-ROW(A$80)+(ROWS($88:125)-1)*2-1,4))","v":0},null,0,null,0,null,null,null,0,null,0,null,null,null,null,null,{"$f":"INDIRECT(ADDRESS(ROW(A$80),ROW()-ROW(A$80)+(ROWS($88:125)-1)*2,4))","v":0},0,null,0,{"$f":"INDIRECT(ADDRESS(ROW(A$80),ROW()-ROW(A$80)+(ROWS($88:125)-1)*2+1,4))","v":0}]
[{"$f":"IF(B126=\"\",0,INDEX(Price_List,ROWS($88:126)))","v":15},{"$f":"IF($C126=\"\",\"\",COUNTA($C$88:$C126))","v":39},{"$f":"IF(INDEX(INDIRECT(\"Product_List\"),ROWS($88:126))=\"\",\"\",INDEX(INDIRECT(\"Product_List\"),ROWS($88:126)))","v":"39-แพนเบรดไส้เผือก"},{"$f":"ยอดยกมา","v":0},null,null,null,null,null,null,0,null,{"$f":"INDIRECT(ADDRESS(ROW(A$80),ROW()-ROW(A$80)+(ROWS($88:126)-1)*2-1,4))","v":0},null,0,null,0,null,null,null,0,null,0,null,null,null,null,null,{"$f":"INDIRECT(ADDRESS(ROW(A$80),ROW()-ROW(A$80)+(ROWS($88:126)-1)*2,4))","v":0},0,null,0,{"$f":"INDIRECT(ADDRESS(ROW(A$80),ROW()-ROW(A$80)+(ROWS($88:126)-1)*2+1,4))","v":0}]
[{"$f":"IF(B127=\"\",0,INDEX(Price_List,ROWS($88:127)))","v":15},{"$f":"IF($C127=\"\",\"\",COUNTA($C$88:$C127))","v":40},{"$f":"IF(INDEX(INDIRECT(\"Product_List\"),ROWS($88:127))=\"\",\"\",INDEX(INDIRECT(\"Product_List\"),ROWS($88:127)))","v":"40-แพนเบรดไส้ถั่วแดง"},{"$f":"ยอดยกมา","v":0},null,null,null,null,null,null,0,null,{"$f":"INDIRECT(ADDRESS(ROW(A$80),ROW()-ROW(A$80)+(ROWS($88:127)-1)*2-1,4))","v":0},null,0,null,0,null,null,null,0,null,0,null,null,null,null,null,{"$f":"INDIRECT(ADDRESS(ROW(A$80),ROW()-ROW(A$80)+(ROWS($88:127)-1)*2,4))","v":0},0,null,0,{"$f":"INDIRECT(ADDRESS(ROW(A$80),ROW()-ROW(A$80)+(ROWS($88:127)-1)*2+1,4))","v":0}]
[{"$f":"IF(B128=\"\",0,INDEX(Price_List,ROWS($88:128)))","v":12},{"$f":"IF($C128=\"\",\"\",COUNTA($C$88:$C128))","v":41},{"$f":"IF(INDEX(INDIRECT(\"Product_List\"),ROWS($88:128))=\"\",\"\",INDEX(INDIRECT(\"Product_List\"),ROWS($88:128)))","v":"41-ขนมปังกรอบเนยน้ำตาล(30กรัม)"},{"$f":"ยอดยกมา","v":0},null,null,null,null,null,null,0,null,{"$f":"INDIRECT(ADDRESS(ROW(A$80),ROW()-ROW(A$80)+(ROWS($88:128)-1)*2-1,4))","v":0},null,0,null,0,null,null,null,0,null,0,null,null,null,null,null,{"$f":"INDIRECT(ADDRESS(ROW(A$80),ROW()-ROW(A$80)+(ROWS($88:128)-1)*2,4))","v":0},0,null,0,{"$f":"INDIRECT(ADDRESS(ROW(A$80),ROW()-ROW(A$80)+(ROWS($88:128)-1)*2+1,4))","v":0}]
[{"$f":"IF(B129=\"\",0,INDEX(Price_List,ROWS($88:129)))","v":18},{"$f":"IF($C129=\"\",\"\",COUNTA($C$88:$C129))","v":42},{"$f":"IF(INDEX(INDIRECT(\"Product_List\"),ROWS($88:129))=\"\",\"\",INDEX(INDIRECT(\"Product_List\"),ROWS($88:129)))","v":"42-ขนมปังชนิดแผ่นโฮลวีต"},{"$f":"ยอดยกมา","v":0},null,null,null,null,null,null,0,null,{"$f":"INDIRECT(ADDRESS(ROW(A$80),ROW()-ROW(A$80)+(ROWS($88:129)-1)*2-1,4))","v":0},null,0,null,0,null,null,null,0,null,0,null,null,null,null,null,{"$f":"INDIRECT(ADDRESS(ROW(A$80),ROW()-ROW(A$80)+(ROWS($88:129)-1)*2,4))","v":0},0,null,0,{"$f":"INDIRECT(ADDRESS(ROW(A$80),ROW()-ROW(A$80)+(ROWS($88:129)-1)*2+1,4))","v":0}]
[{"$f":"IF(B130=\"\",0,INDEX(Price_List,ROWS($88:130)))","v":12},{"$f":"IF($C130=\"\",\"\",COUNTA($C$88:$C130))","v":43},{"$f":"IF(INDEX(INDIRECT(\"Product_List\"),ROWS($88:130))=\"\",\"\",INDEX(INDIRECT(\"Product_List\"),ROWS($88:130)))","v":"43-เค้กโรลใบเตย"},{"$f":"ยอดยกมา","v":0},null,null,null,null,null,null,{"$f":"D130+E130+J130-I130+H130","v":0},null,{"$f":"INDIRECT(ADDRESS(ROW(A$80),ROW()-ROW(A$80)+(ROWS($88:130)-1)*2-1,4))","v":0},null,{"$f":"F130+G130+M130+J130-K130","v":0},null,{"$f":"O130*A130","v":0},null,null,null,{"$f":"D130+E130-F130-G130","v":0},null,{"$f":"U130*6%+U130","v":0},null,null,null,null,null,{"$f":"INDIRECT(ADDRESS(ROW(A$80),ROW()-ROW(A$80)+(ROWS($88:130)-1)*2,4))","v":0},0,null,0,{"$f":"INDIRECT(ADDRESS(ROW(A$80),ROW()-ROW(A$80)+(ROWS($88:130)-1)*2+1,4))","v":0}]
[{"$f":"IF(B131=\"\",0,INDEX(Price_List,ROWS($88:131)))","v":12},{"$f":"IF($C131=\"\",\"\",COUNTA($C$88:$C131))","v":44},{"$f":"IF(INDEX(INDIRECT(\"Product_List\"),ROWS($88:131))=\"\",\"\",INDEX(INDIRECT(\"Product_List\"),ROWS($88:131)))","v":"44-ขนมโมจิไส้ถั่วดำ"},{"$f":"ยอดยกมา","v":0},null,null,null,null,null,null,{"$f":"D131+E131+J131-I131+H131","v":0},null,{"$f":"INDIRECT(ADDRESS(ROW(A$80),ROW()-ROW(A$80)+(ROWS($88:131)-1)*2-1,4))","v":0},null,{"$f":"F131+G131+M131+J131-K131","v":0},null,{"$f":"O131*A131","v":0},null,null,null,{"$f":"D131+E131-F131-G131","v":0},null,{"$f":"U131*6%+U131","v":0},null,null,null,null,null,{"$f":"INDIRECT(ADDRESS(ROW(A$80),ROW()-ROW(A$80)+(ROWS($88:131)-1)*2,4))","v":0},0,null,0,{"$f":"INDIRECT(ADDRESS(ROW(A$80),ROW()-ROW(A$80)+(ROWS($88:131)-1)*2+1,4))","v":0}]
[{"$f":"IF(B132=\"\",0,INDEX(Price_List,ROWS($88:132)))","v":25},{"$f":"IF($C132=\"\",\"\",COUNTA($C$88:$C132))","v":45},{"$f":"IF(INDEX(INDIRECT(\"Product_List\"),ROWS($88:132))=\"\",\"\",INDEX(INDIRECT(\"Product_List\"),ROWS($88:132)))","v":"45-ครัวซองต์ไส้กรอกชีส"},{"$f":"ยอดยกมา","v":0},null,null,null,null,null,null,{"$f":"D132+E132+J132-I132+H132","v":0},null,{"$f":"INDIRECT(ADDRESS(ROW(A$80),ROW()-ROW(A$80)+(ROWS($88:132)-1)*2-1,4))","v":0},null,{"$f":"F132+G132+M132+J132-K132","v":0},null,{"$f":"O132*A132","v":0},null,null,null,{"$f":"D132+E132-F132-G132","v":0},null,{"$f":"U132*6%+U132","v":0},null,null,null,null,null,{"$f":"INDIRECT(ADDRESS(ROW(A$80),ROW()-ROW(A$80)+(ROWS($88:132)-1)*2,4))","v":0},0,null,0,{"$f":"INDIRECT(ADDRESS(ROW(A$80),ROW()-ROW(A$80)+(ROWS($88:132)-1)*2+1,4))","v":0}]
[{"$f":"IF(B133=\"\",0,INDEX(Price_List,ROWS($88:133)))","v":12},{"$f":"IF($C133=\"\",\"\",COUNTA($C$88:$C133))","v":46},{"$f":"IF(INDEX(INDIRECT(\"Product_List\"),ROWS($88:133))=\"\",\"\",INDEX(INDIRECT(\"Product_List\"),ROWS($88:133)))","v":"46-ขนมเปี๊ยะไส้ถั่ว"},{"$f":"ยอดยกมา","v":0},null,null,null,null,null,null,0,null,{"$f":"INDIRECT(ADDRESS(ROW(A$80),ROW()-ROW(A$80)+(ROWS($88:133)-1)*2-1,4))","v":0},null,0,null,0,null,null,null,0,null,0,null,null,null,null,null,{"$f":"INDIRECT(ADDRESS(ROW(A$80),ROW()-ROW(A$80)+(ROWS($88:133)-1)*2,4))","v":0},0,null,0,{"$f":"INDIRECT(ADDRESS(ROW(A$80),ROW()-ROW(A$80)+(ROWS($88:133)-1)*2+1,4))","v":0}]
[{"$f":"IF(B134=\"\",0,INDEX(Price_List,ROWS($88:134)))","v":12},{"$f":"IF($C134=\"\",\"\",COUNTA($C$88:$C134))","v":47},{"$f":"IF(INDEX(INDIRECT(\"Product_List\"),ROWS($88:134))=\"\",\"\",INDEX(INDIRECT(\"Product_List\"),ROWS($88:134)))","v":"47-ขนมเปี๊ยะไส้ฟัก"},{"$f":"ยอดยกมา","v":0},null,null,null,null,null,null,{"$f":"D134+E134+J134-I134+H134","v":0},null,{"$f":"INDIRECT(ADDRESS(ROW(A$80),ROW()-ROW(A$80)+(ROWS($88:134)-1)*2-1,4))","v":0},null,{"$f":"F134+G134+M134+J134-K134","v":0},null,{"$f":"O134*A134","v":0},null,null,null,{"$f":"D134+E134-F134-G134","v":0},null,{"$f":"U134*6%+U134","v":0},null,null,null,null,null,{"$f":"INDIRECT(ADDRESS(ROW(A$80),ROW()-ROW(A$80)+(ROWS($88:134)-1)*2,4))","v":0},0,null,0,{"$f":"INDIRECT(ADDRESS(ROW(A$80),ROW()-ROW(A$80)+(ROWS($88:134)-1)*2+1,4))","v":0}]
[{"$f":"IF(B135=\"\",0,INDEX(Price_List,ROWS($88:135)))","v":12},{"$f":"IF($C135=\"\",\"\",COUNTA($C$88:$C135))","v":48},{"$f":"IF(INDEX(INDIRECT(\"Product_List\"),ROWS($88:135))=\"\",\"\",INDEX(INDIRECT(\"Product_List\"),ROWS($88:135)))","v":"48-มังกี้เค้ก"},{"$f":"ยอดยกมา","v":0},null,null,null,null,null,null,0,null,{"$f":"INDIRECT(ADDRESS(ROW(A$80),ROW()-ROW(A$80)+(ROWS($88:135)-1)*2-1,4))","v":0},null,0,null,0,null,null,null,0,null,0,null,null,null,null,null,{"$f":"INDIRECT(ADDRESS(ROW(A$80),ROW()-ROW(A$80)+(ROWS($88:135)-1)*2,4))","v":0},0,null,0,{"$f":"INDIRECT(ADDRESS(ROW(A$80),ROW()-ROW(A$80)+(ROWS($88:135)-1)*2+1,4))","v":0}]
["รวม",null,null,{"$f":"SUM(D$88:D$135)","v":0},0,0,0,0,0,0,0,null,{"$f":"SUM(M$88:M$135)","v":0},null,null,null,{"$f":"$AP$98","v":0},null,"บาท",null,{"$f":"SUM(U$88:U$135)","v":0},null,{"$f":"SUM(W$88:W$135)","v":0},null,null,null,null,null,{"$f":"SUM(AC$88:AC$135)","v":0},{"$f":"SUM(AD$88:AD$135)","v":0},{"$f":"SUM(AE$88:AE$135)","v":0},{"$f":"SUM(AF$88:AF$135)","v":0},{"$f":"SUM(AG$88:AG$135)","v":0}]
["เลขที่ไมล์ เวลาออกทำงาน",null,null,{"$f":"$BF$3","v":0},null,"Km","น้ำหนักของเสีย"]
["เลขที่ไมล์ เวลากลับ",null,null,{"$f":"$BF$4","v":0},null,"Km",{"$f":"$AA$5","v":0},null,"KG"]
["เวลากลับถึงสำนักงาน",null,null,{"$f":"$BF$1","v":"00:00:00"},null,"น."]
["เติมน้ำมัน",null,null,{"$f":"$AX3","v":0},null,"บาท"]
["จำนวนน้ำมัน",null,null,{"$f":"$AX4","v":0},null,"ลิตร"]
["ยอดรวมต้นทุนสาขา",null,null,{"$f":"$AX5","v":0},null,"บาท"]

{"sheet":"18","index":22,"n_rows":142,"n_cols":154,"rows_kept":142,"cut":false,"hidden":false,"merged":[[83,132,83,133],[129,10,129,11],[129,12,129,13],[129,14,129,15],[129,16,129,17],[127,10,127,11],[127,12,127,13],[127,14,127,15],[127,16,127,17],[127,20,127,21],[127,22,127,23],[127,24,127,25],[127,33,127,36],[126,10,126,11],[126,12,126,13],[126,14,126,15],[126,16,126,17],[128,10,128,11],[128,12,128,13],[129,24,129,25],[125,10,125,11],[125,12,125,13],[125,14,125,15],[125,16,125,17],[7,132,7,134],[8,132,8,134],[80,132,80,133],[82,132,82,133],[7,135,7,137],[8,135,8,137],[80,135,80,136],[82,135,82,136],[7,138,7,140],[7,141,7,143],[7,147,7,149],[8,138,8,140],[141,0,141,2],[141,3,141,4],[138,0,138,2],[138,3,138,4],[139,0,139,2],[139,3,139,4],[140,0,140,2],[140,3,140,4],[135,24,135,25],[135,33,135,36],[136,0,136,2],[136,3,136,4],[137,0,137,2],[137,3,137,4],[137,6,137,7],[137,18,137,21],[135,0,135,2],[135,10,135,11],[135,12,135,13],[135,14,135,15],[135,16,135,17],[135,18,135,19],[135,20,135,21],[135,22,135,23],[128,14,128,15],[128,16,128,17],[128,20,128,21],[128,22,128,23],[129,20,129,21],[129,22,129,23],[131,16,131,17],[132,16,132,17],[134,16,134,17],[131,20,131,21],[132,20,132,21],[134,20,134,21],[131,22,131,23],[132,22,132,23],[134,22,134,23],[131,24,131,25],[132,24,132,25],[134,24,134,25],[129,33,129,36],[128,24,128,25],[128,33,128,36],[126,20,126,21],[126,22,126,23],[124,24,124,25],[124,33,124,36],[125,20,125,21],[125,22,125,23],[125,24,125,25],[125,33,125,36],[124,10,124,11],[124,12,124,13],[124,14,124,15],[124,16,124,17],[124,20,124,21],[124,22,124,23],[126,24,126,25],[126,33,126,36],[122,24,122,25],[122,33,122,36],[123,10,123,11],[123,12,123,13],[123,14,123,15],[123,16,123,17],[123,20,123,21],[123,22,123,23],[123,24,123,25],[123,33,123,36],[122,10,122,11],[122,12,122,13],[122,14,122,15],[122,16,122,17],[122,20,122,21],[122,22,122,23],[120,24,120,25],[120,33,120,36],[121,10,121,11],[121,12,121,13],[121,14,121,15],[121,16,121,17],[121,20,121,21],[121,22,121,23],[121,24,121,25],[121,33,121,36],[120,10,120,11],[120,12,120,13],[120,14,120,15],[120,16,120,17],[120,20,120,21],[120,22,120,23],[118,24,118,25],[118,33,118,36],[119,10,119,11],[119,12,119,13],[119,14,119,15],[119,16,119,17],[119,20,119,21],[119,22,119,23],[119,24,119,25],[119,33,119,36],[118,10,118,11],[118,12,118,13],[118,14,118,15],[118,16,118,17],[118,20,118,21],[118,22,118,23],[116,24,116,25],[116,33,116,36],[117,10,117,11],[117,12,117,13],[117,14,117,15],[117,16,117,17],[117,20,117,21],[117,22,117,23],[117,24,117,25],[117,33,117,36],[116,10,116,11],[116,12,116,13],[116,14,116,15],[116,16,116,17],[116,20,116,21],[116,22,116,23],[114,24,114,25],[114,33,114,36],[115,10,115,11],[115,12,115,13],[115,14,115,15],[115,16,115,17],[115,20,115,21],[115,22,115,23],[115,24,115,25],[115,33,115,36],[114,10,114,11],[114,12,114,13],[114,14,114,15],[114,16,114,17],[114,20,114,21],[114,22,114,23],[112,24,112,25],[112,33,112,36],[113,10,113,11],[113,12,113,13],[113,14,113,15],[113,16,113,17],[113,20,113,21],[113,22,113,23],[113,24,113,25],[113,33,113,36],[112,10,112,11],[112,12,112,13],[112,14,112,15],[112,16,112,17],[112,20,112,21],[112,22,112,23],[110,24,110,25],[110,33,110,36],[111,10,111,11],[111,12,111,13],[111,14,111,15],[111,16,111,17],[111,20,111,21],[111,22,111,23],[111,24,111,25],[111,33,111,36],[110,10,110,11],[110,12,110,13],[110,14,110,15],[110,16,110,17],[110,20,110,21],[110,22,110,23],[108,24,108,25],[108,33,108,36],[109,10,109,11],[109,12,109,13],[109,14,109,15],[109,16,109,17],[109,20,109,21],[109,22,109,23],[109,24,109,25],[109,33,109,36],[108,10,108,11],[108,12,108,13],[108,14,108,15],[108,16,108,17],[108,20,108,21],[108,22,108,23],[106,24,106,25],[106,33,106,36],[107,10,107,11],[107,12,107,13],[107,14,107,15],[107,16,107,17],[107,20,107,21],[107,22,107,23],[107,24,107,25],[107,33,107,36],[106,10,106,11],[106,12,106,13],[106,14,106,15],[106,16,106,17],[106,20,106,21],[106,22,106,23],[104,24,104,25],[104,33,104,36],[105,10,105,11],[105,12,105,13],[105,14,105,15],[105,16,105,17],[105,20,105,21],[105,22,105,23],[105,24,105,25],[105,33,105,36],[104,10,104,11],[104,12,104,13],[104,14,104,15],[104,16,104,17],[104,20,104,21],[104,22,104,23],[102,24,102,25],[102,33,102,36],[103,10,103,11],[103,12,103,13],[103,14,103,15],[103,16,103,17],[103,20,103,21],[103,22,103,23],[103,24,103,25],[103,33,103,36],[102,10,102,11],[102,12,102,13],[102,14,102,15],[102,16,102,17],[102,20,102,21],[102,22,102,23],[101,10,101,11],[101,12,101,13],[101,14,101,15],[101,16,101,17],[101,20,101,21],[101,22,101,23],[101,24,101,25],[101,33,101,36],[100,10,100,11],[100,12,100,13],[100,14,100,15],[100,16,100,17],[100,20,100,21],[100,22,100,23],[99,10,99,11],[99,12,99,13],[99,14,99,15],[99,16,99,17],[99,20,99,21],[99,22,99,23],[99,24,99,25],[99,33,99,36],[100,24,100,25],[100,33,100,36],[97,24,97,25],[97,33,97,36],[97,38,97,40],[98,10,98,11],[98,12,98,13],[98,14,98,15],[98,16,98,17],[98,20,98,21],[98,22,98,23],[98,24,98,25],[97,10,97,11],[97,12,97,13],[97,14,97,15],[97,16,97,17],[97,20,97,21],[97,22,97,23],[98,33,98,36],[95,24,95,25],[95,33,95,36],[96,10,96,11],[96,12,96,13],[96,14,96,15],[96,16,96,17],[96,20,96,21],[96,22,96,23],[96,24,96,25],[96,33,96,36],[95,10,95,11],[95,12,95,13],[95,14,95,15],[95,16,95,17],[95,20,95,21],[95,22,95,23],[93,24,93,25],[93,33,93,36],[94,10,94,11],[94,12,94,13],[94,14,94,15],[94,16,94,17],[94,20,94,21],[94,22,94,23],[94,24,94,25],[94,33,94,36],[93,10,93,11],[93,12,93,13],[93,14,93,15],[93,16,93,17],[93,20,93,21],[93,22,93,23],[91,24,91,25],[91,33,91,36],[92,10,92,11],[92,12,92,13],[92,14,92,15],[92,16,92,17],[92,20,92,21],[92,22,92,23],[92,24,92,25],[92,33,92,36],[91,10,91,11],[91,12,91,13],[91,14,91,15],[91,16,91,17],[91,20,91,21],[91,22,91,23],[86,22,86,23],[86,24,86,25],[88,20,88,21],[88,22,88,23],[88,24,88,25],[88,33,88,36],[89,24,89,25],[89,33,89,36],[90,10,90,11],[90,12,90,13],[90,14,90,15],[90,16,90,17],[90,20,90,21],[90,22,90,23],[90,24,90,25],[90,33,90,36],[89,10,89,11],[89,12,89,13],[89,14,89,15],[89,16,89,17],[89,20,89,21],[89,22,89,23],[83,36,83,37],[83,39,83,40],[83,42,83,43],[83,45,83,46],[83,48,83,49],[83,51,83,52],[83,150,83,153],[86,10,86,11],[86,12,86,13],[86,14,86,15],[86,16,86,17],[86,20,86,21],[83,108,83,109],[83,111,83,112],[83,114,83,115],[83,117,83,118],[83,120,83,121],[83,123,83,124],[83,90,83,91],[83,93,83,94],[83,96,83,97],[83,99,83,100],[83,102,83,103],[83,105,83,106],[82,39,82,40],[82,42,82,43],[82,45,82,46],[82,48,82,49],[83,84,83,85],[83,87,83,88],[83,54,83,55],[83,57,83,58],[83,60,83,61],[83,63,83,64],[83,66,83,67],[83,69,83,70],[83,72,83,73],[83,75,83,76],[83,78,83,79],[83,81,83,82],[83,0,83,5],[83,6,83,7],[83,9,83,10],[83,12,83,13],[83,15,83,16],[82,105,82,106],[82,108,82,109],[82,111,82,112],[82,114,82,115],[82,87,82,88],[82,90,82,91],[82,93,82,94],[82,96,82,97],[82,99,82,100],[82,102,82,103],[82,69,82,70],[82,72,82,73],[82,75,82,76],[82,78,82,79],[82,81,82,82],[82,84,82,85],[82,51,82,52],[82,54,82,55],[82,57,82,58],[82,15,82,16],[82,18,82,19],[82,21,82,22],[82,24,82,25],[82,27,82,28],[82,30,82,31],[81,0,81,2],[81,3,81,5],[81,150,82,153],[82,0,82,2],[82,3,82,4],[82,6,82,7],[82,9,82,10],[82,12,82,13],[82,123,82,124],[82,126,82,127],[82,129,82,130],[82,117,82,118],[82,120,82,121],[82,60,82,61],[82,63,82,64],[82,66,82,67],[82,33,82,34],[82,36,82,37],[80,114,80,115],[80,117,80,118],[80,120,80,121],[80,123,80,124],[80,126,80,127],[80,129,80,130],[80,96,80,97],[80,99,80,100],[80,102,80,103],[80,105,80,106],[80,108,80,109],[80,111,80,112],[80,78,80,79],[80,81,80,82],[80,87,80,88],[80,90,80,91],[80,93,80,94],[80,60,80,61],[80,63,80,64],[80,66,80,67],[80,69,80,70],[80,72,80,73],[80,75,80,76],[80,84,80,85],[79,0,79,5],[80,0,80,5],[80,6,80,7],[80,9,80,10],[80,12,80,13],[80,15,80,16],[80,18,80,19],[80,21,80,22],[8,114,8,116],[8,78,8,80],[8,81,8,83],[8,87,8,89],[8,90,8,92],[8,93,8,95],[8,60,8,62],[8,63,8,65],[8,66,8,68],[8,69,8,71],[8,72,8,74],[8,75,8,77],[8,54,8,56],[8,57,8,59],[8,24,8,26],[8,27,8,29],[8,120,8,122],[8,123,8,125],[8,126,8,128],[8,129,8,131],[8,96,8,98],[8,99,8,101],[8,102,8,104],[8,105,8,107],[8,108,8,110],[8,111,8,113],[8,33,8,35],[8,36,8,38],[8,39,8,41],[8,84,8,86],[7,150,8,150],[7,151,8,151],[8,6,8,8],[8,9,8,11],[8,12,8,14],[8,15,8,17],[8,18,8,20],[8,21,8,23],[7,114,7,116],[7,117,7,119],[7,120,7,122],[7,123,7,125],[7,126,7,128],[7,129,7,131],[7,96,7,98],[7,99,7,101],[7,102,7,104],[7,105,7,107],[7,108,7,110],[8,117,8,119],[7,87,7,89],[7,90,7,92],[7,93,7,95],[7,60,7,62],[7,63,7,65],[7,66,7,68],[7,69,7,71],[7,72,7,74],[7,75,7,77],[7,54,7,56],[7,57,7,59],[7,24,7,26],[7,27,7,29],[7,30,7,32],[7,33,7,35],[7,36,7,38],[7,39,7,41],[7,84,7,86],[6,150,6,151],[6,152,8,152],[6,153,8,153],[7,6,7,8],[7,9,7,11],[7,12,7,14],[7,15,7,17],[7,18,7,20],[7,21,7,23],[6,117,6,119],[6,120,6,122],[6,123,6,125],[6,126,6,128],[6,129,6,131],[6,99,6,101],[6,102,6,104],[6,105,6,107],[6,108,6,110],[6,111,6,113],[6,54,6,56],[6,57,6,59],[7,111,7,113],[7,78,7,80],[7,81,7,83],[6,0,8,0],[6,1,8,1],[6,2,8,2],[6,3,8,3],[6,4,8,4],[6,6,6,8],[6,45,6,47],[6,48,6,50],[6,51,6,53],[7,42,7,44],[7,45,7,47],[7,48,7,50],[7,51,7,53],[8,42,8,44],[8,45,8,47],[8,48,8,50],[8,51,8,53],[6,27,6,29],[6,30,6,32],[6,33,6,35],[6,36,6,38],[6,39,6,41],[6,42,6,44],[8,30,8,32],[4,26,4,29],[4,30,4,31],[4,32,4,34],[4,35,4,36],[6,9,6,11],[6,12,6,14],[6,15,6,17],[6,18,6,20],[6,21,6,23],[6,24,6,26],[3,41,3,44],[3,46,3,48],[3,49,3,51],[3,54,3,56],[3,57,3,60],[4,0,4,1],[4,2,4,3],[4,4,4,5],[4,6,4,12],[4,14,4,16],[3,17,3,19],[3,22,3,25],[3,26,3,29],[3,30,3,33],[3,34,3,37],[3,38,3,40],[4,38,4,40],[4,41,4,44],[4,46,4,48],[4,49,4,51],[4,54,4,56],[4,57,4,60],[4,17,4,19],[4,22,4,25],[2,38,2,40],[3,0,3,1],[3,2,3,3],[3,4,3,5],[3,6,3,12],[3,14,3,16],[2,17,2,19],[2,22,2,25],[2,26,2,29],[2,30,2,33],[80,36,80,37],[80,39,80,40],[0,38,0,40],[0,41,0,44],[0,46,0,48],[0,54,0,56],[0,57,0,60],[2,0,2,1],[2,2,2,3],[2,4,2,5],[2,6,2,12],[2,14,2,16],[0,0,0,12],[0,14,0,16],[0,17,0,23],[0,30,0,33],[0,34,0,35],[0,36,0,37],[2,41,2,44],[2,46,2,48],[2,49,2,51],[2,54,2,56],[2,57,2,60],[2,34,2,37],[6,141,6,143],[6,147,6,149],[83,18,83,19],[83,21,83,22],[83,24,83,25],[83,27,83,28],[83,30,83,31],[83,33,83,34],[83,126,83,127],[83,129,83,130],[8,141,8,143],[8,147,8,149],[80,138,80,139],[80,141,80,142],[80,147,80,148],[82,138,82,139],[82,141,82,142],[82,147,82,148],[6,60,6,62],[6,87,6,89],[6,90,6,92],[6,93,6,95],[6,96,6,98],[6,63,6,65],[88,12,88,13],[88,14,88,15],[88,16,88,17],[6,114,6,116],[6,81,6,83],[6,84,6,86],[6,132,6,134],[6,135,6,137],[6,138,6,140],[6,66,6,68],[6,69,6,71],[6,72,6,74],[6,75,6,77],[6,78,6,80],[80,42,80,43],[80,45,80,46],[80,48,80,49],[80,51,80,52],[80,54,80,55],[80,57,80,58],[80,24,80,25],[80,27,80,28],[80,30,80,31],[80,33,80,34],[83,147,83,148],[131,33,131,36],[132,33,132,36],[134,33,134,36],[131,10,131,11],[132,10,132,11],[134,10,134,11],[131,12,131,13],[132,12,132,13],[134,12,134,13],[131,14,131,15],[132,14,132,15],[134,14,134,15],[86,33,86,36],[87,10,87,11],[87,12,87,13],[87,14,87,15],[87,16,87,17],[87,20,87,21],[87,22,87,23],[83,135,83,136],[130,10,130,11],[130,12,130,13],[130,14,130,15],[6,144,6,146],[7,144,7,146],[8,144,8,146],[80,144,80,145],[82,144,82,145],[83,144,83,145],[133,10,133,11],[133,12,133,13],[133,14,133,15],[133,16,133,17],[133,20,133,21],[133,22,133,23],[133,24,133,25],[133,33,133,36],[83,138,83,139],[83,141,83,142],[130,16,130,17],[130,20,130,21],[130,22,130,23],[130,24,130,25],[130,33,130,36],[87,24,87,25],[87,33,87,36],[88,10,88,11]]}
[":::: รายงานการขายประจำวัน (Sale Daily Report)  ::::",null,null,null,null,null,null,null,null,null,null,null,null,null,"Print Date : ",null,null,{"$f":"NOW()","v":"2025-04-24T22:39:10.130"},null,null,null,null,null,null,null,null,null,null,null,null,"จำนวนร้าน :",null,null,null,{"$f":"MAX($A$10:$A$79)","v":0},null,"ร้าน",null,"เป้ายอดขาย :",null,null,null,null,null,null,null,{"$f":"C3","v":45795},null,null,{"$f":"LEFT('Problems & Solutions'!$B$2,FIND(\"|\",'Problems & Solutions'!$B$2))&\" วันที่\"&TEXT($C$3,\"[$-107041E] d mmmm yyyy;@\")","v":"ขั้นตอนการตรวจรีพอร์ตขาย | วันที่ 18 พฤษภาคม 2568"},null,null,null,null,"เวลากลับ :"]
[]
["วันที่ :",null,{"$f":"DATE(ใส่ข้อมูล!G2-543,ใส่ข้อมูล!V2,ActiveSheetName)","v":"2025-05-18"},null,"พนักงานขาย",null,{"$f":"INDEX(OFFSET(Sale_Region,,1),ActiveSheetName)","v":0},null,null,null,null,null,null,null,"รวมยอดเบิก :",null,null,{"$f":"E136","v":0},null,null,"ชิ้น",null,"ใหญ่สด(40)",null,null,null,{"$f":"Cash_Major_Bill","v":0},null,null,null,"ใหญ่เชื่อ(42)",null,null,null,{"$f":"Credit_Major_Bill","v":0},null,null,null,"บิลใหญ่ :",null,null,{"$f":"AA3+AI3","v":0},null,null,null,null,"เติมน้ำมัน :",null,null,null,null,null,"บาท",null,"ไมล์ออก :",null,null,{"$f":"เลขไมล์ออก","v":0},null,null,null,"Km"]
["เขตการขาย :",null,{"$f":"INDEX(Sale_Region,ActiveSheetName)","v":0},null,"ผช.ขาย",null,{"$f":"INDEX(OFFSET(Sale_Region,,2),ActiveSheetName)","v":0},null,null,null,null,null,null,null,"ของเหลือ :",null,null,{"$f":"F136","v":0},null,null,"ชิ้น",null,"เล็กสด(41)",null,null,null,{"$f":"Cash_Minor_Bill","v":0},null,null,null,"เล็กเชื่อ(43)",null,null,null,{"$f":"Credit_Minor_Bill","v":0},null,null,null,"บิลเล็ก :",null,null,{"$f":"AA4+AI4","v":0},null,null,null,null,"จำนวนลิตร :",null,null,null,null,null,"ลิตร",null,"ไมล์เข้า :",null,null,null,null,null,null,"Km"]
["สายส่ง :",null,{"$f":"\"Sale \"&ใส่ข้อมูล!E3&\"-\"&ใส่ข้อมูล!G3","v":"Sale KB-01"},null,"พนักงานเสริม",null,{"$f":"INDEX(OFFSET(Sale_Region,,3),ActiveSheetName)","v":0},null,null,null,null,null,null,null,"ของเสีย :",null,null,{"$f":"G136","v":0},null,null,"ชิ้น",null,"น้ำหนักของเสีย",null,null,null,null,null,null,null,"Kg.",null,"%ของเสีย",null,null,{"$f":"IF(Order_Cal=0,0,ROUND(Waste_Cal*100/Order_Cal,2))","v":0},null,"%","VAT :",null,null,{"$f":"EW81","v":0},null,null,null,null,"ต้นทุนสาขา :",null,null,{"$f":"SUMPRODUCT((($A$88:$A$135)-($A$88:$A$135)*0.45)*(($E$88:$E$135)-($G$88:$G$135)))","v":0},null,null,"บาท",null,"ระยะทาง :",null,null,{"$f":"IF(OR($BF$4=0,$BF$3=0),0,$BF$4-$BF$3)","v":0},null,null,null,"Km"]
[]
["No","รหัสร้าน (CustNo)","ชื่อร้าน (Store Name)","เวลาเข้าร้าน","ระยะเวลาระหว่างร้าน","บิล(Invoice)",{"$f":"INDEX(INDIRECT(\"dProduct[ProductName]\"),ROUNDUP(COLUMNS($G:G)/3,0))","v":"ขนมปังหมูหยองน้ำสลัด"},null,null,{"$f":"INDEX(INDIRECT(\"dProduct[ProductName]\"),ROUNDUP(COLUMNS($G:J)/3,0))","v":"ขนมปังหมูหยองน้ำพริกเผา"},null,null,{"$f":"INDEX(INDIRECT(\"dProduct[ProductName]\"),ROUNDUP(COLUMNS($G:M)/3,0))","v":"ขนมปังไก่หยองน้ำสลัด"},null,null,{"$f":"INDEX(INDIRECT(\"dProduct[ProductName]\"),ROUNDUP(COLUMNS($G:P)/3,0))","v":"ขนมปังไส้ครีมสลัด"},null,null,{"$f":"INDEX(INDIRECT(\"dProduct[ProductName]\"),ROUNDUP(COLUMNS($G:S)/3,0))","v":"ขนมปังเนยสด"},null,null,{"$f":"INDEX(INDIRECT(\"dProduct[ProductName]\"),ROUNDUP(COLUMNS($G:V)/3,0))","v":"ขนมปังไส้สังขยาเล็ก"},null,null,{"$f":"INDEX(INDIRECT(\"dProduct[ProductName]\"),ROUNDUP(COLUMNS($G:Y)/3,0))","v":"ขนมปังไส้เผือก"},null,null,{"$f":"INDEX(INDIRECT(\"dProduct[ProductName]\"),ROUNDUP(COLUMNS($G:AB)/3,0))","v":"ขนมปังไส้ถั่วแดง"},null,null,{"$f":"INDEX(INDIRECT(\"dProduct[ProductName]\"),ROUNDUP(COLUMNS($G:AE)/3,0))","v":"ขนมปังไส้ถั่วดำ"},null,null,{"$f":"INDEX(INDIRECT(\"dProduct[ProductName]\"),ROUNDUP(COLUMNS($G:AH)/3,0))","v":"ขนมปังไส้มันม่วง"},null,null,{"$f":"INDEX(INDIRECT(\"dProduct[ProductName]\"),ROUNDUP(COLUMNS($G:AK)/3,0))","v":"เค้กกล้วยหอม"},null,null,{"$f":"INDEX(INDIRECT(\"dProduct[ProductName]\"),ROUNDUP(COLUMNS($G:AN)/3,0))","v":"เค้กบัตเตอร์"},null,null,{"$f":"INDEX(INDIRECT(\"dProduct[ProductName]\"),ROUNDUP(COLUMNS($G:AQ)/3,0))","v":"ขนมปังโรลถั่วแดง"},null,null,{"$f":"INDEX(INDIRECT(\"dProduct[ProductName]\"),ROUNDUP(COLUMNS($G:AT)/3,0))","v":"ขนมปังไส้สังขยาใหญ่"},null,null,{"$f":"INDEX(INDIRECT(\"dProduct[ProductName]\"),ROUNDUP(COLUMNS($G:AW)/3,0))","v":"ขนมปังชนิดแผ่น(480กรัม)"},null,null,{"$f":"INDEX(INDIRECT(\"dProduct[ProductName]\"),ROUNDUP(COLUMNS($G:AZ)/3,0))","v":"โมจิไส้ถั่ว"},null,null,{"$f":"INDEX(INDIRECT(\"dProduct[ProductName]\"),ROUNDUP(COLUMNS($G:BC)/3,0))","v":"โมจิไส้เผือก"},null,null,{"$f":"INDEX(INDIRECT(\"dProduct[ProductName]\"),ROUNDUP(COLUMNS($G:BF)/3,0))","v":"โมจิไส้ถั่วไข่เค็ม"},null,null,{"$f":"INDEX(INDIRECT(\"dProduct[ProductName]\"),ROUNDUP(COLUMNS($G:BI)/3,0))","v":"ขนมปังพิซซ่า"},null,null,{"$f":"INDEX(INDIRECT(\"dProduct[ProductName]\"),ROUNDUP(COLUMNS($G:BL)/3,0))","v":"ขนมปังพิซซ่าปูอัดแฮม"},null,null,{"$f":"INDEX(INDIRECT(\"dProduct[ProductName]\"),ROUNDUP(COLUMNS($G:BO)/3,0))","v":"ขนมปังไส้กรอก"},null,null,{"$f":"INDEX(INDIRECT(\"dProduct[ProductName]\"),ROUNDUP(COLUMNS($G:BR)/3,0))","v":"ขนมก้านบัว"},null,null,{"$f":"INDEX(INDIRECT(\"dProduct[ProductName]\"),ROUNDUP(COLUMNS($G:BU)/3,0))","v":"พายสับปะรด"},null,null,{"$f":"INDEX(INDIRECT(\"dProduct[ProductName]\"),ROUNDUP(COLUMNS($G:BX)/3,0))","v":"พายไส้มะพร้าว"},null,null,{"$f":"INDEX(INDIRECT(\"dProduct[ProductName]\"),ROUNDUP(COLUMNS($G:CA)/3,0))","v":"ขนมปังโรลมันเทศ"},null,null,{"$f":"INDEX(INDIRECT(\"dProduct[ProductName]\"),ROUNDUP(COLUMNS($G:CD)/3,0))","v":"ขนมปังไส้ครีมสลัดน้ำพริกเผา"},null,null,{"$f":"INDEX(INDIRECT(\"dProduct[ProductName]\"),ROUNDUP(COLUMNS($G:CG)/3,0))","v":"ขนมปังไส้สังขยาไข่"},null,null,{"$f":"INDEX(INDIRECT(\"dProduct[ProductName]\"),ROUNDUP(COLUMNS($G:CJ)/3,0))","v":"ขนมปังไส้สังขยามะพร้าว"},null,null,{"$f":"INDEX(INDIRECT(\"dProduct[ProductName]\"),ROUNDUP(COLUMNS($G:CM)/3,0))","v":"ขนมปังไส้ครีมชาไทย"},null,null,{"$f":"INDEX(INDIRECT(\"dProduct[ProductName]\"),ROUNDUP(COLUMNS($G:CP)/3,0))","v":"ขนมปังโรลมันม่วง"},null,null,{"$f":"INDEX(INDIRECT(\"dProduct[ProductName]\"),ROUNDUP(COLUMNS($G:CS)/3,0))","v":"ขนมปังโรลช็อกโกแลต"},null,null,{"$f":"INDEX(INDIRECT(\"dProduct[ProductName]\"),ROUNDUP(COLUMNS($G:CV)/3,0))","v":"ขนมปังชนิดแผ่น(155กรัม)"},null,null,{"$f":"INDEX(INDIRECT(\"dProduct[ProductName]\"),ROUNDUP(COLUMNS($G:CY)/3,0))","v":"ขนมปังโรลเผือก"},null,null,{"$f":"INDEX(INDIRECT(\"dProduct[ProductName]\"),ROUNDUP(COLUMNS($G:DB)/3,0))","v":"ขนมปังไก่หยองน้ำสลัด Mini"},null,null,{"$f":"INDEX(INDIRECT(\"dProduct[ProductName]\"),ROUNDUP(COLUMNS($G:DE)/3,0))","v":"ขนมปังไส้ช็อกโกแลต"},null,null,{"$f":"INDEX(INDIRECT(\"dProduct[ProductName]\"),ROUNDUP(COLUMNS($G:DH)/3,0))","v":"ขนมปังไส้ครีมสังขยาไข่"},null,null,{"$f":"INDEX(INDIRECT(\"dProduct[ProductName]\"),ROUNDUP(COLUMNS($G:DK)/3,0))","v":"ขนมปังพิซซ่าฮาวายเอี้ยน"},null,null,{"$f":"INDEX(INDIRECT(\"dProduct[ProductName]\"),ROUNDUP(COLUMNS($G:DN)/3,0))","v":"ครัวซองต์หมูหยองน้ำสลัด"},null,null,{"$f":"INDEX(INDIRECT(\"dProduct[ProductName]\"),ROUNDUP(COLUMNS($G:DQ)/3,0))","v":"แพนเบรดไส้เผือก"},null,null,{"$f":"INDEX(INDIRECT(\"dProduct[ProductName]\"),ROUNDUP(COLUMNS($G:DT)/3,0))","v":"แพนเบรดไส้ถั่วแดง"},null,null,{"$f":"INDEX(INDIRECT(\"dProduct[ProductName]\"),ROUNDUP(COLUMNS($G:DW)/3,0))","v":"ขนมปังกรอบเนยน้ำตาล(30กรัม)"},null,null,{"$f":"INDEX(INDIRECT(\"dProduct[ProductName]\"),ROUNDUP(COLUMNS($G:DZ)/3,0))","v":"ขนมปังชนิดแผ่นโฮลวีต"},null,null,{"$f":"INDEX(INDIRECT(\"dProduct[ProductName]\"),ROUNDUP(COLUMNS($G:EC)/3,0))","v":"เค้กโรลใบเตย"},null,null,{"$f":"INDEX(INDIRECT(\"dProduct[ProductName]\"),ROUNDUP(COLUMNS($G:EF)/3,0))","v":"ขนมโมจิไส้ถั่วดำ"},null,null,{"$f":"INDEX(INDIRECT(\"dProduct[ProductName]\"),ROUNDUP(COLUMNS($G:EI)/3,0))","v":"ครัวซองต์ไส้กรอกชีส"},null,null,{"$f":"INDEX(INDIRECT(\"dProduct[ProductName]\"),ROUNDUP(COLUMNS($G:EL)/3,0))","v":"ขนมเปี๊ยะไส้ถั่ว"},null,null,{"$f":"INDEX(INDIRECT(\"dProduct[ProductName]\"),ROUNDUP(COLUMNS($G:EO)/3,0))","v":"ขนมเปี๊ยะไส้ฟัก"},null,null,{"$f":"INDEX(INDIRECT(\"dProduct[ProductName]\"),ROUNDUP(COLUMNS($G:ER)/3,0))","v":"มังกี้เค้ก"},null,null,"มูลค่าสินค้า",null,"ภาษี","รวมยอดขาย"]
[null,null,null,null,null,"ราคาขาย",{"$f":"IF(G$7=0,0,INDEX(Price_List,ROUNDUP(COLUMNS($G:G)/3,0)))","v":20},null,null,{"$f":"IF(J$7=0,0,INDEX(Price_List,ROUNDUP(COLUMNS($G:J)/3,0)))","v":20},null,null,{"$f":"IF(M$7=0,0,INDEX(Price_List,ROUNDUP(COLUMNS($G:M)/3,0)))","v":20},null,null,{"$f":"IF(P$7=0,0,INDEX(Price_List,ROUNDUP(COLUMNS($G:P)/3,0)))","v":15},null,null,{"$f":"IF(S$7=0,0,INDEX(Price_List,ROUNDUP(COLUMNS($G:S)/3,0)))","v":15},null,null,{"$f":"IF(V$7=0,0,INDEX(Price_List,ROUNDUP(COLUMNS($G:V)/3,0)))","v":10},null,null,{"$f":"IF(Y$7=0,0,INDEX(Price_List,ROUNDUP(COLUMNS($G:Y)/3,0)))","v":10},null,null,{"$f":"IF(AB$7=0,0,INDEX(Price_List,ROUNDUP(COLUMNS($G:AB)/3,0)))","v":10},null,null,{"$f":"IF(AE$7=0,0,INDEX(Price_List,ROUNDUP(COLUMNS($G:AE)/3,0)))","v":10},null,null,{"$f":"IF(AH$7=0,0,INDEX(Price_List,ROUNDUP(COLUMNS($G:AH)/3,0)))","v":10},null,null,{"$f":"IF(AK$7=0,0,INDEX(Price_List,ROUNDUP(COLUMNS($G:AK)/3,0)))","v":15},null,null,{"$f":"IF(AN$7=0,0,INDEX(Price_List,ROUNDUP(COLUMNS($G:AN)/3,0)))","v":15},null,null,{"$f":"IF(AQ$7=0,0,INDEX(Price_List,ROUNDUP(COLUMNS($G:AQ)/3,0)))","v":15},null,null,{"$f":"IF(AT$7=0,0,INDEX(Price_List,ROUNDUP(COLUMNS($G:AT)/3,0)))","v":15},null,null,{"$f":"IF(AW$7=0,0,INDEX(Price_List,ROUNDUP(COLUMNS($G:AW)/3,0)))","v":42},null,null,{"$f":"IF(AZ$7=0,0,INDEX(Price_List,ROUNDUP(COLUMNS($G:AZ)/3,0)))","v":12},null,null,{"$f":"IF(BC$7=0,0,INDEX(Price_List,ROUNDUP(COLUMNS($G:BC)/3,0)))","v":12},null,null,{"$f":"IF(BF$7=0,0,INDEX(Price_List,ROUNDUP(COLUMNS($G:BF)/3,0)))","v":15},null,null,{"$f":"IF(BI$7=0,0,INDEX(Price_List,ROUNDUP(COLUMNS($G:BI)/3,0)))","v":20},null,null,{"$f":"IF(BL$7=0,0,INDEX(Price_List,ROUNDUP(COLUMNS($G:BL)/3,0)))","v":20},null,null,{"$f":"IF(BO$7=0,0,INDEX(Price_List,ROUNDUP(COLUMNS($G:BO)/3,0)))","v":20},null,null,{"$f":"IF(BR$7=0,0,INDEX(Price_List,ROUNDUP(COLUMNS($G:BR)/3,0)))","v":15},null,null,{"$f":"IF(BU$7=0,0,INDEX(Price_List,ROUNDUP(COLUMNS($G:BU)/3,0)))","v":20},null,null,{"$f":"IF(BX$7=0,0,INDEX(Price_List,ROUNDUP(COLUMNS($G:BX)/3,0)))","v":20},null,null,{"$f":"IF(CA$7=0,0,INDEX(Price_List,ROUNDUP(COLUMNS($G:CA)/3,0)))","v":15},null,null,{"$f":"IF(CD$7=0,0,INDEX(Price_List,ROUNDUP(COLUMNS($G:CD)/3,0)))","v":15},null,null,{"$f":"IF(CG$7=0,0,INDEX(Price_List,ROUNDUP(COLUMNS($G:CG)/3,0)))","v":20},null,null,{"$f":"IF(CJ$7=0,0,INDEX(Price_List,ROUNDUP(COLUMNS($G:CJ)/3,0)))","v":20},null,null,{"$f":"IF(CM$7=0,0,INDEX(Price_List,ROUNDUP(COLUMNS($G:CM)/3,0)))","v":10},null,null,{"$f":"IF(CP$7=0,0,INDEX(Price_List,ROUNDUP(COLUMNS($G:CP)/3,0)))","v":15},null,null,{"$f":"IF(CS$7=0,0,INDEX(Price_List,ROUNDUP(COLUMNS($G:CS)/3,0)))","v":15},null,null,{"$f":"IF(CV$7=0,0,INDEX(Price_List,ROUNDUP(COLUMNS($G:CV)/3,0)))","v":16},null,null,{"$f":"IF(CY$7=0,0,INDEX(Price_List,ROUNDUP(COLUMNS($G:CY)/3,0)))","v":15},null,null,{"$f":"IF(DB$7=0,0,INDEX(Price_List,ROUNDUP(COLUMNS($G:DB)/3,0)))","v":15},null,null,{"$f":"IF(DE$7=0,0,INDEX(Price_List,ROUNDUP(COLUMNS($G:DE)/3,0)))","v":10},null,null,{"$f":"IF(DH$7=0,0,INDEX(Price_List,ROUNDUP(COLUMNS($G:DH)/3,0)))","v":10},null,null,{"$f":"IF(DK$7=0,0,INDEX(Price_List,ROUNDUP(COLUMNS($G:DK)/3,0)))","v":20},null,null,{"$f":"IF(DN$7=0,0,INDEX(Price_List,ROUNDUP(COLUMNS($G:DN)/3,0)))","v":20},null,null,{"$f":"IF(DQ$7=0,0,INDEX(Price_List,ROUNDUP(COLUMNS($G:DQ)/3,0)))","v":15},null,null,{"$f":"IF(DT$7=0,0,INDEX(Price_List,ROUNDUP(COLUMNS($G:DT)/3,0)))","v":15},null,null,{"$f":"IF(DW$7=0,0,INDEX(Price_List,ROUNDUP(COLUMNS($G:DW)/3,0)))","v":12},null,null,{"$f":"IF(DZ$7=0,0,INDEX(Price_List,ROUNDUP(COLUMNS($G:DZ)/3,0)))","v":18},null,null,{"$f":"IF(EC$7=0,0,INDEX(Price_List,ROUNDUP(COLUMNS($G:EC)/3,0)))","v":12},null,null,{"$f":"IF(EF$7=0,0,INDEX(Price_List,ROUNDUP(COLUMNS($G:EF)/3,0)))","v":12},null,null,{"$f":"IF(EI$7=0,0,INDEX(Price_List,ROUNDUP(COLUMNS($G:EI)/3,0)))","v":25},null,null,{"$f":"IF(EL$7=0,0,INDEX(Price_List,ROUNDUP(COLUMNS($G:EL)/3,0)))","v":12},null,null,{"$f":"IF(EO$7=0,0,INDEX(Price_List,ROUNDUP(COLUMNS($G:EO)/3,0)))","v":12},null,null,{"$f":"IF(ER$7=0,0,INDEX(Price_List,ROUNDUP(COLUMNS($G:ER)/3,0)))","v":12},null,null,"เงินเชื่อ","เงินสด"]
[null,null,null,null,null,"คงเหลือ(ตามบัญชี)",{"$f":"IF(G$7=0,0,INDEX(INDIRECT(Order_Rng),ROUNDUP(COLUMNS($G:G)/3,0)))","v":0},null,null,{"$f":"IF(J$7=0,0,INDEX(INDIRECT(Order_Rng),ROUNDUP(COLUMNS($G:J)/3,0)))","v":0},null,null,{"$f":"IF(M$7=0,0,INDEX(INDIRECT(Order_Rng),ROUNDUP(COLUMNS($G:M)/3,0)))","v":0},null,null,{"$f":"IF(P$7=0,0,INDEX(INDIRECT(Order_Rng),ROUNDUP(COLUMNS($G:P)/3,0)))","v":0},null,null,{"$f":"IF(S$7=0,0,INDEX(INDIRECT(Order_Rng),ROUNDUP(COLUMNS($G:S)/3,0)))","v":0},null,null,{"$f":"IF(V$7=0,0,INDEX(INDIRECT(Order_Rng),ROUNDUP(COLUMNS($G:V)/3,0)))","v":0},null,null,{"$f":"IF(Y$7=0,0,INDEX(INDIRECT(Order_Rng),ROUNDUP(COLUMNS($G:Y)/3,0)))","v":0},null,null,{"$f":"IF(AB$7=0,0,INDEX(INDIRECT(Order_Rng),ROUNDUP(COLUMNS($G:AB)/3,0)))","v":0},null,null,{"$f":"IF(AE$7=0,0,INDEX(INDIRECT(Order_Rng),ROUNDUP(COLUMNS($G:AE)/3,0)))","v":0},null,null,{"$f":"IF(AH$7=0,0,INDEX(INDIRECT(Order_Rng),ROUNDUP(COLUMNS($G:AH)/3,0)))","v":0},null,null,{"$f":"IF(AK$7=0,0,INDEX(INDIRECT(Order_Rng),ROUNDUP(COLUMNS($G:AK)/3,0)))","v":0},null,null,{"$f":"IF(AN$7=0,0,INDEX(INDIRECT(Order_Rng),ROUNDUP(COLUMNS($G:AN)/3,0)))","v":0},null,null,{"$f":"IF(AQ$7=0,0,INDEX(INDIRECT(Order_Rng),ROUNDUP(COLUMNS($G:AQ)/3,0)))","v":0},null,null,{"$f":"IF(AT$7=0,0,INDEX(INDIRECT(Order_Rng),ROUNDUP(COLUMNS($G:AT)/3,0)))","v":0},null,null,{"$f":"IF(AW$7=0,0,INDEX(INDIRECT(Order_Rng),ROUNDUP(COLUMNS($G:AW)/3,0)))","v":0},null,null,{"$f":"IF(AZ$7=0,0,INDEX(INDIRECT(Order_Rng),ROUNDUP(COLUMNS($G:AZ)/3,0)))","v":0},null,null,{"$f":"IF(BC$7=0,0,INDEX(INDIRECT(Order_Rng),ROUNDUP(COLUMNS($G:BC)/3,0)))","v":0},null,null,{"$f":"IF(BF$7=0,0,INDEX(INDIRECT(Order_Rng),ROUNDUP(COLUMNS($G:BF)/3,0)))","v":0},null,null,{"$f":"IF(BI$7=0,0,INDEX(INDIRECT(Order_Rng),ROUNDUP(COLUMNS($G:BI)/3,0)))","v":0},null,null,{"$f":"IF(BL$7=0,0,INDEX(INDIRECT(Order_Rng),ROUNDUP(COLUMNS($G:BL)/3,0)))","v":0},null,null,{"$f":"IF(BO$7=0,0,INDEX(INDIRECT(Order_Rng),ROUNDUP(COLUMNS($G:BO)/3,0)))","v":0},null,null,{"$f":"IF(BR$7=0,0,INDEX(INDIRECT(Order_Rng),ROUNDUP(COLUMNS($G:BR)/3,0)))","v":0},null,null,{"$f":"IF(BU$7=0,0,INDEX(INDIRECT(Order_Rng),ROUNDUP(COLUMNS($G:BU)/3,0)))","v":0},null,null,{"$f":"IF(BX$7=0,0,INDEX(INDIRECT(Order_Rng),ROUNDUP(COLUMNS($G:BX)/3,0)))","v":0},null,null,{"$f":"IF(CA$7=0,0,INDEX(INDIRECT(Order_Rng),ROUNDUP(COLUMNS($G:CA)/3,0)))","v":0},null,null,{"$f":"IF(CD$7=0,0,INDEX(INDIRECT(Order_Rng),ROUNDUP(COLUMNS($G:CD)/3,0)))","v":0},null,null,{"$f":"IF(CG$7=0,0,INDEX(INDIRECT(Order_Rng),ROUNDUP(COLUMNS($G:CG)/3,0)))","v":0},null,null,{"$f":"IF(CJ$7=0,0,INDEX(INDIRECT(Order_Rng),ROUNDUP(COLUMNS($G:CJ)/3,0)))","v":0},null,null,{"$f":"IF(CM$7=0,0,INDEX(INDIRECT(Order_Rng),ROUNDUP(COLUMNS($G:CM)/3,0)))","v":0},null,null,{"$f":"IF(CP$7=0,0,INDEX(INDIRECT(Order_Rng),ROUNDUP(COLUMNS($G:CP)/3,0)))","v":0},null,null,{"$f":"IF(CS$7=0,0,INDEX(INDIRECT(Order_Rng),ROUNDUP(COLUMNS($G:CS)/3,0)))","v":0},null,null,{"$f":"IF(CV$7=0,0,INDEX(INDIRECT(Order_Rng),ROUNDUP(COLUMNS($G:CV)/3,0)))","v":0},null,null,{"$f":"IF(CY$7=0,0,INDEX(INDIRECT(Order_Rng),ROUNDUP(COLUMNS($G:CY)/3,0)))","v":0},null,null,{"$f":"IF(DB$7=0,0,INDEX(INDIRECT(Order_Rng),ROUNDUP(COLUMNS($G:DB)/3,0)))","v":0},null,null,{"$f":"IF(DE$7=0,0,INDEX(INDIRECT(Order_Rng),ROUNDUP(COLUMNS($G:DE)/3,0)))","v":0},null,null,{"$f":"IF(DH$7=0,0,INDEX(INDIRECT(Order_Rng),ROUNDUP(COLUMNS($G:DH)/3,0)))","v":0},null,null,{"$f":"IF(DK$7=0,0,INDEX(INDIRECT(Order_Rng),ROUNDUP(COLUMNS($G:DK)/3,0)))","v":0},null,null,{"$f":"IF(DN$7=0,0,INDEX(INDIRECT(Order_Rng),ROUNDUP(COLUMNS($G:DN)/3,0)))","v":0},null,null,{"$f":"IF(DQ$7=0,0,INDEX(INDIRECT(Order_Rng),ROUNDUP(COLUMNS($G:DQ)/3,0)))","v":0},null,null,{"$f":"IF(DT$7=0,0,INDEX(INDIRECT(Order_Rng),ROUNDUP(COLUMNS($G:DT)/3,0)))","v":0},null,null,{"$f":"IF(DW$7=0,0,INDEX(INDIRECT(Order_Rng),ROUNDUP(COLUMNS($G:DW)/3,0)))","v":0},null,null,{"$f":"IF(DZ$7=0,0,INDEX(INDIRECT(Order_Rng),ROUNDUP(COLUMNS($G:DZ)/3,0)))","v":0},null,null,{"$f":"IF(EC$7=0,0,INDEX(INDIRECT(Order_Rng),ROUNDUP(COLUMNS($G:EC)/3,0)))","v":0},null,null,{"$f":"IF(EF$7=0,0,INDEX(INDIRECT(Order_Rng),ROUNDUP(COLUMNS($G:EF)/3,0)))","v":0},null,null,{"$f":"IF(EI$7=0,0,INDEX(INDIRECT(Order_Rng),ROUNDUP(COLUMNS($G:EI)/3,0)))","v":0},null,null,{"$f":"IF(EL$7=0,0,INDEX(INDIRECT(Order_Rng),ROUNDUP(COLUMNS($G:EL)/3,0)))","v":0},null,null,{"$f":"IF(EO$7=0,0,INDEX(INDIRECT(Order_Rng),ROUNDUP(COLUMNS($G:EO)/3,0)))","v":0},null,null,{"$f":"IF(ER$7=0,0,INDEX(INDIRECT(Order_Rng),ROUNDUP(COLUMNS($G:ER)/3,0)))","v":0}]
[{"$f":"IF(OR($B10=\"\",COUNTIF($B$10:$B10,$B10)>1,LEN(TRIM($B10))<>10,ISNUMBER(--MID(TRIM($B10),5,1))),\"-\",MAX(COUNT($A$9:$A9)+1))","v":"-"}]
[{"$f":"IF(OR($B11=\"\",COUNTIF($B$10:$B11,$B11)>1,LEN(TRIM($B11))<>10,ISNUMBER(--MID(TRIM($B11),5,1))),\"-\",MAX(COUNT($A$9:$A10)+1))","v":"-"},null,null,null,{"$f":"IF(D11=\"\",\"\",D11-D10)","v":""}]
[{"$f":"IF(OR($B12=\"\",COUNTIF($B$10:$B12,$B12)>1,LEN(TRIM($B12))<>10,ISNUMBER(--MID(TRIM($B12),5,1))),\"-\",MAX(COUNT($A$9:$A11)+1))","v":"-"},null,null,null,{"$f":"IF(D12=\"\",\"\",D12-D11)","v":""}]
[{"$f":"IF(OR($B13=\"\",COUNTIF($B$10:$B13,$B13)>1,LEN(TRIM($B13))<>10,ISNUMBER(--MID(TRIM($B13),5,1))),\"-\",MAX(COUNT($A$9:$A12)+1))","v":"-"},null,null,null,""]
[{"$f":"IF(OR($B14=\"\",COUNTIF($B$10:$B14,$B14)>1,LEN(TRIM($B14))<>10,ISNUMBER(--MID(TRIM($B14),5,1))),\"-\",MAX(COUNT($A$9:$A13)+1))","v":"-"},null,null,null,""]
[{"$f":"IF(OR($B15=\"\",COUNTIF($B$10:$B15,$B15)>1,LEN(TRIM($B15))<>10,ISNUMBER(--MID(TRIM($B15),5,1))),\"-\",MAX(COUNT($A$9:$A14)+1))","v":"-"},null,null,null,""]
[{"$f":"IF(OR($B16=\"\",COUNTIF($B$10:$B16,$B16)>1,LEN(TRIM($B16))<>10,ISNUMBER(--MID(TRIM($B16),5,1))),\"-\",MAX(COUNT($A$9:$A15)+1))","v":"-"},null,null,null,""]
[{"$f":"IF(OR($B17=\"\",COUNTIF($B$10:$B17,$B17)>1,LEN(TRIM($B17))<>10,ISNUMBER(--MID(TRIM($B17),5,1))),\"-\",MAX(COUNT($A$9:$A16)+1))","v":"-"},null,null,null,""]
[{"$f":"IF(OR($B18=\"\",COUNTIF($B$10:$B18,$B18)>1,LEN(TRIM($B18))<>10,ISNUMBER(--MID(TRIM($B18),5,1))),\"-\",MAX(COUNT($A$9:$A17)+1))","v":"-"},null,null,null,""]
[{"$f":"IF(OR($B19=\"\",COUNTIF($B$10:$B19,$B19)>1,LEN(TRIM($B19))<>10,ISNUMBER(--MID(TRIM($B19),5,1))),\"-\",MAX(COUNT($A$9:$A18)+1))","v":"-"},null,null,null,""]
[{"$f":"IF(OR($B20=\"\",COUNTIF($B$10:$B20,$B20)>1,LEN(TRIM($B20))<>10,ISNUMBER(--MID(TRIM($B20),5,1))),\"-\",MAX(COUNT($A$9:$A19)+1))","v":"-"},null,null,null,""]
[{"$f":"IF(OR($B21=\"\",COUNTIF($B$10:$B21,$B21)>1,LEN(TRIM($B21))<>10,ISNUMBER(--MID(TRIM($B21),5,1))),\"-\",MAX(COUNT($A$9:$A20)+1))","v":"-"},null,null,null,""]
[{"$f":"IF(OR($B22=\"\",COUNTIF($B$10:$B22,$B22)>1,LEN(TRIM($B22))<>10,ISNUMBER(--MID(TRIM($B22),5,1))),\"-\",MAX(COUNT($A$9:$A21)+1))","v":"-"},null,null,null,""]
[{"$f":"IF(OR($B23=\"\",COUNTIF($B$10:$B23,$B23)>1,LEN(TRIM($B23))<>10,ISNUMBER(--MID(TRIM($B23),5,1))),\"-\",MAX(COUNT($A$9:$A22)+1))","v":"-"},null,null,null,""]
[{"$f":"IF(OR($B24=\"\",COUNTIF($B$10:$B24,$B24)>1,LEN(TRIM($B24))<>10,ISNUMBER(--MID(TRIM($B24),5,1))),\"-\",MAX(COUNT($A$9:$A23)+1))","v":"-"},null,null,null,""]
[{"$f":"IF(OR($B25=\"\",COUNTIF($B$10:$B25,$B25)>1,LEN(TRIM($B25))<>10,ISNUMBER(--MID(TRIM($B25),5,1))),\"-\",MAX(COUNT($A$9:$A24)+1))","v":"-"},null,null,null,""]
[{"$f":"IF(OR($B26=\"\",COUNTIF($B$10:$B26,$B26)>1,LEN(TRIM($B26))<>10,ISNUMBER(--MID(TRIM($B26),5,1))),\"-\",MAX(COUNT($A$9:$A25)+1))","v":"-"},null,null,null,""]
[{"$f":"IF(OR($B27=\"\",COUNTIF($B$10:$B27,$B27)>1,LEN(TRIM($B27))<>10,ISNUMBER(--MID(TRIM($B27),5,1))),\"-\",MAX(COUNT($A$9:$A26)+1))","v":"-"},null,null,null,""]
[{"$f":"IF(OR($B28=\"\",COUNTIF($B$10:$B28,$B28)>1,LEN(TRIM($B28))<>10,ISNUMBER(--MID(TRIM($B28),5,1))),\"-\",MAX(COUNT($A$9:$A27)+1))","v":"-"},null,null,null,""]
[{"$f":"IF(OR($B29=\"\",COUNTIF($B$10:$B29,$B29)>1,LEN(TRIM($B29))<>10,ISNUMBER(--MID(TRIM($B29),5,1))),\"-\",MAX(COUNT($A$9:$A28)+1))","v":"-"},null,null,null,""]
[{"$f":"IF(OR($B30=\"\",COUNTIF($B$10:$B30,$B30)>1,LEN(TRIM($B30))<>10,ISNUMBER(--MID(TRIM($B30),5,1))),\"-\",MAX(COUNT($A$9:$A29)+1))","v":"-"},null,null,null,""]
[{"$f":"IF(OR($B31=\"\",COUNTIF($B$10:$B31,$B31)>1,LEN(TRIM($B31))<>10,ISNUMBER(--MID(TRIM($B31),5,1))),\"-\",MAX(COUNT($A$9:$A30)+1))","v":"-"},null,null,null,""]
[{"$f":"IF(OR($B32=\"\",COUNTIF($B$10:$B32,$B32)>1,LEN(TRIM($B32))<>10,ISNUMBER(--MID(TRIM($B32),5,1))),\"-\",MAX(COUNT($A$9:$A31)+1))","v":"-"},null,null,null,""]
[{"$f":"IF(OR($B33=\"\",COUNTIF($B$10:$B33,$B33)>1,LEN(TRIM($B33))<>10,ISNUMBER(--MID(TRIM($B33),5,1))),\"-\",MAX(COUNT($A$9:$A32)+1))","v":"-"},null,null,null,""]
[{"$f":"IF(OR($B34=\"\",COUNTIF($B$10:$B34,$B34)>1,LEN(TRIM($B34))<>10,ISNUMBER(--MID(TRIM($B34),5,1))),\"-\",MAX(COUNT($A$9:$A33)+1))","v":"-"},null,null,null,""]
[{"$f":"IF(OR($B35=\"\",COUNTIF($B$10:$B35,$B35)>1,LEN(TRIM($B35))<>10,ISNUMBER(--MID(TRIM($B35),5,1))),\"-\",MAX(COUNT($A$9:$A34)+1))","v":"-"},null,null,null,""]
[{"$f":"IF(OR($B36=\"\",COUNTIF($B$10:$B36,$B36)>1,LEN(TRIM($B36))<>10,ISNUMBER(--MID(TRIM($B36),5,1))),\"-\",MAX(COUNT($A$9:$A35)+1))","v":"-"},null,null,null,""]
[{"$f":"IF(OR($B37=\"\",COUNTIF($B$10:$B37,$B37)>1,LEN(TRIM($B37))<>10,ISNUMBER(--MID(TRIM($B37),5,1))),\"-\",MAX(COUNT($A$9:$A36)+1))","v":"-"},null,null,null,""]
[{"$f":"IF(OR($B38=\"\",COUNTIF($B$10:$B38,$B38)>1,LEN(TRIM($B38))<>10,ISNUMBER(--MID(TRIM($B38),5,1))),\"-\",MAX(COUNT($A$9:$A37)+1))","v":"-"},null,null,null,""]
[{"$f":"IF(OR($B39=\"\",COUNTIF($B$10:$B39,$B39)>1,LEN(TRIM($B39))<>10,ISNUMBER(--MID(TRIM($B39),5,1))),\"-\",MAX(COUNT($A$9:$A38)+1))","v":"-"},null,null,null,""]
[{"$f":"IF(OR($B40=\"\",COUNTIF($B$10:$B40,$B40)>1,LEN(TRIM($B40))<>10,ISNUMBER(--MID(TRIM($B40),5,1))),\"-\",MAX(COUNT($A$9:$A39)+1))","v":"-"},null,null,null,""]
[{"$f":"IF(OR($B41=\"\",COUNTIF($B$10:$B41,$B41)>1,LEN(TRIM($B41))<>10,ISNUMBER(--MID(TRIM($B41),5,1))),\"-\",MAX(COUNT($A$9:$A40)+1))","v":"-"},null,null,null,""]
[{"$f":"IF(OR($B42=\"\",COUNTIF($B$10:$B42,$B42)>1,LEN(TRIM($B42))<>10,ISNUMBER(--MID(TRIM($B42),5,1))),\"-\",MAX(COUNT($A$9:$A41)+1))","v":"-"},null,null,null,""]
[{"$f":"IF(OR($B43=\"\",COUNTIF($B$10:$B43,$B43)>1,LEN(TRIM($B43))<>10,ISNUMBER(--MID(TRIM($B43),5,1))),\"-\",MAX(COUNT($A$9:$A42)+1))","v":"-"},null,null,null,""]
[{"$f":"IF(OR($B44=\"\",COUNTIF($B$10:$B44,$B44)>1,LEN(TRIM($B44))<>10,ISNUMBER(--MID(TRIM($B44),5,1))),\"-\",MAX(COUNT($A$9:$A43)+1))","v":"-"},null,null,null,""]
[{"$f":"IF(OR($B45=\"\",COUNTIF($B$10:$B45,$B45)>1,LEN(TRIM($B45))<>10,ISNUMBER(--MID(TRIM($B45),5,1))),\"-\",MAX(COUNT($A$9:$A44)+1))","v":"-"},null,null,null,""]
[{"$f":"IF(OR($B46=\"\",COUNTIF($B$10:$B46,$B46)>1,LEN(TRIM($B46))<>10,ISNUMBER(--MID(TRIM($B46),5,1))),\"-\",MAX(COUNT($A$9:$A45)+1))","v":"-"},null,null,null,""]
[{"$f":"IF(OR($B47=\"\",COUNTIF($B$10:$B47,$B47)>1,LEN(TRIM($B47))<>10,ISNUMBER(--MID(TRIM($B47),5,1))),\"-\",MAX(COUNT($A$9:$A46)+1))","v":"-"},null,null,null,""]
[{"$f":"IF(OR($B48=\"\",COUNTIF($B$10:$B48,$B48)>1,LEN(TRIM($B48))<>10,ISNUMBER(--MID(TRIM($B48),5,1))),\"-\",MAX(COUNT($A$9:$A47)+1))","v":"-"},null,null,null,""]
[{"$f":"IF(OR($B49=\"\",COUNTIF($B$10:$B49,$B49)>1,LEN(TRIM($B49))<>10,ISNUMBER(--MID(TRIM($B49),5,1))),\"-\",MAX(COUNT($A$9:$A48)+1))","v":"-"},null,null,null,""]
[{"$f":"IF(OR($B50=\"\",COUNTIF($B$10:$B50,$B50)>1,LEN(TRIM($B50))<>10,ISNUMBER(--MID(TRIM($B50),5,1))),\"-\",MAX(COUNT($A$9:$A49)+1))","v":"-"},null,null,null,""]
[{"$f":"IF(OR($B51=\"\",COUNTIF($B$10:$B51,$B51)>1,LEN(TRIM($B51))<>10,ISNUMBER(--MID(TRIM($B51),5,1))),\"-\",MAX(COUNT($A$9:$A50)+1))","v":"-"},null,null,null,""]
[{"$f":"IF(OR($B52=\"\",COUNTIF($B$10:$B52,$B52)>1,LEN(TRIM($B52))<>10,ISNUMBER(--MID(TRIM($B52),5,1))),\"-\",MAX(COUNT($A$9:$A51)+1))","v":"-"},null,null,null,""]
[{"$f":"IF(OR($B53=\"\",COUNTIF($B$10:$B53,$B53)>1,LEN(TRIM($B53))<>10,ISNUMBER(--MID(TRIM($B53),5,1))),\"-\",MAX(COUNT($A$9:$A52)+1))","v":"-"},null,null,null,""]
[{"$f":"IF(OR($B54=\"\",COUNTIF($B$10:$B54,$B54)>1,LEN(TRIM($B54))<>10,ISNUMBER(--MID(TRIM($B54),5,1))),\"-\",MAX(COUNT($A$9:$A53)+1))","v":"-"},null,null,null,""]
[{"$f":"IF(OR($B55=\"\",COUNTIF($B$10:$B55,$B55)>1,LEN(TRIM($B55))<>10,ISNUMBER(--MID(TRIM($B55),5,1))),\"-\",MAX(COUNT($A$9:$A54)+1))","v":"-"},null,null,null,""]
[{"$f":"IF(OR($B56=\"\",COUNTIF($B$10:$B56,$B56)>1,LEN(TRIM($B56))<>10,ISNUMBER(--MID(TRIM($B56),5,1))),\"-\",MAX(COUNT($A$9:$A55)+1))","v":"-"},null,null,null,""]
[{"$f":"IF(OR($B57=\"\",COUNTIF($B$10:$B57,$B57)>1,LEN(TRIM($B57))<>10,ISNUMBER(--MID(TRIM($B57),5,1))),\"-\",MAX(COUNT($A$9:$A56)+1))","v":"-"},null,null,null,""]
[{"$f":"IF(OR($B58=\"\",COUNTIF($B$10:$B58,$B58)>1,LEN(TRIM($B58))<>10,ISNUMBER(--MID(TRIM($B58),5,1))),\"-\",MAX(COUNT($A$9:$A57)+1))","v":"-"},null,null,null,""]
[{"$f":"IF(OR($B59=\"\",COUNTIF($B$10:$B59,$B59)>1,LEN(TRIM($B59))<>10,ISNUMBER(--MID(TRIM($B59),5,1))),\"-\",MAX(COUNT($A$9:$A58)+1))","v":"-"},null,null,null,""]
[{"$f":"IF(OR($B60=\"\",COUNTIF($B$10:$B60,$B60)>1,LEN(TRIM($B60))<>10,ISNUMBER(--MID(TRIM($B60),5,1))),\"-\",MAX(COUNT($A$9:$A59)+1))","v":"-"},null,null,null,""]
[{"$f":"IF(OR($B61=\"\",COUNTIF($B$10:$B61,$B61)>1,LEN(TRIM($B61))<>10,ISNUMBER(--MID(TRIM($B61),5,1))),\"-\",MAX(COUNT($A$9:$A60)+1))","v":"-"},null,null,null,""]
[{"$f":"IF(OR($B62=\"\",COUNTIF($B$10:$B62,$B62)>1,LEN(TRIM($B62))<>10,ISNUMBER(--MID(TRIM($B62),5,1))),\"-\",MAX(COUNT($A$9:$A61)+1))","v":"-"},null,null,null,""]
[{"$f":"IF(OR($B63=\"\",COUNTIF($B$10:$B63,$B63)>1,LEN(TRIM($B63))<>10,ISNUMBER(--MID(TRIM($B63),5,1))),\"-\",MAX(COUNT($A$9:$A62)+1))","v":"-"},null,null,null,""]
[{"$f":"IF(OR($B64=\"\",COUNTIF($B$10:$B64,$B64)>1,LEN(TRIM($B64))<>10,ISNUMBER(--MID(TRIM($B64),5,1))),\"-\",MAX(COUNT($A$9:$A63)+1))","v":"-"},null,null,null,""]
[{"$f":"IF(OR($B65=\"\",COUNTIF($B$10:$B65,$B65)>1,LEN(TRIM($B65))<>10,ISNUMBER(--MID(TRIM($B65),5,1))),\"-\",MAX(COUNT($A$9:$A64)+1))","v":"-"},null,null,null,""]
[{"$f":"IF(OR($B66=\"\",COUNTIF($B$10:$B66,$B66)>1,LEN(TRIM($B66))<>10,ISNUMBER(--MID(TRIM($B66),5,1))),\"-\",MAX(COUNT($A$9:$A65)+1))","v":"-"},null,null,null,""]
[{"$f":"IF(OR($B67=\"\",COUNTIF($B$10:$B67,$B67)>1,LEN(TRIM($B67))<>10,ISNUMBER(--MID(TRIM($B67),5,1))),\"-\",MAX(COUNT($A$9:$A66)+1))","v":"-"},null,null,null,""]
[{"$f":"IF(OR($B68=\"\",COUNTIF($B$10:$B68,$B68)>1,LEN(TRIM($B68))<>10,ISNUMBER(--MID(TRIM($B68),5,1))),\"-\",MAX(COUNT($A$9:$A67)+1))","v":"-"},null,null,null,""]
[{"$f":"IF(OR($B69=\"\",COUNTIF($B$10:$B69,$B69)>1,LEN(TRIM($B69))<>10,ISNUMBER(--MID(TRIM($B69),5,1))),\"-\",MAX(COUNT($A$9:$A68)+1))","v":"-"},null,null,null,""]
[{"$f":"IF(OR($B70=\"\",COUNTIF($B$10:$B70,$B70)>1,LEN(TRIM($B70))<>10,ISNUMBER(--MID(TRIM($B70),5,1))),\"-\",MAX(COUNT($A$9:$A69)+1))","v":"-"},null,null,null,""]
[{"$f":"IF(OR($B71=\"\",COUNTIF($B$10:$B71,$B71)>1,LEN(TRIM($B71))<>10,ISNUMBER(--MID(TRIM($B71),5,1))),\"-\",MAX(COUNT($A$9:$A70)+1))","v":"-"},null,null,null,""]
[{"$f":"IF(OR($B72=\"\",COUNTIF($B$10:$B72,$B72)>1,LEN(TRIM($B72))<>10,ISNUMBER(--MID(TRIM($B72),5,1))),\"-\",MAX(COUNT($A$9:$A71)+1))","v":"-"},null,null,null,""]
[{"$f":"IF(OR($B73=\"\",COUNTIF($B$10:$B73,$B73)>1,LEN(TRIM($B73))<>10,ISNUMBER(--MID(TRIM($B73),5,1))),\"-\",MAX(COUNT($A$9:$A72)+1))","v":"-"},null,null,null,""]
[{"$f":"IF(OR($B74=\"\",COUNTIF($B$10:$B74,$B74)>1,LEN(TRIM($B74))<>10,ISNUMBER(--MID(TRIM($B74),5,1))),\"-\",MAX(COUNT($A$9:$A73)+1))","v":"-"},null,null,null,""]
[{"$f":"IF(OR($B75=\"\",COUNTIF($B$10:$B75,$B75)>1,LEN(TRIM($B75))<>10,ISNUMBER(--MID(TRIM($B75),5,1))),\"-\",MAX(COUNT($A$9:$A74)+1))","v":"-"},null,null,null,""]
[{"$f":"IF(OR($B76=\"\",COUNTIF($B$10:$B76,$B76)>1,LEN(TRIM($B76))<>10,ISNUMBER(--MID(TRIM($B76),5,1))),\"-\",MAX(COUNT($A$9:$A75)+1))","v":"-"},null,null,null,{"$f":"IF(D76=\"\",\"\",D76-D75)","v":""}]
[{"$f":"IF(OR($B77=\"\",COUNTIF($B$10:$B77,$B77)>1,LEN(TRIM($B77))<>10,ISNUMBER(--MID(TRIM($B77),5,1))),\"-\",MAX(COUNT($A$9:$A76)+1))","v":"-"},null,null,null,""]
[{"$f":"IF(OR($B78=\"\",COUNTIF($B$10:$B78,$B78)>1,LEN(TRIM($B78))<>10,ISNUMBER(--MID(TRIM($B78),5,1))),\"-\",MAX(COUNT($A$9:$A77)+1))","v":"-"},null,null,null,""]
[{"$f":"IF(OR($B79=\"\",COUNTIF($B$10:$B79,$B79)>1,LEN(TRIM($B79))<>10,ISNUMBER(--MID(TRIM($B79),5,1))),\"-\",MAX(COUNT($A$9:$A78)+1))","v":"-"},null,null,null,""]
["รวมของขาย|ของเสีย|เหลือบนเชลฟ์",null,null,null,null,null,{"$f":"SUM(G10:G79)","v":0},0,0,{"$f":"SUM(J10:J79)","v":0},0,0,0,0,0,0,0,0,0,0,0,0,0,0,0,0,0,0,0,0,0,0,0,0,0,0,0,0,0,0,0,0,0,0,0,0,0,0,0,0,0,0,0,0,0,0,0,0,0,0,0,0,0,0,0,0,0,0,0,0,0,0,0,{"$f":"SUM(BV10:BV79)","v":0},0,0,0,0,0,0,0,0,0,0,0,0,0,0,0,0,0,0,0,0,0,0,0,0,0,0,0,0,0,0,0,0,0,0,0,0,0,0,0,0,0,0,0,0,0,0,0,0,0,0,0,0,0,0,0,0,0,0,0,0,0,{"$f":"SUM(EF10:EF79)","v":0},0,0,{"$f":"SUM(EI10:EI79)","v":0},0,0,0,0,0,{"$f":"SUM(EO10:EO79)","v":0},0,0,0,0,0,"รวมเงินเชื่อ","รวมเงินสด","ภาษี","รวมยอดขาย"]
["ของเหลือ",null,null,null,null,null,{"$f":"G80+H80-G9","v":0},null,null,{"$f":"J80+K80-J9","v":0},null,null,{"$f":"M80+N80-M9","v":0},null,null,{"$f":"P80+Q80-P9","v":0},null,null,{"$f":"S80+T80-S9","v":0},null,null,{"$f":"V80+W80-V9","v":0},null,null,{"$f":"Y80+Z80-Y9","v":0},null,null,{"$f":"AB80+AC80-AB9","v":0},null,null,{"$f":"AE80+AF80-AE9","v":0},null,null,{"$f":"AH80+AI80-AH9","v":0},null,null,{"$f":"AK80+AL80-AK9","v":0},null,null,{"$f":"AN80+AO80-AN9","v":0},null,null,{"$f":"AQ80+AR80-AQ9","v":0},null,null,{"$f":"AT80+AU80-AT9","v":0},null,null,{"$f":"AW80+AX80-AW9","v":0},null,null,{"$f":"AZ80+BA80-AZ9","v":0},null,null,{"$f":"BC80+BD80-BC9","v":0},null,null,{"$f":"BF80+BG80-BF9","v":0},null,null,{"$f":"BI80+BJ80-BI9","v":0},null,null,{"$f":"BL80+BM80-BL9","v":0},null,null,{"$f":"BO80+BP80-BO9","v":0},null,null,{"$f":"BR80+BS80-BR9","v":0},null,null,{"$f":"BU80+BV80-BU9","v":0},null,null,{"$f":"BX80+BY80-BX9","v":0},null,null,{"$f":"CA80+CB80-CA9","v":0},null,null,{"$f":"CD80+CE80-CD9","v":0},null,null,{"$f":"CG80+CH80-CG9","v":0},null,null,{"$f":"CJ80+CK80-CJ9","v":0},null,null,{"$f":"CM80+CN80-CM9","v":0},null,null,{"$f":"CP80+CQ80-CP9","v":0},null,null,{"$f":"CS80+CT80-CS9","v":0},null,null,{"$f":"CV80+CW80-CV9","v":0},null,null,{"$f":"CY80+CZ80-CY9","v":0},null,null,{"$f":"DB80+DC80-DB9","v":0},null,null,{"$f":"DE80+DF80-DE9","v":0},null,null,{"$f":"DH80+DI80-DH9","v":0},null,null,{"$f":"DK80+DL80-DK9","v":0},null,null,{"$f":"DN80+DO80-DN9","v":0},null,null,{"$f":"DQ80+DR80-DQ9","v":0},null,null,{"$f":"DT80+DU80-DT9","v":0},null,null,{"$f":"DW80+DX80-DW9","v":0},null,null,{"$f":"DZ80+EA80-DZ9","v":0},null,null,{"$f":"EC80+ED80-EC9","v":0},null,null,{"$f":"EF80+EG80-EF9","v":0},null,null,{"$f":"EI80+EJ80-EI9","v":0},null,null,{"$f":"EL80+EM80-EL9","v":0},null,null,{"$f":"EO80+EP80-EO9","v":0},null,null,{"$f":"ER80+ES80-ER9","v":0},null,null,{"$f":"SUM(EU10:EU79)","v":0},{"$f":"SUM(EV10:EV79)","v":0},{"$f":"SUM(EW10:EW79)","v":0},{"$f":"SUM(EX10:EX79)","v":0}]
["เฉลี่ย",null,null,"เหลือ/เสีย(จริง)",null,null,{"$f":"INDIRECT(\"F\"&ROW($G$87)+ROUNDUP(COLUMNS($G:G)/3,0))","v":0},{"$f":"INDIRECT(\"G\"&ROW($G$87)+ROUNDUP(COLUMNS($G:H)/3,0))","v":0},null,{"$f":"INDIRECT(\"F\"&ROW($G$87)+ROUNDUP(COLUMNS($G:J)/3,0))","v":0},{"$f":"INDIRECT(\"G\"&ROW($G$87)+ROUNDUP(COLUMNS($G:K)/3,0))","v":0},null,{"$f":"INDIRECT(\"F\"&ROW($G$87)+ROUNDUP(COLUMNS($G:M)/3,0))","v":0},{"$f":"INDIRECT(\"G\"&ROW($G$87)+ROUNDUP(COLUMNS($G:N)/3,0))","v":0},null,{"$f":"INDIRECT(\"F\"&ROW($G$87)+ROUNDUP(COLUMNS($G:P)/3,0))","v":0},{"$f":"INDIRECT(\"G\"&ROW($G$87)+ROUNDUP(COLUMNS($G:Q)/3,0))","v":0},null,{"$f":"INDIRECT(\"F\"&ROW($G$87)+ROUNDUP(COLUMNS($G:S)/3,0))","v":0},{"$f":"INDIRECT(\"G\"&ROW($G$87)+ROUNDUP(COLUMNS($G:T)/3,0))","v":0},null,{"$f":"INDIRECT(\"F\"&ROW($G$87)+ROUNDUP(COLUMNS($G:V)/3,0))","v":0},{"$f":"INDIRECT(\"G\"&ROW($G$87)+ROUNDUP(COLUMNS($G:W)/3,0))","v":0},null,{"$f":"INDIRECT(\"F\"&ROW($G$87)+ROUNDUP(COLUMNS($G:Y)/3,0))","v":0},{"$f":"INDIRECT(\"G\"&ROW($G$87)+ROUNDUP(COLUMNS($G:Z)/3,0))","v":0},null,{"$f":"INDIRECT(\"F\"&ROW($G$87)+ROUNDUP(COLUMNS($G:AB)/3,0))","v":0},{"$f":"INDIRECT(\"G\"&ROW($G$87)+ROUNDUP(COLUMNS($G:AC)/3,0))","v":0},null,{"$f":"INDIRECT(\"F\"&ROW($G$87)+ROUNDUP(COLUMNS($G:AE)/3,0))","v":0},{"$f":"INDIRECT(\"G\"&ROW($G$87)+ROUNDUP(COLUMNS($G:AF)/3,0))","v":0},null,{"$f":"INDIRECT(\"F\"&ROW($G$87)+ROUNDUP(COLUMNS($G:AH)/3,0))","v":0},{"$f":"INDIRECT(\"G\"&ROW($G$87)+ROUNDUP(COLUMNS($G:AI)/3,0))","v":0},null,{"$f":"INDIRECT(\"F\"&ROW($G$87)+ROUNDUP(COLUMNS($G:AK)/3,0))","v":0},{"$f":"INDIRECT(\"G\"&ROW($G$87)+ROUNDUP(COLUMNS($G:AL)/3,0))","v":0},null,{"$f":"INDIRECT(\"F\"&ROW($G$87)+ROUNDUP(COLUMNS($G:AN)/3,0))","v":0},{"$f":"INDIRECT(\"G\"&ROW($G$87)+ROUNDUP(COLUMNS($G:AO)/3,0))","v":0},null,{"$f":"INDIRECT(\"F\"&ROW($G$87)+ROUNDUP(COLUMNS($G:AQ)/3,0))","v":0},{"$f":"INDIRECT(\"G\"&ROW($G$87)+ROUNDUP(COLUMNS($G:AR)/3,0))","v":0},null,{"$f":"INDIRECT(\"F\"&ROW($G$87)+ROUNDUP(COLUMNS($G:AT)/3,0))","v":0},{"$f":"INDIRECT(\"G\"&ROW($G$87)+ROUNDUP(COLUMNS($G:AU)/3,0))","v":0},null,{"$f":"INDIRECT(\"F\"&ROW($G$87)+ROUNDUP(COLUMNS($G:AW)/3,0))","v":0},{"$f":"INDIRECT(\"G\"&ROW($G$87)+ROUNDUP(COLUMNS($G:AX)/3,0))","v":0},null,{"$f":"INDIRECT(\"F\"&ROW($G$87)+ROUNDUP(COLUMNS($G:AZ)/3,0))","v":0},{"$f":"INDIRECT(\"G\"&ROW($G$87)+ROUNDUP(COLUMNS($G:BA)/3,0))","v":0},null,{"$f":"INDIRECT(\"F\"&ROW($G$87)+ROUNDUP(COLUMNS($G:BC)/3,0))","v":0},{"$f":"INDIRECT(\"G\"&ROW($G$87)+ROUNDUP(COLUMNS($G:BD)/3,0))","v":0},null,{"$f":"INDIRECT(\"F\"&ROW($G$87)+ROUNDUP(COLUMNS($G:BF)/3,0))","v":0},{"$f":"INDIRECT(\"G\"&ROW($G$87)+ROUNDUP(COLUMNS($G:BG)/3,0))","v":0},null,{"$f":"INDIRECT(\"F\"&ROW($G$87)+ROUNDUP(COLUMNS($G:BI)/3,0))","v":0},{"$f":"INDIRECT(\"G\"&ROW($G$87)+ROUNDUP(COLUMNS($G:BJ)/3,0))","v":0},null,{"$f":"INDIRECT(\"F\"&ROW($G$87)+ROUNDUP(COLUMNS($G:BL)/3,0))","v":0},{"$f":"INDIRECT(\"G\"&ROW($G$87)+ROUNDUP(COLUMNS($G:BM)/3,0))","v":0},null,{"$f":"INDIRECT(\"F\"&ROW($G$87)+ROUNDUP(COLUMNS($G:BO)/3,0))","v":0},{"$f":"INDIRECT(\"G\"&ROW($G$87)+ROUNDUP(COLUMNS($G:BP)/3,0))","v":0},null,{"$f":"INDIRECT(\"F\"&ROW($G$87)+ROUNDUP(COLUMNS($G:BR)/3,0))","v":0},{"$f":"INDIRECT(\"G\"&ROW($G$87)+ROUNDUP(COLUMNS($G:BS)/3,0))","v":0},null,{"$f":"INDIRECT(\"F\"&ROW($G$87)+ROUNDUP(COLUMNS($G:BU)/3,0))","v":0},{"$f":"INDIRECT(\"G\"&ROW($G$87)+ROUNDUP(COLUMNS($G:BV)/3,0))","v":0},null,{"$f":"INDIRECT(\"F\"&ROW($G$87)+ROUNDUP(COLUMNS($G:BX)/3,0))","v":0},{"$f":"INDIRECT(\"G\"&ROW($G$87)+ROUNDUP(COLUMNS($G:BY)/3,0))","v":0},null,{"$f":"INDIRECT(\"F\"&ROW($G$87)+ROUNDUP(COLUMNS($G:CA)/3,0))","v":0},{"$f":"INDIRECT(\"G\"&ROW($G$87)+ROUNDUP(COLUMNS($G:CB)/3,0))","v":0},null,{"$f":"INDIRECT(\"F\"&ROW($G$87)+ROUNDUP(COLUMNS($G:CD)/3,0))","v":0},{"$f":"INDIRECT(\"G\"&ROW($G$87)+ROUNDUP(COLUMNS($G:CE)/3,0))","v":0},null,{"$f":"INDIRECT(\"F\"&ROW($G$87)+ROUNDUP(COLUMNS($G:CG)/3,0))","v":0},{"$f":"INDIRECT(\"G\"&ROW($G$87)+ROUNDUP(COLUMNS($G:CH)/3,0))","v":0},null,{"$f":"INDIRECT(\"F\"&ROW($G$87)+ROUNDUP(COLUMNS($G:CJ)/3,0))","v":0},{"$f":"INDIRECT(\"G\"&ROW($G$87)+ROUNDUP(COLUMNS($G:CK)/3,0))","v":0},null,{"$f":"INDIRECT(\"F\"&ROW($G$87)+ROUNDUP(COLUMNS($G:CM)/3,0))","v":0},{"$f":"INDIRECT(\"G\"&ROW($G$87)+ROUNDUP(COLUMNS($G:CN)/3,0))","v":0},null,{"$f":"INDIRECT(\"F\"&ROW($G$87)+ROUNDUP(COLUMNS($G:CP)/3,0))","v":0},{"$f":"INDIRECT(\"G\"&ROW($G$87)+ROUNDUP(COLUMNS($G:CQ)/3,0))","v":0},null,{"$f":"INDIRECT(\"F\"&ROW($G$87)+ROUNDUP(COLUMNS($G:CS)/3,0))","v":0},{"$f":"INDIRECT(\"G\"&ROW($G$87)+ROUNDUP(COLUMNS($G:CT)/3,0))","v":0},null,{"$f":"INDIRECT(\"F\"&ROW($G$87)+ROUNDUP(COLUMNS($G:CV)/3,0))","v":0},{"$f":"INDIRECT(\"G\"&ROW($G$87)+ROUNDUP(COLUMNS($G:CW)/3,0))","v":0},null,{"$f":"INDIRECT(\"F\"&ROW($G$87)+ROUNDUP(COLUMNS($G:CY)/3,0))","v":0},{"$f":"INDIRECT(\"G\"&ROW($G$87)+ROUNDUP(COLUMNS($G:CZ)/3,0))","v":0},null,{"$f":"INDIRECT(\"F\"&ROW($G$87)+ROUNDUP(COLUMNS($G:DB)/3,0))","v":0},{"$f":"INDIRECT(\"G\"&ROW($G$87)+ROUNDUP(COLUMNS($G:DC)/3,0))","v":0},null,{"$f":"INDIRECT(\"F\"&ROW($G$87)+ROUNDUP(COLUMNS($G:DE)/3,0))","v":0},{"$f":"INDIRECT(\"G\"&ROW($G$87)+ROUNDUP(COLUMNS($G:DF)/3,0))","v":0},null,{"$f":"INDIRECT(\"F\"&ROW($G$87)+ROUNDUP(COLUMNS($G:DH)/3,0))","v":0},{"$f":"INDIRECT(\"G\"&ROW($G$87)+ROUNDUP(COLUMNS($G:DI)/3,0))","v":0},null,{"$f":"INDIRECT(\"F\"&ROW($G$87)+ROUNDUP(COLUMNS($G:DK)/3,0))","v":0},{"$f":"INDIRECT(\"G\"&ROW($G$87)+ROUNDUP(COLUMNS($G:DL)/3,0))","v":0},null,{"$f":"INDIRECT(\"F\"&ROW($G$87)+ROUNDUP(COLUMNS($G:DN)/3,0))","v":0},{"$f":"INDIRECT(\"G\"&ROW($G$87)+ROUNDUP(COLUMNS($G:DO)/3,0))","v":0},null,{"$f":"INDIRECT(\"F\"&ROW($G$87)+ROUNDUP(COLUMNS($G:DQ)/3,0))","v":0},{"$f":"INDIRECT(\"G\"&ROW($G$87)+ROUNDUP(COLUMNS($G:DR)/3,0))","v":0},null,{"$f":"INDIRECT(\"F\"&ROW($G$87)+ROUNDUP(COLUMNS($G:DT)/3,0))","v":0},{"$f":"INDIRECT(\"G\"&ROW($G$87)+ROUNDUP(COLUMNS($G:DU)/3,0))","v":0},null,{"$f":"INDIRECT(\"F\"&ROW($G$87)+ROUNDUP(COLUMNS($G:DW)/3,0))","v":0},{"$f":"INDIRECT(\"G\"&ROW($G$87)+ROUNDUP(COLUMNS($G:DX)/3,0))","v":0},null,{"$f":"INDIRECT(\"F\"&ROW($G$87)+ROUNDUP(COLUMNS($G:DZ)/3,0))","v":0},{"$f":"INDIRECT(\"G\"&ROW($G$87)+ROUNDUP(COLUMNS($G:EA)/3,0))","v":0},null,{"$f":"INDIRECT(\"F\"&ROW($G$87)+ROUNDUP(COLUMNS($G:EC)/3,0))","v":0},{"$f":"INDIRECT(\"G\"&ROW($G$87)+ROUNDUP(COLUMNS($G:ED)/3,0))","v":0},null,{"$f":"INDIRECT(\"F\"&ROW($G$87)+ROUNDUP(COLUMNS($G:EF)/3,0))","v":0},{"$f":"INDIRECT(\"G\"&ROW($G$87)+ROUNDUP(COLUMNS($G:EG)/3,0))","v":0},null,{"$f":"INDIRECT(\"F\"&ROW($G$87)+ROUNDUP(COLUMNS($G:EI)/3,0))","v":0},{"$f":"INDIRECT(\"G\"&ROW($G$87)+ROUNDUP(COLUMNS($G:EJ)/3,0))","v":0},null,{"$f":"INDIRECT(\"F\"&ROW($G$87)+ROUNDUP(COLUMNS($G:EL)/3,0))","v":0},{"$f":"INDIRECT(\"G\"&ROW($G$87)+ROUNDUP(COLUMNS($G:EM)/3,0))","v":0},null,{"$f":"INDIRECT(\"F\"&ROW($G$87)+ROUNDUP(COLUMNS($G:EO)/3,0))","v":0},{"$f":"INDIRECT(\"G\"&ROW($G$87)+ROUNDUP(COLUMNS($G:EP)/3,0))","v":0},null,{"$f":"INDIRECT(\"F\"&ROW($G$87)+ROUNDUP(COLUMNS($G:ER)/3,0))","v":0},{"$f":"INDIRECT(\"G\"&ROW($G$87)+ROUNDUP(COLUMNS($G:ES)/3,0))","v":0},null,{"$f":"EU81+EV81","v":0}]
["เวลากลับถึงสำนักงานเช็คของเสีย",null,null,{"$f":"D139","v":"00:00:00"},null,"ผลต่าง",{"$f":"G82+H82+G80-G9","v":0},null,null,{"$f":"J82+K82+J80-J9","v":0},null,null,{"$f":"M82+N82+M80-M9","v":0},null,null,{"$f":"P82+Q82+P80-P9","v":0},null,null,{"$f":"S82+T82+S80-S9","v":0},null,null,{"$f":"V82+W82+V80-V9","v":0},null,null,{"$f":"Y82+Z82+Y80-Y9","v":0},null,null,{"$f":"AB82+AC82+AB80-AB9","v":0},null,null,{"$f":"AE82+AF82+AE80-AE9","v":0},null,null,{"$f":"AH82+AI82+AH80-AH9","v":0},null,null,{"$f":"AK82+AL82+AK80-AK9","v":0},null,null,{"$f":"AN82+AO82+AN80-AN9","v":0},null,null,{"$f":"AQ82+AR82+AQ80-AQ9","v":0},null,null,{"$f":"AT82+AU82+AT80-AT9","v":0},null,null,{"$f":"AW82+AX82+AW80-AW9","v":0},null,null,{"$f":"AZ82+BA82+AZ80-AZ9","v":0},null,null,{"$f":"BC82+BD82+BC80-BC9","v":0},null,null,{"$f":"BF82+BG82+BF80-BF9","v":0},null,null,{"$f":"BI82+BJ82+BI80-BI9","v":0},null,null,{"$f":"BL82+BM82+BL80-BL9","v":0},null,null,{"$f":"BO82+BP82+BO80-BO9","v":0},null,null,{"$f":"BR82+BS82+BR80-BR9","v":0},null,null,{"$f":"BU82+BV82+BU80-BU9","v":0},null,null,{"$f":"BX82+BY82+BX80-BX9","v":0},null,null,{"$f":"CA82+CB82+CA80-CA9","v":0},null,null,{"$f":"CD82+CE82+CD80-CD9","v":0},null,null,{"$f":"CG82+CH82+CG80-CG9","v":0},null,null,{"$f":"CJ82+CK82+CJ80-CJ9","v":0},null,null,{"$f":"CM82+CN82+CM80-CM9","v":0},null,null,{"$f":"CP82+CQ82+CP80-CP9","v":0},null,null,{"$f":"CS82+CT82+CS80-CS9","v":0},null,null,{"$f":"CV82+CW82+CV80-CV9","v":0},null,null,{"$f":"CY82+CZ82+CY80-CY9","v":0},null,null,{"$f":"DB82+DC82+DB80-DB9","v":0},null,null,{"$f":"DE82+DF82+DE80-DE9","v":0},null,null,{"$f":"DH82+DI82+DH80-DH9","v":0},null,null,{"$f":"DK82+DL82+DK80-DK9","v":0},null,null,{"$f":"DN82+DO82+DN80-DN9","v":0},null,null,{"$f":"DQ82+DR82+DQ80-DQ9","v":0},null,null,{"$f":"DT82+DU82+DT80-DT9","v":0},null,null,{"$f":"DW82+DX82+DW80-DW9","v":0},null,null,{"$f":"DZ82+EA82+DZ80-DZ9","v":0},null,null,{"$f":"EC82+ED82+EC80-EC9","v":0},null,null,{"$f":"EF82+EG82+EF80-EF9","v":0},null,null,{"$f":"EI82+EJ82+EI80-EI9","v":0},null,null,{"$f":"EL82+EM82+EL80-EL9","v":0},null,null,{"$f":"EO82+EP82+EO80-EO9","v":0},null,null,{"$f":"ER82+ES82+ER80-ER9","v":0}]
["เป็นเงิน",null,null,null,null,null,{"$f":"G8*G83","v":0},null,null,{"$f":"J8*J83","v":0},null,null,{"$f":"M8*M83","v":0},null,null,{"$f":"P8*P83","v":0},null,null,{"$f":"S8*S83","v":0},null,null,{"$f":"V8*V83","v":0},null,null,{"$f":"Y8*Y83","v":0},null,null,{"$f":"AB8*AB83","v":0},null,null,{"$f":"AE8*AE83","v":0},null,null,{"$f":"AH8*AH83","v":0},null,null,{"$f":"AK8*AK83","v":0},null,null,{"$f":"AN8*AN83","v":0},null,null,{"$f":"AQ8*AQ83","v":0},null,null,{"$f":"AT8*AT83","v":0},null,null,{"$f":"AW8*AW83","v":0},null,null,{"$f":"AZ8*AZ83","v":0},null,null,{"$f":"BC8*BC83","v":0},null,null,{"$f":"BF8*BF83","v":0},null,null,{"$f":"BI8*BI83","v":0},null,null,{"$f":"BL8*BL83","v":0},null,null,{"$f":"BO8*BO83","v":0},null,null,{"$f":"BR8*BR83","v":0},null,null,{"$f":"BU8*BU83","v":0},null,null,{"$f":"BX8*BX83","v":0},null,null,{"$f":"CA8*CA83","v":0},null,null,{"$f":"CD8*CD83","v":0},null,null,{"$f":"CG8*CG83","v":0},null,null,{"$f":"CJ8*CJ83","v":0},null,null,{"$f":"CM8*CM83","v":0},null,null,{"$f":"CP8*CP83","v":0},null,null,{"$f":"CS8*CS83","v":0},null,null,{"$f":"CV8*CV83","v":0},null,null,{"$f":"CY8*CY83","v":0},null,null,{"$f":"DB8*DB83","v":0},null,null,{"$f":"DE8*DE83","v":0},null,null,{"$f":"DH8*DH83","v":0},null,null,{"$f":"DK8*DK83","v":0},null,null,{"$f":"DN8*DN83","v":0},null,null,{"$f":"DQ8*DQ83","v":0},null,null,{"$f":"DT8*DT83","v":0},null,null,{"$f":"DW8*DW83","v":0},null,null,0,null,null,{"$f":"EC8*EC83","v":0},null,null,{"$f":"EF8*EF83","v":0},null,null,{"$f":"EI8*EI83","v":0},null,null,{"$f":"EL8*EL83","v":0},null,null,{"$f":"EO8*EO83","v":0},null,null,{"$f":"ER8*ER83","v":0},null,null,{"$f":"$AP$98","v":0}]
[null,null,null,"ผู้จัดทำ……………………………………………………………………",null,null,null,null,null,null,null,null,null,null,null,null,null,null,null,null,null,null,null,"ผู้ตรวจ(ผจก.)………………………………………………………………………………."]
[null,null,"ใบจ่ายสินค้า",null,null,null,null,null,null,null,null,null,null,null,null,null,null,{"$f":"IF(ISODD(COLUMN()),MAX($F$86:Q$86)+1,\"\")","v":""}]
["ราคา","ลำดับ","รายการ","ยกมา","เบิก","เหลือ","เสีย","โอนเข้า","โอนออก","ชำรุด","รวม",null,"ขาย",null,"ขาด/เกิน",null,"บาท",null,null,null,"ขายได้",null,"ควรเบิก",null,"หมายเหตุ",null,null,null,"เสีย PDA","เสียจริง","เหลือ PDA","ผลต่าง","เหลือลูกค้า","หมายเหตุ",null,null,null,null,"Price","Quantity","Baht","Deduct"]
[{"$f":"IF(B88=\"\",0,INDEX(Price_List,ROWS($88:88)))","v":20},{"$f":"IF($C88=\"\",\"\",COUNTA($C$88:$C88))","v":1},{"$f":"IF(INDEX(INDIRECT(\"Product_List\"),ROWS($88:88))=\"\",\"\",INDEX(INDIRECT(\"Product_List\"),ROWS($88:88)))","v":"01-ขนมปังหมูหยองน้ำสลัด"},{"$f":"ยอดยกมา","v":0},null,null,null,null,null,null,{"$f":"D88+E88+J88-I88+H88","v":0},null,{"$f":"INDIRECT(ADDRESS(ROW(A$80),ROW()-ROW(A$80)+(ROWS($88:88)-1)*2-1,4))","v":0},null,{"$f":"F88+G88+M88+J88-K88","v":0},null,{"$f":"O88*A88","v":0},null,null,null,{"$f":"D88+E88-F88-G88","v":0},null,{"$f":"U88*6%+U88","v":0},null,null,null,null,null,{"$f":"INDIRECT(ADDRESS(ROW(A$80),ROW()-ROW(A$80)+(ROWS($88:88)-1)*2,4))","v":0},{"$f":"$G88","v":0},null,{"$f":"$F88-$AE88","v":0},{"$f":"INDIRECT(ADDRESS(ROW(A$80),ROW()-ROW(A$80)+(ROWS($88:88)-1)*2+1,4))","v":0},null,null,null,null,null,10,{"$f":"SUMPRODUCT(($A$88:$A$135=$AM88)*(($F$88:$F$135)+($G$88:$G$135)+($M$88:$M$135)+($J$88:$J$135)-($K$88:$K$135)))","v":0},{"$f":"AM88*AN88","v":0},{"$f":"IF(AO88<0,AO88,0)","v":0}]
[{"$f":"IF(B89=\"\",0,INDEX(Price_List,ROWS($88:89)))","v":20},{"$f":"IF($C89=\"\",\"\",COUNTA($C$88:$C89))","v":2},{"$f":"IF(INDEX(INDIRECT(\"Product_List\"),ROWS($88:89))=\"\",\"\",INDEX(INDIRECT(\"Product_List\"),ROWS($88:89)))","v":"02-ขนมปังหมูหยองน้ำพริกเผา"},{"$f":"ยอดยกมา","v":0},null,null,null,null,null,null,{"$f":"D89+E89+J89-I89+H89","v":0},null,{"$f":"INDIRECT(ADDRESS(ROW(A$80),ROW()-ROW(A$80)+(ROWS($88:89)-1)*2-1,4))","v":0},null,{"$f":"F89+G89+M89+J89-K89","v":0},null,{"$f":"O89*A89","v":0},null,null,null,{"$f":"D89+E89-F89-G89","v":0},null,{"$f":"U89*6%+U89","v":0},null,null,null,null,null,{"$f":"INDIRECT(ADDRESS(ROW(A$80),ROW()-ROW(A$80)+(ROWS($88:89)-1)*2,4))","v":0},{"$f":"$G89","v":0},null,{"$f":"$F89-$AE89","v":0},{"$f":"INDIRECT(ADDRESS(ROW(A$80),ROW()-ROW(A$80)+(ROWS($88:89)-1)*2+1,4))","v":0},null,null,null,null,null,12,0,{"$f":"AM89*AN89","v":0},{"$f":"IF(AO89<0,AO89,0)","v":0}]
[{"$f":"IF(B90=\"\",0,INDEX(Price_List,ROWS($88:90)))","v":20},{"$f":"IF($C90=\"\",\"\",COUNTA($C$88:$C90))","v":3},{"$f":"IF(INDEX(INDIRECT(\"Product_List\"),ROWS($88:90))=\"\",\"\",INDEX(INDIRECT(\"Product_List\"),ROWS($88:90)))","v":"03-ขนมปังไก่หยองน้ำสลัด"},{"$f":"ยอดยกมา","v":0},null,null,null,null,null,null,0,null,{"$f":"INDIRECT(ADDRESS(ROW(A$80),ROW()-ROW(A$80)+(ROWS($88:90)-1)*2-1,4))","v":0},null,0,null,0,null,null,null,0,null,0,null,null,null,null,null,{"$f":"INDIRECT(ADDRESS(ROW(A$80),ROW()-ROW(A$80)+(ROWS($88:90)-1)*2,4))","v":0},0,null,0,{"$f":"INDIRECT(ADDRESS(ROW(A$80),ROW()-ROW(A$80)+(ROWS($88:90)-1)*2+1,4))","v":0},null,null,null,null,null,13,0,0,0]
[{"$f":"IF(B91=\"\",0,INDEX(Price_List,ROWS($88:91)))","v":15},{"$f":"IF($C91=\"\",\"\",COUNTA($C$88:$C91))","v":4},{"$f":"IF(INDEX(INDIRECT(\"Product_List\"),ROWS($88:91))=\"\",\"\",INDEX(INDIRECT(\"Product_List\"),ROWS($88:91)))","v":"04-ขนมปังไส้ครีมสลัด"},{"$f":"ยอดยกมา","v":0},null,null,null,null,null,null,0,null,{"$f":"INDIRECT(ADDRESS(ROW(A$80),ROW()-ROW(A$80)+(ROWS($88:91)-1)*2-1,4))","v":0},null,{"$f":"F91+G91+M91+J91-K91","v":0},null,0,null,null,null,0,null,0,null,null,null,null,null,{"$f":"INDIRECT(ADDRESS(ROW(A$80),ROW()-ROW(A$80)+(ROWS($88:91)-1)*2,4))","v":0},0,null,0,{"$f":"INDIRECT(ADDRESS(ROW(A$80),ROW()-ROW(A$80)+(ROWS($88:91)-1)*2+1,4))","v":0},null,null,null,null,null,15,0,0,0]
[{"$f":"IF(B92=\"\",0,INDEX(Price_List,ROWS($88:92)))","v":15},{"$f":"IF($C92=\"\",\"\",COUNTA($C$88:$C92))","v":5},{"$f":"IF(INDEX(INDIRECT(\"Product_List\"),ROWS($88:92))=\"\",\"\",INDEX(INDIRECT(\"Product_List\"),ROWS($88:92)))","v":"05-ขนมปังเนยสด"},{"$f":"ยอดยกมา","v":0},null,null,null,null,null,null,0,null,{"$f":"INDIRECT(ADDRESS(ROW(A$80),ROW()-ROW(A$80)+(ROWS($88:92)-1)*2-1,4))","v":0},null,0,null,0,null,null,null,0,null,0,null,null,null,null,null,{"$f":"INDIRECT(ADDRESS(ROW(A$80),ROW()-ROW(A$80)+(ROWS($88:92)-1)*2,4))","v":0},0,null,0,{"$f":"INDIRECT(ADDRESS(ROW(A$80),ROW()-ROW(A$80)+(ROWS($88:92)-1)*2+1,4))","v":0},null,null,null,null,null,16,0,0,0]
[{"$f":"IF(B93=\"\",0,INDEX(Price_List,ROWS($88:93)))","v":10},{"$f":"IF($C93=\"\",\"\",COUNTA($C$88:$C93))","v":6},{"$f":"IF(INDEX(INDIRECT(\"Product_List\"),ROWS($88:93))=\"\",\"\",INDEX(INDIRECT(\"Product_List\"),ROWS($88:93)))","v":"06-ขนมปังไส้สังขยาเล็ก"},{"$f":"ยอดยกมา","v":0},null,null,null,null,null,null,0,null,{"$f":"INDIRECT(ADDRESS(ROW(A$80),ROW()-ROW(A$80)+(ROWS($88:93)-1)*2-1,4))","v":0},null,0,null,0,null,null,null,0,null,0,null,null,null,null,null,{"$f":"INDIRECT(ADDRESS(ROW(A$80),ROW()-ROW(A$80)+(ROWS($88:93)-1)*2,4))","v":0},0,null,0,{"$f":"INDIRECT(ADDRESS(ROW(A$80),ROW()-ROW(A$80)+(ROWS($88:93)-1)*2+1,4))","v":0},null,null,null,null,null,18,0,0,0]
[{"$f":"IF(B94=\"\",0,INDEX(Price_List,ROWS($88:94)))","v":10},{"$f":"IF($C94=\"\",\"\",COUNTA($C$88:$C94))","v":7},{"$f":"IF(INDEX(INDIRECT(\"Product_List\"),ROWS($88:94))=\"\",\"\",INDEX(INDIRECT(\"Product_List\"),ROWS($88:94)))","v":"07-ขนมปังไส้เผือก"},{"$f":"ยอดยกมา","v":0},null,null,null,null,null,null,0,null,{"$f":"INDIRECT(ADDRESS(ROW(A$80),ROW()-ROW(A$80)+(ROWS($88:94)-1)*2-1,4))","v":0},null,0,null,0,null,null,null,0,null,0,null,null,null,null,null,{"$f":"INDIRECT(ADDRESS(ROW(A$80),ROW()-ROW(A$80)+(ROWS($88:94)-1)*2,4))","v":0},0,null,0,{"$f":"INDIRECT(ADDRESS(ROW(A$80),ROW()-ROW(A$80)+(ROWS($88:94)-1)*2+1,4))","v":0},null,null,null,null,null,20,0,0,0]
[{"$f":"IF(B95=\"\",0,INDEX(Price_List,ROWS($88:95)))","v":10},{"$f":"IF($C95=\"\",\"\",COUNTA($C$88:$C95))","v":8},{"$f":"IF(INDEX(INDIRECT(\"Product_List\"),ROWS($88:95))=\"\",\"\",INDEX(INDIRECT(\"Product_List\"),ROWS($88:95)))","v":"08-ขนมปังไส้ถั่วแดง"},{"$f":"ยอดยกมา","v":0},null,null,null,null,null,null,0,null,{"$f":"INDIRECT(ADDRESS(ROW(A$80),ROW()-ROW(A$80)+(ROWS($88:95)-1)*2-1,4))","v":0},null,0,null,0,null,null,null,0,null,0,null,null,null,null,null,{"$f":"INDIRECT(ADDRESS(ROW(A$80),ROW()-ROW(A$80)+(ROWS($88:95)-1)*2,4))","v":0},0,null,0,{"$f":"INDIRECT(ADDRESS(ROW(A$80),ROW()-ROW(A$80)+(ROWS($88:95)-1)*2+1,4))","v":0},null,null,null,null,null,22,0,0,0]
[{"$f":"IF(B96=\"\",0,INDEX(Price_List,ROWS($88:96)))","v":10},{"$f":"IF($C96=\"\",\"\",COUNTA($C$88:$C96))","v":9},{"$f":"IF(INDEX(INDIRECT(\"Product_List\"),ROWS($88:96))=\"\",\"\",INDEX(INDIRECT(\"Product_List\"),ROWS($88:96)))","v":"09-ขนมปังไส้ถั่วดำ"},{"$f":"ยอดยกมา","v":0},null,null,null,null,null,null,0,null,{"$f":"INDIRECT(ADDRESS(ROW(A$80),ROW()-ROW(A$80)+(ROWS($88:96)-1)*2-1,4))","v":0},null,0,null,0,null,null,null,0,null,0,null,null,null,null,null,{"$f":"INDIRECT(ADDRESS(ROW(A$80),ROW()-ROW(A$80)+(ROWS($88:96)-1)*2,4))","v":0},0,null,0,{"$f":"INDIRECT(ADDRESS(ROW(A$80),ROW()-ROW(A$80)+(ROWS($88:96)-1)*2+1,4))","v":0},null,null,null,null,null,25,0,0,0]
[{"$f":"IF(B97=\"\",0,INDEX(Price_List,ROWS($88:97)))","v":10},{"$f":"IF($C97=\"\",\"\",COUNTA($C$88:$C97))","v":10},{"$f":"IF(INDEX(INDIRECT(\"Product_List\"),ROWS($88:97))=\"\",\"\",INDEX(INDIRECT(\"Product_List\"),ROWS($88:97)))","v":"10-ขนมปังไส้มันม่วง"},{"$f":"ยอดยกมา","v":0},null,null,null,null,null,null,0,null,{"$f":"INDIRECT(ADDRESS(ROW(A$80),ROW()-ROW(A$80)+(ROWS($88:97)-1)*2-1,4))","v":0},null,0,null,0,null,null,null,0,null,0,null,null,null,null,null,{"$f":"INDIRECT(ADDRESS(ROW(A$80),ROW()-ROW(A$80)+(ROWS($88:97)-1)*2,4))","v":0},0,null,0,{"$f":"INDIRECT(ADDRESS(ROW(A$80),ROW()-ROW(A$80)+(ROWS($88:97)-1)*2+1,4))","v":0},null,null,null,null,null,42,0,0,0]
[{"$f":"IF(B98=\"\",0,INDEX(Price_List,ROWS($88:98)))","v":15},{"$f":"IF($C98=\"\",\"\",COUNTA($C$88:$C98))","v":11},{"$f":"IF(INDEX(INDIRECT(\"Product_List\"),ROWS($88:98))=\"\",\"\",INDEX(INDIRECT(\"Product_List\"),ROWS($88:98)))","v":"11-เค้กกล้วยหอม"},{"$f":"ยอดยกมา","v":0},null,null,null,null,null,null,0,null,{"$f":"INDIRECT(ADDRESS(ROW(A$80),ROW()-ROW(A$80)+(ROWS($88:98)-1)*2-1,4))","v":0},null,0,null,0,null,null,null,0,null,0,null,null,null,null,null,{"$f":"INDIRECT(ADDRESS(ROW(A$80),ROW()-ROW(A$80)+(ROWS($88:98)-1)*2,4))","v":0},0,null,0,{"$f":"INDIRECT(ADDRESS(ROW(A$80),ROW()-ROW(A$80)+(ROWS($88:98)-1)*2+1,4))","v":0},null,null,null,null,null,"Total Deduct",null,null,{"$f":"SUM($AP$88:$AP$97)","v":0}]
[{"$f":"IF(B99=\"\",0,INDEX(Price_List,ROWS($88:99)))","v":15},{"$f":"IF($C99=\"\",\"\",COUNTA($C$88:$C99))","v":12},{"$f":"IF(INDEX(INDIRECT(\"Product_List\"),ROWS($88:99))=\"\",\"\",INDEX(INDIRECT(\"Product_List\"),ROWS($88:99)))","v":"12-เค้กบัตเตอร์"},{"$f":"ยอดยกมา","v":0},null,null,null,null,null,null,0,null,{"$f":"INDIRECT(ADDRESS(ROW(A$80),ROW()-ROW(A$80)+(ROWS($88:99)-1)*2-1,4))","v":0},null,0,null,0,null,null,null,0,null,0,null,null,null,null,null,{"$f":"INDIRECT(ADDRESS(ROW(A$80),ROW()-ROW(A$80)+(ROWS($88:99)-1)*2,4))","v":0},0,null,0,{"$f":"INDIRECT(ADDRESS(ROW(A$80),ROW()-ROW(A$80)+(ROWS($88:99)-1)*2+1,4))","v":0}]
[{"$f":"IF(B100=\"\",0,INDEX(Price_List,ROWS($88:100)))","v":15},{"$f":"IF($C100=\"\",\"\",COUNTA($C$88:$C100))","v":13},{"$f":"IF(INDEX(INDIRECT(\"Product_List\"),ROWS($88:100))=\"\",\"\",INDEX(INDIRECT(\"Product_List\"),ROWS($88:100)))","v":"13-ขนมปังโรลถั่วแดง"},{"$f":"ยอดยกมา","v":0},null,null,null,null,null,null,0,null,{"$f":"INDIRECT(ADDRESS(ROW(A$80),ROW()-ROW(A$80)+(ROWS($88:100)-1)*2-1,4))","v":0},null,0,null,0,null,null,null,0,null,0,null,null,null,null,null,{"$f":"INDIRECT(ADDRESS(ROW(A$80),ROW()-ROW(A$80)+(ROWS($88:100)-1)*2,4))","v":0},0,null,0,{"$f":"INDIRECT(ADDRESS(ROW(A$80),ROW()-ROW(A$80)+(ROWS($88:100)-1)*2+1,4))","v":0}]
[{"$f":"IF(B101=\"\",0,INDEX(Price_List,ROWS($88:101)))","v":15},{"$f":"IF($C101=\"\",\"\",COUNTA($C$88:$C101))","v":14},{"$f":"IF(INDEX(INDIRECT(\"Product_List\"),ROWS($88:101))=\"\",\"\",INDEX(INDIRECT(\"Product_List\"),ROWS($88:101)))","v":"14-ขนมปังไส้สังขยาใหญ่"},{"$f":"ยอดยกมา","v":0},null,null,null,null,null,null,0,null,{"$f":"INDIRECT(ADDRESS(ROW(A$80),ROW()-ROW(A$80)+(ROWS($88:101)-1)*2-1,4))","v":0},null,0,null,0,null,null,null,0,null,0,null,null,null,null,null,{"$f":"INDIRECT(ADDRESS(ROW(A$80),ROW()-ROW(A$80)+(ROWS($88:101)-1)*2,4))","v":0},0,null,0,{"$f":"INDIRECT(ADDRESS(ROW(A$80),ROW()-ROW(A$80)+(ROWS($88:101)-1)*2+1,4))","v":0}]
[{"$f":"IF(B102=\"\",0,INDEX(Price_List,ROWS($88:102)))","v":42},{"$f":"IF($C102=\"\",\"\",COUNTA($C$88:$C102))","v":15},{"$f":"IF(INDEX(INDIRECT(\"Product_List\"),ROWS($88:102))=\"\",\"\",INDEX(INDIRECT(\"Product_List\"),ROWS($88:102)))","v":"15-ขนมปังชนิดแผ่น(480กรัม)"},{"$f":"ยอดยกมา","v":0},null,null,null,null,null,null,0,null,{"$f":"INDIRECT(ADDRESS(ROW(A$80),ROW()-ROW(A$80)+(ROWS($88:102)-1)*2-1,4))","v":0},null,0,null,0,null,null,null,0,null,0,null,null,null,null,null,{"$f":"INDIRECT(ADDRESS(ROW(A$80),ROW()-ROW(A$80)+(ROWS($88:102)-1)*2,4))","v":0},0,null,0,{"$f":"INDIRECT(ADDRESS(ROW(A$80),ROW()-ROW(A$80)+(ROWS($88:102)-1)*2+1,4))","v":0}]
[{"$f":"IF(B103=\"\",0,INDEX(Price_List,ROWS($88:103)))","v":12},{"$f":"IF($C103=\"\",\"\",COUNTA($C$88:$C103))","v":16},{"$f":"IF(INDEX(INDIRECT(\"Product_List\"),ROWS($88:103))=\"\",\"\",INDEX(INDIRECT(\"Product_List\"),ROWS($88:103)))","v":"16-โมจิไส้ถั่ว"},{"$f":"ยอดยกมา","v":0},null,null,null,null,null,null,0,null,{"$f":"INDIRECT(ADDRESS(ROW(A$80),ROW()-ROW(A$80)+(ROWS($88:103)-1)*2-1,4))","v":0},null,0,null,0,null,null,null,0,null,0,null,null,null,null,null,{"$f":"INDIRECT(ADDRESS(ROW(A$80),ROW()-ROW(A$80)+(ROWS($88:103)-1)*2,4))","v":0},0,null,0,{"$f":"INDIRECT(ADDRESS(ROW(A$80),ROW()-ROW(A$80)+(ROWS($88:103)-1)*2+1,4))","v":0}]
[{"$f":"IF(B104=\"\",0,INDEX(Price_List,ROWS($88:104)))","v":12},{"$f":"IF($C104=\"\",\"\",COUNTA($C$88:$C104))","v":17},{"$f":"IF(INDEX(INDIRECT(\"Product_List\"),ROWS($88:104))=\"\",\"\",INDEX(INDIRECT(\"Product_List\"),ROWS($88:104)))","v":"17-โมจิไส้เผือก"},{"$f":"ยอดยกมา","v":0},null,null,null,null,null,null,0,null,{"$f":"INDIRECT(ADDRESS(ROW(A$80),ROW()-ROW(A$80)+(ROWS($88:104)-1)*2-1,4))","v":0},null,0,null,0,null,null,null,0,null,0,null,null,null,null,null,{"$f":"INDIRECT(ADDRESS(ROW(A$80),ROW()-ROW(A$80)+(ROWS($88:104)-1)*2,4))","v":0},0,null,0,{"$f":"INDIRECT(ADDRESS(ROW(A$80),ROW()-ROW(A$80)+(ROWS($88:104)-1)*2+1,4))","v":0}]
[{"$f":"IF(B105=\"\",0,INDEX(Price_List,ROWS($88:105)))","v":15},{"$f":"IF($C105=\"\",\"\",COUNTA($C$88:$C105))","v":18},{"$f":"IF(INDEX(INDIRECT(\"Product_List\"),ROWS($88:105))=\"\",\"\",INDEX(INDIRECT(\"Product_List\"),ROWS($88:105)))","v":"18-โมจิไส้ถั่วไข่เค็ม"},{"$f":"ยอดยกมา","v":0},null,null,null,null,null,null,0,null,{"$f":"INDIRECT(ADDRESS(ROW(A$80),ROW()-ROW(A$80)+(ROWS($88:105)-1)*2-1,4))","v":0},null,0,null,0,null,null,null,0,null,0,null,null,null,null,null,{"$f":"INDIRECT(ADDRESS(ROW(A$80),ROW()-ROW(A$80)+(ROWS($88:105)-1)*2,4))","v":0},0,null,0,{"$f":"INDIRECT(ADDRESS(ROW(A$80),ROW()-ROW(A$80)+(ROWS($88:105)-1)*2+1,4))","v":0}]
[{"$f":"IF(B106=\"\",0,INDEX(Price_List,ROWS($88:106)))","v":20},{"$f":"IF($C106=\"\",\"\",COUNTA($C$88:$C106))","v":19},{"$f":"IF(INDEX(INDIRECT(\"Product_List\"),ROWS($88:106))=\"\",\"\",INDEX(INDIRECT(\"Product_List\"),ROWS($88:106)))","v":"19-ขนมปังพิซซ่า"},{"$f":"ยอดยกมา","v":0},null,null,null,null,null,null,0,null,{"$f":"INDIRECT(ADDRESS(ROW(A$80),ROW()-ROW(A$80)+(ROWS($88:106)-1)*2-1,4))","v":0},null,0,null,0,null,null,null,0,null,0,null,null,null,null,null,{"$f":"INDIRECT(ADDRESS(ROW(A$80),ROW()-ROW(A$80)+(ROWS($88:106)-1)*2,4))","v":0},0,null,0,{"$f":"INDIRECT(ADDRESS(ROW(A$80),ROW()-ROW(A$80)+(ROWS($88:106)-1)*2+1,4))","v":0}]
[{"$f":"IF(B107=\"\",0,INDEX(Price_List,ROWS($88:107)))","v":20},{"$f":"IF($C107=\"\",\"\",COUNTA($C$88:$C107))","v":20},{"$f":"IF(INDEX(INDIRECT(\"Product_List\"),ROWS($88:107))=\"\",\"\",INDEX(INDIRECT(\"Product_List\"),ROWS($88:107)))","v":"20-ขนมปังพิซซ่าปูอัดแฮม"},{"$f":"ยอดยกมา","v":0},null,null,null,null,null,null,0,null,{"$f":"INDIRECT(ADDRESS(ROW(A$80),ROW()-ROW(A$80)+(ROWS($88:107)-1)*2-1,4))","v":0},null,0,null,0,null,null,null,0,null,0,null,null,null,null,null,{"$f":"INDIRECT(ADDRESS(ROW(A$80),ROW()-ROW(A$80)+(ROWS($88:107)-1)*2,4))","v":0},0,null,0,{"$f":"INDIRECT(ADDRESS(ROW(A$80),ROW()-ROW(A$80)+(ROWS($88:107)-1)*2+1,4))","v":0}]
[{"$f":"IF(B108=\"\",0,INDEX(Price_List,ROWS($88:108)))","v":20},{"$f":"IF($C108=\"\",\"\",COUNTA($C$88:$C108))","v":21},{"$f":"IF(INDEX(INDIRECT(\"Product_List\"),ROWS($88:108))=\"\",\"\",INDEX(INDIRECT(\"Product_List\"),ROWS($88:108)))","v":"21-ขนมปังไส้กรอก"},{"$f":"ยอดยกมา","v":0},null,null,null,null,null,null,0,null,{"$f":"INDIRECT(ADDRESS(ROW(A$80),ROW()-ROW(A$80)+(ROWS($88:108)-1)*2-1,4))","v":0},null,0,null,0,null,null,null,0,null,0,null,null,null,null,null,{"$f":"INDIRECT(ADDRESS(ROW(A$80),ROW()-ROW(A$80)+(ROWS($88:108)-1)*2,4))","v":0},0,null,0,{"$f":"INDIRECT(ADDRESS(ROW(A$80),ROW()-ROW(A$80)+(ROWS($88:108)-1)*2+1,4))","v":0}]
[{"$f":"IF(B109=\"\",0,INDEX(Price_List,ROWS($88:109)))","v":15},{"$f":"IF($C109=\"\",\"\",COUNTA($C$88:$C109))","v":22},{"$f":"IF(INDEX(INDIRECT(\"Product_List\"),ROWS($88:109))=\"\",\"\",INDEX(INDIRECT(\"Product_List\"),ROWS($88:109)))","v":"22-ขนมก้านบัว"},{"$f":"ยอดยกมา","v":0},null,null,null,null,null,null,0,null,{"$f":"INDIRECT(ADDRESS(ROW(A$80),ROW()-ROW(A$80)+(ROWS($88:109)-1)*2-1,4))","v":0},null,0,null,0,null,null,null,0,null,0,null,null,null,null,null,{"$f":"INDIRECT(ADDRESS(ROW(A$80),ROW()-ROW(A$80)+(ROWS($88:109)-1)*2,4))","v":0},0,null,0,{"$f":"INDIRECT(ADDRESS(ROW(A$80),ROW()-ROW(A$80)+(ROWS($88:109)-1)*2+1,4))","v":0}]
[{"$f":"IF(B110=\"\",0,INDEX(Price_List,ROWS($88:110)))","v":20},{"$f":"IF($C110=\"\",\"\",COUNTA($C$88:$C110))","v":23},{"$f":"IF(INDEX(INDIRECT(\"Product_List\"),ROWS($88:110))=\"\",\"\",INDEX(INDIRECT(\"Product_List\"),ROWS($88:110)))","v":"23-พายสับปะรด"},{"$f":"ยอดยกมา","v":0},null,null,null,null,null,null,0,null,{"$f":"INDIRECT(ADDRESS(ROW(A$80),ROW()-ROW(A$80)+(ROWS($88:110)-1)*2-1,4))","v":0},null,0,null,0,null,null,null,0,null,0,null,null,null,null,null,{"$f":"INDIRECT(ADDRESS(ROW(A$80),ROW()-ROW(A$80)+(ROWS($88:110)-1)*2,4))","v":0},0,null,0,{"$f":"INDIRECT(ADDRESS(ROW(A$80),ROW()-ROW(A$80)+(ROWS($88:110)-1)*2+1,4))","v":0}]
[{"$f":"IF(B111=\"\",0,INDEX(Price_List,ROWS($88:111)))","v":20},{"$f":"IF($C111=\"\",\"\",COUNTA($C$88:$C111))","v":24},{"$f":"IF(INDEX(INDIRECT(\"Product_List\"),ROWS($88:111))=\"\",\"\",INDEX(INDIRECT(\"Product_List\"),ROWS($88:111)))","v":"24-พายไส้มะพร้าว"},{"$f":"ยอดยกมา","v":0},null,null,null,null,null,null,0,null,{"$f":"INDIRECT(ADDRESS(ROW(A$80),ROW()-ROW(A$80)+(ROWS($88:111)-1)*2-1,4))","v":0},null,0,null,0,null,null,null,0,null,0,null,null,null,null,null,{"$f":"INDIRECT(ADDRESS(ROW(A$80),ROW()-ROW(A$80)+(ROWS($88:111)-1)*2,4))","v":0},0,null,0,{"$f":"INDIRECT(ADDRESS(ROW(A$80),ROW()-ROW(A$80)+(ROWS($88:111)-1)*2+1,4))","v":0}]
[{"$f":"IF(B112=\"\",0,INDEX(Price_List,ROWS($88:112)))","v":15},{"$f":"IF($C112=\"\",\"\",COUNTA($C$88:$C112))","v":25},{"$f":"IF(INDEX(INDIRECT(\"Product_List\"),ROWS($88:112))=\"\",\"\",INDEX(INDIRECT(\"Product_List\"),ROWS($88:112)))","v":"25-ขนมปังโรลมันเทศ"},{"$f":"ยอดยกมา","v":0},null,null,null,null,null,null,0,null,{"$f":"INDIRECT(ADDRESS(ROW(A$80),ROW()-ROW(A$80)+(ROWS($88:112)-1)*2-1,4))","v":0},null,0,null,0,null,null,null,0,null,0,null,null,null,null,null,{"$f":"INDIRECT(ADDRESS(ROW(A$80),ROW()-ROW(A$80)+(ROWS($88:112)-1)*2,4))","v":0},0,null,0,{"$f":"INDIRECT(ADDRESS(ROW(A$80),ROW()-ROW(A$80)+(ROWS($88:112)-1)*2+1,4))","v":0}]
[{"$f":"IF(B113=\"\",0,INDEX(Price_List,ROWS($88:113)))","v":15},{"$f":"IF($C113=\"\",\"\",COUNTA($C$88:$C113))","v":26},{"$f":"IF(INDEX(INDIRECT(\"Product_List\"),ROWS($88:113))=\"\",\"\",INDEX(INDIRECT(\"Product_List\"),ROWS($88:113)))","v":"26-ขนมปังไส้ครีมสลัดน้ำพริกเผา"},{"$f":"ยอดยกมา","v":0},null,null,null,null,null,null,0,null,{"$f":"INDIRECT(ADDRESS(ROW(A$80),ROW()-ROW(A$80)+(ROWS($88:113)-1)*2-1,4))","v":0},null,0,null,0,null,null,null,0,null,0,null,null,null,null,null,{"$f":"INDIRECT(ADDRESS(ROW(A$80),ROW()-ROW(A$80)+(ROWS($88:113)-1)*2,4))","v":0},0,null,0,{"$f":"INDIRECT(ADDRESS(ROW(A$80),ROW()-ROW(A$80)+(ROWS($88:113)-1)*2+1,4))","v":0}]
[{"$f":"IF(B114=\"\",0,INDEX(Price_List,ROWS($88:114)))","v":20},{"$f":"IF($C114=\"\",\"\",COUNTA($C$88:$C114))","v":27},{"$f":"IF(INDEX(INDIRECT(\"Product_List\"),ROWS($88:114))=\"\",\"\",INDEX(INDIRECT(\"Product_List\"),ROWS($88:114)))","v":"27-ขนมปังไส้สังขยาไข่"},{"$f":"ยอดยกมา","v":0},null,null,null,null,null,null,0,null,{"$f":"INDIRECT(ADDRESS(ROW(A$80),ROW()-ROW(A$80)+(ROWS($88:114)-1)*2-1,4))","v":0},null,0,null,0,null,null,null,0,null,0,null,null,null,null,null,{"$f":"INDIRECT(ADDRESS(ROW(A$80),ROW()-ROW(A$80)+(ROWS($88:114)-1)*2,4))","v":0},0,null,0,{"$f":"INDIRECT(ADDRESS(ROW(A$80),ROW()-ROW(A$80)+(ROWS($88:114)-1)*2+1,4))","v":0}]
[{"$f":"IF(B115=\"\",0,INDEX(Price_List,ROWS($88:115)))","v":20},{"$f":"IF($C115=\"\",\"\",COUNTA($C$88:$C115))","v":28},{"$f":"IF(INDEX(INDIRECT(\"Product_List\"),ROWS($88:115))=\"\",\"\",INDEX(INDIRECT(\"Product_List\"),ROWS($88:115)))","v":"28-ขนมปังไส้สังขยามะพร้าว"},{"$f":"ยอดยกมา","v":0},null,null,null,null,null,null,0,null,{"$f":"INDIRECT(ADDRESS(ROW(A$80),ROW()-ROW(A$80)+(ROWS($88:115)-1)*2-1,4))","v":0},null,0,null,0,null,null,null,0,null,0,null,null,null,null,null,{"$f":"INDIRECT(ADDRESS(ROW(A$80),ROW()-ROW(A$80)+(ROWS($88:115)-1)*2,4))","v":0},0,null,0,{"$f":"INDIRECT(ADDRESS(ROW(A$80),ROW()-ROW(A$80)+(ROWS($88:115)-1)*2+1,4))","v":0}]
[{"$f":"IF(B116=\"\",0,INDEX(Price_List,ROWS($88:116)))","v":10},{"$f":"IF($C116=\"\",\"\",COUNTA($C$88:$C116))","v":29},{"$f":"IF(INDEX(INDIRECT(\"Product_List\"),ROWS($88:116))=\"\",\"\",INDEX(INDIRECT(\"Product_List\"),ROWS($88:116)))","v":"29-ขนมปังไส้ครีมชาไทย"},{"$f":"ยอดยกมา","v":0},null,null,null,null,null,null,0,null,{"$f":"INDIRECT(ADDRESS(ROW(A$80),ROW()-ROW(A$80)+(ROWS($88:116)-1)*2-1,4))","v":0},null,0,null,0,null,null,null,0,null,0,null,null,null,null,null,{"$f":"INDIRECT(ADDRESS(ROW(A$80),ROW()-ROW(A$80)+(ROWS($88:116)-1)*2,4))","v":0},0,null,0,{"$f":"INDIRECT(ADDRESS(ROW(A$80),ROW()-ROW(A$80)+(ROWS($88:116)-1)*2+1,4))","v":0}]
[{"$f":"IF(B117=\"\",0,INDEX(Price_List,ROWS($88:117)))","v":15},{"$f":"IF($C117=\"\",\"\",COUNTA($C$88:$C117))","v":30},{"$f":"IF(INDEX(INDIRECT(\"Product_List\"),ROWS($88:117))=\"\",\"\",INDEX(INDIRECT(\"Product_List\"),ROWS($88:117)))","v":"30-ขนมปังโรลมันม่วง"},{"$f":"ยอดยกมา","v":0},null,null,null,null,null,null,0,null,{"$f":"INDIRECT(ADDRESS(ROW(A$80),ROW()-ROW(A$80)+(ROWS($88:117)-1)*2-1,4))","v":0},null,0,null,0,null,null,null,0,null,0,null,null,null,null,null,{"$f":"INDIRECT(ADDRESS(ROW(A$80),ROW()-ROW(A$80)+(ROWS($88:117)-1)*2,4))","v":0},0,null,0,{"$f":"INDIRECT(ADDRESS(ROW(A$80),ROW()-ROW(A$80)+(ROWS($88:117)-1)*2+1,4))","v":0}]
[{"$f":"IF(B118=\"\",0,INDEX(Price_List,ROWS($88:118)))","v":15},{"$f":"IF($C118=\"\",\"\",COUNTA($C$88:$C118))","v":31},{"$f":"IF(INDEX(INDIRECT(\"Product_List\"),ROWS($88:118))=\"\",\"\",INDEX(INDIRECT(\"Product_List\"),ROWS($88:118)))","v":"31-ขนมปังโรลช็อกโกแลต"},{"$f":"ยอดยกมา","v":0},null,null,null,null,null,null,0,null,{"$f":"INDIRECT(ADDRESS(ROW(A$80),ROW()-ROW(A$80)+(ROWS($88:118)-1)*2-1,4))","v":0},null,0,null,0,null,null,null,0,null,0,null,null,null,null,null,{"$f":"INDIRECT(ADDRESS(ROW(A$80),ROW()-ROW(A$80)+(ROWS($88:118)-1)*2,4))","v":0},0,null,0,{"$f":"INDIRECT(ADDRESS(ROW(A$80),ROW()-ROW(A$80)+(ROWS($88:118)-1)*2+1,4))","v":0}]
[{"$f":"IF(B119=\"\",0,INDEX(Price_List,ROWS($88:119)))","v":16},{"$f":"IF($C119=\"\",\"\",COUNTA($C$88:$C119))","v":32},{"$f":"IF(INDEX(INDIRECT(\"Product_List\"),ROWS($88:119))=\"\",\"\",INDEX(INDIRECT(\"Product_List\"),ROWS($88:119)))","v":"32-ขนมปังชนิดแผ่น(155กรัม)"},{"$f":"ยอดยกมา","v":0},null,null,null,null,null,null,0,null,{"$f":"INDIRECT(ADDRESS(ROW(A$80),ROW()-ROW(A$80)+(ROWS($88:119)-1)*2-1,4))","v":0},null,0,null,0,null,null,null,0,null,0,null,null,null,null,null,{"$f":"INDIRECT(ADDRESS(ROW(A$80),ROW()-ROW(A$80)+(ROWS($88:119)-1)*2,4))","v":0},0,null,0,{"$f":"INDIRECT(ADDRESS(ROW(A$80),ROW()-ROW(A$80)+(ROWS($88:119)-1)*2+1,4))","v":0}]
[{"$f":"IF(B120=\"\",0,INDEX(Price_List,ROWS($88:120)))","v":15},{"$f":"IF($C120=\"\",\"\",COUNTA($C$88:$C120))","v":33},{"$f":"IF(INDEX(INDIRECT(\"Product_List\"),ROWS($88:120))=\"\",\"\",INDEX(INDIRECT(\"Product_List\"),ROWS($88:120)))","v":"33-ขนมปังโรลเผือก"},{"$f":"ยอดยกมา","v":0},null,null,null,null,null,null,0,null,{"$f":"INDIRECT(ADDRESS(ROW(A$80),ROW()-ROW(A$80)+(ROWS($88:120)-1)*2-1,4))","v":0},null,0,null,0,null,null,null,0,null,0,null,null,null,null,null,{"$f":"INDIRECT(ADDRESS(ROW(A$80),ROW()-ROW(A$80)+(ROWS($88:120)-1)*2,4))","v":0},0,null,0,{"$f":"INDIRECT(ADDRESS(ROW(A$80),ROW()-ROW(A$80)+(ROWS($88:120)-1)*2+1,4))","v":0}]
[{"$f":"IF(B121=\"\",0,INDEX(Price_List,ROWS($88:121)))","v":15},{"$f":"IF($C121=\"\",\"\",COUNTA($C$88:$C121))","v":34},{"$f":"IF(INDEX(INDIRECT(\"Product_List\"),ROWS($88:121))=\"\",\"\",INDEX(INDIRECT(\"Product_List\"),ROWS($88:121)))","v":"34-ขนมปังไก่หยองน้ำสลัด Mini"},{"$f":"ยอดยกมา","v":0},null,null,null,null,null,null,0,null,{"$f":"INDIRECT(ADDRESS(ROW(A$80),ROW()-ROW(A$80)+(ROWS($88:121)-1)*2-1,4))","v":0},null,0,null,0,null,null,null,0,null,0,null,null,null,null,null,{"$f":"INDIRECT(ADDRESS(ROW(A$80),ROW()-ROW(A$80)+(ROWS($88:121)-1)*2,4))","v":0},0,null,0,{"$f":"INDIRECT(ADDRESS(ROW(A$80),ROW()-ROW(A$80)+(ROWS($88:121)-1)*2+1,4))","v":0}]
[{"$f":"IF(B122=\"\",0,INDEX(Price_List,ROWS($88:122)))","v":10},{"$f":"IF($C122=\"\",\"\",COUNTA($C$88:$C122))","v":35},{"$f":"IF(INDEX(INDIRECT(\"Product_List\"),ROWS($88:122))=\"\",\"\",INDEX(INDIRECT(\"Product_List\"),ROWS($88:122)))","v":"35-ขนมปังไส้ช็อกโกแลต"},{"$f":"ยอดยกมา","v":0},null,null,null,null,null,null,0,null,{"$f":"INDIRECT(ADDRESS(ROW(A$80),ROW()-ROW(A$80)+(ROWS($88:122)-1)*2-1,4))","v":0},null,0,null,0,null,null,null,0,null,0,null,null,null,null,null,{"$f":"INDIRECT(ADDRESS(ROW(A$80),ROW()-ROW(A$80)+(ROWS($88:122)-1)*2,4))","v":0},0,null,0,{"$f":"INDIRECT(ADDRESS(ROW(A$80),ROW()-ROW(A$80)+(ROWS($88:122)-1)*2+1,4))","v":0}]
[{"$f":"IF(B123=\"\",0,INDEX(Price_List,ROWS($88:123)))","v":10},{"$f":"IF($C123=\"\",\"\",COUNTA($C$88:$C123))","v":36},{"$f":"IF(INDEX(INDIRECT(\"Product_List\"),ROWS($88:123))=\"\",\"\",INDEX(INDIRECT(\"Product_List\"),ROWS($88:123)))","v":"36-ขนมปังไส้ครีมสังขยาไข่"},{"$f":"ยอดยกมา","v":0},null,null,null,null,null,null,0,null,{"$f":"INDIRECT(ADDRESS(ROW(A$80),ROW()-ROW(A$80)+(ROWS($88:123)-1)*2-1,4))","v":0},null,0,null,0,null,null,null,0,null,0,null,null,null,null,null,{"$f":"INDIRECT(ADDRESS(ROW(A$80),ROW()-ROW(A$80)+(ROWS($88:123)-1)*2,4))","v":0},0,null,0,{"$f":"INDIRECT(ADDRESS(ROW(A$80),ROW()-ROW(A$80)+(ROWS($88:123)-1)*2+1,4))","v":0}]
[{"$f":"IF(B124=\"\",0,INDEX(Price_List,ROWS($88:124)))","v":20},{"$f":"IF($C124=\"\",\"\",COUNTA($C$88:$C124))","v":37},{"$f":"IF(INDEX(INDIRECT(\"Product_List\"),ROWS($88:124))=\"\",\"\",INDEX(INDIRECT(\"Product_List\"),ROWS($88:124)))","v":"37-ขนมปังพิซซ่าฮาวายเอี้ยน"},{"$f":"ยอดยกมา","v":0},null,null,null,null,null,null,0,null,{"$f":"INDIRECT(ADDRESS(ROW(A$80),ROW()-ROW(A$80)+(ROWS($88:124)-1)*2-1,4))","v":0},null,0,null,0,null,null,null,0,null,0,null,null,null,null,null,{"$f":"INDIRECT(ADDRESS(ROW(A$80),ROW()-ROW(A$80)+(ROWS($88:124)-1)*2,4))","v":0},0,null,0,{"$f":"INDIRECT(ADDRESS(ROW(A$80),ROW()-ROW(A$80)+(ROWS($88:124)-1)*2+1,4))","v":0}]
[{"$f":"IF(B125=\"\",0,INDEX(Price_List,ROWS($88:125)))","v":20},{"$f":"IF($C125=\"\",\"\",COUNTA($C$88:$C125))","v":38},{"$f":"IF(INDEX(INDIRECT(\"Product_List\"),ROWS($88:125))=\"\",\"\",INDEX(INDIRECT(\"Product_List\"),ROWS($88:125)))","v":"38-ครัวซองต์หมูหยองน้ำสลัด"},{"$f":"ยอดยกมา","v":0},null,null,null,null,null,null,0,null,{"$f":"INDIRECT(ADDRESS(ROW(A$80),ROW()-ROW(A$80)+(ROWS($88:125)-1)*2-1,4))","v":0},null,0,null,0,null,null,null,0,null,0,null,null,null,null,null,{"$f":"INDIRECT(ADDRESS(ROW(A$80),ROW()-ROW(A$80)+(ROWS($88:125)-1)*2,4))","v":0},0,null,0,{"$f":"INDIRECT(ADDRESS(ROW(A$80),ROW()-ROW(A$80)+(ROWS($88:125)-1)*2+1,4))","v":0}]
[{"$f":"IF(B126=\"\",0,INDEX(Price_List,ROWS($88:126)))","v":15},{"$f":"IF($C126=\"\",\"\",COUNTA($C$88:$C126))","v":39},{"$f":"IF(INDEX(INDIRECT(\"Product_List\"),ROWS($88:126))=\"\",\"\",INDEX(INDIRECT(\"Product_List\"),ROWS($88:126)))","v":"39-แพนเบรดไส้เผือก"},{"$f":"ยอดยกมา","v":0},null,null,null,null,null,null,0,null,{"$f":"INDIRECT(ADDRESS(ROW(A$80),ROW()-ROW(A$80)+(ROWS($88:126)-1)*2-1,4))","v":0},null,0,null,0,null,null,null,0,null,0,null,null,null,null,null,{"$f":"INDIRECT(ADDRESS(ROW(A$80),ROW()-ROW(A$80)+(ROWS($88:126)-1)*2,4))","v":0},0,null,0,{"$f":"INDIRECT(ADDRESS(ROW(A$80),ROW()-ROW(A$80)+(ROWS($88:126)-1)*2+1,4))","v":0}]
[{"$f":"IF(B127=\"\",0,INDEX(Price_List,ROWS($88:127)))","v":15},{"$f":"IF($C127=\"\",\"\",COUNTA($C$88:$C127))","v":40},{"$f":"IF(INDEX(INDIRECT(\"Product_List\"),ROWS($88:127))=\"\",\"\",INDEX(INDIRECT(\"Product_List\"),ROWS($88:127)))","v":"40-แพนเบรดไส้ถั่วแดง"},{"$f":"ยอดยกมา","v":0},null,null,null,null,null,null,0,null,{"$f":"INDIRECT(ADDRESS(ROW(A$80),ROW()-ROW(A$80)+(ROWS($88:127)-1)*2-1,4))","v":0},null,0,null,0,null,null,null,0,null,0,null,null,null,null,null,{"$f":"INDIRECT(ADDRESS(ROW(A$80),ROW()-ROW(A$80)+(ROWS($88:127)-1)*2,4))","v":0},0,null,0,{"$f":"INDIRECT(ADDRESS(ROW(A$80),ROW()-ROW(A$80)+(ROWS($88:127)-1)*2+1,4))","v":0}]
[{"$f":"IF(B128=\"\",0,INDEX(Price_List,ROWS($88:128)))","v":12},{"$f":"IF($C128=\"\",\"\",COUNTA($C$88:$C128))","v":41},{"$f":"IF(INDEX(INDIRECT(\"Product_List\"),ROWS($88:128))=\"\",\"\",INDEX(INDIRECT(\"Product_List\"),ROWS($88:128)))","v":"41-ขนมปังกรอบเนยน้ำตาล(30กรัม)"},{"$f":"ยอดยกมา","v":0},null,null,null,null,null,null,0,null,{"$f":"INDIRECT(ADDRESS(ROW(A$80),ROW()-ROW(A$80)+(ROWS($88:128)-1)*2-1,4))","v":0},null,0,null,0,null,null,null,0,null,0,null,null,null,null,null,{"$f":"INDIRECT(ADDRESS(ROW(A$80),ROW()-ROW(A$80)+(ROWS($88:128)-1)*2,4))","v":0},0,null,0,{"$f":"INDIRECT(ADDRESS(ROW(A$80),ROW()-ROW(A$80)+(ROWS($88:128)-1)*2+1,4))","v":0}]
[{"$f":"IF(B129=\"\",0,INDEX(Price_List,ROWS($88:129)))","v":18},{"$f":"IF($C129=\"\",\"\",COUNTA($C$88:$C129))","v":42},{"$f":"IF(INDEX(INDIRECT(\"Product_List\"),ROWS($88:129))=\"\",\"\",INDEX(INDIRECT(\"Product_List\"),ROWS($88:129)))","v":"42-ขนมปังชนิดแผ่นโฮลวีต"},{"$f":"ยอดยกมา","v":0},null,null,null,null,null,null,0,null,{"$f":"INDIRECT(ADDRESS(ROW(A$80),ROW()-ROW(A$80)+(ROWS($88:129)-1)*2-1,4))","v":0},null,0,null,0,null,null,null,0,null,0,null,null,null,null,null,{"$f":"INDIRECT(ADDRESS(ROW(A$80),ROW()-ROW(A$80)+(ROWS($88:129)-1)*2,4))","v":0},0,null,0,{"$f":"INDIRECT(ADDRESS(ROW(A$80),ROW()-ROW(A$80)+(ROWS($88:129)-1)*2+1,4))","v":0}]
[{"$f":"IF(B130=\"\",0,INDEX(Price_List,ROWS($88:130)))","v":12},{"$f":"IF($C130=\"\",\"\",COUNTA($C$88:$C130))","v":43},{"$f":"IF(INDEX(INDIRECT(\"Product_List\"),ROWS($88:130))=\"\",\"\",INDEX(INDIRECT(\"Product_List\"),ROWS($88:130)))","v":"43-เค้กโรลใบเตย"},{"$f":"ยอดยกมา","v":0},null,null,null,null,null,null,{"$f":"D130+E130+J130-I130+H130","v":0},null,{"$f":"INDIRECT(ADDRESS(ROW(A$80),ROW()-ROW(A$80)+(ROWS($88:130)-1)*2-1,4))","v":0},null,{"$f":"F130+G130+M130+J130-K130","v":0},null,{"$f":"O130*A130","v":0},null,null,null,{"$f":"D130+E130-F130-G130","v":0},null,{"$f":"U130*6%+U130","v":0},null,null,null,null,null,{"$f":"INDIRECT(ADDRESS(ROW(A$80),ROW()-ROW(A$80)+(ROWS($88:130)-1)*2,4))","v":0},0,null,0,{"$f":"INDIRECT(ADDRESS(ROW(A$80),ROW()-ROW(A$80)+(ROWS($88:130)-1)*2+1,4))","v":0}]
[{"$f":"IF(B131=\"\",0,INDEX(Price_List,ROWS($88:131)))","v":12},{"$f":"IF($C131=\"\",\"\",COUNTA($C$88:$C131))","v":44},{"$f":"IF(INDEX(INDIRECT(\"Product_List\"),ROWS($88:131))=\"\",\"\",INDEX(INDIRECT(\"Product_List\"),ROWS($88:131)))","v":"44-ขนมโมจิไส้ถั่วดำ"},{"$f":"ยอดยกมา","v":0},null,null,null,null,null,null,{"$f":"D131+E131+J131-I131+H131","v":0},null,{"$f":"INDIRECT(ADDRESS(ROW(A$80),ROW()-ROW(A$80)+(ROWS($88:131)-1)*2-1,4))","v":0},null,{"$f":"F131+G131+M131+J131-K131","v":0},null,{"$f":"O131*A131","v":0},null,null,null,{"$f":"D131+E131-F131-G131","v":0},null,{"$f":"U131*6%+U131","v":0},null,null,null,null,null,{"$f":"INDIRECT(ADDRESS(ROW(A$80),ROW()-ROW(A$80)+(ROWS($88:131)-1)*2,4))","v":0},0,null,0,{"$f":"INDIRECT(ADDRESS(ROW(A$80),ROW()-ROW(A$80)+(ROWS($88:131)-1)*2+1,4))","v":0}]
[{"$f":"IF(B132=\"\",0,INDEX(Price_List,ROWS($88:132)))","v":25},{"$f":"IF($C132=\"\",\"\",COUNTA($C$88:$C132))","v":45},{"$f":"IF(INDEX(INDIRECT(\"Product_List\"),ROWS($88:132))=\"\",\"\",INDEX(INDIRECT(\"Product_List\"),ROWS($88:132)))","v":"45-ครัวซองต์ไส้กรอกชีส"},{"$f":"ยอดยกมา","v":0},null,null,null,null,null,null,{"$f":"D132+E132+J132-I132+H132","v":0},null,{"$f":"INDIRECT(ADDRESS(ROW(A$80),ROW()-ROW(A$80)+(ROWS($88:132)-1)*2-1,4))","v":0},null,{"$f":"F132+G132+M132+J132-K132","v":0},null,{"$f":"O132*A132","v":0},null,null,null,{"$f":"D132+E132-F132-G132","v":0},null,{"$f":"U132*6%+U132","v":0},null,null,null,null,null,{"$f":"INDIRECT(ADDRESS(ROW(A$80),ROW()-ROW(A$80)+(ROWS($88:132)-1)*2,4))","v":0},0,null,0,{"$f":"INDIRECT(ADDRESS(ROW(A$80),ROW()-ROW(A$80)+(ROWS($88:132)-1)*2+1,4))","v":0}]
[{"$f":"IF(B133=\"\",0,INDEX(Price_List,ROWS($88:133)))","v":12},{"$f":"IF($C133=\"\",\"\",COUNTA($C$88:$C133))","v":46},{"$f":"IF(INDEX(INDIRECT(\"Product_List\"),ROWS($88:133))=\"\",\"\",INDEX(INDIRECT(\"Product_List\"),ROWS($88:133)))","v":"46-ขนมเปี๊ยะไส้ถั่ว"},{"$f":"ยอดยกมา","v":0},null,null,null,null,null,null,0,null,{"$f":"INDIRECT(ADDRESS(ROW(A$80),ROW()-ROW(A$80)+(ROWS($88:133)-1)*2-1,4))","v":0},null,0,null,0,null,null,null,0,null,0,null,null,null,null,null,{"$f":"INDIRECT(ADDRESS(ROW(A$80),ROW()-ROW(A$80)+(ROWS($88:133)-1)*2,4))","v":0},0,null,0,{"$f":"INDIRECT(ADDRESS(ROW(A$80),ROW()-ROW(A$80)+(ROWS($88:133)-1)*2+1,4))","v":0}]
[{"$f":"IF(B134=\"\",0,INDEX(Price_List,ROWS($88:134)))","v":12},{"$f":"IF($C134=\"\",\"\",COUNTA($C$88:$C134))","v":47},{"$f":"IF(INDEX(INDIRECT(\"Product_List\"),ROWS($88:134))=\"\",\"\",INDEX(INDIRECT(\"Product_List\"),ROWS($88:134)))","v":"47-ขนมเปี๊ยะไส้ฟัก"},{"$f":"ยอดยกมา","v":0},null,null,null,null,null,null,{"$f":"D134+E134+J134-I134+H134","v":0},null,{"$f":"INDIRECT(ADDRESS(ROW(A$80),ROW()-ROW(A$80)+(ROWS($88:134)-1)*2-1,4))","v":0},null,{"$f":"F134+G134+M134+J134-K134","v":0},null,{"$f":"O134*A134","v":0},null,null,null,{"$f":"D134+E134-F134-G134","v":0},null,{"$f":"U134*6%+U134","v":0},null,null,null,null,null,{"$f":"INDIRECT(ADDRESS(ROW(A$80),ROW()-ROW(A$80)+(ROWS($88:134)-1)*2,4))","v":0},0,null,0,{"$f":"INDIRECT(ADDRESS(ROW(A$80),ROW()-ROW(A$80)+(ROWS($88:134)-1)*2+1,4))","v":0}]
[{"$f":"IF(B135=\"\",0,INDEX(Price_List,ROWS($88:135)))","v":12},{"$f":"IF($C135=\"\",\"\",COUNTA($C$88:$C135))","v":48},{"$f":"IF(INDEX(INDIRECT(\"Product_List\"),ROWS($88:135))=\"\",\"\",INDEX(INDIRECT(\"Product_List\"),ROWS($88:135)))","v":"48-มังกี้เค้ก"},{"$f":"ยอดยกมา","v":0},null,null,null,null,null,null,0,null,{"$f":"INDIRECT(ADDRESS(ROW(A$80),ROW()-ROW(A$80)+(ROWS($88:135)-1)*2-1,4))","v":0},null,0,null,0,null,null,null,0,null,0,null,null,null,null,null,{"$f":"INDIRECT(ADDRESS(ROW(A$80),ROW()-ROW(A$80)+(ROWS($88:135)-1)*2,4))","v":0},0,null,0,{"$f":"INDIRECT(ADDRESS(ROW(A$80),ROW()-ROW(A$80)+(ROWS($88:135)-1)*2+1,4))","v":0}]
["รวม",null,null,{"$f":"SUM(D$88:D$135)","v":0},0,0,0,0,0,0,0,null,{"$f":"SUM(M$88:M$135)","v":0},null,null,null,{"$f":"$AP$98","v":0},null,"บาท",null,{"$f":"SUM(U$88:U$135)","v":0},null,{"$f":"SUM(W$88:W$135)","v":0},null,null,null,null,null,{"$f":"SUM(AC$88:AC$135)","v":0},{"$f":"SUM(AD$88:AD$135)","v":0},{"$f":"SUM(AE$88:AE$135)","v":0},{"$f":"SUM(AF$88:AF$135)","v":0},{"$f":"SUM(AG$88:AG$135)","v":0}]
["เลขที่ไมล์ เวลาออกทำงาน",null,null,{"$f":"$BF$3","v":0},null,"Km","น้ำหนักของเสีย"]
["เลขที่ไมล์ เวลากลับ",null,null,{"$f":"$BF$4","v":0},null,"Km",{"$f":"$AA$5","v":0},null,"KG"]
["เวลากลับถึงสำนักงาน",null,null,{"$f":"$BF$1","v":"00:00:00"},null,"น."]
["เติมน้ำมัน",null,null,{"$f":"$AX3","v":0},null,"บาท"]
["จำนวนน้ำมัน",null,null,{"$f":"$AX4","v":0},null,"ลิตร"]
["ยอดรวมต้นทุนสาขา",null,null,{"$f":"$AX5","v":0},null,"บาท"]

{"sheet":"19","index":23,"n_rows":142,"n_cols":154,"rows_kept":142,"cut":false,"hidden":false,"merged":[[83,132,83,133],[129,10,129,11],[129,12,129,13],[129,14,129,15],[129,16,129,17],[127,10,127,11],[127,12,127,13],[127,14,127,15],[127,16,127,17],[127,20,127,21],[127,22,127,23],[127,24,127,25],[127,33,127,36],[126,10,126,11],[126,12,126,13],[126,14,126,15],[126,16,126,17],[128,10,128,11],[128,12,128,13],[129,24,129,25],[125,10,125,11],[125,12,125,13],[125,14,125,15],[125,16,125,17],[7,132,7,134],[8,132,8,134],[80,132,80,133],[82,132,82,133],[7,135,7,137],[8,135,8,137],[80,135,80,136],[82,135,82,136],[7,138,7,140],[7,141,7,143],[7,147,7,149],[8,138,8,140],[141,0,141,2],[141,3,141,4],[138,0,138,2],[138,3,138,4],[139,0,139,2],[139,3,139,4],[140,0,140,2],[140,3,140,4],[135,24,135,25],[135,33,135,36],[136,0,136,2],[136,3,136,4],[137,0,137,2],[137,3,137,4],[137,6,137,7],[137,18,137,21],[135,0,135,2],[135,10,135,11],[135,12,135,13],[135,14,135,15],[135,16,135,17],[135,18,135,19],[135,20,135,21],[135,22,135,23],[128,14,128,15],[128,16,128,17],[128,20,128,21],[128,22,128,23],[129,20,129,21],[129,22,129,23],[131,16,131,17],[132,16,132,17],[134,16,134,17],[131,20,131,21],[132,20,132,21],[134,20,134,21],[131,22,131,23],[132,22,132,23],[134,22,134,23],[131,24,131,25],[132,24,132,25],[134,24,134,25],[129,33,129,36],[128,24,128,25],[128,33,128,36],[126,20,126,21],[126,22,126,23],[124,24,124,25],[124,33,124,36],[125,20,125,21],[125,22,125,23],[125,24,125,25],[125,33,125,36],[124,10,124,11],[124,12,124,13],[124,14,124,15],[124,16,124,17],[124,20,124,21],[124,22,124,23],[126,24,126,25],[126,33,126,36],[122,24,122,25],[122,33,122,36],[123,10,123,11],[123,12,123,13],[123,14,123,15],[123,16,123,17],[123,20,123,21],[123,22,123,23],[123,24,123,25],[123,33,123,36],[122,10,122,11],[122,12,122,13],[122,14,122,15],[122,16,122,17],[122,20,122,21],[122,22,122,23],[120,24,120,25],[120,33,120,36],[121,10,121,11],[121,12,121,13],[121,14,121,15],[121,16,121,17],[121,20,121,21],[121,22,121,23],[121,24,121,25],[121,33,121,36],[120,10,120,11],[120,12,120,13],[120,14,120,15],[120,16,120,17],[120,20,120,21],[120,22,120,23],[118,24,118,25],[118,33,118,36],[119,10,119,11],[119,12,119,13],[119,14,119,15],[119,16,119,17],[119,20,119,21],[119,22,119,23],[119,24,119,25],[119,33,119,36],[118,10,118,11],[118,12,118,13],[118,14,118,15],[118,16,118,17],[118,20,118,21],[118,22,118,23],[116,24,116,25],[116,33,116,36],[117,10,117,11],[117,12,117,13],[117,14,117,15],[117,16,117,17],[117,20,117,21],[117,22,117,23],[117,24,117,25],[117,33,117,36],[116,10,116,11],[116,12,116,13],[116,14,116,15],[116,16,116,17],[116,20,116,21],[116,22,116,23],[114,24,114,25],[114,33,114,36],[115,10,115,11],[115,12,115,13],[115,14,115,15],[115,16,115,17],[115,20,115,21],[115,22,115,23],[115,24,115,25],[115,33,115,36],[114,10,114,11],[114,12,114,13],[114,14,114,15],[114,16,114,17],[114,20,114,21],[114,22,114,23],[112,24,112,25],[112,33,112,36],[113,10,113,11],[113,12,113,13],[113,14,113,15],[113,16,113,17],[113,20,113,21],[113,22,113,23],[113,24,113,25],[113,33,113,36],[112,10,112,11],[112,12,112,13],[112,14,112,15],[112,16,112,17],[112,20,112,21],[112,22,112,23],[110,24,110,25],[110,33,110,36],[111,10,111,11],[111,12,111,13],[111,14,111,15],[111,16,111,17],[111,20,111,21],[111,22,111,23],[111,24,111,25],[111,33,111,36],[110,10,110,11],[110,12,110,13],[110,14,110,15],[110,16,110,17],[110,20,110,21],[110,22,110,23],[108,24,108,25],[108,33,108,36],[109,10,109,11],[109,12,109,13],[109,14,109,15],[109,16,109,17],[109,20,109,21],[109,22,109,23],[109,24,109,25],[109,33,109,36],[108,10,108,11],[108,12,108,13],[108,14,108,15],[108,16,108,17],[108,20,108,21],[108,22,108,23],[106,24,106,25],[106,33,106,36],[107,10,107,11],[107,12,107,13],[107,14,107,15],[107,16,107,17],[107,20,107,21],[107,22,107,23],[107,24,107,25],[107,33,107,36],[106,10,106,11],[106,12,106,13],[106,14,106,15],[106,16,106,17],[106,20,106,21],[106,22,106,23],[104,24,104,25],[104,33,104,36],[105,10,105,11],[105,12,105,13],[105,14,105,15],[105,16,105,17],[105,20,105,21],[105,22,105,23],[105,24,105,25],[105,33,105,36],[104,10,104,11],[104,12,104,13],[104,14,104,15],[104,16,104,17],[104,20,104,21],[104,22,104,23],[102,24,102,25],[102,33,102,36],[103,10,103,11],[103,12,103,13],[103,14,103,15],[103,16,103,17],[103,20,103,21],[103,22,103,23],[103,24,103,25],[103,33,103,36],[102,10,102,11],[102,12,102,13],[102,14,102,15],[102,16,102,17],[102,20,102,21],[102,22,102,23],[101,10,101,11],[101,12,101,13],[101,14,101,15],[101,16,101,17],[101,20,101,21],[101,22,101,23],[101,24,101,25],[101,33,101,36],[100,10,100,11],[100,12,100,13],[100,14,100,15],[100,16,100,17],[100,20,100,21],[100,22,100,23],[99,10,99,11],[99,12,99,13],[99,14,99,15],[99,16,99,17],[99,20,99,21],[99,22,99,23],[99,24,99,25],[99,33,99,36],[100,24,100,25],[100,33,100,36],[97,24,97,25],[97,33,97,36],[97,38,97,40],[98,10,98,11],[98,12,98,13],[98,14,98,15],[98,16,98,17],[98,20,98,21],[98,22,98,23],[98,24,98,25],[97,10,97,11],[97,12,97,13],[97,14,97,15],[97,16,97,17],[97,20,97,21],[97,22,97,23],[98,33,98,36],[95,24,95,25],[95,33,95,36],[96,10,96,11],[96,12,96,13],[96,14,96,15],[96,16,96,17],[96,20,96,21],[96,22,96,23],[96,24,96,25],[96,33,96,36],[95,10,95,11],[95,12,95,13],[95,14,95,15],[95,16,95,17],[95,20,95,21],[95,22,95,23],[93,24,93,25],[93,33,93,36],[94,10,94,11],[94,12,94,13],[94,14,94,15],[94,16,94,17],[94,20,94,21],[94,22,94,23],[94,24,94,25],[94,33,94,36],[93,10,93,11],[93,12,93,13],[93,14,93,15],[93,16,93,17],[93,20,93,21],[93,22,93,23],[91,24,91,25],[91,33,91,36],[92,10,92,11],[92,12,92,13],[92,14,92,15],[92,16,92,17],[92,20,92,21],[92,22,92,23],[92,24,92,25],[92,33,92,36],[91,10,91,11],[91,12,91,13],[91,14,91,15],[91,16,91,17],[91,20,91,21],[91,22,91,23],[86,22,86,23],[86,24,86,25],[88,20,88,21],[88,22,88,23],[88,24,88,25],[88,33,88,36],[89,24,89,25],[89,33,89,36],[90,10,90,11],[90,12,90,13],[90,14,90,15],[90,16,90,17],[90,20,90,21],[90,22,90,23],[90,24,90,25],[90,33,90,36],[89,10,89,11],[89,12,89,13],[89,14,89,15],[89,16,89,17],[89,20,89,21],[89,22,89,23],[83,36,83,37],[83,39,83,40],[83,42,83,43],[83,45,83,46],[83,48,83,49],[83,51,83,52],[83,150,83,153],[86,10,86,11],[86,12,86,13],[86,14,86,15],[86,16,86,17],[86,20,86,21],[83,108,83,109],[83,111,83,112],[83,114,83,115],[83,117,83,118],[83,120,83,121],[83,123,83,124],[83,90,83,91],[83,93,83,94],[83,96,83,97],[83,99,83,100],[83,102,83,103],[83,105,83,106],[82,39,82,40],[82,42,82,43],[82,45,82,46],[82,48,82,49],[83,84,83,85],[83,87,83,88],[83,54,83,55],[83,57,83,58],[83,60,83,61],[83,63,83,64],[83,66,83,67],[83,69,83,70],[83,72,83,73],[83,75,83,76],[83,78,83,79],[83,81,83,82],[83,0,83,5],[83,6,83,7],[83,9,83,10],[83,12,83,13],[83,15,83,16],[82,105,82,106],[82,108,82,109],[82,111,82,112],[82,114,82,115],[82,87,82,88],[82,90,82,91],[82,93,82,94],[82,96,82,97],[82,99,82,100],[82,102,82,103],[82,69,82,70],[82,72,82,73],[82,75,82,76],[82,78,82,79],[82,81,82,82],[82,84,82,85],[82,51,82,52],[82,54,82,55],[82,57,82,58],[82,15,82,16],[82,18,82,19],[82,21,82,22],[82,24,82,25],[82,27,82,28],[82,30,82,31],[81,0,81,2],[81,3,81,5],[81,150,82,153],[82,0,82,2],[82,3,82,4],[82,6,82,7],[82,9,82,10],[82,12,82,13],[82,123,82,124],[82,126,82,127],[82,129,82,130],[82,117,82,118],[82,120,82,121],[82,60,82,61],[82,63,82,64],[82,66,82,67],[82,33,82,34],[82,36,82,37],[80,114,80,115],[80,117,80,118],[80,120,80,121],[80,123,80,124],[80,126,80,127],[80,129,80,130],[80,96,80,97],[80,99,80,100],[80,102,80,103],[80,105,80,106],[80,108,80,109],[80,111,80,112],[80,78,80,79],[80,81,80,82],[80,87,80,88],[80,90,80,91],[80,93,80,94],[80,60,80,61],[80,63,80,64],[80,66,80,67],[80,69,80,70],[80,72,80,73],[80,75,80,76],[80,84,80,85],[79,0,79,5],[80,0,80,5],[80,6,80,7],[80,9,80,10],[80,12,80,13],[80,15,80,16],[80,18,80,19],[80,21,80,22],[8,114,8,116],[8,78,8,80],[8,81,8,83],[8,87,8,89],[8,90,8,92],[8,93,8,95],[8,60,8,62],[8,63,8,65],[8,66,8,68],[8,69,8,71],[8,72,8,74],[8,75,8,77],[8,54,8,56],[8,57,8,59],[8,24,8,26],[8,27,8,29],[8,120,8,122],[8,123,8,125],[8,126,8,128],[8,129,8,131],[8,96,8,98],[8,99,8,101],[8,102,8,104],[8,105,8,107],[8,108,8,110],[8,111,8,113],[8,33,8,35],[8,36,8,38],[8,39,8,41],[8,84,8,86],[7,150,8,150],[7,151,8,151],[8,6,8,8],[8,9,8,11],[8,12,8,14],[8,15,8,17],[8,18,8,20],[8,21,8,23],[7,114,7,116],[7,117,7,119],[7,120,7,122],[7,123,7,125],[7,126,7,128],[7,129,7,131],[7,96,7,98],[7,99,7,101],[7,102,7,104],[7,105,7,107],[7,108,7,110],[8,117,8,119],[7,87,7,89],[7,90,7,92],[7,93,7,95],[7,60,7,62],[7,63,7,65],[7,66,7,68],[7,69,7,71],[7,72,7,74],[7,75,7,77],[7,54,7,56],[7,57,7,59],[7,24,7,26],[7,27,7,29],[7,30,7,32],[7,33,7,35],[7,36,7,38],[7,39,7,41],[7,84,7,86],[6,150,6,151],[6,152,8,152],[6,153,8,153],[7,6,7,8],[7,9,7,11],[7,12,7,14],[7,15,7,17],[7,18,7,20],[7,21,7,23],[6,117,6,119],[6,120,6,122],[6,123,6,125],[6,126,6,128],[6,129,6,131],[6,99,6,101],[6,102,6,104],[6,105,6,107],[6,108,6,110],[6,111,6,113],[6,54,6,56],[6,57,6,59],[7,111,7,113],[7,78,7,80],[7,81,7,83],[6,0,8,0],[6,1,8,1],[6,2,8,2],[6,3,8,3],[6,4,8,4],[6,6,6,8],[6,45,6,47],[6,48,6,50],[6,51,6,53],[7,42,7,44],[7,45,7,47],[7,48,7,50],[7,51,7,53],[8,42,8,44],[8,45,8,47],[8,48,8,50],[8,51,8,53],[6,27,6,29],[6,30,6,32],[6,33,6,35],[6,36,6,38],[6,39,6,41],[6,42,6,44],[8,30,8,32],[4,26,4,29],[4,30,4,31],[4,32,4,34],[4,35,4,36],[6,9,6,11],[6,12,6,14],[6,15,6,17],[6,18,6,20],[6,21,6,23],[6,24,6,26],[3,41,3,44],[3,46,3,48],[3,49,3,51],[3,54,3,56],[3,57,3,60],[4,0,4,1],[4,2,4,3],[4,4,4,5],[4,6,4,12],[4,14,4,16],[3,17,3,19],[3,22,3,25],[3,26,3,29],[3,30,3,33],[3,34,3,37],[3,38,3,40],[4,38,4,40],[4,41,4,44],[4,46,4,48],[4,49,4,51],[4,54,4,56],[4,57,4,60],[4,17,4,19],[4,22,4,25],[2,38,2,40],[3,0,3,1],[3,2,3,3],[3,4,3,5],[3,6,3,12],[3,14,3,16],[2,17,2,19],[2,22,2,25],[2,26,2,29],[2,30,2,33],[80,36,80,37],[80,39,80,40],[0,38,0,40],[0,41,0,44],[0,46,0,48],[0,54,0,56],[0,57,0,60],[2,0,2,1],[2,2,2,3],[2,4,2,5],[2,6,2,12],[2,14,2,16],[0,0,0,12],[0,14,0,16],[0,17,0,23],[0,30,0,33],[0,34,0,35],[0,36,0,37],[2,41,2,44],[2,46,2,48],[2,49,2,51],[2,54,2,56],[2,57,2,60],[2,34,2,37],[6,141,6,143],[6,147,6,149],[83,18,83,19],[83,21,83,22],[83,24,83,25],[83,27,83,28],[83,30,83,31],[83,33,83,34],[83,126,83,127],[83,129,83,130],[8,141,8,143],[8,147,8,149],[80,138,80,139],[80,141,80,142],[80,147,80,148],[82,138,82,139],[82,141,82,142],[82,147,82,148],[6,60,6,62],[6,87,6,89],[6,90,6,92],[6,93,6,95],[6,96,6,98],[6,63,6,65],[88,12,88,13],[88,14,88,15],[88,16,88,17],[6,114,6,116],[6,81,6,83],[6,84,6,86],[6,132,6,134],[6,135,6,137],[6,138,6,140],[6,66,6,68],[6,69,6,71],[6,72,6,74],[6,75,6,77],[6,78,6,80],[80,42,80,43],[80,45,80,46],[80,48,80,49],[80,51,80,52],[80,54,80,55],[80,57,80,58],[80,24,80,25],[80,27,80,28],[80,30,80,31],[80,33,80,34],[83,147,83,148],[131,33,131,36],[132,33,132,36],[134,33,134,36],[131,10,131,11],[132,10,132,11],[134,10,134,11],[131,12,131,13],[132,12,132,13],[134,12,134,13],[131,14,131,15],[132,14,132,15],[134,14,134,15],[86,33,86,36],[87,10,87,11],[87,12,87,13],[87,14,87,15],[87,16,87,17],[87,20,87,21],[87,22,87,23],[83,135,83,136],[130,10,130,11],[130,12,130,13],[130,14,130,15],[6,144,6,146],[7,144,7,146],[8,144,8,146],[80,144,80,145],[82,144,82,145],[83,144,83,145],[133,10,133,11],[133,12,133,13],[133,14,133,15],[133,16,133,17],[133,20,133,21],[133,22,133,23],[133,24,133,25],[133,33,133,36],[83,138,83,139],[83,141,83,142],[130,16,130,17],[130,20,130,21],[130,22,130,23],[130,24,130,25],[130,33,130,36],[87,24,87,25],[87,33,87,36],[88,10,88,11]]}
[":::: รายงานการขายประจำวัน (Sale Daily Report)  ::::",null,null,null,null,null,null,null,null,null,null,null,null,null,"Print Date : ",null,null,{"$f":"NOW()","v":"2025-04-24T22:39:10.130"},null,null,null,null,null,null,null,null,null,null,null,null,"จำนวนร้าน :",null,null,null,{"$f":"MAX($A$10:$A$79)","v":0},null,"ร้าน",null,"เป้ายอดขาย :",null,null,null,null,null,null,null,{"$f":"C3","v":45796},null,null,{"$f":"LEFT('Problems & Solutions'!$B$2,FIND(\"|\",'Problems & Solutions'!$B$2))&\" วันที่\"&TEXT($C$3,\"[$-107041E] d mmmm yyyy;@\")","v":"ขั้นตอนการตรวจรีพอร์ตขาย | วันที่ 19 พฤษภาคม 2568"},null,null,null,null,"เวลากลับ :"]
[]
["วันที่ :",null,{"$f":"DATE(ใส่ข้อมูล!G2-543,ใส่ข้อมูล!V2,ActiveSheetName)","v":"2025-05-19"},null,"พนักงานขาย",null,{"$f":"INDEX(OFFSET(Sale_Region,,1),ActiveSheetName)","v":0},null,null,null,null,null,null,null,"รวมยอดเบิก :",null,null,{"$f":"E136","v":0},null,null,"ชิ้น",null,"ใหญ่สด(40)",null,null,null,{"$f":"Cash_Major_Bill","v":0},null,null,null,"ใหญ่เชื่อ(42)",null,null,null,{"$f":"Credit_Major_Bill","v":0},null,null,null,"บิลใหญ่ :",null,null,{"$f":"AA3+AI3","v":0},null,null,null,null,"เติมน้ำมัน :",null,null,null,null,null,"บาท",null,"ไมล์ออก :",null,null,{"$f":"เลขไมล์ออก","v":0},null,null,null,"Km"]
["เขตการขาย :",null,{"$f":"INDEX(Sale_Region,ActiveSheetName)","v":0},null,"ผช.ขาย",null,{"$f":"INDEX(OFFSET(Sale_Region,,2),ActiveSheetName)","v":0},null,null,null,null,null,null,null,"ของเหลือ :",null,null,{"$f":"F136","v":0},null,null,"ชิ้น",null,"เล็กสด(41)",null,null,null,{"$f":"Cash_Minor_Bill","v":0},null,null,null,"เล็กเชื่อ(43)",null,null,null,{"$f":"Credit_Minor_Bill","v":0},null,null,null,"บิลเล็ก :",null,null,{"$f":"AA4+AI4","v":0},null,null,null,null,"จำนวนลิตร :",null,null,null,null,null,"ลิตร",null,"ไมล์เข้า :",null,null,null,null,null,null,"Km"]
["สายส่ง :",null,{"$f":"\"Sale \"&ใส่ข้อมูล!E3&\"-\"&ใส่ข้อมูล!G3","v":"Sale KB-01"},null,"พนักงานเสริม",null,{"$f":"INDEX(OFFSET(Sale_Region,,3),ActiveSheetName)","v":0},null,null,null,null,null,null,null,"ของเสีย :",null,null,{"$f":"G136","v":0},null,null,"ชิ้น",null,"น้ำหนักของเสีย",null,null,null,null,null,null,null,"Kg.",null,"%ของเสีย",null,null,{"$f":"IF(Order_Cal=0,0,ROUND(Waste_Cal*100/Order_Cal,2))","v":0},null,"%","VAT :",null,null,{"$f":"EW81","v":0},null,null,null,null,"ต้นทุนสาขา :",null,null,{"$f":"SUMPRODUCT((($A$88:$A$135)-($A$88:$A$135)*0.45)*(($E$88:$E$135)-($G$88:$G$135)))","v":0},null,null,"บาท",null,"ระยะทาง :",null,null,{"$f":"IF(OR($BF$4=0,$BF$3=0),0,$BF$4-$BF$3)","v":0},null,null,null,"Km"]
[]
["No","รหัสร้าน (CustNo)","ชื่อร้าน (Store Name)","เวลาเข้าร้าน","ระยะเวลาระหว่างร้าน","บิล(Invoice)",{"$f":"INDEX(INDIRECT(\"dProduct[ProductName]\"),ROUNDUP(COLUMNS($G:G)/3,0))","v":"ขนมปังหมูหยองน้ำสลัด"},null,null,{"$f":"INDEX(INDIRECT(\"dProduct[ProductName]\"),ROUNDUP(COLUMNS($G:J)/3,0))","v":"ขนมปังหมูหยองน้ำพริกเผา"},null,null,{"$f":"INDEX(INDIRECT(\"dProduct[ProductName]\"),ROUNDUP(COLUMNS($G:M)/3,0))","v":"ขนมปังไก่หยองน้ำสลัด"},null,null,{"$f":"INDEX(INDIRECT(\"dProduct[ProductName]\"),ROUNDUP(COLUMNS($G:P)/3,0))","v":"ขนมปังไส้ครีมสลัด"},null,null,{"$f":"INDEX(INDIRECT(\"dProduct[ProductName]\"),ROUNDUP(COLUMNS($G:S)/3,0))","v":"ขนมปังเนยสด"},null,null,{"$f":"INDEX(INDIRECT(\"dProduct[ProductName]\"),ROUNDUP(COLUMNS($G:V)/3,0))","v":"ขนมปังไส้สังขยาเล็ก"},null,null,{"$f":"INDEX(INDIRECT(\"dProduct[ProductName]\"),ROUNDUP(COLUMNS($G:Y)/3,0))","v":"ขนมปังไส้เผือก"},null,null,{"$f":"INDEX(INDIRECT(\"dProduct[ProductName]\"),ROUNDUP(COLUMNS($G:AB)/3,0))","v":"ขนมปังไส้ถั่วแดง"},null,null,{"$f":"INDEX(INDIRECT(\"dProduct[ProductName]\"),ROUNDUP(COLUMNS($G:AE)/3,0))","v":"ขนมปังไส้ถั่วดำ"},null,null,{"$f":"INDEX(INDIRECT(\"dProduct[ProductName]\"),ROUNDUP(COLUMNS($G:AH)/3,0))","v":"ขนมปังไส้มันม่วง"},null,null,{"$f":"INDEX(INDIRECT(\"dProduct[ProductName]\"),ROUNDUP(COLUMNS($G:AK)/3,0))","v":"เค้กกล้วยหอม"},null,null,{"$f":"INDEX(INDIRECT(\"dProduct[ProductName]\"),ROUNDUP(COLUMNS($G:AN)/3,0))","v":"เค้กบัตเตอร์"},null,null,{"$f":"INDEX(INDIRECT(\"dProduct[ProductName]\"),ROUNDUP(COLUMNS($G:AQ)/3,0))","v":"ขนมปังโรลถั่วแดง"},null,null,{"$f":"INDEX(INDIRECT(\"dProduct[ProductName]\"),ROUNDUP(COLUMNS($G:AT)/3,0))","v":"ขนมปังไส้สังขยาใหญ่"},null,null,{"$f":"INDEX(INDIRECT(\"dProduct[ProductName]\"),ROUNDUP(COLUMNS($G:AW)/3,0))","v":"ขนมปังชนิดแผ่น(480กรัม)"},null,null,{"$f":"INDEX(INDIRECT(\"dProduct[ProductName]\"),ROUNDUP(COLUMNS($G:AZ)/3,0))","v":"โมจิไส้ถั่ว"},null,null,{"$f":"INDEX(INDIRECT(\"dProduct[ProductName]\"),ROUNDUP(COLUMNS($G:BC)/3,0))","v":"โมจิไส้เผือก"},null,null,{"$f":"INDEX(INDIRECT(\"dProduct[ProductName]\"),ROUNDUP(COLUMNS($G:BF)/3,0))","v":"โมจิไส้ถั่วไข่เค็ม"},null,null,{"$f":"INDEX(INDIRECT(\"dProduct[ProductName]\"),ROUNDUP(COLUMNS($G:BI)/3,0))","v":"ขนมปังพิซซ่า"},null,null,{"$f":"INDEX(INDIRECT(\"dProduct[ProductName]\"),ROUNDUP(COLUMNS($G:BL)/3,0))","v":"ขนมปังพิซซ่าปูอัดแฮม"},null,null,{"$f":"INDEX(INDIRECT(\"dProduct[ProductName]\"),ROUNDUP(COLUMNS($G:BO)/3,0))","v":"ขนมปังไส้กรอก"},null,null,{"$f":"INDEX(INDIRECT(\"dProduct[ProductName]\"),ROUNDUP(COLUMNS($G:BR)/3,0))","v":"ขนมก้านบัว"},null,null,{"$f":"INDEX(INDIRECT(\"dProduct[ProductName]\"),ROUNDUP(COLUMNS($G:BU)/3,0))","v":"พายสับปะรด"},null,null,{"$f":"INDEX(INDIRECT(\"dProduct[ProductName]\"),ROUNDUP(COLUMNS($G:BX)/3,0))","v":"พายไส้มะพร้าว"},null,null,{"$f":"INDEX(INDIRECT(\"dProduct[ProductName]\"),ROUNDUP(COLUMNS($G:CA)/3,0))","v":"ขนมปังโรลมันเทศ"},null,null,{"$f":"INDEX(INDIRECT(\"dProduct[ProductName]\"),ROUNDUP(COLUMNS($G:CD)/3,0))","v":"ขนมปังไส้ครีมสลัดน้ำพริกเผา"},null,null,{"$f":"INDEX(INDIRECT(\"dProduct[ProductName]\"),ROUNDUP(COLUMNS($G:CG)/3,0))","v":"ขนมปังไส้สังขยาไข่"},null,null,{"$f":"INDEX(INDIRECT(\"dProduct[ProductName]\"),ROUNDUP(COLUMNS($G:CJ)/3,0))","v":"ขนมปังไส้สังขยามะพร้าว"},null,null,{"$f":"INDEX(INDIRECT(\"dProduct[ProductName]\"),ROUNDUP(COLUMNS($G:CM)/3,0))","v":"ขนมปังไส้ครีมชาไทย"},null,null,{"$f":"INDEX(INDIRECT(\"dProduct[ProductName]\"),ROUNDUP(COLUMNS($G:CP)/3,0))","v":"ขนมปังโรลมันม่วง"},null,null,{"$f":"INDEX(INDIRECT(\"dProduct[ProductName]\"),ROUNDUP(COLUMNS($G:CS)/3,0))","v":"ขนมปังโรลช็อกโกแลต"},null,null,{"$f":"INDEX(INDIRECT(\"dProduct[ProductName]\"),ROUNDUP(COLUMNS($G:CV)/3,0))","v":"ขนมปังชนิดแผ่น(155กรัม)"},null,null,{"$f":"INDEX(INDIRECT(\"dProduct[ProductName]\"),ROUNDUP(COLUMNS($G:CY)/3,0))","v":"ขนมปังโรลเผือก"},null,null,{"$f":"INDEX(INDIRECT(\"dProduct[ProductName]\"),ROUNDUP(COLUMNS($G:DB)/3,0))","v":"ขนมปังไก่หยองน้ำสลัด Mini"},null,null,{"$f":"INDEX(INDIRECT(\"dProduct[ProductName]\"),ROUNDUP(COLUMNS($G:DE)/3,0))","v":"ขนมปังไส้ช็อกโกแลต"},null,null,{"$f":"INDEX(INDIRECT(\"dProduct[ProductName]\"),ROUNDUP(COLUMNS($G:DH)/3,0))","v":"ขนมปังไส้ครีมสังขยาไข่"},null,null,{"$f":"INDEX(INDIRECT(\"dProduct[ProductName]\"),ROUNDUP(COLUMNS($G:DK)/3,0))","v":"ขนมปังพิซซ่าฮาวายเอี้ยน"},null,null,{"$f":"INDEX(INDIRECT(\"dProduct[ProductName]\"),ROUNDUP(COLUMNS($G:DN)/3,0))","v":"ครัวซองต์หมูหยองน้ำสลัด"},null,null,{"$f":"INDEX(INDIRECT(\"dProduct[ProductName]\"),ROUNDUP(COLUMNS($G:DQ)/3,0))","v":"แพนเบรดไส้เผือก"},null,null,{"$f":"INDEX(INDIRECT(\"dProduct[ProductName]\"),ROUNDUP(COLUMNS($G:DT)/3,0))","v":"แพนเบรดไส้ถั่วแดง"},null,null,{"$f":"INDEX(INDIRECT(\"dProduct[ProductName]\"),ROUNDUP(COLUMNS($G:DW)/3,0))","v":"ขนมปังกรอบเนยน้ำตาล(30กรัม)"},null,null,{"$f":"INDEX(INDIRECT(\"dProduct[ProductName]\"),ROUNDUP(COLUMNS($G:DZ)/3,0))","v":"ขนมปังชนิดแผ่นโฮลวีต"},null,null,{"$f":"INDEX(INDIRECT(\"dProduct[ProductName]\"),ROUNDUP(COLUMNS($G:EC)/3,0))","v":"เค้กโรลใบเตย"},null,null,{"$f":"INDEX(INDIRECT(\"dProduct[ProductName]\"),ROUNDUP(COLUMNS($G:EF)/3,0))","v":"ขนมโมจิไส้ถั่วดำ"},null,null,{"$f":"INDEX(INDIRECT(\"dProduct[ProductName]\"),ROUNDUP(COLUMNS($G:EI)/3,0))","v":"ครัวซองต์ไส้กรอกชีส"},null,null,{"$f":"INDEX(INDIRECT(\"dProduct[ProductName]\"),ROUNDUP(COLUMNS($G:EL)/3,0))","v":"ขนมเปี๊ยะไส้ถั่ว"},null,null,{"$f":"INDEX(INDIRECT(\"dProduct[ProductName]\"),ROUNDUP(COLUMNS($G:EO)/3,0))","v":"ขนมเปี๊ยะไส้ฟัก"},null,null,{"$f":"INDEX(INDIRECT(\"dProduct[ProductName]\"),ROUNDUP(COLUMNS($G:ER)/3,0))","v":"มังกี้เค้ก"},null,null,"มูลค่าสินค้า",null,"ภาษี","รวมยอดขาย"]
[null,null,null,null,null,"ราคาขาย",{"$f":"IF(G$7=0,0,INDEX(Price_List,ROUNDUP(COLUMNS($G:G)/3,0)))","v":20},null,null,{"$f":"IF(J$7=0,0,INDEX(Price_List,ROUNDUP(COLUMNS($G:J)/3,0)))","v":20},null,null,{"$f":"IF(M$7=0,0,INDEX(Price_List,ROUNDUP(COLUMNS($G:M)/3,0)))","v":20},null,null,{"$f":"IF(P$7=0,0,INDEX(Price_List,ROUNDUP(COLUMNS($G:P)/3,0)))","v":15},null,null,{"$f":"IF(S$7=0,0,INDEX(Price_List,ROUNDUP(COLUMNS($G:S)/3,0)))","v":15},null,null,{"$f":"IF(V$7=0,0,INDEX(Price_List,ROUNDUP(COLUMNS($G:V)/3,0)))","v":10},null,null,{"$f":"IF(Y$7=0,0,INDEX(Price_List,ROUNDUP(COLUMNS($G:Y)/3,0)))","v":10},null,null,{"$f":"IF(AB$7=0,0,INDEX(Price_List,ROUNDUP(COLUMNS($G:AB)/3,0)))","v":10},null,null,{"$f":"IF(AE$7=0,0,INDEX(Price_List,ROUNDUP(COLUMNS($G:AE)/3,0)))","v":10},null,null,{"$f":"IF(AH$7=0,0,INDEX(Price_List,ROUNDUP(COLUMNS($G:AH)/3,0)))","v":10},null,null,{"$f":"IF(AK$7=0,0,INDEX(Price_List,ROUNDUP(COLUMNS($G:AK)/3,0)))","v":15},null,null,{"$f":"IF(AN$7=0,0,INDEX(Price_List,ROUNDUP(COLUMNS($G:AN)/3,0)))","v":15},null,null,{"$f":"IF(AQ$7=0,0,INDEX(Price_List,ROUNDUP(COLUMNS($G:AQ)/3,0)))","v":15},null,null,{"$f":"IF(AT$7=0,0,INDEX(Price_List,ROUNDUP(COLUMNS($G:AT)/3,0)))","v":15},null,null,{"$f":"IF(AW$7=0,0,INDEX(Price_List,ROUNDUP(COLUMNS($G:AW)/3,0)))","v":42},null,null,{"$f":"IF(AZ$7=0,0,INDEX(Price_List,ROUNDUP(COLUMNS($G:AZ)/3,0)))","v":12},null,null,{"$f":"IF(BC$7=0,0,INDEX(Price_List,ROUNDUP(COLUMNS($G:BC)/3,0)))","v":12},null,null,{"$f":"IF(BF$7=0,0,INDEX(Price_List,ROUNDUP(COLUMNS($G:BF)/3,0)))","v":15},null,null,{"$f":"IF(BI$7=0,0,INDEX(Price_List,ROUNDUP(COLUMNS($G:BI)/3,0)))","v":20},null,null,{"$f":"IF(BL$7=0,0,INDEX(Price_List,ROUNDUP(COLUMNS($G:BL)/3,0)))","v":20},null,null,{"$f":"IF(BO$7=0,0,INDEX(Price_List,ROUNDUP(COLUMNS($G:BO)/3,0)))","v":20},null,null,{"$f":"IF(BR$7=0,0,INDEX(Price_List,ROUNDUP(COLUMNS($G:BR)/3,0)))","v":15},null,null,{"$f":"IF(BU$7=0,0,INDEX(Price_List,ROUNDUP(COLUMNS($G:BU)/3,0)))","v":20},null,null,{"$f":"IF(BX$7=0,0,INDEX(Price_List,ROUNDUP(COLUMNS($G:BX)/3,0)))","v":20},null,null,{"$f":"IF(CA$7=0,0,INDEX(Price_List,ROUNDUP(COLUMNS($G:CA)/3,0)))","v":15},null,null,{"$f":"IF(CD$7=0,0,INDEX(Price_List,ROUNDUP(COLUMNS($G:CD)/3,0)))","v":15},null,null,{"$f":"IF(CG$7=0,0,INDEX(Price_List,ROUNDUP(COLUMNS($G:CG)/3,0)))","v":20},null,null,{"$f":"IF(CJ$7=0,0,INDEX(Price_List,ROUNDUP(COLUMNS($G:CJ)/3,0)))","v":20},null,null,{"$f":"IF(CM$7=0,0,INDEX(Price_List,ROUNDUP(COLUMNS($G:CM)/3,0)))","v":10},null,null,{"$f":"IF(CP$7=0,0,INDEX(Price_List,ROUNDUP(COLUMNS($G:CP)/3,0)))","v":15},null,null,{"$f":"IF(CS$7=0,0,INDEX(Price_List,ROUNDUP(COLUMNS($G:CS)/3,0)))","v":15},null,null,{"$f":"IF(CV$7=0,0,INDEX(Price_List,ROUNDUP(COLUMNS($G:CV)/3,0)))","v":16},null,null,{"$f":"IF(CY$7=0,0,INDEX(Price_List,ROUNDUP(COLUMNS($G:CY)/3,0)))","v":15},null,null,{"$f":"IF(DB$7=0,0,INDEX(Price_List,ROUNDUP(COLUMNS($G:DB)/3,0)))","v":15},null,null,{"$f":"IF(DE$7=0,0,INDEX(Price_List,ROUNDUP(COLUMNS($G:DE)/3,0)))","v":10},null,null,{"$f":"IF(DH$7=0,0,INDEX(Price_List,ROUNDUP(COLUMNS($G:DH)/3,0)))","v":10},null,null,{"$f":"IF(DK$7=0,0,INDEX(Price_List,ROUNDUP(COLUMNS($G:DK)/3,0)))","v":20},null,null,{"$f":"IF(DN$7=0,0,INDEX(Price_List,ROUNDUP(COLUMNS($G:DN)/3,0)))","v":20},null,null,{"$f":"IF(DQ$7=0,0,INDEX(Price_List,ROUNDUP(COLUMNS($G:DQ)/3,0)))","v":15},null,null,{"$f":"IF(DT$7=0,0,INDEX(Price_List,ROUNDUP(COLUMNS($G:DT)/3,0)))","v":15},null,null,{"$f":"IF(DW$7=0,0,INDEX(Price_List,ROUNDUP(COLUMNS($G:DW)/3,0)))","v":12},null,null,{"$f":"IF(DZ$7=0,0,INDEX(Price_List,ROUNDUP(COLUMNS($G:DZ)/3,0)))","v":18},null,null,{"$f":"IF(EC$7=0,0,INDEX(Price_List,ROUNDUP(COLUMNS($G:EC)/3,0)))","v":12},null,null,{"$f":"IF(EF$7=0,0,INDEX(Price_List,ROUNDUP(COLUMNS($G:EF)/3,0)))","v":12},null,null,{"$f":"IF(EI$7=0,0,INDEX(Price_List,ROUNDUP(COLUMNS($G:EI)/3,0)))","v":25},null,null,{"$f":"IF(EL$7=0,0,INDEX(Price_List,ROUNDUP(COLUMNS($G:EL)/3,0)))","v":12},null,null,{"$f":"IF(EO$7=0,0,INDEX(Price_List,ROUNDUP(COLUMNS($G:EO)/3,0)))","v":12},null,null,{"$f":"IF(ER$7=0,0,INDEX(Price_List,ROUNDUP(COLUMNS($G:ER)/3,0)))","v":12},null,null,"เงินเชื่อ","เงินสด"]
[null,null,null,null,null,"คงเหลือ(ตามบัญชี)",{"$f":"IF(G$7=0,0,INDEX(INDIRECT(Order_Rng),ROUNDUP(COLUMNS($G:G)/3,0)))","v":0},null,null,{"$f":"IF(J$7=0,0,INDEX(INDIRECT(Order_Rng),ROUNDUP(COLUMNS($G:J)/3,0)))","v":0},null,null,{"$f":"IF(M$7=0,0,INDEX(INDIRECT(Order_Rng),ROUNDUP(COLUMNS($G:M)/3,0)))","v":0},null,null,{"$f":"IF(P$7=0,0,INDEX(INDIRECT(Order_Rng),ROUNDUP(COLUMNS($G:P)/3,0)))","v":0},null,null,{"$f":"IF(S$7=0,0,INDEX(INDIRECT(Order_Rng),ROUNDUP(COLUMNS($G:S)/3,0)))","v":0},null,null,{"$f":"IF(V$7=0,0,INDEX(INDIRECT(Order_Rng),ROUNDUP(COLUMNS($G:V)/3,0)))","v":0},null,null,{"$f":"IF(Y$7=0,0,INDEX(INDIRECT(Order_Rng),ROUNDUP(COLUMNS($G:Y)/3,0)))","v":0},null,null,{"$f":"IF(AB$7=0,0,INDEX(INDIRECT(Order_Rng),ROUNDUP(COLUMNS($G:AB)/3,0)))","v":0},null,null,{"$f":"IF(AE$7=0,0,INDEX(INDIRECT(Order_Rng),ROUNDUP(COLUMNS($G:AE)/3,0)))","v":0},null,null,{"$f":"IF(AH$7=0,0,INDEX(INDIRECT(Order_Rng),ROUNDUP(COLUMNS($G:AH)/3,0)))","v":0},null,null,{"$f":"IF(AK$7=0,0,INDEX(INDIRECT(Order_Rng),ROUNDUP(COLUMNS($G:AK)/3,0)))","v":0},null,null,{"$f":"IF(AN$7=0,0,INDEX(INDIRECT(Order_Rng),ROUNDUP(COLUMNS($G:AN)/3,0)))","v":0},null,null,{"$f":"IF(AQ$7=0,0,INDEX(INDIRECT(Order_Rng),ROUNDUP(COLUMNS($G:AQ)/3,0)))","v":0},null,null,{"$f":"IF(AT$7=0,0,INDEX(INDIRECT(Order_Rng),ROUNDUP(COLUMNS($G:AT)/3,0)))","v":0},null,null,{"$f":"IF(AW$7=0,0,INDEX(INDIRECT(Order_Rng),ROUNDUP(COLUMNS($G:AW)/3,0)))","v":0},null,null,{"$f":"IF(AZ$7=0,0,INDEX(INDIRECT(Order_Rng),ROUNDUP(COLUMNS($G:AZ)/3,0)))","v":0},null,null,{"$f":"IF(BC$7=0,0,INDEX(INDIRECT(Order_Rng),ROUNDUP(COLUMNS($G:BC)/3,0)))","v":0},null,null,{"$f":"IF(BF$7=0,0,INDEX(INDIRECT(Order_Rng),ROUNDUP(COLUMNS($G:BF)/3,0)))","v":0},null,null,{"$f":"IF(BI$7=0,0,INDEX(INDIRECT(Order_Rng),ROUNDUP(COLUMNS($G:BI)/3,0)))","v":0},null,null,{"$f":"IF(BL$7=0,0,INDEX(INDIRECT(Order_Rng),ROUNDUP(COLUMNS($G:BL)/3,0)))","v":0},null,null,{"$f":"IF(BO$7=0,0,INDEX(INDIRECT(Order_Rng),ROUNDUP(COLUMNS($G:BO)/3,0)))","v":0},null,null,{"$f":"IF(BR$7=0,0,INDEX(INDIRECT(Order_Rng),ROUNDUP(COLUMNS($G:BR)/3,0)))","v":0},null,null,{"$f":"IF(BU$7=0,0,INDEX(INDIRECT(Order_Rng),ROUNDUP(COLUMNS($G:BU)/3,0)))","v":0},null,null,{"$f":"IF(BX$7=0,0,INDEX(INDIRECT(Order_Rng),ROUNDUP(COLUMNS($G:BX)/3,0)))","v":0},null,null,{"$f":"IF(CA$7=0,0,INDEX(INDIRECT(Order_Rng),ROUNDUP(COLUMNS($G:CA)/3,0)))","v":0},null,null,{"$f":"IF(CD$7=0,0,INDEX(INDIRECT(Order_Rng),ROUNDUP(COLUMNS($G:CD)/3,0)))","v":0},null,null,{"$f":"IF(CG$7=0,0,INDEX(INDIRECT(Order_Rng),ROUNDUP(COLUMNS($G:CG)/3,0)))","v":0},null,null,{"$f":"IF(CJ$7=0,0,INDEX(INDIRECT(Order_Rng),ROUNDUP(COLUMNS($G:CJ)/3,0)))","v":0},null,null,{"$f":"IF(CM$7=0,0,INDEX(INDIRECT(Order_Rng),ROUNDUP(COLUMNS($G:CM)/3,0)))","v":0},null,null,{"$f":"IF(CP$7=0,0,INDEX(INDIRECT(Order_Rng),ROUNDUP(COLUMNS($G:CP)/3,0)))","v":0},null,null,{"$f":"IF(CS$7=0,0,INDEX(INDIRECT(Order_Rng),ROUNDUP(COLUMNS($G:CS)/3,0)))","v":0},null,null,{"$f":"IF(CV$7=0,0,INDEX(INDIRECT(Order_Rng),ROUNDUP(COLUMNS($G:CV)/3,0)))","v":0},null,null,{"$f":"IF(CY$7=0,0,INDEX(INDIRECT(Order_Rng),ROUNDUP(COLUMNS($G:CY)/3,0)))","v":0},null,null,{"$f":"IF(DB$7=0,0,INDEX(INDIRECT(Order_Rng),ROUNDUP(COLUMNS($G:DB)/3,0)))","v":0},null,null,{"$f":"IF(DE$7=0,0,INDEX(INDIRECT(Order_Rng),ROUNDUP(COLUMNS($G:DE)/3,0)))","v":0},null,null,{"$f":"IF(DH$7=0,0,INDEX(INDIRECT(Order_Rng),ROUNDUP(COLUMNS($G:DH)/3,0)))","v":0},null,null,{"$f":"IF(DK$7=0,0,INDEX(INDIRECT(Order_Rng),ROUNDUP(COLUMNS($G:DK)/3,0)))","v":0},null,null,{"$f":"IF(DN$7=0,0,INDEX(INDIRECT(Order_Rng),ROUNDUP(COLUMNS($G:DN)/3,0)))","v":0},null,null,{"$f":"IF(DQ$7=0,0,INDEX(INDIRECT(Order_Rng),ROUNDUP(COLUMNS($G:DQ)/3,0)))","v":0},null,null,{"$f":"IF(DT$7=0,0,INDEX(INDIRECT(Order_Rng),ROUNDUP(COLUMNS($G:DT)/3,0)))","v":0},null,null,{"$f":"IF(DW$7=0,0,INDEX(INDIRECT(Order_Rng),ROUNDUP(COLUMNS($G:DW)/3,0)))","v":0},null,null,{"$f":"IF(DZ$7=0,0,INDEX(INDIRECT(Order_Rng),ROUNDUP(COLUMNS($G:DZ)/3,0)))","v":0},null,null,{"$f":"IF(EC$7=0,0,INDEX(INDIRECT(Order_Rng),ROUNDUP(COLUMNS($G:EC)/3,0)))","v":0},null,null,{"$f":"IF(EF$7=0,0,INDEX(INDIRECT(Order_Rng),ROUNDUP(COLUMNS($G:EF)/3,0)))","v":0},null,null,{"$f":"IF(EI$7=0,0,INDEX(INDIRECT(Order_Rng),ROUNDUP(COLUMNS($G:EI)/3,0)))","v":0},null,null,{"$f":"IF(EL$7=0,0,INDEX(INDIRECT(Order_Rng),ROUNDUP(COLUMNS($G:EL)/3,0)))","v":0},null,null,{"$f":"IF(EO$7=0,0,INDEX(INDIRECT(Order_Rng),ROUNDUP(COLUMNS($G:EO)/3,0)))","v":0},null,null,{"$f":"IF(ER$7=0,0,INDEX(INDIRECT(Order_Rng),ROUNDUP(COLUMNS($G:ER)/3,0)))","v":0}]
[{"$f":"IF(OR($B10=\"\",COUNTIF($B$10:$B10,$B10)>1,LEN(TRIM($B10))<>10,ISNUMBER(--MID(TRIM($B10),5,1))),\"-\",MAX(COUNT($A$9:$A9)+1))","v":"-"}]
[{"$f":"IF(OR($B11=\"\",COUNTIF($B$10:$B11,$B11)>1,LEN(TRIM($B11))<>10,ISNUMBER(--MID(TRIM($B11),5,1))),\"-\",MAX(COUNT($A$9:$A10)+1))","v":"-"},null,null,null,{"$f":"IF(D11=\"\",\"\",D11-D10)","v":""}]
[{"$f":"IF(OR($B12=\"\",COUNTIF($B$10:$B12,$B12)>1,LEN(TRIM($B12))<>10,ISNUMBER(--MID(TRIM($B12),5,1))),\"-\",MAX(COUNT($A$9:$A11)+1))","v":"-"},null,null,null,{"$f":"IF(D12=\"\",\"\",D12-D11)","v":""}]
[{"$f":"IF(OR($B13=\"\",COUNTIF($B$10:$B13,$B13)>1,LEN(TRIM($B13))<>10,ISNUMBER(--MID(TRIM($B13),5,1))),\"-\",MAX(COUNT($A$9:$A12)+1))","v":"-"},null,null,null,""]
[{"$f":"IF(OR($B14=\"\",COUNTIF($B$10:$B14,$B14)>1,LEN(TRIM($B14))<>10,ISNUMBER(--MID(TRIM($B14),5,1))),\"-\",MAX(COUNT($A$9:$A13)+1))","v":"-"},null,null,null,""]
[{"$f":"IF(OR($B15=\"\",COUNTIF($B$10:$B15,$B15)>1,LEN(TRIM($B15))<>10,ISNUMBER(--MID(TRIM($B15),5,1))),\"-\",MAX(COUNT($A$9:$A14)+1))","v":"-"},null,null,null,""]
[{"$f":"IF(OR($B16=\"\",COUNTIF($B$10:$B16,$B16)>1,LEN(TRIM($B16))<>10,ISNUMBER(--MID(TRIM($B16),5,1))),\"-\",MAX(COUNT($A$9:$A15)+1))","v":"-"},null,null,null,""]
[{"$f":"IF(OR($B17=\"\",COUNTIF($B$10:$B17,$B17)>1,LEN(TRIM($B17))<>10,ISNUMBER(--MID(TRIM($B17),5,1))),\"-\",MAX(COUNT($A$9:$A16)+1))","v":"-"},null,null,null,""]
[{"$f":"IF(OR($B18=\"\",COUNTIF($B$10:$B18,$B18)>1,LEN(TRIM($B18))<>10,ISNUMBER(--MID(TRIM($B18),5,1))),\"-\",MAX(COUNT($A$9:$A17)+1))","v":"-"},null,null,null,""]
[{"$f":"IF(OR($B19=\"\",COUNTIF($B$10:$B19,$B19)>1,LEN(TRIM($B19))<>10,ISNUMBER(--MID(TRIM($B19),5,1))),\"-\",MAX(COUNT($A$9:$A18)+1))","v":"-"},null,null,null,""]
[{"$f":"IF(OR($B20=\"\",COUNTIF($B$10:$B20,$B20)>1,LEN(TRIM($B20))<>10,ISNUMBER(--MID(TRIM($B20),5,1))),\"-\",MAX(COUNT($A$9:$A19)+1))","v":"-"},null,null,null,""]
[{"$f":"IF(OR($B21=\"\",COUNTIF($B$10:$B21,$B21)>1,LEN(TRIM($B21))<>10,ISNUMBER(--MID(TRIM($B21),5,1))),\"-\",MAX(COUNT($A$9:$A20)+1))","v":"-"},null,null,null,""]
[{"$f":"IF(OR($B22=\"\",COUNTIF($B$10:$B22,$B22)>1,LEN(TRIM($B22))<>10,ISNUMBER(--MID(TRIM($B22),5,1))),\"-\",MAX(COUNT($A$9:$A21)+1))","v":"-"},null,null,null,""]
[{"$f":"IF(OR($B23=\"\",COUNTIF($B$10:$B23,$B23)>1,LEN(TRIM($B23))<>10,ISNUMBER(--MID(TRIM($B23),5,1))),\"-\",MAX(COUNT($A$9:$A22)+1))","v":"-"},null,null,null,""]
[{"$f":"IF(OR($B24=\"\",COUNTIF($B$10:$B24,$B24)>1,LEN(TRIM($B24))<>10,ISNUMBER(--MID(TRIM($B24),5,1))),\"-\",MAX(COUNT($A$9:$A23)+1))","v":"-"},null,null,null,""]
[{"$f":"IF(OR($B25=\"\",COUNTIF($B$10:$B25,$B25)>1,LEN(TRIM($B25))<>10,ISNUMBER(--MID(TRIM($B25),5,1))),\"-\",MAX(COUNT($A$9:$A24)+1))","v":"-"},null,null,null,""]
[{"$f":"IF(OR($B26=\"\",COUNTIF($B$10:$B26,$B26)>1,LEN(TRIM($B26))<>10,ISNUMBER(--MID(TRIM($B26),5,1))),\"-\",MAX(COUNT($A$9:$A25)+1))","v":"-"},null,null,null,""]
[{"$f":"IF(OR($B27=\"\",COUNTIF($B$10:$B27,$B27)>1,LEN(TRIM($B27))<>10,ISNUMBER(--MID(TRIM($B27),5,1))),\"-\",MAX(COUNT($A$9:$A26)+1))","v":"-"},null,null,null,""]
[{"$f":"IF(OR($B28=\"\",COUNTIF($B$10:$B28,$B28)>1,LEN(TRIM($B28))<>10,ISNUMBER(--MID(TRIM($B28),5,1))),\"-\",MAX(COUNT($A$9:$A27)+1))","v":"-"},null,null,null,""]
[{"$f":"IF(OR($B29=\"\",COUNTIF($B$10:$B29,$B29)>1,LEN(TRIM($B29))<>10,ISNUMBER(--MID(TRIM($B29),5,1))),\"-\",MAX(COUNT($A$9:$A28)+1))","v":"-"},null,null,null,""]
[{"$f":"IF(OR($B30=\"\",COUNTIF($B$10:$B30,$B30)>1,LEN(TRIM($B30))<>10,ISNUMBER(--MID(TRIM($B30),5,1))),\"-\",MAX(COUNT($A$9:$A29)+1))","v":"-"},null,null,null,""]
[{"$f":"IF(OR($B31=\"\",COUNTIF($B$10:$B31,$B31)>1,LEN(TRIM($B31))<>10,ISNUMBER(--MID(TRIM($B31),5,1))),\"-\",MAX(COUNT($A$9:$A30)+1))","v":"-"},null,null,null,""]
[{"$f":"IF(OR($B32=\"\",COUNTIF($B$10:$B32,$B32)>1,LEN(TRIM($B32))<>10,ISNUMBER(--MID(TRIM($B32),5,1))),\"-\",MAX(COUNT($A$9:$A31)+1))","v":"-"},null,null,null,""]
[{"$f":"IF(OR($B33=\"\",COUNTIF($B$10:$B33,$B33)>1,LEN(TRIM($B33))<>10,ISNUMBER(--MID(TRIM($B33),5,1))),\"-\",MAX(COUNT($A$9:$A32)+1))","v":"-"},null,null,null,""]
[{"$f":"IF(OR($B34=\"\",COUNTIF($B$10:$B34,$B34)>1,LEN(TRIM($B34))<>10,ISNUMBER(--MID(TRIM($B34),5,1))),\"-\",MAX(COUNT($A$9:$A33)+1))","v":"-"},null,null,null,""]
[{"$f":"IF(OR($B35=\"\",COUNTIF($B$10:$B35,$B35)>1,LEN(TRIM($B35))<>10,ISNUMBER(--MID(TRIM($B35),5,1))),\"-\",MAX(COUNT($A$9:$A34)+1))","v":"-"},null,null,null,""]
[{"$f":"IF(OR($B36=\"\",COUNTIF($B$10:$B36,$B36)>1,LEN(TRIM($B36))<>10,ISNUMBER(--MID(TRIM($B36),5,1))),\"-\",MAX(COUNT($A$9:$A35)+1))","v":"-"},null,null,null,""]
[{"$f":"IF(OR($B37=\"\",COUNTIF($B$10:$B37,$B37)>1,LEN(TRIM($B37))<>10,ISNUMBER(--MID(TRIM($B37),5,1))),\"-\",MAX(COUNT($A$9:$A36)+1))","v":"-"},null,null,null,""]
[{"$f":"IF(OR($B38=\"\",COUNTIF($B$10:$B38,$B38)>1,LEN(TRIM($B38))<>10,ISNUMBER(--MID(TRIM($B38),5,1))),\"-\",MAX(COUNT($A$9:$A37)+1))","v":"-"},null,null,null,""]
[{"$f":"IF(OR($B39=\"\",COUNTIF($B$10:$B39,$B39)>1,LEN(TRIM($B39))<>10,ISNUMBER(--MID(TRIM($B39),5,1))),\"-\",MAX(COUNT($A$9:$A38)+1))","v":"-"},null,null,null,""]
[{"$f":"IF(OR($B40=\"\",COUNTIF($B$10:$B40,$B40)>1,LEN(TRIM($B40))<>10,ISNUMBER(--MID(TRIM($B40),5,1))),\"-\",MAX(COUNT($A$9:$A39)+1))","v":"-"},null,null,null,""]
[{"$f":"IF(OR($B41=\"\",COUNTIF($B$10:$B41,$B41)>1,LEN(TRIM($B41))<>10,ISNUMBER(--MID(TRIM($B41),5,1))),\"-\",MAX(COUNT($A$9:$A40)+1))","v":"-"},null,null,null,""]
[{"$f":"IF(OR($B42=\"\",COUNTIF($B$10:$B42,$B42)>1,LEN(TRIM($B42))<>10,ISNUMBER(--MID(TRIM($B42),5,1))),\"-\",MAX(COUNT($A$9:$A41)+1))","v":"-"},null,null,null,""]
[{"$f":"IF(OR($B43=\"\",COUNTIF($B$10:$B43,$B43)>1,LEN(TRIM($B43))<>10,ISNUMBER(--MID(TRIM($B43),5,1))),\"-\",MAX(COUNT($A$9:$A42)+1))","v":"-"},null,null,null,""]
[{"$f":"IF(OR($B44=\"\",COUNTIF($B$10:$B44,$B44)>1,LEN(TRIM($B44))<>10,ISNUMBER(--MID(TRIM($B44),5,1))),\"-\",MAX(COUNT($A$9:$A43)+1))","v":"-"},null,null,null,""]
[{"$f":"IF(OR($B45=\"\",COUNTIF($B$10:$B45,$B45)>1,LEN(TRIM($B45))<>10,ISNUMBER(--MID(TRIM($B45),5,1))),\"-\",MAX(COUNT($A$9:$A44)+1))","v":"-"},null,null,null,""]
[{"$f":"IF(OR($B46=\"\",COUNTIF($B$10:$B46,$B46)>1,LEN(TRIM($B46))<>10,ISNUMBER(--MID(TRIM($B46),5,1))),\"-\",MAX(COUNT($A$9:$A45)+1))","v":"-"},null,null,null,""]
[{"$f":"IF(OR($B47=\"\",COUNTIF($B$10:$B47,$B47)>1,LEN(TRIM($B47))<>10,ISNUMBER(--MID(TRIM($B47),5,1))),\"-\",MAX(COUNT($A$9:$A46)+1))","v":"-"},null,null,null,""]
[{"$f":"IF(OR($B48=\"\",COUNTIF($B$10:$B48,$B48)>1,LEN(TRIM($B48))<>10,ISNUMBER(--MID(TRIM($B48),5,1))),\"-\",MAX(COUNT($A$9:$A47)+1))","v":"-"},null,null,null,""]
[{"$f":"IF(OR($B49=\"\",COUNTIF($B$10:$B49,$B49)>1,LEN(TRIM($B49))<>10,ISNUMBER(--MID(TRIM($B49),5,1))),\"-\",MAX(COUNT($A$9:$A48)+1))","v":"-"},null,null,null,""]
[{"$f":"IF(OR($B50=\"\",COUNTIF($B$10:$B50,$B50)>1,LEN(TRIM($B50))<>10,ISNUMBER(--MID(TRIM($B50),5,1))),\"-\",MAX(COUNT($A$9:$A49)+1))","v":"-"},null,null,null,""]
[{"$f":"IF(OR($B51=\"\",COUNTIF($B$10:$B51,$B51)>1,LEN(TRIM($B51))<>10,ISNUMBER(--MID(TRIM($B51),5,1))),\"-\",MAX(COUNT($A$9:$A50)+1))","v":"-"},null,null,null,""]
[{"$f":"IF(OR($B52=\"\",COUNTIF($B$10:$B52,$B52)>1,LEN(TRIM($B52))<>10,ISNUMBER(--MID(TRIM($B52),5,1))),\"-\",MAX(COUNT($A$9:$A51)+1))","v":"-"},null,null,null,""]
[{"$f":"IF(OR($B53=\"\",COUNTIF($B$10:$B53,$B53)>1,LEN(TRIM($B53))<>10,ISNUMBER(--MID(TRIM($B53),5,1))),\"-\",MAX(COUNT($A$9:$A52)+1))","v":"-"},null,null,null,""]
[{"$f":"IF(OR($B54=\"\",COUNTIF($B$10:$B54,$B54)>1,LEN(TRIM($B54))<>10,ISNUMBER(--MID(TRIM($B54),5,1))),\"-\",MAX(COUNT($A$9:$A53)+1))","v":"-"},null,null,null,""]
[{"$f":"IF(OR($B55=\"\",COUNTIF($B$10:$B55,$B55)>1,LEN(TRIM($B55))<>10,ISNUMBER(--MID(TRIM($B55),5,1))),\"-\",MAX(COUNT($A$9:$A54)+1))","v":"-"},null,null,null,""]
[{"$f":"IF(OR($B56=\"\",COUNTIF($B$10:$B56,$B56)>1,LEN(TRIM($B56))<>10,ISNUMBER(--MID(TRIM($B56),5,1))),\"-\",MAX(COUNT($A$9:$A55)+1))","v":"-"},null,null,null,""]
[{"$f":"IF(OR($B57=\"\",COUNTIF($B$10:$B57,$B57)>1,LEN(TRIM($B57))<>10,ISNUMBER(--MID(TRIM($B57),5,1))),\"-\",MAX(COUNT($A$9:$A56)+1))","v":"-"},null,null,null,""]
[{"$f":"IF(OR($B58=\"\",COUNTIF($B$10:$B58,$B58)>1,LEN(TRIM($B58))<>10,ISNUMBER(--MID(TRIM($B58),5,1))),\"-\",MAX(COUNT($A$9:$A57)+1))","v":"-"},null,null,null,""]
[{"$f":"IF(OR($B59=\"\",COUNTIF($B$10:$B59,$B59)>1,LEN(TRIM($B59))<>10,ISNUMBER(--MID(TRIM($B59),5,1))),\"-\",MAX(COUNT($A$9:$A58)+1))","v":"-"},null,null,null,""]
[{"$f":"IF(OR($B60=\"\",COUNTIF($B$10:$B60,$B60)>1,LEN(TRIM($B60))<>10,ISNUMBER(--MID(TRIM($B60),5,1))),\"-\",MAX(COUNT($A$9:$A59)+1))","v":"-"},null,null,null,""]
[{"$f":"IF(OR($B61=\"\",COUNTIF($B$10:$B61,$B61)>1,LEN(TRIM($B61))<>10,ISNUMBER(--MID(TRIM($B61),5,1))),\"-\",MAX(COUNT($A$9:$A60)+1))","v":"-"},null,null,null,""]
[{"$f":"IF(OR($B62=\"\",COUNTIF($B$10:$B62,$B62)>1,LEN(TRIM($B62))<>10,ISNUMBER(--MID(TRIM($B62),5,1))),\"-\",MAX(COUNT($A$9:$A61)+1))","v":"-"},null,null,null,""]
[{"$f":"IF(OR($B63=\"\",COUNTIF($B$10:$B63,$B63)>1,LEN(TRIM($B63))<>10,ISNUMBER(--MID(TRIM($B63),5,1))),\"-\",MAX(COUNT($A$9:$A62)+1))","v":"-"},null,null,null,""]
[{"$f":"IF(OR($B64=\"\",COUNTIF($B$10:$B64,$B64)>1,LEN(TRIM($B64))<>10,ISNUMBER(--MID(TRIM($B64),5,1))),\"-\",MAX(COUNT($A$9:$A63)+1))","v":"-"},null,null,null,""]
[{"$f":"IF(OR($B65=\"\",COUNTIF($B$10:$B65,$B65)>1,LEN(TRIM($B65))<>10,ISNUMBER(--MID(TRIM($B65),5,1))),\"-\",MAX(COUNT($A$9:$A64)+1))","v":"-"},null,null,null,""]
[{"$f":"IF(OR($B66=\"\",COUNTIF($B$10:$B66,$B66)>1,LEN(TRIM($B66))<>10,ISNUMBER(--MID(TRIM($B66),5,1))),\"-\",MAX(COUNT($A$9:$A65)+1))","v":"-"},null,null,null,""]
[{"$f":"IF(OR($B67=\"\",COUNTIF($B$10:$B67,$B67)>1,LEN(TRIM($B67))<>10,ISNUMBER(--MID(TRIM($B67),5,1))),\"-\",MAX(COUNT($A$9:$A66)+1))","v":"-"},null,null,null,""]
[{"$f":"IF(OR($B68=\"\",COUNTIF($B$10:$B68,$B68)>1,LEN(TRIM($B68))<>10,ISNUMBER(--MID(TRIM($B68),5,1))),\"-\",MAX(COUNT($A$9:$A67)+1))","v":"-"},null,null,null,""]
[{"$f":"IF(OR($B69=\"\",COUNTIF($B$10:$B69,$B69)>1,LEN(TRIM($B69))<>10,ISNUMBER(--MID(TRIM($B69),5,1))),\"-\",MAX(COUNT($A$9:$A68)+1))","v":"-"},null,null,null,""]
[{"$f":"IF(OR($B70=\"\",COUNTIF($B$10:$B70,$B70)>1,LEN(TRIM($B70))<>10,ISNUMBER(--MID(TRIM($B70),5,1))),\"-\",MAX(COUNT($A$9:$A69)+1))","v":"-"},null,null,null,""]
[{"$f":"IF(OR($B71=\"\",COUNTIF($B$10:$B71,$B71)>1,LEN(TRIM($B71))<>10,ISNUMBER(--MID(TRIM($B71),5,1))),\"-\",MAX(COUNT($A$9:$A70)+1))","v":"-"},null,null,null,""]
[{"$f":"IF(OR($B72=\"\",COUNTIF($B$10:$B72,$B72)>1,LEN(TRIM($B72))<>10,ISNUMBER(--MID(TRIM($B72),5,1))),\"-\",MAX(COUNT($A$9:$A71)+1))","v":"-"},null,null,null,""]
[{"$f":"IF(OR($B73=\"\",COUNTIF($B$10:$B73,$B73)>1,LEN(TRIM($B73))<>10,ISNUMBER(--MID(TRIM($B73),5,1))),\"-\",MAX(COUNT($A$9:$A72)+1))","v":"-"},null,null,null,""]
[{"$f":"IF(OR($B74=\"\",COUNTIF($B$10:$B74,$B74)>1,LEN(TRIM($B74))<>10,ISNUMBER(--MID(TRIM($B74),5,1))),\"-\",MAX(COUNT($A$9:$A73)+1))","v":"-"},null,null,null,""]
[{"$f":"IF(OR($B75=\"\",COUNTIF($B$10:$B75,$B75)>1,LEN(TRIM($B75))<>10,ISNUMBER(--MID(TRIM($B75),5,1))),\"-\",MAX(COUNT($A$9:$A74)+1))","v":"-"},null,null,null,""]
[{"$f":"IF(OR($B76=\"\",COUNTIF($B$10:$B76,$B76)>1,LEN(TRIM($B76))<>10,ISNUMBER(--MID(TRIM($B76),5,1))),\"-\",MAX(COUNT($A$9:$A75)+1))","v":"-"},null,null,null,{"$f":"IF(D76=\"\",\"\",D76-D75)","v":""}]
[{"$f":"IF(OR($B77=\"\",COUNTIF($B$10:$B77,$B77)>1,LEN(TRIM($B77))<>10,ISNUMBER(--MID(TRIM($B77),5,1))),\"-\",MAX(COUNT($A$9:$A76)+1))","v":"-"},null,null,null,""]
[{"$f":"IF(OR($B78=\"\",COUNTIF($B$10:$B78,$B78)>1,LEN(TRIM($B78))<>10,ISNUMBER(--MID(TRIM($B78),5,1))),\"-\",MAX(COUNT($A$9:$A77)+1))","v":"-"},null,null,null,""]
[{"$f":"IF(OR($B79=\"\",COUNTIF($B$10:$B79,$B79)>1,LEN(TRIM($B79))<>10,ISNUMBER(--MID(TRIM($B79),5,1))),\"-\",MAX(COUNT($A$9:$A78)+1))","v":"-"},null,null,null,""]
["รวมของขาย|ของเสีย|เหลือบนเชลฟ์",null,null,null,null,null,{"$f":"SUM(G10:G79)","v":0},0,0,{"$f":"SUM(J10:J79)","v":0},0,0,0,0,0,0,0,0,0,0,0,0,0,0,0,0,0,0,0,0,0,0,0,0,0,0,0,0,0,0,0,0,0,0,0,0,0,0,0,0,0,0,0,0,0,0,0,0,0,0,0,0,0,0,0,0,0,0,0,0,0,0,0,{"$f":"SUM(BV10:BV79)","v":0},0,0,0,0,0,0,0,0,0,0,0,0,0,0,0,0,0,0,0,0,0,0,0,0,0,0,0,0,0,0,0,0,0,0,0,0,0,0,0,0,0,0,0,0,0,0,0,0,0,0,0,0,0,0,0,0,0,0,0,0,0,{"$f":"SUM(EF10:EF79)","v":0},0,0,{"$f":"SUM(EI10:EI79)","v":0},0,0,0,0,0,{"$f":"SUM(EO10:EO79)","v":0},0,0,0,0,0,"รวมเงินเชื่อ","รวมเงินสด","ภาษี","รวมยอดขาย"]
["ของเหลือ",null,null,null,null,null,{"$f":"G80+H80-G9","v":0},null,null,{"$f":"J80+K80-J9","v":0},null,null,{"$f":"M80+N80-M9","v":0},null,null,{"$f":"P80+Q80-P9","v":0},null,null,{"$f":"S80+T80-S9","v":0},null,null,{"$f":"V80+W80-V9","v":0},null,null,{"$f":"Y80+Z80-Y9","v":0},null,null,{"$f":"AB80+AC80-AB9","v":0},null,null,{"$f":"AE80+AF80-AE9","v":0},null,null,{"$f":"AH80+AI80-AH9","v":0},null,null,{"$f":"AK80+AL80-AK9","v":0},null,null,{"$f":"AN80+AO80-AN9","v":0},null,null,{"$f":"AQ80+AR80-AQ9","v":0},null,null,{"$f":"AT80+AU80-AT9","v":0},null,null,{"$f":"AW80+AX80-AW9","v":0},null,null,{"$f":"AZ80+BA80-AZ9","v":0},null,null,{"$f":"BC80+BD80-BC9","v":0},null,null,{"$f":"BF80+BG80-BF9","v":0},null,null,{"$f":"BI80+BJ80-BI9","v":0},null,null,{"$f":"BL80+BM80-BL9","v":0},null,null,{"$f":"BO80+BP80-BO9","v":0},null,null,{"$f":"BR80+BS80-BR9","v":0},null,null,{"$f":"BU80+BV80-BU9","v":0},null,null,{"$f":"BX80+BY80-BX9","v":0},null,null,{"$f":"CA80+CB80-CA9","v":0},null,null,{"$f":"CD80+CE80-CD9","v":0},null,null,{"$f":"CG80+CH80-CG9","v":0},null,null,{"$f":"CJ80+CK80-CJ9","v":0},null,null,{"$f":"CM80+CN80-CM9","v":0},null,null,{"$f":"CP80+CQ80-CP9","v":0},null,null,{"$f":"CS80+CT80-CS9","v":0},null,null,{"$f":"CV80+CW80-CV9","v":0},null,null,{"$f":"CY80+CZ80-CY9","v":0},null,null,{"$f":"DB80+DC80-DB9","v":0},null,null,{"$f":"DE80+DF80-DE9","v":0},null,null,{"$f":"DH80+DI80-DH9","v":0},null,null,{"$f":"DK80+DL80-DK9","v":0},null,null,{"$f":"DN80+DO80-DN9","v":0},null,null,{"$f":"DQ80+DR80-DQ9","v":0},null,null,{"$f":"DT80+DU80-DT9","v":0},null,null,{"$f":"DW80+DX80-DW9","v":0},null,null,{"$f":"DZ80+EA80-DZ9","v":0},null,null,{"$f":"EC80+ED80-EC9","v":0},null,null,{"$f":"EF80+EG80-EF9","v":0},null,null,{"$f":"EI80+EJ80-EI9","v":0},null,null,{"$f":"EL80+EM80-EL9","v":0},null,null,{"$f":"EO80+EP80-EO9","v":0},null,null,{"$f":"ER80+ES80-ER9","v":0},null,null,{"$f":"SUM(EU10:EU79)","v":0},{"$f":"SUM(EV10:EV79)","v":0},{"$f":"SUM(EW10:EW79)","v":0},{"$f":"SUM(EX10:EX79)","v":0}]
["เฉลี่ย",null,null,"เหลือ/เสีย(จริง)",null,null,{"$f":"INDIRECT(\"F\"&ROW($G$87)+ROUNDUP(COLUMNS($G:G)/3,0))","v":0},{"$f":"INDIRECT(\"G\"&ROW($G$87)+ROUNDUP(COLUMNS($G:H)/3,0))","v":0},null,{"$f":"INDIRECT(\"F\"&ROW($G$87)+ROUNDUP(COLUMNS($G:J)/3,0))","v":0},{"$f":"INDIRECT(\"G\"&ROW($G$87)+ROUNDUP(COLUMNS($G:K)/3,0))","v":0},null,{"$f":"INDIRECT(\"F\"&ROW($G$87)+ROUNDUP(COLUMNS($G:M)/3,0))","v":0},{"$f":"INDIRECT(\"G\"&ROW($G$87)+ROUNDUP(COLUMNS($G:N)/3,0))","v":0},null,{"$f":"INDIRECT(\"F\"&ROW($G$87)+ROUNDUP(COLUMNS($G:P)/3,0))","v":0},{"$f":"INDIRECT(\"G\"&ROW($G$87)+ROUNDUP(COLUMNS($G:Q)/3,0))","v":0},null,{"$f":"INDIRECT(\"F\"&ROW($G$87)+ROUNDUP(COLUMNS($G:S)/3,0))","v":0},{"$f":"INDIRECT(\"G\"&ROW($G$87)+ROUNDUP(COLUMNS($G:T)/3,0))","v":0},null,{"$f":"INDIRECT(\"F\"&ROW($G$87)+ROUNDUP(COLUMNS($G:V)/3,0))","v":0},{"$f":"INDIRECT(\"G\"&ROW($G$87)+ROUNDUP(COLUMNS($G:W)/3,0))","v":0},null,{"$f":"INDIRECT(\"F\"&ROW($G$87)+ROUNDUP(COLUMNS($G:Y)/3,0))","v":0},{"$f":"INDIRECT(\"G\"&ROW($G$87)+ROUNDUP(COLUMNS($G:Z)/3,0))","v":0},null,{"$f":"INDIRECT(\"F\"&ROW($G$87)+ROUNDUP(COLUMNS($G:AB)/3,0))","v":0},{"$f":"INDIRECT(\"G\"&ROW($G$87)+ROUNDUP(COLUMNS($G:AC)/3,0))","v":0},null,{"$f":"INDIRECT(\"F\"&ROW($G$87)+ROUNDUP(COLUMNS($G:AE)/3,0))","v":0},{"$f":"INDIRECT(\"G\"&ROW($G$87)+ROUNDUP(COLUMNS($G:AF)/3,0))","v":0},null,{"$f":"INDIRECT(\"F\"&ROW($G$87)+ROUNDUP(COLUMNS($G:AH)/3,0))","v":0},{"$f":"INDIRECT(\"G\"&ROW($G$87)+ROUNDUP(COLUMNS($G:AI)/3,0))","v":0},null,{"$f":"INDIRECT(\"F\"&ROW($G$87)+ROUNDUP(COLUMNS($G:AK)/3,0))","v":0},{"$f":"INDIRECT(\"G\"&ROW($G$87)+ROUNDUP(COLUMNS($G:AL)/3,0))","v":0},null,{"$f":"INDIRECT(\"F\"&ROW($G$87)+ROUNDUP(COLUMNS($G:AN)/3,0))","v":0},{"$f":"INDIRECT(\"G\"&ROW($G$87)+ROUNDUP(COLUMNS($G:AO)/3,0))","v":0},null,{"$f":"INDIRECT(\"F\"&ROW($G$87)+ROUNDUP(COLUMNS($G:AQ)/3,0))","v":0},{"$f":"INDIRECT(\"G\"&ROW($G$87)+ROUNDUP(COLUMNS($G:AR)/3,0))","v":0},null,{"$f":"INDIRECT(\"F\"&ROW($G$87)+ROUNDUP(COLUMNS($G:AT)/3,0))","v":0},{"$f":"INDIRECT(\"G\"&ROW($G$87)+ROUNDUP(COLUMNS($G:AU)/3,0))","v":0},null,{"$f":"INDIRECT(\"F\"&ROW($G$87)+ROUNDUP(COLUMNS($G:AW)/3,0))","v":0},{"$f":"INDIRECT(\"G\"&ROW($G$87)+ROUNDUP(COLUMNS($G:AX)/3,0))","v":0},null,{"$f":"INDIRECT(\"F\"&ROW($G$87)+ROUNDUP(COLUMNS($G:AZ)/3,0))","v":0},{"$f":"INDIRECT(\"G\"&ROW($G$87)+ROUNDUP(COLUMNS($G:BA)/3,0))","v":0},null,{"$f":"INDIRECT(\"F\"&ROW($G$87)+ROUNDUP(COLUMNS($G:BC)/3,0))","v":0},{"$f":"INDIRECT(\"G\"&ROW($G$87)+ROUNDUP(COLUMNS($G:BD)/3,0))","v":0},null,{"$f":"INDIRECT(\"F\"&ROW($G$87)+ROUNDUP(COLUMNS($G:BF)/3,0))","v":0},{"$f":"INDIRECT(\"G\"&ROW($G$87)+ROUNDUP(COLUMNS($G:BG)/3,0))","v":0},null,{"$f":"INDIRECT(\"F\"&ROW($G$87)+ROUNDUP(COLUMNS($G:BI)/3,0))","v":0},{"$f":"INDIRECT(\"G\"&ROW($G$87)+ROUNDUP(COLUMNS($G:BJ)/3,0))","v":0},null,{"$f":"INDIRECT(\"F\"&ROW($G$87)+ROUNDUP(COLUMNS($G:BL)/3,0))","v":0},{"$f":"INDIRECT(\"G\"&ROW($G$87)+ROUNDUP(COLUMNS($G:BM)/3,0))","v":0},null,{"$f":"INDIRECT(\"F\"&ROW($G$87)+ROUNDUP(COLUMNS($G:BO)/3,0))","v":0},{"$f":"INDIRECT(\"G\"&ROW($G$87)+ROUNDUP(COLUMNS($G:BP)/3,0))","v":0},null,{"$f":"INDIRECT(\"F\"&ROW($G$87)+ROUNDUP(COLUMNS($G:BR)/3,0))","v":0},{"$f":"INDIRECT(\"G\"&ROW($G$87)+ROUNDUP(COLUMNS($G:BS)/3,0))","v":0},null,{"$f":"INDIRECT(\"F\"&ROW($G$87)+ROUNDUP(COLUMNS($G:BU)/3,0))","v":0},{"$f":"INDIRECT(\"G\"&ROW($G$87)+ROUNDUP(COLUMNS($G:BV)/3,0))","v":0},null,{"$f":"INDIRECT(\"F\"&ROW($G$87)+ROUNDUP(COLUMNS($G:BX)/3,0))","v":0},{"$f":"INDIRECT(\"G\"&ROW($G$87)+ROUNDUP(COLUMNS($G:BY)/3,0))","v":0},null,{"$f":"INDIRECT(\"F\"&ROW($G$87)+ROUNDUP(COLUMNS($G:CA)/3,0))","v":0},{"$f":"INDIRECT(\"G\"&ROW($G$87)+ROUNDUP(COLUMNS($G:CB)/3,0))","v":0},null,{"$f":"INDIRECT(\"F\"&ROW($G$87)+ROUNDUP(COLUMNS($G:CD)/3,0))","v":0},{"$f":"INDIRECT(\"G\"&ROW($G$87)+ROUNDUP(COLUMNS($G:CE)/3,0))","v":0},null,{"$f":"INDIRECT(\"F\"&ROW($G$87)+ROUNDUP(COLUMNS($G:CG)/3,0))","v":0},{"$f":"INDIRECT(\"G\"&ROW($G$87)+ROUNDUP(COLUMNS($G:CH)/3,0))","v":0},null,{"$f":"INDIRECT(\"F\"&ROW($G$87)+ROUNDUP(COLUMNS($G:CJ)/3,0))","v":0},{"$f":"INDIRECT(\"G\"&ROW($G$87)+ROUNDUP(COLUMNS($G:CK)/3,0))","v":0},null,{"$f":"INDIRECT(\"F\"&ROW($G$87)+ROUNDUP(COLUMNS($G:CM)/3,0))","v":0},{"$f":"INDIRECT(\"G\"&ROW($G$87)+ROUNDUP(COLUMNS($G:CN)/3,0))","v":0},null,{"$f":"INDIRECT(\"F\"&ROW($G$87)+ROUNDUP(COLUMNS($G:CP)/3,0))","v":0},{"$f":"INDIRECT(\"G\"&ROW($G$87)+ROUNDUP(COLUMNS($G:CQ)/3,0))","v":0},null,{"$f":"INDIRECT(\"F\"&ROW($G$87)+ROUNDUP(COLUMNS($G:CS)/3,0))","v":0},{"$f":"INDIRECT(\"G\"&ROW($G$87)+ROUNDUP(COLUMNS($G:CT)/3,0))","v":0},null,{"$f":"INDIRECT(\"F\"&ROW($G$87)+ROUNDUP(COLUMNS($G:CV)/3,0))","v":0},{"$f":"INDIRECT(\"G\"&ROW($G$87)+ROUNDUP(COLUMNS($G:CW)/3,0))","v":0},null,{"$f":"INDIRECT(\"F\"&ROW($G$87)+ROUNDUP(COLUMNS($G:CY)/3,0))","v":0},{"$f":"INDIRECT(\"G\"&ROW($G$87)+ROUNDUP(COLUMNS($G:CZ)/3,0))","v":0},null,{"$f":"INDIRECT(\"F\"&ROW($G$87)+ROUNDUP(COLUMNS($G:DB)/3,0))","v":0},{"$f":"INDIRECT(\"G\"&ROW($G$87)+ROUNDUP(COLUMNS($G:DC)/3,0))","v":0},null,{"$f":"INDIRECT(\"F\"&ROW($G$87)+ROUNDUP(COLUMNS($G:DE)/3,0))","v":0},{"$f":"INDIRECT(\"G\"&ROW($G$87)+ROUNDUP(COLUMNS($G:DF)/3,0))","v":0},null,{"$f":"INDIRECT(\"F\"&ROW($G$87)+ROUNDUP(COLUMNS($G:DH)/3,0))","v":0},{"$f":"INDIRECT(\"G\"&ROW($G$87)+ROUNDUP(COLUMNS($G:DI)/3,0))","v":0},null,{"$f":"INDIRECT(\"F\"&ROW($G$87)+ROUNDUP(COLUMNS($G:DK)/3,0))","v":0},{"$f":"INDIRECT(\"G\"&ROW($G$87)+ROUNDUP(COLUMNS($G:DL)/3,0))","v":0},null,{"$f":"INDIRECT(\"F\"&ROW($G$87)+ROUNDUP(COLUMNS($G:DN)/3,0))","v":0},{"$f":"INDIRECT(\"G\"&ROW($G$87)+ROUNDUP(COLUMNS($G:DO)/3,0))","v":0},null,{"$f":"INDIRECT(\"F\"&ROW($G$87)+ROUNDUP(COLUMNS($G:DQ)/3,0))","v":0},{"$f":"INDIRECT(\"G\"&ROW($G$87)+ROUNDUP(COLUMNS($G:DR)/3,0))","v":0},null,{"$f":"INDIRECT(\"F\"&ROW($G$87)+ROUNDUP(COLUMNS($G:DT)/3,0))","v":0},{"$f":"INDIRECT(\"G\"&ROW($G$87)+ROUNDUP(COLUMNS($G:DU)/3,0))","v":0},null,{"$f":"INDIRECT(\"F\"&ROW($G$87)+ROUNDUP(COLUMNS($G:DW)/3,0))","v":0},{"$f":"INDIRECT(\"G\"&ROW($G$87)+ROUNDUP(COLUMNS($G:DX)/3,0))","v":0},null,{"$f":"INDIRECT(\"F\"&ROW($G$87)+ROUNDUP(COLUMNS($G:DZ)/3,0))","v":0},{"$f":"INDIRECT(\"G\"&ROW($G$87)+ROUNDUP(COLUMNS($G:EA)/3,0))","v":0},null,{"$f":"INDIRECT(\"F\"&ROW($G$87)+ROUNDUP(COLUMNS($G:EC)/3,0))","v":0},{"$f":"INDIRECT(\"G\"&ROW($G$87)+ROUNDUP(COLUMNS($G:ED)/3,0))","v":0},null,{"$f":"INDIRECT(\"F\"&ROW($G$87)+ROUNDUP(COLUMNS($G:EF)/3,0))","v":0},{"$f":"INDIRECT(\"G\"&ROW($G$87)+ROUNDUP(COLUMNS($G:EG)/3,0))","v":0},null,{"$f":"INDIRECT(\"F\"&ROW($G$87)+ROUNDUP(COLUMNS($G:EI)/3,0))","v":0},{"$f":"INDIRECT(\"G\"&ROW($G$87)+ROUNDUP(COLUMNS($G:EJ)/3,0))","v":0},null,{"$f":"INDIRECT(\"F\"&ROW($G$87)+ROUNDUP(COLUMNS($G:EL)/3,0))","v":0},{"$f":"INDIRECT(\"G\"&ROW($G$87)+ROUNDUP(COLUMNS($G:EM)/3,0))","v":0},null,{"$f":"INDIRECT(\"F\"&ROW($G$87)+ROUNDUP(COLUMNS($G:EO)/3,0))","v":0},{"$f":"INDIRECT(\"G\"&ROW($G$87)+ROUNDUP(COLUMNS($G:EP)/3,0))","v":0},null,{"$f":"INDIRECT(\"F\"&ROW($G$87)+ROUNDUP(COLUMNS($G:ER)/3,0))","v":0},{"$f":"INDIRECT(\"G\"&ROW($G$87)+ROUNDUP(COLUMNS($G:ES)/3,0))","v":0},null,{"$f":"EU81+EV81","v":0}]
["เวลากลับถึงสำนักงานเช็คของเสีย",null,null,{"$f":"D139","v":"00:00:00"},null,"ผลต่าง",{"$f":"G82+H82+G80-G9","v":0},null,null,{"$f":"J82+K82+J80-J9","v":0},null,null,{"$f":"M82+N82+M80-M9","v":0},null,null,{"$f":"P82+Q82+P80-P9","v":0},null,null,{"$f":"S82+T82+S80-S9","v":0},null,null,{"$f":"V82+W82+V80-V9","v":0},null,null,{"$f":"Y82+Z82+Y80-Y9","v":0},null,null,{"$f":"AB82+AC82+AB80-AB9","v":0},null,null,{"$f":"AE82+AF82+AE80-AE9","v":0},null,null,{"$f":"AH82+AI82+AH80-AH9","v":0},null,null,{"$f":"AK82+AL82+AK80-AK9","v":0},null,null,{"$f":"AN82+AO82+AN80-AN9","v":0},null,null,{"$f":"AQ82+AR82+AQ80-AQ9","v":0},null,null,{"$f":"AT82+AU82+AT80-AT9","v":0},null,null,{"$f":"AW82+AX82+AW80-AW9","v":0},null,null,{"$f":"AZ82+BA82+AZ80-AZ9","v":0},null,null,{"$f":"BC82+BD82+BC80-BC9","v":0},null,null,{"$f":"BF82+BG82+BF80-BF9","v":0},null,null,{"$f":"BI82+BJ82+BI80-BI9","v":0},null,null,{"$f":"BL82+BM82+BL80-BL9","v":0},null,null,{"$f":"BO82+BP82+BO80-BO9","v":0},null,null,{"$f":"BR82+BS82+BR80-BR9","v":0},null,null,{"$f":"BU82+BV82+BU80-BU9","v":0},null,null,{"$f":"BX82+BY82+BX80-BX9","v":0},null,null,{"$f":"CA82+CB82+CA80-CA9","v":0},null,null,{"$f":"CD82+CE82+CD80-CD9","v":0},null,null,{"$f":"CG82+CH82+CG80-CG9","v":0},null,null,{"$f":"CJ82+CK82+CJ80-CJ9","v":0},null,null,{"$f":"CM82+CN82+CM80-CM9","v":0},null,null,{"$f":"CP82+CQ82+CP80-CP9","v":0},null,null,{"$f":"CS82+CT82+CS80-CS9","v":0},null,null,{"$f":"CV82+CW82+CV80-CV9","v":0},null,null,{"$f":"CY82+CZ82+CY80-CY9","v":0},null,null,{"$f":"DB82+DC82+DB80-DB9","v":0},null,null,{"$f":"DE82+DF82+DE80-DE9","v":0},null,null,{"$f":"DH82+DI82+DH80-DH9","v":0},null,null,{"$f":"DK82+DL82+DK80-DK9","v":0},null,null,{"$f":"DN82+DO82+DN80-DN9","v":0},null,null,{"$f":"DQ82+DR82+DQ80-DQ9","v":0},null,null,{"$f":"DT82+DU82+DT80-DT9","v":0},null,null,{"$f":"DW82+DX82+DW80-DW9","v":0},null,null,{"$f":"DZ82+EA82+DZ80-DZ9","v":0},null,null,{"$f":"EC82+ED82+EC80-EC9","v":0},null,null,{"$f":"EF82+EG82+EF80-EF9","v":0},null,null,{"$f":"EI82+EJ82+EI80-EI9","v":0},null,null,{"$f":"EL82+EM82+EL80-EL9","v":0},null,null,{"$f":"EO82+EP82+EO80-EO9","v":0},null,null,{"$f":"ER82+ES82+ER80-ER9","v":0}]
["เป็นเงิน",null,null,null,null,null,{"$f":"G8*G83","v":0},null,null,{"$f":"J8*J83","v":0},null,null,{"$f":"M8*M83","v":0},null,null,{"$f":"P8*P83","v":0},null,null,{"$f":"S8*S83","v":0},null,null,{"$f":"V8*V83","v":0},null,null,{"$f":"Y8*Y83","v":0},null,null,{"$f":"AB8*AB83","v":0},null,null,{"$f":"AE8*AE83","v":0},null,null,{"$f":"AH8*AH83","v":0},null,null,{"$f":"AK8*AK83","v":0},null,null,{"$f":"AN8*AN83","v":0},null,null,{"$f":"AQ8*AQ83","v":0},null,null,{"$f":"AT8*AT83","v":0},null,null,{"$f":"AW8*AW83","v":0},null,null,{"$f":"AZ8*AZ83","v":0},null,null,{"$f":"BC8*BC83","v":0},null,null,{"$f":"BF8*BF83","v":0},null,null,{"$f":"BI8*BI83","v":0},null,null,{"$f":"BL8*BL83","v":0},null,null,{"$f":"BO8*BO83","v":0},null,null,{"$f":"BR8*BR83","v":0},null,null,{"$f":"BU8*BU83","v":0},null,null,{"$f":"BX8*BX83","v":0},null,null,{"$f":"CA8*CA83","v":0},null,null,{"$f":"CD8*CD83","v":0},null,null,{"$f":"CG8*CG83","v":0},null,null,{"$f":"CJ8*CJ83","v":0},null,null,{"$f":"CM8*CM83","v":0},null,null,{"$f":"CP8*CP83","v":0},null,null,{"$f":"CS8*CS83","v":0},null,null,{"$f":"CV8*CV83","v":0},null,null,{"$f":"CY8*CY83","v":0},null,null,{"$f":"DB8*DB83","v":0},null,null,{"$f":"DE8*DE83","v":0},null,null,{"$f":"DH8*DH83","v":0},null,null,{"$f":"DK8*DK83","v":0},null,null,{"$f":"DN8*DN83","v":0},null,null,{"$f":"DQ8*DQ83","v":0},null,null,{"$f":"DT8*DT83","v":0},null,null,{"$f":"DW8*DW83","v":0},null,null,0,null,null,{"$f":"EC8*EC83","v":0},null,null,{"$f":"EF8*EF83","v":0},null,null,{"$f":"EI8*EI83","v":0},null,null,{"$f":"EL8*EL83","v":0},null,null,{"$f":"EO8*EO83","v":0},null,null,{"$f":"ER8*ER83","v":0},null,null,{"$f":"$AP$98","v":0}]
[null,null,null,"ผู้จัดทำ……………………………………………………………………",null,null,null,null,null,null,null,null,null,null,null,null,null,null,null,null,null,null,null,"ผู้ตรวจ(ผจก.)………………………………………………………………………………."]
[null,null,"ใบจ่ายสินค้า",null,null,null,null,null,null,null,null,null,null,null,null,null,null,{"$f":"IF(ISODD(COLUMN()),MAX($F$86:Q$86)+1,\"\")","v":""}]
["ราคา","ลำดับ","รายการ","ยกมา","เบิก","เหลือ","เสีย","โอนเข้า","โอนออก","ชำรุด","รวม",null,"ขาย",null,"ขาด/เกิน",null,"บาท",null,null,null,"ขายได้",null,"ควรเบิก",null,"หมายเหตุ",null,null,null,"เสีย PDA","เสียจริง","เหลือ PDA","ผลต่าง","เหลือลูกค้า","หมายเหตุ",null,null,null,null,"Price","Quantity","Baht","Deduct"]
[{"$f":"IF(B88=\"\",0,INDEX(Price_List,ROWS($88:88)))","v":20},{"$f":"IF($C88=\"\",\"\",COUNTA($C$88:$C88))","v":1},{"$f":"IF(INDEX(INDIRECT(\"Product_List\"),ROWS($88:88))=\"\",\"\",INDEX(INDIRECT(\"Product_List\"),ROWS($88:88)))","v":"01-ขนมปังหมูหยองน้ำสลัด"},{"$f":"ยอดยกมา","v":0},null,null,null,null,null,null,{"$f":"D88+E88+J88-I88+H88","v":0},null,{"$f":"INDIRECT(ADDRESS(ROW(A$80),ROW()-ROW(A$80)+(ROWS($88:88)-1)*2-1,4))","v":0},null,{"$f":"F88+G88+M88+J88-K88","v":0},null,{"$f":"O88*A88","v":0},null,null,null,{"$f":"D88+E88-F88-G88","v":0},null,{"$f":"U88*6%+U88","v":0},null,null,null,null,null,{"$f":"INDIRECT(ADDRESS(ROW(A$80),ROW()-ROW(A$80)+(ROWS($88:88)-1)*2,4))","v":0},{"$f":"$G88","v":0},null,{"$f":"$F88-$AE88","v":0},{"$f":"INDIRECT(ADDRESS(ROW(A$80),ROW()-ROW(A$80)+(ROWS($88:88)-1)*2+1,4))","v":0},null,null,null,null,null,10,{"$f":"SUMPRODUCT(($A$88:$A$135=$AM88)*(($F$88:$F$135)+($G$88:$G$135)+($M$88:$M$135)+($J$88:$J$135)-($K$88:$K$135)))","v":0},{"$f":"AM88*AN88","v":0},{"$f":"IF(AO88<0,AO88,0)","v":0}]
[{"$f":"IF(B89=\"\",0,INDEX(Price_List,ROWS($88:89)))","v":20},{"$f":"IF($C89=\"\",\"\",COUNTA($C$88:$C89))","v":2},{"$f":"IF(INDEX(INDIRECT(\"Product_List\"),ROWS($88:89))=\"\",\"\",INDEX(INDIRECT(\"Product_List\"),ROWS($88:89)))","v":"02-ขนมปังหมูหยองน้ำพริกเผา"},{"$f":"ยอดยกมา","v":0},null,null,null,null,null,null,{"$f":"D89+E89+J89-I89+H89","v":0},null,{"$f":"INDIRECT(ADDRESS(ROW(A$80),ROW()-ROW(A$80)+(ROWS($88:89)-1)*2-1,4))","v":0},null,{"$f":"F89+G89+M89+J89-K89","v":0},null,{"$f":"O89*A89","v":0},null,null,null,{"$f":"D89+E89-F89-G89","v":0},null,{"$f":"U89*6%+U89","v":0},null,null,null,null,null,{"$f":"INDIRECT(ADDRESS(ROW(A$80),ROW()-ROW(A$80)+(ROWS($88:89)-1)*2,4))","v":0},{"$f":"$G89","v":0},null,{"$f":"$F89-$AE89","v":0},{"$f":"INDIRECT(ADDRESS(ROW(A$80),ROW()-ROW(A$80)+(ROWS($88:89)-1)*2+1,4))","v":0},null,null,null,null,null,12,0,{"$f":"AM89*AN89","v":0},{"$f":"IF(AO89<0,AO89,0)","v":0}]
[{"$f":"IF(B90=\"\",0,INDEX(Price_List,ROWS($88:90)))","v":20},{"$f":"IF($C90=\"\",\"\",COUNTA($C$88:$C90))","v":3},{"$f":"IF(INDEX(INDIRECT(\"Product_List\"),ROWS($88:90))=\"\",\"\",INDEX(INDIRECT(\"Product_List\"),ROWS($88:90)))","v":"03-ขนมปังไก่หยองน้ำสลัด"},{"$f":"ยอดยกมา","v":0},null,null,null,null,null,null,0,null,{"$f":"INDIRECT(ADDRESS(ROW(A$80),ROW()-ROW(A$80)+(ROWS($88:90)-1)*2-1,4))","v":0},null,0,null,0,null,null,null,0,null,0,null,null,null,null,null,{"$f":"INDIRECT(ADDRESS(ROW(A$80),ROW()-ROW(A$80)+(ROWS($88:90)-1)*2,4))","v":0},0,null,0,{"$f":"INDIRECT(ADDRESS(ROW(A$80),ROW()-ROW(A$80)+(ROWS($88:90)-1)*2+1,4))","v":0},null,null,null,null,null,13,0,0,0]
[{"$f":"IF(B91=\"\",0,INDEX(Price_List,ROWS($88:91)))","v":15},{"$f":"IF($C91=\"\",\"\",COUNTA($C$88:$C91))","v":4},{"$f":"IF(INDEX(INDIRECT(\"Product_List\"),ROWS($88:91))=\"\",\"\",INDEX(INDIRECT(\"Product_List\"),ROWS($88:91)))","v":"04-ขนมปังไส้ครีมสลัด"},{"$f":"ยอดยกมา","v":0},null,null,null,null,null,null,0,null,{"$f":"INDIRECT(ADDRESS(ROW(A$80),ROW()-ROW(A$80)+(ROWS($88:91)-1)*2-1,4))","v":0},null,{"$f":"F91+G91+M91+J91-K91","v":0},null,0,null,null,null,0,null,0,null,null,null,null,null,{"$f":"INDIRECT(ADDRESS(ROW(A$80),ROW()-ROW(A$80)+(ROWS($88:91)-1)*2,4))","v":0},0,null,0,{"$f":"INDIRECT(ADDRESS(ROW(A$80),ROW()-ROW(A$80)+(ROWS($88:91)-1)*2+1,4))","v":0},null,null,null,null,null,15,0,0,0]
[{"$f":"IF(B92=\"\",0,INDEX(Price_List,ROWS($88:92)))","v":15},{"$f":"IF($C92=\"\",\"\",COUNTA($C$88:$C92))","v":5},{"$f":"IF(INDEX(INDIRECT(\"Product_List\"),ROWS($88:92))=\"\",\"\",INDEX(INDIRECT(\"Product_List\"),ROWS($88:92)))","v":"05-ขนมปังเนยสด"},{"$f":"ยอดยกมา","v":0},null,null,null,null,null,null,0,null,{"$f":"INDIRECT(ADDRESS(ROW(A$80),ROW()-ROW(A$80)+(ROWS($88:92)-1)*2-1,4))","v":0},null,0,null,0,null,null,null,0,null,0,null,null,null,null,null,{"$f":"INDIRECT(ADDRESS(ROW(A$80),ROW()-ROW(A$80)+(ROWS($88:92)-1)*2,4))","v":0},0,null,0,{"$f":"INDIRECT(ADDRESS(ROW(A$80),ROW()-ROW(A$80)+(ROWS($88:92)-1)*2+1,4))","v":0},null,null,null,null,null,16,0,0,0]
[{"$f":"IF(B93=\"\",0,INDEX(Price_List,ROWS($88:93)))","v":10},{"$f":"IF($C93=\"\",\"\",COUNTA($C$88:$C93))","v":6},{"$f":"IF(INDEX(INDIRECT(\"Product_List\"),ROWS($88:93))=\"\",\"\",INDEX(INDIRECT(\"Product_List\"),ROWS($88:93)))","v":"06-ขนมปังไส้สังขยาเล็ก"},{"$f":"ยอดยกมา","v":0},null,null,null,null,null,null,0,null,{"$f":"INDIRECT(ADDRESS(ROW(A$80),ROW()-ROW(A$80)+(ROWS($88:93)-1)*2-1,4))","v":0},null,0,null,0,null,null,null,0,null,0,null,null,null,null,null,{"$f":"INDIRECT(ADDRESS(ROW(A$80),ROW()-ROW(A$80)+(ROWS($88:93)-1)*2,4))","v":0},0,null,0,{"$f":"INDIRECT(ADDRESS(ROW(A$80),ROW()-ROW(A$80)+(ROWS($88:93)-1)*2+1,4))","v":0},null,null,null,null,null,18,0,0,0]
[{"$f":"IF(B94=\"\",0,INDEX(Price_List,ROWS($88:94)))","v":10},{"$f":"IF($C94=\"\",\"\",COUNTA($C$88:$C94))","v":7},{"$f":"IF(INDEX(INDIRECT(\"Product_List\"),ROWS($88:94))=\"\",\"\",INDEX(INDIRECT(\"Product_List\"),ROWS($88:94)))","v":"07-ขนมปังไส้เผือก"},{"$f":"ยอดยกมา","v":0},null,null,null,null,null,null,0,null,{"$f":"INDIRECT(ADDRESS(ROW(A$80),ROW()-ROW(A$80)+(ROWS($88:94)-1)*2-1,4))","v":0},null,0,null,0,null,null,null,0,null,0,null,null,null,null,null,{"$f":"INDIRECT(ADDRESS(ROW(A$80),ROW()-ROW(A$80)+(ROWS($88:94)-1)*2,4))","v":0},0,null,0,{"$f":"INDIRECT(ADDRESS(ROW(A$80),ROW()-ROW(A$80)+(ROWS($88:94)-1)*2+1,4))","v":0},null,null,null,null,null,20,0,0,0]
[{"$f":"IF(B95=\"\",0,INDEX(Price_List,ROWS($88:95)))","v":10},{"$f":"IF($C95=\"\",\"\",COUNTA($C$88:$C95))","v":8},{"$f":"IF(INDEX(INDIRECT(\"Product_List\"),ROWS($88:95))=\"\",\"\",INDEX(INDIRECT(\"Product_List\"),ROWS($88:95)))","v":"08-ขนมปังไส้ถั่วแดง"},{"$f":"ยอดยกมา","v":0},null,null,null,null,null,null,0,null,{"$f":"INDIRECT(ADDRESS(ROW(A$80),ROW()-ROW(A$80)+(ROWS($88:95)-1)*2-1,4))","v":0},null,0,null,0,null,null,null,0,null,0,null,null,null,null,null,{"$f":"INDIRECT(ADDRESS(ROW(A$80),ROW()-ROW(A$80)+(ROWS($88:95)-1)*2,4))","v":0},0,null,0,{"$f":"INDIRECT(ADDRESS(ROW(A$80),ROW()-ROW(A$80)+(ROWS($88:95)-1)*2+1,4))","v":0},null,null,null,null,null,22,0,0,0]
[{"$f":"IF(B96=\"\",0,INDEX(Price_List,ROWS($88:96)))","v":10},{"$f":"IF($C96=\"\",\"\",COUNTA($C$88:$C96))","v":9},{"$f":"IF(INDEX(INDIRECT(\"Product_List\"),ROWS($88:96))=\"\",\"\",INDEX(INDIRECT(\"Product_List\"),ROWS($88:96)))","v":"09-ขนมปังไส้ถั่วดำ"},{"$f":"ยอดยกมา","v":0},null,null,null,null,null,null,0,null,{"$f":"INDIRECT(ADDRESS(ROW(A$80),ROW()-ROW(A$80)+(ROWS($88:96)-1)*2-1,4))","v":0},null,0,null,0,null,null,null,0,null,0,null,null,null,null,null,{"$f":"INDIRECT(ADDRESS(ROW(A$80),ROW()-ROW(A$80)+(ROWS($88:96)-1)*2,4))","v":0},0,null,0,{"$f":"INDIRECT(ADDRESS(ROW(A$80),ROW()-ROW(A$80)+(ROWS($88:96)-1)*2+1,4))","v":0},null,null,null,null,null,25,0,0,0]
[{"$f":"IF(B97=\"\",0,INDEX(Price_List,ROWS($88:97)))","v":10},{"$f":"IF($C97=\"\",\"\",COUNTA($C$88:$C97))","v":10},{"$f":"IF(INDEX(INDIRECT(\"Product_List\"),ROWS($88:97))=\"\",\"\",INDEX(INDIRECT(\"Product_List\"),ROWS($88:97)))","v":"10-ขนมปังไส้มันม่วง"},{"$f":"ยอดยกมา","v":0},null,null,null,null,null,null,0,null,{"$f":"INDIRECT(ADDRESS(ROW(A$80),ROW()-ROW(A$80)+(ROWS($88:97)-1)*2-1,4))","v":0},null,0,null,0,null,null,null,0,null,0,null,null,null,null,null,{"$f":"INDIRECT(ADDRESS(ROW(A$80),ROW()-ROW(A$80)+(ROWS($88:97)-1)*2,4))","v":0},0,null,0,{"$f":"INDIRECT(ADDRESS(ROW(A$80),ROW()-ROW(A$80)+(ROWS($88:97)-1)*2+1,4))","v":0},null,null,null,null,null,42,0,0,0]
[{"$f":"IF(B98=\"\",0,INDEX(Price_List,ROWS($88:98)))","v":15},{"$f":"IF($C98=\"\",\"\",COUNTA($C$88:$C98))","v":11},{"$f":"IF(INDEX(INDIRECT(\"Product_List\"),ROWS($88:98))=\"\",\"\",INDEX(INDIRECT(\"Product_List\"),ROWS($88:98)))","v":"11-เค้กกล้วยหอม"},{"$f":"ยอดยกมา","v":0},null,null,null,null,null,null,0,null,{"$f":"INDIRECT(ADDRESS(ROW(A$80),ROW()-ROW(A$80)+(ROWS($88:98)-1)*2-1,4))","v":0},null,0,null,0,null,null,null,0,null,0,null,null,null,null,null,{"$f":"INDIRECT(ADDRESS(ROW(A$80),ROW()-ROW(A$80)+(ROWS($88:98)-1)*2,4))","v":0},0,null,0,{"$f":"INDIRECT(ADDRESS(ROW(A$80),ROW()-ROW(A$80)+(ROWS($88:98)-1)*2+1,4))","v":0},null,null,null,null,null,"Total Deduct",null,null,{"$f":"SUM($AP$88:$AP$97)","v":0}]
[{"$f":"IF(B99=\"\",0,INDEX(Price_List,ROWS($88:99)))","v":15},{"$f":"IF($C99=\"\",\"\",COUNTA($C$88:$C99))","v":12},{"$f":"IF(INDEX(INDIRECT(\"Product_List\"),ROWS($88:99))=\"\",\"\",INDEX(INDIRECT(\"Product_List\"),ROWS($88:99)))","v":"12-เค้กบัตเตอร์"},{"$f":"ยอดยกมา","v":0},null,null,null,null,null,null,0,null,{"$f":"INDIRECT(ADDRESS(ROW(A$80),ROW()-ROW(A$80)+(ROWS($88:99)-1)*2-1,4))","v":0},null,0,null,0,null,null,null,0,null,0,null,null,null,null,null,{"$f":"INDIRECT(ADDRESS(ROW(A$80),ROW()-ROW(A$80)+(ROWS($88:99)-1)*2,4))","v":0},0,null,0,{"$f":"INDIRECT(ADDRESS(ROW(A$80),ROW()-ROW(A$80)+(ROWS($88:99)-1)*2+1,4))","v":0}]
[{"$f":"IF(B100=\"\",0,INDEX(Price_List,ROWS($88:100)))","v":15},{"$f":"IF($C100=\"\",\"\",COUNTA($C$88:$C100))","v":13},{"$f":"IF(INDEX(INDIRECT(\"Product_List\"),ROWS($88:100))=\"\",\"\",INDEX(INDIRECT(\"Product_List\"),ROWS($88:100)))","v":"13-ขนมปังโรลถั่วแดง"},{"$f":"ยอดยกมา","v":0},null,null,null,null,null,null,0,null,{"$f":"INDIRECT(ADDRESS(ROW(A$80),ROW()-ROW(A$80)+(ROWS($88:100)-1)*2-1,4))","v":0},null,0,null,0,null,null,null,0,null,0,null,null,null,null,null,{"$f":"INDIRECT(ADDRESS(ROW(A$80),ROW()-ROW(A$80)+(ROWS($88:100)-1)*2,4))","v":0},0,null,0,{"$f":"INDIRECT(ADDRESS(ROW(A$80),ROW()-ROW(A$80)+(ROWS($88:100)-1)*2+1,4))","v":0}]
[{"$f":"IF(B101=\"\",0,INDEX(Price_List,ROWS($88:101)))","v":15},{"$f":"IF($C101=\"\",\"\",COUNTA($C$88:$C101))","v":14},{"$f":"IF(INDEX(INDIRECT(\"Product_List\"),ROWS($88:101))=\"\",\"\",INDEX(INDIRECT(\"Product_List\"),ROWS($88:101)))","v":"14-ขนมปังไส้สังขยาใหญ่"},{"$f":"ยอดยกมา","v":0},null,null,null,null,null,null,0,null,{"$f":"INDIRECT(ADDRESS(ROW(A$80),ROW()-ROW(A$80)+(ROWS($88:101)-1)*2-1,4))","v":0},null,0,null,0,null,null,null,0,null,0,null,null,null,null,null,{"$f":"INDIRECT(ADDRESS(ROW(A$80),ROW()-ROW(A$80)+(ROWS($88:101)-1)*2,4))","v":0},0,null,0,{"$f":"INDIRECT(ADDRESS(ROW(A$80),ROW()-ROW(A$80)+(ROWS($88:101)-1)*2+1,4))","v":0}]
[{"$f":"IF(B102=\"\",0,INDEX(Price_List,ROWS($88:102)))","v":42},{"$f":"IF($C102=\"\",\"\",COUNTA($C$88:$C102))","v":15},{"$f":"IF(INDEX(INDIRECT(\"Product_List\"),ROWS($88:102))=\"\",\"\",INDEX(INDIRECT(\"Product_List\"),ROWS($88:102)))","v":"15-ขนมปังชนิดแผ่น(480กรัม)"},{"$f":"ยอดยกมา","v":0},null,null,null,null,null,null,0,null,{"$f":"INDIRECT(ADDRESS(ROW(A$80),ROW()-ROW(A$80)+(ROWS($88:102)-1)*2-1,4))","v":0},null,0,null,0,null,null,null,0,null,0,null,null,null,null,null,{"$f":"INDIRECT(ADDRESS(ROW(A$80),ROW()-ROW(A$80)+(ROWS($88:102)-1)*2,4))","v":0},0,null,0,{"$f":"INDIRECT(ADDRESS(ROW(A$80),ROW()-ROW(A$80)+(ROWS($88:102)-1)*2+1,4))","v":0}]
[{"$f":"IF(B103=\"\",0,INDEX(Price_List,ROWS($88:103)))","v":12},{"$f":"IF($C103=\"\",\"\",COUNTA($C$88:$C103))","v":16},{"$f":"IF(INDEX(INDIRECT(\"Product_List\"),ROWS($88:103))=\"\",\"\",INDEX(INDIRECT(\"Product_List\"),ROWS($88:103)))","v":"16-โมจิไส้ถั่ว"},{"$f":"ยอดยกมา","v":0},null,null,null,null,null,null,0,null,{"$f":"INDIRECT(ADDRESS(ROW(A$80),ROW()-ROW(A$80)+(ROWS($88:103)-1)*2-1,4))","v":0},null,0,null,0,null,null,null,0,null,0,null,null,null,null,null,{"$f":"INDIRECT(ADDRESS(ROW(A$80),ROW()-ROW(A$80)+(ROWS($88:103)-1)*2,4))","v":0},0,null,0,{"$f":"INDIRECT(ADDRESS(ROW(A$80),ROW()-ROW(A$80)+(ROWS($88:103)-1)*2+1,4))","v":0}]
[{"$f":"IF(B104=\"\",0,INDEX(Price_List,ROWS($88:104)))","v":12},{"$f":"IF($C104=\"\",\"\",COUNTA($C$88:$C104))","v":17},{"$f":"IF(INDEX(INDIRECT(\"Product_List\"),ROWS($88:104))=\"\",\"\",INDEX(INDIRECT(\"Product_List\"),ROWS($88:104)))","v":"17-โมจิไส้เผือก"},{"$f":"ยอดยกมา","v":0},null,null,null,null,null,null,0,null,{"$f":"INDIRECT(ADDRESS(ROW(A$80),ROW()-ROW(A$80)+(ROWS($88:104)-1)*2-1,4))","v":0},null,0,null,0,null,null,null,0,null,0,null,null,null,null,null,{"$f":"INDIRECT(ADDRESS(ROW(A$80),ROW()-ROW(A$80)+(ROWS($88:104)-1)*2,4))","v":0},0,null,0,{"$f":"INDIRECT(ADDRESS(ROW(A$80),ROW()-ROW(A$80)+(ROWS($88:104)-1)*2+1,4))","v":0}]
[{"$f":"IF(B105=\"\",0,INDEX(Price_List,ROWS($88:105)))","v":15},{"$f":"IF($C105=\"\",\"\",COUNTA($C$88:$C105))","v":18},{"$f":"IF(INDEX(INDIRECT(\"Product_List\"),ROWS($88:105))=\"\",\"\",INDEX(INDIRECT(\"Product_List\"),ROWS($88:105)))","v":"18-โมจิไส้ถั่วไข่เค็ม"},{"$f":"ยอดยกมา","v":0},null,null,null,null,null,null,0,null,{"$f":"INDIRECT(ADDRESS(ROW(A$80),ROW()-ROW(A$80)+(ROWS($88:105)-1)*2-1,4))","v":0},null,0,null,0,null,null,null,0,null,0,null,null,null,null,null,{"$f":"INDIRECT(ADDRESS(ROW(A$80),ROW()-ROW(A$80)+(ROWS($88:105)-1)*2,4))","v":0},0,null,0,{"$f":"INDIRECT(ADDRESS(ROW(A$80),ROW()-ROW(A$80)+(ROWS($88:105)-1)*2+1,4))","v":0}]
[{"$f":"IF(B106=\"\",0,INDEX(Price_List,ROWS($88:106)))","v":20},{"$f":"IF($C106=\"\",\"\",COUNTA($C$88:$C106))","v":19},{"$f":"IF(INDEX(INDIRECT(\"Product_List\"),ROWS($88:106))=\"\",\"\",INDEX(INDIRECT(\"Product_List\"),ROWS($88:106)))","v":"19-ขนมปังพิซซ่า"},{"$f":"ยอดยกมา","v":0},null,null,null,null,null,null,0,null,{"$f":"INDIRECT(ADDRESS(ROW(A$80),ROW()-ROW(A$80)+(ROWS($88:106)-1)*2-1,4))","v":0},null,0,null,0,null,null,null,0,null,0,null,null,null,null,null,{"$f":"INDIRECT(ADDRESS(ROW(A$80),ROW()-ROW(A$80)+(ROWS($88:106)-1)*2,4))","v":0},0,null,0,{"$f":"INDIRECT(ADDRESS(ROW(A$80),ROW()-ROW(A$80)+(ROWS($88:106)-1)*2+1,4))","v":0}]
[{"$f":"IF(B107=\"\",0,INDEX(Price_List,ROWS($88:107)))","v":20},{"$f":"IF($C107=\"\",\"\",COUNTA($C$88:$C107))","v":20},{"$f":"IF(INDEX(INDIRECT(\"Product_List\"),ROWS($88:107))=\"\",\"\",INDEX(INDIRECT(\"Product_List\"),ROWS($88:107)))","v":"20-ขนมปังพิซซ่าปูอัดแฮม"},{"$f":"ยอดยกมา","v":0},null,null,null,null,null,null,0,null,{"$f":"INDIRECT(ADDRESS(ROW(A$80),ROW()-ROW(A$80)+(ROWS($88:107)-1)*2-1,4))","v":0},null,0,null,0,null,null,null,0,null,0,null,null,null,null,null,{"$f":"INDIRECT(ADDRESS(ROW(A$80),ROW()-ROW(A$80)+(ROWS($88:107)-1)*2,4))","v":0},0,null,0,{"$f":"INDIRECT(ADDRESS(ROW(A$80),ROW()-ROW(A$80)+(ROWS($88:107)-1)*2+1,4))","v":0}]
[{"$f":"IF(B108=\"\",0,INDEX(Price_List,ROWS($88:108)))","v":20},{"$f":"IF($C108=\"\",\"\",COUNTA($C$88:$C108))","v":21},{"$f":"IF(INDEX(INDIRECT(\"Product_List\"),ROWS($88:108))=\"\",\"\",INDEX(INDIRECT(\"Product_List\"),ROWS($88:108)))","v":"21-ขนมปังไส้กรอก"},{"$f":"ยอดยกมา","v":0},null,null,null,null,null,null,0,null,{"$f":"INDIRECT(ADDRESS(ROW(A$80),ROW()-ROW(A$80)+(ROWS($88:108)-1)*2-1,4))","v":0},null,0,null,0,null,null,null,0,null,0,null,null,null,null,null,{"$f":"INDIRECT(ADDRESS(ROW(A$80),ROW()-ROW(A$80)+(ROWS($88:108)-1)*2,4))","v":0},0,null,0,{"$f":"INDIRECT(ADDRESS(ROW(A$80),ROW()-ROW(A$80)+(ROWS($88:108)-1)*2+1,4))","v":0}]
[{"$f":"IF(B109=\"\",0,INDEX(Price_List,ROWS($88:109)))","v":15},{"$f":"IF($C109=\"\",\"\",COUNTA($C$88:$C109))","v":22},{"$f":"IF(INDEX(INDIRECT(\"Product_List\"),ROWS($88:109))=\"\",\"\",INDEX(INDIRECT(\"Product_List\"),ROWS($88:109)))","v":"22-ขนมก้านบัว"},{"$f":"ยอดยกมา","v":0},null,null,null,null,null,null,0,null,{"$f":"INDIRECT(ADDRESS(ROW(A$80),ROW()-ROW(A$80)+(ROWS($88:109)-1)*2-1,4))","v":0},null,0,null,0,null,null,null,0,null,0,null,null,null,null,null,{"$f":"INDIRECT(ADDRESS(ROW(A$80),ROW()-ROW(A$80)+(ROWS($88:109)-1)*2,4))","v":0},0,null,0,{"$f":"INDIRECT(ADDRESS(ROW(A$80),ROW()-ROW(A$80)+(ROWS($88:109)-1)*2+1,4))","v":0}]
[{"$f":"IF(B110=\"\",0,INDEX(Price_List,ROWS($88:110)))","v":20},{"$f":"IF($C110=\"\",\"\",COUNTA($C$88:$C110))","v":23},{"$f":"IF(INDEX(INDIRECT(\"Product_List\"),ROWS($88:110))=\"\",\"\",INDEX(INDIRECT(\"Product_List\"),ROWS($88:110)))","v":"23-พายสับปะรด"},{"$f":"ยอดยกมา","v":0},null,null,null,null,null,null,0,null,{"$f":"INDIRECT(ADDRESS(ROW(A$80),ROW()-ROW(A$80)+(ROWS($88:110)-1)*2-1,4))","v":0},null,0,null,0,null,null,null,0,null,0,null,null,null,null,null,{"$f":"INDIRECT(ADDRESS(ROW(A$80),ROW()-ROW(A$80)+(ROWS($88:110)-1)*2,4))","v":0},0,null,0,{"$f":"INDIRECT(ADDRESS(ROW(A$80),ROW()-ROW(A$80)+(ROWS($88:110)-1)*2+1,4))","v":0}]
[{"$f":"IF(B111=\"\",0,INDEX(Price_List,ROWS($88:111)))","v":20},{"$f":"IF($C111=\"\",\"\",COUNTA($C$88:$C111))","v":24},{"$f":"IF(INDEX(INDIRECT(\"Product_List\"),ROWS($88:111))=\"\",\"\",INDEX(INDIRECT(\"Product_List\"),ROWS($88:111)))","v":"24-พายไส้มะพร้าว"},{"$f":"ยอดยกมา","v":0},null,null,null,null,null,null,0,null,{"$f":"INDIRECT(ADDRESS(ROW(A$80),ROW()-ROW(A$80)+(ROWS($88:111)-1)*2-1,4))","v":0},null,0,null,0,null,null,null,0,null,0,null,null,null,null,null,{"$f":"INDIRECT(ADDRESS(ROW(A$80),ROW()-ROW(A$80)+(ROWS($88:111)-1)*2,4))","v":0},0,null,0,{"$f":"INDIRECT(ADDRESS(ROW(A$80),ROW()-ROW(A$80)+(ROWS($88:111)-1)*2+1,4))","v":0}]
[{"$f":"IF(B112=\"\",0,INDEX(Price_List,ROWS($88:112)))","v":15},{"$f":"IF($C112=\"\",\"\",COUNTA($C$88:$C112))","v":25},{"$f":"IF(INDEX(INDIRECT(\"Product_List\"),ROWS($88:112))=\"\",\"\",INDEX(INDIRECT(\"Product_List\"),ROWS($88:112)))","v":"25-ขนมปังโรลมันเทศ"},{"$f":"ยอดยกมา","v":0},null,null,null,null,null,null,0,null,{"$f":"INDIRECT(ADDRESS(ROW(A$80),ROW()-ROW(A$80)+(ROWS($88:112)-1)*2-1,4))","v":0},null,0,null,0,null,null,null,0,null,0,null,null,null,null,null,{"$f":"INDIRECT(ADDRESS(ROW(A$80),ROW()-ROW(A$80)+(ROWS($88:112)-1)*2,4))","v":0},0,null,0,{"$f":"INDIRECT(ADDRESS(ROW(A$80),ROW()-ROW(A$80)+(ROWS($88:112)-1)*2+1,4))","v":0}]
[{"$f":"IF(B113=\"\",0,INDEX(Price_List,ROWS($88:113)))","v":15},{"$f":"IF($C113=\"\",\"\",COUNTA($C$88:$C113))","v":26},{"$f":"IF(INDEX(INDIRECT(\"Product_List\"),ROWS($88:113))=\"\",\"\",INDEX(INDIRECT(\"Product_List\"),ROWS($88:113)))","v":"26-ขนมปังไส้ครีมสลัดน้ำพริกเผา"},{"$f":"ยอดยกมา","v":0},null,null,null,null,null,null,0,null,{"$f":"INDIRECT(ADDRESS(ROW(A$80),ROW()-ROW(A$80)+(ROWS($88:113)-1)*2-1,4))","v":0},null,0,null,0,null,null,null,0,null,0,null,null,null,null,null,{"$f":"INDIRECT(ADDRESS(ROW(A$80),ROW()-ROW(A$80)+(ROWS($88:113)-1)*2,4))","v":0},0,null,0,{"$f":"INDIRECT(ADDRESS(ROW(A$80),ROW()-ROW(A$80)+(ROWS($88:113)-1)*2+1,4))","v":0}]
[{"$f":"IF(B114=\"\",0,INDEX(Price_List,ROWS($88:114)))","v":20},{"$f":"IF($C114=\"\",\"\",COUNTA($C$88:$C114))","v":27},{"$f":"IF(INDEX(INDIRECT(\"Product_List\"),ROWS($88:114))=\"\",\"\",INDEX(INDIRECT(\"Product_List\"),ROWS($88:114)))","v":"27-ขนมปังไส้สังขยาไข่"},{"$f":"ยอดยกมา","v":0},null,null,null,null,null,null,0,null,{"$f":"INDIRECT(ADDRESS(ROW(A$80),ROW()-ROW(A$80)+(ROWS($88:114)-1)*2-1,4))","v":0},null,0,null,0,null,null,null,0,null,0,null,null,null,null,null,{"$f":"INDIRECT(ADDRESS(ROW(A$80),ROW()-ROW(A$80)+(ROWS($88:114)-1)*2,4))","v":0},0,null,0,{"$f":"INDIRECT(ADDRESS(ROW(A$80),ROW()-ROW(A$80)+(ROWS($88:114)-1)*2+1,4))","v":0}]
[{"$f":"IF(B115=\"\",0,INDEX(Price_List,ROWS($88:115)))","v":20},{"$f":"IF($C115=\"\",\"\",COUNTA($C$88:$C115))","v":28},{"$f":"IF(INDEX(INDIRECT(\"Product_List\"),ROWS($88:115))=\"\",\"\",INDEX(INDIRECT(\"Product_List\"),ROWS($88:115)))","v":"28-ขนมปังไส้สังขยามะพร้าว"},{"$f":"ยอดยกมา","v":0},null,null,null,null,null,null,0,null,{"$f":"INDIRECT(ADDRESS(ROW(A$80),ROW()-ROW(A$80)+(ROWS($88:115)-1)*2-1,4))","v":0},null,0,null,0,null,null,null,0,null,0,null,null,null,null,null,{"$f":"INDIRECT(ADDRESS(ROW(A$80),ROW()-ROW(A$80)+(ROWS($88:115)-1)*2,4))","v":0},0,null,0,{"$f":"INDIRECT(ADDRESS(ROW(A$80),ROW()-ROW(A$80)+(ROWS($88:115)-1)*2+1,4))","v":0}]
[{"$f":"IF(B116=\"\",0,INDEX(Price_List,ROWS($88:116)))","v":10},{"$f":"IF($C116=\"\",\"\",COUNTA($C$88:$C116))","v":29},{"$f":"IF(INDEX(INDIRECT(\"Product_List\"),ROWS($88:116))=\"\",\"\",INDEX(INDIRECT(\"Product_List\"),ROWS($88:116)))","v":"29-ขนมปังไส้ครีมชาไทย"},{"$f":"ยอดยกมา","v":0},null,null,null,null,null,null,0,null,{"$f":"INDIRECT(ADDRESS(ROW(A$80),ROW()-ROW(A$80)+(ROWS($88:116)-1)*2-1,4))","v":0},null,0,null,0,null,null,null,0,null,0,null,null,null,null,null,{"$f":"INDIRECT(ADDRESS(ROW(A$80),ROW()-ROW(A$80)+(ROWS($88:116)-1)*2,4))","v":0},0,null,0,{"$f":"INDIRECT(ADDRESS(ROW(A$80),ROW()-ROW(A$80)+(ROWS($88:116)-1)*2+1,4))","v":0}]
[{"$f":"IF(B117=\"\",0,INDEX(Price_List,ROWS($88:117)))","v":15},{"$f":"IF($C117=\"\",\"\",COUNTA($C$88:$C117))","v":30},{"$f":"IF(INDEX(INDIRECT(\"Product_List\"),ROWS($88:117))=\"\",\"\",INDEX(INDIRECT(\"Product_List\"),ROWS($88:117)))","v":"30-ขนมปังโรลมันม่วง"},{"$f":"ยอดยกมา","v":0},null,null,null,null,null,null,0,null,{"$f":"INDIRECT(ADDRESS(ROW(A$80),ROW()-ROW(A$80)+(ROWS($88:117)-1)*2-1,4))","v":0},null,0,null,0,null,null,null,0,null,0,null,null,null,null,null,{"$f":"INDIRECT(ADDRESS(ROW(A$80),ROW()-ROW(A$80)+(ROWS($88:117)-1)*2,4))","v":0},0,null,0,{"$f":"INDIRECT(ADDRESS(ROW(A$80),ROW()-ROW(A$80)+(ROWS($88:117)-1)*2+1,4))","v":0}]
[{"$f":"IF(B118=\"\",0,INDEX(Price_List,ROWS($88:118)))","v":15},{"$f":"IF($C118=\"\",\"\",COUNTA($C$88:$C118))","v":31},{"$f":"IF(INDEX(INDIRECT(\"Product_List\"),ROWS($88:118))=\"\",\"\",INDEX(INDIRECT(\"Product_List\"),ROWS($88:118)))","v":"31-ขนมปังโรลช็อกโกแลต"},{"$f":"ยอดยกมา","v":0},null,null,null,null,null,null,0,null,{"$f":"INDIRECT(ADDRESS(ROW(A$80),ROW()-ROW(A$80)+(ROWS($88:118)-1)*2-1,4))","v":0},null,0,null,0,null,null,null,0,null,0,null,null,null,null,null,{"$f":"INDIRECT(ADDRESS(ROW(A$80),ROW()-ROW(A$80)+(ROWS($88:118)-1)*2,4))","v":0},0,null,0,{"$f":"INDIRECT(ADDRESS(ROW(A$80),ROW()-ROW(A$80)+(ROWS($88:118)-1)*2+1,4))","v":0}]
[{"$f":"IF(B119=\"\",0,INDEX(Price_List,ROWS($88:119)))","v":16},{"$f":"IF($C119=\"\",\"\",COUNTA($C$88:$C119))","v":32},{"$f":"IF(INDEX(INDIRECT(\"Product_List\"),ROWS($88:119))=\"\",\"\",INDEX(INDIRECT(\"Product_List\"),ROWS($88:119)))","v":"32-ขนมปังชนิดแผ่น(155กรัม)"},{"$f":"ยอดยกมา","v":0},null,null,null,null,null,null,0,null,{"$f":"INDIRECT(ADDRESS(ROW(A$80),ROW()-ROW(A$80)+(ROWS($88:119)-1)*2-1,4))","v":0},null,0,null,0,null,null,null,0,null,0,null,null,null,null,null,{"$f":"INDIRECT(ADDRESS(ROW(A$80),ROW()-ROW(A$80)+(ROWS($88:119)-1)*2,4))","v":0},0,null,0,{"$f":"INDIRECT(ADDRESS(ROW(A$80),ROW()-ROW(A$80)+(ROWS($88:119)-1)*2+1,4))","v":0}]
[{"$f":"IF(B120=\"\",0,INDEX(Price_List,ROWS($88:120)))","v":15},{"$f":"IF($C120=\"\",\"\",COUNTA($C$88:$C120))","v":33},{"$f":"IF(INDEX(INDIRECT(\"Product_List\"),ROWS($88:120))=\"\",\"\",INDEX(INDIRECT(\"Product_List\"),ROWS($88:120)))","v":"33-ขนมปังโรลเผือก"},{"$f":"ยอดยกมา","v":0},null,null,null,null,null,null,0,null,{"$f":"INDIRECT(ADDRESS(ROW(A$80),ROW()-ROW(A$80)+(ROWS($88:120)-1)*2-1,4))","v":0},null,0,null,0,null,null,null,0,null,0,null,null,null,null,null,{"$f":"INDIRECT(ADDRESS(ROW(A$80),ROW()-ROW(A$80)+(ROWS($88:120)-1)*2,4))","v":0},0,null,0,{"$f":"INDIRECT(ADDRESS(ROW(A$80),ROW()-ROW(A$80)+(ROWS($88:120)-1)*2+1,4))","v":0}]
[{"$f":"IF(B121=\"\",0,INDEX(Price_List,ROWS($88:121)))","v":15},{"$f":"IF($C121=\"\",\"\",COUNTA($C$88:$C121))","v":34},{"$f":"IF(INDEX(INDIRECT(\"Product_List\"),ROWS($88:121))=\"\",\"\",INDEX(INDIRECT(\"Product_List\"),ROWS($88:121)))","v":"34-ขนมปังไก่หยองน้ำสลัด Mini"},{"$f":"ยอดยกมา","v":0},null,null,null,null,null,null,0,null,{"$f":"INDIRECT(ADDRESS(ROW(A$80),ROW()-ROW(A$80)+(ROWS($88:121)-1)*2-1,4))","v":0},null,0,null,0,null,null,null,0,null,0,null,null,null,null,null,{"$f":"INDIRECT(ADDRESS(ROW(A$80),ROW()-ROW(A$80)+(ROWS($88:121)-1)*2,4))","v":0},0,null,0,{"$f":"INDIRECT(ADDRESS(ROW(A$80),ROW()-ROW(A$80)+(ROWS($88:121)-1)*2+1,4))","v":0}]
[{"$f":"IF(B122=\"\",0,INDEX(Price_List,ROWS($88:122)))","v":10},{"$f":"IF($C122=\"\",\"\",COUNTA($C$88:$C122))","v":35},{"$f":"IF(INDEX(INDIRECT(\"Product_List\"),ROWS($88:122))=\"\",\"\",INDEX(INDIRECT(\"Product_List\"),ROWS($88:122)))","v":"35-ขนมปังไส้ช็อกโกแลต"},{"$f":"ยอดยกมา","v":0},null,null,null,null,null,null,0,null,{"$f":"INDIRECT(ADDRESS(ROW(A$80),ROW()-ROW(A$80)+(ROWS($88:122)-1)*2-1,4))","v":0},null,0,null,0,null,null,null,0,null,0,null,null,null,null,null,{"$f":"INDIRECT(ADDRESS(ROW(A$80),ROW()-ROW(A$80)+(ROWS($88:122)-1)*2,4))","v":0},0,null,0,{"$f":"INDIRECT(ADDRESS(ROW(A$80),ROW()-ROW(A$80)+(ROWS($88:122)-1)*2+1,4))","v":0}]
[{"$f":"IF(B123=\"\",0,INDEX(Price_List,ROWS($88:123)))","v":10},{"$f":"IF($C123=\"\",\"\",COUNTA($C$88:$C123))","v":36},{"$f":"IF(INDEX(INDIRECT(\"Product_List\"),ROWS($88:123))=\"\",\"\",INDEX(INDIRECT(\"Product_List\"),ROWS($88:123)))","v":"36-ขนมปังไส้ครีมสังขยาไข่"},{"$f":"ยอดยกมา","v":0},null,null,null,null,null,null,0,null,{"$f":"INDIRECT(ADDRESS(ROW(A$80),ROW()-ROW(A$80)+(ROWS($88:123)-1)*2-1,4))","v":0},null,0,null,0,null,null,null,0,null,0,null,null,null,null,null,{"$f":"INDIRECT(ADDRESS(ROW(A$80),ROW()-ROW(A$80)+(ROWS($88:123)-1)*2,4))","v":0},0,null,0,{"$f":"INDIRECT(ADDRESS(ROW(A$80),ROW()-ROW(A$80)+(ROWS($88:123)-1)*2+1,4))","v":0}]
[{"$f":"IF(B124=\"\",0,INDEX(Price_List,ROWS($88:124)))","v":20},{"$f":"IF($C124=\"\",\"\",COUNTA($C$88:$C124))","v":37},{"$f":"IF(INDEX(INDIRECT(\"Product_List\"),ROWS($88:124))=\"\",\"\",INDEX(INDIRECT(\"Product_List\"),ROWS($88:124)))","v":"37-ขนมปังพิซซ่าฮาวายเอี้ยน"},{"$f":"ยอดยกมา","v":0},null,null,null,null,null,null,0,null,{"$f":"INDIRECT(ADDRESS(ROW(A$80),ROW()-ROW(A$80)+(ROWS($88:124)-1)*2-1,4))","v":0},null,0,null,0,null,null,null,0,null,0,null,null,null,null,null,{"$f":"INDIRECT(ADDRESS(ROW(A$80),ROW()-ROW(A$80)+(ROWS($88:124)-1)*2,4))","v":0},0,null,0,{"$f":"INDIRECT(ADDRESS(ROW(A$80),ROW()-ROW(A$80)+(ROWS($88:124)-1)*2+1,4))","v":0}]
[{"$f":"IF(B125=\"\",0,INDEX(Price_List,ROWS($88:125)))","v":20},{"$f":"IF($C125=\"\",\"\",COUNTA($C$88:$C125))","v":38},{"$f":"IF(INDEX(INDIRECT(\"Product_List\"),ROWS($88:125))=\"\",\"\",INDEX(INDIRECT(\"Product_List\"),ROWS($88:125)))","v":"38-ครัวซองต์หมูหยองน้ำสลัด"},{"$f":"ยอดยกมา","v":0},null,null,null,null,null,null,0,null,{"$f":"INDIRECT(ADDRESS(ROW(A$80),ROW()-ROW(A$80)+(ROWS($88:125)-1)*2-1,4))","v":0},null,0,null,0,null,null,null,0,null,0,null,null,null,null,null,{"$f":"INDIRECT(ADDRESS(ROW(A$80),ROW()-ROW(A$80)+(ROWS($88:125)-1)*2,4))","v":0},0,null,0,{"$f":"INDIRECT(ADDRESS(ROW(A$80),ROW()-ROW(A$80)+(ROWS($88:125)-1)*2+1,4))","v":0}]
[{"$f":"IF(B126=\"\",0,INDEX(Price_List,ROWS($88:126)))","v":15},{"$f":"IF($C126=\"\",\"\",COUNTA($C$88:$C126))","v":39},{"$f":"IF(INDEX(INDIRECT(\"Product_List\"),ROWS($88:126))=\"\",\"\",INDEX(INDIRECT(\"Product_List\"),ROWS($88:126)))","v":"39-แพนเบรดไส้เผือก"},{"$f":"ยอดยกมา","v":0},null,null,null,null,null,null,0,null,{"$f":"INDIRECT(ADDRESS(ROW(A$80),ROW()-ROW(A$80)+(ROWS($88:126)-1)*2-1,4))","v":0},null,0,null,0,null,null,null,0,null,0,null,null,null,null,null,{"$f":"INDIRECT(ADDRESS(ROW(A$80),ROW()-ROW(A$80)+(ROWS($88:126)-1)*2,4))","v":0},0,null,0,{"$f":"INDIRECT(ADDRESS(ROW(A$80),ROW()-ROW(A$80)+(ROWS($88:126)-1)*2+1,4))","v":0}]
[{"$f":"IF(B127=\"\",0,INDEX(Price_List,ROWS($88:127)))","v":15},{"$f":"IF($C127=\"\",\"\",COUNTA($C$88:$C127))","v":40},{"$f":"IF(INDEX(INDIRECT(\"Product_List\"),ROWS($88:127))=\"\",\"\",INDEX(INDIRECT(\"Product_List\"),ROWS($88:127)))","v":"40-แพนเบรดไส้ถั่วแดง"},{"$f":"ยอดยกมา","v":0},null,null,null,null,null,null,0,null,{"$f":"INDIRECT(ADDRESS(ROW(A$80),ROW()-ROW(A$80)+(ROWS($88:127)-1)*2-1,4))","v":0},null,0,null,0,null,null,null,0,null,0,null,null,null,null,null,{"$f":"INDIRECT(ADDRESS(ROW(A$80),ROW()-ROW(A$80)+(ROWS($88:127)-1)*2,4))","v":0},0,null,0,{"$f":"INDIRECT(ADDRESS(ROW(A$80),ROW()-ROW(A$80)+(ROWS($88:127)-1)*2+1,4))","v":0}]
[{"$f":"IF(B128=\"\",0,INDEX(Price_List,ROWS($88:128)))","v":12},{"$f":"IF($C128=\"\",\"\",COUNTA($C$88:$C128))","v":41},{"$f":"IF(INDEX(INDIRECT(\"Product_List\"),ROWS($88:128))=\"\",\"\",INDEX(INDIRECT(\"Product_List\"),ROWS($88:128)))","v":"41-ขนมปังกรอบเนยน้ำตาล(30กรัม)"},{"$f":"ยอดยกมา","v":0},null,null,null,null,null,null,0,null,{"$f":"INDIRECT(ADDRESS(ROW(A$80),ROW()-ROW(A$80)+(ROWS($88:128)-1)*2-1,4))","v":0},null,0,null,0,null,null,null,0,null,0,null,null,null,null,null,{"$f":"INDIRECT(ADDRESS(ROW(A$80),ROW()-ROW(A$80)+(ROWS($88:128)-1)*2,4))","v":0},0,null,0,{"$f":"INDIRECT(ADDRESS(ROW(A$80),ROW()-ROW(A$80)+(ROWS($88:128)-1)*2+1,4))","v":0}]
[{"$f":"IF(B129=\"\",0,INDEX(Price_List,ROWS($88:129)))","v":18},{"$f":"IF($C129=\"\",\"\",COUNTA($C$88:$C129))","v":42},{"$f":"IF(INDEX(INDIRECT(\"Product_List\"),ROWS($88:129))=\"\",\"\",INDEX(INDIRECT(\"Product_List\"),ROWS($88:129)))","v":"42-ขนมปังชนิดแผ่นโฮลวีต"},{"$f":"ยอดยกมา","v":0},null,null,null,null,null,null,0,null,{"$f":"INDIRECT(ADDRESS(ROW(A$80),ROW()-ROW(A$80)+(ROWS($88:129)-1)*2-1,4))","v":0},null,0,null,0,null,null,null,0,null,0,null,null,null,null,null,{"$f":"INDIRECT(ADDRESS(ROW(A$80),ROW()-ROW(A$80)+(ROWS($88:129)-1)*2,4))","v":0},0,null,0,{"$f":"INDIRECT(ADDRESS(ROW(A$80),ROW()-ROW(A$80)+(ROWS($88:129)-1)*2+1,4))","v":0}]
[{"$f":"IF(B130=\"\",0,INDEX(Price_List,ROWS($88:130)))","v":12},{"$f":"IF($C130=\"\",\"\",COUNTA($C$88:$C130))","v":43},{"$f":"IF(INDEX(INDIRECT(\"Product_List\"),ROWS($88:130))=\"\",\"\",INDEX(INDIRECT(\"Product_List\"),ROWS($88:130)))","v":"43-เค้กโรลใบเตย"},{"$f":"ยอดยกมา","v":0},null,null,null,null,null,null,{"$f":"D130+E130+J130-I130+H130","v":0},null,{"$f":"INDIRECT(ADDRESS(ROW(A$80),ROW()-ROW(A$80)+(ROWS($88:130)-1)*2-1,4))","v":0},null,{"$f":"F130+G130+M130+J130-K130","v":0},null,{"$f":"O130*A130","v":0},null,null,null,{"$f":"D130+E130-F130-G130","v":0},null,{"$f":"U130*6%+U130","v":0},null,null,null,null,null,{"$f":"INDIRECT(ADDRESS(ROW(A$80),ROW()-ROW(A$80)+(ROWS($88:130)-1)*2,4))","v":0},0,null,0,{"$f":"INDIRECT(ADDRESS(ROW(A$80),ROW()-ROW(A$80)+(ROWS($88:130)-1)*2+1,4))","v":0}]
[{"$f":"IF(B131=\"\",0,INDEX(Price_List,ROWS($88:131)))","v":12},{"$f":"IF($C131=\"\",\"\",COUNTA($C$88:$C131))","v":44},{"$f":"IF(INDEX(INDIRECT(\"Product_List\"),ROWS($88:131))=\"\",\"\",INDEX(INDIRECT(\"Product_List\"),ROWS($88:131)))","v":"44-ขนมโมจิไส้ถั่วดำ"},{"$f":"ยอดยกมา","v":0},null,null,null,null,null,null,{"$f":"D131+E131+J131-I131+H131","v":0},null,{"$f":"INDIRECT(ADDRESS(ROW(A$80),ROW()-ROW(A$80)+(ROWS($88:131)-1)*2-1,4))","v":0},null,{"$f":"F131+G131+M131+J131-K131","v":0},null,{"$f":"O131*A131","v":0},null,null,null,{"$f":"D131+E131-F131-G131","v":0},null,{"$f":"U131*6%+U131","v":0},null,null,null,null,null,{"$f":"INDIRECT(ADDRESS(ROW(A$80),ROW()-ROW(A$80)+(ROWS($88:131)-1)*2,4))","v":0},0,null,0,{"$f":"INDIRECT(ADDRESS(ROW(A$80),ROW()-ROW(A$80)+(ROWS($88:131)-1)*2+1,4))","v":0}]
[{"$f":"IF(B132=\"\",0,INDEX(Price_List,ROWS($88:132)))","v":25},{"$f":"IF($C132=\"\",\"\",COUNTA($C$88:$C132))","v":45},{"$f":"IF(INDEX(INDIRECT(\"Product_List\"),ROWS($88:132))=\"\",\"\",INDEX(INDIRECT(\"Product_List\"),ROWS($88:132)))","v":"45-ครัวซองต์ไส้กรอกชีส"},{"$f":"ยอดยกมา","v":0},null,null,null,null,null,null,{"$f":"D132+E132+J132-I132+H132","v":0},null,{"$f":"INDIRECT(ADDRESS(ROW(A$80),ROW()-ROW(A$80)+(ROWS($88:132)-1)*2-1,4))","v":0},null,{"$f":"F132+G132+M132+J132-K132","v":0},null,{"$f":"O132*A132","v":0},null,null,null,{"$f":"D132+E132-F132-G132","v":0},null,{"$f":"U132*6%+U132","v":0},null,null,null,null,null,{"$f":"INDIRECT(ADDRESS(ROW(A$80),ROW()-ROW(A$80)+(ROWS($88:132)-1)*2,4))","v":0},0,null,0,{"$f":"INDIRECT(ADDRESS(ROW(A$80),ROW()-ROW(A$80)+(ROWS($88:132)-1)*2+1,4))","v":0}]
[{"$f":"IF(B133=\"\",0,INDEX(Price_List,ROWS($88:133)))","v":12},{"$f":"IF($C133=\"\",\"\",COUNTA($C$88:$C133))","v":46},{"$f":"IF(INDEX(INDIRECT(\"Product_List\"),ROWS($88:133))=\"\",\"\",INDEX(INDIRECT(\"Product_List\"),ROWS($88:133)))","v":"46-ขนมเปี๊ยะไส้ถั่ว"},{"$f":"ยอดยกมา","v":0},null,null,null,null,null,null,0,null,{"$f":"INDIRECT(ADDRESS(ROW(A$80),ROW()-ROW(A$80)+(ROWS($88:133)-1)*2-1,4))","v":0},null,0,null,0,null,null,null,0,null,0,null,null,null,null,null,{"$f":"INDIRECT(ADDRESS(ROW(A$80),ROW()-ROW(A$80)+(ROWS($88:133)-1)*2,4))","v":0},0,null,0,{"$f":"INDIRECT(ADDRESS(ROW(A$80),ROW()-ROW(A$80)+(ROWS($88:133)-1)*2+1,4))","v":0}]
[{"$f":"IF(B134=\"\",0,INDEX(Price_List,ROWS($88:134)))","v":12},{"$f":"IF($C134=\"\",\"\",COUNTA($C$88:$C134))","v":47},{"$f":"IF(INDEX(INDIRECT(\"Product_List\"),ROWS($88:134))=\"\",\"\",INDEX(INDIRECT(\"Product_List\"),ROWS($88:134)))","v":"47-ขนมเปี๊ยะไส้ฟัก"},{"$f":"ยอดยกมา","v":0},null,null,null,null,null,null,{"$f":"D134+E134+J134-I134+H134","v":0},null,{"$f":"INDIRECT(ADDRESS(ROW(A$80),ROW()-ROW(A$80)+(ROWS($88:134)-1)*2-1,4))","v":0},null,{"$f":"F134+G134+M134+J134-K134","v":0},null,{"$f":"O134*A134","v":0},null,null,null,{"$f":"D134+E134-F134-G134","v":0},null,{"$f":"U134*6%+U134","v":0},null,null,null,null,null,{"$f":"INDIRECT(ADDRESS(ROW(A$80),ROW()-ROW(A$80)+(ROWS($88:134)-1)*2,4))","v":0},0,null,0,{"$f":"INDIRECT(ADDRESS(ROW(A$80),ROW()-ROW(A$80)+(ROWS($88:134)-1)*2+1,4))","v":0}]
[{"$f":"IF(B135=\"\",0,INDEX(Price_List,ROWS($88:135)))","v":12},{"$f":"IF($C135=\"\",\"\",COUNTA($C$88:$C135))","v":48},{"$f":"IF(INDEX(INDIRECT(\"Product_List\"),ROWS($88:135))=\"\",\"\",INDEX(INDIRECT(\"Product_List\"),ROWS($88:135)))","v":"48-มังกี้เค้ก"},{"$f":"ยอดยกมา","v":0},null,null,null,null,null,null,0,null,{"$f":"INDIRECT(ADDRESS(ROW(A$80),ROW()-ROW(A$80)+(ROWS($88:135)-1)*2-1,4))","v":0},null,0,null,0,null,null,null,0,null,0,null,null,null,null,null,{"$f":"INDIRECT(ADDRESS(ROW(A$80),ROW()-ROW(A$80)+(ROWS($88:135)-1)*2,4))","v":0},0,null,0,{"$f":"INDIRECT(ADDRESS(ROW(A$80),ROW()-ROW(A$80)+(ROWS($88:135)-1)*2+1,4))","v":0}]
["รวม",null,null,{"$f":"SUM(D$88:D$135)","v":0},0,0,0,0,0,0,0,null,{"$f":"SUM(M$88:M$135)","v":0},null,null,null,{"$f":"$AP$98","v":0},null,"บาท",null,{"$f":"SUM(U$88:U$135)","v":0},null,{"$f":"SUM(W$88:W$135)","v":0},null,null,null,null,null,{"$f":"SUM(AC$88:AC$135)","v":0},{"$f":"SUM(AD$88:AD$135)","v":0},{"$f":"SUM(AE$88:AE$135)","v":0},{"$f":"SUM(AF$88:AF$135)","v":0},{"$f":"SUM(AG$88:AG$135)","v":0}]
["เลขที่ไมล์ เวลาออกทำงาน",null,null,{"$f":"$BF$3","v":0},null,"Km","น้ำหนักของเสีย"]
["เลขที่ไมล์ เวลากลับ",null,null,{"$f":"$BF$4","v":0},null,"Km",{"$f":"$AA$5","v":0},null,"KG"]
["เวลากลับถึงสำนักงาน",null,null,{"$f":"$BF$1","v":"00:00:00"},null,"น."]
["เติมน้ำมัน",null,null,{"$f":"$AX3","v":0},null,"บาท"]
["จำนวนน้ำมัน",null,null,{"$f":"$AX4","v":0},null,"ลิตร"]
["ยอดรวมต้นทุนสาขา",null,null,{"$f":"$AX5","v":0},null,"บาท"]

{"sheet":"20","index":24,"n_rows":142,"n_cols":154,"rows_kept":142,"cut":false,"hidden":false,"merged":[[83,132,83,133],[129,10,129,11],[129,12,129,13],[129,14,129,15],[129,16,129,17],[127,10,127,11],[127,12,127,13],[127,14,127,15],[127,16,127,17],[127,20,127,21],[127,22,127,23],[127,24,127,25],[127,33,127,36],[126,10,126,11],[126,12,126,13],[126,14,126,15],[126,16,126,17],[128,10,128,11],[128,12,128,13],[129,24,129,25],[125,10,125,11],[125,12,125,13],[125,14,125,15],[125,16,125,17],[7,132,7,134],[8,132,8,134],[80,132,80,133],[82,132,82,133],[7,135,7,137],[8,135,8,137],[80,135,80,136],[82,135,82,136],[7,138,7,140],[7,141,7,143],[7,147,7,149],[8,138,8,140],[141,0,141,2],[141,3,141,4],[138,0,138,2],[138,3,138,4],[139,0,139,2],[139,3,139,4],[140,0,140,2],[140,3,140,4],[135,24,135,25],[135,33,135,36],[136,0,136,2],[136,3,136,4],[137,0,137,2],[137,3,137,4],[137,6,137,7],[137,18,137,21],[135,0,135,2],[135,10,135,11],[135,12,135,13],[135,14,135,15],[135,16,135,17],[135,18,135,19],[135,20,135,21],[135,22,135,23],[128,14,128,15],[128,16,128,17],[128,20,128,21],[128,22,128,23],[129,20,129,21],[129,22,129,23],[131,16,131,17],[132,16,132,17],[134,16,134,17],[131,20,131,21],[132,20,132,21],[134,20,134,21],[131,22,131,23],[132,22,132,23],[134,22,134,23],[131,24,131,25],[132,24,132,25],[134,24,134,25],[129,33,129,36],[128,24,128,25],[128,33,128,36],[126,20,126,21],[126,22,126,23],[124,24,124,25],[124,33,124,36],[125,20,125,21],[125,22,125,23],[125,24,125,25],[125,33,125,36],[124,10,124,11],[124,12,124,13],[124,14,124,15],[124,16,124,17],[124,20,124,21],[124,22,124,23],[126,24,126,25],[126,33,126,36],[122,24,122,25],[122,33,122,36],[123,10,123,11],[123,12,123,13],[123,14,123,15],[123,16,123,17],[123,20,123,21],[123,22,123,23],[123,24,123,25],[123,33,123,36],[122,10,122,11],[122,12,122,13],[122,14,122,15],[122,16,122,17],[122,20,122,21],[122,22,122,23],[120,24,120,25],[120,33,120,36],[121,10,121,11],[121,12,121,13],[121,14,121,15],[121,16,121,17],[121,20,121,21],[121,22,121,23],[121,24,121,25],[121,33,121,36],[120,10,120,11],[120,12,120,13],[120,14,120,15],[120,16,120,17],[120,20,120,21],[120,22,120,23],[118,24,118,25],[118,33,118,36],[119,10,119,11],[119,12,119,13],[119,14,119,15],[119,16,119,17],[119,20,119,21],[119,22,119,23],[119,24,119,25],[119,33,119,36],[118,10,118,11],[118,12,118,13],[118,14,118,15],[118,16,118,17],[118,20,118,21],[118,22,118,23],[116,24,116,25],[116,33,116,36],[117,10,117,11],[117,12,117,13],[117,14,117,15],[117,16,117,17],[117,20,117,21],[117,22,117,23],[117,24,117,25],[117,33,117,36],[116,10,116,11],[116,12,116,13],[116,14,116,15],[116,16,116,17],[116,20,116,21],[116,22,116,23],[114,24,114,25],[114,33,114,36],[115,10,115,11],[115,12,115,13],[115,14,115,15],[115,16,115,17],[115,20,115,21],[115,22,115,23],[115,24,115,25],[115,33,115,36],[114,10,114,11],[114,12,114,13],[114,14,114,15],[114,16,114,17],[114,20,114,21],[114,22,114,23],[112,24,112,25],[112,33,112,36],[113,10,113,11],[113,12,113,13],[113,14,113,15],[113,16,113,17],[113,20,113,21],[113,22,113,23],[113,24,113,25],[113,33,113,36],[112,10,112,11],[112,12,112,13],[112,14,112,15],[112,16,112,17],[112,20,112,21],[112,22,112,23],[110,24,110,25],[110,33,110,36],[111,10,111,11],[111,12,111,13],[111,14,111,15],[111,16,111,17],[111,20,111,21],[111,22,111,23],[111,24,111,25],[111,33,111,36],[110,10,110,11],[110,12,110,13],[110,14,110,15],[110,16,110,17],[110,20,110,21],[110,22,110,23],[108,24,108,25],[108,33,108,36],[109,10,109,11],[109,12,109,13],[109,14,109,15],[109,16,109,17],[109,20,109,21],[109,22,109,23],[109,24,109,25],[109,33,109,36],[108,10,108,11],[108,12,108,13],[108,14,108,15],[108,16,108,17],[108,20,108,21],[108,22,108,23],[106,24,106,25],[106,33,106,36],[107,10,107,11],[107,12,107,13],[107,14,107,15],[107,16,107,17],[107,20,107,21],[107,22,107,23],[107,24,107,25],[107,33,107,36],[106,10,106,11],[106,12,106,13],[106,14,106,15],[106,16,106,17],[106,20,106,21],[106,22,106,23],[104,24,104,25],[104,33,104,36],[105,10,105,11],[105,12,105,13],[105,14,105,15],[105,16,105,17],[105,20,105,21],[105,22,105,23],[105,24,105,25],[105,33,105,36],[104,10,104,11],[104,12,104,13],[104,14,104,15],[104,16,104,17],[104,20,104,21],[104,22,104,23],[102,24,102,25],[102,33,102,36],[103,10,103,11],[103,12,103,13],[103,14,103,15],[103,16,103,17],[103,20,103,21],[103,22,103,23],[103,24,103,25],[103,33,103,36],[102,10,102,11],[102,12,102,13],[102,14,102,15],[102,16,102,17],[102,20,102,21],[102,22,102,23],[101,10,101,11],[101,12,101,13],[101,14,101,15],[101,16,101,17],[101,20,101,21],[101,22,101,23],[101,24,101,25],[101,33,101,36],[100,10,100,11],[100,12,100,13],[100,14,100,15],[100,16,100,17],[100,20,100,21],[100,22,100,23],[99,10,99,11],[99,12,99,13],[99,14,99,15],[99,16,99,17],[99,20,99,21],[99,22,99,23],[99,24,99,25],[99,33,99,36],[100,24,100,25],[100,33,100,36],[97,24,97,25],[97,33,97,36],[97,38,97,40],[98,10,98,11],[98,12,98,13],[98,14,98,15],[98,16,98,17],[98,20,98,21],[98,22,98,23],[98,24,98,25],[97,10,97,11],[97,12,97,13],[97,14,97,15],[97,16,97,17],[97,20,97,21],[97,22,97,23],[98,33,98,36],[95,24,95,25],[95,33,95,36],[96,10,96,11],[96,12,96,13],[96,14,96,15],[96,16,96,17],[96,20,96,21],[96,22,96,23],[96,24,96,25],[96,33,96,36],[95,10,95,11],[95,12,95,13],[95,14,95,15],[95,16,95,17],[95,20,95,21],[95,22,95,23],[93,24,93,25],[93,33,93,36],[94,10,94,11],[94,12,94,13],[94,14,94,15],[94,16,94,17],[94,20,94,21],[94,22,94,23],[94,24,94,25],[94,33,94,36],[93,10,93,11],[93,12,93,13],[93,14,93,15],[93,16,93,17],[93,20,93,21],[93,22,93,23],[91,24,91,25],[91,33,91,36],[92,10,92,11],[92,12,92,13],[92,14,92,15],[92,16,92,17],[92,20,92,21],[92,22,92,23],[92,24,92,25],[92,33,92,36],[91,10,91,11],[91,12,91,13],[91,14,91,15],[91,16,91,17],[91,20,91,21],[91,22,91,23],[86,22,86,23],[86,24,86,25],[88,20,88,21],[88,22,88,23],[88,24,88,25],[88,33,88,36],[89,24,89,25],[89,33,89,36],[90,10,90,11],[90,12,90,13],[90,14,90,15],[90,16,90,17],[90,20,90,21],[90,22,90,23],[90,24,90,25],[90,33,90,36],[89,10,89,11],[89,12,89,13],[89,14,89,15],[89,16,89,17],[89,20,89,21],[89,22,89,23],[83,36,83,37],[83,39,83,40],[83,42,83,43],[83,45,83,46],[83,48,83,49],[83,51,83,52],[83,150,83,153],[86,10,86,11],[86,12,86,13],[86,14,86,15],[86,16,86,17],[86,20,86,21],[83,108,83,109],[83,111,83,112],[83,114,83,115],[83,117,83,118],[83,120,83,121],[83,123,83,124],[83,90,83,91],[83,93,83,94],[83,96,83,97],[83,99,83,100],[83,102,83,103],[83,105,83,106],[82,39,82,40],[82,42,82,43],[82,45,82,46],[82,48,82,49],[83,84,83,85],[83,87,83,88],[83,54,83,55],[83,57,83,58],[83,60,83,61],[83,63,83,64],[83,66,83,67],[83,69,83,70],[83,72,83,73],[83,75,83,76],[83,78,83,79],[83,81,83,82],[83,0,83,5],[83,6,83,7],[83,9,83,10],[83,12,83,13],[83,15,83,16],[82,105,82,106],[82,108,82,109],[82,111,82,112],[82,114,82,115],[82,87,82,88],[82,90,82,91],[82,93,82,94],[82,96,82,97],[82,99,82,100],[82,102,82,103],[82,69,82,70],[82,72,82,73],[82,75,82,76],[82,78,82,79],[82,81,82,82],[82,84,82,85],[82,51,82,52],[82,54,82,55],[82,57,82,58],[82,15,82,16],[82,18,82,19],[82,21,82,22],[82,24,82,25],[82,27,82,28],[82,30,82,31],[81,0,81,2],[81,3,81,5],[81,150,82,153],[82,0,82,2],[82,3,82,4],[82,6,82,7],[82,9,82,10],[82,12,82,13],[82,123,82,124],[82,126,82,127],[82,129,82,130],[82,117,82,118],[82,120,82,121],[82,60,82,61],[82,63,82,64],[82,66,82,67],[82,33,82,34],[82,36,82,37],[80,114,80,115],[80,117,80,118],[80,120,80,121],[80,123,80,124],[80,126,80,127],[80,129,80,130],[80,96,80,97],[80,99,80,100],[80,102,80,103],[80,105,80,106],[80,108,80,109],[80,111,80,112],[80,78,80,79],[80,81,80,82],[80,87,80,88],[80,90,80,91],[80,93,80,94],[80,60,80,61],[80,63,80,64],[80,66,80,67],[80,69,80,70],[80,72,80,73],[80,75,80,76],[80,84,80,85],[79,0,79,5],[80,0,80,5],[80,6,80,7],[80,9,80,10],[80,12,80,13],[80,15,80,16],[80,18,80,19],[80,21,80,22],[8,114,8,116],[8,78,8,80],[8,81,8,83],[8,87,8,89],[8,90,8,92],[8,93,8,95],[8,60,8,62],[8,63,8,65],[8,66,8,68],[8,69,8,71],[8,72,8,74],[8,75,8,77],[8,54,8,56],[8,57,8,59],[8,24,8,26],[8,27,8,29],[8,120,8,122],[8,123,8,125],[8,126,8,128],[8,129,8,131],[8,96,8,98],[8,99,8,101],[8,102,8,104],[8,105,8,107],[8,108,8,110],[8,111,8,113],[8,33,8,35],[8,36,8,38],[8,39,8,41],[8,84,8,86],[7,150,8,150],[7,151,8,151],[8,6,8,8],[8,9,8,11],[8,12,8,14],[8,15,8,17],[8,18,8,20],[8,21,8,23],[7,114,7,116],[7,117,7,119],[7,120,7,122],[7,123,7,125],[7,126,7,128],[7,129,7,131],[7,96,7,98],[7,99,7,101],[7,102,7,104],[7,105,7,107],[7,108,7,110],[8,117,8,119],[7,87,7,89],[7,90,7,92],[7,93,7,95],[7,60,7,62],[7,63,7,65],[7,66,7,68],[7,69,7,71],[7,72,7,74],[7,75,7,77],[7,54,7,56],[7,57,7,59],[7,24,7,26],[7,27,7,29],[7,30,7,32],[7,33,7,35],[7,36,7,38],[7,39,7,41],[7,84,7,86],[6,150,6,151],[6,152,8,152],[6,153,8,153],[7,6,7,8],[7,9,7,11],[7,12,7,14],[7,15,7,17],[7,18,7,20],[7,21,7,23],[6,117,6,119],[6,120,6,122],[6,123,6,125],[6,126,6,128],[6,129,6,131],[6,99,6,101],[6,102,6,104],[6,105,6,107],[6,108,6,110],[6,111,6,113],[6,54,6,56],[6,57,6,59],[7,111,7,113],[7,78,7,80],[7,81,7,83],[6,0,8,0],[6,1,8,1],[6,2,8,2],[6,3,8,3],[6,4,8,4],[6,6,6,8],[6,45,6,47],[6,48,6,50],[6,51,6,53],[7,42,7,44],[7,45,7,47],[7,48,7,50],[7,51,7,53],[8,42,8,44],[8,45,8,47],[8,48,8,50],[8,51,8,53],[6,27,6,29],[6,30,6,32],[6,33,6,35],[6,36,6,38],[6,39,6,41],[6,42,6,44],[8,30,8,32],[4,26,4,29],[4,30,4,31],[4,32,4,34],[4,35,4,36],[6,9,6,11],[6,12,6,14],[6,15,6,17],[6,18,6,20],[6,21,6,23],[6,24,6,26],[3,41,3,44],[3,46,3,48],[3,49,3,51],[3,54,3,56],[3,57,3,60],[4,0,4,1],[4,2,4,3],[4,4,4,5],[4,6,4,12],[4,14,4,16],[3,17,3,19],[3,22,3,25],[3,26,3,29],[3,30,3,33],[3,34,3,37],[3,38,3,40],[4,38,4,40],[4,41,4,44],[4,46,4,48],[4,49,4,51],[4,54,4,56],[4,57,4,60],[4,17,4,19],[4,22,4,25],[2,38,2,40],[3,0,3,1],[3,2,3,3],[3,4,3,5],[3,6,3,12],[3,14,3,16],[2,17,2,19],[2,22,2,25],[2,26,2,29],[2,30,2,33],[80,36,80,37],[80,39,80,40],[0,38,0,40],[0,41,0,44],[0,46,0,48],[0,54,0,56],[0,57,0,60],[2,0,2,1],[2,2,2,3],[2,4,2,5],[2,6,2,12],[2,14,2,16],[0,0,0,12],[0,14,0,16],[0,17,0,23],[0,30,0,33],[0,34,0,35],[0,36,0,37],[2,41,2,44],[2,46,2,48],[2,49,2,51],[2,54,2,56],[2,57,2,60],[2,34,2,37],[6,141,6,143],[6,147,6,149],[83,18,83,19],[83,21,83,22],[83,24,83,25],[83,27,83,28],[83,30,83,31],[83,33,83,34],[83,126,83,127],[83,129,83,130],[8,141,8,143],[8,147,8,149],[80,138,80,139],[80,141,80,142],[80,147,80,148],[82,138,82,139],[82,141,82,142],[82,147,82,148],[6,60,6,62],[6,87,6,89],[6,90,6,92],[6,93,6,95],[6,96,6,98],[6,63,6,65],[88,12,88,13],[88,14,88,15],[88,16,88,17],[6,114,6,116],[6,81,6,83],[6,84,6,86],[6,132,6,134],[6,135,6,137],[6,138,6,140],[6,66,6,68],[6,69,6,71],[6,72,6,74],[6,75,6,77],[6,78,6,80],[80,42,80,43],[80,45,80,46],[80,48,80,49],[80,51,80,52],[80,54,80,55],[80,57,80,58],[80,24,80,25],[80,27,80,28],[80,30,80,31],[80,33,80,34],[83,147,83,148],[131,33,131,36],[132,33,132,36],[134,33,134,36],[131,10,131,11],[132,10,132,11],[134,10,134,11],[131,12,131,13],[132,12,132,13],[134,12,134,13],[131,14,131,15],[132,14,132,15],[134,14,134,15],[86,33,86,36],[87,10,87,11],[87,12,87,13],[87,14,87,15],[87,16,87,17],[87,20,87,21],[87,22,87,23],[83,135,83,136],[130,10,130,11],[130,12,130,13],[130,14,130,15],[6,144,6,146],[7,144,7,146],[8,144,8,146],[80,144,80,145],[82,144,82,145],[83,144,83,145],[133,10,133,11],[133,12,133,13],[133,14,133,15],[133,16,133,17],[133,20,133,21],[133,22,133,23],[133,24,133,25],[133,33,133,36],[83,138,83,139],[83,141,83,142],[130,16,130,17],[130,20,130,21],[130,22,130,23],[130,24,130,25],[130,33,130,36],[87,24,87,25],[87,33,87,36],[88,10,88,11]]}
[":::: รายงานการขายประจำวัน (Sale Daily Report)  ::::",null,null,null,null,null,null,null,null,null,null,null,null,null,"Print Date : ",null,null,{"$f":"NOW()","v":"2025-04-24T22:39:10.130"},null,null,null,null,null,null,null,null,null,null,null,null,"จำนวนร้าน :",null,null,null,{"$f":"MAX($A$10:$A$79)","v":0},null,"ร้าน",null,"เป้ายอดขาย :",null,null,null,null,null,null,null,{"$f":"C3","v":45797},null,null,{"$f":"LEFT('Problems & Solutions'!$B$2,FIND(\"|\",'Problems & Solutions'!$B$2))&\" วันที่\"&TEXT($C$3,\"[$-107041E] d mmmm yyyy;@\")","v":"ขั้นตอนการตรวจรีพอร์ตขาย | วันที่ 20 พฤษภาคม 2568"},null,null,null,null,"เวลากลับ :"]
[]
["วันที่ :",null,{"$f":"DATE(ใส่ข้อมูล!G2-543,ใส่ข้อมูล!V2,ActiveSheetName)","v":"2025-05-20"},null,"พนักงานขาย",null,{"$f":"INDEX(OFFSET(Sale_Region,,1),ActiveSheetName)","v":0},null,null,null,null,null,null,null,"รวมยอดเบิก :",null,null,{"$f":"E136","v":0},null,null,"ชิ้น",null,"ใหญ่สด(40)",null,null,null,{"$f":"Cash_Major_Bill","v":0},null,null,null,"ใหญ่เชื่อ(42)",null,null,null,{"$f":"Credit_Major_Bill","v":0},null,null,null,"บิลใหญ่ :",null,null,{"$f":"AA3+AI3","v":0},null,null,null,null,"เติมน้ำมัน :",null,null,null,null,null,"บาท",null,"ไมล์ออก :",null,null,{"$f":"เลขไมล์ออก","v":0},null,null,null,"Km"]
["เขตการขาย :",null,{"$f":"INDEX(Sale_Region,ActiveSheetName)","v":0},null,"ผช.ขาย",null,{"$f":"INDEX(OFFSET(Sale_Region,,2),ActiveSheetName)","v":0},null,null,null,null,null,null,null,"ของเหลือ :",null,null,{"$f":"F136","v":0},null,null,"ชิ้น",null,"เล็กสด(41)",null,null,null,{"$f":"Cash_Minor_Bill","v":0},null,null,null,"เล็กเชื่อ(43)",null,null,null,{"$f":"Credit_Minor_Bill","v":0},null,null,null,"บิลเล็ก :",null,null,{"$f":"AA4+AI4","v":0},null,null,null,null,"จำนวนลิตร :",null,null,null,null,null,"ลิตร",null,"ไมล์เข้า :",null,null,null,null,null,null,"Km"]
["สายส่ง :",null,{"$f":"\"Sale \"&ใส่ข้อมูล!E3&\"-\"&ใส่ข้อมูล!G3","v":"Sale KB-01"},null,"พนักงานเสริม",null,{"$f":"INDEX(OFFSET(Sale_Region,,3),ActiveSheetName)","v":0},null,null,null,null,null,null,null,"ของเสีย :",null,null,{"$f":"G136","v":0},null,null,"ชิ้น",null,"น้ำหนักของเสีย",null,null,null,null,null,null,null,"Kg.",null,"%ของเสีย",null,null,{"$f":"IF(Order_Cal=0,0,ROUND(Waste_Cal*100/Order_Cal,2))","v":0},null,"%","VAT :",null,null,{"$f":"EW81","v":0},null,null,null,null,"ต้นทุนสาขา :",null,null,{"$f":"SUMPRODUCT((($A$88:$A$135)-($A$88:$A$135)*0.45)*(($E$88:$E$135)-($G$88:$G$135)))","v":0},null,null,"บาท",null,"ระยะทาง :",null,null,{"$f":"IF(OR($BF$4=0,$BF$3=0),0,$BF$4-$BF$3)","v":0},null,null,null,"Km"]
[]
["No","รหัสร้าน (CustNo)","ชื่อร้าน (Store Name)","เวลาเข้าร้าน","ระยะเวลาระหว่างร้าน","บิล(Invoice)",{"$f":"INDEX(INDIRECT(\"dProduct[ProductName]\"),ROUNDUP(COLUMNS($G:G)/3,0))","v":"ขนมปังหมูหยองน้ำสลัด"},null,null,{"$f":"INDEX(INDIRECT(\"dProduct[ProductName]\"),ROUNDUP(COLUMNS($G:J)/3,0))","v":"ขนมปังหมูหยองน้ำพริกเผา"},null,null,{"$f":"INDEX(INDIRECT(\"dProduct[ProductName]\"),ROUNDUP(COLUMNS($G:M)/3,0))","v":"ขนมปังไก่หยองน้ำสลัด"},null,null,{"$f":"INDEX(INDIRECT(\"dProduct[ProductName]\"),ROUNDUP(COLUMNS($G:P)/3,0))","v":"ขนมปังไส้ครีมสลัด"},null,null,{"$f":"INDEX(INDIRECT(\"dProduct[ProductName]\"),ROUNDUP(COLUMNS($G:S)/3,0))","v":"ขนมปังเนยสด"},null,null,{"$f":"INDEX(INDIRECT(\"dProduct[ProductName]\"),ROUNDUP(COLUMNS($G:V)/3,0))","v":"ขนมปังไส้สังขยาเล็ก"},null,null,{"$f":"INDEX(INDIRECT(\"dProduct[ProductName]\"),ROUNDUP(COLUMNS($G:Y)/3,0))","v":"ขนมปังไส้เผือก"},null,null,{"$f":"INDEX(INDIRECT(\"dProduct[ProductName]\"),ROUNDUP(COLUMNS($G:AB)/3,0))","v":"ขนมปังไส้ถั่วแดง"},null,null,{"$f":"INDEX(INDIRECT(\"dProduct[ProductName]\"),ROUNDUP(COLUMNS($G:AE)/3,0))","v":"ขนมปังไส้ถั่วดำ"},null,null,{"$f":"INDEX(INDIRECT(\"dProduct[ProductName]\"),ROUNDUP(COLUMNS($G:AH)/3,0))","v":"ขนมปังไส้มันม่วง"},null,null,{"$f":"INDEX(INDIRECT(\"dProduct[ProductName]\"),ROUNDUP(COLUMNS($G:AK)/3,0))","v":"เค้กกล้วยหอม"},null,null,{"$f":"INDEX(INDIRECT(\"dProduct[ProductName]\"),ROUNDUP(COLUMNS($G:AN)/3,0))","v":"เค้กบัตเตอร์"},null,null,{"$f":"INDEX(INDIRECT(\"dProduct[ProductName]\"),ROUNDUP(COLUMNS($G:AQ)/3,0))","v":"ขนมปังโรลถั่วแดง"},null,null,{"$f":"INDEX(INDIRECT(\"dProduct[ProductName]\"),ROUNDUP(COLUMNS($G:AT)/3,0))","v":"ขนมปังไส้สังขยาใหญ่"},null,null,{"$f":"INDEX(INDIRECT(\"dProduct[ProductName]\"),ROUNDUP(COLUMNS($G:AW)/3,0))","v":"ขนมปังชนิดแผ่น(480กรัม)"},null,null,{"$f":"INDEX(INDIRECT(\"dProduct[ProductName]\"),ROUNDUP(COLUMNS($G:AZ)/3,0))","v":"โมจิไส้ถั่ว"},null,null,{"$f":"INDEX(INDIRECT(\"dProduct[ProductName]\"),ROUNDUP(COLUMNS($G:BC)/3,0))","v":"โมจิไส้เผือก"},null,null,{"$f":"INDEX(INDIRECT(\"dProduct[ProductName]\"),ROUNDUP(COLUMNS($G:BF)/3,0))","v":"โมจิไส้ถั่วไข่เค็ม"},null,null,{"$f":"INDEX(INDIRECT(\"dProduct[ProductName]\"),ROUNDUP(COLUMNS($G:BI)/3,0))","v":"ขนมปังพิซซ่า"},null,null,{"$f":"INDEX(INDIRECT(\"dProduct[ProductName]\"),ROUNDUP(COLUMNS($G:BL)/3,0))","v":"ขนมปังพิซซ่าปูอัดแฮม"},null,null,{"$f":"INDEX(INDIRECT(\"dProduct[ProductName]\"),ROUNDUP(COLUMNS($G:BO)/3,0))","v":"ขนมปังไส้กรอก"},null,null,{"$f":"INDEX(INDIRECT(\"dProduct[ProductName]\"),ROUNDUP(COLUMNS($G:BR)/3,0))","v":"ขนมก้านบัว"},null,null,{"$f":"INDEX(INDIRECT(\"dProduct[ProductName]\"),ROUNDUP(COLUMNS($G:BU)/3,0))","v":"พายสับปะรด"},null,null,{"$f":"INDEX(INDIRECT(\"dProduct[ProductName]\"),ROUNDUP(COLUMNS($G:BX)/3,0))","v":"พายไส้มะพร้าว"},null,null,{"$f":"INDEX(INDIRECT(\"dProduct[ProductName]\"),ROUNDUP(COLUMNS($G:CA)/3,0))","v":"ขนมปังโรลมันเทศ"},null,null,{"$f":"INDEX(INDIRECT(\"dProduct[ProductName]\"),ROUNDUP(COLUMNS($G:CD)/3,0))","v":"ขนมปังไส้ครีมสลัดน้ำพริกเผา"},null,null,{"$f":"INDEX(INDIRECT(\"dProduct[ProductName]\"),ROUNDUP(COLUMNS($G:CG)/3,0))","v":"ขนมปังไส้สังขยาไข่"},null,null,{"$f":"INDEX(INDIRECT(\"dProduct[ProductName]\"),ROUNDUP(COLUMNS($G:CJ)/3,0))","v":"ขนมปังไส้สังขยามะพร้าว"},null,null,{"$f":"INDEX(INDIRECT(\"dProduct[ProductName]\"),ROUNDUP(COLUMNS($G:CM)/3,0))","v":"ขนมปังไส้ครีมชาไทย"},null,null,{"$f":"INDEX(INDIRECT(\"dProduct[ProductName]\"),ROUNDUP(COLUMNS($G:CP)/3,0))","v":"ขนมปังโรลมันม่วง"},null,null,{"$f":"INDEX(INDIRECT(\"dProduct[ProductName]\"),ROUNDUP(COLUMNS($G:CS)/3,0))","v":"ขนมปังโรลช็อกโกแลต"},null,null,{"$f":"INDEX(INDIRECT(\"dProduct[ProductName]\"),ROUNDUP(COLUMNS($G:CV)/3,0))","v":"ขนมปังชนิดแผ่น(155กรัม)"},null,null,{"$f":"INDEX(INDIRECT(\"dProduct[ProductName]\"),ROUNDUP(COLUMNS($G:CY)/3,0))","v":"ขนมปังโรลเผือก"},null,null,{"$f":"INDEX(INDIRECT(\"dProduct[ProductName]\"),ROUNDUP(COLUMNS($G:DB)/3,0))","v":"ขนมปังไก่หยองน้ำสลัด Mini"},null,null,{"$f":"INDEX(INDIRECT(\"dProduct[ProductName]\"),ROUNDUP(COLUMNS($G:DE)/3,0))","v":"ขนมปังไส้ช็อกโกแลต"},null,null,{"$f":"INDEX(INDIRECT(\"dProduct[ProductName]\"),ROUNDUP(COLUMNS($G:DH)/3,0))","v":"ขนมปังไส้ครีมสังขยาไข่"},null,null,{"$f":"INDEX(INDIRECT(\"dProduct[ProductName]\"),ROUNDUP(COLUMNS($G:DK)/3,0))","v":"ขนมปังพิซซ่าฮาวายเอี้ยน"},null,null,{"$f":"INDEX(INDIRECT(\"dProduct[ProductName]\"),ROUNDUP(COLUMNS($G:DN)/3,0))","v":"ครัวซองต์หมูหยองน้ำสลัด"},null,null,{"$f":"INDEX(INDIRECT(\"dProduct[ProductName]\"),ROUNDUP(COLUMNS($G:DQ)/3,0))","v":"แพนเบรดไส้เผือก"},null,null,{"$f":"INDEX(INDIRECT(\"dProduct[ProductName]\"),ROUNDUP(COLUMNS($G:DT)/3,0))","v":"แพนเบรดไส้ถั่วแดง"},null,null,{"$f":"INDEX(INDIRECT(\"dProduct[ProductName]\"),ROUNDUP(COLUMNS($G:DW)/3,0))","v":"ขนมปังกรอบเนยน้ำตาล(30กรัม)"},null,null,{"$f":"INDEX(INDIRECT(\"dProduct[ProductName]\"),ROUNDUP(COLUMNS($G:DZ)/3,0))","v":"ขนมปังชนิดแผ่นโฮลวีต"},null,null,{"$f":"INDEX(INDIRECT(\"dProduct[ProductName]\"),ROUNDUP(COLUMNS($G:EC)/3,0))","v":"เค้กโรลใบเตย"},null,null,{"$f":"INDEX(INDIRECT(\"dProduct[ProductName]\"),ROUNDUP(COLUMNS($G:EF)/3,0))","v":"ขนมโมจิไส้ถั่วดำ"},null,null,{"$f":"INDEX(INDIRECT(\"dProduct[ProductName]\"),ROUNDUP(COLUMNS($G:EI)/3,0))","v":"ครัวซองต์ไส้กรอกชีส"},null,null,{"$f":"INDEX(INDIRECT(\"dProduct[ProductName]\"),ROUNDUP(COLUMNS($G:EL)/3,0))","v":"ขนมเปี๊ยะไส้ถั่ว"},null,null,{"$f":"INDEX(INDIRECT(\"dProduct[ProductName]\"),ROUNDUP(COLUMNS($G:EO)/3,0))","v":"ขนมเปี๊ยะไส้ฟัก"},null,null,{"$f":"INDEX(INDIRECT(\"dProduct[ProductName]\"),ROUNDUP(COLUMNS($G:ER)/3,0))","v":"มังกี้เค้ก"},null,null,"มูลค่าสินค้า",null,"ภาษี","รวมยอดขาย"]
[null,null,null,null,null,"ราคาขาย",{"$f":"IF(G$7=0,0,INDEX(Price_List,ROUNDUP(COLUMNS($G:G)/3,0)))","v":20},null,null,{"$f":"IF(J$7=0,0,INDEX(Price_List,ROUNDUP(COLUMNS($G:J)/3,0)))","v":20},null,null,{"$f":"IF(M$7=0,0,INDEX(Price_List,ROUNDUP(COLUMNS($G:M)/3,0)))","v":20},null,null,{"$f":"IF(P$7=0,0,INDEX(Price_List,ROUNDUP(COLUMNS($G:P)/3,0)))","v":15},null,null,{"$f":"IF(S$7=0,0,INDEX(Price_List,ROUNDUP(COLUMNS($G:S)/3,0)))","v":15},null,null,{"$f":"IF(V$7=0,0,INDEX(Price_List,ROUNDUP(COLUMNS($G:V)/3,0)))","v":10},null,null,{"$f":"IF(Y$7=0,0,INDEX(Price_List,ROUNDUP(COLUMNS($G:Y)/3,0)))","v":10},null,null,{"$f":"IF(AB$7=0,0,INDEX(Price_List,ROUNDUP(COLUMNS($G:AB)/3,0)))","v":10},null,null,{"$f":"IF(AE$7=0,0,INDEX(Price_List,ROUNDUP(COLUMNS($G:AE)/3,0)))","v":10},null,null,{"$f":"IF(AH$7=0,0,INDEX(Price_List,ROUNDUP(COLUMNS($G:AH)/3,0)))","v":10},null,null,{"$f":"IF(AK$7=0,0,INDEX(Price_List,ROUNDUP(COLUMNS($G:AK)/3,0)))","v":15},null,null,{"$f":"IF(AN$7=0,0,INDEX(Price_List,ROUNDUP(COLUMNS($G:AN)/3,0)))","v":15},null,null,{"$f":"IF(AQ$7=0,0,INDEX(Price_List,ROUNDUP(COLUMNS($G:AQ)/3,0)))","v":15},null,null,{"$f":"IF(AT$7=0,0,INDEX(Price_List,ROUNDUP(COLUMNS($G:AT)/3,0)))","v":15},null,null,{"$f":"IF(AW$7=0,0,INDEX(Price_List,ROUNDUP(COLUMNS($G:AW)/3,0)))","v":42},null,null,{"$f":"IF(AZ$7=0,0,INDEX(Price_List,ROUNDUP(COLUMNS($G:AZ)/3,0)))","v":12},null,null,{"$f":"IF(BC$7=0,0,INDEX(Price_List,ROUNDUP(COLUMNS($G:BC)/3,0)))","v":12},null,null,{"$f":"IF(BF$7=0,0,INDEX(Price_List,ROUNDUP(COLUMNS($G:BF)/3,0)))","v":15},null,null,{"$f":"IF(BI$7=0,0,INDEX(Price_List,ROUNDUP(COLUMNS($G:BI)/3,0)))","v":20},null,null,{"$f":"IF(BL$7=0,0,INDEX(Price_List,ROUNDUP(COLUMNS($G:BL)/3,0)))","v":20},null,null,{"$f":"IF(BO$7=0,0,INDEX(Price_List,ROUNDUP(COLUMNS($G:BO)/3,0)))","v":20},null,null,{"$f":"IF(BR$7=0,0,INDEX(Price_List,ROUNDUP(COLUMNS($G:BR)/3,0)))","v":15},null,null,{"$f":"IF(BU$7=0,0,INDEX(Price_List,ROUNDUP(COLUMNS($G:BU)/3,0)))","v":20},null,null,{"$f":"IF(BX$7=0,0,INDEX(Price_List,ROUNDUP(COLUMNS($G:BX)/3,0)))","v":20},null,null,{"$f":"IF(CA$7=0,0,INDEX(Price_List,ROUNDUP(COLUMNS($G:CA)/3,0)))","v":15},null,null,{"$f":"IF(CD$7=0,0,INDEX(Price_List,ROUNDUP(COLUMNS($G:CD)/3,0)))","v":15},null,null,{"$f":"IF(CG$7=0,0,INDEX(Price_List,ROUNDUP(COLUMNS($G:CG)/3,0)))","v":20},null,null,{"$f":"IF(CJ$7=0,0,INDEX(Price_List,ROUNDUP(COLUMNS($G:CJ)/3,0)))","v":20},null,null,{"$f":"IF(CM$7=0,0,INDEX(Price_List,ROUNDUP(COLUMNS($G:CM)/3,0)))","v":10},null,null,{"$f":"IF(CP$7=0,0,INDEX(Price_List,ROUNDUP(COLUMNS($G:CP)/3,0)))","v":15},null,null,{"$f":"IF(CS$7=0,0,INDEX(Price_List,ROUNDUP(COLUMNS($G:CS)/3,0)))","v":15},null,null,{"$f":"IF(CV$7=0,0,INDEX(Price_List,ROUNDUP(COLUMNS($G:CV)/3,0)))","v":16},null,null,{"$f":"IF(CY$7=0,0,INDEX(Price_List,ROUNDUP(COLUMNS($G:CY)/3,0)))","v":15},null,null,{"$f":"IF(DB$7=0,0,INDEX(Price_List,ROUNDUP(COLUMNS($G:DB)/3,0)))","v":15},null,null,{"$f":"IF(DE$7=0,0,INDEX(Price_List,ROUNDUP(COLUMNS($G:DE)/3,0)))","v":10},null,null,{"$f":"IF(DH$7=0,0,INDEX(Price_List,ROUNDUP(COLUMNS($G:DH)/3,0)))","v":10},null,null,{"$f":"IF(DK$7=0,0,INDEX(Price_List,ROUNDUP(COLUMNS($G:DK)/3,0)))","v":20},null,null,{"$f":"IF(DN$7=0,0,INDEX(Price_List,ROUNDUP(COLUMNS($G:DN)/3,0)))","v":20},null,null,{"$f":"IF(DQ$7=0,0,INDEX(Price_List,ROUNDUP(COLUMNS($G:DQ)/3,0)))","v":15},null,null,{"$f":"IF(DT$7=0,0,INDEX(Price_List,ROUNDUP(COLUMNS($G:DT)/3,0)))","v":15},null,null,{"$f":"IF(DW$7=0,0,INDEX(Price_List,ROUNDUP(COLUMNS($G:DW)/3,0)))","v":12},null,null,{"$f":"IF(DZ$7=0,0,INDEX(Price_List,ROUNDUP(COLUMNS($G:DZ)/3,0)))","v":18},null,null,{"$f":"IF(EC$7=0,0,INDEX(Price_List,ROUNDUP(COLUMNS($G:EC)/3,0)))","v":12},null,null,{"$f":"IF(EF$7=0,0,INDEX(Price_List,ROUNDUP(COLUMNS($G:EF)/3,0)))","v":12},null,null,{"$f":"IF(EI$7=0,0,INDEX(Price_List,ROUNDUP(COLUMNS($G:EI)/3,0)))","v":25},null,null,{"$f":"IF(EL$7=0,0,INDEX(Price_List,ROUNDUP(COLUMNS($G:EL)/3,0)))","v":12},null,null,{"$f":"IF(EO$7=0,0,INDEX(Price_List,ROUNDUP(COLUMNS($G:EO)/3,0)))","v":12},null,null,{"$f":"IF(ER$7=0,0,INDEX(Price_List,ROUNDUP(COLUMNS($G:ER)/3,0)))","v":12},null,null,"เงินเชื่อ","เงินสด"]
[null,null,null,null,null,"คงเหลือ(ตามบัญชี)",{"$f":"IF(G$7=0,0,INDEX(INDIRECT(Order_Rng),ROUNDUP(COLUMNS($G:G)/3,0)))","v":0},null,null,{"$f":"IF(J$7=0,0,INDEX(INDIRECT(Order_Rng),ROUNDUP(COLUMNS($G:J)/3,0)))","v":0},null,null,{"$f":"IF(M$7=0,0,INDEX(INDIRECT(Order_Rng),ROUNDUP(COLUMNS($G:M)/3,0)))","v":0},null,null,{"$f":"IF(P$7=0,0,INDEX(INDIRECT(Order_Rng),ROUNDUP(COLUMNS($G:P)/3,0)))","v":0},null,null,{"$f":"IF(S$7=0,0,INDEX(INDIRECT(Order_Rng),ROUNDUP(COLUMNS($G:S)/3,0)))","v":0},null,null,{"$f":"IF(V$7=0,0,INDEX(INDIRECT(Order_Rng),ROUNDUP(COLUMNS($G:V)/3,0)))","v":0},null,null,{"$f":"IF(Y$7=0,0,INDEX(INDIRECT(Order_Rng),ROUNDUP(COLUMNS($G:Y)/3,0)))","v":0},null,null,{"$f":"IF(AB$7=0,0,INDEX(INDIRECT(Order_Rng),ROUNDUP(COLUMNS($G:AB)/3,0)))","v":0},null,null,{"$f":"IF(AE$7=0,0,INDEX(INDIRECT(Order_Rng),ROUNDUP(COLUMNS($G:AE)/3,0)))","v":0},null,null,{"$f":"IF(AH$7=0,0,INDEX(INDIRECT(Order_Rng),ROUNDUP(COLUMNS($G:AH)/3,0)))","v":0},null,null,{"$f":"IF(AK$7=0,0,INDEX(INDIRECT(Order_Rng),ROUNDUP(COLUMNS($G:AK)/3,0)))","v":0},null,null,{"$f":"IF(AN$7=0,0,INDEX(INDIRECT(Order_Rng),ROUNDUP(COLUMNS($G:AN)/3,0)))","v":0},null,null,{"$f":"IF(AQ$7=0,0,INDEX(INDIRECT(Order_Rng),ROUNDUP(COLUMNS($G:AQ)/3,0)))","v":0},null,null,{"$f":"IF(AT$7=0,0,INDEX(INDIRECT(Order_Rng),ROUNDUP(COLUMNS($G:AT)/3,0)))","v":0},null,null,{"$f":"IF(AW$7=0,0,INDEX(INDIRECT(Order_Rng),ROUNDUP(COLUMNS($G:AW)/3,0)))","v":0},null,null,{"$f":"IF(AZ$7=0,0,INDEX(INDIRECT(Order_Rng),ROUNDUP(COLUMNS($G:AZ)/3,0)))","v":0},null,null,{"$f":"IF(BC$7=0,0,INDEX(INDIRECT(Order_Rng),ROUNDUP(COLUMNS($G:BC)/3,0)))","v":0},null,null,{"$f":"IF(BF$7=0,0,INDEX(INDIRECT(Order_Rng),ROUNDUP(COLUMNS($G:BF)/3,0)))","v":0},null,null,{"$f":"IF(BI$7=0,0,INDEX(INDIRECT(Order_Rng),ROUNDUP(COLUMNS($G:BI)/3,0)))","v":0},null,null,{"$f":"IF(BL$7=0,0,INDEX(INDIRECT(Order_Rng),ROUNDUP(COLUMNS($G:BL)/3,0)))","v":0},null,null,{"$f":"IF(BO$7=0,0,INDEX(INDIRECT(Order_Rng),ROUNDUP(COLUMNS($G:BO)/3,0)))","v":0},null,null,{"$f":"IF(BR$7=0,0,INDEX(INDIRECT(Order_Rng),ROUNDUP(COLUMNS($G:BR)/3,0)))","v":0},null,null,{"$f":"IF(BU$7=0,0,INDEX(INDIRECT(Order_Rng),ROUNDUP(COLUMNS($G:BU)/3,0)))","v":0},null,null,{"$f":"IF(BX$7=0,0,INDEX(INDIRECT(Order_Rng),ROUNDUP(COLUMNS($G:BX)/3,0)))","v":0},null,null,{"$f":"IF(CA$7=0,0,INDEX(INDIRECT(Order_Rng),ROUNDUP(COLUMNS($G:CA)/3,0)))","v":0},null,null,{"$f":"IF(CD$7=0,0,INDEX(INDIRECT(Order_Rng),ROUNDUP(COLUMNS($G:CD)/3,0)))","v":0},null,null,{"$f":"IF(CG$7=0,0,INDEX(INDIRECT(Order_Rng),ROUNDUP(COLUMNS($G:CG)/3,0)))","v":0},null,null,{"$f":"IF(CJ$7=0,0,INDEX(INDIRECT(Order_Rng),ROUNDUP(COLUMNS($G:CJ)/3,0)))","v":0},null,null,{"$f":"IF(CM$7=0,0,INDEX(INDIRECT(Order_Rng),ROUNDUP(COLUMNS($G:CM)/3,0)))","v":0},null,null,{"$f":"IF(CP$7=0,0,INDEX(INDIRECT(Order_Rng),ROUNDUP(COLUMNS($G:CP)/3,0)))","v":0},null,null,{"$f":"IF(CS$7=0,0,INDEX(INDIRECT(Order_Rng),ROUNDUP(COLUMNS($G:CS)/3,0)))","v":0},null,null,{"$f":"IF(CV$7=0,0,INDEX(INDIRECT(Order_Rng),ROUNDUP(COLUMNS($G:CV)/3,0)))","v":0},null,null,{"$f":"IF(CY$7=0,0,INDEX(INDIRECT(Order_Rng),ROUNDUP(COLUMNS($G:CY)/3,0)))","v":0},null,null,{"$f":"IF(DB$7=0,0,INDEX(INDIRECT(Order_Rng),ROUNDUP(COLUMNS($G:DB)/3,0)))","v":0},null,null,{"$f":"IF(DE$7=0,0,INDEX(INDIRECT(Order_Rng),ROUNDUP(COLUMNS($G:DE)/3,0)))","v":0},null,null,{"$f":"IF(DH$7=0,0,INDEX(INDIRECT(Order_Rng),ROUNDUP(COLUMNS($G:DH)/3,0)))","v":0},null,null,{"$f":"IF(DK$7=0,0,INDEX(INDIRECT(Order_Rng),ROUNDUP(COLUMNS($G:DK)/3,0)))","v":0},null,null,{"$f":"IF(DN$7=0,0,INDEX(INDIRECT(Order_Rng),ROUNDUP(COLUMNS($G:DN)/3,0)))","v":0},null,null,{"$f":"IF(DQ$7=0,0,INDEX(INDIRECT(Order_Rng),ROUNDUP(COLUMNS($G:DQ)/3,0)))","v":0},null,null,{"$f":"IF(DT$7=0,0,INDEX(INDIRECT(Order_Rng),ROUNDUP(COLUMNS($G:DT)/3,0)))","v":0},null,null,{"$f":"IF(DW$7=0,0,INDEX(INDIRECT(Order_Rng),ROUNDUP(COLUMNS($G:DW)/3,0)))","v":0},null,null,{"$f":"IF(DZ$7=0,0,INDEX(INDIRECT(Order_Rng),ROUNDUP(COLUMNS($G:DZ)/3,0)))","v":0},null,null,{"$f":"IF(EC$7=0,0,INDEX(INDIRECT(Order_Rng),ROUNDUP(COLUMNS($G:EC)/3,0)))","v":0},null,null,{"$f":"IF(EF$7=0,0,INDEX(INDIRECT(Order_Rng),ROUNDUP(COLUMNS($G:EF)/3,0)))","v":0},null,null,{"$f":"IF(EI$7=0,0,INDEX(INDIRECT(Order_Rng),ROUNDUP(COLUMNS($G:EI)/3,0)))","v":0},null,null,{"$f":"IF(EL$7=0,0,INDEX(INDIRECT(Order_Rng),ROUNDUP(COLUMNS($G:EL)/3,0)))","v":0},null,null,{"$f":"IF(EO$7=0,0,INDEX(INDIRECT(Order_Rng),ROUNDUP(COLUMNS($G:EO)/3,0)))","v":0},null,null,{"$f":"IF(ER$7=0,0,INDEX(INDIRECT(Order_Rng),ROUNDUP(COLUMNS($G:ER)/3,0)))","v":0}]
[{"$f":"IF(OR($B10=\"\",COUNTIF($B$10:$B10,$B10)>1,LEN(TRIM($B10))<>10,ISNUMBER(--MID(TRIM($B10),5,1))),\"-\",MAX(COUNT($A$9:$A9)+1))","v":"-"}]
[{"$f":"IF(OR($B11=\"\",COUNTIF($B$10:$B11,$B11)>1,LEN(TRIM($B11))<>10,ISNUMBER(--MID(TRIM($B11),5,1))),\"-\",MAX(COUNT($A$9:$A10)+1))","v":"-"},null,null,null,{"$f":"IF(D11=\"\",\"\",D11-D10)","v":""}]
[{"$f":"IF(OR($B12=\"\",COUNTIF($B$10:$B12,$B12)>1,LEN(TRIM($B12))<>10,ISNUMBER(--MID(TRIM($B12),5,1))),\"-\",MAX(COUNT($A$9:$A11)+1))","v":"-"},null,null,null,{"$f":"IF(D12=\"\",\"\",D12-D11)","v":""}]
[{"$f":"IF(OR($B13=\"\",COUNTIF($B$10:$B13,$B13)>1,LEN(TRIM($B13))<>10,ISNUMBER(--MID(TRIM($B13),5,1))),\"-\",MAX(COUNT($A$9:$A12)+1))","v":"-"},null,null,null,""]
[{"$f":"IF(OR($B14=\"\",COUNTIF($B$10:$B14,$B14)>1,LEN(TRIM($B14))<>10,ISNUMBER(--MID(TRIM($B14),5,1))),\"-\",MAX(COUNT($A$9:$A13)+1))","v":"-"},null,null,null,""]
[{"$f":"IF(OR($B15=\"\",COUNTIF($B$10:$B15,$B15)>1,LEN(TRIM($B15))<>10,ISNUMBER(--MID(TRIM($B15),5,1))),\"-\",MAX(COUNT($A$9:$A14)+1))","v":"-"},null,null,null,""]
[{"$f":"IF(OR($B16=\"\",COUNTIF($B$10:$B16,$B16)>1,LEN(TRIM($B16))<>10,ISNUMBER(--MID(TRIM($B16),5,1))),\"-\",MAX(COUNT($A$9:$A15)+1))","v":"-"},null,null,null,""]
[{"$f":"IF(OR($B17=\"\",COUNTIF($B$10:$B17,$B17)>1,LEN(TRIM($B17))<>10,ISNUMBER(--MID(TRIM($B17),5,1))),\"-\",MAX(COUNT($A$9:$A16)+1))","v":"-"},null,null,null,""]
[{"$f":"IF(OR($B18=\"\",COUNTIF($B$10:$B18,$B18)>1,LEN(TRIM($B18))<>10,ISNUMBER(--MID(TRIM($B18),5,1))),\"-\",MAX(COUNT($A$9:$A17)+1))","v":"-"},null,null,null,""]
[{"$f":"IF(OR($B19=\"\",COUNTIF($B$10:$B19,$B19)>1,LEN(TRIM($B19))<>10,ISNUMBER(--MID(TRIM($B19),5,1))),\"-\",MAX(COUNT($A$9:$A18)+1))","v":"-"},null,null,null,""]
[{"$f":"IF(OR($B20=\"\",COUNTIF($B$10:$B20,$B20)>1,LEN(TRIM($B20))<>10,ISNUMBER(--MID(TRIM($B20),5,1))),\"-\",MAX(COUNT($A$9:$A19)+1))","v":"-"},null,null,null,""]
[{"$f":"IF(OR($B21=\"\",COUNTIF($B$10:$B21,$B21)>1,LEN(TRIM($B21))<>10,ISNUMBER(--MID(TRIM($B21),5,1))),\"-\",MAX(COUNT($A$9:$A20)+1))","v":"-"},null,null,null,""]
[{"$f":"IF(OR($B22=\"\",COUNTIF($B$10:$B22,$B22)>1,LEN(TRIM($B22))<>10,ISNUMBER(--MID(TRIM($B22),5,1))),\"-\",MAX(COUNT($A$9:$A21)+1))","v":"-"},null,null,null,""]
[{"$f":"IF(OR($B23=\"\",COUNTIF($B$10:$B23,$B23)>1,LEN(TRIM($B23))<>10,ISNUMBER(--MID(TRIM($B23),5,1))),\"-\",MAX(COUNT($A$9:$A22)+1))","v":"-"},null,null,null,""]
[{"$f":"IF(OR($B24=\"\",COUNTIF($B$10:$B24,$B24)>1,LEN(TRIM($B24))<>10,ISNUMBER(--MID(TRIM($B24),5,1))),\"-\",MAX(COUNT($A$9:$A23)+1))","v":"-"},null,null,null,""]
[{"$f":"IF(OR($B25=\"\",COUNTIF($B$10:$B25,$B25)>1,LEN(TRIM($B25))<>10,ISNUMBER(--MID(TRIM($B25),5,1))),\"-\",MAX(COUNT($A$9:$A24)+1))","v":"-"},null,null,null,""]
[{"$f":"IF(OR($B26=\"\",COUNTIF($B$10:$B26,$B26)>1,LEN(TRIM($B26))<>10,ISNUMBER(--MID(TRIM($B26),5,1))),\"-\",MAX(COUNT($A$9:$A25)+1))","v":"-"},null,null,null,""]
[{"$f":"IF(OR($B27=\"\",COUNTIF($B$10:$B27,$B27)>1,LEN(TRIM($B27))<>10,ISNUMBER(--MID(TRIM($B27),5,1))),\"-\",MAX(COUNT($A$9:$A26)+1))","v":"-"},null,null,null,""]
[{"$f":"IF(OR($B28=\"\",COUNTIF($B$10:$B28,$B28)>1,LEN(TRIM($B28))<>10,ISNUMBER(--MID(TRIM($B28),5,1))),\"-\",MAX(COUNT($A$9:$A27)+1))","v":"-"},null,null,null,""]
[{"$f":"IF(OR($B29=\"\",COUNTIF($B$10:$B29,$B29)>1,LEN(TRIM($B29))<>10,ISNUMBER(--MID(TRIM($B29),5,1))),\"-\",MAX(COUNT($A$9:$A28)+1))","v":"-"},null,null,null,""]
[{"$f":"IF(OR($B30=\"\",COUNTIF($B$10:$B30,$B30)>1,LEN(TRIM($B30))<>10,ISNUMBER(--MID(TRIM($B30),5,1))),\"-\",MAX(COUNT($A$9:$A29)+1))","v":"-"},null,null,null,""]
[{"$f":"IF(OR($B31=\"\",COUNTIF($B$10:$B31,$B31)>1,LEN(TRIM($B31))<>10,ISNUMBER(--MID(TRIM($B31),5,1))),\"-\",MAX(COUNT($A$9:$A30)+1))","v":"-"},null,null,null,""]
[{"$f":"IF(OR($B32=\"\",COUNTIF($B$10:$B32,$B32)>1,LEN(TRIM($B32))<>10,ISNUMBER(--MID(TRIM($B32),5,1))),\"-\",MAX(COUNT($A$9:$A31)+1))","v":"-"},null,null,null,""]
[{"$f":"IF(OR($B33=\"\",COUNTIF($B$10:$B33,$B33)>1,LEN(TRIM($B33))<>10,ISNUMBER(--MID(TRIM($B33),5,1))),\"-\",MAX(COUNT($A$9:$A32)+1))","v":"-"},null,null,null,""]
[{"$f":"IF(OR($B34=\"\",COUNTIF($B$10:$B34,$B34)>1,LEN(TRIM($B34))<>10,ISNUMBER(--MID(TRIM($B34),5,1))),\"-\",MAX(COUNT($A$9:$A33)+1))","v":"-"},null,null,null,""]
[{"$f":"IF(OR($B35=\"\",COUNTIF($B$10:$B35,$B35)>1,LEN(TRIM($B35))<>10,ISNUMBER(--MID(TRIM($B35),5,1))),\"-\",MAX(COUNT($A$9:$A34)+1))","v":"-"},null,null,null,""]
[{"$f":"IF(OR($B36=\"\",COUNTIF($B$10:$B36,$B36)>1,LEN(TRIM($B36))<>10,ISNUMBER(--MID(TRIM($B36),5,1))),\"-\",MAX(COUNT($A$9:$A35)+1))","v":"-"},null,null,null,""]
[{"$f":"IF(OR($B37=\"\",COUNTIF($B$10:$B37,$B37)>1,LEN(TRIM($B37))<>10,ISNUMBER(--MID(TRIM($B37),5,1))),\"-\",MAX(COUNT($A$9:$A36)+1))","v":"-"},null,null,null,""]
[{"$f":"IF(OR($B38=\"\",COUNTIF($B$10:$B38,$B38)>1,LEN(TRIM($B38))<>10,ISNUMBER(--MID(TRIM($B38),5,1))),\"-\",MAX(COUNT($A$9:$A37)+1))","v":"-"},null,null,null,""]
[{"$f":"IF(OR($B39=\"\",COUNTIF($B$10:$B39,$B39)>1,LEN(TRIM($B39))<>10,ISNUMBER(--MID(TRIM($B39),5,1))),\"-\",MAX(COUNT($A$9:$A38)+1))","v":"-"},null,null,null,""]
[{"$f":"IF(OR($B40=\"\",COUNTIF($B$10:$B40,$B40)>1,LEN(TRIM($B40))<>10,ISNUMBER(--MID(TRIM($B40),5,1))),\"-\",MAX(COUNT($A$9:$A39)+1))","v":"-"},null,null,null,""]
[{"$f":"IF(OR($B41=\"\",COUNTIF($B$10:$B41,$B41)>1,LEN(TRIM($B41))<>10,ISNUMBER(--MID(TRIM($B41),5,1))),\"-\",MAX(COUNT($A$9:$A40)+1))","v":"-"},null,null,null,""]
[{"$f":"IF(OR($B42=\"\",COUNTIF($B$10:$B42,$B42)>1,LEN(TRIM($B42))<>10,ISNUMBER(--MID(TRIM($B42),5,1))),\"-\",MAX(COUNT($A$9:$A41)+1))","v":"-"},null,null,null,""]
[{"$f":"IF(OR($B43=\"\",COUNTIF($B$10:$B43,$B43)>1,LEN(TRIM($B43))<>10,ISNUMBER(--MID(TRIM($B43),5,1))),\"-\",MAX(COUNT($A$9:$A42)+1))","v":"-"},null,null,null,""]
[{"$f":"IF(OR($B44=\"\",COUNTIF($B$10:$B44,$B44)>1,LEN(TRIM($B44))<>10,ISNUMBER(--MID(TRIM($B44),5,1))),\"-\",MAX(COUNT($A$9:$A43)+1))","v":"-"},null,null,null,""]
[{"$f":"IF(OR($B45=\"\",COUNTIF($B$10:$B45,$B45)>1,LEN(TRIM($B45))<>10,ISNUMBER(--MID(TRIM($B45),5,1))),\"-\",MAX(COUNT($A$9:$A44)+1))","v":"-"},null,null,null,""]
[{"$f":"IF(OR($B46=\"\",COUNTIF($B$10:$B46,$B46)>1,LEN(TRIM($B46))<>10,ISNUMBER(--MID(TRIM($B46),5,1))),\"-\",MAX(COUNT($A$9:$A45)+1))","v":"-"},null,null,null,""]
[{"$f":"IF(OR($B47=\"\",COUNTIF($B$10:$B47,$B47)>1,LEN(TRIM($B47))<>10,ISNUMBER(--MID(TRIM($B47),5,1))),\"-\",MAX(COUNT($A$9:$A46)+1))","v":"-"},null,null,null,""]
[{"$f":"IF(OR($B48=\"\",COUNTIF($B$10:$B48,$B48)>1,LEN(TRIM($B48))<>10,ISNUMBER(--MID(TRIM($B48),5,1))),\"-\",MAX(COUNT($A$9:$A47)+1))","v":"-"},null,null,null,""]
[{"$f":"IF(OR($B49=\"\",COUNTIF($B$10:$B49,$B49)>1,LEN(TRIM($B49))<>10,ISNUMBER(--MID(TRIM($B49),5,1))),\"-\",MAX(COUNT($A$9:$A48)+1))","v":"-"},null,null,null,""]
[{"$f":"IF(OR($B50=\"\",COUNTIF($B$10:$B50,$B50)>1,LEN(TRIM($B50))<>10,ISNUMBER(--MID(TRIM($B50),5,1))),\"-\",MAX(COUNT($A$9:$A49)+1))","v":"-"},null,null,null,""]
[{"$f":"IF(OR($B51=\"\",COUNTIF($B$10:$B51,$B51)>1,LEN(TRIM($B51))<>10,ISNUMBER(--MID(TRIM($B51),5,1))),\"-\",MAX(COUNT($A$9:$A50)+1))","v":"-"},null,null,null,""]
[{"$f":"IF(OR($B52=\"\",COUNTIF($B$10:$B52,$B52)>1,LEN(TRIM($B52))<>10,ISNUMBER(--MID(TRIM($B52),5,1))),\"-\",MAX(COUNT($A$9:$A51)+1))","v":"-"},null,null,null,""]
[{"$f":"IF(OR($B53=\"\",COUNTIF($B$10:$B53,$B53)>1,LEN(TRIM($B53))<>10,ISNUMBER(--MID(TRIM($B53),5,1))),\"-\",MAX(COUNT($A$9:$A52)+1))","v":"-"},null,null,null,""]
[{"$f":"IF(OR($B54=\"\",COUNTIF($B$10:$B54,$B54)>1,LEN(TRIM($B54))<>10,ISNUMBER(--MID(TRIM($B54),5,1))),\"-\",MAX(COUNT($A$9:$A53)+1))","v":"-"},null,null,null,""]
[{"$f":"IF(OR($B55=\"\",COUNTIF($B$10:$B55,$B55)>1,LEN(TRIM($B55))<>10,ISNUMBER(--MID(TRIM($B55),5,1))),\"-\",MAX(COUNT($A$9:$A54)+1))","v":"-"},null,null,null,""]
[{"$f":"IF(OR($B56=\"\",COUNTIF($B$10:$B56,$B56)>1,LEN(TRIM($B56))<>10,ISNUMBER(--MID(TRIM($B56),5,1))),\"-\",MAX(COUNT($A$9:$A55)+1))","v":"-"},null,null,null,""]
[{"$f":"IF(OR($B57=\"\",COUNTIF($B$10:$B57,$B57)>1,LEN(TRIM($B57))<>10,ISNUMBER(--MID(TRIM($B57),5,1))),\"-\",MAX(COUNT($A$9:$A56)+1))","v":"-"},null,null,null,""]
[{"$f":"IF(OR($B58=\"\",COUNTIF($B$10:$B58,$B58)>1,LEN(TRIM($B58))<>10,ISNUMBER(--MID(TRIM($B58),5,1))),\"-\",MAX(COUNT($A$9:$A57)+1))","v":"-"},null,null,null,""]
[{"$f":"IF(OR($B59=\"\",COUNTIF($B$10:$B59,$B59)>1,LEN(TRIM($B59))<>10,ISNUMBER(--MID(TRIM($B59),5,1))),\"-\",MAX(COUNT($A$9:$A58)+1))","v":"-"},null,null,null,""]
[{"$f":"IF(OR($B60=\"\",COUNTIF($B$10:$B60,$B60)>1,LEN(TRIM($B60))<>10,ISNUMBER(--MID(TRIM($B60),5,1))),\"-\",MAX(COUNT($A$9:$A59)+1))","v":"-"},null,null,null,""]
[{"$f":"IF(OR($B61=\"\",COUNTIF($B$10:$B61,$B61)>1,LEN(TRIM($B61))<>10,ISNUMBER(--MID(TRIM($B61),5,1))),\"-\",MAX(COUNT($A$9:$A60)+1))","v":"-"},null,null,null,""]
[{"$f":"IF(OR($B62=\"\",COUNTIF($B$10:$B62,$B62)>1,LEN(TRIM($B62))<>10,ISNUMBER(--MID(TRIM($B62),5,1))),\"-\",MAX(COUNT($A$9:$A61)+1))","v":"-"},null,null,null,""]
[{"$f":"IF(OR($B63=\"\",COUNTIF($B$10:$B63,$B63)>1,LEN(TRIM($B63))<>10,ISNUMBER(--MID(TRIM($B63),5,1))),\"-\",MAX(COUNT($A$9:$A62)+1))","v":"-"},null,null,null,""]
[{"$f":"IF(OR($B64=\"\",COUNTIF($B$10:$B64,$B64)>1,LEN(TRIM($B64))<>10,ISNUMBER(--MID(TRIM($B64),5,1))),\"-\",MAX(COUNT($A$9:$A63)+1))","v":"-"},null,null,null,""]
[{"$f":"IF(OR($B65=\"\",COUNTIF($B$10:$B65,$B65)>1,LEN(TRIM($B65))<>10,ISNUMBER(--MID(TRIM($B65),5,1))),\"-\",MAX(COUNT($A$9:$A64)+1))","v":"-"},null,null,null,""]
[{"$f":"IF(OR($B66=\"\",COUNTIF($B$10:$B66,$B66)>1,LEN(TRIM($B66))<>10,ISNUMBER(--MID(TRIM($B66),5,1))),\"-\",MAX(COUNT($A$9:$A65)+1))","v":"-"},null,null,null,""]
[{"$f":"IF(OR($B67=\"\",COUNTIF($B$10:$B67,$B67)>1,LEN(TRIM($B67))<>10,ISNUMBER(--MID(TRIM($B67),5,1))),\"-\",MAX(COUNT($A$9:$A66)+1))","v":"-"},null,null,null,""]
[{"$f":"IF(OR($B68=\"\",COUNTIF($B$10:$B68,$B68)>1,LEN(TRIM($B68))<>10,ISNUMBER(--MID(TRIM($B68),5,1))),\"-\",MAX(COUNT($A$9:$A67)+1))","v":"-"},null,null,null,""]
[{"$f":"IF(OR($B69=\"\",COUNTIF($B$10:$B69,$B69)>1,LEN(TRIM($B69))<>10,ISNUMBER(--MID(TRIM($B69),5,1))),\"-\",MAX(COUNT($A$9:$A68)+1))","v":"-"},null,null,null,""]
[{"$f":"IF(OR($B70=\"\",COUNTIF($B$10:$B70,$B70)>1,LEN(TRIM($B70))<>10,ISNUMBER(--MID(TRIM($B70),5,1))),\"-\",MAX(COUNT($A$9:$A69)+1))","v":"-"},null,null,null,""]
[{"$f":"IF(OR($B71=\"\",COUNTIF($B$10:$B71,$B71)>1,LEN(TRIM($B71))<>10,ISNUMBER(--MID(TRIM($B71),5,1))),\"-\",MAX(COUNT($A$9:$A70)+1))","v":"-"},null,null,null,""]
[{"$f":"IF(OR($B72=\"\",COUNTIF($B$10:$B72,$B72)>1,LEN(TRIM($B72))<>10,ISNUMBER(--MID(TRIM($B72),5,1))),\"-\",MAX(COUNT($A$9:$A71)+1))","v":"-"},null,null,null,""]
[{"$f":"IF(OR($B73=\"\",COUNTIF($B$10:$B73,$B73)>1,LEN(TRIM($B73))<>10,ISNUMBER(--MID(TRIM($B73),5,1))),\"-\",MAX(COUNT($A$9:$A72)+1))","v":"-"},null,null,null,""]
[{"$f":"IF(OR($B74=\"\",COUNTIF($B$10:$B74,$B74)>1,LEN(TRIM($B74))<>10,ISNUMBER(--MID(TRIM($B74),5,1))),\"-\",MAX(COUNT($A$9:$A73)+1))","v":"-"},null,null,null,""]
[{"$f":"IF(OR($B75=\"\",COUNTIF($B$10:$B75,$B75)>1,LEN(TRIM($B75))<>10,ISNUMBER(--MID(TRIM($B75),5,1))),\"-\",MAX(COUNT($A$9:$A74)+1))","v":"-"},null,null,null,""]
[{"$f":"IF(OR($B76=\"\",COUNTIF($B$10:$B76,$B76)>1,LEN(TRIM($B76))<>10,ISNUMBER(--MID(TRIM($B76),5,1))),\"-\",MAX(COUNT($A$9:$A75)+1))","v":"-"},null,null,null,{"$f":"IF(D76=\"\",\"\",D76-D75)","v":""}]
[{"$f":"IF(OR($B77=\"\",COUNTIF($B$10:$B77,$B77)>1,LEN(TRIM($B77))<>10,ISNUMBER(--MID(TRIM($B77),5,1))),\"-\",MAX(COUNT($A$9:$A76)+1))","v":"-"},null,null,null,""]
[{"$f":"IF(OR($B78=\"\",COUNTIF($B$10:$B78,$B78)>1,LEN(TRIM($B78))<>10,ISNUMBER(--MID(TRIM($B78),5,1))),\"-\",MAX(COUNT($A$9:$A77)+1))","v":"-"},null,null,null,""]
[{"$f":"IF(OR($B79=\"\",COUNTIF($B$10:$B79,$B79)>1,LEN(TRIM($B79))<>10,ISNUMBER(--MID(TRIM($B79),5,1))),\"-\",MAX(COUNT($A$9:$A78)+1))","v":"-"},null,null,null,""]
["รวมของขาย|ของเสีย|เหลือบนเชลฟ์",null,null,null,null,null,{"$f":"SUM(G10:G79)","v":0},0,0,{"$f":"SUM(J10:J79)","v":0},0,0,0,0,0,0,0,0,0,0,0,0,0,0,0,0,0,0,0,0,0,0,0,0,0,0,0,0,0,0,0,0,0,0,0,0,0,0,0,0,0,0,0,0,0,0,0,0,0,0,0,0,0,0,0,0,0,0,0,0,0,0,0,{"$f":"SUM(BV10:BV79)","v":0},0,0,0,0,0,0,0,0,0,0,0,0,0,0,0,0,0,0,0,0,0,0,0,0,0,0,0,0,0,0,0,0,0,0,0,0,0,0,0,0,0,0,0,0,0,0,0,0,0,0,0,0,0,0,0,0,0,0,0,0,0,{"$f":"SUM(EF10:EF79)","v":0},0,0,{"$f":"SUM(EI10:EI79)","v":0},0,0,0,0,0,{"$f":"SUM(EO10:EO79)","v":0},0,0,0,0,0,"รวมเงินเชื่อ","รวมเงินสด","ภาษี","รวมยอดขาย"]
["ของเหลือ",null,null,null,null,null,{"$f":"G80+H80-G9","v":0},null,null,{"$f":"J80+K80-J9","v":0},null,null,{"$f":"M80+N80-M9","v":0},null,null,{"$f":"P80+Q80-P9","v":0},null,null,{"$f":"S80+T80-S9","v":0},null,null,{"$f":"V80+W80-V9","v":0},null,null,{"$f":"Y80+Z80-Y9","v":0},null,null,{"$f":"AB80+AC80-AB9","v":0},null,null,{"$f":"AE80+AF80-AE9","v":0},null,null,{"$f":"AH80+AI80-AH9","v":0},null,null,{"$f":"AK80+AL80-AK9","v":0},null,null,{"$f":"AN80+AO80-AN9","v":0},null,null,{"$f":"AQ80+AR80-AQ9","v":0},null,null,{"$f":"AT80+AU80-AT9","v":0},null,null,{"$f":"AW80+AX80-AW9","v":0},null,null,{"$f":"AZ80+BA80-AZ9","v":0},null,null,{"$f":"BC80+BD80-BC9","v":0},null,null,{"$f":"BF80+BG80-BF9","v":0},null,null,{"$f":"BI80+BJ80-BI9","v":0},null,null,{"$f":"BL80+BM80-BL9","v":0},null,null,{"$f":"BO80+BP80-BO9","v":0},null,null,{"$f":"BR80+BS80-BR9","v":0},null,null,{"$f":"BU80+BV80-BU9","v":0},null,null,{"$f":"BX80+BY80-BX9","v":0},null,null,{"$f":"CA80+CB80-CA9","v":0},null,null,{"$f":"CD80+CE80-CD9","v":0},null,null,{"$f":"CG80+CH80-CG9","v":0},null,null,{"$f":"CJ80+CK80-CJ9","v":0},null,null,{"$f":"CM80+CN80-CM9","v":0},null,null,{"$f":"CP80+CQ80-CP9","v":0},null,null,{"$f":"CS80+CT80-CS9","v":0},null,null,{"$f":"CV80+CW80-CV9","v":0},null,null,{"$f":"CY80+CZ80-CY9","v":0},null,null,{"$f":"DB80+DC80-DB9","v":0},null,null,{"$f":"DE80+DF80-DE9","v":0},null,null,{"$f":"DH80+DI80-DH9","v":0},null,null,{"$f":"DK80+DL80-DK9","v":0},null,null,{"$f":"DN80+DO80-DN9","v":0},null,null,{"$f":"DQ80+DR80-DQ9","v":0},null,null,{"$f":"DT80+DU80-DT9","v":0},null,null,{"$f":"DW80+DX80-DW9","v":0},null,null,{"$f":"DZ80+EA80-DZ9","v":0},null,null,{"$f":"EC80+ED80-EC9","v":0},null,null,{"$f":"EF80+EG80-EF9","v":0},null,null,{"$f":"EI80+EJ80-EI9","v":0},null,null,{"$f":"EL80+EM80-EL9","v":0},null,null,{"$f":"EO80+EP80-EO9","v":0},null,null,{"$f":"ER80+ES80-ER9","v":0},null,null,{"$f":"SUM(EU10:EU79)","v":0},{"$f":"SUM(EV10:EV79)","v":0},{"$f":"SUM(EW10:EW79)","v":0},{"$f":"SUM(EX10:EX79)","v":0}]
["เฉลี่ย",null,null,"เหลือ/เสีย(จริง)",null,null,{"$f":"INDIRECT(\"F\"&ROW($G$87)+ROUNDUP(COLUMNS($G:G)/3,0))","v":0},{"$f":"INDIRECT(\"G\"&ROW($G$87)+ROUNDUP(COLUMNS($G:H)/3,0))","v":0},null,{"$f":"INDIRECT(\"F\"&ROW($G$87)+ROUNDUP(COLUMNS($G:J)/3,0))","v":0},{"$f":"INDIRECT(\"G\"&ROW($G$87)+ROUNDUP(COLUMNS($G:K)/3,0))","v":0},null,{"$f":"INDIRECT(\"F\"&ROW($G$87)+ROUNDUP(COLUMNS($G:M)/3,0))","v":0},{"$f":"INDIRECT(\"G\"&ROW($G$87)+ROUNDUP(COLUMNS($G:N)/3,0))","v":0},null,{"$f":"INDIRECT(\"F\"&ROW($G$87)+ROUNDUP(COLUMNS($G:P)/3,0))","v":0},{"$f":"INDIRECT(\"G\"&ROW($G$87)+ROUNDUP(COLUMNS($G:Q)/3,0))","v":0},null,{"$f":"INDIRECT(\"F\"&ROW($G$87)+ROUNDUP(COLUMNS($G:S)/3,0))","v":0},{"$f":"INDIRECT(\"G\"&ROW($G$87)+ROUNDUP(COLUMNS($G:T)/3,0))","v":0},null,{"$f":"INDIRECT(\"F\"&ROW($G$87)+ROUNDUP(COLUMNS($G:V)/3,0))","v":0},{"$f":"INDIRECT(\"G\"&ROW($G$87)+ROUNDUP(COLUMNS($G:W)/3,0))","v":0},null,{"$f":"INDIRECT(\"F\"&ROW($G$87)+ROUNDUP(COLUMNS($G:Y)/3,0))","v":0},{"$f":"INDIRECT(\"G\"&ROW($G$87)+ROUNDUP(COLUMNS($G:Z)/3,0))","v":0},null,{"$f":"INDIRECT(\"F\"&ROW($G$87)+ROUNDUP(COLUMNS($G:AB)/3,0))","v":0},{"$f":"INDIRECT(\"G\"&ROW($G$87)+ROUNDUP(COLUMNS($G:AC)/3,0))","v":0},null,{"$f":"INDIRECT(\"F\"&ROW($G$87)+ROUNDUP(COLUMNS($G:AE)/3,0))","v":0},{"$f":"INDIRECT(\"G\"&ROW($G$87)+ROUNDUP(COLUMNS($G:AF)/3,0))","v":0},null,{"$f":"INDIRECT(\"F\"&ROW($G$87)+ROUNDUP(COLUMNS($G:AH)/3,0))","v":0},{"$f":"INDIRECT(\"G\"&ROW($G$87)+ROUNDUP(COLUMNS($G:AI)/3,0))","v":0},null,{"$f":"INDIRECT(\"F\"&ROW($G$87)+ROUNDUP(COLUMNS($G:AK)/3,0))","v":0},{"$f":"INDIRECT(\"G\"&ROW($G$87)+ROUNDUP(COLUMNS($G:AL)/3,0))","v":0},null,{"$f":"INDIRECT(\"F\"&ROW($G$87)+ROUNDUP(COLUMNS($G:AN)/3,0))","v":0},{"$f":"INDIRECT(\"G\"&ROW($G$87)+ROUNDUP(COLUMNS($G:AO)/3,0))","v":0},null,{"$f":"INDIRECT(\"F\"&ROW($G$87)+ROUNDUP(COLUMNS($G:AQ)/3,0))","v":0},{"$f":"INDIRECT(\"G\"&ROW($G$87)+ROUNDUP(COLUMNS($G:AR)/3,0))","v":0},null,{"$f":"INDIRECT(\"F\"&ROW($G$87)+ROUNDUP(COLUMNS($G:AT)/3,0))","v":0},{"$f":"INDIRECT(\"G\"&ROW($G$87)+ROUNDUP(COLUMNS($G:AU)/3,0))","v":0},null,{"$f":"INDIRECT(\"F\"&ROW($G$87)+ROUNDUP(COLUMNS($G:AW)/3,0))","v":0},{"$f":"INDIRECT(\"G\"&ROW($G$87)+ROUNDUP(COLUMNS($G:AX)/3,0))","v":0},null,{"$f":"INDIRECT(\"F\"&ROW($G$87)+ROUNDUP(COLUMNS($G:AZ)/3,0))","v":0},{"$f":"INDIRECT(\"G\"&ROW($G$87)+ROUNDUP(COLUMNS($G:BA)/3,0))","v":0},null,{"$f":"INDIRECT(\"F\"&ROW($G$87)+ROUNDUP(COLUMNS($G:BC)/3,0))","v":0},{"$f":"INDIRECT(\"G\"&ROW($G$87)+ROUNDUP(COLUMNS($G:BD)/3,0))","v":0},null,{"$f":"INDIRECT(\"F\"&ROW($G$87)+ROUNDUP(COLUMNS($G:BF)/3,0))","v":0},{"$f":"INDIRECT(\"G\"&ROW($G$87)+ROUNDUP(COLUMNS($G:BG)/3,0))","v":0},null,{"$f":"INDIRECT(\"F\"&ROW($G$87)+ROUNDUP(COLUMNS($G:BI)/3,0))","v":0},{"$f":"INDIRECT(\"G\"&ROW($G$87)+ROUNDUP(COLUMNS($G:BJ)/3,0))","v":0},null,{"$f":"INDIRECT(\"F\"&ROW($G$87)+ROUNDUP(COLUMNS($G:BL)/3,0))","v":0},{"$f":"INDIRECT(\"G\"&ROW($G$87)+ROUNDUP(COLUMNS($G:BM)/3,0))","v":0},null,{"$f":"INDIRECT(\"F\"&ROW($G$87)+ROUNDUP(COLUMNS($G:BO)/3,0))","v":0},{"$f":"INDIRECT(\"G\"&ROW($G$87)+ROUNDUP(COLUMNS($G:BP)/3,0))","v":0},null,{"$f":"INDIRECT(\"F\"&ROW($G$87)+ROUNDUP(COLUMNS($G:BR)/3,0))","v":0},{"$f":"INDIRECT(\"G\"&ROW($G$87)+ROUNDUP(COLUMNS($G:BS)/3,0))","v":0},null,{"$f":"INDIRECT(\"F\"&ROW($G$87)+ROUNDUP(COLUMNS($G:BU)/3,0))","v":0},{"$f":"INDIRECT(\"G\"&ROW($G$87)+ROUNDUP(COLUMNS($G:BV)/3,0))","v":0},null,{"$f":"INDIRECT(\"F\"&ROW($G$87)+ROUNDUP(COLUMNS($G:BX)/3,0))","v":0},{"$f":"INDIRECT(\"G\"&ROW($G$87)+ROUNDUP(COLUMNS($G:BY)/3,0))","v":0},null,{"$f":"INDIRECT(\"F\"&ROW($G$87)+ROUNDUP(COLUMNS($G:CA)/3,0))","v":0},{"$f":"INDIRECT(\"G\"&ROW($G$87)+ROUNDUP(COLUMNS($G:CB)/3,0))","v":0},null,{"$f":"INDIRECT(\"F\"&ROW($G$87)+ROUNDUP(COLUMNS($G:CD)/3,0))","v":0},{"$f":"INDIRECT(\"G\"&ROW($G$87)+ROUNDUP(COLUMNS($G:CE)/3,0))","v":0},null,{"$f":"INDIRECT(\"F\"&ROW($G$87)+ROUNDUP(COLUMNS($G:CG)/3,0))","v":0},{"$f":"INDIRECT(\"G\"&ROW($G$87)+ROUNDUP(COLUMNS($G:CH)/3,0))","v":0},null,{"$f":"INDIRECT(\"F\"&ROW($G$87)+ROUNDUP(COLUMNS($G:CJ)/3,0))","v":0},{"$f":"INDIRECT(\"G\"&ROW($G$87)+ROUNDUP(COLUMNS($G:CK)/3,0))","v":0},null,{"$f":"INDIRECT(\"F\"&ROW($G$87)+ROUNDUP(COLUMNS($G:CM)/3,0))","v":0},{"$f":"INDIRECT(\"G\"&ROW($G$87)+ROUNDUP(COLUMNS($G:CN)/3,0))","v":0},null,{"$f":"INDIRECT(\"F\"&ROW($G$87)+ROUNDUP(COLUMNS($G:CP)/3,0))","v":0},{"$f":"INDIRECT(\"G\"&ROW($G$87)+ROUNDUP(COLUMNS($G:CQ)/3,0))","v":0},null,{"$f":"INDIRECT(\"F\"&ROW($G$87)+ROUNDUP(COLUMNS($G:CS)/3,0))","v":0},{"$f":"INDIRECT(\"G\"&ROW($G$87)+ROUNDUP(COLUMNS($G:CT)/3,0))","v":0},null,{"$f":"INDIRECT(\"F\"&ROW($G$87)+ROUNDUP(COLUMNS($G:CV)/3,0))","v":0},{"$f":"INDIRECT(\"G\"&ROW($G$87)+ROUNDUP(COLUMNS($G:CW)/3,0))","v":0},null,{"$f":"INDIRECT(\"F\"&ROW($G$87)+ROUNDUP(COLUMNS($G:CY)/3,0))","v":0},{"$f":"INDIRECT(\"G\"&ROW($G$87)+ROUNDUP(COLUMNS($G:CZ)/3,0))","v":0},null,{"$f":"INDIRECT(\"F\"&ROW($G$87)+ROUNDUP(COLUMNS($G:DB)/3,0))","v":0},{"$f":"INDIRECT(\"G\"&ROW($G$87)+ROUNDUP(COLUMNS($G:DC)/3,0))","v":0},null,{"$f":"INDIRECT(\"F\"&ROW($G$87)+ROUNDUP(COLUMNS($G:DE)/3,0))","v":0},{"$f":"INDIRECT(\"G\"&ROW($G$87)+ROUNDUP(COLUMNS($G:DF)/3,0))","v":0},null,{"$f":"INDIRECT(\"F\"&ROW($G$87)+ROUNDUP(COLUMNS($G:DH)/3,0))","v":0},{"$f":"INDIRECT(\"G\"&ROW($G$87)+ROUNDUP(COLUMNS($G:DI)/3,0))","v":0},null,{"$f":"INDIRECT(\"F\"&ROW($G$87)+ROUNDUP(COLUMNS($G:DK)/3,0))","v":0},{"$f":"INDIRECT(\"G\"&ROW($G$87)+ROUNDUP(COLUMNS($G:DL)/3,0))","v":0},null,{"$f":"INDIRECT(\"F\"&ROW($G$87)+ROUNDUP(COLUMNS($G:DN)/3,0))","v":0},{"$f":"INDIRECT(\"G\"&ROW($G$87)+ROUNDUP(COLUMNS($G:DO)/3,0))","v":0},null,{"$f":"INDIRECT(\"F\"&ROW($G$87)+ROUNDUP(COLUMNS($G:DQ)/3,0))","v":0},{"$f":"INDIRECT(\"G\"&ROW($G$87)+ROUNDUP(COLUMNS($G:DR)/3,0))","v":0},null,{"$f":"INDIRECT(\"F\"&ROW($G$87)+ROUNDUP(COLUMNS($G:DT)/3,0))","v":0},{"$f":"INDIRECT(\"G\"&ROW($G$87)+ROUNDUP(COLUMNS($G:DU)/3,0))","v":0},null,{"$f":"INDIRECT(\"F\"&ROW($G$87)+ROUNDUP(COLUMNS($G:DW)/3,0))","v":0},{"$f":"INDIRECT(\"G\"&ROW($G$87)+ROUNDUP(COLUMNS($G:DX)/3,0))","v":0},null,{"$f":"INDIRECT(\"F\"&ROW($G$87)+ROUNDUP(COLUMNS($G:DZ)/3,0))","v":0},{"$f":"INDIRECT(\"G\"&ROW($G$87)+ROUNDUP(COLUMNS($G:EA)/3,0))","v":0},null,{"$f":"INDIRECT(\"F\"&ROW($G$87)+ROUNDUP(COLUMNS($G:EC)/3,0))","v":0},{"$f":"INDIRECT(\"G\"&ROW($G$87)+ROUNDUP(COLUMNS($G:ED)/3,0))","v":0},null,{"$f":"INDIRECT(\"F\"&ROW($G$87)+ROUNDUP(COLUMNS($G:EF)/3,0))","v":0},{"$f":"INDIRECT(\"G\"&ROW($G$87)+ROUNDUP(COLUMNS($G:EG)/3,0))","v":0},null,{"$f":"INDIRECT(\"F\"&ROW($G$87)+ROUNDUP(COLUMNS($G:EI)/3,0))","v":0},{"$f":"INDIRECT(\"G\"&ROW($G$87)+ROUNDUP(COLUMNS($G:EJ)/3,0))","v":0},null,{"$f":"INDIRECT(\"F\"&ROW($G$87)+ROUNDUP(COLUMNS($G:EL)/3,0))","v":0},{"$f":"INDIRECT(\"G\"&ROW($G$87)+ROUNDUP(COLUMNS($G:EM)/3,0))","v":0},null,{"$f":"INDIRECT(\"F\"&ROW($G$87)+ROUNDUP(COLUMNS($G:EO)/3,0))","v":0},{"$f":"INDIRECT(\"G\"&ROW($G$87)+ROUNDUP(COLUMNS($G:EP)/3,0))","v":0},null,{"$f":"INDIRECT(\"F\"&ROW($G$87)+ROUNDUP(COLUMNS($G:ER)/3,0))","v":0},{"$f":"INDIRECT(\"G\"&ROW($G$87)+ROUNDUP(COLUMNS($G:ES)/3,0))","v":0},null,{"$f":"EU81+EV81","v":0}]
["เวลากลับถึงสำนักงานเช็คของเสีย",null,null,{"$f":"D139","v":"00:00:00"},null,"ผลต่าง",{"$f":"G82+H82+G80-G9","v":0},null,null,{"$f":"J82+K82+J80-J9","v":0},null,null,{"$f":"M82+N82+M80-M9","v":0},null,null,{"$f":"P82+Q82+P80-P9","v":0},null,null,{"$f":"S82+T82+S80-S9","v":0},null,null,{"$f":"V82+W82+V80-V9","v":0},null,null,{"$f":"Y82+Z82+Y80-Y9","v":0},null,null,{"$f":"AB82+AC82+AB80-AB9","v":0},null,null,{"$f":"AE82+AF82+AE80-AE9","v":0},null,null,{"$f":"AH82+AI82+AH80-AH9","v":0},null,null,{"$f":"AK82+AL82+AK80-AK9","v":0},null,null,{"$f":"AN82+AO82+AN80-AN9","v":0},null,null,{"$f":"AQ82+AR82+AQ80-AQ9","v":0},null,null,{"$f":"AT82+AU82+AT80-AT9","v":0},null,null,{"$f":"AW82+AX82+AW80-AW9","v":0},null,null,{"$f":"AZ82+BA82+AZ80-AZ9","v":0},null,null,{"$f":"BC82+BD82+BC80-BC9","v":0},null,null,{"$f":"BF82+BG82+BF80-BF9","v":0},null,null,{"$f":"BI82+BJ82+BI80-BI9","v":0},null,null,{"$f":"BL82+BM82+BL80-BL9","v":0},null,null,{"$f":"BO82+BP82+BO80-BO9","v":0},null,null,{"$f":"BR82+BS82+BR80-BR9","v":0},null,null,{"$f":"BU82+BV82+BU80-BU9","v":0},null,null,{"$f":"BX82+BY82+BX80-BX9","v":0},null,null,{"$f":"CA82+CB82+CA80-CA9","v":0},null,null,{"$f":"CD82+CE82+CD80-CD9","v":0},null,null,{"$f":"CG82+CH82+CG80-CG9","v":0},null,null,{"$f":"CJ82+CK82+CJ80-CJ9","v":0},null,null,{"$f":"CM82+CN82+CM80-CM9","v":0},null,null,{"$f":"CP82+CQ82+CP80-CP9","v":0},null,null,{"$f":"CS82+CT82+CS80-CS9","v":0},null,null,{"$f":"CV82+CW82+CV80-CV9","v":0},null,null,{"$f":"CY82+CZ82+CY80-CY9","v":0},null,null,{"$f":"DB82+DC82+DB80-DB9","v":0},null,null,{"$f":"DE82+DF82+DE80-DE9","v":0},null,null,{"$f":"DH82+DI82+DH80-DH9","v":0},null,null,{"$f":"DK82+DL82+DK80-DK9","v":0},null,null,{"$f":"DN82+DO82+DN80-DN9","v":0},null,null,{"$f":"DQ82+DR82+DQ80-DQ9","v":0},null,null,{"$f":"DT82+DU82+DT80-DT9","v":0},null,null,{"$f":"DW82+DX82+DW80-DW9","v":0},null,null,{"$f":"DZ82+EA82+DZ80-DZ9","v":0},null,null,{"$f":"EC82+ED82+EC80-EC9","v":0},null,null,{"$f":"EF82+EG82+EF80-EF9","v":0},null,null,{"$f":"EI82+EJ82+EI80-EI9","v":0},null,null,{"$f":"EL82+EM82+EL80-EL9","v":0},null,null,{"$f":"EO82+EP82+EO80-EO9","v":0},null,null,{"$f":"ER82+ES82+ER80-ER9","v":0}]
["เป็นเงิน",null,null,null,null,null,{"$f":"G8*G83","v":0},null,null,{"$f":"J8*J83","v":0},null,null,{"$f":"M8*M83","v":0},null,null,{"$f":"P8*P83","v":0},null,null,{"$f":"S8*S83","v":0},null,null,{"$f":"V8*V83","v":0},null,null,{"$f":"Y8*Y83","v":0},null,null,{"$f":"AB8*AB83","v":0},null,null,{"$f":"AE8*AE83","v":0},null,null,{"$f":"AH8*AH83","v":0},null,null,{"$f":"AK8*AK83","v":0},null,null,{"$f":"AN8*AN83","v":0},null,null,{"$f":"AQ8*AQ83","v":0},null,null,{"$f":"AT8*AT83","v":0},null,null,{"$f":"AW8*AW83","v":0},null,null,{"$f":"AZ8*AZ83","v":0},null,null,{"$f":"BC8*BC83","v":0},null,null,{"$f":"BF8*BF83","v":0},null,null,{"$f":"BI8*BI83","v":0},null,null,{"$f":"BL8*BL83","v":0},null,null,{"$f":"BO8*BO83","v":0},null,null,{"$f":"BR8*BR83","v":0},null,null,{"$f":"BU8*BU83","v":0},null,null,{"$f":"BX8*BX83","v":0},null,null,{"$f":"CA8*CA83","v":0},null,null,{"$f":"CD8*CD83","v":0},null,null,{"$f":"CG8*CG83","v":0},null,null,{"$f":"CJ8*CJ83","v":0},null,null,{"$f":"CM8*CM83","v":0},null,null,{"$f":"CP8*CP83","v":0},null,null,{"$f":"CS8*CS83","v":0},null,null,{"$f":"CV8*CV83","v":0},null,null,{"$f":"CY8*CY83","v":0},null,null,{"$f":"DB8*DB83","v":0},null,null,{"$f":"DE8*DE83","v":0},null,null,{"$f":"DH8*DH83","v":0},null,null,{"$f":"DK8*DK83","v":0},null,null,{"$f":"DN8*DN83","v":0},null,null,{"$f":"DQ8*DQ83","v":0},null,null,{"$f":"DT8*DT83","v":0},null,null,{"$f":"DW8*DW83","v":0},null,null,0,null,null,{"$f":"EC8*EC83","v":0},null,null,{"$f":"EF8*EF83","v":0},null,null,{"$f":"EI8*EI83","v":0},null,null,{"$f":"EL8*EL83","v":0},null,null,{"$f":"EO8*EO83","v":0},null,null,{"$f":"ER8*ER83","v":0},null,null,{"$f":"$AP$98","v":0}]
[null,null,null,"ผู้จัดทำ……………………………………………………………………",null,null,null,null,null,null,null,null,null,null,null,null,null,null,null,null,null,null,null,"ผู้ตรวจ(ผจก.)………………………………………………………………………………."]
[null,null,"ใบจ่ายสินค้า",null,null,null,null,null,null,null,null,null,null,null,null,null,null,{"$f":"IF(ISODD(COLUMN()),MAX($F$86:Q$86)+1,\"\")","v":""}]
["ราคา","ลำดับ","รายการ","ยกมา","เบิก","เหลือ","เสีย","โอนเข้า","โอนออก","ชำรุด","รวม",null,"ขาย",null,"ขาด/เกิน",null,"บาท",null,null,null,"ขายได้",null,"ควรเบิก",null,"หมายเหตุ",null,null,null,"เสีย PDA","เสียจริง","เหลือ PDA","ผลต่าง","เหลือลูกค้า","หมายเหตุ",null,null,null,null,"Price","Quantity","Baht","Deduct"]
[{"$f":"IF(B88=\"\",0,INDEX(Price_List,ROWS($88:88)))","v":20},{"$f":"IF($C88=\"\",\"\",COUNTA($C$88:$C88))","v":1},{"$f":"IF(INDEX(INDIRECT(\"Product_List\"),ROWS($88:88))=\"\",\"\",INDEX(INDIRECT(\"Product_List\"),ROWS($88:88)))","v":"01-ขนมปังหมูหยองน้ำสลัด"},{"$f":"ยอดยกมา","v":0},null,null,null,null,null,null,{"$f":"D88+E88+J88-I88+H88","v":0},null,{"$f":"INDIRECT(ADDRESS(ROW(A$80),ROW()-ROW(A$80)+(ROWS($88:88)-1)*2-1,4))","v":0},null,{"$f":"F88+G88+M88+J88-K88","v":0},null,{"$f":"O88*A88","v":0},null,null,null,{"$f":"D88+E88-F88-G88","v":0},null,{"$f":"U88*6%+U88","v":0},null,null,null,null,null,{"$f":"INDIRECT(ADDRESS(ROW(A$80),ROW()-ROW(A$80)+(ROWS($88:88)-1)*2,4))","v":0},{"$f":"$G88","v":0},null,{"$f":"$F88-$AE88","v":0},{"$f":"INDIRECT(ADDRESS(ROW(A$80),ROW()-ROW(A$80)+(ROWS($88:88)-1)*2+1,4))","v":0},null,null,null,null,null,10,{"$f":"SUMPRODUCT(($A$88:$A$135=$AM88)*(($F$88:$F$135)+($G$88:$G$135)+($M$88:$M$135)+($J$88:$J$135)-($K$88:$K$135)))","v":0},{"$f":"AM88*AN88","v":0},{"$f":"IF(AO88<0,AO88,0)","v":0}]
[{"$f":"IF(B89=\"\",0,INDEX(Price_List,ROWS($88:89)))","v":20},{"$f":"IF($C89=\"\",\"\",COUNTA($C$88:$C89))","v":2},{"$f":"IF(INDEX(INDIRECT(\"Product_List\"),ROWS($88:89))=\"\",\"\",INDEX(INDIRECT(\"Product_List\"),ROWS($88:89)))","v":"02-ขนมปังหมูหยองน้ำพริกเผา"},{"$f":"ยอดยกมา","v":0},null,null,null,null,null,null,{"$f":"D89+E89+J89-I89+H89","v":0},null,{"$f":"INDIRECT(ADDRESS(ROW(A$80),ROW()-ROW(A$80)+(ROWS($88:89)-1)*2-1,4))","v":0},null,{"$f":"F89+G89+M89+J89-K89","v":0},null,{"$f":"O89*A89","v":0},null,null,null,{"$f":"D89+E89-F89-G89","v":0},null,{"$f":"U89*6%+U89","v":0},null,null,null,null,null,{"$f":"INDIRECT(ADDRESS(ROW(A$80),ROW()-ROW(A$80)+(ROWS($88:89)-1)*2,4))","v":0},{"$f":"$G89","v":0},null,{"$f":"$F89-$AE89","v":0},{"$f":"INDIRECT(ADDRESS(ROW(A$80),ROW()-ROW(A$80)+(ROWS($88:89)-1)*2+1,4))","v":0},null,null,null,null,null,12,0,{"$f":"AM89*AN89","v":0},{"$f":"IF(AO89<0,AO89,0)","v":0}]
[{"$f":"IF(B90=\"\",0,INDEX(Price_List,ROWS($88:90)))","v":20},{"$f":"IF($C90=\"\",\"\",COUNTA($C$88:$C90))","v":3},{"$f":"IF(INDEX(INDIRECT(\"Product_List\"),ROWS($88:90))=\"\",\"\",INDEX(INDIRECT(\"Product_List\"),ROWS($88:90)))","v":"03-ขนมปังไก่หยองน้ำสลัด"},{"$f":"ยอดยกมา","v":0},null,null,null,null,null,null,0,null,{"$f":"INDIRECT(ADDRESS(ROW(A$80),ROW()-ROW(A$80)+(ROWS($88:90)-1)*2-1,4))","v":0},null,0,null,0,null,null,null,0,null,0,null,null,null,null,null,{"$f":"INDIRECT(ADDRESS(ROW(A$80),ROW()-ROW(A$80)+(ROWS($88:90)-1)*2,4))","v":0},0,null,0,{"$f":"INDIRECT(ADDRESS(ROW(A$80),ROW()-ROW(A$80)+(ROWS($88:90)-1)*2+1,4))","v":0},null,null,null,null,null,13,0,0,0]
[{"$f":"IF(B91=\"\",0,INDEX(Price_List,ROWS($88:91)))","v":15},{"$f":"IF($C91=\"\",\"\",COUNTA($C$88:$C91))","v":4},{"$f":"IF(INDEX(INDIRECT(\"Product_List\"),ROWS($88:91))=\"\",\"\",INDEX(INDIRECT(\"Product_List\"),ROWS($88:91)))","v":"04-ขนมปังไส้ครีมสลัด"},{"$f":"ยอดยกมา","v":0},null,null,null,null,null,null,0,null,{"$f":"INDIRECT(ADDRESS(ROW(A$80),ROW()-ROW(A$80)+(ROWS($88:91)-1)*2-1,4))","v":0},null,{"$f":"F91+G91+M91+J91-K91","v":0},null,0,null,null,null,0,null,0,null,null,null,null,null,{"$f":"INDIRECT(ADDRESS(ROW(A$80),ROW()-ROW(A$80)+(ROWS($88:91)-1)*2,4))","v":0},0,null,0,{"$f":"INDIRECT(ADDRESS(ROW(A$80),ROW()-ROW(A$80)+(ROWS($88:91)-1)*2+1,4))","v":0},null,null,null,null,null,15,0,0,0]
[{"$f":"IF(B92=\"\",0,INDEX(Price_List,ROWS($88:92)))","v":15},{"$f":"IF($C92=\"\",\"\",COUNTA($C$88:$C92))","v":5},{"$f":"IF(INDEX(INDIRECT(\"Product_List\"),ROWS($88:92))=\"\",\"\",INDEX(INDIRECT(\"Product_List\"),ROWS($88:92)))","v":"05-ขนมปังเนยสด"},{"$f":"ยอดยกมา","v":0},null,null,null,null,null,null,0,null,{"$f":"INDIRECT(ADDRESS(ROW(A$80),ROW()-ROW(A$80)+(ROWS($88:92)-1)*2-1,4))","v":0},null,0,null,0,null,null,null,0,null,0,null,null,null,null,null,{"$f":"INDIRECT(ADDRESS(ROW(A$80),ROW()-ROW(A$80)+(ROWS($88:92)-1)*2,4))","v":0},0,null,0,{"$f":"INDIRECT(ADDRESS(ROW(A$80),ROW()-ROW(A$80)+(ROWS($88:92)-1)*2+1,4))","v":0},null,null,null,null,null,16,0,0,0]
[{"$f":"IF(B93=\"\",0,INDEX(Price_List,ROWS($88:93)))","v":10},{"$f":"IF($C93=\"\",\"\",COUNTA($C$88:$C93))","v":6},{"$f":"IF(INDEX(INDIRECT(\"Product_List\"),ROWS($88:93))=\"\",\"\",INDEX(INDIRECT(\"Product_List\"),ROWS($88:93)))","v":"06-ขนมปังไส้สังขยาเล็ก"},{"$f":"ยอดยกมา","v":0},null,null,null,null,null,null,0,null,{"$f":"INDIRECT(ADDRESS(ROW(A$80),ROW()-ROW(A$80)+(ROWS($88:93)-1)*2-1,4))","v":0},null,0,null,0,null,null,null,0,null,0,null,null,null,null,null,{"$f":"INDIRECT(ADDRESS(ROW(A$80),ROW()-ROW(A$80)+(ROWS($88:93)-1)*2,4))","v":0},0,null,0,{"$f":"INDIRECT(ADDRESS(ROW(A$80),ROW()-ROW(A$80)+(ROWS($88:93)-1)*2+1,4))","v":0},null,null,null,null,null,18,0,0,0]
[{"$f":"IF(B94=\"\",0,INDEX(Price_List,ROWS($88:94)))","v":10},{"$f":"IF($C94=\"\",\"\",COUNTA($C$88:$C94))","v":7},{"$f":"IF(INDEX(INDIRECT(\"Product_List\"),ROWS($88:94))=\"\",\"\",INDEX(INDIRECT(\"Product_List\"),ROWS($88:94)))","v":"07-ขนมปังไส้เผือก"},{"$f":"ยอดยกมา","v":0},null,null,null,null,null,null,0,null,{"$f":"INDIRECT(ADDRESS(ROW(A$80),ROW()-ROW(A$80)+(ROWS($88:94)-1)*2-1,4))","v":0},null,0,null,0,null,null,null,0,null,0,null,null,null,null,null,{"$f":"INDIRECT(ADDRESS(ROW(A$80),ROW()-ROW(A$80)+(ROWS($88:94)-1)*2,4))","v":0},0,null,0,{"$f":"INDIRECT(ADDRESS(ROW(A$80),ROW()-ROW(A$80)+(ROWS($88:94)-1)*2+1,4))","v":0},null,null,null,null,null,20,0,0,0]
[{"$f":"IF(B95=\"\",0,INDEX(Price_List,ROWS($88:95)))","v":10},{"$f":"IF($C95=\"\",\"\",COUNTA($C$88:$C95))","v":8},{"$f":"IF(INDEX(INDIRECT(\"Product_List\"),ROWS($88:95))=\"\",\"\",INDEX(INDIRECT(\"Product_List\"),ROWS($88:95)))","v":"08-ขนมปังไส้ถั่วแดง"},{"$f":"ยอดยกมา","v":0},null,null,null,null,null,null,0,null,{"$f":"INDIRECT(ADDRESS(ROW(A$80),ROW()-ROW(A$80)+(ROWS($88:95)-1)*2-1,4))","v":0},null,0,null,0,null,null,null,0,null,0,null,null,null,null,null,{"$f":"INDIRECT(ADDRESS(ROW(A$80),ROW()-ROW(A$80)+(ROWS($88:95)-1)*2,4))","v":0},0,null,0,{"$f":"INDIRECT(ADDRESS(ROW(A$80),ROW()-ROW(A$80)+(ROWS($88:95)-1)*2+1,4))","v":0},null,null,null,null,null,22,0,0,0]
[{"$f":"IF(B96=\"\",0,INDEX(Price_List,ROWS($88:96)))","v":10},{"$f":"IF($C96=\"\",\"\",COUNTA($C$88:$C96))","v":9},{"$f":"IF(INDEX(INDIRECT(\"Product_List\"),ROWS($88:96))=\"\",\"\",INDEX(INDIRECT(\"Product_List\"),ROWS($88:96)))","v":"09-ขนมปังไส้ถั่วดำ"},{"$f":"ยอดยกมา","v":0},null,null,null,null,null,null,0,null,{"$f":"INDIRECT(ADDRESS(ROW(A$80),ROW()-ROW(A$80)+(ROWS($88:96)-1)*2-1,4))","v":0},null,0,null,0,null,null,null,0,null,0,null,null,null,null,null,{"$f":"INDIRECT(ADDRESS(ROW(A$80),ROW()-ROW(A$80)+(ROWS($88:96)-1)*2,4))","v":0},0,null,0,{"$f":"INDIRECT(ADDRESS(ROW(A$80),ROW()-ROW(A$80)+(ROWS($88:96)-1)*2+1,4))","v":0},null,null,null,null,null,25,0,0,0]
[{"$f":"IF(B97=\"\",0,INDEX(Price_List,ROWS($88:97)))","v":10},{"$f":"IF($C97=\"\",\"\",COUNTA($C$88:$C97))","v":10},{"$f":"IF(INDEX(INDIRECT(\"Product_List\"),ROWS($88:97))=\"\",\"\",INDEX(INDIRECT(\"Product_List\"),ROWS($88:97)))","v":"10-ขนมปังไส้มันม่วง"},{"$f":"ยอดยกมา","v":0},null,null,null,null,null,null,0,null,{"$f":"INDIRECT(ADDRESS(ROW(A$80),ROW()-ROW(A$80)+(ROWS($88:97)-1)*2-1,4))","v":0},null,0,null,0,null,null,null,0,null,0,null,null,null,null,null,{"$f":"INDIRECT(ADDRESS(ROW(A$80),ROW()-ROW(A$80)+(ROWS($88:97)-1)*2,4))","v":0},0,null,0,{"$f":"INDIRECT(ADDRESS(ROW(A$80),ROW()-ROW(A$80)+(ROWS($88:97)-1)*2+1,4))","v":0},null,null,null,null,null,42,0,0,0]
[{"$f":"IF(B98=\"\",0,INDEX(Price_List,ROWS($88:98)))","v":15},{"$f":"IF($C98=\"\",\"\",COUNTA($C$88:$C98))","v":11},{"$f":"IF(INDEX(INDIRECT(\"Product_List\"),ROWS($88:98))=\"\",\"\",INDEX(INDIRECT(\"Product_List\"),ROWS($88:98)))","v":"11-เค้กกล้วยหอม"},{"$f":"ยอดยกมา","v":0},null,null,null,null,null,null,0,null,{"$f":"INDIRECT(ADDRESS(ROW(A$80),ROW()-ROW(A$80)+(ROWS($88:98)-1)*2-1,4))","v":0},null,0,null,0,null,null,null,0,null,0,null,null,null,null,null,{"$f":"INDIRECT(ADDRESS(ROW(A$80),ROW()-ROW(A$80)+(ROWS($88:98)-1)*2,4))","v":0},0,null,0,{"$f":"INDIRECT(ADDRESS(ROW(A$80),ROW()-ROW(A$80)+(ROWS($88:98)-1)*2+1,4))","v":0},null,null,null,null,null,"Total Deduct",null,null,{"$f":"SUM($AP$88:$AP$97)","v":0}]
[{"$f":"IF(B99=\"\",0,INDEX(Price_List,ROWS($88:99)))","v":15},{"$f":"IF($C99=\"\",\"\",COUNTA($C$88:$C99))","v":12},{"$f":"IF(INDEX(INDIRECT(\"Product_List\"),ROWS($88:99))=\"\",\"\",INDEX(INDIRECT(\"Product_List\"),ROWS($88:99)))","v":"12-เค้กบัตเตอร์"},{"$f":"ยอดยกมา","v":0},null,null,null,null,null,null,0,null,{"$f":"INDIRECT(ADDRESS(ROW(A$80),ROW()-ROW(A$80)+(ROWS($88:99)-1)*2-1,4))","v":0},null,0,null,0,null,null,null,0,null,0,null,null,null,null,null,{"$f":"INDIRECT(ADDRESS(ROW(A$80),ROW()-ROW(A$80)+(ROWS($88:99)-1)*2,4))","v":0},0,null,0,{"$f":"INDIRECT(ADDRESS(ROW(A$80),ROW()-ROW(A$80)+(ROWS($88:99)-1)*2+1,4))","v":0}]
[{"$f":"IF(B100=\"\",0,INDEX(Price_List,ROWS($88:100)))","v":15},{"$f":"IF($C100=\"\",\"\",COUNTA($C$88:$C100))","v":13},{"$f":"IF(INDEX(INDIRECT(\"Product_List\"),ROWS($88:100))=\"\",\"\",INDEX(INDIRECT(\"Product_List\"),ROWS($88:100)))","v":"13-ขนมปังโรลถั่วแดง"},{"$f":"ยอดยกมา","v":0},null,null,null,null,null,null,0,null,{"$f":"INDIRECT(ADDRESS(ROW(A$80),ROW()-ROW(A$80)+(ROWS($88:100)-1)*2-1,4))","v":0},null,0,null,0,null,null,null,0,null,0,null,null,null,null,null,{"$f":"INDIRECT(ADDRESS(ROW(A$80),ROW()-ROW(A$80)+(ROWS($88:100)-1)*2,4))","v":0},0,null,0,{"$f":"INDIRECT(ADDRESS(ROW(A$80),ROW()-ROW(A$80)+(ROWS($88:100)-1)*2+1,4))","v":0}]
[{"$f":"IF(B101=\"\",0,INDEX(Price_List,ROWS($88:101)))","v":15},{"$f":"IF($C101=\"\",\"\",COUNTA($C$88:$C101))","v":14},{"$f":"IF(INDEX(INDIRECT(\"Product_List\"),ROWS($88:101))=\"\",\"\",INDEX(INDIRECT(\"Product_List\"),ROWS($88:101)))","v":"14-ขนมปังไส้สังขยาใหญ่"},{"$f":"ยอดยกมา","v":0},null,null,null,null,null,null,0,null,{"$f":"INDIRECT(ADDRESS(ROW(A$80),ROW()-ROW(A$80)+(ROWS($88:101)-1)*2-1,4))","v":0},null,0,null,0,null,null,null,0,null,0,null,null,null,null,null,{"$f":"INDIRECT(ADDRESS(ROW(A$80),ROW()-ROW(A$80)+(ROWS($88:101)-1)*2,4))","v":0},0,null,0,{"$f":"INDIRECT(ADDRESS(ROW(A$80),ROW()-ROW(A$80)+(ROWS($88:101)-1)*2+1,4))","v":0}]
[{"$f":"IF(B102=\"\",0,INDEX(Price_List,ROWS($88:102)))","v":42},{"$f":"IF($C102=\"\",\"\",COUNTA($C$88:$C102))","v":15},{"$f":"IF(INDEX(INDIRECT(\"Product_List\"),ROWS($88:102))=\"\",\"\",INDEX(INDIRECT(\"Product_List\"),ROWS($88:102)))","v":"15-ขนมปังชนิดแผ่น(480กรัม)"},{"$f":"ยอดยกมา","v":0},null,null,null,null,null,null,0,null,{"$f":"INDIRECT(ADDRESS(ROW(A$80),ROW()-ROW(A$80)+(ROWS($88:102)-1)*2-1,4))","v":0},null,0,null,0,null,null,null,0,null,0,null,null,null,null,null,{"$f":"INDIRECT(ADDRESS(ROW(A$80),ROW()-ROW(A$80)+(ROWS($88:102)-1)*2,4))","v":0},0,null,0,{"$f":"INDIRECT(ADDRESS(ROW(A$80),ROW()-ROW(A$80)+(ROWS($88:102)-1)*2+1,4))","v":0}]
[{"$f":"IF(B103=\"\",0,INDEX(Price_List,ROWS($88:103)))","v":12},{"$f":"IF($C103=\"\",\"\",COUNTA($C$88:$C103))","v":16},{"$f":"IF(INDEX(INDIRECT(\"Product_List\"),ROWS($88:103))=\"\",\"\",INDEX(INDIRECT(\"Product_List\"),ROWS($88:103)))","v":"16-โมจิไส้ถั่ว"},{"$f":"ยอดยกมา","v":0},null,null,null,null,null,null,0,null,{"$f":"INDIRECT(ADDRESS(ROW(A$80),ROW()-ROW(A$80)+(ROWS($88:103)-1)*2-1,4))","v":0},null,0,null,0,null,null,null,0,null,0,null,null,null,null,null,{"$f":"INDIRECT(ADDRESS(ROW(A$80),ROW()-ROW(A$80)+(ROWS($88:103)-1)*2,4))","v":0},0,null,0,{"$f":"INDIRECT(ADDRESS(ROW(A$80),ROW()-ROW(A$80)+(ROWS($88:103)-1)*2+1,4))","v":0}]
[{"$f":"IF(B104=\"\",0,INDEX(Price_List,ROWS($88:104)))","v":12},{"$f":"IF($C104=\"\",\"\",COUNTA($C$88:$C104))","v":17},{"$f":"IF(INDEX(INDIRECT(\"Product_List\"),ROWS($88:104))=\"\",\"\",INDEX(INDIRECT(\"Product_List\"),ROWS($88:104)))","v":"17-โมจิไส้เผือก"},{"$f":"ยอดยกมา","v":0},null,null,null,null,null,null,0,null,{"$f":"INDIRECT(ADDRESS(ROW(A$80),ROW()-ROW(A$80)+(ROWS($88:104)-1)*2-1,4))","v":0},null,0,null,0,null,null,null,0,null,0,null,null,null,null,null,{"$f":"INDIRECT(ADDRESS(ROW(A$80),ROW()-ROW(A$80)+(ROWS($88:104)-1)*2,4))","v":0},0,null,0,{"$f":"INDIRECT(ADDRESS(ROW(A$80),ROW()-ROW(A$80)+(ROWS($88:104)-1)*2+1,4))","v":0}]
[{"$f":"IF(B105=\"\",0,INDEX(Price_List,ROWS($88:105)))","v":15},{"$f":"IF($C105=\"\",\"\",COUNTA($C$88:$C105))","v":18},{"$f":"IF(INDEX(INDIRECT(\"Product_List\"),ROWS($88:105))=\"\",\"\",INDEX(INDIRECT(\"Product_List\"),ROWS($88:105)))","v":"18-โมจิไส้ถั่วไข่เค็ม"},{"$f":"ยอดยกมา","v":0},null,null,null,null,null,null,0,null,{"$f":"INDIRECT(ADDRESS(ROW(A$80),ROW()-ROW(A$80)+(ROWS($88:105)-1)*2-1,4))","v":0},null,0,null,0,null,null,null,0,null,0,null,null,null,null,null,{"$f":"INDIRECT(ADDRESS(ROW(A$80),ROW()-ROW(A$80)+(ROWS($88:105)-1)*2,4))","v":0},0,null,0,{"$f":"INDIRECT(ADDRESS(ROW(A$80),ROW()-ROW(A$80)+(ROWS($88:105)-1)*2+1,4))","v":0}]
[{"$f":"IF(B106=\"\",0,INDEX(Price_List,ROWS($88:106)))","v":20},{"$f":"IF($C106=\"\",\"\",COUNTA($C$88:$C106))","v":19},{"$f":"IF(INDEX(INDIRECT(\"Product_List\"),ROWS($88:106))=\"\",\"\",INDEX(INDIRECT(\"Product_List\"),ROWS($88:106)))","v":"19-ขนมปังพิซซ่า"},{"$f":"ยอดยกมา","v":0},null,null,null,null,null,null,0,null,{"$f":"INDIRECT(ADDRESS(ROW(A$80),ROW()-ROW(A$80)+(ROWS($88:106)-1)*2-1,4))","v":0},null,0,null,0,null,null,null,0,null,0,null,null,null,null,null,{"$f":"INDIRECT(ADDRESS(ROW(A$80),ROW()-ROW(A$80)+(ROWS($88:106)-1)*2,4))","v":0},0,null,0,{"$f":"INDIRECT(ADDRESS(ROW(A$80),ROW()-ROW(A$80)+(ROWS($88:106)-1)*2+1,4))","v":0}]
[{"$f":"IF(B107=\"\",0,INDEX(Price_List,ROWS($88:107)))","v":20},{"$f":"IF($C107=\"\",\"\",COUNTA($C$88:$C107))","v":20},{"$f":"IF(INDEX(INDIRECT(\"Product_List\"),ROWS($88:107))=\"\",\"\",INDEX(INDIRECT(\"Product_List\"),ROWS($88:107)))","v":"20-ขนมปังพิซซ่าปูอัดแฮม"},{"$f":"ยอดยกมา","v":0},null,null,null,null,null,null,0,null,{"$f":"INDIRECT(ADDRESS(ROW(A$80),ROW()-ROW(A$80)+(ROWS($88:107)-1)*2-1,4))","v":0},null,0,null,0,null,null,null,0,null,0,null,null,null,null,null,{"$f":"INDIRECT(ADDRESS(ROW(A$80),ROW()-ROW(A$80)+(ROWS($88:107)-1)*2,4))","v":0},0,null,0,{"$f":"INDIRECT(ADDRESS(ROW(A$80),ROW()-ROW(A$80)+(ROWS($88:107)-1)*2+1,4))","v":0}]
[{"$f":"IF(B108=\"\",0,INDEX(Price_List,ROWS($88:108)))","v":20},{"$f":"IF($C108=\"\",\"\",COUNTA($C$88:$C108))","v":21},{"$f":"IF(INDEX(INDIRECT(\"Product_List\"),ROWS($88:108))=\"\",\"\",INDEX(INDIRECT(\"Product_List\"),ROWS($88:108)))","v":"21-ขนมปังไส้กรอก"},{"$f":"ยอดยกมา","v":0},null,null,null,null,null,null,0,null,{"$f":"INDIRECT(ADDRESS(ROW(A$80),ROW()-ROW(A$80)+(ROWS($88:108)-1)*2-1,4))","v":0},null,0,null,0,null,null,null,0,null,0,null,null,null,null,null,{"$f":"INDIRECT(ADDRESS(ROW(A$80),ROW()-ROW(A$80)+(ROWS($88:108)-1)*2,4))","v":0},0,null,0,{"$f":"INDIRECT(ADDRESS(ROW(A$80),ROW()-ROW(A$80)+(ROWS($88:108)-1)*2+1,4))","v":0}]
[{"$f":"IF(B109=\"\",0,INDEX(Price_List,ROWS($88:109)))","v":15},{"$f":"IF($C109=\"\",\"\",COUNTA($C$88:$C109))","v":22},{"$f":"IF(INDEX(INDIRECT(\"Product_List\"),ROWS($88:109))=\"\",\"\",INDEX(INDIRECT(\"Product_List\"),ROWS($88:109)))","v":"22-ขนมก้านบัว"},{"$f":"ยอดยกมา","v":0},null,null,null,null,null,null,0,null,{"$f":"INDIRECT(ADDRESS(ROW(A$80),ROW()-ROW(A$80)+(ROWS($88:109)-1)*2-1,4))","v":0},null,0,null,0,null,null,null,0,null,0,null,null,null,null,null,{"$f":"INDIRECT(ADDRESS(ROW(A$80),ROW()-ROW(A$80)+(ROWS($88:109)-1)*2,4))","v":0},0,null,0,{"$f":"INDIRECT(ADDRESS(ROW(A$80),ROW()-ROW(A$80)+(ROWS($88:109)-1)*2+1,4))","v":0}]
[{"$f":"IF(B110=\"\",0,INDEX(Price_List,ROWS($88:110)))","v":20},{"$f":"IF($C110=\"\",\"\",COUNTA($C$88:$C110))","v":23},{"$f":"IF(INDEX(INDIRECT(\"Product_List\"),ROWS($88:110))=\"\",\"\",INDEX(INDIRECT(\"Product_List\"),ROWS($88:110)))","v":"23-พายสับปะรด"},{"$f":"ยอดยกมา","v":0},null,null,null,null,null,null,0,null,{"$f":"INDIRECT(ADDRESS(ROW(A$80),ROW()-ROW(A$80)+(ROWS($88:110)-1)*2-1,4))","v":0},null,0,null,0,null,null,null,0,null,0,null,null,null,null,null,{"$f":"INDIRECT(ADDRESS(ROW(A$80),ROW()-ROW(A$80)+(ROWS($88:110)-1)*2,4))","v":0},0,null,0,{"$f":"INDIRECT(ADDRESS(ROW(A$80),ROW()-ROW(A$80)+(ROWS($88:110)-1)*2+1,4))","v":0}]
[{"$f":"IF(B111=\"\",0,INDEX(Price_List,ROWS($88:111)))","v":20},{"$f":"IF($C111=\"\",\"\",COUNTA($C$88:$C111))","v":24},{"$f":"IF(INDEX(INDIRECT(\"Product_List\"),ROWS($88:111))=\"\",\"\",INDEX(INDIRECT(\"Product_List\"),ROWS($88:111)))","v":"24-พายไส้มะพร้าว"},{"$f":"ยอดยกมา","v":0},null,null,null,null,null,null,0,null,{"$f":"INDIRECT(ADDRESS(ROW(A$80),ROW()-ROW(A$80)+(ROWS($88:111)-1)*2-1,4))","v":0},null,0,null,0,null,null,null,0,null,0,null,null,null,null,null,{"$f":"INDIRECT(ADDRESS(ROW(A$80),ROW()-ROW(A$80)+(ROWS($88:111)-1)*2,4))","v":0},0,null,0,{"$f":"INDIRECT(ADDRESS(ROW(A$80),ROW()-ROW(A$80)+(ROWS($88:111)-1)*2+1,4))","v":0}]
[{"$f":"IF(B112=\"\",0,INDEX(Price_List,ROWS($88:112)))","v":15},{"$f":"IF($C112=\"\",\"\",COUNTA($C$88:$C112))","v":25},{"$f":"IF(INDEX(INDIRECT(\"Product_List\"),ROWS($88:112))=\"\",\"\",INDEX(INDIRECT(\"Product_List\"),ROWS($88:112)))","v":"25-ขนมปังโรลมันเทศ"},{"$f":"ยอดยกมา","v":0},null,null,null,null,null,null,0,null,{"$f":"INDIRECT(ADDRESS(ROW(A$80),ROW()-ROW(A$80)+(ROWS($88:112)-1)*2-1,4))","v":0},null,0,null,0,null,null,null,0,null,0,null,null,null,null,null,{"$f":"INDIRECT(ADDRESS(ROW(A$80),ROW()-ROW(A$80)+(ROWS($88:112)-1)*2,4))","v":0},0,null,0,{"$f":"INDIRECT(ADDRESS(ROW(A$80),ROW()-ROW(A$80)+(ROWS($88:112)-1)*2+1,4))","v":0}]
[{"$f":"IF(B113=\"\",0,INDEX(Price_List,ROWS($88:113)))","v":15},{"$f":"IF($C113=\"\",\"\",COUNTA($C$88:$C113))","v":26},{"$f":"IF(INDEX(INDIRECT(\"Product_List\"),ROWS($88:113))=\"\",\"\",INDEX(INDIRECT(\"Product_List\"),ROWS($88:113)))","v":"26-ขนมปังไส้ครีมสลัดน้ำพริกเผา"},{"$f":"ยอดยกมา","v":0},null,null,null,null,null,null,0,null,{"$f":"INDIRECT(ADDRESS(ROW(A$80),ROW()-ROW(A$80)+(ROWS($88:113)-1)*2-1,4))","v":0},null,0,null,0,null,null,null,0,null,0,null,null,null,null,null,{"$f":"INDIRECT(ADDRESS(ROW(A$80),ROW()-ROW(A$80)+(ROWS($88:113)-1)*2,4))","v":0},0,null,0,{"$f":"INDIRECT(ADDRESS(ROW(A$80),ROW()-ROW(A$80)+(ROWS($88:113)-1)*2+1,4))","v":0}]
[{"$f":"IF(B114=\"\",0,INDEX(Price_List,ROWS($88:114)))","v":20},{"$f":"IF($C114=\"\",\"\",COUNTA($C$88:$C114))","v":27},{"$f":"IF(INDEX(INDIRECT(\"Product_List\"),ROWS($88:114))=\"\",\"\",INDEX(INDIRECT(\"Product_List\"),ROWS($88:114)))","v":"27-ขนมปังไส้สังขยาไข่"},{"$f":"ยอดยกมา","v":0},null,null,null,null,null,null,0,null,{"$f":"INDIRECT(ADDRESS(ROW(A$80),ROW()-ROW(A$80)+(ROWS($88:114)-1)*2-1,4))","v":0},null,0,null,0,null,null,null,0,null,0,null,null,null,null,null,{"$f":"INDIRECT(ADDRESS(ROW(A$80),ROW()-ROW(A$80)+(ROWS($88:114)-1)*2,4))","v":0},0,null,0,{"$f":"INDIRECT(ADDRESS(ROW(A$80),ROW()-ROW(A$80)+(ROWS($88:114)-1)*2+1,4))","v":0}]
[{"$f":"IF(B115=\"\",0,INDEX(Price_List,ROWS($88:115)))","v":20},{"$f":"IF($C115=\"\",\"\",COUNTA($C$88:$C115))","v":28},{"$f":"IF(INDEX(INDIRECT(\"Product_List\"),ROWS($88:115))=\"\",\"\",INDEX(INDIRECT(\"Product_List\"),ROWS($88:115)))","v":"28-ขนมปังไส้สังขยามะพร้าว"},{"$f":"ยอดยกมา","v":0},null,null,null,null,null,null,0,null,{"$f":"INDIRECT(ADDRESS(ROW(A$80),ROW()-ROW(A$80)+(ROWS($88:115)-1)*2-1,4))","v":0},null,0,null,0,null,null,null,0,null,0,null,null,null,null,null,{"$f":"INDIRECT(ADDRESS(ROW(A$80),ROW()-ROW(A$80)+(ROWS($88:115)-1)*2,4))","v":0},0,null,0,{"$f":"INDIRECT(ADDRESS(ROW(A$80),ROW()-ROW(A$80)+(ROWS($88:115)-1)*2+1,4))","v":0}]
[{"$f":"IF(B116=\"\",0,INDEX(Price_List,ROWS($88:116)))","v":10},{"$f":"IF($C116=\"\",\"\",COUNTA($C$88:$C116))","v":29},{"$f":"IF(INDEX(INDIRECT(\"Product_List\"),ROWS($88:116))=\"\",\"\",INDEX(INDIRECT(\"Product_List\"),ROWS($88:116)))","v":"29-ขนมปังไส้ครีมชาไทย"},{"$f":"ยอดยกมา","v":0},null,null,null,null,null,null,0,null,{"$f":"INDIRECT(ADDRESS(ROW(A$80),ROW()-ROW(A$80)+(ROWS($88:116)-1)*2-1,4))","v":0},null,0,null,0,null,null,null,0,null,0,null,null,null,null,null,{"$f":"INDIRECT(ADDRESS(ROW(A$80),ROW()-ROW(A$80)+(ROWS($88:116)-1)*2,4))","v":0},0,null,0,{"$f":"INDIRECT(ADDRESS(ROW(A$80),ROW()-ROW(A$80)+(ROWS($88:116)-1)*2+1,4))","v":0}]
[{"$f":"IF(B117=\"\",0,INDEX(Price_List,ROWS($88:117)))","v":15},{"$f":"IF($C117=\"\",\"\",COUNTA($C$88:$C117))","v":30},{"$f":"IF(INDEX(INDIRECT(\"Product_List\"),ROWS($88:117))=\"\",\"\",INDEX(INDIRECT(\"Product_List\"),ROWS($88:117)))","v":"30-ขนมปังโรลมันม่วง"},{"$f":"ยอดยกมา","v":0},null,null,null,null,null,null,0,null,{"$f":"INDIRECT(ADDRESS(ROW(A$80),ROW()-ROW(A$80)+(ROWS($88:117)-1)*2-1,4))","v":0},null,0,null,0,null,null,null,0,null,0,null,null,null,null,null,{"$f":"INDIRECT(ADDRESS(ROW(A$80),ROW()-ROW(A$80)+(ROWS($88:117)-1)*2,4))","v":0},0,null,0,{"$f":"INDIRECT(ADDRESS(ROW(A$80),ROW()-ROW(A$80)+(ROWS($88:117)-1)*2+1,4))","v":0}]
[{"$f":"IF(B118=\"\",0,INDEX(Price_List,ROWS($88:118)))","v":15},{"$f":"IF($C118=\"\",\"\",COUNTA($C$88:$C118))","v":31},{"$f":"IF(INDEX(INDIRECT(\"Product_List\"),ROWS($88:118))=\"\",\"\",INDEX(INDIRECT(\"Product_List\"),ROWS($88:118)))","v":"31-ขนมปังโรลช็อกโกแลต"},{"$f":"ยอดยกมา","v":0},null,null,null,null,null,null,0,null,{"$f":"INDIRECT(ADDRESS(ROW(A$80),ROW()-ROW(A$80)+(ROWS($88:118)-1)*2-1,4))","v":0},null,0,null,0,null,null,null,0,null,0,null,null,null,null,null,{"$f":"INDIRECT(ADDRESS(ROW(A$80),ROW()-ROW(A$80)+(ROWS($88:118)-1)*2,4))","v":0},0,null,0,{"$f":"INDIRECT(ADDRESS(ROW(A$80),ROW()-ROW(A$80)+(ROWS($88:118)-1)*2+1,4))","v":0}]
[{"$f":"IF(B119=\"\",0,INDEX(Price_List,ROWS($88:119)))","v":16},{"$f":"IF($C119=\"\",\"\",COUNTA($C$88:$C119))","v":32},{"$f":"IF(INDEX(INDIRECT(\"Product_List\"),ROWS($88:119))=\"\",\"\",INDEX(INDIRECT(\"Product_List\"),ROWS($88:119)))","v":"32-ขนมปังชนิดแผ่น(155กรัม)"},{"$f":"ยอดยกมา","v":0},null,null,null,null,null,null,0,null,{"$f":"INDIRECT(ADDRESS(ROW(A$80),ROW()-ROW(A$80)+(ROWS($88:119)-1)*2-1,4))","v":0},null,0,null,0,null,null,null,0,null,0,null,null,null,null,null,{"$f":"INDIRECT(ADDRESS(ROW(A$80),ROW()-ROW(A$80)+(ROWS($88:119)-1)*2,4))","v":0},0,null,0,{"$f":"INDIRECT(ADDRESS(ROW(A$80),ROW()-ROW(A$80)+(ROWS($88:119)-1)*2+1,4))","v":0}]
[{"$f":"IF(B120=\"\",0,INDEX(Price_List,ROWS($88:120)))","v":15},{"$f":"IF($C120=\"\",\"\",COUNTA($C$88:$C120))","v":33},{"$f":"IF(INDEX(INDIRECT(\"Product_List\"),ROWS($88:120))=\"\",\"\",INDEX(INDIRECT(\"Product_List\"),ROWS($88:120)))","v":"33-ขนมปังโรลเผือก"},{"$f":"ยอดยกมา","v":0},null,null,null,null,null,null,0,null,{"$f":"INDIRECT(ADDRESS(ROW(A$80),ROW()-ROW(A$80)+(ROWS($88:120)-1)*2-1,4))","v":0},null,0,null,0,null,null,null,0,null,0,null,null,null,null,null,{"$f":"INDIRECT(ADDRESS(ROW(A$80),ROW()-ROW(A$80)+(ROWS($88:120)-1)*2,4))","v":0},0,null,0,{"$f":"INDIRECT(ADDRESS(ROW(A$80),ROW()-ROW(A$80)+(ROWS($88:120)-1)*2+1,4))","v":0}]
[{"$f":"IF(B121=\"\",0,INDEX(Price_List,ROWS($88:121)))","v":15},{"$f":"IF($C121=\"\",\"\",COUNTA($C$88:$C121))","v":34},{"$f":"IF(INDEX(INDIRECT(\"Product_List\"),ROWS($88:121))=\"\",\"\",INDEX(INDIRECT(\"Product_List\"),ROWS($88:121)))","v":"34-ขนมปังไก่หยองน้ำสลัด Mini"},{"$f":"ยอดยกมา","v":0},null,null,null,null,null,null,0,null,{"$f":"INDIRECT(ADDRESS(ROW(A$80),ROW()-ROW(A$80)+(ROWS($88:121)-1)*2-1,4))","v":0},null,0,null,0,null,null,null,0,null,0,null,null,null,null,null,{"$f":"INDIRECT(ADDRESS(ROW(A$80),ROW()-ROW(A$80)+(ROWS($88:121)-1)*2,4))","v":0},0,null,0,{"$f":"INDIRECT(ADDRESS(ROW(A$80),ROW()-ROW(A$80)+(ROWS($88:121)-1)*2+1,4))","v":0}]
[{"$f":"IF(B122=\"\",0,INDEX(Price_List,ROWS($88:122)))","v":10},{"$f":"IF($C122=\"\",\"\",COUNTA($C$88:$C122))","v":35},{"$f":"IF(INDEX(INDIRECT(\"Product_List\"),ROWS($88:122))=\"\",\"\",INDEX(INDIRECT(\"Product_List\"),ROWS($88:122)))","v":"35-ขนมปังไส้ช็อกโกแลต"},{"$f":"ยอดยกมา","v":0},null,null,null,null,null,null,0,null,{"$f":"INDIRECT(ADDRESS(ROW(A$80),ROW()-ROW(A$80)+(ROWS($88:122)-1)*2-1,4))","v":0},null,0,null,0,null,null,null,0,null,0,null,null,null,null,null,{"$f":"INDIRECT(ADDRESS(ROW(A$80),ROW()-ROW(A$80)+(ROWS($88:122)-1)*2,4))","v":0},0,null,0,{"$f":"INDIRECT(ADDRESS(ROW(A$80),ROW()-ROW(A$80)+(ROWS($88:122)-1)*2+1,4))","v":0}]
[{"$f":"IF(B123=\"\",0,INDEX(Price_List,ROWS($88:123)))","v":10},{"$f":"IF($C123=\"\",\"\",COUNTA($C$88:$C123))","v":36},{"$f":"IF(INDEX(INDIRECT(\"Product_List\"),ROWS($88:123))=\"\",\"\",INDEX(INDIRECT(\"Product_List\"),ROWS($88:123)))","v":"36-ขนมปังไส้ครีมสังขยาไข่"},{"$f":"ยอดยกมา","v":0},null,null,null,null,null,null,0,null,{"$f":"INDIRECT(ADDRESS(ROW(A$80),ROW()-ROW(A$80)+(ROWS($88:123)-1)*2-1,4))","v":0},null,0,null,0,null,null,null,0,null,0,null,null,null,null,null,{"$f":"INDIRECT(ADDRESS(ROW(A$80),ROW()-ROW(A$80)+(ROWS($88:123)-1)*2,4))","v":0},0,null,0,{"$f":"INDIRECT(ADDRESS(ROW(A$80),ROW()-ROW(A$80)+(ROWS($88:123)-1)*2+1,4))","v":0}]
[{"$f":"IF(B124=\"\",0,INDEX(Price_List,ROWS($88:124)))","v":20},{"$f":"IF($C124=\"\",\"\",COUNTA($C$88:$C124))","v":37},{"$f":"IF(INDEX(INDIRECT(\"Product_List\"),ROWS($88:124))=\"\",\"\",INDEX(INDIRECT(\"Product_List\"),ROWS($88:124)))","v":"37-ขนมปังพิซซ่าฮาวายเอี้ยน"},{"$f":"ยอดยกมา","v":0},null,null,null,null,null,null,0,null,{"$f":"INDIRECT(ADDRESS(ROW(A$80),ROW()-ROW(A$80)+(ROWS($88:124)-1)*2-1,4))","v":0},null,0,null,0,null,null,null,0,null,0,null,null,null,null,null,{"$f":"INDIRECT(ADDRESS(ROW(A$80),ROW()-ROW(A$80)+(ROWS($88:124)-1)*2,4))","v":0},0,null,0,{"$f":"INDIRECT(ADDRESS(ROW(A$80),ROW()-ROW(A$80)+(ROWS($88:124)-1)*2+1,4))","v":0}]
[{"$f":"IF(B125=\"\",0,INDEX(Price_List,ROWS($88:125)))","v":20},{"$f":"IF($C125=\"\",\"\",COUNTA($C$88:$C125))","v":38},{"$f":"IF(INDEX(INDIRECT(\"Product_List\"),ROWS($88:125))=\"\",\"\",INDEX(INDIRECT(\"Product_List\"),ROWS($88:125)))","v":"38-ครัวซองต์หมูหยองน้ำสลัด"},{"$f":"ยอดยกมา","v":0},null,null,null,null,null,null,0,null,{"$f":"INDIRECT(ADDRESS(ROW(A$80),ROW()-ROW(A$80)+(ROWS($88:125)-1)*2-1,4))","v":0},null,0,null,0,null,null,null,0,null,0,null,null,null,null,null,{"$f":"INDIRECT(ADDRESS(ROW(A$80),ROW()-ROW(A$80)+(ROWS($88:125)-1)*2,4))","v":0},0,null,0,{"$f":"INDIRECT(ADDRESS(ROW(A$80),ROW()-ROW(A$80)+(ROWS($88:125)-1)*2+1,4))","v":0}]
[{"$f":"IF(B126=\"\",0,INDEX(Price_List,ROWS($88:126)))","v":15},{"$f":"IF($C126=\"\",\"\",COUNTA($C$88:$C126))","v":39},{"$f":"IF(INDEX(INDIRECT(\"Product_List\"),ROWS($88:126))=\"\",\"\",INDEX(INDIRECT(\"Product_List\"),ROWS($88:126)))","v":"39-แพนเบรดไส้เผือก"},{"$f":"ยอดยกมา","v":0},null,null,null,null,null,null,0,null,{"$f":"INDIRECT(ADDRESS(ROW(A$80),ROW()-ROW(A$80)+(ROWS($88:126)-1)*2-1,4))","v":0},null,0,null,0,null,null,null,0,null,0,null,null,null,null,null,{"$f":"INDIRECT(ADDRESS(ROW(A$80),ROW()-ROW(A$80)+(ROWS($88:126)-1)*2,4))","v":0},0,null,0,{"$f":"INDIRECT(ADDRESS(ROW(A$80),ROW()-ROW(A$80)+(ROWS($88:126)-1)*2+1,4))","v":0}]
[{"$f":"IF(B127=\"\",0,INDEX(Price_List,ROWS($88:127)))","v":15},{"$f":"IF($C127=\"\",\"\",COUNTA($C$88:$C127))","v":40},{"$f":"IF(INDEX(INDIRECT(\"Product_List\"),ROWS($88:127))=\"\",\"\",INDEX(INDIRECT(\"Product_List\"),ROWS($88:127)))","v":"40-แพนเบรดไส้ถั่วแดง"},{"$f":"ยอดยกมา","v":0},null,null,null,null,null,null,0,null,{"$f":"INDIRECT(ADDRESS(ROW(A$80),ROW()-ROW(A$80)+(ROWS($88:127)-1)*2-1,4))","v":0},null,0,null,0,null,null,null,0,null,0,null,null,null,null,null,{"$f":"INDIRECT(ADDRESS(ROW(A$80),ROW()-ROW(A$80)+(ROWS($88:127)-1)*2,4))","v":0},0,null,0,{"$f":"INDIRECT(ADDRESS(ROW(A$80),ROW()-ROW(A$80)+(ROWS($88:127)-1)*2+1,4))","v":0}]
[{"$f":"IF(B128=\"\",0,INDEX(Price_List,ROWS($88:128)))","v":12},{"$f":"IF($C128=\"\",\"\",COUNTA($C$88:$C128))","v":41},{"$f":"IF(INDEX(INDIRECT(\"Product_List\"),ROWS($88:128))=\"\",\"\",INDEX(INDIRECT(\"Product_List\"),ROWS($88:128)))","v":"41-ขนมปังกรอบเนยน้ำตาล(30กรัม)"},{"$f":"ยอดยกมา","v":0},null,null,null,null,null,null,0,null,{"$f":"INDIRECT(ADDRESS(ROW(A$80),ROW()-ROW(A$80)+(ROWS($88:128)-1)*2-1,4))","v":0},null,0,null,0,null,null,null,0,null,0,null,null,null,null,null,{"$f":"INDIRECT(ADDRESS(ROW(A$80),ROW()-ROW(A$80)+(ROWS($88:128)-1)*2,4))","v":0},0,null,0,{"$f":"INDIRECT(ADDRESS(ROW(A$80),ROW()-ROW(A$80)+(ROWS($88:128)-1)*2+1,4))","v":0}]
[{"$f":"IF(B129=\"\",0,INDEX(Price_List,ROWS($88:129)))","v":18},{"$f":"IF($C129=\"\",\"\",COUNTA($C$88:$C129))","v":42},{"$f":"IF(INDEX(INDIRECT(\"Product_List\"),ROWS($88:129))=\"\",\"\",INDEX(INDIRECT(\"Product_List\"),ROWS($88:129)))","v":"42-ขนมปังชนิดแผ่นโฮลวีต"},{"$f":"ยอดยกมา","v":0},null,null,null,null,null,null,0,null,{"$f":"INDIRECT(ADDRESS(ROW(A$80),ROW()-ROW(A$80)+(ROWS($88:129)-1)*2-1,4))","v":0},null,0,null,0,null,null,null,0,null,0,null,null,null,null,null,{"$f":"INDIRECT(ADDRESS(ROW(A$80),ROW()-ROW(A$80)+(ROWS($88:129)-1)*2,4))","v":0},0,null,0,{"$f":"INDIRECT(ADDRESS(ROW(A$80),ROW()-ROW(A$80)+(ROWS($88:129)-1)*2+1,4))","v":0}]
[{"$f":"IF(B130=\"\",0,INDEX(Price_List,ROWS($88:130)))","v":12},{"$f":"IF($C130=\"\",\"\",COUNTA($C$88:$C130))","v":43},{"$f":"IF(INDEX(INDIRECT(\"Product_List\"),ROWS($88:130))=\"\",\"\",INDEX(INDIRECT(\"Product_List\"),ROWS($88:130)))","v":"43-เค้กโรลใบเตย"},{"$f":"ยอดยกมา","v":0},null,null,null,null,null,null,{"$f":"D130+E130+J130-I130+H130","v":0},null,{"$f":"INDIRECT(ADDRESS(ROW(A$80),ROW()-ROW(A$80)+(ROWS($88:130)-1)*2-1,4))","v":0},null,{"$f":"F130+G130+M130+J130-K130","v":0},null,{"$f":"O130*A130","v":0},null,null,null,{"$f":"D130+E130-F130-G130","v":0},null,{"$f":"U130*6%+U130","v":0},null,null,null,null,null,{"$f":"INDIRECT(ADDRESS(ROW(A$80),ROW()-ROW(A$80)+(ROWS($88:130)-1)*2,4))","v":0},0,null,0,{"$f":"INDIRECT(ADDRESS(ROW(A$80),ROW()-ROW(A$80)+(ROWS($88:130)-1)*2+1,4))","v":0}]
[{"$f":"IF(B131=\"\",0,INDEX(Price_List,ROWS($88:131)))","v":12},{"$f":"IF($C131=\"\",\"\",COUNTA($C$88:$C131))","v":44},{"$f":"IF(INDEX(INDIRECT(\"Product_List\"),ROWS($88:131))=\"\",\"\",INDEX(INDIRECT(\"Product_List\"),ROWS($88:131)))","v":"44-ขนมโมจิไส้ถั่วดำ"},{"$f":"ยอดยกมา","v":0},null,null,null,null,null,null,{"$f":"D131+E131+J131-I131+H131","v":0},null,{"$f":"INDIRECT(ADDRESS(ROW(A$80),ROW()-ROW(A$80)+(ROWS($88:131)-1)*2-1,4))","v":0},null,{"$f":"F131+G131+M131+J131-K131","v":0},null,{"$f":"O131*A131","v":0},null,null,null,{"$f":"D131+E131-F131-G131","v":0},null,{"$f":"U131*6%+U131","v":0},null,null,null,null,null,{"$f":"INDIRECT(ADDRESS(ROW(A$80),ROW()-ROW(A$80)+(ROWS($88:131)-1)*2,4))","v":0},0,null,0,{"$f":"INDIRECT(ADDRESS(ROW(A$80),ROW()-ROW(A$80)+(ROWS($88:131)-1)*2+1,4))","v":0}]
[{"$f":"IF(B132=\"\",0,INDEX(Price_List,ROWS($88:132)))","v":25},{"$f":"IF($C132=\"\",\"\",COUNTA($C$88:$C132))","v":45},{"$f":"IF(INDEX(INDIRECT(\"Product_List\"),ROWS($88:132))=\"\",\"\",INDEX(INDIRECT(\"Product_List\"),ROWS($88:132)))","v":"45-ครัวซองต์ไส้กรอกชีส"},{"$f":"ยอดยกมา","v":0},null,null,null,null,null,null,{"$f":"D132+E132+J132-I132+H132","v":0},null,{"$f":"INDIRECT(ADDRESS(ROW(A$80),ROW()-ROW(A$80)+(ROWS($88:132)-1)*2-1,4))","v":0},null,{"$f":"F132+G132+M132+J132-K132","v":0},null,{"$f":"O132*A132","v":0},null,null,null,{"$f":"D132+E132-F132-G132","v":0},null,{"$f":"U132*6%+U132","v":0},null,null,null,null,null,{"$f":"INDIRECT(ADDRESS(ROW(A$80),ROW()-ROW(A$80)+(ROWS($88:132)-1)*2,4))","v":0},0,null,0,{"$f":"INDIRECT(ADDRESS(ROW(A$80),ROW()-ROW(A$80)+(ROWS($88:132)-1)*2+1,4))","v":0}]
[{"$f":"IF(B133=\"\",0,INDEX(Price_List,ROWS($88:133)))","v":12},{"$f":"IF($C133=\"\",\"\",COUNTA($C$88:$C133))","v":46},{"$f":"IF(INDEX(INDIRECT(\"Product_List\"),ROWS($88:133))=\"\",\"\",INDEX(INDIRECT(\"Product_List\"),ROWS($88:133)))","v":"46-ขนมเปี๊ยะไส้ถั่ว"},{"$f":"ยอดยกมา","v":0},null,null,null,null,null,null,0,null,{"$f":"INDIRECT(ADDRESS(ROW(A$80),ROW()-ROW(A$80)+(ROWS($88:133)-1)*2-1,4))","v":0},null,0,null,0,null,null,null,0,null,0,null,null,null,null,null,{"$f":"INDIRECT(ADDRESS(ROW(A$80),ROW()-ROW(A$80)+(ROWS($88:133)-1)*2,4))","v":0},0,null,0,{"$f":"INDIRECT(ADDRESS(ROW(A$80),ROW()-ROW(A$80)+(ROWS($88:133)-1)*2+1,4))","v":0}]
[{"$f":"IF(B134=\"\",0,INDEX(Price_List,ROWS($88:134)))","v":12},{"$f":"IF($C134=\"\",\"\",COUNTA($C$88:$C134))","v":47},{"$f":"IF(INDEX(INDIRECT(\"Product_List\"),ROWS($88:134))=\"\",\"\",INDEX(INDIRECT(\"Product_List\"),ROWS($88:134)))","v":"47-ขนมเปี๊ยะไส้ฟัก"},{"$f":"ยอดยกมา","v":0},null,null,null,null,null,null,{"$f":"D134+E134+J134-I134+H134","v":0},null,{"$f":"INDIRECT(ADDRESS(ROW(A$80),ROW()-ROW(A$80)+(ROWS($88:134)-1)*2-1,4))","v":0},null,{"$f":"F134+G134+M134+J134-K134","v":0},null,{"$f":"O134*A134","v":0},null,null,null,{"$f":"D134+E134-F134-G134","v":0},null,{"$f":"U134*6%+U134","v":0},null,null,null,null,null,{"$f":"INDIRECT(ADDRESS(ROW(A$80),ROW()-ROW(A$80)+(ROWS($88:134)-1)*2,4))","v":0},0,null,0,{"$f":"INDIRECT(ADDRESS(ROW(A$80),ROW()-ROW(A$80)+(ROWS($88:134)-1)*2+1,4))","v":0}]
[{"$f":"IF(B135=\"\",0,INDEX(Price_List,ROWS($88:135)))","v":12},{"$f":"IF($C135=\"\",\"\",COUNTA($C$88:$C135))","v":48},{"$f":"IF(INDEX(INDIRECT(\"Product_List\"),ROWS($88:135))=\"\",\"\",INDEX(INDIRECT(\"Product_List\"),ROWS($88:135)))","v":"48-มังกี้เค้ก"},{"$f":"ยอดยกมา","v":0},null,null,null,null,null,null,0,null,{"$f":"INDIRECT(ADDRESS(ROW(A$80),ROW()-ROW(A$80)+(ROWS($88:135)-1)*2-1,4))","v":0},null,0,null,0,null,null,null,0,null,0,null,null,null,null,null,{"$f":"INDIRECT(ADDRESS(ROW(A$80),ROW()-ROW(A$80)+(ROWS($88:135)-1)*2,4))","v":0},0,null,0,{"$f":"INDIRECT(ADDRESS(ROW(A$80),ROW()-ROW(A$80)+(ROWS($88:135)-1)*2+1,4))","v":0}]
["รวม",null,null,{"$f":"SUM(D$88:D$135)","v":0},0,0,0,0,0,0,0,null,{"$f":"SUM(M$88:M$135)","v":0},null,null,null,{"$f":"$AP$98","v":0},null,"บาท",null,{"$f":"SUM(U$88:U$135)","v":0},null,{"$f":"SUM(W$88:W$135)","v":0},null,null,null,null,null,{"$f":"SUM(AC$88:AC$135)","v":0},{"$f":"SUM(AD$88:AD$135)","v":0},{"$f":"SUM(AE$88:AE$135)","v":0},{"$f":"SUM(AF$88:AF$135)","v":0},{"$f":"SUM(AG$88:AG$135)","v":0}]
["เลขที่ไมล์ เวลาออกทำงาน",null,null,{"$f":"$BF$3","v":0},null,"Km","น้ำหนักของเสีย"]
["เลขที่ไมล์ เวลากลับ",null,null,{"$f":"$BF$4","v":0},null,"Km",{"$f":"$AA$5","v":0},null,"KG"]
["เวลากลับถึงสำนักงาน",null,null,{"$f":"$BF$1","v":"00:00:00"},null,"น."]
["เติมน้ำมัน",null,null,{"$f":"$AX3","v":0},null,"บาท"]
["จำนวนน้ำมัน",null,null,{"$f":"$AX4","v":0},null,"ลิตร"]
["ยอดรวมต้นทุนสาขา",null,null,{"$f":"$AX5","v":0},null,"บาท"]

{"sheet":"21","index":25,"n_rows":142,"n_cols":154,"rows_kept":142,"cut":false,"hidden":false,"merged":[[83,132,83,133],[129,10,129,11],[129,12,129,13],[129,14,129,15],[129,16,129,17],[127,10,127,11],[127,12,127,13],[127,14,127,15],[127,16,127,17],[127,20,127,21],[127,22,127,23],[127,24,127,25],[127,33,127,36],[126,10,126,11],[126,12,126,13],[126,14,126,15],[126,16,126,17],[128,10,128,11],[128,12,128,13],[129,24,129,25],[125,10,125,11],[125,12,125,13],[125,14,125,15],[125,16,125,17],[7,132,7,134],[8,132,8,134],[80,132,80,133],[82,132,82,133],[7,135,7,137],[8,135,8,137],[80,135,80,136],[82,135,82,136],[7,138,7,140],[7,141,7,143],[7,147,7,149],[8,138,8,140],[141,0,141,2],[141,3,141,4],[138,0,138,2],[138,3,138,4],[139,0,139,2],[139,3,139,4],[140,0,140,2],[140,3,140,4],[135,24,135,25],[135,33,135,36],[136,0,136,2],[136,3,136,4],[137,0,137,2],[137,3,137,4],[137,6,137,7],[137,18,137,21],[135,0,135,2],[135,10,135,11],[135,12,135,13],[135,14,135,15],[135,16,135,17],[135,18,135,19],[135,20,135,21],[135,22,135,23],[128,14,128,15],[128,16,128,17],[128,20,128,21],[128,22,128,23],[129,20,129,21],[129,22,129,23],[131,16,131,17],[132,16,132,17],[134,16,134,17],[131,20,131,21],[132,20,132,21],[134,20,134,21],[131,22,131,23],[132,22,132,23],[134,22,134,23],[131,24,131,25],[132,24,132,25],[134,24,134,25],[129,33,129,36],[128,24,128,25],[128,33,128,36],[126,20,126,21],[126,22,126,23],[124,24,124,25],[124,33,124,36],[125,20,125,21],[125,22,125,23],[125,24,125,25],[125,33,125,36],[124,10,124,11],[124,12,124,13],[124,14,124,15],[124,16,124,17],[124,20,124,21],[124,22,124,23],[126,24,126,25],[126,33,126,36],[122,24,122,25],[122,33,122,36],[123,10,123,11],[123,12,123,13],[123,14,123,15],[123,16,123,17],[123,20,123,21],[123,22,123,23],[123,24,123,25],[123,33,123,36],[122,10,122,11],[122,12,122,13],[122,14,122,15],[122,16,122,17],[122,20,122,21],[122,22,122,23],[120,24,120,25],[120,33,120,36],[121,10,121,11],[121,12,121,13],[121,14,121,15],[121,16,121,17],[121,20,121,21],[121,22,121,23],[121,24,121,25],[121,33,121,36],[120,10,120,11],[120,12,120,13],[120,14,120,15],[120,16,120,17],[120,20,120,21],[120,22,120,23],[118,24,118,25],[118,33,118,36],[119,10,119,11],[119,12,119,13],[119,14,119,15],[119,16,119,17],[119,20,119,21],[119,22,119,23],[119,24,119,25],[119,33,119,36],[118,10,118,11],[118,12,118,13],[118,14,118,15],[118,16,118,17],[118,20,118,21],[118,22,118,23],[116,24,116,25],[116,33,116,36],[117,10,117,11],[117,12,117,13],[117,14,117,15],[117,16,117,17],[117,20,117,21],[117,22,117,23],[117,24,117,25],[117,33,117,36],[116,10,116,11],[116,12,116,13],[116,14,116,15],[116,16,116,17],[116,20,116,21],[116,22,116,23],[114,24,114,25],[114,33,114,36],[115,10,115,11],[115,12,115,13],[115,14,115,15],[115,16,115,17],[115,20,115,21],[115,22,115,23],[115,24,115,25],[115,33,115,36],[114,10,114,11],[114,12,114,13],[114,14,114,15],[114,16,114,17],[114,20,114,21],[114,22,114,23],[112,24,112,25],[112,33,112,36],[113,10,113,11],[113,12,113,13],[113,14,113,15],[113,16,113,17],[113,20,113,21],[113,22,113,23],[113,24,113,25],[113,33,113,36],[112,10,112,11],[112,12,112,13],[112,14,112,15],[112,16,112,17],[112,20,112,21],[112,22,112,23],[110,24,110,25],[110,33,110,36],[111,10,111,11],[111,12,111,13],[111,14,111,15],[111,16,111,17],[111,20,111,21],[111,22,111,23],[111,24,111,25],[111,33,111,36],[110,10,110,11],[110,12,110,13],[110,14,110,15],[110,16,110,17],[110,20,110,21],[110,22,110,23],[108,24,108,25],[108,33,108,36],[109,10,109,11],[109,12,109,13],[109,14,109,15],[109,16,109,17],[109,20,109,21],[109,22,109,23],[109,24,109,25],[109,33,109,36],[108,10,108,11],[108,12,108,13],[108,14,108,15],[108,16,108,17],[108,20,108,21],[108,22,108,23],[106,24,106,25],[106,33,106,36],[107,10,107,11],[107,12,107,13],[107,14,107,15],[107,16,107,17],[107,20,107,21],[107,22,107,23],[107,24,107,25],[107,33,107,36],[106,10,106,11],[106,12,106,13],[106,14,106,15],[106,16,106,17],[106,20,106,21],[106,22,106,23],[104,24,104,25],[104,33,104,36],[105,10,105,11],[105,12,105,13],[105,14,105,15],[105,16,105,17],[105,20,105,21],[105,22,105,23],[105,24,105,25],[105,33,105,36],[104,10,104,11],[104,12,104,13],[104,14,104,15],[104,16,104,17],[104,20,104,21],[104,22,104,23],[102,24,102,25],[102,33,102,36],[103,10,103,11],[103,12,103,13],[103,14,103,15],[103,16,103,17],[103,20,103,21],[103,22,103,23],[103,24,103,25],[103,33,103,36],[102,10,102,11],[102,12,102,13],[102,14,102,15],[102,16,102,17],[102,20,102,21],[102,22,102,23],[101,10,101,11],[101,12,101,13],[101,14,101,15],[101,16,101,17],[101,20,101,21],[101,22,101,23],[101,24,101,25],[101,33,101,36],[100,10,100,11],[100,12,100,13],[100,14,100,15],[100,16,100,17],[100,20,100,21],[100,22,100,23],[99,10,99,11],[99,12,99,13],[99,14,99,15],[99,16,99,17],[99,20,99,21],[99,22,99,23],[99,24,99,25],[99,33,99,36],[100,24,100,25],[100,33,100,36],[97,24,97,25],[97,33,97,36],[97,38,97,40],[98,10,98,11],[98,12,98,13],[98,14,98,15],[98,16,98,17],[98,20,98,21],[98,22,98,23],[98,24,98,25],[97,10,97,11],[97,12,97,13],[97,14,97,15],[97,16,97,17],[97,20,97,21],[97,22,97,23],[98,33,98,36],[95,24,95,25],[95,33,95,36],[96,10,96,11],[96,12,96,13],[96,14,96,15],[96,16,96,17],[96,20,96,21],[96,22,96,23],[96,24,96,25],[96,33,96,36],[95,10,95,11],[95,12,95,13],[95,14,95,15],[95,16,95,17],[95,20,95,21],[95,22,95,23],[93,24,93,25],[93,33,93,36],[94,10,94,11],[94,12,94,13],[94,14,94,15],[94,16,94,17],[94,20,94,21],[94,22,94,23],[94,24,94,25],[94,33,94,36],[93,10,93,11],[93,12,93,13],[93,14,93,15],[93,16,93,17],[93,20,93,21],[93,22,93,23],[91,24,91,25],[91,33,91,36],[92,10,92,11],[92,12,92,13],[92,14,92,15],[92,16,92,17],[92,20,92,21],[92,22,92,23],[92,24,92,25],[92,33,92,36],[91,10,91,11],[91,12,91,13],[91,14,91,15],[91,16,91,17],[91,20,91,21],[91,22,91,23],[86,22,86,23],[86,24,86,25],[88,20,88,21],[88,22,88,23],[88,24,88,25],[88,33,88,36],[89,24,89,25],[89,33,89,36],[90,10,90,11],[90,12,90,13],[90,14,90,15],[90,16,90,17],[90,20,90,21],[90,22,90,23],[90,24,90,25],[90,33,90,36],[89,10,89,11],[89,12,89,13],[89,14,89,15],[89,16,89,17],[89,20,89,21],[89,22,89,23],[83,36,83,37],[83,39,83,40],[83,42,83,43],[83,45,83,46],[83,48,83,49],[83,51,83,52],[83,150,83,153],[86,10,86,11],[86,12,86,13],[86,14,86,15],[86,16,86,17],[86,20,86,21],[83,108,83,109],[83,111,83,112],[83,114,83,115],[83,117,83,118],[83,120,83,121],[83,123,83,124],[83,90,83,91],[83,93,83,94],[83,96,83,97],[83,99,83,100],[83,102,83,103],[83,105,83,106],[82,39,82,40],[82,42,82,43],[82,45,82,46],[82,48,82,49],[83,84,83,85],[83,87,83,88],[83,54,83,55],[83,57,83,58],[83,60,83,61],[83,63,83,64],[83,66,83,67],[83,69,83,70],[83,72,83,73],[83,75,83,76],[83,78,83,79],[83,81,83,82],[83,0,83,5],[83,6,83,7],[83,9,83,10],[83,12,83,13],[83,15,83,16],[82,105,82,106],[82,108,82,109],[82,111,82,112],[82,114,82,115],[82,87,82,88],[82,90,82,91],[82,93,82,94],[82,96,82,97],[82,99,82,100],[82,102,82,103],[82,69,82,70],[82,72,82,73],[82,75,82,76],[82,78,82,79],[82,81,82,82],[82,84,82,85],[82,51,82,52],[82,54,82,55],[82,57,82,58],[82,15,82,16],[82,18,82,19],[82,21,82,22],[82,24,82,25],[82,27,82,28],[82,30,82,31],[81,0,81,2],[81,3,81,5],[81,150,82,153],[82,0,82,2],[82,3,82,4],[82,6,82,7],[82,9,82,10],[82,12,82,13],[82,123,82,124],[82,126,82,127],[82,129,82,130],[82,117,82,118],[82,120,82,121],[82,60,82,61],[82,63,82,64],[82,66,82,67],[82,33,82,34],[82,36,82,37],[80,114,80,115],[80,117,80,118],[80,120,80,121],[80,123,80,124],[80,126,80,127],[80,129,80,130],[80,96,80,97],[80,99,80,100],[80,102,80,103],[80,105,80,106],[80,108,80,109],[80,111,80,112],[80,78,80,79],[80,81,80,82],[80,87,80,88],[80,90,80,91],[80,93,80,94],[80,60,80,61],[80,63,80,64],[80,66,80,67],[80,69,80,70],[80,72,80,73],[80,75,80,76],[80,84,80,85],[79,0,79,5],[80,0,80,5],[80,6,80,7],[80,9,80,10],[80,12,80,13],[80,15,80,16],[80,18,80,19],[80,21,80,22],[8,114,8,116],[8,78,8,80],[8,81,8,83],[8,87,8,89],[8,90,8,92],[8,93,8,95],[8,60,8,62],[8,63,8,65],[8,66,8,68],[8,69,8,71],[8,72,8,74],[8,75,8,77],[8,54,8,56],[8,57,8,59],[8,24,8,26],[8,27,8,29],[8,120,8,122],[8,123,8,125],[8,126,8,128],[8,129,8,131],[8,96,8,98],[8,99,8,101],[8,102,8,104],[8,105,8,107],[8,108,8,110],[8,111,8,113],[8,33,8,35],[8,36,8,38],[8,39,8,41],[8,84,8,86],[7,150,8,150],[7,151,8,151],[8,6,8,8],[8,9,8,11],[8,12,8,14],[8,15,8,17],[8,18,8,20],[8,21,8,23],[7,114,7,116],[7,117,7,119],[7,120,7,122],[7,123,7,125],[7,126,7,128],[7,129,7,131],[7,96,7,98],[7,99,7,101],[7,102,7,104],[7,105,7,107],[7,108,7,110],[8,117,8,119],[7,87,7,89],[7,90,7,92],[7,93,7,95],[7,60,7,62],[7,63,7,65],[7,66,7,68],[7,69,7,71],[7,72,7,74],[7,75,7,77],[7,54,7,56],[7,57,7,59],[7,24,7,26],[7,27,7,29],[7,30,7,32],[7,33,7,35],[7,36,7,38],[7,39,7,41],[7,84,7,86],[6,150,6,151],[6,152,8,152],[6,153,8,153],[7,6,7,8],[7,9,7,11],[7,12,7,14],[7,15,7,17],[7,18,7,20],[7,21,7,23],[6,117,6,119],[6,120,6,122],[6,123,6,125],[6,126,6,128],[6,129,6,131],[6,99,6,101],[6,102,6,104],[6,105,6,107],[6,108,6,110],[6,111,6,113],[6,54,6,56],[6,57,6,59],[7,111,7,113],[7,78,7,80],[7,81,7,83],[6,0,8,0],[6,1,8,1],[6,2,8,2],[6,3,8,3],[6,4,8,4],[6,6,6,8],[6,45,6,47],[6,48,6,50],[6,51,6,53],[7,42,7,44],[7,45,7,47],[7,48,7,50],[7,51,7,53],[8,42,8,44],[8,45,8,47],[8,48,8,50],[8,51,8,53],[6,27,6,29],[6,30,6,32],[6,33,6,35],[6,36,6,38],[6,39,6,41],[6,42,6,44],[8,30,8,32],[4,26,4,29],[4,30,4,31],[4,32,4,34],[4,35,4,36],[6,9,6,11],[6,12,6,14],[6,15,6,17],[6,18,6,20],[6,21,6,23],[6,24,6,26],[3,41,3,44],[3,46,3,48],[3,49,3,51],[3,54,3,56],[3,57,3,60],[4,0,4,1],[4,2,4,3],[4,4,4,5],[4,6,4,12],[4,14,4,16],[3,17,3,19],[3,22,3,25],[3,26,3,29],[3,30,3,33],[3,34,3,37],[3,38,3,40],[4,38,4,40],[4,41,4,44],[4,46,4,48],[4,49,4,51],[4,54,4,56],[4,57,4,60],[4,17,4,19],[4,22,4,25],[2,38,2,40],[3,0,3,1],[3,2,3,3],[3,4,3,5],[3,6,3,12],[3,14,3,16],[2,17,2,19],[2,22,2,25],[2,26,2,29],[2,30,2,33],[80,36,80,37],[80,39,80,40],[0,38,0,40],[0,41,0,44],[0,46,0,48],[0,54,0,56],[0,57,0,60],[2,0,2,1],[2,2,2,3],[2,4,2,5],[2,6,2,12],[2,14,2,16],[0,0,0,12],[0,14,0,16],[0,17,0,23],[0,30,0,33],[0,34,0,35],[0,36,0,37],[2,41,2,44],[2,46,2,48],[2,49,2,51],[2,54,2,56],[2,57,2,60],[2,34,2,37],[6,141,6,143],[6,147,6,149],[83,18,83,19],[83,21,83,22],[83,24,83,25],[83,27,83,28],[83,30,83,31],[83,33,83,34],[83,126,83,127],[83,129,83,130],[8,141,8,143],[8,147,8,149],[80,138,80,139],[80,141,80,142],[80,147,80,148],[82,138,82,139],[82,141,82,142],[82,147,82,148],[6,60,6,62],[6,87,6,89],[6,90,6,92],[6,93,6,95],[6,96,6,98],[6,63,6,65],[88,12,88,13],[88,14,88,15],[88,16,88,17],[6,114,6,116],[6,81,6,83],[6,84,6,86],[6,132,6,134],[6,135,6,137],[6,138,6,140],[6,66,6,68],[6,69,6,71],[6,72,6,74],[6,75,6,77],[6,78,6,80],[80,42,80,43],[80,45,80,46],[80,48,80,49],[80,51,80,52],[80,54,80,55],[80,57,80,58],[80,24,80,25],[80,27,80,28],[80,30,80,31],[80,33,80,34],[83,147,83,148],[131,33,131,36],[132,33,132,36],[134,33,134,36],[131,10,131,11],[132,10,132,11],[134,10,134,11],[131,12,131,13],[132,12,132,13],[134,12,134,13],[131,14,131,15],[132,14,132,15],[134,14,134,15],[86,33,86,36],[87,10,87,11],[87,12,87,13],[87,14,87,15],[87,16,87,17],[87,20,87,21],[87,22,87,23],[83,135,83,136],[130,10,130,11],[130,12,130,13],[130,14,130,15],[6,144,6,146],[7,144,7,146],[8,144,8,146],[80,144,80,145],[82,144,82,145],[83,144,83,145],[133,10,133,11],[133,12,133,13],[133,14,133,15],[133,16,133,17],[133,20,133,21],[133,22,133,23],[133,24,133,25],[133,33,133,36],[83,138,83,139],[83,141,83,142],[130,16,130,17],[130,20,130,21],[130,22,130,23],[130,24,130,25],[130,33,130,36],[87,24,87,25],[87,33,87,36],[88,10,88,11]]}
[":::: รายงานการขายประจำวัน (Sale Daily Report)  ::::",null,null,null,null,null,null,null,null,null,null,null,null,null,"Print Date : ",null,null,{"$f":"NOW()","v":"2025-04-24T22:39:10.130"},null,null,null,null,null,null,null,null,null,null,null,null,"จำนวนร้าน :",null,null,null,{"$f":"MAX($A$10:$A$79)","v":0},null,"ร้าน",null,"เป้ายอดขาย :",null,null,null,null,null,null,null,{"$f":"C3","v":45798},null,null,{"$f":"LEFT('Problems & Solutions'!$B$2,FIND(\"|\",'Problems & Solutions'!$B$2))&\" วันที่\"&TEXT($C$3,\"[$-107041E] d mmmm yyyy;@\")","v":"ขั้นตอนการตรวจรีพอร์ตขาย | วันที่ 21 พฤษภาคม 2568"},null,null,null,null,"เวลากลับ :"]
[]
["วันที่ :",null,{"$f":"DATE(ใส่ข้อมูล!G2-543,ใส่ข้อมูล!V2,ActiveSheetName)","v":"2025-05-21"},null,"พนักงานขาย",null,{"$f":"INDEX(OFFSET(Sale_Region,,1),ActiveSheetName)","v":0},null,null,null,null,null,null,null,"รวมยอดเบิก :",null,null,{"$f":"E136","v":0},null,null,"ชิ้น",null,"ใหญ่สด(40)",null,null,null,{"$f":"Cash_Major_Bill","v":0},null,null,null,"ใหญ่เชื่อ(42)",null,null,null,{"$f":"Credit_Major_Bill","v":0},null,null,null,"บิลใหญ่ :",null,null,{"$f":"AA3+AI3","v":0},null,null,null,null,"เติมน้ำมัน :",null,null,null,null,null,"บาท",null,"ไมล์ออก :",null,null,{"$f":"เลขไมล์ออก","v":0},null,null,null,"Km"]
["เขตการขาย :",null,{"$f":"INDEX(Sale_Region,ActiveSheetName)","v":0},null,"ผช.ขาย",null,{"$f":"INDEX(OFFSET(Sale_Region,,2),ActiveSheetName)","v":0},null,null,null,null,null,null,null,"ของเหลือ :",null,null,{"$f":"F136","v":0},null,null,"ชิ้น",null,"เล็กสด(41)",null,null,null,{"$f":"Cash_Minor_Bill","v":0},null,null,null,"เล็กเชื่อ(43)",null,null,null,{"$f":"Credit_Minor_Bill","v":0},null,null,null,"บิลเล็ก :",null,null,{"$f":"AA4+AI4","v":0},null,null,null,null,"จำนวนลิตร :",null,null,null,null,null,"ลิตร",null,"ไมล์เข้า :",null,null,null,null,null,null,"Km"]
["สายส่ง :",null,{"$f":"\"Sale \"&ใส่ข้อมูล!E3&\"-\"&ใส่ข้อมูล!G3","v":"Sale KB-01"},null,"พนักงานเสริม",null,{"$f":"INDEX(OFFSET(Sale_Region,,3),ActiveSheetName)","v":0},null,null,null,null,null,null,null,"ของเสีย :",null,null,{"$f":"G136","v":0},null,null,"ชิ้น",null,"น้ำหนักของเสีย",null,null,null,null,null,null,null,"Kg.",null,"%ของเสีย",null,null,{"$f":"IF(Order_Cal=0,0,ROUND(Waste_Cal*100/Order_Cal,2))","v":0},null,"%","VAT :",null,null,{"$f":"EW81","v":0},null,null,null,null,"ต้นทุนสาขา :",null,null,{"$f":"SUMPRODUCT((($A$88:$A$135)-($A$88:$A$135)*0.45)*(($E$88:$E$135)-($G$88:$G$135)))","v":0},null,null,"บาท",null,"ระยะทาง :",null,null,{"$f":"IF(OR($BF$4=0,$BF$3=0),0,$BF$4-$BF$3)","v":0},null,null,null,"Km"]
[]
["No","รหัสร้าน (CustNo)","ชื่อร้าน (Store Name)","เวลาเข้าร้าน","ระยะเวลาระหว่างร้าน","บิล(Invoice)",{"$f":"INDEX(INDIRECT(\"dProduct[ProductName]\"),ROUNDUP(COLUMNS($G:G)/3,0))","v":"ขนมปังหมูหยองน้ำสลัด"},null,null,{"$f":"INDEX(INDIRECT(\"dProduct[ProductName]\"),ROUNDUP(COLUMNS($G:J)/3,0))","v":"ขนมปังหมูหยองน้ำพริกเผา"},null,null,{"$f":"INDEX(INDIRECT(\"dProduct[ProductName]\"),ROUNDUP(COLUMNS($G:M)/3,0))","v":"ขนมปังไก่หยองน้ำสลัด"},null,null,{"$f":"INDEX(INDIRECT(\"dProduct[ProductName]\"),ROUNDUP(COLUMNS($G:P)/3,0))","v":"ขนมปังไส้ครีมสลัด"},null,null,{"$f":"INDEX(INDIRECT(\"dProduct[ProductName]\"),ROUNDUP(COLUMNS($G:S)/3,0))","v":"ขนมปังเนยสด"},null,null,{"$f":"INDEX(INDIRECT(\"dProduct[ProductName]\"),ROUNDUP(COLUMNS($G:V)/3,0))","v":"ขนมปังไส้สังขยาเล็ก"},null,null,{"$f":"INDEX(INDIRECT(\"dProduct[ProductName]\"),ROUNDUP(COLUMNS($G:Y)/3,0))","v":"ขนมปังไส้เผือก"},null,null,{"$f":"INDEX(INDIRECT(\"dProduct[ProductName]\"),ROUNDUP(COLUMNS($G:AB)/3,0))","v":"ขนมปังไส้ถั่วแดง"},null,null,{"$f":"INDEX(INDIRECT(\"dProduct[ProductName]\"),ROUNDUP(COLUMNS($G:AE)/3,0))","v":"ขนมปังไส้ถั่วดำ"},null,null,{"$f":"INDEX(INDIRECT(\"dProduct[ProductName]\"),ROUNDUP(COLUMNS($G:AH)/3,0))","v":"ขนมปังไส้มันม่วง"},null,null,{"$f":"INDEX(INDIRECT(\"dProduct[ProductName]\"),ROUNDUP(COLUMNS($G:AK)/3,0))","v":"เค้กกล้วยหอม"},null,null,{"$f":"INDEX(INDIRECT(\"dProduct[ProductName]\"),ROUNDUP(COLUMNS($G:AN)/3,0))","v":"เค้กบัตเตอร์"},null,null,{"$f":"INDEX(INDIRECT(\"dProduct[ProductName]\"),ROUNDUP(COLUMNS($G:AQ)/3,0))","v":"ขนมปังโรลถั่วแดง"},null,null,{"$f":"INDEX(INDIRECT(\"dProduct[ProductName]\"),ROUNDUP(COLUMNS($G:AT)/3,0))","v":"ขนมปังไส้สังขยาใหญ่"},null,null,{"$f":"INDEX(INDIRECT(\"dProduct[ProductName]\"),ROUNDUP(COLUMNS($G:AW)/3,0))","v":"ขนมปังชนิดแผ่น(480กรัม)"},null,null,{"$f":"INDEX(INDIRECT(\"dProduct[ProductName]\"),ROUNDUP(COLUMNS($G:AZ)/3,0))","v":"โมจิไส้ถั่ว"},null,null,{"$f":"INDEX(INDIRECT(\"dProduct[ProductName]\"),ROUNDUP(COLUMNS($G:BC)/3,0))","v":"โมจิไส้เผือก"},null,null,{"$f":"INDEX(INDIRECT(\"dProduct[ProductName]\"),ROUNDUP(COLUMNS($G:BF)/3,0))","v":"โมจิไส้ถั่วไข่เค็ม"},null,null,{"$f":"INDEX(INDIRECT(\"dProduct[ProductName]\"),ROUNDUP(COLUMNS($G:BI)/3,0))","v":"ขนมปังพิซซ่า"},null,null,{"$f":"INDEX(INDIRECT(\"dProduct[ProductName]\"),ROUNDUP(COLUMNS($G:BL)/3,0))","v":"ขนมปังพิซซ่าปูอัดแฮม"},null,null,{"$f":"INDEX(INDIRECT(\"dProduct[ProductName]\"),ROUNDUP(COLUMNS($G:BO)/3,0))","v":"ขนมปังไส้กรอก"},null,null,{"$f":"INDEX(INDIRECT(\"dProduct[ProductName]\"),ROUNDUP(COLUMNS($G:BR)/3,0))","v":"ขนมก้านบัว"},null,null,{"$f":"INDEX(INDIRECT(\"dProduct[ProductName]\"),ROUNDUP(COLUMNS($G:BU)/3,0))","v":"พายสับปะรด"},null,null,{"$f":"INDEX(INDIRECT(\"dProduct[ProductName]\"),ROUNDUP(COLUMNS($G:BX)/3,0))","v":"พายไส้มะพร้าว"},null,null,{"$f":"INDEX(INDIRECT(\"dProduct[ProductName]\"),ROUNDUP(COLUMNS($G:CA)/3,0))","v":"ขนมปังโรลมันเทศ"},null,null,{"$f":"INDEX(INDIRECT(\"dProduct[ProductName]\"),ROUNDUP(COLUMNS($G:CD)/3,0))","v":"ขนมปังไส้ครีมสลัดน้ำพริกเผา"},null,null,{"$f":"INDEX(INDIRECT(\"dProduct[ProductName]\"),ROUNDUP(COLUMNS($G:CG)/3,0))","v":"ขนมปังไส้สังขยาไข่"},null,null,{"$f":"INDEX(INDIRECT(\"dProduct[ProductName]\"),ROUNDUP(COLUMNS($G:CJ)/3,0))","v":"ขนมปังไส้สังขยามะพร้าว"},null,null,{"$f":"INDEX(INDIRECT(\"dProduct[ProductName]\"),ROUNDUP(COLUMNS($G:CM)/3,0))","v":"ขนมปังไส้ครีมชาไทย"},null,null,{"$f":"INDEX(INDIRECT(\"dProduct[ProductName]\"),ROUNDUP(COLUMNS($G:CP)/3,0))","v":"ขนมปังโรลมันม่วง"},null,null,{"$f":"INDEX(INDIRECT(\"dProduct[ProductName]\"),ROUNDUP(COLUMNS($G:CS)/3,0))","v":"ขนมปังโรลช็อกโกแลต"},null,null,{"$f":"INDEX(INDIRECT(\"dProduct[ProductName]\"),ROUNDUP(COLUMNS($G:CV)/3,0))","v":"ขนมปังชนิดแผ่น(155กรัม)"},null,null,{"$f":"INDEX(INDIRECT(\"dProduct[ProductName]\"),ROUNDUP(COLUMNS($G:CY)/3,0))","v":"ขนมปังโรลเผือก"},null,null,{"$f":"INDEX(INDIRECT(\"dProduct[ProductName]\"),ROUNDUP(COLUMNS($G:DB)/3,0))","v":"ขนมปังไก่หยองน้ำสลัด Mini"},null,null,{"$f":"INDEX(INDIRECT(\"dProduct[ProductName]\"),ROUNDUP(COLUMNS($G:DE)/3,0))","v":"ขนมปังไส้ช็อกโกแลต"},null,null,{"$f":"INDEX(INDIRECT(\"dProduct[ProductName]\"),ROUNDUP(COLUMNS($G:DH)/3,0))","v":"ขนมปังไส้ครีมสังขยาไข่"},null,null,{"$f":"INDEX(INDIRECT(\"dProduct[ProductName]\"),ROUNDUP(COLUMNS($G:DK)/3,0))","v":"ขนมปังพิซซ่าฮาวายเอี้ยน"},null,null,{"$f":"INDEX(INDIRECT(\"dProduct[ProductName]\"),ROUNDUP(COLUMNS($G:DN)/3,0))","v":"ครัวซองต์หมูหยองน้ำสลัด"},null,null,{"$f":"INDEX(INDIRECT(\"dProduct[ProductName]\"),ROUNDUP(COLUMNS($G:DQ)/3,0))","v":"แพนเบรดไส้เผือก"},null,null,{"$f":"INDEX(INDIRECT(\"dProduct[ProductName]\"),ROUNDUP(COLUMNS($G:DT)/3,0))","v":"แพนเบรดไส้ถั่วแดง"},null,null,{"$f":"INDEX(INDIRECT(\"dProduct[ProductName]\"),ROUNDUP(COLUMNS($G:DW)/3,0))","v":"ขนมปังกรอบเนยน้ำตาล(30กรัม)"},null,null,{"$f":"INDEX(INDIRECT(\"dProduct[ProductName]\"),ROUNDUP(COLUMNS($G:DZ)/3,0))","v":"ขนมปังชนิดแผ่นโฮลวีต"},null,null,{"$f":"INDEX(INDIRECT(\"dProduct[ProductName]\"),ROUNDUP(COLUMNS($G:EC)/3,0))","v":"เค้กโรลใบเตย"},null,null,{"$f":"INDEX(INDIRECT(\"dProduct[ProductName]\"),ROUNDUP(COLUMNS($G:EF)/3,0))","v":"ขนมโมจิไส้ถั่วดำ"},null,null,{"$f":"INDEX(INDIRECT(\"dProduct[ProductName]\"),ROUNDUP(COLUMNS($G:EI)/3,0))","v":"ครัวซองต์ไส้กรอกชีส"},null,null,{"$f":"INDEX(INDIRECT(\"dProduct[ProductName]\"),ROUNDUP(COLUMNS($G:EL)/3,0))","v":"ขนมเปี๊ยะไส้ถั่ว"},null,null,{"$f":"INDEX(INDIRECT(\"dProduct[ProductName]\"),ROUNDUP(COLUMNS($G:EO)/3,0))","v":"ขนมเปี๊ยะไส้ฟัก"},null,null,{"$f":"INDEX(INDIRECT(\"dProduct[ProductName]\"),ROUNDUP(COLUMNS($G:ER)/3,0))","v":"มังกี้เค้ก"},null,null,"มูลค่าสินค้า",null,"ภาษี","รวมยอดขาย"]
[null,null,null,null,null,"ราคาขาย",{"$f":"IF(G$7=0,0,INDEX(Price_List,ROUNDUP(COLUMNS($G:G)/3,0)))","v":20},null,null,{"$f":"IF(J$7=0,0,INDEX(Price_List,ROUNDUP(COLUMNS($G:J)/3,0)))","v":20},null,null,{"$f":"IF(M$7=0,0,INDEX(Price_List,ROUNDUP(COLUMNS($G:M)/3,0)))","v":20},null,null,{"$f":"IF(P$7=0,0,INDEX(Price_List,ROUNDUP(COLUMNS($G:P)/3,0)))","v":15},null,null,{"$f":"IF(S$7=0,0,INDEX(Price_List,ROUNDUP(COLUMNS($G:S)/3,0)))","v":15},null,null,{"$f":"IF(V$7=0,0,INDEX(Price_List,ROUNDUP(COLUMNS($G:V)/3,0)))","v":10},null,null,{"$f":"IF(Y$7=0,0,INDEX(Price_List,ROUNDUP(COLUMNS($G:Y)/3,0)))","v":10},null,null,{"$f":"IF(AB$7=0,0,INDEX(Price_List,ROUNDUP(COLUMNS($G:AB)/3,0)))","v":10},null,null,{"$f":"IF(AE$7=0,0,INDEX(Price_List,ROUNDUP(COLUMNS($G:AE)/3,0)))","v":10},null,null,{"$f":"IF(AH$7=0,0,INDEX(Price_List,ROUNDUP(COLUMNS($G:AH)/3,0)))","v":10},null,null,{"$f":"IF(AK$7=0,0,INDEX(Price_List,ROUNDUP(COLUMNS($G:AK)/3,0)))","v":15},null,null,{"$f":"IF(AN$7=0,0,INDEX(Price_List,ROUNDUP(COLUMNS($G:AN)/3,0)))","v":15},null,null,{"$f":"IF(AQ$7=0,0,INDEX(Price_List,ROUNDUP(COLUMNS($G:AQ)/3,0)))","v":15},null,null,{"$f":"IF(AT$7=0,0,INDEX(Price_List,ROUNDUP(COLUMNS($G:AT)/3,0)))","v":15},null,null,{"$f":"IF(AW$7=0,0,INDEX(Price_List,ROUNDUP(COLUMNS($G:AW)/3,0)))","v":42},null,null,{"$f":"IF(AZ$7=0,0,INDEX(Price_List,ROUNDUP(COLUMNS($G:AZ)/3,0)))","v":12},null,null,{"$f":"IF(BC$7=0,0,INDEX(Price_List,ROUNDUP(COLUMNS($G:BC)/3,0)))","v":12},null,null,{"$f":"IF(BF$7=0,0,INDEX(Price_List,ROUNDUP(COLUMNS($G:BF)/3,0)))","v":15},null,null,{"$f":"IF(BI$7=0,0,INDEX(Price_List,ROUNDUP(COLUMNS($G:BI)/3,0)))","v":20},null,null,{"$f":"IF(BL$7=0,0,INDEX(Price_List,ROUNDUP(COLUMNS($G:BL)/3,0)))","v":20},null,null,{"$f":"IF(BO$7=0,0,INDEX(Price_List,ROUNDUP(COLUMNS($G:BO)/3,0)))","v":20},null,null,{"$f":"IF(BR$7=0,0,INDEX(Price_List,ROUNDUP(COLUMNS($G:BR)/3,0)))","v":15},null,null,{"$f":"IF(BU$7=0,0,INDEX(Price_List,ROUNDUP(COLUMNS($G:BU)/3,0)))","v":20},null,null,{"$f":"IF(BX$7=0,0,INDEX(Price_List,ROUNDUP(COLUMNS($G:BX)/3,0)))","v":20},null,null,{"$f":"IF(CA$7=0,0,INDEX(Price_List,ROUNDUP(COLUMNS($G:CA)/3,0)))","v":15},null,null,{"$f":"IF(CD$7=0,0,INDEX(Price_List,ROUNDUP(COLUMNS($G:CD)/3,0)))","v":15},null,null,{"$f":"IF(CG$7=0,0,INDEX(Price_List,ROUNDUP(COLUMNS($G:CG)/3,0)))","v":20},null,null,{"$f":"IF(CJ$7=0,0,INDEX(Price_List,ROUNDUP(COLUMNS($G:CJ)/3,0)))","v":20},null,null,{"$f":"IF(CM$7=0,0,INDEX(Price_List,ROUNDUP(COLUMNS($G:CM)/3,0)))","v":10},null,null,{"$f":"IF(CP$7=0,0,INDEX(Price_List,ROUNDUP(COLUMNS($G:CP)/3,0)))","v":15},null,null,{"$f":"IF(CS$7=0,0,INDEX(Price_List,ROUNDUP(COLUMNS($G:CS)/3,0)))","v":15},null,null,{"$f":"IF(CV$7=0,0,INDEX(Price_List,ROUNDUP(COLUMNS($G:CV)/3,0)))","v":16},null,null,{"$f":"IF(CY$7=0,0,INDEX(Price_List,ROUNDUP(COLUMNS($G:CY)/3,0)))","v":15},null,null,{"$f":"IF(DB$7=0,0,INDEX(Price_List,ROUNDUP(COLUMNS($G:DB)/3,0)))","v":15},null,null,{"$f":"IF(DE$7=0,0,INDEX(Price_List,ROUNDUP(COLUMNS($G:DE)/3,0)))","v":10},null,null,{"$f":"IF(DH$7=0,0,INDEX(Price_List,ROUNDUP(COLUMNS($G:DH)/3,0)))","v":10},null,null,{"$f":"IF(DK$7=0,0,INDEX(Price_List,ROUNDUP(COLUMNS($G:DK)/3,0)))","v":20},null,null,{"$f":"IF(DN$7=0,0,INDEX(Price_List,ROUNDUP(COLUMNS($G:DN)/3,0)))","v":20},null,null,{"$f":"IF(DQ$7=0,0,INDEX(Price_List,ROUNDUP(COLUMNS($G:DQ)/3,0)))","v":15},null,null,{"$f":"IF(DT$7=0,0,INDEX(Price_List,ROUNDUP(COLUMNS($G:DT)/3,0)))","v":15},null,null,{"$f":"IF(DW$7=0,0,INDEX(Price_List,ROUNDUP(COLUMNS($G:DW)/3,0)))","v":12},null,null,{"$f":"IF(DZ$7=0,0,INDEX(Price_List,ROUNDUP(COLUMNS($G:DZ)/3,0)))","v":18},null,null,{"$f":"IF(EC$7=0,0,INDEX(Price_List,ROUNDUP(COLUMNS($G:EC)/3,0)))","v":12},null,null,{"$f":"IF(EF$7=0,0,INDEX(Price_List,ROUNDUP(COLUMNS($G:EF)/3,0)))","v":12},null,null,{"$f":"IF(EI$7=0,0,INDEX(Price_List,ROUNDUP(COLUMNS($G:EI)/3,0)))","v":25},null,null,{"$f":"IF(EL$7=0,0,INDEX(Price_List,ROUNDUP(COLUMNS($G:EL)/3,0)))","v":12},null,null,{"$f":"IF(EO$7=0,0,INDEX(Price_List,ROUNDUP(COLUMNS($G:EO)/3,0)))","v":12},null,null,{"$f":"IF(ER$7=0,0,INDEX(Price_List,ROUNDUP(COLUMNS($G:ER)/3,0)))","v":12},null,null,"เงินเชื่อ","เงินสด"]
[null,null,null,null,null,"คงเหลือ(ตามบัญชี)",{"$f":"IF(G$7=0,0,INDEX(INDIRECT(Order_Rng),ROUNDUP(COLUMNS($G:G)/3,0)))","v":0},null,null,{"$f":"IF(J$7=0,0,INDEX(INDIRECT(Order_Rng),ROUNDUP(COLUMNS($G:J)/3,0)))","v":0},null,null,{"$f":"IF(M$7=0,0,INDEX(INDIRECT(Order_Rng),ROUNDUP(COLUMNS($G:M)/3,0)))","v":0},null,null,{"$f":"IF(P$7=0,0,INDEX(INDIRECT(Order_Rng),ROUNDUP(COLUMNS($G:P)/3,0)))","v":0},null,null,{"$f":"IF(S$7=0,0,INDEX(INDIRECT(Order_Rng),ROUNDUP(COLUMNS($G:S)/3,0)))","v":0},null,null,{"$f":"IF(V$7=0,0,INDEX(INDIRECT(Order_Rng),ROUNDUP(COLUMNS($G:V)/3,0)))","v":0},null,null,{"$f":"IF(Y$7=0,0,INDEX(INDIRECT(Order_Rng),ROUNDUP(COLUMNS($G:Y)/3,0)))","v":0},null,null,{"$f":"IF(AB$7=0,0,INDEX(INDIRECT(Order_Rng),ROUNDUP(COLUMNS($G:AB)/3,0)))","v":0},null,null,{"$f":"IF(AE$7=0,0,INDEX(INDIRECT(Order_Rng),ROUNDUP(COLUMNS($G:AE)/3,0)))","v":0},null,null,{"$f":"IF(AH$7=0,0,INDEX(INDIRECT(Order_Rng),ROUNDUP(COLUMNS($G:AH)/3,0)))","v":0},null,null,{"$f":"IF(AK$7=0,0,INDEX(INDIRECT(Order_Rng),ROUNDUP(COLUMNS($G:AK)/3,0)))","v":0},null,null,{"$f":"IF(AN$7=0,0,INDEX(INDIRECT(Order_Rng),ROUNDUP(COLUMNS($G:AN)/3,0)))","v":0},null,null,{"$f":"IF(AQ$7=0,0,INDEX(INDIRECT(Order_Rng),ROUNDUP(COLUMNS($G:AQ)/3,0)))","v":0},null,null,{"$f":"IF(AT$7=0,0,INDEX(INDIRECT(Order_Rng),ROUNDUP(COLUMNS($G:AT)/3,0)))","v":0},null,null,{"$f":"IF(AW$7=0,0,INDEX(INDIRECT(Order_Rng),ROUNDUP(COLUMNS($G:AW)/3,0)))","v":0},null,null,{"$f":"IF(AZ$7=0,0,INDEX(INDIRECT(Order_Rng),ROUNDUP(COLUMNS($G:AZ)/3,0)))","v":0},null,null,{"$f":"IF(BC$7=0,0,INDEX(INDIRECT(Order_Rng),ROUNDUP(COLUMNS($G:BC)/3,0)))","v":0},null,null,{"$f":"IF(BF$7=0,0,INDEX(INDIRECT(Order_Rng),ROUNDUP(COLUMNS($G:BF)/3,0)))","v":0},null,null,{"$f":"IF(BI$7=0,0,INDEX(INDIRECT(Order_Rng),ROUNDUP(COLUMNS($G:BI)/3,0)))","v":0},null,null,{"$f":"IF(BL$7=0,0,INDEX(INDIRECT(Order_Rng),ROUNDUP(COLUMNS($G:BL)/3,0)))","v":0},null,null,{"$f":"IF(BO$7=0,0,INDEX(INDIRECT(Order_Rng),ROUNDUP(COLUMNS($G:BO)/3,0)))","v":0},null,null,{"$f":"IF(BR$7=0,0,INDEX(INDIRECT(Order_Rng),ROUNDUP(COLUMNS($G:BR)/3,0)))","v":0},null,null,{"$f":"IF(BU$7=0,0,INDEX(INDIRECT(Order_Rng),ROUNDUP(COLUMNS($G:BU)/3,0)))","v":0},null,null,{"$f":"IF(BX$7=0,0,INDEX(INDIRECT(Order_Rng),ROUNDUP(COLUMNS($G:BX)/3,0)))","v":0},null,null,{"$f":"IF(CA$7=0,0,INDEX(INDIRECT(Order_Rng),ROUNDUP(COLUMNS($G:CA)/3,0)))","v":0},null,null,{"$f":"IF(CD$7=0,0,INDEX(INDIRECT(Order_Rng),ROUNDUP(COLUMNS($G:CD)/3,0)))","v":0},null,null,{"$f":"IF(CG$7=0,0,INDEX(INDIRECT(Order_Rng),ROUNDUP(COLUMNS($G:CG)/3,0)))","v":0},null,null,{"$f":"IF(CJ$7=0,0,INDEX(INDIRECT(Order_Rng),ROUNDUP(COLUMNS($G:CJ)/3,0)))","v":0},null,null,{"$f":"IF(CM$7=0,0,INDEX(INDIRECT(Order_Rng),ROUNDUP(COLUMNS($G:CM)/3,0)))","v":0},null,null,{"$f":"IF(CP$7=0,0,INDEX(INDIRECT(Order_Rng),ROUNDUP(COLUMNS($G:CP)/3,0)))","v":0},null,null,{"$f":"IF(CS$7=0,0,INDEX(INDIRECT(Order_Rng),ROUNDUP(COLUMNS($G:CS)/3,0)))","v":0},null,null,{"$f":"IF(CV$7=0,0,INDEX(INDIRECT(Order_Rng),ROUNDUP(COLUMNS($G:CV)/3,0)))","v":0},null,null,{"$f":"IF(CY$7=0,0,INDEX(INDIRECT(Order_Rng),ROUNDUP(COLUMNS($G:CY)/3,0)))","v":0},null,null,{"$f":"IF(DB$7=0,0,INDEX(INDIRECT(Order_Rng),ROUNDUP(COLUMNS($G:DB)/3,0)))","v":0},null,null,{"$f":"IF(DE$7=0,0,INDEX(INDIRECT(Order_Rng),ROUNDUP(COLUMNS($G:DE)/3,0)))","v":0},null,null,{"$f":"IF(DH$7=0,0,INDEX(INDIRECT(Order_Rng),ROUNDUP(COLUMNS($G:DH)/3,0)))","v":0},null,null,{"$f":"IF(DK$7=0,0,INDEX(INDIRECT(Order_Rng),ROUNDUP(COLUMNS($G:DK)/3,0)))","v":0},null,null,{"$f":"IF(DN$7=0,0,INDEX(INDIRECT(Order_Rng),ROUNDUP(COLUMNS($G:DN)/3,0)))","v":0},null,null,{"$f":"IF(DQ$7=0,0,INDEX(INDIRECT(Order_Rng),ROUNDUP(COLUMNS($G:DQ)/3,0)))","v":0},null,null,{"$f":"IF(DT$7=0,0,INDEX(INDIRECT(Order_Rng),ROUNDUP(COLUMNS($G:DT)/3,0)))","v":0},null,null,{"$f":"IF(DW$7=0,0,INDEX(INDIRECT(Order_Rng),ROUNDUP(COLUMNS($G:DW)/3,0)))","v":0},null,null,{"$f":"IF(DZ$7=0,0,INDEX(INDIRECT(Order_Rng),ROUNDUP(COLUMNS($G:DZ)/3,0)))","v":0},null,null,{"$f":"IF(EC$7=0,0,INDEX(INDIRECT(Order_Rng),ROUNDUP(COLUMNS($G:EC)/3,0)))","v":0},null,null,{"$f":"IF(EF$7=0,0,INDEX(INDIRECT(Order_Rng),ROUNDUP(COLUMNS($G:EF)/3,0)))","v":0},null,null,{"$f":"IF(EI$7=0,0,INDEX(INDIRECT(Order_Rng),ROUNDUP(COLUMNS($G:EI)/3,0)))","v":0},null,null,{"$f":"IF(EL$7=0,0,INDEX(INDIRECT(Order_Rng),ROUNDUP(COLUMNS($G:EL)/3,0)))","v":0},null,null,{"$f":"IF(EO$7=0,0,INDEX(INDIRECT(Order_Rng),ROUNDUP(COLUMNS($G:EO)/3,0)))","v":0},null,null,{"$f":"IF(ER$7=0,0,INDEX(INDIRECT(Order_Rng),ROUNDUP(COLUMNS($G:ER)/3,0)))","v":0}]
[{"$f":"IF(OR($B10=\"\",COUNTIF($B$10:$B10,$B10)>1,LEN(TRIM($B10))<>10,ISNUMBER(--MID(TRIM($B10),5,1))),\"-\",MAX(COUNT($A$9:$A9)+1))","v":"-"}]
[{"$f":"IF(OR($B11=\"\",COUNTIF($B$10:$B11,$B11)>1,LEN(TRIM($B11))<>10,ISNUMBER(--MID(TRIM($B11),5,1))),\"-\",MAX(COUNT($A$9:$A10)+1))","v":"-"},null,null,null,{"$f":"IF(D11=\"\",\"\",D11-D10)","v":""}]
[{"$f":"IF(OR($B12=\"\",COUNTIF($B$10:$B12,$B12)>1,LEN(TRIM($B12))<>10,ISNUMBER(--MID(TRIM($B12),5,1))),\"-\",MAX(COUNT($A$9:$A11)+1))","v":"-"},null,null,null,{"$f":"IF(D12=\"\",\"\",D12-D11)","v":""}]
[{"$f":"IF(OR($B13=\"\",COUNTIF($B$10:$B13,$B13)>1,LEN(TRIM($B13))<>10,ISNUMBER(--MID(TRIM($B13),5,1))),\"-\",MAX(COUNT($A$9:$A12)+1))","v":"-"},null,null,null,""]
[{"$f":"IF(OR($B14=\"\",COUNTIF($B$10:$B14,$B14)>1,LEN(TRIM($B14))<>10,ISNUMBER(--MID(TRIM($B14),5,1))),\"-\",MAX(COUNT($A$9:$A13)+1))","v":"-"},null,null,null,""]
[{"$f":"IF(OR($B15=\"\",COUNTIF($B$10:$B15,$B15)>1,LEN(TRIM($B15))<>10,ISNUMBER(--MID(TRIM($B15),5,1))),\"-\",MAX(COUNT($A$9:$A14)+1))","v":"-"},null,null,null,""]
[{"$f":"IF(OR($B16=\"\",COUNTIF($B$10:$B16,$B16)>1,LEN(TRIM($B16))<>10,ISNUMBER(--MID(TRIM($B16),5,1))),\"-\",MAX(COUNT($A$9:$A15)+1))","v":"-"},null,null,null,""]
[{"$f":"IF(OR($B17=\"\",COUNTIF($B$10:$B17,$B17)>1,LEN(TRIM($B17))<>10,ISNUMBER(--MID(TRIM($B17),5,1))),\"-\",MAX(COUNT($A$9:$A16)+1))","v":"-"},null,null,null,""]
[{"$f":"IF(OR($B18=\"\",COUNTIF($B$10:$B18,$B18)>1,LEN(TRIM($B18))<>10,ISNUMBER(--MID(TRIM($B18),5,1))),\"-\",MAX(COUNT($A$9:$A17)+1))","v":"-"},null,null,null,""]
[{"$f":"IF(OR($B19=\"\",COUNTIF($B$10:$B19,$B19)>1,LEN(TRIM($B19))<>10,ISNUMBER(--MID(TRIM($B19),5,1))),\"-\",MAX(COUNT($A$9:$A18)+1))","v":"-"},null,null,null,""]
[{"$f":"IF(OR($B20=\"\",COUNTIF($B$10:$B20,$B20)>1,LEN(TRIM($B20))<>10,ISNUMBER(--MID(TRIM($B20),5,1))),\"-\",MAX(COUNT($A$9:$A19)+1))","v":"-"},null,null,null,""]
[{"$f":"IF(OR($B21=\"\",COUNTIF($B$10:$B21,$B21)>1,LEN(TRIM($B21))<>10,ISNUMBER(--MID(TRIM($B21),5,1))),\"-\",MAX(COUNT($A$9:$A20)+1))","v":"-"},null,null,null,""]
[{"$f":"IF(OR($B22=\"\",COUNTIF($B$10:$B22,$B22)>1,LEN(TRIM($B22))<>10,ISNUMBER(--MID(TRIM($B22),5,1))),\"-\",MAX(COUNT($A$9:$A21)+1))","v":"-"},null,null,null,""]
[{"$f":"IF(OR($B23=\"\",COUNTIF($B$10:$B23,$B23)>1,LEN(TRIM($B23))<>10,ISNUMBER(--MID(TRIM($B23),5,1))),\"-\",MAX(COUNT($A$9:$A22)+1))","v":"-"},null,null,null,""]
[{"$f":"IF(OR($B24=\"\",COUNTIF($B$10:$B24,$B24)>1,LEN(TRIM($B24))<>10,ISNUMBER(--MID(TRIM($B24),5,1))),\"-\",MAX(COUNT($A$9:$A23)+1))","v":"-"},null,null,null,""]
[{"$f":"IF(OR($B25=\"\",COUNTIF($B$10:$B25,$B25)>1,LEN(TRIM($B25))<>10,ISNUMBER(--MID(TRIM($B25),5,1))),\"-\",MAX(COUNT($A$9:$A24)+1))","v":"-"},null,null,null,""]
[{"$f":"IF(OR($B26=\"\",COUNTIF($B$10:$B26,$B26)>1,LEN(TRIM($B26))<>10,ISNUMBER(--MID(TRIM($B26),5,1))),\"-\",MAX(COUNT($A$9:$A25)+1))","v":"-"},null,null,null,""]
[{"$f":"IF(OR($B27=\"\",COUNTIF($B$10:$B27,$B27)>1,LEN(TRIM($B27))<>10,ISNUMBER(--MID(TRIM($B27),5,1))),\"-\",MAX(COUNT($A$9:$A26)+1))","v":"-"},null,null,null,""]
[{"$f":"IF(OR($B28=\"\",COUNTIF($B$10:$B28,$B28)>1,LEN(TRIM($B28))<>10,ISNUMBER(--MID(TRIM($B28),5,1))),\"-\",MAX(COUNT($A$9:$A27)+1))","v":"-"},null,null,null,""]
[{"$f":"IF(OR($B29=\"\",COUNTIF($B$10:$B29,$B29)>1,LEN(TRIM($B29))<>10,ISNUMBER(--MID(TRIM($B29),5,1))),\"-\",MAX(COUNT($A$9:$A28)+1))","v":"-"},null,null,null,""]
[{"$f":"IF(OR($B30=\"\",COUNTIF($B$10:$B30,$B30)>1,LEN(TRIM($B30))<>10,ISNUMBER(--MID(TRIM($B30),5,1))),\"-\",MAX(COUNT($A$9:$A29)+1))","v":"-"},null,null,null,""]
[{"$f":"IF(OR($B31=\"\",COUNTIF($B$10:$B31,$B31)>1,LEN(TRIM($B31))<>10,ISNUMBER(--MID(TRIM($B31),5,1))),\"-\",MAX(COUNT($A$9:$A30)+1))","v":"-"},null,null,null,""]
[{"$f":"IF(OR($B32=\"\",COUNTIF($B$10:$B32,$B32)>1,LEN(TRIM($B32))<>10,ISNUMBER(--MID(TRIM($B32),5,1))),\"-\",MAX(COUNT($A$9:$A31)+1))","v":"-"},null,null,null,""]
[{"$f":"IF(OR($B33=\"\",COUNTIF($B$10:$B33,$B33)>1,LEN(TRIM($B33))<>10,ISNUMBER(--MID(TRIM($B33),5,1))),\"-\",MAX(COUNT($A$9:$A32)+1))","v":"-"},null,null,null,""]
[{"$f":"IF(OR($B34=\"\",COUNTIF($B$10:$B34,$B34)>1,LEN(TRIM($B34))<>10,ISNUMBER(--MID(TRIM($B34),5,1))),\"-\",MAX(COUNT($A$9:$A33)+1))","v":"-"},null,null,null,""]
[{"$f":"IF(OR($B35=\"\",COUNTIF($B$10:$B35,$B35)>1,LEN(TRIM($B35))<>10,ISNUMBER(--MID(TRIM($B35),5,1))),\"-\",MAX(COUNT($A$9:$A34)+1))","v":"-"},null,null,null,""]
[{"$f":"IF(OR($B36=\"\",COUNTIF($B$10:$B36,$B36)>1,LEN(TRIM($B36))<>10,ISNUMBER(--MID(TRIM($B36),5,1))),\"-\",MAX(COUNT($A$9:$A35)+1))","v":"-"},null,null,null,""]
[{"$f":"IF(OR($B37=\"\",COUNTIF($B$10:$B37,$B37)>1,LEN(TRIM($B37))<>10,ISNUMBER(--MID(TRIM($B37),5,1))),\"-\",MAX(COUNT($A$9:$A36)+1))","v":"-"},null,null,null,""]
[{"$f":"IF(OR($B38=\"\",COUNTIF($B$10:$B38,$B38)>1,LEN(TRIM($B38))<>10,ISNUMBER(--MID(TRIM($B38),5,1))),\"-\",MAX(COUNT($A$9:$A37)+1))","v":"-"},null,null,null,""]
[{"$f":"IF(OR($B39=\"\",COUNTIF($B$10:$B39,$B39)>1,LEN(TRIM($B39))<>10,ISNUMBER(--MID(TRIM($B39),5,1))),\"-\",MAX(COUNT($A$9:$A38)+1))","v":"-"},null,null,null,""]
[{"$f":"IF(OR($B40=\"\",COUNTIF($B$10:$B40,$B40)>1,LEN(TRIM($B40))<>10,ISNUMBER(--MID(TRIM($B40),5,1))),\"-\",MAX(COUNT($A$9:$A39)+1))","v":"-"},null,null,null,""]
[{"$f":"IF(OR($B41=\"\",COUNTIF($B$10:$B41,$B41)>1,LEN(TRIM($B41))<>10,ISNUMBER(--MID(TRIM($B41),5,1))),\"-\",MAX(COUNT($A$9:$A40)+1))","v":"-"},null,null,null,""]
[{"$f":"IF(OR($B42=\"\",COUNTIF($B$10:$B42,$B42)>1,LEN(TRIM($B42))<>10,ISNUMBER(--MID(TRIM($B42),5,1))),\"-\",MAX(COUNT($A$9:$A41)+1))","v":"-"},null,null,null,""]
[{"$f":"IF(OR($B43=\"\",COUNTIF($B$10:$B43,$B43)>1,LEN(TRIM($B43))<>10,ISNUMBER(--MID(TRIM($B43),5,1))),\"-\",MAX(COUNT($A$9:$A42)+1))","v":"-"},null,null,null,""]
[{"$f":"IF(OR($B44=\"\",COUNTIF($B$10:$B44,$B44)>1,LEN(TRIM($B44))<>10,ISNUMBER(--MID(TRIM($B44),5,1))),\"-\",MAX(COUNT($A$9:$A43)+1))","v":"-"},null,null,null,""]
[{"$f":"IF(OR($B45=\"\",COUNTIF($B$10:$B45,$B45)>1,LEN(TRIM($B45))<>10,ISNUMBER(--MID(TRIM($B45),5,1))),\"-\",MAX(COUNT($A$9:$A44)+1))","v":"-"},null,null,null,""]
[{"$f":"IF(OR($B46=\"\",COUNTIF($B$10:$B46,$B46)>1,LEN(TRIM($B46))<>10,ISNUMBER(--MID(TRIM($B46),5,1))),\"-\",MAX(COUNT($A$9:$A45)+1))","v":"-"},null,null,null,""]
[{"$f":"IF(OR($B47=\"\",COUNTIF($B$10:$B47,$B47)>1,LEN(TRIM($B47))<>10,ISNUMBER(--MID(TRIM($B47),5,1))),\"-\",MAX(COUNT($A$9:$A46)+1))","v":"-"},null,null,null,""]
[{"$f":"IF(OR($B48=\"\",COUNTIF($B$10:$B48,$B48)>1,LEN(TRIM($B48))<>10,ISNUMBER(--MID(TRIM($B48),5,1))),\"-\",MAX(COUNT($A$9:$A47)+1))","v":"-"},null,null,null,""]
[{"$f":"IF(OR($B49=\"\",COUNTIF($B$10:$B49,$B49)>1,LEN(TRIM($B49))<>10,ISNUMBER(--MID(TRIM($B49),5,1))),\"-\",MAX(COUNT($A$9:$A48)+1))","v":"-"},null,null,null,""]
[{"$f":"IF(OR($B50=\"\",COUNTIF($B$10:$B50,$B50)>1,LEN(TRIM($B50))<>10,ISNUMBER(--MID(TRIM($B50),5,1))),\"-\",MAX(COUNT($A$9:$A49)+1))","v":"-"},null,null,null,""]
[{"$f":"IF(OR($B51=\"\",COUNTIF($B$10:$B51,$B51)>1,LEN(TRIM($B51))<>10,ISNUMBER(--MID(TRIM($B51),5,1))),\"-\",MAX(COUNT($A$9:$A50)+1))","v":"-"},null,null,null,""]
[{"$f":"IF(OR($B52=\"\",COUNTIF($B$10:$B52,$B52)>1,LEN(TRIM($B52))<>10,ISNUMBER(--MID(TRIM($B52),5,1))),\"-\",MAX(COUNT($A$9:$A51)+1))","v":"-"},null,null,null,""]
[{"$f":"IF(OR($B53=\"\",COUNTIF($B$10:$B53,$B53)>1,LEN(TRIM($B53))<>10,ISNUMBER(--MID(TRIM($B53),5,1))),\"-\",MAX(COUNT($A$9:$A52)+1))","v":"-"},null,null,null,""]
[{"$f":"IF(OR($B54=\"\",COUNTIF($B$10:$B54,$B54)>1,LEN(TRIM($B54))<>10,ISNUMBER(--MID(TRIM($B54),5,1))),\"-\",MAX(COUNT($A$9:$A53)+1))","v":"-"},null,null,null,""]
[{"$f":"IF(OR($B55=\"\",COUNTIF($B$10:$B55,$B55)>1,LEN(TRIM($B55))<>10,ISNUMBER(--MID(TRIM($B55),5,1))),\"-\",MAX(COUNT($A$9:$A54)+1))","v":"-"},null,null,null,""]
[{"$f":"IF(OR($B56=\"\",COUNTIF($B$10:$B56,$B56)>1,LEN(TRIM($B56))<>10,ISNUMBER(--MID(TRIM($B56),5,1))),\"-\",MAX(COUNT($A$9:$A55)+1))","v":"-"},null,null,null,""]
[{"$f":"IF(OR($B57=\"\",COUNTIF($B$10:$B57,$B57)>1,LEN(TRIM($B57))<>10,ISNUMBER(--MID(TRIM($B57),5,1))),\"-\",MAX(COUNT($A$9:$A56)+1))","v":"-"},null,null,null,""]
[{"$f":"IF(OR($B58=\"\",COUNTIF($B$10:$B58,$B58)>1,LEN(TRIM($B58))<>10,ISNUMBER(--MID(TRIM($B58),5,1))),\"-\",MAX(COUNT($A$9:$A57)+1))","v":"-"},null,null,null,""]
[{"$f":"IF(OR($B59=\"\",COUNTIF($B$10:$B59,$B59)>1,LEN(TRIM($B59))<>10,ISNUMBER(--MID(TRIM($B59),5,1))),\"-\",MAX(COUNT($A$9:$A58)+1))","v":"-"},null,null,null,""]
[{"$f":"IF(OR($B60=\"\",COUNTIF($B$10:$B60,$B60)>1,LEN(TRIM($B60))<>10,ISNUMBER(--MID(TRIM($B60),5,1))),\"-\",MAX(COUNT($A$9:$A59)+1))","v":"-"},null,null,null,""]
[{"$f":"IF(OR($B61=\"\",COUNTIF($B$10:$B61,$B61)>1,LEN(TRIM($B61))<>10,ISNUMBER(--MID(TRIM($B61),5,1))),\"-\",MAX(COUNT($A$9:$A60)+1))","v":"-"},null,null,null,""]
[{"$f":"IF(OR($B62=\"\",COUNTIF($B$10:$B62,$B62)>1,LEN(TRIM($B62))<>10,ISNUMBER(--MID(TRIM($B62),5,1))),\"-\",MAX(COUNT($A$9:$A61)+1))","v":"-"},null,null,null,""]
[{"$f":"IF(OR($B63=\"\",COUNTIF($B$10:$B63,$B63)>1,LEN(TRIM($B63))<>10,ISNUMBER(--MID(TRIM($B63),5,1))),\"-\",MAX(COUNT($A$9:$A62)+1))","v":"-"},null,null,null,""]
[{"$f":"IF(OR($B64=\"\",COUNTIF($B$10:$B64,$B64)>1,LEN(TRIM($B64))<>10,ISNUMBER(--MID(TRIM($B64),5,1))),\"-\",MAX(COUNT($A$9:$A63)+1))","v":"-"},null,null,null,""]
[{"$f":"IF(OR($B65=\"\",COUNTIF($B$10:$B65,$B65)>1,LEN(TRIM($B65))<>10,ISNUMBER(--MID(TRIM($B65),5,1))),\"-\",MAX(COUNT($A$9:$A64)+1))","v":"-"},null,null,null,""]
[{"$f":"IF(OR($B66=\"\",COUNTIF($B$10:$B66,$B66)>1,LEN(TRIM($B66))<>10,ISNUMBER(--MID(TRIM($B66),5,1))),\"-\",MAX(COUNT($A$9:$A65)+1))","v":"-"},null,null,null,""]
[{"$f":"IF(OR($B67=\"\",COUNTIF($B$10:$B67,$B67)>1,LEN(TRIM($B67))<>10,ISNUMBER(--MID(TRIM($B67),5,1))),\"-\",MAX(COUNT($A$9:$A66)+1))","v":"-"},null,null,null,""]
[{"$f":"IF(OR($B68=\"\",COUNTIF($B$10:$B68,$B68)>1,LEN(TRIM($B68))<>10,ISNUMBER(--MID(TRIM($B68),5,1))),\"-\",MAX(COUNT($A$9:$A67)+1))","v":"-"},null,null,null,""]
[{"$f":"IF(OR($B69=\"\",COUNTIF($B$10:$B69,$B69)>1,LEN(TRIM($B69))<>10,ISNUMBER(--MID(TRIM($B69),5,1))),\"-\",MAX(COUNT($A$9:$A68)+1))","v":"-"},null,null,null,""]
[{"$f":"IF(OR($B70=\"\",COUNTIF($B$10:$B70,$B70)>1,LEN(TRIM($B70))<>10,ISNUMBER(--MID(TRIM($B70),5,1))),\"-\",MAX(COUNT($A$9:$A69)+1))","v":"-"},null,null,null,""]
[{"$f":"IF(OR($B71=\"\",COUNTIF($B$10:$B71,$B71)>1,LEN(TRIM($B71))<>10,ISNUMBER(--MID(TRIM($B71),5,1))),\"-\",MAX(COUNT($A$9:$A70)+1))","v":"-"},null,null,null,""]
[{"$f":"IF(OR($B72=\"\",COUNTIF($B$10:$B72,$B72)>1,LEN(TRIM($B72))<>10,ISNUMBER(--MID(TRIM($B72),5,1))),\"-\",MAX(COUNT($A$9:$A71)+1))","v":"-"},null,null,null,""]
[{"$f":"IF(OR($B73=\"\",COUNTIF($B$10:$B73,$B73)>1,LEN(TRIM($B73))<>10,ISNUMBER(--MID(TRIM($B73),5,1))),\"-\",MAX(COUNT($A$9:$A72)+1))","v":"-"},null,null,null,""]
[{"$f":"IF(OR($B74=\"\",COUNTIF($B$10:$B74,$B74)>1,LEN(TRIM($B74))<>10,ISNUMBER(--MID(TRIM($B74),5,1))),\"-\",MAX(COUNT($A$9:$A73)+1))","v":"-"},null,null,null,""]
[{"$f":"IF(OR($B75=\"\",COUNTIF($B$10:$B75,$B75)>1,LEN(TRIM($B75))<>10,ISNUMBER(--MID(TRIM($B75),5,1))),\"-\",MAX(COUNT($A$9:$A74)+1))","v":"-"},null,null,null,""]
[{"$f":"IF(OR($B76=\"\",COUNTIF($B$10:$B76,$B76)>1,LEN(TRIM($B76))<>10,ISNUMBER(--MID(TRIM($B76),5,1))),\"-\",MAX(COUNT($A$9:$A75)+1))","v":"-"},null,null,null,{"$f":"IF(D76=\"\",\"\",D76-D75)","v":""}]
[{"$f":"IF(OR($B77=\"\",COUNTIF($B$10:$B77,$B77)>1,LEN(TRIM($B77))<>10,ISNUMBER(--MID(TRIM($B77),5,1))),\"-\",MAX(COUNT($A$9:$A76)+1))","v":"-"},null,null,null,""]
[{"$f":"IF(OR($B78=\"\",COUNTIF($B$10:$B78,$B78)>1,LEN(TRIM($B78))<>10,ISNUMBER(--MID(TRIM($B78),5,1))),\"-\",MAX(COUNT($A$9:$A77)+1))","v":"-"},null,null,null,""]
[{"$f":"IF(OR($B79=\"\",COUNTIF($B$10:$B79,$B79)>1,LEN(TRIM($B79))<>10,ISNUMBER(--MID(TRIM($B79),5,1))),\"-\",MAX(COUNT($A$9:$A78)+1))","v":"-"},null,null,null,""]
["รวมของขาย|ของเสีย|เหลือบนเชลฟ์",null,null,null,null,null,{"$f":"SUM(G10:G79)","v":0},0,0,{"$f":"SUM(J10:J79)","v":0},0,0,0,0,0,0,0,0,0,0,0,0,0,0,0,0,0,0,0,0,0,0,0,0,0,0,0,0,0,0,0,0,0,0,0,0,0,0,0,0,0,0,0,0,0,0,0,0,0,0,0,0,0,0,0,0,0,0,0,0,0,0,0,{"$f":"SUM(BV10:BV79)","v":0},0,0,0,0,0,0,0,0,0,0,0,0,0,0,0,0,0,0,0,0,0,0,0,0,0,0,0,0,0,0,0,0,0,0,0,0,0,0,0,0,0,0,0,0,0,0,0,0,0,0,0,0,0,0,0,0,0,0,0,0,0,{"$f":"SUM(EF10:EF79)","v":0},0,0,{"$f":"SUM(EI10:EI79)","v":0},0,0,0,0,0,{"$f":"SUM(EO10:EO79)","v":0},0,0,0,0,0,"รวมเงินเชื่อ","รวมเงินสด","ภาษี","รวมยอดขาย"]
["ของเหลือ",null,null,null,null,null,{"$f":"G80+H80-G9","v":0},null,null,{"$f":"J80+K80-J9","v":0},null,null,{"$f":"M80+N80-M9","v":0},null,null,{"$f":"P80+Q80-P9","v":0},null,null,{"$f":"S80+T80-S9","v":0},null,null,{"$f":"V80+W80-V9","v":0},null,null,{"$f":"Y80+Z80-Y9","v":0},null,null,{"$f":"AB80+AC80-AB9","v":0},null,null,{"$f":"AE80+AF80-AE9","v":0},null,null,{"$f":"AH80+AI80-AH9","v":0},null,null,{"$f":"AK80+AL80-AK9","v":0},null,null,{"$f":"AN80+AO80-AN9","v":0},null,null,{"$f":"AQ80+AR80-AQ9","v":0},null,null,{"$f":"AT80+AU80-AT9","v":0},null,null,{"$f":"AW80+AX80-AW9","v":0},null,null,{"$f":"AZ80+BA80-AZ9","v":0},null,null,{"$f":"BC80+BD80-BC9","v":0},null,null,{"$f":"BF80+BG80-BF9","v":0},null,null,{"$f":"BI80+BJ80-BI9","v":0},null,null,{"$f":"BL80+BM80-BL9","v":0},null,null,{"$f":"BO80+BP80-BO9","v":0},null,null,{"$f":"BR80+BS80-BR9","v":0},null,null,{"$f":"BU80+BV80-BU9","v":0},null,null,{"$f":"BX80+BY80-BX9","v":0},null,null,{"$f":"CA80+CB80-CA9","v":0},null,null,{"$f":"CD80+CE80-CD9","v":0},null,null,{"$f":"CG80+CH80-CG9","v":0},null,null,{"$f":"CJ80+CK80-CJ9","v":0},null,null,{"$f":"CM80+CN80-CM9","v":0},null,null,{"$f":"CP80+CQ80-CP9","v":0},null,null,{"$f":"CS80+CT80-CS9","v":0},null,null,{"$f":"CV80+CW80-CV9","v":0},null,null,{"$f":"CY80+CZ80-CY9","v":0},null,null,{"$f":"DB80+DC80-DB9","v":0},null,null,{"$f":"DE80+DF80-DE9","v":0},null,null,{"$f":"DH80+DI80-DH9","v":0},null,null,{"$f":"DK80+DL80-DK9","v":0},null,null,{"$f":"DN80+DO80-DN9","v":0},null,null,{"$f":"DQ80+DR80-DQ9","v":0},null,null,{"$f":"DT80+DU80-DT9","v":0},null,null,{"$f":"DW80+DX80-DW9","v":0},null,null,{"$f":"DZ80+EA80-DZ9","v":0},null,null,{"$f":"EC80+ED80-EC9","v":0},null,null,{"$f":"EF80+EG80-EF9","v":0},null,null,{"$f":"EI80+EJ80-EI9","v":0},null,null,{"$f":"EL80+EM80-EL9","v":0},null,null,{"$f":"EO80+EP80-EO9","v":0},null,null,{"$f":"ER80+ES80-ER9","v":0},null,null,{"$f":"SUM(EU10:EU79)","v":0},{"$f":"SUM(EV10:EV79)","v":0},{"$f":"SUM(EW10:EW79)","v":0},{"$f":"SUM(EX10:EX79)","v":0}]
["เฉลี่ย",null,null,"เหลือ/เสีย(จริง)",null,null,{"$f":"INDIRECT(\"F\"&ROW($G$87)+ROUNDUP(COLUMNS($G:G)/3,0))","v":0},{"$f":"INDIRECT(\"G\"&ROW($G$87)+ROUNDUP(COLUMNS($G:H)/3,0))","v":0},null,{"$f":"INDIRECT(\"F\"&ROW($G$87)+ROUNDUP(COLUMNS($G:J)/3,0))","v":0},{"$f":"INDIRECT(\"G\"&ROW($G$87)+ROUNDUP(COLUMNS($G:K)/3,0))","v":0},null,{"$f":"INDIRECT(\"F\"&ROW($G$87)+ROUNDUP(COLUMNS($G:M)/3,0))","v":0},{"$f":"INDIRECT(\"G\"&ROW($G$87)+ROUNDUP(COLUMNS($G:N)/3,0))","v":0},null,{"$f":"INDIRECT(\"F\"&ROW($G$87)+ROUNDUP(COLUMNS($G:P)/3,0))","v":0},{"$f":"INDIRECT(\"G\"&ROW($G$87)+ROUNDUP(COLUMNS($G:Q)/3,0))","v":0},null,{"$f":"INDIRECT(\"F\"&ROW($G$87)+ROUNDUP(COLUMNS($G:S)/3,0))","v":0},{"$f":"INDIRECT(\"G\"&ROW($G$87)+ROUNDUP(COLUMNS($G:T)/3,0))","v":0},null,{"$f":"INDIRECT(\"F\"&ROW($G$87)+ROUNDUP(COLUMNS($G:V)/3,0))","v":0},{"$f":"INDIRECT(\"G\"&ROW($G$87)+ROUNDUP(COLUMNS($G:W)/3,0))","v":0},null,{"$f":"INDIRECT(\"F\"&ROW($G$87)+ROUNDUP(COLUMNS($G:Y)/3,0))","v":0},{"$f":"INDIRECT(\"G\"&ROW($G$87)+ROUNDUP(COLUMNS($G:Z)/3,0))","v":0},null,{"$f":"INDIRECT(\"F\"&ROW($G$87)+ROUNDUP(COLUMNS($G:AB)/3,0))","v":0},{"$f":"INDIRECT(\"G\"&ROW($G$87)+ROUNDUP(COLUMNS($G:AC)/3,0))","v":0},null,{"$f":"INDIRECT(\"F\"&ROW($G$87)+ROUNDUP(COLUMNS($G:AE)/3,0))","v":0},{"$f":"INDIRECT(\"G\"&ROW($G$87)+ROUNDUP(COLUMNS($G:AF)/3,0))","v":0},null,{"$f":"INDIRECT(\"F\"&ROW($G$87)+ROUNDUP(COLUMNS($G:AH)/3,0))","v":0},{"$f":"INDIRECT(\"G\"&ROW($G$87)+ROUNDUP(COLUMNS($G:AI)/3,0))","v":0},null,{"$f":"INDIRECT(\"F\"&ROW($G$87)+ROUNDUP(COLUMNS($G:AK)/3,0))","v":0},{"$f":"INDIRECT(\"G\"&ROW($G$87)+ROUNDUP(COLUMNS($G:AL)/3,0))","v":0},null,{"$f":"INDIRECT(\"F\"&ROW($G$87)+ROUNDUP(COLUMNS($G:AN)/3,0))","v":0},{"$f":"INDIRECT(\"G\"&ROW($G$87)+ROUNDUP(COLUMNS($G:AO)/3,0))","v":0},null,{"$f":"INDIRECT(\"F\"&ROW($G$87)+ROUNDUP(COLUMNS($G:AQ)/3,0))","v":0},{"$f":"INDIRECT(\"G\"&ROW($G$87)+ROUNDUP(COLUMNS($G:AR)/3,0))","v":0},null,{"$f":"INDIRECT(\"F\"&ROW($G$87)+ROUNDUP(COLUMNS($G:AT)/3,0))","v":0},{"$f":"INDIRECT(\"G\"&ROW($G$87)+ROUNDUP(COLUMNS($G:AU)/3,0))","v":0},null,{"$f":"INDIRECT(\"F\"&ROW($G$87)+ROUNDUP(COLUMNS($G:AW)/3,0))","v":0},{"$f":"INDIRECT(\"G\"&ROW($G$87)+ROUNDUP(COLUMNS($G:AX)/3,0))","v":0},null,{"$f":"INDIRECT(\"F\"&ROW($G$87)+ROUNDUP(COLUMNS($G:AZ)/3,0))","v":0},{"$f":"INDIRECT(\"G\"&ROW($G$87)+ROUNDUP(COLUMNS($G:BA)/3,0))","v":0},null,{"$f":"INDIRECT(\"F\"&ROW($G$87)+ROUNDUP(COLUMNS($G:BC)/3,0))","v":0},{"$f":"INDIRECT(\"G\"&ROW($G$87)+ROUNDUP(COLUMNS($G:BD)/3,0))","v":0},null,{"$f":"INDIRECT(\"F\"&ROW($G$87)+ROUNDUP(COLUMNS($G:BF)/3,0))","v":0},{"$f":"INDIRECT(\"G\"&ROW($G$87)+ROUNDUP(COLUMNS($G:BG)/3,0))","v":0},null,{"$f":"INDIRECT(\"F\"&ROW($G$87)+ROUNDUP(COLUMNS($G:BI)/3,0))","v":0},{"$f":"INDIRECT(\"G\"&ROW($G$87)+ROUNDUP(COLUMNS($G:BJ)/3,0))","v":0},null,{"$f":"INDIRECT(\"F\"&ROW($G$87)+ROUNDUP(COLUMNS($G:BL)/3,0))","v":0},{"$f":"INDIRECT(\"G\"&ROW($G$87)+ROUNDUP(COLUMNS($G:BM)/3,0))","v":0},null,{"$f":"INDIRECT(\"F\"&ROW($G$87)+ROUNDUP(COLUMNS($G:BO)/3,0))","v":0},{"$f":"INDIRECT(\"G\"&ROW($G$87)+ROUNDUP(COLUMNS($G:BP)/3,0))","v":0},null,{"$f":"INDIRECT(\"F\"&ROW($G$87)+ROUNDUP(COLUMNS($G:BR)/3,0))","v":0},{"$f":"INDIRECT(\"G\"&ROW($G$87)+ROUNDUP(COLUMNS($G:BS)/3,0))","v":0},null,{"$f":"INDIRECT(\"F\"&ROW($G$87)+ROUNDUP(COLUMNS($G:BU)/3,0))","v":0},{"$f":"INDIRECT(\"G\"&ROW($G$87)+ROUNDUP(COLUMNS($G:BV)/3,0))","v":0},null,{"$f":"INDIRECT(\"F\"&ROW($G$87)+ROUNDUP(COLUMNS($G:BX)/3,0))","v":0},{"$f":"INDIRECT(\"G\"&ROW($G$87)+ROUNDUP(COLUMNS($G:BY)/3,0))","v":0},null,{"$f":"INDIRECT(\"F\"&ROW($G$87)+ROUNDUP(COLUMNS($G:CA)/3,0))","v":0},{"$f":"INDIRECT(\"G\"&ROW($G$87)+ROUNDUP(COLUMNS($G:CB)/3,0))","v":0},null,{"$f":"INDIRECT(\"F\"&ROW($G$87)+ROUNDUP(COLUMNS($G:CD)/3,0))","v":0},{"$f":"INDIRECT(\"G\"&ROW($G$87)+ROUNDUP(COLUMNS($G:CE)/3,0))","v":0},null,{"$f":"INDIRECT(\"F\"&ROW($G$87)+ROUNDUP(COLUMNS($G:CG)/3,0))","v":0},{"$f":"INDIRECT(\"G\"&ROW($G$87)+ROUNDUP(COLUMNS($G:CH)/3,0))","v":0},null,{"$f":"INDIRECT(\"F\"&ROW($G$87)+ROUNDUP(COLUMNS($G:CJ)/3,0))","v":0},{"$f":"INDIRECT(\"G\"&ROW($G$87)+ROUNDUP(COLUMNS($G:CK)/3,0))","v":0},null,{"$f":"INDIRECT(\"F\"&ROW($G$87)+ROUNDUP(COLUMNS($G:CM)/3,0))","v":0},{"$f":"INDIRECT(\"G\"&ROW($G$87)+ROUNDUP(COLUMNS($G:CN)/3,0))","v":0},null,{"$f":"INDIRECT(\"F\"&ROW($G$87)+ROUNDUP(COLUMNS($G:CP)/3,0))","v":0},{"$f":"INDIRECT(\"G\"&ROW($G$87)+ROUNDUP(COLUMNS($G:CQ)/3,0))","v":0},null,{"$f":"INDIRECT(\"F\"&ROW($G$87)+ROUNDUP(COLUMNS($G:CS)/3,0))","v":0},{"$f":"INDIRECT(\"G\"&ROW($G$87)+ROUNDUP(COLUMNS($G:CT)/3,0))","v":0},null,{"$f":"INDIRECT(\"F\"&ROW($G$87)+ROUNDUP(COLUMNS($G:CV)/3,0))","v":0},{"$f":"INDIRECT(\"G\"&ROW($G$87)+ROUNDUP(COLUMNS($G:CW)/3,0))","v":0},null,{"$f":"INDIRECT(\"F\"&ROW($G$87)+ROUNDUP(COLUMNS($G:CY)/3,0))","v":0},{"$f":"INDIRECT(\"G\"&ROW($G$87)+ROUNDUP(COLUMNS($G:CZ)/3,0))","v":0},null,{"$f":"INDIRECT(\"F\"&ROW($G$87)+ROUNDUP(COLUMNS($G:DB)/3,0))","v":0},{"$f":"INDIRECT(\"G\"&ROW($G$87)+ROUNDUP(COLUMNS($G:DC)/3,0))","v":0},null,{"$f":"INDIRECT(\"F\"&ROW($G$87)+ROUNDUP(COLUMNS($G:DE)/3,0))","v":0},{"$f":"INDIRECT(\"G\"&ROW($G$87)+ROUNDUP(COLUMNS($G:DF)/3,0))","v":0},null,{"$f":"INDIRECT(\"F\"&ROW($G$87)+ROUNDUP(COLUMNS($G:DH)/3,0))","v":0},{"$f":"INDIRECT(\"G\"&ROW($G$87)+ROUNDUP(COLUMNS($G:DI)/3,0))","v":0},null,{"$f":"INDIRECT(\"F\"&ROW($G$87)+ROUNDUP(COLUMNS($G:DK)/3,0))","v":0},{"$f":"INDIRECT(\"G\"&ROW($G$87)+ROUNDUP(COLUMNS($G:DL)/3,0))","v":0},null,{"$f":"INDIRECT(\"F\"&ROW($G$87)+ROUNDUP(COLUMNS($G:DN)/3,0))","v":0},{"$f":"INDIRECT(\"G\"&ROW($G$87)+ROUNDUP(COLUMNS($G:DO)/3,0))","v":0},null,{"$f":"INDIRECT(\"F\"&ROW($G$87)+ROUNDUP(COLUMNS($G:DQ)/3,0))","v":0},{"$f":"INDIRECT(\"G\"&ROW($G$87)+ROUNDUP(COLUMNS($G:DR)/3,0))","v":0},null,{"$f":"INDIRECT(\"F\"&ROW($G$87)+ROUNDUP(COLUMNS($G:DT)/3,0))","v":0},{"$f":"INDIRECT(\"G\"&ROW($G$87)+ROUNDUP(COLUMNS($G:DU)/3,0))","v":0},null,{"$f":"INDIRECT(\"F\"&ROW($G$87)+ROUNDUP(COLUMNS($G:DW)/3,0))","v":0},{"$f":"INDIRECT(\"G\"&ROW($G$87)+ROUNDUP(COLUMNS($G:DX)/3,0))","v":0},null,{"$f":"INDIRECT(\"F\"&ROW($G$87)+ROUNDUP(COLUMNS($G:DZ)/3,0))","v":0},{"$f":"INDIRECT(\"G\"&ROW($G$87)+ROUNDUP(COLUMNS($G:EA)/3,0))","v":0},null,{"$f":"INDIRECT(\"F\"&ROW($G$87)+ROUNDUP(COLUMNS($G:EC)/3,0))","v":0},{"$f":"INDIRECT(\"G\"&ROW($G$87)+ROUNDUP(COLUMNS($G:ED)/3,0))","v":0},null,{"$f":"INDIRECT(\"F\"&ROW($G$87)+ROUNDUP(COLUMNS($G:EF)/3,0))","v":0},{"$f":"INDIRECT(\"G\"&ROW($G$87)+ROUNDUP(COLUMNS($G:EG)/3,0))","v":0},null,{"$f":"INDIRECT(\"F\"&ROW($G$87)+ROUNDUP(COLUMNS($G:EI)/3,0))","v":0},{"$f":"INDIRECT(\"G\"&ROW($G$87)+ROUNDUP(COLUMNS($G:EJ)/3,0))","v":0},null,{"$f":"INDIRECT(\"F\"&ROW($G$87)+ROUNDUP(COLUMNS($G:EL)/3,0))","v":0},{"$f":"INDIRECT(\"G\"&ROW($G$87)+ROUNDUP(COLUMNS($G:EM)/3,0))","v":0},null,{"$f":"INDIRECT(\"F\"&ROW($G$87)+ROUNDUP(COLUMNS($G:EO)/3,0))","v":0},{"$f":"INDIRECT(\"G\"&ROW($G$87)+ROUNDUP(COLUMNS($G:EP)/3,0))","v":0},null,{"$f":"INDIRECT(\"F\"&ROW($G$87)+ROUNDUP(COLUMNS($G:ER)/3,0))","v":0},{"$f":"INDIRECT(\"G\"&ROW($G$87)+ROUNDUP(COLUMNS($G:ES)/3,0))","v":0},null,{"$f":"EU81+EV81","v":0}]
["เวลากลับถึงสำนักงานเช็คของเสีย",null,null,{"$f":"D139","v":"00:00:00"},null,"ผลต่าง",{"$f":"G82+H82+G80-G9","v":0},null,null,{"$f":"J82+K82+J80-J9","v":0},null,null,{"$f":"M82+N82+M80-M9","v":0},null,null,{"$f":"P82+Q82+P80-P9","v":0},null,null,{"$f":"S82+T82+S80-S9","v":0},null,null,{"$f":"V82+W82+V80-V9","v":0},null,null,{"$f":"Y82+Z82+Y80-Y9","v":0},null,null,{"$f":"AB82+AC82+AB80-AB9","v":0},null,null,{"$f":"AE82+AF82+AE80-AE9","v":0},null,null,{"$f":"AH82+AI82+AH80-AH9","v":0},null,null,{"$f":"AK82+AL82+AK80-AK9","v":0},null,null,{"$f":"AN82+AO82+AN80-AN9","v":0},null,null,{"$f":"AQ82+AR82+AQ80-AQ9","v":0},null,null,{"$f":"AT82+AU82+AT80-AT9","v":0},null,null,{"$f":"AW82+AX82+AW80-AW9","v":0},null,null,{"$f":"AZ82+BA82+AZ80-AZ9","v":0},null,null,{"$f":"BC82+BD82+BC80-BC9","v":0},null,null,{"$f":"BF82+BG82+BF80-BF9","v":0},null,null,{"$f":"BI82+BJ82+BI80-BI9","v":0},null,null,{"$f":"BL82+BM82+BL80-BL9","v":0},null,null,{"$f":"BO82+BP82+BO80-BO9","v":0},null,null,{"$f":"BR82+BS82+BR80-BR9","v":0},null,null,{"$f":"BU82+BV82+BU80-BU9","v":0},null,null,{"$f":"BX82+BY82+BX80-BX9","v":0},null,null,{"$f":"CA82+CB82+CA80-CA9","v":0},null,null,{"$f":"CD82+CE82+CD80-CD9","v":0},null,null,{"$f":"CG82+CH82+CG80-CG9","v":0},null,null,{"$f":"CJ82+CK82+CJ80-CJ9","v":0},null,null,{"$f":"CM82+CN82+CM80-CM9","v":0},null,null,{"$f":"CP82+CQ82+CP80-CP9","v":0},null,null,{"$f":"CS82+CT82+CS80-CS9","v":0},null,null,{"$f":"CV82+CW82+CV80-CV9","v":0},null,null,{"$f":"CY82+CZ82+CY80-CY9","v":0},null,null,{"$f":"DB82+DC82+DB80-DB9","v":0},null,null,{"$f":"DE82+DF82+DE80-DE9","v":0},null,null,{"$f":"DH82+DI82+DH80-DH9","v":0},null,null,{"$f":"DK82+DL82+DK80-DK9","v":0},null,null,{"$f":"DN82+DO82+DN80-DN9","v":0},null,null,{"$f":"DQ82+DR82+DQ80-DQ9","v":0},null,null,{"$f":"DT82+DU82+DT80-DT9","v":0},null,null,{"$f":"DW82+DX82+DW80-DW9","v":0},null,null,{"$f":"DZ82+EA82+DZ80-DZ9","v":0},null,null,{"$f":"EC82+ED82+EC80-EC9","v":0},null,null,{"$f":"EF82+EG82+EF80-EF9","v":0},null,null,{"$f":"EI82+EJ82+EI80-EI9","v":0},null,null,{"$f":"EL82+EM82+EL80-EL9","v":0},null,null,{"$f":"EO82+EP82+EO80-EO9","v":0},null,null,{"$f":"ER82+ES82+ER80-ER9","v":0}]
["เป็นเงิน",null,null,null,null,null,{"$f":"G8*G83","v":0},null,null,{"$f":"J8*J83","v":0},null,null,{"$f":"M8*M83","v":0},null,null,{"$f":"P8*P83","v":0},null,null,{"$f":"S8*S83","v":0},null,null,{"$f":"V8*V83","v":0},null,null,{"$f":"Y8*Y83","v":0},null,null,{"$f":"AB8*AB83","v":0},null,null,{"$f":"AE8*AE83","v":0},null,null,{"$f":"AH8*AH83","v":0},null,null,{"$f":"AK8*AK83","v":0},null,null,{"$f":"AN8*AN83","v":0},null,null,{"$f":"AQ8*AQ83","v":0},null,null,{"$f":"AT8*AT83","v":0},null,null,{"$f":"AW8*AW83","v":0},null,null,{"$f":"AZ8*AZ83","v":0},null,null,{"$f":"BC8*BC83","v":0},null,null,{"$f":"BF8*BF83","v":0},null,null,{"$f":"BI8*BI83","v":0},null,null,{"$f":"BL8*BL83","v":0},null,null,{"$f":"BO8*BO83","v":0},null,null,{"$f":"BR8*BR83","v":0},null,null,{"$f":"BU8*BU83","v":0},null,null,{"$f":"BX8*BX83","v":0},null,null,{"$f":"CA8*CA83","v":0},null,null,{"$f":"CD8*CD83","v":0},null,null,{"$f":"CG8*CG83","v":0},null,null,{"$f":"CJ8*CJ83","v":0},null,null,{"$f":"CM8*CM83","v":0},null,null,{"$f":"CP8*CP83","v":0},null,null,{"$f":"CS8*CS83","v":0},null,null,{"$f":"CV8*CV83","v":0},null,null,{"$f":"CY8*CY83","v":0},null,null,{"$f":"DB8*DB83","v":0},null,null,{"$f":"DE8*DE83","v":0},null,null,{"$f":"DH8*DH83","v":0},null,null,{"$f":"DK8*DK83","v":0},null,null,{"$f":"DN8*DN83","v":0},null,null,{"$f":"DQ8*DQ83","v":0},null,null,{"$f":"DT8*DT83","v":0},null,null,{"$f":"DW8*DW83","v":0},null,null,0,null,null,{"$f":"EC8*EC83","v":0},null,null,{"$f":"EF8*EF83","v":0},null,null,{"$f":"EI8*EI83","v":0},null,null,{"$f":"EL8*EL83","v":0},null,null,{"$f":"EO8*EO83","v":0},null,null,{"$f":"ER8*ER83","v":0},null,null,{"$f":"$AP$98","v":0}]
[null,null,null,"ผู้จัดทำ……………………………………………………………………",null,null,null,null,null,null,null,null,null,null,null,null,null,null,null,null,null,null,null,"ผู้ตรวจ(ผจก.)………………………………………………………………………………."]
[null,null,"ใบจ่ายสินค้า",null,null,null,null,null,null,null,null,null,null,null,null,null,null,{"$f":"IF(ISODD(COLUMN()),MAX($F$86:Q$86)+1,\"\")","v":""}]
["ราคา","ลำดับ","รายการ","ยกมา","เบิก","เหลือ","เสีย","โอนเข้า","โอนออก","ชำรุด","รวม",null,"ขาย",null,"ขาด/เกิน",null,"บาท",null,null,null,"ขายได้",null,"ควรเบิก",null,"หมายเหตุ",null,null,null,"เสีย PDA","เสียจริง","เหลือ PDA","ผลต่าง","เหลือลูกค้า","หมายเหตุ",null,null,null,null,"Price","Quantity","Baht","Deduct"]
[{"$f":"IF(B88=\"\",0,INDEX(Price_List,ROWS($88:88)))","v":20},{"$f":"IF($C88=\"\",\"\",COUNTA($C$88:$C88))","v":1},{"$f":"IF(INDEX(INDIRECT(\"Product_List\"),ROWS($88:88))=\"\",\"\",INDEX(INDIRECT(\"Product_List\"),ROWS($88:88)))","v":"01-ขนมปังหมูหยองน้ำสลัด"},{"$f":"ยอดยกมา","v":0},null,null,null,null,null,null,{"$f":"D88+E88+J88-I88+H88","v":0},null,{"$f":"INDIRECT(ADDRESS(ROW(A$80),ROW()-ROW(A$80)+(ROWS($88:88)-1)*2-1,4))","v":0},null,{"$f":"F88+G88+M88+J88-K88","v":0},null,{"$f":"O88*A88","v":0},null,null,null,{"$f":"D88+E88-F88-G88","v":0},null,{"$f":"U88*6%+U88","v":0},null,null,null,null,null,{"$f":"INDIRECT(ADDRESS(ROW(A$80),ROW()-ROW(A$80)+(ROWS($88:88)-1)*2,4))","v":0},{"$f":"$G88","v":0},null,{"$f":"$F88-$AE88","v":0},{"$f":"INDIRECT(ADDRESS(ROW(A$80),ROW()-ROW(A$80)+(ROWS($88:88)-1)*2+1,4))","v":0},null,null,null,null,null,10,{"$f":"SUMPRODUCT(($A$88:$A$135=$AM88)*(($F$88:$F$135)+($G$88:$G$135)+($M$88:$M$135)+($J$88:$J$135)-($K$88:$K$135)))","v":0},{"$f":"AM88*AN88","v":0},{"$f":"IF(AO88<0,AO88,0)","v":0}]
[{"$f":"IF(B89=\"\",0,INDEX(Price_List,ROWS($88:89)))","v":20},{"$f":"IF($C89=\"\",\"\",COUNTA($C$88:$C89))","v":2},{"$f":"IF(INDEX(INDIRECT(\"Product_List\"),ROWS($88:89))=\"\",\"\",INDEX(INDIRECT(\"Product_List\"),ROWS($88:89)))","v":"02-ขนมปังหมูหยองน้ำพริกเผา"},{"$f":"ยอดยกมา","v":0},null,null,null,null,null,null,{"$f":"D89+E89+J89-I89+H89","v":0},null,{"$f":"INDIRECT(ADDRESS(ROW(A$80),ROW()-ROW(A$80)+(ROWS($88:89)-1)*2-1,4))","v":0},null,{"$f":"F89+G89+M89+J89-K89","v":0},null,{"$f":"O89*A89","v":0},null,null,null,{"$f":"D89+E89-F89-G89","v":0},null,{"$f":"U89*6%+U89","v":0},null,null,null,null,null,{"$f":"INDIRECT(ADDRESS(ROW(A$80),ROW()-ROW(A$80)+(ROWS($88:89)-1)*2,4))","v":0},{"$f":"$G89","v":0},null,{"$f":"$F89-$AE89","v":0},{"$f":"INDIRECT(ADDRESS(ROW(A$80),ROW()-ROW(A$80)+(ROWS($88:89)-1)*2+1,4))","v":0},null,null,null,null,null,12,0,{"$f":"AM89*AN89","v":0},{"$f":"IF(AO89<0,AO89,0)","v":0}]
[{"$f":"IF(B90=\"\",0,INDEX(Price_List,ROWS($88:90)))","v":20},{"$f":"IF($C90=\"\",\"\",COUNTA($C$88:$C90))","v":3},{"$f":"IF(INDEX(INDIRECT(\"Product_List\"),ROWS($88:90))=\"\",\"\",INDEX(INDIRECT(\"Product_List\"),ROWS($88:90)))","v":"03-ขนมปังไก่หยองน้ำสลัด"},{"$f":"ยอดยกมา","v":0},null,null,null,null,null,null,0,null,{"$f":"INDIRECT(ADDRESS(ROW(A$80),ROW()-ROW(A$80)+(ROWS($88:90)-1)*2-1,4))","v":0},null,0,null,0,null,null,null,0,null,0,null,null,null,null,null,{"$f":"INDIRECT(ADDRESS(ROW(A$80),ROW()-ROW(A$80)+(ROWS($88:90)-1)*2,4))","v":0},0,null,0,{"$f":"INDIRECT(ADDRESS(ROW(A$80),ROW()-ROW(A$80)+(ROWS($88:90)-1)*2+1,4))","v":0},null,null,null,null,null,13,0,0,0]
[{"$f":"IF(B91=\"\",0,INDEX(Price_List,ROWS($88:91)))","v":15},{"$f":"IF($C91=\"\",\"\",COUNTA($C$88:$C91))","v":4},{"$f":"IF(INDEX(INDIRECT(\"Product_List\"),ROWS($88:91))=\"\",\"\",INDEX(INDIRECT(\"Product_List\"),ROWS($88:91)))","v":"04-ขนมปังไส้ครีมสลัด"},{"$f":"ยอดยกมา","v":0},null,null,null,null,null,null,0,null,{"$f":"INDIRECT(ADDRESS(ROW(A$80),ROW()-ROW(A$80)+(ROWS($88:91)-1)*2-1,4))","v":0},null,{"$f":"F91+G91+M91+J91-K91","v":0},null,0,null,null,null,0,null,0,null,null,null,null,null,{"$f":"INDIRECT(ADDRESS(ROW(A$80),ROW()-ROW(A$80)+(ROWS($88:91)-1)*2,4))","v":0},0,null,0,{"$f":"INDIRECT(ADDRESS(ROW(A$80),ROW()-ROW(A$80)+(ROWS($88:91)-1)*2+1,4))","v":0},null,null,null,null,null,15,0,0,0]
[{"$f":"IF(B92=\"\",0,INDEX(Price_List,ROWS($88:92)))","v":15},{"$f":"IF($C92=\"\",\"\",COUNTA($C$88:$C92))","v":5},{"$f":"IF(INDEX(INDIRECT(\"Product_List\"),ROWS($88:92))=\"\",\"\",INDEX(INDIRECT(\"Product_List\"),ROWS($88:92)))","v":"05-ขนมปังเนยสด"},{"$f":"ยอดยกมา","v":0},null,null,null,null,null,null,0,null,{"$f":"INDIRECT(ADDRESS(ROW(A$80),ROW()-ROW(A$80)+(ROWS($88:92)-1)*2-1,4))","v":0},null,0,null,0,null,null,null,0,null,0,null,null,null,null,null,{"$f":"INDIRECT(ADDRESS(ROW(A$80),ROW()-ROW(A$80)+(ROWS($88:92)-1)*2,4))","v":0},0,null,0,{"$f":"INDIRECT(ADDRESS(ROW(A$80),ROW()-ROW(A$80)+(ROWS($88:92)-1)*2+1,4))","v":0},null,null,null,null,null,16,0,0,0]
[{"$f":"IF(B93=\"\",0,INDEX(Price_List,ROWS($88:93)))","v":10},{"$f":"IF($C93=\"\",\"\",COUNTA($C$88:$C93))","v":6},{"$f":"IF(INDEX(INDIRECT(\"Product_List\"),ROWS($88:93))=\"\",\"\",INDEX(INDIRECT(\"Product_List\"),ROWS($88:93)))","v":"06-ขนมปังไส้สังขยาเล็ก"},{"$f":"ยอดยกมา","v":0},null,null,null,null,null,null,0,null,{"$f":"INDIRECT(ADDRESS(ROW(A$80),ROW()-ROW(A$80)+(ROWS($88:93)-1)*2-1,4))","v":0},null,0,null,0,null,null,null,0,null,0,null,null,null,null,null,{"$f":"INDIRECT(ADDRESS(ROW(A$80),ROW()-ROW(A$80)+(ROWS($88:93)-1)*2,4))","v":0},0,null,0,{"$f":"INDIRECT(ADDRESS(ROW(A$80),ROW()-ROW(A$80)+(ROWS($88:93)-1)*2+1,4))","v":0},null,null,null,null,null,18,0,0,0]
[{"$f":"IF(B94=\"\",0,INDEX(Price_List,ROWS($88:94)))","v":10},{"$f":"IF($C94=\"\",\"\",COUNTA($C$88:$C94))","v":7},{"$f":"IF(INDEX(INDIRECT(\"Product_List\"),ROWS($88:94))=\"\",\"\",INDEX(INDIRECT(\"Product_List\"),ROWS($88:94)))","v":"07-ขนมปังไส้เผือก"},{"$f":"ยอดยกมา","v":0},null,null,null,null,null,null,0,null,{"$f":"INDIRECT(ADDRESS(ROW(A$80),ROW()-ROW(A$80)+(ROWS($88:94)-1)*2-1,4))","v":0},null,0,null,0,null,null,null,0,null,0,null,null,null,null,null,{"$f":"INDIRECT(ADDRESS(ROW(A$80),ROW()-ROW(A$80)+(ROWS($88:94)-1)*2,4))","v":0},0,null,0,{"$f":"INDIRECT(ADDRESS(ROW(A$80),ROW()-ROW(A$80)+(ROWS($88:94)-1)*2+1,4))","v":0},null,null,null,null,null,20,0,0,0]
[{"$f":"IF(B95=\"\",0,INDEX(Price_List,ROWS($88:95)))","v":10},{"$f":"IF($C95=\"\",\"\",COUNTA($C$88:$C95))","v":8},{"$f":"IF(INDEX(INDIRECT(\"Product_List\"),ROWS($88:95))=\"\",\"\",INDEX(INDIRECT(\"Product_List\"),ROWS($88:95)))","v":"08-ขนมปังไส้ถั่วแดง"},{"$f":"ยอดยกมา","v":0},null,null,null,null,null,null,0,null,{"$f":"INDIRECT(ADDRESS(ROW(A$80),ROW()-ROW(A$80)+(ROWS($88:95)-1)*2-1,4))","v":0},null,0,null,0,null,null,null,0,null,0,null,null,null,null,null,{"$f":"INDIRECT(ADDRESS(ROW(A$80),ROW()-ROW(A$80)+(ROWS($88:95)-1)*2,4))","v":0},0,null,0,{"$f":"INDIRECT(ADDRESS(ROW(A$80),ROW()-ROW(A$80)+(ROWS($88:95)-1)*2+1,4))","v":0},null,null,null,null,null,22,0,0,0]
[{"$f":"IF(B96=\"\",0,INDEX(Price_List,ROWS($88:96)))","v":10},{"$f":"IF($C96=\"\",\"\",COUNTA($C$88:$C96))","v":9},{"$f":"IF(INDEX(INDIRECT(\"Product_List\"),ROWS($88:96))=\"\",\"\",INDEX(INDIRECT(\"Product_List\"),ROWS($88:96)))","v":"09-ขนมปังไส้ถั่วดำ"},{"$f":"ยอดยกมา","v":0},null,null,null,null,null,null,0,null,{"$f":"INDIRECT(ADDRESS(ROW(A$80),ROW()-ROW(A$80)+(ROWS($88:96)-1)*2-1,4))","v":0},null,0,null,0,null,null,null,0,null,0,null,null,null,null,null,{"$f":"INDIRECT(ADDRESS(ROW(A$80),ROW()-ROW(A$80)+(ROWS($88:96)-1)*2,4))","v":0},0,null,0,{"$f":"INDIRECT(ADDRESS(ROW(A$80),ROW()-ROW(A$80)+(ROWS($88:96)-1)*2+1,4))","v":0},null,null,null,null,null,25,0,0,0]
[{"$f":"IF(B97=\"\",0,INDEX(Price_List,ROWS($88:97)))","v":10},{"$f":"IF($C97=\"\",\"\",COUNTA($C$88:$C97))","v":10},{"$f":"IF(INDEX(INDIRECT(\"Product_List\"),ROWS($88:97))=\"\",\"\",INDEX(INDIRECT(\"Product_List\"),ROWS($88:97)))","v":"10-ขนมปังไส้มันม่วง"},{"$f":"ยอดยกมา","v":0},null,null,null,null,null,null,0,null,{"$f":"INDIRECT(ADDRESS(ROW(A$80),ROW()-ROW(A$80)+(ROWS($88:97)-1)*2-1,4))","v":0},null,0,null,0,null,null,null,0,null,0,null,null,null,null,null,{"$f":"INDIRECT(ADDRESS(ROW(A$80),ROW()-ROW(A$80)+(ROWS($88:97)-1)*2,4))","v":0},0,null,0,{"$f":"INDIRECT(ADDRESS(ROW(A$80),ROW()-ROW(A$80)+(ROWS($88:97)-1)*2+1,4))","v":0},null,null,null,null,null,42,0,0,0]
[{"$f":"IF(B98=\"\",0,INDEX(Price_List,ROWS($88:98)))","v":15},{"$f":"IF($C98=\"\",\"\",COUNTA($C$88:$C98))","v":11},{"$f":"IF(INDEX(INDIRECT(\"Product_List\"),ROWS($88:98))=\"\",\"\",INDEX(INDIRECT(\"Product_List\"),ROWS($88:98)))","v":"11-เค้กกล้วยหอม"},{"$f":"ยอดยกมา","v":0},null,null,null,null,null,null,0,null,{"$f":"INDIRECT(ADDRESS(ROW(A$80),ROW()-ROW(A$80)+(ROWS($88:98)-1)*2-1,4))","v":0},null,0,null,0,null,null,null,0,null,0,null,null,null,null,null,{"$f":"INDIRECT(ADDRESS(ROW(A$80),ROW()-ROW(A$80)+(ROWS($88:98)-1)*2,4))","v":0},0,null,0,{"$f":"INDIRECT(ADDRESS(ROW(A$80),ROW()-ROW(A$80)+(ROWS($88:98)-1)*2+1,4))","v":0},null,null,null,null,null,"Total Deduct",null,null,{"$f":"SUM($AP$88:$AP$97)","v":0}]
[{"$f":"IF(B99=\"\",0,INDEX(Price_List,ROWS($88:99)))","v":15},{"$f":"IF($C99=\"\",\"\",COUNTA($C$88:$C99))","v":12},{"$f":"IF(INDEX(INDIRECT(\"Product_List\"),ROWS($88:99))=\"\",\"\",INDEX(INDIRECT(\"Product_List\"),ROWS($88:99)))","v":"12-เค้กบัตเตอร์"},{"$f":"ยอดยกมา","v":0},null,null,null,null,null,null,0,null,{"$f":"INDIRECT(ADDRESS(ROW(A$80),ROW()-ROW(A$80)+(ROWS($88:99)-1)*2-1,4))","v":0},null,0,null,0,null,null,null,0,null,0,null,null,null,null,null,{"$f":"INDIRECT(ADDRESS(ROW(A$80),ROW()-ROW(A$80)+(ROWS($88:99)-1)*2,4))","v":0},0,null,0,{"$f":"INDIRECT(ADDRESS(ROW(A$80),ROW()-ROW(A$80)+(ROWS($88:99)-1)*2+1,4))","v":0}]
[{"$f":"IF(B100=\"\",0,INDEX(Price_List,ROWS($88:100)))","v":15},{"$f":"IF($C100=\"\",\"\",COUNTA($C$88:$C100))","v":13},{"$f":"IF(INDEX(INDIRECT(\"Product_List\"),ROWS($88:100))=\"\",\"\",INDEX(INDIRECT(\"Product_List\"),ROWS($88:100)))","v":"13-ขนมปังโรลถั่วแดง"},{"$f":"ยอดยกมา","v":0},null,null,null,null,null,null,0,null,{"$f":"INDIRECT(ADDRESS(ROW(A$80),ROW()-ROW(A$80)+(ROWS($88:100)-1)*2-1,4))","v":0},null,0,null,0,null,null,null,0,null,0,null,null,null,null,null,{"$f":"INDIRECT(ADDRESS(ROW(A$80),ROW()-ROW(A$80)+(ROWS($88:100)-1)*2,4))","v":0},0,null,0,{"$f":"INDIRECT(ADDRESS(ROW(A$80),ROW()-ROW(A$80)+(ROWS($88:100)-1)*2+1,4))","v":0}]
[{"$f":"IF(B101=\"\",0,INDEX(Price_List,ROWS($88:101)))","v":15},{"$f":"IF($C101=\"\",\"\",COUNTA($C$88:$C101))","v":14},{"$f":"IF(INDEX(INDIRECT(\"Product_List\"),ROWS($88:101))=\"\",\"\",INDEX(INDIRECT(\"Product_List\"),ROWS($88:101)))","v":"14-ขนมปังไส้สังขยาใหญ่"},{"$f":"ยอดยกมา","v":0},null,null,null,null,null,null,0,null,{"$f":"INDIRECT(ADDRESS(ROW(A$80),ROW()-ROW(A$80)+(ROWS($88:101)-1)*2-1,4))","v":0},null,0,null,0,null,null,null,0,null,0,null,null,null,null,null,{"$f":"INDIRECT(ADDRESS(ROW(A$80),ROW()-ROW(A$80)+(ROWS($88:101)-1)*2,4))","v":0},0,null,0,{"$f":"INDIRECT(ADDRESS(ROW(A$80),ROW()-ROW(A$80)+(ROWS($88:101)-1)*2+1,4))","v":0}]
[{"$f":"IF(B102=\"\",0,INDEX(Price_List,ROWS($88:102)))","v":42},{"$f":"IF($C102=\"\",\"\",COUNTA($C$88:$C102))","v":15},{"$f":"IF(INDEX(INDIRECT(\"Product_List\"),ROWS($88:102))=\"\",\"\",INDEX(INDIRECT(\"Product_List\"),ROWS($88:102)))","v":"15-ขนมปังชนิดแผ่น(480กรัม)"},{"$f":"ยอดยกมา","v":0},null,null,null,null,null,null,0,null,{"$f":"INDIRECT(ADDRESS(ROW(A$80),ROW()-ROW(A$80)+(ROWS($88:102)-1)*2-1,4))","v":0},null,0,null,0,null,null,null,0,null,0,null,null,null,null,null,{"$f":"INDIRECT(ADDRESS(ROW(A$80),ROW()-ROW(A$80)+(ROWS($88:102)-1)*2,4))","v":0},0,null,0,{"$f":"INDIRECT(ADDRESS(ROW(A$80),ROW()-ROW(A$80)+(ROWS($88:102)-1)*2+1,4))","v":0}]
[{"$f":"IF(B103=\"\",0,INDEX(Price_List,ROWS($88:103)))","v":12},{"$f":"IF($C103=\"\",\"\",COUNTA($C$88:$C103))","v":16},{"$f":"IF(INDEX(INDIRECT(\"Product_List\"),ROWS($88:103))=\"\",\"\",INDEX(INDIRECT(\"Product_List\"),ROWS($88:103)))","v":"16-โมจิไส้ถั่ว"},{"$f":"ยอดยกมา","v":0},null,null,null,null,null,null,0,null,{"$f":"INDIRECT(ADDRESS(ROW(A$80),ROW()-ROW(A$80)+(ROWS($88:103)-1)*2-1,4))","v":0},null,0,null,0,null,null,null,0,null,0,null,null,null,null,null,{"$f":"INDIRECT(ADDRESS(ROW(A$80),ROW()-ROW(A$80)+(ROWS($88:103)-1)*2,4))","v":0},0,null,0,{"$f":"INDIRECT(ADDRESS(ROW(A$80),ROW()-ROW(A$80)+(ROWS($88:103)-1)*2+1,4))","v":0}]
[{"$f":"IF(B104=\"\",0,INDEX(Price_List,ROWS($88:104)))","v":12},{"$f":"IF($C104=\"\",\"\",COUNTA($C$88:$C104))","v":17},{"$f":"IF(INDEX(INDIRECT(\"Product_List\"),ROWS($88:104))=\"\",\"\",INDEX(INDIRECT(\"Product_List\"),ROWS($88:104)))","v":"17-โมจิไส้เผือก"},{"$f":"ยอดยกมา","v":0},null,null,null,null,null,null,0,null,{"$f":"INDIRECT(ADDRESS(ROW(A$80),ROW()-ROW(A$80)+(ROWS($88:104)-1)*2-1,4))","v":0},null,0,null,0,null,null,null,0,null,0,null,null,null,null,null,{"$f":"INDIRECT(ADDRESS(ROW(A$80),ROW()-ROW(A$80)+(ROWS($88:104)-1)*2,4))","v":0},0,null,0,{"$f":"INDIRECT(ADDRESS(ROW(A$80),ROW()-ROW(A$80)+(ROWS($88:104)-1)*2+1,4))","v":0}]
[{"$f":"IF(B105=\"\",0,INDEX(Price_List,ROWS($88:105)))","v":15},{"$f":"IF($C105=\"\",\"\",COUNTA($C$88:$C105))","v":18},{"$f":"IF(INDEX(INDIRECT(\"Product_List\"),ROWS($88:105))=\"\",\"\",INDEX(INDIRECT(\"Product_List\"),ROWS($88:105)))","v":"18-โมจิไส้ถั่วไข่เค็ม"},{"$f":"ยอดยกมา","v":0},null,null,null,null,null,null,0,null,{"$f":"INDIRECT(ADDRESS(ROW(A$80),ROW()-ROW(A$80)+(ROWS($88:105)-1)*2-1,4))","v":0},null,0,null,0,null,null,null,0,null,0,null,null,null,null,null,{"$f":"INDIRECT(ADDRESS(ROW(A$80),ROW()-ROW(A$80)+(ROWS($88:105)-1)*2,4))","v":0},0,null,0,{"$f":"INDIRECT(ADDRESS(ROW(A$80),ROW()-ROW(A$80)+(ROWS($88:105)-1)*2+1,4))","v":0}]
[{"$f":"IF(B106=\"\",0,INDEX(Price_List,ROWS($88:106)))","v":20},{"$f":"IF($C106=\"\",\"\",COUNTA($C$88:$C106))","v":19},{"$f":"IF(INDEX(INDIRECT(\"Product_List\"),ROWS($88:106))=\"\",\"\",INDEX(INDIRECT(\"Product_List\"),ROWS($88:106)))","v":"19-ขนมปังพิซซ่า"},{"$f":"ยอดยกมา","v":0},null,null,null,null,null,null,0,null,{"$f":"INDIRECT(ADDRESS(ROW(A$80),ROW()-ROW(A$80)+(ROWS($88:106)-1)*2-1,4))","v":0},null,0,null,0,null,null,null,0,null,0,null,null,null,null,null,{"$f":"INDIRECT(ADDRESS(ROW(A$80),ROW()-ROW(A$80)+(ROWS($88:106)-1)*2,4))","v":0},0,null,0,{"$f":"INDIRECT(ADDRESS(ROW(A$80),ROW()-ROW(A$80)+(ROWS($88:106)-1)*2+1,4))","v":0}]
[{"$f":"IF(B107=\"\",0,INDEX(Price_List,ROWS($88:107)))","v":20},{"$f":"IF($C107=\"\",\"\",COUNTA($C$88:$C107))","v":20},{"$f":"IF(INDEX(INDIRECT(\"Product_List\"),ROWS($88:107))=\"\",\"\",INDEX(INDIRECT(\"Product_List\"),ROWS($88:107)))","v":"20-ขนมปังพิซซ่าปูอัดแฮม"},{"$f":"ยอดยกมา","v":0},null,null,null,null,null,null,0,null,{"$f":"INDIRECT(ADDRESS(ROW(A$80),ROW()-ROW(A$80)+(ROWS($88:107)-1)*2-1,4))","v":0},null,0,null,0,null,null,null,0,null,0,null,null,null,null,null,{"$f":"INDIRECT(ADDRESS(ROW(A$80),ROW()-ROW(A$80)+(ROWS($88:107)-1)*2,4))","v":0},0,null,0,{"$f":"INDIRECT(ADDRESS(ROW(A$80),ROW()-ROW(A$80)+(ROWS($88:107)-1)*2+1,4))","v":0}]
[{"$f":"IF(B108=\"\",0,INDEX(Price_List,ROWS($88:108)))","v":20},{"$f":"IF($C108=\"\",\"\",COUNTA($C$88:$C108))","v":21},{"$f":"IF(INDEX(INDIRECT(\"Product_List\"),ROWS($88:108))=\"\",\"\",INDEX(INDIRECT(\"Product_List\"),ROWS($88:108)))","v":"21-ขนมปังไส้กรอก"},{"$f":"ยอดยกมา","v":0},null,null,null,null,null,null,0,null,{"$f":"INDIRECT(ADDRESS(ROW(A$80),ROW()-ROW(A$80)+(ROWS($88:108)-1)*2-1,4))","v":0},null,0,null,0,null,null,null,0,null,0,null,null,null,null,null,{"$f":"INDIRECT(ADDRESS(ROW(A$80),ROW()-ROW(A$80)+(ROWS($88:108)-1)*2,4))","v":0},0,null,0,{"$f":"INDIRECT(ADDRESS(ROW(A$80),ROW()-ROW(A$80)+(ROWS($88:108)-1)*2+1,4))","v":0}]
[{"$f":"IF(B109=\"\",0,INDEX(Price_List,ROWS($88:109)))","v":15},{"$f":"IF($C109=\"\",\"\",COUNTA($C$88:$C109))","v":22},{"$f":"IF(INDEX(INDIRECT(\"Product_List\"),ROWS($88:109))=\"\",\"\",INDEX(INDIRECT(\"Product_List\"),ROWS($88:109)))","v":"22-ขนมก้านบัว"},{"$f":"ยอดยกมา","v":0},null,null,null,null,null,null,0,null,{"$f":"INDIRECT(ADDRESS(ROW(A$80),ROW()-ROW(A$80)+(ROWS($88:109)-1)*2-1,4))","v":0},null,0,null,0,null,null,null,0,null,0,null,null,null,null,null,{"$f":"INDIRECT(ADDRESS(ROW(A$80),ROW()-ROW(A$80)+(ROWS($88:109)-1)*2,4))","v":0},0,null,0,{"$f":"INDIRECT(ADDRESS(ROW(A$80),ROW()-ROW(A$80)+(ROWS($88:109)-1)*2+1,4))","v":0}]
[{"$f":"IF(B110=\"\",0,INDEX(Price_List,ROWS($88:110)))","v":20},{"$f":"IF($C110=\"\",\"\",COUNTA($C$88:$C110))","v":23},{"$f":"IF(INDEX(INDIRECT(\"Product_List\"),ROWS($88:110))=\"\",\"\",INDEX(INDIRECT(\"Product_List\"),ROWS($88:110)))","v":"23-พายสับปะรด"},{"$f":"ยอดยกมา","v":0},null,null,null,null,null,null,0,null,{"$f":"INDIRECT(ADDRESS(ROW(A$80),ROW()-ROW(A$80)+(ROWS($88:110)-1)*2-1,4))","v":0},null,0,null,0,null,null,null,0,null,0,null,null,null,null,null,{"$f":"INDIRECT(ADDRESS(ROW(A$80),ROW()-ROW(A$80)+(ROWS($88:110)-1)*2,4))","v":0},0,null,0,{"$f":"INDIRECT(ADDRESS(ROW(A$80),ROW()-ROW(A$80)+(ROWS($88:110)-1)*2+1,4))","v":0}]
[{"$f":"IF(B111=\"\",0,INDEX(Price_List,ROWS($88:111)))","v":20},{"$f":"IF($C111=\"\",\"\",COUNTA($C$88:$C111))","v":24},{"$f":"IF(INDEX(INDIRECT(\"Product_List\"),ROWS($88:111))=\"\",\"\",INDEX(INDIRECT(\"Product_List\"),ROWS($88:111)))","v":"24-พายไส้มะพร้าว"},{"$f":"ยอดยกมา","v":0},null,null,null,null,null,null,0,null,{"$f":"INDIRECT(ADDRESS(ROW(A$80),ROW()-ROW(A$80)+(ROWS($88:111)-1)*2-1,4))","v":0},null,0,null,0,null,null,null,0,null,0,null,null,null,null,null,{"$f":"INDIRECT(ADDRESS(ROW(A$80),ROW()-ROW(A$80)+(ROWS($88:111)-1)*2,4))","v":0},0,null,0,{"$f":"INDIRECT(ADDRESS(ROW(A$80),ROW()-ROW(A$80)+(ROWS($88:111)-1)*2+1,4))","v":0}]
[{"$f":"IF(B112=\"\",0,INDEX(Price_List,ROWS($88:112)))","v":15},{"$f":"IF($C112=\"\",\"\",COUNTA($C$88:$C112))","v":25},{"$f":"IF(INDEX(INDIRECT(\"Product_List\"),ROWS($88:112))=\"\",\"\",INDEX(INDIRECT(\"Product_List\"),ROWS($88:112)))","v":"25-ขนมปังโรลมันเทศ"},{"$f":"ยอดยกมา","v":0},null,null,null,null,null,null,0,null,{"$f":"INDIRECT(ADDRESS(ROW(A$80),ROW()-ROW(A$80)+(ROWS($88:112)-1)*2-1,4))","v":0},null,0,null,0,null,null,null,0,null,0,null,null,null,null,null,{"$f":"INDIRECT(ADDRESS(ROW(A$80),ROW()-ROW(A$80)+(ROWS($88:112)-1)*2,4))","v":0},0,null,0,{"$f":"INDIRECT(ADDRESS(ROW(A$80),ROW()-ROW(A$80)+(ROWS($88:112)-1)*2+1,4))","v":0}]
[{"$f":"IF(B113=\"\",0,INDEX(Price_List,ROWS($88:113)))","v":15},{"$f":"IF($C113=\"\",\"\",COUNTA($C$88:$C113))","v":26},{"$f":"IF(INDEX(INDIRECT(\"Product_List\"),ROWS($88:113))=\"\",\"\",INDEX(INDIRECT(\"Product_List\"),ROWS($88:113)))","v":"26-ขนมปังไส้ครีมสลัดน้ำพริกเผา"},{"$f":"ยอดยกมา","v":0},null,null,null,null,null,null,0,null,{"$f":"INDIRECT(ADDRESS(ROW(A$80),ROW()-ROW(A$80)+(ROWS($88:113)-1)*2-1,4))","v":0},null,0,null,0,null,null,null,0,null,0,null,null,null,null,null,{"$f":"INDIRECT(ADDRESS(ROW(A$80),ROW()-ROW(A$80)+(ROWS($88:113)-1)*2,4))","v":0},0,null,0,{"$f":"INDIRECT(ADDRESS(ROW(A$80),ROW()-ROW(A$80)+(ROWS($88:113)-1)*2+1,4))","v":0}]
[{"$f":"IF(B114=\"\",0,INDEX(Price_List,ROWS($88:114)))","v":20},{"$f":"IF($C114=\"\",\"\",COUNTA($C$88:$C114))","v":27},{"$f":"IF(INDEX(INDIRECT(\"Product_List\"),ROWS($88:114))=\"\",\"\",INDEX(INDIRECT(\"Product_List\"),ROWS($88:114)))","v":"27-ขนมปังไส้สังขยาไข่"},{"$f":"ยอดยกมา","v":0},null,null,null,null,null,null,0,null,{"$f":"INDIRECT(ADDRESS(ROW(A$80),ROW()-ROW(A$80)+(ROWS($88:114)-1)*2-1,4))","v":0},null,0,null,0,null,null,null,0,null,0,null,null,null,null,null,{"$f":"INDIRECT(ADDRESS(ROW(A$80),ROW()-ROW(A$80)+(ROWS($88:114)-1)*2,4))","v":0},0,null,0,{"$f":"INDIRECT(ADDRESS(ROW(A$80),ROW()-ROW(A$80)+(ROWS($88:114)-1)*2+1,4))","v":0}]
[{"$f":"IF(B115=\"\",0,INDEX(Price_List,ROWS($88:115)))","v":20},{"$f":"IF($C115=\"\",\"\",COUNTA($C$88:$C115))","v":28},{"$f":"IF(INDEX(INDIRECT(\"Product_List\"),ROWS($88:115))=\"\",\"\",INDEX(INDIRECT(\"Product_List\"),ROWS($88:115)))","v":"28-ขนมปังไส้สังขยามะพร้าว"},{"$f":"ยอดยกมา","v":0},null,null,null,null,null,null,0,null,{"$f":"INDIRECT(ADDRESS(ROW(A$80),ROW()-ROW(A$80)+(ROWS($88:115)-1)*2-1,4))","v":0},null,0,null,0,null,null,null,0,null,0,null,null,null,null,null,{"$f":"INDIRECT(ADDRESS(ROW(A$80),ROW()-ROW(A$80)+(ROWS($88:115)-1)*2,4))","v":0},0,null,0,{"$f":"INDIRECT(ADDRESS(ROW(A$80),ROW()-ROW(A$80)+(ROWS($88:115)-1)*2+1,4))","v":0}]
[{"$f":"IF(B116=\"\",0,INDEX(Price_List,ROWS($88:116)))","v":10},{"$f":"IF($C116=\"\",\"\",COUNTA($C$88:$C116))","v":29},{"$f":"IF(INDEX(INDIRECT(\"Product_List\"),ROWS($88:116))=\"\",\"\",INDEX(INDIRECT(\"Product_List\"),ROWS($88:116)))","v":"29-ขนมปังไส้ครีมชาไทย"},{"$f":"ยอดยกมา","v":0},null,null,null,null,null,null,0,null,{"$f":"INDIRECT(ADDRESS(ROW(A$80),ROW()-ROW(A$80)+(ROWS($88:116)-1)*2-1,4))","v":0},null,0,null,0,null,null,null,0,null,0,null,null,null,null,null,{"$f":"INDIRECT(ADDRESS(ROW(A$80),ROW()-ROW(A$80)+(ROWS($88:116)-1)*2,4))","v":0},0,null,0,{"$f":"INDIRECT(ADDRESS(ROW(A$80),ROW()-ROW(A$80)+(ROWS($88:116)-1)*2+1,4))","v":0}]
[{"$f":"IF(B117=\"\",0,INDEX(Price_List,ROWS($88:117)))","v":15},{"$f":"IF($C117=\"\",\"\",COUNTA($C$88:$C117))","v":30},{"$f":"IF(INDEX(INDIRECT(\"Product_List\"),ROWS($88:117))=\"\",\"\",INDEX(INDIRECT(\"Product_List\"),ROWS($88:117)))","v":"30-ขนมปังโรลมันม่วง"},{"$f":"ยอดยกมา","v":0},null,null,null,null,null,null,0,null,{"$f":"INDIRECT(ADDRESS(ROW(A$80),ROW()-ROW(A$80)+(ROWS($88:117)-1)*2-1,4))","v":0},null,0,null,0,null,null,null,0,null,0,null,null,null,null,null,{"$f":"INDIRECT(ADDRESS(ROW(A$80),ROW()-ROW(A$80)+(ROWS($88:117)-1)*2,4))","v":0},0,null,0,{"$f":"INDIRECT(ADDRESS(ROW(A$80),ROW()-ROW(A$80)+(ROWS($88:117)-1)*2+1,4))","v":0}]
[{"$f":"IF(B118=\"\",0,INDEX(Price_List,ROWS($88:118)))","v":15},{"$f":"IF($C118=\"\",\"\",COUNTA($C$88:$C118))","v":31},{"$f":"IF(INDEX(INDIRECT(\"Product_List\"),ROWS($88:118))=\"\",\"\",INDEX(INDIRECT(\"Product_List\"),ROWS($88:118)))","v":"31-ขนมปังโรลช็อกโกแลต"},{"$f":"ยอดยกมา","v":0},null,null,null,null,null,null,0,null,{"$f":"INDIRECT(ADDRESS(ROW(A$80),ROW()-ROW(A$80)+(ROWS($88:118)-1)*2-1,4))","v":0},null,0,null,0,null,null,null,0,null,0,null,null,null,null,null,{"$f":"INDIRECT(ADDRESS(ROW(A$80),ROW()-ROW(A$80)+(ROWS($88:118)-1)*2,4))","v":0},0,null,0,{"$f":"INDIRECT(ADDRESS(ROW(A$80),ROW()-ROW(A$80)+(ROWS($88:118)-1)*2+1,4))","v":0}]
[{"$f":"IF(B119=\"\",0,INDEX(Price_List,ROWS($88:119)))","v":16},{"$f":"IF($C119=\"\",\"\",COUNTA($C$88:$C119))","v":32},{"$f":"IF(INDEX(INDIRECT(\"Product_List\"),ROWS($88:119))=\"\",\"\",INDEX(INDIRECT(\"Product_List\"),ROWS($88:119)))","v":"32-ขนมปังชนิดแผ่น(155กรัม)"},{"$f":"ยอดยกมา","v":0},null,null,null,null,null,null,0,null,{"$f":"INDIRECT(ADDRESS(ROW(A$80),ROW()-ROW(A$80)+(ROWS($88:119)-1)*2-1,4))","v":0},null,0,null,0,null,null,null,0,null,0,null,null,null,null,null,{"$f":"INDIRECT(ADDRESS(ROW(A$80),ROW()-ROW(A$80)+(ROWS($88:119)-1)*2,4))","v":0},0,null,0,{"$f":"INDIRECT(ADDRESS(ROW(A$80),ROW()-ROW(A$80)+(ROWS($88:119)-1)*2+1,4))","v":0}]
[{"$f":"IF(B120=\"\",0,INDEX(Price_List,ROWS($88:120)))","v":15},{"$f":"IF($C120=\"\",\"\",COUNTA($C$88:$C120))","v":33},{"$f":"IF(INDEX(INDIRECT(\"Product_List\"),ROWS($88:120))=\"\",\"\",INDEX(INDIRECT(\"Product_List\"),ROWS($88:120)))","v":"33-ขนมปังโรลเผือก"},{"$f":"ยอดยกมา","v":0},null,null,null,null,null,null,0,null,{"$f":"INDIRECT(ADDRESS(ROW(A$80),ROW()-ROW(A$80)+(ROWS($88:120)-1)*2-1,4))","v":0},null,0,null,0,null,null,null,0,null,0,null,null,null,null,null,{"$f":"INDIRECT(ADDRESS(ROW(A$80),ROW()-ROW(A$80)+(ROWS($88:120)-1)*2,4))","v":0},0,null,0,{"$f":"INDIRECT(ADDRESS(ROW(A$80),ROW()-ROW(A$80)+(ROWS($88:120)-1)*2+1,4))","v":0}]
[{"$f":"IF(B121=\"\",0,INDEX(Price_List,ROWS($88:121)))","v":15},{"$f":"IF($C121=\"\",\"\",COUNTA($C$88:$C121))","v":34},{"$f":"IF(INDEX(INDIRECT(\"Product_List\"),ROWS($88:121))=\"\",\"\",INDEX(INDIRECT(\"Product_List\"),ROWS($88:121)))","v":"34-ขนมปังไก่หยองน้ำสลัด Mini"},{"$f":"ยอดยกมา","v":0},null,null,null,null,null,null,0,null,{"$f":"INDIRECT(ADDRESS(ROW(A$80),ROW()-ROW(A$80)+(ROWS($88:121)-1)*2-1,4))","v":0},null,0,null,0,null,null,null,0,null,0,null,null,null,null,null,{"$f":"INDIRECT(ADDRESS(ROW(A$80),ROW()-ROW(A$80)+(ROWS($88:121)-1)*2,4))","v":0},0,null,0,{"$f":"INDIRECT(ADDRESS(ROW(A$80),ROW()-ROW(A$80)+(ROWS($88:121)-1)*2+1,4))","v":0}]
[{"$f":"IF(B122=\"\",0,INDEX(Price_List,ROWS($88:122)))","v":10},{"$f":"IF($C122=\"\",\"\",COUNTA($C$88:$C122))","v":35},{"$f":"IF(INDEX(INDIRECT(\"Product_List\"),ROWS($88:122))=\"\",\"\",INDEX(INDIRECT(\"Product_List\"),ROWS($88:122)))","v":"35-ขนมปังไส้ช็อกโกแลต"},{"$f":"ยอดยกมา","v":0},null,null,null,null,null,null,0,null,{"$f":"INDIRECT(ADDRESS(ROW(A$80),ROW()-ROW(A$80)+(ROWS($88:122)-1)*2-1,4))","v":0},null,0,null,0,null,null,null,0,null,0,null,null,null,null,null,{"$f":"INDIRECT(ADDRESS(ROW(A$80),ROW()-ROW(A$80)+(ROWS($88:122)-1)*2,4))","v":0},0,null,0,{"$f":"INDIRECT(ADDRESS(ROW(A$80),ROW()-ROW(A$80)+(ROWS($88:122)-1)*2+1,4))","v":0}]
[{"$f":"IF(B123=\"\",0,INDEX(Price_List,ROWS($88:123)))","v":10},{"$f":"IF($C123=\"\",\"\",COUNTA($C$88:$C123))","v":36},{"$f":"IF(INDEX(INDIRECT(\"Product_List\"),ROWS($88:123))=\"\",\"\",INDEX(INDIRECT(\"Product_List\"),ROWS($88:123)))","v":"36-ขนมปังไส้ครีมสังขยาไข่"},{"$f":"ยอดยกมา","v":0},null,null,null,null,null,null,0,null,{"$f":"INDIRECT(ADDRESS(ROW(A$80),ROW()-ROW(A$80)+(ROWS($88:123)-1)*2-1,4))","v":0},null,0,null,0,null,null,null,0,null,0,null,null,null,null,null,{"$f":"INDIRECT(ADDRESS(ROW(A$80),ROW()-ROW(A$80)+(ROWS($88:123)-1)*2,4))","v":0},0,null,0,{"$f":"INDIRECT(ADDRESS(ROW(A$80),ROW()-ROW(A$80)+(ROWS($88:123)-1)*2+1,4))","v":0}]
[{"$f":"IF(B124=\"\",0,INDEX(Price_List,ROWS($88:124)))","v":20},{"$f":"IF($C124=\"\",\"\",COUNTA($C$88:$C124))","v":37},{"$f":"IF(INDEX(INDIRECT(\"Product_List\"),ROWS($88:124))=\"\",\"\",INDEX(INDIRECT(\"Product_List\"),ROWS($88:124)))","v":"37-ขนมปังพิซซ่าฮาวายเอี้ยน"},{"$f":"ยอดยกมา","v":0},null,null,null,null,null,null,0,null,{"$f":"INDIRECT(ADDRESS(ROW(A$80),ROW()-ROW(A$80)+(ROWS($88:124)-1)*2-1,4))","v":0},null,0,null,0,null,null,null,0,null,0,null,null,null,null,null,{"$f":"INDIRECT(ADDRESS(ROW(A$80),ROW()-ROW(A$80)+(ROWS($88:124)-1)*2,4))","v":0},0,null,0,{"$f":"INDIRECT(ADDRESS(ROW(A$80),ROW()-ROW(A$80)+(ROWS($88:124)-1)*2+1,4))","v":0}]
[{"$f":"IF(B125=\"\",0,INDEX(Price_List,ROWS($88:125)))","v":20},{"$f":"IF($C125=\"\",\"\",COUNTA($C$88:$C125))","v":38},{"$f":"IF(INDEX(INDIRECT(\"Product_List\"),ROWS($88:125))=\"\",\"\",INDEX(INDIRECT(\"Product_List\"),ROWS($88:125)))","v":"38-ครัวซองต์หมูหยองน้ำสลัด"},{"$f":"ยอดยกมา","v":0},null,null,null,null,null,null,0,null,{"$f":"INDIRECT(ADDRESS(ROW(A$80),ROW()-ROW(A$80)+(ROWS($88:125)-1)*2-1,4))","v":0},null,0,null,0,null,null,null,0,null,0,null,null,null,null,null,{"$f":"INDIRECT(ADDRESS(ROW(A$80),ROW()-ROW(A$80)+(ROWS($88:125)-1)*2,4))","v":0},0,null,0,{"$f":"INDIRECT(ADDRESS(ROW(A$80),ROW()-ROW(A$80)+(ROWS($88:125)-1)*2+1,4))","v":0}]
[{"$f":"IF(B126=\"\",0,INDEX(Price_List,ROWS($88:126)))","v":15},{"$f":"IF($C126=\"\",\"\",COUNTA($C$88:$C126))","v":39},{"$f":"IF(INDEX(INDIRECT(\"Product_List\"),ROWS($88:126))=\"\",\"\",INDEX(INDIRECT(\"Product_List\"),ROWS($88:126)))","v":"39-แพนเบรดไส้เผือก"},{"$f":"ยอดยกมา","v":0},null,null,null,null,null,null,0,null,{"$f":"INDIRECT(ADDRESS(ROW(A$80),ROW()-ROW(A$80)+(ROWS($88:126)-1)*2-1,4))","v":0},null,0,null,0,null,null,null,0,null,0,null,null,null,null,null,{"$f":"INDIRECT(ADDRESS(ROW(A$80),ROW()-ROW(A$80)+(ROWS($88:126)-1)*2,4))","v":0},0,null,0,{"$f":"INDIRECT(ADDRESS(ROW(A$80),ROW()-ROW(A$80)+(ROWS($88:126)-1)*2+1,4))","v":0}]
[{"$f":"IF(B127=\"\",0,INDEX(Price_List,ROWS($88:127)))","v":15},{"$f":"IF($C127=\"\",\"\",COUNTA($C$88:$C127))","v":40},{"$f":"IF(INDEX(INDIRECT(\"Product_List\"),ROWS($88:127))=\"\",\"\",INDEX(INDIRECT(\"Product_List\"),ROWS($88:127)))","v":"40-แพนเบรดไส้ถั่วแดง"},{"$f":"ยอดยกมา","v":0},null,null,null,null,null,null,0,null,{"$f":"INDIRECT(ADDRESS(ROW(A$80),ROW()-ROW(A$80)+(ROWS($88:127)-1)*2-1,4))","v":0},null,0,null,0,null,null,null,0,null,0,null,null,null,null,null,{"$f":"INDIRECT(ADDRESS(ROW(A$80),ROW()-ROW(A$80)+(ROWS($88:127)-1)*2,4))","v":0},0,null,0,{"$f":"INDIRECT(ADDRESS(ROW(A$80),ROW()-ROW(A$80)+(ROWS($88:127)-1)*2+1,4))","v":0}]
[{"$f":"IF(B128=\"\",0,INDEX(Price_List,ROWS($88:128)))","v":12},{"$f":"IF($C128=\"\",\"\",COUNTA($C$88:$C128))","v":41},{"$f":"IF(INDEX(INDIRECT(\"Product_List\"),ROWS($88:128))=\"\",\"\",INDEX(INDIRECT(\"Product_List\"),ROWS($88:128)))","v":"41-ขนมปังกรอบเนยน้ำตาล(30กรัม)"},{"$f":"ยอดยกมา","v":0},null,null,null,null,null,null,0,null,{"$f":"INDIRECT(ADDRESS(ROW(A$80),ROW()-ROW(A$80)+(ROWS($88:128)-1)*2-1,4))","v":0},null,0,null,0,null,null,null,0,null,0,null,null,null,null,null,{"$f":"INDIRECT(ADDRESS(ROW(A$80),ROW()-ROW(A$80)+(ROWS($88:128)-1)*2,4))","v":0},0,null,0,{"$f":"INDIRECT(ADDRESS(ROW(A$80),ROW()-ROW(A$80)+(ROWS($88:128)-1)*2+1,4))","v":0}]
[{"$f":"IF(B129=\"\",0,INDEX(Price_List,ROWS($88:129)))","v":18},{"$f":"IF($C129=\"\",\"\",COUNTA($C$88:$C129))","v":42},{"$f":"IF(INDEX(INDIRECT(\"Product_List\"),ROWS($88:129))=\"\",\"\",INDEX(INDIRECT(\"Product_List\"),ROWS($88:129)))","v":"42-ขนมปังชนิดแผ่นโฮลวีต"},{"$f":"ยอดยกมา","v":0},null,null,null,null,null,null,0,null,{"$f":"INDIRECT(ADDRESS(ROW(A$80),ROW()-ROW(A$80)+(ROWS($88:129)-1)*2-1,4))","v":0},null,0,null,0,null,null,null,0,null,0,null,null,null,null,null,{"$f":"INDIRECT(ADDRESS(ROW(A$80),ROW()-ROW(A$80)+(ROWS($88:129)-1)*2,4))","v":0},0,null,0,{"$f":"INDIRECT(ADDRESS(ROW(A$80),ROW()-ROW(A$80)+(ROWS($88:129)-1)*2+1,4))","v":0}]
[{"$f":"IF(B130=\"\",0,INDEX(Price_List,ROWS($88:130)))","v":12},{"$f":"IF($C130=\"\",\"\",COUNTA($C$88:$C130))","v":43},{"$f":"IF(INDEX(INDIRECT(\"Product_List\"),ROWS($88:130))=\"\",\"\",INDEX(INDIRECT(\"Product_List\"),ROWS($88:130)))","v":"43-เค้กโรลใบเตย"},{"$f":"ยอดยกมา","v":0},null,null,null,null,null,null,{"$f":"D130+E130+J130-I130+H130","v":0},null,{"$f":"INDIRECT(ADDRESS(ROW(A$80),ROW()-ROW(A$80)+(ROWS($88:130)-1)*2-1,4))","v":0},null,{"$f":"F130+G130+M130+J130-K130","v":0},null,{"$f":"O130*A130","v":0},null,null,null,{"$f":"D130+E130-F130-G130","v":0},null,{"$f":"U130*6%+U130","v":0},null,null,null,null,null,{"$f":"INDIRECT(ADDRESS(ROW(A$80),ROW()-ROW(A$80)+(ROWS($88:130)-1)*2,4))","v":0},0,null,0,{"$f":"INDIRECT(ADDRESS(ROW(A$80),ROW()-ROW(A$80)+(ROWS($88:130)-1)*2+1,4))","v":0}]
[{"$f":"IF(B131=\"\",0,INDEX(Price_List,ROWS($88:131)))","v":12},{"$f":"IF($C131=\"\",\"\",COUNTA($C$88:$C131))","v":44},{"$f":"IF(INDEX(INDIRECT(\"Product_List\"),ROWS($88:131))=\"\",\"\",INDEX(INDIRECT(\"Product_List\"),ROWS($88:131)))","v":"44-ขนมโมจิไส้ถั่วดำ"},{"$f":"ยอดยกมา","v":0},null,null,null,null,null,null,{"$f":"D131+E131+J131-I131+H131","v":0},null,{"$f":"INDIRECT(ADDRESS(ROW(A$80),ROW()-ROW(A$80)+(ROWS($88:131)-1)*2-1,4))","v":0},null,{"$f":"F131+G131+M131+J131-K131","v":0},null,{"$f":"O131*A131","v":0},null,null,null,{"$f":"D131+E131-F131-G131","v":0},null,{"$f":"U131*6%+U131","v":0},null,null,null,null,null,{"$f":"INDIRECT(ADDRESS(ROW(A$80),ROW()-ROW(A$80)+(ROWS($88:131)-1)*2,4))","v":0},0,null,0,{"$f":"INDIRECT(ADDRESS(ROW(A$80),ROW()-ROW(A$80)+(ROWS($88:131)-1)*2+1,4))","v":0}]
[{"$f":"IF(B132=\"\",0,INDEX(Price_List,ROWS($88:132)))","v":25},{"$f":"IF($C132=\"\",\"\",COUNTA($C$88:$C132))","v":45},{"$f":"IF(INDEX(INDIRECT(\"Product_List\"),ROWS($88:132))=\"\",\"\",INDEX(INDIRECT(\"Product_List\"),ROWS($88:132)))","v":"45-ครัวซองต์ไส้กรอกชีส"},{"$f":"ยอดยกมา","v":0},null,null,null,null,null,null,{"$f":"D132+E132+J132-I132+H132","v":0},null,{"$f":"INDIRECT(ADDRESS(ROW(A$80),ROW()-ROW(A$80)+(ROWS($88:132)-1)*2-1,4))","v":0},null,{"$f":"F132+G132+M132+J132-K132","v":0},null,{"$f":"O132*A132","v":0},null,null,null,{"$f":"D132+E132-F132-G132","v":0},null,{"$f":"U132*6%+U132","v":0},null,null,null,null,null,{"$f":"INDIRECT(ADDRESS(ROW(A$80),ROW()-ROW(A$80)+(ROWS($88:132)-1)*2,4))","v":0},0,null,0,{"$f":"INDIRECT(ADDRESS(ROW(A$80),ROW()-ROW(A$80)+(ROWS($88:132)-1)*2+1,4))","v":0}]
[{"$f":"IF(B133=\"\",0,INDEX(Price_List,ROWS($88:133)))","v":12},{"$f":"IF($C133=\"\",\"\",COUNTA($C$88:$C133))","v":46},{"$f":"IF(INDEX(INDIRECT(\"Product_List\"),ROWS($88:133))=\"\",\"\",INDEX(INDIRECT(\"Product_List\"),ROWS($88:133)))","v":"46-ขนมเปี๊ยะไส้ถั่ว"},{"$f":"ยอดยกมา","v":0},null,null,null,null,null,null,0,null,{"$f":"INDIRECT(ADDRESS(ROW(A$80),ROW()-ROW(A$80)+(ROWS($88:133)-1)*2-1,4))","v":0},null,0,null,0,null,null,null,0,null,0,null,null,null,null,null,{"$f":"INDIRECT(ADDRESS(ROW(A$80),ROW()-ROW(A$80)+(ROWS($88:133)-1)*2,4))","v":0},0,null,0,{"$f":"INDIRECT(ADDRESS(ROW(A$80),ROW()-ROW(A$80)+(ROWS($88:133)-1)*2+1,4))","v":0}]
[{"$f":"IF(B134=\"\",0,INDEX(Price_List,ROWS($88:134)))","v":12},{"$f":"IF($C134=\"\",\"\",COUNTA($C$88:$C134))","v":47},{"$f":"IF(INDEX(INDIRECT(\"Product_List\"),ROWS($88:134))=\"\",\"\",INDEX(INDIRECT(\"Product_List\"),ROWS($88:134)))","v":"47-ขนมเปี๊ยะไส้ฟัก"},{"$f":"ยอดยกมา","v":0},null,null,null,null,null,null,{"$f":"D134+E134+J134-I134+H134","v":0},null,{"$f":"INDIRECT(ADDRESS(ROW(A$80),ROW()-ROW(A$80)+(ROWS($88:134)-1)*2-1,4))","v":0},null,{"$f":"F134+G134+M134+J134-K134","v":0},null,{"$f":"O134*A134","v":0},null,null,null,{"$f":"D134+E134-F134-G134","v":0},null,{"$f":"U134*6%+U134","v":0},null,null,null,null,null,{"$f":"INDIRECT(ADDRESS(ROW(A$80),ROW()-ROW(A$80)+(ROWS($88:134)-1)*2,4))","v":0},0,null,0,{"$f":"INDIRECT(ADDRESS(ROW(A$80),ROW()-ROW(A$80)+(ROWS($88:134)-1)*2+1,4))","v":0}]
[{"$f":"IF(B135=\"\",0,INDEX(Price_List,ROWS($88:135)))","v":12},{"$f":"IF($C135=\"\",\"\",COUNTA($C$88:$C135))","v":48},{"$f":"IF(INDEX(INDIRECT(\"Product_List\"),ROWS($88:135))=\"\",\"\",INDEX(INDIRECT(\"Product_List\"),ROWS($88:135)))","v":"48-มังกี้เค้ก"},{"$f":"ยอดยกมา","v":0},null,null,null,null,null,null,0,null,{"$f":"INDIRECT(ADDRESS(ROW(A$80),ROW()-ROW(A$80)+(ROWS($88:135)-1)*2-1,4))","v":0},null,0,null,0,null,null,null,0,null,0,null,null,null,null,null,{"$f":"INDIRECT(ADDRESS(ROW(A$80),ROW()-ROW(A$80)+(ROWS($88:135)-1)*2,4))","v":0},0,null,0,{"$f":"INDIRECT(ADDRESS(ROW(A$80),ROW()-ROW(A$80)+(ROWS($88:135)-1)*2+1,4))","v":0}]
["รวม",null,null,{"$f":"SUM(D$88:D$135)","v":0},0,0,0,0,0,0,0,null,{"$f":"SUM(M$88:M$135)","v":0},null,null,null,{"$f":"$AP$98","v":0},null,"บาท",null,{"$f":"SUM(U$88:U$135)","v":0},null,{"$f":"SUM(W$88:W$135)","v":0},null,null,null,null,null,{"$f":"SUM(AC$88:AC$135)","v":0},{"$f":"SUM(AD$88:AD$135)","v":0},{"$f":"SUM(AE$88:AE$135)","v":0},{"$f":"SUM(AF$88:AF$135)","v":0},{"$f":"SUM(AG$88:AG$135)","v":0}]
["เลขที่ไมล์ เวลาออกทำงาน",null,null,{"$f":"$BF$3","v":0},null,"Km","น้ำหนักของเสีย"]
["เลขที่ไมล์ เวลากลับ",null,null,{"$f":"$BF$4","v":0},null,"Km",{"$f":"$AA$5","v":0},null,"KG"]
["เวลากลับถึงสำนักงาน",null,null,{"$f":"$BF$1","v":"00:00:00"},null,"น."]
["เติมน้ำมัน",null,null,{"$f":"$AX3","v":0},null,"บาท"]
["จำนวนน้ำมัน",null,null,{"$f":"$AX4","v":0},null,"ลิตร"]
["ยอดรวมต้นทุนสาขา",null,null,{"$f":"$AX5","v":0},null,"บาท"]

{"sheet":"22","index":26,"n_rows":142,"n_cols":154,"rows_kept":142,"cut":false,"hidden":false,"merged":[[83,132,83,133],[129,10,129,11],[129,12,129,13],[129,14,129,15],[129,16,129,17],[127,10,127,11],[127,12,127,13],[127,14,127,15],[127,16,127,17],[127,20,127,21],[127,22,127,23],[127,24,127,25],[127,33,127,36],[126,10,126,11],[126,12,126,13],[126,14,126,15],[126,16,126,17],[128,10,128,11],[128,12,128,13],[129,24,129,25],[125,10,125,11],[125,12,125,13],[125,14,125,15],[125,16,125,17],[7,132,7,134],[8,132,8,134],[80,132,80,133],[82,132,82,133],[7,135,7,137],[8,135,8,137],[80,135,80,136],[82,135,82,136],[7,138,7,140],[7,141,7,143],[7,147,7,149],[8,138,8,140],[141,0,141,2],[141,3,141,4],[138,0,138,2],[138,3,138,4],[139,0,139,2],[139,3,139,4],[140,0,140,2],[140,3,140,4],[135,24,135,25],[135,33,135,36],[136,0,136,2],[136,3,136,4],[137,0,137,2],[137,3,137,4],[137,6,137,7],[137,18,137,21],[135,0,135,2],[135,10,135,11],[135,12,135,13],[135,14,135,15],[135,16,135,17],[135,18,135,19],[135,20,135,21],[135,22,135,23],[128,14,128,15],[128,16,128,17],[128,20,128,21],[128,22,128,23],[129,20,129,21],[129,22,129,23],[131,16,131,17],[132,16,132,17],[134,16,134,17],[131,20,131,21],[132,20,132,21],[134,20,134,21],[131,22,131,23],[132,22,132,23],[134,22,134,23],[131,24,131,25],[132,24,132,25],[134,24,134,25],[129,33,129,36],[128,24,128,25],[128,33,128,36],[126,20,126,21],[126,22,126,23],[124,24,124,25],[124,33,124,36],[125,20,125,21],[125,22,125,23],[125,24,125,25],[125,33,125,36],[124,10,124,11],[124,12,124,13],[124,14,124,15],[124,16,124,17],[124,20,124,21],[124,22,124,23],[126,24,126,25],[126,33,126,36],[122,24,122,25],[122,33,122,36],[123,10,123,11],[123,12,123,13],[123,14,123,15],[123,16,123,17],[123,20,123,21],[123,22,123,23],[123,24,123,25],[123,33,123,36],[122,10,122,11],[122,12,122,13],[122,14,122,15],[122,16,122,17],[122,20,122,21],[122,22,122,23],[120,24,120,25],[120,33,120,36],[121,10,121,11],[121,12,121,13],[121,14,121,15],[121,16,121,17],[121,20,121,21],[121,22,121,23],[121,24,121,25],[121,33,121,36],[120,10,120,11],[120,12,120,13],[120,14,120,15],[120,16,120,17],[120,20,120,21],[120,22,120,23],[118,24,118,25],[118,33,118,36],[119,10,119,11],[119,12,119,13],[119,14,119,15],[119,16,119,17],[119,20,119,21],[119,22,119,23],[119,24,119,25],[119,33,119,36],[118,10,118,11],[118,12,118,13],[118,14,118,15],[118,16,118,17],[118,20,118,21],[118,22,118,23],[116,24,116,25],[116,33,116,36],[117,10,117,11],[117,12,117,13],[117,14,117,15],[117,16,117,17],[117,20,117,21],[117,22,117,23],[117,24,117,25],[117,33,117,36],[116,10,116,11],[116,12,116,13],[116,14,116,15],[116,16,116,17],[116,20,116,21],[116,22,116,23],[114,24,114,25],[114,33,114,36],[115,10,115,11],[115,12,115,13],[115,14,115,15],[115,16,115,17],[115,20,115,21],[115,22,115,23],[115,24,115,25],[115,33,115,36],[114,10,114,11],[114,12,114,13],[114,14,114,15],[114,16,114,17],[114,20,114,21],[114,22,114,23],[112,24,112,25],[112,33,112,36],[113,10,113,11],[113,12,113,13],[113,14,113,15],[113,16,113,17],[113,20,113,21],[113,22,113,23],[113,24,113,25],[113,33,113,36],[112,10,112,11],[112,12,112,13],[112,14,112,15],[112,16,112,17],[112,20,112,21],[112,22,112,23],[110,24,110,25],[110,33,110,36],[111,10,111,11],[111,12,111,13],[111,14,111,15],[111,16,111,17],[111,20,111,21],[111,22,111,23],[111,24,111,25],[111,33,111,36],[110,10,110,11],[110,12,110,13],[110,14,110,15],[110,16,110,17],[110,20,110,21],[110,22,110,23],[108,24,108,25],[108,33,108,36],[109,10,109,11],[109,12,109,13],[109,14,109,15],[109,16,109,17],[109,20,109,21],[109,22,109,23],[109,24,109,25],[109,33,109,36],[108,10,108,11],[108,12,108,13],[108,14,108,15],[108,16,108,17],[108,20,108,21],[108,22,108,23],[106,24,106,25],[106,33,106,36],[107,10,107,11],[107,12,107,13],[107,14,107,15],[107,16,107,17],[107,20,107,21],[107,22,107,23],[107,24,107,25],[107,33,107,36],[106,10,106,11],[106,12,106,13],[106,14,106,15],[106,16,106,17],[106,20,106,21],[106,22,106,23],[104,24,104,25],[104,33,104,36],[105,10,105,11],[105,12,105,13],[105,14,105,15],[105,16,105,17],[105,20,105,21],[105,22,105,23],[105,24,105,25],[105,33,105,36],[104,10,104,11],[104,12,104,13],[104,14,104,15],[104,16,104,17],[104,20,104,21],[104,22,104,23],[102,24,102,25],[102,33,102,36],[103,10,103,11],[103,12,103,13],[103,14,103,15],[103,16,103,17],[103,20,103,21],[103,22,103,23],[103,24,103,25],[103,33,103,36],[102,10,102,11],[102,12,102,13],[102,14,102,15],[102,16,102,17],[102,20,102,21],[102,22,102,23],[101,10,101,11],[101,12,101,13],[101,14,101,15],[101,16,101,17],[101,20,101,21],[101,22,101,23],[101,24,101,25],[101,33,101,36],[100,10,100,11],[100,12,100,13],[100,14,100,15],[100,16,100,17],[100,20,100,21],[100,22,100,23],[99,10,99,11],[99,12,99,13],[99,14,99,15],[99,16,99,17],[99,20,99,21],[99,22,99,23],[99,24,99,25],[99,33,99,36],[100,24,100,25],[100,33,100,36],[97,24,97,25],[97,33,97,36],[97,38,97,40],[98,10,98,11],[98,12,98,13],[98,14,98,15],[98,16,98,17],[98,20,98,21],[98,22,98,23],[98,24,98,25],[97,10,97,11],[97,12,97,13],[97,14,97,15],[97,16,97,17],[97,20,97,21],[97,22,97,23],[98,33,98,36],[95,24,95,25],[95,33,95,36],[96,10,96,11],[96,12,96,13],[96,14,96,15],[96,16,96,17],[96,20,96,21],[96,22,96,23],[96,24,96,25],[96,33,96,36],[95,10,95,11],[95,12,95,13],[95,14,95,15],[95,16,95,17],[95,20,95,21],[95,22,95,23],[93,24,93,25],[93,33,93,36],[94,10,94,11],[94,12,94,13],[94,14,94,15],[94,16,94,17],[94,20,94,21],[94,22,94,23],[94,24,94,25],[94,33,94,36],[93,10,93,11],[93,12,93,13],[93,14,93,15],[93,16,93,17],[93,20,93,21],[93,22,93,23],[91,24,91,25],[91,33,91,36],[92,10,92,11],[92,12,92,13],[92,14,92,15],[92,16,92,17],[92,20,92,21],[92,22,92,23],[92,24,92,25],[92,33,92,36],[91,10,91,11],[91,12,91,13],[91,14,91,15],[91,16,91,17],[91,20,91,21],[91,22,91,23],[86,22,86,23],[86,24,86,25],[88,20,88,21],[88,22,88,23],[88,24,88,25],[88,33,88,36],[89,24,89,25],[89,33,89,36],[90,10,90,11],[90,12,90,13],[90,14,90,15],[90,16,90,17],[90,20,90,21],[90,22,90,23],[90,24,90,25],[90,33,90,36],[89,10,89,11],[89,12,89,13],[89,14,89,15],[89,16,89,17],[89,20,89,21],[89,22,89,23],[83,36,83,37],[83,39,83,40],[83,42,83,43],[83,45,83,46],[83,48,83,49],[83,51,83,52],[83,150,83,153],[86,10,86,11],[86,12,86,13],[86,14,86,15],[86,16,86,17],[86,20,86,21],[83,108,83,109],[83,111,83,112],[83,114,83,115],[83,117,83,118],[83,120,83,121],[83,123,83,124],[83,90,83,91],[83,93,83,94],[83,96,83,97],[83,99,83,100],[83,102,83,103],[83,105,83,106],[82,39,82,40],[82,42,82,43],[82,45,82,46],[82,48,82,49],[83,84,83,85],[83,87,83,88],[83,54,83,55],[83,57,83,58],[83,60,83,61],[83,63,83,64],[83,66,83,67],[83,69,83,70],[83,72,83,73],[83,75,83,76],[83,78,83,79],[83,81,83,82],[83,0,83,5],[83,6,83,7],[83,9,83,10],[83,12,83,13],[83,15,83,16],[82,105,82,106],[82,108,82,109],[82,111,82,112],[82,114,82,115],[82,87,82,88],[82,90,82,91],[82,93,82,94],[82,96,82,97],[82,99,82,100],[82,102,82,103],[82,69,82,70],[82,72,82,73],[82,75,82,76],[82,78,82,79],[82,81,82,82],[82,84,82,85],[82,51,82,52],[82,54,82,55],[82,57,82,58],[82,15,82,16],[82,18,82,19],[82,21,82,22],[82,24,82,25],[82,27,82,28],[82,30,82,31],[81,0,81,2],[81,3,81,5],[81,150,82,153],[82,0,82,2],[82,3,82,4],[82,6,82,7],[82,9,82,10],[82,12,82,13],[82,123,82,124],[82,126,82,127],[82,129,82,130],[82,117,82,118],[82,120,82,121],[82,60,82,61],[82,63,82,64],[82,66,82,67],[82,33,82,34],[82,36,82,37],[80,114,80,115],[80,117,80,118],[80,120,80,121],[80,123,80,124],[80,126,80,127],[80,129,80,130],[80,96,80,97],[80,99,80,100],[80,102,80,103],[80,105,80,106],[80,108,80,109],[80,111,80,112],[80,78,80,79],[80,81,80,82],[80,87,80,88],[80,90,80,91],[80,93,80,94],[80,60,80,61],[80,63,80,64],[80,66,80,67],[80,69,80,70],[80,72,80,73],[80,75,80,76],[80,84,80,85],[79,0,79,5],[80,0,80,5],[80,6,80,7],[80,9,80,10],[80,12,80,13],[80,15,80,16],[80,18,80,19],[80,21,80,22],[8,114,8,116],[8,78,8,80],[8,81,8,83],[8,87,8,89],[8,90,8,92],[8,93,8,95],[8,60,8,62],[8,63,8,65],[8,66,8,68],[8,69,8,71],[8,72,8,74],[8,75,8,77],[8,54,8,56],[8,57,8,59],[8,24,8,26],[8,27,8,29],[8,120,8,122],[8,123,8,125],[8,126,8,128],[8,129,8,131],[8,96,8,98],[8,99,8,101],[8,102,8,104],[8,105,8,107],[8,108,8,110],[8,111,8,113],[8,33,8,35],[8,36,8,38],[8,39,8,41],[8,84,8,86],[7,150,8,150],[7,151,8,151],[8,6,8,8],[8,9,8,11],[8,12,8,14],[8,15,8,17],[8,18,8,20],[8,21,8,23],[7,114,7,116],[7,117,7,119],[7,120,7,122],[7,123,7,125],[7,126,7,128],[7,129,7,131],[7,96,7,98],[7,99,7,101],[7,102,7,104],[7,105,7,107],[7,108,7,110],[8,117,8,119],[7,87,7,89],[7,90,7,92],[7,93,7,95],[7,60,7,62],[7,63,7,65],[7,66,7,68],[7,69,7,71],[7,72,7,74],[7,75,7,77],[7,54,7,56],[7,57,7,59],[7,24,7,26],[7,27,7,29],[7,30,7,32],[7,33,7,35],[7,36,7,38],[7,39,7,41],[7,84,7,86],[6,150,6,151],[6,152,8,152],[6,153,8,153],[7,6,7,8],[7,9,7,11],[7,12,7,14],[7,15,7,17],[7,18,7,20],[7,21,7,23],[6,117,6,119],[6,120,6,122],[6,123,6,125],[6,126,6,128],[6,129,6,131],[6,99,6,101],[6,102,6,104],[6,105,6,107],[6,108,6,110],[6,111,6,113],[6,54,6,56],[6,57,6,59],[7,111,7,113],[7,78,7,80],[7,81,7,83],[6,0,8,0],[6,1,8,1],[6,2,8,2],[6,3,8,3],[6,4,8,4],[6,6,6,8],[6,45,6,47],[6,48,6,50],[6,51,6,53],[7,42,7,44],[7,45,7,47],[7,48,7,50],[7,51,7,53],[8,42,8,44],[8,45,8,47],[8,48,8,50],[8,51,8,53],[6,27,6,29],[6,30,6,32],[6,33,6,35],[6,36,6,38],[6,39,6,41],[6,42,6,44],[8,30,8,32],[4,26,4,29],[4,30,4,31],[4,32,4,34],[4,35,4,36],[6,9,6,11],[6,12,6,14],[6,15,6,17],[6,18,6,20],[6,21,6,23],[6,24,6,26],[3,41,3,44],[3,46,3,48],[3,49,3,51],[3,54,3,56],[3,57,3,60],[4,0,4,1],[4,2,4,3],[4,4,4,5],[4,6,4,12],[4,14,4,16],[3,17,3,19],[3,22,3,25],[3,26,3,29],[3,30,3,33],[3,34,3,37],[3,38,3,40],[4,38,4,40],[4,41,4,44],[4,46,4,48],[4,49,4,51],[4,54,4,56],[4,57,4,60],[4,17,4,19],[4,22,4,25],[2,38,2,40],[3,0,3,1],[3,2,3,3],[3,4,3,5],[3,6,3,12],[3,14,3,16],[2,17,2,19],[2,22,2,25],[2,26,2,29],[2,30,2,33],[80,36,80,37],[80,39,80,40],[0,38,0,40],[0,41,0,44],[0,46,0,48],[0,54,0,56],[0,57,0,60],[2,0,2,1],[2,2,2,3],[2,4,2,5],[2,6,2,12],[2,14,2,16],[0,0,0,12],[0,14,0,16],[0,17,0,23],[0,30,0,33],[0,34,0,35],[0,36,0,37],[2,41,2,44],[2,46,2,48],[2,49,2,51],[2,54,2,56],[2,57,2,60],[2,34,2,37],[6,141,6,143],[6,147,6,149],[83,18,83,19],[83,21,83,22],[83,24,83,25],[83,27,83,28],[83,30,83,31],[83,33,83,34],[83,126,83,127],[83,129,83,130],[8,141,8,143],[8,147,8,149],[80,138,80,139],[80,141,80,142],[80,147,80,148],[82,138,82,139],[82,141,82,142],[82,147,82,148],[6,60,6,62],[6,87,6,89],[6,90,6,92],[6,93,6,95],[6,96,6,98],[6,63,6,65],[88,12,88,13],[88,14,88,15],[88,16,88,17],[6,114,6,116],[6,81,6,83],[6,84,6,86],[6,132,6,134],[6,135,6,137],[6,138,6,140],[6,66,6,68],[6,69,6,71],[6,72,6,74],[6,75,6,77],[6,78,6,80],[80,42,80,43],[80,45,80,46],[80,48,80,49],[80,51,80,52],[80,54,80,55],[80,57,80,58],[80,24,80,25],[80,27,80,28],[80,30,80,31],[80,33,80,34],[83,147,83,148],[131,33,131,36],[132,33,132,36],[134,33,134,36],[131,10,131,11],[132,10,132,11],[134,10,134,11],[131,12,131,13],[132,12,132,13],[134,12,134,13],[131,14,131,15],[132,14,132,15],[134,14,134,15],[86,33,86,36],[87,10,87,11],[87,12,87,13],[87,14,87,15],[87,16,87,17],[87,20,87,21],[87,22,87,23],[83,135,83,136],[130,10,130,11],[130,12,130,13],[130,14,130,15],[6,144,6,146],[7,144,7,146],[8,144,8,146],[80,144,80,145],[82,144,82,145],[83,144,83,145],[133,10,133,11],[133,12,133,13],[133,14,133,15],[133,16,133,17],[133,20,133,21],[133,22,133,23],[133,24,133,25],[133,33,133,36],[83,138,83,139],[83,141,83,142],[130,16,130,17],[130,20,130,21],[130,22,130,23],[130,24,130,25],[130,33,130,36],[87,24,87,25],[87,33,87,36],[88,10,88,11]]}
[":::: รายงานการขายประจำวัน (Sale Daily Report)  ::::",null,null,null,null,null,null,null,null,null,null,null,null,null,"Print Date : ",null,null,{"$f":"NOW()","v":"2025-04-24T22:39:10.130"},null,null,null,null,null,null,null,null,null,null,null,null,"จำนวนร้าน :",null,null,null,{"$f":"MAX($A$10:$A$79)","v":0},null,"ร้าน",null,"เป้ายอดขาย :",null,null,null,null,null,null,null,{"$f":"C3","v":45799},null,null,{"$f":"LEFT('Problems & Solutions'!$B$2,FIND(\"|\",'Problems & Solutions'!$B$2))&\" วันที่\"&TEXT($C$3,\"[$-107041E] d mmmm yyyy;@\")","v":"ขั้นตอนการตรวจรีพอร์ตขาย | วันที่ 22 พฤษภาคม 2568"},null,null,null,null,"เวลากลับ :"]
[]
["วันที่ :",null,{"$f":"DATE(ใส่ข้อมูล!G2-543,ใส่ข้อมูล!V2,ActiveSheetName)","v":"2025-05-22"},null,"พนักงานขาย",null,{"$f":"INDEX(OFFSET(Sale_Region,,1),ActiveSheetName)","v":0},null,null,null,null,null,null,null,"รวมยอดเบิก :",null,null,{"$f":"E136","v":0},null,null,"ชิ้น",null,"ใหญ่สด(40)",null,null,null,{"$f":"Cash_Major_Bill","v":0},null,null,null,"ใหญ่เชื่อ(42)",null,null,null,{"$f":"Credit_Major_Bill","v":0},null,null,null,"บิลใหญ่ :",null,null,{"$f":"AA3+AI3","v":0},null,null,null,null,"เติมน้ำมัน :",null,null,null,null,null,"บาท",null,"ไมล์ออก :",null,null,{"$f":"เลขไมล์ออก","v":0},null,null,null,"Km"]
["เขตการขาย :",null,{"$f":"INDEX(Sale_Region,ActiveSheetName)","v":0},null,"ผช.ขาย",null,{"$f":"INDEX(OFFSET(Sale_Region,,2),ActiveSheetName)","v":0},null,null,null,null,null,null,null,"ของเหลือ :",null,null,{"$f":"F136","v":0},null,null,"ชิ้น",null,"เล็กสด(41)",null,null,null,{"$f":"Cash_Minor_Bill","v":0},null,null,null,"เล็กเชื่อ(43)",null,null,null,{"$f":"Credit_Minor_Bill","v":0},null,null,null,"บิลเล็ก :",null,null,{"$f":"AA4+AI4","v":0},null,null,null,null,"จำนวนลิตร :",null,null,null,null,null,"ลิตร",null,"ไมล์เข้า :",null,null,null,null,null,null,"Km"]
["สายส่ง :",null,{"$f":"\"Sale \"&ใส่ข้อมูล!E3&\"-\"&ใส่ข้อมูล!G3","v":"Sale KB-01"},null,"พนักงานเสริม",null,{"$f":"INDEX(OFFSET(Sale_Region,,3),ActiveSheetName)","v":0},null,null,null,null,null,null,null,"ของเสีย :",null,null,{"$f":"G136","v":0},null,null,"ชิ้น",null,"น้ำหนักของเสีย",null,null,null,null,null,null,null,"Kg.",null,"%ของเสีย",null,null,{"$f":"IF(Order_Cal=0,0,ROUND(Waste_Cal*100/Order_Cal,2))","v":0},null,"%","VAT :",null,null,{"$f":"EW81","v":0},null,null,null,null,"ต้นทุนสาขา :",null,null,{"$f":"SUMPRODUCT((($A$88:$A$135)-($A$88:$A$135)*0.45)*(($E$88:$E$135)-($G$88:$G$135)))","v":0},null,null,"บาท",null,"ระยะทาง :",null,null,{"$f":"IF(OR($BF$4=0,$BF$3=0),0,$BF$4-$BF$3)","v":0},null,null,null,"Km"]
[]
["No","รหัสร้าน (CustNo)","ชื่อร้าน (Store Name)","เวลาเข้าร้าน","ระยะเวลาระหว่างร้าน","บิล(Invoice)",{"$f":"INDEX(INDIRECT(\"dProduct[ProductName]\"),ROUNDUP(COLUMNS($G:G)/3,0))","v":"ขนมปังหมูหยองน้ำสลัด"},null,null,{"$f":"INDEX(INDIRECT(\"dProduct[ProductName]\"),ROUNDUP(COLUMNS($G:J)/3,0))","v":"ขนมปังหมูหยองน้ำพริกเผา"},null,null,{"$f":"INDEX(INDIRECT(\"dProduct[ProductName]\"),ROUNDUP(COLUMNS($G:M)/3,0))","v":"ขนมปังไก่หยองน้ำสลัด"},null,null,{"$f":"INDEX(INDIRECT(\"dProduct[ProductName]\"),ROUNDUP(COLUMNS($G:P)/3,0))","v":"ขนมปังไส้ครีมสลัด"},null,null,{"$f":"INDEX(INDIRECT(\"dProduct[ProductName]\"),ROUNDUP(COLUMNS($G:S)/3,0))","v":"ขนมปังเนยสด"},null,null,{"$f":"INDEX(INDIRECT(\"dProduct[ProductName]\"),ROUNDUP(COLUMNS($G:V)/3,0))","v":"ขนมปังไส้สังขยาเล็ก"},null,null,{"$f":"INDEX(INDIRECT(\"dProduct[ProductName]\"),ROUNDUP(COLUMNS($G:Y)/3,0))","v":"ขนมปังไส้เผือก"},null,null,{"$f":"INDEX(INDIRECT(\"dProduct[ProductName]\"),ROUNDUP(COLUMNS($G:AB)/3,0))","v":"ขนมปังไส้ถั่วแดง"},null,null,{"$f":"INDEX(INDIRECT(\"dProduct[ProductName]\"),ROUNDUP(COLUMNS($G:AE)/3,0))","v":"ขนมปังไส้ถั่วดำ"},null,null,{"$f":"INDEX(INDIRECT(\"dProduct[ProductName]\"),ROUNDUP(COLUMNS($G:AH)/3,0))","v":"ขนมปังไส้มันม่วง"},null,null,{"$f":"INDEX(INDIRECT(\"dProduct[ProductName]\"),ROUNDUP(COLUMNS($G:AK)/3,0))","v":"เค้กกล้วยหอม"},null,null,{"$f":"INDEX(INDIRECT(\"dProduct[ProductName]\"),ROUNDUP(COLUMNS($G:AN)/3,0))","v":"เค้กบัตเตอร์"},null,null,{"$f":"INDEX(INDIRECT(\"dProduct[ProductName]\"),ROUNDUP(COLUMNS($G:AQ)/3,0))","v":"ขนมปังโรลถั่วแดง"},null,null,{"$f":"INDEX(INDIRECT(\"dProduct[ProductName]\"),ROUNDUP(COLUMNS($G:AT)/3,0))","v":"ขนมปังไส้สังขยาใหญ่"},null,null,{"$f":"INDEX(INDIRECT(\"dProduct[ProductName]\"),ROUNDUP(COLUMNS($G:AW)/3,0))","v":"ขนมปังชนิดแผ่น(480กรัม)"},null,null,{"$f":"INDEX(INDIRECT(\"dProduct[ProductName]\"),ROUNDUP(COLUMNS($G:AZ)/3,0))","v":"โมจิไส้ถั่ว"},null,null,{"$f":"INDEX(INDIRECT(\"dProduct[ProductName]\"),ROUNDUP(COLUMNS($G:BC)/3,0))","v":"โมจิไส้เผือก"},null,null,{"$f":"INDEX(INDIRECT(\"dProduct[ProductName]\"),ROUNDUP(COLUMNS($G:BF)/3,0))","v":"โมจิไส้ถั่วไข่เค็ม"},null,null,{"$f":"INDEX(INDIRECT(\"dProduct[ProductName]\"),ROUNDUP(COLUMNS($G:BI)/3,0))","v":"ขนมปังพิซซ่า"},null,null,{"$f":"INDEX(INDIRECT(\"dProduct[ProductName]\"),ROUNDUP(COLUMNS($G:BL)/3,0))","v":"ขนมปังพิซซ่าปูอัดแฮม"},null,null,{"$f":"INDEX(INDIRECT(\"dProduct[ProductName]\"),ROUNDUP(COLUMNS($G:BO)/3,0))","v":"ขนมปังไส้กรอก"},null,null,{"$f":"INDEX(INDIRECT(\"dProduct[ProductName]\"),ROUNDUP(COLUMNS($G:BR)/3,0))","v":"ขนมก้านบัว"},null,null,{"$f":"INDEX(INDIRECT(\"dProduct[ProductName]\"),ROUNDUP(COLUMNS($G:BU)/3,0))","v":"พายสับปะรด"},null,null,{"$f":"INDEX(INDIRECT(\"dProduct[ProductName]\"),ROUNDUP(COLUMNS($G:BX)/3,0))","v":"พายไส้มะพร้าว"},null,null,{"$f":"INDEX(INDIRECT(\"dProduct[ProductName]\"),ROUNDUP(COLUMNS($G:CA)/3,0))","v":"ขนมปังโรลมันเทศ"},null,null,{"$f":"INDEX(INDIRECT(\"dProduct[ProductName]\"),ROUNDUP(COLUMNS($G:CD)/3,0))","v":"ขนมปังไส้ครีมสลัดน้ำพริกเผา"},null,null,{"$f":"INDEX(INDIRECT(\"dProduct[ProductName]\"),ROUNDUP(COLUMNS($G:CG)/3,0))","v":"ขนมปังไส้สังขยาไข่"},null,null,{"$f":"INDEX(INDIRECT(\"dProduct[ProductName]\"),ROUNDUP(COLUMNS($G:CJ)/3,0))","v":"ขนมปังไส้สังขยามะพร้าว"},null,null,{"$f":"INDEX(INDIRECT(\"dProduct[ProductName]\"),ROUNDUP(COLUMNS($G:CM)/3,0))","v":"ขนมปังไส้ครีมชาไทย"},null,null,{"$f":"INDEX(INDIRECT(\"dProduct[ProductName]\"),ROUNDUP(COLUMNS($G:CP)/3,0))","v":"ขนมปังโรลมันม่วง"},null,null,{"$f":"INDEX(INDIRECT(\"dProduct[ProductName]\"),ROUNDUP(COLUMNS($G:CS)/3,0))","v":"ขนมปังโรลช็อกโกแลต"},null,null,{"$f":"INDEX(INDIRECT(\"dProduct[ProductName]\"),ROUNDUP(COLUMNS($G:CV)/3,0))","v":"ขนมปังชนิดแผ่น(155กรัม)"},null,null,{"$f":"INDEX(INDIRECT(\"dProduct[ProductName]\"),ROUNDUP(COLUMNS($G:CY)/3,0))","v":"ขนมปังโรลเผือก"},null,null,{"$f":"INDEX(INDIRECT(\"dProduct[ProductName]\"),ROUNDUP(COLUMNS($G:DB)/3,0))","v":"ขนมปังไก่หยองน้ำสลัด Mini"},null,null,{"$f":"INDEX(INDIRECT(\"dProduct[ProductName]\"),ROUNDUP(COLUMNS($G:DE)/3,0))","v":"ขนมปังไส้ช็อกโกแลต"},null,null,{"$f":"INDEX(INDIRECT(\"dProduct[ProductName]\"),ROUNDUP(COLUMNS($G:DH)/3,0))","v":"ขนมปังไส้ครีมสังขยาไข่"},null,null,{"$f":"INDEX(INDIRECT(\"dProduct[ProductName]\"),ROUNDUP(COLUMNS($G:DK)/3,0))","v":"ขนมปังพิซซ่าฮาวายเอี้ยน"},null,null,{"$f":"INDEX(INDIRECT(\"dProduct[ProductName]\"),ROUNDUP(COLUMNS($G:DN)/3,0))","v":"ครัวซองต์หมูหยองน้ำสลัด"},null,null,{"$f":"INDEX(INDIRECT(\"dProduct[ProductName]\"),ROUNDUP(COLUMNS($G:DQ)/3,0))","v":"แพนเบรดไส้เผือก"},null,null,{"$f":"INDEX(INDIRECT(\"dProduct[ProductName]\"),ROUNDUP(COLUMNS($G:DT)/3,0))","v":"แพนเบรดไส้ถั่วแดง"},null,null,{"$f":"INDEX(INDIRECT(\"dProduct[ProductName]\"),ROUNDUP(COLUMNS($G:DW)/3,0))","v":"ขนมปังกรอบเนยน้ำตาล(30กรัม)"},null,null,{"$f":"INDEX(INDIRECT(\"dProduct[ProductName]\"),ROUNDUP(COLUMNS($G:DZ)/3,0))","v":"ขนมปังชนิดแผ่นโฮลวีต"},null,null,{"$f":"INDEX(INDIRECT(\"dProduct[ProductName]\"),ROUNDUP(COLUMNS($G:EC)/3,0))","v":"เค้กโรลใบเตย"},null,null,{"$f":"INDEX(INDIRECT(\"dProduct[ProductName]\"),ROUNDUP(COLUMNS($G:EF)/3,0))","v":"ขนมโมจิไส้ถั่วดำ"},null,null,{"$f":"INDEX(INDIRECT(\"dProduct[ProductName]\"),ROUNDUP(COLUMNS($G:EI)/3,0))","v":"ครัวซองต์ไส้กรอกชีส"},null,null,{"$f":"INDEX(INDIRECT(\"dProduct[ProductName]\"),ROUNDUP(COLUMNS($G:EL)/3,0))","v":"ขนมเปี๊ยะไส้ถั่ว"},null,null,{"$f":"INDEX(INDIRECT(\"dProduct[ProductName]\"),ROUNDUP(COLUMNS($G:EO)/3,0))","v":"ขนมเปี๊ยะไส้ฟัก"},null,null,{"$f":"INDEX(INDIRECT(\"dProduct[ProductName]\"),ROUNDUP(COLUMNS($G:ER)/3,0))","v":"มังกี้เค้ก"},null,null,"มูลค่าสินค้า",null,"ภาษี","รวมยอดขาย"]
[null,null,null,null,null,"ราคาขาย",{"$f":"IF(G$7=0,0,INDEX(Price_List,ROUNDUP(COLUMNS($G:G)/3,0)))","v":20},null,null,{"$f":"IF(J$7=0,0,INDEX(Price_List,ROUNDUP(COLUMNS($G:J)/3,0)))","v":20},null,null,{"$f":"IF(M$7=0,0,INDEX(Price_List,ROUNDUP(COLUMNS($G:M)/3,0)))","v":20},null,null,{"$f":"IF(P$7=0,0,INDEX(Price_List,ROUNDUP(COLUMNS($G:P)/3,0)))","v":15},null,null,{"$f":"IF(S$7=0,0,INDEX(Price_List,ROUNDUP(COLUMNS($G:S)/3,0)))","v":15},null,null,{"$f":"IF(V$7=0,0,INDEX(Price_List,ROUNDUP(COLUMNS($G:V)/3,0)))","v":10},null,null,{"$f":"IF(Y$7=0,0,INDEX(Price_List,ROUNDUP(COLUMNS($G:Y)/3,0)))","v":10},null,null,{"$f":"IF(AB$7=0,0,INDEX(Price_List,ROUNDUP(COLUMNS($G:AB)/3,0)))","v":10},null,null,{"$f":"IF(AE$7=0,0,INDEX(Price_List,ROUNDUP(COLUMNS($G:AE)/3,0)))","v":10},null,null,{"$f":"IF(AH$7=0,0,INDEX(Price_List,ROUNDUP(COLUMNS($G:AH)/3,0)))","v":10},null,null,{"$f":"IF(AK$7=0,0,INDEX(Price_List,ROUNDUP(COLUMNS($G:AK)/3,0)))","v":15},null,null,{"$f":"IF(AN$7=0,0,INDEX(Price_List,ROUNDUP(COLUMNS($G:AN)/3,0)))","v":15},null,null,{"$f":"IF(AQ$7=0,0,INDEX(Price_List,ROUNDUP(COLUMNS($G:AQ)/3,0)))","v":15},null,null,{"$f":"IF(AT$7=0,0,INDEX(Price_List,ROUNDUP(COLUMNS($G:AT)/3,0)))","v":15},null,null,{"$f":"IF(AW$7=0,0,INDEX(Price_List,ROUNDUP(COLUMNS($G:AW)/3,0)))","v":42},null,null,{"$f":"IF(AZ$7=0,0,INDEX(Price_List,ROUNDUP(COLUMNS($G:AZ)/3,0)))","v":12},null,null,{"$f":"IF(BC$7=0,0,INDEX(Price_List,ROUNDUP(COLUMNS($G:BC)/3,0)))","v":12},null,null,{"$f":"IF(BF$7=0,0,INDEX(Price_List,ROUNDUP(COLUMNS($G:BF)/3,0)))","v":15},null,null,{"$f":"IF(BI$7=0,0,INDEX(Price_List,ROUNDUP(COLUMNS($G:BI)/3,0)))","v":20},null,null,{"$f":"IF(BL$7=0,0,INDEX(Price_List,ROUNDUP(COLUMNS($G:BL)/3,0)))","v":20},null,null,{"$f":"IF(BO$7=0,0,INDEX(Price_List,ROUNDUP(COLUMNS($G:BO)/3,0)))","v":20},null,null,{"$f":"IF(BR$7=0,0,INDEX(Price_List,ROUNDUP(COLUMNS($G:BR)/3,0)))","v":15},null,null,{"$f":"IF(BU$7=0,0,INDEX(Price_List,ROUNDUP(COLUMNS($G:BU)/3,0)))","v":20},null,null,{"$f":"IF(BX$7=0,0,INDEX(Price_List,ROUNDUP(COLUMNS($G:BX)/3,0)))","v":20},null,null,{"$f":"IF(CA$7=0,0,INDEX(Price_List,ROUNDUP(COLUMNS($G:CA)/3,0)))","v":15},null,null,{"$f":"IF(CD$7=0,0,INDEX(Price_List,ROUNDUP(COLUMNS($G:CD)/3,0)))","v":15},null,null,{"$f":"IF(CG$7=0,0,INDEX(Price_List,ROUNDUP(COLUMNS($G:CG)/3,0)))","v":20},null,null,{"$f":"IF(CJ$7=0,0,INDEX(Price_List,ROUNDUP(COLUMNS($G:CJ)/3,0)))","v":20},null,null,{"$f":"IF(CM$7=0,0,INDEX(Price_List,ROUNDUP(COLUMNS($G:CM)/3,0)))","v":10},null,null,{"$f":"IF(CP$7=0,0,INDEX(Price_List,ROUNDUP(COLUMNS($G:CP)/3,0)))","v":15},null,null,{"$f":"IF(CS$7=0,0,INDEX(Price_List,ROUNDUP(COLUMNS($G:CS)/3,0)))","v":15},null,null,{"$f":"IF(CV$7=0,0,INDEX(Price_List,ROUNDUP(COLUMNS($G:CV)/3,0)))","v":16},null,null,{"$f":"IF(CY$7=0,0,INDEX(Price_List,ROUNDUP(COLUMNS($G:CY)/3,0)))","v":15},null,null,{"$f":"IF(DB$7=0,0,INDEX(Price_List,ROUNDUP(COLUMNS($G:DB)/3,0)))","v":15},null,null,{"$f":"IF(DE$7=0,0,INDEX(Price_List,ROUNDUP(COLUMNS($G:DE)/3,0)))","v":10},null,null,{"$f":"IF(DH$7=0,0,INDEX(Price_List,ROUNDUP(COLUMNS($G:DH)/3,0)))","v":10},null,null,{"$f":"IF(DK$7=0,0,INDEX(Price_List,ROUNDUP(COLUMNS($G:DK)/3,0)))","v":20},null,null,{"$f":"IF(DN$7=0,0,INDEX(Price_List,ROUNDUP(COLUMNS($G:DN)/3,0)))","v":20},null,null,{"$f":"IF(DQ$7=0,0,INDEX(Price_List,ROUNDUP(COLUMNS($G:DQ)/3,0)))","v":15},null,null,{"$f":"IF(DT$7=0,0,INDEX(Price_List,ROUNDUP(COLUMNS($G:DT)/3,0)))","v":15},null,null,{"$f":"IF(DW$7=0,0,INDEX(Price_List,ROUNDUP(COLUMNS($G:DW)/3,0)))","v":12},null,null,{"$f":"IF(DZ$7=0,0,INDEX(Price_List,ROUNDUP(COLUMNS($G:DZ)/3,0)))","v":18},null,null,{"$f":"IF(EC$7=0,0,INDEX(Price_List,ROUNDUP(COLUMNS($G:EC)/3,0)))","v":12},null,null,{"$f":"IF(EF$7=0,0,INDEX(Price_List,ROUNDUP(COLUMNS($G:EF)/3,0)))","v":12},null,null,{"$f":"IF(EI$7=0,0,INDEX(Price_List,ROUNDUP(COLUMNS($G:EI)/3,0)))","v":25},null,null,{"$f":"IF(EL$7=0,0,INDEX(Price_List,ROUNDUP(COLUMNS($G:EL)/3,0)))","v":12},null,null,{"$f":"IF(EO$7=0,0,INDEX(Price_List,ROUNDUP(COLUMNS($G:EO)/3,0)))","v":12},null,null,{"$f":"IF(ER$7=0,0,INDEX(Price_List,ROUNDUP(COLUMNS($G:ER)/3,0)))","v":12},null,null,"เงินเชื่อ","เงินสด"]
[null,null,null,null,null,"คงเหลือ(ตามบัญชี)",{"$f":"IF(G$7=0,0,INDEX(INDIRECT(Order_Rng),ROUNDUP(COLUMNS($G:G)/3,0)))","v":0},null,null,{"$f":"IF(J$7=0,0,INDEX(INDIRECT(Order_Rng),ROUNDUP(COLUMNS($G:J)/3,0)))","v":0},null,null,{"$f":"IF(M$7=0,0,INDEX(INDIRECT(Order_Rng),ROUNDUP(COLUMNS($G:M)/3,0)))","v":0},null,null,{"$f":"IF(P$7=0,0,INDEX(INDIRECT(Order_Rng),ROUNDUP(COLUMNS($G:P)/3,0)))","v":0},null,null,{"$f":"IF(S$7=0,0,INDEX(INDIRECT(Order_Rng),ROUNDUP(COLUMNS($G:S)/3,0)))","v":0},null,null,{"$f":"IF(V$7=0,0,INDEX(INDIRECT(Order_Rng),ROUNDUP(COLUMNS($G:V)/3,0)))","v":0},null,null,{"$f":"IF(Y$7=0,0,INDEX(INDIRECT(Order_Rng),ROUNDUP(COLUMNS($G:Y)/3,0)))","v":0},null,null,{"$f":"IF(AB$7=0,0,INDEX(INDIRECT(Order_Rng),ROUNDUP(COLUMNS($G:AB)/3,0)))","v":0},null,null,{"$f":"IF(AE$7=0,0,INDEX(INDIRECT(Order_Rng),ROUNDUP(COLUMNS($G:AE)/3,0)))","v":0},null,null,{"$f":"IF(AH$7=0,0,INDEX(INDIRECT(Order_Rng),ROUNDUP(COLUMNS($G:AH)/3,0)))","v":0},null,null,{"$f":"IF(AK$7=0,0,INDEX(INDIRECT(Order_Rng),ROUNDUP(COLUMNS($G:AK)/3,0)))","v":0},null,null,{"$f":"IF(AN$7=0,0,INDEX(INDIRECT(Order_Rng),ROUNDUP(COLUMNS($G:AN)/3,0)))","v":0},null,null,{"$f":"IF(AQ$7=0,0,INDEX(INDIRECT(Order_Rng),ROUNDUP(COLUMNS($G:AQ)/3,0)))","v":0},null,null,{"$f":"IF(AT$7=0,0,INDEX(INDIRECT(Order_Rng),ROUNDUP(COLUMNS($G:AT)/3,0)))","v":0},null,null,{"$f":"IF(AW$7=0,0,INDEX(INDIRECT(Order_Rng),ROUNDUP(COLUMNS($G:AW)/3,0)))","v":0},null,null,{"$f":"IF(AZ$7=0,0,INDEX(INDIRECT(Order_Rng),ROUNDUP(COLUMNS($G:AZ)/3,0)))","v":0},null,null,{"$f":"IF(BC$7=0,0,INDEX(INDIRECT(Order_Rng),ROUNDUP(COLUMNS($G:BC)/3,0)))","v":0},null,null,{"$f":"IF(BF$7=0,0,INDEX(INDIRECT(Order_Rng),ROUNDUP(COLUMNS($G:BF)/3,0)))","v":0},null,null,{"$f":"IF(BI$7=0,0,INDEX(INDIRECT(Order_Rng),ROUNDUP(COLUMNS($G:BI)/3,0)))","v":0},null,null,{"$f":"IF(BL$7=0,0,INDEX(INDIRECT(Order_Rng),ROUNDUP(COLUMNS($G:BL)/3,0)))","v":0},null,null,{"$f":"IF(BO$7=0,0,INDEX(INDIRECT(Order_Rng),ROUNDUP(COLUMNS($G:BO)/3,0)))","v":0},null,null,{"$f":"IF(BR$7=0,0,INDEX(INDIRECT(Order_Rng),ROUNDUP(COLUMNS($G:BR)/3,0)))","v":0},null,null,{"$f":"IF(BU$7=0,0,INDEX(INDIRECT(Order_Rng),ROUNDUP(COLUMNS($G:BU)/3,0)))","v":0},null,null,{"$f":"IF(BX$7=0,0,INDEX(INDIRECT(Order_Rng),ROUNDUP(COLUMNS($G:BX)/3,0)))","v":0},null,null,{"$f":"IF(CA$7=0,0,INDEX(INDIRECT(Order_Rng),ROUNDUP(COLUMNS($G:CA)/3,0)))","v":0},null,null,{"$f":"IF(CD$7=0,0,INDEX(INDIRECT(Order_Rng),ROUNDUP(COLUMNS($G:CD)/3,0)))","v":0},null,null,{"$f":"IF(CG$7=0,0,INDEX(INDIRECT(Order_Rng),ROUNDUP(COLUMNS($G:CG)/3,0)))","v":0},null,null,{"$f":"IF(CJ$7=0,0,INDEX(INDIRECT(Order_Rng),ROUNDUP(COLUMNS($G:CJ)/3,0)))","v":0},null,null,{"$f":"IF(CM$7=0,0,INDEX(INDIRECT(Order_Rng),ROUNDUP(COLUMNS($G:CM)/3,0)))","v":0},null,null,{"$f":"IF(CP$7=0,0,INDEX(INDIRECT(Order_Rng),ROUNDUP(COLUMNS($G:CP)/3,0)))","v":0},null,null,{"$f":"IF(CS$7=0,0,INDEX(INDIRECT(Order_Rng),ROUNDUP(COLUMNS($G:CS)/3,0)))","v":0},null,null,{"$f":"IF(CV$7=0,0,INDEX(INDIRECT(Order_Rng),ROUNDUP(COLUMNS($G:CV)/3,0)))","v":0},null,null,{"$f":"IF(CY$7=0,0,INDEX(INDIRECT(Order_Rng),ROUNDUP(COLUMNS($G:CY)/3,0)))","v":0},null,null,{"$f":"IF(DB$7=0,0,INDEX(INDIRECT(Order_Rng),ROUNDUP(COLUMNS($G:DB)/3,0)))","v":0},null,null,{"$f":"IF(DE$7=0,0,INDEX(INDIRECT(Order_Rng),ROUNDUP(COLUMNS($G:DE)/3,0)))","v":0},null,null,{"$f":"IF(DH$7=0,0,INDEX(INDIRECT(Order_Rng),ROUNDUP(COLUMNS($G:DH)/3,0)))","v":0},null,null,{"$f":"IF(DK$7=0,0,INDEX(INDIRECT(Order_Rng),ROUNDUP(COLUMNS($G:DK)/3,0)))","v":0},null,null,{"$f":"IF(DN$7=0,0,INDEX(INDIRECT(Order_Rng),ROUNDUP(COLUMNS($G:DN)/3,0)))","v":0},null,null,{"$f":"IF(DQ$7=0,0,INDEX(INDIRECT(Order_Rng),ROUNDUP(COLUMNS($G:DQ)/3,0)))","v":0},null,null,{"$f":"IF(DT$7=0,0,INDEX(INDIRECT(Order_Rng),ROUNDUP(COLUMNS($G:DT)/3,0)))","v":0},null,null,{"$f":"IF(DW$7=0,0,INDEX(INDIRECT(Order_Rng),ROUNDUP(COLUMNS($G:DW)/3,0)))","v":0},null,null,{"$f":"IF(DZ$7=0,0,INDEX(INDIRECT(Order_Rng),ROUNDUP(COLUMNS($G:DZ)/3,0)))","v":0},null,null,{"$f":"IF(EC$7=0,0,INDEX(INDIRECT(Order_Rng),ROUNDUP(COLUMNS($G:EC)/3,0)))","v":0},null,null,{"$f":"IF(EF$7=0,0,INDEX(INDIRECT(Order_Rng),ROUNDUP(COLUMNS($G:EF)/3,0)))","v":0},null,null,{"$f":"IF(EI$7=0,0,INDEX(INDIRECT(Order_Rng),ROUNDUP(COLUMNS($G:EI)/3,0)))","v":0},null,null,{"$f":"IF(EL$7=0,0,INDEX(INDIRECT(Order_Rng),ROUNDUP(COLUMNS($G:EL)/3,0)))","v":0},null,null,{"$f":"IF(EO$7=0,0,INDEX(INDIRECT(Order_Rng),ROUNDUP(COLUMNS($G:EO)/3,0)))","v":0},null,null,{"$f":"IF(ER$7=0,0,INDEX(INDIRECT(Order_Rng),ROUNDUP(COLUMNS($G:ER)/3,0)))","v":0}]
[{"$f":"IF(OR($B10=\"\",COUNTIF($B$10:$B10,$B10)>1,LEN(TRIM($B10))<>10,ISNUMBER(--MID(TRIM($B10),5,1))),\"-\",MAX(COUNT($A$9:$A9)+1))","v":"-"}]
[{"$f":"IF(OR($B11=\"\",COUNTIF($B$10:$B11,$B11)>1,LEN(TRIM($B11))<>10,ISNUMBER(--MID(TRIM($B11),5,1))),\"-\",MAX(COUNT($A$9:$A10)+1))","v":"-"},null,null,null,{"$f":"IF(D11=\"\",\"\",D11-D10)","v":""}]
[{"$f":"IF(OR($B12=\"\",COUNTIF($B$10:$B12,$B12)>1,LEN(TRIM($B12))<>10,ISNUMBER(--MID(TRIM($B12),5,1))),\"-\",MAX(COUNT($A$9:$A11)+1))","v":"-"},null,null,null,{"$f":"IF(D12=\"\",\"\",D12-D11)","v":""}]
[{"$f":"IF(OR($B13=\"\",COUNTIF($B$10:$B13,$B13)>1,LEN(TRIM($B13))<>10,ISNUMBER(--MID(TRIM($B13),5,1))),\"-\",MAX(COUNT($A$9:$A12)+1))","v":"-"},null,null,null,""]
[{"$f":"IF(OR($B14=\"\",COUNTIF($B$10:$B14,$B14)>1,LEN(TRIM($B14))<>10,ISNUMBER(--MID(TRIM($B14),5,1))),\"-\",MAX(COUNT($A$9:$A13)+1))","v":"-"},null,null,null,""]
[{"$f":"IF(OR($B15=\"\",COUNTIF($B$10:$B15,$B15)>1,LEN(TRIM($B15))<>10,ISNUMBER(--MID(TRIM($B15),5,1))),\"-\",MAX(COUNT($A$9:$A14)+1))","v":"-"},null,null,null,""]
[{"$f":"IF(OR($B16=\"\",COUNTIF($B$10:$B16,$B16)>1,LEN(TRIM($B16))<>10,ISNUMBER(--MID(TRIM($B16),5,1))),\"-\",MAX(COUNT($A$9:$A15)+1))","v":"-"},null,null,null,""]
[{"$f":"IF(OR($B17=\"\",COUNTIF($B$10:$B17,$B17)>1,LEN(TRIM($B17))<>10,ISNUMBER(--MID(TRIM($B17),5,1))),\"-\",MAX(COUNT($A$9:$A16)+1))","v":"-"},null,null,null,""]
[{"$f":"IF(OR($B18=\"\",COUNTIF($B$10:$B18,$B18)>1,LEN(TRIM($B18))<>10,ISNUMBER(--MID(TRIM($B18),5,1))),\"-\",MAX(COUNT($A$9:$A17)+1))","v":"-"},null,null,null,""]
[{"$f":"IF(OR($B19=\"\",COUNTIF($B$10:$B19,$B19)>1,LEN(TRIM($B19))<>10,ISNUMBER(--MID(TRIM($B19),5,1))),\"-\",MAX(COUNT($A$9:$A18)+1))","v":"-"},null,null,null,""]
[{"$f":"IF(OR($B20=\"\",COUNTIF($B$10:$B20,$B20)>1,LEN(TRIM($B20))<>10,ISNUMBER(--MID(TRIM($B20),5,1))),\"-\",MAX(COUNT($A$9:$A19)+1))","v":"-"},null,null,null,""]
[{"$f":"IF(OR($B21=\"\",COUNTIF($B$10:$B21,$B21)>1,LEN(TRIM($B21))<>10,ISNUMBER(--MID(TRIM($B21),5,1))),\"-\",MAX(COUNT($A$9:$A20)+1))","v":"-"},null,null,null,""]
[{"$f":"IF(OR($B22=\"\",COUNTIF($B$10:$B22,$B22)>1,LEN(TRIM($B22))<>10,ISNUMBER(--MID(TRIM($B22),5,1))),\"-\",MAX(COUNT($A$9:$A21)+1))","v":"-"},null,null,null,""]
[{"$f":"IF(OR($B23=\"\",COUNTIF($B$10:$B23,$B23)>1,LEN(TRIM($B23))<>10,ISNUMBER(--MID(TRIM($B23),5,1))),\"-\",MAX(COUNT($A$9:$A22)+1))","v":"-"},null,null,null,""]
[{"$f":"IF(OR($B24=\"\",COUNTIF($B$10:$B24,$B24)>1,LEN(TRIM($B24))<>10,ISNUMBER(--MID(TRIM($B24),5,1))),\"-\",MAX(COUNT($A$9:$A23)+1))","v":"-"},null,null,null,""]
[{"$f":"IF(OR($B25=\"\",COUNTIF($B$10:$B25,$B25)>1,LEN(TRIM($B25))<>10,ISNUMBER(--MID(TRIM($B25),5,1))),\"-\",MAX(COUNT($A$9:$A24)+1))","v":"-"},null,null,null,""]
[{"$f":"IF(OR($B26=\"\",COUNTIF($B$10:$B26,$B26)>1,LEN(TRIM($B26))<>10,ISNUMBER(--MID(TRIM($B26),5,1))),\"-\",MAX(COUNT($A$9:$A25)+1))","v":"-"},null,null,null,""]
[{"$f":"IF(OR($B27=\"\",COUNTIF($B$10:$B27,$B27)>1,LEN(TRIM($B27))<>10,ISNUMBER(--MID(TRIM($B27),5,1))),\"-\",MAX(COUNT($A$9:$A26)+1))","v":"-"},null,null,null,""]
[{"$f":"IF(OR($B28=\"\",COUNTIF($B$10:$B28,$B28)>1,LEN(TRIM($B28))<>10,ISNUMBER(--MID(TRIM($B28),5,1))),\"-\",MAX(COUNT($A$9:$A27)+1))","v":"-"},null,null,null,""]
[{"$f":"IF(OR($B29=\"\",COUNTIF($B$10:$B29,$B29)>1,LEN(TRIM($B29))<>10,ISNUMBER(--MID(TRIM($B29),5,1))),\"-\",MAX(COUNT($A$9:$A28)+1))","v":"-"},null,null,null,""]
[{"$f":"IF(OR($B30=\"\",COUNTIF($B$10:$B30,$B30)>1,LEN(TRIM($B30))<>10,ISNUMBER(--MID(TRIM($B30),5,1))),\"-\",MAX(COUNT($A$9:$A29)+1))","v":"-"},null,null,null,""]
[{"$f":"IF(OR($B31=\"\",COUNTIF($B$10:$B31,$B31)>1,LEN(TRIM($B31))<>10,ISNUMBER(--MID(TRIM($B31),5,1))),\"-\",MAX(COUNT($A$9:$A30)+1))","v":"-"},null,null,null,""]
[{"$f":"IF(OR($B32=\"\",COUNTIF($B$10:$B32,$B32)>1,LEN(TRIM($B32))<>10,ISNUMBER(--MID(TRIM($B32),5,1))),\"-\",MAX(COUNT($A$9:$A31)+1))","v":"-"},null,null,null,""]
[{"$f":"IF(OR($B33=\"\",COUNTIF($B$10:$B33,$B33)>1,LEN(TRIM($B33))<>10,ISNUMBER(--MID(TRIM($B33),5,1))),\"-\",MAX(COUNT($A$9:$A32)+1))","v":"-"},null,null,null,""]
[{"$f":"IF(OR($B34=\"\",COUNTIF($B$10:$B34,$B34)>1,LEN(TRIM($B34))<>10,ISNUMBER(--MID(TRIM($B34),5,1))),\"-\",MAX(COUNT($A$9:$A33)+1))","v":"-"},null,null,null,""]
[{"$f":"IF(OR($B35=\"\",COUNTIF($B$10:$B35,$B35)>1,LEN(TRIM($B35))<>10,ISNUMBER(--MID(TRIM($B35),5,1))),\"-\",MAX(COUNT($A$9:$A34)+1))","v":"-"},null,null,null,""]
[{"$f":"IF(OR($B36=\"\",COUNTIF($B$10:$B36,$B36)>1,LEN(TRIM($B36))<>10,ISNUMBER(--MID(TRIM($B36),5,1))),\"-\",MAX(COUNT($A$9:$A35)+1))","v":"-"},null,null,null,""]
[{"$f":"IF(OR($B37=\"\",COUNTIF($B$10:$B37,$B37)>1,LEN(TRIM($B37))<>10,ISNUMBER(--MID(TRIM($B37),5,1))),\"-\",MAX(COUNT($A$9:$A36)+1))","v":"-"},null,null,null,""]
[{"$f":"IF(OR($B38=\"\",COUNTIF($B$10:$B38,$B38)>1,LEN(TRIM($B38))<>10,ISNUMBER(--MID(TRIM($B38),5,1))),\"-\",MAX(COUNT($A$9:$A37)+1))","v":"-"},null,null,null,""]
[{"$f":"IF(OR($B39=\"\",COUNTIF($B$10:$B39,$B39)>1,LEN(TRIM($B39))<>10,ISNUMBER(--MID(TRIM($B39),5,1))),\"-\",MAX(COUNT($A$9:$A38)+1))","v":"-"},null,null,null,""]
[{"$f":"IF(OR($B40=\"\",COUNTIF($B$10:$B40,$B40)>1,LEN(TRIM($B40))<>10,ISNUMBER(--MID(TRIM($B40),5,1))),\"-\",MAX(COUNT($A$9:$A39)+1))","v":"-"},null,null,null,""]
[{"$f":"IF(OR($B41=\"\",COUNTIF($B$10:$B41,$B41)>1,LEN(TRIM($B41))<>10,ISNUMBER(--MID(TRIM($B41),5,1))),\"-\",MAX(COUNT($A$9:$A40)+1))","v":"-"},null,null,null,""]
[{"$f":"IF(OR($B42=\"\",COUNTIF($B$10:$B42,$B42)>1,LEN(TRIM($B42))<>10,ISNUMBER(--MID(TRIM($B42),5,1))),\"-\",MAX(COUNT($A$9:$A41)+1))","v":"-"},null,null,null,""]
[{"$f":"IF(OR($B43=\"\",COUNTIF($B$10:$B43,$B43)>1,LEN(TRIM($B43))<>10,ISNUMBER(--MID(TRIM($B43),5,1))),\"-\",MAX(COUNT($A$9:$A42)+1))","v":"-"},null,null,null,""]
[{"$f":"IF(OR($B44=\"\",COUNTIF($B$10:$B44,$B44)>1,LEN(TRIM($B44))<>10,ISNUMBER(--MID(TRIM($B44),5,1))),\"-\",MAX(COUNT($A$9:$A43)+1))","v":"-"},null,null,null,""]
[{"$f":"IF(OR($B45=\"\",COUNTIF($B$10:$B45,$B45)>1,LEN(TRIM($B45))<>10,ISNUMBER(--MID(TRIM($B45),5,1))),\"-\",MAX(COUNT($A$9:$A44)+1))","v":"-"},null,null,null,""]
[{"$f":"IF(OR($B46=\"\",COUNTIF($B$10:$B46,$B46)>1,LEN(TRIM($B46))<>10,ISNUMBER(--MID(TRIM($B46),5,1))),\"-\",MAX(COUNT($A$9:$A45)+1))","v":"-"},null,null,null,""]
[{"$f":"IF(OR($B47=\"\",COUNTIF($B$10:$B47,$B47)>1,LEN(TRIM($B47))<>10,ISNUMBER(--MID(TRIM($B47),5,1))),\"-\",MAX(COUNT($A$9:$A46)+1))","v":"-"},null,null,null,""]
[{"$f":"IF(OR($B48=\"\",COUNTIF($B$10:$B48,$B48)>1,LEN(TRIM($B48))<>10,ISNUMBER(--MID(TRIM($B48),5,1))),\"-\",MAX(COUNT($A$9:$A47)+1))","v":"-"},null,null,null,""]
[{"$f":"IF(OR($B49=\"\",COUNTIF($B$10:$B49,$B49)>1,LEN(TRIM($B49))<>10,ISNUMBER(--MID(TRIM($B49),5,1))),\"-\",MAX(COUNT($A$9:$A48)+1))","v":"-"},null,null,null,""]
[{"$f":"IF(OR($B50=\"\",COUNTIF($B$10:$B50,$B50)>1,LEN(TRIM($B50))<>10,ISNUMBER(--MID(TRIM($B50),5,1))),\"-\",MAX(COUNT($A$9:$A49)+1))","v":"-"},null,null,null,""]
[{"$f":"IF(OR($B51=\"\",COUNTIF($B$10:$B51,$B51)>1,LEN(TRIM($B51))<>10,ISNUMBER(--MID(TRIM($B51),5,1))),\"-\",MAX(COUNT($A$9:$A50)+1))","v":"-"},null,null,null,""]
[{"$f":"IF(OR($B52=\"\",COUNTIF($B$10:$B52,$B52)>1,LEN(TRIM($B52))<>10,ISNUMBER(--MID(TRIM($B52),5,1))),\"-\",MAX(COUNT($A$9:$A51)+1))","v":"-"},null,null,null,""]
[{"$f":"IF(OR($B53=\"\",COUNTIF($B$10:$B53,$B53)>1,LEN(TRIM($B53))<>10,ISNUMBER(--MID(TRIM($B53),5,1))),\"-\",MAX(COUNT($A$9:$A52)+1))","v":"-"},null,null,null,""]
[{"$f":"IF(OR($B54=\"\",COUNTIF($B$10:$B54,$B54)>1,LEN(TRIM($B54))<>10,ISNUMBER(--MID(TRIM($B54),5,1))),\"-\",MAX(COUNT($A$9:$A53)+1))","v":"-"},null,null,null,""]
[{"$f":"IF(OR($B55=\"\",COUNTIF($B$10:$B55,$B55)>1,LEN(TRIM($B55))<>10,ISNUMBER(--MID(TRIM($B55),5,1))),\"-\",MAX(COUNT($A$9:$A54)+1))","v":"-"},null,null,null,""]
[{"$f":"IF(OR($B56=\"\",COUNTIF($B$10:$B56,$B56)>1,LEN(TRIM($B56))<>10,ISNUMBER(--MID(TRIM($B56),5,1))),\"-\",MAX(COUNT($A$9:$A55)+1))","v":"-"},null,null,null,""]
[{"$f":"IF(OR($B57=\"\",COUNTIF($B$10:$B57,$B57)>1,LEN(TRIM($B57))<>10,ISNUMBER(--MID(TRIM($B57),5,1))),\"-\",MAX(COUNT($A$9:$A56)+1))","v":"-"},null,null,null,""]
[{"$f":"IF(OR($B58=\"\",COUNTIF($B$10:$B58,$B58)>1,LEN(TRIM($B58))<>10,ISNUMBER(--MID(TRIM($B58),5,1))),\"-\",MAX(COUNT($A$9:$A57)+1))","v":"-"},null,null,null,""]
[{"$f":"IF(OR($B59=\"\",COUNTIF($B$10:$B59,$B59)>1,LEN(TRIM($B59))<>10,ISNUMBER(--MID(TRIM($B59),5,1))),\"-\",MAX(COUNT($A$9:$A58)+1))","v":"-"},null,null,null,""]
[{"$f":"IF(OR($B60=\"\",COUNTIF($B$10:$B60,$B60)>1,LEN(TRIM($B60))<>10,ISNUMBER(--MID(TRIM($B60),5,1))),\"-\",MAX(COUNT($A$9:$A59)+1))","v":"-"},null,null,null,""]
[{"$f":"IF(OR($B61=\"\",COUNTIF($B$10:$B61,$B61)>1,LEN(TRIM($B61))<>10,ISNUMBER(--MID(TRIM($B61),5,1))),\"-\",MAX(COUNT($A$9:$A60)+1))","v":"-"},null,null,null,""]
[{"$f":"IF(OR($B62=\"\",COUNTIF($B$10:$B62,$B62)>1,LEN(TRIM($B62))<>10,ISNUMBER(--MID(TRIM($B62),5,1))),\"-\",MAX(COUNT($A$9:$A61)+1))","v":"-"},null,null,null,""]
[{"$f":"IF(OR($B63=\"\",COUNTIF($B$10:$B63,$B63)>1,LEN(TRIM($B63))<>10,ISNUMBER(--MID(TRIM($B63),5,1))),\"-\",MAX(COUNT($A$9:$A62)+1))","v":"-"},null,null,null,""]
[{"$f":"IF(OR($B64=\"\",COUNTIF($B$10:$B64,$B64)>1,LEN(TRIM($B64))<>10,ISNUMBER(--MID(TRIM($B64),5,1))),\"-\",MAX(COUNT($A$9:$A63)+1))","v":"-"},null,null,null,""]
[{"$f":"IF(OR($B65=\"\",COUNTIF($B$10:$B65,$B65)>1,LEN(TRIM($B65))<>10,ISNUMBER(--MID(TRIM($B65),5,1))),\"-\",MAX(COUNT($A$9:$A64)+1))","v":"-"},null,null,null,""]
[{"$f":"IF(OR($B66=\"\",COUNTIF($B$10:$B66,$B66)>1,LEN(TRIM($B66))<>10,ISNUMBER(--MID(TRIM($B66),5,1))),\"-\",MAX(COUNT($A$9:$A65)+1))","v":"-"},null,null,null,""]
[{"$f":"IF(OR($B67=\"\",COUNTIF($B$10:$B67,$B67)>1,LEN(TRIM($B67))<>10,ISNUMBER(--MID(TRIM($B67),5,1))),\"-\",MAX(COUNT($A$9:$A66)+1))","v":"-"},null,null,null,""]
[{"$f":"IF(OR($B68=\"\",COUNTIF($B$10:$B68,$B68)>1,LEN(TRIM($B68))<>10,ISNUMBER(--MID(TRIM($B68),5,1))),\"-\",MAX(COUNT($A$9:$A67)+1))","v":"-"},null,null,null,""]
[{"$f":"IF(OR($B69=\"\",COUNTIF($B$10:$B69,$B69)>1,LEN(TRIM($B69))<>10,ISNUMBER(--MID(TRIM($B69),5,1))),\"-\",MAX(COUNT($A$9:$A68)+1))","v":"-"},null,null,null,""]
[{"$f":"IF(OR($B70=\"\",COUNTIF($B$10:$B70,$B70)>1,LEN(TRIM($B70))<>10,ISNUMBER(--MID(TRIM($B70),5,1))),\"-\",MAX(COUNT($A$9:$A69)+1))","v":"-"},null,null,null,""]
[{"$f":"IF(OR($B71=\"\",COUNTIF($B$10:$B71,$B71)>1,LEN(TRIM($B71))<>10,ISNUMBER(--MID(TRIM($B71),5,1))),\"-\",MAX(COUNT($A$9:$A70)+1))","v":"-"},null,null,null,""]
[{"$f":"IF(OR($B72=\"\",COUNTIF($B$10:$B72,$B72)>1,LEN(TRIM($B72))<>10,ISNUMBER(--MID(TRIM($B72),5,1))),\"-\",MAX(COUNT($A$9:$A71)+1))","v":"-"},null,null,null,""]
[{"$f":"IF(OR($B73=\"\",COUNTIF($B$10:$B73,$B73)>1,LEN(TRIM($B73))<>10,ISNUMBER(--MID(TRIM($B73),5,1))),\"-\",MAX(COUNT($A$9:$A72)+1))","v":"-"},null,null,null,""]
[{"$f":"IF(OR($B74=\"\",COUNTIF($B$10:$B74,$B74)>1,LEN(TRIM($B74))<>10,ISNUMBER(--MID(TRIM($B74),5,1))),\"-\",MAX(COUNT($A$9:$A73)+1))","v":"-"},null,null,null,""]
[{"$f":"IF(OR($B75=\"\",COUNTIF($B$10:$B75,$B75)>1,LEN(TRIM($B75))<>10,ISNUMBER(--MID(TRIM($B75),5,1))),\"-\",MAX(COUNT($A$9:$A74)+1))","v":"-"},null,null,null,""]
[{"$f":"IF(OR($B76=\"\",COUNTIF($B$10:$B76,$B76)>1,LEN(TRIM($B76))<>10,ISNUMBER(--MID(TRIM($B76),5,1))),\"-\",MAX(COUNT($A$9:$A75)+1))","v":"-"},null,null,null,{"$f":"IF(D76=\"\",\"\",D76-D75)","v":""}]
[{"$f":"IF(OR($B77=\"\",COUNTIF($B$10:$B77,$B77)>1,LEN(TRIM($B77))<>10,ISNUMBER(--MID(TRIM($B77),5,1))),\"-\",MAX(COUNT($A$9:$A76)+1))","v":"-"},null,null,null,""]
[{"$f":"IF(OR($B78=\"\",COUNTIF($B$10:$B78,$B78)>1,LEN(TRIM($B78))<>10,ISNUMBER(--MID(TRIM($B78),5,1))),\"-\",MAX(COUNT($A$9:$A77)+1))","v":"-"},null,null,null,""]
[{"$f":"IF(OR($B79=\"\",COUNTIF($B$10:$B79,$B79)>1,LEN(TRIM($B79))<>10,ISNUMBER(--MID(TRIM($B79),5,1))),\"-\",MAX(COUNT($A$9:$A78)+1))","v":"-"},null,null,null,""]
["รวมของขาย|ของเสีย|เหลือบนเชลฟ์",null,null,null,null,null,{"$f":"SUM(G10:G79)","v":0},0,0,{"$f":"SUM(J10:J79)","v":0},0,0,0,0,0,0,0,0,0,0,0,0,0,0,0,0,0,0,0,0,0,0,0,0,0,0,0,0,0,0,0,0,0,0,0,0,0,0,0,0,0,0,0,0,0,0,0,0,0,0,0,0,0,0,0,0,0,0,0,0,0,0,0,{"$f":"SUM(BV10:BV79)","v":0},0,0,0,0,0,0,0,0,0,0,0,0,0,0,0,0,0,0,0,0,0,0,0,0,0,0,0,0,0,0,0,0,0,0,0,0,0,0,0,0,0,0,0,0,0,0,0,0,0,0,0,0,0,0,0,0,0,0,0,0,0,{"$f":"SUM(EF10:EF79)","v":0},0,0,{"$f":"SUM(EI10:EI79)","v":0},0,0,0,0,0,{"$f":"SUM(EO10:EO79)","v":0},0,0,0,0,0,"รวมเงินเชื่อ","รวมเงินสด","ภาษี","รวมยอดขาย"]
["ของเหลือ",null,null,null,null,null,{"$f":"G80+H80-G9","v":0},null,null,{"$f":"J80+K80-J9","v":0},null,null,{"$f":"M80+N80-M9","v":0},null,null,{"$f":"P80+Q80-P9","v":0},null,null,{"$f":"S80+T80-S9","v":0},null,null,{"$f":"V80+W80-V9","v":0},null,null,{"$f":"Y80+Z80-Y9","v":0},null,null,{"$f":"AB80+AC80-AB9","v":0},null,null,{"$f":"AE80+AF80-AE9","v":0},null,null,{"$f":"AH80+AI80-AH9","v":0},null,null,{"$f":"AK80+AL80-AK9","v":0},null,null,{"$f":"AN80+AO80-AN9","v":0},null,null,{"$f":"AQ80+AR80-AQ9","v":0},null,null,{"$f":"AT80+AU80-AT9","v":0},null,null,{"$f":"AW80+AX80-AW9","v":0},null,null,{"$f":"AZ80+BA80-AZ9","v":0},null,null,{"$f":"BC80+BD80-BC9","v":0},null,null,{"$f":"BF80+BG80-BF9","v":0},null,null,{"$f":"BI80+BJ80-BI9","v":0},null,null,{"$f":"BL80+BM80-BL9","v":0},null,null,{"$f":"BO80+BP80-BO9","v":0},null,null,{"$f":"BR80+BS80-BR9","v":0},null,null,{"$f":"BU80+BV80-BU9","v":0},null,null,{"$f":"BX80+BY80-BX9","v":0},null,null,{"$f":"CA80+CB80-CA9","v":0},null,null,{"$f":"CD80+CE80-CD9","v":0},null,null,{"$f":"CG80+CH80-CG9","v":0},null,null,{"$f":"CJ80+CK80-CJ9","v":0},null,null,{"$f":"CM80+CN80-CM9","v":0},null,null,{"$f":"CP80+CQ80-CP9","v":0},null,null,{"$f":"CS80+CT80-CS9","v":0},null,null,{"$f":"CV80+CW80-CV9","v":0},null,null,{"$f":"CY80+CZ80-CY9","v":0},null,null,{"$f":"DB80+DC80-DB9","v":0},null,null,{"$f":"DE80+DF80-DE9","v":0},null,null,{"$f":"DH80+DI80-DH9","v":0},null,null,{"$f":"DK80+DL80-DK9","v":0},null,null,{"$f":"DN80+DO80-DN9","v":0},null,null,{"$f":"DQ80+DR80-DQ9","v":0},null,null,{"$f":"DT80+DU80-DT9","v":0},null,null,{"$f":"DW80+DX80-DW9","v":0},null,null,{"$f":"DZ80+EA80-DZ9","v":0},null,null,{"$f":"EC80+ED80-EC9","v":0},null,null,{"$f":"EF80+EG80-EF9","v":0},null,null,{"$f":"EI80+EJ80-EI9","v":0},null,null,{"$f":"EL80+EM80-EL9","v":0},null,null,{"$f":"EO80+EP80-EO9","v":0},null,null,{"$f":"ER80+ES80-ER9","v":0},null,null,{"$f":"SUM(EU10:EU79)","v":0},{"$f":"SUM(EV10:EV79)","v":0},{"$f":"SUM(EW10:EW79)","v":0},{"$f":"SUM(EX10:EX79)","v":0}]
["เฉลี่ย",null,null,"เหลือ/เสีย(จริง)",null,null,{"$f":"INDIRECT(\"F\"&ROW($G$87)+ROUNDUP(COLUMNS($G:G)/3,0))","v":0},{"$f":"INDIRECT(\"G\"&ROW($G$87)+ROUNDUP(COLUMNS($G:H)/3,0))","v":0},null,{"$f":"INDIRECT(\"F\"&ROW($G$87)+ROUNDUP(COLUMNS($G:J)/3,0))","v":0},{"$f":"INDIRECT(\"G\"&ROW($G$87)+ROUNDUP(COLUMNS($G:K)/3,0))","v":0},null,{"$f":"INDIRECT(\"F\"&ROW($G$87)+ROUNDUP(COLUMNS($G:M)/3,0))","v":0},{"$f":"INDIRECT(\"G\"&ROW($G$87)+ROUNDUP(COLUMNS($G:N)/3,0))","v":0},null,{"$f":"INDIRECT(\"F\"&ROW($G$87)+ROUNDUP(COLUMNS($G:P)/3,0))","v":0},{"$f":"INDIRECT(\"G\"&ROW($G$87)+ROUNDUP(COLUMNS($G:Q)/3,0))","v":0},null,{"$f":"INDIRECT(\"F\"&ROW($G$87)+ROUNDUP(COLUMNS($G:S)/3,0))","v":0},{"$f":"INDIRECT(\"G\"&ROW($G$87)+ROUNDUP(COLUMNS($G:T)/3,0))","v":0},null,{"$f":"INDIRECT(\"F\"&ROW($G$87)+ROUNDUP(COLUMNS($G:V)/3,0))","v":0},{"$f":"INDIRECT(\"G\"&ROW($G$87)+ROUNDUP(COLUMNS($G:W)/3,0))","v":0},null,{"$f":"INDIRECT(\"F\"&ROW($G$87)+ROUNDUP(COLUMNS($G:Y)/3,0))","v":0},{"$f":"INDIRECT(\"G\"&ROW($G$87)+ROUNDUP(COLUMNS($G:Z)/3,0))","v":0},null,{"$f":"INDIRECT(\"F\"&ROW($G$87)+ROUNDUP(COLUMNS($G:AB)/3,0))","v":0},{"$f":"INDIRECT(\"G\"&ROW($G$87)+ROUNDUP(COLUMNS($G:AC)/3,0))","v":0},null,{"$f":"INDIRECT(\"F\"&ROW($G$87)+ROUNDUP(COLUMNS($G:AE)/3,0))","v":0},{"$f":"INDIRECT(\"G\"&ROW($G$87)+ROUNDUP(COLUMNS($G:AF)/3,0))","v":0},null,{"$f":"INDIRECT(\"F\"&ROW($G$87)+ROUNDUP(COLUMNS($G:AH)/3,0))","v":0},{"$f":"INDIRECT(\"G\"&ROW($G$87)+ROUNDUP(COLUMNS($G:AI)/3,0))","v":0},null,{"$f":"INDIRECT(\"F\"&ROW($G$87)+ROUNDUP(COLUMNS($G:AK)/3,0))","v":0},{"$f":"INDIRECT(\"G\"&ROW($G$87)+ROUNDUP(COLUMNS($G:AL)/3,0))","v":0},null,{"$f":"INDIRECT(\"F\"&ROW($G$87)+ROUNDUP(COLUMNS($G:AN)/3,0))","v":0},{"$f":"INDIRECT(\"G\"&ROW($G$87)+ROUNDUP(COLUMNS($G:AO)/3,0))","v":0},null,{"$f":"INDIRECT(\"F\"&ROW($G$87)+ROUNDUP(COLUMNS($G:AQ)/3,0))","v":0},{"$f":"INDIRECT(\"G\"&ROW($G$87)+ROUNDUP(COLUMNS($G:AR)/3,0))","v":0},null,{"$f":"INDIRECT(\"F\"&ROW($G$87)+ROUNDUP(COLUMNS($G:AT)/3,0))","v":0},{"$f":"INDIRECT(\"G\"&ROW($G$87)+ROUNDUP(COLUMNS($G:AU)/3,0))","v":0},null,{"$f":"INDIRECT(\"F\"&ROW($G$87)+ROUNDUP(COLUMNS($G:AW)/3,0))","v":0},{"$f":"INDIRECT(\"G\"&ROW($G$87)+ROUNDUP(COLUMNS($G:AX)/3,0))","v":0},null,{"$f":"INDIRECT(\"F\"&ROW($G$87)+ROUNDUP(COLUMNS($G:AZ)/3,0))","v":0},{"$f":"INDIRECT(\"G\"&ROW($G$87)+ROUNDUP(COLUMNS($G:BA)/3,0))","v":0},null,{"$f":"INDIRECT(\"F\"&ROW($G$87)+ROUNDUP(COLUMNS($G:BC)/3,0))","v":0},{"$f":"INDIRECT(\"G\"&ROW($G$87)+ROUNDUP(COLUMNS($G:BD)/3,0))","v":0},null,{"$f":"INDIRECT(\"F\"&ROW($G$87)+ROUNDUP(COLUMNS($G:BF)/3,0))","v":0},{"$f":"INDIRECT(\"G\"&ROW($G$87)+ROUNDUP(COLUMNS($G:BG)/3,0))","v":0},null,{"$f":"INDIRECT(\"F\"&ROW($G$87)+ROUNDUP(COLUMNS($G:BI)/3,0))","v":0},{"$f":"INDIRECT(\"G\"&ROW($G$87)+ROUNDUP(COLUMNS($G:BJ)/3,0))","v":0},null,{"$f":"INDIRECT(\"F\"&ROW($G$87)+ROUNDUP(COLUMNS($G:BL)/3,0))","v":0},{"$f":"INDIRECT(\"G\"&ROW($G$87)+ROUNDUP(COLUMNS($G:BM)/3,0))","v":0},null,{"$f":"INDIRECT(\"F\"&ROW($G$87)+ROUNDUP(COLUMNS($G:BO)/3,0))","v":0},{"$f":"INDIRECT(\"G\"&ROW($G$87)+ROUNDUP(COLUMNS($G:BP)/3,0))","v":0},null,{"$f":"INDIRECT(\"F\"&ROW($G$87)+ROUNDUP(COLUMNS($G:BR)/3,0))","v":0},{"$f":"INDIRECT(\"G\"&ROW($G$87)+ROUNDUP(COLUMNS($G:BS)/3,0))","v":0},null,{"$f":"INDIRECT(\"F\"&ROW($G$87)+ROUNDUP(COLUMNS($G:BU)/3,0))","v":0},{"$f":"INDIRECT(\"G\"&ROW($G$87)+ROUNDUP(COLUMNS($G:BV)/3,0))","v":0},null,{"$f":"INDIRECT(\"F\"&ROW($G$87)+ROUNDUP(COLUMNS($G:BX)/3,0))","v":0},{"$f":"INDIRECT(\"G\"&ROW($G$87)+ROUNDUP(COLUMNS($G:BY)/3,0))","v":0},null,{"$f":"INDIRECT(\"F\"&ROW($G$87)+ROUNDUP(COLUMNS($G:CA)/3,0))","v":0},{"$f":"INDIRECT(\"G\"&ROW($G$87)+ROUNDUP(COLUMNS($G:CB)/3,0))","v":0},null,{"$f":"INDIRECT(\"F\"&ROW($G$87)+ROUNDUP(COLUMNS($G:CD)/3,0))","v":0},{"$f":"INDIRECT(\"G\"&ROW($G$87)+ROUNDUP(COLUMNS($G:CE)/3,0))","v":0},null,{"$f":"INDIRECT(\"F\"&ROW($G$87)+ROUNDUP(COLUMNS($G:CG)/3,0))","v":0},{"$f":"INDIRECT(\"G\"&ROW($G$87)+ROUNDUP(COLUMNS($G:CH)/3,0))","v":0},null,{"$f":"INDIRECT(\"F\"&ROW($G$87)+ROUNDUP(COLUMNS($G:CJ)/3,0))","v":0},{"$f":"INDIRECT(\"G\"&ROW($G$87)+ROUNDUP(COLUMNS($G:CK)/3,0))","v":0},null,{"$f":"INDIRECT(\"F\"&ROW($G$87)+ROUNDUP(COLUMNS($G:CM)/3,0))","v":0},{"$f":"INDIRECT(\"G\"&ROW($G$87)+ROUNDUP(COLUMNS($G:CN)/3,0))","v":0},null,{"$f":"INDIRECT(\"F\"&ROW($G$87)+ROUNDUP(COLUMNS($G:CP)/3,0))","v":0},{"$f":"INDIRECT(\"G\"&ROW($G$87)+ROUNDUP(COLUMNS($G:CQ)/3,0))","v":0},null,{"$f":"INDIRECT(\"F\"&ROW($G$87)+ROUNDUP(COLUMNS($G:CS)/3,0))","v":0},{"$f":"INDIRECT(\"G\"&ROW($G$87)+ROUNDUP(COLUMNS($G:CT)/3,0))","v":0},null,{"$f":"INDIRECT(\"F\"&ROW($G$87)+ROUNDUP(COLUMNS($G:CV)/3,0))","v":0},{"$f":"INDIRECT(\"G\"&ROW($G$87)+ROUNDUP(COLUMNS($G:CW)/3,0))","v":0},null,{"$f":"INDIRECT(\"F\"&ROW($G$87)+ROUNDUP(COLUMNS($G:CY)/3,0))","v":0},{"$f":"INDIRECT(\"G\"&ROW($G$87)+ROUNDUP(COLUMNS($G:CZ)/3,0))","v":0},null,{"$f":"INDIRECT(\"F\"&ROW($G$87)+ROUNDUP(COLUMNS($G:DB)/3,0))","v":0},{"$f":"INDIRECT(\"G\"&ROW($G$87)+ROUNDUP(COLUMNS($G:DC)/3,0))","v":0},null,{"$f":"INDIRECT(\"F\"&ROW($G$87)+ROUNDUP(COLUMNS($G:DE)/3,0))","v":0},{"$f":"INDIRECT(\"G\"&ROW($G$87)+ROUNDUP(COLUMNS($G:DF)/3,0))","v":0},null,{"$f":"INDIRECT(\"F\"&ROW($G$87)+ROUNDUP(COLUMNS($G:DH)/3,0))","v":0},{"$f":"INDIRECT(\"G\"&ROW($G$87)+ROUNDUP(COLUMNS($G:DI)/3,0))","v":0},null,{"$f":"INDIRECT(\"F\"&ROW($G$87)+ROUNDUP(COLUMNS($G:DK)/3,0))","v":0},{"$f":"INDIRECT(\"G\"&ROW($G$87)+ROUNDUP(COLUMNS($G:DL)/3,0))","v":0},null,{"$f":"INDIRECT(\"F\"&ROW($G$87)+ROUNDUP(COLUMNS($G:DN)/3,0))","v":0},{"$f":"INDIRECT(\"G\"&ROW($G$87)+ROUNDUP(COLUMNS($G:DO)/3,0))","v":0},null,{"$f":"INDIRECT(\"F\"&ROW($G$87)+ROUNDUP(COLUMNS($G:DQ)/3,0))","v":0},{"$f":"INDIRECT(\"G\"&ROW($G$87)+ROUNDUP(COLUMNS($G:DR)/3,0))","v":0},null,{"$f":"INDIRECT(\"F\"&ROW($G$87)+ROUNDUP(COLUMNS($G:DT)/3,0))","v":0},{"$f":"INDIRECT(\"G\"&ROW($G$87)+ROUNDUP(COLUMNS($G:DU)/3,0))","v":0},null,{"$f":"INDIRECT(\"F\"&ROW($G$87)+ROUNDUP(COLUMNS($G:DW)/3,0))","v":0},{"$f":"INDIRECT(\"G\"&ROW($G$87)+ROUNDUP(COLUMNS($G:DX)/3,0))","v":0},null,{"$f":"INDIRECT(\"F\"&ROW($G$87)+ROUNDUP(COLUMNS($G:DZ)/3,0))","v":0},{"$f":"INDIRECT(\"G\"&ROW($G$87)+ROUNDUP(COLUMNS($G:EA)/3,0))","v":0},null,{"$f":"INDIRECT(\"F\"&ROW($G$87)+ROUNDUP(COLUMNS($G:EC)/3,0))","v":0},{"$f":"INDIRECT(\"G\"&ROW($G$87)+ROUNDUP(COLUMNS($G:ED)/3,0))","v":0},null,{"$f":"INDIRECT(\"F\"&ROW($G$87)+ROUNDUP(COLUMNS($G:EF)/3,0))","v":0},{"$f":"INDIRECT(\"G\"&ROW($G$87)+ROUNDUP(COLUMNS($G:EG)/3,0))","v":0},null,{"$f":"INDIRECT(\"F\"&ROW($G$87)+ROUNDUP(COLUMNS($G:EI)/3,0))","v":0},{"$f":"INDIRECT(\"G\"&ROW($G$87)+ROUNDUP(COLUMNS($G:EJ)/3,0))","v":0},null,{"$f":"INDIRECT(\"F\"&ROW($G$87)+ROUNDUP(COLUMNS($G:EL)/3,0))","v":0},{"$f":"INDIRECT(\"G\"&ROW($G$87)+ROUNDUP(COLUMNS($G:EM)/3,0))","v":0},null,{"$f":"INDIRECT(\"F\"&ROW($G$87)+ROUNDUP(COLUMNS($G:EO)/3,0))","v":0},{"$f":"INDIRECT(\"G\"&ROW($G$87)+ROUNDUP(COLUMNS($G:EP)/3,0))","v":0},null,{"$f":"INDIRECT(\"F\"&ROW($G$87)+ROUNDUP(COLUMNS($G:ER)/3,0))","v":0},{"$f":"INDIRECT(\"G\"&ROW($G$87)+ROUNDUP(COLUMNS($G:ES)/3,0))","v":0},null,{"$f":"EU81+EV81","v":0}]
["เวลากลับถึงสำนักงานเช็คของเสีย",null,null,{"$f":"D139","v":"00:00:00"},null,"ผลต่าง",{"$f":"G82+H82+G80-G9","v":0},null,null,{"$f":"J82+K82+J80-J9","v":0},null,null,{"$f":"M82+N82+M80-M9","v":0},null,null,{"$f":"P82+Q82+P80-P9","v":0},null,null,{"$f":"S82+T82+S80-S9","v":0},null,null,{"$f":"V82+W82+V80-V9","v":0},null,null,{"$f":"Y82+Z82+Y80-Y9","v":0},null,null,{"$f":"AB82+AC82+AB80-AB9","v":0},null,null,{"$f":"AE82+AF82+AE80-AE9","v":0},null,null,{"$f":"AH82+AI82+AH80-AH9","v":0},null,null,{"$f":"AK82+AL82+AK80-AK9","v":0},null,null,{"$f":"AN82+AO82+AN80-AN9","v":0},null,null,{"$f":"AQ82+AR82+AQ80-AQ9","v":0},null,null,{"$f":"AT82+AU82+AT80-AT9","v":0},null,null,{"$f":"AW82+AX82+AW80-AW9","v":0},null,null,{"$f":"AZ82+BA82+AZ80-AZ9","v":0},null,null,{"$f":"BC82+BD82+BC80-BC9","v":0},null,null,{"$f":"BF82+BG82+BF80-BF9","v":0},null,null,{"$f":"BI82+BJ82+BI80-BI9","v":0},null,null,{"$f":"BL82+BM82+BL80-BL9","v":0},null,null,{"$f":"BO82+BP82+BO80-BO9","v":0},null,null,{"$f":"BR82+BS82+BR80-BR9","v":0},null,null,{"$f":"BU82+BV82+BU80-BU9","v":0},null,null,{"$f":"BX82+BY82+BX80-BX9","v":0},null,null,{"$f":"CA82+CB82+CA80-CA9","v":0},null,null,{"$f":"CD82+CE82+CD80-CD9","v":0},null,null,{"$f":"CG82+CH82+CG80-CG9","v":0},null,null,{"$f":"CJ82+CK82+CJ80-CJ9","v":0},null,null,{"$f":"CM82+CN82+CM80-CM9","v":0},null,null,{"$f":"CP82+CQ82+CP80-CP9","v":0},null,null,{"$f":"CS82+CT82+CS80-CS9","v":0},null,null,{"$f":"CV82+CW82+CV80-CV9","v":0},null,null,{"$f":"CY82+CZ82+CY80-CY9","v":0},null,null,{"$f":"DB82+DC82+DB80-DB9","v":0},null,null,{"$f":"DE82+DF82+DE80-DE9","v":0},null,null,{"$f":"DH82+DI82+DH80-DH9","v":0},null,null,{"$f":"DK82+DL82+DK80-DK9","v":0},null,null,{"$f":"DN82+DO82+DN80-DN9","v":0},null,null,{"$f":"DQ82+DR82+DQ80-DQ9","v":0},null,null,{"$f":"DT82+DU82+DT80-DT9","v":0},null,null,{"$f":"DW82+DX82+DW80-DW9","v":0},null,null,{"$f":"DZ82+EA82+DZ80-DZ9","v":0},null,null,{"$f":"EC82+ED82+EC80-EC9","v":0},null,null,{"$f":"EF82+EG82+EF80-EF9","v":0},null,null,{"$f":"EI82+EJ82+EI80-EI9","v":0},null,null,{"$f":"EL82+EM82+EL80-EL9","v":0},null,null,{"$f":"EO82+EP82+EO80-EO9","v":0},null,null,{"$f":"ER82+ES82+ER80-ER9","v":0}]
["เป็นเงิน",null,null,null,null,null,{"$f":"G8*G83","v":0},null,null,{"$f":"J8*J83","v":0},null,null,{"$f":"M8*M83","v":0},null,null,{"$f":"P8*P83","v":0},null,null,{"$f":"S8*S83","v":0},null,null,{"$f":"V8*V83","v":0},null,null,{"$f":"Y8*Y83","v":0},null,null,{"$f":"AB8*AB83","v":0},null,null,{"$f":"AE8*AE83","v":0},null,null,{"$f":"AH8*AH83","v":0},null,null,{"$f":"AK8*AK83","v":0},null,null,{"$f":"AN8*AN83","v":0},null,null,{"$f":"AQ8*AQ83","v":0},null,null,{"$f":"AT8*AT83","v":0},null,null,{"$f":"AW8*AW83","v":0},null,null,{"$f":"AZ8*AZ83","v":0},null,null,{"$f":"BC8*BC83","v":0},null,null,{"$f":"BF8*BF83","v":0},null,null,{"$f":"BI8*BI83","v":0},null,null,{"$f":"BL8*BL83","v":0},null,null,{"$f":"BO8*BO83","v":0},null,null,{"$f":"BR8*BR83","v":0},null,null,{"$f":"BU8*BU83","v":0},null,null,{"$f":"BX8*BX83","v":0},null,null,{"$f":"CA8*CA83","v":0},null,null,{"$f":"CD8*CD83","v":0},null,null,{"$f":"CG8*CG83","v":0},null,null,{"$f":"CJ8*CJ83","v":0},null,null,{"$f":"CM8*CM83","v":0},null,null,{"$f":"CP8*CP83","v":0},null,null,{"$f":"CS8*CS83","v":0},null,null,{"$f":"CV8*CV83","v":0},null,null,{"$f":"CY8*CY83","v":0},null,null,{"$f":"DB8*DB83","v":0},null,null,{"$f":"DE8*DE83","v":0},null,null,{"$f":"DH8*DH83","v":0},null,null,{"$f":"DK8*DK83","v":0},null,null,{"$f":"DN8*DN83","v":0},null,null,{"$f":"DQ8*DQ83","v":0},null,null,{"$f":"DT8*DT83","v":0},null,null,{"$f":"DW8*DW83","v":0},null,null,0,null,null,{"$f":"EC8*EC83","v":0},null,null,{"$f":"EF8*EF83","v":0},null,null,{"$f":"EI8*EI83","v":0},null,null,{"$f":"EL8*EL83","v":0},null,null,{"$f":"EO8*EO83","v":0},null,null,{"$f":"ER8*ER83","v":0},null,null,{"$f":"$AP$98","v":0}]
[null,null,null,"ผู้จัดทำ……………………………………………………………………",null,null,null,null,null,null,null,null,null,null,null,null,null,null,null,null,null,null,null,"ผู้ตรวจ(ผจก.)………………………………………………………………………………."]
[null,null,"ใบจ่ายสินค้า",null,null,null,null,null,null,null,null,null,null,null,null,null,null,{"$f":"IF(ISODD(COLUMN()),MAX($F$86:Q$86)+1,\"\")","v":""}]
["ราคา","ลำดับ","รายการ","ยกมา","เบิก","เหลือ","เสีย","โอนเข้า","โอนออก","ชำรุด","รวม",null,"ขาย",null,"ขาด/เกิน",null,"บาท",null,null,null,"ขายได้",null,"ควรเบิก",null,"หมายเหตุ",null,null,null,"เสีย PDA","เสียจริง","เหลือ PDA","ผลต่าง","เหลือลูกค้า","หมายเหตุ",null,null,null,null,"Price","Quantity","Baht","Deduct"]
[{"$f":"IF(B88=\"\",0,INDEX(Price_List,ROWS($88:88)))","v":20},{"$f":"IF($C88=\"\",\"\",COUNTA($C$88:$C88))","v":1},{"$f":"IF(INDEX(INDIRECT(\"Product_List\"),ROWS($88:88))=\"\",\"\",INDEX(INDIRECT(\"Product_List\"),ROWS($88:88)))","v":"01-ขนมปังหมูหยองน้ำสลัด"},{"$f":"ยอดยกมา","v":0},null,null,null,null,null,null,{"$f":"D88+E88+J88-I88+H88","v":0},null,{"$f":"INDIRECT(ADDRESS(ROW(A$80),ROW()-ROW(A$80)+(ROWS($88:88)-1)*2-1,4))","v":0},null,{"$f":"F88+G88+M88+J88-K88","v":0},null,{"$f":"O88*A88","v":0},null,null,null,{"$f":"D88+E88-F88-G88","v":0},null,{"$f":"U88*6%+U88","v":0},null,null,null,null,null,{"$f":"INDIRECT(ADDRESS(ROW(A$80),ROW()-ROW(A$80)+(ROWS($88:88)-1)*2,4))","v":0},{"$f":"$G88","v":0},null,{"$f":"$F88-$AE88","v":0},{"$f":"INDIRECT(ADDRESS(ROW(A$80),ROW()-ROW(A$80)+(ROWS($88:88)-1)*2+1,4))","v":0},null,null,null,null,null,10,{"$f":"SUMPRODUCT(($A$88:$A$135=$AM88)*(($F$88:$F$135)+($G$88:$G$135)+($M$88:$M$135)+($J$88:$J$135)-($K$88:$K$135)))","v":0},{"$f":"AM88*AN88","v":0},{"$f":"IF(AO88<0,AO88,0)","v":0}]
[{"$f":"IF(B89=\"\",0,INDEX(Price_List,ROWS($88:89)))","v":20},{"$f":"IF($C89=\"\",\"\",COUNTA($C$88:$C89))","v":2},{"$f":"IF(INDEX(INDIRECT(\"Product_List\"),ROWS($88:89))=\"\",\"\",INDEX(INDIRECT(\"Product_List\"),ROWS($88:89)))","v":"02-ขนมปังหมูหยองน้ำพริกเผา"},{"$f":"ยอดยกมา","v":0},null,null,null,null,null,null,{"$f":"D89+E89+J89-I89+H89","v":0},null,{"$f":"INDIRECT(ADDRESS(ROW(A$80),ROW()-ROW(A$80)+(ROWS($88:89)-1)*2-1,4))","v":0},null,{"$f":"F89+G89+M89+J89-K89","v":0},null,{"$f":"O89*A89","v":0},null,null,null,{"$f":"D89+E89-F89-G89","v":0},null,{"$f":"U89*6%+U89","v":0},null,null,null,null,null,{"$f":"INDIRECT(ADDRESS(ROW(A$80),ROW()-ROW(A$80)+(ROWS($88:89)-1)*2,4))","v":0},{"$f":"$G89","v":0},null,{"$f":"$F89-$AE89","v":0},{"$f":"INDIRECT(ADDRESS(ROW(A$80),ROW()-ROW(A$80)+(ROWS($88:89)-1)*2+1,4))","v":0},null,null,null,null,null,12,0,{"$f":"AM89*AN89","v":0},{"$f":"IF(AO89<0,AO89,0)","v":0}]
[{"$f":"IF(B90=\"\",0,INDEX(Price_List,ROWS($88:90)))","v":20},{"$f":"IF($C90=\"\",\"\",COUNTA($C$88:$C90))","v":3},{"$f":"IF(INDEX(INDIRECT(\"Product_List\"),ROWS($88:90))=\"\",\"\",INDEX(INDIRECT(\"Product_List\"),ROWS($88:90)))","v":"03-ขนมปังไก่หยองน้ำสลัด"},{"$f":"ยอดยกมา","v":0},null,null,null,null,null,null,0,null,{"$f":"INDIRECT(ADDRESS(ROW(A$80),ROW()-ROW(A$80)+(ROWS($88:90)-1)*2-1,4))","v":0},null,0,null,0,null,null,null,0,null,0,null,null,null,null,null,{"$f":"INDIRECT(ADDRESS(ROW(A$80),ROW()-ROW(A$80)+(ROWS($88:90)-1)*2,4))","v":0},0,null,0,{"$f":"INDIRECT(ADDRESS(ROW(A$80),ROW()-ROW(A$80)+(ROWS($88:90)-1)*2+1,4))","v":0},null,null,null,null,null,13,0,0,0]
[{"$f":"IF(B91=\"\",0,INDEX(Price_List,ROWS($88:91)))","v":15},{"$f":"IF($C91=\"\",\"\",COUNTA($C$88:$C91))","v":4},{"$f":"IF(INDEX(INDIRECT(\"Product_List\"),ROWS($88:91))=\"\",\"\",INDEX(INDIRECT(\"Product_List\"),ROWS($88:91)))","v":"04-ขนมปังไส้ครีมสลัด"},{"$f":"ยอดยกมา","v":0},null,null,null,null,null,null,0,null,{"$f":"INDIRECT(ADDRESS(ROW(A$80),ROW()-ROW(A$80)+(ROWS($88:91)-1)*2-1,4))","v":0},null,{"$f":"F91+G91+M91+J91-K91","v":0},null,0,null,null,null,0,null,0,null,null,null,null,null,{"$f":"INDIRECT(ADDRESS(ROW(A$80),ROW()-ROW(A$80)+(ROWS($88:91)-1)*2,4))","v":0},0,null,0,{"$f":"INDIRECT(ADDRESS(ROW(A$80),ROW()-ROW(A$80)+(ROWS($88:91)-1)*2+1,4))","v":0},null,null,null,null,null,15,0,0,0]
[{"$f":"IF(B92=\"\",0,INDEX(Price_List,ROWS($88:92)))","v":15},{"$f":"IF($C92=\"\",\"\",COUNTA($C$88:$C92))","v":5},{"$f":"IF(INDEX(INDIRECT(\"Product_List\"),ROWS($88:92))=\"\",\"\",INDEX(INDIRECT(\"Product_List\"),ROWS($88:92)))","v":"05-ขนมปังเนยสด"},{"$f":"ยอดยกมา","v":0},null,null,null,null,null,null,0,null,{"$f":"INDIRECT(ADDRESS(ROW(A$80),ROW()-ROW(A$80)+(ROWS($88:92)-1)*2-1,4))","v":0},null,0,null,0,null,null,null,0,null,0,null,null,null,null,null,{"$f":"INDIRECT(ADDRESS(ROW(A$80),ROW()-ROW(A$80)+(ROWS($88:92)-1)*2,4))","v":0},0,null,0,{"$f":"INDIRECT(ADDRESS(ROW(A$80),ROW()-ROW(A$80)+(ROWS($88:92)-1)*2+1,4))","v":0},null,null,null,null,null,16,0,0,0]
[{"$f":"IF(B93=\"\",0,INDEX(Price_List,ROWS($88:93)))","v":10},{"$f":"IF($C93=\"\",\"\",COUNTA($C$88:$C93))","v":6},{"$f":"IF(INDEX(INDIRECT(\"Product_List\"),ROWS($88:93))=\"\",\"\",INDEX(INDIRECT(\"Product_List\"),ROWS($88:93)))","v":"06-ขนมปังไส้สังขยาเล็ก"},{"$f":"ยอดยกมา","v":0},null,null,null,null,null,null,0,null,{"$f":"INDIRECT(ADDRESS(ROW(A$80),ROW()-ROW(A$80)+(ROWS($88:93)-1)*2-1,4))","v":0},null,0,null,0,null,null,null,0,null,0,null,null,null,null,null,{"$f":"INDIRECT(ADDRESS(ROW(A$80),ROW()-ROW(A$80)+(ROWS($88:93)-1)*2,4))","v":0},0,null,0,{"$f":"INDIRECT(ADDRESS(ROW(A$80),ROW()-ROW(A$80)+(ROWS($88:93)-1)*2+1,4))","v":0},null,null,null,null,null,18,0,0,0]
[{"$f":"IF(B94=\"\",0,INDEX(Price_List,ROWS($88:94)))","v":10},{"$f":"IF($C94=\"\",\"\",COUNTA($C$88:$C94))","v":7},{"$f":"IF(INDEX(INDIRECT(\"Product_List\"),ROWS($88:94))=\"\",\"\",INDEX(INDIRECT(\"Product_List\"),ROWS($88:94)))","v":"07-ขนมปังไส้เผือก"},{"$f":"ยอดยกมา","v":0},null,null,null,null,null,null,0,null,{"$f":"INDIRECT(ADDRESS(ROW(A$80),ROW()-ROW(A$80)+(ROWS($88:94)-1)*2-1,4))","v":0},null,0,null,0,null,null,null,0,null,0,null,null,null,null,null,{"$f":"INDIRECT(ADDRESS(ROW(A$80),ROW()-ROW(A$80)+(ROWS($88:94)-1)*2,4))","v":0},0,null,0,{"$f":"INDIRECT(ADDRESS(ROW(A$80),ROW()-ROW(A$80)+(ROWS($88:94)-1)*2+1,4))","v":0},null,null,null,null,null,20,0,0,0]
[{"$f":"IF(B95=\"\",0,INDEX(Price_List,ROWS($88:95)))","v":10},{"$f":"IF($C95=\"\",\"\",COUNTA($C$88:$C95))","v":8},{"$f":"IF(INDEX(INDIRECT(\"Product_List\"),ROWS($88:95))=\"\",\"\",INDEX(INDIRECT(\"Product_List\"),ROWS($88:95)))","v":"08-ขนมปังไส้ถั่วแดง"},{"$f":"ยอดยกมา","v":0},null,null,null,null,null,null,0,null,{"$f":"INDIRECT(ADDRESS(ROW(A$80),ROW()-ROW(A$80)+(ROWS($88:95)-1)*2-1,4))","v":0},null,0,null,0,null,null,null,0,null,0,null,null,null,null,null,{"$f":"INDIRECT(ADDRESS(ROW(A$80),ROW()-ROW(A$80)+(ROWS($88:95)-1)*2,4))","v":0},0,null,0,{"$f":"INDIRECT(ADDRESS(ROW(A$80),ROW()-ROW(A$80)+(ROWS($88:95)-1)*2+1,4))","v":0},null,null,null,null,null,22,0,0,0]
[{"$f":"IF(B96=\"\",0,INDEX(Price_List,ROWS($88:96)))","v":10},{"$f":"IF($C96=\"\",\"\",COUNTA($C$88:$C96))","v":9},{"$f":"IF(INDEX(INDIRECT(\"Product_List\"),ROWS($88:96))=\"\",\"\",INDEX(INDIRECT(\"Product_List\"),ROWS($88:96)))","v":"09-ขนมปังไส้ถั่วดำ"},{"$f":"ยอดยกมา","v":0},null,null,null,null,null,null,0,null,{"$f":"INDIRECT(ADDRESS(ROW(A$80),ROW()-ROW(A$80)+(ROWS($88:96)-1)*2-1,4))","v":0},null,0,null,0,null,null,null,0,null,0,null,null,null,null,null,{"$f":"INDIRECT(ADDRESS(ROW(A$80),ROW()-ROW(A$80)+(ROWS($88:96)-1)*2,4))","v":0},0,null,0,{"$f":"INDIRECT(ADDRESS(ROW(A$80),ROW()-ROW(A$80)+(ROWS($88:96)-1)*2+1,4))","v":0},null,null,null,null,null,25,0,0,0]
[{"$f":"IF(B97=\"\",0,INDEX(Price_List,ROWS($88:97)))","v":10},{"$f":"IF($C97=\"\",\"\",COUNTA($C$88:$C97))","v":10},{"$f":"IF(INDEX(INDIRECT(\"Product_List\"),ROWS($88:97))=\"\",\"\",INDEX(INDIRECT(\"Product_List\"),ROWS($88:97)))","v":"10-ขนมปังไส้มันม่วง"},{"$f":"ยอดยกมา","v":0},null,null,null,null,null,null,0,null,{"$f":"INDIRECT(ADDRESS(ROW(A$80),ROW()-ROW(A$80)+(ROWS($88:97)-1)*2-1,4))","v":0},null,0,null,0,null,null,null,0,null,0,null,null,null,null,null,{"$f":"INDIRECT(ADDRESS(ROW(A$80),ROW()-ROW(A$80)+(ROWS($88:97)-1)*2,4))","v":0},0,null,0,{"$f":"INDIRECT(ADDRESS(ROW(A$80),ROW()-ROW(A$80)+(ROWS($88:97)-1)*2+1,4))","v":0},null,null,null,null,null,42,0,0,0]
[{"$f":"IF(B98=\"\",0,INDEX(Price_List,ROWS($88:98)))","v":15},{"$f":"IF($C98=\"\",\"\",COUNTA($C$88:$C98))","v":11},{"$f":"IF(INDEX(INDIRECT(\"Product_List\"),ROWS($88:98))=\"\",\"\",INDEX(INDIRECT(\"Product_List\"),ROWS($88:98)))","v":"11-เค้กกล้วยหอม"},{"$f":"ยอดยกมา","v":0},null,null,null,null,null,null,0,null,{"$f":"INDIRECT(ADDRESS(ROW(A$80),ROW()-ROW(A$80)+(ROWS($88:98)-1)*2-1,4))","v":0},null,0,null,0,null,null,null,0,null,0,null,null,null,null,null,{"$f":"INDIRECT(ADDRESS(ROW(A$80),ROW()-ROW(A$80)+(ROWS($88:98)-1)*2,4))","v":0},0,null,0,{"$f":"INDIRECT(ADDRESS(ROW(A$80),ROW()-ROW(A$80)+(ROWS($88:98)-1)*2+1,4))","v":0},null,null,null,null,null,"Total Deduct",null,null,{"$f":"SUM($AP$88:$AP$97)","v":0}]
[{"$f":"IF(B99=\"\",0,INDEX(Price_List,ROWS($88:99)))","v":15},{"$f":"IF($C99=\"\",\"\",COUNTA($C$88:$C99))","v":12},{"$f":"IF(INDEX(INDIRECT(\"Product_List\"),ROWS($88:99))=\"\",\"\",INDEX(INDIRECT(\"Product_List\"),ROWS($88:99)))","v":"12-เค้กบัตเตอร์"},{"$f":"ยอดยกมา","v":0},null,null,null,null,null,null,0,null,{"$f":"INDIRECT(ADDRESS(ROW(A$80),ROW()-ROW(A$80)+(ROWS($88:99)-1)*2-1,4))","v":0},null,0,null,0,null,null,null,0,null,0,null,null,null,null,null,{"$f":"INDIRECT(ADDRESS(ROW(A$80),ROW()-ROW(A$80)+(ROWS($88:99)-1)*2,4))","v":0},0,null,0,{"$f":"INDIRECT(ADDRESS(ROW(A$80),ROW()-ROW(A$80)+(ROWS($88:99)-1)*2+1,4))","v":0}]
[{"$f":"IF(B100=\"\",0,INDEX(Price_List,ROWS($88:100)))","v":15},{"$f":"IF($C100=\"\",\"\",COUNTA($C$88:$C100))","v":13},{"$f":"IF(INDEX(INDIRECT(\"Product_List\"),ROWS($88:100))=\"\",\"\",INDEX(INDIRECT(\"Product_List\"),ROWS($88:100)))","v":"13-ขนมปังโรลถั่วแดง"},{"$f":"ยอดยกมา","v":0},null,null,null,null,null,null,0,null,{"$f":"INDIRECT(ADDRESS(ROW(A$80),ROW()-ROW(A$80)+(ROWS($88:100)-1)*2-1,4))","v":0},null,0,null,0,null,null,null,0,null,0,null,null,null,null,null,{"$f":"INDIRECT(ADDRESS(ROW(A$80),ROW()-ROW(A$80)+(ROWS($88:100)-1)*2,4))","v":0},0,null,0,{"$f":"INDIRECT(ADDRESS(ROW(A$80),ROW()-ROW(A$80)+(ROWS($88:100)-1)*2+1,4))","v":0}]
[{"$f":"IF(B101=\"\",0,INDEX(Price_List,ROWS($88:101)))","v":15},{"$f":"IF($C101=\"\",\"\",COUNTA($C$88:$C101))","v":14},{"$f":"IF(INDEX(INDIRECT(\"Product_List\"),ROWS($88:101))=\"\",\"\",INDEX(INDIRECT(\"Product_List\"),ROWS($88:101)))","v":"14-ขนมปังไส้สังขยาใหญ่"},{"$f":"ยอดยกมา","v":0},null,null,null,null,null,null,0,null,{"$f":"INDIRECT(ADDRESS(ROW(A$80),ROW()-ROW(A$80)+(ROWS($88:101)-1)*2-1,4))","v":0},null,0,null,0,null,null,null,0,null,0,null,null,null,null,null,{"$f":"INDIRECT(ADDRESS(ROW(A$80),ROW()-ROW(A$80)+(ROWS($88:101)-1)*2,4))","v":0},0,null,0,{"$f":"INDIRECT(ADDRESS(ROW(A$80),ROW()-ROW(A$80)+(ROWS($88:101)-1)*2+1,4))","v":0}]
[{"$f":"IF(B102=\"\",0,INDEX(Price_List,ROWS($88:102)))","v":42},{"$f":"IF($C102=\"\",\"\",COUNTA($C$88:$C102))","v":15},{"$f":"IF(INDEX(INDIRECT(\"Product_List\"),ROWS($88:102))=\"\",\"\",INDEX(INDIRECT(\"Product_List\"),ROWS($88:102)))","v":"15-ขนมปังชนิดแผ่น(480กรัม)"},{"$f":"ยอดยกมา","v":0},null,null,null,null,null,null,0,null,{"$f":"INDIRECT(ADDRESS(ROW(A$80),ROW()-ROW(A$80)+(ROWS($88:102)-1)*2-1,4))","v":0},null,0,null,0,null,null,null,0,null,0,null,null,null,null,null,{"$f":"INDIRECT(ADDRESS(ROW(A$80),ROW()-ROW(A$80)+(ROWS($88:102)-1)*2,4))","v":0},0,null,0,{"$f":"INDIRECT(ADDRESS(ROW(A$80),ROW()-ROW(A$80)+(ROWS($88:102)-1)*2+1,4))","v":0}]
[{"$f":"IF(B103=\"\",0,INDEX(Price_List,ROWS($88:103)))","v":12},{"$f":"IF($C103=\"\",\"\",COUNTA($C$88:$C103))","v":16},{"$f":"IF(INDEX(INDIRECT(\"Product_List\"),ROWS($88:103))=\"\",\"\",INDEX(INDIRECT(\"Product_List\"),ROWS($88:103)))","v":"16-โมจิไส้ถั่ว"},{"$f":"ยอดยกมา","v":0},null,null,null,null,null,null,0,null,{"$f":"INDIRECT(ADDRESS(ROW(A$80),ROW()-ROW(A$80)+(ROWS($88:103)-1)*2-1,4))","v":0},null,0,null,0,null,null,null,0,null,0,null,null,null,null,null,{"$f":"INDIRECT(ADDRESS(ROW(A$80),ROW()-ROW(A$80)+(ROWS($88:103)-1)*2,4))","v":0},0,null,0,{"$f":"INDIRECT(ADDRESS(ROW(A$80),ROW()-ROW(A$80)+(ROWS($88:103)-1)*2+1,4))","v":0}]
[{"$f":"IF(B104=\"\",0,INDEX(Price_List,ROWS($88:104)))","v":12},{"$f":"IF($C104=\"\",\"\",COUNTA($C$88:$C104))","v":17},{"$f":"IF(INDEX(INDIRECT(\"Product_List\"),ROWS($88:104))=\"\",\"\",INDEX(INDIRECT(\"Product_List\"),ROWS($88:104)))","v":"17-โมจิไส้เผือก"},{"$f":"ยอดยกมา","v":0},null,null,null,null,null,null,0,null,{"$f":"INDIRECT(ADDRESS(ROW(A$80),ROW()-ROW(A$80)+(ROWS($88:104)-1)*2-1,4))","v":0},null,0,null,0,null,null,null,0,null,0,null,null,null,null,null,{"$f":"INDIRECT(ADDRESS(ROW(A$80),ROW()-ROW(A$80)+(ROWS($88:104)-1)*2,4))","v":0},0,null,0,{"$f":"INDIRECT(ADDRESS(ROW(A$80),ROW()-ROW(A$80)+(ROWS($88:104)-1)*2+1,4))","v":0}]
[{"$f":"IF(B105=\"\",0,INDEX(Price_List,ROWS($88:105)))","v":15},{"$f":"IF($C105=\"\",\"\",COUNTA($C$88:$C105))","v":18},{"$f":"IF(INDEX(INDIRECT(\"Product_List\"),ROWS($88:105))=\"\",\"\",INDEX(INDIRECT(\"Product_List\"),ROWS($88:105)))","v":"18-โมจิไส้ถั่วไข่เค็ม"},{"$f":"ยอดยกมา","v":0},null,null,null,null,null,null,0,null,{"$f":"INDIRECT(ADDRESS(ROW(A$80),ROW()-ROW(A$80)+(ROWS($88:105)-1)*2-1,4))","v":0},null,0,null,0,null,null,null,0,null,0,null,null,null,null,null,{"$f":"INDIRECT(ADDRESS(ROW(A$80),ROW()-ROW(A$80)+(ROWS($88:105)-1)*2,4))","v":0},0,null,0,{"$f":"INDIRECT(ADDRESS(ROW(A$80),ROW()-ROW(A$80)+(ROWS($88:105)-1)*2+1,4))","v":0}]
[{"$f":"IF(B106=\"\",0,INDEX(Price_List,ROWS($88:106)))","v":20},{"$f":"IF($C106=\"\",\"\",COUNTA($C$88:$C106))","v":19},{"$f":"IF(INDEX(INDIRECT(\"Product_List\"),ROWS($88:106))=\"\",\"\",INDEX(INDIRECT(\"Product_List\"),ROWS($88:106)))","v":"19-ขนมปังพิซซ่า"},{"$f":"ยอดยกมา","v":0},null,null,null,null,null,null,0,null,{"$f":"INDIRECT(ADDRESS(ROW(A$80),ROW()-ROW(A$80)+(ROWS($88:106)-1)*2-1,4))","v":0},null,0,null,0,null,null,null,0,null,0,null,null,null,null,null,{"$f":"INDIRECT(ADDRESS(ROW(A$80),ROW()-ROW(A$80)+(ROWS($88:106)-1)*2,4))","v":0},0,null,0,{"$f":"INDIRECT(ADDRESS(ROW(A$80),ROW()-ROW(A$80)+(ROWS($88:106)-1)*2+1,4))","v":0}]
[{"$f":"IF(B107=\"\",0,INDEX(Price_List,ROWS($88:107)))","v":20},{"$f":"IF($C107=\"\",\"\",COUNTA($C$88:$C107))","v":20},{"$f":"IF(INDEX(INDIRECT(\"Product_List\"),ROWS($88:107))=\"\",\"\",INDEX(INDIRECT(\"Product_List\"),ROWS($88:107)))","v":"20-ขนมปังพิซซ่าปูอัดแฮม"},{"$f":"ยอดยกมา","v":0},null,null,null,null,null,null,0,null,{"$f":"INDIRECT(ADDRESS(ROW(A$80),ROW()-ROW(A$80)+(ROWS($88:107)-1)*2-1,4))","v":0},null,0,null,0,null,null,null,0,null,0,null,null,null,null,null,{"$f":"INDIRECT(ADDRESS(ROW(A$80),ROW()-ROW(A$80)+(ROWS($88:107)-1)*2,4))","v":0},0,null,0,{"$f":"INDIRECT(ADDRESS(ROW(A$80),ROW()-ROW(A$80)+(ROWS($88:107)-1)*2+1,4))","v":0}]
[{"$f":"IF(B108=\"\",0,INDEX(Price_List,ROWS($88:108)))","v":20},{"$f":"IF($C108=\"\",\"\",COUNTA($C$88:$C108))","v":21},{"$f":"IF(INDEX(INDIRECT(\"Product_List\"),ROWS($88:108))=\"\",\"\",INDEX(INDIRECT(\"Product_List\"),ROWS($88:108)))","v":"21-ขนมปังไส้กรอก"},{"$f":"ยอดยกมา","v":0},null,null,null,null,null,null,0,null,{"$f":"INDIRECT(ADDRESS(ROW(A$80),ROW()-ROW(A$80)+(ROWS($88:108)-1)*2-1,4))","v":0},null,0,null,0,null,null,null,0,null,0,null,null,null,null,null,{"$f":"INDIRECT(ADDRESS(ROW(A$80),ROW()-ROW(A$80)+(ROWS($88:108)-1)*2,4))","v":0},0,null,0,{"$f":"INDIRECT(ADDRESS(ROW(A$80),ROW()-ROW(A$80)+(ROWS($88:108)-1)*2+1,4))","v":0}]
[{"$f":"IF(B109=\"\",0,INDEX(Price_List,ROWS($88:109)))","v":15},{"$f":"IF($C109=\"\",\"\",COUNTA($C$88:$C109))","v":22},{"$f":"IF(INDEX(INDIRECT(\"Product_List\"),ROWS($88:109))=\"\",\"\",INDEX(INDIRECT(\"Product_List\"),ROWS($88:109)))","v":"22-ขนมก้านบัว"},{"$f":"ยอดยกมา","v":0},null,null,null,null,null,null,0,null,{"$f":"INDIRECT(ADDRESS(ROW(A$80),ROW()-ROW(A$80)+(ROWS($88:109)-1)*2-1,4))","v":0},null,0,null,0,null,null,null,0,null,0,null,null,null,null,null,{"$f":"INDIRECT(ADDRESS(ROW(A$80),ROW()-ROW(A$80)+(ROWS($88:109)-1)*2,4))","v":0},0,null,0,{"$f":"INDIRECT(ADDRESS(ROW(A$80),ROW()-ROW(A$80)+(ROWS($88:109)-1)*2+1,4))","v":0}]
[{"$f":"IF(B110=\"\",0,INDEX(Price_List,ROWS($88:110)))","v":20},{"$f":"IF($C110=\"\",\"\",COUNTA($C$88:$C110))","v":23},{"$f":"IF(INDEX(INDIRECT(\"Product_List\"),ROWS($88:110))=\"\",\"\",INDEX(INDIRECT(\"Product_List\"),ROWS($88:110)))","v":"23-พายสับปะรด"},{"$f":"ยอดยกมา","v":0},null,null,null,null,null,null,0,null,{"$f":"INDIRECT(ADDRESS(ROW(A$80),ROW()-ROW(A$80)+(ROWS($88:110)-1)*2-1,4))","v":0},null,0,null,0,null,null,null,0,null,0,null,null,null,null,null,{"$f":"INDIRECT(ADDRESS(ROW(A$80),ROW()-ROW(A$80)+(ROWS($88:110)-1)*2,4))","v":0},0,null,0,{"$f":"INDIRECT(ADDRESS(ROW(A$80),ROW()-ROW(A$80)+(ROWS($88:110)-1)*2+1,4))","v":0}]
[{"$f":"IF(B111=\"\",0,INDEX(Price_List,ROWS($88:111)))","v":20},{"$f":"IF($C111=\"\",\"\",COUNTA($C$88:$C111))","v":24},{"$f":"IF(INDEX(INDIRECT(\"Product_List\"),ROWS($88:111))=\"\",\"\",INDEX(INDIRECT(\"Product_List\"),ROWS($88:111)))","v":"24-พายไส้มะพร้าว"},{"$f":"ยอดยกมา","v":0},null,null,null,null,null,null,0,null,{"$f":"INDIRECT(ADDRESS(ROW(A$80),ROW()-ROW(A$80)+(ROWS($88:111)-1)*2-1,4))","v":0},null,0,null,0,null,null,null,0,null,0,null,null,null,null,null,{"$f":"INDIRECT(ADDRESS(ROW(A$80),ROW()-ROW(A$80)+(ROWS($88:111)-1)*2,4))","v":0},0,null,0,{"$f":"INDIRECT(ADDRESS(ROW(A$80),ROW()-ROW(A$80)+(ROWS($88:111)-1)*2+1,4))","v":0}]
[{"$f":"IF(B112=\"\",0,INDEX(Price_List,ROWS($88:112)))","v":15},{"$f":"IF($C112=\"\",\"\",COUNTA($C$88:$C112))","v":25},{"$f":"IF(INDEX(INDIRECT(\"Product_List\"),ROWS($88:112))=\"\",\"\",INDEX(INDIRECT(\"Product_List\"),ROWS($88:112)))","v":"25-ขนมปังโรลมันเทศ"},{"$f":"ยอดยกมา","v":0},null,null,null,null,null,null,0,null,{"$f":"INDIRECT(ADDRESS(ROW(A$80),ROW()-ROW(A$80)+(ROWS($88:112)-1)*2-1,4))","v":0},null,0,null,0,null,null,null,0,null,0,null,null,null,null,null,{"$f":"INDIRECT(ADDRESS(ROW(A$80),ROW()-ROW(A$80)+(ROWS($88:112)-1)*2,4))","v":0},0,null,0,{"$f":"INDIRECT(ADDRESS(ROW(A$80),ROW()-ROW(A$80)+(ROWS($88:112)-1)*2+1,4))","v":0}]
[{"$f":"IF(B113=\"\",0,INDEX(Price_List,ROWS($88:113)))","v":15},{"$f":"IF($C113=\"\",\"\",COUNTA($C$88:$C113))","v":26},{"$f":"IF(INDEX(INDIRECT(\"Product_List\"),ROWS($88:113))=\"\",\"\",INDEX(INDIRECT(\"Product_List\"),ROWS($88:113)))","v":"26-ขนมปังไส้ครีมสลัดน้ำพริกเผา"},{"$f":"ยอดยกมา","v":0},null,null,null,null,null,null,0,null,{"$f":"INDIRECT(ADDRESS(ROW(A$80),ROW()-ROW(A$80)+(ROWS($88:113)-1)*2-1,4))","v":0},null,0,null,0,null,null,null,0,null,0,null,null,null,null,null,{"$f":"INDIRECT(ADDRESS(ROW(A$80),ROW()-ROW(A$80)+(ROWS($88:113)-1)*2,4))","v":0},0,null,0,{"$f":"INDIRECT(ADDRESS(ROW(A$80),ROW()-ROW(A$80)+(ROWS($88:113)-1)*2+1,4))","v":0}]
[{"$f":"IF(B114=\"\",0,INDEX(Price_List,ROWS($88:114)))","v":20},{"$f":"IF($C114=\"\",\"\",COUNTA($C$88:$C114))","v":27},{"$f":"IF(INDEX(INDIRECT(\"Product_List\"),ROWS($88:114))=\"\",\"\",INDEX(INDIRECT(\"Product_List\"),ROWS($88:114)))","v":"27-ขนมปังไส้สังขยาไข่"},{"$f":"ยอดยกมา","v":0},null,null,null,null,null,null,0,null,{"$f":"INDIRECT(ADDRESS(ROW(A$80),ROW()-ROW(A$80)+(ROWS($88:114)-1)*2-1,4))","v":0},null,0,null,0,null,null,null,0,null,0,null,null,null,null,null,{"$f":"INDIRECT(ADDRESS(ROW(A$80),ROW()-ROW(A$80)+(ROWS($88:114)-1)*2,4))","v":0},0,null,0,{"$f":"INDIRECT(ADDRESS(ROW(A$80),ROW()-ROW(A$80)+(ROWS($88:114)-1)*2+1,4))","v":0}]
[{"$f":"IF(B115=\"\",0,INDEX(Price_List,ROWS($88:115)))","v":20},{"$f":"IF($C115=\"\",\"\",COUNTA($C$88:$C115))","v":28},{"$f":"IF(INDEX(INDIRECT(\"Product_List\"),ROWS($88:115))=\"\",\"\",INDEX(INDIRECT(\"Product_List\"),ROWS($88:115)))","v":"28-ขนมปังไส้สังขยามะพร้าว"},{"$f":"ยอดยกมา","v":0},null,null,null,null,null,null,0,null,{"$f":"INDIRECT(ADDRESS(ROW(A$80),ROW()-ROW(A$80)+(ROWS($88:115)-1)*2-1,4))","v":0},null,0,null,0,null,null,null,0,null,0,null,null,null,null,null,{"$f":"INDIRECT(ADDRESS(ROW(A$80),ROW()-ROW(A$80)+(ROWS($88:115)-1)*2,4))","v":0},0,null,0,{"$f":"INDIRECT(ADDRESS(ROW(A$80),ROW()-ROW(A$80)+(ROWS($88:115)-1)*2+1,4))","v":0}]
[{"$f":"IF(B116=\"\",0,INDEX(Price_List,ROWS($88:116)))","v":10},{"$f":"IF($C116=\"\",\"\",COUNTA($C$88:$C116))","v":29},{"$f":"IF(INDEX(INDIRECT(\"Product_List\"),ROWS($88:116))=\"\",\"\",INDEX(INDIRECT(\"Product_List\"),ROWS($88:116)))","v":"29-ขนมปังไส้ครีมชาไทย"},{"$f":"ยอดยกมา","v":0},null,null,null,null,null,null,0,null,{"$f":"INDIRECT(ADDRESS(ROW(A$80),ROW()-ROW(A$80)+(ROWS($88:116)-1)*2-1,4))","v":0},null,0,null,0,null,null,null,0,null,0,null,null,null,null,null,{"$f":"INDIRECT(ADDRESS(ROW(A$80),ROW()-ROW(A$80)+(ROWS($88:116)-1)*2,4))","v":0},0,null,0,{"$f":"INDIRECT(ADDRESS(ROW(A$80),ROW()-ROW(A$80)+(ROWS($88:116)-1)*2+1,4))","v":0}]
[{"$f":"IF(B117=\"\",0,INDEX(Price_List,ROWS($88:117)))","v":15},{"$f":"IF($C117=\"\",\"\",COUNTA($C$88:$C117))","v":30},{"$f":"IF(INDEX(INDIRECT(\"Product_List\"),ROWS($88:117))=\"\",\"\",INDEX(INDIRECT(\"Product_List\"),ROWS($88:117)))","v":"30-ขนมปังโรลมันม่วง"},{"$f":"ยอดยกมา","v":0},null,null,null,null,null,null,0,null,{"$f":"INDIRECT(ADDRESS(ROW(A$80),ROW()-ROW(A$80)+(ROWS($88:117)-1)*2-1,4))","v":0},null,0,null,0,null,null,null,0,null,0,null,null,null,null,null,{"$f":"INDIRECT(ADDRESS(ROW(A$80),ROW()-ROW(A$80)+(ROWS($88:117)-1)*2,4))","v":0},0,null,0,{"$f":"INDIRECT(ADDRESS(ROW(A$80),ROW()-ROW(A$80)+(ROWS($88:117)-1)*2+1,4))","v":0}]
[{"$f":"IF(B118=\"\",0,INDEX(Price_List,ROWS($88:118)))","v":15},{"$f":"IF($C118=\"\",\"\",COUNTA($C$88:$C118))","v":31},{"$f":"IF(INDEX(INDIRECT(\"Product_List\"),ROWS($88:118))=\"\",\"\",INDEX(INDIRECT(\"Product_List\"),ROWS($88:118)))","v":"31-ขนมปังโรลช็อกโกแลต"},{"$f":"ยอดยกมา","v":0},null,null,null,null,null,null,0,null,{"$f":"INDIRECT(ADDRESS(ROW(A$80),ROW()-ROW(A$80)+(ROWS($88:118)-1)*2-1,4))","v":0},null,0,null,0,null,null,null,0,null,0,null,null,null,null,null,{"$f":"INDIRECT(ADDRESS(ROW(A$80),ROW()-ROW(A$80)+(ROWS($88:118)-1)*2,4))","v":0},0,null,0,{"$f":"INDIRECT(ADDRESS(ROW(A$80),ROW()-ROW(A$80)+(ROWS($88:118)-1)*2+1,4))","v":0}]
[{"$f":"IF(B119=\"\",0,INDEX(Price_List,ROWS($88:119)))","v":16},{"$f":"IF($C119=\"\",\"\",COUNTA($C$88:$C119))","v":32},{"$f":"IF(INDEX(INDIRECT(\"Product_List\"),ROWS($88:119))=\"\",\"\",INDEX(INDIRECT(\"Product_List\"),ROWS($88:119)))","v":"32-ขนมปังชนิดแผ่น(155กรัม)"},{"$f":"ยอดยกมา","v":0},null,null,null,null,null,null,0,null,{"$f":"INDIRECT(ADDRESS(ROW(A$80),ROW()-ROW(A$80)+(ROWS($88:119)-1)*2-1,4))","v":0},null,0,null,0,null,null,null,0,null,0,null,null,null,null,null,{"$f":"INDIRECT(ADDRESS(ROW(A$80),ROW()-ROW(A$80)+(ROWS($88:119)-1)*2,4))","v":0},0,null,0,{"$f":"INDIRECT(ADDRESS(ROW(A$80),ROW()-ROW(A$80)+(ROWS($88:119)-1)*2+1,4))","v":0}]
[{"$f":"IF(B120=\"\",0,INDEX(Price_List,ROWS($88:120)))","v":15},{"$f":"IF($C120=\"\",\"\",COUNTA($C$88:$C120))","v":33},{"$f":"IF(INDEX(INDIRECT(\"Product_List\"),ROWS($88:120))=\"\",\"\",INDEX(INDIRECT(\"Product_List\"),ROWS($88:120)))","v":"33-ขนมปังโรลเผือก"},{"$f":"ยอดยกมา","v":0},null,null,null,null,null,null,0,null,{"$f":"INDIRECT(ADDRESS(ROW(A$80),ROW()-ROW(A$80)+(ROWS($88:120)-1)*2-1,4))","v":0},null,0,null,0,null,null,null,0,null,0,null,null,null,null,null,{"$f":"INDIRECT(ADDRESS(ROW(A$80),ROW()-ROW(A$80)+(ROWS($88:120)-1)*2,4))","v":0},0,null,0,{"$f":"INDIRECT(ADDRESS(ROW(A$80),ROW()-ROW(A$80)+(ROWS($88:120)-1)*2+1,4))","v":0}]
[{"$f":"IF(B121=\"\",0,INDEX(Price_List,ROWS($88:121)))","v":15},{"$f":"IF($C121=\"\",\"\",COUNTA($C$88:$C121))","v":34},{"$f":"IF(INDEX(INDIRECT(\"Product_List\"),ROWS($88:121))=\"\",\"\",INDEX(INDIRECT(\"Product_List\"),ROWS($88:121)))","v":"34-ขนมปังไก่หยองน้ำสลัด Mini"},{"$f":"ยอดยกมา","v":0},null,null,null,null,null,null,0,null,{"$f":"INDIRECT(ADDRESS(ROW(A$80),ROW()-ROW(A$80)+(ROWS($88:121)-1)*2-1,4))","v":0},null,0,null,0,null,null,null,0,null,0,null,null,null,null,null,{"$f":"INDIRECT(ADDRESS(ROW(A$80),ROW()-ROW(A$80)+(ROWS($88:121)-1)*2,4))","v":0},0,null,0,{"$f":"INDIRECT(ADDRESS(ROW(A$80),ROW()-ROW(A$80)+(ROWS($88:121)-1)*2+1,4))","v":0}]
[{"$f":"IF(B122=\"\",0,INDEX(Price_List,ROWS($88:122)))","v":10},{"$f":"IF($C122=\"\",\"\",COUNTA($C$88:$C122))","v":35},{"$f":"IF(INDEX(INDIRECT(\"Product_List\"),ROWS($88:122))=\"\",\"\",INDEX(INDIRECT(\"Product_List\"),ROWS($88:122)))","v":"35-ขนมปังไส้ช็อกโกแลต"},{"$f":"ยอดยกมา","v":0},null,null,null,null,null,null,0,null,{"$f":"INDIRECT(ADDRESS(ROW(A$80),ROW()-ROW(A$80)+(ROWS($88:122)-1)*2-1,4))","v":0},null,0,null,0,null,null,null,0,null,0,null,null,null,null,null,{"$f":"INDIRECT(ADDRESS(ROW(A$80),ROW()-ROW(A$80)+(ROWS($88:122)-1)*2,4))","v":0},0,null,0,{"$f":"INDIRECT(ADDRESS(ROW(A$80),ROW()-ROW(A$80)+(ROWS($88:122)-1)*2+1,4))","v":0}]
[{"$f":"IF(B123=\"\",0,INDEX(Price_List,ROWS($88:123)))","v":10},{"$f":"IF($C123=\"\",\"\",COUNTA($C$88:$C123))","v":36},{"$f":"IF(INDEX(INDIRECT(\"Product_List\"),ROWS($88:123))=\"\",\"\",INDEX(INDIRECT(\"Product_List\"),ROWS($88:123)))","v":"36-ขนมปังไส้ครีมสังขยาไข่"},{"$f":"ยอดยกมา","v":0},null,null,null,null,null,null,0,null,{"$f":"INDIRECT(ADDRESS(ROW(A$80),ROW()-ROW(A$80)+(ROWS($88:123)-1)*2-1,4))","v":0},null,0,null,0,null,null,null,0,null,0,null,null,null,null,null,{"$f":"INDIRECT(ADDRESS(ROW(A$80),ROW()-ROW(A$80)+(ROWS($88:123)-1)*2,4))","v":0},0,null,0,{"$f":"INDIRECT(ADDRESS(ROW(A$80),ROW()-ROW(A$80)+(ROWS($88:123)-1)*2+1,4))","v":0}]
[{"$f":"IF(B124=\"\",0,INDEX(Price_List,ROWS($88:124)))","v":20},{"$f":"IF($C124=\"\",\"\",COUNTA($C$88:$C124))","v":37},{"$f":"IF(INDEX(INDIRECT(\"Product_List\"),ROWS($88:124))=\"\",\"\",INDEX(INDIRECT(\"Product_List\"),ROWS($88:124)))","v":"37-ขนมปังพิซซ่าฮาวายเอี้ยน"},{"$f":"ยอดยกมา","v":0},null,null,null,null,null,null,0,null,{"$f":"INDIRECT(ADDRESS(ROW(A$80),ROW()-ROW(A$80)+(ROWS($88:124)-1)*2-1,4))","v":0},null,0,null,0,null,null,null,0,null,0,null,null,null,null,null,{"$f":"INDIRECT(ADDRESS(ROW(A$80),ROW()-ROW(A$80)+(ROWS($88:124)-1)*2,4))","v":0},0,null,0,{"$f":"INDIRECT(ADDRESS(ROW(A$80),ROW()-ROW(A$80)+(ROWS($88:124)-1)*2+1,4))","v":0}]
[{"$f":"IF(B125=\"\",0,INDEX(Price_List,ROWS($88:125)))","v":20},{"$f":"IF($C125=\"\",\"\",COUNTA($C$88:$C125))","v":38},{"$f":"IF(INDEX(INDIRECT(\"Product_List\"),ROWS($88:125))=\"\",\"\",INDEX(INDIRECT(\"Product_List\"),ROWS($88:125)))","v":"38-ครัวซองต์หมูหยองน้ำสลัด"},{"$f":"ยอดยกมา","v":0},null,null,null,null,null,null,0,null,{"$f":"INDIRECT(ADDRESS(ROW(A$80),ROW()-ROW(A$80)+(ROWS($88:125)-1)*2-1,4))","v":0},null,0,null,0,null,null,null,0,null,0,null,null,null,null,null,{"$f":"INDIRECT(ADDRESS(ROW(A$80),ROW()-ROW(A$80)+(ROWS($88:125)-1)*2,4))","v":0},0,null,0,{"$f":"INDIRECT(ADDRESS(ROW(A$80),ROW()-ROW(A$80)+(ROWS($88:125)-1)*2+1,4))","v":0}]
[{"$f":"IF(B126=\"\",0,INDEX(Price_List,ROWS($88:126)))","v":15},{"$f":"IF($C126=\"\",\"\",COUNTA($C$88:$C126))","v":39},{"$f":"IF(INDEX(INDIRECT(\"Product_List\"),ROWS($88:126))=\"\",\"\",INDEX(INDIRECT(\"Product_List\"),ROWS($88:126)))","v":"39-แพนเบรดไส้เผือก"},{"$f":"ยอดยกมา","v":0},null,null,null,null,null,null,0,null,{"$f":"INDIRECT(ADDRESS(ROW(A$80),ROW()-ROW(A$80)+(ROWS($88:126)-1)*2-1,4))","v":0},null,0,null,0,null,null,null,0,null,0,null,null,null,null,null,{"$f":"INDIRECT(ADDRESS(ROW(A$80),ROW()-ROW(A$80)+(ROWS($88:126)-1)*2,4))","v":0},0,null,0,{"$f":"INDIRECT(ADDRESS(ROW(A$80),ROW()-ROW(A$80)+(ROWS($88:126)-1)*2+1,4))","v":0}]
[{"$f":"IF(B127=\"\",0,INDEX(Price_List,ROWS($88:127)))","v":15},{"$f":"IF($C127=\"\",\"\",COUNTA($C$88:$C127))","v":40},{"$f":"IF(INDEX(INDIRECT(\"Product_List\"),ROWS($88:127))=\"\",\"\",INDEX(INDIRECT(\"Product_List\"),ROWS($88:127)))","v":"40-แพนเบรดไส้ถั่วแดง"},{"$f":"ยอดยกมา","v":0},null,null,null,null,null,null,0,null,{"$f":"INDIRECT(ADDRESS(ROW(A$80),ROW()-ROW(A$80)+(ROWS($88:127)-1)*2-1,4))","v":0},null,0,null,0,null,null,null,0,null,0,null,null,null,null,null,{"$f":"INDIRECT(ADDRESS(ROW(A$80),ROW()-ROW(A$80)+(ROWS($88:127)-1)*2,4))","v":0},0,null,0,{"$f":"INDIRECT(ADDRESS(ROW(A$80),ROW()-ROW(A$80)+(ROWS($88:127)-1)*2+1,4))","v":0}]
[{"$f":"IF(B128=\"\",0,INDEX(Price_List,ROWS($88:128)))","v":12},{"$f":"IF($C128=\"\",\"\",COUNTA($C$88:$C128))","v":41},{"$f":"IF(INDEX(INDIRECT(\"Product_List\"),ROWS($88:128))=\"\",\"\",INDEX(INDIRECT(\"Product_List\"),ROWS($88:128)))","v":"41-ขนมปังกรอบเนยน้ำตาล(30กรัม)"},{"$f":"ยอดยกมา","v":0},null,null,null,null,null,null,0,null,{"$f":"INDIRECT(ADDRESS(ROW(A$80),ROW()-ROW(A$80)+(ROWS($88:128)-1)*2-1,4))","v":0},null,0,null,0,null,null,null,0,null,0,null,null,null,null,null,{"$f":"INDIRECT(ADDRESS(ROW(A$80),ROW()-ROW(A$80)+(ROWS($88:128)-1)*2,4))","v":0},0,null,0,{"$f":"INDIRECT(ADDRESS(ROW(A$80),ROW()-ROW(A$80)+(ROWS($88:128)-1)*2+1,4))","v":0}]
[{"$f":"IF(B129=\"\",0,INDEX(Price_List,ROWS($88:129)))","v":18},{"$f":"IF($C129=\"\",\"\",COUNTA($C$88:$C129))","v":42},{"$f":"IF(INDEX(INDIRECT(\"Product_List\"),ROWS($88:129))=\"\",\"\",INDEX(INDIRECT(\"Product_List\"),ROWS($88:129)))","v":"42-ขนมปังชนิดแผ่นโฮลวีต"},{"$f":"ยอดยกมา","v":0},null,null,null,null,null,null,0,null,{"$f":"INDIRECT(ADDRESS(ROW(A$80),ROW()-ROW(A$80)+(ROWS($88:129)-1)*2-1,4))","v":0},null,0,null,0,null,null,null,0,null,0,null,null,null,null,null,{"$f":"INDIRECT(ADDRESS(ROW(A$80),ROW()-ROW(A$80)+(ROWS($88:129)-1)*2,4))","v":0},0,null,0,{"$f":"INDIRECT(ADDRESS(ROW(A$80),ROW()-ROW(A$80)+(ROWS($88:129)-1)*2+1,4))","v":0}]
[{"$f":"IF(B130=\"\",0,INDEX(Price_List,ROWS($88:130)))","v":12},{"$f":"IF($C130=\"\",\"\",COUNTA($C$88:$C130))","v":43},{"$f":"IF(INDEX(INDIRECT(\"Product_List\"),ROWS($88:130))=\"\",\"\",INDEX(INDIRECT(\"Product_List\"),ROWS($88:130)))","v":"43-เค้กโรลใบเตย"},{"$f":"ยอดยกมา","v":0},null,null,null,null,null,null,{"$f":"D130+E130+J130-I130+H130","v":0},null,{"$f":"INDIRECT(ADDRESS(ROW(A$80),ROW()-ROW(A$80)+(ROWS($88:130)-1)*2-1,4))","v":0},null,{"$f":"F130+G130+M130+J130-K130","v":0},null,{"$f":"O130*A130","v":0},null,null,null,{"$f":"D130+E130-F130-G130","v":0},null,{"$f":"U130*6%+U130","v":0},null,null,null,null,null,{"$f":"INDIRECT(ADDRESS(ROW(A$80),ROW()-ROW(A$80)+(ROWS($88:130)-1)*2,4))","v":0},0,null,0,{"$f":"INDIRECT(ADDRESS(ROW(A$80),ROW()-ROW(A$80)+(ROWS($88:130)-1)*2+1,4))","v":0}]
[{"$f":"IF(B131=\"\",0,INDEX(Price_List,ROWS($88:131)))","v":12},{"$f":"IF($C131=\"\",\"\",COUNTA($C$88:$C131))","v":44},{"$f":"IF(INDEX(INDIRECT(\"Product_List\"),ROWS($88:131))=\"\",\"\",INDEX(INDIRECT(\"Product_List\"),ROWS($88:131)))","v":"44-ขนมโมจิไส้ถั่วดำ"},{"$f":"ยอดยกมา","v":0},null,null,null,null,null,null,{"$f":"D131+E131+J131-I131+H131","v":0},null,{"$f":"INDIRECT(ADDRESS(ROW(A$80),ROW()-ROW(A$80)+(ROWS($88:131)-1)*2-1,4))","v":0},null,{"$f":"F131+G131+M131+J131-K131","v":0},null,{"$f":"O131*A131","v":0},null,null,null,{"$f":"D131+E131-F131-G131","v":0},null,{"$f":"U131*6%+U131","v":0},null,null,null,null,null,{"$f":"INDIRECT(ADDRESS(ROW(A$80),ROW()-ROW(A$80)+(ROWS($88:131)-1)*2,4))","v":0},0,null,0,{"$f":"INDIRECT(ADDRESS(ROW(A$80),ROW()-ROW(A$80)+(ROWS($88:131)-1)*2+1,4))","v":0}]
[{"$f":"IF(B132=\"\",0,INDEX(Price_List,ROWS($88:132)))","v":25},{"$f":"IF($C132=\"\",\"\",COUNTA($C$88:$C132))","v":45},{"$f":"IF(INDEX(INDIRECT(\"Product_List\"),ROWS($88:132))=\"\",\"\",INDEX(INDIRECT(\"Product_List\"),ROWS($88:132)))","v":"45-ครัวซองต์ไส้กรอกชีส"},{"$f":"ยอดยกมา","v":0},null,null,null,null,null,null,{"$f":"D132+E132+J132-I132+H132","v":0},null,{"$f":"INDIRECT(ADDRESS(ROW(A$80),ROW()-ROW(A$80)+(ROWS($88:132)-1)*2-1,4))","v":0},null,{"$f":"F132+G132+M132+J132-K132","v":0},null,{"$f":"O132*A132","v":0},null,null,null,{"$f":"D132+E132-F132-G132","v":0},null,{"$f":"U132*6%+U132","v":0},null,null,null,null,null,{"$f":"INDIRECT(ADDRESS(ROW(A$80),ROW()-ROW(A$80)+(ROWS($88:132)-1)*2,4))","v":0},0,null,0,{"$f":"INDIRECT(ADDRESS(ROW(A$80),ROW()-ROW(A$80)+(ROWS($88:132)-1)*2+1,4))","v":0}]
[{"$f":"IF(B133=\"\",0,INDEX(Price_List,ROWS($88:133)))","v":12},{"$f":"IF($C133=\"\",\"\",COUNTA($C$88:$C133))","v":46},{"$f":"IF(INDEX(INDIRECT(\"Product_List\"),ROWS($88:133))=\"\",\"\",INDEX(INDIRECT(\"Product_List\"),ROWS($88:133)))","v":"46-ขนมเปี๊ยะไส้ถั่ว"},{"$f":"ยอดยกมา","v":0},null,null,null,null,null,null,0,null,{"$f":"INDIRECT(ADDRESS(ROW(A$80),ROW()-ROW(A$80)+(ROWS($88:133)-1)*2-1,4))","v":0},null,0,null,0,null,null,null,0,null,0,null,null,null,null,null,{"$f":"INDIRECT(ADDRESS(ROW(A$80),ROW()-ROW(A$80)+(ROWS($88:133)-1)*2,4))","v":0},0,null,0,{"$f":"INDIRECT(ADDRESS(ROW(A$80),ROW()-ROW(A$80)+(ROWS($88:133)-1)*2+1,4))","v":0}]
[{"$f":"IF(B134=\"\",0,INDEX(Price_List,ROWS($88:134)))","v":12},{"$f":"IF($C134=\"\",\"\",COUNTA($C$88:$C134))","v":47},{"$f":"IF(INDEX(INDIRECT(\"Product_List\"),ROWS($88:134))=\"\",\"\",INDEX(INDIRECT(\"Product_List\"),ROWS($88:134)))","v":"47-ขนมเปี๊ยะไส้ฟัก"},{"$f":"ยอดยกมา","v":0},null,null,null,null,null,null,{"$f":"D134+E134+J134-I134+H134","v":0},null,{"$f":"INDIRECT(ADDRESS(ROW(A$80),ROW()-ROW(A$80)+(ROWS($88:134)-1)*2-1,4))","v":0},null,{"$f":"F134+G134+M134+J134-K134","v":0},null,{"$f":"O134*A134","v":0},null,null,null,{"$f":"D134+E134-F134-G134","v":0},null,{"$f":"U134*6%+U134","v":0},null,null,null,null,null,{"$f":"INDIRECT(ADDRESS(ROW(A$80),ROW()-ROW(A$80)+(ROWS($88:134)-1)*2,4))","v":0},0,null,0,{"$f":"INDIRECT(ADDRESS(ROW(A$80),ROW()-ROW(A$80)+(ROWS($88:134)-1)*2+1,4))","v":0}]
[{"$f":"IF(B135=\"\",0,INDEX(Price_List,ROWS($88:135)))","v":12},{"$f":"IF($C135=\"\",\"\",COUNTA($C$88:$C135))","v":48},{"$f":"IF(INDEX(INDIRECT(\"Product_List\"),ROWS($88:135))=\"\",\"\",INDEX(INDIRECT(\"Product_List\"),ROWS($88:135)))","v":"48-มังกี้เค้ก"},{"$f":"ยอดยกมา","v":0},null,null,null,null,null,null,0,null,{"$f":"INDIRECT(ADDRESS(ROW(A$80),ROW()-ROW(A$80)+(ROWS($88:135)-1)*2-1,4))","v":0},null,0,null,0,null,null,null,0,null,0,null,null,null,null,null,{"$f":"INDIRECT(ADDRESS(ROW(A$80),ROW()-ROW(A$80)+(ROWS($88:135)-1)*2,4))","v":0},0,null,0,{"$f":"INDIRECT(ADDRESS(ROW(A$80),ROW()-ROW(A$80)+(ROWS($88:135)-1)*2+1,4))","v":0}]
["รวม",null,null,{"$f":"SUM(D$88:D$135)","v":0},0,0,0,0,0,0,0,null,{"$f":"SUM(M$88:M$135)","v":0},null,null,null,{"$f":"$AP$98","v":0},null,"บาท",null,{"$f":"SUM(U$88:U$135)","v":0},null,{"$f":"SUM(W$88:W$135)","v":0},null,null,null,null,null,{"$f":"SUM(AC$88:AC$135)","v":0},{"$f":"SUM(AD$88:AD$135)","v":0},{"$f":"SUM(AE$88:AE$135)","v":0},{"$f":"SUM(AF$88:AF$135)","v":0},{"$f":"SUM(AG$88:AG$135)","v":0}]
["เลขที่ไมล์ เวลาออกทำงาน",null,null,{"$f":"$BF$3","v":0},null,"Km","น้ำหนักของเสีย"]
["เลขที่ไมล์ เวลากลับ",null,null,{"$f":"$BF$4","v":0},null,"Km",{"$f":"$AA$5","v":0},null,"KG"]
["เวลากลับถึงสำนักงาน",null,null,{"$f":"$BF$1","v":"00:00:00"},null,"น."]
["เติมน้ำมัน",null,null,{"$f":"$AX3","v":0},null,"บาท"]
["จำนวนน้ำมัน",null,null,{"$f":"$AX4","v":0},null,"ลิตร"]
["ยอดรวมต้นทุนสาขา",null,null,{"$f":"$AX5","v":0},null,"บาท"]

{"sheet":"23","index":27,"n_rows":142,"n_cols":154,"rows_kept":142,"cut":false,"hidden":false,"merged":[[83,132,83,133],[129,10,129,11],[129,12,129,13],[129,14,129,15],[129,16,129,17],[127,10,127,11],[127,12,127,13],[127,14,127,15],[127,16,127,17],[127,20,127,21],[127,22,127,23],[127,24,127,25],[127,33,127,36],[126,10,126,11],[126,12,126,13],[126,14,126,15],[126,16,126,17],[128,10,128,11],[128,12,128,13],[129,24,129,25],[125,10,125,11],[125,12,125,13],[125,14,125,15],[125,16,125,17],[7,132,7,134],[8,132,8,134],[80,132,80,133],[82,132,82,133],[7,135,7,137],[8,135,8,137],[80,135,80,136],[82,135,82,136],[7,138,7,140],[7,141,7,143],[7,147,7,149],[8,138,8,140],[141,0,141,2],[141,3,141,4],[138,0,138,2],[138,3,138,4],[139,0,139,2],[139,3,139,4],[140,0,140,2],[140,3,140,4],[135,24,135,25],[135,33,135,36],[136,0,136,2],[136,3,136,4],[137,0,137,2],[137,3,137,4],[137,6,137,7],[137,18,137,21],[135,0,135,2],[135,10,135,11],[135,12,135,13],[135,14,135,15],[135,16,135,17],[135,18,135,19],[135,20,135,21],[135,22,135,23],[128,14,128,15],[128,16,128,17],[128,20,128,21],[128,22,128,23],[129,20,129,21],[129,22,129,23],[131,16,131,17],[132,16,132,17],[134,16,134,17],[131,20,131,21],[132,20,132,21],[134,20,134,21],[131,22,131,23],[132,22,132,23],[134,22,134,23],[131,24,131,25],[132,24,132,25],[134,24,134,25],[129,33,129,36],[128,24,128,25],[128,33,128,36],[126,20,126,21],[126,22,126,23],[124,24,124,25],[124,33,124,36],[125,20,125,21],[125,22,125,23],[125,24,125,25],[125,33,125,36],[124,10,124,11],[124,12,124,13],[124,14,124,15],[124,16,124,17],[124,20,124,21],[124,22,124,23],[126,24,126,25],[126,33,126,36],[122,24,122,25],[122,33,122,36],[123,10,123,11],[123,12,123,13],[123,14,123,15],[123,16,123,17],[123,20,123,21],[123,22,123,23],[123,24,123,25],[123,33,123,36],[122,10,122,11],[122,12,122,13],[122,14,122,15],[122,16,122,17],[122,20,122,21],[122,22,122,23],[120,24,120,25],[120,33,120,36],[121,10,121,11],[121,12,121,13],[121,14,121,15],[121,16,121,17],[121,20,121,21],[121,22,121,23],[121,24,121,25],[121,33,121,36],[120,10,120,11],[120,12,120,13],[120,14,120,15],[120,16,120,17],[120,20,120,21],[120,22,120,23],[118,24,118,25],[118,33,118,36],[119,10,119,11],[119,12,119,13],[119,14,119,15],[119,16,119,17],[119,20,119,21],[119,22,119,23],[119,24,119,25],[119,33,119,36],[118,10,118,11],[118,12,118,13],[118,14,118,15],[118,16,118,17],[118,20,118,21],[118,22,118,23],[116,24,116,25],[116,33,116,36],[117,10,117,11],[117,12,117,13],[117,14,117,15],[117,16,117,17],[117,20,117,21],[117,22,117,23],[117,24,117,25],[117,33,117,36],[116,10,116,11],[116,12,116,13],[116,14,116,15],[116,16,116,17],[116,20,116,21],[116,22,116,23],[114,24,114,25],[114,33,114,36],[115,10,115,11],[115,12,115,13],[115,14,115,15],[115,16,115,17],[115,20,115,21],[115,22,115,23],[115,24,115,25],[115,33,115,36],[114,10,114,11],[114,12,114,13],[114,14,114,15],[114,16,114,17],[114,20,114,21],[114,22,114,23],[112,24,112,25],[112,33,112,36],[113,10,113,11],[113,12,113,13],[113,14,113,15],[113,16,113,17],[113,20,113,21],[113,22,113,23],[113,24,113,25],[113,33,113,36],[112,10,112,11],[112,12,112,13],[112,14,112,15],[112,16,112,17],[112,20,112,21],[112,22,112,23],[110,24,110,25],[110,33,110,36],[111,10,111,11],[111,12,111,13],[111,14,111,15],[111,16,111,17],[111,20,111,21],[111,22,111,23],[111,24,111,25],[111,33,111,36],[110,10,110,11],[110,12,110,13],[110,14,110,15],[110,16,110,17],[110,20,110,21],[110,22,110,23],[108,24,108,25],[108,33,108,36],[109,10,109,11],[109,12,109,13],[109,14,109,15],[109,16,109,17],[109,20,109,21],[109,22,109,23],[109,24,109,25],[109,33,109,36],[108,10,108,11],[108,12,108,13],[108,14,108,15],[108,16,108,17],[108,20,108,21],[108,22,108,23],[106,24,106,25],[106,33,106,36],[107,10,107,11],[107,12,107,13],[107,14,107,15],[107,16,107,17],[107,20,107,21],[107,22,107,23],[107,24,107,25],[107,33,107,36],[106,10,106,11],[106,12,106,13],[106,14,106,15],[106,16,106,17],[106,20,106,21],[106,22,106,23],[104,24,104,25],[104,33,104,36],[105,10,105,11],[105,12,105,13],[105,14,105,15],[105,16,105,17],[105,20,105,21],[105,22,105,23],[105,24,105,25],[105,33,105,36],[104,10,104,11],[104,12,104,13],[104,14,104,15],[104,16,104,17],[104,20,104,21],[104,22,104,23],[102,24,102,25],[102,33,102,36],[103,10,103,11],[103,12,103,13],[103,14,103,15],[103,16,103,17],[103,20,103,21],[103,22,103,23],[103,24,103,25],[103,33,103,36],[102,10,102,11],[102,12,102,13],[102,14,102,15],[102,16,102,17],[102,20,102,21],[102,22,102,23],[101,10,101,11],[101,12,101,13],[101,14,101,15],[101,16,101,17],[101,20,101,21],[101,22,101,23],[101,24,101,25],[101,33,101,36],[100,10,100,11],[100,12,100,13],[100,14,100,15],[100,16,100,17],[100,20,100,21],[100,22,100,23],[99,10,99,11],[99,12,99,13],[99,14,99,15],[99,16,99,17],[99,20,99,21],[99,22,99,23],[99,24,99,25],[99,33,99,36],[100,24,100,25],[100,33,100,36],[97,24,97,25],[97,33,97,36],[97,38,97,40],[98,10,98,11],[98,12,98,13],[98,14,98,15],[98,16,98,17],[98,20,98,21],[98,22,98,23],[98,24,98,25],[97,10,97,11],[97,12,97,13],[97,14,97,15],[97,16,97,17],[97,20,97,21],[97,22,97,23],[98,33,98,36],[95,24,95,25],[95,33,95,36],[96,10,96,11],[96,12,96,13],[96,14,96,15],[96,16,96,17],[96,20,96,21],[96,22,96,23],[96,24,96,25],[96,33,96,36],[95,10,95,11],[95,12,95,13],[95,14,95,15],[95,16,95,17],[95,20,95,21],[95,22,95,23],[93,24,93,25],[93,33,93,36],[94,10,94,11],[94,12,94,13],[94,14,94,15],[94,16,94,17],[94,20,94,21],[94,22,94,23],[94,24,94,25],[94,33,94,36],[93,10,93,11],[93,12,93,13],[93,14,93,15],[93,16,93,17],[93,20,93,21],[93,22,93,23],[91,24,91,25],[91,33,91,36],[92,10,92,11],[92,12,92,13],[92,14,92,15],[92,16,92,17],[92,20,92,21],[92,22,92,23],[92,24,92,25],[92,33,92,36],[91,10,91,11],[91,12,91,13],[91,14,91,15],[91,16,91,17],[91,20,91,21],[91,22,91,23],[86,22,86,23],[86,24,86,25],[88,20,88,21],[88,22,88,23],[88,24,88,25],[88,33,88,36],[89,24,89,25],[89,33,89,36],[90,10,90,11],[90,12,90,13],[90,14,90,15],[90,16,90,17],[90,20,90,21],[90,22,90,23],[90,24,90,25],[90,33,90,36],[89,10,89,11],[89,12,89,13],[89,14,89,15],[89,16,89,17],[89,20,89,21],[89,22,89,23],[83,36,83,37],[83,39,83,40],[83,42,83,43],[83,45,83,46],[83,48,83,49],[83,51,83,52],[83,150,83,153],[86,10,86,11],[86,12,86,13],[86,14,86,15],[86,16,86,17],[86,20,86,21],[83,108,83,109],[83,111,83,112],[83,114,83,115],[83,117,83,118],[83,120,83,121],[83,123,83,124],[83,90,83,91],[83,93,83,94],[83,96,83,97],[83,99,83,100],[83,102,83,103],[83,105,83,106],[82,39,82,40],[82,42,82,43],[82,45,82,46],[82,48,82,49],[83,84,83,85],[83,87,83,88],[83,54,83,55],[83,57,83,58],[83,60,83,61],[83,63,83,64],[83,66,83,67],[83,69,83,70],[83,72,83,73],[83,75,83,76],[83,78,83,79],[83,81,83,82],[83,0,83,5],[83,6,83,7],[83,9,83,10],[83,12,83,13],[83,15,83,16],[82,105,82,106],[82,108,82,109],[82,111,82,112],[82,114,82,115],[82,87,82,88],[82,90,82,91],[82,93,82,94],[82,96,82,97],[82,99,82,100],[82,102,82,103],[82,69,82,70],[82,72,82,73],[82,75,82,76],[82,78,82,79],[82,81,82,82],[82,84,82,85],[82,51,82,52],[82,54,82,55],[82,57,82,58],[82,15,82,16],[82,18,82,19],[82,21,82,22],[82,24,82,25],[82,27,82,28],[82,30,82,31],[81,0,81,2],[81,3,81,5],[81,150,82,153],[82,0,82,2],[82,3,82,4],[82,6,82,7],[82,9,82,10],[82,12,82,13],[82,123,82,124],[82,126,82,127],[82,129,82,130],[82,117,82,118],[82,120,82,121],[82,60,82,61],[82,63,82,64],[82,66,82,67],[82,33,82,34],[82,36,82,37],[80,114,80,115],[80,117,80,118],[80,120,80,121],[80,123,80,124],[80,126,80,127],[80,129,80,130],[80,96,80,97],[80,99,80,100],[80,102,80,103],[80,105,80,106],[80,108,80,109],[80,111,80,112],[80,78,80,79],[80,81,80,82],[80,87,80,88],[80,90,80,91],[80,93,80,94],[80,60,80,61],[80,63,80,64],[80,66,80,67],[80,69,80,70],[80,72,80,73],[80,75,80,76],[80,84,80,85],[79,0,79,5],[80,0,80,5],[80,6,80,7],[80,9,80,10],[80,12,80,13],[80,15,80,16],[80,18,80,19],[80,21,80,22],[8,114,8,116],[8,78,8,80],[8,81,8,83],[8,87,8,89],[8,90,8,92],[8,93,8,95],[8,60,8,62],[8,63,8,65],[8,66,8,68],[8,69,8,71],[8,72,8,74],[8,75,8,77],[8,54,8,56],[8,57,8,59],[8,24,8,26],[8,27,8,29],[8,120,8,122],[8,123,8,125],[8,126,8,128],[8,129,8,131],[8,96,8,98],[8,99,8,101],[8,102,8,104],[8,105,8,107],[8,108,8,110],[8,111,8,113],[8,33,8,35],[8,36,8,38],[8,39,8,41],[8,84,8,86],[7,150,8,150],[7,151,8,151],[8,6,8,8],[8,9,8,11],[8,12,8,14],[8,15,8,17],[8,18,8,20],[8,21,8,23],[7,114,7,116],[7,117,7,119],[7,120,7,122],[7,123,7,125],[7,126,7,128],[7,129,7,131],[7,96,7,98],[7,99,7,101],[7,102,7,104],[7,105,7,107],[7,108,7,110],[8,117,8,119],[7,87,7,89],[7,90,7,92],[7,93,7,95],[7,60,7,62],[7,63,7,65],[7,66,7,68],[7,69,7,71],[7,72,7,74],[7,75,7,77],[7,54,7,56],[7,57,7,59],[7,24,7,26],[7,27,7,29],[7,30,7,32],[7,33,7,35],[7,36,7,38],[7,39,7,41],[7,84,7,86],[6,150,6,151],[6,152,8,152],[6,153,8,153],[7,6,7,8],[7,9,7,11],[7,12,7,14],[7,15,7,17],[7,18,7,20],[7,21,7,23],[6,117,6,119],[6,120,6,122],[6,123,6,125],[6,126,6,128],[6,129,6,131],[6,99,6,101],[6,102,6,104],[6,105,6,107],[6,108,6,110],[6,111,6,113],[6,54,6,56],[6,57,6,59],[7,111,7,113],[7,78,7,80],[7,81,7,83],[6,0,8,0],[6,1,8,1],[6,2,8,2],[6,3,8,3],[6,4,8,4],[6,6,6,8],[6,45,6,47],[6,48,6,50],[6,51,6,53],[7,42,7,44],[7,45,7,47],[7,48,7,50],[7,51,7,53],[8,42,8,44],[8,45,8,47],[8,48,8,50],[8,51,8,53],[6,27,6,29],[6,30,6,32],[6,33,6,35],[6,36,6,38],[6,39,6,41],[6,42,6,44],[8,30,8,32],[4,26,4,29],[4,30,4,31],[4,32,4,34],[4,35,4,36],[6,9,6,11],[6,12,6,14],[6,15,6,17],[6,18,6,20],[6,21,6,23],[6,24,6,26],[3,41,3,44],[3,46,3,48],[3,49,3,51],[3,54,3,56],[3,57,3,60],[4,0,4,1],[4,2,4,3],[4,4,4,5],[4,6,4,12],[4,14,4,16],[3,17,3,19],[3,22,3,25],[3,26,3,29],[3,30,3,33],[3,34,3,37],[3,38,3,40],[4,38,4,40],[4,41,4,44],[4,46,4,48],[4,49,4,51],[4,54,4,56],[4,57,4,60],[4,17,4,19],[4,22,4,25],[2,38,2,40],[3,0,3,1],[3,2,3,3],[3,4,3,5],[3,6,3,12],[3,14,3,16],[2,17,2,19],[2,22,2,25],[2,26,2,29],[2,30,2,33],[80,36,80,37],[80,39,80,40],[0,38,0,40],[0,41,0,44],[0,46,0,48],[0,54,0,56],[0,57,0,60],[2,0,2,1],[2,2,2,3],[2,4,2,5],[2,6,2,12],[2,14,2,16],[0,0,0,12],[0,14,0,16],[0,17,0,23],[0,30,0,33],[0,34,0,35],[0,36,0,37],[2,41,2,44],[2,46,2,48],[2,49,2,51],[2,54,2,56],[2,57,2,60],[2,34,2,37],[6,141,6,143],[6,147,6,149],[83,18,83,19],[83,21,83,22],[83,24,83,25],[83,27,83,28],[83,30,83,31],[83,33,83,34],[83,126,83,127],[83,129,83,130],[8,141,8,143],[8,147,8,149],[80,138,80,139],[80,141,80,142],[80,147,80,148],[82,138,82,139],[82,141,82,142],[82,147,82,148],[6,60,6,62],[6,87,6,89],[6,90,6,92],[6,93,6,95],[6,96,6,98],[6,63,6,65],[88,12,88,13],[88,14,88,15],[88,16,88,17],[6,114,6,116],[6,81,6,83],[6,84,6,86],[6,132,6,134],[6,135,6,137],[6,138,6,140],[6,66,6,68],[6,69,6,71],[6,72,6,74],[6,75,6,77],[6,78,6,80],[80,42,80,43],[80,45,80,46],[80,48,80,49],[80,51,80,52],[80,54,80,55],[80,57,80,58],[80,24,80,25],[80,27,80,28],[80,30,80,31],[80,33,80,34],[83,147,83,148],[131,33,131,36],[132,33,132,36],[134,33,134,36],[131,10,131,11],[132,10,132,11],[134,10,134,11],[131,12,131,13],[132,12,132,13],[134,12,134,13],[131,14,131,15],[132,14,132,15],[134,14,134,15],[86,33,86,36],[87,10,87,11],[87,12,87,13],[87,14,87,15],[87,16,87,17],[87,20,87,21],[87,22,87,23],[83,135,83,136],[130,10,130,11],[130,12,130,13],[130,14,130,15],[6,144,6,146],[7,144,7,146],[8,144,8,146],[80,144,80,145],[82,144,82,145],[83,144,83,145],[133,10,133,11],[133,12,133,13],[133,14,133,15],[133,16,133,17],[133,20,133,21],[133,22,133,23],[133,24,133,25],[133,33,133,36],[83,138,83,139],[83,141,83,142],[130,16,130,17],[130,20,130,21],[130,22,130,23],[130,24,130,25],[130,33,130,36],[87,24,87,25],[87,33,87,36],[88,10,88,11]]}
[":::: รายงานการขายประจำวัน (Sale Daily Report)  ::::",null,null,null,null,null,null,null,null,null,null,null,null,null,"Print Date : ",null,null,{"$f":"NOW()","v":"2025-04-24T22:39:10.130"},null,null,null,null,null,null,null,null,null,null,null,null,"จำนวนร้าน :",null,null,null,{"$f":"MAX($A$10:$A$79)","v":0},null,"ร้าน",null,"เป้ายอดขาย :",null,null,null,null,null,null,null,{"$f":"C3","v":45800},null,null,{"$f":"LEFT('Problems & Solutions'!$B$2,FIND(\"|\",'Problems & Solutions'!$B$2))&\" วันที่\"&TEXT($C$3,\"[$-107041E] d mmmm yyyy;@\")","v":"ขั้นตอนการตรวจรีพอร์ตขาย | วันที่ 23 พฤษภาคม 2568"},null,null,null,null,"เวลากลับ :"]
[]
["วันที่ :",null,{"$f":"DATE(ใส่ข้อมูล!G2-543,ใส่ข้อมูล!V2,ActiveSheetName)","v":"2025-05-23"},null,"พนักงานขาย",null,{"$f":"INDEX(OFFSET(Sale_Region,,1),ActiveSheetName)","v":0},null,null,null,null,null,null,null,"รวมยอดเบิก :",null,null,{"$f":"E136","v":0},null,null,"ชิ้น",null,"ใหญ่สด(40)",null,null,null,{"$f":"Cash_Major_Bill","v":0},null,null,null,"ใหญ่เชื่อ(42)",null,null,null,{"$f":"Credit_Major_Bill","v":0},null,null,null,"บิลใหญ่ :",null,null,{"$f":"AA3+AI3","v":0},null,null,null,null,"เติมน้ำมัน :",null,null,null,null,null,"บาท",null,"ไมล์ออก :",null,null,{"$f":"เลขไมล์ออก","v":0},null,null,null,"Km"]
["เขตการขาย :",null,{"$f":"INDEX(Sale_Region,ActiveSheetName)","v":0},null,"ผช.ขาย",null,{"$f":"INDEX(OFFSET(Sale_Region,,2),ActiveSheetName)","v":0},null,null,null,null,null,null,null,"ของเหลือ :",null,null,{"$f":"F136","v":0},null,null,"ชิ้น",null,"เล็กสด(41)",null,null,null,{"$f":"Cash_Minor_Bill","v":0},null,null,null,"เล็กเชื่อ(43)",null,null,null,{"$f":"Credit_Minor_Bill","v":0},null,null,null,"บิลเล็ก :",null,null,{"$f":"AA4+AI4","v":0},null,null,null,null,"จำนวนลิตร :",null,null,null,null,null,"ลิตร",null,"ไมล์เข้า :",null,null,null,null,null,null,"Km"]
["สายส่ง :",null,{"$f":"\"Sale \"&ใส่ข้อมูล!E3&\"-\"&ใส่ข้อมูล!G3","v":"Sale KB-01"},null,"พนักงานเสริม",null,{"$f":"INDEX(OFFSET(Sale_Region,,3),ActiveSheetName)","v":0},null,null,null,null,null,null,null,"ของเสีย :",null,null,{"$f":"G136","v":0},null,null,"ชิ้น",null,"น้ำหนักของเสีย",null,null,null,null,null,null,null,"Kg.",null,"%ของเสีย",null,null,{"$f":"IF(Order_Cal=0,0,ROUND(Waste_Cal*100/Order_Cal,2))","v":0},null,"%","VAT :",null,null,{"$f":"EW81","v":0},null,null,null,null,"ต้นทุนสาขา :",null,null,{"$f":"SUMPRODUCT((($A$88:$A$135)-($A$88:$A$135)*0.45)*(($E$88:$E$135)-($G$88:$G$135)))","v":0},null,null,"บาท",null,"ระยะทาง :",null,null,{"$f":"IF(OR($BF$4=0,$BF$3=0),0,$BF$4-$BF$3)","v":0},null,null,null,"Km"]
[]
["No","รหัสร้าน (CustNo)","ชื่อร้าน (Store Name)","เวลาเข้าร้าน","ระยะเวลาระหว่างร้าน","บิล(Invoice)",{"$f":"INDEX(INDIRECT(\"dProduct[ProductName]\"),ROUNDUP(COLUMNS($G:G)/3,0))","v":"ขนมปังหมูหยองน้ำสลัด"},null,null,{"$f":"INDEX(INDIRECT(\"dProduct[ProductName]\"),ROUNDUP(COLUMNS($G:J)/3,0))","v":"ขนมปังหมูหยองน้ำพริกเผา"},null,null,{"$f":"INDEX(INDIRECT(\"dProduct[ProductName]\"),ROUNDUP(COLUMNS($G:M)/3,0))","v":"ขนมปังไก่หยองน้ำสลัด"},null,null,{"$f":"INDEX(INDIRECT(\"dProduct[ProductName]\"),ROUNDUP(COLUMNS($G:P)/3,0))","v":"ขนมปังไส้ครีมสลัด"},null,null,{"$f":"INDEX(INDIRECT(\"dProduct[ProductName]\"),ROUNDUP(COLUMNS($G:S)/3,0))","v":"ขนมปังเนยสด"},null,null,{"$f":"INDEX(INDIRECT(\"dProduct[ProductName]\"),ROUNDUP(COLUMNS($G:V)/3,0))","v":"ขนมปังไส้สังขยาเล็ก"},null,null,{"$f":"INDEX(INDIRECT(\"dProduct[ProductName]\"),ROUNDUP(COLUMNS($G:Y)/3,0))","v":"ขนมปังไส้เผือก"},null,null,{"$f":"INDEX(INDIRECT(\"dProduct[ProductName]\"),ROUNDUP(COLUMNS($G:AB)/3,0))","v":"ขนมปังไส้ถั่วแดง"},null,null,{"$f":"INDEX(INDIRECT(\"dProduct[ProductName]\"),ROUNDUP(COLUMNS($G:AE)/3,0))","v":"ขนมปังไส้ถั่วดำ"},null,null,{"$f":"INDEX(INDIRECT(\"dProduct[ProductName]\"),ROUNDUP(COLUMNS($G:AH)/3,0))","v":"ขนมปังไส้มันม่วง"},null,null,{"$f":"INDEX(INDIRECT(\"dProduct[ProductName]\"),ROUNDUP(COLUMNS($G:AK)/3,0))","v":"เค้กกล้วยหอม"},null,null,{"$f":"INDEX(INDIRECT(\"dProduct[ProductName]\"),ROUNDUP(COLUMNS($G:AN)/3,0))","v":"เค้กบัตเตอร์"},null,null,{"$f":"INDEX(INDIRECT(\"dProduct[ProductName]\"),ROUNDUP(COLUMNS($G:AQ)/3,0))","v":"ขนมปังโรลถั่วแดง"},null,null,{"$f":"INDEX(INDIRECT(\"dProduct[ProductName]\"),ROUNDUP(COLUMNS($G:AT)/3,0))","v":"ขนมปังไส้สังขยาใหญ่"},null,null,{"$f":"INDEX(INDIRECT(\"dProduct[ProductName]\"),ROUNDUP(COLUMNS($G:AW)/3,0))","v":"ขนมปังชนิดแผ่น(480กรัม)"},null,null,{"$f":"INDEX(INDIRECT(\"dProduct[ProductName]\"),ROUNDUP(COLUMNS($G:AZ)/3,0))","v":"โมจิไส้ถั่ว"},null,null,{"$f":"INDEX(INDIRECT(\"dProduct[ProductName]\"),ROUNDUP(COLUMNS($G:BC)/3,0))","v":"โมจิไส้เผือก"},null,null,{"$f":"INDEX(INDIRECT(\"dProduct[ProductName]\"),ROUNDUP(COLUMNS($G:BF)/3,0))","v":"โมจิไส้ถั่วไข่เค็ม"},null,null,{"$f":"INDEX(INDIRECT(\"dProduct[ProductName]\"),ROUNDUP(COLUMNS($G:BI)/3,0))","v":"ขนมปังพิซซ่า"},null,null,{"$f":"INDEX(INDIRECT(\"dProduct[ProductName]\"),ROUNDUP(COLUMNS($G:BL)/3,0))","v":"ขนมปังพิซซ่าปูอัดแฮม"},null,null,{"$f":"INDEX(INDIRECT(\"dProduct[ProductName]\"),ROUNDUP(COLUMNS($G:BO)/3,0))","v":"ขนมปังไส้กรอก"},null,null,{"$f":"INDEX(INDIRECT(\"dProduct[ProductName]\"),ROUNDUP(COLUMNS($G:BR)/3,0))","v":"ขนมก้านบัว"},null,null,{"$f":"INDEX(INDIRECT(\"dProduct[ProductName]\"),ROUNDUP(COLUMNS($G:BU)/3,0))","v":"พายสับปะรด"},null,null,{"$f":"INDEX(INDIRECT(\"dProduct[ProductName]\"),ROUNDUP(COLUMNS($G:BX)/3,0))","v":"พายไส้มะพร้าว"},null,null,{"$f":"INDEX(INDIRECT(\"dProduct[ProductName]\"),ROUNDUP(COLUMNS($G:CA)/3,0))","v":"ขนมปังโรลมันเทศ"},null,null,{"$f":"INDEX(INDIRECT(\"dProduct[ProductName]\"),ROUNDUP(COLUMNS($G:CD)/3,0))","v":"ขนมปังไส้ครีมสลัดน้ำพริกเผา"},null,null,{"$f":"INDEX(INDIRECT(\"dProduct[ProductName]\"),ROUNDUP(COLUMNS($G:CG)/3,0))","v":"ขนมปังไส้สังขยาไข่"},null,null,{"$f":"INDEX(INDIRECT(\"dProduct[ProductName]\"),ROUNDUP(COLUMNS($G:CJ)/3,0))","v":"ขนมปังไส้สังขยามะพร้าว"},null,null,{"$f":"INDEX(INDIRECT(\"dProduct[ProductName]\"),ROUNDUP(COLUMNS($G:CM)/3,0))","v":"ขนมปังไส้ครีมชาไทย"},null,null,{"$f":"INDEX(INDIRECT(\"dProduct[ProductName]\"),ROUNDUP(COLUMNS($G:CP)/3,0))","v":"ขนมปังโรลมันม่วง"},null,null,{"$f":"INDEX(INDIRECT(\"dProduct[ProductName]\"),ROUNDUP(COLUMNS($G:CS)/3,0))","v":"ขนมปังโรลช็อกโกแลต"},null,null,{"$f":"INDEX(INDIRECT(\"dProduct[ProductName]\"),ROUNDUP(COLUMNS($G:CV)/3,0))","v":"ขนมปังชนิดแผ่น(155กรัม)"},null,null,{"$f":"INDEX(INDIRECT(\"dProduct[ProductName]\"),ROUNDUP(COLUMNS($G:CY)/3,0))","v":"ขนมปังโรลเผือก"},null,null,{"$f":"INDEX(INDIRECT(\"dProduct[ProductName]\"),ROUNDUP(COLUMNS($G:DB)/3,0))","v":"ขนมปังไก่หยองน้ำสลัด Mini"},null,null,{"$f":"INDEX(INDIRECT(\"dProduct[ProductName]\"),ROUNDUP(COLUMNS($G:DE)/3,0))","v":"ขนมปังไส้ช็อกโกแลต"},null,null,{"$f":"INDEX(INDIRECT(\"dProduct[ProductName]\"),ROUNDUP(COLUMNS($G:DH)/3,0))","v":"ขนมปังไส้ครีมสังขยาไข่"},null,null,{"$f":"INDEX(INDIRECT(\"dProduct[ProductName]\"),ROUNDUP(COLUMNS($G:DK)/3,0))","v":"ขนมปังพิซซ่าฮาวายเอี้ยน"},null,null,{"$f":"INDEX(INDIRECT(\"dProduct[ProductName]\"),ROUNDUP(COLUMNS($G:DN)/3,0))","v":"ครัวซองต์หมูหยองน้ำสลัด"},null,null,{"$f":"INDEX(INDIRECT(\"dProduct[ProductName]\"),ROUNDUP(COLUMNS($G:DQ)/3,0))","v":"แพนเบรดไส้เผือก"},null,null,{"$f":"INDEX(INDIRECT(\"dProduct[ProductName]\"),ROUNDUP(COLUMNS($G:DT)/3,0))","v":"แพนเบรดไส้ถั่วแดง"},null,null,{"$f":"INDEX(INDIRECT(\"dProduct[ProductName]\"),ROUNDUP(COLUMNS($G:DW)/3,0))","v":"ขนมปังกรอบเนยน้ำตาล(30กรัม)"},null,null,{"$f":"INDEX(INDIRECT(\"dProduct[ProductName]\"),ROUNDUP(COLUMNS($G:DZ)/3,0))","v":"ขนมปังชนิดแผ่นโฮลวีต"},null,null,{"$f":"INDEX(INDIRECT(\"dProduct[ProductName]\"),ROUNDUP(COLUMNS($G:EC)/3,0))","v":"เค้กโรลใบเตย"},null,null,{"$f":"INDEX(INDIRECT(\"dProduct[ProductName]\"),ROUNDUP(COLUMNS($G:EF)/3,0))","v":"ขนมโมจิไส้ถั่วดำ"},null,null,{"$f":"INDEX(INDIRECT(\"dProduct[ProductName]\"),ROUNDUP(COLUMNS($G:EI)/3,0))","v":"ครัวซองต์ไส้กรอกชีส"},null,null,{"$f":"INDEX(INDIRECT(\"dProduct[ProductName]\"),ROUNDUP(COLUMNS($G:EL)/3,0))","v":"ขนมเปี๊ยะไส้ถั่ว"},null,null,{"$f":"INDEX(INDIRECT(\"dProduct[ProductName]\"),ROUNDUP(COLUMNS($G:EO)/3,0))","v":"ขนมเปี๊ยะไส้ฟัก"},null,null,{"$f":"INDEX(INDIRECT(\"dProduct[ProductName]\"),ROUNDUP(COLUMNS($G:ER)/3,0))","v":"มังกี้เค้ก"},null,null,"มูลค่าสินค้า",null,"ภาษี","รวมยอดขาย"]
[null,null,null,null,null,"ราคาขาย",{"$f":"IF(G$7=0,0,INDEX(Price_List,ROUNDUP(COLUMNS($G:G)/3,0)))","v":20},null,null,{"$f":"IF(J$7=0,0,INDEX(Price_List,ROUNDUP(COLUMNS($G:J)/3,0)))","v":20},null,null,{"$f":"IF(M$7=0,0,INDEX(Price_List,ROUNDUP(COLUMNS($G:M)/3,0)))","v":20},null,null,{"$f":"IF(P$7=0,0,INDEX(Price_List,ROUNDUP(COLUMNS($G:P)/3,0)))","v":15},null,null,{"$f":"IF(S$7=0,0,INDEX(Price_List,ROUNDUP(COLUMNS($G:S)/3,0)))","v":15},null,null,{"$f":"IF(V$7=0,0,INDEX(Price_List,ROUNDUP(COLUMNS($G:V)/3,0)))","v":10},null,null,{"$f":"IF(Y$7=0,0,INDEX(Price_List,ROUNDUP(COLUMNS($G:Y)/3,0)))","v":10},null,null,{"$f":"IF(AB$7=0,0,INDEX(Price_List,ROUNDUP(COLUMNS($G:AB)/3,0)))","v":10},null,null,{"$f":"IF(AE$7=0,0,INDEX(Price_List,ROUNDUP(COLUMNS($G:AE)/3,0)))","v":10},null,null,{"$f":"IF(AH$7=0,0,INDEX(Price_List,ROUNDUP(COLUMNS($G:AH)/3,0)))","v":10},null,null,{"$f":"IF(AK$7=0,0,INDEX(Price_List,ROUNDUP(COLUMNS($G:AK)/3,0)))","v":15},null,null,{"$f":"IF(AN$7=0,0,INDEX(Price_List,ROUNDUP(COLUMNS($G:AN)/3,0)))","v":15},null,null,{"$f":"IF(AQ$7=0,0,INDEX(Price_List,ROUNDUP(COLUMNS($G:AQ)/3,0)))","v":15},null,null,{"$f":"IF(AT$7=0,0,INDEX(Price_List,ROUNDUP(COLUMNS($G:AT)/3,0)))","v":15},null,null,{"$f":"IF(AW$7=0,0,INDEX(Price_List,ROUNDUP(COLUMNS($G:AW)/3,0)))","v":42},null,null,{"$f":"IF(AZ$7=0,0,INDEX(Price_List,ROUNDUP(COLUMNS($G:AZ)/3,0)))","v":12},null,null,{"$f":"IF(BC$7=0,0,INDEX(Price_List,ROUNDUP(COLUMNS($G:BC)/3,0)))","v":12},null,null,{"$f":"IF(BF$7=0,0,INDEX(Price_List,ROUNDUP(COLUMNS($G:BF)/3,0)))","v":15},null,null,{"$f":"IF(BI$7=0,0,INDEX(Price_List,ROUNDUP(COLUMNS($G:BI)/3,0)))","v":20},null,null,{"$f":"IF(BL$7=0,0,INDEX(Price_List,ROUNDUP(COLUMNS($G:BL)/3,0)))","v":20},null,null,{"$f":"IF(BO$7=0,0,INDEX(Price_List,ROUNDUP(COLUMNS($G:BO)/3,0)))","v":20},null,null,{"$f":"IF(BR$7=0,0,INDEX(Price_List,ROUNDUP(COLUMNS($G:BR)/3,0)))","v":15},null,null,{"$f":"IF(BU$7=0,0,INDEX(Price_List,ROUNDUP(COLUMNS($G:BU)/3,0)))","v":20},null,null,{"$f":"IF(BX$7=0,0,INDEX(Price_List,ROUNDUP(COLUMNS($G:BX)/3,0)))","v":20},null,null,{"$f":"IF(CA$7=0,0,INDEX(Price_List,ROUNDUP(COLUMNS($G:CA)/3,0)))","v":15},null,null,{"$f":"IF(CD$7=0,0,INDEX(Price_List,ROUNDUP(COLUMNS($G:CD)/3,0)))","v":15},null,null,{"$f":"IF(CG$7=0,0,INDEX(Price_List,ROUNDUP(COLUMNS($G:CG)/3,0)))","v":20},null,null,{"$f":"IF(CJ$7=0,0,INDEX(Price_List,ROUNDUP(COLUMNS($G:CJ)/3,0)))","v":20},null,null,{"$f":"IF(CM$7=0,0,INDEX(Price_List,ROUNDUP(COLUMNS($G:CM)/3,0)))","v":10},null,null,{"$f":"IF(CP$7=0,0,INDEX(Price_List,ROUNDUP(COLUMNS($G:CP)/3,0)))","v":15},null,null,{"$f":"IF(CS$7=0,0,INDEX(Price_List,ROUNDUP(COLUMNS($G:CS)/3,0)))","v":15},null,null,{"$f":"IF(CV$7=0,0,INDEX(Price_List,ROUNDUP(COLUMNS($G:CV)/3,0)))","v":16},null,null,{"$f":"IF(CY$7=0,0,INDEX(Price_List,ROUNDUP(COLUMNS($G:CY)/3,0)))","v":15},null,null,{"$f":"IF(DB$7=0,0,INDEX(Price_List,ROUNDUP(COLUMNS($G:DB)/3,0)))","v":15},null,null,{"$f":"IF(DE$7=0,0,INDEX(Price_List,ROUNDUP(COLUMNS($G:DE)/3,0)))","v":10},null,null,{"$f":"IF(DH$7=0,0,INDEX(Price_List,ROUNDUP(COLUMNS($G:DH)/3,0)))","v":10},null,null,{"$f":"IF(DK$7=0,0,INDEX(Price_List,ROUNDUP(COLUMNS($G:DK)/3,0)))","v":20},null,null,{"$f":"IF(DN$7=0,0,INDEX(Price_List,ROUNDUP(COLUMNS($G:DN)/3,0)))","v":20},null,null,{"$f":"IF(DQ$7=0,0,INDEX(Price_List,ROUNDUP(COLUMNS($G:DQ)/3,0)))","v":15},null,null,{"$f":"IF(DT$7=0,0,INDEX(Price_List,ROUNDUP(COLUMNS($G:DT)/3,0)))","v":15},null,null,{"$f":"IF(DW$7=0,0,INDEX(Price_List,ROUNDUP(COLUMNS($G:DW)/3,0)))","v":12},null,null,{"$f":"IF(DZ$7=0,0,INDEX(Price_List,ROUNDUP(COLUMNS($G:DZ)/3,0)))","v":18},null,null,{"$f":"IF(EC$7=0,0,INDEX(Price_List,ROUNDUP(COLUMNS($G:EC)/3,0)))","v":12},null,null,{"$f":"IF(EF$7=0,0,INDEX(Price_List,ROUNDUP(COLUMNS($G:EF)/3,0)))","v":12},null,null,{"$f":"IF(EI$7=0,0,INDEX(Price_List,ROUNDUP(COLUMNS($G:EI)/3,0)))","v":25},null,null,{"$f":"IF(EL$7=0,0,INDEX(Price_List,ROUNDUP(COLUMNS($G:EL)/3,0)))","v":12},null,null,{"$f":"IF(EO$7=0,0,INDEX(Price_List,ROUNDUP(COLUMNS($G:EO)/3,0)))","v":12},null,null,{"$f":"IF(ER$7=0,0,INDEX(Price_List,ROUNDUP(COLUMNS($G:ER)/3,0)))","v":12},null,null,"เงินเชื่อ","เงินสด"]
[null,null,null,null,null,"คงเหลือ(ตามบัญชี)",{"$f":"IF(G$7=0,0,INDEX(INDIRECT(Order_Rng),ROUNDUP(COLUMNS($G:G)/3,0)))","v":0},null,null,{"$f":"IF(J$7=0,0,INDEX(INDIRECT(Order_Rng),ROUNDUP(COLUMNS($G:J)/3,0)))","v":0},null,null,{"$f":"IF(M$7=0,0,INDEX(INDIRECT(Order_Rng),ROUNDUP(COLUMNS($G:M)/3,0)))","v":0},null,null,{"$f":"IF(P$7=0,0,INDEX(INDIRECT(Order_Rng),ROUNDUP(COLUMNS($G:P)/3,0)))","v":0},null,null,{"$f":"IF(S$7=0,0,INDEX(INDIRECT(Order_Rng),ROUNDUP(COLUMNS($G:S)/3,0)))","v":0},null,null,{"$f":"IF(V$7=0,0,INDEX(INDIRECT(Order_Rng),ROUNDUP(COLUMNS($G:V)/3,0)))","v":0},null,null,{"$f":"IF(Y$7=0,0,INDEX(INDIRECT(Order_Rng),ROUNDUP(COLUMNS($G:Y)/3,0)))","v":0},null,null,{"$f":"IF(AB$7=0,0,INDEX(INDIRECT(Order_Rng),ROUNDUP(COLUMNS($G:AB)/3,0)))","v":0},null,null,{"$f":"IF(AE$7=0,0,INDEX(INDIRECT(Order_Rng),ROUNDUP(COLUMNS($G:AE)/3,0)))","v":0},null,null,{"$f":"IF(AH$7=0,0,INDEX(INDIRECT(Order_Rng),ROUNDUP(COLUMNS($G:AH)/3,0)))","v":0},null,null,{"$f":"IF(AK$7=0,0,INDEX(INDIRECT(Order_Rng),ROUNDUP(COLUMNS($G:AK)/3,0)))","v":0},null,null,{"$f":"IF(AN$7=0,0,INDEX(INDIRECT(Order_Rng),ROUNDUP(COLUMNS($G:AN)/3,0)))","v":0},null,null,{"$f":"IF(AQ$7=0,0,INDEX(INDIRECT(Order_Rng),ROUNDUP(COLUMNS($G:AQ)/3,0)))","v":0},null,null,{"$f":"IF(AT$7=0,0,INDEX(INDIRECT(Order_Rng),ROUNDUP(COLUMNS($G:AT)/3,0)))","v":0},null,null,{"$f":"IF(AW$7=0,0,INDEX(INDIRECT(Order_Rng),ROUNDUP(COLUMNS($G:AW)/3,0)))","v":0},null,null,{"$f":"IF(AZ$7=0,0,INDEX(INDIRECT(Order_Rng),ROUNDUP(COLUMNS($G:AZ)/3,0)))","v":0},null,null,{"$f":"IF(BC$7=0,0,INDEX(INDIRECT(Order_Rng),ROUNDUP(COLUMNS($G:BC)/3,0)))","v":0},null,null,{"$f":"IF(BF$7=0,0,INDEX(INDIRECT(Order_Rng),ROUNDUP(COLUMNS($G:BF)/3,0)))","v":0},null,null,{"$f":"IF(BI$7=0,0,INDEX(INDIRECT(Order_Rng),ROUNDUP(COLUMNS($G:BI)/3,0)))","v":0},null,null,{"$f":"IF(BL$7=0,0,INDEX(INDIRECT(Order_Rng),ROUNDUP(COLUMNS($G:BL)/3,0)))","v":0},null,null,{"$f":"IF(BO$7=0,0,INDEX(INDIRECT(Order_Rng),ROUNDUP(COLUMNS($G:BO)/3,0)))","v":0},null,null,{"$f":"IF(BR$7=0,0,INDEX(INDIRECT(Order_Rng),ROUNDUP(COLUMNS($G:BR)/3,0)))","v":0},null,null,{"$f":"IF(BU$7=0,0,INDEX(INDIRECT(Order_Rng),ROUNDUP(COLUMNS($G:BU)/3,0)))","v":0},null,null,{"$f":"IF(BX$7=0,0,INDEX(INDIRECT(Order_Rng),ROUNDUP(COLUMNS($G:BX)/3,0)))","v":0},null,null,{"$f":"IF(CA$7=0,0,INDEX(INDIRECT(Order_Rng),ROUNDUP(COLUMNS($G:CA)/3,0)))","v":0},null,null,{"$f":"IF(CD$7=0,0,INDEX(INDIRECT(Order_Rng),ROUNDUP(COLUMNS($G:CD)/3,0)))","v":0},null,null,{"$f":"IF(CG$7=0,0,INDEX(INDIRECT(Order_Rng),ROUNDUP(COLUMNS($G:CG)/3,0)))","v":0},null,null,{"$f":"IF(CJ$7=0,0,INDEX(INDIRECT(Order_Rng),ROUNDUP(COLUMNS($G:CJ)/3,0)))","v":0},null,null,{"$f":"IF(CM$7=0,0,INDEX(INDIRECT(Order_Rng),ROUNDUP(COLUMNS($G:CM)/3,0)))","v":0},null,null,{"$f":"IF(CP$7=0,0,INDEX(INDIRECT(Order_Rng),ROUNDUP(COLUMNS($G:CP)/3,0)))","v":0},null,null,{"$f":"IF(CS$7=0,0,INDEX(INDIRECT(Order_Rng),ROUNDUP(COLUMNS($G:CS)/3,0)))","v":0},null,null,{"$f":"IF(CV$7=0,0,INDEX(INDIRECT(Order_Rng),ROUNDUP(COLUMNS($G:CV)/3,0)))","v":0},null,null,{"$f":"IF(CY$7=0,0,INDEX(INDIRECT(Order_Rng),ROUNDUP(COLUMNS($G:CY)/3,0)))","v":0},null,null,{"$f":"IF(DB$7=0,0,INDEX(INDIRECT(Order_Rng),ROUNDUP(COLUMNS($G:DB)/3,0)))","v":0},null,null,{"$f":"IF(DE$7=0,0,INDEX(INDIRECT(Order_Rng),ROUNDUP(COLUMNS($G:DE)/3,0)))","v":0},null,null,{"$f":"IF(DH$7=0,0,INDEX(INDIRECT(Order_Rng),ROUNDUP(COLUMNS($G:DH)/3,0)))","v":0},null,null,{"$f":"IF(DK$7=0,0,INDEX(INDIRECT(Order_Rng),ROUNDUP(COLUMNS($G:DK)/3,0)))","v":0},null,null,{"$f":"IF(DN$7=0,0,INDEX(INDIRECT(Order_Rng),ROUNDUP(COLUMNS($G:DN)/3,0)))","v":0},null,null,{"$f":"IF(DQ$7=0,0,INDEX(INDIRECT(Order_Rng),ROUNDUP(COLUMNS($G:DQ)/3,0)))","v":0},null,null,{"$f":"IF(DT$7=0,0,INDEX(INDIRECT(Order_Rng),ROUNDUP(COLUMNS($G:DT)/3,0)))","v":0},null,null,{"$f":"IF(DW$7=0,0,INDEX(INDIRECT(Order_Rng),ROUNDUP(COLUMNS($G:DW)/3,0)))","v":0},null,null,{"$f":"IF(DZ$7=0,0,INDEX(INDIRECT(Order_Rng),ROUNDUP(COLUMNS($G:DZ)/3,0)))","v":0},null,null,{"$f":"IF(EC$7=0,0,INDEX(INDIRECT(Order_Rng),ROUNDUP(COLUMNS($G:EC)/3,0)))","v":0},null,null,{"$f":"IF(EF$7=0,0,INDEX(INDIRECT(Order_Rng),ROUNDUP(COLUMNS($G:EF)/3,0)))","v":0},null,null,{"$f":"IF(EI$7=0,0,INDEX(INDIRECT(Order_Rng),ROUNDUP(COLUMNS($G:EI)/3,0)))","v":0},null,null,{"$f":"IF(EL$7=0,0,INDEX(INDIRECT(Order_Rng),ROUNDUP(COLUMNS($G:EL)/3,0)))","v":0},null,null,{"$f":"IF(EO$7=0,0,INDEX(INDIRECT(Order_Rng),ROUNDUP(COLUMNS($G:EO)/3,0)))","v":0},null,null,{"$f":"IF(ER$7=0,0,INDEX(INDIRECT(Order_Rng),ROUNDUP(COLUMNS($G:ER)/3,0)))","v":0}]
[{"$f":"IF(OR($B10=\"\",COUNTIF($B$10:$B10,$B10)>1,LEN(TRIM($B10))<>10,ISNUMBER(--MID(TRIM($B10),5,1))),\"-\",MAX(COUNT($A$9:$A9)+1))","v":"-"}]
[{"$f":"IF(OR($B11=\"\",COUNTIF($B$10:$B11,$B11)>1,LEN(TRIM($B11))<>10,ISNUMBER(--MID(TRIM($B11),5,1))),\"-\",MAX(COUNT($A$9:$A10)+1))","v":"-"},null,null,null,{"$f":"IF(D11=\"\",\"\",D11-D10)","v":""}]
[{"$f":"IF(OR($B12=\"\",COUNTIF($B$10:$B12,$B12)>1,LEN(TRIM($B12))<>10,ISNUMBER(--MID(TRIM($B12),5,1))),\"-\",MAX(COUNT($A$9:$A11)+1))","v":"-"},null,null,null,{"$f":"IF(D12=\"\",\"\",D12-D11)","v":""}]
[{"$f":"IF(OR($B13=\"\",COUNTIF($B$10:$B13,$B13)>1,LEN(TRIM($B13))<>10,ISNUMBER(--MID(TRIM($B13),5,1))),\"-\",MAX(COUNT($A$9:$A12)+1))","v":"-"},null,null,null,""]
[{"$f":"IF(OR($B14=\"\",COUNTIF($B$10:$B14,$B14)>1,LEN(TRIM($B14))<>10,ISNUMBER(--MID(TRIM($B14),5,1))),\"-\",MAX(COUNT($A$9:$A13)+1))","v":"-"},null,null,null,""]
[{"$f":"IF(OR($B15=\"\",COUNTIF($B$10:$B15,$B15)>1,LEN(TRIM($B15))<>10,ISNUMBER(--MID(TRIM($B15),5,1))),\"-\",MAX(COUNT($A$9:$A14)+1))","v":"-"},null,null,null,""]
[{"$f":"IF(OR($B16=\"\",COUNTIF($B$10:$B16,$B16)>1,LEN(TRIM($B16))<>10,ISNUMBER(--MID(TRIM($B16),5,1))),\"-\",MAX(COUNT($A$9:$A15)+1))","v":"-"},null,null,null,""]
[{"$f":"IF(OR($B17=\"\",COUNTIF($B$10:$B17,$B17)>1,LEN(TRIM($B17))<>10,ISNUMBER(--MID(TRIM($B17),5,1))),\"-\",MAX(COUNT($A$9:$A16)+1))","v":"-"},null,null,null,""]
[{"$f":"IF(OR($B18=\"\",COUNTIF($B$10:$B18,$B18)>1,LEN(TRIM($B18))<>10,ISNUMBER(--MID(TRIM($B18),5,1))),\"-\",MAX(COUNT($A$9:$A17)+1))","v":"-"},null,null,null,""]
[{"$f":"IF(OR($B19=\"\",COUNTIF($B$10:$B19,$B19)>1,LEN(TRIM($B19))<>10,ISNUMBER(--MID(TRIM($B19),5,1))),\"-\",MAX(COUNT($A$9:$A18)+1))","v":"-"},null,null,null,""]
[{"$f":"IF(OR($B20=\"\",COUNTIF($B$10:$B20,$B20)>1,LEN(TRIM($B20))<>10,ISNUMBER(--MID(TRIM($B20),5,1))),\"-\",MAX(COUNT($A$9:$A19)+1))","v":"-"},null,null,null,""]
[{"$f":"IF(OR($B21=\"\",COUNTIF($B$10:$B21,$B21)>1,LEN(TRIM($B21))<>10,ISNUMBER(--MID(TRIM($B21),5,1))),\"-\",MAX(COUNT($A$9:$A20)+1))","v":"-"},null,null,null,""]
[{"$f":"IF(OR($B22=\"\",COUNTIF($B$10:$B22,$B22)>1,LEN(TRIM($B22))<>10,ISNUMBER(--MID(TRIM($B22),5,1))),\"-\",MAX(COUNT($A$9:$A21)+1))","v":"-"},null,null,null,""]
[{"$f":"IF(OR($B23=\"\",COUNTIF($B$10:$B23,$B23)>1,LEN(TRIM($B23))<>10,ISNUMBER(--MID(TRIM($B23),5,1))),\"-\",MAX(COUNT($A$9:$A22)+1))","v":"-"},null,null,null,""]
[{"$f":"IF(OR($B24=\"\",COUNTIF($B$10:$B24,$B24)>1,LEN(TRIM($B24))<>10,ISNUMBER(--MID(TRIM($B24),5,1))),\"-\",MAX(COUNT($A$9:$A23)+1))","v":"-"},null,null,null,""]
[{"$f":"IF(OR($B25=\"\",COUNTIF($B$10:$B25,$B25)>1,LEN(TRIM($B25))<>10,ISNUMBER(--MID(TRIM($B25),5,1))),\"-\",MAX(COUNT($A$9:$A24)+1))","v":"-"},null,null,null,""]
[{"$f":"IF(OR($B26=\"\",COUNTIF($B$10:$B26,$B26)>1,LEN(TRIM($B26))<>10,ISNUMBER(--MID(TRIM($B26),5,1))),\"-\",MAX(COUNT($A$9:$A25)+1))","v":"-"},null,null,null,""]
[{"$f":"IF(OR($B27=\"\",COUNTIF($B$10:$B27,$B27)>1,LEN(TRIM($B27))<>10,ISNUMBER(--MID(TRIM($B27),5,1))),\"-\",MAX(COUNT($A$9:$A26)+1))","v":"-"},null,null,null,""]
[{"$f":"IF(OR($B28=\"\",COUNTIF($B$10:$B28,$B28)>1,LEN(TRIM($B28))<>10,ISNUMBER(--MID(TRIM($B28),5,1))),\"-\",MAX(COUNT($A$9:$A27)+1))","v":"-"},null,null,null,""]
[{"$f":"IF(OR($B29=\"\",COUNTIF($B$10:$B29,$B29)>1,LEN(TRIM($B29))<>10,ISNUMBER(--MID(TRIM($B29),5,1))),\"-\",MAX(COUNT($A$9:$A28)+1))","v":"-"},null,null,null,""]
[{"$f":"IF(OR($B30=\"\",COUNTIF($B$10:$B30,$B30)>1,LEN(TRIM($B30))<>10,ISNUMBER(--MID(TRIM($B30),5,1))),\"-\",MAX(COUNT($A$9:$A29)+1))","v":"-"},null,null,null,""]
[{"$f":"IF(OR($B31=\"\",COUNTIF($B$10:$B31,$B31)>1,LEN(TRIM($B31))<>10,ISNUMBER(--MID(TRIM($B31),5,1))),\"-\",MAX(COUNT($A$9:$A30)+1))","v":"-"},null,null,null,""]
[{"$f":"IF(OR($B32=\"\",COUNTIF($B$10:$B32,$B32)>1,LEN(TRIM($B32))<>10,ISNUMBER(--MID(TRIM($B32),5,1))),\"-\",MAX(COUNT($A$9:$A31)+1))","v":"-"},null,null,null,""]
[{"$f":"IF(OR($B33=\"\",COUNTIF($B$10:$B33,$B33)>1,LEN(TRIM($B33))<>10,ISNUMBER(--MID(TRIM($B33),5,1))),\"-\",MAX(COUNT($A$9:$A32)+1))","v":"-"},null,null,null,""]
[{"$f":"IF(OR($B34=\"\",COUNTIF($B$10:$B34,$B34)>1,LEN(TRIM($B34))<>10,ISNUMBER(--MID(TRIM($B34),5,1))),\"-\",MAX(COUNT($A$9:$A33)+1))","v":"-"},null,null,null,""]
[{"$f":"IF(OR($B35=\"\",COUNTIF($B$10:$B35,$B35)>1,LEN(TRIM($B35))<>10,ISNUMBER(--MID(TRIM($B35),5,1))),\"-\",MAX(COUNT($A$9:$A34)+1))","v":"-"},null,null,null,""]
[{"$f":"IF(OR($B36=\"\",COUNTIF($B$10:$B36,$B36)>1,LEN(TRIM($B36))<>10,ISNUMBER(--MID(TRIM($B36),5,1))),\"-\",MAX(COUNT($A$9:$A35)+1))","v":"-"},null,null,null,""]
[{"$f":"IF(OR($B37=\"\",COUNTIF($B$10:$B37,$B37)>1,LEN(TRIM($B37))<>10,ISNUMBER(--MID(TRIM($B37),5,1))),\"-\",MAX(COUNT($A$9:$A36)+1))","v":"-"},null,null,null,""]
[{"$f":"IF(OR($B38=\"\",COUNTIF($B$10:$B38,$B38)>1,LEN(TRIM($B38))<>10,ISNUMBER(--MID(TRIM($B38),5,1))),\"-\",MAX(COUNT($A$9:$A37)+1))","v":"-"},null,null,null,""]
[{"$f":"IF(OR($B39=\"\",COUNTIF($B$10:$B39,$B39)>1,LEN(TRIM($B39))<>10,ISNUMBER(--MID(TRIM($B39),5,1))),\"-\",MAX(COUNT($A$9:$A38)+1))","v":"-"},null,null,null,""]
[{"$f":"IF(OR($B40=\"\",COUNTIF($B$10:$B40,$B40)>1,LEN(TRIM($B40))<>10,ISNUMBER(--MID(TRIM($B40),5,1))),\"-\",MAX(COUNT($A$9:$A39)+1))","v":"-"},null,null,null,""]
[{"$f":"IF(OR($B41=\"\",COUNTIF($B$10:$B41,$B41)>1,LEN(TRIM($B41))<>10,ISNUMBER(--MID(TRIM($B41),5,1))),\"-\",MAX(COUNT($A$9:$A40)+1))","v":"-"},null,null,null,""]
[{"$f":"IF(OR($B42=\"\",COUNTIF($B$10:$B42,$B42)>1,LEN(TRIM($B42))<>10,ISNUMBER(--MID(TRIM($B42),5,1))),\"-\",MAX(COUNT($A$9:$A41)+1))","v":"-"},null,null,null,""]
[{"$f":"IF(OR($B43=\"\",COUNTIF($B$10:$B43,$B43)>1,LEN(TRIM($B43))<>10,ISNUMBER(--MID(TRIM($B43),5,1))),\"-\",MAX(COUNT($A$9:$A42)+1))","v":"-"},null,null,null,""]
[{"$f":"IF(OR($B44=\"\",COUNTIF($B$10:$B44,$B44)>1,LEN(TRIM($B44))<>10,ISNUMBER(--MID(TRIM($B44),5,1))),\"-\",MAX(COUNT($A$9:$A43)+1))","v":"-"},null,null,null,""]
[{"$f":"IF(OR($B45=\"\",COUNTIF($B$10:$B45,$B45)>1,LEN(TRIM($B45))<>10,ISNUMBER(--MID(TRIM($B45),5,1))),\"-\",MAX(COUNT($A$9:$A44)+1))","v":"-"},null,null,null,""]
[{"$f":"IF(OR($B46=\"\",COUNTIF($B$10:$B46,$B46)>1,LEN(TRIM($B46))<>10,ISNUMBER(--MID(TRIM($B46),5,1))),\"-\",MAX(COUNT($A$9:$A45)+1))","v":"-"},null,null,null,""]
[{"$f":"IF(OR($B47=\"\",COUNTIF($B$10:$B47,$B47)>1,LEN(TRIM($B47))<>10,ISNUMBER(--MID(TRIM($B47),5,1))),\"-\",MAX(COUNT($A$9:$A46)+1))","v":"-"},null,null,null,""]
[{"$f":"IF(OR($B48=\"\",COUNTIF($B$10:$B48,$B48)>1,LEN(TRIM($B48))<>10,ISNUMBER(--MID(TRIM($B48),5,1))),\"-\",MAX(COUNT($A$9:$A47)+1))","v":"-"},null,null,null,""]
[{"$f":"IF(OR($B49=\"\",COUNTIF($B$10:$B49,$B49)>1,LEN(TRIM($B49))<>10,ISNUMBER(--MID(TRIM($B49),5,1))),\"-\",MAX(COUNT($A$9:$A48)+1))","v":"-"},null,null,null,""]
[{"$f":"IF(OR($B50=\"\",COUNTIF($B$10:$B50,$B50)>1,LEN(TRIM($B50))<>10,ISNUMBER(--MID(TRIM($B50),5,1))),\"-\",MAX(COUNT($A$9:$A49)+1))","v":"-"},null,null,null,""]
[{"$f":"IF(OR($B51=\"\",COUNTIF($B$10:$B51,$B51)>1,LEN(TRIM($B51))<>10,ISNUMBER(--MID(TRIM($B51),5,1))),\"-\",MAX(COUNT($A$9:$A50)+1))","v":"-"},null,null,null,""]
[{"$f":"IF(OR($B52=\"\",COUNTIF($B$10:$B52,$B52)>1,LEN(TRIM($B52))<>10,ISNUMBER(--MID(TRIM($B52),5,1))),\"-\",MAX(COUNT($A$9:$A51)+1))","v":"-"},null,null,null,""]
[{"$f":"IF(OR($B53=\"\",COUNTIF($B$10:$B53,$B53)>1,LEN(TRIM($B53))<>10,ISNUMBER(--MID(TRIM($B53),5,1))),\"-\",MAX(COUNT($A$9:$A52)+1))","v":"-"},null,null,null,""]
[{"$f":"IF(OR($B54=\"\",COUNTIF($B$10:$B54,$B54)>1,LEN(TRIM($B54))<>10,ISNUMBER(--MID(TRIM($B54),5,1))),\"-\",MAX(COUNT($A$9:$A53)+1))","v":"-"},null,null,null,""]
[{"$f":"IF(OR($B55=\"\",COUNTIF($B$10:$B55,$B55)>1,LEN(TRIM($B55))<>10,ISNUMBER(--MID(TRIM($B55),5,1))),\"-\",MAX(COUNT($A$9:$A54)+1))","v":"-"},null,null,null,""]
[{"$f":"IF(OR($B56=\"\",COUNTIF($B$10:$B56,$B56)>1,LEN(TRIM($B56))<>10,ISNUMBER(--MID(TRIM($B56),5,1))),\"-\",MAX(COUNT($A$9:$A55)+1))","v":"-"},null,null,null,""]
[{"$f":"IF(OR($B57=\"\",COUNTIF($B$10:$B57,$B57)>1,LEN(TRIM($B57))<>10,ISNUMBER(--MID(TRIM($B57),5,1))),\"-\",MAX(COUNT($A$9:$A56)+1))","v":"-"},null,null,null,""]
[{"$f":"IF(OR($B58=\"\",COUNTIF($B$10:$B58,$B58)>1,LEN(TRIM($B58))<>10,ISNUMBER(--MID(TRIM($B58),5,1))),\"-\",MAX(COUNT($A$9:$A57)+1))","v":"-"},null,null,null,""]
[{"$f":"IF(OR($B59=\"\",COUNTIF($B$10:$B59,$B59)>1,LEN(TRIM($B59))<>10,ISNUMBER(--MID(TRIM($B59),5,1))),\"-\",MAX(COUNT($A$9:$A58)+1))","v":"-"},null,null,null,""]
[{"$f":"IF(OR($B60=\"\",COUNTIF($B$10:$B60,$B60)>1,LEN(TRIM($B60))<>10,ISNUMBER(--MID(TRIM($B60),5,1))),\"-\",MAX(COUNT($A$9:$A59)+1))","v":"-"},null,null,null,""]
[{"$f":"IF(OR($B61=\"\",COUNTIF($B$10:$B61,$B61)>1,LEN(TRIM($B61))<>10,ISNUMBER(--MID(TRIM($B61),5,1))),\"-\",MAX(COUNT($A$9:$A60)+1))","v":"-"},null,null,null,""]
[{"$f":"IF(OR($B62=\"\",COUNTIF($B$10:$B62,$B62)>1,LEN(TRIM($B62))<>10,ISNUMBER(--MID(TRIM($B62),5,1))),\"-\",MAX(COUNT($A$9:$A61)+1))","v":"-"},null,null,null,""]
[{"$f":"IF(OR($B63=\"\",COUNTIF($B$10:$B63,$B63)>1,LEN(TRIM($B63))<>10,ISNUMBER(--MID(TRIM($B63),5,1))),\"-\",MAX(COUNT($A$9:$A62)+1))","v":"-"},null,null,null,""]
[{"$f":"IF(OR($B64=\"\",COUNTIF($B$10:$B64,$B64)>1,LEN(TRIM($B64))<>10,ISNUMBER(--MID(TRIM($B64),5,1))),\"-\",MAX(COUNT($A$9:$A63)+1))","v":"-"},null,null,null,""]
[{"$f":"IF(OR($B65=\"\",COUNTIF($B$10:$B65,$B65)>1,LEN(TRIM($B65))<>10,ISNUMBER(--MID(TRIM($B65),5,1))),\"-\",MAX(COUNT($A$9:$A64)+1))","v":"-"},null,null,null,""]
[{"$f":"IF(OR($B66=\"\",COUNTIF($B$10:$B66,$B66)>1,LEN(TRIM($B66))<>10,ISNUMBER(--MID(TRIM($B66),5,1))),\"-\",MAX(COUNT($A$9:$A65)+1))","v":"-"},null,null,null,""]
[{"$f":"IF(OR($B67=\"\",COUNTIF($B$10:$B67,$B67)>1,LEN(TRIM($B67))<>10,ISNUMBER(--MID(TRIM($B67),5,1))),\"-\",MAX(COUNT($A$9:$A66)+1))","v":"-"},null,null,null,""]
[{"$f":"IF(OR($B68=\"\",COUNTIF($B$10:$B68,$B68)>1,LEN(TRIM($B68))<>10,ISNUMBER(--MID(TRIM($B68),5,1))),\"-\",MAX(COUNT($A$9:$A67)+1))","v":"-"},null,null,null,""]
[{"$f":"IF(OR($B69=\"\",COUNTIF($B$10:$B69,$B69)>1,LEN(TRIM($B69))<>10,ISNUMBER(--MID(TRIM($B69),5,1))),\"-\",MAX(COUNT($A$9:$A68)+1))","v":"-"},null,null,null,""]
[{"$f":"IF(OR($B70=\"\",COUNTIF($B$10:$B70,$B70)>1,LEN(TRIM($B70))<>10,ISNUMBER(--MID(TRIM($B70),5,1))),\"-\",MAX(COUNT($A$9:$A69)+1))","v":"-"},null,null,null,""]
[{"$f":"IF(OR($B71=\"\",COUNTIF($B$10:$B71,$B71)>1,LEN(TRIM($B71))<>10,ISNUMBER(--MID(TRIM($B71),5,1))),\"-\",MAX(COUNT($A$9:$A70)+1))","v":"-"},null,null,null,""]
[{"$f":"IF(OR($B72=\"\",COUNTIF($B$10:$B72,$B72)>1,LEN(TRIM($B72))<>10,ISNUMBER(--MID(TRIM($B72),5,1))),\"-\",MAX(COUNT($A$9:$A71)+1))","v":"-"},null,null,null,""]
[{"$f":"IF(OR($B73=\"\",COUNTIF($B$10:$B73,$B73)>1,LEN(TRIM($B73))<>10,ISNUMBER(--MID(TRIM($B73),5,1))),\"-\",MAX(COUNT($A$9:$A72)+1))","v":"-"},null,null,null,""]
[{"$f":"IF(OR($B74=\"\",COUNTIF($B$10:$B74,$B74)>1,LEN(TRIM($B74))<>10,ISNUMBER(--MID(TRIM($B74),5,1))),\"-\",MAX(COUNT($A$9:$A73)+1))","v":"-"},null,null,null,""]
[{"$f":"IF(OR($B75=\"\",COUNTIF($B$10:$B75,$B75)>1,LEN(TRIM($B75))<>10,ISNUMBER(--MID(TRIM($B75),5,1))),\"-\",MAX(COUNT($A$9:$A74)+1))","v":"-"},null,null,null,""]
[{"$f":"IF(OR($B76=\"\",COUNTIF($B$10:$B76,$B76)>1,LEN(TRIM($B76))<>10,ISNUMBER(--MID(TRIM($B76),5,1))),\"-\",MAX(COUNT($A$9:$A75)+1))","v":"-"},null,null,null,{"$f":"IF(D76=\"\",\"\",D76-D75)","v":""}]
[{"$f":"IF(OR($B77=\"\",COUNTIF($B$10:$B77,$B77)>1,LEN(TRIM($B77))<>10,ISNUMBER(--MID(TRIM($B77),5,1))),\"-\",MAX(COUNT($A$9:$A76)+1))","v":"-"},null,null,null,""]
[{"$f":"IF(OR($B78=\"\",COUNTIF($B$10:$B78,$B78)>1,LEN(TRIM($B78))<>10,ISNUMBER(--MID(TRIM($B78),5,1))),\"-\",MAX(COUNT($A$9:$A77)+1))","v":"-"},null,null,null,""]
[{"$f":"IF(OR($B79=\"\",COUNTIF($B$10:$B79,$B79)>1,LEN(TRIM($B79))<>10,ISNUMBER(--MID(TRIM($B79),5,1))),\"-\",MAX(COUNT($A$9:$A78)+1))","v":"-"},null,null,null,""]
["รวมของขาย|ของเสีย|เหลือบนเชลฟ์",null,null,null,null,null,{"$f":"SUM(G10:G79)","v":0},0,0,{"$f":"SUM(J10:J79)","v":0},0,0,0,0,0,0,0,0,0,0,0,0,0,0,0,0,0,0,0,0,0,0,0,0,0,0,0,0,0,0,0,0,0,0,0,0,0,0,0,0,0,0,0,0,0,0,0,0,0,0,0,0,0,0,0,0,0,0,0,0,0,0,0,{"$f":"SUM(BV10:BV79)","v":0},0,0,0,0,0,0,0,0,0,0,0,0,0,0,0,0,0,0,0,0,0,0,0,0,0,0,0,0,0,0,0,0,0,0,0,0,0,0,0,0,0,0,0,0,0,0,0,0,0,0,0,0,0,0,0,0,0,0,0,0,0,{"$f":"SUM(EF10:EF79)","v":0},0,0,{"$f":"SUM(EI10:EI79)","v":0},0,0,0,0,0,{"$f":"SUM(EO10:EO79)","v":0},0,0,0,0,0,"รวมเงินเชื่อ","รวมเงินสด","ภาษี","รวมยอดขาย"]
["ของเหลือ",null,null,null,null,null,{"$f":"G80+H80-G9","v":0},null,null,{"$f":"J80+K80-J9","v":0},null,null,{"$f":"M80+N80-M9","v":0},null,null,{"$f":"P80+Q80-P9","v":0},null,null,{"$f":"S80+T80-S9","v":0},null,null,{"$f":"V80+W80-V9","v":0},null,null,{"$f":"Y80+Z80-Y9","v":0},null,null,{"$f":"AB80+AC80-AB9","v":0},null,null,{"$f":"AE80+AF80-AE9","v":0},null,null,{"$f":"AH80+AI80-AH9","v":0},null,null,{"$f":"AK80+AL80-AK9","v":0},null,null,{"$f":"AN80+AO80-AN9","v":0},null,null,{"$f":"AQ80+AR80-AQ9","v":0},null,null,{"$f":"AT80+AU80-AT9","v":0},null,null,{"$f":"AW80+AX80-AW9","v":0},null,null,{"$f":"AZ80+BA80-AZ9","v":0},null,null,{"$f":"BC80+BD80-BC9","v":0},null,null,{"$f":"BF80+BG80-BF9","v":0},null,null,{"$f":"BI80+BJ80-BI9","v":0},null,null,{"$f":"BL80+BM80-BL9","v":0},null,null,{"$f":"BO80+BP80-BO9","v":0},null,null,{"$f":"BR80+BS80-BR9","v":0},null,null,{"$f":"BU80+BV80-BU9","v":0},null,null,{"$f":"BX80+BY80-BX9","v":0},null,null,{"$f":"CA80+CB80-CA9","v":0},null,null,{"$f":"CD80+CE80-CD9","v":0},null,null,{"$f":"CG80+CH80-CG9","v":0},null,null,{"$f":"CJ80+CK80-CJ9","v":0},null,null,{"$f":"CM80+CN80-CM9","v":0},null,null,{"$f":"CP80+CQ80-CP9","v":0},null,null,{"$f":"CS80+CT80-CS9","v":0},null,null,{"$f":"CV80+CW80-CV9","v":0},null,null,{"$f":"CY80+CZ80-CY9","v":0},null,null,{"$f":"DB80+DC80-DB9","v":0},null,null,{"$f":"DE80+DF80-DE9","v":0},null,null,{"$f":"DH80+DI80-DH9","v":0},null,null,{"$f":"DK80+DL80-DK9","v":0},null,null,{"$f":"DN80+DO80-DN9","v":0},null,null,{"$f":"DQ80+DR80-DQ9","v":0},null,null,{"$f":"DT80+DU80-DT9","v":0},null,null,{"$f":"DW80+DX80-DW9","v":0},null,null,{"$f":"DZ80+EA80-DZ9","v":0},null,null,{"$f":"EC80+ED80-EC9","v":0},null,null,{"$f":"EF80+EG80-EF9","v":0},null,null,{"$f":"EI80+EJ80-EI9","v":0},null,null,{"$f":"EL80+EM80-EL9","v":0},null,null,{"$f":"EO80+EP80-EO9","v":0},null,null,{"$f":"ER80+ES80-ER9","v":0},null,null,{"$f":"SUM(EU10:EU79)","v":0},{"$f":"SUM(EV10:EV79)","v":0},{"$f":"SUM(EW10:EW79)","v":0},{"$f":"SUM(EX10:EX79)","v":0}]
["เฉลี่ย",null,null,"เหลือ/เสีย(จริง)",null,null,{"$f":"INDIRECT(\"F\"&ROW($G$87)+ROUNDUP(COLUMNS($G:G)/3,0))","v":0},{"$f":"INDIRECT(\"G\"&ROW($G$87)+ROUNDUP(COLUMNS($G:H)/3,0))","v":0},null,{"$f":"INDIRECT(\"F\"&ROW($G$87)+ROUNDUP(COLUMNS($G:J)/3,0))","v":0},{"$f":"INDIRECT(\"G\"&ROW($G$87)+ROUNDUP(COLUMNS($G:K)/3,0))","v":0},null,{"$f":"INDIRECT(\"F\"&ROW($G$87)+ROUNDUP(COLUMNS($G:M)/3,0))","v":0},{"$f":"INDIRECT(\"G\"&ROW($G$87)+ROUNDUP(COLUMNS($G:N)/3,0))","v":0},null,{"$f":"INDIRECT(\"F\"&ROW($G$87)+ROUNDUP(COLUMNS($G:P)/3,0))","v":0},{"$f":"INDIRECT(\"G\"&ROW($G$87)+ROUNDUP(COLUMNS($G:Q)/3,0))","v":0},null,{"$f":"INDIRECT(\"F\"&ROW($G$87)+ROUNDUP(COLUMNS($G:S)/3,0))","v":0},{"$f":"INDIRECT(\"G\"&ROW($G$87)+ROUNDUP(COLUMNS($G:T)/3,0))","v":0},null,{"$f":"INDIRECT(\"F\"&ROW($G$87)+ROUNDUP(COLUMNS($G:V)/3,0))","v":0},{"$f":"INDIRECT(\"G\"&ROW($G$87)+ROUNDUP(COLUMNS($G:W)/3,0))","v":0},null,{"$f":"INDIRECT(\"F\"&ROW($G$87)+ROUNDUP(COLUMNS($G:Y)/3,0))","v":0},{"$f":"INDIRECT(\"G\"&ROW($G$87)+ROUNDUP(COLUMNS($G:Z)/3,0))","v":0},null,{"$f":"INDIRECT(\"F\"&ROW($G$87)+ROUNDUP(COLUMNS($G:AB)/3,0))","v":0},{"$f":"INDIRECT(\"G\"&ROW($G$87)+ROUNDUP(COLUMNS($G:AC)/3,0))","v":0},null,{"$f":"INDIRECT(\"F\"&ROW($G$87)+ROUNDUP(COLUMNS($G:AE)/3,0))","v":0},{"$f":"INDIRECT(\"G\"&ROW($G$87)+ROUNDUP(COLUMNS($G:AF)/3,0))","v":0},null,{"$f":"INDIRECT(\"F\"&ROW($G$87)+ROUNDUP(COLUMNS($G:AH)/3,0))","v":0},{"$f":"INDIRECT(\"G\"&ROW($G$87)+ROUNDUP(COLUMNS($G:AI)/3,0))","v":0},null,{"$f":"INDIRECT(\"F\"&ROW($G$87)+ROUNDUP(COLUMNS($G:AK)/3,0))","v":0},{"$f":"INDIRECT(\"G\"&ROW($G$87)+ROUNDUP(COLUMNS($G:AL)/3,0))","v":0},null,{"$f":"INDIRECT(\"F\"&ROW($G$87)+ROUNDUP(COLUMNS($G:AN)/3,0))","v":0},{"$f":"INDIRECT(\"G\"&ROW($G$87)+ROUNDUP(COLUMNS($G:AO)/3,0))","v":0},null,{"$f":"INDIRECT(\"F\"&ROW($G$87)+ROUNDUP(COLUMNS($G:AQ)/3,0))","v":0},{"$f":"INDIRECT(\"G\"&ROW($G$87)+ROUNDUP(COLUMNS($G:AR)/3,0))","v":0},null,{"$f":"INDIRECT(\"F\"&ROW($G$87)+ROUNDUP(COLUMNS($G:AT)/3,0))","v":0},{"$f":"INDIRECT(\"G\"&ROW($G$87)+ROUNDUP(COLUMNS($G:AU)/3,0))","v":0},null,{"$f":"INDIRECT(\"F\"&ROW($G$87)+ROUNDUP(COLUMNS($G:AW)/3,0))","v":0},{"$f":"INDIRECT(\"G\"&ROW($G$87)+ROUNDUP(COLUMNS($G:AX)/3,0))","v":0},null,{"$f":"INDIRECT(\"F\"&ROW($G$87)+ROUNDUP(COLUMNS($G:AZ)/3,0))","v":0},{"$f":"INDIRECT(\"G\"&ROW($G$87)+ROUNDUP(COLUMNS($G:BA)/3,0))","v":0},null,{"$f":"INDIRECT(\"F\"&ROW($G$87)+ROUNDUP(COLUMNS($G:BC)/3,0))","v":0},{"$f":"INDIRECT(\"G\"&ROW($G$87)+ROUNDUP(COLUMNS($G:BD)/3,0))","v":0},null,{"$f":"INDIRECT(\"F\"&ROW($G$87)+ROUNDUP(COLUMNS($G:BF)/3,0))","v":0},{"$f":"INDIRECT(\"G\"&ROW($G$87)+ROUNDUP(COLUMNS($G:BG)/3,0))","v":0},null,{"$f":"INDIRECT(\"F\"&ROW($G$87)+ROUNDUP(COLUMNS($G:BI)/3,0))","v":0},{"$f":"INDIRECT(\"G\"&ROW($G$87)+ROUNDUP(COLUMNS($G:BJ)/3,0))","v":0},null,{"$f":"INDIRECT(\"F\"&ROW($G$87)+ROUNDUP(COLUMNS($G:BL)/3,0))","v":0},{"$f":"INDIRECT(\"G\"&ROW($G$87)+ROUNDUP(COLUMNS($G:BM)/3,0))","v":0},null,{"$f":"INDIRECT(\"F\"&ROW($G$87)+ROUNDUP(COLUMNS($G:BO)/3,0))","v":0},{"$f":"INDIRECT(\"G\"&ROW($G$87)+ROUNDUP(COLUMNS($G:BP)/3,0))","v":0},null,{"$f":"INDIRECT(\"F\"&ROW($G$87)+ROUNDUP(COLUMNS($G:BR)/3,0))","v":0},{"$f":"INDIRECT(\"G\"&ROW($G$87)+ROUNDUP(COLUMNS($G:BS)/3,0))","v":0},null,{"$f":"INDIRECT(\"F\"&ROW($G$87)+ROUNDUP(COLUMNS($G:BU)/3,0))","v":0},{"$f":"INDIRECT(\"G\"&ROW($G$87)+ROUNDUP(COLUMNS($G:BV)/3,0))","v":0},null,{"$f":"INDIRECT(\"F\"&ROW($G$87)+ROUNDUP(COLUMNS($G:BX)/3,0))","v":0},{"$f":"INDIRECT(\"G\"&ROW($G$87)+ROUNDUP(COLUMNS($G:BY)/3,0))","v":0},null,{"$f":"INDIRECT(\"F\"&ROW($G$87)+ROUNDUP(COLUMNS($G:CA)/3,0))","v":0},{"$f":"INDIRECT(\"G\"&ROW($G$87)+ROUNDUP(COLUMNS($G:CB)/3,0))","v":0},null,{"$f":"INDIRECT(\"F\"&ROW($G$87)+ROUNDUP(COLUMNS($G:CD)/3,0))","v":0},{"$f":"INDIRECT(\"G\"&ROW($G$87)+ROUNDUP(COLUMNS($G:CE)/3,0))","v":0},null,{"$f":"INDIRECT(\"F\"&ROW($G$87)+ROUNDUP(COLUMNS($G:CG)/3,0))","v":0},{"$f":"INDIRECT(\"G\"&ROW($G$87)+ROUNDUP(COLUMNS($G:CH)/3,0))","v":0},null,{"$f":"INDIRECT(\"F\"&ROW($G$87)+ROUNDUP(COLUMNS($G:CJ)/3,0))","v":0},{"$f":"INDIRECT(\"G\"&ROW($G$87)+ROUNDUP(COLUMNS($G:CK)/3,0))","v":0},null,{"$f":"INDIRECT(\"F\"&ROW($G$87)+ROUNDUP(COLUMNS($G:CM)/3,0))","v":0},{"$f":"INDIRECT(\"G\"&ROW($G$87)+ROUNDUP(COLUMNS($G:CN)/3,0))","v":0},null,{"$f":"INDIRECT(\"F\"&ROW($G$87)+ROUNDUP(COLUMNS($G:CP)/3,0))","v":0},{"$f":"INDIRECT(\"G\"&ROW($G$87)+ROUNDUP(COLUMNS($G:CQ)/3,0))","v":0},null,{"$f":"INDIRECT(\"F\"&ROW($G$87)+ROUNDUP(COLUMNS($G:CS)/3,0))","v":0},{"$f":"INDIRECT(\"G\"&ROW($G$87)+ROUNDUP(COLUMNS($G:CT)/3,0))","v":0},null,{"$f":"INDIRECT(\"F\"&ROW($G$87)+ROUNDUP(COLUMNS($G:CV)/3,0))","v":0},{"$f":"INDIRECT(\"G\"&ROW($G$87)+ROUNDUP(COLUMNS($G:CW)/3,0))","v":0},null,{"$f":"INDIRECT(\"F\"&ROW($G$87)+ROUNDUP(COLUMNS($G:CY)/3,0))","v":0},{"$f":"INDIRECT(\"G\"&ROW($G$87)+ROUNDUP(COLUMNS($G:CZ)/3,0))","v":0},null,{"$f":"INDIRECT(\"F\"&ROW($G$87)+ROUNDUP(COLUMNS($G:DB)/3,0))","v":0},{"$f":"INDIRECT(\"G\"&ROW($G$87)+ROUNDUP(COLUMNS($G:DC)/3,0))","v":0},null,{"$f":"INDIRECT(\"F\"&ROW($G$87)+ROUNDUP(COLUMNS($G:DE)/3,0))","v":0},{"$f":"INDIRECT(\"G\"&ROW($G$87)+ROUNDUP(COLUMNS($G:DF)/3,0))","v":0},null,{"$f":"INDIRECT(\"F\"&ROW($G$87)+ROUNDUP(COLUMNS($G:DH)/3,0))","v":0},{"$f":"INDIRECT(\"G\"&ROW($G$87)+ROUNDUP(COLUMNS($G:DI)/3,0))","v":0},null,{"$f":"INDIRECT(\"F\"&ROW($G$87)+ROUNDUP(COLUMNS($G:DK)/3,0))","v":0},{"$f":"INDIRECT(\"G\"&ROW($G$87)+ROUNDUP(COLUMNS($G:DL)/3,0))","v":0},null,{"$f":"INDIRECT(\"F\"&ROW($G$87)+ROUNDUP(COLUMNS($G:DN)/3,0))","v":0},{"$f":"INDIRECT(\"G\"&ROW($G$87)+ROUNDUP(COLUMNS($G:DO)/3,0))","v":0},null,{"$f":"INDIRECT(\"F\"&ROW($G$87)+ROUNDUP(COLUMNS($G:DQ)/3,0))","v":0},{"$f":"INDIRECT(\"G\"&ROW($G$87)+ROUNDUP(COLUMNS($G:DR)/3,0))","v":0},null,{"$f":"INDIRECT(\"F\"&ROW($G$87)+ROUNDUP(COLUMNS($G:DT)/3,0))","v":0},{"$f":"INDIRECT(\"G\"&ROW($G$87)+ROUNDUP(COLUMNS($G:DU)/3,0))","v":0},null,{"$f":"INDIRECT(\"F\"&ROW($G$87)+ROUNDUP(COLUMNS($G:DW)/3,0))","v":0},{"$f":"INDIRECT(\"G\"&ROW($G$87)+ROUNDUP(COLUMNS($G:DX)/3,0))","v":0},null,{"$f":"INDIRECT(\"F\"&ROW($G$87)+ROUNDUP(COLUMNS($G:DZ)/3,0))","v":0},{"$f":"INDIRECT(\"G\"&ROW($G$87)+ROUNDUP(COLUMNS($G:EA)/3,0))","v":0},null,{"$f":"INDIRECT(\"F\"&ROW($G$87)+ROUNDUP(COLUMNS($G:EC)/3,0))","v":0},{"$f":"INDIRECT(\"G\"&ROW($G$87)+ROUNDUP(COLUMNS($G:ED)/3,0))","v":0},null,{"$f":"INDIRECT(\"F\"&ROW($G$87)+ROUNDUP(COLUMNS($G:EF)/3,0))","v":0},{"$f":"INDIRECT(\"G\"&ROW($G$87)+ROUNDUP(COLUMNS($G:EG)/3,0))","v":0},null,{"$f":"INDIRECT(\"F\"&ROW($G$87)+ROUNDUP(COLUMNS($G:EI)/3,0))","v":0},{"$f":"INDIRECT(\"G\"&ROW($G$87)+ROUNDUP(COLUMNS($G:EJ)/3,0))","v":0},null,{"$f":"INDIRECT(\"F\"&ROW($G$87)+ROUNDUP(COLUMNS($G:EL)/3,0))","v":0},{"$f":"INDIRECT(\"G\"&ROW($G$87)+ROUNDUP(COLUMNS($G:EM)/3,0))","v":0},null,{"$f":"INDIRECT(\"F\"&ROW($G$87)+ROUNDUP(COLUMNS($G:EO)/3,0))","v":0},{"$f":"INDIRECT(\"G\"&ROW($G$87)+ROUNDUP(COLUMNS($G:EP)/3,0))","v":0},null,{"$f":"INDIRECT(\"F\"&ROW($G$87)+ROUNDUP(COLUMNS($G:ER)/3,0))","v":0},{"$f":"INDIRECT(\"G\"&ROW($G$87)+ROUNDUP(COLUMNS($G:ES)/3,0))","v":0},null,{"$f":"EU81+EV81","v":0}]
["เวลากลับถึงสำนักงานเช็คของเสีย",null,null,{"$f":"D139","v":"00:00:00"},null,"ผลต่าง",{"$f":"G82+H82+G80-G9","v":0},null,null,{"$f":"J82+K82+J80-J9","v":0},null,null,{"$f":"M82+N82+M80-M9","v":0},null,null,{"$f":"P82+Q82+P80-P9","v":0},null,null,{"$f":"S82+T82+S80-S9","v":0},null,null,{"$f":"V82+W82+V80-V9","v":0},null,null,{"$f":"Y82+Z82+Y80-Y9","v":0},null,null,{"$f":"AB82+AC82+AB80-AB9","v":0},null,null,{"$f":"AE82+AF82+AE80-AE9","v":0},null,null,{"$f":"AH82+AI82+AH80-AH9","v":0},null,null,{"$f":"AK82+AL82+AK80-AK9","v":0},null,null,{"$f":"AN82+AO82+AN80-AN9","v":0},null,null,{"$f":"AQ82+AR82+AQ80-AQ9","v":0},null,null,{"$f":"AT82+AU82+AT80-AT9","v":0},null,null,{"$f":"AW82+AX82+AW80-AW9","v":0},null,null,{"$f":"AZ82+BA82+AZ80-AZ9","v":0},null,null,{"$f":"BC82+BD82+BC80-BC9","v":0},null,null,{"$f":"BF82+BG82+BF80-BF9","v":0},null,null,{"$f":"BI82+BJ82+BI80-BI9","v":0},null,null,{"$f":"BL82+BM82+BL80-BL9","v":0},null,null,{"$f":"BO82+BP82+BO80-BO9","v":0},null,null,{"$f":"BR82+BS82+BR80-BR9","v":0},null,null,{"$f":"BU82+BV82+BU80-BU9","v":0},null,null,{"$f":"BX82+BY82+BX80-BX9","v":0},null,null,{"$f":"CA82+CB82+CA80-CA9","v":0},null,null,{"$f":"CD82+CE82+CD80-CD9","v":0},null,null,{"$f":"CG82+CH82+CG80-CG9","v":0},null,null,{"$f":"CJ82+CK82+CJ80-CJ9","v":0},null,null,{"$f":"CM82+CN82+CM80-CM9","v":0},null,null,{"$f":"CP82+CQ82+CP80-CP9","v":0},null,null,{"$f":"CS82+CT82+CS80-CS9","v":0},null,null,{"$f":"CV82+CW82+CV80-CV9","v":0},null,null,{"$f":"CY82+CZ82+CY80-CY9","v":0},null,null,{"$f":"DB82+DC82+DB80-DB9","v":0},null,null,{"$f":"DE82+DF82+DE80-DE9","v":0},null,null,{"$f":"DH82+DI82+DH80-DH9","v":0},null,null,{"$f":"DK82+DL82+DK80-DK9","v":0},null,null,{"$f":"DN82+DO82+DN80-DN9","v":0},null,null,{"$f":"DQ82+DR82+DQ80-DQ9","v":0},null,null,{"$f":"DT82+DU82+DT80-DT9","v":0},null,null,{"$f":"DW82+DX82+DW80-DW9","v":0},null,null,{"$f":"DZ82+EA82+DZ80-DZ9","v":0},null,null,{"$f":"EC82+ED82+EC80-EC9","v":0},null,null,{"$f":"EF82+EG82+EF80-EF9","v":0},null,null,{"$f":"EI82+EJ82+EI80-EI9","v":0},null,null,{"$f":"EL82+EM82+EL80-EL9","v":0},null,null,{"$f":"EO82+EP82+EO80-EO9","v":0},null,null,{"$f":"ER82+ES82+ER80-ER9","v":0}]
["เป็นเงิน",null,null,null,null,null,{"$f":"G8*G83","v":0},null,null,{"$f":"J8*J83","v":0},null,null,{"$f":"M8*M83","v":0},null,null,{"$f":"P8*P83","v":0},null,null,{"$f":"S8*S83","v":0},null,null,{"$f":"V8*V83","v":0},null,null,{"$f":"Y8*Y83","v":0},null,null,{"$f":"AB8*AB83","v":0},null,null,{"$f":"AE8*AE83","v":0},null,null,{"$f":"AH8*AH83","v":0},null,null,{"$f":"AK8*AK83","v":0},null,null,{"$f":"AN8*AN83","v":0},null,null,{"$f":"AQ8*AQ83","v":0},null,null,{"$f":"AT8*AT83","v":0},null,null,{"$f":"AW8*AW83","v":0},null,null,{"$f":"AZ8*AZ83","v":0},null,null,{"$f":"BC8*BC83","v":0},null,null,{"$f":"BF8*BF83","v":0},null,null,{"$f":"BI8*BI83","v":0},null,null,{"$f":"BL8*BL83","v":0},null,null,{"$f":"BO8*BO83","v":0},null,null,{"$f":"BR8*BR83","v":0},null,null,{"$f":"BU8*BU83","v":0},null,null,{"$f":"BX8*BX83","v":0},null,null,{"$f":"CA8*CA83","v":0},null,null,{"$f":"CD8*CD83","v":0},null,null,{"$f":"CG8*CG83","v":0},null,null,{"$f":"CJ8*CJ83","v":0},null,null,{"$f":"CM8*CM83","v":0},null,null,{"$f":"CP8*CP83","v":0},null,null,{"$f":"CS8*CS83","v":0},null,null,{"$f":"CV8*CV83","v":0},null,null,{"$f":"CY8*CY83","v":0},null,null,{"$f":"DB8*DB83","v":0},null,null,{"$f":"DE8*DE83","v":0},null,null,{"$f":"DH8*DH83","v":0},null,null,{"$f":"DK8*DK83","v":0},null,null,{"$f":"DN8*DN83","v":0},null,null,{"$f":"DQ8*DQ83","v":0},null,null,{"$f":"DT8*DT83","v":0},null,null,{"$f":"DW8*DW83","v":0},null,null,0,null,null,{"$f":"EC8*EC83","v":0},null,null,{"$f":"EF8*EF83","v":0},null,null,{"$f":"EI8*EI83","v":0},null,null,{"$f":"EL8*EL83","v":0},null,null,{"$f":"EO8*EO83","v":0},null,null,{"$f":"ER8*ER83","v":0},null,null,{"$f":"$AP$98","v":0}]
[null,null,null,"ผู้จัดทำ……………………………………………………………………",null,null,null,null,null,null,null,null,null,null,null,null,null,null,null,null,null,null,null,"ผู้ตรวจ(ผจก.)………………………………………………………………………………."]
[null,null,"ใบจ่ายสินค้า",null,null,null,null,null,null,null,null,null,null,null,null,null,null,{"$f":"IF(ISODD(COLUMN()),MAX($F$86:Q$86)+1,\"\")","v":""}]
["ราคา","ลำดับ","รายการ","ยกมา","เบิก","เหลือ","เสีย","โอนเข้า","โอนออก","ชำรุด","รวม",null,"ขาย",null,"ขาด/เกิน",null,"บาท",null,null,null,"ขายได้",null,"ควรเบิก",null,"หมายเหตุ",null,null,null,"เสีย PDA","เสียจริง","เหลือ PDA","ผลต่าง","เหลือลูกค้า","หมายเหตุ",null,null,null,null,"Price","Quantity","Baht","Deduct"]
[{"$f":"IF(B88=\"\",0,INDEX(Price_List,ROWS($88:88)))","v":20},{"$f":"IF($C88=\"\",\"\",COUNTA($C$88:$C88))","v":1},{"$f":"IF(INDEX(INDIRECT(\"Product_List\"),ROWS($88:88))=\"\",\"\",INDEX(INDIRECT(\"Product_List\"),ROWS($88:88)))","v":"01-ขนมปังหมูหยองน้ำสลัด"},{"$f":"ยอดยกมา","v":0},null,null,null,null,null,null,{"$f":"D88+E88+J88-I88+H88","v":0},null,{"$f":"INDIRECT(ADDRESS(ROW(A$80),ROW()-ROW(A$80)+(ROWS($88:88)-1)*2-1,4))","v":0},null,{"$f":"F88+G88+M88+J88-K88","v":0},null,{"$f":"O88*A88","v":0},null,null,null,{"$f":"D88+E88-F88-G88","v":0},null,{"$f":"U88*6%+U88","v":0},null,null,null,null,null,{"$f":"INDIRECT(ADDRESS(ROW(A$80),ROW()-ROW(A$80)+(ROWS($88:88)-1)*2,4))","v":0},{"$f":"$G88","v":0},null,{"$f":"$F88-$AE88","v":0},{"$f":"INDIRECT(ADDRESS(ROW(A$80),ROW()-ROW(A$80)+(ROWS($88:88)-1)*2+1,4))","v":0},null,null,null,null,null,10,{"$f":"SUMPRODUCT(($A$88:$A$135=$AM88)*(($F$88:$F$135)+($G$88:$G$135)+($M$88:$M$135)+($J$88:$J$135)-($K$88:$K$135)))","v":0},{"$f":"AM88*AN88","v":0},{"$f":"IF(AO88<0,AO88,0)","v":0}]
[{"$f":"IF(B89=\"\",0,INDEX(Price_List,ROWS($88:89)))","v":20},{"$f":"IF($C89=\"\",\"\",COUNTA($C$88:$C89))","v":2},{"$f":"IF(INDEX(INDIRECT(\"Product_List\"),ROWS($88:89))=\"\",\"\",INDEX(INDIRECT(\"Product_List\"),ROWS($88:89)))","v":"02-ขนมปังหมูหยองน้ำพริกเผา"},{"$f":"ยอดยกมา","v":0},null,null,null,null,null,null,{"$f":"D89+E89+J89-I89+H89","v":0},null,{"$f":"INDIRECT(ADDRESS(ROW(A$80),ROW()-ROW(A$80)+(ROWS($88:89)-1)*2-1,4))","v":0},null,{"$f":"F89+G89+M89+J89-K89","v":0},null,{"$f":"O89*A89","v":0},null,null,null,{"$f":"D89+E89-F89-G89","v":0},null,{"$f":"U89*6%+U89","v":0},null,null,null,null,null,{"$f":"INDIRECT(ADDRESS(ROW(A$80),ROW()-ROW(A$80)+(ROWS($88:89)-1)*2,4))","v":0},{"$f":"$G89","v":0},null,{"$f":"$F89-$AE89","v":0},{"$f":"INDIRECT(ADDRESS(ROW(A$80),ROW()-ROW(A$80)+(ROWS($88:89)-1)*2+1,4))","v":0},null,null,null,null,null,12,0,{"$f":"AM89*AN89","v":0},{"$f":"IF(AO89<0,AO89,0)","v":0}]
[{"$f":"IF(B90=\"\",0,INDEX(Price_List,ROWS($88:90)))","v":20},{"$f":"IF($C90=\"\",\"\",COUNTA($C$88:$C90))","v":3},{"$f":"IF(INDEX(INDIRECT(\"Product_List\"),ROWS($88:90))=\"\",\"\",INDEX(INDIRECT(\"Product_List\"),ROWS($88:90)))","v":"03-ขนมปังไก่หยองน้ำสลัด"},{"$f":"ยอดยกมา","v":0},null,null,null,null,null,null,0,null,{"$f":"INDIRECT(ADDRESS(ROW(A$80),ROW()-ROW(A$80)+(ROWS($88:90)-1)*2-1,4))","v":0},null,0,null,0,null,null,null,0,null,0,null,null,null,null,null,{"$f":"INDIRECT(ADDRESS(ROW(A$80),ROW()-ROW(A$80)+(ROWS($88:90)-1)*2,4))","v":0},0,null,0,{"$f":"INDIRECT(ADDRESS(ROW(A$80),ROW()-ROW(A$80)+(ROWS($88:90)-1)*2+1,4))","v":0},null,null,null,null,null,13,0,0,0]
[{"$f":"IF(B91=\"\",0,INDEX(Price_List,ROWS($88:91)))","v":15},{"$f":"IF($C91=\"\",\"\",COUNTA($C$88:$C91))","v":4},{"$f":"IF(INDEX(INDIRECT(\"Product_List\"),ROWS($88:91))=\"\",\"\",INDEX(INDIRECT(\"Product_List\"),ROWS($88:91)))","v":"04-ขนมปังไส้ครีมสลัด"},{"$f":"ยอดยกมา","v":0},null,null,null,null,null,null,0,null,{"$f":"INDIRECT(ADDRESS(ROW(A$80),ROW()-ROW(A$80)+(ROWS($88:91)-1)*2-1,4))","v":0},null,{"$f":"F91+G91+M91+J91-K91","v":0},null,0,null,null,null,0,null,0,null,null,null,null,null,{"$f":"INDIRECT(ADDRESS(ROW(A$80),ROW()-ROW(A$80)+(ROWS($88:91)-1)*2,4))","v":0},0,null,0,{"$f":"INDIRECT(ADDRESS(ROW(A$80),ROW()-ROW(A$80)+(ROWS($88:91)-1)*2+1,4))","v":0},null,null,null,null,null,15,0,0,0]
[{"$f":"IF(B92=\"\",0,INDEX(Price_List,ROWS($88:92)))","v":15},{"$f":"IF($C92=\"\",\"\",COUNTA($C$88:$C92))","v":5},{"$f":"IF(INDEX(INDIRECT(\"Product_List\"),ROWS($88:92))=\"\",\"\",INDEX(INDIRECT(\"Product_List\"),ROWS($88:92)))","v":"05-ขนมปังเนยสด"},{"$f":"ยอดยกมา","v":0},null,null,null,null,null,null,0,null,{"$f":"INDIRECT(ADDRESS(ROW(A$80),ROW()-ROW(A$80)+(ROWS($88:92)-1)*2-1,4))","v":0},null,0,null,0,null,null,null,0,null,0,null,null,null,null,null,{"$f":"INDIRECT(ADDRESS(ROW(A$80),ROW()-ROW(A$80)+(ROWS($88:92)-1)*2,4))","v":0},0,null,0,{"$f":"INDIRECT(ADDRESS(ROW(A$80),ROW()-ROW(A$80)+(ROWS($88:92)-1)*2+1,4))","v":0},null,null,null,null,null,16,0,0,0]
[{"$f":"IF(B93=\"\",0,INDEX(Price_List,ROWS($88:93)))","v":10},{"$f":"IF($C93=\"\",\"\",COUNTA($C$88:$C93))","v":6},{"$f":"IF(INDEX(INDIRECT(\"Product_List\"),ROWS($88:93))=\"\",\"\",INDEX(INDIRECT(\"Product_List\"),ROWS($88:93)))","v":"06-ขนมปังไส้สังขยาเล็ก"},{"$f":"ยอดยกมา","v":0},null,null,null,null,null,null,0,null,{"$f":"INDIRECT(ADDRESS(ROW(A$80),ROW()-ROW(A$80)+(ROWS($88:93)-1)*2-1,4))","v":0},null,0,null,0,null,null,null,0,null,0,null,null,null,null,null,{"$f":"INDIRECT(ADDRESS(ROW(A$80),ROW()-ROW(A$80)+(ROWS($88:93)-1)*2,4))","v":0},0,null,0,{"$f":"INDIRECT(ADDRESS(ROW(A$80),ROW()-ROW(A$80)+(ROWS($88:93)-1)*2+1,4))","v":0},null,null,null,null,null,18,0,0,0]
[{"$f":"IF(B94=\"\",0,INDEX(Price_List,ROWS($88:94)))","v":10},{"$f":"IF($C94=\"\",\"\",COUNTA($C$88:$C94))","v":7},{"$f":"IF(INDEX(INDIRECT(\"Product_List\"),ROWS($88:94))=\"\",\"\",INDEX(INDIRECT(\"Product_List\"),ROWS($88:94)))","v":"07-ขนมปังไส้เผือก"},{"$f":"ยอดยกมา","v":0},null,null,null,null,null,null,0,null,{"$f":"INDIRECT(ADDRESS(ROW(A$80),ROW()-ROW(A$80)+(ROWS($88:94)-1)*2-1,4))","v":0},null,0,null,0,null,null,null,0,null,0,null,null,null,null,null,{"$f":"INDIRECT(ADDRESS(ROW(A$80),ROW()-ROW(A$80)+(ROWS($88:94)-1)*2,4))","v":0},0,null,0,{"$f":"INDIRECT(ADDRESS(ROW(A$80),ROW()-ROW(A$80)+(ROWS($88:94)-1)*2+1,4))","v":0},null,null,null,null,null,20,0,0,0]
[{"$f":"IF(B95=\"\",0,INDEX(Price_List,ROWS($88:95)))","v":10},{"$f":"IF($C95=\"\",\"\",COUNTA($C$88:$C95))","v":8},{"$f":"IF(INDEX(INDIRECT(\"Product_List\"),ROWS($88:95))=\"\",\"\",INDEX(INDIRECT(\"Product_List\"),ROWS($88:95)))","v":"08-ขนมปังไส้ถั่วแดง"},{"$f":"ยอดยกมา","v":0},null,null,null,null,null,null,0,null,{"$f":"INDIRECT(ADDRESS(ROW(A$80),ROW()-ROW(A$80)+(ROWS($88:95)-1)*2-1,4))","v":0},null,0,null,0,null,null,null,0,null,0,null,null,null,null,null,{"$f":"INDIRECT(ADDRESS(ROW(A$80),ROW()-ROW(A$80)+(ROWS($88:95)-1)*2,4))","v":0},0,null,0,{"$f":"INDIRECT(ADDRESS(ROW(A$80),ROW()-ROW(A$80)+(ROWS($88:95)-1)*2+1,4))","v":0},null,null,null,null,null,22,0,0,0]
[{"$f":"IF(B96=\"\",0,INDEX(Price_List,ROWS($88:96)))","v":10},{"$f":"IF($C96=\"\",\"\",COUNTA($C$88:$C96))","v":9},{"$f":"IF(INDEX(INDIRECT(\"Product_List\"),ROWS($88:96))=\"\",\"\",INDEX(INDIRECT(\"Product_List\"),ROWS($88:96)))","v":"09-ขนมปังไส้ถั่วดำ"},{"$f":"ยอดยกมา","v":0},null,null,null,null,null,null,0,null,{"$f":"INDIRECT(ADDRESS(ROW(A$80),ROW()-ROW(A$80)+(ROWS($88:96)-1)*2-1,4))","v":0},null,0,null,0,null,null,null,0,null,0,null,null,null,null,null,{"$f":"INDIRECT(ADDRESS(ROW(A$80),ROW()-ROW(A$80)+(ROWS($88:96)-1)*2,4))","v":0},0,null,0,{"$f":"INDIRECT(ADDRESS(ROW(A$80),ROW()-ROW(A$80)+(ROWS($88:96)-1)*2+1,4))","v":0},null,null,null,null,null,25,0,0,0]
[{"$f":"IF(B97=\"\",0,INDEX(Price_List,ROWS($88:97)))","v":10},{"$f":"IF($C97=\"\",\"\",COUNTA($C$88:$C97))","v":10},{"$f":"IF(INDEX(INDIRECT(\"Product_List\"),ROWS($88:97))=\"\",\"\",INDEX(INDIRECT(\"Product_List\"),ROWS($88:97)))","v":"10-ขนมปังไส้มันม่วง"},{"$f":"ยอดยกมา","v":0},null,null,null,null,null,null,0,null,{"$f":"INDIRECT(ADDRESS(ROW(A$80),ROW()-ROW(A$80)+(ROWS($88:97)-1)*2-1,4))","v":0},null,0,null,0,null,null,null,0,null,0,null,null,null,null,null,{"$f":"INDIRECT(ADDRESS(ROW(A$80),ROW()-ROW(A$80)+(ROWS($88:97)-1)*2,4))","v":0},0,null,0,{"$f":"INDIRECT(ADDRESS(ROW(A$80),ROW()-ROW(A$80)+(ROWS($88:97)-1)*2+1,4))","v":0},null,null,null,null,null,42,0,0,0]
[{"$f":"IF(B98=\"\",0,INDEX(Price_List,ROWS($88:98)))","v":15},{"$f":"IF($C98=\"\",\"\",COUNTA($C$88:$C98))","v":11},{"$f":"IF(INDEX(INDIRECT(\"Product_List\"),ROWS($88:98))=\"\",\"\",INDEX(INDIRECT(\"Product_List\"),ROWS($88:98)))","v":"11-เค้กกล้วยหอม"},{"$f":"ยอดยกมา","v":0},null,null,null,null,null,null,0,null,{"$f":"INDIRECT(ADDRESS(ROW(A$80),ROW()-ROW(A$80)+(ROWS($88:98)-1)*2-1,4))","v":0},null,0,null,0,null,null,null,0,null,0,null,null,null,null,null,{"$f":"INDIRECT(ADDRESS(ROW(A$80),ROW()-ROW(A$80)+(ROWS($88:98)-1)*2,4))","v":0},0,null,0,{"$f":"INDIRECT(ADDRESS(ROW(A$80),ROW()-ROW(A$80)+(ROWS($88:98)-1)*2+1,4))","v":0},null,null,null,null,null,"Total Deduct",null,null,{"$f":"SUM($AP$88:$AP$97)","v":0}]
[{"$f":"IF(B99=\"\",0,INDEX(Price_List,ROWS($88:99)))","v":15},{"$f":"IF($C99=\"\",\"\",COUNTA($C$88:$C99))","v":12},{"$f":"IF(INDEX(INDIRECT(\"Product_List\"),ROWS($88:99))=\"\",\"\",INDEX(INDIRECT(\"Product_List\"),ROWS($88:99)))","v":"12-เค้กบัตเตอร์"},{"$f":"ยอดยกมา","v":0},null,null,null,null,null,null,0,null,{"$f":"INDIRECT(ADDRESS(ROW(A$80),ROW()-ROW(A$80)+(ROWS($88:99)-1)*2-1,4))","v":0},null,0,null,0,null,null,null,0,null,0,null,null,null,null,null,{"$f":"INDIRECT(ADDRESS(ROW(A$80),ROW()-ROW(A$80)+(ROWS($88:99)-1)*2,4))","v":0},0,null,0,{"$f":"INDIRECT(ADDRESS(ROW(A$80),ROW()-ROW(A$80)+(ROWS($88:99)-1)*2+1,4))","v":0}]
[{"$f":"IF(B100=\"\",0,INDEX(Price_List,ROWS($88:100)))","v":15},{"$f":"IF($C100=\"\",\"\",COUNTA($C$88:$C100))","v":13},{"$f":"IF(INDEX(INDIRECT(\"Product_List\"),ROWS($88:100))=\"\",\"\",INDEX(INDIRECT(\"Product_List\"),ROWS($88:100)))","v":"13-ขนมปังโรลถั่วแดง"},{"$f":"ยอดยกมา","v":0},null,null,null,null,null,null,0,null,{"$f":"INDIRECT(ADDRESS(ROW(A$80),ROW()-ROW(A$80)+(ROWS($88:100)-1)*2-1,4))","v":0},null,0,null,0,null,null,null,0,null,0,null,null,null,null,null,{"$f":"INDIRECT(ADDRESS(ROW(A$80),ROW()-ROW(A$80)+(ROWS($88:100)-1)*2,4))","v":0},0,null,0,{"$f":"INDIRECT(ADDRESS(ROW(A$80),ROW()-ROW(A$80)+(ROWS($88:100)-1)*2+1,4))","v":0}]
[{"$f":"IF(B101=\"\",0,INDEX(Price_List,ROWS($88:101)))","v":15},{"$f":"IF($C101=\"\",\"\",COUNTA($C$88:$C101))","v":14},{"$f":"IF(INDEX(INDIRECT(\"Product_List\"),ROWS($88:101))=\"\",\"\",INDEX(INDIRECT(\"Product_List\"),ROWS($88:101)))","v":"14-ขนมปังไส้สังขยาใหญ่"},{"$f":"ยอดยกมา","v":0},null,null,null,null,null,null,0,null,{"$f":"INDIRECT(ADDRESS(ROW(A$80),ROW()-ROW(A$80)+(ROWS($88:101)-1)*2-1,4))","v":0},null,0,null,0,null,null,null,0,null,0,null,null,null,null,null,{"$f":"INDIRECT(ADDRESS(ROW(A$80),ROW()-ROW(A$80)+(ROWS($88:101)-1)*2,4))","v":0},0,null,0,{"$f":"INDIRECT(ADDRESS(ROW(A$80),ROW()-ROW(A$80)+(ROWS($88:101)-1)*2+1,4))","v":0}]
[{"$f":"IF(B102=\"\",0,INDEX(Price_List,ROWS($88:102)))","v":42},{"$f":"IF($C102=\"\",\"\",COUNTA($C$88:$C102))","v":15},{"$f":"IF(INDEX(INDIRECT(\"Product_List\"),ROWS($88:102))=\"\",\"\",INDEX(INDIRECT(\"Product_List\"),ROWS($88:102)))","v":"15-ขนมปังชนิดแผ่น(480กรัม)"},{"$f":"ยอดยกมา","v":0},null,null,null,null,null,null,0,null,{"$f":"INDIRECT(ADDRESS(ROW(A$80),ROW()-ROW(A$80)+(ROWS($88:102)-1)*2-1,4))","v":0},null,0,null,0,null,null,null,0,null,0,null,null,null,null,null,{"$f":"INDIRECT(ADDRESS(ROW(A$80),ROW()-ROW(A$80)+(ROWS($88:102)-1)*2,4))","v":0},0,null,0,{"$f":"INDIRECT(ADDRESS(ROW(A$80),ROW()-ROW(A$80)+(ROWS($88:102)-1)*2+1,4))","v":0}]
[{"$f":"IF(B103=\"\",0,INDEX(Price_List,ROWS($88:103)))","v":12},{"$f":"IF($C103=\"\",\"\",COUNTA($C$88:$C103))","v":16},{"$f":"IF(INDEX(INDIRECT(\"Product_List\"),ROWS($88:103))=\"\",\"\",INDEX(INDIRECT(\"Product_List\"),ROWS($88:103)))","v":"16-โมจิไส้ถั่ว"},{"$f":"ยอดยกมา","v":0},null,null,null,null,null,null,0,null,{"$f":"INDIRECT(ADDRESS(ROW(A$80),ROW()-ROW(A$80)+(ROWS($88:103)-1)*2-1,4))","v":0},null,0,null,0,null,null,null,0,null,0,null,null,null,null,null,{"$f":"INDIRECT(ADDRESS(ROW(A$80),ROW()-ROW(A$80)+(ROWS($88:103)-1)*2,4))","v":0},0,null,0,{"$f":"INDIRECT(ADDRESS(ROW(A$80),ROW()-ROW(A$80)+(ROWS($88:103)-1)*2+1,4))","v":0}]
[{"$f":"IF(B104=\"\",0,INDEX(Price_List,ROWS($88:104)))","v":12},{"$f":"IF($C104=\"\",\"\",COUNTA($C$88:$C104))","v":17},{"$f":"IF(INDEX(INDIRECT(\"Product_List\"),ROWS($88:104))=\"\",\"\",INDEX(INDIRECT(\"Product_List\"),ROWS($88:104)))","v":"17-โมจิไส้เผือก"},{"$f":"ยอดยกมา","v":0},null,null,null,null,null,null,0,null,{"$f":"INDIRECT(ADDRESS(ROW(A$80),ROW()-ROW(A$80)+(ROWS($88:104)-1)*2-1,4))","v":0},null,0,null,0,null,null,null,0,null,0,null,null,null,null,null,{"$f":"INDIRECT(ADDRESS(ROW(A$80),ROW()-ROW(A$80)+(ROWS($88:104)-1)*2,4))","v":0},0,null,0,{"$f":"INDIRECT(ADDRESS(ROW(A$80),ROW()-ROW(A$80)+(ROWS($88:104)-1)*2+1,4))","v":0}]
[{"$f":"IF(B105=\"\",0,INDEX(Price_List,ROWS($88:105)))","v":15},{"$f":"IF($C105=\"\",\"\",COUNTA($C$88:$C105))","v":18},{"$f":"IF(INDEX(INDIRECT(\"Product_List\"),ROWS($88:105))=\"\",\"\",INDEX(INDIRECT(\"Product_List\"),ROWS($88:105)))","v":"18-โมจิไส้ถั่วไข่เค็ม"},{"$f":"ยอดยกมา","v":0},null,null,null,null,null,null,0,null,{"$f":"INDIRECT(ADDRESS(ROW(A$80),ROW()-ROW(A$80)+(ROWS($88:105)-1)*2-1,4))","v":0},null,0,null,0,null,null,null,0,null,0,null,null,null,null,null,{"$f":"INDIRECT(ADDRESS(ROW(A$80),ROW()-ROW(A$80)+(ROWS($88:105)-1)*2,4))","v":0},0,null,0,{"$f":"INDIRECT(ADDRESS(ROW(A$80),ROW()-ROW(A$80)+(ROWS($88:105)-1)*2+1,4))","v":0}]
[{"$f":"IF(B106=\"\",0,INDEX(Price_List,ROWS($88:106)))","v":20},{"$f":"IF($C106=\"\",\"\",COUNTA($C$88:$C106))","v":19},{"$f":"IF(INDEX(INDIRECT(\"Product_List\"),ROWS($88:106))=\"\",\"\",INDEX(INDIRECT(\"Product_List\"),ROWS($88:106)))","v":"19-ขนมปังพิซซ่า"},{"$f":"ยอดยกมา","v":0},null,null,null,null,null,null,0,null,{"$f":"INDIRECT(ADDRESS(ROW(A$80),ROW()-ROW(A$80)+(ROWS($88:106)-1)*2-1,4))","v":0},null,0,null,0,null,null,null,0,null,0,null,null,null,null,null,{"$f":"INDIRECT(ADDRESS(ROW(A$80),ROW()-ROW(A$80)+(ROWS($88:106)-1)*2,4))","v":0},0,null,0,{"$f":"INDIRECT(ADDRESS(ROW(A$80),ROW()-ROW(A$80)+(ROWS($88:106)-1)*2+1,4))","v":0}]
[{"$f":"IF(B107=\"\",0,INDEX(Price_List,ROWS($88:107)))","v":20},{"$f":"IF($C107=\"\",\"\",COUNTA($C$88:$C107))","v":20},{"$f":"IF(INDEX(INDIRECT(\"Product_List\"),ROWS($88:107))=\"\",\"\",INDEX(INDIRECT(\"Product_List\"),ROWS($88:107)))","v":"20-ขนมปังพิซซ่าปูอัดแฮม"},{"$f":"ยอดยกมา","v":0},null,null,null,null,null,null,0,null,{"$f":"INDIRECT(ADDRESS(ROW(A$80),ROW()-ROW(A$80)+(ROWS($88:107)-1)*2-1,4))","v":0},null,0,null,0,null,null,null,0,null,0,null,null,null,null,null,{"$f":"INDIRECT(ADDRESS(ROW(A$80),ROW()-ROW(A$80)+(ROWS($88:107)-1)*2,4))","v":0},0,null,0,{"$f":"INDIRECT(ADDRESS(ROW(A$80),ROW()-ROW(A$80)+(ROWS($88:107)-1)*2+1,4))","v":0}]
[{"$f":"IF(B108=\"\",0,INDEX(Price_List,ROWS($88:108)))","v":20},{"$f":"IF($C108=\"\",\"\",COUNTA($C$88:$C108))","v":21},{"$f":"IF(INDEX(INDIRECT(\"Product_List\"),ROWS($88:108))=\"\",\"\",INDEX(INDIRECT(\"Product_List\"),ROWS($88:108)))","v":"21-ขนมปังไส้กรอก"},{"$f":"ยอดยกมา","v":0},null,null,null,null,null,null,0,null,{"$f":"INDIRECT(ADDRESS(ROW(A$80),ROW()-ROW(A$80)+(ROWS($88:108)-1)*2-1,4))","v":0},null,0,null,0,null,null,null,0,null,0,null,null,null,null,null,{"$f":"INDIRECT(ADDRESS(ROW(A$80),ROW()-ROW(A$80)+(ROWS($88:108)-1)*2,4))","v":0},0,null,0,{"$f":"INDIRECT(ADDRESS(ROW(A$80),ROW()-ROW(A$80)+(ROWS($88:108)-1)*2+1,4))","v":0}]
[{"$f":"IF(B109=\"\",0,INDEX(Price_List,ROWS($88:109)))","v":15},{"$f":"IF($C109=\"\",\"\",COUNTA($C$88:$C109))","v":22},{"$f":"IF(INDEX(INDIRECT(\"Product_List\"),ROWS($88:109))=\"\",\"\",INDEX(INDIRECT(\"Product_List\"),ROWS($88:109)))","v":"22-ขนมก้านบัว"},{"$f":"ยอดยกมา","v":0},null,null,null,null,null,null,0,null,{"$f":"INDIRECT(ADDRESS(ROW(A$80),ROW()-ROW(A$80)+(ROWS($88:109)-1)*2-1,4))","v":0},null,0,null,0,null,null,null,0,null,0,null,null,null,null,null,{"$f":"INDIRECT(ADDRESS(ROW(A$80),ROW()-ROW(A$80)+(ROWS($88:109)-1)*2,4))","v":0},0,null,0,{"$f":"INDIRECT(ADDRESS(ROW(A$80),ROW()-ROW(A$80)+(ROWS($88:109)-1)*2+1,4))","v":0}]
[{"$f":"IF(B110=\"\",0,INDEX(Price_List,ROWS($88:110)))","v":20},{"$f":"IF($C110=\"\",\"\",COUNTA($C$88:$C110))","v":23},{"$f":"IF(INDEX(INDIRECT(\"Product_List\"),ROWS($88:110))=\"\",\"\",INDEX(INDIRECT(\"Product_List\"),ROWS($88:110)))","v":"23-พายสับปะรด"},{"$f":"ยอดยกมา","v":0},null,null,null,null,null,null,0,null,{"$f":"INDIRECT(ADDRESS(ROW(A$80),ROW()-ROW(A$80)+(ROWS($88:110)-1)*2-1,4))","v":0},null,0,null,0,null,null,null,0,null,0,null,null,null,null,null,{"$f":"INDIRECT(ADDRESS(ROW(A$80),ROW()-ROW(A$80)+(ROWS($88:110)-1)*2,4))","v":0},0,null,0,{"$f":"INDIRECT(ADDRESS(ROW(A$80),ROW()-ROW(A$80)+(ROWS($88:110)-1)*2+1,4))","v":0}]
[{"$f":"IF(B111=\"\",0,INDEX(Price_List,ROWS($88:111)))","v":20},{"$f":"IF($C111=\"\",\"\",COUNTA($C$88:$C111))","v":24},{"$f":"IF(INDEX(INDIRECT(\"Product_List\"),ROWS($88:111))=\"\",\"\",INDEX(INDIRECT(\"Product_List\"),ROWS($88:111)))","v":"24-พายไส้มะพร้าว"},{"$f":"ยอดยกมา","v":0},null,null,null,null,null,null,0,null,{"$f":"INDIRECT(ADDRESS(ROW(A$80),ROW()-ROW(A$80)+(ROWS($88:111)-1)*2-1,4))","v":0},null,0,null,0,null,null,null,0,null,0,null,null,null,null,null,{"$f":"INDIRECT(ADDRESS(ROW(A$80),ROW()-ROW(A$80)+(ROWS($88:111)-1)*2,4))","v":0},0,null,0,{"$f":"INDIRECT(ADDRESS(ROW(A$80),ROW()-ROW(A$80)+(ROWS($88:111)-1)*2+1,4))","v":0}]
[{"$f":"IF(B112=\"\",0,INDEX(Price_List,ROWS($88:112)))","v":15},{"$f":"IF($C112=\"\",\"\",COUNTA($C$88:$C112))","v":25},{"$f":"IF(INDEX(INDIRECT(\"Product_List\"),ROWS($88:112))=\"\",\"\",INDEX(INDIRECT(\"Product_List\"),ROWS($88:112)))","v":"25-ขนมปังโรลมันเทศ"},{"$f":"ยอดยกมา","v":0},null,null,null,null,null,null,0,null,{"$f":"INDIRECT(ADDRESS(ROW(A$80),ROW()-ROW(A$80)+(ROWS($88:112)-1)*2-1,4))","v":0},null,0,null,0,null,null,null,0,null,0,null,null,null,null,null,{"$f":"INDIRECT(ADDRESS(ROW(A$80),ROW()-ROW(A$80)+(ROWS($88:112)-1)*2,4))","v":0},0,null,0,{"$f":"INDIRECT(ADDRESS(ROW(A$80),ROW()-ROW(A$80)+(ROWS($88:112)-1)*2+1,4))","v":0}]
[{"$f":"IF(B113=\"\",0,INDEX(Price_List,ROWS($88:113)))","v":15},{"$f":"IF($C113=\"\",\"\",COUNTA($C$88:$C113))","v":26},{"$f":"IF(INDEX(INDIRECT(\"Product_List\"),ROWS($88:113))=\"\",\"\",INDEX(INDIRECT(\"Product_List\"),ROWS($88:113)))","v":"26-ขนมปังไส้ครีมสลัดน้ำพริกเผา"},{"$f":"ยอดยกมา","v":0},null,null,null,null,null,null,0,null,{"$f":"INDIRECT(ADDRESS(ROW(A$80),ROW()-ROW(A$80)+(ROWS($88:113)-1)*2-1,4))","v":0},null,0,null,0,null,null,null,0,null,0,null,null,null,null,null,{"$f":"INDIRECT(ADDRESS(ROW(A$80),ROW()-ROW(A$80)+(ROWS($88:113)-1)*2,4))","v":0},0,null,0,{"$f":"INDIRECT(ADDRESS(ROW(A$80),ROW()-ROW(A$80)+(ROWS($88:113)-1)*2+1,4))","v":0}]
[{"$f":"IF(B114=\"\",0,INDEX(Price_List,ROWS($88:114)))","v":20},{"$f":"IF($C114=\"\",\"\",COUNTA($C$88:$C114))","v":27},{"$f":"IF(INDEX(INDIRECT(\"Product_List\"),ROWS($88:114))=\"\",\"\",INDEX(INDIRECT(\"Product_List\"),ROWS($88:114)))","v":"27-ขนมปังไส้สังขยาไข่"},{"$f":"ยอดยกมา","v":0},null,null,null,null,null,null,0,null,{"$f":"INDIRECT(ADDRESS(ROW(A$80),ROW()-ROW(A$80)+(ROWS($88:114)-1)*2-1,4))","v":0},null,0,null,0,null,null,null,0,null,0,null,null,null,null,null,{"$f":"INDIRECT(ADDRESS(ROW(A$80),ROW()-ROW(A$80)+(ROWS($88:114)-1)*2,4))","v":0},0,null,0,{"$f":"INDIRECT(ADDRESS(ROW(A$80),ROW()-ROW(A$80)+(ROWS($88:114)-1)*2+1,4))","v":0}]
[{"$f":"IF(B115=\"\",0,INDEX(Price_List,ROWS($88:115)))","v":20},{"$f":"IF($C115=\"\",\"\",COUNTA($C$88:$C115))","v":28},{"$f":"IF(INDEX(INDIRECT(\"Product_List\"),ROWS($88:115))=\"\",\"\",INDEX(INDIRECT(\"Product_List\"),ROWS($88:115)))","v":"28-ขนมปังไส้สังขยามะพร้าว"},{"$f":"ยอดยกมา","v":0},null,null,null,null,null,null,0,null,{"$f":"INDIRECT(ADDRESS(ROW(A$80),ROW()-ROW(A$80)+(ROWS($88:115)-1)*2-1,4))","v":0},null,0,null,0,null,null,null,0,null,0,null,null,null,null,null,{"$f":"INDIRECT(ADDRESS(ROW(A$80),ROW()-ROW(A$80)+(ROWS($88:115)-1)*2,4))","v":0},0,null,0,{"$f":"INDIRECT(ADDRESS(ROW(A$80),ROW()-ROW(A$80)+(ROWS($88:115)-1)*2+1,4))","v":0}]
[{"$f":"IF(B116=\"\",0,INDEX(Price_List,ROWS($88:116)))","v":10},{"$f":"IF($C116=\"\",\"\",COUNTA($C$88:$C116))","v":29},{"$f":"IF(INDEX(INDIRECT(\"Product_List\"),ROWS($88:116))=\"\",\"\",INDEX(INDIRECT(\"Product_List\"),ROWS($88:116)))","v":"29-ขนมปังไส้ครีมชาไทย"},{"$f":"ยอดยกมา","v":0},null,null,null,null,null,null,0,null,{"$f":"INDIRECT(ADDRESS(ROW(A$80),ROW()-ROW(A$80)+(ROWS($88:116)-1)*2-1,4))","v":0},null,0,null,0,null,null,null,0,null,0,null,null,null,null,null,{"$f":"INDIRECT(ADDRESS(ROW(A$80),ROW()-ROW(A$80)+(ROWS($88:116)-1)*2,4))","v":0},0,null,0,{"$f":"INDIRECT(ADDRESS(ROW(A$80),ROW()-ROW(A$80)+(ROWS($88:116)-1)*2+1,4))","v":0}]
[{"$f":"IF(B117=\"\",0,INDEX(Price_List,ROWS($88:117)))","v":15},{"$f":"IF($C117=\"\",\"\",COUNTA($C$88:$C117))","v":30},{"$f":"IF(INDEX(INDIRECT(\"Product_List\"),ROWS($88:117))=\"\",\"\",INDEX(INDIRECT(\"Product_List\"),ROWS($88:117)))","v":"30-ขนมปังโรลมันม่วง"},{"$f":"ยอดยกมา","v":0},null,null,null,null,null,null,0,null,{"$f":"INDIRECT(ADDRESS(ROW(A$80),ROW()-ROW(A$80)+(ROWS($88:117)-1)*2-1,4))","v":0},null,0,null,0,null,null,null,0,null,0,null,null,null,null,null,{"$f":"INDIRECT(ADDRESS(ROW(A$80),ROW()-ROW(A$80)+(ROWS($88:117)-1)*2,4))","v":0},0,null,0,{"$f":"INDIRECT(ADDRESS(ROW(A$80),ROW()-ROW(A$80)+(ROWS($88:117)-1)*2+1,4))","v":0}]
[{"$f":"IF(B118=\"\",0,INDEX(Price_List,ROWS($88:118)))","v":15},{"$f":"IF($C118=\"\",\"\",COUNTA($C$88:$C118))","v":31},{"$f":"IF(INDEX(INDIRECT(\"Product_List\"),ROWS($88:118))=\"\",\"\",INDEX(INDIRECT(\"Product_List\"),ROWS($88:118)))","v":"31-ขนมปังโรลช็อกโกแลต"},{"$f":"ยอดยกมา","v":0},null,null,null,null,null,null,0,null,{"$f":"INDIRECT(ADDRESS(ROW(A$80),ROW()-ROW(A$80)+(ROWS($88:118)-1)*2-1,4))","v":0},null,0,null,0,null,null,null,0,null,0,null,null,null,null,null,{"$f":"INDIRECT(ADDRESS(ROW(A$80),ROW()-ROW(A$80)+(ROWS($88:118)-1)*2,4))","v":0},0,null,0,{"$f":"INDIRECT(ADDRESS(ROW(A$80),ROW()-ROW(A$80)+(ROWS($88:118)-1)*2+1,4))","v":0}]
[{"$f":"IF(B119=\"\",0,INDEX(Price_List,ROWS($88:119)))","v":16},{"$f":"IF($C119=\"\",\"\",COUNTA($C$88:$C119))","v":32},{"$f":"IF(INDEX(INDIRECT(\"Product_List\"),ROWS($88:119))=\"\",\"\",INDEX(INDIRECT(\"Product_List\"),ROWS($88:119)))","v":"32-ขนมปังชนิดแผ่น(155กรัม)"},{"$f":"ยอดยกมา","v":0},null,null,null,null,null,null,0,null,{"$f":"INDIRECT(ADDRESS(ROW(A$80),ROW()-ROW(A$80)+(ROWS($88:119)-1)*2-1,4))","v":0},null,0,null,0,null,null,null,0,null,0,null,null,null,null,null,{"$f":"INDIRECT(ADDRESS(ROW(A$80),ROW()-ROW(A$80)+(ROWS($88:119)-1)*2,4))","v":0},0,null,0,{"$f":"INDIRECT(ADDRESS(ROW(A$80),ROW()-ROW(A$80)+(ROWS($88:119)-1)*2+1,4))","v":0}]
[{"$f":"IF(B120=\"\",0,INDEX(Price_List,ROWS($88:120)))","v":15},{"$f":"IF($C120=\"\",\"\",COUNTA($C$88:$C120))","v":33},{"$f":"IF(INDEX(INDIRECT(\"Product_List\"),ROWS($88:120))=\"\",\"\",INDEX(INDIRECT(\"Product_List\"),ROWS($88:120)))","v":"33-ขนมปังโรลเผือก"},{"$f":"ยอดยกมา","v":0},null,null,null,null,null,null,0,null,{"$f":"INDIRECT(ADDRESS(ROW(A$80),ROW()-ROW(A$80)+(ROWS($88:120)-1)*2-1,4))","v":0},null,0,null,0,null,null,null,0,null,0,null,null,null,null,null,{"$f":"INDIRECT(ADDRESS(ROW(A$80),ROW()-ROW(A$80)+(ROWS($88:120)-1)*2,4))","v":0},0,null,0,{"$f":"INDIRECT(ADDRESS(ROW(A$80),ROW()-ROW(A$80)+(ROWS($88:120)-1)*2+1,4))","v":0}]
[{"$f":"IF(B121=\"\",0,INDEX(Price_List,ROWS($88:121)))","v":15},{"$f":"IF($C121=\"\",\"\",COUNTA($C$88:$C121))","v":34},{"$f":"IF(INDEX(INDIRECT(\"Product_List\"),ROWS($88:121))=\"\",\"\",INDEX(INDIRECT(\"Product_List\"),ROWS($88:121)))","v":"34-ขนมปังไก่หยองน้ำสลัด Mini"},{"$f":"ยอดยกมา","v":0},null,null,null,null,null,null,0,null,{"$f":"INDIRECT(ADDRESS(ROW(A$80),ROW()-ROW(A$80)+(ROWS($88:121)-1)*2-1,4))","v":0},null,0,null,0,null,null,null,0,null,0,null,null,null,null,null,{"$f":"INDIRECT(ADDRESS(ROW(A$80),ROW()-ROW(A$80)+(ROWS($88:121)-1)*2,4))","v":0},0,null,0,{"$f":"INDIRECT(ADDRESS(ROW(A$80),ROW()-ROW(A$80)+(ROWS($88:121)-1)*2+1,4))","v":0}]
[{"$f":"IF(B122=\"\",0,INDEX(Price_List,ROWS($88:122)))","v":10},{"$f":"IF($C122=\"\",\"\",COUNTA($C$88:$C122))","v":35},{"$f":"IF(INDEX(INDIRECT(\"Product_List\"),ROWS($88:122))=\"\",\"\",INDEX(INDIRECT(\"Product_List\"),ROWS($88:122)))","v":"35-ขนมปังไส้ช็อกโกแลต"},{"$f":"ยอดยกมา","v":0},null,null,null,null,null,null,0,null,{"$f":"INDIRECT(ADDRESS(ROW(A$80),ROW()-ROW(A$80)+(ROWS($88:122)-1)*2-1,4))","v":0},null,0,null,0,null,null,null,0,null,0,null,null,null,null,null,{"$f":"INDIRECT(ADDRESS(ROW(A$80),ROW()-ROW(A$80)+(ROWS($88:122)-1)*2,4))","v":0},0,null,0,{"$f":"INDIRECT(ADDRESS(ROW(A$80),ROW()-ROW(A$80)+(ROWS($88:122)-1)*2+1,4))","v":0}]
[{"$f":"IF(B123=\"\",0,INDEX(Price_List,ROWS($88:123)))","v":10},{"$f":"IF($C123=\"\",\"\",COUNTA($C$88:$C123))","v":36},{"$f":"IF(INDEX(INDIRECT(\"Product_List\"),ROWS($88:123))=\"\",\"\",INDEX(INDIRECT(\"Product_List\"),ROWS($88:123)))","v":"36-ขนมปังไส้ครีมสังขยาไข่"},{"$f":"ยอดยกมา","v":0},null,null,null,null,null,null,0,null,{"$f":"INDIRECT(ADDRESS(ROW(A$80),ROW()-ROW(A$80)+(ROWS($88:123)-1)*2-1,4))","v":0},null,0,null,0,null,null,null,0,null,0,null,null,null,null,null,{"$f":"INDIRECT(ADDRESS(ROW(A$80),ROW()-ROW(A$80)+(ROWS($88:123)-1)*2,4))","v":0},0,null,0,{"$f":"INDIRECT(ADDRESS(ROW(A$80),ROW()-ROW(A$80)+(ROWS($88:123)-1)*2+1,4))","v":0}]
[{"$f":"IF(B124=\"\",0,INDEX(Price_List,ROWS($88:124)))","v":20},{"$f":"IF($C124=\"\",\"\",COUNTA($C$88:$C124))","v":37},{"$f":"IF(INDEX(INDIRECT(\"Product_List\"),ROWS($88:124))=\"\",\"\",INDEX(INDIRECT(\"Product_List\"),ROWS($88:124)))","v":"37-ขนมปังพิซซ่าฮาวายเอี้ยน"},{"$f":"ยอดยกมา","v":0},null,null,null,null,null,null,0,null,{"$f":"INDIRECT(ADDRESS(ROW(A$80),ROW()-ROW(A$80)+(ROWS($88:124)-1)*2-1,4))","v":0},null,0,null,0,null,null,null,0,null,0,null,null,null,null,null,{"$f":"INDIRECT(ADDRESS(ROW(A$80),ROW()-ROW(A$80)+(ROWS($88:124)-1)*2,4))","v":0},0,null,0,{"$f":"INDIRECT(ADDRESS(ROW(A$80),ROW()-ROW(A$80)+(ROWS($88:124)-1)*2+1,4))","v":0}]
[{"$f":"IF(B125=\"\",0,INDEX(Price_List,ROWS($88:125)))","v":20},{"$f":"IF($C125=\"\",\"\",COUNTA($C$88:$C125))","v":38},{"$f":"IF(INDEX(INDIRECT(\"Product_List\"),ROWS($88:125))=\"\",\"\",INDEX(INDIRECT(\"Product_List\"),ROWS($88:125)))","v":"38-ครัวซองต์หมูหยองน้ำสลัด"},{"$f":"ยอดยกมา","v":0},null,null,null,null,null,null,0,null,{"$f":"INDIRECT(ADDRESS(ROW(A$80),ROW()-ROW(A$80)+(ROWS($88:125)-1)*2-1,4))","v":0},null,0,null,0,null,null,null,0,null,0,null,null,null,null,null,{"$f":"INDIRECT(ADDRESS(ROW(A$80),ROW()-ROW(A$80)+(ROWS($88:125)-1)*2,4))","v":0},0,null,0,{"$f":"INDIRECT(ADDRESS(ROW(A$80),ROW()-ROW(A$80)+(ROWS($88:125)-1)*2+1,4))","v":0}]
[{"$f":"IF(B126=\"\",0,INDEX(Price_List,ROWS($88:126)))","v":15},{"$f":"IF($C126=\"\",\"\",COUNTA($C$88:$C126))","v":39},{"$f":"IF(INDEX(INDIRECT(\"Product_List\"),ROWS($88:126))=\"\",\"\",INDEX(INDIRECT(\"Product_List\"),ROWS($88:126)))","v":"39-แพนเบรดไส้เผือก"},{"$f":"ยอดยกมา","v":0},null,null,null,null,null,null,0,null,{"$f":"INDIRECT(ADDRESS(ROW(A$80),ROW()-ROW(A$80)+(ROWS($88:126)-1)*2-1,4))","v":0},null,0,null,0,null,null,null,0,null,0,null,null,null,null,null,{"$f":"INDIRECT(ADDRESS(ROW(A$80),ROW()-ROW(A$80)+(ROWS($88:126)-1)*2,4))","v":0},0,null,0,{"$f":"INDIRECT(ADDRESS(ROW(A$80),ROW()-ROW(A$80)+(ROWS($88:126)-1)*2+1,4))","v":0}]
[{"$f":"IF(B127=\"\",0,INDEX(Price_List,ROWS($88:127)))","v":15},{"$f":"IF($C127=\"\",\"\",COUNTA($C$88:$C127))","v":40},{"$f":"IF(INDEX(INDIRECT(\"Product_List\"),ROWS($88:127))=\"\",\"\",INDEX(INDIRECT(\"Product_List\"),ROWS($88:127)))","v":"40-แพนเบรดไส้ถั่วแดง"},{"$f":"ยอดยกมา","v":0},null,null,null,null,null,null,0,null,{"$f":"INDIRECT(ADDRESS(ROW(A$80),ROW()-ROW(A$80)+(ROWS($88:127)-1)*2-1,4))","v":0},null,0,null,0,null,null,null,0,null,0,null,null,null,null,null,{"$f":"INDIRECT(ADDRESS(ROW(A$80),ROW()-ROW(A$80)+(ROWS($88:127)-1)*2,4))","v":0},0,null,0,{"$f":"INDIRECT(ADDRESS(ROW(A$80),ROW()-ROW(A$80)+(ROWS($88:127)-1)*2+1,4))","v":0}]
[{"$f":"IF(B128=\"\",0,INDEX(Price_List,ROWS($88:128)))","v":12},{"$f":"IF($C128=\"\",\"\",COUNTA($C$88:$C128))","v":41},{"$f":"IF(INDEX(INDIRECT(\"Product_List\"),ROWS($88:128))=\"\",\"\",INDEX(INDIRECT(\"Product_List\"),ROWS($88:128)))","v":"41-ขนมปังกรอบเนยน้ำตาล(30กรัม)"},{"$f":"ยอดยกมา","v":0},null,null,null,null,null,null,0,null,{"$f":"INDIRECT(ADDRESS(ROW(A$80),ROW()-ROW(A$80)+(ROWS($88:128)-1)*2-1,4))","v":0},null,0,null,0,null,null,null,0,null,0,null,null,null,null,null,{"$f":"INDIRECT(ADDRESS(ROW(A$80),ROW()-ROW(A$80)+(ROWS($88:128)-1)*2,4))","v":0},0,null,0,{"$f":"INDIRECT(ADDRESS(ROW(A$80),ROW()-ROW(A$80)+(ROWS($88:128)-1)*2+1,4))","v":0}]
[{"$f":"IF(B129=\"\",0,INDEX(Price_List,ROWS($88:129)))","v":18},{"$f":"IF($C129=\"\",\"\",COUNTA($C$88:$C129))","v":42},{"$f":"IF(INDEX(INDIRECT(\"Product_List\"),ROWS($88:129))=\"\",\"\",INDEX(INDIRECT(\"Product_List\"),ROWS($88:129)))","v":"42-ขนมปังชนิดแผ่นโฮลวีต"},{"$f":"ยอดยกมา","v":0},null,null,null,null,null,null,0,null,{"$f":"INDIRECT(ADDRESS(ROW(A$80),ROW()-ROW(A$80)+(ROWS($88:129)-1)*2-1,4))","v":0},null,0,null,0,null,null,null,0,null,0,null,null,null,null,null,{"$f":"INDIRECT(ADDRESS(ROW(A$80),ROW()-ROW(A$80)+(ROWS($88:129)-1)*2,4))","v":0},0,null,0,{"$f":"INDIRECT(ADDRESS(ROW(A$80),ROW()-ROW(A$80)+(ROWS($88:129)-1)*2+1,4))","v":0}]
[{"$f":"IF(B130=\"\",0,INDEX(Price_List,ROWS($88:130)))","v":12},{"$f":"IF($C130=\"\",\"\",COUNTA($C$88:$C130))","v":43},{"$f":"IF(INDEX(INDIRECT(\"Product_List\"),ROWS($88:130))=\"\",\"\",INDEX(INDIRECT(\"Product_List\"),ROWS($88:130)))","v":"43-เค้กโรลใบเตย"},{"$f":"ยอดยกมา","v":0},null,null,null,null,null,null,{"$f":"D130+E130+J130-I130+H130","v":0},null,{"$f":"INDIRECT(ADDRESS(ROW(A$80),ROW()-ROW(A$80)+(ROWS($88:130)-1)*2-1,4))","v":0},null,{"$f":"F130+G130+M130+J130-K130","v":0},null,{"$f":"O130*A130","v":0},null,null,null,{"$f":"D130+E130-F130-G130","v":0},null,{"$f":"U130*6%+U130","v":0},null,null,null,null,null,{"$f":"INDIRECT(ADDRESS(ROW(A$80),ROW()-ROW(A$80)+(ROWS($88:130)-1)*2,4))","v":0},0,null,0,{"$f":"INDIRECT(ADDRESS(ROW(A$80),ROW()-ROW(A$80)+(ROWS($88:130)-1)*2+1,4))","v":0}]
[{"$f":"IF(B131=\"\",0,INDEX(Price_List,ROWS($88:131)))","v":12},{"$f":"IF($C131=\"\",\"\",COUNTA($C$88:$C131))","v":44},{"$f":"IF(INDEX(INDIRECT(\"Product_List\"),ROWS($88:131))=\"\",\"\",INDEX(INDIRECT(\"Product_List\"),ROWS($88:131)))","v":"44-ขนมโมจิไส้ถั่วดำ"},{"$f":"ยอดยกมา","v":0},null,null,null,null,null,null,{"$f":"D131+E131+J131-I131+H131","v":0},null,{"$f":"INDIRECT(ADDRESS(ROW(A$80),ROW()-ROW(A$80)+(ROWS($88:131)-1)*2-1,4))","v":0},null,{"$f":"F131+G131+M131+J131-K131","v":0},null,{"$f":"O131*A131","v":0},null,null,null,{"$f":"D131+E131-F131-G131","v":0},null,{"$f":"U131*6%+U131","v":0},null,null,null,null,null,{"$f":"INDIRECT(ADDRESS(ROW(A$80),ROW()-ROW(A$80)+(ROWS($88:131)-1)*2,4))","v":0},0,null,0,{"$f":"INDIRECT(ADDRESS(ROW(A$80),ROW()-ROW(A$80)+(ROWS($88:131)-1)*2+1,4))","v":0}]
[{"$f":"IF(B132=\"\",0,INDEX(Price_List,ROWS($88:132)))","v":25},{"$f":"IF($C132=\"\",\"\",COUNTA($C$88:$C132))","v":45},{"$f":"IF(INDEX(INDIRECT(\"Product_List\"),ROWS($88:132))=\"\",\"\",INDEX(INDIRECT(\"Product_List\"),ROWS($88:132)))","v":"45-ครัวซองต์ไส้กรอกชีส"},{"$f":"ยอดยกมา","v":0},null,null,null,null,null,null,{"$f":"D132+E132+J132-I132+H132","v":0},null,{"$f":"INDIRECT(ADDRESS(ROW(A$80),ROW()-ROW(A$80)+(ROWS($88:132)-1)*2-1,4))","v":0},null,{"$f":"F132+G132+M132+J132-K132","v":0},null,{"$f":"O132*A132","v":0},null,null,null,{"$f":"D132+E132-F132-G132","v":0},null,{"$f":"U132*6%+U132","v":0},null,null,null,null,null,{"$f":"INDIRECT(ADDRESS(ROW(A$80),ROW()-ROW(A$80)+(ROWS($88:132)-1)*2,4))","v":0},0,null,0,{"$f":"INDIRECT(ADDRESS(ROW(A$80),ROW()-ROW(A$80)+(ROWS($88:132)-1)*2+1,4))","v":0}]
[{"$f":"IF(B133=\"\",0,INDEX(Price_List,ROWS($88:133)))","v":12},{"$f":"IF($C133=\"\",\"\",COUNTA($C$88:$C133))","v":46},{"$f":"IF(INDEX(INDIRECT(\"Product_List\"),ROWS($88:133))=\"\",\"\",INDEX(INDIRECT(\"Product_List\"),ROWS($88:133)))","v":"46-ขนมเปี๊ยะไส้ถั่ว"},{"$f":"ยอดยกมา","v":0},null,null,null,null,null,null,0,null,{"$f":"INDIRECT(ADDRESS(ROW(A$80),ROW()-ROW(A$80)+(ROWS($88:133)-1)*2-1,4))","v":0},null,0,null,0,null,null,null,0,null,0,null,null,null,null,null,{"$f":"INDIRECT(ADDRESS(ROW(A$80),ROW()-ROW(A$80)+(ROWS($88:133)-1)*2,4))","v":0},0,null,0,{"$f":"INDIRECT(ADDRESS(ROW(A$80),ROW()-ROW(A$80)+(ROWS($88:133)-1)*2+1,4))","v":0}]
[{"$f":"IF(B134=\"\",0,INDEX(Price_List,ROWS($88:134)))","v":12},{"$f":"IF($C134=\"\",\"\",COUNTA($C$88:$C134))","v":47},{"$f":"IF(INDEX(INDIRECT(\"Product_List\"),ROWS($88:134))=\"\",\"\",INDEX(INDIRECT(\"Product_List\"),ROWS($88:134)))","v":"47-ขนมเปี๊ยะไส้ฟัก"},{"$f":"ยอดยกมา","v":0},null,null,null,null,null,null,{"$f":"D134+E134+J134-I134+H134","v":0},null,{"$f":"INDIRECT(ADDRESS(ROW(A$80),ROW()-ROW(A$80)+(ROWS($88:134)-1)*2-1,4))","v":0},null,{"$f":"F134+G134+M134+J134-K134","v":0},null,{"$f":"O134*A134","v":0},null,null,null,{"$f":"D134+E134-F134-G134","v":0},null,{"$f":"U134*6%+U134","v":0},null,null,null,null,null,{"$f":"INDIRECT(ADDRESS(ROW(A$80),ROW()-ROW(A$80)+(ROWS($88:134)-1)*2,4))","v":0},0,null,0,{"$f":"INDIRECT(ADDRESS(ROW(A$80),ROW()-ROW(A$80)+(ROWS($88:134)-1)*2+1,4))","v":0}]
[{"$f":"IF(B135=\"\",0,INDEX(Price_List,ROWS($88:135)))","v":12},{"$f":"IF($C135=\"\",\"\",COUNTA($C$88:$C135))","v":48},{"$f":"IF(INDEX(INDIRECT(\"Product_List\"),ROWS($88:135))=\"\",\"\",INDEX(INDIRECT(\"Product_List\"),ROWS($88:135)))","v":"48-มังกี้เค้ก"},{"$f":"ยอดยกมา","v":0},null,null,null,null,null,null,0,null,{"$f":"INDIRECT(ADDRESS(ROW(A$80),ROW()-ROW(A$80)+(ROWS($88:135)-1)*2-1,4))","v":0},null,0,null,0,null,null,null,0,null,0,null,null,null,null,null,{"$f":"INDIRECT(ADDRESS(ROW(A$80),ROW()-ROW(A$80)+(ROWS($88:135)-1)*2,4))","v":0},0,null,0,{"$f":"INDIRECT(ADDRESS(ROW(A$80),ROW()-ROW(A$80)+(ROWS($88:135)-1)*2+1,4))","v":0}]
["รวม",null,null,{"$f":"SUM(D$88:D$135)","v":0},0,0,0,0,0,0,0,null,{"$f":"SUM(M$88:M$135)","v":0},null,null,null,{"$f":"$AP$98","v":0},null,"บาท",null,{"$f":"SUM(U$88:U$135)","v":0},null,{"$f":"SUM(W$88:W$135)","v":0},null,null,null,null,null,{"$f":"SUM(AC$88:AC$135)","v":0},{"$f":"SUM(AD$88:AD$135)","v":0},{"$f":"SUM(AE$88:AE$135)","v":0},{"$f":"SUM(AF$88:AF$135)","v":0},{"$f":"SUM(AG$88:AG$135)","v":0}]
["เลขที่ไมล์ เวลาออกทำงาน",null,null,{"$f":"$BF$3","v":0},null,"Km","น้ำหนักของเสีย"]
["เลขที่ไมล์ เวลากลับ",null,null,{"$f":"$BF$4","v":0},null,"Km",{"$f":"$AA$5","v":0},null,"KG"]
["เวลากลับถึงสำนักงาน",null,null,{"$f":"$BF$1","v":"00:00:00"},null,"น."]
["เติมน้ำมัน",null,null,{"$f":"$AX3","v":0},null,"บาท"]
["จำนวนน้ำมัน",null,null,{"$f":"$AX4","v":0},null,"ลิตร"]
["ยอดรวมต้นทุนสาขา",null,null,{"$f":"$AX5","v":0},null,"บาท"]

{"sheet":"24","index":28,"n_rows":142,"n_cols":154,"rows_kept":142,"cut":false,"hidden":false,"merged":[[83,132,83,133],[129,10,129,11],[129,12,129,13],[129,14,129,15],[129,16,129,17],[127,10,127,11],[127,12,127,13],[127,14,127,15],[127,16,127,17],[127,20,127,21],[127,22,127,23],[127,24,127,25],[127,33,127,36],[126,10,126,11],[126,12,126,13],[126,14,126,15],[126,16,126,17],[128,10,128,11],[128,12,128,13],[129,24,129,25],[125,10,125,11],[125,12,125,13],[125,14,125,15],[125,16,125,17],[7,132,7,134],[8,132,8,134],[80,132,80,133],[82,132,82,133],[7,135,7,137],[8,135,8,137],[80,135,80,136],[82,135,82,136],[7,138,7,140],[7,141,7,143],[7,147,7,149],[8,138,8,140],[141,0,141,2],[141,3,141,4],[138,0,138,2],[138,3,138,4],[139,0,139,2],[139,3,139,4],[140,0,140,2],[140,3,140,4],[135,24,135,25],[135,33,135,36],[136,0,136,2],[136,3,136,4],[137,0,137,2],[137,3,137,4],[137,6,137,7],[137,18,137,21],[135,0,135,2],[135,10,135,11],[135,12,135,13],[135,14,135,15],[135,16,135,17],[135,18,135,19],[135,20,135,21],[135,22,135,23],[128,14,128,15],[128,16,128,17],[128,20,128,21],[128,22,128,23],[129,20,129,21],[129,22,129,23],[131,16,131,17],[132,16,132,17],[134,16,134,17],[131,20,131,21],[132,20,132,21],[134,20,134,21],[131,22,131,23],[132,22,132,23],[134,22,134,23],[131,24,131,25],[132,24,132,25],[134,24,134,25],[129,33,129,36],[128,24,128,25],[128,33,128,36],[126,20,126,21],[126,22,126,23],[124,24,124,25],[124,33,124,36],[125,20,125,21],[125,22,125,23],[125,24,125,25],[125,33,125,36],[124,10,124,11],[124,12,124,13],[124,14,124,15],[124,16,124,17],[124,20,124,21],[124,22,124,23],[126,24,126,25],[126,33,126,36],[122,24,122,25],[122,33,122,36],[123,10,123,11],[123,12,123,13],[123,14,123,15],[123,16,123,17],[123,20,123,21],[123,22,123,23],[123,24,123,25],[123,33,123,36],[122,10,122,11],[122,12,122,13],[122,14,122,15],[122,16,122,17],[122,20,122,21],[122,22,122,23],[120,24,120,25],[120,33,120,36],[121,10,121,11],[121,12,121,13],[121,14,121,15],[121,16,121,17],[121,20,121,21],[121,22,121,23],[121,24,121,25],[121,33,121,36],[120,10,120,11],[120,12,120,13],[120,14,120,15],[120,16,120,17],[120,20,120,21],[120,22,120,23],[118,24,118,25],[118,33,118,36],[119,10,119,11],[119,12,119,13],[119,14,119,15],[119,16,119,17],[119,20,119,21],[119,22,119,23],[119,24,119,25],[119,33,119,36],[118,10,118,11],[118,12,118,13],[118,14,118,15],[118,16,118,17],[118,20,118,21],[118,22,118,23],[116,24,116,25],[116,33,116,36],[117,10,117,11],[117,12,117,13],[117,14,117,15],[117,16,117,17],[117,20,117,21],[117,22,117,23],[117,24,117,25],[117,33,117,36],[116,10,116,11],[116,12,116,13],[116,14,116,15],[116,16,116,17],[116,20,116,21],[116,22,116,23],[114,24,114,25],[114,33,114,36],[115,10,115,11],[115,12,115,13],[115,14,115,15],[115,16,115,17],[115,20,115,21],[115,22,115,23],[115,24,115,25],[115,33,115,36],[114,10,114,11],[114,12,114,13],[114,14,114,15],[114,16,114,17],[114,20,114,21],[114,22,114,23],[112,24,112,25],[112,33,112,36],[113,10,113,11],[113,12,113,13],[113,14,113,15],[113,16,113,17],[113,20,113,21],[113,22,113,23],[113,24,113,25],[113,33,113,36],[112,10,112,11],[112,12,112,13],[112,14,112,15],[112,16,112,17],[112,20,112,21],[112,22,112,23],[110,24,110,25],[110,33,110,36],[111,10,111,11],[111,12,111,13],[111,14,111,15],[111,16,111,17],[111,20,111,21],[111,22,111,23],[111,24,111,25],[111,33,111,36],[110,10,110,11],[110,12,110,13],[110,14,110,15],[110,16,110,17],[110,20,110,21],[110,22,110,23],[108,24,108,25],[108,33,108,36],[109,10,109,11],[109,12,109,13],[109,14,109,15],[109,16,109,17],[109,20,109,21],[109,22,109,23],[109,24,109,25],[109,33,109,36],[108,10,108,11],[108,12,108,13],[108,14,108,15],[108,16,108,17],[108,20,108,21],[108,22,108,23],[106,24,106,25],[106,33,106,36],[107,10,107,11],[107,12,107,13],[107,14,107,15],[107,16,107,17],[107,20,107,21],[107,22,107,23],[107,24,107,25],[107,33,107,36],[106,10,106,11],[106,12,106,13],[106,14,106,15],[106,16,106,17],[106,20,106,21],[106,22,106,23],[104,24,104,25],[104,33,104,36],[105,10,105,11],[105,12,105,13],[105,14,105,15],[105,16,105,17],[105,20,105,21],[105,22,105,23],[105,24,105,25],[105,33,105,36],[104,10,104,11],[104,12,104,13],[104,14,104,15],[104,16,104,17],[104,20,104,21],[104,22,104,23],[102,24,102,25],[102,33,102,36],[103,10,103,11],[103,12,103,13],[103,14,103,15],[103,16,103,17],[103,20,103,21],[103,22,103,23],[103,24,103,25],[103,33,103,36],[102,10,102,11],[102,12,102,13],[102,14,102,15],[102,16,102,17],[102,20,102,21],[102,22,102,23],[101,10,101,11],[101,12,101,13],[101,14,101,15],[101,16,101,17],[101,20,101,21],[101,22,101,23],[101,24,101,25],[101,33,101,36],[100,10,100,11],[100,12,100,13],[100,14,100,15],[100,16,100,17],[100,20,100,21],[100,22,100,23],[99,10,99,11],[99,12,99,13],[99,14,99,15],[99,16,99,17],[99,20,99,21],[99,22,99,23],[99,24,99,25],[99,33,99,36],[100,24,100,25],[100,33,100,36],[97,24,97,25],[97,33,97,36],[97,38,97,40],[98,10,98,11],[98,12,98,13],[98,14,98,15],[98,16,98,17],[98,20,98,21],[98,22,98,23],[98,24,98,25],[97,10,97,11],[97,12,97,13],[97,14,97,15],[97,16,97,17],[97,20,97,21],[97,22,97,23],[98,33,98,36],[95,24,95,25],[95,33,95,36],[96,10,96,11],[96,12,96,13],[96,14,96,15],[96,16,96,17],[96,20,96,21],[96,22,96,23],[96,24,96,25],[96,33,96,36],[95,10,95,11],[95,12,95,13],[95,14,95,15],[95,16,95,17],[95,20,95,21],[95,22,95,23],[93,24,93,25],[93,33,93,36],[94,10,94,11],[94,12,94,13],[94,14,94,15],[94,16,94,17],[94,20,94,21],[94,22,94,23],[94,24,94,25],[94,33,94,36],[93,10,93,11],[93,12,93,13],[93,14,93,15],[93,16,93,17],[93,20,93,21],[93,22,93,23],[91,24,91,25],[91,33,91,36],[92,10,92,11],[92,12,92,13],[92,14,92,15],[92,16,92,17],[92,20,92,21],[92,22,92,23],[92,24,92,25],[92,33,92,36],[91,10,91,11],[91,12,91,13],[91,14,91,15],[91,16,91,17],[91,20,91,21],[91,22,91,23],[86,22,86,23],[86,24,86,25],[88,20,88,21],[88,22,88,23],[88,24,88,25],[88,33,88,36],[89,24,89,25],[89,33,89,36],[90,10,90,11],[90,12,90,13],[90,14,90,15],[90,16,90,17],[90,20,90,21],[90,22,90,23],[90,24,90,25],[90,33,90,36],[89,10,89,11],[89,12,89,13],[89,14,89,15],[89,16,89,17],[89,20,89,21],[89,22,89,23],[83,36,83,37],[83,39,83,40],[83,42,83,43],[83,45,83,46],[83,48,83,49],[83,51,83,52],[83,150,83,153],[86,10,86,11],[86,12,86,13],[86,14,86,15],[86,16,86,17],[86,20,86,21],[83,108,83,109],[83,111,83,112],[83,114,83,115],[83,117,83,118],[83,120,83,121],[83,123,83,124],[83,90,83,91],[83,93,83,94],[83,96,83,97],[83,99,83,100],[83,102,83,103],[83,105,83,106],[82,39,82,40],[82,42,82,43],[82,45,82,46],[82,48,82,49],[83,84,83,85],[83,87,83,88],[83,54,83,55],[83,57,83,58],[83,60,83,61],[83,63,83,64],[83,66,83,67],[83,69,83,70],[83,72,83,73],[83,75,83,76],[83,78,83,79],[83,81,83,82],[83,0,83,5],[83,6,83,7],[83,9,83,10],[83,12,83,13],[83,15,83,16],[82,105,82,106],[82,108,82,109],[82,111,82,112],[82,114,82,115],[82,87,82,88],[82,90,82,91],[82,93,82,94],[82,96,82,97],[82,99,82,100],[82,102,82,103],[82,69,82,70],[82,72,82,73],[82,75,82,76],[82,78,82,79],[82,81,82,82],[82,84,82,85],[82,51,82,52],[82,54,82,55],[82,57,82,58],[82,15,82,16],[82,18,82,19],[82,21,82,22],[82,24,82,25],[82,27,82,28],[82,30,82,31],[81,0,81,2],[81,3,81,5],[81,150,82,153],[82,0,82,2],[82,3,82,4],[82,6,82,7],[82,9,82,10],[82,12,82,13],[82,123,82,124],[82,126,82,127],[82,129,82,130],[82,117,82,118],[82,120,82,121],[82,60,82,61],[82,63,82,64],[82,66,82,67],[82,33,82,34],[82,36,82,37],[80,114,80,115],[80,117,80,118],[80,120,80,121],[80,123,80,124],[80,126,80,127],[80,129,80,130],[80,96,80,97],[80,99,80,100],[80,102,80,103],[80,105,80,106],[80,108,80,109],[80,111,80,112],[80,78,80,79],[80,81,80,82],[80,87,80,88],[80,90,80,91],[80,93,80,94],[80,60,80,61],[80,63,80,64],[80,66,80,67],[80,69,80,70],[80,72,80,73],[80,75,80,76],[80,84,80,85],[79,0,79,5],[80,0,80,5],[80,6,80,7],[80,9,80,10],[80,12,80,13],[80,15,80,16],[80,18,80,19],[80,21,80,22],[8,114,8,116],[8,78,8,80],[8,81,8,83],[8,87,8,89],[8,90,8,92],[8,93,8,95],[8,60,8,62],[8,63,8,65],[8,66,8,68],[8,69,8,71],[8,72,8,74],[8,75,8,77],[8,54,8,56],[8,57,8,59],[8,24,8,26],[8,27,8,29],[8,120,8,122],[8,123,8,125],[8,126,8,128],[8,129,8,131],[8,96,8,98],[8,99,8,101],[8,102,8,104],[8,105,8,107],[8,108,8,110],[8,111,8,113],[8,33,8,35],[8,36,8,38],[8,39,8,41],[8,84,8,86],[7,150,8,150],[7,151,8,151],[8,6,8,8],[8,9,8,11],[8,12,8,14],[8,15,8,17],[8,18,8,20],[8,21,8,23],[7,114,7,116],[7,117,7,119],[7,120,7,122],[7,123,7,125],[7,126,7,128],[7,129,7,131],[7,96,7,98],[7,99,7,101],[7,102,7,104],[7,105,7,107],[7,108,7,110],[8,117,8,119],[7,87,7,89],[7,90,7,92],[7,93,7,95],[7,60,7,62],[7,63,7,65],[7,66,7,68],[7,69,7,71],[7,72,7,74],[7,75,7,77],[7,54,7,56],[7,57,7,59],[7,24,7,26],[7,27,7,29],[7,30,7,32],[7,33,7,35],[7,36,7,38],[7,39,7,41],[7,84,7,86],[6,150,6,151],[6,152,8,152],[6,153,8,153],[7,6,7,8],[7,9,7,11],[7,12,7,14],[7,15,7,17],[7,18,7,20],[7,21,7,23],[6,117,6,119],[6,120,6,122],[6,123,6,125],[6,126,6,128],[6,129,6,131],[6,99,6,101],[6,102,6,104],[6,105,6,107],[6,108,6,110],[6,111,6,113],[6,54,6,56],[6,57,6,59],[7,111,7,113],[7,78,7,80],[7,81,7,83],[6,0,8,0],[6,1,8,1],[6,2,8,2],[6,3,8,3],[6,4,8,4],[6,6,6,8],[6,45,6,47],[6,48,6,50],[6,51,6,53],[7,42,7,44],[7,45,7,47],[7,48,7,50],[7,51,7,53],[8,42,8,44],[8,45,8,47],[8,48,8,50],[8,51,8,53],[6,27,6,29],[6,30,6,32],[6,33,6,35],[6,36,6,38],[6,39,6,41],[6,42,6,44],[8,30,8,32],[4,26,4,29],[4,30,4,31],[4,32,4,34],[4,35,4,36],[6,9,6,11],[6,12,6,14],[6,15,6,17],[6,18,6,20],[6,21,6,23],[6,24,6,26],[3,41,3,44],[3,46,3,48],[3,49,3,51],[3,54,3,56],[3,57,3,60],[4,0,4,1],[4,2,4,3],[4,4,4,5],[4,6,4,12],[4,14,4,16],[3,17,3,19],[3,22,3,25],[3,26,3,29],[3,30,3,33],[3,34,3,37],[3,38,3,40],[4,38,4,40],[4,41,4,44],[4,46,4,48],[4,49,4,51],[4,54,4,56],[4,57,4,60],[4,17,4,19],[4,22,4,25],[2,38,2,40],[3,0,3,1],[3,2,3,3],[3,4,3,5],[3,6,3,12],[3,14,3,16],[2,17,2,19],[2,22,2,25],[2,26,2,29],[2,30,2,33],[80,36,80,37],[80,39,80,40],[0,38,0,40],[0,41,0,44],[0,46,0,48],[0,54,0,56],[0,57,0,60],[2,0,2,1],[2,2,2,3],[2,4,2,5],[2,6,2,12],[2,14,2,16],[0,0,0,12],[0,14,0,16],[0,17,0,23],[0,30,0,33],[0,34,0,35],[0,36,0,37],[2,41,2,44],[2,46,2,48],[2,49,2,51],[2,54,2,56],[2,57,2,60],[2,34,2,37],[6,141,6,143],[6,147,6,149],[83,18,83,19],[83,21,83,22],[83,24,83,25],[83,27,83,28],[83,30,83,31],[83,33,83,34],[83,126,83,127],[83,129,83,130],[8,141,8,143],[8,147,8,149],[80,138,80,139],[80,141,80,142],[80,147,80,148],[82,138,82,139],[82,141,82,142],[82,147,82,148],[6,60,6,62],[6,87,6,89],[6,90,6,92],[6,93,6,95],[6,96,6,98],[6,63,6,65],[88,12,88,13],[88,14,88,15],[88,16,88,17],[6,114,6,116],[6,81,6,83],[6,84,6,86],[6,132,6,134],[6,135,6,137],[6,138,6,140],[6,66,6,68],[6,69,6,71],[6,72,6,74],[6,75,6,77],[6,78,6,80],[80,42,80,43],[80,45,80,46],[80,48,80,49],[80,51,80,52],[80,54,80,55],[80,57,80,58],[80,24,80,25],[80,27,80,28],[80,30,80,31],[80,33,80,34],[83,147,83,148],[131,33,131,36],[132,33,132,36],[134,33,134,36],[131,10,131,11],[132,10,132,11],[134,10,134,11],[131,12,131,13],[132,12,132,13],[134,12,134,13],[131,14,131,15],[132,14,132,15],[134,14,134,15],[86,33,86,36],[87,10,87,11],[87,12,87,13],[87,14,87,15],[87,16,87,17],[87,20,87,21],[87,22,87,23],[83,135,83,136],[130,10,130,11],[130,12,130,13],[130,14,130,15],[6,144,6,146],[7,144,7,146],[8,144,8,146],[80,144,80,145],[82,144,82,145],[83,144,83,145],[133,10,133,11],[133,12,133,13],[133,14,133,15],[133,16,133,17],[133,20,133,21],[133,22,133,23],[133,24,133,25],[133,33,133,36],[83,138,83,139],[83,141,83,142],[130,16,130,17],[130,20,130,21],[130,22,130,23],[130,24,130,25],[130,33,130,36],[87,24,87,25],[87,33,87,36],[88,10,88,11]]}
[":::: รายงานการขายประจำวัน (Sale Daily Report)  ::::",null,null,null,null,null,null,null,null,null,null,null,null,null,"Print Date : ",null,null,{"$f":"NOW()","v":"2025-04-24T22:39:10.130"},null,null,null,null,null,null,null,null,null,null,null,null,"จำนวนร้าน :",null,null,null,{"$f":"MAX($A$10:$A$79)","v":0},null,"ร้าน",null,"เป้ายอดขาย :",null,null,null,null,null,null,null,{"$f":"C3","v":45801},null,null,{"$f":"LEFT('Problems & Solutions'!$B$2,FIND(\"|\",'Problems & Solutions'!$B$2))&\" วันที่\"&TEXT($C$3,\"[$-107041E] d mmmm yyyy;@\")","v":"ขั้นตอนการตรวจรีพอร์ตขาย | วันที่ 24 พฤษภาคม 2568"},null,null,null,null,"เวลากลับ :"]
[]
["วันที่ :",null,{"$f":"DATE(ใส่ข้อมูล!G2-543,ใส่ข้อมูล!V2,ActiveSheetName)","v":"2025-05-24"},null,"พนักงานขาย",null,{"$f":"INDEX(OFFSET(Sale_Region,,1),ActiveSheetName)","v":0},null,null,null,null,null,null,null,"รวมยอดเบิก :",null,null,{"$f":"E136","v":0},null,null,"ชิ้น",null,"ใหญ่สด(40)",null,null,null,{"$f":"Cash_Major_Bill","v":0},null,null,null,"ใหญ่เชื่อ(42)",null,null,null,{"$f":"Credit_Major_Bill","v":0},null,null,null,"บิลใหญ่ :",null,null,{"$f":"AA3+AI3","v":0},null,null,null,null,"เติมน้ำมัน :",null,null,null,null,null,"บาท",null,"ไมล์ออก :",null,null,{"$f":"เลขไมล์ออก","v":0},null,null,null,"Km"]
["เขตการขาย :",null,{"$f":"INDEX(Sale_Region,ActiveSheetName)","v":0},null,"ผช.ขาย",null,{"$f":"INDEX(OFFSET(Sale_Region,,2),ActiveSheetName)","v":0},null,null,null,null,null,null,null,"ของเหลือ :",null,null,{"$f":"F136","v":0},null,null,"ชิ้น",null,"เล็กสด(41)",null,null,null,{"$f":"Cash_Minor_Bill","v":0},null,null,null,"เล็กเชื่อ(43)",null,null,null,{"$f":"Credit_Minor_Bill","v":0},null,null,null,"บิลเล็ก :",null,null,{"$f":"AA4+AI4","v":0},null,null,null,null,"จำนวนลิตร :",null,null,null,null,null,"ลิตร",null,"ไมล์เข้า :",null,null,null,null,null,null,"Km"]
["สายส่ง :",null,{"$f":"\"Sale \"&ใส่ข้อมูล!E3&\"-\"&ใส่ข้อมูล!G3","v":"Sale KB-01"},null,"พนักงานเสริม",null,{"$f":"INDEX(OFFSET(Sale_Region,,3),ActiveSheetName)","v":0},null,null,null,null,null,null,null,"ของเสีย :",null,null,{"$f":"G136","v":0},null,null,"ชิ้น",null,"น้ำหนักของเสีย",null,null,null,null,null,null,null,"Kg.",null,"%ของเสีย",null,null,{"$f":"IF(Order_Cal=0,0,ROUND(Waste_Cal*100/Order_Cal,2))","v":0},null,"%","VAT :",null,null,{"$f":"EW81","v":0},null,null,null,null,"ต้นทุนสาขา :",null,null,{"$f":"SUMPRODUCT((($A$88:$A$135)-($A$88:$A$135)*0.45)*(($E$88:$E$135)-($G$88:$G$135)))","v":0},null,null,"บาท",null,"ระยะทาง :",null,null,{"$f":"IF(OR($BF$4=0,$BF$3=0),0,$BF$4-$BF$3)","v":0},null,null,null,"Km"]
[]
["No","รหัสร้าน (CustNo)","ชื่อร้าน (Store Name)","เวลาเข้าร้าน","ระยะเวลาระหว่างร้าน","บิล(Invoice)",{"$f":"INDEX(INDIRECT(\"dProduct[ProductName]\"),ROUNDUP(COLUMNS($G:G)/3,0))","v":"ขนมปังหมูหยองน้ำสลัด"},null,null,{"$f":"INDEX(INDIRECT(\"dProduct[ProductName]\"),ROUNDUP(COLUMNS($G:J)/3,0))","v":"ขนมปังหมูหยองน้ำพริกเผา"},null,null,{"$f":"INDEX(INDIRECT(\"dProduct[ProductName]\"),ROUNDUP(COLUMNS($G:M)/3,0))","v":"ขนมปังไก่หยองน้ำสลัด"},null,null,{"$f":"INDEX(INDIRECT(\"dProduct[ProductName]\"),ROUNDUP(COLUMNS($G:P)/3,0))","v":"ขนมปังไส้ครีมสลัด"},null,null,{"$f":"INDEX(INDIRECT(\"dProduct[ProductName]\"),ROUNDUP(COLUMNS($G:S)/3,0))","v":"ขนมปังเนยสด"},null,null,{"$f":"INDEX(INDIRECT(\"dProduct[ProductName]\"),ROUNDUP(COLUMNS($G:V)/3,0))","v":"ขนมปังไส้สังขยาเล็ก"},null,null,{"$f":"INDEX(INDIRECT(\"dProduct[ProductName]\"),ROUNDUP(COLUMNS($G:Y)/3,0))","v":"ขนมปังไส้เผือก"},null,null,{"$f":"INDEX(INDIRECT(\"dProduct[ProductName]\"),ROUNDUP(COLUMNS($G:AB)/3,0))","v":"ขนมปังไส้ถั่วแดง"},null,null,{"$f":"INDEX(INDIRECT(\"dProduct[ProductName]\"),ROUNDUP(COLUMNS($G:AE)/3,0))","v":"ขนมปังไส้ถั่วดำ"},null,null,{"$f":"INDEX(INDIRECT(\"dProduct[ProductName]\"),ROUNDUP(COLUMNS($G:AH)/3,0))","v":"ขนมปังไส้มันม่วง"},null,null,{"$f":"INDEX(INDIRECT(\"dProduct[ProductName]\"),ROUNDUP(COLUMNS($G:AK)/3,0))","v":"เค้กกล้วยหอม"},null,null,{"$f":"INDEX(INDIRECT(\"dProduct[ProductName]\"),ROUNDUP(COLUMNS($G:AN)/3,0))","v":"เค้กบัตเตอร์"},null,null,{"$f":"INDEX(INDIRECT(\"dProduct[ProductName]\"),ROUNDUP(COLUMNS($G:AQ)/3,0))","v":"ขนมปังโรลถั่วแดง"},null,null,{"$f":"INDEX(INDIRECT(\"dProduct[ProductName]\"),ROUNDUP(COLUMNS($G:AT)/3,0))","v":"ขนมปังไส้สังขยาใหญ่"},null,null,{"$f":"INDEX(INDIRECT(\"dProduct[ProductName]\"),ROUNDUP(COLUMNS($G:AW)/3,0))","v":"ขนมปังชนิดแผ่น(480กรัม)"},null,null,{"$f":"INDEX(INDIRECT(\"dProduct[ProductName]\"),ROUNDUP(COLUMNS($G:AZ)/3,0))","v":"โมจิไส้ถั่ว"},null,null,{"$f":"INDEX(INDIRECT(\"dProduct[ProductName]\"),ROUNDUP(COLUMNS($G:BC)/3,0))","v":"โมจิไส้เผือก"},null,null,{"$f":"INDEX(INDIRECT(\"dProduct[ProductName]\"),ROUNDUP(COLUMNS($G:BF)/3,0))","v":"โมจิไส้ถั่วไข่เค็ม"},null,null,{"$f":"INDEX(INDIRECT(\"dProduct[ProductName]\"),ROUNDUP(COLUMNS($G:BI)/3,0))","v":"ขนมปังพิซซ่า"},null,null,{"$f":"INDEX(INDIRECT(\"dProduct[ProductName]\"),ROUNDUP(COLUMNS($G:BL)/3,0))","v":"ขนมปังพิซซ่าปูอัดแฮม"},null,null,{"$f":"INDEX(INDIRECT(\"dProduct[ProductName]\"),ROUNDUP(COLUMNS($G:BO)/3,0))","v":"ขนมปังไส้กรอก"},null,null,{"$f":"INDEX(INDIRECT(\"dProduct[ProductName]\"),ROUNDUP(COLUMNS($G:BR)/3,0))","v":"ขนมก้านบัว"},null,null,{"$f":"INDEX(INDIRECT(\"dProduct[ProductName]\"),ROUNDUP(COLUMNS($G:BU)/3,0))","v":"พายสับปะรด"},null,null,{"$f":"INDEX(INDIRECT(\"dProduct[ProductName]\"),ROUNDUP(COLUMNS($G:BX)/3,0))","v":"พายไส้มะพร้าว"},null,null,{"$f":"INDEX(INDIRECT(\"dProduct[ProductName]\"),ROUNDUP(COLUMNS($G:CA)/3,0))","v":"ขนมปังโรลมันเทศ"},null,null,{"$f":"INDEX(INDIRECT(\"dProduct[ProductName]\"),ROUNDUP(COLUMNS($G:CD)/3,0))","v":"ขนมปังไส้ครีมสลัดน้ำพริกเผา"},null,null,{"$f":"INDEX(INDIRECT(\"dProduct[ProductName]\"),ROUNDUP(COLUMNS($G:CG)/3,0))","v":"ขนมปังไส้สังขยาไข่"},null,null,{"$f":"INDEX(INDIRECT(\"dProduct[ProductName]\"),ROUNDUP(COLUMNS($G:CJ)/3,0))","v":"ขนมปังไส้สังขยามะพร้าว"},null,null,{"$f":"INDEX(INDIRECT(\"dProduct[ProductName]\"),ROUNDUP(COLUMNS($G:CM)/3,0))","v":"ขนมปังไส้ครีมชาไทย"},null,null,{"$f":"INDEX(INDIRECT(\"dProduct[ProductName]\"),ROUNDUP(COLUMNS($G:CP)/3,0))","v":"ขนมปังโรลมันม่วง"},null,null,{"$f":"INDEX(INDIRECT(\"dProduct[ProductName]\"),ROUNDUP(COLUMNS($G:CS)/3,0))","v":"ขนมปังโรลช็อกโกแลต"},null,null,{"$f":"INDEX(INDIRECT(\"dProduct[ProductName]\"),ROUNDUP(COLUMNS($G:CV)/3,0))","v":"ขนมปังชนิดแผ่น(155กรัม)"},null,null,{"$f":"INDEX(INDIRECT(\"dProduct[ProductName]\"),ROUNDUP(COLUMNS($G:CY)/3,0))","v":"ขนมปังโรลเผือก"},null,null,{"$f":"INDEX(INDIRECT(\"dProduct[ProductName]\"),ROUNDUP(COLUMNS($G:DB)/3,0))","v":"ขนมปังไก่หยองน้ำสลัด Mini"},null,null,{"$f":"INDEX(INDIRECT(\"dProduct[ProductName]\"),ROUNDUP(COLUMNS($G:DE)/3,0))","v":"ขนมปังไส้ช็อกโกแลต"},null,null,{"$f":"INDEX(INDIRECT(\"dProduct[ProductName]\"),ROUNDUP(COLUMNS($G:DH)/3,0))","v":"ขนมปังไส้ครีมสังขยาไข่"},null,null,{"$f":"INDEX(INDIRECT(\"dProduct[ProductName]\"),ROUNDUP(COLUMNS($G:DK)/3,0))","v":"ขนมปังพิซซ่าฮาวายเอี้ยน"},null,null,{"$f":"INDEX(INDIRECT(\"dProduct[ProductName]\"),ROUNDUP(COLUMNS($G:DN)/3,0))","v":"ครัวซองต์หมูหยองน้ำสลัด"},null,null,{"$f":"INDEX(INDIRECT(\"dProduct[ProductName]\"),ROUNDUP(COLUMNS($G:DQ)/3,0))","v":"แพนเบรดไส้เผือก"},null,null,{"$f":"INDEX(INDIRECT(\"dProduct[ProductName]\"),ROUNDUP(COLUMNS($G:DT)/3,0))","v":"แพนเบรดไส้ถั่วแดง"},null,null,{"$f":"INDEX(INDIRECT(\"dProduct[ProductName]\"),ROUNDUP(COLUMNS($G:DW)/3,0))","v":"ขนมปังกรอบเนยน้ำตาล(30กรัม)"},null,null,{"$f":"INDEX(INDIRECT(\"dProduct[ProductName]\"),ROUNDUP(COLUMNS($G:DZ)/3,0))","v":"ขนมปังชนิดแผ่นโฮลวีต"},null,null,{"$f":"INDEX(INDIRECT(\"dProduct[ProductName]\"),ROUNDUP(COLUMNS($G:EC)/3,0))","v":"เค้กโรลใบเตย"},null,null,{"$f":"INDEX(INDIRECT(\"dProduct[ProductName]\"),ROUNDUP(COLUMNS($G:EF)/3,0))","v":"ขนมโมจิไส้ถั่วดำ"},null,null,{"$f":"INDEX(INDIRECT(\"dProduct[ProductName]\"),ROUNDUP(COLUMNS($G:EI)/3,0))","v":"ครัวซองต์ไส้กรอกชีส"},null,null,{"$f":"INDEX(INDIRECT(\"dProduct[ProductName]\"),ROUNDUP(COLUMNS($G:EL)/3,0))","v":"ขนมเปี๊ยะไส้ถั่ว"},null,null,{"$f":"INDEX(INDIRECT(\"dProduct[ProductName]\"),ROUNDUP(COLUMNS($G:EO)/3,0))","v":"ขนมเปี๊ยะไส้ฟัก"},null,null,{"$f":"INDEX(INDIRECT(\"dProduct[ProductName]\"),ROUNDUP(COLUMNS($G:ER)/3,0))","v":"มังกี้เค้ก"},null,null,"มูลค่าสินค้า",null,"ภาษี","รวมยอดขาย"]
[null,null,null,null,null,"ราคาขาย",{"$f":"IF(G$7=0,0,INDEX(Price_List,ROUNDUP(COLUMNS($G:G)/3,0)))","v":20},null,null,{"$f":"IF(J$7=0,0,INDEX(Price_List,ROUNDUP(COLUMNS($G:J)/3,0)))","v":20},null,null,{"$f":"IF(M$7=0,0,INDEX(Price_List,ROUNDUP(COLUMNS($G:M)/3,0)))","v":20},null,null,{"$f":"IF(P$7=0,0,INDEX(Price_List,ROUNDUP(COLUMNS($G:P)/3,0)))","v":15},null,null,{"$f":"IF(S$7=0,0,INDEX(Price_List,ROUNDUP(COLUMNS($G:S)/3,0)))","v":15},null,null,{"$f":"IF(V$7=0,0,INDEX(Price_List,ROUNDUP(COLUMNS($G:V)/3,0)))","v":10},null,null,{"$f":"IF(Y$7=0,0,INDEX(Price_List,ROUNDUP(COLUMNS($G:Y)/3,0)))","v":10},null,null,{"$f":"IF(AB$7=0,0,INDEX(Price_List,ROUNDUP(COLUMNS($G:AB)/3,0)))","v":10},null,null,{"$f":"IF(AE$7=0,0,INDEX(Price_List,ROUNDUP(COLUMNS($G:AE)/3,0)))","v":10},null,null,{"$f":"IF(AH$7=0,0,INDEX(Price_List,ROUNDUP(COLUMNS($G:AH)/3,0)))","v":10},null,null,{"$f":"IF(AK$7=0,0,INDEX(Price_List,ROUNDUP(COLUMNS($G:AK)/3,0)))","v":15},null,null,{"$f":"IF(AN$7=0,0,INDEX(Price_List,ROUNDUP(COLUMNS($G:AN)/3,0)))","v":15},null,null,{"$f":"IF(AQ$7=0,0,INDEX(Price_List,ROUNDUP(COLUMNS($G:AQ)/3,0)))","v":15},null,null,{"$f":"IF(AT$7=0,0,INDEX(Price_List,ROUNDUP(COLUMNS($G:AT)/3,0)))","v":15},null,null,{"$f":"IF(AW$7=0,0,INDEX(Price_List,ROUNDUP(COLUMNS($G:AW)/3,0)))","v":42},null,null,{"$f":"IF(AZ$7=0,0,INDEX(Price_List,ROUNDUP(COLUMNS($G:AZ)/3,0)))","v":12},null,null,{"$f":"IF(BC$7=0,0,INDEX(Price_List,ROUNDUP(COLUMNS($G:BC)/3,0)))","v":12},null,null,{"$f":"IF(BF$7=0,0,INDEX(Price_List,ROUNDUP(COLUMNS($G:BF)/3,0)))","v":15},null,null,{"$f":"IF(BI$7=0,0,INDEX(Price_List,ROUNDUP(COLUMNS($G:BI)/3,0)))","v":20},null,null,{"$f":"IF(BL$7=0,0,INDEX(Price_List,ROUNDUP(COLUMNS($G:BL)/3,0)))","v":20},null,null,{"$f":"IF(BO$7=0,0,INDEX(Price_List,ROUNDUP(COLUMNS($G:BO)/3,0)))","v":20},null,null,{"$f":"IF(BR$7=0,0,INDEX(Price_List,ROUNDUP(COLUMNS($G:BR)/3,0)))","v":15},null,null,{"$f":"IF(BU$7=0,0,INDEX(Price_List,ROUNDUP(COLUMNS($G:BU)/3,0)))","v":20},null,null,{"$f":"IF(BX$7=0,0,INDEX(Price_List,ROUNDUP(COLUMNS($G:BX)/3,0)))","v":20},null,null,{"$f":"IF(CA$7=0,0,INDEX(Price_List,ROUNDUP(COLUMNS($G:CA)/3,0)))","v":15},null,null,{"$f":"IF(CD$7=0,0,INDEX(Price_List,ROUNDUP(COLUMNS($G:CD)/3,0)))","v":15},null,null,{"$f":"IF(CG$7=0,0,INDEX(Price_List,ROUNDUP(COLUMNS($G:CG)/3,0)))","v":20},null,null,{"$f":"IF(CJ$7=0,0,INDEX(Price_List,ROUNDUP(COLUMNS($G:CJ)/3,0)))","v":20},null,null,{"$f":"IF(CM$7=0,0,INDEX(Price_List,ROUNDUP(COLUMNS($G:CM)/3,0)))","v":10},null,null,{"$f":"IF(CP$7=0,0,INDEX(Price_List,ROUNDUP(COLUMNS($G:CP)/3,0)))","v":15},null,null,{"$f":"IF(CS$7=0,0,INDEX(Price_List,ROUNDUP(COLUMNS($G:CS)/3,0)))","v":15},null,null,{"$f":"IF(CV$7=0,0,INDEX(Price_List,ROUNDUP(COLUMNS($G:CV)/3,0)))","v":16},null,null,{"$f":"IF(CY$7=0,0,INDEX(Price_List,ROUNDUP(COLUMNS($G:CY)/3,0)))","v":15},null,null,{"$f":"IF(DB$7=0,0,INDEX(Price_List,ROUNDUP(COLUMNS($G:DB)/3,0)))","v":15},null,null,{"$f":"IF(DE$7=0,0,INDEX(Price_List,ROUNDUP(COLUMNS($G:DE)/3,0)))","v":10},null,null,{"$f":"IF(DH$7=0,0,INDEX(Price_List,ROUNDUP(COLUMNS($G:DH)/3,0)))","v":10},null,null,{"$f":"IF(DK$7=0,0,INDEX(Price_List,ROUNDUP(COLUMNS($G:DK)/3,0)))","v":20},null,null,{"$f":"IF(DN$7=0,0,INDEX(Price_List,ROUNDUP(COLUMNS($G:DN)/3,0)))","v":20},null,null,{"$f":"IF(DQ$7=0,0,INDEX(Price_List,ROUNDUP(COLUMNS($G:DQ)/3,0)))","v":15},null,null,{"$f":"IF(DT$7=0,0,INDEX(Price_List,ROUNDUP(COLUMNS($G:DT)/3,0)))","v":15},null,null,{"$f":"IF(DW$7=0,0,INDEX(Price_List,ROUNDUP(COLUMNS($G:DW)/3,0)))","v":12},null,null,{"$f":"IF(DZ$7=0,0,INDEX(Price_List,ROUNDUP(COLUMNS($G:DZ)/3,0)))","v":18},null,null,{"$f":"IF(EC$7=0,0,INDEX(Price_List,ROUNDUP(COLUMNS($G:EC)/3,0)))","v":12},null,null,{"$f":"IF(EF$7=0,0,INDEX(Price_List,ROUNDUP(COLUMNS($G:EF)/3,0)))","v":12},null,null,{"$f":"IF(EI$7=0,0,INDEX(Price_List,ROUNDUP(COLUMNS($G:EI)/3,0)))","v":25},null,null,{"$f":"IF(EL$7=0,0,INDEX(Price_List,ROUNDUP(COLUMNS($G:EL)/3,0)))","v":12},null,null,{"$f":"IF(EO$7=0,0,INDEX(Price_List,ROUNDUP(COLUMNS($G:EO)/3,0)))","v":12},null,null,{"$f":"IF(ER$7=0,0,INDEX(Price_List,ROUNDUP(COLUMNS($G:ER)/3,0)))","v":12},null,null,"เงินเชื่อ","เงินสด"]
[null,null,null,null,null,"คงเหลือ(ตามบัญชี)",{"$f":"IF(G$7=0,0,INDEX(INDIRECT(Order_Rng),ROUNDUP(COLUMNS($G:G)/3,0)))","v":0},null,null,{"$f":"IF(J$7=0,0,INDEX(INDIRECT(Order_Rng),ROUNDUP(COLUMNS($G:J)/3,0)))","v":0},null,null,{"$f":"IF(M$7=0,0,INDEX(INDIRECT(Order_Rng),ROUNDUP(COLUMNS($G:M)/3,0)))","v":0},null,null,{"$f":"IF(P$7=0,0,INDEX(INDIRECT(Order_Rng),ROUNDUP(COLUMNS($G:P)/3,0)))","v":0},null,null,{"$f":"IF(S$7=0,0,INDEX(INDIRECT(Order_Rng),ROUNDUP(COLUMNS($G:S)/3,0)))","v":0},null,null,{"$f":"IF(V$7=0,0,INDEX(INDIRECT(Order_Rng),ROUNDUP(COLUMNS($G:V)/3,0)))","v":0},null,null,{"$f":"IF(Y$7=0,0,INDEX(INDIRECT(Order_Rng),ROUNDUP(COLUMNS($G:Y)/3,0)))","v":0},null,null,{"$f":"IF(AB$7=0,0,INDEX(INDIRECT(Order_Rng),ROUNDUP(COLUMNS($G:AB)/3,0)))","v":0},null,null,{"$f":"IF(AE$7=0,0,INDEX(INDIRECT(Order_Rng),ROUNDUP(COLUMNS($G:AE)/3,0)))","v":0},null,null,{"$f":"IF(AH$7=0,0,INDEX(INDIRECT(Order_Rng),ROUNDUP(COLUMNS($G:AH)/3,0)))","v":0},null,null,{"$f":"IF(AK$7=0,0,INDEX(INDIRECT(Order_Rng),ROUNDUP(COLUMNS($G:AK)/3,0)))","v":0},null,null,{"$f":"IF(AN$7=0,0,INDEX(INDIRECT(Order_Rng),ROUNDUP(COLUMNS($G:AN)/3,0)))","v":0},null,null,{"$f":"IF(AQ$7=0,0,INDEX(INDIRECT(Order_Rng),ROUNDUP(COLUMNS($G:AQ)/3,0)))","v":0},null,null,{"$f":"IF(AT$7=0,0,INDEX(INDIRECT(Order_Rng),ROUNDUP(COLUMNS($G:AT)/3,0)))","v":0},null,null,{"$f":"IF(AW$7=0,0,INDEX(INDIRECT(Order_Rng),ROUNDUP(COLUMNS($G:AW)/3,0)))","v":0},null,null,{"$f":"IF(AZ$7=0,0,INDEX(INDIRECT(Order_Rng),ROUNDUP(COLUMNS($G:AZ)/3,0)))","v":0},null,null,{"$f":"IF(BC$7=0,0,INDEX(INDIRECT(Order_Rng),ROUNDUP(COLUMNS($G:BC)/3,0)))","v":0},null,null,{"$f":"IF(BF$7=0,0,INDEX(INDIRECT(Order_Rng),ROUNDUP(COLUMNS($G:BF)/3,0)))","v":0},null,null,{"$f":"IF(BI$7=0,0,INDEX(INDIRECT(Order_Rng),ROUNDUP(COLUMNS($G:BI)/3,0)))","v":0},null,null,{"$f":"IF(BL$7=0,0,INDEX(INDIRECT(Order_Rng),ROUNDUP(COLUMNS($G:BL)/3,0)))","v":0},null,null,{"$f":"IF(BO$7=0,0,INDEX(INDIRECT(Order_Rng),ROUNDUP(COLUMNS($G:BO)/3,0)))","v":0},null,null,{"$f":"IF(BR$7=0,0,INDEX(INDIRECT(Order_Rng),ROUNDUP(COLUMNS($G:BR)/3,0)))","v":0},null,null,{"$f":"IF(BU$7=0,0,INDEX(INDIRECT(Order_Rng),ROUNDUP(COLUMNS($G:BU)/3,0)))","v":0},null,null,{"$f":"IF(BX$7=0,0,INDEX(INDIRECT(Order_Rng),ROUNDUP(COLUMNS($G:BX)/3,0)))","v":0},null,null,{"$f":"IF(CA$7=0,0,INDEX(INDIRECT(Order_Rng),ROUNDUP(COLUMNS($G:CA)/3,0)))","v":0},null,null,{"$f":"IF(CD$7=0,0,INDEX(INDIRECT(Order_Rng),ROUNDUP(COLUMNS($G:CD)/3,0)))","v":0},null,null,{"$f":"IF(CG$7=0,0,INDEX(INDIRECT(Order_Rng),ROUNDUP(COLUMNS($G:CG)/3,0)))","v":0},null,null,{"$f":"IF(CJ$7=0,0,INDEX(INDIRECT(Order_Rng),ROUNDUP(COLUMNS($G:CJ)/3,0)))","v":0},null,null,{"$f":"IF(CM$7=0,0,INDEX(INDIRECT(Order_Rng),ROUNDUP(COLUMNS($G:CM)/3,0)))","v":0},null,null,{"$f":"IF(CP$7=0,0,INDEX(INDIRECT(Order_Rng),ROUNDUP(COLUMNS($G:CP)/3,0)))","v":0},null,null,{"$f":"IF(CS$7=0,0,INDEX(INDIRECT(Order_Rng),ROUNDUP(COLUMNS($G:CS)/3,0)))","v":0},null,null,{"$f":"IF(CV$7=0,0,INDEX(INDIRECT(Order_Rng),ROUNDUP(COLUMNS($G:CV)/3,0)))","v":0},null,null,{"$f":"IF(CY$7=0,0,INDEX(INDIRECT(Order_Rng),ROUNDUP(COLUMNS($G:CY)/3,0)))","v":0},null,null,{"$f":"IF(DB$7=0,0,INDEX(INDIRECT(Order_Rng),ROUNDUP(COLUMNS($G:DB)/3,0)))","v":0},null,null,{"$f":"IF(DE$7=0,0,INDEX(INDIRECT(Order_Rng),ROUNDUP(COLUMNS($G:DE)/3,0)))","v":0},null,null,{"$f":"IF(DH$7=0,0,INDEX(INDIRECT(Order_Rng),ROUNDUP(COLUMNS($G:DH)/3,0)))","v":0},null,null,{"$f":"IF(DK$7=0,0,INDEX(INDIRECT(Order_Rng),ROUNDUP(COLUMNS($G:DK)/3,0)))","v":0},null,null,{"$f":"IF(DN$7=0,0,INDEX(INDIRECT(Order_Rng),ROUNDUP(COLUMNS($G:DN)/3,0)))","v":0},null,null,{"$f":"IF(DQ$7=0,0,INDEX(INDIRECT(Order_Rng),ROUNDUP(COLUMNS($G:DQ)/3,0)))","v":0},null,null,{"$f":"IF(DT$7=0,0,INDEX(INDIRECT(Order_Rng),ROUNDUP(COLUMNS($G:DT)/3,0)))","v":0},null,null,{"$f":"IF(DW$7=0,0,INDEX(INDIRECT(Order_Rng),ROUNDUP(COLUMNS($G:DW)/3,0)))","v":0},null,null,{"$f":"IF(DZ$7=0,0,INDEX(INDIRECT(Order_Rng),ROUNDUP(COLUMNS($G:DZ)/3,0)))","v":0},null,null,{"$f":"IF(EC$7=0,0,INDEX(INDIRECT(Order_Rng),ROUNDUP(COLUMNS($G:EC)/3,0)))","v":0},null,null,{"$f":"IF(EF$7=0,0,INDEX(INDIRECT(Order_Rng),ROUNDUP(COLUMNS($G:EF)/3,0)))","v":0},null,null,{"$f":"IF(EI$7=0,0,INDEX(INDIRECT(Order_Rng),ROUNDUP(COLUMNS($G:EI)/3,0)))","v":0},null,null,{"$f":"IF(EL$7=0,0,INDEX(INDIRECT(Order_Rng),ROUNDUP(COLUMNS($G:EL)/3,0)))","v":0},null,null,{"$f":"IF(EO$7=0,0,INDEX(INDIRECT(Order_Rng),ROUNDUP(COLUMNS($G:EO)/3,0)))","v":0},null,null,{"$f":"IF(ER$7=0,0,INDEX(INDIRECT(Order_Rng),ROUNDUP(COLUMNS($G:ER)/3,0)))","v":0}]
[{"$f":"IF(OR($B10=\"\",COUNTIF($B$10:$B10,$B10)>1,LEN(TRIM($B10))<>10,ISNUMBER(--MID(TRIM($B10),5,1))),\"-\",MAX(COUNT($A$9:$A9)+1))","v":"-"}]
[{"$f":"IF(OR($B11=\"\",COUNTIF($B$10:$B11,$B11)>1,LEN(TRIM($B11))<>10,ISNUMBER(--MID(TRIM($B11),5,1))),\"-\",MAX(COUNT($A$9:$A10)+1))","v":"-"},null,null,null,{"$f":"IF(D11=\"\",\"\",D11-D10)","v":""}]
[{"$f":"IF(OR($B12=\"\",COUNTIF($B$10:$B12,$B12)>1,LEN(TRIM($B12))<>10,ISNUMBER(--MID(TRIM($B12),5,1))),\"-\",MAX(COUNT($A$9:$A11)+1))","v":"-"},null,null,null,{"$f":"IF(D12=\"\",\"\",D12-D11)","v":""}]
[{"$f":"IF(OR($B13=\"\",COUNTIF($B$10:$B13,$B13)>1,LEN(TRIM($B13))<>10,ISNUMBER(--MID(TRIM($B13),5,1))),\"-\",MAX(COUNT($A$9:$A12)+1))","v":"-"},null,null,null,""]
[{"$f":"IF(OR($B14=\"\",COUNTIF($B$10:$B14,$B14)>1,LEN(TRIM($B14))<>10,ISNUMBER(--MID(TRIM($B14),5,1))),\"-\",MAX(COUNT($A$9:$A13)+1))","v":"-"},null,null,null,""]
[{"$f":"IF(OR($B15=\"\",COUNTIF($B$10:$B15,$B15)>1,LEN(TRIM($B15))<>10,ISNUMBER(--MID(TRIM($B15),5,1))),\"-\",MAX(COUNT($A$9:$A14)+1))","v":"-"},null,null,null,""]
[{"$f":"IF(OR($B16=\"\",COUNTIF($B$10:$B16,$B16)>1,LEN(TRIM($B16))<>10,ISNUMBER(--MID(TRIM($B16),5,1))),\"-\",MAX(COUNT($A$9:$A15)+1))","v":"-"},null,null,null,""]
[{"$f":"IF(OR($B17=\"\",COUNTIF($B$10:$B17,$B17)>1,LEN(TRIM($B17))<>10,ISNUMBER(--MID(TRIM($B17),5,1))),\"-\",MAX(COUNT($A$9:$A16)+1))","v":"-"},null,null,null,""]
[{"$f":"IF(OR($B18=\"\",COUNTIF($B$10:$B18,$B18)>1,LEN(TRIM($B18))<>10,ISNUMBER(--MID(TRIM($B18),5,1))),\"-\",MAX(COUNT($A$9:$A17)+1))","v":"-"},null,null,null,""]
[{"$f":"IF(OR($B19=\"\",COUNTIF($B$10:$B19,$B19)>1,LEN(TRIM($B19))<>10,ISNUMBER(--MID(TRIM($B19),5,1))),\"-\",MAX(COUNT($A$9:$A18)+1))","v":"-"},null,null,null,""]
[{"$f":"IF(OR($B20=\"\",COUNTIF($B$10:$B20,$B20)>1,LEN(TRIM($B20))<>10,ISNUMBER(--MID(TRIM($B20),5,1))),\"-\",MAX(COUNT($A$9:$A19)+1))","v":"-"},null,null,null,""]
[{"$f":"IF(OR($B21=\"\",COUNTIF($B$10:$B21,$B21)>1,LEN(TRIM($B21))<>10,ISNUMBER(--MID(TRIM($B21),5,1))),\"-\",MAX(COUNT($A$9:$A20)+1))","v":"-"},null,null,null,""]
[{"$f":"IF(OR($B22=\"\",COUNTIF($B$10:$B22,$B22)>1,LEN(TRIM($B22))<>10,ISNUMBER(--MID(TRIM($B22),5,1))),\"-\",MAX(COUNT($A$9:$A21)+1))","v":"-"},null,null,null,""]
[{"$f":"IF(OR($B23=\"\",COUNTIF($B$10:$B23,$B23)>1,LEN(TRIM($B23))<>10,ISNUMBER(--MID(TRIM($B23),5,1))),\"-\",MAX(COUNT($A$9:$A22)+1))","v":"-"},null,null,null,""]
[{"$f":"IF(OR($B24=\"\",COUNTIF($B$10:$B24,$B24)>1,LEN(TRIM($B24))<>10,ISNUMBER(--MID(TRIM($B24),5,1))),\"-\",MAX(COUNT($A$9:$A23)+1))","v":"-"},null,null,null,""]
[{"$f":"IF(OR($B25=\"\",COUNTIF($B$10:$B25,$B25)>1,LEN(TRIM($B25))<>10,ISNUMBER(--MID(TRIM($B25),5,1))),\"-\",MAX(COUNT($A$9:$A24)+1))","v":"-"},null,null,null,""]
[{"$f":"IF(OR($B26=\"\",COUNTIF($B$10:$B26,$B26)>1,LEN(TRIM($B26))<>10,ISNUMBER(--MID(TRIM($B26),5,1))),\"-\",MAX(COUNT($A$9:$A25)+1))","v":"-"},null,null,null,""]
[{"$f":"IF(OR($B27=\"\",COUNTIF($B$10:$B27,$B27)>1,LEN(TRIM($B27))<>10,ISNUMBER(--MID(TRIM($B27),5,1))),\"-\",MAX(COUNT($A$9:$A26)+1))","v":"-"},null,null,null,""]
[{"$f":"IF(OR($B28=\"\",COUNTIF($B$10:$B28,$B28)>1,LEN(TRIM($B28))<>10,ISNUMBER(--MID(TRIM($B28),5,1))),\"-\",MAX(COUNT($A$9:$A27)+1))","v":"-"},null,null,null,""]
[{"$f":"IF(OR($B29=\"\",COUNTIF($B$10:$B29,$B29)>1,LEN(TRIM($B29))<>10,ISNUMBER(--MID(TRIM($B29),5,1))),\"-\",MAX(COUNT($A$9:$A28)+1))","v":"-"},null,null,null,""]
[{"$f":"IF(OR($B30=\"\",COUNTIF($B$10:$B30,$B30)>1,LEN(TRIM($B30))<>10,ISNUMBER(--MID(TRIM($B30),5,1))),\"-\",MAX(COUNT($A$9:$A29)+1))","v":"-"},null,null,null,""]
[{"$f":"IF(OR($B31=\"\",COUNTIF($B$10:$B31,$B31)>1,LEN(TRIM($B31))<>10,ISNUMBER(--MID(TRIM($B31),5,1))),\"-\",MAX(COUNT($A$9:$A30)+1))","v":"-"},null,null,null,""]
[{"$f":"IF(OR($B32=\"\",COUNTIF($B$10:$B32,$B32)>1,LEN(TRIM($B32))<>10,ISNUMBER(--MID(TRIM($B32),5,1))),\"-\",MAX(COUNT($A$9:$A31)+1))","v":"-"},null,null,null,""]
[{"$f":"IF(OR($B33=\"\",COUNTIF($B$10:$B33,$B33)>1,LEN(TRIM($B33))<>10,ISNUMBER(--MID(TRIM($B33),5,1))),\"-\",MAX(COUNT($A$9:$A32)+1))","v":"-"},null,null,null,""]
[{"$f":"IF(OR($B34=\"\",COUNTIF($B$10:$B34,$B34)>1,LEN(TRIM($B34))<>10,ISNUMBER(--MID(TRIM($B34),5,1))),\"-\",MAX(COUNT($A$9:$A33)+1))","v":"-"},null,null,null,""]
[{"$f":"IF(OR($B35=\"\",COUNTIF($B$10:$B35,$B35)>1,LEN(TRIM($B35))<>10,ISNUMBER(--MID(TRIM($B35),5,1))),\"-\",MAX(COUNT($A$9:$A34)+1))","v":"-"},null,null,null,""]
[{"$f":"IF(OR($B36=\"\",COUNTIF($B$10:$B36,$B36)>1,LEN(TRIM($B36))<>10,ISNUMBER(--MID(TRIM($B36),5,1))),\"-\",MAX(COUNT($A$9:$A35)+1))","v":"-"},null,null,null,""]
[{"$f":"IF(OR($B37=\"\",COUNTIF($B$10:$B37,$B37)>1,LEN(TRIM($B37))<>10,ISNUMBER(--MID(TRIM($B37),5,1))),\"-\",MAX(COUNT($A$9:$A36)+1))","v":"-"},null,null,null,""]
[{"$f":"IF(OR($B38=\"\",COUNTIF($B$10:$B38,$B38)>1,LEN(TRIM($B38))<>10,ISNUMBER(--MID(TRIM($B38),5,1))),\"-\",MAX(COUNT($A$9:$A37)+1))","v":"-"},null,null,null,""]
[{"$f":"IF(OR($B39=\"\",COUNTIF($B$10:$B39,$B39)>1,LEN(TRIM($B39))<>10,ISNUMBER(--MID(TRIM($B39),5,1))),\"-\",MAX(COUNT($A$9:$A38)+1))","v":"-"},null,null,null,""]
[{"$f":"IF(OR($B40=\"\",COUNTIF($B$10:$B40,$B40)>1,LEN(TRIM($B40))<>10,ISNUMBER(--MID(TRIM($B40),5,1))),\"-\",MAX(COUNT($A$9:$A39)+1))","v":"-"},null,null,null,""]
[{"$f":"IF(OR($B41=\"\",COUNTIF($B$10:$B41,$B41)>1,LEN(TRIM($B41))<>10,ISNUMBER(--MID(TRIM($B41),5,1))),\"-\",MAX(COUNT($A$9:$A40)+1))","v":"-"},null,null,null,""]
[{"$f":"IF(OR($B42=\"\",COUNTIF($B$10:$B42,$B42)>1,LEN(TRIM($B42))<>10,ISNUMBER(--MID(TRIM($B42),5,1))),\"-\",MAX(COUNT($A$9:$A41)+1))","v":"-"},null,null,null,""]
[{"$f":"IF(OR($B43=\"\",COUNTIF($B$10:$B43,$B43)>1,LEN(TRIM($B43))<>10,ISNUMBER(--MID(TRIM($B43),5,1))),\"-\",MAX(COUNT($A$9:$A42)+1))","v":"-"},null,null,null,""]
[{"$f":"IF(OR($B44=\"\",COUNTIF($B$10:$B44,$B44)>1,LEN(TRIM($B44))<>10,ISNUMBER(--MID(TRIM($B44),5,1))),\"-\",MAX(COUNT($A$9:$A43)+1))","v":"-"},null,null,null,""]
[{"$f":"IF(OR($B45=\"\",COUNTIF($B$10:$B45,$B45)>1,LEN(TRIM($B45))<>10,ISNUMBER(--MID(TRIM($B45),5,1))),\"-\",MAX(COUNT($A$9:$A44)+1))","v":"-"},null,null,null,""]
[{"$f":"IF(OR($B46=\"\",COUNTIF($B$10:$B46,$B46)>1,LEN(TRIM($B46))<>10,ISNUMBER(--MID(TRIM($B46),5,1))),\"-\",MAX(COUNT($A$9:$A45)+1))","v":"-"},null,null,null,""]
[{"$f":"IF(OR($B47=\"\",COUNTIF($B$10:$B47,$B47)>1,LEN(TRIM($B47))<>10,ISNUMBER(--MID(TRIM($B47),5,1))),\"-\",MAX(COUNT($A$9:$A46)+1))","v":"-"},null,null,null,""]
[{"$f":"IF(OR($B48=\"\",COUNTIF($B$10:$B48,$B48)>1,LEN(TRIM($B48))<>10,ISNUMBER(--MID(TRIM($B48),5,1))),\"-\",MAX(COUNT($A$9:$A47)+1))","v":"-"},null,null,null,""]
[{"$f":"IF(OR($B49=\"\",COUNTIF($B$10:$B49,$B49)>1,LEN(TRIM($B49))<>10,ISNUMBER(--MID(TRIM($B49),5,1))),\"-\",MAX(COUNT($A$9:$A48)+1))","v":"-"},null,null,null,""]
[{"$f":"IF(OR($B50=\"\",COUNTIF($B$10:$B50,$B50)>1,LEN(TRIM($B50))<>10,ISNUMBER(--MID(TRIM($B50),5,1))),\"-\",MAX(COUNT($A$9:$A49)+1))","v":"-"},null,null,null,""]
[{"$f":"IF(OR($B51=\"\",COUNTIF($B$10:$B51,$B51)>1,LEN(TRIM($B51))<>10,ISNUMBER(--MID(TRIM($B51),5,1))),\"-\",MAX(COUNT($A$9:$A50)+1))","v":"-"},null,null,null,""]
[{"$f":"IF(OR($B52=\"\",COUNTIF($B$10:$B52,$B52)>1,LEN(TRIM($B52))<>10,ISNUMBER(--MID(TRIM($B52),5,1))),\"-\",MAX(COUNT($A$9:$A51)+1))","v":"-"},null,null,null,""]
[{"$f":"IF(OR($B53=\"\",COUNTIF($B$10:$B53,$B53)>1,LEN(TRIM($B53))<>10,ISNUMBER(--MID(TRIM($B53),5,1))),\"-\",MAX(COUNT($A$9:$A52)+1))","v":"-"},null,null,null,""]
[{"$f":"IF(OR($B54=\"\",COUNTIF($B$10:$B54,$B54)>1,LEN(TRIM($B54))<>10,ISNUMBER(--MID(TRIM($B54),5,1))),\"-\",MAX(COUNT($A$9:$A53)+1))","v":"-"},null,null,null,""]
[{"$f":"IF(OR($B55=\"\",COUNTIF($B$10:$B55,$B55)>1,LEN(TRIM($B55))<>10,ISNUMBER(--MID(TRIM($B55),5,1))),\"-\",MAX(COUNT($A$9:$A54)+1))","v":"-"},null,null,null,""]
[{"$f":"IF(OR($B56=\"\",COUNTIF($B$10:$B56,$B56)>1,LEN(TRIM($B56))<>10,ISNUMBER(--MID(TRIM($B56),5,1))),\"-\",MAX(COUNT($A$9:$A55)+1))","v":"-"},null,null,null,""]
[{"$f":"IF(OR($B57=\"\",COUNTIF($B$10:$B57,$B57)>1,LEN(TRIM($B57))<>10,ISNUMBER(--MID(TRIM($B57),5,1))),\"-\",MAX(COUNT($A$9:$A56)+1))","v":"-"},null,null,null,""]
[{"$f":"IF(OR($B58=\"\",COUNTIF($B$10:$B58,$B58)>1,LEN(TRIM($B58))<>10,ISNUMBER(--MID(TRIM($B58),5,1))),\"-\",MAX(COUNT($A$9:$A57)+1))","v":"-"},null,null,null,""]
[{"$f":"IF(OR($B59=\"\",COUNTIF($B$10:$B59,$B59)>1,LEN(TRIM($B59))<>10,ISNUMBER(--MID(TRIM($B59),5,1))),\"-\",MAX(COUNT($A$9:$A58)+1))","v":"-"},null,null,null,""]
[{"$f":"IF(OR($B60=\"\",COUNTIF($B$10:$B60,$B60)>1,LEN(TRIM($B60))<>10,ISNUMBER(--MID(TRIM($B60),5,1))),\"-\",MAX(COUNT($A$9:$A59)+1))","v":"-"},null,null,null,""]
[{"$f":"IF(OR($B61=\"\",COUNTIF($B$10:$B61,$B61)>1,LEN(TRIM($B61))<>10,ISNUMBER(--MID(TRIM($B61),5,1))),\"-\",MAX(COUNT($A$9:$A60)+1))","v":"-"},null,null,null,""]
[{"$f":"IF(OR($B62=\"\",COUNTIF($B$10:$B62,$B62)>1,LEN(TRIM($B62))<>10,ISNUMBER(--MID(TRIM($B62),5,1))),\"-\",MAX(COUNT($A$9:$A61)+1))","v":"-"},null,null,null,""]
[{"$f":"IF(OR($B63=\"\",COUNTIF($B$10:$B63,$B63)>1,LEN(TRIM($B63))<>10,ISNUMBER(--MID(TRIM($B63),5,1))),\"-\",MAX(COUNT($A$9:$A62)+1))","v":"-"},null,null,null,""]
[{"$f":"IF(OR($B64=\"\",COUNTIF($B$10:$B64,$B64)>1,LEN(TRIM($B64))<>10,ISNUMBER(--MID(TRIM($B64),5,1))),\"-\",MAX(COUNT($A$9:$A63)+1))","v":"-"},null,null,null,""]
[{"$f":"IF(OR($B65=\"\",COUNTIF($B$10:$B65,$B65)>1,LEN(TRIM($B65))<>10,ISNUMBER(--MID(TRIM($B65),5,1))),\"-\",MAX(COUNT($A$9:$A64)+1))","v":"-"},null,null,null,""]
[{"$f":"IF(OR($B66=\"\",COUNTIF($B$10:$B66,$B66)>1,LEN(TRIM($B66))<>10,ISNUMBER(--MID(TRIM($B66),5,1))),\"-\",MAX(COUNT($A$9:$A65)+1))","v":"-"},null,null,null,""]
[{"$f":"IF(OR($B67=\"\",COUNTIF($B$10:$B67,$B67)>1,LEN(TRIM($B67))<>10,ISNUMBER(--MID(TRIM($B67),5,1))),\"-\",MAX(COUNT($A$9:$A66)+1))","v":"-"},null,null,null,""]
[{"$f":"IF(OR($B68=\"\",COUNTIF($B$10:$B68,$B68)>1,LEN(TRIM($B68))<>10,ISNUMBER(--MID(TRIM($B68),5,1))),\"-\",MAX(COUNT($A$9:$A67)+1))","v":"-"},null,null,null,""]
[{"$f":"IF(OR($B69=\"\",COUNTIF($B$10:$B69,$B69)>1,LEN(TRIM($B69))<>10,ISNUMBER(--MID(TRIM($B69),5,1))),\"-\",MAX(COUNT($A$9:$A68)+1))","v":"-"},null,null,null,""]
[{"$f":"IF(OR($B70=\"\",COUNTIF($B$10:$B70,$B70)>1,LEN(TRIM($B70))<>10,ISNUMBER(--MID(TRIM($B70),5,1))),\"-\",MAX(COUNT($A$9:$A69)+1))","v":"-"},null,null,null,""]
[{"$f":"IF(OR($B71=\"\",COUNTIF($B$10:$B71,$B71)>1,LEN(TRIM($B71))<>10,ISNUMBER(--MID(TRIM($B71),5,1))),\"-\",MAX(COUNT($A$9:$A70)+1))","v":"-"},null,null,null,""]
[{"$f":"IF(OR($B72=\"\",COUNTIF($B$10:$B72,$B72)>1,LEN(TRIM($B72))<>10,ISNUMBER(--MID(TRIM($B72),5,1))),\"-\",MAX(COUNT($A$9:$A71)+1))","v":"-"},null,null,null,""]
[{"$f":"IF(OR($B73=\"\",COUNTIF($B$10:$B73,$B73)>1,LEN(TRIM($B73))<>10,ISNUMBER(--MID(TRIM($B73),5,1))),\"-\",MAX(COUNT($A$9:$A72)+1))","v":"-"},null,null,null,""]
[{"$f":"IF(OR($B74=\"\",COUNTIF($B$10:$B74,$B74)>1,LEN(TRIM($B74))<>10,ISNUMBER(--MID(TRIM($B74),5,1))),\"-\",MAX(COUNT($A$9:$A73)+1))","v":"-"},null,null,null,""]
[{"$f":"IF(OR($B75=\"\",COUNTIF($B$10:$B75,$B75)>1,LEN(TRIM($B75))<>10,ISNUMBER(--MID(TRIM($B75),5,1))),\"-\",MAX(COUNT($A$9:$A74)+1))","v":"-"},null,null,null,""]
[{"$f":"IF(OR($B76=\"\",COUNTIF($B$10:$B76,$B76)>1,LEN(TRIM($B76))<>10,ISNUMBER(--MID(TRIM($B76),5,1))),\"-\",MAX(COUNT($A$9:$A75)+1))","v":"-"},null,null,null,{"$f":"IF(D76=\"\",\"\",D76-D75)","v":""}]
[{"$f":"IF(OR($B77=\"\",COUNTIF($B$10:$B77,$B77)>1,LEN(TRIM($B77))<>10,ISNUMBER(--MID(TRIM($B77),5,1))),\"-\",MAX(COUNT($A$9:$A76)+1))","v":"-"},null,null,null,""]
[{"$f":"IF(OR($B78=\"\",COUNTIF($B$10:$B78,$B78)>1,LEN(TRIM($B78))<>10,ISNUMBER(--MID(TRIM($B78),5,1))),\"-\",MAX(COUNT($A$9:$A77)+1))","v":"-"},null,null,null,""]
[{"$f":"IF(OR($B79=\"\",COUNTIF($B$10:$B79,$B79)>1,LEN(TRIM($B79))<>10,ISNUMBER(--MID(TRIM($B79),5,1))),\"-\",MAX(COUNT($A$9:$A78)+1))","v":"-"},null,null,null,""]
["รวมของขาย|ของเสีย|เหลือบนเชลฟ์",null,null,null,null,null,{"$f":"SUM(G10:G79)","v":0},0,0,{"$f":"SUM(J10:J79)","v":0},0,0,0,0,0,0,0,0,0,0,0,0,0,0,0,0,0,0,0,0,0,0,0,0,0,0,0,0,0,0,0,0,0,0,0,0,0,0,0,0,0,0,0,0,0,0,0,0,0,0,0,0,0,0,0,0,0,0,0,0,0,0,0,{"$f":"SUM(BV10:BV79)","v":0},0,0,0,0,0,0,0,0,0,0,0,0,0,0,0,0,0,0,0,0,0,0,0,0,0,0,0,0,0,0,0,0,0,0,0,0,0,0,0,0,0,0,0,0,0,0,0,0,0,0,0,0,0,0,0,0,0,0,0,0,0,{"$f":"SUM(EF10:EF79)","v":0},0,0,{"$f":"SUM(EI10:EI79)","v":0},0,0,0,0,0,{"$f":"SUM(EO10:EO79)","v":0},0,0,0,0,0,"รวมเงินเชื่อ","รวมเงินสด","ภาษี","รวมยอดขาย"]
["ของเหลือ",null,null,null,null,null,{"$f":"G80+H80-G9","v":0},null,null,{"$f":"J80+K80-J9","v":0},null,null,{"$f":"M80+N80-M9","v":0},null,null,{"$f":"P80+Q80-P9","v":0},null,null,{"$f":"S80+T80-S9","v":0},null,null,{"$f":"V80+W80-V9","v":0},null,null,{"$f":"Y80+Z80-Y9","v":0},null,null,{"$f":"AB80+AC80-AB9","v":0},null,null,{"$f":"AE80+AF80-AE9","v":0},null,null,{"$f":"AH80+AI80-AH9","v":0},null,null,{"$f":"AK80+AL80-AK9","v":0},null,null,{"$f":"AN80+AO80-AN9","v":0},null,null,{"$f":"AQ80+AR80-AQ9","v":0},null,null,{"$f":"AT80+AU80-AT9","v":0},null,null,{"$f":"AW80+AX80-AW9","v":0},null,null,{"$f":"AZ80+BA80-AZ9","v":0},null,null,{"$f":"BC80+BD80-BC9","v":0},null,null,{"$f":"BF80+BG80-BF9","v":0},null,null,{"$f":"BI80+BJ80-BI9","v":0},null,null,{"$f":"BL80+BM80-BL9","v":0},null,null,{"$f":"BO80+BP80-BO9","v":0},null,null,{"$f":"BR80+BS80-BR9","v":0},null,null,{"$f":"BU80+BV80-BU9","v":0},null,null,{"$f":"BX80+BY80-BX9","v":0},null,null,{"$f":"CA80+CB80-CA9","v":0},null,null,{"$f":"CD80+CE80-CD9","v":0},null,null,{"$f":"CG80+CH80-CG9","v":0},null,null,{"$f":"CJ80+CK80-CJ9","v":0},null,null,{"$f":"CM80+CN80-CM9","v":0},null,null,{"$f":"CP80+CQ80-CP9","v":0},null,null,{"$f":"CS80+CT80-CS9","v":0},null,null,{"$f":"CV80+CW80-CV9","v":0},null,null,{"$f":"CY80+CZ80-CY9","v":0},null,null,{"$f":"DB80+DC80-DB9","v":0},null,null,{"$f":"DE80+DF80-DE9","v":0},null,null,{"$f":"DH80+DI80-DH9","v":0},null,null,{"$f":"DK80+DL80-DK9","v":0},null,null,{"$f":"DN80+DO80-DN9","v":0},null,null,{"$f":"DQ80+DR80-DQ9","v":0},null,null,{"$f":"DT80+DU80-DT9","v":0},null,null,{"$f":"DW80+DX80-DW9","v":0},null,null,{"$f":"DZ80+EA80-DZ9","v":0},null,null,{"$f":"EC80+ED80-EC9","v":0},null,null,{"$f":"EF80+EG80-EF9","v":0},null,null,{"$f":"EI80+EJ80-EI9","v":0},null,null,{"$f":"EL80+EM80-EL9","v":0},null,null,{"$f":"EO80+EP80-EO9","v":0},null,null,{"$f":"ER80+ES80-ER9","v":0},null,null,{"$f":"SUM(EU10:EU79)","v":0},{"$f":"SUM(EV10:EV79)","v":0},{"$f":"SUM(EW10:EW79)","v":0},{"$f":"SUM(EX10:EX79)","v":0}]
["เฉลี่ย",null,null,"เหลือ/เสีย(จริง)",null,null,{"$f":"INDIRECT(\"F\"&ROW($G$87)+ROUNDUP(COLUMNS($G:G)/3,0))","v":0},{"$f":"INDIRECT(\"G\"&ROW($G$87)+ROUNDUP(COLUMNS($G:H)/3,0))","v":0},null,{"$f":"INDIRECT(\"F\"&ROW($G$87)+ROUNDUP(COLUMNS($G:J)/3,0))","v":0},{"$f":"INDIRECT(\"G\"&ROW($G$87)+ROUNDUP(COLUMNS($G:K)/3,0))","v":0},null,{"$f":"INDIRECT(\"F\"&ROW($G$87)+ROUNDUP(COLUMNS($G:M)/3,0))","v":0},{"$f":"INDIRECT(\"G\"&ROW($G$87)+ROUNDUP(COLUMNS($G:N)/3,0))","v":0},null,{"$f":"INDIRECT(\"F\"&ROW($G$87)+ROUNDUP(COLUMNS($G:P)/3,0))","v":0},{"$f":"INDIRECT(\"G\"&ROW($G$87)+ROUNDUP(COLUMNS($G:Q)/3,0))","v":0},null,{"$f":"INDIRECT(\"F\"&ROW($G$87)+ROUNDUP(COLUMNS($G:S)/3,0))","v":0},{"$f":"INDIRECT(\"G\"&ROW($G$87)+ROUNDUP(COLUMNS($G:T)/3,0))","v":0},null,{"$f":"INDIRECT(\"F\"&ROW($G$87)+ROUNDUP(COLUMNS($G:V)/3,0))","v":0},{"$f":"INDIRECT(\"G\"&ROW($G$87)+ROUNDUP(COLUMNS($G:W)/3,0))","v":0},null,{"$f":"INDIRECT(\"F\"&ROW($G$87)+ROUNDUP(COLUMNS($G:Y)/3,0))","v":0},{"$f":"INDIRECT(\"G\"&ROW($G$87)+ROUNDUP(COLUMNS($G:Z)/3,0))","v":0},null,{"$f":"INDIRECT(\"F\"&ROW($G$87)+ROUNDUP(COLUMNS($G:AB)/3,0))","v":0},{"$f":"INDIRECT(\"G\"&ROW($G$87)+ROUNDUP(COLUMNS($G:AC)/3,0))","v":0},null,{"$f":"INDIRECT(\"F\"&ROW($G$87)+ROUNDUP(COLUMNS($G:AE)/3,0))","v":0},{"$f":"INDIRECT(\"G\"&ROW($G$87)+ROUNDUP(COLUMNS($G:AF)/3,0))","v":0},null,{"$f":"INDIRECT(\"F\"&ROW($G$87)+ROUNDUP(COLUMNS($G:AH)/3,0))","v":0},{"$f":"INDIRECT(\"G\"&ROW($G$87)+ROUNDUP(COLUMNS($G:AI)/3,0))","v":0},null,{"$f":"INDIRECT(\"F\"&ROW($G$87)+ROUNDUP(COLUMNS($G:AK)/3,0))","v":0},{"$f":"INDIRECT(\"G\"&ROW($G$87)+ROUNDUP(COLUMNS($G:AL)/3,0))","v":0},null,{"$f":"INDIRECT(\"F\"&ROW($G$87)+ROUNDUP(COLUMNS($G:AN)/3,0))","v":0},{"$f":"INDIRECT(\"G\"&ROW($G$87)+ROUNDUP(COLUMNS($G:AO)/3,0))","v":0},null,{"$f":"INDIRECT(\"F\"&ROW($G$87)+ROUNDUP(COLUMNS($G:AQ)/3,0))","v":0},{"$f":"INDIRECT(\"G\"&ROW($G$87)+ROUNDUP(COLUMNS($G:AR)/3,0))","v":0},null,{"$f":"INDIRECT(\"F\"&ROW($G$87)+ROUNDUP(COLUMNS($G:AT)/3,0))","v":0},{"$f":"INDIRECT(\"G\"&ROW($G$87)+ROUNDUP(COLUMNS($G:AU)/3,0))","v":0},null,{"$f":"INDIRECT(\"F\"&ROW($G$87)+ROUNDUP(COLUMNS($G:AW)/3,0))","v":0},{"$f":"INDIRECT(\"G\"&ROW($G$87)+ROUNDUP(COLUMNS($G:AX)/3,0))","v":0},null,{"$f":"INDIRECT(\"F\"&ROW($G$87)+ROUNDUP(COLUMNS($G:AZ)/3,0))","v":0},{"$f":"INDIRECT(\"G\"&ROW($G$87)+ROUNDUP(COLUMNS($G:BA)/3,0))","v":0},null,{"$f":"INDIRECT(\"F\"&ROW($G$87)+ROUNDUP(COLUMNS($G:BC)/3,0))","v":0},{"$f":"INDIRECT(\"G\"&ROW($G$87)+ROUNDUP(COLUMNS($G:BD)/3,0))","v":0},null,{"$f":"INDIRECT(\"F\"&ROW($G$87)+ROUNDUP(COLUMNS($G:BF)/3,0))","v":0},{"$f":"INDIRECT(\"G\"&ROW($G$87)+ROUNDUP(COLUMNS($G:BG)/3,0))","v":0},null,{"$f":"INDIRECT(\"F\"&ROW($G$87)+ROUNDUP(COLUMNS($G:BI)/3,0))","v":0},{"$f":"INDIRECT(\"G\"&ROW($G$87)+ROUNDUP(COLUMNS($G:BJ)/3,0))","v":0},null,{"$f":"INDIRECT(\"F\"&ROW($G$87)+ROUNDUP(COLUMNS($G:BL)/3,0))","v":0},{"$f":"INDIRECT(\"G\"&ROW($G$87)+ROUNDUP(COLUMNS($G:BM)/3,0))","v":0},null,{"$f":"INDIRECT(\"F\"&ROW($G$87)+ROUNDUP(COLUMNS($G:BO)/3,0))","v":0},{"$f":"INDIRECT(\"G\"&ROW($G$87)+ROUNDUP(COLUMNS($G:BP)/3,0))","v":0},null,{"$f":"INDIRECT(\"F\"&ROW($G$87)+ROUNDUP(COLUMNS($G:BR)/3,0))","v":0},{"$f":"INDIRECT(\"G\"&ROW($G$87)+ROUNDUP(COLUMNS($G:BS)/3,0))","v":0},null,{"$f":"INDIRECT(\"F\"&ROW($G$87)+ROUNDUP(COLUMNS($G:BU)/3,0))","v":0},{"$f":"INDIRECT(\"G\"&ROW($G$87)+ROUNDUP(COLUMNS($G:BV)/3,0))","v":0},null,{"$f":"INDIRECT(\"F\"&ROW($G$87)+ROUNDUP(COLUMNS($G:BX)/3,0))","v":0},{"$f":"INDIRECT(\"G\"&ROW($G$87)+ROUNDUP(COLUMNS($G:BY)/3,0))","v":0},null,{"$f":"INDIRECT(\"F\"&ROW($G$87)+ROUNDUP(COLUMNS($G:CA)/3,0))","v":0},{"$f":"INDIRECT(\"G\"&ROW($G$87)+ROUNDUP(COLUMNS($G:CB)/3,0))","v":0},null,{"$f":"INDIRECT(\"F\"&ROW($G$87)+ROUNDUP(COLUMNS($G:CD)/3,0))","v":0},{"$f":"INDIRECT(\"G\"&ROW($G$87)+ROUNDUP(COLUMNS($G:CE)/3,0))","v":0},null,{"$f":"INDIRECT(\"F\"&ROW($G$87)+ROUNDUP(COLUMNS($G:CG)/3,0))","v":0},{"$f":"INDIRECT(\"G\"&ROW($G$87)+ROUNDUP(COLUMNS($G:CH)/3,0))","v":0},null,{"$f":"INDIRECT(\"F\"&ROW($G$87)+ROUNDUP(COLUMNS($G:CJ)/3,0))","v":0},{"$f":"INDIRECT(\"G\"&ROW($G$87)+ROUNDUP(COLUMNS($G:CK)/3,0))","v":0},null,{"$f":"INDIRECT(\"F\"&ROW($G$87)+ROUNDUP(COLUMNS($G:CM)/3,0))","v":0},{"$f":"INDIRECT(\"G\"&ROW($G$87)+ROUNDUP(COLUMNS($G:CN)/3,0))","v":0},null,{"$f":"INDIRECT(\"F\"&ROW($G$87)+ROUNDUP(COLUMNS($G:CP)/3,0))","v":0},{"$f":"INDIRECT(\"G\"&ROW($G$87)+ROUNDUP(COLUMNS($G:CQ)/3,0))","v":0},null,{"$f":"INDIRECT(\"F\"&ROW($G$87)+ROUNDUP(COLUMNS($G:CS)/3,0))","v":0},{"$f":"INDIRECT(\"G\"&ROW($G$87)+ROUNDUP(COLUMNS($G:CT)/3,0))","v":0},null,{"$f":"INDIRECT(\"F\"&ROW($G$87)+ROUNDUP(COLUMNS($G:CV)/3,0))","v":0},{"$f":"INDIRECT(\"G\"&ROW($G$87)+ROUNDUP(COLUMNS($G:CW)/3,0))","v":0},null,{"$f":"INDIRECT(\"F\"&ROW($G$87)+ROUNDUP(COLUMNS($G:CY)/3,0))","v":0},{"$f":"INDIRECT(\"G\"&ROW($G$87)+ROUNDUP(COLUMNS($G:CZ)/3,0))","v":0},null,{"$f":"INDIRECT(\"F\"&ROW($G$87)+ROUNDUP(COLUMNS($G:DB)/3,0))","v":0},{"$f":"INDIRECT(\"G\"&ROW($G$87)+ROUNDUP(COLUMNS($G:DC)/3,0))","v":0},null,{"$f":"INDIRECT(\"F\"&ROW($G$87)+ROUNDUP(COLUMNS($G:DE)/3,0))","v":0},{"$f":"INDIRECT(\"G\"&ROW($G$87)+ROUNDUP(COLUMNS($G:DF)/3,0))","v":0},null,{"$f":"INDIRECT(\"F\"&ROW($G$87)+ROUNDUP(COLUMNS($G:DH)/3,0))","v":0},{"$f":"INDIRECT(\"G\"&ROW($G$87)+ROUNDUP(COLUMNS($G:DI)/3,0))","v":0},null,{"$f":"INDIRECT(\"F\"&ROW($G$87)+ROUNDUP(COLUMNS($G:DK)/3,0))","v":0},{"$f":"INDIRECT(\"G\"&ROW($G$87)+ROUNDUP(COLUMNS($G:DL)/3,0))","v":0},null,{"$f":"INDIRECT(\"F\"&ROW($G$87)+ROUNDUP(COLUMNS($G:DN)/3,0))","v":0},{"$f":"INDIRECT(\"G\"&ROW($G$87)+ROUNDUP(COLUMNS($G:DO)/3,0))","v":0},null,{"$f":"INDIRECT(\"F\"&ROW($G$87)+ROUNDUP(COLUMNS($G:DQ)/3,0))","v":0},{"$f":"INDIRECT(\"G\"&ROW($G$87)+ROUNDUP(COLUMNS($G:DR)/3,0))","v":0},null,{"$f":"INDIRECT(\"F\"&ROW($G$87)+ROUNDUP(COLUMNS($G:DT)/3,0))","v":0},{"$f":"INDIRECT(\"G\"&ROW($G$87)+ROUNDUP(COLUMNS($G:DU)/3,0))","v":0},null,{"$f":"INDIRECT(\"F\"&ROW($G$87)+ROUNDUP(COLUMNS($G:DW)/3,0))","v":0},{"$f":"INDIRECT(\"G\"&ROW($G$87)+ROUNDUP(COLUMNS($G:DX)/3,0))","v":0},null,{"$f":"INDIRECT(\"F\"&ROW($G$87)+ROUNDUP(COLUMNS($G:DZ)/3,0))","v":0},{"$f":"INDIRECT(\"G\"&ROW($G$87)+ROUNDUP(COLUMNS($G:EA)/3,0))","v":0},null,{"$f":"INDIRECT(\"F\"&ROW($G$87)+ROUNDUP(COLUMNS($G:EC)/3,0))","v":0},{"$f":"INDIRECT(\"G\"&ROW($G$87)+ROUNDUP(COLUMNS($G:ED)/3,0))","v":0},null,{"$f":"INDIRECT(\"F\"&ROW($G$87)+ROUNDUP(COLUMNS($G:EF)/3,0))","v":0},{"$f":"INDIRECT(\"G\"&ROW($G$87)+ROUNDUP(COLUMNS($G:EG)/3,0))","v":0},null,{"$f":"INDIRECT(\"F\"&ROW($G$87)+ROUNDUP(COLUMNS($G:EI)/3,0))","v":0},{"$f":"INDIRECT(\"G\"&ROW($G$87)+ROUNDUP(COLUMNS($G:EJ)/3,0))","v":0},null,{"$f":"INDIRECT(\"F\"&ROW($G$87)+ROUNDUP(COLUMNS($G:EL)/3,0))","v":0},{"$f":"INDIRECT(\"G\"&ROW($G$87)+ROUNDUP(COLUMNS($G:EM)/3,0))","v":0},null,{"$f":"INDIRECT(\"F\"&ROW($G$87)+ROUNDUP(COLUMNS($G:EO)/3,0))","v":0},{"$f":"INDIRECT(\"G\"&ROW($G$87)+ROUNDUP(COLUMNS($G:EP)/3,0))","v":0},null,{"$f":"INDIRECT(\"F\"&ROW($G$87)+ROUNDUP(COLUMNS($G:ER)/3,0))","v":0},{"$f":"INDIRECT(\"G\"&ROW($G$87)+ROUNDUP(COLUMNS($G:ES)/3,0))","v":0},null,{"$f":"EU81+EV81","v":0}]
["เวลากลับถึงสำนักงานเช็คของเสีย",null,null,{"$f":"D139","v":"00:00:00"},null,"ผลต่าง",{"$f":"G82+H82+G80-G9","v":0},null,null,{"$f":"J82+K82+J80-J9","v":0},null,null,{"$f":"M82+N82+M80-M9","v":0},null,null,{"$f":"P82+Q82+P80-P9","v":0},null,null,{"$f":"S82+T82+S80-S9","v":0},null,null,{"$f":"V82+W82+V80-V9","v":0},null,null,{"$f":"Y82+Z82+Y80-Y9","v":0},null,null,{"$f":"AB82+AC82+AB80-AB9","v":0},null,null,{"$f":"AE82+AF82+AE80-AE9","v":0},null,null,{"$f":"AH82+AI82+AH80-AH9","v":0},null,null,{"$f":"AK82+AL82+AK80-AK9","v":0},null,null,{"$f":"AN82+AO82+AN80-AN9","v":0},null,null,{"$f":"AQ82+AR82+AQ80-AQ9","v":0},null,null,{"$f":"AT82+AU82+AT80-AT9","v":0},null,null,{"$f":"AW82+AX82+AW80-AW9","v":0},null,null,{"$f":"AZ82+BA82+AZ80-AZ9","v":0},null,null,{"$f":"BC82+BD82+BC80-BC9","v":0},null,null,{"$f":"BF82+BG82+BF80-BF9","v":0},null,null,{"$f":"BI82+BJ82+BI80-BI9","v":0},null,null,{"$f":"BL82+BM82+BL80-BL9","v":0},null,null,{"$f":"BO82+BP82+BO80-BO9","v":0},null,null,{"$f":"BR82+BS82+BR80-BR9","v":0},null,null,{"$f":"BU82+BV82+BU80-BU9","v":0},null,null,{"$f":"BX82+BY82+BX80-BX9","v":0},null,null,{"$f":"CA82+CB82+CA80-CA9","v":0},null,null,{"$f":"CD82+CE82+CD80-CD9","v":0},null,null,{"$f":"CG82+CH82+CG80-CG9","v":0},null,null,{"$f":"CJ82+CK82+CJ80-CJ9","v":0},null,null,{"$f":"CM82+CN82+CM80-CM9","v":0},null,null,{"$f":"CP82+CQ82+CP80-CP9","v":0},null,null,{"$f":"CS82+CT82+CS80-CS9","v":0},null,null,{"$f":"CV82+CW82+CV80-CV9","v":0},null,null,{"$f":"CY82+CZ82+CY80-CY9","v":0},null,null,{"$f":"DB82+DC82+DB80-DB9","v":0},null,null,{"$f":"DE82+DF82+DE80-DE9","v":0},null,null,{"$f":"DH82+DI82+DH80-DH9","v":0},null,null,{"$f":"DK82+DL82+DK80-DK9","v":0},null,null,{"$f":"DN82+DO82+DN80-DN9","v":0},null,null,{"$f":"DQ82+DR82+DQ80-DQ9","v":0},null,null,{"$f":"DT82+DU82+DT80-DT9","v":0},null,null,{"$f":"DW82+DX82+DW80-DW9","v":0},null,null,{"$f":"DZ82+EA82+DZ80-DZ9","v":0},null,null,{"$f":"EC82+ED82+EC80-EC9","v":0},null,null,{"$f":"EF82+EG82+EF80-EF9","v":0},null,null,{"$f":"EI82+EJ82+EI80-EI9","v":0},null,null,{"$f":"EL82+EM82+EL80-EL9","v":0},null,null,{"$f":"EO82+EP82+EO80-EO9","v":0},null,null,{"$f":"ER82+ES82+ER80-ER9","v":0}]
["เป็นเงิน",null,null,null,null,null,{"$f":"G8*G83","v":0},null,null,{"$f":"J8*J83","v":0},null,null,{"$f":"M8*M83","v":0},null,null,{"$f":"P8*P83","v":0},null,null,{"$f":"S8*S83","v":0},null,null,{"$f":"V8*V83","v":0},null,null,{"$f":"Y8*Y83","v":0},null,null,{"$f":"AB8*AB83","v":0},null,null,{"$f":"AE8*AE83","v":0},null,null,{"$f":"AH8*AH83","v":0},null,null,{"$f":"AK8*AK83","v":0},null,null,{"$f":"AN8*AN83","v":0},null,null,{"$f":"AQ8*AQ83","v":0},null,null,{"$f":"AT8*AT83","v":0},null,null,{"$f":"AW8*AW83","v":0},null,null,{"$f":"AZ8*AZ83","v":0},null,null,{"$f":"BC8*BC83","v":0},null,null,{"$f":"BF8*BF83","v":0},null,null,{"$f":"BI8*BI83","v":0},null,null,{"$f":"BL8*BL83","v":0},null,null,{"$f":"BO8*BO83","v":0},null,null,{"$f":"BR8*BR83","v":0},null,null,{"$f":"BU8*BU83","v":0},null,null,{"$f":"BX8*BX83","v":0},null,null,{"$f":"CA8*CA83","v":0},null,null,{"$f":"CD8*CD83","v":0},null,null,{"$f":"CG8*CG83","v":0},null,null,{"$f":"CJ8*CJ83","v":0},null,null,{"$f":"CM8*CM83","v":0},null,null,{"$f":"CP8*CP83","v":0},null,null,{"$f":"CS8*CS83","v":0},null,null,{"$f":"CV8*CV83","v":0},null,null,{"$f":"CY8*CY83","v":0},null,null,{"$f":"DB8*DB83","v":0},null,null,{"$f":"DE8*DE83","v":0},null,null,{"$f":"DH8*DH83","v":0},null,null,{"$f":"DK8*DK83","v":0},null,null,{"$f":"DN8*DN83","v":0},null,null,{"$f":"DQ8*DQ83","v":0},null,null,{"$f":"DT8*DT83","v":0},null,null,{"$f":"DW8*DW83","v":0},null,null,0,null,null,{"$f":"EC8*EC83","v":0},null,null,{"$f":"EF8*EF83","v":0},null,null,{"$f":"EI8*EI83","v":0},null,null,{"$f":"EL8*EL83","v":0},null,null,{"$f":"EO8*EO83","v":0},null,null,{"$f":"ER8*ER83","v":0},null,null,{"$f":"$AP$98","v":0}]
[null,null,null,"ผู้จัดทำ……………………………………………………………………",null,null,null,null,null,null,null,null,null,null,null,null,null,null,null,null,null,null,null,"ผู้ตรวจ(ผจก.)………………………………………………………………………………."]
[null,null,"ใบจ่ายสินค้า",null,null,null,null,null,null,null,null,null,null,null,null,null,null,{"$f":"IF(ISODD(COLUMN()),MAX($F$86:Q$86)+1,\"\")","v":""}]
["ราคา","ลำดับ","รายการ","ยกมา","เบิก","เหลือ","เสีย","โอนเข้า","โอนออก","ชำรุด","รวม",null,"ขาย",null,"ขาด/เกิน",null,"บาท",null,null,null,"ขายได้",null,"ควรเบิก",null,"หมายเหตุ",null,null,null,"เสีย PDA","เสียจริง","เหลือ PDA","ผลต่าง","เหลือลูกค้า","หมายเหตุ",null,null,null,null,"Price","Quantity","Baht","Deduct"]
[{"$f":"IF(B88=\"\",0,INDEX(Price_List,ROWS($88:88)))","v":20},{"$f":"IF($C88=\"\",\"\",COUNTA($C$88:$C88))","v":1},{"$f":"IF(INDEX(INDIRECT(\"Product_List\"),ROWS($88:88))=\"\",\"\",INDEX(INDIRECT(\"Product_List\"),ROWS($88:88)))","v":"01-ขนมปังหมูหยองน้ำสลัด"},{"$f":"ยอดยกมา","v":0},null,null,null,null,null,null,{"$f":"D88+E88+J88-I88+H88","v":0},null,{"$f":"INDIRECT(ADDRESS(ROW(A$80),ROW()-ROW(A$80)+(ROWS($88:88)-1)*2-1,4))","v":0},null,{"$f":"F88+G88+M88+J88-K88","v":0},null,{"$f":"O88*A88","v":0},null,null,null,{"$f":"D88+E88-F88-G88","v":0},null,{"$f":"U88*6%+U88","v":0},null,null,null,null,null,{"$f":"INDIRECT(ADDRESS(ROW(A$80),ROW()-ROW(A$80)+(ROWS($88:88)-1)*2,4))","v":0},{"$f":"$G88","v":0},null,{"$f":"$F88-$AE88","v":0},{"$f":"INDIRECT(ADDRESS(ROW(A$80),ROW()-ROW(A$80)+(ROWS($88:88)-1)*2+1,4))","v":0},null,null,null,null,null,10,{"$f":"SUMPRODUCT(($A$88:$A$135=$AM88)*(($F$88:$F$135)+($G$88:$G$135)+($M$88:$M$135)+($J$88:$J$135)-($K$88:$K$135)))","v":0},{"$f":"AM88*AN88","v":0},{"$f":"IF(AO88<0,AO88,0)","v":0}]
[{"$f":"IF(B89=\"\",0,INDEX(Price_List,ROWS($88:89)))","v":20},{"$f":"IF($C89=\"\",\"\",COUNTA($C$88:$C89))","v":2},{"$f":"IF(INDEX(INDIRECT(\"Product_List\"),ROWS($88:89))=\"\",\"\",INDEX(INDIRECT(\"Product_List\"),ROWS($88:89)))","v":"02-ขนมปังหมูหยองน้ำพริกเผา"},{"$f":"ยอดยกมา","v":0},null,null,null,null,null,null,{"$f":"D89+E89+J89-I89+H89","v":0},null,{"$f":"INDIRECT(ADDRESS(ROW(A$80),ROW()-ROW(A$80)+(ROWS($88:89)-1)*2-1,4))","v":0},null,{"$f":"F89+G89+M89+J89-K89","v":0},null,{"$f":"O89*A89","v":0},null,null,null,{"$f":"D89+E89-F89-G89","v":0},null,{"$f":"U89*6%+U89","v":0},null,null,null,null,null,{"$f":"INDIRECT(ADDRESS(ROW(A$80),ROW()-ROW(A$80)+(ROWS($88:89)-1)*2,4))","v":0},{"$f":"$G89","v":0},null,{"$f":"$F89-$AE89","v":0},{"$f":"INDIRECT(ADDRESS(ROW(A$80),ROW()-ROW(A$80)+(ROWS($88:89)-1)*2+1,4))","v":0},null,null,null,null,null,12,0,{"$f":"AM89*AN89","v":0},{"$f":"IF(AO89<0,AO89,0)","v":0}]
[{"$f":"IF(B90=\"\",0,INDEX(Price_List,ROWS($88:90)))","v":20},{"$f":"IF($C90=\"\",\"\",COUNTA($C$88:$C90))","v":3},{"$f":"IF(INDEX(INDIRECT(\"Product_List\"),ROWS($88:90))=\"\",\"\",INDEX(INDIRECT(\"Product_List\"),ROWS($88:90)))","v":"03-ขนมปังไก่หยองน้ำสลัด"},{"$f":"ยอดยกมา","v":0},null,null,null,null,null,null,0,null,{"$f":"INDIRECT(ADDRESS(ROW(A$80),ROW()-ROW(A$80)+(ROWS($88:90)-1)*2-1,4))","v":0},null,0,null,0,null,null,null,0,null,0,null,null,null,null,null,{"$f":"INDIRECT(ADDRESS(ROW(A$80),ROW()-ROW(A$80)+(ROWS($88:90)-1)*2,4))","v":0},0,null,0,{"$f":"INDIRECT(ADDRESS(ROW(A$80),ROW()-ROW(A$80)+(ROWS($88:90)-1)*2+1,4))","v":0},null,null,null,null,null,13,0,0,0]
[{"$f":"IF(B91=\"\",0,INDEX(Price_List,ROWS($88:91)))","v":15},{"$f":"IF($C91=\"\",\"\",COUNTA($C$88:$C91))","v":4},{"$f":"IF(INDEX(INDIRECT(\"Product_List\"),ROWS($88:91))=\"\",\"\",INDEX(INDIRECT(\"Product_List\"),ROWS($88:91)))","v":"04-ขนมปังไส้ครีมสลัด"},{"$f":"ยอดยกมา","v":0},null,null,null,null,null,null,0,null,{"$f":"INDIRECT(ADDRESS(ROW(A$80),ROW()-ROW(A$80)+(ROWS($88:91)-1)*2-1,4))","v":0},null,{"$f":"F91+G91+M91+J91-K91","v":0},null,0,null,null,null,0,null,0,null,null,null,null,null,{"$f":"INDIRECT(ADDRESS(ROW(A$80),ROW()-ROW(A$80)+(ROWS($88:91)-1)*2,4))","v":0},0,null,0,{"$f":"INDIRECT(ADDRESS(ROW(A$80),ROW()-ROW(A$80)+(ROWS($88:91)-1)*2+1,4))","v":0},null,null,null,null,null,15,0,0,0]
[{"$f":"IF(B92=\"\",0,INDEX(Price_List,ROWS($88:92)))","v":15},{"$f":"IF($C92=\"\",\"\",COUNTA($C$88:$C92))","v":5},{"$f":"IF(INDEX(INDIRECT(\"Product_List\"),ROWS($88:92))=\"\",\"\",INDEX(INDIRECT(\"Product_List\"),ROWS($88:92)))","v":"05-ขนมปังเนยสด"},{"$f":"ยอดยกมา","v":0},null,null,null,null,null,null,0,null,{"$f":"INDIRECT(ADDRESS(ROW(A$80),ROW()-ROW(A$80)+(ROWS($88:92)-1)*2-1,4))","v":0},null,0,null,0,null,null,null,0,null,0,null,null,null,null,null,{"$f":"INDIRECT(ADDRESS(ROW(A$80),ROW()-ROW(A$80)+(ROWS($88:92)-1)*2,4))","v":0},0,null,0,{"$f":"INDIRECT(ADDRESS(ROW(A$80),ROW()-ROW(A$80)+(ROWS($88:92)-1)*2+1,4))","v":0},null,null,null,null,null,16,0,0,0]
[{"$f":"IF(B93=\"\",0,INDEX(Price_List,ROWS($88:93)))","v":10},{"$f":"IF($C93=\"\",\"\",COUNTA($C$88:$C93))","v":6},{"$f":"IF(INDEX(INDIRECT(\"Product_List\"),ROWS($88:93))=\"\",\"\",INDEX(INDIRECT(\"Product_List\"),ROWS($88:93)))","v":"06-ขนมปังไส้สังขยาเล็ก"},{"$f":"ยอดยกมา","v":0},null,null,null,null,null,null,0,null,{"$f":"INDIRECT(ADDRESS(ROW(A$80),ROW()-ROW(A$80)+(ROWS($88:93)-1)*2-1,4))","v":0},null,0,null,0,null,null,null,0,null,0,null,null,null,null,null,{"$f":"INDIRECT(ADDRESS(ROW(A$80),ROW()-ROW(A$80)+(ROWS($88:93)-1)*2,4))","v":0},0,null,0,{"$f":"INDIRECT(ADDRESS(ROW(A$80),ROW()-ROW(A$80)+(ROWS($88:93)-1)*2+1,4))","v":0},null,null,null,null,null,18,0,0,0]
[{"$f":"IF(B94=\"\",0,INDEX(Price_List,ROWS($88:94)))","v":10},{"$f":"IF($C94=\"\",\"\",COUNTA($C$88:$C94))","v":7},{"$f":"IF(INDEX(INDIRECT(\"Product_List\"),ROWS($88:94))=\"\",\"\",INDEX(INDIRECT(\"Product_List\"),ROWS($88:94)))","v":"07-ขนมปังไส้เผือก"},{"$f":"ยอดยกมา","v":0},null,null,null,null,null,null,0,null,{"$f":"INDIRECT(ADDRESS(ROW(A$80),ROW()-ROW(A$80)+(ROWS($88:94)-1)*2-1,4))","v":0},null,0,null,0,null,null,null,0,null,0,null,null,null,null,null,{"$f":"INDIRECT(ADDRESS(ROW(A$80),ROW()-ROW(A$80)+(ROWS($88:94)-1)*2,4))","v":0},0,null,0,{"$f":"INDIRECT(ADDRESS(ROW(A$80),ROW()-ROW(A$80)+(ROWS($88:94)-1)*2+1,4))","v":0},null,null,null,null,null,20,0,0,0]
[{"$f":"IF(B95=\"\",0,INDEX(Price_List,ROWS($88:95)))","v":10},{"$f":"IF($C95=\"\",\"\",COUNTA($C$88:$C95))","v":8},{"$f":"IF(INDEX(INDIRECT(\"Product_List\"),ROWS($88:95))=\"\",\"\",INDEX(INDIRECT(\"Product_List\"),ROWS($88:95)))","v":"08-ขนมปังไส้ถั่วแดง"},{"$f":"ยอดยกมา","v":0},null,null,null,null,null,null,0,null,{"$f":"INDIRECT(ADDRESS(ROW(A$80),ROW()-ROW(A$80)+(ROWS($88:95)-1)*2-1,4))","v":0},null,0,null,0,null,null,null,0,null,0,null,null,null,null,null,{"$f":"INDIRECT(ADDRESS(ROW(A$80),ROW()-ROW(A$80)+(ROWS($88:95)-1)*2,4))","v":0},0,null,0,{"$f":"INDIRECT(ADDRESS(ROW(A$80),ROW()-ROW(A$80)+(ROWS($88:95)-1)*2+1,4))","v":0},null,null,null,null,null,22,0,0,0]
[{"$f":"IF(B96=\"\",0,INDEX(Price_List,ROWS($88:96)))","v":10},{"$f":"IF($C96=\"\",\"\",COUNTA($C$88:$C96))","v":9},{"$f":"IF(INDEX(INDIRECT(\"Product_List\"),ROWS($88:96))=\"\",\"\",INDEX(INDIRECT(\"Product_List\"),ROWS($88:96)))","v":"09-ขนมปังไส้ถั่วดำ"},{"$f":"ยอดยกมา","v":0},null,null,null,null,null,null,0,null,{"$f":"INDIRECT(ADDRESS(ROW(A$80),ROW()-ROW(A$80)+(ROWS($88:96)-1)*2-1,4))","v":0},null,0,null,0,null,null,null,0,null,0,null,null,null,null,null,{"$f":"INDIRECT(ADDRESS(ROW(A$80),ROW()-ROW(A$80)+(ROWS($88:96)-1)*2,4))","v":0},0,null,0,{"$f":"INDIRECT(ADDRESS(ROW(A$80),ROW()-ROW(A$80)+(ROWS($88:96)-1)*2+1,4))","v":0},null,null,null,null,null,25,0,0,0]
[{"$f":"IF(B97=\"\",0,INDEX(Price_List,ROWS($88:97)))","v":10},{"$f":"IF($C97=\"\",\"\",COUNTA($C$88:$C97))","v":10},{"$f":"IF(INDEX(INDIRECT(\"Product_List\"),ROWS($88:97))=\"\",\"\",INDEX(INDIRECT(\"Product_List\"),ROWS($88:97)))","v":"10-ขนมปังไส้มันม่วง"},{"$f":"ยอดยกมา","v":0},null,null,null,null,null,null,0,null,{"$f":"INDIRECT(ADDRESS(ROW(A$80),ROW()-ROW(A$80)+(ROWS($88:97)-1)*2-1,4))","v":0},null,0,null,0,null,null,null,0,null,0,null,null,null,null,null,{"$f":"INDIRECT(ADDRESS(ROW(A$80),ROW()-ROW(A$80)+(ROWS($88:97)-1)*2,4))","v":0},0,null,0,{"$f":"INDIRECT(ADDRESS(ROW(A$80),ROW()-ROW(A$80)+(ROWS($88:97)-1)*2+1,4))","v":0},null,null,null,null,null,42,0,0,0]
[{"$f":"IF(B98=\"\",0,INDEX(Price_List,ROWS($88:98)))","v":15},{"$f":"IF($C98=\"\",\"\",COUNTA($C$88:$C98))","v":11},{"$f":"IF(INDEX(INDIRECT(\"Product_List\"),ROWS($88:98))=\"\",\"\",INDEX(INDIRECT(\"Product_List\"),ROWS($88:98)))","v":"11-เค้กกล้วยหอม"},{"$f":"ยอดยกมา","v":0},null,null,null,null,null,null,0,null,{"$f":"INDIRECT(ADDRESS(ROW(A$80),ROW()-ROW(A$80)+(ROWS($88:98)-1)*2-1,4))","v":0},null,0,null,0,null,null,null,0,null,0,null,null,null,null,null,{"$f":"INDIRECT(ADDRESS(ROW(A$80),ROW()-ROW(A$80)+(ROWS($88:98)-1)*2,4))","v":0},0,null,0,{"$f":"INDIRECT(ADDRESS(ROW(A$80),ROW()-ROW(A$80)+(ROWS($88:98)-1)*2+1,4))","v":0},null,null,null,null,null,"Total Deduct",null,null,{"$f":"SUM($AP$88:$AP$97)","v":0}]
[{"$f":"IF(B99=\"\",0,INDEX(Price_List,ROWS($88:99)))","v":15},{"$f":"IF($C99=\"\",\"\",COUNTA($C$88:$C99))","v":12},{"$f":"IF(INDEX(INDIRECT(\"Product_List\"),ROWS($88:99))=\"\",\"\",INDEX(INDIRECT(\"Product_List\"),ROWS($88:99)))","v":"12-เค้กบัตเตอร์"},{"$f":"ยอดยกมา","v":0},null,null,null,null,null,null,0,null,{"$f":"INDIRECT(ADDRESS(ROW(A$80),ROW()-ROW(A$80)+(ROWS($88:99)-1)*2-1,4))","v":0},null,0,null,0,null,null,null,0,null,0,null,null,null,null,null,{"$f":"INDIRECT(ADDRESS(ROW(A$80),ROW()-ROW(A$80)+(ROWS($88:99)-1)*2,4))","v":0},0,null,0,{"$f":"INDIRECT(ADDRESS(ROW(A$80),ROW()-ROW(A$80)+(ROWS($88:99)-1)*2+1,4))","v":0}]
[{"$f":"IF(B100=\"\",0,INDEX(Price_List,ROWS($88:100)))","v":15},{"$f":"IF($C100=\"\",\"\",COUNTA($C$88:$C100))","v":13},{"$f":"IF(INDEX(INDIRECT(\"Product_List\"),ROWS($88:100))=\"\",\"\",INDEX(INDIRECT(\"Product_List\"),ROWS($88:100)))","v":"13-ขนมปังโรลถั่วแดง"},{"$f":"ยอดยกมา","v":0},null,null,null,null,null,null,0,null,{"$f":"INDIRECT(ADDRESS(ROW(A$80),ROW()-ROW(A$80)+(ROWS($88:100)-1)*2-1,4))","v":0},null,0,null,0,null,null,null,0,null,0,null,null,null,null,null,{"$f":"INDIRECT(ADDRESS(ROW(A$80),ROW()-ROW(A$80)+(ROWS($88:100)-1)*2,4))","v":0},0,null,0,{"$f":"INDIRECT(ADDRESS(ROW(A$80),ROW()-ROW(A$80)+(ROWS($88:100)-1)*2+1,4))","v":0}]
[{"$f":"IF(B101=\"\",0,INDEX(Price_List,ROWS($88:101)))","v":15},{"$f":"IF($C101=\"\",\"\",COUNTA($C$88:$C101))","v":14},{"$f":"IF(INDEX(INDIRECT(\"Product_List\"),ROWS($88:101))=\"\",\"\",INDEX(INDIRECT(\"Product_List\"),ROWS($88:101)))","v":"14-ขนมปังไส้สังขยาใหญ่"},{"$f":"ยอดยกมา","v":0},null,null,null,null,null,null,0,null,{"$f":"INDIRECT(ADDRESS(ROW(A$80),ROW()-ROW(A$80)+(ROWS($88:101)-1)*2-1,4))","v":0},null,0,null,0,null,null,null,0,null,0,null,null,null,null,null,{"$f":"INDIRECT(ADDRESS(ROW(A$80),ROW()-ROW(A$80)+(ROWS($88:101)-1)*2,4))","v":0},0,null,0,{"$f":"INDIRECT(ADDRESS(ROW(A$80),ROW()-ROW(A$80)+(ROWS($88:101)-1)*2+1,4))","v":0}]
[{"$f":"IF(B102=\"\",0,INDEX(Price_List,ROWS($88:102)))","v":42},{"$f":"IF($C102=\"\",\"\",COUNTA($C$88:$C102))","v":15},{"$f":"IF(INDEX(INDIRECT(\"Product_List\"),ROWS($88:102))=\"\",\"\",INDEX(INDIRECT(\"Product_List\"),ROWS($88:102)))","v":"15-ขนมปังชนิดแผ่น(480กรัม)"},{"$f":"ยอดยกมา","v":0},null,null,null,null,null,null,0,null,{"$f":"INDIRECT(ADDRESS(ROW(A$80),ROW()-ROW(A$80)+(ROWS($88:102)-1)*2-1,4))","v":0},null,0,null,0,null,null,null,0,null,0,null,null,null,null,null,{"$f":"INDIRECT(ADDRESS(ROW(A$80),ROW()-ROW(A$80)+(ROWS($88:102)-1)*2,4))","v":0},0,null,0,{"$f":"INDIRECT(ADDRESS(ROW(A$80),ROW()-ROW(A$80)+(ROWS($88:102)-1)*2+1,4))","v":0}]
[{"$f":"IF(B103=\"\",0,INDEX(Price_List,ROWS($88:103)))","v":12},{"$f":"IF($C103=\"\",\"\",COUNTA($C$88:$C103))","v":16},{"$f":"IF(INDEX(INDIRECT(\"Product_List\"),ROWS($88:103))=\"\",\"\",INDEX(INDIRECT(\"Product_List\"),ROWS($88:103)))","v":"16-โมจิไส้ถั่ว"},{"$f":"ยอดยกมา","v":0},null,null,null,null,null,null,0,null,{"$f":"INDIRECT(ADDRESS(ROW(A$80),ROW()-ROW(A$80)+(ROWS($88:103)-1)*2-1,4))","v":0},null,0,null,0,null,null,null,0,null,0,null,null,null,null,null,{"$f":"INDIRECT(ADDRESS(ROW(A$80),ROW()-ROW(A$80)+(ROWS($88:103)-1)*2,4))","v":0},0,null,0,{"$f":"INDIRECT(ADDRESS(ROW(A$80),ROW()-ROW(A$80)+(ROWS($88:103)-1)*2+1,4))","v":0}]
[{"$f":"IF(B104=\"\",0,INDEX(Price_List,ROWS($88:104)))","v":12},{"$f":"IF($C104=\"\",\"\",COUNTA($C$88:$C104))","v":17},{"$f":"IF(INDEX(INDIRECT(\"Product_List\"),ROWS($88:104))=\"\",\"\",INDEX(INDIRECT(\"Product_List\"),ROWS($88:104)))","v":"17-โมจิไส้เผือก"},{"$f":"ยอดยกมา","v":0},null,null,null,null,null,null,0,null,{"$f":"INDIRECT(ADDRESS(ROW(A$80),ROW()-ROW(A$80)+(ROWS($88:104)-1)*2-1,4))","v":0},null,0,null,0,null,null,null,0,null,0,null,null,null,null,null,{"$f":"INDIRECT(ADDRESS(ROW(A$80),ROW()-ROW(A$80)+(ROWS($88:104)-1)*2,4))","v":0},0,null,0,{"$f":"INDIRECT(ADDRESS(ROW(A$80),ROW()-ROW(A$80)+(ROWS($88:104)-1)*2+1,4))","v":0}]
[{"$f":"IF(B105=\"\",0,INDEX(Price_List,ROWS($88:105)))","v":15},{"$f":"IF($C105=\"\",\"\",COUNTA($C$88:$C105))","v":18},{"$f":"IF(INDEX(INDIRECT(\"Product_List\"),ROWS($88:105))=\"\",\"\",INDEX(INDIRECT(\"Product_List\"),ROWS($88:105)))","v":"18-โมจิไส้ถั่วไข่เค็ม"},{"$f":"ยอดยกมา","v":0},null,null,null,null,null,null,0,null,{"$f":"INDIRECT(ADDRESS(ROW(A$80),ROW()-ROW(A$80)+(ROWS($88:105)-1)*2-1,4))","v":0},null,0,null,0,null,null,null,0,null,0,null,null,null,null,null,{"$f":"INDIRECT(ADDRESS(ROW(A$80),ROW()-ROW(A$80)+(ROWS($88:105)-1)*2,4))","v":0},0,null,0,{"$f":"INDIRECT(ADDRESS(ROW(A$80),ROW()-ROW(A$80)+(ROWS($88:105)-1)*2+1,4))","v":0}]
[{"$f":"IF(B106=\"\",0,INDEX(Price_List,ROWS($88:106)))","v":20},{"$f":"IF($C106=\"\",\"\",COUNTA($C$88:$C106))","v":19},{"$f":"IF(INDEX(INDIRECT(\"Product_List\"),ROWS($88:106))=\"\",\"\",INDEX(INDIRECT(\"Product_List\"),ROWS($88:106)))","v":"19-ขนมปังพิซซ่า"},{"$f":"ยอดยกมา","v":0},null,null,null,null,null,null,0,null,{"$f":"INDIRECT(ADDRESS(ROW(A$80),ROW()-ROW(A$80)+(ROWS($88:106)-1)*2-1,4))","v":0},null,0,null,0,null,null,null,0,null,0,null,null,null,null,null,{"$f":"INDIRECT(ADDRESS(ROW(A$80),ROW()-ROW(A$80)+(ROWS($88:106)-1)*2,4))","v":0},0,null,0,{"$f":"INDIRECT(ADDRESS(ROW(A$80),ROW()-ROW(A$80)+(ROWS($88:106)-1)*2+1,4))","v":0}]
[{"$f":"IF(B107=\"\",0,INDEX(Price_List,ROWS($88:107)))","v":20},{"$f":"IF($C107=\"\",\"\",COUNTA($C$88:$C107))","v":20},{"$f":"IF(INDEX(INDIRECT(\"Product_List\"),ROWS($88:107))=\"\",\"\",INDEX(INDIRECT(\"Product_List\"),ROWS($88:107)))","v":"20-ขนมปังพิซซ่าปูอัดแฮม"},{"$f":"ยอดยกมา","v":0},null,null,null,null,null,null,0,null,{"$f":"INDIRECT(ADDRESS(ROW(A$80),ROW()-ROW(A$80)+(ROWS($88:107)-1)*2-1,4))","v":0},null,0,null,0,null,null,null,0,null,0,null,null,null,null,null,{"$f":"INDIRECT(ADDRESS(ROW(A$80),ROW()-ROW(A$80)+(ROWS($88:107)-1)*2,4))","v":0},0,null,0,{"$f":"INDIRECT(ADDRESS(ROW(A$80),ROW()-ROW(A$80)+(ROWS($88:107)-1)*2+1,4))","v":0}]
[{"$f":"IF(B108=\"\",0,INDEX(Price_List,ROWS($88:108)))","v":20},{"$f":"IF($C108=\"\",\"\",COUNTA($C$88:$C108))","v":21},{"$f":"IF(INDEX(INDIRECT(\"Product_List\"),ROWS($88:108))=\"\",\"\",INDEX(INDIRECT(\"Product_List\"),ROWS($88:108)))","v":"21-ขนมปังไส้กรอก"},{"$f":"ยอดยกมา","v":0},null,null,null,null,null,null,0,null,{"$f":"INDIRECT(ADDRESS(ROW(A$80),ROW()-ROW(A$80)+(ROWS($88:108)-1)*2-1,4))","v":0},null,0,null,0,null,null,null,0,null,0,null,null,null,null,null,{"$f":"INDIRECT(ADDRESS(ROW(A$80),ROW()-ROW(A$80)+(ROWS($88:108)-1)*2,4))","v":0},0,null,0,{"$f":"INDIRECT(ADDRESS(ROW(A$80),ROW()-ROW(A$80)+(ROWS($88:108)-1)*2+1,4))","v":0}]
[{"$f":"IF(B109=\"\",0,INDEX(Price_List,ROWS($88:109)))","v":15},{"$f":"IF($C109=\"\",\"\",COUNTA($C$88:$C109))","v":22},{"$f":"IF(INDEX(INDIRECT(\"Product_List\"),ROWS($88:109))=\"\",\"\",INDEX(INDIRECT(\"Product_List\"),ROWS($88:109)))","v":"22-ขนมก้านบัว"},{"$f":"ยอดยกมา","v":0},null,null,null,null,null,null,0,null,{"$f":"INDIRECT(ADDRESS(ROW(A$80),ROW()-ROW(A$80)+(ROWS($88:109)-1)*2-1,4))","v":0},null,0,null,0,null,null,null,0,null,0,null,null,null,null,null,{"$f":"INDIRECT(ADDRESS(ROW(A$80),ROW()-ROW(A$80)+(ROWS($88:109)-1)*2,4))","v":0},0,null,0,{"$f":"INDIRECT(ADDRESS(ROW(A$80),ROW()-ROW(A$80)+(ROWS($88:109)-1)*2+1,4))","v":0}]
[{"$f":"IF(B110=\"\",0,INDEX(Price_List,ROWS($88:110)))","v":20},{"$f":"IF($C110=\"\",\"\",COUNTA($C$88:$C110))","v":23},{"$f":"IF(INDEX(INDIRECT(\"Product_List\"),ROWS($88:110))=\"\",\"\",INDEX(INDIRECT(\"Product_List\"),ROWS($88:110)))","v":"23-พายสับปะรด"},{"$f":"ยอดยกมา","v":0},null,null,null,null,null,null,0,null,{"$f":"INDIRECT(ADDRESS(ROW(A$80),ROW()-ROW(A$80)+(ROWS($88:110)-1)*2-1,4))","v":0},null,0,null,0,null,null,null,0,null,0,null,null,null,null,null,{"$f":"INDIRECT(ADDRESS(ROW(A$80),ROW()-ROW(A$80)+(ROWS($88:110)-1)*2,4))","v":0},0,null,0,{"$f":"INDIRECT(ADDRESS(ROW(A$80),ROW()-ROW(A$80)+(ROWS($88:110)-1)*2+1,4))","v":0}]
[{"$f":"IF(B111=\"\",0,INDEX(Price_List,ROWS($88:111)))","v":20},{"$f":"IF($C111=\"\",\"\",COUNTA($C$88:$C111))","v":24},{"$f":"IF(INDEX(INDIRECT(\"Product_List\"),ROWS($88:111))=\"\",\"\",INDEX(INDIRECT(\"Product_List\"),ROWS($88:111)))","v":"24-พายไส้มะพร้าว"},{"$f":"ยอดยกมา","v":0},null,null,null,null,null,null,0,null,{"$f":"INDIRECT(ADDRESS(ROW(A$80),ROW()-ROW(A$80)+(ROWS($88:111)-1)*2-1,4))","v":0},null,0,null,0,null,null,null,0,null,0,null,null,null,null,null,{"$f":"INDIRECT(ADDRESS(ROW(A$80),ROW()-ROW(A$80)+(ROWS($88:111)-1)*2,4))","v":0},0,null,0,{"$f":"INDIRECT(ADDRESS(ROW(A$80),ROW()-ROW(A$80)+(ROWS($88:111)-1)*2+1,4))","v":0}]
[{"$f":"IF(B112=\"\",0,INDEX(Price_List,ROWS($88:112)))","v":15},{"$f":"IF($C112=\"\",\"\",COUNTA($C$88:$C112))","v":25},{"$f":"IF(INDEX(INDIRECT(\"Product_List\"),ROWS($88:112))=\"\",\"\",INDEX(INDIRECT(\"Product_List\"),ROWS($88:112)))","v":"25-ขนมปังโรลมันเทศ"},{"$f":"ยอดยกมา","v":0},null,null,null,null,null,null,0,null,{"$f":"INDIRECT(ADDRESS(ROW(A$80),ROW()-ROW(A$80)+(ROWS($88:112)-1)*2-1,4))","v":0},null,0,null,0,null,null,null,0,null,0,null,null,null,null,null,{"$f":"INDIRECT(ADDRESS(ROW(A$80),ROW()-ROW(A$80)+(ROWS($88:112)-1)*2,4))","v":0},0,null,0,{"$f":"INDIRECT(ADDRESS(ROW(A$80),ROW()-ROW(A$80)+(ROWS($88:112)-1)*2+1,4))","v":0}]
[{"$f":"IF(B113=\"\",0,INDEX(Price_List,ROWS($88:113)))","v":15},{"$f":"IF($C113=\"\",\"\",COUNTA($C$88:$C113))","v":26},{"$f":"IF(INDEX(INDIRECT(\"Product_List\"),ROWS($88:113))=\"\",\"\",INDEX(INDIRECT(\"Product_List\"),ROWS($88:113)))","v":"26-ขนมปังไส้ครีมสลัดน้ำพริกเผา"},{"$f":"ยอดยกมา","v":0},null,null,null,null,null,null,0,null,{"$f":"INDIRECT(ADDRESS(ROW(A$80),ROW()-ROW(A$80)+(ROWS($88:113)-1)*2-1,4))","v":0},null,0,null,0,null,null,null,0,null,0,null,null,null,null,null,{"$f":"INDIRECT(ADDRESS(ROW(A$80),ROW()-ROW(A$80)+(ROWS($88:113)-1)*2,4))","v":0},0,null,0,{"$f":"INDIRECT(ADDRESS(ROW(A$80),ROW()-ROW(A$80)+(ROWS($88:113)-1)*2+1,4))","v":0}]
[{"$f":"IF(B114=\"\",0,INDEX(Price_List,ROWS($88:114)))","v":20},{"$f":"IF($C114=\"\",\"\",COUNTA($C$88:$C114))","v":27},{"$f":"IF(INDEX(INDIRECT(\"Product_List\"),ROWS($88:114))=\"\",\"\",INDEX(INDIRECT(\"Product_List\"),ROWS($88:114)))","v":"27-ขนมปังไส้สังขยาไข่"},{"$f":"ยอดยกมา","v":0},null,null,null,null,null,null,0,null,{"$f":"INDIRECT(ADDRESS(ROW(A$80),ROW()-ROW(A$80)+(ROWS($88:114)-1)*2-1,4))","v":0},null,0,null,0,null,null,null,0,null,0,null,null,null,null,null,{"$f":"INDIRECT(ADDRESS(ROW(A$80),ROW()-ROW(A$80)+(ROWS($88:114)-1)*2,4))","v":0},0,null,0,{"$f":"INDIRECT(ADDRESS(ROW(A$80),ROW()-ROW(A$80)+(ROWS($88:114)-1)*2+1,4))","v":0}]
[{"$f":"IF(B115=\"\",0,INDEX(Price_List,ROWS($88:115)))","v":20},{"$f":"IF($C115=\"\",\"\",COUNTA($C$88:$C115))","v":28},{"$f":"IF(INDEX(INDIRECT(\"Product_List\"),ROWS($88:115))=\"\",\"\",INDEX(INDIRECT(\"Product_List\"),ROWS($88:115)))","v":"28-ขนมปังไส้สังขยามะพร้าว"},{"$f":"ยอดยกมา","v":0},null,null,null,null,null,null,0,null,{"$f":"INDIRECT(ADDRESS(ROW(A$80),ROW()-ROW(A$80)+(ROWS($88:115)-1)*2-1,4))","v":0},null,0,null,0,null,null,null,0,null,0,null,null,null,null,null,{"$f":"INDIRECT(ADDRESS(ROW(A$80),ROW()-ROW(A$80)+(ROWS($88:115)-1)*2,4))","v":0},0,null,0,{"$f":"INDIRECT(ADDRESS(ROW(A$80),ROW()-ROW(A$80)+(ROWS($88:115)-1)*2+1,4))","v":0}]
[{"$f":"IF(B116=\"\",0,INDEX(Price_List,ROWS($88:116)))","v":10},{"$f":"IF($C116=\"\",\"\",COUNTA($C$88:$C116))","v":29},{"$f":"IF(INDEX(INDIRECT(\"Product_List\"),ROWS($88:116))=\"\",\"\",INDEX(INDIRECT(\"Product_List\"),ROWS($88:116)))","v":"29-ขนมปังไส้ครีมชาไทย"},{"$f":"ยอดยกมา","v":0},null,null,null,null,null,null,0,null,{"$f":"INDIRECT(ADDRESS(ROW(A$80),ROW()-ROW(A$80)+(ROWS($88:116)-1)*2-1,4))","v":0},null,0,null,0,null,null,null,0,null,0,null,null,null,null,null,{"$f":"INDIRECT(ADDRESS(ROW(A$80),ROW()-ROW(A$80)+(ROWS($88:116)-1)*2,4))","v":0},0,null,0,{"$f":"INDIRECT(ADDRESS(ROW(A$80),ROW()-ROW(A$80)+(ROWS($88:116)-1)*2+1,4))","v":0}]
[{"$f":"IF(B117=\"\",0,INDEX(Price_List,ROWS($88:117)))","v":15},{"$f":"IF($C117=\"\",\"\",COUNTA($C$88:$C117))","v":30},{"$f":"IF(INDEX(INDIRECT(\"Product_List\"),ROWS($88:117))=\"\",\"\",INDEX(INDIRECT(\"Product_List\"),ROWS($88:117)))","v":"30-ขนมปังโรลมันม่วง"},{"$f":"ยอดยกมา","v":0},null,null,null,null,null,null,0,null,{"$f":"INDIRECT(ADDRESS(ROW(A$80),ROW()-ROW(A$80)+(ROWS($88:117)-1)*2-1,4))","v":0},null,0,null,0,null,null,null,0,null,0,null,null,null,null,null,{"$f":"INDIRECT(ADDRESS(ROW(A$80),ROW()-ROW(A$80)+(ROWS($88:117)-1)*2,4))","v":0},0,null,0,{"$f":"INDIRECT(ADDRESS(ROW(A$80),ROW()-ROW(A$80)+(ROWS($88:117)-1)*2+1,4))","v":0}]
[{"$f":"IF(B118=\"\",0,INDEX(Price_List,ROWS($88:118)))","v":15},{"$f":"IF($C118=\"\",\"\",COUNTA($C$88:$C118))","v":31},{"$f":"IF(INDEX(INDIRECT(\"Product_List\"),ROWS($88:118))=\"\",\"\",INDEX(INDIRECT(\"Product_List\"),ROWS($88:118)))","v":"31-ขนมปังโรลช็อกโกแลต"},{"$f":"ยอดยกมา","v":0},null,null,null,null,null,null,0,null,{"$f":"INDIRECT(ADDRESS(ROW(A$80),ROW()-ROW(A$80)+(ROWS($88:118)-1)*2-1,4))","v":0},null,0,null,0,null,null,null,0,null,0,null,null,null,null,null,{"$f":"INDIRECT(ADDRESS(ROW(A$80),ROW()-ROW(A$80)+(ROWS($88:118)-1)*2,4))","v":0},0,null,0,{"$f":"INDIRECT(ADDRESS(ROW(A$80),ROW()-ROW(A$80)+(ROWS($88:118)-1)*2+1,4))","v":0}]
[{"$f":"IF(B119=\"\",0,INDEX(Price_List,ROWS($88:119)))","v":16},{"$f":"IF($C119=\"\",\"\",COUNTA($C$88:$C119))","v":32},{"$f":"IF(INDEX(INDIRECT(\"Product_List\"),ROWS($88:119))=\"\",\"\",INDEX(INDIRECT(\"Product_List\"),ROWS($88:119)))","v":"32-ขนมปังชนิดแผ่น(155กรัม)"},{"$f":"ยอดยกมา","v":0},null,null,null,null,null,null,0,null,{"$f":"INDIRECT(ADDRESS(ROW(A$80),ROW()-ROW(A$80)+(ROWS($88:119)-1)*2-1,4))","v":0},null,0,null,0,null,null,null,0,null,0,null,null,null,null,null,{"$f":"INDIRECT(ADDRESS(ROW(A$80),ROW()-ROW(A$80)+(ROWS($88:119)-1)*2,4))","v":0},0,null,0,{"$f":"INDIRECT(ADDRESS(ROW(A$80),ROW()-ROW(A$80)+(ROWS($88:119)-1)*2+1,4))","v":0}]
[{"$f":"IF(B120=\"\",0,INDEX(Price_List,ROWS($88:120)))","v":15},{"$f":"IF($C120=\"\",\"\",COUNTA($C$88:$C120))","v":33},{"$f":"IF(INDEX(INDIRECT(\"Product_List\"),ROWS($88:120))=\"\",\"\",INDEX(INDIRECT(\"Product_List\"),ROWS($88:120)))","v":"33-ขนมปังโรลเผือก"},{"$f":"ยอดยกมา","v":0},null,null,null,null,null,null,0,null,{"$f":"INDIRECT(ADDRESS(ROW(A$80),ROW()-ROW(A$80)+(ROWS($88:120)-1)*2-1,4))","v":0},null,0,null,0,null,null,null,0,null,0,null,null,null,null,null,{"$f":"INDIRECT(ADDRESS(ROW(A$80),ROW()-ROW(A$80)+(ROWS($88:120)-1)*2,4))","v":0},0,null,0,{"$f":"INDIRECT(ADDRESS(ROW(A$80),ROW()-ROW(A$80)+(ROWS($88:120)-1)*2+1,4))","v":0}]
[{"$f":"IF(B121=\"\",0,INDEX(Price_List,ROWS($88:121)))","v":15},{"$f":"IF($C121=\"\",\"\",COUNTA($C$88:$C121))","v":34},{"$f":"IF(INDEX(INDIRECT(\"Product_List\"),ROWS($88:121))=\"\",\"\",INDEX(INDIRECT(\"Product_List\"),ROWS($88:121)))","v":"34-ขนมปังไก่หยองน้ำสลัด Mini"},{"$f":"ยอดยกมา","v":0},null,null,null,null,null,null,0,null,{"$f":"INDIRECT(ADDRESS(ROW(A$80),ROW()-ROW(A$80)+(ROWS($88:121)-1)*2-1,4))","v":0},null,0,null,0,null,null,null,0,null,0,null,null,null,null,null,{"$f":"INDIRECT(ADDRESS(ROW(A$80),ROW()-ROW(A$80)+(ROWS($88:121)-1)*2,4))","v":0},0,null,0,{"$f":"INDIRECT(ADDRESS(ROW(A$80),ROW()-ROW(A$80)+(ROWS($88:121)-1)*2+1,4))","v":0}]
[{"$f":"IF(B122=\"\",0,INDEX(Price_List,ROWS($88:122)))","v":10},{"$f":"IF($C122=\"\",\"\",COUNTA($C$88:$C122))","v":35},{"$f":"IF(INDEX(INDIRECT(\"Product_List\"),ROWS($88:122))=\"\",\"\",INDEX(INDIRECT(\"Product_List\"),ROWS($88:122)))","v":"35-ขนมปังไส้ช็อกโกแลต"},{"$f":"ยอดยกมา","v":0},null,null,null,null,null,null,0,null,{"$f":"INDIRECT(ADDRESS(ROW(A$80),ROW()-ROW(A$80)+(ROWS($88:122)-1)*2-1,4))","v":0},null,0,null,0,null,null,null,0,null,0,null,null,null,null,null,{"$f":"INDIRECT(ADDRESS(ROW(A$80),ROW()-ROW(A$80)+(ROWS($88:122)-1)*2,4))","v":0},0,null,0,{"$f":"INDIRECT(ADDRESS(ROW(A$80),ROW()-ROW(A$80)+(ROWS($88:122)-1)*2+1,4))","v":0}]
[{"$f":"IF(B123=\"\",0,INDEX(Price_List,ROWS($88:123)))","v":10},{"$f":"IF($C123=\"\",\"\",COUNTA($C$88:$C123))","v":36},{"$f":"IF(INDEX(INDIRECT(\"Product_List\"),ROWS($88:123))=\"\",\"\",INDEX(INDIRECT(\"Product_List\"),ROWS($88:123)))","v":"36-ขนมปังไส้ครีมสังขยาไข่"},{"$f":"ยอดยกมา","v":0},null,null,null,null,null,null,0,null,{"$f":"INDIRECT(ADDRESS(ROW(A$80),ROW()-ROW(A$80)+(ROWS($88:123)-1)*2-1,4))","v":0},null,0,null,0,null,null,null,0,null,0,null,null,null,null,null,{"$f":"INDIRECT(ADDRESS(ROW(A$80),ROW()-ROW(A$80)+(ROWS($88:123)-1)*2,4))","v":0},0,null,0,{"$f":"INDIRECT(ADDRESS(ROW(A$80),ROW()-ROW(A$80)+(ROWS($88:123)-1)*2+1,4))","v":0}]
[{"$f":"IF(B124=\"\",0,INDEX(Price_List,ROWS($88:124)))","v":20},{"$f":"IF($C124=\"\",\"\",COUNTA($C$88:$C124))","v":37},{"$f":"IF(INDEX(INDIRECT(\"Product_List\"),ROWS($88:124))=\"\",\"\",INDEX(INDIRECT(\"Product_List\"),ROWS($88:124)))","v":"37-ขนมปังพิซซ่าฮาวายเอี้ยน"},{"$f":"ยอดยกมา","v":0},null,null,null,null,null,null,0,null,{"$f":"INDIRECT(ADDRESS(ROW(A$80),ROW()-ROW(A$80)+(ROWS($88:124)-1)*2-1,4))","v":0},null,0,null,0,null,null,null,0,null,0,null,null,null,null,null,{"$f":"INDIRECT(ADDRESS(ROW(A$80),ROW()-ROW(A$80)+(ROWS($88:124)-1)*2,4))","v":0},0,null,0,{"$f":"INDIRECT(ADDRESS(ROW(A$80),ROW()-ROW(A$80)+(ROWS($88:124)-1)*2+1,4))","v":0}]
[{"$f":"IF(B125=\"\",0,INDEX(Price_List,ROWS($88:125)))","v":20},{"$f":"IF($C125=\"\",\"\",COUNTA($C$88:$C125))","v":38},{"$f":"IF(INDEX(INDIRECT(\"Product_List\"),ROWS($88:125))=\"\",\"\",INDEX(INDIRECT(\"Product_List\"),ROWS($88:125)))","v":"38-ครัวซองต์หมูหยองน้ำสลัด"},{"$f":"ยอดยกมา","v":0},null,null,null,null,null,null,0,null,{"$f":"INDIRECT(ADDRESS(ROW(A$80),ROW()-ROW(A$80)+(ROWS($88:125)-1)*2-1,4))","v":0},null,0,null,0,null,null,null,0,null,0,null,null,null,null,null,{"$f":"INDIRECT(ADDRESS(ROW(A$80),ROW()-ROW(A$80)+(ROWS($88:125)-1)*2,4))","v":0},0,null,0,{"$f":"INDIRECT(ADDRESS(ROW(A$80),ROW()-ROW(A$80)+(ROWS($88:125)-1)*2+1,4))","v":0}]
[{"$f":"IF(B126=\"\",0,INDEX(Price_List,ROWS($88:126)))","v":15},{"$f":"IF($C126=\"\",\"\",COUNTA($C$88:$C126))","v":39},{"$f":"IF(INDEX(INDIRECT(\"Product_List\"),ROWS($88:126))=\"\",\"\",INDEX(INDIRECT(\"Product_List\"),ROWS($88:126)))","v":"39-แพนเบรดไส้เผือก"},{"$f":"ยอดยกมา","v":0},null,null,null,null,null,null,0,null,{"$f":"INDIRECT(ADDRESS(ROW(A$80),ROW()-ROW(A$80)+(ROWS($88:126)-1)*2-1,4))","v":0},null,0,null,0,null,null,null,0,null,0,null,null,null,null,null,{"$f":"INDIRECT(ADDRESS(ROW(A$80),ROW()-ROW(A$80)+(ROWS($88:126)-1)*2,4))","v":0},0,null,0,{"$f":"INDIRECT(ADDRESS(ROW(A$80),ROW()-ROW(A$80)+(ROWS($88:126)-1)*2+1,4))","v":0}]
[{"$f":"IF(B127=\"\",0,INDEX(Price_List,ROWS($88:127)))","v":15},{"$f":"IF($C127=\"\",\"\",COUNTA($C$88:$C127))","v":40},{"$f":"IF(INDEX(INDIRECT(\"Product_List\"),ROWS($88:127))=\"\",\"\",INDEX(INDIRECT(\"Product_List\"),ROWS($88:127)))","v":"40-แพนเบรดไส้ถั่วแดง"},{"$f":"ยอดยกมา","v":0},null,null,null,null,null,null,0,null,{"$f":"INDIRECT(ADDRESS(ROW(A$80),ROW()-ROW(A$80)+(ROWS($88:127)-1)*2-1,4))","v":0},null,0,null,0,null,null,null,0,null,0,null,null,null,null,null,{"$f":"INDIRECT(ADDRESS(ROW(A$80),ROW()-ROW(A$80)+(ROWS($88:127)-1)*2,4))","v":0},0,null,0,{"$f":"INDIRECT(ADDRESS(ROW(A$80),ROW()-ROW(A$80)+(ROWS($88:127)-1)*2+1,4))","v":0}]
[{"$f":"IF(B128=\"\",0,INDEX(Price_List,ROWS($88:128)))","v":12},{"$f":"IF($C128=\"\",\"\",COUNTA($C$88:$C128))","v":41},{"$f":"IF(INDEX(INDIRECT(\"Product_List\"),ROWS($88:128))=\"\",\"\",INDEX(INDIRECT(\"Product_List\"),ROWS($88:128)))","v":"41-ขนมปังกรอบเนยน้ำตาล(30กรัม)"},{"$f":"ยอดยกมา","v":0},null,null,null,null,null,null,0,null,{"$f":"INDIRECT(ADDRESS(ROW(A$80),ROW()-ROW(A$80)+(ROWS($88:128)-1)*2-1,4))","v":0},null,0,null,0,null,null,null,0,null,0,null,null,null,null,null,{"$f":"INDIRECT(ADDRESS(ROW(A$80),ROW()-ROW(A$80)+(ROWS($88:128)-1)*2,4))","v":0},0,null,0,{"$f":"INDIRECT(ADDRESS(ROW(A$80),ROW()-ROW(A$80)+(ROWS($88:128)-1)*2+1,4))","v":0}]
[{"$f":"IF(B129=\"\",0,INDEX(Price_List,ROWS($88:129)))","v":18},{"$f":"IF($C129=\"\",\"\",COUNTA($C$88:$C129))","v":42},{"$f":"IF(INDEX(INDIRECT(\"Product_List\"),ROWS($88:129))=\"\",\"\",INDEX(INDIRECT(\"Product_List\"),ROWS($88:129)))","v":"42-ขนมปังชนิดแผ่นโฮลวีต"},{"$f":"ยอดยกมา","v":0},null,null,null,null,null,null,0,null,{"$f":"INDIRECT(ADDRESS(ROW(A$80),ROW()-ROW(A$80)+(ROWS($88:129)-1)*2-1,4))","v":0},null,0,null,0,null,null,null,0,null,0,null,null,null,null,null,{"$f":"INDIRECT(ADDRESS(ROW(A$80),ROW()-ROW(A$80)+(ROWS($88:129)-1)*2,4))","v":0},0,null,0,{"$f":"INDIRECT(ADDRESS(ROW(A$80),ROW()-ROW(A$80)+(ROWS($88:129)-1)*2+1,4))","v":0}]
[{"$f":"IF(B130=\"\",0,INDEX(Price_List,ROWS($88:130)))","v":12},{"$f":"IF($C130=\"\",\"\",COUNTA($C$88:$C130))","v":43},{"$f":"IF(INDEX(INDIRECT(\"Product_List\"),ROWS($88:130))=\"\",\"\",INDEX(INDIRECT(\"Product_List\"),ROWS($88:130)))","v":"43-เค้กโรลใบเตย"},{"$f":"ยอดยกมา","v":0},null,null,null,null,null,null,{"$f":"D130+E130+J130-I130+H130","v":0},null,{"$f":"INDIRECT(ADDRESS(ROW(A$80),ROW()-ROW(A$80)+(ROWS($88:130)-1)*2-1,4))","v":0},null,{"$f":"F130+G130+M130+J130-K130","v":0},null,{"$f":"O130*A130","v":0},null,null,null,{"$f":"D130+E130-F130-G130","v":0},null,{"$f":"U130*6%+U130","v":0},null,null,null,null,null,{"$f":"INDIRECT(ADDRESS(ROW(A$80),ROW()-ROW(A$80)+(ROWS($88:130)-1)*2,4))","v":0},0,null,0,{"$f":"INDIRECT(ADDRESS(ROW(A$80),ROW()-ROW(A$80)+(ROWS($88:130)-1)*2+1,4))","v":0}]
[{"$f":"IF(B131=\"\",0,INDEX(Price_List,ROWS($88:131)))","v":12},{"$f":"IF($C131=\"\",\"\",COUNTA($C$88:$C131))","v":44},{"$f":"IF(INDEX(INDIRECT(\"Product_List\"),ROWS($88:131))=\"\",\"\",INDEX(INDIRECT(\"Product_List\"),ROWS($88:131)))","v":"44-ขนมโมจิไส้ถั่วดำ"},{"$f":"ยอดยกมา","v":0},null,null,null,null,null,null,{"$f":"D131+E131+J131-I131+H131","v":0},null,{"$f":"INDIRECT(ADDRESS(ROW(A$80),ROW()-ROW(A$80)+(ROWS($88:131)-1)*2-1,4))","v":0},null,{"$f":"F131+G131+M131+J131-K131","v":0},null,{"$f":"O131*A131","v":0},null,null,null,{"$f":"D131+E131-F131-G131","v":0},null,{"$f":"U131*6%+U131","v":0},null,null,null,null,null,{"$f":"INDIRECT(ADDRESS(ROW(A$80),ROW()-ROW(A$80)+(ROWS($88:131)-1)*2,4))","v":0},0,null,0,{"$f":"INDIRECT(ADDRESS(ROW(A$80),ROW()-ROW(A$80)+(ROWS($88:131)-1)*2+1,4))","v":0}]
[{"$f":"IF(B132=\"\",0,INDEX(Price_List,ROWS($88:132)))","v":25},{"$f":"IF($C132=\"\",\"\",COUNTA($C$88:$C132))","v":45},{"$f":"IF(INDEX(INDIRECT(\"Product_List\"),ROWS($88:132))=\"\",\"\",INDEX(INDIRECT(\"Product_List\"),ROWS($88:132)))","v":"45-ครัวซองต์ไส้กรอกชีส"},{"$f":"ยอดยกมา","v":0},null,null,null,null,null,null,{"$f":"D132+E132+J132-I132+H132","v":0},null,{"$f":"INDIRECT(ADDRESS(ROW(A$80),ROW()-ROW(A$80)+(ROWS($88:132)-1)*2-1,4))","v":0},null,{"$f":"F132+G132+M132+J132-K132","v":0},null,{"$f":"O132*A132","v":0},null,null,null,{"$f":"D132+E132-F132-G132","v":0},null,{"$f":"U132*6%+U132","v":0},null,null,null,null,null,{"$f":"INDIRECT(ADDRESS(ROW(A$80),ROW()-ROW(A$80)+(ROWS($88:132)-1)*2,4))","v":0},0,null,0,{"$f":"INDIRECT(ADDRESS(ROW(A$80),ROW()-ROW(A$80)+(ROWS($88:132)-1)*2+1,4))","v":0}]
[{"$f":"IF(B133=\"\",0,INDEX(Price_List,ROWS($88:133)))","v":12},{"$f":"IF($C133=\"\",\"\",COUNTA($C$88:$C133))","v":46},{"$f":"IF(INDEX(INDIRECT(\"Product_List\"),ROWS($88:133))=\"\",\"\",INDEX(INDIRECT(\"Product_List\"),ROWS($88:133)))","v":"46-ขนมเปี๊ยะไส้ถั่ว"},{"$f":"ยอดยกมา","v":0},null,null,null,null,null,null,0,null,{"$f":"INDIRECT(ADDRESS(ROW(A$80),ROW()-ROW(A$80)+(ROWS($88:133)-1)*2-1,4))","v":0},null,0,null,0,null,null,null,0,null,0,null,null,null,null,null,{"$f":"INDIRECT(ADDRESS(ROW(A$80),ROW()-ROW(A$80)+(ROWS($88:133)-1)*2,4))","v":0},0,null,0,{"$f":"INDIRECT(ADDRESS(ROW(A$80),ROW()-ROW(A$80)+(ROWS($88:133)-1)*2+1,4))","v":0}]
[{"$f":"IF(B134=\"\",0,INDEX(Price_List,ROWS($88:134)))","v":12},{"$f":"IF($C134=\"\",\"\",COUNTA($C$88:$C134))","v":47},{"$f":"IF(INDEX(INDIRECT(\"Product_List\"),ROWS($88:134))=\"\",\"\",INDEX(INDIRECT(\"Product_List\"),ROWS($88:134)))","v":"47-ขนมเปี๊ยะไส้ฟัก"},{"$f":"ยอดยกมา","v":0},null,null,null,null,null,null,{"$f":"D134+E134+J134-I134+H134","v":0},null,{"$f":"INDIRECT(ADDRESS(ROW(A$80),ROW()-ROW(A$80)+(ROWS($88:134)-1)*2-1,4))","v":0},null,{"$f":"F134+G134+M134+J134-K134","v":0},null,{"$f":"O134*A134","v":0},null,null,null,{"$f":"D134+E134-F134-G134","v":0},null,{"$f":"U134*6%+U134","v":0},null,null,null,null,null,{"$f":"INDIRECT(ADDRESS(ROW(A$80),ROW()-ROW(A$80)+(ROWS($88:134)-1)*2,4))","v":0},0,null,0,{"$f":"INDIRECT(ADDRESS(ROW(A$80),ROW()-ROW(A$80)+(ROWS($88:134)-1)*2+1,4))","v":0}]
[{"$f":"IF(B135=\"\",0,INDEX(Price_List,ROWS($88:135)))","v":12},{"$f":"IF($C135=\"\",\"\",COUNTA($C$88:$C135))","v":48},{"$f":"IF(INDEX(INDIRECT(\"Product_List\"),ROWS($88:135))=\"\",\"\",INDEX(INDIRECT(\"Product_List\"),ROWS($88:135)))","v":"48-มังกี้เค้ก"},{"$f":"ยอดยกมา","v":0},null,null,null,null,null,null,0,null,{"$f":"INDIRECT(ADDRESS(ROW(A$80),ROW()-ROW(A$80)+(ROWS($88:135)-1)*2-1,4))","v":0},null,0,null,0,null,null,null,0,null,0,null,null,null,null,null,{"$f":"INDIRECT(ADDRESS(ROW(A$80),ROW()-ROW(A$80)+(ROWS($88:135)-1)*2,4))","v":0},0,null,0,{"$f":"INDIRECT(ADDRESS(ROW(A$80),ROW()-ROW(A$80)+(ROWS($88:135)-1)*2+1,4))","v":0}]
["รวม",null,null,{"$f":"SUM(D$88:D$135)","v":0},0,0,0,0,0,0,0,null,{"$f":"SUM(M$88:M$135)","v":0},null,null,null,{"$f":"$AP$98","v":0},null,"บาท",null,{"$f":"SUM(U$88:U$135)","v":0},null,{"$f":"SUM(W$88:W$135)","v":0},null,null,null,null,null,{"$f":"SUM(AC$88:AC$135)","v":0},{"$f":"SUM(AD$88:AD$135)","v":0},{"$f":"SUM(AE$88:AE$135)","v":0},{"$f":"SUM(AF$88:AF$135)","v":0},{"$f":"SUM(AG$88:AG$135)","v":0}]
["เลขที่ไมล์ เวลาออกทำงาน",null,null,{"$f":"$BF$3","v":0},null,"Km","น้ำหนักของเสีย"]
["เลขที่ไมล์ เวลากลับ",null,null,{"$f":"$BF$4","v":0},null,"Km",{"$f":"$AA$5","v":0},null,"KG"]
["เวลากลับถึงสำนักงาน",null,null,{"$f":"$BF$1","v":"00:00:00"},null,"น."]
["เติมน้ำมัน",null,null,{"$f":"$AX3","v":0},null,"บาท"]
["จำนวนน้ำมัน",null,null,{"$f":"$AX4","v":0},null,"ลิตร"]
["ยอดรวมต้นทุนสาขา",null,null,{"$f":"$AX5","v":0},null,"บาท"]

{"sheet":"25","index":29,"n_rows":142,"n_cols":154,"rows_kept":142,"cut":false,"hidden":false,"merged":[[83,132,83,133],[129,10,129,11],[129,12,129,13],[129,14,129,15],[129,16,129,17],[127,10,127,11],[127,12,127,13],[127,14,127,15],[127,16,127,17],[127,20,127,21],[127,22,127,23],[127,24,127,25],[127,33,127,36],[126,10,126,11],[126,12,126,13],[126,14,126,15],[126,16,126,17],[128,10,128,11],[128,12,128,13],[129,24,129,25],[125,10,125,11],[125,12,125,13],[125,14,125,15],[125,16,125,17],[7,132,7,134],[8,132,8,134],[80,132,80,133],[82,132,82,133],[7,135,7,137],[8,135,8,137],[80,135,80,136],[82,135,82,136],[7,138,7,140],[7,141,7,143],[7,147,7,149],[8,138,8,140],[141,0,141,2],[141,3,141,4],[138,0,138,2],[138,3,138,4],[139,0,139,2],[139,3,139,4],[140,0,140,2],[140,3,140,4],[135,24,135,25],[135,33,135,36],[136,0,136,2],[136,3,136,4],[137,0,137,2],[137,3,137,4],[137,6,137,7],[137,18,137,21],[135,0,135,2],[135,10,135,11],[135,12,135,13],[135,14,135,15],[135,16,135,17],[135,18,135,19],[135,20,135,21],[135,22,135,23],[128,14,128,15],[128,16,128,17],[128,20,128,21],[128,22,128,23],[129,20,129,21],[129,22,129,23],[131,16,131,17],[132,16,132,17],[134,16,134,17],[131,20,131,21],[132,20,132,21],[134,20,134,21],[131,22,131,23],[132,22,132,23],[134,22,134,23],[131,24,131,25],[132,24,132,25],[134,24,134,25],[129,33,129,36],[128,24,128,25],[128,33,128,36],[126,20,126,21],[126,22,126,23],[124,24,124,25],[124,33,124,36],[125,20,125,21],[125,22,125,23],[125,24,125,25],[125,33,125,36],[124,10,124,11],[124,12,124,13],[124,14,124,15],[124,16,124,17],[124,20,124,21],[124,22,124,23],[126,24,126,25],[126,33,126,36],[122,24,122,25],[122,33,122,36],[123,10,123,11],[123,12,123,13],[123,14,123,15],[123,16,123,17],[123,20,123,21],[123,22,123,23],[123,24,123,25],[123,33,123,36],[122,10,122,11],[122,12,122,13],[122,14,122,15],[122,16,122,17],[122,20,122,21],[122,22,122,23],[120,24,120,25],[120,33,120,36],[121,10,121,11],[121,12,121,13],[121,14,121,15],[121,16,121,17],[121,20,121,21],[121,22,121,23],[121,24,121,25],[121,33,121,36],[120,10,120,11],[120,12,120,13],[120,14,120,15],[120,16,120,17],[120,20,120,21],[120,22,120,23],[118,24,118,25],[118,33,118,36],[119,10,119,11],[119,12,119,13],[119,14,119,15],[119,16,119,17],[119,20,119,21],[119,22,119,23],[119,24,119,25],[119,33,119,36],[118,10,118,11],[118,12,118,13],[118,14,118,15],[118,16,118,17],[118,20,118,21],[118,22,118,23],[116,24,116,25],[116,33,116,36],[117,10,117,11],[117,12,117,13],[117,14,117,15],[117,16,117,17],[117,20,117,21],[117,22,117,23],[117,24,117,25],[117,33,117,36],[116,10,116,11],[116,12,116,13],[116,14,116,15],[116,16,116,17],[116,20,116,21],[116,22,116,23],[114,24,114,25],[114,33,114,36],[115,10,115,11],[115,12,115,13],[115,14,115,15],[115,16,115,17],[115,20,115,21],[115,22,115,23],[115,24,115,25],[115,33,115,36],[114,10,114,11],[114,12,114,13],[114,14,114,15],[114,16,114,17],[114,20,114,21],[114,22,114,23],[112,24,112,25],[112,33,112,36],[113,10,113,11],[113,12,113,13],[113,14,113,15],[113,16,113,17],[113,20,113,21],[113,22,113,23],[113,24,113,25],[113,33,113,36],[112,10,112,11],[112,12,112,13],[112,14,112,15],[112,16,112,17],[112,20,112,21],[112,22,112,23],[110,24,110,25],[110,33,110,36],[111,10,111,11],[111,12,111,13],[111,14,111,15],[111,16,111,17],[111,20,111,21],[111,22,111,23],[111,24,111,25],[111,33,111,36],[110,10,110,11],[110,12,110,13],[110,14,110,15],[110,16,110,17],[110,20,110,21],[110,22,110,23],[108,24,108,25],[108,33,108,36],[109,10,109,11],[109,12,109,13],[109,14,109,15],[109,16,109,17],[109,20,109,21],[109,22,109,23],[109,24,109,25],[109,33,109,36],[108,10,108,11],[108,12,108,13],[108,14,108,15],[108,16,108,17],[108,20,108,21],[108,22,108,23],[106,24,106,25],[106,33,106,36],[107,10,107,11],[107,12,107,13],[107,14,107,15],[107,16,107,17],[107,20,107,21],[107,22,107,23],[107,24,107,25],[107,33,107,36],[106,10,106,11],[106,12,106,13],[106,14,106,15],[106,16,106,17],[106,20,106,21],[106,22,106,23],[104,24,104,25],[104,33,104,36],[105,10,105,11],[105,12,105,13],[105,14,105,15],[105,16,105,17],[105,20,105,21],[105,22,105,23],[105,24,105,25],[105,33,105,36],[104,10,104,11],[104,12,104,13],[104,14,104,15],[104,16,104,17],[104,20,104,21],[104,22,104,23],[102,24,102,25],[102,33,102,36],[103,10,103,11],[103,12,103,13],[103,14,103,15],[103,16,103,17],[103,20,103,21],[103,22,103,23],[103,24,103,25],[103,33,103,36],[102,10,102,11],[102,12,102,13],[102,14,102,15],[102,16,102,17],[102,20,102,21],[102,22,102,23],[101,10,101,11],[101,12,101,13],[101,14,101,15],[101,16,101,17],[101,20,101,21],[101,22,101,23],[101,24,101,25],[101,33,101,36],[100,10,100,11],[100,12,100,13],[100,14,100,15],[100,16,100,17],[100,20,100,21],[100,22,100,23],[99,10,99,11],[99,12,99,13],[99,14,99,15],[99,16,99,17],[99,20,99,21],[99,22,99,23],[99,24,99,25],[99,33,99,36],[100,24,100,25],[100,33,100,36],[97,24,97,25],[97,33,97,36],[97,38,97,40],[98,10,98,11],[98,12,98,13],[98,14,98,15],[98,16,98,17],[98,20,98,21],[98,22,98,23],[98,24,98,25],[97,10,97,11],[97,12,97,13],[97,14,97,15],[97,16,97,17],[97,20,97,21],[97,22,97,23],[98,33,98,36],[95,24,95,25],[95,33,95,36],[96,10,96,11],[96,12,96,13],[96,14,96,15],[96,16,96,17],[96,20,96,21],[96,22,96,23],[96,24,96,25],[96,33,96,36],[95,10,95,11],[95,12,95,13],[95,14,95,15],[95,16,95,17],[95,20,95,21],[95,22,95,23],[93,24,93,25],[93,33,93,36],[94,10,94,11],[94,12,94,13],[94,14,94,15],[94,16,94,17],[94,20,94,21],[94,22,94,23],[94,24,94,25],[94,33,94,36],[93,10,93,11],[93,12,93,13],[93,14,93,15],[93,16,93,17],[93,20,93,21],[93,22,93,23],[91,24,91,25],[91,33,91,36],[92,10,92,11],[92,12,92,13],[92,14,92,15],[92,16,92,17],[92,20,92,21],[92,22,92,23],[92,24,92,25],[92,33,92,36],[91,10,91,11],[91,12,91,13],[91,14,91,15],[91,16,91,17],[91,20,91,21],[91,22,91,23],[86,22,86,23],[86,24,86,25],[88,20,88,21],[88,22,88,23],[88,24,88,25],[88,33,88,36],[89,24,89,25],[89,33,89,36],[90,10,90,11],[90,12,90,13],[90,14,90,15],[90,16,90,17],[90,20,90,21],[90,22,90,23],[90,24,90,25],[90,33,90,36],[89,10,89,11],[89,12,89,13],[89,14,89,15],[89,16,89,17],[89,20,89,21],[89,22,89,23],[83,36,83,37],[83,39,83,40],[83,42,83,43],[83,45,83,46],[83,48,83,49],[83,51,83,52],[83,150,83,153],[86,10,86,11],[86,12,86,13],[86,14,86,15],[86,16,86,17],[86,20,86,21],[83,108,83,109],[83,111,83,112],[83,114,83,115],[83,117,83,118],[83,120,83,121],[83,123,83,124],[83,90,83,91],[83,93,83,94],[83,96,83,97],[83,99,83,100],[83,102,83,103],[83,105,83,106],[82,39,82,40],[82,42,82,43],[82,45,82,46],[82,48,82,49],[83,84,83,85],[83,87,83,88],[83,54,83,55],[83,57,83,58],[83,60,83,61],[83,63,83,64],[83,66,83,67],[83,69,83,70],[83,72,83,73],[83,75,83,76],[83,78,83,79],[83,81,83,82],[83,0,83,5],[83,6,83,7],[83,9,83,10],[83,12,83,13],[83,15,83,16],[82,105,82,106],[82,108,82,109],[82,111,82,112],[82,114,82,115],[82,87,82,88],[82,90,82,91],[82,93,82,94],[82,96,82,97],[82,99,82,100],[82,102,82,103],[82,69,82,70],[82,72,82,73],[82,75,82,76],[82,78,82,79],[82,81,82,82],[82,84,82,85],[82,51,82,52],[82,54,82,55],[82,57,82,58],[82,15,82,16],[82,18,82,19],[82,21,82,22],[82,24,82,25],[82,27,82,28],[82,30,82,31],[81,0,81,2],[81,3,81,5],[81,150,82,153],[82,0,82,2],[82,3,82,4],[82,6,82,7],[82,9,82,10],[82,12,82,13],[82,123,82,124],[82,126,82,127],[82,129,82,130],[82,117,82,118],[82,120,82,121],[82,60,82,61],[82,63,82,64],[82,66,82,67],[82,33,82,34],[82,36,82,37],[80,114,80,115],[80,117,80,118],[80,120,80,121],[80,123,80,124],[80,126,80,127],[80,129,80,130],[80,96,80,97],[80,99,80,100],[80,102,80,103],[80,105,80,106],[80,108,80,109],[80,111,80,112],[80,78,80,79],[80,81,80,82],[80,87,80,88],[80,90,80,91],[80,93,80,94],[80,60,80,61],[80,63,80,64],[80,66,80,67],[80,69,80,70],[80,72,80,73],[80,75,80,76],[80,84,80,85],[79,0,79,5],[80,0,80,5],[80,6,80,7],[80,9,80,10],[80,12,80,13],[80,15,80,16],[80,18,80,19],[80,21,80,22],[8,114,8,116],[8,78,8,80],[8,81,8,83],[8,87,8,89],[8,90,8,92],[8,93,8,95],[8,60,8,62],[8,63,8,65],[8,66,8,68],[8,69,8,71],[8,72,8,74],[8,75,8,77],[8,54,8,56],[8,57,8,59],[8,24,8,26],[8,27,8,29],[8,120,8,122],[8,123,8,125],[8,126,8,128],[8,129,8,131],[8,96,8,98],[8,99,8,101],[8,102,8,104],[8,105,8,107],[8,108,8,110],[8,111,8,113],[8,33,8,35],[8,36,8,38],[8,39,8,41],[8,84,8,86],[7,150,8,150],[7,151,8,151],[8,6,8,8],[8,9,8,11],[8,12,8,14],[8,15,8,17],[8,18,8,20],[8,21,8,23],[7,114,7,116],[7,117,7,119],[7,120,7,122],[7,123,7,125],[7,126,7,128],[7,129,7,131],[7,96,7,98],[7,99,7,101],[7,102,7,104],[7,105,7,107],[7,108,7,110],[8,117,8,119],[7,87,7,89],[7,90,7,92],[7,93,7,95],[7,60,7,62],[7,63,7,65],[7,66,7,68],[7,69,7,71],[7,72,7,74],[7,75,7,77],[7,54,7,56],[7,57,7,59],[7,24,7,26],[7,27,7,29],[7,30,7,32],[7,33,7,35],[7,36,7,38],[7,39,7,41],[7,84,7,86],[6,150,6,151],[6,152,8,152],[6,153,8,153],[7,6,7,8],[7,9,7,11],[7,12,7,14],[7,15,7,17],[7,18,7,20],[7,21,7,23],[6,117,6,119],[6,120,6,122],[6,123,6,125],[6,126,6,128],[6,129,6,131],[6,99,6,101],[6,102,6,104],[6,105,6,107],[6,108,6,110],[6,111,6,113],[6,54,6,56],[6,57,6,59],[7,111,7,113],[7,78,7,80],[7,81,7,83],[6,0,8,0],[6,1,8,1],[6,2,8,2],[6,3,8,3],[6,4,8,4],[6,6,6,8],[6,45,6,47],[6,48,6,50],[6,51,6,53],[7,42,7,44],[7,45,7,47],[7,48,7,50],[7,51,7,53],[8,42,8,44],[8,45,8,47],[8,48,8,50],[8,51,8,53],[6,27,6,29],[6,30,6,32],[6,33,6,35],[6,36,6,38],[6,39,6,41],[6,42,6,44],[8,30,8,32],[4,26,4,29],[4,30,4,31],[4,32,4,34],[4,35,4,36],[6,9,6,11],[6,12,6,14],[6,15,6,17],[6,18,6,20],[6,21,6,23],[6,24,6,26],[3,41,3,44],[3,46,3,48],[3,49,3,51],[3,54,3,56],[3,57,3,60],[4,0,4,1],[4,2,4,3],[4,4,4,5],[4,6,4,12],[4,14,4,16],[3,17,3,19],[3,22,3,25],[3,26,3,29],[3,30,3,33],[3,34,3,37],[3,38,3,40],[4,38,4,40],[4,41,4,44],[4,46,4,48],[4,49,4,51],[4,54,4,56],[4,57,4,60],[4,17,4,19],[4,22,4,25],[2,38,2,40],[3,0,3,1],[3,2,3,3],[3,4,3,5],[3,6,3,12],[3,14,3,16],[2,17,2,19],[2,22,2,25],[2,26,2,29],[2,30,2,33],[80,36,80,37],[80,39,80,40],[0,38,0,40],[0,41,0,44],[0,46,0,48],[0,54,0,56],[0,57,0,60],[2,0,2,1],[2,2,2,3],[2,4,2,5],[2,6,2,12],[2,14,2,16],[0,0,0,12],[0,14,0,16],[0,17,0,23],[0,30,0,33],[0,34,0,35],[0,36,0,37],[2,41,2,44],[2,46,2,48],[2,49,2,51],[2,54,2,56],[2,57,2,60],[2,34,2,37],[6,141,6,143],[6,147,6,149],[83,18,83,19],[83,21,83,22],[83,24,83,25],[83,27,83,28],[83,30,83,31],[83,33,83,34],[83,126,83,127],[83,129,83,130],[8,141,8,143],[8,147,8,149],[80,138,80,139],[80,141,80,142],[80,147,80,148],[82,138,82,139],[82,141,82,142],[82,147,82,148],[6,60,6,62],[6,87,6,89],[6,90,6,92],[6,93,6,95],[6,96,6,98],[6,63,6,65],[88,12,88,13],[88,14,88,15],[88,16,88,17],[6,114,6,116],[6,81,6,83],[6,84,6,86],[6,132,6,134],[6,135,6,137],[6,138,6,140],[6,66,6,68],[6,69,6,71],[6,72,6,74],[6,75,6,77],[6,78,6,80],[80,42,80,43],[80,45,80,46],[80,48,80,49],[80,51,80,52],[80,54,80,55],[80,57,80,58],[80,24,80,25],[80,27,80,28],[80,30,80,31],[80,33,80,34],[83,147,83,148],[131,33,131,36],[132,33,132,36],[134,33,134,36],[131,10,131,11],[132,10,132,11],[134,10,134,11],[131,12,131,13],[132,12,132,13],[134,12,134,13],[131,14,131,15],[132,14,132,15],[134,14,134,15],[86,33,86,36],[87,10,87,11],[87,12,87,13],[87,14,87,15],[87,16,87,17],[87,20,87,21],[87,22,87,23],[83,135,83,136],[130,10,130,11],[130,12,130,13],[130,14,130,15],[6,144,6,146],[7,144,7,146],[8,144,8,146],[80,144,80,145],[82,144,82,145],[83,144,83,145],[133,10,133,11],[133,12,133,13],[133,14,133,15],[133,16,133,17],[133,20,133,21],[133,22,133,23],[133,24,133,25],[133,33,133,36],[83,138,83,139],[83,141,83,142],[130,16,130,17],[130,20,130,21],[130,22,130,23],[130,24,130,25],[130,33,130,36],[87,24,87,25],[87,33,87,36],[88,10,88,11]]}
[":::: รายงานการขายประจำวัน (Sale Daily Report)  ::::",null,null,null,null,null,null,null,null,null,null,null,null,null,"Print Date : ",null,null,{"$f":"NOW()","v":"2025-04-24T22:39:10.130"},null,null,null,null,null,null,null,null,null,null,null,null,"จำนวนร้าน :",null,null,null,{"$f":"MAX($A$10:$A$79)","v":0},null,"ร้าน",null,"เป้ายอดขาย :",null,null,null,null,null,null,null,{"$f":"C3","v":45802},null,null,{"$f":"LEFT('Problems & Solutions'!$B$2,FIND(\"|\",'Problems & Solutions'!$B$2))&\" วันที่\"&TEXT($C$3,\"[$-107041E] d mmmm yyyy;@\")","v":"ขั้นตอนการตรวจรีพอร์ตขาย | วันที่ 25 พฤษภาคม 2568"},null,null,null,null,"เวลากลับ :"]
[]
["วันที่ :",null,{"$f":"DATE(ใส่ข้อมูล!G2-543,ใส่ข้อมูล!V2,ActiveSheetName)","v":"2025-05-25"},null,"พนักงานขาย",null,{"$f":"INDEX(OFFSET(Sale_Region,,1),ActiveSheetName)","v":0},null,null,null,null,null,null,null,"รวมยอดเบิก :",null,null,{"$f":"E136","v":0},null,null,"ชิ้น",null,"ใหญ่สด(40)",null,null,null,{"$f":"Cash_Major_Bill","v":0},null,null,null,"ใหญ่เชื่อ(42)",null,null,null,{"$f":"Credit_Major_Bill","v":0},null,null,null,"บิลใหญ่ :",null,null,{"$f":"AA3+AI3","v":0},null,null,null,null,"เติมน้ำมัน :",null,null,null,null,null,"บาท",null,"ไมล์ออก :",null,null,{"$f":"เลขไมล์ออก","v":0},null,null,null,"Km"]
["เขตการขาย :",null,{"$f":"INDEX(Sale_Region,ActiveSheetName)","v":0},null,"ผช.ขาย",null,{"$f":"INDEX(OFFSET(Sale_Region,,2),ActiveSheetName)","v":0},null,null,null,null,null,null,null,"ของเหลือ :",null,null,{"$f":"F136","v":0},null,null,"ชิ้น",null,"เล็กสด(41)",null,null,null,{"$f":"Cash_Minor_Bill","v":0},null,null,null,"เล็กเชื่อ(43)",null,null,null,{"$f":"Credit_Minor_Bill","v":0},null,null,null,"บิลเล็ก :",null,null,{"$f":"AA4+AI4","v":0},null,null,null,null,"จำนวนลิตร :",null,null,null,null,null,"ลิตร",null,"ไมล์เข้า :",null,null,null,null,null,null,"Km"]
["สายส่ง :",null,{"$f":"\"Sale \"&ใส่ข้อมูล!E3&\"-\"&ใส่ข้อมูล!G3","v":"Sale KB-01"},null,"พนักงานเสริม",null,{"$f":"INDEX(OFFSET(Sale_Region,,3),ActiveSheetName)","v":0},null,null,null,null,null,null,null,"ของเสีย :",null,null,{"$f":"G136","v":0},null,null,"ชิ้น",null,"น้ำหนักของเสีย",null,null,null,null,null,null,null,"Kg.",null,"%ของเสีย",null,null,{"$f":"IF(Order_Cal=0,0,ROUND(Waste_Cal*100/Order_Cal,2))","v":0},null,"%","VAT :",null,null,{"$f":"EW81","v":0},null,null,null,null,"ต้นทุนสาขา :",null,null,{"$f":"SUMPRODUCT((($A$88:$A$135)-($A$88:$A$135)*0.45)*(($E$88:$E$135)-($G$88:$G$135)))","v":0},null,null,"บาท",null,"ระยะทาง :",null,null,{"$f":"IF(OR($BF$4=0,$BF$3=0),0,$BF$4-$BF$3)","v":0},null,null,null,"Km"]
[]
["No","รหัสร้าน (CustNo)","ชื่อร้าน (Store Name)","เวลาเข้าร้าน","ระยะเวลาระหว่างร้าน","บิล(Invoice)",{"$f":"INDEX(INDIRECT(\"dProduct[ProductName]\"),ROUNDUP(COLUMNS($G:G)/3,0))","v":"ขนมปังหมูหยองน้ำสลัด"},null,null,{"$f":"INDEX(INDIRECT(\"dProduct[ProductName]\"),ROUNDUP(COLUMNS($G:J)/3,0))","v":"ขนมปังหมูหยองน้ำพริกเผา"},null,null,{"$f":"INDEX(INDIRECT(\"dProduct[ProductName]\"),ROUNDUP(COLUMNS($G:M)/3,0))","v":"ขนมปังไก่หยองน้ำสลัด"},null,null,{"$f":"INDEX(INDIRECT(\"dProduct[ProductName]\"),ROUNDUP(COLUMNS($G:P)/3,0))","v":"ขนมปังไส้ครีมสลัด"},null,null,{"$f":"INDEX(INDIRECT(\"dProduct[ProductName]\"),ROUNDUP(COLUMNS($G:S)/3,0))","v":"ขนมปังเนยสด"},null,null,{"$f":"INDEX(INDIRECT(\"dProduct[ProductName]\"),ROUNDUP(COLUMNS($G:V)/3,0))","v":"ขนมปังไส้สังขยาเล็ก"},null,null,{"$f":"INDEX(INDIRECT(\"dProduct[ProductName]\"),ROUNDUP(COLUMNS($G:Y)/3,0))","v":"ขนมปังไส้เผือก"},null,null,{"$f":"INDEX(INDIRECT(\"dProduct[ProductName]\"),ROUNDUP(COLUMNS($G:AB)/3,0))","v":"ขนมปังไส้ถั่วแดง"},null,null,{"$f":"INDEX(INDIRECT(\"dProduct[ProductName]\"),ROUNDUP(COLUMNS($G:AE)/3,0))","v":"ขนมปังไส้ถั่วดำ"},null,null,{"$f":"INDEX(INDIRECT(\"dProduct[ProductName]\"),ROUNDUP(COLUMNS($G:AH)/3,0))","v":"ขนมปังไส้มันม่วง"},null,null,{"$f":"INDEX(INDIRECT(\"dProduct[ProductName]\"),ROUNDUP(COLUMNS($G:AK)/3,0))","v":"เค้กกล้วยหอม"},null,null,{"$f":"INDEX(INDIRECT(\"dProduct[ProductName]\"),ROUNDUP(COLUMNS($G:AN)/3,0))","v":"เค้กบัตเตอร์"},null,null,{"$f":"INDEX(INDIRECT(\"dProduct[ProductName]\"),ROUNDUP(COLUMNS($G:AQ)/3,0))","v":"ขนมปังโรลถั่วแดง"},null,null,{"$f":"INDEX(INDIRECT(\"dProduct[ProductName]\"),ROUNDUP(COLUMNS($G:AT)/3,0))","v":"ขนมปังไส้สังขยาใหญ่"},null,null,{"$f":"INDEX(INDIRECT(\"dProduct[ProductName]\"),ROUNDUP(COLUMNS($G:AW)/3,0))","v":"ขนมปังชนิดแผ่น(480กรัม)"},null,null,{"$f":"INDEX(INDIRECT(\"dProduct[ProductName]\"),ROUNDUP(COLUMNS($G:AZ)/3,0))","v":"โมจิไส้ถั่ว"},null,null,{"$f":"INDEX(INDIRECT(\"dProduct[ProductName]\"),ROUNDUP(COLUMNS($G:BC)/3,0))","v":"โมจิไส้เผือก"},null,null,{"$f":"INDEX(INDIRECT(\"dProduct[ProductName]\"),ROUNDUP(COLUMNS($G:BF)/3,0))","v":"โมจิไส้ถั่วไข่เค็ม"},null,null,{"$f":"INDEX(INDIRECT(\"dProduct[ProductName]\"),ROUNDUP(COLUMNS($G:BI)/3,0))","v":"ขนมปังพิซซ่า"},null,null,{"$f":"INDEX(INDIRECT(\"dProduct[ProductName]\"),ROUNDUP(COLUMNS($G:BL)/3,0))","v":"ขนมปังพิซซ่าปูอัดแฮม"},null,null,{"$f":"INDEX(INDIRECT(\"dProduct[ProductName]\"),ROUNDUP(COLUMNS($G:BO)/3,0))","v":"ขนมปังไส้กรอก"},null,null,{"$f":"INDEX(INDIRECT(\"dProduct[ProductName]\"),ROUNDUP(COLUMNS($G:BR)/3,0))","v":"ขนมก้านบัว"},null,null,{"$f":"INDEX(INDIRECT(\"dProduct[ProductName]\"),ROUNDUP(COLUMNS($G:BU)/3,0))","v":"พายสับปะรด"},null,null,{"$f":"INDEX(INDIRECT(\"dProduct[ProductName]\"),ROUNDUP(COLUMNS($G:BX)/3,0))","v":"พายไส้มะพร้าว"},null,null,{"$f":"INDEX(INDIRECT(\"dProduct[ProductName]\"),ROUNDUP(COLUMNS($G:CA)/3,0))","v":"ขนมปังโรลมันเทศ"},null,null,{"$f":"INDEX(INDIRECT(\"dProduct[ProductName]\"),ROUNDUP(COLUMNS($G:CD)/3,0))","v":"ขนมปังไส้ครีมสลัดน้ำพริกเผา"},null,null,{"$f":"INDEX(INDIRECT(\"dProduct[ProductName]\"),ROUNDUP(COLUMNS($G:CG)/3,0))","v":"ขนมปังไส้สังขยาไข่"},null,null,{"$f":"INDEX(INDIRECT(\"dProduct[ProductName]\"),ROUNDUP(COLUMNS($G:CJ)/3,0))","v":"ขนมปังไส้สังขยามะพร้าว"},null,null,{"$f":"INDEX(INDIRECT(\"dProduct[ProductName]\"),ROUNDUP(COLUMNS($G:CM)/3,0))","v":"ขนมปังไส้ครีมชาไทย"},null,null,{"$f":"INDEX(INDIRECT(\"dProduct[ProductName]\"),ROUNDUP(COLUMNS($G:CP)/3,0))","v":"ขนมปังโรลมันม่วง"},null,null,{"$f":"INDEX(INDIRECT(\"dProduct[ProductName]\"),ROUNDUP(COLUMNS($G:CS)/3,0))","v":"ขนมปังโรลช็อกโกแลต"},null,null,{"$f":"INDEX(INDIRECT(\"dProduct[ProductName]\"),ROUNDUP(COLUMNS($G:CV)/3,0))","v":"ขนมปังชนิดแผ่น(155กรัม)"},null,null,{"$f":"INDEX(INDIRECT(\"dProduct[ProductName]\"),ROUNDUP(COLUMNS($G:CY)/3,0))","v":"ขนมปังโรลเผือก"},null,null,{"$f":"INDEX(INDIRECT(\"dProduct[ProductName]\"),ROUNDUP(COLUMNS($G:DB)/3,0))","v":"ขนมปังไก่หยองน้ำสลัด Mini"},null,null,{"$f":"INDEX(INDIRECT(\"dProduct[ProductName]\"),ROUNDUP(COLUMNS($G:DE)/3,0))","v":"ขนมปังไส้ช็อกโกแลต"},null,null,{"$f":"INDEX(INDIRECT(\"dProduct[ProductName]\"),ROUNDUP(COLUMNS($G:DH)/3,0))","v":"ขนมปังไส้ครีมสังขยาไข่"},null,null,{"$f":"INDEX(INDIRECT(\"dProduct[ProductName]\"),ROUNDUP(COLUMNS($G:DK)/3,0))","v":"ขนมปังพิซซ่าฮาวายเอี้ยน"},null,null,{"$f":"INDEX(INDIRECT(\"dProduct[ProductName]\"),ROUNDUP(COLUMNS($G:DN)/3,0))","v":"ครัวซองต์หมูหยองน้ำสลัด"},null,null,{"$f":"INDEX(INDIRECT(\"dProduct[ProductName]\"),ROUNDUP(COLUMNS($G:DQ)/3,0))","v":"แพนเบรดไส้เผือก"},null,null,{"$f":"INDEX(INDIRECT(\"dProduct[ProductName]\"),ROUNDUP(COLUMNS($G:DT)/3,0))","v":"แพนเบรดไส้ถั่วแดง"},null,null,{"$f":"INDEX(INDIRECT(\"dProduct[ProductName]\"),ROUNDUP(COLUMNS($G:DW)/3,0))","v":"ขนมปังกรอบเนยน้ำตาล(30กรัม)"},null,null,{"$f":"INDEX(INDIRECT(\"dProduct[ProductName]\"),ROUNDUP(COLUMNS($G:DZ)/3,0))","v":"ขนมปังชนิดแผ่นโฮลวีต"},null,null,{"$f":"INDEX(INDIRECT(\"dProduct[ProductName]\"),ROUNDUP(COLUMNS($G:EC)/3,0))","v":"เค้กโรลใบเตย"},null,null,{"$f":"INDEX(INDIRECT(\"dProduct[ProductName]\"),ROUNDUP(COLUMNS($G:EF)/3,0))","v":"ขนมโมจิไส้ถั่วดำ"},null,null,{"$f":"INDEX(INDIRECT(\"dProduct[ProductName]\"),ROUNDUP(COLUMNS($G:EI)/3,0))","v":"ครัวซองต์ไส้กรอกชีส"},null,null,{"$f":"INDEX(INDIRECT(\"dProduct[ProductName]\"),ROUNDUP(COLUMNS($G:EL)/3,0))","v":"ขนมเปี๊ยะไส้ถั่ว"},null,null,{"$f":"INDEX(INDIRECT(\"dProduct[ProductName]\"),ROUNDUP(COLUMNS($G:EO)/3,0))","v":"ขนมเปี๊ยะไส้ฟัก"},null,null,{"$f":"INDEX(INDIRECT(\"dProduct[ProductName]\"),ROUNDUP(COLUMNS($G:ER)/3,0))","v":"มังกี้เค้ก"},null,null,"มูลค่าสินค้า",null,"ภาษี","รวมยอดขาย"]
[null,null,null,null,null,"ราคาขาย",{"$f":"IF(G$7=0,0,INDEX(Price_List,ROUNDUP(COLUMNS($G:G)/3,0)))","v":20},null,null,{"$f":"IF(J$7=0,0,INDEX(Price_List,ROUNDUP(COLUMNS($G:J)/3,0)))","v":20},null,null,{"$f":"IF(M$7=0,0,INDEX(Price_List,ROUNDUP(COLUMNS($G:M)/3,0)))","v":20},null,null,{"$f":"IF(P$7=0,0,INDEX(Price_List,ROUNDUP(COLUMNS($G:P)/3,0)))","v":15},null,null,{"$f":"IF(S$7=0,0,INDEX(Price_List,ROUNDUP(COLUMNS($G:S)/3,0)))","v":15},null,null,{"$f":"IF(V$7=0,0,INDEX(Price_List,ROUNDUP(COLUMNS($G:V)/3,0)))","v":10},null,null,{"$f":"IF(Y$7=0,0,INDEX(Price_List,ROUNDUP(COLUMNS($G:Y)/3,0)))","v":10},null,null,{"$f":"IF(AB$7=0,0,INDEX(Price_List,ROUNDUP(COLUMNS($G:AB)/3,0)))","v":10},null,null,{"$f":"IF(AE$7=0,0,INDEX(Price_List,ROUNDUP(COLUMNS($G:AE)/3,0)))","v":10},null,null,{"$f":"IF(AH$7=0,0,INDEX(Price_List,ROUNDUP(COLUMNS($G:AH)/3,0)))","v":10},null,null,{"$f":"IF(AK$7=0,0,INDEX(Price_List,ROUNDUP(COLUMNS($G:AK)/3,0)))","v":15},null,null,{"$f":"IF(AN$7=0,0,INDEX(Price_List,ROUNDUP(COLUMNS($G:AN)/3,0)))","v":15},null,null,{"$f":"IF(AQ$7=0,0,INDEX(Price_List,ROUNDUP(COLUMNS($G:AQ)/3,0)))","v":15},null,null,{"$f":"IF(AT$7=0,0,INDEX(Price_List,ROUNDUP(COLUMNS($G:AT)/3,0)))","v":15},null,null,{"$f":"IF(AW$7=0,0,INDEX(Price_List,ROUNDUP(COLUMNS($G:AW)/3,0)))","v":42},null,null,{"$f":"IF(AZ$7=0,0,INDEX(Price_List,ROUNDUP(COLUMNS($G:AZ)/3,0)))","v":12},null,null,{"$f":"IF(BC$7=0,0,INDEX(Price_List,ROUNDUP(COLUMNS($G:BC)/3,0)))","v":12},null,null,{"$f":"IF(BF$7=0,0,INDEX(Price_List,ROUNDUP(COLUMNS($G:BF)/3,0)))","v":15},null,null,{"$f":"IF(BI$7=0,0,INDEX(Price_List,ROUNDUP(COLUMNS($G:BI)/3,0)))","v":20},null,null,{"$f":"IF(BL$7=0,0,INDEX(Price_List,ROUNDUP(COLUMNS($G:BL)/3,0)))","v":20},null,null,{"$f":"IF(BO$7=0,0,INDEX(Price_List,ROUNDUP(COLUMNS($G:BO)/3,0)))","v":20},null,null,{"$f":"IF(BR$7=0,0,INDEX(Price_List,ROUNDUP(COLUMNS($G:BR)/3,0)))","v":15},null,null,{"$f":"IF(BU$7=0,0,INDEX(Price_List,ROUNDUP(COLUMNS($G:BU)/3,0)))","v":20},null,null,{"$f":"IF(BX$7=0,0,INDEX(Price_List,ROUNDUP(COLUMNS($G:BX)/3,0)))","v":20},null,null,{"$f":"IF(CA$7=0,0,INDEX(Price_List,ROUNDUP(COLUMNS($G:CA)/3,0)))","v":15},null,null,{"$f":"IF(CD$7=0,0,INDEX(Price_List,ROUNDUP(COLUMNS($G:CD)/3,0)))","v":15},null,null,{"$f":"IF(CG$7=0,0,INDEX(Price_List,ROUNDUP(COLUMNS($G:CG)/3,0)))","v":20},null,null,{"$f":"IF(CJ$7=0,0,INDEX(Price_List,ROUNDUP(COLUMNS($G:CJ)/3,0)))","v":20},null,null,{"$f":"IF(CM$7=0,0,INDEX(Price_List,ROUNDUP(COLUMNS($G:CM)/3,0)))","v":10},null,null,{"$f":"IF(CP$7=0,0,INDEX(Price_List,ROUNDUP(COLUMNS($G:CP)/3,0)))","v":15},null,null,{"$f":"IF(CS$7=0,0,INDEX(Price_List,ROUNDUP(COLUMNS($G:CS)/3,0)))","v":15},null,null,{"$f":"IF(CV$7=0,0,INDEX(Price_List,ROUNDUP(COLUMNS($G:CV)/3,0)))","v":16},null,null,{"$f":"IF(CY$7=0,0,INDEX(Price_List,ROUNDUP(COLUMNS($G:CY)/3,0)))","v":15},null,null,{"$f":"IF(DB$7=0,0,INDEX(Price_List,ROUNDUP(COLUMNS($G:DB)/3,0)))","v":15},null,null,{"$f":"IF(DE$7=0,0,INDEX(Price_List,ROUNDUP(COLUMNS($G:DE)/3,0)))","v":10},null,null,{"$f":"IF(DH$7=0,0,INDEX(Price_List,ROUNDUP(COLUMNS($G:DH)/3,0)))","v":10},null,null,{"$f":"IF(DK$7=0,0,INDEX(Price_List,ROUNDUP(COLUMNS($G:DK)/3,0)))","v":20},null,null,{"$f":"IF(DN$7=0,0,INDEX(Price_List,ROUNDUP(COLUMNS($G:DN)/3,0)))","v":20},null,null,{"$f":"IF(DQ$7=0,0,INDEX(Price_List,ROUNDUP(COLUMNS($G:DQ)/3,0)))","v":15},null,null,{"$f":"IF(DT$7=0,0,INDEX(Price_List,ROUNDUP(COLUMNS($G:DT)/3,0)))","v":15},null,null,{"$f":"IF(DW$7=0,0,INDEX(Price_List,ROUNDUP(COLUMNS($G:DW)/3,0)))","v":12},null,null,{"$f":"IF(DZ$7=0,0,INDEX(Price_List,ROUNDUP(COLUMNS($G:DZ)/3,0)))","v":18},null,null,{"$f":"IF(EC$7=0,0,INDEX(Price_List,ROUNDUP(COLUMNS($G:EC)/3,0)))","v":12},null,null,{"$f":"IF(EF$7=0,0,INDEX(Price_List,ROUNDUP(COLUMNS($G:EF)/3,0)))","v":12},null,null,{"$f":"IF(EI$7=0,0,INDEX(Price_List,ROUNDUP(COLUMNS($G:EI)/3,0)))","v":25},null,null,{"$f":"IF(EL$7=0,0,INDEX(Price_List,ROUNDUP(COLUMNS($G:EL)/3,0)))","v":12},null,null,{"$f":"IF(EO$7=0,0,INDEX(Price_List,ROUNDUP(COLUMNS($G:EO)/3,0)))","v":12},null,null,{"$f":"IF(ER$7=0,0,INDEX(Price_List,ROUNDUP(COLUMNS($G:ER)/3,0)))","v":12},null,null,"เงินเชื่อ","เงินสด"]
[null,null,null,null,null,"คงเหลือ(ตามบัญชี)",{"$f":"IF(G$7=0,0,INDEX(INDIRECT(Order_Rng),ROUNDUP(COLUMNS($G:G)/3,0)))","v":0},null,null,{"$f":"IF(J$7=0,0,INDEX(INDIRECT(Order_Rng),ROUNDUP(COLUMNS($G:J)/3,0)))","v":0},null,null,{"$f":"IF(M$7=0,0,INDEX(INDIRECT(Order_Rng),ROUNDUP(COLUMNS($G:M)/3,0)))","v":0},null,null,{"$f":"IF(P$7=0,0,INDEX(INDIRECT(Order_Rng),ROUNDUP(COLUMNS($G:P)/3,0)))","v":0},null,null,{"$f":"IF(S$7=0,0,INDEX(INDIRECT(Order_Rng),ROUNDUP(COLUMNS($G:S)/3,0)))","v":0},null,null,{"$f":"IF(V$7=0,0,INDEX(INDIRECT(Order_Rng),ROUNDUP(COLUMNS($G:V)/3,0)))","v":0},null,null,{"$f":"IF(Y$7=0,0,INDEX(INDIRECT(Order_Rng),ROUNDUP(COLUMNS($G:Y)/3,0)))","v":0},null,null,{"$f":"IF(AB$7=0,0,INDEX(INDIRECT(Order_Rng),ROUNDUP(COLUMNS($G:AB)/3,0)))","v":0},null,null,{"$f":"IF(AE$7=0,0,INDEX(INDIRECT(Order_Rng),ROUNDUP(COLUMNS($G:AE)/3,0)))","v":0},null,null,{"$f":"IF(AH$7=0,0,INDEX(INDIRECT(Order_Rng),ROUNDUP(COLUMNS($G:AH)/3,0)))","v":0},null,null,{"$f":"IF(AK$7=0,0,INDEX(INDIRECT(Order_Rng),ROUNDUP(COLUMNS($G:AK)/3,0)))","v":0},null,null,{"$f":"IF(AN$7=0,0,INDEX(INDIRECT(Order_Rng),ROUNDUP(COLUMNS($G:AN)/3,0)))","v":0},null,null,{"$f":"IF(AQ$7=0,0,INDEX(INDIRECT(Order_Rng),ROUNDUP(COLUMNS($G:AQ)/3,0)))","v":0},null,null,{"$f":"IF(AT$7=0,0,INDEX(INDIRECT(Order_Rng),ROUNDUP(COLUMNS($G:AT)/3,0)))","v":0},null,null,{"$f":"IF(AW$7=0,0,INDEX(INDIRECT(Order_Rng),ROUNDUP(COLUMNS($G:AW)/3,0)))","v":0},null,null,{"$f":"IF(AZ$7=0,0,INDEX(INDIRECT(Order_Rng),ROUNDUP(COLUMNS($G:AZ)/3,0)))","v":0},null,null,{"$f":"IF(BC$7=0,0,INDEX(INDIRECT(Order_Rng),ROUNDUP(COLUMNS($G:BC)/3,0)))","v":0},null,null,{"$f":"IF(BF$7=0,0,INDEX(INDIRECT(Order_Rng),ROUNDUP(COLUMNS($G:BF)/3,0)))","v":0},null,null,{"$f":"IF(BI$7=0,0,INDEX(INDIRECT(Order_Rng),ROUNDUP(COLUMNS($G:BI)/3,0)))","v":0},null,null,{"$f":"IF(BL$7=0,0,INDEX(INDIRECT(Order_Rng),ROUNDUP(COLUMNS($G:BL)/3,0)))","v":0},null,null,{"$f":"IF(BO$7=0,0,INDEX(INDIRECT(Order_Rng),ROUNDUP(COLUMNS($G:BO)/3,0)))","v":0},null,null,{"$f":"IF(BR$7=0,0,INDEX(INDIRECT(Order_Rng),ROUNDUP(COLUMNS($G:BR)/3,0)))","v":0},null,null,{"$f":"IF(BU$7=0,0,INDEX(INDIRECT(Order_Rng),ROUNDUP(COLUMNS($G:BU)/3,0)))","v":0},null,null,{"$f":"IF(BX$7=0,0,INDEX(INDIRECT(Order_Rng),ROUNDUP(COLUMNS($G:BX)/3,0)))","v":0},null,null,{"$f":"IF(CA$7=0,0,INDEX(INDIRECT(Order_Rng),ROUNDUP(COLUMNS($G:CA)/3,0)))","v":0},null,null,{"$f":"IF(CD$7=0,0,INDEX(INDIRECT(Order_Rng),ROUNDUP(COLUMNS($G:CD)/3,0)))","v":0},null,null,{"$f":"IF(CG$7=0,0,INDEX(INDIRECT(Order_Rng),ROUNDUP(COLUMNS($G:CG)/3,0)))","v":0},null,null,{"$f":"IF(CJ$7=0,0,INDEX(INDIRECT(Order_Rng),ROUNDUP(COLUMNS($G:CJ)/3,0)))","v":0},null,null,{"$f":"IF(CM$7=0,0,INDEX(INDIRECT(Order_Rng),ROUNDUP(COLUMNS($G:CM)/3,0)))","v":0},null,null,{"$f":"IF(CP$7=0,0,INDEX(INDIRECT(Order_Rng),ROUNDUP(COLUMNS($G:CP)/3,0)))","v":0},null,null,{"$f":"IF(CS$7=0,0,INDEX(INDIRECT(Order_Rng),ROUNDUP(COLUMNS($G:CS)/3,0)))","v":0},null,null,{"$f":"IF(CV$7=0,0,INDEX(INDIRECT(Order_Rng),ROUNDUP(COLUMNS($G:CV)/3,0)))","v":0},null,null,{"$f":"IF(CY$7=0,0,INDEX(INDIRECT(Order_Rng),ROUNDUP(COLUMNS($G:CY)/3,0)))","v":0},null,null,{"$f":"IF(DB$7=0,0,INDEX(INDIRECT(Order_Rng),ROUNDUP(COLUMNS($G:DB)/3,0)))","v":0},null,null,{"$f":"IF(DE$7=0,0,INDEX(INDIRECT(Order_Rng),ROUNDUP(COLUMNS($G:DE)/3,0)))","v":0},null,null,{"$f":"IF(DH$7=0,0,INDEX(INDIRECT(Order_Rng),ROUNDUP(COLUMNS($G:DH)/3,0)))","v":0},null,null,{"$f":"IF(DK$7=0,0,INDEX(INDIRECT(Order_Rng),ROUNDUP(COLUMNS($G:DK)/3,0)))","v":0},null,null,{"$f":"IF(DN$7=0,0,INDEX(INDIRECT(Order_Rng),ROUNDUP(COLUMNS($G:DN)/3,0)))","v":0},null,null,{"$f":"IF(DQ$7=0,0,INDEX(INDIRECT(Order_Rng),ROUNDUP(COLUMNS($G:DQ)/3,0)))","v":0},null,null,{"$f":"IF(DT$7=0,0,INDEX(INDIRECT(Order_Rng),ROUNDUP(COLUMNS($G:DT)/3,0)))","v":0},null,null,{"$f":"IF(DW$7=0,0,INDEX(INDIRECT(Order_Rng),ROUNDUP(COLUMNS($G:DW)/3,0)))","v":0},null,null,{"$f":"IF(DZ$7=0,0,INDEX(INDIRECT(Order_Rng),ROUNDUP(COLUMNS($G:DZ)/3,0)))","v":0},null,null,{"$f":"IF(EC$7=0,0,INDEX(INDIRECT(Order_Rng),ROUNDUP(COLUMNS($G:EC)/3,0)))","v":0},null,null,{"$f":"IF(EF$7=0,0,INDEX(INDIRECT(Order_Rng),ROUNDUP(COLUMNS($G:EF)/3,0)))","v":0},null,null,{"$f":"IF(EI$7=0,0,INDEX(INDIRECT(Order_Rng),ROUNDUP(COLUMNS($G:EI)/3,0)))","v":0},null,null,{"$f":"IF(EL$7=0,0,INDEX(INDIRECT(Order_Rng),ROUNDUP(COLUMNS($G:EL)/3,0)))","v":0},null,null,{"$f":"IF(EO$7=0,0,INDEX(INDIRECT(Order_Rng),ROUNDUP(COLUMNS($G:EO)/3,0)))","v":0},null,null,{"$f":"IF(ER$7=0,0,INDEX(INDIRECT(Order_Rng),ROUNDUP(COLUMNS($G:ER)/3,0)))","v":0}]
[{"$f":"IF(OR($B10=\"\",COUNTIF($B$10:$B10,$B10)>1,LEN(TRIM($B10))<>10,ISNUMBER(--MID(TRIM($B10),5,1))),\"-\",MAX(COUNT($A$9:$A9)+1))","v":"-"}]
[{"$f":"IF(OR($B11=\"\",COUNTIF($B$10:$B11,$B11)>1,LEN(TRIM($B11))<>10,ISNUMBER(--MID(TRIM($B11),5,1))),\"-\",MAX(COUNT($A$9:$A10)+1))","v":"-"},null,null,null,{"$f":"IF(D11=\"\",\"\",D11-D10)","v":""}]
[{"$f":"IF(OR($B12=\"\",COUNTIF($B$10:$B12,$B12)>1,LEN(TRIM($B12))<>10,ISNUMBER(--MID(TRIM($B12),5,1))),\"-\",MAX(COUNT($A$9:$A11)+1))","v":"-"},null,null,null,{"$f":"IF(D12=\"\",\"\",D12-D11)","v":""}]
[{"$f":"IF(OR($B13=\"\",COUNTIF($B$10:$B13,$B13)>1,LEN(TRIM($B13))<>10,ISNUMBER(--MID(TRIM($B13),5,1))),\"-\",MAX(COUNT($A$9:$A12)+1))","v":"-"},null,null,null,""]
[{"$f":"IF(OR($B14=\"\",COUNTIF($B$10:$B14,$B14)>1,LEN(TRIM($B14))<>10,ISNUMBER(--MID(TRIM($B14),5,1))),\"-\",MAX(COUNT($A$9:$A13)+1))","v":"-"},null,null,null,""]
[{"$f":"IF(OR($B15=\"\",COUNTIF($B$10:$B15,$B15)>1,LEN(TRIM($B15))<>10,ISNUMBER(--MID(TRIM($B15),5,1))),\"-\",MAX(COUNT($A$9:$A14)+1))","v":"-"},null,null,null,""]
[{"$f":"IF(OR($B16=\"\",COUNTIF($B$10:$B16,$B16)>1,LEN(TRIM($B16))<>10,ISNUMBER(--MID(TRIM($B16),5,1))),\"-\",MAX(COUNT($A$9:$A15)+1))","v":"-"},null,null,null,""]
[{"$f":"IF(OR($B17=\"\",COUNTIF($B$10:$B17,$B17)>1,LEN(TRIM($B17))<>10,ISNUMBER(--MID(TRIM($B17),5,1))),\"-\",MAX(COUNT($A$9:$A16)+1))","v":"-"},null,null,null,""]
[{"$f":"IF(OR($B18=\"\",COUNTIF($B$10:$B18,$B18)>1,LEN(TRIM($B18))<>10,ISNUMBER(--MID(TRIM($B18),5,1))),\"-\",MAX(COUNT($A$9:$A17)+1))","v":"-"},null,null,null,""]
[{"$f":"IF(OR($B19=\"\",COUNTIF($B$10:$B19,$B19)>1,LEN(TRIM($B19))<>10,ISNUMBER(--MID(TRIM($B19),5,1))),\"-\",MAX(COUNT($A$9:$A18)+1))","v":"-"},null,null,null,""]
[{"$f":"IF(OR($B20=\"\",COUNTIF($B$10:$B20,$B20)>1,LEN(TRIM($B20))<>10,ISNUMBER(--MID(TRIM($B20),5,1))),\"-\",MAX(COUNT($A$9:$A19)+1))","v":"-"},null,null,null,""]
[{"$f":"IF(OR($B21=\"\",COUNTIF($B$10:$B21,$B21)>1,LEN(TRIM($B21))<>10,ISNUMBER(--MID(TRIM($B21),5,1))),\"-\",MAX(COUNT($A$9:$A20)+1))","v":"-"},null,null,null,""]
[{"$f":"IF(OR($B22=\"\",COUNTIF($B$10:$B22,$B22)>1,LEN(TRIM($B22))<>10,ISNUMBER(--MID(TRIM($B22),5,1))),\"-\",MAX(COUNT($A$9:$A21)+1))","v":"-"},null,null,null,""]
[{"$f":"IF(OR($B23=\"\",COUNTIF($B$10:$B23,$B23)>1,LEN(TRIM($B23))<>10,ISNUMBER(--MID(TRIM($B23),5,1))),\"-\",MAX(COUNT($A$9:$A22)+1))","v":"-"},null,null,null,""]
[{"$f":"IF(OR($B24=\"\",COUNTIF($B$10:$B24,$B24)>1,LEN(TRIM($B24))<>10,ISNUMBER(--MID(TRIM($B24),5,1))),\"-\",MAX(COUNT($A$9:$A23)+1))","v":"-"},null,null,null,""]
[{"$f":"IF(OR($B25=\"\",COUNTIF($B$10:$B25,$B25)>1,LEN(TRIM($B25))<>10,ISNUMBER(--MID(TRIM($B25),5,1))),\"-\",MAX(COUNT($A$9:$A24)+1))","v":"-"},null,null,null,""]
[{"$f":"IF(OR($B26=\"\",COUNTIF($B$10:$B26,$B26)>1,LEN(TRIM($B26))<>10,ISNUMBER(--MID(TRIM($B26),5,1))),\"-\",MAX(COUNT($A$9:$A25)+1))","v":"-"},null,null,null,""]
[{"$f":"IF(OR($B27=\"\",COUNTIF($B$10:$B27,$B27)>1,LEN(TRIM($B27))<>10,ISNUMBER(--MID(TRIM($B27),5,1))),\"-\",MAX(COUNT($A$9:$A26)+1))","v":"-"},null,null,null,""]
[{"$f":"IF(OR($B28=\"\",COUNTIF($B$10:$B28,$B28)>1,LEN(TRIM($B28))<>10,ISNUMBER(--MID(TRIM($B28),5,1))),\"-\",MAX(COUNT($A$9:$A27)+1))","v":"-"},null,null,null,""]
[{"$f":"IF(OR($B29=\"\",COUNTIF($B$10:$B29,$B29)>1,LEN(TRIM($B29))<>10,ISNUMBER(--MID(TRIM($B29),5,1))),\"-\",MAX(COUNT($A$9:$A28)+1))","v":"-"},null,null,null,""]
[{"$f":"IF(OR($B30=\"\",COUNTIF($B$10:$B30,$B30)>1,LEN(TRIM($B30))<>10,ISNUMBER(--MID(TRIM($B30),5,1))),\"-\",MAX(COUNT($A$9:$A29)+1))","v":"-"},null,null,null,""]
[{"$f":"IF(OR($B31=\"\",COUNTIF($B$10:$B31,$B31)>1,LEN(TRIM($B31))<>10,ISNUMBER(--MID(TRIM($B31),5,1))),\"-\",MAX(COUNT($A$9:$A30)+1))","v":"-"},null,null,null,""]
[{"$f":"IF(OR($B32=\"\",COUNTIF($B$10:$B32,$B32)>1,LEN(TRIM($B32))<>10,ISNUMBER(--MID(TRIM($B32),5,1))),\"-\",MAX(COUNT($A$9:$A31)+1))","v":"-"},null,null,null,""]
[{"$f":"IF(OR($B33=\"\",COUNTIF($B$10:$B33,$B33)>1,LEN(TRIM($B33))<>10,ISNUMBER(--MID(TRIM($B33),5,1))),\"-\",MAX(COUNT($A$9:$A32)+1))","v":"-"},null,null,null,""]
[{"$f":"IF(OR($B34=\"\",COUNTIF($B$10:$B34,$B34)>1,LEN(TRIM($B34))<>10,ISNUMBER(--MID(TRIM($B34),5,1))),\"-\",MAX(COUNT($A$9:$A33)+1))","v":"-"},null,null,null,""]
[{"$f":"IF(OR($B35=\"\",COUNTIF($B$10:$B35,$B35)>1,LEN(TRIM($B35))<>10,ISNUMBER(--MID(TRIM($B35),5,1))),\"-\",MAX(COUNT($A$9:$A34)+1))","v":"-"},null,null,null,""]
[{"$f":"IF(OR($B36=\"\",COUNTIF($B$10:$B36,$B36)>1,LEN(TRIM($B36))<>10,ISNUMBER(--MID(TRIM($B36),5,1))),\"-\",MAX(COUNT($A$9:$A35)+1))","v":"-"},null,null,null,""]
[{"$f":"IF(OR($B37=\"\",COUNTIF($B$10:$B37,$B37)>1,LEN(TRIM($B37))<>10,ISNUMBER(--MID(TRIM($B37),5,1))),\"-\",MAX(COUNT($A$9:$A36)+1))","v":"-"},null,null,null,""]
[{"$f":"IF(OR($B38=\"\",COUNTIF($B$10:$B38,$B38)>1,LEN(TRIM($B38))<>10,ISNUMBER(--MID(TRIM($B38),5,1))),\"-\",MAX(COUNT($A$9:$A37)+1))","v":"-"},null,null,null,""]
[{"$f":"IF(OR($B39=\"\",COUNTIF($B$10:$B39,$B39)>1,LEN(TRIM($B39))<>10,ISNUMBER(--MID(TRIM($B39),5,1))),\"-\",MAX(COUNT($A$9:$A38)+1))","v":"-"},null,null,null,""]
[{"$f":"IF(OR($B40=\"\",COUNTIF($B$10:$B40,$B40)>1,LEN(TRIM($B40))<>10,ISNUMBER(--MID(TRIM($B40),5,1))),\"-\",MAX(COUNT($A$9:$A39)+1))","v":"-"},null,null,null,""]
[{"$f":"IF(OR($B41=\"\",COUNTIF($B$10:$B41,$B41)>1,LEN(TRIM($B41))<>10,ISNUMBER(--MID(TRIM($B41),5,1))),\"-\",MAX(COUNT($A$9:$A40)+1))","v":"-"},null,null,null,""]
[{"$f":"IF(OR($B42=\"\",COUNTIF($B$10:$B42,$B42)>1,LEN(TRIM($B42))<>10,ISNUMBER(--MID(TRIM($B42),5,1))),\"-\",MAX(COUNT($A$9:$A41)+1))","v":"-"},null,null,null,""]
[{"$f":"IF(OR($B43=\"\",COUNTIF($B$10:$B43,$B43)>1,LEN(TRIM($B43))<>10,ISNUMBER(--MID(TRIM($B43),5,1))),\"-\",MAX(COUNT($A$9:$A42)+1))","v":"-"},null,null,null,""]
[{"$f":"IF(OR($B44=\"\",COUNTIF($B$10:$B44,$B44)>1,LEN(TRIM($B44))<>10,ISNUMBER(--MID(TRIM($B44),5,1))),\"-\",MAX(COUNT($A$9:$A43)+1))","v":"-"},null,null,null,""]
[{"$f":"IF(OR($B45=\"\",COUNTIF($B$10:$B45,$B45)>1,LEN(TRIM($B45))<>10,ISNUMBER(--MID(TRIM($B45),5,1))),\"-\",MAX(COUNT($A$9:$A44)+1))","v":"-"},null,null,null,""]
[{"$f":"IF(OR($B46=\"\",COUNTIF($B$10:$B46,$B46)>1,LEN(TRIM($B46))<>10,ISNUMBER(--MID(TRIM($B46),5,1))),\"-\",MAX(COUNT($A$9:$A45)+1))","v":"-"},null,null,null,""]
[{"$f":"IF(OR($B47=\"\",COUNTIF($B$10:$B47,$B47)>1,LEN(TRIM($B47))<>10,ISNUMBER(--MID(TRIM($B47),5,1))),\"-\",MAX(COUNT($A$9:$A46)+1))","v":"-"},null,null,null,""]
[{"$f":"IF(OR($B48=\"\",COUNTIF($B$10:$B48,$B48)>1,LEN(TRIM($B48))<>10,ISNUMBER(--MID(TRIM($B48),5,1))),\"-\",MAX(COUNT($A$9:$A47)+1))","v":"-"},null,null,null,""]
[{"$f":"IF(OR($B49=\"\",COUNTIF($B$10:$B49,$B49)>1,LEN(TRIM($B49))<>10,ISNUMBER(--MID(TRIM($B49),5,1))),\"-\",MAX(COUNT($A$9:$A48)+1))","v":"-"},null,null,null,""]
[{"$f":"IF(OR($B50=\"\",COUNTIF($B$10:$B50,$B50)>1,LEN(TRIM($B50))<>10,ISNUMBER(--MID(TRIM($B50),5,1))),\"-\",MAX(COUNT($A$9:$A49)+1))","v":"-"},null,null,null,""]
[{"$f":"IF(OR($B51=\"\",COUNTIF($B$10:$B51,$B51)>1,LEN(TRIM($B51))<>10,ISNUMBER(--MID(TRIM($B51),5,1))),\"-\",MAX(COUNT($A$9:$A50)+1))","v":"-"},null,null,null,""]
[{"$f":"IF(OR($B52=\"\",COUNTIF($B$10:$B52,$B52)>1,LEN(TRIM($B52))<>10,ISNUMBER(--MID(TRIM($B52),5,1))),\"-\",MAX(COUNT($A$9:$A51)+1))","v":"-"},null,null,null,""]
[{"$f":"IF(OR($B53=\"\",COUNTIF($B$10:$B53,$B53)>1,LEN(TRIM($B53))<>10,ISNUMBER(--MID(TRIM($B53),5,1))),\"-\",MAX(COUNT($A$9:$A52)+1))","v":"-"},null,null,null,""]
[{"$f":"IF(OR($B54=\"\",COUNTIF($B$10:$B54,$B54)>1,LEN(TRIM($B54))<>10,ISNUMBER(--MID(TRIM($B54),5,1))),\"-\",MAX(COUNT($A$9:$A53)+1))","v":"-"},null,null,null,""]
[{"$f":"IF(OR($B55=\"\",COUNTIF($B$10:$B55,$B55)>1,LEN(TRIM($B55))<>10,ISNUMBER(--MID(TRIM($B55),5,1))),\"-\",MAX(COUNT($A$9:$A54)+1))","v":"-"},null,null,null,""]
[{"$f":"IF(OR($B56=\"\",COUNTIF($B$10:$B56,$B56)>1,LEN(TRIM($B56))<>10,ISNUMBER(--MID(TRIM($B56),5,1))),\"-\",MAX(COUNT($A$9:$A55)+1))","v":"-"},null,null,null,""]
[{"$f":"IF(OR($B57=\"\",COUNTIF($B$10:$B57,$B57)>1,LEN(TRIM($B57))<>10,ISNUMBER(--MID(TRIM($B57),5,1))),\"-\",MAX(COUNT($A$9:$A56)+1))","v":"-"},null,null,null,""]
[{"$f":"IF(OR($B58=\"\",COUNTIF($B$10:$B58,$B58)>1,LEN(TRIM($B58))<>10,ISNUMBER(--MID(TRIM($B58),5,1))),\"-\",MAX(COUNT($A$9:$A57)+1))","v":"-"},null,null,null,""]
[{"$f":"IF(OR($B59=\"\",COUNTIF($B$10:$B59,$B59)>1,LEN(TRIM($B59))<>10,ISNUMBER(--MID(TRIM($B59),5,1))),\"-\",MAX(COUNT($A$9:$A58)+1))","v":"-"},null,null,null,""]
[{"$f":"IF(OR($B60=\"\",COUNTIF($B$10:$B60,$B60)>1,LEN(TRIM($B60))<>10,ISNUMBER(--MID(TRIM($B60),5,1))),\"-\",MAX(COUNT($A$9:$A59)+1))","v":"-"},null,null,null,""]
[{"$f":"IF(OR($B61=\"\",COUNTIF($B$10:$B61,$B61)>1,LEN(TRIM($B61))<>10,ISNUMBER(--MID(TRIM($B61),5,1))),\"-\",MAX(COUNT($A$9:$A60)+1))","v":"-"},null,null,null,""]
[{"$f":"IF(OR($B62=\"\",COUNTIF($B$10:$B62,$B62)>1,LEN(TRIM($B62))<>10,ISNUMBER(--MID(TRIM($B62),5,1))),\"-\",MAX(COUNT($A$9:$A61)+1))","v":"-"},null,null,null,""]
[{"$f":"IF(OR($B63=\"\",COUNTIF($B$10:$B63,$B63)>1,LEN(TRIM($B63))<>10,ISNUMBER(--MID(TRIM($B63),5,1))),\"-\",MAX(COUNT($A$9:$A62)+1))","v":"-"},null,null,null,""]
[{"$f":"IF(OR($B64=\"\",COUNTIF($B$10:$B64,$B64)>1,LEN(TRIM($B64))<>10,ISNUMBER(--MID(TRIM($B64),5,1))),\"-\",MAX(COUNT($A$9:$A63)+1))","v":"-"},null,null,null,""]
[{"$f":"IF(OR($B65=\"\",COUNTIF($B$10:$B65,$B65)>1,LEN(TRIM($B65))<>10,ISNUMBER(--MID(TRIM($B65),5,1))),\"-\",MAX(COUNT($A$9:$A64)+1))","v":"-"},null,null,null,""]
[{"$f":"IF(OR($B66=\"\",COUNTIF($B$10:$B66,$B66)>1,LEN(TRIM($B66))<>10,ISNUMBER(--MID(TRIM($B66),5,1))),\"-\",MAX(COUNT($A$9:$A65)+1))","v":"-"},null,null,null,""]
[{"$f":"IF(OR($B67=\"\",COUNTIF($B$10:$B67,$B67)>1,LEN(TRIM($B67))<>10,ISNUMBER(--MID(TRIM($B67),5,1))),\"-\",MAX(COUNT($A$9:$A66)+1))","v":"-"},null,null,null,""]
[{"$f":"IF(OR($B68=\"\",COUNTIF($B$10:$B68,$B68)>1,LEN(TRIM($B68))<>10,ISNUMBER(--MID(TRIM($B68),5,1))),\"-\",MAX(COUNT($A$9:$A67)+1))","v":"-"},null,null,null,""]
[{"$f":"IF(OR($B69=\"\",COUNTIF($B$10:$B69,$B69)>1,LEN(TRIM($B69))<>10,ISNUMBER(--MID(TRIM($B69),5,1))),\"-\",MAX(COUNT($A$9:$A68)+1))","v":"-"},null,null,null,""]
[{"$f":"IF(OR($B70=\"\",COUNTIF($B$10:$B70,$B70)>1,LEN(TRIM($B70))<>10,ISNUMBER(--MID(TRIM($B70),5,1))),\"-\",MAX(COUNT($A$9:$A69)+1))","v":"-"},null,null,null,""]
[{"$f":"IF(OR($B71=\"\",COUNTIF($B$10:$B71,$B71)>1,LEN(TRIM($B71))<>10,ISNUMBER(--MID(TRIM($B71),5,1))),\"-\",MAX(COUNT($A$9:$A70)+1))","v":"-"},null,null,null,""]
[{"$f":"IF(OR($B72=\"\",COUNTIF($B$10:$B72,$B72)>1,LEN(TRIM($B72))<>10,ISNUMBER(--MID(TRIM($B72),5,1))),\"-\",MAX(COUNT($A$9:$A71)+1))","v":"-"},null,null,null,""]
[{"$f":"IF(OR($B73=\"\",COUNTIF($B$10:$B73,$B73)>1,LEN(TRIM($B73))<>10,ISNUMBER(--MID(TRIM($B73),5,1))),\"-\",MAX(COUNT($A$9:$A72)+1))","v":"-"},null,null,null,""]
[{"$f":"IF(OR($B74=\"\",COUNTIF($B$10:$B74,$B74)>1,LEN(TRIM($B74))<>10,ISNUMBER(--MID(TRIM($B74),5,1))),\"-\",MAX(COUNT($A$9:$A73)+1))","v":"-"},null,null,null,""]
[{"$f":"IF(OR($B75=\"\",COUNTIF($B$10:$B75,$B75)>1,LEN(TRIM($B75))<>10,ISNUMBER(--MID(TRIM($B75),5,1))),\"-\",MAX(COUNT($A$9:$A74)+1))","v":"-"},null,null,null,""]
[{"$f":"IF(OR($B76=\"\",COUNTIF($B$10:$B76,$B76)>1,LEN(TRIM($B76))<>10,ISNUMBER(--MID(TRIM($B76),5,1))),\"-\",MAX(COUNT($A$9:$A75)+1))","v":"-"},null,null,null,{"$f":"IF(D76=\"\",\"\",D76-D75)","v":""}]
[{"$f":"IF(OR($B77=\"\",COUNTIF($B$10:$B77,$B77)>1,LEN(TRIM($B77))<>10,ISNUMBER(--MID(TRIM($B77),5,1))),\"-\",MAX(COUNT($A$9:$A76)+1))","v":"-"},null,null,null,""]
[{"$f":"IF(OR($B78=\"\",COUNTIF($B$10:$B78,$B78)>1,LEN(TRIM($B78))<>10,ISNUMBER(--MID(TRIM($B78),5,1))),\"-\",MAX(COUNT($A$9:$A77)+1))","v":"-"},null,null,null,""]
[{"$f":"IF(OR($B79=\"\",COUNTIF($B$10:$B79,$B79)>1,LEN(TRIM($B79))<>10,ISNUMBER(--MID(TRIM($B79),5,1))),\"-\",MAX(COUNT($A$9:$A78)+1))","v":"-"},null,null,null,""]
["รวมของขาย|ของเสีย|เหลือบนเชลฟ์",null,null,null,null,null,{"$f":"SUM(G10:G79)","v":0},0,0,{"$f":"SUM(J10:J79)","v":0},0,0,0,0,0,0,0,0,0,0,0,0,0,0,0,0,0,0,0,0,0,0,0,0,0,0,0,0,0,0,0,0,0,0,0,0,0,0,0,0,0,0,0,0,0,0,0,0,0,0,0,0,0,0,0,0,0,0,0,0,0,0,0,{"$f":"SUM(BV10:BV79)","v":0},0,0,0,0,0,0,0,0,0,0,0,0,0,0,0,0,0,0,0,0,0,0,0,0,0,0,0,0,0,0,0,0,0,0,0,0,0,0,0,0,0,0,0,0,0,0,0,0,0,0,0,0,0,0,0,0,0,0,0,0,0,{"$f":"SUM(EF10:EF79)","v":0},0,0,{"$f":"SUM(EI10:EI79)","v":0},0,0,0,0,0,{"$f":"SUM(EO10:EO79)","v":0},0,0,0,0,0,"รวมเงินเชื่อ","รวมเงินสด","ภาษี","รวมยอดขาย"]
["ของเหลือ",null,null,null,null,null,{"$f":"G80+H80-G9","v":0},null,null,{"$f":"J80+K80-J9","v":0},null,null,{"$f":"M80+N80-M9","v":0},null,null,{"$f":"P80+Q80-P9","v":0},null,null,{"$f":"S80+T80-S9","v":0},null,null,{"$f":"V80+W80-V9","v":0},null,null,{"$f":"Y80+Z80-Y9","v":0},null,null,{"$f":"AB80+AC80-AB9","v":0},null,null,{"$f":"AE80+AF80-AE9","v":0},null,null,{"$f":"AH80+AI80-AH9","v":0},null,null,{"$f":"AK80+AL80-AK9","v":0},null,null,{"$f":"AN80+AO80-AN9","v":0},null,null,{"$f":"AQ80+AR80-AQ9","v":0},null,null,{"$f":"AT80+AU80-AT9","v":0},null,null,{"$f":"AW80+AX80-AW9","v":0},null,null,{"$f":"AZ80+BA80-AZ9","v":0},null,null,{"$f":"BC80+BD80-BC9","v":0},null,null,{"$f":"BF80+BG80-BF9","v":0},null,null,{"$f":"BI80+BJ80-BI9","v":0},null,null,{"$f":"BL80+BM80-BL9","v":0},null,null,{"$f":"BO80+BP80-BO9","v":0},null,null,{"$f":"BR80+BS80-BR9","v":0},null,null,{"$f":"BU80+BV80-BU9","v":0},null,null,{"$f":"BX80+BY80-BX9","v":0},null,null,{"$f":"CA80+CB80-CA9","v":0},null,null,{"$f":"CD80+CE80-CD9","v":0},null,null,{"$f":"CG80+CH80-CG9","v":0},null,null,{"$f":"CJ80+CK80-CJ9","v":0},null,null,{"$f":"CM80+CN80-CM9","v":0},null,null,{"$f":"CP80+CQ80-CP9","v":0},null,null,{"$f":"CS80+CT80-CS9","v":0},null,null,{"$f":"CV80+CW80-CV9","v":0},null,null,{"$f":"CY80+CZ80-CY9","v":0},null,null,{"$f":"DB80+DC80-DB9","v":0},null,null,{"$f":"DE80+DF80-DE9","v":0},null,null,{"$f":"DH80+DI80-DH9","v":0},null,null,{"$f":"DK80+DL80-DK9","v":0},null,null,{"$f":"DN80+DO80-DN9","v":0},null,null,{"$f":"DQ80+DR80-DQ9","v":0},null,null,{"$f":"DT80+DU80-DT9","v":0},null,null,{"$f":"DW80+DX80-DW9","v":0},null,null,{"$f":"DZ80+EA80-DZ9","v":0},null,null,{"$f":"EC80+ED80-EC9","v":0},null,null,{"$f":"EF80+EG80-EF9","v":0},null,null,{"$f":"EI80+EJ80-EI9","v":0},null,null,{"$f":"EL80+EM80-EL9","v":0},null,null,{"$f":"EO80+EP80-EO9","v":0},null,null,{"$f":"ER80+ES80-ER9","v":0},null,null,{"$f":"SUM(EU10:EU79)","v":0},{"$f":"SUM(EV10:EV79)","v":0},{"$f":"SUM(EW10:EW79)","v":0},{"$f":"SUM(EX10:EX79)","v":0}]
["เฉลี่ย",null,null,"เหลือ/เสีย(จริง)",null,null,{"$f":"INDIRECT(\"F\"&ROW($G$87)+ROUNDUP(COLUMNS($G:G)/3,0))","v":0},{"$f":"INDIRECT(\"G\"&ROW($G$87)+ROUNDUP(COLUMNS($G:H)/3,0))","v":0},null,{"$f":"INDIRECT(\"F\"&ROW($G$87)+ROUNDUP(COLUMNS($G:J)/3,0))","v":0},{"$f":"INDIRECT(\"G\"&ROW($G$87)+ROUNDUP(COLUMNS($G:K)/3,0))","v":0},null,{"$f":"INDIRECT(\"F\"&ROW($G$87)+ROUNDUP(COLUMNS($G:M)/3,0))","v":0},{"$f":"INDIRECT(\"G\"&ROW($G$87)+ROUNDUP(COLUMNS($G:N)/3,0))","v":0},null,{"$f":"INDIRECT(\"F\"&ROW($G$87)+ROUNDUP(COLUMNS($G:P)/3,0))","v":0},{"$f":"INDIRECT(\"G\"&ROW($G$87)+ROUNDUP(COLUMNS($G:Q)/3,0))","v":0},null,{"$f":"INDIRECT(\"F\"&ROW($G$87)+ROUNDUP(COLUMNS($G:S)/3,0))","v":0},{"$f":"INDIRECT(\"G\"&ROW($G$87)+ROUNDUP(COLUMNS($G:T)/3,0))","v":0},null,{"$f":"INDIRECT(\"F\"&ROW($G$87)+ROUNDUP(COLUMNS($G:V)/3,0))","v":0},{"$f":"INDIRECT(\"G\"&ROW($G$87)+ROUNDUP(COLUMNS($G:W)/3,0))","v":0},null,{"$f":"INDIRECT(\"F\"&ROW($G$87)+ROUNDUP(COLUMNS($G:Y)/3,0))","v":0},{"$f":"INDIRECT(\"G\"&ROW($G$87)+ROUNDUP(COLUMNS($G:Z)/3,0))","v":0},null,{"$f":"INDIRECT(\"F\"&ROW($G$87)+ROUNDUP(COLUMNS($G:AB)/3,0))","v":0},{"$f":"INDIRECT(\"G\"&ROW($G$87)+ROUNDUP(COLUMNS($G:AC)/3,0))","v":0},null,{"$f":"INDIRECT(\"F\"&ROW($G$87)+ROUNDUP(COLUMNS($G:AE)/3,0))","v":0},{"$f":"INDIRECT(\"G\"&ROW($G$87)+ROUNDUP(COLUMNS($G:AF)/3,0))","v":0},null,{"$f":"INDIRECT(\"F\"&ROW($G$87)+ROUNDUP(COLUMNS($G:AH)/3,0))","v":0},{"$f":"INDIRECT(\"G\"&ROW($G$87)+ROUNDUP(COLUMNS($G:AI)/3,0))","v":0},null,{"$f":"INDIRECT(\"F\"&ROW($G$87)+ROUNDUP(COLUMNS($G:AK)/3,0))","v":0},{"$f":"INDIRECT(\"G\"&ROW($G$87)+ROUNDUP(COLUMNS($G:AL)/3,0))","v":0},null,{"$f":"INDIRECT(\"F\"&ROW($G$87)+ROUNDUP(COLUMNS($G:AN)/3,0))","v":0},{"$f":"INDIRECT(\"G\"&ROW($G$87)+ROUNDUP(COLUMNS($G:AO)/3,0))","v":0},null,{"$f":"INDIRECT(\"F\"&ROW($G$87)+ROUNDUP(COLUMNS($G:AQ)/3,0))","v":0},{"$f":"INDIRECT(\"G\"&ROW($G$87)+ROUNDUP(COLUMNS($G:AR)/3,0))","v":0},null,{"$f":"INDIRECT(\"F\"&ROW($G$87)+ROUNDUP(COLUMNS($G:AT)/3,0))","v":0},{"$f":"INDIRECT(\"G\"&ROW($G$87)+ROUNDUP(COLUMNS($G:AU)/3,0))","v":0},null,{"$f":"INDIRECT(\"F\"&ROW($G$87)+ROUNDUP(COLUMNS($G:AW)/3,0))","v":0},{"$f":"INDIRECT(\"G\"&ROW($G$87)+ROUNDUP(COLUMNS($G:AX)/3,0))","v":0},null,{"$f":"INDIRECT(\"F\"&ROW($G$87)+ROUNDUP(COLUMNS($G:AZ)/3,0))","v":0},{"$f":"INDIRECT(\"G\"&ROW($G$87)+ROUNDUP(COLUMNS($G:BA)/3,0))","v":0},null,{"$f":"INDIRECT(\"F\"&ROW($G$87)+ROUNDUP(COLUMNS($G:BC)/3,0))","v":0},{"$f":"INDIRECT(\"G\"&ROW($G$87)+ROUNDUP(COLUMNS($G:BD)/3,0))","v":0},null,{"$f":"INDIRECT(\"F\"&ROW($G$87)+ROUNDUP(COLUMNS($G:BF)/3,0))","v":0},{"$f":"INDIRECT(\"G\"&ROW($G$87)+ROUNDUP(COLUMNS($G:BG)/3,0))","v":0},null,{"$f":"INDIRECT(\"F\"&ROW($G$87)+ROUNDUP(COLUMNS($G:BI)/3,0))","v":0},{"$f":"INDIRECT(\"G\"&ROW($G$87)+ROUNDUP(COLUMNS($G:BJ)/3,0))","v":0},null,{"$f":"INDIRECT(\"F\"&ROW($G$87)+ROUNDUP(COLUMNS($G:BL)/3,0))","v":0},{"$f":"INDIRECT(\"G\"&ROW($G$87)+ROUNDUP(COLUMNS($G:BM)/3,0))","v":0},null,{"$f":"INDIRECT(\"F\"&ROW($G$87)+ROUNDUP(COLUMNS($G:BO)/3,0))","v":0},{"$f":"INDIRECT(\"G\"&ROW($G$87)+ROUNDUP(COLUMNS($G:BP)/3,0))","v":0},null,{"$f":"INDIRECT(\"F\"&ROW($G$87)+ROUNDUP(COLUMNS($G:BR)/3,0))","v":0},{"$f":"INDIRECT(\"G\"&ROW($G$87)+ROUNDUP(COLUMNS($G:BS)/3,0))","v":0},null,{"$f":"INDIRECT(\"F\"&ROW($G$87)+ROUNDUP(COLUMNS($G:BU)/3,0))","v":0},{"$f":"INDIRECT(\"G\"&ROW($G$87)+ROUNDUP(COLUMNS($G:BV)/3,0))","v":0},null,{"$f":"INDIRECT(\"F\"&ROW($G$87)+ROUNDUP(COLUMNS($G:BX)/3,0))","v":0},{"$f":"INDIRECT(\"G\"&ROW($G$87)+ROUNDUP(COLUMNS($G:BY)/3,0))","v":0},null,{"$f":"INDIRECT(\"F\"&ROW($G$87)+ROUNDUP(COLUMNS($G:CA)/3,0))","v":0},{"$f":"INDIRECT(\"G\"&ROW($G$87)+ROUNDUP(COLUMNS($G:CB)/3,0))","v":0},null,{"$f":"INDIRECT(\"F\"&ROW($G$87)+ROUNDUP(COLUMNS($G:CD)/3,0))","v":0},{"$f":"INDIRECT(\"G\"&ROW($G$87)+ROUNDUP(COLUMNS($G:CE)/3,0))","v":0},null,{"$f":"INDIRECT(\"F\"&ROW($G$87)+ROUNDUP(COLUMNS($G:CG)/3,0))","v":0},{"$f":"INDIRECT(\"G\"&ROW($G$87)+ROUNDUP(COLUMNS($G:CH)/3,0))","v":0},null,{"$f":"INDIRECT(\"F\"&ROW($G$87)+ROUNDUP(COLUMNS($G:CJ)/3,0))","v":0},{"$f":"INDIRECT(\"G\"&ROW($G$87)+ROUNDUP(COLUMNS($G:CK)/3,0))","v":0},null,{"$f":"INDIRECT(\"F\"&ROW($G$87)+ROUNDUP(COLUMNS($G:CM)/3,0))","v":0},{"$f":"INDIRECT(\"G\"&ROW($G$87)+ROUNDUP(COLUMNS($G:CN)/3,0))","v":0},null,{"$f":"INDIRECT(\"F\"&ROW($G$87)+ROUNDUP(COLUMNS($G:CP)/3,0))","v":0},{"$f":"INDIRECT(\"G\"&ROW($G$87)+ROUNDUP(COLUMNS($G:CQ)/3,0))","v":0},null,{"$f":"INDIRECT(\"F\"&ROW($G$87)+ROUNDUP(COLUMNS($G:CS)/3,0))","v":0},{"$f":"INDIRECT(\"G\"&ROW($G$87)+ROUNDUP(COLUMNS($G:CT)/3,0))","v":0},null,{"$f":"INDIRECT(\"F\"&ROW($G$87)+ROUNDUP(COLUMNS($G:CV)/3,0))","v":0},{"$f":"INDIRECT(\"G\"&ROW($G$87)+ROUNDUP(COLUMNS($G:CW)/3,0))","v":0},null,{"$f":"INDIRECT(\"F\"&ROW($G$87)+ROUNDUP(COLUMNS($G:CY)/3,0))","v":0},{"$f":"INDIRECT(\"G\"&ROW($G$87)+ROUNDUP(COLUMNS($G:CZ)/3,0))","v":0},null,{"$f":"INDIRECT(\"F\"&ROW($G$87)+ROUNDUP(COLUMNS($G:DB)/3,0))","v":0},{"$f":"INDIRECT(\"G\"&ROW($G$87)+ROUNDUP(COLUMNS($G:DC)/3,0))","v":0},null,{"$f":"INDIRECT(\"F\"&ROW($G$87)+ROUNDUP(COLUMNS($G:DE)/3,0))","v":0},{"$f":"INDIRECT(\"G\"&ROW($G$87)+ROUNDUP(COLUMNS($G:DF)/3,0))","v":0},null,{"$f":"INDIRECT(\"F\"&ROW($G$87)+ROUNDUP(COLUMNS($G:DH)/3,0))","v":0},{"$f":"INDIRECT(\"G\"&ROW($G$87)+ROUNDUP(COLUMNS($G:DI)/3,0))","v":0},null,{"$f":"INDIRECT(\"F\"&ROW($G$87)+ROUNDUP(COLUMNS($G:DK)/3,0))","v":0},{"$f":"INDIRECT(\"G\"&ROW($G$87)+ROUNDUP(COLUMNS($G:DL)/3,0))","v":0},null,{"$f":"INDIRECT(\"F\"&ROW($G$87)+ROUNDUP(COLUMNS($G:DN)/3,0))","v":0},{"$f":"INDIRECT(\"G\"&ROW($G$87)+ROUNDUP(COLUMNS($G:DO)/3,0))","v":0},null,{"$f":"INDIRECT(\"F\"&ROW($G$87)+ROUNDUP(COLUMNS($G:DQ)/3,0))","v":0},{"$f":"INDIRECT(\"G\"&ROW($G$87)+ROUNDUP(COLUMNS($G:DR)/3,0))","v":0},null,{"$f":"INDIRECT(\"F\"&ROW($G$87)+ROUNDUP(COLUMNS($G:DT)/3,0))","v":0},{"$f":"INDIRECT(\"G\"&ROW($G$87)+ROUNDUP(COLUMNS($G:DU)/3,0))","v":0},null,{"$f":"INDIRECT(\"F\"&ROW($G$87)+ROUNDUP(COLUMNS($G:DW)/3,0))","v":0},{"$f":"INDIRECT(\"G\"&ROW($G$87)+ROUNDUP(COLUMNS($G:DX)/3,0))","v":0},null,{"$f":"INDIRECT(\"F\"&ROW($G$87)+ROUNDUP(COLUMNS($G:DZ)/3,0))","v":0},{"$f":"INDIRECT(\"G\"&ROW($G$87)+ROUNDUP(COLUMNS($G:EA)/3,0))","v":0},null,{"$f":"INDIRECT(\"F\"&ROW($G$87)+ROUNDUP(COLUMNS($G:EC)/3,0))","v":0},{"$f":"INDIRECT(\"G\"&ROW($G$87)+ROUNDUP(COLUMNS($G:ED)/3,0))","v":0},null,{"$f":"INDIRECT(\"F\"&ROW($G$87)+ROUNDUP(COLUMNS($G:EF)/3,0))","v":0},{"$f":"INDIRECT(\"G\"&ROW($G$87)+ROUNDUP(COLUMNS($G:EG)/3,0))","v":0},null,{"$f":"INDIRECT(\"F\"&ROW($G$87)+ROUNDUP(COLUMNS($G:EI)/3,0))","v":0},{"$f":"INDIRECT(\"G\"&ROW($G$87)+ROUNDUP(COLUMNS($G:EJ)/3,0))","v":0},null,{"$f":"INDIRECT(\"F\"&ROW($G$87)+ROUNDUP(COLUMNS($G:EL)/3,0))","v":0},{"$f":"INDIRECT(\"G\"&ROW($G$87)+ROUNDUP(COLUMNS($G:EM)/3,0))","v":0},null,{"$f":"INDIRECT(\"F\"&ROW($G$87)+ROUNDUP(COLUMNS($G:EO)/3,0))","v":0},{"$f":"INDIRECT(\"G\"&ROW($G$87)+ROUNDUP(COLUMNS($G:EP)/3,0))","v":0},null,{"$f":"INDIRECT(\"F\"&ROW($G$87)+ROUNDUP(COLUMNS($G:ER)/3,0))","v":0},{"$f":"INDIRECT(\"G\"&ROW($G$87)+ROUNDUP(COLUMNS($G:ES)/3,0))","v":0},null,{"$f":"EU81+EV81","v":0}]
["เวลากลับถึงสำนักงานเช็คของเสีย",null,null,{"$f":"D139","v":"00:00:00"},null,"ผลต่าง",{"$f":"G82+H82+G80-G9","v":0},null,null,{"$f":"J82+K82+J80-J9","v":0},null,null,{"$f":"M82+N82+M80-M9","v":0},null,null,{"$f":"P82+Q82+P80-P9","v":0},null,null,{"$f":"S82+T82+S80-S9","v":0},null,null,{"$f":"V82+W82+V80-V9","v":0},null,null,{"$f":"Y82+Z82+Y80-Y9","v":0},null,null,{"$f":"AB82+AC82+AB80-AB9","v":0},null,null,{"$f":"AE82+AF82+AE80-AE9","v":0},null,null,{"$f":"AH82+AI82+AH80-AH9","v":0},null,null,{"$f":"AK82+AL82+AK80-AK9","v":0},null,null,{"$f":"AN82+AO82+AN80-AN9","v":0},null,null,{"$f":"AQ82+AR82+AQ80-AQ9","v":0},null,null,{"$f":"AT82+AU82+AT80-AT9","v":0},null,null,{"$f":"AW82+AX82+AW80-AW9","v":0},null,null,{"$f":"AZ82+BA82+AZ80-AZ9","v":0},null,null,{"$f":"BC82+BD82+BC80-BC9","v":0},null,null,{"$f":"BF82+BG82+BF80-BF9","v":0},null,null,{"$f":"BI82+BJ82+BI80-BI9","v":0},null,null,{"$f":"BL82+BM82+BL80-BL9","v":0},null,null,{"$f":"BO82+BP82+BO80-BO9","v":0},null,null,{"$f":"BR82+BS82+BR80-BR9","v":0},null,null,{"$f":"BU82+BV82+BU80-BU9","v":0},null,null,{"$f":"BX82+BY82+BX80-BX9","v":0},null,null,{"$f":"CA82+CB82+CA80-CA9","v":0},null,null,{"$f":"CD82+CE82+CD80-CD9","v":0},null,null,{"$f":"CG82+CH82+CG80-CG9","v":0},null,null,{"$f":"CJ82+CK82+CJ80-CJ9","v":0},null,null,{"$f":"CM82+CN82+CM80-CM9","v":0},null,null,{"$f":"CP82+CQ82+CP80-CP9","v":0},null,null,{"$f":"CS82+CT82+CS80-CS9","v":0},null,null,{"$f":"CV82+CW82+CV80-CV9","v":0},null,null,{"$f":"CY82+CZ82+CY80-CY9","v":0},null,null,{"$f":"DB82+DC82+DB80-DB9","v":0},null,null,{"$f":"DE82+DF82+DE80-DE9","v":0},null,null,{"$f":"DH82+DI82+DH80-DH9","v":0},null,null,{"$f":"DK82+DL82+DK80-DK9","v":0},null,null,{"$f":"DN82+DO82+DN80-DN9","v":0},null,null,{"$f":"DQ82+DR82+DQ80-DQ9","v":0},null,null,{"$f":"DT82+DU82+DT80-DT9","v":0},null,null,{"$f":"DW82+DX82+DW80-DW9","v":0},null,null,{"$f":"DZ82+EA82+DZ80-DZ9","v":0},null,null,{"$f":"EC82+ED82+EC80-EC9","v":0},null,null,{"$f":"EF82+EG82+EF80-EF9","v":0},null,null,{"$f":"EI82+EJ82+EI80-EI9","v":0},null,null,{"$f":"EL82+EM82+EL80-EL9","v":0},null,null,{"$f":"EO82+EP82+EO80-EO9","v":0},null,null,{"$f":"ER82+ES82+ER80-ER9","v":0}]
["เป็นเงิน",null,null,null,null,null,{"$f":"G8*G83","v":0},null,null,{"$f":"J8*J83","v":0},null,null,{"$f":"M8*M83","v":0},null,null,{"$f":"P8*P83","v":0},null,null,{"$f":"S8*S83","v":0},null,null,{"$f":"V8*V83","v":0},null,null,{"$f":"Y8*Y83","v":0},null,null,{"$f":"AB8*AB83","v":0},null,null,{"$f":"AE8*AE83","v":0},null,null,{"$f":"AH8*AH83","v":0},null,null,{"$f":"AK8*AK83","v":0},null,null,{"$f":"AN8*AN83","v":0},null,null,{"$f":"AQ8*AQ83","v":0},null,null,{"$f":"AT8*AT83","v":0},null,null,{"$f":"AW8*AW83","v":0},null,null,{"$f":"AZ8*AZ83","v":0},null,null,{"$f":"BC8*BC83","v":0},null,null,{"$f":"BF8*BF83","v":0},null,null,{"$f":"BI8*BI83","v":0},null,null,{"$f":"BL8*BL83","v":0},null,null,{"$f":"BO8*BO83","v":0},null,null,{"$f":"BR8*BR83","v":0},null,null,{"$f":"BU8*BU83","v":0},null,null,{"$f":"BX8*BX83","v":0},null,null,{"$f":"CA8*CA83","v":0},null,null,{"$f":"CD8*CD83","v":0},null,null,{"$f":"CG8*CG83","v":0},null,null,{"$f":"CJ8*CJ83","v":0},null,null,{"$f":"CM8*CM83","v":0},null,null,{"$f":"CP8*CP83","v":0},null,null,{"$f":"CS8*CS83","v":0},null,null,{"$f":"CV8*CV83","v":0},null,null,{"$f":"CY8*CY83","v":0},null,null,{"$f":"DB8*DB83","v":0},null,null,{"$f":"DE8*DE83","v":0},null,null,{"$f":"DH8*DH83","v":0},null,null,{"$f":"DK8*DK83","v":0},null,null,{"$f":"DN8*DN83","v":0},null,null,{"$f":"DQ8*DQ83","v":0},null,null,{"$f":"DT8*DT83","v":0},null,null,{"$f":"DW8*DW83","v":0},null,null,0,null,null,{"$f":"EC8*EC83","v":0},null,null,{"$f":"EF8*EF83","v":0},null,null,{"$f":"EI8*EI83","v":0},null,null,{"$f":"EL8*EL83","v":0},null,null,{"$f":"EO8*EO83","v":0},null,null,{"$f":"ER8*ER83","v":0},null,null,{"$f":"$AP$98","v":0}]
[null,null,null,"ผู้จัดทำ……………………………………………………………………",null,null,null,null,null,null,null,null,null,null,null,null,null,null,null,null,null,null,null,"ผู้ตรวจ(ผจก.)………………………………………………………………………………."]
[null,null,"ใบจ่ายสินค้า",null,null,null,null,null,null,null,null,null,null,null,null,null,null,{"$f":"IF(ISODD(COLUMN()),MAX($F$86:Q$86)+1,\"\")","v":""}]
["ราคา","ลำดับ","รายการ","ยกมา","เบิก","เหลือ","เสีย","โอนเข้า","โอนออก","ชำรุด","รวม",null,"ขาย",null,"ขาด/เกิน",null,"บาท",null,null,null,"ขายได้",null,"ควรเบิก",null,"หมายเหตุ",null,null,null,"เสีย PDA","เสียจริง","เหลือ PDA","ผลต่าง","เหลือลูกค้า","หมายเหตุ",null,null,null,null,"Price","Quantity","Baht","Deduct"]
[{"$f":"IF(B88=\"\",0,INDEX(Price_List,ROWS($88:88)))","v":20},{"$f":"IF($C88=\"\",\"\",COUNTA($C$88:$C88))","v":1},{"$f":"IF(INDEX(INDIRECT(\"Product_List\"),ROWS($88:88))=\"\",\"\",INDEX(INDIRECT(\"Product_List\"),ROWS($88:88)))","v":"01-ขนมปังหมูหยองน้ำสลัด"},{"$f":"ยอดยกมา","v":0},null,null,null,null,null,null,{"$f":"D88+E88+J88-I88+H88","v":0},null,{"$f":"INDIRECT(ADDRESS(ROW(A$80),ROW()-ROW(A$80)+(ROWS($88:88)-1)*2-1,4))","v":0},null,{"$f":"F88+G88+M88+J88-K88","v":0},null,{"$f":"O88*A88","v":0},null,null,null,{"$f":"D88+E88-F88-G88","v":0},null,{"$f":"U88*6%+U88","v":0},null,null,null,null,null,{"$f":"INDIRECT(ADDRESS(ROW(A$80),ROW()-ROW(A$80)+(ROWS($88:88)-1)*2,4))","v":0},{"$f":"$G88","v":0},null,{"$f":"$F88-$AE88","v":0},{"$f":"INDIRECT(ADDRESS(ROW(A$80),ROW()-ROW(A$80)+(ROWS($88:88)-1)*2+1,4))","v":0},null,null,null,null,null,10,{"$f":"SUMPRODUCT(($A$88:$A$135=$AM88)*(($F$88:$F$135)+($G$88:$G$135)+($M$88:$M$135)+($J$88:$J$135)-($K$88:$K$135)))","v":0},{"$f":"AM88*AN88","v":0},{"$f":"IF(AO88<0,AO88,0)","v":0}]
[{"$f":"IF(B89=\"\",0,INDEX(Price_List,ROWS($88:89)))","v":20},{"$f":"IF($C89=\"\",\"\",COUNTA($C$88:$C89))","v":2},{"$f":"IF(INDEX(INDIRECT(\"Product_List\"),ROWS($88:89))=\"\",\"\",INDEX(INDIRECT(\"Product_List\"),ROWS($88:89)))","v":"02-ขนมปังหมูหยองน้ำพริกเผา"},{"$f":"ยอดยกมา","v":0},null,null,null,null,null,null,{"$f":"D89+E89+J89-I89+H89","v":0},null,{"$f":"INDIRECT(ADDRESS(ROW(A$80),ROW()-ROW(A$80)+(ROWS($88:89)-1)*2-1,4))","v":0},null,{"$f":"F89+G89+M89+J89-K89","v":0},null,{"$f":"O89*A89","v":0},null,null,null,{"$f":"D89+E89-F89-G89","v":0},null,{"$f":"U89*6%+U89","v":0},null,null,null,null,null,{"$f":"INDIRECT(ADDRESS(ROW(A$80),ROW()-ROW(A$80)+(ROWS($88:89)-1)*2,4))","v":0},{"$f":"$G89","v":0},null,{"$f":"$F89-$AE89","v":0},{"$f":"INDIRECT(ADDRESS(ROW(A$80),ROW()-ROW(A$80)+(ROWS($88:89)-1)*2+1,4))","v":0},null,null,null,null,null,12,0,{"$f":"AM89*AN89","v":0},{"$f":"IF(AO89<0,AO89,0)","v":0}]
[{"$f":"IF(B90=\"\",0,INDEX(Price_List,ROWS($88:90)))","v":20},{"$f":"IF($C90=\"\",\"\",COUNTA($C$88:$C90))","v":3},{"$f":"IF(INDEX(INDIRECT(\"Product_List\"),ROWS($88:90))=\"\",\"\",INDEX(INDIRECT(\"Product_List\"),ROWS($88:90)))","v":"03-ขนมปังไก่หยองน้ำสลัด"},{"$f":"ยอดยกมา","v":0},null,null,null,null,null,null,0,null,{"$f":"INDIRECT(ADDRESS(ROW(A$80),ROW()-ROW(A$80)+(ROWS($88:90)-1)*2-1,4))","v":0},null,0,null,0,null,null,null,0,null,0,null,null,null,null,null,{"$f":"INDIRECT(ADDRESS(ROW(A$80),ROW()-ROW(A$80)+(ROWS($88:90)-1)*2,4))","v":0},0,null,0,{"$f":"INDIRECT(ADDRESS(ROW(A$80),ROW()-ROW(A$80)+(ROWS($88:90)-1)*2+1,4))","v":0},null,null,null,null,null,13,0,0,0]
[{"$f":"IF(B91=\"\",0,INDEX(Price_List,ROWS($88:91)))","v":15},{"$f":"IF($C91=\"\",\"\",COUNTA($C$88:$C91))","v":4},{"$f":"IF(INDEX(INDIRECT(\"Product_List\"),ROWS($88:91))=\"\",\"\",INDEX(INDIRECT(\"Product_List\"),ROWS($88:91)))","v":"04-ขนมปังไส้ครีมสลัด"},{"$f":"ยอดยกมา","v":0},null,null,null,null,null,null,0,null,{"$f":"INDIRECT(ADDRESS(ROW(A$80),ROW()-ROW(A$80)+(ROWS($88:91)-1)*2-1,4))","v":0},null,{"$f":"F91+G91+M91+J91-K91","v":0},null,0,null,null,null,0,null,0,null,null,null,null,null,{"$f":"INDIRECT(ADDRESS(ROW(A$80),ROW()-ROW(A$80)+(ROWS($88:91)-1)*2,4))","v":0},0,null,0,{"$f":"INDIRECT(ADDRESS(ROW(A$80),ROW()-ROW(A$80)+(ROWS($88:91)-1)*2+1,4))","v":0},null,null,null,null,null,15,0,0,0]
[{"$f":"IF(B92=\"\",0,INDEX(Price_List,ROWS($88:92)))","v":15},{"$f":"IF($C92=\"\",\"\",COUNTA($C$88:$C92))","v":5},{"$f":"IF(INDEX(INDIRECT(\"Product_List\"),ROWS($88:92))=\"\",\"\",INDEX(INDIRECT(\"Product_List\"),ROWS($88:92)))","v":"05-ขนมปังเนยสด"},{"$f":"ยอดยกมา","v":0},null,null,null,null,null,null,0,null,{"$f":"INDIRECT(ADDRESS(ROW(A$80),ROW()-ROW(A$80)+(ROWS($88:92)-1)*2-1,4))","v":0},null,0,null,0,null,null,null,0,null,0,null,null,null,null,null,{"$f":"INDIRECT(ADDRESS(ROW(A$80),ROW()-ROW(A$80)+(ROWS($88:92)-1)*2,4))","v":0},0,null,0,{"$f":"INDIRECT(ADDRESS(ROW(A$80),ROW()-ROW(A$80)+(ROWS($88:92)-1)*2+1,4))","v":0},null,null,null,null,null,16,0,0,0]
[{"$f":"IF(B93=\"\",0,INDEX(Price_List,ROWS($88:93)))","v":10},{"$f":"IF($C93=\"\",\"\",COUNTA($C$88:$C93))","v":6},{"$f":"IF(INDEX(INDIRECT(\"Product_List\"),ROWS($88:93))=\"\",\"\",INDEX(INDIRECT(\"Product_List\"),ROWS($88:93)))","v":"06-ขนมปังไส้สังขยาเล็ก"},{"$f":"ยอดยกมา","v":0},null,null,null,null,null,null,0,null,{"$f":"INDIRECT(ADDRESS(ROW(A$80),ROW()-ROW(A$80)+(ROWS($88:93)-1)*2-1,4))","v":0},null,0,null,0,null,null,null,0,null,0,null,null,null,null,null,{"$f":"INDIRECT(ADDRESS(ROW(A$80),ROW()-ROW(A$80)+(ROWS($88:93)-1)*2,4))","v":0},0,null,0,{"$f":"INDIRECT(ADDRESS(ROW(A$80),ROW()-ROW(A$80)+(ROWS($88:93)-1)*2+1,4))","v":0},null,null,null,null,null,18,0,0,0]
[{"$f":"IF(B94=\"\",0,INDEX(Price_List,ROWS($88:94)))","v":10},{"$f":"IF($C94=\"\",\"\",COUNTA($C$88:$C94))","v":7},{"$f":"IF(INDEX(INDIRECT(\"Product_List\"),ROWS($88:94))=\"\",\"\",INDEX(INDIRECT(\"Product_List\"),ROWS($88:94)))","v":"07-ขนมปังไส้เผือก"},{"$f":"ยอดยกมา","v":0},null,null,null,null,null,null,0,null,{"$f":"INDIRECT(ADDRESS(ROW(A$80),ROW()-ROW(A$80)+(ROWS($88:94)-1)*2-1,4))","v":0},null,0,null,0,null,null,null,0,null,0,null,null,null,null,null,{"$f":"INDIRECT(ADDRESS(ROW(A$80),ROW()-ROW(A$80)+(ROWS($88:94)-1)*2,4))","v":0},0,null,0,{"$f":"INDIRECT(ADDRESS(ROW(A$80),ROW()-ROW(A$80)+(ROWS($88:94)-1)*2+1,4))","v":0},null,null,null,null,null,20,0,0,0]
[{"$f":"IF(B95=\"\",0,INDEX(Price_List,ROWS($88:95)))","v":10},{"$f":"IF($C95=\"\",\"\",COUNTA($C$88:$C95))","v":8},{"$f":"IF(INDEX(INDIRECT(\"Product_List\"),ROWS($88:95))=\"\",\"\",INDEX(INDIRECT(\"Product_List\"),ROWS($88:95)))","v":"08-ขนมปังไส้ถั่วแดง"},{"$f":"ยอดยกมา","v":0},null,null,null,null,null,null,0,null,{"$f":"INDIRECT(ADDRESS(ROW(A$80),ROW()-ROW(A$80)+(ROWS($88:95)-1)*2-1,4))","v":0},null,0,null,0,null,null,null,0,null,0,null,null,null,null,null,{"$f":"INDIRECT(ADDRESS(ROW(A$80),ROW()-ROW(A$80)+(ROWS($88:95)-1)*2,4))","v":0},0,null,0,{"$f":"INDIRECT(ADDRESS(ROW(A$80),ROW()-ROW(A$80)+(ROWS($88:95)-1)*2+1,4))","v":0},null,null,null,null,null,22,0,0,0]
[{"$f":"IF(B96=\"\",0,INDEX(Price_List,ROWS($88:96)))","v":10},{"$f":"IF($C96=\"\",\"\",COUNTA($C$88:$C96))","v":9},{"$f":"IF(INDEX(INDIRECT(\"Product_List\"),ROWS($88:96))=\"\",\"\",INDEX(INDIRECT(\"Product_List\"),ROWS($88:96)))","v":"09-ขนมปังไส้ถั่วดำ"},{"$f":"ยอดยกมา","v":0},null,null,null,null,null,null,0,null,{"$f":"INDIRECT(ADDRESS(ROW(A$80),ROW()-ROW(A$80)+(ROWS($88:96)-1)*2-1,4))","v":0},null,0,null,0,null,null,null,0,null,0,null,null,null,null,null,{"$f":"INDIRECT(ADDRESS(ROW(A$80),ROW()-ROW(A$80)+(ROWS($88:96)-1)*2,4))","v":0},0,null,0,{"$f":"INDIRECT(ADDRESS(ROW(A$80),ROW()-ROW(A$80)+(ROWS($88:96)-1)*2+1,4))","v":0},null,null,null,null,null,25,0,0,0]
[{"$f":"IF(B97=\"\",0,INDEX(Price_List,ROWS($88:97)))","v":10},{"$f":"IF($C97=\"\",\"\",COUNTA($C$88:$C97))","v":10},{"$f":"IF(INDEX(INDIRECT(\"Product_List\"),ROWS($88:97))=\"\",\"\",INDEX(INDIRECT(\"Product_List\"),ROWS($88:97)))","v":"10-ขนมปังไส้มันม่วง"},{"$f":"ยอดยกมา","v":0},null,null,null,null,null,null,0,null,{"$f":"INDIRECT(ADDRESS(ROW(A$80),ROW()-ROW(A$80)+(ROWS($88:97)-1)*2-1,4))","v":0},null,0,null,0,null,null,null,0,null,0,null,null,null,null,null,{"$f":"INDIRECT(ADDRESS(ROW(A$80),ROW()-ROW(A$80)+(ROWS($88:97)-1)*2,4))","v":0},0,null,0,{"$f":"INDIRECT(ADDRESS(ROW(A$80),ROW()-ROW(A$80)+(ROWS($88:97)-1)*2+1,4))","v":0},null,null,null,null,null,42,0,0,0]
[{"$f":"IF(B98=\"\",0,INDEX(Price_List,ROWS($88:98)))","v":15},{"$f":"IF($C98=\"\",\"\",COUNTA($C$88:$C98))","v":11},{"$f":"IF(INDEX(INDIRECT(\"Product_List\"),ROWS($88:98))=\"\",\"\",INDEX(INDIRECT(\"Product_List\"),ROWS($88:98)))","v":"11-เค้กกล้วยหอม"},{"$f":"ยอดยกมา","v":0},null,null,null,null,null,null,0,null,{"$f":"INDIRECT(ADDRESS(ROW(A$80),ROW()-ROW(A$80)+(ROWS($88:98)-1)*2-1,4))","v":0},null,0,null,0,null,null,null,0,null,0,null,null,null,null,null,{"$f":"INDIRECT(ADDRESS(ROW(A$80),ROW()-ROW(A$80)+(ROWS($88:98)-1)*2,4))","v":0},0,null,0,{"$f":"INDIRECT(ADDRESS(ROW(A$80),ROW()-ROW(A$80)+(ROWS($88:98)-1)*2+1,4))","v":0},null,null,null,null,null,"Total Deduct",null,null,{"$f":"SUM($AP$88:$AP$97)","v":0}]
[{"$f":"IF(B99=\"\",0,INDEX(Price_List,ROWS($88:99)))","v":15},{"$f":"IF($C99=\"\",\"\",COUNTA($C$88:$C99))","v":12},{"$f":"IF(INDEX(INDIRECT(\"Product_List\"),ROWS($88:99))=\"\",\"\",INDEX(INDIRECT(\"Product_List\"),ROWS($88:99)))","v":"12-เค้กบัตเตอร์"},{"$f":"ยอดยกมา","v":0},null,null,null,null,null,null,0,null,{"$f":"INDIRECT(ADDRESS(ROW(A$80),ROW()-ROW(A$80)+(ROWS($88:99)-1)*2-1,4))","v":0},null,0,null,0,null,null,null,0,null,0,null,null,null,null,null,{"$f":"INDIRECT(ADDRESS(ROW(A$80),ROW()-ROW(A$80)+(ROWS($88:99)-1)*2,4))","v":0},0,null,0,{"$f":"INDIRECT(ADDRESS(ROW(A$80),ROW()-ROW(A$80)+(ROWS($88:99)-1)*2+1,4))","v":0}]
[{"$f":"IF(B100=\"\",0,INDEX(Price_List,ROWS($88:100)))","v":15},{"$f":"IF($C100=\"\",\"\",COUNTA($C$88:$C100))","v":13},{"$f":"IF(INDEX(INDIRECT(\"Product_List\"),ROWS($88:100))=\"\",\"\",INDEX(INDIRECT(\"Product_List\"),ROWS($88:100)))","v":"13-ขนมปังโรลถั่วแดง"},{"$f":"ยอดยกมา","v":0},null,null,null,null,null,null,0,null,{"$f":"INDIRECT(ADDRESS(ROW(A$80),ROW()-ROW(A$80)+(ROWS($88:100)-1)*2-1,4))","v":0},null,0,null,0,null,null,null,0,null,0,null,null,null,null,null,{"$f":"INDIRECT(ADDRESS(ROW(A$80),ROW()-ROW(A$80)+(ROWS($88:100)-1)*2,4))","v":0},0,null,0,{"$f":"INDIRECT(ADDRESS(ROW(A$80),ROW()-ROW(A$80)+(ROWS($88:100)-1)*2+1,4))","v":0}]
[{"$f":"IF(B101=\"\",0,INDEX(Price_List,ROWS($88:101)))","v":15},{"$f":"IF($C101=\"\",\"\",COUNTA($C$88:$C101))","v":14},{"$f":"IF(INDEX(INDIRECT(\"Product_List\"),ROWS($88:101))=\"\",\"\",INDEX(INDIRECT(\"Product_List\"),ROWS($88:101)))","v":"14-ขนมปังไส้สังขยาใหญ่"},{"$f":"ยอดยกมา","v":0},null,null,null,null,null,null,0,null,{"$f":"INDIRECT(ADDRESS(ROW(A$80),ROW()-ROW(A$80)+(ROWS($88:101)-1)*2-1,4))","v":0},null,0,null,0,null,null,null,0,null,0,null,null,null,null,null,{"$f":"INDIRECT(ADDRESS(ROW(A$80),ROW()-ROW(A$80)+(ROWS($88:101)-1)*2,4))","v":0},0,null,0,{"$f":"INDIRECT(ADDRESS(ROW(A$80),ROW()-ROW(A$80)+(ROWS($88:101)-1)*2+1,4))","v":0}]
[{"$f":"IF(B102=\"\",0,INDEX(Price_List,ROWS($88:102)))","v":42},{"$f":"IF($C102=\"\",\"\",COUNTA($C$88:$C102))","v":15},{"$f":"IF(INDEX(INDIRECT(\"Product_List\"),ROWS($88:102))=\"\",\"\",INDEX(INDIRECT(\"Product_List\"),ROWS($88:102)))","v":"15-ขนมปังชนิดแผ่น(480กรัม)"},{"$f":"ยอดยกมา","v":0},null,null,null,null,null,null,0,null,{"$f":"INDIRECT(ADDRESS(ROW(A$80),ROW()-ROW(A$80)+(ROWS($88:102)-1)*2-1,4))","v":0},null,0,null,0,null,null,null,0,null,0,null,null,null,null,null,{"$f":"INDIRECT(ADDRESS(ROW(A$80),ROW()-ROW(A$80)+(ROWS($88:102)-1)*2,4))","v":0},0,null,0,{"$f":"INDIRECT(ADDRESS(ROW(A$80),ROW()-ROW(A$80)+(ROWS($88:102)-1)*2+1,4))","v":0}]
[{"$f":"IF(B103=\"\",0,INDEX(Price_List,ROWS($88:103)))","v":12},{"$f":"IF($C103=\"\",\"\",COUNTA($C$88:$C103))","v":16},{"$f":"IF(INDEX(INDIRECT(\"Product_List\"),ROWS($88:103))=\"\",\"\",INDEX(INDIRECT(\"Product_List\"),ROWS($88:103)))","v":"16-โมจิไส้ถั่ว"},{"$f":"ยอดยกมา","v":0},null,null,null,null,null,null,0,null,{"$f":"INDIRECT(ADDRESS(ROW(A$80),ROW()-ROW(A$80)+(ROWS($88:103)-1)*2-1,4))","v":0},null,0,null,0,null,null,null,0,null,0,null,null,null,null,null,{"$f":"INDIRECT(ADDRESS(ROW(A$80),ROW()-ROW(A$80)+(ROWS($88:103)-1)*2,4))","v":0},0,null,0,{"$f":"INDIRECT(ADDRESS(ROW(A$80),ROW()-ROW(A$80)+(ROWS($88:103)-1)*2+1,4))","v":0}]
[{"$f":"IF(B104=\"\",0,INDEX(Price_List,ROWS($88:104)))","v":12},{"$f":"IF($C104=\"\",\"\",COUNTA($C$88:$C104))","v":17},{"$f":"IF(INDEX(INDIRECT(\"Product_List\"),ROWS($88:104))=\"\",\"\",INDEX(INDIRECT(\"Product_List\"),ROWS($88:104)))","v":"17-โมจิไส้เผือก"},{"$f":"ยอดยกมา","v":0},null,null,null,null,null,null,0,null,{"$f":"INDIRECT(ADDRESS(ROW(A$80),ROW()-ROW(A$80)+(ROWS($88:104)-1)*2-1,4))","v":0},null,0,null,0,null,null,null,0,null,0,null,null,null,null,null,{"$f":"INDIRECT(ADDRESS(ROW(A$80),ROW()-ROW(A$80)+(ROWS($88:104)-1)*2,4))","v":0},0,null,0,{"$f":"INDIRECT(ADDRESS(ROW(A$80),ROW()-ROW(A$80)+(ROWS($88:104)-1)*2+1,4))","v":0}]
[{"$f":"IF(B105=\"\",0,INDEX(Price_List,ROWS($88:105)))","v":15},{"$f":"IF($C105=\"\",\"\",COUNTA($C$88:$C105))","v":18},{"$f":"IF(INDEX(INDIRECT(\"Product_List\"),ROWS($88:105))=\"\",\"\",INDEX(INDIRECT(\"Product_List\"),ROWS($88:105)))","v":"18-โมจิไส้ถั่วไข่เค็ม"},{"$f":"ยอดยกมา","v":0},null,null,null,null,null,null,0,null,{"$f":"INDIRECT(ADDRESS(ROW(A$80),ROW()-ROW(A$80)+(ROWS($88:105)-1)*2-1,4))","v":0},null,0,null,0,null,null,null,0,null,0,null,null,null,null,null,{"$f":"INDIRECT(ADDRESS(ROW(A$80),ROW()-ROW(A$80)+(ROWS($88:105)-1)*2,4))","v":0},0,null,0,{"$f":"INDIRECT(ADDRESS(ROW(A$80),ROW()-ROW(A$80)+(ROWS($88:105)-1)*2+1,4))","v":0}]
[{"$f":"IF(B106=\"\",0,INDEX(Price_List,ROWS($88:106)))","v":20},{"$f":"IF($C106=\"\",\"\",COUNTA($C$88:$C106))","v":19},{"$f":"IF(INDEX(INDIRECT(\"Product_List\"),ROWS($88:106))=\"\",\"\",INDEX(INDIRECT(\"Product_List\"),ROWS($88:106)))","v":"19-ขนมปังพิซซ่า"},{"$f":"ยอดยกมา","v":0},null,null,null,null,null,null,0,null,{"$f":"INDIRECT(ADDRESS(ROW(A$80),ROW()-ROW(A$80)+(ROWS($88:106)-1)*2-1,4))","v":0},null,0,null,0,null,null,null,0,null,0,null,null,null,null,null,{"$f":"INDIRECT(ADDRESS(ROW(A$80),ROW()-ROW(A$80)+(ROWS($88:106)-1)*2,4))","v":0},0,null,0,{"$f":"INDIRECT(ADDRESS(ROW(A$80),ROW()-ROW(A$80)+(ROWS($88:106)-1)*2+1,4))","v":0}]
[{"$f":"IF(B107=\"\",0,INDEX(Price_List,ROWS($88:107)))","v":20},{"$f":"IF($C107=\"\",\"\",COUNTA($C$88:$C107))","v":20},{"$f":"IF(INDEX(INDIRECT(\"Product_List\"),ROWS($88:107))=\"\",\"\",INDEX(INDIRECT(\"Product_List\"),ROWS($88:107)))","v":"20-ขนมปังพิซซ่าปูอัดแฮม"},{"$f":"ยอดยกมา","v":0},null,null,null,null,null,null,0,null,{"$f":"INDIRECT(ADDRESS(ROW(A$80),ROW()-ROW(A$80)+(ROWS($88:107)-1)*2-1,4))","v":0},null,0,null,0,null,null,null,0,null,0,null,null,null,null,null,{"$f":"INDIRECT(ADDRESS(ROW(A$80),ROW()-ROW(A$80)+(ROWS($88:107)-1)*2,4))","v":0},0,null,0,{"$f":"INDIRECT(ADDRESS(ROW(A$80),ROW()-ROW(A$80)+(ROWS($88:107)-1)*2+1,4))","v":0}]
[{"$f":"IF(B108=\"\",0,INDEX(Price_List,ROWS($88:108)))","v":20},{"$f":"IF($C108=\"\",\"\",COUNTA($C$88:$C108))","v":21},{"$f":"IF(INDEX(INDIRECT(\"Product_List\"),ROWS($88:108))=\"\",\"\",INDEX(INDIRECT(\"Product_List\"),ROWS($88:108)))","v":"21-ขนมปังไส้กรอก"},{"$f":"ยอดยกมา","v":0},null,null,null,null,null,null,0,null,{"$f":"INDIRECT(ADDRESS(ROW(A$80),ROW()-ROW(A$80)+(ROWS($88:108)-1)*2-1,4))","v":0},null,0,null,0,null,null,null,0,null,0,null,null,null,null,null,{"$f":"INDIRECT(ADDRESS(ROW(A$80),ROW()-ROW(A$80)+(ROWS($88:108)-1)*2,4))","v":0},0,null,0,{"$f":"INDIRECT(ADDRESS(ROW(A$80),ROW()-ROW(A$80)+(ROWS($88:108)-1)*2+1,4))","v":0}]
[{"$f":"IF(B109=\"\",0,INDEX(Price_List,ROWS($88:109)))","v":15},{"$f":"IF($C109=\"\",\"\",COUNTA($C$88:$C109))","v":22},{"$f":"IF(INDEX(INDIRECT(\"Product_List\"),ROWS($88:109))=\"\",\"\",INDEX(INDIRECT(\"Product_List\"),ROWS($88:109)))","v":"22-ขนมก้านบัว"},{"$f":"ยอดยกมา","v":0},null,null,null,null,null,null,0,null,{"$f":"INDIRECT(ADDRESS(ROW(A$80),ROW()-ROW(A$80)+(ROWS($88:109)-1)*2-1,4))","v":0},null,0,null,0,null,null,null,0,null,0,null,null,null,null,null,{"$f":"INDIRECT(ADDRESS(ROW(A$80),ROW()-ROW(A$80)+(ROWS($88:109)-1)*2,4))","v":0},0,null,0,{"$f":"INDIRECT(ADDRESS(ROW(A$80),ROW()-ROW(A$80)+(ROWS($88:109)-1)*2+1,4))","v":0}]
[{"$f":"IF(B110=\"\",0,INDEX(Price_List,ROWS($88:110)))","v":20},{"$f":"IF($C110=\"\",\"\",COUNTA($C$88:$C110))","v":23},{"$f":"IF(INDEX(INDIRECT(\"Product_List\"),ROWS($88:110))=\"\",\"\",INDEX(INDIRECT(\"Product_List\"),ROWS($88:110)))","v":"23-พายสับปะรด"},{"$f":"ยอดยกมา","v":0},null,null,null,null,null,null,0,null,{"$f":"INDIRECT(ADDRESS(ROW(A$80),ROW()-ROW(A$80)+(ROWS($88:110)-1)*2-1,4))","v":0},null,0,null,0,null,null,null,0,null,0,null,null,null,null,null,{"$f":"INDIRECT(ADDRESS(ROW(A$80),ROW()-ROW(A$80)+(ROWS($88:110)-1)*2,4))","v":0},0,null,0,{"$f":"INDIRECT(ADDRESS(ROW(A$80),ROW()-ROW(A$80)+(ROWS($88:110)-1)*2+1,4))","v":0}]
[{"$f":"IF(B111=\"\",0,INDEX(Price_List,ROWS($88:111)))","v":20},{"$f":"IF($C111=\"\",\"\",COUNTA($C$88:$C111))","v":24},{"$f":"IF(INDEX(INDIRECT(\"Product_List\"),ROWS($88:111))=\"\",\"\",INDEX(INDIRECT(\"Product_List\"),ROWS($88:111)))","v":"24-พายไส้มะพร้าว"},{"$f":"ยอดยกมา","v":0},null,null,null,null,null,null,0,null,{"$f":"INDIRECT(ADDRESS(ROW(A$80),ROW()-ROW(A$80)+(ROWS($88:111)-1)*2-1,4))","v":0},null,0,null,0,null,null,null,0,null,0,null,null,null,null,null,{"$f":"INDIRECT(ADDRESS(ROW(A$80),ROW()-ROW(A$80)+(ROWS($88:111)-1)*2,4))","v":0},0,null,0,{"$f":"INDIRECT(ADDRESS(ROW(A$80),ROW()-ROW(A$80)+(ROWS($88:111)-1)*2+1,4))","v":0}]
[{"$f":"IF(B112=\"\",0,INDEX(Price_List,ROWS($88:112)))","v":15},{"$f":"IF($C112=\"\",\"\",COUNTA($C$88:$C112))","v":25},{"$f":"IF(INDEX(INDIRECT(\"Product_List\"),ROWS($88:112))=\"\",\"\",INDEX(INDIRECT(\"Product_List\"),ROWS($88:112)))","v":"25-ขนมปังโรลมันเทศ"},{"$f":"ยอดยกมา","v":0},null,null,null,null,null,null,0,null,{"$f":"INDIRECT(ADDRESS(ROW(A$80),ROW()-ROW(A$80)+(ROWS($88:112)-1)*2-1,4))","v":0},null,0,null,0,null,null,null,0,null,0,null,null,null,null,null,{"$f":"INDIRECT(ADDRESS(ROW(A$80),ROW()-ROW(A$80)+(ROWS($88:112)-1)*2,4))","v":0},0,null,0,{"$f":"INDIRECT(ADDRESS(ROW(A$80),ROW()-ROW(A$80)+(ROWS($88:112)-1)*2+1,4))","v":0}]
[{"$f":"IF(B113=\"\",0,INDEX(Price_List,ROWS($88:113)))","v":15},{"$f":"IF($C113=\"\",\"\",COUNTA($C$88:$C113))","v":26},{"$f":"IF(INDEX(INDIRECT(\"Product_List\"),ROWS($88:113))=\"\",\"\",INDEX(INDIRECT(\"Product_List\"),ROWS($88:113)))","v":"26-ขนมปังไส้ครีมสลัดน้ำพริกเผา"},{"$f":"ยอดยกมา","v":0},null,null,null,null,null,null,0,null,{"$f":"INDIRECT(ADDRESS(ROW(A$80),ROW()-ROW(A$80)+(ROWS($88:113)-1)*2-1,4))","v":0},null,0,null,0,null,null,null,0,null,0,null,null,null,null,null,{"$f":"INDIRECT(ADDRESS(ROW(A$80),ROW()-ROW(A$80)+(ROWS($88:113)-1)*2,4))","v":0},0,null,0,{"$f":"INDIRECT(ADDRESS(ROW(A$80),ROW()-ROW(A$80)+(ROWS($88:113)-1)*2+1,4))","v":0}]
[{"$f":"IF(B114=\"\",0,INDEX(Price_List,ROWS($88:114)))","v":20},{"$f":"IF($C114=\"\",\"\",COUNTA($C$88:$C114))","v":27},{"$f":"IF(INDEX(INDIRECT(\"Product_List\"),ROWS($88:114))=\"\",\"\",INDEX(INDIRECT(\"Product_List\"),ROWS($88:114)))","v":"27-ขนมปังไส้สังขยาไข่"},{"$f":"ยอดยกมา","v":0},null,null,null,null,null,null,0,null,{"$f":"INDIRECT(ADDRESS(ROW(A$80),ROW()-ROW(A$80)+(ROWS($88:114)-1)*2-1,4))","v":0},null,0,null,0,null,null,null,0,null,0,null,null,null,null,null,{"$f":"INDIRECT(ADDRESS(ROW(A$80),ROW()-ROW(A$80)+(ROWS($88:114)-1)*2,4))","v":0},0,null,0,{"$f":"INDIRECT(ADDRESS(ROW(A$80),ROW()-ROW(A$80)+(ROWS($88:114)-1)*2+1,4))","v":0}]
[{"$f":"IF(B115=\"\",0,INDEX(Price_List,ROWS($88:115)))","v":20},{"$f":"IF($C115=\"\",\"\",COUNTA($C$88:$C115))","v":28},{"$f":"IF(INDEX(INDIRECT(\"Product_List\"),ROWS($88:115))=\"\",\"\",INDEX(INDIRECT(\"Product_List\"),ROWS($88:115)))","v":"28-ขนมปังไส้สังขยามะพร้าว"},{"$f":"ยอดยกมา","v":0},null,null,null,null,null,null,0,null,{"$f":"INDIRECT(ADDRESS(ROW(A$80),ROW()-ROW(A$80)+(ROWS($88:115)-1)*2-1,4))","v":0},null,0,null,0,null,null,null,0,null,0,null,null,null,null,null,{"$f":"INDIRECT(ADDRESS(ROW(A$80),ROW()-ROW(A$80)+(ROWS($88:115)-1)*2,4))","v":0},0,null,0,{"$f":"INDIRECT(ADDRESS(ROW(A$80),ROW()-ROW(A$80)+(ROWS($88:115)-1)*2+1,4))","v":0}]
[{"$f":"IF(B116=\"\",0,INDEX(Price_List,ROWS($88:116)))","v":10},{"$f":"IF($C116=\"\",\"\",COUNTA($C$88:$C116))","v":29},{"$f":"IF(INDEX(INDIRECT(\"Product_List\"),ROWS($88:116))=\"\",\"\",INDEX(INDIRECT(\"Product_List\"),ROWS($88:116)))","v":"29-ขนมปังไส้ครีมชาไทย"},{"$f":"ยอดยกมา","v":0},null,null,null,null,null,null,0,null,{"$f":"INDIRECT(ADDRESS(ROW(A$80),ROW()-ROW(A$80)+(ROWS($88:116)-1)*2-1,4))","v":0},null,0,null,0,null,null,null,0,null,0,null,null,null,null,null,{"$f":"INDIRECT(ADDRESS(ROW(A$80),ROW()-ROW(A$80)+(ROWS($88:116)-1)*2,4))","v":0},0,null,0,{"$f":"INDIRECT(ADDRESS(ROW(A$80),ROW()-ROW(A$80)+(ROWS($88:116)-1)*2+1,4))","v":0}]
[{"$f":"IF(B117=\"\",0,INDEX(Price_List,ROWS($88:117)))","v":15},{"$f":"IF($C117=\"\",\"\",COUNTA($C$88:$C117))","v":30},{"$f":"IF(INDEX(INDIRECT(\"Product_List\"),ROWS($88:117))=\"\",\"\",INDEX(INDIRECT(\"Product_List\"),ROWS($88:117)))","v":"30-ขนมปังโรลมันม่วง"},{"$f":"ยอดยกมา","v":0},null,null,null,null,null,null,0,null,{"$f":"INDIRECT(ADDRESS(ROW(A$80),ROW()-ROW(A$80)+(ROWS($88:117)-1)*2-1,4))","v":0},null,0,null,0,null,null,null,0,null,0,null,null,null,null,null,{"$f":"INDIRECT(ADDRESS(ROW(A$80),ROW()-ROW(A$80)+(ROWS($88:117)-1)*2,4))","v":0},0,null,0,{"$f":"INDIRECT(ADDRESS(ROW(A$80),ROW()-ROW(A$80)+(ROWS($88:117)-1)*2+1,4))","v":0}]
[{"$f":"IF(B118=\"\",0,INDEX(Price_List,ROWS($88:118)))","v":15},{"$f":"IF($C118=\"\",\"\",COUNTA($C$88:$C118))","v":31},{"$f":"IF(INDEX(INDIRECT(\"Product_List\"),ROWS($88:118))=\"\",\"\",INDEX(INDIRECT(\"Product_List\"),ROWS($88:118)))","v":"31-ขนมปังโรลช็อกโกแลต"},{"$f":"ยอดยกมา","v":0},null,null,null,null,null,null,0,null,{"$f":"INDIRECT(ADDRESS(ROW(A$80),ROW()-ROW(A$80)+(ROWS($88:118)-1)*2-1,4))","v":0},null,0,null,0,null,null,null,0,null,0,null,null,null,null,null,{"$f":"INDIRECT(ADDRESS(ROW(A$80),ROW()-ROW(A$80)+(ROWS($88:118)-1)*2,4))","v":0},0,null,0,{"$f":"INDIRECT(ADDRESS(ROW(A$80),ROW()-ROW(A$80)+(ROWS($88:118)-1)*2+1,4))","v":0}]
[{"$f":"IF(B119=\"\",0,INDEX(Price_List,ROWS($88:119)))","v":16},{"$f":"IF($C119=\"\",\"\",COUNTA($C$88:$C119))","v":32},{"$f":"IF(INDEX(INDIRECT(\"Product_List\"),ROWS($88:119))=\"\",\"\",INDEX(INDIRECT(\"Product_List\"),ROWS($88:119)))","v":"32-ขนมปังชนิดแผ่น(155กรัม)"},{"$f":"ยอดยกมา","v":0},null,null,null,null,null,null,0,null,{"$f":"INDIRECT(ADDRESS(ROW(A$80),ROW()-ROW(A$80)+(ROWS($88:119)-1)*2-1,4))","v":0},null,0,null,0,null,null,null,0,null,0,null,null,null,null,null,{"$f":"INDIRECT(ADDRESS(ROW(A$80),ROW()-ROW(A$80)+(ROWS($88:119)-1)*2,4))","v":0},0,null,0,{"$f":"INDIRECT(ADDRESS(ROW(A$80),ROW()-ROW(A$80)+(ROWS($88:119)-1)*2+1,4))","v":0}]
[{"$f":"IF(B120=\"\",0,INDEX(Price_List,ROWS($88:120)))","v":15},{"$f":"IF($C120=\"\",\"\",COUNTA($C$88:$C120))","v":33},{"$f":"IF(INDEX(INDIRECT(\"Product_List\"),ROWS($88:120))=\"\",\"\",INDEX(INDIRECT(\"Product_List\"),ROWS($88:120)))","v":"33-ขนมปังโรลเผือก"},{"$f":"ยอดยกมา","v":0},null,null,null,null,null,null,0,null,{"$f":"INDIRECT(ADDRESS(ROW(A$80),ROW()-ROW(A$80)+(ROWS($88:120)-1)*2-1,4))","v":0},null,0,null,0,null,null,null,0,null,0,null,null,null,null,null,{"$f":"INDIRECT(ADDRESS(ROW(A$80),ROW()-ROW(A$80)+(ROWS($88:120)-1)*2,4))","v":0},0,null,0,{"$f":"INDIRECT(ADDRESS(ROW(A$80),ROW()-ROW(A$80)+(ROWS($88:120)-1)*2+1,4))","v":0}]
[{"$f":"IF(B121=\"\",0,INDEX(Price_List,ROWS($88:121)))","v":15},{"$f":"IF($C121=\"\",\"\",COUNTA($C$88:$C121))","v":34},{"$f":"IF(INDEX(INDIRECT(\"Product_List\"),ROWS($88:121))=\"\",\"\",INDEX(INDIRECT(\"Product_List\"),ROWS($88:121)))","v":"34-ขนมปังไก่หยองน้ำสลัด Mini"},{"$f":"ยอดยกมา","v":0},null,null,null,null,null,null,0,null,{"$f":"INDIRECT(ADDRESS(ROW(A$80),ROW()-ROW(A$80)+(ROWS($88:121)-1)*2-1,4))","v":0},null,0,null,0,null,null,null,0,null,0,null,null,null,null,null,{"$f":"INDIRECT(ADDRESS(ROW(A$80),ROW()-ROW(A$80)+(ROWS($88:121)-1)*2,4))","v":0},0,null,0,{"$f":"INDIRECT(ADDRESS(ROW(A$80),ROW()-ROW(A$80)+(ROWS($88:121)-1)*2+1,4))","v":0}]
[{"$f":"IF(B122=\"\",0,INDEX(Price_List,ROWS($88:122)))","v":10},{"$f":"IF($C122=\"\",\"\",COUNTA($C$88:$C122))","v":35},{"$f":"IF(INDEX(INDIRECT(\"Product_List\"),ROWS($88:122))=\"\",\"\",INDEX(INDIRECT(\"Product_List\"),ROWS($88:122)))","v":"35-ขนมปังไส้ช็อกโกแลต"},{"$f":"ยอดยกมา","v":0},null,null,null,null,null,null,0,null,{"$f":"INDIRECT(ADDRESS(ROW(A$80),ROW()-ROW(A$80)+(ROWS($88:122)-1)*2-1,4))","v":0},null,0,null,0,null,null,null,0,null,0,null,null,null,null,null,{"$f":"INDIRECT(ADDRESS(ROW(A$80),ROW()-ROW(A$80)+(ROWS($88:122)-1)*2,4))","v":0},0,null,0,{"$f":"INDIRECT(ADDRESS(ROW(A$80),ROW()-ROW(A$80)+(ROWS($88:122)-1)*2+1,4))","v":0}]
[{"$f":"IF(B123=\"\",0,INDEX(Price_List,ROWS($88:123)))","v":10},{"$f":"IF($C123=\"\",\"\",COUNTA($C$88:$C123))","v":36},{"$f":"IF(INDEX(INDIRECT(\"Product_List\"),ROWS($88:123))=\"\",\"\",INDEX(INDIRECT(\"Product_List\"),ROWS($88:123)))","v":"36-ขนมปังไส้ครีมสังขยาไข่"},{"$f":"ยอดยกมา","v":0},null,null,null,null,null,null,0,null,{"$f":"INDIRECT(ADDRESS(ROW(A$80),ROW()-ROW(A$80)+(ROWS($88:123)-1)*2-1,4))","v":0},null,0,null,0,null,null,null,0,null,0,null,null,null,null,null,{"$f":"INDIRECT(ADDRESS(ROW(A$80),ROW()-ROW(A$80)+(ROWS($88:123)-1)*2,4))","v":0},0,null,0,{"$f":"INDIRECT(ADDRESS(ROW(A$80),ROW()-ROW(A$80)+(ROWS($88:123)-1)*2+1,4))","v":0}]
[{"$f":"IF(B124=\"\",0,INDEX(Price_List,ROWS($88:124)))","v":20},{"$f":"IF($C124=\"\",\"\",COUNTA($C$88:$C124))","v":37},{"$f":"IF(INDEX(INDIRECT(\"Product_List\"),ROWS($88:124))=\"\",\"\",INDEX(INDIRECT(\"Product_List\"),ROWS($88:124)))","v":"37-ขนมปังพิซซ่าฮาวายเอี้ยน"},{"$f":"ยอดยกมา","v":0},null,null,null,null,null,null,0,null,{"$f":"INDIRECT(ADDRESS(ROW(A$80),ROW()-ROW(A$80)+(ROWS($88:124)-1)*2-1,4))","v":0},null,0,null,0,null,null,null,0,null,0,null,null,null,null,null,{"$f":"INDIRECT(ADDRESS(ROW(A$80),ROW()-ROW(A$80)+(ROWS($88:124)-1)*2,4))","v":0},0,null,0,{"$f":"INDIRECT(ADDRESS(ROW(A$80),ROW()-ROW(A$80)+(ROWS($88:124)-1)*2+1,4))","v":0}]
[{"$f":"IF(B125=\"\",0,INDEX(Price_List,ROWS($88:125)))","v":20},{"$f":"IF($C125=\"\",\"\",COUNTA($C$88:$C125))","v":38},{"$f":"IF(INDEX(INDIRECT(\"Product_List\"),ROWS($88:125))=\"\",\"\",INDEX(INDIRECT(\"Product_List\"),ROWS($88:125)))","v":"38-ครัวซองต์หมูหยองน้ำสลัด"},{"$f":"ยอดยกมา","v":0},null,null,null,null,null,null,0,null,{"$f":"INDIRECT(ADDRESS(ROW(A$80),ROW()-ROW(A$80)+(ROWS($88:125)-1)*2-1,4))","v":0},null,0,null,0,null,null,null,0,null,0,null,null,null,null,null,{"$f":"INDIRECT(ADDRESS(ROW(A$80),ROW()-ROW(A$80)+(ROWS($88:125)-1)*2,4))","v":0},0,null,0,{"$f":"INDIRECT(ADDRESS(ROW(A$80),ROW()-ROW(A$80)+(ROWS($88:125)-1)*2+1,4))","v":0}]
[{"$f":"IF(B126=\"\",0,INDEX(Price_List,ROWS($88:126)))","v":15},{"$f":"IF($C126=\"\",\"\",COUNTA($C$88:$C126))","v":39},{"$f":"IF(INDEX(INDIRECT(\"Product_List\"),ROWS($88:126))=\"\",\"\",INDEX(INDIRECT(\"Product_List\"),ROWS($88:126)))","v":"39-แพนเบรดไส้เผือก"},{"$f":"ยอดยกมา","v":0},null,null,null,null,null,null,0,null,{"$f":"INDIRECT(ADDRESS(ROW(A$80),ROW()-ROW(A$80)+(ROWS($88:126)-1)*2-1,4))","v":0},null,0,null,0,null,null,null,0,null,0,null,null,null,null,null,{"$f":"INDIRECT(ADDRESS(ROW(A$80),ROW()-ROW(A$80)+(ROWS($88:126)-1)*2,4))","v":0},0,null,0,{"$f":"INDIRECT(ADDRESS(ROW(A$80),ROW()-ROW(A$80)+(ROWS($88:126)-1)*2+1,4))","v":0}]
[{"$f":"IF(B127=\"\",0,INDEX(Price_List,ROWS($88:127)))","v":15},{"$f":"IF($C127=\"\",\"\",COUNTA($C$88:$C127))","v":40},{"$f":"IF(INDEX(INDIRECT(\"Product_List\"),ROWS($88:127))=\"\",\"\",INDEX(INDIRECT(\"Product_List\"),ROWS($88:127)))","v":"40-แพนเบรดไส้ถั่วแดง"},{"$f":"ยอดยกมา","v":0},null,null,null,null,null,null,0,null,{"$f":"INDIRECT(ADDRESS(ROW(A$80),ROW()-ROW(A$80)+(ROWS($88:127)-1)*2-1,4))","v":0},null,0,null,0,null,null,null,0,null,0,null,null,null,null,null,{"$f":"INDIRECT(ADDRESS(ROW(A$80),ROW()-ROW(A$80)+(ROWS($88:127)-1)*2,4))","v":0},0,null,0,{"$f":"INDIRECT(ADDRESS(ROW(A$80),ROW()-ROW(A$80)+(ROWS($88:127)-1)*2+1,4))","v":0}]
[{"$f":"IF(B128=\"\",0,INDEX(Price_List,ROWS($88:128)))","v":12},{"$f":"IF($C128=\"\",\"\",COUNTA($C$88:$C128))","v":41},{"$f":"IF(INDEX(INDIRECT(\"Product_List\"),ROWS($88:128))=\"\",\"\",INDEX(INDIRECT(\"Product_List\"),ROWS($88:128)))","v":"41-ขนมปังกรอบเนยน้ำตาล(30กรัม)"},{"$f":"ยอดยกมา","v":0},null,null,null,null,null,null,0,null,{"$f":"INDIRECT(ADDRESS(ROW(A$80),ROW()-ROW(A$80)+(ROWS($88:128)-1)*2-1,4))","v":0},null,0,null,0,null,null,null,0,null,0,null,null,null,null,null,{"$f":"INDIRECT(ADDRESS(ROW(A$80),ROW()-ROW(A$80)+(ROWS($88:128)-1)*2,4))","v":0},0,null,0,{"$f":"INDIRECT(ADDRESS(ROW(A$80),ROW()-ROW(A$80)+(ROWS($88:128)-1)*2+1,4))","v":0}]
[{"$f":"IF(B129=\"\",0,INDEX(Price_List,ROWS($88:129)))","v":18},{"$f":"IF($C129=\"\",\"\",COUNTA($C$88:$C129))","v":42},{"$f":"IF(INDEX(INDIRECT(\"Product_List\"),ROWS($88:129))=\"\",\"\",INDEX(INDIRECT(\"Product_List\"),ROWS($88:129)))","v":"42-ขนมปังชนิดแผ่นโฮลวีต"},{"$f":"ยอดยกมา","v":0},null,null,null,null,null,null,0,null,{"$f":"INDIRECT(ADDRESS(ROW(A$80),ROW()-ROW(A$80)+(ROWS($88:129)-1)*2-1,4))","v":0},null,0,null,0,null,null,null,0,null,0,null,null,null,null,null,{"$f":"INDIRECT(ADDRESS(ROW(A$80),ROW()-ROW(A$80)+(ROWS($88:129)-1)*2,4))","v":0},0,null,0,{"$f":"INDIRECT(ADDRESS(ROW(A$80),ROW()-ROW(A$80)+(ROWS($88:129)-1)*2+1,4))","v":0}]
[{"$f":"IF(B130=\"\",0,INDEX(Price_List,ROWS($88:130)))","v":12},{"$f":"IF($C130=\"\",\"\",COUNTA($C$88:$C130))","v":43},{"$f":"IF(INDEX(INDIRECT(\"Product_List\"),ROWS($88:130))=\"\",\"\",INDEX(INDIRECT(\"Product_List\"),ROWS($88:130)))","v":"43-เค้กโรลใบเตย"},{"$f":"ยอดยกมา","v":0},null,null,null,null,null,null,{"$f":"D130+E130+J130-I130+H130","v":0},null,{"$f":"INDIRECT(ADDRESS(ROW(A$80),ROW()-ROW(A$80)+(ROWS($88:130)-1)*2-1,4))","v":0},null,{"$f":"F130+G130+M130+J130-K130","v":0},null,{"$f":"O130*A130","v":0},null,null,null,{"$f":"D130+E130-F130-G130","v":0},null,{"$f":"U130*6%+U130","v":0},null,null,null,null,null,{"$f":"INDIRECT(ADDRESS(ROW(A$80),ROW()-ROW(A$80)+(ROWS($88:130)-1)*2,4))","v":0},0,null,0,{"$f":"INDIRECT(ADDRESS(ROW(A$80),ROW()-ROW(A$80)+(ROWS($88:130)-1)*2+1,4))","v":0}]
[{"$f":"IF(B131=\"\",0,INDEX(Price_List,ROWS($88:131)))","v":12},{"$f":"IF($C131=\"\",\"\",COUNTA($C$88:$C131))","v":44},{"$f":"IF(INDEX(INDIRECT(\"Product_List\"),ROWS($88:131))=\"\",\"\",INDEX(INDIRECT(\"Product_List\"),ROWS($88:131)))","v":"44-ขนมโมจิไส้ถั่วดำ"},{"$f":"ยอดยกมา","v":0},null,null,null,null,null,null,{"$f":"D131+E131+J131-I131+H131","v":0},null,{"$f":"INDIRECT(ADDRESS(ROW(A$80),ROW()-ROW(A$80)+(ROWS($88:131)-1)*2-1,4))","v":0},null,{"$f":"F131+G131+M131+J131-K131","v":0},null,{"$f":"O131*A131","v":0},null,null,null,{"$f":"D131+E131-F131-G131","v":0},null,{"$f":"U131*6%+U131","v":0},null,null,null,null,null,{"$f":"INDIRECT(ADDRESS(ROW(A$80),ROW()-ROW(A$80)+(ROWS($88:131)-1)*2,4))","v":0},0,null,0,{"$f":"INDIRECT(ADDRESS(ROW(A$80),ROW()-ROW(A$80)+(ROWS($88:131)-1)*2+1,4))","v":0}]
[{"$f":"IF(B132=\"\",0,INDEX(Price_List,ROWS($88:132)))","v":25},{"$f":"IF($C132=\"\",\"\",COUNTA($C$88:$C132))","v":45},{"$f":"IF(INDEX(INDIRECT(\"Product_List\"),ROWS($88:132))=\"\",\"\",INDEX(INDIRECT(\"Product_List\"),ROWS($88:132)))","v":"45-ครัวซองต์ไส้กรอกชีส"},{"$f":"ยอดยกมา","v":0},null,null,null,null,null,null,{"$f":"D132+E132+J132-I132+H132","v":0},null,{"$f":"INDIRECT(ADDRESS(ROW(A$80),ROW()-ROW(A$80)+(ROWS($88:132)-1)*2-1,4))","v":0},null,{"$f":"F132+G132+M132+J132-K132","v":0},null,{"$f":"O132*A132","v":0},null,null,null,{"$f":"D132+E132-F132-G132","v":0},null,{"$f":"U132*6%+U132","v":0},null,null,null,null,null,{"$f":"INDIRECT(ADDRESS(ROW(A$80),ROW()-ROW(A$80)+(ROWS($88:132)-1)*2,4))","v":0},0,null,0,{"$f":"INDIRECT(ADDRESS(ROW(A$80),ROW()-ROW(A$80)+(ROWS($88:132)-1)*2+1,4))","v":0}]
[{"$f":"IF(B133=\"\",0,INDEX(Price_List,ROWS($88:133)))","v":12},{"$f":"IF($C133=\"\",\"\",COUNTA($C$88:$C133))","v":46},{"$f":"IF(INDEX(INDIRECT(\"Product_List\"),ROWS($88:133))=\"\",\"\",INDEX(INDIRECT(\"Product_List\"),ROWS($88:133)))","v":"46-ขนมเปี๊ยะไส้ถั่ว"},{"$f":"ยอดยกมา","v":0},null,null,null,null,null,null,0,null,{"$f":"INDIRECT(ADDRESS(ROW(A$80),ROW()-ROW(A$80)+(ROWS($88:133)-1)*2-1,4))","v":0},null,0,null,0,null,null,null,0,null,0,null,null,null,null,null,{"$f":"INDIRECT(ADDRESS(ROW(A$80),ROW()-ROW(A$80)+(ROWS($88:133)-1)*2,4))","v":0},0,null,0,{"$f":"INDIRECT(ADDRESS(ROW(A$80),ROW()-ROW(A$80)+(ROWS($88:133)-1)*2+1,4))","v":0}]
[{"$f":"IF(B134=\"\",0,INDEX(Price_List,ROWS($88:134)))","v":12},{"$f":"IF($C134=\"\",\"\",COUNTA($C$88:$C134))","v":47},{"$f":"IF(INDEX(INDIRECT(\"Product_List\"),ROWS($88:134))=\"\",\"\",INDEX(INDIRECT(\"Product_List\"),ROWS($88:134)))","v":"47-ขนมเปี๊ยะไส้ฟัก"},{"$f":"ยอดยกมา","v":0},null,null,null,null,null,null,{"$f":"D134+E134+J134-I134+H134","v":0},null,{"$f":"INDIRECT(ADDRESS(ROW(A$80),ROW()-ROW(A$80)+(ROWS($88:134)-1)*2-1,4))","v":0},null,{"$f":"F134+G134+M134+J134-K134","v":0},null,{"$f":"O134*A134","v":0},null,null,null,{"$f":"D134+E134-F134-G134","v":0},null,{"$f":"U134*6%+U134","v":0},null,null,null,null,null,{"$f":"INDIRECT(ADDRESS(ROW(A$80),ROW()-ROW(A$80)+(ROWS($88:134)-1)*2,4))","v":0},0,null,0,{"$f":"INDIRECT(ADDRESS(ROW(A$80),ROW()-ROW(A$80)+(ROWS($88:134)-1)*2+1,4))","v":0}]
[{"$f":"IF(B135=\"\",0,INDEX(Price_List,ROWS($88:135)))","v":12},{"$f":"IF($C135=\"\",\"\",COUNTA($C$88:$C135))","v":48},{"$f":"IF(INDEX(INDIRECT(\"Product_List\"),ROWS($88:135))=\"\",\"\",INDEX(INDIRECT(\"Product_List\"),ROWS($88:135)))","v":"48-มังกี้เค้ก"},{"$f":"ยอดยกมา","v":0},null,null,null,null,null,null,0,null,{"$f":"INDIRECT(ADDRESS(ROW(A$80),ROW()-ROW(A$80)+(ROWS($88:135)-1)*2-1,4))","v":0},null,0,null,0,null,null,null,0,null,0,null,null,null,null,null,{"$f":"INDIRECT(ADDRESS(ROW(A$80),ROW()-ROW(A$80)+(ROWS($88:135)-1)*2,4))","v":0},0,null,0,{"$f":"INDIRECT(ADDRESS(ROW(A$80),ROW()-ROW(A$80)+(ROWS($88:135)-1)*2+1,4))","v":0}]
["รวม",null,null,{"$f":"SUM(D$88:D$135)","v":0},0,0,0,0,0,0,0,null,{"$f":"SUM(M$88:M$135)","v":0},null,null,null,{"$f":"$AP$98","v":0},null,"บาท",null,{"$f":"SUM(U$88:U$135)","v":0},null,{"$f":"SUM(W$88:W$135)","v":0},null,null,null,null,null,{"$f":"SUM(AC$88:AC$135)","v":0},{"$f":"SUM(AD$88:AD$135)","v":0},{"$f":"SUM(AE$88:AE$135)","v":0},{"$f":"SUM(AF$88:AF$135)","v":0},{"$f":"SUM(AG$88:AG$135)","v":0}]
["เลขที่ไมล์ เวลาออกทำงาน",null,null,{"$f":"$BF$3","v":0},null,"Km","น้ำหนักของเสีย"]
["เลขที่ไมล์ เวลากลับ",null,null,{"$f":"$BF$4","v":0},null,"Km",{"$f":"$AA$5","v":0},null,"KG"]
["เวลากลับถึงสำนักงาน",null,null,{"$f":"$BF$1","v":"00:00:00"},null,"น."]
["เติมน้ำมัน",null,null,{"$f":"$AX3","v":0},null,"บาท"]
["จำนวนน้ำมัน",null,null,{"$f":"$AX4","v":0},null,"ลิตร"]
["ยอดรวมต้นทุนสาขา",null,null,{"$f":"$AX5","v":0},null,"บาท"]

{"sheet":"26","index":30,"n_rows":142,"n_cols":154,"rows_kept":142,"cut":false,"hidden":false,"merged":[[83,132,83,133],[129,10,129,11],[129,12,129,13],[129,14,129,15],[129,16,129,17],[127,10,127,11],[127,12,127,13],[127,14,127,15],[127,16,127,17],[127,20,127,21],[127,22,127,23],[127,24,127,25],[127,33,127,36],[126,10,126,11],[126,12,126,13],[126,14,126,15],[126,16,126,17],[128,10,128,11],[128,12,128,13],[129,24,129,25],[125,10,125,11],[125,12,125,13],[125,14,125,15],[125,16,125,17],[7,132,7,134],[8,132,8,134],[80,132,80,133],[82,132,82,133],[7,135,7,137],[8,135,8,137],[80,135,80,136],[82,135,82,136],[7,138,7,140],[7,141,7,143],[7,147,7,149],[8,138,8,140],[141,0,141,2],[141,3,141,4],[138,0,138,2],[138,3,138,4],[139,0,139,2],[139,3,139,4],[140,0,140,2],[140,3,140,4],[135,24,135,25],[135,33,135,36],[136,0,136,2],[136,3,136,4],[137,0,137,2],[137,3,137,4],[137,6,137,7],[137,18,137,21],[135,0,135,2],[135,10,135,11],[135,12,135,13],[135,14,135,15],[135,16,135,17],[135,18,135,19],[135,20,135,21],[135,22,135,23],[128,14,128,15],[128,16,128,17],[128,20,128,21],[128,22,128,23],[129,20,129,21],[129,22,129,23],[131,16,131,17],[132,16,132,17],[134,16,134,17],[131,20,131,21],[132,20,132,21],[134,20,134,21],[131,22,131,23],[132,22,132,23],[134,22,134,23],[131,24,131,25],[132,24,132,25],[134,24,134,25],[129,33,129,36],[128,24,128,25],[128,33,128,36],[126,20,126,21],[126,22,126,23],[124,24,124,25],[124,33,124,36],[125,20,125,21],[125,22,125,23],[125,24,125,25],[125,33,125,36],[124,10,124,11],[124,12,124,13],[124,14,124,15],[124,16,124,17],[124,20,124,21],[124,22,124,23],[126,24,126,25],[126,33,126,36],[122,24,122,25],[122,33,122,36],[123,10,123,11],[123,12,123,13],[123,14,123,15],[123,16,123,17],[123,20,123,21],[123,22,123,23],[123,24,123,25],[123,33,123,36],[122,10,122,11],[122,12,122,13],[122,14,122,15],[122,16,122,17],[122,20,122,21],[122,22,122,23],[120,24,120,25],[120,33,120,36],[121,10,121,11],[121,12,121,13],[121,14,121,15],[121,16,121,17],[121,20,121,21],[121,22,121,23],[121,24,121,25],[121,33,121,36],[120,10,120,11],[120,12,120,13],[120,14,120,15],[120,16,120,17],[120,20,120,21],[120,22,120,23],[118,24,118,25],[118,33,118,36],[119,10,119,11],[119,12,119,13],[119,14,119,15],[119,16,119,17],[119,20,119,21],[119,22,119,23],[119,24,119,25],[119,33,119,36],[118,10,118,11],[118,12,118,13],[118,14,118,15],[118,16,118,17],[118,20,118,21],[118,22,118,23],[116,24,116,25],[116,33,116,36],[117,10,117,11],[117,12,117,13],[117,14,117,15],[117,16,117,17],[117,20,117,21],[117,22,117,23],[117,24,117,25],[117,33,117,36],[116,10,116,11],[116,12,116,13],[116,14,116,15],[116,16,116,17],[116,20,116,21],[116,22,116,23],[114,24,114,25],[114,33,114,36],[115,10,115,11],[115,12,115,13],[115,14,115,15],[115,16,115,17],[115,20,115,21],[115,22,115,23],[115,24,115,25],[115,33,115,36],[114,10,114,11],[114,12,114,13],[114,14,114,15],[114,16,114,17],[114,20,114,21],[114,22,114,23],[112,24,112,25],[112,33,112,36],[113,10,113,11],[113,12,113,13],[113,14,113,15],[113,16,113,17],[113,20,113,21],[113,22,113,23],[113,24,113,25],[113,33,113,36],[112,10,112,11],[112,12,112,13],[112,14,112,15],[112,16,112,17],[112,20,112,21],[112,22,112,23],[110,24,110,25],[110,33,110,36],[111,10,111,11],[111,12,111,13],[111,14,111,15],[111,16,111,17],[111,20,111,21],[111,22,111,23],[111,24,111,25],[111,33,111,36],[110,10,110,11],[110,12,110,13],[110,14,110,15],[110,16,110,17],[110,20,110,21],[110,22,110,23],[108,24,108,25],[108,33,108,36],[109,10,109,11],[109,12,109,13],[109,14,109,15],[109,16,109,17],[109,20,109,21],[109,22,109,23],[109,24,109,25],[109,33,109,36],[108,10,108,11],[108,12,108,13],[108,14,108,15],[108,16,108,17],[108,20,108,21],[108,22,108,23],[106,24,106,25],[106,33,106,36],[107,10,107,11],[107,12,107,13],[107,14,107,15],[107,16,107,17],[107,20,107,21],[107,22,107,23],[107,24,107,25],[107,33,107,36],[106,10,106,11],[106,12,106,13],[106,14,106,15],[106,16,106,17],[106,20,106,21],[106,22,106,23],[104,24,104,25],[104,33,104,36],[105,10,105,11],[105,12,105,13],[105,14,105,15],[105,16,105,17],[105,20,105,21],[105,22,105,23],[105,24,105,25],[105,33,105,36],[104,10,104,11],[104,12,104,13],[104,14,104,15],[104,16,104,17],[104,20,104,21],[104,22,104,23],[102,24,102,25],[102,33,102,36],[103,10,103,11],[103,12,103,13],[103,14,103,15],[103,16,103,17],[103,20,103,21],[103,22,103,23],[103,24,103,25],[103,33,103,36],[102,10,102,11],[102,12,102,13],[102,14,102,15],[102,16,102,17],[102,20,102,21],[102,22,102,23],[101,10,101,11],[101,12,101,13],[101,14,101,15],[101,16,101,17],[101,20,101,21],[101,22,101,23],[101,24,101,25],[101,33,101,36],[100,10,100,11],[100,12,100,13],[100,14,100,15],[100,16,100,17],[100,20,100,21],[100,22,100,23],[99,10,99,11],[99,12,99,13],[99,14,99,15],[99,16,99,17],[99,20,99,21],[99,22,99,23],[99,24,99,25],[99,33,99,36],[100,24,100,25],[100,33,100,36],[97,24,97,25],[97,33,97,36],[97,38,97,40],[98,10,98,11],[98,12,98,13],[98,14,98,15],[98,16,98,17],[98,20,98,21],[98,22,98,23],[98,24,98,25],[97,10,97,11],[97,12,97,13],[97,14,97,15],[97,16,97,17],[97,20,97,21],[97,22,97,23],[98,33,98,36],[95,24,95,25],[95,33,95,36],[96,10,96,11],[96,12,96,13],[96,14,96,15],[96,16,96,17],[96,20,96,21],[96,22,96,23],[96,24,96,25],[96,33,96,36],[95,10,95,11],[95,12,95,13],[95,14,95,15],[95,16,95,17],[95,20,95,21],[95,22,95,23],[93,24,93,25],[93,33,93,36],[94,10,94,11],[94,12,94,13],[94,14,94,15],[94,16,94,17],[94,20,94,21],[94,22,94,23],[94,24,94,25],[94,33,94,36],[93,10,93,11],[93,12,93,13],[93,14,93,15],[93,16,93,17],[93,20,93,21],[93,22,93,23],[91,24,91,25],[91,33,91,36],[92,10,92,11],[92,12,92,13],[92,14,92,15],[92,16,92,17],[92,20,92,21],[92,22,92,23],[92,24,92,25],[92,33,92,36],[91,10,91,11],[91,12,91,13],[91,14,91,15],[91,16,91,17],[91,20,91,21],[91,22,91,23],[86,22,86,23],[86,24,86,25],[88,20,88,21],[88,22,88,23],[88,24,88,25],[88,33,88,36],[89,24,89,25],[89,33,89,36],[90,10,90,11],[90,12,90,13],[90,14,90,15],[90,16,90,17],[90,20,90,21],[90,22,90,23],[90,24,90,25],[90,33,90,36],[89,10,89,11],[89,12,89,13],[89,14,89,15],[89,16,89,17],[89,20,89,21],[89,22,89,23],[83,36,83,37],[83,39,83,40],[83,42,83,43],[83,45,83,46],[83,48,83,49],[83,51,83,52],[83,150,83,153],[86,10,86,11],[86,12,86,13],[86,14,86,15],[86,16,86,17],[86,20,86,21],[83,108,83,109],[83,111,83,112],[83,114,83,115],[83,117,83,118],[83,120,83,121],[83,123,83,124],[83,90,83,91],[83,93,83,94],[83,96,83,97],[83,99,83,100],[83,102,83,103],[83,105,83,106],[82,39,82,40],[82,42,82,43],[82,45,82,46],[82,48,82,49],[83,84,83,85],[83,87,83,88],[83,54,83,55],[83,57,83,58],[83,60,83,61],[83,63,83,64],[83,66,83,67],[83,69,83,70],[83,72,83,73],[83,75,83,76],[83,78,83,79],[83,81,83,82],[83,0,83,5],[83,6,83,7],[83,9,83,10],[83,12,83,13],[83,15,83,16],[82,105,82,106],[82,108,82,109],[82,111,82,112],[82,114,82,115],[82,87,82,88],[82,90,82,91],[82,93,82,94],[82,96,82,97],[82,99,82,100],[82,102,82,103],[82,69,82,70],[82,72,82,73],[82,75,82,76],[82,78,82,79],[82,81,82,82],[82,84,82,85],[82,51,82,52],[82,54,82,55],[82,57,82,58],[82,15,82,16],[82,18,82,19],[82,21,82,22],[82,24,82,25],[82,27,82,28],[82,30,82,31],[81,0,81,2],[81,3,81,5],[81,150,82,153],[82,0,82,2],[82,3,82,4],[82,6,82,7],[82,9,82,10],[82,12,82,13],[82,123,82,124],[82,126,82,127],[82,129,82,130],[82,117,82,118],[82,120,82,121],[82,60,82,61],[82,63,82,64],[82,66,82,67],[82,33,82,34],[82,36,82,37],[80,114,80,115],[80,117,80,118],[80,120,80,121],[80,123,80,124],[80,126,80,127],[80,129,80,130],[80,96,80,97],[80,99,80,100],[80,102,80,103],[80,105,80,106],[80,108,80,109],[80,111,80,112],[80,78,80,79],[80,81,80,82],[80,87,80,88],[80,90,80,91],[80,93,80,94],[80,60,80,61],[80,63,80,64],[80,66,80,67],[80,69,80,70],[80,72,80,73],[80,75,80,76],[80,84,80,85],[79,0,79,5],[80,0,80,5],[80,6,80,7],[80,9,80,10],[80,12,80,13],[80,15,80,16],[80,18,80,19],[80,21,80,22],[8,114,8,116],[8,78,8,80],[8,81,8,83],[8,87,8,89],[8,90,8,92],[8,93,8,95],[8,60,8,62],[8,63,8,65],[8,66,8,68],[8,69,8,71],[8,72,8,74],[8,75,8,77],[8,54,8,56],[8,57,8,59],[8,24,8,26],[8,27,8,29],[8,120,8,122],[8,123,8,125],[8,126,8,128],[8,129,8,131],[8,96,8,98],[8,99,8,101],[8,102,8,104],[8,105,8,107],[8,108,8,110],[8,111,8,113],[8,33,8,35],[8,36,8,38],[8,39,8,41],[8,84,8,86],[7,150,8,150],[7,151,8,151],[8,6,8,8],[8,9,8,11],[8,12,8,14],[8,15,8,17],[8,18,8,20],[8,21,8,23],[7,114,7,116],[7,117,7,119],[7,120,7,122],[7,123,7,125],[7,126,7,128],[7,129,7,131],[7,96,7,98],[7,99,7,101],[7,102,7,104],[7,105,7,107],[7,108,7,110],[8,117,8,119],[7,87,7,89],[7,90,7,92],[7,93,7,95],[7,60,7,62],[7,63,7,65],[7,66,7,68],[7,69,7,71],[7,72,7,74],[7,75,7,77],[7,54,7,56],[7,57,7,59],[7,24,7,26],[7,27,7,29],[7,30,7,32],[7,33,7,35],[7,36,7,38],[7,39,7,41],[7,84,7,86],[6,150,6,151],[6,152,8,152],[6,153,8,153],[7,6,7,8],[7,9,7,11],[7,12,7,14],[7,15,7,17],[7,18,7,20],[7,21,7,23],[6,117,6,119],[6,120,6,122],[6,123,6,125],[6,126,6,128],[6,129,6,131],[6,99,6,101],[6,102,6,104],[6,105,6,107],[6,108,6,110],[6,111,6,113],[6,54,6,56],[6,57,6,59],[7,111,7,113],[7,78,7,80],[7,81,7,83],[6,0,8,0],[6,1,8,1],[6,2,8,2],[6,3,8,3],[6,4,8,4],[6,6,6,8],[6,45,6,47],[6,48,6,50],[6,51,6,53],[7,42,7,44],[7,45,7,47],[7,48,7,50],[7,51,7,53],[8,42,8,44],[8,45,8,47],[8,48,8,50],[8,51,8,53],[6,27,6,29],[6,30,6,32],[6,33,6,35],[6,36,6,38],[6,39,6,41],[6,42,6,44],[8,30,8,32],[4,26,4,29],[4,30,4,31],[4,32,4,34],[4,35,4,36],[6,9,6,11],[6,12,6,14],[6,15,6,17],[6,18,6,20],[6,21,6,23],[6,24,6,26],[3,41,3,44],[3,46,3,48],[3,49,3,51],[3,54,3,56],[3,57,3,60],[4,0,4,1],[4,2,4,3],[4,4,4,5],[4,6,4,12],[4,14,4,16],[3,17,3,19],[3,22,3,25],[3,26,3,29],[3,30,3,33],[3,34,3,37],[3,38,3,40],[4,38,4,40],[4,41,4,44],[4,46,4,48],[4,49,4,51],[4,54,4,56],[4,57,4,60],[4,17,4,19],[4,22,4,25],[2,38,2,40],[3,0,3,1],[3,2,3,3],[3,4,3,5],[3,6,3,12],[3,14,3,16],[2,17,2,19],[2,22,2,25],[2,26,2,29],[2,30,2,33],[80,36,80,37],[80,39,80,40],[0,38,0,40],[0,41,0,44],[0,46,0,48],[0,54,0,56],[0,57,0,60],[2,0,2,1],[2,2,2,3],[2,4,2,5],[2,6,2,12],[2,14,2,16],[0,0,0,12],[0,14,0,16],[0,17,0,23],[0,30,0,33],[0,34,0,35],[0,36,0,37],[2,41,2,44],[2,46,2,48],[2,49,2,51],[2,54,2,56],[2,57,2,60],[2,34,2,37],[6,141,6,143],[6,147,6,149],[83,18,83,19],[83,21,83,22],[83,24,83,25],[83,27,83,28],[83,30,83,31],[83,33,83,34],[83,126,83,127],[83,129,83,130],[8,141,8,143],[8,147,8,149],[80,138,80,139],[80,141,80,142],[80,147,80,148],[82,138,82,139],[82,141,82,142],[82,147,82,148],[6,60,6,62],[6,87,6,89],[6,90,6,92],[6,93,6,95],[6,96,6,98],[6,63,6,65],[88,12,88,13],[88,14,88,15],[88,16,88,17],[6,114,6,116],[6,81,6,83],[6,84,6,86],[6,132,6,134],[6,135,6,137],[6,138,6,140],[6,66,6,68],[6,69,6,71],[6,72,6,74],[6,75,6,77],[6,78,6,80],[80,42,80,43],[80,45,80,46],[80,48,80,49],[80,51,80,52],[80,54,80,55],[80,57,80,58],[80,24,80,25],[80,27,80,28],[80,30,80,31],[80,33,80,34],[83,147,83,148],[131,33,131,36],[132,33,132,36],[134,33,134,36],[131,10,131,11],[132,10,132,11],[134,10,134,11],[131,12,131,13],[132,12,132,13],[134,12,134,13],[131,14,131,15],[132,14,132,15],[134,14,134,15],[86,33,86,36],[87,10,87,11],[87,12,87,13],[87,14,87,15],[87,16,87,17],[87,20,87,21],[87,22,87,23],[83,135,83,136],[130,10,130,11],[130,12,130,13],[130,14,130,15],[6,144,6,146],[7,144,7,146],[8,144,8,146],[80,144,80,145],[82,144,82,145],[83,144,83,145],[133,10,133,11],[133,12,133,13],[133,14,133,15],[133,16,133,17],[133,20,133,21],[133,22,133,23],[133,24,133,25],[133,33,133,36],[83,138,83,139],[83,141,83,142],[130,16,130,17],[130,20,130,21],[130,22,130,23],[130,24,130,25],[130,33,130,36],[87,24,87,25],[87,33,87,36],[88,10,88,11]]}
[":::: รายงานการขายประจำวัน (Sale Daily Report)  ::::",null,null,null,null,null,null,null,null,null,null,null,null,null,"Print Date : ",null,null,{"$f":"NOW()","v":"2025-04-24T22:39:10.130"},null,null,null,null,null,null,null,null,null,null,null,null,"จำนวนร้าน :",null,null,null,{"$f":"MAX($A$10:$A$79)","v":0},null,"ร้าน",null,"เป้ายอดขาย :",null,null,null,null,null,null,null,{"$f":"C3","v":45803},null,null,{"$f":"LEFT('Problems & Solutions'!$B$2,FIND(\"|\",'Problems & Solutions'!$B$2))&\" วันที่\"&TEXT($C$3,\"[$-107041E] d mmmm yyyy;@\")","v":"ขั้นตอนการตรวจรีพอร์ตขาย | วันที่ 26 พฤษภาคม 2568"},null,null,null,null,"เวลากลับ :"]
[]
["วันที่ :",null,{"$f":"DATE(ใส่ข้อมูล!G2-543,ใส่ข้อมูล!V2,ActiveSheetName)","v":"2025-05-26"},null,"พนักงานขาย",null,{"$f":"INDEX(OFFSET(Sale_Region,,1),ActiveSheetName)","v":0},null,null,null,null,null,null,null,"รวมยอดเบิก :",null,null,{"$f":"E136","v":0},null,null,"ชิ้น",null,"ใหญ่สด(40)",null,null,null,{"$f":"Cash_Major_Bill","v":0},null,null,null,"ใหญ่เชื่อ(42)",null,null,null,{"$f":"Credit_Major_Bill","v":0},null,null,null,"บิลใหญ่ :",null,null,{"$f":"AA3+AI3","v":0},null,null,null,null,"เติมน้ำมัน :",null,null,null,null,null,"บาท",null,"ไมล์ออก :",null,null,{"$f":"เลขไมล์ออก","v":0},null,null,null,"Km"]
["เขตการขาย :",null,{"$f":"INDEX(Sale_Region,ActiveSheetName)","v":0},null,"ผช.ขาย",null,{"$f":"INDEX(OFFSET(Sale_Region,,2),ActiveSheetName)","v":0},null,null,null,null,null,null,null,"ของเหลือ :",null,null,{"$f":"F136","v":0},null,null,"ชิ้น",null,"เล็กสด(41)",null,null,null,{"$f":"Cash_Minor_Bill","v":0},null,null,null,"เล็กเชื่อ(43)",null,null,null,{"$f":"Credit_Minor_Bill","v":0},null,null,null,"บิลเล็ก :",null,null,{"$f":"AA4+AI4","v":0},null,null,null,null,"จำนวนลิตร :",null,null,null,null,null,"ลิตร",null,"ไมล์เข้า :",null,null,null,null,null,null,"Km"]
["สายส่ง :",null,{"$f":"\"Sale \"&ใส่ข้อมูล!E3&\"-\"&ใส่ข้อมูล!G3","v":"Sale KB-01"},null,"พนักงานเสริม",null,{"$f":"INDEX(OFFSET(Sale_Region,,3),ActiveSheetName)","v":0},null,null,null,null,null,null,null,"ของเสีย :",null,null,{"$f":"G136","v":0},null,null,"ชิ้น",null,"น้ำหนักของเสีย",null,null,null,null,null,null,null,"Kg.",null,"%ของเสีย",null,null,{"$f":"IF(Order_Cal=0,0,ROUND(Waste_Cal*100/Order_Cal,2))","v":0},null,"%","VAT :",null,null,{"$f":"EW81","v":0},null,null,null,null,"ต้นทุนสาขา :",null,null,{"$f":"SUMPRODUCT((($A$88:$A$135)-($A$88:$A$135)*0.45)*(($E$88:$E$135)-($G$88:$G$135)))","v":0},null,null,"บาท",null,"ระยะทาง :",null,null,{"$f":"IF(OR($BF$4=0,$BF$3=0),0,$BF$4-$BF$3)","v":0},null,null,null,"Km"]
[]
["No","รหัสร้าน (CustNo)","ชื่อร้าน (Store Name)","เวลาเข้าร้าน","ระยะเวลาระหว่างร้าน","บิล(Invoice)",{"$f":"INDEX(INDIRECT(\"dProduct[ProductName]\"),ROUNDUP(COLUMNS($G:G)/3,0))","v":"ขนมปังหมูหยองน้ำสลัด"},null,null,{"$f":"INDEX(INDIRECT(\"dProduct[ProductName]\"),ROUNDUP(COLUMNS($G:J)/3,0))","v":"ขนมปังหมูหยองน้ำพริกเผา"},null,null,{"$f":"INDEX(INDIRECT(\"dProduct[ProductName]\"),ROUNDUP(COLUMNS($G:M)/3,0))","v":"ขนมปังไก่หยองน้ำสลัด"},null,null,{"$f":"INDEX(INDIRECT(\"dProduct[ProductName]\"),ROUNDUP(COLUMNS($G:P)/3,0))","v":"ขนมปังไส้ครีมสลัด"},null,null,{"$f":"INDEX(INDIRECT(\"dProduct[ProductName]\"),ROUNDUP(COLUMNS($G:S)/3,0))","v":"ขนมปังเนยสด"},null,null,{"$f":"INDEX(INDIRECT(\"dProduct[ProductName]\"),ROUNDUP(COLUMNS($G:V)/3,0))","v":"ขนมปังไส้สังขยาเล็ก"},null,null,{"$f":"INDEX(INDIRECT(\"dProduct[ProductName]\"),ROUNDUP(COLUMNS($G:Y)/3,0))","v":"ขนมปังไส้เผือก"},null,null,{"$f":"INDEX(INDIRECT(\"dProduct[ProductName]\"),ROUNDUP(COLUMNS($G:AB)/3,0))","v":"ขนมปังไส้ถั่วแดง"},null,null,{"$f":"INDEX(INDIRECT(\"dProduct[ProductName]\"),ROUNDUP(COLUMNS($G:AE)/3,0))","v":"ขนมปังไส้ถั่วดำ"},null,null,{"$f":"INDEX(INDIRECT(\"dProduct[ProductName]\"),ROUNDUP(COLUMNS($G:AH)/3,0))","v":"ขนมปังไส้มันม่วง"},null,null,{"$f":"INDEX(INDIRECT(\"dProduct[ProductName]\"),ROUNDUP(COLUMNS($G:AK)/3,0))","v":"เค้กกล้วยหอม"},null,null,{"$f":"INDEX(INDIRECT(\"dProduct[ProductName]\"),ROUNDUP(COLUMNS($G:AN)/3,0))","v":"เค้กบัตเตอร์"},null,null,{"$f":"INDEX(INDIRECT(\"dProduct[ProductName]\"),ROUNDUP(COLUMNS($G:AQ)/3,0))","v":"ขนมปังโรลถั่วแดง"},null,null,{"$f":"INDEX(INDIRECT(\"dProduct[ProductName]\"),ROUNDUP(COLUMNS($G:AT)/3,0))","v":"ขนมปังไส้สังขยาใหญ่"},null,null,{"$f":"INDEX(INDIRECT(\"dProduct[ProductName]\"),ROUNDUP(COLUMNS($G:AW)/3,0))","v":"ขนมปังชนิดแผ่น(480กรัม)"},null,null,{"$f":"INDEX(INDIRECT(\"dProduct[ProductName]\"),ROUNDUP(COLUMNS($G:AZ)/3,0))","v":"โมจิไส้ถั่ว"},null,null,{"$f":"INDEX(INDIRECT(\"dProduct[ProductName]\"),ROUNDUP(COLUMNS($G:BC)/3,0))","v":"โมจิไส้เผือก"},null,null,{"$f":"INDEX(INDIRECT(\"dProduct[ProductName]\"),ROUNDUP(COLUMNS($G:BF)/3,0))","v":"โมจิไส้ถั่วไข่เค็ม"},null,null,{"$f":"INDEX(INDIRECT(\"dProduct[ProductName]\"),ROUNDUP(COLUMNS($G:BI)/3,0))","v":"ขนมปังพิซซ่า"},null,null,{"$f":"INDEX(INDIRECT(\"dProduct[ProductName]\"),ROUNDUP(COLUMNS($G:BL)/3,0))","v":"ขนมปังพิซซ่าปูอัดแฮม"},null,null,{"$f":"INDEX(INDIRECT(\"dProduct[ProductName]\"),ROUNDUP(COLUMNS($G:BO)/3,0))","v":"ขนมปังไส้กรอก"},null,null,{"$f":"INDEX(INDIRECT(\"dProduct[ProductName]\"),ROUNDUP(COLUMNS($G:BR)/3,0))","v":"ขนมก้านบัว"},null,null,{"$f":"INDEX(INDIRECT(\"dProduct[ProductName]\"),ROUNDUP(COLUMNS($G:BU)/3,0))","v":"พายสับปะรด"},null,null,{"$f":"INDEX(INDIRECT(\"dProduct[ProductName]\"),ROUNDUP(COLUMNS($G:BX)/3,0))","v":"พายไส้มะพร้าว"},null,null,{"$f":"INDEX(INDIRECT(\"dProduct[ProductName]\"),ROUNDUP(COLUMNS($G:CA)/3,0))","v":"ขนมปังโรลมันเทศ"},null,null,{"$f":"INDEX(INDIRECT(\"dProduct[ProductName]\"),ROUNDUP(COLUMNS($G:CD)/3,0))","v":"ขนมปังไส้ครีมสลัดน้ำพริกเผา"},null,null,{"$f":"INDEX(INDIRECT(\"dProduct[ProductName]\"),ROUNDUP(COLUMNS($G:CG)/3,0))","v":"ขนมปังไส้สังขยาไข่"},null,null,{"$f":"INDEX(INDIRECT(\"dProduct[ProductName]\"),ROUNDUP(COLUMNS($G:CJ)/3,0))","v":"ขนมปังไส้สังขยามะพร้าว"},null,null,{"$f":"INDEX(INDIRECT(\"dProduct[ProductName]\"),ROUNDUP(COLUMNS($G:CM)/3,0))","v":"ขนมปังไส้ครีมชาไทย"},null,null,{"$f":"INDEX(INDIRECT(\"dProduct[ProductName]\"),ROUNDUP(COLUMNS($G:CP)/3,0))","v":"ขนมปังโรลมันม่วง"},null,null,{"$f":"INDEX(INDIRECT(\"dProduct[ProductName]\"),ROUNDUP(COLUMNS($G:CS)/3,0))","v":"ขนมปังโรลช็อกโกแลต"},null,null,{"$f":"INDEX(INDIRECT(\"dProduct[ProductName]\"),ROUNDUP(COLUMNS($G:CV)/3,0))","v":"ขนมปังชนิดแผ่น(155กรัม)"},null,null,{"$f":"INDEX(INDIRECT(\"dProduct[ProductName]\"),ROUNDUP(COLUMNS($G:CY)/3,0))","v":"ขนมปังโรลเผือก"},null,null,{"$f":"INDEX(INDIRECT(\"dProduct[ProductName]\"),ROUNDUP(COLUMNS($G:DB)/3,0))","v":"ขนมปังไก่หยองน้ำสลัด Mini"},null,null,{"$f":"INDEX(INDIRECT(\"dProduct[ProductName]\"),ROUNDUP(COLUMNS($G:DE)/3,0))","v":"ขนมปังไส้ช็อกโกแลต"},null,null,{"$f":"INDEX(INDIRECT(\"dProduct[ProductName]\"),ROUNDUP(COLUMNS($G:DH)/3,0))","v":"ขนมปังไส้ครีมสังขยาไข่"},null,null,{"$f":"INDEX(INDIRECT(\"dProduct[ProductName]\"),ROUNDUP(COLUMNS($G:DK)/3,0))","v":"ขนมปังพิซซ่าฮาวายเอี้ยน"},null,null,{"$f":"INDEX(INDIRECT(\"dProduct[ProductName]\"),ROUNDUP(COLUMNS($G:DN)/3,0))","v":"ครัวซองต์หมูหยองน้ำสลัด"},null,null,{"$f":"INDEX(INDIRECT(\"dProduct[ProductName]\"),ROUNDUP(COLUMNS($G:DQ)/3,0))","v":"แพนเบรดไส้เผือก"},null,null,{"$f":"INDEX(INDIRECT(\"dProduct[ProductName]\"),ROUNDUP(COLUMNS($G:DT)/3,0))","v":"แพนเบรดไส้ถั่วแดง"},null,null,{"$f":"INDEX(INDIRECT(\"dProduct[ProductName]\"),ROUNDUP(COLUMNS($G:DW)/3,0))","v":"ขนมปังกรอบเนยน้ำตาล(30กรัม)"},null,null,{"$f":"INDEX(INDIRECT(\"dProduct[ProductName]\"),ROUNDUP(COLUMNS($G:DZ)/3,0))","v":"ขนมปังชนิดแผ่นโฮลวีต"},null,null,{"$f":"INDEX(INDIRECT(\"dProduct[ProductName]\"),ROUNDUP(COLUMNS($G:EC)/3,0))","v":"เค้กโรลใบเตย"},null,null,{"$f":"INDEX(INDIRECT(\"dProduct[ProductName]\"),ROUNDUP(COLUMNS($G:EF)/3,0))","v":"ขนมโมจิไส้ถั่วดำ"},null,null,{"$f":"INDEX(INDIRECT(\"dProduct[ProductName]\"),ROUNDUP(COLUMNS($G:EI)/3,0))","v":"ครัวซองต์ไส้กรอกชีส"},null,null,{"$f":"INDEX(INDIRECT(\"dProduct[ProductName]\"),ROUNDUP(COLUMNS($G:EL)/3,0))","v":"ขนมเปี๊ยะไส้ถั่ว"},null,null,{"$f":"INDEX(INDIRECT(\"dProduct[ProductName]\"),ROUNDUP(COLUMNS($G:EO)/3,0))","v":"ขนมเปี๊ยะไส้ฟัก"},null,null,{"$f":"INDEX(INDIRECT(\"dProduct[ProductName]\"),ROUNDUP(COLUMNS($G:ER)/3,0))","v":"มังกี้เค้ก"},null,null,"มูลค่าสินค้า",null,"ภาษี","รวมยอดขาย"]
[null,null,null,null,null,"ราคาขาย",{"$f":"IF(G$7=0,0,INDEX(Price_List,ROUNDUP(COLUMNS($G:G)/3,0)))","v":20},null,null,{"$f":"IF(J$7=0,0,INDEX(Price_List,ROUNDUP(COLUMNS($G:J)/3,0)))","v":20},null,null,{"$f":"IF(M$7=0,0,INDEX(Price_List,ROUNDUP(COLUMNS($G:M)/3,0)))","v":20},null,null,{"$f":"IF(P$7=0,0,INDEX(Price_List,ROUNDUP(COLUMNS($G:P)/3,0)))","v":15},null,null,{"$f":"IF(S$7=0,0,INDEX(Price_List,ROUNDUP(COLUMNS($G:S)/3,0)))","v":15},null,null,{"$f":"IF(V$7=0,0,INDEX(Price_List,ROUNDUP(COLUMNS($G:V)/3,0)))","v":10},null,null,{"$f":"IF(Y$7=0,0,INDEX(Price_List,ROUNDUP(COLUMNS($G:Y)/3,0)))","v":10},null,null,{"$f":"IF(AB$7=0,0,INDEX(Price_List,ROUNDUP(COLUMNS($G:AB)/3,0)))","v":10},null,null,{"$f":"IF(AE$7=0,0,INDEX(Price_List,ROUNDUP(COLUMNS($G:AE)/3,0)))","v":10},null,null,{"$f":"IF(AH$7=0,0,INDEX(Price_List,ROUNDUP(COLUMNS($G:AH)/3,0)))","v":10},null,null,{"$f":"IF(AK$7=0,0,INDEX(Price_List,ROUNDUP(COLUMNS($G:AK)/3,0)))","v":15},null,null,{"$f":"IF(AN$7=0,0,INDEX(Price_List,ROUNDUP(COLUMNS($G:AN)/3,0)))","v":15},null,null,{"$f":"IF(AQ$7=0,0,INDEX(Price_List,ROUNDUP(COLUMNS($G:AQ)/3,0)))","v":15},null,null,{"$f":"IF(AT$7=0,0,INDEX(Price_List,ROUNDUP(COLUMNS($G:AT)/3,0)))","v":15},null,null,{"$f":"IF(AW$7=0,0,INDEX(Price_List,ROUNDUP(COLUMNS($G:AW)/3,0)))","v":42},null,null,{"$f":"IF(AZ$7=0,0,INDEX(Price_List,ROUNDUP(COLUMNS($G:AZ)/3,0)))","v":12},null,null,{"$f":"IF(BC$7=0,0,INDEX(Price_List,ROUNDUP(COLUMNS($G:BC)/3,0)))","v":12},null,null,{"$f":"IF(BF$7=0,0,INDEX(Price_List,ROUNDUP(COLUMNS($G:BF)/3,0)))","v":15},null,null,{"$f":"IF(BI$7=0,0,INDEX(Price_List,ROUNDUP(COLUMNS($G:BI)/3,0)))","v":20},null,null,{"$f":"IF(BL$7=0,0,INDEX(Price_List,ROUNDUP(COLUMNS($G:BL)/3,0)))","v":20},null,null,{"$f":"IF(BO$7=0,0,INDEX(Price_List,ROUNDUP(COLUMNS($G:BO)/3,0)))","v":20},null,null,{"$f":"IF(BR$7=0,0,INDEX(Price_List,ROUNDUP(COLUMNS($G:BR)/3,0)))","v":15},null,null,{"$f":"IF(BU$7=0,0,INDEX(Price_List,ROUNDUP(COLUMNS($G:BU)/3,0)))","v":20},null,null,{"$f":"IF(BX$7=0,0,INDEX(Price_List,ROUNDUP(COLUMNS($G:BX)/3,0)))","v":20},null,null,{"$f":"IF(CA$7=0,0,INDEX(Price_List,ROUNDUP(COLUMNS($G:CA)/3,0)))","v":15},null,null,{"$f":"IF(CD$7=0,0,INDEX(Price_List,ROUNDUP(COLUMNS($G:CD)/3,0)))","v":15},null,null,{"$f":"IF(CG$7=0,0,INDEX(Price_List,ROUNDUP(COLUMNS($G:CG)/3,0)))","v":20},null,null,{"$f":"IF(CJ$7=0,0,INDEX(Price_List,ROUNDUP(COLUMNS($G:CJ)/3,0)))","v":20},null,null,{"$f":"IF(CM$7=0,0,INDEX(Price_List,ROUNDUP(COLUMNS($G:CM)/3,0)))","v":10},null,null,{"$f":"IF(CP$7=0,0,INDEX(Price_List,ROUNDUP(COLUMNS($G:CP)/3,0)))","v":15},null,null,{"$f":"IF(CS$7=0,0,INDEX(Price_List,ROUNDUP(COLUMNS($G:CS)/3,0)))","v":15},null,null,{"$f":"IF(CV$7=0,0,INDEX(Price_List,ROUNDUP(COLUMNS($G:CV)/3,0)))","v":16},null,null,{"$f":"IF(CY$7=0,0,INDEX(Price_List,ROUNDUP(COLUMNS($G:CY)/3,0)))","v":15},null,null,{"$f":"IF(DB$7=0,0,INDEX(Price_List,ROUNDUP(COLUMNS($G:DB)/3,0)))","v":15},null,null,{"$f":"IF(DE$7=0,0,INDEX(Price_List,ROUNDUP(COLUMNS($G:DE)/3,0)))","v":10},null,null,{"$f":"IF(DH$7=0,0,INDEX(Price_List,ROUNDUP(COLUMNS($G:DH)/3,0)))","v":10},null,null,{"$f":"IF(DK$7=0,0,INDEX(Price_List,ROUNDUP(COLUMNS($G:DK)/3,0)))","v":20},null,null,{"$f":"IF(DN$7=0,0,INDEX(Price_List,ROUNDUP(COLUMNS($G:DN)/3,0)))","v":20},null,null,{"$f":"IF(DQ$7=0,0,INDEX(Price_List,ROUNDUP(COLUMNS($G:DQ)/3,0)))","v":15},null,null,{"$f":"IF(DT$7=0,0,INDEX(Price_List,ROUNDUP(COLUMNS($G:DT)/3,0)))","v":15},null,null,{"$f":"IF(DW$7=0,0,INDEX(Price_List,ROUNDUP(COLUMNS($G:DW)/3,0)))","v":12},null,null,{"$f":"IF(DZ$7=0,0,INDEX(Price_List,ROUNDUP(COLUMNS($G:DZ)/3,0)))","v":18},null,null,{"$f":"IF(EC$7=0,0,INDEX(Price_List,ROUNDUP(COLUMNS($G:EC)/3,0)))","v":12},null,null,{"$f":"IF(EF$7=0,0,INDEX(Price_List,ROUNDUP(COLUMNS($G:EF)/3,0)))","v":12},null,null,{"$f":"IF(EI$7=0,0,INDEX(Price_List,ROUNDUP(COLUMNS($G:EI)/3,0)))","v":25},null,null,{"$f":"IF(EL$7=0,0,INDEX(Price_List,ROUNDUP(COLUMNS($G:EL)/3,0)))","v":12},null,null,{"$f":"IF(EO$7=0,0,INDEX(Price_List,ROUNDUP(COLUMNS($G:EO)/3,0)))","v":12},null,null,{"$f":"IF(ER$7=0,0,INDEX(Price_List,ROUNDUP(COLUMNS($G:ER)/3,0)))","v":12},null,null,"เงินเชื่อ","เงินสด"]
[null,null,null,null,null,"คงเหลือ(ตามบัญชี)",{"$f":"IF(G$7=0,0,INDEX(INDIRECT(Order_Rng),ROUNDUP(COLUMNS($G:G)/3,0)))","v":0},null,null,{"$f":"IF(J$7=0,0,INDEX(INDIRECT(Order_Rng),ROUNDUP(COLUMNS($G:J)/3,0)))","v":0},null,null,{"$f":"IF(M$7=0,0,INDEX(INDIRECT(Order_Rng),ROUNDUP(COLUMNS($G:M)/3,0)))","v":0},null,null,{"$f":"IF(P$7=0,0,INDEX(INDIRECT(Order_Rng),ROUNDUP(COLUMNS($G:P)/3,0)))","v":0},null,null,{"$f":"IF(S$7=0,0,INDEX(INDIRECT(Order_Rng),ROUNDUP(COLUMNS($G:S)/3,0)))","v":0},null,null,{"$f":"IF(V$7=0,0,INDEX(INDIRECT(Order_Rng),ROUNDUP(COLUMNS($G:V)/3,0)))","v":0},null,null,{"$f":"IF(Y$7=0,0,INDEX(INDIRECT(Order_Rng),ROUNDUP(COLUMNS($G:Y)/3,0)))","v":0},null,null,{"$f":"IF(AB$7=0,0,INDEX(INDIRECT(Order_Rng),ROUNDUP(COLUMNS($G:AB)/3,0)))","v":0},null,null,{"$f":"IF(AE$7=0,0,INDEX(INDIRECT(Order_Rng),ROUNDUP(COLUMNS($G:AE)/3,0)))","v":0},null,null,{"$f":"IF(AH$7=0,0,INDEX(INDIRECT(Order_Rng),ROUNDUP(COLUMNS($G:AH)/3,0)))","v":0},null,null,{"$f":"IF(AK$7=0,0,INDEX(INDIRECT(Order_Rng),ROUNDUP(COLUMNS($G:AK)/3,0)))","v":0},null,null,{"$f":"IF(AN$7=0,0,INDEX(INDIRECT(Order_Rng),ROUNDUP(COLUMNS($G:AN)/3,0)))","v":0},null,null,{"$f":"IF(AQ$7=0,0,INDEX(INDIRECT(Order_Rng),ROUNDUP(COLUMNS($G:AQ)/3,0)))","v":0},null,null,{"$f":"IF(AT$7=0,0,INDEX(INDIRECT(Order_Rng),ROUNDUP(COLUMNS($G:AT)/3,0)))","v":0},null,null,{"$f":"IF(AW$7=0,0,INDEX(INDIRECT(Order_Rng),ROUNDUP(COLUMNS($G:AW)/3,0)))","v":0},null,null,{"$f":"IF(AZ$7=0,0,INDEX(INDIRECT(Order_Rng),ROUNDUP(COLUMNS($G:AZ)/3,0)))","v":0},null,null,{"$f":"IF(BC$7=0,0,INDEX(INDIRECT(Order_Rng),ROUNDUP(COLUMNS($G:BC)/3,0)))","v":0},null,null,{"$f":"IF(BF$7=0,0,INDEX(INDIRECT(Order_Rng),ROUNDUP(COLUMNS($G:BF)/3,0)))","v":0},null,null,{"$f":"IF(BI$7=0,0,INDEX(INDIRECT(Order_Rng),ROUNDUP(COLUMNS($G:BI)/3,0)))","v":0},null,null,{"$f":"IF(BL$7=0,0,INDEX(INDIRECT(Order_Rng),ROUNDUP(COLUMNS($G:BL)/3,0)))","v":0},null,null,{"$f":"IF(BO$7=0,0,INDEX(INDIRECT(Order_Rng),ROUNDUP(COLUMNS($G:BO)/3,0)))","v":0},null,null,{"$f":"IF(BR$7=0,0,INDEX(INDIRECT(Order_Rng),ROUNDUP(COLUMNS($G:BR)/3,0)))","v":0},null,null,{"$f":"IF(BU$7=0,0,INDEX(INDIRECT(Order_Rng),ROUNDUP(COLUMNS($G:BU)/3,0)))","v":0},null,null,{"$f":"IF(BX$7=0,0,INDEX(INDIRECT(Order_Rng),ROUNDUP(COLUMNS($G:BX)/3,0)))","v":0},null,null,{"$f":"IF(CA$7=0,0,INDEX(INDIRECT(Order_Rng),ROUNDUP(COLUMNS($G:CA)/3,0)))","v":0},null,null,{"$f":"IF(CD$7=0,0,INDEX(INDIRECT(Order_Rng),ROUNDUP(COLUMNS($G:CD)/3,0)))","v":0},null,null,{"$f":"IF(CG$7=0,0,INDEX(INDIRECT(Order_Rng),ROUNDUP(COLUMNS($G:CG)/3,0)))","v":0},null,null,{"$f":"IF(CJ$7=0,0,INDEX(INDIRECT(Order_Rng),ROUNDUP(COLUMNS($G:CJ)/3,0)))","v":0},null,null,{"$f":"IF(CM$7=0,0,INDEX(INDIRECT(Order_Rng),ROUNDUP(COLUMNS($G:CM)/3,0)))","v":0},null,null,{"$f":"IF(CP$7=0,0,INDEX(INDIRECT(Order_Rng),ROUNDUP(COLUMNS($G:CP)/3,0)))","v":0},null,null,{"$f":"IF(CS$7=0,0,INDEX(INDIRECT(Order_Rng),ROUNDUP(COLUMNS($G:CS)/3,0)))","v":0},null,null,{"$f":"IF(CV$7=0,0,INDEX(INDIRECT(Order_Rng),ROUNDUP(COLUMNS($G:CV)/3,0)))","v":0},null,null,{"$f":"IF(CY$7=0,0,INDEX(INDIRECT(Order_Rng),ROUNDUP(COLUMNS($G:CY)/3,0)))","v":0},null,null,{"$f":"IF(DB$7=0,0,INDEX(INDIRECT(Order_Rng),ROUNDUP(COLUMNS($G:DB)/3,0)))","v":0},null,null,{"$f":"IF(DE$7=0,0,INDEX(INDIRECT(Order_Rng),ROUNDUP(COLUMNS($G:DE)/3,0)))","v":0},null,null,{"$f":"IF(DH$7=0,0,INDEX(INDIRECT(Order_Rng),ROUNDUP(COLUMNS($G:DH)/3,0)))","v":0},null,null,{"$f":"IF(DK$7=0,0,INDEX(INDIRECT(Order_Rng),ROUNDUP(COLUMNS($G:DK)/3,0)))","v":0},null,null,{"$f":"IF(DN$7=0,0,INDEX(INDIRECT(Order_Rng),ROUNDUP(COLUMNS($G:DN)/3,0)))","v":0},null,null,{"$f":"IF(DQ$7=0,0,INDEX(INDIRECT(Order_Rng),ROUNDUP(COLUMNS($G:DQ)/3,0)))","v":0},null,null,{"$f":"IF(DT$7=0,0,INDEX(INDIRECT(Order_Rng),ROUNDUP(COLUMNS($G:DT)/3,0)))","v":0},null,null,{"$f":"IF(DW$7=0,0,INDEX(INDIRECT(Order_Rng),ROUNDUP(COLUMNS($G:DW)/3,0)))","v":0},null,null,{"$f":"IF(DZ$7=0,0,INDEX(INDIRECT(Order_Rng),ROUNDUP(COLUMNS($G:DZ)/3,0)))","v":0},null,null,{"$f":"IF(EC$7=0,0,INDEX(INDIRECT(Order_Rng),ROUNDUP(COLUMNS($G:EC)/3,0)))","v":0},null,null,{"$f":"IF(EF$7=0,0,INDEX(INDIRECT(Order_Rng),ROUNDUP(COLUMNS($G:EF)/3,0)))","v":0},null,null,{"$f":"IF(EI$7=0,0,INDEX(INDIRECT(Order_Rng),ROUNDUP(COLUMNS($G:EI)/3,0)))","v":0},null,null,{"$f":"IF(EL$7=0,0,INDEX(INDIRECT(Order_Rng),ROUNDUP(COLUMNS($G:EL)/3,0)))","v":0},null,null,{"$f":"IF(EO$7=0,0,INDEX(INDIRECT(Order_Rng),ROUNDUP(COLUMNS($G:EO)/3,0)))","v":0},null,null,{"$f":"IF(ER$7=0,0,INDEX(INDIRECT(Order_Rng),ROUNDUP(COLUMNS($G:ER)/3,0)))","v":0}]
[{"$f":"IF(OR($B10=\"\",COUNTIF($B$10:$B10,$B10)>1,LEN(TRIM($B10))<>10,ISNUMBER(--MID(TRIM($B10),5,1))),\"-\",MAX(COUNT($A$9:$A9)+1))","v":"-"}]
[{"$f":"IF(OR($B11=\"\",COUNTIF($B$10:$B11,$B11)>1,LEN(TRIM($B11))<>10,ISNUMBER(--MID(TRIM($B11),5,1))),\"-\",MAX(COUNT($A$9:$A10)+1))","v":"-"},null,null,null,{"$f":"IF(D11=\"\",\"\",D11-D10)","v":""}]
[{"$f":"IF(OR($B12=\"\",COUNTIF($B$10:$B12,$B12)>1,LEN(TRIM($B12))<>10,ISNUMBER(--MID(TRIM($B12),5,1))),\"-\",MAX(COUNT($A$9:$A11)+1))","v":"-"},null,null,null,{"$f":"IF(D12=\"\",\"\",D12-D11)","v":""}]
[{"$f":"IF(OR($B13=\"\",COUNTIF($B$10:$B13,$B13)>1,LEN(TRIM($B13))<>10,ISNUMBER(--MID(TRIM($B13),5,1))),\"-\",MAX(COUNT($A$9:$A12)+1))","v":"-"},null,null,null,""]
[{"$f":"IF(OR($B14=\"\",COUNTIF($B$10:$B14,$B14)>1,LEN(TRIM($B14))<>10,ISNUMBER(--MID(TRIM($B14),5,1))),\"-\",MAX(COUNT($A$9:$A13)+1))","v":"-"},null,null,null,""]
[{"$f":"IF(OR($B15=\"\",COUNTIF($B$10:$B15,$B15)>1,LEN(TRIM($B15))<>10,ISNUMBER(--MID(TRIM($B15),5,1))),\"-\",MAX(COUNT($A$9:$A14)+1))","v":"-"},null,null,null,""]
[{"$f":"IF(OR($B16=\"\",COUNTIF($B$10:$B16,$B16)>1,LEN(TRIM($B16))<>10,ISNUMBER(--MID(TRIM($B16),5,1))),\"-\",MAX(COUNT($A$9:$A15)+1))","v":"-"},null,null,null,""]
[{"$f":"IF(OR($B17=\"\",COUNTIF($B$10:$B17,$B17)>1,LEN(TRIM($B17))<>10,ISNUMBER(--MID(TRIM($B17),5,1))),\"-\",MAX(COUNT($A$9:$A16)+1))","v":"-"},null,null,null,""]
[{"$f":"IF(OR($B18=\"\",COUNTIF($B$10:$B18,$B18)>1,LEN(TRIM($B18))<>10,ISNUMBER(--MID(TRIM($B18),5,1))),\"-\",MAX(COUNT($A$9:$A17)+1))","v":"-"},null,null,null,""]
[{"$f":"IF(OR($B19=\"\",COUNTIF($B$10:$B19,$B19)>1,LEN(TRIM($B19))<>10,ISNUMBER(--MID(TRIM($B19),5,1))),\"-\",MAX(COUNT($A$9:$A18)+1))","v":"-"},null,null,null,""]
[{"$f":"IF(OR($B20=\"\",COUNTIF($B$10:$B20,$B20)>1,LEN(TRIM($B20))<>10,ISNUMBER(--MID(TRIM($B20),5,1))),\"-\",MAX(COUNT($A$9:$A19)+1))","v":"-"},null,null,null,""]
[{"$f":"IF(OR($B21=\"\",COUNTIF($B$10:$B21,$B21)>1,LEN(TRIM($B21))<>10,ISNUMBER(--MID(TRIM($B21),5,1))),\"-\",MAX(COUNT($A$9:$A20)+1))","v":"-"},null,null,null,""]
[{"$f":"IF(OR($B22=\"\",COUNTIF($B$10:$B22,$B22)>1,LEN(TRIM($B22))<>10,ISNUMBER(--MID(TRIM($B22),5,1))),\"-\",MAX(COUNT($A$9:$A21)+1))","v":"-"},null,null,null,""]
[{"$f":"IF(OR($B23=\"\",COUNTIF($B$10:$B23,$B23)>1,LEN(TRIM($B23))<>10,ISNUMBER(--MID(TRIM($B23),5,1))),\"-\",MAX(COUNT($A$9:$A22)+1))","v":"-"},null,null,null,""]
[{"$f":"IF(OR($B24=\"\",COUNTIF($B$10:$B24,$B24)>1,LEN(TRIM($B24))<>10,ISNUMBER(--MID(TRIM($B24),5,1))),\"-\",MAX(COUNT($A$9:$A23)+1))","v":"-"},null,null,null,""]
[{"$f":"IF(OR($B25=\"\",COUNTIF($B$10:$B25,$B25)>1,LEN(TRIM($B25))<>10,ISNUMBER(--MID(TRIM($B25),5,1))),\"-\",MAX(COUNT($A$9:$A24)+1))","v":"-"},null,null,null,""]
[{"$f":"IF(OR($B26=\"\",COUNTIF($B$10:$B26,$B26)>1,LEN(TRIM($B26))<>10,ISNUMBER(--MID(TRIM($B26),5,1))),\"-\",MAX(COUNT($A$9:$A25)+1))","v":"-"},null,null,null,""]
[{"$f":"IF(OR($B27=\"\",COUNTIF($B$10:$B27,$B27)>1,LEN(TRIM($B27))<>10,ISNUMBER(--MID(TRIM($B27),5,1))),\"-\",MAX(COUNT($A$9:$A26)+1))","v":"-"},null,null,null,""]
[{"$f":"IF(OR($B28=\"\",COUNTIF($B$10:$B28,$B28)>1,LEN(TRIM($B28))<>10,ISNUMBER(--MID(TRIM($B28),5,1))),\"-\",MAX(COUNT($A$9:$A27)+1))","v":"-"},null,null,null,""]
[{"$f":"IF(OR($B29=\"\",COUNTIF($B$10:$B29,$B29)>1,LEN(TRIM($B29))<>10,ISNUMBER(--MID(TRIM($B29),5,1))),\"-\",MAX(COUNT($A$9:$A28)+1))","v":"-"},null,null,null,""]
[{"$f":"IF(OR($B30=\"\",COUNTIF($B$10:$B30,$B30)>1,LEN(TRIM($B30))<>10,ISNUMBER(--MID(TRIM($B30),5,1))),\"-\",MAX(COUNT($A$9:$A29)+1))","v":"-"},null,null,null,""]
[{"$f":"IF(OR($B31=\"\",COUNTIF($B$10:$B31,$B31)>1,LEN(TRIM($B31))<>10,ISNUMBER(--MID(TRIM($B31),5,1))),\"-\",MAX(COUNT($A$9:$A30)+1))","v":"-"},null,null,null,""]
[{"$f":"IF(OR($B32=\"\",COUNTIF($B$10:$B32,$B32)>1,LEN(TRIM($B32))<>10,ISNUMBER(--MID(TRIM($B32),5,1))),\"-\",MAX(COUNT($A$9:$A31)+1))","v":"-"},null,null,null,""]
[{"$f":"IF(OR($B33=\"\",COUNTIF($B$10:$B33,$B33)>1,LEN(TRIM($B33))<>10,ISNUMBER(--MID(TRIM($B33),5,1))),\"-\",MAX(COUNT($A$9:$A32)+1))","v":"-"},null,null,null,""]
[{"$f":"IF(OR($B34=\"\",COUNTIF($B$10:$B34,$B34)>1,LEN(TRIM($B34))<>10,ISNUMBER(--MID(TRIM($B34),5,1))),\"-\",MAX(COUNT($A$9:$A33)+1))","v":"-"},null,null,null,""]
[{"$f":"IF(OR($B35=\"\",COUNTIF($B$10:$B35,$B35)>1,LEN(TRIM($B35))<>10,ISNUMBER(--MID(TRIM($B35),5,1))),\"-\",MAX(COUNT($A$9:$A34)+1))","v":"-"},null,null,null,""]
[{"$f":"IF(OR($B36=\"\",COUNTIF($B$10:$B36,$B36)>1,LEN(TRIM($B36))<>10,ISNUMBER(--MID(TRIM($B36),5,1))),\"-\",MAX(COUNT($A$9:$A35)+1))","v":"-"},null,null,null,""]
[{"$f":"IF(OR($B37=\"\",COUNTIF($B$10:$B37,$B37)>1,LEN(TRIM($B37))<>10,ISNUMBER(--MID(TRIM($B37),5,1))),\"-\",MAX(COUNT($A$9:$A36)+1))","v":"-"},null,null,null,""]
[{"$f":"IF(OR($B38=\"\",COUNTIF($B$10:$B38,$B38)>1,LEN(TRIM($B38))<>10,ISNUMBER(--MID(TRIM($B38),5,1))),\"-\",MAX(COUNT($A$9:$A37)+1))","v":"-"},null,null,null,""]
[{"$f":"IF(OR($B39=\"\",COUNTIF($B$10:$B39,$B39)>1,LEN(TRIM($B39))<>10,ISNUMBER(--MID(TRIM($B39),5,1))),\"-\",MAX(COUNT($A$9:$A38)+1))","v":"-"},null,null,null,""]
[{"$f":"IF(OR($B40=\"\",COUNTIF($B$10:$B40,$B40)>1,LEN(TRIM($B40))<>10,ISNUMBER(--MID(TRIM($B40),5,1))),\"-\",MAX(COUNT($A$9:$A39)+1))","v":"-"},null,null,null,""]
[{"$f":"IF(OR($B41=\"\",COUNTIF($B$10:$B41,$B41)>1,LEN(TRIM($B41))<>10,ISNUMBER(--MID(TRIM($B41),5,1))),\"-\",MAX(COUNT($A$9:$A40)+1))","v":"-"},null,null,null,""]
[{"$f":"IF(OR($B42=\"\",COUNTIF($B$10:$B42,$B42)>1,LEN(TRIM($B42))<>10,ISNUMBER(--MID(TRIM($B42),5,1))),\"-\",MAX(COUNT($A$9:$A41)+1))","v":"-"},null,null,null,""]
[{"$f":"IF(OR($B43=\"\",COUNTIF($B$10:$B43,$B43)>1,LEN(TRIM($B43))<>10,ISNUMBER(--MID(TRIM($B43),5,1))),\"-\",MAX(COUNT($A$9:$A42)+1))","v":"-"},null,null,null,""]
[{"$f":"IF(OR($B44=\"\",COUNTIF($B$10:$B44,$B44)>1,LEN(TRIM($B44))<>10,ISNUMBER(--MID(TRIM($B44),5,1))),\"-\",MAX(COUNT($A$9:$A43)+1))","v":"-"},null,null,null,""]
[{"$f":"IF(OR($B45=\"\",COUNTIF($B$10:$B45,$B45)>1,LEN(TRIM($B45))<>10,ISNUMBER(--MID(TRIM($B45),5,1))),\"-\",MAX(COUNT($A$9:$A44)+1))","v":"-"},null,null,null,""]
[{"$f":"IF(OR($B46=\"\",COUNTIF($B$10:$B46,$B46)>1,LEN(TRIM($B46))<>10,ISNUMBER(--MID(TRIM($B46),5,1))),\"-\",MAX(COUNT($A$9:$A45)+1))","v":"-"},null,null,null,""]
[{"$f":"IF(OR($B47=\"\",COUNTIF($B$10:$B47,$B47)>1,LEN(TRIM($B47))<>10,ISNUMBER(--MID(TRIM($B47),5,1))),\"-\",MAX(COUNT($A$9:$A46)+1))","v":"-"},null,null,null,""]
[{"$f":"IF(OR($B48=\"\",COUNTIF($B$10:$B48,$B48)>1,LEN(TRIM($B48))<>10,ISNUMBER(--MID(TRIM($B48),5,1))),\"-\",MAX(COUNT($A$9:$A47)+1))","v":"-"},null,null,null,""]
[{"$f":"IF(OR($B49=\"\",COUNTIF($B$10:$B49,$B49)>1,LEN(TRIM($B49))<>10,ISNUMBER(--MID(TRIM($B49),5,1))),\"-\",MAX(COUNT($A$9:$A48)+1))","v":"-"},null,null,null,""]
[{"$f":"IF(OR($B50=\"\",COUNTIF($B$10:$B50,$B50)>1,LEN(TRIM($B50))<>10,ISNUMBER(--MID(TRIM($B50),5,1))),\"-\",MAX(COUNT($A$9:$A49)+1))","v":"-"},null,null,null,""]
[{"$f":"IF(OR($B51=\"\",COUNTIF($B$10:$B51,$B51)>1,LEN(TRIM($B51))<>10,ISNUMBER(--MID(TRIM($B51),5,1))),\"-\",MAX(COUNT($A$9:$A50)+1))","v":"-"},null,null,null,""]
[{"$f":"IF(OR($B52=\"\",COUNTIF($B$10:$B52,$B52)>1,LEN(TRIM($B52))<>10,ISNUMBER(--MID(TRIM($B52),5,1))),\"-\",MAX(COUNT($A$9:$A51)+1))","v":"-"},null,null,null,""]
[{"$f":"IF(OR($B53=\"\",COUNTIF($B$10:$B53,$B53)>1,LEN(TRIM($B53))<>10,ISNUMBER(--MID(TRIM($B53),5,1))),\"-\",MAX(COUNT($A$9:$A52)+1))","v":"-"},null,null,null,""]
[{"$f":"IF(OR($B54=\"\",COUNTIF($B$10:$B54,$B54)>1,LEN(TRIM($B54))<>10,ISNUMBER(--MID(TRIM($B54),5,1))),\"-\",MAX(COUNT($A$9:$A53)+1))","v":"-"},null,null,null,""]
[{"$f":"IF(OR($B55=\"\",COUNTIF($B$10:$B55,$B55)>1,LEN(TRIM($B55))<>10,ISNUMBER(--MID(TRIM($B55),5,1))),\"-\",MAX(COUNT($A$9:$A54)+1))","v":"-"},null,null,null,""]
[{"$f":"IF(OR($B56=\"\",COUNTIF($B$10:$B56,$B56)>1,LEN(TRIM($B56))<>10,ISNUMBER(--MID(TRIM($B56),5,1))),\"-\",MAX(COUNT($A$9:$A55)+1))","v":"-"},null,null,null,""]
[{"$f":"IF(OR($B57=\"\",COUNTIF($B$10:$B57,$B57)>1,LEN(TRIM($B57))<>10,ISNUMBER(--MID(TRIM($B57),5,1))),\"-\",MAX(COUNT($A$9:$A56)+1))","v":"-"},null,null,null,""]
[{"$f":"IF(OR($B58=\"\",COUNTIF($B$10:$B58,$B58)>1,LEN(TRIM($B58))<>10,ISNUMBER(--MID(TRIM($B58),5,1))),\"-\",MAX(COUNT($A$9:$A57)+1))","v":"-"},null,null,null,""]
[{"$f":"IF(OR($B59=\"\",COUNTIF($B$10:$B59,$B59)>1,LEN(TRIM($B59))<>10,ISNUMBER(--MID(TRIM($B59),5,1))),\"-\",MAX(COUNT($A$9:$A58)+1))","v":"-"},null,null,null,""]
[{"$f":"IF(OR($B60=\"\",COUNTIF($B$10:$B60,$B60)>1,LEN(TRIM($B60))<>10,ISNUMBER(--MID(TRIM($B60),5,1))),\"-\",MAX(COUNT($A$9:$A59)+1))","v":"-"},null,null,null,""]
[{"$f":"IF(OR($B61=\"\",COUNTIF($B$10:$B61,$B61)>1,LEN(TRIM($B61))<>10,ISNUMBER(--MID(TRIM($B61),5,1))),\"-\",MAX(COUNT($A$9:$A60)+1))","v":"-"},null,null,null,""]
[{"$f":"IF(OR($B62=\"\",COUNTIF($B$10:$B62,$B62)>1,LEN(TRIM($B62))<>10,ISNUMBER(--MID(TRIM($B62),5,1))),\"-\",MAX(COUNT($A$9:$A61)+1))","v":"-"},null,null,null,""]
[{"$f":"IF(OR($B63=\"\",COUNTIF($B$10:$B63,$B63)>1,LEN(TRIM($B63))<>10,ISNUMBER(--MID(TRIM($B63),5,1))),\"-\",MAX(COUNT($A$9:$A62)+1))","v":"-"},null,null,null,""]
[{"$f":"IF(OR($B64=\"\",COUNTIF($B$10:$B64,$B64)>1,LEN(TRIM($B64))<>10,ISNUMBER(--MID(TRIM($B64),5,1))),\"-\",MAX(COUNT($A$9:$A63)+1))","v":"-"},null,null,null,""]
[{"$f":"IF(OR($B65=\"\",COUNTIF($B$10:$B65,$B65)>1,LEN(TRIM($B65))<>10,ISNUMBER(--MID(TRIM($B65),5,1))),\"-\",MAX(COUNT($A$9:$A64)+1))","v":"-"},null,null,null,""]
[{"$f":"IF(OR($B66=\"\",COUNTIF($B$10:$B66,$B66)>1,LEN(TRIM($B66))<>10,ISNUMBER(--MID(TRIM($B66),5,1))),\"-\",MAX(COUNT($A$9:$A65)+1))","v":"-"},null,null,null,""]
[{"$f":"IF(OR($B67=\"\",COUNTIF($B$10:$B67,$B67)>1,LEN(TRIM($B67))<>10,ISNUMBER(--MID(TRIM($B67),5,1))),\"-\",MAX(COUNT($A$9:$A66)+1))","v":"-"},null,null,null,""]
[{"$f":"IF(OR($B68=\"\",COUNTIF($B$10:$B68,$B68)>1,LEN(TRIM($B68))<>10,ISNUMBER(--MID(TRIM($B68),5,1))),\"-\",MAX(COUNT($A$9:$A67)+1))","v":"-"},null,null,null,""]
[{"$f":"IF(OR($B69=\"\",COUNTIF($B$10:$B69,$B69)>1,LEN(TRIM($B69))<>10,ISNUMBER(--MID(TRIM($B69),5,1))),\"-\",MAX(COUNT($A$9:$A68)+1))","v":"-"},null,null,null,""]
[{"$f":"IF(OR($B70=\"\",COUNTIF($B$10:$B70,$B70)>1,LEN(TRIM($B70))<>10,ISNUMBER(--MID(TRIM($B70),5,1))),\"-\",MAX(COUNT($A$9:$A69)+1))","v":"-"},null,null,null,""]
[{"$f":"IF(OR($B71=\"\",COUNTIF($B$10:$B71,$B71)>1,LEN(TRIM($B71))<>10,ISNUMBER(--MID(TRIM($B71),5,1))),\"-\",MAX(COUNT($A$9:$A70)+1))","v":"-"},null,null,null,""]
[{"$f":"IF(OR($B72=\"\",COUNTIF($B$10:$B72,$B72)>1,LEN(TRIM($B72))<>10,ISNUMBER(--MID(TRIM($B72),5,1))),\"-\",MAX(COUNT($A$9:$A71)+1))","v":"-"},null,null,null,""]
[{"$f":"IF(OR($B73=\"\",COUNTIF($B$10:$B73,$B73)>1,LEN(TRIM($B73))<>10,ISNUMBER(--MID(TRIM($B73),5,1))),\"-\",MAX(COUNT($A$9:$A72)+1))","v":"-"},null,null,null,""]
[{"$f":"IF(OR($B74=\"\",COUNTIF($B$10:$B74,$B74)>1,LEN(TRIM($B74))<>10,ISNUMBER(--MID(TRIM($B74),5,1))),\"-\",MAX(COUNT($A$9:$A73)+1))","v":"-"},null,null,null,""]
[{"$f":"IF(OR($B75=\"\",COUNTIF($B$10:$B75,$B75)>1,LEN(TRIM($B75))<>10,ISNUMBER(--MID(TRIM($B75),5,1))),\"-\",MAX(COUNT($A$9:$A74)+1))","v":"-"},null,null,null,""]
[{"$f":"IF(OR($B76=\"\",COUNTIF($B$10:$B76,$B76)>1,LEN(TRIM($B76))<>10,ISNUMBER(--MID(TRIM($B76),5,1))),\"-\",MAX(COUNT($A$9:$A75)+1))","v":"-"},null,null,null,{"$f":"IF(D76=\"\",\"\",D76-D75)","v":""}]
[{"$f":"IF(OR($B77=\"\",COUNTIF($B$10:$B77,$B77)>1,LEN(TRIM($B77))<>10,ISNUMBER(--MID(TRIM($B77),5,1))),\"-\",MAX(COUNT($A$9:$A76)+1))","v":"-"},null,null,null,""]
[{"$f":"IF(OR($B78=\"\",COUNTIF($B$10:$B78,$B78)>1,LEN(TRIM($B78))<>10,ISNUMBER(--MID(TRIM($B78),5,1))),\"-\",MAX(COUNT($A$9:$A77)+1))","v":"-"},null,null,null,""]
[{"$f":"IF(OR($B79=\"\",COUNTIF($B$10:$B79,$B79)>1,LEN(TRIM($B79))<>10,ISNUMBER(--MID(TRIM($B79),5,1))),\"-\",MAX(COUNT($A$9:$A78)+1))","v":"-"},null,null,null,""]
["รวมของขาย|ของเสีย|เหลือบนเชลฟ์",null,null,null,null,null,{"$f":"SUM(G10:G79)","v":0},0,0,{"$f":"SUM(J10:J79)","v":0},0,0,0,0,0,0,0,0,0,0,0,0,0,0,0,0,0,0,0,0,0,0,0,0,0,0,0,0,0,0,0,0,0,0,0,0,0,0,0,0,0,0,0,0,0,0,0,0,0,0,0,0,0,0,0,0,0,0,0,0,0,0,0,{"$f":"SUM(BV10:BV79)","v":0},0,0,0,0,0,0,0,0,0,0,0,0,0,0,0,0,0,0,0,0,0,0,0,0,0,0,0,0,0,0,0,0,0,0,0,0,0,0,0,0,0,0,0,0,0,0,0,0,0,0,0,0,0,0,0,0,0,0,0,0,0,{"$f":"SUM(EF10:EF79)","v":0},0,0,{"$f":"SUM(EI10:EI79)","v":0},0,0,0,0,0,{"$f":"SUM(EO10:EO79)","v":0},0,0,0,0,0,"รวมเงินเชื่อ","รวมเงินสด","ภาษี","รวมยอดขาย"]
["ของเหลือ",null,null,null,null,null,{"$f":"G80+H80-G9","v":0},null,null,{"$f":"J80+K80-J9","v":0},null,null,{"$f":"M80+N80-M9","v":0},null,null,{"$f":"P80+Q80-P9","v":0},null,null,{"$f":"S80+T80-S9","v":0},null,null,{"$f":"V80+W80-V9","v":0},null,null,{"$f":"Y80+Z80-Y9","v":0},null,null,{"$f":"AB80+AC80-AB9","v":0},null,null,{"$f":"AE80+AF80-AE9","v":0},null,null,{"$f":"AH80+AI80-AH9","v":0},null,null,{"$f":"AK80+AL80-AK9","v":0},null,null,{"$f":"AN80+AO80-AN9","v":0},null,null,{"$f":"AQ80+AR80-AQ9","v":0},null,null,{"$f":"AT80+AU80-AT9","v":0},null,null,{"$f":"AW80+AX80-AW9","v":0},null,null,{"$f":"AZ80+BA80-AZ9","v":0},null,null,{"$f":"BC80+BD80-BC9","v":0},null,null,{"$f":"BF80+BG80-BF9","v":0},null,null,{"$f":"BI80+BJ80-BI9","v":0},null,null,{"$f":"BL80+BM80-BL9","v":0},null,null,{"$f":"BO80+BP80-BO9","v":0},null,null,{"$f":"BR80+BS80-BR9","v":0},null,null,{"$f":"BU80+BV80-BU9","v":0},null,null,{"$f":"BX80+BY80-BX9","v":0},null,null,{"$f":"CA80+CB80-CA9","v":0},null,null,{"$f":"CD80+CE80-CD9","v":0},null,null,{"$f":"CG80+CH80-CG9","v":0},null,null,{"$f":"CJ80+CK80-CJ9","v":0},null,null,{"$f":"CM80+CN80-CM9","v":0},null,null,{"$f":"CP80+CQ80-CP9","v":0},null,null,{"$f":"CS80+CT80-CS9","v":0},null,null,{"$f":"CV80+CW80-CV9","v":0},null,null,{"$f":"CY80+CZ80-CY9","v":0},null,null,{"$f":"DB80+DC80-DB9","v":0},null,null,{"$f":"DE80+DF80-DE9","v":0},null,null,{"$f":"DH80+DI80-DH9","v":0},null,null,{"$f":"DK80+DL80-DK9","v":0},null,null,{"$f":"DN80+DO80-DN9","v":0},null,null,{"$f":"DQ80+DR80-DQ9","v":0},null,null,{"$f":"DT80+DU80-DT9","v":0},null,null,{"$f":"DW80+DX80-DW9","v":0},null,null,{"$f":"DZ80+EA80-DZ9","v":0},null,null,{"$f":"EC80+ED80-EC9","v":0},null,null,{"$f":"EF80+EG80-EF9","v":0},null,null,{"$f":"EI80+EJ80-EI9","v":0},null,null,{"$f":"EL80+EM80-EL9","v":0},null,null,{"$f":"EO80+EP80-EO9","v":0},null,null,{"$f":"ER80+ES80-ER9","v":0},null,null,{"$f":"SUM(EU10:EU79)","v":0},{"$f":"SUM(EV10:EV79)","v":0},{"$f":"SUM(EW10:EW79)","v":0},{"$f":"SUM(EX10:EX79)","v":0}]
["เฉลี่ย",null,null,"เหลือ/เสีย(จริง)",null,null,{"$f":"INDIRECT(\"F\"&ROW($G$87)+ROUNDUP(COLUMNS($G:G)/3,0))","v":0},{"$f":"INDIRECT(\"G\"&ROW($G$87)+ROUNDUP(COLUMNS($G:H)/3,0))","v":0},null,{"$f":"INDIRECT(\"F\"&ROW($G$87)+ROUNDUP(COLUMNS($G:J)/3,0))","v":0},{"$f":"INDIRECT(\"G\"&ROW($G$87)+ROUNDUP(COLUMNS($G:K)/3,0))","v":0},null,{"$f":"INDIRECT(\"F\"&ROW($G$87)+ROUNDUP(COLUMNS($G:M)/3,0))","v":0},{"$f":"INDIRECT(\"G\"&ROW($G$87)+ROUNDUP(COLUMNS($G:N)/3,0))","v":0},null,{"$f":"INDIRECT(\"F\"&ROW($G$87)+ROUNDUP(COLUMNS($G:P)/3,0))","v":0},{"$f":"INDIRECT(\"G\"&ROW($G$87)+ROUNDUP(COLUMNS($G:Q)/3,0))","v":0},null,{"$f":"INDIRECT(\"F\"&ROW($G$87)+ROUNDUP(COLUMNS($G:S)/3,0))","v":0},{"$f":"INDIRECT(\"G\"&ROW($G$87)+ROUNDUP(COLUMNS($G:T)/3,0))","v":0},null,{"$f":"INDIRECT(\"F\"&ROW($G$87)+ROUNDUP(COLUMNS($G:V)/3,0))","v":0},{"$f":"INDIRECT(\"G\"&ROW($G$87)+ROUNDUP(COLUMNS($G:W)/3,0))","v":0},null,{"$f":"INDIRECT(\"F\"&ROW($G$87)+ROUNDUP(COLUMNS($G:Y)/3,0))","v":0},{"$f":"INDIRECT(\"G\"&ROW($G$87)+ROUNDUP(COLUMNS($G:Z)/3,0))","v":0},null,{"$f":"INDIRECT(\"F\"&ROW($G$87)+ROUNDUP(COLUMNS($G:AB)/3,0))","v":0},{"$f":"INDIRECT(\"G\"&ROW($G$87)+ROUNDUP(COLUMNS($G:AC)/3,0))","v":0},null,{"$f":"INDIRECT(\"F\"&ROW($G$87)+ROUNDUP(COLUMNS($G:AE)/3,0))","v":0},{"$f":"INDIRECT(\"G\"&ROW($G$87)+ROUNDUP(COLUMNS($G:AF)/3,0))","v":0},null,{"$f":"INDIRECT(\"F\"&ROW($G$87)+ROUNDUP(COLUMNS($G:AH)/3,0))","v":0},{"$f":"INDIRECT(\"G\"&ROW($G$87)+ROUNDUP(COLUMNS($G:AI)/3,0))","v":0},null,{"$f":"INDIRECT(\"F\"&ROW($G$87)+ROUNDUP(COLUMNS($G:AK)/3,0))","v":0},{"$f":"INDIRECT(\"G\"&ROW($G$87)+ROUNDUP(COLUMNS($G:AL)/3,0))","v":0},null,{"$f":"INDIRECT(\"F\"&ROW($G$87)+ROUNDUP(COLUMNS($G:AN)/3,0))","v":0},{"$f":"INDIRECT(\"G\"&ROW($G$87)+ROUNDUP(COLUMNS($G:AO)/3,0))","v":0},null,{"$f":"INDIRECT(\"F\"&ROW($G$87)+ROUNDUP(COLUMNS($G:AQ)/3,0))","v":0},{"$f":"INDIRECT(\"G\"&ROW($G$87)+ROUNDUP(COLUMNS($G:AR)/3,0))","v":0},null,{"$f":"INDIRECT(\"F\"&ROW($G$87)+ROUNDUP(COLUMNS($G:AT)/3,0))","v":0},{"$f":"INDIRECT(\"G\"&ROW($G$87)+ROUNDUP(COLUMNS($G:AU)/3,0))","v":0},null,{"$f":"INDIRECT(\"F\"&ROW($G$87)+ROUNDUP(COLUMNS($G:AW)/3,0))","v":0},{"$f":"INDIRECT(\"G\"&ROW($G$87)+ROUNDUP(COLUMNS($G:AX)/3,0))","v":0},null,{"$f":"INDIRECT(\"F\"&ROW($G$87)+ROUNDUP(COLUMNS($G:AZ)/3,0))","v":0},{"$f":"INDIRECT(\"G\"&ROW($G$87)+ROUNDUP(COLUMNS($G:BA)/3,0))","v":0},null,{"$f":"INDIRECT(\"F\"&ROW($G$87)+ROUNDUP(COLUMNS($G:BC)/3,0))","v":0},{"$f":"INDIRECT(\"G\"&ROW($G$87)+ROUNDUP(COLUMNS($G:BD)/3,0))","v":0},null,{"$f":"INDIRECT(\"F\"&ROW($G$87)+ROUNDUP(COLUMNS($G:BF)/3,0))","v":0},{"$f":"INDIRECT(\"G\"&ROW($G$87)+ROUNDUP(COLUMNS($G:BG)/3,0))","v":0},null,{"$f":"INDIRECT(\"F\"&ROW($G$87)+ROUNDUP(COLUMNS($G:BI)/3,0))","v":0},{"$f":"INDIRECT(\"G\"&ROW($G$87)+ROUNDUP(COLUMNS($G:BJ)/3,0))","v":0},null,{"$f":"INDIRECT(\"F\"&ROW($G$87)+ROUNDUP(COLUMNS($G:BL)/3,0))","v":0},{"$f":"INDIRECT(\"G\"&ROW($G$87)+ROUNDUP(COLUMNS($G:BM)/3,0))","v":0},null,{"$f":"INDIRECT(\"F\"&ROW($G$87)+ROUNDUP(COLUMNS($G:BO)/3,0))","v":0},{"$f":"INDIRECT(\"G\"&ROW($G$87)+ROUNDUP(COLUMNS($G:BP)/3,0))","v":0},null,{"$f":"INDIRECT(\"F\"&ROW($G$87)+ROUNDUP(COLUMNS($G:BR)/3,0))","v":0},{"$f":"INDIRECT(\"G\"&ROW($G$87)+ROUNDUP(COLUMNS($G:BS)/3,0))","v":0},null,{"$f":"INDIRECT(\"F\"&ROW($G$87)+ROUNDUP(COLUMNS($G:BU)/3,0))","v":0},{"$f":"INDIRECT(\"G\"&ROW($G$87)+ROUNDUP(COLUMNS($G:BV)/3,0))","v":0},null,{"$f":"INDIRECT(\"F\"&ROW($G$87)+ROUNDUP(COLUMNS($G:BX)/3,0))","v":0},{"$f":"INDIRECT(\"G\"&ROW($G$87)+ROUNDUP(COLUMNS($G:BY)/3,0))","v":0},null,{"$f":"INDIRECT(\"F\"&ROW($G$87)+ROUNDUP(COLUMNS($G:CA)/3,0))","v":0},{"$f":"INDIRECT(\"G\"&ROW($G$87)+ROUNDUP(COLUMNS($G:CB)/3,0))","v":0},null,{"$f":"INDIRECT(\"F\"&ROW($G$87)+ROUNDUP(COLUMNS($G:CD)/3,0))","v":0},{"$f":"INDIRECT(\"G\"&ROW($G$87)+ROUNDUP(COLUMNS($G:CE)/3,0))","v":0},null,{"$f":"INDIRECT(\"F\"&ROW($G$87)+ROUNDUP(COLUMNS($G:CG)/3,0))","v":0},{"$f":"INDIRECT(\"G\"&ROW($G$87)+ROUNDUP(COLUMNS($G:CH)/3,0))","v":0},null,{"$f":"INDIRECT(\"F\"&ROW($G$87)+ROUNDUP(COLUMNS($G:CJ)/3,0))","v":0},{"$f":"INDIRECT(\"G\"&ROW($G$87)+ROUNDUP(COLUMNS($G:CK)/3,0))","v":0},null,{"$f":"INDIRECT(\"F\"&ROW($G$87)+ROUNDUP(COLUMNS($G:CM)/3,0))","v":0},{"$f":"INDIRECT(\"G\"&ROW($G$87)+ROUNDUP(COLUMNS($G:CN)/3,0))","v":0},null,{"$f":"INDIRECT(\"F\"&ROW($G$87)+ROUNDUP(COLUMNS($G:CP)/3,0))","v":0},{"$f":"INDIRECT(\"G\"&ROW($G$87)+ROUNDUP(COLUMNS($G:CQ)/3,0))","v":0},null,{"$f":"INDIRECT(\"F\"&ROW($G$87)+ROUNDUP(COLUMNS($G:CS)/3,0))","v":0},{"$f":"INDIRECT(\"G\"&ROW($G$87)+ROUNDUP(COLUMNS($G:CT)/3,0))","v":0},null,{"$f":"INDIRECT(\"F\"&ROW($G$87)+ROUNDUP(COLUMNS($G:CV)/3,0))","v":0},{"$f":"INDIRECT(\"G\"&ROW($G$87)+ROUNDUP(COLUMNS($G:CW)/3,0))","v":0},null,{"$f":"INDIRECT(\"F\"&ROW($G$87)+ROUNDUP(COLUMNS($G:CY)/3,0))","v":0},{"$f":"INDIRECT(\"G\"&ROW($G$87)+ROUNDUP(COLUMNS($G:CZ)/3,0))","v":0},null,{"$f":"INDIRECT(\"F\"&ROW($G$87)+ROUNDUP(COLUMNS($G:DB)/3,0))","v":0},{"$f":"INDIRECT(\"G\"&ROW($G$87)+ROUNDUP(COLUMNS($G:DC)/3,0))","v":0},null,{"$f":"INDIRECT(\"F\"&ROW($G$87)+ROUNDUP(COLUMNS($G:DE)/3,0))","v":0},{"$f":"INDIRECT(\"G\"&ROW($G$87)+ROUNDUP(COLUMNS($G:DF)/3,0))","v":0},null,{"$f":"INDIRECT(\"F\"&ROW($G$87)+ROUNDUP(COLUMNS($G:DH)/3,0))","v":0},{"$f":"INDIRECT(\"G\"&ROW($G$87)+ROUNDUP(COLUMNS($G:DI)/3,0))","v":0},null,{"$f":"INDIRECT(\"F\"&ROW($G$87)+ROUNDUP(COLUMNS($G:DK)/3,0))","v":0},{"$f":"INDIRECT(\"G\"&ROW($G$87)+ROUNDUP(COLUMNS($G:DL)/3,0))","v":0},null,{"$f":"INDIRECT(\"F\"&ROW($G$87)+ROUNDUP(COLUMNS($G:DN)/3,0))","v":0},{"$f":"INDIRECT(\"G\"&ROW($G$87)+ROUNDUP(COLUMNS($G:DO)/3,0))","v":0},null,{"$f":"INDIRECT(\"F\"&ROW($G$87)+ROUNDUP(COLUMNS($G:DQ)/3,0))","v":0},{"$f":"INDIRECT(\"G\"&ROW($G$87)+ROUNDUP(COLUMNS($G:DR)/3,0))","v":0},null,{"$f":"INDIRECT(\"F\"&ROW($G$87)+ROUNDUP(COLUMNS($G:DT)/3,0))","v":0},{"$f":"INDIRECT(\"G\"&ROW($G$87)+ROUNDUP(COLUMNS($G:DU)/3,0))","v":0},null,{"$f":"INDIRECT(\"F\"&ROW($G$87)+ROUNDUP(COLUMNS($G:DW)/3,0))","v":0},{"$f":"INDIRECT(\"G\"&ROW($G$87)+ROUNDUP(COLUMNS($G:DX)/3,0))","v":0},null,{"$f":"INDIRECT(\"F\"&ROW($G$87)+ROUNDUP(COLUMNS($G:DZ)/3,0))","v":0},{"$f":"INDIRECT(\"G\"&ROW($G$87)+ROUNDUP(COLUMNS($G:EA)/3,0))","v":0},null,{"$f":"INDIRECT(\"F\"&ROW($G$87)+ROUNDUP(COLUMNS($G:EC)/3,0))","v":0},{"$f":"INDIRECT(\"G\"&ROW($G$87)+ROUNDUP(COLUMNS($G:ED)/3,0))","v":0},null,{"$f":"INDIRECT(\"F\"&ROW($G$87)+ROUNDUP(COLUMNS($G:EF)/3,0))","v":0},{"$f":"INDIRECT(\"G\"&ROW($G$87)+ROUNDUP(COLUMNS($G:EG)/3,0))","v":0},null,{"$f":"INDIRECT(\"F\"&ROW($G$87)+ROUNDUP(COLUMNS($G:EI)/3,0))","v":0},{"$f":"INDIRECT(\"G\"&ROW($G$87)+ROUNDUP(COLUMNS($G:EJ)/3,0))","v":0},null,{"$f":"INDIRECT(\"F\"&ROW($G$87)+ROUNDUP(COLUMNS($G:EL)/3,0))","v":0},{"$f":"INDIRECT(\"G\"&ROW($G$87)+ROUNDUP(COLUMNS($G:EM)/3,0))","v":0},null,{"$f":"INDIRECT(\"F\"&ROW($G$87)+ROUNDUP(COLUMNS($G:EO)/3,0))","v":0},{"$f":"INDIRECT(\"G\"&ROW($G$87)+ROUNDUP(COLUMNS($G:EP)/3,0))","v":0},null,{"$f":"INDIRECT(\"F\"&ROW($G$87)+ROUNDUP(COLUMNS($G:ER)/3,0))","v":0},{"$f":"INDIRECT(\"G\"&ROW($G$87)+ROUNDUP(COLUMNS($G:ES)/3,0))","v":0},null,{"$f":"EU81+EV81","v":0}]
["เวลากลับถึงสำนักงานเช็คของเสีย",null,null,{"$f":"D139","v":"00:00:00"},null,"ผลต่าง",{"$f":"G82+H82+G80-G9","v":0},null,null,{"$f":"J82+K82+J80-J9","v":0},null,null,{"$f":"M82+N82+M80-M9","v":0},null,null,{"$f":"P82+Q82+P80-P9","v":0},null,null,{"$f":"S82+T82+S80-S9","v":0},null,null,{"$f":"V82+W82+V80-V9","v":0},null,null,{"$f":"Y82+Z82+Y80-Y9","v":0},null,null,{"$f":"AB82+AC82+AB80-AB9","v":0},null,null,{"$f":"AE82+AF82+AE80-AE9","v":0},null,null,{"$f":"AH82+AI82+AH80-AH9","v":0},null,null,{"$f":"AK82+AL82+AK80-AK9","v":0},null,null,{"$f":"AN82+AO82+AN80-AN9","v":0},null,null,{"$f":"AQ82+AR82+AQ80-AQ9","v":0},null,null,{"$f":"AT82+AU82+AT80-AT9","v":0},null,null,{"$f":"AW82+AX82+AW80-AW9","v":0},null,null,{"$f":"AZ82+BA82+AZ80-AZ9","v":0},null,null,{"$f":"BC82+BD82+BC80-BC9","v":0},null,null,{"$f":"BF82+BG82+BF80-BF9","v":0},null,null,{"$f":"BI82+BJ82+BI80-BI9","v":0},null,null,{"$f":"BL82+BM82+BL80-BL9","v":0},null,null,{"$f":"BO82+BP82+BO80-BO9","v":0},null,null,{"$f":"BR82+BS82+BR80-BR9","v":0},null,null,{"$f":"BU82+BV82+BU80-BU9","v":0},null,null,{"$f":"BX82+BY82+BX80-BX9","v":0},null,null,{"$f":"CA82+CB82+CA80-CA9","v":0},null,null,{"$f":"CD82+CE82+CD80-CD9","v":0},null,null,{"$f":"CG82+CH82+CG80-CG9","v":0},null,null,{"$f":"CJ82+CK82+CJ80-CJ9","v":0},null,null,{"$f":"CM82+CN82+CM80-CM9","v":0},null,null,{"$f":"CP82+CQ82+CP80-CP9","v":0},null,null,{"$f":"CS82+CT82+CS80-CS9","v":0},null,null,{"$f":"CV82+CW82+CV80-CV9","v":0},null,null,{"$f":"CY82+CZ82+CY80-CY9","v":0},null,null,{"$f":"DB82+DC82+DB80-DB9","v":0},null,null,{"$f":"DE82+DF82+DE80-DE9","v":0},null,null,{"$f":"DH82+DI82+DH80-DH9","v":0},null,null,{"$f":"DK82+DL82+DK80-DK9","v":0},null,null,{"$f":"DN82+DO82+DN80-DN9","v":0},null,null,{"$f":"DQ82+DR82+DQ80-DQ9","v":0},null,null,{"$f":"DT82+DU82+DT80-DT9","v":0},null,null,{"$f":"DW82+DX82+DW80-DW9","v":0},null,null,{"$f":"DZ82+EA82+DZ80-DZ9","v":0},null,null,{"$f":"EC82+ED82+EC80-EC9","v":0},null,null,{"$f":"EF82+EG82+EF80-EF9","v":0},null,null,{"$f":"EI82+EJ82+EI80-EI9","v":0},null,null,{"$f":"EL82+EM82+EL80-EL9","v":0},null,null,{"$f":"EO82+EP82+EO80-EO9","v":0},null,null,{"$f":"ER82+ES82+ER80-ER9","v":0}]
["เป็นเงิน",null,null,null,null,null,{"$f":"G8*G83","v":0},null,null,{"$f":"J8*J83","v":0},null,null,{"$f":"M8*M83","v":0},null,null,{"$f":"P8*P83","v":0},null,null,{"$f":"S8*S83","v":0},null,null,{"$f":"V8*V83","v":0},null,null,{"$f":"Y8*Y83","v":0},null,null,{"$f":"AB8*AB83","v":0},null,null,{"$f":"AE8*AE83","v":0},null,null,{"$f":"AH8*AH83","v":0},null,null,{"$f":"AK8*AK83","v":0},null,null,{"$f":"AN8*AN83","v":0},null,null,{"$f":"AQ8*AQ83","v":0},null,null,{"$f":"AT8*AT83","v":0},null,null,{"$f":"AW8*AW83","v":0},null,null,{"$f":"AZ8*AZ83","v":0},null,null,{"$f":"BC8*BC83","v":0},null,null,{"$f":"BF8*BF83","v":0},null,null,{"$f":"BI8*BI83","v":0},null,null,{"$f":"BL8*BL83","v":0},null,null,{"$f":"BO8*BO83","v":0},null,null,{"$f":"BR8*BR83","v":0},null,null,{"$f":"BU8*BU83","v":0},null,null,{"$f":"BX8*BX83","v":0},null,null,{"$f":"CA8*CA83","v":0},null,null,{"$f":"CD8*CD83","v":0},null,null,{"$f":"CG8*CG83","v":0},null,null,{"$f":"CJ8*CJ83","v":0},null,null,{"$f":"CM8*CM83","v":0},null,null,{"$f":"CP8*CP83","v":0},null,null,{"$f":"CS8*CS83","v":0},null,null,{"$f":"CV8*CV83","v":0},null,null,{"$f":"CY8*CY83","v":0},null,null,{"$f":"DB8*DB83","v":0},null,null,{"$f":"DE8*DE83","v":0},null,null,{"$f":"DH8*DH83","v":0},null,null,{"$f":"DK8*DK83","v":0},null,null,{"$f":"DN8*DN83","v":0},null,null,{"$f":"DQ8*DQ83","v":0},null,null,{"$f":"DT8*DT83","v":0},null,null,{"$f":"DW8*DW83","v":0},null,null,0,null,null,{"$f":"EC8*EC83","v":0},null,null,{"$f":"EF8*EF83","v":0},null,null,{"$f":"EI8*EI83","v":0},null,null,{"$f":"EL8*EL83","v":0},null,null,{"$f":"EO8*EO83","v":0},null,null,{"$f":"ER8*ER83","v":0},null,null,{"$f":"$AP$98","v":0}]
[null,null,null,"ผู้จัดทำ……………………………………………………………………",null,null,null,null,null,null,null,null,null,null,null,null,null,null,null,null,null,null,null,"ผู้ตรวจ(ผจก.)………………………………………………………………………………."]
[null,null,"ใบจ่ายสินค้า",null,null,null,null,null,null,null,null,null,null,null,null,null,null,{"$f":"IF(ISODD(COLUMN()),MAX($F$86:Q$86)+1,\"\")","v":""}]
["ราคา","ลำดับ","รายการ","ยกมา","เบิก","เหลือ","เสีย","โอนเข้า","โอนออก","ชำรุด","รวม",null,"ขาย",null,"ขาด/เกิน",null,"บาท",null,null,null,"ขายได้",null,"ควรเบิก",null,"หมายเหตุ",null,null,null,"เสีย PDA","เสียจริง","เหลือ PDA","ผลต่าง","เหลือลูกค้า","หมายเหตุ",null,null,null,null,"Price","Quantity","Baht","Deduct"]
[{"$f":"IF(B88=\"\",0,INDEX(Price_List,ROWS($88:88)))","v":20},{"$f":"IF($C88=\"\",\"\",COUNTA($C$88:$C88))","v":1},{"$f":"IF(INDEX(INDIRECT(\"Product_List\"),ROWS($88:88))=\"\",\"\",INDEX(INDIRECT(\"Product_List\"),ROWS($88:88)))","v":"01-ขนมปังหมูหยองน้ำสลัด"},{"$f":"ยอดยกมา","v":0},null,null,null,null,null,null,{"$f":"D88+E88+J88-I88+H88","v":0},null,{"$f":"INDIRECT(ADDRESS(ROW(A$80),ROW()-ROW(A$80)+(ROWS($88:88)-1)*2-1,4))","v":0},null,{"$f":"F88+G88+M88+J88-K88","v":0},null,{"$f":"O88*A88","v":0},null,null,null,{"$f":"D88+E88-F88-G88","v":0},null,{"$f":"U88*6%+U88","v":0},null,null,null,null,null,{"$f":"INDIRECT(ADDRESS(ROW(A$80),ROW()-ROW(A$80)+(ROWS($88:88)-1)*2,4))","v":0},{"$f":"$G88","v":0},null,{"$f":"$F88-$AE88","v":0},{"$f":"INDIRECT(ADDRESS(ROW(A$80),ROW()-ROW(A$80)+(ROWS($88:88)-1)*2+1,4))","v":0},null,null,null,null,null,10,{"$f":"SUMPRODUCT(($A$88:$A$135=$AM88)*(($F$88:$F$135)+($G$88:$G$135)+($M$88:$M$135)+($J$88:$J$135)-($K$88:$K$135)))","v":0},{"$f":"AM88*AN88","v":0},{"$f":"IF(AO88<0,AO88,0)","v":0}]
[{"$f":"IF(B89=\"\",0,INDEX(Price_List,ROWS($88:89)))","v":20},{"$f":"IF($C89=\"\",\"\",COUNTA($C$88:$C89))","v":2},{"$f":"IF(INDEX(INDIRECT(\"Product_List\"),ROWS($88:89))=\"\",\"\",INDEX(INDIRECT(\"Product_List\"),ROWS($88:89)))","v":"02-ขนมปังหมูหยองน้ำพริกเผา"},{"$f":"ยอดยกมา","v":0},null,null,null,null,null,null,{"$f":"D89+E89+J89-I89+H89","v":0},null,{"$f":"INDIRECT(ADDRESS(ROW(A$80),ROW()-ROW(A$80)+(ROWS($88:89)-1)*2-1,4))","v":0},null,{"$f":"F89+G89+M89+J89-K89","v":0},null,{"$f":"O89*A89","v":0},null,null,null,{"$f":"D89+E89-F89-G89","v":0},null,{"$f":"U89*6%+U89","v":0},null,null,null,null,null,{"$f":"INDIRECT(ADDRESS(ROW(A$80),ROW()-ROW(A$80)+(ROWS($88:89)-1)*2,4))","v":0},{"$f":"$G89","v":0},null,{"$f":"$F89-$AE89","v":0},{"$f":"INDIRECT(ADDRESS(ROW(A$80),ROW()-ROW(A$80)+(ROWS($88:89)-1)*2+1,4))","v":0},null,null,null,null,null,12,0,{"$f":"AM89*AN89","v":0},{"$f":"IF(AO89<0,AO89,0)","v":0}]
[{"$f":"IF(B90=\"\",0,INDEX(Price_List,ROWS($88:90)))","v":20},{"$f":"IF($C90=\"\",\"\",COUNTA($C$88:$C90))","v":3},{"$f":"IF(INDEX(INDIRECT(\"Product_List\"),ROWS($88:90))=\"\",\"\",INDEX(INDIRECT(\"Product_List\"),ROWS($88:90)))","v":"03-ขนมปังไก่หยองน้ำสลัด"},{"$f":"ยอดยกมา","v":0},null,null,null,null,null,null,0,null,{"$f":"INDIRECT(ADDRESS(ROW(A$80),ROW()-ROW(A$80)+(ROWS($88:90)-1)*2-1,4))","v":0},null,0,null,0,null,null,null,0,null,0,null,null,null,null,null,{"$f":"INDIRECT(ADDRESS(ROW(A$80),ROW()-ROW(A$80)+(ROWS($88:90)-1)*2,4))","v":0},0,null,0,{"$f":"INDIRECT(ADDRESS(ROW(A$80),ROW()-ROW(A$80)+(ROWS($88:90)-1)*2+1,4))","v":0},null,null,null,null,null,13,0,0,0]
[{"$f":"IF(B91=\"\",0,INDEX(Price_List,ROWS($88:91)))","v":15},{"$f":"IF($C91=\"\",\"\",COUNTA($C$88:$C91))","v":4},{"$f":"IF(INDEX(INDIRECT(\"Product_List\"),ROWS($88:91))=\"\",\"\",INDEX(INDIRECT(\"Product_List\"),ROWS($88:91)))","v":"04-ขนมปังไส้ครีมสลัด"},{"$f":"ยอดยกมา","v":0},null,null,null,null,null,null,0,null,{"$f":"INDIRECT(ADDRESS(ROW(A$80),ROW()-ROW(A$80)+(ROWS($88:91)-1)*2-1,4))","v":0},null,{"$f":"F91+G91+M91+J91-K91","v":0},null,0,null,null,null,0,null,0,null,null,null,null,null,{"$f":"INDIRECT(ADDRESS(ROW(A$80),ROW()-ROW(A$80)+(ROWS($88:91)-1)*2,4))","v":0},0,null,0,{"$f":"INDIRECT(ADDRESS(ROW(A$80),ROW()-ROW(A$80)+(ROWS($88:91)-1)*2+1,4))","v":0},null,null,null,null,null,15,0,0,0]
[{"$f":"IF(B92=\"\",0,INDEX(Price_List,ROWS($88:92)))","v":15},{"$f":"IF($C92=\"\",\"\",COUNTA($C$88:$C92))","v":5},{"$f":"IF(INDEX(INDIRECT(\"Product_List\"),ROWS($88:92))=\"\",\"\",INDEX(INDIRECT(\"Product_List\"),ROWS($88:92)))","v":"05-ขนมปังเนยสด"},{"$f":"ยอดยกมา","v":0},null,null,null,null,null,null,0,null,{"$f":"INDIRECT(ADDRESS(ROW(A$80),ROW()-ROW(A$80)+(ROWS($88:92)-1)*2-1,4))","v":0},null,0,null,0,null,null,null,0,null,0,null,null,null,null,null,{"$f":"INDIRECT(ADDRESS(ROW(A$80),ROW()-ROW(A$80)+(ROWS($88:92)-1)*2,4))","v":0},0,null,0,{"$f":"INDIRECT(ADDRESS(ROW(A$80),ROW()-ROW(A$80)+(ROWS($88:92)-1)*2+1,4))","v":0},null,null,null,null,null,16,0,0,0]
[{"$f":"IF(B93=\"\",0,INDEX(Price_List,ROWS($88:93)))","v":10},{"$f":"IF($C93=\"\",\"\",COUNTA($C$88:$C93))","v":6},{"$f":"IF(INDEX(INDIRECT(\"Product_List\"),ROWS($88:93))=\"\",\"\",INDEX(INDIRECT(\"Product_List\"),ROWS($88:93)))","v":"06-ขนมปังไส้สังขยาเล็ก"},{"$f":"ยอดยกมา","v":0},null,null,null,null,null,null,0,null,{"$f":"INDIRECT(ADDRESS(ROW(A$80),ROW()-ROW(A$80)+(ROWS($88:93)-1)*2-1,4))","v":0},null,0,null,0,null,null,null,0,null,0,null,null,null,null,null,{"$f":"INDIRECT(ADDRESS(ROW(A$80),ROW()-ROW(A$80)+(ROWS($88:93)-1)*2,4))","v":0},0,null,0,{"$f":"INDIRECT(ADDRESS(ROW(A$80),ROW()-ROW(A$80)+(ROWS($88:93)-1)*2+1,4))","v":0},null,null,null,null,null,18,0,0,0]
[{"$f":"IF(B94=\"\",0,INDEX(Price_List,ROWS($88:94)))","v":10},{"$f":"IF($C94=\"\",\"\",COUNTA($C$88:$C94))","v":7},{"$f":"IF(INDEX(INDIRECT(\"Product_List\"),ROWS($88:94))=\"\",\"\",INDEX(INDIRECT(\"Product_List\"),ROWS($88:94)))","v":"07-ขนมปังไส้เผือก"},{"$f":"ยอดยกมา","v":0},null,null,null,null,null,null,0,null,{"$f":"INDIRECT(ADDRESS(ROW(A$80),ROW()-ROW(A$80)+(ROWS($88:94)-1)*2-1,4))","v":0},null,0,null,0,null,null,null,0,null,0,null,null,null,null,null,{"$f":"INDIRECT(ADDRESS(ROW(A$80),ROW()-ROW(A$80)+(ROWS($88:94)-1)*2,4))","v":0},0,null,0,{"$f":"INDIRECT(ADDRESS(ROW(A$80),ROW()-ROW(A$80)+(ROWS($88:94)-1)*2+1,4))","v":0},null,null,null,null,null,20,0,0,0]
[{"$f":"IF(B95=\"\",0,INDEX(Price_List,ROWS($88:95)))","v":10},{"$f":"IF($C95=\"\",\"\",COUNTA($C$88:$C95))","v":8},{"$f":"IF(INDEX(INDIRECT(\"Product_List\"),ROWS($88:95))=\"\",\"\",INDEX(INDIRECT(\"Product_List\"),ROWS($88:95)))","v":"08-ขนมปังไส้ถั่วแดง"},{"$f":"ยอดยกมา","v":0},null,null,null,null,null,null,0,null,{"$f":"INDIRECT(ADDRESS(ROW(A$80),ROW()-ROW(A$80)+(ROWS($88:95)-1)*2-1,4))","v":0},null,0,null,0,null,null,null,0,null,0,null,null,null,null,null,{"$f":"INDIRECT(ADDRESS(ROW(A$80),ROW()-ROW(A$80)+(ROWS($88:95)-1)*2,4))","v":0},0,null,0,{"$f":"INDIRECT(ADDRESS(ROW(A$80),ROW()-ROW(A$80)+(ROWS($88:95)-1)*2+1,4))","v":0},null,null,null,null,null,22,0,0,0]
[{"$f":"IF(B96=\"\",0,INDEX(Price_List,ROWS($88:96)))","v":10},{"$f":"IF($C96=\"\",\"\",COUNTA($C$88:$C96))","v":9},{"$f":"IF(INDEX(INDIRECT(\"Product_List\"),ROWS($88:96))=\"\",\"\",INDEX(INDIRECT(\"Product_List\"),ROWS($88:96)))","v":"09-ขนมปังไส้ถั่วดำ"},{"$f":"ยอดยกมา","v":0},null,null,null,null,null,null,0,null,{"$f":"INDIRECT(ADDRESS(ROW(A$80),ROW()-ROW(A$80)+(ROWS($88:96)-1)*2-1,4))","v":0},null,0,null,0,null,null,null,0,null,0,null,null,null,null,null,{"$f":"INDIRECT(ADDRESS(ROW(A$80),ROW()-ROW(A$80)+(ROWS($88:96)-1)*2,4))","v":0},0,null,0,{"$f":"INDIRECT(ADDRESS(ROW(A$80),ROW()-ROW(A$80)+(ROWS($88:96)-1)*2+1,4))","v":0},null,null,null,null,null,25,0,0,0]
[{"$f":"IF(B97=\"\",0,INDEX(Price_List,ROWS($88:97)))","v":10},{"$f":"IF($C97=\"\",\"\",COUNTA($C$88:$C97))","v":10},{"$f":"IF(INDEX(INDIRECT(\"Product_List\"),ROWS($88:97))=\"\",\"\",INDEX(INDIRECT(\"Product_List\"),ROWS($88:97)))","v":"10-ขนมปังไส้มันม่วง"},{"$f":"ยอดยกมา","v":0},null,null,null,null,null,null,0,null,{"$f":"INDIRECT(ADDRESS(ROW(A$80),ROW()-ROW(A$80)+(ROWS($88:97)-1)*2-1,4))","v":0},null,0,null,0,null,null,null,0,null,0,null,null,null,null,null,{"$f":"INDIRECT(ADDRESS(ROW(A$80),ROW()-ROW(A$80)+(ROWS($88:97)-1)*2,4))","v":0},0,null,0,{"$f":"INDIRECT(ADDRESS(ROW(A$80),ROW()-ROW(A$80)+(ROWS($88:97)-1)*2+1,4))","v":0},null,null,null,null,null,42,0,0,0]
[{"$f":"IF(B98=\"\",0,INDEX(Price_List,ROWS($88:98)))","v":15},{"$f":"IF($C98=\"\",\"\",COUNTA($C$88:$C98))","v":11},{"$f":"IF(INDEX(INDIRECT(\"Product_List\"),ROWS($88:98))=\"\",\"\",INDEX(INDIRECT(\"Product_List\"),ROWS($88:98)))","v":"11-เค้กกล้วยหอม"},{"$f":"ยอดยกมา","v":0},null,null,null,null,null,null,0,null,{"$f":"INDIRECT(ADDRESS(ROW(A$80),ROW()-ROW(A$80)+(ROWS($88:98)-1)*2-1,4))","v":0},null,0,null,0,null,null,null,0,null,0,null,null,null,null,null,{"$f":"INDIRECT(ADDRESS(ROW(A$80),ROW()-ROW(A$80)+(ROWS($88:98)-1)*2,4))","v":0},0,null,0,{"$f":"INDIRECT(ADDRESS(ROW(A$80),ROW()-ROW(A$80)+(ROWS($88:98)-1)*2+1,4))","v":0},null,null,null,null,null,"Total Deduct",null,null,{"$f":"SUM($AP$88:$AP$97)","v":0}]
[{"$f":"IF(B99=\"\",0,INDEX(Price_List,ROWS($88:99)))","v":15},{"$f":"IF($C99=\"\",\"\",COUNTA($C$88:$C99))","v":12},{"$f":"IF(INDEX(INDIRECT(\"Product_List\"),ROWS($88:99))=\"\",\"\",INDEX(INDIRECT(\"Product_List\"),ROWS($88:99)))","v":"12-เค้กบัตเตอร์"},{"$f":"ยอดยกมา","v":0},null,null,null,null,null,null,0,null,{"$f":"INDIRECT(ADDRESS(ROW(A$80),ROW()-ROW(A$80)+(ROWS($88:99)-1)*2-1,4))","v":0},null,0,null,0,null,null,null,0,null,0,null,null,null,null,null,{"$f":"INDIRECT(ADDRESS(ROW(A$80),ROW()-ROW(A$80)+(ROWS($88:99)-1)*2,4))","v":0},0,null,0,{"$f":"INDIRECT(ADDRESS(ROW(A$80),ROW()-ROW(A$80)+(ROWS($88:99)-1)*2+1,4))","v":0}]
[{"$f":"IF(B100=\"\",0,INDEX(Price_List,ROWS($88:100)))","v":15},{"$f":"IF($C100=\"\",\"\",COUNTA($C$88:$C100))","v":13},{"$f":"IF(INDEX(INDIRECT(\"Product_List\"),ROWS($88:100))=\"\",\"\",INDEX(INDIRECT(\"Product_List\"),ROWS($88:100)))","v":"13-ขนมปังโรลถั่วแดง"},{"$f":"ยอดยกมา","v":0},null,null,null,null,null,null,0,null,{"$f":"INDIRECT(ADDRESS(ROW(A$80),ROW()-ROW(A$80)+(ROWS($88:100)-1)*2-1,4))","v":0},null,0,null,0,null,null,null,0,null,0,null,null,null,null,null,{"$f":"INDIRECT(ADDRESS(ROW(A$80),ROW()-ROW(A$80)+(ROWS($88:100)-1)*2,4))","v":0},0,null,0,{"$f":"INDIRECT(ADDRESS(ROW(A$80),ROW()-ROW(A$80)+(ROWS($88:100)-1)*2+1,4))","v":0}]
[{"$f":"IF(B101=\"\",0,INDEX(Price_List,ROWS($88:101)))","v":15},{"$f":"IF($C101=\"\",\"\",COUNTA($C$88:$C101))","v":14},{"$f":"IF(INDEX(INDIRECT(\"Product_List\"),ROWS($88:101))=\"\",\"\",INDEX(INDIRECT(\"Product_List\"),ROWS($88:101)))","v":"14-ขนมปังไส้สังขยาใหญ่"},{"$f":"ยอดยกมา","v":0},null,null,null,null,null,null,0,null,{"$f":"INDIRECT(ADDRESS(ROW(A$80),ROW()-ROW(A$80)+(ROWS($88:101)-1)*2-1,4))","v":0},null,0,null,0,null,null,null,0,null,0,null,null,null,null,null,{"$f":"INDIRECT(ADDRESS(ROW(A$80),ROW()-ROW(A$80)+(ROWS($88:101)-1)*2,4))","v":0},0,null,0,{"$f":"INDIRECT(ADDRESS(ROW(A$80),ROW()-ROW(A$80)+(ROWS($88:101)-1)*2+1,4))","v":0}]
[{"$f":"IF(B102=\"\",0,INDEX(Price_List,ROWS($88:102)))","v":42},{"$f":"IF($C102=\"\",\"\",COUNTA($C$88:$C102))","v":15},{"$f":"IF(INDEX(INDIRECT(\"Product_List\"),ROWS($88:102))=\"\",\"\",INDEX(INDIRECT(\"Product_List\"),ROWS($88:102)))","v":"15-ขนมปังชนิดแผ่น(480กรัม)"},{"$f":"ยอดยกมา","v":0},null,null,null,null,null,null,0,null,{"$f":"INDIRECT(ADDRESS(ROW(A$80),ROW()-ROW(A$80)+(ROWS($88:102)-1)*2-1,4))","v":0},null,0,null,0,null,null,null,0,null,0,null,null,null,null,null,{"$f":"INDIRECT(ADDRESS(ROW(A$80),ROW()-ROW(A$80)+(ROWS($88:102)-1)*2,4))","v":0},0,null,0,{"$f":"INDIRECT(ADDRESS(ROW(A$80),ROW()-ROW(A$80)+(ROWS($88:102)-1)*2+1,4))","v":0}]
[{"$f":"IF(B103=\"\",0,INDEX(Price_List,ROWS($88:103)))","v":12},{"$f":"IF($C103=\"\",\"\",COUNTA($C$88:$C103))","v":16},{"$f":"IF(INDEX(INDIRECT(\"Product_List\"),ROWS($88:103))=\"\",\"\",INDEX(INDIRECT(\"Product_List\"),ROWS($88:103)))","v":"16-โมจิไส้ถั่ว"},{"$f":"ยอดยกมา","v":0},null,null,null,null,null,null,0,null,{"$f":"INDIRECT(ADDRESS(ROW(A$80),ROW()-ROW(A$80)+(ROWS($88:103)-1)*2-1,4))","v":0},null,0,null,0,null,null,null,0,null,0,null,null,null,null,null,{"$f":"INDIRECT(ADDRESS(ROW(A$80),ROW()-ROW(A$80)+(ROWS($88:103)-1)*2,4))","v":0},0,null,0,{"$f":"INDIRECT(ADDRESS(ROW(A$80),ROW()-ROW(A$80)+(ROWS($88:103)-1)*2+1,4))","v":0}]
[{"$f":"IF(B104=\"\",0,INDEX(Price_List,ROWS($88:104)))","v":12},{"$f":"IF($C104=\"\",\"\",COUNTA($C$88:$C104))","v":17},{"$f":"IF(INDEX(INDIRECT(\"Product_List\"),ROWS($88:104))=\"\",\"\",INDEX(INDIRECT(\"Product_List\"),ROWS($88:104)))","v":"17-โมจิไส้เผือก"},{"$f":"ยอดยกมา","v":0},null,null,null,null,null,null,0,null,{"$f":"INDIRECT(ADDRESS(ROW(A$80),ROW()-ROW(A$80)+(ROWS($88:104)-1)*2-1,4))","v":0},null,0,null,0,null,null,null,0,null,0,null,null,null,null,null,{"$f":"INDIRECT(ADDRESS(ROW(A$80),ROW()-ROW(A$80)+(ROWS($88:104)-1)*2,4))","v":0},0,null,0,{"$f":"INDIRECT(ADDRESS(ROW(A$80),ROW()-ROW(A$80)+(ROWS($88:104)-1)*2+1,4))","v":0}]
[{"$f":"IF(B105=\"\",0,INDEX(Price_List,ROWS($88:105)))","v":15},{"$f":"IF($C105=\"\",\"\",COUNTA($C$88:$C105))","v":18},{"$f":"IF(INDEX(INDIRECT(\"Product_List\"),ROWS($88:105))=\"\",\"\",INDEX(INDIRECT(\"Product_List\"),ROWS($88:105)))","v":"18-โมจิไส้ถั่วไข่เค็ม"},{"$f":"ยอดยกมา","v":0},null,null,null,null,null,null,0,null,{"$f":"INDIRECT(ADDRESS(ROW(A$80),ROW()-ROW(A$80)+(ROWS($88:105)-1)*2-1,4))","v":0},null,0,null,0,null,null,null,0,null,0,null,null,null,null,null,{"$f":"INDIRECT(ADDRESS(ROW(A$80),ROW()-ROW(A$80)+(ROWS($88:105)-1)*2,4))","v":0},0,null,0,{"$f":"INDIRECT(ADDRESS(ROW(A$80),ROW()-ROW(A$80)+(ROWS($88:105)-1)*2+1,4))","v":0}]
[{"$f":"IF(B106=\"\",0,INDEX(Price_List,ROWS($88:106)))","v":20},{"$f":"IF($C106=\"\",\"\",COUNTA($C$88:$C106))","v":19},{"$f":"IF(INDEX(INDIRECT(\"Product_List\"),ROWS($88:106))=\"\",\"\",INDEX(INDIRECT(\"Product_List\"),ROWS($88:106)))","v":"19-ขนมปังพิซซ่า"},{"$f":"ยอดยกมา","v":0},null,null,null,null,null,null,0,null,{"$f":"INDIRECT(ADDRESS(ROW(A$80),ROW()-ROW(A$80)+(ROWS($88:106)-1)*2-1,4))","v":0},null,0,null,0,null,null,null,0,null,0,null,null,null,null,null,{"$f":"INDIRECT(ADDRESS(ROW(A$80),ROW()-ROW(A$80)+(ROWS($88:106)-1)*2,4))","v":0},0,null,0,{"$f":"INDIRECT(ADDRESS(ROW(A$80),ROW()-ROW(A$80)+(ROWS($88:106)-1)*2+1,4))","v":0}]
[{"$f":"IF(B107=\"\",0,INDEX(Price_List,ROWS($88:107)))","v":20},{"$f":"IF($C107=\"\",\"\",COUNTA($C$88:$C107))","v":20},{"$f":"IF(INDEX(INDIRECT(\"Product_List\"),ROWS($88:107))=\"\",\"\",INDEX(INDIRECT(\"Product_List\"),ROWS($88:107)))","v":"20-ขนมปังพิซซ่าปูอัดแฮม"},{"$f":"ยอดยกมา","v":0},null,null,null,null,null,null,0,null,{"$f":"INDIRECT(ADDRESS(ROW(A$80),ROW()-ROW(A$80)+(ROWS($88:107)-1)*2-1,4))","v":0},null,0,null,0,null,null,null,0,null,0,null,null,null,null,null,{"$f":"INDIRECT(ADDRESS(ROW(A$80),ROW()-ROW(A$80)+(ROWS($88:107)-1)*2,4))","v":0},0,null,0,{"$f":"INDIRECT(ADDRESS(ROW(A$80),ROW()-ROW(A$80)+(ROWS($88:107)-1)*2+1,4))","v":0}]
[{"$f":"IF(B108=\"\",0,INDEX(Price_List,ROWS($88:108)))","v":20},{"$f":"IF($C108=\"\",\"\",COUNTA($C$88:$C108))","v":21},{"$f":"IF(INDEX(INDIRECT(\"Product_List\"),ROWS($88:108))=\"\",\"\",INDEX(INDIRECT(\"Product_List\"),ROWS($88:108)))","v":"21-ขนมปังไส้กรอก"},{"$f":"ยอดยกมา","v":0},null,null,null,null,null,null,0,null,{"$f":"INDIRECT(ADDRESS(ROW(A$80),ROW()-ROW(A$80)+(ROWS($88:108)-1)*2-1,4))","v":0},null,0,null,0,null,null,null,0,null,0,null,null,null,null,null,{"$f":"INDIRECT(ADDRESS(ROW(A$80),ROW()-ROW(A$80)+(ROWS($88:108)-1)*2,4))","v":0},0,null,0,{"$f":"INDIRECT(ADDRESS(ROW(A$80),ROW()-ROW(A$80)+(ROWS($88:108)-1)*2+1,4))","v":0}]
[{"$f":"IF(B109=\"\",0,INDEX(Price_List,ROWS($88:109)))","v":15},{"$f":"IF($C109=\"\",\"\",COUNTA($C$88:$C109))","v":22},{"$f":"IF(INDEX(INDIRECT(\"Product_List\"),ROWS($88:109))=\"\",\"\",INDEX(INDIRECT(\"Product_List\"),ROWS($88:109)))","v":"22-ขนมก้านบัว"},{"$f":"ยอดยกมา","v":0},null,null,null,null,null,null,0,null,{"$f":"INDIRECT(ADDRESS(ROW(A$80),ROW()-ROW(A$80)+(ROWS($88:109)-1)*2-1,4))","v":0},null,0,null,0,null,null,null,0,null,0,null,null,null,null,null,{"$f":"INDIRECT(ADDRESS(ROW(A$80),ROW()-ROW(A$80)+(ROWS($88:109)-1)*2,4))","v":0},0,null,0,{"$f":"INDIRECT(ADDRESS(ROW(A$80),ROW()-ROW(A$80)+(ROWS($88:109)-1)*2+1,4))","v":0}]
[{"$f":"IF(B110=\"\",0,INDEX(Price_List,ROWS($88:110)))","v":20},{"$f":"IF($C110=\"\",\"\",COUNTA($C$88:$C110))","v":23},{"$f":"IF(INDEX(INDIRECT(\"Product_List\"),ROWS($88:110))=\"\",\"\",INDEX(INDIRECT(\"Product_List\"),ROWS($88:110)))","v":"23-พายสับปะรด"},{"$f":"ยอดยกมา","v":0},null,null,null,null,null,null,0,null,{"$f":"INDIRECT(ADDRESS(ROW(A$80),ROW()-ROW(A$80)+(ROWS($88:110)-1)*2-1,4))","v":0},null,0,null,0,null,null,null,0,null,0,null,null,null,null,null,{"$f":"INDIRECT(ADDRESS(ROW(A$80),ROW()-ROW(A$80)+(ROWS($88:110)-1)*2,4))","v":0},0,null,0,{"$f":"INDIRECT(ADDRESS(ROW(A$80),ROW()-ROW(A$80)+(ROWS($88:110)-1)*2+1,4))","v":0}]
[{"$f":"IF(B111=\"\",0,INDEX(Price_List,ROWS($88:111)))","v":20},{"$f":"IF($C111=\"\",\"\",COUNTA($C$88:$C111))","v":24},{"$f":"IF(INDEX(INDIRECT(\"Product_List\"),ROWS($88:111))=\"\",\"\",INDEX(INDIRECT(\"Product_List\"),ROWS($88:111)))","v":"24-พายไส้มะพร้าว"},{"$f":"ยอดยกมา","v":0},null,null,null,null,null,null,0,null,{"$f":"INDIRECT(ADDRESS(ROW(A$80),ROW()-ROW(A$80)+(ROWS($88:111)-1)*2-1,4))","v":0},null,0,null,0,null,null,null,0,null,0,null,null,null,null,null,{"$f":"INDIRECT(ADDRESS(ROW(A$80),ROW()-ROW(A$80)+(ROWS($88:111)-1)*2,4))","v":0},0,null,0,{"$f":"INDIRECT(ADDRESS(ROW(A$80),ROW()-ROW(A$80)+(ROWS($88:111)-1)*2+1,4))","v":0}]
[{"$f":"IF(B112=\"\",0,INDEX(Price_List,ROWS($88:112)))","v":15},{"$f":"IF($C112=\"\",\"\",COUNTA($C$88:$C112))","v":25},{"$f":"IF(INDEX(INDIRECT(\"Product_List\"),ROWS($88:112))=\"\",\"\",INDEX(INDIRECT(\"Product_List\"),ROWS($88:112)))","v":"25-ขนมปังโรลมันเทศ"},{"$f":"ยอดยกมา","v":0},null,null,null,null,null,null,0,null,{"$f":"INDIRECT(ADDRESS(ROW(A$80),ROW()-ROW(A$80)+(ROWS($88:112)-1)*2-1,4))","v":0},null,0,null,0,null,null,null,0,null,0,null,null,null,null,null,{"$f":"INDIRECT(ADDRESS(ROW(A$80),ROW()-ROW(A$80)+(ROWS($88:112)-1)*2,4))","v":0},0,null,0,{"$f":"INDIRECT(ADDRESS(ROW(A$80),ROW()-ROW(A$80)+(ROWS($88:112)-1)*2+1,4))","v":0}]
[{"$f":"IF(B113=\"\",0,INDEX(Price_List,ROWS($88:113)))","v":15},{"$f":"IF($C113=\"\",\"\",COUNTA($C$88:$C113))","v":26},{"$f":"IF(INDEX(INDIRECT(\"Product_List\"),ROWS($88:113))=\"\",\"\",INDEX(INDIRECT(\"Product_List\"),ROWS($88:113)))","v":"26-ขนมปังไส้ครีมสลัดน้ำพริกเผา"},{"$f":"ยอดยกมา","v":0},null,null,null,null,null,null,0,null,{"$f":"INDIRECT(ADDRESS(ROW(A$80),ROW()-ROW(A$80)+(ROWS($88:113)-1)*2-1,4))","v":0},null,0,null,0,null,null,null,0,null,0,null,null,null,null,null,{"$f":"INDIRECT(ADDRESS(ROW(A$80),ROW()-ROW(A$80)+(ROWS($88:113)-1)*2,4))","v":0},0,null,0,{"$f":"INDIRECT(ADDRESS(ROW(A$80),ROW()-ROW(A$80)+(ROWS($88:113)-1)*2+1,4))","v":0}]
[{"$f":"IF(B114=\"\",0,INDEX(Price_List,ROWS($88:114)))","v":20},{"$f":"IF($C114=\"\",\"\",COUNTA($C$88:$C114))","v":27},{"$f":"IF(INDEX(INDIRECT(\"Product_List\"),ROWS($88:114))=\"\",\"\",INDEX(INDIRECT(\"Product_List\"),ROWS($88:114)))","v":"27-ขนมปังไส้สังขยาไข่"},{"$f":"ยอดยกมา","v":0},null,null,null,null,null,null,0,null,{"$f":"INDIRECT(ADDRESS(ROW(A$80),ROW()-ROW(A$80)+(ROWS($88:114)-1)*2-1,4))","v":0},null,0,null,0,null,null,null,0,null,0,null,null,null,null,null,{"$f":"INDIRECT(ADDRESS(ROW(A$80),ROW()-ROW(A$80)+(ROWS($88:114)-1)*2,4))","v":0},0,null,0,{"$f":"INDIRECT(ADDRESS(ROW(A$80),ROW()-ROW(A$80)+(ROWS($88:114)-1)*2+1,4))","v":0}]
[{"$f":"IF(B115=\"\",0,INDEX(Price_List,ROWS($88:115)))","v":20},{"$f":"IF($C115=\"\",\"\",COUNTA($C$88:$C115))","v":28},{"$f":"IF(INDEX(INDIRECT(\"Product_List\"),ROWS($88:115))=\"\",\"\",INDEX(INDIRECT(\"Product_List\"),ROWS($88:115)))","v":"28-ขนมปังไส้สังขยามะพร้าว"},{"$f":"ยอดยกมา","v":0},null,null,null,null,null,null,0,null,{"$f":"INDIRECT(ADDRESS(ROW(A$80),ROW()-ROW(A$80)+(ROWS($88:115)-1)*2-1,4))","v":0},null,0,null,0,null,null,null,0,null,0,null,null,null,null,null,{"$f":"INDIRECT(ADDRESS(ROW(A$80),ROW()-ROW(A$80)+(ROWS($88:115)-1)*2,4))","v":0},0,null,0,{"$f":"INDIRECT(ADDRESS(ROW(A$80),ROW()-ROW(A$80)+(ROWS($88:115)-1)*2+1,4))","v":0}]
[{"$f":"IF(B116=\"\",0,INDEX(Price_List,ROWS($88:116)))","v":10},{"$f":"IF($C116=\"\",\"\",COUNTA($C$88:$C116))","v":29},{"$f":"IF(INDEX(INDIRECT(\"Product_List\"),ROWS($88:116))=\"\",\"\",INDEX(INDIRECT(\"Product_List\"),ROWS($88:116)))","v":"29-ขนมปังไส้ครีมชาไทย"},{"$f":"ยอดยกมา","v":0},null,null,null,null,null,null,0,null,{"$f":"INDIRECT(ADDRESS(ROW(A$80),ROW()-ROW(A$80)+(ROWS($88:116)-1)*2-1,4))","v":0},null,0,null,0,null,null,null,0,null,0,null,null,null,null,null,{"$f":"INDIRECT(ADDRESS(ROW(A$80),ROW()-ROW(A$80)+(ROWS($88:116)-1)*2,4))","v":0},0,null,0,{"$f":"INDIRECT(ADDRESS(ROW(A$80),ROW()-ROW(A$80)+(ROWS($88:116)-1)*2+1,4))","v":0}]
[{"$f":"IF(B117=\"\",0,INDEX(Price_List,ROWS($88:117)))","v":15},{"$f":"IF($C117=\"\",\"\",COUNTA($C$88:$C117))","v":30},{"$f":"IF(INDEX(INDIRECT(\"Product_List\"),ROWS($88:117))=\"\",\"\",INDEX(INDIRECT(\"Product_List\"),ROWS($88:117)))","v":"30-ขนมปังโรลมันม่วง"},{"$f":"ยอดยกมา","v":0},null,null,null,null,null,null,0,null,{"$f":"INDIRECT(ADDRESS(ROW(A$80),ROW()-ROW(A$80)+(ROWS($88:117)-1)*2-1,4))","v":0},null,0,null,0,null,null,null,0,null,0,null,null,null,null,null,{"$f":"INDIRECT(ADDRESS(ROW(A$80),ROW()-ROW(A$80)+(ROWS($88:117)-1)*2,4))","v":0},0,null,0,{"$f":"INDIRECT(ADDRESS(ROW(A$80),ROW()-ROW(A$80)+(ROWS($88:117)-1)*2+1,4))","v":0}]
[{"$f":"IF(B118=\"\",0,INDEX(Price_List,ROWS($88:118)))","v":15},{"$f":"IF($C118=\"\",\"\",COUNTA($C$88:$C118))","v":31},{"$f":"IF(INDEX(INDIRECT(\"Product_List\"),ROWS($88:118))=\"\",\"\",INDEX(INDIRECT(\"Product_List\"),ROWS($88:118)))","v":"31-ขนมปังโรลช็อกโกแลต"},{"$f":"ยอดยกมา","v":0},null,null,null,null,null,null,0,null,{"$f":"INDIRECT(ADDRESS(ROW(A$80),ROW()-ROW(A$80)+(ROWS($88:118)-1)*2-1,4))","v":0},null,0,null,0,null,null,null,0,null,0,null,null,null,null,null,{"$f":"INDIRECT(ADDRESS(ROW(A$80),ROW()-ROW(A$80)+(ROWS($88:118)-1)*2,4))","v":0},0,null,0,{"$f":"INDIRECT(ADDRESS(ROW(A$80),ROW()-ROW(A$80)+(ROWS($88:118)-1)*2+1,4))","v":0}]
[{"$f":"IF(B119=\"\",0,INDEX(Price_List,ROWS($88:119)))","v":16},{"$f":"IF($C119=\"\",\"\",COUNTA($C$88:$C119))","v":32},{"$f":"IF(INDEX(INDIRECT(\"Product_List\"),ROWS($88:119))=\"\",\"\",INDEX(INDIRECT(\"Product_List\"),ROWS($88:119)))","v":"32-ขนมปังชนิดแผ่น(155กรัม)"},{"$f":"ยอดยกมา","v":0},null,null,null,null,null,null,0,null,{"$f":"INDIRECT(ADDRESS(ROW(A$80),ROW()-ROW(A$80)+(ROWS($88:119)-1)*2-1,4))","v":0},null,0,null,0,null,null,null,0,null,0,null,null,null,null,null,{"$f":"INDIRECT(ADDRESS(ROW(A$80),ROW()-ROW(A$80)+(ROWS($88:119)-1)*2,4))","v":0},0,null,0,{"$f":"INDIRECT(ADDRESS(ROW(A$80),ROW()-ROW(A$80)+(ROWS($88:119)-1)*2+1,4))","v":0}]
[{"$f":"IF(B120=\"\",0,INDEX(Price_List,ROWS($88:120)))","v":15},{"$f":"IF($C120=\"\",\"\",COUNTA($C$88:$C120))","v":33},{"$f":"IF(INDEX(INDIRECT(\"Product_List\"),ROWS($88:120))=\"\",\"\",INDEX(INDIRECT(\"Product_List\"),ROWS($88:120)))","v":"33-ขนมปังโรลเผือก"},{"$f":"ยอดยกมา","v":0},null,null,null,null,null,null,0,null,{"$f":"INDIRECT(ADDRESS(ROW(A$80),ROW()-ROW(A$80)+(ROWS($88:120)-1)*2-1,4))","v":0},null,0,null,0,null,null,null,0,null,0,null,null,null,null,null,{"$f":"INDIRECT(ADDRESS(ROW(A$80),ROW()-ROW(A$80)+(ROWS($88:120)-1)*2,4))","v":0},0,null,0,{"$f":"INDIRECT(ADDRESS(ROW(A$80),ROW()-ROW(A$80)+(ROWS($88:120)-1)*2+1,4))","v":0}]
[{"$f":"IF(B121=\"\",0,INDEX(Price_List,ROWS($88:121)))","v":15},{"$f":"IF($C121=\"\",\"\",COUNTA($C$88:$C121))","v":34},{"$f":"IF(INDEX(INDIRECT(\"Product_List\"),ROWS($88:121))=\"\",\"\",INDEX(INDIRECT(\"Product_List\"),ROWS($88:121)))","v":"34-ขนมปังไก่หยองน้ำสลัด Mini"},{"$f":"ยอดยกมา","v":0},null,null,null,null,null,null,0,null,{"$f":"INDIRECT(ADDRESS(ROW(A$80),ROW()-ROW(A$80)+(ROWS($88:121)-1)*2-1,4))","v":0},null,0,null,0,null,null,null,0,null,0,null,null,null,null,null,{"$f":"INDIRECT(ADDRESS(ROW(A$80),ROW()-ROW(A$80)+(ROWS($88:121)-1)*2,4))","v":0},0,null,0,{"$f":"INDIRECT(ADDRESS(ROW(A$80),ROW()-ROW(A$80)+(ROWS($88:121)-1)*2+1,4))","v":0}]
[{"$f":"IF(B122=\"\",0,INDEX(Price_List,ROWS($88:122)))","v":10},{"$f":"IF($C122=\"\",\"\",COUNTA($C$88:$C122))","v":35},{"$f":"IF(INDEX(INDIRECT(\"Product_List\"),ROWS($88:122))=\"\",\"\",INDEX(INDIRECT(\"Product_List\"),ROWS($88:122)))","v":"35-ขนมปังไส้ช็อกโกแลต"},{"$f":"ยอดยกมา","v":0},null,null,null,null,null,null,0,null,{"$f":"INDIRECT(ADDRESS(ROW(A$80),ROW()-ROW(A$80)+(ROWS($88:122)-1)*2-1,4))","v":0},null,0,null,0,null,null,null,0,null,0,null,null,null,null,null,{"$f":"INDIRECT(ADDRESS(ROW(A$80),ROW()-ROW(A$80)+(ROWS($88:122)-1)*2,4))","v":0},0,null,0,{"$f":"INDIRECT(ADDRESS(ROW(A$80),ROW()-ROW(A$80)+(ROWS($88:122)-1)*2+1,4))","v":0}]
[{"$f":"IF(B123=\"\",0,INDEX(Price_List,ROWS($88:123)))","v":10},{"$f":"IF($C123=\"\",\"\",COUNTA($C$88:$C123))","v":36},{"$f":"IF(INDEX(INDIRECT(\"Product_List\"),ROWS($88:123))=\"\",\"\",INDEX(INDIRECT(\"Product_List\"),ROWS($88:123)))","v":"36-ขนมปังไส้ครีมสังขยาไข่"},{"$f":"ยอดยกมา","v":0},null,null,null,null,null,null,0,null,{"$f":"INDIRECT(ADDRESS(ROW(A$80),ROW()-ROW(A$80)+(ROWS($88:123)-1)*2-1,4))","v":0},null,0,null,0,null,null,null,0,null,0,null,null,null,null,null,{"$f":"INDIRECT(ADDRESS(ROW(A$80),ROW()-ROW(A$80)+(ROWS($88:123)-1)*2,4))","v":0},0,null,0,{"$f":"INDIRECT(ADDRESS(ROW(A$80),ROW()-ROW(A$80)+(ROWS($88:123)-1)*2+1,4))","v":0}]
[{"$f":"IF(B124=\"\",0,INDEX(Price_List,ROWS($88:124)))","v":20},{"$f":"IF($C124=\"\",\"\",COUNTA($C$88:$C124))","v":37},{"$f":"IF(INDEX(INDIRECT(\"Product_List\"),ROWS($88:124))=\"\",\"\",INDEX(INDIRECT(\"Product_List\"),ROWS($88:124)))","v":"37-ขนมปังพิซซ่าฮาวายเอี้ยน"},{"$f":"ยอดยกมา","v":0},null,null,null,null,null,null,0,null,{"$f":"INDIRECT(ADDRESS(ROW(A$80),ROW()-ROW(A$80)+(ROWS($88:124)-1)*2-1,4))","v":0},null,0,null,0,null,null,null,0,null,0,null,null,null,null,null,{"$f":"INDIRECT(ADDRESS(ROW(A$80),ROW()-ROW(A$80)+(ROWS($88:124)-1)*2,4))","v":0},0,null,0,{"$f":"INDIRECT(ADDRESS(ROW(A$80),ROW()-ROW(A$80)+(ROWS($88:124)-1)*2+1,4))","v":0}]
[{"$f":"IF(B125=\"\",0,INDEX(Price_List,ROWS($88:125)))","v":20},{"$f":"IF($C125=\"\",\"\",COUNTA($C$88:$C125))","v":38},{"$f":"IF(INDEX(INDIRECT(\"Product_List\"),ROWS($88:125))=\"\",\"\",INDEX(INDIRECT(\"Product_List\"),ROWS($88:125)))","v":"38-ครัวซองต์หมูหยองน้ำสลัด"},{"$f":"ยอดยกมา","v":0},null,null,null,null,null,null,0,null,{"$f":"INDIRECT(ADDRESS(ROW(A$80),ROW()-ROW(A$80)+(ROWS($88:125)-1)*2-1,4))","v":0},null,0,null,0,null,null,null,0,null,0,null,null,null,null,null,{"$f":"INDIRECT(ADDRESS(ROW(A$80),ROW()-ROW(A$80)+(ROWS($88:125)-1)*2,4))","v":0},0,null,0,{"$f":"INDIRECT(ADDRESS(ROW(A$80),ROW()-ROW(A$80)+(ROWS($88:125)-1)*2+1,4))","v":0}]
[{"$f":"IF(B126=\"\",0,INDEX(Price_List,ROWS($88:126)))","v":15},{"$f":"IF($C126=\"\",\"\",COUNTA($C$88:$C126))","v":39},{"$f":"IF(INDEX(INDIRECT(\"Product_List\"),ROWS($88:126))=\"\",\"\",INDEX(INDIRECT(\"Product_List\"),ROWS($88:126)))","v":"39-แพนเบรดไส้เผือก"},{"$f":"ยอดยกมา","v":0},null,null,null,null,null,null,0,null,{"$f":"INDIRECT(ADDRESS(ROW(A$80),ROW()-ROW(A$80)+(ROWS($88:126)-1)*2-1,4))","v":0},null,0,null,0,null,null,null,0,null,0,null,null,null,null,null,{"$f":"INDIRECT(ADDRESS(ROW(A$80),ROW()-ROW(A$80)+(ROWS($88:126)-1)*2,4))","v":0},0,null,0,{"$f":"INDIRECT(ADDRESS(ROW(A$80),ROW()-ROW(A$80)+(ROWS($88:126)-1)*2+1,4))","v":0}]
[{"$f":"IF(B127=\"\",0,INDEX(Price_List,ROWS($88:127)))","v":15},{"$f":"IF($C127=\"\",\"\",COUNTA($C$88:$C127))","v":40},{"$f":"IF(INDEX(INDIRECT(\"Product_List\"),ROWS($88:127))=\"\",\"\",INDEX(INDIRECT(\"Product_List\"),ROWS($88:127)))","v":"40-แพนเบรดไส้ถั่วแดง"},{"$f":"ยอดยกมา","v":0},null,null,null,null,null,null,0,null,{"$f":"INDIRECT(ADDRESS(ROW(A$80),ROW()-ROW(A$80)+(ROWS($88:127)-1)*2-1,4))","v":0},null,0,null,0,null,null,null,0,null,0,null,null,null,null,null,{"$f":"INDIRECT(ADDRESS(ROW(A$80),ROW()-ROW(A$80)+(ROWS($88:127)-1)*2,4))","v":0},0,null,0,{"$f":"INDIRECT(ADDRESS(ROW(A$80),ROW()-ROW(A$80)+(ROWS($88:127)-1)*2+1,4))","v":0}]
[{"$f":"IF(B128=\"\",0,INDEX(Price_List,ROWS($88:128)))","v":12},{"$f":"IF($C128=\"\",\"\",COUNTA($C$88:$C128))","v":41},{"$f":"IF(INDEX(INDIRECT(\"Product_List\"),ROWS($88:128))=\"\",\"\",INDEX(INDIRECT(\"Product_List\"),ROWS($88:128)))","v":"41-ขนมปังกรอบเนยน้ำตาล(30กรัม)"},{"$f":"ยอดยกมา","v":0},null,null,null,null,null,null,0,null,{"$f":"INDIRECT(ADDRESS(ROW(A$80),ROW()-ROW(A$80)+(ROWS($88:128)-1)*2-1,4))","v":0},null,0,null,0,null,null,null,0,null,0,null,null,null,null,null,{"$f":"INDIRECT(ADDRESS(ROW(A$80),ROW()-ROW(A$80)+(ROWS($88:128)-1)*2,4))","v":0},0,null,0,{"$f":"INDIRECT(ADDRESS(ROW(A$80),ROW()-ROW(A$80)+(ROWS($88:128)-1)*2+1,4))","v":0}]
[{"$f":"IF(B129=\"\",0,INDEX(Price_List,ROWS($88:129)))","v":18},{"$f":"IF($C129=\"\",\"\",COUNTA($C$88:$C129))","v":42},{"$f":"IF(INDEX(INDIRECT(\"Product_List\"),ROWS($88:129))=\"\",\"\",INDEX(INDIRECT(\"Product_List\"),ROWS($88:129)))","v":"42-ขนมปังชนิดแผ่นโฮลวีต"},{"$f":"ยอดยกมา","v":0},null,null,null,null,null,null,0,null,{"$f":"INDIRECT(ADDRESS(ROW(A$80),ROW()-ROW(A$80)+(ROWS($88:129)-1)*2-1,4))","v":0},null,0,null,0,null,null,null,0,null,0,null,null,null,null,null,{"$f":"INDIRECT(ADDRESS(ROW(A$80),ROW()-ROW(A$80)+(ROWS($88:129)-1)*2,4))","v":0},0,null,0,{"$f":"INDIRECT(ADDRESS(ROW(A$80),ROW()-ROW(A$80)+(ROWS($88:129)-1)*2+1,4))","v":0}]
[{"$f":"IF(B130=\"\",0,INDEX(Price_List,ROWS($88:130)))","v":12},{"$f":"IF($C130=\"\",\"\",COUNTA($C$88:$C130))","v":43},{"$f":"IF(INDEX(INDIRECT(\"Product_List\"),ROWS($88:130))=\"\",\"\",INDEX(INDIRECT(\"Product_List\"),ROWS($88:130)))","v":"43-เค้กโรลใบเตย"},{"$f":"ยอดยกมา","v":0},null,null,null,null,null,null,{"$f":"D130+E130+J130-I130+H130","v":0},null,{"$f":"INDIRECT(ADDRESS(ROW(A$80),ROW()-ROW(A$80)+(ROWS($88:130)-1)*2-1,4))","v":0},null,{"$f":"F130+G130+M130+J130-K130","v":0},null,{"$f":"O130*A130","v":0},null,null,null,{"$f":"D130+E130-F130-G130","v":0},null,{"$f":"U130*6%+U130","v":0},null,null,null,null,null,{"$f":"INDIRECT(ADDRESS(ROW(A$80),ROW()-ROW(A$80)+(ROWS($88:130)-1)*2,4))","v":0},0,null,0,{"$f":"INDIRECT(ADDRESS(ROW(A$80),ROW()-ROW(A$80)+(ROWS($88:130)-1)*2+1,4))","v":0}]
[{"$f":"IF(B131=\"\",0,INDEX(Price_List,ROWS($88:131)))","v":12},{"$f":"IF($C131=\"\",\"\",COUNTA($C$88:$C131))","v":44},{"$f":"IF(INDEX(INDIRECT(\"Product_List\"),ROWS($88:131))=\"\",\"\",INDEX(INDIRECT(\"Product_List\"),ROWS($88:131)))","v":"44-ขนมโมจิไส้ถั่วดำ"},{"$f":"ยอดยกมา","v":0},null,null,null,null,null,null,{"$f":"D131+E131+J131-I131+H131","v":0},null,{"$f":"INDIRECT(ADDRESS(ROW(A$80),ROW()-ROW(A$80)+(ROWS($88:131)-1)*2-1,4))","v":0},null,{"$f":"F131+G131+M131+J131-K131","v":0},null,{"$f":"O131*A131","v":0},null,null,null,{"$f":"D131+E131-F131-G131","v":0},null,{"$f":"U131*6%+U131","v":0},null,null,null,null,null,{"$f":"INDIRECT(ADDRESS(ROW(A$80),ROW()-ROW(A$80)+(ROWS($88:131)-1)*2,4))","v":0},0,null,0,{"$f":"INDIRECT(ADDRESS(ROW(A$80),ROW()-ROW(A$80)+(ROWS($88:131)-1)*2+1,4))","v":0}]
[{"$f":"IF(B132=\"\",0,INDEX(Price_List,ROWS($88:132)))","v":25},{"$f":"IF($C132=\"\",\"\",COUNTA($C$88:$C132))","v":45},{"$f":"IF(INDEX(INDIRECT(\"Product_List\"),ROWS($88:132))=\"\",\"\",INDEX(INDIRECT(\"Product_List\"),ROWS($88:132)))","v":"45-ครัวซองต์ไส้กรอกชีส"},{"$f":"ยอดยกมา","v":0},null,null,null,null,null,null,{"$f":"D132+E132+J132-I132+H132","v":0},null,{"$f":"INDIRECT(ADDRESS(ROW(A$80),ROW()-ROW(A$80)+(ROWS($88:132)-1)*2-1,4))","v":0},null,{"$f":"F132+G132+M132+J132-K132","v":0},null,{"$f":"O132*A132","v":0},null,null,null,{"$f":"D132+E132-F132-G132","v":0},null,{"$f":"U132*6%+U132","v":0},null,null,null,null,null,{"$f":"INDIRECT(ADDRESS(ROW(A$80),ROW()-ROW(A$80)+(ROWS($88:132)-1)*2,4))","v":0},0,null,0,{"$f":"INDIRECT(ADDRESS(ROW(A$80),ROW()-ROW(A$80)+(ROWS($88:132)-1)*2+1,4))","v":0}]
[{"$f":"IF(B133=\"\",0,INDEX(Price_List,ROWS($88:133)))","v":12},{"$f":"IF($C133=\"\",\"\",COUNTA($C$88:$C133))","v":46},{"$f":"IF(INDEX(INDIRECT(\"Product_List\"),ROWS($88:133))=\"\",\"\",INDEX(INDIRECT(\"Product_List\"),ROWS($88:133)))","v":"46-ขนมเปี๊ยะไส้ถั่ว"},{"$f":"ยอดยกมา","v":0},null,null,null,null,null,null,0,null,{"$f":"INDIRECT(ADDRESS(ROW(A$80),ROW()-ROW(A$80)+(ROWS($88:133)-1)*2-1,4))","v":0},null,0,null,0,null,null,null,0,null,0,null,null,null,null,null,{"$f":"INDIRECT(ADDRESS(ROW(A$80),ROW()-ROW(A$80)+(ROWS($88:133)-1)*2,4))","v":0},0,null,0,{"$f":"INDIRECT(ADDRESS(ROW(A$80),ROW()-ROW(A$80)+(ROWS($88:133)-1)*2+1,4))","v":0}]
[{"$f":"IF(B134=\"\",0,INDEX(Price_List,ROWS($88:134)))","v":12},{"$f":"IF($C134=\"\",\"\",COUNTA($C$88:$C134))","v":47},{"$f":"IF(INDEX(INDIRECT(\"Product_List\"),ROWS($88:134))=\"\",\"\",INDEX(INDIRECT(\"Product_List\"),ROWS($88:134)))","v":"47-ขนมเปี๊ยะไส้ฟัก"},{"$f":"ยอดยกมา","v":0},null,null,null,null,null,null,{"$f":"D134+E134+J134-I134+H134","v":0},null,{"$f":"INDIRECT(ADDRESS(ROW(A$80),ROW()-ROW(A$80)+(ROWS($88:134)-1)*2-1,4))","v":0},null,{"$f":"F134+G134+M134+J134-K134","v":0},null,{"$f":"O134*A134","v":0},null,null,null,{"$f":"D134+E134-F134-G134","v":0},null,{"$f":"U134*6%+U134","v":0},null,null,null,null,null,{"$f":"INDIRECT(ADDRESS(ROW(A$80),ROW()-ROW(A$80)+(ROWS($88:134)-1)*2,4))","v":0},0,null,0,{"$f":"INDIRECT(ADDRESS(ROW(A$80),ROW()-ROW(A$80)+(ROWS($88:134)-1)*2+1,4))","v":0}]
[{"$f":"IF(B135=\"\",0,INDEX(Price_List,ROWS($88:135)))","v":12},{"$f":"IF($C135=\"\",\"\",COUNTA($C$88:$C135))","v":48},{"$f":"IF(INDEX(INDIRECT(\"Product_List\"),ROWS($88:135))=\"\",\"\",INDEX(INDIRECT(\"Product_List\"),ROWS($88:135)))","v":"48-มังกี้เค้ก"},{"$f":"ยอดยกมา","v":0},null,null,null,null,null,null,0,null,{"$f":"INDIRECT(ADDRESS(ROW(A$80),ROW()-ROW(A$80)+(ROWS($88:135)-1)*2-1,4))","v":0},null,0,null,0,null,null,null,0,null,0,null,null,null,null,null,{"$f":"INDIRECT(ADDRESS(ROW(A$80),ROW()-ROW(A$80)+(ROWS($88:135)-1)*2,4))","v":0},0,null,0,{"$f":"INDIRECT(ADDRESS(ROW(A$80),ROW()-ROW(A$80)+(ROWS($88:135)-1)*2+1,4))","v":0}]
["รวม",null,null,{"$f":"SUM(D$88:D$135)","v":0},0,0,0,0,0,0,0,null,{"$f":"SUM(M$88:M$135)","v":0},null,null,null,{"$f":"$AP$98","v":0},null,"บาท",null,{"$f":"SUM(U$88:U$135)","v":0},null,{"$f":"SUM(W$88:W$135)","v":0},null,null,null,null,null,{"$f":"SUM(AC$88:AC$135)","v":0},{"$f":"SUM(AD$88:AD$135)","v":0},{"$f":"SUM(AE$88:AE$135)","v":0},{"$f":"SUM(AF$88:AF$135)","v":0},{"$f":"SUM(AG$88:AG$135)","v":0}]
["เลขที่ไมล์ เวลาออกทำงาน",null,null,{"$f":"$BF$3","v":0},null,"Km","น้ำหนักของเสีย"]
["เลขที่ไมล์ เวลากลับ",null,null,{"$f":"$BF$4","v":0},null,"Km",{"$f":"$AA$5","v":0},null,"KG"]
["เวลากลับถึงสำนักงาน",null,null,{"$f":"$BF$1","v":"00:00:00"},null,"น."]
["เติมน้ำมัน",null,null,{"$f":"$AX3","v":0},null,"บาท"]
["จำนวนน้ำมัน",null,null,{"$f":"$AX4","v":0},null,"ลิตร"]
["ยอดรวมต้นทุนสาขา",null,null,{"$f":"$AX5","v":0},null,"บาท"]

{"sheet":"27","index":31,"n_rows":142,"n_cols":154,"rows_kept":142,"cut":false,"hidden":false,"merged":[[83,132,83,133],[129,10,129,11],[129,12,129,13],[129,14,129,15],[129,16,129,17],[127,10,127,11],[127,12,127,13],[127,14,127,15],[127,16,127,17],[127,20,127,21],[127,22,127,23],[127,24,127,25],[127,33,127,36],[126,10,126,11],[126,12,126,13],[126,14,126,15],[126,16,126,17],[128,10,128,11],[128,12,128,13],[129,24,129,25],[125,10,125,11],[125,12,125,13],[125,14,125,15],[125,16,125,17],[7,132,7,134],[8,132,8,134],[80,132,80,133],[82,132,82,133],[7,135,7,137],[8,135,8,137],[80,135,80,136],[82,135,82,136],[7,138,7,140],[7,141,7,143],[7,147,7,149],[8,138,8,140],[141,0,141,2],[141,3,141,4],[138,0,138,2],[138,3,138,4],[139,0,139,2],[139,3,139,4],[140,0,140,2],[140,3,140,4],[135,24,135,25],[135,33,135,36],[136,0,136,2],[136,3,136,4],[137,0,137,2],[137,3,137,4],[137,6,137,7],[137,18,137,21],[135,0,135,2],[135,10,135,11],[135,12,135,13],[135,14,135,15],[135,16,135,17],[135,18,135,19],[135,20,135,21],[135,22,135,23],[128,14,128,15],[128,16,128,17],[128,20,128,21],[128,22,128,23],[129,20,129,21],[129,22,129,23],[131,16,131,17],[132,16,132,17],[134,16,134,17],[131,20,131,21],[132,20,132,21],[134,20,134,21],[131,22,131,23],[132,22,132,23],[134,22,134,23],[131,24,131,25],[132,24,132,25],[134,24,134,25],[129,33,129,36],[128,24,128,25],[128,33,128,36],[126,20,126,21],[126,22,126,23],[124,24,124,25],[124,33,124,36],[125,20,125,21],[125,22,125,23],[125,24,125,25],[125,33,125,36],[124,10,124,11],[124,12,124,13],[124,14,124,15],[124,16,124,17],[124,20,124,21],[124,22,124,23],[126,24,126,25],[126,33,126,36],[122,24,122,25],[122,33,122,36],[123,10,123,11],[123,12,123,13],[123,14,123,15],[123,16,123,17],[123,20,123,21],[123,22,123,23],[123,24,123,25],[123,33,123,36],[122,10,122,11],[122,12,122,13],[122,14,122,15],[122,16,122,17],[122,20,122,21],[122,22,122,23],[120,24,120,25],[120,33,120,36],[121,10,121,11],[121,12,121,13],[121,14,121,15],[121,16,121,17],[121,20,121,21],[121,22,121,23],[121,24,121,25],[121,33,121,36],[120,10,120,11],[120,12,120,13],[120,14,120,15],[120,16,120,17],[120,20,120,21],[120,22,120,23],[118,24,118,25],[118,33,118,36],[119,10,119,11],[119,12,119,13],[119,14,119,15],[119,16,119,17],[119,20,119,21],[119,22,119,23],[119,24,119,25],[119,33,119,36],[118,10,118,11],[118,12,118,13],[118,14,118,15],[118,16,118,17],[118,20,118,21],[118,22,118,23],[116,24,116,25],[116,33,116,36],[117,10,117,11],[117,12,117,13],[117,14,117,15],[117,16,117,17],[117,20,117,21],[117,22,117,23],[117,24,117,25],[117,33,117,36],[116,10,116,11],[116,12,116,13],[116,14,116,15],[116,16,116,17],[116,20,116,21],[116,22,116,23],[114,24,114,25],[114,33,114,36],[115,10,115,11],[115,12,115,13],[115,14,115,15],[115,16,115,17],[115,20,115,21],[115,22,115,23],[115,24,115,25],[115,33,115,36],[114,10,114,11],[114,12,114,13],[114,14,114,15],[114,16,114,17],[114,20,114,21],[114,22,114,23],[112,24,112,25],[112,33,112,36],[113,10,113,11],[113,12,113,13],[113,14,113,15],[113,16,113,17],[113,20,113,21],[113,22,113,23],[113,24,113,25],[113,33,113,36],[112,10,112,11],[112,12,112,13],[112,14,112,15],[112,16,112,17],[112,20,112,21],[112,22,112,23],[110,24,110,25],[110,33,110,36],[111,10,111,11],[111,12,111,13],[111,14,111,15],[111,16,111,17],[111,20,111,21],[111,22,111,23],[111,24,111,25],[111,33,111,36],[110,10,110,11],[110,12,110,13],[110,14,110,15],[110,16,110,17],[110,20,110,21],[110,22,110,23],[108,24,108,25],[108,33,108,36],[109,10,109,11],[109,12,109,13],[109,14,109,15],[109,16,109,17],[109,20,109,21],[109,22,109,23],[109,24,109,25],[109,33,109,36],[108,10,108,11],[108,12,108,13],[108,14,108,15],[108,16,108,17],[108,20,108,21],[108,22,108,23],[106,24,106,25],[106,33,106,36],[107,10,107,11],[107,12,107,13],[107,14,107,15],[107,16,107,17],[107,20,107,21],[107,22,107,23],[107,24,107,25],[107,33,107,36],[106,10,106,11],[106,12,106,13],[106,14,106,15],[106,16,106,17],[106,20,106,21],[106,22,106,23],[104,24,104,25],[104,33,104,36],[105,10,105,11],[105,12,105,13],[105,14,105,15],[105,16,105,17],[105,20,105,21],[105,22,105,23],[105,24,105,25],[105,33,105,36],[104,10,104,11],[104,12,104,13],[104,14,104,15],[104,16,104,17],[104,20,104,21],[104,22,104,23],[102,24,102,25],[102,33,102,36],[103,10,103,11],[103,12,103,13],[103,14,103,15],[103,16,103,17],[103,20,103,21],[103,22,103,23],[103,24,103,25],[103,33,103,36],[102,10,102,11],[102,12,102,13],[102,14,102,15],[102,16,102,17],[102,20,102,21],[102,22,102,23],[101,10,101,11],[101,12,101,13],[101,14,101,15],[101,16,101,17],[101,20,101,21],[101,22,101,23],[101,24,101,25],[101,33,101,36],[100,10,100,11],[100,12,100,13],[100,14,100,15],[100,16,100,17],[100,20,100,21],[100,22,100,23],[99,10,99,11],[99,12,99,13],[99,14,99,15],[99,16,99,17],[99,20,99,21],[99,22,99,23],[99,24,99,25],[99,33,99,36],[100,24,100,25],[100,33,100,36],[97,24,97,25],[97,33,97,36],[97,38,97,40],[98,10,98,11],[98,12,98,13],[98,14,98,15],[98,16,98,17],[98,20,98,21],[98,22,98,23],[98,24,98,25],[97,10,97,11],[97,12,97,13],[97,14,97,15],[97,16,97,17],[97,20,97,21],[97,22,97,23],[98,33,98,36],[95,24,95,25],[95,33,95,36],[96,10,96,11],[96,12,96,13],[96,14,96,15],[96,16,96,17],[96,20,96,21],[96,22,96,23],[96,24,96,25],[96,33,96,36],[95,10,95,11],[95,12,95,13],[95,14,95,15],[95,16,95,17],[95,20,95,21],[95,22,95,23],[93,24,93,25],[93,33,93,36],[94,10,94,11],[94,12,94,13],[94,14,94,15],[94,16,94,17],[94,20,94,21],[94,22,94,23],[94,24,94,25],[94,33,94,36],[93,10,93,11],[93,12,93,13],[93,14,93,15],[93,16,93,17],[93,20,93,21],[93,22,93,23],[91,24,91,25],[91,33,91,36],[92,10,92,11],[92,12,92,13],[92,14,92,15],[92,16,92,17],[92,20,92,21],[92,22,92,23],[92,24,92,25],[92,33,92,36],[91,10,91,11],[91,12,91,13],[91,14,91,15],[91,16,91,17],[91,20,91,21],[91,22,91,23],[86,22,86,23],[86,24,86,25],[88,20,88,21],[88,22,88,23],[88,24,88,25],[88,33,88,36],[89,24,89,25],[89,33,89,36],[90,10,90,11],[90,12,90,13],[90,14,90,15],[90,16,90,17],[90,20,90,21],[90,22,90,23],[90,24,90,25],[90,33,90,36],[89,10,89,11],[89,12,89,13],[89,14,89,15],[89,16,89,17],[89,20,89,21],[89,22,89,23],[83,36,83,37],[83,39,83,40],[83,42,83,43],[83,45,83,46],[83,48,83,49],[83,51,83,52],[83,150,83,153],[86,10,86,11],[86,12,86,13],[86,14,86,15],[86,16,86,17],[86,20,86,21],[83,108,83,109],[83,111,83,112],[83,114,83,115],[83,117,83,118],[83,120,83,121],[83,123,83,124],[83,90,83,91],[83,93,83,94],[83,96,83,97],[83,99,83,100],[83,102,83,103],[83,105,83,106],[82,39,82,40],[82,42,82,43],[82,45,82,46],[82,48,82,49],[83,84,83,85],[83,87,83,88],[83,54,83,55],[83,57,83,58],[83,60,83,61],[83,63,83,64],[83,66,83,67],[83,69,83,70],[83,72,83,73],[83,75,83,76],[83,78,83,79],[83,81,83,82],[83,0,83,5],[83,6,83,7],[83,9,83,10],[83,12,83,13],[83,15,83,16],[82,105,82,106],[82,108,82,109],[82,111,82,112],[82,114,82,115],[82,87,82,88],[82,90,82,91],[82,93,82,94],[82,96,82,97],[82,99,82,100],[82,102,82,103],[82,69,82,70],[82,72,82,73],[82,75,82,76],[82,78,82,79],[82,81,82,82],[82,84,82,85],[82,51,82,52],[82,54,82,55],[82,57,82,58],[82,15,82,16],[82,18,82,19],[82,21,82,22],[82,24,82,25],[82,27,82,28],[82,30,82,31],[81,0,81,2],[81,3,81,5],[81,150,82,153],[82,0,82,2],[82,3,82,4],[82,6,82,7],[82,9,82,10],[82,12,82,13],[82,123,82,124],[82,126,82,127],[82,129,82,130],[82,117,82,118],[82,120,82,121],[82,60,82,61],[82,63,82,64],[82,66,82,67],[82,33,82,34],[82,36,82,37],[80,114,80,115],[80,117,80,118],[80,120,80,121],[80,123,80,124],[80,126,80,127],[80,129,80,130],[80,96,80,97],[80,99,80,100],[80,102,80,103],[80,105,80,106],[80,108,80,109],[80,111,80,112],[80,78,80,79],[80,81,80,82],[80,87,80,88],[80,90,80,91],[80,93,80,94],[80,60,80,61],[80,63,80,64],[80,66,80,67],[80,69,80,70],[80,72,80,73],[80,75,80,76],[80,84,80,85],[79,0,79,5],[80,0,80,5],[80,6,80,7],[80,9,80,10],[80,12,80,13],[80,15,80,16],[80,18,80,19],[80,21,80,22],[8,114,8,116],[8,78,8,80],[8,81,8,83],[8,87,8,89],[8,90,8,92],[8,93,8,95],[8,60,8,62],[8,63,8,65],[8,66,8,68],[8,69,8,71],[8,72,8,74],[8,75,8,77],[8,54,8,56],[8,57,8,59],[8,24,8,26],[8,27,8,29],[8,120,8,122],[8,123,8,125],[8,126,8,128],[8,129,8,131],[8,96,8,98],[8,99,8,101],[8,102,8,104],[8,105,8,107],[8,108,8,110],[8,111,8,113],[8,33,8,35],[8,36,8,38],[8,39,8,41],[8,84,8,86],[7,150,8,150],[7,151,8,151],[8,6,8,8],[8,9,8,11],[8,12,8,14],[8,15,8,17],[8,18,8,20],[8,21,8,23],[7,114,7,116],[7,117,7,119],[7,120,7,122],[7,123,7,125],[7,126,7,128],[7,129,7,131],[7,96,7,98],[7,99,7,101],[7,102,7,104],[7,105,7,107],[7,108,7,110],[8,117,8,119],[7,87,7,89],[7,90,7,92],[7,93,7,95],[7,60,7,62],[7,63,7,65],[7,66,7,68],[7,69,7,71],[7,72,7,74],[7,75,7,77],[7,54,7,56],[7,57,7,59],[7,24,7,26],[7,27,7,29],[7,30,7,32],[7,33,7,35],[7,36,7,38],[7,39,7,41],[7,84,7,86],[6,150,6,151],[6,152,8,152],[6,153,8,153],[7,6,7,8],[7,9,7,11],[7,12,7,14],[7,15,7,17],[7,18,7,20],[7,21,7,23],[6,117,6,119],[6,120,6,122],[6,123,6,125],[6,126,6,128],[6,129,6,131],[6,99,6,101],[6,102,6,104],[6,105,6,107],[6,108,6,110],[6,111,6,113],[6,54,6,56],[6,57,6,59],[7,111,7,113],[7,78,7,80],[7,81,7,83],[6,0,8,0],[6,1,8,1],[6,2,8,2],[6,3,8,3],[6,4,8,4],[6,6,6,8],[6,45,6,47],[6,48,6,50],[6,51,6,53],[7,42,7,44],[7,45,7,47],[7,48,7,50],[7,51,7,53],[8,42,8,44],[8,45,8,47],[8,48,8,50],[8,51,8,53],[6,27,6,29],[6,30,6,32],[6,33,6,35],[6,36,6,38],[6,39,6,41],[6,42,6,44],[8,30,8,32],[4,26,4,29],[4,30,4,31],[4,32,4,34],[4,35,4,36],[6,9,6,11],[6,12,6,14],[6,15,6,17],[6,18,6,20],[6,21,6,23],[6,24,6,26],[3,41,3,44],[3,46,3,48],[3,49,3,51],[3,54,3,56],[3,57,3,60],[4,0,4,1],[4,2,4,3],[4,4,4,5],[4,6,4,12],[4,14,4,16],[3,17,3,19],[3,22,3,25],[3,26,3,29],[3,30,3,33],[3,34,3,37],[3,38,3,40],[4,38,4,40],[4,41,4,44],[4,46,4,48],[4,49,4,51],[4,54,4,56],[4,57,4,60],[4,17,4,19],[4,22,4,25],[2,38,2,40],[3,0,3,1],[3,2,3,3],[3,4,3,5],[3,6,3,12],[3,14,3,16],[2,17,2,19],[2,22,2,25],[2,26,2,29],[2,30,2,33],[80,36,80,37],[80,39,80,40],[0,38,0,40],[0,41,0,44],[0,46,0,48],[0,54,0,56],[0,57,0,60],[2,0,2,1],[2,2,2,3],[2,4,2,5],[2,6,2,12],[2,14,2,16],[0,0,0,12],[0,14,0,16],[0,17,0,23],[0,30,0,33],[0,34,0,35],[0,36,0,37],[2,41,2,44],[2,46,2,48],[2,49,2,51],[2,54,2,56],[2,57,2,60],[2,34,2,37],[6,141,6,143],[6,147,6,149],[83,18,83,19],[83,21,83,22],[83,24,83,25],[83,27,83,28],[83,30,83,31],[83,33,83,34],[83,126,83,127],[83,129,83,130],[8,141,8,143],[8,147,8,149],[80,138,80,139],[80,141,80,142],[80,147,80,148],[82,138,82,139],[82,141,82,142],[82,147,82,148],[6,60,6,62],[6,87,6,89],[6,90,6,92],[6,93,6,95],[6,96,6,98],[6,63,6,65],[88,12,88,13],[88,14,88,15],[88,16,88,17],[6,114,6,116],[6,81,6,83],[6,84,6,86],[6,132,6,134],[6,135,6,137],[6,138,6,140],[6,66,6,68],[6,69,6,71],[6,72,6,74],[6,75,6,77],[6,78,6,80],[80,42,80,43],[80,45,80,46],[80,48,80,49],[80,51,80,52],[80,54,80,55],[80,57,80,58],[80,24,80,25],[80,27,80,28],[80,30,80,31],[80,33,80,34],[83,147,83,148],[131,33,131,36],[132,33,132,36],[134,33,134,36],[131,10,131,11],[132,10,132,11],[134,10,134,11],[131,12,131,13],[132,12,132,13],[134,12,134,13],[131,14,131,15],[132,14,132,15],[134,14,134,15],[86,33,86,36],[87,10,87,11],[87,12,87,13],[87,14,87,15],[87,16,87,17],[87,20,87,21],[87,22,87,23],[83,135,83,136],[130,10,130,11],[130,12,130,13],[130,14,130,15],[6,144,6,146],[7,144,7,146],[8,144,8,146],[80,144,80,145],[82,144,82,145],[83,144,83,145],[133,10,133,11],[133,12,133,13],[133,14,133,15],[133,16,133,17],[133,20,133,21],[133,22,133,23],[133,24,133,25],[133,33,133,36],[83,138,83,139],[83,141,83,142],[130,16,130,17],[130,20,130,21],[130,22,130,23],[130,24,130,25],[130,33,130,36],[87,24,87,25],[87,33,87,36],[88,10,88,11]]}
[":::: รายงานการขายประจำวัน (Sale Daily Report)  ::::",null,null,null,null,null,null,null,null,null,null,null,null,null,"Print Date : ",null,null,{"$f":"NOW()","v":"2025-04-24T22:39:10.130"},null,null,null,null,null,null,null,null,null,null,null,null,"จำนวนร้าน :",null,null,null,{"$f":"MAX($A$10:$A$79)","v":0},null,"ร้าน",null,"เป้ายอดขาย :",null,null,null,null,null,null,null,{"$f":"C3","v":45804},null,null,{"$f":"LEFT('Problems & Solutions'!$B$2,FIND(\"|\",'Problems & Solutions'!$B$2))&\" วันที่\"&TEXT($C$3,\"[$-107041E] d mmmm yyyy;@\")","v":"ขั้นตอนการตรวจรีพอร์ตขาย | วันที่ 27 พฤษภาคม 2568"},null,null,null,null,"เวลากลับ :"]
[]
["วันที่ :",null,{"$f":"DATE(ใส่ข้อมูล!G2-543,ใส่ข้อมูล!V2,ActiveSheetName)","v":"2025-05-27"},null,"พนักงานขาย",null,{"$f":"INDEX(OFFSET(Sale_Region,,1),ActiveSheetName)","v":0},null,null,null,null,null,null,null,"รวมยอดเบิก :",null,null,{"$f":"E136","v":0},null,null,"ชิ้น",null,"ใหญ่สด(40)",null,null,null,{"$f":"Cash_Major_Bill","v":0},null,null,null,"ใหญ่เชื่อ(42)",null,null,null,{"$f":"Credit_Major_Bill","v":0},null,null,null,"บิลใหญ่ :",null,null,{"$f":"AA3+AI3","v":0},null,null,null,null,"เติมน้ำมัน :",null,null,null,null,null,"บาท",null,"ไมล์ออก :",null,null,{"$f":"เลขไมล์ออก","v":0},null,null,null,"Km"]
["เขตการขาย :",null,{"$f":"INDEX(Sale_Region,ActiveSheetName)","v":0},null,"ผช.ขาย",null,{"$f":"INDEX(OFFSET(Sale_Region,,2),ActiveSheetName)","v":0},null,null,null,null,null,null,null,"ของเหลือ :",null,null,{"$f":"F136","v":0},null,null,"ชิ้น",null,"เล็กสด(41)",null,null,null,{"$f":"Cash_Minor_Bill","v":0},null,null,null,"เล็กเชื่อ(43)",null,null,null,{"$f":"Credit_Minor_Bill","v":0},null,null,null,"บิลเล็ก :",null,null,{"$f":"AA4+AI4","v":0},null,null,null,null,"จำนวนลิตร :",null,null,null,null,null,"ลิตร",null,"ไมล์เข้า :",null,null,null,null,null,null,"Km"]
["สายส่ง :",null,{"$f":"\"Sale \"&ใส่ข้อมูล!E3&\"-\"&ใส่ข้อมูล!G3","v":"Sale KB-01"},null,"พนักงานเสริม",null,{"$f":"INDEX(OFFSET(Sale_Region,,3),ActiveSheetName)","v":0},null,null,null,null,null,null,null,"ของเสีย :",null,null,{"$f":"G136","v":0},null,null,"ชิ้น",null,"น้ำหนักของเสีย",null,null,null,null,null,null,null,"Kg.",null,"%ของเสีย",null,null,{"$f":"IF(Order_Cal=0,0,ROUND(Waste_Cal*100/Order_Cal,2))","v":0},null,"%","VAT :",null,null,{"$f":"EW81","v":0},null,null,null,null,"ต้นทุนสาขา :",null,null,{"$f":"SUMPRODUCT((($A$88:$A$135)-($A$88:$A$135)*0.45)*(($E$88:$E$135)-($G$88:$G$135)))","v":0},null,null,"บาท",null,"ระยะทาง :",null,null,{"$f":"IF(OR($BF$4=0,$BF$3=0),0,$BF$4-$BF$3)","v":0},null,null,null,"Km"]
[]
["No","รหัสร้าน (CustNo)","ชื่อร้าน (Store Name)","เวลาเข้าร้าน","ระยะเวลาระหว่างร้าน","บิล(Invoice)",{"$f":"INDEX(INDIRECT(\"dProduct[ProductName]\"),ROUNDUP(COLUMNS($G:G)/3,0))","v":"ขนมปังหมูหยองน้ำสลัด"},null,null,{"$f":"INDEX(INDIRECT(\"dProduct[ProductName]\"),ROUNDUP(COLUMNS($G:J)/3,0))","v":"ขนมปังหมูหยองน้ำพริกเผา"},null,null,{"$f":"INDEX(INDIRECT(\"dProduct[ProductName]\"),ROUNDUP(COLUMNS($G:M)/3,0))","v":"ขนมปังไก่หยองน้ำสลัด"},null,null,{"$f":"INDEX(INDIRECT(\"dProduct[ProductName]\"),ROUNDUP(COLUMNS($G:P)/3,0))","v":"ขนมปังไส้ครีมสลัด"},null,null,{"$f":"INDEX(INDIRECT(\"dProduct[ProductName]\"),ROUNDUP(COLUMNS($G:S)/3,0))","v":"ขนมปังเนยสด"},null,null,{"$f":"INDEX(INDIRECT(\"dProduct[ProductName]\"),ROUNDUP(COLUMNS($G:V)/3,0))","v":"ขนมปังไส้สังขยาเล็ก"},null,null,{"$f":"INDEX(INDIRECT(\"dProduct[ProductName]\"),ROUNDUP(COLUMNS($G:Y)/3,0))","v":"ขนมปังไส้เผือก"},null,null,{"$f":"INDEX(INDIRECT(\"dProduct[ProductName]\"),ROUNDUP(COLUMNS($G:AB)/3,0))","v":"ขนมปังไส้ถั่วแดง"},null,null,{"$f":"INDEX(INDIRECT(\"dProduct[ProductName]\"),ROUNDUP(COLUMNS($G:AE)/3,0))","v":"ขนมปังไส้ถั่วดำ"},null,null,{"$f":"INDEX(INDIRECT(\"dProduct[ProductName]\"),ROUNDUP(COLUMNS($G:AH)/3,0))","v":"ขนมปังไส้มันม่วง"},null,null,{"$f":"INDEX(INDIRECT(\"dProduct[ProductName]\"),ROUNDUP(COLUMNS($G:AK)/3,0))","v":"เค้กกล้วยหอม"},null,null,{"$f":"INDEX(INDIRECT(\"dProduct[ProductName]\"),ROUNDUP(COLUMNS($G:AN)/3,0))","v":"เค้กบัตเตอร์"},null,null,{"$f":"INDEX(INDIRECT(\"dProduct[ProductName]\"),ROUNDUP(COLUMNS($G:AQ)/3,0))","v":"ขนมปังโรลถั่วแดง"},null,null,{"$f":"INDEX(INDIRECT(\"dProduct[ProductName]\"),ROUNDUP(COLUMNS($G:AT)/3,0))","v":"ขนมปังไส้สังขยาใหญ่"},null,null,{"$f":"INDEX(INDIRECT(\"dProduct[ProductName]\"),ROUNDUP(COLUMNS($G:AW)/3,0))","v":"ขนมปังชนิดแผ่น(480กรัม)"},null,null,{"$f":"INDEX(INDIRECT(\"dProduct[ProductName]\"),ROUNDUP(COLUMNS($G:AZ)/3,0))","v":"โมจิไส้ถั่ว"},null,null,{"$f":"INDEX(INDIRECT(\"dProduct[ProductName]\"),ROUNDUP(COLUMNS($G:BC)/3,0))","v":"โมจิไส้เผือก"},null,null,{"$f":"INDEX(INDIRECT(\"dProduct[ProductName]\"),ROUNDUP(COLUMNS($G:BF)/3,0))","v":"โมจิไส้ถั่วไข่เค็ม"},null,null,{"$f":"INDEX(INDIRECT(\"dProduct[ProductName]\"),ROUNDUP(COLUMNS($G:BI)/3,0))","v":"ขนมปังพิซซ่า"},null,null,{"$f":"INDEX(INDIRECT(\"dProduct[ProductName]\"),ROUNDUP(COLUMNS($G:BL)/3,0))","v":"ขนมปังพิซซ่าปูอัดแฮม"},null,null,{"$f":"INDEX(INDIRECT(\"dProduct[ProductName]\"),ROUNDUP(COLUMNS($G:BO)/3,0))","v":"ขนมปังไส้กรอก"},null,null,{"$f":"INDEX(INDIRECT(\"dProduct[ProductName]\"),ROUNDUP(COLUMNS($G:BR)/3,0))","v":"ขนมก้านบัว"},null,null,{"$f":"INDEX(INDIRECT(\"dProduct[ProductName]\"),ROUNDUP(COLUMNS($G:BU)/3,0))","v":"พายสับปะรด"},null,null,{"$f":"INDEX(INDIRECT(\"dProduct[ProductName]\"),ROUNDUP(COLUMNS($G:BX)/3,0))","v":"พายไส้มะพร้าว"},null,null,{"$f":"INDEX(INDIRECT(\"dProduct[ProductName]\"),ROUNDUP(COLUMNS($G:CA)/3,0))","v":"ขนมปังโรลมันเทศ"},null,null,{"$f":"INDEX(INDIRECT(\"dProduct[ProductName]\"),ROUNDUP(COLUMNS($G:CD)/3,0))","v":"ขนมปังไส้ครีมสลัดน้ำพริกเผา"},null,null,{"$f":"INDEX(INDIRECT(\"dProduct[ProductName]\"),ROUNDUP(COLUMNS($G:CG)/3,0))","v":"ขนมปังไส้สังขยาไข่"},null,null,{"$f":"INDEX(INDIRECT(\"dProduct[ProductName]\"),ROUNDUP(COLUMNS($G:CJ)/3,0))","v":"ขนมปังไส้สังขยามะพร้าว"},null,null,{"$f":"INDEX(INDIRECT(\"dProduct[ProductName]\"),ROUNDUP(COLUMNS($G:CM)/3,0))","v":"ขนมปังไส้ครีมชาไทย"},null,null,{"$f":"INDEX(INDIRECT(\"dProduct[ProductName]\"),ROUNDUP(COLUMNS($G:CP)/3,0))","v":"ขนมปังโรลมันม่วง"},null,null,{"$f":"INDEX(INDIRECT(\"dProduct[ProductName]\"),ROUNDUP(COLUMNS($G:CS)/3,0))","v":"ขนมปังโรลช็อกโกแลต"},null,null,{"$f":"INDEX(INDIRECT(\"dProduct[ProductName]\"),ROUNDUP(COLUMNS($G:CV)/3,0))","v":"ขนมปังชนิดแผ่น(155กรัม)"},null,null,{"$f":"INDEX(INDIRECT(\"dProduct[ProductName]\"),ROUNDUP(COLUMNS($G:CY)/3,0))","v":"ขนมปังโรลเผือก"},null,null,{"$f":"INDEX(INDIRECT(\"dProduct[ProductName]\"),ROUNDUP(COLUMNS($G:DB)/3,0))","v":"ขนมปังไก่หยองน้ำสลัด Mini"},null,null,{"$f":"INDEX(INDIRECT(\"dProduct[ProductName]\"),ROUNDUP(COLUMNS($G:DE)/3,0))","v":"ขนมปังไส้ช็อกโกแลต"},null,null,{"$f":"INDEX(INDIRECT(\"dProduct[ProductName]\"),ROUNDUP(COLUMNS($G:DH)/3,0))","v":"ขนมปังไส้ครีมสังขยาไข่"},null,null,{"$f":"INDEX(INDIRECT(\"dProduct[ProductName]\"),ROUNDUP(COLUMNS($G:DK)/3,0))","v":"ขนมปังพิซซ่าฮาวายเอี้ยน"},null,null,{"$f":"INDEX(INDIRECT(\"dProduct[ProductName]\"),ROUNDUP(COLUMNS($G:DN)/3,0))","v":"ครัวซองต์หมูหยองน้ำสลัด"},null,null,{"$f":"INDEX(INDIRECT(\"dProduct[ProductName]\"),ROUNDUP(COLUMNS($G:DQ)/3,0))","v":"แพนเบรดไส้เผือก"},null,null,{"$f":"INDEX(INDIRECT(\"dProduct[ProductName]\"),ROUNDUP(COLUMNS($G:DT)/3,0))","v":"แพนเบรดไส้ถั่วแดง"},null,null,{"$f":"INDEX(INDIRECT(\"dProduct[ProductName]\"),ROUNDUP(COLUMNS($G:DW)/3,0))","v":"ขนมปังกรอบเนยน้ำตาล(30กรัม)"},null,null,{"$f":"INDEX(INDIRECT(\"dProduct[ProductName]\"),ROUNDUP(COLUMNS($G:DZ)/3,0))","v":"ขนมปังชนิดแผ่นโฮลวีต"},null,null,{"$f":"INDEX(INDIRECT(\"dProduct[ProductName]\"),ROUNDUP(COLUMNS($G:EC)/3,0))","v":"เค้กโรลใบเตย"},null,null,{"$f":"INDEX(INDIRECT(\"dProduct[ProductName]\"),ROUNDUP(COLUMNS($G:EF)/3,0))","v":"ขนมโมจิไส้ถั่วดำ"},null,null,{"$f":"INDEX(INDIRECT(\"dProduct[ProductName]\"),ROUNDUP(COLUMNS($G:EI)/3,0))","v":"ครัวซองต์ไส้กรอกชีส"},null,null,{"$f":"INDEX(INDIRECT(\"dProduct[ProductName]\"),ROUNDUP(COLUMNS($G:EL)/3,0))","v":"ขนมเปี๊ยะไส้ถั่ว"},null,null,{"$f":"INDEX(INDIRECT(\"dProduct[ProductName]\"),ROUNDUP(COLUMNS($G:EO)/3,0))","v":"ขนมเปี๊ยะไส้ฟัก"},null,null,{"$f":"INDEX(INDIRECT(\"dProduct[ProductName]\"),ROUNDUP(COLUMNS($G:ER)/3,0))","v":"มังกี้เค้ก"},null,null,"มูลค่าสินค้า",null,"ภาษี","รวมยอดขาย"]
[null,null,null,null,null,"ราคาขาย",{"$f":"IF(G$7=0,0,INDEX(Price_List,ROUNDUP(COLUMNS($G:G)/3,0)))","v":20},null,null,{"$f":"IF(J$7=0,0,INDEX(Price_List,ROUNDUP(COLUMNS($G:J)/3,0)))","v":20},null,null,{"$f":"IF(M$7=0,0,INDEX(Price_List,ROUNDUP(COLUMNS($G:M)/3,0)))","v":20},null,null,{"$f":"IF(P$7=0,0,INDEX(Price_List,ROUNDUP(COLUMNS($G:P)/3,0)))","v":15},null,null,{"$f":"IF(S$7=0,0,INDEX(Price_List,ROUNDUP(COLUMNS($G:S)/3,0)))","v":15},null,null,{"$f":"IF(V$7=0,0,INDEX(Price_List,ROUNDUP(COLUMNS($G:V)/3,0)))","v":10},null,null,{"$f":"IF(Y$7=0,0,INDEX(Price_List,ROUNDUP(COLUMNS($G:Y)/3,0)))","v":10},null,null,{"$f":"IF(AB$7=0,0,INDEX(Price_List,ROUNDUP(COLUMNS($G:AB)/3,0)))","v":10},null,null,{"$f":"IF(AE$7=0,0,INDEX(Price_List,ROUNDUP(COLUMNS($G:AE)/3,0)))","v":10},null,null,{"$f":"IF(AH$7=0,0,INDEX(Price_List,ROUNDUP(COLUMNS($G:AH)/3,0)))","v":10},null,null,{"$f":"IF(AK$7=0,0,INDEX(Price_List,ROUNDUP(COLUMNS($G:AK)/3,0)))","v":15},null,null,{"$f":"IF(AN$7=0,0,INDEX(Price_List,ROUNDUP(COLUMNS($G:AN)/3,0)))","v":15},null,null,{"$f":"IF(AQ$7=0,0,INDEX(Price_List,ROUNDUP(COLUMNS($G:AQ)/3,0)))","v":15},null,null,{"$f":"IF(AT$7=0,0,INDEX(Price_List,ROUNDUP(COLUMNS($G:AT)/3,0)))","v":15},null,null,{"$f":"IF(AW$7=0,0,INDEX(Price_List,ROUNDUP(COLUMNS($G:AW)/3,0)))","v":42},null,null,{"$f":"IF(AZ$7=0,0,INDEX(Price_List,ROUNDUP(COLUMNS($G:AZ)/3,0)))","v":12},null,null,{"$f":"IF(BC$7=0,0,INDEX(Price_List,ROUNDUP(COLUMNS($G:BC)/3,0)))","v":12},null,null,{"$f":"IF(BF$7=0,0,INDEX(Price_List,ROUNDUP(COLUMNS($G:BF)/3,0)))","v":15},null,null,{"$f":"IF(BI$7=0,0,INDEX(Price_List,ROUNDUP(COLUMNS($G:BI)/3,0)))","v":20},null,null,{"$f":"IF(BL$7=0,0,INDEX(Price_List,ROUNDUP(COLUMNS($G:BL)/3,0)))","v":20},null,null,{"$f":"IF(BO$7=0,0,INDEX(Price_List,ROUNDUP(COLUMNS($G:BO)/3,0)))","v":20},null,null,{"$f":"IF(BR$7=0,0,INDEX(Price_List,ROUNDUP(COLUMNS($G:BR)/3,0)))","v":15},null,null,{"$f":"IF(BU$7=0,0,INDEX(Price_List,ROUNDUP(COLUMNS($G:BU)/3,0)))","v":20},null,null,{"$f":"IF(BX$7=0,0,INDEX(Price_List,ROUNDUP(COLUMNS($G:BX)/3,0)))","v":20},null,null,{"$f":"IF(CA$7=0,0,INDEX(Price_List,ROUNDUP(COLUMNS($G:CA)/3,0)))","v":15},null,null,{"$f":"IF(CD$7=0,0,INDEX(Price_List,ROUNDUP(COLUMNS($G:CD)/3,0)))","v":15},null,null,{"$f":"IF(CG$7=0,0,INDEX(Price_List,ROUNDUP(COLUMNS($G:CG)/3,0)))","v":20},null,null,{"$f":"IF(CJ$7=0,0,INDEX(Price_List,ROUNDUP(COLUMNS($G:CJ)/3,0)))","v":20},null,null,{"$f":"IF(CM$7=0,0,INDEX(Price_List,ROUNDUP(COLUMNS($G:CM)/3,0)))","v":10},null,null,{"$f":"IF(CP$7=0,0,INDEX(Price_List,ROUNDUP(COLUMNS($G:CP)/3,0)))","v":15},null,null,{"$f":"IF(CS$7=0,0,INDEX(Price_List,ROUNDUP(COLUMNS($G:CS)/3,0)))","v":15},null,null,{"$f":"IF(CV$7=0,0,INDEX(Price_List,ROUNDUP(COLUMNS($G:CV)/3,0)))","v":16},null,null,{"$f":"IF(CY$7=0,0,INDEX(Price_List,ROUNDUP(COLUMNS($G:CY)/3,0)))","v":15},null,null,{"$f":"IF(DB$7=0,0,INDEX(Price_List,ROUNDUP(COLUMNS($G:DB)/3,0)))","v":15},null,null,{"$f":"IF(DE$7=0,0,INDEX(Price_List,ROUNDUP(COLUMNS($G:DE)/3,0)))","v":10},null,null,{"$f":"IF(DH$7=0,0,INDEX(Price_List,ROUNDUP(COLUMNS($G:DH)/3,0)))","v":10},null,null,{"$f":"IF(DK$7=0,0,INDEX(Price_List,ROUNDUP(COLUMNS($G:DK)/3,0)))","v":20},null,null,{"$f":"IF(DN$7=0,0,INDEX(Price_List,ROUNDUP(COLUMNS($G:DN)/3,0)))","v":20},null,null,{"$f":"IF(DQ$7=0,0,INDEX(Price_List,ROUNDUP(COLUMNS($G:DQ)/3,0)))","v":15},null,null,{"$f":"IF(DT$7=0,0,INDEX(Price_List,ROUNDUP(COLUMNS($G:DT)/3,0)))","v":15},null,null,{"$f":"IF(DW$7=0,0,INDEX(Price_List,ROUNDUP(COLUMNS($G:DW)/3,0)))","v":12},null,null,{"$f":"IF(DZ$7=0,0,INDEX(Price_List,ROUNDUP(COLUMNS($G:DZ)/3,0)))","v":18},null,null,{"$f":"IF(EC$7=0,0,INDEX(Price_List,ROUNDUP(COLUMNS($G:EC)/3,0)))","v":12},null,null,{"$f":"IF(EF$7=0,0,INDEX(Price_List,ROUNDUP(COLUMNS($G:EF)/3,0)))","v":12},null,null,{"$f":"IF(EI$7=0,0,INDEX(Price_List,ROUNDUP(COLUMNS($G:EI)/3,0)))","v":25},null,null,{"$f":"IF(EL$7=0,0,INDEX(Price_List,ROUNDUP(COLUMNS($G:EL)/3,0)))","v":12},null,null,{"$f":"IF(EO$7=0,0,INDEX(Price_List,ROUNDUP(COLUMNS($G:EO)/3,0)))","v":12},null,null,{"$f":"IF(ER$7=0,0,INDEX(Price_List,ROUNDUP(COLUMNS($G:ER)/3,0)))","v":12},null,null,"เงินเชื่อ","เงินสด"]
[null,null,null,null,null,"คงเหลือ(ตามบัญชี)",{"$f":"IF(G$7=0,0,INDEX(INDIRECT(Order_Rng),ROUNDUP(COLUMNS($G:G)/3,0)))","v":0},null,null,{"$f":"IF(J$7=0,0,INDEX(INDIRECT(Order_Rng),ROUNDUP(COLUMNS($G:J)/3,0)))","v":0},null,null,{"$f":"IF(M$7=0,0,INDEX(INDIRECT(Order_Rng),ROUNDUP(COLUMNS($G:M)/3,0)))","v":0},null,null,{"$f":"IF(P$7=0,0,INDEX(INDIRECT(Order_Rng),ROUNDUP(COLUMNS($G:P)/3,0)))","v":0},null,null,{"$f":"IF(S$7=0,0,INDEX(INDIRECT(Order_Rng),ROUNDUP(COLUMNS($G:S)/3,0)))","v":0},null,null,{"$f":"IF(V$7=0,0,INDEX(INDIRECT(Order_Rng),ROUNDUP(COLUMNS($G:V)/3,0)))","v":0},null,null,{"$f":"IF(Y$7=0,0,INDEX(INDIRECT(Order_Rng),ROUNDUP(COLUMNS($G:Y)/3,0)))","v":0},null,null,{"$f":"IF(AB$7=0,0,INDEX(INDIRECT(Order_Rng),ROUNDUP(COLUMNS($G:AB)/3,0)))","v":0},null,null,{"$f":"IF(AE$7=0,0,INDEX(INDIRECT(Order_Rng),ROUNDUP(COLUMNS($G:AE)/3,0)))","v":0},null,null,{"$f":"IF(AH$7=0,0,INDEX(INDIRECT(Order_Rng),ROUNDUP(COLUMNS($G:AH)/3,0)))","v":0},null,null,{"$f":"IF(AK$7=0,0,INDEX(INDIRECT(Order_Rng),ROUNDUP(COLUMNS($G:AK)/3,0)))","v":0},null,null,{"$f":"IF(AN$7=0,0,INDEX(INDIRECT(Order_Rng),ROUNDUP(COLUMNS($G:AN)/3,0)))","v":0},null,null,{"$f":"IF(AQ$7=0,0,INDEX(INDIRECT(Order_Rng),ROUNDUP(COLUMNS($G:AQ)/3,0)))","v":0},null,null,{"$f":"IF(AT$7=0,0,INDEX(INDIRECT(Order_Rng),ROUNDUP(COLUMNS($G:AT)/3,0)))","v":0},null,null,{"$f":"IF(AW$7=0,0,INDEX(INDIRECT(Order_Rng),ROUNDUP(COLUMNS($G:AW)/3,0)))","v":0},null,null,{"$f":"IF(AZ$7=0,0,INDEX(INDIRECT(Order_Rng),ROUNDUP(COLUMNS($G:AZ)/3,0)))","v":0},null,null,{"$f":"IF(BC$7=0,0,INDEX(INDIRECT(Order_Rng),ROUNDUP(COLUMNS($G:BC)/3,0)))","v":0},null,null,{"$f":"IF(BF$7=0,0,INDEX(INDIRECT(Order_Rng),ROUNDUP(COLUMNS($G:BF)/3,0)))","v":0},null,null,{"$f":"IF(BI$7=0,0,INDEX(INDIRECT(Order_Rng),ROUNDUP(COLUMNS($G:BI)/3,0)))","v":0},null,null,{"$f":"IF(BL$7=0,0,INDEX(INDIRECT(Order_Rng),ROUNDUP(COLUMNS($G:BL)/3,0)))","v":0},null,null,{"$f":"IF(BO$7=0,0,INDEX(INDIRECT(Order_Rng),ROUNDUP(COLUMNS($G:BO)/3,0)))","v":0},null,null,{"$f":"IF(BR$7=0,0,INDEX(INDIRECT(Order_Rng),ROUNDUP(COLUMNS($G:BR)/3,0)))","v":0},null,null,{"$f":"IF(BU$7=0,0,INDEX(INDIRECT(Order_Rng),ROUNDUP(COLUMNS($G:BU)/3,0)))","v":0},null,null,{"$f":"IF(BX$7=0,0,INDEX(INDIRECT(Order_Rng),ROUNDUP(COLUMNS($G:BX)/3,0)))","v":0},null,null,{"$f":"IF(CA$7=0,0,INDEX(INDIRECT(Order_Rng),ROUNDUP(COLUMNS($G:CA)/3,0)))","v":0},null,null,{"$f":"IF(CD$7=0,0,INDEX(INDIRECT(Order_Rng),ROUNDUP(COLUMNS($G:CD)/3,0)))","v":0},null,null,{"$f":"IF(CG$7=0,0,INDEX(INDIRECT(Order_Rng),ROUNDUP(COLUMNS($G:CG)/3,0)))","v":0},null,null,{"$f":"IF(CJ$7=0,0,INDEX(INDIRECT(Order_Rng),ROUNDUP(COLUMNS($G:CJ)/3,0)))","v":0},null,null,{"$f":"IF(CM$7=0,0,INDEX(INDIRECT(Order_Rng),ROUNDUP(COLUMNS($G:CM)/3,0)))","v":0},null,null,{"$f":"IF(CP$7=0,0,INDEX(INDIRECT(Order_Rng),ROUNDUP(COLUMNS($G:CP)/3,0)))","v":0},null,null,{"$f":"IF(CS$7=0,0,INDEX(INDIRECT(Order_Rng),ROUNDUP(COLUMNS($G:CS)/3,0)))","v":0},null,null,{"$f":"IF(CV$7=0,0,INDEX(INDIRECT(Order_Rng),ROUNDUP(COLUMNS($G:CV)/3,0)))","v":0},null,null,{"$f":"IF(CY$7=0,0,INDEX(INDIRECT(Order_Rng),ROUNDUP(COLUMNS($G:CY)/3,0)))","v":0},null,null,{"$f":"IF(DB$7=0,0,INDEX(INDIRECT(Order_Rng),ROUNDUP(COLUMNS($G:DB)/3,0)))","v":0},null,null,{"$f":"IF(DE$7=0,0,INDEX(INDIRECT(Order_Rng),ROUNDUP(COLUMNS($G:DE)/3,0)))","v":0},null,null,{"$f":"IF(DH$7=0,0,INDEX(INDIRECT(Order_Rng),ROUNDUP(COLUMNS($G:DH)/3,0)))","v":0},null,null,{"$f":"IF(DK$7=0,0,INDEX(INDIRECT(Order_Rng),ROUNDUP(COLUMNS($G:DK)/3,0)))","v":0},null,null,{"$f":"IF(DN$7=0,0,INDEX(INDIRECT(Order_Rng),ROUNDUP(COLUMNS($G:DN)/3,0)))","v":0},null,null,{"$f":"IF(DQ$7=0,0,INDEX(INDIRECT(Order_Rng),ROUNDUP(COLUMNS($G:DQ)/3,0)))","v":0},null,null,{"$f":"IF(DT$7=0,0,INDEX(INDIRECT(Order_Rng),ROUNDUP(COLUMNS($G:DT)/3,0)))","v":0},null,null,{"$f":"IF(DW$7=0,0,INDEX(INDIRECT(Order_Rng),ROUNDUP(COLUMNS($G:DW)/3,0)))","v":0},null,null,{"$f":"IF(DZ$7=0,0,INDEX(INDIRECT(Order_Rng),ROUNDUP(COLUMNS($G:DZ)/3,0)))","v":0},null,null,{"$f":"IF(EC$7=0,0,INDEX(INDIRECT(Order_Rng),ROUNDUP(COLUMNS($G:EC)/3,0)))","v":0},null,null,{"$f":"IF(EF$7=0,0,INDEX(INDIRECT(Order_Rng),ROUNDUP(COLUMNS($G:EF)/3,0)))","v":0},null,null,{"$f":"IF(EI$7=0,0,INDEX(INDIRECT(Order_Rng),ROUNDUP(COLUMNS($G:EI)/3,0)))","v":0},null,null,{"$f":"IF(EL$7=0,0,INDEX(INDIRECT(Order_Rng),ROUNDUP(COLUMNS($G:EL)/3,0)))","v":0},null,null,{"$f":"IF(EO$7=0,0,INDEX(INDIRECT(Order_Rng),ROUNDUP(COLUMNS($G:EO)/3,0)))","v":0},null,null,{"$f":"IF(ER$7=0,0,INDEX(INDIRECT(Order_Rng),ROUNDUP(COLUMNS($G:ER)/3,0)))","v":0}]
[{"$f":"IF(OR($B10=\"\",COUNTIF($B$10:$B10,$B10)>1,LEN(TRIM($B10))<>10,ISNUMBER(--MID(TRIM($B10),5,1))),\"-\",MAX(COUNT($A$9:$A9)+1))","v":"-"}]
[{"$f":"IF(OR($B11=\"\",COUNTIF($B$10:$B11,$B11)>1,LEN(TRIM($B11))<>10,ISNUMBER(--MID(TRIM($B11),5,1))),\"-\",MAX(COUNT($A$9:$A10)+1))","v":"-"},null,null,null,{"$f":"IF(D11=\"\",\"\",D11-D10)","v":""}]
[{"$f":"IF(OR($B12=\"\",COUNTIF($B$10:$B12,$B12)>1,LEN(TRIM($B12))<>10,ISNUMBER(--MID(TRIM($B12),5,1))),\"-\",MAX(COUNT($A$9:$A11)+1))","v":"-"},null,null,null,{"$f":"IF(D12=\"\",\"\",D12-D11)","v":""}]
[{"$f":"IF(OR($B13=\"\",COUNTIF($B$10:$B13,$B13)>1,LEN(TRIM($B13))<>10,ISNUMBER(--MID(TRIM($B13),5,1))),\"-\",MAX(COUNT($A$9:$A12)+1))","v":"-"},null,null,null,""]
[{"$f":"IF(OR($B14=\"\",COUNTIF($B$10:$B14,$B14)>1,LEN(TRIM($B14))<>10,ISNUMBER(--MID(TRIM($B14),5,1))),\"-\",MAX(COUNT($A$9:$A13)+1))","v":"-"},null,null,null,""]
[{"$f":"IF(OR($B15=\"\",COUNTIF($B$10:$B15,$B15)>1,LEN(TRIM($B15))<>10,ISNUMBER(--MID(TRIM($B15),5,1))),\"-\",MAX(COUNT($A$9:$A14)+1))","v":"-"},null,null,null,""]
[{"$f":"IF(OR($B16=\"\",COUNTIF($B$10:$B16,$B16)>1,LEN(TRIM($B16))<>10,ISNUMBER(--MID(TRIM($B16),5,1))),\"-\",MAX(COUNT($A$9:$A15)+1))","v":"-"},null,null,null,""]
[{"$f":"IF(OR($B17=\"\",COUNTIF($B$10:$B17,$B17)>1,LEN(TRIM($B17))<>10,ISNUMBER(--MID(TRIM($B17),5,1))),\"-\",MAX(COUNT($A$9:$A16)+1))","v":"-"},null,null,null,""]
[{"$f":"IF(OR($B18=\"\",COUNTIF($B$10:$B18,$B18)>1,LEN(TRIM($B18))<>10,ISNUMBER(--MID(TRIM($B18),5,1))),\"-\",MAX(COUNT($A$9:$A17)+1))","v":"-"},null,null,null,""]
[{"$f":"IF(OR($B19=\"\",COUNTIF($B$10:$B19,$B19)>1,LEN(TRIM($B19))<>10,ISNUMBER(--MID(TRIM($B19),5,1))),\"-\",MAX(COUNT($A$9:$A18)+1))","v":"-"},null,null,null,""]
[{"$f":"IF(OR($B20=\"\",COUNTIF($B$10:$B20,$B20)>1,LEN(TRIM($B20))<>10,ISNUMBER(--MID(TRIM($B20),5,1))),\"-\",MAX(COUNT($A$9:$A19)+1))","v":"-"},null,null,null,""]
[{"$f":"IF(OR($B21=\"\",COUNTIF($B$10:$B21,$B21)>1,LEN(TRIM($B21))<>10,ISNUMBER(--MID(TRIM($B21),5,1))),\"-\",MAX(COUNT($A$9:$A20)+1))","v":"-"},null,null,null,""]
[{"$f":"IF(OR($B22=\"\",COUNTIF($B$10:$B22,$B22)>1,LEN(TRIM($B22))<>10,ISNUMBER(--MID(TRIM($B22),5,1))),\"-\",MAX(COUNT($A$9:$A21)+1))","v":"-"},null,null,null,""]
[{"$f":"IF(OR($B23=\"\",COUNTIF($B$10:$B23,$B23)>1,LEN(TRIM($B23))<>10,ISNUMBER(--MID(TRIM($B23),5,1))),\"-\",MAX(COUNT($A$9:$A22)+1))","v":"-"},null,null,null,""]
[{"$f":"IF(OR($B24=\"\",COUNTIF($B$10:$B24,$B24)>1,LEN(TRIM($B24))<>10,ISNUMBER(--MID(TRIM($B24),5,1))),\"-\",MAX(COUNT($A$9:$A23)+1))","v":"-"},null,null,null,""]
[{"$f":"IF(OR($B25=\"\",COUNTIF($B$10:$B25,$B25)>1,LEN(TRIM($B25))<>10,ISNUMBER(--MID(TRIM($B25),5,1))),\"-\",MAX(COUNT($A$9:$A24)+1))","v":"-"},null,null,null,""]
[{"$f":"IF(OR($B26=\"\",COUNTIF($B$10:$B26,$B26)>1,LEN(TRIM($B26))<>10,ISNUMBER(--MID(TRIM($B26),5,1))),\"-\",MAX(COUNT($A$9:$A25)+1))","v":"-"},null,null,null,""]
[{"$f":"IF(OR($B27=\"\",COUNTIF($B$10:$B27,$B27)>1,LEN(TRIM($B27))<>10,ISNUMBER(--MID(TRIM($B27),5,1))),\"-\",MAX(COUNT($A$9:$A26)+1))","v":"-"},null,null,null,""]
[{"$f":"IF(OR($B28=\"\",COUNTIF($B$10:$B28,$B28)>1,LEN(TRIM($B28))<>10,ISNUMBER(--MID(TRIM($B28),5,1))),\"-\",MAX(COUNT($A$9:$A27)+1))","v":"-"},null,null,null,""]
[{"$f":"IF(OR($B29=\"\",COUNTIF($B$10:$B29,$B29)>1,LEN(TRIM($B29))<>10,ISNUMBER(--MID(TRIM($B29),5,1))),\"-\",MAX(COUNT($A$9:$A28)+1))","v":"-"},null,null,null,""]
[{"$f":"IF(OR($B30=\"\",COUNTIF($B$10:$B30,$B30)>1,LEN(TRIM($B30))<>10,ISNUMBER(--MID(TRIM($B30),5,1))),\"-\",MAX(COUNT($A$9:$A29)+1))","v":"-"},null,null,null,""]
[{"$f":"IF(OR($B31=\"\",COUNTIF($B$10:$B31,$B31)>1,LEN(TRIM($B31))<>10,ISNUMBER(--MID(TRIM($B31),5,1))),\"-\",MAX(COUNT($A$9:$A30)+1))","v":"-"},null,null,null,""]
[{"$f":"IF(OR($B32=\"\",COUNTIF($B$10:$B32,$B32)>1,LEN(TRIM($B32))<>10,ISNUMBER(--MID(TRIM($B32),5,1))),\"-\",MAX(COUNT($A$9:$A31)+1))","v":"-"},null,null,null,""]
[{"$f":"IF(OR($B33=\"\",COUNTIF($B$10:$B33,$B33)>1,LEN(TRIM($B33))<>10,ISNUMBER(--MID(TRIM($B33),5,1))),\"-\",MAX(COUNT($A$9:$A32)+1))","v":"-"},null,null,null,""]
[{"$f":"IF(OR($B34=\"\",COUNTIF($B$10:$B34,$B34)>1,LEN(TRIM($B34))<>10,ISNUMBER(--MID(TRIM($B34),5,1))),\"-\",MAX(COUNT($A$9:$A33)+1))","v":"-"},null,null,null,""]
[{"$f":"IF(OR($B35=\"\",COUNTIF($B$10:$B35,$B35)>1,LEN(TRIM($B35))<>10,ISNUMBER(--MID(TRIM($B35),5,1))),\"-\",MAX(COUNT($A$9:$A34)+1))","v":"-"},null,null,null,""]
[{"$f":"IF(OR($B36=\"\",COUNTIF($B$10:$B36,$B36)>1,LEN(TRIM($B36))<>10,ISNUMBER(--MID(TRIM($B36),5,1))),\"-\",MAX(COUNT($A$9:$A35)+1))","v":"-"},null,null,null,""]
[{"$f":"IF(OR($B37=\"\",COUNTIF($B$10:$B37,$B37)>1,LEN(TRIM($B37))<>10,ISNUMBER(--MID(TRIM($B37),5,1))),\"-\",MAX(COUNT($A$9:$A36)+1))","v":"-"},null,null,null,""]
[{"$f":"IF(OR($B38=\"\",COUNTIF($B$10:$B38,$B38)>1,LEN(TRIM($B38))<>10,ISNUMBER(--MID(TRIM($B38),5,1))),\"-\",MAX(COUNT($A$9:$A37)+1))","v":"-"},null,null,null,""]
[{"$f":"IF(OR($B39=\"\",COUNTIF($B$10:$B39,$B39)>1,LEN(TRIM($B39))<>10,ISNUMBER(--MID(TRIM($B39),5,1))),\"-\",MAX(COUNT($A$9:$A38)+1))","v":"-"},null,null,null,""]
[{"$f":"IF(OR($B40=\"\",COUNTIF($B$10:$B40,$B40)>1,LEN(TRIM($B40))<>10,ISNUMBER(--MID(TRIM($B40),5,1))),\"-\",MAX(COUNT($A$9:$A39)+1))","v":"-"},null,null,null,""]
[{"$f":"IF(OR($B41=\"\",COUNTIF($B$10:$B41,$B41)>1,LEN(TRIM($B41))<>10,ISNUMBER(--MID(TRIM($B41),5,1))),\"-\",MAX(COUNT($A$9:$A40)+1))","v":"-"},null,null,null,""]
[{"$f":"IF(OR($B42=\"\",COUNTIF($B$10:$B42,$B42)>1,LEN(TRIM($B42))<>10,ISNUMBER(--MID(TRIM($B42),5,1))),\"-\",MAX(COUNT($A$9:$A41)+1))","v":"-"},null,null,null,""]
[{"$f":"IF(OR($B43=\"\",COUNTIF($B$10:$B43,$B43)>1,LEN(TRIM($B43))<>10,ISNUMBER(--MID(TRIM($B43),5,1))),\"-\",MAX(COUNT($A$9:$A42)+1))","v":"-"},null,null,null,""]
[{"$f":"IF(OR($B44=\"\",COUNTIF($B$10:$B44,$B44)>1,LEN(TRIM($B44))<>10,ISNUMBER(--MID(TRIM($B44),5,1))),\"-\",MAX(COUNT($A$9:$A43)+1))","v":"-"},null,null,null,""]
[{"$f":"IF(OR($B45=\"\",COUNTIF($B$10:$B45,$B45)>1,LEN(TRIM($B45))<>10,ISNUMBER(--MID(TRIM($B45),5,1))),\"-\",MAX(COUNT($A$9:$A44)+1))","v":"-"},null,null,null,""]
[{"$f":"IF(OR($B46=\"\",COUNTIF($B$10:$B46,$B46)>1,LEN(TRIM($B46))<>10,ISNUMBER(--MID(TRIM($B46),5,1))),\"-\",MAX(COUNT($A$9:$A45)+1))","v":"-"},null,null,null,""]
[{"$f":"IF(OR($B47=\"\",COUNTIF($B$10:$B47,$B47)>1,LEN(TRIM($B47))<>10,ISNUMBER(--MID(TRIM($B47),5,1))),\"-\",MAX(COUNT($A$9:$A46)+1))","v":"-"},null,null,null,""]
[{"$f":"IF(OR($B48=\"\",COUNTIF($B$10:$B48,$B48)>1,LEN(TRIM($B48))<>10,ISNUMBER(--MID(TRIM($B48),5,1))),\"-\",MAX(COUNT($A$9:$A47)+1))","v":"-"},null,null,null,""]
[{"$f":"IF(OR($B49=\"\",COUNTIF($B$10:$B49,$B49)>1,LEN(TRIM($B49))<>10,ISNUMBER(--MID(TRIM($B49),5,1))),\"-\",MAX(COUNT($A$9:$A48)+1))","v":"-"},null,null,null,""]
[{"$f":"IF(OR($B50=\"\",COUNTIF($B$10:$B50,$B50)>1,LEN(TRIM($B50))<>10,ISNUMBER(--MID(TRIM($B50),5,1))),\"-\",MAX(COUNT($A$9:$A49)+1))","v":"-"},null,null,null,""]
[{"$f":"IF(OR($B51=\"\",COUNTIF($B$10:$B51,$B51)>1,LEN(TRIM($B51))<>10,ISNUMBER(--MID(TRIM($B51),5,1))),\"-\",MAX(COUNT($A$9:$A50)+1))","v":"-"},null,null,null,""]
[{"$f":"IF(OR($B52=\"\",COUNTIF($B$10:$B52,$B52)>1,LEN(TRIM($B52))<>10,ISNUMBER(--MID(TRIM($B52),5,1))),\"-\",MAX(COUNT($A$9:$A51)+1))","v":"-"},null,null,null,""]
[{"$f":"IF(OR($B53=\"\",COUNTIF($B$10:$B53,$B53)>1,LEN(TRIM($B53))<>10,ISNUMBER(--MID(TRIM($B53),5,1))),\"-\",MAX(COUNT($A$9:$A52)+1))","v":"-"},null,null,null,""]
[{"$f":"IF(OR($B54=\"\",COUNTIF($B$10:$B54,$B54)>1,LEN(TRIM($B54))<>10,ISNUMBER(--MID(TRIM($B54),5,1))),\"-\",MAX(COUNT($A$9:$A53)+1))","v":"-"},null,null,null,""]
[{"$f":"IF(OR($B55=\"\",COUNTIF($B$10:$B55,$B55)>1,LEN(TRIM($B55))<>10,ISNUMBER(--MID(TRIM($B55),5,1))),\"-\",MAX(COUNT($A$9:$A54)+1))","v":"-"},null,null,null,""]
[{"$f":"IF(OR($B56=\"\",COUNTIF($B$10:$B56,$B56)>1,LEN(TRIM($B56))<>10,ISNUMBER(--MID(TRIM($B56),5,1))),\"-\",MAX(COUNT($A$9:$A55)+1))","v":"-"},null,null,null,""]
[{"$f":"IF(OR($B57=\"\",COUNTIF($B$10:$B57,$B57)>1,LEN(TRIM($B57))<>10,ISNUMBER(--MID(TRIM($B57),5,1))),\"-\",MAX(COUNT($A$9:$A56)+1))","v":"-"},null,null,null,""]
[{"$f":"IF(OR($B58=\"\",COUNTIF($B$10:$B58,$B58)>1,LEN(TRIM($B58))<>10,ISNUMBER(--MID(TRIM($B58),5,1))),\"-\",MAX(COUNT($A$9:$A57)+1))","v":"-"},null,null,null,""]
[{"$f":"IF(OR($B59=\"\",COUNTIF($B$10:$B59,$B59)>1,LEN(TRIM($B59))<>10,ISNUMBER(--MID(TRIM($B59),5,1))),\"-\",MAX(COUNT($A$9:$A58)+1))","v":"-"},null,null,null,""]
[{"$f":"IF(OR($B60=\"\",COUNTIF($B$10:$B60,$B60)>1,LEN(TRIM($B60))<>10,ISNUMBER(--MID(TRIM($B60),5,1))),\"-\",MAX(COUNT($A$9:$A59)+1))","v":"-"},null,null,null,""]
[{"$f":"IF(OR($B61=\"\",COUNTIF($B$10:$B61,$B61)>1,LEN(TRIM($B61))<>10,ISNUMBER(--MID(TRIM($B61),5,1))),\"-\",MAX(COUNT($A$9:$A60)+1))","v":"-"},null,null,null,""]
[{"$f":"IF(OR($B62=\"\",COUNTIF($B$10:$B62,$B62)>1,LEN(TRIM($B62))<>10,ISNUMBER(--MID(TRIM($B62),5,1))),\"-\",MAX(COUNT($A$9:$A61)+1))","v":"-"},null,null,null,""]
[{"$f":"IF(OR($B63=\"\",COUNTIF($B$10:$B63,$B63)>1,LEN(TRIM($B63))<>10,ISNUMBER(--MID(TRIM($B63),5,1))),\"-\",MAX(COUNT($A$9:$A62)+1))","v":"-"},null,null,null,""]
[{"$f":"IF(OR($B64=\"\",COUNTIF($B$10:$B64,$B64)>1,LEN(TRIM($B64))<>10,ISNUMBER(--MID(TRIM($B64),5,1))),\"-\",MAX(COUNT($A$9:$A63)+1))","v":"-"},null,null,null,""]
[{"$f":"IF(OR($B65=\"\",COUNTIF($B$10:$B65,$B65)>1,LEN(TRIM($B65))<>10,ISNUMBER(--MID(TRIM($B65),5,1))),\"-\",MAX(COUNT($A$9:$A64)+1))","v":"-"},null,null,null,""]
[{"$f":"IF(OR($B66=\"\",COUNTIF($B$10:$B66,$B66)>1,LEN(TRIM($B66))<>10,ISNUMBER(--MID(TRIM($B66),5,1))),\"-\",MAX(COUNT($A$9:$A65)+1))","v":"-"},null,null,null,""]
[{"$f":"IF(OR($B67=\"\",COUNTIF($B$10:$B67,$B67)>1,LEN(TRIM($B67))<>10,ISNUMBER(--MID(TRIM($B67),5,1))),\"-\",MAX(COUNT($A$9:$A66)+1))","v":"-"},null,null,null,""]
[{"$f":"IF(OR($B68=\"\",COUNTIF($B$10:$B68,$B68)>1,LEN(TRIM($B68))<>10,ISNUMBER(--MID(TRIM($B68),5,1))),\"-\",MAX(COUNT($A$9:$A67)+1))","v":"-"},null,null,null,""]
[{"$f":"IF(OR($B69=\"\",COUNTIF($B$10:$B69,$B69)>1,LEN(TRIM($B69))<>10,ISNUMBER(--MID(TRIM($B69),5,1))),\"-\",MAX(COUNT($A$9:$A68)+1))","v":"-"},null,null,null,""]
[{"$f":"IF(OR($B70=\"\",COUNTIF($B$10:$B70,$B70)>1,LEN(TRIM($B70))<>10,ISNUMBER(--MID(TRIM($B70),5,1))),\"-\",MAX(COUNT($A$9:$A69)+1))","v":"-"},null,null,null,""]
[{"$f":"IF(OR($B71=\"\",COUNTIF($B$10:$B71,$B71)>1,LEN(TRIM($B71))<>10,ISNUMBER(--MID(TRIM($B71),5,1))),\"-\",MAX(COUNT($A$9:$A70)+1))","v":"-"},null,null,null,""]
[{"$f":"IF(OR($B72=\"\",COUNTIF($B$10:$B72,$B72)>1,LEN(TRIM($B72))<>10,ISNUMBER(--MID(TRIM($B72),5,1))),\"-\",MAX(COUNT($A$9:$A71)+1))","v":"-"},null,null,null,""]
[{"$f":"IF(OR($B73=\"\",COUNTIF($B$10:$B73,$B73)>1,LEN(TRIM($B73))<>10,ISNUMBER(--MID(TRIM($B73),5,1))),\"-\",MAX(COUNT($A$9:$A72)+1))","v":"-"},null,null,null,""]
[{"$f":"IF(OR($B74=\"\",COUNTIF($B$10:$B74,$B74)>1,LEN(TRIM($B74))<>10,ISNUMBER(--MID(TRIM($B74),5,1))),\"-\",MAX(COUNT($A$9:$A73)+1))","v":"-"},null,null,null,""]
[{"$f":"IF(OR($B75=\"\",COUNTIF($B$10:$B75,$B75)>1,LEN(TRIM($B75))<>10,ISNUMBER(--MID(TRIM($B75),5,1))),\"-\",MAX(COUNT($A$9:$A74)+1))","v":"-"},null,null,null,""]
[{"$f":"IF(OR($B76=\"\",COUNTIF($B$10:$B76,$B76)>1,LEN(TRIM($B76))<>10,ISNUMBER(--MID(TRIM($B76),5,1))),\"-\",MAX(COUNT($A$9:$A75)+1))","v":"-"},null,null,null,{"$f":"IF(D76=\"\",\"\",D76-D75)","v":""}]
[{"$f":"IF(OR($B77=\"\",COUNTIF($B$10:$B77,$B77)>1,LEN(TRIM($B77))<>10,ISNUMBER(--MID(TRIM($B77),5,1))),\"-\",MAX(COUNT($A$9:$A76)+1))","v":"-"},null,null,null,""]
[{"$f":"IF(OR($B78=\"\",COUNTIF($B$10:$B78,$B78)>1,LEN(TRIM($B78))<>10,ISNUMBER(--MID(TRIM($B78),5,1))),\"-\",MAX(COUNT($A$9:$A77)+1))","v":"-"},null,null,null,""]
[{"$f":"IF(OR($B79=\"\",COUNTIF($B$10:$B79,$B79)>1,LEN(TRIM($B79))<>10,ISNUMBER(--MID(TRIM($B79),5,1))),\"-\",MAX(COUNT($A$9:$A78)+1))","v":"-"},null,null,null,""]
["รวมของขาย|ของเสีย|เหลือบนเชลฟ์",null,null,null,null,null,{"$f":"SUM(G10:G79)","v":0},0,0,{"$f":"SUM(J10:J79)","v":0},0,0,0,0,0,0,0,0,0,0,0,0,0,0,0,0,0,0,0,0,0,0,0,0,0,0,0,0,0,0,0,0,0,0,0,0,0,0,0,0,0,0,0,0,0,0,0,0,0,0,0,0,0,0,0,0,0,0,0,0,0,0,0,{"$f":"SUM(BV10:BV79)","v":0},0,0,0,0,0,0,0,0,0,0,0,0,0,0,0,0,0,0,0,0,0,0,0,0,0,0,0,0,0,0,0,0,0,0,0,0,0,0,0,0,0,0,0,0,0,0,0,0,0,0,0,0,0,0,0,0,0,0,0,0,0,{"$f":"SUM(EF10:EF79)","v":0},0,0,{"$f":"SUM(EI10:EI79)","v":0},0,0,0,0,0,{"$f":"SUM(EO10:EO79)","v":0},0,0,0,0,0,"รวมเงินเชื่อ","รวมเงินสด","ภาษี","รวมยอดขาย"]
["ของเหลือ",null,null,null,null,null,{"$f":"G80+H80-G9","v":0},null,null,{"$f":"J80+K80-J9","v":0},null,null,{"$f":"M80+N80-M9","v":0},null,null,{"$f":"P80+Q80-P9","v":0},null,null,{"$f":"S80+T80-S9","v":0},null,null,{"$f":"V80+W80-V9","v":0},null,null,{"$f":"Y80+Z80-Y9","v":0},null,null,{"$f":"AB80+AC80-AB9","v":0},null,null,{"$f":"AE80+AF80-AE9","v":0},null,null,{"$f":"AH80+AI80-AH9","v":0},null,null,{"$f":"AK80+AL80-AK9","v":0},null,null,{"$f":"AN80+AO80-AN9","v":0},null,null,{"$f":"AQ80+AR80-AQ9","v":0},null,null,{"$f":"AT80+AU80-AT9","v":0},null,null,{"$f":"AW80+AX80-AW9","v":0},null,null,{"$f":"AZ80+BA80-AZ9","v":0},null,null,{"$f":"BC80+BD80-BC9","v":0},null,null,{"$f":"BF80+BG80-BF9","v":0},null,null,{"$f":"BI80+BJ80-BI9","v":0},null,null,{"$f":"BL80+BM80-BL9","v":0},null,null,{"$f":"BO80+BP80-BO9","v":0},null,null,{"$f":"BR80+BS80-BR9","v":0},null,null,{"$f":"BU80+BV80-BU9","v":0},null,null,{"$f":"BX80+BY80-BX9","v":0},null,null,{"$f":"CA80+CB80-CA9","v":0},null,null,{"$f":"CD80+CE80-CD9","v":0},null,null,{"$f":"CG80+CH80-CG9","v":0},null,null,{"$f":"CJ80+CK80-CJ9","v":0},null,null,{"$f":"CM80+CN80-CM9","v":0},null,null,{"$f":"CP80+CQ80-CP9","v":0},null,null,{"$f":"CS80+CT80-CS9","v":0},null,null,{"$f":"CV80+CW80-CV9","v":0},null,null,{"$f":"CY80+CZ80-CY9","v":0},null,null,{"$f":"DB80+DC80-DB9","v":0},null,null,{"$f":"DE80+DF80-DE9","v":0},null,null,{"$f":"DH80+DI80-DH9","v":0},null,null,{"$f":"DK80+DL80-DK9","v":0},null,null,{"$f":"DN80+DO80-DN9","v":0},null,null,{"$f":"DQ80+DR80-DQ9","v":0},null,null,{"$f":"DT80+DU80-DT9","v":0},null,null,{"$f":"DW80+DX80-DW9","v":0},null,null,{"$f":"DZ80+EA80-DZ9","v":0},null,null,{"$f":"EC80+ED80-EC9","v":0},null,null,{"$f":"EF80+EG80-EF9","v":0},null,null,{"$f":"EI80+EJ80-EI9","v":0},null,null,{"$f":"EL80+EM80-EL9","v":0},null,null,{"$f":"EO80+EP80-EO9","v":0},null,null,{"$f":"ER80+ES80-ER9","v":0},null,null,{"$f":"SUM(EU10:EU79)","v":0},{"$f":"SUM(EV10:EV79)","v":0},{"$f":"SUM(EW10:EW79)","v":0},{"$f":"SUM(EX10:EX79)","v":0}]
["เฉลี่ย",null,null,"เหลือ/เสีย(จริง)",null,null,{"$f":"INDIRECT(\"F\"&ROW($G$87)+ROUNDUP(COLUMNS($G:G)/3,0))","v":0},{"$f":"INDIRECT(\"G\"&ROW($G$87)+ROUNDUP(COLUMNS($G:H)/3,0))","v":0},null,{"$f":"INDIRECT(\"F\"&ROW($G$87)+ROUNDUP(COLUMNS($G:J)/3,0))","v":0},{"$f":"INDIRECT(\"G\"&ROW($G$87)+ROUNDUP(COLUMNS($G:K)/3,0))","v":0},null,{"$f":"INDIRECT(\"F\"&ROW($G$87)+ROUNDUP(COLUMNS($G:M)/3,0))","v":0},{"$f":"INDIRECT(\"G\"&ROW($G$87)+ROUNDUP(COLUMNS($G:N)/3,0))","v":0},null,{"$f":"INDIRECT(\"F\"&ROW($G$87)+ROUNDUP(COLUMNS($G:P)/3,0))","v":0},{"$f":"INDIRECT(\"G\"&ROW($G$87)+ROUNDUP(COLUMNS($G:Q)/3,0))","v":0},null,{"$f":"INDIRECT(\"F\"&ROW($G$87)+ROUNDUP(COLUMNS($G:S)/3,0))","v":0},{"$f":"INDIRECT(\"G\"&ROW($G$87)+ROUNDUP(COLUMNS($G:T)/3,0))","v":0},null,{"$f":"INDIRECT(\"F\"&ROW($G$87)+ROUNDUP(COLUMNS($G:V)/3,0))","v":0},{"$f":"INDIRECT(\"G\"&ROW($G$87)+ROUNDUP(COLUMNS($G:W)/3,0))","v":0},null,{"$f":"INDIRECT(\"F\"&ROW($G$87)+ROUNDUP(COLUMNS($G:Y)/3,0))","v":0},{"$f":"INDIRECT(\"G\"&ROW($G$87)+ROUNDUP(COLUMNS($G:Z)/3,0))","v":0},null,{"$f":"INDIRECT(\"F\"&ROW($G$87)+ROUNDUP(COLUMNS($G:AB)/3,0))","v":0},{"$f":"INDIRECT(\"G\"&ROW($G$87)+ROUNDUP(COLUMNS($G:AC)/3,0))","v":0},null,{"$f":"INDIRECT(\"F\"&ROW($G$87)+ROUNDUP(COLUMNS($G:AE)/3,0))","v":0},{"$f":"INDIRECT(\"G\"&ROW($G$87)+ROUNDUP(COLUMNS($G:AF)/3,0))","v":0},null,{"$f":"INDIRECT(\"F\"&ROW($G$87)+ROUNDUP(COLUMNS($G:AH)/3,0))","v":0},{"$f":"INDIRECT(\"G\"&ROW($G$87)+ROUNDUP(COLUMNS($G:AI)/3,0))","v":0},null,{"$f":"INDIRECT(\"F\"&ROW($G$87)+ROUNDUP(COLUMNS($G:AK)/3,0))","v":0},{"$f":"INDIRECT(\"G\"&ROW($G$87)+ROUNDUP(COLUMNS($G:AL)/3,0))","v":0},null,{"$f":"INDIRECT(\"F\"&ROW($G$87)+ROUNDUP(COLUMNS($G:AN)/3,0))","v":0},{"$f":"INDIRECT(\"G\"&ROW($G$87)+ROUNDUP(COLUMNS($G:AO)/3,0))","v":0},null,{"$f":"INDIRECT(\"F\"&ROW($G$87)+ROUNDUP(COLUMNS($G:AQ)/3,0))","v":0},{"$f":"INDIRECT(\"G\"&ROW($G$87)+ROUNDUP(COLUMNS($G:AR)/3,0))","v":0},null,{"$f":"INDIRECT(\"F\"&ROW($G$87)+ROUNDUP(COLUMNS($G:AT)/3,0))","v":0},{"$f":"INDIRECT(\"G\"&ROW($G$87)+ROUNDUP(COLUMNS($G:AU)/3,0))","v":0},null,{"$f":"INDIRECT(\"F\"&ROW($G$87)+ROUNDUP(COLUMNS($G:AW)/3,0))","v":0},{"$f":"INDIRECT(\"G\"&ROW($G$87)+ROUNDUP(COLUMNS($G:AX)/3,0))","v":0},null,{"$f":"INDIRECT(\"F\"&ROW($G$87)+ROUNDUP(COLUMNS($G:AZ)/3,0))","v":0},{"$f":"INDIRECT(\"G\"&ROW($G$87)+ROUNDUP(COLUMNS($G:BA)/3,0))","v":0},null,{"$f":"INDIRECT(\"F\"&ROW($G$87)+ROUNDUP(COLUMNS($G:BC)/3,0))","v":0},{"$f":"INDIRECT(\"G\"&ROW($G$87)+ROUNDUP(COLUMNS($G:BD)/3,0))","v":0},null,{"$f":"INDIRECT(\"F\"&ROW($G$87)+ROUNDUP(COLUMNS($G:BF)/3,0))","v":0},{"$f":"INDIRECT(\"G\"&ROW($G$87)+ROUNDUP(COLUMNS($G:BG)/3,0))","v":0},null,{"$f":"INDIRECT(\"F\"&ROW($G$87)+ROUNDUP(COLUMNS($G:BI)/3,0))","v":0},{"$f":"INDIRECT(\"G\"&ROW($G$87)+ROUNDUP(COLUMNS($G:BJ)/3,0))","v":0},null,{"$f":"INDIRECT(\"F\"&ROW($G$87)+ROUNDUP(COLUMNS($G:BL)/3,0))","v":0},{"$f":"INDIRECT(\"G\"&ROW($G$87)+ROUNDUP(COLUMNS($G:BM)/3,0))","v":0},null,{"$f":"INDIRECT(\"F\"&ROW($G$87)+ROUNDUP(COLUMNS($G:BO)/3,0))","v":0},{"$f":"INDIRECT(\"G\"&ROW($G$87)+ROUNDUP(COLUMNS($G:BP)/3,0))","v":0},null,{"$f":"INDIRECT(\"F\"&ROW($G$87)+ROUNDUP(COLUMNS($G:BR)/3,0))","v":0},{"$f":"INDIRECT(\"G\"&ROW($G$87)+ROUNDUP(COLUMNS($G:BS)/3,0))","v":0},null,{"$f":"INDIRECT(\"F\"&ROW($G$87)+ROUNDUP(COLUMNS($G:BU)/3,0))","v":0},{"$f":"INDIRECT(\"G\"&ROW($G$87)+ROUNDUP(COLUMNS($G:BV)/3,0))","v":0},null,{"$f":"INDIRECT(\"F\"&ROW($G$87)+ROUNDUP(COLUMNS($G:BX)/3,0))","v":0},{"$f":"INDIRECT(\"G\"&ROW($G$87)+ROUNDUP(COLUMNS($G:BY)/3,0))","v":0},null,{"$f":"INDIRECT(\"F\"&ROW($G$87)+ROUNDUP(COLUMNS($G:CA)/3,0))","v":0},{"$f":"INDIRECT(\"G\"&ROW($G$87)+ROUNDUP(COLUMNS($G:CB)/3,0))","v":0},null,{"$f":"INDIRECT(\"F\"&ROW($G$87)+ROUNDUP(COLUMNS($G:CD)/3,0))","v":0},{"$f":"INDIRECT(\"G\"&ROW($G$87)+ROUNDUP(COLUMNS($G:CE)/3,0))","v":0},null,{"$f":"INDIRECT(\"F\"&ROW($G$87)+ROUNDUP(COLUMNS($G:CG)/3,0))","v":0},{"$f":"INDIRECT(\"G\"&ROW($G$87)+ROUNDUP(COLUMNS($G:CH)/3,0))","v":0},null,{"$f":"INDIRECT(\"F\"&ROW($G$87)+ROUNDUP(COLUMNS($G:CJ)/3,0))","v":0},{"$f":"INDIRECT(\"G\"&ROW($G$87)+ROUNDUP(COLUMNS($G:CK)/3,0))","v":0},null,{"$f":"INDIRECT(\"F\"&ROW($G$87)+ROUNDUP(COLUMNS($G:CM)/3,0))","v":0},{"$f":"INDIRECT(\"G\"&ROW($G$87)+ROUNDUP(COLUMNS($G:CN)/3,0))","v":0},null,{"$f":"INDIRECT(\"F\"&ROW($G$87)+ROUNDUP(COLUMNS($G:CP)/3,0))","v":0},{"$f":"INDIRECT(\"G\"&ROW($G$87)+ROUNDUP(COLUMNS($G:CQ)/3,0))","v":0},null,{"$f":"INDIRECT(\"F\"&ROW($G$87)+ROUNDUP(COLUMNS($G:CS)/3,0))","v":0},{"$f":"INDIRECT(\"G\"&ROW($G$87)+ROUNDUP(COLUMNS($G:CT)/3,0))","v":0},null,{"$f":"INDIRECT(\"F\"&ROW($G$87)+ROUNDUP(COLUMNS($G:CV)/3,0))","v":0},{"$f":"INDIRECT(\"G\"&ROW($G$87)+ROUNDUP(COLUMNS($G:CW)/3,0))","v":0},null,{"$f":"INDIRECT(\"F\"&ROW($G$87)+ROUNDUP(COLUMNS($G:CY)/3,0))","v":0},{"$f":"INDIRECT(\"G\"&ROW($G$87)+ROUNDUP(COLUMNS($G:CZ)/3,0))","v":0},null,{"$f":"INDIRECT(\"F\"&ROW($G$87)+ROUNDUP(COLUMNS($G:DB)/3,0))","v":0},{"$f":"INDIRECT(\"G\"&ROW($G$87)+ROUNDUP(COLUMNS($G:DC)/3,0))","v":0},null,{"$f":"INDIRECT(\"F\"&ROW($G$87)+ROUNDUP(COLUMNS($G:DE)/3,0))","v":0},{"$f":"INDIRECT(\"G\"&ROW($G$87)+ROUNDUP(COLUMNS($G:DF)/3,0))","v":0},null,{"$f":"INDIRECT(\"F\"&ROW($G$87)+ROUNDUP(COLUMNS($G:DH)/3,0))","v":0},{"$f":"INDIRECT(\"G\"&ROW($G$87)+ROUNDUP(COLUMNS($G:DI)/3,0))","v":0},null,{"$f":"INDIRECT(\"F\"&ROW($G$87)+ROUNDUP(COLUMNS($G:DK)/3,0))","v":0},{"$f":"INDIRECT(\"G\"&ROW($G$87)+ROUNDUP(COLUMNS($G:DL)/3,0))","v":0},null,{"$f":"INDIRECT(\"F\"&ROW($G$87)+ROUNDUP(COLUMNS($G:DN)/3,0))","v":0},{"$f":"INDIRECT(\"G\"&ROW($G$87)+ROUNDUP(COLUMNS($G:DO)/3,0))","v":0},null,{"$f":"INDIRECT(\"F\"&ROW($G$87)+ROUNDUP(COLUMNS($G:DQ)/3,0))","v":0},{"$f":"INDIRECT(\"G\"&ROW($G$87)+ROUNDUP(COLUMNS($G:DR)/3,0))","v":0},null,{"$f":"INDIRECT(\"F\"&ROW($G$87)+ROUNDUP(COLUMNS($G:DT)/3,0))","v":0},{"$f":"INDIRECT(\"G\"&ROW($G$87)+ROUNDUP(COLUMNS($G:DU)/3,0))","v":0},null,{"$f":"INDIRECT(\"F\"&ROW($G$87)+ROUNDUP(COLUMNS($G:DW)/3,0))","v":0},{"$f":"INDIRECT(\"G\"&ROW($G$87)+ROUNDUP(COLUMNS($G:DX)/3,0))","v":0},null,{"$f":"INDIRECT(\"F\"&ROW($G$87)+ROUNDUP(COLUMNS($G:DZ)/3,0))","v":0},{"$f":"INDIRECT(\"G\"&ROW($G$87)+ROUNDUP(COLUMNS($G:EA)/3,0))","v":0},null,{"$f":"INDIRECT(\"F\"&ROW($G$87)+ROUNDUP(COLUMNS($G:EC)/3,0))","v":0},{"$f":"INDIRECT(\"G\"&ROW($G$87)+ROUNDUP(COLUMNS($G:ED)/3,0))","v":0},null,{"$f":"INDIRECT(\"F\"&ROW($G$87)+ROUNDUP(COLUMNS($G:EF)/3,0))","v":0},{"$f":"INDIRECT(\"G\"&ROW($G$87)+ROUNDUP(COLUMNS($G:EG)/3,0))","v":0},null,{"$f":"INDIRECT(\"F\"&ROW($G$87)+ROUNDUP(COLUMNS($G:EI)/3,0))","v":0},{"$f":"INDIRECT(\"G\"&ROW($G$87)+ROUNDUP(COLUMNS($G:EJ)/3,0))","v":0},null,{"$f":"INDIRECT(\"F\"&ROW($G$87)+ROUNDUP(COLUMNS($G:EL)/3,0))","v":0},{"$f":"INDIRECT(\"G\"&ROW($G$87)+ROUNDUP(COLUMNS($G:EM)/3,0))","v":0},null,{"$f":"INDIRECT(\"F\"&ROW($G$87)+ROUNDUP(COLUMNS($G:EO)/3,0))","v":0},{"$f":"INDIRECT(\"G\"&ROW($G$87)+ROUNDUP(COLUMNS($G:EP)/3,0))","v":0},null,{"$f":"INDIRECT(\"F\"&ROW($G$87)+ROUNDUP(COLUMNS($G:ER)/3,0))","v":0},{"$f":"INDIRECT(\"G\"&ROW($G$87)+ROUNDUP(COLUMNS($G:ES)/3,0))","v":0},null,{"$f":"EU81+EV81","v":0}]
["เวลากลับถึงสำนักงานเช็คของเสีย",null,null,{"$f":"D139","v":"00:00:00"},null,"ผลต่าง",{"$f":"G82+H82+G80-G9","v":0},null,null,{"$f":"J82+K82+J80-J9","v":0},null,null,{"$f":"M82+N82+M80-M9","v":0},null,null,{"$f":"P82+Q82+P80-P9","v":0},null,null,{"$f":"S82+T82+S80-S9","v":0},null,null,{"$f":"V82+W82+V80-V9","v":0},null,null,{"$f":"Y82+Z82+Y80-Y9","v":0},null,null,{"$f":"AB82+AC82+AB80-AB9","v":0},null,null,{"$f":"AE82+AF82+AE80-AE9","v":0},null,null,{"$f":"AH82+AI82+AH80-AH9","v":0},null,null,{"$f":"AK82+AL82+AK80-AK9","v":0},null,null,{"$f":"AN82+AO82+AN80-AN9","v":0},null,null,{"$f":"AQ82+AR82+AQ80-AQ9","v":0},null,null,{"$f":"AT82+AU82+AT80-AT9","v":0},null,null,{"$f":"AW82+AX82+AW80-AW9","v":0},null,null,{"$f":"AZ82+BA82+AZ80-AZ9","v":0},null,null,{"$f":"BC82+BD82+BC80-BC9","v":0},null,null,{"$f":"BF82+BG82+BF80-BF9","v":0},null,null,{"$f":"BI82+BJ82+BI80-BI9","v":0},null,null,{"$f":"BL82+BM82+BL80-BL9","v":0},null,null,{"$f":"BO82+BP82+BO80-BO9","v":0},null,null,{"$f":"BR82+BS82+BR80-BR9","v":0},null,null,{"$f":"BU82+BV82+BU80-BU9","v":0},null,null,{"$f":"BX82+BY82+BX80-BX9","v":0},null,null,{"$f":"CA82+CB82+CA80-CA9","v":0},null,null,{"$f":"CD82+CE82+CD80-CD9","v":0},null,null,{"$f":"CG82+CH82+CG80-CG9","v":0},null,null,{"$f":"CJ82+CK82+CJ80-CJ9","v":0},null,null,{"$f":"CM82+CN82+CM80-CM9","v":0},null,null,{"$f":"CP82+CQ82+CP80-CP9","v":0},null,null,{"$f":"CS82+CT82+CS80-CS9","v":0},null,null,{"$f":"CV82+CW82+CV80-CV9","v":0},null,null,{"$f":"CY82+CZ82+CY80-CY9","v":0},null,null,{"$f":"DB82+DC82+DB80-DB9","v":0},null,null,{"$f":"DE82+DF82+DE80-DE9","v":0},null,null,{"$f":"DH82+DI82+DH80-DH9","v":0},null,null,{"$f":"DK82+DL82+DK80-DK9","v":0},null,null,{"$f":"DN82+DO82+DN80-DN9","v":0},null,null,{"$f":"DQ82+DR82+DQ80-DQ9","v":0},null,null,{"$f":"DT82+DU82+DT80-DT9","v":0},null,null,{"$f":"DW82+DX82+DW80-DW9","v":0},null,null,{"$f":"DZ82+EA82+DZ80-DZ9","v":0},null,null,{"$f":"EC82+ED82+EC80-EC9","v":0},null,null,{"$f":"EF82+EG82+EF80-EF9","v":0},null,null,{"$f":"EI82+EJ82+EI80-EI9","v":0},null,null,{"$f":"EL82+EM82+EL80-EL9","v":0},null,null,{"$f":"EO82+EP82+EO80-EO9","v":0},null,null,{"$f":"ER82+ES82+ER80-ER9","v":0}]
["เป็นเงิน",null,null,null,null,null,{"$f":"G8*G83","v":0},null,null,{"$f":"J8*J83","v":0},null,null,{"$f":"M8*M83","v":0},null,null,{"$f":"P8*P83","v":0},null,null,{"$f":"S8*S83","v":0},null,null,{"$f":"V8*V83","v":0},null,null,{"$f":"Y8*Y83","v":0},null,null,{"$f":"AB8*AB83","v":0},null,null,{"$f":"AE8*AE83","v":0},null,null,{"$f":"AH8*AH83","v":0},null,null,{"$f":"AK8*AK83","v":0},null,null,{"$f":"AN8*AN83","v":0},null,null,{"$f":"AQ8*AQ83","v":0},null,null,{"$f":"AT8*AT83","v":0},null,null,{"$f":"AW8*AW83","v":0},null,null,{"$f":"AZ8*AZ83","v":0},null,null,{"$f":"BC8*BC83","v":0},null,null,{"$f":"BF8*BF83","v":0},null,null,{"$f":"BI8*BI83","v":0},null,null,{"$f":"BL8*BL83","v":0},null,null,{"$f":"BO8*BO83","v":0},null,null,{"$f":"BR8*BR83","v":0},null,null,{"$f":"BU8*BU83","v":0},null,null,{"$f":"BX8*BX83","v":0},null,null,{"$f":"CA8*CA83","v":0},null,null,{"$f":"CD8*CD83","v":0},null,null,{"$f":"CG8*CG83","v":0},null,null,{"$f":"CJ8*CJ83","v":0},null,null,{"$f":"CM8*CM83","v":0},null,null,{"$f":"CP8*CP83","v":0},null,null,{"$f":"CS8*CS83","v":0},null,null,{"$f":"CV8*CV83","v":0},null,null,{"$f":"CY8*CY83","v":0},null,null,{"$f":"DB8*DB83","v":0},null,null,{"$f":"DE8*DE83","v":0},null,null,{"$f":"DH8*DH83","v":0},null,null,{"$f":"DK8*DK83","v":0},null,null,{"$f":"DN8*DN83","v":0},null,null,{"$f":"DQ8*DQ83","v":0},null,null,{"$f":"DT8*DT83","v":0},null,null,{"$f":"DW8*DW83","v":0},null,null,0,null,null,{"$f":"EC8*EC83","v":0},null,null,{"$f":"EF8*EF83","v":0},null,null,{"$f":"EI8*EI83","v":0},null,null,{"$f":"EL8*EL83","v":0},null,null,{"$f":"EO8*EO83","v":0},null,null,{"$f":"ER8*ER83","v":0},null,null,{"$f":"$AP$98","v":0}]
[null,null,null,"ผู้จัดทำ……………………………………………………………………",null,null,null,null,null,null,null,null,null,null,null,null,null,null,null,null,null,null,null,"ผู้ตรวจ(ผจก.)………………………………………………………………………………."]
[null,null,"ใบจ่ายสินค้า",null,null,null,null,null,null,null,null,null,null,null,null,null,null,{"$f":"IF(ISODD(COLUMN()),MAX($F$86:Q$86)+1,\"\")","v":""}]
["ราคา","ลำดับ","รายการ","ยกมา","เบิก","เหลือ","เสีย","โอนเข้า","โอนออก","ชำรุด","รวม",null,"ขาย",null,"ขาด/เกิน",null,"บาท",null,null,null,"ขายได้",null,"ควรเบิก",null,"หมายเหตุ",null,null,null,"เสีย PDA","เสียจริง","เหลือ PDA","ผลต่าง","เหลือลูกค้า","หมายเหตุ",null,null,null,null,"Price","Quantity","Baht","Deduct"]
[{"$f":"IF(B88=\"\",0,INDEX(Price_List,ROWS($88:88)))","v":20},{"$f":"IF($C88=\"\",\"\",COUNTA($C$88:$C88))","v":1},{"$f":"IF(INDEX(INDIRECT(\"Product_List\"),ROWS($88:88))=\"\",\"\",INDEX(INDIRECT(\"Product_List\"),ROWS($88:88)))","v":"01-ขนมปังหมูหยองน้ำสลัด"},{"$f":"ยอดยกมา","v":0},null,null,null,null,null,null,{"$f":"D88+E88+J88-I88+H88","v":0},null,{"$f":"INDIRECT(ADDRESS(ROW(A$80),ROW()-ROW(A$80)+(ROWS($88:88)-1)*2-1,4))","v":0},null,{"$f":"F88+G88+M88+J88-K88","v":0},null,{"$f":"O88*A88","v":0},null,null,null,{"$f":"D88+E88-F88-G88","v":0},null,{"$f":"U88*6%+U88","v":0},null,null,null,null,null,{"$f":"INDIRECT(ADDRESS(ROW(A$80),ROW()-ROW(A$80)+(ROWS($88:88)-1)*2,4))","v":0},{"$f":"$G88","v":0},null,{"$f":"$F88-$AE88","v":0},{"$f":"INDIRECT(ADDRESS(ROW(A$80),ROW()-ROW(A$80)+(ROWS($88:88)-1)*2+1,4))","v":0},null,null,null,null,null,10,{"$f":"SUMPRODUCT(($A$88:$A$135=$AM88)*(($F$88:$F$135)+($G$88:$G$135)+($M$88:$M$135)+($J$88:$J$135)-($K$88:$K$135)))","v":0},{"$f":"AM88*AN88","v":0},{"$f":"IF(AO88<0,AO88,0)","v":0}]
[{"$f":"IF(B89=\"\",0,INDEX(Price_List,ROWS($88:89)))","v":20},{"$f":"IF($C89=\"\",\"\",COUNTA($C$88:$C89))","v":2},{"$f":"IF(INDEX(INDIRECT(\"Product_List\"),ROWS($88:89))=\"\",\"\",INDEX(INDIRECT(\"Product_List\"),ROWS($88:89)))","v":"02-ขนมปังหมูหยองน้ำพริกเผา"},{"$f":"ยอดยกมา","v":0},null,null,null,null,null,null,{"$f":"D89+E89+J89-I89+H89","v":0},null,{"$f":"INDIRECT(ADDRESS(ROW(A$80),ROW()-ROW(A$80)+(ROWS($88:89)-1)*2-1,4))","v":0},null,{"$f":"F89+G89+M89+J89-K89","v":0},null,{"$f":"O89*A89","v":0},null,null,null,{"$f":"D89+E89-F89-G89","v":0},null,{"$f":"U89*6%+U89","v":0},null,null,null,null,null,{"$f":"INDIRECT(ADDRESS(ROW(A$80),ROW()-ROW(A$80)+(ROWS($88:89)-1)*2,4))","v":0},{"$f":"$G89","v":0},null,{"$f":"$F89-$AE89","v":0},{"$f":"INDIRECT(ADDRESS(ROW(A$80),ROW()-ROW(A$80)+(ROWS($88:89)-1)*2+1,4))","v":0},null,null,null,null,null,12,0,{"$f":"AM89*AN89","v":0},{"$f":"IF(AO89<0,AO89,0)","v":0}]
[{"$f":"IF(B90=\"\",0,INDEX(Price_List,ROWS($88:90)))","v":20},{"$f":"IF($C90=\"\",\"\",COUNTA($C$88:$C90))","v":3},{"$f":"IF(INDEX(INDIRECT(\"Product_List\"),ROWS($88:90))=\"\",\"\",INDEX(INDIRECT(\"Product_List\"),ROWS($88:90)))","v":"03-ขนมปังไก่หยองน้ำสลัด"},{"$f":"ยอดยกมา","v":0},null,null,null,null,null,null,0,null,{"$f":"INDIRECT(ADDRESS(ROW(A$80),ROW()-ROW(A$80)+(ROWS($88:90)-1)*2-1,4))","v":0},null,0,null,0,null,null,null,0,null,0,null,null,null,null,null,{"$f":"INDIRECT(ADDRESS(ROW(A$80),ROW()-ROW(A$80)+(ROWS($88:90)-1)*2,4))","v":0},0,null,0,{"$f":"INDIRECT(ADDRESS(ROW(A$80),ROW()-ROW(A$80)+(ROWS($88:90)-1)*2+1,4))","v":0},null,null,null,null,null,13,0,0,0]
[{"$f":"IF(B91=\"\",0,INDEX(Price_List,ROWS($88:91)))","v":15},{"$f":"IF($C91=\"\",\"\",COUNTA($C$88:$C91))","v":4},{"$f":"IF(INDEX(INDIRECT(\"Product_List\"),ROWS($88:91))=\"\",\"\",INDEX(INDIRECT(\"Product_List\"),ROWS($88:91)))","v":"04-ขนมปังไส้ครีมสลัด"},{"$f":"ยอดยกมา","v":0},null,null,null,null,null,null,0,null,{"$f":"INDIRECT(ADDRESS(ROW(A$80),ROW()-ROW(A$80)+(ROWS($88:91)-1)*2-1,4))","v":0},null,{"$f":"F91+G91+M91+J91-K91","v":0},null,0,null,null,null,0,null,0,null,null,null,null,null,{"$f":"INDIRECT(ADDRESS(ROW(A$80),ROW()-ROW(A$80)+(ROWS($88:91)-1)*2,4))","v":0},0,null,0,{"$f":"INDIRECT(ADDRESS(ROW(A$80),ROW()-ROW(A$80)+(ROWS($88:91)-1)*2+1,4))","v":0},null,null,null,null,null,15,0,0,0]
[{"$f":"IF(B92=\"\",0,INDEX(Price_List,ROWS($88:92)))","v":15},{"$f":"IF($C92=\"\",\"\",COUNTA($C$88:$C92))","v":5},{"$f":"IF(INDEX(INDIRECT(\"Product_List\"),ROWS($88:92))=\"\",\"\",INDEX(INDIRECT(\"Product_List\"),ROWS($88:92)))","v":"05-ขนมปังเนยสด"},{"$f":"ยอดยกมา","v":0},null,null,null,null,null,null,0,null,{"$f":"INDIRECT(ADDRESS(ROW(A$80),ROW()-ROW(A$80)+(ROWS($88:92)-1)*2-1,4))","v":0},null,0,null,0,null,null,null,0,null,0,null,null,null,null,null,{"$f":"INDIRECT(ADDRESS(ROW(A$80),ROW()-ROW(A$80)+(ROWS($88:92)-1)*2,4))","v":0},0,null,0,{"$f":"INDIRECT(ADDRESS(ROW(A$80),ROW()-ROW(A$80)+(ROWS($88:92)-1)*2+1,4))","v":0},null,null,null,null,null,16,0,0,0]
[{"$f":"IF(B93=\"\",0,INDEX(Price_List,ROWS($88:93)))","v":10},{"$f":"IF($C93=\"\",\"\",COUNTA($C$88:$C93))","v":6},{"$f":"IF(INDEX(INDIRECT(\"Product_List\"),ROWS($88:93))=\"\",\"\",INDEX(INDIRECT(\"Product_List\"),ROWS($88:93)))","v":"06-ขนมปังไส้สังขยาเล็ก"},{"$f":"ยอดยกมา","v":0},null,null,null,null,null,null,0,null,{"$f":"INDIRECT(ADDRESS(ROW(A$80),ROW()-ROW(A$80)+(ROWS($88:93)-1)*2-1,4))","v":0},null,0,null,0,null,null,null,0,null,0,null,null,null,null,null,{"$f":"INDIRECT(ADDRESS(ROW(A$80),ROW()-ROW(A$80)+(ROWS($88:93)-1)*2,4))","v":0},0,null,0,{"$f":"INDIRECT(ADDRESS(ROW(A$80),ROW()-ROW(A$80)+(ROWS($88:93)-1)*2+1,4))","v":0},null,null,null,null,null,18,0,0,0]
[{"$f":"IF(B94=\"\",0,INDEX(Price_List,ROWS($88:94)))","v":10},{"$f":"IF($C94=\"\",\"\",COUNTA($C$88:$C94))","v":7},{"$f":"IF(INDEX(INDIRECT(\"Product_List\"),ROWS($88:94))=\"\",\"\",INDEX(INDIRECT(\"Product_List\"),ROWS($88:94)))","v":"07-ขนมปังไส้เผือก"},{"$f":"ยอดยกมา","v":0},null,null,null,null,null,null,0,null,{"$f":"INDIRECT(ADDRESS(ROW(A$80),ROW()-ROW(A$80)+(ROWS($88:94)-1)*2-1,4))","v":0},null,0,null,0,null,null,null,0,null,0,null,null,null,null,null,{"$f":"INDIRECT(ADDRESS(ROW(A$80),ROW()-ROW(A$80)+(ROWS($88:94)-1)*2,4))","v":0},0,null,0,{"$f":"INDIRECT(ADDRESS(ROW(A$80),ROW()-ROW(A$80)+(ROWS($88:94)-1)*2+1,4))","v":0},null,null,null,null,null,20,0,0,0]
[{"$f":"IF(B95=\"\",0,INDEX(Price_List,ROWS($88:95)))","v":10},{"$f":"IF($C95=\"\",\"\",COUNTA($C$88:$C95))","v":8},{"$f":"IF(INDEX(INDIRECT(\"Product_List\"),ROWS($88:95))=\"\",\"\",INDEX(INDIRECT(\"Product_List\"),ROWS($88:95)))","v":"08-ขนมปังไส้ถั่วแดง"},{"$f":"ยอดยกมา","v":0},null,null,null,null,null,null,0,null,{"$f":"INDIRECT(ADDRESS(ROW(A$80),ROW()-ROW(A$80)+(ROWS($88:95)-1)*2-1,4))","v":0},null,0,null,0,null,null,null,0,null,0,null,null,null,null,null,{"$f":"INDIRECT(ADDRESS(ROW(A$80),ROW()-ROW(A$80)+(ROWS($88:95)-1)*2,4))","v":0},0,null,0,{"$f":"INDIRECT(ADDRESS(ROW(A$80),ROW()-ROW(A$80)+(ROWS($88:95)-1)*2+1,4))","v":0},null,null,null,null,null,22,0,0,0]
[{"$f":"IF(B96=\"\",0,INDEX(Price_List,ROWS($88:96)))","v":10},{"$f":"IF($C96=\"\",\"\",COUNTA($C$88:$C96))","v":9},{"$f":"IF(INDEX(INDIRECT(\"Product_List\"),ROWS($88:96))=\"\",\"\",INDEX(INDIRECT(\"Product_List\"),ROWS($88:96)))","v":"09-ขนมปังไส้ถั่วดำ"},{"$f":"ยอดยกมา","v":0},null,null,null,null,null,null,0,null,{"$f":"INDIRECT(ADDRESS(ROW(A$80),ROW()-ROW(A$80)+(ROWS($88:96)-1)*2-1,4))","v":0},null,0,null,0,null,null,null,0,null,0,null,null,null,null,null,{"$f":"INDIRECT(ADDRESS(ROW(A$80),ROW()-ROW(A$80)+(ROWS($88:96)-1)*2,4))","v":0},0,null,0,{"$f":"INDIRECT(ADDRESS(ROW(A$80),ROW()-ROW(A$80)+(ROWS($88:96)-1)*2+1,4))","v":0},null,null,null,null,null,25,0,0,0]
[{"$f":"IF(B97=\"\",0,INDEX(Price_List,ROWS($88:97)))","v":10},{"$f":"IF($C97=\"\",\"\",COUNTA($C$88:$C97))","v":10},{"$f":"IF(INDEX(INDIRECT(\"Product_List\"),ROWS($88:97))=\"\",\"\",INDEX(INDIRECT(\"Product_List\"),ROWS($88:97)))","v":"10-ขนมปังไส้มันม่วง"},{"$f":"ยอดยกมา","v":0},null,null,null,null,null,null,0,null,{"$f":"INDIRECT(ADDRESS(ROW(A$80),ROW()-ROW(A$80)+(ROWS($88:97)-1)*2-1,4))","v":0},null,0,null,0,null,null,null,0,null,0,null,null,null,null,null,{"$f":"INDIRECT(ADDRESS(ROW(A$80),ROW()-ROW(A$80)+(ROWS($88:97)-1)*2,4))","v":0},0,null,0,{"$f":"INDIRECT(ADDRESS(ROW(A$80),ROW()-ROW(A$80)+(ROWS($88:97)-1)*2+1,4))","v":0},null,null,null,null,null,42,0,0,0]
[{"$f":"IF(B98=\"\",0,INDEX(Price_List,ROWS($88:98)))","v":15},{"$f":"IF($C98=\"\",\"\",COUNTA($C$88:$C98))","v":11},{"$f":"IF(INDEX(INDIRECT(\"Product_List\"),ROWS($88:98))=\"\",\"\",INDEX(INDIRECT(\"Product_List\"),ROWS($88:98)))","v":"11-เค้กกล้วยหอม"},{"$f":"ยอดยกมา","v":0},null,null,null,null,null,null,0,null,{"$f":"INDIRECT(ADDRESS(ROW(A$80),ROW()-ROW(A$80)+(ROWS($88:98)-1)*2-1,4))","v":0},null,0,null,0,null,null,null,0,null,0,null,null,null,null,null,{"$f":"INDIRECT(ADDRESS(ROW(A$80),ROW()-ROW(A$80)+(ROWS($88:98)-1)*2,4))","v":0},0,null,0,{"$f":"INDIRECT(ADDRESS(ROW(A$80),ROW()-ROW(A$80)+(ROWS($88:98)-1)*2+1,4))","v":0},null,null,null,null,null,"Total Deduct",null,null,{"$f":"SUM($AP$88:$AP$97)","v":0}]
[{"$f":"IF(B99=\"\",0,INDEX(Price_List,ROWS($88:99)))","v":15},{"$f":"IF($C99=\"\",\"\",COUNTA($C$88:$C99))","v":12},{"$f":"IF(INDEX(INDIRECT(\"Product_List\"),ROWS($88:99))=\"\",\"\",INDEX(INDIRECT(\"Product_List\"),ROWS($88:99)))","v":"12-เค้กบัตเตอร์"},{"$f":"ยอดยกมา","v":0},null,null,null,null,null,null,0,null,{"$f":"INDIRECT(ADDRESS(ROW(A$80),ROW()-ROW(A$80)+(ROWS($88:99)-1)*2-1,4))","v":0},null,0,null,0,null,null,null,0,null,0,null,null,null,null,null,{"$f":"INDIRECT(ADDRESS(ROW(A$80),ROW()-ROW(A$80)+(ROWS($88:99)-1)*2,4))","v":0},0,null,0,{"$f":"INDIRECT(ADDRESS(ROW(A$80),ROW()-ROW(A$80)+(ROWS($88:99)-1)*2+1,4))","v":0}]
[{"$f":"IF(B100=\"\",0,INDEX(Price_List,ROWS($88:100)))","v":15},{"$f":"IF($C100=\"\",\"\",COUNTA($C$88:$C100))","v":13},{"$f":"IF(INDEX(INDIRECT(\"Product_List\"),ROWS($88:100))=\"\",\"\",INDEX(INDIRECT(\"Product_List\"),ROWS($88:100)))","v":"13-ขนมปังโรลถั่วแดง"},{"$f":"ยอดยกมา","v":0},null,null,null,null,null,null,0,null,{"$f":"INDIRECT(ADDRESS(ROW(A$80),ROW()-ROW(A$80)+(ROWS($88:100)-1)*2-1,4))","v":0},null,0,null,0,null,null,null,0,null,0,null,null,null,null,null,{"$f":"INDIRECT(ADDRESS(ROW(A$80),ROW()-ROW(A$80)+(ROWS($88:100)-1)*2,4))","v":0},0,null,0,{"$f":"INDIRECT(ADDRESS(ROW(A$80),ROW()-ROW(A$80)+(ROWS($88:100)-1)*2+1,4))","v":0}]
[{"$f":"IF(B101=\"\",0,INDEX(Price_List,ROWS($88:101)))","v":15},{"$f":"IF($C101=\"\",\"\",COUNTA($C$88:$C101))","v":14},{"$f":"IF(INDEX(INDIRECT(\"Product_List\"),ROWS($88:101))=\"\",\"\",INDEX(INDIRECT(\"Product_List\"),ROWS($88:101)))","v":"14-ขนมปังไส้สังขยาใหญ่"},{"$f":"ยอดยกมา","v":0},null,null,null,null,null,null,0,null,{"$f":"INDIRECT(ADDRESS(ROW(A$80),ROW()-ROW(A$80)+(ROWS($88:101)-1)*2-1,4))","v":0},null,0,null,0,null,null,null,0,null,0,null,null,null,null,null,{"$f":"INDIRECT(ADDRESS(ROW(A$80),ROW()-ROW(A$80)+(ROWS($88:101)-1)*2,4))","v":0},0,null,0,{"$f":"INDIRECT(ADDRESS(ROW(A$80),ROW()-ROW(A$80)+(ROWS($88:101)-1)*2+1,4))","v":0}]
[{"$f":"IF(B102=\"\",0,INDEX(Price_List,ROWS($88:102)))","v":42},{"$f":"IF($C102=\"\",\"\",COUNTA($C$88:$C102))","v":15},{"$f":"IF(INDEX(INDIRECT(\"Product_List\"),ROWS($88:102))=\"\",\"\",INDEX(INDIRECT(\"Product_List\"),ROWS($88:102)))","v":"15-ขนมปังชนิดแผ่น(480กรัม)"},{"$f":"ยอดยกมา","v":0},null,null,null,null,null,null,0,null,{"$f":"INDIRECT(ADDRESS(ROW(A$80),ROW()-ROW(A$80)+(ROWS($88:102)-1)*2-1,4))","v":0},null,0,null,0,null,null,null,0,null,0,null,null,null,null,null,{"$f":"INDIRECT(ADDRESS(ROW(A$80),ROW()-ROW(A$80)+(ROWS($88:102)-1)*2,4))","v":0},0,null,0,{"$f":"INDIRECT(ADDRESS(ROW(A$80),ROW()-ROW(A$80)+(ROWS($88:102)-1)*2+1,4))","v":0}]
[{"$f":"IF(B103=\"\",0,INDEX(Price_List,ROWS($88:103)))","v":12},{"$f":"IF($C103=\"\",\"\",COUNTA($C$88:$C103))","v":16},{"$f":"IF(INDEX(INDIRECT(\"Product_List\"),ROWS($88:103))=\"\",\"\",INDEX(INDIRECT(\"Product_List\"),ROWS($88:103)))","v":"16-โมจิไส้ถั่ว"},{"$f":"ยอดยกมา","v":0},null,null,null,null,null,null,0,null,{"$f":"INDIRECT(ADDRESS(ROW(A$80),ROW()-ROW(A$80)+(ROWS($88:103)-1)*2-1,4))","v":0},null,0,null,0,null,null,null,0,null,0,null,null,null,null,null,{"$f":"INDIRECT(ADDRESS(ROW(A$80),ROW()-ROW(A$80)+(ROWS($88:103)-1)*2,4))","v":0},0,null,0,{"$f":"INDIRECT(ADDRESS(ROW(A$80),ROW()-ROW(A$80)+(ROWS($88:103)-1)*2+1,4))","v":0}]
[{"$f":"IF(B104=\"\",0,INDEX(Price_List,ROWS($88:104)))","v":12},{"$f":"IF($C104=\"\",\"\",COUNTA($C$88:$C104))","v":17},{"$f":"IF(INDEX(INDIRECT(\"Product_List\"),ROWS($88:104))=\"\",\"\",INDEX(INDIRECT(\"Product_List\"),ROWS($88:104)))","v":"17-โมจิไส้เผือก"},{"$f":"ยอดยกมา","v":0},null,null,null,null,null,null,0,null,{"$f":"INDIRECT(ADDRESS(ROW(A$80),ROW()-ROW(A$80)+(ROWS($88:104)-1)*2-1,4))","v":0},null,0,null,0,null,null,null,0,null,0,null,null,null,null,null,{"$f":"INDIRECT(ADDRESS(ROW(A$80),ROW()-ROW(A$80)+(ROWS($88:104)-1)*2,4))","v":0},0,null,0,{"$f":"INDIRECT(ADDRESS(ROW(A$80),ROW()-ROW(A$80)+(ROWS($88:104)-1)*2+1,4))","v":0}]
[{"$f":"IF(B105=\"\",0,INDEX(Price_List,ROWS($88:105)))","v":15},{"$f":"IF($C105=\"\",\"\",COUNTA($C$88:$C105))","v":18},{"$f":"IF(INDEX(INDIRECT(\"Product_List\"),ROWS($88:105))=\"\",\"\",INDEX(INDIRECT(\"Product_List\"),ROWS($88:105)))","v":"18-โมจิไส้ถั่วไข่เค็ม"},{"$f":"ยอดยกมา","v":0},null,null,null,null,null,null,0,null,{"$f":"INDIRECT(ADDRESS(ROW(A$80),ROW()-ROW(A$80)+(ROWS($88:105)-1)*2-1,4))","v":0},null,0,null,0,null,null,null,0,null,0,null,null,null,null,null,{"$f":"INDIRECT(ADDRESS(ROW(A$80),ROW()-ROW(A$80)+(ROWS($88:105)-1)*2,4))","v":0},0,null,0,{"$f":"INDIRECT(ADDRESS(ROW(A$80),ROW()-ROW(A$80)+(ROWS($88:105)-1)*2+1,4))","v":0}]
[{"$f":"IF(B106=\"\",0,INDEX(Price_List,ROWS($88:106)))","v":20},{"$f":"IF($C106=\"\",\"\",COUNTA($C$88:$C106))","v":19},{"$f":"IF(INDEX(INDIRECT(\"Product_List\"),ROWS($88:106))=\"\",\"\",INDEX(INDIRECT(\"Product_List\"),ROWS($88:106)))","v":"19-ขนมปังพิซซ่า"},{"$f":"ยอดยกมา","v":0},null,null,null,null,null,null,0,null,{"$f":"INDIRECT(ADDRESS(ROW(A$80),ROW()-ROW(A$80)+(ROWS($88:106)-1)*2-1,4))","v":0},null,0,null,0,null,null,null,0,null,0,null,null,null,null,null,{"$f":"INDIRECT(ADDRESS(ROW(A$80),ROW()-ROW(A$80)+(ROWS($88:106)-1)*2,4))","v":0},0,null,0,{"$f":"INDIRECT(ADDRESS(ROW(A$80),ROW()-ROW(A$80)+(ROWS($88:106)-1)*2+1,4))","v":0}]
[{"$f":"IF(B107=\"\",0,INDEX(Price_List,ROWS($88:107)))","v":20},{"$f":"IF($C107=\"\",\"\",COUNTA($C$88:$C107))","v":20},{"$f":"IF(INDEX(INDIRECT(\"Product_List\"),ROWS($88:107))=\"\",\"\",INDEX(INDIRECT(\"Product_List\"),ROWS($88:107)))","v":"20-ขนมปังพิซซ่าปูอัดแฮม"},{"$f":"ยอดยกมา","v":0},null,null,null,null,null,null,0,null,{"$f":"INDIRECT(ADDRESS(ROW(A$80),ROW()-ROW(A$80)+(ROWS($88:107)-1)*2-1,4))","v":0},null,0,null,0,null,null,null,0,null,0,null,null,null,null,null,{"$f":"INDIRECT(ADDRESS(ROW(A$80),ROW()-ROW(A$80)+(ROWS($88:107)-1)*2,4))","v":0},0,null,0,{"$f":"INDIRECT(ADDRESS(ROW(A$80),ROW()-ROW(A$80)+(ROWS($88:107)-1)*2+1,4))","v":0}]
[{"$f":"IF(B108=\"\",0,INDEX(Price_List,ROWS($88:108)))","v":20},{"$f":"IF($C108=\"\",\"\",COUNTA($C$88:$C108))","v":21},{"$f":"IF(INDEX(INDIRECT(\"Product_List\"),ROWS($88:108))=\"\",\"\",INDEX(INDIRECT(\"Product_List\"),ROWS($88:108)))","v":"21-ขนมปังไส้กรอก"},{"$f":"ยอดยกมา","v":0},null,null,null,null,null,null,0,null,{"$f":"INDIRECT(ADDRESS(ROW(A$80),ROW()-ROW(A$80)+(ROWS($88:108)-1)*2-1,4))","v":0},null,0,null,0,null,null,null,0,null,0,null,null,null,null,null,{"$f":"INDIRECT(ADDRESS(ROW(A$80),ROW()-ROW(A$80)+(ROWS($88:108)-1)*2,4))","v":0},0,null,0,{"$f":"INDIRECT(ADDRESS(ROW(A$80),ROW()-ROW(A$80)+(ROWS($88:108)-1)*2+1,4))","v":0}]
[{"$f":"IF(B109=\"\",0,INDEX(Price_List,ROWS($88:109)))","v":15},{"$f":"IF($C109=\"\",\"\",COUNTA($C$88:$C109))","v":22},{"$f":"IF(INDEX(INDIRECT(\"Product_List\"),ROWS($88:109))=\"\",\"\",INDEX(INDIRECT(\"Product_List\"),ROWS($88:109)))","v":"22-ขนมก้านบัว"},{"$f":"ยอดยกมา","v":0},null,null,null,null,null,null,0,null,{"$f":"INDIRECT(ADDRESS(ROW(A$80),ROW()-ROW(A$80)+(ROWS($88:109)-1)*2-1,4))","v":0},null,0,null,0,null,null,null,0,null,0,null,null,null,null,null,{"$f":"INDIRECT(ADDRESS(ROW(A$80),ROW()-ROW(A$80)+(ROWS($88:109)-1)*2,4))","v":0},0,null,0,{"$f":"INDIRECT(ADDRESS(ROW(A$80),ROW()-ROW(A$80)+(ROWS($88:109)-1)*2+1,4))","v":0}]
[{"$f":"IF(B110=\"\",0,INDEX(Price_List,ROWS($88:110)))","v":20},{"$f":"IF($C110=\"\",\"\",COUNTA($C$88:$C110))","v":23},{"$f":"IF(INDEX(INDIRECT(\"Product_List\"),ROWS($88:110))=\"\",\"\",INDEX(INDIRECT(\"Product_List\"),ROWS($88:110)))","v":"23-พายสับปะรด"},{"$f":"ยอดยกมา","v":0},null,null,null,null,null,null,0,null,{"$f":"INDIRECT(ADDRESS(ROW(A$80),ROW()-ROW(A$80)+(ROWS($88:110)-1)*2-1,4))","v":0},null,0,null,0,null,null,null,0,null,0,null,null,null,null,null,{"$f":"INDIRECT(ADDRESS(ROW(A$80),ROW()-ROW(A$80)+(ROWS($88:110)-1)*2,4))","v":0},0,null,0,{"$f":"INDIRECT(ADDRESS(ROW(A$80),ROW()-ROW(A$80)+(ROWS($88:110)-1)*2+1,4))","v":0}]
[{"$f":"IF(B111=\"\",0,INDEX(Price_List,ROWS($88:111)))","v":20},{"$f":"IF($C111=\"\",\"\",COUNTA($C$88:$C111))","v":24},{"$f":"IF(INDEX(INDIRECT(\"Product_List\"),ROWS($88:111))=\"\",\"\",INDEX(INDIRECT(\"Product_List\"),ROWS($88:111)))","v":"24-พายไส้มะพร้าว"},{"$f":"ยอดยกมา","v":0},null,null,null,null,null,null,0,null,{"$f":"INDIRECT(ADDRESS(ROW(A$80),ROW()-ROW(A$80)+(ROWS($88:111)-1)*2-1,4))","v":0},null,0,null,0,null,null,null,0,null,0,null,null,null,null,null,{"$f":"INDIRECT(ADDRESS(ROW(A$80),ROW()-ROW(A$80)+(ROWS($88:111)-1)*2,4))","v":0},0,null,0,{"$f":"INDIRECT(ADDRESS(ROW(A$80),ROW()-ROW(A$80)+(ROWS($88:111)-1)*2+1,4))","v":0}]
[{"$f":"IF(B112=\"\",0,INDEX(Price_List,ROWS($88:112)))","v":15},{"$f":"IF($C112=\"\",\"\",COUNTA($C$88:$C112))","v":25},{"$f":"IF(INDEX(INDIRECT(\"Product_List\"),ROWS($88:112))=\"\",\"\",INDEX(INDIRECT(\"Product_List\"),ROWS($88:112)))","v":"25-ขนมปังโรลมันเทศ"},{"$f":"ยอดยกมา","v":0},null,null,null,null,null,null,0,null,{"$f":"INDIRECT(ADDRESS(ROW(A$80),ROW()-ROW(A$80)+(ROWS($88:112)-1)*2-1,4))","v":0},null,0,null,0,null,null,null,0,null,0,null,null,null,null,null,{"$f":"INDIRECT(ADDRESS(ROW(A$80),ROW()-ROW(A$80)+(ROWS($88:112)-1)*2,4))","v":0},0,null,0,{"$f":"INDIRECT(ADDRESS(ROW(A$80),ROW()-ROW(A$80)+(ROWS($88:112)-1)*2+1,4))","v":0}]
[{"$f":"IF(B113=\"\",0,INDEX(Price_List,ROWS($88:113)))","v":15},{"$f":"IF($C113=\"\",\"\",COUNTA($C$88:$C113))","v":26},{"$f":"IF(INDEX(INDIRECT(\"Product_List\"),ROWS($88:113))=\"\",\"\",INDEX(INDIRECT(\"Product_List\"),ROWS($88:113)))","v":"26-ขนมปังไส้ครีมสลัดน้ำพริกเผา"},{"$f":"ยอดยกมา","v":0},null,null,null,null,null,null,0,null,{"$f":"INDIRECT(ADDRESS(ROW(A$80),ROW()-ROW(A$80)+(ROWS($88:113)-1)*2-1,4))","v":0},null,0,null,0,null,null,null,0,null,0,null,null,null,null,null,{"$f":"INDIRECT(ADDRESS(ROW(A$80),ROW()-ROW(A$80)+(ROWS($88:113)-1)*2,4))","v":0},0,null,0,{"$f":"INDIRECT(ADDRESS(ROW(A$80),ROW()-ROW(A$80)+(ROWS($88:113)-1)*2+1,4))","v":0}]
[{"$f":"IF(B114=\"\",0,INDEX(Price_List,ROWS($88:114)))","v":20},{"$f":"IF($C114=\"\",\"\",COUNTA($C$88:$C114))","v":27},{"$f":"IF(INDEX(INDIRECT(\"Product_List\"),ROWS($88:114))=\"\",\"\",INDEX(INDIRECT(\"Product_List\"),ROWS($88:114)))","v":"27-ขนมปังไส้สังขยาไข่"},{"$f":"ยอดยกมา","v":0},null,null,null,null,null,null,0,null,{"$f":"INDIRECT(ADDRESS(ROW(A$80),ROW()-ROW(A$80)+(ROWS($88:114)-1)*2-1,4))","v":0},null,0,null,0,null,null,null,0,null,0,null,null,null,null,null,{"$f":"INDIRECT(ADDRESS(ROW(A$80),ROW()-ROW(A$80)+(ROWS($88:114)-1)*2,4))","v":0},0,null,0,{"$f":"INDIRECT(ADDRESS(ROW(A$80),ROW()-ROW(A$80)+(ROWS($88:114)-1)*2+1,4))","v":0}]
[{"$f":"IF(B115=\"\",0,INDEX(Price_List,ROWS($88:115)))","v":20},{"$f":"IF($C115=\"\",\"\",COUNTA($C$88:$C115))","v":28},{"$f":"IF(INDEX(INDIRECT(\"Product_List\"),ROWS($88:115))=\"\",\"\",INDEX(INDIRECT(\"Product_List\"),ROWS($88:115)))","v":"28-ขนมปังไส้สังขยามะพร้าว"},{"$f":"ยอดยกมา","v":0},null,null,null,null,null,null,0,null,{"$f":"INDIRECT(ADDRESS(ROW(A$80),ROW()-ROW(A$80)+(ROWS($88:115)-1)*2-1,4))","v":0},null,0,null,0,null,null,null,0,null,0,null,null,null,null,null,{"$f":"INDIRECT(ADDRESS(ROW(A$80),ROW()-ROW(A$80)+(ROWS($88:115)-1)*2,4))","v":0},0,null,0,{"$f":"INDIRECT(ADDRESS(ROW(A$80),ROW()-ROW(A$80)+(ROWS($88:115)-1)*2+1,4))","v":0}]
[{"$f":"IF(B116=\"\",0,INDEX(Price_List,ROWS($88:116)))","v":10},{"$f":"IF($C116=\"\",\"\",COUNTA($C$88:$C116))","v":29},{"$f":"IF(INDEX(INDIRECT(\"Product_List\"),ROWS($88:116))=\"\",\"\",INDEX(INDIRECT(\"Product_List\"),ROWS($88:116)))","v":"29-ขนมปังไส้ครีมชาไทย"},{"$f":"ยอดยกมา","v":0},null,null,null,null,null,null,0,null,{"$f":"INDIRECT(ADDRESS(ROW(A$80),ROW()-ROW(A$80)+(ROWS($88:116)-1)*2-1,4))","v":0},null,0,null,0,null,null,null,0,null,0,null,null,null,null,null,{"$f":"INDIRECT(ADDRESS(ROW(A$80),ROW()-ROW(A$80)+(ROWS($88:116)-1)*2,4))","v":0},0,null,0,{"$f":"INDIRECT(ADDRESS(ROW(A$80),ROW()-ROW(A$80)+(ROWS($88:116)-1)*2+1,4))","v":0}]
[{"$f":"IF(B117=\"\",0,INDEX(Price_List,ROWS($88:117)))","v":15},{"$f":"IF($C117=\"\",\"\",COUNTA($C$88:$C117))","v":30},{"$f":"IF(INDEX(INDIRECT(\"Product_List\"),ROWS($88:117))=\"\",\"\",INDEX(INDIRECT(\"Product_List\"),ROWS($88:117)))","v":"30-ขนมปังโรลมันม่วง"},{"$f":"ยอดยกมา","v":0},null,null,null,null,null,null,0,null,{"$f":"INDIRECT(ADDRESS(ROW(A$80),ROW()-ROW(A$80)+(ROWS($88:117)-1)*2-1,4))","v":0},null,0,null,0,null,null,null,0,null,0,null,null,null,null,null,{"$f":"INDIRECT(ADDRESS(ROW(A$80),ROW()-ROW(A$80)+(ROWS($88:117)-1)*2,4))","v":0},0,null,0,{"$f":"INDIRECT(ADDRESS(ROW(A$80),ROW()-ROW(A$80)+(ROWS($88:117)-1)*2+1,4))","v":0}]
[{"$f":"IF(B118=\"\",0,INDEX(Price_List,ROWS($88:118)))","v":15},{"$f":"IF($C118=\"\",\"\",COUNTA($C$88:$C118))","v":31},{"$f":"IF(INDEX(INDIRECT(\"Product_List\"),ROWS($88:118))=\"\",\"\",INDEX(INDIRECT(\"Product_List\"),ROWS($88:118)))","v":"31-ขนมปังโรลช็อกโกแลต"},{"$f":"ยอดยกมา","v":0},null,null,null,null,null,null,0,null,{"$f":"INDIRECT(ADDRESS(ROW(A$80),ROW()-ROW(A$80)+(ROWS($88:118)-1)*2-1,4))","v":0},null,0,null,0,null,null,null,0,null,0,null,null,null,null,null,{"$f":"INDIRECT(ADDRESS(ROW(A$80),ROW()-ROW(A$80)+(ROWS($88:118)-1)*2,4))","v":0},0,null,0,{"$f":"INDIRECT(ADDRESS(ROW(A$80),ROW()-ROW(A$80)+(ROWS($88:118)-1)*2+1,4))","v":0}]
[{"$f":"IF(B119=\"\",0,INDEX(Price_List,ROWS($88:119)))","v":16},{"$f":"IF($C119=\"\",\"\",COUNTA($C$88:$C119))","v":32},{"$f":"IF(INDEX(INDIRECT(\"Product_List\"),ROWS($88:119))=\"\",\"\",INDEX(INDIRECT(\"Product_List\"),ROWS($88:119)))","v":"32-ขนมปังชนิดแผ่น(155กรัม)"},{"$f":"ยอดยกมา","v":0},null,null,null,null,null,null,0,null,{"$f":"INDIRECT(ADDRESS(ROW(A$80),ROW()-ROW(A$80)+(ROWS($88:119)-1)*2-1,4))","v":0},null,0,null,0,null,null,null,0,null,0,null,null,null,null,null,{"$f":"INDIRECT(ADDRESS(ROW(A$80),ROW()-ROW(A$80)+(ROWS($88:119)-1)*2,4))","v":0},0,null,0,{"$f":"INDIRECT(ADDRESS(ROW(A$80),ROW()-ROW(A$80)+(ROWS($88:119)-1)*2+1,4))","v":0}]
[{"$f":"IF(B120=\"\",0,INDEX(Price_List,ROWS($88:120)))","v":15},{"$f":"IF($C120=\"\",\"\",COUNTA($C$88:$C120))","v":33},{"$f":"IF(INDEX(INDIRECT(\"Product_List\"),ROWS($88:120))=\"\",\"\",INDEX(INDIRECT(\"Product_List\"),ROWS($88:120)))","v":"33-ขนมปังโรลเผือก"},{"$f":"ยอดยกมา","v":0},null,null,null,null,null,null,0,null,{"$f":"INDIRECT(ADDRESS(ROW(A$80),ROW()-ROW(A$80)+(ROWS($88:120)-1)*2-1,4))","v":0},null,0,null,0,null,null,null,0,null,0,null,null,null,null,null,{"$f":"INDIRECT(ADDRESS(ROW(A$80),ROW()-ROW(A$80)+(ROWS($88:120)-1)*2,4))","v":0},0,null,0,{"$f":"INDIRECT(ADDRESS(ROW(A$80),ROW()-ROW(A$80)+(ROWS($88:120)-1)*2+1,4))","v":0}]
[{"$f":"IF(B121=\"\",0,INDEX(Price_List,ROWS($88:121)))","v":15},{"$f":"IF($C121=\"\",\"\",COUNTA($C$88:$C121))","v":34},{"$f":"IF(INDEX(INDIRECT(\"Product_List\"),ROWS($88:121))=\"\",\"\",INDEX(INDIRECT(\"Product_List\"),ROWS($88:121)))","v":"34-ขนมปังไก่หยองน้ำสลัด Mini"},{"$f":"ยอดยกมา","v":0},null,null,null,null,null,null,0,null,{"$f":"INDIRECT(ADDRESS(ROW(A$80),ROW()-ROW(A$80)+(ROWS($88:121)-1)*2-1,4))","v":0},null,0,null,0,null,null,null,0,null,0,null,null,null,null,null,{"$f":"INDIRECT(ADDRESS(ROW(A$80),ROW()-ROW(A$80)+(ROWS($88:121)-1)*2,4))","v":0},0,null,0,{"$f":"INDIRECT(ADDRESS(ROW(A$80),ROW()-ROW(A$80)+(ROWS($88:121)-1)*2+1,4))","v":0}]
[{"$f":"IF(B122=\"\",0,INDEX(Price_List,ROWS($88:122)))","v":10},{"$f":"IF($C122=\"\",\"\",COUNTA($C$88:$C122))","v":35},{"$f":"IF(INDEX(INDIRECT(\"Product_List\"),ROWS($88:122))=\"\",\"\",INDEX(INDIRECT(\"Product_List\"),ROWS($88:122)))","v":"35-ขนมปังไส้ช็อกโกแลต"},{"$f":"ยอดยกมา","v":0},null,null,null,null,null,null,0,null,{"$f":"INDIRECT(ADDRESS(ROW(A$80),ROW()-ROW(A$80)+(ROWS($88:122)-1)*2-1,4))","v":0},null,0,null,0,null,null,null,0,null,0,null,null,null,null,null,{"$f":"INDIRECT(ADDRESS(ROW(A$80),ROW()-ROW(A$80)+(ROWS($88:122)-1)*2,4))","v":0},0,null,0,{"$f":"INDIRECT(ADDRESS(ROW(A$80),ROW()-ROW(A$80)+(ROWS($88:122)-1)*2+1,4))","v":0}]
[{"$f":"IF(B123=\"\",0,INDEX(Price_List,ROWS($88:123)))","v":10},{"$f":"IF($C123=\"\",\"\",COUNTA($C$88:$C123))","v":36},{"$f":"IF(INDEX(INDIRECT(\"Product_List\"),ROWS($88:123))=\"\",\"\",INDEX(INDIRECT(\"Product_List\"),ROWS($88:123)))","v":"36-ขนมปังไส้ครีมสังขยาไข่"},{"$f":"ยอดยกมา","v":0},null,null,null,null,null,null,0,null,{"$f":"INDIRECT(ADDRESS(ROW(A$80),ROW()-ROW(A$80)+(ROWS($88:123)-1)*2-1,4))","v":0},null,0,null,0,null,null,null,0,null,0,null,null,null,null,null,{"$f":"INDIRECT(ADDRESS(ROW(A$80),ROW()-ROW(A$80)+(ROWS($88:123)-1)*2,4))","v":0},0,null,0,{"$f":"INDIRECT(ADDRESS(ROW(A$80),ROW()-ROW(A$80)+(ROWS($88:123)-1)*2+1,4))","v":0}]
[{"$f":"IF(B124=\"\",0,INDEX(Price_List,ROWS($88:124)))","v":20},{"$f":"IF($C124=\"\",\"\",COUNTA($C$88:$C124))","v":37},{"$f":"IF(INDEX(INDIRECT(\"Product_List\"),ROWS($88:124))=\"\",\"\",INDEX(INDIRECT(\"Product_List\"),ROWS($88:124)))","v":"37-ขนมปังพิซซ่าฮาวายเอี้ยน"},{"$f":"ยอดยกมา","v":0},null,null,null,null,null,null,0,null,{"$f":"INDIRECT(ADDRESS(ROW(A$80),ROW()-ROW(A$80)+(ROWS($88:124)-1)*2-1,4))","v":0},null,0,null,0,null,null,null,0,null,0,null,null,null,null,null,{"$f":"INDIRECT(ADDRESS(ROW(A$80),ROW()-ROW(A$80)+(ROWS($88:124)-1)*2,4))","v":0},0,null,0,{"$f":"INDIRECT(ADDRESS(ROW(A$80),ROW()-ROW(A$80)+(ROWS($88:124)-1)*2+1,4))","v":0}]
[{"$f":"IF(B125=\"\",0,INDEX(Price_List,ROWS($88:125)))","v":20},{"$f":"IF($C125=\"\",\"\",COUNTA($C$88:$C125))","v":38},{"$f":"IF(INDEX(INDIRECT(\"Product_List\"),ROWS($88:125))=\"\",\"\",INDEX(INDIRECT(\"Product_List\"),ROWS($88:125)))","v":"38-ครัวซองต์หมูหยองน้ำสลัด"},{"$f":"ยอดยกมา","v":0},null,null,null,null,null,null,0,null,{"$f":"INDIRECT(ADDRESS(ROW(A$80),ROW()-ROW(A$80)+(ROWS($88:125)-1)*2-1,4))","v":0},null,0,null,0,null,null,null,0,null,0,null,null,null,null,null,{"$f":"INDIRECT(ADDRESS(ROW(A$80),ROW()-ROW(A$80)+(ROWS($88:125)-1)*2,4))","v":0},0,null,0,{"$f":"INDIRECT(ADDRESS(ROW(A$80),ROW()-ROW(A$80)+(ROWS($88:125)-1)*2+1,4))","v":0}]
[{"$f":"IF(B126=\"\",0,INDEX(Price_List,ROWS($88:126)))","v":15},{"$f":"IF($C126=\"\",\"\",COUNTA($C$88:$C126))","v":39},{"$f":"IF(INDEX(INDIRECT(\"Product_List\"),ROWS($88:126))=\"\",\"\",INDEX(INDIRECT(\"Product_List\"),ROWS($88:126)))","v":"39-แพนเบรดไส้เผือก"},{"$f":"ยอดยกมา","v":0},null,null,null,null,null,null,0,null,{"$f":"INDIRECT(ADDRESS(ROW(A$80),ROW()-ROW(A$80)+(ROWS($88:126)-1)*2-1,4))","v":0},null,0,null,0,null,null,null,0,null,0,null,null,null,null,null,{"$f":"INDIRECT(ADDRESS(ROW(A$80),ROW()-ROW(A$80)+(ROWS($88:126)-1)*2,4))","v":0},0,null,0,{"$f":"INDIRECT(ADDRESS(ROW(A$80),ROW()-ROW(A$80)+(ROWS($88:126)-1)*2+1,4))","v":0}]
[{"$f":"IF(B127=\"\",0,INDEX(Price_List,ROWS($88:127)))","v":15},{"$f":"IF($C127=\"\",\"\",COUNTA($C$88:$C127))","v":40},{"$f":"IF(INDEX(INDIRECT(\"Product_List\"),ROWS($88:127))=\"\",\"\",INDEX(INDIRECT(\"Product_List\"),ROWS($88:127)))","v":"40-แพนเบรดไส้ถั่วแดง"},{"$f":"ยอดยกมา","v":0},null,null,null,null,null,null,0,null,{"$f":"INDIRECT(ADDRESS(ROW(A$80),ROW()-ROW(A$80)+(ROWS($88:127)-1)*2-1,4))","v":0},null,0,null,0,null,null,null,0,null,0,null,null,null,null,null,{"$f":"INDIRECT(ADDRESS(ROW(A$80),ROW()-ROW(A$80)+(ROWS($88:127)-1)*2,4))","v":0},0,null,0,{"$f":"INDIRECT(ADDRESS(ROW(A$80),ROW()-ROW(A$80)+(ROWS($88:127)-1)*2+1,4))","v":0}]
[{"$f":"IF(B128=\"\",0,INDEX(Price_List,ROWS($88:128)))","v":12},{"$f":"IF($C128=\"\",\"\",COUNTA($C$88:$C128))","v":41},{"$f":"IF(INDEX(INDIRECT(\"Product_List\"),ROWS($88:128))=\"\",\"\",INDEX(INDIRECT(\"Product_List\"),ROWS($88:128)))","v":"41-ขนมปังกรอบเนยน้ำตาล(30กรัม)"},{"$f":"ยอดยกมา","v":0},null,null,null,null,null,null,0,null,{"$f":"INDIRECT(ADDRESS(ROW(A$80),ROW()-ROW(A$80)+(ROWS($88:128)-1)*2-1,4))","v":0},null,0,null,0,null,null,null,0,null,0,null,null,null,null,null,{"$f":"INDIRECT(ADDRESS(ROW(A$80),ROW()-ROW(A$80)+(ROWS($88:128)-1)*2,4))","v":0},0,null,0,{"$f":"INDIRECT(ADDRESS(ROW(A$80),ROW()-ROW(A$80)+(ROWS($88:128)-1)*2+1,4))","v":0}]
[{"$f":"IF(B129=\"\",0,INDEX(Price_List,ROWS($88:129)))","v":18},{"$f":"IF($C129=\"\",\"\",COUNTA($C$88:$C129))","v":42},{"$f":"IF(INDEX(INDIRECT(\"Product_List\"),ROWS($88:129))=\"\",\"\",INDEX(INDIRECT(\"Product_List\"),ROWS($88:129)))","v":"42-ขนมปังชนิดแผ่นโฮลวีต"},{"$f":"ยอดยกมา","v":0},null,null,null,null,null,null,0,null,{"$f":"INDIRECT(ADDRESS(ROW(A$80),ROW()-ROW(A$80)+(ROWS($88:129)-1)*2-1,4))","v":0},null,0,null,0,null,null,null,0,null,0,null,null,null,null,null,{"$f":"INDIRECT(ADDRESS(ROW(A$80),ROW()-ROW(A$80)+(ROWS($88:129)-1)*2,4))","v":0},0,null,0,{"$f":"INDIRECT(ADDRESS(ROW(A$80),ROW()-ROW(A$80)+(ROWS($88:129)-1)*2+1,4))","v":0}]
[{"$f":"IF(B130=\"\",0,INDEX(Price_List,ROWS($88:130)))","v":12},{"$f":"IF($C130=\"\",\"\",COUNTA($C$88:$C130))","v":43},{"$f":"IF(INDEX(INDIRECT(\"Product_List\"),ROWS($88:130))=\"\",\"\",INDEX(INDIRECT(\"Product_List\"),ROWS($88:130)))","v":"43-เค้กโรลใบเตย"},{"$f":"ยอดยกมา","v":0},null,null,null,null,null,null,{"$f":"D130+E130+J130-I130+H130","v":0},null,{"$f":"INDIRECT(ADDRESS(ROW(A$80),ROW()-ROW(A$80)+(ROWS($88:130)-1)*2-1,4))","v":0},null,{"$f":"F130+G130+M130+J130-K130","v":0},null,{"$f":"O130*A130","v":0},null,null,null,{"$f":"D130+E130-F130-G130","v":0},null,{"$f":"U130*6%+U130","v":0},null,null,null,null,null,{"$f":"INDIRECT(ADDRESS(ROW(A$80),ROW()-ROW(A$80)+(ROWS($88:130)-1)*2,4))","v":0},0,null,0,{"$f":"INDIRECT(ADDRESS(ROW(A$80),ROW()-ROW(A$80)+(ROWS($88:130)-1)*2+1,4))","v":0}]
[{"$f":"IF(B131=\"\",0,INDEX(Price_List,ROWS($88:131)))","v":12},{"$f":"IF($C131=\"\",\"\",COUNTA($C$88:$C131))","v":44},{"$f":"IF(INDEX(INDIRECT(\"Product_List\"),ROWS($88:131))=\"\",\"\",INDEX(INDIRECT(\"Product_List\"),ROWS($88:131)))","v":"44-ขนมโมจิไส้ถั่วดำ"},{"$f":"ยอดยกมา","v":0},null,null,null,null,null,null,{"$f":"D131+E131+J131-I131+H131","v":0},null,{"$f":"INDIRECT(ADDRESS(ROW(A$80),ROW()-ROW(A$80)+(ROWS($88:131)-1)*2-1,4))","v":0},null,{"$f":"F131+G131+M131+J131-K131","v":0},null,{"$f":"O131*A131","v":0},null,null,null,{"$f":"D131+E131-F131-G131","v":0},null,{"$f":"U131*6%+U131","v":0},null,null,null,null,null,{"$f":"INDIRECT(ADDRESS(ROW(A$80),ROW()-ROW(A$80)+(ROWS($88:131)-1)*2,4))","v":0},0,null,0,{"$f":"INDIRECT(ADDRESS(ROW(A$80),ROW()-ROW(A$80)+(ROWS($88:131)-1)*2+1,4))","v":0}]
[{"$f":"IF(B132=\"\",0,INDEX(Price_List,ROWS($88:132)))","v":25},{"$f":"IF($C132=\"\",\"\",COUNTA($C$88:$C132))","v":45},{"$f":"IF(INDEX(INDIRECT(\"Product_List\"),ROWS($88:132))=\"\",\"\",INDEX(INDIRECT(\"Product_List\"),ROWS($88:132)))","v":"45-ครัวซองต์ไส้กรอกชีส"},{"$f":"ยอดยกมา","v":0},null,null,null,null,null,null,{"$f":"D132+E132+J132-I132+H132","v":0},null,{"$f":"INDIRECT(ADDRESS(ROW(A$80),ROW()-ROW(A$80)+(ROWS($88:132)-1)*2-1,4))","v":0},null,{"$f":"F132+G132+M132+J132-K132","v":0},null,{"$f":"O132*A132","v":0},null,null,null,{"$f":"D132+E132-F132-G132","v":0},null,{"$f":"U132*6%+U132","v":0},null,null,null,null,null,{"$f":"INDIRECT(ADDRESS(ROW(A$80),ROW()-ROW(A$80)+(ROWS($88:132)-1)*2,4))","v":0},0,null,0,{"$f":"INDIRECT(ADDRESS(ROW(A$80),ROW()-ROW(A$80)+(ROWS($88:132)-1)*2+1,4))","v":0}]
[{"$f":"IF(B133=\"\",0,INDEX(Price_List,ROWS($88:133)))","v":12},{"$f":"IF($C133=\"\",\"\",COUNTA($C$88:$C133))","v":46},{"$f":"IF(INDEX(INDIRECT(\"Product_List\"),ROWS($88:133))=\"\",\"\",INDEX(INDIRECT(\"Product_List\"),ROWS($88:133)))","v":"46-ขนมเปี๊ยะไส้ถั่ว"},{"$f":"ยอดยกมา","v":0},null,null,null,null,null,null,0,null,{"$f":"INDIRECT(ADDRESS(ROW(A$80),ROW()-ROW(A$80)+(ROWS($88:133)-1)*2-1,4))","v":0},null,0,null,0,null,null,null,0,null,0,null,null,null,null,null,{"$f":"INDIRECT(ADDRESS(ROW(A$80),ROW()-ROW(A$80)+(ROWS($88:133)-1)*2,4))","v":0},0,null,0,{"$f":"INDIRECT(ADDRESS(ROW(A$80),ROW()-ROW(A$80)+(ROWS($88:133)-1)*2+1,4))","v":0}]
[{"$f":"IF(B134=\"\",0,INDEX(Price_List,ROWS($88:134)))","v":12},{"$f":"IF($C134=\"\",\"\",COUNTA($C$88:$C134))","v":47},{"$f":"IF(INDEX(INDIRECT(\"Product_List\"),ROWS($88:134))=\"\",\"\",INDEX(INDIRECT(\"Product_List\"),ROWS($88:134)))","v":"47-ขนมเปี๊ยะไส้ฟัก"},{"$f":"ยอดยกมา","v":0},null,null,null,null,null,null,{"$f":"D134+E134+J134-I134+H134","v":0},null,{"$f":"INDIRECT(ADDRESS(ROW(A$80),ROW()-ROW(A$80)+(ROWS($88:134)-1)*2-1,4))","v":0},null,{"$f":"F134+G134+M134+J134-K134","v":0},null,{"$f":"O134*A134","v":0},null,null,null,{"$f":"D134+E134-F134-G134","v":0},null,{"$f":"U134*6%+U134","v":0},null,null,null,null,null,{"$f":"INDIRECT(ADDRESS(ROW(A$80),ROW()-ROW(A$80)+(ROWS($88:134)-1)*2,4))","v":0},0,null,0,{"$f":"INDIRECT(ADDRESS(ROW(A$80),ROW()-ROW(A$80)+(ROWS($88:134)-1)*2+1,4))","v":0}]
[{"$f":"IF(B135=\"\",0,INDEX(Price_List,ROWS($88:135)))","v":12},{"$f":"IF($C135=\"\",\"\",COUNTA($C$88:$C135))","v":48},{"$f":"IF(INDEX(INDIRECT(\"Product_List\"),ROWS($88:135))=\"\",\"\",INDEX(INDIRECT(\"Product_List\"),ROWS($88:135)))","v":"48-มังกี้เค้ก"},{"$f":"ยอดยกมา","v":0},null,null,null,null,null,null,0,null,{"$f":"INDIRECT(ADDRESS(ROW(A$80),ROW()-ROW(A$80)+(ROWS($88:135)-1)*2-1,4))","v":0},null,0,null,0,null,null,null,0,null,0,null,null,null,null,null,{"$f":"INDIRECT(ADDRESS(ROW(A$80),ROW()-ROW(A$80)+(ROWS($88:135)-1)*2,4))","v":0},0,null,0,{"$f":"INDIRECT(ADDRESS(ROW(A$80),ROW()-ROW(A$80)+(ROWS($88:135)-1)*2+1,4))","v":0}]
["รวม",null,null,{"$f":"SUM(D$88:D$135)","v":0},0,0,0,0,0,0,0,null,{"$f":"SUM(M$88:M$135)","v":0},null,null,null,{"$f":"$AP$98","v":0},null,"บาท",null,{"$f":"SUM(U$88:U$135)","v":0},null,{"$f":"SUM(W$88:W$135)","v":0},null,null,null,null,null,{"$f":"SUM(AC$88:AC$135)","v":0},{"$f":"SUM(AD$88:AD$135)","v":0},{"$f":"SUM(AE$88:AE$135)","v":0},{"$f":"SUM(AF$88:AF$135)","v":0},{"$f":"SUM(AG$88:AG$135)","v":0}]
["เลขที่ไมล์ เวลาออกทำงาน",null,null,{"$f":"$BF$3","v":0},null,"Km","น้ำหนักของเสีย"]
["เลขที่ไมล์ เวลากลับ",null,null,{"$f":"$BF$4","v":0},null,"Km",{"$f":"$AA$5","v":0},null,"KG"]
["เวลากลับถึงสำนักงาน",null,null,{"$f":"$BF$1","v":"00:00:00"},null,"น."]
["เติมน้ำมัน",null,null,{"$f":"$AX3","v":0},null,"บาท"]
["จำนวนน้ำมัน",null,null,{"$f":"$AX4","v":0},null,"ลิตร"]
["ยอดรวมต้นทุนสาขา",null,null,{"$f":"$AX5","v":0},null,"บาท"]

{"sheet":"28","index":32,"n_rows":142,"n_cols":154,"rows_kept":142,"cut":false,"hidden":false,"merged":[[83,132,83,133],[129,10,129,11],[129,12,129,13],[129,14,129,15],[129,16,129,17],[127,10,127,11],[127,12,127,13],[127,14,127,15],[127,16,127,17],[127,20,127,21],[127,22,127,23],[127,24,127,25],[127,33,127,36],[126,10,126,11],[126,12,126,13],[126,14,126,15],[126,16,126,17],[128,10,128,11],[128,12,128,13],[129,24,129,25],[125,10,125,11],[125,12,125,13],[125,14,125,15],[125,16,125,17],[7,132,7,134],[8,132,8,134],[80,132,80,133],[82,132,82,133],[7,135,7,137],[8,135,8,137],[80,135,80,136],[82,135,82,136],[7,138,7,140],[7,141,7,143],[7,147,7,149],[8,138,8,140],[141,0,141,2],[141,3,141,4],[138,0,138,2],[138,3,138,4],[139,0,139,2],[139,3,139,4],[140,0,140,2],[140,3,140,4],[135,24,135,25],[135,33,135,36],[136,0,136,2],[136,3,136,4],[137,0,137,2],[137,3,137,4],[137,6,137,7],[137,18,137,21],[135,0,135,2],[135,10,135,11],[135,12,135,13],[135,14,135,15],[135,16,135,17],[135,18,135,19],[135,20,135,21],[135,22,135,23],[128,14,128,15],[128,16,128,17],[128,20,128,21],[128,22,128,23],[129,20,129,21],[129,22,129,23],[131,16,131,17],[132,16,132,17],[134,16,134,17],[131,20,131,21],[132,20,132,21],[134,20,134,21],[131,22,131,23],[132,22,132,23],[134,22,134,23],[131,24,131,25],[132,24,132,25],[134,24,134,25],[129,33,129,36],[128,24,128,25],[128,33,128,36],[126,20,126,21],[126,22,126,23],[124,24,124,25],[124,33,124,36],[125,20,125,21],[125,22,125,23],[125,24,125,25],[125,33,125,36],[124,10,124,11],[124,12,124,13],[124,14,124,15],[124,16,124,17],[124,20,124,21],[124,22,124,23],[126,24,126,25],[126,33,126,36],[122,24,122,25],[122,33,122,36],[123,10,123,11],[123,12,123,13],[123,14,123,15],[123,16,123,17],[123,20,123,21],[123,22,123,23],[123,24,123,25],[123,33,123,36],[122,10,122,11],[122,12,122,13],[122,14,122,15],[122,16,122,17],[122,20,122,21],[122,22,122,23],[120,24,120,25],[120,33,120,36],[121,10,121,11],[121,12,121,13],[121,14,121,15],[121,16,121,17],[121,20,121,21],[121,22,121,23],[121,24,121,25],[121,33,121,36],[120,10,120,11],[120,12,120,13],[120,14,120,15],[120,16,120,17],[120,20,120,21],[120,22,120,23],[118,24,118,25],[118,33,118,36],[119,10,119,11],[119,12,119,13],[119,14,119,15],[119,16,119,17],[119,20,119,21],[119,22,119,23],[119,24,119,25],[119,33,119,36],[118,10,118,11],[118,12,118,13],[118,14,118,15],[118,16,118,17],[118,20,118,21],[118,22,118,23],[116,24,116,25],[116,33,116,36],[117,10,117,11],[117,12,117,13],[117,14,117,15],[117,16,117,17],[117,20,117,21],[117,22,117,23],[117,24,117,25],[117,33,117,36],[116,10,116,11],[116,12,116,13],[116,14,116,15],[116,16,116,17],[116,20,116,21],[116,22,116,23],[114,24,114,25],[114,33,114,36],[115,10,115,11],[115,12,115,13],[115,14,115,15],[115,16,115,17],[115,20,115,21],[115,22,115,23],[115,24,115,25],[115,33,115,36],[114,10,114,11],[114,12,114,13],[114,14,114,15],[114,16,114,17],[114,20,114,21],[114,22,114,23],[112,24,112,25],[112,33,112,36],[113,10,113,11],[113,12,113,13],[113,14,113,15],[113,16,113,17],[113,20,113,21],[113,22,113,23],[113,24,113,25],[113,33,113,36],[112,10,112,11],[112,12,112,13],[112,14,112,15],[112,16,112,17],[112,20,112,21],[112,22,112,23],[110,24,110,25],[110,33,110,36],[111,10,111,11],[111,12,111,13],[111,14,111,15],[111,16,111,17],[111,20,111,21],[111,22,111,23],[111,24,111,25],[111,33,111,36],[110,10,110,11],[110,12,110,13],[110,14,110,15],[110,16,110,17],[110,20,110,21],[110,22,110,23],[108,24,108,25],[108,33,108,36],[109,10,109,11],[109,12,109,13],[109,14,109,15],[109,16,109,17],[109,20,109,21],[109,22,109,23],[109,24,109,25],[109,33,109,36],[108,10,108,11],[108,12,108,13],[108,14,108,15],[108,16,108,17],[108,20,108,21],[108,22,108,23],[106,24,106,25],[106,33,106,36],[107,10,107,11],[107,12,107,13],[107,14,107,15],[107,16,107,17],[107,20,107,21],[107,22,107,23],[107,24,107,25],[107,33,107,36],[106,10,106,11],[106,12,106,13],[106,14,106,15],[106,16,106,17],[106,20,106,21],[106,22,106,23],[104,24,104,25],[104,33,104,36],[105,10,105,11],[105,12,105,13],[105,14,105,15],[105,16,105,17],[105,20,105,21],[105,22,105,23],[105,24,105,25],[105,33,105,36],[104,10,104,11],[104,12,104,13],[104,14,104,15],[104,16,104,17],[104,20,104,21],[104,22,104,23],[102,24,102,25],[102,33,102,36],[103,10,103,11],[103,12,103,13],[103,14,103,15],[103,16,103,17],[103,20,103,21],[103,22,103,23],[103,24,103,25],[103,33,103,36],[102,10,102,11],[102,12,102,13],[102,14,102,15],[102,16,102,17],[102,20,102,21],[102,22,102,23],[101,10,101,11],[101,12,101,13],[101,14,101,15],[101,16,101,17],[101,20,101,21],[101,22,101,23],[101,24,101,25],[101,33,101,36],[100,10,100,11],[100,12,100,13],[100,14,100,15],[100,16,100,17],[100,20,100,21],[100,22,100,23],[99,10,99,11],[99,12,99,13],[99,14,99,15],[99,16,99,17],[99,20,99,21],[99,22,99,23],[99,24,99,25],[99,33,99,36],[100,24,100,25],[100,33,100,36],[97,24,97,25],[97,33,97,36],[97,38,97,40],[98,10,98,11],[98,12,98,13],[98,14,98,15],[98,16,98,17],[98,20,98,21],[98,22,98,23],[98,24,98,25],[97,10,97,11],[97,12,97,13],[97,14,97,15],[97,16,97,17],[97,20,97,21],[97,22,97,23],[98,33,98,36],[95,24,95,25],[95,33,95,36],[96,10,96,11],[96,12,96,13],[96,14,96,15],[96,16,96,17],[96,20,96,21],[96,22,96,23],[96,24,96,25],[96,33,96,36],[95,10,95,11],[95,12,95,13],[95,14,95,15],[95,16,95,17],[95,20,95,21],[95,22,95,23],[93,24,93,25],[93,33,93,36],[94,10,94,11],[94,12,94,13],[94,14,94,15],[94,16,94,17],[94,20,94,21],[94,22,94,23],[94,24,94,25],[94,33,94,36],[93,10,93,11],[93,12,93,13],[93,14,93,15],[93,16,93,17],[93,20,93,21],[93,22,93,23],[91,24,91,25],[91,33,91,36],[92,10,92,11],[92,12,92,13],[92,14,92,15],[92,16,92,17],[92,20,92,21],[92,22,92,23],[92,24,92,25],[92,33,92,36],[91,10,91,11],[91,12,91,13],[91,14,91,15],[91,16,91,17],[91,20,91,21],[91,22,91,23],[86,22,86,23],[86,24,86,25],[88,20,88,21],[88,22,88,23],[88,24,88,25],[88,33,88,36],[89,24,89,25],[89,33,89,36],[90,10,90,11],[90,12,90,13],[90,14,90,15],[90,16,90,17],[90,20,90,21],[90,22,90,23],[90,24,90,25],[90,33,90,36],[89,10,89,11],[89,12,89,13],[89,14,89,15],[89,16,89,17],[89,20,89,21],[89,22,89,23],[83,36,83,37],[83,39,83,40],[83,42,83,43],[83,45,83,46],[83,48,83,49],[83,51,83,52],[83,150,83,153],[86,10,86,11],[86,12,86,13],[86,14,86,15],[86,16,86,17],[86,20,86,21],[83,108,83,109],[83,111,83,112],[83,114,83,115],[83,117,83,118],[83,120,83,121],[83,123,83,124],[83,90,83,91],[83,93,83,94],[83,96,83,97],[83,99,83,100],[83,102,83,103],[83,105,83,106],[82,39,82,40],[82,42,82,43],[82,45,82,46],[82,48,82,49],[83,84,83,85],[83,87,83,88],[83,54,83,55],[83,57,83,58],[83,60,83,61],[83,63,83,64],[83,66,83,67],[83,69,83,70],[83,72,83,73],[83,75,83,76],[83,78,83,79],[83,81,83,82],[83,0,83,5],[83,6,83,7],[83,9,83,10],[83,12,83,13],[83,15,83,16],[82,105,82,106],[82,108,82,109],[82,111,82,112],[82,114,82,115],[82,87,82,88],[82,90,82,91],[82,93,82,94],[82,96,82,97],[82,99,82,100],[82,102,82,103],[82,69,82,70],[82,72,82,73],[82,75,82,76],[82,78,82,79],[82,81,82,82],[82,84,82,85],[82,51,82,52],[82,54,82,55],[82,57,82,58],[82,15,82,16],[82,18,82,19],[82,21,82,22],[82,24,82,25],[82,27,82,28],[82,30,82,31],[81,0,81,2],[81,3,81,5],[81,150,82,153],[82,0,82,2],[82,3,82,4],[82,6,82,7],[82,9,82,10],[82,12,82,13],[82,123,82,124],[82,126,82,127],[82,129,82,130],[82,117,82,118],[82,120,82,121],[82,60,82,61],[82,63,82,64],[82,66,82,67],[82,33,82,34],[82,36,82,37],[80,114,80,115],[80,117,80,118],[80,120,80,121],[80,123,80,124],[80,126,80,127],[80,129,80,130],[80,96,80,97],[80,99,80,100],[80,102,80,103],[80,105,80,106],[80,108,80,109],[80,111,80,112],[80,78,80,79],[80,81,80,82],[80,87,80,88],[80,90,80,91],[80,93,80,94],[80,60,80,61],[80,63,80,64],[80,66,80,67],[80,69,80,70],[80,72,80,73],[80,75,80,76],[80,84,80,85],[79,0,79,5],[80,0,80,5],[80,6,80,7],[80,9,80,10],[80,12,80,13],[80,15,80,16],[80,18,80,19],[80,21,80,22],[8,114,8,116],[8,78,8,80],[8,81,8,83],[8,87,8,89],[8,90,8,92],[8,93,8,95],[8,60,8,62],[8,63,8,65],[8,66,8,68],[8,69,8,71],[8,72,8,74],[8,75,8,77],[8,54,8,56],[8,57,8,59],[8,24,8,26],[8,27,8,29],[8,120,8,122],[8,123,8,125],[8,126,8,128],[8,129,8,131],[8,96,8,98],[8,99,8,101],[8,102,8,104],[8,105,8,107],[8,108,8,110],[8,111,8,113],[8,33,8,35],[8,36,8,38],[8,39,8,41],[8,84,8,86],[7,150,8,150],[7,151,8,151],[8,6,8,8],[8,9,8,11],[8,12,8,14],[8,15,8,17],[8,18,8,20],[8,21,8,23],[7,114,7,116],[7,117,7,119],[7,120,7,122],[7,123,7,125],[7,126,7,128],[7,129,7,131],[7,96,7,98],[7,99,7,101],[7,102,7,104],[7,105,7,107],[7,108,7,110],[8,117,8,119],[7,87,7,89],[7,90,7,92],[7,93,7,95],[7,60,7,62],[7,63,7,65],[7,66,7,68],[7,69,7,71],[7,72,7,74],[7,75,7,77],[7,54,7,56],[7,57,7,59],[7,24,7,26],[7,27,7,29],[7,30,7,32],[7,33,7,35],[7,36,7,38],[7,39,7,41],[7,84,7,86],[6,150,6,151],[6,152,8,152],[6,153,8,153],[7,6,7,8],[7,9,7,11],[7,12,7,14],[7,15,7,17],[7,18,7,20],[7,21,7,23],[6,117,6,119],[6,120,6,122],[6,123,6,125],[6,126,6,128],[6,129,6,131],[6,99,6,101],[6,102,6,104],[6,105,6,107],[6,108,6,110],[6,111,6,113],[6,54,6,56],[6,57,6,59],[7,111,7,113],[7,78,7,80],[7,81,7,83],[6,0,8,0],[6,1,8,1],[6,2,8,2],[6,3,8,3],[6,4,8,4],[6,6,6,8],[6,45,6,47],[6,48,6,50],[6,51,6,53],[7,42,7,44],[7,45,7,47],[7,48,7,50],[7,51,7,53],[8,42,8,44],[8,45,8,47],[8,48,8,50],[8,51,8,53],[6,27,6,29],[6,30,6,32],[6,33,6,35],[6,36,6,38],[6,39,6,41],[6,42,6,44],[8,30,8,32],[4,26,4,29],[4,30,4,31],[4,32,4,34],[4,35,4,36],[6,9,6,11],[6,12,6,14],[6,15,6,17],[6,18,6,20],[6,21,6,23],[6,24,6,26],[3,41,3,44],[3,46,3,48],[3,49,3,51],[3,54,3,56],[3,57,3,60],[4,0,4,1],[4,2,4,3],[4,4,4,5],[4,6,4,12],[4,14,4,16],[3,17,3,19],[3,22,3,25],[3,26,3,29],[3,30,3,33],[3,34,3,37],[3,38,3,40],[4,38,4,40],[4,41,4,44],[4,46,4,48],[4,49,4,51],[4,54,4,56],[4,57,4,60],[4,17,4,19],[4,22,4,25],[2,38,2,40],[3,0,3,1],[3,2,3,3],[3,4,3,5],[3,6,3,12],[3,14,3,16],[2,17,2,19],[2,22,2,25],[2,26,2,29],[2,30,2,33],[80,36,80,37],[80,39,80,40],[0,38,0,40],[0,41,0,44],[0,46,0,48],[0,54,0,56],[0,57,0,60],[2,0,2,1],[2,2,2,3],[2,4,2,5],[2,6,2,12],[2,14,2,16],[0,0,0,12],[0,14,0,16],[0,17,0,23],[0,30,0,33],[0,34,0,35],[0,36,0,37],[2,41,2,44],[2,46,2,48],[2,49,2,51],[2,54,2,56],[2,57,2,60],[2,34,2,37],[6,141,6,143],[6,147,6,149],[83,18,83,19],[83,21,83,22],[83,24,83,25],[83,27,83,28],[83,30,83,31],[83,33,83,34],[83,126,83,127],[83,129,83,130],[8,141,8,143],[8,147,8,149],[80,138,80,139],[80,141,80,142],[80,147,80,148],[82,138,82,139],[82,141,82,142],[82,147,82,148],[6,60,6,62],[6,87,6,89],[6,90,6,92],[6,93,6,95],[6,96,6,98],[6,63,6,65],[88,12,88,13],[88,14,88,15],[88,16,88,17],[6,114,6,116],[6,81,6,83],[6,84,6,86],[6,132,6,134],[6,135,6,137],[6,138,6,140],[6,66,6,68],[6,69,6,71],[6,72,6,74],[6,75,6,77],[6,78,6,80],[80,42,80,43],[80,45,80,46],[80,48,80,49],[80,51,80,52],[80,54,80,55],[80,57,80,58],[80,24,80,25],[80,27,80,28],[80,30,80,31],[80,33,80,34],[83,147,83,148],[131,33,131,36],[132,33,132,36],[134,33,134,36],[131,10,131,11],[132,10,132,11],[134,10,134,11],[131,12,131,13],[132,12,132,13],[134,12,134,13],[131,14,131,15],[132,14,132,15],[134,14,134,15],[86,33,86,36],[87,10,87,11],[87,12,87,13],[87,14,87,15],[87,16,87,17],[87,20,87,21],[87,22,87,23],[83,135,83,136],[130,10,130,11],[130,12,130,13],[130,14,130,15],[6,144,6,146],[7,144,7,146],[8,144,8,146],[80,144,80,145],[82,144,82,145],[83,144,83,145],[133,10,133,11],[133,12,133,13],[133,14,133,15],[133,16,133,17],[133,20,133,21],[133,22,133,23],[133,24,133,25],[133,33,133,36],[83,138,83,139],[83,141,83,142],[130,16,130,17],[130,20,130,21],[130,22,130,23],[130,24,130,25],[130,33,130,36],[87,24,87,25],[87,33,87,36],[88,10,88,11]]}
[":::: รายงานการขายประจำวัน (Sale Daily Report)  ::::",null,null,null,null,null,null,null,null,null,null,null,null,null,"Print Date : ",null,null,{"$f":"NOW()","v":"2025-04-24T22:39:10.130"},null,null,null,null,null,null,null,null,null,null,null,null,"จำนวนร้าน :",null,null,null,{"$f":"MAX($A$10:$A$79)","v":0},null,"ร้าน",null,"เป้ายอดขาย :",null,null,null,null,null,null,null,{"$f":"C3","v":45805},null,null,{"$f":"LEFT('Problems & Solutions'!$B$2,FIND(\"|\",'Problems & Solutions'!$B$2))&\" วันที่\"&TEXT($C$3,\"[$-107041E] d mmmm yyyy;@\")","v":"ขั้นตอนการตรวจรีพอร์ตขาย | วันที่ 28 พฤษภาคม 2568"},null,null,null,null,"เวลากลับ :"]
[]
["วันที่ :",null,{"$f":"DATE(ใส่ข้อมูล!G2-543,ใส่ข้อมูล!V2,ActiveSheetName)","v":"2025-05-28"},null,"พนักงานขาย",null,{"$f":"INDEX(OFFSET(Sale_Region,,1),ActiveSheetName)","v":0},null,null,null,null,null,null,null,"รวมยอดเบิก :",null,null,{"$f":"E136","v":0},null,null,"ชิ้น",null,"ใหญ่สด(40)",null,null,null,{"$f":"Cash_Major_Bill","v":0},null,null,null,"ใหญ่เชื่อ(42)",null,null,null,{"$f":"Credit_Major_Bill","v":0},null,null,null,"บิลใหญ่ :",null,null,{"$f":"AA3+AI3","v":0},null,null,null,null,"เติมน้ำมัน :",null,null,null,null,null,"บาท",null,"ไมล์ออก :",null,null,{"$f":"เลขไมล์ออก","v":0},null,null,null,"Km"]
["เขตการขาย :",null,{"$f":"INDEX(Sale_Region,ActiveSheetName)","v":0},null,"ผช.ขาย",null,{"$f":"INDEX(OFFSET(Sale_Region,,2),ActiveSheetName)","v":0},null,null,null,null,null,null,null,"ของเหลือ :",null,null,{"$f":"F136","v":0},null,null,"ชิ้น",null,"เล็กสด(41)",null,null,null,{"$f":"Cash_Minor_Bill","v":0},null,null,null,"เล็กเชื่อ(43)",null,null,null,{"$f":"Credit_Minor_Bill","v":0},null,null,null,"บิลเล็ก :",null,null,{"$f":"AA4+AI4","v":0},null,null,null,null,"จำนวนลิตร :",null,null,null,null,null,"ลิตร",null,"ไมล์เข้า :",null,null,null,null,null,null,"Km"]
["สายส่ง :",null,{"$f":"\"Sale \"&ใส่ข้อมูล!E3&\"-\"&ใส่ข้อมูล!G3","v":"Sale KB-01"},null,"พนักงานเสริม",null,{"$f":"INDEX(OFFSET(Sale_Region,,3),ActiveSheetName)","v":0},null,null,null,null,null,null,null,"ของเสีย :",null,null,{"$f":"G136","v":0},null,null,"ชิ้น",null,"น้ำหนักของเสีย",null,null,null,null,null,null,null,"Kg.",null,"%ของเสีย",null,null,{"$f":"IF(Order_Cal=0,0,ROUND(Waste_Cal*100/Order_Cal,2))","v":0},null,"%","VAT :",null,null,{"$f":"EW81","v":0},null,null,null,null,"ต้นทุนสาขา :",null,null,{"$f":"SUMPRODUCT((($A$88:$A$135)-($A$88:$A$135)*0.45)*(($E$88:$E$135)-($G$88:$G$135)))","v":0},null,null,"บาท",null,"ระยะทาง :",null,null,{"$f":"IF(OR($BF$4=0,$BF$3=0),0,$BF$4-$BF$3)","v":0},null,null,null,"Km"]
[]
["No","รหัสร้าน (CustNo)","ชื่อร้าน (Store Name)","เวลาเข้าร้าน","ระยะเวลาระหว่างร้าน","บิล(Invoice)",{"$f":"INDEX(INDIRECT(\"dProduct[ProductName]\"),ROUNDUP(COLUMNS($G:G)/3,0))","v":"ขนมปังหมูหยองน้ำสลัด"},null,null,{"$f":"INDEX(INDIRECT(\"dProduct[ProductName]\"),ROUNDUP(COLUMNS($G:J)/3,0))","v":"ขนมปังหมูหยองน้ำพริกเผา"},null,null,{"$f":"INDEX(INDIRECT(\"dProduct[ProductName]\"),ROUNDUP(COLUMNS($G:M)/3,0))","v":"ขนมปังไก่หยองน้ำสลัด"},null,null,{"$f":"INDEX(INDIRECT(\"dProduct[ProductName]\"),ROUNDUP(COLUMNS($G:P)/3,0))","v":"ขนมปังไส้ครีมสลัด"},null,null,{"$f":"INDEX(INDIRECT(\"dProduct[ProductName]\"),ROUNDUP(COLUMNS($G:S)/3,0))","v":"ขนมปังเนยสด"},null,null,{"$f":"INDEX(INDIRECT(\"dProduct[ProductName]\"),ROUNDUP(COLUMNS($G:V)/3,0))","v":"ขนมปังไส้สังขยาเล็ก"},null,null,{"$f":"INDEX(INDIRECT(\"dProduct[ProductName]\"),ROUNDUP(COLUMNS($G:Y)/3,0))","v":"ขนมปังไส้เผือก"},null,null,{"$f":"INDEX(INDIRECT(\"dProduct[ProductName]\"),ROUNDUP(COLUMNS($G:AB)/3,0))","v":"ขนมปังไส้ถั่วแดง"},null,null,{"$f":"INDEX(INDIRECT(\"dProduct[ProductName]\"),ROUNDUP(COLUMNS($G:AE)/3,0))","v":"ขนมปังไส้ถั่วดำ"},null,null,{"$f":"INDEX(INDIRECT(\"dProduct[ProductName]\"),ROUNDUP(COLUMNS($G:AH)/3,0))","v":"ขนมปังไส้มันม่วง"},null,null,{"$f":"INDEX(INDIRECT(\"dProduct[ProductName]\"),ROUNDUP(COLUMNS($G:AK)/3,0))","v":"เค้กกล้วยหอม"},null,null,{"$f":"INDEX(INDIRECT(\"dProduct[ProductName]\"),ROUNDUP(COLUMNS($G:AN)/3,0))","v":"เค้กบัตเตอร์"},null,null,{"$f":"INDEX(INDIRECT(\"dProduct[ProductName]\"),ROUNDUP(COLUMNS($G:AQ)/3,0))","v":"ขนมปังโรลถั่วแดง"},null,null,{"$f":"INDEX(INDIRECT(\"dProduct[ProductName]\"),ROUNDUP(COLUMNS($G:AT)/3,0))","v":"ขนมปังไส้สังขยาใหญ่"},null,null,{"$f":"INDEX(INDIRECT(\"dProduct[ProductName]\"),ROUNDUP(COLUMNS($G:AW)/3,0))","v":"ขนมปังชนิดแผ่น(480กรัม)"},null,null,{"$f":"INDEX(INDIRECT(\"dProduct[ProductName]\"),ROUNDUP(COLUMNS($G:AZ)/3,0))","v":"โมจิไส้ถั่ว"},null,null,{"$f":"INDEX(INDIRECT(\"dProduct[ProductName]\"),ROUNDUP(COLUMNS($G:BC)/3,0))","v":"โมจิไส้เผือก"},null,null,{"$f":"INDEX(INDIRECT(\"dProduct[ProductName]\"),ROUNDUP(COLUMNS($G:BF)/3,0))","v":"โมจิไส้ถั่วไข่เค็ม"},null,null,{"$f":"INDEX(INDIRECT(\"dProduct[ProductName]\"),ROUNDUP(COLUMNS($G:BI)/3,0))","v":"ขนมปังพิซซ่า"},null,null,{"$f":"INDEX(INDIRECT(\"dProduct[ProductName]\"),ROUNDUP(COLUMNS($G:BL)/3,0))","v":"ขนมปังพิซซ่าปูอัดแฮม"},null,null,{"$f":"INDEX(INDIRECT(\"dProduct[ProductName]\"),ROUNDUP(COLUMNS($G:BO)/3,0))","v":"ขนมปังไส้กรอก"},null,null,{"$f":"INDEX(INDIRECT(\"dProduct[ProductName]\"),ROUNDUP(COLUMNS($G:BR)/3,0))","v":"ขนมก้านบัว"},null,null,{"$f":"INDEX(INDIRECT(\"dProduct[ProductName]\"),ROUNDUP(COLUMNS($G:BU)/3,0))","v":"พายสับปะรด"},null,null,{"$f":"INDEX(INDIRECT(\"dProduct[ProductName]\"),ROUNDUP(COLUMNS($G:BX)/3,0))","v":"พายไส้มะพร้าว"},null,null,{"$f":"INDEX(INDIRECT(\"dProduct[ProductName]\"),ROUNDUP(COLUMNS($G:CA)/3,0))","v":"ขนมปังโรลมันเทศ"},null,null,{"$f":"INDEX(INDIRECT(\"dProduct[ProductName]\"),ROUNDUP(COLUMNS($G:CD)/3,0))","v":"ขนมปังไส้ครีมสลัดน้ำพริกเผา"},null,null,{"$f":"INDEX(INDIRECT(\"dProduct[ProductName]\"),ROUNDUP(COLUMNS($G:CG)/3,0))","v":"ขนมปังไส้สังขยาไข่"},null,null,{"$f":"INDEX(INDIRECT(\"dProduct[ProductName]\"),ROUNDUP(COLUMNS($G:CJ)/3,0))","v":"ขนมปังไส้สังขยามะพร้าว"},null,null,{"$f":"INDEX(INDIRECT(\"dProduct[ProductName]\"),ROUNDUP(COLUMNS($G:CM)/3,0))","v":"ขนมปังไส้ครีมชาไทย"},null,null,{"$f":"INDEX(INDIRECT(\"dProduct[ProductName]\"),ROUNDUP(COLUMNS($G:CP)/3,0))","v":"ขนมปังโรลมันม่วง"},null,null,{"$f":"INDEX(INDIRECT(\"dProduct[ProductName]\"),ROUNDUP(COLUMNS($G:CS)/3,0))","v":"ขนมปังโรลช็อกโกแลต"},null,null,{"$f":"INDEX(INDIRECT(\"dProduct[ProductName]\"),ROUNDUP(COLUMNS($G:CV)/3,0))","v":"ขนมปังชนิดแผ่น(155กรัม)"},null,null,{"$f":"INDEX(INDIRECT(\"dProduct[ProductName]\"),ROUNDUP(COLUMNS($G:CY)/3,0))","v":"ขนมปังโรลเผือก"},null,null,{"$f":"INDEX(INDIRECT(\"dProduct[ProductName]\"),ROUNDUP(COLUMNS($G:DB)/3,0))","v":"ขนมปังไก่หยองน้ำสลัด Mini"},null,null,{"$f":"INDEX(INDIRECT(\"dProduct[ProductName]\"),ROUNDUP(COLUMNS($G:DE)/3,0))","v":"ขนมปังไส้ช็อกโกแลต"},null,null,{"$f":"INDEX(INDIRECT(\"dProduct[ProductName]\"),ROUNDUP(COLUMNS($G:DH)/3,0))","v":"ขนมปังไส้ครีมสังขยาไข่"},null,null,{"$f":"INDEX(INDIRECT(\"dProduct[ProductName]\"),ROUNDUP(COLUMNS($G:DK)/3,0))","v":"ขนมปังพิซซ่าฮาวายเอี้ยน"},null,null,{"$f":"INDEX(INDIRECT(\"dProduct[ProductName]\"),ROUNDUP(COLUMNS($G:DN)/3,0))","v":"ครัวซองต์หมูหยองน้ำสลัด"},null,null,{"$f":"INDEX(INDIRECT(\"dProduct[ProductName]\"),ROUNDUP(COLUMNS($G:DQ)/3,0))","v":"แพนเบรดไส้เผือก"},null,null,{"$f":"INDEX(INDIRECT(\"dProduct[ProductName]\"),ROUNDUP(COLUMNS($G:DT)/3,0))","v":"แพนเบรดไส้ถั่วแดง"},null,null,{"$f":"INDEX(INDIRECT(\"dProduct[ProductName]\"),ROUNDUP(COLUMNS($G:DW)/3,0))","v":"ขนมปังกรอบเนยน้ำตาล(30กรัม)"},null,null,{"$f":"INDEX(INDIRECT(\"dProduct[ProductName]\"),ROUNDUP(COLUMNS($G:DZ)/3,0))","v":"ขนมปังชนิดแผ่นโฮลวีต"},null,null,{"$f":"INDEX(INDIRECT(\"dProduct[ProductName]\"),ROUNDUP(COLUMNS($G:EC)/3,0))","v":"เค้กโรลใบเตย"},null,null,{"$f":"INDEX(INDIRECT(\"dProduct[ProductName]\"),ROUNDUP(COLUMNS($G:EF)/3,0))","v":"ขนมโมจิไส้ถั่วดำ"},null,null,{"$f":"INDEX(INDIRECT(\"dProduct[ProductName]\"),ROUNDUP(COLUMNS($G:EI)/3,0))","v":"ครัวซองต์ไส้กรอกชีส"},null,null,{"$f":"INDEX(INDIRECT(\"dProduct[ProductName]\"),ROUNDUP(COLUMNS($G:EL)/3,0))","v":"ขนมเปี๊ยะไส้ถั่ว"},null,null,{"$f":"INDEX(INDIRECT(\"dProduct[ProductName]\"),ROUNDUP(COLUMNS($G:EO)/3,0))","v":"ขนมเปี๊ยะไส้ฟัก"},null,null,{"$f":"INDEX(INDIRECT(\"dProduct[ProductName]\"),ROUNDUP(COLUMNS($G:ER)/3,0))","v":"มังกี้เค้ก"},null,null,"มูลค่าสินค้า",null,"ภาษี","รวมยอดขาย"]
[null,null,null,null,null,"ราคาขาย",{"$f":"IF(G$7=0,0,INDEX(Price_List,ROUNDUP(COLUMNS($G:G)/3,0)))","v":20},null,null,{"$f":"IF(J$7=0,0,INDEX(Price_List,ROUNDUP(COLUMNS($G:J)/3,0)))","v":20},null,null,{"$f":"IF(M$7=0,0,INDEX(Price_List,ROUNDUP(COLUMNS($G:M)/3,0)))","v":20},null,null,{"$f":"IF(P$7=0,0,INDEX(Price_List,ROUNDUP(COLUMNS($G:P)/3,0)))","v":15},null,null,{"$f":"IF(S$7=0,0,INDEX(Price_List,ROUNDUP(COLUMNS($G:S)/3,0)))","v":15},null,null,{"$f":"IF(V$7=0,0,INDEX(Price_List,ROUNDUP(COLUMNS($G:V)/3,0)))","v":10},null,null,{"$f":"IF(Y$7=0,0,INDEX(Price_List,ROUNDUP(COLUMNS($G:Y)/3,0)))","v":10},null,null,{"$f":"IF(AB$7=0,0,INDEX(Price_List,ROUNDUP(COLUMNS($G:AB)/3,0)))","v":10},null,null,{"$f":"IF(AE$7=0,0,INDEX(Price_List,ROUNDUP(COLUMNS($G:AE)/3,0)))","v":10},null,null,{"$f":"IF(AH$7=0,0,INDEX(Price_List,ROUNDUP(COLUMNS($G:AH)/3,0)))","v":10},null,null,{"$f":"IF(AK$7=0,0,INDEX(Price_List,ROUNDUP(COLUMNS($G:AK)/3,0)))","v":15},null,null,{"$f":"IF(AN$7=0,0,INDEX(Price_List,ROUNDUP(COLUMNS($G:AN)/3,0)))","v":15},null,null,{"$f":"IF(AQ$7=0,0,INDEX(Price_List,ROUNDUP(COLUMNS($G:AQ)/3,0)))","v":15},null,null,{"$f":"IF(AT$7=0,0,INDEX(Price_List,ROUNDUP(COLUMNS($G:AT)/3,0)))","v":15},null,null,{"$f":"IF(AW$7=0,0,INDEX(Price_List,ROUNDUP(COLUMNS($G:AW)/3,0)))","v":42},null,null,{"$f":"IF(AZ$7=0,0,INDEX(Price_List,ROUNDUP(COLUMNS($G:AZ)/3,0)))","v":12},null,null,{"$f":"IF(BC$7=0,0,INDEX(Price_List,ROUNDUP(COLUMNS($G:BC)/3,0)))","v":12},null,null,{"$f":"IF(BF$7=0,0,INDEX(Price_List,ROUNDUP(COLUMNS($G:BF)/3,0)))","v":15},null,null,{"$f":"IF(BI$7=0,0,INDEX(Price_List,ROUNDUP(COLUMNS($G:BI)/3,0)))","v":20},null,null,{"$f":"IF(BL$7=0,0,INDEX(Price_List,ROUNDUP(COLUMNS($G:BL)/3,0)))","v":20},null,null,{"$f":"IF(BO$7=0,0,INDEX(Price_List,ROUNDUP(COLUMNS($G:BO)/3,0)))","v":20},null,null,{"$f":"IF(BR$7=0,0,INDEX(Price_List,ROUNDUP(COLUMNS($G:BR)/3,0)))","v":15},null,null,{"$f":"IF(BU$7=0,0,INDEX(Price_List,ROUNDUP(COLUMNS($G:BU)/3,0)))","v":20},null,null,{"$f":"IF(BX$7=0,0,INDEX(Price_List,ROUNDUP(COLUMNS($G:BX)/3,0)))","v":20},null,null,{"$f":"IF(CA$7=0,0,INDEX(Price_List,ROUNDUP(COLUMNS($G:CA)/3,0)))","v":15},null,null,{"$f":"IF(CD$7=0,0,INDEX(Price_List,ROUNDUP(COLUMNS($G:CD)/3,0)))","v":15},null,null,{"$f":"IF(CG$7=0,0,INDEX(Price_List,ROUNDUP(COLUMNS($G:CG)/3,0)))","v":20},null,null,{"$f":"IF(CJ$7=0,0,INDEX(Price_List,ROUNDUP(COLUMNS($G:CJ)/3,0)))","v":20},null,null,{"$f":"IF(CM$7=0,0,INDEX(Price_List,ROUNDUP(COLUMNS($G:CM)/3,0)))","v":10},null,null,{"$f":"IF(CP$7=0,0,INDEX(Price_List,ROUNDUP(COLUMNS($G:CP)/3,0)))","v":15},null,null,{"$f":"IF(CS$7=0,0,INDEX(Price_List,ROUNDUP(COLUMNS($G:CS)/3,0)))","v":15},null,null,{"$f":"IF(CV$7=0,0,INDEX(Price_List,ROUNDUP(COLUMNS($G:CV)/3,0)))","v":16},null,null,{"$f":"IF(CY$7=0,0,INDEX(Price_List,ROUNDUP(COLUMNS($G:CY)/3,0)))","v":15},null,null,{"$f":"IF(DB$7=0,0,INDEX(Price_List,ROUNDUP(COLUMNS($G:DB)/3,0)))","v":15},null,null,{"$f":"IF(DE$7=0,0,INDEX(Price_List,ROUNDUP(COLUMNS($G:DE)/3,0)))","v":10},null,null,{"$f":"IF(DH$7=0,0,INDEX(Price_List,ROUNDUP(COLUMNS($G:DH)/3,0)))","v":10},null,null,{"$f":"IF(DK$7=0,0,INDEX(Price_List,ROUNDUP(COLUMNS($G:DK)/3,0)))","v":20},null,null,{"$f":"IF(DN$7=0,0,INDEX(Price_List,ROUNDUP(COLUMNS($G:DN)/3,0)))","v":20},null,null,{"$f":"IF(DQ$7=0,0,INDEX(Price_List,ROUNDUP(COLUMNS($G:DQ)/3,0)))","v":15},null,null,{"$f":"IF(DT$7=0,0,INDEX(Price_List,ROUNDUP(COLUMNS($G:DT)/3,0)))","v":15},null,null,{"$f":"IF(DW$7=0,0,INDEX(Price_List,ROUNDUP(COLUMNS($G:DW)/3,0)))","v":12},null,null,{"$f":"IF(DZ$7=0,0,INDEX(Price_List,ROUNDUP(COLUMNS($G:DZ)/3,0)))","v":18},null,null,{"$f":"IF(EC$7=0,0,INDEX(Price_List,ROUNDUP(COLUMNS($G:EC)/3,0)))","v":12},null,null,{"$f":"IF(EF$7=0,0,INDEX(Price_List,ROUNDUP(COLUMNS($G:EF)/3,0)))","v":12},null,null,{"$f":"IF(EI$7=0,0,INDEX(Price_List,ROUNDUP(COLUMNS($G:EI)/3,0)))","v":25},null,null,{"$f":"IF(EL$7=0,0,INDEX(Price_List,ROUNDUP(COLUMNS($G:EL)/3,0)))","v":12},null,null,{"$f":"IF(EO$7=0,0,INDEX(Price_List,ROUNDUP(COLUMNS($G:EO)/3,0)))","v":12},null,null,{"$f":"IF(ER$7=0,0,INDEX(Price_List,ROUNDUP(COLUMNS($G:ER)/3,0)))","v":12},null,null,"เงินเชื่อ","เงินสด"]
[null,null,null,null,null,"คงเหลือ(ตามบัญชี)",{"$f":"IF(G$7=0,0,INDEX(INDIRECT(Order_Rng),ROUNDUP(COLUMNS($G:G)/3,0)))","v":0},null,null,{"$f":"IF(J$7=0,0,INDEX(INDIRECT(Order_Rng),ROUNDUP(COLUMNS($G:J)/3,0)))","v":0},null,null,{"$f":"IF(M$7=0,0,INDEX(INDIRECT(Order_Rng),ROUNDUP(COLUMNS($G:M)/3,0)))","v":0},null,null,{"$f":"IF(P$7=0,0,INDEX(INDIRECT(Order_Rng),ROUNDUP(COLUMNS($G:P)/3,0)))","v":0},null,null,{"$f":"IF(S$7=0,0,INDEX(INDIRECT(Order_Rng),ROUNDUP(COLUMNS($G:S)/3,0)))","v":0},null,null,{"$f":"IF(V$7=0,0,INDEX(INDIRECT(Order_Rng),ROUNDUP(COLUMNS($G:V)/3,0)))","v":0},null,null,{"$f":"IF(Y$7=0,0,INDEX(INDIRECT(Order_Rng),ROUNDUP(COLUMNS($G:Y)/3,0)))","v":0},null,null,{"$f":"IF(AB$7=0,0,INDEX(INDIRECT(Order_Rng),ROUNDUP(COLUMNS($G:AB)/3,0)))","v":0},null,null,{"$f":"IF(AE$7=0,0,INDEX(INDIRECT(Order_Rng),ROUNDUP(COLUMNS($G:AE)/3,0)))","v":0},null,null,{"$f":"IF(AH$7=0,0,INDEX(INDIRECT(Order_Rng),ROUNDUP(COLUMNS($G:AH)/3,0)))","v":0},null,null,{"$f":"IF(AK$7=0,0,INDEX(INDIRECT(Order_Rng),ROUNDUP(COLUMNS($G:AK)/3,0)))","v":0},null,null,{"$f":"IF(AN$7=0,0,INDEX(INDIRECT(Order_Rng),ROUNDUP(COLUMNS($G:AN)/3,0)))","v":0},null,null,{"$f":"IF(AQ$7=0,0,INDEX(INDIRECT(Order_Rng),ROUNDUP(COLUMNS($G:AQ)/3,0)))","v":0},null,null,{"$f":"IF(AT$7=0,0,INDEX(INDIRECT(Order_Rng),ROUNDUP(COLUMNS($G:AT)/3,0)))","v":0},null,null,{"$f":"IF(AW$7=0,0,INDEX(INDIRECT(Order_Rng),ROUNDUP(COLUMNS($G:AW)/3,0)))","v":0},null,null,{"$f":"IF(AZ$7=0,0,INDEX(INDIRECT(Order_Rng),ROUNDUP(COLUMNS($G:AZ)/3,0)))","v":0},null,null,{"$f":"IF(BC$7=0,0,INDEX(INDIRECT(Order_Rng),ROUNDUP(COLUMNS($G:BC)/3,0)))","v":0},null,null,{"$f":"IF(BF$7=0,0,INDEX(INDIRECT(Order_Rng),ROUNDUP(COLUMNS($G:BF)/3,0)))","v":0},null,null,{"$f":"IF(BI$7=0,0,INDEX(INDIRECT(Order_Rng),ROUNDUP(COLUMNS($G:BI)/3,0)))","v":0},null,null,{"$f":"IF(BL$7=0,0,INDEX(INDIRECT(Order_Rng),ROUNDUP(COLUMNS($G:BL)/3,0)))","v":0},null,null,{"$f":"IF(BO$7=0,0,INDEX(INDIRECT(Order_Rng),ROUNDUP(COLUMNS($G:BO)/3,0)))","v":0},null,null,{"$f":"IF(BR$7=0,0,INDEX(INDIRECT(Order_Rng),ROUNDUP(COLUMNS($G:BR)/3,0)))","v":0},null,null,{"$f":"IF(BU$7=0,0,INDEX(INDIRECT(Order_Rng),ROUNDUP(COLUMNS($G:BU)/3,0)))","v":0},null,null,{"$f":"IF(BX$7=0,0,INDEX(INDIRECT(Order_Rng),ROUNDUP(COLUMNS($G:BX)/3,0)))","v":0},null,null,{"$f":"IF(CA$7=0,0,INDEX(INDIRECT(Order_Rng),ROUNDUP(COLUMNS($G:CA)/3,0)))","v":0},null,null,{"$f":"IF(CD$7=0,0,INDEX(INDIRECT(Order_Rng),ROUNDUP(COLUMNS($G:CD)/3,0)))","v":0},null,null,{"$f":"IF(CG$7=0,0,INDEX(INDIRECT(Order_Rng),ROUNDUP(COLUMNS($G:CG)/3,0)))","v":0},null,null,{"$f":"IF(CJ$7=0,0,INDEX(INDIRECT(Order_Rng),ROUNDUP(COLUMNS($G:CJ)/3,0)))","v":0},null,null,{"$f":"IF(CM$7=0,0,INDEX(INDIRECT(Order_Rng),ROUNDUP(COLUMNS($G:CM)/3,0)))","v":0},null,null,{"$f":"IF(CP$7=0,0,INDEX(INDIRECT(Order_Rng),ROUNDUP(COLUMNS($G:CP)/3,0)))","v":0},null,null,{"$f":"IF(CS$7=0,0,INDEX(INDIRECT(Order_Rng),ROUNDUP(COLUMNS($G:CS)/3,0)))","v":0},null,null,{"$f":"IF(CV$7=0,0,INDEX(INDIRECT(Order_Rng),ROUNDUP(COLUMNS($G:CV)/3,0)))","v":0},null,null,{"$f":"IF(CY$7=0,0,INDEX(INDIRECT(Order_Rng),ROUNDUP(COLUMNS($G:CY)/3,0)))","v":0},null,null,{"$f":"IF(DB$7=0,0,INDEX(INDIRECT(Order_Rng),ROUNDUP(COLUMNS($G:DB)/3,0)))","v":0},null,null,{"$f":"IF(DE$7=0,0,INDEX(INDIRECT(Order_Rng),ROUNDUP(COLUMNS($G:DE)/3,0)))","v":0},null,null,{"$f":"IF(DH$7=0,0,INDEX(INDIRECT(Order_Rng),ROUNDUP(COLUMNS($G:DH)/3,0)))","v":0},null,null,{"$f":"IF(DK$7=0,0,INDEX(INDIRECT(Order_Rng),ROUNDUP(COLUMNS($G:DK)/3,0)))","v":0},null,null,{"$f":"IF(DN$7=0,0,INDEX(INDIRECT(Order_Rng),ROUNDUP(COLUMNS($G:DN)/3,0)))","v":0},null,null,{"$f":"IF(DQ$7=0,0,INDEX(INDIRECT(Order_Rng),ROUNDUP(COLUMNS($G:DQ)/3,0)))","v":0},null,null,{"$f":"IF(DT$7=0,0,INDEX(INDIRECT(Order_Rng),ROUNDUP(COLUMNS($G:DT)/3,0)))","v":0},null,null,{"$f":"IF(DW$7=0,0,INDEX(INDIRECT(Order_Rng),ROUNDUP(COLUMNS($G:DW)/3,0)))","v":0},null,null,{"$f":"IF(DZ$7=0,0,INDEX(INDIRECT(Order_Rng),ROUNDUP(COLUMNS($G:DZ)/3,0)))","v":0},null,null,{"$f":"IF(EC$7=0,0,INDEX(INDIRECT(Order_Rng),ROUNDUP(COLUMNS($G:EC)/3,0)))","v":0},null,null,{"$f":"IF(EF$7=0,0,INDEX(INDIRECT(Order_Rng),ROUNDUP(COLUMNS($G:EF)/3,0)))","v":0},null,null,{"$f":"IF(EI$7=0,0,INDEX(INDIRECT(Order_Rng),ROUNDUP(COLUMNS($G:EI)/3,0)))","v":0},null,null,{"$f":"IF(EL$7=0,0,INDEX(INDIRECT(Order_Rng),ROUNDUP(COLUMNS($G:EL)/3,0)))","v":0},null,null,{"$f":"IF(EO$7=0,0,INDEX(INDIRECT(Order_Rng),ROUNDUP(COLUMNS($G:EO)/3,0)))","v":0},null,null,{"$f":"IF(ER$7=0,0,INDEX(INDIRECT(Order_Rng),ROUNDUP(COLUMNS($G:ER)/3,0)))","v":0}]
[{"$f":"IF(OR($B10=\"\",COUNTIF($B$10:$B10,$B10)>1,LEN(TRIM($B10))<>10,ISNUMBER(--MID(TRIM($B10),5,1))),\"-\",MAX(COUNT($A$9:$A9)+1))","v":"-"}]
[{"$f":"IF(OR($B11=\"\",COUNTIF($B$10:$B11,$B11)>1,LEN(TRIM($B11))<>10,ISNUMBER(--MID(TRIM($B11),5,1))),\"-\",MAX(COUNT($A$9:$A10)+1))","v":"-"},null,null,null,{"$f":"IF(D11=\"\",\"\",D11-D10)","v":""}]
[{"$f":"IF(OR($B12=\"\",COUNTIF($B$10:$B12,$B12)>1,LEN(TRIM($B12))<>10,ISNUMBER(--MID(TRIM($B12),5,1))),\"-\",MAX(COUNT($A$9:$A11)+1))","v":"-"},null,null,null,{"$f":"IF(D12=\"\",\"\",D12-D11)","v":""}]
[{"$f":"IF(OR($B13=\"\",COUNTIF($B$10:$B13,$B13)>1,LEN(TRIM($B13))<>10,ISNUMBER(--MID(TRIM($B13),5,1))),\"-\",MAX(COUNT($A$9:$A12)+1))","v":"-"},null,null,null,""]
[{"$f":"IF(OR($B14=\"\",COUNTIF($B$10:$B14,$B14)>1,LEN(TRIM($B14))<>10,ISNUMBER(--MID(TRIM($B14),5,1))),\"-\",MAX(COUNT($A$9:$A13)+1))","v":"-"},null,null,null,""]
[{"$f":"IF(OR($B15=\"\",COUNTIF($B$10:$B15,$B15)>1,LEN(TRIM($B15))<>10,ISNUMBER(--MID(TRIM($B15),5,1))),\"-\",MAX(COUNT($A$9:$A14)+1))","v":"-"},null,null,null,""]
[{"$f":"IF(OR($B16=\"\",COUNTIF($B$10:$B16,$B16)>1,LEN(TRIM($B16))<>10,ISNUMBER(--MID(TRIM($B16),5,1))),\"-\",MAX(COUNT($A$9:$A15)+1))","v":"-"},null,null,null,""]
[{"$f":"IF(OR($B17=\"\",COUNTIF($B$10:$B17,$B17)>1,LEN(TRIM($B17))<>10,ISNUMBER(--MID(TRIM($B17),5,1))),\"-\",MAX(COUNT($A$9:$A16)+1))","v":"-"},null,null,null,""]
[{"$f":"IF(OR($B18=\"\",COUNTIF($B$10:$B18,$B18)>1,LEN(TRIM($B18))<>10,ISNUMBER(--MID(TRIM($B18),5,1))),\"-\",MAX(COUNT($A$9:$A17)+1))","v":"-"},null,null,null,""]
[{"$f":"IF(OR($B19=\"\",COUNTIF($B$10:$B19,$B19)>1,LEN(TRIM($B19))<>10,ISNUMBER(--MID(TRIM($B19),5,1))),\"-\",MAX(COUNT($A$9:$A18)+1))","v":"-"},null,null,null,""]
[{"$f":"IF(OR($B20=\"\",COUNTIF($B$10:$B20,$B20)>1,LEN(TRIM($B20))<>10,ISNUMBER(--MID(TRIM($B20),5,1))),\"-\",MAX(COUNT($A$9:$A19)+1))","v":"-"},null,null,null,""]
[{"$f":"IF(OR($B21=\"\",COUNTIF($B$10:$B21,$B21)>1,LEN(TRIM($B21))<>10,ISNUMBER(--MID(TRIM($B21),5,1))),\"-\",MAX(COUNT($A$9:$A20)+1))","v":"-"},null,null,null,""]
[{"$f":"IF(OR($B22=\"\",COUNTIF($B$10:$B22,$B22)>1,LEN(TRIM($B22))<>10,ISNUMBER(--MID(TRIM($B22),5,1))),\"-\",MAX(COUNT($A$9:$A21)+1))","v":"-"},null,null,null,""]
[{"$f":"IF(OR($B23=\"\",COUNTIF($B$10:$B23,$B23)>1,LEN(TRIM($B23))<>10,ISNUMBER(--MID(TRIM($B23),5,1))),\"-\",MAX(COUNT($A$9:$A22)+1))","v":"-"},null,null,null,""]
[{"$f":"IF(OR($B24=\"\",COUNTIF($B$10:$B24,$B24)>1,LEN(TRIM($B24))<>10,ISNUMBER(--MID(TRIM($B24),5,1))),\"-\",MAX(COUNT($A$9:$A23)+1))","v":"-"},null,null,null,""]
[{"$f":"IF(OR($B25=\"\",COUNTIF($B$10:$B25,$B25)>1,LEN(TRIM($B25))<>10,ISNUMBER(--MID(TRIM($B25),5,1))),\"-\",MAX(COUNT($A$9:$A24)+1))","v":"-"},null,null,null,""]
[{"$f":"IF(OR($B26=\"\",COUNTIF($B$10:$B26,$B26)>1,LEN(TRIM($B26))<>10,ISNUMBER(--MID(TRIM($B26),5,1))),\"-\",MAX(COUNT($A$9:$A25)+1))","v":"-"},null,null,null,""]
[{"$f":"IF(OR($B27=\"\",COUNTIF($B$10:$B27,$B27)>1,LEN(TRIM($B27))<>10,ISNUMBER(--MID(TRIM($B27),5,1))),\"-\",MAX(COUNT($A$9:$A26)+1))","v":"-"},null,null,null,""]
[{"$f":"IF(OR($B28=\"\",COUNTIF($B$10:$B28,$B28)>1,LEN(TRIM($B28))<>10,ISNUMBER(--MID(TRIM($B28),5,1))),\"-\",MAX(COUNT($A$9:$A27)+1))","v":"-"},null,null,null,""]
[{"$f":"IF(OR($B29=\"\",COUNTIF($B$10:$B29,$B29)>1,LEN(TRIM($B29))<>10,ISNUMBER(--MID(TRIM($B29),5,1))),\"-\",MAX(COUNT($A$9:$A28)+1))","v":"-"},null,null,null,""]
[{"$f":"IF(OR($B30=\"\",COUNTIF($B$10:$B30,$B30)>1,LEN(TRIM($B30))<>10,ISNUMBER(--MID(TRIM($B30),5,1))),\"-\",MAX(COUNT($A$9:$A29)+1))","v":"-"},null,null,null,""]
[{"$f":"IF(OR($B31=\"\",COUNTIF($B$10:$B31,$B31)>1,LEN(TRIM($B31))<>10,ISNUMBER(--MID(TRIM($B31),5,1))),\"-\",MAX(COUNT($A$9:$A30)+1))","v":"-"},null,null,null,""]
[{"$f":"IF(OR($B32=\"\",COUNTIF($B$10:$B32,$B32)>1,LEN(TRIM($B32))<>10,ISNUMBER(--MID(TRIM($B32),5,1))),\"-\",MAX(COUNT($A$9:$A31)+1))","v":"-"},null,null,null,""]
[{"$f":"IF(OR($B33=\"\",COUNTIF($B$10:$B33,$B33)>1,LEN(TRIM($B33))<>10,ISNUMBER(--MID(TRIM($B33),5,1))),\"-\",MAX(COUNT($A$9:$A32)+1))","v":"-"},null,null,null,""]
[{"$f":"IF(OR($B34=\"\",COUNTIF($B$10:$B34,$B34)>1,LEN(TRIM($B34))<>10,ISNUMBER(--MID(TRIM($B34),5,1))),\"-\",MAX(COUNT($A$9:$A33)+1))","v":"-"},null,null,null,""]
[{"$f":"IF(OR($B35=\"\",COUNTIF($B$10:$B35,$B35)>1,LEN(TRIM($B35))<>10,ISNUMBER(--MID(TRIM($B35),5,1))),\"-\",MAX(COUNT($A$9:$A34)+1))","v":"-"},null,null,null,""]
[{"$f":"IF(OR($B36=\"\",COUNTIF($B$10:$B36,$B36)>1,LEN(TRIM($B36))<>10,ISNUMBER(--MID(TRIM($B36),5,1))),\"-\",MAX(COUNT($A$9:$A35)+1))","v":"-"},null,null,null,""]
[{"$f":"IF(OR($B37=\"\",COUNTIF($B$10:$B37,$B37)>1,LEN(TRIM($B37))<>10,ISNUMBER(--MID(TRIM($B37),5,1))),\"-\",MAX(COUNT($A$9:$A36)+1))","v":"-"},null,null,null,""]
[{"$f":"IF(OR($B38=\"\",COUNTIF($B$10:$B38,$B38)>1,LEN(TRIM($B38))<>10,ISNUMBER(--MID(TRIM($B38),5,1))),\"-\",MAX(COUNT($A$9:$A37)+1))","v":"-"},null,null,null,""]
[{"$f":"IF(OR($B39=\"\",COUNTIF($B$10:$B39,$B39)>1,LEN(TRIM($B39))<>10,ISNUMBER(--MID(TRIM($B39),5,1))),\"-\",MAX(COUNT($A$9:$A38)+1))","v":"-"},null,null,null,""]
[{"$f":"IF(OR($B40=\"\",COUNTIF($B$10:$B40,$B40)>1,LEN(TRIM($B40))<>10,ISNUMBER(--MID(TRIM($B40),5,1))),\"-\",MAX(COUNT($A$9:$A39)+1))","v":"-"},null,null,null,""]
[{"$f":"IF(OR($B41=\"\",COUNTIF($B$10:$B41,$B41)>1,LEN(TRIM($B41))<>10,ISNUMBER(--MID(TRIM($B41),5,1))),\"-\",MAX(COUNT($A$9:$A40)+1))","v":"-"},null,null,null,""]
[{"$f":"IF(OR($B42=\"\",COUNTIF($B$10:$B42,$B42)>1,LEN(TRIM($B42))<>10,ISNUMBER(--MID(TRIM($B42),5,1))),\"-\",MAX(COUNT($A$9:$A41)+1))","v":"-"},null,null,null,""]
[{"$f":"IF(OR($B43=\"\",COUNTIF($B$10:$B43,$B43)>1,LEN(TRIM($B43))<>10,ISNUMBER(--MID(TRIM($B43),5,1))),\"-\",MAX(COUNT($A$9:$A42)+1))","v":"-"},null,null,null,""]
[{"$f":"IF(OR($B44=\"\",COUNTIF($B$10:$B44,$B44)>1,LEN(TRIM($B44))<>10,ISNUMBER(--MID(TRIM($B44),5,1))),\"-\",MAX(COUNT($A$9:$A43)+1))","v":"-"},null,null,null,""]
[{"$f":"IF(OR($B45=\"\",COUNTIF($B$10:$B45,$B45)>1,LEN(TRIM($B45))<>10,ISNUMBER(--MID(TRIM($B45),5,1))),\"-\",MAX(COUNT($A$9:$A44)+1))","v":"-"},null,null,null,""]
[{"$f":"IF(OR($B46=\"\",COUNTIF($B$10:$B46,$B46)>1,LEN(TRIM($B46))<>10,ISNUMBER(--MID(TRIM($B46),5,1))),\"-\",MAX(COUNT($A$9:$A45)+1))","v":"-"},null,null,null,""]
[{"$f":"IF(OR($B47=\"\",COUNTIF($B$10:$B47,$B47)>1,LEN(TRIM($B47))<>10,ISNUMBER(--MID(TRIM($B47),5,1))),\"-\",MAX(COUNT($A$9:$A46)+1))","v":"-"},null,null,null,""]
[{"$f":"IF(OR($B48=\"\",COUNTIF($B$10:$B48,$B48)>1,LEN(TRIM($B48))<>10,ISNUMBER(--MID(TRIM($B48),5,1))),\"-\",MAX(COUNT($A$9:$A47)+1))","v":"-"},null,null,null,""]
[{"$f":"IF(OR($B49=\"\",COUNTIF($B$10:$B49,$B49)>1,LEN(TRIM($B49))<>10,ISNUMBER(--MID(TRIM($B49),5,1))),\"-\",MAX(COUNT($A$9:$A48)+1))","v":"-"},null,null,null,""]
[{"$f":"IF(OR($B50=\"\",COUNTIF($B$10:$B50,$B50)>1,LEN(TRIM($B50))<>10,ISNUMBER(--MID(TRIM($B50),5,1))),\"-\",MAX(COUNT($A$9:$A49)+1))","v":"-"},null,null,null,""]
[{"$f":"IF(OR($B51=\"\",COUNTIF($B$10:$B51,$B51)>1,LEN(TRIM($B51))<>10,ISNUMBER(--MID(TRIM($B51),5,1))),\"-\",MAX(COUNT($A$9:$A50)+1))","v":"-"},null,null,null,""]
[{"$f":"IF(OR($B52=\"\",COUNTIF($B$10:$B52,$B52)>1,LEN(TRIM($B52))<>10,ISNUMBER(--MID(TRIM($B52),5,1))),\"-\",MAX(COUNT($A$9:$A51)+1))","v":"-"},null,null,null,""]
[{"$f":"IF(OR($B53=\"\",COUNTIF($B$10:$B53,$B53)>1,LEN(TRIM($B53))<>10,ISNUMBER(--MID(TRIM($B53),5,1))),\"-\",MAX(COUNT($A$9:$A52)+1))","v":"-"},null,null,null,""]
[{"$f":"IF(OR($B54=\"\",COUNTIF($B$10:$B54,$B54)>1,LEN(TRIM($B54))<>10,ISNUMBER(--MID(TRIM($B54),5,1))),\"-\",MAX(COUNT($A$9:$A53)+1))","v":"-"},null,null,null,""]
[{"$f":"IF(OR($B55=\"\",COUNTIF($B$10:$B55,$B55)>1,LEN(TRIM($B55))<>10,ISNUMBER(--MID(TRIM($B55),5,1))),\"-\",MAX(COUNT($A$9:$A54)+1))","v":"-"},null,null,null,""]
[{"$f":"IF(OR($B56=\"\",COUNTIF($B$10:$B56,$B56)>1,LEN(TRIM($B56))<>10,ISNUMBER(--MID(TRIM($B56),5,1))),\"-\",MAX(COUNT($A$9:$A55)+1))","v":"-"},null,null,null,""]
[{"$f":"IF(OR($B57=\"\",COUNTIF($B$10:$B57,$B57)>1,LEN(TRIM($B57))<>10,ISNUMBER(--MID(TRIM($B57),5,1))),\"-\",MAX(COUNT($A$9:$A56)+1))","v":"-"},null,null,null,""]
[{"$f":"IF(OR($B58=\"\",COUNTIF($B$10:$B58,$B58)>1,LEN(TRIM($B58))<>10,ISNUMBER(--MID(TRIM($B58),5,1))),\"-\",MAX(COUNT($A$9:$A57)+1))","v":"-"},null,null,null,""]
[{"$f":"IF(OR($B59=\"\",COUNTIF($B$10:$B59,$B59)>1,LEN(TRIM($B59))<>10,ISNUMBER(--MID(TRIM($B59),5,1))),\"-\",MAX(COUNT($A$9:$A58)+1))","v":"-"},null,null,null,""]
[{"$f":"IF(OR($B60=\"\",COUNTIF($B$10:$B60,$B60)>1,LEN(TRIM($B60))<>10,ISNUMBER(--MID(TRIM($B60),5,1))),\"-\",MAX(COUNT($A$9:$A59)+1))","v":"-"},null,null,null,""]
[{"$f":"IF(OR($B61=\"\",COUNTIF($B$10:$B61,$B61)>1,LEN(TRIM($B61))<>10,ISNUMBER(--MID(TRIM($B61),5,1))),\"-\",MAX(COUNT($A$9:$A60)+1))","v":"-"},null,null,null,""]
[{"$f":"IF(OR($B62=\"\",COUNTIF($B$10:$B62,$B62)>1,LEN(TRIM($B62))<>10,ISNUMBER(--MID(TRIM($B62),5,1))),\"-\",MAX(COUNT($A$9:$A61)+1))","v":"-"},null,null,null,""]
[{"$f":"IF(OR($B63=\"\",COUNTIF($B$10:$B63,$B63)>1,LEN(TRIM($B63))<>10,ISNUMBER(--MID(TRIM($B63),5,1))),\"-\",MAX(COUNT($A$9:$A62)+1))","v":"-"},null,null,null,""]
[{"$f":"IF(OR($B64=\"\",COUNTIF($B$10:$B64,$B64)>1,LEN(TRIM($B64))<>10,ISNUMBER(--MID(TRIM($B64),5,1))),\"-\",MAX(COUNT($A$9:$A63)+1))","v":"-"},null,null,null,""]
[{"$f":"IF(OR($B65=\"\",COUNTIF($B$10:$B65,$B65)>1,LEN(TRIM($B65))<>10,ISNUMBER(--MID(TRIM($B65),5,1))),\"-\",MAX(COUNT($A$9:$A64)+1))","v":"-"},null,null,null,""]
[{"$f":"IF(OR($B66=\"\",COUNTIF($B$10:$B66,$B66)>1,LEN(TRIM($B66))<>10,ISNUMBER(--MID(TRIM($B66),5,1))),\"-\",MAX(COUNT($A$9:$A65)+1))","v":"-"},null,null,null,""]
[{"$f":"IF(OR($B67=\"\",COUNTIF($B$10:$B67,$B67)>1,LEN(TRIM($B67))<>10,ISNUMBER(--MID(TRIM($B67),5,1))),\"-\",MAX(COUNT($A$9:$A66)+1))","v":"-"},null,null,null,""]
[{"$f":"IF(OR($B68=\"\",COUNTIF($B$10:$B68,$B68)>1,LEN(TRIM($B68))<>10,ISNUMBER(--MID(TRIM($B68),5,1))),\"-\",MAX(COUNT($A$9:$A67)+1))","v":"-"},null,null,null,""]
[{"$f":"IF(OR($B69=\"\",COUNTIF($B$10:$B69,$B69)>1,LEN(TRIM($B69))<>10,ISNUMBER(--MID(TRIM($B69),5,1))),\"-\",MAX(COUNT($A$9:$A68)+1))","v":"-"},null,null,null,""]
[{"$f":"IF(OR($B70=\"\",COUNTIF($B$10:$B70,$B70)>1,LEN(TRIM($B70))<>10,ISNUMBER(--MID(TRIM($B70),5,1))),\"-\",MAX(COUNT($A$9:$A69)+1))","v":"-"},null,null,null,""]
[{"$f":"IF(OR($B71=\"\",COUNTIF($B$10:$B71,$B71)>1,LEN(TRIM($B71))<>10,ISNUMBER(--MID(TRIM($B71),5,1))),\"-\",MAX(COUNT($A$9:$A70)+1))","v":"-"},null,null,null,""]
[{"$f":"IF(OR($B72=\"\",COUNTIF($B$10:$B72,$B72)>1,LEN(TRIM($B72))<>10,ISNUMBER(--MID(TRIM($B72),5,1))),\"-\",MAX(COUNT($A$9:$A71)+1))","v":"-"},null,null,null,""]
[{"$f":"IF(OR($B73=\"\",COUNTIF($B$10:$B73,$B73)>1,LEN(TRIM($B73))<>10,ISNUMBER(--MID(TRIM($B73),5,1))),\"-\",MAX(COUNT($A$9:$A72)+1))","v":"-"},null,null,null,""]
[{"$f":"IF(OR($B74=\"\",COUNTIF($B$10:$B74,$B74)>1,LEN(TRIM($B74))<>10,ISNUMBER(--MID(TRIM($B74),5,1))),\"-\",MAX(COUNT($A$9:$A73)+1))","v":"-"},null,null,null,""]
[{"$f":"IF(OR($B75=\"\",COUNTIF($B$10:$B75,$B75)>1,LEN(TRIM($B75))<>10,ISNUMBER(--MID(TRIM($B75),5,1))),\"-\",MAX(COUNT($A$9:$A74)+1))","v":"-"},null,null,null,""]
[{"$f":"IF(OR($B76=\"\",COUNTIF($B$10:$B76,$B76)>1,LEN(TRIM($B76))<>10,ISNUMBER(--MID(TRIM($B76),5,1))),\"-\",MAX(COUNT($A$9:$A75)+1))","v":"-"},null,null,null,{"$f":"IF(D76=\"\",\"\",D76-D75)","v":""}]
[{"$f":"IF(OR($B77=\"\",COUNTIF($B$10:$B77,$B77)>1,LEN(TRIM($B77))<>10,ISNUMBER(--MID(TRIM($B77),5,1))),\"-\",MAX(COUNT($A$9:$A76)+1))","v":"-"},null,null,null,""]
[{"$f":"IF(OR($B78=\"\",COUNTIF($B$10:$B78,$B78)>1,LEN(TRIM($B78))<>10,ISNUMBER(--MID(TRIM($B78),5,1))),\"-\",MAX(COUNT($A$9:$A77)+1))","v":"-"},null,null,null,""]
[{"$f":"IF(OR($B79=\"\",COUNTIF($B$10:$B79,$B79)>1,LEN(TRIM($B79))<>10,ISNUMBER(--MID(TRIM($B79),5,1))),\"-\",MAX(COUNT($A$9:$A78)+1))","v":"-"},null,null,null,""]
["รวมของขาย|ของเสีย|เหลือบนเชลฟ์",null,null,null,null,null,{"$f":"SUM(G10:G79)","v":0},0,0,{"$f":"SUM(J10:J79)","v":0},0,0,0,0,0,0,0,0,0,0,0,0,0,0,0,0,0,0,0,0,0,0,0,0,0,0,0,0,0,0,0,0,0,0,0,0,0,0,0,0,0,0,0,0,0,0,0,0,0,0,0,0,0,0,0,0,0,0,0,0,0,0,0,{"$f":"SUM(BV10:BV79)","v":0},0,0,0,0,0,0,0,0,0,0,0,0,0,0,0,0,0,0,0,0,0,0,0,0,0,0,0,0,0,0,0,0,0,0,0,0,0,0,0,0,0,0,0,0,0,0,0,0,0,0,0,0,0,0,0,0,0,0,0,0,0,{"$f":"SUM(EF10:EF79)","v":0},0,0,{"$f":"SUM(EI10:EI79)","v":0},0,0,0,0,0,{"$f":"SUM(EO10:EO79)","v":0},0,0,0,0,0,"รวมเงินเชื่อ","รวมเงินสด","ภาษี","รวมยอดขาย"]
["ของเหลือ",null,null,null,null,null,{"$f":"G80+H80-G9","v":0},null,null,{"$f":"J80+K80-J9","v":0},null,null,{"$f":"M80+N80-M9","v":0},null,null,{"$f":"P80+Q80-P9","v":0},null,null,{"$f":"S80+T80-S9","v":0},null,null,{"$f":"V80+W80-V9","v":0},null,null,{"$f":"Y80+Z80-Y9","v":0},null,null,{"$f":"AB80+AC80-AB9","v":0},null,null,{"$f":"AE80+AF80-AE9","v":0},null,null,{"$f":"AH80+AI80-AH9","v":0},null,null,{"$f":"AK80+AL80-AK9","v":0},null,null,{"$f":"AN80+AO80-AN9","v":0},null,null,{"$f":"AQ80+AR80-AQ9","v":0},null,null,{"$f":"AT80+AU80-AT9","v":0},null,null,{"$f":"AW80+AX80-AW9","v":0},null,null,{"$f":"AZ80+BA80-AZ9","v":0},null,null,{"$f":"BC80+BD80-BC9","v":0},null,null,{"$f":"BF80+BG80-BF9","v":0},null,null,{"$f":"BI80+BJ80-BI9","v":0},null,null,{"$f":"BL80+BM80-BL9","v":0},null,null,{"$f":"BO80+BP80-BO9","v":0},null,null,{"$f":"BR80+BS80-BR9","v":0},null,null,{"$f":"BU80+BV80-BU9","v":0},null,null,{"$f":"BX80+BY80-BX9","v":0},null,null,{"$f":"CA80+CB80-CA9","v":0},null,null,{"$f":"CD80+CE80-CD9","v":0},null,null,{"$f":"CG80+CH80-CG9","v":0},null,null,{"$f":"CJ80+CK80-CJ9","v":0},null,null,{"$f":"CM80+CN80-CM9","v":0},null,null,{"$f":"CP80+CQ80-CP9","v":0},null,null,{"$f":"CS80+CT80-CS9","v":0},null,null,{"$f":"CV80+CW80-CV9","v":0},null,null,{"$f":"CY80+CZ80-CY9","v":0},null,null,{"$f":"DB80+DC80-DB9","v":0},null,null,{"$f":"DE80+DF80-DE9","v":0},null,null,{"$f":"DH80+DI80-DH9","v":0},null,null,{"$f":"DK80+DL80-DK9","v":0},null,null,{"$f":"DN80+DO80-DN9","v":0},null,null,{"$f":"DQ80+DR80-DQ9","v":0},null,null,{"$f":"DT80+DU80-DT9","v":0},null,null,{"$f":"DW80+DX80-DW9","v":0},null,null,{"$f":"DZ80+EA80-DZ9","v":0},null,null,{"$f":"EC80+ED80-EC9","v":0},null,null,{"$f":"EF80+EG80-EF9","v":0},null,null,{"$f":"EI80+EJ80-EI9","v":0},null,null,{"$f":"EL80+EM80-EL9","v":0},null,null,{"$f":"EO80+EP80-EO9","v":0},null,null,{"$f":"ER80+ES80-ER9","v":0},null,null,{"$f":"SUM(EU10:EU79)","v":0},{"$f":"SUM(EV10:EV79)","v":0},{"$f":"SUM(EW10:EW79)","v":0},{"$f":"SUM(EX10:EX79)","v":0}]
["เฉลี่ย",null,null,"เหลือ/เสีย(จริง)",null,null,{"$f":"INDIRECT(\"F\"&ROW($G$87)+ROUNDUP(COLUMNS($G:G)/3,0))","v":0},{"$f":"INDIRECT(\"G\"&ROW($G$87)+ROUNDUP(COLUMNS($G:H)/3,0))","v":0},null,{"$f":"INDIRECT(\"F\"&ROW($G$87)+ROUNDUP(COLUMNS($G:J)/3,0))","v":0},{"$f":"INDIRECT(\"G\"&ROW($G$87)+ROUNDUP(COLUMNS($G:K)/3,0))","v":0},null,{"$f":"INDIRECT(\"F\"&ROW($G$87)+ROUNDUP(COLUMNS($G:M)/3,0))","v":0},{"$f":"INDIRECT(\"G\"&ROW($G$87)+ROUNDUP(COLUMNS($G:N)/3,0))","v":0},null,{"$f":"INDIRECT(\"F\"&ROW($G$87)+ROUNDUP(COLUMNS($G:P)/3,0))","v":0},{"$f":"INDIRECT(\"G\"&ROW($G$87)+ROUNDUP(COLUMNS($G:Q)/3,0))","v":0},null,{"$f":"INDIRECT(\"F\"&ROW($G$87)+ROUNDUP(COLUMNS($G:S)/3,0))","v":0},{"$f":"INDIRECT(\"G\"&ROW($G$87)+ROUNDUP(COLUMNS($G:T)/3,0))","v":0},null,{"$f":"INDIRECT(\"F\"&ROW($G$87)+ROUNDUP(COLUMNS($G:V)/3,0))","v":0},{"$f":"INDIRECT(\"G\"&ROW($G$87)+ROUNDUP(COLUMNS($G:W)/3,0))","v":0},null,{"$f":"INDIRECT(\"F\"&ROW($G$87)+ROUNDUP(COLUMNS($G:Y)/3,0))","v":0},{"$f":"INDIRECT(\"G\"&ROW($G$87)+ROUNDUP(COLUMNS($G:Z)/3,0))","v":0},null,{"$f":"INDIRECT(\"F\"&ROW($G$87)+ROUNDUP(COLUMNS($G:AB)/3,0))","v":0},{"$f":"INDIRECT(\"G\"&ROW($G$87)+ROUNDUP(COLUMNS($G:AC)/3,0))","v":0},null,{"$f":"INDIRECT(\"F\"&ROW($G$87)+ROUNDUP(COLUMNS($G:AE)/3,0))","v":0},{"$f":"INDIRECT(\"G\"&ROW($G$87)+ROUNDUP(COLUMNS($G:AF)/3,0))","v":0},null,{"$f":"INDIRECT(\"F\"&ROW($G$87)+ROUNDUP(COLUMNS($G:AH)/3,0))","v":0},{"$f":"INDIRECT(\"G\"&ROW($G$87)+ROUNDUP(COLUMNS($G:AI)/3,0))","v":0},null,{"$f":"INDIRECT(\"F\"&ROW($G$87)+ROUNDUP(COLUMNS($G:AK)/3,0))","v":0},{"$f":"INDIRECT(\"G\"&ROW($G$87)+ROUNDUP(COLUMNS($G:AL)/3,0))","v":0},null,{"$f":"INDIRECT(\"F\"&ROW($G$87)+ROUNDUP(COLUMNS($G:AN)/3,0))","v":0},{"$f":"INDIRECT(\"G\"&ROW($G$87)+ROUNDUP(COLUMNS($G:AO)/3,0))","v":0},null,{"$f":"INDIRECT(\"F\"&ROW($G$87)+ROUNDUP(COLUMNS($G:AQ)/3,0))","v":0},{"$f":"INDIRECT(\"G\"&ROW($G$87)+ROUNDUP(COLUMNS($G:AR)/3,0))","v":0},null,{"$f":"INDIRECT(\"F\"&ROW($G$87)+ROUNDUP(COLUMNS($G:AT)/3,0))","v":0},{"$f":"INDIRECT(\"G\"&ROW($G$87)+ROUNDUP(COLUMNS($G:AU)/3,0))","v":0},null,{"$f":"INDIRECT(\"F\"&ROW($G$87)+ROUNDUP(COLUMNS($G:AW)/3,0))","v":0},{"$f":"INDIRECT(\"G\"&ROW($G$87)+ROUNDUP(COLUMNS($G:AX)/3,0))","v":0},null,{"$f":"INDIRECT(\"F\"&ROW($G$87)+ROUNDUP(COLUMNS($G:AZ)/3,0))","v":0},{"$f":"INDIRECT(\"G\"&ROW($G$87)+ROUNDUP(COLUMNS($G:BA)/3,0))","v":0},null,{"$f":"INDIRECT(\"F\"&ROW($G$87)+ROUNDUP(COLUMNS($G:BC)/3,0))","v":0},{"$f":"INDIRECT(\"G\"&ROW($G$87)+ROUNDUP(COLUMNS($G:BD)/3,0))","v":0},null,{"$f":"INDIRECT(\"F\"&ROW($G$87)+ROUNDUP(COLUMNS($G:BF)/3,0))","v":0},{"$f":"INDIRECT(\"G\"&ROW($G$87)+ROUNDUP(COLUMNS($G:BG)/3,0))","v":0},null,{"$f":"INDIRECT(\"F\"&ROW($G$87)+ROUNDUP(COLUMNS($G:BI)/3,0))","v":0},{"$f":"INDIRECT(\"G\"&ROW($G$87)+ROUNDUP(COLUMNS($G:BJ)/3,0))","v":0},null,{"$f":"INDIRECT(\"F\"&ROW($G$87)+ROUNDUP(COLUMNS($G:BL)/3,0))","v":0},{"$f":"INDIRECT(\"G\"&ROW($G$87)+ROUNDUP(COLUMNS($G:BM)/3,0))","v":0},null,{"$f":"INDIRECT(\"F\"&ROW($G$87)+ROUNDUP(COLUMNS($G:BO)/3,0))","v":0},{"$f":"INDIRECT(\"G\"&ROW($G$87)+ROUNDUP(COLUMNS($G:BP)/3,0))","v":0},null,{"$f":"INDIRECT(\"F\"&ROW($G$87)+ROUNDUP(COLUMNS($G:BR)/3,0))","v":0},{"$f":"INDIRECT(\"G\"&ROW($G$87)+ROUNDUP(COLUMNS($G:BS)/3,0))","v":0},null,{"$f":"INDIRECT(\"F\"&ROW($G$87)+ROUNDUP(COLUMNS($G:BU)/3,0))","v":0},{"$f":"INDIRECT(\"G\"&ROW($G$87)+ROUNDUP(COLUMNS($G:BV)/3,0))","v":0},null,{"$f":"INDIRECT(\"F\"&ROW($G$87)+ROUNDUP(COLUMNS($G:BX)/3,0))","v":0},{"$f":"INDIRECT(\"G\"&ROW($G$87)+ROUNDUP(COLUMNS($G:BY)/3,0))","v":0},null,{"$f":"INDIRECT(\"F\"&ROW($G$87)+ROUNDUP(COLUMNS($G:CA)/3,0))","v":0},{"$f":"INDIRECT(\"G\"&ROW($G$87)+ROUNDUP(COLUMNS($G:CB)/3,0))","v":0},null,{"$f":"INDIRECT(\"F\"&ROW($G$87)+ROUNDUP(COLUMNS($G:CD)/3,0))","v":0},{"$f":"INDIRECT(\"G\"&ROW($G$87)+ROUNDUP(COLUMNS($G:CE)/3,0))","v":0},null,{"$f":"INDIRECT(\"F\"&ROW($G$87)+ROUNDUP(COLUMNS($G:CG)/3,0))","v":0},{"$f":"INDIRECT(\"G\"&ROW($G$87)+ROUNDUP(COLUMNS($G:CH)/3,0))","v":0},null,{"$f":"INDIRECT(\"F\"&ROW($G$87)+ROUNDUP(COLUMNS($G:CJ)/3,0))","v":0},{"$f":"INDIRECT(\"G\"&ROW($G$87)+ROUNDUP(COLUMNS($G:CK)/3,0))","v":0},null,{"$f":"INDIRECT(\"F\"&ROW($G$87)+ROUNDUP(COLUMNS($G:CM)/3,0))","v":0},{"$f":"INDIRECT(\"G\"&ROW($G$87)+ROUNDUP(COLUMNS($G:CN)/3,0))","v":0},null,{"$f":"INDIRECT(\"F\"&ROW($G$87)+ROUNDUP(COLUMNS($G:CP)/3,0))","v":0},{"$f":"INDIRECT(\"G\"&ROW($G$87)+ROUNDUP(COLUMNS($G:CQ)/3,0))","v":0},null,{"$f":"INDIRECT(\"F\"&ROW($G$87)+ROUNDUP(COLUMNS($G:CS)/3,0))","v":0},{"$f":"INDIRECT(\"G\"&ROW($G$87)+ROUNDUP(COLUMNS($G:CT)/3,0))","v":0},null,{"$f":"INDIRECT(\"F\"&ROW($G$87)+ROUNDUP(COLUMNS($G:CV)/3,0))","v":0},{"$f":"INDIRECT(\"G\"&ROW($G$87)+ROUNDUP(COLUMNS($G:CW)/3,0))","v":0},null,{"$f":"INDIRECT(\"F\"&ROW($G$87)+ROUNDUP(COLUMNS($G:CY)/3,0))","v":0},{"$f":"INDIRECT(\"G\"&ROW($G$87)+ROUNDUP(COLUMNS($G:CZ)/3,0))","v":0},null,{"$f":"INDIRECT(\"F\"&ROW($G$87)+ROUNDUP(COLUMNS($G:DB)/3,0))","v":0},{"$f":"INDIRECT(\"G\"&ROW($G$87)+ROUNDUP(COLUMNS($G:DC)/3,0))","v":0},null,{"$f":"INDIRECT(\"F\"&ROW($G$87)+ROUNDUP(COLUMNS($G:DE)/3,0))","v":0},{"$f":"INDIRECT(\"G\"&ROW($G$87)+ROUNDUP(COLUMNS($G:DF)/3,0))","v":0},null,{"$f":"INDIRECT(\"F\"&ROW($G$87)+ROUNDUP(COLUMNS($G:DH)/3,0))","v":0},{"$f":"INDIRECT(\"G\"&ROW($G$87)+ROUNDUP(COLUMNS($G:DI)/3,0))","v":0},null,{"$f":"INDIRECT(\"F\"&ROW($G$87)+ROUNDUP(COLUMNS($G:DK)/3,0))","v":0},{"$f":"INDIRECT(\"G\"&ROW($G$87)+ROUNDUP(COLUMNS($G:DL)/3,0))","v":0},null,{"$f":"INDIRECT(\"F\"&ROW($G$87)+ROUNDUP(COLUMNS($G:DN)/3,0))","v":0},{"$f":"INDIRECT(\"G\"&ROW($G$87)+ROUNDUP(COLUMNS($G:DO)/3,0))","v":0},null,{"$f":"INDIRECT(\"F\"&ROW($G$87)+ROUNDUP(COLUMNS($G:DQ)/3,0))","v":0},{"$f":"INDIRECT(\"G\"&ROW($G$87)+ROUNDUP(COLUMNS($G:DR)/3,0))","v":0},null,{"$f":"INDIRECT(\"F\"&ROW($G$87)+ROUNDUP(COLUMNS($G:DT)/3,0))","v":0},{"$f":"INDIRECT(\"G\"&ROW($G$87)+ROUNDUP(COLUMNS($G:DU)/3,0))","v":0},null,{"$f":"INDIRECT(\"F\"&ROW($G$87)+ROUNDUP(COLUMNS($G:DW)/3,0))","v":0},{"$f":"INDIRECT(\"G\"&ROW($G$87)+ROUNDUP(COLUMNS($G:DX)/3,0))","v":0},null,{"$f":"INDIRECT(\"F\"&ROW($G$87)+ROUNDUP(COLUMNS($G:DZ)/3,0))","v":0},{"$f":"INDIRECT(\"G\"&ROW($G$87)+ROUNDUP(COLUMNS($G:EA)/3,0))","v":0},null,{"$f":"INDIRECT(\"F\"&ROW($G$87)+ROUNDUP(COLUMNS($G:EC)/3,0))","v":0},{"$f":"INDIRECT(\"G\"&ROW($G$87)+ROUNDUP(COLUMNS($G:ED)/3,0))","v":0},null,{"$f":"INDIRECT(\"F\"&ROW($G$87)+ROUNDUP(COLUMNS($G:EF)/3,0))","v":0},{"$f":"INDIRECT(\"G\"&ROW($G$87)+ROUNDUP(COLUMNS($G:EG)/3,0))","v":0},null,{"$f":"INDIRECT(\"F\"&ROW($G$87)+ROUNDUP(COLUMNS($G:EI)/3,0))","v":0},{"$f":"INDIRECT(\"G\"&ROW($G$87)+ROUNDUP(COLUMNS($G:EJ)/3,0))","v":0},null,{"$f":"INDIRECT(\"F\"&ROW($G$87)+ROUNDUP(COLUMNS($G:EL)/3,0))","v":0},{"$f":"INDIRECT(\"G\"&ROW($G$87)+ROUNDUP(COLUMNS($G:EM)/3,0))","v":0},null,{"$f":"INDIRECT(\"F\"&ROW($G$87)+ROUNDUP(COLUMNS($G:EO)/3,0))","v":0},{"$f":"INDIRECT(\"G\"&ROW($G$87)+ROUNDUP(COLUMNS($G:EP)/3,0))","v":0},null,{"$f":"INDIRECT(\"F\"&ROW($G$87)+ROUNDUP(COLUMNS($G:ER)/3,0))","v":0},{"$f":"INDIRECT(\"G\"&ROW($G$87)+ROUNDUP(COLUMNS($G:ES)/3,0))","v":0},null,{"$f":"EU81+EV81","v":0}]
["เวลากลับถึงสำนักงานเช็คของเสีย",null,null,{"$f":"D139","v":"00:00:00"},null,"ผลต่าง",{"$f":"G82+H82+G80-G9","v":0},null,null,{"$f":"J82+K82+J80-J9","v":0},null,null,{"$f":"M82+N82+M80-M9","v":0},null,null,{"$f":"P82+Q82+P80-P9","v":0},null,null,{"$f":"S82+T82+S80-S9","v":0},null,null,{"$f":"V82+W82+V80-V9","v":0},null,null,{"$f":"Y82+Z82+Y80-Y9","v":0},null,null,{"$f":"AB82+AC82+AB80-AB9","v":0},null,null,{"$f":"AE82+AF82+AE80-AE9","v":0},null,null,{"$f":"AH82+AI82+AH80-AH9","v":0},null,null,{"$f":"AK82+AL82+AK80-AK9","v":0},null,null,{"$f":"AN82+AO82+AN80-AN9","v":0},null,null,{"$f":"AQ82+AR82+AQ80-AQ9","v":0},null,null,{"$f":"AT82+AU82+AT80-AT9","v":0},null,null,{"$f":"AW82+AX82+AW80-AW9","v":0},null,null,{"$f":"AZ82+BA82+AZ80-AZ9","v":0},null,null,{"$f":"BC82+BD82+BC80-BC9","v":0},null,null,{"$f":"BF82+BG82+BF80-BF9","v":0},null,null,{"$f":"BI82+BJ82+BI80-BI9","v":0},null,null,{"$f":"BL82+BM82+BL80-BL9","v":0},null,null,{"$f":"BO82+BP82+BO80-BO9","v":0},null,null,{"$f":"BR82+BS82+BR80-BR9","v":0},null,null,{"$f":"BU82+BV82+BU80-BU9","v":0},null,null,{"$f":"BX82+BY82+BX80-BX9","v":0},null,null,{"$f":"CA82+CB82+CA80-CA9","v":0},null,null,{"$f":"CD82+CE82+CD80-CD9","v":0},null,null,{"$f":"CG82+CH82+CG80-CG9","v":0},null,null,{"$f":"CJ82+CK82+CJ80-CJ9","v":0},null,null,{"$f":"CM82+CN82+CM80-CM9","v":0},null,null,{"$f":"CP82+CQ82+CP80-CP9","v":0},null,null,{"$f":"CS82+CT82+CS80-CS9","v":0},null,null,{"$f":"CV82+CW82+CV80-CV9","v":0},null,null,{"$f":"CY82+CZ82+CY80-CY9","v":0},null,null,{"$f":"DB82+DC82+DB80-DB9","v":0},null,null,{"$f":"DE82+DF82+DE80-DE9","v":0},null,null,{"$f":"DH82+DI82+DH80-DH9","v":0},null,null,{"$f":"DK82+DL82+DK80-DK9","v":0},null,null,{"$f":"DN82+DO82+DN80-DN9","v":0},null,null,{"$f":"DQ82+DR82+DQ80-DQ9","v":0},null,null,{"$f":"DT82+DU82+DT80-DT9","v":0},null,null,{"$f":"DW82+DX82+DW80-DW9","v":0},null,null,{"$f":"DZ82+EA82+DZ80-DZ9","v":0},null,null,{"$f":"EC82+ED82+EC80-EC9","v":0},null,null,{"$f":"EF82+EG82+EF80-EF9","v":0},null,null,{"$f":"EI82+EJ82+EI80-EI9","v":0},null,null,{"$f":"EL82+EM82+EL80-EL9","v":0},null,null,{"$f":"EO82+EP82+EO80-EO9","v":0},null,null,{"$f":"ER82+ES82+ER80-ER9","v":0}]
["เป็นเงิน",null,null,null,null,null,{"$f":"G8*G83","v":0},null,null,{"$f":"J8*J83","v":0},null,null,{"$f":"M8*M83","v":0},null,null,{"$f":"P8*P83","v":0},null,null,{"$f":"S8*S83","v":0},null,null,{"$f":"V8*V83","v":0},null,null,{"$f":"Y8*Y83","v":0},null,null,{"$f":"AB8*AB83","v":0},null,null,{"$f":"AE8*AE83","v":0},null,null,{"$f":"AH8*AH83","v":0},null,null,{"$f":"AK8*AK83","v":0},null,null,{"$f":"AN8*AN83","v":0},null,null,{"$f":"AQ8*AQ83","v":0},null,null,{"$f":"AT8*AT83","v":0},null,null,{"$f":"AW8*AW83","v":0},null,null,{"$f":"AZ8*AZ83","v":0},null,null,{"$f":"BC8*BC83","v":0},null,null,{"$f":"BF8*BF83","v":0},null,null,{"$f":"BI8*BI83","v":0},null,null,{"$f":"BL8*BL83","v":0},null,null,{"$f":"BO8*BO83","v":0},null,null,{"$f":"BR8*BR83","v":0},null,null,{"$f":"BU8*BU83","v":0},null,null,{"$f":"BX8*BX83","v":0},null,null,{"$f":"CA8*CA83","v":0},null,null,{"$f":"CD8*CD83","v":0},null,null,{"$f":"CG8*CG83","v":0},null,null,{"$f":"CJ8*CJ83","v":0},null,null,{"$f":"CM8*CM83","v":0},null,null,{"$f":"CP8*CP83","v":0},null,null,{"$f":"CS8*CS83","v":0},null,null,{"$f":"CV8*CV83","v":0},null,null,{"$f":"CY8*CY83","v":0},null,null,{"$f":"DB8*DB83","v":0},null,null,{"$f":"DE8*DE83","v":0},null,null,{"$f":"DH8*DH83","v":0},null,null,{"$f":"DK8*DK83","v":0},null,null,{"$f":"DN8*DN83","v":0},null,null,{"$f":"DQ8*DQ83","v":0},null,null,{"$f":"DT8*DT83","v":0},null,null,{"$f":"DW8*DW83","v":0},null,null,0,null,null,{"$f":"EC8*EC83","v":0},null,null,{"$f":"EF8*EF83","v":0},null,null,{"$f":"EI8*EI83","v":0},null,null,{"$f":"EL8*EL83","v":0},null,null,{"$f":"EO8*EO83","v":0},null,null,{"$f":"ER8*ER83","v":0},null,null,{"$f":"$AP$98","v":0}]
[null,null,null,"ผู้จัดทำ……………………………………………………………………",null,null,null,null,null,null,null,null,null,null,null,null,null,null,null,null,null,null,null,"ผู้ตรวจ(ผจก.)………………………………………………………………………………."]
[null,null,"ใบจ่ายสินค้า",null,null,null,null,null,null,null,null,null,null,null,null,null,null,{"$f":"IF(ISODD(COLUMN()),MAX($F$86:Q$86)+1,\"\")","v":""}]
["ราคา","ลำดับ","รายการ","ยกมา","เบิก","เหลือ","เสีย","โอนเข้า","โอนออก","ชำรุด","รวม",null,"ขาย",null,"ขาด/เกิน",null,"บาท",null,null,null,"ขายได้",null,"ควรเบิก",null,"หมายเหตุ",null,null,null,"เสีย PDA","เสียจริง","เหลือ PDA","ผลต่าง","เหลือลูกค้า","หมายเหตุ",null,null,null,null,"Price","Quantity","Baht","Deduct"]
[{"$f":"IF(B88=\"\",0,INDEX(Price_List,ROWS($88:88)))","v":20},{"$f":"IF($C88=\"\",\"\",COUNTA($C$88:$C88))","v":1},{"$f":"IF(INDEX(INDIRECT(\"Product_List\"),ROWS($88:88))=\"\",\"\",INDEX(INDIRECT(\"Product_List\"),ROWS($88:88)))","v":"01-ขนมปังหมูหยองน้ำสลัด"},{"$f":"ยอดยกมา","v":0},null,null,null,null,null,null,{"$f":"D88+E88+J88-I88+H88","v":0},null,{"$f":"INDIRECT(ADDRESS(ROW(A$80),ROW()-ROW(A$80)+(ROWS($88:88)-1)*2-1,4))","v":0},null,{"$f":"F88+G88+M88+J88-K88","v":0},null,{"$f":"O88*A88","v":0},null,null,null,{"$f":"D88+E88-F88-G88","v":0},null,{"$f":"U88*6%+U88","v":0},null,null,null,null,null,{"$f":"INDIRECT(ADDRESS(ROW(A$80),ROW()-ROW(A$80)+(ROWS($88:88)-1)*2,4))","v":0},{"$f":"$G88","v":0},null,{"$f":"$F88-$AE88","v":0},{"$f":"INDIRECT(ADDRESS(ROW(A$80),ROW()-ROW(A$80)+(ROWS($88:88)-1)*2+1,4))","v":0},null,null,null,null,null,10,{"$f":"SUMPRODUCT(($A$88:$A$135=$AM88)*(($F$88:$F$135)+($G$88:$G$135)+($M$88:$M$135)+($J$88:$J$135)-($K$88:$K$135)))","v":0},{"$f":"AM88*AN88","v":0},{"$f":"IF(AO88<0,AO88,0)","v":0}]
[{"$f":"IF(B89=\"\",0,INDEX(Price_List,ROWS($88:89)))","v":20},{"$f":"IF($C89=\"\",\"\",COUNTA($C$88:$C89))","v":2},{"$f":"IF(INDEX(INDIRECT(\"Product_List\"),ROWS($88:89))=\"\",\"\",INDEX(INDIRECT(\"Product_List\"),ROWS($88:89)))","v":"02-ขนมปังหมูหยองน้ำพริกเผา"},{"$f":"ยอดยกมา","v":0},null,null,null,null,null,null,{"$f":"D89+E89+J89-I89+H89","v":0},null,{"$f":"INDIRECT(ADDRESS(ROW(A$80),ROW()-ROW(A$80)+(ROWS($88:89)-1)*2-1,4))","v":0},null,{"$f":"F89+G89+M89+J89-K89","v":0},null,{"$f":"O89*A89","v":0},null,null,null,{"$f":"D89+E89-F89-G89","v":0},null,{"$f":"U89*6%+U89","v":0},null,null,null,null,null,{"$f":"INDIRECT(ADDRESS(ROW(A$80),ROW()-ROW(A$80)+(ROWS($88:89)-1)*2,4))","v":0},{"$f":"$G89","v":0},null,{"$f":"$F89-$AE89","v":0},{"$f":"INDIRECT(ADDRESS(ROW(A$80),ROW()-ROW(A$80)+(ROWS($88:89)-1)*2+1,4))","v":0},null,null,null,null,null,12,0,{"$f":"AM89*AN89","v":0},{"$f":"IF(AO89<0,AO89,0)","v":0}]
[{"$f":"IF(B90=\"\",0,INDEX(Price_List,ROWS($88:90)))","v":20},{"$f":"IF($C90=\"\",\"\",COUNTA($C$88:$C90))","v":3},{"$f":"IF(INDEX(INDIRECT(\"Product_List\"),ROWS($88:90))=\"\",\"\",INDEX(INDIRECT(\"Product_List\"),ROWS($88:90)))","v":"03-ขนมปังไก่หยองน้ำสลัด"},{"$f":"ยอดยกมา","v":0},null,null,null,null,null,null,0,null,{"$f":"INDIRECT(ADDRESS(ROW(A$80),ROW()-ROW(A$80)+(ROWS($88:90)-1)*2-1,4))","v":0},null,0,null,0,null,null,null,0,null,0,null,null,null,null,null,{"$f":"INDIRECT(ADDRESS(ROW(A$80),ROW()-ROW(A$80)+(ROWS($88:90)-1)*2,4))","v":0},0,null,0,{"$f":"INDIRECT(ADDRESS(ROW(A$80),ROW()-ROW(A$80)+(ROWS($88:90)-1)*2+1,4))","v":0},null,null,null,null,null,13,0,0,0]
[{"$f":"IF(B91=\"\",0,INDEX(Price_List,ROWS($88:91)))","v":15},{"$f":"IF($C91=\"\",\"\",COUNTA($C$88:$C91))","v":4},{"$f":"IF(INDEX(INDIRECT(\"Product_List\"),ROWS($88:91))=\"\",\"\",INDEX(INDIRECT(\"Product_List\"),ROWS($88:91)))","v":"04-ขนมปังไส้ครีมสลัด"},{"$f":"ยอดยกมา","v":0},null,null,null,null,null,null,0,null,{"$f":"INDIRECT(ADDRESS(ROW(A$80),ROW()-ROW(A$80)+(ROWS($88:91)-1)*2-1,4))","v":0},null,{"$f":"F91+G91+M91+J91-K91","v":0},null,0,null,null,null,0,null,0,null,null,null,null,null,{"$f":"INDIRECT(ADDRESS(ROW(A$80),ROW()-ROW(A$80)+(ROWS($88:91)-1)*2,4))","v":0},0,null,0,{"$f":"INDIRECT(ADDRESS(ROW(A$80),ROW()-ROW(A$80)+(ROWS($88:91)-1)*2+1,4))","v":0},null,null,null,null,null,15,0,0,0]
[{"$f":"IF(B92=\"\",0,INDEX(Price_List,ROWS($88:92)))","v":15},{"$f":"IF($C92=\"\",\"\",COUNTA($C$88:$C92))","v":5},{"$f":"IF(INDEX(INDIRECT(\"Product_List\"),ROWS($88:92))=\"\",\"\",INDEX(INDIRECT(\"Product_List\"),ROWS($88:92)))","v":"05-ขนมปังเนยสด"},{"$f":"ยอดยกมา","v":0},null,null,null,null,null,null,0,null,{"$f":"INDIRECT(ADDRESS(ROW(A$80),ROW()-ROW(A$80)+(ROWS($88:92)-1)*2-1,4))","v":0},null,0,null,0,null,null,null,0,null,0,null,null,null,null,null,{"$f":"INDIRECT(ADDRESS(ROW(A$80),ROW()-ROW(A$80)+(ROWS($88:92)-1)*2,4))","v":0},0,null,0,{"$f":"INDIRECT(ADDRESS(ROW(A$80),ROW()-ROW(A$80)+(ROWS($88:92)-1)*2+1,4))","v":0},null,null,null,null,null,16,0,0,0]
[{"$f":"IF(B93=\"\",0,INDEX(Price_List,ROWS($88:93)))","v":10},{"$f":"IF($C93=\"\",\"\",COUNTA($C$88:$C93))","v":6},{"$f":"IF(INDEX(INDIRECT(\"Product_List\"),ROWS($88:93))=\"\",\"\",INDEX(INDIRECT(\"Product_List\"),ROWS($88:93)))","v":"06-ขนมปังไส้สังขยาเล็ก"},{"$f":"ยอดยกมา","v":0},null,null,null,null,null,null,0,null,{"$f":"INDIRECT(ADDRESS(ROW(A$80),ROW()-ROW(A$80)+(ROWS($88:93)-1)*2-1,4))","v":0},null,0,null,0,null,null,null,0,null,0,null,null,null,null,null,{"$f":"INDIRECT(ADDRESS(ROW(A$80),ROW()-ROW(A$80)+(ROWS($88:93)-1)*2,4))","v":0},0,null,0,{"$f":"INDIRECT(ADDRESS(ROW(A$80),ROW()-ROW(A$80)+(ROWS($88:93)-1)*2+1,4))","v":0},null,null,null,null,null,18,0,0,0]
[{"$f":"IF(B94=\"\",0,INDEX(Price_List,ROWS($88:94)))","v":10},{"$f":"IF($C94=\"\",\"\",COUNTA($C$88:$C94))","v":7},{"$f":"IF(INDEX(INDIRECT(\"Product_List\"),ROWS($88:94))=\"\",\"\",INDEX(INDIRECT(\"Product_List\"),ROWS($88:94)))","v":"07-ขนมปังไส้เผือก"},{"$f":"ยอดยกมา","v":0},null,null,null,null,null,null,0,null,{"$f":"INDIRECT(ADDRESS(ROW(A$80),ROW()-ROW(A$80)+(ROWS($88:94)-1)*2-1,4))","v":0},null,0,null,0,null,null,null,0,null,0,null,null,null,null,null,{"$f":"INDIRECT(ADDRESS(ROW(A$80),ROW()-ROW(A$80)+(ROWS($88:94)-1)*2,4))","v":0},0,null,0,{"$f":"INDIRECT(ADDRESS(ROW(A$80),ROW()-ROW(A$80)+(ROWS($88:94)-1)*2+1,4))","v":0},null,null,null,null,null,20,0,0,0]
[{"$f":"IF(B95=\"\",0,INDEX(Price_List,ROWS($88:95)))","v":10},{"$f":"IF($C95=\"\",\"\",COUNTA($C$88:$C95))","v":8},{"$f":"IF(INDEX(INDIRECT(\"Product_List\"),ROWS($88:95))=\"\",\"\",INDEX(INDIRECT(\"Product_List\"),ROWS($88:95)))","v":"08-ขนมปังไส้ถั่วแดง"},{"$f":"ยอดยกมา","v":0},null,null,null,null,null,null,0,null,{"$f":"INDIRECT(ADDRESS(ROW(A$80),ROW()-ROW(A$80)+(ROWS($88:95)-1)*2-1,4))","v":0},null,0,null,0,null,null,null,0,null,0,null,null,null,null,null,{"$f":"INDIRECT(ADDRESS(ROW(A$80),ROW()-ROW(A$80)+(ROWS($88:95)-1)*2,4))","v":0},0,null,0,{"$f":"INDIRECT(ADDRESS(ROW(A$80),ROW()-ROW(A$80)+(ROWS($88:95)-1)*2+1,4))","v":0},null,null,null,null,null,22,0,0,0]
[{"$f":"IF(B96=\"\",0,INDEX(Price_List,ROWS($88:96)))","v":10},{"$f":"IF($C96=\"\",\"\",COUNTA($C$88:$C96))","v":9},{"$f":"IF(INDEX(INDIRECT(\"Product_List\"),ROWS($88:96))=\"\",\"\",INDEX(INDIRECT(\"Product_List\"),ROWS($88:96)))","v":"09-ขนมปังไส้ถั่วดำ"},{"$f":"ยอดยกมา","v":0},null,null,null,null,null,null,0,null,{"$f":"INDIRECT(ADDRESS(ROW(A$80),ROW()-ROW(A$80)+(ROWS($88:96)-1)*2-1,4))","v":0},null,0,null,0,null,null,null,0,null,0,null,null,null,null,null,{"$f":"INDIRECT(ADDRESS(ROW(A$80),ROW()-ROW(A$80)+(ROWS($88:96)-1)*2,4))","v":0},0,null,0,{"$f":"INDIRECT(ADDRESS(ROW(A$80),ROW()-ROW(A$80)+(ROWS($88:96)-1)*2+1,4))","v":0},null,null,null,null,null,25,0,0,0]
[{"$f":"IF(B97=\"\",0,INDEX(Price_List,ROWS($88:97)))","v":10},{"$f":"IF($C97=\"\",\"\",COUNTA($C$88:$C97))","v":10},{"$f":"IF(INDEX(INDIRECT(\"Product_List\"),ROWS($88:97))=\"\",\"\",INDEX(INDIRECT(\"Product_List\"),ROWS($88:97)))","v":"10-ขนมปังไส้มันม่วง"},{"$f":"ยอดยกมา","v":0},null,null,null,null,null,null,0,null,{"$f":"INDIRECT(ADDRESS(ROW(A$80),ROW()-ROW(A$80)+(ROWS($88:97)-1)*2-1,4))","v":0},null,0,null,0,null,null,null,0,null,0,null,null,null,null,null,{"$f":"INDIRECT(ADDRESS(ROW(A$80),ROW()-ROW(A$80)+(ROWS($88:97)-1)*2,4))","v":0},0,null,0,{"$f":"INDIRECT(ADDRESS(ROW(A$80),ROW()-ROW(A$80)+(ROWS($88:97)-1)*2+1,4))","v":0},null,null,null,null,null,42,0,0,0]
[{"$f":"IF(B98=\"\",0,INDEX(Price_List,ROWS($88:98)))","v":15},{"$f":"IF($C98=\"\",\"\",COUNTA($C$88:$C98))","v":11},{"$f":"IF(INDEX(INDIRECT(\"Product_List\"),ROWS($88:98))=\"\",\"\",INDEX(INDIRECT(\"Product_List\"),ROWS($88:98)))","v":"11-เค้กกล้วยหอม"},{"$f":"ยอดยกมา","v":0},null,null,null,null,null,null,0,null,{"$f":"INDIRECT(ADDRESS(ROW(A$80),ROW()-ROW(A$80)+(ROWS($88:98)-1)*2-1,4))","v":0},null,0,null,0,null,null,null,0,null,0,null,null,null,null,null,{"$f":"INDIRECT(ADDRESS(ROW(A$80),ROW()-ROW(A$80)+(ROWS($88:98)-1)*2,4))","v":0},0,null,0,{"$f":"INDIRECT(ADDRESS(ROW(A$80),ROW()-ROW(A$80)+(ROWS($88:98)-1)*2+1,4))","v":0},null,null,null,null,null,"Total Deduct",null,null,{"$f":"SUM($AP$88:$AP$97)","v":0}]
[{"$f":"IF(B99=\"\",0,INDEX(Price_List,ROWS($88:99)))","v":15},{"$f":"IF($C99=\"\",\"\",COUNTA($C$88:$C99))","v":12},{"$f":"IF(INDEX(INDIRECT(\"Product_List\"),ROWS($88:99))=\"\",\"\",INDEX(INDIRECT(\"Product_List\"),ROWS($88:99)))","v":"12-เค้กบัตเตอร์"},{"$f":"ยอดยกมา","v":0},null,null,null,null,null,null,0,null,{"$f":"INDIRECT(ADDRESS(ROW(A$80),ROW()-ROW(A$80)+(ROWS($88:99)-1)*2-1,4))","v":0},null,0,null,0,null,null,null,0,null,0,null,null,null,null,null,{"$f":"INDIRECT(ADDRESS(ROW(A$80),ROW()-ROW(A$80)+(ROWS($88:99)-1)*2,4))","v":0},0,null,0,{"$f":"INDIRECT(ADDRESS(ROW(A$80),ROW()-ROW(A$80)+(ROWS($88:99)-1)*2+1,4))","v":0}]
[{"$f":"IF(B100=\"\",0,INDEX(Price_List,ROWS($88:100)))","v":15},{"$f":"IF($C100=\"\",\"\",COUNTA($C$88:$C100))","v":13},{"$f":"IF(INDEX(INDIRECT(\"Product_List\"),ROWS($88:100))=\"\",\"\",INDEX(INDIRECT(\"Product_List\"),ROWS($88:100)))","v":"13-ขนมปังโรลถั่วแดง"},{"$f":"ยอดยกมา","v":0},null,null,null,null,null,null,0,null,{"$f":"INDIRECT(ADDRESS(ROW(A$80),ROW()-ROW(A$80)+(ROWS($88:100)-1)*2-1,4))","v":0},null,0,null,0,null,null,null,0,null,0,null,null,null,null,null,{"$f":"INDIRECT(ADDRESS(ROW(A$80),ROW()-ROW(A$80)+(ROWS($88:100)-1)*2,4))","v":0},0,null,0,{"$f":"INDIRECT(ADDRESS(ROW(A$80),ROW()-ROW(A$80)+(ROWS($88:100)-1)*2+1,4))","v":0}]
[{"$f":"IF(B101=\"\",0,INDEX(Price_List,ROWS($88:101)))","v":15},{"$f":"IF($C101=\"\",\"\",COUNTA($C$88:$C101))","v":14},{"$f":"IF(INDEX(INDIRECT(\"Product_List\"),ROWS($88:101))=\"\",\"\",INDEX(INDIRECT(\"Product_List\"),ROWS($88:101)))","v":"14-ขนมปังไส้สังขยาใหญ่"},{"$f":"ยอดยกมา","v":0},null,null,null,null,null,null,0,null,{"$f":"INDIRECT(ADDRESS(ROW(A$80),ROW()-ROW(A$80)+(ROWS($88:101)-1)*2-1,4))","v":0},null,0,null,0,null,null,null,0,null,0,null,null,null,null,null,{"$f":"INDIRECT(ADDRESS(ROW(A$80),ROW()-ROW(A$80)+(ROWS($88:101)-1)*2,4))","v":0},0,null,0,{"$f":"INDIRECT(ADDRESS(ROW(A$80),ROW()-ROW(A$80)+(ROWS($88:101)-1)*2+1,4))","v":0}]
[{"$f":"IF(B102=\"\",0,INDEX(Price_List,ROWS($88:102)))","v":42},{"$f":"IF($C102=\"\",\"\",COUNTA($C$88:$C102))","v":15},{"$f":"IF(INDEX(INDIRECT(\"Product_List\"),ROWS($88:102))=\"\",\"\",INDEX(INDIRECT(\"Product_List\"),ROWS($88:102)))","v":"15-ขนมปังชนิดแผ่น(480กรัม)"},{"$f":"ยอดยกมา","v":0},null,null,null,null,null,null,0,null,{"$f":"INDIRECT(ADDRESS(ROW(A$80),ROW()-ROW(A$80)+(ROWS($88:102)-1)*2-1,4))","v":0},null,0,null,0,null,null,null,0,null,0,null,null,null,null,null,{"$f":"INDIRECT(ADDRESS(ROW(A$80),ROW()-ROW(A$80)+(ROWS($88:102)-1)*2,4))","v":0},0,null,0,{"$f":"INDIRECT(ADDRESS(ROW(A$80),ROW()-ROW(A$80)+(ROWS($88:102)-1)*2+1,4))","v":0}]
[{"$f":"IF(B103=\"\",0,INDEX(Price_List,ROWS($88:103)))","v":12},{"$f":"IF($C103=\"\",\"\",COUNTA($C$88:$C103))","v":16},{"$f":"IF(INDEX(INDIRECT(\"Product_List\"),ROWS($88:103))=\"\",\"\",INDEX(INDIRECT(\"Product_List\"),ROWS($88:103)))","v":"16-โมจิไส้ถั่ว"},{"$f":"ยอดยกมา","v":0},null,null,null,null,null,null,0,null,{"$f":"INDIRECT(ADDRESS(ROW(A$80),ROW()-ROW(A$80)+(ROWS($88:103)-1)*2-1,4))","v":0},null,0,null,0,null,null,null,0,null,0,null,null,null,null,null,{"$f":"INDIRECT(ADDRESS(ROW(A$80),ROW()-ROW(A$80)+(ROWS($88:103)-1)*2,4))","v":0},0,null,0,{"$f":"INDIRECT(ADDRESS(ROW(A$80),ROW()-ROW(A$80)+(ROWS($88:103)-1)*2+1,4))","v":0}]
[{"$f":"IF(B104=\"\",0,INDEX(Price_List,ROWS($88:104)))","v":12},{"$f":"IF($C104=\"\",\"\",COUNTA($C$88:$C104))","v":17},{"$f":"IF(INDEX(INDIRECT(\"Product_List\"),ROWS($88:104))=\"\",\"\",INDEX(INDIRECT(\"Product_List\"),ROWS($88:104)))","v":"17-โมจิไส้เผือก"},{"$f":"ยอดยกมา","v":0},null,null,null,null,null,null,0,null,{"$f":"INDIRECT(ADDRESS(ROW(A$80),ROW()-ROW(A$80)+(ROWS($88:104)-1)*2-1,4))","v":0},null,0,null,0,null,null,null,0,null,0,null,null,null,null,null,{"$f":"INDIRECT(ADDRESS(ROW(A$80),ROW()-ROW(A$80)+(ROWS($88:104)-1)*2,4))","v":0},0,null,0,{"$f":"INDIRECT(ADDRESS(ROW(A$80),ROW()-ROW(A$80)+(ROWS($88:104)-1)*2+1,4))","v":0}]
[{"$f":"IF(B105=\"\",0,INDEX(Price_List,ROWS($88:105)))","v":15},{"$f":"IF($C105=\"\",\"\",COUNTA($C$88:$C105))","v":18},{"$f":"IF(INDEX(INDIRECT(\"Product_List\"),ROWS($88:105))=\"\",\"\",INDEX(INDIRECT(\"Product_List\"),ROWS($88:105)))","v":"18-โมจิไส้ถั่วไข่เค็ม"},{"$f":"ยอดยกมา","v":0},null,null,null,null,null,null,0,null,{"$f":"INDIRECT(ADDRESS(ROW(A$80),ROW()-ROW(A$80)+(ROWS($88:105)-1)*2-1,4))","v":0},null,0,null,0,null,null,null,0,null,0,null,null,null,null,null,{"$f":"INDIRECT(ADDRESS(ROW(A$80),ROW()-ROW(A$80)+(ROWS($88:105)-1)*2,4))","v":0},0,null,0,{"$f":"INDIRECT(ADDRESS(ROW(A$80),ROW()-ROW(A$80)+(ROWS($88:105)-1)*2+1,4))","v":0}]
[{"$f":"IF(B106=\"\",0,INDEX(Price_List,ROWS($88:106)))","v":20},{"$f":"IF($C106=\"\",\"\",COUNTA($C$88:$C106))","v":19},{"$f":"IF(INDEX(INDIRECT(\"Product_List\"),ROWS($88:106))=\"\",\"\",INDEX(INDIRECT(\"Product_List\"),ROWS($88:106)))","v":"19-ขนมปังพิซซ่า"},{"$f":"ยอดยกมา","v":0},null,null,null,null,null,null,0,null,{"$f":"INDIRECT(ADDRESS(ROW(A$80),ROW()-ROW(A$80)+(ROWS($88:106)-1)*2-1,4))","v":0},null,0,null,0,null,null,null,0,null,0,null,null,null,null,null,{"$f":"INDIRECT(ADDRESS(ROW(A$80),ROW()-ROW(A$80)+(ROWS($88:106)-1)*2,4))","v":0},0,null,0,{"$f":"INDIRECT(ADDRESS(ROW(A$80),ROW()-ROW(A$80)+(ROWS($88:106)-1)*2+1,4))","v":0}]
[{"$f":"IF(B107=\"\",0,INDEX(Price_List,ROWS($88:107)))","v":20},{"$f":"IF($C107=\"\",\"\",COUNTA($C$88:$C107))","v":20},{"$f":"IF(INDEX(INDIRECT(\"Product_List\"),ROWS($88:107))=\"\",\"\",INDEX(INDIRECT(\"Product_List\"),ROWS($88:107)))","v":"20-ขนมปังพิซซ่าปูอัดแฮม"},{"$f":"ยอดยกมา","v":0},null,null,null,null,null,null,0,null,{"$f":"INDIRECT(ADDRESS(ROW(A$80),ROW()-ROW(A$80)+(ROWS($88:107)-1)*2-1,4))","v":0},null,0,null,0,null,null,null,0,null,0,null,null,null,null,null,{"$f":"INDIRECT(ADDRESS(ROW(A$80),ROW()-ROW(A$80)+(ROWS($88:107)-1)*2,4))","v":0},0,null,0,{"$f":"INDIRECT(ADDRESS(ROW(A$80),ROW()-ROW(A$80)+(ROWS($88:107)-1)*2+1,4))","v":0}]
[{"$f":"IF(B108=\"\",0,INDEX(Price_List,ROWS($88:108)))","v":20},{"$f":"IF($C108=\"\",\"\",COUNTA($C$88:$C108))","v":21},{"$f":"IF(INDEX(INDIRECT(\"Product_List\"),ROWS($88:108))=\"\",\"\",INDEX(INDIRECT(\"Product_List\"),ROWS($88:108)))","v":"21-ขนมปังไส้กรอก"},{"$f":"ยอดยกมา","v":0},null,null,null,null,null,null,0,null,{"$f":"INDIRECT(ADDRESS(ROW(A$80),ROW()-ROW(A$80)+(ROWS($88:108)-1)*2-1,4))","v":0},null,0,null,0,null,null,null,0,null,0,null,null,null,null,null,{"$f":"INDIRECT(ADDRESS(ROW(A$80),ROW()-ROW(A$80)+(ROWS($88:108)-1)*2,4))","v":0},0,null,0,{"$f":"INDIRECT(ADDRESS(ROW(A$80),ROW()-ROW(A$80)+(ROWS($88:108)-1)*2+1,4))","v":0}]
[{"$f":"IF(B109=\"\",0,INDEX(Price_List,ROWS($88:109)))","v":15},{"$f":"IF($C109=\"\",\"\",COUNTA($C$88:$C109))","v":22},{"$f":"IF(INDEX(INDIRECT(\"Product_List\"),ROWS($88:109))=\"\",\"\",INDEX(INDIRECT(\"Product_List\"),ROWS($88:109)))","v":"22-ขนมก้านบัว"},{"$f":"ยอดยกมา","v":0},null,null,null,null,null,null,0,null,{"$f":"INDIRECT(ADDRESS(ROW(A$80),ROW()-ROW(A$80)+(ROWS($88:109)-1)*2-1,4))","v":0},null,0,null,0,null,null,null,0,null,0,null,null,null,null,null,{"$f":"INDIRECT(ADDRESS(ROW(A$80),ROW()-ROW(A$80)+(ROWS($88:109)-1)*2,4))","v":0},0,null,0,{"$f":"INDIRECT(ADDRESS(ROW(A$80),ROW()-ROW(A$80)+(ROWS($88:109)-1)*2+1,4))","v":0}]
[{"$f":"IF(B110=\"\",0,INDEX(Price_List,ROWS($88:110)))","v":20},{"$f":"IF($C110=\"\",\"\",COUNTA($C$88:$C110))","v":23},{"$f":"IF(INDEX(INDIRECT(\"Product_List\"),ROWS($88:110))=\"\",\"\",INDEX(INDIRECT(\"Product_List\"),ROWS($88:110)))","v":"23-พายสับปะรด"},{"$f":"ยอดยกมา","v":0},null,null,null,null,null,null,0,null,{"$f":"INDIRECT(ADDRESS(ROW(A$80),ROW()-ROW(A$80)+(ROWS($88:110)-1)*2-1,4))","v":0},null,0,null,0,null,null,null,0,null,0,null,null,null,null,null,{"$f":"INDIRECT(ADDRESS(ROW(A$80),ROW()-ROW(A$80)+(ROWS($88:110)-1)*2,4))","v":0},0,null,0,{"$f":"INDIRECT(ADDRESS(ROW(A$80),ROW()-ROW(A$80)+(ROWS($88:110)-1)*2+1,4))","v":0}]
[{"$f":"IF(B111=\"\",0,INDEX(Price_List,ROWS($88:111)))","v":20},{"$f":"IF($C111=\"\",\"\",COUNTA($C$88:$C111))","v":24},{"$f":"IF(INDEX(INDIRECT(\"Product_List\"),ROWS($88:111))=\"\",\"\",INDEX(INDIRECT(\"Product_List\"),ROWS($88:111)))","v":"24-พายไส้มะพร้าว"},{"$f":"ยอดยกมา","v":0},null,null,null,null,null,null,0,null,{"$f":"INDIRECT(ADDRESS(ROW(A$80),ROW()-ROW(A$80)+(ROWS($88:111)-1)*2-1,4))","v":0},null,0,null,0,null,null,null,0,null,0,null,null,null,null,null,{"$f":"INDIRECT(ADDRESS(ROW(A$80),ROW()-ROW(A$80)+(ROWS($88:111)-1)*2,4))","v":0},0,null,0,{"$f":"INDIRECT(ADDRESS(ROW(A$80),ROW()-ROW(A$80)+(ROWS($88:111)-1)*2+1,4))","v":0}]
[{"$f":"IF(B112=\"\",0,INDEX(Price_List,ROWS($88:112)))","v":15},{"$f":"IF($C112=\"\",\"\",COUNTA($C$88:$C112))","v":25},{"$f":"IF(INDEX(INDIRECT(\"Product_List\"),ROWS($88:112))=\"\",\"\",INDEX(INDIRECT(\"Product_List\"),ROWS($88:112)))","v":"25-ขนมปังโรลมันเทศ"},{"$f":"ยอดยกมา","v":0},null,null,null,null,null,null,0,null,{"$f":"INDIRECT(ADDRESS(ROW(A$80),ROW()-ROW(A$80)+(ROWS($88:112)-1)*2-1,4))","v":0},null,0,null,0,null,null,null,0,null,0,null,null,null,null,null,{"$f":"INDIRECT(ADDRESS(ROW(A$80),ROW()-ROW(A$80)+(ROWS($88:112)-1)*2,4))","v":0},0,null,0,{"$f":"INDIRECT(ADDRESS(ROW(A$80),ROW()-ROW(A$80)+(ROWS($88:112)-1)*2+1,4))","v":0}]
[{"$f":"IF(B113=\"\",0,INDEX(Price_List,ROWS($88:113)))","v":15},{"$f":"IF($C113=\"\",\"\",COUNTA($C$88:$C113))","v":26},{"$f":"IF(INDEX(INDIRECT(\"Product_List\"),ROWS($88:113))=\"\",\"\",INDEX(INDIRECT(\"Product_List\"),ROWS($88:113)))","v":"26-ขนมปังไส้ครีมสลัดน้ำพริกเผา"},{"$f":"ยอดยกมา","v":0},null,null,null,null,null,null,0,null,{"$f":"INDIRECT(ADDRESS(ROW(A$80),ROW()-ROW(A$80)+(ROWS($88:113)-1)*2-1,4))","v":0},null,0,null,0,null,null,null,0,null,0,null,null,null,null,null,{"$f":"INDIRECT(ADDRESS(ROW(A$80),ROW()-ROW(A$80)+(ROWS($88:113)-1)*2,4))","v":0},0,null,0,{"$f":"INDIRECT(ADDRESS(ROW(A$80),ROW()-ROW(A$80)+(ROWS($88:113)-1)*2+1,4))","v":0}]
[{"$f":"IF(B114=\"\",0,INDEX(Price_List,ROWS($88:114)))","v":20},{"$f":"IF($C114=\"\",\"\",COUNTA($C$88:$C114))","v":27},{"$f":"IF(INDEX(INDIRECT(\"Product_List\"),ROWS($88:114))=\"\",\"\",INDEX(INDIRECT(\"Product_List\"),ROWS($88:114)))","v":"27-ขนมปังไส้สังขยาไข่"},{"$f":"ยอดยกมา","v":0},null,null,null,null,null,null,0,null,{"$f":"INDIRECT(ADDRESS(ROW(A$80),ROW()-ROW(A$80)+(ROWS($88:114)-1)*2-1,4))","v":0},null,0,null,0,null,null,null,0,null,0,null,null,null,null,null,{"$f":"INDIRECT(ADDRESS(ROW(A$80),ROW()-ROW(A$80)+(ROWS($88:114)-1)*2,4))","v":0},0,null,0,{"$f":"INDIRECT(ADDRESS(ROW(A$80),ROW()-ROW(A$80)+(ROWS($88:114)-1)*2+1,4))","v":0}]
[{"$f":"IF(B115=\"\",0,INDEX(Price_List,ROWS($88:115)))","v":20},{"$f":"IF($C115=\"\",\"\",COUNTA($C$88:$C115))","v":28},{"$f":"IF(INDEX(INDIRECT(\"Product_List\"),ROWS($88:115))=\"\",\"\",INDEX(INDIRECT(\"Product_List\"),ROWS($88:115)))","v":"28-ขนมปังไส้สังขยามะพร้าว"},{"$f":"ยอดยกมา","v":0},null,null,null,null,null,null,0,null,{"$f":"INDIRECT(ADDRESS(ROW(A$80),ROW()-ROW(A$80)+(ROWS($88:115)-1)*2-1,4))","v":0},null,0,null,0,null,null,null,0,null,0,null,null,null,null,null,{"$f":"INDIRECT(ADDRESS(ROW(A$80),ROW()-ROW(A$80)+(ROWS($88:115)-1)*2,4))","v":0},0,null,0,{"$f":"INDIRECT(ADDRESS(ROW(A$80),ROW()-ROW(A$80)+(ROWS($88:115)-1)*2+1,4))","v":0}]
[{"$f":"IF(B116=\"\",0,INDEX(Price_List,ROWS($88:116)))","v":10},{"$f":"IF($C116=\"\",\"\",COUNTA($C$88:$C116))","v":29},{"$f":"IF(INDEX(INDIRECT(\"Product_List\"),ROWS($88:116))=\"\",\"\",INDEX(INDIRECT(\"Product_List\"),ROWS($88:116)))","v":"29-ขนมปังไส้ครีมชาไทย"},{"$f":"ยอดยกมา","v":0},null,null,null,null,null,null,0,null,{"$f":"INDIRECT(ADDRESS(ROW(A$80),ROW()-ROW(A$80)+(ROWS($88:116)-1)*2-1,4))","v":0},null,0,null,0,null,null,null,0,null,0,null,null,null,null,null,{"$f":"INDIRECT(ADDRESS(ROW(A$80),ROW()-ROW(A$80)+(ROWS($88:116)-1)*2,4))","v":0},0,null,0,{"$f":"INDIRECT(ADDRESS(ROW(A$80),ROW()-ROW(A$80)+(ROWS($88:116)-1)*2+1,4))","v":0}]
[{"$f":"IF(B117=\"\",0,INDEX(Price_List,ROWS($88:117)))","v":15},{"$f":"IF($C117=\"\",\"\",COUNTA($C$88:$C117))","v":30},{"$f":"IF(INDEX(INDIRECT(\"Product_List\"),ROWS($88:117))=\"\",\"\",INDEX(INDIRECT(\"Product_List\"),ROWS($88:117)))","v":"30-ขนมปังโรลมันม่วง"},{"$f":"ยอดยกมา","v":0},null,null,null,null,null,null,0,null,{"$f":"INDIRECT(ADDRESS(ROW(A$80),ROW()-ROW(A$80)+(ROWS($88:117)-1)*2-1,4))","v":0},null,0,null,0,null,null,null,0,null,0,null,null,null,null,null,{"$f":"INDIRECT(ADDRESS(ROW(A$80),ROW()-ROW(A$80)+(ROWS($88:117)-1)*2,4))","v":0},0,null,0,{"$f":"INDIRECT(ADDRESS(ROW(A$80),ROW()-ROW(A$80)+(ROWS($88:117)-1)*2+1,4))","v":0}]
[{"$f":"IF(B118=\"\",0,INDEX(Price_List,ROWS($88:118)))","v":15},{"$f":"IF($C118=\"\",\"\",COUNTA($C$88:$C118))","v":31},{"$f":"IF(INDEX(INDIRECT(\"Product_List\"),ROWS($88:118))=\"\",\"\",INDEX(INDIRECT(\"Product_List\"),ROWS($88:118)))","v":"31-ขนมปังโรลช็อกโกแลต"},{"$f":"ยอดยกมา","v":0},null,null,null,null,null,null,0,null,{"$f":"INDIRECT(ADDRESS(ROW(A$80),ROW()-ROW(A$80)+(ROWS($88:118)-1)*2-1,4))","v":0},null,0,null,0,null,null,null,0,null,0,null,null,null,null,null,{"$f":"INDIRECT(ADDRESS(ROW(A$80),ROW()-ROW(A$80)+(ROWS($88:118)-1)*2,4))","v":0},0,null,0,{"$f":"INDIRECT(ADDRESS(ROW(A$80),ROW()-ROW(A$80)+(ROWS($88:118)-1)*2+1,4))","v":0}]
[{"$f":"IF(B119=\"\",0,INDEX(Price_List,ROWS($88:119)))","v":16},{"$f":"IF($C119=\"\",\"\",COUNTA($C$88:$C119))","v":32},{"$f":"IF(INDEX(INDIRECT(\"Product_List\"),ROWS($88:119))=\"\",\"\",INDEX(INDIRECT(\"Product_List\"),ROWS($88:119)))","v":"32-ขนมปังชนิดแผ่น(155กรัม)"},{"$f":"ยอดยกมา","v":0},null,null,null,null,null,null,0,null,{"$f":"INDIRECT(ADDRESS(ROW(A$80),ROW()-ROW(A$80)+(ROWS($88:119)-1)*2-1,4))","v":0},null,0,null,0,null,null,null,0,null,0,null,null,null,null,null,{"$f":"INDIRECT(ADDRESS(ROW(A$80),ROW()-ROW(A$80)+(ROWS($88:119)-1)*2,4))","v":0},0,null,0,{"$f":"INDIRECT(ADDRESS(ROW(A$80),ROW()-ROW(A$80)+(ROWS($88:119)-1)*2+1,4))","v":0}]
[{"$f":"IF(B120=\"\",0,INDEX(Price_List,ROWS($88:120)))","v":15},{"$f":"IF($C120=\"\",\"\",COUNTA($C$88:$C120))","v":33},{"$f":"IF(INDEX(INDIRECT(\"Product_List\"),ROWS($88:120))=\"\",\"\",INDEX(INDIRECT(\"Product_List\"),ROWS($88:120)))","v":"33-ขนมปังโรลเผือก"},{"$f":"ยอดยกมา","v":0},null,null,null,null,null,null,0,null,{"$f":"INDIRECT(ADDRESS(ROW(A$80),ROW()-ROW(A$80)+(ROWS($88:120)-1)*2-1,4))","v":0},null,0,null,0,null,null,null,0,null,0,null,null,null,null,null,{"$f":"INDIRECT(ADDRESS(ROW(A$80),ROW()-ROW(A$80)+(ROWS($88:120)-1)*2,4))","v":0},0,null,0,{"$f":"INDIRECT(ADDRESS(ROW(A$80),ROW()-ROW(A$80)+(ROWS($88:120)-1)*2+1,4))","v":0}]
[{"$f":"IF(B121=\"\",0,INDEX(Price_List,ROWS($88:121)))","v":15},{"$f":"IF($C121=\"\",\"\",COUNTA($C$88:$C121))","v":34},{"$f":"IF(INDEX(INDIRECT(\"Product_List\"),ROWS($88:121))=\"\",\"\",INDEX(INDIRECT(\"Product_List\"),ROWS($88:121)))","v":"34-ขนมปังไก่หยองน้ำสลัด Mini"},{"$f":"ยอดยกมา","v":0},null,null,null,null,null,null,0,null,{"$f":"INDIRECT(ADDRESS(ROW(A$80),ROW()-ROW(A$80)+(ROWS($88:121)-1)*2-1,4))","v":0},null,0,null,0,null,null,null,0,null,0,null,null,null,null,null,{"$f":"INDIRECT(ADDRESS(ROW(A$80),ROW()-ROW(A$80)+(ROWS($88:121)-1)*2,4))","v":0},0,null,0,{"$f":"INDIRECT(ADDRESS(ROW(A$80),ROW()-ROW(A$80)+(ROWS($88:121)-1)*2+1,4))","v":0}]
[{"$f":"IF(B122=\"\",0,INDEX(Price_List,ROWS($88:122)))","v":10},{"$f":"IF($C122=\"\",\"\",COUNTA($C$88:$C122))","v":35},{"$f":"IF(INDEX(INDIRECT(\"Product_List\"),ROWS($88:122))=\"\",\"\",INDEX(INDIRECT(\"Product_List\"),ROWS($88:122)))","v":"35-ขนมปังไส้ช็อกโกแลต"},{"$f":"ยอดยกมา","v":0},null,null,null,null,null,null,0,null,{"$f":"INDIRECT(ADDRESS(ROW(A$80),ROW()-ROW(A$80)+(ROWS($88:122)-1)*2-1,4))","v":0},null,0,null,0,null,null,null,0,null,0,null,null,null,null,null,{"$f":"INDIRECT(ADDRESS(ROW(A$80),ROW()-ROW(A$80)+(ROWS($88:122)-1)*2,4))","v":0},0,null,0,{"$f":"INDIRECT(ADDRESS(ROW(A$80),ROW()-ROW(A$80)+(ROWS($88:122)-1)*2+1,4))","v":0}]
[{"$f":"IF(B123=\"\",0,INDEX(Price_List,ROWS($88:123)))","v":10},{"$f":"IF($C123=\"\",\"\",COUNTA($C$88:$C123))","v":36},{"$f":"IF(INDEX(INDIRECT(\"Product_List\"),ROWS($88:123))=\"\",\"\",INDEX(INDIRECT(\"Product_List\"),ROWS($88:123)))","v":"36-ขนมปังไส้ครีมสังขยาไข่"},{"$f":"ยอดยกมา","v":0},null,null,null,null,null,null,0,null,{"$f":"INDIRECT(ADDRESS(ROW(A$80),ROW()-ROW(A$80)+(ROWS($88:123)-1)*2-1,4))","v":0},null,0,null,0,null,null,null,0,null,0,null,null,null,null,null,{"$f":"INDIRECT(ADDRESS(ROW(A$80),ROW()-ROW(A$80)+(ROWS($88:123)-1)*2,4))","v":0},0,null,0,{"$f":"INDIRECT(ADDRESS(ROW(A$80),ROW()-ROW(A$80)+(ROWS($88:123)-1)*2+1,4))","v":0}]
[{"$f":"IF(B124=\"\",0,INDEX(Price_List,ROWS($88:124)))","v":20},{"$f":"IF($C124=\"\",\"\",COUNTA($C$88:$C124))","v":37},{"$f":"IF(INDEX(INDIRECT(\"Product_List\"),ROWS($88:124))=\"\",\"\",INDEX(INDIRECT(\"Product_List\"),ROWS($88:124)))","v":"37-ขนมปังพิซซ่าฮาวายเอี้ยน"},{"$f":"ยอดยกมา","v":0},null,null,null,null,null,null,0,null,{"$f":"INDIRECT(ADDRESS(ROW(A$80),ROW()-ROW(A$80)+(ROWS($88:124)-1)*2-1,4))","v":0},null,0,null,0,null,null,null,0,null,0,null,null,null,null,null,{"$f":"INDIRECT(ADDRESS(ROW(A$80),ROW()-ROW(A$80)+(ROWS($88:124)-1)*2,4))","v":0},0,null,0,{"$f":"INDIRECT(ADDRESS(ROW(A$80),ROW()-ROW(A$80)+(ROWS($88:124)-1)*2+1,4))","v":0}]
[{"$f":"IF(B125=\"\",0,INDEX(Price_List,ROWS($88:125)))","v":20},{"$f":"IF($C125=\"\",\"\",COUNTA($C$88:$C125))","v":38},{"$f":"IF(INDEX(INDIRECT(\"Product_List\"),ROWS($88:125))=\"\",\"\",INDEX(INDIRECT(\"Product_List\"),ROWS($88:125)))","v":"38-ครัวซองต์หมูหยองน้ำสลัด"},{"$f":"ยอดยกมา","v":0},null,null,null,null,null,null,0,null,{"$f":"INDIRECT(ADDRESS(ROW(A$80),ROW()-ROW(A$80)+(ROWS($88:125)-1)*2-1,4))","v":0},null,0,null,0,null,null,null,0,null,0,null,null,null,null,null,{"$f":"INDIRECT(ADDRESS(ROW(A$80),ROW()-ROW(A$80)+(ROWS($88:125)-1)*2,4))","v":0},0,null,0,{"$f":"INDIRECT(ADDRESS(ROW(A$80),ROW()-ROW(A$80)+(ROWS($88:125)-1)*2+1,4))","v":0}]
[{"$f":"IF(B126=\"\",0,INDEX(Price_List,ROWS($88:126)))","v":15},{"$f":"IF($C126=\"\",\"\",COUNTA($C$88:$C126))","v":39},{"$f":"IF(INDEX(INDIRECT(\"Product_List\"),ROWS($88:126))=\"\",\"\",INDEX(INDIRECT(\"Product_List\"),ROWS($88:126)))","v":"39-แพนเบรดไส้เผือก"},{"$f":"ยอดยกมา","v":0},null,null,null,null,null,null,0,null,{"$f":"INDIRECT(ADDRESS(ROW(A$80),ROW()-ROW(A$80)+(ROWS($88:126)-1)*2-1,4))","v":0},null,0,null,0,null,null,null,0,null,0,null,null,null,null,null,{"$f":"INDIRECT(ADDRESS(ROW(A$80),ROW()-ROW(A$80)+(ROWS($88:126)-1)*2,4))","v":0},0,null,0,{"$f":"INDIRECT(ADDRESS(ROW(A$80),ROW()-ROW(A$80)+(ROWS($88:126)-1)*2+1,4))","v":0}]
[{"$f":"IF(B127=\"\",0,INDEX(Price_List,ROWS($88:127)))","v":15},{"$f":"IF($C127=\"\",\"\",COUNTA($C$88:$C127))","v":40},{"$f":"IF(INDEX(INDIRECT(\"Product_List\"),ROWS($88:127))=\"\",\"\",INDEX(INDIRECT(\"Product_List\"),ROWS($88:127)))","v":"40-แพนเบรดไส้ถั่วแดง"},{"$f":"ยอดยกมา","v":0},null,null,null,null,null,null,0,null,{"$f":"INDIRECT(ADDRESS(ROW(A$80),ROW()-ROW(A$80)+(ROWS($88:127)-1)*2-1,4))","v":0},null,0,null,0,null,null,null,0,null,0,null,null,null,null,null,{"$f":"INDIRECT(ADDRESS(ROW(A$80),ROW()-ROW(A$80)+(ROWS($88:127)-1)*2,4))","v":0},0,null,0,{"$f":"INDIRECT(ADDRESS(ROW(A$80),ROW()-ROW(A$80)+(ROWS($88:127)-1)*2+1,4))","v":0}]
[{"$f":"IF(B128=\"\",0,INDEX(Price_List,ROWS($88:128)))","v":12},{"$f":"IF($C128=\"\",\"\",COUNTA($C$88:$C128))","v":41},{"$f":"IF(INDEX(INDIRECT(\"Product_List\"),ROWS($88:128))=\"\",\"\",INDEX(INDIRECT(\"Product_List\"),ROWS($88:128)))","v":"41-ขนมปังกรอบเนยน้ำตาล(30กรัม)"},{"$f":"ยอดยกมา","v":0},null,null,null,null,null,null,0,null,{"$f":"INDIRECT(ADDRESS(ROW(A$80),ROW()-ROW(A$80)+(ROWS($88:128)-1)*2-1,4))","v":0},null,0,null,0,null,null,null,0,null,0,null,null,null,null,null,{"$f":"INDIRECT(ADDRESS(ROW(A$80),ROW()-ROW(A$80)+(ROWS($88:128)-1)*2,4))","v":0},0,null,0,{"$f":"INDIRECT(ADDRESS(ROW(A$80),ROW()-ROW(A$80)+(ROWS($88:128)-1)*2+1,4))","v":0}]
[{"$f":"IF(B129=\"\",0,INDEX(Price_List,ROWS($88:129)))","v":18},{"$f":"IF($C129=\"\",\"\",COUNTA($C$88:$C129))","v":42},{"$f":"IF(INDEX(INDIRECT(\"Product_List\"),ROWS($88:129))=\"\",\"\",INDEX(INDIRECT(\"Product_List\"),ROWS($88:129)))","v":"42-ขนมปังชนิดแผ่นโฮลวีต"},{"$f":"ยอดยกมา","v":0},null,null,null,null,null,null,0,null,{"$f":"INDIRECT(ADDRESS(ROW(A$80),ROW()-ROW(A$80)+(ROWS($88:129)-1)*2-1,4))","v":0},null,0,null,0,null,null,null,0,null,0,null,null,null,null,null,{"$f":"INDIRECT(ADDRESS(ROW(A$80),ROW()-ROW(A$80)+(ROWS($88:129)-1)*2,4))","v":0},0,null,0,{"$f":"INDIRECT(ADDRESS(ROW(A$80),ROW()-ROW(A$80)+(ROWS($88:129)-1)*2+1,4))","v":0}]
[{"$f":"IF(B130=\"\",0,INDEX(Price_List,ROWS($88:130)))","v":12},{"$f":"IF($C130=\"\",\"\",COUNTA($C$88:$C130))","v":43},{"$f":"IF(INDEX(INDIRECT(\"Product_List\"),ROWS($88:130))=\"\",\"\",INDEX(INDIRECT(\"Product_List\"),ROWS($88:130)))","v":"43-เค้กโรลใบเตย"},{"$f":"ยอดยกมา","v":0},null,null,null,null,null,null,{"$f":"D130+E130+J130-I130+H130","v":0},null,{"$f":"INDIRECT(ADDRESS(ROW(A$80),ROW()-ROW(A$80)+(ROWS($88:130)-1)*2-1,4))","v":0},null,{"$f":"F130+G130+M130+J130-K130","v":0},null,{"$f":"O130*A130","v":0},null,null,null,{"$f":"D130+E130-F130-G130","v":0},null,{"$f":"U130*6%+U130","v":0},null,null,null,null,null,{"$f":"INDIRECT(ADDRESS(ROW(A$80),ROW()-ROW(A$80)+(ROWS($88:130)-1)*2,4))","v":0},0,null,0,{"$f":"INDIRECT(ADDRESS(ROW(A$80),ROW()-ROW(A$80)+(ROWS($88:130)-1)*2+1,4))","v":0}]
[{"$f":"IF(B131=\"\",0,INDEX(Price_List,ROWS($88:131)))","v":12},{"$f":"IF($C131=\"\",\"\",COUNTA($C$88:$C131))","v":44},{"$f":"IF(INDEX(INDIRECT(\"Product_List\"),ROWS($88:131))=\"\",\"\",INDEX(INDIRECT(\"Product_List\"),ROWS($88:131)))","v":"44-ขนมโมจิไส้ถั่วดำ"},{"$f":"ยอดยกมา","v":0},null,null,null,null,null,null,{"$f":"D131+E131+J131-I131+H131","v":0},null,{"$f":"INDIRECT(ADDRESS(ROW(A$80),ROW()-ROW(A$80)+(ROWS($88:131)-1)*2-1,4))","v":0},null,{"$f":"F131+G131+M131+J131-K131","v":0},null,{"$f":"O131*A131","v":0},null,null,null,{"$f":"D131+E131-F131-G131","v":0},null,{"$f":"U131*6%+U131","v":0},null,null,null,null,null,{"$f":"INDIRECT(ADDRESS(ROW(A$80),ROW()-ROW(A$80)+(ROWS($88:131)-1)*2,4))","v":0},0,null,0,{"$f":"INDIRECT(ADDRESS(ROW(A$80),ROW()-ROW(A$80)+(ROWS($88:131)-1)*2+1,4))","v":0}]
[{"$f":"IF(B132=\"\",0,INDEX(Price_List,ROWS($88:132)))","v":25},{"$f":"IF($C132=\"\",\"\",COUNTA($C$88:$C132))","v":45},{"$f":"IF(INDEX(INDIRECT(\"Product_List\"),ROWS($88:132))=\"\",\"\",INDEX(INDIRECT(\"Product_List\"),ROWS($88:132)))","v":"45-ครัวซองต์ไส้กรอกชีส"},{"$f":"ยอดยกมา","v":0},null,null,null,null,null,null,{"$f":"D132+E132+J132-I132+H132","v":0},null,{"$f":"INDIRECT(ADDRESS(ROW(A$80),ROW()-ROW(A$80)+(ROWS($88:132)-1)*2-1,4))","v":0},null,{"$f":"F132+G132+M132+J132-K132","v":0},null,{"$f":"O132*A132","v":0},null,null,null,{"$f":"D132+E132-F132-G132","v":0},null,{"$f":"U132*6%+U132","v":0},null,null,null,null,null,{"$f":"INDIRECT(ADDRESS(ROW(A$80),ROW()-ROW(A$80)+(ROWS($88:132)-1)*2,4))","v":0},0,null,0,{"$f":"INDIRECT(ADDRESS(ROW(A$80),ROW()-ROW(A$80)+(ROWS($88:132)-1)*2+1,4))","v":0}]
[{"$f":"IF(B133=\"\",0,INDEX(Price_List,ROWS($88:133)))","v":12},{"$f":"IF($C133=\"\",\"\",COUNTA($C$88:$C133))","v":46},{"$f":"IF(INDEX(INDIRECT(\"Product_List\"),ROWS($88:133))=\"\",\"\",INDEX(INDIRECT(\"Product_List\"),ROWS($88:133)))","v":"46-ขนมเปี๊ยะไส้ถั่ว"},{"$f":"ยอดยกมา","v":0},null,null,null,null,null,null,0,null,{"$f":"INDIRECT(ADDRESS(ROW(A$80),ROW()-ROW(A$80)+(ROWS($88:133)-1)*2-1,4))","v":0},null,0,null,0,null,null,null,0,null,0,null,null,null,null,null,{"$f":"INDIRECT(ADDRESS(ROW(A$80),ROW()-ROW(A$80)+(ROWS($88:133)-1)*2,4))","v":0},0,null,0,{"$f":"INDIRECT(ADDRESS(ROW(A$80),ROW()-ROW(A$80)+(ROWS($88:133)-1)*2+1,4))","v":0}]
[{"$f":"IF(B134=\"\",0,INDEX(Price_List,ROWS($88:134)))","v":12},{"$f":"IF($C134=\"\",\"\",COUNTA($C$88:$C134))","v":47},{"$f":"IF(INDEX(INDIRECT(\"Product_List\"),ROWS($88:134))=\"\",\"\",INDEX(INDIRECT(\"Product_List\"),ROWS($88:134)))","v":"47-ขนมเปี๊ยะไส้ฟัก"},{"$f":"ยอดยกมา","v":0},null,null,null,null,null,null,{"$f":"D134+E134+J134-I134+H134","v":0},null,{"$f":"INDIRECT(ADDRESS(ROW(A$80),ROW()-ROW(A$80)+(ROWS($88:134)-1)*2-1,4))","v":0},null,{"$f":"F134+G134+M134+J134-K134","v":0},null,{"$f":"O134*A134","v":0},null,null,null,{"$f":"D134+E134-F134-G134","v":0},null,{"$f":"U134*6%+U134","v":0},null,null,null,null,null,{"$f":"INDIRECT(ADDRESS(ROW(A$80),ROW()-ROW(A$80)+(ROWS($88:134)-1)*2,4))","v":0},0,null,0,{"$f":"INDIRECT(ADDRESS(ROW(A$80),ROW()-ROW(A$80)+(ROWS($88:134)-1)*2+1,4))","v":0}]
[{"$f":"IF(B135=\"\",0,INDEX(Price_List,ROWS($88:135)))","v":12},{"$f":"IF($C135=\"\",\"\",COUNTA($C$88:$C135))","v":48},{"$f":"IF(INDEX(INDIRECT(\"Product_List\"),ROWS($88:135))=\"\",\"\",INDEX(INDIRECT(\"Product_List\"),ROWS($88:135)))","v":"48-มังกี้เค้ก"},{"$f":"ยอดยกมา","v":0},null,null,null,null,null,null,0,null,{"$f":"INDIRECT(ADDRESS(ROW(A$80),ROW()-ROW(A$80)+(ROWS($88:135)-1)*2-1,4))","v":0},null,0,null,0,null,null,null,0,null,0,null,null,null,null,null,{"$f":"INDIRECT(ADDRESS(ROW(A$80),ROW()-ROW(A$80)+(ROWS($88:135)-1)*2,4))","v":0},0,null,0,{"$f":"INDIRECT(ADDRESS(ROW(A$80),ROW()-ROW(A$80)+(ROWS($88:135)-1)*2+1,4))","v":0}]
["รวม",null,null,{"$f":"SUM(D$88:D$135)","v":0},0,0,0,0,0,0,0,null,{"$f":"SUM(M$88:M$135)","v":0},null,null,null,{"$f":"$AP$98","v":0},null,"บาท",null,{"$f":"SUM(U$88:U$135)","v":0},null,{"$f":"SUM(W$88:W$135)","v":0},null,null,null,null,null,{"$f":"SUM(AC$88:AC$135)","v":0},{"$f":"SUM(AD$88:AD$135)","v":0},{"$f":"SUM(AE$88:AE$135)","v":0},{"$f":"SUM(AF$88:AF$135)","v":0},{"$f":"SUM(AG$88:AG$135)","v":0}]
["เลขที่ไมล์ เวลาออกทำงาน",null,null,{"$f":"$BF$3","v":0},null,"Km","น้ำหนักของเสีย"]
["เลขที่ไมล์ เวลากลับ",null,null,{"$f":"$BF$4","v":0},null,"Km",{"$f":"$AA$5","v":0},null,"KG"]
["เวลากลับถึงสำนักงาน",null,null,{"$f":"$BF$1","v":"00:00:00"},null,"น."]
["เติมน้ำมัน",null,null,{"$f":"$AX3","v":0},null,"บาท"]
["จำนวนน้ำมัน",null,null,{"$f":"$AX4","v":0},null,"ลิตร"]
["ยอดรวมต้นทุนสาขา",null,null,{"$f":"$AX5","v":0},null,"บาท"]

{"sheet":"29","index":33,"n_rows":142,"n_cols":154,"rows_kept":142,"cut":false,"hidden":false,"merged":[[83,132,83,133],[129,10,129,11],[129,12,129,13],[129,14,129,15],[129,16,129,17],[127,10,127,11],[127,12,127,13],[127,14,127,15],[127,16,127,17],[127,20,127,21],[127,22,127,23],[127,24,127,25],[127,33,127,36],[126,10,126,11],[126,12,126,13],[126,14,126,15],[126,16,126,17],[128,10,128,11],[128,12,128,13],[129,24,129,25],[125,10,125,11],[125,12,125,13],[125,14,125,15],[125,16,125,17],[7,132,7,134],[8,132,8,134],[80,132,80,133],[82,132,82,133],[7,135,7,137],[8,135,8,137],[80,135,80,136],[82,135,82,136],[7,138,7,140],[7,141,7,143],[7,147,7,149],[8,138,8,140],[141,0,141,2],[141,3,141,4],[138,0,138,2],[138,3,138,4],[139,0,139,2],[139,3,139,4],[140,0,140,2],[140,3,140,4],[135,24,135,25],[135,33,135,36],[136,0,136,2],[136,3,136,4],[137,0,137,2],[137,3,137,4],[137,6,137,7],[137,18,137,21],[135,0,135,2],[135,10,135,11],[135,12,135,13],[135,14,135,15],[135,16,135,17],[135,18,135,19],[135,20,135,21],[135,22,135,23],[128,14,128,15],[128,16,128,17],[128,20,128,21],[128,22,128,23],[129,20,129,21],[129,22,129,23],[131,16,131,17],[132,16,132,17],[134,16,134,17],[131,20,131,21],[132,20,132,21],[134,20,134,21],[131,22,131,23],[132,22,132,23],[134,22,134,23],[131,24,131,25],[132,24,132,25],[134,24,134,25],[129,33,129,36],[128,24,128,25],[128,33,128,36],[126,20,126,21],[126,22,126,23],[124,24,124,25],[124,33,124,36],[125,20,125,21],[125,22,125,23],[125,24,125,25],[125,33,125,36],[124,10,124,11],[124,12,124,13],[124,14,124,15],[124,16,124,17],[124,20,124,21],[124,22,124,23],[126,24,126,25],[126,33,126,36],[122,24,122,25],[122,33,122,36],[123,10,123,11],[123,12,123,13],[123,14,123,15],[123,16,123,17],[123,20,123,21],[123,22,123,23],[123,24,123,25],[123,33,123,36],[122,10,122,11],[122,12,122,13],[122,14,122,15],[122,16,122,17],[122,20,122,21],[122,22,122,23],[120,24,120,25],[120,33,120,36],[121,10,121,11],[121,12,121,13],[121,14,121,15],[121,16,121,17],[121,20,121,21],[121,22,121,23],[121,24,121,25],[121,33,121,36],[120,10,120,11],[120,12,120,13],[120,14,120,15],[120,16,120,17],[120,20,120,21],[120,22,120,23],[118,24,118,25],[118,33,118,36],[119,10,119,11],[119,12,119,13],[119,14,119,15],[119,16,119,17],[119,20,119,21],[119,22,119,23],[119,24,119,25],[119,33,119,36],[118,10,118,11],[118,12,118,13],[118,14,118,15],[118,16,118,17],[118,20,118,21],[118,22,118,23],[116,24,116,25],[116,33,116,36],[117,10,117,11],[117,12,117,13],[117,14,117,15],[117,16,117,17],[117,20,117,21],[117,22,117,23],[117,24,117,25],[117,33,117,36],[116,10,116,11],[116,12,116,13],[116,14,116,15],[116,16,116,17],[116,20,116,21],[116,22,116,23],[114,24,114,25],[114,33,114,36],[115,10,115,11],[115,12,115,13],[115,14,115,15],[115,16,115,17],[115,20,115,21],[115,22,115,23],[115,24,115,25],[115,33,115,36],[114,10,114,11],[114,12,114,13],[114,14,114,15],[114,16,114,17],[114,20,114,21],[114,22,114,23],[112,24,112,25],[112,33,112,36],[113,10,113,11],[113,12,113,13],[113,14,113,15],[113,16,113,17],[113,20,113,21],[113,22,113,23],[113,24,113,25],[113,33,113,36],[112,10,112,11],[112,12,112,13],[112,14,112,15],[112,16,112,17],[112,20,112,21],[112,22,112,23],[110,24,110,25],[110,33,110,36],[111,10,111,11],[111,12,111,13],[111,14,111,15],[111,16,111,17],[111,20,111,21],[111,22,111,23],[111,24,111,25],[111,33,111,36],[110,10,110,11],[110,12,110,13],[110,14,110,15],[110,16,110,17],[110,20,110,21],[110,22,110,23],[108,24,108,25],[108,33,108,36],[109,10,109,11],[109,12,109,13],[109,14,109,15],[109,16,109,17],[109,20,109,21],[109,22,109,23],[109,24,109,25],[109,33,109,36],[108,10,108,11],[108,12,108,13],[108,14,108,15],[108,16,108,17],[108,20,108,21],[108,22,108,23],[106,24,106,25],[106,33,106,36],[107,10,107,11],[107,12,107,13],[107,14,107,15],[107,16,107,17],[107,20,107,21],[107,22,107,23],[107,24,107,25],[107,33,107,36],[106,10,106,11],[106,12,106,13],[106,14,106,15],[106,16,106,17],[106,20,106,21],[106,22,106,23],[104,24,104,25],[104,33,104,36],[105,10,105,11],[105,12,105,13],[105,14,105,15],[105,16,105,17],[105,20,105,21],[105,22,105,23],[105,24,105,25],[105,33,105,36],[104,10,104,11],[104,12,104,13],[104,14,104,15],[104,16,104,17],[104,20,104,21],[104,22,104,23],[102,24,102,25],[102,33,102,36],[103,10,103,11],[103,12,103,13],[103,14,103,15],[103,16,103,17],[103,20,103,21],[103,22,103,23],[103,24,103,25],[103,33,103,36],[102,10,102,11],[102,12,102,13],[102,14,102,15],[102,16,102,17],[102,20,102,21],[102,22,102,23],[101,10,101,11],[101,12,101,13],[101,14,101,15],[101,16,101,17],[101,20,101,21],[101,22,101,23],[101,24,101,25],[101,33,101,36],[100,10,100,11],[100,12,100,13],[100,14,100,15],[100,16,100,17],[100,20,100,21],[100,22,100,23],[99,10,99,11],[99,12,99,13],[99,14,99,15],[99,16,99,17],[99,20,99,21],[99,22,99,23],[99,24,99,25],[99,33,99,36],[100,24,100,25],[100,33,100,36],[97,24,97,25],[97,33,97,36],[97,38,97,40],[98,10,98,11],[98,12,98,13],[98,14,98,15],[98,16,98,17],[98,20,98,21],[98,22,98,23],[98,24,98,25],[97,10,97,11],[97,12,97,13],[97,14,97,15],[97,16,97,17],[97,20,97,21],[97,22,97,23],[98,33,98,36],[95,24,95,25],[95,33,95,36],[96,10,96,11],[96,12,96,13],[96,14,96,15],[96,16,96,17],[96,20,96,21],[96,22,96,23],[96,24,96,25],[96,33,96,36],[95,10,95,11],[95,12,95,13],[95,14,95,15],[95,16,95,17],[95,20,95,21],[95,22,95,23],[93,24,93,25],[93,33,93,36],[94,10,94,11],[94,12,94,13],[94,14,94,15],[94,16,94,17],[94,20,94,21],[94,22,94,23],[94,24,94,25],[94,33,94,36],[93,10,93,11],[93,12,93,13],[93,14,93,15],[93,16,93,17],[93,20,93,21],[93,22,93,23],[91,24,91,25],[91,33,91,36],[92,10,92,11],[92,12,92,13],[92,14,92,15],[92,16,92,17],[92,20,92,21],[92,22,92,23],[92,24,92,25],[92,33,92,36],[91,10,91,11],[91,12,91,13],[91,14,91,15],[91,16,91,17],[91,20,91,21],[91,22,91,23],[86,22,86,23],[86,24,86,25],[88,20,88,21],[88,22,88,23],[88,24,88,25],[88,33,88,36],[89,24,89,25],[89,33,89,36],[90,10,90,11],[90,12,90,13],[90,14,90,15],[90,16,90,17],[90,20,90,21],[90,22,90,23],[90,24,90,25],[90,33,90,36],[89,10,89,11],[89,12,89,13],[89,14,89,15],[89,16,89,17],[89,20,89,21],[89,22,89,23],[83,36,83,37],[83,39,83,40],[83,42,83,43],[83,45,83,46],[83,48,83,49],[83,51,83,52],[83,150,83,153],[86,10,86,11],[86,12,86,13],[86,14,86,15],[86,16,86,17],[86,20,86,21],[83,108,83,109],[83,111,83,112],[83,114,83,115],[83,117,83,118],[83,120,83,121],[83,123,83,124],[83,90,83,91],[83,93,83,94],[83,96,83,97],[83,99,83,100],[83,102,83,103],[83,105,83,106],[82,39,82,40],[82,42,82,43],[82,45,82,46],[82,48,82,49],[83,84,83,85],[83,87,83,88],[83,54,83,55],[83,57,83,58],[83,60,83,61],[83,63,83,64],[83,66,83,67],[83,69,83,70],[83,72,83,73],[83,75,83,76],[83,78,83,79],[83,81,83,82],[83,0,83,5],[83,6,83,7],[83,9,83,10],[83,12,83,13],[83,15,83,16],[82,105,82,106],[82,108,82,109],[82,111,82,112],[82,114,82,115],[82,87,82,88],[82,90,82,91],[82,93,82,94],[82,96,82,97],[82,99,82,100],[82,102,82,103],[82,69,82,70],[82,72,82,73],[82,75,82,76],[82,78,82,79],[82,81,82,82],[82,84,82,85],[82,51,82,52],[82,54,82,55],[82,57,82,58],[82,15,82,16],[82,18,82,19],[82,21,82,22],[82,24,82,25],[82,27,82,28],[82,30,82,31],[81,0,81,2],[81,3,81,5],[81,150,82,153],[82,0,82,2],[82,3,82,4],[82,6,82,7],[82,9,82,10],[82,12,82,13],[82,123,82,124],[82,126,82,127],[82,129,82,130],[82,117,82,118],[82,120,82,121],[82,60,82,61],[82,63,82,64],[82,66,82,67],[82,33,82,34],[82,36,82,37],[80,114,80,115],[80,117,80,118],[80,120,80,121],[80,123,80,124],[80,126,80,127],[80,129,80,130],[80,96,80,97],[80,99,80,100],[80,102,80,103],[80,105,80,106],[80,108,80,109],[80,111,80,112],[80,78,80,79],[80,81,80,82],[80,87,80,88],[80,90,80,91],[80,93,80,94],[80,60,80,61],[80,63,80,64],[80,66,80,67],[80,69,80,70],[80,72,80,73],[80,75,80,76],[80,84,80,85],[79,0,79,5],[80,0,80,5],[80,6,80,7],[80,9,80,10],[80,12,80,13],[80,15,80,16],[80,18,80,19],[80,21,80,22],[8,114,8,116],[8,78,8,80],[8,81,8,83],[8,87,8,89],[8,90,8,92],[8,93,8,95],[8,60,8,62],[8,63,8,65],[8,66,8,68],[8,69,8,71],[8,72,8,74],[8,75,8,77],[8,54,8,56],[8,57,8,59],[8,24,8,26],[8,27,8,29],[8,120,8,122],[8,123,8,125],[8,126,8,128],[8,129,8,131],[8,96,8,98],[8,99,8,101],[8,102,8,104],[8,105,8,107],[8,108,8,110],[8,111,8,113],[8,33,8,35],[8,36,8,38],[8,39,8,41],[8,84,8,86],[7,150,8,150],[7,151,8,151],[8,6,8,8],[8,9,8,11],[8,12,8,14],[8,15,8,17],[8,18,8,20],[8,21,8,23],[7,114,7,116],[7,117,7,119],[7,120,7,122],[7,123,7,125],[7,126,7,128],[7,129,7,131],[7,96,7,98],[7,99,7,101],[7,102,7,104],[7,105,7,107],[7,108,7,110],[8,117,8,119],[7,87,7,89],[7,90,7,92],[7,93,7,95],[7,60,7,62],[7,63,7,65],[7,66,7,68],[7,69,7,71],[7,72,7,74],[7,75,7,77],[7,54,7,56],[7,57,7,59],[7,24,7,26],[7,27,7,29],[7,30,7,32],[7,33,7,35],[7,36,7,38],[7,39,7,41],[7,84,7,86],[6,150,6,151],[6,152,8,152],[6,153,8,153],[7,6,7,8],[7,9,7,11],[7,12,7,14],[7,15,7,17],[7,18,7,20],[7,21,7,23],[6,117,6,119],[6,120,6,122],[6,123,6,125],[6,126,6,128],[6,129,6,131],[6,99,6,101],[6,102,6,104],[6,105,6,107],[6,108,6,110],[6,111,6,113],[6,54,6,56],[6,57,6,59],[7,111,7,113],[7,78,7,80],[7,81,7,83],[6,0,8,0],[6,1,8,1],[6,2,8,2],[6,3,8,3],[6,4,8,4],[6,6,6,8],[6,45,6,47],[6,48,6,50],[6,51,6,53],[7,42,7,44],[7,45,7,47],[7,48,7,50],[7,51,7,53],[8,42,8,44],[8,45,8,47],[8,48,8,50],[8,51,8,53],[6,27,6,29],[6,30,6,32],[6,33,6,35],[6,36,6,38],[6,39,6,41],[6,42,6,44],[8,30,8,32],[4,26,4,29],[4,30,4,31],[4,32,4,34],[4,35,4,36],[6,9,6,11],[6,12,6,14],[6,15,6,17],[6,18,6,20],[6,21,6,23],[6,24,6,26],[3,41,3,44],[3,46,3,48],[3,49,3,51],[3,54,3,56],[3,57,3,60],[4,0,4,1],[4,2,4,3],[4,4,4,5],[4,6,4,12],[4,14,4,16],[3,17,3,19],[3,22,3,25],[3,26,3,29],[3,30,3,33],[3,34,3,37],[3,38,3,40],[4,38,4,40],[4,41,4,44],[4,46,4,48],[4,49,4,51],[4,54,4,56],[4,57,4,60],[4,17,4,19],[4,22,4,25],[2,38,2,40],[3,0,3,1],[3,2,3,3],[3,4,3,5],[3,6,3,12],[3,14,3,16],[2,17,2,19],[2,22,2,25],[2,26,2,29],[2,30,2,33],[80,36,80,37],[80,39,80,40],[0,38,0,40],[0,41,0,44],[0,46,0,48],[0,54,0,56],[0,57,0,60],[2,0,2,1],[2,2,2,3],[2,4,2,5],[2,6,2,12],[2,14,2,16],[0,0,0,12],[0,14,0,16],[0,17,0,23],[0,30,0,33],[0,34,0,35],[0,36,0,37],[2,41,2,44],[2,46,2,48],[2,49,2,51],[2,54,2,56],[2,57,2,60],[2,34,2,37],[6,141,6,143],[6,147,6,149],[83,18,83,19],[83,21,83,22],[83,24,83,25],[83,27,83,28],[83,30,83,31],[83,33,83,34],[83,126,83,127],[83,129,83,130],[8,141,8,143],[8,147,8,149],[80,138,80,139],[80,141,80,142],[80,147,80,148],[82,138,82,139],[82,141,82,142],[82,147,82,148],[6,60,6,62],[6,87,6,89],[6,90,6,92],[6,93,6,95],[6,96,6,98],[6,63,6,65],[88,12,88,13],[88,14,88,15],[88,16,88,17],[6,114,6,116],[6,81,6,83],[6,84,6,86],[6,132,6,134],[6,135,6,137],[6,138,6,140],[6,66,6,68],[6,69,6,71],[6,72,6,74],[6,75,6,77],[6,78,6,80],[80,42,80,43],[80,45,80,46],[80,48,80,49],[80,51,80,52],[80,54,80,55],[80,57,80,58],[80,24,80,25],[80,27,80,28],[80,30,80,31],[80,33,80,34],[83,147,83,148],[131,33,131,36],[132,33,132,36],[134,33,134,36],[131,10,131,11],[132,10,132,11],[134,10,134,11],[131,12,131,13],[132,12,132,13],[134,12,134,13],[131,14,131,15],[132,14,132,15],[134,14,134,15],[86,33,86,36],[87,10,87,11],[87,12,87,13],[87,14,87,15],[87,16,87,17],[87,20,87,21],[87,22,87,23],[83,135,83,136],[130,10,130,11],[130,12,130,13],[130,14,130,15],[6,144,6,146],[7,144,7,146],[8,144,8,146],[80,144,80,145],[82,144,82,145],[83,144,83,145],[133,10,133,11],[133,12,133,13],[133,14,133,15],[133,16,133,17],[133,20,133,21],[133,22,133,23],[133,24,133,25],[133,33,133,36],[83,138,83,139],[83,141,83,142],[130,16,130,17],[130,20,130,21],[130,22,130,23],[130,24,130,25],[130,33,130,36],[87,24,87,25],[87,33,87,36],[88,10,88,11]]}
[":::: รายงานการขายประจำวัน (Sale Daily Report)  ::::",null,null,null,null,null,null,null,null,null,null,null,null,null,"Print Date : ",null,null,{"$f":"NOW()","v":"2025-04-24T22:39:10.130"},null,null,null,null,null,null,null,null,null,null,null,null,"จำนวนร้าน :",null,null,null,{"$f":"MAX($A$10:$A$79)","v":0},null,"ร้าน",null,"เป้ายอดขาย :",null,null,null,null,null,null,null,{"$f":"C3","v":45806},null,null,{"$f":"LEFT('Problems & Solutions'!$B$2,FIND(\"|\",'Problems & Solutions'!$B$2))&\" วันที่\"&TEXT($C$3,\"[$-107041E] d mmmm yyyy;@\")","v":"ขั้นตอนการตรวจรีพอร์ตขาย | วันที่ 29 พฤษภาคม 2568"},null,null,null,null,"เวลากลับ :"]
[]
["วันที่ :",null,{"$f":"DATE(ใส่ข้อมูล!G2-543,ใส่ข้อมูล!V2,ActiveSheetName)","v":"2025-05-29"},null,"พนักงานขาย",null,{"$f":"INDEX(OFFSET(Sale_Region,,1),ActiveSheetName)","v":0},null,null,null,null,null,null,null,"รวมยอดเบิก :",null,null,{"$f":"E136","v":0},null,null,"ชิ้น",null,"ใหญ่สด(40)",null,null,null,{"$f":"Cash_Major_Bill","v":0},null,null,null,"ใหญ่เชื่อ(42)",null,null,null,{"$f":"Credit_Major_Bill","v":0},null,null,null,"บิลใหญ่ :",null,null,{"$f":"AA3+AI3","v":0},null,null,null,null,"เติมน้ำมัน :",null,null,null,null,null,"บาท",null,"ไมล์ออก :",null,null,{"$f":"เลขไมล์ออก","v":0},null,null,null,"Km"]
["เขตการขาย :",null,{"$f":"INDEX(Sale_Region,ActiveSheetName)","v":0},null,"ผช.ขาย",null,{"$f":"INDEX(OFFSET(Sale_Region,,2),ActiveSheetName)","v":0},null,null,null,null,null,null,null,"ของเหลือ :",null,null,{"$f":"F136","v":0},null,null,"ชิ้น",null,"เล็กสด(41)",null,null,null,{"$f":"Cash_Minor_Bill","v":0},null,null,null,"เล็กเชื่อ(43)",null,null,null,{"$f":"Credit_Minor_Bill","v":0},null,null,null,"บิลเล็ก :",null,null,{"$f":"AA4+AI4","v":0},null,null,null,null,"จำนวนลิตร :",null,null,null,null,null,"ลิตร",null,"ไมล์เข้า :",null,null,null,null,null,null,"Km"]
["สายส่ง :",null,{"$f":"\"Sale \"&ใส่ข้อมูล!E3&\"-\"&ใส่ข้อมูล!G3","v":"Sale KB-01"},null,"พนักงานเสริม",null,{"$f":"INDEX(OFFSET(Sale_Region,,3),ActiveSheetName)","v":0},null,null,null,null,null,null,null,"ของเสีย :",null,null,{"$f":"G136","v":0},null,null,"ชิ้น",null,"น้ำหนักของเสีย",null,null,null,null,null,null,null,"Kg.",null,"%ของเสีย",null,null,{"$f":"IF(Order_Cal=0,0,ROUND(Waste_Cal*100/Order_Cal,2))","v":0},null,"%","VAT :",null,null,{"$f":"EW81","v":0},null,null,null,null,"ต้นทุนสาขา :",null,null,{"$f":"SUMPRODUCT((($A$88:$A$135)-($A$88:$A$135)*0.45)*(($E$88:$E$135)-($G$88:$G$135)))","v":0},null,null,"บาท",null,"ระยะทาง :",null,null,{"$f":"IF(OR($BF$4=0,$BF$3=0),0,$BF$4-$BF$3)","v":0},null,null,null,"Km"]
[]
["No","รหัสร้าน (CustNo)","ชื่อร้าน (Store Name)","เวลาเข้าร้าน","ระยะเวลาระหว่างร้าน","บิล(Invoice)",{"$f":"INDEX(INDIRECT(\"dProduct[ProductName]\"),ROUNDUP(COLUMNS($G:G)/3,0))","v":"ขนมปังหมูหยองน้ำสลัด"},null,null,{"$f":"INDEX(INDIRECT(\"dProduct[ProductName]\"),ROUNDUP(COLUMNS($G:J)/3,0))","v":"ขนมปังหมูหยองน้ำพริกเผา"},null,null,{"$f":"INDEX(INDIRECT(\"dProduct[ProductName]\"),ROUNDUP(COLUMNS($G:M)/3,0))","v":"ขนมปังไก่หยองน้ำสลัด"},null,null,{"$f":"INDEX(INDIRECT(\"dProduct[ProductName]\"),ROUNDUP(COLUMNS($G:P)/3,0))","v":"ขนมปังไส้ครีมสลัด"},null,null,{"$f":"INDEX(INDIRECT(\"dProduct[ProductName]\"),ROUNDUP(COLUMNS($G:S)/3,0))","v":"ขนมปังเนยสด"},null,null,{"$f":"INDEX(INDIRECT(\"dProduct[ProductName]\"),ROUNDUP(COLUMNS($G:V)/3,0))","v":"ขนมปังไส้สังขยาเล็ก"},null,null,{"$f":"INDEX(INDIRECT(\"dProduct[ProductName]\"),ROUNDUP(COLUMNS($G:Y)/3,0))","v":"ขนมปังไส้เผือก"},null,null,{"$f":"INDEX(INDIRECT(\"dProduct[ProductName]\"),ROUNDUP(COLUMNS($G:AB)/3,0))","v":"ขนมปังไส้ถั่วแดง"},null,null,{"$f":"INDEX(INDIRECT(\"dProduct[ProductName]\"),ROUNDUP(COLUMNS($G:AE)/3,0))","v":"ขนมปังไส้ถั่วดำ"},null,null,{"$f":"INDEX(INDIRECT(\"dProduct[ProductName]\"),ROUNDUP(COLUMNS($G:AH)/3,0))","v":"ขนมปังไส้มันม่วง"},null,null,{"$f":"INDEX(INDIRECT(\"dProduct[ProductName]\"),ROUNDUP(COLUMNS($G:AK)/3,0))","v":"เค้กกล้วยหอม"},null,null,{"$f":"INDEX(INDIRECT(\"dProduct[ProductName]\"),ROUNDUP(COLUMNS($G:AN)/3,0))","v":"เค้กบัตเตอร์"},null,null,{"$f":"INDEX(INDIRECT(\"dProduct[ProductName]\"),ROUNDUP(COLUMNS($G:AQ)/3,0))","v":"ขนมปังโรลถั่วแดง"},null,null,{"$f":"INDEX(INDIRECT(\"dProduct[ProductName]\"),ROUNDUP(COLUMNS($G:AT)/3,0))","v":"ขนมปังไส้สังขยาใหญ่"},null,null,{"$f":"INDEX(INDIRECT(\"dProduct[ProductName]\"),ROUNDUP(COLUMNS($G:AW)/3,0))","v":"ขนมปังชนิดแผ่น(480กรัม)"},null,null,{"$f":"INDEX(INDIRECT(\"dProduct[ProductName]\"),ROUNDUP(COLUMNS($G:AZ)/3,0))","v":"โมจิไส้ถั่ว"},null,null,{"$f":"INDEX(INDIRECT(\"dProduct[ProductName]\"),ROUNDUP(COLUMNS($G:BC)/3,0))","v":"โมจิไส้เผือก"},null,null,{"$f":"INDEX(INDIRECT(\"dProduct[ProductName]\"),ROUNDUP(COLUMNS($G:BF)/3,0))","v":"โมจิไส้ถั่วไข่เค็ม"},null,null,{"$f":"INDEX(INDIRECT(\"dProduct[ProductName]\"),ROUNDUP(COLUMNS($G:BI)/3,0))","v":"ขนมปังพิซซ่า"},null,null,{"$f":"INDEX(INDIRECT(\"dProduct[ProductName]\"),ROUNDUP(COLUMNS($G:BL)/3,0))","v":"ขนมปังพิซซ่าปูอัดแฮม"},null,null,{"$f":"INDEX(INDIRECT(\"dProduct[ProductName]\"),ROUNDUP(COLUMNS($G:BO)/3,0))","v":"ขนมปังไส้กรอก"},null,null,{"$f":"INDEX(INDIRECT(\"dProduct[ProductName]\"),ROUNDUP(COLUMNS($G:BR)/3,0))","v":"ขนมก้านบัว"},null,null,{"$f":"INDEX(INDIRECT(\"dProduct[ProductName]\"),ROUNDUP(COLUMNS($G:BU)/3,0))","v":"พายสับปะรด"},null,null,{"$f":"INDEX(INDIRECT(\"dProduct[ProductName]\"),ROUNDUP(COLUMNS($G:BX)/3,0))","v":"พายไส้มะพร้าว"},null,null,{"$f":"INDEX(INDIRECT(\"dProduct[ProductName]\"),ROUNDUP(COLUMNS($G:CA)/3,0))","v":"ขนมปังโรลมันเทศ"},null,null,{"$f":"INDEX(INDIRECT(\"dProduct[ProductName]\"),ROUNDUP(COLUMNS($G:CD)/3,0))","v":"ขนมปังไส้ครีมสลัดน้ำพริกเผา"},null,null,{"$f":"INDEX(INDIRECT(\"dProduct[ProductName]\"),ROUNDUP(COLUMNS($G:CG)/3,0))","v":"ขนมปังไส้สังขยาไข่"},null,null,{"$f":"INDEX(INDIRECT(\"dProduct[ProductName]\"),ROUNDUP(COLUMNS($G:CJ)/3,0))","v":"ขนมปังไส้สังขยามะพร้าว"},null,null,{"$f":"INDEX(INDIRECT(\"dProduct[ProductName]\"),ROUNDUP(COLUMNS($G:CM)/3,0))","v":"ขนมปังไส้ครีมชาไทย"},null,null,{"$f":"INDEX(INDIRECT(\"dProduct[ProductName]\"),ROUNDUP(COLUMNS($G:CP)/3,0))","v":"ขนมปังโรลมันม่วง"},null,null,{"$f":"INDEX(INDIRECT(\"dProduct[ProductName]\"),ROUNDUP(COLUMNS($G:CS)/3,0))","v":"ขนมปังโรลช็อกโกแลต"},null,null,{"$f":"INDEX(INDIRECT(\"dProduct[ProductName]\"),ROUNDUP(COLUMNS($G:CV)/3,0))","v":"ขนมปังชนิดแผ่น(155กรัม)"},null,null,{"$f":"INDEX(INDIRECT(\"dProduct[ProductName]\"),ROUNDUP(COLUMNS($G:CY)/3,0))","v":"ขนมปังโรลเผือก"},null,null,{"$f":"INDEX(INDIRECT(\"dProduct[ProductName]\"),ROUNDUP(COLUMNS($G:DB)/3,0))","v":"ขนมปังไก่หยองน้ำสลัด Mini"},null,null,{"$f":"INDEX(INDIRECT(\"dProduct[ProductName]\"),ROUNDUP(COLUMNS($G:DE)/3,0))","v":"ขนมปังไส้ช็อกโกแลต"},null,null,{"$f":"INDEX(INDIRECT(\"dProduct[ProductName]\"),ROUNDUP(COLUMNS($G:DH)/3,0))","v":"ขนมปังไส้ครีมสังขยาไข่"},null,null,{"$f":"INDEX(INDIRECT(\"dProduct[ProductName]\"),ROUNDUP(COLUMNS($G:DK)/3,0))","v":"ขนมปังพิซซ่าฮาวายเอี้ยน"},null,null,{"$f":"INDEX(INDIRECT(\"dProduct[ProductName]\"),ROUNDUP(COLUMNS($G:DN)/3,0))","v":"ครัวซองต์หมูหยองน้ำสลัด"},null,null,{"$f":"INDEX(INDIRECT(\"dProduct[ProductName]\"),ROUNDUP(COLUMNS($G:DQ)/3,0))","v":"แพนเบรดไส้เผือก"},null,null,{"$f":"INDEX(INDIRECT(\"dProduct[ProductName]\"),ROUNDUP(COLUMNS($G:DT)/3,0))","v":"แพนเบรดไส้ถั่วแดง"},null,null,{"$f":"INDEX(INDIRECT(\"dProduct[ProductName]\"),ROUNDUP(COLUMNS($G:DW)/3,0))","v":"ขนมปังกรอบเนยน้ำตาล(30กรัม)"},null,null,{"$f":"INDEX(INDIRECT(\"dProduct[ProductName]\"),ROUNDUP(COLUMNS($G:DZ)/3,0))","v":"ขนมปังชนิดแผ่นโฮลวีต"},null,null,{"$f":"INDEX(INDIRECT(\"dProduct[ProductName]\"),ROUNDUP(COLUMNS($G:EC)/3,0))","v":"เค้กโรลใบเตย"},null,null,{"$f":"INDEX(INDIRECT(\"dProduct[ProductName]\"),ROUNDUP(COLUMNS($G:EF)/3,0))","v":"ขนมโมจิไส้ถั่วดำ"},null,null,{"$f":"INDEX(INDIRECT(\"dProduct[ProductName]\"),ROUNDUP(COLUMNS($G:EI)/3,0))","v":"ครัวซองต์ไส้กรอกชีส"},null,null,{"$f":"INDEX(INDIRECT(\"dProduct[ProductName]\"),ROUNDUP(COLUMNS($G:EL)/3,0))","v":"ขนมเปี๊ยะไส้ถั่ว"},null,null,{"$f":"INDEX(INDIRECT(\"dProduct[ProductName]\"),ROUNDUP(COLUMNS($G:EO)/3,0))","v":"ขนมเปี๊ยะไส้ฟัก"},null,null,{"$f":"INDEX(INDIRECT(\"dProduct[ProductName]\"),ROUNDUP(COLUMNS($G:ER)/3,0))","v":"มังกี้เค้ก"},null,null,"มูลค่าสินค้า",null,"ภาษี","รวมยอดขาย"]
[null,null,null,null,null,"ราคาขาย",{"$f":"IF(G$7=0,0,INDEX(Price_List,ROUNDUP(COLUMNS($G:G)/3,0)))","v":20},null,null,{"$f":"IF(J$7=0,0,INDEX(Price_List,ROUNDUP(COLUMNS($G:J)/3,0)))","v":20},null,null,{"$f":"IF(M$7=0,0,INDEX(Price_List,ROUNDUP(COLUMNS($G:M)/3,0)))","v":20},null,null,{"$f":"IF(P$7=0,0,INDEX(Price_List,ROUNDUP(COLUMNS($G:P)/3,0)))","v":15},null,null,{"$f":"IF(S$7=0,0,INDEX(Price_List,ROUNDUP(COLUMNS($G:S)/3,0)))","v":15},null,null,{"$f":"IF(V$7=0,0,INDEX(Price_List,ROUNDUP(COLUMNS($G:V)/3,0)))","v":10},null,null,{"$f":"IF(Y$7=0,0,INDEX(Price_List,ROUNDUP(COLUMNS($G:Y)/3,0)))","v":10},null,null,{"$f":"IF(AB$7=0,0,INDEX(Price_List,ROUNDUP(COLUMNS($G:AB)/3,0)))","v":10},null,null,{"$f":"IF(AE$7=0,0,INDEX(Price_List,ROUNDUP(COLUMNS($G:AE)/3,0)))","v":10},null,null,{"$f":"IF(AH$7=0,0,INDEX(Price_List,ROUNDUP(COLUMNS($G:AH)/3,0)))","v":10},null,null,{"$f":"IF(AK$7=0,0,INDEX(Price_List,ROUNDUP(COLUMNS($G:AK)/3,0)))","v":15},null,null,{"$f":"IF(AN$7=0,0,INDEX(Price_List,ROUNDUP(COLUMNS($G:AN)/3,0)))","v":15},null,null,{"$f":"IF(AQ$7=0,0,INDEX(Price_List,ROUNDUP(COLUMNS($G:AQ)/3,0)))","v":15},null,null,{"$f":"IF(AT$7=0,0,INDEX(Price_List,ROUNDUP(COLUMNS($G:AT)/3,0)))","v":15},null,null,{"$f":"IF(AW$7=0,0,INDEX(Price_List,ROUNDUP(COLUMNS($G:AW)/3,0)))","v":42},null,null,{"$f":"IF(AZ$7=0,0,INDEX(Price_List,ROUNDUP(COLUMNS($G:AZ)/3,0)))","v":12},null,null,{"$f":"IF(BC$7=0,0,INDEX(Price_List,ROUNDUP(COLUMNS($G:BC)/3,0)))","v":12},null,null,{"$f":"IF(BF$7=0,0,INDEX(Price_List,ROUNDUP(COLUMNS($G:BF)/3,0)))","v":15},null,null,{"$f":"IF(BI$7=0,0,INDEX(Price_List,ROUNDUP(COLUMNS($G:BI)/3,0)))","v":20},null,null,{"$f":"IF(BL$7=0,0,INDEX(Price_List,ROUNDUP(COLUMNS($G:BL)/3,0)))","v":20},null,null,{"$f":"IF(BO$7=0,0,INDEX(Price_List,ROUNDUP(COLUMNS($G:BO)/3,0)))","v":20},null,null,{"$f":"IF(BR$7=0,0,INDEX(Price_List,ROUNDUP(COLUMNS($G:BR)/3,0)))","v":15},null,null,{"$f":"IF(BU$7=0,0,INDEX(Price_List,ROUNDUP(COLUMNS($G:BU)/3,0)))","v":20},null,null,{"$f":"IF(BX$7=0,0,INDEX(Price_List,ROUNDUP(COLUMNS($G:BX)/3,0)))","v":20},null,null,{"$f":"IF(CA$7=0,0,INDEX(Price_List,ROUNDUP(COLUMNS($G:CA)/3,0)))","v":15},null,null,{"$f":"IF(CD$7=0,0,INDEX(Price_List,ROUNDUP(COLUMNS($G:CD)/3,0)))","v":15},null,null,{"$f":"IF(CG$7=0,0,INDEX(Price_List,ROUNDUP(COLUMNS($G:CG)/3,0)))","v":20},null,null,{"$f":"IF(CJ$7=0,0,INDEX(Price_List,ROUNDUP(COLUMNS($G:CJ)/3,0)))","v":20},null,null,{"$f":"IF(CM$7=0,0,INDEX(Price_List,ROUNDUP(COLUMNS($G:CM)/3,0)))","v":10},null,null,{"$f":"IF(CP$7=0,0,INDEX(Price_List,ROUNDUP(COLUMNS($G:CP)/3,0)))","v":15},null,null,{"$f":"IF(CS$7=0,0,INDEX(Price_List,ROUNDUP(COLUMNS($G:CS)/3,0)))","v":15},null,null,{"$f":"IF(CV$7=0,0,INDEX(Price_List,ROUNDUP(COLUMNS($G:CV)/3,0)))","v":16},null,null,{"$f":"IF(CY$7=0,0,INDEX(Price_List,ROUNDUP(COLUMNS($G:CY)/3,0)))","v":15},null,null,{"$f":"IF(DB$7=0,0,INDEX(Price_List,ROUNDUP(COLUMNS($G:DB)/3,0)))","v":15},null,null,{"$f":"IF(DE$7=0,0,INDEX(Price_List,ROUNDUP(COLUMNS($G:DE)/3,0)))","v":10},null,null,{"$f":"IF(DH$7=0,0,INDEX(Price_List,ROUNDUP(COLUMNS($G:DH)/3,0)))","v":10},null,null,{"$f":"IF(DK$7=0,0,INDEX(Price_List,ROUNDUP(COLUMNS($G:DK)/3,0)))","v":20},null,null,{"$f":"IF(DN$7=0,0,INDEX(Price_List,ROUNDUP(COLUMNS($G:DN)/3,0)))","v":20},null,null,{"$f":"IF(DQ$7=0,0,INDEX(Price_List,ROUNDUP(COLUMNS($G:DQ)/3,0)))","v":15},null,null,{"$f":"IF(DT$7=0,0,INDEX(Price_List,ROUNDUP(COLUMNS($G:DT)/3,0)))","v":15},null,null,{"$f":"IF(DW$7=0,0,INDEX(Price_List,ROUNDUP(COLUMNS($G:DW)/3,0)))","v":12},null,null,{"$f":"IF(DZ$7=0,0,INDEX(Price_List,ROUNDUP(COLUMNS($G:DZ)/3,0)))","v":18},null,null,{"$f":"IF(EC$7=0,0,INDEX(Price_List,ROUNDUP(COLUMNS($G:EC)/3,0)))","v":12},null,null,{"$f":"IF(EF$7=0,0,INDEX(Price_List,ROUNDUP(COLUMNS($G:EF)/3,0)))","v":12},null,null,{"$f":"IF(EI$7=0,0,INDEX(Price_List,ROUNDUP(COLUMNS($G:EI)/3,0)))","v":25},null,null,{"$f":"IF(EL$7=0,0,INDEX(Price_List,ROUNDUP(COLUMNS($G:EL)/3,0)))","v":12},null,null,{"$f":"IF(EO$7=0,0,INDEX(Price_List,ROUNDUP(COLUMNS($G:EO)/3,0)))","v":12},null,null,{"$f":"IF(ER$7=0,0,INDEX(Price_List,ROUNDUP(COLUMNS($G:ER)/3,0)))","v":12},null,null,"เงินเชื่อ","เงินสด"]
[null,null,null,null,null,"คงเหลือ(ตามบัญชี)",{"$f":"IF(G$7=0,0,INDEX(INDIRECT(Order_Rng),ROUNDUP(COLUMNS($G:G)/3,0)))","v":0},null,null,{"$f":"IF(J$7=0,0,INDEX(INDIRECT(Order_Rng),ROUNDUP(COLUMNS($G:J)/3,0)))","v":0},null,null,{"$f":"IF(M$7=0,0,INDEX(INDIRECT(Order_Rng),ROUNDUP(COLUMNS($G:M)/3,0)))","v":0},null,null,{"$f":"IF(P$7=0,0,INDEX(INDIRECT(Order_Rng),ROUNDUP(COLUMNS($G:P)/3,0)))","v":0},null,null,{"$f":"IF(S$7=0,0,INDEX(INDIRECT(Order_Rng),ROUNDUP(COLUMNS($G:S)/3,0)))","v":0},null,null,{"$f":"IF(V$7=0,0,INDEX(INDIRECT(Order_Rng),ROUNDUP(COLUMNS($G:V)/3,0)))","v":0},null,null,{"$f":"IF(Y$7=0,0,INDEX(INDIRECT(Order_Rng),ROUNDUP(COLUMNS($G:Y)/3,0)))","v":0},null,null,{"$f":"IF(AB$7=0,0,INDEX(INDIRECT(Order_Rng),ROUNDUP(COLUMNS($G:AB)/3,0)))","v":0},null,null,{"$f":"IF(AE$7=0,0,INDEX(INDIRECT(Order_Rng),ROUNDUP(COLUMNS($G:AE)/3,0)))","v":0},null,null,{"$f":"IF(AH$7=0,0,INDEX(INDIRECT(Order_Rng),ROUNDUP(COLUMNS($G:AH)/3,0)))","v":0},null,null,{"$f":"IF(AK$7=0,0,INDEX(INDIRECT(Order_Rng),ROUNDUP(COLUMNS($G:AK)/3,0)))","v":0},null,null,{"$f":"IF(AN$7=0,0,INDEX(INDIRECT(Order_Rng),ROUNDUP(COLUMNS($G:AN)/3,0)))","v":0},null,null,{"$f":"IF(AQ$7=0,0,INDEX(INDIRECT(Order_Rng),ROUNDUP(COLUMNS($G:AQ)/3,0)))","v":0},null,null,{"$f":"IF(AT$7=0,0,INDEX(INDIRECT(Order_Rng),ROUNDUP(COLUMNS($G:AT)/3,0)))","v":0},null,null,{"$f":"IF(AW$7=0,0,INDEX(INDIRECT(Order_Rng),ROUNDUP(COLUMNS($G:AW)/3,0)))","v":0},null,null,{"$f":"IF(AZ$7=0,0,INDEX(INDIRECT(Order_Rng),ROUNDUP(COLUMNS($G:AZ)/3,0)))","v":0},null,null,{"$f":"IF(BC$7=0,0,INDEX(INDIRECT(Order_Rng),ROUNDUP(COLUMNS($G:BC)/3,0)))","v":0},null,null,{"$f":"IF(BF$7=0,0,INDEX(INDIRECT(Order_Rng),ROUNDUP(COLUMNS($G:BF)/3,0)))","v":0},null,null,{"$f":"IF(BI$7=0,0,INDEX(INDIRECT(Order_Rng),ROUNDUP(COLUMNS($G:BI)/3,0)))","v":0},null,null,{"$f":"IF(BL$7=0,0,INDEX(INDIRECT(Order_Rng),ROUNDUP(COLUMNS($G:BL)/3,0)))","v":0},null,null,{"$f":"IF(BO$7=0,0,INDEX(INDIRECT(Order_Rng),ROUNDUP(COLUMNS($G:BO)/3,0)))","v":0},null,null,{"$f":"IF(BR$7=0,0,INDEX(INDIRECT(Order_Rng),ROUNDUP(COLUMNS($G:BR)/3,0)))","v":0},null,null,{"$f":"IF(BU$7=0,0,INDEX(INDIRECT(Order_Rng),ROUNDUP(COLUMNS($G:BU)/3,0)))","v":0},null,null,{"$f":"IF(BX$7=0,0,INDEX(INDIRECT(Order_Rng),ROUNDUP(COLUMNS($G:BX)/3,0)))","v":0},null,null,{"$f":"IF(CA$7=0,0,INDEX(INDIRECT(Order_Rng),ROUNDUP(COLUMNS($G:CA)/3,0)))","v":0},null,null,{"$f":"IF(CD$7=0,0,INDEX(INDIRECT(Order_Rng),ROUNDUP(COLUMNS($G:CD)/3,0)))","v":0},null,null,{"$f":"IF(CG$7=0,0,INDEX(INDIRECT(Order_Rng),ROUNDUP(COLUMNS($G:CG)/3,0)))","v":0},null,null,{"$f":"IF(CJ$7=0,0,INDEX(INDIRECT(Order_Rng),ROUNDUP(COLUMNS($G:CJ)/3,0)))","v":0},null,null,{"$f":"IF(CM$7=0,0,INDEX(INDIRECT(Order_Rng),ROUNDUP(COLUMNS($G:CM)/3,0)))","v":0},null,null,{"$f":"IF(CP$7=0,0,INDEX(INDIRECT(Order_Rng),ROUNDUP(COLUMNS($G:CP)/3,0)))","v":0},null,null,{"$f":"IF(CS$7=0,0,INDEX(INDIRECT(Order_Rng),ROUNDUP(COLUMNS($G:CS)/3,0)))","v":0},null,null,{"$f":"IF(CV$7=0,0,INDEX(INDIRECT(Order_Rng),ROUNDUP(COLUMNS($G:CV)/3,0)))","v":0},null,null,{"$f":"IF(CY$7=0,0,INDEX(INDIRECT(Order_Rng),ROUNDUP(COLUMNS($G:CY)/3,0)))","v":0},null,null,{"$f":"IF(DB$7=0,0,INDEX(INDIRECT(Order_Rng),ROUNDUP(COLUMNS($G:DB)/3,0)))","v":0},null,null,{"$f":"IF(DE$7=0,0,INDEX(INDIRECT(Order_Rng),ROUNDUP(COLUMNS($G:DE)/3,0)))","v":0},null,null,{"$f":"IF(DH$7=0,0,INDEX(INDIRECT(Order_Rng),ROUNDUP(COLUMNS($G:DH)/3,0)))","v":0},null,null,{"$f":"IF(DK$7=0,0,INDEX(INDIRECT(Order_Rng),ROUNDUP(COLUMNS($G:DK)/3,0)))","v":0},null,null,{"$f":"IF(DN$7=0,0,INDEX(INDIRECT(Order_Rng),ROUNDUP(COLUMNS($G:DN)/3,0)))","v":0},null,null,{"$f":"IF(DQ$7=0,0,INDEX(INDIRECT(Order_Rng),ROUNDUP(COLUMNS($G:DQ)/3,0)))","v":0},null,null,{"$f":"IF(DT$7=0,0,INDEX(INDIRECT(Order_Rng),ROUNDUP(COLUMNS($G:DT)/3,0)))","v":0},null,null,{"$f":"IF(DW$7=0,0,INDEX(INDIRECT(Order_Rng),ROUNDUP(COLUMNS($G:DW)/3,0)))","v":0},null,null,{"$f":"IF(DZ$7=0,0,INDEX(INDIRECT(Order_Rng),ROUNDUP(COLUMNS($G:DZ)/3,0)))","v":0},null,null,{"$f":"IF(EC$7=0,0,INDEX(INDIRECT(Order_Rng),ROUNDUP(COLUMNS($G:EC)/3,0)))","v":0},null,null,{"$f":"IF(EF$7=0,0,INDEX(INDIRECT(Order_Rng),ROUNDUP(COLUMNS($G:EF)/3,0)))","v":0},null,null,{"$f":"IF(EI$7=0,0,INDEX(INDIRECT(Order_Rng),ROUNDUP(COLUMNS($G:EI)/3,0)))","v":0},null,null,{"$f":"IF(EL$7=0,0,INDEX(INDIRECT(Order_Rng),ROUNDUP(COLUMNS($G:EL)/3,0)))","v":0},null,null,{"$f":"IF(EO$7=0,0,INDEX(INDIRECT(Order_Rng),ROUNDUP(COLUMNS($G:EO)/3,0)))","v":0},null,null,{"$f":"IF(ER$7=0,0,INDEX(INDIRECT(Order_Rng),ROUNDUP(COLUMNS($G:ER)/3,0)))","v":0}]
[{"$f":"IF(OR($B10=\"\",COUNTIF($B$10:$B10,$B10)>1,LEN(TRIM($B10))<>10,ISNUMBER(--MID(TRIM($B10),5,1))),\"-\",MAX(COUNT($A$9:$A9)+1))","v":"-"}]
[{"$f":"IF(OR($B11=\"\",COUNTIF($B$10:$B11,$B11)>1,LEN(TRIM($B11))<>10,ISNUMBER(--MID(TRIM($B11),5,1))),\"-\",MAX(COUNT($A$9:$A10)+1))","v":"-"},null,null,null,{"$f":"IF(D11=\"\",\"\",D11-D10)","v":""}]
[{"$f":"IF(OR($B12=\"\",COUNTIF($B$10:$B12,$B12)>1,LEN(TRIM($B12))<>10,ISNUMBER(--MID(TRIM($B12),5,1))),\"-\",MAX(COUNT($A$9:$A11)+1))","v":"-"},null,null,null,{"$f":"IF(D12=\"\",\"\",D12-D11)","v":""}]
[{"$f":"IF(OR($B13=\"\",COUNTIF($B$10:$B13,$B13)>1,LEN(TRIM($B13))<>10,ISNUMBER(--MID(TRIM($B13),5,1))),\"-\",MAX(COUNT($A$9:$A12)+1))","v":"-"},null,null,null,""]
[{"$f":"IF(OR($B14=\"\",COUNTIF($B$10:$B14,$B14)>1,LEN(TRIM($B14))<>10,ISNUMBER(--MID(TRIM($B14),5,1))),\"-\",MAX(COUNT($A$9:$A13)+1))","v":"-"},null,null,null,""]
[{"$f":"IF(OR($B15=\"\",COUNTIF($B$10:$B15,$B15)>1,LEN(TRIM($B15))<>10,ISNUMBER(--MID(TRIM($B15),5,1))),\"-\",MAX(COUNT($A$9:$A14)+1))","v":"-"},null,null,null,""]
[{"$f":"IF(OR($B16=\"\",COUNTIF($B$10:$B16,$B16)>1,LEN(TRIM($B16))<>10,ISNUMBER(--MID(TRIM($B16),5,1))),\"-\",MAX(COUNT($A$9:$A15)+1))","v":"-"},null,null,null,""]
[{"$f":"IF(OR($B17=\"\",COUNTIF($B$10:$B17,$B17)>1,LEN(TRIM($B17))<>10,ISNUMBER(--MID(TRIM($B17),5,1))),\"-\",MAX(COUNT($A$9:$A16)+1))","v":"-"},null,null,null,""]
[{"$f":"IF(OR($B18=\"\",COUNTIF($B$10:$B18,$B18)>1,LEN(TRIM($B18))<>10,ISNUMBER(--MID(TRIM($B18),5,1))),\"-\",MAX(COUNT($A$9:$A17)+1))","v":"-"},null,null,null,""]
[{"$f":"IF(OR($B19=\"\",COUNTIF($B$10:$B19,$B19)>1,LEN(TRIM($B19))<>10,ISNUMBER(--MID(TRIM($B19),5,1))),\"-\",MAX(COUNT($A$9:$A18)+1))","v":"-"},null,null,null,""]
[{"$f":"IF(OR($B20=\"\",COUNTIF($B$10:$B20,$B20)>1,LEN(TRIM($B20))<>10,ISNUMBER(--MID(TRIM($B20),5,1))),\"-\",MAX(COUNT($A$9:$A19)+1))","v":"-"},null,null,null,""]
[{"$f":"IF(OR($B21=\"\",COUNTIF($B$10:$B21,$B21)>1,LEN(TRIM($B21))<>10,ISNUMBER(--MID(TRIM($B21),5,1))),\"-\",MAX(COUNT($A$9:$A20)+1))","v":"-"},null,null,null,""]
[{"$f":"IF(OR($B22=\"\",COUNTIF($B$10:$B22,$B22)>1,LEN(TRIM($B22))<>10,ISNUMBER(--MID(TRIM($B22),5,1))),\"-\",MAX(COUNT($A$9:$A21)+1))","v":"-"},null,null,null,""]
[{"$f":"IF(OR($B23=\"\",COUNTIF($B$10:$B23,$B23)>1,LEN(TRIM($B23))<>10,ISNUMBER(--MID(TRIM($B23),5,1))),\"-\",MAX(COUNT($A$9:$A22)+1))","v":"-"},null,null,null,""]
[{"$f":"IF(OR($B24=\"\",COUNTIF($B$10:$B24,$B24)>1,LEN(TRIM($B24))<>10,ISNUMBER(--MID(TRIM($B24),5,1))),\"-\",MAX(COUNT($A$9:$A23)+1))","v":"-"},null,null,null,""]
[{"$f":"IF(OR($B25=\"\",COUNTIF($B$10:$B25,$B25)>1,LEN(TRIM($B25))<>10,ISNUMBER(--MID(TRIM($B25),5,1))),\"-\",MAX(COUNT($A$9:$A24)+1))","v":"-"},null,null,null,""]
[{"$f":"IF(OR($B26=\"\",COUNTIF($B$10:$B26,$B26)>1,LEN(TRIM($B26))<>10,ISNUMBER(--MID(TRIM($B26),5,1))),\"-\",MAX(COUNT($A$9:$A25)+1))","v":"-"},null,null,null,""]
[{"$f":"IF(OR($B27=\"\",COUNTIF($B$10:$B27,$B27)>1,LEN(TRIM($B27))<>10,ISNUMBER(--MID(TRIM($B27),5,1))),\"-\",MAX(COUNT($A$9:$A26)+1))","v":"-"},null,null,null,""]
[{"$f":"IF(OR($B28=\"\",COUNTIF($B$10:$B28,$B28)>1,LEN(TRIM($B28))<>10,ISNUMBER(--MID(TRIM($B28),5,1))),\"-\",MAX(COUNT($A$9:$A27)+1))","v":"-"},null,null,null,""]
[{"$f":"IF(OR($B29=\"\",COUNTIF($B$10:$B29,$B29)>1,LEN(TRIM($B29))<>10,ISNUMBER(--MID(TRIM($B29),5,1))),\"-\",MAX(COUNT($A$9:$A28)+1))","v":"-"},null,null,null,""]
[{"$f":"IF(OR($B30=\"\",COUNTIF($B$10:$B30,$B30)>1,LEN(TRIM($B30))<>10,ISNUMBER(--MID(TRIM($B30),5,1))),\"-\",MAX(COUNT($A$9:$A29)+1))","v":"-"},null,null,null,""]
[{"$f":"IF(OR($B31=\"\",COUNTIF($B$10:$B31,$B31)>1,LEN(TRIM($B31))<>10,ISNUMBER(--MID(TRIM($B31),5,1))),\"-\",MAX(COUNT($A$9:$A30)+1))","v":"-"},null,null,null,""]
[{"$f":"IF(OR($B32=\"\",COUNTIF($B$10:$B32,$B32)>1,LEN(TRIM($B32))<>10,ISNUMBER(--MID(TRIM($B32),5,1))),\"-\",MAX(COUNT($A$9:$A31)+1))","v":"-"},null,null,null,""]
[{"$f":"IF(OR($B33=\"\",COUNTIF($B$10:$B33,$B33)>1,LEN(TRIM($B33))<>10,ISNUMBER(--MID(TRIM($B33),5,1))),\"-\",MAX(COUNT($A$9:$A32)+1))","v":"-"},null,null,null,""]
[{"$f":"IF(OR($B34=\"\",COUNTIF($B$10:$B34,$B34)>1,LEN(TRIM($B34))<>10,ISNUMBER(--MID(TRIM($B34),5,1))),\"-\",MAX(COUNT($A$9:$A33)+1))","v":"-"},null,null,null,""]
[{"$f":"IF(OR($B35=\"\",COUNTIF($B$10:$B35,$B35)>1,LEN(TRIM($B35))<>10,ISNUMBER(--MID(TRIM($B35),5,1))),\"-\",MAX(COUNT($A$9:$A34)+1))","v":"-"},null,null,null,""]
[{"$f":"IF(OR($B36=\"\",COUNTIF($B$10:$B36,$B36)>1,LEN(TRIM($B36))<>10,ISNUMBER(--MID(TRIM($B36),5,1))),\"-\",MAX(COUNT($A$9:$A35)+1))","v":"-"},null,null,null,""]
[{"$f":"IF(OR($B37=\"\",COUNTIF($B$10:$B37,$B37)>1,LEN(TRIM($B37))<>10,ISNUMBER(--MID(TRIM($B37),5,1))),\"-\",MAX(COUNT($A$9:$A36)+1))","v":"-"},null,null,null,""]
[{"$f":"IF(OR($B38=\"\",COUNTIF($B$10:$B38,$B38)>1,LEN(TRIM($B38))<>10,ISNUMBER(--MID(TRIM($B38),5,1))),\"-\",MAX(COUNT($A$9:$A37)+1))","v":"-"},null,null,null,""]
[{"$f":"IF(OR($B39=\"\",COUNTIF($B$10:$B39,$B39)>1,LEN(TRIM($B39))<>10,ISNUMBER(--MID(TRIM($B39),5,1))),\"-\",MAX(COUNT($A$9:$A38)+1))","v":"-"},null,null,null,""]
[{"$f":"IF(OR($B40=\"\",COUNTIF($B$10:$B40,$B40)>1,LEN(TRIM($B40))<>10,ISNUMBER(--MID(TRIM($B40),5,1))),\"-\",MAX(COUNT($A$9:$A39)+1))","v":"-"},null,null,null,""]
[{"$f":"IF(OR($B41=\"\",COUNTIF($B$10:$B41,$B41)>1,LEN(TRIM($B41))<>10,ISNUMBER(--MID(TRIM($B41),5,1))),\"-\",MAX(COUNT($A$9:$A40)+1))","v":"-"},null,null,null,""]
[{"$f":"IF(OR($B42=\"\",COUNTIF($B$10:$B42,$B42)>1,LEN(TRIM($B42))<>10,ISNUMBER(--MID(TRIM($B42),5,1))),\"-\",MAX(COUNT($A$9:$A41)+1))","v":"-"},null,null,null,""]
[{"$f":"IF(OR($B43=\"\",COUNTIF($B$10:$B43,$B43)>1,LEN(TRIM($B43))<>10,ISNUMBER(--MID(TRIM($B43),5,1))),\"-\",MAX(COUNT($A$9:$A42)+1))","v":"-"},null,null,null,""]
[{"$f":"IF(OR($B44=\"\",COUNTIF($B$10:$B44,$B44)>1,LEN(TRIM($B44))<>10,ISNUMBER(--MID(TRIM($B44),5,1))),\"-\",MAX(COUNT($A$9:$A43)+1))","v":"-"},null,null,null,""]
[{"$f":"IF(OR($B45=\"\",COUNTIF($B$10:$B45,$B45)>1,LEN(TRIM($B45))<>10,ISNUMBER(--MID(TRIM($B45),5,1))),\"-\",MAX(COUNT($A$9:$A44)+1))","v":"-"},null,null,null,""]
[{"$f":"IF(OR($B46=\"\",COUNTIF($B$10:$B46,$B46)>1,LEN(TRIM($B46))<>10,ISNUMBER(--MID(TRIM($B46),5,1))),\"-\",MAX(COUNT($A$9:$A45)+1))","v":"-"},null,null,null,""]
[{"$f":"IF(OR($B47=\"\",COUNTIF($B$10:$B47,$B47)>1,LEN(TRIM($B47))<>10,ISNUMBER(--MID(TRIM($B47),5,1))),\"-\",MAX(COUNT($A$9:$A46)+1))","v":"-"},null,null,null,""]
[{"$f":"IF(OR($B48=\"\",COUNTIF($B$10:$B48,$B48)>1,LEN(TRIM($B48))<>10,ISNUMBER(--MID(TRIM($B48),5,1))),\"-\",MAX(COUNT($A$9:$A47)+1))","v":"-"},null,null,null,""]
[{"$f":"IF(OR($B49=\"\",COUNTIF($B$10:$B49,$B49)>1,LEN(TRIM($B49))<>10,ISNUMBER(--MID(TRIM($B49),5,1))),\"-\",MAX(COUNT($A$9:$A48)+1))","v":"-"},null,null,null,""]
[{"$f":"IF(OR($B50=\"\",COUNTIF($B$10:$B50,$B50)>1,LEN(TRIM($B50))<>10,ISNUMBER(--MID(TRIM($B50),5,1))),\"-\",MAX(COUNT($A$9:$A49)+1))","v":"-"},null,null,null,""]
[{"$f":"IF(OR($B51=\"\",COUNTIF($B$10:$B51,$B51)>1,LEN(TRIM($B51))<>10,ISNUMBER(--MID(TRIM($B51),5,1))),\"-\",MAX(COUNT($A$9:$A50)+1))","v":"-"},null,null,null,""]
[{"$f":"IF(OR($B52=\"\",COUNTIF($B$10:$B52,$B52)>1,LEN(TRIM($B52))<>10,ISNUMBER(--MID(TRIM($B52),5,1))),\"-\",MAX(COUNT($A$9:$A51)+1))","v":"-"},null,null,null,""]
[{"$f":"IF(OR($B53=\"\",COUNTIF($B$10:$B53,$B53)>1,LEN(TRIM($B53))<>10,ISNUMBER(--MID(TRIM($B53),5,1))),\"-\",MAX(COUNT($A$9:$A52)+1))","v":"-"},null,null,null,""]
[{"$f":"IF(OR($B54=\"\",COUNTIF($B$10:$B54,$B54)>1,LEN(TRIM($B54))<>10,ISNUMBER(--MID(TRIM($B54),5,1))),\"-\",MAX(COUNT($A$9:$A53)+1))","v":"-"},null,null,null,""]
[{"$f":"IF(OR($B55=\"\",COUNTIF($B$10:$B55,$B55)>1,LEN(TRIM($B55))<>10,ISNUMBER(--MID(TRIM($B55),5,1))),\"-\",MAX(COUNT($A$9:$A54)+1))","v":"-"},null,null,null,""]
[{"$f":"IF(OR($B56=\"\",COUNTIF($B$10:$B56,$B56)>1,LEN(TRIM($B56))<>10,ISNUMBER(--MID(TRIM($B56),5,1))),\"-\",MAX(COUNT($A$9:$A55)+1))","v":"-"},null,null,null,""]
[{"$f":"IF(OR($B57=\"\",COUNTIF($B$10:$B57,$B57)>1,LEN(TRIM($B57))<>10,ISNUMBER(--MID(TRIM($B57),5,1))),\"-\",MAX(COUNT($A$9:$A56)+1))","v":"-"},null,null,null,""]
[{"$f":"IF(OR($B58=\"\",COUNTIF($B$10:$B58,$B58)>1,LEN(TRIM($B58))<>10,ISNUMBER(--MID(TRIM($B58),5,1))),\"-\",MAX(COUNT($A$9:$A57)+1))","v":"-"},null,null,null,""]
[{"$f":"IF(OR($B59=\"\",COUNTIF($B$10:$B59,$B59)>1,LEN(TRIM($B59))<>10,ISNUMBER(--MID(TRIM($B59),5,1))),\"-\",MAX(COUNT($A$9:$A58)+1))","v":"-"},null,null,null,""]
[{"$f":"IF(OR($B60=\"\",COUNTIF($B$10:$B60,$B60)>1,LEN(TRIM($B60))<>10,ISNUMBER(--MID(TRIM($B60),5,1))),\"-\",MAX(COUNT($A$9:$A59)+1))","v":"-"},null,null,null,""]
[{"$f":"IF(OR($B61=\"\",COUNTIF($B$10:$B61,$B61)>1,LEN(TRIM($B61))<>10,ISNUMBER(--MID(TRIM($B61),5,1))),\"-\",MAX(COUNT($A$9:$A60)+1))","v":"-"},null,null,null,""]
[{"$f":"IF(OR($B62=\"\",COUNTIF($B$10:$B62,$B62)>1,LEN(TRIM($B62))<>10,ISNUMBER(--MID(TRIM($B62),5,1))),\"-\",MAX(COUNT($A$9:$A61)+1))","v":"-"},null,null,null,""]
[{"$f":"IF(OR($B63=\"\",COUNTIF($B$10:$B63,$B63)>1,LEN(TRIM($B63))<>10,ISNUMBER(--MID(TRIM($B63),5,1))),\"-\",MAX(COUNT($A$9:$A62)+1))","v":"-"},null,null,null,""]
[{"$f":"IF(OR($B64=\"\",COUNTIF($B$10:$B64,$B64)>1,LEN(TRIM($B64))<>10,ISNUMBER(--MID(TRIM($B64),5,1))),\"-\",MAX(COUNT($A$9:$A63)+1))","v":"-"},null,null,null,""]
[{"$f":"IF(OR($B65=\"\",COUNTIF($B$10:$B65,$B65)>1,LEN(TRIM($B65))<>10,ISNUMBER(--MID(TRIM($B65),5,1))),\"-\",MAX(COUNT($A$9:$A64)+1))","v":"-"},null,null,null,""]
[{"$f":"IF(OR($B66=\"\",COUNTIF($B$10:$B66,$B66)>1,LEN(TRIM($B66))<>10,ISNUMBER(--MID(TRIM($B66),5,1))),\"-\",MAX(COUNT($A$9:$A65)+1))","v":"-"},null,null,null,""]
[{"$f":"IF(OR($B67=\"\",COUNTIF($B$10:$B67,$B67)>1,LEN(TRIM($B67))<>10,ISNUMBER(--MID(TRIM($B67),5,1))),\"-\",MAX(COUNT($A$9:$A66)+1))","v":"-"},null,null,null,""]
[{"$f":"IF(OR($B68=\"\",COUNTIF($B$10:$B68,$B68)>1,LEN(TRIM($B68))<>10,ISNUMBER(--MID(TRIM($B68),5,1))),\"-\",MAX(COUNT($A$9:$A67)+1))","v":"-"},null,null,null,""]
[{"$f":"IF(OR($B69=\"\",COUNTIF($B$10:$B69,$B69)>1,LEN(TRIM($B69))<>10,ISNUMBER(--MID(TRIM($B69),5,1))),\"-\",MAX(COUNT($A$9:$A68)+1))","v":"-"},null,null,null,""]
[{"$f":"IF(OR($B70=\"\",COUNTIF($B$10:$B70,$B70)>1,LEN(TRIM($B70))<>10,ISNUMBER(--MID(TRIM($B70),5,1))),\"-\",MAX(COUNT($A$9:$A69)+1))","v":"-"},null,null,null,""]
[{"$f":"IF(OR($B71=\"\",COUNTIF($B$10:$B71,$B71)>1,LEN(TRIM($B71))<>10,ISNUMBER(--MID(TRIM($B71),5,1))),\"-\",MAX(COUNT($A$9:$A70)+1))","v":"-"},null,null,null,""]
[{"$f":"IF(OR($B72=\"\",COUNTIF($B$10:$B72,$B72)>1,LEN(TRIM($B72))<>10,ISNUMBER(--MID(TRIM($B72),5,1))),\"-\",MAX(COUNT($A$9:$A71)+1))","v":"-"},null,null,null,""]
[{"$f":"IF(OR($B73=\"\",COUNTIF($B$10:$B73,$B73)>1,LEN(TRIM($B73))<>10,ISNUMBER(--MID(TRIM($B73),5,1))),\"-\",MAX(COUNT($A$9:$A72)+1))","v":"-"},null,null,null,""]
[{"$f":"IF(OR($B74=\"\",COUNTIF($B$10:$B74,$B74)>1,LEN(TRIM($B74))<>10,ISNUMBER(--MID(TRIM($B74),5,1))),\"-\",MAX(COUNT($A$9:$A73)+1))","v":"-"},null,null,null,""]
[{"$f":"IF(OR($B75=\"\",COUNTIF($B$10:$B75,$B75)>1,LEN(TRIM($B75))<>10,ISNUMBER(--MID(TRIM($B75),5,1))),\"-\",MAX(COUNT($A$9:$A74)+1))","v":"-"},null,null,null,""]
[{"$f":"IF(OR($B76=\"\",COUNTIF($B$10:$B76,$B76)>1,LEN(TRIM($B76))<>10,ISNUMBER(--MID(TRIM($B76),5,1))),\"-\",MAX(COUNT($A$9:$A75)+1))","v":"-"},null,null,null,{"$f":"IF(D76=\"\",\"\",D76-D75)","v":""}]
[{"$f":"IF(OR($B77=\"\",COUNTIF($B$10:$B77,$B77)>1,LEN(TRIM($B77))<>10,ISNUMBER(--MID(TRIM($B77),5,1))),\"-\",MAX(COUNT($A$9:$A76)+1))","v":"-"},null,null,null,""]
[{"$f":"IF(OR($B78=\"\",COUNTIF($B$10:$B78,$B78)>1,LEN(TRIM($B78))<>10,ISNUMBER(--MID(TRIM($B78),5,1))),\"-\",MAX(COUNT($A$9:$A77)+1))","v":"-"},null,null,null,""]
[{"$f":"IF(OR($B79=\"\",COUNTIF($B$10:$B79,$B79)>1,LEN(TRIM($B79))<>10,ISNUMBER(--MID(TRIM($B79),5,1))),\"-\",MAX(COUNT($A$9:$A78)+1))","v":"-"},null,null,null,""]
["รวมของขาย|ของเสีย|เหลือบนเชลฟ์",null,null,null,null,null,{"$f":"SUM(G10:G79)","v":0},0,0,{"$f":"SUM(J10:J79)","v":0},0,0,0,0,0,0,0,0,0,0,0,0,0,0,0,0,0,0,0,0,0,0,0,0,0,0,0,0,0,0,0,0,0,0,0,0,0,0,0,0,0,0,0,0,0,0,0,0,0,0,0,0,0,0,0,0,0,0,0,0,0,0,0,{"$f":"SUM(BV10:BV79)","v":0},0,0,0,0,0,0,0,0,0,0,0,0,0,0,0,0,0,0,0,0,0,0,0,0,0,0,0,0,0,0,0,0,0,0,0,0,0,0,0,0,0,0,0,0,0,0,0,0,0,0,0,0,0,0,0,0,0,0,0,0,0,{"$f":"SUM(EF10:EF79)","v":0},0,0,{"$f":"SUM(EI10:EI79)","v":0},0,0,0,0,0,{"$f":"SUM(EO10:EO79)","v":0},0,0,0,0,0,"รวมเงินเชื่อ","รวมเงินสด","ภาษี","รวมยอดขาย"]
["ของเหลือ",null,null,null,null,null,{"$f":"G80+H80-G9","v":0},null,null,{"$f":"J80+K80-J9","v":0},null,null,{"$f":"M80+N80-M9","v":0},null,null,{"$f":"P80+Q80-P9","v":0},null,null,{"$f":"S80+T80-S9","v":0},null,null,{"$f":"V80+W80-V9","v":0},null,null,{"$f":"Y80+Z80-Y9","v":0},null,null,{"$f":"AB80+AC80-AB9","v":0},null,null,{"$f":"AE80+AF80-AE9","v":0},null,null,{"$f":"AH80+AI80-AH9","v":0},null,null,{"$f":"AK80+AL80-AK9","v":0},null,null,{"$f":"AN80+AO80-AN9","v":0},null,null,{"$f":"AQ80+AR80-AQ9","v":0},null,null,{"$f":"AT80+AU80-AT9","v":0},null,null,{"$f":"AW80+AX80-AW9","v":0},null,null,{"$f":"AZ80+BA80-AZ9","v":0},null,null,{"$f":"BC80+BD80-BC9","v":0},null,null,{"$f":"BF80+BG80-BF9","v":0},null,null,{"$f":"BI80+BJ80-BI9","v":0},null,null,{"$f":"BL80+BM80-BL9","v":0},null,null,{"$f":"BO80+BP80-BO9","v":0},null,null,{"$f":"BR80+BS80-BR9","v":0},null,null,{"$f":"BU80+BV80-BU9","v":0},null,null,{"$f":"BX80+BY80-BX9","v":0},null,null,{"$f":"CA80+CB80-CA9","v":0},null,null,{"$f":"CD80+CE80-CD9","v":0},null,null,{"$f":"CG80+CH80-CG9","v":0},null,null,{"$f":"CJ80+CK80-CJ9","v":0},null,null,{"$f":"CM80+CN80-CM9","v":0},null,null,{"$f":"CP80+CQ80-CP9","v":0},null,null,{"$f":"CS80+CT80-CS9","v":0},null,null,{"$f":"CV80+CW80-CV9","v":0},null,null,{"$f":"CY80+CZ80-CY9","v":0},null,null,{"$f":"DB80+DC80-DB9","v":0},null,null,{"$f":"DE80+DF80-DE9","v":0},null,null,{"$f":"DH80+DI80-DH9","v":0},null,null,{"$f":"DK80+DL80-DK9","v":0},null,null,{"$f":"DN80+DO80-DN9","v":0},null,null,{"$f":"DQ80+DR80-DQ9","v":0},null,null,{"$f":"DT80+DU80-DT9","v":0},null,null,{"$f":"DW80+DX80-DW9","v":0},null,null,{"$f":"DZ80+EA80-DZ9","v":0},null,null,{"$f":"EC80+ED80-EC9","v":0},null,null,{"$f":"EF80+EG80-EF9","v":0},null,null,{"$f":"EI80+EJ80-EI9","v":0},null,null,{"$f":"EL80+EM80-EL9","v":0},null,null,{"$f":"EO80+EP80-EO9","v":0},null,null,{"$f":"ER80+ES80-ER9","v":0},null,null,{"$f":"SUM(EU10:EU79)","v":0},{"$f":"SUM(EV10:EV79)","v":0},{"$f":"SUM(EW10:EW79)","v":0},{"$f":"SUM(EX10:EX79)","v":0}]
["เฉลี่ย",null,null,"เหลือ/เสีย(จริง)",null,null,{"$f":"INDIRECT(\"F\"&ROW($G$87)+ROUNDUP(COLUMNS($G:G)/3,0))","v":0},{"$f":"INDIRECT(\"G\"&ROW($G$87)+ROUNDUP(COLUMNS($G:H)/3,0))","v":0},null,{"$f":"INDIRECT(\"F\"&ROW($G$87)+ROUNDUP(COLUMNS($G:J)/3,0))","v":0},{"$f":"INDIRECT(\"G\"&ROW($G$87)+ROUNDUP(COLUMNS($G:K)/3,0))","v":0},null,{"$f":"INDIRECT(\"F\"&ROW($G$87)+ROUNDUP(COLUMNS($G:M)/3,0))","v":0},{"$f":"INDIRECT(\"G\"&ROW($G$87)+ROUNDUP(COLUMNS($G:N)/3,0))","v":0},null,{"$f":"INDIRECT(\"F\"&ROW($G$87)+ROUNDUP(COLUMNS($G:P)/3,0))","v":0},{"$f":"INDIRECT(\"G\"&ROW($G$87)+ROUNDUP(COLUMNS($G:Q)/3,0))","v":0},null,{"$f":"INDIRECT(\"F\"&ROW($G$87)+ROUNDUP(COLUMNS($G:S)/3,0))","v":0},{"$f":"INDIRECT(\"G\"&ROW($G$87)+ROUNDUP(COLUMNS($G:T)/3,0))","v":0},null,{"$f":"INDIRECT(\"F\"&ROW($G$87)+ROUNDUP(COLUMNS($G:V)/3,0))","v":0},{"$f":"INDIRECT(\"G\"&ROW($G$87)+ROUNDUP(COLUMNS($G:W)/3,0))","v":0},null,{"$f":"INDIRECT(\"F\"&ROW($G$87)+ROUNDUP(COLUMNS($G:Y)/3,0))","v":0},{"$f":"INDIRECT(\"G\"&ROW($G$87)+ROUNDUP(COLUMNS($G:Z)/3,0))","v":0},null,{"$f":"INDIRECT(\"F\"&ROW($G$87)+ROUNDUP(COLUMNS($G:AB)/3,0))","v":0},{"$f":"INDIRECT(\"G\"&ROW($G$87)+ROUNDUP(COLUMNS($G:AC)/3,0))","v":0},null,{"$f":"INDIRECT(\"F\"&ROW($G$87)+ROUNDUP(COLUMNS($G:AE)/3,0))","v":0},{"$f":"INDIRECT(\"G\"&ROW($G$87)+ROUNDUP(COLUMNS($G:AF)/3,0))","v":0},null,{"$f":"INDIRECT(\"F\"&ROW($G$87)+ROUNDUP(COLUMNS($G:AH)/3,0))","v":0},{"$f":"INDIRECT(\"G\"&ROW($G$87)+ROUNDUP(COLUMNS($G:AI)/3,0))","v":0},null,{"$f":"INDIRECT(\"F\"&ROW($G$87)+ROUNDUP(COLUMNS($G:AK)/3,0))","v":0},{"$f":"INDIRECT(\"G\"&ROW($G$87)+ROUNDUP(COLUMNS($G:AL)/3,0))","v":0},null,{"$f":"INDIRECT(\"F\"&ROW($G$87)+ROUNDUP(COLUMNS($G:AN)/3,0))","v":0},{"$f":"INDIRECT(\"G\"&ROW($G$87)+ROUNDUP(COLUMNS($G:AO)/3,0))","v":0},null,{"$f":"INDIRECT(\"F\"&ROW($G$87)+ROUNDUP(COLUMNS($G:AQ)/3,0))","v":0},{"$f":"INDIRECT(\"G\"&ROW($G$87)+ROUNDUP(COLUMNS($G:AR)/3,0))","v":0},null,{"$f":"INDIRECT(\"F\"&ROW($G$87)+ROUNDUP(COLUMNS($G:AT)/3,0))","v":0},{"$f":"INDIRECT(\"G\"&ROW($G$87)+ROUNDUP(COLUMNS($G:AU)/3,0))","v":0},null,{"$f":"INDIRECT(\"F\"&ROW($G$87)+ROUNDUP(COLUMNS($G:AW)/3,0))","v":0},{"$f":"INDIRECT(\"G\"&ROW($G$87)+ROUNDUP(COLUMNS($G:AX)/3,0))","v":0},null,{"$f":"INDIRECT(\"F\"&ROW($G$87)+ROUNDUP(COLUMNS($G:AZ)/3,0))","v":0},{"$f":"INDIRECT(\"G\"&ROW($G$87)+ROUNDUP(COLUMNS($G:BA)/3,0))","v":0},null,{"$f":"INDIRECT(\"F\"&ROW($G$87)+ROUNDUP(COLUMNS($G:BC)/3,0))","v":0},{"$f":"INDIRECT(\"G\"&ROW($G$87)+ROUNDUP(COLUMNS($G:BD)/3,0))","v":0},null,{"$f":"INDIRECT(\"F\"&ROW($G$87)+ROUNDUP(COLUMNS($G:BF)/3,0))","v":0},{"$f":"INDIRECT(\"G\"&ROW($G$87)+ROUNDUP(COLUMNS($G:BG)/3,0))","v":0},null,{"$f":"INDIRECT(\"F\"&ROW($G$87)+ROUNDUP(COLUMNS($G:BI)/3,0))","v":0},{"$f":"INDIRECT(\"G\"&ROW($G$87)+ROUNDUP(COLUMNS($G:BJ)/3,0))","v":0},null,{"$f":"INDIRECT(\"F\"&ROW($G$87)+ROUNDUP(COLUMNS($G:BL)/3,0))","v":0},{"$f":"INDIRECT(\"G\"&ROW($G$87)+ROUNDUP(COLUMNS($G:BM)/3,0))","v":0},null,{"$f":"INDIRECT(\"F\"&ROW($G$87)+ROUNDUP(COLUMNS($G:BO)/3,0))","v":0},{"$f":"INDIRECT(\"G\"&ROW($G$87)+ROUNDUP(COLUMNS($G:BP)/3,0))","v":0},null,{"$f":"INDIRECT(\"F\"&ROW($G$87)+ROUNDUP(COLUMNS($G:BR)/3,0))","v":0},{"$f":"INDIRECT(\"G\"&ROW($G$87)+ROUNDUP(COLUMNS($G:BS)/3,0))","v":0},null,{"$f":"INDIRECT(\"F\"&ROW($G$87)+ROUNDUP(COLUMNS($G:BU)/3,0))","v":0},{"$f":"INDIRECT(\"G\"&ROW($G$87)+ROUNDUP(COLUMNS($G:BV)/3,0))","v":0},null,{"$f":"INDIRECT(\"F\"&ROW($G$87)+ROUNDUP(COLUMNS($G:BX)/3,0))","v":0},{"$f":"INDIRECT(\"G\"&ROW($G$87)+ROUNDUP(COLUMNS($G:BY)/3,0))","v":0},null,{"$f":"INDIRECT(\"F\"&ROW($G$87)+ROUNDUP(COLUMNS($G:CA)/3,0))","v":0},{"$f":"INDIRECT(\"G\"&ROW($G$87)+ROUNDUP(COLUMNS($G:CB)/3,0))","v":0},null,{"$f":"INDIRECT(\"F\"&ROW($G$87)+ROUNDUP(COLUMNS($G:CD)/3,0))","v":0},{"$f":"INDIRECT(\"G\"&ROW($G$87)+ROUNDUP(COLUMNS($G:CE)/3,0))","v":0},null,{"$f":"INDIRECT(\"F\"&ROW($G$87)+ROUNDUP(COLUMNS($G:CG)/3,0))","v":0},{"$f":"INDIRECT(\"G\"&ROW($G$87)+ROUNDUP(COLUMNS($G:CH)/3,0))","v":0},null,{"$f":"INDIRECT(\"F\"&ROW($G$87)+ROUNDUP(COLUMNS($G:CJ)/3,0))","v":0},{"$f":"INDIRECT(\"G\"&ROW($G$87)+ROUNDUP(COLUMNS($G:CK)/3,0))","v":0},null,{"$f":"INDIRECT(\"F\"&ROW($G$87)+ROUNDUP(COLUMNS($G:CM)/3,0))","v":0},{"$f":"INDIRECT(\"G\"&ROW($G$87)+ROUNDUP(COLUMNS($G:CN)/3,0))","v":0},null,{"$f":"INDIRECT(\"F\"&ROW($G$87)+ROUNDUP(COLUMNS($G:CP)/3,0))","v":0},{"$f":"INDIRECT(\"G\"&ROW($G$87)+ROUNDUP(COLUMNS($G:CQ)/3,0))","v":0},null,{"$f":"INDIRECT(\"F\"&ROW($G$87)+ROUNDUP(COLUMNS($G:CS)/3,0))","v":0},{"$f":"INDIRECT(\"G\"&ROW($G$87)+ROUNDUP(COLUMNS($G:CT)/3,0))","v":0},null,{"$f":"INDIRECT(\"F\"&ROW($G$87)+ROUNDUP(COLUMNS($G:CV)/3,0))","v":0},{"$f":"INDIRECT(\"G\"&ROW($G$87)+ROUNDUP(COLUMNS($G:CW)/3,0))","v":0},null,{"$f":"INDIRECT(\"F\"&ROW($G$87)+ROUNDUP(COLUMNS($G:CY)/3,0))","v":0},{"$f":"INDIRECT(\"G\"&ROW($G$87)+ROUNDUP(COLUMNS($G:CZ)/3,0))","v":0},null,{"$f":"INDIRECT(\"F\"&ROW($G$87)+ROUNDUP(COLUMNS($G:DB)/3,0))","v":0},{"$f":"INDIRECT(\"G\"&ROW($G$87)+ROUNDUP(COLUMNS($G:DC)/3,0))","v":0},null,{"$f":"INDIRECT(\"F\"&ROW($G$87)+ROUNDUP(COLUMNS($G:DE)/3,0))","v":0},{"$f":"INDIRECT(\"G\"&ROW($G$87)+ROUNDUP(COLUMNS($G:DF)/3,0))","v":0},null,{"$f":"INDIRECT(\"F\"&ROW($G$87)+ROUNDUP(COLUMNS($G:DH)/3,0))","v":0},{"$f":"INDIRECT(\"G\"&ROW($G$87)+ROUNDUP(COLUMNS($G:DI)/3,0))","v":0},null,{"$f":"INDIRECT(\"F\"&ROW($G$87)+ROUNDUP(COLUMNS($G:DK)/3,0))","v":0},{"$f":"INDIRECT(\"G\"&ROW($G$87)+ROUNDUP(COLUMNS($G:DL)/3,0))","v":0},null,{"$f":"INDIRECT(\"F\"&ROW($G$87)+ROUNDUP(COLUMNS($G:DN)/3,0))","v":0},{"$f":"INDIRECT(\"G\"&ROW($G$87)+ROUNDUP(COLUMNS($G:DO)/3,0))","v":0},null,{"$f":"INDIRECT(\"F\"&ROW($G$87)+ROUNDUP(COLUMNS($G:DQ)/3,0))","v":0},{"$f":"INDIRECT(\"G\"&ROW($G$87)+ROUNDUP(COLUMNS($G:DR)/3,0))","v":0},null,{"$f":"INDIRECT(\"F\"&ROW($G$87)+ROUNDUP(COLUMNS($G:DT)/3,0))","v":0},{"$f":"INDIRECT(\"G\"&ROW($G$87)+ROUNDUP(COLUMNS($G:DU)/3,0))","v":0},null,{"$f":"INDIRECT(\"F\"&ROW($G$87)+ROUNDUP(COLUMNS($G:DW)/3,0))","v":0},{"$f":"INDIRECT(\"G\"&ROW($G$87)+ROUNDUP(COLUMNS($G:DX)/3,0))","v":0},null,{"$f":"INDIRECT(\"F\"&ROW($G$87)+ROUNDUP(COLUMNS($G:DZ)/3,0))","v":0},{"$f":"INDIRECT(\"G\"&ROW($G$87)+ROUNDUP(COLUMNS($G:EA)/3,0))","v":0},null,{"$f":"INDIRECT(\"F\"&ROW($G$87)+ROUNDUP(COLUMNS($G:EC)/3,0))","v":0},{"$f":"INDIRECT(\"G\"&ROW($G$87)+ROUNDUP(COLUMNS($G:ED)/3,0))","v":0},null,{"$f":"INDIRECT(\"F\"&ROW($G$87)+ROUNDUP(COLUMNS($G:EF)/3,0))","v":0},{"$f":"INDIRECT(\"G\"&ROW($G$87)+ROUNDUP(COLUMNS($G:EG)/3,0))","v":0},null,{"$f":"INDIRECT(\"F\"&ROW($G$87)+ROUNDUP(COLUMNS($G:EI)/3,0))","v":0},{"$f":"INDIRECT(\"G\"&ROW($G$87)+ROUNDUP(COLUMNS($G:EJ)/3,0))","v":0},null,{"$f":"INDIRECT(\"F\"&ROW($G$87)+ROUNDUP(COLUMNS($G:EL)/3,0))","v":0},{"$f":"INDIRECT(\"G\"&ROW($G$87)+ROUNDUP(COLUMNS($G:EM)/3,0))","v":0},null,{"$f":"INDIRECT(\"F\"&ROW($G$87)+ROUNDUP(COLUMNS($G:EO)/3,0))","v":0},{"$f":"INDIRECT(\"G\"&ROW($G$87)+ROUNDUP(COLUMNS($G:EP)/3,0))","v":0},null,{"$f":"INDIRECT(\"F\"&ROW($G$87)+ROUNDUP(COLUMNS($G:ER)/3,0))","v":0},{"$f":"INDIRECT(\"G\"&ROW($G$87)+ROUNDUP(COLUMNS($G:ES)/3,0))","v":0},null,{"$f":"EU81+EV81","v":0}]
["เวลากลับถึงสำนักงานเช็คของเสีย",null,null,{"$f":"D139","v":"00:00:00"},null,"ผลต่าง",{"$f":"G82+H82+G80-G9","v":0},null,null,{"$f":"J82+K82+J80-J9","v":0},null,null,{"$f":"M82+N82+M80-M9","v":0},null,null,{"$f":"P82+Q82+P80-P9","v":0},null,null,{"$f":"S82+T82+S80-S9","v":0},null,null,{"$f":"V82+W82+V80-V9","v":0},null,null,{"$f":"Y82+Z82+Y80-Y9","v":0},null,null,{"$f":"AB82+AC82+AB80-AB9","v":0},null,null,{"$f":"AE82+AF82+AE80-AE9","v":0},null,null,{"$f":"AH82+AI82+AH80-AH9","v":0},null,null,{"$f":"AK82+AL82+AK80-AK9","v":0},null,null,{"$f":"AN82+AO82+AN80-AN9","v":0},null,null,{"$f":"AQ82+AR82+AQ80-AQ9","v":0},null,null,{"$f":"AT82+AU82+AT80-AT9","v":0},null,null,{"$f":"AW82+AX82+AW80-AW9","v":0},null,null,{"$f":"AZ82+BA82+AZ80-AZ9","v":0},null,null,{"$f":"BC82+BD82+BC80-BC9","v":0},null,null,{"$f":"BF82+BG82+BF80-BF9","v":0},null,null,{"$f":"BI82+BJ82+BI80-BI9","v":0},null,null,{"$f":"BL82+BM82+BL80-BL9","v":0},null,null,{"$f":"BO82+BP82+BO80-BO9","v":0},null,null,{"$f":"BR82+BS82+BR80-BR9","v":0},null,null,{"$f":"BU82+BV82+BU80-BU9","v":0},null,null,{"$f":"BX82+BY82+BX80-BX9","v":0},null,null,{"$f":"CA82+CB82+CA80-CA9","v":0},null,null,{"$f":"CD82+CE82+CD80-CD9","v":0},null,null,{"$f":"CG82+CH82+CG80-CG9","v":0},null,null,{"$f":"CJ82+CK82+CJ80-CJ9","v":0},null,null,{"$f":"CM82+CN82+CM80-CM9","v":0},null,null,{"$f":"CP82+CQ82+CP80-CP9","v":0},null,null,{"$f":"CS82+CT82+CS80-CS9","v":0},null,null,{"$f":"CV82+CW82+CV80-CV9","v":0},null,null,{"$f":"CY82+CZ82+CY80-CY9","v":0},null,null,{"$f":"DB82+DC82+DB80-DB9","v":0},null,null,{"$f":"DE82+DF82+DE80-DE9","v":0},null,null,{"$f":"DH82+DI82+DH80-DH9","v":0},null,null,{"$f":"DK82+DL82+DK80-DK9","v":0},null,null,{"$f":"DN82+DO82+DN80-DN9","v":0},null,null,{"$f":"DQ82+DR82+DQ80-DQ9","v":0},null,null,{"$f":"DT82+DU82+DT80-DT9","v":0},null,null,{"$f":"DW82+DX82+DW80-DW9","v":0},null,null,{"$f":"DZ82+EA82+DZ80-DZ9","v":0},null,null,{"$f":"EC82+ED82+EC80-EC9","v":0},null,null,{"$f":"EF82+EG82+EF80-EF9","v":0},null,null,{"$f":"EI82+EJ82+EI80-EI9","v":0},null,null,{"$f":"EL82+EM82+EL80-EL9","v":0},null,null,{"$f":"EO82+EP82+EO80-EO9","v":0},null,null,{"$f":"ER82+ES82+ER80-ER9","v":0}]
["เป็นเงิน",null,null,null,null,null,{"$f":"G8*G83","v":0},null,null,{"$f":"J8*J83","v":0},null,null,{"$f":"M8*M83","v":0},null,null,{"$f":"P8*P83","v":0},null,null,{"$f":"S8*S83","v":0},null,null,{"$f":"V8*V83","v":0},null,null,{"$f":"Y8*Y83","v":0},null,null,{"$f":"AB8*AB83","v":0},null,null,{"$f":"AE8*AE83","v":0},null,null,{"$f":"AH8*AH83","v":0},null,null,{"$f":"AK8*AK83","v":0},null,null,{"$f":"AN8*AN83","v":0},null,null,{"$f":"AQ8*AQ83","v":0},null,null,{"$f":"AT8*AT83","v":0},null,null,{"$f":"AW8*AW83","v":0},null,null,{"$f":"AZ8*AZ83","v":0},null,null,{"$f":"BC8*BC83","v":0},null,null,{"$f":"BF8*BF83","v":0},null,null,{"$f":"BI8*BI83","v":0},null,null,{"$f":"BL8*BL83","v":0},null,null,{"$f":"BO8*BO83","v":0},null,null,{"$f":"BR8*BR83","v":0},null,null,{"$f":"BU8*BU83","v":0},null,null,{"$f":"BX8*BX83","v":0},null,null,{"$f":"CA8*CA83","v":0},null,null,{"$f":"CD8*CD83","v":0},null,null,{"$f":"CG8*CG83","v":0},null,null,{"$f":"CJ8*CJ83","v":0},null,null,{"$f":"CM8*CM83","v":0},null,null,{"$f":"CP8*CP83","v":0},null,null,{"$f":"CS8*CS83","v":0},null,null,{"$f":"CV8*CV83","v":0},null,null,{"$f":"CY8*CY83","v":0},null,null,{"$f":"DB8*DB83","v":0},null,null,{"$f":"DE8*DE83","v":0},null,null,{"$f":"DH8*DH83","v":0},null,null,{"$f":"DK8*DK83","v":0},null,null,{"$f":"DN8*DN83","v":0},null,null,{"$f":"DQ8*DQ83","v":0},null,null,{"$f":"DT8*DT83","v":0},null,null,{"$f":"DW8*DW83","v":0},null,null,0,null,null,{"$f":"EC8*EC83","v":0},null,null,{"$f":"EF8*EF83","v":0},null,null,{"$f":"EI8*EI83","v":0},null,null,{"$f":"EL8*EL83","v":0},null,null,{"$f":"EO8*EO83","v":0},null,null,{"$f":"ER8*ER83","v":0},null,null,{"$f":"$AP$98","v":0}]
[null,null,null,"ผู้จัดทำ……………………………………………………………………",null,null,null,null,null,null,null,null,null,null,null,null,null,null,null,null,null,null,null,"ผู้ตรวจ(ผจก.)………………………………………………………………………………."]
[null,null,"ใบจ่ายสินค้า",null,null,null,null,null,null,null,null,null,null,null,null,null,null,{"$f":"IF(ISODD(COLUMN()),MAX($F$86:Q$86)+1,\"\")","v":""}]
["ราคา","ลำดับ","รายการ","ยกมา","เบิก","เหลือ","เสีย","โอนเข้า","โอนออก","ชำรุด","รวม",null,"ขาย",null,"ขาด/เกิน",null,"บาท",null,null,null,"ขายได้",null,"ควรเบิก",null,"หมายเหตุ",null,null,null,"เสีย PDA","เสียจริง","เหลือ PDA","ผลต่าง","เหลือลูกค้า","หมายเหตุ",null,null,null,null,"Price","Quantity","Baht","Deduct"]
[{"$f":"IF(B88=\"\",0,INDEX(Price_List,ROWS($88:88)))","v":20},{"$f":"IF($C88=\"\",\"\",COUNTA($C$88:$C88))","v":1},{"$f":"IF(INDEX(INDIRECT(\"Product_List\"),ROWS($88:88))=\"\",\"\",INDEX(INDIRECT(\"Product_List\"),ROWS($88:88)))","v":"01-ขนมปังหมูหยองน้ำสลัด"},{"$f":"ยอดยกมา","v":0},null,null,null,null,null,null,{"$f":"D88+E88+J88-I88+H88","v":0},null,{"$f":"INDIRECT(ADDRESS(ROW(A$80),ROW()-ROW(A$80)+(ROWS($88:88)-1)*2-1,4))","v":0},null,{"$f":"F88+G88+M88+J88-K88","v":0},null,{"$f":"O88*A88","v":0},null,null,null,{"$f":"D88+E88-F88-G88","v":0},null,{"$f":"U88*6%+U88","v":0},null,null,null,null,null,{"$f":"INDIRECT(ADDRESS(ROW(A$80),ROW()-ROW(A$80)+(ROWS($88:88)-1)*2,4))","v":0},{"$f":"$G88","v":0},null,{"$f":"$F88-$AE88","v":0},{"$f":"INDIRECT(ADDRESS(ROW(A$80),ROW()-ROW(A$80)+(ROWS($88:88)-1)*2+1,4))","v":0},null,null,null,null,null,10,{"$f":"SUMPRODUCT(($A$88:$A$135=$AM88)*(($F$88:$F$135)+($G$88:$G$135)+($M$88:$M$135)+($J$88:$J$135)-($K$88:$K$135)))","v":0},{"$f":"AM88*AN88","v":0},{"$f":"IF(AO88<0,AO88,0)","v":0}]
[{"$f":"IF(B89=\"\",0,INDEX(Price_List,ROWS($88:89)))","v":20},{"$f":"IF($C89=\"\",\"\",COUNTA($C$88:$C89))","v":2},{"$f":"IF(INDEX(INDIRECT(\"Product_List\"),ROWS($88:89))=\"\",\"\",INDEX(INDIRECT(\"Product_List\"),ROWS($88:89)))","v":"02-ขนมปังหมูหยองน้ำพริกเผา"},{"$f":"ยอดยกมา","v":0},null,null,null,null,null,null,{"$f":"D89+E89+J89-I89+H89","v":0},null,{"$f":"INDIRECT(ADDRESS(ROW(A$80),ROW()-ROW(A$80)+(ROWS($88:89)-1)*2-1,4))","v":0},null,{"$f":"F89+G89+M89+J89-K89","v":0},null,{"$f":"O89*A89","v":0},null,null,null,{"$f":"D89+E89-F89-G89","v":0},null,{"$f":"U89*6%+U89","v":0},null,null,null,null,null,{"$f":"INDIRECT(ADDRESS(ROW(A$80),ROW()-ROW(A$80)+(ROWS($88:89)-1)*2,4))","v":0},{"$f":"$G89","v":0},null,{"$f":"$F89-$AE89","v":0},{"$f":"INDIRECT(ADDRESS(ROW(A$80),ROW()-ROW(A$80)+(ROWS($88:89)-1)*2+1,4))","v":0},null,null,null,null,null,12,0,{"$f":"AM89*AN89","v":0},{"$f":"IF(AO89<0,AO89,0)","v":0}]
[{"$f":"IF(B90=\"\",0,INDEX(Price_List,ROWS($88:90)))","v":20},{"$f":"IF($C90=\"\",\"\",COUNTA($C$88:$C90))","v":3},{"$f":"IF(INDEX(INDIRECT(\"Product_List\"),ROWS($88:90))=\"\",\"\",INDEX(INDIRECT(\"Product_List\"),ROWS($88:90)))","v":"03-ขนมปังไก่หยองน้ำสลัด"},{"$f":"ยอดยกมา","v":0},null,null,null,null,null,null,0,null,{"$f":"INDIRECT(ADDRESS(ROW(A$80),ROW()-ROW(A$80)+(ROWS($88:90)-1)*2-1,4))","v":0},null,0,null,0,null,null,null,0,null,0,null,null,null,null,null,{"$f":"INDIRECT(ADDRESS(ROW(A$80),ROW()-ROW(A$80)+(ROWS($88:90)-1)*2,4))","v":0},0,null,0,{"$f":"INDIRECT(ADDRESS(ROW(A$80),ROW()-ROW(A$80)+(ROWS($88:90)-1)*2+1,4))","v":0},null,null,null,null,null,13,0,0,0]
[{"$f":"IF(B91=\"\",0,INDEX(Price_List,ROWS($88:91)))","v":15},{"$f":"IF($C91=\"\",\"\",COUNTA($C$88:$C91))","v":4},{"$f":"IF(INDEX(INDIRECT(\"Product_List\"),ROWS($88:91))=\"\",\"\",INDEX(INDIRECT(\"Product_List\"),ROWS($88:91)))","v":"04-ขนมปังไส้ครีมสลัด"},{"$f":"ยอดยกมา","v":0},null,null,null,null,null,null,0,null,{"$f":"INDIRECT(ADDRESS(ROW(A$80),ROW()-ROW(A$80)+(ROWS($88:91)-1)*2-1,4))","v":0},null,{"$f":"F91+G91+M91+J91-K91","v":0},null,0,null,null,null,0,null,0,null,null,null,null,null,{"$f":"INDIRECT(ADDRESS(ROW(A$80),ROW()-ROW(A$80)+(ROWS($88:91)-1)*2,4))","v":0},0,null,0,{"$f":"INDIRECT(ADDRESS(ROW(A$80),ROW()-ROW(A$80)+(ROWS($88:91)-1)*2+1,4))","v":0},null,null,null,null,null,15,0,0,0]
[{"$f":"IF(B92=\"\",0,INDEX(Price_List,ROWS($88:92)))","v":15},{"$f":"IF($C92=\"\",\"\",COUNTA($C$88:$C92))","v":5},{"$f":"IF(INDEX(INDIRECT(\"Product_List\"),ROWS($88:92))=\"\",\"\",INDEX(INDIRECT(\"Product_List\"),ROWS($88:92)))","v":"05-ขนมปังเนยสด"},{"$f":"ยอดยกมา","v":0},null,null,null,null,null,null,0,null,{"$f":"INDIRECT(ADDRESS(ROW(A$80),ROW()-ROW(A$80)+(ROWS($88:92)-1)*2-1,4))","v":0},null,0,null,0,null,null,null,0,null,0,null,null,null,null,null,{"$f":"INDIRECT(ADDRESS(ROW(A$80),ROW()-ROW(A$80)+(ROWS($88:92)-1)*2,4))","v":0},0,null,0,{"$f":"INDIRECT(ADDRESS(ROW(A$80),ROW()-ROW(A$80)+(ROWS($88:92)-1)*2+1,4))","v":0},null,null,null,null,null,16,0,0,0]
[{"$f":"IF(B93=\"\",0,INDEX(Price_List,ROWS($88:93)))","v":10},{"$f":"IF($C93=\"\",\"\",COUNTA($C$88:$C93))","v":6},{"$f":"IF(INDEX(INDIRECT(\"Product_List\"),ROWS($88:93))=\"\",\"\",INDEX(INDIRECT(\"Product_List\"),ROWS($88:93)))","v":"06-ขนมปังไส้สังขยาเล็ก"},{"$f":"ยอดยกมา","v":0},null,null,null,null,null,null,0,null,{"$f":"INDIRECT(ADDRESS(ROW(A$80),ROW()-ROW(A$80)+(ROWS($88:93)-1)*2-1,4))","v":0},null,0,null,0,null,null,null,0,null,0,null,null,null,null,null,{"$f":"INDIRECT(ADDRESS(ROW(A$80),ROW()-ROW(A$80)+(ROWS($88:93)-1)*2,4))","v":0},0,null,0,{"$f":"INDIRECT(ADDRESS(ROW(A$80),ROW()-ROW(A$80)+(ROWS($88:93)-1)*2+1,4))","v":0},null,null,null,null,null,18,0,0,0]
[{"$f":"IF(B94=\"\",0,INDEX(Price_List,ROWS($88:94)))","v":10},{"$f":"IF($C94=\"\",\"\",COUNTA($C$88:$C94))","v":7},{"$f":"IF(INDEX(INDIRECT(\"Product_List\"),ROWS($88:94))=\"\",\"\",INDEX(INDIRECT(\"Product_List\"),ROWS($88:94)))","v":"07-ขนมปังไส้เผือก"},{"$f":"ยอดยกมา","v":0},null,null,null,null,null,null,0,null,{"$f":"INDIRECT(ADDRESS(ROW(A$80),ROW()-ROW(A$80)+(ROWS($88:94)-1)*2-1,4))","v":0},null,0,null,0,null,null,null,0,null,0,null,null,null,null,null,{"$f":"INDIRECT(ADDRESS(ROW(A$80),ROW()-ROW(A$80)+(ROWS($88:94)-1)*2,4))","v":0},0,null,0,{"$f":"INDIRECT(ADDRESS(ROW(A$80),ROW()-ROW(A$80)+(ROWS($88:94)-1)*2+1,4))","v":0},null,null,null,null,null,20,0,0,0]
[{"$f":"IF(B95=\"\",0,INDEX(Price_List,ROWS($88:95)))","v":10},{"$f":"IF($C95=\"\",\"\",COUNTA($C$88:$C95))","v":8},{"$f":"IF(INDEX(INDIRECT(\"Product_List\"),ROWS($88:95))=\"\",\"\",INDEX(INDIRECT(\"Product_List\"),ROWS($88:95)))","v":"08-ขนมปังไส้ถั่วแดง"},{"$f":"ยอดยกมา","v":0},null,null,null,null,null,null,0,null,{"$f":"INDIRECT(ADDRESS(ROW(A$80),ROW()-ROW(A$80)+(ROWS($88:95)-1)*2-1,4))","v":0},null,0,null,0,null,null,null,0,null,0,null,null,null,null,null,{"$f":"INDIRECT(ADDRESS(ROW(A$80),ROW()-ROW(A$80)+(ROWS($88:95)-1)*2,4))","v":0},0,null,0,{"$f":"INDIRECT(ADDRESS(ROW(A$80),ROW()-ROW(A$80)+(ROWS($88:95)-1)*2+1,4))","v":0},null,null,null,null,null,22,0,0,0]
[{"$f":"IF(B96=\"\",0,INDEX(Price_List,ROWS($88:96)))","v":10},{"$f":"IF($C96=\"\",\"\",COUNTA($C$88:$C96))","v":9},{"$f":"IF(INDEX(INDIRECT(\"Product_List\"),ROWS($88:96))=\"\",\"\",INDEX(INDIRECT(\"Product_List\"),ROWS($88:96)))","v":"09-ขนมปังไส้ถั่วดำ"},{"$f":"ยอดยกมา","v":0},null,null,null,null,null,null,0,null,{"$f":"INDIRECT(ADDRESS(ROW(A$80),ROW()-ROW(A$80)+(ROWS($88:96)-1)*2-1,4))","v":0},null,0,null,0,null,null,null,0,null,0,null,null,null,null,null,{"$f":"INDIRECT(ADDRESS(ROW(A$80),ROW()-ROW(A$80)+(ROWS($88:96)-1)*2,4))","v":0},0,null,0,{"$f":"INDIRECT(ADDRESS(ROW(A$80),ROW()-ROW(A$80)+(ROWS($88:96)-1)*2+1,4))","v":0},null,null,null,null,null,25,0,0,0]
[{"$f":"IF(B97=\"\",0,INDEX(Price_List,ROWS($88:97)))","v":10},{"$f":"IF($C97=\"\",\"\",COUNTA($C$88:$C97))","v":10},{"$f":"IF(INDEX(INDIRECT(\"Product_List\"),ROWS($88:97))=\"\",\"\",INDEX(INDIRECT(\"Product_List\"),ROWS($88:97)))","v":"10-ขนมปังไส้มันม่วง"},{"$f":"ยอดยกมา","v":0},null,null,null,null,null,null,0,null,{"$f":"INDIRECT(ADDRESS(ROW(A$80),ROW()-ROW(A$80)+(ROWS($88:97)-1)*2-1,4))","v":0},null,0,null,0,null,null,null,0,null,0,null,null,null,null,null,{"$f":"INDIRECT(ADDRESS(ROW(A$80),ROW()-ROW(A$80)+(ROWS($88:97)-1)*2,4))","v":0},0,null,0,{"$f":"INDIRECT(ADDRESS(ROW(A$80),ROW()-ROW(A$80)+(ROWS($88:97)-1)*2+1,4))","v":0},null,null,null,null,null,42,0,0,0]
[{"$f":"IF(B98=\"\",0,INDEX(Price_List,ROWS($88:98)))","v":15},{"$f":"IF($C98=\"\",\"\",COUNTA($C$88:$C98))","v":11},{"$f":"IF(INDEX(INDIRECT(\"Product_List\"),ROWS($88:98))=\"\",\"\",INDEX(INDIRECT(\"Product_List\"),ROWS($88:98)))","v":"11-เค้กกล้วยหอม"},{"$f":"ยอดยกมา","v":0},null,null,null,null,null,null,0,null,{"$f":"INDIRECT(ADDRESS(ROW(A$80),ROW()-ROW(A$80)+(ROWS($88:98)-1)*2-1,4))","v":0},null,0,null,0,null,null,null,0,null,0,null,null,null,null,null,{"$f":"INDIRECT(ADDRESS(ROW(A$80),ROW()-ROW(A$80)+(ROWS($88:98)-1)*2,4))","v":0},0,null,0,{"$f":"INDIRECT(ADDRESS(ROW(A$80),ROW()-ROW(A$80)+(ROWS($88:98)-1)*2+1,4))","v":0},null,null,null,null,null,"Total Deduct",null,null,{"$f":"SUM($AP$88:$AP$97)","v":0}]
[{"$f":"IF(B99=\"\",0,INDEX(Price_List,ROWS($88:99)))","v":15},{"$f":"IF($C99=\"\",\"\",COUNTA($C$88:$C99))","v":12},{"$f":"IF(INDEX(INDIRECT(\"Product_List\"),ROWS($88:99))=\"\",\"\",INDEX(INDIRECT(\"Product_List\"),ROWS($88:99)))","v":"12-เค้กบัตเตอร์"},{"$f":"ยอดยกมา","v":0},null,null,null,null,null,null,0,null,{"$f":"INDIRECT(ADDRESS(ROW(A$80),ROW()-ROW(A$80)+(ROWS($88:99)-1)*2-1,4))","v":0},null,0,null,0,null,null,null,0,null,0,null,null,null,null,null,{"$f":"INDIRECT(ADDRESS(ROW(A$80),ROW()-ROW(A$80)+(ROWS($88:99)-1)*2,4))","v":0},0,null,0,{"$f":"INDIRECT(ADDRESS(ROW(A$80),ROW()-ROW(A$80)+(ROWS($88:99)-1)*2+1,4))","v":0}]
[{"$f":"IF(B100=\"\",0,INDEX(Price_List,ROWS($88:100)))","v":15},{"$f":"IF($C100=\"\",\"\",COUNTA($C$88:$C100))","v":13},{"$f":"IF(INDEX(INDIRECT(\"Product_List\"),ROWS($88:100))=\"\",\"\",INDEX(INDIRECT(\"Product_List\"),ROWS($88:100)))","v":"13-ขนมปังโรลถั่วแดง"},{"$f":"ยอดยกมา","v":0},null,null,null,null,null,null,0,null,{"$f":"INDIRECT(ADDRESS(ROW(A$80),ROW()-ROW(A$80)+(ROWS($88:100)-1)*2-1,4))","v":0},null,0,null,0,null,null,null,0,null,0,null,null,null,null,null,{"$f":"INDIRECT(ADDRESS(ROW(A$80),ROW()-ROW(A$80)+(ROWS($88:100)-1)*2,4))","v":0},0,null,0,{"$f":"INDIRECT(ADDRESS(ROW(A$80),ROW()-ROW(A$80)+(ROWS($88:100)-1)*2+1,4))","v":0}]
[{"$f":"IF(B101=\"\",0,INDEX(Price_List,ROWS($88:101)))","v":15},{"$f":"IF($C101=\"\",\"\",COUNTA($C$88:$C101))","v":14},{"$f":"IF(INDEX(INDIRECT(\"Product_List\"),ROWS($88:101))=\"\",\"\",INDEX(INDIRECT(\"Product_List\"),ROWS($88:101)))","v":"14-ขนมปังไส้สังขยาใหญ่"},{"$f":"ยอดยกมา","v":0},null,null,null,null,null,null,0,null,{"$f":"INDIRECT(ADDRESS(ROW(A$80),ROW()-ROW(A$80)+(ROWS($88:101)-1)*2-1,4))","v":0},null,0,null,0,null,null,null,0,null,0,null,null,null,null,null,{"$f":"INDIRECT(ADDRESS(ROW(A$80),ROW()-ROW(A$80)+(ROWS($88:101)-1)*2,4))","v":0},0,null,0,{"$f":"INDIRECT(ADDRESS(ROW(A$80),ROW()-ROW(A$80)+(ROWS($88:101)-1)*2+1,4))","v":0}]
[{"$f":"IF(B102=\"\",0,INDEX(Price_List,ROWS($88:102)))","v":42},{"$f":"IF($C102=\"\",\"\",COUNTA($C$88:$C102))","v":15},{"$f":"IF(INDEX(INDIRECT(\"Product_List\"),ROWS($88:102))=\"\",\"\",INDEX(INDIRECT(\"Product_List\"),ROWS($88:102)))","v":"15-ขนมปังชนิดแผ่น(480กรัม)"},{"$f":"ยอดยกมา","v":0},null,null,null,null,null,null,0,null,{"$f":"INDIRECT(ADDRESS(ROW(A$80),ROW()-ROW(A$80)+(ROWS($88:102)-1)*2-1,4))","v":0},null,0,null,0,null,null,null,0,null,0,null,null,null,null,null,{"$f":"INDIRECT(ADDRESS(ROW(A$80),ROW()-ROW(A$80)+(ROWS($88:102)-1)*2,4))","v":0},0,null,0,{"$f":"INDIRECT(ADDRESS(ROW(A$80),ROW()-ROW(A$80)+(ROWS($88:102)-1)*2+1,4))","v":0}]
[{"$f":"IF(B103=\"\",0,INDEX(Price_List,ROWS($88:103)))","v":12},{"$f":"IF($C103=\"\",\"\",COUNTA($C$88:$C103))","v":16},{"$f":"IF(INDEX(INDIRECT(\"Product_List\"),ROWS($88:103))=\"\",\"\",INDEX(INDIRECT(\"Product_List\"),ROWS($88:103)))","v":"16-โมจิไส้ถั่ว"},{"$f":"ยอดยกมา","v":0},null,null,null,null,null,null,0,null,{"$f":"INDIRECT(ADDRESS(ROW(A$80),ROW()-ROW(A$80)+(ROWS($88:103)-1)*2-1,4))","v":0},null,0,null,0,null,null,null,0,null,0,null,null,null,null,null,{"$f":"INDIRECT(ADDRESS(ROW(A$80),ROW()-ROW(A$80)+(ROWS($88:103)-1)*2,4))","v":0},0,null,0,{"$f":"INDIRECT(ADDRESS(ROW(A$80),ROW()-ROW(A$80)+(ROWS($88:103)-1)*2+1,4))","v":0}]
[{"$f":"IF(B104=\"\",0,INDEX(Price_List,ROWS($88:104)))","v":12},{"$f":"IF($C104=\"\",\"\",COUNTA($C$88:$C104))","v":17},{"$f":"IF(INDEX(INDIRECT(\"Product_List\"),ROWS($88:104))=\"\",\"\",INDEX(INDIRECT(\"Product_List\"),ROWS($88:104)))","v":"17-โมจิไส้เผือก"},{"$f":"ยอดยกมา","v":0},null,null,null,null,null,null,0,null,{"$f":"INDIRECT(ADDRESS(ROW(A$80),ROW()-ROW(A$80)+(ROWS($88:104)-1)*2-1,4))","v":0},null,0,null,0,null,null,null,0,null,0,null,null,null,null,null,{"$f":"INDIRECT(ADDRESS(ROW(A$80),ROW()-ROW(A$80)+(ROWS($88:104)-1)*2,4))","v":0},0,null,0,{"$f":"INDIRECT(ADDRESS(ROW(A$80),ROW()-ROW(A$80)+(ROWS($88:104)-1)*2+1,4))","v":0}]
[{"$f":"IF(B105=\"\",0,INDEX(Price_List,ROWS($88:105)))","v":15},{"$f":"IF($C105=\"\",\"\",COUNTA($C$88:$C105))","v":18},{"$f":"IF(INDEX(INDIRECT(\"Product_List\"),ROWS($88:105))=\"\",\"\",INDEX(INDIRECT(\"Product_List\"),ROWS($88:105)))","v":"18-โมจิไส้ถั่วไข่เค็ม"},{"$f":"ยอดยกมา","v":0},null,null,null,null,null,null,0,null,{"$f":"INDIRECT(ADDRESS(ROW(A$80),ROW()-ROW(A$80)+(ROWS($88:105)-1)*2-1,4))","v":0},null,0,null,0,null,null,null,0,null,0,null,null,null,null,null,{"$f":"INDIRECT(ADDRESS(ROW(A$80),ROW()-ROW(A$80)+(ROWS($88:105)-1)*2,4))","v":0},0,null,0,{"$f":"INDIRECT(ADDRESS(ROW(A$80),ROW()-ROW(A$80)+(ROWS($88:105)-1)*2+1,4))","v":0}]
[{"$f":"IF(B106=\"\",0,INDEX(Price_List,ROWS($88:106)))","v":20},{"$f":"IF($C106=\"\",\"\",COUNTA($C$88:$C106))","v":19},{"$f":"IF(INDEX(INDIRECT(\"Product_List\"),ROWS($88:106))=\"\",\"\",INDEX(INDIRECT(\"Product_List\"),ROWS($88:106)))","v":"19-ขนมปังพิซซ่า"},{"$f":"ยอดยกมา","v":0},null,null,null,null,null,null,0,null,{"$f":"INDIRECT(ADDRESS(ROW(A$80),ROW()-ROW(A$80)+(ROWS($88:106)-1)*2-1,4))","v":0},null,0,null,0,null,null,null,0,null,0,null,null,null,null,null,{"$f":"INDIRECT(ADDRESS(ROW(A$80),ROW()-ROW(A$80)+(ROWS($88:106)-1)*2,4))","v":0},0,null,0,{"$f":"INDIRECT(ADDRESS(ROW(A$80),ROW()-ROW(A$80)+(ROWS($88:106)-1)*2+1,4))","v":0}]
[{"$f":"IF(B107=\"\",0,INDEX(Price_List,ROWS($88:107)))","v":20},{"$f":"IF($C107=\"\",\"\",COUNTA($C$88:$C107))","v":20},{"$f":"IF(INDEX(INDIRECT(\"Product_List\"),ROWS($88:107))=\"\",\"\",INDEX(INDIRECT(\"Product_List\"),ROWS($88:107)))","v":"20-ขนมปังพิซซ่าปูอัดแฮม"},{"$f":"ยอดยกมา","v":0},null,null,null,null,null,null,0,null,{"$f":"INDIRECT(ADDRESS(ROW(A$80),ROW()-ROW(A$80)+(ROWS($88:107)-1)*2-1,4))","v":0},null,0,null,0,null,null,null,0,null,0,null,null,null,null,null,{"$f":"INDIRECT(ADDRESS(ROW(A$80),ROW()-ROW(A$80)+(ROWS($88:107)-1)*2,4))","v":0},0,null,0,{"$f":"INDIRECT(ADDRESS(ROW(A$80),ROW()-ROW(A$80)+(ROWS($88:107)-1)*2+1,4))","v":0}]
[{"$f":"IF(B108=\"\",0,INDEX(Price_List,ROWS($88:108)))","v":20},{"$f":"IF($C108=\"\",\"\",COUNTA($C$88:$C108))","v":21},{"$f":"IF(INDEX(INDIRECT(\"Product_List\"),ROWS($88:108))=\"\",\"\",INDEX(INDIRECT(\"Product_List\"),ROWS($88:108)))","v":"21-ขนมปังไส้กรอก"},{"$f":"ยอดยกมา","v":0},null,null,null,null,null,null,0,null,{"$f":"INDIRECT(ADDRESS(ROW(A$80),ROW()-ROW(A$80)+(ROWS($88:108)-1)*2-1,4))","v":0},null,0,null,0,null,null,null,0,null,0,null,null,null,null,null,{"$f":"INDIRECT(ADDRESS(ROW(A$80),ROW()-ROW(A$80)+(ROWS($88:108)-1)*2,4))","v":0},0,null,0,{"$f":"INDIRECT(ADDRESS(ROW(A$80),ROW()-ROW(A$80)+(ROWS($88:108)-1)*2+1,4))","v":0}]
[{"$f":"IF(B109=\"\",0,INDEX(Price_List,ROWS($88:109)))","v":15},{"$f":"IF($C109=\"\",\"\",COUNTA($C$88:$C109))","v":22},{"$f":"IF(INDEX(INDIRECT(\"Product_List\"),ROWS($88:109))=\"\",\"\",INDEX(INDIRECT(\"Product_List\"),ROWS($88:109)))","v":"22-ขนมก้านบัว"},{"$f":"ยอดยกมา","v":0},null,null,null,null,null,null,0,null,{"$f":"INDIRECT(ADDRESS(ROW(A$80),ROW()-ROW(A$80)+(ROWS($88:109)-1)*2-1,4))","v":0},null,0,null,0,null,null,null,0,null,0,null,null,null,null,null,{"$f":"INDIRECT(ADDRESS(ROW(A$80),ROW()-ROW(A$80)+(ROWS($88:109)-1)*2,4))","v":0},0,null,0,{"$f":"INDIRECT(ADDRESS(ROW(A$80),ROW()-ROW(A$80)+(ROWS($88:109)-1)*2+1,4))","v":0}]
[{"$f":"IF(B110=\"\",0,INDEX(Price_List,ROWS($88:110)))","v":20},{"$f":"IF($C110=\"\",\"\",COUNTA($C$88:$C110))","v":23},{"$f":"IF(INDEX(INDIRECT(\"Product_List\"),ROWS($88:110))=\"\",\"\",INDEX(INDIRECT(\"Product_List\"),ROWS($88:110)))","v":"23-พายสับปะรด"},{"$f":"ยอดยกมา","v":0},null,null,null,null,null,null,0,null,{"$f":"INDIRECT(ADDRESS(ROW(A$80),ROW()-ROW(A$80)+(ROWS($88:110)-1)*2-1,4))","v":0},null,0,null,0,null,null,null,0,null,0,null,null,null,null,null,{"$f":"INDIRECT(ADDRESS(ROW(A$80),ROW()-ROW(A$80)+(ROWS($88:110)-1)*2,4))","v":0},0,null,0,{"$f":"INDIRECT(ADDRESS(ROW(A$80),ROW()-ROW(A$80)+(ROWS($88:110)-1)*2+1,4))","v":0}]
[{"$f":"IF(B111=\"\",0,INDEX(Price_List,ROWS($88:111)))","v":20},{"$f":"IF($C111=\"\",\"\",COUNTA($C$88:$C111))","v":24},{"$f":"IF(INDEX(INDIRECT(\"Product_List\"),ROWS($88:111))=\"\",\"\",INDEX(INDIRECT(\"Product_List\"),ROWS($88:111)))","v":"24-พายไส้มะพร้าว"},{"$f":"ยอดยกมา","v":0},null,null,null,null,null,null,0,null,{"$f":"INDIRECT(ADDRESS(ROW(A$80),ROW()-ROW(A$80)+(ROWS($88:111)-1)*2-1,4))","v":0},null,0,null,0,null,null,null,0,null,0,null,null,null,null,null,{"$f":"INDIRECT(ADDRESS(ROW(A$80),ROW()-ROW(A$80)+(ROWS($88:111)-1)*2,4))","v":0},0,null,0,{"$f":"INDIRECT(ADDRESS(ROW(A$80),ROW()-ROW(A$80)+(ROWS($88:111)-1)*2+1,4))","v":0}]
[{"$f":"IF(B112=\"\",0,INDEX(Price_List,ROWS($88:112)))","v":15},{"$f":"IF($C112=\"\",\"\",COUNTA($C$88:$C112))","v":25},{"$f":"IF(INDEX(INDIRECT(\"Product_List\"),ROWS($88:112))=\"\",\"\",INDEX(INDIRECT(\"Product_List\"),ROWS($88:112)))","v":"25-ขนมปังโรลมันเทศ"},{"$f":"ยอดยกมา","v":0},null,null,null,null,null,null,0,null,{"$f":"INDIRECT(ADDRESS(ROW(A$80),ROW()-ROW(A$80)+(ROWS($88:112)-1)*2-1,4))","v":0},null,0,null,0,null,null,null,0,null,0,null,null,null,null,null,{"$f":"INDIRECT(ADDRESS(ROW(A$80),ROW()-ROW(A$80)+(ROWS($88:112)-1)*2,4))","v":0},0,null,0,{"$f":"INDIRECT(ADDRESS(ROW(A$80),ROW()-ROW(A$80)+(ROWS($88:112)-1)*2+1,4))","v":0}]
[{"$f":"IF(B113=\"\",0,INDEX(Price_List,ROWS($88:113)))","v":15},{"$f":"IF($C113=\"\",\"\",COUNTA($C$88:$C113))","v":26},{"$f":"IF(INDEX(INDIRECT(\"Product_List\"),ROWS($88:113))=\"\",\"\",INDEX(INDIRECT(\"Product_List\"),ROWS($88:113)))","v":"26-ขนมปังไส้ครีมสลัดน้ำพริกเผา"},{"$f":"ยอดยกมา","v":0},null,null,null,null,null,null,0,null,{"$f":"INDIRECT(ADDRESS(ROW(A$80),ROW()-ROW(A$80)+(ROWS($88:113)-1)*2-1,4))","v":0},null,0,null,0,null,null,null,0,null,0,null,null,null,null,null,{"$f":"INDIRECT(ADDRESS(ROW(A$80),ROW()-ROW(A$80)+(ROWS($88:113)-1)*2,4))","v":0},0,null,0,{"$f":"INDIRECT(ADDRESS(ROW(A$80),ROW()-ROW(A$80)+(ROWS($88:113)-1)*2+1,4))","v":0}]
[{"$f":"IF(B114=\"\",0,INDEX(Price_List,ROWS($88:114)))","v":20},{"$f":"IF($C114=\"\",\"\",COUNTA($C$88:$C114))","v":27},{"$f":"IF(INDEX(INDIRECT(\"Product_List\"),ROWS($88:114))=\"\",\"\",INDEX(INDIRECT(\"Product_List\"),ROWS($88:114)))","v":"27-ขนมปังไส้สังขยาไข่"},{"$f":"ยอดยกมา","v":0},null,null,null,null,null,null,0,null,{"$f":"INDIRECT(ADDRESS(ROW(A$80),ROW()-ROW(A$80)+(ROWS($88:114)-1)*2-1,4))","v":0},null,0,null,0,null,null,null,0,null,0,null,null,null,null,null,{"$f":"INDIRECT(ADDRESS(ROW(A$80),ROW()-ROW(A$80)+(ROWS($88:114)-1)*2,4))","v":0},0,null,0,{"$f":"INDIRECT(ADDRESS(ROW(A$80),ROW()-ROW(A$80)+(ROWS($88:114)-1)*2+1,4))","v":0}]
[{"$f":"IF(B115=\"\",0,INDEX(Price_List,ROWS($88:115)))","v":20},{"$f":"IF($C115=\"\",\"\",COUNTA($C$88:$C115))","v":28},{"$f":"IF(INDEX(INDIRECT(\"Product_List\"),ROWS($88:115))=\"\",\"\",INDEX(INDIRECT(\"Product_List\"),ROWS($88:115)))","v":"28-ขนมปังไส้สังขยามะพร้าว"},{"$f":"ยอดยกมา","v":0},null,null,null,null,null,null,0,null,{"$f":"INDIRECT(ADDRESS(ROW(A$80),ROW()-ROW(A$80)+(ROWS($88:115)-1)*2-1,4))","v":0},null,0,null,0,null,null,null,0,null,0,null,null,null,null,null,{"$f":"INDIRECT(ADDRESS(ROW(A$80),ROW()-ROW(A$80)+(ROWS($88:115)-1)*2,4))","v":0},0,null,0,{"$f":"INDIRECT(ADDRESS(ROW(A$80),ROW()-ROW(A$80)+(ROWS($88:115)-1)*2+1,4))","v":0}]
[{"$f":"IF(B116=\"\",0,INDEX(Price_List,ROWS($88:116)))","v":10},{"$f":"IF($C116=\"\",\"\",COUNTA($C$88:$C116))","v":29},{"$f":"IF(INDEX(INDIRECT(\"Product_List\"),ROWS($88:116))=\"\",\"\",INDEX(INDIRECT(\"Product_List\"),ROWS($88:116)))","v":"29-ขนมปังไส้ครีมชาไทย"},{"$f":"ยอดยกมา","v":0},null,null,null,null,null,null,0,null,{"$f":"INDIRECT(ADDRESS(ROW(A$80),ROW()-ROW(A$80)+(ROWS($88:116)-1)*2-1,4))","v":0},null,0,null,0,null,null,null,0,null,0,null,null,null,null,null,{"$f":"INDIRECT(ADDRESS(ROW(A$80),ROW()-ROW(A$80)+(ROWS($88:116)-1)*2,4))","v":0},0,null,0,{"$f":"INDIRECT(ADDRESS(ROW(A$80),ROW()-ROW(A$80)+(ROWS($88:116)-1)*2+1,4))","v":0}]
[{"$f":"IF(B117=\"\",0,INDEX(Price_List,ROWS($88:117)))","v":15},{"$f":"IF($C117=\"\",\"\",COUNTA($C$88:$C117))","v":30},{"$f":"IF(INDEX(INDIRECT(\"Product_List\"),ROWS($88:117))=\"\",\"\",INDEX(INDIRECT(\"Product_List\"),ROWS($88:117)))","v":"30-ขนมปังโรลมันม่วง"},{"$f":"ยอดยกมา","v":0},null,null,null,null,null,null,0,null,{"$f":"INDIRECT(ADDRESS(ROW(A$80),ROW()-ROW(A$80)+(ROWS($88:117)-1)*2-1,4))","v":0},null,0,null,0,null,null,null,0,null,0,null,null,null,null,null,{"$f":"INDIRECT(ADDRESS(ROW(A$80),ROW()-ROW(A$80)+(ROWS($88:117)-1)*2,4))","v":0},0,null,0,{"$f":"INDIRECT(ADDRESS(ROW(A$80),ROW()-ROW(A$80)+(ROWS($88:117)-1)*2+1,4))","v":0}]
[{"$f":"IF(B118=\"\",0,INDEX(Price_List,ROWS($88:118)))","v":15},{"$f":"IF($C118=\"\",\"\",COUNTA($C$88:$C118))","v":31},{"$f":"IF(INDEX(INDIRECT(\"Product_List\"),ROWS($88:118))=\"\",\"\",INDEX(INDIRECT(\"Product_List\"),ROWS($88:118)))","v":"31-ขนมปังโรลช็อกโกแลต"},{"$f":"ยอดยกมา","v":0},null,null,null,null,null,null,0,null,{"$f":"INDIRECT(ADDRESS(ROW(A$80),ROW()-ROW(A$80)+(ROWS($88:118)-1)*2-1,4))","v":0},null,0,null,0,null,null,null,0,null,0,null,null,null,null,null,{"$f":"INDIRECT(ADDRESS(ROW(A$80),ROW()-ROW(A$80)+(ROWS($88:118)-1)*2,4))","v":0},0,null,0,{"$f":"INDIRECT(ADDRESS(ROW(A$80),ROW()-ROW(A$80)+(ROWS($88:118)-1)*2+1,4))","v":0}]
[{"$f":"IF(B119=\"\",0,INDEX(Price_List,ROWS($88:119)))","v":16},{"$f":"IF($C119=\"\",\"\",COUNTA($C$88:$C119))","v":32},{"$f":"IF(INDEX(INDIRECT(\"Product_List\"),ROWS($88:119))=\"\",\"\",INDEX(INDIRECT(\"Product_List\"),ROWS($88:119)))","v":"32-ขนมปังชนิดแผ่น(155กรัม)"},{"$f":"ยอดยกมา","v":0},null,null,null,null,null,null,0,null,{"$f":"INDIRECT(ADDRESS(ROW(A$80),ROW()-ROW(A$80)+(ROWS($88:119)-1)*2-1,4))","v":0},null,0,null,0,null,null,null,0,null,0,null,null,null,null,null,{"$f":"INDIRECT(ADDRESS(ROW(A$80),ROW()-ROW(A$80)+(ROWS($88:119)-1)*2,4))","v":0},0,null,0,{"$f":"INDIRECT(ADDRESS(ROW(A$80),ROW()-ROW(A$80)+(ROWS($88:119)-1)*2+1,4))","v":0}]
[{"$f":"IF(B120=\"\",0,INDEX(Price_List,ROWS($88:120)))","v":15},{"$f":"IF($C120=\"\",\"\",COUNTA($C$88:$C120))","v":33},{"$f":"IF(INDEX(INDIRECT(\"Product_List\"),ROWS($88:120))=\"\",\"\",INDEX(INDIRECT(\"Product_List\"),ROWS($88:120)))","v":"33-ขนมปังโรลเผือก"},{"$f":"ยอดยกมา","v":0},null,null,null,null,null,null,0,null,{"$f":"INDIRECT(ADDRESS(ROW(A$80),ROW()-ROW(A$80)+(ROWS($88:120)-1)*2-1,4))","v":0},null,0,null,0,null,null,null,0,null,0,null,null,null,null,null,{"$f":"INDIRECT(ADDRESS(ROW(A$80),ROW()-ROW(A$80)+(ROWS($88:120)-1)*2,4))","v":0},0,null,0,{"$f":"INDIRECT(ADDRESS(ROW(A$80),ROW()-ROW(A$80)+(ROWS($88:120)-1)*2+1,4))","v":0}]
[{"$f":"IF(B121=\"\",0,INDEX(Price_List,ROWS($88:121)))","v":15},{"$f":"IF($C121=\"\",\"\",COUNTA($C$88:$C121))","v":34},{"$f":"IF(INDEX(INDIRECT(\"Product_List\"),ROWS($88:121))=\"\",\"\",INDEX(INDIRECT(\"Product_List\"),ROWS($88:121)))","v":"34-ขนมปังไก่หยองน้ำสลัด Mini"},{"$f":"ยอดยกมา","v":0},null,null,null,null,null,null,0,null,{"$f":"INDIRECT(ADDRESS(ROW(A$80),ROW()-ROW(A$80)+(ROWS($88:121)-1)*2-1,4))","v":0},null,0,null,0,null,null,null,0,null,0,null,null,null,null,null,{"$f":"INDIRECT(ADDRESS(ROW(A$80),ROW()-ROW(A$80)+(ROWS($88:121)-1)*2,4))","v":0},0,null,0,{"$f":"INDIRECT(ADDRESS(ROW(A$80),ROW()-ROW(A$80)+(ROWS($88:121)-1)*2+1,4))","v":0}]
[{"$f":"IF(B122=\"\",0,INDEX(Price_List,ROWS($88:122)))","v":10},{"$f":"IF($C122=\"\",\"\",COUNTA($C$88:$C122))","v":35},{"$f":"IF(INDEX(INDIRECT(\"Product_List\"),ROWS($88:122))=\"\",\"\",INDEX(INDIRECT(\"Product_List\"),ROWS($88:122)))","v":"35-ขนมปังไส้ช็อกโกแลต"},{"$f":"ยอดยกมา","v":0},null,null,null,null,null,null,0,null,{"$f":"INDIRECT(ADDRESS(ROW(A$80),ROW()-ROW(A$80)+(ROWS($88:122)-1)*2-1,4))","v":0},null,0,null,0,null,null,null,0,null,0,null,null,null,null,null,{"$f":"INDIRECT(ADDRESS(ROW(A$80),ROW()-ROW(A$80)+(ROWS($88:122)-1)*2,4))","v":0},0,null,0,{"$f":"INDIRECT(ADDRESS(ROW(A$80),ROW()-ROW(A$80)+(ROWS($88:122)-1)*2+1,4))","v":0}]
[{"$f":"IF(B123=\"\",0,INDEX(Price_List,ROWS($88:123)))","v":10},{"$f":"IF($C123=\"\",\"\",COUNTA($C$88:$C123))","v":36},{"$f":"IF(INDEX(INDIRECT(\"Product_List\"),ROWS($88:123))=\"\",\"\",INDEX(INDIRECT(\"Product_List\"),ROWS($88:123)))","v":"36-ขนมปังไส้ครีมสังขยาไข่"},{"$f":"ยอดยกมา","v":0},null,null,null,null,null,null,0,null,{"$f":"INDIRECT(ADDRESS(ROW(A$80),ROW()-ROW(A$80)+(ROWS($88:123)-1)*2-1,4))","v":0},null,0,null,0,null,null,null,0,null,0,null,null,null,null,null,{"$f":"INDIRECT(ADDRESS(ROW(A$80),ROW()-ROW(A$80)+(ROWS($88:123)-1)*2,4))","v":0},0,null,0,{"$f":"INDIRECT(ADDRESS(ROW(A$80),ROW()-ROW(A$80)+(ROWS($88:123)-1)*2+1,4))","v":0}]
[{"$f":"IF(B124=\"\",0,INDEX(Price_List,ROWS($88:124)))","v":20},{"$f":"IF($C124=\"\",\"\",COUNTA($C$88:$C124))","v":37},{"$f":"IF(INDEX(INDIRECT(\"Product_List\"),ROWS($88:124))=\"\",\"\",INDEX(INDIRECT(\"Product_List\"),ROWS($88:124)))","v":"37-ขนมปังพิซซ่าฮาวายเอี้ยน"},{"$f":"ยอดยกมา","v":0},null,null,null,null,null,null,0,null,{"$f":"INDIRECT(ADDRESS(ROW(A$80),ROW()-ROW(A$80)+(ROWS($88:124)-1)*2-1,4))","v":0},null,0,null,0,null,null,null,0,null,0,null,null,null,null,null,{"$f":"INDIRECT(ADDRESS(ROW(A$80),ROW()-ROW(A$80)+(ROWS($88:124)-1)*2,4))","v":0},0,null,0,{"$f":"INDIRECT(ADDRESS(ROW(A$80),ROW()-ROW(A$80)+(ROWS($88:124)-1)*2+1,4))","v":0}]
[{"$f":"IF(B125=\"\",0,INDEX(Price_List,ROWS($88:125)))","v":20},{"$f":"IF($C125=\"\",\"\",COUNTA($C$88:$C125))","v":38},{"$f":"IF(INDEX(INDIRECT(\"Product_List\"),ROWS($88:125))=\"\",\"\",INDEX(INDIRECT(\"Product_List\"),ROWS($88:125)))","v":"38-ครัวซองต์หมูหยองน้ำสลัด"},{"$f":"ยอดยกมา","v":0},null,null,null,null,null,null,0,null,{"$f":"INDIRECT(ADDRESS(ROW(A$80),ROW()-ROW(A$80)+(ROWS($88:125)-1)*2-1,4))","v":0},null,0,null,0,null,null,null,0,null,0,null,null,null,null,null,{"$f":"INDIRECT(ADDRESS(ROW(A$80),ROW()-ROW(A$80)+(ROWS($88:125)-1)*2,4))","v":0},0,null,0,{"$f":"INDIRECT(ADDRESS(ROW(A$80),ROW()-ROW(A$80)+(ROWS($88:125)-1)*2+1,4))","v":0}]
[{"$f":"IF(B126=\"\",0,INDEX(Price_List,ROWS($88:126)))","v":15},{"$f":"IF($C126=\"\",\"\",COUNTA($C$88:$C126))","v":39},{"$f":"IF(INDEX(INDIRECT(\"Product_List\"),ROWS($88:126))=\"\",\"\",INDEX(INDIRECT(\"Product_List\"),ROWS($88:126)))","v":"39-แพนเบรดไส้เผือก"},{"$f":"ยอดยกมา","v":0},null,null,null,null,null,null,0,null,{"$f":"INDIRECT(ADDRESS(ROW(A$80),ROW()-ROW(A$80)+(ROWS($88:126)-1)*2-1,4))","v":0},null,0,null,0,null,null,null,0,null,0,null,null,null,null,null,{"$f":"INDIRECT(ADDRESS(ROW(A$80),ROW()-ROW(A$80)+(ROWS($88:126)-1)*2,4))","v":0},0,null,0,{"$f":"INDIRECT(ADDRESS(ROW(A$80),ROW()-ROW(A$80)+(ROWS($88:126)-1)*2+1,4))","v":0}]
[{"$f":"IF(B127=\"\",0,INDEX(Price_List,ROWS($88:127)))","v":15},{"$f":"IF($C127=\"\",\"\",COUNTA($C$88:$C127))","v":40},{"$f":"IF(INDEX(INDIRECT(\"Product_List\"),ROWS($88:127))=\"\",\"\",INDEX(INDIRECT(\"Product_List\"),ROWS($88:127)))","v":"40-แพนเบรดไส้ถั่วแดง"},{"$f":"ยอดยกมา","v":0},null,null,null,null,null,null,0,null,{"$f":"INDIRECT(ADDRESS(ROW(A$80),ROW()-ROW(A$80)+(ROWS($88:127)-1)*2-1,4))","v":0},null,0,null,0,null,null,null,0,null,0,null,null,null,null,null,{"$f":"INDIRECT(ADDRESS(ROW(A$80),ROW()-ROW(A$80)+(ROWS($88:127)-1)*2,4))","v":0},0,null,0,{"$f":"INDIRECT(ADDRESS(ROW(A$80),ROW()-ROW(A$80)+(ROWS($88:127)-1)*2+1,4))","v":0}]
[{"$f":"IF(B128=\"\",0,INDEX(Price_List,ROWS($88:128)))","v":12},{"$f":"IF($C128=\"\",\"\",COUNTA($C$88:$C128))","v":41},{"$f":"IF(INDEX(INDIRECT(\"Product_List\"),ROWS($88:128))=\"\",\"\",INDEX(INDIRECT(\"Product_List\"),ROWS($88:128)))","v":"41-ขนมปังกรอบเนยน้ำตาล(30กรัม)"},{"$f":"ยอดยกมา","v":0},null,null,null,null,null,null,0,null,{"$f":"INDIRECT(ADDRESS(ROW(A$80),ROW()-ROW(A$80)+(ROWS($88:128)-1)*2-1,4))","v":0},null,0,null,0,null,null,null,0,null,0,null,null,null,null,null,{"$f":"INDIRECT(ADDRESS(ROW(A$80),ROW()-ROW(A$80)+(ROWS($88:128)-1)*2,4))","v":0},0,null,0,{"$f":"INDIRECT(ADDRESS(ROW(A$80),ROW()-ROW(A$80)+(ROWS($88:128)-1)*2+1,4))","v":0}]
[{"$f":"IF(B129=\"\",0,INDEX(Price_List,ROWS($88:129)))","v":18},{"$f":"IF($C129=\"\",\"\",COUNTA($C$88:$C129))","v":42},{"$f":"IF(INDEX(INDIRECT(\"Product_List\"),ROWS($88:129))=\"\",\"\",INDEX(INDIRECT(\"Product_List\"),ROWS($88:129)))","v":"42-ขนมปังชนิดแผ่นโฮลวีต"},{"$f":"ยอดยกมา","v":0},null,null,null,null,null,null,0,null,{"$f":"INDIRECT(ADDRESS(ROW(A$80),ROW()-ROW(A$80)+(ROWS($88:129)-1)*2-1,4))","v":0},null,0,null,0,null,null,null,0,null,0,null,null,null,null,null,{"$f":"INDIRECT(ADDRESS(ROW(A$80),ROW()-ROW(A$80)+(ROWS($88:129)-1)*2,4))","v":0},0,null,0,{"$f":"INDIRECT(ADDRESS(ROW(A$80),ROW()-ROW(A$80)+(ROWS($88:129)-1)*2+1,4))","v":0}]
[{"$f":"IF(B130=\"\",0,INDEX(Price_List,ROWS($88:130)))","v":12},{"$f":"IF($C130=\"\",\"\",COUNTA($C$88:$C130))","v":43},{"$f":"IF(INDEX(INDIRECT(\"Product_List\"),ROWS($88:130))=\"\",\"\",INDEX(INDIRECT(\"Product_List\"),ROWS($88:130)))","v":"43-เค้กโรลใบเตย"},{"$f":"ยอดยกมา","v":0},null,null,null,null,null,null,{"$f":"D130+E130+J130-I130+H130","v":0},null,{"$f":"INDIRECT(ADDRESS(ROW(A$80),ROW()-ROW(A$80)+(ROWS($88:130)-1)*2-1,4))","v":0},null,{"$f":"F130+G130+M130+J130-K130","v":0},null,{"$f":"O130*A130","v":0},null,null,null,{"$f":"D130+E130-F130-G130","v":0},null,{"$f":"U130*6%+U130","v":0},null,null,null,null,null,{"$f":"INDIRECT(ADDRESS(ROW(A$80),ROW()-ROW(A$80)+(ROWS($88:130)-1)*2,4))","v":0},0,null,0,{"$f":"INDIRECT(ADDRESS(ROW(A$80),ROW()-ROW(A$80)+(ROWS($88:130)-1)*2+1,4))","v":0}]
[{"$f":"IF(B131=\"\",0,INDEX(Price_List,ROWS($88:131)))","v":12},{"$f":"IF($C131=\"\",\"\",COUNTA($C$88:$C131))","v":44},{"$f":"IF(INDEX(INDIRECT(\"Product_List\"),ROWS($88:131))=\"\",\"\",INDEX(INDIRECT(\"Product_List\"),ROWS($88:131)))","v":"44-ขนมโมจิไส้ถั่วดำ"},{"$f":"ยอดยกมา","v":0},null,null,null,null,null,null,{"$f":"D131+E131+J131-I131+H131","v":0},null,{"$f":"INDIRECT(ADDRESS(ROW(A$80),ROW()-ROW(A$80)+(ROWS($88:131)-1)*2-1,4))","v":0},null,{"$f":"F131+G131+M131+J131-K131","v":0},null,{"$f":"O131*A131","v":0},null,null,null,{"$f":"D131+E131-F131-G131","v":0},null,{"$f":"U131*6%+U131","v":0},null,null,null,null,null,{"$f":"INDIRECT(ADDRESS(ROW(A$80),ROW()-ROW(A$80)+(ROWS($88:131)-1)*2,4))","v":0},0,null,0,{"$f":"INDIRECT(ADDRESS(ROW(A$80),ROW()-ROW(A$80)+(ROWS($88:131)-1)*2+1,4))","v":0}]
[{"$f":"IF(B132=\"\",0,INDEX(Price_List,ROWS($88:132)))","v":25},{"$f":"IF($C132=\"\",\"\",COUNTA($C$88:$C132))","v":45},{"$f":"IF(INDEX(INDIRECT(\"Product_List\"),ROWS($88:132))=\"\",\"\",INDEX(INDIRECT(\"Product_List\"),ROWS($88:132)))","v":"45-ครัวซองต์ไส้กรอกชีส"},{"$f":"ยอดยกมา","v":0},null,null,null,null,null,null,{"$f":"D132+E132+J132-I132+H132","v":0},null,{"$f":"INDIRECT(ADDRESS(ROW(A$80),ROW()-ROW(A$80)+(ROWS($88:132)-1)*2-1,4))","v":0},null,{"$f":"F132+G132+M132+J132-K132","v":0},null,{"$f":"O132*A132","v":0},null,null,null,{"$f":"D132+E132-F132-G132","v":0},null,{"$f":"U132*6%+U132","v":0},null,null,null,null,null,{"$f":"INDIRECT(ADDRESS(ROW(A$80),ROW()-ROW(A$80)+(ROWS($88:132)-1)*2,4))","v":0},0,null,0,{"$f":"INDIRECT(ADDRESS(ROW(A$80),ROW()-ROW(A$80)+(ROWS($88:132)-1)*2+1,4))","v":0}]
[{"$f":"IF(B133=\"\",0,INDEX(Price_List,ROWS($88:133)))","v":12},{"$f":"IF($C133=\"\",\"\",COUNTA($C$88:$C133))","v":46},{"$f":"IF(INDEX(INDIRECT(\"Product_List\"),ROWS($88:133))=\"\",\"\",INDEX(INDIRECT(\"Product_List\"),ROWS($88:133)))","v":"46-ขนมเปี๊ยะไส้ถั่ว"},{"$f":"ยอดยกมา","v":0},null,null,null,null,null,null,0,null,{"$f":"INDIRECT(ADDRESS(ROW(A$80),ROW()-ROW(A$80)+(ROWS($88:133)-1)*2-1,4))","v":0},null,0,null,0,null,null,null,0,null,0,null,null,null,null,null,{"$f":"INDIRECT(ADDRESS(ROW(A$80),ROW()-ROW(A$80)+(ROWS($88:133)-1)*2,4))","v":0},0,null,0,{"$f":"INDIRECT(ADDRESS(ROW(A$80),ROW()-ROW(A$80)+(ROWS($88:133)-1)*2+1,4))","v":0}]
[{"$f":"IF(B134=\"\",0,INDEX(Price_List,ROWS($88:134)))","v":12},{"$f":"IF($C134=\"\",\"\",COUNTA($C$88:$C134))","v":47},{"$f":"IF(INDEX(INDIRECT(\"Product_List\"),ROWS($88:134))=\"\",\"\",INDEX(INDIRECT(\"Product_List\"),ROWS($88:134)))","v":"47-ขนมเปี๊ยะไส้ฟัก"},{"$f":"ยอดยกมา","v":0},null,null,null,null,null,null,{"$f":"D134+E134+J134-I134+H134","v":0},null,{"$f":"INDIRECT(ADDRESS(ROW(A$80),ROW()-ROW(A$80)+(ROWS($88:134)-1)*2-1,4))","v":0},null,{"$f":"F134+G134+M134+J134-K134","v":0},null,{"$f":"O134*A134","v":0},null,null,null,{"$f":"D134+E134-F134-G134","v":0},null,{"$f":"U134*6%+U134","v":0},null,null,null,null,null,{"$f":"INDIRECT(ADDRESS(ROW(A$80),ROW()-ROW(A$80)+(ROWS($88:134)-1)*2,4))","v":0},0,null,0,{"$f":"INDIRECT(ADDRESS(ROW(A$80),ROW()-ROW(A$80)+(ROWS($88:134)-1)*2+1,4))","v":0}]
[{"$f":"IF(B135=\"\",0,INDEX(Price_List,ROWS($88:135)))","v":12},{"$f":"IF($C135=\"\",\"\",COUNTA($C$88:$C135))","v":48},{"$f":"IF(INDEX(INDIRECT(\"Product_List\"),ROWS($88:135))=\"\",\"\",INDEX(INDIRECT(\"Product_List\"),ROWS($88:135)))","v":"48-มังกี้เค้ก"},{"$f":"ยอดยกมา","v":0},null,null,null,null,null,null,0,null,{"$f":"INDIRECT(ADDRESS(ROW(A$80),ROW()-ROW(A$80)+(ROWS($88:135)-1)*2-1,4))","v":0},null,0,null,0,null,null,null,0,null,0,null,null,null,null,null,{"$f":"INDIRECT(ADDRESS(ROW(A$80),ROW()-ROW(A$80)+(ROWS($88:135)-1)*2,4))","v":0},0,null,0,{"$f":"INDIRECT(ADDRESS(ROW(A$80),ROW()-ROW(A$80)+(ROWS($88:135)-1)*2+1,4))","v":0}]
["รวม",null,null,{"$f":"SUM(D$88:D$135)","v":0},0,0,0,0,0,0,0,null,{"$f":"SUM(M$88:M$135)","v":0},null,null,null,{"$f":"$AP$98","v":0},null,"บาท",null,{"$f":"SUM(U$88:U$135)","v":0},null,{"$f":"SUM(W$88:W$135)","v":0},null,null,null,null,null,{"$f":"SUM(AC$88:AC$135)","v":0},{"$f":"SUM(AD$88:AD$135)","v":0},{"$f":"SUM(AE$88:AE$135)","v":0},{"$f":"SUM(AF$88:AF$135)","v":0},{"$f":"SUM(AG$88:AG$135)","v":0}]
["เลขที่ไมล์ เวลาออกทำงาน",null,null,{"$f":"$BF$3","v":0},null,"Km","น้ำหนักของเสีย"]
["เลขที่ไมล์ เวลากลับ",null,null,{"$f":"$BF$4","v":0},null,"Km",{"$f":"$AA$5","v":0},null,"KG"]
["เวลากลับถึงสำนักงาน",null,null,{"$f":"$BF$1","v":"00:00:00"},null,"น."]
["เติมน้ำมัน",null,null,{"$f":"$AX3","v":0},null,"บาท"]
["จำนวนน้ำมัน",null,null,{"$f":"$AX4","v":0},null,"ลิตร"]
["ยอดรวมต้นทุนสาขา",null,null,{"$f":"$AX5","v":0},null,"บาท"]

{"sheet":"30","index":34,"n_rows":142,"n_cols":154,"rows_kept":142,"cut":false,"hidden":false,"merged":[[83,132,83,133],[129,10,129,11],[129,12,129,13],[129,14,129,15],[129,16,129,17],[127,10,127,11],[127,12,127,13],[127,14,127,15],[127,16,127,17],[127,20,127,21],[127,22,127,23],[127,24,127,25],[127,33,127,36],[126,10,126,11],[126,12,126,13],[126,14,126,15],[126,16,126,17],[128,10,128,11],[128,12,128,13],[129,24,129,25],[125,10,125,11],[125,12,125,13],[125,14,125,15],[125,16,125,17],[7,132,7,134],[8,132,8,134],[80,132,80,133],[82,132,82,133],[7,135,7,137],[8,135,8,137],[80,135,80,136],[82,135,82,136],[7,138,7,140],[7,141,7,143],[7,147,7,149],[8,138,8,140],[141,0,141,2],[141,3,141,4],[138,0,138,2],[138,3,138,4],[139,0,139,2],[139,3,139,4],[140,0,140,2],[140,3,140,4],[135,24,135,25],[135,33,135,36],[136,0,136,2],[136,3,136,4],[137,0,137,2],[137,3,137,4],[137,6,137,7],[137,18,137,21],[135,0,135,2],[135,10,135,11],[135,12,135,13],[135,14,135,15],[135,16,135,17],[135,18,135,19],[135,20,135,21],[135,22,135,23],[128,14,128,15],[128,16,128,17],[128,20,128,21],[128,22,128,23],[129,20,129,21],[129,22,129,23],[131,16,131,17],[132,16,132,17],[134,16,134,17],[131,20,131,21],[132,20,132,21],[134,20,134,21],[131,22,131,23],[132,22,132,23],[134,22,134,23],[131,24,131,25],[132,24,132,25],[134,24,134,25],[129,33,129,36],[128,24,128,25],[128,33,128,36],[126,20,126,21],[126,22,126,23],[124,24,124,25],[124,33,124,36],[125,20,125,21],[125,22,125,23],[125,24,125,25],[125,33,125,36],[124,10,124,11],[124,12,124,13],[124,14,124,15],[124,16,124,17],[124,20,124,21],[124,22,124,23],[126,24,126,25],[126,33,126,36],[122,24,122,25],[122,33,122,36],[123,10,123,11],[123,12,123,13],[123,14,123,15],[123,16,123,17],[123,20,123,21],[123,22,123,23],[123,24,123,25],[123,33,123,36],[122,10,122,11],[122,12,122,13],[122,14,122,15],[122,16,122,17],[122,20,122,21],[122,22,122,23],[120,24,120,25],[120,33,120,36],[121,10,121,11],[121,12,121,13],[121,14,121,15],[121,16,121,17],[121,20,121,21],[121,22,121,23],[121,24,121,25],[121,33,121,36],[120,10,120,11],[120,12,120,13],[120,14,120,15],[120,16,120,17],[120,20,120,21],[120,22,120,23],[118,24,118,25],[118,33,118,36],[119,10,119,11],[119,12,119,13],[119,14,119,15],[119,16,119,17],[119,20,119,21],[119,22,119,23],[119,24,119,25],[119,33,119,36],[118,10,118,11],[118,12,118,13],[118,14,118,15],[118,16,118,17],[118,20,118,21],[118,22,118,23],[116,24,116,25],[116,33,116,36],[117,10,117,11],[117,12,117,13],[117,14,117,15],[117,16,117,17],[117,20,117,21],[117,22,117,23],[117,24,117,25],[117,33,117,36],[116,10,116,11],[116,12,116,13],[116,14,116,15],[116,16,116,17],[116,20,116,21],[116,22,116,23],[114,24,114,25],[114,33,114,36],[115,10,115,11],[115,12,115,13],[115,14,115,15],[115,16,115,17],[115,20,115,21],[115,22,115,23],[115,24,115,25],[115,33,115,36],[114,10,114,11],[114,12,114,13],[114,14,114,15],[114,16,114,17],[114,20,114,21],[114,22,114,23],[112,24,112,25],[112,33,112,36],[113,10,113,11],[113,12,113,13],[113,14,113,15],[113,16,113,17],[113,20,113,21],[113,22,113,23],[113,24,113,25],[113,33,113,36],[112,10,112,11],[112,12,112,13],[112,14,112,15],[112,16,112,17],[112,20,112,21],[112,22,112,23],[110,24,110,25],[110,33,110,36],[111,10,111,11],[111,12,111,13],[111,14,111,15],[111,16,111,17],[111,20,111,21],[111,22,111,23],[111,24,111,25],[111,33,111,36],[110,10,110,11],[110,12,110,13],[110,14,110,15],[110,16,110,17],[110,20,110,21],[110,22,110,23],[108,24,108,25],[108,33,108,36],[109,10,109,11],[109,12,109,13],[109,14,109,15],[109,16,109,17],[109,20,109,21],[109,22,109,23],[109,24,109,25],[109,33,109,36],[108,10,108,11],[108,12,108,13],[108,14,108,15],[108,16,108,17],[108,20,108,21],[108,22,108,23],[106,24,106,25],[106,33,106,36],[107,10,107,11],[107,12,107,13],[107,14,107,15],[107,16,107,17],[107,20,107,21],[107,22,107,23],[107,24,107,25],[107,33,107,36],[106,10,106,11],[106,12,106,13],[106,14,106,15],[106,16,106,17],[106,20,106,21],[106,22,106,23],[104,24,104,25],[104,33,104,36],[105,10,105,11],[105,12,105,13],[105,14,105,15],[105,16,105,17],[105,20,105,21],[105,22,105,23],[105,24,105,25],[105,33,105,36],[104,10,104,11],[104,12,104,13],[104,14,104,15],[104,16,104,17],[104,20,104,21],[104,22,104,23],[102,24,102,25],[102,33,102,36],[103,10,103,11],[103,12,103,13],[103,14,103,15],[103,16,103,17],[103,20,103,21],[103,22,103,23],[103,24,103,25],[103,33,103,36],[102,10,102,11],[102,12,102,13],[102,14,102,15],[102,16,102,17],[102,20,102,21],[102,22,102,23],[101,10,101,11],[101,12,101,13],[101,14,101,15],[101,16,101,17],[101,20,101,21],[101,22,101,23],[101,24,101,25],[101,33,101,36],[100,10,100,11],[100,12,100,13],[100,14,100,15],[100,16,100,17],[100,20,100,21],[100,22,100,23],[99,10,99,11],[99,12,99,13],[99,14,99,15],[99,16,99,17],[99,20,99,21],[99,22,99,23],[99,24,99,25],[99,33,99,36],[100,24,100,25],[100,33,100,36],[97,24,97,25],[97,33,97,36],[97,38,97,40],[98,10,98,11],[98,12,98,13],[98,14,98,15],[98,16,98,17],[98,20,98,21],[98,22,98,23],[98,24,98,25],[97,10,97,11],[97,12,97,13],[97,14,97,15],[97,16,97,17],[97,20,97,21],[97,22,97,23],[98,33,98,36],[95,24,95,25],[95,33,95,36],[96,10,96,11],[96,12,96,13],[96,14,96,15],[96,16,96,17],[96,20,96,21],[96,22,96,23],[96,24,96,25],[96,33,96,36],[95,10,95,11],[95,12,95,13],[95,14,95,15],[95,16,95,17],[95,20,95,21],[95,22,95,23],[93,24,93,25],[93,33,93,36],[94,10,94,11],[94,12,94,13],[94,14,94,15],[94,16,94,17],[94,20,94,21],[94,22,94,23],[94,24,94,25],[94,33,94,36],[93,10,93,11],[93,12,93,13],[93,14,93,15],[93,16,93,17],[93,20,93,21],[93,22,93,23],[91,24,91,25],[91,33,91,36],[92,10,92,11],[92,12,92,13],[92,14,92,15],[92,16,92,17],[92,20,92,21],[92,22,92,23],[92,24,92,25],[92,33,92,36],[91,10,91,11],[91,12,91,13],[91,14,91,15],[91,16,91,17],[91,20,91,21],[91,22,91,23],[86,22,86,23],[86,24,86,25],[88,20,88,21],[88,22,88,23],[88,24,88,25],[88,33,88,36],[89,24,89,25],[89,33,89,36],[90,10,90,11],[90,12,90,13],[90,14,90,15],[90,16,90,17],[90,20,90,21],[90,22,90,23],[90,24,90,25],[90,33,90,36],[89,10,89,11],[89,12,89,13],[89,14,89,15],[89,16,89,17],[89,20,89,21],[89,22,89,23],[83,36,83,37],[83,39,83,40],[83,42,83,43],[83,45,83,46],[83,48,83,49],[83,51,83,52],[83,150,83,153],[86,10,86,11],[86,12,86,13],[86,14,86,15],[86,16,86,17],[86,20,86,21],[83,108,83,109],[83,111,83,112],[83,114,83,115],[83,117,83,118],[83,120,83,121],[83,123,83,124],[83,90,83,91],[83,93,83,94],[83,96,83,97],[83,99,83,100],[83,102,83,103],[83,105,83,106],[82,39,82,40],[82,42,82,43],[82,45,82,46],[82,48,82,49],[83,84,83,85],[83,87,83,88],[83,54,83,55],[83,57,83,58],[83,60,83,61],[83,63,83,64],[83,66,83,67],[83,69,83,70],[83,72,83,73],[83,75,83,76],[83,78,83,79],[83,81,83,82],[83,0,83,5],[83,6,83,7],[83,9,83,10],[83,12,83,13],[83,15,83,16],[82,105,82,106],[82,108,82,109],[82,111,82,112],[82,114,82,115],[82,87,82,88],[82,90,82,91],[82,93,82,94],[82,96,82,97],[82,99,82,100],[82,102,82,103],[82,69,82,70],[82,72,82,73],[82,75,82,76],[82,78,82,79],[82,81,82,82],[82,84,82,85],[82,51,82,52],[82,54,82,55],[82,57,82,58],[82,15,82,16],[82,18,82,19],[82,21,82,22],[82,24,82,25],[82,27,82,28],[82,30,82,31],[81,0,81,2],[81,3,81,5],[81,150,82,153],[82,0,82,2],[82,3,82,4],[82,6,82,7],[82,9,82,10],[82,12,82,13],[82,123,82,124],[82,126,82,127],[82,129,82,130],[82,117,82,118],[82,120,82,121],[82,60,82,61],[82,63,82,64],[82,66,82,67],[82,33,82,34],[82,36,82,37],[80,114,80,115],[80,117,80,118],[80,120,80,121],[80,123,80,124],[80,126,80,127],[80,129,80,130],[80,96,80,97],[80,99,80,100],[80,102,80,103],[80,105,80,106],[80,108,80,109],[80,111,80,112],[80,78,80,79],[80,81,80,82],[80,87,80,88],[80,90,80,91],[80,93,80,94],[80,60,80,61],[80,63,80,64],[80,66,80,67],[80,69,80,70],[80,72,80,73],[80,75,80,76],[80,84,80,85],[79,0,79,5],[80,0,80,5],[80,6,80,7],[80,9,80,10],[80,12,80,13],[80,15,80,16],[80,18,80,19],[80,21,80,22],[8,114,8,116],[8,78,8,80],[8,81,8,83],[8,87,8,89],[8,90,8,92],[8,93,8,95],[8,60,8,62],[8,63,8,65],[8,66,8,68],[8,69,8,71],[8,72,8,74],[8,75,8,77],[8,54,8,56],[8,57,8,59],[8,24,8,26],[8,27,8,29],[8,120,8,122],[8,123,8,125],[8,126,8,128],[8,129,8,131],[8,96,8,98],[8,99,8,101],[8,102,8,104],[8,105,8,107],[8,108,8,110],[8,111,8,113],[8,33,8,35],[8,36,8,38],[8,39,8,41],[8,84,8,86],[7,150,8,150],[7,151,8,151],[8,6,8,8],[8,9,8,11],[8,12,8,14],[8,15,8,17],[8,18,8,20],[8,21,8,23],[7,114,7,116],[7,117,7,119],[7,120,7,122],[7,123,7,125],[7,126,7,128],[7,129,7,131],[7,96,7,98],[7,99,7,101],[7,102,7,104],[7,105,7,107],[7,108,7,110],[8,117,8,119],[7,87,7,89],[7,90,7,92],[7,93,7,95],[7,60,7,62],[7,63,7,65],[7,66,7,68],[7,69,7,71],[7,72,7,74],[7,75,7,77],[7,54,7,56],[7,57,7,59],[7,24,7,26],[7,27,7,29],[7,30,7,32],[7,33,7,35],[7,36,7,38],[7,39,7,41],[7,84,7,86],[6,150,6,151],[6,152,8,152],[6,153,8,153],[7,6,7,8],[7,9,7,11],[7,12,7,14],[7,15,7,17],[7,18,7,20],[7,21,7,23],[6,117,6,119],[6,120,6,122],[6,123,6,125],[6,126,6,128],[6,129,6,131],[6,99,6,101],[6,102,6,104],[6,105,6,107],[6,108,6,110],[6,111,6,113],[6,54,6,56],[6,57,6,59],[7,111,7,113],[7,78,7,80],[7,81,7,83],[6,0,8,0],[6,1,8,1],[6,2,8,2],[6,3,8,3],[6,4,8,4],[6,6,6,8],[6,45,6,47],[6,48,6,50],[6,51,6,53],[7,42,7,44],[7,45,7,47],[7,48,7,50],[7,51,7,53],[8,42,8,44],[8,45,8,47],[8,48,8,50],[8,51,8,53],[6,27,6,29],[6,30,6,32],[6,33,6,35],[6,36,6,38],[6,39,6,41],[6,42,6,44],[8,30,8,32],[4,26,4,29],[4,30,4,31],[4,32,4,34],[4,35,4,36],[6,9,6,11],[6,12,6,14],[6,15,6,17],[6,18,6,20],[6,21,6,23],[6,24,6,26],[3,41,3,44],[3,46,3,48],[3,49,3,51],[3,54,3,56],[3,57,3,60],[4,0,4,1],[4,2,4,3],[4,4,4,5],[4,6,4,12],[4,14,4,16],[3,17,3,19],[3,22,3,25],[3,26,3,29],[3,30,3,33],[3,34,3,37],[3,38,3,40],[4,38,4,40],[4,41,4,44],[4,46,4,48],[4,49,4,51],[4,54,4,56],[4,57,4,60],[4,17,4,19],[4,22,4,25],[2,38,2,40],[3,0,3,1],[3,2,3,3],[3,4,3,5],[3,6,3,12],[3,14,3,16],[2,17,2,19],[2,22,2,25],[2,26,2,29],[2,30,2,33],[80,36,80,37],[80,39,80,40],[0,38,0,40],[0,41,0,44],[0,46,0,48],[0,54,0,56],[0,57,0,60],[2,0,2,1],[2,2,2,3],[2,4,2,5],[2,6,2,12],[2,14,2,16],[0,0,0,12],[0,14,0,16],[0,17,0,23],[0,30,0,33],[0,34,0,35],[0,36,0,37],[2,41,2,44],[2,46,2,48],[2,49,2,51],[2,54,2,56],[2,57,2,60],[2,34,2,37],[6,141,6,143],[6,147,6,149],[83,18,83,19],[83,21,83,22],[83,24,83,25],[83,27,83,28],[83,30,83,31],[83,33,83,34],[83,126,83,127],[83,129,83,130],[8,141,8,143],[8,147,8,149],[80,138,80,139],[80,141,80,142],[80,147,80,148],[82,138,82,139],[82,141,82,142],[82,147,82,148],[6,60,6,62],[6,87,6,89],[6,90,6,92],[6,93,6,95],[6,96,6,98],[6,63,6,65],[88,12,88,13],[88,14,88,15],[88,16,88,17],[6,114,6,116],[6,81,6,83],[6,84,6,86],[6,132,6,134],[6,135,6,137],[6,138,6,140],[6,66,6,68],[6,69,6,71],[6,72,6,74],[6,75,6,77],[6,78,6,80],[80,42,80,43],[80,45,80,46],[80,48,80,49],[80,51,80,52],[80,54,80,55],[80,57,80,58],[80,24,80,25],[80,27,80,28],[80,30,80,31],[80,33,80,34],[83,147,83,148],[131,33,131,36],[132,33,132,36],[134,33,134,36],[131,10,131,11],[132,10,132,11],[134,10,134,11],[131,12,131,13],[132,12,132,13],[134,12,134,13],[131,14,131,15],[132,14,132,15],[134,14,134,15],[86,33,86,36],[87,10,87,11],[87,12,87,13],[87,14,87,15],[87,16,87,17],[87,20,87,21],[87,22,87,23],[83,135,83,136],[130,10,130,11],[130,12,130,13],[130,14,130,15],[6,144,6,146],[7,144,7,146],[8,144,8,146],[80,144,80,145],[82,144,82,145],[83,144,83,145],[133,10,133,11],[133,12,133,13],[133,14,133,15],[133,16,133,17],[133,20,133,21],[133,22,133,23],[133,24,133,25],[133,33,133,36],[83,138,83,139],[83,141,83,142],[130,16,130,17],[130,20,130,21],[130,22,130,23],[130,24,130,25],[130,33,130,36],[87,24,87,25],[87,33,87,36],[88,10,88,11]]}
[":::: รายงานการขายประจำวัน (Sale Daily Report)  ::::",null,null,null,null,null,null,null,null,null,null,null,null,null,"Print Date : ",null,null,{"$f":"NOW()","v":"2025-04-24T22:39:10.130"},null,null,null,null,null,null,null,null,null,null,null,null,"จำนวนร้าน :",null,null,null,{"$f":"MAX($A$10:$A$79)","v":0},null,"ร้าน",null,"เป้ายอดขาย :",null,null,null,null,null,null,null,{"$f":"C3","v":45807},null,null,{"$f":"LEFT('Problems & Solutions'!$B$2,FIND(\"|\",'Problems & Solutions'!$B$2))&\" วันที่\"&TEXT($C$3,\"[$-107041E] d mmmm yyyy;@\")","v":"ขั้นตอนการตรวจรีพอร์ตขาย | วันที่ 30 พฤษภาคม 2568"},null,null,null,null,"เวลากลับ :"]
[]
["วันที่ :",null,{"$f":"DATE(ใส่ข้อมูล!G2-543,ใส่ข้อมูล!V2,ActiveSheetName)","v":"2025-05-30"},null,"พนักงานขาย",null,{"$f":"INDEX(OFFSET(Sale_Region,,1),ActiveSheetName)","v":0},null,null,null,null,null,null,null,"รวมยอดเบิก :",null,null,{"$f":"E136","v":0},null,null,"ชิ้น",null,"ใหญ่สด(40)",null,null,null,{"$f":"Cash_Major_Bill","v":0},null,null,null,"ใหญ่เชื่อ(42)",null,null,null,{"$f":"Credit_Major_Bill","v":0},null,null,null,"บิลใหญ่ :",null,null,{"$f":"AA3+AI3","v":0},null,null,null,null,"เติมน้ำมัน :",null,null,null,null,null,"บาท",null,"ไมล์ออก :",null,null,{"$f":"เลขไมล์ออก","v":0},null,null,null,"Km"]
["เขตการขาย :",null,{"$f":"INDEX(Sale_Region,ActiveSheetName)","v":0},null,"ผช.ขาย",null,{"$f":"INDEX(OFFSET(Sale_Region,,2),ActiveSheetName)","v":0},null,null,null,null,null,null,null,"ของเหลือ :",null,null,{"$f":"F136","v":0},null,null,"ชิ้น",null,"เล็กสด(41)",null,null,null,{"$f":"Cash_Minor_Bill","v":0},null,null,null,"เล็กเชื่อ(43)",null,null,null,{"$f":"Credit_Minor_Bill","v":0},null,null,null,"บิลเล็ก :",null,null,{"$f":"AA4+AI4","v":0},null,null,null,null,"จำนวนลิตร :",null,null,null,null,null,"ลิตร",null,"ไมล์เข้า :",null,null,null,null,null,null,"Km"]
["สายส่ง :",null,{"$f":"\"Sale \"&ใส่ข้อมูล!E3&\"-\"&ใส่ข้อมูล!G3","v":"Sale KB-01"},null,"พนักงานเสริม",null,{"$f":"INDEX(OFFSET(Sale_Region,,3),ActiveSheetName)","v":0},null,null,null,null,null,null,null,"ของเสีย :",null,null,{"$f":"G136","v":0},null,null,"ชิ้น",null,"น้ำหนักของเสีย",null,null,null,null,null,null,null,"Kg.",null,"%ของเสีย",null,null,{"$f":"IF(Order_Cal=0,0,ROUND(Waste_Cal*100/Order_Cal,2))","v":0},null,"%","VAT :",null,null,{"$f":"EW81","v":0},null,null,null,null,"ต้นทุนสาขา :",null,null,{"$f":"SUMPRODUCT((($A$88:$A$135)-($A$88:$A$135)*0.45)*(($E$88:$E$135)-($G$88:$G$135)))","v":0},null,null,"บาท",null,"ระยะทาง :",null,null,{"$f":"IF(OR($BF$4=0,$BF$3=0),0,$BF$4-$BF$3)","v":0},null,null,null,"Km"]
[]
["No","รหัสร้าน (CustNo)","ชื่อร้าน (Store Name)","เวลาเข้าร้าน","ระยะเวลาระหว่างร้าน","บิล(Invoice)",{"$f":"INDEX(INDIRECT(\"dProduct[ProductName]\"),ROUNDUP(COLUMNS($G:G)/3,0))","v":"ขนมปังหมูหยองน้ำสลัด"},null,null,{"$f":"INDEX(INDIRECT(\"dProduct[ProductName]\"),ROUNDUP(COLUMNS($G:J)/3,0))","v":"ขนมปังหมูหยองน้ำพริกเผา"},null,null,{"$f":"INDEX(INDIRECT(\"dProduct[ProductName]\"),ROUNDUP(COLUMNS($G:M)/3,0))","v":"ขนมปังไก่หยองน้ำสลัด"},null,null,{"$f":"INDEX(INDIRECT(\"dProduct[ProductName]\"),ROUNDUP(COLUMNS($G:P)/3,0))","v":"ขนมปังไส้ครีมสลัด"},null,null,{"$f":"INDEX(INDIRECT(\"dProduct[ProductName]\"),ROUNDUP(COLUMNS($G:S)/3,0))","v":"ขนมปังเนยสด"},null,null,{"$f":"INDEX(INDIRECT(\"dProduct[ProductName]\"),ROUNDUP(COLUMNS($G:V)/3,0))","v":"ขนมปังไส้สังขยาเล็ก"},null,null,{"$f":"INDEX(INDIRECT(\"dProduct[ProductName]\"),ROUNDUP(COLUMNS($G:Y)/3,0))","v":"ขนมปังไส้เผือก"},null,null,{"$f":"INDEX(INDIRECT(\"dProduct[ProductName]\"),ROUNDUP(COLUMNS($G:AB)/3,0))","v":"ขนมปังไส้ถั่วแดง"},null,null,{"$f":"INDEX(INDIRECT(\"dProduct[ProductName]\"),ROUNDUP(COLUMNS($G:AE)/3,0))","v":"ขนมปังไส้ถั่วดำ"},null,null,{"$f":"INDEX(INDIRECT(\"dProduct[ProductName]\"),ROUNDUP(COLUMNS($G:AH)/3,0))","v":"ขนมปังไส้มันม่วง"},null,null,{"$f":"INDEX(INDIRECT(\"dProduct[ProductName]\"),ROUNDUP(COLUMNS($G:AK)/3,0))","v":"เค้กกล้วยหอม"},null,null,{"$f":"INDEX(INDIRECT(\"dProduct[ProductName]\"),ROUNDUP(COLUMNS($G:AN)/3,0))","v":"เค้กบัตเตอร์"},null,null,{"$f":"INDEX(INDIRECT(\"dProduct[ProductName]\"),ROUNDUP(COLUMNS($G:AQ)/3,0))","v":"ขนมปังโรลถั่วแดง"},null,null,{"$f":"INDEX(INDIRECT(\"dProduct[ProductName]\"),ROUNDUP(COLUMNS($G:AT)/3,0))","v":"ขนมปังไส้สังขยาใหญ่"},null,null,{"$f":"INDEX(INDIRECT(\"dProduct[ProductName]\"),ROUNDUP(COLUMNS($G:AW)/3,0))","v":"ขนมปังชนิดแผ่น(480กรัม)"},null,null,{"$f":"INDEX(INDIRECT(\"dProduct[ProductName]\"),ROUNDUP(COLUMNS($G:AZ)/3,0))","v":"โมจิไส้ถั่ว"},null,null,{"$f":"INDEX(INDIRECT(\"dProduct[ProductName]\"),ROUNDUP(COLUMNS($G:BC)/3,0))","v":"โมจิไส้เผือก"},null,null,{"$f":"INDEX(INDIRECT(\"dProduct[ProductName]\"),ROUNDUP(COLUMNS($G:BF)/3,0))","v":"โมจิไส้ถั่วไข่เค็ม"},null,null,{"$f":"INDEX(INDIRECT(\"dProduct[ProductName]\"),ROUNDUP(COLUMNS($G:BI)/3,0))","v":"ขนมปังพิซซ่า"},null,null,{"$f":"INDEX(INDIRECT(\"dProduct[ProductName]\"),ROUNDUP(COLUMNS($G:BL)/3,0))","v":"ขนมปังพิซซ่าปูอัดแฮม"},null,null,{"$f":"INDEX(INDIRECT(\"dProduct[ProductName]\"),ROUNDUP(COLUMNS($G:BO)/3,0))","v":"ขนมปังไส้กรอก"},null,null,{"$f":"INDEX(INDIRECT(\"dProduct[ProductName]\"),ROUNDUP(COLUMNS($G:BR)/3,0))","v":"ขนมก้านบัว"},null,null,{"$f":"INDEX(INDIRECT(\"dProduct[ProductName]\"),ROUNDUP(COLUMNS($G:BU)/3,0))","v":"พายสับปะรด"},null,null,{"$f":"INDEX(INDIRECT(\"dProduct[ProductName]\"),ROUNDUP(COLUMNS($G:BX)/3,0))","v":"พายไส้มะพร้าว"},null,null,{"$f":"INDEX(INDIRECT(\"dProduct[ProductName]\"),ROUNDUP(COLUMNS($G:CA)/3,0))","v":"ขนมปังโรลมันเทศ"},null,null,{"$f":"INDEX(INDIRECT(\"dProduct[ProductName]\"),ROUNDUP(COLUMNS($G:CD)/3,0))","v":"ขนมปังไส้ครีมสลัดน้ำพริกเผา"},null,null,{"$f":"INDEX(INDIRECT(\"dProduct[ProductName]\"),ROUNDUP(COLUMNS($G:CG)/3,0))","v":"ขนมปังไส้สังขยาไข่"},null,null,{"$f":"INDEX(INDIRECT(\"dProduct[ProductName]\"),ROUNDUP(COLUMNS($G:CJ)/3,0))","v":"ขนมปังไส้สังขยามะพร้าว"},null,null,{"$f":"INDEX(INDIRECT(\"dProduct[ProductName]\"),ROUNDUP(COLUMNS($G:CM)/3,0))","v":"ขนมปังไส้ครีมชาไทย"},null,null,{"$f":"INDEX(INDIRECT(\"dProduct[ProductName]\"),ROUNDUP(COLUMNS($G:CP)/3,0))","v":"ขนมปังโรลมันม่วง"},null,null,{"$f":"INDEX(INDIRECT(\"dProduct[ProductName]\"),ROUNDUP(COLUMNS($G:CS)/3,0))","v":"ขนมปังโรลช็อกโกแลต"},null,null,{"$f":"INDEX(INDIRECT(\"dProduct[ProductName]\"),ROUNDUP(COLUMNS($G:CV)/3,0))","v":"ขนมปังชนิดแผ่น(155กรัม)"},null,null,{"$f":"INDEX(INDIRECT(\"dProduct[ProductName]\"),ROUNDUP(COLUMNS($G:CY)/3,0))","v":"ขนมปังโรลเผือก"},null,null,{"$f":"INDEX(INDIRECT(\"dProduct[ProductName]\"),ROUNDUP(COLUMNS($G:DB)/3,0))","v":"ขนมปังไก่หยองน้ำสลัด Mini"},null,null,{"$f":"INDEX(INDIRECT(\"dProduct[ProductName]\"),ROUNDUP(COLUMNS($G:DE)/3,0))","v":"ขนมปังไส้ช็อกโกแลต"},null,null,{"$f":"INDEX(INDIRECT(\"dProduct[ProductName]\"),ROUNDUP(COLUMNS($G:DH)/3,0))","v":"ขนมปังไส้ครีมสังขยาไข่"},null,null,{"$f":"INDEX(INDIRECT(\"dProduct[ProductName]\"),ROUNDUP(COLUMNS($G:DK)/3,0))","v":"ขนมปังพิซซ่าฮาวายเอี้ยน"},null,null,{"$f":"INDEX(INDIRECT(\"dProduct[ProductName]\"),ROUNDUP(COLUMNS($G:DN)/3,0))","v":"ครัวซองต์หมูหยองน้ำสลัด"},null,null,{"$f":"INDEX(INDIRECT(\"dProduct[ProductName]\"),ROUNDUP(COLUMNS($G:DQ)/3,0))","v":"แพนเบรดไส้เผือก"},null,null,{"$f":"INDEX(INDIRECT(\"dProduct[ProductName]\"),ROUNDUP(COLUMNS($G:DT)/3,0))","v":"แพนเบรดไส้ถั่วแดง"},null,null,{"$f":"INDEX(INDIRECT(\"dProduct[ProductName]\"),ROUNDUP(COLUMNS($G:DW)/3,0))","v":"ขนมปังกรอบเนยน้ำตาล(30กรัม)"},null,null,{"$f":"INDEX(INDIRECT(\"dProduct[ProductName]\"),ROUNDUP(COLUMNS($G:DZ)/3,0))","v":"ขนมปังชนิดแผ่นโฮลวีต"},null,null,{"$f":"INDEX(INDIRECT(\"dProduct[ProductName]\"),ROUNDUP(COLUMNS($G:EC)/3,0))","v":"เค้กโรลใบเตย"},null,null,{"$f":"INDEX(INDIRECT(\"dProduct[ProductName]\"),ROUNDUP(COLUMNS($G:EF)/3,0))","v":"ขนมโมจิไส้ถั่วดำ"},null,null,{"$f":"INDEX(INDIRECT(\"dProduct[ProductName]\"),ROUNDUP(COLUMNS($G:EI)/3,0))","v":"ครัวซองต์ไส้กรอกชีส"},null,null,{"$f":"INDEX(INDIRECT(\"dProduct[ProductName]\"),ROUNDUP(COLUMNS($G:EL)/3,0))","v":"ขนมเปี๊ยะไส้ถั่ว"},null,null,{"$f":"INDEX(INDIRECT(\"dProduct[ProductName]\"),ROUNDUP(COLUMNS($G:EO)/3,0))","v":"ขนมเปี๊ยะไส้ฟัก"},null,null,{"$f":"INDEX(INDIRECT(\"dProduct[ProductName]\"),ROUNDUP(COLUMNS($G:ER)/3,0))","v":"มังกี้เค้ก"},null,null,"มูลค่าสินค้า",null,"ภาษี","รวมยอดขาย"]
[null,null,null,null,null,"ราคาขาย",{"$f":"IF(G$7=0,0,INDEX(Price_List,ROUNDUP(COLUMNS($G:G)/3,0)))","v":20},null,null,{"$f":"IF(J$7=0,0,INDEX(Price_List,ROUNDUP(COLUMNS($G:J)/3,0)))","v":20},null,null,{"$f":"IF(M$7=0,0,INDEX(Price_List,ROUNDUP(COLUMNS($G:M)/3,0)))","v":20},null,null,{"$f":"IF(P$7=0,0,INDEX(Price_List,ROUNDUP(COLUMNS($G:P)/3,0)))","v":15},null,null,{"$f":"IF(S$7=0,0,INDEX(Price_List,ROUNDUP(COLUMNS($G:S)/3,0)))","v":15},null,null,{"$f":"IF(V$7=0,0,INDEX(Price_List,ROUNDUP(COLUMNS($G:V)/3,0)))","v":10},null,null,{"$f":"IF(Y$7=0,0,INDEX(Price_List,ROUNDUP(COLUMNS($G:Y)/3,0)))","v":10},null,null,{"$f":"IF(AB$7=0,0,INDEX(Price_List,ROUNDUP(COLUMNS($G:AB)/3,0)))","v":10},null,null,{"$f":"IF(AE$7=0,0,INDEX(Price_List,ROUNDUP(COLUMNS($G:AE)/3,0)))","v":10},null,null,{"$f":"IF(AH$7=0,0,INDEX(Price_List,ROUNDUP(COLUMNS($G:AH)/3,0)))","v":10},null,null,{"$f":"IF(AK$7=0,0,INDEX(Price_List,ROUNDUP(COLUMNS($G:AK)/3,0)))","v":15},null,null,{"$f":"IF(AN$7=0,0,INDEX(Price_List,ROUNDUP(COLUMNS($G:AN)/3,0)))","v":15},null,null,{"$f":"IF(AQ$7=0,0,INDEX(Price_List,ROUNDUP(COLUMNS($G:AQ)/3,0)))","v":15},null,null,{"$f":"IF(AT$7=0,0,INDEX(Price_List,ROUNDUP(COLUMNS($G:AT)/3,0)))","v":15},null,null,{"$f":"IF(AW$7=0,0,INDEX(Price_List,ROUNDUP(COLUMNS($G:AW)/3,0)))","v":42},null,null,{"$f":"IF(AZ$7=0,0,INDEX(Price_List,ROUNDUP(COLUMNS($G:AZ)/3,0)))","v":12},null,null,{"$f":"IF(BC$7=0,0,INDEX(Price_List,ROUNDUP(COLUMNS($G:BC)/3,0)))","v":12},null,null,{"$f":"IF(BF$7=0,0,INDEX(Price_List,ROUNDUP(COLUMNS($G:BF)/3,0)))","v":15},null,null,{"$f":"IF(BI$7=0,0,INDEX(Price_List,ROUNDUP(COLUMNS($G:BI)/3,0)))","v":20},null,null,{"$f":"IF(BL$7=0,0,INDEX(Price_List,ROUNDUP(COLUMNS($G:BL)/3,0)))","v":20},null,null,{"$f":"IF(BO$7=0,0,INDEX(Price_List,ROUNDUP(COLUMNS($G:BO)/3,0)))","v":20},null,null,{"$f":"IF(BR$7=0,0,INDEX(Price_List,ROUNDUP(COLUMNS($G:BR)/3,0)))","v":15},null,null,{"$f":"IF(BU$7=0,0,INDEX(Price_List,ROUNDUP(COLUMNS($G:BU)/3,0)))","v":20},null,null,{"$f":"IF(BX$7=0,0,INDEX(Price_List,ROUNDUP(COLUMNS($G:BX)/3,0)))","v":20},null,null,{"$f":"IF(CA$7=0,0,INDEX(Price_List,ROUNDUP(COLUMNS($G:CA)/3,0)))","v":15},null,null,{"$f":"IF(CD$7=0,0,INDEX(Price_List,ROUNDUP(COLUMNS($G:CD)/3,0)))","v":15},null,null,{"$f":"IF(CG$7=0,0,INDEX(Price_List,ROUNDUP(COLUMNS($G:CG)/3,0)))","v":20},null,null,{"$f":"IF(CJ$7=0,0,INDEX(Price_List,ROUNDUP(COLUMNS($G:CJ)/3,0)))","v":20},null,null,{"$f":"IF(CM$7=0,0,INDEX(Price_List,ROUNDUP(COLUMNS($G:CM)/3,0)))","v":10},null,null,{"$f":"IF(CP$7=0,0,INDEX(Price_List,ROUNDUP(COLUMNS($G:CP)/3,0)))","v":15},null,null,{"$f":"IF(CS$7=0,0,INDEX(Price_List,ROUNDUP(COLUMNS($G:CS)/3,0)))","v":15},null,null,{"$f":"IF(CV$7=0,0,INDEX(Price_List,ROUNDUP(COLUMNS($G:CV)/3,0)))","v":16},null,null,{"$f":"IF(CY$7=0,0,INDEX(Price_List,ROUNDUP(COLUMNS($G:CY)/3,0)))","v":15},null,null,{"$f":"IF(DB$7=0,0,INDEX(Price_List,ROUNDUP(COLUMNS($G:DB)/3,0)))","v":15},null,null,{"$f":"IF(DE$7=0,0,INDEX(Price_List,ROUNDUP(COLUMNS($G:DE)/3,0)))","v":10},null,null,{"$f":"IF(DH$7=0,0,INDEX(Price_List,ROUNDUP(COLUMNS($G:DH)/3,0)))","v":10},null,null,{"$f":"IF(DK$7=0,0,INDEX(Price_List,ROUNDUP(COLUMNS($G:DK)/3,0)))","v":20},null,null,{"$f":"IF(DN$7=0,0,INDEX(Price_List,ROUNDUP(COLUMNS($G:DN)/3,0)))","v":20},null,null,{"$f":"IF(DQ$7=0,0,INDEX(Price_List,ROUNDUP(COLUMNS($G:DQ)/3,0)))","v":15},null,null,{"$f":"IF(DT$7=0,0,INDEX(Price_List,ROUNDUP(COLUMNS($G:DT)/3,0)))","v":15},null,null,{"$f":"IF(DW$7=0,0,INDEX(Price_List,ROUNDUP(COLUMNS($G:DW)/3,0)))","v":12},null,null,{"$f":"IF(DZ$7=0,0,INDEX(Price_List,ROUNDUP(COLUMNS($G:DZ)/3,0)))","v":18},null,null,{"$f":"IF(EC$7=0,0,INDEX(Price_List,ROUNDUP(COLUMNS($G:EC)/3,0)))","v":12},null,null,{"$f":"IF(EF$7=0,0,INDEX(Price_List,ROUNDUP(COLUMNS($G:EF)/3,0)))","v":12},null,null,{"$f":"IF(EI$7=0,0,INDEX(Price_List,ROUNDUP(COLUMNS($G:EI)/3,0)))","v":25},null,null,{"$f":"IF(EL$7=0,0,INDEX(Price_List,ROUNDUP(COLUMNS($G:EL)/3,0)))","v":12},null,null,{"$f":"IF(EO$7=0,0,INDEX(Price_List,ROUNDUP(COLUMNS($G:EO)/3,0)))","v":12},null,null,{"$f":"IF(ER$7=0,0,INDEX(Price_List,ROUNDUP(COLUMNS($G:ER)/3,0)))","v":12},null,null,"เงินเชื่อ","เงินสด"]
[null,null,null,null,null,"คงเหลือ(ตามบัญชี)",{"$f":"IF(G$7=0,0,INDEX(INDIRECT(Order_Rng),ROUNDUP(COLUMNS($G:G)/3,0)))","v":0},null,null,{"$f":"IF(J$7=0,0,INDEX(INDIRECT(Order_Rng),ROUNDUP(COLUMNS($G:J)/3,0)))","v":0},null,null,{"$f":"IF(M$7=0,0,INDEX(INDIRECT(Order_Rng),ROUNDUP(COLUMNS($G:M)/3,0)))","v":0},null,null,{"$f":"IF(P$7=0,0,INDEX(INDIRECT(Order_Rng),ROUNDUP(COLUMNS($G:P)/3,0)))","v":0},null,null,{"$f":"IF(S$7=0,0,INDEX(INDIRECT(Order_Rng),ROUNDUP(COLUMNS($G:S)/3,0)))","v":0},null,null,{"$f":"IF(V$7=0,0,INDEX(INDIRECT(Order_Rng),ROUNDUP(COLUMNS($G:V)/3,0)))","v":0},null,null,{"$f":"IF(Y$7=0,0,INDEX(INDIRECT(Order_Rng),ROUNDUP(COLUMNS($G:Y)/3,0)))","v":0},null,null,{"$f":"IF(AB$7=0,0,INDEX(INDIRECT(Order_Rng),ROUNDUP(COLUMNS($G:AB)/3,0)))","v":0},null,null,{"$f":"IF(AE$7=0,0,INDEX(INDIRECT(Order_Rng),ROUNDUP(COLUMNS($G:AE)/3,0)))","v":0},null,null,{"$f":"IF(AH$7=0,0,INDEX(INDIRECT(Order_Rng),ROUNDUP(COLUMNS($G:AH)/3,0)))","v":0},null,null,{"$f":"IF(AK$7=0,0,INDEX(INDIRECT(Order_Rng),ROUNDUP(COLUMNS($G:AK)/3,0)))","v":0},null,null,{"$f":"IF(AN$7=0,0,INDEX(INDIRECT(Order_Rng),ROUNDUP(COLUMNS($G:AN)/3,0)))","v":0},null,null,{"$f":"IF(AQ$7=0,0,INDEX(INDIRECT(Order_Rng),ROUNDUP(COLUMNS($G:AQ)/3,0)))","v":0},null,null,{"$f":"IF(AT$7=0,0,INDEX(INDIRECT(Order_Rng),ROUNDUP(COLUMNS($G:AT)/3,0)))","v":0},null,null,{"$f":"IF(AW$7=0,0,INDEX(INDIRECT(Order_Rng),ROUNDUP(COLUMNS($G:AW)/3,0)))","v":0},null,null,{"$f":"IF(AZ$7=0,0,INDEX(INDIRECT(Order_Rng),ROUNDUP(COLUMNS($G:AZ)/3,0)))","v":0},null,null,{"$f":"IF(BC$7=0,0,INDEX(INDIRECT(Order_Rng),ROUNDUP(COLUMNS($G:BC)/3,0)))","v":0},null,null,{"$f":"IF(BF$7=0,0,INDEX(INDIRECT(Order_Rng),ROUNDUP(COLUMNS($G:BF)/3,0)))","v":0},null,null,{"$f":"IF(BI$7=0,0,INDEX(INDIRECT(Order_Rng),ROUNDUP(COLUMNS($G:BI)/3,0)))","v":0},null,null,{"$f":"IF(BL$7=0,0,INDEX(INDIRECT(Order_Rng),ROUNDUP(COLUMNS($G:BL)/3,0)))","v":0},null,null,{"$f":"IF(BO$7=0,0,INDEX(INDIRECT(Order_Rng),ROUNDUP(COLUMNS($G:BO)/3,0)))","v":0},null,null,{"$f":"IF(BR$7=0,0,INDEX(INDIRECT(Order_Rng),ROUNDUP(COLUMNS($G:BR)/3,0)))","v":0},null,null,{"$f":"IF(BU$7=0,0,INDEX(INDIRECT(Order_Rng),ROUNDUP(COLUMNS($G:BU)/3,0)))","v":0},null,null,{"$f":"IF(BX$7=0,0,INDEX(INDIRECT(Order_Rng),ROUNDUP(COLUMNS($G:BX)/3,0)))","v":0},null,null,{"$f":"IF(CA$7=0,0,INDEX(INDIRECT(Order_Rng),ROUNDUP(COLUMNS($G:CA)/3,0)))","v":0},null,null,{"$f":"IF(CD$7=0,0,INDEX(INDIRECT(Order_Rng),ROUNDUP(COLUMNS($G:CD)/3,0)))","v":0},null,null,{"$f":"IF(CG$7=0,0,INDEX(INDIRECT(Order_Rng),ROUNDUP(COLUMNS($G:CG)/3,0)))","v":0},null,null,{"$f":"IF(CJ$7=0,0,INDEX(INDIRECT(Order_Rng),ROUNDUP(COLUMNS($G:CJ)/3,0)))","v":0},null,null,{"$f":"IF(CM$7=0,0,INDEX(INDIRECT(Order_Rng),ROUNDUP(COLUMNS($G:CM)/3,0)))","v":0},null,null,{"$f":"IF(CP$7=0,0,INDEX(INDIRECT(Order_Rng),ROUNDUP(COLUMNS($G:CP)/3,0)))","v":0},null,null,{"$f":"IF(CS$7=0,0,INDEX(INDIRECT(Order_Rng),ROUNDUP(COLUMNS($G:CS)/3,0)))","v":0},null,null,{"$f":"IF(CV$7=0,0,INDEX(INDIRECT(Order_Rng),ROUNDUP(COLUMNS($G:CV)/3,0)))","v":0},null,null,{"$f":"IF(CY$7=0,0,INDEX(INDIRECT(Order_Rng),ROUNDUP(COLUMNS($G:CY)/3,0)))","v":0},null,null,{"$f":"IF(DB$7=0,0,INDEX(INDIRECT(Order_Rng),ROUNDUP(COLUMNS($G:DB)/3,0)))","v":0},null,null,{"$f":"IF(DE$7=0,0,INDEX(INDIRECT(Order_Rng),ROUNDUP(COLUMNS($G:DE)/3,0)))","v":0},null,null,{"$f":"IF(DH$7=0,0,INDEX(INDIRECT(Order_Rng),ROUNDUP(COLUMNS($G:DH)/3,0)))","v":0},null,null,{"$f":"IF(DK$7=0,0,INDEX(INDIRECT(Order_Rng),ROUNDUP(COLUMNS($G:DK)/3,0)))","v":0},null,null,{"$f":"IF(DN$7=0,0,INDEX(INDIRECT(Order_Rng),ROUNDUP(COLUMNS($G:DN)/3,0)))","v":0},null,null,{"$f":"IF(DQ$7=0,0,INDEX(INDIRECT(Order_Rng),ROUNDUP(COLUMNS($G:DQ)/3,0)))","v":0},null,null,{"$f":"IF(DT$7=0,0,INDEX(INDIRECT(Order_Rng),ROUNDUP(COLUMNS($G:DT)/3,0)))","v":0},null,null,{"$f":"IF(DW$7=0,0,INDEX(INDIRECT(Order_Rng),ROUNDUP(COLUMNS($G:DW)/3,0)))","v":0},null,null,{"$f":"IF(DZ$7=0,0,INDEX(INDIRECT(Order_Rng),ROUNDUP(COLUMNS($G:DZ)/3,0)))","v":0},null,null,{"$f":"IF(EC$7=0,0,INDEX(INDIRECT(Order_Rng),ROUNDUP(COLUMNS($G:EC)/3,0)))","v":0},null,null,{"$f":"IF(EF$7=0,0,INDEX(INDIRECT(Order_Rng),ROUNDUP(COLUMNS($G:EF)/3,0)))","v":0},null,null,{"$f":"IF(EI$7=0,0,INDEX(INDIRECT(Order_Rng),ROUNDUP(COLUMNS($G:EI)/3,0)))","v":0},null,null,{"$f":"IF(EL$7=0,0,INDEX(INDIRECT(Order_Rng),ROUNDUP(COLUMNS($G:EL)/3,0)))","v":0},null,null,{"$f":"IF(EO$7=0,0,INDEX(INDIRECT(Order_Rng),ROUNDUP(COLUMNS($G:EO)/3,0)))","v":0},null,null,{"$f":"IF(ER$7=0,0,INDEX(INDIRECT(Order_Rng),ROUNDUP(COLUMNS($G:ER)/3,0)))","v":0}]
[{"$f":"IF(OR($B10=\"\",COUNTIF($B$10:$B10,$B10)>1,LEN(TRIM($B10))<>10,ISNUMBER(--MID(TRIM($B10),5,1))),\"-\",MAX(COUNT($A$9:$A9)+1))","v":"-"}]
[{"$f":"IF(OR($B11=\"\",COUNTIF($B$10:$B11,$B11)>1,LEN(TRIM($B11))<>10,ISNUMBER(--MID(TRIM($B11),5,1))),\"-\",MAX(COUNT($A$9:$A10)+1))","v":"-"},null,null,null,{"$f":"IF(D11=\"\",\"\",D11-D10)","v":""}]
[{"$f":"IF(OR($B12=\"\",COUNTIF($B$10:$B12,$B12)>1,LEN(TRIM($B12))<>10,ISNUMBER(--MID(TRIM($B12),5,1))),\"-\",MAX(COUNT($A$9:$A11)+1))","v":"-"},null,null,null,{"$f":"IF(D12=\"\",\"\",D12-D11)","v":""}]
[{"$f":"IF(OR($B13=\"\",COUNTIF($B$10:$B13,$B13)>1,LEN(TRIM($B13))<>10,ISNUMBER(--MID(TRIM($B13),5,1))),\"-\",MAX(COUNT($A$9:$A12)+1))","v":"-"},null,null,null,""]
[{"$f":"IF(OR($B14=\"\",COUNTIF($B$10:$B14,$B14)>1,LEN(TRIM($B14))<>10,ISNUMBER(--MID(TRIM($B14),5,1))),\"-\",MAX(COUNT($A$9:$A13)+1))","v":"-"},null,null,null,""]
[{"$f":"IF(OR($B15=\"\",COUNTIF($B$10:$B15,$B15)>1,LEN(TRIM($B15))<>10,ISNUMBER(--MID(TRIM($B15),5,1))),\"-\",MAX(COUNT($A$9:$A14)+1))","v":"-"},null,null,null,""]
[{"$f":"IF(OR($B16=\"\",COUNTIF($B$10:$B16,$B16)>1,LEN(TRIM($B16))<>10,ISNUMBER(--MID(TRIM($B16),5,1))),\"-\",MAX(COUNT($A$9:$A15)+1))","v":"-"},null,null,null,""]
[{"$f":"IF(OR($B17=\"\",COUNTIF($B$10:$B17,$B17)>1,LEN(TRIM($B17))<>10,ISNUMBER(--MID(TRIM($B17),5,1))),\"-\",MAX(COUNT($A$9:$A16)+1))","v":"-"},null,null,null,""]
[{"$f":"IF(OR($B18=\"\",COUNTIF($B$10:$B18,$B18)>1,LEN(TRIM($B18))<>10,ISNUMBER(--MID(TRIM($B18),5,1))),\"-\",MAX(COUNT($A$9:$A17)+1))","v":"-"},null,null,null,""]
[{"$f":"IF(OR($B19=\"\",COUNTIF($B$10:$B19,$B19)>1,LEN(TRIM($B19))<>10,ISNUMBER(--MID(TRIM($B19),5,1))),\"-\",MAX(COUNT($A$9:$A18)+1))","v":"-"},null,null,null,""]
[{"$f":"IF(OR($B20=\"\",COUNTIF($B$10:$B20,$B20)>1,LEN(TRIM($B20))<>10,ISNUMBER(--MID(TRIM($B20),5,1))),\"-\",MAX(COUNT($A$9:$A19)+1))","v":"-"},null,null,null,""]
[{"$f":"IF(OR($B21=\"\",COUNTIF($B$10:$B21,$B21)>1,LEN(TRIM($B21))<>10,ISNUMBER(--MID(TRIM($B21),5,1))),\"-\",MAX(COUNT($A$9:$A20)+1))","v":"-"},null,null,null,""]
[{"$f":"IF(OR($B22=\"\",COUNTIF($B$10:$B22,$B22)>1,LEN(TRIM($B22))<>10,ISNUMBER(--MID(TRIM($B22),5,1))),\"-\",MAX(COUNT($A$9:$A21)+1))","v":"-"},null,null,null,""]
[{"$f":"IF(OR($B23=\"\",COUNTIF($B$10:$B23,$B23)>1,LEN(TRIM($B23))<>10,ISNUMBER(--MID(TRIM($B23),5,1))),\"-\",MAX(COUNT($A$9:$A22)+1))","v":"-"},null,null,null,""]
[{"$f":"IF(OR($B24=\"\",COUNTIF($B$10:$B24,$B24)>1,LEN(TRIM($B24))<>10,ISNUMBER(--MID(TRIM($B24),5,1))),\"-\",MAX(COUNT($A$9:$A23)+1))","v":"-"},null,null,null,""]
[{"$f":"IF(OR($B25=\"\",COUNTIF($B$10:$B25,$B25)>1,LEN(TRIM($B25))<>10,ISNUMBER(--MID(TRIM($B25),5,1))),\"-\",MAX(COUNT($A$9:$A24)+1))","v":"-"},null,null,null,""]
[{"$f":"IF(OR($B26=\"\",COUNTIF($B$10:$B26,$B26)>1,LEN(TRIM($B26))<>10,ISNUMBER(--MID(TRIM($B26),5,1))),\"-\",MAX(COUNT($A$9:$A25)+1))","v":"-"},null,null,null,""]
[{"$f":"IF(OR($B27=\"\",COUNTIF($B$10:$B27,$B27)>1,LEN(TRIM($B27))<>10,ISNUMBER(--MID(TRIM($B27),5,1))),\"-\",MAX(COUNT($A$9:$A26)+1))","v":"-"},null,null,null,""]
[{"$f":"IF(OR($B28=\"\",COUNTIF($B$10:$B28,$B28)>1,LEN(TRIM($B28))<>10,ISNUMBER(--MID(TRIM($B28),5,1))),\"-\",MAX(COUNT($A$9:$A27)+1))","v":"-"},null,null,null,""]
[{"$f":"IF(OR($B29=\"\",COUNTIF($B$10:$B29,$B29)>1,LEN(TRIM($B29))<>10,ISNUMBER(--MID(TRIM($B29),5,1))),\"-\",MAX(COUNT($A$9:$A28)+1))","v":"-"},null,null,null,""]
[{"$f":"IF(OR($B30=\"\",COUNTIF($B$10:$B30,$B30)>1,LEN(TRIM($B30))<>10,ISNUMBER(--MID(TRIM($B30),5,1))),\"-\",MAX(COUNT($A$9:$A29)+1))","v":"-"},null,null,null,""]
[{"$f":"IF(OR($B31=\"\",COUNTIF($B$10:$B31,$B31)>1,LEN(TRIM($B31))<>10,ISNUMBER(--MID(TRIM($B31),5,1))),\"-\",MAX(COUNT($A$9:$A30)+1))","v":"-"},null,null,null,""]
[{"$f":"IF(OR($B32=\"\",COUNTIF($B$10:$B32,$B32)>1,LEN(TRIM($B32))<>10,ISNUMBER(--MID(TRIM($B32),5,1))),\"-\",MAX(COUNT($A$9:$A31)+1))","v":"-"},null,null,null,""]
[{"$f":"IF(OR($B33=\"\",COUNTIF($B$10:$B33,$B33)>1,LEN(TRIM($B33))<>10,ISNUMBER(--MID(TRIM($B33),5,1))),\"-\",MAX(COUNT($A$9:$A32)+1))","v":"-"},null,null,null,""]
[{"$f":"IF(OR($B34=\"\",COUNTIF($B$10:$B34,$B34)>1,LEN(TRIM($B34))<>10,ISNUMBER(--MID(TRIM($B34),5,1))),\"-\",MAX(COUNT($A$9:$A33)+1))","v":"-"},null,null,null,""]
[{"$f":"IF(OR($B35=\"\",COUNTIF($B$10:$B35,$B35)>1,LEN(TRIM($B35))<>10,ISNUMBER(--MID(TRIM($B35),5,1))),\"-\",MAX(COUNT($A$9:$A34)+1))","v":"-"},null,null,null,""]
[{"$f":"IF(OR($B36=\"\",COUNTIF($B$10:$B36,$B36)>1,LEN(TRIM($B36))<>10,ISNUMBER(--MID(TRIM($B36),5,1))),\"-\",MAX(COUNT($A$9:$A35)+1))","v":"-"},null,null,null,""]
[{"$f":"IF(OR($B37=\"\",COUNTIF($B$10:$B37,$B37)>1,LEN(TRIM($B37))<>10,ISNUMBER(--MID(TRIM($B37),5,1))),\"-\",MAX(COUNT($A$9:$A36)+1))","v":"-"},null,null,null,""]
[{"$f":"IF(OR($B38=\"\",COUNTIF($B$10:$B38,$B38)>1,LEN(TRIM($B38))<>10,ISNUMBER(--MID(TRIM($B38),5,1))),\"-\",MAX(COUNT($A$9:$A37)+1))","v":"-"},null,null,null,""]
[{"$f":"IF(OR($B39=\"\",COUNTIF($B$10:$B39,$B39)>1,LEN(TRIM($B39))<>10,ISNUMBER(--MID(TRIM($B39),5,1))),\"-\",MAX(COUNT($A$9:$A38)+1))","v":"-"},null,null,null,""]
[{"$f":"IF(OR($B40=\"\",COUNTIF($B$10:$B40,$B40)>1,LEN(TRIM($B40))<>10,ISNUMBER(--MID(TRIM($B40),5,1))),\"-\",MAX(COUNT($A$9:$A39)+1))","v":"-"},null,null,null,""]
[{"$f":"IF(OR($B41=\"\",COUNTIF($B$10:$B41,$B41)>1,LEN(TRIM($B41))<>10,ISNUMBER(--MID(TRIM($B41),5,1))),\"-\",MAX(COUNT($A$9:$A40)+1))","v":"-"},null,null,null,""]
[{"$f":"IF(OR($B42=\"\",COUNTIF($B$10:$B42,$B42)>1,LEN(TRIM($B42))<>10,ISNUMBER(--MID(TRIM($B42),5,1))),\"-\",MAX(COUNT($A$9:$A41)+1))","v":"-"},null,null,null,""]
[{"$f":"IF(OR($B43=\"\",COUNTIF($B$10:$B43,$B43)>1,LEN(TRIM($B43))<>10,ISNUMBER(--MID(TRIM($B43),5,1))),\"-\",MAX(COUNT($A$9:$A42)+1))","v":"-"},null,null,null,""]
[{"$f":"IF(OR($B44=\"\",COUNTIF($B$10:$B44,$B44)>1,LEN(TRIM($B44))<>10,ISNUMBER(--MID(TRIM($B44),5,1))),\"-\",MAX(COUNT($A$9:$A43)+1))","v":"-"},null,null,null,""]
[{"$f":"IF(OR($B45=\"\",COUNTIF($B$10:$B45,$B45)>1,LEN(TRIM($B45))<>10,ISNUMBER(--MID(TRIM($B45),5,1))),\"-\",MAX(COUNT($A$9:$A44)+1))","v":"-"},null,null,null,""]
[{"$f":"IF(OR($B46=\"\",COUNTIF($B$10:$B46,$B46)>1,LEN(TRIM($B46))<>10,ISNUMBER(--MID(TRIM($B46),5,1))),\"-\",MAX(COUNT($A$9:$A45)+1))","v":"-"},null,null,null,""]
[{"$f":"IF(OR($B47=\"\",COUNTIF($B$10:$B47,$B47)>1,LEN(TRIM($B47))<>10,ISNUMBER(--MID(TRIM($B47),5,1))),\"-\",MAX(COUNT($A$9:$A46)+1))","v":"-"},null,null,null,""]
[{"$f":"IF(OR($B48=\"\",COUNTIF($B$10:$B48,$B48)>1,LEN(TRIM($B48))<>10,ISNUMBER(--MID(TRIM($B48),5,1))),\"-\",MAX(COUNT($A$9:$A47)+1))","v":"-"},null,null,null,""]
[{"$f":"IF(OR($B49=\"\",COUNTIF($B$10:$B49,$B49)>1,LEN(TRIM($B49))<>10,ISNUMBER(--MID(TRIM($B49),5,1))),\"-\",MAX(COUNT($A$9:$A48)+1))","v":"-"},null,null,null,""]
[{"$f":"IF(OR($B50=\"\",COUNTIF($B$10:$B50,$B50)>1,LEN(TRIM($B50))<>10,ISNUMBER(--MID(TRIM($B50),5,1))),\"-\",MAX(COUNT($A$9:$A49)+1))","v":"-"},null,null,null,""]
[{"$f":"IF(OR($B51=\"\",COUNTIF($B$10:$B51,$B51)>1,LEN(TRIM($B51))<>10,ISNUMBER(--MID(TRIM($B51),5,1))),\"-\",MAX(COUNT($A$9:$A50)+1))","v":"-"},null,null,null,""]
[{"$f":"IF(OR($B52=\"\",COUNTIF($B$10:$B52,$B52)>1,LEN(TRIM($B52))<>10,ISNUMBER(--MID(TRIM($B52),5,1))),\"-\",MAX(COUNT($A$9:$A51)+1))","v":"-"},null,null,null,""]
[{"$f":"IF(OR($B53=\"\",COUNTIF($B$10:$B53,$B53)>1,LEN(TRIM($B53))<>10,ISNUMBER(--MID(TRIM($B53),5,1))),\"-\",MAX(COUNT($A$9:$A52)+1))","v":"-"},null,null,null,""]
[{"$f":"IF(OR($B54=\"\",COUNTIF($B$10:$B54,$B54)>1,LEN(TRIM($B54))<>10,ISNUMBER(--MID(TRIM($B54),5,1))),\"-\",MAX(COUNT($A$9:$A53)+1))","v":"-"},null,null,null,""]
[{"$f":"IF(OR($B55=\"\",COUNTIF($B$10:$B55,$B55)>1,LEN(TRIM($B55))<>10,ISNUMBER(--MID(TRIM($B55),5,1))),\"-\",MAX(COUNT($A$9:$A54)+1))","v":"-"},null,null,null,""]
[{"$f":"IF(OR($B56=\"\",COUNTIF($B$10:$B56,$B56)>1,LEN(TRIM($B56))<>10,ISNUMBER(--MID(TRIM($B56),5,1))),\"-\",MAX(COUNT($A$9:$A55)+1))","v":"-"},null,null,null,""]
[{"$f":"IF(OR($B57=\"\",COUNTIF($B$10:$B57,$B57)>1,LEN(TRIM($B57))<>10,ISNUMBER(--MID(TRIM($B57),5,1))),\"-\",MAX(COUNT($A$9:$A56)+1))","v":"-"},null,null,null,""]
[{"$f":"IF(OR($B58=\"\",COUNTIF($B$10:$B58,$B58)>1,LEN(TRIM($B58))<>10,ISNUMBER(--MID(TRIM($B58),5,1))),\"-\",MAX(COUNT($A$9:$A57)+1))","v":"-"},null,null,null,""]
[{"$f":"IF(OR($B59=\"\",COUNTIF($B$10:$B59,$B59)>1,LEN(TRIM($B59))<>10,ISNUMBER(--MID(TRIM($B59),5,1))),\"-\",MAX(COUNT($A$9:$A58)+1))","v":"-"},null,null,null,""]
[{"$f":"IF(OR($B60=\"\",COUNTIF($B$10:$B60,$B60)>1,LEN(TRIM($B60))<>10,ISNUMBER(--MID(TRIM($B60),5,1))),\"-\",MAX(COUNT($A$9:$A59)+1))","v":"-"},null,null,null,""]
[{"$f":"IF(OR($B61=\"\",COUNTIF($B$10:$B61,$B61)>1,LEN(TRIM($B61))<>10,ISNUMBER(--MID(TRIM($B61),5,1))),\"-\",MAX(COUNT($A$9:$A60)+1))","v":"-"},null,null,null,""]
[{"$f":"IF(OR($B62=\"\",COUNTIF($B$10:$B62,$B62)>1,LEN(TRIM($B62))<>10,ISNUMBER(--MID(TRIM($B62),5,1))),\"-\",MAX(COUNT($A$9:$A61)+1))","v":"-"},null,null,null,""]
[{"$f":"IF(OR($B63=\"\",COUNTIF($B$10:$B63,$B63)>1,LEN(TRIM($B63))<>10,ISNUMBER(--MID(TRIM($B63),5,1))),\"-\",MAX(COUNT($A$9:$A62)+1))","v":"-"},null,null,null,""]
[{"$f":"IF(OR($B64=\"\",COUNTIF($B$10:$B64,$B64)>1,LEN(TRIM($B64))<>10,ISNUMBER(--MID(TRIM($B64),5,1))),\"-\",MAX(COUNT($A$9:$A63)+1))","v":"-"},null,null,null,""]
[{"$f":"IF(OR($B65=\"\",COUNTIF($B$10:$B65,$B65)>1,LEN(TRIM($B65))<>10,ISNUMBER(--MID(TRIM($B65),5,1))),\"-\",MAX(COUNT($A$9:$A64)+1))","v":"-"},null,null,null,""]
[{"$f":"IF(OR($B66=\"\",COUNTIF($B$10:$B66,$B66)>1,LEN(TRIM($B66))<>10,ISNUMBER(--MID(TRIM($B66),5,1))),\"-\",MAX(COUNT($A$9:$A65)+1))","v":"-"},null,null,null,""]
[{"$f":"IF(OR($B67=\"\",COUNTIF($B$10:$B67,$B67)>1,LEN(TRIM($B67))<>10,ISNUMBER(--MID(TRIM($B67),5,1))),\"-\",MAX(COUNT($A$9:$A66)+1))","v":"-"},null,null,null,""]
[{"$f":"IF(OR($B68=\"\",COUNTIF($B$10:$B68,$B68)>1,LEN(TRIM($B68))<>10,ISNUMBER(--MID(TRIM($B68),5,1))),\"-\",MAX(COUNT($A$9:$A67)+1))","v":"-"},null,null,null,""]
[{"$f":"IF(OR($B69=\"\",COUNTIF($B$10:$B69,$B69)>1,LEN(TRIM($B69))<>10,ISNUMBER(--MID(TRIM($B69),5,1))),\"-\",MAX(COUNT($A$9:$A68)+1))","v":"-"},null,null,null,""]
[{"$f":"IF(OR($B70=\"\",COUNTIF($B$10:$B70,$B70)>1,LEN(TRIM($B70))<>10,ISNUMBER(--MID(TRIM($B70),5,1))),\"-\",MAX(COUNT($A$9:$A69)+1))","v":"-"},null,null,null,""]
[{"$f":"IF(OR($B71=\"\",COUNTIF($B$10:$B71,$B71)>1,LEN(TRIM($B71))<>10,ISNUMBER(--MID(TRIM($B71),5,1))),\"-\",MAX(COUNT($A$9:$A70)+1))","v":"-"},null,null,null,""]
[{"$f":"IF(OR($B72=\"\",COUNTIF($B$10:$B72,$B72)>1,LEN(TRIM($B72))<>10,ISNUMBER(--MID(TRIM($B72),5,1))),\"-\",MAX(COUNT($A$9:$A71)+1))","v":"-"},null,null,null,""]
[{"$f":"IF(OR($B73=\"\",COUNTIF($B$10:$B73,$B73)>1,LEN(TRIM($B73))<>10,ISNUMBER(--MID(TRIM($B73),5,1))),\"-\",MAX(COUNT($A$9:$A72)+1))","v":"-"},null,null,null,""]
[{"$f":"IF(OR($B74=\"\",COUNTIF($B$10:$B74,$B74)>1,LEN(TRIM($B74))<>10,ISNUMBER(--MID(TRIM($B74),5,1))),\"-\",MAX(COUNT($A$9:$A73)+1))","v":"-"},null,null,null,""]
[{"$f":"IF(OR($B75=\"\",COUNTIF($B$10:$B75,$B75)>1,LEN(TRIM($B75))<>10,ISNUMBER(--MID(TRIM($B75),5,1))),\"-\",MAX(COUNT($A$9:$A74)+1))","v":"-"},null,null,null,""]
[{"$f":"IF(OR($B76=\"\",COUNTIF($B$10:$B76,$B76)>1,LEN(TRIM($B76))<>10,ISNUMBER(--MID(TRIM($B76),5,1))),\"-\",MAX(COUNT($A$9:$A75)+1))","v":"-"},null,null,null,{"$f":"IF(D76=\"\",\"\",D76-D75)","v":""}]
[{"$f":"IF(OR($B77=\"\",COUNTIF($B$10:$B77,$B77)>1,LEN(TRIM($B77))<>10,ISNUMBER(--MID(TRIM($B77),5,1))),\"-\",MAX(COUNT($A$9:$A76)+1))","v":"-"},null,null,null,""]
[{"$f":"IF(OR($B78=\"\",COUNTIF($B$10:$B78,$B78)>1,LEN(TRIM($B78))<>10,ISNUMBER(--MID(TRIM($B78),5,1))),\"-\",MAX(COUNT($A$9:$A77)+1))","v":"-"},null,null,null,""]
[{"$f":"IF(OR($B79=\"\",COUNTIF($B$10:$B79,$B79)>1,LEN(TRIM($B79))<>10,ISNUMBER(--MID(TRIM($B79),5,1))),\"-\",MAX(COUNT($A$9:$A78)+1))","v":"-"},null,null,null,""]
["รวมของขาย|ของเสีย|เหลือบนเชลฟ์",null,null,null,null,null,{"$f":"SUM(G10:G79)","v":0},0,0,{"$f":"SUM(J10:J79)","v":0},0,0,0,0,0,0,0,0,0,0,0,0,0,0,0,0,0,0,0,0,0,0,0,0,0,0,0,0,0,0,0,0,0,0,0,0,0,0,0,0,0,0,0,0,0,0,0,0,0,0,0,0,0,0,0,0,0,0,0,0,0,0,0,{"$f":"SUM(BV10:BV79)","v":0},0,0,0,0,0,0,0,0,0,0,0,0,0,0,0,0,0,0,0,0,0,0,0,0,0,0,0,0,0,0,0,0,0,0,0,0,0,0,0,0,0,0,0,0,0,0,0,0,0,0,0,0,0,0,0,0,0,0,0,0,0,{"$f":"SUM(EF10:EF79)","v":0},0,0,{"$f":"SUM(EI10:EI79)","v":0},0,0,0,0,0,{"$f":"SUM(EO10:EO79)","v":0},0,0,0,0,0,"รวมเงินเชื่อ","รวมเงินสด","ภาษี","รวมยอดขาย"]
["ของเหลือ",null,null,null,null,null,{"$f":"G80+H80-G9","v":0},null,null,{"$f":"J80+K80-J9","v":0},null,null,{"$f":"M80+N80-M9","v":0},null,null,{"$f":"P80+Q80-P9","v":0},null,null,{"$f":"S80+T80-S9","v":0},null,null,{"$f":"V80+W80-V9","v":0},null,null,{"$f":"Y80+Z80-Y9","v":0},null,null,{"$f":"AB80+AC80-AB9","v":0},null,null,{"$f":"AE80+AF80-AE9","v":0},null,null,{"$f":"AH80+AI80-AH9","v":0},null,null,{"$f":"AK80+AL80-AK9","v":0},null,null,{"$f":"AN80+AO80-AN9","v":0},null,null,{"$f":"AQ80+AR80-AQ9","v":0},null,null,{"$f":"AT80+AU80-AT9","v":0},null,null,{"$f":"AW80+AX80-AW9","v":0},null,null,{"$f":"AZ80+BA80-AZ9","v":0},null,null,{"$f":"BC80+BD80-BC9","v":0},null,null,{"$f":"BF80+BG80-BF9","v":0},null,null,{"$f":"BI80+BJ80-BI9","v":0},null,null,{"$f":"BL80+BM80-BL9","v":0},null,null,{"$f":"BO80+BP80-BO9","v":0},null,null,{"$f":"BR80+BS80-BR9","v":0},null,null,{"$f":"BU80+BV80-BU9","v":0},null,null,{"$f":"BX80+BY80-BX9","v":0},null,null,{"$f":"CA80+CB80-CA9","v":0},null,null,{"$f":"CD80+CE80-CD9","v":0},null,null,{"$f":"CG80+CH80-CG9","v":0},null,null,{"$f":"CJ80+CK80-CJ9","v":0},null,null,{"$f":"CM80+CN80-CM9","v":0},null,null,{"$f":"CP80+CQ80-CP9","v":0},null,null,{"$f":"CS80+CT80-CS9","v":0},null,null,{"$f":"CV80+CW80-CV9","v":0},null,null,{"$f":"CY80+CZ80-CY9","v":0},null,null,{"$f":"DB80+DC80-DB9","v":0},null,null,{"$f":"DE80+DF80-DE9","v":0},null,null,{"$f":"DH80+DI80-DH9","v":0},null,null,{"$f":"DK80+DL80-DK9","v":0},null,null,{"$f":"DN80+DO80-DN9","v":0},null,null,{"$f":"DQ80+DR80-DQ9","v":0},null,null,{"$f":"DT80+DU80-DT9","v":0},null,null,{"$f":"DW80+DX80-DW9","v":0},null,null,{"$f":"DZ80+EA80-DZ9","v":0},null,null,{"$f":"EC80+ED80-EC9","v":0},null,null,{"$f":"EF80+EG80-EF9","v":0},null,null,{"$f":"EI80+EJ80-EI9","v":0},null,null,{"$f":"EL80+EM80-EL9","v":0},null,null,{"$f":"EO80+EP80-EO9","v":0},null,null,{"$f":"ER80+ES80-ER9","v":0},null,null,{"$f":"SUM(EU10:EU79)","v":0},{"$f":"SUM(EV10:EV79)","v":0},{"$f":"SUM(EW10:EW79)","v":0},{"$f":"SUM(EX10:EX79)","v":0}]
["เฉลี่ย",null,null,"เหลือ/เสีย(จริง)",null,null,{"$f":"INDIRECT(\"F\"&ROW($G$87)+ROUNDUP(COLUMNS($G:G)/3,0))","v":0},{"$f":"INDIRECT(\"G\"&ROW($G$87)+ROUNDUP(COLUMNS($G:H)/3,0))","v":0},null,{"$f":"INDIRECT(\"F\"&ROW($G$87)+ROUNDUP(COLUMNS($G:J)/3,0))","v":0},{"$f":"INDIRECT(\"G\"&ROW($G$87)+ROUNDUP(COLUMNS($G:K)/3,0))","v":0},null,{"$f":"INDIRECT(\"F\"&ROW($G$87)+ROUNDUP(COLUMNS($G:M)/3,0))","v":0},{"$f":"INDIRECT(\"G\"&ROW($G$87)+ROUNDUP(COLUMNS($G:N)/3,0))","v":0},null,{"$f":"INDIRECT(\"F\"&ROW($G$87)+ROUNDUP(COLUMNS($G:P)/3,0))","v":0},{"$f":"INDIRECT(\"G\"&ROW($G$87)+ROUNDUP(COLUMNS($G:Q)/3,0))","v":0},null,{"$f":"INDIRECT(\"F\"&ROW($G$87)+ROUNDUP(COLUMNS($G:S)/3,0))","v":0},{"$f":"INDIRECT(\"G\"&ROW($G$87)+ROUNDUP(COLUMNS($G:T)/3,0))","v":0},null,{"$f":"INDIRECT(\"F\"&ROW($G$87)+ROUNDUP(COLUMNS($G:V)/3,0))","v":0},{"$f":"INDIRECT(\"G\"&ROW($G$87)+ROUNDUP(COLUMNS($G:W)/3,0))","v":0},null,{"$f":"INDIRECT(\"F\"&ROW($G$87)+ROUNDUP(COLUMNS($G:Y)/3,0))","v":0},{"$f":"INDIRECT(\"G\"&ROW($G$87)+ROUNDUP(COLUMNS($G:Z)/3,0))","v":0},null,{"$f":"INDIRECT(\"F\"&ROW($G$87)+ROUNDUP(COLUMNS($G:AB)/3,0))","v":0},{"$f":"INDIRECT(\"G\"&ROW($G$87)+ROUNDUP(COLUMNS($G:AC)/3,0))","v":0},null,{"$f":"INDIRECT(\"F\"&ROW($G$87)+ROUNDUP(COLUMNS($G:AE)/3,0))","v":0},{"$f":"INDIRECT(\"G\"&ROW($G$87)+ROUNDUP(COLUMNS($G:AF)/3,0))","v":0},null,{"$f":"INDIRECT(\"F\"&ROW($G$87)+ROUNDUP(COLUMNS($G:AH)/3,0))","v":0},{"$f":"INDIRECT(\"G\"&ROW($G$87)+ROUNDUP(COLUMNS($G:AI)/3,0))","v":0},null,{"$f":"INDIRECT(\"F\"&ROW($G$87)+ROUNDUP(COLUMNS($G:AK)/3,0))","v":0},{"$f":"INDIRECT(\"G\"&ROW($G$87)+ROUNDUP(COLUMNS($G:AL)/3,0))","v":0},null,{"$f":"INDIRECT(\"F\"&ROW($G$87)+ROUNDUP(COLUMNS($G:AN)/3,0))","v":0},{"$f":"INDIRECT(\"G\"&ROW($G$87)+ROUNDUP(COLUMNS($G:AO)/3,0))","v":0},null,{"$f":"INDIRECT(\"F\"&ROW($G$87)+ROUNDUP(COLUMNS($G:AQ)/3,0))","v":0},{"$f":"INDIRECT(\"G\"&ROW($G$87)+ROUNDUP(COLUMNS($G:AR)/3,0))","v":0},null,{"$f":"INDIRECT(\"F\"&ROW($G$87)+ROUNDUP(COLUMNS($G:AT)/3,0))","v":0},{"$f":"INDIRECT(\"G\"&ROW($G$87)+ROUNDUP(COLUMNS($G:AU)/3,0))","v":0},null,{"$f":"INDIRECT(\"F\"&ROW($G$87)+ROUNDUP(COLUMNS($G:AW)/3,0))","v":0},{"$f":"INDIRECT(\"G\"&ROW($G$87)+ROUNDUP(COLUMNS($G:AX)/3,0))","v":0},null,{"$f":"INDIRECT(\"F\"&ROW($G$87)+ROUNDUP(COLUMNS($G:AZ)/3,0))","v":0},{"$f":"INDIRECT(\"G\"&ROW($G$87)+ROUNDUP(COLUMNS($G:BA)/3,0))","v":0},null,{"$f":"INDIRECT(\"F\"&ROW($G$87)+ROUNDUP(COLUMNS($G:BC)/3,0))","v":0},{"$f":"INDIRECT(\"G\"&ROW($G$87)+ROUNDUP(COLUMNS($G:BD)/3,0))","v":0},null,{"$f":"INDIRECT(\"F\"&ROW($G$87)+ROUNDUP(COLUMNS($G:BF)/3,0))","v":0},{"$f":"INDIRECT(\"G\"&ROW($G$87)+ROUNDUP(COLUMNS($G:BG)/3,0))","v":0},null,{"$f":"INDIRECT(\"F\"&ROW($G$87)+ROUNDUP(COLUMNS($G:BI)/3,0))","v":0},{"$f":"INDIRECT(\"G\"&ROW($G$87)+ROUNDUP(COLUMNS($G:BJ)/3,0))","v":0},null,{"$f":"INDIRECT(\"F\"&ROW($G$87)+ROUNDUP(COLUMNS($G:BL)/3,0))","v":0},{"$f":"INDIRECT(\"G\"&ROW($G$87)+ROUNDUP(COLUMNS($G:BM)/3,0))","v":0},null,{"$f":"INDIRECT(\"F\"&ROW($G$87)+ROUNDUP(COLUMNS($G:BO)/3,0))","v":0},{"$f":"INDIRECT(\"G\"&ROW($G$87)+ROUNDUP(COLUMNS($G:BP)/3,0))","v":0},null,{"$f":"INDIRECT(\"F\"&ROW($G$87)+ROUNDUP(COLUMNS($G:BR)/3,0))","v":0},{"$f":"INDIRECT(\"G\"&ROW($G$87)+ROUNDUP(COLUMNS($G:BS)/3,0))","v":0},null,{"$f":"INDIRECT(\"F\"&ROW($G$87)+ROUNDUP(COLUMNS($G:BU)/3,0))","v":0},{"$f":"INDIRECT(\"G\"&ROW($G$87)+ROUNDUP(COLUMNS($G:BV)/3,0))","v":0},null,{"$f":"INDIRECT(\"F\"&ROW($G$87)+ROUNDUP(COLUMNS($G:BX)/3,0))","v":0},{"$f":"INDIRECT(\"G\"&ROW($G$87)+ROUNDUP(COLUMNS($G:BY)/3,0))","v":0},null,{"$f":"INDIRECT(\"F\"&ROW($G$87)+ROUNDUP(COLUMNS($G:CA)/3,0))","v":0},{"$f":"INDIRECT(\"G\"&ROW($G$87)+ROUNDUP(COLUMNS($G:CB)/3,0))","v":0},null,{"$f":"INDIRECT(\"F\"&ROW($G$87)+ROUNDUP(COLUMNS($G:CD)/3,0))","v":0},{"$f":"INDIRECT(\"G\"&ROW($G$87)+ROUNDUP(COLUMNS($G:CE)/3,0))","v":0},null,{"$f":"INDIRECT(\"F\"&ROW($G$87)+ROUNDUP(COLUMNS($G:CG)/3,0))","v":0},{"$f":"INDIRECT(\"G\"&ROW($G$87)+ROUNDUP(COLUMNS($G:CH)/3,0))","v":0},null,{"$f":"INDIRECT(\"F\"&ROW($G$87)+ROUNDUP(COLUMNS($G:CJ)/3,0))","v":0},{"$f":"INDIRECT(\"G\"&ROW($G$87)+ROUNDUP(COLUMNS($G:CK)/3,0))","v":0},null,{"$f":"INDIRECT(\"F\"&ROW($G$87)+ROUNDUP(COLUMNS($G:CM)/3,0))","v":0},{"$f":"INDIRECT(\"G\"&ROW($G$87)+ROUNDUP(COLUMNS($G:CN)/3,0))","v":0},null,{"$f":"INDIRECT(\"F\"&ROW($G$87)+ROUNDUP(COLUMNS($G:CP)/3,0))","v":0},{"$f":"INDIRECT(\"G\"&ROW($G$87)+ROUNDUP(COLUMNS($G:CQ)/3,0))","v":0},null,{"$f":"INDIRECT(\"F\"&ROW($G$87)+ROUNDUP(COLUMNS($G:CS)/3,0))","v":0},{"$f":"INDIRECT(\"G\"&ROW($G$87)+ROUNDUP(COLUMNS($G:CT)/3,0))","v":0},null,{"$f":"INDIRECT(\"F\"&ROW($G$87)+ROUNDUP(COLUMNS($G:CV)/3,0))","v":0},{"$f":"INDIRECT(\"G\"&ROW($G$87)+ROUNDUP(COLUMNS($G:CW)/3,0))","v":0},null,{"$f":"INDIRECT(\"F\"&ROW($G$87)+ROUNDUP(COLUMNS($G:CY)/3,0))","v":0},{"$f":"INDIRECT(\"G\"&ROW($G$87)+ROUNDUP(COLUMNS($G:CZ)/3,0))","v":0},null,{"$f":"INDIRECT(\"F\"&ROW($G$87)+ROUNDUP(COLUMNS($G:DB)/3,0))","v":0},{"$f":"INDIRECT(\"G\"&ROW($G$87)+ROUNDUP(COLUMNS($G:DC)/3,0))","v":0},null,{"$f":"INDIRECT(\"F\"&ROW($G$87)+ROUNDUP(COLUMNS($G:DE)/3,0))","v":0},{"$f":"INDIRECT(\"G\"&ROW($G$87)+ROUNDUP(COLUMNS($G:DF)/3,0))","v":0},null,{"$f":"INDIRECT(\"F\"&ROW($G$87)+ROUNDUP(COLUMNS($G:DH)/3,0))","v":0},{"$f":"INDIRECT(\"G\"&ROW($G$87)+ROUNDUP(COLUMNS($G:DI)/3,0))","v":0},null,{"$f":"INDIRECT(\"F\"&ROW($G$87)+ROUNDUP(COLUMNS($G:DK)/3,0))","v":0},{"$f":"INDIRECT(\"G\"&ROW($G$87)+ROUNDUP(COLUMNS($G:DL)/3,0))","v":0},null,{"$f":"INDIRECT(\"F\"&ROW($G$87)+ROUNDUP(COLUMNS($G:DN)/3,0))","v":0},{"$f":"INDIRECT(\"G\"&ROW($G$87)+ROUNDUP(COLUMNS($G:DO)/3,0))","v":0},null,{"$f":"INDIRECT(\"F\"&ROW($G$87)+ROUNDUP(COLUMNS($G:DQ)/3,0))","v":0},{"$f":"INDIRECT(\"G\"&ROW($G$87)+ROUNDUP(COLUMNS($G:DR)/3,0))","v":0},null,{"$f":"INDIRECT(\"F\"&ROW($G$87)+ROUNDUP(COLUMNS($G:DT)/3,0))","v":0},{"$f":"INDIRECT(\"G\"&ROW($G$87)+ROUNDUP(COLUMNS($G:DU)/3,0))","v":0},null,{"$f":"INDIRECT(\"F\"&ROW($G$87)+ROUNDUP(COLUMNS($G:DW)/3,0))","v":0},{"$f":"INDIRECT(\"G\"&ROW($G$87)+ROUNDUP(COLUMNS($G:DX)/3,0))","v":0},null,{"$f":"INDIRECT(\"F\"&ROW($G$87)+ROUNDUP(COLUMNS($G:DZ)/3,0))","v":0},{"$f":"INDIRECT(\"G\"&ROW($G$87)+ROUNDUP(COLUMNS($G:EA)/3,0))","v":0},null,{"$f":"INDIRECT(\"F\"&ROW($G$87)+ROUNDUP(COLUMNS($G:EC)/3,0))","v":0},{"$f":"INDIRECT(\"G\"&ROW($G$87)+ROUNDUP(COLUMNS($G:ED)/3,0))","v":0},null,{"$f":"INDIRECT(\"F\"&ROW($G$87)+ROUNDUP(COLUMNS($G:EF)/3,0))","v":0},{"$f":"INDIRECT(\"G\"&ROW($G$87)+ROUNDUP(COLUMNS($G:EG)/3,0))","v":0},null,{"$f":"INDIRECT(\"F\"&ROW($G$87)+ROUNDUP(COLUMNS($G:EI)/3,0))","v":0},{"$f":"INDIRECT(\"G\"&ROW($G$87)+ROUNDUP(COLUMNS($G:EJ)/3,0))","v":0},null,{"$f":"INDIRECT(\"F\"&ROW($G$87)+ROUNDUP(COLUMNS($G:EL)/3,0))","v":0},{"$f":"INDIRECT(\"G\"&ROW($G$87)+ROUNDUP(COLUMNS($G:EM)/3,0))","v":0},null,{"$f":"INDIRECT(\"F\"&ROW($G$87)+ROUNDUP(COLUMNS($G:EO)/3,0))","v":0},{"$f":"INDIRECT(\"G\"&ROW($G$87)+ROUNDUP(COLUMNS($G:EP)/3,0))","v":0},null,{"$f":"INDIRECT(\"F\"&ROW($G$87)+ROUNDUP(COLUMNS($G:ER)/3,0))","v":0},{"$f":"INDIRECT(\"G\"&ROW($G$87)+ROUNDUP(COLUMNS($G:ES)/3,0))","v":0},null,{"$f":"EU81+EV81","v":0}]
["เวลากลับถึงสำนักงานเช็คของเสีย",null,null,{"$f":"D139","v":"00:00:00"},null,"ผลต่าง",{"$f":"G82+H82+G80-G9","v":0},null,null,{"$f":"J82+K82+J80-J9","v":0},null,null,{"$f":"M82+N82+M80-M9","v":0},null,null,{"$f":"P82+Q82+P80-P9","v":0},null,null,{"$f":"S82+T82+S80-S9","v":0},null,null,{"$f":"V82+W82+V80-V9","v":0},null,null,{"$f":"Y82+Z82+Y80-Y9","v":0},null,null,{"$f":"AB82+AC82+AB80-AB9","v":0},null,null,{"$f":"AE82+AF82+AE80-AE9","v":0},null,null,{"$f":"AH82+AI82+AH80-AH9","v":0},null,null,{"$f":"AK82+AL82+AK80-AK9","v":0},null,null,{"$f":"AN82+AO82+AN80-AN9","v":0},null,null,{"$f":"AQ82+AR82+AQ80-AQ9","v":0},null,null,{"$f":"AT82+AU82+AT80-AT9","v":0},null,null,{"$f":"AW82+AX82+AW80-AW9","v":0},null,null,{"$f":"AZ82+BA82+AZ80-AZ9","v":0},null,null,{"$f":"BC82+BD82+BC80-BC9","v":0},null,null,{"$f":"BF82+BG82+BF80-BF9","v":0},null,null,{"$f":"BI82+BJ82+BI80-BI9","v":0},null,null,{"$f":"BL82+BM82+BL80-BL9","v":0},null,null,{"$f":"BO82+BP82+BO80-BO9","v":0},null,null,{"$f":"BR82+BS82+BR80-BR9","v":0},null,null,{"$f":"BU82+BV82+BU80-BU9","v":0},null,null,{"$f":"BX82+BY82+BX80-BX9","v":0},null,null,{"$f":"CA82+CB82+CA80-CA9","v":0},null,null,{"$f":"CD82+CE82+CD80-CD9","v":0},null,null,{"$f":"CG82+CH82+CG80-CG9","v":0},null,null,{"$f":"CJ82+CK82+CJ80-CJ9","v":0},null,null,{"$f":"CM82+CN82+CM80-CM9","v":0},null,null,{"$f":"CP82+CQ82+CP80-CP9","v":0},null,null,{"$f":"CS82+CT82+CS80-CS9","v":0},null,null,{"$f":"CV82+CW82+CV80-CV9","v":0},null,null,{"$f":"CY82+CZ82+CY80-CY9","v":0},null,null,{"$f":"DB82+DC82+DB80-DB9","v":0},null,null,{"$f":"DE82+DF82+DE80-DE9","v":0},null,null,{"$f":"DH82+DI82+DH80-DH9","v":0},null,null,{"$f":"DK82+DL82+DK80-DK9","v":0},null,null,{"$f":"DN82+DO82+DN80-DN9","v":0},null,null,{"$f":"DQ82+DR82+DQ80-DQ9","v":0},null,null,{"$f":"DT82+DU82+DT80-DT9","v":0},null,null,{"$f":"DW82+DX82+DW80-DW9","v":0},null,null,{"$f":"DZ82+EA82+DZ80-DZ9","v":0},null,null,{"$f":"EC82+ED82+EC80-EC9","v":0},null,null,{"$f":"EF82+EG82+EF80-EF9","v":0},null,null,{"$f":"EI82+EJ82+EI80-EI9","v":0},null,null,{"$f":"EL82+EM82+EL80-EL9","v":0},null,null,{"$f":"EO82+EP82+EO80-EO9","v":0},null,null,{"$f":"ER82+ES82+ER80-ER9","v":0}]
["เป็นเงิน",null,null,null,null,null,{"$f":"G8*G83","v":0},null,null,{"$f":"J8*J83","v":0},null,null,{"$f":"M8*M83","v":0},null,null,{"$f":"P8*P83","v":0},null,null,{"$f":"S8*S83","v":0},null,null,{"$f":"V8*V83","v":0},null,null,{"$f":"Y8*Y83","v":0},null,null,{"$f":"AB8*AB83","v":0},null,null,{"$f":"AE8*AE83","v":0},null,null,{"$f":"AH8*AH83","v":0},null,null,{"$f":"AK8*AK83","v":0},null,null,{"$f":"AN8*AN83","v":0},null,null,{"$f":"AQ8*AQ83","v":0},null,null,{"$f":"AT8*AT83","v":0},null,null,{"$f":"AW8*AW83","v":0},null,null,{"$f":"AZ8*AZ83","v":0},null,null,{"$f":"BC8*BC83","v":0},null,null,{"$f":"BF8*BF83","v":0},null,null,{"$f":"BI8*BI83","v":0},null,null,{"$f":"BL8*BL83","v":0},null,null,{"$f":"BO8*BO83","v":0},null,null,{"$f":"BR8*BR83","v":0},null,null,{"$f":"BU8*BU83","v":0},null,null,{"$f":"BX8*BX83","v":0},null,null,{"$f":"CA8*CA83","v":0},null,null,{"$f":"CD8*CD83","v":0},null,null,{"$f":"CG8*CG83","v":0},null,null,{"$f":"CJ8*CJ83","v":0},null,null,{"$f":"CM8*CM83","v":0},null,null,{"$f":"CP8*CP83","v":0},null,null,{"$f":"CS8*CS83","v":0},null,null,{"$f":"CV8*CV83","v":0},null,null,{"$f":"CY8*CY83","v":0},null,null,{"$f":"DB8*DB83","v":0},null,null,{"$f":"DE8*DE83","v":0},null,null,{"$f":"DH8*DH83","v":0},null,null,{"$f":"DK8*DK83","v":0},null,null,{"$f":"DN8*DN83","v":0},null,null,{"$f":"DQ8*DQ83","v":0},null,null,{"$f":"DT8*DT83","v":0},null,null,{"$f":"DW8*DW83","v":0},null,null,0,null,null,{"$f":"EC8*EC83","v":0},null,null,{"$f":"EF8*EF83","v":0},null,null,{"$f":"EI8*EI83","v":0},null,null,{"$f":"EL8*EL83","v":0},null,null,{"$f":"EO8*EO83","v":0},null,null,{"$f":"ER8*ER83","v":0},null,null,{"$f":"$AP$98","v":0}]
[null,null,null,"ผู้จัดทำ……………………………………………………………………",null,null,null,null,null,null,null,null,null,null,null,null,null,null,null,null,null,null,null,"ผู้ตรวจ(ผจก.)………………………………………………………………………………."]
[null,null,"ใบจ่ายสินค้า",null,null,null,null,null,null,null,null,null,null,null,null,null,null,{"$f":"IF(ISODD(COLUMN()),MAX($F$86:Q$86)+1,\"\")","v":""}]
["ราคา","ลำดับ","รายการ","ยกมา","เบิก","เหลือ","เสีย","โอนเข้า","โอนออก","ชำรุด","รวม",null,"ขาย",null,"ขาด/เกิน",null,"บาท",null,null,null,"ขายได้",null,"ควรเบิก",null,"หมายเหตุ",null,null,null,"เสีย PDA","เสียจริง","เหลือ PDA","ผลต่าง","เหลือลูกค้า","หมายเหตุ",null,null,null,null,"Price","Quantity","Baht","Deduct"]
[{"$f":"IF(B88=\"\",0,INDEX(Price_List,ROWS($88:88)))","v":20},{"$f":"IF($C88=\"\",\"\",COUNTA($C$88:$C88))","v":1},{"$f":"IF(INDEX(INDIRECT(\"Product_List\"),ROWS($88:88))=\"\",\"\",INDEX(INDIRECT(\"Product_List\"),ROWS($88:88)))","v":"01-ขนมปังหมูหยองน้ำสลัด"},{"$f":"ยอดยกมา","v":0},null,null,null,null,null,null,{"$f":"D88+E88+J88-I88+H88","v":0},null,{"$f":"INDIRECT(ADDRESS(ROW(A$80),ROW()-ROW(A$80)+(ROWS($88:88)-1)*2-1,4))","v":0},null,{"$f":"F88+G88+M88+J88-K88","v":0},null,{"$f":"O88*A88","v":0},null,null,null,{"$f":"D88+E88-F88-G88","v":0},null,{"$f":"U88*6%+U88","v":0},null,null,null,null,null,{"$f":"INDIRECT(ADDRESS(ROW(A$80),ROW()-ROW(A$80)+(ROWS($88:88)-1)*2,4))","v":0},{"$f":"$G88","v":0},null,{"$f":"$F88-$AE88","v":0},{"$f":"INDIRECT(ADDRESS(ROW(A$80),ROW()-ROW(A$80)+(ROWS($88:88)-1)*2+1,4))","v":0},null,null,null,null,null,10,{"$f":"SUMPRODUCT(($A$88:$A$135=$AM88)*(($F$88:$F$135)+($G$88:$G$135)+($M$88:$M$135)+($J$88:$J$135)-($K$88:$K$135)))","v":0},{"$f":"AM88*AN88","v":0},{"$f":"IF(AO88<0,AO88,0)","v":0}]
[{"$f":"IF(B89=\"\",0,INDEX(Price_List,ROWS($88:89)))","v":20},{"$f":"IF($C89=\"\",\"\",COUNTA($C$88:$C89))","v":2},{"$f":"IF(INDEX(INDIRECT(\"Product_List\"),ROWS($88:89))=\"\",\"\",INDEX(INDIRECT(\"Product_List\"),ROWS($88:89)))","v":"02-ขนมปังหมูหยองน้ำพริกเผา"},{"$f":"ยอดยกมา","v":0},null,null,null,null,null,null,{"$f":"D89+E89+J89-I89+H89","v":0},null,{"$f":"INDIRECT(ADDRESS(ROW(A$80),ROW()-ROW(A$80)+(ROWS($88:89)-1)*2-1,4))","v":0},null,{"$f":"F89+G89+M89+J89-K89","v":0},null,{"$f":"O89*A89","v":0},null,null,null,{"$f":"D89+E89-F89-G89","v":0},null,{"$f":"U89*6%+U89","v":0},null,null,null,null,null,{"$f":"INDIRECT(ADDRESS(ROW(A$80),ROW()-ROW(A$80)+(ROWS($88:89)-1)*2,4))","v":0},{"$f":"$G89","v":0},null,{"$f":"$F89-$AE89","v":0},{"$f":"INDIRECT(ADDRESS(ROW(A$80),ROW()-ROW(A$80)+(ROWS($88:89)-1)*2+1,4))","v":0},null,null,null,null,null,12,0,{"$f":"AM89*AN89","v":0},{"$f":"IF(AO89<0,AO89,0)","v":0}]
[{"$f":"IF(B90=\"\",0,INDEX(Price_List,ROWS($88:90)))","v":20},{"$f":"IF($C90=\"\",\"\",COUNTA($C$88:$C90))","v":3},{"$f":"IF(INDEX(INDIRECT(\"Product_List\"),ROWS($88:90))=\"\",\"\",INDEX(INDIRECT(\"Product_List\"),ROWS($88:90)))","v":"03-ขนมปังไก่หยองน้ำสลัด"},{"$f":"ยอดยกมา","v":0},null,null,null,null,null,null,0,null,{"$f":"INDIRECT(ADDRESS(ROW(A$80),ROW()-ROW(A$80)+(ROWS($88:90)-1)*2-1,4))","v":0},null,0,null,0,null,null,null,0,null,0,null,null,null,null,null,{"$f":"INDIRECT(ADDRESS(ROW(A$80),ROW()-ROW(A$80)+(ROWS($88:90)-1)*2,4))","v":0},0,null,0,{"$f":"INDIRECT(ADDRESS(ROW(A$80),ROW()-ROW(A$80)+(ROWS($88:90)-1)*2+1,4))","v":0},null,null,null,null,null,13,0,0,0]
[{"$f":"IF(B91=\"\",0,INDEX(Price_List,ROWS($88:91)))","v":15},{"$f":"IF($C91=\"\",\"\",COUNTA($C$88:$C91))","v":4},{"$f":"IF(INDEX(INDIRECT(\"Product_List\"),ROWS($88:91))=\"\",\"\",INDEX(INDIRECT(\"Product_List\"),ROWS($88:91)))","v":"04-ขนมปังไส้ครีมสลัด"},{"$f":"ยอดยกมา","v":0},null,null,null,null,null,null,0,null,{"$f":"INDIRECT(ADDRESS(ROW(A$80),ROW()-ROW(A$80)+(ROWS($88:91)-1)*2-1,4))","v":0},null,{"$f":"F91+G91+M91+J91-K91","v":0},null,0,null,null,null,0,null,0,null,null,null,null,null,{"$f":"INDIRECT(ADDRESS(ROW(A$80),ROW()-ROW(A$80)+(ROWS($88:91)-1)*2,4))","v":0},0,null,0,{"$f":"INDIRECT(ADDRESS(ROW(A$80),ROW()-ROW(A$80)+(ROWS($88:91)-1)*2+1,4))","v":0},null,null,null,null,null,15,0,0,0]
[{"$f":"IF(B92=\"\",0,INDEX(Price_List,ROWS($88:92)))","v":15},{"$f":"IF($C92=\"\",\"\",COUNTA($C$88:$C92))","v":5},{"$f":"IF(INDEX(INDIRECT(\"Product_List\"),ROWS($88:92))=\"\",\"\",INDEX(INDIRECT(\"Product_List\"),ROWS($88:92)))","v":"05-ขนมปังเนยสด"},{"$f":"ยอดยกมา","v":0},null,null,null,null,null,null,0,null,{"$f":"INDIRECT(ADDRESS(ROW(A$80),ROW()-ROW(A$80)+(ROWS($88:92)-1)*2-1,4))","v":0},null,0,null,0,null,null,null,0,null,0,null,null,null,null,null,{"$f":"INDIRECT(ADDRESS(ROW(A$80),ROW()-ROW(A$80)+(ROWS($88:92)-1)*2,4))","v":0},0,null,0,{"$f":"INDIRECT(ADDRESS(ROW(A$80),ROW()-ROW(A$80)+(ROWS($88:92)-1)*2+1,4))","v":0},null,null,null,null,null,16,0,0,0]
[{"$f":"IF(B93=\"\",0,INDEX(Price_List,ROWS($88:93)))","v":10},{"$f":"IF($C93=\"\",\"\",COUNTA($C$88:$C93))","v":6},{"$f":"IF(INDEX(INDIRECT(\"Product_List\"),ROWS($88:93))=\"\",\"\",INDEX(INDIRECT(\"Product_List\"),ROWS($88:93)))","v":"06-ขนมปังไส้สังขยาเล็ก"},{"$f":"ยอดยกมา","v":0},null,null,null,null,null,null,0,null,{"$f":"INDIRECT(ADDRESS(ROW(A$80),ROW()-ROW(A$80)+(ROWS($88:93)-1)*2-1,4))","v":0},null,0,null,0,null,null,null,0,null,0,null,null,null,null,null,{"$f":"INDIRECT(ADDRESS(ROW(A$80),ROW()-ROW(A$80)+(ROWS($88:93)-1)*2,4))","v":0},0,null,0,{"$f":"INDIRECT(ADDRESS(ROW(A$80),ROW()-ROW(A$80)+(ROWS($88:93)-1)*2+1,4))","v":0},null,null,null,null,null,18,0,0,0]
[{"$f":"IF(B94=\"\",0,INDEX(Price_List,ROWS($88:94)))","v":10},{"$f":"IF($C94=\"\",\"\",COUNTA($C$88:$C94))","v":7},{"$f":"IF(INDEX(INDIRECT(\"Product_List\"),ROWS($88:94))=\"\",\"\",INDEX(INDIRECT(\"Product_List\"),ROWS($88:94)))","v":"07-ขนมปังไส้เผือก"},{"$f":"ยอดยกมา","v":0},null,null,null,null,null,null,0,null,{"$f":"INDIRECT(ADDRESS(ROW(A$80),ROW()-ROW(A$80)+(ROWS($88:94)-1)*2-1,4))","v":0},null,0,null,0,null,null,null,0,null,0,null,null,null,null,null,{"$f":"INDIRECT(ADDRESS(ROW(A$80),ROW()-ROW(A$80)+(ROWS($88:94)-1)*2,4))","v":0},0,null,0,{"$f":"INDIRECT(ADDRESS(ROW(A$80),ROW()-ROW(A$80)+(ROWS($88:94)-1)*2+1,4))","v":0},null,null,null,null,null,20,0,0,0]
[{"$f":"IF(B95=\"\",0,INDEX(Price_List,ROWS($88:95)))","v":10},{"$f":"IF($C95=\"\",\"\",COUNTA($C$88:$C95))","v":8},{"$f":"IF(INDEX(INDIRECT(\"Product_List\"),ROWS($88:95))=\"\",\"\",INDEX(INDIRECT(\"Product_List\"),ROWS($88:95)))","v":"08-ขนมปังไส้ถั่วแดง"},{"$f":"ยอดยกมา","v":0},null,null,null,null,null,null,0,null,{"$f":"INDIRECT(ADDRESS(ROW(A$80),ROW()-ROW(A$80)+(ROWS($88:95)-1)*2-1,4))","v":0},null,0,null,0,null,null,null,0,null,0,null,null,null,null,null,{"$f":"INDIRECT(ADDRESS(ROW(A$80),ROW()-ROW(A$80)+(ROWS($88:95)-1)*2,4))","v":0},0,null,0,{"$f":"INDIRECT(ADDRESS(ROW(A$80),ROW()-ROW(A$80)+(ROWS($88:95)-1)*2+1,4))","v":0},null,null,null,null,null,22,0,0,0]
[{"$f":"IF(B96=\"\",0,INDEX(Price_List,ROWS($88:96)))","v":10},{"$f":"IF($C96=\"\",\"\",COUNTA($C$88:$C96))","v":9},{"$f":"IF(INDEX(INDIRECT(\"Product_List\"),ROWS($88:96))=\"\",\"\",INDEX(INDIRECT(\"Product_List\"),ROWS($88:96)))","v":"09-ขนมปังไส้ถั่วดำ"},{"$f":"ยอดยกมา","v":0},null,null,null,null,null,null,0,null,{"$f":"INDIRECT(ADDRESS(ROW(A$80),ROW()-ROW(A$80)+(ROWS($88:96)-1)*2-1,4))","v":0},null,0,null,0,null,null,null,0,null,0,null,null,null,null,null,{"$f":"INDIRECT(ADDRESS(ROW(A$80),ROW()-ROW(A$80)+(ROWS($88:96)-1)*2,4))","v":0},0,null,0,{"$f":"INDIRECT(ADDRESS(ROW(A$80),ROW()-ROW(A$80)+(ROWS($88:96)-1)*2+1,4))","v":0},null,null,null,null,null,25,0,0,0]
[{"$f":"IF(B97=\"\",0,INDEX(Price_List,ROWS($88:97)))","v":10},{"$f":"IF($C97=\"\",\"\",COUNTA($C$88:$C97))","v":10},{"$f":"IF(INDEX(INDIRECT(\"Product_List\"),ROWS($88:97))=\"\",\"\",INDEX(INDIRECT(\"Product_List\"),ROWS($88:97)))","v":"10-ขนมปังไส้มันม่วง"},{"$f":"ยอดยกมา","v":0},null,null,null,null,null,null,0,null,{"$f":"INDIRECT(ADDRESS(ROW(A$80),ROW()-ROW(A$80)+(ROWS($88:97)-1)*2-1,4))","v":0},null,0,null,0,null,null,null,0,null,0,null,null,null,null,null,{"$f":"INDIRECT(ADDRESS(ROW(A$80),ROW()-ROW(A$80)+(ROWS($88:97)-1)*2,4))","v":0},0,null,0,{"$f":"INDIRECT(ADDRESS(ROW(A$80),ROW()-ROW(A$80)+(ROWS($88:97)-1)*2+1,4))","v":0},null,null,null,null,null,42,0,0,0]
[{"$f":"IF(B98=\"\",0,INDEX(Price_List,ROWS($88:98)))","v":15},{"$f":"IF($C98=\"\",\"\",COUNTA($C$88:$C98))","v":11},{"$f":"IF(INDEX(INDIRECT(\"Product_List\"),ROWS($88:98))=\"\",\"\",INDEX(INDIRECT(\"Product_List\"),ROWS($88:98)))","v":"11-เค้กกล้วยหอม"},{"$f":"ยอดยกมา","v":0},null,null,null,null,null,null,0,null,{"$f":"INDIRECT(ADDRESS(ROW(A$80),ROW()-ROW(A$80)+(ROWS($88:98)-1)*2-1,4))","v":0},null,0,null,0,null,null,null,0,null,0,null,null,null,null,null,{"$f":"INDIRECT(ADDRESS(ROW(A$80),ROW()-ROW(A$80)+(ROWS($88:98)-1)*2,4))","v":0},0,null,0,{"$f":"INDIRECT(ADDRESS(ROW(A$80),ROW()-ROW(A$80)+(ROWS($88:98)-1)*2+1,4))","v":0},null,null,null,null,null,"Total Deduct",null,null,{"$f":"SUM($AP$88:$AP$97)","v":0}]
[{"$f":"IF(B99=\"\",0,INDEX(Price_List,ROWS($88:99)))","v":15},{"$f":"IF($C99=\"\",\"\",COUNTA($C$88:$C99))","v":12},{"$f":"IF(INDEX(INDIRECT(\"Product_List\"),ROWS($88:99))=\"\",\"\",INDEX(INDIRECT(\"Product_List\"),ROWS($88:99)))","v":"12-เค้กบัตเตอร์"},{"$f":"ยอดยกมา","v":0},null,null,null,null,null,null,0,null,{"$f":"INDIRECT(ADDRESS(ROW(A$80),ROW()-ROW(A$80)+(ROWS($88:99)-1)*2-1,4))","v":0},null,0,null,0,null,null,null,0,null,0,null,null,null,null,null,{"$f":"INDIRECT(ADDRESS(ROW(A$80),ROW()-ROW(A$80)+(ROWS($88:99)-1)*2,4))","v":0},0,null,0,{"$f":"INDIRECT(ADDRESS(ROW(A$80),ROW()-ROW(A$80)+(ROWS($88:99)-1)*2+1,4))","v":0}]
[{"$f":"IF(B100=\"\",0,INDEX(Price_List,ROWS($88:100)))","v":15},{"$f":"IF($C100=\"\",\"\",COUNTA($C$88:$C100))","v":13},{"$f":"IF(INDEX(INDIRECT(\"Product_List\"),ROWS($88:100))=\"\",\"\",INDEX(INDIRECT(\"Product_List\"),ROWS($88:100)))","v":"13-ขนมปังโรลถั่วแดง"},{"$f":"ยอดยกมา","v":0},null,null,null,null,null,null,0,null,{"$f":"INDIRECT(ADDRESS(ROW(A$80),ROW()-ROW(A$80)+(ROWS($88:100)-1)*2-1,4))","v":0},null,0,null,0,null,null,null,0,null,0,null,null,null,null,null,{"$f":"INDIRECT(ADDRESS(ROW(A$80),ROW()-ROW(A$80)+(ROWS($88:100)-1)*2,4))","v":0},0,null,0,{"$f":"INDIRECT(ADDRESS(ROW(A$80),ROW()-ROW(A$80)+(ROWS($88:100)-1)*2+1,4))","v":0}]
[{"$f":"IF(B101=\"\",0,INDEX(Price_List,ROWS($88:101)))","v":15},{"$f":"IF($C101=\"\",\"\",COUNTA($C$88:$C101))","v":14},{"$f":"IF(INDEX(INDIRECT(\"Product_List\"),ROWS($88:101))=\"\",\"\",INDEX(INDIRECT(\"Product_List\"),ROWS($88:101)))","v":"14-ขนมปังไส้สังขยาใหญ่"},{"$f":"ยอดยกมา","v":0},null,null,null,null,null,null,0,null,{"$f":"INDIRECT(ADDRESS(ROW(A$80),ROW()-ROW(A$80)+(ROWS($88:101)-1)*2-1,4))","v":0},null,0,null,0,null,null,null,0,null,0,null,null,null,null,null,{"$f":"INDIRECT(ADDRESS(ROW(A$80),ROW()-ROW(A$80)+(ROWS($88:101)-1)*2,4))","v":0},0,null,0,{"$f":"INDIRECT(ADDRESS(ROW(A$80),ROW()-ROW(A$80)+(ROWS($88:101)-1)*2+1,4))","v":0}]
[{"$f":"IF(B102=\"\",0,INDEX(Price_List,ROWS($88:102)))","v":42},{"$f":"IF($C102=\"\",\"\",COUNTA($C$88:$C102))","v":15},{"$f":"IF(INDEX(INDIRECT(\"Product_List\"),ROWS($88:102))=\"\",\"\",INDEX(INDIRECT(\"Product_List\"),ROWS($88:102)))","v":"15-ขนมปังชนิดแผ่น(480กรัม)"},{"$f":"ยอดยกมา","v":0},null,null,null,null,null,null,0,null,{"$f":"INDIRECT(ADDRESS(ROW(A$80),ROW()-ROW(A$80)+(ROWS($88:102)-1)*2-1,4))","v":0},null,0,null,0,null,null,null,0,null,0,null,null,null,null,null,{"$f":"INDIRECT(ADDRESS(ROW(A$80),ROW()-ROW(A$80)+(ROWS($88:102)-1)*2,4))","v":0},0,null,0,{"$f":"INDIRECT(ADDRESS(ROW(A$80),ROW()-ROW(A$80)+(ROWS($88:102)-1)*2+1,4))","v":0}]
[{"$f":"IF(B103=\"\",0,INDEX(Price_List,ROWS($88:103)))","v":12},{"$f":"IF($C103=\"\",\"\",COUNTA($C$88:$C103))","v":16},{"$f":"IF(INDEX(INDIRECT(\"Product_List\"),ROWS($88:103))=\"\",\"\",INDEX(INDIRECT(\"Product_List\"),ROWS($88:103)))","v":"16-โมจิไส้ถั่ว"},{"$f":"ยอดยกมา","v":0},null,null,null,null,null,null,0,null,{"$f":"INDIRECT(ADDRESS(ROW(A$80),ROW()-ROW(A$80)+(ROWS($88:103)-1)*2-1,4))","v":0},null,0,null,0,null,null,null,0,null,0,null,null,null,null,null,{"$f":"INDIRECT(ADDRESS(ROW(A$80),ROW()-ROW(A$80)+(ROWS($88:103)-1)*2,4))","v":0},0,null,0,{"$f":"INDIRECT(ADDRESS(ROW(A$80),ROW()-ROW(A$80)+(ROWS($88:103)-1)*2+1,4))","v":0}]
[{"$f":"IF(B104=\"\",0,INDEX(Price_List,ROWS($88:104)))","v":12},{"$f":"IF($C104=\"\",\"\",COUNTA($C$88:$C104))","v":17},{"$f":"IF(INDEX(INDIRECT(\"Product_List\"),ROWS($88:104))=\"\",\"\",INDEX(INDIRECT(\"Product_List\"),ROWS($88:104)))","v":"17-โมจิไส้เผือก"},{"$f":"ยอดยกมา","v":0},null,null,null,null,null,null,0,null,{"$f":"INDIRECT(ADDRESS(ROW(A$80),ROW()-ROW(A$80)+(ROWS($88:104)-1)*2-1,4))","v":0},null,0,null,0,null,null,null,0,null,0,null,null,null,null,null,{"$f":"INDIRECT(ADDRESS(ROW(A$80),ROW()-ROW(A$80)+(ROWS($88:104)-1)*2,4))","v":0},0,null,0,{"$f":"INDIRECT(ADDRESS(ROW(A$80),ROW()-ROW(A$80)+(ROWS($88:104)-1)*2+1,4))","v":0}]
[{"$f":"IF(B105=\"\",0,INDEX(Price_List,ROWS($88:105)))","v":15},{"$f":"IF($C105=\"\",\"\",COUNTA($C$88:$C105))","v":18},{"$f":"IF(INDEX(INDIRECT(\"Product_List\"),ROWS($88:105))=\"\",\"\",INDEX(INDIRECT(\"Product_List\"),ROWS($88:105)))","v":"18-โมจิไส้ถั่วไข่เค็ม"},{"$f":"ยอดยกมา","v":0},null,null,null,null,null,null,0,null,{"$f":"INDIRECT(ADDRESS(ROW(A$80),ROW()-ROW(A$80)+(ROWS($88:105)-1)*2-1,4))","v":0},null,0,null,0,null,null,null,0,null,0,null,null,null,null,null,{"$f":"INDIRECT(ADDRESS(ROW(A$80),ROW()-ROW(A$80)+(ROWS($88:105)-1)*2,4))","v":0},0,null,0,{"$f":"INDIRECT(ADDRESS(ROW(A$80),ROW()-ROW(A$80)+(ROWS($88:105)-1)*2+1,4))","v":0}]
[{"$f":"IF(B106=\"\",0,INDEX(Price_List,ROWS($88:106)))","v":20},{"$f":"IF($C106=\"\",\"\",COUNTA($C$88:$C106))","v":19},{"$f":"IF(INDEX(INDIRECT(\"Product_List\"),ROWS($88:106))=\"\",\"\",INDEX(INDIRECT(\"Product_List\"),ROWS($88:106)))","v":"19-ขนมปังพิซซ่า"},{"$f":"ยอดยกมา","v":0},null,null,null,null,null,null,0,null,{"$f":"INDIRECT(ADDRESS(ROW(A$80),ROW()-ROW(A$80)+(ROWS($88:106)-1)*2-1,4))","v":0},null,0,null,0,null,null,null,0,null,0,null,null,null,null,null,{"$f":"INDIRECT(ADDRESS(ROW(A$80),ROW()-ROW(A$80)+(ROWS($88:106)-1)*2,4))","v":0},0,null,0,{"$f":"INDIRECT(ADDRESS(ROW(A$80),ROW()-ROW(A$80)+(ROWS($88:106)-1)*2+1,4))","v":0}]
[{"$f":"IF(B107=\"\",0,INDEX(Price_List,ROWS($88:107)))","v":20},{"$f":"IF($C107=\"\",\"\",COUNTA($C$88:$C107))","v":20},{"$f":"IF(INDEX(INDIRECT(\"Product_List\"),ROWS($88:107))=\"\",\"\",INDEX(INDIRECT(\"Product_List\"),ROWS($88:107)))","v":"20-ขนมปังพิซซ่าปูอัดแฮม"},{"$f":"ยอดยกมา","v":0},null,null,null,null,null,null,0,null,{"$f":"INDIRECT(ADDRESS(ROW(A$80),ROW()-ROW(A$80)+(ROWS($88:107)-1)*2-1,4))","v":0},null,0,null,0,null,null,null,0,null,0,null,null,null,null,null,{"$f":"INDIRECT(ADDRESS(ROW(A$80),ROW()-ROW(A$80)+(ROWS($88:107)-1)*2,4))","v":0},0,null,0,{"$f":"INDIRECT(ADDRESS(ROW(A$80),ROW()-ROW(A$80)+(ROWS($88:107)-1)*2+1,4))","v":0}]
[{"$f":"IF(B108=\"\",0,INDEX(Price_List,ROWS($88:108)))","v":20},{"$f":"IF($C108=\"\",\"\",COUNTA($C$88:$C108))","v":21},{"$f":"IF(INDEX(INDIRECT(\"Product_List\"),ROWS($88:108))=\"\",\"\",INDEX(INDIRECT(\"Product_List\"),ROWS($88:108)))","v":"21-ขนมปังไส้กรอก"},{"$f":"ยอดยกมา","v":0},null,null,null,null,null,null,0,null,{"$f":"INDIRECT(ADDRESS(ROW(A$80),ROW()-ROW(A$80)+(ROWS($88:108)-1)*2-1,4))","v":0},null,0,null,0,null,null,null,0,null,0,null,null,null,null,null,{"$f":"INDIRECT(ADDRESS(ROW(A$80),ROW()-ROW(A$80)+(ROWS($88:108)-1)*2,4))","v":0},0,null,0,{"$f":"INDIRECT(ADDRESS(ROW(A$80),ROW()-ROW(A$80)+(ROWS($88:108)-1)*2+1,4))","v":0}]
[{"$f":"IF(B109=\"\",0,INDEX(Price_List,ROWS($88:109)))","v":15},{"$f":"IF($C109=\"\",\"\",COUNTA($C$88:$C109))","v":22},{"$f":"IF(INDEX(INDIRECT(\"Product_List\"),ROWS($88:109))=\"\",\"\",INDEX(INDIRECT(\"Product_List\"),ROWS($88:109)))","v":"22-ขนมก้านบัว"},{"$f":"ยอดยกมา","v":0},null,null,null,null,null,null,0,null,{"$f":"INDIRECT(ADDRESS(ROW(A$80),ROW()-ROW(A$80)+(ROWS($88:109)-1)*2-1,4))","v":0},null,0,null,0,null,null,null,0,null,0,null,null,null,null,null,{"$f":"INDIRECT(ADDRESS(ROW(A$80),ROW()-ROW(A$80)+(ROWS($88:109)-1)*2,4))","v":0},0,null,0,{"$f":"INDIRECT(ADDRESS(ROW(A$80),ROW()-ROW(A$80)+(ROWS($88:109)-1)*2+1,4))","v":0}]
[{"$f":"IF(B110=\"\",0,INDEX(Price_List,ROWS($88:110)))","v":20},{"$f":"IF($C110=\"\",\"\",COUNTA($C$88:$C110))","v":23},{"$f":"IF(INDEX(INDIRECT(\"Product_List\"),ROWS($88:110))=\"\",\"\",INDEX(INDIRECT(\"Product_List\"),ROWS($88:110)))","v":"23-พายสับปะรด"},{"$f":"ยอดยกมา","v":0},null,null,null,null,null,null,0,null,{"$f":"INDIRECT(ADDRESS(ROW(A$80),ROW()-ROW(A$80)+(ROWS($88:110)-1)*2-1,4))","v":0},null,0,null,0,null,null,null,0,null,0,null,null,null,null,null,{"$f":"INDIRECT(ADDRESS(ROW(A$80),ROW()-ROW(A$80)+(ROWS($88:110)-1)*2,4))","v":0},0,null,0,{"$f":"INDIRECT(ADDRESS(ROW(A$80),ROW()-ROW(A$80)+(ROWS($88:110)-1)*2+1,4))","v":0}]
[{"$f":"IF(B111=\"\",0,INDEX(Price_List,ROWS($88:111)))","v":20},{"$f":"IF($C111=\"\",\"\",COUNTA($C$88:$C111))","v":24},{"$f":"IF(INDEX(INDIRECT(\"Product_List\"),ROWS($88:111))=\"\",\"\",INDEX(INDIRECT(\"Product_List\"),ROWS($88:111)))","v":"24-พายไส้มะพร้าว"},{"$f":"ยอดยกมา","v":0},null,null,null,null,null,null,0,null,{"$f":"INDIRECT(ADDRESS(ROW(A$80),ROW()-ROW(A$80)+(ROWS($88:111)-1)*2-1,4))","v":0},null,0,null,0,null,null,null,0,null,0,null,null,null,null,null,{"$f":"INDIRECT(ADDRESS(ROW(A$80),ROW()-ROW(A$80)+(ROWS($88:111)-1)*2,4))","v":0},0,null,0,{"$f":"INDIRECT(ADDRESS(ROW(A$80),ROW()-ROW(A$80)+(ROWS($88:111)-1)*2+1,4))","v":0}]
[{"$f":"IF(B112=\"\",0,INDEX(Price_List,ROWS($88:112)))","v":15},{"$f":"IF($C112=\"\",\"\",COUNTA($C$88:$C112))","v":25},{"$f":"IF(INDEX(INDIRECT(\"Product_List\"),ROWS($88:112))=\"\",\"\",INDEX(INDIRECT(\"Product_List\"),ROWS($88:112)))","v":"25-ขนมปังโรลมันเทศ"},{"$f":"ยอดยกมา","v":0},null,null,null,null,null,null,0,null,{"$f":"INDIRECT(ADDRESS(ROW(A$80),ROW()-ROW(A$80)+(ROWS($88:112)-1)*2-1,4))","v":0},null,0,null,0,null,null,null,0,null,0,null,null,null,null,null,{"$f":"INDIRECT(ADDRESS(ROW(A$80),ROW()-ROW(A$80)+(ROWS($88:112)-1)*2,4))","v":0},0,null,0,{"$f":"INDIRECT(ADDRESS(ROW(A$80),ROW()-ROW(A$80)+(ROWS($88:112)-1)*2+1,4))","v":0}]
[{"$f":"IF(B113=\"\",0,INDEX(Price_List,ROWS($88:113)))","v":15},{"$f":"IF($C113=\"\",\"\",COUNTA($C$88:$C113))","v":26},{"$f":"IF(INDEX(INDIRECT(\"Product_List\"),ROWS($88:113))=\"\",\"\",INDEX(INDIRECT(\"Product_List\"),ROWS($88:113)))","v":"26-ขนมปังไส้ครีมสลัดน้ำพริกเผา"},{"$f":"ยอดยกมา","v":0},null,null,null,null,null,null,0,null,{"$f":"INDIRECT(ADDRESS(ROW(A$80),ROW()-ROW(A$80)+(ROWS($88:113)-1)*2-1,4))","v":0},null,0,null,0,null,null,null,0,null,0,null,null,null,null,null,{"$f":"INDIRECT(ADDRESS(ROW(A$80),ROW()-ROW(A$80)+(ROWS($88:113)-1)*2,4))","v":0},0,null,0,{"$f":"INDIRECT(ADDRESS(ROW(A$80),ROW()-ROW(A$80)+(ROWS($88:113)-1)*2+1,4))","v":0}]
[{"$f":"IF(B114=\"\",0,INDEX(Price_List,ROWS($88:114)))","v":20},{"$f":"IF($C114=\"\",\"\",COUNTA($C$88:$C114))","v":27},{"$f":"IF(INDEX(INDIRECT(\"Product_List\"),ROWS($88:114))=\"\",\"\",INDEX(INDIRECT(\"Product_List\"),ROWS($88:114)))","v":"27-ขนมปังไส้สังขยาไข่"},{"$f":"ยอดยกมา","v":0},null,null,null,null,null,null,0,null,{"$f":"INDIRECT(ADDRESS(ROW(A$80),ROW()-ROW(A$80)+(ROWS($88:114)-1)*2-1,4))","v":0},null,0,null,0,null,null,null,0,null,0,null,null,null,null,null,{"$f":"INDIRECT(ADDRESS(ROW(A$80),ROW()-ROW(A$80)+(ROWS($88:114)-1)*2,4))","v":0},0,null,0,{"$f":"INDIRECT(ADDRESS(ROW(A$80),ROW()-ROW(A$80)+(ROWS($88:114)-1)*2+1,4))","v":0}]
[{"$f":"IF(B115=\"\",0,INDEX(Price_List,ROWS($88:115)))","v":20},{"$f":"IF($C115=\"\",\"\",COUNTA($C$88:$C115))","v":28},{"$f":"IF(INDEX(INDIRECT(\"Product_List\"),ROWS($88:115))=\"\",\"\",INDEX(INDIRECT(\"Product_List\"),ROWS($88:115)))","v":"28-ขนมปังไส้สังขยามะพร้าว"},{"$f":"ยอดยกมา","v":0},null,null,null,null,null,null,0,null,{"$f":"INDIRECT(ADDRESS(ROW(A$80),ROW()-ROW(A$80)+(ROWS($88:115)-1)*2-1,4))","v":0},null,0,null,0,null,null,null,0,null,0,null,null,null,null,null,{"$f":"INDIRECT(ADDRESS(ROW(A$80),ROW()-ROW(A$80)+(ROWS($88:115)-1)*2,4))","v":0},0,null,0,{"$f":"INDIRECT(ADDRESS(ROW(A$80),ROW()-ROW(A$80)+(ROWS($88:115)-1)*2+1,4))","v":0}]
[{"$f":"IF(B116=\"\",0,INDEX(Price_List,ROWS($88:116)))","v":10},{"$f":"IF($C116=\"\",\"\",COUNTA($C$88:$C116))","v":29},{"$f":"IF(INDEX(INDIRECT(\"Product_List\"),ROWS($88:116))=\"\",\"\",INDEX(INDIRECT(\"Product_List\"),ROWS($88:116)))","v":"29-ขนมปังไส้ครีมชาไทย"},{"$f":"ยอดยกมา","v":0},null,null,null,null,null,null,0,null,{"$f":"INDIRECT(ADDRESS(ROW(A$80),ROW()-ROW(A$80)+(ROWS($88:116)-1)*2-1,4))","v":0},null,0,null,0,null,null,null,0,null,0,null,null,null,null,null,{"$f":"INDIRECT(ADDRESS(ROW(A$80),ROW()-ROW(A$80)+(ROWS($88:116)-1)*2,4))","v":0},0,null,0,{"$f":"INDIRECT(ADDRESS(ROW(A$80),ROW()-ROW(A$80)+(ROWS($88:116)-1)*2+1,4))","v":0}]
[{"$f":"IF(B117=\"\",0,INDEX(Price_List,ROWS($88:117)))","v":15},{"$f":"IF($C117=\"\",\"\",COUNTA($C$88:$C117))","v":30},{"$f":"IF(INDEX(INDIRECT(\"Product_List\"),ROWS($88:117))=\"\",\"\",INDEX(INDIRECT(\"Product_List\"),ROWS($88:117)))","v":"30-ขนมปังโรลมันม่วง"},{"$f":"ยอดยกมา","v":0},null,null,null,null,null,null,0,null,{"$f":"INDIRECT(ADDRESS(ROW(A$80),ROW()-ROW(A$80)+(ROWS($88:117)-1)*2-1,4))","v":0},null,0,null,0,null,null,null,0,null,0,null,null,null,null,null,{"$f":"INDIRECT(ADDRESS(ROW(A$80),ROW()-ROW(A$80)+(ROWS($88:117)-1)*2,4))","v":0},0,null,0,{"$f":"INDIRECT(ADDRESS(ROW(A$80),ROW()-ROW(A$80)+(ROWS($88:117)-1)*2+1,4))","v":0}]
[{"$f":"IF(B118=\"\",0,INDEX(Price_List,ROWS($88:118)))","v":15},{"$f":"IF($C118=\"\",\"\",COUNTA($C$88:$C118))","v":31},{"$f":"IF(INDEX(INDIRECT(\"Product_List\"),ROWS($88:118))=\"\",\"\",INDEX(INDIRECT(\"Product_List\"),ROWS($88:118)))","v":"31-ขนมปังโรลช็อกโกแลต"},{"$f":"ยอดยกมา","v":0},null,null,null,null,null,null,0,null,{"$f":"INDIRECT(ADDRESS(ROW(A$80),ROW()-ROW(A$80)+(ROWS($88:118)-1)*2-1,4))","v":0},null,0,null,0,null,null,null,0,null,0,null,null,null,null,null,{"$f":"INDIRECT(ADDRESS(ROW(A$80),ROW()-ROW(A$80)+(ROWS($88:118)-1)*2,4))","v":0},0,null,0,{"$f":"INDIRECT(ADDRESS(ROW(A$80),ROW()-ROW(A$80)+(ROWS($88:118)-1)*2+1,4))","v":0}]
[{"$f":"IF(B119=\"\",0,INDEX(Price_List,ROWS($88:119)))","v":16},{"$f":"IF($C119=\"\",\"\",COUNTA($C$88:$C119))","v":32},{"$f":"IF(INDEX(INDIRECT(\"Product_List\"),ROWS($88:119))=\"\",\"\",INDEX(INDIRECT(\"Product_List\"),ROWS($88:119)))","v":"32-ขนมปังชนิดแผ่น(155กรัม)"},{"$f":"ยอดยกมา","v":0},null,null,null,null,null,null,0,null,{"$f":"INDIRECT(ADDRESS(ROW(A$80),ROW()-ROW(A$80)+(ROWS($88:119)-1)*2-1,4))","v":0},null,0,null,0,null,null,null,0,null,0,null,null,null,null,null,{"$f":"INDIRECT(ADDRESS(ROW(A$80),ROW()-ROW(A$80)+(ROWS($88:119)-1)*2,4))","v":0},0,null,0,{"$f":"INDIRECT(ADDRESS(ROW(A$80),ROW()-ROW(A$80)+(ROWS($88:119)-1)*2+1,4))","v":0}]
[{"$f":"IF(B120=\"\",0,INDEX(Price_List,ROWS($88:120)))","v":15},{"$f":"IF($C120=\"\",\"\",COUNTA($C$88:$C120))","v":33},{"$f":"IF(INDEX(INDIRECT(\"Product_List\"),ROWS($88:120))=\"\",\"\",INDEX(INDIRECT(\"Product_List\"),ROWS($88:120)))","v":"33-ขนมปังโรลเผือก"},{"$f":"ยอดยกมา","v":0},null,null,null,null,null,null,0,null,{"$f":"INDIRECT(ADDRESS(ROW(A$80),ROW()-ROW(A$80)+(ROWS($88:120)-1)*2-1,4))","v":0},null,0,null,0,null,null,null,0,null,0,null,null,null,null,null,{"$f":"INDIRECT(ADDRESS(ROW(A$80),ROW()-ROW(A$80)+(ROWS($88:120)-1)*2,4))","v":0},0,null,0,{"$f":"INDIRECT(ADDRESS(ROW(A$80),ROW()-ROW(A$80)+(ROWS($88:120)-1)*2+1,4))","v":0}]
[{"$f":"IF(B121=\"\",0,INDEX(Price_List,ROWS($88:121)))","v":15},{"$f":"IF($C121=\"\",\"\",COUNTA($C$88:$C121))","v":34},{"$f":"IF(INDEX(INDIRECT(\"Product_List\"),ROWS($88:121))=\"\",\"\",INDEX(INDIRECT(\"Product_List\"),ROWS($88:121)))","v":"34-ขนมปังไก่หยองน้ำสลัด Mini"},{"$f":"ยอดยกมา","v":0},null,null,null,null,null,null,0,null,{"$f":"INDIRECT(ADDRESS(ROW(A$80),ROW()-ROW(A$80)+(ROWS($88:121)-1)*2-1,4))","v":0},null,0,null,0,null,null,null,0,null,0,null,null,null,null,null,{"$f":"INDIRECT(ADDRESS(ROW(A$80),ROW()-ROW(A$80)+(ROWS($88:121)-1)*2,4))","v":0},0,null,0,{"$f":"INDIRECT(ADDRESS(ROW(A$80),ROW()-ROW(A$80)+(ROWS($88:121)-1)*2+1,4))","v":0}]
[{"$f":"IF(B122=\"\",0,INDEX(Price_List,ROWS($88:122)))","v":10},{"$f":"IF($C122=\"\",\"\",COUNTA($C$88:$C122))","v":35},{"$f":"IF(INDEX(INDIRECT(\"Product_List\"),ROWS($88:122))=\"\",\"\",INDEX(INDIRECT(\"Product_List\"),ROWS($88:122)))","v":"35-ขนมปังไส้ช็อกโกแลต"},{"$f":"ยอดยกมา","v":0},null,null,null,null,null,null,0,null,{"$f":"INDIRECT(ADDRESS(ROW(A$80),ROW()-ROW(A$80)+(ROWS($88:122)-1)*2-1,4))","v":0},null,0,null,0,null,null,null,0,null,0,null,null,null,null,null,{"$f":"INDIRECT(ADDRESS(ROW(A$80),ROW()-ROW(A$80)+(ROWS($88:122)-1)*2,4))","v":0},0,null,0,{"$f":"INDIRECT(ADDRESS(ROW(A$80),ROW()-ROW(A$80)+(ROWS($88:122)-1)*2+1,4))","v":0}]
[{"$f":"IF(B123=\"\",0,INDEX(Price_List,ROWS($88:123)))","v":10},{"$f":"IF($C123=\"\",\"\",COUNTA($C$88:$C123))","v":36},{"$f":"IF(INDEX(INDIRECT(\"Product_List\"),ROWS($88:123))=\"\",\"\",INDEX(INDIRECT(\"Product_List\"),ROWS($88:123)))","v":"36-ขนมปังไส้ครีมสังขยาไข่"},{"$f":"ยอดยกมา","v":0},null,null,null,null,null,null,0,null,{"$f":"INDIRECT(ADDRESS(ROW(A$80),ROW()-ROW(A$80)+(ROWS($88:123)-1)*2-1,4))","v":0},null,0,null,0,null,null,null,0,null,0,null,null,null,null,null,{"$f":"INDIRECT(ADDRESS(ROW(A$80),ROW()-ROW(A$80)+(ROWS($88:123)-1)*2,4))","v":0},0,null,0,{"$f":"INDIRECT(ADDRESS(ROW(A$80),ROW()-ROW(A$80)+(ROWS($88:123)-1)*2+1,4))","v":0}]
[{"$f":"IF(B124=\"\",0,INDEX(Price_List,ROWS($88:124)))","v":20},{"$f":"IF($C124=\"\",\"\",COUNTA($C$88:$C124))","v":37},{"$f":"IF(INDEX(INDIRECT(\"Product_List\"),ROWS($88:124))=\"\",\"\",INDEX(INDIRECT(\"Product_List\"),ROWS($88:124)))","v":"37-ขนมปังพิซซ่าฮาวายเอี้ยน"},{"$f":"ยอดยกมา","v":0},null,null,null,null,null,null,0,null,{"$f":"INDIRECT(ADDRESS(ROW(A$80),ROW()-ROW(A$80)+(ROWS($88:124)-1)*2-1,4))","v":0},null,0,null,0,null,null,null,0,null,0,null,null,null,null,null,{"$f":"INDIRECT(ADDRESS(ROW(A$80),ROW()-ROW(A$80)+(ROWS($88:124)-1)*2,4))","v":0},0,null,0,{"$f":"INDIRECT(ADDRESS(ROW(A$80),ROW()-ROW(A$80)+(ROWS($88:124)-1)*2+1,4))","v":0}]
[{"$f":"IF(B125=\"\",0,INDEX(Price_List,ROWS($88:125)))","v":20},{"$f":"IF($C125=\"\",\"\",COUNTA($C$88:$C125))","v":38},{"$f":"IF(INDEX(INDIRECT(\"Product_List\"),ROWS($88:125))=\"\",\"\",INDEX(INDIRECT(\"Product_List\"),ROWS($88:125)))","v":"38-ครัวซองต์หมูหยองน้ำสลัด"},{"$f":"ยอดยกมา","v":0},null,null,null,null,null,null,0,null,{"$f":"INDIRECT(ADDRESS(ROW(A$80),ROW()-ROW(A$80)+(ROWS($88:125)-1)*2-1,4))","v":0},null,0,null,0,null,null,null,0,null,0,null,null,null,null,null,{"$f":"INDIRECT(ADDRESS(ROW(A$80),ROW()-ROW(A$80)+(ROWS($88:125)-1)*2,4))","v":0},0,null,0,{"$f":"INDIRECT(ADDRESS(ROW(A$80),ROW()-ROW(A$80)+(ROWS($88:125)-1)*2+1,4))","v":0}]
[{"$f":"IF(B126=\"\",0,INDEX(Price_List,ROWS($88:126)))","v":15},{"$f":"IF($C126=\"\",\"\",COUNTA($C$88:$C126))","v":39},{"$f":"IF(INDEX(INDIRECT(\"Product_List\"),ROWS($88:126))=\"\",\"\",INDEX(INDIRECT(\"Product_List\"),ROWS($88:126)))","v":"39-แพนเบรดไส้เผือก"},{"$f":"ยอดยกมา","v":0},null,null,null,null,null,null,0,null,{"$f":"INDIRECT(ADDRESS(ROW(A$80),ROW()-ROW(A$80)+(ROWS($88:126)-1)*2-1,4))","v":0},null,0,null,0,null,null,null,0,null,0,null,null,null,null,null,{"$f":"INDIRECT(ADDRESS(ROW(A$80),ROW()-ROW(A$80)+(ROWS($88:126)-1)*2,4))","v":0},0,null,0,{"$f":"INDIRECT(ADDRESS(ROW(A$80),ROW()-ROW(A$80)+(ROWS($88:126)-1)*2+1,4))","v":0}]
[{"$f":"IF(B127=\"\",0,INDEX(Price_List,ROWS($88:127)))","v":15},{"$f":"IF($C127=\"\",\"\",COUNTA($C$88:$C127))","v":40},{"$f":"IF(INDEX(INDIRECT(\"Product_List\"),ROWS($88:127))=\"\",\"\",INDEX(INDIRECT(\"Product_List\"),ROWS($88:127)))","v":"40-แพนเบรดไส้ถั่วแดง"},{"$f":"ยอดยกมา","v":0},null,null,null,null,null,null,0,null,{"$f":"INDIRECT(ADDRESS(ROW(A$80),ROW()-ROW(A$80)+(ROWS($88:127)-1)*2-1,4))","v":0},null,0,null,0,null,null,null,0,null,0,null,null,null,null,null,{"$f":"INDIRECT(ADDRESS(ROW(A$80),ROW()-ROW(A$80)+(ROWS($88:127)-1)*2,4))","v":0},0,null,0,{"$f":"INDIRECT(ADDRESS(ROW(A$80),ROW()-ROW(A$80)+(ROWS($88:127)-1)*2+1,4))","v":0}]
[{"$f":"IF(B128=\"\",0,INDEX(Price_List,ROWS($88:128)))","v":12},{"$f":"IF($C128=\"\",\"\",COUNTA($C$88:$C128))","v":41},{"$f":"IF(INDEX(INDIRECT(\"Product_List\"),ROWS($88:128))=\"\",\"\",INDEX(INDIRECT(\"Product_List\"),ROWS($88:128)))","v":"41-ขนมปังกรอบเนยน้ำตาล(30กรัม)"},{"$f":"ยอดยกมา","v":0},null,null,null,null,null,null,0,null,{"$f":"INDIRECT(ADDRESS(ROW(A$80),ROW()-ROW(A$80)+(ROWS($88:128)-1)*2-1,4))","v":0},null,0,null,0,null,null,null,0,null,0,null,null,null,null,null,{"$f":"INDIRECT(ADDRESS(ROW(A$80),ROW()-ROW(A$80)+(ROWS($88:128)-1)*2,4))","v":0},0,null,0,{"$f":"INDIRECT(ADDRESS(ROW(A$80),ROW()-ROW(A$80)+(ROWS($88:128)-1)*2+1,4))","v":0}]
[{"$f":"IF(B129=\"\",0,INDEX(Price_List,ROWS($88:129)))","v":18},{"$f":"IF($C129=\"\",\"\",COUNTA($C$88:$C129))","v":42},{"$f":"IF(INDEX(INDIRECT(\"Product_List\"),ROWS($88:129))=\"\",\"\",INDEX(INDIRECT(\"Product_List\"),ROWS($88:129)))","v":"42-ขนมปังชนิดแผ่นโฮลวีต"},{"$f":"ยอดยกมา","v":0},null,null,null,null,null,null,0,null,{"$f":"INDIRECT(ADDRESS(ROW(A$80),ROW()-ROW(A$80)+(ROWS($88:129)-1)*2-1,4))","v":0},null,0,null,0,null,null,null,0,null,0,null,null,null,null,null,{"$f":"INDIRECT(ADDRESS(ROW(A$80),ROW()-ROW(A$80)+(ROWS($88:129)-1)*2,4))","v":0},0,null,0,{"$f":"INDIRECT(ADDRESS(ROW(A$80),ROW()-ROW(A$80)+(ROWS($88:129)-1)*2+1,4))","v":0}]
[{"$f":"IF(B130=\"\",0,INDEX(Price_List,ROWS($88:130)))","v":12},{"$f":"IF($C130=\"\",\"\",COUNTA($C$88:$C130))","v":43},{"$f":"IF(INDEX(INDIRECT(\"Product_List\"),ROWS($88:130))=\"\",\"\",INDEX(INDIRECT(\"Product_List\"),ROWS($88:130)))","v":"43-เค้กโรลใบเตย"},{"$f":"ยอดยกมา","v":0},null,null,null,null,null,null,{"$f":"D130+E130+J130-I130+H130","v":0},null,{"$f":"INDIRECT(ADDRESS(ROW(A$80),ROW()-ROW(A$80)+(ROWS($88:130)-1)*2-1,4))","v":0},null,{"$f":"F130+G130+M130+J130-K130","v":0},null,{"$f":"O130*A130","v":0},null,null,null,{"$f":"D130+E130-F130-G130","v":0},null,{"$f":"U130*6%+U130","v":0},null,null,null,null,null,{"$f":"INDIRECT(ADDRESS(ROW(A$80),ROW()-ROW(A$80)+(ROWS($88:130)-1)*2,4))","v":0},0,null,0,{"$f":"INDIRECT(ADDRESS(ROW(A$80),ROW()-ROW(A$80)+(ROWS($88:130)-1)*2+1,4))","v":0}]
[{"$f":"IF(B131=\"\",0,INDEX(Price_List,ROWS($88:131)))","v":12},{"$f":"IF($C131=\"\",\"\",COUNTA($C$88:$C131))","v":44},{"$f":"IF(INDEX(INDIRECT(\"Product_List\"),ROWS($88:131))=\"\",\"\",INDEX(INDIRECT(\"Product_List\"),ROWS($88:131)))","v":"44-ขนมโมจิไส้ถั่วดำ"},{"$f":"ยอดยกมา","v":0},null,null,null,null,null,null,{"$f":"D131+E131+J131-I131+H131","v":0},null,{"$f":"INDIRECT(ADDRESS(ROW(A$80),ROW()-ROW(A$80)+(ROWS($88:131)-1)*2-1,4))","v":0},null,{"$f":"F131+G131+M131+J131-K131","v":0},null,{"$f":"O131*A131","v":0},null,null,null,{"$f":"D131+E131-F131-G131","v":0},null,{"$f":"U131*6%+U131","v":0},null,null,null,null,null,{"$f":"INDIRECT(ADDRESS(ROW(A$80),ROW()-ROW(A$80)+(ROWS($88:131)-1)*2,4))","v":0},0,null,0,{"$f":"INDIRECT(ADDRESS(ROW(A$80),ROW()-ROW(A$80)+(ROWS($88:131)-1)*2+1,4))","v":0}]
[{"$f":"IF(B132=\"\",0,INDEX(Price_List,ROWS($88:132)))","v":25},{"$f":"IF($C132=\"\",\"\",COUNTA($C$88:$C132))","v":45},{"$f":"IF(INDEX(INDIRECT(\"Product_List\"),ROWS($88:132))=\"\",\"\",INDEX(INDIRECT(\"Product_List\"),ROWS($88:132)))","v":"45-ครัวซองต์ไส้กรอกชีส"},{"$f":"ยอดยกมา","v":0},null,null,null,null,null,null,{"$f":"D132+E132+J132-I132+H132","v":0},null,{"$f":"INDIRECT(ADDRESS(ROW(A$80),ROW()-ROW(A$80)+(ROWS($88:132)-1)*2-1,4))","v":0},null,{"$f":"F132+G132+M132+J132-K132","v":0},null,{"$f":"O132*A132","v":0},null,null,null,{"$f":"D132+E132-F132-G132","v":0},null,{"$f":"U132*6%+U132","v":0},null,null,null,null,null,{"$f":"INDIRECT(ADDRESS(ROW(A$80),ROW()-ROW(A$80)+(ROWS($88:132)-1)*2,4))","v":0},0,null,0,{"$f":"INDIRECT(ADDRESS(ROW(A$80),ROW()-ROW(A$80)+(ROWS($88:132)-1)*2+1,4))","v":0}]
[{"$f":"IF(B133=\"\",0,INDEX(Price_List,ROWS($88:133)))","v":12},{"$f":"IF($C133=\"\",\"\",COUNTA($C$88:$C133))","v":46},{"$f":"IF(INDEX(INDIRECT(\"Product_List\"),ROWS($88:133))=\"\",\"\",INDEX(INDIRECT(\"Product_List\"),ROWS($88:133)))","v":"46-ขนมเปี๊ยะไส้ถั่ว"},{"$f":"ยอดยกมา","v":0},null,null,null,null,null,null,0,null,{"$f":"INDIRECT(ADDRESS(ROW(A$80),ROW()-ROW(A$80)+(ROWS($88:133)-1)*2-1,4))","v":0},null,0,null,0,null,null,null,0,null,0,null,null,null,null,null,{"$f":"INDIRECT(ADDRESS(ROW(A$80),ROW()-ROW(A$80)+(ROWS($88:133)-1)*2,4))","v":0},0,null,0,{"$f":"INDIRECT(ADDRESS(ROW(A$80),ROW()-ROW(A$80)+(ROWS($88:133)-1)*2+1,4))","v":0}]
[{"$f":"IF(B134=\"\",0,INDEX(Price_List,ROWS($88:134)))","v":12},{"$f":"IF($C134=\"\",\"\",COUNTA($C$88:$C134))","v":47},{"$f":"IF(INDEX(INDIRECT(\"Product_List\"),ROWS($88:134))=\"\",\"\",INDEX(INDIRECT(\"Product_List\"),ROWS($88:134)))","v":"47-ขนมเปี๊ยะไส้ฟัก"},{"$f":"ยอดยกมา","v":0},null,null,null,null,null,null,{"$f":"D134+E134+J134-I134+H134","v":0},null,{"$f":"INDIRECT(ADDRESS(ROW(A$80),ROW()-ROW(A$80)+(ROWS($88:134)-1)*2-1,4))","v":0},null,{"$f":"F134+G134+M134+J134-K134","v":0},null,{"$f":"O134*A134","v":0},null,null,null,{"$f":"D134+E134-F134-G134","v":0},null,{"$f":"U134*6%+U134","v":0},null,null,null,null,null,{"$f":"INDIRECT(ADDRESS(ROW(A$80),ROW()-ROW(A$80)+(ROWS($88:134)-1)*2,4))","v":0},0,null,0,{"$f":"INDIRECT(ADDRESS(ROW(A$80),ROW()-ROW(A$80)+(ROWS($88:134)-1)*2+1,4))","v":0}]
[{"$f":"IF(B135=\"\",0,INDEX(Price_List,ROWS($88:135)))","v":12},{"$f":"IF($C135=\"\",\"\",COUNTA($C$88:$C135))","v":48},{"$f":"IF(INDEX(INDIRECT(\"Product_List\"),ROWS($88:135))=\"\",\"\",INDEX(INDIRECT(\"Product_List\"),ROWS($88:135)))","v":"48-มังกี้เค้ก"},{"$f":"ยอดยกมา","v":0},null,null,null,null,null,null,0,null,{"$f":"INDIRECT(ADDRESS(ROW(A$80),ROW()-ROW(A$80)+(ROWS($88:135)-1)*2-1,4))","v":0},null,0,null,0,null,null,null,0,null,0,null,null,null,null,null,{"$f":"INDIRECT(ADDRESS(ROW(A$80),ROW()-ROW(A$80)+(ROWS($88:135)-1)*2,4))","v":0},0,null,0,{"$f":"INDIRECT(ADDRESS(ROW(A$80),ROW()-ROW(A$80)+(ROWS($88:135)-1)*2+1,4))","v":0}]
["รวม",null,null,{"$f":"SUM(D$88:D$135)","v":0},0,0,0,0,0,0,0,null,{"$f":"SUM(M$88:M$135)","v":0},null,null,null,{"$f":"$AP$98","v":0},null,"บาท",null,{"$f":"SUM(U$88:U$135)","v":0},null,{"$f":"SUM(W$88:W$135)","v":0},null,null,null,null,null,{"$f":"SUM(AC$88:AC$135)","v":0},{"$f":"SUM(AD$88:AD$135)","v":0},{"$f":"SUM(AE$88:AE$135)","v":0},{"$f":"SUM(AF$88:AF$135)","v":0},{"$f":"SUM(AG$88:AG$135)","v":0}]
["เลขที่ไมล์ เวลาออกทำงาน",null,null,{"$f":"$BF$3","v":0},null,"Km","น้ำหนักของเสีย"]
["เลขที่ไมล์ เวลากลับ",null,null,{"$f":"$BF$4","v":0},null,"Km",{"$f":"$AA$5","v":0},null,"KG"]
["เวลากลับถึงสำนักงาน",null,null,{"$f":"$BF$1","v":"00:00:00"},null,"น."]
["เติมน้ำมัน",null,null,{"$f":"$AX3","v":0},null,"บาท"]
["จำนวนน้ำมัน",null,null,{"$f":"$AX4","v":0},null,"ลิตร"]
["ยอดรวมต้นทุนสาขา",null,null,{"$f":"$AX5","v":0},null,"บาท"]

{"sheet":"31","index":35,"n_rows":142,"n_cols":154,"rows_kept":142,"cut":false,"hidden":false,"merged":[[83,132,83,133],[129,10,129,11],[129,12,129,13],[129,14,129,15],[129,16,129,17],[127,10,127,11],[127,12,127,13],[127,14,127,15],[127,16,127,17],[127,20,127,21],[127,22,127,23],[127,24,127,25],[127,33,127,36],[126,10,126,11],[126,12,126,13],[126,14,126,15],[126,16,126,17],[128,10,128,11],[128,12,128,13],[129,24,129,25],[125,10,125,11],[125,12,125,13],[125,14,125,15],[125,16,125,17],[7,132,7,134],[8,132,8,134],[80,132,80,133],[82,132,82,133],[7,135,7,137],[8,135,8,137],[80,135,80,136],[82,135,82,136],[7,138,7,140],[7,141,7,143],[7,147,7,149],[8,138,8,140],[141,0,141,2],[141,3,141,4],[138,0,138,2],[138,3,138,4],[139,0,139,2],[139,3,139,4],[140,0,140,2],[140,3,140,4],[135,24,135,25],[135,33,135,36],[136,0,136,2],[136,3,136,4],[137,0,137,2],[137,3,137,4],[137,6,137,7],[137,18,137,21],[135,0,135,2],[135,10,135,11],[135,12,135,13],[135,14,135,15],[135,16,135,17],[135,18,135,19],[135,20,135,21],[135,22,135,23],[128,14,128,15],[128,16,128,17],[128,20,128,21],[128,22,128,23],[129,20,129,21],[129,22,129,23],[131,16,131,17],[132,16,132,17],[134,16,134,17],[131,20,131,21],[132,20,132,21],[134,20,134,21],[131,22,131,23],[132,22,132,23],[134,22,134,23],[131,24,131,25],[132,24,132,25],[134,24,134,25],[129,33,129,36],[128,24,128,25],[128,33,128,36],[126,20,126,21],[126,22,126,23],[124,24,124,25],[124,33,124,36],[125,20,125,21],[125,22,125,23],[125,24,125,25],[125,33,125,36],[124,10,124,11],[124,12,124,13],[124,14,124,15],[124,16,124,17],[124,20,124,21],[124,22,124,23],[126,24,126,25],[126,33,126,36],[122,24,122,25],[122,33,122,36],[123,10,123,11],[123,12,123,13],[123,14,123,15],[123,16,123,17],[123,20,123,21],[123,22,123,23],[123,24,123,25],[123,33,123,36],[122,10,122,11],[122,12,122,13],[122,14,122,15],[122,16,122,17],[122,20,122,21],[122,22,122,23],[120,24,120,25],[120,33,120,36],[121,10,121,11],[121,12,121,13],[121,14,121,15],[121,16,121,17],[121,20,121,21],[121,22,121,23],[121,24,121,25],[121,33,121,36],[120,10,120,11],[120,12,120,13],[120,14,120,15],[120,16,120,17],[120,20,120,21],[120,22,120,23],[118,24,118,25],[118,33,118,36],[119,10,119,11],[119,12,119,13],[119,14,119,15],[119,16,119,17],[119,20,119,21],[119,22,119,23],[119,24,119,25],[119,33,119,36],[118,10,118,11],[118,12,118,13],[118,14,118,15],[118,16,118,17],[118,20,118,21],[118,22,118,23],[116,24,116,25],[116,33,116,36],[117,10,117,11],[117,12,117,13],[117,14,117,15],[117,16,117,17],[117,20,117,21],[117,22,117,23],[117,24,117,25],[117,33,117,36],[116,10,116,11],[116,12,116,13],[116,14,116,15],[116,16,116,17],[116,20,116,21],[116,22,116,23],[114,24,114,25],[114,33,114,36],[115,10,115,11],[115,12,115,13],[115,14,115,15],[115,16,115,17],[115,20,115,21],[115,22,115,23],[115,24,115,25],[115,33,115,36],[114,10,114,11],[114,12,114,13],[114,14,114,15],[114,16,114,17],[114,20,114,21],[114,22,114,23],[112,24,112,25],[112,33,112,36],[113,10,113,11],[113,12,113,13],[113,14,113,15],[113,16,113,17],[113,20,113,21],[113,22,113,23],[113,24,113,25],[113,33,113,36],[112,10,112,11],[112,12,112,13],[112,14,112,15],[112,16,112,17],[112,20,112,21],[112,22,112,23],[110,24,110,25],[110,33,110,36],[111,10,111,11],[111,12,111,13],[111,14,111,15],[111,16,111,17],[111,20,111,21],[111,22,111,23],[111,24,111,25],[111,33,111,36],[110,10,110,11],[110,12,110,13],[110,14,110,15],[110,16,110,17],[110,20,110,21],[110,22,110,23],[108,24,108,25],[108,33,108,36],[109,10,109,11],[109,12,109,13],[109,14,109,15],[109,16,109,17],[109,20,109,21],[109,22,109,23],[109,24,109,25],[109,33,109,36],[108,10,108,11],[108,12,108,13],[108,14,108,15],[108,16,108,17],[108,20,108,21],[108,22,108,23],[106,24,106,25],[106,33,106,36],[107,10,107,11],[107,12,107,13],[107,14,107,15],[107,16,107,17],[107,20,107,21],[107,22,107,23],[107,24,107,25],[107,33,107,36],[106,10,106,11],[106,12,106,13],[106,14,106,15],[106,16,106,17],[106,20,106,21],[106,22,106,23],[104,24,104,25],[104,33,104,36],[105,10,105,11],[105,12,105,13],[105,14,105,15],[105,16,105,17],[105,20,105,21],[105,22,105,23],[105,24,105,25],[105,33,105,36],[104,10,104,11],[104,12,104,13],[104,14,104,15],[104,16,104,17],[104,20,104,21],[104,22,104,23],[102,24,102,25],[102,33,102,36],[103,10,103,11],[103,12,103,13],[103,14,103,15],[103,16,103,17],[103,20,103,21],[103,22,103,23],[103,24,103,25],[103,33,103,36],[102,10,102,11],[102,12,102,13],[102,14,102,15],[102,16,102,17],[102,20,102,21],[102,22,102,23],[101,10,101,11],[101,12,101,13],[101,14,101,15],[101,16,101,17],[101,20,101,21],[101,22,101,23],[101,24,101,25],[101,33,101,36],[100,10,100,11],[100,12,100,13],[100,14,100,15],[100,16,100,17],[100,20,100,21],[100,22,100,23],[99,10,99,11],[99,12,99,13],[99,14,99,15],[99,16,99,17],[99,20,99,21],[99,22,99,23],[99,24,99,25],[99,33,99,36],[100,24,100,25],[100,33,100,36],[97,24,97,25],[97,33,97,36],[97,38,97,40],[98,10,98,11],[98,12,98,13],[98,14,98,15],[98,16,98,17],[98,20,98,21],[98,22,98,23],[98,24,98,25],[97,10,97,11],[97,12,97,13],[97,14,97,15],[97,16,97,17],[97,20,97,21],[97,22,97,23],[98,33,98,36],[95,24,95,25],[95,33,95,36],[96,10,96,11],[96,12,96,13],[96,14,96,15],[96,16,96,17],[96,20,96,21],[96,22,96,23],[96,24,96,25],[96,33,96,36],[95,10,95,11],[95,12,95,13],[95,14,95,15],[95,16,95,17],[95,20,95,21],[95,22,95,23],[93,24,93,25],[93,33,93,36],[94,10,94,11],[94,12,94,13],[94,14,94,15],[94,16,94,17],[94,20,94,21],[94,22,94,23],[94,24,94,25],[94,33,94,36],[93,10,93,11],[93,12,93,13],[93,14,93,15],[93,16,93,17],[93,20,93,21],[93,22,93,23],[91,24,91,25],[91,33,91,36],[92,10,92,11],[92,12,92,13],[92,14,92,15],[92,16,92,17],[92,20,92,21],[92,22,92,23],[92,24,92,25],[92,33,92,36],[91,10,91,11],[91,12,91,13],[91,14,91,15],[91,16,91,17],[91,20,91,21],[91,22,91,23],[86,22,86,23],[86,24,86,25],[88,20,88,21],[88,22,88,23],[88,24,88,25],[88,33,88,36],[89,24,89,25],[89,33,89,36],[90,10,90,11],[90,12,90,13],[90,14,90,15],[90,16,90,17],[90,20,90,21],[90,22,90,23],[90,24,90,25],[90,33,90,36],[89,10,89,11],[89,12,89,13],[89,14,89,15],[89,16,89,17],[89,20,89,21],[89,22,89,23],[83,36,83,37],[83,39,83,40],[83,42,83,43],[83,45,83,46],[83,48,83,49],[83,51,83,52],[83,150,83,153],[86,10,86,11],[86,12,86,13],[86,14,86,15],[86,16,86,17],[86,20,86,21],[83,108,83,109],[83,111,83,112],[83,114,83,115],[83,117,83,118],[83,120,83,121],[83,123,83,124],[83,90,83,91],[83,93,83,94],[83,96,83,97],[83,99,83,100],[83,102,83,103],[83,105,83,106],[82,39,82,40],[82,42,82,43],[82,45,82,46],[82,48,82,49],[83,84,83,85],[83,87,83,88],[83,54,83,55],[83,57,83,58],[83,60,83,61],[83,63,83,64],[83,66,83,67],[83,69,83,70],[83,72,83,73],[83,75,83,76],[83,78,83,79],[83,81,83,82],[83,0,83,5],[83,6,83,7],[83,9,83,10],[83,12,83,13],[83,15,83,16],[82,105,82,106],[82,108,82,109],[82,111,82,112],[82,114,82,115],[82,87,82,88],[82,90,82,91],[82,93,82,94],[82,96,82,97],[82,99,82,100],[82,102,82,103],[82,69,82,70],[82,72,82,73],[82,75,82,76],[82,78,82,79],[82,81,82,82],[82,84,82,85],[82,51,82,52],[82,54,82,55],[82,57,82,58],[82,15,82,16],[82,18,82,19],[82,21,82,22],[82,24,82,25],[82,27,82,28],[82,30,82,31],[81,0,81,2],[81,3,81,5],[81,150,82,153],[82,0,82,2],[82,3,82,4],[82,6,82,7],[82,9,82,10],[82,12,82,13],[82,123,82,124],[82,126,82,127],[82,129,82,130],[82,117,82,118],[82,120,82,121],[82,60,82,61],[82,63,82,64],[82,66,82,67],[82,33,82,34],[82,36,82,37],[80,114,80,115],[80,117,80,118],[80,120,80,121],[80,123,80,124],[80,126,80,127],[80,129,80,130],[80,96,80,97],[80,99,80,100],[80,102,80,103],[80,105,80,106],[80,108,80,109],[80,111,80,112],[80,78,80,79],[80,81,80,82],[80,87,80,88],[80,90,80,91],[80,93,80,94],[80,60,80,61],[80,63,80,64],[80,66,80,67],[80,69,80,70],[80,72,80,73],[80,75,80,76],[80,84,80,85],[79,0,79,5],[80,0,80,5],[80,6,80,7],[80,9,80,10],[80,12,80,13],[80,15,80,16],[80,18,80,19],[80,21,80,22],[8,114,8,116],[8,78,8,80],[8,81,8,83],[8,87,8,89],[8,90,8,92],[8,93,8,95],[8,60,8,62],[8,63,8,65],[8,66,8,68],[8,69,8,71],[8,72,8,74],[8,75,8,77],[8,54,8,56],[8,57,8,59],[8,24,8,26],[8,27,8,29],[8,120,8,122],[8,123,8,125],[8,126,8,128],[8,129,8,131],[8,96,8,98],[8,99,8,101],[8,102,8,104],[8,105,8,107],[8,108,8,110],[8,111,8,113],[8,33,8,35],[8,36,8,38],[8,39,8,41],[8,84,8,86],[7,150,8,150],[7,151,8,151],[8,6,8,8],[8,9,8,11],[8,12,8,14],[8,15,8,17],[8,18,8,20],[8,21,8,23],[7,114,7,116],[7,117,7,119],[7,120,7,122],[7,123,7,125],[7,126,7,128],[7,129,7,131],[7,96,7,98],[7,99,7,101],[7,102,7,104],[7,105,7,107],[7,108,7,110],[8,117,8,119],[7,87,7,89],[7,90,7,92],[7,93,7,95],[7,60,7,62],[7,63,7,65],[7,66,7,68],[7,69,7,71],[7,72,7,74],[7,75,7,77],[7,54,7,56],[7,57,7,59],[7,24,7,26],[7,27,7,29],[7,30,7,32],[7,33,7,35],[7,36,7,38],[7,39,7,41],[7,84,7,86],[6,150,6,151],[6,152,8,152],[6,153,8,153],[7,6,7,8],[7,9,7,11],[7,12,7,14],[7,15,7,17],[7,18,7,20],[7,21,7,23],[6,117,6,119],[6,120,6,122],[6,123,6,125],[6,126,6,128],[6,129,6,131],[6,99,6,101],[6,102,6,104],[6,105,6,107],[6,108,6,110],[6,111,6,113],[6,54,6,56],[6,57,6,59],[7,111,7,113],[7,78,7,80],[7,81,7,83],[6,0,8,0],[6,1,8,1],[6,2,8,2],[6,3,8,3],[6,4,8,4],[6,6,6,8],[6,45,6,47],[6,48,6,50],[6,51,6,53],[7,42,7,44],[7,45,7,47],[7,48,7,50],[7,51,7,53],[8,42,8,44],[8,45,8,47],[8,48,8,50],[8,51,8,53],[6,27,6,29],[6,30,6,32],[6,33,6,35],[6,36,6,38],[6,39,6,41],[6,42,6,44],[8,30,8,32],[4,26,4,29],[4,30,4,31],[4,32,4,34],[4,35,4,36],[6,9,6,11],[6,12,6,14],[6,15,6,17],[6,18,6,20],[6,21,6,23],[6,24,6,26],[3,41,3,44],[3,46,3,48],[3,49,3,51],[3,54,3,56],[3,57,3,60],[4,0,4,1],[4,2,4,3],[4,4,4,5],[4,6,4,12],[4,14,4,16],[3,17,3,19],[3,22,3,25],[3,26,3,29],[3,30,3,33],[3,34,3,37],[3,38,3,40],[4,38,4,40],[4,41,4,44],[4,46,4,48],[4,49,4,51],[4,54,4,56],[4,57,4,60],[4,17,4,19],[4,22,4,25],[2,38,2,40],[3,0,3,1],[3,2,3,3],[3,4,3,5],[3,6,3,12],[3,14,3,16],[2,17,2,19],[2,22,2,25],[2,26,2,29],[2,30,2,33],[80,36,80,37],[80,39,80,40],[0,38,0,40],[0,41,0,44],[0,46,0,48],[0,54,0,56],[0,57,0,60],[2,0,2,1],[2,2,2,3],[2,4,2,5],[2,6,2,12],[2,14,2,16],[0,0,0,12],[0,14,0,16],[0,17,0,23],[0,30,0,33],[0,34,0,35],[0,36,0,37],[2,41,2,44],[2,46,2,48],[2,49,2,51],[2,54,2,56],[2,57,2,60],[2,34,2,37],[6,141,6,143],[6,147,6,149],[83,18,83,19],[83,21,83,22],[83,24,83,25],[83,27,83,28],[83,30,83,31],[83,33,83,34],[83,126,83,127],[83,129,83,130],[8,141,8,143],[8,147,8,149],[80,138,80,139],[80,141,80,142],[80,147,80,148],[82,138,82,139],[82,141,82,142],[82,147,82,148],[6,60,6,62],[6,87,6,89],[6,90,6,92],[6,93,6,95],[6,96,6,98],[6,63,6,65],[88,12,88,13],[88,14,88,15],[88,16,88,17],[6,114,6,116],[6,81,6,83],[6,84,6,86],[6,132,6,134],[6,135,6,137],[6,138,6,140],[6,66,6,68],[6,69,6,71],[6,72,6,74],[6,75,6,77],[6,78,6,80],[80,42,80,43],[80,45,80,46],[80,48,80,49],[80,51,80,52],[80,54,80,55],[80,57,80,58],[80,24,80,25],[80,27,80,28],[80,30,80,31],[80,33,80,34],[83,147,83,148],[131,33,131,36],[132,33,132,36],[134,33,134,36],[131,10,131,11],[132,10,132,11],[134,10,134,11],[131,12,131,13],[132,12,132,13],[134,12,134,13],[131,14,131,15],[132,14,132,15],[134,14,134,15],[86,33,86,36],[87,10,87,11],[87,12,87,13],[87,14,87,15],[87,16,87,17],[87,20,87,21],[87,22,87,23],[83,135,83,136],[130,10,130,11],[130,12,130,13],[130,14,130,15],[6,144,6,146],[7,144,7,146],[8,144,8,146],[80,144,80,145],[82,144,82,145],[83,144,83,145],[133,10,133,11],[133,12,133,13],[133,14,133,15],[133,16,133,17],[133,20,133,21],[133,22,133,23],[133,24,133,25],[133,33,133,36],[83,138,83,139],[83,141,83,142],[130,16,130,17],[130,20,130,21],[130,22,130,23],[130,24,130,25],[130,33,130,36],[87,24,87,25],[87,33,87,36],[88,10,88,11]]}
[":::: รายงานการขายประจำวัน (Sale Daily Report)  ::::",null,null,null,null,null,null,null,null,null,null,null,null,null,"Print Date : ",null,null,{"$f":"NOW()","v":"2025-04-24T22:39:10.130"},null,null,null,null,null,null,null,null,null,null,null,null,"จำนวนร้าน :",null,null,null,{"$f":"MAX($A$10:$A$79)","v":0},null,"ร้าน",null,"เป้ายอดขาย :",null,null,null,null,null,null,null,{"$f":"C3","v":45808},null,null,{"$f":"LEFT('Problems & Solutions'!$B$2,FIND(\"|\",'Problems & Solutions'!$B$2))&\" วันที่\"&TEXT($C$3,\"[$-107041E] d mmmm yyyy;@\")","v":"ขั้นตอนการตรวจรีพอร์ตขาย | วันที่ 31 พฤษภาคม 2568"},null,null,null,null,"เวลากลับ :"]
[]
["วันที่ :",null,{"$f":"DATE(ใส่ข้อมูล!G2-543,ใส่ข้อมูล!V2,ActiveSheetName)","v":"2025-05-31"},null,"พนักงานขาย",null,{"$f":"INDEX(OFFSET(Sale_Region,,1),ActiveSheetName)","v":0},null,null,null,null,null,null,null,"รวมยอดเบิก :",null,null,{"$f":"E136","v":0},null,null,"ชิ้น",null,"ใหญ่สด(40)",null,null,null,{"$f":"Cash_Major_Bill","v":0},null,null,null,"ใหญ่เชื่อ(42)",null,null,null,{"$f":"Credit_Major_Bill","v":0},null,null,null,"บิลใหญ่ :",null,null,{"$f":"AA3+AI3","v":0},null,null,null,null,"เติมน้ำมัน :",null,null,null,null,null,"บาท",null,"ไมล์ออก :",null,null,{"$f":"เลขไมล์ออก","v":0},null,null,null,"Km"]
["เขตการขาย :",null,{"$f":"INDEX(Sale_Region,ActiveSheetName)","v":0},null,"ผช.ขาย",null,{"$f":"INDEX(OFFSET(Sale_Region,,2),ActiveSheetName)","v":0},null,null,null,null,null,null,null,"ของเหลือ :",null,null,{"$f":"F136","v":0},null,null,"ชิ้น",null,"เล็กสด(41)",null,null,null,{"$f":"Cash_Minor_Bill","v":0},null,null,null,"เล็กเชื่อ(43)",null,null,null,{"$f":"Credit_Minor_Bill","v":0},null,null,null,"บิลเล็ก :",null,null,{"$f":"AA4+AI4","v":0},null,null,null,null,"จำนวนลิตร :",null,null,null,null,null,"ลิตร",null,"ไมล์เข้า :",null,null,null,null,null,null,"Km"]
["สายส่ง :",null,{"$f":"\"Sale \"&ใส่ข้อมูล!E3&\"-\"&ใส่ข้อมูล!G3","v":"Sale KB-01"},null,"พนักงานเสริม",null,{"$f":"INDEX(OFFSET(Sale_Region,,3),ActiveSheetName)","v":0},null,null,null,null,null,null,null,"ของเสีย :",null,null,{"$f":"G136","v":0},null,null,"ชิ้น",null,"น้ำหนักของเสีย",null,null,null,null,null,null,null,"Kg.",null,"%ของเสีย",null,null,{"$f":"IF(Order_Cal=0,0,ROUND(Waste_Cal*100/Order_Cal,2))","v":0},null,"%","VAT :",null,null,{"$f":"EW81","v":0},null,null,null,null,"ต้นทุนสาขา :",null,null,{"$f":"SUMPRODUCT((($A$88:$A$135)-($A$88:$A$135)*0.45)*(($E$88:$E$135)-($G$88:$G$135)))","v":0},null,null,"บาท",null,"ระยะทาง :",null,null,{"$f":"IF(OR($BF$4=0,$BF$3=0),0,$BF$4-$BF$3)","v":0},null,null,null,"Km"]
[]
["No","รหัสร้าน (CustNo)","ชื่อร้าน (Store Name)","เวลาเข้าร้าน","ระยะเวลาระหว่างร้าน","บิล(Invoice)",{"$f":"INDEX(INDIRECT(\"dProduct[ProductName]\"),ROUNDUP(COLUMNS($G:G)/3,0))","v":"ขนมปังหมูหยองน้ำสลัด"},null,null,{"$f":"INDEX(INDIRECT(\"dProduct[ProductName]\"),ROUNDUP(COLUMNS($G:J)/3,0))","v":"ขนมปังหมูหยองน้ำพริกเผา"},null,null,{"$f":"INDEX(INDIRECT(\"dProduct[ProductName]\"),ROUNDUP(COLUMNS($G:M)/3,0))","v":"ขนมปังไก่หยองน้ำสลัด"},null,null,{"$f":"INDEX(INDIRECT(\"dProduct[ProductName]\"),ROUNDUP(COLUMNS($G:P)/3,0))","v":"ขนมปังไส้ครีมสลัด"},null,null,{"$f":"INDEX(INDIRECT(\"dProduct[ProductName]\"),ROUNDUP(COLUMNS($G:S)/3,0))","v":"ขนมปังเนยสด"},null,null,{"$f":"INDEX(INDIRECT(\"dProduct[ProductName]\"),ROUNDUP(COLUMNS($G:V)/3,0))","v":"ขนมปังไส้สังขยาเล็ก"},null,null,{"$f":"INDEX(INDIRECT(\"dProduct[ProductName]\"),ROUNDUP(COLUMNS($G:Y)/3,0))","v":"ขนมปังไส้เผือก"},null,null,{"$f":"INDEX(INDIRECT(\"dProduct[ProductName]\"),ROUNDUP(COLUMNS($G:AB)/3,0))","v":"ขนมปังไส้ถั่วแดง"},null,null,{"$f":"INDEX(INDIRECT(\"dProduct[ProductName]\"),ROUNDUP(COLUMNS($G:AE)/3,0))","v":"ขนมปังไส้ถั่วดำ"},null,null,{"$f":"INDEX(INDIRECT(\"dProduct[ProductName]\"),ROUNDUP(COLUMNS($G:AH)/3,0))","v":"ขนมปังไส้มันม่วง"},null,null,{"$f":"INDEX(INDIRECT(\"dProduct[ProductName]\"),ROUNDUP(COLUMNS($G:AK)/3,0))","v":"เค้กกล้วยหอม"},null,null,{"$f":"INDEX(INDIRECT(\"dProduct[ProductName]\"),ROUNDUP(COLUMNS($G:AN)/3,0))","v":"เค้กบัตเตอร์"},null,null,{"$f":"INDEX(INDIRECT(\"dProduct[ProductName]\"),ROUNDUP(COLUMNS($G:AQ)/3,0))","v":"ขนมปังโรลถั่วแดง"},null,null,{"$f":"INDEX(INDIRECT(\"dProduct[ProductName]\"),ROUNDUP(COLUMNS($G:AT)/3,0))","v":"ขนมปังไส้สังขยาใหญ่"},null,null,{"$f":"INDEX(INDIRECT(\"dProduct[ProductName]\"),ROUNDUP(COLUMNS($G:AW)/3,0))","v":"ขนมปังชนิดแผ่น(480กรัม)"},null,null,{"$f":"INDEX(INDIRECT(\"dProduct[ProductName]\"),ROUNDUP(COLUMNS($G:AZ)/3,0))","v":"โมจิไส้ถั่ว"},null,null,{"$f":"INDEX(INDIRECT(\"dProduct[ProductName]\"),ROUNDUP(COLUMNS($G:BC)/3,0))","v":"โมจิไส้เผือก"},null,null,{"$f":"INDEX(INDIRECT(\"dProduct[ProductName]\"),ROUNDUP(COLUMNS($G:BF)/3,0))","v":"โมจิไส้ถั่วไข่เค็ม"},null,null,{"$f":"INDEX(INDIRECT(\"dProduct[ProductName]\"),ROUNDUP(COLUMNS($G:BI)/3,0))","v":"ขนมปังพิซซ่า"},null,null,{"$f":"INDEX(INDIRECT(\"dProduct[ProductName]\"),ROUNDUP(COLUMNS($G:BL)/3,0))","v":"ขนมปังพิซซ่าปูอัดแฮม"},null,null,{"$f":"INDEX(INDIRECT(\"dProduct[ProductName]\"),ROUNDUP(COLUMNS($G:BO)/3,0))","v":"ขนมปังไส้กรอก"},null,null,{"$f":"INDEX(INDIRECT(\"dProduct[ProductName]\"),ROUNDUP(COLUMNS($G:BR)/3,0))","v":"ขนมก้านบัว"},null,null,{"$f":"INDEX(INDIRECT(\"dProduct[ProductName]\"),ROUNDUP(COLUMNS($G:BU)/3,0))","v":"พายสับปะรด"},null,null,{"$f":"INDEX(INDIRECT(\"dProduct[ProductName]\"),ROUNDUP(COLUMNS($G:BX)/3,0))","v":"พายไส้มะพร้าว"},null,null,{"$f":"INDEX(INDIRECT(\"dProduct[ProductName]\"),ROUNDUP(COLUMNS($G:CA)/3,0))","v":"ขนมปังโรลมันเทศ"},null,null,{"$f":"INDEX(INDIRECT(\"dProduct[ProductName]\"),ROUNDUP(COLUMNS($G:CD)/3,0))","v":"ขนมปังไส้ครีมสลัดน้ำพริกเผา"},null,null,{"$f":"INDEX(INDIRECT(\"dProduct[ProductName]\"),ROUNDUP(COLUMNS($G:CG)/3,0))","v":"ขนมปังไส้สังขยาไข่"},null,null,{"$f":"INDEX(INDIRECT(\"dProduct[ProductName]\"),ROUNDUP(COLUMNS($G:CJ)/3,0))","v":"ขนมปังไส้สังขยามะพร้าว"},null,null,{"$f":"INDEX(INDIRECT(\"dProduct[ProductName]\"),ROUNDUP(COLUMNS($G:CM)/3,0))","v":"ขนมปังไส้ครีมชาไทย"},null,null,{"$f":"INDEX(INDIRECT(\"dProduct[ProductName]\"),ROUNDUP(COLUMNS($G:CP)/3,0))","v":"ขนมปังโรลมันม่วง"},null,null,{"$f":"INDEX(INDIRECT(\"dProduct[ProductName]\"),ROUNDUP(COLUMNS($G:CS)/3,0))","v":"ขนมปังโรลช็อกโกแลต"},null,null,{"$f":"INDEX(INDIRECT(\"dProduct[ProductName]\"),ROUNDUP(COLUMNS($G:CV)/3,0))","v":"ขนมปังชนิดแผ่น(155กรัม)"},null,null,{"$f":"INDEX(INDIRECT(\"dProduct[ProductName]\"),ROUNDUP(COLUMNS($G:CY)/3,0))","v":"ขนมปังโรลเผือก"},null,null,{"$f":"INDEX(INDIRECT(\"dProduct[ProductName]\"),ROUNDUP(COLUMNS($G:DB)/3,0))","v":"ขนมปังไก่หยองน้ำสลัด Mini"},null,null,{"$f":"INDEX(INDIRECT(\"dProduct[ProductName]\"),ROUNDUP(COLUMNS($G:DE)/3,0))","v":"ขนมปังไส้ช็อกโกแลต"},null,null,{"$f":"INDEX(INDIRECT(\"dProduct[ProductName]\"),ROUNDUP(COLUMNS($G:DH)/3,0))","v":"ขนมปังไส้ครีมสังขยาไข่"},null,null,{"$f":"INDEX(INDIRECT(\"dProduct[ProductName]\"),ROUNDUP(COLUMNS($G:DK)/3,0))","v":"ขนมปังพิซซ่าฮาวายเอี้ยน"},null,null,{"$f":"INDEX(INDIRECT(\"dProduct[ProductName]\"),ROUNDUP(COLUMNS($G:DN)/3,0))","v":"ครัวซองต์หมูหยองน้ำสลัด"},null,null,{"$f":"INDEX(INDIRECT(\"dProduct[ProductName]\"),ROUNDUP(COLUMNS($G:DQ)/3,0))","v":"แพนเบรดไส้เผือก"},null,null,{"$f":"INDEX(INDIRECT(\"dProduct[ProductName]\"),ROUNDUP(COLUMNS($G:DT)/3,0))","v":"แพนเบรดไส้ถั่วแดง"},null,null,{"$f":"INDEX(INDIRECT(\"dProduct[ProductName]\"),ROUNDUP(COLUMNS($G:DW)/3,0))","v":"ขนมปังกรอบเนยน้ำตาล(30กรัม)"},null,null,{"$f":"INDEX(INDIRECT(\"dProduct[ProductName]\"),ROUNDUP(COLUMNS($G:DZ)/3,0))","v":"ขนมปังชนิดแผ่นโฮลวีต"},null,null,{"$f":"INDEX(INDIRECT(\"dProduct[ProductName]\"),ROUNDUP(COLUMNS($G:EC)/3,0))","v":"เค้กโรลใบเตย"},null,null,{"$f":"INDEX(INDIRECT(\"dProduct[ProductName]\"),ROUNDUP(COLUMNS($G:EF)/3,0))","v":"ขนมโมจิไส้ถั่วดำ"},null,null,{"$f":"INDEX(INDIRECT(\"dProduct[ProductName]\"),ROUNDUP(COLUMNS($G:EI)/3,0))","v":"ครัวซองต์ไส้กรอกชีส"},null,null,{"$f":"INDEX(INDIRECT(\"dProduct[ProductName]\"),ROUNDUP(COLUMNS($G:EL)/3,0))","v":"ขนมเปี๊ยะไส้ถั่ว"},null,null,{"$f":"INDEX(INDIRECT(\"dProduct[ProductName]\"),ROUNDUP(COLUMNS($G:EO)/3,0))","v":"ขนมเปี๊ยะไส้ฟัก"},null,null,{"$f":"INDEX(INDIRECT(\"dProduct[ProductName]\"),ROUNDUP(COLUMNS($G:ER)/3,0))","v":"มังกี้เค้ก"},null,null,"มูลค่าสินค้า",null,"ภาษี","รวมยอดขาย"]
[null,null,null,null,null,"ราคาขาย",{"$f":"IF(G$7=0,0,INDEX(Price_List,ROUNDUP(COLUMNS($G:G)/3,0)))","v":20},null,null,{"$f":"IF(J$7=0,0,INDEX(Price_List,ROUNDUP(COLUMNS($G:J)/3,0)))","v":20},null,null,{"$f":"IF(M$7=0,0,INDEX(Price_List,ROUNDUP(COLUMNS($G:M)/3,0)))","v":20},null,null,{"$f":"IF(P$7=0,0,INDEX(Price_List,ROUNDUP(COLUMNS($G:P)/3,0)))","v":15},null,null,{"$f":"IF(S$7=0,0,INDEX(Price_List,ROUNDUP(COLUMNS($G:S)/3,0)))","v":15},null,null,{"$f":"IF(V$7=0,0,INDEX(Price_List,ROUNDUP(COLUMNS($G:V)/3,0)))","v":10},null,null,{"$f":"IF(Y$7=0,0,INDEX(Price_List,ROUNDUP(COLUMNS($G:Y)/3,0)))","v":10},null,null,{"$f":"IF(AB$7=0,0,INDEX(Price_List,ROUNDUP(COLUMNS($G:AB)/3,0)))","v":10},null,null,{"$f":"IF(AE$7=0,0,INDEX(Price_List,ROUNDUP(COLUMNS($G:AE)/3,0)))","v":10},null,null,{"$f":"IF(AH$7=0,0,INDEX(Price_List,ROUNDUP(COLUMNS($G:AH)/3,0)))","v":10},null,null,{"$f":"IF(AK$7=0,0,INDEX(Price_List,ROUNDUP(COLUMNS($G:AK)/3,0)))","v":15},null,null,{"$f":"IF(AN$7=0,0,INDEX(Price_List,ROUNDUP(COLUMNS($G:AN)/3,0)))","v":15},null,null,{"$f":"IF(AQ$7=0,0,INDEX(Price_List,ROUNDUP(COLUMNS($G:AQ)/3,0)))","v":15},null,null,{"$f":"IF(AT$7=0,0,INDEX(Price_List,ROUNDUP(COLUMNS($G:AT)/3,0)))","v":15},null,null,{"$f":"IF(AW$7=0,0,INDEX(Price_List,ROUNDUP(COLUMNS($G:AW)/3,0)))","v":42},null,null,{"$f":"IF(AZ$7=0,0,INDEX(Price_List,ROUNDUP(COLUMNS($G:AZ)/3,0)))","v":12},null,null,{"$f":"IF(BC$7=0,0,INDEX(Price_List,ROUNDUP(COLUMNS($G:BC)/3,0)))","v":12},null,null,{"$f":"IF(BF$7=0,0,INDEX(Price_List,ROUNDUP(COLUMNS($G:BF)/3,0)))","v":15},null,null,{"$f":"IF(BI$7=0,0,INDEX(Price_List,ROUNDUP(COLUMNS($G:BI)/3,0)))","v":20},null,null,{"$f":"IF(BL$7=0,0,INDEX(Price_List,ROUNDUP(COLUMNS($G:BL)/3,0)))","v":20},null,null,{"$f":"IF(BO$7=0,0,INDEX(Price_List,ROUNDUP(COLUMNS($G:BO)/3,0)))","v":20},null,null,{"$f":"IF(BR$7=0,0,INDEX(Price_List,ROUNDUP(COLUMNS($G:BR)/3,0)))","v":15},null,null,{"$f":"IF(BU$7=0,0,INDEX(Price_List,ROUNDUP(COLUMNS($G:BU)/3,0)))","v":20},null,null,{"$f":"IF(BX$7=0,0,INDEX(Price_List,ROUNDUP(COLUMNS($G:BX)/3,0)))","v":20},null,null,{"$f":"IF(CA$7=0,0,INDEX(Price_List,ROUNDUP(COLUMNS($G:CA)/3,0)))","v":15},null,null,{"$f":"IF(CD$7=0,0,INDEX(Price_List,ROUNDUP(COLUMNS($G:CD)/3,0)))","v":15},null,null,{"$f":"IF(CG$7=0,0,INDEX(Price_List,ROUNDUP(COLUMNS($G:CG)/3,0)))","v":20},null,null,{"$f":"IF(CJ$7=0,0,INDEX(Price_List,ROUNDUP(COLUMNS($G:CJ)/3,0)))","v":20},null,null,{"$f":"IF(CM$7=0,0,INDEX(Price_List,ROUNDUP(COLUMNS($G:CM)/3,0)))","v":10},null,null,{"$f":"IF(CP$7=0,0,INDEX(Price_List,ROUNDUP(COLUMNS($G:CP)/3,0)))","v":15},null,null,{"$f":"IF(CS$7=0,0,INDEX(Price_List,ROUNDUP(COLUMNS($G:CS)/3,0)))","v":15},null,null,{"$f":"IF(CV$7=0,0,INDEX(Price_List,ROUNDUP(COLUMNS($G:CV)/3,0)))","v":16},null,null,{"$f":"IF(CY$7=0,0,INDEX(Price_List,ROUNDUP(COLUMNS($G:CY)/3,0)))","v":15},null,null,{"$f":"IF(DB$7=0,0,INDEX(Price_List,ROUNDUP(COLUMNS($G:DB)/3,0)))","v":15},null,null,{"$f":"IF(DE$7=0,0,INDEX(Price_List,ROUNDUP(COLUMNS($G:DE)/3,0)))","v":10},null,null,{"$f":"IF(DH$7=0,0,INDEX(Price_List,ROUNDUP(COLUMNS($G:DH)/3,0)))","v":10},null,null,{"$f":"IF(DK$7=0,0,INDEX(Price_List,ROUNDUP(COLUMNS($G:DK)/3,0)))","v":20},null,null,{"$f":"IF(DN$7=0,0,INDEX(Price_List,ROUNDUP(COLUMNS($G:DN)/3,0)))","v":20},null,null,{"$f":"IF(DQ$7=0,0,INDEX(Price_List,ROUNDUP(COLUMNS($G:DQ)/3,0)))","v":15},null,null,{"$f":"IF(DT$7=0,0,INDEX(Price_List,ROUNDUP(COLUMNS($G:DT)/3,0)))","v":15},null,null,{"$f":"IF(DW$7=0,0,INDEX(Price_List,ROUNDUP(COLUMNS($G:DW)/3,0)))","v":12},null,null,{"$f":"IF(DZ$7=0,0,INDEX(Price_List,ROUNDUP(COLUMNS($G:DZ)/3,0)))","v":18},null,null,{"$f":"IF(EC$7=0,0,INDEX(Price_List,ROUNDUP(COLUMNS($G:EC)/3,0)))","v":12},null,null,{"$f":"IF(EF$7=0,0,INDEX(Price_List,ROUNDUP(COLUMNS($G:EF)/3,0)))","v":12},null,null,{"$f":"IF(EI$7=0,0,INDEX(Price_List,ROUNDUP(COLUMNS($G:EI)/3,0)))","v":25},null,null,{"$f":"IF(EL$7=0,0,INDEX(Price_List,ROUNDUP(COLUMNS($G:EL)/3,0)))","v":12},null,null,{"$f":"IF(EO$7=0,0,INDEX(Price_List,ROUNDUP(COLUMNS($G:EO)/3,0)))","v":12},null,null,{"$f":"IF(ER$7=0,0,INDEX(Price_List,ROUNDUP(COLUMNS($G:ER)/3,0)))","v":12},null,null,"เงินเชื่อ","เงินสด"]
[null,null,null,null,null,"คงเหลือ(ตามบัญชี)",{"$f":"IF(G$7=0,0,INDEX(INDIRECT(Order_Rng),ROUNDUP(COLUMNS($G:G)/3,0)))","v":0},null,null,{"$f":"IF(J$7=0,0,INDEX(INDIRECT(Order_Rng),ROUNDUP(COLUMNS($G:J)/3,0)))","v":0},null,null,{"$f":"IF(M$7=0,0,INDEX(INDIRECT(Order_Rng),ROUNDUP(COLUMNS($G:M)/3,0)))","v":0},null,null,{"$f":"IF(P$7=0,0,INDEX(INDIRECT(Order_Rng),ROUNDUP(COLUMNS($G:P)/3,0)))","v":0},null,null,{"$f":"IF(S$7=0,0,INDEX(INDIRECT(Order_Rng),ROUNDUP(COLUMNS($G:S)/3,0)))","v":0},null,null,{"$f":"IF(V$7=0,0,INDEX(INDIRECT(Order_Rng),ROUNDUP(COLUMNS($G:V)/3,0)))","v":0},null,null,{"$f":"IF(Y$7=0,0,INDEX(INDIRECT(Order_Rng),ROUNDUP(COLUMNS($G:Y)/3,0)))","v":0},null,null,{"$f":"IF(AB$7=0,0,INDEX(INDIRECT(Order_Rng),ROUNDUP(COLUMNS($G:AB)/3,0)))","v":0},null,null,{"$f":"IF(AE$7=0,0,INDEX(INDIRECT(Order_Rng),ROUNDUP(COLUMNS($G:AE)/3,0)))","v":0},null,null,{"$f":"IF(AH$7=0,0,INDEX(INDIRECT(Order_Rng),ROUNDUP(COLUMNS($G:AH)/3,0)))","v":0},null,null,{"$f":"IF(AK$7=0,0,INDEX(INDIRECT(Order_Rng),ROUNDUP(COLUMNS($G:AK)/3,0)))","v":0},null,null,{"$f":"IF(AN$7=0,0,INDEX(INDIRECT(Order_Rng),ROUNDUP(COLUMNS($G:AN)/3,0)))","v":0},null,null,{"$f":"IF(AQ$7=0,0,INDEX(INDIRECT(Order_Rng),ROUNDUP(COLUMNS($G:AQ)/3,0)))","v":0},null,null,{"$f":"IF(AT$7=0,0,INDEX(INDIRECT(Order_Rng),ROUNDUP(COLUMNS($G:AT)/3,0)))","v":0},null,null,{"$f":"IF(AW$7=0,0,INDEX(INDIRECT(Order_Rng),ROUNDUP(COLUMNS($G:AW)/3,0)))","v":0},null,null,{"$f":"IF(AZ$7=0,0,INDEX(INDIRECT(Order_Rng),ROUNDUP(COLUMNS($G:AZ)/3,0)))","v":0},null,null,{"$f":"IF(BC$7=0,0,INDEX(INDIRECT(Order_Rng),ROUNDUP(COLUMNS($G:BC)/3,0)))","v":0},null,null,{"$f":"IF(BF$7=0,0,INDEX(INDIRECT(Order_Rng),ROUNDUP(COLUMNS($G:BF)/3,0)))","v":0},null,null,{"$f":"IF(BI$7=0,0,INDEX(INDIRECT(Order_Rng),ROUNDUP(COLUMNS($G:BI)/3,0)))","v":0},null,null,{"$f":"IF(BL$7=0,0,INDEX(INDIRECT(Order_Rng),ROUNDUP(COLUMNS($G:BL)/3,0)))","v":0},null,null,{"$f":"IF(BO$7=0,0,INDEX(INDIRECT(Order_Rng),ROUNDUP(COLUMNS($G:BO)/3,0)))","v":0},null,null,{"$f":"IF(BR$7=0,0,INDEX(INDIRECT(Order_Rng),ROUNDUP(COLUMNS($G:BR)/3,0)))","v":0},null,null,{"$f":"IF(BU$7=0,0,INDEX(INDIRECT(Order_Rng),ROUNDUP(COLUMNS($G:BU)/3,0)))","v":0},null,null,{"$f":"IF(BX$7=0,0,INDEX(INDIRECT(Order_Rng),ROUNDUP(COLUMNS($G:BX)/3,0)))","v":0},null,null,{"$f":"IF(CA$7=0,0,INDEX(INDIRECT(Order_Rng),ROUNDUP(COLUMNS($G:CA)/3,0)))","v":0},null,null,{"$f":"IF(CD$7=0,0,INDEX(INDIRECT(Order_Rng),ROUNDUP(COLUMNS($G:CD)/3,0)))","v":0},null,null,{"$f":"IF(CG$7=0,0,INDEX(INDIRECT(Order_Rng),ROUNDUP(COLUMNS($G:CG)/3,0)))","v":0},null,null,{"$f":"IF(CJ$7=0,0,INDEX(INDIRECT(Order_Rng),ROUNDUP(COLUMNS($G:CJ)/3,0)))","v":0},null,null,{"$f":"IF(CM$7=0,0,INDEX(INDIRECT(Order_Rng),ROUNDUP(COLUMNS($G:CM)/3,0)))","v":0},null,null,{"$f":"IF(CP$7=0,0,INDEX(INDIRECT(Order_Rng),ROUNDUP(COLUMNS($G:CP)/3,0)))","v":0},null,null,{"$f":"IF(CS$7=0,0,INDEX(INDIRECT(Order_Rng),ROUNDUP(COLUMNS($G:CS)/3,0)))","v":0},null,null,{"$f":"IF(CV$7=0,0,INDEX(INDIRECT(Order_Rng),ROUNDUP(COLUMNS($G:CV)/3,0)))","v":0},null,null,{"$f":"IF(CY$7=0,0,INDEX(INDIRECT(Order_Rng),ROUNDUP(COLUMNS($G:CY)/3,0)))","v":0},null,null,{"$f":"IF(DB$7=0,0,INDEX(INDIRECT(Order_Rng),ROUNDUP(COLUMNS($G:DB)/3,0)))","v":0},null,null,{"$f":"IF(DE$7=0,0,INDEX(INDIRECT(Order_Rng),ROUNDUP(COLUMNS($G:DE)/3,0)))","v":0},null,null,{"$f":"IF(DH$7=0,0,INDEX(INDIRECT(Order_Rng),ROUNDUP(COLUMNS($G:DH)/3,0)))","v":0},null,null,{"$f":"IF(DK$7=0,0,INDEX(INDIRECT(Order_Rng),ROUNDUP(COLUMNS($G:DK)/3,0)))","v":0},null,null,{"$f":"IF(DN$7=0,0,INDEX(INDIRECT(Order_Rng),ROUNDUP(COLUMNS($G:DN)/3,0)))","v":0},null,null,{"$f":"IF(DQ$7=0,0,INDEX(INDIRECT(Order_Rng),ROUNDUP(COLUMNS($G:DQ)/3,0)))","v":0},null,null,{"$f":"IF(DT$7=0,0,INDEX(INDIRECT(Order_Rng),ROUNDUP(COLUMNS($G:DT)/3,0)))","v":0},null,null,{"$f":"IF(DW$7=0,0,INDEX(INDIRECT(Order_Rng),ROUNDUP(COLUMNS($G:DW)/3,0)))","v":0},null,null,{"$f":"IF(DZ$7=0,0,INDEX(INDIRECT(Order_Rng),ROUNDUP(COLUMNS($G:DZ)/3,0)))","v":0},null,null,{"$f":"IF(EC$7=0,0,INDEX(INDIRECT(Order_Rng),ROUNDUP(COLUMNS($G:EC)/3,0)))","v":0},null,null,{"$f":"IF(EF$7=0,0,INDEX(INDIRECT(Order_Rng),ROUNDUP(COLUMNS($G:EF)/3,0)))","v":0},null,null,{"$f":"IF(EI$7=0,0,INDEX(INDIRECT(Order_Rng),ROUNDUP(COLUMNS($G:EI)/3,0)))","v":0},null,null,{"$f":"IF(EL$7=0,0,INDEX(INDIRECT(Order_Rng),ROUNDUP(COLUMNS($G:EL)/3,0)))","v":0},null,null,{"$f":"IF(EO$7=0,0,INDEX(INDIRECT(Order_Rng),ROUNDUP(COLUMNS($G:EO)/3,0)))","v":0},null,null,{"$f":"IF(ER$7=0,0,INDEX(INDIRECT(Order_Rng),ROUNDUP(COLUMNS($G:ER)/3,0)))","v":0}]
[{"$f":"IF(OR($B10=\"\",COUNTIF($B$10:$B10,$B10)>1,LEN(TRIM($B10))<>10,ISNUMBER(--MID(TRIM($B10),5,1))),\"-\",MAX(COUNT($A$9:$A9)+1))","v":"-"}]
[{"$f":"IF(OR($B11=\"\",COUNTIF($B$10:$B11,$B11)>1,LEN(TRIM($B11))<>10,ISNUMBER(--MID(TRIM($B11),5,1))),\"-\",MAX(COUNT($A$9:$A10)+1))","v":"-"},null,null,null,{"$f":"IF(D11=\"\",\"\",D11-D10)","v":""}]
[{"$f":"IF(OR($B12=\"\",COUNTIF($B$10:$B12,$B12)>1,LEN(TRIM($B12))<>10,ISNUMBER(--MID(TRIM($B12),5,1))),\"-\",MAX(COUNT($A$9:$A11)+1))","v":"-"},null,null,null,{"$f":"IF(D12=\"\",\"\",D12-D11)","v":""}]
[{"$f":"IF(OR($B13=\"\",COUNTIF($B$10:$B13,$B13)>1,LEN(TRIM($B13))<>10,ISNUMBER(--MID(TRIM($B13),5,1))),\"-\",MAX(COUNT($A$9:$A12)+1))","v":"-"},null,null,null,""]
[{"$f":"IF(OR($B14=\"\",COUNTIF($B$10:$B14,$B14)>1,LEN(TRIM($B14))<>10,ISNUMBER(--MID(TRIM($B14),5,1))),\"-\",MAX(COUNT($A$9:$A13)+1))","v":"-"},null,null,null,""]
[{"$f":"IF(OR($B15=\"\",COUNTIF($B$10:$B15,$B15)>1,LEN(TRIM($B15))<>10,ISNUMBER(--MID(TRIM($B15),5,1))),\"-\",MAX(COUNT($A$9:$A14)+1))","v":"-"},null,null,null,""]
[{"$f":"IF(OR($B16=\"\",COUNTIF($B$10:$B16,$B16)>1,LEN(TRIM($B16))<>10,ISNUMBER(--MID(TRIM($B16),5,1))),\"-\",MAX(COUNT($A$9:$A15)+1))","v":"-"},null,null,null,""]
[{"$f":"IF(OR($B17=\"\",COUNTIF($B$10:$B17,$B17)>1,LEN(TRIM($B17))<>10,ISNUMBER(--MID(TRIM($B17),5,1))),\"-\",MAX(COUNT($A$9:$A16)+1))","v":"-"},null,null,null,""]
[{"$f":"IF(OR($B18=\"\",COUNTIF($B$10:$B18,$B18)>1,LEN(TRIM($B18))<>10,ISNUMBER(--MID(TRIM($B18),5,1))),\"-\",MAX(COUNT($A$9:$A17)+1))","v":"-"},null,null,null,""]
[{"$f":"IF(OR($B19=\"\",COUNTIF($B$10:$B19,$B19)>1,LEN(TRIM($B19))<>10,ISNUMBER(--MID(TRIM($B19),5,1))),\"-\",MAX(COUNT($A$9:$A18)+1))","v":"-"},null,null,null,""]
[{"$f":"IF(OR($B20=\"\",COUNTIF($B$10:$B20,$B20)>1,LEN(TRIM($B20))<>10,ISNUMBER(--MID(TRIM($B20),5,1))),\"-\",MAX(COUNT($A$9:$A19)+1))","v":"-"},null,null,null,""]
[{"$f":"IF(OR($B21=\"\",COUNTIF($B$10:$B21,$B21)>1,LEN(TRIM($B21))<>10,ISNUMBER(--MID(TRIM($B21),5,1))),\"-\",MAX(COUNT($A$9:$A20)+1))","v":"-"},null,null,null,""]
[{"$f":"IF(OR($B22=\"\",COUNTIF($B$10:$B22,$B22)>1,LEN(TRIM($B22))<>10,ISNUMBER(--MID(TRIM($B22),5,1))),\"-\",MAX(COUNT($A$9:$A21)+1))","v":"-"},null,null,null,""]
[{"$f":"IF(OR($B23=\"\",COUNTIF($B$10:$B23,$B23)>1,LEN(TRIM($B23))<>10,ISNUMBER(--MID(TRIM($B23),5,1))),\"-\",MAX(COUNT($A$9:$A22)+1))","v":"-"},null,null,null,""]
[{"$f":"IF(OR($B24=\"\",COUNTIF($B$10:$B24,$B24)>1,LEN(TRIM($B24))<>10,ISNUMBER(--MID(TRIM($B24),5,1))),\"-\",MAX(COUNT($A$9:$A23)+1))","v":"-"},null,null,null,""]
[{"$f":"IF(OR($B25=\"\",COUNTIF($B$10:$B25,$B25)>1,LEN(TRIM($B25))<>10,ISNUMBER(--MID(TRIM($B25),5,1))),\"-\",MAX(COUNT($A$9:$A24)+1))","v":"-"},null,null,null,""]
[{"$f":"IF(OR($B26=\"\",COUNTIF($B$10:$B26,$B26)>1,LEN(TRIM($B26))<>10,ISNUMBER(--MID(TRIM($B26),5,1))),\"-\",MAX(COUNT($A$9:$A25)+1))","v":"-"},null,null,null,""]
[{"$f":"IF(OR($B27=\"\",COUNTIF($B$10:$B27,$B27)>1,LEN(TRIM($B27))<>10,ISNUMBER(--MID(TRIM($B27),5,1))),\"-\",MAX(COUNT($A$9:$A26)+1))","v":"-"},null,null,null,""]
[{"$f":"IF(OR($B28=\"\",COUNTIF($B$10:$B28,$B28)>1,LEN(TRIM($B28))<>10,ISNUMBER(--MID(TRIM($B28),5,1))),\"-\",MAX(COUNT($A$9:$A27)+1))","v":"-"},null,null,null,""]
[{"$f":"IF(OR($B29=\"\",COUNTIF($B$10:$B29,$B29)>1,LEN(TRIM($B29))<>10,ISNUMBER(--MID(TRIM($B29),5,1))),\"-\",MAX(COUNT($A$9:$A28)+1))","v":"-"},null,null,null,""]
[{"$f":"IF(OR($B30=\"\",COUNTIF($B$10:$B30,$B30)>1,LEN(TRIM($B30))<>10,ISNUMBER(--MID(TRIM($B30),5,1))),\"-\",MAX(COUNT($A$9:$A29)+1))","v":"-"},null,null,null,""]
[{"$f":"IF(OR($B31=\"\",COUNTIF($B$10:$B31,$B31)>1,LEN(TRIM($B31))<>10,ISNUMBER(--MID(TRIM($B31),5,1))),\"-\",MAX(COUNT($A$9:$A30)+1))","v":"-"},null,null,null,""]
[{"$f":"IF(OR($B32=\"\",COUNTIF($B$10:$B32,$B32)>1,LEN(TRIM($B32))<>10,ISNUMBER(--MID(TRIM($B32),5,1))),\"-\",MAX(COUNT($A$9:$A31)+1))","v":"-"},null,null,null,""]
[{"$f":"IF(OR($B33=\"\",COUNTIF($B$10:$B33,$B33)>1,LEN(TRIM($B33))<>10,ISNUMBER(--MID(TRIM($B33),5,1))),\"-\",MAX(COUNT($A$9:$A32)+1))","v":"-"},null,null,null,""]
[{"$f":"IF(OR($B34=\"\",COUNTIF($B$10:$B34,$B34)>1,LEN(TRIM($B34))<>10,ISNUMBER(--MID(TRIM($B34),5,1))),\"-\",MAX(COUNT($A$9:$A33)+1))","v":"-"},null,null,null,""]
[{"$f":"IF(OR($B35=\"\",COUNTIF($B$10:$B35,$B35)>1,LEN(TRIM($B35))<>10,ISNUMBER(--MID(TRIM($B35),5,1))),\"-\",MAX(COUNT($A$9:$A34)+1))","v":"-"},null,null,null,""]
[{"$f":"IF(OR($B36=\"\",COUNTIF($B$10:$B36,$B36)>1,LEN(TRIM($B36))<>10,ISNUMBER(--MID(TRIM($B36),5,1))),\"-\",MAX(COUNT($A$9:$A35)+1))","v":"-"},null,null,null,""]
[{"$f":"IF(OR($B37=\"\",COUNTIF($B$10:$B37,$B37)>1,LEN(TRIM($B37))<>10,ISNUMBER(--MID(TRIM($B37),5,1))),\"-\",MAX(COUNT($A$9:$A36)+1))","v":"-"},null,null,null,""]
[{"$f":"IF(OR($B38=\"\",COUNTIF($B$10:$B38,$B38)>1,LEN(TRIM($B38))<>10,ISNUMBER(--MID(TRIM($B38),5,1))),\"-\",MAX(COUNT($A$9:$A37)+1))","v":"-"},null,null,null,""]
[{"$f":"IF(OR($B39=\"\",COUNTIF($B$10:$B39,$B39)>1,LEN(TRIM($B39))<>10,ISNUMBER(--MID(TRIM($B39),5,1))),\"-\",MAX(COUNT($A$9:$A38)+1))","v":"-"},null,null,null,""]
[{"$f":"IF(OR($B40=\"\",COUNTIF($B$10:$B40,$B40)>1,LEN(TRIM($B40))<>10,ISNUMBER(--MID(TRIM($B40),5,1))),\"-\",MAX(COUNT($A$9:$A39)+1))","v":"-"},null,null,null,""]
[{"$f":"IF(OR($B41=\"\",COUNTIF($B$10:$B41,$B41)>1,LEN(TRIM($B41))<>10,ISNUMBER(--MID(TRIM($B41),5,1))),\"-\",MAX(COUNT($A$9:$A40)+1))","v":"-"},null,null,null,""]
[{"$f":"IF(OR($B42=\"\",COUNTIF($B$10:$B42,$B42)>1,LEN(TRIM($B42))<>10,ISNUMBER(--MID(TRIM($B42),5,1))),\"-\",MAX(COUNT($A$9:$A41)+1))","v":"-"},null,null,null,""]
[{"$f":"IF(OR($B43=\"\",COUNTIF($B$10:$B43,$B43)>1,LEN(TRIM($B43))<>10,ISNUMBER(--MID(TRIM($B43),5,1))),\"-\",MAX(COUNT($A$9:$A42)+1))","v":"-"},null,null,null,""]
[{"$f":"IF(OR($B44=\"\",COUNTIF($B$10:$B44,$B44)>1,LEN(TRIM($B44))<>10,ISNUMBER(--MID(TRIM($B44),5,1))),\"-\",MAX(COUNT($A$9:$A43)+1))","v":"-"},null,null,null,""]
[{"$f":"IF(OR($B45=\"\",COUNTIF($B$10:$B45,$B45)>1,LEN(TRIM($B45))<>10,ISNUMBER(--MID(TRIM($B45),5,1))),\"-\",MAX(COUNT($A$9:$A44)+1))","v":"-"},null,null,null,""]
[{"$f":"IF(OR($B46=\"\",COUNTIF($B$10:$B46,$B46)>1,LEN(TRIM($B46))<>10,ISNUMBER(--MID(TRIM($B46),5,1))),\"-\",MAX(COUNT($A$9:$A45)+1))","v":"-"},null,null,null,""]
[{"$f":"IF(OR($B47=\"\",COUNTIF($B$10:$B47,$B47)>1,LEN(TRIM($B47))<>10,ISNUMBER(--MID(TRIM($B47),5,1))),\"-\",MAX(COUNT($A$9:$A46)+1))","v":"-"},null,null,null,""]
[{"$f":"IF(OR($B48=\"\",COUNTIF($B$10:$B48,$B48)>1,LEN(TRIM($B48))<>10,ISNUMBER(--MID(TRIM($B48),5,1))),\"-\",MAX(COUNT($A$9:$A47)+1))","v":"-"},null,null,null,""]
[{"$f":"IF(OR($B49=\"\",COUNTIF($B$10:$B49,$B49)>1,LEN(TRIM($B49))<>10,ISNUMBER(--MID(TRIM($B49),5,1))),\"-\",MAX(COUNT($A$9:$A48)+1))","v":"-"},null,null,null,""]
[{"$f":"IF(OR($B50=\"\",COUNTIF($B$10:$B50,$B50)>1,LEN(TRIM($B50))<>10,ISNUMBER(--MID(TRIM($B50),5,1))),\"-\",MAX(COUNT($A$9:$A49)+1))","v":"-"},null,null,null,""]
[{"$f":"IF(OR($B51=\"\",COUNTIF($B$10:$B51,$B51)>1,LEN(TRIM($B51))<>10,ISNUMBER(--MID(TRIM($B51),5,1))),\"-\",MAX(COUNT($A$9:$A50)+1))","v":"-"},null,null,null,""]
[{"$f":"IF(OR($B52=\"\",COUNTIF($B$10:$B52,$B52)>1,LEN(TRIM($B52))<>10,ISNUMBER(--MID(TRIM($B52),5,1))),\"-\",MAX(COUNT($A$9:$A51)+1))","v":"-"},null,null,null,""]
[{"$f":"IF(OR($B53=\"\",COUNTIF($B$10:$B53,$B53)>1,LEN(TRIM($B53))<>10,ISNUMBER(--MID(TRIM($B53),5,1))),\"-\",MAX(COUNT($A$9:$A52)+1))","v":"-"},null,null,null,""]
[{"$f":"IF(OR($B54=\"\",COUNTIF($B$10:$B54,$B54)>1,LEN(TRIM($B54))<>10,ISNUMBER(--MID(TRIM($B54),5,1))),\"-\",MAX(COUNT($A$9:$A53)+1))","v":"-"},null,null,null,""]
[{"$f":"IF(OR($B55=\"\",COUNTIF($B$10:$B55,$B55)>1,LEN(TRIM($B55))<>10,ISNUMBER(--MID(TRIM($B55),5,1))),\"-\",MAX(COUNT($A$9:$A54)+1))","v":"-"},null,null,null,""]
[{"$f":"IF(OR($B56=\"\",COUNTIF($B$10:$B56,$B56)>1,LEN(TRIM($B56))<>10,ISNUMBER(--MID(TRIM($B56),5,1))),\"-\",MAX(COUNT($A$9:$A55)+1))","v":"-"},null,null,null,""]
[{"$f":"IF(OR($B57=\"\",COUNTIF($B$10:$B57,$B57)>1,LEN(TRIM($B57))<>10,ISNUMBER(--MID(TRIM($B57),5,1))),\"-\",MAX(COUNT($A$9:$A56)+1))","v":"-"},null,null,null,""]
[{"$f":"IF(OR($B58=\"\",COUNTIF($B$10:$B58,$B58)>1,LEN(TRIM($B58))<>10,ISNUMBER(--MID(TRIM($B58),5,1))),\"-\",MAX(COUNT($A$9:$A57)+1))","v":"-"},null,null,null,""]
[{"$f":"IF(OR($B59=\"\",COUNTIF($B$10:$B59,$B59)>1,LEN(TRIM($B59))<>10,ISNUMBER(--MID(TRIM($B59),5,1))),\"-\",MAX(COUNT($A$9:$A58)+1))","v":"-"},null,null,null,""]
[{"$f":"IF(OR($B60=\"\",COUNTIF($B$10:$B60,$B60)>1,LEN(TRIM($B60))<>10,ISNUMBER(--MID(TRIM($B60),5,1))),\"-\",MAX(COUNT($A$9:$A59)+1))","v":"-"},null,null,null,""]
[{"$f":"IF(OR($B61=\"\",COUNTIF($B$10:$B61,$B61)>1,LEN(TRIM($B61))<>10,ISNUMBER(--MID(TRIM($B61),5,1))),\"-\",MAX(COUNT($A$9:$A60)+1))","v":"-"},null,null,null,""]
[{"$f":"IF(OR($B62=\"\",COUNTIF($B$10:$B62,$B62)>1,LEN(TRIM($B62))<>10,ISNUMBER(--MID(TRIM($B62),5,1))),\"-\",MAX(COUNT($A$9:$A61)+1))","v":"-"},null,null,null,""]
[{"$f":"IF(OR($B63=\"\",COUNTIF($B$10:$B63,$B63)>1,LEN(TRIM($B63))<>10,ISNUMBER(--MID(TRIM($B63),5,1))),\"-\",MAX(COUNT($A$9:$A62)+1))","v":"-"},null,null,null,""]
[{"$f":"IF(OR($B64=\"\",COUNTIF($B$10:$B64,$B64)>1,LEN(TRIM($B64))<>10,ISNUMBER(--MID(TRIM($B64),5,1))),\"-\",MAX(COUNT($A$9:$A63)+1))","v":"-"},null,null,null,""]
[{"$f":"IF(OR($B65=\"\",COUNTIF($B$10:$B65,$B65)>1,LEN(TRIM($B65))<>10,ISNUMBER(--MID(TRIM($B65),5,1))),\"-\",MAX(COUNT($A$9:$A64)+1))","v":"-"},null,null,null,""]
[{"$f":"IF(OR($B66=\"\",COUNTIF($B$10:$B66,$B66)>1,LEN(TRIM($B66))<>10,ISNUMBER(--MID(TRIM($B66),5,1))),\"-\",MAX(COUNT($A$9:$A65)+1))","v":"-"},null,null,null,""]
[{"$f":"IF(OR($B67=\"\",COUNTIF($B$10:$B67,$B67)>1,LEN(TRIM($B67))<>10,ISNUMBER(--MID(TRIM($B67),5,1))),\"-\",MAX(COUNT($A$9:$A66)+1))","v":"-"},null,null,null,""]
[{"$f":"IF(OR($B68=\"\",COUNTIF($B$10:$B68,$B68)>1,LEN(TRIM($B68))<>10,ISNUMBER(--MID(TRIM($B68),5,1))),\"-\",MAX(COUNT($A$9:$A67)+1))","v":"-"},null,null,null,""]
[{"$f":"IF(OR($B69=\"\",COUNTIF($B$10:$B69,$B69)>1,LEN(TRIM($B69))<>10,ISNUMBER(--MID(TRIM($B69),5,1))),\"-\",MAX(COUNT($A$9:$A68)+1))","v":"-"},null,null,null,""]
[{"$f":"IF(OR($B70=\"\",COUNTIF($B$10:$B70,$B70)>1,LEN(TRIM($B70))<>10,ISNUMBER(--MID(TRIM($B70),5,1))),\"-\",MAX(COUNT($A$9:$A69)+1))","v":"-"},null,null,null,""]
[{"$f":"IF(OR($B71=\"\",COUNTIF($B$10:$B71,$B71)>1,LEN(TRIM($B71))<>10,ISNUMBER(--MID(TRIM($B71),5,1))),\"-\",MAX(COUNT($A$9:$A70)+1))","v":"-"},null,null,null,""]
[{"$f":"IF(OR($B72=\"\",COUNTIF($B$10:$B72,$B72)>1,LEN(TRIM($B72))<>10,ISNUMBER(--MID(TRIM($B72),5,1))),\"-\",MAX(COUNT($A$9:$A71)+1))","v":"-"},null,null,null,""]
[{"$f":"IF(OR($B73=\"\",COUNTIF($B$10:$B73,$B73)>1,LEN(TRIM($B73))<>10,ISNUMBER(--MID(TRIM($B73),5,1))),\"-\",MAX(COUNT($A$9:$A72)+1))","v":"-"},null,null,null,""]
[{"$f":"IF(OR($B74=\"\",COUNTIF($B$10:$B74,$B74)>1,LEN(TRIM($B74))<>10,ISNUMBER(--MID(TRIM($B74),5,1))),\"-\",MAX(COUNT($A$9:$A73)+1))","v":"-"},null,null,null,""]
[{"$f":"IF(OR($B75=\"\",COUNTIF($B$10:$B75,$B75)>1,LEN(TRIM($B75))<>10,ISNUMBER(--MID(TRIM($B75),5,1))),\"-\",MAX(COUNT($A$9:$A74)+1))","v":"-"},null,null,null,""]
[{"$f":"IF(OR($B76=\"\",COUNTIF($B$10:$B76,$B76)>1,LEN(TRIM($B76))<>10,ISNUMBER(--MID(TRIM($B76),5,1))),\"-\",MAX(COUNT($A$9:$A75)+1))","v":"-"},null,null,null,{"$f":"IF(D76=\"\",\"\",D76-D75)","v":""}]
[{"$f":"IF(OR($B77=\"\",COUNTIF($B$10:$B77,$B77)>1,LEN(TRIM($B77))<>10,ISNUMBER(--MID(TRIM($B77),5,1))),\"-\",MAX(COUNT($A$9:$A76)+1))","v":"-"},null,null,null,""]
[{"$f":"IF(OR($B78=\"\",COUNTIF($B$10:$B78,$B78)>1,LEN(TRIM($B78))<>10,ISNUMBER(--MID(TRIM($B78),5,1))),\"-\",MAX(COUNT($A$9:$A77)+1))","v":"-"},null,null,null,""]
[{"$f":"IF(OR($B79=\"\",COUNTIF($B$10:$B79,$B79)>1,LEN(TRIM($B79))<>10,ISNUMBER(--MID(TRIM($B79),5,1))),\"-\",MAX(COUNT($A$9:$A78)+1))","v":"-"},null,null,null,""]
["รวมของขาย|ของเสีย|เหลือบนเชลฟ์",null,null,null,null,null,{"$f":"SUM(G10:G79)","v":0},0,0,{"$f":"SUM(J10:J79)","v":0},0,0,0,0,0,0,0,0,0,0,0,0,0,0,0,0,0,0,0,0,0,0,0,0,0,0,0,0,0,0,0,0,0,0,0,0,0,0,0,0,0,0,0,0,0,0,0,0,0,0,0,0,0,0,0,0,0,0,0,0,0,0,0,{"$f":"SUM(BV10:BV79)","v":0},0,0,0,0,0,0,0,0,0,0,0,0,0,0,0,0,0,0,0,0,0,0,0,0,0,0,0,0,0,0,0,0,0,0,0,0,0,0,0,0,0,0,0,0,0,0,0,0,0,0,0,0,0,0,0,0,0,0,0,0,0,{"$f":"SUM(EF10:EF79)","v":0},0,0,{"$f":"SUM(EI10:EI79)","v":0},0,0,0,0,0,{"$f":"SUM(EO10:EO79)","v":0},0,0,0,0,0,"รวมเงินเชื่อ","รวมเงินสด","ภาษี","รวมยอดขาย"]
["ของเหลือ",null,null,null,null,null,{"$f":"G80+H80-G9","v":0},null,null,{"$f":"J80+K80-J9","v":0},null,null,{"$f":"M80+N80-M9","v":0},null,null,{"$f":"P80+Q80-P9","v":0},null,null,{"$f":"S80+T80-S9","v":0},null,null,{"$f":"V80+W80-V9","v":0},null,null,{"$f":"Y80+Z80-Y9","v":0},null,null,{"$f":"AB80+AC80-AB9","v":0},null,null,{"$f":"AE80+AF80-AE9","v":0},null,null,{"$f":"AH80+AI80-AH9","v":0},null,null,{"$f":"AK80+AL80-AK9","v":0},null,null,{"$f":"AN80+AO80-AN9","v":0},null,null,{"$f":"AQ80+AR80-AQ9","v":0},null,null,{"$f":"AT80+AU80-AT9","v":0},null,null,{"$f":"AW80+AX80-AW9","v":0},null,null,{"$f":"AZ80+BA80-AZ9","v":0},null,null,{"$f":"BC80+BD80-BC9","v":0},null,null,{"$f":"BF80+BG80-BF9","v":0},null,null,{"$f":"BI80+BJ80-BI9","v":0},null,null,{"$f":"BL80+BM80-BL9","v":0},null,null,{"$f":"BO80+BP80-BO9","v":0},null,null,{"$f":"BR80+BS80-BR9","v":0},null,null,{"$f":"BU80+BV80-BU9","v":0},null,null,{"$f":"BX80+BY80-BX9","v":0},null,null,{"$f":"CA80+CB80-CA9","v":0},null,null,{"$f":"CD80+CE80-CD9","v":0},null,null,{"$f":"CG80+CH80-CG9","v":0},null,null,{"$f":"CJ80+CK80-CJ9","v":0},null,null,{"$f":"CM80+CN80-CM9","v":0},null,null,{"$f":"CP80+CQ80-CP9","v":0},null,null,{"$f":"CS80+CT80-CS9","v":0},null,null,{"$f":"CV80+CW80-CV9","v":0},null,null,{"$f":"CY80+CZ80-CY9","v":0},null,null,{"$f":"DB80+DC80-DB9","v":0},null,null,{"$f":"DE80+DF80-DE9","v":0},null,null,{"$f":"DH80+DI80-DH9","v":0},null,null,{"$f":"DK80+DL80-DK9","v":0},null,null,{"$f":"DN80+DO80-DN9","v":0},null,null,{"$f":"DQ80+DR80-DQ9","v":0},null,null,{"$f":"DT80+DU80-DT9","v":0},null,null,{"$f":"DW80+DX80-DW9","v":0},null,null,{"$f":"DZ80+EA80-DZ9","v":0},null,null,{"$f":"EC80+ED80-EC9","v":0},null,null,{"$f":"EF80+EG80-EF9","v":0},null,null,{"$f":"EI80+EJ80-EI9","v":0},null,null,{"$f":"EL80+EM80-EL9","v":0},null,null,{"$f":"EO80+EP80-EO9","v":0},null,null,{"$f":"ER80+ES80-ER9","v":0},null,null,{"$f":"SUM(EU10:EU79)","v":0},{"$f":"SUM(EV10:EV79)","v":0},{"$f":"SUM(EW10:EW79)","v":0},{"$f":"SUM(EX10:EX79)","v":0}]
["เฉลี่ย",null,null,"เหลือ/เสีย(จริง)",null,null,{"$f":"INDIRECT(\"F\"&ROW($G$87)+ROUNDUP(COLUMNS($G:G)/3,0))","v":0},{"$f":"INDIRECT(\"G\"&ROW($G$87)+ROUNDUP(COLUMNS($G:H)/3,0))","v":0},null,{"$f":"INDIRECT(\"F\"&ROW($G$87)+ROUNDUP(COLUMNS($G:J)/3,0))","v":0},{"$f":"INDIRECT(\"G\"&ROW($G$87)+ROUNDUP(COLUMNS($G:K)/3,0))","v":0},null,{"$f":"INDIRECT(\"F\"&ROW($G$87)+ROUNDUP(COLUMNS($G:M)/3,0))","v":0},{"$f":"INDIRECT(\"G\"&ROW($G$87)+ROUNDUP(COLUMNS($G:N)/3,0))","v":0},null,{"$f":"INDIRECT(\"F\"&ROW($G$87)+ROUNDUP(COLUMNS($G:P)/3,0))","v":0},{"$f":"INDIRECT(\"G\"&ROW($G$87)+ROUNDUP(COLUMNS($G:Q)/3,0))","v":0},null,{"$f":"INDIRECT(\"F\"&ROW($G$87)+ROUNDUP(COLUMNS($G:S)/3,0))","v":0},{"$f":"INDIRECT(\"G\"&ROW($G$87)+ROUNDUP(COLUMNS($G:T)/3,0))","v":0},null,{"$f":"INDIRECT(\"F\"&ROW($G$87)+ROUNDUP(COLUMNS($G:V)/3,0))","v":0},{"$f":"INDIRECT(\"G\"&ROW($G$87)+ROUNDUP(COLUMNS($G:W)/3,0))","v":0},null,{"$f":"INDIRECT(\"F\"&ROW($G$87)+ROUNDUP(COLUMNS($G:Y)/3,0))","v":0},{"$f":"INDIRECT(\"G\"&ROW($G$87)+ROUNDUP(COLUMNS($G:Z)/3,0))","v":0},null,{"$f":"INDIRECT(\"F\"&ROW($G$87)+ROUNDUP(COLUMNS($G:AB)/3,0))","v":0},{"$f":"INDIRECT(\"G\"&ROW($G$87)+ROUNDUP(COLUMNS($G:AC)/3,0))","v":0},null,{"$f":"INDIRECT(\"F\"&ROW($G$87)+ROUNDUP(COLUMNS($G:AE)/3,0))","v":0},{"$f":"INDIRECT(\"G\"&ROW($G$87)+ROUNDUP(COLUMNS($G:AF)/3,0))","v":0},null,{"$f":"INDIRECT(\"F\"&ROW($G$87)+ROUNDUP(COLUMNS($G:AH)/3,0))","v":0},{"$f":"INDIRECT(\"G\"&ROW($G$87)+ROUNDUP(COLUMNS($G:AI)/3,0))","v":0},null,{"$f":"INDIRECT(\"F\"&ROW($G$87)+ROUNDUP(COLUMNS($G:AK)/3,0))","v":0},{"$f":"INDIRECT(\"G\"&ROW($G$87)+ROUNDUP(COLUMNS($G:AL)/3,0))","v":0},null,{"$f":"INDIRECT(\"F\"&ROW($G$87)+ROUNDUP(COLUMNS($G:AN)/3,0))","v":0},{"$f":"INDIRECT(\"G\"&ROW($G$87)+ROUNDUP(COLUMNS($G:AO)/3,0))","v":0},null,{"$f":"INDIRECT(\"F\"&ROW($G$87)+ROUNDUP(COLUMNS($G:AQ)/3,0))","v":0},{"$f":"INDIRECT(\"G\"&ROW($G$87)+ROUNDUP(COLUMNS($G:AR)/3,0))","v":0},null,{"$f":"INDIRECT(\"F\"&ROW($G$87)+ROUNDUP(COLUMNS($G:AT)/3,0))","v":0},{"$f":"INDIRECT(\"G\"&ROW($G$87)+ROUNDUP(COLUMNS($G:AU)/3,0))","v":0},null,{"$f":"INDIRECT(\"F\"&ROW($G$87)+ROUNDUP(COLUMNS($G:AW)/3,0))","v":0},{"$f":"INDIRECT(\"G\"&ROW($G$87)+ROUNDUP(COLUMNS($G:AX)/3,0))","v":0},null,{"$f":"INDIRECT(\"F\"&ROW($G$87)+ROUNDUP(COLUMNS($G:AZ)/3,0))","v":0},{"$f":"INDIRECT(\"G\"&ROW($G$87)+ROUNDUP(COLUMNS($G:BA)/3,0))","v":0},null,{"$f":"INDIRECT(\"F\"&ROW($G$87)+ROUNDUP(COLUMNS($G:BC)/3,0))","v":0},{"$f":"INDIRECT(\"G\"&ROW($G$87)+ROUNDUP(COLUMNS($G:BD)/3,0))","v":0},null,{"$f":"INDIRECT(\"F\"&ROW($G$87)+ROUNDUP(COLUMNS($G:BF)/3,0))","v":0},{"$f":"INDIRECT(\"G\"&ROW($G$87)+ROUNDUP(COLUMNS($G:BG)/3,0))","v":0},null,{"$f":"INDIRECT(\"F\"&ROW($G$87)+ROUNDUP(COLUMNS($G:BI)/3,0))","v":0},{"$f":"INDIRECT(\"G\"&ROW($G$87)+ROUNDUP(COLUMNS($G:BJ)/3,0))","v":0},null,{"$f":"INDIRECT(\"F\"&ROW($G$87)+ROUNDUP(COLUMNS($G:BL)/3,0))","v":0},{"$f":"INDIRECT(\"G\"&ROW($G$87)+ROUNDUP(COLUMNS($G:BM)/3,0))","v":0},null,{"$f":"INDIRECT(\"F\"&ROW($G$87)+ROUNDUP(COLUMNS($G:BO)/3,0))","v":0},{"$f":"INDIRECT(\"G\"&ROW($G$87)+ROUNDUP(COLUMNS($G:BP)/3,0))","v":0},null,{"$f":"INDIRECT(\"F\"&ROW($G$87)+ROUNDUP(COLUMNS($G:BR)/3,0))","v":0},{"$f":"INDIRECT(\"G\"&ROW($G$87)+ROUNDUP(COLUMNS($G:BS)/3,0))","v":0},null,{"$f":"INDIRECT(\"F\"&ROW($G$87)+ROUNDUP(COLUMNS($G:BU)/3,0))","v":0},{"$f":"INDIRECT(\"G\"&ROW($G$87)+ROUNDUP(COLUMNS($G:BV)/3,0))","v":0},null,{"$f":"INDIRECT(\"F\"&ROW($G$87)+ROUNDUP(COLUMNS($G:BX)/3,0))","v":0},{"$f":"INDIRECT(\"G\"&ROW($G$87)+ROUNDUP(COLUMNS($G:BY)/3,0))","v":0},null,{"$f":"INDIRECT(\"F\"&ROW($G$87)+ROUNDUP(COLUMNS($G:CA)/3,0))","v":0},{"$f":"INDIRECT(\"G\"&ROW($G$87)+ROUNDUP(COLUMNS($G:CB)/3,0))","v":0},null,{"$f":"INDIRECT(\"F\"&ROW($G$87)+ROUNDUP(COLUMNS($G:CD)/3,0))","v":0},{"$f":"INDIRECT(\"G\"&ROW($G$87)+ROUNDUP(COLUMNS($G:CE)/3,0))","v":0},null,{"$f":"INDIRECT(\"F\"&ROW($G$87)+ROUNDUP(COLUMNS($G:CG)/3,0))","v":0},{"$f":"INDIRECT(\"G\"&ROW($G$87)+ROUNDUP(COLUMNS($G:CH)/3,0))","v":0},null,{"$f":"INDIRECT(\"F\"&ROW($G$87)+ROUNDUP(COLUMNS($G:CJ)/3,0))","v":0},{"$f":"INDIRECT(\"G\"&ROW($G$87)+ROUNDUP(COLUMNS($G:CK)/3,0))","v":0},null,{"$f":"INDIRECT(\"F\"&ROW($G$87)+ROUNDUP(COLUMNS($G:CM)/3,0))","v":0},{"$f":"INDIRECT(\"G\"&ROW($G$87)+ROUNDUP(COLUMNS($G:CN)/3,0))","v":0},null,{"$f":"INDIRECT(\"F\"&ROW($G$87)+ROUNDUP(COLUMNS($G:CP)/3,0))","v":0},{"$f":"INDIRECT(\"G\"&ROW($G$87)+ROUNDUP(COLUMNS($G:CQ)/3,0))","v":0},null,{"$f":"INDIRECT(\"F\"&ROW($G$87)+ROUNDUP(COLUMNS($G:CS)/3,0))","v":0},{"$f":"INDIRECT(\"G\"&ROW($G$87)+ROUNDUP(COLUMNS($G:CT)/3,0))","v":0},null,{"$f":"INDIRECT(\"F\"&ROW($G$87)+ROUNDUP(COLUMNS($G:CV)/3,0))","v":0},{"$f":"INDIRECT(\"G\"&ROW($G$87)+ROUNDUP(COLUMNS($G:CW)/3,0))","v":0},null,{"$f":"INDIRECT(\"F\"&ROW($G$87)+ROUNDUP(COLUMNS($G:CY)/3,0))","v":0},{"$f":"INDIRECT(\"G\"&ROW($G$87)+ROUNDUP(COLUMNS($G:CZ)/3,0))","v":0},null,{"$f":"INDIRECT(\"F\"&ROW($G$87)+ROUNDUP(COLUMNS($G:DB)/3,0))","v":0},{"$f":"INDIRECT(\"G\"&ROW($G$87)+ROUNDUP(COLUMNS($G:DC)/3,0))","v":0},null,{"$f":"INDIRECT(\"F\"&ROW($G$87)+ROUNDUP(COLUMNS($G:DE)/3,0))","v":0},{"$f":"INDIRECT(\"G\"&ROW($G$87)+ROUNDUP(COLUMNS($G:DF)/3,0))","v":0},null,{"$f":"INDIRECT(\"F\"&ROW($G$87)+ROUNDUP(COLUMNS($G:DH)/3,0))","v":0},{"$f":"INDIRECT(\"G\"&ROW($G$87)+ROUNDUP(COLUMNS($G:DI)/3,0))","v":0},null,{"$f":"INDIRECT(\"F\"&ROW($G$87)+ROUNDUP(COLUMNS($G:DK)/3,0))","v":0},{"$f":"INDIRECT(\"G\"&ROW($G$87)+ROUNDUP(COLUMNS($G:DL)/3,0))","v":0},null,{"$f":"INDIRECT(\"F\"&ROW($G$87)+ROUNDUP(COLUMNS($G:DN)/3,0))","v":0},{"$f":"INDIRECT(\"G\"&ROW($G$87)+ROUNDUP(COLUMNS($G:DO)/3,0))","v":0},null,{"$f":"INDIRECT(\"F\"&ROW($G$87)+ROUNDUP(COLUMNS($G:DQ)/3,0))","v":0},{"$f":"INDIRECT(\"G\"&ROW($G$87)+ROUNDUP(COLUMNS($G:DR)/3,0))","v":0},null,{"$f":"INDIRECT(\"F\"&ROW($G$87)+ROUNDUP(COLUMNS($G:DT)/3,0))","v":0},{"$f":"INDIRECT(\"G\"&ROW($G$87)+ROUNDUP(COLUMNS($G:DU)/3,0))","v":0},null,{"$f":"INDIRECT(\"F\"&ROW($G$87)+ROUNDUP(COLUMNS($G:DW)/3,0))","v":0},{"$f":"INDIRECT(\"G\"&ROW($G$87)+ROUNDUP(COLUMNS($G:DX)/3,0))","v":0},null,{"$f":"INDIRECT(\"F\"&ROW($G$87)+ROUNDUP(COLUMNS($G:DZ)/3,0))","v":0},{"$f":"INDIRECT(\"G\"&ROW($G$87)+ROUNDUP(COLUMNS($G:EA)/3,0))","v":0},null,{"$f":"INDIRECT(\"F\"&ROW($G$87)+ROUNDUP(COLUMNS($G:EC)/3,0))","v":0},{"$f":"INDIRECT(\"G\"&ROW($G$87)+ROUNDUP(COLUMNS($G:ED)/3,0))","v":0},null,{"$f":"INDIRECT(\"F\"&ROW($G$87)+ROUNDUP(COLUMNS($G:EF)/3,0))","v":0},{"$f":"INDIRECT(\"G\"&ROW($G$87)+ROUNDUP(COLUMNS($G:EG)/3,0))","v":0},null,{"$f":"INDIRECT(\"F\"&ROW($G$87)+ROUNDUP(COLUMNS($G:EI)/3,0))","v":0},{"$f":"INDIRECT(\"G\"&ROW($G$87)+ROUNDUP(COLUMNS($G:EJ)/3,0))","v":0},null,{"$f":"INDIRECT(\"F\"&ROW($G$87)+ROUNDUP(COLUMNS($G:EL)/3,0))","v":0},{"$f":"INDIRECT(\"G\"&ROW($G$87)+ROUNDUP(COLUMNS($G:EM)/3,0))","v":0},null,{"$f":"INDIRECT(\"F\"&ROW($G$87)+ROUNDUP(COLUMNS($G:EO)/3,0))","v":0},{"$f":"INDIRECT(\"G\"&ROW($G$87)+ROUNDUP(COLUMNS($G:EP)/3,0))","v":0},null,{"$f":"INDIRECT(\"F\"&ROW($G$87)+ROUNDUP(COLUMNS($G:ER)/3,0))","v":0},{"$f":"INDIRECT(\"G\"&ROW($G$87)+ROUNDUP(COLUMNS($G:ES)/3,0))","v":0},null,{"$f":"EU81+EV81","v":0}]
["เวลากลับถึงสำนักงานเช็คของเสีย",null,null,{"$f":"D139","v":"00:00:00"},null,"ผลต่าง",{"$f":"G82+H82+G80-G9","v":0},null,null,{"$f":"J82+K82+J80-J9","v":0},null,null,{"$f":"M82+N82+M80-M9","v":0},null,null,{"$f":"P82+Q82+P80-P9","v":0},null,null,{"$f":"S82+T82+S80-S9","v":0},null,null,{"$f":"V82+W82+V80-V9","v":0},null,null,{"$f":"Y82+Z82+Y80-Y9","v":0},null,null,{"$f":"AB82+AC82+AB80-AB9","v":0},null,null,{"$f":"AE82+AF82+AE80-AE9","v":0},null,null,{"$f":"AH82+AI82+AH80-AH9","v":0},null,null,{"$f":"AK82+AL82+AK80-AK9","v":0},null,null,{"$f":"AN82+AO82+AN80-AN9","v":0},null,null,{"$f":"AQ82+AR82+AQ80-AQ9","v":0},null,null,{"$f":"AT82+AU82+AT80-AT9","v":0},null,null,{"$f":"AW82+AX82+AW80-AW9","v":0},null,null,{"$f":"AZ82+BA82+AZ80-AZ9","v":0},null,null,{"$f":"BC82+BD82+BC80-BC9","v":0},null,null,{"$f":"BF82+BG82+BF80-BF9","v":0},null,null,{"$f":"BI82+BJ82+BI80-BI9","v":0},null,null,{"$f":"BL82+BM82+BL80-BL9","v":0},null,null,{"$f":"BO82+BP82+BO80-BO9","v":0},null,null,{"$f":"BR82+BS82+BR80-BR9","v":0},null,null,{"$f":"BU82+BV82+BU80-BU9","v":0},null,null,{"$f":"BX82+BY82+BX80-BX9","v":0},null,null,{"$f":"CA82+CB82+CA80-CA9","v":0},null,null,{"$f":"CD82+CE82+CD80-CD9","v":0},null,null,{"$f":"CG82+CH82+CG80-CG9","v":0},null,null,{"$f":"CJ82+CK82+CJ80-CJ9","v":0},null,null,{"$f":"CM82+CN82+CM80-CM9","v":0},null,null,{"$f":"CP82+CQ82+CP80-CP9","v":0},null,null,{"$f":"CS82+CT82+CS80-CS9","v":0},null,null,{"$f":"CV82+CW82+CV80-CV9","v":0},null,null,{"$f":"CY82+CZ82+CY80-CY9","v":0},null,null,{"$f":"DB82+DC82+DB80-DB9","v":0},null,null,{"$f":"DE82+DF82+DE80-DE9","v":0},null,null,{"$f":"DH82+DI82+DH80-DH9","v":0},null,null,{"$f":"DK82+DL82+DK80-DK9","v":0},null,null,{"$f":"DN82+DO82+DN80-DN9","v":0},null,null,{"$f":"DQ82+DR82+DQ80-DQ9","v":0},null,null,{"$f":"DT82+DU82+DT80-DT9","v":0},null,null,{"$f":"DW82+DX82+DW80-DW9","v":0},null,null,{"$f":"DZ82+EA82+DZ80-DZ9","v":0},null,null,{"$f":"EC82+ED82+EC80-EC9","v":0},null,null,{"$f":"EF82+EG82+EF80-EF9","v":0},null,null,{"$f":"EI82+EJ82+EI80-EI9","v":0},null,null,{"$f":"EL82+EM82+EL80-EL9","v":0},null,null,{"$f":"EO82+EP82+EO80-EO9","v":0},null,null,{"$f":"ER82+ES82+ER80-ER9","v":0}]
["เป็นเงิน",null,null,null,null,null,{"$f":"G8*G83","v":0},null,null,{"$f":"J8*J83","v":0},null,null,{"$f":"M8*M83","v":0},null,null,{"$f":"P8*P83","v":0},null,null,{"$f":"S8*S83","v":0},null,null,{"$f":"V8*V83","v":0},null,null,{"$f":"Y8*Y83","v":0},null,null,{"$f":"AB8*AB83","v":0},null,null,{"$f":"AE8*AE83","v":0},null,null,{"$f":"AH8*AH83","v":0},null,null,{"$f":"AK8*AK83","v":0},null,null,{"$f":"AN8*AN83","v":0},null,null,{"$f":"AQ8*AQ83","v":0},null,null,{"$f":"AT8*AT83","v":0},null,null,{"$f":"AW8*AW83","v":0},null,null,{"$f":"AZ8*AZ83","v":0},null,null,{"$f":"BC8*BC83","v":0},null,null,{"$f":"BF8*BF83","v":0},null,null,{"$f":"BI8*BI83","v":0},null,null,{"$f":"BL8*BL83","v":0},null,null,{"$f":"BO8*BO83","v":0},null,null,{"$f":"BR8*BR83","v":0},null,null,{"$f":"BU8*BU83","v":0},null,null,{"$f":"BX8*BX83","v":0},null,null,{"$f":"CA8*CA83","v":0},null,null,{"$f":"CD8*CD83","v":0},null,null,{"$f":"CG8*CG83","v":0},null,null,{"$f":"CJ8*CJ83","v":0},null,null,{"$f":"CM8*CM83","v":0},null,null,{"$f":"CP8*CP83","v":0},null,null,{"$f":"CS8*CS83","v":0},null,null,{"$f":"CV8*CV83","v":0},null,null,{"$f":"CY8*CY83","v":0},null,null,{"$f":"DB8*DB83","v":0},null,null,{"$f":"DE8*DE83","v":0},null,null,{"$f":"DH8*DH83","v":0},null,null,{"$f":"DK8*DK83","v":0},null,null,{"$f":"DN8*DN83","v":0},null,null,{"$f":"DQ8*DQ83","v":0},null,null,{"$f":"DT8*DT83","v":0},null,null,{"$f":"DW8*DW83","v":0},null,null,0,null,null,{"$f":"EC8*EC83","v":0},null,null,{"$f":"EF8*EF83","v":0},null,null,{"$f":"EI8*EI83","v":0},null,null,{"$f":"EL8*EL83","v":0},null,null,{"$f":"EO8*EO83","v":0},null,null,{"$f":"ER8*ER83","v":0},null,null,{"$f":"$AP$98","v":0}]
[null,null,null,"ผู้จัดทำ……………………………………………………………………",null,null,null,null,null,null,null,null,null,null,null,null,null,null,null,null,null,null,null,"ผู้ตรวจ(ผจก.)………………………………………………………………………………."]
[null,null,"ใบจ่ายสินค้า",null,null,null,null,null,null,null,null,null,null,null,null,null,null,{"$f":"IF(ISODD(COLUMN()),MAX($F$86:Q$86)+1,\"\")","v":""}]
["ราคา","ลำดับ","รายการ","ยกมา","เบิก","เหลือ","เสีย","โอนเข้า","โอนออก","ชำรุด","รวม",null,"ขาย",null,"ขาด/เกิน",null,"บาท",null,null,null,"ขายได้",null,"ควรเบิก",null,"หมายเหตุ",null,null,null,"เสีย PDA","เสียจริง","เหลือ PDA","ผลต่าง","เหลือลูกค้า","หมายเหตุ",null,null,null,null,"Price","Quantity","Baht","Deduct"]
[{"$f":"IF(B88=\"\",0,INDEX(Price_List,ROWS($88:88)))","v":20},{"$f":"IF($C88=\"\",\"\",COUNTA($C$88:$C88))","v":1},{"$f":"IF(INDEX(INDIRECT(\"Product_List\"),ROWS($88:88))=\"\",\"\",INDEX(INDIRECT(\"Product_List\"),ROWS($88:88)))","v":"01-ขนมปังหมูหยองน้ำสลัด"},{"$f":"ยอดยกมา","v":0},null,null,null,null,null,null,{"$f":"D88+E88+J88-I88+H88","v":0},null,{"$f":"INDIRECT(ADDRESS(ROW(A$80),ROW()-ROW(A$80)+(ROWS($88:88)-1)*2-1,4))","v":0},null,{"$f":"F88+G88+M88+J88-K88","v":0},null,{"$f":"O88*A88","v":0},null,null,null,{"$f":"D88+E88-F88-G88","v":0},null,{"$f":"U88*6%+U88","v":0},null,null,null,null,null,{"$f":"INDIRECT(ADDRESS(ROW(A$80),ROW()-ROW(A$80)+(ROWS($88:88)-1)*2,4))","v":0},{"$f":"$G88","v":0},null,{"$f":"$F88-$AE88","v":0},{"$f":"INDIRECT(ADDRESS(ROW(A$80),ROW()-ROW(A$80)+(ROWS($88:88)-1)*2+1,4))","v":0},null,null,null,null,null,10,{"$f":"SUMPRODUCT(($A$88:$A$135=$AM88)*(($F$88:$F$135)+($G$88:$G$135)+($M$88:$M$135)+($J$88:$J$135)-($K$88:$K$135)))","v":0},{"$f":"AM88*AN88","v":0},{"$f":"IF(AO88<0,AO88,0)","v":0}]
[{"$f":"IF(B89=\"\",0,INDEX(Price_List,ROWS($88:89)))","v":20},{"$f":"IF($C89=\"\",\"\",COUNTA($C$88:$C89))","v":2},{"$f":"IF(INDEX(INDIRECT(\"Product_List\"),ROWS($88:89))=\"\",\"\",INDEX(INDIRECT(\"Product_List\"),ROWS($88:89)))","v":"02-ขนมปังหมูหยองน้ำพริกเผา"},{"$f":"ยอดยกมา","v":0},null,null,null,null,null,null,{"$f":"D89+E89+J89-I89+H89","v":0},null,{"$f":"INDIRECT(ADDRESS(ROW(A$80),ROW()-ROW(A$80)+(ROWS($88:89)-1)*2-1,4))","v":0},null,{"$f":"F89+G89+M89+J89-K89","v":0},null,{"$f":"O89*A89","v":0},null,null,null,{"$f":"D89+E89-F89-G89","v":0},null,{"$f":"U89*6%+U89","v":0},null,null,null,null,null,{"$f":"INDIRECT(ADDRESS(ROW(A$80),ROW()-ROW(A$80)+(ROWS($88:89)-1)*2,4))","v":0},{"$f":"$G89","v":0},null,{"$f":"$F89-$AE89","v":0},{"$f":"INDIRECT(ADDRESS(ROW(A$80),ROW()-ROW(A$80)+(ROWS($88:89)-1)*2+1,4))","v":0},null,null,null,null,null,12,0,{"$f":"AM89*AN89","v":0},{"$f":"IF(AO89<0,AO89,0)","v":0}]
[{"$f":"IF(B90=\"\",0,INDEX(Price_List,ROWS($88:90)))","v":20},{"$f":"IF($C90=\"\",\"\",COUNTA($C$88:$C90))","v":3},{"$f":"IF(INDEX(INDIRECT(\"Product_List\"),ROWS($88:90))=\"\",\"\",INDEX(INDIRECT(\"Product_List\"),ROWS($88:90)))","v":"03-ขนมปังไก่หยองน้ำสลัด"},{"$f":"ยอดยกมา","v":0},null,null,null,null,null,null,0,null,{"$f":"INDIRECT(ADDRESS(ROW(A$80),ROW()-ROW(A$80)+(ROWS($88:90)-1)*2-1,4))","v":0},null,0,null,0,null,null,null,0,null,0,null,null,null,null,null,{"$f":"INDIRECT(ADDRESS(ROW(A$80),ROW()-ROW(A$80)+(ROWS($88:90)-1)*2,4))","v":0},0,null,0,{"$f":"INDIRECT(ADDRESS(ROW(A$80),ROW()-ROW(A$80)+(ROWS($88:90)-1)*2+1,4))","v":0},null,null,null,null,null,13,0,0,0]
[{"$f":"IF(B91=\"\",0,INDEX(Price_List,ROWS($88:91)))","v":15},{"$f":"IF($C91=\"\",\"\",COUNTA($C$88:$C91))","v":4},{"$f":"IF(INDEX(INDIRECT(\"Product_List\"),ROWS($88:91))=\"\",\"\",INDEX(INDIRECT(\"Product_List\"),ROWS($88:91)))","v":"04-ขนมปังไส้ครีมสลัด"},{"$f":"ยอดยกมา","v":0},null,null,null,null,null,null,0,null,{"$f":"INDIRECT(ADDRESS(ROW(A$80),ROW()-ROW(A$80)+(ROWS($88:91)-1)*2-1,4))","v":0},null,{"$f":"F91+G91+M91+J91-K91","v":0},null,0,null,null,null,0,null,0,null,null,null,null,null,{"$f":"INDIRECT(ADDRESS(ROW(A$80),ROW()-ROW(A$80)+(ROWS($88:91)-1)*2,4))","v":0},0,null,0,{"$f":"INDIRECT(ADDRESS(ROW(A$80),ROW()-ROW(A$80)+(ROWS($88:91)-1)*2+1,4))","v":0},null,null,null,null,null,15,0,0,0]
[{"$f":"IF(B92=\"\",0,INDEX(Price_List,ROWS($88:92)))","v":15},{"$f":"IF($C92=\"\",\"\",COUNTA($C$88:$C92))","v":5},{"$f":"IF(INDEX(INDIRECT(\"Product_List\"),ROWS($88:92))=\"\",\"\",INDEX(INDIRECT(\"Product_List\"),ROWS($88:92)))","v":"05-ขนมปังเนยสด"},{"$f":"ยอดยกมา","v":0},null,null,null,null,null,null,0,null,{"$f":"INDIRECT(ADDRESS(ROW(A$80),ROW()-ROW(A$80)+(ROWS($88:92)-1)*2-1,4))","v":0},null,0,null,0,null,null,null,0,null,0,null,null,null,null,null,{"$f":"INDIRECT(ADDRESS(ROW(A$80),ROW()-ROW(A$80)+(ROWS($88:92)-1)*2,4))","v":0},0,null,0,{"$f":"INDIRECT(ADDRESS(ROW(A$80),ROW()-ROW(A$80)+(ROWS($88:92)-1)*2+1,4))","v":0},null,null,null,null,null,16,0,0,0]
[{"$f":"IF(B93=\"\",0,INDEX(Price_List,ROWS($88:93)))","v":10},{"$f":"IF($C93=\"\",\"\",COUNTA($C$88:$C93))","v":6},{"$f":"IF(INDEX(INDIRECT(\"Product_List\"),ROWS($88:93))=\"\",\"\",INDEX(INDIRECT(\"Product_List\"),ROWS($88:93)))","v":"06-ขนมปังไส้สังขยาเล็ก"},{"$f":"ยอดยกมา","v":0},null,null,null,null,null,null,0,null,{"$f":"INDIRECT(ADDRESS(ROW(A$80),ROW()-ROW(A$80)+(ROWS($88:93)-1)*2-1,4))","v":0},null,0,null,0,null,null,null,0,null,0,null,null,null,null,null,{"$f":"INDIRECT(ADDRESS(ROW(A$80),ROW()-ROW(A$80)+(ROWS($88:93)-1)*2,4))","v":0},0,null,0,{"$f":"INDIRECT(ADDRESS(ROW(A$80),ROW()-ROW(A$80)+(ROWS($88:93)-1)*2+1,4))","v":0},null,null,null,null,null,18,0,0,0]
[{"$f":"IF(B94=\"\",0,INDEX(Price_List,ROWS($88:94)))","v":10},{"$f":"IF($C94=\"\",\"\",COUNTA($C$88:$C94))","v":7},{"$f":"IF(INDEX(INDIRECT(\"Product_List\"),ROWS($88:94))=\"\",\"\",INDEX(INDIRECT(\"Product_List\"),ROWS($88:94)))","v":"07-ขนมปังไส้เผือก"},{"$f":"ยอดยกมา","v":0},null,null,null,null,null,null,0,null,{"$f":"INDIRECT(ADDRESS(ROW(A$80),ROW()-ROW(A$80)+(ROWS($88:94)-1)*2-1,4))","v":0},null,0,null,0,null,null,null,0,null,0,null,null,null,null,null,{"$f":"INDIRECT(ADDRESS(ROW(A$80),ROW()-ROW(A$80)+(ROWS($88:94)-1)*2,4))","v":0},0,null,0,{"$f":"INDIRECT(ADDRESS(ROW(A$80),ROW()-ROW(A$80)+(ROWS($88:94)-1)*2+1,4))","v":0},null,null,null,null,null,20,0,0,0]
[{"$f":"IF(B95=\"\",0,INDEX(Price_List,ROWS($88:95)))","v":10},{"$f":"IF($C95=\"\",\"\",COUNTA($C$88:$C95))","v":8},{"$f":"IF(INDEX(INDIRECT(\"Product_List\"),ROWS($88:95))=\"\",\"\",INDEX(INDIRECT(\"Product_List\"),ROWS($88:95)))","v":"08-ขนมปังไส้ถั่วแดง"},{"$f":"ยอดยกมา","v":0},null,null,null,null,null,null,0,null,{"$f":"INDIRECT(ADDRESS(ROW(A$80),ROW()-ROW(A$80)+(ROWS($88:95)-1)*2-1,4))","v":0},null,0,null,0,null,null,null,0,null,0,null,null,null,null,null,{"$f":"INDIRECT(ADDRESS(ROW(A$80),ROW()-ROW(A$80)+(ROWS($88:95)-1)*2,4))","v":0},0,null,0,{"$f":"INDIRECT(ADDRESS(ROW(A$80),ROW()-ROW(A$80)+(ROWS($88:95)-1)*2+1,4))","v":0},null,null,null,null,null,22,0,0,0]
[{"$f":"IF(B96=\"\",0,INDEX(Price_List,ROWS($88:96)))","v":10},{"$f":"IF($C96=\"\",\"\",COUNTA($C$88:$C96))","v":9},{"$f":"IF(INDEX(INDIRECT(\"Product_List\"),ROWS($88:96))=\"\",\"\",INDEX(INDIRECT(\"Product_List\"),ROWS($88:96)))","v":"09-ขนมปังไส้ถั่วดำ"},{"$f":"ยอดยกมา","v":0},null,null,null,null,null,null,0,null,{"$f":"INDIRECT(ADDRESS(ROW(A$80),ROW()-ROW(A$80)+(ROWS($88:96)-1)*2-1,4))","v":0},null,0,null,0,null,null,null,0,null,0,null,null,null,null,null,{"$f":"INDIRECT(ADDRESS(ROW(A$80),ROW()-ROW(A$80)+(ROWS($88:96)-1)*2,4))","v":0},0,null,0,{"$f":"INDIRECT(ADDRESS(ROW(A$80),ROW()-ROW(A$80)+(ROWS($88:96)-1)*2+1,4))","v":0},null,null,null,null,null,25,0,0,0]
[{"$f":"IF(B97=\"\",0,INDEX(Price_List,ROWS($88:97)))","v":10},{"$f":"IF($C97=\"\",\"\",COUNTA($C$88:$C97))","v":10},{"$f":"IF(INDEX(INDIRECT(\"Product_List\"),ROWS($88:97))=\"\",\"\",INDEX(INDIRECT(\"Product_List\"),ROWS($88:97)))","v":"10-ขนมปังไส้มันม่วง"},{"$f":"ยอดยกมา","v":0},null,null,null,null,null,null,0,null,{"$f":"INDIRECT(ADDRESS(ROW(A$80),ROW()-ROW(A$80)+(ROWS($88:97)-1)*2-1,4))","v":0},null,0,null,0,null,null,null,0,null,0,null,null,null,null,null,{"$f":"INDIRECT(ADDRESS(ROW(A$80),ROW()-ROW(A$80)+(ROWS($88:97)-1)*2,4))","v":0},0,null,0,{"$f":"INDIRECT(ADDRESS(ROW(A$80),ROW()-ROW(A$80)+(ROWS($88:97)-1)*2+1,4))","v":0},null,null,null,null,null,42,0,0,0]
[{"$f":"IF(B98=\"\",0,INDEX(Price_List,ROWS($88:98)))","v":15},{"$f":"IF($C98=\"\",\"\",COUNTA($C$88:$C98))","v":11},{"$f":"IF(INDEX(INDIRECT(\"Product_List\"),ROWS($88:98))=\"\",\"\",INDEX(INDIRECT(\"Product_List\"),ROWS($88:98)))","v":"11-เค้กกล้วยหอม"},{"$f":"ยอดยกมา","v":0},null,null,null,null,null,null,0,null,{"$f":"INDIRECT(ADDRESS(ROW(A$80),ROW()-ROW(A$80)+(ROWS($88:98)-1)*2-1,4))","v":0},null,0,null,0,null,null,null,0,null,0,null,null,null,null,null,{"$f":"INDIRECT(ADDRESS(ROW(A$80),ROW()-ROW(A$80)+(ROWS($88:98)-1)*2,4))","v":0},0,null,0,{"$f":"INDIRECT(ADDRESS(ROW(A$80),ROW()-ROW(A$80)+(ROWS($88:98)-1)*2+1,4))","v":0},null,null,null,null,null,"Total Deduct",null,null,{"$f":"SUM($AP$88:$AP$97)","v":0}]
[{"$f":"IF(B99=\"\",0,INDEX(Price_List,ROWS($88:99)))","v":15},{"$f":"IF($C99=\"\",\"\",COUNTA($C$88:$C99))","v":12},{"$f":"IF(INDEX(INDIRECT(\"Product_List\"),ROWS($88:99))=\"\",\"\",INDEX(INDIRECT(\"Product_List\"),ROWS($88:99)))","v":"12-เค้กบัตเตอร์"},{"$f":"ยอดยกมา","v":0},null,null,null,null,null,null,0,null,{"$f":"INDIRECT(ADDRESS(ROW(A$80),ROW()-ROW(A$80)+(ROWS($88:99)-1)*2-1,4))","v":0},null,0,null,0,null,null,null,0,null,0,null,null,null,null,null,{"$f":"INDIRECT(ADDRESS(ROW(A$80),ROW()-ROW(A$80)+(ROWS($88:99)-1)*2,4))","v":0},0,null,0,{"$f":"INDIRECT(ADDRESS(ROW(A$80),ROW()-ROW(A$80)+(ROWS($88:99)-1)*2+1,4))","v":0}]
[{"$f":"IF(B100=\"\",0,INDEX(Price_List,ROWS($88:100)))","v":15},{"$f":"IF($C100=\"\",\"\",COUNTA($C$88:$C100))","v":13},{"$f":"IF(INDEX(INDIRECT(\"Product_List\"),ROWS($88:100))=\"\",\"\",INDEX(INDIRECT(\"Product_List\"),ROWS($88:100)))","v":"13-ขนมปังโรลถั่วแดง"},{"$f":"ยอดยกมา","v":0},null,null,null,null,null,null,0,null,{"$f":"INDIRECT(ADDRESS(ROW(A$80),ROW()-ROW(A$80)+(ROWS($88:100)-1)*2-1,4))","v":0},null,0,null,0,null,null,null,0,null,0,null,null,null,null,null,{"$f":"INDIRECT(ADDRESS(ROW(A$80),ROW()-ROW(A$80)+(ROWS($88:100)-1)*2,4))","v":0},0,null,0,{"$f":"INDIRECT(ADDRESS(ROW(A$80),ROW()-ROW(A$80)+(ROWS($88:100)-1)*2+1,4))","v":0}]
[{"$f":"IF(B101=\"\",0,INDEX(Price_List,ROWS($88:101)))","v":15},{"$f":"IF($C101=\"\",\"\",COUNTA($C$88:$C101))","v":14},{"$f":"IF(INDEX(INDIRECT(\"Product_List\"),ROWS($88:101))=\"\",\"\",INDEX(INDIRECT(\"Product_List\"),ROWS($88:101)))","v":"14-ขนมปังไส้สังขยาใหญ่"},{"$f":"ยอดยกมา","v":0},null,null,null,null,null,null,0,null,{"$f":"INDIRECT(ADDRESS(ROW(A$80),ROW()-ROW(A$80)+(ROWS($88:101)-1)*2-1,4))","v":0},null,0,null,0,null,null,null,0,null,0,null,null,null,null,null,{"$f":"INDIRECT(ADDRESS(ROW(A$80),ROW()-ROW(A$80)+(ROWS($88:101)-1)*2,4))","v":0},0,null,0,{"$f":"INDIRECT(ADDRESS(ROW(A$80),ROW()-ROW(A$80)+(ROWS($88:101)-1)*2+1,4))","v":0}]
[{"$f":"IF(B102=\"\",0,INDEX(Price_List,ROWS($88:102)))","v":42},{"$f":"IF($C102=\"\",\"\",COUNTA($C$88:$C102))","v":15},{"$f":"IF(INDEX(INDIRECT(\"Product_List\"),ROWS($88:102))=\"\",\"\",INDEX(INDIRECT(\"Product_List\"),ROWS($88:102)))","v":"15-ขนมปังชนิดแผ่น(480กรัม)"},{"$f":"ยอดยกมา","v":0},null,null,null,null,null,null,0,null,{"$f":"INDIRECT(ADDRESS(ROW(A$80),ROW()-ROW(A$80)+(ROWS($88:102)-1)*2-1,4))","v":0},null,0,null,0,null,null,null,0,null,0,null,null,null,null,null,{"$f":"INDIRECT(ADDRESS(ROW(A$80),ROW()-ROW(A$80)+(ROWS($88:102)-1)*2,4))","v":0},0,null,0,{"$f":"INDIRECT(ADDRESS(ROW(A$80),ROW()-ROW(A$80)+(ROWS($88:102)-1)*2+1,4))","v":0}]
[{"$f":"IF(B103=\"\",0,INDEX(Price_List,ROWS($88:103)))","v":12},{"$f":"IF($C103=\"\",\"\",COUNTA($C$88:$C103))","v":16},{"$f":"IF(INDEX(INDIRECT(\"Product_List\"),ROWS($88:103))=\"\",\"\",INDEX(INDIRECT(\"Product_List\"),ROWS($88:103)))","v":"16-โมจิไส้ถั่ว"},{"$f":"ยอดยกมา","v":0},null,null,null,null,null,null,0,null,{"$f":"INDIRECT(ADDRESS(ROW(A$80),ROW()-ROW(A$80)+(ROWS($88:103)-1)*2-1,4))","v":0},null,0,null,0,null,null,null,0,null,0,null,null,null,null,null,{"$f":"INDIRECT(ADDRESS(ROW(A$80),ROW()-ROW(A$80)+(ROWS($88:103)-1)*2,4))","v":0},0,null,0,{"$f":"INDIRECT(ADDRESS(ROW(A$80),ROW()-ROW(A$80)+(ROWS($88:103)-1)*2+1,4))","v":0}]
[{"$f":"IF(B104=\"\",0,INDEX(Price_List,ROWS($88:104)))","v":12},{"$f":"IF($C104=\"\",\"\",COUNTA($C$88:$C104))","v":17},{"$f":"IF(INDEX(INDIRECT(\"Product_List\"),ROWS($88:104))=\"\",\"\",INDEX(INDIRECT(\"Product_List\"),ROWS($88:104)))","v":"17-โมจิไส้เผือก"},{"$f":"ยอดยกมา","v":0},null,null,null,null,null,null,0,null,{"$f":"INDIRECT(ADDRESS(ROW(A$80),ROW()-ROW(A$80)+(ROWS($88:104)-1)*2-1,4))","v":0},null,0,null,0,null,null,null,0,null,0,null,null,null,null,null,{"$f":"INDIRECT(ADDRESS(ROW(A$80),ROW()-ROW(A$80)+(ROWS($88:104)-1)*2,4))","v":0},0,null,0,{"$f":"INDIRECT(ADDRESS(ROW(A$80),ROW()-ROW(A$80)+(ROWS($88:104)-1)*2+1,4))","v":0}]
[{"$f":"IF(B105=\"\",0,INDEX(Price_List,ROWS($88:105)))","v":15},{"$f":"IF($C105=\"\",\"\",COUNTA($C$88:$C105))","v":18},{"$f":"IF(INDEX(INDIRECT(\"Product_List\"),ROWS($88:105))=\"\",\"\",INDEX(INDIRECT(\"Product_List\"),ROWS($88:105)))","v":"18-โมจิไส้ถั่วไข่เค็ม"},{"$f":"ยอดยกมา","v":0},null,null,null,null,null,null,0,null,{"$f":"INDIRECT(ADDRESS(ROW(A$80),ROW()-ROW(A$80)+(ROWS($88:105)-1)*2-1,4))","v":0},null,0,null,0,null,null,null,0,null,0,null,null,null,null,null,{"$f":"INDIRECT(ADDRESS(ROW(A$80),ROW()-ROW(A$80)+(ROWS($88:105)-1)*2,4))","v":0},0,null,0,{"$f":"INDIRECT(ADDRESS(ROW(A$80),ROW()-ROW(A$80)+(ROWS($88:105)-1)*2+1,4))","v":0}]
[{"$f":"IF(B106=\"\",0,INDEX(Price_List,ROWS($88:106)))","v":20},{"$f":"IF($C106=\"\",\"\",COUNTA($C$88:$C106))","v":19},{"$f":"IF(INDEX(INDIRECT(\"Product_List\"),ROWS($88:106))=\"\",\"\",INDEX(INDIRECT(\"Product_List\"),ROWS($88:106)))","v":"19-ขนมปังพิซซ่า"},{"$f":"ยอดยกมา","v":0},null,null,null,null,null,null,0,null,{"$f":"INDIRECT(ADDRESS(ROW(A$80),ROW()-ROW(A$80)+(ROWS($88:106)-1)*2-1,4))","v":0},null,0,null,0,null,null,null,0,null,0,null,null,null,null,null,{"$f":"INDIRECT(ADDRESS(ROW(A$80),ROW()-ROW(A$80)+(ROWS($88:106)-1)*2,4))","v":0},0,null,0,{"$f":"INDIRECT(ADDRESS(ROW(A$80),ROW()-ROW(A$80)+(ROWS($88:106)-1)*2+1,4))","v":0}]
[{"$f":"IF(B107=\"\",0,INDEX(Price_List,ROWS($88:107)))","v":20},{"$f":"IF($C107=\"\",\"\",COUNTA($C$88:$C107))","v":20},{"$f":"IF(INDEX(INDIRECT(\"Product_List\"),ROWS($88:107))=\"\",\"\",INDEX(INDIRECT(\"Product_List\"),ROWS($88:107)))","v":"20-ขนมปังพิซซ่าปูอัดแฮม"},{"$f":"ยอดยกมา","v":0},null,null,null,null,null,null,0,null,{"$f":"INDIRECT(ADDRESS(ROW(A$80),ROW()-ROW(A$80)+(ROWS($88:107)-1)*2-1,4))","v":0},null,0,null,0,null,null,null,0,null,0,null,null,null,null,null,{"$f":"INDIRECT(ADDRESS(ROW(A$80),ROW()-ROW(A$80)+(ROWS($88:107)-1)*2,4))","v":0},0,null,0,{"$f":"INDIRECT(ADDRESS(ROW(A$80),ROW()-ROW(A$80)+(ROWS($88:107)-1)*2+1,4))","v":0}]
[{"$f":"IF(B108=\"\",0,INDEX(Price_List,ROWS($88:108)))","v":20},{"$f":"IF($C108=\"\",\"\",COUNTA($C$88:$C108))","v":21},{"$f":"IF(INDEX(INDIRECT(\"Product_List\"),ROWS($88:108))=\"\",\"\",INDEX(INDIRECT(\"Product_List\"),ROWS($88:108)))","v":"21-ขนมปังไส้กรอก"},{"$f":"ยอดยกมา","v":0},null,null,null,null,null,null,0,null,{"$f":"INDIRECT(ADDRESS(ROW(A$80),ROW()-ROW(A$80)+(ROWS($88:108)-1)*2-1,4))","v":0},null,0,null,0,null,null,null,0,null,0,null,null,null,null,null,{"$f":"INDIRECT(ADDRESS(ROW(A$80),ROW()-ROW(A$80)+(ROWS($88:108)-1)*2,4))","v":0},0,null,0,{"$f":"INDIRECT(ADDRESS(ROW(A$80),ROW()-ROW(A$80)+(ROWS($88:108)-1)*2+1,4))","v":0}]
[{"$f":"IF(B109=\"\",0,INDEX(Price_List,ROWS($88:109)))","v":15},{"$f":"IF($C109=\"\",\"\",COUNTA($C$88:$C109))","v":22},{"$f":"IF(INDEX(INDIRECT(\"Product_List\"),ROWS($88:109))=\"\",\"\",INDEX(INDIRECT(\"Product_List\"),ROWS($88:109)))","v":"22-ขนมก้านบัว"},{"$f":"ยอดยกมา","v":0},null,null,null,null,null,null,0,null,{"$f":"INDIRECT(ADDRESS(ROW(A$80),ROW()-ROW(A$80)+(ROWS($88:109)-1)*2-1,4))","v":0},null,0,null,0,null,null,null,0,null,0,null,null,null,null,null,{"$f":"INDIRECT(ADDRESS(ROW(A$80),ROW()-ROW(A$80)+(ROWS($88:109)-1)*2,4))","v":0},0,null,0,{"$f":"INDIRECT(ADDRESS(ROW(A$80),ROW()-ROW(A$80)+(ROWS($88:109)-1)*2+1,4))","v":0}]
[{"$f":"IF(B110=\"\",0,INDEX(Price_List,ROWS($88:110)))","v":20},{"$f":"IF($C110=\"\",\"\",COUNTA($C$88:$C110))","v":23},{"$f":"IF(INDEX(INDIRECT(\"Product_List\"),ROWS($88:110))=\"\",\"\",INDEX(INDIRECT(\"Product_List\"),ROWS($88:110)))","v":"23-พายสับปะรด"},{"$f":"ยอดยกมา","v":0},null,null,null,null,null,null,0,null,{"$f":"INDIRECT(ADDRESS(ROW(A$80),ROW()-ROW(A$80)+(ROWS($88:110)-1)*2-1,4))","v":0},null,0,null,0,null,null,null,0,null,0,null,null,null,null,null,{"$f":"INDIRECT(ADDRESS(ROW(A$80),ROW()-ROW(A$80)+(ROWS($88:110)-1)*2,4))","v":0},0,null,0,{"$f":"INDIRECT(ADDRESS(ROW(A$80),ROW()-ROW(A$80)+(ROWS($88:110)-1)*2+1,4))","v":0}]
[{"$f":"IF(B111=\"\",0,INDEX(Price_List,ROWS($88:111)))","v":20},{"$f":"IF($C111=\"\",\"\",COUNTA($C$88:$C111))","v":24},{"$f":"IF(INDEX(INDIRECT(\"Product_List\"),ROWS($88:111))=\"\",\"\",INDEX(INDIRECT(\"Product_List\"),ROWS($88:111)))","v":"24-พายไส้มะพร้าว"},{"$f":"ยอดยกมา","v":0},null,null,null,null,null,null,0,null,{"$f":"INDIRECT(ADDRESS(ROW(A$80),ROW()-ROW(A$80)+(ROWS($88:111)-1)*2-1,4))","v":0},null,0,null,0,null,null,null,0,null,0,null,null,null,null,null,{"$f":"INDIRECT(ADDRESS(ROW(A$80),ROW()-ROW(A$80)+(ROWS($88:111)-1)*2,4))","v":0},0,null,0,{"$f":"INDIRECT(ADDRESS(ROW(A$80),ROW()-ROW(A$80)+(ROWS($88:111)-1)*2+1,4))","v":0}]
[{"$f":"IF(B112=\"\",0,INDEX(Price_List,ROWS($88:112)))","v":15},{"$f":"IF($C112=\"\",\"\",COUNTA($C$88:$C112))","v":25},{"$f":"IF(INDEX(INDIRECT(\"Product_List\"),ROWS($88:112))=\"\",\"\",INDEX(INDIRECT(\"Product_List\"),ROWS($88:112)))","v":"25-ขนมปังโรลมันเทศ"},{"$f":"ยอดยกมา","v":0},null,null,null,null,null,null,0,null,{"$f":"INDIRECT(ADDRESS(ROW(A$80),ROW()-ROW(A$80)+(ROWS($88:112)-1)*2-1,4))","v":0},null,0,null,0,null,null,null,0,null,0,null,null,null,null,null,{"$f":"INDIRECT(ADDRESS(ROW(A$80),ROW()-ROW(A$80)+(ROWS($88:112)-1)*2,4))","v":0},0,null,0,{"$f":"INDIRECT(ADDRESS(ROW(A$80),ROW()-ROW(A$80)+(ROWS($88:112)-1)*2+1,4))","v":0}]
[{"$f":"IF(B113=\"\",0,INDEX(Price_List,ROWS($88:113)))","v":15},{"$f":"IF($C113=\"\",\"\",COUNTA($C$88:$C113))","v":26},{"$f":"IF(INDEX(INDIRECT(\"Product_List\"),ROWS($88:113))=\"\",\"\",INDEX(INDIRECT(\"Product_List\"),ROWS($88:113)))","v":"26-ขนมปังไส้ครีมสลัดน้ำพริกเผา"},{"$f":"ยอดยกมา","v":0},null,null,null,null,null,null,0,null,{"$f":"INDIRECT(ADDRESS(ROW(A$80),ROW()-ROW(A$80)+(ROWS($88:113)-1)*2-1,4))","v":0},null,0,null,0,null,null,null,0,null,0,null,null,null,null,null,{"$f":"INDIRECT(ADDRESS(ROW(A$80),ROW()-ROW(A$80)+(ROWS($88:113)-1)*2,4))","v":0},0,null,0,{"$f":"INDIRECT(ADDRESS(ROW(A$80),ROW()-ROW(A$80)+(ROWS($88:113)-1)*2+1,4))","v":0}]
[{"$f":"IF(B114=\"\",0,INDEX(Price_List,ROWS($88:114)))","v":20},{"$f":"IF($C114=\"\",\"\",COUNTA($C$88:$C114))","v":27},{"$f":"IF(INDEX(INDIRECT(\"Product_List\"),ROWS($88:114))=\"\",\"\",INDEX(INDIRECT(\"Product_List\"),ROWS($88:114)))","v":"27-ขนมปังไส้สังขยาไข่"},{"$f":"ยอดยกมา","v":0},null,null,null,null,null,null,0,null,{"$f":"INDIRECT(ADDRESS(ROW(A$80),ROW()-ROW(A$80)+(ROWS($88:114)-1)*2-1,4))","v":0},null,0,null,0,null,null,null,0,null,0,null,null,null,null,null,{"$f":"INDIRECT(ADDRESS(ROW(A$80),ROW()-ROW(A$80)+(ROWS($88:114)-1)*2,4))","v":0},0,null,0,{"$f":"INDIRECT(ADDRESS(ROW(A$80),ROW()-ROW(A$80)+(ROWS($88:114)-1)*2+1,4))","v":0}]
[{"$f":"IF(B115=\"\",0,INDEX(Price_List,ROWS($88:115)))","v":20},{"$f":"IF($C115=\"\",\"\",COUNTA($C$88:$C115))","v":28},{"$f":"IF(INDEX(INDIRECT(\"Product_List\"),ROWS($88:115))=\"\",\"\",INDEX(INDIRECT(\"Product_List\"),ROWS($88:115)))","v":"28-ขนมปังไส้สังขยามะพร้าว"},{"$f":"ยอดยกมา","v":0},null,null,null,null,null,null,0,null,{"$f":"INDIRECT(ADDRESS(ROW(A$80),ROW()-ROW(A$80)+(ROWS($88:115)-1)*2-1,4))","v":0},null,0,null,0,null,null,null,0,null,0,null,null,null,null,null,{"$f":"INDIRECT(ADDRESS(ROW(A$80),ROW()-ROW(A$80)+(ROWS($88:115)-1)*2,4))","v":0},0,null,0,{"$f":"INDIRECT(ADDRESS(ROW(A$80),ROW()-ROW(A$80)+(ROWS($88:115)-1)*2+1,4))","v":0}]
[{"$f":"IF(B116=\"\",0,INDEX(Price_List,ROWS($88:116)))","v":10},{"$f":"IF($C116=\"\",\"\",COUNTA($C$88:$C116))","v":29},{"$f":"IF(INDEX(INDIRECT(\"Product_List\"),ROWS($88:116))=\"\",\"\",INDEX(INDIRECT(\"Product_List\"),ROWS($88:116)))","v":"29-ขนมปังไส้ครีมชาไทย"},{"$f":"ยอดยกมา","v":0},null,null,null,null,null,null,0,null,{"$f":"INDIRECT(ADDRESS(ROW(A$80),ROW()-ROW(A$80)+(ROWS($88:116)-1)*2-1,4))","v":0},null,0,null,0,null,null,null,0,null,0,null,null,null,null,null,{"$f":"INDIRECT(ADDRESS(ROW(A$80),ROW()-ROW(A$80)+(ROWS($88:116)-1)*2,4))","v":0},0,null,0,{"$f":"INDIRECT(ADDRESS(ROW(A$80),ROW()-ROW(A$80)+(ROWS($88:116)-1)*2+1,4))","v":0}]
[{"$f":"IF(B117=\"\",0,INDEX(Price_List,ROWS($88:117)))","v":15},{"$f":"IF($C117=\"\",\"\",COUNTA($C$88:$C117))","v":30},{"$f":"IF(INDEX(INDIRECT(\"Product_List\"),ROWS($88:117))=\"\",\"\",INDEX(INDIRECT(\"Product_List\"),ROWS($88:117)))","v":"30-ขนมปังโรลมันม่วง"},{"$f":"ยอดยกมา","v":0},null,null,null,null,null,null,0,null,{"$f":"INDIRECT(ADDRESS(ROW(A$80),ROW()-ROW(A$80)+(ROWS($88:117)-1)*2-1,4))","v":0},null,0,null,0,null,null,null,0,null,0,null,null,null,null,null,{"$f":"INDIRECT(ADDRESS(ROW(A$80),ROW()-ROW(A$80)+(ROWS($88:117)-1)*2,4))","v":0},0,null,0,{"$f":"INDIRECT(ADDRESS(ROW(A$80),ROW()-ROW(A$80)+(ROWS($88:117)-1)*2+1,4))","v":0}]
[{"$f":"IF(B118=\"\",0,INDEX(Price_List,ROWS($88:118)))","v":15},{"$f":"IF($C118=\"\",\"\",COUNTA($C$88:$C118))","v":31},{"$f":"IF(INDEX(INDIRECT(\"Product_List\"),ROWS($88:118))=\"\",\"\",INDEX(INDIRECT(\"Product_List\"),ROWS($88:118)))","v":"31-ขนมปังโรลช็อกโกแลต"},{"$f":"ยอดยกมา","v":0},null,null,null,null,null,null,0,null,{"$f":"INDIRECT(ADDRESS(ROW(A$80),ROW()-ROW(A$80)+(ROWS($88:118)-1)*2-1,4))","v":0},null,0,null,0,null,null,null,0,null,0,null,null,null,null,null,{"$f":"INDIRECT(ADDRESS(ROW(A$80),ROW()-ROW(A$80)+(ROWS($88:118)-1)*2,4))","v":0},0,null,0,{"$f":"INDIRECT(ADDRESS(ROW(A$80),ROW()-ROW(A$80)+(ROWS($88:118)-1)*2+1,4))","v":0}]
[{"$f":"IF(B119=\"\",0,INDEX(Price_List,ROWS($88:119)))","v":16},{"$f":"IF($C119=\"\",\"\",COUNTA($C$88:$C119))","v":32},{"$f":"IF(INDEX(INDIRECT(\"Product_List\"),ROWS($88:119))=\"\",\"\",INDEX(INDIRECT(\"Product_List\"),ROWS($88:119)))","v":"32-ขนมปังชนิดแผ่น(155กรัม)"},{"$f":"ยอดยกมา","v":0},null,null,null,null,null,null,0,null,{"$f":"INDIRECT(ADDRESS(ROW(A$80),ROW()-ROW(A$80)+(ROWS($88:119)-1)*2-1,4))","v":0},null,0,null,0,null,null,null,0,null,0,null,null,null,null,null,{"$f":"INDIRECT(ADDRESS(ROW(A$80),ROW()-ROW(A$80)+(ROWS($88:119)-1)*2,4))","v":0},0,null,0,{"$f":"INDIRECT(ADDRESS(ROW(A$80),ROW()-ROW(A$80)+(ROWS($88:119)-1)*2+1,4))","v":0}]
[{"$f":"IF(B120=\"\",0,INDEX(Price_List,ROWS($88:120)))","v":15},{"$f":"IF($C120=\"\",\"\",COUNTA($C$88:$C120))","v":33},{"$f":"IF(INDEX(INDIRECT(\"Product_List\"),ROWS($88:120))=\"\",\"\",INDEX(INDIRECT(\"Product_List\"),ROWS($88:120)))","v":"33-ขนมปังโรลเผือก"},{"$f":"ยอดยกมา","v":0},null,null,null,null,null,null,0,null,{"$f":"INDIRECT(ADDRESS(ROW(A$80),ROW()-ROW(A$80)+(ROWS($88:120)-1)*2-1,4))","v":0},null,0,null,0,null,null,null,0,null,0,null,null,null,null,null,{"$f":"INDIRECT(ADDRESS(ROW(A$80),ROW()-ROW(A$80)+(ROWS($88:120)-1)*2,4))","v":0},0,null,0,{"$f":"INDIRECT(ADDRESS(ROW(A$80),ROW()-ROW(A$80)+(ROWS($88:120)-1)*2+1,4))","v":0}]
[{"$f":"IF(B121=\"\",0,INDEX(Price_List,ROWS($88:121)))","v":15},{"$f":"IF($C121=\"\",\"\",COUNTA($C$88:$C121))","v":34},{"$f":"IF(INDEX(INDIRECT(\"Product_List\"),ROWS($88:121))=\"\",\"\",INDEX(INDIRECT(\"Product_List\"),ROWS($88:121)))","v":"34-ขนมปังไก่หยองน้ำสลัด Mini"},{"$f":"ยอดยกมา","v":0},null,null,null,null,null,null,0,null,{"$f":"INDIRECT(ADDRESS(ROW(A$80),ROW()-ROW(A$80)+(ROWS($88:121)-1)*2-1,4))","v":0},null,0,null,0,null,null,null,0,null,0,null,null,null,null,null,{"$f":"INDIRECT(ADDRESS(ROW(A$80),ROW()-ROW(A$80)+(ROWS($88:121)-1)*2,4))","v":0},0,null,0,{"$f":"INDIRECT(ADDRESS(ROW(A$80),ROW()-ROW(A$80)+(ROWS($88:121)-1)*2+1,4))","v":0}]
[{"$f":"IF(B122=\"\",0,INDEX(Price_List,ROWS($88:122)))","v":10},{"$f":"IF($C122=\"\",\"\",COUNTA($C$88:$C122))","v":35},{"$f":"IF(INDEX(INDIRECT(\"Product_List\"),ROWS($88:122))=\"\",\"\",INDEX(INDIRECT(\"Product_List\"),ROWS($88:122)))","v":"35-ขนมปังไส้ช็อกโกแลต"},{"$f":"ยอดยกมา","v":0},null,null,null,null,null,null,0,null,{"$f":"INDIRECT(ADDRESS(ROW(A$80),ROW()-ROW(A$80)+(ROWS($88:122)-1)*2-1,4))","v":0},null,0,null,0,null,null,null,0,null,0,null,null,null,null,null,{"$f":"INDIRECT(ADDRESS(ROW(A$80),ROW()-ROW(A$80)+(ROWS($88:122)-1)*2,4))","v":0},0,null,0,{"$f":"INDIRECT(ADDRESS(ROW(A$80),ROW()-ROW(A$80)+(ROWS($88:122)-1)*2+1,4))","v":0}]
[{"$f":"IF(B123=\"\",0,INDEX(Price_List,ROWS($88:123)))","v":10},{"$f":"IF($C123=\"\",\"\",COUNTA($C$88:$C123))","v":36},{"$f":"IF(INDEX(INDIRECT(\"Product_List\"),ROWS($88:123))=\"\",\"\",INDEX(INDIRECT(\"Product_List\"),ROWS($88:123)))","v":"36-ขนมปังไส้ครีมสังขยาไข่"},{"$f":"ยอดยกมา","v":0},null,null,null,null,null,null,0,null,{"$f":"INDIRECT(ADDRESS(ROW(A$80),ROW()-ROW(A$80)+(ROWS($88:123)-1)*2-1,4))","v":0},null,0,null,0,null,null,null,0,null,0,null,null,null,null,null,{"$f":"INDIRECT(ADDRESS(ROW(A$80),ROW()-ROW(A$80)+(ROWS($88:123)-1)*2,4))","v":0},0,null,0,{"$f":"INDIRECT(ADDRESS(ROW(A$80),ROW()-ROW(A$80)+(ROWS($88:123)-1)*2+1,4))","v":0}]
[{"$f":"IF(B124=\"\",0,INDEX(Price_List,ROWS($88:124)))","v":20},{"$f":"IF($C124=\"\",\"\",COUNTA($C$88:$C124))","v":37},{"$f":"IF(INDEX(INDIRECT(\"Product_List\"),ROWS($88:124))=\"\",\"\",INDEX(INDIRECT(\"Product_List\"),ROWS($88:124)))","v":"37-ขนมปังพิซซ่าฮาวายเอี้ยน"},{"$f":"ยอดยกมา","v":0},null,null,null,null,null,null,0,null,{"$f":"INDIRECT(ADDRESS(ROW(A$80),ROW()-ROW(A$80)+(ROWS($88:124)-1)*2-1,4))","v":0},null,0,null,0,null,null,null,0,null,0,null,null,null,null,null,{"$f":"INDIRECT(ADDRESS(ROW(A$80),ROW()-ROW(A$80)+(ROWS($88:124)-1)*2,4))","v":0},0,null,0,{"$f":"INDIRECT(ADDRESS(ROW(A$80),ROW()-ROW(A$80)+(ROWS($88:124)-1)*2+1,4))","v":0}]
[{"$f":"IF(B125=\"\",0,INDEX(Price_List,ROWS($88:125)))","v":20},{"$f":"IF($C125=\"\",\"\",COUNTA($C$88:$C125))","v":38},{"$f":"IF(INDEX(INDIRECT(\"Product_List\"),ROWS($88:125))=\"\",\"\",INDEX(INDIRECT(\"Product_List\"),ROWS($88:125)))","v":"38-ครัวซองต์หมูหยองน้ำสลัด"},{"$f":"ยอดยกมา","v":0},null,null,null,null,null,null,0,null,{"$f":"INDIRECT(ADDRESS(ROW(A$80),ROW()-ROW(A$80)+(ROWS($88:125)-1)*2-1,4))","v":0},null,0,null,0,null,null,null,0,null,0,null,null,null,null,null,{"$f":"INDIRECT(ADDRESS(ROW(A$80),ROW()-ROW(A$80)+(ROWS($88:125)-1)*2,4))","v":0},0,null,0,{"$f":"INDIRECT(ADDRESS(ROW(A$80),ROW()-ROW(A$80)+(ROWS($88:125)-1)*2+1,4))","v":0}]
[{"$f":"IF(B126=\"\",0,INDEX(Price_List,ROWS($88:126)))","v":15},{"$f":"IF($C126=\"\",\"\",COUNTA($C$88:$C126))","v":39},{"$f":"IF(INDEX(INDIRECT(\"Product_List\"),ROWS($88:126))=\"\",\"\",INDEX(INDIRECT(\"Product_List\"),ROWS($88:126)))","v":"39-แพนเบรดไส้เผือก"},{"$f":"ยอดยกมา","v":0},null,null,null,null,null,null,0,null,{"$f":"INDIRECT(ADDRESS(ROW(A$80),ROW()-ROW(A$80)+(ROWS($88:126)-1)*2-1,4))","v":0},null,0,null,0,null,null,null,0,null,0,null,null,null,null,null,{"$f":"INDIRECT(ADDRESS(ROW(A$80),ROW()-ROW(A$80)+(ROWS($88:126)-1)*2,4))","v":0},0,null,0,{"$f":"INDIRECT(ADDRESS(ROW(A$80),ROW()-ROW(A$80)+(ROWS($88:126)-1)*2+1,4))","v":0}]
[{"$f":"IF(B127=\"\",0,INDEX(Price_List,ROWS($88:127)))","v":15},{"$f":"IF($C127=\"\",\"\",COUNTA($C$88:$C127))","v":40},{"$f":"IF(INDEX(INDIRECT(\"Product_List\"),ROWS($88:127))=\"\",\"\",INDEX(INDIRECT(\"Product_List\"),ROWS($88:127)))","v":"40-แพนเบรดไส้ถั่วแดง"},{"$f":"ยอดยกมา","v":0},null,null,null,null,null,null,0,null,{"$f":"INDIRECT(ADDRESS(ROW(A$80),ROW()-ROW(A$80)+(ROWS($88:127)-1)*2-1,4))","v":0},null,0,null,0,null,null,null,0,null,0,null,null,null,null,null,{"$f":"INDIRECT(ADDRESS(ROW(A$80),ROW()-ROW(A$80)+(ROWS($88:127)-1)*2,4))","v":0},0,null,0,{"$f":"INDIRECT(ADDRESS(ROW(A$80),ROW()-ROW(A$80)+(ROWS($88:127)-1)*2+1,4))","v":0}]
[{"$f":"IF(B128=\"\",0,INDEX(Price_List,ROWS($88:128)))","v":12},{"$f":"IF($C128=\"\",\"\",COUNTA($C$88:$C128))","v":41},{"$f":"IF(INDEX(INDIRECT(\"Product_List\"),ROWS($88:128))=\"\",\"\",INDEX(INDIRECT(\"Product_List\"),ROWS($88:128)))","v":"41-ขนมปังกรอบเนยน้ำตาล(30กรัม)"},{"$f":"ยอดยกมา","v":0},null,null,null,null,null,null,0,null,{"$f":"INDIRECT(ADDRESS(ROW(A$80),ROW()-ROW(A$80)+(ROWS($88:128)-1)*2-1,4))","v":0},null,0,null,0,null,null,null,0,null,0,null,null,null,null,null,{"$f":"INDIRECT(ADDRESS(ROW(A$80),ROW()-ROW(A$80)+(ROWS($88:128)-1)*2,4))","v":0},0,null,0,{"$f":"INDIRECT(ADDRESS(ROW(A$80),ROW()-ROW(A$80)+(ROWS($88:128)-1)*2+1,4))","v":0}]
[{"$f":"IF(B129=\"\",0,INDEX(Price_List,ROWS($88:129)))","v":18},{"$f":"IF($C129=\"\",\"\",COUNTA($C$88:$C129))","v":42},{"$f":"IF(INDEX(INDIRECT(\"Product_List\"),ROWS($88:129))=\"\",\"\",INDEX(INDIRECT(\"Product_List\"),ROWS($88:129)))","v":"42-ขนมปังชนิดแผ่นโฮลวีต"},{"$f":"ยอดยกมา","v":0},null,null,null,null,null,null,0,null,{"$f":"INDIRECT(ADDRESS(ROW(A$80),ROW()-ROW(A$80)+(ROWS($88:129)-1)*2-1,4))","v":0},null,0,null,0,null,null,null,0,null,0,null,null,null,null,null,{"$f":"INDIRECT(ADDRESS(ROW(A$80),ROW()-ROW(A$80)+(ROWS($88:129)-1)*2,4))","v":0},0,null,0,{"$f":"INDIRECT(ADDRESS(ROW(A$80),ROW()-ROW(A$80)+(ROWS($88:129)-1)*2+1,4))","v":0}]
[{"$f":"IF(B130=\"\",0,INDEX(Price_List,ROWS($88:130)))","v":12},{"$f":"IF($C130=\"\",\"\",COUNTA($C$88:$C130))","v":43},{"$f":"IF(INDEX(INDIRECT(\"Product_List\"),ROWS($88:130))=\"\",\"\",INDEX(INDIRECT(\"Product_List\"),ROWS($88:130)))","v":"43-เค้กโรลใบเตย"},{"$f":"ยอดยกมา","v":0},null,null,null,null,null,null,{"$f":"D130+E130+J130-I130+H130","v":0},null,{"$f":"INDIRECT(ADDRESS(ROW(A$80),ROW()-ROW(A$80)+(ROWS($88:130)-1)*2-1,4))","v":0},null,{"$f":"F130+G130+M130+J130-K130","v":0},null,{"$f":"O130*A130","v":0},null,null,null,{"$f":"D130+E130-F130-G130","v":0},null,{"$f":"U130*6%+U130","v":0},null,null,null,null,null,{"$f":"INDIRECT(ADDRESS(ROW(A$80),ROW()-ROW(A$80)+(ROWS($88:130)-1)*2,4))","v":0},0,null,0,{"$f":"INDIRECT(ADDRESS(ROW(A$80),ROW()-ROW(A$80)+(ROWS($88:130)-1)*2+1,4))","v":0}]
[{"$f":"IF(B131=\"\",0,INDEX(Price_List,ROWS($88:131)))","v":12},{"$f":"IF($C131=\"\",\"\",COUNTA($C$88:$C131))","v":44},{"$f":"IF(INDEX(INDIRECT(\"Product_List\"),ROWS($88:131))=\"\",\"\",INDEX(INDIRECT(\"Product_List\"),ROWS($88:131)))","v":"44-ขนมโมจิไส้ถั่วดำ"},{"$f":"ยอดยกมา","v":0},null,null,null,null,null,null,{"$f":"D131+E131+J131-I131+H131","v":0},null,{"$f":"INDIRECT(ADDRESS(ROW(A$80),ROW()-ROW(A$80)+(ROWS($88:131)-1)*2-1,4))","v":0},null,{"$f":"F131+G131+M131+J131-K131","v":0},null,{"$f":"O131*A131","v":0},null,null,null,{"$f":"D131+E131-F131-G131","v":0},null,{"$f":"U131*6%+U131","v":0},null,null,null,null,null,{"$f":"INDIRECT(ADDRESS(ROW(A$80),ROW()-ROW(A$80)+(ROWS($88:131)-1)*2,4))","v":0},0,null,0,{"$f":"INDIRECT(ADDRESS(ROW(A$80),ROW()-ROW(A$80)+(ROWS($88:131)-1)*2+1,4))","v":0}]
[{"$f":"IF(B132=\"\",0,INDEX(Price_List,ROWS($88:132)))","v":25},{"$f":"IF($C132=\"\",\"\",COUNTA($C$88:$C132))","v":45},{"$f":"IF(INDEX(INDIRECT(\"Product_List\"),ROWS($88:132))=\"\",\"\",INDEX(INDIRECT(\"Product_List\"),ROWS($88:132)))","v":"45-ครัวซองต์ไส้กรอกชีส"},{"$f":"ยอดยกมา","v":0},null,null,null,null,null,null,{"$f":"D132+E132+J132-I132+H132","v":0},null,{"$f":"INDIRECT(ADDRESS(ROW(A$80),ROW()-ROW(A$80)+(ROWS($88:132)-1)*2-1,4))","v":0},null,{"$f":"F132+G132+M132+J132-K132","v":0},null,{"$f":"O132*A132","v":0},null,null,null,{"$f":"D132+E132-F132-G132","v":0},null,{"$f":"U132*6%+U132","v":0},null,null,null,null,null,{"$f":"INDIRECT(ADDRESS(ROW(A$80),ROW()-ROW(A$80)+(ROWS($88:132)-1)*2,4))","v":0},0,null,0,{"$f":"INDIRECT(ADDRESS(ROW(A$80),ROW()-ROW(A$80)+(ROWS($88:132)-1)*2+1,4))","v":0}]
[{"$f":"IF(B133=\"\",0,INDEX(Price_List,ROWS($88:133)))","v":12},{"$f":"IF($C133=\"\",\"\",COUNTA($C$88:$C133))","v":46},{"$f":"IF(INDEX(INDIRECT(\"Product_List\"),ROWS($88:133))=\"\",\"\",INDEX(INDIRECT(\"Product_List\"),ROWS($88:133)))","v":"46-ขนมเปี๊ยะไส้ถั่ว"},{"$f":"ยอดยกมา","v":0},null,null,null,null,null,null,0,null,{"$f":"INDIRECT(ADDRESS(ROW(A$80),ROW()-ROW(A$80)+(ROWS($88:133)-1)*2-1,4))","v":0},null,0,null,0,null,null,null,0,null,0,null,null,null,null,null,{"$f":"INDIRECT(ADDRESS(ROW(A$80),ROW()-ROW(A$80)+(ROWS($88:133)-1)*2,4))","v":0},0,null,0,{"$f":"INDIRECT(ADDRESS(ROW(A$80),ROW()-ROW(A$80)+(ROWS($88:133)-1)*2+1,4))","v":0}]
[{"$f":"IF(B134=\"\",0,INDEX(Price_List,ROWS($88:134)))","v":12},{"$f":"IF($C134=\"\",\"\",COUNTA($C$88:$C134))","v":47},{"$f":"IF(INDEX(INDIRECT(\"Product_List\"),ROWS($88:134))=\"\",\"\",INDEX(INDIRECT(\"Product_List\"),ROWS($88:134)))","v":"47-ขนมเปี๊ยะไส้ฟัก"},{"$f":"ยอดยกมา","v":0},null,null,null,null,null,null,{"$f":"D134+E134+J134-I134+H134","v":0},null,{"$f":"INDIRECT(ADDRESS(ROW(A$80),ROW()-ROW(A$80)+(ROWS($88:134)-1)*2-1,4))","v":0},null,{"$f":"F134+G134+M134+J134-K134","v":0},null,{"$f":"O134*A134","v":0},null,null,null,{"$f":"D134+E134-F134-G134","v":0},null,{"$f":"U134*6%+U134","v":0},null,null,null,null,null,{"$f":"INDIRECT(ADDRESS(ROW(A$80),ROW()-ROW(A$80)+(ROWS($88:134)-1)*2,4))","v":0},0,null,0,{"$f":"INDIRECT(ADDRESS(ROW(A$80),ROW()-ROW(A$80)+(ROWS($88:134)-1)*2+1,4))","v":0}]
[{"$f":"IF(B135=\"\",0,INDEX(Price_List,ROWS($88:135)))","v":12},{"$f":"IF($C135=\"\",\"\",COUNTA($C$88:$C135))","v":48},{"$f":"IF(INDEX(INDIRECT(\"Product_List\"),ROWS($88:135))=\"\",\"\",INDEX(INDIRECT(\"Product_List\"),ROWS($88:135)))","v":"48-มังกี้เค้ก"},{"$f":"ยอดยกมา","v":0},null,null,null,null,null,null,0,null,{"$f":"INDIRECT(ADDRESS(ROW(A$80),ROW()-ROW(A$80)+(ROWS($88:135)-1)*2-1,4))","v":0},null,0,null,0,null,null,null,0,null,0,null,null,null,null,null,{"$f":"INDIRECT(ADDRESS(ROW(A$80),ROW()-ROW(A$80)+(ROWS($88:135)-1)*2,4))","v":0},0,null,0,{"$f":"INDIRECT(ADDRESS(ROW(A$80),ROW()-ROW(A$80)+(ROWS($88:135)-1)*2+1,4))","v":0}]
["รวม",null,null,{"$f":"SUM(D$88:D$135)","v":0},0,0,0,0,0,0,0,null,{"$f":"SUM(M$88:M$135)","v":0},null,null,null,{"$f":"$AP$98","v":0},null,"บาท",null,{"$f":"SUM(U$88:U$135)","v":0},null,{"$f":"SUM(W$88:W$135)","v":0},null,null,null,null,null,{"$f":"SUM(AC$88:AC$135)","v":0},{"$f":"SUM(AD$88:AD$135)","v":0},{"$f":"SUM(AE$88:AE$135)","v":0},{"$f":"SUM(AF$88:AF$135)","v":0},{"$f":"SUM(AG$88:AG$135)","v":0}]
["เลขที่ไมล์ เวลาออกทำงาน",null,null,{"$f":"$BF$3","v":0},null,"Km","น้ำหนักของเสีย"]
["เลขที่ไมล์ เวลากลับ",null,null,{"$f":"$BF$4","v":0},null,"Km",{"$f":"$AA$5","v":0},null,"KG"]
["เวลากลับถึงสำนักงาน",null,null,{"$f":"$BF$1","v":"00:00:00"},null,"น."]
["เติมน้ำมัน",null,null,{"$f":"$AX3","v":0},null,"บาท"]
["จำนวนน้ำมัน",null,null,{"$f":"$AX4","v":0},null,"ลิตร"]
["ยอดรวมต้นทุนสาขา",null,null,{"$f":"$AX5","v":0},null,"บาท"]

{"sheet":"รอบวิ่ง","index":36,"n_rows":288,"n_cols":73,"rows_kept":288,"cut":false,"hidden":false,"merged":[[287,3,287,11],[281,58,282,58],[284,3,284,11],[285,3,285,11],[286,3,286,11],[281,3,281,11],[283,3,283,11],[281,59,282,59],[282,3,282,11],[2,58,4,58],[2,59,4,59],[2,54,4,54],[2,56,4,56],[2,57,4,57],[2,55,4,55],[281,56,282,56],[281,57,282,57],[0,12,0,13],[281,0,281,1],[0,1,0,8],[3,0,4,0],[3,1,4,1],[3,2,4,2],[0,9,0,11],[3,10,4,10],[2,3,2,10],[2,0,2,1],[2,11,2,53],[0,14,0,16],[11,65,11,67],[0,62,0,71],[2,63,2,64],[3,63,3,64],[3,65,3,66],[3,67,3,68],[3,69,3,70],[3,71,3,72]]}
["ใส่ข้อมูล!A1",">>> ใบรายงานสรุปรอบวิ่งร้านค้า",null,null,null,null,null,null,null,{"$f":"ใส่ข้อมูล!E3&\"-\"&ใส่ข้อมูล!G3","v":"KB-01"},null,null,"สาขา",null,{"$f":"IF(ใส่ข้อมูล!E3=\"\",\"-\",VLOOKUP(ใส่ข้อมูล!E3,Branches,2,0))","v":"กบินทร์บุรี"},null,null,null,null,null,null,null,null,null,null,null,null,null,null,null,null,null,null,null,null,null,null,null,null,null,null,null,null,null,null,null,null,null,null,null,null,null,null,null,null,null,null,null,null,null,null,null,"ตารางสรุปการเข้าร้านรายสัปดาห์"]
[null,null,null,null,null,null,null,null,null,null,null,null,null,null,null,null,null,null,null,null,null,null,null,null,null,null,null,null,null,null,null,null,null,null,null,null,null,null,null,null,null,null,null,null,null,null,null,null,null,null,null,null,null,null,null,null,null,null,null,{"$f":"COUNTA(B$6:B$281)","v":0}]
["ประจำเดือน",null,{"$f":"ใส่ข้อมูล!F2&\" \"&ใส่ข้อมูล!G2","v":"พฤษภาคม 2568"},"รอบการเข้าร้าน",null,null,null,null,null,null,null,{"$f":"\"พนักงานขายวิ่งจริงเดือน \"&ใส่ข้อมูล!F2","v":"พนักงานขายวิ่งจริงเดือน พฤษภาคม"},null,null,null,null,null,null,null,null,null,null,null,null,null,null,null,null,null,null,null,null,null,null,null,null,null,null,null,null,null,null,null,null,null,null,null,null,null,null,null,null,null,null,"รอบวิ่ง","รอบเข้าตามแผนวิ่ง","ขายเงินเชื่อ","ขายเงินสด","ยอดขายรวม / เดือน","ยอดขายเฉลี่ย / บิล",null,null,null,"จำนวนร้านทั้งหมด ",null,{"$f":"BH2","v":0},"ร้าน"]
["ลำดับ","รหัสร้านค้า","ชื่อ ร้านค้า",{"$f":"SUM(D6:D281)","v":0},{"$f":"SUM(E6:E281)","v":0},0,0,0,0,0,"รวม /สัปดาห์","กลุ่ม",{"$f":"IF(OR(M5=\"Bills\",COLUMNS($K:K)<WEEKDAY(Firts_DateOfMonth,2),COUNT($L$4:L$4)+1>LastDateOfMonth),\"\",IF(COLUMNS($K:K)>=WEEKDAY(Firts_DateOfMonth,2),COUNT($L$4:L$4)+1))","v":""},{"$f":"IF(OR(N5=\"Bills\",COLUMNS($K:L)<WEEKDAY(Firts_DateOfMonth,2),COUNT($L$4:M$4)+1>LastDateOfMonth),\"\",IF(COLUMNS($K:L)>=WEEKDAY(Firts_DateOfMonth,2),COUNT($L$4:M$4)+1))","v":""},{"$f":"IF(OR(O5=\"Bills\",COLUMNS($K:M)<WEEKDAY(Firts_DateOfMonth,2),COUNT($L$4:N$4)+1>LastDateOfMonth),\"\",IF(COLUMNS($K:M)>=WEEKDAY(Firts_DateOfMonth,2),COUNT($L$4:N$4)+1))","v":""},{"$f":"IF(OR(P5=\"Bills\",COLUMNS($K:N)<WEEKDAY(Firts_DateOfMonth,2),COUNT($L$4:O$4)+1>LastDateOfMonth),\"\",IF(COLUMNS($K:N)>=WEEKDAY(Firts_DateOfMonth,2),COUNT($L$4:O$4)+1))","v":1},{"$f":"IF(OR(Q5=\"Bills\",COLUMNS($K:O)<WEEKDAY(Firts_DateOfMonth,2),COUNT($L$4:P$4)+1>LastDateOfMonth),\"\",IF(COLUMNS($K:O)>=WEEKDAY(Firts_DateOfMonth,2),COUNT($L$4:P$4)+1))","v":2},{"$f":"IF(OR(R5=\"Bills\",COLUMNS($K:P)<WEEKDAY(Firts_DateOfMonth,2),COUNT($L$4:Q$4)+1>LastDateOfMonth),\"\",IF(COLUMNS($K:P)>=WEEKDAY(Firts_DateOfMonth,2),COUNT($L$4:Q$4)+1))","v":3},{"$f":"IF(OR(S5=\"Bills\",COLUMNS($K:Q)<WEEKDAY(Firts_DateOfMonth,2),COUNT($L$4:R$4)+1>LastDateOfMonth),\"\",IF(COLUMNS($K:Q)>=WEEKDAY(Firts_DateOfMonth,2),COUNT($L$4:R$4)+1))","v":4},{"$f":"IF(OR(T5=\"Bills\",COLUMNS($K:R)<WEEKDAY(Firts_DateOfMonth,2),COUNT($L$4:S$4)+1>LastDateOfMonth),\"\",IF(COLUMNS($K:R)>=WEEKDAY(Firts_DateOfMonth,2),COUNT($L$4:S$4)+1))","v":""},{"$f":"IF(OR(U5=\"Bills\",COLUMNS($K:S)<WEEKDAY(Firts_DateOfMonth,2),COUNT($L$4:T$4)+1>LastDateOfMonth),\"\",IF(COLUMNS($K:S)>=WEEKDAY(Firts_DateOfMonth,2),COUNT($L$4:T$4)+1))","v":5},{"$f":"IF(OR(V5=\"Bills\",COLUMNS($K:T)<WEEKDAY(Firts_DateOfMonth,2),COUNT($L$4:U$4)+1>LastDateOfMonth),\"\",IF(COLUMNS($K:T)>=WEEKDAY(Firts_DateOfMonth,2),COUNT($L$4:U$4)+1))","v":6},{"$f":"IF(OR(W5=\"Bills\",COLUMNS($K:U)<WEEKDAY(Firts_DateOfMonth,2),COUNT($L$4:V$4)+1>LastDateOfMonth),\"\",IF(COLUMNS($K:U)>=WEEKDAY(Firts_DateOfMonth,2),COUNT($L$4:V$4)+1))","v":7},{"$f":"IF(OR(X5=\"Bills\",COLUMNS($K:V)<WEEKDAY(Firts_DateOfMonth,2),COUNT($L$4:W$4)+1>LastDateOfMonth),\"\",IF(COLUMNS($K:V)>=WEEKDAY(Firts_DateOfMonth,2),COUNT($L$4:W$4)+1))","v":8},{"$f":"IF(OR(Y5=\"Bills\",COLUMNS($K:W)<WEEKDAY(Firts_DateOfMonth,2),COUNT($L$4:X$4)+1>LastDateOfMonth),\"\",IF(COLUMNS($K:W)>=WEEKDAY(Firts_DateOfMonth,2),COUNT($L$4:X$4)+1))","v":9},{"$f":"IF(OR(Z5=\"Bills\",COLUMNS($K:X)<WEEKDAY(Firts_DateOfMonth,2),COUNT($L$4:Y$4)+1>LastDateOfMonth),\"\",IF(COLUMNS($K:X)>=WEEKDAY(Firts_DateOfMonth,2),COUNT($L$4:Y$4)+1))","v":10},{"$f":"IF(OR(AA5=\"Bills\",COLUMNS($K:Y)<WEEKDAY(Firts_DateOfMonth,2),COUNT($L$4:Z$4)+1>LastDateOfMonth),\"\",IF(COLUMNS($K:Y)>=WEEKDAY(Firts_DateOfMonth,2),COUNT($L$4:Z$4)+1))","v":11},{"$f":"IF(OR(AB5=\"Bills\",COLUMNS($K:Z)<WEEKDAY(Firts_DateOfMonth,2),COUNT($L$4:AA$4)+1>LastDateOfMonth),\"\",IF(COLUMNS($K:Z)>=WEEKDAY(Firts_DateOfMonth,2),COUNT($L$4:AA$4)+1))","v":""},{"$f":"IF(OR(AC5=\"Bills\",COLUMNS($K:AA)<WEEKDAY(Firts_DateOfMonth,2),COUNT($L$4:AB$4)+1>LastDateOfMonth),\"\",IF(COLUMNS($K:AA)>=WEEKDAY(Firts_DateOfMonth,2),COUNT($L$4:AB$4)+1))","v":12},{"$f":"IF(OR(AD5=\"Bills\",COLUMNS($K:AB)<WEEKDAY(Firts_DateOfMonth,2),COUNT($L$4:AC$4)+1>LastDateOfMonth),\"\",IF(COLUMNS($K:AB)>=WEEKDAY(Firts_DateOfMonth,2),COUNT($L$4:AC$4)+1))","v":13},{"$f":"IF(OR(AE5=\"Bills\",COLUMNS($K:AC)<WEEKDAY(Firts_DateOfMonth,2),COUNT($L$4:AD$4)+1>LastDateOfMonth),\"\",IF(COLUMNS($K:AC)>=WEEKDAY(Firts_DateOfMonth,2),COUNT($L$4:AD$4)+1))","v":14},{"$f":"IF(OR(AF5=\"Bills\",COLUMNS($K:AD)<WEEKDAY(Firts_DateOfMonth,2),COUNT($L$4:AE$4)+1>LastDateOfMonth),\"\",IF(COLUMNS($K:AD)>=WEEKDAY(Firts_DateOfMonth,2),COUNT($L$4:AE$4)+1))","v":15},{"$f":"IF(OR(AG5=\"Bills\",COLUMNS($K:AE)<WEEKDAY(Firts_DateOfMonth,2),COUNT($L$4:AF$4)+1>LastDateOfMonth),\"\",IF(COLUMNS($K:AE)>=WEEKDAY(Firts_DateOfMonth,2),COUNT($L$4:AF$4)+1))","v":16},{"$f":"IF(OR(AH5=\"Bills\",COLUMNS($K:AF)<WEEKDAY(Firts_DateOfMonth,2),COUNT($L$4:AG$4)+1>LastDateOfMonth),\"\",IF(COLUMNS($K:AF)>=WEEKDAY(Firts_DateOfMonth,2),COUNT($L$4:AG$4)+1))","v":17},{"$f":"IF(OR(AI5=\"Bills\",COLUMNS($K:AG)<WEEKDAY(Firts_DateOfMonth,2),COUNT($L$4:AH$4)+1>LastDateOfMonth),\"\",IF(COLUMNS($K:AG)>=WEEKDAY(Firts_DateOfMonth,2),COUNT($L$4:AH$4)+1))","v":18},{"$f":"IF(OR(AJ5=\"Bills\",COLUMNS($K:AH)<WEEKDAY(Firts_DateOfMonth,2),COUNT($L$4:AI$4)+1>LastDateOfMonth),\"\",IF(COLUMNS($K:AH)>=WEEKDAY(Firts_DateOfMonth,2),COUNT($L$4:AI$4)+1))","v":""},{"$f":"IF(OR(AK5=\"Bills\",COLUMNS($K:AI)<WEEKDAY(Firts_DateOfMonth,2),COUNT($L$4:AJ$4)+1>LastDateOfMonth),\"\",IF(COLUMNS($K:AI)>=WEEKDAY(Firts_DateOfMonth,2),COUNT($L$4:AJ$4)+1))","v":19},{"$f":"IF(OR(AL5=\"Bills\",COLUMNS($K:AJ)<WEEKDAY(Firts_DateOfMonth,2),COUNT($L$4:AK$4)+1>LastDateOfMonth),\"\",IF(COLUMNS($K:AJ)>=WEEKDAY(Firts_DateOfMonth,2),COUNT($L$4:AK$4)+1))","v":20},{"$f":"IF(OR(AM5=\"Bills\",COLUMNS($K:AK)<WEEKDAY(Firts_DateOfMonth,2),COUNT($L$4:AL$4)+1>LastDateOfMonth),\"\",IF(COLUMNS($K:AK)>=WEEKDAY(Firts_DateOfMonth,2),COUNT($L$4:AL$4)+1))","v":21},{"$f":"IF(OR(AN5=\"Bills\",COLUMNS($K:AL)<WEEKDAY(Firts_DateOfMonth,2),COUNT($L$4:AM$4)+1>LastDateOfMonth),\"\",IF(COLUMNS($K:AL)>=WEEKDAY(Firts_DateOfMonth,2),COUNT($L$4:AM$4)+1))","v":22},{"$f":"IF(OR(AO5=\"Bills\",COLUMNS($K:AM)<WEEKDAY(Firts_DateOfMonth,2),COUNT($L$4:AN$4)+1>LastDateOfMonth),\"\",IF(COLUMNS($K:AM)>=WEEKDAY(Firts_DateOfMonth,2),COUNT($L$4:AN$4)+1))","v":23},{"$f":"IF(OR(AP5=\"Bills\",COLUMNS($K:AN)<WEEKDAY(Firts_DateOfMonth,2),COUNT($L$4:AO$4)+1>LastDateOfMonth),\"\",IF(COLUMNS($K:AN)>=WEEKDAY(Firts_DateOfMonth,2),COUNT($L$4:AO$4)+1))","v":24},{"$f":"IF(OR(AQ5=\"Bills\",COLUMNS($K:AO)<WEEKDAY(Firts_DateOfMonth,2),COUNT($L$4:AP$4)+1>LastDateOfMonth),\"\",IF(COLUMNS($K:AO)>=WEEKDAY(Firts_DateOfMonth,2),COUNT($L$4:AP$4)+1))","v":25},{"$f":"IF(OR(AR5=\"Bills\",COLUMNS($K:AP)<WEEKDAY(Firts_DateOfMonth,2),COUNT($L$4:AQ$4)+1>LastDateOfMonth),\"\",IF(COLUMNS($K:AP)>=WEEKDAY(Firts_DateOfMonth,2),COUNT($L$4:AQ$4)+1))","v":""},{"$f":"IF(OR(AS5=\"Bills\",COLUMNS($K:AQ)<WEEKDAY(Firts_DateOfMonth,2),COUNT($L$4:AR$4)+1>LastDateOfMonth),\"\",IF(COLUMNS($K:AQ)>=WEEKDAY(Firts_DateOfMonth,2),COUNT($L$4:AR$4)+1))","v":26},{"$f":"IF(OR(AT5=\"Bills\",COLUMNS($K:AR)<WEEKDAY(Firts_DateOfMonth,2),COUNT($L$4:AS$4)+1>LastDateOfMonth),\"\",IF(COLUMNS($K:AR)>=WEEKDAY(Firts_DateOfMonth,2),COUNT($L$4:AS$4)+1))","v":27},{"$f":"IF(OR(AU5=\"Bills\",COLUMNS($K:AS)<WEEKDAY(Firts_DateOfMonth,2),COUNT($L$4:AT$4)+1>LastDateOfMonth),\"\",IF(COLUMNS($K:AS)>=WEEKDAY(Firts_DateOfMonth,2),COUNT($L$4:AT$4)+1))","v":28},{"$f":"IF(OR(AV5=\"Bills\",COLUMNS($K:AT)<WEEKDAY(Firts_DateOfMonth,2),COUNT($L$4:AU$4)+1>LastDateOfMonth),\"\",IF(COLUMNS($K:AT)>=WEEKDAY(Firts_DateOfMonth,2),COUNT($L$4:AU$4)+1))","v":29},{"$f":"IF(OR(AW5=\"Bills\",COLUMNS($K:AU)<WEEKDAY(Firts_DateOfMonth,2),COUNT($L$4:AV$4)+1>LastDateOfMonth),\"\",IF(COLUMNS($K:AU)>=WEEKDAY(Firts_DateOfMonth,2),COUNT($L$4:AV$4)+1))","v":30},{"$f":"IF(OR(AX5=\"Bills\",COLUMNS($K:AV)<WEEKDAY(Firts_DateOfMonth,2),COUNT($L$4:AW$4)+1>LastDateOfMonth),\"\",IF(COLUMNS($K:AV)>=WEEKDAY(Firts_DateOfMonth,2),COUNT($L$4:AW$4)+1))","v":31},{"$f":"IF(OR(AY5=\"Bills\",COLUMNS($K:AW)<WEEKDAY(Firts_DateOfMonth,2),COUNT($L$4:AX$4)+1>LastDateOfMonth),\"\",IF(COLUMNS($K:AW)>=WEEKDAY(Firts_DateOfMonth,2),COUNT($L$4:AX$4)+1))","v":""},{"$f":"IF(OR(AZ5=\"Bills\",COLUMNS($K:AX)<WEEKDAY(Firts_DateOfMonth,2),COUNT($L$4:AY$4)+1>LastDateOfMonth),\"\",IF(COLUMNS($K:AX)>=WEEKDAY(Firts_DateOfMonth,2),COUNT($L$4:AY$4)+1))","v":""},{"$f":"IF(OR(BA5=\"Bills\",COLUMNS($K:AY)<WEEKDAY(Firts_DateOfMonth,2),COUNT($L$4:AZ$4)+1>LastDateOfMonth),\"\",IF(COLUMNS($K:AY)>=WEEKDAY(Firts_DateOfMonth,2),COUNT($L$4:AZ$4)+1))","v":""},{"$f":"IF(OR(BB5=\"Bills\",COLUMNS($K:AZ)<WEEKDAY(Firts_DateOfMonth,2),COUNT($L$4:BA$4)+1>LastDateOfMonth),\"\",IF(COLUMNS($K:AZ)>=WEEKDAY(Firts_DateOfMonth,2),COUNT($L$4:BA$4)+1))","v":""},null,null,null,null,null,null,null,null,null,"Week01",null,"Week02",null,"Week03",null,"Week04",null,"Week05"]
[null,null,null,"จ.","อ.","พ.","พฤ.","ศ.","ส.","อา.",null,"ลูกค้า","M","Tu","W","Th","F","Sa","S","Bills","M","Tu","W","Th","F","Sa","S","Bills","M","Tu","W","Th","F","Sa","S","Bills","M","Tu","W","Th","F","Sa","S","Bills","M","Tu","W","Th","F","Sa","S","Bills","M","Tu",null,null,null,null,null,null,null,null,"ลักษณะการเข้าร้าน","จำนวนครั้ง","%","จำนวนครั้ง","%","จำนวนครั้ง","%","จำนวนครั้ง","%","จำนวนครั้ง","%"]
[1,null,null,null,null,null,null,null,null,null,{"$f":"SUM(D6:J6)","v":0},{"$f":"IF($B6=\"บิลยกเลิก\",\"\",MID(B6,5,1))","v":""},{"$f":"Calculate","v":""},{"$f":"Calculate","v":""},{"$f":"Calculate","v":""},{"$f":"Calculate","v":""},{"$f":"Calculate","v":""},{"$f":"Calculate","v":""},{"$f":"Calculate","v":""},{"$f":"IF($B6=\"\",\"\",COUNT(M6:S6))","v":""},{"$f":"Calculate","v":""},{"$f":"Calculate","v":""},{"$f":"Calculate","v":""},{"$f":"Calculate","v":""},{"$f":"Calculate","v":""},{"$f":"Calculate","v":""},{"$f":"Calculate","v":""},{"$f":"IF($B6=\"\",\"\",COUNT(U6:AA6))","v":""},{"$f":"Calculate","v":""},{"$f":"Calculate","v":""},{"$f":"Calculate","v":""},{"$f":"Calculate","v":""},{"$f":"Calculate","v":""},{"$f":"Calculate","v":""},{"$f":"Calculate","v":""},{"$f":"IF($B6=\"\",\"\",COUNT(AC6:AI6))","v":""},{"$f":"Calculate","v":""},{"$f":"Calculate","v":""},{"$f":"Calculate","v":""},{"$f":"Calculate","v":""},{"$f":"Calculate","v":""},{"$f":"Calculate","v":""},{"$f":"Calculate","v":""},{"$f":"IF($B6=\"\",\"\",COUNT(AK6:AQ6))","v":""},{"$f":"Calculate","v":""},{"$f":"Calculate","v":""},{"$f":"Calculate","v":""},{"$f":"Calculate","v":""},{"$f":"Calculate","v":""},{"$f":"Calculate","v":""},{"$f":"Calculate","v":""},{"$f":"IF($B6=\"\",\"\",COUNT(AS6:AY6))","v":""},{"$f":"Calculate","v":""},{"$f":"Calculate","v":""},{"$f":"IF(SUMIFS(M6:BB6,$M$5:$BB$5,\"Bills\")=0,0,SUMIFS(M6:BB6,$M$5:$BB$5,\"Bills\"))","v":0},{"$f":"SUMPRODUCT(N(WEEKDAY(ROW(INDIRECT(Firts_DateOfMonth&\":\"&EOMONTH(Firts_DateOfMonth,0))),2)={1,2,3,4,5,6,7})*($D6:$J6=1))","v":0},{"$f":"IF($BF6>0,0,$BG6)","v":0},{"$f":"((LEFT($B6,1)=\"2\")+(LEFT($B6,1)=\"1\")*($L6=\"A\"))*$BG6","v":0},{"$f":"SUMIFS(M6:BB6,$M$5:$BB$5,\"<>Bills\")","v":0},{"$f":"IFERROR($BG6/$BC6,\"\")","v":""},null,null,"วิ่งร้าน 0 ครั้ง/สัปดาห์",{"$f":"COUNTIF(INDIRECT(BL$4),0)","v":0},{"$f":"IFERROR(BL6/$BN$3,\"\")","v":""},{"$f":"COUNTIF(INDIRECT(BN$4),0)","v":0},{"$f":"IFERROR(BN6/$BN$3,\"\")","v":""},{"$f":"COUNTIF(INDIRECT(BP$4),0)","v":0},{"$f":"IFERROR(BP6/$BN$3,\"\")","v":""},{"$f":"COUNTIF(INDIRECT(BR$4),0)","v":0},{"$f":"IFERROR(BR6/$BN$3,\"\")","v":""},{"$f":"COUNTIF(INDIRECT(BT$4),0)","v":0},{"$f":"IFERROR(BT6/$BN$3,\"\")","v":""}]
[2,null,null,null,null,null,null,null,null,null,0,"",{"$f":"Calculate","v":""},{"$f":"Calculate","v":""},{"$f":"Calculate","v":""},{"$f":"Calculate","v":""},{"$f":"Calculate","v":""},{"$f":"Calculate","v":""},{"$f":"Calculate","v":""},{"$f":"IF($B7=\"\",\"\",COUNT(M7:S7))","v":""},{"$f":"Calculate","v":""},{"$f":"Calculate","v":""},{"$f":"Calculate","v":""},{"$f":"Calculate","v":""},{"$f":"Calculate","v":""},{"$f":"Calculate","v":""},{"$f":"Calculate","v":""},{"$f":"IF($B7=\"\",\"\",COUNT(U7:AA7))","v":""},{"$f":"Calculate","v":""},{"$f":"Calculate","v":""},{"$f":"Calculate","v":""},{"$f":"Calculate","v":""},{"$f":"Calculate","v":""},{"$f":"Calculate","v":""},{"$f":"Calculate","v":""},{"$f":"IF($B7=\"\",\"\",COUNT(AC7:AI7))","v":""},{"$f":"Calculate","v":""},{"$f":"Calculate","v":""},{"$f":"Calculate","v":""},{"$f":"Calculate","v":""},{"$f":"Calculate","v":""},{"$f":"Calculate","v":""},{"$f":"Calculate","v":""},{"$f":"IF($B7=\"\",\"\",COUNT(AK7:AQ7))","v":""},{"$f":"Calculate","v":""},{"$f":"Calculate","v":""},{"$f":"Calculate","v":""},{"$f":"Calculate","v":""},{"$f":"Calculate","v":""},{"$f":"Calculate","v":""},{"$f":"Calculate","v":""},{"$f":"IF($B7=\"\",\"\",COUNT(AS7:AY7))","v":""},{"$f":"Calculate","v":""},{"$f":"Calculate","v":""},{"$f":"IF(SUMIFS(M7:BB7,$M$5:$BB$5,\"Bills\")=0,0,SUMIFS(M7:BB7,$M$5:$BB$5,\"Bills\"))","v":0},{"$f":"SUMPRODUCT(N(WEEKDAY(ROW(INDIRECT(Firts_DateOfMonth&\":\"&EOMONTH(Firts_DateOfMonth,0))),2)={1,2,3,4,5,6,7})*($D7:$J7=1))","v":0},0,0,0,"",null,null,"วิ่งร้าน 1 ครั้ง/สัปดาห์",{"$f":"COUNTIF(INDIRECT(BL$4),1)","v":0},{"$f":"IFERROR(BL7/$BN$3,\"\")","v":""},{"$f":"COUNTIF(INDIRECT(BN$4),1)","v":0},{"$f":"IFERROR(BN7/$BN$3,\"\")","v":""},{"$f":"COUNTIF(INDIRECT(BP$4),1)","v":0},{"$f":"IFERROR(BP7/$BN$3,\"\")","v":""},{"$f":"COUNTIF(INDIRECT(BR$4),1)","v":0},{"$f":"IFERROR(BR7/$BN$3,\"\")","v":""},{"$f":"COUNTIF(INDIRECT(BT$4),1)","v":0},{"$f":"IFERROR(BT7/$BN$3,\"\")","v":""}]
[3,null,null,null,null,null,null,null,null,null,0,"",{"$f":"Calculate","v":""},{"$f":"Calculate","v":""},{"$f":"Calculate","v":""},{"$f":"Calculate","v":""},{"$f":"Calculate","v":""},{"$f":"Calculate","v":""},{"$f":"Calculate","v":""},"",{"$f":"Calculate","v":""},{"$f":"Calculate","v":""},{"$f":"Calculate","v":""},{"$f":"Calculate","v":""},{"$f":"Calculate","v":""},{"$f":"Calculate","v":""},{"$f":"Calculate","v":""},"",{"$f":"Calculate","v":""},{"$f":"Calculate","v":""},{"$f":"Calculate","v":""},{"$f":"Calculate","v":""},{"$f":"Calculate","v":""},{"$f":"Calculate","v":""},{"$f":"Calculate","v":""},"",{"$f":"Calculate","v":""},{"$f":"Calculate","v":""},{"$f":"Calculate","v":""},{"$f":"Calculate","v":""},{"$f":"Calculate","v":""},{"$f":"Calculate","v":""},{"$f":"Calculate","v":""},"",{"$f":"Calculate","v":""},{"$f":"Calculate","v":""},{"$f":"Calculate","v":""},{"$f":"Calculate","v":""},{"$f":"Calculate","v":""},{"$f":"Calculate","v":""},{"$f":"Calculate","v":""},"",{"$f":"Calculate","v":""},{"$f":"Calculate","v":""},0,{"$f":"SUMPRODUCT(N(WEEKDAY(ROW(INDIRECT(Firts_DateOfMonth&\":\"&EOMONTH(Firts_DateOfMonth,0))),2)={1,2,3,4,5,6,7})*($D8:$J8=1))","v":0},0,0,0,"",null,null,"วิ่งร้าน 2 ครั้ง/สัปดาห์",{"$f":"COUNTIF(INDIRECT(BL$4),2)","v":0},{"$f":"IFERROR(BL8/$BN$3,\"\")","v":""},{"$f":"COUNTIF(INDIRECT(BN$4),2)","v":0},{"$f":"IFERROR(BN8/$BN$3,\"\")","v":""},{"$f":"COUNTIF(INDIRECT(BP$4),2)","v":0},{"$f":"IFERROR(BP8/$BN$3,\"\")","v":""},{"$f":"COUNTIF(INDIRECT(BR$4),2)","v":0},{"$f":"IFERROR(BR8/$BN$3,\"\")","v":""},{"$f":"COUNTIF(INDIRECT(BT$4),2)","v":0},{"$f":"IFERROR(BT8/$BN$3,\"\")","v":""}]
[4,null,null,null,null,null,null,null,null,null,0,"",{"$f":"Calculate","v":""},{"$f":"Calculate","v":""},{"$f":"Calculate","v":""},{"$f":"Calculate","v":""},{"$f":"Calculate","v":""},{"$f":"Calculate","v":""},{"$f":"Calculate","v":""},"",{"$f":"Calculate","v":""},{"$f":"Calculate","v":""},{"$f":"Calculate","v":""},{"$f":"Calculate","v":""},{"$f":"Calculate","v":""},{"$f":"Calculate","v":""},{"$f":"Calculate","v":""},"",{"$f":"Calculate","v":""},{"$f":"Calculate","v":""},{"$f":"Calculate","v":""},{"$f":"Calculate","v":""},{"$f":"Calculate","v":""},{"$f":"Calculate","v":""},{"$f":"Calculate","v":""},"",{"$f":"Calculate","v":""},{"$f":"Calculate","v":""},{"$f":"Calculate","v":""},{"$f":"Calculate","v":""},{"$f":"Calculate","v":""},{"$f":"Calculate","v":""},{"$f":"Calculate","v":""},"",{"$f":"Calculate","v":""},{"$f":"Calculate","v":""},{"$f":"Calculate","v":""},{"$f":"Calculate","v":""},{"$f":"Calculate","v":""},{"$f":"Calculate","v":""},{"$f":"Calculate","v":""},"",{"$f":"Calculate","v":""},{"$f":"Calculate","v":""},0,{"$f":"SUMPRODUCT(N(WEEKDAY(ROW(INDIRECT(Firts_DateOfMonth&\":\"&EOMONTH(Firts_DateOfMonth,0))),2)={1,2,3,4,5,6,7})*($D9:$J9=1))","v":0},0,0,0,"",null,null,"วิ่งร้าน วันเว้นวัน",{"$f":"COUNTIF(INDIRECT(BL$4),3)","v":0},{"$f":"IFERROR(BL9/$BN$3,\"\")","v":""},{"$f":"COUNTIF(INDIRECT(BN$4),3)","v":0},{"$f":"IFERROR(BN9/$BN$3,\"\")","v":""},{"$f":"COUNTIF(INDIRECT(BP$4),3)","v":0},{"$f":"IFERROR(BP9/$BN$3,\"\")","v":""},{"$f":"COUNTIF(INDIRECT(BR$4),3)","v":0},{"$f":"IFERROR(BR9/$BN$3,\"\")","v":""},{"$f":"COUNTIF(INDIRECT(BT$4),3)","v":0},{"$f":"IFERROR(BT9/$BN$3,\"\")","v":""}]
[5,null,null,null,null,null,null,null,null,null,0,"",{"$f":"Calculate","v":""},{"$f":"Calculate","v":""},{"$f":"Calculate","v":""},{"$f":"Calculate","v":""},{"$f":"Calculate","v":""},{"$f":"Calculate","v":""},{"$f":"Calculate","v":""},"",{"$f":"Calculate","v":""},{"$f":"Calculate","v":""},{"$f":"Calculate","v":""},{"$f":"Calculate","v":""},{"$f":"Calculate","v":""},{"$f":"Calculate","v":""},{"$f":"Calculate","v":""},"",{"$f":"Calculate","v":""},{"$f":"Calculate","v":""},{"$f":"Calculate","v":""},{"$f":"Calculate","v":""},{"$f":"Calculate","v":""},{"$f":"Calculate","v":""},{"$f":"Calculate","v":""},"",{"$f":"Calculate","v":""},{"$f":"Calculate","v":""},{"$f":"Calculate","v":""},{"$f":"Calculate","v":""},{"$f":"Calculate","v":""},{"$f":"Calculate","v":""},{"$f":"Calculate","v":""},"",{"$f":"Calculate","v":""},{"$f":"Calculate","v":""},{"$f":"Calculate","v":""},{"$f":"Calculate","v":""},{"$f":"Calculate","v":""},{"$f":"Calculate","v":""},{"$f":"Calculate","v":""},"",{"$f":"Calculate","v":""},{"$f":"Calculate","v":""},0,{"$f":"SUMPRODUCT(N(WEEKDAY(ROW(INDIRECT(Firts_DateOfMonth&\":\"&EOMONTH(Firts_DateOfMonth,0))),2)={1,2,3,4,5,6,7})*($D10:$J10=1))","v":0},0,0,0,"",null,null,"วิ่งร้าน ทุกวัน",{"$f":"COUNTIF(INDIRECT(BL$4),\">\"&3)","v":0},{"$f":"IFERROR(BL10/$BN$3,\"\")","v":""},{"$f":"COUNTIF(INDIRECT(BN$4),\">\"&3)","v":0},{"$f":"IFERROR(BN10/$BN$3,\"\")","v":""},{"$f":"COUNTIF(INDIRECT(BP$4),\">\"&3)","v":0},{"$f":"IFERROR(BP10/$BN$3,\"\")","v":""},{"$f":"COUNTIF(INDIRECT(BR$4),\">\"&3)","v":0},{"$f":"IFERROR(BR10/$BN$3,\"\")","v":""},{"$f":"COUNTIF(INDIRECT(BT$4),\">\"&3)","v":0},{"$f":"IFERROR(BT10/$BN$3,\"\")","v":""}]
[6,null,null,null,null,null,null,null,null,null,0,"",{"$f":"Calculate","v":""},{"$f":"Calculate","v":""},{"$f":"Calculate","v":""},{"$f":"Calculate","v":""},{"$f":"Calculate","v":""},{"$f":"Calculate","v":""},{"$f":"Calculate","v":""},"",{"$f":"Calculate","v":""},{"$f":"Calculate","v":""},{"$f":"Calculate","v":""},{"$f":"Calculate","v":""},{"$f":"Calculate","v":""},{"$f":"Calculate","v":""},{"$f":"Calculate","v":""},"",{"$f":"Calculate","v":""},{"$f":"Calculate","v":""},{"$f":"Calculate","v":""},{"$f":"Calculate","v":""},{"$f":"Calculate","v":""},{"$f":"Calculate","v":""},{"$f":"Calculate","v":""},"",{"$f":"Calculate","v":""},{"$f":"Calculate","v":""},{"$f":"Calculate","v":""},{"$f":"Calculate","v":""},{"$f":"Calculate","v":""},{"$f":"Calculate","v":""},{"$f":"Calculate","v":""},"",{"$f":"Calculate","v":""},{"$f":"Calculate","v":""},{"$f":"Calculate","v":""},{"$f":"Calculate","v":""},{"$f":"Calculate","v":""},{"$f":"Calculate","v":""},{"$f":"Calculate","v":""},"",{"$f":"Calculate","v":""},{"$f":"Calculate","v":""},0,{"$f":"SUMPRODUCT(N(WEEKDAY(ROW(INDIRECT(Firts_DateOfMonth&\":\"&EOMONTH(Firts_DateOfMonth,0))),2)={1,2,3,4,5,6,7})*($D11:$J11=1))","v":0},0,0,0,""]
[7,null,null,null,null,null,null,null,null,null,0,"",{"$f":"Calculate","v":""},{"$f":"Calculate","v":""},{"$f":"Calculate","v":""},{"$f":"Calculate","v":""},{"$f":"Calculate","v":""},{"$f":"Calculate","v":""},{"$f":"Calculate","v":""},"",{"$f":"Calculate","v":""},{"$f":"Calculate","v":""},{"$f":"Calculate","v":""},{"$f":"Calculate","v":""},{"$f":"Calculate","v":""},{"$f":"Calculate","v":""},{"$f":"Calculate","v":""},"",{"$f":"Calculate","v":""},{"$f":"Calculate","v":""},{"$f":"Calculate","v":""},{"$f":"Calculate","v":""},{"$f":"Calculate","v":""},{"$f":"Calculate","v":""},{"$f":"Calculate","v":""},"",{"$f":"Calculate","v":""},{"$f":"Calculate","v":""},{"$f":"Calculate","v":""},{"$f":"Calculate","v":""},{"$f":"Calculate","v":""},{"$f":"Calculate","v":""},{"$f":"Calculate","v":""},"",{"$f":"Calculate","v":""},{"$f":"Calculate","v":""},{"$f":"Calculate","v":""},{"$f":"Calculate","v":""},{"$f":"Calculate","v":""},{"$f":"Calculate","v":""},{"$f":"Calculate","v":""},"",{"$f":"Calculate","v":""},{"$f":"Calculate","v":""},0,{"$f":"SUMPRODUCT(N(WEEKDAY(ROW(INDIRECT(Firts_DateOfMonth&\":\"&EOMONTH(Firts_DateOfMonth,0))),2)={1,2,3,4,5,6,7})*($D12:$J12=1))","v":0},0,0,0,""]
[8,null,null,null,null,null,null,null,null,null,0,"",{"$f":"Calculate","v":""},{"$f":"Calculate","v":""},{"$f":"Calculate","v":""},{"$f":"Calculate","v":""},{"$f":"Calculate","v":""},{"$f":"Calculate","v":""},{"$f":"Calculate","v":""},"",{"$f":"Calculate","v":""},{"$f":"Calculate","v":""},{"$f":"Calculate","v":""},{"$f":"Calculate","v":""},{"$f":"Calculate","v":""},{"$f":"Calculate","v":""},{"$f":"Calculate","v":""},"",{"$f":"Calculate","v":""},{"$f":"Calculate","v":""},{"$f":"Calculate","v":""},{"$f":"Calculate","v":""},{"$f":"Calculate","v":""},{"$f":"Calculate","v":""},{"$f":"Calculate","v":""},"",{"$f":"Calculate","v":""},{"$f":"Calculate","v":""},{"$f":"Calculate","v":""},{"$f":"Calculate","v":""},{"$f":"Calculate","v":""},{"$f":"Calculate","v":""},{"$f":"Calculate","v":""},"",{"$f":"Calculate","v":""},{"$f":"Calculate","v":""},{"$f":"Calculate","v":""},{"$f":"Calculate","v":""},{"$f":"Calculate","v":""},{"$f":"Calculate","v":""},{"$f":"Calculate","v":""},"",{"$f":"Calculate","v":""},{"$f":"Calculate","v":""},0,{"$f":"SUMPRODUCT(N(WEEKDAY(ROW(INDIRECT(Firts_DateOfMonth&\":\"&EOMONTH(Firts_DateOfMonth,0))),2)={1,2,3,4,5,6,7})*($D13:$J13=1))","v":0},0,0,0,""]
[9,null,null,null,null,null,null,null,null,null,0,"",{"$f":"Calculate","v":""},{"$f":"Calculate","v":""},{"$f":"Calculate","v":""},{"$f":"Calculate","v":""},{"$f":"Calculate","v":""},{"$f":"Calculate","v":""},{"$f":"Calculate","v":""},"",{"$f":"Calculate","v":""},{"$f":"Calculate","v":""},{"$f":"Calculate","v":""},{"$f":"Calculate","v":""},{"$f":"Calculate","v":""},{"$f":"Calculate","v":""},{"$f":"Calculate","v":""},"",{"$f":"Calculate","v":""},{"$f":"Calculate","v":""},{"$f":"Calculate","v":""},{"$f":"Calculate","v":""},{"$f":"Calculate","v":""},{"$f":"Calculate","v":""},{"$f":"Calculate","v":""},"",{"$f":"Calculate","v":""},{"$f":"Calculate","v":""},{"$f":"Calculate","v":""},{"$f":"Calculate","v":""},{"$f":"Calculate","v":""},{"$f":"Calculate","v":""},{"$f":"Calculate","v":""},"",{"$f":"Calculate","v":""},{"$f":"Calculate","v":""},{"$f":"Calculate","v":""},{"$f":"Calculate","v":""},{"$f":"Calculate","v":""},{"$f":"Calculate","v":""},{"$f":"Calculate","v":""},"",{"$f":"Calculate","v":""},{"$f":"Calculate","v":""},0,{"$f":"SUMPRODUCT(N(WEEKDAY(ROW(INDIRECT(Firts_DateOfMonth&\":\"&EOMONTH(Firts_DateOfMonth,0))),2)={1,2,3,4,5,6,7})*($D14:$J14=1))","v":0},0,0,0,""]
[10,null,null,null,null,null,null,null,null,null,0,"",{"$f":"Calculate","v":""},{"$f":"Calculate","v":""},{"$f":"Calculate","v":""},{"$f":"Calculate","v":""},{"$f":"Calculate","v":""},{"$f":"Calculate","v":""},{"$f":"Calculate","v":""},"",{"$f":"Calculate","v":""},{"$f":"Calculate","v":""},{"$f":"Calculate","v":""},{"$f":"Calculate","v":""},{"$f":"Calculate","v":""},{"$f":"Calculate","v":""},{"$f":"Calculate","v":""},"",{"$f":"Calculate","v":""},{"$f":"Calculate","v":""},{"$f":"Calculate","v":""},{"$f":"Calculate","v":""},{"$f":"Calculate","v":""},{"$f":"Calculate","v":""},{"$f":"Calculate","v":""},"",{"$f":"Calculate","v":""},{"$f":"Calculate","v":""},{"$f":"Calculate","v":""},{"$f":"Calculate","v":""},{"$f":"Calculate","v":""},{"$f":"Calculate","v":""},{"$f":"Calculate","v":""},"",{"$f":"Calculate","v":""},{"$f":"Calculate","v":""},{"$f":"Calculate","v":""},{"$f":"Calculate","v":""},{"$f":"Calculate","v":""},{"$f":"Calculate","v":""},{"$f":"Calculate","v":""},"",{"$f":"Calculate","v":""},{"$f":"Calculate","v":""},0,{"$f":"SUMPRODUCT(N(WEEKDAY(ROW(INDIRECT(Firts_DateOfMonth&\":\"&EOMONTH(Firts_DateOfMonth,0))),2)={1,2,3,4,5,6,7})*($D15:$J15=1))","v":0},0,0,0,""]
[11,null,null,null,null,null,null,null,null,null,0,"",{"$f":"Calculate","v":""},{"$f":"Calculate","v":""},{"$f":"Calculate","v":""},{"$f":"Calculate","v":""},{"$f":"Calculate","v":""},{"$f":"Calculate","v":""},{"$f":"Calculate","v":""},"",{"$f":"Calculate","v":""},{"$f":"Calculate","v":""},{"$f":"Calculate","v":""},{"$f":"Calculate","v":""},{"$f":"Calculate","v":""},{"$f":"Calculate","v":""},{"$f":"Calculate","v":""},"",{"$f":"Calculate","v":""},{"$f":"Calculate","v":""},{"$f":"Calculate","v":""},{"$f":"Calculate","v":""},{"$f":"Calculate","v":""},{"$f":"Calculate","v":""},{"$f":"Calculate","v":""},"",{"$f":"Calculate","v":""},{"$f":"Calculate","v":""},{"$f":"Calculate","v":""},{"$f":"Calculate","v":""},{"$f":"Calculate","v":""},{"$f":"Calculate","v":""},{"$f":"Calculate","v":""},"",{"$f":"Calculate","v":""},{"$f":"Calculate","v":""},{"$f":"Calculate","v":""},{"$f":"Calculate","v":""},{"$f":"Calculate","v":""},{"$f":"Calculate","v":""},{"$f":"Calculate","v":""},"",{"$f":"Calculate","v":""},{"$f":"Calculate","v":""},0,{"$f":"SUMPRODUCT(N(WEEKDAY(ROW(INDIRECT(Firts_DateOfMonth&\":\"&EOMONTH(Firts_DateOfMonth,0))),2)={1,2,3,4,5,6,7})*($D16:$J16=1))","v":0},0,0,0,""]
[12,null,null,null,null,null,null,null,null,null,0,"",{"$f":"Calculate","v":""},{"$f":"Calculate","v":""},{"$f":"Calculate","v":""},{"$f":"Calculate","v":""},{"$f":"Calculate","v":""},{"$f":"Calculate","v":""},{"$f":"Calculate","v":""},"",{"$f":"Calculate","v":""},{"$f":"Calculate","v":""},{"$f":"Calculate","v":""},{"$f":"Calculate","v":""},{"$f":"Calculate","v":""},{"$f":"Calculate","v":""},{"$f":"Calculate","v":""},"",{"$f":"Calculate","v":""},{"$f":"Calculate","v":""},{"$f":"Calculate","v":""},{"$f":"Calculate","v":""},{"$f":"Calculate","v":""},{"$f":"Calculate","v":""},{"$f":"Calculate","v":""},"",{"$f":"Calculate","v":""},{"$f":"Calculate","v":""},{"$f":"Calculate","v":""},{"$f":"Calculate","v":""},{"$f":"Calculate","v":""},{"$f":"Calculate","v":""},{"$f":"Calculate","v":""},"",{"$f":"Calculate","v":""},{"$f":"Calculate","v":""},{"$f":"Calculate","v":""},{"$f":"Calculate","v":""},{"$f":"Calculate","v":""},{"$f":"Calculate","v":""},{"$f":"Calculate","v":""},"",{"$f":"Calculate","v":""},{"$f":"Calculate","v":""},0,{"$f":"SUMPRODUCT(N(WEEKDAY(ROW(INDIRECT(Firts_DateOfMonth&\":\"&EOMONTH(Firts_DateOfMonth,0))),2)={1,2,3,4,5,6,7})*($D17:$J17=1))","v":0},0,0,0,""]
[13,null,null,null,null,null,null,null,null,null,0,"",{"$f":"Calculate","v":""},{"$f":"Calculate","v":""},{"$f":"Calculate","v":""},{"$f":"Calculate","v":""},{"$f":"Calculate","v":""},{"$f":"Calculate","v":""},{"$f":"Calculate","v":""},"",{"$f":"Calculate","v":""},{"$f":"Calculate","v":""},{"$f":"Calculate","v":""},{"$f":"Calculate","v":""},{"$f":"Calculate","v":""},{"$f":"Calculate","v":""},{"$f":"Calculate","v":""},"",{"$f":"Calculate","v":""},{"$f":"Calculate","v":""},{"$f":"Calculate","v":""},{"$f":"Calculate","v":""},{"$f":"Calculate","v":""},{"$f":"Calculate","v":""},{"$f":"Calculate","v":""},"",{"$f":"Calculate","v":""},{"$f":"Calculate","v":""},{"$f":"Calculate","v":""},{"$f":"Calculate","v":""},{"$f":"Calculate","v":""},{"$f":"Calculate","v":""},{"$f":"Calculate","v":""},"",{"$f":"Calculate","v":""},{"$f":"Calculate","v":""},{"$f":"Calculate","v":""},{"$f":"Calculate","v":""},{"$f":"Calculate","v":""},{"$f":"Calculate","v":""},{"$f":"Calculate","v":""},"",{"$f":"Calculate","v":""},{"$f":"Calculate","v":""},0,{"$f":"SUMPRODUCT(N(WEEKDAY(ROW(INDIRECT(Firts_DateOfMonth&\":\"&EOMONTH(Firts_DateOfMonth,0))),2)={1,2,3,4,5,6,7})*($D18:$J18=1))","v":0},0,0,0,""]
[14,null,null,null,null,null,null,null,null,null,0,"",{"$f":"Calculate","v":""},{"$f":"Calculate","v":""},{"$f":"Calculate","v":""},{"$f":"Calculate","v":""},{"$f":"Calculate","v":""},{"$f":"Calculate","v":""},{"$f":"Calculate","v":""},"",{"$f":"Calculate","v":""},{"$f":"Calculate","v":""},{"$f":"Calculate","v":""},{"$f":"Calculate","v":""},{"$f":"Calculate","v":""},{"$f":"Calculate","v":""},{"$f":"Calculate","v":""},"",{"$f":"Calculate","v":""},{"$f":"Calculate","v":""},{"$f":"Calculate","v":""},{"$f":"Calculate","v":""},{"$f":"Calculate","v":""},{"$f":"Calculate","v":""},{"$f":"Calculate","v":""},"",{"$f":"Calculate","v":""},{"$f":"Calculate","v":""},{"$f":"Calculate","v":""},{"$f":"Calculate","v":""},{"$f":"Calculate","v":""},{"$f":"Calculate","v":""},{"$f":"Calculate","v":""},"",{"$f":"Calculate","v":""},{"$f":"Calculate","v":""},{"$f":"Calculate","v":""},{"$f":"Calculate","v":""},{"$f":"Calculate","v":""},{"$f":"Calculate","v":""},{"$f":"Calculate","v":""},"",{"$f":"Calculate","v":""},{"$f":"Calculate","v":""},0,{"$f":"SUMPRODUCT(N(WEEKDAY(ROW(INDIRECT(Firts_DateOfMonth&\":\"&EOMONTH(Firts_DateOfMonth,0))),2)={1,2,3,4,5,6,7})*($D19:$J19=1))","v":0},0,0,0,""]
[15,null,null,null,null,null,null,null,null,null,0,"",{"$f":"Calculate","v":""},{"$f":"Calculate","v":""},{"$f":"Calculate","v":""},{"$f":"Calculate","v":""},{"$f":"Calculate","v":""},{"$f":"Calculate","v":""},{"$f":"Calculate","v":""},"",{"$f":"Calculate","v":""},{"$f":"Calculate","v":""},{"$f":"Calculate","v":""},{"$f":"Calculate","v":""},{"$f":"Calculate","v":""},{"$f":"Calculate","v":""},{"$f":"Calculate","v":""},"",{"$f":"Calculate","v":""},{"$f":"Calculate","v":""},{"$f":"Calculate","v":""},{"$f":"Calculate","v":""},{"$f":"Calculate","v":""},{"$f":"Calculate","v":""},{"$f":"Calculate","v":""},"",{"$f":"Calculate","v":""},{"$f":"Calculate","v":""},{"$f":"Calculate","v":""},{"$f":"Calculate","v":""},{"$f":"Calculate","v":""},{"$f":"Calculate","v":""},{"$f":"Calculate","v":""},"",{"$f":"Calculate","v":""},{"$f":"Calculate","v":""},{"$f":"Calculate","v":""},{"$f":"Calculate","v":""},{"$f":"Calculate","v":""},{"$f":"Calculate","v":""},{"$f":"Calculate","v":""},"",{"$f":"Calculate","v":""},{"$f":"Calculate","v":""},0,{"$f":"SUMPRODUCT(N(WEEKDAY(ROW(INDIRECT(Firts_DateOfMonth&\":\"&EOMONTH(Firts_DateOfMonth,0))),2)={1,2,3,4,5,6,7})*($D20:$J20=1))","v":0},0,0,0,""]
[16,null,null,null,null,null,null,null,null,null,0,"",{"$f":"Calculate","v":""},{"$f":"Calculate","v":""},{"$f":"Calculate","v":""},{"$f":"Calculate","v":""},{"$f":"Calculate","v":""},{"$f":"Calculate","v":""},{"$f":"Calculate","v":""},"",{"$f":"Calculate","v":""},{"$f":"Calculate","v":""},{"$f":"Calculate","v":""},{"$f":"Calculate","v":""},{"$f":"Calculate","v":""},{"$f":"Calculate","v":""},{"$f":"Calculate","v":""},"",{"$f":"Calculate","v":""},{"$f":"Calculate","v":""},{"$f":"Calculate","v":""},{"$f":"Calculate","v":""},{"$f":"Calculate","v":""},{"$f":"Calculate","v":""},{"$f":"Calculate","v":""},"",{"$f":"Calculate","v":""},{"$f":"Calculate","v":""},{"$f":"Calculate","v":""},{"$f":"Calculate","v":""},{"$f":"Calculate","v":""},{"$f":"Calculate","v":""},{"$f":"Calculate","v":""},"",{"$f":"Calculate","v":""},{"$f":"Calculate","v":""},{"$f":"Calculate","v":""},{"$f":"Calculate","v":""},{"$f":"Calculate","v":""},{"$f":"Calculate","v":""},{"$f":"Calculate","v":""},"",{"$f":"Calculate","v":""},{"$f":"Calculate","v":""},0,{"$f":"SUMPRODUCT(N(WEEKDAY(ROW(INDIRECT(Firts_DateOfMonth&\":\"&EOMONTH(Firts_DateOfMonth,0))),2)={1,2,3,4,5,6,7})*($D21:$J21=1))","v":0},0,0,0,""]
[17,null,null,null,null,null,null,null,null,null,0,"",{"$f":"Calculate","v":""},{"$f":"Calculate","v":""},{"$f":"Calculate","v":""},{"$f":"Calculate","v":""},{"$f":"Calculate","v":""},{"$f":"Calculate","v":""},{"$f":"Calculate","v":""},"",{"$f":"Calculate","v":""},{"$f":"Calculate","v":""},{"$f":"Calculate","v":""},{"$f":"Calculate","v":""},{"$f":"Calculate","v":""},{"$f":"Calculate","v":""},{"$f":"Calculate","v":""},"",{"$f":"Calculate","v":""},{"$f":"Calculate","v":""},{"$f":"Calculate","v":""},{"$f":"Calculate","v":""},{"$f":"Calculate","v":""},{"$f":"Calculate","v":""},{"$f":"Calculate","v":""},"",{"$f":"Calculate","v":""},{"$f":"Calculate","v":""},{"$f":"Calculate","v":""},{"$f":"Calculate","v":""},{"$f":"Calculate","v":""},{"$f":"Calculate","v":""},{"$f":"Calculate","v":""},"",{"$f":"Calculate","v":""},{"$f":"Calculate","v":""},{"$f":"Calculate","v":""},{"$f":"Calculate","v":""},{"$f":"Calculate","v":""},{"$f":"Calculate","v":""},{"$f":"Calculate","v":""},"",{"$f":"Calculate","v":""},{"$f":"Calculate","v":""},0,{"$f":"SUMPRODUCT(N(WEEKDAY(ROW(INDIRECT(Firts_DateOfMonth&\":\"&EOMONTH(Firts_DateOfMonth,0))),2)={1,2,3,4,5,6,7})*($D22:$J22=1))","v":0},0,0,0,""]
[18,null,null,null,null,null,null,null,null,null,0,"",{"$f":"Calculate","v":""},{"$f":"Calculate","v":""},{"$f":"Calculate","v":""},{"$f":"Calculate","v":""},{"$f":"Calculate","v":""},{"$f":"Calculate","v":""},{"$f":"Calculate","v":""},"",{"$f":"Calculate","v":""},{"$f":"Calculate","v":""},{"$f":"Calculate","v":""},{"$f":"Calculate","v":""},{"$f":"Calculate","v":""},{"$f":"Calculate","v":""},{"$f":"Calculate","v":""},"",{"$f":"Calculate","v":""},{"$f":"Calculate","v":""},{"$f":"Calculate","v":""},{"$f":"Calculate","v":""},{"$f":"Calculate","v":""},{"$f":"Calculate","v":""},{"$f":"Calculate","v":""},"",{"$f":"Calculate","v":""},{"$f":"Calculate","v":""},{"$f":"Calculate","v":""},{"$f":"Calculate","v":""},{"$f":"Calculate","v":""},{"$f":"Calculate","v":""},{"$f":"Calculate","v":""},"",{"$f":"Calculate","v":""},{"$f":"Calculate","v":""},{"$f":"Calculate","v":""},{"$f":"Calculate","v":""},{"$f":"Calculate","v":""},{"$f":"Calculate","v":""},{"$f":"Calculate","v":""},"",{"$f":"Calculate","v":""},{"$f":"Calculate","v":""},0,{"$f":"SUMPRODUCT(N(WEEKDAY(ROW(INDIRECT(Firts_DateOfMonth&\":\"&EOMONTH(Firts_DateOfMonth,0))),2)={1,2,3,4,5,6,7})*($D23:$J23=1))","v":0},0,0,0,""]
[19,null,null,null,null,null,null,null,null,null,0,"",{"$f":"Calculate","v":""},{"$f":"Calculate","v":""},{"$f":"Calculate","v":""},{"$f":"Calculate","v":""},{"$f":"Calculate","v":""},{"$f":"Calculate","v":""},{"$f":"Calculate","v":""},"",{"$f":"Calculate","v":""},{"$f":"Calculate","v":""},{"$f":"Calculate","v":""},{"$f":"Calculate","v":""},{"$f":"Calculate","v":""},{"$f":"Calculate","v":""},{"$f":"Calculate","v":""},"",{"$f":"Calculate","v":""},{"$f":"Calculate","v":""},{"$f":"Calculate","v":""},{"$f":"Calculate","v":""},{"$f":"Calculate","v":""},{"$f":"Calculate","v":""},{"$f":"Calculate","v":""},"",{"$f":"Calculate","v":""},{"$f":"Calculate","v":""},{"$f":"Calculate","v":""},{"$f":"Calculate","v":""},{"$f":"Calculate","v":""},{"$f":"Calculate","v":""},{"$f":"Calculate","v":""},"",{"$f":"Calculate","v":""},{"$f":"Calculate","v":""},{"$f":"Calculate","v":""},{"$f":"Calculate","v":""},{"$f":"Calculate","v":""},{"$f":"Calculate","v":""},{"$f":"Calculate","v":""},"",{"$f":"Calculate","v":""},{"$f":"Calculate","v":""},0,{"$f":"SUMPRODUCT(N(WEEKDAY(ROW(INDIRECT(Firts_DateOfMonth&\":\"&EOMONTH(Firts_DateOfMonth,0))),2)={1,2,3,4,5,6,7})*($D24:$J24=1))","v":0},0,0,0,""]
[20,null,null,null,null,null,null,null,null,null,0,"",{"$f":"Calculate","v":""},{"$f":"Calculate","v":""},{"$f":"Calculate","v":""},{"$f":"Calculate","v":""},{"$f":"Calculate","v":""},{"$f":"Calculate","v":""},{"$f":"Calculate","v":""},"",{"$f":"Calculate","v":""},{"$f":"Calculate","v":""},{"$f":"Calculate","v":""},{"$f":"Calculate","v":""},{"$f":"Calculate","v":""},{"$f":"Calculate","v":""},{"$f":"Calculate","v":""},"",{"$f":"Calculate","v":""},{"$f":"Calculate","v":""},{"$f":"Calculate","v":""},{"$f":"Calculate","v":""},{"$f":"Calculate","v":""},{"$f":"Calculate","v":""},{"$f":"Calculate","v":""},"",{"$f":"Calculate","v":""},{"$f":"Calculate","v":""},{"$f":"Calculate","v":""},{"$f":"Calculate","v":""},{"$f":"Calculate","v":""},{"$f":"Calculate","v":""},{"$f":"Calculate","v":""},"",{"$f":"Calculate","v":""},{"$f":"Calculate","v":""},{"$f":"Calculate","v":""},{"$f":"Calculate","v":""},{"$f":"Calculate","v":""},{"$f":"Calculate","v":""},{"$f":"Calculate","v":""},"",{"$f":"Calculate","v":""},{"$f":"Calculate","v":""},0,{"$f":"SUMPRODUCT(N(WEEKDAY(ROW(INDIRECT(Firts_DateOfMonth&\":\"&EOMONTH(Firts_DateOfMonth,0))),2)={1,2,3,4,5,6,7})*($D25:$J25=1))","v":0},0,0,0,""]
[21,null,null,null,null,null,null,null,null,null,0,"",{"$f":"Calculate","v":""},{"$f":"Calculate","v":""},{"$f":"Calculate","v":""},{"$f":"Calculate","v":""},{"$f":"Calculate","v":""},{"$f":"Calculate","v":""},{"$f":"Calculate","v":""},"",{"$f":"Calculate","v":""},{"$f":"Calculate","v":""},{"$f":"Calculate","v":""},{"$f":"Calculate","v":""},{"$f":"Calculate","v":""},{"$f":"Calculate","v":""},{"$f":"Calculate","v":""},"",{"$f":"Calculate","v":""},{"$f":"Calculate","v":""},{"$f":"Calculate","v":""},{"$f":"Calculate","v":""},{"$f":"Calculate","v":""},{"$f":"Calculate","v":""},{"$f":"Calculate","v":""},"",{"$f":"Calculate","v":""},{"$f":"Calculate","v":""},{"$f":"Calculate","v":""},{"$f":"Calculate","v":""},{"$f":"Calculate","v":""},{"$f":"Calculate","v":""},{"$f":"Calculate","v":""},"",{"$f":"Calculate","v":""},{"$f":"Calculate","v":""},{"$f":"Calculate","v":""},{"$f":"Calculate","v":""},{"$f":"Calculate","v":""},{"$f":"Calculate","v":""},{"$f":"Calculate","v":""},"",{"$f":"Calculate","v":""},{"$f":"Calculate","v":""},0,{"$f":"SUMPRODUCT(N(WEEKDAY(ROW(INDIRECT(Firts_DateOfMonth&\":\"&EOMONTH(Firts_DateOfMonth,0))),2)={1,2,3,4,5,6,7})*($D26:$J26=1))","v":0},0,0,0,""]
[22,null,null,null,null,null,null,null,null,null,0,"",{"$f":"Calculate","v":""},{"$f":"Calculate","v":""},{"$f":"Calculate","v":""},{"$f":"Calculate","v":""},{"$f":"Calculate","v":""},{"$f":"Calculate","v":""},{"$f":"Calculate","v":""},"",{"$f":"Calculate","v":""},{"$f":"Calculate","v":""},{"$f":"Calculate","v":""},{"$f":"Calculate","v":""},{"$f":"Calculate","v":""},{"$f":"Calculate","v":""},{"$f":"Calculate","v":""},"",{"$f":"Calculate","v":""},{"$f":"Calculate","v":""},{"$f":"Calculate","v":""},{"$f":"Calculate","v":""},{"$f":"Calculate","v":""},{"$f":"Calculate","v":""},{"$f":"Calculate","v":""},"",{"$f":"Calculate","v":""},{"$f":"Calculate","v":""},{"$f":"Calculate","v":""},{"$f":"Calculate","v":""},{"$f":"Calculate","v":""},{"$f":"Calculate","v":""},{"$f":"Calculate","v":""},"",{"$f":"Calculate","v":""},{"$f":"Calculate","v":""},{"$f":"Calculate","v":""},{"$f":"Calculate","v":""},{"$f":"Calculate","v":""},{"$f":"Calculate","v":""},{"$f":"Calculate","v":""},"",{"$f":"Calculate","v":""},{"$f":"Calculate","v":""},0,{"$f":"SUMPRODUCT(N(WEEKDAY(ROW(INDIRECT(Firts_DateOfMonth&\":\"&EOMONTH(Firts_DateOfMonth,0))),2)={1,2,3,4,5,6,7})*($D27:$J27=1))","v":0},0,0,0,""]
[23,null,null,null,null,null,null,null,null,null,0,"",{"$f":"Calculate","v":""},{"$f":"Calculate","v":""},{"$f":"Calculate","v":""},{"$f":"Calculate","v":""},{"$f":"Calculate","v":""},{"$f":"Calculate","v":""},{"$f":"Calculate","v":""},"",{"$f":"Calculate","v":""},{"$f":"Calculate","v":""},{"$f":"Calculate","v":""},{"$f":"Calculate","v":""},{"$f":"Calculate","v":""},{"$f":"Calculate","v":""},{"$f":"Calculate","v":""},"",{"$f":"Calculate","v":""},{"$f":"Calculate","v":""},{"$f":"Calculate","v":""},{"$f":"Calculate","v":""},{"$f":"Calculate","v":""},{"$f":"Calculate","v":""},{"$f":"Calculate","v":""},"",{"$f":"Calculate","v":""},{"$f":"Calculate","v":""},{"$f":"Calculate","v":""},{"$f":"Calculate","v":""},{"$f":"Calculate","v":""},{"$f":"Calculate","v":""},{"$f":"Calculate","v":""},"",{"$f":"Calculate","v":""},{"$f":"Calculate","v":""},{"$f":"Calculate","v":""},{"$f":"Calculate","v":""},{"$f":"Calculate","v":""},{"$f":"Calculate","v":""},{"$f":"Calculate","v":""},"",{"$f":"Calculate","v":""},{"$f":"Calculate","v":""},0,{"$f":"SUMPRODUCT(N(WEEKDAY(ROW(INDIRECT(Firts_DateOfMonth&\":\"&EOMONTH(Firts_DateOfMonth,0))),2)={1,2,3,4,5,6,7})*($D28:$J28=1))","v":0},0,0,0,""]
[24,null,null,null,null,null,null,null,null,null,0,"",{"$f":"Calculate","v":""},{"$f":"Calculate","v":""},{"$f":"Calculate","v":""},{"$f":"Calculate","v":""},{"$f":"Calculate","v":""},{"$f":"Calculate","v":""},{"$f":"Calculate","v":""},"",{"$f":"Calculate","v":""},{"$f":"Calculate","v":""},{"$f":"Calculate","v":""},{"$f":"Calculate","v":""},{"$f":"Calculate","v":""},{"$f":"Calculate","v":""},{"$f":"Calculate","v":""},"",{"$f":"Calculate","v":""},{"$f":"Calculate","v":""},{"$f":"Calculate","v":""},{"$f":"Calculate","v":""},{"$f":"Calculate","v":""},{"$f":"Calculate","v":""},{"$f":"Calculate","v":""},"",{"$f":"Calculate","v":""},{"$f":"Calculate","v":""},{"$f":"Calculate","v":""},{"$f":"Calculate","v":""},{"$f":"Calculate","v":""},{"$f":"Calculate","v":""},{"$f":"Calculate","v":""},"",{"$f":"Calculate","v":""},{"$f":"Calculate","v":""},{"$f":"Calculate","v":""},{"$f":"Calculate","v":""},{"$f":"Calculate","v":""},{"$f":"Calculate","v":""},{"$f":"Calculate","v":""},"",{"$f":"Calculate","v":""},{"$f":"Calculate","v":""},0,{"$f":"SUMPRODUCT(N(WEEKDAY(ROW(INDIRECT(Firts_DateOfMonth&\":\"&EOMONTH(Firts_DateOfMonth,0))),2)={1,2,3,4,5,6,7})*($D29:$J29=1))","v":0},0,0,0,""]
[25,null,null,null,null,null,null,null,null,null,0,"",{"$f":"Calculate","v":""},{"$f":"Calculate","v":""},{"$f":"Calculate","v":""},{"$f":"Calculate","v":""},{"$f":"Calculate","v":""},{"$f":"Calculate","v":""},{"$f":"Calculate","v":""},"",{"$f":"Calculate","v":""},{"$f":"Calculate","v":""},{"$f":"Calculate","v":""},{"$f":"Calculate","v":""},{"$f":"Calculate","v":""},{"$f":"Calculate","v":""},{"$f":"Calculate","v":""},"",{"$f":"Calculate","v":""},{"$f":"Calculate","v":""},{"$f":"Calculate","v":""},{"$f":"Calculate","v":""},{"$f":"Calculate","v":""},{"$f":"Calculate","v":""},{"$f":"Calculate","v":""},"",{"$f":"Calculate","v":""},{"$f":"Calculate","v":""},{"$f":"Calculate","v":""},{"$f":"Calculate","v":""},{"$f":"Calculate","v":""},{"$f":"Calculate","v":""},{"$f":"Calculate","v":""},"",{"$f":"Calculate","v":""},{"$f":"Calculate","v":""},{"$f":"Calculate","v":""},{"$f":"Calculate","v":""},{"$f":"Calculate","v":""},{"$f":"Calculate","v":""},{"$f":"Calculate","v":""},"",{"$f":"Calculate","v":""},{"$f":"Calculate","v":""},0,{"$f":"SUMPRODUCT(N(WEEKDAY(ROW(INDIRECT(Firts_DateOfMonth&\":\"&EOMONTH(Firts_DateOfMonth,0))),2)={1,2,3,4,5,6,7})*($D30:$J30=1))","v":0},0,0,0,""]
[26,null,null,null,null,null,null,null,null,null,0,"",{"$f":"Calculate","v":""},{"$f":"Calculate","v":""},{"$f":"Calculate","v":""},{"$f":"Calculate","v":""},{"$f":"Calculate","v":""},{"$f":"Calculate","v":""},{"$f":"Calculate","v":""},"",{"$f":"Calculate","v":""},{"$f":"Calculate","v":""},{"$f":"Calculate","v":""},{"$f":"Calculate","v":""},{"$f":"Calculate","v":""},{"$f":"Calculate","v":""},{"$f":"Calculate","v":""},"",{"$f":"Calculate","v":""},{"$f":"Calculate","v":""},{"$f":"Calculate","v":""},{"$f":"Calculate","v":""},{"$f":"Calculate","v":""},{"$f":"Calculate","v":""},{"$f":"Calculate","v":""},"",{"$f":"Calculate","v":""},{"$f":"Calculate","v":""},{"$f":"Calculate","v":""},{"$f":"Calculate","v":""},{"$f":"Calculate","v":""},{"$f":"Calculate","v":""},{"$f":"Calculate","v":""},"",{"$f":"Calculate","v":""},{"$f":"Calculate","v":""},{"$f":"Calculate","v":""},{"$f":"Calculate","v":""},{"$f":"Calculate","v":""},{"$f":"Calculate","v":""},{"$f":"Calculate","v":""},"",{"$f":"Calculate","v":""},{"$f":"Calculate","v":""},0,{"$f":"SUMPRODUCT(N(WEEKDAY(ROW(INDIRECT(Firts_DateOfMonth&\":\"&EOMONTH(Firts_DateOfMonth,0))),2)={1,2,3,4,5,6,7})*($D31:$J31=1))","v":0},0,0,0,""]
[27,null,null,null,null,null,null,null,null,null,0,"",{"$f":"Calculate","v":""},{"$f":"Calculate","v":""},{"$f":"Calculate","v":""},{"$f":"Calculate","v":""},{"$f":"Calculate","v":""},{"$f":"Calculate","v":""},{"$f":"Calculate","v":""},"",{"$f":"Calculate","v":""},{"$f":"Calculate","v":""},{"$f":"Calculate","v":""},{"$f":"Calculate","v":""},{"$f":"Calculate","v":""},{"$f":"Calculate","v":""},{"$f":"Calculate","v":""},"",{"$f":"Calculate","v":""},{"$f":"Calculate","v":""},{"$f":"Calculate","v":""},{"$f":"Calculate","v":""},{"$f":"Calculate","v":""},{"$f":"Calculate","v":""},{"$f":"Calculate","v":""},"",{"$f":"Calculate","v":""},{"$f":"Calculate","v":""},{"$f":"Calculate","v":""},{"$f":"Calculate","v":""},{"$f":"Calculate","v":""},{"$f":"Calculate","v":""},{"$f":"Calculate","v":""},"",{"$f":"Calculate","v":""},{"$f":"Calculate","v":""},{"$f":"Calculate","v":""},{"$f":"Calculate","v":""},{"$f":"Calculate","v":""},{"$f":"Calculate","v":""},{"$f":"Calculate","v":""},"",{"$f":"Calculate","v":""},{"$f":"Calculate","v":""},0,{"$f":"SUMPRODUCT(N(WEEKDAY(ROW(INDIRECT(Firts_DateOfMonth&\":\"&EOMONTH(Firts_DateOfMonth,0))),2)={1,2,3,4,5,6,7})*($D32:$J32=1))","v":0},0,0,0,""]
[28,null,null,null,null,null,null,null,null,null,0,"",{"$f":"Calculate","v":""},{"$f":"Calculate","v":""},{"$f":"Calculate","v":""},{"$f":"Calculate","v":""},{"$f":"Calculate","v":""},{"$f":"Calculate","v":""},{"$f":"Calculate","v":""},"",{"$f":"Calculate","v":""},{"$f":"Calculate","v":""},{"$f":"Calculate","v":""},{"$f":"Calculate","v":""},{"$f":"Calculate","v":""},{"$f":"Calculate","v":""},{"$f":"Calculate","v":""},"",{"$f":"Calculate","v":""},{"$f":"Calculate","v":""},{"$f":"Calculate","v":""},{"$f":"Calculate","v":""},{"$f":"Calculate","v":""},{"$f":"Calculate","v":""},{"$f":"Calculate","v":""},"",{"$f":"Calculate","v":""},{"$f":"Calculate","v":""},{"$f":"Calculate","v":""},{"$f":"Calculate","v":""},{"$f":"Calculate","v":""},{"$f":"Calculate","v":""},{"$f":"Calculate","v":""},"",{"$f":"Calculate","v":""},{"$f":"Calculate","v":""},{"$f":"Calculate","v":""},{"$f":"Calculate","v":""},{"$f":"Calculate","v":""},{"$f":"Calculate","v":""},{"$f":"Calculate","v":""},"",{"$f":"Calculate","v":""},{"$f":"Calculate","v":""},0,{"$f":"SUMPRODUCT(N(WEEKDAY(ROW(INDIRECT(Firts_DateOfMonth&\":\"&EOMONTH(Firts_DateOfMonth,0))),2)={1,2,3,4,5,6,7})*($D33:$J33=1))","v":0},0,0,0,""]
[29,null,null,null,null,null,null,null,null,null,0,"",{"$f":"Calculate","v":""},{"$f":"Calculate","v":""},{"$f":"Calculate","v":""},{"$f":"Calculate","v":""},{"$f":"Calculate","v":""},{"$f":"Calculate","v":""},{"$f":"Calculate","v":""},"",{"$f":"Calculate","v":""},{"$f":"Calculate","v":""},{"$f":"Calculate","v":""},{"$f":"Calculate","v":""},{"$f":"Calculate","v":""},{"$f":"Calculate","v":""},{"$f":"Calculate","v":""},"",{"$f":"Calculate","v":""},{"$f":"Calculate","v":""},{"$f":"Calculate","v":""},{"$f":"Calculate","v":""},{"$f":"Calculate","v":""},{"$f":"Calculate","v":""},{"$f":"Calculate","v":""},"",{"$f":"Calculate","v":""},{"$f":"Calculate","v":""},{"$f":"Calculate","v":""},{"$f":"Calculate","v":""},{"$f":"Calculate","v":""},{"$f":"Calculate","v":""},{"$f":"Calculate","v":""},"",{"$f":"Calculate","v":""},{"$f":"Calculate","v":""},{"$f":"Calculate","v":""},{"$f":"Calculate","v":""},{"$f":"Calculate","v":""},{"$f":"Calculate","v":""},{"$f":"Calculate","v":""},"",{"$f":"Calculate","v":""},{"$f":"Calculate","v":""},0,{"$f":"SUMPRODUCT(N(WEEKDAY(ROW(INDIRECT(Firts_DateOfMonth&\":\"&EOMONTH(Firts_DateOfMonth,0))),2)={1,2,3,4,5,6,7})*($D34:$J34=1))","v":0},0,0,0,""]
[30,null,null,null,null,null,null,null,null,null,0,"",{"$f":"Calculate","v":""},{"$f":"Calculate","v":""},{"$f":"Calculate","v":""},{"$f":"Calculate","v":""},{"$f":"Calculate","v":""},{"$f":"Calculate","v":""},{"$f":"Calculate","v":""},"",{"$f":"Calculate","v":""},{"$f":"Calculate","v":""},{"$f":"Calculate","v":""},{"$f":"Calculate","v":""},{"$f":"Calculate","v":""},{"$f":"Calculate","v":""},{"$f":"Calculate","v":""},"",{"$f":"Calculate","v":""},{"$f":"Calculate","v":""},{"$f":"Calculate","v":""},{"$f":"Calculate","v":""},{"$f":"Calculate","v":""},{"$f":"Calculate","v":""},{"$f":"Calculate","v":""},"",{"$f":"Calculate","v":""},{"$f":"Calculate","v":""},{"$f":"Calculate","v":""},{"$f":"Calculate","v":""},{"$f":"Calculate","v":""},{"$f":"Calculate","v":""},{"$f":"Calculate","v":""},"",{"$f":"Calculate","v":""},{"$f":"Calculate","v":""},{"$f":"Calculate","v":""},{"$f":"Calculate","v":""},{"$f":"Calculate","v":""},{"$f":"Calculate","v":""},{"$f":"Calculate","v":""},"",{"$f":"Calculate","v":""},{"$f":"Calculate","v":""},0,{"$f":"SUMPRODUCT(N(WEEKDAY(ROW(INDIRECT(Firts_DateOfMonth&\":\"&EOMONTH(Firts_DateOfMonth,0))),2)={1,2,3,4,5,6,7})*($D35:$J35=1))","v":0},0,0,0,""]
[31,null,null,null,null,null,null,null,null,null,0,"",{"$f":"Calculate","v":""},{"$f":"Calculate","v":""},{"$f":"Calculate","v":""},{"$f":"Calculate","v":""},{"$f":"Calculate","v":""},{"$f":"Calculate","v":""},{"$f":"Calculate","v":""},"",{"$f":"Calculate","v":""},{"$f":"Calculate","v":""},{"$f":"Calculate","v":""},{"$f":"Calculate","v":""},{"$f":"Calculate","v":""},{"$f":"Calculate","v":""},{"$f":"Calculate","v":""},"",{"$f":"Calculate","v":""},{"$f":"Calculate","v":""},{"$f":"Calculate","v":""},{"$f":"Calculate","v":""},{"$f":"Calculate","v":""},{"$f":"Calculate","v":""},{"$f":"Calculate","v":""},"",{"$f":"Calculate","v":""},{"$f":"Calculate","v":""},{"$f":"Calculate","v":""},{"$f":"Calculate","v":""},{"$f":"Calculate","v":""},{"$f":"Calculate","v":""},{"$f":"Calculate","v":""},"",{"$f":"Calculate","v":""},{"$f":"Calculate","v":""},{"$f":"Calculate","v":""},{"$f":"Calculate","v":""},{"$f":"Calculate","v":""},{"$f":"Calculate","v":""},{"$f":"Calculate","v":""},"",{"$f":"Calculate","v":""},{"$f":"Calculate","v":""},0,{"$f":"SUMPRODUCT(N(WEEKDAY(ROW(INDIRECT(Firts_DateOfMonth&\":\"&EOMONTH(Firts_DateOfMonth,0))),2)={1,2,3,4,5,6,7})*($D36:$J36=1))","v":0},0,0,0,""]
[32,null,null,null,null,null,null,null,null,null,0,"",{"$f":"Calculate","v":""},{"$f":"Calculate","v":""},{"$f":"Calculate","v":""},{"$f":"Calculate","v":""},{"$f":"Calculate","v":""},{"$f":"Calculate","v":""},{"$f":"Calculate","v":""},"",{"$f":"Calculate","v":""},{"$f":"Calculate","v":""},{"$f":"Calculate","v":""},{"$f":"Calculate","v":""},{"$f":"Calculate","v":""},{"$f":"Calculate","v":""},{"$f":"Calculate","v":""},"",{"$f":"Calculate","v":""},{"$f":"Calculate","v":""},{"$f":"Calculate","v":""},{"$f":"Calculate","v":""},{"$f":"Calculate","v":""},{"$f":"Calculate","v":""},{"$f":"Calculate","v":""},"",{"$f":"Calculate","v":""},{"$f":"Calculate","v":""},{"$f":"Calculate","v":""},{"$f":"Calculate","v":""},{"$f":"Calculate","v":""},{"$f":"Calculate","v":""},{"$f":"Calculate","v":""},"",{"$f":"Calculate","v":""},{"$f":"Calculate","v":""},{"$f":"Calculate","v":""},{"$f":"Calculate","v":""},{"$f":"Calculate","v":""},{"$f":"Calculate","v":""},{"$f":"Calculate","v":""},"",{"$f":"Calculate","v":""},{"$f":"Calculate","v":""},0,{"$f":"SUMPRODUCT(N(WEEKDAY(ROW(INDIRECT(Firts_DateOfMonth&\":\"&EOMONTH(Firts_DateOfMonth,0))),2)={1,2,3,4,5,6,7})*($D37:$J37=1))","v":0},0,0,0,""]
[33,null,null,null,null,null,null,null,null,null,0,"",{"$f":"Calculate","v":""},{"$f":"Calculate","v":""},{"$f":"Calculate","v":""},{"$f":"Calculate","v":""},{"$f":"Calculate","v":""},{"$f":"Calculate","v":""},{"$f":"Calculate","v":""},"",{"$f":"Calculate","v":""},{"$f":"Calculate","v":""},{"$f":"Calculate","v":""},{"$f":"Calculate","v":""},{"$f":"Calculate","v":""},{"$f":"Calculate","v":""},{"$f":"Calculate","v":""},"",{"$f":"Calculate","v":""},{"$f":"Calculate","v":""},{"$f":"Calculate","v":""},{"$f":"Calculate","v":""},{"$f":"Calculate","v":""},{"$f":"Calculate","v":""},{"$f":"Calculate","v":""},"",{"$f":"Calculate","v":""},{"$f":"Calculate","v":""},{"$f":"Calculate","v":""},{"$f":"Calculate","v":""},{"$f":"Calculate","v":""},{"$f":"Calculate","v":""},{"$f":"Calculate","v":""},"",{"$f":"Calculate","v":""},{"$f":"Calculate","v":""},{"$f":"Calculate","v":""},{"$f":"Calculate","v":""},{"$f":"Calculate","v":""},{"$f":"Calculate","v":""},{"$f":"Calculate","v":""},"",{"$f":"Calculate","v":""},{"$f":"Calculate","v":""},0,{"$f":"SUMPRODUCT(N(WEEKDAY(ROW(INDIRECT(Firts_DateOfMonth&\":\"&EOMONTH(Firts_DateOfMonth,0))),2)={1,2,3,4,5,6,7})*($D38:$J38=1))","v":0},0,0,0,""]
[34,null,null,null,null,null,null,null,null,null,0,"",{"$f":"Calculate","v":""},{"$f":"Calculate","v":""},{"$f":"Calculate","v":""},{"$f":"Calculate","v":""},{"$f":"Calculate","v":""},{"$f":"Calculate","v":""},{"$f":"Calculate","v":""},"",{"$f":"Calculate","v":""},{"$f":"Calculate","v":""},{"$f":"Calculate","v":""},{"$f":"Calculate","v":""},{"$f":"Calculate","v":""},{"$f":"Calculate","v":""},{"$f":"Calculate","v":""},"",{"$f":"Calculate","v":""},{"$f":"Calculate","v":""},{"$f":"Calculate","v":""},{"$f":"Calculate","v":""},{"$f":"Calculate","v":""},{"$f":"Calculate","v":""},{"$f":"Calculate","v":""},"",{"$f":"Calculate","v":""},{"$f":"Calculate","v":""},{"$f":"Calculate","v":""},{"$f":"Calculate","v":""},{"$f":"Calculate","v":""},{"$f":"Calculate","v":""},{"$f":"Calculate","v":""},"",{"$f":"Calculate","v":""},{"$f":"Calculate","v":""},{"$f":"Calculate","v":""},{"$f":"Calculate","v":""},{"$f":"Calculate","v":""},{"$f":"Calculate","v":""},{"$f":"Calculate","v":""},"",{"$f":"Calculate","v":""},{"$f":"Calculate","v":""},0,{"$f":"SUMPRODUCT(N(WEEKDAY(ROW(INDIRECT(Firts_DateOfMonth&\":\"&EOMONTH(Firts_DateOfMonth,0))),2)={1,2,3,4,5,6,7})*($D39:$J39=1))","v":0},0,0,0,""]
[35,null,null,null,null,null,null,null,null,null,0,"",{"$f":"Calculate","v":""},{"$f":"Calculate","v":""},{"$f":"Calculate","v":""},{"$f":"Calculate","v":""},{"$f":"Calculate","v":""},{"$f":"Calculate","v":""},{"$f":"Calculate","v":""},"",{"$f":"Calculate","v":""},{"$f":"Calculate","v":""},{"$f":"Calculate","v":""},{"$f":"Calculate","v":""},{"$f":"Calculate","v":""},{"$f":"Calculate","v":""},{"$f":"Calculate","v":""},"",{"$f":"Calculate","v":""},{"$f":"Calculate","v":""},{"$f":"Calculate","v":""},{"$f":"Calculate","v":""},{"$f":"Calculate","v":""},{"$f":"Calculate","v":""},{"$f":"Calculate","v":""},"",{"$f":"Calculate","v":""},{"$f":"Calculate","v":""},{"$f":"Calculate","v":""},{"$f":"Calculate","v":""},{"$f":"Calculate","v":""},{"$f":"Calculate","v":""},{"$f":"Calculate","v":""},"",{"$f":"Calculate","v":""},{"$f":"Calculate","v":""},{"$f":"Calculate","v":""},{"$f":"Calculate","v":""},{"$f":"Calculate","v":""},{"$f":"Calculate","v":""},{"$f":"Calculate","v":""},"",{"$f":"Calculate","v":""},{"$f":"Calculate","v":""},0,{"$f":"SUMPRODUCT(N(WEEKDAY(ROW(INDIRECT(Firts_DateOfMonth&\":\"&EOMONTH(Firts_DateOfMonth,0))),2)={1,2,3,4,5,6,7})*($D40:$J40=1))","v":0},0,0,0,""]
[36,null,null,null,null,null,null,null,null,null,0,"",{"$f":"Calculate","v":""},{"$f":"Calculate","v":""},{"$f":"Calculate","v":""},{"$f":"Calculate","v":""},{"$f":"Calculate","v":""},{"$f":"Calculate","v":""},{"$f":"Calculate","v":""},"",{"$f":"Calculate","v":""},{"$f":"Calculate","v":""},{"$f":"Calculate","v":""},{"$f":"Calculate","v":""},{"$f":"Calculate","v":""},{"$f":"Calculate","v":""},{"$f":"Calculate","v":""},"",{"$f":"Calculate","v":""},{"$f":"Calculate","v":""},{"$f":"Calculate","v":""},{"$f":"Calculate","v":""},{"$f":"Calculate","v":""},{"$f":"Calculate","v":""},{"$f":"Calculate","v":""},"",{"$f":"Calculate","v":""},{"$f":"Calculate","v":""},{"$f":"Calculate","v":""},{"$f":"Calculate","v":""},{"$f":"Calculate","v":""},{"$f":"Calculate","v":""},{"$f":"Calculate","v":""},"",{"$f":"Calculate","v":""},{"$f":"Calculate","v":""},{"$f":"Calculate","v":""},{"$f":"Calculate","v":""},{"$f":"Calculate","v":""},{"$f":"Calculate","v":""},{"$f":"Calculate","v":""},"",{"$f":"Calculate","v":""},{"$f":"Calculate","v":""},0,{"$f":"SUMPRODUCT(N(WEEKDAY(ROW(INDIRECT(Firts_DateOfMonth&\":\"&EOMONTH(Firts_DateOfMonth,0))),2)={1,2,3,4,5,6,7})*($D41:$J41=1))","v":0},0,0,0,""]
[37,null,null,null,null,null,null,null,null,null,0,"",{"$f":"Calculate","v":""},{"$f":"Calculate","v":""},{"$f":"Calculate","v":""},{"$f":"Calculate","v":""},{"$f":"Calculate","v":""},{"$f":"Calculate","v":""},{"$f":"Calculate","v":""},"",{"$f":"Calculate","v":""},{"$f":"Calculate","v":""},{"$f":"Calculate","v":""},{"$f":"Calculate","v":""},{"$f":"Calculate","v":""},{"$f":"Calculate","v":""},{"$f":"Calculate","v":""},"",{"$f":"Calculate","v":""},{"$f":"Calculate","v":""},{"$f":"Calculate","v":""},{"$f":"Calculate","v":""},{"$f":"Calculate","v":""},{"$f":"Calculate","v":""},{"$f":"Calculate","v":""},"",{"$f":"Calculate","v":""},{"$f":"Calculate","v":""},{"$f":"Calculate","v":""},{"$f":"Calculate","v":""},{"$f":"Calculate","v":""},{"$f":"Calculate","v":""},{"$f":"Calculate","v":""},"",{"$f":"Calculate","v":""},{"$f":"Calculate","v":""},{"$f":"Calculate","v":""},{"$f":"Calculate","v":""},{"$f":"Calculate","v":""},{"$f":"Calculate","v":""},{"$f":"Calculate","v":""},"",{"$f":"Calculate","v":""},{"$f":"Calculate","v":""},0,{"$f":"SUMPRODUCT(N(WEEKDAY(ROW(INDIRECT(Firts_DateOfMonth&\":\"&EOMONTH(Firts_DateOfMonth,0))),2)={1,2,3,4,5,6,7})*($D42:$J42=1))","v":0},0,0,0,""]
[38,null,null,null,null,null,null,null,null,null,0,"",{"$f":"Calculate","v":""},{"$f":"Calculate","v":""},{"$f":"Calculate","v":""},{"$f":"Calculate","v":""},{"$f":"Calculate","v":""},{"$f":"Calculate","v":""},{"$f":"Calculate","v":""},"",{"$f":"Calculate","v":""},{"$f":"Calculate","v":""},{"$f":"Calculate","v":""},{"$f":"Calculate","v":""},{"$f":"Calculate","v":""},{"$f":"Calculate","v":""},{"$f":"Calculate","v":""},"",{"$f":"Calculate","v":""},{"$f":"Calculate","v":""},{"$f":"Calculate","v":""},{"$f":"Calculate","v":""},{"$f":"Calculate","v":""},{"$f":"Calculate","v":""},{"$f":"Calculate","v":""},"",{"$f":"Calculate","v":""},{"$f":"Calculate","v":""},{"$f":"Calculate","v":""},{"$f":"Calculate","v":""},{"$f":"Calculate","v":""},{"$f":"Calculate","v":""},{"$f":"Calculate","v":""},"",{"$f":"Calculate","v":""},{"$f":"Calculate","v":""},{"$f":"Calculate","v":""},{"$f":"Calculate","v":""},{"$f":"Calculate","v":""},{"$f":"Calculate","v":""},{"$f":"Calculate","v":""},"",{"$f":"Calculate","v":""},{"$f":"Calculate","v":""},0,{"$f":"SUMPRODUCT(N(WEEKDAY(ROW(INDIRECT(Firts_DateOfMonth&\":\"&EOMONTH(Firts_DateOfMonth,0))),2)={1,2,3,4,5,6,7})*($D43:$J43=1))","v":0},0,0,0,""]
[39,null,null,null,null,null,null,null,null,null,0,"",{"$f":"Calculate","v":""},{"$f":"Calculate","v":""},{"$f":"Calculate","v":""},{"$f":"Calculate","v":""},{"$f":"Calculate","v":""},{"$f":"Calculate","v":""},{"$f":"Calculate","v":""},"",{"$f":"Calculate","v":""},{"$f":"Calculate","v":""},{"$f":"Calculate","v":""},{"$f":"Calculate","v":""},{"$f":"Calculate","v":""},{"$f":"Calculate","v":""},{"$f":"Calculate","v":""},"",{"$f":"Calculate","v":""},{"$f":"Calculate","v":""},{"$f":"Calculate","v":""},{"$f":"Calculate","v":""},{"$f":"Calculate","v":""},{"$f":"Calculate","v":""},{"$f":"Calculate","v":""},"",{"$f":"Calculate","v":""},{"$f":"Calculate","v":""},{"$f":"Calculate","v":""},{"$f":"Calculate","v":""},{"$f":"Calculate","v":""},{"$f":"Calculate","v":""},{"$f":"Calculate","v":""},"",{"$f":"Calculate","v":""},{"$f":"Calculate","v":""},{"$f":"Calculate","v":""},{"$f":"Calculate","v":""},{"$f":"Calculate","v":""},{"$f":"Calculate","v":""},{"$f":"Calculate","v":""},"",{"$f":"Calculate","v":""},{"$f":"Calculate","v":""},0,{"$f":"SUMPRODUCT(N(WEEKDAY(ROW(INDIRECT(Firts_DateOfMonth&\":\"&EOMONTH(Firts_DateOfMonth,0))),2)={1,2,3,4,5,6,7})*($D44:$J44=1))","v":0},0,0,0,""]
[40,null,null,null,null,null,null,null,null,null,0,"",{"$f":"Calculate","v":""},{"$f":"Calculate","v":""},{"$f":"Calculate","v":""},{"$f":"Calculate","v":""},{"$f":"Calculate","v":""},{"$f":"Calculate","v":""},{"$f":"Calculate","v":""},"",{"$f":"Calculate","v":""},{"$f":"Calculate","v":""},{"$f":"Calculate","v":""},{"$f":"Calculate","v":""},{"$f":"Calculate","v":""},{"$f":"Calculate","v":""},{"$f":"Calculate","v":""},"",{"$f":"Calculate","v":""},{"$f":"Calculate","v":""},{"$f":"Calculate","v":""},{"$f":"Calculate","v":""},{"$f":"Calculate","v":""},{"$f":"Calculate","v":""},{"$f":"Calculate","v":""},"",{"$f":"Calculate","v":""},{"$f":"Calculate","v":""},{"$f":"Calculate","v":""},{"$f":"Calculate","v":""},{"$f":"Calculate","v":""},{"$f":"Calculate","v":""},{"$f":"Calculate","v":""},"",{"$f":"Calculate","v":""},{"$f":"Calculate","v":""},{"$f":"Calculate","v":""},{"$f":"Calculate","v":""},{"$f":"Calculate","v":""},{"$f":"Calculate","v":""},{"$f":"Calculate","v":""},"",{"$f":"Calculate","v":""},{"$f":"Calculate","v":""},0,{"$f":"SUMPRODUCT(N(WEEKDAY(ROW(INDIRECT(Firts_DateOfMonth&\":\"&EOMONTH(Firts_DateOfMonth,0))),2)={1,2,3,4,5,6,7})*($D45:$J45=1))","v":0},0,0,0,""]
[41,null,null,null,null,null,null,null,null,null,0,"",{"$f":"Calculate","v":""},{"$f":"Calculate","v":""},{"$f":"Calculate","v":""},{"$f":"Calculate","v":""},{"$f":"Calculate","v":""},{"$f":"Calculate","v":""},{"$f":"Calculate","v":""},"",{"$f":"Calculate","v":""},{"$f":"Calculate","v":""},{"$f":"Calculate","v":""},{"$f":"Calculate","v":""},{"$f":"Calculate","v":""},{"$f":"Calculate","v":""},{"$f":"Calculate","v":""},"",{"$f":"Calculate","v":""},{"$f":"Calculate","v":""},{"$f":"Calculate","v":""},{"$f":"Calculate","v":""},{"$f":"Calculate","v":""},{"$f":"Calculate","v":""},{"$f":"Calculate","v":""},"",{"$f":"Calculate","v":""},{"$f":"Calculate","v":""},{"$f":"Calculate","v":""},{"$f":"Calculate","v":""},{"$f":"Calculate","v":""},{"$f":"Calculate","v":""},{"$f":"Calculate","v":""},"",{"$f":"Calculate","v":""},{"$f":"Calculate","v":""},{"$f":"Calculate","v":""},{"$f":"Calculate","v":""},{"$f":"Calculate","v":""},{"$f":"Calculate","v":""},{"$f":"Calculate","v":""},"",{"$f":"Calculate","v":""},{"$f":"Calculate","v":""},0,{"$f":"SUMPRODUCT(N(WEEKDAY(ROW(INDIRECT(Firts_DateOfMonth&\":\"&EOMONTH(Firts_DateOfMonth,0))),2)={1,2,3,4,5,6,7})*($D46:$J46=1))","v":0},0,0,0,""]
[42,null,null,null,null,null,null,null,null,null,0,"",{"$f":"Calculate","v":""},{"$f":"Calculate","v":""},{"$f":"Calculate","v":""},{"$f":"Calculate","v":""},{"$f":"Calculate","v":""},{"$f":"Calculate","v":""},{"$f":"Calculate","v":""},"",{"$f":"Calculate","v":""},{"$f":"Calculate","v":""},{"$f":"Calculate","v":""},{"$f":"Calculate","v":""},{"$f":"Calculate","v":""},{"$f":"Calculate","v":""},{"$f":"Calculate","v":""},"",{"$f":"Calculate","v":""},{"$f":"Calculate","v":""},{"$f":"Calculate","v":""},{"$f":"Calculate","v":""},{"$f":"Calculate","v":""},{"$f":"Calculate","v":""},{"$f":"Calculate","v":""},"",{"$f":"Calculate","v":""},{"$f":"Calculate","v":""},{"$f":"Calculate","v":""},{"$f":"Calculate","v":""},{"$f":"Calculate","v":""},{"$f":"Calculate","v":""},{"$f":"Calculate","v":""},"",{"$f":"Calculate","v":""},{"$f":"Calculate","v":""},{"$f":"Calculate","v":""},{"$f":"Calculate","v":""},{"$f":"Calculate","v":""},{"$f":"Calculate","v":""},{"$f":"Calculate","v":""},"",{"$f":"Calculate","v":""},{"$f":"Calculate","v":""},0,{"$f":"SUMPRODUCT(N(WEEKDAY(ROW(INDIRECT(Firts_DateOfMonth&\":\"&EOMONTH(Firts_DateOfMonth,0))),2)={1,2,3,4,5,6,7})*($D47:$J47=1))","v":0},0,0,0,""]
[43,null,null,null,null,null,null,null,null,null,0,"",{"$f":"Calculate","v":""},{"$f":"Calculate","v":""},{"$f":"Calculate","v":""},{"$f":"Calculate","v":""},{"$f":"Calculate","v":""},{"$f":"Calculate","v":""},{"$f":"Calculate","v":""},"",{"$f":"Calculate","v":""},{"$f":"Calculate","v":""},{"$f":"Calculate","v":""},{"$f":"Calculate","v":""},{"$f":"Calculate","v":""},{"$f":"Calculate","v":""},{"$f":"Calculate","v":""},"",{"$f":"Calculate","v":""},{"$f":"Calculate","v":""},{"$f":"Calculate","v":""},{"$f":"Calculate","v":""},{"$f":"Calculate","v":""},{"$f":"Calculate","v":""},{"$f":"Calculate","v":""},"",{"$f":"Calculate","v":""},{"$f":"Calculate","v":""},{"$f":"Calculate","v":""},{"$f":"Calculate","v":""},{"$f":"Calculate","v":""},{"$f":"Calculate","v":""},{"$f":"Calculate","v":""},"",{"$f":"Calculate","v":""},{"$f":"Calculate","v":""},{"$f":"Calculate","v":""},{"$f":"Calculate","v":""},{"$f":"Calculate","v":""},{"$f":"Calculate","v":""},{"$f":"Calculate","v":""},"",{"$f":"Calculate","v":""},{"$f":"Calculate","v":""},0,{"$f":"SUMPRODUCT(N(WEEKDAY(ROW(INDIRECT(Firts_DateOfMonth&\":\"&EOMONTH(Firts_DateOfMonth,0))),2)={1,2,3,4,5,6,7})*($D48:$J48=1))","v":0},0,0,0,""]
[44,null,null,null,null,null,null,null,null,null,0,"",{"$f":"Calculate","v":""},{"$f":"Calculate","v":""},{"$f":"Calculate","v":""},{"$f":"Calculate","v":""},{"$f":"Calculate","v":""},{"$f":"Calculate","v":""},{"$f":"Calculate","v":""},"",{"$f":"Calculate","v":""},{"$f":"Calculate","v":""},{"$f":"Calculate","v":""},{"$f":"Calculate","v":""},{"$f":"Calculate","v":""},{"$f":"Calculate","v":""},{"$f":"Calculate","v":""},"",{"$f":"Calculate","v":""},{"$f":"Calculate","v":""},{"$f":"Calculate","v":""},{"$f":"Calculate","v":""},{"$f":"Calculate","v":""},{"$f":"Calculate","v":""},{"$f":"Calculate","v":""},"",{"$f":"Calculate","v":""},{"$f":"Calculate","v":""},{"$f":"Calculate","v":""},{"$f":"Calculate","v":""},{"$f":"Calculate","v":""},{"$f":"Calculate","v":""},{"$f":"Calculate","v":""},"",{"$f":"Calculate","v":""},{"$f":"Calculate","v":""},{"$f":"Calculate","v":""},{"$f":"Calculate","v":""},{"$f":"Calculate","v":""},{"$f":"Calculate","v":""},{"$f":"Calculate","v":""},"",{"$f":"Calculate","v":""},{"$f":"Calculate","v":""},0,{"$f":"SUMPRODUCT(N(WEEKDAY(ROW(INDIRECT(Firts_DateOfMonth&\":\"&EOMONTH(Firts_DateOfMonth,0))),2)={1,2,3,4,5,6,7})*($D49:$J49=1))","v":0},0,0,0,""]
[45,null,null,null,null,null,null,null,null,null,0,"",{"$f":"Calculate","v":""},{"$f":"Calculate","v":""},{"$f":"Calculate","v":""},{"$f":"Calculate","v":""},{"$f":"Calculate","v":""},{"$f":"Calculate","v":""},{"$f":"Calculate","v":""},"",{"$f":"Calculate","v":""},{"$f":"Calculate","v":""},{"$f":"Calculate","v":""},{"$f":"Calculate","v":""},{"$f":"Calculate","v":""},{"$f":"Calculate","v":""},{"$f":"Calculate","v":""},"",{"$f":"Calculate","v":""},{"$f":"Calculate","v":""},{"$f":"Calculate","v":""},{"$f":"Calculate","v":""},{"$f":"Calculate","v":""},{"$f":"Calculate","v":""},{"$f":"Calculate","v":""},"",{"$f":"Calculate","v":""},{"$f":"Calculate","v":""},{"$f":"Calculate","v":""},{"$f":"Calculate","v":""},{"$f":"Calculate","v":""},{"$f":"Calculate","v":""},{"$f":"Calculate","v":""},"",{"$f":"Calculate","v":""},{"$f":"Calculate","v":""},{"$f":"Calculate","v":""},{"$f":"Calculate","v":""},{"$f":"Calculate","v":""},{"$f":"Calculate","v":""},{"$f":"Calculate","v":""},"",{"$f":"Calculate","v":""},{"$f":"Calculate","v":""},0,{"$f":"SUMPRODUCT(N(WEEKDAY(ROW(INDIRECT(Firts_DateOfMonth&\":\"&EOMONTH(Firts_DateOfMonth,0))),2)={1,2,3,4,5,6,7})*($D50:$J50=1))","v":0},0,0,0,""]
[46,null,null,null,null,null,null,null,null,null,0,"",{"$f":"Calculate","v":""},{"$f":"Calculate","v":""},{"$f":"Calculate","v":""},{"$f":"Calculate","v":""},{"$f":"Calculate","v":""},{"$f":"Calculate","v":""},{"$f":"Calculate","v":""},"",{"$f":"Calculate","v":""},{"$f":"Calculate","v":""},{"$f":"Calculate","v":""},{"$f":"Calculate","v":""},{"$f":"Calculate","v":""},{"$f":"Calculate","v":""},{"$f":"Calculate","v":""},"",{"$f":"Calculate","v":""},{"$f":"Calculate","v":""},{"$f":"Calculate","v":""},{"$f":"Calculate","v":""},{"$f":"Calculate","v":""},{"$f":"Calculate","v":""},{"$f":"Calculate","v":""},"",{"$f":"Calculate","v":""},{"$f":"Calculate","v":""},{"$f":"Calculate","v":""},{"$f":"Calculate","v":""},{"$f":"Calculate","v":""},{"$f":"Calculate","v":""},{"$f":"Calculate","v":""},"",{"$f":"Calculate","v":""},{"$f":"Calculate","v":""},{"$f":"Calculate","v":""},{"$f":"Calculate","v":""},{"$f":"Calculate","v":""},{"$f":"Calculate","v":""},{"$f":"Calculate","v":""},"",{"$f":"Calculate","v":""},{"$f":"Calculate","v":""},0,{"$f":"SUMPRODUCT(N(WEEKDAY(ROW(INDIRECT(Firts_DateOfMonth&\":\"&EOMONTH(Firts_DateOfMonth,0))),2)={1,2,3,4,5,6,7})*($D51:$J51=1))","v":0},0,0,0,""]
[47,null,null,null,null,null,null,null,null,null,0,"",{"$f":"Calculate","v":""},{"$f":"Calculate","v":""},{"$f":"Calculate","v":""},{"$f":"Calculate","v":""},{"$f":"Calculate","v":""},{"$f":"Calculate","v":""},{"$f":"Calculate","v":""},"",{"$f":"Calculate","v":""},{"$f":"Calculate","v":""},{"$f":"Calculate","v":""},{"$f":"Calculate","v":""},{"$f":"Calculate","v":""},{"$f":"Calculate","v":""},{"$f":"Calculate","v":""},"",{"$f":"Calculate","v":""},{"$f":"Calculate","v":""},{"$f":"Calculate","v":""},{"$f":"Calculate","v":""},{"$f":"Calculate","v":""},{"$f":"Calculate","v":""},{"$f":"Calculate","v":""},"",{"$f":"Calculate","v":""},{"$f":"Calculate","v":""},{"$f":"Calculate","v":""},{"$f":"Calculate","v":""},{"$f":"Calculate","v":""},{"$f":"Calculate","v":""},{"$f":"Calculate","v":""},"",{"$f":"Calculate","v":""},{"$f":"Calculate","v":""},{"$f":"Calculate","v":""},{"$f":"Calculate","v":""},{"$f":"Calculate","v":""},{"$f":"Calculate","v":""},{"$f":"Calculate","v":""},"",{"$f":"Calculate","v":""},{"$f":"Calculate","v":""},0,{"$f":"SUMPRODUCT(N(WEEKDAY(ROW(INDIRECT(Firts_DateOfMonth&\":\"&EOMONTH(Firts_DateOfMonth,0))),2)={1,2,3,4,5,6,7})*($D52:$J52=1))","v":0},0,0,0,""]
[48,null,null,null,null,null,null,null,null,null,0,"",{"$f":"Calculate","v":""},{"$f":"Calculate","v":""},{"$f":"Calculate","v":""},{"$f":"Calculate","v":""},{"$f":"Calculate","v":""},{"$f":"Calculate","v":""},{"$f":"Calculate","v":""},"",{"$f":"Calculate","v":""},{"$f":"Calculate","v":""},{"$f":"Calculate","v":""},{"$f":"Calculate","v":""},{"$f":"Calculate","v":""},{"$f":"Calculate","v":""},{"$f":"Calculate","v":""},"",{"$f":"Calculate","v":""},{"$f":"Calculate","v":""},{"$f":"Calculate","v":""},{"$f":"Calculate","v":""},{"$f":"Calculate","v":""},{"$f":"Calculate","v":""},{"$f":"Calculate","v":""},"",{"$f":"Calculate","v":""},{"$f":"Calculate","v":""},{"$f":"Calculate","v":""},{"$f":"Calculate","v":""},{"$f":"Calculate","v":""},{"$f":"Calculate","v":""},{"$f":"Calculate","v":""},"",{"$f":"Calculate","v":""},{"$f":"Calculate","v":""},{"$f":"Calculate","v":""},{"$f":"Calculate","v":""},{"$f":"Calculate","v":""},{"$f":"Calculate","v":""},{"$f":"Calculate","v":""},"",{"$f":"Calculate","v":""},{"$f":"Calculate","v":""},0,{"$f":"SUMPRODUCT(N(WEEKDAY(ROW(INDIRECT(Firts_DateOfMonth&\":\"&EOMONTH(Firts_DateOfMonth,0))),2)={1,2,3,4,5,6,7})*($D53:$J53=1))","v":0},0,0,0,""]
[49,null,null,null,null,null,null,null,null,null,0,"",{"$f":"Calculate","v":""},{"$f":"Calculate","v":""},{"$f":"Calculate","v":""},{"$f":"Calculate","v":""},{"$f":"Calculate","v":""},{"$f":"Calculate","v":""},{"$f":"Calculate","v":""},"",{"$f":"Calculate","v":""},{"$f":"Calculate","v":""},{"$f":"Calculate","v":""},{"$f":"Calculate","v":""},{"$f":"Calculate","v":""},{"$f":"Calculate","v":""},{"$f":"Calculate","v":""},"",{"$f":"Calculate","v":""},{"$f":"Calculate","v":""},{"$f":"Calculate","v":""},{"$f":"Calculate","v":""},{"$f":"Calculate","v":""},{"$f":"Calculate","v":""},{"$f":"Calculate","v":""},"",{"$f":"Calculate","v":""},{"$f":"Calculate","v":""},{"$f":"Calculate","v":""},{"$f":"Calculate","v":""},{"$f":"Calculate","v":""},{"$f":"Calculate","v":""},{"$f":"Calculate","v":""},"",{"$f":"Calculate","v":""},{"$f":"Calculate","v":""},{"$f":"Calculate","v":""},{"$f":"Calculate","v":""},{"$f":"Calculate","v":""},{"$f":"Calculate","v":""},{"$f":"Calculate","v":""},"",{"$f":"Calculate","v":""},{"$f":"Calculate","v":""},0,{"$f":"SUMPRODUCT(N(WEEKDAY(ROW(INDIRECT(Firts_DateOfMonth&\":\"&EOMONTH(Firts_DateOfMonth,0))),2)={1,2,3,4,5,6,7})*($D54:$J54=1))","v":0},0,0,0,""]
[50,null,null,null,null,null,null,null,null,null,0,"",{"$f":"Calculate","v":""},{"$f":"Calculate","v":""},{"$f":"Calculate","v":""},{"$f":"Calculate","v":""},{"$f":"Calculate","v":""},{"$f":"Calculate","v":""},{"$f":"Calculate","v":""},"",{"$f":"Calculate","v":""},{"$f":"Calculate","v":""},{"$f":"Calculate","v":""},{"$f":"Calculate","v":""},{"$f":"Calculate","v":""},{"$f":"Calculate","v":""},{"$f":"Calculate","v":""},"",{"$f":"Calculate","v":""},{"$f":"Calculate","v":""},{"$f":"Calculate","v":""},{"$f":"Calculate","v":""},{"$f":"Calculate","v":""},{"$f":"Calculate","v":""},{"$f":"Calculate","v":""},"",{"$f":"Calculate","v":""},{"$f":"Calculate","v":""},{"$f":"Calculate","v":""},{"$f":"Calculate","v":""},{"$f":"Calculate","v":""},{"$f":"Calculate","v":""},{"$f":"Calculate","v":""},"",{"$f":"Calculate","v":""},{"$f":"Calculate","v":""},{"$f":"Calculate","v":""},{"$f":"Calculate","v":""},{"$f":"Calculate","v":""},{"$f":"Calculate","v":""},{"$f":"Calculate","v":""},"",{"$f":"Calculate","v":""},{"$f":"Calculate","v":""},0,{"$f":"SUMPRODUCT(N(WEEKDAY(ROW(INDIRECT(Firts_DateOfMonth&\":\"&EOMONTH(Firts_DateOfMonth,0))),2)={1,2,3,4,5,6,7})*($D55:$J55=1))","v":0},0,0,0,""]
[51,null,null,null,null,null,null,null,null,null,0,"",{"$f":"Calculate","v":""},{"$f":"Calculate","v":""},{"$f":"Calculate","v":""},{"$f":"Calculate","v":""},{"$f":"Calculate","v":""},{"$f":"Calculate","v":""},{"$f":"Calculate","v":""},"",{"$f":"Calculate","v":""},{"$f":"Calculate","v":""},{"$f":"Calculate","v":""},{"$f":"Calculate","v":""},{"$f":"Calculate","v":""},{"$f":"Calculate","v":""},{"$f":"Calculate","v":""},"",{"$f":"Calculate","v":""},{"$f":"Calculate","v":""},{"$f":"Calculate","v":""},{"$f":"Calculate","v":""},{"$f":"Calculate","v":""},{"$f":"Calculate","v":""},{"$f":"Calculate","v":""},"",{"$f":"Calculate","v":""},{"$f":"Calculate","v":""},{"$f":"Calculate","v":""},{"$f":"Calculate","v":""},{"$f":"Calculate","v":""},{"$f":"Calculate","v":""},{"$f":"Calculate","v":""},"",{"$f":"Calculate","v":""},{"$f":"Calculate","v":""},{"$f":"Calculate","v":""},{"$f":"Calculate","v":""},{"$f":"Calculate","v":""},{"$f":"Calculate","v":""},{"$f":"Calculate","v":""},"",{"$f":"Calculate","v":""},{"$f":"Calculate","v":""},0,{"$f":"SUMPRODUCT(N(WEEKDAY(ROW(INDIRECT(Firts_DateOfMonth&\":\"&EOMONTH(Firts_DateOfMonth,0))),2)={1,2,3,4,5,6,7})*($D56:$J56=1))","v":0},0,0,0,""]
[52,null,null,null,null,null,null,null,null,null,0,"",{"$f":"Calculate","v":""},{"$f":"Calculate","v":""},{"$f":"Calculate","v":""},{"$f":"Calculate","v":""},{"$f":"Calculate","v":""},{"$f":"Calculate","v":""},{"$f":"Calculate","v":""},"",{"$f":"Calculate","v":""},{"$f":"Calculate","v":""},{"$f":"Calculate","v":""},{"$f":"Calculate","v":""},{"$f":"Calculate","v":""},{"$f":"Calculate","v":""},{"$f":"Calculate","v":""},"",{"$f":"Calculate","v":""},{"$f":"Calculate","v":""},{"$f":"Calculate","v":""},{"$f":"Calculate","v":""},{"$f":"Calculate","v":""},{"$f":"Calculate","v":""},{"$f":"Calculate","v":""},"",{"$f":"Calculate","v":""},{"$f":"Calculate","v":""},{"$f":"Calculate","v":""},{"$f":"Calculate","v":""},{"$f":"Calculate","v":""},{"$f":"Calculate","v":""},{"$f":"Calculate","v":""},"",{"$f":"Calculate","v":""},{"$f":"Calculate","v":""},{"$f":"Calculate","v":""},{"$f":"Calculate","v":""},{"$f":"Calculate","v":""},{"$f":"Calculate","v":""},{"$f":"Calculate","v":""},"",{"$f":"Calculate","v":""},{"$f":"Calculate","v":""},0,{"$f":"SUMPRODUCT(N(WEEKDAY(ROW(INDIRECT(Firts_DateOfMonth&\":\"&EOMONTH(Firts_DateOfMonth,0))),2)={1,2,3,4,5,6,7})*($D57:$J57=1))","v":0},0,0,0,""]
[53,null,null,null,null,null,null,null,null,null,0,"",{"$f":"Calculate","v":""},{"$f":"Calculate","v":""},{"$f":"Calculate","v":""},{"$f":"Calculate","v":""},{"$f":"Calculate","v":""},{"$f":"Calculate","v":""},{"$f":"Calculate","v":""},"",{"$f":"Calculate","v":""},{"$f":"Calculate","v":""},{"$f":"Calculate","v":""},{"$f":"Calculate","v":""},{"$f":"Calculate","v":""},{"$f":"Calculate","v":""},{"$f":"Calculate","v":""},"",{"$f":"Calculate","v":""},{"$f":"Calculate","v":""},{"$f":"Calculate","v":""},{"$f":"Calculate","v":""},{"$f":"Calculate","v":""},{"$f":"Calculate","v":""},{"$f":"Calculate","v":""},"",{"$f":"Calculate","v":""},{"$f":"Calculate","v":""},{"$f":"Calculate","v":""},{"$f":"Calculate","v":""},{"$f":"Calculate","v":""},{"$f":"Calculate","v":""},{"$f":"Calculate","v":""},"",{"$f":"Calculate","v":""},{"$f":"Calculate","v":""},{"$f":"Calculate","v":""},{"$f":"Calculate","v":""},{"$f":"Calculate","v":""},{"$f":"Calculate","v":""},{"$f":"Calculate","v":""},"",{"$f":"Calculate","v":""},{"$f":"Calculate","v":""},0,{"$f":"SUMPRODUCT(N(WEEKDAY(ROW(INDIRECT(Firts_DateOfMonth&\":\"&EOMONTH(Firts_DateOfMonth,0))),2)={1,2,3,4,5,6,7})*($D58:$J58=1))","v":0},0,0,0,""]
[54,null,null,null,null,null,null,null,null,null,0,"",{"$f":"Calculate","v":""},{"$f":"Calculate","v":""},{"$f":"Calculate","v":""},{"$f":"Calculate","v":""},{"$f":"Calculate","v":""},{"$f":"Calculate","v":""},{"$f":"Calculate","v":""},"",{"$f":"Calculate","v":""},{"$f":"Calculate","v":""},{"$f":"Calculate","v":""},{"$f":"Calculate","v":""},{"$f":"Calculate","v":""},{"$f":"Calculate","v":""},{"$f":"Calculate","v":""},"",{"$f":"Calculate","v":""},{"$f":"Calculate","v":""},{"$f":"Calculate","v":""},{"$f":"Calculate","v":""},{"$f":"Calculate","v":""},{"$f":"Calculate","v":""},{"$f":"Calculate","v":""},"",{"$f":"Calculate","v":""},{"$f":"Calculate","v":""},{"$f":"Calculate","v":""},{"$f":"Calculate","v":""},{"$f":"Calculate","v":""},{"$f":"Calculate","v":""},{"$f":"Calculate","v":""},"",{"$f":"Calculate","v":""},{"$f":"Calculate","v":""},{"$f":"Calculate","v":""},{"$f":"Calculate","v":""},{"$f":"Calculate","v":""},{"$f":"Calculate","v":""},{"$f":"Calculate","v":""},"",{"$f":"Calculate","v":""},{"$f":"Calculate","v":""},0,{"$f":"SUMPRODUCT(N(WEEKDAY(ROW(INDIRECT(Firts_DateOfMonth&\":\"&EOMONTH(Firts_DateOfMonth,0))),2)={1,2,3,4,5,6,7})*($D59:$J59=1))","v":0},0,0,0,""]
[55,null,null,null,null,null,null,null,null,null,0,"",{"$f":"Calculate","v":""},{"$f":"Calculate","v":""},{"$f":"Calculate","v":""},{"$f":"Calculate","v":""},{"$f":"Calculate","v":""},{"$f":"Calculate","v":""},{"$f":"Calculate","v":""},"",{"$f":"Calculate","v":""},{"$f":"Calculate","v":""},{"$f":"Calculate","v":""},{"$f":"Calculate","v":""},{"$f":"Calculate","v":""},{"$f":"Calculate","v":""},{"$f":"Calculate","v":""},"",{"$f":"Calculate","v":""},{"$f":"Calculate","v":""},{"$f":"Calculate","v":""},{"$f":"Calculate","v":""},{"$f":"Calculate","v":""},{"$f":"Calculate","v":""},{"$f":"Calculate","v":""},"",{"$f":"Calculate","v":""},{"$f":"Calculate","v":""},{"$f":"Calculate","v":""},{"$f":"Calculate","v":""},{"$f":"Calculate","v":""},{"$f":"Calculate","v":""},{"$f":"Calculate","v":""},"",{"$f":"Calculate","v":""},{"$f":"Calculate","v":""},{"$f":"Calculate","v":""},{"$f":"Calculate","v":""},{"$f":"Calculate","v":""},{"$f":"Calculate","v":""},{"$f":"Calculate","v":""},"",{"$f":"Calculate","v":""},{"$f":"Calculate","v":""},0,{"$f":"SUMPRODUCT(N(WEEKDAY(ROW(INDIRECT(Firts_DateOfMonth&\":\"&EOMONTH(Firts_DateOfMonth,0))),2)={1,2,3,4,5,6,7})*($D60:$J60=1))","v":0},0,0,0,""]
[56,null,null,null,null,null,null,null,null,null,0,"",{"$f":"Calculate","v":""},{"$f":"Calculate","v":""},{"$f":"Calculate","v":""},{"$f":"Calculate","v":""},{"$f":"Calculate","v":""},{"$f":"Calculate","v":""},{"$f":"Calculate","v":""},"",{"$f":"Calculate","v":""},{"$f":"Calculate","v":""},{"$f":"Calculate","v":""},{"$f":"Calculate","v":""},{"$f":"Calculate","v":""},{"$f":"Calculate","v":""},{"$f":"Calculate","v":""},"",{"$f":"Calculate","v":""},{"$f":"Calculate","v":""},{"$f":"Calculate","v":""},{"$f":"Calculate","v":""},{"$f":"Calculate","v":""},{"$f":"Calculate","v":""},{"$f":"Calculate","v":""},"",{"$f":"Calculate","v":""},{"$f":"Calculate","v":""},{"$f":"Calculate","v":""},{"$f":"Calculate","v":""},{"$f":"Calculate","v":""},{"$f":"Calculate","v":""},{"$f":"Calculate","v":""},"",{"$f":"Calculate","v":""},{"$f":"Calculate","v":""},{"$f":"Calculate","v":""},{"$f":"Calculate","v":""},{"$f":"Calculate","v":""},{"$f":"Calculate","v":""},{"$f":"Calculate","v":""},"",{"$f":"Calculate","v":""},{"$f":"Calculate","v":""},0,{"$f":"SUMPRODUCT(N(WEEKDAY(ROW(INDIRECT(Firts_DateOfMonth&\":\"&EOMONTH(Firts_DateOfMonth,0))),2)={1,2,3,4,5,6,7})*($D61:$J61=1))","v":0},0,0,0,""]
[57,null,null,null,null,null,null,null,null,null,0,"",{"$f":"Calculate","v":""},{"$f":"Calculate","v":""},{"$f":"Calculate","v":""},{"$f":"Calculate","v":""},{"$f":"Calculate","v":""},{"$f":"Calculate","v":""},{"$f":"Calculate","v":""},"",{"$f":"Calculate","v":""},{"$f":"Calculate","v":""},{"$f":"Calculate","v":""},{"$f":"Calculate","v":""},{"$f":"Calculate","v":""},{"$f":"Calculate","v":""},{"$f":"Calculate","v":""},"",{"$f":"Calculate","v":""},{"$f":"Calculate","v":""},{"$f":"Calculate","v":""},{"$f":"Calculate","v":""},{"$f":"Calculate","v":""},{"$f":"Calculate","v":""},{"$f":"Calculate","v":""},"",{"$f":"Calculate","v":""},{"$f":"Calculate","v":""},{"$f":"Calculate","v":""},{"$f":"Calculate","v":""},{"$f":"Calculate","v":""},{"$f":"Calculate","v":""},{"$f":"Calculate","v":""},"",{"$f":"Calculate","v":""},{"$f":"Calculate","v":""},{"$f":"Calculate","v":""},{"$f":"Calculate","v":""},{"$f":"Calculate","v":""},{"$f":"Calculate","v":""},{"$f":"Calculate","v":""},"",{"$f":"Calculate","v":""},{"$f":"Calculate","v":""},0,{"$f":"SUMPRODUCT(N(WEEKDAY(ROW(INDIRECT(Firts_DateOfMonth&\":\"&EOMONTH(Firts_DateOfMonth,0))),2)={1,2,3,4,5,6,7})*($D62:$J62=1))","v":0},0,0,0,""]
[58,null,null,null,null,null,null,null,null,null,0,"",{"$f":"Calculate","v":""},{"$f":"Calculate","v":""},{"$f":"Calculate","v":""},{"$f":"Calculate","v":""},{"$f":"Calculate","v":""},{"$f":"Calculate","v":""},{"$f":"Calculate","v":""},"",{"$f":"Calculate","v":""},{"$f":"Calculate","v":""},{"$f":"Calculate","v":""},{"$f":"Calculate","v":""},{"$f":"Calculate","v":""},{"$f":"Calculate","v":""},{"$f":"Calculate","v":""},"",{"$f":"Calculate","v":""},{"$f":"Calculate","v":""},{"$f":"Calculate","v":""},{"$f":"Calculate","v":""},{"$f":"Calculate","v":""},{"$f":"Calculate","v":""},{"$f":"Calculate","v":""},"",{"$f":"Calculate","v":""},{"$f":"Calculate","v":""},{"$f":"Calculate","v":""},{"$f":"Calculate","v":""},{"$f":"Calculate","v":""},{"$f":"Calculate","v":""},{"$f":"Calculate","v":""},"",{"$f":"Calculate","v":""},{"$f":"Calculate","v":""},{"$f":"Calculate","v":""},{"$f":"Calculate","v":""},{"$f":"Calculate","v":""},{"$f":"Calculate","v":""},{"$f":"Calculate","v":""},"",{"$f":"Calculate","v":""},{"$f":"Calculate","v":""},0,{"$f":"SUMPRODUCT(N(WEEKDAY(ROW(INDIRECT(Firts_DateOfMonth&\":\"&EOMONTH(Firts_DateOfMonth,0))),2)={1,2,3,4,5,6,7})*($D63:$J63=1))","v":0},0,0,0,""]
[59,null,null,null,null,null,null,null,null,null,0,"",{"$f":"Calculate","v":""},{"$f":"Calculate","v":""},{"$f":"Calculate","v":""},{"$f":"Calculate","v":""},{"$f":"Calculate","v":""},{"$f":"Calculate","v":""},{"$f":"Calculate","v":""},"",{"$f":"Calculate","v":""},{"$f":"Calculate","v":""},{"$f":"Calculate","v":""},{"$f":"Calculate","v":""},{"$f":"Calculate","v":""},{"$f":"Calculate","v":""},{"$f":"Calculate","v":""},"",{"$f":"Calculate","v":""},{"$f":"Calculate","v":""},{"$f":"Calculate","v":""},{"$f":"Calculate","v":""},{"$f":"Calculate","v":""},{"$f":"Calculate","v":""},{"$f":"Calculate","v":""},"",{"$f":"Calculate","v":""},{"$f":"Calculate","v":""},{"$f":"Calculate","v":""},{"$f":"Calculate","v":""},{"$f":"Calculate","v":""},{"$f":"Calculate","v":""},{"$f":"Calculate","v":""},"",{"$f":"Calculate","v":""},{"$f":"Calculate","v":""},{"$f":"Calculate","v":""},{"$f":"Calculate","v":""},{"$f":"Calculate","v":""},{"$f":"Calculate","v":""},{"$f":"Calculate","v":""},"",{"$f":"Calculate","v":""},{"$f":"Calculate","v":""},0,{"$f":"SUMPRODUCT(N(WEEKDAY(ROW(INDIRECT(Firts_DateOfMonth&\":\"&EOMONTH(Firts_DateOfMonth,0))),2)={1,2,3,4,5,6,7})*($D64:$J64=1))","v":0},0,0,0,""]
[60,null,null,null,null,null,null,null,null,null,0,"",{"$f":"Calculate","v":""},{"$f":"Calculate","v":""},{"$f":"Calculate","v":""},{"$f":"Calculate","v":""},{"$f":"Calculate","v":""},{"$f":"Calculate","v":""},{"$f":"Calculate","v":""},"",{"$f":"Calculate","v":""},{"$f":"Calculate","v":""},{"$f":"Calculate","v":""},{"$f":"Calculate","v":""},{"$f":"Calculate","v":""},{"$f":"Calculate","v":""},{"$f":"Calculate","v":""},"",{"$f":"Calculate","v":""},{"$f":"Calculate","v":""},{"$f":"Calculate","v":""},{"$f":"Calculate","v":""},{"$f":"Calculate","v":""},{"$f":"Calculate","v":""},{"$f":"Calculate","v":""},"",{"$f":"Calculate","v":""},{"$f":"Calculate","v":""},{"$f":"Calculate","v":""},{"$f":"Calculate","v":""},{"$f":"Calculate","v":""},{"$f":"Calculate","v":""},{"$f":"Calculate","v":""},"",{"$f":"Calculate","v":""},{"$f":"Calculate","v":""},{"$f":"Calculate","v":""},{"$f":"Calculate","v":""},{"$f":"Calculate","v":""},{"$f":"Calculate","v":""},{"$f":"Calculate","v":""},"",{"$f":"Calculate","v":""},{"$f":"Calculate","v":""},0,{"$f":"SUMPRODUCT(N(WEEKDAY(ROW(INDIRECT(Firts_DateOfMonth&\":\"&EOMONTH(Firts_DateOfMonth,0))),2)={1,2,3,4,5,6,7})*($D65:$J65=1))","v":0},0,0,0,""]
[61,null,null,null,null,null,null,null,null,null,0,"",{"$f":"Calculate","v":""},{"$f":"Calculate","v":""},{"$f":"Calculate","v":""},{"$f":"Calculate","v":""},{"$f":"Calculate","v":""},{"$f":"Calculate","v":""},{"$f":"Calculate","v":""},"",{"$f":"Calculate","v":""},{"$f":"Calculate","v":""},{"$f":"Calculate","v":""},{"$f":"Calculate","v":""},{"$f":"Calculate","v":""},{"$f":"Calculate","v":""},{"$f":"Calculate","v":""},"",{"$f":"Calculate","v":""},{"$f":"Calculate","v":""},{"$f":"Calculate","v":""},{"$f":"Calculate","v":""},{"$f":"Calculate","v":""},{"$f":"Calculate","v":""},{"$f":"Calculate","v":""},"",{"$f":"Calculate","v":""},{"$f":"Calculate","v":""},{"$f":"Calculate","v":""},{"$f":"Calculate","v":""},{"$f":"Calculate","v":""},{"$f":"Calculate","v":""},{"$f":"Calculate","v":""},"",{"$f":"Calculate","v":""},{"$f":"Calculate","v":""},{"$f":"Calculate","v":""},{"$f":"Calculate","v":""},{"$f":"Calculate","v":""},{"$f":"Calculate","v":""},{"$f":"Calculate","v":""},"",{"$f":"Calculate","v":""},{"$f":"Calculate","v":""},0,{"$f":"SUMPRODUCT(N(WEEKDAY(ROW(INDIRECT(Firts_DateOfMonth&\":\"&EOMONTH(Firts_DateOfMonth,0))),2)={1,2,3,4,5,6,7})*($D66:$J66=1))","v":0},0,0,0,""]
[62,null,null,null,null,null,null,null,null,null,0,"",{"$f":"Calculate","v":""},{"$f":"Calculate","v":""},{"$f":"Calculate","v":""},{"$f":"Calculate","v":""},{"$f":"Calculate","v":""},{"$f":"Calculate","v":""},{"$f":"Calculate","v":""},"",{"$f":"Calculate","v":""},{"$f":"Calculate","v":""},{"$f":"Calculate","v":""},{"$f":"Calculate","v":""},{"$f":"Calculate","v":""},{"$f":"Calculate","v":""},{"$f":"Calculate","v":""},"",{"$f":"Calculate","v":""},{"$f":"Calculate","v":""},{"$f":"Calculate","v":""},{"$f":"Calculate","v":""},{"$f":"Calculate","v":""},{"$f":"Calculate","v":""},{"$f":"Calculate","v":""},"",{"$f":"Calculate","v":""},{"$f":"Calculate","v":""},{"$f":"Calculate","v":""},{"$f":"Calculate","v":""},{"$f":"Calculate","v":""},{"$f":"Calculate","v":""},{"$f":"Calculate","v":""},"",{"$f":"Calculate","v":""},{"$f":"Calculate","v":""},{"$f":"Calculate","v":""},{"$f":"Calculate","v":""},{"$f":"Calculate","v":""},{"$f":"Calculate","v":""},{"$f":"Calculate","v":""},"",{"$f":"Calculate","v":""},{"$f":"Calculate","v":""},0,{"$f":"SUMPRODUCT(N(WEEKDAY(ROW(INDIRECT(Firts_DateOfMonth&\":\"&EOMONTH(Firts_DateOfMonth,0))),2)={1,2,3,4,5,6,7})*($D67:$J67=1))","v":0},0,0,0,""]
[63,null,null,null,null,null,null,null,null,null,0,"",{"$f":"Calculate","v":""},{"$f":"Calculate","v":""},{"$f":"Calculate","v":""},{"$f":"Calculate","v":""},{"$f":"Calculate","v":""},{"$f":"Calculate","v":""},{"$f":"Calculate","v":""},"",{"$f":"Calculate","v":""},{"$f":"Calculate","v":""},{"$f":"Calculate","v":""},{"$f":"Calculate","v":""},{"$f":"Calculate","v":""},{"$f":"Calculate","v":""},{"$f":"Calculate","v":""},"",{"$f":"Calculate","v":""},{"$f":"Calculate","v":""},{"$f":"Calculate","v":""},{"$f":"Calculate","v":""},{"$f":"Calculate","v":""},{"$f":"Calculate","v":""},{"$f":"Calculate","v":""},"",{"$f":"Calculate","v":""},{"$f":"Calculate","v":""},{"$f":"Calculate","v":""},{"$f":"Calculate","v":""},{"$f":"Calculate","v":""},{"$f":"Calculate","v":""},{"$f":"Calculate","v":""},"",{"$f":"Calculate","v":""},{"$f":"Calculate","v":""},{"$f":"Calculate","v":""},{"$f":"Calculate","v":""},{"$f":"Calculate","v":""},{"$f":"Calculate","v":""},{"$f":"Calculate","v":""},"",{"$f":"Calculate","v":""},{"$f":"Calculate","v":""},0,{"$f":"SUMPRODUCT(N(WEEKDAY(ROW(INDIRECT(Firts_DateOfMonth&\":\"&EOMONTH(Firts_DateOfMonth,0))),2)={1,2,3,4,5,6,7})*($D68:$J68=1))","v":0},0,0,0,""]
[64,null,null,null,null,null,null,null,null,null,0,"",{"$f":"Calculate","v":""},{"$f":"Calculate","v":""},{"$f":"Calculate","v":""},{"$f":"Calculate","v":""},{"$f":"Calculate","v":""},{"$f":"Calculate","v":""},{"$f":"Calculate","v":""},"",{"$f":"Calculate","v":""},{"$f":"Calculate","v":""},{"$f":"Calculate","v":""},{"$f":"Calculate","v":""},{"$f":"Calculate","v":""},{"$f":"Calculate","v":""},{"$f":"Calculate","v":""},"",{"$f":"Calculate","v":""},{"$f":"Calculate","v":""},{"$f":"Calculate","v":""},{"$f":"Calculate","v":""},{"$f":"Calculate","v":""},{"$f":"Calculate","v":""},{"$f":"Calculate","v":""},"",{"$f":"Calculate","v":""},{"$f":"Calculate","v":""},{"$f":"Calculate","v":""},{"$f":"Calculate","v":""},{"$f":"Calculate","v":""},{"$f":"Calculate","v":""},{"$f":"Calculate","v":""},"",{"$f":"Calculate","v":""},{"$f":"Calculate","v":""},{"$f":"Calculate","v":""},{"$f":"Calculate","v":""},{"$f":"Calculate","v":""},{"$f":"Calculate","v":""},{"$f":"Calculate","v":""},"",{"$f":"Calculate","v":""},{"$f":"Calculate","v":""},0,{"$f":"SUMPRODUCT(N(WEEKDAY(ROW(INDIRECT(Firts_DateOfMonth&\":\"&EOMONTH(Firts_DateOfMonth,0))),2)={1,2,3,4,5,6,7})*($D69:$J69=1))","v":0},0,0,0,""]
[65,null,null,null,null,null,null,null,null,null,0,{"$f":"IF($B70=\"บิลยกเลิก\",\"\",MID(B70,5,1))","v":""},{"$f":"Calculate","v":""},{"$f":"Calculate","v":""},{"$f":"Calculate","v":""},{"$f":"Calculate","v":""},{"$f":"Calculate","v":""},{"$f":"Calculate","v":""},{"$f":"Calculate","v":""},"",{"$f":"Calculate","v":""},{"$f":"Calculate","v":""},{"$f":"Calculate","v":""},{"$f":"Calculate","v":""},{"$f":"Calculate","v":""},{"$f":"Calculate","v":""},{"$f":"Calculate","v":""},"",{"$f":"Calculate","v":""},{"$f":"Calculate","v":""},{"$f":"Calculate","v":""},{"$f":"Calculate","v":""},{"$f":"Calculate","v":""},{"$f":"Calculate","v":""},{"$f":"Calculate","v":""},"",{"$f":"Calculate","v":""},{"$f":"Calculate","v":""},{"$f":"Calculate","v":""},{"$f":"Calculate","v":""},{"$f":"Calculate","v":""},{"$f":"Calculate","v":""},{"$f":"Calculate","v":""},"",{"$f":"Calculate","v":""},{"$f":"Calculate","v":""},{"$f":"Calculate","v":""},{"$f":"Calculate","v":""},{"$f":"Calculate","v":""},{"$f":"Calculate","v":""},{"$f":"Calculate","v":""},"",{"$f":"Calculate","v":""},{"$f":"Calculate","v":""},0,{"$f":"SUMPRODUCT(N(WEEKDAY(ROW(INDIRECT(Firts_DateOfMonth&\":\"&EOMONTH(Firts_DateOfMonth,0))),2)={1,2,3,4,5,6,7})*($D70:$J70=1))","v":0},{"$f":"IF($BF70>0,0,$BG70)","v":0},{"$f":"((LEFT($B70,1)=\"2\")+(LEFT($B70,1)=\"1\")*($L70=\"A\"))*$BG70","v":0},{"$f":"SUMIFS(M70:BB70,$M$5:$BB$5,\"<>Bills\")","v":0},{"$f":"IFERROR($BG70/$BC70,\"\")","v":""}]
[66,null,null,null,null,null,null,null,null,null,{"$f":"SUM(D71:J71)","v":0},"",{"$f":"Calculate","v":""},{"$f":"Calculate","v":""},{"$f":"Calculate","v":""},{"$f":"Calculate","v":""},{"$f":"Calculate","v":""},{"$f":"Calculate","v":""},{"$f":"Calculate","v":""},{"$f":"IF($B71=\"\",\"\",COUNT(M71:S71))","v":""},{"$f":"Calculate","v":""},{"$f":"Calculate","v":""},{"$f":"Calculate","v":""},{"$f":"Calculate","v":""},{"$f":"Calculate","v":""},{"$f":"Calculate","v":""},{"$f":"Calculate","v":""},{"$f":"IF($B71=\"\",\"\",COUNT(U71:AA71))","v":""},{"$f":"Calculate","v":""},{"$f":"Calculate","v":""},{"$f":"Calculate","v":""},{"$f":"Calculate","v":""},{"$f":"Calculate","v":""},{"$f":"Calculate","v":""},{"$f":"Calculate","v":""},{"$f":"IF($B71=\"\",\"\",COUNT(AC71:AI71))","v":""},{"$f":"Calculate","v":""},{"$f":"Calculate","v":""},{"$f":"Calculate","v":""},{"$f":"Calculate","v":""},{"$f":"Calculate","v":""},{"$f":"Calculate","v":""},{"$f":"Calculate","v":""},{"$f":"IF($B71=\"\",\"\",COUNT(AK71:AQ71))","v":""},{"$f":"Calculate","v":""},{"$f":"Calculate","v":""},{"$f":"Calculate","v":""},{"$f":"Calculate","v":""},{"$f":"Calculate","v":""},{"$f":"Calculate","v":""},{"$f":"Calculate","v":""},{"$f":"IF($B71=\"\",\"\",COUNT(AS71:AY71))","v":""},{"$f":"Calculate","v":""},{"$f":"Calculate","v":""},{"$f":"IF(SUMIFS(M71:BB71,$M$5:$BB$5,\"Bills\")=0,0,SUMIFS(M71:BB71,$M$5:$BB$5,\"Bills\"))","v":0},{"$f":"SUMPRODUCT(N(WEEKDAY(ROW(INDIRECT(Firts_DateOfMonth&\":\"&EOMONTH(Firts_DateOfMonth,0))),2)={1,2,3,4,5,6,7})*($D71:$J71=1))","v":0},0,0,0,""]
[67,null,null,null,null,null,null,null,null,null,0,"",{"$f":"Calculate","v":""},{"$f":"Calculate","v":""},{"$f":"Calculate","v":""},{"$f":"Calculate","v":""},{"$f":"Calculate","v":""},{"$f":"Calculate","v":""},{"$f":"Calculate","v":""},"",{"$f":"Calculate","v":""},{"$f":"Calculate","v":""},{"$f":"Calculate","v":""},{"$f":"Calculate","v":""},{"$f":"Calculate","v":""},{"$f":"Calculate","v":""},{"$f":"Calculate","v":""},"",{"$f":"Calculate","v":""},{"$f":"Calculate","v":""},{"$f":"Calculate","v":""},{"$f":"Calculate","v":""},{"$f":"Calculate","v":""},{"$f":"Calculate","v":""},{"$f":"Calculate","v":""},"",{"$f":"Calculate","v":""},{"$f":"Calculate","v":""},{"$f":"Calculate","v":""},{"$f":"Calculate","v":""},{"$f":"Calculate","v":""},{"$f":"Calculate","v":""},{"$f":"Calculate","v":""},"",{"$f":"Calculate","v":""},{"$f":"Calculate","v":""},{"$f":"Calculate","v":""},{"$f":"Calculate","v":""},{"$f":"Calculate","v":""},{"$f":"Calculate","v":""},{"$f":"Calculate","v":""},"",{"$f":"Calculate","v":""},{"$f":"Calculate","v":""},0,{"$f":"SUMPRODUCT(N(WEEKDAY(ROW(INDIRECT(Firts_DateOfMonth&\":\"&EOMONTH(Firts_DateOfMonth,0))),2)={1,2,3,4,5,6,7})*($D72:$J72=1))","v":0},0,0,0,""]
[68,null,null,null,null,null,null,null,null,null,0,"",{"$f":"Calculate","v":""},{"$f":"Calculate","v":""},{"$f":"Calculate","v":""},{"$f":"Calculate","v":""},{"$f":"Calculate","v":""},{"$f":"Calculate","v":""},{"$f":"Calculate","v":""},"",{"$f":"Calculate","v":""},{"$f":"Calculate","v":""},{"$f":"Calculate","v":""},{"$f":"Calculate","v":""},{"$f":"Calculate","v":""},{"$f":"Calculate","v":""},{"$f":"Calculate","v":""},"",{"$f":"Calculate","v":""},{"$f":"Calculate","v":""},{"$f":"Calculate","v":""},{"$f":"Calculate","v":""},{"$f":"Calculate","v":""},{"$f":"Calculate","v":""},{"$f":"Calculate","v":""},"",{"$f":"Calculate","v":""},{"$f":"Calculate","v":""},{"$f":"Calculate","v":""},{"$f":"Calculate","v":""},{"$f":"Calculate","v":""},{"$f":"Calculate","v":""},{"$f":"Calculate","v":""},"",{"$f":"Calculate","v":""},{"$f":"Calculate","v":""},{"$f":"Calculate","v":""},{"$f":"Calculate","v":""},{"$f":"Calculate","v":""},{"$f":"Calculate","v":""},{"$f":"Calculate","v":""},"",{"$f":"Calculate","v":""},{"$f":"Calculate","v":""},0,{"$f":"SUMPRODUCT(N(WEEKDAY(ROW(INDIRECT(Firts_DateOfMonth&\":\"&EOMONTH(Firts_DateOfMonth,0))),2)={1,2,3,4,5,6,7})*($D73:$J73=1))","v":0},0,0,0,""]
[69,null,null,null,null,null,null,null,null,null,0,"",{"$f":"Calculate","v":""},{"$f":"Calculate","v":""},{"$f":"Calculate","v":""},{"$f":"Calculate","v":""},{"$f":"Calculate","v":""},{"$f":"Calculate","v":""},{"$f":"Calculate","v":""},"",{"$f":"Calculate","v":""},{"$f":"Calculate","v":""},{"$f":"Calculate","v":""},{"$f":"Calculate","v":""},{"$f":"Calculate","v":""},{"$f":"Calculate","v":""},{"$f":"Calculate","v":""},"",{"$f":"Calculate","v":""},{"$f":"Calculate","v":""},{"$f":"Calculate","v":""},{"$f":"Calculate","v":""},{"$f":"Calculate","v":""},{"$f":"Calculate","v":""},{"$f":"Calculate","v":""},"",{"$f":"Calculate","v":""},{"$f":"Calculate","v":""},{"$f":"Calculate","v":""},{"$f":"Calculate","v":""},{"$f":"Calculate","v":""},{"$f":"Calculate","v":""},{"$f":"Calculate","v":""},"",{"$f":"Calculate","v":""},{"$f":"Calculate","v":""},{"$f":"Calculate","v":""},{"$f":"Calculate","v":""},{"$f":"Calculate","v":""},{"$f":"Calculate","v":""},{"$f":"Calculate","v":""},"",{"$f":"Calculate","v":""},{"$f":"Calculate","v":""},0,{"$f":"SUMPRODUCT(N(WEEKDAY(ROW(INDIRECT(Firts_DateOfMonth&\":\"&EOMONTH(Firts_DateOfMonth,0))),2)={1,2,3,4,5,6,7})*($D74:$J74=1))","v":0},0,0,0,""]
[70,null,null,null,null,null,null,null,null,null,0,"",{"$f":"Calculate","v":""},{"$f":"Calculate","v":""},{"$f":"Calculate","v":""},{"$f":"Calculate","v":""},{"$f":"Calculate","v":""},{"$f":"Calculate","v":""},{"$f":"Calculate","v":""},"",{"$f":"Calculate","v":""},{"$f":"Calculate","v":""},{"$f":"Calculate","v":""},{"$f":"Calculate","v":""},{"$f":"Calculate","v":""},{"$f":"Calculate","v":""},{"$f":"Calculate","v":""},"",{"$f":"Calculate","v":""},{"$f":"Calculate","v":""},{"$f":"Calculate","v":""},{"$f":"Calculate","v":""},{"$f":"Calculate","v":""},{"$f":"Calculate","v":""},{"$f":"Calculate","v":""},"",{"$f":"Calculate","v":""},{"$f":"Calculate","v":""},{"$f":"Calculate","v":""},{"$f":"Calculate","v":""},{"$f":"Calculate","v":""},{"$f":"Calculate","v":""},{"$f":"Calculate","v":""},"",{"$f":"Calculate","v":""},{"$f":"Calculate","v":""},{"$f":"Calculate","v":""},{"$f":"Calculate","v":""},{"$f":"Calculate","v":""},{"$f":"Calculate","v":""},{"$f":"Calculate","v":""},"",{"$f":"Calculate","v":""},{"$f":"Calculate","v":""},0,{"$f":"SUMPRODUCT(N(WEEKDAY(ROW(INDIRECT(Firts_DateOfMonth&\":\"&EOMONTH(Firts_DateOfMonth,0))),2)={1,2,3,4,5,6,7})*($D75:$J75=1))","v":0},0,0,0,""]
[71,null,null,null,null,null,null,null,null,null,0,"",{"$f":"Calculate","v":""},{"$f":"Calculate","v":""},{"$f":"Calculate","v":""},{"$f":"Calculate","v":""},{"$f":"Calculate","v":""},{"$f":"Calculate","v":""},{"$f":"Calculate","v":""},"",{"$f":"Calculate","v":""},{"$f":"Calculate","v":""},{"$f":"Calculate","v":""},{"$f":"Calculate","v":""},{"$f":"Calculate","v":""},{"$f":"Calculate","v":""},{"$f":"Calculate","v":""},"",{"$f":"Calculate","v":""},{"$f":"Calculate","v":""},{"$f":"Calculate","v":""},{"$f":"Calculate","v":""},{"$f":"Calculate","v":""},{"$f":"Calculate","v":""},{"$f":"Calculate","v":""},"",{"$f":"Calculate","v":""},{"$f":"Calculate","v":""},{"$f":"Calculate","v":""},{"$f":"Calculate","v":""},{"$f":"Calculate","v":""},{"$f":"Calculate","v":""},{"$f":"Calculate","v":""},"",{"$f":"Calculate","v":""},{"$f":"Calculate","v":""},{"$f":"Calculate","v":""},{"$f":"Calculate","v":""},{"$f":"Calculate","v":""},{"$f":"Calculate","v":""},{"$f":"Calculate","v":""},"",{"$f":"Calculate","v":""},{"$f":"Calculate","v":""},0,{"$f":"SUMPRODUCT(N(WEEKDAY(ROW(INDIRECT(Firts_DateOfMonth&\":\"&EOMONTH(Firts_DateOfMonth,0))),2)={1,2,3,4,5,6,7})*($D76:$J76=1))","v":0},0,0,0,""]
[72,null,null,null,null,null,null,null,null,null,0,"",{"$f":"Calculate","v":""},{"$f":"Calculate","v":""},{"$f":"Calculate","v":""},{"$f":"Calculate","v":""},{"$f":"Calculate","v":""},{"$f":"Calculate","v":""},{"$f":"Calculate","v":""},"",{"$f":"Calculate","v":""},{"$f":"Calculate","v":""},{"$f":"Calculate","v":""},{"$f":"Calculate","v":""},{"$f":"Calculate","v":""},{"$f":"Calculate","v":""},{"$f":"Calculate","v":""},"",{"$f":"Calculate","v":""},{"$f":"Calculate","v":""},{"$f":"Calculate","v":""},{"$f":"Calculate","v":""},{"$f":"Calculate","v":""},{"$f":"Calculate","v":""},{"$f":"Calculate","v":""},"",{"$f":"Calculate","v":""},{"$f":"Calculate","v":""},{"$f":"Calculate","v":""},{"$f":"Calculate","v":""},{"$f":"Calculate","v":""},{"$f":"Calculate","v":""},{"$f":"Calculate","v":""},"",{"$f":"Calculate","v":""},{"$f":"Calculate","v":""},{"$f":"Calculate","v":""},{"$f":"Calculate","v":""},{"$f":"Calculate","v":""},{"$f":"Calculate","v":""},{"$f":"Calculate","v":""},"",{"$f":"Calculate","v":""},{"$f":"Calculate","v":""},0,{"$f":"SUMPRODUCT(N(WEEKDAY(ROW(INDIRECT(Firts_DateOfMonth&\":\"&EOMONTH(Firts_DateOfMonth,0))),2)={1,2,3,4,5,6,7})*($D77:$J77=1))","v":0},0,0,0,""]
[73,null,null,null,null,null,null,null,null,null,0,"",{"$f":"Calculate","v":""},{"$f":"Calculate","v":""},{"$f":"Calculate","v":""},{"$f":"Calculate","v":""},{"$f":"Calculate","v":""},{"$f":"Calculate","v":""},{"$f":"Calculate","v":""},"",{"$f":"Calculate","v":""},{"$f":"Calculate","v":""},{"$f":"Calculate","v":""},{"$f":"Calculate","v":""},{"$f":"Calculate","v":""},{"$f":"Calculate","v":""},{"$f":"Calculate","v":""},"",{"$f":"Calculate","v":""},{"$f":"Calculate","v":""},{"$f":"Calculate","v":""},{"$f":"Calculate","v":""},{"$f":"Calculate","v":""},{"$f":"Calculate","v":""},{"$f":"Calculate","v":""},"",{"$f":"Calculate","v":""},{"$f":"Calculate","v":""},{"$f":"Calculate","v":""},{"$f":"Calculate","v":""},{"$f":"Calculate","v":""},{"$f":"Calculate","v":""},{"$f":"Calculate","v":""},"",{"$f":"Calculate","v":""},{"$f":"Calculate","v":""},{"$f":"Calculate","v":""},{"$f":"Calculate","v":""},{"$f":"Calculate","v":""},{"$f":"Calculate","v":""},{"$f":"Calculate","v":""},"",{"$f":"Calculate","v":""},{"$f":"Calculate","v":""},0,{"$f":"SUMPRODUCT(N(WEEKDAY(ROW(INDIRECT(Firts_DateOfMonth&\":\"&EOMONTH(Firts_DateOfMonth,0))),2)={1,2,3,4,5,6,7})*($D78:$J78=1))","v":0},0,0,0,""]
[74,null,null,null,null,null,null,null,null,null,0,"",{"$f":"Calculate","v":""},{"$f":"Calculate","v":""},{"$f":"Calculate","v":""},{"$f":"Calculate","v":""},{"$f":"Calculate","v":""},{"$f":"Calculate","v":""},{"$f":"Calculate","v":""},"",{"$f":"Calculate","v":""},{"$f":"Calculate","v":""},{"$f":"Calculate","v":""},{"$f":"Calculate","v":""},{"$f":"Calculate","v":""},{"$f":"Calculate","v":""},{"$f":"Calculate","v":""},"",{"$f":"Calculate","v":""},{"$f":"Calculate","v":""},{"$f":"Calculate","v":""},{"$f":"Calculate","v":""},{"$f":"Calculate","v":""},{"$f":"Calculate","v":""},{"$f":"Calculate","v":""},"",{"$f":"Calculate","v":""},{"$f":"Calculate","v":""},{"$f":"Calculate","v":""},{"$f":"Calculate","v":""},{"$f":"Calculate","v":""},{"$f":"Calculate","v":""},{"$f":"Calculate","v":""},"",{"$f":"Calculate","v":""},{"$f":"Calculate","v":""},{"$f":"Calculate","v":""},{"$f":"Calculate","v":""},{"$f":"Calculate","v":""},{"$f":"Calculate","v":""},{"$f":"Calculate","v":""},"",{"$f":"Calculate","v":""},{"$f":"Calculate","v":""},0,{"$f":"SUMPRODUCT(N(WEEKDAY(ROW(INDIRECT(Firts_DateOfMonth&\":\"&EOMONTH(Firts_DateOfMonth,0))),2)={1,2,3,4,5,6,7})*($D79:$J79=1))","v":0},0,0,0,""]
[75,null,null,null,null,null,null,null,null,null,0,"",{"$f":"Calculate","v":""},{"$f":"Calculate","v":""},{"$f":"Calculate","v":""},{"$f":"Calculate","v":""},{"$f":"Calculate","v":""},{"$f":"Calculate","v":""},{"$f":"Calculate","v":""},"",{"$f":"Calculate","v":""},{"$f":"Calculate","v":""},{"$f":"Calculate","v":""},{"$f":"Calculate","v":""},{"$f":"Calculate","v":""},{"$f":"Calculate","v":""},{"$f":"Calculate","v":""},"",{"$f":"Calculate","v":""},{"$f":"Calculate","v":""},{"$f":"Calculate","v":""},{"$f":"Calculate","v":""},{"$f":"Calculate","v":""},{"$f":"Calculate","v":""},{"$f":"Calculate","v":""},"",{"$f":"Calculate","v":""},{"$f":"Calculate","v":""},{"$f":"Calculate","v":""},{"$f":"Calculate","v":""},{"$f":"Calculate","v":""},{"$f":"Calculate","v":""},{"$f":"Calculate","v":""},"",{"$f":"Calculate","v":""},{"$f":"Calculate","v":""},{"$f":"Calculate","v":""},{"$f":"Calculate","v":""},{"$f":"Calculate","v":""},{"$f":"Calculate","v":""},{"$f":"Calculate","v":""},"",{"$f":"Calculate","v":""},{"$f":"Calculate","v":""},0,{"$f":"SUMPRODUCT(N(WEEKDAY(ROW(INDIRECT(Firts_DateOfMonth&\":\"&EOMONTH(Firts_DateOfMonth,0))),2)={1,2,3,4,5,6,7})*($D80:$J80=1))","v":0},0,0,0,""]
[76,null,null,null,null,null,null,null,null,null,0,"",{"$f":"Calculate","v":""},{"$f":"Calculate","v":""},{"$f":"Calculate","v":""},{"$f":"Calculate","v":""},{"$f":"Calculate","v":""},{"$f":"Calculate","v":""},{"$f":"Calculate","v":""},"",{"$f":"Calculate","v":""},{"$f":"Calculate","v":""},{"$f":"Calculate","v":""},{"$f":"Calculate","v":""},{"$f":"Calculate","v":""},{"$f":"Calculate","v":""},{"$f":"Calculate","v":""},"",{"$f":"Calculate","v":""},{"$f":"Calculate","v":""},{"$f":"Calculate","v":""},{"$f":"Calculate","v":""},{"$f":"Calculate","v":""},{"$f":"Calculate","v":""},{"$f":"Calculate","v":""},"",{"$f":"Calculate","v":""},{"$f":"Calculate","v":""},{"$f":"Calculate","v":""},{"$f":"Calculate","v":""},{"$f":"Calculate","v":""},{"$f":"Calculate","v":""},{"$f":"Calculate","v":""},"",{"$f":"Calculate","v":""},{"$f":"Calculate","v":""},{"$f":"Calculate","v":""},{"$f":"Calculate","v":""},{"$f":"Calculate","v":""},{"$f":"Calculate","v":""},{"$f":"Calculate","v":""},"",{"$f":"Calculate","v":""},{"$f":"Calculate","v":""},0,{"$f":"SUMPRODUCT(N(WEEKDAY(ROW(INDIRECT(Firts_DateOfMonth&\":\"&EOMONTH(Firts_DateOfMonth,0))),2)={1,2,3,4,5,6,7})*($D81:$J81=1))","v":0},0,0,0,""]
[77,null,null,null,null,null,null,null,null,null,0,"",{"$f":"Calculate","v":""},{"$f":"Calculate","v":""},{"$f":"Calculate","v":""},{"$f":"Calculate","v":""},{"$f":"Calculate","v":""},{"$f":"Calculate","v":""},{"$f":"Calculate","v":""},"",{"$f":"Calculate","v":""},{"$f":"Calculate","v":""},{"$f":"Calculate","v":""},{"$f":"Calculate","v":""},{"$f":"Calculate","v":""},{"$f":"Calculate","v":""},{"$f":"Calculate","v":""},"",{"$f":"Calculate","v":""},{"$f":"Calculate","v":""},{"$f":"Calculate","v":""},{"$f":"Calculate","v":""},{"$f":"Calculate","v":""},{"$f":"Calculate","v":""},{"$f":"Calculate","v":""},"",{"$f":"Calculate","v":""},{"$f":"Calculate","v":""},{"$f":"Calculate","v":""},{"$f":"Calculate","v":""},{"$f":"Calculate","v":""},{"$f":"Calculate","v":""},{"$f":"Calculate","v":""},"",{"$f":"Calculate","v":""},{"$f":"Calculate","v":""},{"$f":"Calculate","v":""},{"$f":"Calculate","v":""},{"$f":"Calculate","v":""},{"$f":"Calculate","v":""},{"$f":"Calculate","v":""},"",{"$f":"Calculate","v":""},{"$f":"Calculate","v":""},0,{"$f":"SUMPRODUCT(N(WEEKDAY(ROW(INDIRECT(Firts_DateOfMonth&\":\"&EOMONTH(Firts_DateOfMonth,0))),2)={1,2,3,4,5,6,7})*($D82:$J82=1))","v":0},0,0,0,""]
[78,null,null,null,null,null,null,null,null,null,0,"",{"$f":"Calculate","v":""},{"$f":"Calculate","v":""},{"$f":"Calculate","v":""},{"$f":"Calculate","v":""},{"$f":"Calculate","v":""},{"$f":"Calculate","v":""},{"$f":"Calculate","v":""},"",{"$f":"Calculate","v":""},{"$f":"Calculate","v":""},{"$f":"Calculate","v":""},{"$f":"Calculate","v":""},{"$f":"Calculate","v":""},{"$f":"Calculate","v":""},{"$f":"Calculate","v":""},"",{"$f":"Calculate","v":""},{"$f":"Calculate","v":""},{"$f":"Calculate","v":""},{"$f":"Calculate","v":""},{"$f":"Calculate","v":""},{"$f":"Calculate","v":""},{"$f":"Calculate","v":""},"",{"$f":"Calculate","v":""},{"$f":"Calculate","v":""},{"$f":"Calculate","v":""},{"$f":"Calculate","v":""},{"$f":"Calculate","v":""},{"$f":"Calculate","v":""},{"$f":"Calculate","v":""},"",{"$f":"Calculate","v":""},{"$f":"Calculate","v":""},{"$f":"Calculate","v":""},{"$f":"Calculate","v":""},{"$f":"Calculate","v":""},{"$f":"Calculate","v":""},{"$f":"Calculate","v":""},"",{"$f":"Calculate","v":""},{"$f":"Calculate","v":""},0,{"$f":"SUMPRODUCT(N(WEEKDAY(ROW(INDIRECT(Firts_DateOfMonth&\":\"&EOMONTH(Firts_DateOfMonth,0))),2)={1,2,3,4,5,6,7})*($D83:$J83=1))","v":0},0,0,0,""]
[79,null,null,null,null,null,null,null,null,null,0,"",{"$f":"Calculate","v":""},{"$f":"Calculate","v":""},{"$f":"Calculate","v":""},{"$f":"Calculate","v":""},{"$f":"Calculate","v":""},{"$f":"Calculate","v":""},{"$f":"Calculate","v":""},"",{"$f":"Calculate","v":""},{"$f":"Calculate","v":""},{"$f":"Calculate","v":""},{"$f":"Calculate","v":""},{"$f":"Calculate","v":""},{"$f":"Calculate","v":""},{"$f":"Calculate","v":""},"",{"$f":"Calculate","v":""},{"$f":"Calculate","v":""},{"$f":"Calculate","v":""},{"$f":"Calculate","v":""},{"$f":"Calculate","v":""},{"$f":"Calculate","v":""},{"$f":"Calculate","v":""},"",{"$f":"Calculate","v":""},{"$f":"Calculate","v":""},{"$f":"Calculate","v":""},{"$f":"Calculate","v":""},{"$f":"Calculate","v":""},{"$f":"Calculate","v":""},{"$f":"Calculate","v":""},"",{"$f":"Calculate","v":""},{"$f":"Calculate","v":""},{"$f":"Calculate","v":""},{"$f":"Calculate","v":""},{"$f":"Calculate","v":""},{"$f":"Calculate","v":""},{"$f":"Calculate","v":""},"",{"$f":"Calculate","v":""},{"$f":"Calculate","v":""},0,{"$f":"SUMPRODUCT(N(WEEKDAY(ROW(INDIRECT(Firts_DateOfMonth&\":\"&EOMONTH(Firts_DateOfMonth,0))),2)={1,2,3,4,5,6,7})*($D84:$J84=1))","v":0},0,0,0,""]
[80,null,null,null,null,null,null,null,null,null,0,"",{"$f":"Calculate","v":""},{"$f":"Calculate","v":""},{"$f":"Calculate","v":""},{"$f":"Calculate","v":""},{"$f":"Calculate","v":""},{"$f":"Calculate","v":""},{"$f":"Calculate","v":""},"",{"$f":"Calculate","v":""},{"$f":"Calculate","v":""},{"$f":"Calculate","v":""},{"$f":"Calculate","v":""},{"$f":"Calculate","v":""},{"$f":"Calculate","v":""},{"$f":"Calculate","v":""},"",{"$f":"Calculate","v":""},{"$f":"Calculate","v":""},{"$f":"Calculate","v":""},{"$f":"Calculate","v":""},{"$f":"Calculate","v":""},{"$f":"Calculate","v":""},{"$f":"Calculate","v":""},"",{"$f":"Calculate","v":""},{"$f":"Calculate","v":""},{"$f":"Calculate","v":""},{"$f":"Calculate","v":""},{"$f":"Calculate","v":""},{"$f":"Calculate","v":""},{"$f":"Calculate","v":""},"",{"$f":"Calculate","v":""},{"$f":"Calculate","v":""},{"$f":"Calculate","v":""},{"$f":"Calculate","v":""},{"$f":"Calculate","v":""},{"$f":"Calculate","v":""},{"$f":"Calculate","v":""},"",{"$f":"Calculate","v":""},{"$f":"Calculate","v":""},0,{"$f":"SUMPRODUCT(N(WEEKDAY(ROW(INDIRECT(Firts_DateOfMonth&\":\"&EOMONTH(Firts_DateOfMonth,0))),2)={1,2,3,4,5,6,7})*($D85:$J85=1))","v":0},0,0,0,""]
[81,null,null,null,null,null,null,null,null,null,0,"",{"$f":"Calculate","v":""},{"$f":"Calculate","v":""},{"$f":"Calculate","v":""},{"$f":"Calculate","v":""},{"$f":"Calculate","v":""},{"$f":"Calculate","v":""},{"$f":"Calculate","v":""},"",{"$f":"Calculate","v":""},{"$f":"Calculate","v":""},{"$f":"Calculate","v":""},{"$f":"Calculate","v":""},{"$f":"Calculate","v":""},{"$f":"Calculate","v":""},{"$f":"Calculate","v":""},"",{"$f":"Calculate","v":""},{"$f":"Calculate","v":""},{"$f":"Calculate","v":""},{"$f":"Calculate","v":""},{"$f":"Calculate","v":""},{"$f":"Calculate","v":""},{"$f":"Calculate","v":""},"",{"$f":"Calculate","v":""},{"$f":"Calculate","v":""},{"$f":"Calculate","v":""},{"$f":"Calculate","v":""},{"$f":"Calculate","v":""},{"$f":"Calculate","v":""},{"$f":"Calculate","v":""},"",{"$f":"Calculate","v":""},{"$f":"Calculate","v":""},{"$f":"Calculate","v":""},{"$f":"Calculate","v":""},{"$f":"Calculate","v":""},{"$f":"Calculate","v":""},{"$f":"Calculate","v":""},"",{"$f":"Calculate","v":""},{"$f":"Calculate","v":""},0,{"$f":"SUMPRODUCT(N(WEEKDAY(ROW(INDIRECT(Firts_DateOfMonth&\":\"&EOMONTH(Firts_DateOfMonth,0))),2)={1,2,3,4,5,6,7})*($D86:$J86=1))","v":0},0,0,0,""]
[82,null,null,null,null,null,null,null,null,null,0,"",{"$f":"Calculate","v":""},{"$f":"Calculate","v":""},{"$f":"Calculate","v":""},{"$f":"Calculate","v":""},{"$f":"Calculate","v":""},{"$f":"Calculate","v":""},{"$f":"Calculate","v":""},"",{"$f":"Calculate","v":""},{"$f":"Calculate","v":""},{"$f":"Calculate","v":""},{"$f":"Calculate","v":""},{"$f":"Calculate","v":""},{"$f":"Calculate","v":""},{"$f":"Calculate","v":""},"",{"$f":"Calculate","v":""},{"$f":"Calculate","v":""},{"$f":"Calculate","v":""},{"$f":"Calculate","v":""},{"$f":"Calculate","v":""},{"$f":"Calculate","v":""},{"$f":"Calculate","v":""},"",{"$f":"Calculate","v":""},{"$f":"Calculate","v":""},{"$f":"Calculate","v":""},{"$f":"Calculate","v":""},{"$f":"Calculate","v":""},{"$f":"Calculate","v":""},{"$f":"Calculate","v":""},"",{"$f":"Calculate","v":""},{"$f":"Calculate","v":""},{"$f":"Calculate","v":""},{"$f":"Calculate","v":""},{"$f":"Calculate","v":""},{"$f":"Calculate","v":""},{"$f":"Calculate","v":""},"",{"$f":"Calculate","v":""},{"$f":"Calculate","v":""},0,{"$f":"SUMPRODUCT(N(WEEKDAY(ROW(INDIRECT(Firts_DateOfMonth&\":\"&EOMONTH(Firts_DateOfMonth,0))),2)={1,2,3,4,5,6,7})*($D87:$J87=1))","v":0},0,0,0,""]
[83,null,null,null,null,null,null,null,null,null,0,"",{"$f":"Calculate","v":""},{"$f":"Calculate","v":""},{"$f":"Calculate","v":""},{"$f":"Calculate","v":""},{"$f":"Calculate","v":""},{"$f":"Calculate","v":""},{"$f":"Calculate","v":""},"",{"$f":"Calculate","v":""},{"$f":"Calculate","v":""},{"$f":"Calculate","v":""},{"$f":"Calculate","v":""},{"$f":"Calculate","v":""},{"$f":"Calculate","v":""},{"$f":"Calculate","v":""},"",{"$f":"Calculate","v":""},{"$f":"Calculate","v":""},{"$f":"Calculate","v":""},{"$f":"Calculate","v":""},{"$f":"Calculate","v":""},{"$f":"Calculate","v":""},{"$f":"Calculate","v":""},"",{"$f":"Calculate","v":""},{"$f":"Calculate","v":""},{"$f":"Calculate","v":""},{"$f":"Calculate","v":""},{"$f":"Calculate","v":""},{"$f":"Calculate","v":""},{"$f":"Calculate","v":""},"",{"$f":"Calculate","v":""},{"$f":"Calculate","v":""},{"$f":"Calculate","v":""},{"$f":"Calculate","v":""},{"$f":"Calculate","v":""},{"$f":"Calculate","v":""},{"$f":"Calculate","v":""},"",{"$f":"Calculate","v":""},{"$f":"Calculate","v":""},0,{"$f":"SUMPRODUCT(N(WEEKDAY(ROW(INDIRECT(Firts_DateOfMonth&\":\"&EOMONTH(Firts_DateOfMonth,0))),2)={1,2,3,4,5,6,7})*($D88:$J88=1))","v":0},0,0,0,""]
[84,null,null,null,null,null,null,null,null,null,0,"",{"$f":"Calculate","v":""},{"$f":"Calculate","v":""},{"$f":"Calculate","v":""},{"$f":"Calculate","v":""},{"$f":"Calculate","v":""},{"$f":"Calculate","v":""},{"$f":"Calculate","v":""},"",{"$f":"Calculate","v":""},{"$f":"Calculate","v":""},{"$f":"Calculate","v":""},{"$f":"Calculate","v":""},{"$f":"Calculate","v":""},{"$f":"Calculate","v":""},{"$f":"Calculate","v":""},"",{"$f":"Calculate","v":""},{"$f":"Calculate","v":""},{"$f":"Calculate","v":""},{"$f":"Calculate","v":""},{"$f":"Calculate","v":""},{"$f":"Calculate","v":""},{"$f":"Calculate","v":""},"",{"$f":"Calculate","v":""},{"$f":"Calculate","v":""},{"$f":"Calculate","v":""},{"$f":"Calculate","v":""},{"$f":"Calculate","v":""},{"$f":"Calculate","v":""},{"$f":"Calculate","v":""},"",{"$f":"Calculate","v":""},{"$f":"Calculate","v":""},{"$f":"Calculate","v":""},{"$f":"Calculate","v":""},{"$f":"Calculate","v":""},{"$f":"Calculate","v":""},{"$f":"Calculate","v":""},"",{"$f":"Calculate","v":""},{"$f":"Calculate","v":""},0,{"$f":"SUMPRODUCT(N(WEEKDAY(ROW(INDIRECT(Firts_DateOfMonth&\":\"&EOMONTH(Firts_DateOfMonth,0))),2)={1,2,3,4,5,6,7})*($D89:$J89=1))","v":0},0,0,0,""]
[85,null,null,null,null,null,null,null,null,null,0,"",{"$f":"Calculate","v":""},{"$f":"Calculate","v":""},{"$f":"Calculate","v":""},{"$f":"Calculate","v":""},{"$f":"Calculate","v":""},{"$f":"Calculate","v":""},{"$f":"Calculate","v":""},"",{"$f":"Calculate","v":""},{"$f":"Calculate","v":""},{"$f":"Calculate","v":""},{"$f":"Calculate","v":""},{"$f":"Calculate","v":""},{"$f":"Calculate","v":""},{"$f":"Calculate","v":""},"",{"$f":"Calculate","v":""},{"$f":"Calculate","v":""},{"$f":"Calculate","v":""},{"$f":"Calculate","v":""},{"$f":"Calculate","v":""},{"$f":"Calculate","v":""},{"$f":"Calculate","v":""},"",{"$f":"Calculate","v":""},{"$f":"Calculate","v":""},{"$f":"Calculate","v":""},{"$f":"Calculate","v":""},{"$f":"Calculate","v":""},{"$f":"Calculate","v":""},{"$f":"Calculate","v":""},"",{"$f":"Calculate","v":""},{"$f":"Calculate","v":""},{"$f":"Calculate","v":""},{"$f":"Calculate","v":""},{"$f":"Calculate","v":""},{"$f":"Calculate","v":""},{"$f":"Calculate","v":""},"",{"$f":"Calculate","v":""},{"$f":"Calculate","v":""},0,{"$f":"SUMPRODUCT(N(WEEKDAY(ROW(INDIRECT(Firts_DateOfMonth&\":\"&EOMONTH(Firts_DateOfMonth,0))),2)={1,2,3,4,5,6,7})*($D90:$J90=1))","v":0},0,0,0,""]
[86,null,null,null,null,null,null,null,null,null,0,"",{"$f":"Calculate","v":""},{"$f":"Calculate","v":""},{"$f":"Calculate","v":""},{"$f":"Calculate","v":""},{"$f":"Calculate","v":""},{"$f":"Calculate","v":""},{"$f":"Calculate","v":""},"",{"$f":"Calculate","v":""},{"$f":"Calculate","v":""},{"$f":"Calculate","v":""},{"$f":"Calculate","v":""},{"$f":"Calculate","v":""},{"$f":"Calculate","v":""},{"$f":"Calculate","v":""},"",{"$f":"Calculate","v":""},{"$f":"Calculate","v":""},{"$f":"Calculate","v":""},{"$f":"Calculate","v":""},{"$f":"Calculate","v":""},{"$f":"Calculate","v":""},{"$f":"Calculate","v":""},"",{"$f":"Calculate","v":""},{"$f":"Calculate","v":""},{"$f":"Calculate","v":""},{"$f":"Calculate","v":""},{"$f":"Calculate","v":""},{"$f":"Calculate","v":""},{"$f":"Calculate","v":""},"",{"$f":"Calculate","v":""},{"$f":"Calculate","v":""},{"$f":"Calculate","v":""},{"$f":"Calculate","v":""},{"$f":"Calculate","v":""},{"$f":"Calculate","v":""},{"$f":"Calculate","v":""},"",{"$f":"Calculate","v":""},{"$f":"Calculate","v":""},0,{"$f":"SUMPRODUCT(N(WEEKDAY(ROW(INDIRECT(Firts_DateOfMonth&\":\"&EOMONTH(Firts_DateOfMonth,0))),2)={1,2,3,4,5,6,7})*($D91:$J91=1))","v":0},0,0,0,""]
[87,null,null,null,null,null,null,null,null,null,0,"",{"$f":"Calculate","v":""},{"$f":"Calculate","v":""},{"$f":"Calculate","v":""},{"$f":"Calculate","v":""},{"$f":"Calculate","v":""},{"$f":"Calculate","v":""},{"$f":"Calculate","v":""},"",{"$f":"Calculate","v":""},{"$f":"Calculate","v":""},{"$f":"Calculate","v":""},{"$f":"Calculate","v":""},{"$f":"Calculate","v":""},{"$f":"Calculate","v":""},{"$f":"Calculate","v":""},"",{"$f":"Calculate","v":""},{"$f":"Calculate","v":""},{"$f":"Calculate","v":""},{"$f":"Calculate","v":""},{"$f":"Calculate","v":""},{"$f":"Calculate","v":""},{"$f":"Calculate","v":""},"",{"$f":"Calculate","v":""},{"$f":"Calculate","v":""},{"$f":"Calculate","v":""},{"$f":"Calculate","v":""},{"$f":"Calculate","v":""},{"$f":"Calculate","v":""},{"$f":"Calculate","v":""},"",{"$f":"Calculate","v":""},{"$f":"Calculate","v":""},{"$f":"Calculate","v":""},{"$f":"Calculate","v":""},{"$f":"Calculate","v":""},{"$f":"Calculate","v":""},{"$f":"Calculate","v":""},"",{"$f":"Calculate","v":""},{"$f":"Calculate","v":""},0,{"$f":"SUMPRODUCT(N(WEEKDAY(ROW(INDIRECT(Firts_DateOfMonth&\":\"&EOMONTH(Firts_DateOfMonth,0))),2)={1,2,3,4,5,6,7})*($D92:$J92=1))","v":0},0,0,0,""]
[88,null,null,null,null,null,null,null,null,null,0,"",{"$f":"Calculate","v":""},{"$f":"Calculate","v":""},{"$f":"Calculate","v":""},{"$f":"Calculate","v":""},{"$f":"Calculate","v":""},{"$f":"Calculate","v":""},{"$f":"Calculate","v":""},"",{"$f":"Calculate","v":""},{"$f":"Calculate","v":""},{"$f":"Calculate","v":""},{"$f":"Calculate","v":""},{"$f":"Calculate","v":""},{"$f":"Calculate","v":""},{"$f":"Calculate","v":""},"",{"$f":"Calculate","v":""},{"$f":"Calculate","v":""},{"$f":"Calculate","v":""},{"$f":"Calculate","v":""},{"$f":"Calculate","v":""},{"$f":"Calculate","v":""},{"$f":"Calculate","v":""},"",{"$f":"Calculate","v":""},{"$f":"Calculate","v":""},{"$f":"Calculate","v":""},{"$f":"Calculate","v":""},{"$f":"Calculate","v":""},{"$f":"Calculate","v":""},{"$f":"Calculate","v":""},"",{"$f":"Calculate","v":""},{"$f":"Calculate","v":""},{"$f":"Calculate","v":""},{"$f":"Calculate","v":""},{"$f":"Calculate","v":""},{"$f":"Calculate","v":""},{"$f":"Calculate","v":""},"",{"$f":"Calculate","v":""},{"$f":"Calculate","v":""},0,{"$f":"SUMPRODUCT(N(WEEKDAY(ROW(INDIRECT(Firts_DateOfMonth&\":\"&EOMONTH(Firts_DateOfMonth,0))),2)={1,2,3,4,5,6,7})*($D93:$J93=1))","v":0},0,0,0,""]
[89,null,null,null,null,null,null,null,null,null,0,"",{"$f":"Calculate","v":""},{"$f":"Calculate","v":""},{"$f":"Calculate","v":""},{"$f":"Calculate","v":""},{"$f":"Calculate","v":""},{"$f":"Calculate","v":""},{"$f":"Calculate","v":""},"",{"$f":"Calculate","v":""},{"$f":"Calculate","v":""},{"$f":"Calculate","v":""},{"$f":"Calculate","v":""},{"$f":"Calculate","v":""},{"$f":"Calculate","v":""},{"$f":"Calculate","v":""},"",{"$f":"Calculate","v":""},{"$f":"Calculate","v":""},{"$f":"Calculate","v":""},{"$f":"Calculate","v":""},{"$f":"Calculate","v":""},{"$f":"Calculate","v":""},{"$f":"Calculate","v":""},"",{"$f":"Calculate","v":""},{"$f":"Calculate","v":""},{"$f":"Calculate","v":""},{"$f":"Calculate","v":""},{"$f":"Calculate","v":""},{"$f":"Calculate","v":""},{"$f":"Calculate","v":""},"",{"$f":"Calculate","v":""},{"$f":"Calculate","v":""},{"$f":"Calculate","v":""},{"$f":"Calculate","v":""},{"$f":"Calculate","v":""},{"$f":"Calculate","v":""},{"$f":"Calculate","v":""},"",{"$f":"Calculate","v":""},{"$f":"Calculate","v":""},0,{"$f":"SUMPRODUCT(N(WEEKDAY(ROW(INDIRECT(Firts_DateOfMonth&\":\"&EOMONTH(Firts_DateOfMonth,0))),2)={1,2,3,4,5,6,7})*($D94:$J94=1))","v":0},0,0,0,""]
[90,null,null,null,null,null,null,null,null,null,0,"",{"$f":"Calculate","v":""},{"$f":"Calculate","v":""},{"$f":"Calculate","v":""},{"$f":"Calculate","v":""},{"$f":"Calculate","v":""},{"$f":"Calculate","v":""},{"$f":"Calculate","v":""},"",{"$f":"Calculate","v":""},{"$f":"Calculate","v":""},{"$f":"Calculate","v":""},{"$f":"Calculate","v":""},{"$f":"Calculate","v":""},{"$f":"Calculate","v":""},{"$f":"Calculate","v":""},"",{"$f":"Calculate","v":""},{"$f":"Calculate","v":""},{"$f":"Calculate","v":""},{"$f":"Calculate","v":""},{"$f":"Calculate","v":""},{"$f":"Calculate","v":""},{"$f":"Calculate","v":""},"",{"$f":"Calculate","v":""},{"$f":"Calculate","v":""},{"$f":"Calculate","v":""},{"$f":"Calculate","v":""},{"$f":"Calculate","v":""},{"$f":"Calculate","v":""},{"$f":"Calculate","v":""},"",{"$f":"Calculate","v":""},{"$f":"Calculate","v":""},{"$f":"Calculate","v":""},{"$f":"Calculate","v":""},{"$f":"Calculate","v":""},{"$f":"Calculate","v":""},{"$f":"Calculate","v":""},"",{"$f":"Calculate","v":""},{"$f":"Calculate","v":""},0,{"$f":"SUMPRODUCT(N(WEEKDAY(ROW(INDIRECT(Firts_DateOfMonth&\":\"&EOMONTH(Firts_DateOfMonth,0))),2)={1,2,3,4,5,6,7})*($D95:$J95=1))","v":0},0,0,0,""]
[91,null,null,null,null,null,null,null,null,null,0,"",{"$f":"Calculate","v":""},{"$f":"Calculate","v":""},{"$f":"Calculate","v":""},{"$f":"Calculate","v":""},{"$f":"Calculate","v":""},{"$f":"Calculate","v":""},{"$f":"Calculate","v":""},"",{"$f":"Calculate","v":""},{"$f":"Calculate","v":""},{"$f":"Calculate","v":""},{"$f":"Calculate","v":""},{"$f":"Calculate","v":""},{"$f":"Calculate","v":""},{"$f":"Calculate","v":""},"",{"$f":"Calculate","v":""},{"$f":"Calculate","v":""},{"$f":"Calculate","v":""},{"$f":"Calculate","v":""},{"$f":"Calculate","v":""},{"$f":"Calculate","v":""},{"$f":"Calculate","v":""},"",{"$f":"Calculate","v":""},{"$f":"Calculate","v":""},{"$f":"Calculate","v":""},{"$f":"Calculate","v":""},{"$f":"Calculate","v":""},{"$f":"Calculate","v":""},{"$f":"Calculate","v":""},"",{"$f":"Calculate","v":""},{"$f":"Calculate","v":""},{"$f":"Calculate","v":""},{"$f":"Calculate","v":""},{"$f":"Calculate","v":""},{"$f":"Calculate","v":""},{"$f":"Calculate","v":""},"",{"$f":"Calculate","v":""},{"$f":"Calculate","v":""},0,{"$f":"SUMPRODUCT(N(WEEKDAY(ROW(INDIRECT(Firts_DateOfMonth&\":\"&EOMONTH(Firts_DateOfMonth,0))),2)={1,2,3,4,5,6,7})*($D96:$J96=1))","v":0},0,0,0,""]
[92,null,null,null,null,null,null,null,null,null,0,"",{"$f":"Calculate","v":""},{"$f":"Calculate","v":""},{"$f":"Calculate","v":""},{"$f":"Calculate","v":""},{"$f":"Calculate","v":""},{"$f":"Calculate","v":""},{"$f":"Calculate","v":""},"",{"$f":"Calculate","v":""},{"$f":"Calculate","v":""},{"$f":"Calculate","v":""},{"$f":"Calculate","v":""},{"$f":"Calculate","v":""},{"$f":"Calculate","v":""},{"$f":"Calculate","v":""},"",{"$f":"Calculate","v":""},{"$f":"Calculate","v":""},{"$f":"Calculate","v":""},{"$f":"Calculate","v":""},{"$f":"Calculate","v":""},{"$f":"Calculate","v":""},{"$f":"Calculate","v":""},"",{"$f":"Calculate","v":""},{"$f":"Calculate","v":""},{"$f":"Calculate","v":""},{"$f":"Calculate","v":""},{"$f":"Calculate","v":""},{"$f":"Calculate","v":""},{"$f":"Calculate","v":""},"",{"$f":"Calculate","v":""},{"$f":"Calculate","v":""},{"$f":"Calculate","v":""},{"$f":"Calculate","v":""},{"$f":"Calculate","v":""},{"$f":"Calculate","v":""},{"$f":"Calculate","v":""},"",{"$f":"Calculate","v":""},{"$f":"Calculate","v":""},0,{"$f":"SUMPRODUCT(N(WEEKDAY(ROW(INDIRECT(Firts_DateOfMonth&\":\"&EOMONTH(Firts_DateOfMonth,0))),2)={1,2,3,4,5,6,7})*($D97:$J97=1))","v":0},0,0,0,""]
[93,null,null,null,null,null,null,null,null,null,0,"",{"$f":"Calculate","v":""},{"$f":"Calculate","v":""},{"$f":"Calculate","v":""},{"$f":"Calculate","v":""},{"$f":"Calculate","v":""},{"$f":"Calculate","v":""},{"$f":"Calculate","v":""},"",{"$f":"Calculate","v":""},{"$f":"Calculate","v":""},{"$f":"Calculate","v":""},{"$f":"Calculate","v":""},{"$f":"Calculate","v":""},{"$f":"Calculate","v":""},{"$f":"Calculate","v":""},"",{"$f":"Calculate","v":""},{"$f":"Calculate","v":""},{"$f":"Calculate","v":""},{"$f":"Calculate","v":""},{"$f":"Calculate","v":""},{"$f":"Calculate","v":""},{"$f":"Calculate","v":""},"",{"$f":"Calculate","v":""},{"$f":"Calculate","v":""},{"$f":"Calculate","v":""},{"$f":"Calculate","v":""},{"$f":"Calculate","v":""},{"$f":"Calculate","v":""},{"$f":"Calculate","v":""},"",{"$f":"Calculate","v":""},{"$f":"Calculate","v":""},{"$f":"Calculate","v":""},{"$f":"Calculate","v":""},{"$f":"Calculate","v":""},{"$f":"Calculate","v":""},{"$f":"Calculate","v":""},"",{"$f":"Calculate","v":""},{"$f":"Calculate","v":""},0,{"$f":"SUMPRODUCT(N(WEEKDAY(ROW(INDIRECT(Firts_DateOfMonth&\":\"&EOMONTH(Firts_DateOfMonth,0))),2)={1,2,3,4,5,6,7})*($D98:$J98=1))","v":0},0,0,0,""]
[94,null,null,null,null,null,null,null,null,null,0,"",{"$f":"Calculate","v":""},{"$f":"Calculate","v":""},{"$f":"Calculate","v":""},{"$f":"Calculate","v":""},{"$f":"Calculate","v":""},{"$f":"Calculate","v":""},{"$f":"Calculate","v":""},"",{"$f":"Calculate","v":""},{"$f":"Calculate","v":""},{"$f":"Calculate","v":""},{"$f":"Calculate","v":""},{"$f":"Calculate","v":""},{"$f":"Calculate","v":""},{"$f":"Calculate","v":""},"",{"$f":"Calculate","v":""},{"$f":"Calculate","v":""},{"$f":"Calculate","v":""},{"$f":"Calculate","v":""},{"$f":"Calculate","v":""},{"$f":"Calculate","v":""},{"$f":"Calculate","v":""},"",{"$f":"Calculate","v":""},{"$f":"Calculate","v":""},{"$f":"Calculate","v":""},{"$f":"Calculate","v":""},{"$f":"Calculate","v":""},{"$f":"Calculate","v":""},{"$f":"Calculate","v":""},"",{"$f":"Calculate","v":""},{"$f":"Calculate","v":""},{"$f":"Calculate","v":""},{"$f":"Calculate","v":""},{"$f":"Calculate","v":""},{"$f":"Calculate","v":""},{"$f":"Calculate","v":""},"",{"$f":"Calculate","v":""},{"$f":"Calculate","v":""},0,{"$f":"SUMPRODUCT(N(WEEKDAY(ROW(INDIRECT(Firts_DateOfMonth&\":\"&EOMONTH(Firts_DateOfMonth,0))),2)={1,2,3,4,5,6,7})*($D99:$J99=1))","v":0},0,0,0,""]
[95,null,null,null,null,null,null,null,null,null,0,"",{"$f":"Calculate","v":""},{"$f":"Calculate","v":""},{"$f":"Calculate","v":""},{"$f":"Calculate","v":""},{"$f":"Calculate","v":""},{"$f":"Calculate","v":""},{"$f":"Calculate","v":""},"",{"$f":"Calculate","v":""},{"$f":"Calculate","v":""},{"$f":"Calculate","v":""},{"$f":"Calculate","v":""},{"$f":"Calculate","v":""},{"$f":"Calculate","v":""},{"$f":"Calculate","v":""},"",{"$f":"Calculate","v":""},{"$f":"Calculate","v":""},{"$f":"Calculate","v":""},{"$f":"Calculate","v":""},{"$f":"Calculate","v":""},{"$f":"Calculate","v":""},{"$f":"Calculate","v":""},"",{"$f":"Calculate","v":""},{"$f":"Calculate","v":""},{"$f":"Calculate","v":""},{"$f":"Calculate","v":""},{"$f":"Calculate","v":""},{"$f":"Calculate","v":""},{"$f":"Calculate","v":""},"",{"$f":"Calculate","v":""},{"$f":"Calculate","v":""},{"$f":"Calculate","v":""},{"$f":"Calculate","v":""},{"$f":"Calculate","v":""},{"$f":"Calculate","v":""},{"$f":"Calculate","v":""},"",{"$f":"Calculate","v":""},{"$f":"Calculate","v":""},0,{"$f":"SUMPRODUCT(N(WEEKDAY(ROW(INDIRECT(Firts_DateOfMonth&\":\"&EOMONTH(Firts_DateOfMonth,0))),2)={1,2,3,4,5,6,7})*($D100:$J100=1))","v":0},0,0,0,""]
[96,null,null,null,null,null,null,null,null,null,0,"",{"$f":"Calculate","v":""},{"$f":"Calculate","v":""},{"$f":"Calculate","v":""},{"$f":"Calculate","v":""},{"$f":"Calculate","v":""},{"$f":"Calculate","v":""},{"$f":"Calculate","v":""},"",{"$f":"Calculate","v":""},{"$f":"Calculate","v":""},{"$f":"Calculate","v":""},{"$f":"Calculate","v":""},{"$f":"Calculate","v":""},{"$f":"Calculate","v":""},{"$f":"Calculate","v":""},"",{"$f":"Calculate","v":""},{"$f":"Calculate","v":""},{"$f":"Calculate","v":""},{"$f":"Calculate","v":""},{"$f":"Calculate","v":""},{"$f":"Calculate","v":""},{"$f":"Calculate","v":""},"",{"$f":"Calculate","v":""},{"$f":"Calculate","v":""},{"$f":"Calculate","v":""},{"$f":"Calculate","v":""},{"$f":"Calculate","v":""},{"$f":"Calculate","v":""},{"$f":"Calculate","v":""},"",{"$f":"Calculate","v":""},{"$f":"Calculate","v":""},{"$f":"Calculate","v":""},{"$f":"Calculate","v":""},{"$f":"Calculate","v":""},{"$f":"Calculate","v":""},{"$f":"Calculate","v":""},"",{"$f":"Calculate","v":""},{"$f":"Calculate","v":""},0,{"$f":"SUMPRODUCT(N(WEEKDAY(ROW(INDIRECT(Firts_DateOfMonth&\":\"&EOMONTH(Firts_DateOfMonth,0))),2)={1,2,3,4,5,6,7})*($D101:$J101=1))","v":0},0,0,0,""]
[97,null,null,null,null,null,null,null,null,null,0,"",{"$f":"Calculate","v":""},{"$f":"Calculate","v":""},{"$f":"Calculate","v":""},{"$f":"Calculate","v":""},{"$f":"Calculate","v":""},{"$f":"Calculate","v":""},{"$f":"Calculate","v":""},"",{"$f":"Calculate","v":""},{"$f":"Calculate","v":""},{"$f":"Calculate","v":""},{"$f":"Calculate","v":""},{"$f":"Calculate","v":""},{"$f":"Calculate","v":""},{"$f":"Calculate","v":""},"",{"$f":"Calculate","v":""},{"$f":"Calculate","v":""},{"$f":"Calculate","v":""},{"$f":"Calculate","v":""},{"$f":"Calculate","v":""},{"$f":"Calculate","v":""},{"$f":"Calculate","v":""},"",{"$f":"Calculate","v":""},{"$f":"Calculate","v":""},{"$f":"Calculate","v":""},{"$f":"Calculate","v":""},{"$f":"Calculate","v":""},{"$f":"Calculate","v":""},{"$f":"Calculate","v":""},"",{"$f":"Calculate","v":""},{"$f":"Calculate","v":""},{"$f":"Calculate","v":""},{"$f":"Calculate","v":""},{"$f":"Calculate","v":""},{"$f":"Calculate","v":""},{"$f":"Calculate","v":""},"",{"$f":"Calculate","v":""},{"$f":"Calculate","v":""},0,{"$f":"SUMPRODUCT(N(WEEKDAY(ROW(INDIRECT(Firts_DateOfMonth&\":\"&EOMONTH(Firts_DateOfMonth,0))),2)={1,2,3,4,5,6,7})*($D102:$J102=1))","v":0},0,0,0,""]
[98,null,null,null,null,null,null,null,null,null,0,"",{"$f":"Calculate","v":""},{"$f":"Calculate","v":""},{"$f":"Calculate","v":""},{"$f":"Calculate","v":""},{"$f":"Calculate","v":""},{"$f":"Calculate","v":""},{"$f":"Calculate","v":""},"",{"$f":"Calculate","v":""},{"$f":"Calculate","v":""},{"$f":"Calculate","v":""},{"$f":"Calculate","v":""},{"$f":"Calculate","v":""},{"$f":"Calculate","v":""},{"$f":"Calculate","v":""},"",{"$f":"Calculate","v":""},{"$f":"Calculate","v":""},{"$f":"Calculate","v":""},{"$f":"Calculate","v":""},{"$f":"Calculate","v":""},{"$f":"Calculate","v":""},{"$f":"Calculate","v":""},"",{"$f":"Calculate","v":""},{"$f":"Calculate","v":""},{"$f":"Calculate","v":""},{"$f":"Calculate","v":""},{"$f":"Calculate","v":""},{"$f":"Calculate","v":""},{"$f":"Calculate","v":""},"",{"$f":"Calculate","v":""},{"$f":"Calculate","v":""},{"$f":"Calculate","v":""},{"$f":"Calculate","v":""},{"$f":"Calculate","v":""},{"$f":"Calculate","v":""},{"$f":"Calculate","v":""},"",{"$f":"Calculate","v":""},{"$f":"Calculate","v":""},0,{"$f":"SUMPRODUCT(N(WEEKDAY(ROW(INDIRECT(Firts_DateOfMonth&\":\"&EOMONTH(Firts_DateOfMonth,0))),2)={1,2,3,4,5,6,7})*($D103:$J103=1))","v":0},0,0,0,""]
[99,null,null,null,null,null,null,null,null,null,0,"",{"$f":"Calculate","v":""},{"$f":"Calculate","v":""},{"$f":"Calculate","v":""},{"$f":"Calculate","v":""},{"$f":"Calculate","v":""},{"$f":"Calculate","v":""},{"$f":"Calculate","v":""},"",{"$f":"Calculate","v":""},{"$f":"Calculate","v":""},{"$f":"Calculate","v":""},{"$f":"Calculate","v":""},{"$f":"Calculate","v":""},{"$f":"Calculate","v":""},{"$f":"Calculate","v":""},"",{"$f":"Calculate","v":""},{"$f":"Calculate","v":""},{"$f":"Calculate","v":""},{"$f":"Calculate","v":""},{"$f":"Calculate","v":""},{"$f":"Calculate","v":""},{"$f":"Calculate","v":""},"",{"$f":"Calculate","v":""},{"$f":"Calculate","v":""},{"$f":"Calculate","v":""},{"$f":"Calculate","v":""},{"$f":"Calculate","v":""},{"$f":"Calculate","v":""},{"$f":"Calculate","v":""},"",{"$f":"Calculate","v":""},{"$f":"Calculate","v":""},{"$f":"Calculate","v":""},{"$f":"Calculate","v":""},{"$f":"Calculate","v":""},{"$f":"Calculate","v":""},{"$f":"Calculate","v":""},"",{"$f":"Calculate","v":""},{"$f":"Calculate","v":""},0,{"$f":"SUMPRODUCT(N(WEEKDAY(ROW(INDIRECT(Firts_DateOfMonth&\":\"&EOMONTH(Firts_DateOfMonth,0))),2)={1,2,3,4,5,6,7})*($D104:$J104=1))","v":0},0,0,0,""]
[100,null,null,null,null,null,null,null,null,null,0,"",{"$f":"Calculate","v":""},{"$f":"Calculate","v":""},{"$f":"Calculate","v":""},{"$f":"Calculate","v":""},{"$f":"Calculate","v":""},{"$f":"Calculate","v":""},{"$f":"Calculate","v":""},"",{"$f":"Calculate","v":""},{"$f":"Calculate","v":""},{"$f":"Calculate","v":""},{"$f":"Calculate","v":""},{"$f":"Calculate","v":""},{"$f":"Calculate","v":""},{"$f":"Calculate","v":""},"",{"$f":"Calculate","v":""},{"$f":"Calculate","v":""},{"$f":"Calculate","v":""},{"$f":"Calculate","v":""},{"$f":"Calculate","v":""},{"$f":"Calculate","v":""},{"$f":"Calculate","v":""},"",{"$f":"Calculate","v":""},{"$f":"Calculate","v":""},{"$f":"Calculate","v":""},{"$f":"Calculate","v":""},{"$f":"Calculate","v":""},{"$f":"Calculate","v":""},{"$f":"Calculate","v":""},"",{"$f":"Calculate","v":""},{"$f":"Calculate","v":""},{"$f":"Calculate","v":""},{"$f":"Calculate","v":""},{"$f":"Calculate","v":""},{"$f":"Calculate","v":""},{"$f":"Calculate","v":""},"",{"$f":"Calculate","v":""},{"$f":"Calculate","v":""},0,{"$f":"SUMPRODUCT(N(WEEKDAY(ROW(INDIRECT(Firts_DateOfMonth&\":\"&EOMONTH(Firts_DateOfMonth,0))),2)={1,2,3,4,5,6,7})*($D105:$J105=1))","v":0},0,0,0,""]
[101,null,null,null,null,null,null,null,null,null,0,"",{"$f":"Calculate","v":""},{"$f":"Calculate","v":""},{"$f":"Calculate","v":""},{"$f":"Calculate","v":""},{"$f":"Calculate","v":""},{"$f":"Calculate","v":""},{"$f":"Calculate","v":""},"",{"$f":"Calculate","v":""},{"$f":"Calculate","v":""},{"$f":"Calculate","v":""},{"$f":"Calculate","v":""},{"$f":"Calculate","v":""},{"$f":"Calculate","v":""},{"$f":"Calculate","v":""},"",{"$f":"Calculate","v":""},{"$f":"Calculate","v":""},{"$f":"Calculate","v":""},{"$f":"Calculate","v":""},{"$f":"Calculate","v":""},{"$f":"Calculate","v":""},{"$f":"Calculate","v":""},"",{"$f":"Calculate","v":""},{"$f":"Calculate","v":""},{"$f":"Calculate","v":""},{"$f":"Calculate","v":""},{"$f":"Calculate","v":""},{"$f":"Calculate","v":""},{"$f":"Calculate","v":""},"",{"$f":"Calculate","v":""},{"$f":"Calculate","v":""},{"$f":"Calculate","v":""},{"$f":"Calculate","v":""},{"$f":"Calculate","v":""},{"$f":"Calculate","v":""},{"$f":"Calculate","v":""},"",{"$f":"Calculate","v":""},{"$f":"Calculate","v":""},0,{"$f":"SUMPRODUCT(N(WEEKDAY(ROW(INDIRECT(Firts_DateOfMonth&\":\"&EOMONTH(Firts_DateOfMonth,0))),2)={1,2,3,4,5,6,7})*($D106:$J106=1))","v":0},0,0,0,""]
[102,null,null,null,null,null,null,null,null,null,0,"",{"$f":"Calculate","v":""},{"$f":"Calculate","v":""},{"$f":"Calculate","v":""},{"$f":"Calculate","v":""},{"$f":"Calculate","v":""},{"$f":"Calculate","v":""},{"$f":"Calculate","v":""},"",{"$f":"Calculate","v":""},{"$f":"Calculate","v":""},{"$f":"Calculate","v":""},{"$f":"Calculate","v":""},{"$f":"Calculate","v":""},{"$f":"Calculate","v":""},{"$f":"Calculate","v":""},"",{"$f":"Calculate","v":""},{"$f":"Calculate","v":""},{"$f":"Calculate","v":""},{"$f":"Calculate","v":""},{"$f":"Calculate","v":""},{"$f":"Calculate","v":""},{"$f":"Calculate","v":""},"",{"$f":"Calculate","v":""},{"$f":"Calculate","v":""},{"$f":"Calculate","v":""},{"$f":"Calculate","v":""},{"$f":"Calculate","v":""},{"$f":"Calculate","v":""},{"$f":"Calculate","v":""},"",{"$f":"Calculate","v":""},{"$f":"Calculate","v":""},{"$f":"Calculate","v":""},{"$f":"Calculate","v":""},{"$f":"Calculate","v":""},{"$f":"Calculate","v":""},{"$f":"Calculate","v":""},"",{"$f":"Calculate","v":""},{"$f":"Calculate","v":""},0,{"$f":"SUMPRODUCT(N(WEEKDAY(ROW(INDIRECT(Firts_DateOfMonth&\":\"&EOMONTH(Firts_DateOfMonth,0))),2)={1,2,3,4,5,6,7})*($D107:$J107=1))","v":0},0,0,0,""]
[103,null,null,null,null,null,null,null,null,null,0,"",{"$f":"Calculate","v":""},{"$f":"Calculate","v":""},{"$f":"Calculate","v":""},{"$f":"Calculate","v":""},{"$f":"Calculate","v":""},{"$f":"Calculate","v":""},{"$f":"Calculate","v":""},"",{"$f":"Calculate","v":""},{"$f":"Calculate","v":""},{"$f":"Calculate","v":""},{"$f":"Calculate","v":""},{"$f":"Calculate","v":""},{"$f":"Calculate","v":""},{"$f":"Calculate","v":""},"",{"$f":"Calculate","v":""},{"$f":"Calculate","v":""},{"$f":"Calculate","v":""},{"$f":"Calculate","v":""},{"$f":"Calculate","v":""},{"$f":"Calculate","v":""},{"$f":"Calculate","v":""},"",{"$f":"Calculate","v":""},{"$f":"Calculate","v":""},{"$f":"Calculate","v":""},{"$f":"Calculate","v":""},{"$f":"Calculate","v":""},{"$f":"Calculate","v":""},{"$f":"Calculate","v":""},"",{"$f":"Calculate","v":""},{"$f":"Calculate","v":""},{"$f":"Calculate","v":""},{"$f":"Calculate","v":""},{"$f":"Calculate","v":""},{"$f":"Calculate","v":""},{"$f":"Calculate","v":""},"",{"$f":"Calculate","v":""},{"$f":"Calculate","v":""},0,{"$f":"SUMPRODUCT(N(WEEKDAY(ROW(INDIRECT(Firts_DateOfMonth&\":\"&EOMONTH(Firts_DateOfMonth,0))),2)={1,2,3,4,5,6,7})*($D108:$J108=1))","v":0},0,0,0,""]
[104,null,null,null,null,null,null,null,null,null,0,"",{"$f":"Calculate","v":""},{"$f":"Calculate","v":""},{"$f":"Calculate","v":""},{"$f":"Calculate","v":""},{"$f":"Calculate","v":""},{"$f":"Calculate","v":""},{"$f":"Calculate","v":""},"",{"$f":"Calculate","v":""},{"$f":"Calculate","v":""},{"$f":"Calculate","v":""},{"$f":"Calculate","v":""},{"$f":"Calculate","v":""},{"$f":"Calculate","v":""},{"$f":"Calculate","v":""},"",{"$f":"Calculate","v":""},{"$f":"Calculate","v":""},{"$f":"Calculate","v":""},{"$f":"Calculate","v":""},{"$f":"Calculate","v":""},{"$f":"Calculate","v":""},{"$f":"Calculate","v":""},"",{"$f":"Calculate","v":""},{"$f":"Calculate","v":""},{"$f":"Calculate","v":""},{"$f":"Calculate","v":""},{"$f":"Calculate","v":""},{"$f":"Calculate","v":""},{"$f":"Calculate","v":""},"",{"$f":"Calculate","v":""},{"$f":"Calculate","v":""},{"$f":"Calculate","v":""},{"$f":"Calculate","v":""},{"$f":"Calculate","v":""},{"$f":"Calculate","v":""},{"$f":"Calculate","v":""},"",{"$f":"Calculate","v":""},{"$f":"Calculate","v":""},0,{"$f":"SUMPRODUCT(N(WEEKDAY(ROW(INDIRECT(Firts_DateOfMonth&\":\"&EOMONTH(Firts_DateOfMonth,0))),2)={1,2,3,4,5,6,7})*($D109:$J109=1))","v":0},0,0,0,""]
[105,null,null,null,null,null,null,null,null,null,0,"",{"$f":"Calculate","v":""},{"$f":"Calculate","v":""},{"$f":"Calculate","v":""},{"$f":"Calculate","v":""},{"$f":"Calculate","v":""},{"$f":"Calculate","v":""},{"$f":"Calculate","v":""},"",{"$f":"Calculate","v":""},{"$f":"Calculate","v":""},{"$f":"Calculate","v":""},{"$f":"Calculate","v":""},{"$f":"Calculate","v":""},{"$f":"Calculate","v":""},{"$f":"Calculate","v":""},"",{"$f":"Calculate","v":""},{"$f":"Calculate","v":""},{"$f":"Calculate","v":""},{"$f":"Calculate","v":""},{"$f":"Calculate","v":""},{"$f":"Calculate","v":""},{"$f":"Calculate","v":""},"",{"$f":"Calculate","v":""},{"$f":"Calculate","v":""},{"$f":"Calculate","v":""},{"$f":"Calculate","v":""},{"$f":"Calculate","v":""},{"$f":"Calculate","v":""},{"$f":"Calculate","v":""},"",{"$f":"Calculate","v":""},{"$f":"Calculate","v":""},{"$f":"Calculate","v":""},{"$f":"Calculate","v":""},{"$f":"Calculate","v":""},{"$f":"Calculate","v":""},{"$f":"Calculate","v":""},"",{"$f":"Calculate","v":""},{"$f":"Calculate","v":""},0,{"$f":"SUMPRODUCT(N(WEEKDAY(ROW(INDIRECT(Firts_DateOfMonth&\":\"&EOMONTH(Firts_DateOfMonth,0))),2)={1,2,3,4,5,6,7})*($D110:$J110=1))","v":0},0,0,0,""]
[106,null,null,null,null,null,null,null,null,null,0,"",{"$f":"Calculate","v":""},{"$f":"Calculate","v":""},{"$f":"Calculate","v":""},{"$f":"Calculate","v":""},{"$f":"Calculate","v":""},{"$f":"Calculate","v":""},{"$f":"Calculate","v":""},"",{"$f":"Calculate","v":""},{"$f":"Calculate","v":""},{"$f":"Calculate","v":""},{"$f":"Calculate","v":""},{"$f":"Calculate","v":""},{"$f":"Calculate","v":""},{"$f":"Calculate","v":""},"",{"$f":"Calculate","v":""},{"$f":"Calculate","v":""},{"$f":"Calculate","v":""},{"$f":"Calculate","v":""},{"$f":"Calculate","v":""},{"$f":"Calculate","v":""},{"$f":"Calculate","v":""},"",{"$f":"Calculate","v":""},{"$f":"Calculate","v":""},{"$f":"Calculate","v":""},{"$f":"Calculate","v":""},{"$f":"Calculate","v":""},{"$f":"Calculate","v":""},{"$f":"Calculate","v":""},"",{"$f":"Calculate","v":""},{"$f":"Calculate","v":""},{"$f":"Calculate","v":""},{"$f":"Calculate","v":""},{"$f":"Calculate","v":""},{"$f":"Calculate","v":""},{"$f":"Calculate","v":""},"",{"$f":"Calculate","v":""},{"$f":"Calculate","v":""},0,{"$f":"SUMPRODUCT(N(WEEKDAY(ROW(INDIRECT(Firts_DateOfMonth&\":\"&EOMONTH(Firts_DateOfMonth,0))),2)={1,2,3,4,5,6,7})*($D111:$J111=1))","v":0},0,0,0,""]
[107,null,null,null,null,null,null,null,null,null,0,"",{"$f":"Calculate","v":""},{"$f":"Calculate","v":""},{"$f":"Calculate","v":""},{"$f":"Calculate","v":""},{"$f":"Calculate","v":""},{"$f":"Calculate","v":""},{"$f":"Calculate","v":""},"",{"$f":"Calculate","v":""},{"$f":"Calculate","v":""},{"$f":"Calculate","v":""},{"$f":"Calculate","v":""},{"$f":"Calculate","v":""},{"$f":"Calculate","v":""},{"$f":"Calculate","v":""},"",{"$f":"Calculate","v":""},{"$f":"Calculate","v":""},{"$f":"Calculate","v":""},{"$f":"Calculate","v":""},{"$f":"Calculate","v":""},{"$f":"Calculate","v":""},{"$f":"Calculate","v":""},"",{"$f":"Calculate","v":""},{"$f":"Calculate","v":""},{"$f":"Calculate","v":""},{"$f":"Calculate","v":""},{"$f":"Calculate","v":""},{"$f":"Calculate","v":""},{"$f":"Calculate","v":""},"",{"$f":"Calculate","v":""},{"$f":"Calculate","v":""},{"$f":"Calculate","v":""},{"$f":"Calculate","v":""},{"$f":"Calculate","v":""},{"$f":"Calculate","v":""},{"$f":"Calculate","v":""},"",{"$f":"Calculate","v":""},{"$f":"Calculate","v":""},0,{"$f":"SUMPRODUCT(N(WEEKDAY(ROW(INDIRECT(Firts_DateOfMonth&\":\"&EOMONTH(Firts_DateOfMonth,0))),2)={1,2,3,4,5,6,7})*($D112:$J112=1))","v":0},0,0,0,""]
[108,null,null,null,null,null,null,null,null,null,0,"",{"$f":"Calculate","v":""},{"$f":"Calculate","v":""},{"$f":"Calculate","v":""},{"$f":"Calculate","v":""},{"$f":"Calculate","v":""},{"$f":"Calculate","v":""},{"$f":"Calculate","v":""},"",{"$f":"Calculate","v":""},{"$f":"Calculate","v":""},{"$f":"Calculate","v":""},{"$f":"Calculate","v":""},{"$f":"Calculate","v":""},{"$f":"Calculate","v":""},{"$f":"Calculate","v":""},"",{"$f":"Calculate","v":""},{"$f":"Calculate","v":""},{"$f":"Calculate","v":""},{"$f":"Calculate","v":""},{"$f":"Calculate","v":""},{"$f":"Calculate","v":""},{"$f":"Calculate","v":""},"",{"$f":"Calculate","v":""},{"$f":"Calculate","v":""},{"$f":"Calculate","v":""},{"$f":"Calculate","v":""},{"$f":"Calculate","v":""},{"$f":"Calculate","v":""},{"$f":"Calculate","v":""},"",{"$f":"Calculate","v":""},{"$f":"Calculate","v":""},{"$f":"Calculate","v":""},{"$f":"Calculate","v":""},{"$f":"Calculate","v":""},{"$f":"Calculate","v":""},{"$f":"Calculate","v":""},"",{"$f":"Calculate","v":""},{"$f":"Calculate","v":""},0,{"$f":"SUMPRODUCT(N(WEEKDAY(ROW(INDIRECT(Firts_DateOfMonth&\":\"&EOMONTH(Firts_DateOfMonth,0))),2)={1,2,3,4,5,6,7})*($D113:$J113=1))","v":0},0,0,0,""]
[109,null,null,null,null,null,null,null,null,null,0,"",{"$f":"Calculate","v":""},{"$f":"Calculate","v":""},{"$f":"Calculate","v":""},{"$f":"Calculate","v":""},{"$f":"Calculate","v":""},{"$f":"Calculate","v":""},{"$f":"Calculate","v":""},"",{"$f":"Calculate","v":""},{"$f":"Calculate","v":""},{"$f":"Calculate","v":""},{"$f":"Calculate","v":""},{"$f":"Calculate","v":""},{"$f":"Calculate","v":""},{"$f":"Calculate","v":""},"",{"$f":"Calculate","v":""},{"$f":"Calculate","v":""},{"$f":"Calculate","v":""},{"$f":"Calculate","v":""},{"$f":"Calculate","v":""},{"$f":"Calculate","v":""},{"$f":"Calculate","v":""},"",{"$f":"Calculate","v":""},{"$f":"Calculate","v":""},{"$f":"Calculate","v":""},{"$f":"Calculate","v":""},{"$f":"Calculate","v":""},{"$f":"Calculate","v":""},{"$f":"Calculate","v":""},"",{"$f":"Calculate","v":""},{"$f":"Calculate","v":""},{"$f":"Calculate","v":""},{"$f":"Calculate","v":""},{"$f":"Calculate","v":""},{"$f":"Calculate","v":""},{"$f":"Calculate","v":""},"",{"$f":"Calculate","v":""},{"$f":"Calculate","v":""},0,{"$f":"SUMPRODUCT(N(WEEKDAY(ROW(INDIRECT(Firts_DateOfMonth&\":\"&EOMONTH(Firts_DateOfMonth,0))),2)={1,2,3,4,5,6,7})*($D114:$J114=1))","v":0},0,0,0,""]
[110,null,null,null,null,null,null,null,null,null,0,"",{"$f":"Calculate","v":""},{"$f":"Calculate","v":""},{"$f":"Calculate","v":""},{"$f":"Calculate","v":""},{"$f":"Calculate","v":""},{"$f":"Calculate","v":""},{"$f":"Calculate","v":""},"",{"$f":"Calculate","v":""},{"$f":"Calculate","v":""},{"$f":"Calculate","v":""},{"$f":"Calculate","v":""},{"$f":"Calculate","v":""},{"$f":"Calculate","v":""},{"$f":"Calculate","v":""},"",{"$f":"Calculate","v":""},{"$f":"Calculate","v":""},{"$f":"Calculate","v":""},{"$f":"Calculate","v":""},{"$f":"Calculate","v":""},{"$f":"Calculate","v":""},{"$f":"Calculate","v":""},"",{"$f":"Calculate","v":""},{"$f":"Calculate","v":""},{"$f":"Calculate","v":""},{"$f":"Calculate","v":""},{"$f":"Calculate","v":""},{"$f":"Calculate","v":""},{"$f":"Calculate","v":""},"",{"$f":"Calculate","v":""},{"$f":"Calculate","v":""},{"$f":"Calculate","v":""},{"$f":"Calculate","v":""},{"$f":"Calculate","v":""},{"$f":"Calculate","v":""},{"$f":"Calculate","v":""},"",{"$f":"Calculate","v":""},{"$f":"Calculate","v":""},0,{"$f":"SUMPRODUCT(N(WEEKDAY(ROW(INDIRECT(Firts_DateOfMonth&\":\"&EOMONTH(Firts_DateOfMonth,0))),2)={1,2,3,4,5,6,7})*($D115:$J115=1))","v":0},0,0,0,""]
[111,null,null,null,null,null,null,null,null,null,0,"",{"$f":"Calculate","v":""},{"$f":"Calculate","v":""},{"$f":"Calculate","v":""},{"$f":"Calculate","v":""},{"$f":"Calculate","v":""},{"$f":"Calculate","v":""},{"$f":"Calculate","v":""},"",{"$f":"Calculate","v":""},{"$f":"Calculate","v":""},{"$f":"Calculate","v":""},{"$f":"Calculate","v":""},{"$f":"Calculate","v":""},{"$f":"Calculate","v":""},{"$f":"Calculate","v":""},"",{"$f":"Calculate","v":""},{"$f":"Calculate","v":""},{"$f":"Calculate","v":""},{"$f":"Calculate","v":""},{"$f":"Calculate","v":""},{"$f":"Calculate","v":""},{"$f":"Calculate","v":""},"",{"$f":"Calculate","v":""},{"$f":"Calculate","v":""},{"$f":"Calculate","v":""},{"$f":"Calculate","v":""},{"$f":"Calculate","v":""},{"$f":"Calculate","v":""},{"$f":"Calculate","v":""},"",{"$f":"Calculate","v":""},{"$f":"Calculate","v":""},{"$f":"Calculate","v":""},{"$f":"Calculate","v":""},{"$f":"Calculate","v":""},{"$f":"Calculate","v":""},{"$f":"Calculate","v":""},"",{"$f":"Calculate","v":""},{"$f":"Calculate","v":""},0,{"$f":"SUMPRODUCT(N(WEEKDAY(ROW(INDIRECT(Firts_DateOfMonth&\":\"&EOMONTH(Firts_DateOfMonth,0))),2)={1,2,3,4,5,6,7})*($D116:$J116=1))","v":0},0,0,0,""]
[112,null,null,null,null,null,null,null,null,null,0,"",{"$f":"Calculate","v":""},{"$f":"Calculate","v":""},{"$f":"Calculate","v":""},{"$f":"Calculate","v":""},{"$f":"Calculate","v":""},{"$f":"Calculate","v":""},{"$f":"Calculate","v":""},"",{"$f":"Calculate","v":""},{"$f":"Calculate","v":""},{"$f":"Calculate","v":""},{"$f":"Calculate","v":""},{"$f":"Calculate","v":""},{"$f":"Calculate","v":""},{"$f":"Calculate","v":""},"",{"$f":"Calculate","v":""},{"$f":"Calculate","v":""},{"$f":"Calculate","v":""},{"$f":"Calculate","v":""},{"$f":"Calculate","v":""},{"$f":"Calculate","v":""},{"$f":"Calculate","v":""},"",{"$f":"Calculate","v":""},{"$f":"Calculate","v":""},{"$f":"Calculate","v":""},{"$f":"Calculate","v":""},{"$f":"Calculate","v":""},{"$f":"Calculate","v":""},{"$f":"Calculate","v":""},"",{"$f":"Calculate","v":""},{"$f":"Calculate","v":""},{"$f":"Calculate","v":""},{"$f":"Calculate","v":""},{"$f":"Calculate","v":""},{"$f":"Calculate","v":""},{"$f":"Calculate","v":""},"",{"$f":"Calculate","v":""},{"$f":"Calculate","v":""},0,{"$f":"SUMPRODUCT(N(WEEKDAY(ROW(INDIRECT(Firts_DateOfMonth&\":\"&EOMONTH(Firts_DateOfMonth,0))),2)={1,2,3,4,5,6,7})*($D117:$J117=1))","v":0},0,0,0,""]
[113,null,null,null,null,null,null,null,null,null,0,"",{"$f":"Calculate","v":""},{"$f":"Calculate","v":""},{"$f":"Calculate","v":""},{"$f":"Calculate","v":""},{"$f":"Calculate","v":""},{"$f":"Calculate","v":""},{"$f":"Calculate","v":""},"",{"$f":"Calculate","v":""},{"$f":"Calculate","v":""},{"$f":"Calculate","v":""},{"$f":"Calculate","v":""},{"$f":"Calculate","v":""},{"$f":"Calculate","v":""},{"$f":"Calculate","v":""},"",{"$f":"Calculate","v":""},{"$f":"Calculate","v":""},{"$f":"Calculate","v":""},{"$f":"Calculate","v":""},{"$f":"Calculate","v":""},{"$f":"Calculate","v":""},{"$f":"Calculate","v":""},"",{"$f":"Calculate","v":""},{"$f":"Calculate","v":""},{"$f":"Calculate","v":""},{"$f":"Calculate","v":""},{"$f":"Calculate","v":""},{"$f":"Calculate","v":""},{"$f":"Calculate","v":""},"",{"$f":"Calculate","v":""},{"$f":"Calculate","v":""},{"$f":"Calculate","v":""},{"$f":"Calculate","v":""},{"$f":"Calculate","v":""},{"$f":"Calculate","v":""},{"$f":"Calculate","v":""},"",{"$f":"Calculate","v":""},{"$f":"Calculate","v":""},0,{"$f":"SUMPRODUCT(N(WEEKDAY(ROW(INDIRECT(Firts_DateOfMonth&\":\"&EOMONTH(Firts_DateOfMonth,0))),2)={1,2,3,4,5,6,7})*($D118:$J118=1))","v":0},0,0,0,""]
[114,null,null,null,null,null,null,null,null,null,0,"",{"$f":"Calculate","v":""},{"$f":"Calculate","v":""},{"$f":"Calculate","v":""},{"$f":"Calculate","v":""},{"$f":"Calculate","v":""},{"$f":"Calculate","v":""},{"$f":"Calculate","v":""},"",{"$f":"Calculate","v":""},{"$f":"Calculate","v":""},{"$f":"Calculate","v":""},{"$f":"Calculate","v":""},{"$f":"Calculate","v":""},{"$f":"Calculate","v":""},{"$f":"Calculate","v":""},"",{"$f":"Calculate","v":""},{"$f":"Calculate","v":""},{"$f":"Calculate","v":""},{"$f":"Calculate","v":""},{"$f":"Calculate","v":""},{"$f":"Calculate","v":""},{"$f":"Calculate","v":""},"",{"$f":"Calculate","v":""},{"$f":"Calculate","v":""},{"$f":"Calculate","v":""},{"$f":"Calculate","v":""},{"$f":"Calculate","v":""},{"$f":"Calculate","v":""},{"$f":"Calculate","v":""},"",{"$f":"Calculate","v":""},{"$f":"Calculate","v":""},{"$f":"Calculate","v":""},{"$f":"Calculate","v":""},{"$f":"Calculate","v":""},{"$f":"Calculate","v":""},{"$f":"Calculate","v":""},"",{"$f":"Calculate","v":""},{"$f":"Calculate","v":""},0,{"$f":"SUMPRODUCT(N(WEEKDAY(ROW(INDIRECT(Firts_DateOfMonth&\":\"&EOMONTH(Firts_DateOfMonth,0))),2)={1,2,3,4,5,6,7})*($D119:$J119=1))","v":0},0,0,0,""]
[115,null,null,null,null,null,null,null,null,null,0,"",{"$f":"Calculate","v":""},{"$f":"Calculate","v":""},{"$f":"Calculate","v":""},{"$f":"Calculate","v":""},{"$f":"Calculate","v":""},{"$f":"Calculate","v":""},{"$f":"Calculate","v":""},"",{"$f":"Calculate","v":""},{"$f":"Calculate","v":""},{"$f":"Calculate","v":""},{"$f":"Calculate","v":""},{"$f":"Calculate","v":""},{"$f":"Calculate","v":""},{"$f":"Calculate","v":""},"",{"$f":"Calculate","v":""},{"$f":"Calculate","v":""},{"$f":"Calculate","v":""},{"$f":"Calculate","v":""},{"$f":"Calculate","v":""},{"$f":"Calculate","v":""},{"$f":"Calculate","v":""},"",{"$f":"Calculate","v":""},{"$f":"Calculate","v":""},{"$f":"Calculate","v":""},{"$f":"Calculate","v":""},{"$f":"Calculate","v":""},{"$f":"Calculate","v":""},{"$f":"Calculate","v":""},"",{"$f":"Calculate","v":""},{"$f":"Calculate","v":""},{"$f":"Calculate","v":""},{"$f":"Calculate","v":""},{"$f":"Calculate","v":""},{"$f":"Calculate","v":""},{"$f":"Calculate","v":""},"",{"$f":"Calculate","v":""},{"$f":"Calculate","v":""},0,{"$f":"SUMPRODUCT(N(WEEKDAY(ROW(INDIRECT(Firts_DateOfMonth&\":\"&EOMONTH(Firts_DateOfMonth,0))),2)={1,2,3,4,5,6,7})*($D120:$J120=1))","v":0},0,0,0,""]
[116,null,null,null,null,null,null,null,null,null,0,"",{"$f":"Calculate","v":""},{"$f":"Calculate","v":""},{"$f":"Calculate","v":""},{"$f":"Calculate","v":""},{"$f":"Calculate","v":""},{"$f":"Calculate","v":""},{"$f":"Calculate","v":""},"",{"$f":"Calculate","v":""},{"$f":"Calculate","v":""},{"$f":"Calculate","v":""},{"$f":"Calculate","v":""},{"$f":"Calculate","v":""},{"$f":"Calculate","v":""},{"$f":"Calculate","v":""},"",{"$f":"Calculate","v":""},{"$f":"Calculate","v":""},{"$f":"Calculate","v":""},{"$f":"Calculate","v":""},{"$f":"Calculate","v":""},{"$f":"Calculate","v":""},{"$f":"Calculate","v":""},"",{"$f":"Calculate","v":""},{"$f":"Calculate","v":""},{"$f":"Calculate","v":""},{"$f":"Calculate","v":""},{"$f":"Calculate","v":""},{"$f":"Calculate","v":""},{"$f":"Calculate","v":""},"",{"$f":"Calculate","v":""},{"$f":"Calculate","v":""},{"$f":"Calculate","v":""},{"$f":"Calculate","v":""},{"$f":"Calculate","v":""},{"$f":"Calculate","v":""},{"$f":"Calculate","v":""},"",{"$f":"Calculate","v":""},{"$f":"Calculate","v":""},0,{"$f":"SUMPRODUCT(N(WEEKDAY(ROW(INDIRECT(Firts_DateOfMonth&\":\"&EOMONTH(Firts_DateOfMonth,0))),2)={1,2,3,4,5,6,7})*($D121:$J121=1))","v":0},0,0,0,""]
[117,null,null,null,null,null,null,null,null,null,0,"",{"$f":"Calculate","v":""},{"$f":"Calculate","v":""},{"$f":"Calculate","v":""},{"$f":"Calculate","v":""},{"$f":"Calculate","v":""},{"$f":"Calculate","v":""},{"$f":"Calculate","v":""},"",{"$f":"Calculate","v":""},{"$f":"Calculate","v":""},{"$f":"Calculate","v":""},{"$f":"Calculate","v":""},{"$f":"Calculate","v":""},{"$f":"Calculate","v":""},{"$f":"Calculate","v":""},"",{"$f":"Calculate","v":""},{"$f":"Calculate","v":""},{"$f":"Calculate","v":""},{"$f":"Calculate","v":""},{"$f":"Calculate","v":""},{"$f":"Calculate","v":""},{"$f":"Calculate","v":""},"",{"$f":"Calculate","v":""},{"$f":"Calculate","v":""},{"$f":"Calculate","v":""},{"$f":"Calculate","v":""},{"$f":"Calculate","v":""},{"$f":"Calculate","v":""},{"$f":"Calculate","v":""},"",{"$f":"Calculate","v":""},{"$f":"Calculate","v":""},{"$f":"Calculate","v":""},{"$f":"Calculate","v":""},{"$f":"Calculate","v":""},{"$f":"Calculate","v":""},{"$f":"Calculate","v":""},"",{"$f":"Calculate","v":""},{"$f":"Calculate","v":""},0,{"$f":"SUMPRODUCT(N(WEEKDAY(ROW(INDIRECT(Firts_DateOfMonth&\":\"&EOMONTH(Firts_DateOfMonth,0))),2)={1,2,3,4,5,6,7})*($D122:$J122=1))","v":0},0,0,0,""]
[118,null,null,null,null,null,null,null,null,null,0,"",{"$f":"Calculate","v":""},{"$f":"Calculate","v":""},{"$f":"Calculate","v":""},{"$f":"Calculate","v":""},{"$f":"Calculate","v":""},{"$f":"Calculate","v":""},{"$f":"Calculate","v":""},"",{"$f":"Calculate","v":""},{"$f":"Calculate","v":""},{"$f":"Calculate","v":""},{"$f":"Calculate","v":""},{"$f":"Calculate","v":""},{"$f":"Calculate","v":""},{"$f":"Calculate","v":""},"",{"$f":"Calculate","v":""},{"$f":"Calculate","v":""},{"$f":"Calculate","v":""},{"$f":"Calculate","v":""},{"$f":"Calculate","v":""},{"$f":"Calculate","v":""},{"$f":"Calculate","v":""},"",{"$f":"Calculate","v":""},{"$f":"Calculate","v":""},{"$f":"Calculate","v":""},{"$f":"Calculate","v":""},{"$f":"Calculate","v":""},{"$f":"Calculate","v":""},{"$f":"Calculate","v":""},"",{"$f":"Calculate","v":""},{"$f":"Calculate","v":""},{"$f":"Calculate","v":""},{"$f":"Calculate","v":""},{"$f":"Calculate","v":""},{"$f":"Calculate","v":""},{"$f":"Calculate","v":""},"",{"$f":"Calculate","v":""},{"$f":"Calculate","v":""},0,{"$f":"SUMPRODUCT(N(WEEKDAY(ROW(INDIRECT(Firts_DateOfMonth&\":\"&EOMONTH(Firts_DateOfMonth,0))),2)={1,2,3,4,5,6,7})*($D123:$J123=1))","v":0},0,0,0,""]
[119,null,null,null,null,null,null,null,null,null,0,"",{"$f":"Calculate","v":""},{"$f":"Calculate","v":""},{"$f":"Calculate","v":""},{"$f":"Calculate","v":""},{"$f":"Calculate","v":""},{"$f":"Calculate","v":""},{"$f":"Calculate","v":""},"",{"$f":"Calculate","v":""},{"$f":"Calculate","v":""},{"$f":"Calculate","v":""},{"$f":"Calculate","v":""},{"$f":"Calculate","v":""},{"$f":"Calculate","v":""},{"$f":"Calculate","v":""},"",{"$f":"Calculate","v":""},{"$f":"Calculate","v":""},{"$f":"Calculate","v":""},{"$f":"Calculate","v":""},{"$f":"Calculate","v":""},{"$f":"Calculate","v":""},{"$f":"Calculate","v":""},"",{"$f":"Calculate","v":""},{"$f":"Calculate","v":""},{"$f":"Calculate","v":""},{"$f":"Calculate","v":""},{"$f":"Calculate","v":""},{"$f":"Calculate","v":""},{"$f":"Calculate","v":""},"",{"$f":"Calculate","v":""},{"$f":"Calculate","v":""},{"$f":"Calculate","v":""},{"$f":"Calculate","v":""},{"$f":"Calculate","v":""},{"$f":"Calculate","v":""},{"$f":"Calculate","v":""},"",{"$f":"Calculate","v":""},{"$f":"Calculate","v":""},0,{"$f":"SUMPRODUCT(N(WEEKDAY(ROW(INDIRECT(Firts_DateOfMonth&\":\"&EOMONTH(Firts_DateOfMonth,0))),2)={1,2,3,4,5,6,7})*($D124:$J124=1))","v":0},0,0,0,""]
[120,null,null,null,null,null,null,null,null,null,0,"",{"$f":"Calculate","v":""},{"$f":"Calculate","v":""},{"$f":"Calculate","v":""},{"$f":"Calculate","v":""},{"$f":"Calculate","v":""},{"$f":"Calculate","v":""},{"$f":"Calculate","v":""},"",{"$f":"Calculate","v":""},{"$f":"Calculate","v":""},{"$f":"Calculate","v":""},{"$f":"Calculate","v":""},{"$f":"Calculate","v":""},{"$f":"Calculate","v":""},{"$f":"Calculate","v":""},"",{"$f":"Calculate","v":""},{"$f":"Calculate","v":""},{"$f":"Calculate","v":""},{"$f":"Calculate","v":""},{"$f":"Calculate","v":""},{"$f":"Calculate","v":""},{"$f":"Calculate","v":""},"",{"$f":"Calculate","v":""},{"$f":"Calculate","v":""},{"$f":"Calculate","v":""},{"$f":"Calculate","v":""},{"$f":"Calculate","v":""},{"$f":"Calculate","v":""},{"$f":"Calculate","v":""},"",{"$f":"Calculate","v":""},{"$f":"Calculate","v":""},{"$f":"Calculate","v":""},{"$f":"Calculate","v":""},{"$f":"Calculate","v":""},{"$f":"Calculate","v":""},{"$f":"Calculate","v":""},"",{"$f":"Calculate","v":""},{"$f":"Calculate","v":""},0,{"$f":"SUMPRODUCT(N(WEEKDAY(ROW(INDIRECT(Firts_DateOfMonth&\":\"&EOMONTH(Firts_DateOfMonth,0))),2)={1,2,3,4,5,6,7})*($D125:$J125=1))","v":0},0,0,0,""]
[121,null,null,null,null,null,null,null,null,null,0,"",{"$f":"Calculate","v":""},{"$f":"Calculate","v":""},{"$f":"Calculate","v":""},{"$f":"Calculate","v":""},{"$f":"Calculate","v":""},{"$f":"Calculate","v":""},{"$f":"Calculate","v":""},"",{"$f":"Calculate","v":""},{"$f":"Calculate","v":""},{"$f":"Calculate","v":""},{"$f":"Calculate","v":""},{"$f":"Calculate","v":""},{"$f":"Calculate","v":""},{"$f":"Calculate","v":""},"",{"$f":"Calculate","v":""},{"$f":"Calculate","v":""},{"$f":"Calculate","v":""},{"$f":"Calculate","v":""},{"$f":"Calculate","v":""},{"$f":"Calculate","v":""},{"$f":"Calculate","v":""},"",{"$f":"Calculate","v":""},{"$f":"Calculate","v":""},{"$f":"Calculate","v":""},{"$f":"Calculate","v":""},{"$f":"Calculate","v":""},{"$f":"Calculate","v":""},{"$f":"Calculate","v":""},"",{"$f":"Calculate","v":""},{"$f":"Calculate","v":""},{"$f":"Calculate","v":""},{"$f":"Calculate","v":""},{"$f":"Calculate","v":""},{"$f":"Calculate","v":""},{"$f":"Calculate","v":""},"",{"$f":"Calculate","v":""},{"$f":"Calculate","v":""},0,{"$f":"SUMPRODUCT(N(WEEKDAY(ROW(INDIRECT(Firts_DateOfMonth&\":\"&EOMONTH(Firts_DateOfMonth,0))),2)={1,2,3,4,5,6,7})*($D126:$J126=1))","v":0},0,0,0,""]
[122,null,null,null,null,null,null,null,null,null,0,"",{"$f":"Calculate","v":""},{"$f":"Calculate","v":""},{"$f":"Calculate","v":""},{"$f":"Calculate","v":""},{"$f":"Calculate","v":""},{"$f":"Calculate","v":""},{"$f":"Calculate","v":""},"",{"$f":"Calculate","v":""},{"$f":"Calculate","v":""},{"$f":"Calculate","v":""},{"$f":"Calculate","v":""},{"$f":"Calculate","v":""},{"$f":"Calculate","v":""},{"$f":"Calculate","v":""},"",{"$f":"Calculate","v":""},{"$f":"Calculate","v":""},{"$f":"Calculate","v":""},{"$f":"Calculate","v":""},{"$f":"Calculate","v":""},{"$f":"Calculate","v":""},{"$f":"Calculate","v":""},"",{"$f":"Calculate","v":""},{"$f":"Calculate","v":""},{"$f":"Calculate","v":""},{"$f":"Calculate","v":""},{"$f":"Calculate","v":""},{"$f":"Calculate","v":""},{"$f":"Calculate","v":""},"",{"$f":"Calculate","v":""},{"$f":"Calculate","v":""},{"$f":"Calculate","v":""},{"$f":"Calculate","v":""},{"$f":"Calculate","v":""},{"$f":"Calculate","v":""},{"$f":"Calculate","v":""},"",{"$f":"Calculate","v":""},{"$f":"Calculate","v":""},0,{"$f":"SUMPRODUCT(N(WEEKDAY(ROW(INDIRECT(Firts_DateOfMonth&\":\"&EOMONTH(Firts_DateOfMonth,0))),2)={1,2,3,4,5,6,7})*($D127:$J127=1))","v":0},0,0,0,""]
[123,null,null,null,null,null,null,null,null,null,0,"",{"$f":"Calculate","v":""},{"$f":"Calculate","v":""},{"$f":"Calculate","v":""},{"$f":"Calculate","v":""},{"$f":"Calculate","v":""},{"$f":"Calculate","v":""},{"$f":"Calculate","v":""},"",{"$f":"Calculate","v":""},{"$f":"Calculate","v":""},{"$f":"Calculate","v":""},{"$f":"Calculate","v":""},{"$f":"Calculate","v":""},{"$f":"Calculate","v":""},{"$f":"Calculate","v":""},"",{"$f":"Calculate","v":""},{"$f":"Calculate","v":""},{"$f":"Calculate","v":""},{"$f":"Calculate","v":""},{"$f":"Calculate","v":""},{"$f":"Calculate","v":""},{"$f":"Calculate","v":""},"",{"$f":"Calculate","v":""},{"$f":"Calculate","v":""},{"$f":"Calculate","v":""},{"$f":"Calculate","v":""},{"$f":"Calculate","v":""},{"$f":"Calculate","v":""},{"$f":"Calculate","v":""},"",{"$f":"Calculate","v":""},{"$f":"Calculate","v":""},{"$f":"Calculate","v":""},{"$f":"Calculate","v":""},{"$f":"Calculate","v":""},{"$f":"Calculate","v":""},{"$f":"Calculate","v":""},"",{"$f":"Calculate","v":""},{"$f":"Calculate","v":""},0,{"$f":"SUMPRODUCT(N(WEEKDAY(ROW(INDIRECT(Firts_DateOfMonth&\":\"&EOMONTH(Firts_DateOfMonth,0))),2)={1,2,3,4,5,6,7})*($D128:$J128=1))","v":0},0,0,0,""]
[124,null,null,null,null,null,null,null,null,null,0,"",{"$f":"Calculate","v":""},{"$f":"Calculate","v":""},{"$f":"Calculate","v":""},{"$f":"Calculate","v":""},{"$f":"Calculate","v":""},{"$f":"Calculate","v":""},{"$f":"Calculate","v":""},"",{"$f":"Calculate","v":""},{"$f":"Calculate","v":""},{"$f":"Calculate","v":""},{"$f":"Calculate","v":""},{"$f":"Calculate","v":""},{"$f":"Calculate","v":""},{"$f":"Calculate","v":""},"",{"$f":"Calculate","v":""},{"$f":"Calculate","v":""},{"$f":"Calculate","v":""},{"$f":"Calculate","v":""},{"$f":"Calculate","v":""},{"$f":"Calculate","v":""},{"$f":"Calculate","v":""},"",{"$f":"Calculate","v":""},{"$f":"Calculate","v":""},{"$f":"Calculate","v":""},{"$f":"Calculate","v":""},{"$f":"Calculate","v":""},{"$f":"Calculate","v":""},{"$f":"Calculate","v":""},"",{"$f":"Calculate","v":""},{"$f":"Calculate","v":""},{"$f":"Calculate","v":""},{"$f":"Calculate","v":""},{"$f":"Calculate","v":""},{"$f":"Calculate","v":""},{"$f":"Calculate","v":""},"",{"$f":"Calculate","v":""},{"$f":"Calculate","v":""},0,{"$f":"SUMPRODUCT(N(WEEKDAY(ROW(INDIRECT(Firts_DateOfMonth&\":\"&EOMONTH(Firts_DateOfMonth,0))),2)={1,2,3,4,5,6,7})*($D129:$J129=1))","v":0},0,0,0,""]
[125,null,null,null,null,null,null,null,null,null,0,"",{"$f":"Calculate","v":""},{"$f":"Calculate","v":""},{"$f":"Calculate","v":""},{"$f":"Calculate","v":""},{"$f":"Calculate","v":""},{"$f":"Calculate","v":""},{"$f":"Calculate","v":""},"",{"$f":"Calculate","v":""},{"$f":"Calculate","v":""},{"$f":"Calculate","v":""},{"$f":"Calculate","v":""},{"$f":"Calculate","v":""},{"$f":"Calculate","v":""},{"$f":"Calculate","v":""},"",{"$f":"Calculate","v":""},{"$f":"Calculate","v":""},{"$f":"Calculate","v":""},{"$f":"Calculate","v":""},{"$f":"Calculate","v":""},{"$f":"Calculate","v":""},{"$f":"Calculate","v":""},"",{"$f":"Calculate","v":""},{"$f":"Calculate","v":""},{"$f":"Calculate","v":""},{"$f":"Calculate","v":""},{"$f":"Calculate","v":""},{"$f":"Calculate","v":""},{"$f":"Calculate","v":""},"",{"$f":"Calculate","v":""},{"$f":"Calculate","v":""},{"$f":"Calculate","v":""},{"$f":"Calculate","v":""},{"$f":"Calculate","v":""},{"$f":"Calculate","v":""},{"$f":"Calculate","v":""},"",{"$f":"Calculate","v":""},{"$f":"Calculate","v":""},0,{"$f":"SUMPRODUCT(N(WEEKDAY(ROW(INDIRECT(Firts_DateOfMonth&\":\"&EOMONTH(Firts_DateOfMonth,0))),2)={1,2,3,4,5,6,7})*($D130:$J130=1))","v":0},0,0,0,""]
[126,null,null,null,null,null,null,null,null,null,0,"",{"$f":"Calculate","v":""},{"$f":"Calculate","v":""},{"$f":"Calculate","v":""},{"$f":"Calculate","v":""},{"$f":"Calculate","v":""},{"$f":"Calculate","v":""},{"$f":"Calculate","v":""},"",{"$f":"Calculate","v":""},{"$f":"Calculate","v":""},{"$f":"Calculate","v":""},{"$f":"Calculate","v":""},{"$f":"Calculate","v":""},{"$f":"Calculate","v":""},{"$f":"Calculate","v":""},"",{"$f":"Calculate","v":""},{"$f":"Calculate","v":""},{"$f":"Calculate","v":""},{"$f":"Calculate","v":""},{"$f":"Calculate","v":""},{"$f":"Calculate","v":""},{"$f":"Calculate","v":""},"",{"$f":"Calculate","v":""},{"$f":"Calculate","v":""},{"$f":"Calculate","v":""},{"$f":"Calculate","v":""},{"$f":"Calculate","v":""},{"$f":"Calculate","v":""},{"$f":"Calculate","v":""},"",{"$f":"Calculate","v":""},{"$f":"Calculate","v":""},{"$f":"Calculate","v":""},{"$f":"Calculate","v":""},{"$f":"Calculate","v":""},{"$f":"Calculate","v":""},{"$f":"Calculate","v":""},"",{"$f":"Calculate","v":""},{"$f":"Calculate","v":""},0,{"$f":"SUMPRODUCT(N(WEEKDAY(ROW(INDIRECT(Firts_DateOfMonth&\":\"&EOMONTH(Firts_DateOfMonth,0))),2)={1,2,3,4,5,6,7})*($D131:$J131=1))","v":0},0,0,0,""]
[127,null,null,null,null,null,null,null,null,null,0,"",{"$f":"Calculate","v":""},{"$f":"Calculate","v":""},{"$f":"Calculate","v":""},{"$f":"Calculate","v":""},{"$f":"Calculate","v":""},{"$f":"Calculate","v":""},{"$f":"Calculate","v":""},"",{"$f":"Calculate","v":""},{"$f":"Calculate","v":""},{"$f":"Calculate","v":""},{"$f":"Calculate","v":""},{"$f":"Calculate","v":""},{"$f":"Calculate","v":""},{"$f":"Calculate","v":""},"",{"$f":"Calculate","v":""},{"$f":"Calculate","v":""},{"$f":"Calculate","v":""},{"$f":"Calculate","v":""},{"$f":"Calculate","v":""},{"$f":"Calculate","v":""},{"$f":"Calculate","v":""},"",{"$f":"Calculate","v":""},{"$f":"Calculate","v":""},{"$f":"Calculate","v":""},{"$f":"Calculate","v":""},{"$f":"Calculate","v":""},{"$f":"Calculate","v":""},{"$f":"Calculate","v":""},"",{"$f":"Calculate","v":""},{"$f":"Calculate","v":""},{"$f":"Calculate","v":""},{"$f":"Calculate","v":""},{"$f":"Calculate","v":""},{"$f":"Calculate","v":""},{"$f":"Calculate","v":""},"",{"$f":"Calculate","v":""},{"$f":"Calculate","v":""},0,{"$f":"SUMPRODUCT(N(WEEKDAY(ROW(INDIRECT(Firts_DateOfMonth&\":\"&EOMONTH(Firts_DateOfMonth,0))),2)={1,2,3,4,5,6,7})*($D132:$J132=1))","v":0},0,0,0,""]
[128,null,null,null,null,null,null,null,null,null,0,"",{"$f":"Calculate","v":""},{"$f":"Calculate","v":""},{"$f":"Calculate","v":""},{"$f":"Calculate","v":""},{"$f":"Calculate","v":""},{"$f":"Calculate","v":""},{"$f":"Calculate","v":""},"",{"$f":"Calculate","v":""},{"$f":"Calculate","v":""},{"$f":"Calculate","v":""},{"$f":"Calculate","v":""},{"$f":"Calculate","v":""},{"$f":"Calculate","v":""},{"$f":"Calculate","v":""},"",{"$f":"Calculate","v":""},{"$f":"Calculate","v":""},{"$f":"Calculate","v":""},{"$f":"Calculate","v":""},{"$f":"Calculate","v":""},{"$f":"Calculate","v":""},{"$f":"Calculate","v":""},"",{"$f":"Calculate","v":""},{"$f":"Calculate","v":""},{"$f":"Calculate","v":""},{"$f":"Calculate","v":""},{"$f":"Calculate","v":""},{"$f":"Calculate","v":""},{"$f":"Calculate","v":""},"",{"$f":"Calculate","v":""},{"$f":"Calculate","v":""},{"$f":"Calculate","v":""},{"$f":"Calculate","v":""},{"$f":"Calculate","v":""},{"$f":"Calculate","v":""},{"$f":"Calculate","v":""},"",{"$f":"Calculate","v":""},{"$f":"Calculate","v":""},0,{"$f":"SUMPRODUCT(N(WEEKDAY(ROW(INDIRECT(Firts_DateOfMonth&\":\"&EOMONTH(Firts_DateOfMonth,0))),2)={1,2,3,4,5,6,7})*($D133:$J133=1))","v":0},0,0,0,""]
[129,null,null,null,null,null,null,null,null,null,0,{"$f":"IF($B134=\"บิลยกเลิก\",\"\",MID(B134,5,1))","v":""},{"$f":"Calculate","v":""},{"$f":"Calculate","v":""},{"$f":"Calculate","v":""},{"$f":"Calculate","v":""},{"$f":"Calculate","v":""},{"$f":"Calculate","v":""},{"$f":"Calculate","v":""},"",{"$f":"Calculate","v":""},{"$f":"Calculate","v":""},{"$f":"Calculate","v":""},{"$f":"Calculate","v":""},{"$f":"Calculate","v":""},{"$f":"Calculate","v":""},{"$f":"Calculate","v":""},"",{"$f":"Calculate","v":""},{"$f":"Calculate","v":""},{"$f":"Calculate","v":""},{"$f":"Calculate","v":""},{"$f":"Calculate","v":""},{"$f":"Calculate","v":""},{"$f":"Calculate","v":""},"",{"$f":"Calculate","v":""},{"$f":"Calculate","v":""},{"$f":"Calculate","v":""},{"$f":"Calculate","v":""},{"$f":"Calculate","v":""},{"$f":"Calculate","v":""},{"$f":"Calculate","v":""},"",{"$f":"Calculate","v":""},{"$f":"Calculate","v":""},{"$f":"Calculate","v":""},{"$f":"Calculate","v":""},{"$f":"Calculate","v":""},{"$f":"Calculate","v":""},{"$f":"Calculate","v":""},"",{"$f":"Calculate","v":""},{"$f":"Calculate","v":""},0,{"$f":"SUMPRODUCT(N(WEEKDAY(ROW(INDIRECT(Firts_DateOfMonth&\":\"&EOMONTH(Firts_DateOfMonth,0))),2)={1,2,3,4,5,6,7})*($D134:$J134=1))","v":0},{"$f":"IF($BF134>0,0,$BG134)","v":0},{"$f":"((LEFT($B134,1)=\"2\")+(LEFT($B134,1)=\"1\")*($L134=\"A\"))*$BG134","v":0},{"$f":"SUMIFS(M134:BB134,$M$5:$BB$5,\"<>Bills\")","v":0},{"$f":"IFERROR($BG134/$BC134,\"\")","v":""}]
[130,null,null,null,null,null,null,null,null,null,{"$f":"SUM(D135:J135)","v":0},"",{"$f":"Calculate","v":""},{"$f":"Calculate","v":""},{"$f":"Calculate","v":""},{"$f":"Calculate","v":""},{"$f":"Calculate","v":""},{"$f":"Calculate","v":""},{"$f":"Calculate","v":""},{"$f":"IF($B135=\"\",\"\",COUNT(M135:S135))","v":""},{"$f":"Calculate","v":""},{"$f":"Calculate","v":""},{"$f":"Calculate","v":""},{"$f":"Calculate","v":""},{"$f":"Calculate","v":""},{"$f":"Calculate","v":""},{"$f":"Calculate","v":""},{"$f":"IF($B135=\"\",\"\",COUNT(U135:AA135))","v":""},{"$f":"Calculate","v":""},{"$f":"Calculate","v":""},{"$f":"Calculate","v":""},{"$f":"Calculate","v":""},{"$f":"Calculate","v":""},{"$f":"Calculate","v":""},{"$f":"Calculate","v":""},{"$f":"IF($B135=\"\",\"\",COUNT(AC135:AI135))","v":""},{"$f":"Calculate","v":""},{"$f":"Calculate","v":""},{"$f":"Calculate","v":""},{"$f":"Calculate","v":""},{"$f":"Calculate","v":""},{"$f":"Calculate","v":""},{"$f":"Calculate","v":""},{"$f":"IF($B135=\"\",\"\",COUNT(AK135:AQ135))","v":""},{"$f":"Calculate","v":""},{"$f":"Calculate","v":""},{"$f":"Calculate","v":""},{"$f":"Calculate","v":""},{"$f":"Calculate","v":""},{"$f":"Calculate","v":""},{"$f":"Calculate","v":""},{"$f":"IF($B135=\"\",\"\",COUNT(AS135:AY135))","v":""},{"$f":"Calculate","v":""},{"$f":"Calculate","v":""},{"$f":"IF(SUMIFS(M135:BB135,$M$5:$BB$5,\"Bills\")=0,0,SUMIFS(M135:BB135,$M$5:$BB$5,\"Bills\"))","v":0},{"$f":"SUMPRODUCT(N(WEEKDAY(ROW(INDIRECT(Firts_DateOfMonth&\":\"&EOMONTH(Firts_DateOfMonth,0))),2)={1,2,3,4,5,6,7})*($D135:$J135=1))","v":0},0,0,0,""]
[131,null,null,null,null,null,null,null,null,null,0,"",{"$f":"Calculate","v":""},{"$f":"Calculate","v":""},{"$f":"Calculate","v":""},{"$f":"Calculate","v":""},{"$f":"Calculate","v":""},{"$f":"Calculate","v":""},{"$f":"Calculate","v":""},"",{"$f":"Calculate","v":""},{"$f":"Calculate","v":""},{"$f":"Calculate","v":""},{"$f":"Calculate","v":""},{"$f":"Calculate","v":""},{"$f":"Calculate","v":""},{"$f":"Calculate","v":""},"",{"$f":"Calculate","v":""},{"$f":"Calculate","v":""},{"$f":"Calculate","v":""},{"$f":"Calculate","v":""},{"$f":"Calculate","v":""},{"$f":"Calculate","v":""},{"$f":"Calculate","v":""},"",{"$f":"Calculate","v":""},{"$f":"Calculate","v":""},{"$f":"Calculate","v":""},{"$f":"Calculate","v":""},{"$f":"Calculate","v":""},{"$f":"Calculate","v":""},{"$f":"Calculate","v":""},"",{"$f":"Calculate","v":""},{"$f":"Calculate","v":""},{"$f":"Calculate","v":""},{"$f":"Calculate","v":""},{"$f":"Calculate","v":""},{"$f":"Calculate","v":""},{"$f":"Calculate","v":""},"",{"$f":"Calculate","v":""},{"$f":"Calculate","v":""},0,{"$f":"SUMPRODUCT(N(WEEKDAY(ROW(INDIRECT(Firts_DateOfMonth&\":\"&EOMONTH(Firts_DateOfMonth,0))),2)={1,2,3,4,5,6,7})*($D136:$J136=1))","v":0},0,0,0,""]
[132,null,null,null,null,null,null,null,null,null,0,"",{"$f":"Calculate","v":""},{"$f":"Calculate","v":""},{"$f":"Calculate","v":""},{"$f":"Calculate","v":""},{"$f":"Calculate","v":""},{"$f":"Calculate","v":""},{"$f":"Calculate","v":""},"",{"$f":"Calculate","v":""},{"$f":"Calculate","v":""},{"$f":"Calculate","v":""},{"$f":"Calculate","v":""},{"$f":"Calculate","v":""},{"$f":"Calculate","v":""},{"$f":"Calculate","v":""},"",{"$f":"Calculate","v":""},{"$f":"Calculate","v":""},{"$f":"Calculate","v":""},{"$f":"Calculate","v":""},{"$f":"Calculate","v":""},{"$f":"Calculate","v":""},{"$f":"Calculate","v":""},"",{"$f":"Calculate","v":""},{"$f":"Calculate","v":""},{"$f":"Calculate","v":""},{"$f":"Calculate","v":""},{"$f":"Calculate","v":""},{"$f":"Calculate","v":""},{"$f":"Calculate","v":""},"",{"$f":"Calculate","v":""},{"$f":"Calculate","v":""},{"$f":"Calculate","v":""},{"$f":"Calculate","v":""},{"$f":"Calculate","v":""},{"$f":"Calculate","v":""},{"$f":"Calculate","v":""},"",{"$f":"Calculate","v":""},{"$f":"Calculate","v":""},0,{"$f":"SUMPRODUCT(N(WEEKDAY(ROW(INDIRECT(Firts_DateOfMonth&\":\"&EOMONTH(Firts_DateOfMonth,0))),2)={1,2,3,4,5,6,7})*($D137:$J137=1))","v":0},0,0,0,""]
[133,null,null,null,null,null,null,null,null,null,0,"",{"$f":"Calculate","v":""},{"$f":"Calculate","v":""},{"$f":"Calculate","v":""},{"$f":"Calculate","v":""},{"$f":"Calculate","v":""},{"$f":"Calculate","v":""},{"$f":"Calculate","v":""},"",{"$f":"Calculate","v":""},{"$f":"Calculate","v":""},{"$f":"Calculate","v":""},{"$f":"Calculate","v":""},{"$f":"Calculate","v":""},{"$f":"Calculate","v":""},{"$f":"Calculate","v":""},"",{"$f":"Calculate","v":""},{"$f":"Calculate","v":""},{"$f":"Calculate","v":""},{"$f":"Calculate","v":""},{"$f":"Calculate","v":""},{"$f":"Calculate","v":""},{"$f":"Calculate","v":""},"",{"$f":"Calculate","v":""},{"$f":"Calculate","v":""},{"$f":"Calculate","v":""},{"$f":"Calculate","v":""},{"$f":"Calculate","v":""},{"$f":"Calculate","v":""},{"$f":"Calculate","v":""},"",{"$f":"Calculate","v":""},{"$f":"Calculate","v":""},{"$f":"Calculate","v":""},{"$f":"Calculate","v":""},{"$f":"Calculate","v":""},{"$f":"Calculate","v":""},{"$f":"Calculate","v":""},"",{"$f":"Calculate","v":""},{"$f":"Calculate","v":""},0,{"$f":"SUMPRODUCT(N(WEEKDAY(ROW(INDIRECT(Firts_DateOfMonth&\":\"&EOMONTH(Firts_DateOfMonth,0))),2)={1,2,3,4,5,6,7})*($D138:$J138=1))","v":0},0,0,0,""]
[134,null,null,null,null,null,null,null,null,null,0,"",{"$f":"Calculate","v":""},{"$f":"Calculate","v":""},{"$f":"Calculate","v":""},{"$f":"Calculate","v":""},{"$f":"Calculate","v":""},{"$f":"Calculate","v":""},{"$f":"Calculate","v":""},"",{"$f":"Calculate","v":""},{"$f":"Calculate","v":""},{"$f":"Calculate","v":""},{"$f":"Calculate","v":""},{"$f":"Calculate","v":""},{"$f":"Calculate","v":""},{"$f":"Calculate","v":""},"",{"$f":"Calculate","v":""},{"$f":"Calculate","v":""},{"$f":"Calculate","v":""},{"$f":"Calculate","v":""},{"$f":"Calculate","v":""},{"$f":"Calculate","v":""},{"$f":"Calculate","v":""},"",{"$f":"Calculate","v":""},{"$f":"Calculate","v":""},{"$f":"Calculate","v":""},{"$f":"Calculate","v":""},{"$f":"Calculate","v":""},{"$f":"Calculate","v":""},{"$f":"Calculate","v":""},"",{"$f":"Calculate","v":""},{"$f":"Calculate","v":""},{"$f":"Calculate","v":""},{"$f":"Calculate","v":""},{"$f":"Calculate","v":""},{"$f":"Calculate","v":""},{"$f":"Calculate","v":""},"",{"$f":"Calculate","v":""},{"$f":"Calculate","v":""},0,{"$f":"SUMPRODUCT(N(WEEKDAY(ROW(INDIRECT(Firts_DateOfMonth&\":\"&EOMONTH(Firts_DateOfMonth,0))),2)={1,2,3,4,5,6,7})*($D139:$J139=1))","v":0},0,0,0,""]
[135,null,null,null,null,null,null,null,null,null,0,"",{"$f":"Calculate","v":""},{"$f":"Calculate","v":""},{"$f":"Calculate","v":""},{"$f":"Calculate","v":""},{"$f":"Calculate","v":""},{"$f":"Calculate","v":""},{"$f":"Calculate","v":""},"",{"$f":"Calculate","v":""},{"$f":"Calculate","v":""},{"$f":"Calculate","v":""},{"$f":"Calculate","v":""},{"$f":"Calculate","v":""},{"$f":"Calculate","v":""},{"$f":"Calculate","v":""},"",{"$f":"Calculate","v":""},{"$f":"Calculate","v":""},{"$f":"Calculate","v":""},{"$f":"Calculate","v":""},{"$f":"Calculate","v":""},{"$f":"Calculate","v":""},{"$f":"Calculate","v":""},"",{"$f":"Calculate","v":""},{"$f":"Calculate","v":""},{"$f":"Calculate","v":""},{"$f":"Calculate","v":""},{"$f":"Calculate","v":""},{"$f":"Calculate","v":""},{"$f":"Calculate","v":""},"",{"$f":"Calculate","v":""},{"$f":"Calculate","v":""},{"$f":"Calculate","v":""},{"$f":"Calculate","v":""},{"$f":"Calculate","v":""},{"$f":"Calculate","v":""},{"$f":"Calculate","v":""},"",{"$f":"Calculate","v":""},{"$f":"Calculate","v":""},0,{"$f":"SUMPRODUCT(N(WEEKDAY(ROW(INDIRECT(Firts_DateOfMonth&\":\"&EOMONTH(Firts_DateOfMonth,0))),2)={1,2,3,4,5,6,7})*($D140:$J140=1))","v":0},0,0,0,""]
[136,null,null,null,null,null,null,null,null,null,0,"",{"$f":"Calculate","v":""},{"$f":"Calculate","v":""},{"$f":"Calculate","v":""},{"$f":"Calculate","v":""},{"$f":"Calculate","v":""},{"$f":"Calculate","v":""},{"$f":"Calculate","v":""},"",{"$f":"Calculate","v":""},{"$f":"Calculate","v":""},{"$f":"Calculate","v":""},{"$f":"Calculate","v":""},{"$f":"Calculate","v":""},{"$f":"Calculate","v":""},{"$f":"Calculate","v":""},"",{"$f":"Calculate","v":""},{"$f":"Calculate","v":""},{"$f":"Calculate","v":""},{"$f":"Calculate","v":""},{"$f":"Calculate","v":""},{"$f":"Calculate","v":""},{"$f":"Calculate","v":""},"",{"$f":"Calculate","v":""},{"$f":"Calculate","v":""},{"$f":"Calculate","v":""},{"$f":"Calculate","v":""},{"$f":"Calculate","v":""},{"$f":"Calculate","v":""},{"$f":"Calculate","v":""},"",{"$f":"Calculate","v":""},{"$f":"Calculate","v":""},{"$f":"Calculate","v":""},{"$f":"Calculate","v":""},{"$f":"Calculate","v":""},{"$f":"Calculate","v":""},{"$f":"Calculate","v":""},"",{"$f":"Calculate","v":""},{"$f":"Calculate","v":""},0,{"$f":"SUMPRODUCT(N(WEEKDAY(ROW(INDIRECT(Firts_DateOfMonth&\":\"&EOMONTH(Firts_DateOfMonth,0))),2)={1,2,3,4,5,6,7})*($D141:$J141=1))","v":0},0,0,0,""]
[137,null,null,null,null,null,null,null,null,null,0,"",{"$f":"Calculate","v":""},{"$f":"Calculate","v":""},{"$f":"Calculate","v":""},{"$f":"Calculate","v":""},{"$f":"Calculate","v":""},{"$f":"Calculate","v":""},{"$f":"Calculate","v":""},"",{"$f":"Calculate","v":""},{"$f":"Calculate","v":""},{"$f":"Calculate","v":""},{"$f":"Calculate","v":""},{"$f":"Calculate","v":""},{"$f":"Calculate","v":""},{"$f":"Calculate","v":""},"",{"$f":"Calculate","v":""},{"$f":"Calculate","v":""},{"$f":"Calculate","v":""},{"$f":"Calculate","v":""},{"$f":"Calculate","v":""},{"$f":"Calculate","v":""},{"$f":"Calculate","v":""},"",{"$f":"Calculate","v":""},{"$f":"Calculate","v":""},{"$f":"Calculate","v":""},{"$f":"Calculate","v":""},{"$f":"Calculate","v":""},{"$f":"Calculate","v":""},{"$f":"Calculate","v":""},"",{"$f":"Calculate","v":""},{"$f":"Calculate","v":""},{"$f":"Calculate","v":""},{"$f":"Calculate","v":""},{"$f":"Calculate","v":""},{"$f":"Calculate","v":""},{"$f":"Calculate","v":""},"",{"$f":"Calculate","v":""},{"$f":"Calculate","v":""},0,{"$f":"SUMPRODUCT(N(WEEKDAY(ROW(INDIRECT(Firts_DateOfMonth&\":\"&EOMONTH(Firts_DateOfMonth,0))),2)={1,2,3,4,5,6,7})*($D142:$J142=1))","v":0},0,0,0,""]
[138,null,null,null,null,null,null,null,null,null,0,"",{"$f":"Calculate","v":""},{"$f":"Calculate","v":""},{"$f":"Calculate","v":""},{"$f":"Calculate","v":""},{"$f":"Calculate","v":""},{"$f":"Calculate","v":""},{"$f":"Calculate","v":""},"",{"$f":"Calculate","v":""},{"$f":"Calculate","v":""},{"$f":"Calculate","v":""},{"$f":"Calculate","v":""},{"$f":"Calculate","v":""},{"$f":"Calculate","v":""},{"$f":"Calculate","v":""},"",{"$f":"Calculate","v":""},{"$f":"Calculate","v":""},{"$f":"Calculate","v":""},{"$f":"Calculate","v":""},{"$f":"Calculate","v":""},{"$f":"Calculate","v":""},{"$f":"Calculate","v":""},"",{"$f":"Calculate","v":""},{"$f":"Calculate","v":""},{"$f":"Calculate","v":""},{"$f":"Calculate","v":""},{"$f":"Calculate","v":""},{"$f":"Calculate","v":""},{"$f":"Calculate","v":""},"",{"$f":"Calculate","v":""},{"$f":"Calculate","v":""},{"$f":"Calculate","v":""},{"$f":"Calculate","v":""},{"$f":"Calculate","v":""},{"$f":"Calculate","v":""},{"$f":"Calculate","v":""},"",{"$f":"Calculate","v":""},{"$f":"Calculate","v":""},0,{"$f":"SUMPRODUCT(N(WEEKDAY(ROW(INDIRECT(Firts_DateOfMonth&\":\"&EOMONTH(Firts_DateOfMonth,0))),2)={1,2,3,4,5,6,7})*($D143:$J143=1))","v":0},0,0,0,""]
[139,null,null,null,null,null,null,null,null,null,0,"",{"$f":"Calculate","v":""},{"$f":"Calculate","v":""},{"$f":"Calculate","v":""},{"$f":"Calculate","v":""},{"$f":"Calculate","v":""},{"$f":"Calculate","v":""},{"$f":"Calculate","v":""},"",{"$f":"Calculate","v":""},{"$f":"Calculate","v":""},{"$f":"Calculate","v":""},{"$f":"Calculate","v":""},{"$f":"Calculate","v":""},{"$f":"Calculate","v":""},{"$f":"Calculate","v":""},"",{"$f":"Calculate","v":""},{"$f":"Calculate","v":""},{"$f":"Calculate","v":""},{"$f":"Calculate","v":""},{"$f":"Calculate","v":""},{"$f":"Calculate","v":""},{"$f":"Calculate","v":""},"",{"$f":"Calculate","v":""},{"$f":"Calculate","v":""},{"$f":"Calculate","v":""},{"$f":"Calculate","v":""},{"$f":"Calculate","v":""},{"$f":"Calculate","v":""},{"$f":"Calculate","v":""},"",{"$f":"Calculate","v":""},{"$f":"Calculate","v":""},{"$f":"Calculate","v":""},{"$f":"Calculate","v":""},{"$f":"Calculate","v":""},{"$f":"Calculate","v":""},{"$f":"Calculate","v":""},"",{"$f":"Calculate","v":""},{"$f":"Calculate","v":""},0,{"$f":"SUMPRODUCT(N(WEEKDAY(ROW(INDIRECT(Firts_DateOfMonth&\":\"&EOMONTH(Firts_DateOfMonth,0))),2)={1,2,3,4,5,6,7})*($D144:$J144=1))","v":0},0,0,0,""]
[140,null,null,null,null,null,null,null,null,null,0,"",{"$f":"Calculate","v":""},{"$f":"Calculate","v":""},{"$f":"Calculate","v":""},{"$f":"Calculate","v":""},{"$f":"Calculate","v":""},{"$f":"Calculate","v":""},{"$f":"Calculate","v":""},"",{"$f":"Calculate","v":""},{"$f":"Calculate","v":""},{"$f":"Calculate","v":""},{"$f":"Calculate","v":""},{"$f":"Calculate","v":""},{"$f":"Calculate","v":""},{"$f":"Calculate","v":""},"",{"$f":"Calculate","v":""},{"$f":"Calculate","v":""},{"$f":"Calculate","v":""},{"$f":"Calculate","v":""},{"$f":"Calculate","v":""},{"$f":"Calculate","v":""},{"$f":"Calculate","v":""},"",{"$f":"Calculate","v":""},{"$f":"Calculate","v":""},{"$f":"Calculate","v":""},{"$f":"Calculate","v":""},{"$f":"Calculate","v":""},{"$f":"Calculate","v":""},{"$f":"Calculate","v":""},"",{"$f":"Calculate","v":""},{"$f":"Calculate","v":""},{"$f":"Calculate","v":""},{"$f":"Calculate","v":""},{"$f":"Calculate","v":""},{"$f":"Calculate","v":""},{"$f":"Calculate","v":""},"",{"$f":"Calculate","v":""},{"$f":"Calculate","v":""},0,{"$f":"SUMPRODUCT(N(WEEKDAY(ROW(INDIRECT(Firts_DateOfMonth&\":\"&EOMONTH(Firts_DateOfMonth,0))),2)={1,2,3,4,5,6,7})*($D145:$J145=1))","v":0},0,0,0,""]
[141,null,null,null,null,null,null,null,null,null,0,"",{"$f":"Calculate","v":""},{"$f":"Calculate","v":""},{"$f":"Calculate","v":""},{"$f":"Calculate","v":""},{"$f":"Calculate","v":""},{"$f":"Calculate","v":""},{"$f":"Calculate","v":""},"",{"$f":"Calculate","v":""},{"$f":"Calculate","v":""},{"$f":"Calculate","v":""},{"$f":"Calculate","v":""},{"$f":"Calculate","v":""},{"$f":"Calculate","v":""},{"$f":"Calculate","v":""},"",{"$f":"Calculate","v":""},{"$f":"Calculate","v":""},{"$f":"Calculate","v":""},{"$f":"Calculate","v":""},{"$f":"Calculate","v":""},{"$f":"Calculate","v":""},{"$f":"Calculate","v":""},"",{"$f":"Calculate","v":""},{"$f":"Calculate","v":""},{"$f":"Calculate","v":""},{"$f":"Calculate","v":""},{"$f":"Calculate","v":""},{"$f":"Calculate","v":""},{"$f":"Calculate","v":""},"",{"$f":"Calculate","v":""},{"$f":"Calculate","v":""},{"$f":"Calculate","v":""},{"$f":"Calculate","v":""},{"$f":"Calculate","v":""},{"$f":"Calculate","v":""},{"$f":"Calculate","v":""},"",{"$f":"Calculate","v":""},{"$f":"Calculate","v":""},0,{"$f":"SUMPRODUCT(N(WEEKDAY(ROW(INDIRECT(Firts_DateOfMonth&\":\"&EOMONTH(Firts_DateOfMonth,0))),2)={1,2,3,4,5,6,7})*($D146:$J146=1))","v":0},0,0,0,""]
[142,null,null,null,null,null,null,null,null,null,0,"",{"$f":"Calculate","v":""},{"$f":"Calculate","v":""},{"$f":"Calculate","v":""},{"$f":"Calculate","v":""},{"$f":"Calculate","v":""},{"$f":"Calculate","v":""},{"$f":"Calculate","v":""},"",{"$f":"Calculate","v":""},{"$f":"Calculate","v":""},{"$f":"Calculate","v":""},{"$f":"Calculate","v":""},{"$f":"Calculate","v":""},{"$f":"Calculate","v":""},{"$f":"Calculate","v":""},"",{"$f":"Calculate","v":""},{"$f":"Calculate","v":""},{"$f":"Calculate","v":""},{"$f":"Calculate","v":""},{"$f":"Calculate","v":""},{"$f":"Calculate","v":""},{"$f":"Calculate","v":""},"",{"$f":"Calculate","v":""},{"$f":"Calculate","v":""},{"$f":"Calculate","v":""},{"$f":"Calculate","v":""},{"$f":"Calculate","v":""},{"$f":"Calculate","v":""},{"$f":"Calculate","v":""},"",{"$f":"Calculate","v":""},{"$f":"Calculate","v":""},{"$f":"Calculate","v":""},{"$f":"Calculate","v":""},{"$f":"Calculate","v":""},{"$f":"Calculate","v":""},{"$f":"Calculate","v":""},"",{"$f":"Calculate","v":""},{"$f":"Calculate","v":""},0,{"$f":"SUMPRODUCT(N(WEEKDAY(ROW(INDIRECT(Firts_DateOfMonth&\":\"&EOMONTH(Firts_DateOfMonth,0))),2)={1,2,3,4,5,6,7})*($D147:$J147=1))","v":0},0,0,0,""]
[143,null,null,null,null,null,null,null,null,null,0,"",{"$f":"Calculate","v":""},{"$f":"Calculate","v":""},{"$f":"Calculate","v":""},{"$f":"Calculate","v":""},{"$f":"Calculate","v":""},{"$f":"Calculate","v":""},{"$f":"Calculate","v":""},"",{"$f":"Calculate","v":""},{"$f":"Calculate","v":""},{"$f":"Calculate","v":""},{"$f":"Calculate","v":""},{"$f":"Calculate","v":""},{"$f":"Calculate","v":""},{"$f":"Calculate","v":""},"",{"$f":"Calculate","v":""},{"$f":"Calculate","v":""},{"$f":"Calculate","v":""},{"$f":"Calculate","v":""},{"$f":"Calculate","v":""},{"$f":"Calculate","v":""},{"$f":"Calculate","v":""},"",{"$f":"Calculate","v":""},{"$f":"Calculate","v":""},{"$f":"Calculate","v":""},{"$f":"Calculate","v":""},{"$f":"Calculate","v":""},{"$f":"Calculate","v":""},{"$f":"Calculate","v":""},"",{"$f":"Calculate","v":""},{"$f":"Calculate","v":""},{"$f":"Calculate","v":""},{"$f":"Calculate","v":""},{"$f":"Calculate","v":""},{"$f":"Calculate","v":""},{"$f":"Calculate","v":""},"",{"$f":"Calculate","v":""},{"$f":"Calculate","v":""},0,{"$f":"SUMPRODUCT(N(WEEKDAY(ROW(INDIRECT(Firts_DateOfMonth&\":\"&EOMONTH(Firts_DateOfMonth,0))),2)={1,2,3,4,5,6,7})*($D148:$J148=1))","v":0},0,0,0,""]
[144,null,null,null,null,null,null,null,null,null,0,"",{"$f":"Calculate","v":""},{"$f":"Calculate","v":""},{"$f":"Calculate","v":""},{"$f":"Calculate","v":""},{"$f":"Calculate","v":""},{"$f":"Calculate","v":""},{"$f":"Calculate","v":""},"",{"$f":"Calculate","v":""},{"$f":"Calculate","v":""},{"$f":"Calculate","v":""},{"$f":"Calculate","v":""},{"$f":"Calculate","v":""},{"$f":"Calculate","v":""},{"$f":"Calculate","v":""},"",{"$f":"Calculate","v":""},{"$f":"Calculate","v":""},{"$f":"Calculate","v":""},{"$f":"Calculate","v":""},{"$f":"Calculate","v":""},{"$f":"Calculate","v":""},{"$f":"Calculate","v":""},"",{"$f":"Calculate","v":""},{"$f":"Calculate","v":""},{"$f":"Calculate","v":""},{"$f":"Calculate","v":""},{"$f":"Calculate","v":""},{"$f":"Calculate","v":""},{"$f":"Calculate","v":""},"",{"$f":"Calculate","v":""},{"$f":"Calculate","v":""},{"$f":"Calculate","v":""},{"$f":"Calculate","v":""},{"$f":"Calculate","v":""},{"$f":"Calculate","v":""},{"$f":"Calculate","v":""},"",{"$f":"Calculate","v":""},{"$f":"Calculate","v":""},0,{"$f":"SUMPRODUCT(N(WEEKDAY(ROW(INDIRECT(Firts_DateOfMonth&\":\"&EOMONTH(Firts_DateOfMonth,0))),2)={1,2,3,4,5,6,7})*($D149:$J149=1))","v":0},0,0,0,""]
[145,null,null,null,null,null,null,null,null,null,0,"",{"$f":"Calculate","v":""},{"$f":"Calculate","v":""},{"$f":"Calculate","v":""},{"$f":"Calculate","v":""},{"$f":"Calculate","v":""},{"$f":"Calculate","v":""},{"$f":"Calculate","v":""},"",{"$f":"Calculate","v":""},{"$f":"Calculate","v":""},{"$f":"Calculate","v":""},{"$f":"Calculate","v":""},{"$f":"Calculate","v":""},{"$f":"Calculate","v":""},{"$f":"Calculate","v":""},"",{"$f":"Calculate","v":""},{"$f":"Calculate","v":""},{"$f":"Calculate","v":""},{"$f":"Calculate","v":""},{"$f":"Calculate","v":""},{"$f":"Calculate","v":""},{"$f":"Calculate","v":""},"",{"$f":"Calculate","v":""},{"$f":"Calculate","v":""},{"$f":"Calculate","v":""},{"$f":"Calculate","v":""},{"$f":"Calculate","v":""},{"$f":"Calculate","v":""},{"$f":"Calculate","v":""},"",{"$f":"Calculate","v":""},{"$f":"Calculate","v":""},{"$f":"Calculate","v":""},{"$f":"Calculate","v":""},{"$f":"Calculate","v":""},{"$f":"Calculate","v":""},{"$f":"Calculate","v":""},"",{"$f":"Calculate","v":""},{"$f":"Calculate","v":""},0,{"$f":"SUMPRODUCT(N(WEEKDAY(ROW(INDIRECT(Firts_DateOfMonth&\":\"&EOMONTH(Firts_DateOfMonth,0))),2)={1,2,3,4,5,6,7})*($D150:$J150=1))","v":0},0,0,0,""]
[146,null,null,null,null,null,null,null,null,null,0,"",{"$f":"Calculate","v":""},{"$f":"Calculate","v":""},{"$f":"Calculate","v":""},{"$f":"Calculate","v":""},{"$f":"Calculate","v":""},{"$f":"Calculate","v":""},{"$f":"Calculate","v":""},"",{"$f":"Calculate","v":""},{"$f":"Calculate","v":""},{"$f":"Calculate","v":""},{"$f":"Calculate","v":""},{"$f":"Calculate","v":""},{"$f":"Calculate","v":""},{"$f":"Calculate","v":""},"",{"$f":"Calculate","v":""},{"$f":"Calculate","v":""},{"$f":"Calculate","v":""},{"$f":"Calculate","v":""},{"$f":"Calculate","v":""},{"$f":"Calculate","v":""},{"$f":"Calculate","v":""},"",{"$f":"Calculate","v":""},{"$f":"Calculate","v":""},{"$f":"Calculate","v":""},{"$f":"Calculate","v":""},{"$f":"Calculate","v":""},{"$f":"Calculate","v":""},{"$f":"Calculate","v":""},"",{"$f":"Calculate","v":""},{"$f":"Calculate","v":""},{"$f":"Calculate","v":""},{"$f":"Calculate","v":""},{"$f":"Calculate","v":""},{"$f":"Calculate","v":""},{"$f":"Calculate","v":""},"",{"$f":"Calculate","v":""},{"$f":"Calculate","v":""},0,{"$f":"SUMPRODUCT(N(WEEKDAY(ROW(INDIRECT(Firts_DateOfMonth&\":\"&EOMONTH(Firts_DateOfMonth,0))),2)={1,2,3,4,5,6,7})*($D151:$J151=1))","v":0},0,0,0,""]
[147,null,null,null,null,null,null,null,null,null,0,"",{"$f":"Calculate","v":""},{"$f":"Calculate","v":""},{"$f":"Calculate","v":""},{"$f":"Calculate","v":""},{"$f":"Calculate","v":""},{"$f":"Calculate","v":""},{"$f":"Calculate","v":""},"",{"$f":"Calculate","v":""},{"$f":"Calculate","v":""},{"$f":"Calculate","v":""},{"$f":"Calculate","v":""},{"$f":"Calculate","v":""},{"$f":"Calculate","v":""},{"$f":"Calculate","v":""},"",{"$f":"Calculate","v":""},{"$f":"Calculate","v":""},{"$f":"Calculate","v":""},{"$f":"Calculate","v":""},{"$f":"Calculate","v":""},{"$f":"Calculate","v":""},{"$f":"Calculate","v":""},"",{"$f":"Calculate","v":""},{"$f":"Calculate","v":""},{"$f":"Calculate","v":""},{"$f":"Calculate","v":""},{"$f":"Calculate","v":""},{"$f":"Calculate","v":""},{"$f":"Calculate","v":""},"",{"$f":"Calculate","v":""},{"$f":"Calculate","v":""},{"$f":"Calculate","v":""},{"$f":"Calculate","v":""},{"$f":"Calculate","v":""},{"$f":"Calculate","v":""},{"$f":"Calculate","v":""},"",{"$f":"Calculate","v":""},{"$f":"Calculate","v":""},0,{"$f":"SUMPRODUCT(N(WEEKDAY(ROW(INDIRECT(Firts_DateOfMonth&\":\"&EOMONTH(Firts_DateOfMonth,0))),2)={1,2,3,4,5,6,7})*($D152:$J152=1))","v":0},0,0,0,""]
[148,null,null,null,null,null,null,null,null,null,0,"",{"$f":"Calculate","v":""},{"$f":"Calculate","v":""},{"$f":"Calculate","v":""},{"$f":"Calculate","v":""},{"$f":"Calculate","v":""},{"$f":"Calculate","v":""},{"$f":"Calculate","v":""},"",{"$f":"Calculate","v":""},{"$f":"Calculate","v":""},{"$f":"Calculate","v":""},{"$f":"Calculate","v":""},{"$f":"Calculate","v":""},{"$f":"Calculate","v":""},{"$f":"Calculate","v":""},"",{"$f":"Calculate","v":""},{"$f":"Calculate","v":""},{"$f":"Calculate","v":""},{"$f":"Calculate","v":""},{"$f":"Calculate","v":""},{"$f":"Calculate","v":""},{"$f":"Calculate","v":""},"",{"$f":"Calculate","v":""},{"$f":"Calculate","v":""},{"$f":"Calculate","v":""},{"$f":"Calculate","v":""},{"$f":"Calculate","v":""},{"$f":"Calculate","v":""},{"$f":"Calculate","v":""},"",{"$f":"Calculate","v":""},{"$f":"Calculate","v":""},{"$f":"Calculate","v":""},{"$f":"Calculate","v":""},{"$f":"Calculate","v":""},{"$f":"Calculate","v":""},{"$f":"Calculate","v":""},"",{"$f":"Calculate","v":""},{"$f":"Calculate","v":""},0,{"$f":"SUMPRODUCT(N(WEEKDAY(ROW(INDIRECT(Firts_DateOfMonth&\":\"&EOMONTH(Firts_DateOfMonth,0))),2)={1,2,3,4,5,6,7})*($D153:$J153=1))","v":0},0,0,0,""]
[149,null,null,null,null,null,null,null,null,null,0,"",{"$f":"Calculate","v":""},{"$f":"Calculate","v":""},{"$f":"Calculate","v":""},{"$f":"Calculate","v":""},{"$f":"Calculate","v":""},{"$f":"Calculate","v":""},{"$f":"Calculate","v":""},"",{"$f":"Calculate","v":""},{"$f":"Calculate","v":""},{"$f":"Calculate","v":""},{"$f":"Calculate","v":""},{"$f":"Calculate","v":""},{"$f":"Calculate","v":""},{"$f":"Calculate","v":""},"",{"$f":"Calculate","v":""},{"$f":"Calculate","v":""},{"$f":"Calculate","v":""},{"$f":"Calculate","v":""},{"$f":"Calculate","v":""},{"$f":"Calculate","v":""},{"$f":"Calculate","v":""},"",{"$f":"Calculate","v":""},{"$f":"Calculate","v":""},{"$f":"Calculate","v":""},{"$f":"Calculate","v":""},{"$f":"Calculate","v":""},{"$f":"Calculate","v":""},{"$f":"Calculate","v":""},"",{"$f":"Calculate","v":""},{"$f":"Calculate","v":""},{"$f":"Calculate","v":""},{"$f":"Calculate","v":""},{"$f":"Calculate","v":""},{"$f":"Calculate","v":""},{"$f":"Calculate","v":""},"",{"$f":"Calculate","v":""},{"$f":"Calculate","v":""},0,{"$f":"SUMPRODUCT(N(WEEKDAY(ROW(INDIRECT(Firts_DateOfMonth&\":\"&EOMONTH(Firts_DateOfMonth,0))),2)={1,2,3,4,5,6,7})*($D154:$J154=1))","v":0},0,0,0,""]
[150,null,null,null,null,null,null,null,null,null,0,"",{"$f":"Calculate","v":""},{"$f":"Calculate","v":""},{"$f":"Calculate","v":""},{"$f":"Calculate","v":""},{"$f":"Calculate","v":""},{"$f":"Calculate","v":""},{"$f":"Calculate","v":""},"",{"$f":"Calculate","v":""},{"$f":"Calculate","v":""},{"$f":"Calculate","v":""},{"$f":"Calculate","v":""},{"$f":"Calculate","v":""},{"$f":"Calculate","v":""},{"$f":"Calculate","v":""},"",{"$f":"Calculate","v":""},{"$f":"Calculate","v":""},{"$f":"Calculate","v":""},{"$f":"Calculate","v":""},{"$f":"Calculate","v":""},{"$f":"Calculate","v":""},{"$f":"Calculate","v":""},"",{"$f":"Calculate","v":""},{"$f":"Calculate","v":""},{"$f":"Calculate","v":""},{"$f":"Calculate","v":""},{"$f":"Calculate","v":""},{"$f":"Calculate","v":""},{"$f":"Calculate","v":""},"",{"$f":"Calculate","v":""},{"$f":"Calculate","v":""},{"$f":"Calculate","v":""},{"$f":"Calculate","v":""},{"$f":"Calculate","v":""},{"$f":"Calculate","v":""},{"$f":"Calculate","v":""},"",{"$f":"Calculate","v":""},{"$f":"Calculate","v":""},0,{"$f":"SUMPRODUCT(N(WEEKDAY(ROW(INDIRECT(Firts_DateOfMonth&\":\"&EOMONTH(Firts_DateOfMonth,0))),2)={1,2,3,4,5,6,7})*($D155:$J155=1))","v":0},0,0,0,""]
[151,null,null,null,null,null,null,null,null,null,0,"",{"$f":"Calculate","v":""},{"$f":"Calculate","v":""},{"$f":"Calculate","v":""},{"$f":"Calculate","v":""},{"$f":"Calculate","v":""},{"$f":"Calculate","v":""},{"$f":"Calculate","v":""},"",{"$f":"Calculate","v":""},{"$f":"Calculate","v":""},{"$f":"Calculate","v":""},{"$f":"Calculate","v":""},{"$f":"Calculate","v":""},{"$f":"Calculate","v":""},{"$f":"Calculate","v":""},"",{"$f":"Calculate","v":""},{"$f":"Calculate","v":""},{"$f":"Calculate","v":""},{"$f":"Calculate","v":""},{"$f":"Calculate","v":""},{"$f":"Calculate","v":""},{"$f":"Calculate","v":""},"",{"$f":"Calculate","v":""},{"$f":"Calculate","v":""},{"$f":"Calculate","v":""},{"$f":"Calculate","v":""},{"$f":"Calculate","v":""},{"$f":"Calculate","v":""},{"$f":"Calculate","v":""},"",{"$f":"Calculate","v":""},{"$f":"Calculate","v":""},{"$f":"Calculate","v":""},{"$f":"Calculate","v":""},{"$f":"Calculate","v":""},{"$f":"Calculate","v":""},{"$f":"Calculate","v":""},"",{"$f":"Calculate","v":""},{"$f":"Calculate","v":""},0,{"$f":"SUMPRODUCT(N(WEEKDAY(ROW(INDIRECT(Firts_DateOfMonth&\":\"&EOMONTH(Firts_DateOfMonth,0))),2)={1,2,3,4,5,6,7})*($D156:$J156=1))","v":0},0,0,0,""]
[152,null,null,null,null,null,null,null,null,null,0,"",{"$f":"Calculate","v":""},{"$f":"Calculate","v":""},{"$f":"Calculate","v":""},{"$f":"Calculate","v":""},{"$f":"Calculate","v":""},{"$f":"Calculate","v":""},{"$f":"Calculate","v":""},"",{"$f":"Calculate","v":""},{"$f":"Calculate","v":""},{"$f":"Calculate","v":""},{"$f":"Calculate","v":""},{"$f":"Calculate","v":""},{"$f":"Calculate","v":""},{"$f":"Calculate","v":""},"",{"$f":"Calculate","v":""},{"$f":"Calculate","v":""},{"$f":"Calculate","v":""},{"$f":"Calculate","v":""},{"$f":"Calculate","v":""},{"$f":"Calculate","v":""},{"$f":"Calculate","v":""},"",{"$f":"Calculate","v":""},{"$f":"Calculate","v":""},{"$f":"Calculate","v":""},{"$f":"Calculate","v":""},{"$f":"Calculate","v":""},{"$f":"Calculate","v":""},{"$f":"Calculate","v":""},"",{"$f":"Calculate","v":""},{"$f":"Calculate","v":""},{"$f":"Calculate","v":""},{"$f":"Calculate","v":""},{"$f":"Calculate","v":""},{"$f":"Calculate","v":""},{"$f":"Calculate","v":""},"",{"$f":"Calculate","v":""},{"$f":"Calculate","v":""},0,{"$f":"SUMPRODUCT(N(WEEKDAY(ROW(INDIRECT(Firts_DateOfMonth&\":\"&EOMONTH(Firts_DateOfMonth,0))),2)={1,2,3,4,5,6,7})*($D157:$J157=1))","v":0},0,0,0,""]
[153,null,null,null,null,null,null,null,null,null,0,"",{"$f":"Calculate","v":""},{"$f":"Calculate","v":""},{"$f":"Calculate","v":""},{"$f":"Calculate","v":""},{"$f":"Calculate","v":""},{"$f":"Calculate","v":""},{"$f":"Calculate","v":""},"",{"$f":"Calculate","v":""},{"$f":"Calculate","v":""},{"$f":"Calculate","v":""},{"$f":"Calculate","v":""},{"$f":"Calculate","v":""},{"$f":"Calculate","v":""},{"$f":"Calculate","v":""},"",{"$f":"Calculate","v":""},{"$f":"Calculate","v":""},{"$f":"Calculate","v":""},{"$f":"Calculate","v":""},{"$f":"Calculate","v":""},{"$f":"Calculate","v":""},{"$f":"Calculate","v":""},"",{"$f":"Calculate","v":""},{"$f":"Calculate","v":""},{"$f":"Calculate","v":""},{"$f":"Calculate","v":""},{"$f":"Calculate","v":""},{"$f":"Calculate","v":""},{"$f":"Calculate","v":""},"",{"$f":"Calculate","v":""},{"$f":"Calculate","v":""},{"$f":"Calculate","v":""},{"$f":"Calculate","v":""},{"$f":"Calculate","v":""},{"$f":"Calculate","v":""},{"$f":"Calculate","v":""},"",{"$f":"Calculate","v":""},{"$f":"Calculate","v":""},0,{"$f":"SUMPRODUCT(N(WEEKDAY(ROW(INDIRECT(Firts_DateOfMonth&\":\"&EOMONTH(Firts_DateOfMonth,0))),2)={1,2,3,4,5,6,7})*($D158:$J158=1))","v":0},0,0,0,""]
[154,null,null,null,null,null,null,null,null,null,0,"",{"$f":"Calculate","v":""},{"$f":"Calculate","v":""},{"$f":"Calculate","v":""},{"$f":"Calculate","v":""},{"$f":"Calculate","v":""},{"$f":"Calculate","v":""},{"$f":"Calculate","v":""},"",{"$f":"Calculate","v":""},{"$f":"Calculate","v":""},{"$f":"Calculate","v":""},{"$f":"Calculate","v":""},{"$f":"Calculate","v":""},{"$f":"Calculate","v":""},{"$f":"Calculate","v":""},"",{"$f":"Calculate","v":""},{"$f":"Calculate","v":""},{"$f":"Calculate","v":""},{"$f":"Calculate","v":""},{"$f":"Calculate","v":""},{"$f":"Calculate","v":""},{"$f":"Calculate","v":""},"",{"$f":"Calculate","v":""},{"$f":"Calculate","v":""},{"$f":"Calculate","v":""},{"$f":"Calculate","v":""},{"$f":"Calculate","v":""},{"$f":"Calculate","v":""},{"$f":"Calculate","v":""},"",{"$f":"Calculate","v":""},{"$f":"Calculate","v":""},{"$f":"Calculate","v":""},{"$f":"Calculate","v":""},{"$f":"Calculate","v":""},{"$f":"Calculate","v":""},{"$f":"Calculate","v":""},"",{"$f":"Calculate","v":""},{"$f":"Calculate","v":""},0,{"$f":"SUMPRODUCT(N(WEEKDAY(ROW(INDIRECT(Firts_DateOfMonth&\":\"&EOMONTH(Firts_DateOfMonth,0))),2)={1,2,3,4,5,6,7})*($D159:$J159=1))","v":0},0,0,0,""]
[155,null,null,null,null,null,null,null,null,null,0,"",{"$f":"Calculate","v":""},{"$f":"Calculate","v":""},{"$f":"Calculate","v":""},{"$f":"Calculate","v":""},{"$f":"Calculate","v":""},{"$f":"Calculate","v":""},{"$f":"Calculate","v":""},"",{"$f":"Calculate","v":""},{"$f":"Calculate","v":""},{"$f":"Calculate","v":""},{"$f":"Calculate","v":""},{"$f":"Calculate","v":""},{"$f":"Calculate","v":""},{"$f":"Calculate","v":""},"",{"$f":"Calculate","v":""},{"$f":"Calculate","v":""},{"$f":"Calculate","v":""},{"$f":"Calculate","v":""},{"$f":"Calculate","v":""},{"$f":"Calculate","v":""},{"$f":"Calculate","v":""},"",{"$f":"Calculate","v":""},{"$f":"Calculate","v":""},{"$f":"Calculate","v":""},{"$f":"Calculate","v":""},{"$f":"Calculate","v":""},{"$f":"Calculate","v":""},{"$f":"Calculate","v":""},"",{"$f":"Calculate","v":""},{"$f":"Calculate","v":""},{"$f":"Calculate","v":""},{"$f":"Calculate","v":""},{"$f":"Calculate","v":""},{"$f":"Calculate","v":""},{"$f":"Calculate","v":""},"",{"$f":"Calculate","v":""},{"$f":"Calculate","v":""},0,{"$f":"SUMPRODUCT(N(WEEKDAY(ROW(INDIRECT(Firts_DateOfMonth&\":\"&EOMONTH(Firts_DateOfMonth,0))),2)={1,2,3,4,5,6,7})*($D160:$J160=1))","v":0},0,0,0,""]
[156,null,null,null,null,null,null,null,null,null,0,"",{"$f":"Calculate","v":""},{"$f":"Calculate","v":""},{"$f":"Calculate","v":""},{"$f":"Calculate","v":""},{"$f":"Calculate","v":""},{"$f":"Calculate","v":""},{"$f":"Calculate","v":""},"",{"$f":"Calculate","v":""},{"$f":"Calculate","v":""},{"$f":"Calculate","v":""},{"$f":"Calculate","v":""},{"$f":"Calculate","v":""},{"$f":"Calculate","v":""},{"$f":"Calculate","v":""},"",{"$f":"Calculate","v":""},{"$f":"Calculate","v":""},{"$f":"Calculate","v":""},{"$f":"Calculate","v":""},{"$f":"Calculate","v":""},{"$f":"Calculate","v":""},{"$f":"Calculate","v":""},"",{"$f":"Calculate","v":""},{"$f":"Calculate","v":""},{"$f":"Calculate","v":""},{"$f":"Calculate","v":""},{"$f":"Calculate","v":""},{"$f":"Calculate","v":""},{"$f":"Calculate","v":""},"",{"$f":"Calculate","v":""},{"$f":"Calculate","v":""},{"$f":"Calculate","v":""},{"$f":"Calculate","v":""},{"$f":"Calculate","v":""},{"$f":"Calculate","v":""},{"$f":"Calculate","v":""},"",{"$f":"Calculate","v":""},{"$f":"Calculate","v":""},0,{"$f":"SUMPRODUCT(N(WEEKDAY(ROW(INDIRECT(Firts_DateOfMonth&\":\"&EOMONTH(Firts_DateOfMonth,0))),2)={1,2,3,4,5,6,7})*($D161:$J161=1))","v":0},0,0,0,""]
[157,null,null,null,null,null,null,null,null,null,0,"",{"$f":"Calculate","v":""},{"$f":"Calculate","v":""},{"$f":"Calculate","v":""},{"$f":"Calculate","v":""},{"$f":"Calculate","v":""},{"$f":"Calculate","v":""},{"$f":"Calculate","v":""},"",{"$f":"Calculate","v":""},{"$f":"Calculate","v":""},{"$f":"Calculate","v":""},{"$f":"Calculate","v":""},{"$f":"Calculate","v":""},{"$f":"Calculate","v":""},{"$f":"Calculate","v":""},"",{"$f":"Calculate","v":""},{"$f":"Calculate","v":""},{"$f":"Calculate","v":""},{"$f":"Calculate","v":""},{"$f":"Calculate","v":""},{"$f":"Calculate","v":""},{"$f":"Calculate","v":""},"",{"$f":"Calculate","v":""},{"$f":"Calculate","v":""},{"$f":"Calculate","v":""},{"$f":"Calculate","v":""},{"$f":"Calculate","v":""},{"$f":"Calculate","v":""},{"$f":"Calculate","v":""},"",{"$f":"Calculate","v":""},{"$f":"Calculate","v":""},{"$f":"Calculate","v":""},{"$f":"Calculate","v":""},{"$f":"Calculate","v":""},{"$f":"Calculate","v":""},{"$f":"Calculate","v":""},"",{"$f":"Calculate","v":""},{"$f":"Calculate","v":""},0,{"$f":"SUMPRODUCT(N(WEEKDAY(ROW(INDIRECT(Firts_DateOfMonth&\":\"&EOMONTH(Firts_DateOfMonth,0))),2)={1,2,3,4,5,6,7})*($D162:$J162=1))","v":0},0,0,0,""]
[158,null,null,null,null,null,null,null,null,null,0,"",{"$f":"Calculate","v":""},{"$f":"Calculate","v":""},{"$f":"Calculate","v":""},{"$f":"Calculate","v":""},{"$f":"Calculate","v":""},{"$f":"Calculate","v":""},{"$f":"Calculate","v":""},"",{"$f":"Calculate","v":""},{"$f":"Calculate","v":""},{"$f":"Calculate","v":""},{"$f":"Calculate","v":""},{"$f":"Calculate","v":""},{"$f":"Calculate","v":""},{"$f":"Calculate","v":""},"",{"$f":"Calculate","v":""},{"$f":"Calculate","v":""},{"$f":"Calculate","v":""},{"$f":"Calculate","v":""},{"$f":"Calculate","v":""},{"$f":"Calculate","v":""},{"$f":"Calculate","v":""},"",{"$f":"Calculate","v":""},{"$f":"Calculate","v":""},{"$f":"Calculate","v":""},{"$f":"Calculate","v":""},{"$f":"Calculate","v":""},{"$f":"Calculate","v":""},{"$f":"Calculate","v":""},"",{"$f":"Calculate","v":""},{"$f":"Calculate","v":""},{"$f":"Calculate","v":""},{"$f":"Calculate","v":""},{"$f":"Calculate","v":""},{"$f":"Calculate","v":""},{"$f":"Calculate","v":""},"",{"$f":"Calculate","v":""},{"$f":"Calculate","v":""},0,{"$f":"SUMPRODUCT(N(WEEKDAY(ROW(INDIRECT(Firts_DateOfMonth&\":\"&EOMONTH(Firts_DateOfMonth,0))),2)={1,2,3,4,5,6,7})*($D163:$J163=1))","v":0},0,0,0,""]
[159,null,null,null,null,null,null,null,null,null,0,"",{"$f":"Calculate","v":""},{"$f":"Calculate","v":""},{"$f":"Calculate","v":""},{"$f":"Calculate","v":""},{"$f":"Calculate","v":""},{"$f":"Calculate","v":""},{"$f":"Calculate","v":""},"",{"$f":"Calculate","v":""},{"$f":"Calculate","v":""},{"$f":"Calculate","v":""},{"$f":"Calculate","v":""},{"$f":"Calculate","v":""},{"$f":"Calculate","v":""},{"$f":"Calculate","v":""},"",{"$f":"Calculate","v":""},{"$f":"Calculate","v":""},{"$f":"Calculate","v":""},{"$f":"Calculate","v":""},{"$f":"Calculate","v":""},{"$f":"Calculate","v":""},{"$f":"Calculate","v":""},"",{"$f":"Calculate","v":""},{"$f":"Calculate","v":""},{"$f":"Calculate","v":""},{"$f":"Calculate","v":""},{"$f":"Calculate","v":""},{"$f":"Calculate","v":""},{"$f":"Calculate","v":""},"",{"$f":"Calculate","v":""},{"$f":"Calculate","v":""},{"$f":"Calculate","v":""},{"$f":"Calculate","v":""},{"$f":"Calculate","v":""},{"$f":"Calculate","v":""},{"$f":"Calculate","v":""},"",{"$f":"Calculate","v":""},{"$f":"Calculate","v":""},0,{"$f":"SUMPRODUCT(N(WEEKDAY(ROW(INDIRECT(Firts_DateOfMonth&\":\"&EOMONTH(Firts_DateOfMonth,0))),2)={1,2,3,4,5,6,7})*($D164:$J164=1))","v":0},0,0,0,""]
[160,null,null,null,null,null,null,null,null,null,0,"",{"$f":"Calculate","v":""},{"$f":"Calculate","v":""},{"$f":"Calculate","v":""},{"$f":"Calculate","v":""},{"$f":"Calculate","v":""},{"$f":"Calculate","v":""},{"$f":"Calculate","v":""},"",{"$f":"Calculate","v":""},{"$f":"Calculate","v":""},{"$f":"Calculate","v":""},{"$f":"Calculate","v":""},{"$f":"Calculate","v":""},{"$f":"Calculate","v":""},{"$f":"Calculate","v":""},"",{"$f":"Calculate","v":""},{"$f":"Calculate","v":""},{"$f":"Calculate","v":""},{"$f":"Calculate","v":""},{"$f":"Calculate","v":""},{"$f":"Calculate","v":""},{"$f":"Calculate","v":""},"",{"$f":"Calculate","v":""},{"$f":"Calculate","v":""},{"$f":"Calculate","v":""},{"$f":"Calculate","v":""},{"$f":"Calculate","v":""},{"$f":"Calculate","v":""},{"$f":"Calculate","v":""},"",{"$f":"Calculate","v":""},{"$f":"Calculate","v":""},{"$f":"Calculate","v":""},{"$f":"Calculate","v":""},{"$f":"Calculate","v":""},{"$f":"Calculate","v":""},{"$f":"Calculate","v":""},"",{"$f":"Calculate","v":""},{"$f":"Calculate","v":""},0,{"$f":"SUMPRODUCT(N(WEEKDAY(ROW(INDIRECT(Firts_DateOfMonth&\":\"&EOMONTH(Firts_DateOfMonth,0))),2)={1,2,3,4,5,6,7})*($D165:$J165=1))","v":0},0,0,0,""]
[161,null,null,null,null,null,null,null,null,null,0,"",{"$f":"Calculate","v":""},{"$f":"Calculate","v":""},{"$f":"Calculate","v":""},{"$f":"Calculate","v":""},{"$f":"Calculate","v":""},{"$f":"Calculate","v":""},{"$f":"Calculate","v":""},"",{"$f":"Calculate","v":""},{"$f":"Calculate","v":""},{"$f":"Calculate","v":""},{"$f":"Calculate","v":""},{"$f":"Calculate","v":""},{"$f":"Calculate","v":""},{"$f":"Calculate","v":""},"",{"$f":"Calculate","v":""},{"$f":"Calculate","v":""},{"$f":"Calculate","v":""},{"$f":"Calculate","v":""},{"$f":"Calculate","v":""},{"$f":"Calculate","v":""},{"$f":"Calculate","v":""},"",{"$f":"Calculate","v":""},{"$f":"Calculate","v":""},{"$f":"Calculate","v":""},{"$f":"Calculate","v":""},{"$f":"Calculate","v":""},{"$f":"Calculate","v":""},{"$f":"Calculate","v":""},"",{"$f":"Calculate","v":""},{"$f":"Calculate","v":""},{"$f":"Calculate","v":""},{"$f":"Calculate","v":""},{"$f":"Calculate","v":""},{"$f":"Calculate","v":""},{"$f":"Calculate","v":""},"",{"$f":"Calculate","v":""},{"$f":"Calculate","v":""},0,{"$f":"SUMPRODUCT(N(WEEKDAY(ROW(INDIRECT(Firts_DateOfMonth&\":\"&EOMONTH(Firts_DateOfMonth,0))),2)={1,2,3,4,5,6,7})*($D166:$J166=1))","v":0},0,0,0,""]
[162,null,null,null,null,null,null,null,null,null,0,"",{"$f":"Calculate","v":""},{"$f":"Calculate","v":""},{"$f":"Calculate","v":""},{"$f":"Calculate","v":""},{"$f":"Calculate","v":""},{"$f":"Calculate","v":""},{"$f":"Calculate","v":""},"",{"$f":"Calculate","v":""},{"$f":"Calculate","v":""},{"$f":"Calculate","v":""},{"$f":"Calculate","v":""},{"$f":"Calculate","v":""},{"$f":"Calculate","v":""},{"$f":"Calculate","v":""},"",{"$f":"Calculate","v":""},{"$f":"Calculate","v":""},{"$f":"Calculate","v":""},{"$f":"Calculate","v":""},{"$f":"Calculate","v":""},{"$f":"Calculate","v":""},{"$f":"Calculate","v":""},"",{"$f":"Calculate","v":""},{"$f":"Calculate","v":""},{"$f":"Calculate","v":""},{"$f":"Calculate","v":""},{"$f":"Calculate","v":""},{"$f":"Calculate","v":""},{"$f":"Calculate","v":""},"",{"$f":"Calculate","v":""},{"$f":"Calculate","v":""},{"$f":"Calculate","v":""},{"$f":"Calculate","v":""},{"$f":"Calculate","v":""},{"$f":"Calculate","v":""},{"$f":"Calculate","v":""},"",{"$f":"Calculate","v":""},{"$f":"Calculate","v":""},0,{"$f":"SUMPRODUCT(N(WEEKDAY(ROW(INDIRECT(Firts_DateOfMonth&\":\"&EOMONTH(Firts_DateOfMonth,0))),2)={1,2,3,4,5,6,7})*($D167:$J167=1))","v":0},0,0,0,""]
[163,null,null,null,null,null,null,null,null,null,0,"",{"$f":"Calculate","v":""},{"$f":"Calculate","v":""},{"$f":"Calculate","v":""},{"$f":"Calculate","v":""},{"$f":"Calculate","v":""},{"$f":"Calculate","v":""},{"$f":"Calculate","v":""},"",{"$f":"Calculate","v":""},{"$f":"Calculate","v":""},{"$f":"Calculate","v":""},{"$f":"Calculate","v":""},{"$f":"Calculate","v":""},{"$f":"Calculate","v":""},{"$f":"Calculate","v":""},"",{"$f":"Calculate","v":""},{"$f":"Calculate","v":""},{"$f":"Calculate","v":""},{"$f":"Calculate","v":""},{"$f":"Calculate","v":""},{"$f":"Calculate","v":""},{"$f":"Calculate","v":""},"",{"$f":"Calculate","v":""},{"$f":"Calculate","v":""},{"$f":"Calculate","v":""},{"$f":"Calculate","v":""},{"$f":"Calculate","v":""},{"$f":"Calculate","v":""},{"$f":"Calculate","v":""},"",{"$f":"Calculate","v":""},{"$f":"Calculate","v":""},{"$f":"Calculate","v":""},{"$f":"Calculate","v":""},{"$f":"Calculate","v":""},{"$f":"Calculate","v":""},{"$f":"Calculate","v":""},"",{"$f":"Calculate","v":""},{"$f":"Calculate","v":""},0,{"$f":"SUMPRODUCT(N(WEEKDAY(ROW(INDIRECT(Firts_DateOfMonth&\":\"&EOMONTH(Firts_DateOfMonth,0))),2)={1,2,3,4,5,6,7})*($D168:$J168=1))","v":0},0,0,0,""]
[164,null,null,null,null,null,null,null,null,null,0,"",{"$f":"Calculate","v":""},{"$f":"Calculate","v":""},{"$f":"Calculate","v":""},{"$f":"Calculate","v":""},{"$f":"Calculate","v":""},{"$f":"Calculate","v":""},{"$f":"Calculate","v":""},"",{"$f":"Calculate","v":""},{"$f":"Calculate","v":""},{"$f":"Calculate","v":""},{"$f":"Calculate","v":""},{"$f":"Calculate","v":""},{"$f":"Calculate","v":""},{"$f":"Calculate","v":""},"",{"$f":"Calculate","v":""},{"$f":"Calculate","v":""},{"$f":"Calculate","v":""},{"$f":"Calculate","v":""},{"$f":"Calculate","v":""},{"$f":"Calculate","v":""},{"$f":"Calculate","v":""},"",{"$f":"Calculate","v":""},{"$f":"Calculate","v":""},{"$f":"Calculate","v":""},{"$f":"Calculate","v":""},{"$f":"Calculate","v":""},{"$f":"Calculate","v":""},{"$f":"Calculate","v":""},"",{"$f":"Calculate","v":""},{"$f":"Calculate","v":""},{"$f":"Calculate","v":""},{"$f":"Calculate","v":""},{"$f":"Calculate","v":""},{"$f":"Calculate","v":""},{"$f":"Calculate","v":""},"",{"$f":"Calculate","v":""},{"$f":"Calculate","v":""},0,{"$f":"SUMPRODUCT(N(WEEKDAY(ROW(INDIRECT(Firts_DateOfMonth&\":\"&EOMONTH(Firts_DateOfMonth,0))),2)={1,2,3,4,5,6,7})*($D169:$J169=1))","v":0},0,0,0,""]
[165,null,null,null,null,null,null,null,null,null,0,"",{"$f":"Calculate","v":""},{"$f":"Calculate","v":""},{"$f":"Calculate","v":""},{"$f":"Calculate","v":""},{"$f":"Calculate","v":""},{"$f":"Calculate","v":""},{"$f":"Calculate","v":""},"",{"$f":"Calculate","v":""},{"$f":"Calculate","v":""},{"$f":"Calculate","v":""},{"$f":"Calculate","v":""},{"$f":"Calculate","v":""},{"$f":"Calculate","v":""},{"$f":"Calculate","v":""},"",{"$f":"Calculate","v":""},{"$f":"Calculate","v":""},{"$f":"Calculate","v":""},{"$f":"Calculate","v":""},{"$f":"Calculate","v":""},{"$f":"Calculate","v":""},{"$f":"Calculate","v":""},"",{"$f":"Calculate","v":""},{"$f":"Calculate","v":""},{"$f":"Calculate","v":""},{"$f":"Calculate","v":""},{"$f":"Calculate","v":""},{"$f":"Calculate","v":""},{"$f":"Calculate","v":""},"",{"$f":"Calculate","v":""},{"$f":"Calculate","v":""},{"$f":"Calculate","v":""},{"$f":"Calculate","v":""},{"$f":"Calculate","v":""},{"$f":"Calculate","v":""},{"$f":"Calculate","v":""},"",{"$f":"Calculate","v":""},{"$f":"Calculate","v":""},0,{"$f":"SUMPRODUCT(N(WEEKDAY(ROW(INDIRECT(Firts_DateOfMonth&\":\"&EOMONTH(Firts_DateOfMonth,0))),2)={1,2,3,4,5,6,7})*($D170:$J170=1))","v":0},0,0,0,""]
[166,null,null,null,null,null,null,null,null,null,0,"",{"$f":"Calculate","v":""},{"$f":"Calculate","v":""},{"$f":"Calculate","v":""},{"$f":"Calculate","v":""},{"$f":"Calculate","v":""},{"$f":"Calculate","v":""},{"$f":"Calculate","v":""},"",{"$f":"Calculate","v":""},{"$f":"Calculate","v":""},{"$f":"Calculate","v":""},{"$f":"Calculate","v":""},{"$f":"Calculate","v":""},{"$f":"Calculate","v":""},{"$f":"Calculate","v":""},"",{"$f":"Calculate","v":""},{"$f":"Calculate","v":""},{"$f":"Calculate","v":""},{"$f":"Calculate","v":""},{"$f":"Calculate","v":""},{"$f":"Calculate","v":""},{"$f":"Calculate","v":""},"",{"$f":"Calculate","v":""},{"$f":"Calculate","v":""},{"$f":"Calculate","v":""},{"$f":"Calculate","v":""},{"$f":"Calculate","v":""},{"$f":"Calculate","v":""},{"$f":"Calculate","v":""},"",{"$f":"Calculate","v":""},{"$f":"Calculate","v":""},{"$f":"Calculate","v":""},{"$f":"Calculate","v":""},{"$f":"Calculate","v":""},{"$f":"Calculate","v":""},{"$f":"Calculate","v":""},"",{"$f":"Calculate","v":""},{"$f":"Calculate","v":""},0,{"$f":"SUMPRODUCT(N(WEEKDAY(ROW(INDIRECT(Firts_DateOfMonth&\":\"&EOMONTH(Firts_DateOfMonth,0))),2)={1,2,3,4,5,6,7})*($D171:$J171=1))","v":0},0,0,0,""]
[167,null,null,null,null,null,null,null,null,null,0,"",{"$f":"Calculate","v":""},{"$f":"Calculate","v":""},{"$f":"Calculate","v":""},{"$f":"Calculate","v":""},{"$f":"Calculate","v":""},{"$f":"Calculate","v":""},{"$f":"Calculate","v":""},"",{"$f":"Calculate","v":""},{"$f":"Calculate","v":""},{"$f":"Calculate","v":""},{"$f":"Calculate","v":""},{"$f":"Calculate","v":""},{"$f":"Calculate","v":""},{"$f":"Calculate","v":""},"",{"$f":"Calculate","v":""},{"$f":"Calculate","v":""},{"$f":"Calculate","v":""},{"$f":"Calculate","v":""},{"$f":"Calculate","v":""},{"$f":"Calculate","v":""},{"$f":"Calculate","v":""},"",{"$f":"Calculate","v":""},{"$f":"Calculate","v":""},{"$f":"Calculate","v":""},{"$f":"Calculate","v":""},{"$f":"Calculate","v":""},{"$f":"Calculate","v":""},{"$f":"Calculate","v":""},"",{"$f":"Calculate","v":""},{"$f":"Calculate","v":""},{"$f":"Calculate","v":""},{"$f":"Calculate","v":""},{"$f":"Calculate","v":""},{"$f":"Calculate","v":""},{"$f":"Calculate","v":""},"",{"$f":"Calculate","v":""},{"$f":"Calculate","v":""},0,{"$f":"SUMPRODUCT(N(WEEKDAY(ROW(INDIRECT(Firts_DateOfMonth&\":\"&EOMONTH(Firts_DateOfMonth,0))),2)={1,2,3,4,5,6,7})*($D172:$J172=1))","v":0},0,0,0,""]
[168,null,null,null,null,null,null,null,null,null,0,"",{"$f":"Calculate","v":""},{"$f":"Calculate","v":""},{"$f":"Calculate","v":""},{"$f":"Calculate","v":""},{"$f":"Calculate","v":""},{"$f":"Calculate","v":""},{"$f":"Calculate","v":""},"",{"$f":"Calculate","v":""},{"$f":"Calculate","v":""},{"$f":"Calculate","v":""},{"$f":"Calculate","v":""},{"$f":"Calculate","v":""},{"$f":"Calculate","v":""},{"$f":"Calculate","v":""},"",{"$f":"Calculate","v":""},{"$f":"Calculate","v":""},{"$f":"Calculate","v":""},{"$f":"Calculate","v":""},{"$f":"Calculate","v":""},{"$f":"Calculate","v":""},{"$f":"Calculate","v":""},"",{"$f":"Calculate","v":""},{"$f":"Calculate","v":""},{"$f":"Calculate","v":""},{"$f":"Calculate","v":""},{"$f":"Calculate","v":""},{"$f":"Calculate","v":""},{"$f":"Calculate","v":""},"",{"$f":"Calculate","v":""},{"$f":"Calculate","v":""},{"$f":"Calculate","v":""},{"$f":"Calculate","v":""},{"$f":"Calculate","v":""},{"$f":"Calculate","v":""},{"$f":"Calculate","v":""},"",{"$f":"Calculate","v":""},{"$f":"Calculate","v":""},0,{"$f":"SUMPRODUCT(N(WEEKDAY(ROW(INDIRECT(Firts_DateOfMonth&\":\"&EOMONTH(Firts_DateOfMonth,0))),2)={1,2,3,4,5,6,7})*($D173:$J173=1))","v":0},0,0,0,""]
[169,null,null,null,null,null,null,null,null,null,0,"",{"$f":"Calculate","v":""},{"$f":"Calculate","v":""},{"$f":"Calculate","v":""},{"$f":"Calculate","v":""},{"$f":"Calculate","v":""},{"$f":"Calculate","v":""},{"$f":"Calculate","v":""},"",{"$f":"Calculate","v":""},{"$f":"Calculate","v":""},{"$f":"Calculate","v":""},{"$f":"Calculate","v":""},{"$f":"Calculate","v":""},{"$f":"Calculate","v":""},{"$f":"Calculate","v":""},"",{"$f":"Calculate","v":""},{"$f":"Calculate","v":""},{"$f":"Calculate","v":""},{"$f":"Calculate","v":""},{"$f":"Calculate","v":""},{"$f":"Calculate","v":""},{"$f":"Calculate","v":""},"",{"$f":"Calculate","v":""},{"$f":"Calculate","v":""},{"$f":"Calculate","v":""},{"$f":"Calculate","v":""},{"$f":"Calculate","v":""},{"$f":"Calculate","v":""},{"$f":"Calculate","v":""},"",{"$f":"Calculate","v":""},{"$f":"Calculate","v":""},{"$f":"Calculate","v":""},{"$f":"Calculate","v":""},{"$f":"Calculate","v":""},{"$f":"Calculate","v":""},{"$f":"Calculate","v":""},"",{"$f":"Calculate","v":""},{"$f":"Calculate","v":""},0,{"$f":"SUMPRODUCT(N(WEEKDAY(ROW(INDIRECT(Firts_DateOfMonth&\":\"&EOMONTH(Firts_DateOfMonth,0))),2)={1,2,3,4,5,6,7})*($D174:$J174=1))","v":0},0,0,0,""]
[170,null,null,null,null,null,null,null,null,null,0,"",{"$f":"Calculate","v":""},{"$f":"Calculate","v":""},{"$f":"Calculate","v":""},{"$f":"Calculate","v":""},{"$f":"Calculate","v":""},{"$f":"Calculate","v":""},{"$f":"Calculate","v":""},"",{"$f":"Calculate","v":""},{"$f":"Calculate","v":""},{"$f":"Calculate","v":""},{"$f":"Calculate","v":""},{"$f":"Calculate","v":""},{"$f":"Calculate","v":""},{"$f":"Calculate","v":""},"",{"$f":"Calculate","v":""},{"$f":"Calculate","v":""},{"$f":"Calculate","v":""},{"$f":"Calculate","v":""},{"$f":"Calculate","v":""},{"$f":"Calculate","v":""},{"$f":"Calculate","v":""},"",{"$f":"Calculate","v":""},{"$f":"Calculate","v":""},{"$f":"Calculate","v":""},{"$f":"Calculate","v":""},{"$f":"Calculate","v":""},{"$f":"Calculate","v":""},{"$f":"Calculate","v":""},"",{"$f":"Calculate","v":""},{"$f":"Calculate","v":""},{"$f":"Calculate","v":""},{"$f":"Calculate","v":""},{"$f":"Calculate","v":""},{"$f":"Calculate","v":""},{"$f":"Calculate","v":""},"",{"$f":"Calculate","v":""},{"$f":"Calculate","v":""},0,{"$f":"SUMPRODUCT(N(WEEKDAY(ROW(INDIRECT(Firts_DateOfMonth&\":\"&EOMONTH(Firts_DateOfMonth,0))),2)={1,2,3,4,5,6,7})*($D175:$J175=1))","v":0},0,0,0,""]
[171,null,null,null,null,null,null,null,null,null,0,"",{"$f":"Calculate","v":""},{"$f":"Calculate","v":""},{"$f":"Calculate","v":""},{"$f":"Calculate","v":""},{"$f":"Calculate","v":""},{"$f":"Calculate","v":""},{"$f":"Calculate","v":""},"",{"$f":"Calculate","v":""},{"$f":"Calculate","v":""},{"$f":"Calculate","v":""},{"$f":"Calculate","v":""},{"$f":"Calculate","v":""},{"$f":"Calculate","v":""},{"$f":"Calculate","v":""},"",{"$f":"Calculate","v":""},{"$f":"Calculate","v":""},{"$f":"Calculate","v":""},{"$f":"Calculate","v":""},{"$f":"Calculate","v":""},{"$f":"Calculate","v":""},{"$f":"Calculate","v":""},"",{"$f":"Calculate","v":""},{"$f":"Calculate","v":""},{"$f":"Calculate","v":""},{"$f":"Calculate","v":""},{"$f":"Calculate","v":""},{"$f":"Calculate","v":""},{"$f":"Calculate","v":""},"",{"$f":"Calculate","v":""},{"$f":"Calculate","v":""},{"$f":"Calculate","v":""},{"$f":"Calculate","v":""},{"$f":"Calculate","v":""},{"$f":"Calculate","v":""},{"$f":"Calculate","v":""},"",{"$f":"Calculate","v":""},{"$f":"Calculate","v":""},0,{"$f":"SUMPRODUCT(N(WEEKDAY(ROW(INDIRECT(Firts_DateOfMonth&\":\"&EOMONTH(Firts_DateOfMonth,0))),2)={1,2,3,4,5,6,7})*($D176:$J176=1))","v":0},0,0,0,""]
[172,null,null,null,null,null,null,null,null,null,0,"",{"$f":"Calculate","v":""},{"$f":"Calculate","v":""},{"$f":"Calculate","v":""},{"$f":"Calculate","v":""},{"$f":"Calculate","v":""},{"$f":"Calculate","v":""},{"$f":"Calculate","v":""},"",{"$f":"Calculate","v":""},{"$f":"Calculate","v":""},{"$f":"Calculate","v":""},{"$f":"Calculate","v":""},{"$f":"Calculate","v":""},{"$f":"Calculate","v":""},{"$f":"Calculate","v":""},"",{"$f":"Calculate","v":""},{"$f":"Calculate","v":""},{"$f":"Calculate","v":""},{"$f":"Calculate","v":""},{"$f":"Calculate","v":""},{"$f":"Calculate","v":""},{"$f":"Calculate","v":""},"",{"$f":"Calculate","v":""},{"$f":"Calculate","v":""},{"$f":"Calculate","v":""},{"$f":"Calculate","v":""},{"$f":"Calculate","v":""},{"$f":"Calculate","v":""},{"$f":"Calculate","v":""},"",{"$f":"Calculate","v":""},{"$f":"Calculate","v":""},{"$f":"Calculate","v":""},{"$f":"Calculate","v":""},{"$f":"Calculate","v":""},{"$f":"Calculate","v":""},{"$f":"Calculate","v":""},"",{"$f":"Calculate","v":""},{"$f":"Calculate","v":""},0,{"$f":"SUMPRODUCT(N(WEEKDAY(ROW(INDIRECT(Firts_DateOfMonth&\":\"&EOMONTH(Firts_DateOfMonth,0))),2)={1,2,3,4,5,6,7})*($D177:$J177=1))","v":0},0,0,0,""]
[173,null,null,null,null,null,null,null,null,null,0,"",{"$f":"Calculate","v":""},{"$f":"Calculate","v":""},{"$f":"Calculate","v":""},{"$f":"Calculate","v":""},{"$f":"Calculate","v":""},{"$f":"Calculate","v":""},{"$f":"Calculate","v":""},"",{"$f":"Calculate","v":""},{"$f":"Calculate","v":""},{"$f":"Calculate","v":""},{"$f":"Calculate","v":""},{"$f":"Calculate","v":""},{"$f":"Calculate","v":""},{"$f":"Calculate","v":""},"",{"$f":"Calculate","v":""},{"$f":"Calculate","v":""},{"$f":"Calculate","v":""},{"$f":"Calculate","v":""},{"$f":"Calculate","v":""},{"$f":"Calculate","v":""},{"$f":"Calculate","v":""},"",{"$f":"Calculate","v":""},{"$f":"Calculate","v":""},{"$f":"Calculate","v":""},{"$f":"Calculate","v":""},{"$f":"Calculate","v":""},{"$f":"Calculate","v":""},{"$f":"Calculate","v":""},"",{"$f":"Calculate","v":""},{"$f":"Calculate","v":""},{"$f":"Calculate","v":""},{"$f":"Calculate","v":""},{"$f":"Calculate","v":""},{"$f":"Calculate","v":""},{"$f":"Calculate","v":""},"",{"$f":"Calculate","v":""},{"$f":"Calculate","v":""},0,{"$f":"SUMPRODUCT(N(WEEKDAY(ROW(INDIRECT(Firts_DateOfMonth&\":\"&EOMONTH(Firts_DateOfMonth,0))),2)={1,2,3,4,5,6,7})*($D178:$J178=1))","v":0},0,0,0,""]
[174,null,null,null,null,null,null,null,null,null,0,"",{"$f":"Calculate","v":""},{"$f":"Calculate","v":""},{"$f":"Calculate","v":""},{"$f":"Calculate","v":""},{"$f":"Calculate","v":""},{"$f":"Calculate","v":""},{"$f":"Calculate","v":""},"",{"$f":"Calculate","v":""},{"$f":"Calculate","v":""},{"$f":"Calculate","v":""},{"$f":"Calculate","v":""},{"$f":"Calculate","v":""},{"$f":"Calculate","v":""},{"$f":"Calculate","v":""},"",{"$f":"Calculate","v":""},{"$f":"Calculate","v":""},{"$f":"Calculate","v":""},{"$f":"Calculate","v":""},{"$f":"Calculate","v":""},{"$f":"Calculate","v":""},{"$f":"Calculate","v":""},"",{"$f":"Calculate","v":""},{"$f":"Calculate","v":""},{"$f":"Calculate","v":""},{"$f":"Calculate","v":""},{"$f":"Calculate","v":""},{"$f":"Calculate","v":""},{"$f":"Calculate","v":""},"",{"$f":"Calculate","v":""},{"$f":"Calculate","v":""},{"$f":"Calculate","v":""},{"$f":"Calculate","v":""},{"$f":"Calculate","v":""},{"$f":"Calculate","v":""},{"$f":"Calculate","v":""},"",{"$f":"Calculate","v":""},{"$f":"Calculate","v":""},0,{"$f":"SUMPRODUCT(N(WEEKDAY(ROW(INDIRECT(Firts_DateOfMonth&\":\"&EOMONTH(Firts_DateOfMonth,0))),2)={1,2,3,4,5,6,7})*($D179:$J179=1))","v":0},0,0,0,""]
[175,null,null,null,null,null,null,null,null,null,0,"",{"$f":"Calculate","v":""},{"$f":"Calculate","v":""},{"$f":"Calculate","v":""},{"$f":"Calculate","v":""},{"$f":"Calculate","v":""},{"$f":"Calculate","v":""},{"$f":"Calculate","v":""},"",{"$f":"Calculate","v":""},{"$f":"Calculate","v":""},{"$f":"Calculate","v":""},{"$f":"Calculate","v":""},{"$f":"Calculate","v":""},{"$f":"Calculate","v":""},{"$f":"Calculate","v":""},"",{"$f":"Calculate","v":""},{"$f":"Calculate","v":""},{"$f":"Calculate","v":""},{"$f":"Calculate","v":""},{"$f":"Calculate","v":""},{"$f":"Calculate","v":""},{"$f":"Calculate","v":""},"",{"$f":"Calculate","v":""},{"$f":"Calculate","v":""},{"$f":"Calculate","v":""},{"$f":"Calculate","v":""},{"$f":"Calculate","v":""},{"$f":"Calculate","v":""},{"$f":"Calculate","v":""},"",{"$f":"Calculate","v":""},{"$f":"Calculate","v":""},{"$f":"Calculate","v":""},{"$f":"Calculate","v":""},{"$f":"Calculate","v":""},{"$f":"Calculate","v":""},{"$f":"Calculate","v":""},"",{"$f":"Calculate","v":""},{"$f":"Calculate","v":""},0,{"$f":"SUMPRODUCT(N(WEEKDAY(ROW(INDIRECT(Firts_DateOfMonth&\":\"&EOMONTH(Firts_DateOfMonth,0))),2)={1,2,3,4,5,6,7})*($D180:$J180=1))","v":0},0,0,0,""]
[176,null,null,null,null,null,null,null,null,null,0,"",{"$f":"Calculate","v":""},{"$f":"Calculate","v":""},{"$f":"Calculate","v":""},{"$f":"Calculate","v":""},{"$f":"Calculate","v":""},{"$f":"Calculate","v":""},{"$f":"Calculate","v":""},"",{"$f":"Calculate","v":""},{"$f":"Calculate","v":""},{"$f":"Calculate","v":""},{"$f":"Calculate","v":""},{"$f":"Calculate","v":""},{"$f":"Calculate","v":""},{"$f":"Calculate","v":""},"",{"$f":"Calculate","v":""},{"$f":"Calculate","v":""},{"$f":"Calculate","v":""},{"$f":"Calculate","v":""},{"$f":"Calculate","v":""},{"$f":"Calculate","v":""},{"$f":"Calculate","v":""},"",{"$f":"Calculate","v":""},{"$f":"Calculate","v":""},{"$f":"Calculate","v":""},{"$f":"Calculate","v":""},{"$f":"Calculate","v":""},{"$f":"Calculate","v":""},{"$f":"Calculate","v":""},"",{"$f":"Calculate","v":""},{"$f":"Calculate","v":""},{"$f":"Calculate","v":""},{"$f":"Calculate","v":""},{"$f":"Calculate","v":""},{"$f":"Calculate","v":""},{"$f":"Calculate","v":""},"",{"$f":"Calculate","v":""},{"$f":"Calculate","v":""},0,{"$f":"SUMPRODUCT(N(WEEKDAY(ROW(INDIRECT(Firts_DateOfMonth&\":\"&EOMONTH(Firts_DateOfMonth,0))),2)={1,2,3,4,5,6,7})*($D181:$J181=1))","v":0},0,0,0,""]
[177,null,null,null,null,null,null,null,null,null,0,"",{"$f":"Calculate","v":""},{"$f":"Calculate","v":""},{"$f":"Calculate","v":""},{"$f":"Calculate","v":""},{"$f":"Calculate","v":""},{"$f":"Calculate","v":""},{"$f":"Calculate","v":""},"",{"$f":"Calculate","v":""},{"$f":"Calculate","v":""},{"$f":"Calculate","v":""},{"$f":"Calculate","v":""},{"$f":"Calculate","v":""},{"$f":"Calculate","v":""},{"$f":"Calculate","v":""},"",{"$f":"Calculate","v":""},{"$f":"Calculate","v":""},{"$f":"Calculate","v":""},{"$f":"Calculate","v":""},{"$f":"Calculate","v":""},{"$f":"Calculate","v":""},{"$f":"Calculate","v":""},"",{"$f":"Calculate","v":""},{"$f":"Calculate","v":""},{"$f":"Calculate","v":""},{"$f":"Calculate","v":""},{"$f":"Calculate","v":""},{"$f":"Calculate","v":""},{"$f":"Calculate","v":""},"",{"$f":"Calculate","v":""},{"$f":"Calculate","v":""},{"$f":"Calculate","v":""},{"$f":"Calculate","v":""},{"$f":"Calculate","v":""},{"$f":"Calculate","v":""},{"$f":"Calculate","v":""},"",{"$f":"Calculate","v":""},{"$f":"Calculate","v":""},0,{"$f":"SUMPRODUCT(N(WEEKDAY(ROW(INDIRECT(Firts_DateOfMonth&\":\"&EOMONTH(Firts_DateOfMonth,0))),2)={1,2,3,4,5,6,7})*($D182:$J182=1))","v":0},0,0,0,""]
[178,null,null,null,null,null,null,null,null,null,0,"",{"$f":"Calculate","v":""},{"$f":"Calculate","v":""},{"$f":"Calculate","v":""},{"$f":"Calculate","v":""},{"$f":"Calculate","v":""},{"$f":"Calculate","v":""},{"$f":"Calculate","v":""},"",{"$f":"Calculate","v":""},{"$f":"Calculate","v":""},{"$f":"Calculate","v":""},{"$f":"Calculate","v":""},{"$f":"Calculate","v":""},{"$f":"Calculate","v":""},{"$f":"Calculate","v":""},"",{"$f":"Calculate","v":""},{"$f":"Calculate","v":""},{"$f":"Calculate","v":""},{"$f":"Calculate","v":""},{"$f":"Calculate","v":""},{"$f":"Calculate","v":""},{"$f":"Calculate","v":""},"",{"$f":"Calculate","v":""},{"$f":"Calculate","v":""},{"$f":"Calculate","v":""},{"$f":"Calculate","v":""},{"$f":"Calculate","v":""},{"$f":"Calculate","v":""},{"$f":"Calculate","v":""},"",{"$f":"Calculate","v":""},{"$f":"Calculate","v":""},{"$f":"Calculate","v":""},{"$f":"Calculate","v":""},{"$f":"Calculate","v":""},{"$f":"Calculate","v":""},{"$f":"Calculate","v":""},"",{"$f":"Calculate","v":""},{"$f":"Calculate","v":""},0,{"$f":"SUMPRODUCT(N(WEEKDAY(ROW(INDIRECT(Firts_DateOfMonth&\":\"&EOMONTH(Firts_DateOfMonth,0))),2)={1,2,3,4,5,6,7})*($D183:$J183=1))","v":0},0,0,0,""]
[179,null,null,null,null,null,null,null,null,null,0,"",{"$f":"Calculate","v":""},{"$f":"Calculate","v":""},{"$f":"Calculate","v":""},{"$f":"Calculate","v":""},{"$f":"Calculate","v":""},{"$f":"Calculate","v":""},{"$f":"Calculate","v":""},"",{"$f":"Calculate","v":""},{"$f":"Calculate","v":""},{"$f":"Calculate","v":""},{"$f":"Calculate","v":""},{"$f":"Calculate","v":""},{"$f":"Calculate","v":""},{"$f":"Calculate","v":""},"",{"$f":"Calculate","v":""},{"$f":"Calculate","v":""},{"$f":"Calculate","v":""},{"$f":"Calculate","v":""},{"$f":"Calculate","v":""},{"$f":"Calculate","v":""},{"$f":"Calculate","v":""},"",{"$f":"Calculate","v":""},{"$f":"Calculate","v":""},{"$f":"Calculate","v":""},{"$f":"Calculate","v":""},{"$f":"Calculate","v":""},{"$f":"Calculate","v":""},{"$f":"Calculate","v":""},"",{"$f":"Calculate","v":""},{"$f":"Calculate","v":""},{"$f":"Calculate","v":""},{"$f":"Calculate","v":""},{"$f":"Calculate","v":""},{"$f":"Calculate","v":""},{"$f":"Calculate","v":""},"",{"$f":"Calculate","v":""},{"$f":"Calculate","v":""},0,{"$f":"SUMPRODUCT(N(WEEKDAY(ROW(INDIRECT(Firts_DateOfMonth&\":\"&EOMONTH(Firts_DateOfMonth,0))),2)={1,2,3,4,5,6,7})*($D184:$J184=1))","v":0},0,0,0,""]
[180,null,null,null,null,null,null,null,null,null,0,"",{"$f":"Calculate","v":""},{"$f":"Calculate","v":""},{"$f":"Calculate","v":""},{"$f":"Calculate","v":""},{"$f":"Calculate","v":""},{"$f":"Calculate","v":""},{"$f":"Calculate","v":""},"",{"$f":"Calculate","v":""},{"$f":"Calculate","v":""},{"$f":"Calculate","v":""},{"$f":"Calculate","v":""},{"$f":"Calculate","v":""},{"$f":"Calculate","v":""},{"$f":"Calculate","v":""},"",{"$f":"Calculate","v":""},{"$f":"Calculate","v":""},{"$f":"Calculate","v":""},{"$f":"Calculate","v":""},{"$f":"Calculate","v":""},{"$f":"Calculate","v":""},{"$f":"Calculate","v":""},"",{"$f":"Calculate","v":""},{"$f":"Calculate","v":""},{"$f":"Calculate","v":""},{"$f":"Calculate","v":""},{"$f":"Calculate","v":""},{"$f":"Calculate","v":""},{"$f":"Calculate","v":""},"",{"$f":"Calculate","v":""},{"$f":"Calculate","v":""},{"$f":"Calculate","v":""},{"$f":"Calculate","v":""},{"$f":"Calculate","v":""},{"$f":"Calculate","v":""},{"$f":"Calculate","v":""},"",{"$f":"Calculate","v":""},{"$f":"Calculate","v":""},0,{"$f":"SUMPRODUCT(N(WEEKDAY(ROW(INDIRECT(Firts_DateOfMonth&\":\"&EOMONTH(Firts_DateOfMonth,0))),2)={1,2,3,4,5,6,7})*($D185:$J185=1))","v":0},0,0,0,""]
[181,null,null,null,null,null,null,null,null,null,0,"",{"$f":"Calculate","v":""},{"$f":"Calculate","v":""},{"$f":"Calculate","v":""},{"$f":"Calculate","v":""},{"$f":"Calculate","v":""},{"$f":"Calculate","v":""},{"$f":"Calculate","v":""},"",{"$f":"Calculate","v":""},{"$f":"Calculate","v":""},{"$f":"Calculate","v":""},{"$f":"Calculate","v":""},{"$f":"Calculate","v":""},{"$f":"Calculate","v":""},{"$f":"Calculate","v":""},"",{"$f":"Calculate","v":""},{"$f":"Calculate","v":""},{"$f":"Calculate","v":""},{"$f":"Calculate","v":""},{"$f":"Calculate","v":""},{"$f":"Calculate","v":""},{"$f":"Calculate","v":""},"",{"$f":"Calculate","v":""},{"$f":"Calculate","v":""},{"$f":"Calculate","v":""},{"$f":"Calculate","v":""},{"$f":"Calculate","v":""},{"$f":"Calculate","v":""},{"$f":"Calculate","v":""},"",{"$f":"Calculate","v":""},{"$f":"Calculate","v":""},{"$f":"Calculate","v":""},{"$f":"Calculate","v":""},{"$f":"Calculate","v":""},{"$f":"Calculate","v":""},{"$f":"Calculate","v":""},"",{"$f":"Calculate","v":""},{"$f":"Calculate","v":""},0,{"$f":"SUMPRODUCT(N(WEEKDAY(ROW(INDIRECT(Firts_DateOfMonth&\":\"&EOMONTH(Firts_DateOfMonth,0))),2)={1,2,3,4,5,6,7})*($D186:$J186=1))","v":0},0,0,0,""]
[182,null,null,null,null,null,null,null,null,null,0,"",{"$f":"Calculate","v":""},{"$f":"Calculate","v":""},{"$f":"Calculate","v":""},{"$f":"Calculate","v":""},{"$f":"Calculate","v":""},{"$f":"Calculate","v":""},{"$f":"Calculate","v":""},"",{"$f":"Calculate","v":""},{"$f":"Calculate","v":""},{"$f":"Calculate","v":""},{"$f":"Calculate","v":""},{"$f":"Calculate","v":""},{"$f":"Calculate","v":""},{"$f":"Calculate","v":""},"",{"$f":"Calculate","v":""},{"$f":"Calculate","v":""},{"$f":"Calculate","v":""},{"$f":"Calculate","v":""},{"$f":"Calculate","v":""},{"$f":"Calculate","v":""},{"$f":"Calculate","v":""},"",{"$f":"Calculate","v":""},{"$f":"Calculate","v":""},{"$f":"Calculate","v":""},{"$f":"Calculate","v":""},{"$f":"Calculate","v":""},{"$f":"Calculate","v":""},{"$f":"Calculate","v":""},"",{"$f":"Calculate","v":""},{"$f":"Calculate","v":""},{"$f":"Calculate","v":""},{"$f":"Calculate","v":""},{"$f":"Calculate","v":""},{"$f":"Calculate","v":""},{"$f":"Calculate","v":""},"",{"$f":"Calculate","v":""},{"$f":"Calculate","v":""},0,{"$f":"SUMPRODUCT(N(WEEKDAY(ROW(INDIRECT(Firts_DateOfMonth&\":\"&EOMONTH(Firts_DateOfMonth,0))),2)={1,2,3,4,5,6,7})*($D187:$J187=1))","v":0},0,0,0,""]
[183,null,null,null,null,null,null,null,null,null,0,"",{"$f":"Calculate","v":""},{"$f":"Calculate","v":""},{"$f":"Calculate","v":""},{"$f":"Calculate","v":""},{"$f":"Calculate","v":""},{"$f":"Calculate","v":""},{"$f":"Calculate","v":""},"",{"$f":"Calculate","v":""},{"$f":"Calculate","v":""},{"$f":"Calculate","v":""},{"$f":"Calculate","v":""},{"$f":"Calculate","v":""},{"$f":"Calculate","v":""},{"$f":"Calculate","v":""},"",{"$f":"Calculate","v":""},{"$f":"Calculate","v":""},{"$f":"Calculate","v":""},{"$f":"Calculate","v":""},{"$f":"Calculate","v":""},{"$f":"Calculate","v":""},{"$f":"Calculate","v":""},"",{"$f":"Calculate","v":""},{"$f":"Calculate","v":""},{"$f":"Calculate","v":""},{"$f":"Calculate","v":""},{"$f":"Calculate","v":""},{"$f":"Calculate","v":""},{"$f":"Calculate","v":""},"",{"$f":"Calculate","v":""},{"$f":"Calculate","v":""},{"$f":"Calculate","v":""},{"$f":"Calculate","v":""},{"$f":"Calculate","v":""},{"$f":"Calculate","v":""},{"$f":"Calculate","v":""},"",{"$f":"Calculate","v":""},{"$f":"Calculate","v":""},0,{"$f":"SUMPRODUCT(N(WEEKDAY(ROW(INDIRECT(Firts_DateOfMonth&\":\"&EOMONTH(Firts_DateOfMonth,0))),2)={1,2,3,4,5,6,7})*($D188:$J188=1))","v":0},0,0,0,""]
[184,null,null,null,null,null,null,null,null,null,0,"",{"$f":"Calculate","v":""},{"$f":"Calculate","v":""},{"$f":"Calculate","v":""},{"$f":"Calculate","v":""},{"$f":"Calculate","v":""},{"$f":"Calculate","v":""},{"$f":"Calculate","v":""},"",{"$f":"Calculate","v":""},{"$f":"Calculate","v":""},{"$f":"Calculate","v":""},{"$f":"Calculate","v":""},{"$f":"Calculate","v":""},{"$f":"Calculate","v":""},{"$f":"Calculate","v":""},"",{"$f":"Calculate","v":""},{"$f":"Calculate","v":""},{"$f":"Calculate","v":""},{"$f":"Calculate","v":""},{"$f":"Calculate","v":""},{"$f":"Calculate","v":""},{"$f":"Calculate","v":""},"",{"$f":"Calculate","v":""},{"$f":"Calculate","v":""},{"$f":"Calculate","v":""},{"$f":"Calculate","v":""},{"$f":"Calculate","v":""},{"$f":"Calculate","v":""},{"$f":"Calculate","v":""},"",{"$f":"Calculate","v":""},{"$f":"Calculate","v":""},{"$f":"Calculate","v":""},{"$f":"Calculate","v":""},{"$f":"Calculate","v":""},{"$f":"Calculate","v":""},{"$f":"Calculate","v":""},"",{"$f":"Calculate","v":""},{"$f":"Calculate","v":""},0,{"$f":"SUMPRODUCT(N(WEEKDAY(ROW(INDIRECT(Firts_DateOfMonth&\":\"&EOMONTH(Firts_DateOfMonth,0))),2)={1,2,3,4,5,6,7})*($D189:$J189=1))","v":0},0,0,0,""]
[185,null,null,null,null,null,null,null,null,null,0,"",{"$f":"Calculate","v":""},{"$f":"Calculate","v":""},{"$f":"Calculate","v":""},{"$f":"Calculate","v":""},{"$f":"Calculate","v":""},{"$f":"Calculate","v":""},{"$f":"Calculate","v":""},"",{"$f":"Calculate","v":""},{"$f":"Calculate","v":""},{"$f":"Calculate","v":""},{"$f":"Calculate","v":""},{"$f":"Calculate","v":""},{"$f":"Calculate","v":""},{"$f":"Calculate","v":""},"",{"$f":"Calculate","v":""},{"$f":"Calculate","v":""},{"$f":"Calculate","v":""},{"$f":"Calculate","v":""},{"$f":"Calculate","v":""},{"$f":"Calculate","v":""},{"$f":"Calculate","v":""},"",{"$f":"Calculate","v":""},{"$f":"Calculate","v":""},{"$f":"Calculate","v":""},{"$f":"Calculate","v":""},{"$f":"Calculate","v":""},{"$f":"Calculate","v":""},{"$f":"Calculate","v":""},"",{"$f":"Calculate","v":""},{"$f":"Calculate","v":""},{"$f":"Calculate","v":""},{"$f":"Calculate","v":""},{"$f":"Calculate","v":""},{"$f":"Calculate","v":""},{"$f":"Calculate","v":""},"",{"$f":"Calculate","v":""},{"$f":"Calculate","v":""},0,{"$f":"SUMPRODUCT(N(WEEKDAY(ROW(INDIRECT(Firts_DateOfMonth&\":\"&EOMONTH(Firts_DateOfMonth,0))),2)={1,2,3,4,5,6,7})*($D190:$J190=1))","v":0},0,0,0,""]
[186,null,null,null,null,null,null,null,null,null,0,"",{"$f":"Calculate","v":""},{"$f":"Calculate","v":""},{"$f":"Calculate","v":""},{"$f":"Calculate","v":""},{"$f":"Calculate","v":""},{"$f":"Calculate","v":""},{"$f":"Calculate","v":""},"",{"$f":"Calculate","v":""},{"$f":"Calculate","v":""},{"$f":"Calculate","v":""},{"$f":"Calculate","v":""},{"$f":"Calculate","v":""},{"$f":"Calculate","v":""},{"$f":"Calculate","v":""},"",{"$f":"Calculate","v":""},{"$f":"Calculate","v":""},{"$f":"Calculate","v":""},{"$f":"Calculate","v":""},{"$f":"Calculate","v":""},{"$f":"Calculate","v":""},{"$f":"Calculate","v":""},"",{"$f":"Calculate","v":""},{"$f":"Calculate","v":""},{"$f":"Calculate","v":""},{"$f":"Calculate","v":""},{"$f":"Calculate","v":""},{"$f":"Calculate","v":""},{"$f":"Calculate","v":""},"",{"$f":"Calculate","v":""},{"$f":"Calculate","v":""},{"$f":"Calculate","v":""},{"$f":"Calculate","v":""},{"$f":"Calculate","v":""},{"$f":"Calculate","v":""},{"$f":"Calculate","v":""},"",{"$f":"Calculate","v":""},{"$f":"Calculate","v":""},0,{"$f":"SUMPRODUCT(N(WEEKDAY(ROW(INDIRECT(Firts_DateOfMonth&\":\"&EOMONTH(Firts_DateOfMonth,0))),2)={1,2,3,4,5,6,7})*($D191:$J191=1))","v":0},0,0,0,""]
[187,null,null,null,null,null,null,null,null,null,0,"",{"$f":"Calculate","v":""},{"$f":"Calculate","v":""},{"$f":"Calculate","v":""},{"$f":"Calculate","v":""},{"$f":"Calculate","v":""},{"$f":"Calculate","v":""},{"$f":"Calculate","v":""},"",{"$f":"Calculate","v":""},{"$f":"Calculate","v":""},{"$f":"Calculate","v":""},{"$f":"Calculate","v":""},{"$f":"Calculate","v":""},{"$f":"Calculate","v":""},{"$f":"Calculate","v":""},"",{"$f":"Calculate","v":""},{"$f":"Calculate","v":""},{"$f":"Calculate","v":""},{"$f":"Calculate","v":""},{"$f":"Calculate","v":""},{"$f":"Calculate","v":""},{"$f":"Calculate","v":""},"",{"$f":"Calculate","v":""},{"$f":"Calculate","v":""},{"$f":"Calculate","v":""},{"$f":"Calculate","v":""},{"$f":"Calculate","v":""},{"$f":"Calculate","v":""},{"$f":"Calculate","v":""},"",{"$f":"Calculate","v":""},{"$f":"Calculate","v":""},{"$f":"Calculate","v":""},{"$f":"Calculate","v":""},{"$f":"Calculate","v":""},{"$f":"Calculate","v":""},{"$f":"Calculate","v":""},"",{"$f":"Calculate","v":""},{"$f":"Calculate","v":""},0,{"$f":"SUMPRODUCT(N(WEEKDAY(ROW(INDIRECT(Firts_DateOfMonth&\":\"&EOMONTH(Firts_DateOfMonth,0))),2)={1,2,3,4,5,6,7})*($D192:$J192=1))","v":0},0,0,0,""]
[188,null,null,null,null,null,null,null,null,null,0,"",{"$f":"Calculate","v":""},{"$f":"Calculate","v":""},{"$f":"Calculate","v":""},{"$f":"Calculate","v":""},{"$f":"Calculate","v":""},{"$f":"Calculate","v":""},{"$f":"Calculate","v":""},"",{"$f":"Calculate","v":""},{"$f":"Calculate","v":""},{"$f":"Calculate","v":""},{"$f":"Calculate","v":""},{"$f":"Calculate","v":""},{"$f":"Calculate","v":""},{"$f":"Calculate","v":""},"",{"$f":"Calculate","v":""},{"$f":"Calculate","v":""},{"$f":"Calculate","v":""},{"$f":"Calculate","v":""},{"$f":"Calculate","v":""},{"$f":"Calculate","v":""},{"$f":"Calculate","v":""},"",{"$f":"Calculate","v":""},{"$f":"Calculate","v":""},{"$f":"Calculate","v":""},{"$f":"Calculate","v":""},{"$f":"Calculate","v":""},{"$f":"Calculate","v":""},{"$f":"Calculate","v":""},"",{"$f":"Calculate","v":""},{"$f":"Calculate","v":""},{"$f":"Calculate","v":""},{"$f":"Calculate","v":""},{"$f":"Calculate","v":""},{"$f":"Calculate","v":""},{"$f":"Calculate","v":""},"",{"$f":"Calculate","v":""},{"$f":"Calculate","v":""},0,{"$f":"SUMPRODUCT(N(WEEKDAY(ROW(INDIRECT(Firts_DateOfMonth&\":\"&EOMONTH(Firts_DateOfMonth,0))),2)={1,2,3,4,5,6,7})*($D193:$J193=1))","v":0},0,0,0,""]
[189,null,null,null,null,null,null,null,null,null,0,"",{"$f":"Calculate","v":""},{"$f":"Calculate","v":""},{"$f":"Calculate","v":""},{"$f":"Calculate","v":""},{"$f":"Calculate","v":""},{"$f":"Calculate","v":""},{"$f":"Calculate","v":""},"",{"$f":"Calculate","v":""},{"$f":"Calculate","v":""},{"$f":"Calculate","v":""},{"$f":"Calculate","v":""},{"$f":"Calculate","v":""},{"$f":"Calculate","v":""},{"$f":"Calculate","v":""},"",{"$f":"Calculate","v":""},{"$f":"Calculate","v":""},{"$f":"Calculate","v":""},{"$f":"Calculate","v":""},{"$f":"Calculate","v":""},{"$f":"Calculate","v":""},{"$f":"Calculate","v":""},"",{"$f":"Calculate","v":""},{"$f":"Calculate","v":""},{"$f":"Calculate","v":""},{"$f":"Calculate","v":""},{"$f":"Calculate","v":""},{"$f":"Calculate","v":""},{"$f":"Calculate","v":""},"",{"$f":"Calculate","v":""},{"$f":"Calculate","v":""},{"$f":"Calculate","v":""},{"$f":"Calculate","v":""},{"$f":"Calculate","v":""},{"$f":"Calculate","v":""},{"$f":"Calculate","v":""},"",{"$f":"Calculate","v":""},{"$f":"Calculate","v":""},0,{"$f":"SUMPRODUCT(N(WEEKDAY(ROW(INDIRECT(Firts_DateOfMonth&\":\"&EOMONTH(Firts_DateOfMonth,0))),2)={1,2,3,4,5,6,7})*($D194:$J194=1))","v":0},0,0,0,""]
[190,null,null,null,null,null,null,null,null,null,0,"",{"$f":"Calculate","v":""},{"$f":"Calculate","v":""},{"$f":"Calculate","v":""},{"$f":"Calculate","v":""},{"$f":"Calculate","v":""},{"$f":"Calculate","v":""},{"$f":"Calculate","v":""},"",{"$f":"Calculate","v":""},{"$f":"Calculate","v":""},{"$f":"Calculate","v":""},{"$f":"Calculate","v":""},{"$f":"Calculate","v":""},{"$f":"Calculate","v":""},{"$f":"Calculate","v":""},"",{"$f":"Calculate","v":""},{"$f":"Calculate","v":""},{"$f":"Calculate","v":""},{"$f":"Calculate","v":""},{"$f":"Calculate","v":""},{"$f":"Calculate","v":""},{"$f":"Calculate","v":""},"",{"$f":"Calculate","v":""},{"$f":"Calculate","v":""},{"$f":"Calculate","v":""},{"$f":"Calculate","v":""},{"$f":"Calculate","v":""},{"$f":"Calculate","v":""},{"$f":"Calculate","v":""},"",{"$f":"Calculate","v":""},{"$f":"Calculate","v":""},{"$f":"Calculate","v":""},{"$f":"Calculate","v":""},{"$f":"Calculate","v":""},{"$f":"Calculate","v":""},{"$f":"Calculate","v":""},"",{"$f":"Calculate","v":""},{"$f":"Calculate","v":""},0,{"$f":"SUMPRODUCT(N(WEEKDAY(ROW(INDIRECT(Firts_DateOfMonth&\":\"&EOMONTH(Firts_DateOfMonth,0))),2)={1,2,3,4,5,6,7})*($D195:$J195=1))","v":0},0,0,0,""]
[191,null,null,null,null,null,null,null,null,null,0,"",{"$f":"Calculate","v":""},{"$f":"Calculate","v":""},{"$f":"Calculate","v":""},{"$f":"Calculate","v":""},{"$f":"Calculate","v":""},{"$f":"Calculate","v":""},{"$f":"Calculate","v":""},"",{"$f":"Calculate","v":""},{"$f":"Calculate","v":""},{"$f":"Calculate","v":""},{"$f":"Calculate","v":""},{"$f":"Calculate","v":""},{"$f":"Calculate","v":""},{"$f":"Calculate","v":""},"",{"$f":"Calculate","v":""},{"$f":"Calculate","v":""},{"$f":"Calculate","v":""},{"$f":"Calculate","v":""},{"$f":"Calculate","v":""},{"$f":"Calculate","v":""},{"$f":"Calculate","v":""},"",{"$f":"Calculate","v":""},{"$f":"Calculate","v":""},{"$f":"Calculate","v":""},{"$f":"Calculate","v":""},{"$f":"Calculate","v":""},{"$f":"Calculate","v":""},{"$f":"Calculate","v":""},"",{"$f":"Calculate","v":""},{"$f":"Calculate","v":""},{"$f":"Calculate","v":""},{"$f":"Calculate","v":""},{"$f":"Calculate","v":""},{"$f":"Calculate","v":""},{"$f":"Calculate","v":""},"",{"$f":"Calculate","v":""},{"$f":"Calculate","v":""},0,{"$f":"SUMPRODUCT(N(WEEKDAY(ROW(INDIRECT(Firts_DateOfMonth&\":\"&EOMONTH(Firts_DateOfMonth,0))),2)={1,2,3,4,5,6,7})*($D196:$J196=1))","v":0},0,0,0,""]
[192,null,null,null,null,null,null,null,null,null,0,"",{"$f":"Calculate","v":""},{"$f":"Calculate","v":""},{"$f":"Calculate","v":""},{"$f":"Calculate","v":""},{"$f":"Calculate","v":""},{"$f":"Calculate","v":""},{"$f":"Calculate","v":""},"",{"$f":"Calculate","v":""},{"$f":"Calculate","v":""},{"$f":"Calculate","v":""},{"$f":"Calculate","v":""},{"$f":"Calculate","v":""},{"$f":"Calculate","v":""},{"$f":"Calculate","v":""},"",{"$f":"Calculate","v":""},{"$f":"Calculate","v":""},{"$f":"Calculate","v":""},{"$f":"Calculate","v":""},{"$f":"Calculate","v":""},{"$f":"Calculate","v":""},{"$f":"Calculate","v":""},"",{"$f":"Calculate","v":""},{"$f":"Calculate","v":""},{"$f":"Calculate","v":""},{"$f":"Calculate","v":""},{"$f":"Calculate","v":""},{"$f":"Calculate","v":""},{"$f":"Calculate","v":""},"",{"$f":"Calculate","v":""},{"$f":"Calculate","v":""},{"$f":"Calculate","v":""},{"$f":"Calculate","v":""},{"$f":"Calculate","v":""},{"$f":"Calculate","v":""},{"$f":"Calculate","v":""},"",{"$f":"Calculate","v":""},{"$f":"Calculate","v":""},0,{"$f":"SUMPRODUCT(N(WEEKDAY(ROW(INDIRECT(Firts_DateOfMonth&\":\"&EOMONTH(Firts_DateOfMonth,0))),2)={1,2,3,4,5,6,7})*($D197:$J197=1))","v":0},0,0,0,""]
[193,null,null,null,null,null,null,null,null,null,0,{"$f":"IF($B198=\"บิลยกเลิก\",\"\",MID(B198,5,1))","v":""},{"$f":"Calculate","v":""},{"$f":"Calculate","v":""},{"$f":"Calculate","v":""},{"$f":"Calculate","v":""},{"$f":"Calculate","v":""},{"$f":"Calculate","v":""},{"$f":"Calculate","v":""},"",{"$f":"Calculate","v":""},{"$f":"Calculate","v":""},{"$f":"Calculate","v":""},{"$f":"Calculate","v":""},{"$f":"Calculate","v":""},{"$f":"Calculate","v":""},{"$f":"Calculate","v":""},"",{"$f":"Calculate","v":""},{"$f":"Calculate","v":""},{"$f":"Calculate","v":""},{"$f":"Calculate","v":""},{"$f":"Calculate","v":""},{"$f":"Calculate","v":""},{"$f":"Calculate","v":""},"",{"$f":"Calculate","v":""},{"$f":"Calculate","v":""},{"$f":"Calculate","v":""},{"$f":"Calculate","v":""},{"$f":"Calculate","v":""},{"$f":"Calculate","v":""},{"$f":"Calculate","v":""},"",{"$f":"Calculate","v":""},{"$f":"Calculate","v":""},{"$f":"Calculate","v":""},{"$f":"Calculate","v":""},{"$f":"Calculate","v":""},{"$f":"Calculate","v":""},{"$f":"Calculate","v":""},"",{"$f":"Calculate","v":""},{"$f":"Calculate","v":""},0,{"$f":"SUMPRODUCT(N(WEEKDAY(ROW(INDIRECT(Firts_DateOfMonth&\":\"&EOMONTH(Firts_DateOfMonth,0))),2)={1,2,3,4,5,6,7})*($D198:$J198=1))","v":0},{"$f":"IF($BF198>0,0,$BG198)","v":0},{"$f":"((LEFT($B198,1)=\"2\")+(LEFT($B198,1)=\"1\")*($L198=\"A\"))*$BG198","v":0},{"$f":"SUMIFS(M198:BB198,$M$5:$BB$5,\"<>Bills\")","v":0},{"$f":"IFERROR($BG198/$BC198,\"\")","v":""}]
[194,null,null,null,null,null,null,null,null,null,{"$f":"SUM(D199:J199)","v":0},"",{"$f":"Calculate","v":""},{"$f":"Calculate","v":""},{"$f":"Calculate","v":""},{"$f":"Calculate","v":""},{"$f":"Calculate","v":""},{"$f":"Calculate","v":""},{"$f":"Calculate","v":""},{"$f":"IF($B199=\"\",\"\",COUNT(M199:S199))","v":""},{"$f":"Calculate","v":""},{"$f":"Calculate","v":""},{"$f":"Calculate","v":""},{"$f":"Calculate","v":""},{"$f":"Calculate","v":""},{"$f":"Calculate","v":""},{"$f":"Calculate","v":""},{"$f":"IF($B199=\"\",\"\",COUNT(U199:AA199))","v":""},{"$f":"Calculate","v":""},{"$f":"Calculate","v":""},{"$f":"Calculate","v":""},{"$f":"Calculate","v":""},{"$f":"Calculate","v":""},{"$f":"Calculate","v":""},{"$f":"Calculate","v":""},{"$f":"IF($B199=\"\",\"\",COUNT(AC199:AI199))","v":""},{"$f":"Calculate","v":""},{"$f":"Calculate","v":""},{"$f":"Calculate","v":""},{"$f":"Calculate","v":""},{"$f":"Calculate","v":""},{"$f":"Calculate","v":""},{"$f":"Calculate","v":""},{"$f":"IF($B199=\"\",\"\",COUNT(AK199:AQ199))","v":""},{"$f":"Calculate","v":""},{"$f":"Calculate","v":""},{"$f":"Calculate","v":""},{"$f":"Calculate","v":""},{"$f":"Calculate","v":""},{"$f":"Calculate","v":""},{"$f":"Calculate","v":""},{"$f":"IF($B199=\"\",\"\",COUNT(AS199:AY199))","v":""},{"$f":"Calculate","v":""},{"$f":"Calculate","v":""},{"$f":"IF(SUMIFS(M199:BB199,$M$5:$BB$5,\"Bills\")=0,0,SUMIFS(M199:BB199,$M$5:$BB$5,\"Bills\"))","v":0},{"$f":"SUMPRODUCT(N(WEEKDAY(ROW(INDIRECT(Firts_DateOfMonth&\":\"&EOMONTH(Firts_DateOfMonth,0))),2)={1,2,3,4,5,6,7})*($D199:$J199=1))","v":0},0,0,0,""]
[195,null,null,null,null,null,null,null,null,null,0,"",{"$f":"Calculate","v":""},{"$f":"Calculate","v":""},{"$f":"Calculate","v":""},{"$f":"Calculate","v":""},{"$f":"Calculate","v":""},{"$f":"Calculate","v":""},{"$f":"Calculate","v":""},"",{"$f":"Calculate","v":""},{"$f":"Calculate","v":""},{"$f":"Calculate","v":""},{"$f":"Calculate","v":""},{"$f":"Calculate","v":""},{"$f":"Calculate","v":""},{"$f":"Calculate","v":""},"",{"$f":"Calculate","v":""},{"$f":"Calculate","v":""},{"$f":"Calculate","v":""},{"$f":"Calculate","v":""},{"$f":"Calculate","v":""},{"$f":"Calculate","v":""},{"$f":"Calculate","v":""},"",{"$f":"Calculate","v":""},{"$f":"Calculate","v":""},{"$f":"Calculate","v":""},{"$f":"Calculate","v":""},{"$f":"Calculate","v":""},{"$f":"Calculate","v":""},{"$f":"Calculate","v":""},"",{"$f":"Calculate","v":""},{"$f":"Calculate","v":""},{"$f":"Calculate","v":""},{"$f":"Calculate","v":""},{"$f":"Calculate","v":""},{"$f":"Calculate","v":""},{"$f":"Calculate","v":""},"",{"$f":"Calculate","v":""},{"$f":"Calculate","v":""},0,{"$f":"SUMPRODUCT(N(WEEKDAY(ROW(INDIRECT(Firts_DateOfMonth&\":\"&EOMONTH(Firts_DateOfMonth,0))),2)={1,2,3,4,5,6,7})*($D200:$J200=1))","v":0},0,0,0,""]
[196,null,null,null,null,null,null,null,null,null,0,"",{"$f":"Calculate","v":""},{"$f":"Calculate","v":""},{"$f":"Calculate","v":""},{"$f":"Calculate","v":""},{"$f":"Calculate","v":""},{"$f":"Calculate","v":""},{"$f":"Calculate","v":""},"",{"$f":"Calculate","v":""},{"$f":"Calculate","v":""},{"$f":"Calculate","v":""},{"$f":"Calculate","v":""},{"$f":"Calculate","v":""},{"$f":"Calculate","v":""},{"$f":"Calculate","v":""},"",{"$f":"Calculate","v":""},{"$f":"Calculate","v":""},{"$f":"Calculate","v":""},{"$f":"Calculate","v":""},{"$f":"Calculate","v":""},{"$f":"Calculate","v":""},{"$f":"Calculate","v":""},"",{"$f":"Calculate","v":""},{"$f":"Calculate","v":""},{"$f":"Calculate","v":""},{"$f":"Calculate","v":""},{"$f":"Calculate","v":""},{"$f":"Calculate","v":""},{"$f":"Calculate","v":""},"",{"$f":"Calculate","v":""},{"$f":"Calculate","v":""},{"$f":"Calculate","v":""},{"$f":"Calculate","v":""},{"$f":"Calculate","v":""},{"$f":"Calculate","v":""},{"$f":"Calculate","v":""},"",{"$f":"Calculate","v":""},{"$f":"Calculate","v":""},0,{"$f":"SUMPRODUCT(N(WEEKDAY(ROW(INDIRECT(Firts_DateOfMonth&\":\"&EOMONTH(Firts_DateOfMonth,0))),2)={1,2,3,4,5,6,7})*($D201:$J201=1))","v":0},0,0,0,""]
[197,null,null,null,null,null,null,null,null,null,0,"",{"$f":"Calculate","v":""},{"$f":"Calculate","v":""},{"$f":"Calculate","v":""},{"$f":"Calculate","v":""},{"$f":"Calculate","v":""},{"$f":"Calculate","v":""},{"$f":"Calculate","v":""},"",{"$f":"Calculate","v":""},{"$f":"Calculate","v":""},{"$f":"Calculate","v":""},{"$f":"Calculate","v":""},{"$f":"Calculate","v":""},{"$f":"Calculate","v":""},{"$f":"Calculate","v":""},"",{"$f":"Calculate","v":""},{"$f":"Calculate","v":""},{"$f":"Calculate","v":""},{"$f":"Calculate","v":""},{"$f":"Calculate","v":""},{"$f":"Calculate","v":""},{"$f":"Calculate","v":""},"",{"$f":"Calculate","v":""},{"$f":"Calculate","v":""},{"$f":"Calculate","v":""},{"$f":"Calculate","v":""},{"$f":"Calculate","v":""},{"$f":"Calculate","v":""},{"$f":"Calculate","v":""},"",{"$f":"Calculate","v":""},{"$f":"Calculate","v":""},{"$f":"Calculate","v":""},{"$f":"Calculate","v":""},{"$f":"Calculate","v":""},{"$f":"Calculate","v":""},{"$f":"Calculate","v":""},"",{"$f":"Calculate","v":""},{"$f":"Calculate","v":""},0,{"$f":"SUMPRODUCT(N(WEEKDAY(ROW(INDIRECT(Firts_DateOfMonth&\":\"&EOMONTH(Firts_DateOfMonth,0))),2)={1,2,3,4,5,6,7})*($D202:$J202=1))","v":0},0,0,0,""]
[198,null,null,null,null,null,null,null,null,null,0,"",{"$f":"Calculate","v":""},{"$f":"Calculate","v":""},{"$f":"Calculate","v":""},{"$f":"Calculate","v":""},{"$f":"Calculate","v":""},{"$f":"Calculate","v":""},{"$f":"Calculate","v":""},"",{"$f":"Calculate","v":""},{"$f":"Calculate","v":""},{"$f":"Calculate","v":""},{"$f":"Calculate","v":""},{"$f":"Calculate","v":""},{"$f":"Calculate","v":""},{"$f":"Calculate","v":""},"",{"$f":"Calculate","v":""},{"$f":"Calculate","v":""},{"$f":"Calculate","v":""},{"$f":"Calculate","v":""},{"$f":"Calculate","v":""},{"$f":"Calculate","v":""},{"$f":"Calculate","v":""},"",{"$f":"Calculate","v":""},{"$f":"Calculate","v":""},{"$f":"Calculate","v":""},{"$f":"Calculate","v":""},{"$f":"Calculate","v":""},{"$f":"Calculate","v":""},{"$f":"Calculate","v":""},"",{"$f":"Calculate","v":""},{"$f":"Calculate","v":""},{"$f":"Calculate","v":""},{"$f":"Calculate","v":""},{"$f":"Calculate","v":""},{"$f":"Calculate","v":""},{"$f":"Calculate","v":""},"",{"$f":"Calculate","v":""},{"$f":"Calculate","v":""},0,{"$f":"SUMPRODUCT(N(WEEKDAY(ROW(INDIRECT(Firts_DateOfMonth&\":\"&EOMONTH(Firts_DateOfMonth,0))),2)={1,2,3,4,5,6,7})*($D203:$J203=1))","v":0},0,0,0,""]
[199,null,null,null,null,null,null,null,null,null,0,"",{"$f":"Calculate","v":""},{"$f":"Calculate","v":""},{"$f":"Calculate","v":""},{"$f":"Calculate","v":""},{"$f":"Calculate","v":""},{"$f":"Calculate","v":""},{"$f":"Calculate","v":""},"",{"$f":"Calculate","v":""},{"$f":"Calculate","v":""},{"$f":"Calculate","v":""},{"$f":"Calculate","v":""},{"$f":"Calculate","v":""},{"$f":"Calculate","v":""},{"$f":"Calculate","v":""},"",{"$f":"Calculate","v":""},{"$f":"Calculate","v":""},{"$f":"Calculate","v":""},{"$f":"Calculate","v":""},{"$f":"Calculate","v":""},{"$f":"Calculate","v":""},{"$f":"Calculate","v":""},"",{"$f":"Calculate","v":""},{"$f":"Calculate","v":""},{"$f":"Calculate","v":""},{"$f":"Calculate","v":""},{"$f":"Calculate","v":""},{"$f":"Calculate","v":""},{"$f":"Calculate","v":""},"",{"$f":"Calculate","v":""},{"$f":"Calculate","v":""},{"$f":"Calculate","v":""},{"$f":"Calculate","v":""},{"$f":"Calculate","v":""},{"$f":"Calculate","v":""},{"$f":"Calculate","v":""},"",{"$f":"Calculate","v":""},{"$f":"Calculate","v":""},0,{"$f":"SUMPRODUCT(N(WEEKDAY(ROW(INDIRECT(Firts_DateOfMonth&\":\"&EOMONTH(Firts_DateOfMonth,0))),2)={1,2,3,4,5,6,7})*($D204:$J204=1))","v":0},0,0,0,""]
[200,null,null,null,null,null,null,null,null,null,0,"",{"$f":"Calculate","v":""},{"$f":"Calculate","v":""},{"$f":"Calculate","v":""},{"$f":"Calculate","v":""},{"$f":"Calculate","v":""},{"$f":"Calculate","v":""},{"$f":"Calculate","v":""},"",{"$f":"Calculate","v":""},{"$f":"Calculate","v":""},{"$f":"Calculate","v":""},{"$f":"Calculate","v":""},{"$f":"Calculate","v":""},{"$f":"Calculate","v":""},{"$f":"Calculate","v":""},"",{"$f":"Calculate","v":""},{"$f":"Calculate","v":""},{"$f":"Calculate","v":""},{"$f":"Calculate","v":""},{"$f":"Calculate","v":""},{"$f":"Calculate","v":""},{"$f":"Calculate","v":""},"",{"$f":"Calculate","v":""},{"$f":"Calculate","v":""},{"$f":"Calculate","v":""},{"$f":"Calculate","v":""},{"$f":"Calculate","v":""},{"$f":"Calculate","v":""},{"$f":"Calculate","v":""},"",{"$f":"Calculate","v":""},{"$f":"Calculate","v":""},{"$f":"Calculate","v":""},{"$f":"Calculate","v":""},{"$f":"Calculate","v":""},{"$f":"Calculate","v":""},{"$f":"Calculate","v":""},"",{"$f":"Calculate","v":""},{"$f":"Calculate","v":""},0,{"$f":"SUMPRODUCT(N(WEEKDAY(ROW(INDIRECT(Firts_DateOfMonth&\":\"&EOMONTH(Firts_DateOfMonth,0))),2)={1,2,3,4,5,6,7})*($D205:$J205=1))","v":0},0,0,0,""]
[201,null,null,null,null,null,null,null,null,null,0,"",{"$f":"Calculate","v":""},{"$f":"Calculate","v":""},{"$f":"Calculate","v":""},{"$f":"Calculate","v":""},{"$f":"Calculate","v":""},{"$f":"Calculate","v":""},{"$f":"Calculate","v":""},"",{"$f":"Calculate","v":""},{"$f":"Calculate","v":""},{"$f":"Calculate","v":""},{"$f":"Calculate","v":""},{"$f":"Calculate","v":""},{"$f":"Calculate","v":""},{"$f":"Calculate","v":""},"",{"$f":"Calculate","v":""},{"$f":"Calculate","v":""},{"$f":"Calculate","v":""},{"$f":"Calculate","v":""},{"$f":"Calculate","v":""},{"$f":"Calculate","v":""},{"$f":"Calculate","v":""},"",{"$f":"Calculate","v":""},{"$f":"Calculate","v":""},{"$f":"Calculate","v":""},{"$f":"Calculate","v":""},{"$f":"Calculate","v":""},{"$f":"Calculate","v":""},{"$f":"Calculate","v":""},"",{"$f":"Calculate","v":""},{"$f":"Calculate","v":""},{"$f":"Calculate","v":""},{"$f":"Calculate","v":""},{"$f":"Calculate","v":""},{"$f":"Calculate","v":""},{"$f":"Calculate","v":""},"",{"$f":"Calculate","v":""},{"$f":"Calculate","v":""},0,{"$f":"SUMPRODUCT(N(WEEKDAY(ROW(INDIRECT(Firts_DateOfMonth&\":\"&EOMONTH(Firts_DateOfMonth,0))),2)={1,2,3,4,5,6,7})*($D206:$J206=1))","v":0},0,0,0,""]
[202,null,null,null,null,null,null,null,null,null,0,"",{"$f":"Calculate","v":""},{"$f":"Calculate","v":""},{"$f":"Calculate","v":""},{"$f":"Calculate","v":""},{"$f":"Calculate","v":""},{"$f":"Calculate","v":""},{"$f":"Calculate","v":""},"",{"$f":"Calculate","v":""},{"$f":"Calculate","v":""},{"$f":"Calculate","v":""},{"$f":"Calculate","v":""},{"$f":"Calculate","v":""},{"$f":"Calculate","v":""},{"$f":"Calculate","v":""},"",{"$f":"Calculate","v":""},{"$f":"Calculate","v":""},{"$f":"Calculate","v":""},{"$f":"Calculate","v":""},{"$f":"Calculate","v":""},{"$f":"Calculate","v":""},{"$f":"Calculate","v":""},"",{"$f":"Calculate","v":""},{"$f":"Calculate","v":""},{"$f":"Calculate","v":""},{"$f":"Calculate","v":""},{"$f":"Calculate","v":""},{"$f":"Calculate","v":""},{"$f":"Calculate","v":""},"",{"$f":"Calculate","v":""},{"$f":"Calculate","v":""},{"$f":"Calculate","v":""},{"$f":"Calculate","v":""},{"$f":"Calculate","v":""},{"$f":"Calculate","v":""},{"$f":"Calculate","v":""},"",{"$f":"Calculate","v":""},{"$f":"Calculate","v":""},0,{"$f":"SUMPRODUCT(N(WEEKDAY(ROW(INDIRECT(Firts_DateOfMonth&\":\"&EOMONTH(Firts_DateOfMonth,0))),2)={1,2,3,4,5,6,7})*($D207:$J207=1))","v":0},0,0,0,""]
[203,null,null,null,null,null,null,null,null,null,0,"",{"$f":"Calculate","v":""},{"$f":"Calculate","v":""},{"$f":"Calculate","v":""},{"$f":"Calculate","v":""},{"$f":"Calculate","v":""},{"$f":"Calculate","v":""},{"$f":"Calculate","v":""},"",{"$f":"Calculate","v":""},{"$f":"Calculate","v":""},{"$f":"Calculate","v":""},{"$f":"Calculate","v":""},{"$f":"Calculate","v":""},{"$f":"Calculate","v":""},{"$f":"Calculate","v":""},"",{"$f":"Calculate","v":""},{"$f":"Calculate","v":""},{"$f":"Calculate","v":""},{"$f":"Calculate","v":""},{"$f":"Calculate","v":""},{"$f":"Calculate","v":""},{"$f":"Calculate","v":""},"",{"$f":"Calculate","v":""},{"$f":"Calculate","v":""},{"$f":"Calculate","v":""},{"$f":"Calculate","v":""},{"$f":"Calculate","v":""},{"$f":"Calculate","v":""},{"$f":"Calculate","v":""},"",{"$f":"Calculate","v":""},{"$f":"Calculate","v":""},{"$f":"Calculate","v":""},{"$f":"Calculate","v":""},{"$f":"Calculate","v":""},{"$f":"Calculate","v":""},{"$f":"Calculate","v":""},"",{"$f":"Calculate","v":""},{"$f":"Calculate","v":""},0,{"$f":"SUMPRODUCT(N(WEEKDAY(ROW(INDIRECT(Firts_DateOfMonth&\":\"&EOMONTH(Firts_DateOfMonth,0))),2)={1,2,3,4,5,6,7})*($D208:$J208=1))","v":0},0,0,0,""]
[204,null,null,null,null,null,null,null,null,null,0,"",{"$f":"Calculate","v":""},{"$f":"Calculate","v":""},{"$f":"Calculate","v":""},{"$f":"Calculate","v":""},{"$f":"Calculate","v":""},{"$f":"Calculate","v":""},{"$f":"Calculate","v":""},"",{"$f":"Calculate","v":""},{"$f":"Calculate","v":""},{"$f":"Calculate","v":""},{"$f":"Calculate","v":""},{"$f":"Calculate","v":""},{"$f":"Calculate","v":""},{"$f":"Calculate","v":""},"",{"$f":"Calculate","v":""},{"$f":"Calculate","v":""},{"$f":"Calculate","v":""},{"$f":"Calculate","v":""},{"$f":"Calculate","v":""},{"$f":"Calculate","v":""},{"$f":"Calculate","v":""},"",{"$f":"Calculate","v":""},{"$f":"Calculate","v":""},{"$f":"Calculate","v":""},{"$f":"Calculate","v":""},{"$f":"Calculate","v":""},{"$f":"Calculate","v":""},{"$f":"Calculate","v":""},"",{"$f":"Calculate","v":""},{"$f":"Calculate","v":""},{"$f":"Calculate","v":""},{"$f":"Calculate","v":""},{"$f":"Calculate","v":""},{"$f":"Calculate","v":""},{"$f":"Calculate","v":""},"",{"$f":"Calculate","v":""},{"$f":"Calculate","v":""},0,{"$f":"SUMPRODUCT(N(WEEKDAY(ROW(INDIRECT(Firts_DateOfMonth&\":\"&EOMONTH(Firts_DateOfMonth,0))),2)={1,2,3,4,5,6,7})*($D209:$J209=1))","v":0},0,0,0,""]
[205,null,null,null,null,null,null,null,null,null,0,"",{"$f":"Calculate","v":""},{"$f":"Calculate","v":""},{"$f":"Calculate","v":""},{"$f":"Calculate","v":""},{"$f":"Calculate","v":""},{"$f":"Calculate","v":""},{"$f":"Calculate","v":""},"",{"$f":"Calculate","v":""},{"$f":"Calculate","v":""},{"$f":"Calculate","v":""},{"$f":"Calculate","v":""},{"$f":"Calculate","v":""},{"$f":"Calculate","v":""},{"$f":"Calculate","v":""},"",{"$f":"Calculate","v":""},{"$f":"Calculate","v":""},{"$f":"Calculate","v":""},{"$f":"Calculate","v":""},{"$f":"Calculate","v":""},{"$f":"Calculate","v":""},{"$f":"Calculate","v":""},"",{"$f":"Calculate","v":""},{"$f":"Calculate","v":""},{"$f":"Calculate","v":""},{"$f":"Calculate","v":""},{"$f":"Calculate","v":""},{"$f":"Calculate","v":""},{"$f":"Calculate","v":""},"",{"$f":"Calculate","v":""},{"$f":"Calculate","v":""},{"$f":"Calculate","v":""},{"$f":"Calculate","v":""},{"$f":"Calculate","v":""},{"$f":"Calculate","v":""},{"$f":"Calculate","v":""},"",{"$f":"Calculate","v":""},{"$f":"Calculate","v":""},0,{"$f":"SUMPRODUCT(N(WEEKDAY(ROW(INDIRECT(Firts_DateOfMonth&\":\"&EOMONTH(Firts_DateOfMonth,0))),2)={1,2,3,4,5,6,7})*($D210:$J210=1))","v":0},0,0,0,""]
[206,null,null,null,null,null,null,null,null,null,0,"",{"$f":"Calculate","v":""},{"$f":"Calculate","v":""},{"$f":"Calculate","v":""},{"$f":"Calculate","v":""},{"$f":"Calculate","v":""},{"$f":"Calculate","v":""},{"$f":"Calculate","v":""},"",{"$f":"Calculate","v":""},{"$f":"Calculate","v":""},{"$f":"Calculate","v":""},{"$f":"Calculate","v":""},{"$f":"Calculate","v":""},{"$f":"Calculate","v":""},{"$f":"Calculate","v":""},"",{"$f":"Calculate","v":""},{"$f":"Calculate","v":""},{"$f":"Calculate","v":""},{"$f":"Calculate","v":""},{"$f":"Calculate","v":""},{"$f":"Calculate","v":""},{"$f":"Calculate","v":""},"",{"$f":"Calculate","v":""},{"$f":"Calculate","v":""},{"$f":"Calculate","v":""},{"$f":"Calculate","v":""},{"$f":"Calculate","v":""},{"$f":"Calculate","v":""},{"$f":"Calculate","v":""},"",{"$f":"Calculate","v":""},{"$f":"Calculate","v":""},{"$f":"Calculate","v":""},{"$f":"Calculate","v":""},{"$f":"Calculate","v":""},{"$f":"Calculate","v":""},{"$f":"Calculate","v":""},"",{"$f":"Calculate","v":""},{"$f":"Calculate","v":""},0,{"$f":"SUMPRODUCT(N(WEEKDAY(ROW(INDIRECT(Firts_DateOfMonth&\":\"&EOMONTH(Firts_DateOfMonth,0))),2)={1,2,3,4,5,6,7})*($D211:$J211=1))","v":0},0,0,0,""]
[207,null,null,null,null,null,null,null,null,null,0,"",{"$f":"Calculate","v":""},{"$f":"Calculate","v":""},{"$f":"Calculate","v":""},{"$f":"Calculate","v":""},{"$f":"Calculate","v":""},{"$f":"Calculate","v":""},{"$f":"Calculate","v":""},"",{"$f":"Calculate","v":""},{"$f":"Calculate","v":""},{"$f":"Calculate","v":""},{"$f":"Calculate","v":""},{"$f":"Calculate","v":""},{"$f":"Calculate","v":""},{"$f":"Calculate","v":""},"",{"$f":"Calculate","v":""},{"$f":"Calculate","v":""},{"$f":"Calculate","v":""},{"$f":"Calculate","v":""},{"$f":"Calculate","v":""},{"$f":"Calculate","v":""},{"$f":"Calculate","v":""},"",{"$f":"Calculate","v":""},{"$f":"Calculate","v":""},{"$f":"Calculate","v":""},{"$f":"Calculate","v":""},{"$f":"Calculate","v":""},{"$f":"Calculate","v":""},{"$f":"Calculate","v":""},"",{"$f":"Calculate","v":""},{"$f":"Calculate","v":""},{"$f":"Calculate","v":""},{"$f":"Calculate","v":""},{"$f":"Calculate","v":""},{"$f":"Calculate","v":""},{"$f":"Calculate","v":""},"",{"$f":"Calculate","v":""},{"$f":"Calculate","v":""},0,{"$f":"SUMPRODUCT(N(WEEKDAY(ROW(INDIRECT(Firts_DateOfMonth&\":\"&EOMONTH(Firts_DateOfMonth,0))),2)={1,2,3,4,5,6,7})*($D212:$J212=1))","v":0},0,0,0,""]
[208,null,null,null,null,null,null,null,null,null,0,"",{"$f":"Calculate","v":""},{"$f":"Calculate","v":""},{"$f":"Calculate","v":""},{"$f":"Calculate","v":""},{"$f":"Calculate","v":""},{"$f":"Calculate","v":""},{"$f":"Calculate","v":""},"",{"$f":"Calculate","v":""},{"$f":"Calculate","v":""},{"$f":"Calculate","v":""},{"$f":"Calculate","v":""},{"$f":"Calculate","v":""},{"$f":"Calculate","v":""},{"$f":"Calculate","v":""},"",{"$f":"Calculate","v":""},{"$f":"Calculate","v":""},{"$f":"Calculate","v":""},{"$f":"Calculate","v":""},{"$f":"Calculate","v":""},{"$f":"Calculate","v":""},{"$f":"Calculate","v":""},"",{"$f":"Calculate","v":""},{"$f":"Calculate","v":""},{"$f":"Calculate","v":""},{"$f":"Calculate","v":""},{"$f":"Calculate","v":""},{"$f":"Calculate","v":""},{"$f":"Calculate","v":""},"",{"$f":"Calculate","v":""},{"$f":"Calculate","v":""},{"$f":"Calculate","v":""},{"$f":"Calculate","v":""},{"$f":"Calculate","v":""},{"$f":"Calculate","v":""},{"$f":"Calculate","v":""},"",{"$f":"Calculate","v":""},{"$f":"Calculate","v":""},0,{"$f":"SUMPRODUCT(N(WEEKDAY(ROW(INDIRECT(Firts_DateOfMonth&\":\"&EOMONTH(Firts_DateOfMonth,0))),2)={1,2,3,4,5,6,7})*($D213:$J213=1))","v":0},0,0,0,""]
[209,null,null,null,null,null,null,null,null,null,0,"",{"$f":"Calculate","v":""},{"$f":"Calculate","v":""},{"$f":"Calculate","v":""},{"$f":"Calculate","v":""},{"$f":"Calculate","v":""},{"$f":"Calculate","v":""},{"$f":"Calculate","v":""},"",{"$f":"Calculate","v":""},{"$f":"Calculate","v":""},{"$f":"Calculate","v":""},{"$f":"Calculate","v":""},{"$f":"Calculate","v":""},{"$f":"Calculate","v":""},{"$f":"Calculate","v":""},"",{"$f":"Calculate","v":""},{"$f":"Calculate","v":""},{"$f":"Calculate","v":""},{"$f":"Calculate","v":""},{"$f":"Calculate","v":""},{"$f":"Calculate","v":""},{"$f":"Calculate","v":""},"",{"$f":"Calculate","v":""},{"$f":"Calculate","v":""},{"$f":"Calculate","v":""},{"$f":"Calculate","v":""},{"$f":"Calculate","v":""},{"$f":"Calculate","v":""},{"$f":"Calculate","v":""},"",{"$f":"Calculate","v":""},{"$f":"Calculate","v":""},{"$f":"Calculate","v":""},{"$f":"Calculate","v":""},{"$f":"Calculate","v":""},{"$f":"Calculate","v":""},{"$f":"Calculate","v":""},"",{"$f":"Calculate","v":""},{"$f":"Calculate","v":""},0,{"$f":"SUMPRODUCT(N(WEEKDAY(ROW(INDIRECT(Firts_DateOfMonth&\":\"&EOMONTH(Firts_DateOfMonth,0))),2)={1,2,3,4,5,6,7})*($D214:$J214=1))","v":0},0,0,0,""]
[210,null,null,null,null,null,null,null,null,null,0,"",{"$f":"Calculate","v":""},{"$f":"Calculate","v":""},{"$f":"Calculate","v":""},{"$f":"Calculate","v":""},{"$f":"Calculate","v":""},{"$f":"Calculate","v":""},{"$f":"Calculate","v":""},"",{"$f":"Calculate","v":""},{"$f":"Calculate","v":""},{"$f":"Calculate","v":""},{"$f":"Calculate","v":""},{"$f":"Calculate","v":""},{"$f":"Calculate","v":""},{"$f":"Calculate","v":""},"",{"$f":"Calculate","v":""},{"$f":"Calculate","v":""},{"$f":"Calculate","v":""},{"$f":"Calculate","v":""},{"$f":"Calculate","v":""},{"$f":"Calculate","v":""},{"$f":"Calculate","v":""},"",{"$f":"Calculate","v":""},{"$f":"Calculate","v":""},{"$f":"Calculate","v":""},{"$f":"Calculate","v":""},{"$f":"Calculate","v":""},{"$f":"Calculate","v":""},{"$f":"Calculate","v":""},"",{"$f":"Calculate","v":""},{"$f":"Calculate","v":""},{"$f":"Calculate","v":""},{"$f":"Calculate","v":""},{"$f":"Calculate","v":""},{"$f":"Calculate","v":""},{"$f":"Calculate","v":""},"",{"$f":"Calculate","v":""},{"$f":"Calculate","v":""},0,{"$f":"SUMPRODUCT(N(WEEKDAY(ROW(INDIRECT(Firts_DateOfMonth&\":\"&EOMONTH(Firts_DateOfMonth,0))),2)={1,2,3,4,5,6,7})*($D215:$J215=1))","v":0},0,0,0,""]
[211,null,null,null,null,null,null,null,null,null,0,"",{"$f":"Calculate","v":""},{"$f":"Calculate","v":""},{"$f":"Calculate","v":""},{"$f":"Calculate","v":""},{"$f":"Calculate","v":""},{"$f":"Calculate","v":""},{"$f":"Calculate","v":""},"",{"$f":"Calculate","v":""},{"$f":"Calculate","v":""},{"$f":"Calculate","v":""},{"$f":"Calculate","v":""},{"$f":"Calculate","v":""},{"$f":"Calculate","v":""},{"$f":"Calculate","v":""},"",{"$f":"Calculate","v":""},{"$f":"Calculate","v":""},{"$f":"Calculate","v":""},{"$f":"Calculate","v":""},{"$f":"Calculate","v":""},{"$f":"Calculate","v":""},{"$f":"Calculate","v":""},"",{"$f":"Calculate","v":""},{"$f":"Calculate","v":""},{"$f":"Calculate","v":""},{"$f":"Calculate","v":""},{"$f":"Calculate","v":""},{"$f":"Calculate","v":""},{"$f":"Calculate","v":""},"",{"$f":"Calculate","v":""},{"$f":"Calculate","v":""},{"$f":"Calculate","v":""},{"$f":"Calculate","v":""},{"$f":"Calculate","v":""},{"$f":"Calculate","v":""},{"$f":"Calculate","v":""},"",{"$f":"Calculate","v":""},{"$f":"Calculate","v":""},0,{"$f":"SUMPRODUCT(N(WEEKDAY(ROW(INDIRECT(Firts_DateOfMonth&\":\"&EOMONTH(Firts_DateOfMonth,0))),2)={1,2,3,4,5,6,7})*($D216:$J216=1))","v":0},0,0,0,""]
[212,null,null,null,null,null,null,null,null,null,0,"",{"$f":"Calculate","v":""},{"$f":"Calculate","v":""},{"$f":"Calculate","v":""},{"$f":"Calculate","v":""},{"$f":"Calculate","v":""},{"$f":"Calculate","v":""},{"$f":"Calculate","v":""},"",{"$f":"Calculate","v":""},{"$f":"Calculate","v":""},{"$f":"Calculate","v":""},{"$f":"Calculate","v":""},{"$f":"Calculate","v":""},{"$f":"Calculate","v":""},{"$f":"Calculate","v":""},"",{"$f":"Calculate","v":""},{"$f":"Calculate","v":""},{"$f":"Calculate","v":""},{"$f":"Calculate","v":""},{"$f":"Calculate","v":""},{"$f":"Calculate","v":""},{"$f":"Calculate","v":""},"",{"$f":"Calculate","v":""},{"$f":"Calculate","v":""},{"$f":"Calculate","v":""},{"$f":"Calculate","v":""},{"$f":"Calculate","v":""},{"$f":"Calculate","v":""},{"$f":"Calculate","v":""},"",{"$f":"Calculate","v":""},{"$f":"Calculate","v":""},{"$f":"Calculate","v":""},{"$f":"Calculate","v":""},{"$f":"Calculate","v":""},{"$f":"Calculate","v":""},{"$f":"Calculate","v":""},"",{"$f":"Calculate","v":""},{"$f":"Calculate","v":""},0,{"$f":"SUMPRODUCT(N(WEEKDAY(ROW(INDIRECT(Firts_DateOfMonth&\":\"&EOMONTH(Firts_DateOfMonth,0))),2)={1,2,3,4,5,6,7})*($D217:$J217=1))","v":0},0,0,0,""]
[213,null,null,null,null,null,null,null,null,null,0,"",{"$f":"Calculate","v":""},{"$f":"Calculate","v":""},{"$f":"Calculate","v":""},{"$f":"Calculate","v":""},{"$f":"Calculate","v":""},{"$f":"Calculate","v":""},{"$f":"Calculate","v":""},"",{"$f":"Calculate","v":""},{"$f":"Calculate","v":""},{"$f":"Calculate","v":""},{"$f":"Calculate","v":""},{"$f":"Calculate","v":""},{"$f":"Calculate","v":""},{"$f":"Calculate","v":""},"",{"$f":"Calculate","v":""},{"$f":"Calculate","v":""},{"$f":"Calculate","v":""},{"$f":"Calculate","v":""},{"$f":"Calculate","v":""},{"$f":"Calculate","v":""},{"$f":"Calculate","v":""},"",{"$f":"Calculate","v":""},{"$f":"Calculate","v":""},{"$f":"Calculate","v":""},{"$f":"Calculate","v":""},{"$f":"Calculate","v":""},{"$f":"Calculate","v":""},{"$f":"Calculate","v":""},"",{"$f":"Calculate","v":""},{"$f":"Calculate","v":""},{"$f":"Calculate","v":""},{"$f":"Calculate","v":""},{"$f":"Calculate","v":""},{"$f":"Calculate","v":""},{"$f":"Calculate","v":""},"",{"$f":"Calculate","v":""},{"$f":"Calculate","v":""},0,{"$f":"SUMPRODUCT(N(WEEKDAY(ROW(INDIRECT(Firts_DateOfMonth&\":\"&EOMONTH(Firts_DateOfMonth,0))),2)={1,2,3,4,5,6,7})*($D218:$J218=1))","v":0},0,0,0,""]
[214,null,null,null,null,null,null,null,null,null,0,"",{"$f":"Calculate","v":""},{"$f":"Calculate","v":""},{"$f":"Calculate","v":""},{"$f":"Calculate","v":""},{"$f":"Calculate","v":""},{"$f":"Calculate","v":""},{"$f":"Calculate","v":""},"",{"$f":"Calculate","v":""},{"$f":"Calculate","v":""},{"$f":"Calculate","v":""},{"$f":"Calculate","v":""},{"$f":"Calculate","v":""},{"$f":"Calculate","v":""},{"$f":"Calculate","v":""},"",{"$f":"Calculate","v":""},{"$f":"Calculate","v":""},{"$f":"Calculate","v":""},{"$f":"Calculate","v":""},{"$f":"Calculate","v":""},{"$f":"Calculate","v":""},{"$f":"Calculate","v":""},"",{"$f":"Calculate","v":""},{"$f":"Calculate","v":""},{"$f":"Calculate","v":""},{"$f":"Calculate","v":""},{"$f":"Calculate","v":""},{"$f":"Calculate","v":""},{"$f":"Calculate","v":""},"",{"$f":"Calculate","v":""},{"$f":"Calculate","v":""},{"$f":"Calculate","v":""},{"$f":"Calculate","v":""},{"$f":"Calculate","v":""},{"$f":"Calculate","v":""},{"$f":"Calculate","v":""},"",{"$f":"Calculate","v":""},{"$f":"Calculate","v":""},0,{"$f":"SUMPRODUCT(N(WEEKDAY(ROW(INDIRECT(Firts_DateOfMonth&\":\"&EOMONTH(Firts_DateOfMonth,0))),2)={1,2,3,4,5,6,7})*($D219:$J219=1))","v":0},0,0,0,""]
[215,null,null,null,null,null,null,null,null,null,0,"",{"$f":"Calculate","v":""},{"$f":"Calculate","v":""},{"$f":"Calculate","v":""},{"$f":"Calculate","v":""},{"$f":"Calculate","v":""},{"$f":"Calculate","v":""},{"$f":"Calculate","v":""},"",{"$f":"Calculate","v":""},{"$f":"Calculate","v":""},{"$f":"Calculate","v":""},{"$f":"Calculate","v":""},{"$f":"Calculate","v":""},{"$f":"Calculate","v":""},{"$f":"Calculate","v":""},"",{"$f":"Calculate","v":""},{"$f":"Calculate","v":""},{"$f":"Calculate","v":""},{"$f":"Calculate","v":""},{"$f":"Calculate","v":""},{"$f":"Calculate","v":""},{"$f":"Calculate","v":""},"",{"$f":"Calculate","v":""},{"$f":"Calculate","v":""},{"$f":"Calculate","v":""},{"$f":"Calculate","v":""},{"$f":"Calculate","v":""},{"$f":"Calculate","v":""},{"$f":"Calculate","v":""},"",{"$f":"Calculate","v":""},{"$f":"Calculate","v":""},{"$f":"Calculate","v":""},{"$f":"Calculate","v":""},{"$f":"Calculate","v":""},{"$f":"Calculate","v":""},{"$f":"Calculate","v":""},"",{"$f":"Calculate","v":""},{"$f":"Calculate","v":""},0,{"$f":"SUMPRODUCT(N(WEEKDAY(ROW(INDIRECT(Firts_DateOfMonth&\":\"&EOMONTH(Firts_DateOfMonth,0))),2)={1,2,3,4,5,6,7})*($D220:$J220=1))","v":0},0,0,0,""]
[216,null,null,null,null,null,null,null,null,null,0,"",{"$f":"Calculate","v":""},{"$f":"Calculate","v":""},{"$f":"Calculate","v":""},{"$f":"Calculate","v":""},{"$f":"Calculate","v":""},{"$f":"Calculate","v":""},{"$f":"Calculate","v":""},"",{"$f":"Calculate","v":""},{"$f":"Calculate","v":""},{"$f":"Calculate","v":""},{"$f":"Calculate","v":""},{"$f":"Calculate","v":""},{"$f":"Calculate","v":""},{"$f":"Calculate","v":""},"",{"$f":"Calculate","v":""},{"$f":"Calculate","v":""},{"$f":"Calculate","v":""},{"$f":"Calculate","v":""},{"$f":"Calculate","v":""},{"$f":"Calculate","v":""},{"$f":"Calculate","v":""},"",{"$f":"Calculate","v":""},{"$f":"Calculate","v":""},{"$f":"Calculate","v":""},{"$f":"Calculate","v":""},{"$f":"Calculate","v":""},{"$f":"Calculate","v":""},{"$f":"Calculate","v":""},"",{"$f":"Calculate","v":""},{"$f":"Calculate","v":""},{"$f":"Calculate","v":""},{"$f":"Calculate","v":""},{"$f":"Calculate","v":""},{"$f":"Calculate","v":""},{"$f":"Calculate","v":""},"",{"$f":"Calculate","v":""},{"$f":"Calculate","v":""},0,{"$f":"SUMPRODUCT(N(WEEKDAY(ROW(INDIRECT(Firts_DateOfMonth&\":\"&EOMONTH(Firts_DateOfMonth,0))),2)={1,2,3,4,5,6,7})*($D221:$J221=1))","v":0},0,0,0,""]
[217,null,null,null,null,null,null,null,null,null,0,"",{"$f":"Calculate","v":""},{"$f":"Calculate","v":""},{"$f":"Calculate","v":""},{"$f":"Calculate","v":""},{"$f":"Calculate","v":""},{"$f":"Calculate","v":""},{"$f":"Calculate","v":""},"",{"$f":"Calculate","v":""},{"$f":"Calculate","v":""},{"$f":"Calculate","v":""},{"$f":"Calculate","v":""},{"$f":"Calculate","v":""},{"$f":"Calculate","v":""},{"$f":"Calculate","v":""},"",{"$f":"Calculate","v":""},{"$f":"Calculate","v":""},{"$f":"Calculate","v":""},{"$f":"Calculate","v":""},{"$f":"Calculate","v":""},{"$f":"Calculate","v":""},{"$f":"Calculate","v":""},"",{"$f":"Calculate","v":""},{"$f":"Calculate","v":""},{"$f":"Calculate","v":""},{"$f":"Calculate","v":""},{"$f":"Calculate","v":""},{"$f":"Calculate","v":""},{"$f":"Calculate","v":""},"",{"$f":"Calculate","v":""},{"$f":"Calculate","v":""},{"$f":"Calculate","v":""},{"$f":"Calculate","v":""},{"$f":"Calculate","v":""},{"$f":"Calculate","v":""},{"$f":"Calculate","v":""},"",{"$f":"Calculate","v":""},{"$f":"Calculate","v":""},0,{"$f":"SUMPRODUCT(N(WEEKDAY(ROW(INDIRECT(Firts_DateOfMonth&\":\"&EOMONTH(Firts_DateOfMonth,0))),2)={1,2,3,4,5,6,7})*($D222:$J222=1))","v":0},0,0,0,""]
[218,null,null,null,null,null,null,null,null,null,0,"",{"$f":"Calculate","v":""},{"$f":"Calculate","v":""},{"$f":"Calculate","v":""},{"$f":"Calculate","v":""},{"$f":"Calculate","v":""},{"$f":"Calculate","v":""},{"$f":"Calculate","v":""},"",{"$f":"Calculate","v":""},{"$f":"Calculate","v":""},{"$f":"Calculate","v":""},{"$f":"Calculate","v":""},{"$f":"Calculate","v":""},{"$f":"Calculate","v":""},{"$f":"Calculate","v":""},"",{"$f":"Calculate","v":""},{"$f":"Calculate","v":""},{"$f":"Calculate","v":""},{"$f":"Calculate","v":""},{"$f":"Calculate","v":""},{"$f":"Calculate","v":""},{"$f":"Calculate","v":""},"",{"$f":"Calculate","v":""},{"$f":"Calculate","v":""},{"$f":"Calculate","v":""},{"$f":"Calculate","v":""},{"$f":"Calculate","v":""},{"$f":"Calculate","v":""},{"$f":"Calculate","v":""},"",{"$f":"Calculate","v":""},{"$f":"Calculate","v":""},{"$f":"Calculate","v":""},{"$f":"Calculate","v":""},{"$f":"Calculate","v":""},{"$f":"Calculate","v":""},{"$f":"Calculate","v":""},"",{"$f":"Calculate","v":""},{"$f":"Calculate","v":""},0,{"$f":"SUMPRODUCT(N(WEEKDAY(ROW(INDIRECT(Firts_DateOfMonth&\":\"&EOMONTH(Firts_DateOfMonth,0))),2)={1,2,3,4,5,6,7})*($D223:$J223=1))","v":0},0,0,0,""]
[219,null,null,null,null,null,null,null,null,null,0,"",{"$f":"Calculate","v":""},{"$f":"Calculate","v":""},{"$f":"Calculate","v":""},{"$f":"Calculate","v":""},{"$f":"Calculate","v":""},{"$f":"Calculate","v":""},{"$f":"Calculate","v":""},"",{"$f":"Calculate","v":""},{"$f":"Calculate","v":""},{"$f":"Calculate","v":""},{"$f":"Calculate","v":""},{"$f":"Calculate","v":""},{"$f":"Calculate","v":""},{"$f":"Calculate","v":""},"",{"$f":"Calculate","v":""},{"$f":"Calculate","v":""},{"$f":"Calculate","v":""},{"$f":"Calculate","v":""},{"$f":"Calculate","v":""},{"$f":"Calculate","v":""},{"$f":"Calculate","v":""},"",{"$f":"Calculate","v":""},{"$f":"Calculate","v":""},{"$f":"Calculate","v":""},{"$f":"Calculate","v":""},{"$f":"Calculate","v":""},{"$f":"Calculate","v":""},{"$f":"Calculate","v":""},"",{"$f":"Calculate","v":""},{"$f":"Calculate","v":""},{"$f":"Calculate","v":""},{"$f":"Calculate","v":""},{"$f":"Calculate","v":""},{"$f":"Calculate","v":""},{"$f":"Calculate","v":""},"",{"$f":"Calculate","v":""},{"$f":"Calculate","v":""},0,{"$f":"SUMPRODUCT(N(WEEKDAY(ROW(INDIRECT(Firts_DateOfMonth&\":\"&EOMONTH(Firts_DateOfMonth,0))),2)={1,2,3,4,5,6,7})*($D224:$J224=1))","v":0},0,0,0,""]
[220,null,null,null,null,null,null,null,null,null,0,"",{"$f":"Calculate","v":""},{"$f":"Calculate","v":""},{"$f":"Calculate","v":""},{"$f":"Calculate","v":""},{"$f":"Calculate","v":""},{"$f":"Calculate","v":""},{"$f":"Calculate","v":""},"",{"$f":"Calculate","v":""},{"$f":"Calculate","v":""},{"$f":"Calculate","v":""},{"$f":"Calculate","v":""},{"$f":"Calculate","v":""},{"$f":"Calculate","v":""},{"$f":"Calculate","v":""},"",{"$f":"Calculate","v":""},{"$f":"Calculate","v":""},{"$f":"Calculate","v":""},{"$f":"Calculate","v":""},{"$f":"Calculate","v":""},{"$f":"Calculate","v":""},{"$f":"Calculate","v":""},"",{"$f":"Calculate","v":""},{"$f":"Calculate","v":""},{"$f":"Calculate","v":""},{"$f":"Calculate","v":""},{"$f":"Calculate","v":""},{"$f":"Calculate","v":""},{"$f":"Calculate","v":""},"",{"$f":"Calculate","v":""},{"$f":"Calculate","v":""},{"$f":"Calculate","v":""},{"$f":"Calculate","v":""},{"$f":"Calculate","v":""},{"$f":"Calculate","v":""},{"$f":"Calculate","v":""},"",{"$f":"Calculate","v":""},{"$f":"Calculate","v":""},0,{"$f":"SUMPRODUCT(N(WEEKDAY(ROW(INDIRECT(Firts_DateOfMonth&\":\"&EOMONTH(Firts_DateOfMonth,0))),2)={1,2,3,4,5,6,7})*($D225:$J225=1))","v":0},0,0,0,""]
[221,null,null,null,null,null,null,null,null,null,0,"",{"$f":"Calculate","v":""},{"$f":"Calculate","v":""},{"$f":"Calculate","v":""},{"$f":"Calculate","v":""},{"$f":"Calculate","v":""},{"$f":"Calculate","v":""},{"$f":"Calculate","v":""},"",{"$f":"Calculate","v":""},{"$f":"Calculate","v":""},{"$f":"Calculate","v":""},{"$f":"Calculate","v":""},{"$f":"Calculate","v":""},{"$f":"Calculate","v":""},{"$f":"Calculate","v":""},"",{"$f":"Calculate","v":""},{"$f":"Calculate","v":""},{"$f":"Calculate","v":""},{"$f":"Calculate","v":""},{"$f":"Calculate","v":""},{"$f":"Calculate","v":""},{"$f":"Calculate","v":""},"",{"$f":"Calculate","v":""},{"$f":"Calculate","v":""},{"$f":"Calculate","v":""},{"$f":"Calculate","v":""},{"$f":"Calculate","v":""},{"$f":"Calculate","v":""},{"$f":"Calculate","v":""},"",{"$f":"Calculate","v":""},{"$f":"Calculate","v":""},{"$f":"Calculate","v":""},{"$f":"Calculate","v":""},{"$f":"Calculate","v":""},{"$f":"Calculate","v":""},{"$f":"Calculate","v":""},"",{"$f":"Calculate","v":""},{"$f":"Calculate","v":""},0,{"$f":"SUMPRODUCT(N(WEEKDAY(ROW(INDIRECT(Firts_DateOfMonth&\":\"&EOMONTH(Firts_DateOfMonth,0))),2)={1,2,3,4,5,6,7})*($D226:$J226=1))","v":0},0,0,0,""]
[222,null,null,null,null,null,null,null,null,null,0,"",{"$f":"Calculate","v":""},{"$f":"Calculate","v":""},{"$f":"Calculate","v":""},{"$f":"Calculate","v":""},{"$f":"Calculate","v":""},{"$f":"Calculate","v":""},{"$f":"Calculate","v":""},"",{"$f":"Calculate","v":""},{"$f":"Calculate","v":""},{"$f":"Calculate","v":""},{"$f":"Calculate","v":""},{"$f":"Calculate","v":""},{"$f":"Calculate","v":""},{"$f":"Calculate","v":""},"",{"$f":"Calculate","v":""},{"$f":"Calculate","v":""},{"$f":"Calculate","v":""},{"$f":"Calculate","v":""},{"$f":"Calculate","v":""},{"$f":"Calculate","v":""},{"$f":"Calculate","v":""},"",{"$f":"Calculate","v":""},{"$f":"Calculate","v":""},{"$f":"Calculate","v":""},{"$f":"Calculate","v":""},{"$f":"Calculate","v":""},{"$f":"Calculate","v":""},{"$f":"Calculate","v":""},"",{"$f":"Calculate","v":""},{"$f":"Calculate","v":""},{"$f":"Calculate","v":""},{"$f":"Calculate","v":""},{"$f":"Calculate","v":""},{"$f":"Calculate","v":""},{"$f":"Calculate","v":""},"",{"$f":"Calculate","v":""},{"$f":"Calculate","v":""},0,{"$f":"SUMPRODUCT(N(WEEKDAY(ROW(INDIRECT(Firts_DateOfMonth&\":\"&EOMONTH(Firts_DateOfMonth,0))),2)={1,2,3,4,5,6,7})*($D227:$J227=1))","v":0},0,0,0,""]
[223,null,null,null,null,null,null,null,null,null,0,"",{"$f":"Calculate","v":""},{"$f":"Calculate","v":""},{"$f":"Calculate","v":""},{"$f":"Calculate","v":""},{"$f":"Calculate","v":""},{"$f":"Calculate","v":""},{"$f":"Calculate","v":""},"",{"$f":"Calculate","v":""},{"$f":"Calculate","v":""},{"$f":"Calculate","v":""},{"$f":"Calculate","v":""},{"$f":"Calculate","v":""},{"$f":"Calculate","v":""},{"$f":"Calculate","v":""},"",{"$f":"Calculate","v":""},{"$f":"Calculate","v":""},{"$f":"Calculate","v":""},{"$f":"Calculate","v":""},{"$f":"Calculate","v":""},{"$f":"Calculate","v":""},{"$f":"Calculate","v":""},"",{"$f":"Calculate","v":""},{"$f":"Calculate","v":""},{"$f":"Calculate","v":""},{"$f":"Calculate","v":""},{"$f":"Calculate","v":""},{"$f":"Calculate","v":""},{"$f":"Calculate","v":""},"",{"$f":"Calculate","v":""},{"$f":"Calculate","v":""},{"$f":"Calculate","v":""},{"$f":"Calculate","v":""},{"$f":"Calculate","v":""},{"$f":"Calculate","v":""},{"$f":"Calculate","v":""},"",{"$f":"Calculate","v":""},{"$f":"Calculate","v":""},0,{"$f":"SUMPRODUCT(N(WEEKDAY(ROW(INDIRECT(Firts_DateOfMonth&\":\"&EOMONTH(Firts_DateOfMonth,0))),2)={1,2,3,4,5,6,7})*($D228:$J228=1))","v":0},0,0,0,""]
[224,null,null,null,null,null,null,null,null,null,0,"",{"$f":"Calculate","v":""},{"$f":"Calculate","v":""},{"$f":"Calculate","v":""},{"$f":"Calculate","v":""},{"$f":"Calculate","v":""},{"$f":"Calculate","v":""},{"$f":"Calculate","v":""},"",{"$f":"Calculate","v":""},{"$f":"Calculate","v":""},{"$f":"Calculate","v":""},{"$f":"Calculate","v":""},{"$f":"Calculate","v":""},{"$f":"Calculate","v":""},{"$f":"Calculate","v":""},"",{"$f":"Calculate","v":""},{"$f":"Calculate","v":""},{"$f":"Calculate","v":""},{"$f":"Calculate","v":""},{"$f":"Calculate","v":""},{"$f":"Calculate","v":""},{"$f":"Calculate","v":""},"",{"$f":"Calculate","v":""},{"$f":"Calculate","v":""},{"$f":"Calculate","v":""},{"$f":"Calculate","v":""},{"$f":"Calculate","v":""},{"$f":"Calculate","v":""},{"$f":"Calculate","v":""},"",{"$f":"Calculate","v":""},{"$f":"Calculate","v":""},{"$f":"Calculate","v":""},{"$f":"Calculate","v":""},{"$f":"Calculate","v":""},{"$f":"Calculate","v":""},{"$f":"Calculate","v":""},"",{"$f":"Calculate","v":""},{"$f":"Calculate","v":""},0,{"$f":"SUMPRODUCT(N(WEEKDAY(ROW(INDIRECT(Firts_DateOfMonth&\":\"&EOMONTH(Firts_DateOfMonth,0))),2)={1,2,3,4,5,6,7})*($D229:$J229=1))","v":0},0,0,0,""]
[225,null,null,null,null,null,null,null,null,null,0,"",{"$f":"Calculate","v":""},{"$f":"Calculate","v":""},{"$f":"Calculate","v":""},{"$f":"Calculate","v":""},{"$f":"Calculate","v":""},{"$f":"Calculate","v":""},{"$f":"Calculate","v":""},"",{"$f":"Calculate","v":""},{"$f":"Calculate","v":""},{"$f":"Calculate","v":""},{"$f":"Calculate","v":""},{"$f":"Calculate","v":""},{"$f":"Calculate","v":""},{"$f":"Calculate","v":""},"",{"$f":"Calculate","v":""},{"$f":"Calculate","v":""},{"$f":"Calculate","v":""},{"$f":"Calculate","v":""},{"$f":"Calculate","v":""},{"$f":"Calculate","v":""},{"$f":"Calculate","v":""},"",{"$f":"Calculate","v":""},{"$f":"Calculate","v":""},{"$f":"Calculate","v":""},{"$f":"Calculate","v":""},{"$f":"Calculate","v":""},{"$f":"Calculate","v":""},{"$f":"Calculate","v":""},"",{"$f":"Calculate","v":""},{"$f":"Calculate","v":""},{"$f":"Calculate","v":""},{"$f":"Calculate","v":""},{"$f":"Calculate","v":""},{"$f":"Calculate","v":""},{"$f":"Calculate","v":""},"",{"$f":"Calculate","v":""},{"$f":"Calculate","v":""},0,{"$f":"SUMPRODUCT(N(WEEKDAY(ROW(INDIRECT(Firts_DateOfMonth&\":\"&EOMONTH(Firts_DateOfMonth,0))),2)={1,2,3,4,5,6,7})*($D230:$J230=1))","v":0},0,0,0,""]
[226,null,null,null,null,null,null,null,null,null,0,"",{"$f":"Calculate","v":""},{"$f":"Calculate","v":""},{"$f":"Calculate","v":""},{"$f":"Calculate","v":""},{"$f":"Calculate","v":""},{"$f":"Calculate","v":""},{"$f":"Calculate","v":""},"",{"$f":"Calculate","v":""},{"$f":"Calculate","v":""},{"$f":"Calculate","v":""},{"$f":"Calculate","v":""},{"$f":"Calculate","v":""},{"$f":"Calculate","v":""},{"$f":"Calculate","v":""},"",{"$f":"Calculate","v":""},{"$f":"Calculate","v":""},{"$f":"Calculate","v":""},{"$f":"Calculate","v":""},{"$f":"Calculate","v":""},{"$f":"Calculate","v":""},{"$f":"Calculate","v":""},"",{"$f":"Calculate","v":""},{"$f":"Calculate","v":""},{"$f":"Calculate","v":""},{"$f":"Calculate","v":""},{"$f":"Calculate","v":""},{"$f":"Calculate","v":""},{"$f":"Calculate","v":""},"",{"$f":"Calculate","v":""},{"$f":"Calculate","v":""},{"$f":"Calculate","v":""},{"$f":"Calculate","v":""},{"$f":"Calculate","v":""},{"$f":"Calculate","v":""},{"$f":"Calculate","v":""},"",{"$f":"Calculate","v":""},{"$f":"Calculate","v":""},0,{"$f":"SUMPRODUCT(N(WEEKDAY(ROW(INDIRECT(Firts_DateOfMonth&\":\"&EOMONTH(Firts_DateOfMonth,0))),2)={1,2,3,4,5,6,7})*($D231:$J231=1))","v":0},0,0,0,""]
[227,null,null,null,null,null,null,null,null,null,0,"",{"$f":"Calculate","v":""},{"$f":"Calculate","v":""},{"$f":"Calculate","v":""},{"$f":"Calculate","v":""},{"$f":"Calculate","v":""},{"$f":"Calculate","v":""},{"$f":"Calculate","v":""},"",{"$f":"Calculate","v":""},{"$f":"Calculate","v":""},{"$f":"Calculate","v":""},{"$f":"Calculate","v":""},{"$f":"Calculate","v":""},{"$f":"Calculate","v":""},{"$f":"Calculate","v":""},"",{"$f":"Calculate","v":""},{"$f":"Calculate","v":""},{"$f":"Calculate","v":""},{"$f":"Calculate","v":""},{"$f":"Calculate","v":""},{"$f":"Calculate","v":""},{"$f":"Calculate","v":""},"",{"$f":"Calculate","v":""},{"$f":"Calculate","v":""},{"$f":"Calculate","v":""},{"$f":"Calculate","v":""},{"$f":"Calculate","v":""},{"$f":"Calculate","v":""},{"$f":"Calculate","v":""},"",{"$f":"Calculate","v":""},{"$f":"Calculate","v":""},{"$f":"Calculate","v":""},{"$f":"Calculate","v":""},{"$f":"Calculate","v":""},{"$f":"Calculate","v":""},{"$f":"Calculate","v":""},"",{"$f":"Calculate","v":""},{"$f":"Calculate","v":""},0,{"$f":"SUMPRODUCT(N(WEEKDAY(ROW(INDIRECT(Firts_DateOfMonth&\":\"&EOMONTH(Firts_DateOfMonth,0))),2)={1,2,3,4,5,6,7})*($D232:$J232=1))","v":0},0,0,0,""]
[228,null,null,null,null,null,null,null,null,null,0,"",{"$f":"Calculate","v":""},{"$f":"Calculate","v":""},{"$f":"Calculate","v":""},{"$f":"Calculate","v":""},{"$f":"Calculate","v":""},{"$f":"Calculate","v":""},{"$f":"Calculate","v":""},"",{"$f":"Calculate","v":""},{"$f":"Calculate","v":""},{"$f":"Calculate","v":""},{"$f":"Calculate","v":""},{"$f":"Calculate","v":""},{"$f":"Calculate","v":""},{"$f":"Calculate","v":""},"",{"$f":"Calculate","v":""},{"$f":"Calculate","v":""},{"$f":"Calculate","v":""},{"$f":"Calculate","v":""},{"$f":"Calculate","v":""},{"$f":"Calculate","v":""},{"$f":"Calculate","v":""},"",{"$f":"Calculate","v":""},{"$f":"Calculate","v":""},{"$f":"Calculate","v":""},{"$f":"Calculate","v":""},{"$f":"Calculate","v":""},{"$f":"Calculate","v":""},{"$f":"Calculate","v":""},"",{"$f":"Calculate","v":""},{"$f":"Calculate","v":""},{"$f":"Calculate","v":""},{"$f":"Calculate","v":""},{"$f":"Calculate","v":""},{"$f":"Calculate","v":""},{"$f":"Calculate","v":""},"",{"$f":"Calculate","v":""},{"$f":"Calculate","v":""},0,{"$f":"SUMPRODUCT(N(WEEKDAY(ROW(INDIRECT(Firts_DateOfMonth&\":\"&EOMONTH(Firts_DateOfMonth,0))),2)={1,2,3,4,5,6,7})*($D233:$J233=1))","v":0},0,0,0,""]
[229,null,null,null,null,null,null,null,null,null,0,"",{"$f":"Calculate","v":""},{"$f":"Calculate","v":""},{"$f":"Calculate","v":""},{"$f":"Calculate","v":""},{"$f":"Calculate","v":""},{"$f":"Calculate","v":""},{"$f":"Calculate","v":""},"",{"$f":"Calculate","v":""},{"$f":"Calculate","v":""},{"$f":"Calculate","v":""},{"$f":"Calculate","v":""},{"$f":"Calculate","v":""},{"$f":"Calculate","v":""},{"$f":"Calculate","v":""},"",{"$f":"Calculate","v":""},{"$f":"Calculate","v":""},{"$f":"Calculate","v":""},{"$f":"Calculate","v":""},{"$f":"Calculate","v":""},{"$f":"Calculate","v":""},{"$f":"Calculate","v":""},"",{"$f":"Calculate","v":""},{"$f":"Calculate","v":""},{"$f":"Calculate","v":""},{"$f":"Calculate","v":""},{"$f":"Calculate","v":""},{"$f":"Calculate","v":""},{"$f":"Calculate","v":""},"",{"$f":"Calculate","v":""},{"$f":"Calculate","v":""},{"$f":"Calculate","v":""},{"$f":"Calculate","v":""},{"$f":"Calculate","v":""},{"$f":"Calculate","v":""},{"$f":"Calculate","v":""},"",{"$f":"Calculate","v":""},{"$f":"Calculate","v":""},0,{"$f":"SUMPRODUCT(N(WEEKDAY(ROW(INDIRECT(Firts_DateOfMonth&\":\"&EOMONTH(Firts_DateOfMonth,0))),2)={1,2,3,4,5,6,7})*($D234:$J234=1))","v":0},0,0,0,""]
[230,null,null,null,null,null,null,null,null,null,0,"",{"$f":"Calculate","v":""},{"$f":"Calculate","v":""},{"$f":"Calculate","v":""},{"$f":"Calculate","v":""},{"$f":"Calculate","v":""},{"$f":"Calculate","v":""},{"$f":"Calculate","v":""},"",{"$f":"Calculate","v":""},{"$f":"Calculate","v":""},{"$f":"Calculate","v":""},{"$f":"Calculate","v":""},{"$f":"Calculate","v":""},{"$f":"Calculate","v":""},{"$f":"Calculate","v":""},"",{"$f":"Calculate","v":""},{"$f":"Calculate","v":""},{"$f":"Calculate","v":""},{"$f":"Calculate","v":""},{"$f":"Calculate","v":""},{"$f":"Calculate","v":""},{"$f":"Calculate","v":""},"",{"$f":"Calculate","v":""},{"$f":"Calculate","v":""},{"$f":"Calculate","v":""},{"$f":"Calculate","v":""},{"$f":"Calculate","v":""},{"$f":"Calculate","v":""},{"$f":"Calculate","v":""},"",{"$f":"Calculate","v":""},{"$f":"Calculate","v":""},{"$f":"Calculate","v":""},{"$f":"Calculate","v":""},{"$f":"Calculate","v":""},{"$f":"Calculate","v":""},{"$f":"Calculate","v":""},"",{"$f":"Calculate","v":""},{"$f":"Calculate","v":""},0,{"$f":"SUMPRODUCT(N(WEEKDAY(ROW(INDIRECT(Firts_DateOfMonth&\":\"&EOMONTH(Firts_DateOfMonth,0))),2)={1,2,3,4,5,6,7})*($D235:$J235=1))","v":0},0,0,0,""]
[231,null,null,null,null,null,null,null,null,null,0,"",{"$f":"Calculate","v":""},{"$f":"Calculate","v":""},{"$f":"Calculate","v":""},{"$f":"Calculate","v":""},{"$f":"Calculate","v":""},{"$f":"Calculate","v":""},{"$f":"Calculate","v":""},"",{"$f":"Calculate","v":""},{"$f":"Calculate","v":""},{"$f":"Calculate","v":""},{"$f":"Calculate","v":""},{"$f":"Calculate","v":""},{"$f":"Calculate","v":""},{"$f":"Calculate","v":""},"",{"$f":"Calculate","v":""},{"$f":"Calculate","v":""},{"$f":"Calculate","v":""},{"$f":"Calculate","v":""},{"$f":"Calculate","v":""},{"$f":"Calculate","v":""},{"$f":"Calculate","v":""},"",{"$f":"Calculate","v":""},{"$f":"Calculate","v":""},{"$f":"Calculate","v":""},{"$f":"Calculate","v":""},{"$f":"Calculate","v":""},{"$f":"Calculate","v":""},{"$f":"Calculate","v":""},"",{"$f":"Calculate","v":""},{"$f":"Calculate","v":""},{"$f":"Calculate","v":""},{"$f":"Calculate","v":""},{"$f":"Calculate","v":""},{"$f":"Calculate","v":""},{"$f":"Calculate","v":""},"",{"$f":"Calculate","v":""},{"$f":"Calculate","v":""},0,{"$f":"SUMPRODUCT(N(WEEKDAY(ROW(INDIRECT(Firts_DateOfMonth&\":\"&EOMONTH(Firts_DateOfMonth,0))),2)={1,2,3,4,5,6,7})*($D236:$J236=1))","v":0},0,0,0,""]
[232,null,null,null,null,null,null,null,null,null,0,"",{"$f":"Calculate","v":""},{"$f":"Calculate","v":""},{"$f":"Calculate","v":""},{"$f":"Calculate","v":""},{"$f":"Calculate","v":""},{"$f":"Calculate","v":""},{"$f":"Calculate","v":""},"",{"$f":"Calculate","v":""},{"$f":"Calculate","v":""},{"$f":"Calculate","v":""},{"$f":"Calculate","v":""},{"$f":"Calculate","v":""},{"$f":"Calculate","v":""},{"$f":"Calculate","v":""},"",{"$f":"Calculate","v":""},{"$f":"Calculate","v":""},{"$f":"Calculate","v":""},{"$f":"Calculate","v":""},{"$f":"Calculate","v":""},{"$f":"Calculate","v":""},{"$f":"Calculate","v":""},"",{"$f":"Calculate","v":""},{"$f":"Calculate","v":""},{"$f":"Calculate","v":""},{"$f":"Calculate","v":""},{"$f":"Calculate","v":""},{"$f":"Calculate","v":""},{"$f":"Calculate","v":""},"",{"$f":"Calculate","v":""},{"$f":"Calculate","v":""},{"$f":"Calculate","v":""},{"$f":"Calculate","v":""},{"$f":"Calculate","v":""},{"$f":"Calculate","v":""},{"$f":"Calculate","v":""},"",{"$f":"Calculate","v":""},{"$f":"Calculate","v":""},0,{"$f":"SUMPRODUCT(N(WEEKDAY(ROW(INDIRECT(Firts_DateOfMonth&\":\"&EOMONTH(Firts_DateOfMonth,0))),2)={1,2,3,4,5,6,7})*($D237:$J237=1))","v":0},0,0,0,""]
[233,null,null,null,null,null,null,null,null,null,0,"",{"$f":"Calculate","v":""},{"$f":"Calculate","v":""},{"$f":"Calculate","v":""},{"$f":"Calculate","v":""},{"$f":"Calculate","v":""},{"$f":"Calculate","v":""},{"$f":"Calculate","v":""},"",{"$f":"Calculate","v":""},{"$f":"Calculate","v":""},{"$f":"Calculate","v":""},{"$f":"Calculate","v":""},{"$f":"Calculate","v":""},{"$f":"Calculate","v":""},{"$f":"Calculate","v":""},"",{"$f":"Calculate","v":""},{"$f":"Calculate","v":""},{"$f":"Calculate","v":""},{"$f":"Calculate","v":""},{"$f":"Calculate","v":""},{"$f":"Calculate","v":""},{"$f":"Calculate","v":""},"",{"$f":"Calculate","v":""},{"$f":"Calculate","v":""},{"$f":"Calculate","v":""},{"$f":"Calculate","v":""},{"$f":"Calculate","v":""},{"$f":"Calculate","v":""},{"$f":"Calculate","v":""},"",{"$f":"Calculate","v":""},{"$f":"Calculate","v":""},{"$f":"Calculate","v":""},{"$f":"Calculate","v":""},{"$f":"Calculate","v":""},{"$f":"Calculate","v":""},{"$f":"Calculate","v":""},"",{"$f":"Calculate","v":""},{"$f":"Calculate","v":""},0,{"$f":"SUMPRODUCT(N(WEEKDAY(ROW(INDIRECT(Firts_DateOfMonth&\":\"&EOMONTH(Firts_DateOfMonth,0))),2)={1,2,3,4,5,6,7})*($D238:$J238=1))","v":0},0,0,0,""]
[234,null,null,null,null,null,null,null,null,null,0,"",{"$f":"Calculate","v":""},{"$f":"Calculate","v":""},{"$f":"Calculate","v":""},{"$f":"Calculate","v":""},{"$f":"Calculate","v":""},{"$f":"Calculate","v":""},{"$f":"Calculate","v":""},"",{"$f":"Calculate","v":""},{"$f":"Calculate","v":""},{"$f":"Calculate","v":""},{"$f":"Calculate","v":""},{"$f":"Calculate","v":""},{"$f":"Calculate","v":""},{"$f":"Calculate","v":""},"",{"$f":"Calculate","v":""},{"$f":"Calculate","v":""},{"$f":"Calculate","v":""},{"$f":"Calculate","v":""},{"$f":"Calculate","v":""},{"$f":"Calculate","v":""},{"$f":"Calculate","v":""},"",{"$f":"Calculate","v":""},{"$f":"Calculate","v":""},{"$f":"Calculate","v":""},{"$f":"Calculate","v":""},{"$f":"Calculate","v":""},{"$f":"Calculate","v":""},{"$f":"Calculate","v":""},"",{"$f":"Calculate","v":""},{"$f":"Calculate","v":""},{"$f":"Calculate","v":""},{"$f":"Calculate","v":""},{"$f":"Calculate","v":""},{"$f":"Calculate","v":""},{"$f":"Calculate","v":""},"",{"$f":"Calculate","v":""},{"$f":"Calculate","v":""},0,{"$f":"SUMPRODUCT(N(WEEKDAY(ROW(INDIRECT(Firts_DateOfMonth&\":\"&EOMONTH(Firts_DateOfMonth,0))),2)={1,2,3,4,5,6,7})*($D239:$J239=1))","v":0},0,0,0,""]
[235,null,null,null,null,null,null,null,null,null,0,"",{"$f":"Calculate","v":""},{"$f":"Calculate","v":""},{"$f":"Calculate","v":""},{"$f":"Calculate","v":""},{"$f":"Calculate","v":""},{"$f":"Calculate","v":""},{"$f":"Calculate","v":""},"",{"$f":"Calculate","v":""},{"$f":"Calculate","v":""},{"$f":"Calculate","v":""},{"$f":"Calculate","v":""},{"$f":"Calculate","v":""},{"$f":"Calculate","v":""},{"$f":"Calculate","v":""},"",{"$f":"Calculate","v":""},{"$f":"Calculate","v":""},{"$f":"Calculate","v":""},{"$f":"Calculate","v":""},{"$f":"Calculate","v":""},{"$f":"Calculate","v":""},{"$f":"Calculate","v":""},"",{"$f":"Calculate","v":""},{"$f":"Calculate","v":""},{"$f":"Calculate","v":""},{"$f":"Calculate","v":""},{"$f":"Calculate","v":""},{"$f":"Calculate","v":""},{"$f":"Calculate","v":""},"",{"$f":"Calculate","v":""},{"$f":"Calculate","v":""},{"$f":"Calculate","v":""},{"$f":"Calculate","v":""},{"$f":"Calculate","v":""},{"$f":"Calculate","v":""},{"$f":"Calculate","v":""},"",{"$f":"Calculate","v":""},{"$f":"Calculate","v":""},0,{"$f":"SUMPRODUCT(N(WEEKDAY(ROW(INDIRECT(Firts_DateOfMonth&\":\"&EOMONTH(Firts_DateOfMonth,0))),2)={1,2,3,4,5,6,7})*($D240:$J240=1))","v":0},0,0,0,""]
[236,null,null,null,null,null,null,null,null,null,0,"",{"$f":"Calculate","v":""},{"$f":"Calculate","v":""},{"$f":"Calculate","v":""},{"$f":"Calculate","v":""},{"$f":"Calculate","v":""},{"$f":"Calculate","v":""},{"$f":"Calculate","v":""},"",{"$f":"Calculate","v":""},{"$f":"Calculate","v":""},{"$f":"Calculate","v":""},{"$f":"Calculate","v":""},{"$f":"Calculate","v":""},{"$f":"Calculate","v":""},{"$f":"Calculate","v":""},"",{"$f":"Calculate","v":""},{"$f":"Calculate","v":""},{"$f":"Calculate","v":""},{"$f":"Calculate","v":""},{"$f":"Calculate","v":""},{"$f":"Calculate","v":""},{"$f":"Calculate","v":""},"",{"$f":"Calculate","v":""},{"$f":"Calculate","v":""},{"$f":"Calculate","v":""},{"$f":"Calculate","v":""},{"$f":"Calculate","v":""},{"$f":"Calculate","v":""},{"$f":"Calculate","v":""},"",{"$f":"Calculate","v":""},{"$f":"Calculate","v":""},{"$f":"Calculate","v":""},{"$f":"Calculate","v":""},{"$f":"Calculate","v":""},{"$f":"Calculate","v":""},{"$f":"Calculate","v":""},"",{"$f":"Calculate","v":""},{"$f":"Calculate","v":""},0,{"$f":"SUMPRODUCT(N(WEEKDAY(ROW(INDIRECT(Firts_DateOfMonth&\":\"&EOMONTH(Firts_DateOfMonth,0))),2)={1,2,3,4,5,6,7})*($D241:$J241=1))","v":0},0,0,0,""]
[237,null,null,null,null,null,null,null,null,null,0,"",{"$f":"Calculate","v":""},{"$f":"Calculate","v":""},{"$f":"Calculate","v":""},{"$f":"Calculate","v":""},{"$f":"Calculate","v":""},{"$f":"Calculate","v":""},{"$f":"Calculate","v":""},"",{"$f":"Calculate","v":""},{"$f":"Calculate","v":""},{"$f":"Calculate","v":""},{"$f":"Calculate","v":""},{"$f":"Calculate","v":""},{"$f":"Calculate","v":""},{"$f":"Calculate","v":""},"",{"$f":"Calculate","v":""},{"$f":"Calculate","v":""},{"$f":"Calculate","v":""},{"$f":"Calculate","v":""},{"$f":"Calculate","v":""},{"$f":"Calculate","v":""},{"$f":"Calculate","v":""},"",{"$f":"Calculate","v":""},{"$f":"Calculate","v":""},{"$f":"Calculate","v":""},{"$f":"Calculate","v":""},{"$f":"Calculate","v":""},{"$f":"Calculate","v":""},{"$f":"Calculate","v":""},"",{"$f":"Calculate","v":""},{"$f":"Calculate","v":""},{"$f":"Calculate","v":""},{"$f":"Calculate","v":""},{"$f":"Calculate","v":""},{"$f":"Calculate","v":""},{"$f":"Calculate","v":""},"",{"$f":"Calculate","v":""},{"$f":"Calculate","v":""},0,{"$f":"SUMPRODUCT(N(WEEKDAY(ROW(INDIRECT(Firts_DateOfMonth&\":\"&EOMONTH(Firts_DateOfMonth,0))),2)={1,2,3,4,5,6,7})*($D242:$J242=1))","v":0},0,0,0,""]
[238,null,null,null,null,null,null,null,null,null,0,"",{"$f":"Calculate","v":""},{"$f":"Calculate","v":""},{"$f":"Calculate","v":""},{"$f":"Calculate","v":""},{"$f":"Calculate","v":""},{"$f":"Calculate","v":""},{"$f":"Calculate","v":""},"",{"$f":"Calculate","v":""},{"$f":"Calculate","v":""},{"$f":"Calculate","v":""},{"$f":"Calculate","v":""},{"$f":"Calculate","v":""},{"$f":"Calculate","v":""},{"$f":"Calculate","v":""},"",{"$f":"Calculate","v":""},{"$f":"Calculate","v":""},{"$f":"Calculate","v":""},{"$f":"Calculate","v":""},{"$f":"Calculate","v":""},{"$f":"Calculate","v":""},{"$f":"Calculate","v":""},"",{"$f":"Calculate","v":""},{"$f":"Calculate","v":""},{"$f":"Calculate","v":""},{"$f":"Calculate","v":""},{"$f":"Calculate","v":""},{"$f":"Calculate","v":""},{"$f":"Calculate","v":""},"",{"$f":"Calculate","v":""},{"$f":"Calculate","v":""},{"$f":"Calculate","v":""},{"$f":"Calculate","v":""},{"$f":"Calculate","v":""},{"$f":"Calculate","v":""},{"$f":"Calculate","v":""},"",{"$f":"Calculate","v":""},{"$f":"Calculate","v":""},0,{"$f":"SUMPRODUCT(N(WEEKDAY(ROW(INDIRECT(Firts_DateOfMonth&\":\"&EOMONTH(Firts_DateOfMonth,0))),2)={1,2,3,4,5,6,7})*($D243:$J243=1))","v":0},0,0,0,""]
[239,null,null,null,null,null,null,null,null,null,0,"",{"$f":"Calculate","v":""},{"$f":"Calculate","v":""},{"$f":"Calculate","v":""},{"$f":"Calculate","v":""},{"$f":"Calculate","v":""},{"$f":"Calculate","v":""},{"$f":"Calculate","v":""},"",{"$f":"Calculate","v":""},{"$f":"Calculate","v":""},{"$f":"Calculate","v":""},{"$f":"Calculate","v":""},{"$f":"Calculate","v":""},{"$f":"Calculate","v":""},{"$f":"Calculate","v":""},"",{"$f":"Calculate","v":""},{"$f":"Calculate","v":""},{"$f":"Calculate","v":""},{"$f":"Calculate","v":""},{"$f":"Calculate","v":""},{"$f":"Calculate","v":""},{"$f":"Calculate","v":""},"",{"$f":"Calculate","v":""},{"$f":"Calculate","v":""},{"$f":"Calculate","v":""},{"$f":"Calculate","v":""},{"$f":"Calculate","v":""},{"$f":"Calculate","v":""},{"$f":"Calculate","v":""},"",{"$f":"Calculate","v":""},{"$f":"Calculate","v":""},{"$f":"Calculate","v":""},{"$f":"Calculate","v":""},{"$f":"Calculate","v":""},{"$f":"Calculate","v":""},{"$f":"Calculate","v":""},"",{"$f":"Calculate","v":""},{"$f":"Calculate","v":""},0,{"$f":"SUMPRODUCT(N(WEEKDAY(ROW(INDIRECT(Firts_DateOfMonth&\":\"&EOMONTH(Firts_DateOfMonth,0))),2)={1,2,3,4,5,6,7})*($D244:$J244=1))","v":0},0,0,0,""]
[240,null,null,null,null,null,null,null,null,null,0,"",{"$f":"Calculate","v":""},{"$f":"Calculate","v":""},{"$f":"Calculate","v":""},{"$f":"Calculate","v":""},{"$f":"Calculate","v":""},{"$f":"Calculate","v":""},{"$f":"Calculate","v":""},"",{"$f":"Calculate","v":""},{"$f":"Calculate","v":""},{"$f":"Calculate","v":""},{"$f":"Calculate","v":""},{"$f":"Calculate","v":""},{"$f":"Calculate","v":""},{"$f":"Calculate","v":""},"",{"$f":"Calculate","v":""},{"$f":"Calculate","v":""},{"$f":"Calculate","v":""},{"$f":"Calculate","v":""},{"$f":"Calculate","v":""},{"$f":"Calculate","v":""},{"$f":"Calculate","v":""},"",{"$f":"Calculate","v":""},{"$f":"Calculate","v":""},{"$f":"Calculate","v":""},{"$f":"Calculate","v":""},{"$f":"Calculate","v":""},{"$f":"Calculate","v":""},{"$f":"Calculate","v":""},"",{"$f":"Calculate","v":""},{"$f":"Calculate","v":""},{"$f":"Calculate","v":""},{"$f":"Calculate","v":""},{"$f":"Calculate","v":""},{"$f":"Calculate","v":""},{"$f":"Calculate","v":""},"",{"$f":"Calculate","v":""},{"$f":"Calculate","v":""},0,{"$f":"SUMPRODUCT(N(WEEKDAY(ROW(INDIRECT(Firts_DateOfMonth&\":\"&EOMONTH(Firts_DateOfMonth,0))),2)={1,2,3,4,5,6,7})*($D245:$J245=1))","v":0},0,0,0,""]
[241,null,null,null,null,null,null,null,null,null,0,"",{"$f":"Calculate","v":""},{"$f":"Calculate","v":""},{"$f":"Calculate","v":""},{"$f":"Calculate","v":""},{"$f":"Calculate","v":""},{"$f":"Calculate","v":""},{"$f":"Calculate","v":""},"",{"$f":"Calculate","v":""},{"$f":"Calculate","v":""},{"$f":"Calculate","v":""},{"$f":"Calculate","v":""},{"$f":"Calculate","v":""},{"$f":"Calculate","v":""},{"$f":"Calculate","v":""},"",{"$f":"Calculate","v":""},{"$f":"Calculate","v":""},{"$f":"Calculate","v":""},{"$f":"Calculate","v":""},{"$f":"Calculate","v":""},{"$f":"Calculate","v":""},{"$f":"Calculate","v":""},"",{"$f":"Calculate","v":""},{"$f":"Calculate","v":""},{"$f":"Calculate","v":""},{"$f":"Calculate","v":""},{"$f":"Calculate","v":""},{"$f":"Calculate","v":""},{"$f":"Calculate","v":""},"",{"$f":"Calculate","v":""},{"$f":"Calculate","v":""},{"$f":"Calculate","v":""},{"$f":"Calculate","v":""},{"$f":"Calculate","v":""},{"$f":"Calculate","v":""},{"$f":"Calculate","v":""},"",{"$f":"Calculate","v":""},{"$f":"Calculate","v":""},0,{"$f":"SUMPRODUCT(N(WEEKDAY(ROW(INDIRECT(Firts_DateOfMonth&\":\"&EOMONTH(Firts_DateOfMonth,0))),2)={1,2,3,4,5,6,7})*($D246:$J246=1))","v":0},0,0,0,""]
[242,null,null,null,null,null,null,null,null,null,0,"",{"$f":"Calculate","v":""},{"$f":"Calculate","v":""},{"$f":"Calculate","v":""},{"$f":"Calculate","v":""},{"$f":"Calculate","v":""},{"$f":"Calculate","v":""},{"$f":"Calculate","v":""},"",{"$f":"Calculate","v":""},{"$f":"Calculate","v":""},{"$f":"Calculate","v":""},{"$f":"Calculate","v":""},{"$f":"Calculate","v":""},{"$f":"Calculate","v":""},{"$f":"Calculate","v":""},"",{"$f":"Calculate","v":""},{"$f":"Calculate","v":""},{"$f":"Calculate","v":""},{"$f":"Calculate","v":""},{"$f":"Calculate","v":""},{"$f":"Calculate","v":""},{"$f":"Calculate","v":""},"",{"$f":"Calculate","v":""},{"$f":"Calculate","v":""},{"$f":"Calculate","v":""},{"$f":"Calculate","v":""},{"$f":"Calculate","v":""},{"$f":"Calculate","v":""},{"$f":"Calculate","v":""},"",{"$f":"Calculate","v":""},{"$f":"Calculate","v":""},{"$f":"Calculate","v":""},{"$f":"Calculate","v":""},{"$f":"Calculate","v":""},{"$f":"Calculate","v":""},{"$f":"Calculate","v":""},"",{"$f":"Calculate","v":""},{"$f":"Calculate","v":""},0,{"$f":"SUMPRODUCT(N(WEEKDAY(ROW(INDIRECT(Firts_DateOfMonth&\":\"&EOMONTH(Firts_DateOfMonth,0))),2)={1,2,3,4,5,6,7})*($D247:$J247=1))","v":0},0,0,0,""]
[243,null,null,null,null,null,null,null,null,null,0,"",{"$f":"Calculate","v":""},{"$f":"Calculate","v":""},{"$f":"Calculate","v":""},{"$f":"Calculate","v":""},{"$f":"Calculate","v":""},{"$f":"Calculate","v":""},{"$f":"Calculate","v":""},"",{"$f":"Calculate","v":""},{"$f":"Calculate","v":""},{"$f":"Calculate","v":""},{"$f":"Calculate","v":""},{"$f":"Calculate","v":""},{"$f":"Calculate","v":""},{"$f":"Calculate","v":""},"",{"$f":"Calculate","v":""},{"$f":"Calculate","v":""},{"$f":"Calculate","v":""},{"$f":"Calculate","v":""},{"$f":"Calculate","v":""},{"$f":"Calculate","v":""},{"$f":"Calculate","v":""},"",{"$f":"Calculate","v":""},{"$f":"Calculate","v":""},{"$f":"Calculate","v":""},{"$f":"Calculate","v":""},{"$f":"Calculate","v":""},{"$f":"Calculate","v":""},{"$f":"Calculate","v":""},"",{"$f":"Calculate","v":""},{"$f":"Calculate","v":""},{"$f":"Calculate","v":""},{"$f":"Calculate","v":""},{"$f":"Calculate","v":""},{"$f":"Calculate","v":""},{"$f":"Calculate","v":""},"",{"$f":"Calculate","v":""},{"$f":"Calculate","v":""},0,{"$f":"SUMPRODUCT(N(WEEKDAY(ROW(INDIRECT(Firts_DateOfMonth&\":\"&EOMONTH(Firts_DateOfMonth,0))),2)={1,2,3,4,5,6,7})*($D248:$J248=1))","v":0},0,0,0,""]
[244,null,null,null,null,null,null,null,null,null,0,"",{"$f":"Calculate","v":""},{"$f":"Calculate","v":""},{"$f":"Calculate","v":""},{"$f":"Calculate","v":""},{"$f":"Calculate","v":""},{"$f":"Calculate","v":""},{"$f":"Calculate","v":""},"",{"$f":"Calculate","v":""},{"$f":"Calculate","v":""},{"$f":"Calculate","v":""},{"$f":"Calculate","v":""},{"$f":"Calculate","v":""},{"$f":"Calculate","v":""},{"$f":"Calculate","v":""},"",{"$f":"Calculate","v":""},{"$f":"Calculate","v":""},{"$f":"Calculate","v":""},{"$f":"Calculate","v":""},{"$f":"Calculate","v":""},{"$f":"Calculate","v":""},{"$f":"Calculate","v":""},"",{"$f":"Calculate","v":""},{"$f":"Calculate","v":""},{"$f":"Calculate","v":""},{"$f":"Calculate","v":""},{"$f":"Calculate","v":""},{"$f":"Calculate","v":""},{"$f":"Calculate","v":""},"",{"$f":"Calculate","v":""},{"$f":"Calculate","v":""},{"$f":"Calculate","v":""},{"$f":"Calculate","v":""},{"$f":"Calculate","v":""},{"$f":"Calculate","v":""},{"$f":"Calculate","v":""},"",{"$f":"Calculate","v":""},{"$f":"Calculate","v":""},0,{"$f":"SUMPRODUCT(N(WEEKDAY(ROW(INDIRECT(Firts_DateOfMonth&\":\"&EOMONTH(Firts_DateOfMonth,0))),2)={1,2,3,4,5,6,7})*($D249:$J249=1))","v":0},0,0,0,""]
[245,null,null,null,null,null,null,null,null,null,0,"",{"$f":"Calculate","v":""},{"$f":"Calculate","v":""},{"$f":"Calculate","v":""},{"$f":"Calculate","v":""},{"$f":"Calculate","v":""},{"$f":"Calculate","v":""},{"$f":"Calculate","v":""},"",{"$f":"Calculate","v":""},{"$f":"Calculate","v":""},{"$f":"Calculate","v":""},{"$f":"Calculate","v":""},{"$f":"Calculate","v":""},{"$f":"Calculate","v":""},{"$f":"Calculate","v":""},"",{"$f":"Calculate","v":""},{"$f":"Calculate","v":""},{"$f":"Calculate","v":""},{"$f":"Calculate","v":""},{"$f":"Calculate","v":""},{"$f":"Calculate","v":""},{"$f":"Calculate","v":""},"",{"$f":"Calculate","v":""},{"$f":"Calculate","v":""},{"$f":"Calculate","v":""},{"$f":"Calculate","v":""},{"$f":"Calculate","v":""},{"$f":"Calculate","v":""},{"$f":"Calculate","v":""},"",{"$f":"Calculate","v":""},{"$f":"Calculate","v":""},{"$f":"Calculate","v":""},{"$f":"Calculate","v":""},{"$f":"Calculate","v":""},{"$f":"Calculate","v":""},{"$f":"Calculate","v":""},"",{"$f":"Calculate","v":""},{"$f":"Calculate","v":""},0,{"$f":"SUMPRODUCT(N(WEEKDAY(ROW(INDIRECT(Firts_DateOfMonth&\":\"&EOMONTH(Firts_DateOfMonth,0))),2)={1,2,3,4,5,6,7})*($D250:$J250=1))","v":0},0,0,0,""]
[246,null,null,null,null,null,null,null,null,null,0,"",{"$f":"Calculate","v":""},{"$f":"Calculate","v":""},{"$f":"Calculate","v":""},{"$f":"Calculate","v":""},{"$f":"Calculate","v":""},{"$f":"Calculate","v":""},{"$f":"Calculate","v":""},"",{"$f":"Calculate","v":""},{"$f":"Calculate","v":""},{"$f":"Calculate","v":""},{"$f":"Calculate","v":""},{"$f":"Calculate","v":""},{"$f":"Calculate","v":""},{"$f":"Calculate","v":""},"",{"$f":"Calculate","v":""},{"$f":"Calculate","v":""},{"$f":"Calculate","v":""},{"$f":"Calculate","v":""},{"$f":"Calculate","v":""},{"$f":"Calculate","v":""},{"$f":"Calculate","v":""},"",{"$f":"Calculate","v":""},{"$f":"Calculate","v":""},{"$f":"Calculate","v":""},{"$f":"Calculate","v":""},{"$f":"Calculate","v":""},{"$f":"Calculate","v":""},{"$f":"Calculate","v":""},"",{"$f":"Calculate","v":""},{"$f":"Calculate","v":""},{"$f":"Calculate","v":""},{"$f":"Calculate","v":""},{"$f":"Calculate","v":""},{"$f":"Calculate","v":""},{"$f":"Calculate","v":""},"",{"$f":"Calculate","v":""},{"$f":"Calculate","v":""},0,{"$f":"SUMPRODUCT(N(WEEKDAY(ROW(INDIRECT(Firts_DateOfMonth&\":\"&EOMONTH(Firts_DateOfMonth,0))),2)={1,2,3,4,5,6,7})*($D251:$J251=1))","v":0},0,0,0,""]
[247,null,null,null,null,null,null,null,null,null,0,"",{"$f":"Calculate","v":""},{"$f":"Calculate","v":""},{"$f":"Calculate","v":""},{"$f":"Calculate","v":""},{"$f":"Calculate","v":""},{"$f":"Calculate","v":""},{"$f":"Calculate","v":""},"",{"$f":"Calculate","v":""},{"$f":"Calculate","v":""},{"$f":"Calculate","v":""},{"$f":"Calculate","v":""},{"$f":"Calculate","v":""},{"$f":"Calculate","v":""},{"$f":"Calculate","v":""},"",{"$f":"Calculate","v":""},{"$f":"Calculate","v":""},{"$f":"Calculate","v":""},{"$f":"Calculate","v":""},{"$f":"Calculate","v":""},{"$f":"Calculate","v":""},{"$f":"Calculate","v":""},"",{"$f":"Calculate","v":""},{"$f":"Calculate","v":""},{"$f":"Calculate","v":""},{"$f":"Calculate","v":""},{"$f":"Calculate","v":""},{"$f":"Calculate","v":""},{"$f":"Calculate","v":""},"",{"$f":"Calculate","v":""},{"$f":"Calculate","v":""},{"$f":"Calculate","v":""},{"$f":"Calculate","v":""},{"$f":"Calculate","v":""},{"$f":"Calculate","v":""},{"$f":"Calculate","v":""},"",{"$f":"Calculate","v":""},{"$f":"Calculate","v":""},0,{"$f":"SUMPRODUCT(N(WEEKDAY(ROW(INDIRECT(Firts_DateOfMonth&\":\"&EOMONTH(Firts_DateOfMonth,0))),2)={1,2,3,4,5,6,7})*($D252:$J252=1))","v":0},0,0,0,""]
[248,null,null,null,null,null,null,null,null,null,0,"",{"$f":"Calculate","v":""},{"$f":"Calculate","v":""},{"$f":"Calculate","v":""},{"$f":"Calculate","v":""},{"$f":"Calculate","v":""},{"$f":"Calculate","v":""},{"$f":"Calculate","v":""},"",{"$f":"Calculate","v":""},{"$f":"Calculate","v":""},{"$f":"Calculate","v":""},{"$f":"Calculate","v":""},{"$f":"Calculate","v":""},{"$f":"Calculate","v":""},{"$f":"Calculate","v":""},"",{"$f":"Calculate","v":""},{"$f":"Calculate","v":""},{"$f":"Calculate","v":""},{"$f":"Calculate","v":""},{"$f":"Calculate","v":""},{"$f":"Calculate","v":""},{"$f":"Calculate","v":""},"",{"$f":"Calculate","v":""},{"$f":"Calculate","v":""},{"$f":"Calculate","v":""},{"$f":"Calculate","v":""},{"$f":"Calculate","v":""},{"$f":"Calculate","v":""},{"$f":"Calculate","v":""},"",{"$f":"Calculate","v":""},{"$f":"Calculate","v":""},{"$f":"Calculate","v":""},{"$f":"Calculate","v":""},{"$f":"Calculate","v":""},{"$f":"Calculate","v":""},{"$f":"Calculate","v":""},"",{"$f":"Calculate","v":""},{"$f":"Calculate","v":""},0,{"$f":"SUMPRODUCT(N(WEEKDAY(ROW(INDIRECT(Firts_DateOfMonth&\":\"&EOMONTH(Firts_DateOfMonth,0))),2)={1,2,3,4,5,6,7})*($D253:$J253=1))","v":0},0,0,0,""]
[249,null,null,null,null,null,null,null,null,null,0,"",{"$f":"Calculate","v":""},{"$f":"Calculate","v":""},{"$f":"Calculate","v":""},{"$f":"Calculate","v":""},{"$f":"Calculate","v":""},{"$f":"Calculate","v":""},{"$f":"Calculate","v":""},"",{"$f":"Calculate","v":""},{"$f":"Calculate","v":""},{"$f":"Calculate","v":""},{"$f":"Calculate","v":""},{"$f":"Calculate","v":""},{"$f":"Calculate","v":""},{"$f":"Calculate","v":""},"",{"$f":"Calculate","v":""},{"$f":"Calculate","v":""},{"$f":"Calculate","v":""},{"$f":"Calculate","v":""},{"$f":"Calculate","v":""},{"$f":"Calculate","v":""},{"$f":"Calculate","v":""},"",{"$f":"Calculate","v":""},{"$f":"Calculate","v":""},{"$f":"Calculate","v":""},{"$f":"Calculate","v":""},{"$f":"Calculate","v":""},{"$f":"Calculate","v":""},{"$f":"Calculate","v":""},"",{"$f":"Calculate","v":""},{"$f":"Calculate","v":""},{"$f":"Calculate","v":""},{"$f":"Calculate","v":""},{"$f":"Calculate","v":""},{"$f":"Calculate","v":""},{"$f":"Calculate","v":""},"",{"$f":"Calculate","v":""},{"$f":"Calculate","v":""},0,{"$f":"SUMPRODUCT(N(WEEKDAY(ROW(INDIRECT(Firts_DateOfMonth&\":\"&EOMONTH(Firts_DateOfMonth,0))),2)={1,2,3,4,5,6,7})*($D254:$J254=1))","v":0},0,0,0,""]
[250,null,null,null,null,null,null,null,null,null,0,"",{"$f":"Calculate","v":""},{"$f":"Calculate","v":""},{"$f":"Calculate","v":""},{"$f":"Calculate","v":""},{"$f":"Calculate","v":""},{"$f":"Calculate","v":""},{"$f":"Calculate","v":""},"",{"$f":"Calculate","v":""},{"$f":"Calculate","v":""},{"$f":"Calculate","v":""},{"$f":"Calculate","v":""},{"$f":"Calculate","v":""},{"$f":"Calculate","v":""},{"$f":"Calculate","v":""},"",{"$f":"Calculate","v":""},{"$f":"Calculate","v":""},{"$f":"Calculate","v":""},{"$f":"Calculate","v":""},{"$f":"Calculate","v":""},{"$f":"Calculate","v":""},{"$f":"Calculate","v":""},"",{"$f":"Calculate","v":""},{"$f":"Calculate","v":""},{"$f":"Calculate","v":""},{"$f":"Calculate","v":""},{"$f":"Calculate","v":""},{"$f":"Calculate","v":""},{"$f":"Calculate","v":""},"",{"$f":"Calculate","v":""},{"$f":"Calculate","v":""},{"$f":"Calculate","v":""},{"$f":"Calculate","v":""},{"$f":"Calculate","v":""},{"$f":"Calculate","v":""},{"$f":"Calculate","v":""},"",{"$f":"Calculate","v":""},{"$f":"Calculate","v":""},0,{"$f":"SUMPRODUCT(N(WEEKDAY(ROW(INDIRECT(Firts_DateOfMonth&\":\"&EOMONTH(Firts_DateOfMonth,0))),2)={1,2,3,4,5,6,7})*($D255:$J255=1))","v":0},0,0,0,""]
[251,null,null,null,null,null,null,null,null,null,0,"",{"$f":"Calculate","v":""},{"$f":"Calculate","v":""},{"$f":"Calculate","v":""},{"$f":"Calculate","v":""},{"$f":"Calculate","v":""},{"$f":"Calculate","v":""},{"$f":"Calculate","v":""},"",{"$f":"Calculate","v":""},{"$f":"Calculate","v":""},{"$f":"Calculate","v":""},{"$f":"Calculate","v":""},{"$f":"Calculate","v":""},{"$f":"Calculate","v":""},{"$f":"Calculate","v":""},"",{"$f":"Calculate","v":""},{"$f":"Calculate","v":""},{"$f":"Calculate","v":""},{"$f":"Calculate","v":""},{"$f":"Calculate","v":""},{"$f":"Calculate","v":""},{"$f":"Calculate","v":""},"",{"$f":"Calculate","v":""},{"$f":"Calculate","v":""},{"$f":"Calculate","v":""},{"$f":"Calculate","v":""},{"$f":"Calculate","v":""},{"$f":"Calculate","v":""},{"$f":"Calculate","v":""},"",{"$f":"Calculate","v":""},{"$f":"Calculate","v":""},{"$f":"Calculate","v":""},{"$f":"Calculate","v":""},{"$f":"Calculate","v":""},{"$f":"Calculate","v":""},{"$f":"Calculate","v":""},"",{"$f":"Calculate","v":""},{"$f":"Calculate","v":""},0,{"$f":"SUMPRODUCT(N(WEEKDAY(ROW(INDIRECT(Firts_DateOfMonth&\":\"&EOMONTH(Firts_DateOfMonth,0))),2)={1,2,3,4,5,6,7})*($D256:$J256=1))","v":0},0,0,0,""]
[252,null,null,null,null,null,null,null,null,null,0,"",{"$f":"Calculate","v":""},{"$f":"Calculate","v":""},{"$f":"Calculate","v":""},{"$f":"Calculate","v":""},{"$f":"Calculate","v":""},{"$f":"Calculate","v":""},{"$f":"Calculate","v":""},"",{"$f":"Calculate","v":""},{"$f":"Calculate","v":""},{"$f":"Calculate","v":""},{"$f":"Calculate","v":""},{"$f":"Calculate","v":""},{"$f":"Calculate","v":""},{"$f":"Calculate","v":""},"",{"$f":"Calculate","v":""},{"$f":"Calculate","v":""},{"$f":"Calculate","v":""},{"$f":"Calculate","v":""},{"$f":"Calculate","v":""},{"$f":"Calculate","v":""},{"$f":"Calculate","v":""},"",{"$f":"Calculate","v":""},{"$f":"Calculate","v":""},{"$f":"Calculate","v":""},{"$f":"Calculate","v":""},{"$f":"Calculate","v":""},{"$f":"Calculate","v":""},{"$f":"Calculate","v":""},"",{"$f":"Calculate","v":""},{"$f":"Calculate","v":""},{"$f":"Calculate","v":""},{"$f":"Calculate","v":""},{"$f":"Calculate","v":""},{"$f":"Calculate","v":""},{"$f":"Calculate","v":""},"",{"$f":"Calculate","v":""},{"$f":"Calculate","v":""},0,{"$f":"SUMPRODUCT(N(WEEKDAY(ROW(INDIRECT(Firts_DateOfMonth&\":\"&EOMONTH(Firts_DateOfMonth,0))),2)={1,2,3,4,5,6,7})*($D257:$J257=1))","v":0},0,0,0,""]
[253,null,null,null,null,null,null,null,null,null,0,"",{"$f":"Calculate","v":""},{"$f":"Calculate","v":""},{"$f":"Calculate","v":""},{"$f":"Calculate","v":""},{"$f":"Calculate","v":""},{"$f":"Calculate","v":""},{"$f":"Calculate","v":""},"",{"$f":"Calculate","v":""},{"$f":"Calculate","v":""},{"$f":"Calculate","v":""},{"$f":"Calculate","v":""},{"$f":"Calculate","v":""},{"$f":"Calculate","v":""},{"$f":"Calculate","v":""},"",{"$f":"Calculate","v":""},{"$f":"Calculate","v":""},{"$f":"Calculate","v":""},{"$f":"Calculate","v":""},{"$f":"Calculate","v":""},{"$f":"Calculate","v":""},{"$f":"Calculate","v":""},"",{"$f":"Calculate","v":""},{"$f":"Calculate","v":""},{"$f":"Calculate","v":""},{"$f":"Calculate","v":""},{"$f":"Calculate","v":""},{"$f":"Calculate","v":""},{"$f":"Calculate","v":""},"",{"$f":"Calculate","v":""},{"$f":"Calculate","v":""},{"$f":"Calculate","v":""},{"$f":"Calculate","v":""},{"$f":"Calculate","v":""},{"$f":"Calculate","v":""},{"$f":"Calculate","v":""},"",{"$f":"Calculate","v":""},{"$f":"Calculate","v":""},0,{"$f":"SUMPRODUCT(N(WEEKDAY(ROW(INDIRECT(Firts_DateOfMonth&\":\"&EOMONTH(Firts_DateOfMonth,0))),2)={1,2,3,4,5,6,7})*($D258:$J258=1))","v":0},0,0,0,""]
[254,null,null,null,null,null,null,null,null,null,0,"",{"$f":"Calculate","v":""},{"$f":"Calculate","v":""},{"$f":"Calculate","v":""},{"$f":"Calculate","v":""},{"$f":"Calculate","v":""},{"$f":"Calculate","v":""},{"$f":"Calculate","v":""},"",{"$f":"Calculate","v":""},{"$f":"Calculate","v":""},{"$f":"Calculate","v":""},{"$f":"Calculate","v":""},{"$f":"Calculate","v":""},{"$f":"Calculate","v":""},{"$f":"Calculate","v":""},"",{"$f":"Calculate","v":""},{"$f":"Calculate","v":""},{"$f":"Calculate","v":""},{"$f":"Calculate","v":""},{"$f":"Calculate","v":""},{"$f":"Calculate","v":""},{"$f":"Calculate","v":""},"",{"$f":"Calculate","v":""},{"$f":"Calculate","v":""},{"$f":"Calculate","v":""},{"$f":"Calculate","v":""},{"$f":"Calculate","v":""},{"$f":"Calculate","v":""},{"$f":"Calculate","v":""},"",{"$f":"Calculate","v":""},{"$f":"Calculate","v":""},{"$f":"Calculate","v":""},{"$f":"Calculate","v":""},{"$f":"Calculate","v":""},{"$f":"Calculate","v":""},{"$f":"Calculate","v":""},"",{"$f":"Calculate","v":""},{"$f":"Calculate","v":""},0,{"$f":"SUMPRODUCT(N(WEEKDAY(ROW(INDIRECT(Firts_DateOfMonth&\":\"&EOMONTH(Firts_DateOfMonth,0))),2)={1,2,3,4,5,6,7})*($D259:$J259=1))","v":0},0,0,0,""]
[255,null,null,null,null,null,null,null,null,null,0,"",{"$f":"Calculate","v":""},{"$f":"Calculate","v":""},{"$f":"Calculate","v":""},{"$f":"Calculate","v":""},{"$f":"Calculate","v":""},{"$f":"Calculate","v":""},{"$f":"Calculate","v":""},"",{"$f":"Calculate","v":""},{"$f":"Calculate","v":""},{"$f":"Calculate","v":""},{"$f":"Calculate","v":""},{"$f":"Calculate","v":""},{"$f":"Calculate","v":""},{"$f":"Calculate","v":""},"",{"$f":"Calculate","v":""},{"$f":"Calculate","v":""},{"$f":"Calculate","v":""},{"$f":"Calculate","v":""},{"$f":"Calculate","v":""},{"$f":"Calculate","v":""},{"$f":"Calculate","v":""},"",{"$f":"Calculate","v":""},{"$f":"Calculate","v":""},{"$f":"Calculate","v":""},{"$f":"Calculate","v":""},{"$f":"Calculate","v":""},{"$f":"Calculate","v":""},{"$f":"Calculate","v":""},"",{"$f":"Calculate","v":""},{"$f":"Calculate","v":""},{"$f":"Calculate","v":""},{"$f":"Calculate","v":""},{"$f":"Calculate","v":""},{"$f":"Calculate","v":""},{"$f":"Calculate","v":""},"",{"$f":"Calculate","v":""},{"$f":"Calculate","v":""},0,{"$f":"SUMPRODUCT(N(WEEKDAY(ROW(INDIRECT(Firts_DateOfMonth&\":\"&EOMONTH(Firts_DateOfMonth,0))),2)={1,2,3,4,5,6,7})*($D260:$J260=1))","v":0},0,0,0,""]
[256,null,null,null,null,null,null,null,null,null,0,"",{"$f":"Calculate","v":""},{"$f":"Calculate","v":""},{"$f":"Calculate","v":""},{"$f":"Calculate","v":""},{"$f":"Calculate","v":""},{"$f":"Calculate","v":""},{"$f":"Calculate","v":""},"",{"$f":"Calculate","v":""},{"$f":"Calculate","v":""},{"$f":"Calculate","v":""},{"$f":"Calculate","v":""},{"$f":"Calculate","v":""},{"$f":"Calculate","v":""},{"$f":"Calculate","v":""},"",{"$f":"Calculate","v":""},{"$f":"Calculate","v":""},{"$f":"Calculate","v":""},{"$f":"Calculate","v":""},{"$f":"Calculate","v":""},{"$f":"Calculate","v":""},{"$f":"Calculate","v":""},"",{"$f":"Calculate","v":""},{"$f":"Calculate","v":""},{"$f":"Calculate","v":""},{"$f":"Calculate","v":""},{"$f":"Calculate","v":""},{"$f":"Calculate","v":""},{"$f":"Calculate","v":""},"",{"$f":"Calculate","v":""},{"$f":"Calculate","v":""},{"$f":"Calculate","v":""},{"$f":"Calculate","v":""},{"$f":"Calculate","v":""},{"$f":"Calculate","v":""},{"$f":"Calculate","v":""},"",{"$f":"Calculate","v":""},{"$f":"Calculate","v":""},0,{"$f":"SUMPRODUCT(N(WEEKDAY(ROW(INDIRECT(Firts_DateOfMonth&\":\"&EOMONTH(Firts_DateOfMonth,0))),2)={1,2,3,4,5,6,7})*($D261:$J261=1))","v":0},0,0,0,""]
[257,null,null,null,null,null,null,null,null,null,0,{"$f":"IF($B262=\"บิลยกเลิก\",\"\",MID(B262,5,1))","v":""},{"$f":"Calculate","v":""},{"$f":"Calculate","v":""},{"$f":"Calculate","v":""},{"$f":"Calculate","v":""},{"$f":"Calculate","v":""},{"$f":"Calculate","v":""},{"$f":"Calculate","v":""},"",{"$f":"Calculate","v":""},{"$f":"Calculate","v":""},{"$f":"Calculate","v":""},{"$f":"Calculate","v":""},{"$f":"Calculate","v":""},{"$f":"Calculate","v":""},{"$f":"Calculate","v":""},"",{"$f":"Calculate","v":""},{"$f":"Calculate","v":""},{"$f":"Calculate","v":""},{"$f":"Calculate","v":""},{"$f":"Calculate","v":""},{"$f":"Calculate","v":""},{"$f":"Calculate","v":""},"",{"$f":"Calculate","v":""},{"$f":"Calculate","v":""},{"$f":"Calculate","v":""},{"$f":"Calculate","v":""},{"$f":"Calculate","v":""},{"$f":"Calculate","v":""},{"$f":"Calculate","v":""},"",{"$f":"Calculate","v":""},{"$f":"Calculate","v":""},{"$f":"Calculate","v":""},{"$f":"Calculate","v":""},{"$f":"Calculate","v":""},{"$f":"Calculate","v":""},{"$f":"Calculate","v":""},"",{"$f":"Calculate","v":""},{"$f":"Calculate","v":""},0,{"$f":"SUMPRODUCT(N(WEEKDAY(ROW(INDIRECT(Firts_DateOfMonth&\":\"&EOMONTH(Firts_DateOfMonth,0))),2)={1,2,3,4,5,6,7})*($D262:$J262=1))","v":0},{"$f":"IF($BF262>0,0,$BG262)","v":0},{"$f":"((LEFT($B262,1)=\"2\")+(LEFT($B262,1)=\"1\")*($L262=\"A\"))*$BG262","v":0},{"$f":"SUMIFS(M262:BB262,$M$5:$BB$5,\"<>Bills\")","v":0},{"$f":"IFERROR($BG262/$BC262,\"\")","v":""}]
[258,null,null,null,null,null,null,null,null,null,{"$f":"SUM(D263:J263)","v":0},"",{"$f":"Calculate","v":""},{"$f":"Calculate","v":""},{"$f":"Calculate","v":""},{"$f":"Calculate","v":""},{"$f":"Calculate","v":""},{"$f":"Calculate","v":""},{"$f":"Calculate","v":""},{"$f":"IF($B263=\"\",\"\",COUNT(M263:S263))","v":""},{"$f":"Calculate","v":""},{"$f":"Calculate","v":""},{"$f":"Calculate","v":""},{"$f":"Calculate","v":""},{"$f":"Calculate","v":""},{"$f":"Calculate","v":""},{"$f":"Calculate","v":""},{"$f":"IF($B263=\"\",\"\",COUNT(U263:AA263))","v":""},{"$f":"Calculate","v":""},{"$f":"Calculate","v":""},{"$f":"Calculate","v":""},{"$f":"Calculate","v":""},{"$f":"Calculate","v":""},{"$f":"Calculate","v":""},{"$f":"Calculate","v":""},{"$f":"IF($B263=\"\",\"\",COUNT(AC263:AI263))","v":""},{"$f":"Calculate","v":""},{"$f":"Calculate","v":""},{"$f":"Calculate","v":""},{"$f":"Calculate","v":""},{"$f":"Calculate","v":""},{"$f":"Calculate","v":""},{"$f":"Calculate","v":""},{"$f":"IF($B263=\"\",\"\",COUNT(AK263:AQ263))","v":""},{"$f":"Calculate","v":""},{"$f":"Calculate","v":""},{"$f":"Calculate","v":""},{"$f":"Calculate","v":""},{"$f":"Calculate","v":""},{"$f":"Calculate","v":""},{"$f":"Calculate","v":""},{"$f":"IF($B263=\"\",\"\",COUNT(AS263:AY263))","v":""},{"$f":"Calculate","v":""},{"$f":"Calculate","v":""},{"$f":"IF(SUMIFS(M263:BB263,$M$5:$BB$5,\"Bills\")=0,0,SUMIFS(M263:BB263,$M$5:$BB$5,\"Bills\"))","v":0},{"$f":"SUMPRODUCT(N(WEEKDAY(ROW(INDIRECT(Firts_DateOfMonth&\":\"&EOMONTH(Firts_DateOfMonth,0))),2)={1,2,3,4,5,6,7})*($D263:$J263=1))","v":0},0,0,0,""]
[259,null,null,null,null,null,null,null,null,null,0,"",{"$f":"Calculate","v":""},{"$f":"Calculate","v":""},{"$f":"Calculate","v":""},{"$f":"Calculate","v":""},{"$f":"Calculate","v":""},{"$f":"Calculate","v":""},{"$f":"Calculate","v":""},"",{"$f":"Calculate","v":""},{"$f":"Calculate","v":""},{"$f":"Calculate","v":""},{"$f":"Calculate","v":""},{"$f":"Calculate","v":""},{"$f":"Calculate","v":""},{"$f":"Calculate","v":""},"",{"$f":"Calculate","v":""},{"$f":"Calculate","v":""},{"$f":"Calculate","v":""},{"$f":"Calculate","v":""},{"$f":"Calculate","v":""},{"$f":"Calculate","v":""},{"$f":"Calculate","v":""},"",{"$f":"Calculate","v":""},{"$f":"Calculate","v":""},{"$f":"Calculate","v":""},{"$f":"Calculate","v":""},{"$f":"Calculate","v":""},{"$f":"Calculate","v":""},{"$f":"Calculate","v":""},"",{"$f":"Calculate","v":""},{"$f":"Calculate","v":""},{"$f":"Calculate","v":""},{"$f":"Calculate","v":""},{"$f":"Calculate","v":""},{"$f":"Calculate","v":""},{"$f":"Calculate","v":""},"",{"$f":"Calculate","v":""},{"$f":"Calculate","v":""},0,{"$f":"SUMPRODUCT(N(WEEKDAY(ROW(INDIRECT(Firts_DateOfMonth&\":\"&EOMONTH(Firts_DateOfMonth,0))),2)={1,2,3,4,5,6,7})*($D264:$J264=1))","v":0},0,0,0,""]
[260,null,null,null,null,null,null,null,null,null,0,"",{"$f":"Calculate","v":""},{"$f":"Calculate","v":""},{"$f":"Calculate","v":""},{"$f":"Calculate","v":""},{"$f":"Calculate","v":""},{"$f":"Calculate","v":""},{"$f":"Calculate","v":""},"",{"$f":"Calculate","v":""},{"$f":"Calculate","v":""},{"$f":"Calculate","v":""},{"$f":"Calculate","v":""},{"$f":"Calculate","v":""},{"$f":"Calculate","v":""},{"$f":"Calculate","v":""},"",{"$f":"Calculate","v":""},{"$f":"Calculate","v":""},{"$f":"Calculate","v":""},{"$f":"Calculate","v":""},{"$f":"Calculate","v":""},{"$f":"Calculate","v":""},{"$f":"Calculate","v":""},"",{"$f":"Calculate","v":""},{"$f":"Calculate","v":""},{"$f":"Calculate","v":""},{"$f":"Calculate","v":""},{"$f":"Calculate","v":""},{"$f":"Calculate","v":""},{"$f":"Calculate","v":""},"",{"$f":"Calculate","v":""},{"$f":"Calculate","v":""},{"$f":"Calculate","v":""},{"$f":"Calculate","v":""},{"$f":"Calculate","v":""},{"$f":"Calculate","v":""},{"$f":"Calculate","v":""},"",{"$f":"Calculate","v":""},{"$f":"Calculate","v":""},0,{"$f":"SUMPRODUCT(N(WEEKDAY(ROW(INDIRECT(Firts_DateOfMonth&\":\"&EOMONTH(Firts_DateOfMonth,0))),2)={1,2,3,4,5,6,7})*($D265:$J265=1))","v":0},0,0,0,""]
[261,null,null,null,null,null,null,null,null,null,0,"",{"$f":"Calculate","v":""},{"$f":"Calculate","v":""},{"$f":"Calculate","v":""},{"$f":"Calculate","v":""},{"$f":"Calculate","v":""},{"$f":"Calculate","v":""},{"$f":"Calculate","v":""},"",{"$f":"Calculate","v":""},{"$f":"Calculate","v":""},{"$f":"Calculate","v":""},{"$f":"Calculate","v":""},{"$f":"Calculate","v":""},{"$f":"Calculate","v":""},{"$f":"Calculate","v":""},"",{"$f":"Calculate","v":""},{"$f":"Calculate","v":""},{"$f":"Calculate","v":""},{"$f":"Calculate","v":""},{"$f":"Calculate","v":""},{"$f":"Calculate","v":""},{"$f":"Calculate","v":""},"",{"$f":"Calculate","v":""},{"$f":"Calculate","v":""},{"$f":"Calculate","v":""},{"$f":"Calculate","v":""},{"$f":"Calculate","v":""},{"$f":"Calculate","v":""},{"$f":"Calculate","v":""},"",{"$f":"Calculate","v":""},{"$f":"Calculate","v":""},{"$f":"Calculate","v":""},{"$f":"Calculate","v":""},{"$f":"Calculate","v":""},{"$f":"Calculate","v":""},{"$f":"Calculate","v":""},"",{"$f":"Calculate","v":""},{"$f":"Calculate","v":""},0,{"$f":"SUMPRODUCT(N(WEEKDAY(ROW(INDIRECT(Firts_DateOfMonth&\":\"&EOMONTH(Firts_DateOfMonth,0))),2)={1,2,3,4,5,6,7})*($D266:$J266=1))","v":0},0,0,0,""]
[262,null,null,null,null,null,null,null,null,null,0,"",{"$f":"Calculate","v":""},{"$f":"Calculate","v":""},{"$f":"Calculate","v":""},{"$f":"Calculate","v":""},{"$f":"Calculate","v":""},{"$f":"Calculate","v":""},{"$f":"Calculate","v":""},"",{"$f":"Calculate","v":""},{"$f":"Calculate","v":""},{"$f":"Calculate","v":""},{"$f":"Calculate","v":""},{"$f":"Calculate","v":""},{"$f":"Calculate","v":""},{"$f":"Calculate","v":""},"",{"$f":"Calculate","v":""},{"$f":"Calculate","v":""},{"$f":"Calculate","v":""},{"$f":"Calculate","v":""},{"$f":"Calculate","v":""},{"$f":"Calculate","v":""},{"$f":"Calculate","v":""},"",{"$f":"Calculate","v":""},{"$f":"Calculate","v":""},{"$f":"Calculate","v":""},{"$f":"Calculate","v":""},{"$f":"Calculate","v":""},{"$f":"Calculate","v":""},{"$f":"Calculate","v":""},"",{"$f":"Calculate","v":""},{"$f":"Calculate","v":""},{"$f":"Calculate","v":""},{"$f":"Calculate","v":""},{"$f":"Calculate","v":""},{"$f":"Calculate","v":""},{"$f":"Calculate","v":""},"",{"$f":"Calculate","v":""},{"$f":"Calculate","v":""},0,{"$f":"SUMPRODUCT(N(WEEKDAY(ROW(INDIRECT(Firts_DateOfMonth&\":\"&EOMONTH(Firts_DateOfMonth,0))),2)={1,2,3,4,5,6,7})*($D267:$J267=1))","v":0},0,0,0,""]
[263,null,null,null,null,null,null,null,null,null,0,"",{"$f":"Calculate","v":""},{"$f":"Calculate","v":""},{"$f":"Calculate","v":""},{"$f":"Calculate","v":""},{"$f":"Calculate","v":""},{"$f":"Calculate","v":""},{"$f":"Calculate","v":""},"",{"$f":"Calculate","v":""},{"$f":"Calculate","v":""},{"$f":"Calculate","v":""},{"$f":"Calculate","v":""},{"$f":"Calculate","v":""},{"$f":"Calculate","v":""},{"$f":"Calculate","v":""},"",{"$f":"Calculate","v":""},{"$f":"Calculate","v":""},{"$f":"Calculate","v":""},{"$f":"Calculate","v":""},{"$f":"Calculate","v":""},{"$f":"Calculate","v":""},{"$f":"Calculate","v":""},"",{"$f":"Calculate","v":""},{"$f":"Calculate","v":""},{"$f":"Calculate","v":""},{"$f":"Calculate","v":""},{"$f":"Calculate","v":""},{"$f":"Calculate","v":""},{"$f":"Calculate","v":""},"",{"$f":"Calculate","v":""},{"$f":"Calculate","v":""},{"$f":"Calculate","v":""},{"$f":"Calculate","v":""},{"$f":"Calculate","v":""},{"$f":"Calculate","v":""},{"$f":"Calculate","v":""},"",{"$f":"Calculate","v":""},{"$f":"Calculate","v":""},0,{"$f":"SUMPRODUCT(N(WEEKDAY(ROW(INDIRECT(Firts_DateOfMonth&\":\"&EOMONTH(Firts_DateOfMonth,0))),2)={1,2,3,4,5,6,7})*($D268:$J268=1))","v":0},0,0,0,""]
[264,null,null,null,null,null,null,null,null,null,0,"",{"$f":"Calculate","v":""},{"$f":"Calculate","v":""},{"$f":"Calculate","v":""},{"$f":"Calculate","v":""},{"$f":"Calculate","v":""},{"$f":"Calculate","v":""},{"$f":"Calculate","v":""},"",{"$f":"Calculate","v":""},{"$f":"Calculate","v":""},{"$f":"Calculate","v":""},{"$f":"Calculate","v":""},{"$f":"Calculate","v":""},{"$f":"Calculate","v":""},{"$f":"Calculate","v":""},"",{"$f":"Calculate","v":""},{"$f":"Calculate","v":""},{"$f":"Calculate","v":""},{"$f":"Calculate","v":""},{"$f":"Calculate","v":""},{"$f":"Calculate","v":""},{"$f":"Calculate","v":""},"",{"$f":"Calculate","v":""},{"$f":"Calculate","v":""},{"$f":"Calculate","v":""},{"$f":"Calculate","v":""},{"$f":"Calculate","v":""},{"$f":"Calculate","v":""},{"$f":"Calculate","v":""},"",{"$f":"Calculate","v":""},{"$f":"Calculate","v":""},{"$f":"Calculate","v":""},{"$f":"Calculate","v":""},{"$f":"Calculate","v":""},{"$f":"Calculate","v":""},{"$f":"Calculate","v":""},"",{"$f":"Calculate","v":""},{"$f":"Calculate","v":""},0,{"$f":"SUMPRODUCT(N(WEEKDAY(ROW(INDIRECT(Firts_DateOfMonth&\":\"&EOMONTH(Firts_DateOfMonth,0))),2)={1,2,3,4,5,6,7})*($D269:$J269=1))","v":0},0,0,0,""]
[265,null,null,null,null,null,null,null,null,null,0,"",{"$f":"Calculate","v":""},{"$f":"Calculate","v":""},{"$f":"Calculate","v":""},{"$f":"Calculate","v":""},{"$f":"Calculate","v":""},{"$f":"Calculate","v":""},{"$f":"Calculate","v":""},"",{"$f":"Calculate","v":""},{"$f":"Calculate","v":""},{"$f":"Calculate","v":""},{"$f":"Calculate","v":""},{"$f":"Calculate","v":""},{"$f":"Calculate","v":""},{"$f":"Calculate","v":""},"",{"$f":"Calculate","v":""},{"$f":"Calculate","v":""},{"$f":"Calculate","v":""},{"$f":"Calculate","v":""},{"$f":"Calculate","v":""},{"$f":"Calculate","v":""},{"$f":"Calculate","v":""},"",{"$f":"Calculate","v":""},{"$f":"Calculate","v":""},{"$f":"Calculate","v":""},{"$f":"Calculate","v":""},{"$f":"Calculate","v":""},{"$f":"Calculate","v":""},{"$f":"Calculate","v":""},"",{"$f":"Calculate","v":""},{"$f":"Calculate","v":""},{"$f":"Calculate","v":""},{"$f":"Calculate","v":""},{"$f":"Calculate","v":""},{"$f":"Calculate","v":""},{"$f":"Calculate","v":""},"",{"$f":"Calculate","v":""},{"$f":"Calculate","v":""},0,{"$f":"SUMPRODUCT(N(WEEKDAY(ROW(INDIRECT(Firts_DateOfMonth&\":\"&EOMONTH(Firts_DateOfMonth,0))),2)={1,2,3,4,5,6,7})*($D270:$J270=1))","v":0},0,0,0,""]
[266,null,null,null,null,null,null,null,null,null,0,"",{"$f":"Calculate","v":""},{"$f":"Calculate","v":""},{"$f":"Calculate","v":""},{"$f":"Calculate","v":""},{"$f":"Calculate","v":""},{"$f":"Calculate","v":""},{"$f":"Calculate","v":""},"",{"$f":"Calculate","v":""},{"$f":"Calculate","v":""},{"$f":"Calculate","v":""},{"$f":"Calculate","v":""},{"$f":"Calculate","v":""},{"$f":"Calculate","v":""},{"$f":"Calculate","v":""},"",{"$f":"Calculate","v":""},{"$f":"Calculate","v":""},{"$f":"Calculate","v":""},{"$f":"Calculate","v":""},{"$f":"Calculate","v":""},{"$f":"Calculate","v":""},{"$f":"Calculate","v":""},"",{"$f":"Calculate","v":""},{"$f":"Calculate","v":""},{"$f":"Calculate","v":""},{"$f":"Calculate","v":""},{"$f":"Calculate","v":""},{"$f":"Calculate","v":""},{"$f":"Calculate","v":""},"",{"$f":"Calculate","v":""},{"$f":"Calculate","v":""},{"$f":"Calculate","v":""},{"$f":"Calculate","v":""},{"$f":"Calculate","v":""},{"$f":"Calculate","v":""},{"$f":"Calculate","v":""},"",{"$f":"Calculate","v":""},{"$f":"Calculate","v":""},0,{"$f":"SUMPRODUCT(N(WEEKDAY(ROW(INDIRECT(Firts_DateOfMonth&\":\"&EOMONTH(Firts_DateOfMonth,0))),2)={1,2,3,4,5,6,7})*($D271:$J271=1))","v":0},0,0,0,""]
[267,null,null,null,null,null,null,null,null,null,0,"",{"$f":"Calculate","v":""},{"$f":"Calculate","v":""},{"$f":"Calculate","v":""},{"$f":"Calculate","v":""},{"$f":"Calculate","v":""},{"$f":"Calculate","v":""},{"$f":"Calculate","v":""},"",{"$f":"Calculate","v":""},{"$f":"Calculate","v":""},{"$f":"Calculate","v":""},{"$f":"Calculate","v":""},{"$f":"Calculate","v":""},{"$f":"Calculate","v":""},{"$f":"Calculate","v":""},"",{"$f":"Calculate","v":""},{"$f":"Calculate","v":""},{"$f":"Calculate","v":""},{"$f":"Calculate","v":""},{"$f":"Calculate","v":""},{"$f":"Calculate","v":""},{"$f":"Calculate","v":""},"",{"$f":"Calculate","v":""},{"$f":"Calculate","v":""},{"$f":"Calculate","v":""},{"$f":"Calculate","v":""},{"$f":"Calculate","v":""},{"$f":"Calculate","v":""},{"$f":"Calculate","v":""},"",{"$f":"Calculate","v":""},{"$f":"Calculate","v":""},{"$f":"Calculate","v":""},{"$f":"Calculate","v":""},{"$f":"Calculate","v":""},{"$f":"Calculate","v":""},{"$f":"Calculate","v":""},"",{"$f":"Calculate","v":""},{"$f":"Calculate","v":""},0,{"$f":"SUMPRODUCT(N(WEEKDAY(ROW(INDIRECT(Firts_DateOfMonth&\":\"&EOMONTH(Firts_DateOfMonth,0))),2)={1,2,3,4,5,6,7})*($D272:$J272=1))","v":0},0,0,0,""]
[268,null,null,null,null,null,null,null,null,null,0,"",{"$f":"Calculate","v":""},{"$f":"Calculate","v":""},{"$f":"Calculate","v":""},{"$f":"Calculate","v":""},{"$f":"Calculate","v":""},{"$f":"Calculate","v":""},{"$f":"Calculate","v":""},"",{"$f":"Calculate","v":""},{"$f":"Calculate","v":""},{"$f":"Calculate","v":""},{"$f":"Calculate","v":""},{"$f":"Calculate","v":""},{"$f":"Calculate","v":""},{"$f":"Calculate","v":""},"",{"$f":"Calculate","v":""},{"$f":"Calculate","v":""},{"$f":"Calculate","v":""},{"$f":"Calculate","v":""},{"$f":"Calculate","v":""},{"$f":"Calculate","v":""},{"$f":"Calculate","v":""},"",{"$f":"Calculate","v":""},{"$f":"Calculate","v":""},{"$f":"Calculate","v":""},{"$f":"Calculate","v":""},{"$f":"Calculate","v":""},{"$f":"Calculate","v":""},{"$f":"Calculate","v":""},"",{"$f":"Calculate","v":""},{"$f":"Calculate","v":""},{"$f":"Calculate","v":""},{"$f":"Calculate","v":""},{"$f":"Calculate","v":""},{"$f":"Calculate","v":""},{"$f":"Calculate","v":""},"",{"$f":"Calculate","v":""},{"$f":"Calculate","v":""},0,{"$f":"SUMPRODUCT(N(WEEKDAY(ROW(INDIRECT(Firts_DateOfMonth&\":\"&EOMONTH(Firts_DateOfMonth,0))),2)={1,2,3,4,5,6,7})*($D273:$J273=1))","v":0},0,0,0,""]
[269,null,null,null,null,null,null,null,null,null,0,"",{"$f":"Calculate","v":""},{"$f":"Calculate","v":""},{"$f":"Calculate","v":""},{"$f":"Calculate","v":""},{"$f":"Calculate","v":""},{"$f":"Calculate","v":""},{"$f":"Calculate","v":""},"",{"$f":"Calculate","v":""},{"$f":"Calculate","v":""},{"$f":"Calculate","v":""},{"$f":"Calculate","v":""},{"$f":"Calculate","v":""},{"$f":"Calculate","v":""},{"$f":"Calculate","v":""},"",{"$f":"Calculate","v":""},{"$f":"Calculate","v":""},{"$f":"Calculate","v":""},{"$f":"Calculate","v":""},{"$f":"Calculate","v":""},{"$f":"Calculate","v":""},{"$f":"Calculate","v":""},"",{"$f":"Calculate","v":""},{"$f":"Calculate","v":""},{"$f":"Calculate","v":""},{"$f":"Calculate","v":""},{"$f":"Calculate","v":""},{"$f":"Calculate","v":""},{"$f":"Calculate","v":""},"",{"$f":"Calculate","v":""},{"$f":"Calculate","v":""},{"$f":"Calculate","v":""},{"$f":"Calculate","v":""},{"$f":"Calculate","v":""},{"$f":"Calculate","v":""},{"$f":"Calculate","v":""},"",{"$f":"Calculate","v":""},{"$f":"Calculate","v":""},0,{"$f":"SUMPRODUCT(N(WEEKDAY(ROW(INDIRECT(Firts_DateOfMonth&\":\"&EOMONTH(Firts_DateOfMonth,0))),2)={1,2,3,4,5,6,7})*($D274:$J274=1))","v":0},0,0,0,""]
[270,null,null,null,null,null,null,null,null,null,0,"",{"$f":"Calculate","v":""},{"$f":"Calculate","v":""},{"$f":"Calculate","v":""},{"$f":"Calculate","v":""},{"$f":"Calculate","v":""},{"$f":"Calculate","v":""},{"$f":"Calculate","v":""},"",{"$f":"Calculate","v":""},{"$f":"Calculate","v":""},{"$f":"Calculate","v":""},{"$f":"Calculate","v":""},{"$f":"Calculate","v":""},{"$f":"Calculate","v":""},{"$f":"Calculate","v":""},"",{"$f":"Calculate","v":""},{"$f":"Calculate","v":""},{"$f":"Calculate","v":""},{"$f":"Calculate","v":""},{"$f":"Calculate","v":""},{"$f":"Calculate","v":""},{"$f":"Calculate","v":""},"",{"$f":"Calculate","v":""},{"$f":"Calculate","v":""},{"$f":"Calculate","v":""},{"$f":"Calculate","v":""},{"$f":"Calculate","v":""},{"$f":"Calculate","v":""},{"$f":"Calculate","v":""},"",{"$f":"Calculate","v":""},{"$f":"Calculate","v":""},{"$f":"Calculate","v":""},{"$f":"Calculate","v":""},{"$f":"Calculate","v":""},{"$f":"Calculate","v":""},{"$f":"Calculate","v":""},"",{"$f":"Calculate","v":""},{"$f":"Calculate","v":""},0,{"$f":"SUMPRODUCT(N(WEEKDAY(ROW(INDIRECT(Firts_DateOfMonth&\":\"&EOMONTH(Firts_DateOfMonth,0))),2)={1,2,3,4,5,6,7})*($D275:$J275=1))","v":0},0,0,0,""]
[271,null,null,null,null,null,null,null,null,null,0,"",{"$f":"Calculate","v":""},{"$f":"Calculate","v":""},{"$f":"Calculate","v":""},{"$f":"Calculate","v":""},{"$f":"Calculate","v":""},{"$f":"Calculate","v":""},{"$f":"Calculate","v":""},"",{"$f":"Calculate","v":""},{"$f":"Calculate","v":""},{"$f":"Calculate","v":""},{"$f":"Calculate","v":""},{"$f":"Calculate","v":""},{"$f":"Calculate","v":""},{"$f":"Calculate","v":""},"",{"$f":"Calculate","v":""},{"$f":"Calculate","v":""},{"$f":"Calculate","v":""},{"$f":"Calculate","v":""},{"$f":"Calculate","v":""},{"$f":"Calculate","v":""},{"$f":"Calculate","v":""},"",{"$f":"Calculate","v":""},{"$f":"Calculate","v":""},{"$f":"Calculate","v":""},{"$f":"Calculate","v":""},{"$f":"Calculate","v":""},{"$f":"Calculate","v":""},{"$f":"Calculate","v":""},"",{"$f":"Calculate","v":""},{"$f":"Calculate","v":""},{"$f":"Calculate","v":""},{"$f":"Calculate","v":""},{"$f":"Calculate","v":""},{"$f":"Calculate","v":""},{"$f":"Calculate","v":""},"",{"$f":"Calculate","v":""},{"$f":"Calculate","v":""},0,{"$f":"SUMPRODUCT(N(WEEKDAY(ROW(INDIRECT(Firts_DateOfMonth&\":\"&EOMONTH(Firts_DateOfMonth,0))),2)={1,2,3,4,5,6,7})*($D276:$J276=1))","v":0},0,0,0,""]
[272,null,null,null,null,null,null,null,null,null,0,"",{"$f":"Calculate","v":""},{"$f":"Calculate","v":""},{"$f":"Calculate","v":""},{"$f":"Calculate","v":""},{"$f":"Calculate","v":""},{"$f":"Calculate","v":""},{"$f":"Calculate","v":""},"",{"$f":"Calculate","v":""},{"$f":"Calculate","v":""},{"$f":"Calculate","v":""},{"$f":"Calculate","v":""},{"$f":"Calculate","v":""},{"$f":"Calculate","v":""},{"$f":"Calculate","v":""},"",{"$f":"Calculate","v":""},{"$f":"Calculate","v":""},{"$f":"Calculate","v":""},{"$f":"Calculate","v":""},{"$f":"Calculate","v":""},{"$f":"Calculate","v":""},{"$f":"Calculate","v":""},"",{"$f":"Calculate","v":""},{"$f":"Calculate","v":""},{"$f":"Calculate","v":""},{"$f":"Calculate","v":""},{"$f":"Calculate","v":""},{"$f":"Calculate","v":""},{"$f":"Calculate","v":""},"",{"$f":"Calculate","v":""},{"$f":"Calculate","v":""},{"$f":"Calculate","v":""},{"$f":"Calculate","v":""},{"$f":"Calculate","v":""},{"$f":"Calculate","v":""},{"$f":"Calculate","v":""},"",{"$f":"Calculate","v":""},{"$f":"Calculate","v":""},0,{"$f":"SUMPRODUCT(N(WEEKDAY(ROW(INDIRECT(Firts_DateOfMonth&\":\"&EOMONTH(Firts_DateOfMonth,0))),2)={1,2,3,4,5,6,7})*($D277:$J277=1))","v":0},0,0,0,""]
[273,null,null,null,null,null,null,null,null,null,0,"",{"$f":"Calculate","v":""},{"$f":"Calculate","v":""},{"$f":"Calculate","v":""},{"$f":"Calculate","v":""},{"$f":"Calculate","v":""},{"$f":"Calculate","v":""},{"$f":"Calculate","v":""},"",{"$f":"Calculate","v":""},{"$f":"Calculate","v":""},{"$f":"Calculate","v":""},{"$f":"Calculate","v":""},{"$f":"Calculate","v":""},{"$f":"Calculate","v":""},{"$f":"Calculate","v":""},"",{"$f":"Calculate","v":""},{"$f":"Calculate","v":""},{"$f":"Calculate","v":""},{"$f":"Calculate","v":""},{"$f":"Calculate","v":""},{"$f":"Calculate","v":""},{"$f":"Calculate","v":""},"",{"$f":"Calculate","v":""},{"$f":"Calculate","v":""},{"$f":"Calculate","v":""},{"$f":"Calculate","v":""},{"$f":"Calculate","v":""},{"$f":"Calculate","v":""},{"$f":"Calculate","v":""},"",{"$f":"Calculate","v":""},{"$f":"Calculate","v":""},{"$f":"Calculate","v":""},{"$f":"Calculate","v":""},{"$f":"Calculate","v":""},{"$f":"Calculate","v":""},{"$f":"Calculate","v":""},"",{"$f":"Calculate","v":""},{"$f":"Calculate","v":""},0,{"$f":"SUMPRODUCT(N(WEEKDAY(ROW(INDIRECT(Firts_DateOfMonth&\":\"&EOMONTH(Firts_DateOfMonth,0))),2)={1,2,3,4,5,6,7})*($D278:$J278=1))","v":0},0,0,0,""]
[274,null,null,null,null,null,null,null,null,null,0,"",{"$f":"Calculate","v":""},{"$f":"Calculate","v":""},{"$f":"Calculate","v":""},{"$f":"Calculate","v":""},{"$f":"Calculate","v":""},{"$f":"Calculate","v":""},{"$f":"Calculate","v":""},"",{"$f":"Calculate","v":""},{"$f":"Calculate","v":""},{"$f":"Calculate","v":""},{"$f":"Calculate","v":""},{"$f":"Calculate","v":""},{"$f":"Calculate","v":""},{"$f":"Calculate","v":""},"",{"$f":"Calculate","v":""},{"$f":"Calculate","v":""},{"$f":"Calculate","v":""},{"$f":"Calculate","v":""},{"$f":"Calculate","v":""},{"$f":"Calculate","v":""},{"$f":"Calculate","v":""},"",{"$f":"Calculate","v":""},{"$f":"Calculate","v":""},{"$f":"Calculate","v":""},{"$f":"Calculate","v":""},{"$f":"Calculate","v":""},{"$f":"Calculate","v":""},{"$f":"Calculate","v":""},"",{"$f":"Calculate","v":""},{"$f":"Calculate","v":""},{"$f":"Calculate","v":""},{"$f":"Calculate","v":""},{"$f":"Calculate","v":""},{"$f":"Calculate","v":""},{"$f":"Calculate","v":""},"",{"$f":"Calculate","v":""},{"$f":"Calculate","v":""},0,{"$f":"SUMPRODUCT(N(WEEKDAY(ROW(INDIRECT(Firts_DateOfMonth&\":\"&EOMONTH(Firts_DateOfMonth,0))),2)={1,2,3,4,5,6,7})*($D279:$J279=1))","v":0},0,0,0,""]
[275,null,null,null,null,null,null,null,null,null,0,"",{"$f":"Calculate","v":""},{"$f":"Calculate","v":""},{"$f":"Calculate","v":""},{"$f":"Calculate","v":""},{"$f":"Calculate","v":""},{"$f":"Calculate","v":""},{"$f":"Calculate","v":""},"",{"$f":"Calculate","v":""},{"$f":"Calculate","v":""},{"$f":"Calculate","v":""},{"$f":"Calculate","v":""},{"$f":"Calculate","v":""},{"$f":"Calculate","v":""},{"$f":"Calculate","v":""},"",{"$f":"Calculate","v":""},{"$f":"Calculate","v":""},{"$f":"Calculate","v":""},{"$f":"Calculate","v":""},{"$f":"Calculate","v":""},{"$f":"Calculate","v":""},{"$f":"Calculate","v":""},"",{"$f":"Calculate","v":""},{"$f":"Calculate","v":""},{"$f":"Calculate","v":""},{"$f":"Calculate","v":""},{"$f":"Calculate","v":""},{"$f":"Calculate","v":""},{"$f":"Calculate","v":""},"",{"$f":"Calculate","v":""},{"$f":"Calculate","v":""},{"$f":"Calculate","v":""},{"$f":"Calculate","v":""},{"$f":"Calculate","v":""},{"$f":"Calculate","v":""},{"$f":"Calculate","v":""},"",{"$f":"Calculate","v":""},{"$f":"Calculate","v":""},0,{"$f":"SUMPRODUCT(N(WEEKDAY(ROW(INDIRECT(Firts_DateOfMonth&\":\"&EOMONTH(Firts_DateOfMonth,0))),2)={1,2,3,4,5,6,7})*($D280:$J280=1))","v":0},0,0,0,""]
[276,null,null,null,null,null,null,null,null,null,0,"",{"$f":"Calculate","v":""},{"$f":"Calculate","v":""},{"$f":"Calculate","v":""},{"$f":"Calculate","v":""},{"$f":"Calculate","v":""},{"$f":"Calculate","v":""},{"$f":"Calculate","v":""},"",{"$f":"Calculate","v":""},{"$f":"Calculate","v":""},{"$f":"Calculate","v":""},{"$f":"Calculate","v":""},{"$f":"Calculate","v":""},{"$f":"Calculate","v":""},{"$f":"Calculate","v":""},"",{"$f":"Calculate","v":""},{"$f":"Calculate","v":""},{"$f":"Calculate","v":""},{"$f":"Calculate","v":""},{"$f":"Calculate","v":""},{"$f":"Calculate","v":""},{"$f":"Calculate","v":""},"",{"$f":"Calculate","v":""},{"$f":"Calculate","v":""},{"$f":"Calculate","v":""},{"$f":"Calculate","v":""},{"$f":"Calculate","v":""},{"$f":"Calculate","v":""},{"$f":"Calculate","v":""},"",{"$f":"Calculate","v":""},{"$f":"Calculate","v":""},{"$f":"Calculate","v":""},{"$f":"Calculate","v":""},{"$f":"Calculate","v":""},{"$f":"Calculate","v":""},{"$f":"Calculate","v":""},"",{"$f":"Calculate","v":""},{"$f":"Calculate","v":""},0,{"$f":"SUMPRODUCT(N(WEEKDAY(ROW(INDIRECT(Firts_DateOfMonth&\":\"&EOMONTH(Firts_DateOfMonth,0))),2)={1,2,3,4,5,6,7})*($D281:$J281=1))","v":0},0,0,0,""]
["จำนวนร้านทั้งหมด",null,null,"เป้าบิลแต่ละวัน",null,null,null,null,null,null,null,null,null,null,null,null,null,null,null,null,null,null,null,null,null,null,null,null,null,null,null,null,null,null,null,null,null,null,null,null,null,null,null,null,null,null,null,null,null,null,null,null,null,null,{"$f":"SUM(M282:BB282)","v":0},"บิล",{"$f":"SUM(BE6:BE281)","v":0},0,{"$f":"$BC$285","v":0},{"$f":"IFERROR(BG282/BC283,0)","v":0}]
[null,null,null,"รอบบิลที่วิ่งจริง",null,null,null,null,null,null,null,null,{"$f":"COUNT(M6:M281)","v":0},0,0,0,0,0,0,{"$f":"SUM(T6:T281)","v":0},{"$f":"COUNT(U6:U281)","v":0},0,0,0,0,0,0,{"$f":"SUM(AB6:AB281)","v":0},{"$f":"COUNT(AC6:AC281)","v":0},0,0,0,0,0,0,{"$f":"SUM(AJ6:AJ281)","v":0},{"$f":"COUNT(AK6:AK281)","v":0},0,0,0,0,0,0,{"$f":"SUM(AR6:AR281)","v":0},{"$f":"COUNT(AS6:AS281)","v":0},0,0,0,0,0,0,{"$f":"SUM(AZ6:AZ281)","v":0},{"$f":"COUNT(BA6:BA281)","v":0},{"$f":"COUNT(BB6:BB281)","v":0},{"$f":"SUMIFS(M283:BB283,$M$5:$BB$5,\"Bills\")","v":0},"บิล"]
[null,null,null,"สรุป+/-",null,null,null,null,null,null,null,null,{"$f":"M283-M282","v":0},{"$f":"N283-N282","v":0},0,0,0,0,0,null,null,null,null,null,null,null,null,null,{"$f":"AC283-AC282","v":0},{"$f":"AD283-AD282","v":0},{"$f":"AE283-AE282","v":0},{"$f":"AF283-AF282","v":0},{"$f":"AG283-AG282","v":0},{"$f":"AH283-AH282","v":0},{"$f":"AI283-AI282","v":0},null,{"$f":"AK283-AK282","v":0},{"$f":"AL283-AL282","v":0},{"$f":"AM283-AM282","v":0},{"$f":"AN283-AN282","v":0},{"$f":"AO283-AO282","v":0},{"$f":"AP283-AP282","v":0},{"$f":"AQ283-AQ282","v":0},null,{"$f":"AS283-AS282","v":0},{"$f":"AT283-AT282","v":0},{"$f":"AU283-AU282","v":0},{"$f":"AV283-AV282","v":0},{"$f":"AW283-AW282","v":0},{"$f":"AX283-AX282","v":0},{"$f":"AY283-AY282","v":0},null,{"$f":"BA283-BA282","v":0},{"$f":"BB283-BB282","v":0},0,"บิล"]
[null,null,null,"ยอดขายรวม (บาท)",null,null,null,null,null,null,null,null,{"$f":"SUM(M6:M281)","v":0},{"$f":"SUM(N6:N281)","v":0},0,0,0,0,0,null,{"$f":"SUM(U6:U281)","v":0},{"$f":"SUM(V6:V281)","v":0},0,0,0,0,0,null,{"$f":"SUM(AC6:AC281)","v":0},{"$f":"SUM(AD6:AD281)","v":0},0,0,0,0,0,null,{"$f":"SUM(AK6:AK281)","v":0},{"$f":"SUM(AL6:AL281)","v":0},0,0,0,0,0,null,{"$f":"SUM(AS6:AS281)","v":0},{"$f":"SUM(AT6:AT281)","v":0},0,0,0,0,0,null,0,0,{"$f":"SUM(M285:BB285)","v":0},"บาท"]
[null,null,null,"ประมาณการยอดขาย (ล่วงหน้า)",null,null,null,null,null,null,null,null,null,null,null,null,null,null,null,null,null,null,null,null,null,null,null,null,null,null,null,null,null,null,null,null,null,null,null,null,null,null,null,null,null,null,null,null,null,null,null,null,null,null,{"$f":"SUM(M286:BB286)","v":0},"บาท"]
[null,null,null,"สรุป+/-",null,null,null,null,null,null,null,null,{"$f":"M285-M286","v":0},{"$f":"N285-N286","v":0},0,0,0,0,0,null,{"$f":"U285-U286","v":0},{"$f":"V285-V286","v":0},{"$f":"W285-W286","v":0},{"$f":"X285-X286","v":0},{"$f":"Y285-Y286","v":0},{"$f":"Z285-Z286","v":0},{"$f":"AA285-AA286","v":0},null,{"$f":"AC285-AC286","v":0},{"$f":"AD285-AD286","v":0},{"$f":"AE285-AE286","v":0},{"$f":"AF285-AF286","v":0},{"$f":"AG285-AG286","v":0},{"$f":"AH285-AH286","v":0},{"$f":"AI285-AI286","v":0},null,{"$f":"AK285-AK286","v":0},{"$f":"AL285-AL286","v":0},{"$f":"AM285-AM286","v":0},{"$f":"AN285-AN286","v":0},{"$f":"AO285-AO286","v":0},{"$f":"AP285-AP286","v":0},{"$f":"AQ285-AQ286","v":0},null,{"$f":"AS285-AS286","v":0},{"$f":"AT285-AT286","v":0},{"$f":"AU285-AU286","v":0},{"$f":"AV285-AV286","v":0},{"$f":"AW285-AW286","v":0},{"$f":"AX285-AX286","v":0},{"$f":"AY285-AY286","v":0},null,{"$f":"BA285-BA286","v":0},{"$f":"BB285-BB286","v":0},0,"บาท"]
[null,null,null,"เปอร์เซ็นต์เสีย",null,null,null,null,null,null,null,null,{"$f":"IF(M283=0,\"-\",INDIRECT(\"'\"&M$4&\"'!\"&\"$AS$5\"))","v":"-"},{"$f":"IF(N283=0,\"-\",INDIRECT(\"'\"&N$4&\"'!\"&\"$AS$5\"))","v":"-"},"-","-","-","-","-",null,{"$f":"IF(U283=0,\"-\",INDIRECT(\"'\"&U$4&\"'!\"&\"$AS$5\"))","v":"-"},{"$f":"IF(V283=0,\"-\",INDIRECT(\"'\"&V$4&\"'!\"&\"$AS$5\"))","v":"-"},"-","-","-","-","-",null,{"$f":"IF(AC283=0,\"-\",INDIRECT(\"'\"&AC$4&\"'!\"&\"$AS$5\"))","v":"-"},{"$f":"IF(AD283=0,\"-\",INDIRECT(\"'\"&AD$4&\"'!\"&\"$AS$5\"))","v":"-"},"-","-","-","-","-",null,{"$f":"IF(AK283=0,\"-\",INDIRECT(\"'\"&AK$4&\"'!\"&\"$AS$5\"))","v":"-"},"-","-","-","-","-","-",null,{"$f":"IF(AS283=0,\"-\",INDIRECT(\"'\"&AS$4&\"'!\"&\"$AS$5\"))","v":"-"},"-","-","-","-","-","-",null,"-","-",{"$f":"IFERROR(SUM(M288:BB288)/COUNT(M288:BB288),0)","v":0},"% เฉลี่ย/เดือน"]

{"sheet":"Problems & Solutions","index":37,"n_rows":44,"n_cols":5,"rows_kept":44,"cut":false,"hidden":false,"merged":[[18,2,19,2],[21,2,22,2],[2,1,2,4],[3,3,3,4],[4,2,4,4],[5,3,5,4],[6,3,6,4],[7,3,7,4],[8,3,8,4],[9,3,9,4],[10,3,10,4],[11,3,11,4],[12,3,12,4],[15,2,16,2],[14,3,14,4],[19,3,19,4],[20,3,20,4],[21,3,21,4],[22,3,22,4],[15,3,15,4],[23,3,23,4],[43,1,43,2],[40,2,40,4],[37,3,37,4],[38,3,38,4],[28,3,28,4],[36,3,36,4],[26,3,26,4],[13,1,13,4],[1,1,1,2],[34,3,34,4],[35,3,35,4],[29,3,29,4],[30,3,30,4],[31,2,31,4],[32,3,32,4],[33,3,33,4],[24,2,24,4],[25,3,25,4],[16,3,16,4],[17,3,17,4],[18,3,18,4],[27,3,27,4]]}
[]
[null,"ขั้นตอนการตรวจรีพอร์ตขาย | วันที่ 3 พฤษภาคม 2565",null,"เขตการขายสาย >>",{"$f":"ใส่ข้อมูล!E3&\"-\"&ใส่ข้อมูล!G3","v":"KB-01"}]
[]
[null,"ลำดับ","หัวข้อ","แก้ไข"]
[null,1,"ร้านค้าจริงที่จัดส่งแต่ละวันต้องให้ตรงกับแผนเยี่ยมร้านค้าที่กำหนด ระบุชื่อร้านคำที่ไม่เข้าตามแผนเยี่ยม \nติดตามแก้ไขให้เข้าจัดส่งในรอบถัดไป"]
[null,null,"ร้านค้าที่ไม่เข้าจัดส่งตามแผนเยี่ยม(ชื่อ)","ระบุรอบที่ต้องแก้ไขจัดส่ง"]
[]
[]
[]
[null,2,"ร้านค้าที่จัดส่งเกิน เวลา 15 นาที ชื่อร้านอะไรบ้าง?","สิ่งที่ต้องปรับแก้ไขในรอบต่อไป"]
[]
[]
[]
[null,">> ติดตามเป้าหมายฝ่ายขาย พร้อมสรุปหาแนวทางแก้ไข <<"]
[null,3,"รอบบิล 45- 50 บิลต่อวัน","แนวทางแก้ไขที่ต้องปรับให้รอบบิลถึงเป้าหมาย"]
[null,null,"รอบบิลจริง ...................... บิล"]
[]
[null,4,"ยอดขาย 16,000 - 25,000 บาทต่อวัน","แนวทางแก้ไขต้องปรับให้ยอดขายถึงเป้าหมาย"]
[null,null,"ยอดขายจริง ........................... บาท"]
[]
[null,5,"ของเสียไม่เกิน 10 % ต่อวัน","รายการสินค้าที่คืนสูง และคืนต่ำต้องเบิกเพิ่ม"]
[null,null,"ของเสียจริง ................... %"]
[]
[null,6,"สินค้าของเหลือแต่ละวัน (ห้ามเหลือ)"]
[null,null,"เพราะอะไรสินค้าถึงเหลือ มีรายการไหนบ้าง จำนวนกี่ชิ้น จะปรับแก้ไขอย่างไรในรอบจัดส่งพรุ่งนี้"]
[]
[]
[]
[null,7,"สินค้าขาด-เกินคิดคำนวณ เท่าไรบาท?","ตรวจสอบปรับแก้ไขอย่างไร ให้สต๊อคสินค้าขาด-เกิน เป็นศูนย์"]
[null,null,"อัตราเงินที่ขาด ............... บาท (หักส่วนที่ขาดกับพนักงาน)"]
[null,null,"อัตราเงินที่เกิน ................ บาท"]
[null,8,"สรุปรายการสินค้าคีย์เปลี่ยนไม่ตรง พร้อมระบุคำแนะนำที่ต้องแก้ไข"]
[]
[]
[null,9,"เวลาในการจัดส่งสินคำแต่ละวัน","แนวทางที่ต้องปรับแก้ไขเรื่องการบริหารเวลาการทำงาน"]
[null,null,"เวลาเปิดบิลร้านแรก .................... น. (กำหนด 6:30 - 7:30 น.)"]
[null,null,"เวลาปิดการขายร้านสุดท้าย ................ น."]
[null,null,"เวลากลับถึงออฟฟิส ................ น."]
[]
[]
[null,null,"ผู้ตรวจ ……………………………………………………………………… (ผู้จัดการสาขา)"]
[]
[]
[null,{"$f":"\"** สาขา \"&SL_Branch&\" กรอกข้อมูลเพื่อส่งรายงานออนไลน์ผ่าน Google Form \"","v":"** สาขา KB กรอกข้อมูลเพื่อส่งรายงานออนไลน์ผ่าน Google Form "},null,{"$f":"HYPERLINK(INDEX(GB_Branches[GoogleForm],MATCH(SL_Branch,GB_Branches[Code],)),\"คลิกที่นี่\")","v":"คลิกที่นี่"}]